{"text_format":"1","workbook":"xlsx","n_sheets":21,"sheets":["Contents","Business & other details","2.1 Expenditure summary","2.2 Repex","2.3 Augex","2.5 Connections","2.6 Non-network","2.7 Vegetation management","2.8 Maintenance","2.9 Emergency Response","2.10 Overheads","2.11 Labour","2.12 Input tables","4.1 Public lighting","4.2 Metering","4.3 Fee-based services","4.4 Quoted services","5.2 Asset Age Profile","5.3 MD - Network level","5.4 MD & utilisation-Spatial","6.3 Sustained interruptions"],"not_rendered":{"charts":0,"images":2,"macros":1,"external_links":3,"defined_names":89,"comments":3,"pivot_tables":0},"unopened":[],"bounds":{"document_bytes":16777216,"sheet_cells":100000,"rows_first":2000,"rows_last":500,"rows_between":2000,"halvings":0,"cell_chars":16384,"cell_head_chars":4096},"cells_cut":0,"cells_raw":0,"read":"whole","date_system":"1900"}

{"sheet":"Contents","index":0,"n_rows":27,"n_cols":19,"rows_kept":27,"cut":false,"hidden":false,"merged":[]}
[null,"REGULATORY REPORTING STATEMENT"]
[null,"Australian Distribution Co."]
[null,"Category Analysis RIN response 2014-15"]
[null,"CONTENTS"]
[]
[]
[null,null,null,null,"1. Business details",null,null,null,null,null,null,"2. Expenditure"]
[]
[]
[]
[]
[]
[]
[]
[]
[]
[]
[]
[]
[]
[]
[]
[]
[]
[]
[]
[null,null,null,null,"4. Alternative control services",null,null,null,null,null,null,"5. Network information",null,null,null,null,null,null,"6. Service & quality"]

{"sheet":"Business & other details","index":1,"n_rows":82,"n_cols":20,"rows_kept":82,"cut":false,"hidden":false,"merged":[[23,5,23,8],[0,11,0,19],[7,2,7,9],[11,2,11,9],[13,3,13,5],[14,3,14,5],[17,3,17,4],[19,3,19,4],[22,3,22,4],[22,5,22,8],[17,5,17,8],[18,5,18,8],[19,5,19,8],[24,3,24,4],[24,5,24,8],[28,6,28,7],[29,6,29,7],[51,3,51,4],[58,3,58,9],[59,0,65,0],[30,6,30,7],[32,0,41,0],[32,2,32,9],[38,3,38,4],[43,0,46,0]]}
["HIDE THIS COLUMN",null,{"$f":"(LOOKUP(dms_Model,dms_Model_List,dms_Worksheet_List))","v":"REGULATORY REPORTING STATEMENT"},null,null,null,null,null,null,null,null,"Data in these columns used for data validation and database purposes."]
[null,null,{"$f":"dms_TradingName","v":"ActewAGL Distribution"},null,null,null,null,null,null,null,null,"Date last modified:"]
[null,null,{"$f":"CONCATENATE(\"Category Analysis RIN response \",CRY)","v":"Category Analysis RIN response 2014-15"},null,null,null,null,null,null,null,null,"14 April 2015","merged cell C46/47"]
[null,null,"BUSINESS & OTHER DETAILS",null,null,null,null,null,null,null,null,"17 April 2015","adjusted dms_RYE to automate based on dms_Model (NB: EB & CA refer to CRCP_y5)"]
[null,null,null,null,null,null,null,null,null,null,null,"14 May 2015","adapted this cover for use in CA & EB RINs"]
[]
[null,null,"Instructions"]
[null,null,"Complete the following business details regulatory template before entering data or values in any other regulatory template. This regulatory template is linked to other cells within the spreadsheet and automatically generates column headings."]
[]
[null,null,"SUBMISSION PARTICULARS INPUT SHEETS"]
[]
[null,null,"Entity details"]
[]
[null,null,"Trading name","ActewAGL Distribution"]
[null,null,"ACN / ABN",{"$f":"INDEX(dms_ABN_List,MATCH(dms_TradingName,dms_TradingName_List))","v":76670568688}]
[]
[null,null,null,null,null,null,null,null,null,null,null,"dms_Model_List ","dms_Worksheet_List ",null,"dms_RYE_List1","dms_RYE_List2"]
[null,null,"Business address","Address 1",null,"40 Bunda Street",null,null,null,null,null,"CA","REGULATORY REPORTING STATEMENT",null,"dms_RYE",{"$f":"CONCATENATE(LEFT(CRY, 2) &IF(CRY>\"2009-10\",,\"\") &RIGHT(CRY,2))","v":"2015"}]
[null,null,null,null,"Address 2",null,null,null,null,null,null,"CAM/Service change Backcast","REGULATORY REPORTING STATEMENT",null,"dms_RYE",{"$f":"CONCATENATE(LEFT(CRCP_y5, 2) &IF(CRCP_y5>\"2009-10\",,\"\") &RIGHT(CRCP_y5,2))","v":"2016"}]
[null,null,null,"Suburb",null,"Canberra",null,null,null,null,null,"CPI","CPI",null,"dms_RYE",{"$f":"CONCATENATE(LEFT(CRCP_y5, 2) &IF(CRCP_y5>\"2009-10\",,\"\") &RIGHT(CRCP_y5,2))","v":"2016"}]
[null,null,null,null,"State",{"$f":"INDEX(dms_State_List,MATCH(dms_TradingName,dms_TradingName_List))","v":"ACT"},"p/code",260,null,null,null,"EB","REGULATORY REPORTING STATEMENT",null,"dms_RYE",{"$f":"CONCATENATE(LEFT(CRY, 2) &IF(CRY>\"2009-10\",,\"\") &RIGHT(CRY,2))","v":"2015"}]
[null,null,null,null,null,null,null,null,null,null,null,"PTRM","POST TAX REVENUE MODEL",null,"FRCP",{"$f":"CONCATENATE(LEFT(FRCP_y5, 2) &IF(FRCP_y1>\"2009-10\",,\"\") &RIGHT(FRCP_y5,2))","v":"2021"}]
[null,null,"Postal address","Address 1",null,"GPO Box 366",null,null,null,null,null,"Reset","REGULATORY REPORTING STATEMENT",null,"FRCP",{"$f":"CONCATENATE(LEFT(CRCP_y5, 2) &IF(CRCP_y5>\"2009-10\",,\"\") &RIGHT(CRCP_y5,2))","v":"2016"}]
[null,null,null,null,"Address 2",null,null,null,null,null,null,"RFM","ROLL FORWARD MODEL",null,"CRCP",{"$f":"CONCATENATE(LEFT(CRCP_y5, 2) &IF(CRCP_y1>\"2009-10\",,\"\") &RIGHT(CRCP_y5,2))","v":"2016"}]
[null,null,null,"Suburb",null,"Canberra",null,null,null,null,null,"WACC","WEIGHTED AVERAGE COST OF CAPITAL",null,"dms_RYE",{"$f":"CONCATENATE(LEFT(CRCP_y5, 2) &IF(CRCP_y5>\"2009-10\",,\"\") &RIGHT(CRCP_y5,2))","v":"2016"}]
[null,null,null,null,"State","ACT","p/code",2601]
[]
[null,null,null,null,null,null,null,null,null,null,null,"dms_TradingName_List","dms_ABN_List","dms_State_List","dms_Sector_List","dms_Segment_List","dms_FormControl","dms_CRCPlength_List","dms_FRCPlength_List","dms_JurisdictionList"]
[null,null,"Contact name/s","Robert Walker",null,null,"Peter Cunningham",null,null,null,null,"ActewAGL Distribution",76670568688,"ACT","Electricity","Distribution","Revenue cap",5,6,"ACT"]
[null,null,"Contact phone/s","02 6248 3847",null,null,"02 6293 5108",null,null,null,null,"ActewAGL Distribution (Tx Assets)",76670568688,"ACT","Electricity","Distribution","Revenue cap",5,5,"ACT"]
[null,null,"Contact email address/s","Robert.Walker@actewagl.com.au",null,null,"Peter.Cunningham@actewagl.com.au ",null,null,null,null,"AGN",78551685,"SA","Gas","Distribution","Revenue cap",5,5,"SA"]
[null,null,null,null,null,null,null,null,null,null,null,"Ausgrid",67505337385,"NSW","Electricity","Distribution","Revenue cap",5,5,"NSW"]
["KEEP VISIBLE FOR\n RESET, PTRM & RFMS",null,"Regulatory control period details",null,null,null,null,null,null,null,null,"Ausgrid (Tx Assets)",67505337385,"NSW","Electricity","Distribution","Revenue cap",5,5,"NSW"]
[null,null,null,null,null,null,null,null,null,null,null,"AusNet (D)",91064651118,"Vic","Electricity","Distribution","Revenue cap",5,5,"Vic"]
[null,null,"Forthcoming regulatory control period",{"$f":"CONCATENATE(IF(dms_RPT=\"Calendar\",CRCP_y5+1,(LEFT(CRCP_y5,4)+1&\"-\"&IF(MID(CRCP_y5,6,2)<\"09\",\"0\"&RIGHT(CRCP_y5,1)+1,RIGHT(CRCP_y5,2)+1))))","v":"2016-17"},{"$f":"CONCATENATE(IF(dms_RPT=\"Calendar\",FRCP_y1+1,(LEFT(FRCP_y1,4)+1&\"-\"&IF(MID(FRCP_y1,6,2)<\"09\",\"0\"&RIGHT(FRCP_y1,1)+1,RIGHT(FRCP_y1,2)+1))))","v":"2017-18"},{"$f":"CONCATENATE(IF(dms_RPT=\"Calendar\",FRCP_y2+1,(LEFT(FRCP_y2,4)+1&\"-\"&IF(MID(FRCP_y2,6,2)<\"09\",\"0\"&RIGHT(FRCP_y2,1)+1,RIGHT(FRCP_y2,2)+1))))","v":"2018-19"},{"$f":"CONCATENATE(IF(dms_RPT=\"Calendar\",FRCP_y3+1,(LEFT(FRCP_y3,4)+1&\"-\"&IF(MID(FRCP_y3,6,2)<\"09\",\"0\"&RIGHT(FRCP_y3,1)+1,RIGHT(FRCP_y3,2)+1))))","v":"2019-20"},{"$f":"CONCATENATE(IF(dms_RPT=\"Calendar\",FRCP_y4+1,(LEFT(FRCP_y4,4)+1&\"-\"&IF(MID(FRCP_y4,6,2)<\"09\",\"0\"&RIGHT(FRCP_y4,1)+1,RIGHT(FRCP_y4,2)+1))))","v":"2020-21"},null,null,null,"AusNet (T)",78079798173,"Vic","Electricity","Transmission","Revenue cap",5,5,"Vic"]
[null,null,null,null,null,null,null,null,null,null,null,"Australian Distribution Co.",11222333444,"-","Electricity","Distribution","Revenue cap",5,5,"-"]
[null,null,null,null,null,null,null,null,null,null,null,"Australian Transmission Co.",11222333444,"-","Electricity","Transmission","Revenue cap",5,5,"-"]
[null,null,"Current regulatory control period","2011-12",{"$f":"CONCATENATE(IF(dms_RPT=\"Calendar\",CRCP_y1+1,(LEFT(CRCP_y1,4)+1&\"-\"&IF(MID(CRCP_y1,6,2)<\"09\",\"0\"&RIGHT(CRCP_y1,1)+1,RIGHT(CRCP_y1,2)+1))))","v":"2012-13"},{"$f":"CONCATENATE(IF(dms_RPT=\"Calendar\",CRCP_y2+1,(LEFT(CRCP_y2,4)+1&\"-\"&IF(MID(CRCP_y2,6,2)<\"09\",\"0\"&RIGHT(CRCP_y2,1)+1,RIGHT(CRCP_y2,2)+1))))","v":"2013-14"},{"$f":"CONCATENATE(IF(dms_RPT=\"Calendar\",CRCP_y3+1,(LEFT(CRCP_y3,4)+1&\"-\"&IF(MID(CRCP_y3,6,2)<\"09\",\"0\"&RIGHT(CRCP_y3,1)+1,RIGHT(CRCP_y3,2)+1))))","v":"2014-15"},{"$f":"CONCATENATE(IF(dms_RPT=\"Calendar\",CRCP_y4+1,(LEFT(CRCP_y4,4)+1&\"-\"&IF(MID(CRCP_y4,6,2)<\"09\",\"0\"&RIGHT(CRCP_y4,1)+1,RIGHT(CRCP_y4,2)+1))))","v":"2015-16"},null,null,null,"CitiPower",76064651056,"Vic","Electricity","Distribution","Revenue cap",5,5,"Vic"]
[null,null,null,null,null,null,null,null,null,null,null,"Directlink",16779340889,"NSW","Electricity","Transmission","Revenue cap",10,5,"Qld"]
[null,null,null,null,null,null,null,null,null,null,null,"ElectraNet",41094482416,"SA","Electricity","Transmission","Revenue cap",5,5,"SA"]
[null,null,"Previous regulatory control period",{"$f":"CONCATENATE(IF(dms_RPT=\"Calendar\",PRCP_y2-1,(LEFT(PRCP_y2,4)-1&\"-\"&IF(MID(PRCP_y2,3,1)=\"0\",\"0\"&RIGHT(PRCP_y2,2)-1,RIGHT(PRCP_y2,2)-1))))","v":"2006-07"},{"$f":"CONCATENATE(IF(dms_RPT=\"Calendar\",PRCP_y3-1,(LEFT(PRCP_y3,4)-1&\"-\"&IF(MID(PRCP_y3,3,1)=\"0\",\"0\"&RIGHT(PRCP_y3,2)-1,RIGHT(PRCP_y3,2)-1))))","v":"2007-08"},{"$f":"CONCATENATE(IF(dms_RPT=\"Calendar\",PRCP_y4-1,(LEFT(PRCP_y4,4)-1&\"-\"&IF(MID(PRCP_y4,3,1)=\"0\",\"0\"&RIGHT(PRCP_y4,2)-1,RIGHT(PRCP_y4,2)-1))))","v":"2008-09"},{"$f":"CONCATENATE(IF(dms_RPT=\"Calendar\",PRCP_y5-1,(LEFT(PRCP_y5,4)-1&\"-\"&IF(MID(PRCP_y5,3,1)=\"0\",\"0\"&RIGHT(PRCP_y5,2)-1,RIGHT(PRCP_y5,2)-1))))","v":"2009-10"},{"$f":"CONCATENATE(IF(dms_RPT=\"Calendar\",CRCP_y1-1,(LEFT(CRCP_y1,4)-1&\"-\"&IF(MID(CRCP_y1,3,1)=\"0\",\"0\"&RIGHT(CRCP_y1,2)-1,RIGHT(CRCP_y1,2)-1))))","v":"2010-11"},null,null,null,"Endeavour Energy",59253130878,"NSW","Electricity","Distribution","Revenue cap",5,5,"NSW"]
[null,null,null,null,null,null,null,null,null,null,null,"Energex",40078849055,"Qld","Electricity","Distribution","Revenue cap",5,5,"Qld"]
[null,null,null,null,null,null,null,null,null,null,null,"Ergon Energy",50087646062,"Qld","Electricity","Distribution","Revenue cap",5,5,"Qld"]
["KEEP VISIBLE FOR\nCA & EB ONLY",null,null,null,null,null,null,null,null,null,null,"Essential Energy",37428185226,"NSW","Electricity","Distribution","Revenue cap",5,5,"NSW"]
[null,null,"Current regulatory year","2014-15",null,null,null,null,null,null,null,"Jemena Electricity",82064651083,"Vic","Electricity","Distribution","Revenue cap",5,5,"Vic"]
[null,null,null,null,null,null,null,null,null,null,null,"Murraylink",79181207909,"NSW","Electricity","Transmission","Revenue cap",5,5,"SA"]
[null,null,null,null,null,null,null,null,null,null,null,"Powercor Australia",89064651109,"Vic","Electricity","Distribution","Revenue cap",5,5,"Vic"]
[null,null,null,null,null,null,null,null,null,null,null,"Powerlink",82078849233,"Qld","Electricity","Transmission","Revenue cap",5,5,"Qld"]
[null,null,null,null,null,null,null,null,null,null,null,"Qld,SA &ACT Gas Reset",22222222222,"-","Gas","Distribution","?",5,5,"-"]
[null,null,"Sector",{"$f":"INDEX(dms_Sector_List,MATCH(dms_TradingName,dms_TradingName_List))","v":"Electricity"},null,null,null,null,null,null,null,"SA Power Networks",13332330749,"SA","Electricity","Distribution","Revenue cap",5,5,"SA"]
[null,null,"Segment",{"$f":"INDEX(dms_Segment_List,MATCH(dms_TradingName,dms_TradingName_List))","v":"Distribution"},null,null,null,null,null,null,null,"TasNetworks (D)",24167357299,"Tas","Electricity","Distribution","Revenue cap",5,5,"Tas"]
[null,null,"Source","Reporting",null,null,null,null,null,null,null,"TasNetworks (T)",24167357299,"Tas","Electricity","Transmission","Revenue cap",5,5,"Tas"]
[null,null,"Regulatory Year Ending",{"$f":"(LOOKUP(dms_Model,dms_Model_List,dms_RYE_List2))","v":"2015"},null,null,null,null,null,null,null,"TransGrid",19622755774,"NSW","Electricity","Transmission","Revenue cap",5,5,"NSW"]
[null,null,"Reporting Period Type",{"$f":"IF(LEN(CRCP_y1)>4,\"Financial\",\"Calendar\")","v":"Financial"},null,null,null,null,null,null,null,"United Energy",70064651029,"Vic","Electricity","Distribution","Revenue cap",5,5,"Vic"]
[null,null,"Model or RIN Type","CA",null,null,null,null,null,null,null,"Victorian DNSP Backcasting",33333333666,"Vic","Electricity","Distribution","?",5,5,"Vic"]
[null,null,"Security Classification",{"$f":"IF(dms_DataQuality=\"Public\",\"Public\",\"Confidential\")","v":"Public"},null,null,null,null,null,null,null,"Victorian DNSP Reset ",33333333333,"Vic","Electricity","Distribution","?",5,5,"Vic"]
[null,null,"Data quality (actual, estimate, public, consolidated)","Public"]
[null,null,"EBSS - First application of scheme in forthcoming period?","No"]
[null,null,"Amended RIN submission - amendment reason"]
["HIDE THESE ROWS",null,"Template - version no.",3]
[null,null,"Dollar $ real  (the last month before the FRCP_y1)",{"$f":"CONCATENATE(IF(dms_RPT=\"Financial\",\"June \",\"December \"),(dms_RYE))","v":"June 2015"},null,null,null,null,null,null,null,"dms_SourceList","dms_FormControl"]
[null,null,"Form of control",{"$f":"INDEX(dms_FormControl_List,MATCH(dms_TradingName,dms_TradingName_List))","v":"Revenue cap"},null,null,null,null,null,null,null,"After appeal","Revenue cap"]
[null,null,"Length of current reg control period",{"$f":"INDEX(dms_CRCPlength_List,MATCH(dms_TradingName,dms_TradingName_List))","v":5},null,null,null,null,null,null,null,"Draft decision","Revenue yield"]
[null,null,"Length of forthcoming reg control period",{"$f":"INDEX(dms_FRCPlength_List,MATCH(dms_TradingName,dms_TradingName_List))","v":6},null,null,null,null,null,null,null,"Final decision","Weighted average price cap"]
[null,null,"RIN response - version no.",1,null,null,null,null,null,null,null,"Pass through decision"]
[null,null,"Jurisdiction",{"$f":"INDEX(dms_JurisdictionList,MATCH(dms_TradingName,dms_TradingName_List))","v":"ACT"},null,null,null,null,null,null,null,"PTRM annual update"]
[null,null,null,null,null,null,null,null,null,null,null,"PTRM interim update 1"]
[null,null,null,null,null,null,null,null,null,null,null,"PTRM interim update 2"]
[null,null,null,null,null,null,null,null,null,null,null,"PTRM interim update 3"]
[null,null,null,null,null,null,null,null,null,null,null,"PTRM interim update 4"]
[null,null,null,null,null,null,null,null,null,null,null,"Regulatory proposal"]
[null,null,null,null,null,null,null,null,null,null,null,"Reporting"]
[null,null,null,null,null,null,null,null,null,null,null,"Revised regulatory proposal"]
[null,null,null,null,null,null,null,null,null,null,null,"RFM annual update"]
[null,null,null,null,null,null,null,null,null,null,null,"WACC annual update"]
[]
[]
[]
[null,null,null,null,null,null,null,null,null,null,null,"Notes"]
[null,null,null,null,null,null,null,null,null,null,null,"RFM - Base year is usually CRCP_y1","EG. Victorian 2016-20 - base year = 2011"]
[null,null,null,null,null,null,null,null,null,null,null,"RFM - Form of Control Field is not relevant"]
[null,null,null,null,null,null,null,null,null,null,null,"PTRM - capture base year input by NSP","='[Published version - PTRM - TNSP - version 3 - January 2015 - Appendix A.xlsm]PTRM input'!Q7"]

{"sheet":"2.1 Expenditure summary","index":2,"n_rows":141,"n_cols":3,"rows_kept":141,"cut":false,"hidden":false,"merged":[]}
[null,{"$f":"(LOOKUP(dms_Model,dms_Model_List,dms_Worksheet_List))","v":"REGULATORY REPORTING STATEMENT"}]
[null,"Australian Distribution Co."]
[null,{"$f":"CONCATENATE(\"Category Analysis RIN response \",CRY)","v":"Category Analysis RIN response 2014-15"}]
[null,"2.1 EXPENDITURE SUMMARY & RECONCILIATION"]
[]
[]
[]
[]
[]
[]
[null,"TABLE 2.1.1 - STANDARD CONTROL SERVICES CAPEX"]
[]
[]
[null,null,"Actual ($0's)"]
[null,null,{"$f":"CRY","v":"2014-15"}]
["ED_EXP211_00001","Replacement expenditure",{"$f":"'[2]2.1 Expenditure summary'!C16+'[3]2.1 Expenditure summary'!C16","v":16765427.995135454}]
["ED_EXP211_00002","Connections",{"$f":"'[2]2.1 Expenditure summary'!C17+'[3]2.1 Expenditure summary'!C17","v":18468999.928600941}]
["ED_EXP211_00003","Augmentation Expenditure",{"$f":"'[2]2.1 Expenditure summary'!C18+'[3]2.1 Expenditure summary'!C18","v":2252094.8747318592}]
["ED_EXP211_00004","Non-network",{"$f":"'[2]2.1 Expenditure summary'!C19+'[3]2.1 Expenditure summary'!C19","v":17699344.310007278}]
["ED_EXP211_00005","capitalised network overheads",{"$f":"'[2]2.1 Expenditure summary'!C20+'[3]2.1 Expenditure summary'!C20","v":0}]
["ED_EXP211_00006","capitalised corporate overheads",{"$f":"'[2]2.1 Expenditure summary'!C21+'[3]2.1 Expenditure summary'!C21","v":12968249.962435288}]
["ED_EXP211_00007","Metering",{"$f":"'[2]2.1 Expenditure summary'!C22+'[3]2.1 Expenditure summary'!C22","v":0}]
["ED_EXP211_00008","Public Lighting",{"$f":"'[2]2.1 Expenditure summary'!C23+'[3]2.1 Expenditure summary'!C23","v":0}]
["ED_EXP211_00002"]
["ED_EXP211_00003"]
["ED_EXP211_00004"]
["ED_EXP211_00005"]
["ED_EXP211_00006"]
["ED_EXP211_00007"]
["ED_EXP211_00008"]
["ED_EXP211_00009","balancing item"]
["ED_EXP211_00010","TOTAL GROSS CAPEX \n(includes capcons)",{"$f":"+SUM(C16:C31)","v":68154117.070910826}]
["ED_EXP211_00011","capcons"]
[]
[null,"TABLE 2.1.2 - STANDARD CONTROL SERVICES OPEX"]
[]
[]
[null,null,"Actual ($0's)"]
[null,null,{"$f":"CRY","v":"2014-15"}]
["ED_EXP212_00001","Vegetation management",{"$f":"'[2]2.1 Expenditure summary'!C40+'[3]2.1 Expenditure summary'!C40","v":2445890.35}]
["ED_EXP212_00002","Maintenance",{"$f":"'[2]2.1 Expenditure summary'!C41+'[3]2.1 Expenditure summary'!C41","v":6452911.3400000017}]
["ED_EXP212_00003","Emergency response",{"$f":"'[2]2.1 Expenditure summary'!C42+'[3]2.1 Expenditure summary'!C42","v":3051187.35}]
["ED_EXP212_00004","Non-network",{"$f":"'[2]2.1 Expenditure summary'!C43+'[3]2.1 Expenditure summary'!C43","v":6119757.6159518799}]
["ED_EXP212_00005","network overheads",{"$f":"'[2]2.1 Expenditure summary'!C44+'[3]2.1 Expenditure summary'!C44","v":39859901.359283656}]
["ED_EXP212_00006","corporate overheads",{"$f":"'[2]2.1 Expenditure summary'!C45+'[3]2.1 Expenditure summary'!C45","v":7195724.629645722}]
["ED_EXP212_00007","Metering",{"$f":"'[2]2.1 Expenditure summary'!C46+'[3]2.1 Expenditure summary'!C46","v":0}]
["ED_EXP212_00008","Public Lighting",{"$f":"'[2]2.1 Expenditure summary'!C47+'[3]2.1 Expenditure summary'!C47","v":0}]
["ED_EXP211_00002"]
["ED_EXP211_00003"]
["ED_EXP211_00004"]
["ED_EXP211_00005"]
["ED_EXP211_00006"]
["ED_EXP211_00007"]
["ED_EXP211_00008"]
["ED_EXP212_00009","balancing item"]
[null,"TOTAL OPEX",{"$f":"+SUM(C40:C55)","v":65125372.644881256}]
[]
[null,"TABLE 2.1.3 - ALTERNATIVE CONTROL SERVICES CAPEX"]
[]
[]
[null,null,"Actual ($0's)"]
[null,null,{"$f":"CRY","v":"2014-15"}]
["ED_EXP213_00001","Connections",{"$f":"'[2]2.1 Expenditure summary'!C63+'[3]2.1 Expenditure summary'!C63","v":0}]
["ED_EXP213_00002","capitalised network overheads",{"$f":"'[2]2.1 Expenditure summary'!C64+'[3]2.1 Expenditure summary'!C64","v":0}]
["ED_EXP213_00003","capitalised corporate overheads",{"$f":"'[2]2.1 Expenditure summary'!C65+'[3]2.1 Expenditure summary'!C65","v":1661026.5200000049}]
["ED_EXP213_00004","Metering",{"$f":"'[2]2.1 Expenditure summary'!C66+'[3]2.1 Expenditure summary'!C66","v":3902426.7200000035}]
["ED_EXP213_00005","Public lighting",{"$f":"'[2]2.1 Expenditure summary'!C67+'[3]2.1 Expenditure summary'!C67","v":0}]
["ED_EXP213_00006","Fee and quoted",{"$f":"'[2]2.1 Expenditure summary'!C68+'[3]2.1 Expenditure summary'!C68","v":2916148.55}]
["ED_EXP211_00002"]
["ED_EXP211_00003"]
["ED_EXP211_00004"]
["ED_EXP211_00005"]
["ED_EXP211_00006"]
["ED_EXP211_00007"]
["ED_EXP211_00008"]
["ED_EXP213_00007","balancing item"]
[null,"TOTAL CAPEX",{"$f":"+SUM(C63:C76)","v":8479601.7900000084}]
[]
[null,"TABLE 2.1.4 - ALTERNATIVE CONTROL SERVICES OPEX"]
[]
[]
[null,null,"Actual ($0's)"]
[null,null,{"$f":"CRY","v":"2014-15"}]
["ED_EXP214_00001","Connections",{"$f":"'[2]2.1 Expenditure summary'!C84+'[3]2.1 Expenditure summary'!C84","v":0}]
["ED_EXP214_00002","network overheads",{"$f":"'[2]2.1 Expenditure summary'!C85+'[3]2.1 Expenditure summary'!C85","v":0}]
["ED_EXP214_00003","corporate overheads",{"$f":"'[2]2.1 Expenditure summary'!C86+'[3]2.1 Expenditure summary'!C86","v":1318828.25}]
["ED_EXP214_00004","Metering",{"$f":"'[2]2.1 Expenditure summary'!C87+'[3]2.1 Expenditure summary'!C87","v":2840968.5400000005}]
["ED_EXP214_00005","Public lighting",{"$f":"'[2]2.1 Expenditure summary'!C88+'[3]2.1 Expenditure summary'!C88","v":0}]
["ED_EXP214_00006","Fee and quoted",{"$f":"'[2]2.1 Expenditure summary'!C89+'[3]2.1 Expenditure summary'!C89","v":3727309.5200000596}]
["ED_EXP211_00002"]
["ED_EXP211_00003"]
["ED_EXP211_00004"]
["ED_EXP211_00005"]
["ED_EXP211_00006"]
["ED_EXP211_00007"]
["ED_EXP211_00008"]
["ED_EXP214_00007","balancing item"]
[null,"TOTAL OPEX",{"$f":"+SUM(C84:C97)","v":7887106.3100000601}]
[]
[null,"TABLE 2.1.5 - DUAL FUNCTION ASSETS CAPEX"]
[]
[]
[null,null,"Actual ($0's)"]
[null,null,{"$f":"CRY","v":"2014-15"}]
["ED_EXP215_00001","Replacement expenditure",{"$f":"'[2]2.1 Expenditure summary'!C105+'[3]2.1 Expenditure summary'!C105","v":2046115.3448645491}]
["ED_EXP215_00002","Connections",{"$f":"'[2]2.1 Expenditure summary'!C106+'[3]2.1 Expenditure summary'!C106","v":52309.001399054112}]
["ED_EXP215_00003","Augmentation Expenditure",{"$f":"'[2]2.1 Expenditure summary'!C107+'[3]2.1 Expenditure summary'!C107","v":632726.13526814058}]
["ED_EXP215_00004","Non-network",{"$f":"'[2]2.1 Expenditure summary'!C108+'[3]2.1 Expenditure summary'!C108","v":6976697.7544938847}]
["ED_EXP215_00005","Capitalised network overheads",{"$f":"'[2]2.1 Expenditure summary'!C109+'[3]2.1 Expenditure summary'!C109","v":0}]
["ED_EXP215_00006","Capitalised corporate overheads",{"$f":"'[2]2.1 Expenditure summary'!C110+'[3]2.1 Expenditure summary'!C110","v":930468.14756471105}]
["ED_EXP211_00002"]
["ED_EXP211_00003"]
["ED_EXP211_00004"]
["ED_EXP211_00005"]
["ED_EXP211_00006"]
["ED_EXP211_00007"]
["ED_EXP211_00008"]
["ED_EXP215_00007","balancing item"]
["ED_EXP215_00008","TOTAL GROSS CAPEX (includes capcons)",{"$f":"SUM(C105:C118)","v":10638316.383590339}]
["ED_EXP215_00009","capcons"]
[]
[null,"TABLE 2.1.6 - DUAL FUNCTION ASSETS OPEX"]
[]
[]
[null,null,"Actual ($0's)"]
[null,null,{"$f":"CRY","v":"2014-15"}]
["ED_EXP216_00001","Vegetation management",{"$f":"'[2]2.1 Expenditure summary'!C127+'[3]2.1 Expenditure summary'!C127","v":0}]
["ED_EXP216_00002","Maintenance",{"$f":"'[2]2.1 Expenditure summary'!C128+'[3]2.1 Expenditure summary'!C128","v":1376233.65}]
["ED_EXP216_00003","Emergency response",{"$f":"'[2]2.1 Expenditure summary'!C129+'[3]2.1 Expenditure summary'!C129","v":215926.24999999997}]
["ED_EXP216_00004","Non-network",{"$f":"'[2]2.1 Expenditure summary'!C130+'[3]2.1 Expenditure summary'!C130","v":789757.81404811994}]
["ED_EXP216_00005","Network overheads",{"$f":"'[2]2.1 Expenditure summary'!C131+'[3]2.1 Expenditure summary'!C131","v":5143940.4207163407}]
["ED_EXP216_00006","Corporate overheads",{"$f":"'[2]2.1 Expenditure summary'!C132+'[3]2.1 Expenditure summary'!C132","v":928611.90109688614}]
["ED_EXP211_00002"]
["ED_EXP211_00003"]
["ED_EXP211_00004"]
["ED_EXP211_00005"]
["ED_EXP211_00006"]
["ED_EXP211_00007"]
["ED_EXP211_00008"]
["ED_EXP216_00007","balancing item"]
[null,"TOTAL OPEX",{"$f":"SUM(C127:C140)","v":8454470.0358613469}]

{"sheet":"2.2 Repex","index":3,"n_rows":146,"n_cols":11,"rows_kept":146,"cut":false,"hidden":false,"merged":[[10,1,29,1],[10,7,13,7],[14,7,17,7],[25,7,28,7],[29,7,30,7],[18,7,24,7],[113,1,121,1],[122,1,129,1],[30,1,36,1],[37,1,45,1],[46,1,53,1],[54,1,69,1],[70,1,98,1],[99,1,112,1]]}
[null,{"$f":"(LOOKUP(dms_Model,dms_Model_List,dms_Worksheet_List))","v":"REGULATORY REPORTING STATEMENT"}]
[null,"Australian Distribution Co."]
[null,{"$f":"CONCATENATE(\"Category Analysis RIN response \",CRY)","v":"Category Analysis RIN response 2014-15"}]
[null,"2.2 REPEX"]
[]
[null,"TABLE 2.2.1 - REPLACEMENT EXPENDITURE, VOLUMES AND ASSET FAILURES BY ASSET CATEGORY",null,null,null,null,null,"Table 2.2.2 - SELECTED ASSET CHARACTERISTICS"]
[]
[]
[null,null,null,"EXPENDITURE ($0's)","ASSET REPLACEMENTS ","ASSET FAILURES  ",null,null,null,"ASSET VOLUMES CURRENTLY IN COMMISSION","ASSET REPLACEMENTS "]
[null,"ASSET GROUP","ASSET CATEGORY",{"$f":"CRY","v":"2014-15"},{"$f":"CRY","v":"2014-15"},{"$f":"CRY","v":"2014-15"},null,"ASSET GROUP","METRIC",{"$f":"CRY","v":"2014-15"},{"$f":"CRY","v":"2014-15"}]
["ED_REP221_00001","POLES BY: \nHIGHEST OPERATING VOLTAGE ; MATERIAL TYPE;  STAKING (IF WOOD)","Staking of a wooden pole",{"$f":"'[2]2.2 Repex'!$D$11+'[3]2.2 Repex'!$D$11","v":710416.56},{"$f":"'[2]2.2 Repex'!E11+'[3]2.2 Repex'!E11","v":676},{"$f":"'[2]2.2 Repex'!$F$11+'[3]2.2 Repex'!$F$11","v":0},"ED_REP222_00001","TOTAL POLES BY: \nFEEDER TYPE","Total CBD poles",{"$f":"'[2]2.2 Repex'!J11","v":0},{"$f":"'[2]2.2 Repex'!K11","v":0}]
["ED_REP221_00002",null,"˂ = 1 kV; Wood",{"$f":"'[2]2.2 Repex'!D12+'[3]2.2 Repex'!D12","v":0},{"$f":"'[2]2.2 Repex'!E12+'[3]2.2 Repex'!E12","v":0},{"$f":"'[2]2.2 Repex'!$F$11+'[3]2.2 Repex'!$F$11","v":0},"ED_REP222_00002",null,"Total urban poles",{"$f":"'[2]2.2 Repex'!J12","v":42594},{"$f":"'[2]2.2 Repex'!K12","v":785}]
["ED_REP221_00003",null,"> 1 kV & < = 11 kV; Wood",{"$f":"'[2]2.2 Repex'!D13+'[3]2.2 Repex'!D13","v":0},{"$f":"'[2]2.2 Repex'!E13+'[3]2.2 Repex'!E13","v":0},{"$f":"'[2]2.2 Repex'!$F$11+'[3]2.2 Repex'!$F$11","v":0},"ED_REP222_00003",null,"Total rural long poles",{"$f":"'[2]2.2 Repex'!J13","v":0},{"$f":"'[2]2.2 Repex'!K13","v":0}]
["ED_REP221_00004",null,"˃ 11 kV & < = 22 kV; Wood",{"$f":"'[2]2.2 Repex'!D14+'[3]2.2 Repex'!D14","v":0},{"$f":"'[2]2.2 Repex'!E14+'[3]2.2 Repex'!E14","v":0},{"$f":"'[2]2.2 Repex'!$F$11+'[3]2.2 Repex'!$F$11","v":0},"ED_REP222_00004",null,"Total rural short poles",{"$f":"'[2]2.2 Repex'!J14","v":6682},{"$f":"'[2]2.2 Repex'!K14","v":49}]
["ED_REP221_00005",null,"> 22 kV & < = 66 kV; Wood",{"$f":"'[2]2.2 Repex'!D15+'[3]2.2 Repex'!D15","v":0},{"$f":"'[2]2.2 Repex'!E15+'[3]2.2 Repex'!E15","v":0},{"$f":"'[2]2.2 Repex'!$F$11+'[3]2.2 Repex'!$F$11","v":0},"ED_REP222_00005","OVERHEAD CONDUCTORS BY:\nCONDUCTOR LENGTH BY FEEDER TYPE","Conductors CBD (km)",{"$f":"'[2]2.2 Repex'!J15","v":0},{"$f":"'[2]2.2 Repex'!K15","v":0}]
["ED_REP221_00006",null,"> 66 kV & < = 132 kV; Wood",{"$f":"'[2]2.2 Repex'!D16+'[3]2.2 Repex'!D16","v":0},{"$f":"'[2]2.2 Repex'!E16+'[3]2.2 Repex'!E16","v":0},{"$f":"'[2]2.2 Repex'!$F$11+'[3]2.2 Repex'!$F$11","v":0},"ED_REP222_00006",null,"Conductors urban (km)",{"$f":"'[2]2.2 Repex'!J16","v":380.62900000000002},{"$f":"'[2]2.2 Repex'!K16","v":0.219}]
["ED_REP221_00007",null,"> 132 kV; Wood",{"$f":"'[2]2.2 Repex'!D17+'[3]2.2 Repex'!D17","v":0},{"$f":"'[2]2.2 Repex'!E17+'[3]2.2 Repex'!E17","v":0},{"$f":"'[2]2.2 Repex'!$F$11+'[3]2.2 Repex'!$F$11","v":0},"ED_REP222_00007",null,"Conductors rural long (km)",{"$f":"'[2]2.2 Repex'!J17","v":0},{"$f":"'[2]2.2 Repex'!K17","v":0}]
["ED_REP221_00008",null,"˂ = 1 kV; Concrete",{"$f":"'[2]2.2 Repex'!D18+'[3]2.2 Repex'!D18","v":203025.68761904762},{"$f":"'[2]2.2 Repex'!E18+'[3]2.2 Repex'!E18","v":24},{"$f":"'[2]2.2 Repex'!$F$11+'[3]2.2 Repex'!$F$11","v":0},"ED_REP222_00008",null,"Conductors rural short (km)",{"$f":"'[2]2.2 Repex'!J18","v":621.69000000000005},{"$f":"'[2]2.2 Repex'!K18","v":0.35699999999999998}]
["ED_REP221_00009",null,"> 1 kV & < = 11 kV; Concrete",{"$f":"'[2]2.2 Repex'!D19+'[3]2.2 Repex'!D19","v":1053974.9937804874},{"$f":"'[2]2.2 Repex'!E19+'[3]2.2 Repex'!E19","v":97},{"$f":"'[2]2.2 Repex'!$F$11+'[3]2.2 Repex'!$F$11","v":0},"ED_REP222_00009","OVERHEAD CONDUCTORS BY: \nCONDUCTOR LENGTH MATERIAL TYPE","OH conductor LV ABC",{"$f":"'[2]2.2 Repex'!J19","v":83.188999999999993},{"$f":"'[2]2.2 Repex'!K19","v":2.9750000000000001}]
["ED_REP221_00010",null,"˃ 11 kV & < = 22 kV; Concrete",{"$f":"'[2]2.2 Repex'!D20+'[3]2.2 Repex'!D20","v":0},{"$f":"'[2]2.2 Repex'!E20+'[3]2.2 Repex'!E20","v":0},{"$f":"'[2]2.2 Repex'!$F$11+'[3]2.2 Repex'!$F$11","v":0},"ED_REP222_00010",null,"OH conductor steel",{"$f":"'[2]2.2 Repex'!J20","v":210.60499999999999},{"$f":"'[2]2.2 Repex'!K20","v":0.44}]
["ED_REP221_00011",null,"> 22 kV & < = 66 kV; Concrete",{"$f":"'[2]2.2 Repex'!D21+'[3]2.2 Repex'!D21","v":0},{"$f":"'[2]2.2 Repex'!E21+'[3]2.2 Repex'!E21","v":0},{"$f":"'[2]2.2 Repex'!$F$11+'[3]2.2 Repex'!$F$11","v":0},"ED_REP222_00011",null,"OH conductor ACSR",{"$f":"'[2]2.2 Repex'!J21","v":336.13600000000002},{"$f":"'[2]2.2 Repex'!K21","v":0}]
["ED_REP221_00012",null,"> 66 kV & < = 132 kV; Concrete",{"$f":"'[2]2.2 Repex'!D22+'[3]2.2 Repex'!D22","v":413398.62},{"$f":"'[2]2.2 Repex'!E22+'[3]2.2 Repex'!E22","v":10},{"$f":"'[2]2.2 Repex'!$F$11+'[3]2.2 Repex'!$F$11","v":0},"ED_REP222_00012",null,"OH conductor AAAC",{"$f":"'[2]2.2 Repex'!J22","v":0},{"$f":"'[2]2.2 Repex'!K22","v":0}]
["ED_REP221_00013",null,"> 132 kV; Concrete",{"$f":"'[2]2.2 Repex'!D23+'[3]2.2 Repex'!D23","v":0},{"$f":"'[2]2.2 Repex'!E23+'[3]2.2 Repex'!E23","v":0},{"$f":"'[2]2.2 Repex'!$F$11+'[3]2.2 Repex'!$F$11","v":0},"ED_REP222_00013",null,"OH conductor AAC",{"$f":"'[2]2.2 Repex'!J23","v":1176.2049999999999},{"$f":"'[2]2.2 Repex'!K23","v":1.833}]
["ED_REP221_00014",null,"˂ = 1 kV; Steel",{"$f":"'[2]2.2 Repex'!D24+'[3]2.2 Repex'!D24","v":0},{"$f":"'[2]2.2 Repex'!E24+'[3]2.2 Repex'!E24","v":0},{"$f":"'[2]2.2 Repex'!$F$11+'[3]2.2 Repex'!$F$11","v":0},"ED_REP222_00014",null,"OH conductor HDBC",{"$f":"'[2]2.2 Repex'!J24","v":564.43799999999999},{"$f":"'[2]2.2 Repex'!K24","v":3.5840000000000001}]
["ED_REP221_00015",null,"> 1 kV & < = 11 kV; Steel",{"$f":"'[2]2.2 Repex'!D25+'[3]2.2 Repex'!D25","v":0},{"$f":"'[2]2.2 Repex'!E25+'[3]2.2 Repex'!E25","v":0},{"$f":"'[2]2.2 Repex'!$F$11+'[3]2.2 Repex'!$F$11","v":0},"ED_REP222_00015",null,"Other",{"$f":"'[2]2.2 Repex'!J25","v":0},{"$f":"'[2]2.2 Repex'!K25","v":0}]
["ED_REP221_00016",null,"˃ 11 kV & < = 22 kV; Steel",{"$f":"'[2]2.2 Repex'!D26+'[3]2.2 Repex'!D26","v":0},{"$f":"'[2]2.2 Repex'!E26+'[3]2.2 Repex'!E26","v":0},{"$f":"'[2]2.2 Repex'!$F$11+'[3]2.2 Repex'!$F$11","v":0},"ED_REP222_00016","UNDERGROUND CABLES BY: \nCABLE LENGTH BY FEEDER TYPE","Cable CBD (km)",{"$f":"'[2]2.2 Repex'!J26","v":0},{"$f":"'[2]2.2 Repex'!K26","v":0}]
["ED_REP221_00017",null,"> 22 kV & < = 66 kV; Steel",{"$f":"'[2]2.2 Repex'!D27+'[3]2.2 Repex'!D27","v":0},{"$f":"'[2]2.2 Repex'!E27+'[3]2.2 Repex'!E27","v":0},{"$f":"'[2]2.2 Repex'!$F$11+'[3]2.2 Repex'!$F$11","v":0},"ED_REP222_00017",null,"Cable urban (km)",{"$f":"'[2]2.2 Repex'!J27","v":955.46699999999998},{"$f":"'[2]2.2 Repex'!K27","v":1.641}]
["ED_REP221_00018",null,"> 66 kV & < = 132 kV; Steel",{"$f":"'[2]2.2 Repex'!D28+'[3]2.2 Repex'!D28","v":0},{"$f":"'[2]2.2 Repex'!E28+'[3]2.2 Repex'!E28","v":0},{"$f":"'[2]2.2 Repex'!$F$11+'[3]2.2 Repex'!$F$11","v":0},"ED_REP222_00018",null,"Cable rural long (km)",{"$f":"'[2]2.2 Repex'!J28","v":0},{"$f":"'[2]2.2 Repex'!K28","v":0}]
["ED_REP221_00019",null,"> 132 kV; Steel",{"$f":"'[2]2.2 Repex'!D29+'[3]2.2 Repex'!D29","v":0},{"$f":"'[2]2.2 Repex'!E29+'[3]2.2 Repex'!E29","v":0},{"$f":"'[2]2.2 Repex'!$F$11+'[3]2.2 Repex'!$F$11","v":0},"ED_REP222_00019",null,"Cable rural short (km)",{"$f":"'[2]2.2 Repex'!J29","v":573.85599999999999},{"$f":"'[2]2.2 Repex'!K29","v":0.98599999999999999}]
["ED_REP221_00020",null,"Other",{"$f":"'[2]2.2 Repex'!D30+'[3]2.2 Repex'!D30","v":8303989.178600464},{"$f":"'[2]2.2 Repex'!E30+'[3]2.2 Repex'!E30","v":713},{"$f":"'[2]2.2 Repex'!$F$11+'[3]2.2 Repex'!$F$11","v":0},"ED_REP222_00020","TRANSFORMERS BY: \nTOTAL MVA","Total MVA replaced",{"$f":"'[2]2.2 Repex'!J30","v":2151.0149999999999},{"$f":"'[2]2.2 Repex'!K30","v":9.9930000000000003}]
["ED_REP221_00021","POLE TOP STRUCTURES BY: \nHIGHEST OPERATING VOLTAGE","˂ = 1 kV",{"$f":"'[2]2.2 Repex'!D31+'[3]2.2 Repex'!D31","v":349639.99000000005},{"$f":"'[2]2.2 Repex'!E31+'[3]2.2 Repex'!E31","v":53},{"$f":"'[2]2.2 Repex'!$F$11+'[3]2.2 Repex'!$F$11","v":0},"ED_REP222_00021",null,"Total MVA disposed of",{"$f":"'[2]2.2 Repex'!J31","v":9.9909999999999997},{"$f":"'[2]2.2 Repex'!K31","v":0}]
["ED_REP221_00022",null,"> 1 kV & < = 11 kV",{"$f":"'[2]2.2 Repex'!D32+'[3]2.2 Repex'!D32","v":600410.71000000008},{"$f":"'[2]2.2 Repex'!E32+'[3]2.2 Repex'!E32","v":71},{"$f":"'[2]2.2 Repex'!$F$11+'[3]2.2 Repex'!$F$11","v":0}]
["ED_REP221_00023",null,"˃ 11 kV & < = 22 kV",{"$f":"'[2]2.2 Repex'!D33+'[3]2.2 Repex'!D33","v":0},{"$f":"'[2]2.2 Repex'!E33+'[3]2.2 Repex'!E33","v":0},{"$f":"'[2]2.2 Repex'!$F$11+'[3]2.2 Repex'!$F$11","v":0}]
["ED_REP221_00024",null,"> 22 kV & < = 66 kV",{"$f":"'[2]2.2 Repex'!D34+'[3]2.2 Repex'!D34","v":0},{"$f":"'[2]2.2 Repex'!E34+'[3]2.2 Repex'!E34","v":0},{"$f":"'[2]2.2 Repex'!$F$11+'[3]2.2 Repex'!$F$11","v":0}]
["ED_REP221_00025",null,"> 66 kV & < = 132 kV",{"$f":"'[2]2.2 Repex'!D35+'[3]2.2 Repex'!D35","v":0},{"$f":"'[2]2.2 Repex'!E35+'[3]2.2 Repex'!E35","v":0},{"$f":"'[2]2.2 Repex'!$F$11+'[3]2.2 Repex'!$F$11","v":0}]
["ED_REP221_00026",null,"> 132 kV",{"$f":"'[2]2.2 Repex'!D36+'[3]2.2 Repex'!D36","v":0},{"$f":"'[2]2.2 Repex'!E36+'[3]2.2 Repex'!E36","v":0},{"$f":"'[2]2.2 Repex'!$F$11+'[3]2.2 Repex'!$F$11","v":0}]
["ED_REP221_00027",null,"Other",{"$f":"'[2]2.2 Repex'!D37+'[3]2.2 Repex'!D37","v":47234.720000000001},{"$f":"'[2]2.2 Repex'!E37+'[3]2.2 Repex'!E37","v":0},{"$f":"'[2]2.2 Repex'!$F$11+'[3]2.2 Repex'!$F$11","v":0}]
["ED_REP221_00028","OVERHEAD CONDUCTORS BY: \nHIGHEST OPERATING VOLTAGE; NUMBER OF PHASES (AT HV)","˂ = 1 kV",{"$f":"'[2]2.2 Repex'!D38+'[3]2.2 Repex'!D38","v":149997.62},{"$f":"'[2]2.2 Repex'!E38+'[3]2.2 Repex'!E38","v":8.3010000000000002},{"$f":"'[2]2.2 Repex'!$F$11+'[3]2.2 Repex'!$F$11","v":0}]
["ED_REP221_00029",null,"> 1 kV & < = 11 kV",{"$f":"'[2]2.2 Repex'!D39+'[3]2.2 Repex'!D39","v":82070},{"$f":"'[2]2.2 Repex'!E39+'[3]2.2 Repex'!E39","v":0.57699999999999996},{"$f":"'[2]2.2 Repex'!$F$11+'[3]2.2 Repex'!$F$11","v":0}]
["ED_REP221_00030",null,"˃ 11 kV & < = 22 kV  ; SWER",{"$f":"'[2]2.2 Repex'!D40+'[3]2.2 Repex'!D40","v":0},{"$f":"'[2]2.2 Repex'!E40+'[3]2.2 Repex'!E40","v":0},{"$f":"'[2]2.2 Repex'!$F$11+'[3]2.2 Repex'!$F$11","v":0}]
["ED_REP221_00031",null,"˃ 11 kV & < = 22 kV ; Single-Phase",{"$f":"'[2]2.2 Repex'!D41+'[3]2.2 Repex'!D41","v":0},{"$f":"'[2]2.2 Repex'!E41+'[3]2.2 Repex'!E41","v":0},{"$f":"'[2]2.2 Repex'!$F$11+'[3]2.2 Repex'!$F$11","v":0}]
["ED_REP221_00032",null,"˃ 11 kV & < = 22 kV ; Multiple-Phase",{"$f":"'[2]2.2 Repex'!D42+'[3]2.2 Repex'!D42","v":0},{"$f":"'[2]2.2 Repex'!E42+'[3]2.2 Repex'!E42","v":0},{"$f":"'[2]2.2 Repex'!$F$11+'[3]2.2 Repex'!$F$11","v":0}]
["ED_REP221_00033",null,"> 22 kV & < = 66 kV",{"$f":"'[2]2.2 Repex'!D43+'[3]2.2 Repex'!D43","v":0},{"$f":"'[2]2.2 Repex'!E43+'[3]2.2 Repex'!E43","v":0},{"$f":"'[2]2.2 Repex'!$F$11+'[3]2.2 Repex'!$F$11","v":0}]
["ED_REP221_00034",null,"> 66 kV & < = 132 kV",{"$f":"'[2]2.2 Repex'!D44+'[3]2.2 Repex'!D44","v":0},{"$f":"'[2]2.2 Repex'!E44+'[3]2.2 Repex'!E44","v":0},{"$f":"'[2]2.2 Repex'!$F$11+'[3]2.2 Repex'!$F$11","v":0}]
["ED_REP221_00035",null,"> 132 kV",{"$f":"'[2]2.2 Repex'!D45+'[3]2.2 Repex'!D45","v":0},{"$f":"'[2]2.2 Repex'!E45+'[3]2.2 Repex'!E45","v":0},{"$f":"'[2]2.2 Repex'!$F$11+'[3]2.2 Repex'!$F$11","v":0}]
["ED_REP221_00036",null,"Other",{"$f":"'[2]2.2 Repex'!D46+'[3]2.2 Repex'!D46","v":0},{"$f":"'[2]2.2 Repex'!E46+'[3]2.2 Repex'!E46","v":0},{"$f":"'[2]2.2 Repex'!$F$11+'[3]2.2 Repex'!$F$11","v":0}]
["ED_REP221_00037","UNDERGROUND CABLES BY: \nHIGHEST OPERATING VOLTAGE","˂ = 1 kV",{"$f":"'[2]2.2 Repex'!D47+'[3]2.2 Repex'!D47","v":875558.37999999989},{"$f":"'[2]2.2 Repex'!E47+'[3]2.2 Repex'!E47","v":1.756},{"$f":"'[2]2.2 Repex'!$F$11+'[3]2.2 Repex'!$F$11","v":0}]
["ED_REP221_00038",null,"> 1 kV & < = 11 kV",{"$f":"'[2]2.2 Repex'!D48+'[3]2.2 Repex'!D48","v":85274.71},{"$f":"'[2]2.2 Repex'!E48+'[3]2.2 Repex'!E48","v":1.91},{"$f":"'[2]2.2 Repex'!$F$11+'[3]2.2 Repex'!$F$11","v":0}]
["ED_REP221_00039",null,"> 11 kV & < = 22 kV",{"$f":"'[2]2.2 Repex'!D49+'[3]2.2 Repex'!D49","v":187097.12999999995},{"$f":"'[2]2.2 Repex'!E49+'[3]2.2 Repex'!E49","v":0.71699999999999997},{"$f":"'[2]2.2 Repex'!$F$11+'[3]2.2 Repex'!$F$11","v":0}]
["ED_REP221_00040",null,"> 22 kV & < = 33 kV",{"$f":"'[2]2.2 Repex'!D50+'[3]2.2 Repex'!D50","v":0},{"$f":"'[2]2.2 Repex'!E50+'[3]2.2 Repex'!E50","v":0},{"$f":"'[2]2.2 Repex'!$F$11+'[3]2.2 Repex'!$F$11","v":0}]
["ED_REP221_00041",null,"> 33 kV & < = 66 kV",{"$f":"'[2]2.2 Repex'!D51+'[3]2.2 Repex'!D51","v":0},{"$f":"'[2]2.2 Repex'!E51+'[3]2.2 Repex'!E51","v":0},{"$f":"'[2]2.2 Repex'!$F$11+'[3]2.2 Repex'!$F$11","v":0}]
["ED_REP221_00042",null,"> 66 kV & < = 132 kV",{"$f":"'[2]2.2 Repex'!D52+'[3]2.2 Repex'!D52","v":0},{"$f":"'[2]2.2 Repex'!E52+'[3]2.2 Repex'!E52","v":0},{"$f":"'[2]2.2 Repex'!$F$11+'[3]2.2 Repex'!$F$11","v":0}]
["ED_REP221_00043",null,">  132 kV",{"$f":"'[2]2.2 Repex'!D53+'[3]2.2 Repex'!D53","v":0},{"$f":"'[2]2.2 Repex'!E53+'[3]2.2 Repex'!E53","v":0},{"$f":"'[2]2.2 Repex'!$F$11+'[3]2.2 Repex'!$F$11","v":0}]
["ED_REP221_00044",null,"Other",{"$f":"'[2]2.2 Repex'!D54+'[3]2.2 Repex'!D54","v":0},{"$f":"'[2]2.2 Repex'!E54+'[3]2.2 Repex'!E54","v":0},{"$f":"'[2]2.2 Repex'!$F$11+'[3]2.2 Repex'!$F$11","v":0}]
["ED_REP221_00045","SERVICE LINES BY: \nCONNECTION VOLTAGE; CUSTOMER TYPE; CONNECTION COMPLEXITY ","˂ = 11 kV ; Residential ; Simple Type",{"$f":"'[2]2.2 Repex'!D55+'[3]2.2 Repex'!D55","v":39507.440000000002},{"$f":"'[2]2.2 Repex'!E55+'[3]2.2 Repex'!E55","v":1304},{"$f":"'[2]2.2 Repex'!$F$11+'[3]2.2 Repex'!$F$11","v":0}]
["ED_REP221_00046",null,"˂ = 11 kV ; Commercial & Industrial ; Simple Type",{"$f":"'[2]2.2 Repex'!D56+'[3]2.2 Repex'!D56","v":0},{"$f":"'[2]2.2 Repex'!E56+'[3]2.2 Repex'!E56","v":0},{"$f":"'[2]2.2 Repex'!$F$11+'[3]2.2 Repex'!$F$11","v":0}]
["ED_REP221_00047",null,"˂ = 11 kV ; Residential ; Complex Type",{"$f":"'[2]2.2 Repex'!D57+'[3]2.2 Repex'!D57","v":0},{"$f":"'[2]2.2 Repex'!E57+'[3]2.2 Repex'!E57","v":0},{"$f":"'[2]2.2 Repex'!$F$11+'[3]2.2 Repex'!$F$11","v":0}]
["ED_REP221_00048",null,"˂ = 11 kV ; Commercial & Industrial ; Complex Type",{"$f":"'[2]2.2 Repex'!D58+'[3]2.2 Repex'!D58","v":0},{"$f":"'[2]2.2 Repex'!E58+'[3]2.2 Repex'!E58","v":0},{"$f":"'[2]2.2 Repex'!$F$11+'[3]2.2 Repex'!$F$11","v":0}]
["ED_REP221_00049",null,"˂ = 11 kV ; Subdivision ; Complex Type",{"$f":"'[2]2.2 Repex'!D59+'[3]2.2 Repex'!D59","v":0},{"$f":"'[2]2.2 Repex'!E59+'[3]2.2 Repex'!E59","v":0},{"$f":"'[2]2.2 Repex'!$F$11+'[3]2.2 Repex'!$F$11","v":0}]
["ED_REP221_00050",null,"> 11 kV  & < = 22 kV ; Commercial & Industrial  ",{"$f":"'[2]2.2 Repex'!D60+'[3]2.2 Repex'!D60","v":0},{"$f":"'[2]2.2 Repex'!E60+'[3]2.2 Repex'!E60","v":0},{"$f":"'[2]2.2 Repex'!$F$11+'[3]2.2 Repex'!$F$11","v":0}]
["ED_REP221_00051",null,"> 11 kV  & < = 22 kV ; Subdivision  ",{"$f":"'[2]2.2 Repex'!D61+'[3]2.2 Repex'!D61","v":0},{"$f":"'[2]2.2 Repex'!E61+'[3]2.2 Repex'!E61","v":0},{"$f":"'[2]2.2 Repex'!$F$11+'[3]2.2 Repex'!$F$11","v":0}]
["ED_REP221_00052",null,"> 22 kV & < = 33 kV ; Commercial & Industrial  ",{"$f":"'[2]2.2 Repex'!D62+'[3]2.2 Repex'!D62","v":0},{"$f":"'[2]2.2 Repex'!E62+'[3]2.2 Repex'!E62","v":0},{"$f":"'[2]2.2 Repex'!$F$11+'[3]2.2 Repex'!$F$11","v":0}]
["ED_REP221_00053",null,"> 22 kV & < = 33 kV ; Subdivision  ",{"$f":"'[2]2.2 Repex'!D63+'[3]2.2 Repex'!D63","v":0},{"$f":"'[2]2.2 Repex'!E63+'[3]2.2 Repex'!E63","v":0},{"$f":"'[2]2.2 Repex'!$F$11+'[3]2.2 Repex'!$F$11","v":0}]
["ED_REP221_00054",null,"> 33 kV & < = 66 kV ; Commercial & Industrial  ",{"$f":"'[2]2.2 Repex'!D64+'[3]2.2 Repex'!D64","v":0},{"$f":"'[2]2.2 Repex'!E64+'[3]2.2 Repex'!E64","v":0},{"$f":"'[2]2.2 Repex'!$F$11+'[3]2.2 Repex'!$F$11","v":0}]
["ED_REP221_00055",null,"> 33 kV & < = 66 kV ; Subdivision  ",{"$f":"'[2]2.2 Repex'!D65+'[3]2.2 Repex'!D65","v":0},{"$f":"'[2]2.2 Repex'!E65+'[3]2.2 Repex'!E65","v":0},{"$f":"'[2]2.2 Repex'!$F$11+'[3]2.2 Repex'!$F$11","v":0}]
["ED_REP221_00056",null,"> 66 kV & < = 132 kV ; Commercial & Industrial  ",{"$f":"'[2]2.2 Repex'!D66+'[3]2.2 Repex'!D66","v":0},{"$f":"'[2]2.2 Repex'!E66+'[3]2.2 Repex'!E66","v":0},{"$f":"'[2]2.2 Repex'!$F$11+'[3]2.2 Repex'!$F$11","v":0}]
["ED_REP221_00057",null,"> 66 kV & < = 132 kV ; Subdivision  ",{"$f":"'[2]2.2 Repex'!D67+'[3]2.2 Repex'!D67","v":0},{"$f":"'[2]2.2 Repex'!E67+'[3]2.2 Repex'!E67","v":0},{"$f":"'[2]2.2 Repex'!$F$11+'[3]2.2 Repex'!$F$11","v":0}]
["ED_REP221_00058",null,"> 132 kV ; Commercial & Industrial  ",{"$f":"'[2]2.2 Repex'!D68+'[3]2.2 Repex'!D68","v":0},{"$f":"'[2]2.2 Repex'!E68+'[3]2.2 Repex'!E68","v":0},{"$f":"'[2]2.2 Repex'!$F$11+'[3]2.2 Repex'!$F$11","v":0}]
["ED_REP221_00059",null,"> 132 kV ; Subdivision  ",{"$f":"'[2]2.2 Repex'!D69+'[3]2.2 Repex'!D69","v":0},{"$f":"'[2]2.2 Repex'!E69+'[3]2.2 Repex'!E69","v":0},{"$f":"'[2]2.2 Repex'!$F$11+'[3]2.2 Repex'!$F$11","v":0}]
["ED_REP221_00060",null,"Other",{"$f":"'[2]2.2 Repex'!D70+'[3]2.2 Repex'!D70","v":0},{"$f":"'[2]2.2 Repex'!E70+'[3]2.2 Repex'!E70","v":0},{"$f":"'[2]2.2 Repex'!$F$11+'[3]2.2 Repex'!$F$11","v":0}]
["ED_REP221_00061","TRANSFORMERS BY: \nMOUNTING TYPE; HIGHEST OPERATING VOLTAGE ; AMPERE RATING; NUMBER OF PHASES (AT LV)","Pole Mounted ; < = 22kV ;  < = 60 kVA ; Single Phase",{"$f":"'[2]2.2 Repex'!D71+'[3]2.2 Repex'!D71","v":50281.68},{"$f":"'[2]2.2 Repex'!E71+'[3]2.2 Repex'!E71","v":3},{"$f":"'[2]2.2 Repex'!$F$11+'[3]2.2 Repex'!$F$11","v":0}]
["ED_REP221_00062",null,"Pole Mounted ; < = 22kV ;  > 60 kVA and < = 600 kVA ; Single Phase",{"$f":"'[2]2.2 Repex'!D72+'[3]2.2 Repex'!D72","v":0},{"$f":"'[2]2.2 Repex'!E72+'[3]2.2 Repex'!E72","v":0},{"$f":"'[2]2.2 Repex'!$F$11+'[3]2.2 Repex'!$F$11","v":0}]
["ED_REP221_00063",null,"Pole Mounted ; < = 22kV ;  > 600 kVA ; Single Phase",{"$f":"'[2]2.2 Repex'!D73+'[3]2.2 Repex'!D73","v":0},{"$f":"'[2]2.2 Repex'!E73+'[3]2.2 Repex'!E73","v":0},{"$f":"'[2]2.2 Repex'!$F$11+'[3]2.2 Repex'!$F$11","v":0}]
["ED_REP221_00064",null,"Pole Mounted ; < = 22kV ;  < = 60 kVA  ; Multiple Phase",{"$f":"'[2]2.2 Repex'!D74+'[3]2.2 Repex'!D74","v":0},{"$f":"'[2]2.2 Repex'!E74+'[3]2.2 Repex'!E74","v":0},{"$f":"'[2]2.2 Repex'!$F$11+'[3]2.2 Repex'!$F$11","v":0}]
["ED_REP221_00065",null,"Pole Mounted ; < = 22kV ;  > 60 kVA and < = 600 kVA  ; Multiple Phase",{"$f":"'[2]2.2 Repex'!D75+'[3]2.2 Repex'!D75","v":709792.87},{"$f":"'[2]2.2 Repex'!E75+'[3]2.2 Repex'!E75","v":13},{"$f":"'[2]2.2 Repex'!$F$11+'[3]2.2 Repex'!$F$11","v":0}]
["ED_REP221_00066",null,"Pole Mounted ; < = 22kV ;  > 600 kVA  ; Multiple Phase",{"$f":"'[2]2.2 Repex'!D76+'[3]2.2 Repex'!D76","v":0},{"$f":"'[2]2.2 Repex'!E76+'[3]2.2 Repex'!E76","v":0},{"$f":"'[2]2.2 Repex'!$F$11+'[3]2.2 Repex'!$F$11","v":0}]
["ED_REP221_00073",null,"Kiosk Mounted ; < = 22kV ;  < = 60 kVA ; Single Phase",{"$f":"'[2]2.2 Repex'!D77+'[3]2.2 Repex'!D77","v":0},{"$f":"'[2]2.2 Repex'!E77+'[3]2.2 Repex'!E77","v":0},{"$f":"'[2]2.2 Repex'!$F$11+'[3]2.2 Repex'!$F$11","v":0}]
["ED_REP221_00074",null,"Kiosk Mounted ; < = 22kV ;  > 60 kVA and < = 600 kVA ; Single Phase",{"$f":"'[2]2.2 Repex'!D78+'[3]2.2 Repex'!D78","v":0},{"$f":"'[2]2.2 Repex'!E78+'[3]2.2 Repex'!E78","v":0},{"$f":"'[2]2.2 Repex'!$F$11+'[3]2.2 Repex'!$F$11","v":0}]
["ED_REP221_00075",null,"Kiosk Mounted ; < = 22kV ;  > 600 kVA ; Single Phase",{"$f":"'[2]2.2 Repex'!D79+'[3]2.2 Repex'!D79","v":0},{"$f":"'[2]2.2 Repex'!E79+'[3]2.2 Repex'!E79","v":0},{"$f":"'[2]2.2 Repex'!$F$11+'[3]2.2 Repex'!$F$11","v":0}]
["ED_REP221_00076",null,"Kiosk Mounted ; < = 22kV ;  < = 60 kVA  ; Multiple Phase",{"$f":"'[2]2.2 Repex'!D80+'[3]2.2 Repex'!D80","v":0},{"$f":"'[2]2.2 Repex'!E80+'[3]2.2 Repex'!E80","v":0},{"$f":"'[2]2.2 Repex'!$F$11+'[3]2.2 Repex'!$F$11","v":0}]
["ED_REP221_00077",null,"Kiosk Mounted ; < = 22kV ;  > 60 kVA and < = 600 kVA  ; Multiple Phase",{"$f":"'[2]2.2 Repex'!D81+'[3]2.2 Repex'!D81","v":538229.05999999994},{"$f":"'[2]2.2 Repex'!E81+'[3]2.2 Repex'!E81","v":4},{"$f":"'[2]2.2 Repex'!$F$11+'[3]2.2 Repex'!$F$11","v":0}]
["ED_REP221_00078",null,"Kiosk Mounted ; < = 22kV ;  > 600 kVA  ; Multiple Phase",{"$f":"'[2]2.2 Repex'!D82+'[3]2.2 Repex'!D82","v":0},{"$f":"'[2]2.2 Repex'!E82+'[3]2.2 Repex'!E82","v":0},{"$f":"'[2]2.2 Repex'!$F$11+'[3]2.2 Repex'!$F$11","v":0}]
["ED_REP221_00085",null,"Ground Outdoor / Indoor Chamber Mounted; ˂ 22 kV ;  < = 60 kVA ; Single Phase",{"$f":"'[2]2.2 Repex'!D83+'[3]2.2 Repex'!D83","v":0},{"$f":"'[2]2.2 Repex'!E83+'[3]2.2 Repex'!E83","v":0},{"$f":"'[2]2.2 Repex'!$F$11+'[3]2.2 Repex'!$F$11","v":0}]
["ED_REP221_00086",null,"Ground Outdoor / Indoor Chamber Mounted; ˂  22 kV ;  > 60 kVA  and < = 600 kVA ; Single Phase",{"$f":"'[2]2.2 Repex'!D84+'[3]2.2 Repex'!D84","v":0},{"$f":"'[2]2.2 Repex'!E84+'[3]2.2 Repex'!E84","v":0},{"$f":"'[2]2.2 Repex'!$F$11+'[3]2.2 Repex'!$F$11","v":0}]
["ED_REP221_00087",null,"Ground Outdoor / Indoor Chamber Mounted; ˂  22 kV ;  >  600 kVA ; Single Phase",{"$f":"'[2]2.2 Repex'!D85+'[3]2.2 Repex'!D85","v":0},{"$f":"'[2]2.2 Repex'!E85+'[3]2.2 Repex'!E85","v":0},{"$f":"'[2]2.2 Repex'!$F$11+'[3]2.2 Repex'!$F$11","v":0}]
["ED_REP221_00088",null,"Ground Outdoor / Indoor Chamber Mounted; ˂  22 kV ;  < = 60 kVA ; Multiple Phase",{"$f":"'[2]2.2 Repex'!D86+'[3]2.2 Repex'!D86","v":0},{"$f":"'[2]2.2 Repex'!E86+'[3]2.2 Repex'!E86","v":0},{"$f":"'[2]2.2 Repex'!$F$11+'[3]2.2 Repex'!$F$11","v":0}]
["ED_REP221_00089",null,"Ground Outdoor / Indoor Chamber Mounted; ˂  22 kV ;  > 60 kVA  and < = 600 kVA ; Multiple Phase",{"$f":"'[2]2.2 Repex'!D87+'[3]2.2 Repex'!D87","v":31865.43},{"$f":"'[2]2.2 Repex'!E87+'[3]2.2 Repex'!E87","v":1},{"$f":"'[2]2.2 Repex'!$F$11+'[3]2.2 Repex'!$F$11","v":0}]
["ED_REP221_00090",null,"Ground Outdoor / Indoor Chamber Mounted; ˂  22 kV ;  >  600 kVA ; Multiple Phase",{"$f":"'[2]2.2 Repex'!D88+'[3]2.2 Repex'!D88","v":0},{"$f":"'[2]2.2 Repex'!E88+'[3]2.2 Repex'!E88","v":0},{"$f":"'[2]2.2 Repex'!$F$11+'[3]2.2 Repex'!$F$11","v":0}]
["ED_REP221_00091",null,"Ground Outdoor / Indoor Chamber Mounted; > = 22 kV & < = 33 kV ;  < = 15 MVA",{"$f":"'[2]2.2 Repex'!D89+'[3]2.2 Repex'!D89","v":0},{"$f":"'[2]2.2 Repex'!E89+'[3]2.2 Repex'!E89","v":0},{"$f":"'[2]2.2 Repex'!$F$11+'[3]2.2 Repex'!$F$11","v":0}]
["ED_REP221_00092",null,"Ground Outdoor / Indoor Chamber Mounted; > = 22 kV & < = 33 kV ;  > 15 MVA and < = 40 MVA",{"$f":"'[2]2.2 Repex'!D90+'[3]2.2 Repex'!D90","v":0},{"$f":"'[2]2.2 Repex'!E90+'[3]2.2 Repex'!E90","v":0},{"$f":"'[2]2.2 Repex'!$F$11+'[3]2.2 Repex'!$F$11","v":0}]
["ED_REP221_00093",null,"Ground Outdoor / Indoor Chamber Mounted; > = 22 kV & < = 33 kV ;  > 40 MVA",{"$f":"'[2]2.2 Repex'!D91+'[3]2.2 Repex'!D91","v":0},{"$f":"'[2]2.2 Repex'!E91+'[3]2.2 Repex'!E91","v":0},{"$f":"'[2]2.2 Repex'!$F$11+'[3]2.2 Repex'!$F$11","v":0}]
["ED_REP221_00094",null,"Ground Outdoor / Indoor Chamber Mounted; > 33 kV & < = 66 kV ;  < = 15 MVA",{"$f":"'[2]2.2 Repex'!D92+'[3]2.2 Repex'!D92","v":0},{"$f":"'[2]2.2 Repex'!E92+'[3]2.2 Repex'!E92","v":0},{"$f":"'[2]2.2 Repex'!$F$11+'[3]2.2 Repex'!$F$11","v":0}]
["ED_REP221_00095",null,"Ground Outdoor / Indoor Chamber Mounted; > 33 kV & < = 66 kV ;  > 15 MVA and < = 40 MVA",{"$f":"'[2]2.2 Repex'!D93+'[3]2.2 Repex'!D93","v":0},{"$f":"'[2]2.2 Repex'!E93+'[3]2.2 Repex'!E93","v":0},{"$f":"'[2]2.2 Repex'!$F$11+'[3]2.2 Repex'!$F$11","v":0}]
["ED_REP221_00096",null,"Ground Outdoor / Indoor Chamber Mounted; > 33 kV & < = 66 kV ;  > 40 MVA",{"$f":"'[2]2.2 Repex'!D94+'[3]2.2 Repex'!D94","v":0},{"$f":"'[2]2.2 Repex'!E94+'[3]2.2 Repex'!E94","v":0},{"$f":"'[2]2.2 Repex'!$F$11+'[3]2.2 Repex'!$F$11","v":0}]
["ED_REP221_00097",null,"Ground Outdoor / Indoor Chamber Mounted; > 66 kV & < = 132 kV ;  < = 100 MVA",{"$f":"'[2]2.2 Repex'!D95+'[3]2.2 Repex'!D95","v":0},{"$f":"'[2]2.2 Repex'!E95+'[3]2.2 Repex'!E95","v":0},{"$f":"'[2]2.2 Repex'!$F$11+'[3]2.2 Repex'!$F$11","v":0}]
["ED_REP221_00098",null,"Ground Outdoor / Indoor Chamber Mounted; > 66 kV & < = 132 kV ;  > 100 MVA",{"$f":"'[2]2.2 Repex'!D96+'[3]2.2 Repex'!D96","v":0},{"$f":"'[2]2.2 Repex'!E96+'[3]2.2 Repex'!E96","v":0},{"$f":"'[2]2.2 Repex'!$F$11+'[3]2.2 Repex'!$F$11","v":0}]
["ED_REP221_00099",null,"Ground Outdoor / Indoor Chamber Mounted; > 132 kV ;  < = 100 MVA",{"$f":"'[2]2.2 Repex'!D97+'[3]2.2 Repex'!D97","v":0},{"$f":"'[2]2.2 Repex'!E97+'[3]2.2 Repex'!E97","v":0},{"$f":"'[2]2.2 Repex'!$F$11+'[3]2.2 Repex'!$F$11","v":0}]
["ED_REP221_00100",null,"Ground Outdoor / Indoor Chamber Mounted; > 132 kV ;  > 100 MVA",{"$f":"'[2]2.2 Repex'!D98+'[3]2.2 Repex'!D98","v":0},{"$f":"'[2]2.2 Repex'!E98+'[3]2.2 Repex'!E98","v":0},{"$f":"'[2]2.2 Repex'!$F$11+'[3]2.2 Repex'!$F$11","v":0}]
["ED_REP221_00101",null,"Other",{"$f":"'[2]2.2 Repex'!D99+'[3]2.2 Repex'!D99","v":0},{"$f":"'[2]2.2 Repex'!E99+'[3]2.2 Repex'!E99","v":1},{"$f":"'[2]2.2 Repex'!$F$11+'[3]2.2 Repex'!$F$11","v":0}]
["ED_REP221_00102","SWITCHGEAR BY: \nHIGHEST OPERATING VOLTAGE ; SWITCH FUNCTION","˂ = 11 kV ;  FUSE",{"$f":"'[2]2.2 Repex'!D100+'[3]2.2 Repex'!D100","v":0},{"$f":"'[2]2.2 Repex'!E100+'[3]2.2 Repex'!E100","v":1232},{"$f":"'[2]2.2 Repex'!$F$11+'[3]2.2 Repex'!$F$11","v":0}]
["ED_REP221_00103",null,"˂ = 11 kV  ; Switch",{"$f":"'[2]2.2 Repex'!D101+'[3]2.2 Repex'!D101","v":893968.08000000007},{"$f":"'[2]2.2 Repex'!E101+'[3]2.2 Repex'!E101","v":481},{"$f":"'[2]2.2 Repex'!$F$11+'[3]2.2 Repex'!$F$11","v":0}]
["ED_REP221_00104",null,"˂ = 11 kV ;  Circuit Breaker",{"$f":"'[2]2.2 Repex'!D102+'[3]2.2 Repex'!D102","v":260146.43000000002},{"$f":"'[2]2.2 Repex'!E102+'[3]2.2 Repex'!E102","v":12},{"$f":"'[2]2.2 Repex'!$F$11+'[3]2.2 Repex'!$F$11","v":0}]
["ED_REP221_00105",null,"> 11 kV & < = 22 kV  ; Switch",{"$f":"'[2]2.2 Repex'!D103+'[3]2.2 Repex'!D103","v":0},{"$f":"'[2]2.2 Repex'!E103+'[3]2.2 Repex'!E103","v":2},{"$f":"'[2]2.2 Repex'!$F$11+'[3]2.2 Repex'!$F$11","v":0}]
["ED_REP221_00106",null,"> 11 kV & < = 22 kV  ; Circuit Breaker",{"$f":"'[2]2.2 Repex'!D104+'[3]2.2 Repex'!D104","v":0},{"$f":"'[2]2.2 Repex'!E104+'[3]2.2 Repex'!E104","v":0},{"$f":"'[2]2.2 Repex'!$F$11+'[3]2.2 Repex'!$F$11","v":0}]
["ED_REP221_00107",null,"> 22 kV & < = 33 kV ; Switch",{"$f":"'[2]2.2 Repex'!D105+'[3]2.2 Repex'!D105","v":0},{"$f":"'[2]2.2 Repex'!E105+'[3]2.2 Repex'!E105","v":0},{"$f":"'[2]2.2 Repex'!$F$11+'[3]2.2 Repex'!$F$11","v":0}]
["ED_REP221_00108",null,"> 22 kV & < = 33 kV ; Circuit Breaker",{"$f":"'[2]2.2 Repex'!D106+'[3]2.2 Repex'!D106","v":0},{"$f":"'[2]2.2 Repex'!E106+'[3]2.2 Repex'!E106","v":0},{"$f":"'[2]2.2 Repex'!$F$11+'[3]2.2 Repex'!$F$11","v":0}]
["ED_REP221_00109",null,"> 33 kV & < = 66 kV ; Switch",{"$f":"'[2]2.2 Repex'!D107+'[3]2.2 Repex'!D107","v":0},{"$f":"'[2]2.2 Repex'!E107+'[3]2.2 Repex'!E107","v":0},{"$f":"'[2]2.2 Repex'!$F$11+'[3]2.2 Repex'!$F$11","v":0}]
["ED_REP221_00110",null,"> 33 kV & < = 66 kV ; Circuit Breaker",{"$f":"'[2]2.2 Repex'!D108+'[3]2.2 Repex'!D108","v":0},{"$f":"'[2]2.2 Repex'!E108+'[3]2.2 Repex'!E108","v":0},{"$f":"'[2]2.2 Repex'!$F$11+'[3]2.2 Repex'!$F$11","v":0}]
["ED_REP221_00111",null,"> 66 kV & < = 132 kV ; Switch",{"$f":"'[2]2.2 Repex'!D109+'[3]2.2 Repex'!D109","v":0},{"$f":"'[2]2.2 Repex'!E109+'[3]2.2 Repex'!E109","v":0},{"$f":"'[2]2.2 Repex'!$F$11+'[3]2.2 Repex'!$F$11","v":0}]
["ED_REP221_00112",null,"> 66 kV & < = 132 kV  ; Circuit Breaker",{"$f":"'[2]2.2 Repex'!D110+'[3]2.2 Repex'!D110","v":1328876.95},{"$f":"'[2]2.2 Repex'!E110+'[3]2.2 Repex'!E110","v":4},{"$f":"'[2]2.2 Repex'!$F$11+'[3]2.2 Repex'!$F$11","v":0}]
["ED_REP221_00113",null,"> 132 kV ; Switch",{"$f":"'[2]2.2 Repex'!D111+'[3]2.2 Repex'!D111","v":0},{"$f":"'[2]2.2 Repex'!E111+'[3]2.2 Repex'!E111","v":0},{"$f":"'[2]2.2 Repex'!$F$11+'[3]2.2 Repex'!$F$11","v":0}]
["ED_REP221_00114",null,"> 132 kV ; Circuit Breaker",{"$f":"'[2]2.2 Repex'!D112+'[3]2.2 Repex'!D112","v":0},{"$f":"'[2]2.2 Repex'!E112+'[3]2.2 Repex'!E112","v":0},{"$f":"'[2]2.2 Repex'!$F$11+'[3]2.2 Repex'!$F$11","v":0}]
["ED_REP221_00115",null,"Other",{"$f":"'[2]2.2 Repex'!D113+'[3]2.2 Repex'!D113","v":0},{"$f":"'[2]2.2 Repex'!E113+'[3]2.2 Repex'!E113","v":4},{"$f":"'[2]2.2 Repex'!$F$11+'[3]2.2 Repex'!$F$11","v":0}]
["ED_REP221_00116","PUBLIC LIGHTING BY: \nASSET TYPE ; LIGHTING OBLIGATION","Luminaires ;  Major Road",{"$f":"'[2]2.2 Repex'!D114+'[3]2.2 Repex'!D114","v":0},{"$f":"'[2]2.2 Repex'!E114+'[3]2.2 Repex'!E114","v":0},{"$f":"'[2]2.2 Repex'!$F$11+'[3]2.2 Repex'!$F$11","v":0}]
["ED_REP221_00117",null,"Luminaires ;  Minor Road",{"$f":"'[2]2.2 Repex'!D115+'[3]2.2 Repex'!D115","v":0},{"$f":"'[2]2.2 Repex'!E115+'[3]2.2 Repex'!E115","v":0},{"$f":"'[2]2.2 Repex'!$F$11+'[3]2.2 Repex'!$F$11","v":0}]
["ED_REP221_00118",null,"Brackets ; Major Road",{"$f":"'[2]2.2 Repex'!D116+'[3]2.2 Repex'!D116","v":0},{"$f":"'[2]2.2 Repex'!E116+'[3]2.2 Repex'!E116","v":0},{"$f":"'[2]2.2 Repex'!$F$11+'[3]2.2 Repex'!$F$11","v":0}]
["ED_REP221_00119",null,"Brackets ; Minor Road",{"$f":"'[2]2.2 Repex'!D117+'[3]2.2 Repex'!D117","v":0},{"$f":"'[2]2.2 Repex'!E117+'[3]2.2 Repex'!E117","v":0},{"$f":"'[2]2.2 Repex'!$F$11+'[3]2.2 Repex'!$F$11","v":0}]
["ED_REP221_00120",null,"Lamps ; Major Road",{"$f":"'[2]2.2 Repex'!D118+'[3]2.2 Repex'!D118","v":0},{"$f":"'[2]2.2 Repex'!E118+'[3]2.2 Repex'!E118","v":0},{"$f":"'[2]2.2 Repex'!$F$11+'[3]2.2 Repex'!$F$11","v":0}]
["ED_REP221_00121",null,"Lamps ; Minor Road",{"$f":"'[2]2.2 Repex'!D119+'[3]2.2 Repex'!D119","v":0},{"$f":"'[2]2.2 Repex'!E119+'[3]2.2 Repex'!E119","v":0},{"$f":"'[2]2.2 Repex'!$F$11+'[3]2.2 Repex'!$F$11","v":0}]
["ED_REP221_00122",null,"Poles / Columns ; Major Road",{"$f":"'[2]2.2 Repex'!D120+'[3]2.2 Repex'!D120","v":0},{"$f":"'[2]2.2 Repex'!E120+'[3]2.2 Repex'!E120","v":0},{"$f":"'[2]2.2 Repex'!$F$11+'[3]2.2 Repex'!$F$11","v":0}]
["ED_REP221_00123",null,"Poles / Columns ; Minor Road",{"$f":"'[2]2.2 Repex'!D121+'[3]2.2 Repex'!D121","v":0},{"$f":"'[2]2.2 Repex'!E121+'[3]2.2 Repex'!E121","v":0},{"$f":"'[2]2.2 Repex'!$F$11+'[3]2.2 Repex'!$F$11","v":0}]
["ED_REP221_00124",null,"Other",{"$f":"'[2]2.2 Repex'!D122+'[3]2.2 Repex'!D122","v":0},{"$f":"'[2]2.2 Repex'!E122+'[3]2.2 Repex'!E122","v":0},{"$f":"'[2]2.2 Repex'!$F$11+'[3]2.2 Repex'!$F$11","v":0}]
["ED_REP221_00125","SCADA, NETWORK CONTROL AND PROTECTION SYSTEMS BY: \nFUNCTION","Field Devices",{"$f":"'[2]2.2 Repex'!D123+'[3]2.2 Repex'!D123","v":402076.69000000006},{"$f":"'[2]2.2 Repex'!E123+'[3]2.2 Repex'!E123","v":14},{"$f":"'[2]2.2 Repex'!$F$11+'[3]2.2 Repex'!$F$11","v":0}]
["ED_REP221_00126",null,"Local Network Wiring Assets",{"$f":"'[2]2.2 Repex'!D124+'[3]2.2 Repex'!D124","v":254196.97999999998},{"$f":"'[2]2.2 Repex'!E124+'[3]2.2 Repex'!E124","v":0},{"$f":"'[2]2.2 Repex'!$F$11+'[3]2.2 Repex'!$F$11","v":0}]
["ED_REP221_00127",null,"Communications Network Assets",{"$f":"'[2]2.2 Repex'!D125+'[3]2.2 Repex'!D125","v":108138.25999999998},{"$f":"'[2]2.2 Repex'!E125+'[3]2.2 Repex'!E125","v":0},{"$f":"'[2]2.2 Repex'!$F$11+'[3]2.2 Repex'!$F$11","v":0}]
["ED_REP221_00128",null,"Master Station Assets",{"$f":"'[2]2.2 Repex'!D126+'[3]2.2 Repex'!D126","v":171192.91},{"$f":"'[2]2.2 Repex'!E126+'[3]2.2 Repex'!E126","v":0},{"$f":"'[2]2.2 Repex'!$F$11+'[3]2.2 Repex'!$F$11","v":0}]
["ED_REP221_00129",null,"Communications Site Infrastructure",{"$f":"'[2]2.2 Repex'!D127+'[3]2.2 Repex'!D127","v":0},{"$f":"'[2]2.2 Repex'!E127+'[3]2.2 Repex'!E127","v":0},{"$f":"'[2]2.2 Repex'!$F$11+'[3]2.2 Repex'!$F$11","v":0}]
["ED_REP221_00130",null,"Communications Linear Assets",{"$f":"'[2]2.2 Repex'!D128+'[3]2.2 Repex'!D128","v":0},{"$f":"'[2]2.2 Repex'!E128+'[3]2.2 Repex'!E128","v":0},{"$f":"'[2]2.2 Repex'!$F$11+'[3]2.2 Repex'!$F$11","v":0}]
["ED_REP221_00131",null,"AFLC",{"$f":"'[2]2.2 Repex'!D129+'[3]2.2 Repex'!D129","v":0},{"$f":"'[2]2.2 Repex'!E129+'[3]2.2 Repex'!E129","v":0},{"$f":"'[2]2.2 Repex'!$F$11+'[3]2.2 Repex'!$F$11","v":0}]
["ED_REP221_00124",null,"Other",{"$f":"'[2]2.2 Repex'!D130+'[3]2.2 Repex'!D130","v":232228.15000000002},{"$f":"'[2]2.2 Repex'!E130+'[3]2.2 Repex'!E130","v":0},{"$f":"'[2]2.2 Repex'!$F$11+'[3]2.2 Repex'!$F$11","v":0}]
["ED_REP221_00132","OTHER BY: \nDNSP DEFINED"]
["ED_REP221_00133"]
["ED_REP221_00134"]
["ED_REP221_00135"]
["ED_REP221_00136"]
["ED_REP221_00137"]
["ED_REP221_00138"]
["ED_REP221_00139"]
["ED_REP221_00140"]
["ED_REP221_00141"]
["ED_REP221_00142"]
["ED_REP221_00143"]
["ED_REP221_00144"]
["ED_REP221_00145"]
["ED_REP221_00146"]
["ED_REP221_00147"]

{"sheet":"2.3 Augex","index":4,"n_rows":180,"n_cols":50,"rows_kept":180,"cut":false,"hidden":false,"merged":[[11,41,11,42],[9,48,9,49],[9,41,9,42],[9,43,11,43],[9,44,11,44],[9,45,9,46],[9,47,10,47],[10,17,10,18],[10,19,10,20],[10,21,10,23],[9,1,9,20],[9,21,9,40],[10,1,11,1],[10,12,11,12],[10,13,11,13],[10,14,11,14],[10,15,11,15],[10,24,10,25],[10,36,10,37],[10,39,10,40],[71,20,71,22],[11,45,11,47],[11,48,11,49],[70,1,70,16],[70,17,70,38],[70,39,70,40],[70,41,72,41],[70,42,72,42],[70,46,70,47],[71,1,72,1],[71,12,72,12],[71,13,72,13],[71,14,72,14],[71,15,72,15],[71,17,71,19],[10,16,11,16],[71,23,71,25],[71,37,71,38],[72,39,72,40],[72,43,72,45],[72,46,72,47],[70,45,71,45],[70,43,70,44]]}
[null,{"$f":"(LOOKUP(dms_Model,dms_Model_List,dms_Worksheet_List))","v":"REGULATORY REPORTING STATEMENT"},null,null,null,null,null,null,null,null,"New line on new route - single circuit","New line on new route - dual circuit",null,null,"Worksheet navigation"]
[null,"Australian Distribution Co."]
[null,{"$f":"CONCATENATE(\"Category Analysis RIN response \",CRY)","v":"Category Analysis RIN response 2014-15"}]
[null,"2.3 AUGEX PROJECT DATA"]
[]
[]
[null,"TABLE 2.3.1 - AUGEX ASSET DATA - SUBTRANSMISSION SUBSTATIONS, SWITCHING STATIONS AND ZONE SUBSTATIONS"]
[null,"NOTE: DNSP MUST PROVIDE EXPENDITURE INFORMATION ON A PROJECT CLOSE BASIS. "]
["AUG231","AUG231_1",null,null,null,null,null,null,null,null,null,null,"AUG231_2","AUG231_3","AUG231_4","AUG231_5","AUG231_6","ED_AUG231_00001","ED_AUG231_00002","ED_AUG231_00003","ED_AUG231_00004","ED_AUG231_00005","ED_AUG231_00006","ED_AUG231_00007","ED_AUG231_00008","ED_AUG231_00009",null,null,null,null,null,null,null,null,null,null,"ED_AUG231_00010","ED_AUG231_00011","ED_AUG231_00012","ED_AUG231_00013","ED_AUG231_00014","ED_AUG231_00015","ED_AUG231_00016","ED_AUG231_00017","ED_AUG231_00018","ED_AUG231_00019","ED_AUG231_00020","ED_AUG231_00021","ED_AUG231_00022","ED_AUG231_00023"]
[null,"PROJECT DESCRIPTION AND CHANGES",null,null,null,null,null,null,null,null,null,null,null,null,null,null,null,null,null,null,null,"PLANT AND EQUIPMENT EXPENDITURE AND VOLUME",null,null,null,null,null,null,null,null,null,null,null,null,null,null,null,null,null,null,null,"OTHER EXPENDITURE",null,"TOTAL DIRECT EXPENDITURE ($0's)","YEARS INCURRED","ALL RELATED PARTY CONTRACTS",null,"ALL NON RELATED PARTYCONTRACTS","LAND AND EASEMENTS"]
[null,"SUBSTATION ID",null,null,null,null,null,null,null,null,null,null,"SUBSTATION TYPE","PROJECT ID","PROJECT TYPE","PROJECT TRIGGER","VOLTAGE (KV)","SUBSTATION RATING\nNORMAL CYCLIC\n(MVA)",null,"SUBSTATION RATING\nN-1 EMERGENCY\n(MVA)",null,"TRANSFORMERS",null,null,"SWITCHGEAR",null,null,null,null,null,null,null,null,null,null,null,"CAPACITORS",null,"OTHER PLANT ITEM","INSTALLATION (LABOUR)",null,"CIVIL WORKS","OTHER DIRECT",null,null,"RELATED PARTY MARGINS","TOTAL",null,"LAND PURCHASE","EASEMENTS"]
[null,null,null,null,null,null,null,null,null,null,null,null,null,null,null,null,null,"PRE","POST","PRE","POST","UNITS ADDED ","MVA ADDED","EXPENDITURE ($0's)","UNITS ADDED ","EXPENDITURE ($0's)",null,null,null,null,null,null,null,null,null,null,"MVAR ADDED","EXPENDITURE ($0's)","EXPENDITURE ($0's)","VOLUME","EXPENDITURE ($0's)","EXPENDITURE ($0's)",null,null,null,"EXPENDITURE ($0's)",null,null,"EXPENDITURE ($0's)"]
["AUG231_1",null,"Zone substation",7519205,"New substation establishment","Demand growth","132kV/11kV",0,55,0,0,1,null,null,null,null,"-",null,null,null,null,null,null,null,null,null,null,null,null,null,null,null,null,null,null,null,null,null,null,null,null,null,null,{"$f":"SUM(X13,Z13,AL13,AM13,AO13,AP13,AQ13)","v":0}]
["AUG231_2",null,null,null,null,null,null,null,null,null,null,null,null,null,null,null,null,null,null,null,null,null,null,null,null,null,null,null,null,null,null,null,null,null,null,null,null,null,null,null,null,null,null,{"$f":"SUM(X14,Z14,AL14,AM14,AO14,AP14,AQ14)","v":0}]
["AUG231_3",null,null,null,null,null,null,null,null,null,null,null,null,null,null,null,null,null,null,null,null,null,null,null,null,null,null,null,null,null,null,null,null,null,null,null,null,null,null,null,null,null,null,0]
["AUG231_4",null,null,null,null,null,null,null,null,null,null,null,null,null,null,null,null,null,null,null,null,null,null,null,null,null,null,null,null,null,null,null,null,null,null,null,null,null,null,null,null,null,null,0]
["AUG231_5",null,null,null,null,null,null,null,null,null,null,null,null,null,null,null,null,null,null,null,null,null,null,null,null,null,null,null,null,null,null,null,null,null,null,null,null,null,null,null,null,null,null,0]
["AUG231_6",null,null,null,null,null,null,null,null,null,null,null,null,null,null,null,null,null,null,null,null,null,null,null,null,null,null,null,null,null,null,null,null,null,null,null,null,null,null,null,null,null,null,0]
["AUG231_7",null,null,null,null,null,null,null,null,null,null,null,null,null,null,null,null,null,null,null,null,null,null,null,null,null,null,null,null,null,null,null,null,null,null,null,null,null,null,null,null,null,null,0]
["AUG231_8",null,null,null,null,null,null,null,null,null,null,null,null,null,null,null,null,null,null,null,null,null,null,null,null,null,null,null,null,null,null,null,null,null,null,null,null,null,null,null,null,null,null,0]
["AUG231_9",null,null,null,null,null,null,null,null,null,null,null,null,null,null,null,null,null,null,null,null,null,null,null,null,null,null,null,null,null,null,null,null,null,null,null,null,null,null,null,null,null,null,0]
["AUG231_10",null,null,null,null,null,null,null,null,null,null,null,null,null,null,null,null,null,null,null,null,null,null,null,null,null,null,null,null,null,null,null,null,null,null,null,null,null,null,null,null,null,null,0]
["AUG231_11",null,null,null,null,null,null,null,null,null,null,null,null,null,null,null,null,null,null,null,null,null,null,null,null,null,null,null,null,null,null,null,null,null,null,null,null,null,null,null,null,null,null,0]
["AUG231_12",null,null,null,null,null,null,null,null,null,null,null,null,null,null,null,null,null,null,null,null,null,null,null,null,null,null,null,null,null,null,null,null,null,null,null,null,null,null,null,null,null,null,0]
["AUG231_13",null,null,null,null,null,null,null,null,null,null,null,null,null,null,null,null,null,null,null,null,null,null,null,null,null,null,null,null,null,null,null,null,null,null,null,null,null,null,null,null,null,null,0]
["AUG231_14",null,null,null,null,null,null,null,null,null,null,null,null,null,null,null,null,null,null,null,null,null,null,null,null,null,null,null,null,null,null,null,null,null,null,null,null,null,null,null,null,null,null,0]
["AUG231_15",null,null,null,null,null,null,null,null,null,null,null,null,null,null,null,null,null,null,null,null,null,null,null,null,null,null,null,null,null,null,null,null,null,null,null,null,null,null,null,null,null,null,0]
["AUG231_16",null,null,null,null,null,null,null,null,null,null,null,null,null,null,null,null,null,null,null,null,null,null,null,null,null,null,null,null,null,null,null,null,null,null,null,null,null,null,null,null,null,null,0]
["AUG231_17",null,null,null,null,null,null,null,null,null,null,null,null,null,null,null,null,null,null,null,null,null,null,null,null,null,null,null,null,null,null,null,null,null,null,null,null,null,null,null,null,null,null,0]
["AUG231_18",null,null,null,null,null,null,null,null,null,null,null,null,null,null,null,null,null,null,null,null,null,null,null,null,null,null,null,null,null,null,null,null,null,null,null,null,null,null,null,null,null,null,0]
["AUG231_19",null,null,null,null,null,null,null,null,null,null,null,null,null,null,null,null,null,null,null,null,null,null,null,null,null,null,null,null,null,null,null,null,null,null,null,null,null,null,null,null,null,null,0]
["AUG231_20",null,null,null,null,null,null,null,null,null,null,null,null,null,null,null,null,null,null,null,null,null,null,null,null,null,null,null,null,null,null,null,null,null,null,null,null,null,null,null,null,null,null,0]
["AUG231_21",null,null,null,null,null,null,null,null,null,null,null,null,null,null,null,null,null,null,null,null,null,null,null,null,null,null,null,null,null,null,null,null,null,null,null,null,null,null,null,null,null,null,0]
["AUG231_22",null,null,null,null,null,null,null,null,null,null,null,null,null,null,null,null,null,null,null,null,null,null,null,null,null,null,null,null,null,null,null,null,null,null,null,null,null,null,null,null,null,null,0]
["AUG231_23",null,null,null,null,null,null,null,null,null,null,null,null,null,null,null,null,null,null,null,null,null,null,null,null,null,null,null,null,null,null,null,null,null,null,null,null,null,null,null,null,null,null,0]
["AUG231_24",null,null,null,null,null,null,null,null,null,null,null,null,null,null,null,null,null,null,null,null,null,null,null,null,null,null,null,null,null,null,null,null,null,null,null,null,null,null,null,null,null,null,0]
["AUG231_25",null,null,null,null,null,null,null,null,null,null,null,null,null,null,null,null,null,null,null,null,null,null,null,null,null,null,null,null,null,null,null,null,null,null,null,null,null,null,null,null,null,null,0]
["AUG231_26",null,null,null,null,null,null,null,null,null,null,null,null,null,null,null,null,null,null,null,null,null,null,null,null,null,null,null,null,null,null,null,null,null,null,null,null,null,null,null,null,null,null,0]
["AUG231_27",null,null,null,null,null,null,null,null,null,null,null,null,null,null,null,null,null,null,null,null,null,null,null,null,null,null,null,null,null,null,null,null,null,null,null,null,null,null,null,null,null,null,0]
["AUG231_28",null,null,null,null,null,null,null,null,null,null,null,null,null,null,null,null,null,null,null,null,null,null,null,null,null,null,null,null,null,null,null,null,null,null,null,null,null,null,null,null,null,null,0]
["AUG231_29",null,null,null,null,null,null,null,null,null,null,null,null,null,null,null,null,null,null,null,null,null,null,null,null,null,null,null,null,null,null,null,null,null,null,null,null,null,null,null,null,null,null,0]
["AUG231_30",null,null,null,null,null,null,null,null,null,null,null,null,null,null,null,null,null,null,null,null,null,null,null,null,null,null,null,null,null,null,null,null,null,null,null,null,null,null,null,null,null,null,0]
["AUG231_31",null,null,null,null,null,null,null,null,null,null,null,null,null,null,null,null,null,null,null,null,null,null,null,null,null,null,null,null,null,null,null,null,null,null,null,null,null,null,null,null,null,null,0]
["AUG231_32",null,null,null,null,null,null,null,null,null,null,null,null,null,null,null,null,null,null,null,null,null,null,null,null,null,null,null,null,null,null,null,null,null,null,null,null,null,null,null,null,null,null,0]
["AUG231_33",null,null,null,null,null,null,null,null,null,null,null,null,null,null,null,null,null,null,null,null,null,null,null,null,null,null,null,null,null,null,null,null,null,null,null,null,null,null,null,null,null,null,0]
["AUG231_34",null,null,null,null,null,null,null,null,null,null,null,null,null,null,null,null,null,null,null,null,null,null,null,null,null,null,null,null,null,null,null,null,null,null,null,null,null,null,null,null,null,null,0]
["AUG231_35",null,null,null,null,null,null,null,null,null,null,null,null,null,null,null,null,null,null,null,null,null,null,null,null,null,null,null,null,null,null,null,null,null,null,null,null,null,null,null,null,null,null,0]
["AUG231_36",null,null,null,null,null,null,null,null,null,null,null,null,null,null,null,null,null,null,null,null,null,null,null,null,null,null,null,null,null,null,null,null,null,null,null,null,null,null,null,null,null,null,0]
["AUG231_37",null,null,null,null,null,null,null,null,null,null,null,null,null,null,null,null,null,null,null,null,null,null,null,null,null,null,null,null,null,null,null,null,null,null,null,null,null,null,null,null,null,null,0]
["AUG231_38",null,null,null,null,null,null,null,null,null,null,null,null,null,null,null,null,null,null,null,null,null,null,null,null,null,null,null,null,null,null,null,null,null,null,null,null,null,null,null,null,null,null,0]
["AUG231_39",null,null,null,null,null,null,null,null,null,null,null,null,null,null,null,null,null,null,null,null,null,null,null,null,null,null,null,null,null,null,null,null,null,null,null,null,null,null,null,null,null,null,0]
["AUG231_40",null,null,null,null,null,null,null,null,null,null,null,null,null,null,null,null,null,null,null,null,null,null,null,null,null,null,null,null,null,null,null,null,null,null,null,null,null,null,null,null,null,null,0]
["AUG231_41",null,null,null,null,null,null,null,null,null,null,null,null,null,null,null,null,null,null,null,null,null,null,null,null,null,null,null,null,null,null,null,null,null,null,null,null,null,null,null,null,null,null,0]
["AUG231_42",null,null,null,null,null,null,null,null,null,null,null,null,null,null,null,null,null,null,null,null,null,null,null,null,null,null,null,null,null,null,null,null,null,null,null,null,null,null,null,null,null,null,0]
["AUG231_43",null,null,null,null,null,null,null,null,null,null,null,null,null,null,null,null,null,null,null,null,null,null,null,null,null,null,null,null,null,null,null,null,null,null,null,null,null,null,null,null,null,null,0]
["AUG231_44",null,null,null,null,null,null,null,null,null,null,null,null,null,null,null,null,null,null,null,null,null,null,null,null,null,null,null,null,null,null,null,null,null,null,null,null,null,null,null,null,null,null,0]
["AUG231_45",null,null,null,null,null,null,null,null,null,null,null,null,null,null,null,null,null,null,null,null,null,null,null,null,null,null,null,null,null,null,null,null,null,null,null,null,null,null,null,null,null,null,0]
["AUG231_46",null,null,null,null,null,null,null,null,null,null,null,null,null,null,null,null,null,null,null,null,null,null,null,null,null,null,null,null,null,null,null,null,null,null,null,null,null,null,null,null,null,null,0]
["AUG231_47",null,null,null,null,null,null,null,null,null,null,null,null,null,null,null,null,null,null,null,null,null,null,null,null,null,null,null,null,null,null,null,null,null,null,null,null,null,null,null,null,null,null,0]
["AUG231_48",null,null,null,null,null,null,null,null,null,null,null,null,null,null,null,null,null,null,null,null,null,null,null,null,null,null,null,null,null,null,null,null,null,null,null,null,null,null,null,null,null,null,0]
["AUG231_49",null,null,null,null,null,null,null,null,null,null,null,null,null,null,null,null,null,null,null,null,null,null,null,null,null,null,null,null,null,null,null,null,null,null,null,null,null,null,null,null,null,null,0]
["AUG231_50",null,null,null,null,null,null,null,null,null,null,null,null,null,null,null,null,null,null,null,null,null,null,null,null,null,null,null,null,null,null,null,null,null,null,null,null,null,null,null,null,null,null,0]
["AUG231_51",null,null,null,null,null,null,null,null,null,null,null,null,null,null,null,null,null,null,null,null,null,null,null,null,null,null,null,null,null,null,null,null,null,null,null,null,null,null,null,null,null,null,0]
["AUG231_52",null,null,null,null,null,null,null,null,null,null,null,null,null,null,null,null,null,null,null,null,null,null,null,null,null,null,null,null,null,null,null,null,null,null,null,null,null,null,null,null,null,null,0]
[null,null,null,null,null,null,null,null,null,null,null,null,null,"Non material projects - [actual]"]
[null,null,null,null,null,null,null,null,null,null,null,null,null,"Non material projects - [forecast]"]
[]
["AUG232","AUG232_1","AUG232_2","AUG232_3","AUG232_4","AUG232_5","AUG232_6","AUG232_7","AUG232_8","AUG232_9","AUG232_10","AUG232_11","AUG232_2","AUG232_3","AUG232_4","AUG232_5","AUG232_6","ED_AUG232_00001","ED_AUG232_00002","ED_AUG232_00003","ED_AUG232_00004","ED_AUG232_00005","ED_AUG232_00006","ED_AUG232_00007","ED_AUG232_00008","ED_AUG232_00009",null,null,null,null,null,null,null,null,null,null,"ED_AUG232_00010","ED_AUG232_00011","ED_AUG232_00012","ED_AUG232_00013","ED_AUG232_00014","ED_AUG232_00015","ED_AUG232_00016","ED_AUG232_00017","ED_AUG232_00018","ED_AUG232_00019","ED_AUG232_00020","ED_AUG232_00021"]
[null,"TABLE 2.3.2 - AUGEX ASSET DATA - SUBTRANSMISSION LINES"]
[null,"NOTE: DNSP MUST PROVIDE EXPENDITURE INFORMATION ON A PROJECT CLOSE BASIS."]
[null,"PROJECT DESCRIPTION AND CHANGES",null,null,null,null,null,null,null,null,null,null,null,null,null,null,null,"PLANT AND EQUIPMENT EXPENDITURE AND VOLUME",null,null,null,null,null,null,null,null,null,null,null,null,null,null,null,null,null,null,null,null,null,"OTHER EXPENDITURE",null,"TOTAL DIRECT EXPENDITURE ($0's)","YEARS INCURRED","ALL RELATED PARTY CONTRACTS",null,"ALL NON RELATED PARTYCONTRACTS","LAND AND EASEMENTS"]
[null,"LINE ID",null,null,null,null,null,null,null,null,null,null,"PROJECT ID","PROJECT TYPE","PROJECT TRIGGER","VOLTAGE (KV)","ROUTE LINE LENGTH ADDED","POLES/TOWERS (INCLUDING STRUCTURES, AND CIVIL WORKS)",null,null,"OVERHEAD LINES",null,null,"UNDERGROUND CABLES",null,null,null,null,null,null,null,null,null,null,null,null,"OTHER PLANT ITEM","INSTALLATION (LABOUR)",null,"CIVIL WORKS","OTHER DIRECT",null,null,"RELATED PARTY MARGINS","TOTAL",null,"LAND PURCHASE","EASEMENTS"]
[null,null,null,null,null,null,null,null,null,null,null,null,null,null,null,null,"KM ADDED","POLES/TOWERS ADDED","POLES/TOWERS UPGRADED","EXPENDITURE ($0's)","CIRCUIT KM ADDED","CIRCUIT KM UPGRADED","EXPENDITURE ($0's)","CIRCUIT KM ADDED","CIRCUIT KM UPGRADED","EXPENDITURE ($0's)",null,null,null,null,null,null,null,null,null,null,"EXPENDITURE ($0's)","VOLUME","EXPENDITURE ($0's)","EXPENDITURE ($0's)",null,null,null,"EXPENDITURE ($0's)",null,null,"EXPENDITURE ($0's)"]
["AUG232_1",null,null,null,null,null,null,null,null,null,null,null,null,null,null,null,null,null,null,null,null,null,null,null,null,null,null,null,null,null,null,null,null,null,null,null,null,null,null,null,null,{"$f":"SUM(T74,W74,Z74,AK74,AM74,AN74,AO74)","v":0},null,null,null,null,null,null,null,"New line on new route - single circuit"]
["AUG232_2",null,null,null,null,null,null,null,null,null,null,null,null,null,null,null,null,null,null,null,null,null,null,null,null,null,null,null,null,null,null,null,null,null,null,null,null,null,null,null,null,0,null,null,null,null,null,null,null,"New line on new route - dual circuit"]
["AUG232_3",null,null,null,null,null,null,null,null,null,null,null,null,null,null,null,null,null,null,null,null,null,null,null,null,null,null,null,null,null,null,null,null,null,null,null,null,null,null,null,null,0,null,null,null,null,null,null,null,"New line on new route - other"]
["AUG232_4",null,null,null,null,null,null,null,null,null,null,null,null,null,null,null,null,null,null,null,null,null,null,null,null,null,null,null,null,null,null,null,null,null,null,null,null,null,null,null,null,0,null,null,null,null,null,null,null,"Line rebuild over existing route - single circuit"]
["AUG232_5",null,null,null,null,null,null,null,null,null,null,null,null,null,null,null,null,null,null,null,null,null,null,null,null,null,null,null,null,null,null,null,null,null,null,null,null,null,null,null,null,0,null,null,null,null,null,null,null,"Line rebuild over existing route - dual circuit"]
["AUG232_6",null,null,null,null,null,null,null,null,null,null,null,null,null,null,null,null,null,null,null,null,null,null,null,null,null,null,null,null,null,null,null,null,null,null,null,null,null,null,null,null,0,null,null,null,null,null,null,null,"Reconductor - Single circuit"]
["AUG232_7",null,null,null,null,null,null,null,null,null,null,null,null,null,null,null,null,null,null,null,null,null,null,null,null,null,null,null,null,null,null,null,null,null,null,null,null,null,null,null,null,0,null,null,null,null,null,null,null,"Reconductor - Dual circuit"]
["AUG232_8",null,null,null,null,null,null,null,null,null,null,null,null,null,null,null,null,null,null,null,null,null,null,null,null,null,null,null,null,null,null,null,null,null,null,null,null,null,null,null,null,0,null,null,null,null,null,null,null,"Reconductor - Other"]
["AUG232_9",null,null,null,null,null,null,null,null,null,null,null,null,null,null,null,null,null,null,null,null,null,null,null,null,null,null,null,null,null,null,null,null,null,null,null,null,null,null,null,null,0,null,null,null,null,null,null,null,"Line upgrade - raising/retensoring"]
["AUG232_10",null,null,null,null,null,null,null,null,null,null,null,null,null,null,null,null,null,null,null,null,null,null,null,null,null,null,null,null,null,null,null,null,null,null,null,null,null,null,null,null,0,null,null,null,null,null,null,null,"Line upgrade - voltage upgrade"]
["AUG232_11",null,null,null,null,null,null,null,null,null,null,null,null,null,null,null,null,null,null,null,null,null,null,null,null,null,null,null,null,null,null,null,null,null,null,null,null,null,null,null,null,0,null,null,null,null,null,null,null,"Line upgrade - capacity"]
["AUG232_12",null,null,null,null,null,null,null,null,null,null,null,null,null,null,null,null,null,null,null,null,null,null,null,null,null,null,null,null,null,null,null,null,null,null,null,null,null,null,null,null,0,null,null,null,null,null,null,null,"String spare circuit"]
["AUG232_13",null,null,null,null,null,null,null,null,null,null,null,null,null,null,null,null,null,null,null,null,null,null,null,null,null,null,null,null,null,null,null,null,null,null,null,null,null,null,null,null,0,null,null,null,null,null,null,null,"Other"]
["AUG232_14",null,null,null,null,null,null,null,null,null,null,null,null,null,null,null,null,null,null,null,null,null,null,null,null,null,null,null,null,null,null,null,null,null,null,null,null,null,null,null,null,0]
["AUG232_15",null,null,null,null,null,null,null,null,null,null,null,null,null,null,null,null,null,null,null,null,null,null,null,null,null,null,null,null,null,null,null,null,null,null,null,null,null,null,null,null,0]
["AUG232_16",null,null,null,null,null,null,null,null,null,null,null,null,null,null,null,null,null,null,null,null,null,null,null,null,null,null,null,null,null,null,null,null,null,null,null,null,null,null,null,null,0]
["AUG232_17",null,null,null,null,null,null,null,null,null,null,null,null,null,null,null,null,null,null,null,null,null,null,null,null,null,null,null,null,null,null,null,null,null,null,null,null,null,null,null,null,0]
["AUG232_18",null,null,null,null,null,null,null,null,null,null,null,null,null,null,null,null,null,null,null,null,null,null,null,null,null,null,null,null,null,null,null,null,null,null,null,null,null,null,null,null,0]
["AUG232_19",null,null,null,null,null,null,null,null,null,null,null,null,null,null,null,null,null,null,null,null,null,null,null,null,null,null,null,null,null,null,null,null,null,null,null,null,null,null,null,null,0]
["AUG232_20",null,null,null,null,null,null,null,null,null,null,null,null,null,null,null,null,null,null,null,null,null,null,null,null,null,null,null,null,null,null,null,null,null,null,null,null,null,null,null,null,0]
["AUG232_21",null,null,null,null,null,null,null,null,null,null,null,null,null,null,null,null,null,null,null,null,null,null,null,null,null,null,null,null,null,null,null,null,null,null,null,null,null,null,null,null,0]
["AUG232_22",null,null,null,null,null,null,null,null,null,null,null,null,null,null,null,null,null,null,null,null,null,null,null,null,null,null,null,null,null,null,null,null,null,null,null,null,null,null,null,null,0]
["AUG232_23",null,null,null,null,null,null,null,null,null,null,null,null,null,null,null,null,null,null,null,null,null,null,null,null,null,null,null,null,null,null,null,null,null,null,null,null,null,null,null,null,0]
["AUG232_24",null,null,null,null,null,null,null,null,null,null,null,null,null,null,null,null,null,null,null,null,null,null,null,null,null,null,null,null,null,null,null,null,null,null,null,null,null,null,null,null,0]
["AUG232_25",null,null,null,null,null,null,null,null,null,null,null,null,null,null,null,null,null,null,null,null,null,null,null,null,null,null,null,null,null,null,null,null,null,null,null,null,null,null,null,null,0]
["AUG232_26",null,null,null,null,null,null,null,null,null,null,null,null,null,null,null,null,null,null,null,null,null,null,null,null,null,null,null,null,null,null,null,null,null,null,null,null,null,null,null,null,0]
["AUG232_27",null,null,null,null,null,null,null,null,null,null,null,null,null,null,null,null,null,null,null,null,null,null,null,null,null,null,null,null,null,null,null,null,null,null,null,null,null,null,null,null,0]
["AUG232_28",null,null,null,null,null,null,null,null,null,null,null,null,null,null,null,null,null,null,null,null,null,null,null,null,null,null,null,null,null,null,null,null,null,null,null,null,null,null,null,null,0]
["AUG232_29",null,null,null,null,null,null,null,null,null,null,null,null,null,null,null,null,null,null,null,null,null,null,null,null,null,null,null,null,null,null,null,null,null,null,null,null,null,null,null,null,0]
["AUG232_30",null,null,null,null,null,null,null,null,null,null,null,null,null,null,null,null,null,null,null,null,null,null,null,null,null,null,null,null,null,null,null,null,null,null,null,null,null,null,null,null,0]
["AUG232_31",null,null,null,null,null,null,null,null,null,null,null,null,null,null,null,null,null,null,null,null,null,null,null,null,null,null,null,null,null,null,null,null,null,null,null,null,null,null,null,null,0]
["AUG232_32",null,null,null,null,null,null,null,null,null,null,null,null,null,null,null,null,null,null,null,null,null,null,null,null,null,null,null,null,null,null,null,null,null,null,null,null,null,null,null,null,0]
["AUG232_33",null,null,null,null,null,null,null,null,null,null,null,null,null,null,null,null,null,null,null,null,null,null,null,null,null,null,null,null,null,null,null,null,null,null,null,null,null,null,null,null,0]
["AUG232_34",null,null,null,null,null,null,null,null,null,null,null,null,null,null,null,null,null,null,null,null,null,null,null,null,null,null,null,null,null,null,null,null,null,null,null,null,null,null,null,null,0]
["AUG232_35",null,null,null,null,null,null,null,null,null,null,null,null,null,null,null,null,null,null,null,null,null,null,null,null,null,null,null,null,null,null,null,null,null,null,null,null,null,null,null,null,0]
["AUG232_36",null,null,null,null,null,null,null,null,null,null,null,null,null,null,null,null,null,null,null,null,null,null,null,null,null,null,null,null,null,null,null,null,null,null,null,null,null,null,null,null,0]
["AUG232_37",null,null,null,null,null,null,null,null,null,null,null,null,null,null,null,null,null,null,null,null,null,null,null,null,null,null,null,null,null,null,null,null,null,null,null,null,null,null,null,null,0]
["AUG232_38",null,null,null,null,null,null,null,null,null,null,null,null,null,null,null,null,null,null,null,null,null,null,null,null,null,null,null,null,null,null,null,null,null,null,null,null,null,null,null,null,0]
["AUG232_39",null,null,null,null,null,null,null,null,null,null,null,null,null,null,null,null,null,null,null,null,null,null,null,null,null,null,null,null,null,null,null,null,null,null,null,null,null,null,null,null,0]
["AUG232_40",null,null,null,null,null,null,null,null,null,null,null,null,null,null,null,null,null,null,null,null,null,null,null,null,null,null,null,null,null,null,null,null,null,null,null,null,null,null,null,null,0]
["AUG232_41",null,null,null,null,null,null,null,null,null,null,null,null,null,null,null,null,null,null,null,null,null,null,null,null,null,null,null,null,null,null,null,null,null,null,null,null,null,null,null,null,0]
["AUG232_42",null,null,null,null,null,null,null,null,null,null,null,null,null,null,null,null,null,null,null,null,null,null,null,null,null,null,null,null,null,null,null,null,null,null,null,null,null,null,null,null,0]
["AUG232_43",null,null,null,null,null,null,null,null,null,null,null,null,null,null,null,null,null,null,null,null,null,null,null,null,null,null,null,null,null,null,null,null,null,null,null,null,null,null,null,null,0]
["AUG232_44",null,null,null,null,null,null,null,null,null,null,null,null,null,null,null,null,null,null,null,null,null,null,null,null,null,null,null,null,null,null,null,null,null,null,null,null,null,null,null,null,0]
["AUG232_45",null,null,null,null,null,null,null,null,null,null,null,null,null,null,null,null,null,null,null,null,null,null,null,null,null,null,null,null,null,null,null,null,null,null,null,null,null,null,null,null,0]
["AUG232_46",null,null,null,null,null,null,null,null,null,null,null,null,null,null,null,null,null,null,null,null,null,null,null,null,null,null,null,null,null,null,null,null,null,null,null,null,null,null,null,null,0]
["AUG232_47",null,null,null,null,null,null,null,null,null,null,null,null,null,null,null,null,null,null,null,null,null,null,null,null,null,null,null,null,null,null,null,null,null,null,null,null,null,null,null,null,0]
["AUG232_48",null,null,null,null,null,null,null,null,null,null,null,null,null,null,null,null,null,null,null,null,null,null,null,null,null,null,null,null,null,null,null,null,null,null,null,null,null,null,null,null,0]
["AUG232_49",null,null,null,null,null,null,null,null,null,null,null,null,null,null,null,null,null,null,null,null,null,null,null,null,null,null,null,null,null,null,null,null,null,null,null,null,null,null,null,null,0]
["AUG232_50",null,null,null,null,null,null,null,null,null,null,null,null,null,null,null,null,null,null,null,null,null,null,null,null,null,null,null,null,null,null,null,null,null,null,null,null,null,null,null,null,0]
["AUG232_51",null,null,null,null,null,null,null,null,null,null,null,null,null,null,null,null,null,null,null,null,null,null,null,null,null,null,null,null,null,null,null,null,null,null,null,null,null,null,null,null,0]
["AUG232_52",null,null,null,null,null,null,null,null,null,null,null,null,null,null,null,null,null,null,null,null,null,null,null,null,null,null,null,null,null,null,null,null,null,null,null,null,null,null,null,null,0]
["AUG232_53",null,null,null,null,null,null,null,null,null,null,null,null,null,null,null,null,null,null,null,null,null,null,null,null,null,null,null,null,null,null,null,null,null,null,null,null,null,null,null,null,0]
["AUG232_54",null,null,null,null,null,null,null,null,null,null,null,null,null,null,null,null,null,null,null,null,null,null,null,null,null,null,null,null,null,null,null,null,null,null,null,null,null,null,null,null,0]
[null,null,null,null,null,null,null,null,null,null,null,null,"Non material projects - [actual]"]
[null,null,null,null,null,null,null,null,null,null,null,null,"Non material projects - [forecast]"]
[]
[]
[null,"TABLE 2.3.3 - AUGEX DATA - HV/LV FEEDERS AND DISTRIBUTION SUBSTATIONS"]
[null,"NOTE: DNSP MUST PROVIDE EXPENDITURE INFORMATION ON AN AS INCURRED BASIS."]
[null,"Table 2.3.3.1 Descriptor Metrics"]
[]
[]
[null,null,null,null,null,null,null,null,null,null,null,null,"UNITS ADDED","UNITS UPGRADED",null,null,null,null,null,null,null,null,null,null,null,null,null,null,null,null,null,null,null,null,null,null,"UNITS UPGRADED"]
[null,"PROJECT TYPE",null,null,null,null,null,null,null,null,null,null,{"$f":"CRY","v":"2014-15"},{"$f":"CRY","v":"2014-15"},null,null,null,null,null,null,null,null,null,null,null,"PROJECT TYPE",null,"DNSP NAME","SERVICE CATEGORY","SERVICE SUB-CATEGORY","ASSET CATEGORY","ASSET SUB-CATEGORY","DATA TYPE","MEASUREMENT","DENOMINATION",null,"2014-15"]
["ED_AUG2331_00001","HV Feeder Augmentations - Overhead Lines\n(Circuit Line Length in KM)",null,null,null,null,null,null,null,null,null,null,0.97899999999999998,0,null,null,null,null,null,null,null,null,null,null,"ED_AUG2333_00001","HV Feeder Augmentations - Overhead Lines\n(Circuit Line Length in KM)",null,"DNSP NAME","AUGMENTATION","HV FEEDER PROJECTS","HV FEEDERS","OVERHEAD","DESCRIPTOR METRIC","KM UPGRADED","0's",null,{"$f":"N139","v":0}]
["ED_AUG2331_00002","HV Feeder Augmentations - Underground Cables\n(Circuit Line Length in KM)",null,null,null,null,null,null,null,null,null,null,21.763000000000002,0.99,null,null,null,null,null,null,null,null,null,null,"ED_AUG2333_00002","HV Feeder Augmentations - Underground Cables\n(Circuit Line Length in KM)",null,"DNSP NAME","AUGMENTATION","HV FEEDER PROJECTS","HV FEEDERS","UNDERGROUND","DESCRIPTOR METRIC","KM UPGRADED","0's",null,{"$f":"N140","v":0.99}]
["ED_AUG2331_00003","LV Feeder Augmentations - Overhead Lines\n(Circuit Line Length in KM)",null,null,null,null,null,null,null,null,null,null,1.8680000000000001,0.65,null,null,null,null,null,null,null,null,null,null,"ED_AUG2333_00003","LV Feeder Augmentations - Overhead Lines\n(Circuit Line Length in KM)",null,"DNSP NAME","AUGMENTATION","LV FEEDER PROJECTS","HV FEEDERS","OVERHEAD","DESCRIPTOR METRIC","KM UPGRADED","0's",null,0.65]
["ED_AUG2331_00004","LV Feeder Augmentations - Underground Cables\n(Circuit Line Length in KM)",null,null,null,null,null,null,null,null,null,null,70.855999999999995,2.48,null,null,null,null,null,null,null,null,null,null,"ED_AUG2333_00004","LV Feeder Augmentations - Underground Cables\n(Circuit Line Length in KM)",null,"DNSP NAME","AUGMENTATION","LV FEEDER PROJECTS","HV FEEDERS","UNDERGROUND","DESCRIPTOR METRIC","KM UPGRADED","0's",null,2.48]
["ED_AUG2331_00005","Distribution Substation Augmentations - Pole Mounted",null,null,null,null,null,null,null,null,null,null,15,12,null,null,null,null,null,null,null,null,null,null,"ED_AUG2333_00005","Distribution Substation Augmentations - Pole Mounted",null,"DNSP NAME","AUGMENTATION","SUBSTATION AUGMENTATIONS","SUBSTATIONS","POLE MOUNTED","DESCRIPTOR METRIC","VOLUME UPGRADED","0's",null,12]
["ED_AUG2331_00006","Distribution Substation Augmentations - Ground Mounted",null,null,null,null,null,null,null,null,null,null,64,24,null,null,null,null,null,null,null,null,null,null,"ED_AUG2333_00006","Distribution Substation Augmentations - Ground Mounted",null,"DNSP NAME","AUGMENTATION","SUBSTATION AUGMENTATIONS","SUBSTATIONS","GROUND MOUNTED","DESCRIPTOR METRIC","VOLUME UPGRADED","0's",null,24]
["ED_AUG2331_00007","Distribution Substation Augmentations - Indoor",null,null,null,null,null,null,null,null,null,null,6,0,null,null,null,null,null,null,null,null,null,null,"ED_AUG2333_00007","Distribution Substation Augmentations - Indoor",null,"DNSP NAME","AUGMENTATION","SUBSTATION AUGMENTATIONS","SUBSTATIONS","INDOOR","DESCRIPTOR METRIC","VOLUME UPGRADED","0's",null,0]
[]
[null,"Table 2.3.3.2 Cost Metrics"]
[]
[]
[null,null,null,null,null,null,null,null,null,null,null,null,"TOTAL DIRECT EXPENDITURE\n($0's)"]
[null,"PROJECT TYPE",null,null,null,null,null,null,null,null,null,null,{"$f":"CRY","v":"2014-15"}]
["ED_AUG2332_00001","HV Feeder Augmentations - Overhead Lines",null,null,null,null,null,null,null,null,null,null,{"$f":"'[2]2.3 Augex'!M152","v":0}]
["ED_AUG2332_00002","HV Feeder Augmentations - Underground Cables",null,null,null,null,null,null,null,null,null,null,{"$f":"'[2]2.3 Augex'!M153","v":820205.09}]
["ED_AUG2332_00003","HV Feeder Non-Material Projects",null,null,null,null,null,null,null,null,null,null,{"$f":"'[2]2.3 Augex'!M154","v":0}]
["ED_AUG2332_00004","LV Feeder Augmentations - Overhead Lines",null,null,null,null,null,null,null,null,null,null,0]
["ED_AUG2332_00005","LV Feeder Augmentations - Underground Cables",null,null,null,null,null,null,null,null,null,null,0]
["ED_AUG2332_00006","LV Feeder Non-Material Projects",null,null,null,null,null,null,null,null,null,null,0]
["ED_AUG2332_00007","Distribution Substation Augmentations - Pole Mounted",null,null,null,null,null,null,null,null,null,null,{"$f":"'[2]2.3 Augex'!M158","v":0}]
["ED_AUG2332_00008","Distribution Substation Augmentations - Ground Mounted",null,null,null,null,null,null,null,null,null,null,{"$f":"'[2]2.3 Augex'!M159","v":0}]
["ED_AUG2332_00009","Distribution Substation Augmentations - Indoor",null,null,null,null,null,null,null,null,null,null,{"$f":"'[2]2.3 Augex'!M160","v":0}]
[]
[]
[]
[]
[]
[]
[]
[null,"TABLE 2.3.4 - AUGEX DATA - TOTAL EXPENDITURE"]
[]
[null,"AUGMENTATION CAPEX",null,null,null,null,null,null,null,null,null,null,"Expenditure ($0's)"]
[null,"AS INCURRED ($0's)",null,null,null,null,null,null,null,null,null,null,{"$f":"CRY","v":"2014-15"}]
["ED_AUG234_00001","Subtransmission Substations, Switching Stations, Zone Substations",null,null,null,null,null,null,null,null,null,null,{"$f":"'[2]2.3 Augex'!M172","v":575815.04}]
["ED_AUG234_00002","Subtransmission Lines",null,null,null,null,null,null,null,null,null,null,{"$f":"'[2]2.3 Augex'!M173","v":1488800.88}]
["ED_AUG234_00003","HV Feeders",null,null,null,null,null,null,null,null,null,null,{"$f":"'[2]2.3 Augex'!M174","v":820205.09}]
["ED_AUG234_00004","HV Feeders - Land Purchases and Easements",null,null,null,null,null,null,null,null,null,null,{"$f":"'[2]2.3 Augex'!M175","v":0}]
["ED_AUG234_00005","Distribution Substations",null,null,null,null,null,null,null,null,null,null,{"$f":"'[2]2.3 Augex'!M176","v":0}]
["ED_AUG234_00006","Distribution Substations - Land Purchases And Easements",null,null,null,null,null,null,null,null,null,null,{"$f":"'[2]2.3 Augex'!M177","v":0}]
["ED_AUG234_00007","LV Feeders",null,null,null,null,null,null,null,null,null,null,{"$f":"'[2]2.3 Augex'!M178","v":0}]
["ED_AUG234_00008","LV Feeders - Land Purchases And Easements",null,null,null,null,null,null,null,null,null,null,{"$f":"'[2]2.3 Augex'!M179","v":0}]
["ED_AUG234_00009","Other Assets",null,null,null,null,null,null,null,null,null,null,{"$f":"'[2]2.3 Augex'!M180","v":0}]

{"sheet":"2.5 Connections","index":5,"n_rows":54,"n_cols":10,"rows_kept":54,"cut":false,"hidden":false,"merged":[]}
[null,{"$f":"(LOOKUP(dms_Model,dms_Model_List,dms_Worksheet_List))","v":"REGULATORY REPORTING STATEMENT"}]
[null,"Australian Distribution Co."]
[null,{"$f":"CONCATENATE(\"Category Analysis RIN response \",CRY)","v":"Category Analysis RIN response 2014-15"}]
[null,"2.5 CONNECTIONS"]
[]
[]
[]
[]
[null,"TABLE 2.5.1 DESCRIPTOR METRICS",null,null,null,"TABLE 2.5.2 COST METRICS BY CONNECTION CLASSIFICATION"]
[null,"<<<GROUP-ROW>>>"]
[]
[null,null,null,"VOLUMES AND EXPENDITURE",null,null,null,"EXPENDITURE\n($0's)",null,"VOLUMES\n(000s)"]
[null,"CONNECTION SUBCATEGORY","DESCRIPTOR METRIC",{"$f":"CRY","v":"2014-15"},null,"CONNECTION SUBCATEGORY","CONNECTION CLASSICIATION",{"$f":"CRY","v":"2014-15"},null,{"$f":"CRY","v":"2014-15"}]
["ED_CON251_00001","RESIDENTIAL","Underground connections  (0's)",{"$f":"'[2]2.5 Connections'!D14+'[3]2.5 Connections'!D14","v":3315},"ED_CON252_00001","RESIDENTIAL","Simple connection LV",{"$f":"'[2]2.5 Connections'!H14+'[3]2.5 Connections'!H14","v":1328686.7725181077},null,{"$f":"'[2]2.5 Connections'!J14+'[3]2.5 Connections'!J14","v":3.2530000000000001}]
["ED_CON251_00002",null,"Overhead connections  (0's)",{"$f":"'[2]2.5 Connections'!D15+'[3]2.5 Connections'!D15","v":0},"ED_CON252_00002",null,"Complex connection LV",{"$f":"'[2]2.5 Connections'!H15+'[3]2.5 Connections'!H15","v":2670537.89},null,{"$f":"'[2]2.5 Connections'!J15+'[3]2.5 Connections'!J15","v":6.2E-2}]
["ED_CON251_00003",null,"Distribution substation installed (MVA added)",{"$f":"'[2]2.5 Connections'!D16+'[3]2.5 Connections'!D16","v":23.588000000000001},"ED_CON252_00003",null,"Complex connection HV",{"$f":"'[2]2.5 Connections'!H16+'[3]2.5 Connections'!H16","v":0},null,{"$f":"'[2]2.5 Connections'!J16+'[3]2.5 Connections'!J16","v":0}]
["ED_CON251_00004",null,"Distribution substations installed (0's)",{"$f":"'[2]2.5 Connections'!D17+'[3]2.5 Connections'!D17","v":40.04},"ED_CON252_00004","COMMERCIAL/INDUSTRIAL","Simple connection LV",{"$f":"'[2]2.5 Connections'!H17+'[3]2.5 Connections'!H17","v":3300857.1274818927},null,{"$f":"'[2]2.5 Connections'!J17+'[3]2.5 Connections'!J17","v":0.19400000000000001}]
["ED_CON251_00005",null,"Distribution substation installed (total spend $0's)",{"$f":"'[2]2.5 Connections'!D18+'[3]2.5 Connections'!D18","v":830920.43},"ED_CON252_00005",null,"Complex connection HV (customer connected at LV, minor HV works)",{"$f":"'[2]2.5 Connections'!H18+'[3]2.5 Connections'!H18","v":3980814.8200000003},null,{"$f":"'[2]2.5 Connections'!J18+'[3]2.5 Connections'!J18","v":2.1000000000000001E-2}]
["ED_CON251_00006",null,"Augmentation HV (net circuit KM added)",{"$f":"'[2]2.5 Connections'!D19+'[3]2.5 Connections'!D19","v":9.7780000000000005},"ED_CON252_00006",null,"Complex connection HV (customer connected at LV, upstream asset works)",{"$f":"'[2]2.5 Connections'!H19+'[3]2.5 Connections'!H19","v":0},null,{"$f":"'[2]2.5 Connections'!J19+'[3]2.5 Connections'!J19","v":0}]
["ED_CON251_00007",null,"Augmentation HV (total spend $0's)",{"$f":"'[2]2.5 Connections'!D20+'[3]2.5 Connections'!D20","v":383221.17},"ED_CON252_00007",null,"Complex connection HV (customer connected at HV)",{"$f":"'[2]2.5 Connections'!H20+'[3]2.5 Connections'!H20","v":0},null,{"$f":"'[2]2.5 Connections'!J20+'[3]2.5 Connections'!J20","v":0}]
["ED_CON251_00008",null,"Augmentation LV (net circuit KM added)",{"$f":"'[2]2.5 Connections'!D21+'[3]2.5 Connections'!D21","v":16.774000000000001},"ED_CON252_00008",null,"Complex connection sub-transmission",{"$f":"'[2]2.5 Connections'!H21+'[3]2.5 Connections'!H21","v":0},null,{"$f":"'[2]2.5 Connections'!J21+'[3]2.5 Connections'!J21","v":0}]
["ED_CON251_00009",null,"Augmentation LV (total spend $0's)",{"$f":"'[2]2.5 Connections'!D22+'[3]2.5 Connections'!D22","v":2785083.0616008369},"ED_CON252_00009","SUBDIVISION","Complex connection LV",{"$f":"'[2]2.5 Connections'!H22+'[3]2.5 Connections'!H22","v":0},null,{"$f":"'[2]2.5 Connections'!J22+'[3]2.5 Connections'!J22","v":0}]
["ED_CON251_00010",null,"Mean days to connect residential customer with LV single phase connection (0's)",{"$f":"'[2]2.5 Connections'!D23+'[3]2.5 Connections'!D23","v":12.673},"ED_CON252_00010",null,"Complex connection HV (no upstream asset works)",{"$f":"'[2]2.5 Connections'!H23+'[3]2.5 Connections'!H23","v":6118737.3300000001},null,{"$f":"'[2]2.5 Connections'!J23+'[3]2.5 Connections'!J23","v":0.02}]
["ED_CON251_00011",null,"Volume of GSL breaches for residential customers (0's)",{"$f":"'[2]2.5 Connections'!D24+'[3]2.5 Connections'!D24","v":43},"ED_CON252_00011",null,"Complex connection HV (with upstream asset works)",{"$f":"'[2]2.5 Connections'!H24+'[3]2.5 Connections'!H24","v":698898.64},null,{"$f":"'[2]2.5 Connections'!J24+'[3]2.5 Connections'!J24","v":1E-3}]
["ED_CON251_00012",null,"Volume of customer complaints relating to connection services (0's)",{"$f":"'[2]2.5 Connections'!D25+'[3]2.5 Connections'!D25","v":141},"ED_CON252_00012","EMBEDDED GENERATION","Simple connection LV",{"$f":"'[2]2.5 Connections'!H25+'[3]2.5 Connections'!H25","v":26963.95},null,{"$f":"'[2]2.5 Connections'!J25+'[3]2.5 Connections'!J25","v":1.0999999999999999E-2}]
["ED_CON251_00013",null,"GSL payments ($0's)",{"$f":"'[2]2.5 Connections'!D26+'[3]2.5 Connections'!D26","v":2567},"ED_CON252_00013",null,"Complex connection HV (small capacity)",{"$f":"'[2]2.5 Connections'!H26+'[3]2.5 Connections'!H26","v":0},null,{"$f":"'[2]2.5 Connections'!J26+'[3]2.5 Connections'!J26","v":0}]
["ED_CON251_00014","COMMERCIAL/INDUSTRIAL","Underground connections  (0's)",{"$f":"'[2]2.5 Connections'!D27+'[3]2.5 Connections'!D27","v":215},"ED_CON252_00014",null,"Complex connection HV (large capacity)",{"$f":"'[2]2.5 Connections'!H27+'[3]2.5 Connections'!H27","v":395812.4},null,{"$f":"'[2]2.5 Connections'!J27+'[3]2.5 Connections'!J27","v":1E-3}]
["ED_CON251_00015",null,"Overhead connections  (0's)",{"$f":"'[2]2.5 Connections'!D28+'[3]2.5 Connections'!D28","v":0}]
["ED_CON251_00016",null,"Distribution substation installed (MVA added)",{"$f":"'[2]2.5 Connections'!D29+'[3]2.5 Connections'!D29","v":45.686}]
["ED_CON251_00017",null,"Distribution substations installed (0's)",{"$f":"'[2]2.5 Connections'!D30+'[3]2.5 Connections'!D30","v":58}]
["ED_CON251_00018",null,"Distribution substation installed total spend ($0's)",{"$f":"'[2]2.5 Connections'!D31+'[3]2.5 Connections'!D31","v":4449922.8517855704}]
["ED_CON251_00019",null,"Augmentation HV (net circuit KM added)",{"$f":"'[2]2.5 Connections'!D32+'[3]2.5 Connections'!D32","v":14.994}]
["ED_CON251_00020",null,"Augmentation HV (total spend $0's)",{"$f":"'[2]2.5 Connections'!D33+'[3]2.5 Connections'!D33","v":1347366.020356701}]
["ED_CON251_00021",null,"Augmentation LV (net circuit KM added)",{"$f":"'[2]2.5 Connections'!D34+'[3]2.5 Connections'!D34","v":12.012}]
["ED_CON251_00022",null,"Augmentation LV (total spend $0's)",{"$f":"'[2]2.5 Connections'!D35+'[3]2.5 Connections'!D35","v":1484383.0778577281}]
["ED_CON251_00023","SUBDIVISION","Underground connections  (0's)",{"$f":"'[2]2.5 Connections'!D36+'[3]2.5 Connections'!D36","v":21}]
["ED_CON251_00024",null,"Overhead connections  (0's)",{"$f":"'[2]2.5 Connections'!D37+'[3]2.5 Connections'!D37","v":0}]
["ED_CON251_00025",null,"Distribution substation installed (MVA added)",{"$f":"'[2]2.5 Connections'!D38+'[3]2.5 Connections'!D38","v":19.57}]
["ED_CON251_00026",null,"Distribution substations installed (0's)",{"$f":"'[2]2.5 Connections'!D39+'[3]2.5 Connections'!D39","v":47}]
["ED_CON251_00027",null,"Distribution substation installed (total spend $0's)",{"$f":"'[2]2.5 Connections'!D40+'[3]2.5 Connections'!D40","v":1450662.48}]
["ED_CON251_00028",null,"Augmentation HV (net circuit KM added)",{"$f":"'[2]2.5 Connections'!D41+'[3]2.5 Connections'!D41","v":38.137999999999998}]
["ED_CON251_00029",null,"Augmentation HV (total spend $0's)",{"$f":"'[2]2.5 Connections'!D42+'[3]2.5 Connections'!D42","v":1258735.1200000001}]
["ED_CON251_00030",null,"Augmentation LV (net circuit KM added)",{"$f":"'[2]2.5 Connections'!D43+'[3]2.5 Connections'!D43","v":102.084}]
["ED_CON251_00031",null,"Augmentation LV (total spend $0's)",{"$f":"'[2]2.5 Connections'!D44+'[3]2.5 Connections'!D44","v":4108238.37}]
["ED_CON251_00032",null,"Cost per lot ($)",{"$f":"'[2]2.5 Connections'!D45+'[3]2.5 Connections'!D45","v":2894.962}]
["ED_CON251_00033","EMBEDDED GENERATION","Underground connections  (0's)",{"$f":"'[2]2.5 Connections'!D46+'[3]2.5 Connections'!D46","v":12}]
["ED_CON251_00034",null,"Overhead connections  (0's)",{"$f":"'[2]2.5 Connections'!D47+'[3]2.5 Connections'!D47","v":0}]
["ED_CON251_00035",null,"Distribution substation installed (MVA added)",{"$f":"'[2]2.5 Connections'!D48+'[3]2.5 Connections'!D48","v":0}]
["ED_CON251_00036",null,"Distribution substations installed (0's)",{"$f":"'[2]2.5 Connections'!D49+'[3]2.5 Connections'!D49","v":0}]
["ED_CON251_00037",null,"Distribution substation installed (total spend $0's)",{"$f":"'[2]2.5 Connections'!D50+'[3]2.5 Connections'!D50","v":0}]
["ED_CON251_00038",null,"Augmentation HV (net circuit KM added)",{"$f":"'[2]2.5 Connections'!D51+'[3]2.5 Connections'!D51","v":1.1599999999999999}]
["ED_CON251_00039",null,"Augmentation HV (total spend $0's)",{"$f":"'[2]2.5 Connections'!D52+'[3]2.5 Connections'!D52","v":395812.4}]
["ED_CON251_00040",null,"Augmentation LV (net circuit KM added)",{"$f":"'[2]2.5 Connections'!D53+'[3]2.5 Connections'!D53","v":0}]
["ED_CON251_00041",null,"Augmentation LV (total spend $0's)",{"$f":"'[2]2.5 Connections'!D54+'[3]2.5 Connections'!D54","v":26963.95}]

{"sheet":"2.6 Non-network","index":6,"n_rows":55,"n_cols":14,"rows_kept":55,"cut":false,"hidden":false,"merged":[[33,11,37,11],[13,1,18,1],[13,11,17,11],[18,11,22,11],[23,11,27,11],[28,11,32,11]]}
[null,{"$f":"(LOOKUP(dms_Model,dms_Model_List,dms_Worksheet_List))","v":"REGULATORY REPORTING STATEMENT"}]
[null,"Australian Distribution Co."]
[null,{"$f":"CONCATENATE(\"Category Analysis RIN response \",CRY)","v":"Category Analysis RIN response 2014-15"}]
[null,"2.6 NON NETWORK EXPENDITURE"]
[]
[]
[]
[]
[null,"TABLE 2.6.1 NON-NETWORK EXPENDITURE",null,null,null,null,"TABLE 2.6.2 ANNUAL DESCRIPTOR METRICS - IT & COMMUNICATIONS EXPENDITURE",null,null,null,"TABLE 2.6.3 ANNUAL DESCRIPTOR METRICS - MOTOR VEHICLES"]
[]
[]
[null,null,null,null,"EXPENDITURE\n($0's)",null,null,null,"VOLUMES",null,null,"ASSET REPORTING CATEGORY",null,"VOLUMES / %"]
["ED_NON261_00001","SERVICE SUBCATEGORY","ASSET CATEGORY","ASSET REPORTING CATEGORY",{"$f":"CRY","v":"2014-15"},null,"NON-NETWORK CATEGORY","DESCRIPTOR METRIC",{"$f":"CRY","v":"2014-15"},null,"NON-NETWORK CATEGORY","ASSET CATEGORY","DESCRIPTOR METRIC",{"$f":"CRY","v":"2014-15"}]
["ED_NON261_00002","IT & COMMUNICATIONS","Client device expenditure","Opex ",{"$f":"'[2]2.6 Non-network'!E14+'[3]2.6 Non-network'!E14","v":461294.66000000015},"ED_NON262_00001","IT & COMMUNICATIONS","Employee numbers",{"$f":"'[2]2.6 Non-network'!I14+'[3]2.6 Non-network'!I14","v":507},"ED_NON263_00001","MOTOR VEHICLES","CAR","Average kilometres travelled (0's)",10600]
["ED_NON261_00003",null,null,"Capex ",{"$f":"'[2]2.6 Non-network'!E15+'[3]2.6 Non-network'!E15","v":602229.01},"ED_NON262_00002",null,"User numbers",{"$f":"'[2]2.6 Non-network'!I15+'[3]2.6 Non-network'!I15","v":623},"ED_NON263_00002",null,null,"Number purchased",0]
["ED_NON261_00004",null,"Recurrent expenditure","Opex ",{"$f":"'[2]2.6 Non-network'!E16+'[3]2.6 Non-network'!E16","v":3427314.95},"ED_NON262_00003",null,"Number of devices",{"$f":"'[2]2.6 Non-network'!I16+'[3]2.6 Non-network'!I16","v":625},"ED_NON263_00003",null,null,"Number leased",15]
["ED_NON261_00005",null,null,"Capex ",{"$f":"'[2]2.6 Non-network'!E17+'[3]2.6 Non-network'!E17","v":0},null,null,null,null,"ED_NON263_00004",null,null,"Number in fleet",15]
["ED_NON261_00006",null,"Non-recurrent expenditure","Opex ",{"$f":"'[2]2.6 Non-network'!E18+'[3]2.6 Non-network'!E18","v":3482200.48},null,null,null,null,"ED_NON263_00005",null,null,"Proportion of total fleet expenditure allocated as regulatory expenditure (%)",1]
["ED_NON261_00007",null,null,"Capex ",{"$f":"'[2]2.6 Non-network'!E19+'[3]2.6 Non-network'!E19","v":15648515.039999999},null,null,null,null,"ED_NON263_00006",null,"LIGHT COMMERCIAL VEHICLE","Average kilometres travelled (0's)",19425]
["ED_NON261_00008","MOTOR VEHICLES","Car","Opex ",{"$f":"'[2]2.6 Non-network'!E20+'[3]2.6 Non-network'!E20","v":90925.54279265173},null,null,null,null,"ED_NON263_00007",null,null,"Number purchased",49]
["ED_NON261_00009",null,null,"Capex ",{"$f":"'[2]2.6 Non-network'!E21+'[3]2.6 Non-network'!E21","v":190323.32000000036},null,null,null,null,"ED_NON263_00008",null,null,"Number leased",75]
["ED_NON261_00010",null,"Light commercial vehicle","Opex ",{"$f":"'[2]2.6 Non-network'!E22+'[3]2.6 Non-network'!E22","v":2023374.6107300937},null,null,null,null,"ED_NON263_00009",null,null,"Number in fleet",124]
["ED_NON261_00011",null,null,"Capex ",{"$f":"'[2]2.6 Non-network'!E23+'[3]2.6 Non-network'!E23","v":1708794.7599999998},null,null,null,null,"ED_NON263_00010",null,null,"Proportion of total fleet expenditure allocated as regulatory expenditure (%)",0.93]
["ED_NON261_00012",null,"Elevated work platform (LCV)  ","Opex ",{"$f":"'[2]2.6 Non-network'!E24+'[3]2.6 Non-network'!E24","v":37513.478244350437},null,null,null,null,"ED_NON263_00011",null,"ELEVATED WORK PLATFORM (LCV) ","Average kilometres travelled (0's)",22791]
["ED_NON261_00013",null,null,"Capex ",{"$f":"'[2]2.6 Non-network'!E25+'[3]2.6 Non-network'!E25","v":27349.71},null,null,null,null,"ED_NON263_00012",null,null,"Number purchased",4]
["ED_NON261_00014",null,"Elevated work platform (HCV)","Opex ",{"$f":"'[2]2.6 Non-network'!E26+'[3]2.6 Non-network'!E26","v":240652.66987330455},null,null,null,null,"ED_NON263_00013",null,null,"Number leased",3]
["ED_NON261_00015",null,null,"Capex ",{"$f":"'[2]2.6 Non-network'!E27+'[3]2.6 Non-network'!E27","v":557408.97},null,null,null,null,"ED_NON263_00014",null,null,"Number in fleet",7]
["ED_NON261_00016",null,"Heavy commercial vehicle","Opex ",{"$f":"'[2]2.6 Non-network'!E28+'[3]2.6 Non-network'!E28","v":1431009.5338543127},null,null,null,null,"ED_NON263_00015",null,null,"Proportion of total fleet expenditure allocated as regulatory expenditure (%)",1]
["ED_NON261_00017",null,null,"Capex ",{"$f":"'[2]2.6 Non-network'!E29+'[3]2.6 Non-network'!E29","v":2402609.7799999998},null,null,null,null,"ED_NON263_00016",null,"ELEVATED WORK PLATFORM (HCV)","Average kilometres travelled (0's)",11933]
["ED_NON261_00018","BUILDINGS AND PROPERTY","Total buildings and property expenditure","Opex ",{"$f":"'[2]2.6 Non-network'!E30+'[3]2.6 Non-network'!E30","v":1189139.58},null,null,null,null,"ED_NON263_00017",null,null,"Number purchased",2]
["ED_NON261_00019",null,null,"Capex ",{"$f":"'[2]2.6 Non-network'!E31+'[3]2.6 Non-network'!E31","v":1661887.2500000002},null,null,null,null,"ED_NON263_00018",null,null,"Number leased",2]
["ED_NON261_00020","OTHER","Other expenditure","Opex ",{"$f":"'[2]2.6 Non-network'!E32+'[3]2.6 Non-network'!E32","v":0},null,null,null,null,"ED_NON263_00019",null,null,"Number in fleet",4]
["ED_NON261_00021",null,null,"Capex ",{"$f":"'[2]2.6 Non-network'!E33+'[3]2.6 Non-network'!E33","v":285073.82999999973},null,null,null,null,"ED_NON263_00020",null,null,"Proportion of total fleet expenditure allocated as regulatory expenditure (%)",0.81]
["ED_NON261_00022","OTHER - DNSP nominated","< Enter description for nominated category > ","Opex ",{"$f":"'[2]2.6 Non-network'!E34+'[3]2.6 Non-network'!E34","v":19637.414505287146},null,null,null,null,"ED_NON263_00021",null,"HEAVY COMMERCIAL VEHICLE ","Average kilometres travelled (0's)",14596]
["ED_NON261_00023",null,null,"Capex ",{"$f":"'[2]2.6 Non-network'!E35+'[3]2.6 Non-network'!E35","v":19158.560000000001},null,null,null,null,"ED_NON263_00022",null,null,"Number purchased",22]
["ED_NON261_00024",null,null,"Opex ",{"$f":"'[2]2.6 Non-network'!E36+'[3]2.6 Non-network'!E36","v":0},null,null,null,null,"ED_NON263_00023",null,null,"Number leased",22]
["ED_NON261_00025",null,null,"Capex ",{"$f":"'[2]2.6 Non-network'!E37+'[3]2.6 Non-network'!E37","v":418485.77622221131},null,null,null,null,"ED_NON263_00024",null,null,"Number in fleet",44]
["ED_NON261_00026",null,null,"Opex ",{"$f":"'[2]2.6 Non-network'!E38+'[3]2.6 Non-network'!E38","v":0},null,null,null,null,"ED_NON263_00025",null,null,"Proportion of total fleet expenditure allocated as regulatory expenditure (%)",1]
["ED_NON261_00027",null,null,"Capex ",{"$f":"'[2]2.6 Non-network'!E39+'[3]2.6 Non-network'!E39","v":1154206.0582789541}]
["ED_NON261_00028",null,null,"Opex ",{"$f":"'[2]2.6 Non-network'!E40+'[3]2.6 Non-network'!E40","v":0}]
["ED_NON261_00029",null,null,"Capex ",{"$f":"'[2]2.6 Non-network'!E41+'[3]2.6 Non-network'!E41","v":0}]
["ED_NON261_00030",null,null,"Opex ",{"$f":"'[2]2.6 Non-network'!E42+'[3]2.6 Non-network'!E42","v":0}]
["ED_NON261_00031",null,null,"Capex ",{"$f":"'[2]2.6 Non-network'!E43+'[3]2.6 Non-network'!E43","v":0}]
["ED_NON261_00032",null,null,"Opex ",{"$f":"'[2]2.6 Non-network'!E44+'[3]2.6 Non-network'!E44","v":0}]
["ED_NON261_00033",null,null,"Capex ",{"$f":"'[2]2.6 Non-network'!E45+'[3]2.6 Non-network'!E45","v":0}]
["ED_NON261_00034",null,null,"Opex ",{"$f":"'[2]2.6 Non-network'!E46+'[3]2.6 Non-network'!E46","v":0}]
["ED_NON261_00035",null,null,"Capex ",{"$f":"'[2]2.6 Non-network'!E47+'[3]2.6 Non-network'!E47","v":0}]
["ED_NON261_00036",null,null,"Opex ",{"$f":"'[2]2.6 Non-network'!E48+'[3]2.6 Non-network'!E48","v":0}]
["ED_NON261_00037",null,null,"Capex ",{"$f":"'[2]2.6 Non-network'!E49+'[3]2.6 Non-network'!E49","v":0}]
["ED_NON261_00038",null,null,"Opex ",{"$f":"'[2]2.6 Non-network'!E50+'[3]2.6 Non-network'!E50","v":0}]
["ED_NON261_00039",null,null,"Capex ",{"$f":"'[2]2.6 Non-network'!E51+'[3]2.6 Non-network'!E51","v":0}]
["ED_NON261_00040",null,null,"Opex ",{"$f":"'[2]2.6 Non-network'!E52+'[3]2.6 Non-network'!E52","v":0}]
["ED_NON261_00041",null,null,"Capex ",{"$f":"'[2]2.6 Non-network'!E53+'[3]2.6 Non-network'!E53","v":0}]
["ED_NON261_00042",null,null,"Opex ",{"$f":"'[2]2.6 Non-network'!E54+'[3]2.6 Non-network'!E54","v":0}]
["ED_NON261_00043",null,null,"Capex ",{"$f":"'[2]2.6 Non-network'!E55+'[3]2.6 Non-network'!E55","v":0}]

{"sheet":"2.7 Vegetation management","index":7,"n_rows":226,"n_cols":16,"rows_kept":226,"cut":false,"hidden":false,"merged":[[10,8,21,8]]}
[null,{"$f":"(LOOKUP(dms_Model,dms_Model_List,dms_Worksheet_List))","v":"REGULATORY REPORTING STATEMENT"}]
[null,"Australian Distribution Co."]
[null,{"$f":"CONCATENATE(\"Category Analysis RIN response \",CRY)","v":"Category Analysis RIN response 2014-15"}]
[null,"2.7 VEGETATION MANAGEMENT"]
[]
[null,"TABLE 2.7.3 - DESCRIPTOR METRICS ACROSS ALL ZONES - UNPLANNED VEGETATION EVENTS",null,null,null,null,null,null,"TABLE 2.7.1 - DESCRIPTOR METRICS BY ZONE",null,null,null,null,"TABLE 2.7.2 - EXPENDITURE METRICS BY ZONE"]
[]
[]
[null,null,"VOLUMES",null,null,null,null,null,null,null,null,"VOLUMES",null,null,null,"EXPENDITURE\n($0's)"]
[null,"DESCRIPTOR METRIC",{"$f":"CRY","v":"2014-15"},null,null,null,null,null,"ZONES","ASSET","ASSET SUBCATEGORY",{"$f":"CRY","v":"2014-15"},null,"ZONES","SERVICE SUBCATEGORY",{"$f":"CRY","v":"2014-15"}]
["ED_VEG273_00001","Number of fire starts caused by vegetation grow-ins (NSP responsibility) (0's)",0,null,null,null,null,"ED_VEG271_00001","ZONE 1","Route line length within zone (KM)","Urban and CBD",{"$f":"'[2]2.7 Vegetation management'!L11+'[3]2.7 Vegetation management'!L11","v":1485.4},"ED_VEG272_00001",{"$f":"I11","v":"ZONE 1"},"Tree trimming (excluding hazard trees) ",{"$f":"'[2]2.7 Vegetation management'!P11+'[3]2.7 Vegetation management'!P11","v":562762.36}]
["ED_VEG273_00002","Number of fire starts caused by vegetation blow-ins and fall-ins (NSP responsibility) (0's)",0,null,null,null,null,"ED_VEG271_00002",null,null,"Rural",{"$f":"'[2]2.7 Vegetation management'!L12+'[3]2.7 Vegetation management'!L12","v":0},"ED_VEG272_00002",null,"Hazard tree cutting ",{"$f":"'[2]2.7 Vegetation management'!P12+'[3]2.7 Vegetation management'!P12","v":205065.94}]
["ED_VEG273_00003","Number of fire starts caused by vegetation grow-ins (other party responsibility) (0's)",0,null,null,null,null,"ED_VEG271_00003",null,"Number of maintenance spans (0's)","Urban and CBD",{"$f":"'[2]2.7 Vegetation management'!L13+'[3]2.7 Vegetation management'!L13","v":5415},"ED_VEG272_00003",null,"Ground clearance ",{"$f":"'[2]2.7 Vegetation management'!P13+'[3]2.7 Vegetation management'!P13","v":0}]
["ED_VEG273_00004","Number of fire starts caused by vegetation blow-ins and fall-ins (other party responsibility) (0's)",0,null,null,null,null,"ED_VEG271_00004",null,null,"Rural",{"$f":"'[2]2.7 Vegetation management'!L14+'[3]2.7 Vegetation management'!L14","v":0},"ED_VEG272_00004",null,"Vegetation corridor clearance ",{"$f":"'[2]2.7 Vegetation management'!P14+'[3]2.7 Vegetation management'!P14","v":0}]
[null,null,null,null,null,null,null,"ED_VEG271_00005",null,"Total length of maintenance spans (KM)","Urban and CBD",{"$f":"'[2]2.7 Vegetation management'!L15+'[3]2.7 Vegetation management'!L15","v":201.00139999999999},"ED_VEG272_00005",null,"Inspection ",{"$f":"'[2]2.7 Vegetation management'!P15+'[3]2.7 Vegetation management'!P15","v":993058.96}]
[null,null,null,null,null,null,null,"ED_VEG271_00006",null,null,"Rural",{"$f":"'[2]2.7 Vegetation management'!L16+'[3]2.7 Vegetation management'!L16","v":0},"ED_VEG272_00006",null,"Audit ",{"$f":"'[2]2.7 Vegetation management'!P16+'[3]2.7 Vegetation management'!P16","v":0}]
[null,null,null,null,null,null,null,"ED_VEG271_00007",null,"Length of vegetation corridors (KM)","Urban and CBD",{"$f":"'[2]2.7 Vegetation management'!L17+'[3]2.7 Vegetation management'!L17","v":1188.32},"ED_VEG272_00007",null,"Contractor liaison expenditure ",{"$f":"'[2]2.7 Vegetation management'!P17+'[3]2.7 Vegetation management'!P17","v":0}]
[null,null,null,null,null,null,null,"ED_VEG271_00008",null,null,"Rural",{"$f":"'[2]2.7 Vegetation management'!L18+'[3]2.7 Vegetation management'!L18","v":0},"ED_VEG272_00008",null,"Tree replacement program costs ",{"$f":"'[2]2.7 Vegetation management'!P18+'[3]2.7 Vegetation management'!P18","v":0}]
[null,null,null,null,null,null,null,"ED_VEG271_00009",null,"Average number of trees per maintenance span (0's)","Urban and CBD",{"$f":"'[2]2.7 Vegetation management'!L19+'[3]2.7 Vegetation management'!L19","v":1.34},"ED_VEG272_00009",null,"Other vegetation management costs not specified in sheet ",{"$f":"'[2]2.7 Vegetation management'!P19+'[3]2.7 Vegetation management'!P19","v":0}]
[null,null,null,null,null,null,null,"ED_VEG271_00010",null,null,"Rural",{"$f":"'[2]2.7 Vegetation management'!L20+'[3]2.7 Vegetation management'!L20","v":0},"ED_VEG272_00010",{"$f":"I23","v":"ZONE 2"},"Tree trimming (excluding hazard trees) ",{"$f":"'[2]2.7 Vegetation management'!P20+'[3]2.7 Vegetation management'!P20","v":458841.13}]
[null,null,null,null,null,null,null,"ED_VEG271_00011",null,"Average frequency of cutting cycle (years)","Urban and CBD",{"$f":"'[2]2.7 Vegetation management'!L21+'[3]2.7 Vegetation management'!L21","v":3},"ED_VEG272_00011",null,"Hazard tree cutting ",{"$f":"'[2]2.7 Vegetation management'!P21+'[3]2.7 Vegetation management'!P21","v":0}]
[null,null,null,null,null,null,null,"ED_VEG271_00012",null,null,"Rural",{"$f":"'[2]2.7 Vegetation management'!L22+'[3]2.7 Vegetation management'!L22","v":0},"ED_VEG272_00012",null,"Ground clearance ",{"$f":"'[2]2.7 Vegetation management'!P22+'[3]2.7 Vegetation management'!P22","v":0}]
[null,null,null,null,null,null,null,"ED_VEG271_00013","ZONE 2","Route line length within zone (KM)","Urban and CBD",{"$f":"'[2]2.7 Vegetation management'!L23+'[3]2.7 Vegetation management'!L23","v":0},"ED_VEG272_00013",null,"Vegetation corridor clearance ",{"$f":"'[2]2.7 Vegetation management'!P23+'[3]2.7 Vegetation management'!P23","v":0}]
[null,null,null,null,null,null,null,"ED_VEG271_00014",null,null,"Rural",{"$f":"'[2]2.7 Vegetation management'!L24+'[3]2.7 Vegetation management'!L24","v":820.6},"ED_VEG272_00014",null,"Inspection ",{"$f":"'[2]2.7 Vegetation management'!P24+'[3]2.7 Vegetation management'!P24","v":226161.96}]
[null,null,null,null,null,null,null,"ED_VEG271_00015",null,"Number of maintenance spans (0's)","Urban and CBD",{"$f":"'[2]2.7 Vegetation management'!L25+'[3]2.7 Vegetation management'!L25","v":0},"ED_VEG272_00015",null,"Audit ",{"$f":"'[2]2.7 Vegetation management'!P25+'[3]2.7 Vegetation management'!P25","v":0}]
[null,null,null,null,null,null,null,"ED_VEG271_00016",null,null,"Rural",{"$f":"'[2]2.7 Vegetation management'!L26+'[3]2.7 Vegetation management'!L26","v":1082},"ED_VEG272_00016",null,"Contractor liaison expenditure ",{"$f":"'[2]2.7 Vegetation management'!P26+'[3]2.7 Vegetation management'!P26","v":0}]
[null,null,null,null,null,null,null,"ED_VEG271_00017",null,"Total length of maintenance spans (KM)","Urban and CBD",{"$f":"'[2]2.7 Vegetation management'!L27+'[3]2.7 Vegetation management'!L27","v":0},"ED_VEG272_00017",null,"Tree replacement program costs ",{"$f":"'[2]2.7 Vegetation management'!P27+'[3]2.7 Vegetation management'!P27","v":0}]
[null,null,null,null,null,null,null,"ED_VEG271_00018",null,null,"Rural",{"$f":"'[2]2.7 Vegetation management'!L28+'[3]2.7 Vegetation management'!L28","v":104.223},"ED_VEG272_00018",null,"Other vegetation management costs not specified in sheet ",{"$f":"'[2]2.7 Vegetation management'!P28+'[3]2.7 Vegetation management'!P28","v":0}]
[null,null,null,null,null,null,null,"ED_VEG271_00019",null,"Length of vegetation corridors (KM)","Urban and CBD",{"$f":"'[2]2.7 Vegetation management'!L29+'[3]2.7 Vegetation management'!L29","v":0},"ED_VEG272_00019",{"$f":"I35","v":"ZONE 3"},"Tree trimming (excluding hazard trees) "]
[null,null,null,null,null,null,null,"ED_VEG271_00020",null,null,"Rural",{"$f":"'[2]2.7 Vegetation management'!L30+'[3]2.7 Vegetation management'!L30","v":492.36},"ED_VEG272_00020",null,"Hazard tree cutting "]
[null,null,null,null,null,null,null,"ED_VEG271_00021",null,"Average number of trees per maintenance span (0's)","Urban and CBD",{"$f":"'[2]2.7 Vegetation management'!L31+'[3]2.7 Vegetation management'!L31","v":0},"ED_VEG272_00021",null,"Ground clearance "]
[null,null,null,null,null,null,null,"ED_VEG271_00022",null,null,"Rural",{"$f":"'[2]2.7 Vegetation management'!L32+'[3]2.7 Vegetation management'!L32","v":1.9890000000000001},"ED_VEG272_00022",null,"Vegetation corridor clearance "]
[null,null,null,null,null,null,null,"ED_VEG271_00023",null,"Average frequency of cutting cycle (years)","Urban and CBD",{"$f":"'[2]2.7 Vegetation management'!L33+'[3]2.7 Vegetation management'!L33","v":0},"ED_VEG272_00023",null,"Inspection "]
[null,null,null,null,null,null,null,"ED_VEG271_00024",null,null,"Rural",{"$f":"'[2]2.7 Vegetation management'!L34+'[3]2.7 Vegetation management'!L34","v":1},"ED_VEG272_00024",null,"Audit "]
[null,null,null,null,null,null,null,"ED_VEG271_00025","ZONE 3","Route line length within zone (KM)","Urban and CBD","","ED_VEG272_00025",null,"Contractor liaison expenditure "]
[null,null,null,null,null,null,null,"ED_VEG271_00026",null,null,"Rural",null,"ED_VEG272_00026",null,"Tree replacement program costs "]
[null,null,null,null,null,null,null,"ED_VEG271_00027",null,"Number of maintenance spans (0's)","Urban and CBD",null,"ED_VEG272_00027",null,"Other vegetation management costs not specified in sheet "]
[null,null,null,null,null,null,null,"ED_VEG271_00028",null,null,"Rural","","ED_VEG272_00028",{"$f":"I47","v":"ZONE 4"},"Tree trimming (excluding hazard trees) "]
[null,null,null,null,null,null,null,"ED_VEG271_00029",null,"Total length of maintenance spans (KM)","Urban and CBD","","ED_VEG272_00029",null,"Hazard tree cutting "]
[null,null,null,null,null,null,null,"ED_VEG271_00030",null,null,"Rural","","ED_VEG272_00030",null,"Ground clearance "]
[null,null,null,null,null,null,null,"ED_VEG271_00031",null,"Length of vegetation corridors (KM)","Urban and CBD","","ED_VEG272_00031",null,"Vegetation corridor clearance "]
[null,null,null,null,null,null,null,"ED_VEG271_00032",null,null,"Rural","","ED_VEG272_00032",null,"Inspection "]
[null,null,null,null,null,null,null,"ED_VEG271_00033",null,"Average number of trees per maintenance span (0's)","Urban and CBD","","ED_VEG272_00033",null,"Audit "]
[null,null,null,null,null,null,null,"ED_VEG271_00034",null,null,"Rural","","ED_VEG272_00034",null,"Contractor liaison expenditure "]
[null,null,null,null,null,null,null,"ED_VEG271_00035",null,"Average frequency of cutting cycle (years)","Urban and CBD","","ED_VEG272_00035",null,"Tree replacement program costs "]
[null,null,null,null,null,null,null,"ED_VEG271_00036",null,null,"Rural","","ED_VEG272_00036",null,"Other vegetation management costs not specified in sheet "]
[null,null,null,null,null,null,null,"ED_VEG271_00037","ZONE 4","Route line length within zone (KM)","Urban and CBD","","ED_VEG272_00037",{"$f":"I59","v":"ZONE 5"},"Tree trimming (excluding hazard trees) ",""]
[null,null,null,null,null,null,null,"ED_VEG271_00038",null,null,"Rural","","ED_VEG272_00038",null,"Hazard tree cutting ",""]
[null,null,null,null,null,null,null,"ED_VEG271_00039",null,"Number of maintenance spans (0's)","Urban and CBD","","ED_VEG272_00039",null,"Ground clearance ",""]
[null,null,null,null,null,null,null,"ED_VEG271_00040",null,null,"Rural","","ED_VEG272_00040",null,"Vegetation corridor clearance ",""]
[null,null,null,null,null,null,null,"ED_VEG271_00041",null,"Total length of maintenance spans (KM)","Urban and CBD","","ED_VEG272_00041",null,"Inspection ",""]
[null,null,null,null,null,null,null,"ED_VEG271_00042",null,null,"Rural","","ED_VEG272_00042",null,"Audit ",""]
[null,null,null,null,null,null,null,"ED_VEG271_00043",null,"Length of vegetation corridors (KM)","Urban and CBD","","ED_VEG272_00043",null,"Contractor liaison expenditure ",""]
[null,null,null,null,null,null,null,"ED_VEG271_00044",null,null,"Rural","","ED_VEG272_00044",null,"Tree replacement program costs ",""]
[null,null,null,null,null,null,null,"ED_VEG271_00045",null,"Average number of trees per maintenance span (0's)","Urban and CBD","","ED_VEG272_00045",null,"Other vegetation management costs not specified in sheet ",""]
[null,null,null,null,null,null,null,"ED_VEG271_00046",null,null,"Rural","","ED_VEG272_00046",{"$f":"I71","v":"ZONE 6"},"Tree trimming (excluding hazard trees) ",""]
[null,null,null,null,null,null,null,"ED_VEG271_00047",null,"Average frequency of cutting cycle (years)","Urban and CBD","","ED_VEG272_00047",null,"Hazard tree cutting ",""]
[null,null,null,null,null,null,null,"ED_VEG271_00048",null,null,"Rural","","ED_VEG272_00048",null,"Ground clearance ",""]
[null,null,null,null,null,null,null,"ED_VEG271_00049","ZONE 5","Route line length within zone (KM)","Urban and CBD","","ED_VEG272_00049",null,"Vegetation corridor clearance ",""]
[null,null,null,null,null,null,null,"ED_VEG271_00050",null,null,"Rural","","ED_VEG272_00050",null,"Inspection ",""]
[null,null,null,null,null,null,null,"ED_VEG271_00051",null,"Number of maintenance spans (0's)","Urban and CBD","","ED_VEG272_00051",null,"Audit ",""]
[null,null,null,null,null,null,null,"ED_VEG271_00052",null,null,"Rural","","ED_VEG272_00052",null,"Contractor liaison expenditure ",""]
[null,null,null,null,null,null,null,"ED_VEG271_00053",null,"Total length of maintenance spans (KM)","Urban and CBD","","ED_VEG272_00053",null,"Tree replacement program costs ",""]
[null,null,null,null,null,null,null,"ED_VEG271_00054",null,null,"Rural","","ED_VEG272_00054",null,"Other vegetation management costs not specified in sheet ",""]
[null,null,null,null,null,null,null,"ED_VEG271_00055",null,"Length of vegetation corridors (KM)","Urban and CBD","","ED_VEG272_00055",{"$f":"I83","v":"ZONE 7"},"Tree trimming (excluding hazard trees) ",""]
[null,null,null,null,null,null,null,"ED_VEG271_00056",null,null,"Rural","","ED_VEG272_00056",null,"Hazard tree cutting ",""]
[null,null,null,null,null,null,null,"ED_VEG271_00057",null,"Average number of trees per maintenance span (0's)","Urban and CBD","","ED_VEG272_00057",null,"Ground clearance ",""]
[null,null,null,null,null,null,null,"ED_VEG271_00058",null,null,"Rural","","ED_VEG272_00058",null,"Vegetation corridor clearance ",""]
[null,null,null,null,null,null,null,"ED_VEG271_00059",null,"Average frequency of cutting cycle (years)","Urban and CBD","","ED_VEG272_00059",null,"Inspection ",""]
[null,null,null,null,null,null,null,"ED_VEG271_00060",null,null,"Rural","","ED_VEG272_00060",null,"Audit ",""]
[null,null,null,null,null,null,null,"ED_VEG271_00061","ZONE 6","Route line length within zone (KM)","Urban and CBD","","ED_VEG272_00061",null,"Contractor liaison expenditure ",""]
[null,null,null,null,null,null,null,"ED_VEG271_00062",null,null,"Rural","","ED_VEG272_00062",null,"Tree replacement program costs ",""]
[null,null,null,null,null,null,null,"ED_VEG271_00063",null,"Number of maintenance spans (0's)","Urban and CBD","","ED_VEG272_00063",null,"Other vegetation management costs not specified in sheet ",""]
[null,null,null,null,null,null,null,"ED_VEG271_00064",null,null,"Rural","","ED_VEG272_00064",{"$f":"I95","v":"ZONE 8"},"Tree trimming (excluding hazard trees) ",""]
[null,null,null,null,null,null,null,"ED_VEG271_00065",null,"Total length of maintenance spans (KM)","Urban and CBD","","ED_VEG272_00065",null,"Hazard tree cutting ",""]
[null,null,null,null,null,null,null,"ED_VEG271_00066",null,null,"Rural","","ED_VEG272_00066",null,"Ground clearance ",""]
[null,null,null,null,null,null,null,"ED_VEG271_00067",null,"Length of vegetation corridors (KM)","Urban and CBD","","ED_VEG272_00067",null,"Vegetation corridor clearance ",""]
[null,null,null,null,null,null,null,"ED_VEG271_00068",null,null,"Rural","","ED_VEG272_00068",null,"Inspection ",""]
[null,null,null,null,null,null,null,"ED_VEG271_00069",null,"Average number of trees per maintenance span (0's)","Urban and CBD","","ED_VEG272_00069",null,"Audit ",""]
[null,null,null,null,null,null,null,"ED_VEG271_00070",null,null,"Rural","","ED_VEG272_00070",null,"Contractor liaison expenditure ",""]
[null,null,null,null,null,null,null,"ED_VEG271_00071",null,"Average frequency of cutting cycle (years)","Urban and CBD","","ED_VEG272_00071",null,"Tree replacement program costs ",""]
[null,null,null,null,null,null,null,"ED_VEG271_00072",null,null,"Rural","","ED_VEG272_00072",null,"Other vegetation management costs not specified in sheet ",""]
[null,null,null,null,null,null,null,"ED_VEG271_00073","ZONE 7","Route line length within zone (KM)","Urban and CBD","","ED_VEG272_00073",{"$f":"I107","v":"ZONE 9"},"Tree trimming (excluding hazard trees) ",""]
[null,null,null,null,null,null,null,"ED_VEG271_00074",null,null,"Rural","","ED_VEG272_00074",null,"Hazard tree cutting ",""]
[null,null,null,null,null,null,null,"ED_VEG271_00075",null,"Number of maintenance spans (0's)","Urban and CBD","","ED_VEG272_00075",null,"Ground clearance ",""]
[null,null,null,null,null,null,null,"ED_VEG271_00076",null,null,"Rural","","ED_VEG272_00076",null,"Vegetation corridor clearance ",""]
[null,null,null,null,null,null,null,"ED_VEG271_00077",null,"Total length of maintenance spans (KM)","Urban and CBD","","ED_VEG272_00077",null,"Inspection ",""]
[null,null,null,null,null,null,null,"ED_VEG271_00078",null,null,"Rural","","ED_VEG272_00078",null,"Audit ",""]
[null,null,null,null,null,null,null,"ED_VEG271_00079",null,"Length of vegetation corridors (KM)","Urban and CBD","","ED_VEG272_00079",null,"Contractor liaison expenditure ",""]
[null,null,null,null,null,null,null,"ED_VEG271_00080",null,null,"Rural","","ED_VEG272_00080",null,"Tree replacement program costs ",""]
[null,null,null,null,null,null,null,"ED_VEG271_00081",null,"Average number of trees per maintenance span (0's)","Urban and CBD","","ED_VEG272_00081",null,"Other vegetation management costs not specified in sheet ",""]
[null,null,null,null,null,null,null,"ED_VEG271_00082",null,null,"Rural","","ED_VEG272_00082",{"$f":"I119","v":"ZONE 10"},"Tree trimming (excluding hazard trees) ",""]
[null,null,null,null,null,null,null,"ED_VEG271_00083",null,"Average frequency of cutting cycle (years)","Urban and CBD","","ED_VEG272_00083",null,"Hazard tree cutting ",""]
[null,null,null,null,null,null,null,"ED_VEG271_00084",null,null,"Rural","","ED_VEG272_00084",null,"Ground clearance ",""]
[null,null,null,null,null,null,null,"ED_VEG271_00085","ZONE 8","Route line length within zone (KM)","Urban and CBD","","ED_VEG272_00085",null,"Vegetation corridor clearance ",""]
[null,null,null,null,null,null,null,"ED_VEG271_00086",null,null,"Rural","","ED_VEG272_00086",null,"Inspection ",""]
[null,null,null,null,null,null,null,"ED_VEG271_00087",null,"Number of maintenance spans (0's)","Urban and CBD","","ED_VEG272_00087",null,"Audit ",""]
[null,null,null,null,null,null,null,"ED_VEG271_00088",null,null,"Rural","","ED_VEG272_00088",null,"Contractor liaison expenditure ",""]
[null,null,null,null,null,null,null,"ED_VEG271_00089",null,"Total length of maintenance spans (KM)","Urban and CBD","","ED_VEG272_00089",null,"Tree replacement program costs ",""]
[null,null,null,null,null,null,null,"ED_VEG271_00090",null,null,"Rural","","ED_VEG272_00090",null,"Other vegetation management costs not specified in sheet ",""]
[null,null,null,null,null,null,null,"ED_VEG271_00091",null,"Length of vegetation corridors (KM)","Urban and CBD","","ED_VEG272_00091",{"$f":"I131","v":"ZONE 11"},"Tree trimming (excluding hazard trees) ",""]
[null,null,null,null,null,null,null,"ED_VEG271_00092",null,null,"Rural","","ED_VEG272_00092",null,"Hazard tree cutting ",""]
[null,null,null,null,null,null,null,"ED_VEG271_00093",null,"Average number of trees per maintenance span (0's)","Urban and CBD","","ED_VEG272_00093",null,"Ground clearance ",""]
[null,null,null,null,null,null,null,"ED_VEG271_00094",null,null,"Rural","","ED_VEG272_00094",null,"Vegetation corridor clearance ",""]
[null,null,null,null,null,null,null,"ED_VEG271_00095",null,"Average frequency of cutting cycle (years)","Urban and CBD","","ED_VEG272_00095",null,"Inspection ",""]
[null,null,null,null,null,null,null,"ED_VEG271_00096",null,null,"Rural","","ED_VEG272_00096",null,"Audit ",""]
[null,null,null,null,null,null,null,"ED_VEG271_00097","ZONE 9","Route line length within zone (KM)","Urban and CBD","","ED_VEG272_00097",null,"Contractor liaison expenditure ",""]
[null,null,null,null,null,null,null,"ED_VEG271_00098",null,null,"Rural","","ED_VEG272_00098",null,"Tree replacement program costs ",""]
[null,null,null,null,null,null,null,"ED_VEG271_00099",null,"Number of maintenance spans (0's)","Urban and CBD","","ED_VEG272_00099",null,"Other vegetation management costs not specified in sheet ",""]
[null,null,null,null,null,null,null,"ED_VEG271_00100",null,null,"Rural","","ED_VEG272_00100",{"$f":"I143","v":"ZONE 12"},"Tree trimming (excluding hazard trees) ",""]
[null,null,null,null,null,null,null,"ED_VEG271_00101",null,"Total length of maintenance spans (KM)","Urban and CBD","","ED_VEG272_00101",null,"Hazard tree cutting ",""]
[null,null,null,null,null,null,null,"ED_VEG271_00102",null,null,"Rural","","ED_VEG272_00102",null,"Ground clearance ",""]
[null,null,null,null,null,null,null,"ED_VEG271_00103",null,"Length of vegetation corridors (KM)","Urban and CBD","","ED_VEG272_00103",null,"Vegetation corridor clearance ",""]
[null,null,null,null,null,null,null,"ED_VEG271_00104",null,null,"Rural","","ED_VEG272_00104",null,"Inspection ",""]
[null,null,null,null,null,null,null,"ED_VEG271_00105",null,"Average number of trees per maintenance span (0's)","Urban and CBD","","ED_VEG272_00105",null,"Audit ",""]
[null,null,null,null,null,null,null,"ED_VEG271_00106",null,null,"Rural","","ED_VEG272_00106",null,"Contractor liaison expenditure ",""]
[null,null,null,null,null,null,null,"ED_VEG271_00107",null,"Average frequency of cutting cycle (years)","Urban and CBD","","ED_VEG272_00107",null,"Tree replacement program costs ",""]
[null,null,null,null,null,null,null,"ED_VEG271_00108",null,null,"Rural","","ED_VEG272_00108",null,"Other vegetation management costs not specified in sheet ",""]
[null,null,null,null,null,null,null,"ED_VEG271_00109","ZONE 10","Route line length within zone (KM)","Urban and CBD","","ED_VEG272_00109",{"$f":"I155","v":"ZONE 13"},"Tree trimming (excluding hazard trees) ",""]
[null,null,null,null,null,null,null,"ED_VEG271_00110",null,null,"Rural","","ED_VEG272_00110",null,"Hazard tree cutting ",""]
[null,null,null,null,null,null,null,"ED_VEG271_00111",null,"Number of maintenance spans (0's)","Urban and CBD","","ED_VEG272_00111",null,"Ground clearance ",""]
[null,null,null,null,null,null,null,"ED_VEG271_00112",null,null,"Rural","","ED_VEG272_00112",null,"Vegetation corridor clearance ",""]
[null,null,null,null,null,null,null,"ED_VEG271_00113",null,"Total length of maintenance spans (KM)","Urban and CBD","","ED_VEG272_00113",null,"Inspection ",""]
[null,null,null,null,null,null,null,"ED_VEG271_00114",null,null,"Rural","","ED_VEG272_00114",null,"Audit ",""]
[null,null,null,null,null,null,null,"ED_VEG271_00115",null,"Length of vegetation corridors (KM)","Urban and CBD","","ED_VEG272_00115",null,"Contractor liaison expenditure ",""]
[null,null,null,null,null,null,null,"ED_VEG271_00116",null,null,"Rural","","ED_VEG272_00116",null,"Tree replacement program costs ",""]
[null,null,null,null,null,null,null,"ED_VEG271_00117",null,"Average number of trees per maintenance span (0's)","Urban and CBD","","ED_VEG272_00117",null,"Other vegetation management costs not specified in sheet ",""]
[null,null,null,null,null,null,null,"ED_VEG271_00118",null,null,"Rural","","ED_VEG272_00118",{"$f":"I167","v":"ZONE 14"},"Tree trimming (excluding hazard trees) ",""]
[null,null,null,null,null,null,null,"ED_VEG271_00119",null,"Average frequency of cutting cycle (years)","Urban and CBD","","ED_VEG272_00119",null,"Hazard tree cutting ",""]
[null,null,null,null,null,null,null,"ED_VEG271_00120",null,null,"Rural","","ED_VEG272_00120",null,"Ground clearance ",""]
[null,null,null,null,null,null,null,"ED_VEG271_00121","ZONE 11","Route line length within zone (KM)","Urban and CBD","","ED_VEG272_00121",null,"Vegetation corridor clearance ",""]
[null,null,null,null,null,null,null,"ED_VEG271_00122",null,null,"Rural","","ED_VEG272_00122",null,"Inspection ",""]
[null,null,null,null,null,null,null,"ED_VEG271_00123",null,"Number of maintenance spans (0's)","Urban and CBD","","ED_VEG272_00123",null,"Audit ",""]
[null,null,null,null,null,null,null,"ED_VEG271_00124",null,null,"Rural","","ED_VEG272_00124",null,"Contractor liaison expenditure ",""]
[null,null,null,null,null,null,null,"ED_VEG271_00125",null,"Total length of maintenance spans (KM)","Urban and CBD","","ED_VEG272_00125",null,"Tree replacement program costs ",""]
[null,null,null,null,null,null,null,"ED_VEG271_00126",null,null,"Rural","","ED_VEG272_00126",null,"Other vegetation management costs not specified in sheet ",""]
[null,null,null,null,null,null,null,"ED_VEG271_00127",null,"Length of vegetation corridors (KM)","Urban and CBD","","ED_VEG272_00127",{"$f":"I179","v":"ZONE 15"},"Tree trimming (excluding hazard trees) ",""]
[null,null,null,null,null,null,null,"ED_VEG271_00128",null,null,"Rural","","ED_VEG272_00128",null,"Hazard tree cutting ",""]
[null,null,null,null,null,null,null,"ED_VEG271_00129",null,"Average number of trees per maintenance span (0's)","Urban and CBD","","ED_VEG272_00129",null,"Ground clearance ",""]
[null,null,null,null,null,null,null,"ED_VEG271_00130",null,null,"Rural","","ED_VEG272_00130",null,"Vegetation corridor clearance ",""]
[null,null,null,null,null,null,null,"ED_VEG271_00131",null,"Average frequency of cutting cycle (years)","Urban and CBD","","ED_VEG272_00131",null,"Inspection ",""]
[null,null,null,null,null,null,null,"ED_VEG271_00132",null,null,"Rural","","ED_VEG272_00132",null,"Audit ",""]
[null,null,null,null,null,null,null,"ED_VEG271_00133","ZONE 12","Route line length within zone (KM)","Urban and CBD","","ED_VEG272_00133",null,"Contractor liaison expenditure ",""]
[null,null,null,null,null,null,null,"ED_VEG271_00134",null,null,"Rural","","ED_VEG272_00134",null,"Tree replacement program costs ",""]
[null,null,null,null,null,null,null,"ED_VEG271_00135",null,"Number of maintenance spans (0's)","Urban and CBD","","ED_VEG272_00135",null,"Other vegetation management costs not specified in sheet ",""]
[null,null,null,null,null,null,null,"ED_VEG271_00136",null,null,"Rural","","ED_VEG272_00136",{"$f":"I191","v":"ZONE 16"},"Tree trimming (excluding hazard trees) ",""]
[null,null,null,null,null,null,null,"ED_VEG271_00137",null,"Total length of maintenance spans (KM)","Urban and CBD","","ED_VEG272_00137",null,"Hazard tree cutting ",""]
[null,null,null,null,null,null,null,"ED_VEG271_00138",null,null,"Rural","","ED_VEG272_00138",null,"Ground clearance ",""]
[null,null,null,null,null,null,null,"ED_VEG271_00139",null,"Length of vegetation corridors (KM)","Urban and CBD","","ED_VEG272_00139",null,"Vegetation corridor clearance ",""]
[null,null,null,null,null,null,null,"ED_VEG271_00140",null,null,"Rural","","ED_VEG272_00140",null,"Inspection ",""]
[null,null,null,null,null,null,null,"ED_VEG271_00141",null,"Average number of trees per maintenance span (0's)","Urban and CBD","","ED_VEG272_00141",null,"Audit ",""]
[null,null,null,null,null,null,null,"ED_VEG271_00142",null,null,"Rural","","ED_VEG272_00142",null,"Contractor liaison expenditure ",""]
[null,null,null,null,null,null,null,"ED_VEG271_00143",null,"Average frequency of cutting cycle (years)","Urban and CBD","","ED_VEG272_00143",null,"Tree replacement program costs ",""]
[null,null,null,null,null,null,null,"ED_VEG271_00144",null,null,"Rural","","ED_VEG272_00144",null,"Other vegetation management costs not specified in sheet ",""]
[null,null,null,null,null,null,null,"ED_VEG271_00145","ZONE 13","Route line length within zone (KM)","Urban and CBD","","ED_VEG272_00145",{"$f":"I203","v":"ZONE 17"},"Tree trimming (excluding hazard trees) ",""]
[null,null,null,null,null,null,null,"ED_VEG271_00146",null,null,"Rural","","ED_VEG272_00146",null,"Hazard tree cutting ",""]
[null,null,null,null,null,null,null,"ED_VEG271_00147",null,"Number of maintenance spans (0's)","Urban and CBD","","ED_VEG272_00147",null,"Ground clearance ",""]
[null,null,null,null,null,null,null,"ED_VEG271_00148",null,null,"Rural","","ED_VEG272_00148",null,"Vegetation corridor clearance ",""]
[null,null,null,null,null,null,null,"ED_VEG271_00149",null,"Total length of maintenance spans (KM)","Urban and CBD","","ED_VEG272_00149",null,"Inspection ",""]
[null,null,null,null,null,null,null,"ED_VEG271_00150",null,null,"Rural","","ED_VEG272_00150",null,"Audit ",""]
[null,null,null,null,null,null,null,"ED_VEG271_00151",null,"Length of vegetation corridors (KM)","Urban and CBD","","ED_VEG272_00151",null,"Contractor liaison expenditure ",""]
[null,null,null,null,null,null,null,"ED_VEG271_00152",null,null,"Rural","","ED_VEG272_00152",null,"Tree replacement program costs ",""]
[null,null,null,null,null,null,null,"ED_VEG271_00153",null,"Average number of trees per maintenance span (0's)","Urban and CBD","","ED_VEG272_00153",null,"Other vegetation management costs not specified in sheet ",""]
[null,null,null,null,null,null,null,"ED_VEG271_00154",null,null,"Rural","","ED_VEG272_00154",{"$f":"I215","v":"ZONE 18"},"Tree trimming (excluding hazard trees) ",""]
[null,null,null,null,null,null,null,"ED_VEG271_00155",null,"Average frequency of cutting cycle (years)","Urban and CBD","","ED_VEG272_00155",null,"Hazard tree cutting ",""]
[null,null,null,null,null,null,null,"ED_VEG271_00156",null,null,"Rural","","ED_VEG272_00156",null,"Ground clearance ",""]
[null,null,null,null,null,null,null,"ED_VEG271_00157","ZONE 14","Route line length within zone (KM)","Urban and CBD","","ED_VEG272_00157",null,"Vegetation corridor clearance ",""]
[null,null,null,null,null,null,null,"ED_VEG271_00158",null,null,"Rural","","ED_VEG272_00158",null,"Inspection ",""]
[null,null,null,null,null,null,null,"ED_VEG271_00159",null,"Number of maintenance spans (0's)","Urban and CBD","","ED_VEG272_00159",null,"Audit ",""]
[null,null,null,null,null,null,null,"ED_VEG271_00160",null,null,"Rural","","ED_VEG272_00160",null,"Contractor liaison expenditure ",""]
[null,null,null,null,null,null,null,"ED_VEG271_00161",null,"Total length of maintenance spans (KM)","Urban and CBD","","ED_VEG272_00161",null,"Tree replacement program costs ",""]
[null,null,null,null,null,null,null,"ED_VEG271_00162",null,null,"Rural","","ED_VEG272_00162",null,"Other vegetation management costs not specified in sheet ",""]
[null,null,null,null,null,null,null,"ED_VEG271_00163",null,"Length of vegetation corridors (KM)","Urban and CBD",""]
[null,null,null,null,null,null,null,"ED_VEG271_00164",null,null,"Rural",""]
[null,null,null,null,null,null,null,"ED_VEG271_00165",null,"Average number of trees per maintenance span (0's)","Urban and CBD",""]
[null,null,null,null,null,null,null,"ED_VEG271_00166",null,null,"Rural",""]
[null,null,null,null,null,null,null,"ED_VEG271_00167",null,"Average frequency of cutting cycle (years)","Urban and CBD",""]
[null,null,null,null,null,null,null,"ED_VEG271_00168",null,null,"Rural",""]
[null,null,null,null,null,null,null,"ED_VEG271_00169","ZONE 15","Route line length within zone (KM)","Urban and CBD",""]
[null,null,null,null,null,null,null,"ED_VEG271_00170",null,null,"Rural",""]
[null,null,null,null,null,null,null,"ED_VEG271_00171",null,"Number of maintenance spans (0's)","Urban and CBD",""]
[null,null,null,null,null,null,null,"ED_VEG271_00172",null,null,"Rural",""]
[null,null,null,null,null,null,null,"ED_VEG271_00173",null,"Total length of maintenance spans (KM)","Urban and CBD",""]
[null,null,null,null,null,null,null,"ED_VEG271_00174",null,null,"Rural",""]
[null,null,null,null,null,null,null,"ED_VEG271_00175",null,"Length of vegetation corridors (KM)","Urban and CBD",""]
[null,null,null,null,null,null,null,"ED_VEG271_00176",null,null,"Rural",""]
[null,null,null,null,null,null,null,"ED_VEG271_00177",null,"Average number of trees per maintenance span (0's)","Urban and CBD",""]
[null,null,null,null,null,null,null,"ED_VEG271_00178",null,null,"Rural",""]
[null,null,null,null,null,null,null,"ED_VEG271_00179",null,"Average frequency of cutting cycle (years)","Urban and CBD",""]
[null,null,null,null,null,null,null,"ED_VEG271_00180",null,null,"Rural",""]
[null,null,null,null,null,null,null,"ED_VEG271_00181","ZONE 16","Route line length within zone (KM)","Urban and CBD",""]
[null,null,null,null,null,null,null,"ED_VEG271_00182",null,null,"Rural",""]
[null,null,null,null,null,null,null,"ED_VEG271_00183",null,"Number of maintenance spans (0's)","Urban and CBD",""]
[null,null,null,null,null,null,null,"ED_VEG271_00184",null,null,"Rural",""]
[null,null,null,null,null,null,null,"ED_VEG271_00185",null,"Total length of maintenance spans (KM)","Urban and CBD",""]
[null,null,null,null,null,null,null,"ED_VEG271_00186",null,null,"Rural",""]
[null,null,null,null,null,null,null,"ED_VEG271_00187",null,"Length of vegetation corridors (KM)","Urban and CBD",""]
[null,null,null,null,null,null,null,"ED_VEG271_00188",null,null,"Rural",""]
[null,null,null,null,null,null,null,"ED_VEG271_00189",null,"Average number of trees per maintenance span (0's)","Urban and CBD",""]
[null,null,null,null,null,null,null,"ED_VEG271_00190",null,null,"Rural",""]
[null,null,null,null,null,null,null,"ED_VEG271_00191",null,"Average frequency of cutting cycle (years)","Urban and CBD",""]
[null,null,null,null,null,null,null,"ED_VEG271_00192",null,null,"Rural",""]
[null,null,null,null,null,null,null,"ED_VEG271_00193","ZONE 17","Route line length within zone (KM)","Urban and CBD",""]
[null,null,null,null,null,null,null,"ED_VEG271_00194",null,null,"Rural",""]
[null,null,null,null,null,null,null,"ED_VEG271_00195",null,"Number of maintenance spans (0's)","Urban and CBD",""]
[null,null,null,null,null,null,null,"ED_VEG271_00196",null,null,"Rural",""]
[null,null,null,null,null,null,null,"ED_VEG271_00197",null,"Total length of maintenance spans (KM)","Urban and CBD",""]
[null,null,null,null,null,null,null,"ED_VEG271_00198",null,null,"Rural",""]
[null,null,null,null,null,null,null,"ED_VEG271_00199",null,"Length of vegetation corridors (KM)","Urban and CBD",""]
[null,null,null,null,null,null,null,"ED_VEG271_00200",null,null,"Rural",""]
[null,null,null,null,null,null,null,"ED_VEG271_00201",null,"Average number of trees per maintenance span (0's)","Urban and CBD",""]
[null,null,null,null,null,null,null,"ED_VEG271_00202",null,null,"Rural",""]
[null,null,null,null,null,null,null,"ED_VEG271_00203",null,"Average frequency of cutting cycle (years)","Urban and CBD",""]
[null,null,null,null,null,null,null,"ED_VEG271_00204",null,null,"Rural",""]
[null,null,null,null,null,null,null,"ED_VEG271_00205","ZONE 18","Route line length within zone (KM)","Urban and CBD",""]
[null,null,null,null,null,null,null,"ED_VEG271_00206",null,null,"Rural",""]
[null,null,null,null,null,null,null,"ED_VEG271_00207",null,"Number of maintenance spans (0's)","Urban and CBD",""]
[null,null,null,null,null,null,null,"ED_VEG271_00208",null,null,"Rural",""]
[null,null,null,null,null,null,null,"ED_VEG271_00209",null,"Total length of maintenance spans (KM)","Urban and CBD",""]
[null,null,null,null,null,null,null,"ED_VEG271_00210",null,null,"Rural",""]
[null,null,null,null,null,null,null,"ED_VEG271_00211",null,"Length of vegetation corridors (KM)","Urban and CBD",""]
[null,null,null,null,null,null,null,"ED_VEG271_00212",null,null,"Rural",""]
[null,null,null,null,null,null,null,"ED_VEG271_00213",null,"Average number of trees per maintenance span (0's)","Urban and CBD",""]
[null,null,null,null,null,null,null,"ED_VEG271_00214",null,null,"Rural",""]
[null,null,null,null,null,null,null,"ED_VEG271_00215",null,"Average frequency of cutting cycle (years)","Urban and CBD",""]
[null,null,null,null,null,null,null,"ED_VEG271_00216",null,null,"Rural",""]

{"sheet":"2.8 Maintenance","index":8,"n_rows":39,"n_cols":14,"rows_kept":39,"cut":false,"hidden":false,"merged":[[33,2,35,2],[10,7,11,7],[10,8,11,8],[29,1,30,1],[29,10,30,10],[12,10,13,10],[16,10,17,10],[18,10,19,10],[20,10,23,10],[24,10,27,10]]}
[null,{"$f":"(LOOKUP(dms_Model,dms_Model_List,dms_Worksheet_List))","v":"REGULATORY REPORTING STATEMENT"}]
[null,"Australian Distribution Co."]
[null,{"$f":"CONCATENATE(\"Category Analysis RIN response \",CRY)","v":"Category Analysis RIN response 2014-15"}]
[null,"2.8 MAINTENANCE"]
[]
[]
[]
[null,"TABLE 2.8.1 - DESCRIPTOR METRICS FOR ROUTINE AND NON-ROUTINE MAINTENANCE",null,null,null,null,null,null,null,null,"TABLE 2.8.2 - COST METRICS FOR ROUTINE AND NON-ROUTINE MAINTENANCE"]
[]
[]
[null,null,null,null," ASSET QUANTITY - AT YEAR END\n(0s)","ASSET QUANTITY - INSPECTED/ MAINTAINED","AVERAGE AGE OF ASSET GROUP ","INSPECTION \nCYCLE \n(YEARS)","MAINTENANCE \nCYCLE \n(YEARS)",null,null,null," ROUTINE MAINTENANCE EXPENDITURE \n($0's)","NON-ROUTINE MAINTENANCE EXPENDITURE \n($0's)"]
[null,"MAINTENANCE ACTIVITY","MAINTENANCE ASSET CATEGORY","UNIT OF MEASURE - ASSET QUANTITY",{"$f":"CRY","v":"2014-15"},{"$f":"CRY","v":"2014-15"},{"$f":"CRY","v":"2014-15"},null,null,null,"MAINTENANCE ACTIVITY","MAINTENANCE ASSET CATEGORY",{"$f":"CRY","v":"2014-15"},{"$f":"CRY","v":"2014-15"}]
["ED_MAI281_00001","Pole top, overhead line & service line maintenance","Pole tops and overhead lines","Number of poles",{"$f":"'[2]2.8 Maintenance'!E13+'[3]2.8 Maintenance'!E13","v":50704},{"$f":"'[2]2.8 Maintenance'!F13+'[3]2.8 Maintenance'!F13","v":15503},{"$f":"'[2]2.8 Maintenance'!G13+'[3]2.8 Maintenance'!G13","v":32.53},{"$f":"'[2]2.8 Maintenance'!H13+'[3]2.8 Maintenance'!H13","v":2},{"$f":"'[2]2.8 Maintenance'!I13+'[3]2.8 Maintenance'!I13","v":0},"ED_MAI282_00001","Pole top, overhead line & service line maintenance","Pole tops and overhead lines",{"$f":"'[2]2.8 Maintenance'!M13+'[3]2.8 Maintenance'!M13","v":326996.78000000003},{"$f":"'[2]2.8 Maintenance'!N13+'[3]2.8 Maintenance'!N13","v":677624.1}]
["ED_MAI281_00002",null,"Service lines","Number of customers",{"$f":"'[2]2.8 Maintenance'!E14+'[3]2.8 Maintenance'!E14","v":181726},{"$f":"'[2]2.8 Maintenance'!F14+'[3]2.8 Maintenance'!F14","v":12651},{"$f":"'[2]2.8 Maintenance'!G14+'[3]2.8 Maintenance'!G14","v":33.947000000000003},{"$f":"'[2]2.8 Maintenance'!H14+'[3]2.8 Maintenance'!H14","v":5},{"$f":"'[2]2.8 Maintenance'!I14+'[3]2.8 Maintenance'!I14","v":0},"ED_MAI282_00002",null,"Service lines",{"$f":"'[2]2.8 Maintenance'!M14+'[3]2.8 Maintenance'!M14","v":0},{"$f":"'[2]2.8 Maintenance'!N14+'[3]2.8 Maintenance'!N14","v":80484.47}]
["ED_MAI281_00003","Pole inspection and treatment","All poles","Number of poles",{"$f":"'[2]2.8 Maintenance'!E15+'[3]2.8 Maintenance'!E15","v":50704},{"$f":"'[2]2.8 Maintenance'!F15+'[3]2.8 Maintenance'!F15","v":11613},{"$f":"'[2]2.8 Maintenance'!G15+'[3]2.8 Maintenance'!G15","v":32.53},{"$f":"'[2]2.8 Maintenance'!H15+'[3]2.8 Maintenance'!H15","v":5},{"$f":"'[2]2.8 Maintenance'!I15+'[3]2.8 Maintenance'!I15","v":0},"ED_MAI282_00003","Pole inspection and treatment","All poles",{"$f":"'[2]2.8 Maintenance'!M15+'[3]2.8 Maintenance'!M15","v":2108752.73},{"$f":"'[2]2.8 Maintenance'!N15+'[3]2.8 Maintenance'!N15","v":0}]
["ED_MAI281_00004","Overhead asset inspection","All overhead assets","Line patrolled (route KM)",{"$f":"'[2]2.8 Maintenance'!E16+'[3]2.8 Maintenance'!E16","v":2366.7550000000001},{"$f":"'[2]2.8 Maintenance'!F16+'[3]2.8 Maintenance'!F16","v":2592.6799999999998},{"$f":"'[2]2.8 Maintenance'!G16+'[3]2.8 Maintenance'!G16","v":45.07},{"$f":"'[2]2.8 Maintenance'!H16+'[3]2.8 Maintenance'!H16","v":0},{"$f":"'[2]2.8 Maintenance'!I16+'[3]2.8 Maintenance'!I16","v":0},"ED_MAI282_00004","Overhead asset inspection","All overhead assets",{"$f":"'[2]2.8 Maintenance'!M16+'[3]2.8 Maintenance'!M16","v":184741.4},{"$f":"'[2]2.8 Maintenance'!N16+'[3]2.8 Maintenance'!N16","v":2838.36}]
["ED_MAI281_00005","Network underground cable maintenance: by voltage","LV - 11 to 22 KV","Length (KM)",{"$f":"'[2]2.8 Maintenance'!E17+'[3]2.8 Maintenance'!E17","v":2879.7959999999998},{"$f":"'[2]2.8 Maintenance'!F17+'[3]2.8 Maintenance'!F17","v":3.2189999999999999},{"$f":"'[2]2.8 Maintenance'!G17+'[3]2.8 Maintenance'!G17","v":32.881999999999998},{"$f":"'[2]2.8 Maintenance'!H17+'[3]2.8 Maintenance'!H17","v":0},{"$f":"'[2]2.8 Maintenance'!I17+'[3]2.8 Maintenance'!I17","v":0},"ED_MAI282_00005","Network underground cable maintenance: by voltage","LV - 11 to 22 KV",{"$f":"'[2]2.8 Maintenance'!M17+'[3]2.8 Maintenance'!M17","v":94725.09},{"$f":"'[2]2.8 Maintenance'!N17+'[3]2.8 Maintenance'!N17","v":476086.18}]
["ED_MAI281_00006",null,"33 KV and above","Length (KM)",{"$f":"'[2]2.8 Maintenance'!E18+'[3]2.8 Maintenance'!E18","v":6.0220000000000002},{"$f":"'[2]2.8 Maintenance'!F18+'[3]2.8 Maintenance'!F18","v":0},{"$f":"'[2]2.8 Maintenance'!G18+'[3]2.8 Maintenance'!G18","v":7.0220000000000002},{"$f":"'[2]2.8 Maintenance'!H18+'[3]2.8 Maintenance'!H18","v":0},{"$f":"'[2]2.8 Maintenance'!I18+'[3]2.8 Maintenance'!I18","v":0},"ED_MAI282_00006",null,"33 KV and above",{"$f":"'[2]2.8 Maintenance'!M18+'[3]2.8 Maintenance'!M18","v":0},{"$f":"'[2]2.8 Maintenance'!N18+'[3]2.8 Maintenance'!N18","v":0}]
["ED_MAI281_00007","Network underground cable maintenance: by location","Cbd","Length (KM)",{"$f":"'[2]2.8 Maintenance'!E19+'[3]2.8 Maintenance'!E19","v":0},{"$f":"'[2]2.8 Maintenance'!F19+'[3]2.8 Maintenance'!F19","v":0},{"$f":"'[2]2.8 Maintenance'!G19+'[3]2.8 Maintenance'!G19","v":0},{"$f":"'[2]2.8 Maintenance'!H19+'[3]2.8 Maintenance'!H19","v":0},{"$f":"'[2]2.8 Maintenance'!I19+'[3]2.8 Maintenance'!I19","v":0},"ED_MAI282_00007","Network underground cable maintenance: by location","CBD",{"$f":"'[2]2.8 Maintenance'!M19+'[3]2.8 Maintenance'!M19","v":0},{"$f":"'[2]2.8 Maintenance'!N19+'[3]2.8 Maintenance'!N19","v":0}]
["ED_MAI281_00008",null,"Non-CBD","Length (KM)",{"$f":"'[2]2.8 Maintenance'!E20+'[3]2.8 Maintenance'!E20","v":2885.817},{"$f":"'[2]2.8 Maintenance'!F20+'[3]2.8 Maintenance'!F20","v":3.2189999999999999},{"$f":"'[2]2.8 Maintenance'!G20+'[3]2.8 Maintenance'!G20","v":32.881999999999998},{"$f":"'[2]2.8 Maintenance'!H20+'[3]2.8 Maintenance'!H20","v":0},{"$f":"'[2]2.8 Maintenance'!I20+'[3]2.8 Maintenance'!I20","v":0},"ED_MAI282_00008",null,"Non-CBD",{"$f":"'[2]2.8 Maintenance'!M20+'[3]2.8 Maintenance'!M20","v":94725.09},{"$f":"'[2]2.8 Maintenance'!N20+'[3]2.8 Maintenance'!N20","v":476086.18}]
["ED_MAI281_00009","Distribution substation equipment & property maintenance","Distribution substation transformers","Number of installed transformers",{"$f":"'[2]2.8 Maintenance'!E21+'[3]2.8 Maintenance'!E21","v":5071},{"$f":"'[2]2.8 Maintenance'!F21+'[3]2.8 Maintenance'!F21","v":666},{"$f":"'[2]2.8 Maintenance'!G21+'[3]2.8 Maintenance'!G21","v":24.925999999999998},{"$f":"'[2]2.8 Maintenance'!H21+'[3]2.8 Maintenance'!H21","v":5},{"$f":"'[2]2.8 Maintenance'!I21+'[3]2.8 Maintenance'!I21","v":0},"ED_MAI282_00009","Distribution substation equipment & property maintenance","Distribution substation transformers",{"$f":"'[2]2.8 Maintenance'!M21+'[3]2.8 Maintenance'!M21","v":108885.5},{"$f":"'[2]2.8 Maintenance'!N21+'[3]2.8 Maintenance'!N21","v":153858.35999999999}]
["ED_MAI281_00010",null,"Distribution substation switchgear (within-substations and stand-alone switchgear)","Number of switches",{"$f":"'[2]2.8 Maintenance'!E22+'[3]2.8 Maintenance'!E22","v":96926},{"$f":"'[2]2.8 Maintenance'!F22+'[3]2.8 Maintenance'!F22","v":278},{"$f":"'[2]2.8 Maintenance'!G22+'[3]2.8 Maintenance'!G22","v":26.486999999999998},{"$f":"'[2]2.8 Maintenance'!H22+'[3]2.8 Maintenance'!H22","v":5},{"$f":"'[2]2.8 Maintenance'!I22+'[3]2.8 Maintenance'!I22","v":5},"ED_MAI282_00010",null,"Distribution substation switchgear (within-substations and stand-alone switchgear)",{"$f":"'[2]2.8 Maintenance'!M22+'[3]2.8 Maintenance'!M22","v":70432.77},{"$f":"'[2]2.8 Maintenance'!N22+'[3]2.8 Maintenance'!N22","v":105227.41}]
["ED_MAI281_00011",null,"Distribution substation - other equipment","Earth mat",{"$f":"'[2]2.8 Maintenance'!E23+'[3]2.8 Maintenance'!E23","v":468},{"$f":"'[2]2.8 Maintenance'!F23+'[3]2.8 Maintenance'!F23","v":145},{"$f":"'[2]2.8 Maintenance'!G23+'[3]2.8 Maintenance'!G23","v":23.5},{"$f":"'[2]2.8 Maintenance'!H23+'[3]2.8 Maintenance'!H23","v":10},{"$f":"'[2]2.8 Maintenance'!I23+'[3]2.8 Maintenance'!I23","v":0},"ED_MAI282_00011",null,"Distribution substation - other equipment",{"$f":"'[2]2.8 Maintenance'!M23+'[3]2.8 Maintenance'!M23","v":284985.84999999998},{"$f":"'[2]2.8 Maintenance'!N23+'[3]2.8 Maintenance'!N23","v":87946.37}]
["ED_MAI281_00012",null,"Distribution substation - property","Number of distribution substation properties maintained",{"$f":"'[2]2.8 Maintenance'!E24+'[3]2.8 Maintenance'!E24","v":4895},{"$f":"'[2]2.8 Maintenance'!F24+'[3]2.8 Maintenance'!F24","v":330},{"$f":"'[2]2.8 Maintenance'!G24+'[3]2.8 Maintenance'!G24","v":24.925999999999998},{"$f":"'[2]2.8 Maintenance'!H24+'[3]2.8 Maintenance'!H24","v":5},{"$f":"'[2]2.8 Maintenance'!I24+'[3]2.8 Maintenance'!I24","v":0},"ED_MAI282_00012",null,"Distribution substation - property",{"$f":"'[2]2.8 Maintenance'!M24+'[3]2.8 Maintenance'!M24","v":368502.87},{"$f":"'[2]2.8 Maintenance'!N24+'[3]2.8 Maintenance'!N24","v":26077.97}]
["ED_MAI281_00013","Zone substation equipment maintenance","Transformers - zone substation","Number of zone substation transformers",{"$f":"'[2]2.8 Maintenance'!E25+'[3]2.8 Maintenance'!E25","v":31},{"$f":"'[2]2.8 Maintenance'!F25+'[3]2.8 Maintenance'!F25","v":31},{"$f":"'[2]2.8 Maintenance'!G25+'[3]2.8 Maintenance'!G25","v":31.515000000000001},{"$f":"'[2]2.8 Maintenance'!H25+'[3]2.8 Maintenance'!H25","v":8.3000000000000004E-2},{"$f":"'[2]2.8 Maintenance'!I25+'[3]2.8 Maintenance'!I25","v":0},"ED_MAI282_00013","Zone substation equipment maintenance","Transformers - zone substation",{"$f":"'[2]2.8 Maintenance'!M25+'[3]2.8 Maintenance'!M25","v":241626.48},{"$f":"'[2]2.8 Maintenance'!N25+'[3]2.8 Maintenance'!N25","v":16016.7}]
["ED_MAI281_00014",null,"Transformers - distribution","Number of distribution transformers within zone substations",{"$f":"'[2]2.8 Maintenance'!E26+'[3]2.8 Maintenance'!E26","v":0},{"$f":"'[2]2.8 Maintenance'!F26+'[3]2.8 Maintenance'!F26","v":0},{"$f":"'[2]2.8 Maintenance'!G26+'[3]2.8 Maintenance'!G26","v":0},{"$f":"'[2]2.8 Maintenance'!H26+'[3]2.8 Maintenance'!H26","v":0},{"$f":"'[2]2.8 Maintenance'!I26+'[3]2.8 Maintenance'!I26","v":0},"ED_MAI282_00014",null,"Transformers - distribution",{"$f":"'[2]2.8 Maintenance'!M26+'[3]2.8 Maintenance'!M26","v":0},{"$f":"'[2]2.8 Maintenance'!N26+'[3]2.8 Maintenance'!N26","v":0}]
["ED_MAI281_00015",null,"Transformers - HV","Number of HV transformers",{"$f":"'[2]2.8 Maintenance'!E27+'[3]2.8 Maintenance'!E27","v":0},{"$f":"'[2]2.8 Maintenance'!F27+'[3]2.8 Maintenance'!F27","v":0},{"$f":"'[2]2.8 Maintenance'!G27+'[3]2.8 Maintenance'!G27","v":0},{"$f":"'[2]2.8 Maintenance'!H27+'[3]2.8 Maintenance'!H27","v":0},{"$f":"'[2]2.8 Maintenance'!I27+'[3]2.8 Maintenance'!I27","v":0},"ED_MAI282_00015",null,"Transformers - HV",{"$f":"'[2]2.8 Maintenance'!M27+'[3]2.8 Maintenance'!M27","v":0},{"$f":"'[2]2.8 Maintenance'!N27+'[3]2.8 Maintenance'!N27","v":0}]
["ED_MAI281_00016",null,"Zone substation - other equipment","DNSP to nominate",{"$f":"'[2]2.8 Maintenance'!E28+'[3]2.8 Maintenance'!E28","v":29},{"$f":"'[2]2.8 Maintenance'!F28+'[3]2.8 Maintenance'!F28","v":29},{"$f":"'[2]2.8 Maintenance'!G28+'[3]2.8 Maintenance'!G28","v":33.106999999999999},{"$f":"'[2]2.8 Maintenance'!H28+'[3]2.8 Maintenance'!H28","v":8.3000000000000004E-2},{"$f":"'[2]2.8 Maintenance'!I28+'[3]2.8 Maintenance'!I28","v":0},"ED_MAI282_00016",null,"Zone substation - other equipment",{"$f":"'[2]2.8 Maintenance'!M28+'[3]2.8 Maintenance'!M28","v":571263.91},{"$f":"'[2]2.8 Maintenance'!N28+'[3]2.8 Maintenance'!N28","v":32473.24}]
["ED_MAI281_00017","Zone substation property maintenance","All zone substation properties","Number of zone substation properties maintained",{"$f":"'[2]2.8 Maintenance'!E29+'[3]2.8 Maintenance'!E29","v":15},{"$f":"'[2]2.8 Maintenance'!F29+'[3]2.8 Maintenance'!F29","v":15},{"$f":"'[2]2.8 Maintenance'!G29+'[3]2.8 Maintenance'!G29","v":30.533000000000001},{"$f":"'[2]2.8 Maintenance'!H29+'[3]2.8 Maintenance'!H29","v":8.3000000000000004E-2},{"$f":"'[2]2.8 Maintenance'!I29+'[3]2.8 Maintenance'!I29","v":0},"ED_MAI282_00017","Zone substation property maintenance","All zone substation properties",{"$f":"'[2]2.8 Maintenance'!M29+'[3]2.8 Maintenance'!M29","v":481868.46},{"$f":"'[2]2.8 Maintenance'!N29+'[3]2.8 Maintenance'!N29","v":0}]
["ED_MAI281_00018","Public lighting maintenance","Minor roads","Number of public lights maintained",{"$f":"'[2]2.8 Maintenance'!E30+'[3]2.8 Maintenance'!E30","v":0},{"$f":"'[2]2.8 Maintenance'!F30+'[3]2.8 Maintenance'!F30","v":0},{"$f":"'[2]2.8 Maintenance'!G30+'[3]2.8 Maintenance'!G30","v":0},{"$f":"'[2]2.8 Maintenance'!H30+'[3]2.8 Maintenance'!H30","v":0},{"$f":"'[2]2.8 Maintenance'!I30+'[3]2.8 Maintenance'!I30","v":0},"ED_MAI282_00018","Public lighting maintenance","Minor roads",{"$f":"'[2]2.8 Maintenance'!M30+'[3]2.8 Maintenance'!M30","v":0},{"$f":"'[2]2.8 Maintenance'!N30+'[3]2.8 Maintenance'!N30","v":0}]
["ED_MAI281_00019",null,"Major roads","Number of public lights maintained",{"$f":"'[2]2.8 Maintenance'!E31+'[3]2.8 Maintenance'!E31","v":0},{"$f":"'[2]2.8 Maintenance'!F31+'[3]2.8 Maintenance'!F31","v":0},{"$f":"'[2]2.8 Maintenance'!G31+'[3]2.8 Maintenance'!G31","v":0},{"$f":"'[2]2.8 Maintenance'!H31+'[3]2.8 Maintenance'!H31","v":0},{"$f":"'[2]2.8 Maintenance'!I31+'[3]2.8 Maintenance'!I31","v":0},"ED_MAI282_00019",null,"Major roads",{"$f":"'[2]2.8 Maintenance'!M31+'[3]2.8 Maintenance'!M31","v":0},{"$f":"'[2]2.8 Maintenance'!N31+'[3]2.8 Maintenance'!N31","v":0}]
["ED_MAI281_00020","SCADA & network control maintenance","SCADA & network control maintenance","Number of systems",262,0,11,0,0,"ED_MAI282_00020","SCADA & network control maintenance","SCADA & network control maintenance",{"$f":"'[2]2.8 Maintenance'!M32+'[3]2.8 Maintenance'!M32","v":7512.54},{"$f":"'[2]2.8 Maintenance'!N32+'[3]2.8 Maintenance'!N32","v":16012.86}]
["ED_MAI281_00021","Protection systems maintenance","Protection systems maintenance","Number of systems",3160,386,15,0.08,3,"ED_MAI282_00021","Protection systems maintenance","Protection systems maintenance",{"$f":"'[2]2.8 Maintenance'!M33+'[3]2.8 Maintenance'!M33","v":1235271.22},{"$f":"'[2]2.8 Maintenance'!N33+'[3]2.8 Maintenance'!N33","v":35948.51}]
["ED_MAI281_00022","Subtransmission asset maintenance - for DNSPs with dual function assets","Subtransmission asset maintenance - for DNSPs with dual function assets","Number of zone substation transformers",0,0,0,0,0,"ED_MAI282_00022","Subtransmission asset maintenance - for DNSPs with dual function assets","Subtransmission asset maintenance - for DNSPs with dual function assets",{"$f":"'[2]2.8 Maintenance'!M34+'[3]2.8 Maintenance'!M34","v":22034.26},{"$f":"'[2]2.8 Maintenance'!N34+'[3]2.8 Maintenance'!N34","v":10950.6}]
["ED_MAI281_00023",null,null,"Number of zone substation properties maintained",12,null,null,null,null,"ED_MAI282_00023","Various assets"," includes rates, electricity, communications equip, metering",{"$f":"'[2]2.8 Maintenance'!M35+'[3]2.8 Maintenance'!M35","v":0},{"$f":"'[2]2.8 Maintenance'!N35+'[3]2.8 Maintenance'!N35","v":0}]
["ED_MAI281_00024",null,null,"Transmission lines",null,null,null,null,null,"ED_MAI282_00024","Ground clearance - access tracks","Ground clearance - access tracks",{"$f":"'[2]2.8 Maintenance'!M36+'[3]2.8 Maintenance'!M36","v":0},{"$f":"'[2]2.8 Maintenance'!N36+'[3]2.8 Maintenance'!N36","v":0}]
["ED_MAI281_00025","Various assets"," includes rates, electricity, communications equip, metering","Units not quoted as various UOM",0,0,0,0,0,"ED_MAI282_00025","Other","< DNSP to nominate >",{"$f":"'[2]2.8 Maintenance'!M37+'[3]2.8 Maintenance'!M37","v":0},{"$f":"'[2]2.8 Maintenance'!N37+'[3]2.8 Maintenance'!N37","v":0}]
["ED_MAI281_00026","Ground clearance - access tracks","Ground clearance - access tracks","Units not quoted",0,0,0,0,0]
[null,"Other"]

{"sheet":"2.9 Emergency Response","index":9,"n_rows":603,"n_cols":4,"rows_kept":603,"cut":false,"hidden":false,"merged":[]}
[null,{"$f":"(LOOKUP(dms_Model,dms_Model_List,dms_Worksheet_List))","v":"REGULATORY REPORTING STATEMENT"}]
[null,"Australian Distribution Co."]
[null,{"$f":"CONCATENATE(\"Category Analysis RIN response \",CRY)","v":"Category Analysis RIN response 2014-15"}]
[null,"2.9 EMERGENCY RESPONSE"]
[]
[null,"TABLE 2.9.1 - EMERGENCY RESPONSE EXPENDITURE (OPEX)"]
[]
[]
[null,null,null,"EXPENDITURE\n($0's)"]
[null,null,null,{"$f":"CRY","v":"2014-15"}]
["ED_EME291_99999","(A) TOTAL EMERGENCY RESPONSE EXPENDITURE ($0's)","Total Expenditure",3267113.6]
["ED_EME291_00002","(B) MAJOR EVENTS O&M EXPENDITURE ($0's)",null,0]
["ED_EME291_00003"]
["ED_EME291_00004"]
["ED_EME291_00005"]
["ED_EME291_00006"]
["ED_EME291_00007"]
["ED_EME291_00008"]
["ED_EME291_00009",null,null,""]
["ED_EME291_00010"]
["ED_EME291_00011"]
["ED_EME291_00012"]
["ED_EME291_00013"]
["ED_EME291_00014"]
["ED_EME291_00015"]
["ED_EME291_00016"]
["ED_EME291_00017",null,null,""]
["ED_EME291_00018",null,null,""]
["ED_EME291_00019",null,null,""]
["ED_EME291_00020",null,null,""]
["ED_EME291_00021"]
["ED_EME291_00022"]
["ED_EME291_00023"]
["ED_EME291_00024"]
["ED_EME291_00025"]
["ED_EME291_00026"]
["ED_EME291_00027"]
["ED_EME291_00028"]
["ED_EME291_00029"]
["ED_EME291_00030"]
["ED_EME291_00031"]
["ED_EME291_00032"]
["ED_EME291_00033",null,null,""]
["ED_EME291_00034",null,null,""]
["ED_EME291_00035",null,null,""]
["ED_EME291_00036",null,null,""]
["ED_EME291_00037",null,null,""]
["ED_EME291_00038",null,null,""]
["ED_EME291_00039",null,null,""]
["ED_EME291_00040",null,null,""]
["ED_EME291_00041",null,null,""]
["ED_EME291_00042",null,null,""]
["ED_EME291_00043",null,null,""]
["ED_EME291_00044",null,null,""]
["ED_EME291_00045","(C) MAJOR EVENT DAYS O&M EXPENDITURE ($0's)",null,0]
["ED_EME291_00046"]
["ED_EME291_00047",null,null,""]
["ED_EME291_00048",null,null,""]
["ED_EME291_00049",null,null,""]
["ED_EME291_00050",null,null,""]
["ED_EME291_00051",null,null,""]
["ED_EME291_00052",null,null,""]
["ED_EME291_00053",null,null,""]
["ED_EME291_00054",null,null,""]
["ED_EME291_00055",null,null,""]
["ED_EME291_00056",null,null,""]
["ED_EME291_00057",null,null,""]
["ED_EME291_00058",null,null,""]
["ED_EME291_00059",null,null,""]
["ED_EME291_00060",null,null,""]
["ED_EME291_00061",null,null,""]
["ED_EME291_00062",null,null,""]
["ED_EME291_00063",null,null,""]
["ED_EME291_00064",null,null,""]
["ED_EME291_00065",null,null,""]
["ED_EME291_00066",null,null,""]
["ED_EME291_00067",null,null,""]
["ED_EME291_00068",null,null,""]
["ED_EME291_00069",null,null,""]
["ED_EME291_00070",null,null,""]
["ED_EME291_00071",null,null,""]
["ED_EME291_00072",null,null,""]
["ED_EME291_00073",null,null,""]
["ED_EME291_00074",null,null,""]
["ED_EME291_00075",null,null,""]
["ED_EME291_00076",null,null,""]
["ED_EME291_00077",null,null,""]
["ED_EME291_00078",null,null,""]
["ED_EME291_00079",null,null,""]
["ED_EME291_00080",null,null,""]
["ED_EME291_00081",null,null,""]
["ED_EME291_00082",null,null,""]
["ED_EME291_00083",null,null,""]
["ED_EME291_00084",null,null,""]
["ED_EME291_00085",null,null,""]
["ED_EME291_00086",null,null,""]
["ED_EME291_00087",null,null,""]
["ED_EME291_00088",null,null,""]
["ED_EME291_00089",null,null,""]
["ED_EME291_00090",null,null,""]
["ED_EME291_00091",null,null,""]
["ED_EME291_00092",null,null,""]
["ED_EME291_00093",null,null,""]
["ED_EME291_00094",null,null,""]
["ED_EME291_00095",null,null,""]
["ED_EME291_00096",null,null,""]
["ED_EME291_00097",null,null,""]
["ED_EME291_00098",null,null,""]
["ED_EME291_00099",null,null,""]
["ED_EME291_00100",null,null,""]
["ED_EME291_00101",null,null,""]
["ED_EME291_00102",null,null,""]
["ED_EME291_00103",null,null,""]
["ED_EME291_00104",null,null,""]
["ED_EME291_00105",null,null,""]
["ED_EME291_00106",null,null,""]
["ED_EME291_00107",null,null,""]
["ED_EME291_00108",null,null,""]
["ED_EME291_00109",null,null,""]
["ED_EME291_00110",null,null,""]
["ED_EME291_00111",null,null,""]
["ED_EME291_00112",null,null,""]
["ED_EME291_00113",null,null,""]
["ED_EME291_00114",null,null,""]
["ED_EME291_00115",null,null,""]
["ED_EME291_00116",null,null,""]
["ED_EME291_00117",null,null,""]
["ED_EME291_00118",null,null,""]
["ED_EME291_00119",null,null,""]
["ED_EME291_00120",null,null,""]
["ED_EME291_00121",null,null,""]
["ED_EME291_00122",null,null,""]
["ED_EME291_00123",null,null,""]
["ED_EME291_00124",null,null,""]
["ED_EME291_00125",null,null,""]
["ED_EME291_00126",null,null,""]
["ED_EME291_00127",null,null,""]
["ED_EME291_00128",null,null,""]
["ED_EME291_00129",null,null,""]
["ED_EME291_00130",null,null,""]
["ED_EME291_00131",null,null,""]
["ED_EME291_00132",null,null,""]
["ED_EME291_00133",null,null,""]
["ED_EME291_00134",null,null,""]
["ED_EME291_00135",null,null,""]
["ED_EME291_00136",null,null,""]
["ED_EME291_00137",null,null,""]
["ED_EME291_00138",null,null,""]
["ED_EME291_00139",null,null,""]
["ED_EME291_00140",null,null,""]
["ED_EME291_00141",null,null,""]
["ED_EME291_00142",null,null,""]
["ED_EME291_00143",null,null,""]
["ED_EME291_00144",null,null,""]
["ED_EME291_00145",null,null,""]
["ED_EME291_00146",null,null,""]
["ED_EME291_00147",null,null,""]
["ED_EME291_00148",null,null,""]
["ED_EME291_00149",null,null,""]
["ED_EME291_00150",null,null,""]
["ED_EME291_00151",null,null,""]
["ED_EME291_00152",null,null,""]
["ED_EME291_00153",null,null,""]
["ED_EME291_00154",null,null,""]
["ED_EME291_00155",null,null,""]
["ED_EME291_00156",null,null,""]
["ED_EME291_00157",null,null,""]
["ED_EME291_00158",null,null,""]
["ED_EME291_00159",null,null,""]
["ED_EME291_00160",null,null,""]
["ED_EME291_00161",null,null,""]
["ED_EME291_00162",null,null,""]
["ED_EME291_00163",null,null,""]
["ED_EME291_00164",null,null,""]
["ED_EME291_00165",null,null,""]
["ED_EME291_00166",null,null,""]
["ED_EME291_00167",null,null,""]
["ED_EME291_00168",null,null,""]
["ED_EME291_00169",null,null,""]
["ED_EME291_00170",null,null,""]
["ED_EME291_00171",null,null,""]
["ED_EME291_00172",null,null,""]
["ED_EME291_00173",null,null,""]
["ED_EME291_00174",null,null,""]
["ED_EME291_00175",null,null,""]
["ED_EME291_00176",null,null,""]
["ED_EME291_00177",null,null,""]
["ED_EME291_00178",null,null,""]
["ED_EME291_00179",null,null,""]
["ED_EME291_00180",null,null,""]
["ED_EME291_00181",null,null,""]
["ED_EME291_00182",null,null,""]
["ED_EME291_00183",null,null,""]
["ED_EME291_00184",null,null,""]
["ED_EME291_00185",null,null,""]
["ED_EME291_00186",null,null,""]
["ED_EME291_00187",null,null,""]
["ED_EME291_00188",null,null,""]
["ED_EME291_00189",null,null,""]
["ED_EME291_00190",null,null,""]
["ED_EME291_00191",null,null,""]
["ED_EME291_00192",null,null,""]
["ED_EME291_00193",null,null,""]
["ED_EME291_00194",null,null,""]
["ED_EME291_00195",null,null,""]
["ED_EME291_00196",null,null,""]
["ED_EME291_00197",null,null,""]
["ED_EME291_00198",null,null,""]
["ED_EME291_00199",null,null,""]
["ED_EME291_00200",null,null,""]
["ED_EME291_00201",null,null,""]
["ED_EME291_00202",null,null,""]
["ED_EME291_00203",null,null,""]
["ED_EME291_00204",null,null,""]
["ED_EME291_00205",null,null,""]
["ED_EME291_00206",null,null,""]
["ED_EME291_00207",null,null,""]
["ED_EME291_00208",null,null,""]
["ED_EME291_00209",null,null,""]
["ED_EME291_00210",null,null,""]
["ED_EME291_00211",null,null,""]
["ED_EME291_00212",null,null,""]
["ED_EME291_00213",null,null,""]
["ED_EME291_00214",null,null,""]
["ED_EME291_00215",null,null,""]
["ED_EME291_00216",null,null,""]
["ED_EME291_00217",null,null,""]
["ED_EME291_00218",null,null,""]
["ED_EME291_00219",null,null,""]
["ED_EME291_00220",null,null,""]
["ED_EME291_00221",null,null,""]
["ED_EME291_00222",null,null,""]
["ED_EME291_00223",null,null,""]
["ED_EME291_00224",null,null,""]
["ED_EME291_00225",null,null,""]
["ED_EME291_00226",null,null,""]
["ED_EME291_00227",null,null,""]
["ED_EME291_00228",null,null,""]
["ED_EME291_00229",null,null,""]
["ED_EME291_00230",null,null,""]
["ED_EME291_00231",null,null,""]
["ED_EME291_00232",null,null,""]
["ED_EME291_00233",null,null,""]
["ED_EME291_00234",null,null,""]
["ED_EME291_00235",null,null,""]
["ED_EME291_00236",null,null,""]
["ED_EME291_00237",null,null,""]
["ED_EME291_00238",null,null,""]
["ED_EME291_00239",null,null,""]
["ED_EME291_00240",null,null,""]
["ED_EME291_00241",null,null,""]
["ED_EME291_00242",null,null,""]
["ED_EME291_00243",null,null,""]
["ED_EME291_00244",null,null,""]
["ED_EME291_00245",null,null,""]
["ED_EME291_00246",null,null,""]
["ED_EME291_00247",null,null,""]
["ED_EME291_00248",null,null,""]
["ED_EME291_00249",null,null,""]
["ED_EME291_00250",null,null,""]
["ED_EME291_00251",null,null,""]
["ED_EME291_00252",null,null,""]
["ED_EME291_00253",null,null,""]
["ED_EME291_00254",null,null,""]
["ED_EME291_00255",null,null,""]
["ED_EME291_00256",null,null,""]
["ED_EME291_00257",null,null,""]
["ED_EME291_00258",null,null,""]
["ED_EME291_00259",null,null,""]
["ED_EME291_00260",null,null,""]
["ED_EME291_00261",null,null,""]
["ED_EME291_00262",null,null,""]
["ED_EME291_00263",null,null,""]
["ED_EME291_00264",null,null,""]
["ED_EME291_00265",null,null,""]
["ED_EME291_00266",null,null,""]
["ED_EME291_00267",null,null,""]
["ED_EME291_00268",null,null,""]
["ED_EME291_00269",null,null,""]
["ED_EME291_00270",null,null,""]
["ED_EME291_00271",null,null,""]
["ED_EME291_00272",null,null,""]
["ED_EME291_00273",null,null,""]
["ED_EME291_00274",null,null,""]
["ED_EME291_00275",null,null,""]
["ED_EME291_00276",null,null,""]
["ED_EME291_00277",null,null,""]
["ED_EME291_00278",null,null,""]
["ED_EME291_00279",null,null,""]
["ED_EME291_00280",null,null,""]
["ED_EME291_00281",null,null,""]
["ED_EME291_00282",null,null,""]
["ED_EME291_00283",null,null,""]
["ED_EME291_00284",null,null,""]
["ED_EME291_00285",null,null,""]
["ED_EME291_00286",null,null,""]
["ED_EME291_00287",null,null,""]
["ED_EME291_00288",null,null,""]
["ED_EME291_00289",null,null,""]
["ED_EME291_00290",null,null,""]
["ED_EME291_00291",null,null,""]
["ED_EME291_00292",null,null,""]
["ED_EME291_00293",null,null,""]
["ED_EME291_00294",null,null,""]
["ED_EME291_00295",null,null,""]
["ED_EME291_00296",null,null,""]
["ED_EME291_00297",null,null,""]
["ED_EME291_00298",null,null,""]
["ED_EME291_00299",null,null,""]
["ED_EME291_00300",null,null,""]
["ED_EME291_00301",null,null,""]
["ED_EME291_00302",null,null,""]
["ED_EME291_00303",null,null,""]
["ED_EME291_00304",null,null,""]
["ED_EME291_00305",null,null,""]
["ED_EME291_00306",null,null,""]
["ED_EME291_00307",null,null,""]
["ED_EME291_00308",null,null,""]
["ED_EME291_00309",null,null,""]
["ED_EME291_00310",null,null,""]
["ED_EME291_00311",null,null,""]
["ED_EME291_00312",null,null,""]
["ED_EME291_00313",null,null,""]
["ED_EME291_00314",null,null,""]
["ED_EME291_00315",null,null,""]
["ED_EME291_00316",null,null,""]
["ED_EME291_00317",null,null,""]
["ED_EME291_00318",null,null,""]
["ED_EME291_00319",null,null,""]
["ED_EME291_00320",null,null,""]
["ED_EME291_00321",null,null,""]
["ED_EME291_00322",null,null,""]
["ED_EME291_00323",null,null,""]
["ED_EME291_00324",null,null,""]
["ED_EME291_00325",null,null,""]
["ED_EME291_00326",null,null,""]
["ED_EME291_00327",null,null,""]
["ED_EME291_00328",null,null,""]
["ED_EME291_00329",null,null,""]
["ED_EME291_00330",null,null,""]
["ED_EME291_00331",null,null,""]
["ED_EME291_00332",null,null,""]
["ED_EME291_00333",null,null,""]
["ED_EME291_00334",null,null,""]
["ED_EME291_00335",null,null,""]
["ED_EME291_00336",null,null,""]
["ED_EME291_00337",null,null,""]
["ED_EME291_00338",null,null,""]
["ED_EME291_00339",null,null,""]
["ED_EME291_00340",null,null,""]
["ED_EME291_00341",null,null,""]
["ED_EME291_00342",null,null,""]
["ED_EME291_00343",null,null,""]
["ED_EME291_00344",null,null,""]
["ED_EME291_00345",null,null,""]
["ED_EME291_00346",null,null,""]
["ED_EME291_00347",null,null,""]
["ED_EME291_00348",null,null,""]
["ED_EME291_00349",null,null,""]
["ED_EME291_00350",null,null,""]
["ED_EME291_00351",null,null,""]
["ED_EME291_00352",null,null,""]
["ED_EME291_00353",null,null,""]
["ED_EME291_00354",null,null,""]
["ED_EME291_00355",null,null,""]
["ED_EME291_00356",null,null,""]
["ED_EME291_00357",null,null,""]
["ED_EME291_00358",null,null,""]
["ED_EME291_00359",null,null,""]
["ED_EME291_00360",null,null,""]
["ED_EME291_00361",null,null,""]
["ED_EME291_00362",null,null,""]
["ED_EME291_00363",null,null,""]
["ED_EME291_00364",null,null,""]
["ED_EME291_00365",null,null,""]
["ED_EME291_00366",null,null,""]
["ED_EME291_00367"]
["ED_EME291_00368"]
["ED_EME291_00369"]
["ED_EME291_00370"]
["ED_EME291_00371"]
["ED_EME291_00372"]
["ED_EME291_00373"]
["ED_EME291_00374"]
["ED_EME291_00375"]
["ED_EME291_00376"]
["ED_EME291_00377"]
["ED_EME291_00378"]
["ED_EME291_00379"]
["ED_EME291_00380"]
["ED_EME291_00381"]
["ED_EME291_00382"]
["ED_EME291_00383"]
["ED_EME291_00384"]
["ED_EME291_00385"]
["ED_EME291_00386"]
["ED_EME291_00387"]
["ED_EME291_00388"]
["ED_EME291_00389"]
["ED_EME291_00390"]
["ED_EME291_00391"]
["ED_EME291_00392"]
["ED_EME291_00393"]
["ED_EME291_00394"]
["ED_EME291_00395"]
["ED_EME291_00396"]
["ED_EME291_00397"]
["ED_EME291_00398"]
["ED_EME291_00399"]
["ED_EME291_00400"]
["ED_EME291_00401"]
["ED_EME291_00402"]
["ED_EME291_00403"]
["ED_EME291_00404"]
["ED_EME291_00405"]
["ED_EME291_00406"]
["ED_EME291_00407"]
["ED_EME291_00408"]
["ED_EME291_00409"]
["ED_EME291_00410"]
["ED_EME291_00411"]
["ED_EME291_00412"]
["ED_EME291_00413"]
["ED_EME291_00414"]
["ED_EME291_00415"]
["ED_EME291_00416"]
["ED_EME291_00417"]
["ED_EME291_00418"]
["ED_EME291_00419"]
["ED_EME291_00420"]
["ED_EME291_00421"]
["ED_EME291_00422"]
["ED_EME291_00423"]
["ED_EME291_00424"]
["ED_EME291_00425"]
["ED_EME291_00426"]
["ED_EME291_00427"]
["ED_EME291_00428"]
["ED_EME291_00429"]
["ED_EME291_00430"]
["ED_EME291_00431"]
["ED_EME291_00432"]
["ED_EME291_00433"]
["ED_EME291_00434"]
["ED_EME291_00435"]
["ED_EME291_00436"]
["ED_EME291_00437"]
["ED_EME291_00438"]
["ED_EME291_00439"]
["ED_EME291_00440"]
["ED_EME291_00441"]
["ED_EME291_00442"]
["ED_EME291_00443"]
["ED_EME291_00444"]
["ED_EME291_00445"]
["ED_EME291_00446"]
["ED_EME291_00447"]
["ED_EME291_00448"]
["ED_EME291_00449"]
["ED_EME291_00450"]
["ED_EME291_00451"]
["ED_EME291_00452"]
["ED_EME291_00453"]
["ED_EME291_00454"]
["ED_EME291_00455"]
["ED_EME291_00456"]
["ED_EME291_00457"]
["ED_EME291_00458"]
["ED_EME291_00459"]
["ED_EME291_00460"]
["ED_EME291_00461"]
["ED_EME291_00462"]
["ED_EME291_00463"]
["ED_EME291_00464"]
["ED_EME291_00465"]
["ED_EME291_00466"]
["ED_EME291_00467"]
["ED_EME291_00468"]
["ED_EME291_00469"]
["ED_EME291_00470"]
["ED_EME291_00471"]
["ED_EME291_00472"]
["ED_EME291_00473"]
["ED_EME291_00474"]
["ED_EME291_00475"]
["ED_EME291_00476"]
["ED_EME291_00477"]
["ED_EME291_00478"]
["ED_EME291_00479"]
["ED_EME291_00480"]
["ED_EME291_00481"]
["ED_EME291_00482"]
["ED_EME291_00483"]
["ED_EME291_00484"]
["ED_EME291_00485"]
["ED_EME291_00486"]
["ED_EME291_00487"]
["ED_EME291_00488"]
["ED_EME291_00489"]
["ED_EME291_00490"]
["ED_EME291_00491"]
["ED_EME291_00492"]
["ED_EME291_00493"]
["ED_EME291_00494"]
["ED_EME291_00495"]
["ED_EME291_00496"]
["ED_EME291_00497"]
["ED_EME291_00498"]
["ED_EME291_00499"]
["ED_EME291_00500"]
["ED_EME291_00501"]
["ED_EME291_00502"]
["ED_EME291_00503"]
["ED_EME291_00504"]
["ED_EME291_00505"]
["ED_EME291_00506"]
["ED_EME291_00507"]
["ED_EME291_00508"]
["ED_EME291_00509"]
["ED_EME291_00510"]
["ED_EME291_00511"]
["ED_EME291_00512"]
["ED_EME291_00513"]
["ED_EME291_00514"]
["ED_EME291_00515"]
["ED_EME291_00516"]
["ED_EME291_00517"]
["ED_EME291_00518"]
["ED_EME291_00519"]
["ED_EME291_00520"]
["ED_EME291_00521"]
["ED_EME291_00522"]
["ED_EME291_00523"]
["ED_EME291_00524"]
["ED_EME291_00525"]
["ED_EME291_00526"]
["ED_EME291_00527"]
["ED_EME291_00528"]
["ED_EME291_00529"]
["ED_EME291_00530"]
["ED_EME291_00531"]
["ED_EME291_00532"]
["ED_EME291_00533"]
["ED_EME291_00534"]
["ED_EME291_00535"]
["ED_EME291_00536"]
["ED_EME291_00537"]
["ED_EME291_00538"]
["ED_EME291_00539"]
["ED_EME291_00540"]
["ED_EME291_00541"]
["ED_EME291_00542"]
["ED_EME291_00543"]
["ED_EME291_00544"]
["ED_EME291_00545"]
["ED_EME291_00546"]
["ED_EME291_00547"]
["ED_EME291_00548"]
["ED_EME291_00549"]
["ED_EME291_00550"]
["ED_EME291_00551"]
["ED_EME291_00552"]
["ED_EME291_00553"]
["ED_EME291_00554"]
["ED_EME291_00555"]
["ED_EME291_00556"]
["ED_EME291_00557"]
["ED_EME291_00558"]
["ED_EME291_00559"]
["ED_EME291_00560"]
["ED_EME291_00561"]
["ED_EME291_00562"]
["ED_EME291_00563"]
["ED_EME291_00564"]
["ED_EME291_00565"]
["ED_EME291_00566"]
["ED_EME291_00567"]
["ED_EME291_00568"]
["ED_EME291_00569"]
["ED_EME291_00570"]
["ED_EME291_00571"]
["ED_EME291_00572"]
["ED_EME291_00573"]
["ED_EME291_00574"]
["ED_EME291_00575"]
["ED_EME291_00576"]
["ED_EME291_00577"]
["ED_EME291_00578"]
["ED_EME291_00579"]
["ED_EME291_00580"]
["ED_EME291_00581"]
["ED_EME291_00582"]
["ED_EME291_00583"]
["ED_EME291_00584"]
["ED_EME291_00585"]
["ED_EME291_00586"]
["ED_EME291_00587"]
["ED_EME291_00588"]
["ED_EME291_00589"]
["ED_EME291_00590"]
["ED_EME291_00591"]
["ED_EME291_00592"]
["ED_EME291_00593"]

{"sheet":"2.10 Overheads","index":10,"n_rows":173,"n_cols":5,"rows_kept":173,"cut":false,"hidden":false,"merged":[[67,1,68,1],[150,1,151,1]]}
[null,{"$f":"(LOOKUP(dms_Model,dms_Model_List,dms_Worksheet_List))","v":"REGULATORY REPORTING STATEMENT"}]
[null,"Australian Distribution Co."]
[null,{"$f":"CONCATENATE(\"Category Analysis RIN response \",CRY)","v":"Category Analysis RIN response 2014-15"}]
[null,"2.10 OVERHEADS"]
[]
[]
[]
[null,"TABLE 2.10.1 - NETWORK OVERHEADS EXPENDITURE"]
[]
[null,null,null,null,"EXPENDITURE\n($0's)"]
["OVE2101",null,null,null,{"$f":"CRY","v":"2014-15"}]
["ED_OVE2101_00001","NETWORK OVERHEADS","Total Overhead Expenditure - Standard Control Services","Network management",{"$f":"SUM('[2]2.10 Overheads'!E12,'[3]2.10 Overheads'!E12)","v":0}]
["ED_OVE2101_00002",null,null,"Network planning",{"$f":"SUM('[2]2.10 Overheads'!E13,'[3]2.10 Overheads'!E13)","v":3215707.6999999997}]
["ED_OVE2101_00003",null,null,"Network control and operational switching",{"$f":"SUM('[2]2.10 Overheads'!E14,'[3]2.10 Overheads'!E14)","v":4744234.2799999993}]
["ED_OVE2101_00004",null,null,"Quality and standard functions",{"$f":"SUM('[2]2.10 Overheads'!E15,'[3]2.10 Overheads'!E15)","v":1416802.1}]
["ED_OVE2101_00005",null,null,"Project governance and related functions",{"$f":"SUM('[2]2.10 Overheads'!E16,'[3]2.10 Overheads'!E16)","v":0}]
["ED_OVE2101_00006",null,null,"Other",{"$f":"SUM('[2]2.10 Overheads'!E17,'[3]2.10 Overheads'!E17)","v":0}]
["ED_OVE2101_00007",null,null,"Regulatory Operations",{"$f":"SUM('[2]2.10 Overheads'!E18,'[3]2.10 Overheads'!E18)","v":5729018.71}]
["ED_OVE2101_00008",null,null,"National Electricity Market Operations",{"$f":"SUM('[2]2.10 Overheads'!E19,'[3]2.10 Overheads'!E19)","v":1005158.23}]
["ED_OVE2101_00009",null,null,"Training Apprenticeship & Engineers",{"$f":"SUM('[2]2.10 Overheads'!E20,'[3]2.10 Overheads'!E20)","v":1855598.1199999999}]
["ED_OVE2101_00010",null,null,"Customer Service",{"$f":"SUM('[2]2.10 Overheads'!E21,'[3]2.10 Overheads'!E21)","v":5166206.3299999982}]
["ED_OVE2101_00011",null,null,"Advertising & marketing",{"$f":"SUM('[2]2.10 Overheads'!E22,'[3]2.10 Overheads'!E22)","v":1003205.9599999998}]
["ED_OVE2101_00012",null,null,"Business Overhead",{"$f":"SUM('[2]2.10 Overheads'!E23,'[3]2.10 Overheads'!E23)","v":4538041.2500000075}]
["ED_OVE2101_00013",null,null,"Restructuring Expenditure",{"$f":"SUM('[2]2.10 Overheads'!E24,'[3]2.10 Overheads'!E24)","v":16684707.82}]
["ED_OVE2101_00014",null,null,"Recoveries",{"$f":"SUM('[2]2.10 Overheads'!E25,'[3]2.10 Overheads'!E25)","v":-354838.72000001371}]
["ED_OVE2101_00015"]
["ED_OVE2101_00016"]
["ED_OVE2101_00017"]
["ED_OVE2101_00018"]
["ED_OVE2101_00019"]
["ED_OVE2101_00020"]
["ED_OVE2101_00021"]
["ED_OVE2101_00022"]
["ED_OVE2101_00023"]
["ED_OVE2101_00024"]
["ED_OVE2101_00025"]
["ED_OVE2101_00026"]
["ED_OVE2101_00027"]
["ED_OVE2101_00028"]
["ED_OVE2101_00029","NETWORK OVERHEADS","Total Overhead Expenditure - Alternative Control Services","Network management",{"$f":"'[2]2.10 Overheads'!E40+'[3]2.10 Overheads'!E40","v":0}]
["ED_OVE2101_00030",null,null,"Network planning",{"$f":"'[2]2.10 Overheads'!E41+'[3]2.10 Overheads'!E41","v":0}]
["ED_OVE2101_00031",null,null,"Network control and operational switching",{"$f":"'[2]2.10 Overheads'!E42+'[3]2.10 Overheads'!E42","v":0}]
["ED_OVE2101_00032",null,null,"Quality and standard functions",{"$f":"'[2]2.10 Overheads'!E43+'[3]2.10 Overheads'!E43","v":0}]
["ED_OVE2101_00033",null,null,"Project governance and related functions",{"$f":"'[2]2.10 Overheads'!E44+'[3]2.10 Overheads'!E44","v":0}]
["ED_OVE2101_00034"]
["ED_OVE2101_00035"]
["ED_OVE2101_00036"]
["ED_OVE2101_00037"]
["ED_OVE2101_00038"]
["ED_OVE2101_00039"]
["ED_OVE2101_00040"]
["ED_OVE2101_00041"]
["ED_OVE2101_00042"]
["ED_OVE2101_00043"]
["ED_OVE2101_00044"]
["ED_OVE2101_00045"]
["ED_OVE2101_00046"]
["ED_OVE2101_00047"]
["ED_OVE2101_00048"]
["ED_OVE2101_00049"]
["ED_OVE2101_00050"]
["ED_OVE2101_00051"]
["ED_OVE2101_00052"]
["ED_OVE2101_00053"]
["ED_OVE2101_00054"]
["ED_OVE2101_00055"]
["ED_OVE2101_00056"]
["ED_OVE2101_00057","NETWORK OVERHEADS","Total Overhead Expenditure - Negotiated Services","Total  "]
["ED_OVE2101_00058",null,"Total Overhead Expenditure - Unregulated Services","Total  "]
["ED_OVE2101_00059","NETWORK OVERHEADS","Capitalised Overheads - Standard Control Services","Network management",{"$f":"'[2]2.10 Overheads'!E70+'[3]2.10 Overheads'!E70","v":0}]
["ED_OVE2101_00060",null,null,"Network planning",{"$f":"'[2]2.10 Overheads'!E71+'[3]2.10 Overheads'!E71","v":0}]
["ED_OVE2101_00061",null,null,"Network control and operational switching",{"$f":"'[2]2.10 Overheads'!E72+'[3]2.10 Overheads'!E72","v":0}]
["ED_OVE2101_00062",null,null,"Quality and standard functions",{"$f":"'[2]2.10 Overheads'!E73+'[3]2.10 Overheads'!E73","v":0}]
["ED_OVE2101_00063",null,null,"Project governance and related functions",{"$f":"'[2]2.10 Overheads'!E74+'[3]2.10 Overheads'!E74","v":0}]
["ED_OVE2101_00064"]
["ED_OVE2101_00065"]
["ED_OVE2101_00066"]
["ED_OVE2101_00067"]
["ED_OVE2101_00068"]
["ED_OVE2101_00069"]
["ED_OVE2101_00070"]
["ED_OVE2101_00071"]
["ED_OVE2101_00072"]
["ED_OVE2101_00073"]
["ED_OVE2101_00074"]
["ED_OVE2101_00075"]
["ED_OVE2101_00076"]
["ED_OVE2101_00077"]
["ED_OVE2101_00078"]
["ED_OVE2101_00079"]
["ED_OVE2101_00080"]
["ED_OVE2101_00081"]
["ED_OVE2101_00082"]
["ED_OVE2101_00083"]
["ED_OVE2101_00084"]
["ED_OVE2101_00085"]
["ED_OVE2101_00086"]
[]
[]
[]
[]
[]
[]
[]
[null,"TABLE 2.10.2 - CORPORATE OVERHEADS EXPENDITURE"]
[]
[null,null,null,null,"EXPENDITURE\n($0's)"]
["OVE2102",null,null,null,{"$f":"CRY","v":"2014-15"}]
["ED_OVE2102_00002","CORPORATE OVERHEADS","Total Overhead Expenditure - Standard Control Services","Corporate Accounts"]
["ED_OVE2102_00003",null,null,"Core Systems Replacement Program ",{"$f":"'[2]2.10 Overheads'!E110+'[3]2.10 Overheads'!E110","v":394656.41}]
["ED_OVE2102_00004",null,null,"Property & Security",{"$f":"'[2]2.10 Overheads'!E111+'[3]2.10 Overheads'!E111","v":819061.81499999994}]
["ED_OVE2102_00005",null,null,"Executive ",{"$f":"'[2]2.10 Overheads'!E112+'[3]2.10 Overheads'!E112","v":44563.891000000003}]
["ED_OVE2102_00006",null,null,"Regulatory Corporate",{"$f":"'[2]2.10 Overheads'!E113+'[3]2.10 Overheads'!E113","v":280402.11099999998}]
["ED_OVE2102_00007",null,null,"Legal & Secretariat Division",{"$f":"'[2]2.10 Overheads'!E114+'[3]2.10 Overheads'!E114","v":438561.429}]
["ED_OVE2102_00008",null,null,"Business Systems Division",{"$f":"'[2]2.10 Overheads'!E115+'[3]2.10 Overheads'!E115","v":2045553.331}]
["ED_OVE2102_00009",null,null,"People & Performance",{"$f":"'[2]2.10 Overheads'!E116+'[3]2.10 Overheads'!E116","v":619910.73800000001}]
["ED_OVE2102_00010",null,null,"Corporate Finance",{"$f":"'[2]2.10 Overheads'!E117+'[3]2.10 Overheads'!E117","v":1563310.558}]
["ED_OVE2102_00011",null,null,"Accounts Payable",{"$f":"'[2]2.10 Overheads'!E118+'[3]2.10 Overheads'!E118","v":73354.078999999998}]
["ED_OVE2102_00012",null,null,"Environment, Health, Safety, & Quality (EHSQ)",{"$f":"'[2]2.10 Overheads'!E119+'[3]2.10 Overheads'!E119","v":875027.43299999996}]
["ED_OVE2102_00013",null,null,"Contracts & Procurement",{"$f":"'[2]2.10 Overheads'!E120+'[3]2.10 Overheads'!E120","v":320063.58}]
["ED_OVE2102_00014",null,null,"Storage and Warehouse ",{"$f":"'[2]2.10 Overheads'!E121+'[3]2.10 Overheads'!E121","v":649871.15500000003}]
["ED_OVE2102_00015",null,null,null,""]
["ED_OVE2102_00016",null,null,null,""]
["ED_OVE2102_00017",null,null,null,""]
["ED_OVE2102_00018",null,null,null,""]
["ED_OVE2102_00019",null,null,null,""]
["ED_OVE2102_00020",null,null,null,""]
["ED_OVE2102_00021",null,null,null,""]
["ED_OVE2102_00022",null,null,null,""]
["ED_OVE2102_00023","CORPORATE OVERHEADS","Total Overhead Expenditure - Alternative Control Services","Corporate Accounts"]
["ED_OVE2102_00024",null,null,"Core Systems Replacement Program ",{"$f":"'[2]2.10 Overheads'!E131+'[3]2.10 Overheads'!E131","v":144752.59400000001}]
["ED_OVE2102_00025",null,null,"Property & Security",{"$f":"'[2]2.10 Overheads'!E132+'[3]2.10 Overheads'!E132","v":300416.56300000002}]
["ED_OVE2102_00026",null,null,"Executive ",{"$f":"'[2]2.10 Overheads'!E133+'[3]2.10 Overheads'!E133","v":16345.201999999999}]
["ED_OVE2102_00027",null,null,"Regulatory Corporate",{"$f":"'[2]2.10 Overheads'!E134+'[3]2.10 Overheads'!E134","v":102846.253}]
["ED_OVE2102_00028",null,null,"Legal & Secretariat Division",{"$f":"'[2]2.10 Overheads'!E135+'[3]2.10 Overheads'!E135","v":160856.13399999999}]
["ED_OVE2102_00029",null,null,"Business Systems Division",{"$f":"'[2]2.10 Overheads'!E136+'[3]2.10 Overheads'!E136","v":750270.72400000005}]
["ED_OVE2102_00030",null,null,"People & Performance",{"$f":"'[2]2.10 Overheads'!E137+'[3]2.10 Overheads'!E137","v":227371.671}]
["ED_OVE2102_00031",null,null,"Corporate Finance",{"$f":"'[2]2.10 Overheads'!E138+'[3]2.10 Overheads'!E138","v":573393.08900000004}]
["ED_OVE2102_00032",null,null,"Accounts Payable",{"$f":"'[2]2.10 Overheads'!E139+'[3]2.10 Overheads'!E139","v":26904.904999999999}]
["ED_OVE2102_00033",null,null,"Environment, Health, Safety, & Quality (EHSQ)",{"$f":"'[2]2.10 Overheads'!E140+'[3]2.10 Overheads'!E140","v":320943.70500000002}]
["ED_OVE2102_00034",null,null,"Contracts & Procurement",{"$f":"'[2]2.10 Overheads'!E141+'[3]2.10 Overheads'!E141","v":117393.338}]
["ED_OVE2102_00035",null,null,"Storage and Warehouse ",{"$f":"'[2]2.10 Overheads'!E142+'[3]2.10 Overheads'!E142","v":238360.592}]
["ED_OVE2102_00036",null,null,null,""]
["ED_OVE2102_00037",null,null,null,""]
["ED_OVE2102_00038",null,null,null,""]
["ED_OVE2102_00039",null,null,null,""]
["ED_OVE2102_00040",null,null,null,""]
["ED_OVE2102_00041",null,null,null,""]
["ED_OVE2102_00042",null,null,null,""]
["ED_OVE2102_00043",null,null,null,""]
["ED_OVE2102_00044","CORPORATE OVERHEADS","Total Overhead Expenditure - Negotiated Services","Total"]
["ED_OVE2102_00045",null,"Total Overhead Expenditure - Unregulated Services","Total",{"$f":"'[2]2.10 Overheads'!E152+'[3]2.10 Overheads'!E152","v":633958.29}]
["ED_OVE2102_00046","CORPORATE OVERHEADS","Capitalised Overheads - Standard Control Services","Corporate Accounts",{"$f":"'[2]2.10 Overheads'!E153+'[3]2.10 Overheads'!E153","v":0}]
["ED_OVE2102_00047",null,null,"Core Systems Replacement Program ",{"$f":"'[2]2.10 Overheads'!E154+'[3]2.10 Overheads'!E154","v":675158.90899999999}]
["ED_OVE2102_00048",null,null,"Property & Security",{"$f":"'[2]2.10 Overheads'!E155+'[3]2.10 Overheads'!E155","v":1401210.9469999999}]
["ED_OVE2102_00049",null,null,"Executive ",{"$f":"'[2]2.10 Overheads'!E156+'[3]2.10 Overheads'!E156","v":76237.728000000003}]
["ED_OVE2102_00050",null,null,"Regulatory Corporate",{"$f":"'[2]2.10 Overheads'!E157+'[3]2.10 Overheads'!E157","v":479698.23599999998}]
["ED_OVE2102_00051",null,null,"Legal & Secretariat Division",{"$f":"'[2]2.10 Overheads'!E158+'[3]2.10 Overheads'!E158","v":750269.47199999995}]
["ED_OVE2102_00052",null,null,"Business Systems Division",{"$f":"'[2]2.10 Overheads'!E159+'[3]2.10 Overheads'!E159","v":3499432.7250000001}]
["ED_OVE2102_00053",null,null,"People & Performance",{"$f":"'[2]2.10 Overheads'!E160+'[3]2.10 Overheads'!E160","v":1060513.0120000001}]
["ED_OVE2102_00054",null,null,"Corporate Finance",{"$f":"'[2]2.10 Overheads'!E161+'[3]2.10 Overheads'!E161","v":2674435.3429999999}]
["ED_OVE2102_00055",null,null,"Accounts Payable",{"$f":"'[2]2.10 Overheads'!E162+'[3]2.10 Overheads'!E162","v":125490.576}]
["ED_OVE2102_00056",null,null,"Environment, Health, Safety, & Quality (EHSQ)",{"$f":"'[2]2.10 Overheads'!E163+'[3]2.10 Overheads'!E163","v":1496954.192}]
["ED_OVE2102_00057",null,null,"Contracts & Procurement",{"$f":"'[2]2.10 Overheads'!E164+'[3]2.10 Overheads'!E164","v":547549.13899999997}]
["ED_OVE2102_00058",null,null,"Storage and Warehouse ",{"$f":"'[2]2.10 Overheads'!E165+'[3]2.10 Overheads'!E165","v":1111767.83}]
["ED_OVE2102_00059",null,null,null,""]
["ED_OVE2102_00060",null,null,null,""]
["ED_OVE2102_00061",null,null,null,""]
["ED_OVE2102_00062",null,null,null,""]
["ED_OVE2102_00063",null,null,null,""]
["ED_OVE2102_00064",null,null,null,""]
["ED_OVE2102_00065",null,null,null,""]
["ED_OVE2102_00066",null,null,null,""]

{"sheet":"2.11 Labour","index":11,"n_rows":66,"n_cols":16,"rows_kept":66,"cut":false,"hidden":false,"merged":[[9,14,9,15],[9,4,10,4],[9,5,10,5],[9,6,10,6],[9,7,10,7],[9,12,9,13]]}
[null,{"$f":"(LOOKUP(dms_Model,dms_Model_List,dms_Worksheet_List))","v":"REGULATORY REPORTING STATEMENT"}]
[null,"Australian Distribution Co."]
[null,{"$f":"CONCATENATE(\"Category Analysis RIN response \",CRY)","v":"Category Analysis RIN response 2014-15"}]
[null,"2.11 LABOUR"]
[]
[null,"TABLE 2.11.1 - COST METRICS PER ANNUM",null,null,null,null,null,null,null,"TABLE 2.11.2 - EXTRA DESCRIPTOR METRICS FOR CURRENT YEAR"]
[]
[]
[]
[null,null,null,null,"ASL \n(0'S)","TOTAL LABOUR EXPENDITURE\n($0's)","AVERAGE PRODUCTIVE WORK HOURS PER ASL \n(0'S)","STAND-DOWN OCCURENCES PER ASL \n(0'S)",null,null,null,null,"AVERAGE PRODUCTIVE WORK HOURS \nORDINARY TIME (0's)",null,"AVERAGE PRODUCTIVE WORK HOURS \nOVERTIME (0's)"]
[null,null,null,null,null,null,null,null,null,null,null,null,"PER ASL","HOURLY RATE PER ASL","PER ASL","HOURLY RATE PER ASL"]
[null,null,null,null,{"$f":"CRY","v":"2014-15"},{"$f":"CRY","v":"2014-15"},{"$f":"CRY","v":"2014-15"},{"$f":"CRY","v":"2014-15"},null,null,null,null,{"$f":"CRY","v":"2014-15"},{"$f":"CRY","v":"2014-15"},{"$f":"CRY","v":"2014-15"},{"$f":"CRY","v":"2014-15"}]
["ED_LAB2111_00001","CORPORATE OVERHEADS \nINTERNAL LABOUR COSTS","LABOUR CLASSIFICATION LEVEL","Executive manager",{"$f":"SUM('[2]2.11 Labour'!E13,'[3]2.11 Labour'!E13)","v":3.1259127478313236},{"$f":"SUM('[2]2.11 Labour'!F13,'[3]2.11 Labour'!F13)","v":2160.924662134893},{"$f":"SUM('[2]2.11 Labour'!G13,'[3]2.11 Labour'!G13)","v":1646.3999999999999},{"$f":"SUM('[2]2.11 Labour'!H13,'[3]2.11 Labour'!H13)","v":0},"ED_LAB2112_00001","CORPORATE OVERHEADS \nINTERNAL LABOUR COSTS","LABOUR CLASSIFICATION LEVEL","Executive manager",{"$f":"SUM('[2]2.11 Labour'!M13,'[3]2.11 Labour'!M13)","v":1646.3999999999999},{"$f":"SUM('[2]2.11 Labour'!N13,'[3]2.11 Labour'!N13)","v":419.88215452955404},{"$f":"SUM('[2]2.11 Labour'!O13,'[3]2.11 Labour'!O13)","v":0},{"$f":"SUM('[2]2.11 Labour'!P13,'[3]2.11 Labour'!P13)","v":0}]
["ED_LAB2111_00002",null,null,"Employee (optional)",{"$f":"SUM('[2]2.11 Labour'!E14,'[3]2.11 Labour'!E14)","v":0},{"$f":"SUM('[2]2.11 Labour'!F14,'[3]2.11 Labour'!F14)","v":0},{"$f":"SUM('[2]2.11 Labour'!G14,'[3]2.11 Labour'!G14)","v":0},{"$f":"SUM('[2]2.11 Labour'!H14,'[3]2.11 Labour'!H14)","v":0},"ED_LAB2112_00002",null,null,"Employee (optional)",{"$f":"SUM('[2]2.11 Labour'!M14,'[3]2.11 Labour'!M14)","v":0},{"$f":"SUM('[2]2.11 Labour'!N14,'[3]2.11 Labour'!N14)","v":0},{"$f":"SUM('[2]2.11 Labour'!O14,'[3]2.11 Labour'!O14)","v":0},{"$f":"SUM('[2]2.11 Labour'!P14,'[3]2.11 Labour'!P14)","v":0}]
["ED_LAB2111_00003",null,null,"Labour hire (optional)",{"$f":"SUM('[2]2.11 Labour'!E15,'[3]2.11 Labour'!E15)","v":0},{"$f":"SUM('[2]2.11 Labour'!F15,'[3]2.11 Labour'!F15)","v":0},{"$f":"SUM('[2]2.11 Labour'!G15,'[3]2.11 Labour'!G15)","v":0},{"$f":"SUM('[2]2.11 Labour'!H15,'[3]2.11 Labour'!H15)","v":0},"ED_LAB2112_00003",null,null,"Labour hire (optional)",{"$f":"SUM('[2]2.11 Labour'!M15,'[3]2.11 Labour'!M15)","v":0},{"$f":"SUM('[2]2.11 Labour'!N15,'[3]2.11 Labour'!N15)","v":0},{"$f":"SUM('[2]2.11 Labour'!O15,'[3]2.11 Labour'!O15)","v":0},{"$f":"SUM('[2]2.11 Labour'!P15,'[3]2.11 Labour'!P15)","v":0}]
["ED_LAB2111_00004",null,null,"Senior manager",{"$f":"SUM('[2]2.11 Labour'!E16,'[3]2.11 Labour'!E16)","v":4.6808539608551101},{"$f":"SUM('[2]2.11 Labour'!F16,'[3]2.11 Labour'!F16)","v":1235.6805644594094},{"$f":"SUM('[2]2.11 Labour'!G16,'[3]2.11 Labour'!G16)","v":1646.3999999999999},{"$f":"SUM('[2]2.11 Labour'!H16,'[3]2.11 Labour'!H16)","v":0},"ED_LAB2112_00004",null,null,"Senior manager",{"$f":"SUM('[2]2.11 Labour'!M16,'[3]2.11 Labour'!M16)","v":1646.3999999999999},{"$f":"SUM('[2]2.11 Labour'!N16,'[3]2.11 Labour'!N16)","v":160.3414352669995},{"$f":"SUM('[2]2.11 Labour'!O16,'[3]2.11 Labour'!O16)","v":0},{"$f":"SUM('[2]2.11 Labour'!P16,'[3]2.11 Labour'!P16)","v":0}]
["ED_LAB2111_00005",null,null,"Employee (optional)",{"$f":"SUM('[2]2.11 Labour'!E17,'[3]2.11 Labour'!E17)","v":0},{"$f":"SUM('[2]2.11 Labour'!F17,'[3]2.11 Labour'!F17)","v":0},{"$f":"SUM('[2]2.11 Labour'!G17,'[3]2.11 Labour'!G17)","v":0},{"$f":"SUM('[2]2.11 Labour'!H17,'[3]2.11 Labour'!H17)","v":0},"ED_LAB2112_00005",null,null,"Employee (optional)",{"$f":"SUM('[2]2.11 Labour'!M17,'[3]2.11 Labour'!M17)","v":0},{"$f":"SUM('[2]2.11 Labour'!N17,'[3]2.11 Labour'!N17)","v":0},{"$f":"SUM('[2]2.11 Labour'!O17,'[3]2.11 Labour'!O17)","v":0},{"$f":"SUM('[2]2.11 Labour'!P17,'[3]2.11 Labour'!P17)","v":0}]
["ED_LAB2111_00006",null,null,"Labour hire (optional)",{"$f":"SUM('[2]2.11 Labour'!E18,'[3]2.11 Labour'!E18)","v":0},{"$f":"SUM('[2]2.11 Labour'!F18,'[3]2.11 Labour'!F18)","v":0},{"$f":"SUM('[2]2.11 Labour'!G18,'[3]2.11 Labour'!G18)","v":0},{"$f":"SUM('[2]2.11 Labour'!H18,'[3]2.11 Labour'!H18)","v":0},"ED_LAB2112_00006",null,null,"Labour hire (optional)",{"$f":"SUM('[2]2.11 Labour'!M18,'[3]2.11 Labour'!M18)","v":0},{"$f":"SUM('[2]2.11 Labour'!N18,'[3]2.11 Labour'!N18)","v":0},{"$f":"SUM('[2]2.11 Labour'!O18,'[3]2.11 Labour'!O18)","v":0},{"$f":"SUM('[2]2.11 Labour'!P18,'[3]2.11 Labour'!P18)","v":0}]
["ED_LAB2111_00007",null,null,"Manager",{"$f":"SUM('[2]2.11 Labour'!E19,'[3]2.11 Labour'!E19)","v":15.627159190889055},{"$f":"SUM('[2]2.11 Labour'!F19,'[3]2.11 Labour'!F19)","v":2792.7221262474095},{"$f":"SUM('[2]2.11 Labour'!G19,'[3]2.11 Labour'!G19)","v":1646.3999999999999},{"$f":"SUM('[2]2.11 Labour'!H19,'[3]2.11 Labour'!H19)","v":0},"ED_LAB2112_00007",null,null,"Manager",{"$f":"SUM('[2]2.11 Labour'!M19,'[3]2.11 Labour'!M19)","v":1646.3999999999999},{"$f":"SUM('[2]2.11 Labour'!N19,'[3]2.11 Labour'!N19)","v":108.54562714398034},{"$f":"SUM('[2]2.11 Labour'!O19,'[3]2.11 Labour'!O19)","v":0},{"$f":"SUM('[2]2.11 Labour'!P19,'[3]2.11 Labour'!P19)","v":0}]
["ED_LAB2111_00008",null,null,"Employee (optional)",{"$f":"SUM('[2]2.11 Labour'!E20,'[3]2.11 Labour'!E20)","v":0},{"$f":"SUM('[2]2.11 Labour'!F20,'[3]2.11 Labour'!F20)","v":0},{"$f":"SUM('[2]2.11 Labour'!G20,'[3]2.11 Labour'!G20)","v":0},{"$f":"SUM('[2]2.11 Labour'!H20,'[3]2.11 Labour'!H20)","v":0},"ED_LAB2112_00008",null,null,"Employee (optional)",{"$f":"SUM('[2]2.11 Labour'!M20,'[3]2.11 Labour'!M20)","v":0},{"$f":"SUM('[2]2.11 Labour'!N20,'[3]2.11 Labour'!N20)","v":0},{"$f":"SUM('[2]2.11 Labour'!O20,'[3]2.11 Labour'!O20)","v":0},{"$f":"SUM('[2]2.11 Labour'!P20,'[3]2.11 Labour'!P20)","v":0}]
["ED_LAB2111_00009",null,null,"Labour hire (optional)",{"$f":"SUM('[2]2.11 Labour'!E21,'[3]2.11 Labour'!E21)","v":0},{"$f":"SUM('[2]2.11 Labour'!F21,'[3]2.11 Labour'!F21)","v":0},{"$f":"SUM('[2]2.11 Labour'!G21,'[3]2.11 Labour'!G21)","v":0},{"$f":"SUM('[2]2.11 Labour'!H21,'[3]2.11 Labour'!H21)","v":0},"ED_LAB2112_00009",null,null,"Labour hire (optional)",{"$f":"SUM('[2]2.11 Labour'!M21,'[3]2.11 Labour'!M21)","v":0},{"$f":"SUM('[2]2.11 Labour'!N21,'[3]2.11 Labour'!N21)","v":0},{"$f":"SUM('[2]2.11 Labour'!O21,'[3]2.11 Labour'!O21)","v":0},{"$f":"SUM('[2]2.11 Labour'!P21,'[3]2.11 Labour'!P21)","v":0}]
["ED_LAB2111_00010",null,null,"Professional",{"$f":"SUM('[2]2.11 Labour'!E22,'[3]2.11 Labour'!E22)","v":19.408552668619077},{"$f":"SUM('[2]2.11 Labour'!F22,'[3]2.11 Labour'!F22)","v":2970.3157371769994},{"$f":"SUM('[2]2.11 Labour'!G22,'[3]2.11 Labour'!G22)","v":1646.3999999999999},{"$f":"SUM('[2]2.11 Labour'!H22,'[3]2.11 Labour'!H22)","v":0},"ED_LAB2112_00010",null,null,"Professional",{"$f":"SUM('[2]2.11 Labour'!M22,'[3]2.11 Labour'!M22)","v":1646.3999999999999},{"$f":"SUM('[2]2.11 Labour'!N22,'[3]2.11 Labour'!N22)","v":92.955289616046144},{"$f":"SUM('[2]2.11 Labour'!O22,'[3]2.11 Labour'!O22)","v":0},{"$f":"SUM('[2]2.11 Labour'!P22,'[3]2.11 Labour'!P22)","v":0}]
["ED_LAB2111_00011",null,null,"Employee (optional)",{"$f":"SUM('[2]2.11 Labour'!E23,'[3]2.11 Labour'!E23)","v":0},{"$f":"SUM('[2]2.11 Labour'!F23,'[3]2.11 Labour'!F23)","v":0},{"$f":"SUM('[2]2.11 Labour'!G23,'[3]2.11 Labour'!G23)","v":0},{"$f":"SUM('[2]2.11 Labour'!H23,'[3]2.11 Labour'!H23)","v":0},"ED_LAB2112_00011",null,null,"Employee (optional)",{"$f":"SUM('[2]2.11 Labour'!M23,'[3]2.11 Labour'!M23)","v":0},{"$f":"SUM('[2]2.11 Labour'!N23,'[3]2.11 Labour'!N23)","v":0},{"$f":"SUM('[2]2.11 Labour'!O23,'[3]2.11 Labour'!O23)","v":0},{"$f":"SUM('[2]2.11 Labour'!P23,'[3]2.11 Labour'!P23)","v":0}]
["ED_LAB2111_00012",null,null,"Labour hire (optional)",{"$f":"SUM('[2]2.11 Labour'!E24,'[3]2.11 Labour'!E24)","v":0},{"$f":"SUM('[2]2.11 Labour'!F24,'[3]2.11 Labour'!F24)","v":0},{"$f":"SUM('[2]2.11 Labour'!G24,'[3]2.11 Labour'!G24)","v":0},{"$f":"SUM('[2]2.11 Labour'!H24,'[3]2.11 Labour'!H24)","v":0},"ED_LAB2112_00012",null,null,"Labour hire (optional)",{"$f":"SUM('[2]2.11 Labour'!M24,'[3]2.11 Labour'!M24)","v":0},{"$f":"SUM('[2]2.11 Labour'!N24,'[3]2.11 Labour'!N24)","v":0},{"$f":"SUM('[2]2.11 Labour'!O24,'[3]2.11 Labour'!O24)","v":0},{"$f":"SUM('[2]2.11 Labour'!P24,'[3]2.11 Labour'!P24)","v":0}]
["ED_LAB2111_00013",null,null,"Semi professional",{"$f":"SUM('[2]2.11 Labour'!E25,'[3]2.11 Labour'!E25)","v":39.46520863047175},{"$f":"SUM('[2]2.11 Labour'!F25,'[3]2.11 Labour'!F25)","v":5049.6512568106282},{"$f":"SUM('[2]2.11 Labour'!G25,'[3]2.11 Labour'!G25)","v":1646.3999999999999},{"$f":"SUM('[2]2.11 Labour'!H25,'[3]2.11 Labour'!H25)","v":0},"ED_LAB2112_00013",null,null,"Semi professional",{"$f":"SUM('[2]2.11 Labour'!M25,'[3]2.11 Labour'!M25)","v":1646.3999999999999},{"$f":"SUM('[2]2.11 Labour'!N25,'[3]2.11 Labour'!N25)","v":77.716212144318277},{"$f":"SUM('[2]2.11 Labour'!O25,'[3]2.11 Labour'!O25)","v":0},{"$f":"SUM('[2]2.11 Labour'!P25,'[3]2.11 Labour'!P25)","v":0}]
["ED_LAB2111_00014",null,null,"Employee (optional)",{"$f":"SUM('[2]2.11 Labour'!E26,'[3]2.11 Labour'!E26)","v":0},{"$f":"SUM('[2]2.11 Labour'!F26,'[3]2.11 Labour'!F26)","v":0},{"$f":"SUM('[2]2.11 Labour'!G26,'[3]2.11 Labour'!G26)","v":0},{"$f":"SUM('[2]2.11 Labour'!H26,'[3]2.11 Labour'!H26)","v":0},"ED_LAB2112_00014",null,null,"Employee (optional)",{"$f":"SUM('[2]2.11 Labour'!M26,'[3]2.11 Labour'!M26)","v":0},{"$f":"SUM('[2]2.11 Labour'!N26,'[3]2.11 Labour'!N26)","v":0},{"$f":"SUM('[2]2.11 Labour'!O26,'[3]2.11 Labour'!O26)","v":0},{"$f":"SUM('[2]2.11 Labour'!P26,'[3]2.11 Labour'!P26)","v":0}]
["ED_LAB2111_00015",null,null,"Labour hire (optional)",{"$f":"SUM('[2]2.11 Labour'!E27,'[3]2.11 Labour'!E27)","v":0},{"$f":"SUM('[2]2.11 Labour'!F27,'[3]2.11 Labour'!F27)","v":0},{"$f":"SUM('[2]2.11 Labour'!G27,'[3]2.11 Labour'!G27)","v":0},{"$f":"SUM('[2]2.11 Labour'!H27,'[3]2.11 Labour'!H27)","v":0},"ED_LAB2112_00015",null,null,"Labour hire (optional)",{"$f":"SUM('[2]2.11 Labour'!M27,'[3]2.11 Labour'!M27)","v":0},{"$f":"SUM('[2]2.11 Labour'!N27,'[3]2.11 Labour'!N27)","v":0},{"$f":"SUM('[2]2.11 Labour'!O27,'[3]2.11 Labour'!O27)","v":0},{"$f":"SUM('[2]2.11 Labour'!P27,'[3]2.11 Labour'!P27)","v":0}]
["ED_LAB2111_00016",null,null,"Support staff",{"$f":"SUM('[2]2.11 Labour'!E28,'[3]2.11 Labour'!E28)","v":4.6423811885741095},{"$f":"SUM('[2]2.11 Labour'!F28,'[3]2.11 Labour'!F28)","v":467.03725424270721},{"$f":"SUM('[2]2.11 Labour'!G28,'[3]2.11 Labour'!G28)","v":1646.3999999999999},{"$f":"SUM('[2]2.11 Labour'!H28,'[3]2.11 Labour'!H28)","v":0},"ED_LAB2112_00016",null,null,"Support staff",{"$f":"SUM('[2]2.11 Labour'!M28,'[3]2.11 Labour'!M28)","v":1646.3999999999999},{"$f":"SUM('[2]2.11 Labour'!N28,'[3]2.11 Labour'!N28)","v":61.104805945688085},{"$f":"SUM('[2]2.11 Labour'!O28,'[3]2.11 Labour'!O28)","v":0},{"$f":"SUM('[2]2.11 Labour'!P28,'[3]2.11 Labour'!P28)","v":0}]
["ED_LAB2111_00017",null,null,"Employee (optional)",{"$f":"SUM('[2]2.11 Labour'!E29,'[3]2.11 Labour'!E29)","v":0},{"$f":"SUM('[2]2.11 Labour'!F29,'[3]2.11 Labour'!F29)","v":0},{"$f":"SUM('[2]2.11 Labour'!G29,'[3]2.11 Labour'!G29)","v":0},{"$f":"SUM('[2]2.11 Labour'!H29,'[3]2.11 Labour'!H29)","v":0},"ED_LAB2112_00017",null,null,"Employee (optional)",{"$f":"SUM('[2]2.11 Labour'!M29,'[3]2.11 Labour'!M29)","v":0},{"$f":"SUM('[2]2.11 Labour'!N29,'[3]2.11 Labour'!N29)","v":0},{"$f":"SUM('[2]2.11 Labour'!O29,'[3]2.11 Labour'!O29)","v":0},{"$f":"SUM('[2]2.11 Labour'!P29,'[3]2.11 Labour'!P29)","v":0}]
["ED_LAB2111_00018",null,null,"Labour hire (optional)",{"$f":"SUM('[2]2.11 Labour'!E30,'[3]2.11 Labour'!E30)","v":0},{"$f":"SUM('[2]2.11 Labour'!F30,'[3]2.11 Labour'!F30)","v":0},{"$f":"SUM('[2]2.11 Labour'!G30,'[3]2.11 Labour'!G30)","v":0},{"$f":"SUM('[2]2.11 Labour'!H30,'[3]2.11 Labour'!H30)","v":0},"ED_LAB2112_00018",null,null,"Labour hire (optional)",{"$f":"SUM('[2]2.11 Labour'!M30,'[3]2.11 Labour'!M30)","v":0},{"$f":"SUM('[2]2.11 Labour'!N30,'[3]2.11 Labour'!N30)","v":0},{"$f":"SUM('[2]2.11 Labour'!O30,'[3]2.11 Labour'!O30)","v":0},{"$f":"SUM('[2]2.11 Labour'!P30,'[3]2.11 Labour'!P30)","v":0}]
["ED_LAB2111_00019",null,null,"Intern, junior staff, apprentice",{"$f":"SUM('[2]2.11 Labour'!E31,'[3]2.11 Labour'!E31)","v":0},{"$f":"SUM('[2]2.11 Labour'!F31,'[3]2.11 Labour'!F31)","v":0},{"$f":"SUM('[2]2.11 Labour'!G31,'[3]2.11 Labour'!G31)","v":0},{"$f":"SUM('[2]2.11 Labour'!H31,'[3]2.11 Labour'!H31)","v":0},"ED_LAB2112_00019",null,null,"Intern, junior staff, apprentice",{"$f":"SUM('[2]2.11 Labour'!M31,'[3]2.11 Labour'!M31)","v":0},{"$f":"SUM('[2]2.11 Labour'!N31,'[3]2.11 Labour'!N31)","v":0},{"$f":"SUM('[2]2.11 Labour'!O31,'[3]2.11 Labour'!O31)","v":0},{"$f":"SUM('[2]2.11 Labour'!P31,'[3]2.11 Labour'!P31)","v":0}]
["ED_LAB2111_00020",null,null,"Employee (optional)",{"$f":"SUM('[2]2.11 Labour'!E32,'[3]2.11 Labour'!E32)","v":0},{"$f":"SUM('[2]2.11 Labour'!F32,'[3]2.11 Labour'!F32)","v":0},{"$f":"SUM('[2]2.11 Labour'!G32,'[3]2.11 Labour'!G32)","v":0},{"$f":"SUM('[2]2.11 Labour'!H32,'[3]2.11 Labour'!H32)","v":0},"ED_LAB2112_00020",null,null,"Employee (optional)",{"$f":"SUM('[2]2.11 Labour'!M32,'[3]2.11 Labour'!M32)","v":0},{"$f":"SUM('[2]2.11 Labour'!N32,'[3]2.11 Labour'!N32)","v":0},{"$f":"SUM('[2]2.11 Labour'!O32,'[3]2.11 Labour'!O32)","v":0},{"$f":"SUM('[2]2.11 Labour'!P32,'[3]2.11 Labour'!P32)","v":0}]
["ED_LAB2111_00021",null,null,"Labour hire (optional)",{"$f":"SUM('[2]2.11 Labour'!E33,'[3]2.11 Labour'!E33)","v":0},{"$f":"SUM('[2]2.11 Labour'!F33,'[3]2.11 Labour'!F33)","v":0},{"$f":"SUM('[2]2.11 Labour'!G33,'[3]2.11 Labour'!G33)","v":0},{"$f":"SUM('[2]2.11 Labour'!H33,'[3]2.11 Labour'!H33)","v":0},"ED_LAB2112_00021",null,null,"Labour hire (optional)",{"$f":"SUM('[2]2.11 Labour'!M33,'[3]2.11 Labour'!M33)","v":0},{"$f":"SUM('[2]2.11 Labour'!N33,'[3]2.11 Labour'!N33)","v":0},{"$f":"SUM('[2]2.11 Labour'!O33,'[3]2.11 Labour'!O33)","v":0},{"$f":"SUM('[2]2.11 Labour'!P33,'[3]2.11 Labour'!P33)","v":0}]
["ED_LAB2111_00022","NETWORK OVERHEADS \nINTERNAL LABOUR COSTS","LABOUR CLASSIFICATION LEVEL","Executive manager",{"$f":"SUM('[2]2.11 Labour'!E34,'[3]2.11 Labour'!E34)","v":1.8333333333333333},{"$f":"SUM('[2]2.11 Labour'!F34,'[3]2.11 Labour'!F34)","v":1392648.9569937151},{"$f":"SUM('[2]2.11 Labour'!G34,'[3]2.11 Labour'!G34)","v":1435},{"$f":"SUM('[2]2.11 Labour'!H34,'[3]2.11 Labour'!H34)","v":0},"ED_LAB2112_00022","NETWORK OVERHEADS \nINTERNAL LABOUR COSTS","LABOUR CLASSIFICATION LEVEL","Executive manager",{"$f":"SUM('[2]2.11 Labour'!M34,'[3]2.11 Labour'!M34)","v":1435},{"$f":"SUM('[2]2.11 Labour'!N34,'[3]2.11 Labour'!N34)","v":529.35658802421869},{"$f":"SUM('[2]2.11 Labour'!O34,'[3]2.11 Labour'!O34)","v":0},{"$f":"SUM('[2]2.11 Labour'!P34,'[3]2.11 Labour'!P34)","v":0}]
["ED_LAB2111_00023",null,null,"Employee (optional)",{"$f":"SUM('[2]2.11 Labour'!E35,'[3]2.11 Labour'!E35)","v":0},{"$f":"SUM('[2]2.11 Labour'!F35,'[3]2.11 Labour'!F35)","v":0},{"$f":"SUM('[2]2.11 Labour'!G35,'[3]2.11 Labour'!G35)","v":0},{"$f":"SUM('[2]2.11 Labour'!H35,'[3]2.11 Labour'!H35)","v":0},"ED_LAB2112_00023",null,null,"Employee (optional)",{"$f":"SUM('[2]2.11 Labour'!M35,'[3]2.11 Labour'!M35)","v":0},{"$f":"SUM('[2]2.11 Labour'!N35,'[3]2.11 Labour'!N35)","v":0},{"$f":"SUM('[2]2.11 Labour'!O35,'[3]2.11 Labour'!O35)","v":0},{"$f":"SUM('[2]2.11 Labour'!P35,'[3]2.11 Labour'!P35)","v":0}]
["ED_LAB2111_00024",null,null,"Labour hire (optional)",{"$f":"SUM('[2]2.11 Labour'!E36,'[3]2.11 Labour'!E36)","v":0},{"$f":"SUM('[2]2.11 Labour'!F36,'[3]2.11 Labour'!F36)","v":0},{"$f":"SUM('[2]2.11 Labour'!G36,'[3]2.11 Labour'!G36)","v":0},{"$f":"SUM('[2]2.11 Labour'!H36,'[3]2.11 Labour'!H36)","v":0},"ED_LAB2112_00024",null,null,"Labour hire (optional)",{"$f":"SUM('[2]2.11 Labour'!M36,'[3]2.11 Labour'!M36)","v":0},{"$f":"SUM('[2]2.11 Labour'!N36,'[3]2.11 Labour'!N36)","v":0},{"$f":"SUM('[2]2.11 Labour'!O36,'[3]2.11 Labour'!O36)","v":0},{"$f":"SUM('[2]2.11 Labour'!P36,'[3]2.11 Labour'!P36)","v":0}]
["ED_LAB2111_00025",null,null,"Senior manager",{"$f":"SUM('[2]2.11 Labour'!E37,'[3]2.11 Labour'!E37)","v":8.3194444444444429},{"$f":"SUM('[2]2.11 Labour'!F37,'[3]2.11 Labour'!F37)","v":2745159.1177768433},{"$f":"SUM('[2]2.11 Labour'!G37,'[3]2.11 Labour'!G37)","v":1564.629215358932},{"$f":"SUM('[2]2.11 Labour'!H37,'[3]2.11 Labour'!H37)","v":0},"ED_LAB2112_00025",null,null,"Senior manager",{"$f":"SUM('[2]2.11 Labour'!M37,'[3]2.11 Labour'!M37)","v":1564.629215358932},{"$f":"SUM('[2]2.11 Labour'!N37,'[3]2.11 Labour'!N37)","v":210.89280405757611},{"$f":"SUM('[2]2.11 Labour'!O37,'[3]2.11 Labour'!O37)","v":0},{"$f":"SUM('[2]2.11 Labour'!P37,'[3]2.11 Labour'!P37)","v":0}]
["ED_LAB2111_00026",null,null,"Employee (optional)",{"$f":"SUM('[2]2.11 Labour'!E38,'[3]2.11 Labour'!E38)","v":0},{"$f":"SUM('[2]2.11 Labour'!F38,'[3]2.11 Labour'!F38)","v":0},{"$f":"SUM('[2]2.11 Labour'!G38,'[3]2.11 Labour'!G38)","v":0},{"$f":"SUM('[2]2.11 Labour'!H38,'[3]2.11 Labour'!H38)","v":0},"ED_LAB2112_00026",null,null,"Employee (optional)",{"$f":"SUM('[2]2.11 Labour'!M38,'[3]2.11 Labour'!M38)","v":0},{"$f":"SUM('[2]2.11 Labour'!N38,'[3]2.11 Labour'!N38)","v":0},{"$f":"SUM('[2]2.11 Labour'!O38,'[3]2.11 Labour'!O38)","v":0},{"$f":"SUM('[2]2.11 Labour'!P38,'[3]2.11 Labour'!P38)","v":0}]
["ED_LAB2111_00027",null,null,"Labour hire (optional)",{"$f":"SUM('[2]2.11 Labour'!E39,'[3]2.11 Labour'!E39)","v":0},{"$f":"SUM('[2]2.11 Labour'!F39,'[3]2.11 Labour'!F39)","v":0},{"$f":"SUM('[2]2.11 Labour'!G39,'[3]2.11 Labour'!G39)","v":0},{"$f":"SUM('[2]2.11 Labour'!H39,'[3]2.11 Labour'!H39)","v":0},"ED_LAB2112_00027",null,null,"Labour hire (optional)",{"$f":"SUM('[2]2.11 Labour'!M39,'[3]2.11 Labour'!M39)","v":0},{"$f":"SUM('[2]2.11 Labour'!N39,'[3]2.11 Labour'!N39)","v":0},{"$f":"SUM('[2]2.11 Labour'!O39,'[3]2.11 Labour'!O39)","v":0},{"$f":"SUM('[2]2.11 Labour'!P39,'[3]2.11 Labour'!P39)","v":0}]
["ED_LAB2111_00028",null,null,"Manager",{"$f":"SUM('[2]2.11 Labour'!E40,'[3]2.11 Labour'!E40)","v":31.909723734759847},{"$f":"SUM('[2]2.11 Labour'!F40,'[3]2.11 Labour'!F40)","v":8137550.8352363398},{"$f":"SUM('[2]2.11 Labour'!G40,'[3]2.11 Labour'!G40)","v":1502.1416812570556},{"$f":"SUM('[2]2.11 Labour'!H40,'[3]2.11 Labour'!H40)","v":0},"ED_LAB2112_00028",null,null,"Manager",{"$f":"SUM('[2]2.11 Labour'!M40,'[3]2.11 Labour'!M40)","v":1502.1416812570556},{"$f":"SUM('[2]2.11 Labour'!N40,'[3]2.11 Labour'!N40)","v":169.76954056915636},{"$f":"SUM('[2]2.11 Labour'!O40,'[3]2.11 Labour'!O40)","v":4.4353251434085212},{"$f":"SUM('[2]2.11 Labour'!P40,'[3]2.11 Labour'!P40)","v":81.77792694128452}]
["ED_LAB2111_00029",null,null,"Employee (optional)",{"$f":"SUM('[2]2.11 Labour'!E41,'[3]2.11 Labour'!E41)","v":0},{"$f":"SUM('[2]2.11 Labour'!F41,'[3]2.11 Labour'!F41)","v":0},{"$f":"SUM('[2]2.11 Labour'!G41,'[3]2.11 Labour'!G41)","v":0},{"$f":"SUM('[2]2.11 Labour'!H41,'[3]2.11 Labour'!H41)","v":0},"ED_LAB2112_00029",null,null,"Employee (optional)",{"$f":"SUM('[2]2.11 Labour'!M41,'[3]2.11 Labour'!M41)","v":0},{"$f":"SUM('[2]2.11 Labour'!N41,'[3]2.11 Labour'!N41)","v":0},{"$f":"SUM('[2]2.11 Labour'!O41,'[3]2.11 Labour'!O41)","v":0},{"$f":"SUM('[2]2.11 Labour'!P41,'[3]2.11 Labour'!P41)","v":0}]
["ED_LAB2111_00030",null,null,"Labour hire (optional)",{"$f":"SUM('[2]2.11 Labour'!E42,'[3]2.11 Labour'!E42)","v":0},{"$f":"SUM('[2]2.11 Labour'!F42,'[3]2.11 Labour'!F42)","v":0},{"$f":"SUM('[2]2.11 Labour'!G42,'[3]2.11 Labour'!G42)","v":0},{"$f":"SUM('[2]2.11 Labour'!H42,'[3]2.11 Labour'!H42)","v":0},"ED_LAB2112_00030",null,null,"Labour hire (optional)",{"$f":"SUM('[2]2.11 Labour'!M42,'[3]2.11 Labour'!M42)","v":0},{"$f":"SUM('[2]2.11 Labour'!N42,'[3]2.11 Labour'!N42)","v":0},{"$f":"SUM('[2]2.11 Labour'!O42,'[3]2.11 Labour'!O42)","v":0},{"$f":"SUM('[2]2.11 Labour'!P42,'[3]2.11 Labour'!P42)","v":0}]
["ED_LAB2111_00031",null,null,"Professional",{"$f":"SUM('[2]2.11 Labour'!E43,'[3]2.11 Labour'!E43)","v":31.669447465820536},{"$f":"SUM('[2]2.11 Labour'!F43,'[3]2.11 Labour'!F43)","v":6721148.4145126631},{"$f":"SUM('[2]2.11 Labour'!G43,'[3]2.11 Labour'!G43)","v":1637.0004402633247},{"$f":"SUM('[2]2.11 Labour'!H43,'[3]2.11 Labour'!H43)","v":0.23208488269119745},"ED_LAB2112_00031",null,null,"Professional",{"$f":"SUM('[2]2.11 Labour'!M43,'[3]2.11 Labour'!M43)","v":1637.0004402633247},{"$f":"SUM('[2]2.11 Labour'!N43,'[3]2.11 Labour'!N43)","v":129.64453158556722},{"$f":"SUM('[2]2.11 Labour'!O43,'[3]2.11 Labour'!O43)","v":45.744088259307603},{"$f":"SUM('[2]2.11 Labour'!P43,'[3]2.11 Labour'!P43)","v":100.34964692239197}]
["ED_LAB2111_00032",null,null,"Employee (optional)",{"$f":"SUM('[2]2.11 Labour'!E44,'[3]2.11 Labour'!E44)","v":0},{"$f":"SUM('[2]2.11 Labour'!F44,'[3]2.11 Labour'!F44)","v":0},{"$f":"SUM('[2]2.11 Labour'!G44,'[3]2.11 Labour'!G44)","v":0},{"$f":"SUM('[2]2.11 Labour'!H44,'[3]2.11 Labour'!H44)","v":0},"ED_LAB2112_00032",null,null,"Employee (optional)",{"$f":"SUM('[2]2.11 Labour'!M44,'[3]2.11 Labour'!M44)","v":0},{"$f":"SUM('[2]2.11 Labour'!N44,'[3]2.11 Labour'!N44)","v":0},{"$f":"SUM('[2]2.11 Labour'!O44,'[3]2.11 Labour'!O44)","v":0},{"$f":"SUM('[2]2.11 Labour'!P44,'[3]2.11 Labour'!P44)","v":0}]
["ED_LAB2111_00033",null,null,"Labour hire (optional)",{"$f":"SUM('[2]2.11 Labour'!E45,'[3]2.11 Labour'!E45)","v":0},{"$f":"SUM('[2]2.11 Labour'!F45,'[3]2.11 Labour'!F45)","v":0},{"$f":"SUM('[2]2.11 Labour'!G45,'[3]2.11 Labour'!G45)","v":0},{"$f":"SUM('[2]2.11 Labour'!H45,'[3]2.11 Labour'!H45)","v":0},"ED_LAB2112_00033",null,null,"Labour hire (optional)",{"$f":"SUM('[2]2.11 Labour'!M45,'[3]2.11 Labour'!M45)","v":0},{"$f":"SUM('[2]2.11 Labour'!N45,'[3]2.11 Labour'!N45)","v":0},{"$f":"SUM('[2]2.11 Labour'!O45,'[3]2.11 Labour'!O45)","v":0},{"$f":"SUM('[2]2.11 Labour'!P45,'[3]2.11 Labour'!P45)","v":0}]
["ED_LAB2111_00034",null,null,"Semi professional",{"$f":"SUM('[2]2.11 Labour'!E46,'[3]2.11 Labour'!E46)","v":25.427222220989194},{"$f":"SUM('[2]2.11 Labour'!F46,'[3]2.11 Labour'!F46)","v":4701743.3674245719},{"$f":"SUM('[2]2.11 Labour'!G46,'[3]2.11 Labour'!G46)","v":1888.4689824238208},{"$f":"SUM('[2]2.11 Labour'!H46,'[3]2.11 Labour'!H46)","v":0},"ED_LAB2112_00034",null,null,"Semi professional",{"$f":"SUM('[2]2.11 Labour'!M46,'[3]2.11 Labour'!M46)","v":1888.4689824238208},{"$f":"SUM('[2]2.11 Labour'!N46,'[3]2.11 Labour'!N46)","v":97.915206904715376},{"$f":"SUM('[2]2.11 Labour'!O46,'[3]2.11 Labour'!O46)","v":37.253381111291098},{"$f":"SUM('[2]2.11 Labour'!P46,'[3]2.11 Labour'!P46)","v":105.65829506466088}]
["ED_LAB2111_00035",null,null,"Employee (optional)",{"$f":"SUM('[2]2.11 Labour'!E47,'[3]2.11 Labour'!E47)","v":0},{"$f":"SUM('[2]2.11 Labour'!F47,'[3]2.11 Labour'!F47)","v":0},{"$f":"SUM('[2]2.11 Labour'!G47,'[3]2.11 Labour'!G47)","v":0},{"$f":"SUM('[2]2.11 Labour'!H47,'[3]2.11 Labour'!H47)","v":0},"ED_LAB2112_00035",null,null,"Employee (optional)",{"$f":"SUM('[2]2.11 Labour'!M47,'[3]2.11 Labour'!M47)","v":0},{"$f":"SUM('[2]2.11 Labour'!N47,'[3]2.11 Labour'!N47)","v":0},{"$f":"SUM('[2]2.11 Labour'!O47,'[3]2.11 Labour'!O47)","v":0},{"$f":"SUM('[2]2.11 Labour'!P47,'[3]2.11 Labour'!P47)","v":0}]
["ED_LAB2111_00036",null,null,"Labour hire (optional)",{"$f":"SUM('[2]2.11 Labour'!E48,'[3]2.11 Labour'!E48)","v":0},{"$f":"SUM('[2]2.11 Labour'!F48,'[3]2.11 Labour'!F48)","v":0},{"$f":"SUM('[2]2.11 Labour'!G48,'[3]2.11 Labour'!G48)","v":0},{"$f":"SUM('[2]2.11 Labour'!H48,'[3]2.11 Labour'!H48)","v":0},"ED_LAB2112_00036",null,null,"Labour hire (optional)",{"$f":"SUM('[2]2.11 Labour'!M48,'[3]2.11 Labour'!M48)","v":0},{"$f":"SUM('[2]2.11 Labour'!N48,'[3]2.11 Labour'!N48)","v":0},{"$f":"SUM('[2]2.11 Labour'!O48,'[3]2.11 Labour'!O48)","v":0},{"$f":"SUM('[2]2.11 Labour'!P48,'[3]2.11 Labour'!P48)","v":0}]
["ED_LAB2111_00037",null,null,"Support staff",{"$f":"SUM('[2]2.11 Labour'!E49,'[3]2.11 Labour'!E49)","v":75.817366512144517},{"$f":"SUM('[2]2.11 Labour'!F49,'[3]2.11 Labour'!F49)","v":10765117.82064319},{"$f":"SUM('[2]2.11 Labour'!G49,'[3]2.11 Labour'!G49)","v":1623.6233002755228},{"$f":"SUM('[2]2.11 Labour'!H49,'[3]2.11 Labour'!H49)","v":9.2327131922720254E-2},"ED_LAB2112_00037",null,null,"Support staff",{"$f":"SUM('[2]2.11 Labour'!M49,'[3]2.11 Labour'!M49)","v":1623.6233002755228},{"$f":"SUM('[2]2.11 Labour'!N49,'[3]2.11 Labour'!N49)","v":87.451007440447498},{"$f":"SUM('[2]2.11 Labour'!O49,'[3]2.11 Labour'!O49)","v":58.144198391457806},{"$f":"SUM('[2]2.11 Labour'!P49,'[3]2.11 Labour'!P49)","v":78.886451589487223}]
["ED_LAB2111_00038",null,null,"Employee (optional)",{"$f":"SUM('[2]2.11 Labour'!E50,'[3]2.11 Labour'!E50)","v":0},{"$f":"SUM('[2]2.11 Labour'!F50,'[3]2.11 Labour'!F50)","v":0},{"$f":"SUM('[2]2.11 Labour'!G50,'[3]2.11 Labour'!G50)","v":0},{"$f":"SUM('[2]2.11 Labour'!H50,'[3]2.11 Labour'!H50)","v":0},"ED_LAB2112_00038",null,null,"Employee (optional)",{"$f":"SUM('[2]2.11 Labour'!M50,'[3]2.11 Labour'!M50)","v":0},{"$f":"SUM('[2]2.11 Labour'!N50,'[3]2.11 Labour'!N50)","v":0},{"$f":"SUM('[2]2.11 Labour'!O50,'[3]2.11 Labour'!O50)","v":0},{"$f":"SUM('[2]2.11 Labour'!P50,'[3]2.11 Labour'!P50)","v":0}]
["ED_LAB2111_00039",null,null,"Labour hire (optional)",{"$f":"SUM('[2]2.11 Labour'!E51,'[3]2.11 Labour'!E51)","v":0},{"$f":"SUM('[2]2.11 Labour'!F51,'[3]2.11 Labour'!F51)","v":0},{"$f":"SUM('[2]2.11 Labour'!G51,'[3]2.11 Labour'!G51)","v":0},{"$f":"SUM('[2]2.11 Labour'!H51,'[3]2.11 Labour'!H51)","v":0},"ED_LAB2112_00039",null,null,"Labour hire (optional)",{"$f":"SUM('[2]2.11 Labour'!M51,'[3]2.11 Labour'!M51)","v":0},{"$f":"SUM('[2]2.11 Labour'!N51,'[3]2.11 Labour'!N51)","v":0},{"$f":"SUM('[2]2.11 Labour'!O51,'[3]2.11 Labour'!O51)","v":0},{"$f":"SUM('[2]2.11 Labour'!P51,'[3]2.11 Labour'!P51)","v":0}]
["ED_LAB2111_00040",null,null,"Intern, junior staff, apprentice",{"$f":"SUM('[2]2.11 Labour'!E52,'[3]2.11 Labour'!E52)","v":5.8972222222222221},{"$f":"SUM('[2]2.11 Labour'!F52,'[3]2.11 Labour'!F52)","v":694105.72188369452},{"$f":"SUM('[2]2.11 Labour'!G52,'[3]2.11 Labour'!G52)","v":1553.4574155692585},{"$f":"SUM('[2]2.11 Labour'!H52,'[3]2.11 Labour'!H52)","v":0},"ED_LAB2112_00040",null,null,"Intern, junior staff, apprentice",{"$f":"SUM('[2]2.11 Labour'!M52,'[3]2.11 Labour'!M52)","v":1553.4574155692585},{"$f":"SUM('[2]2.11 Labour'!N52,'[3]2.11 Labour'!N52)","v":75.766770915803491},{"$f":"SUM('[2]2.11 Labour'!O52,'[3]2.11 Labour'!O52)","v":78.309750353273671},{"$f":"SUM('[2]2.11 Labour'!P52,'[3]2.11 Labour'!P52)","v":81.068383101275401}]
["ED_LAB2111_00041",null,null,"Employee (optional)",{"$f":"SUM('[2]2.11 Labour'!E53,'[3]2.11 Labour'!E53)","v":0},{"$f":"SUM('[2]2.11 Labour'!F53,'[3]2.11 Labour'!F53)","v":0},{"$f":"SUM('[2]2.11 Labour'!G53,'[3]2.11 Labour'!G53)","v":0},{"$f":"SUM('[2]2.11 Labour'!H53,'[3]2.11 Labour'!H53)","v":0},"ED_LAB2112_00041",null,null,"Employee (optional)",{"$f":"SUM('[2]2.11 Labour'!M53,'[3]2.11 Labour'!M53)","v":0},{"$f":"SUM('[2]2.11 Labour'!N53,'[3]2.11 Labour'!N53)","v":0},{"$f":"SUM('[2]2.11 Labour'!O53,'[3]2.11 Labour'!O53)","v":0},{"$f":"SUM('[2]2.11 Labour'!P53,'[3]2.11 Labour'!P53)","v":0}]
["ED_LAB2111_00042",null,null,"Labour hire (optional)",{"$f":"SUM('[2]2.11 Labour'!E54,'[3]2.11 Labour'!E54)","v":0},{"$f":"SUM('[2]2.11 Labour'!F54,'[3]2.11 Labour'!F54)","v":0},{"$f":"SUM('[2]2.11 Labour'!G54,'[3]2.11 Labour'!G54)","v":0},{"$f":"SUM('[2]2.11 Labour'!H54,'[3]2.11 Labour'!H54)","v":0},"ED_LAB2112_00042",null,null,"Labour hire (optional)",{"$f":"SUM('[2]2.11 Labour'!M54,'[3]2.11 Labour'!M54)","v":0},{"$f":"SUM('[2]2.11 Labour'!N54,'[3]2.11 Labour'!N54)","v":0},{"$f":"SUM('[2]2.11 Labour'!O54,'[3]2.11 Labour'!O54)","v":0},{"$f":"SUM('[2]2.11 Labour'!P54,'[3]2.11 Labour'!P54)","v":0}]
["ED_LAB2111_00043","TOTAL DIRECT NETWORK LABOUR \nINTERNAL LABOUR COSTS","LABOUR CLASSIFICATION LEVEL","Skilled electrical worker",{"$f":"SUM('[2]2.11 Labour'!E55,'[3]2.11 Labour'!E55)","v":165.82596800267663},{"$f":"SUM('[2]2.11 Labour'!F55,'[3]2.11 Labour'!F55)","v":29984325.956078321},{"$f":"SUM('[2]2.11 Labour'!G55,'[3]2.11 Labour'!G55)","v":1840.8555037313645},{"$f":"SUM('[2]2.11 Labour'!H55,'[3]2.11 Labour'!H55)","v":13.222235494290068},"ED_LAB2112_00043","TOTAL DIRECT NETWORK LABOUR \nINTERNAL LABOUR COSTS","LABOUR CLASSIFICATION LEVEL","Skilled electrical worker",{"$f":"SUM('[2]2.11 Labour'!M55,'[3]2.11 Labour'!M55)","v":1840.8555037313645},{"$f":"SUM('[2]2.11 Labour'!N55,'[3]2.11 Labour'!N55)","v":98.225002593014096},{"$f":"SUM('[2]2.11 Labour'!O55,'[3]2.11 Labour'!O55)","v":231.26004004017648},{"$f":"SUM('[2]2.11 Labour'!P55,'[3]2.11 Labour'!P55)","v":93.933866977218614}]
["ED_LAB2111_00044",null,null,"Employee (optional)",{"$f":"SUM('[2]2.11 Labour'!E56,'[3]2.11 Labour'!E56)","v":0},{"$f":"SUM('[2]2.11 Labour'!F56,'[3]2.11 Labour'!F56)","v":0},{"$f":"SUM('[2]2.11 Labour'!G56,'[3]2.11 Labour'!G56)","v":0},{"$f":"SUM('[2]2.11 Labour'!H56,'[3]2.11 Labour'!H56)","v":0},"ED_LAB2112_00044",null,null,"Employee (optional)",{"$f":"SUM('[2]2.11 Labour'!M56,'[3]2.11 Labour'!M56)","v":0},{"$f":"SUM('[2]2.11 Labour'!N56,'[3]2.11 Labour'!N56)","v":0},{"$f":"SUM('[2]2.11 Labour'!O56,'[3]2.11 Labour'!O56)","v":0},{"$f":"SUM('[2]2.11 Labour'!P56,'[3]2.11 Labour'!P56)","v":0}]
["ED_LAB2111_00045",null,null,"Labour hire (optional)",{"$f":"SUM('[2]2.11 Labour'!E57,'[3]2.11 Labour'!E57)","v":0},{"$f":"SUM('[2]2.11 Labour'!F57,'[3]2.11 Labour'!F57)","v":0},{"$f":"SUM('[2]2.11 Labour'!G57,'[3]2.11 Labour'!G57)","v":0},{"$f":"SUM('[2]2.11 Labour'!H57,'[3]2.11 Labour'!H57)","v":0},"ED_LAB2112_00045",null,null,"Labour hire (optional)",{"$f":"SUM('[2]2.11 Labour'!M57,'[3]2.11 Labour'!M57)","v":0},{"$f":"SUM('[2]2.11 Labour'!N57,'[3]2.11 Labour'!N57)","v":0},{"$f":"SUM('[2]2.11 Labour'!O57,'[3]2.11 Labour'!O57)","v":0},{"$f":"SUM('[2]2.11 Labour'!P57,'[3]2.11 Labour'!P57)","v":0}]
["ED_LAB2111_00046",null,null,"Skilled non electical worker",{"$f":"SUM('[2]2.11 Labour'!E58,'[3]2.11 Labour'!E58)","v":0},{"$f":"SUM('[2]2.11 Labour'!F58,'[3]2.11 Labour'!F58)","v":0},{"$f":"SUM('[2]2.11 Labour'!G58,'[3]2.11 Labour'!G58)","v":0},{"$f":"SUM('[2]2.11 Labour'!H58,'[3]2.11 Labour'!H58)","v":0},"ED_LAB2112_00046",null,null,"Skilled non electical worker",{"$f":"SUM('[2]2.11 Labour'!M58,'[3]2.11 Labour'!M58)","v":0},{"$f":"SUM('[2]2.11 Labour'!N58,'[3]2.11 Labour'!N58)","v":0},{"$f":"SUM('[2]2.11 Labour'!O58,'[3]2.11 Labour'!O58)","v":0},{"$f":"SUM('[2]2.11 Labour'!P58,'[3]2.11 Labour'!P58)","v":0}]
["ED_LAB2111_00047",null,null,"Employee (optional)",{"$f":"SUM('[2]2.11 Labour'!E59,'[3]2.11 Labour'!E59)","v":0},{"$f":"SUM('[2]2.11 Labour'!F59,'[3]2.11 Labour'!F59)","v":0},{"$f":"SUM('[2]2.11 Labour'!G59,'[3]2.11 Labour'!G59)","v":0},{"$f":"SUM('[2]2.11 Labour'!H59,'[3]2.11 Labour'!H59)","v":0},"ED_LAB2112_00047",null,null,"Employee (optional)",{"$f":"SUM('[2]2.11 Labour'!M59,'[3]2.11 Labour'!M59)","v":0},{"$f":"SUM('[2]2.11 Labour'!N59,'[3]2.11 Labour'!N59)","v":0},{"$f":"SUM('[2]2.11 Labour'!O59,'[3]2.11 Labour'!O59)","v":0},{"$f":"SUM('[2]2.11 Labour'!P59,'[3]2.11 Labour'!P59)","v":0}]
["ED_LAB2111_00048",null,null,"Labour hire (optional)",{"$f":"SUM('[2]2.11 Labour'!E60,'[3]2.11 Labour'!E60)","v":0},{"$f":"SUM('[2]2.11 Labour'!F60,'[3]2.11 Labour'!F60)","v":0},{"$f":"SUM('[2]2.11 Labour'!G60,'[3]2.11 Labour'!G60)","v":0},{"$f":"SUM('[2]2.11 Labour'!H60,'[3]2.11 Labour'!H60)","v":0},"ED_LAB2112_00048",null,null,"Labour hire (optional)",{"$f":"SUM('[2]2.11 Labour'!M60,'[3]2.11 Labour'!M60)","v":0},{"$f":"SUM('[2]2.11 Labour'!N60,'[3]2.11 Labour'!N60)","v":0},{"$f":"SUM('[2]2.11 Labour'!O60,'[3]2.11 Labour'!O60)","v":0},{"$f":"SUM('[2]2.11 Labour'!P60,'[3]2.11 Labour'!P60)","v":0}]
["ED_LAB2111_00049",null,null,"Apprentice",{"$f":"SUM('[2]2.11 Labour'!E61,'[3]2.11 Labour'!E61)","v":18.554860043556253},{"$f":"SUM('[2]2.11 Labour'!F61,'[3]2.11 Labour'!F61)","v":2148543.1830105372},{"$f":"SUM('[2]2.11 Labour'!G61,'[3]2.11 Labour'!G61)","v":1320.3297290211142},{"$f":"SUM('[2]2.11 Labour'!H61,'[3]2.11 Labour'!H61)","v":5.7397360987902148},"ED_LAB2112_00049",null,null,"Apprentice",{"$f":"SUM('[2]2.11 Labour'!M61,'[3]2.11 Labour'!M61)","v":1320.3297290211142},{"$f":"SUM('[2]2.11 Labour'!N61,'[3]2.11 Labour'!N61)","v":87.700890244199826},{"$f":"SUM('[2]2.11 Labour'!O61,'[3]2.11 Labour'!O61)","v":140.09105937194661},{"$f":"SUM('[2]2.11 Labour'!P61,'[3]2.11 Labour'!P61)","v":65.225750855014894}]
["ED_LAB2111_00050",null,null,"Employee (optional)",{"$f":"SUM('[2]2.11 Labour'!E62,'[3]2.11 Labour'!E62)","v":0},{"$f":"SUM('[2]2.11 Labour'!F62,'[3]2.11 Labour'!F62)","v":0},{"$f":"SUM('[2]2.11 Labour'!G62,'[3]2.11 Labour'!G62)","v":0},{"$f":"SUM('[2]2.11 Labour'!H62,'[3]2.11 Labour'!H62)","v":0},"ED_LAB2112_00050",null,null,"Employee (optional)",{"$f":"SUM('[2]2.11 Labour'!M62,'[3]2.11 Labour'!M62)","v":0},{"$f":"SUM('[2]2.11 Labour'!N62,'[3]2.11 Labour'!N62)","v":0},{"$f":"SUM('[2]2.11 Labour'!O62,'[3]2.11 Labour'!O62)","v":0},{"$f":"SUM('[2]2.11 Labour'!P62,'[3]2.11 Labour'!P62)","v":0}]
["ED_LAB2111_00051",null,null,"Labour hire (optional)",{"$f":"SUM('[2]2.11 Labour'!E63,'[3]2.11 Labour'!E63)","v":0},{"$f":"SUM('[2]2.11 Labour'!F63,'[3]2.11 Labour'!F63)","v":0},{"$f":"SUM('[2]2.11 Labour'!G63,'[3]2.11 Labour'!G63)","v":0},{"$f":"SUM('[2]2.11 Labour'!H63,'[3]2.11 Labour'!H63)","v":0},"ED_LAB2112_00051",null,null,"Labour hire (optional)",{"$f":"SUM('[2]2.11 Labour'!M63,'[3]2.11 Labour'!M63)","v":0},{"$f":"SUM('[2]2.11 Labour'!N63,'[3]2.11 Labour'!N63)","v":0},{"$f":"SUM('[2]2.11 Labour'!O63,'[3]2.11 Labour'!O63)","v":0},{"$f":"SUM('[2]2.11 Labour'!P63,'[3]2.11 Labour'!P63)","v":0}]
["ED_LAB2111_00052",null,null,"Unskilled worker",{"$f":"SUM('[2]2.11 Labour'!E64,'[3]2.11 Labour'!E64)","v":54.879166666666656},{"$f":"SUM('[2]2.11 Labour'!F64,'[3]2.11 Labour'!F64)","v":6830304.2264401577},{"$f":"SUM('[2]2.11 Labour'!G64,'[3]2.11 Labour'!G64)","v":1409.7444506216241},{"$f":"SUM('[2]2.11 Labour'!H64,'[3]2.11 Labour'!H64)","v":22.651583023308788},"ED_LAB2112_00052",null,null,"Unskilled worker",{"$f":"SUM('[2]2.11 Labour'!M64,'[3]2.11 Labour'!M64)","v":1409.7444506216241},{"$f":"SUM('[2]2.11 Labour'!N64,'[3]2.11 Labour'!N64)","v":88.286062124511346},{"$f":"SUM('[2]2.11 Labour'!O64,'[3]2.11 Labour'!O64)","v":153.63407486143799},{"$f":"SUM('[2]2.11 Labour'!P64,'[3]2.11 Labour'!P64)","v":72.239411194701702}]
["ED_LAB2111_00053",null,null,"Employee (optional)",{"$f":"SUM('[2]2.11 Labour'!E65,'[3]2.11 Labour'!E65)","v":0},{"$f":"SUM('[2]2.11 Labour'!F65,'[3]2.11 Labour'!F65)","v":0},{"$f":"SUM('[2]2.11 Labour'!G65,'[3]2.11 Labour'!G65)","v":0},{"$f":"SUM('[2]2.11 Labour'!H65,'[3]2.11 Labour'!H65)","v":0},"ED_LAB2112_00053",null,null,"Employee (optional)",{"$f":"SUM('[2]2.11 Labour'!M65,'[3]2.11 Labour'!M65)","v":0},{"$f":"SUM('[2]2.11 Labour'!N65,'[3]2.11 Labour'!N65)","v":0},{"$f":"SUM('[2]2.11 Labour'!O65,'[3]2.11 Labour'!O65)","v":0},{"$f":"SUM('[2]2.11 Labour'!P65,'[3]2.11 Labour'!P65)","v":0}]
["ED_LAB2111_00054",null,null,"Labour hire (optional)",{"$f":"SUM('[2]2.11 Labour'!E66,'[3]2.11 Labour'!E66)","v":0},{"$f":"SUM('[2]2.11 Labour'!F66,'[3]2.11 Labour'!F66)","v":0},{"$f":"SUM('[2]2.11 Labour'!G66,'[3]2.11 Labour'!G66)","v":0},{"$f":"SUM('[2]2.11 Labour'!H66,'[3]2.11 Labour'!H66)","v":0},"ED_LAB2112_00054",null,null,"Labour hire (optional)",{"$f":"SUM('[2]2.11 Labour'!M66,'[3]2.11 Labour'!M66)","v":0},{"$f":"SUM('[2]2.11 Labour'!N66,'[3]2.11 Labour'!N66)","v":0},{"$f":"SUM('[2]2.11 Labour'!O66,'[3]2.11 Labour'!O66)","v":0},{"$f":"SUM('[2]2.11 Labour'!P66,'[3]2.11 Labour'!P66)","v":0}]

{"sheet":"2.12 Input tables","index":12,"n_rows":79,"n_cols":18,"rows_kept":79,"cut":false,"hidden":false,"merged":[]}
[null,{"$f":"(LOOKUP(dms_Model,dms_Model_List,dms_Worksheet_List))","v":"REGULATORY REPORTING STATEMENT"}]
[null,"Australian Distribution Co."]
[null,{"$f":"CONCATENATE(\"Category Analysis RIN response \",CRY)","v":"Category Analysis RIN response 2014-15"}]
[null,"2.12 INPUT TABLES"]
[null,null,null,null,1]
[]
[null,null,null,null,null,null,null,null,null,null,null,null,"DIRECT MATERIAL EXPENDITURE","DIRECT LABOUR EXPENDITURE","CONTRACT EXPENDITURE","OTHER EXPENDITURE","RELATED PARTY CONTRACT EXPENDITURE","RELATED PARTY CONTRACT MARGIN\nEXPENDITURE"]
[null,null,null,null,"DNSP NAME","SERVICE","SERVICE SUBCATEGORY","DATA CATEGORY","DATA SUBCATEGORY","MEASUREMENT","DENOMINATION",null,{"$f":"CRY","v":"2014-15"},"2014-15","2014-15","2014-15","2014-15","2014-15"]
["ED_INP212_00001","VEGETATION MANAGEMENT",{"$f":"'2.7 Vegetation management'!I11","v":"ZONE 1"},null,"DNSP NAME","INPUT COSTS","VEGETATION MANAGEMENT","DIRECT MATERIAL COST",{"$f":"$C$9","v":"ZONE 1"},"EXPENDITURE","$0's",null,{"$f":"SUM('[2]2.12 Input tables'!M9,'[3]2.12 Input tables'!M9)","v":3273.41},{"$f":"SUM('[2]2.12 Input tables'!N9,'[3]2.12 Input tables'!N9)","v":1035660.7299999997},{"$f":"SUM('[2]2.12 Input tables'!O9,'[3]2.12 Input tables'!O9)","v":243776.19999999998},{"$f":"SUM('[2]2.12 Input tables'!P9,'[3]2.12 Input tables'!P9)","v":478176.92000000022},{"$f":"SUM('[2]2.12 Input tables'!Q9,'[3]2.12 Input tables'!Q9)","v":0},{"$f":"SUM('[2]2.12 Input tables'!R9,'[3]2.12 Input tables'!R9)","v":0}]
["ED_INP212_00002",null,{"$f":"'2.7 Vegetation management'!I23","v":"ZONE 2"},null,"DNSP NAME","INPUT COSTS","VEGETATION MANAGEMENT","DIRECT MATERIAL COST",{"$f":"$C$10","v":"ZONE 2"},"EXPENDITURE","$0's",null,{"$f":"SUM('[2]2.12 Input tables'!M10,'[3]2.12 Input tables'!M10)","v":732.32},{"$f":"SUM('[2]2.12 Input tables'!N10,'[3]2.12 Input tables'!N10)","v":29365.019999999997},{"$f":"SUM('[2]2.12 Input tables'!O10,'[3]2.12 Input tables'!O10)","v":641790.27},{"$f":"SUM('[2]2.12 Input tables'!P10,'[3]2.12 Input tables'!P10)","v":13115.48},{"$f":"SUM('[2]2.12 Input tables'!Q10,'[3]2.12 Input tables'!Q10)","v":0},{"$f":"SUM('[2]2.12 Input tables'!R10,'[3]2.12 Input tables'!R10)","v":0}]
["ED_INP212_00003",null,{"$f":"'2.7 Vegetation management'!I35","v":"ZONE 3"},null,"DNSP NAME","INPUT COSTS","VEGETATION MANAGEMENT","DIRECT MATERIAL COST",{"$f":"$C$11","v":"ZONE 3"},"EXPENDITURE","$0's",null,"","","","","",""]
["ED_INP212_00004",null,{"$f":"'2.7 Vegetation management'!I47","v":"ZONE 4"},null,"DNSP NAME","INPUT COSTS","VEGETATION MANAGEMENT","DIRECT MATERIAL COST",{"$f":"$C$12","v":"ZONE 4"},"EXPENDITURE","$0's",null,"","","","","",""]
["ED_INP212_00005",null,{"$f":"'2.7 Vegetation management'!I59","v":"ZONE 5"},null,"DNSP NAME","INPUT COSTS","VEGETATION MANAGEMENT","DIRECT MATERIAL COST",{"$f":"$C$13","v":"ZONE 5"},"EXPENDITURE","$0's",null,"","","","","",""]
["ED_INP212_00006",null,{"$f":"'2.7 Vegetation management'!I71","v":"ZONE 6"},null,"DNSP NAME","INPUT COSTS","VEGETATION MANAGEMENT","DIRECT MATERIAL COST",{"$f":"$C$14","v":"ZONE 6"},"EXPENDITURE","$0's",null,"","","","","",""]
["ED_INP212_00007",null,{"$f":"'2.7 Vegetation management'!I83","v":"ZONE 7"},null,"DNSP NAME","INPUT COSTS","VEGETATION MANAGEMENT","DIRECT MATERIAL COST",{"$f":"$C$15","v":"ZONE 7"},"EXPENDITURE","$0's",null,"","","","","",""]
["ED_INP212_00008",null,{"$f":"'2.7 Vegetation management'!I95","v":"ZONE 8"},null,"DNSP NAME","INPUT COSTS","VEGETATION MANAGEMENT","DIRECT MATERIAL COST",{"$f":"$C$16","v":"ZONE 8"},"EXPENDITURE","$0's",null,"","","","","",""]
["ED_INP212_00009",null,{"$f":"'2.7 Vegetation management'!I107","v":"ZONE 9"},null,"DNSP NAME","INPUT COSTS","VEGETATION MANAGEMENT","DIRECT MATERIAL COST",{"$f":"$C$17","v":"ZONE 9"},"EXPENDITURE","$0's",null,"","","","","",""]
["ED_INP212_00010",null,{"$f":"'2.7 Vegetation management'!I119","v":"ZONE 10"},null,"DNSP NAME","INPUT COSTS","VEGETATION MANAGEMENT","DIRECT MATERIAL COST",{"$f":"$C$18","v":"ZONE 10"},"EXPENDITURE","$0's",null,"","","","","",""]
["ED_INP212_00011",null,{"$f":"'2.7 Vegetation management'!I131","v":"ZONE 11"},null,"DNSP NAME","INPUT COSTS","VEGETATION MANAGEMENT","DIRECT MATERIAL COST",{"$f":"$C$19","v":"ZONE 11"},"EXPENDITURE","$0's",null,"","","","","",""]
["ED_INP212_00012",null,{"$f":"'2.7 Vegetation management'!I143","v":"ZONE 12"},null,"DNSP NAME","INPUT COSTS","VEGETATION MANAGEMENT","DIRECT MATERIAL COST",{"$f":"$C$20","v":"ZONE 12"},"EXPENDITURE","$0's",null,"","","","","",""]
["ED_INP212_00013",null,{"$f":"'2.7 Vegetation management'!I155","v":"ZONE 13"},null,"DNSP NAME","INPUT COSTS","VEGETATION MANAGEMENT","DIRECT MATERIAL COST",{"$f":"$C$21","v":"ZONE 13"},"EXPENDITURE","$0's",null,"","","","","",""]
["ED_INP212_00014",null,{"$f":"'2.7 Vegetation management'!I167","v":"ZONE 14"},null,"DNSP NAME","INPUT COSTS","VEGETATION MANAGEMENT","DIRECT MATERIAL COST",{"$f":"$C$22","v":"ZONE 14"},"EXPENDITURE","$0's",null,"","","","","",""]
["ED_INP212_00015",null,{"$f":"'2.7 Vegetation management'!I179","v":"ZONE 15"},null,"DNSP NAME","INPUT COSTS","VEGETATION MANAGEMENT","DIRECT MATERIAL COST",{"$f":"$C$23","v":"ZONE 15"},"EXPENDITURE","$0's",null,"","","","","",""]
["ED_INP212_00016",null,{"$f":"'2.7 Vegetation management'!I191","v":"ZONE 16"},null,"DNSP NAME","INPUT COSTS","VEGETATION MANAGEMENT","DIRECT MATERIAL COST",{"$f":"$C$24","v":"ZONE 16"},"EXPENDITURE","$0's",null,"","","","","",""]
["ED_INP212_00017",null,{"$f":"'2.7 Vegetation management'!I203","v":"ZONE 17"},null,"DNSP NAME","INPUT COSTS","VEGETATION MANAGEMENT","DIRECT MATERIAL COST",{"$f":"$C$25","v":"ZONE 17"},"EXPENDITURE","$0's",null,"","","","","",""]
["ED_INP212_00018",null,{"$f":"'2.7 Vegetation management'!I215","v":"ZONE 18"},null,"DNSP NAME","INPUT COSTS","VEGETATION MANAGEMENT","DIRECT MATERIAL COST",{"$f":"$C$26","v":"ZONE 18"},"EXPENDITURE","$0's",null,"","","","","",""]
["ED_INP212_00019","ROUTINE MAINTENANCE","Pole top, overhead line & service line maintenance",null,"DNSP NAME","INPUT COSTS","ROUTINE MAINTENANCE","DIRECT MATERIAL COST",{"$f":"$C$27","v":"Pole top, overhead line & service line maintenance"},"EXPENDITURE","$0's",null,{"$f":"SUM('[2]2.12 Input tables'!M27,'[3]2.12 Input tables'!M27)","v":21073.13},{"$f":"SUM('[2]2.12 Input tables'!N27,'[3]2.12 Input tables'!N27)","v":217978.36999999991},{"$f":"SUM('[2]2.12 Input tables'!O27,'[3]2.12 Input tables'!O27)","v":11079.42},{"$f":"SUM('[2]2.12 Input tables'!P27,'[3]2.12 Input tables'!P27)","v":76865.859999999884},{"$f":"SUM('[2]2.12 Input tables'!Q27,'[3]2.12 Input tables'!Q27)","v":0},{"$f":"SUM('[2]2.12 Input tables'!R27,'[3]2.12 Input tables'!R27)","v":0}]
["ED_INP212_00020",null,"Pole inspection and treatment",null,"DNSP NAME","INPUT COSTS","ROUTINE MAINTENANCE","DIRECT MATERIAL COST",{"$f":"$C$28","v":"Pole inspection and treatment"},"EXPENDITURE","$0's",null,{"$f":"SUM('[2]2.12 Input tables'!M28,'[3]2.12 Input tables'!M28)","v":65105.48},{"$f":"SUM('[2]2.12 Input tables'!N28,'[3]2.12 Input tables'!N28)","v":1359123.4300000011},{"$f":"SUM('[2]2.12 Input tables'!O28,'[3]2.12 Input tables'!O28)","v":63282.19},{"$f":"SUM('[2]2.12 Input tables'!P28,'[3]2.12 Input tables'!P28)","v":621241.63000000082},{"$f":"SUM('[2]2.12 Input tables'!Q28,'[3]2.12 Input tables'!Q28)","v":0},{"$f":"SUM('[2]2.12 Input tables'!R28,'[3]2.12 Input tables'!R28)","v":0}]
["ED_INP212_00021",null,"Overhead asset inspection",null,"DNSP NAME","INPUT COSTS","ROUTINE MAINTENANCE","DIRECT MATERIAL COST",{"$f":"$C$29","v":"Overhead asset inspection"},"EXPENDITURE","$0's",null,{"$f":"SUM('[2]2.12 Input tables'!M29,'[3]2.12 Input tables'!M29)","v":359.13},{"$f":"SUM('[2]2.12 Input tables'!N29,'[3]2.12 Input tables'!N29)","v":120261.55000000024},{"$f":"SUM('[2]2.12 Input tables'!O29,'[3]2.12 Input tables'!O29)","v":13651.79},{"$f":"SUM('[2]2.12 Input tables'!P29,'[3]2.12 Input tables'!P29)","v":50468.930000000066},{"$f":"SUM('[2]2.12 Input tables'!Q29,'[3]2.12 Input tables'!Q29)","v":0},{"$f":"SUM('[2]2.12 Input tables'!R29,'[3]2.12 Input tables'!R29)","v":0}]
["ED_INP212_00022",null,"Network underground cable maintenance",null,"DNSP NAME","INPUT COSTS","ROUTINE MAINTENANCE","DIRECT MATERIAL COST",{"$f":"$C$30","v":"Network underground cable maintenance"},"EXPENDITURE","$0's",null,{"$f":"SUM('[2]2.12 Input tables'!M30,'[3]2.12 Input tables'!M30)","v":576.51},{"$f":"SUM('[2]2.12 Input tables'!N30,'[3]2.12 Input tables'!N30)","v":41666.629999999997},{"$f":"SUM('[2]2.12 Input tables'!O30,'[3]2.12 Input tables'!O30)","v":32756.620000000003},{"$f":"SUM('[2]2.12 Input tables'!P30,'[3]2.12 Input tables'!P30)","v":19725.330000000002},{"$f":"SUM('[2]2.12 Input tables'!Q30,'[3]2.12 Input tables'!Q30)","v":0},{"$f":"SUM('[2]2.12 Input tables'!R30,'[3]2.12 Input tables'!R30)","v":0}]
["ED_INP212_00023",null,"Distribution substation equipment & property maintenance",null,"DNSP NAME","INPUT COSTS","ROUTINE MAINTENANCE","DIRECT MATERIAL COST",{"$f":"$C$31","v":"Distribution substation equipment & property maintenance"},"EXPENDITURE","$0's",null,{"$f":"SUM('[2]2.12 Input tables'!M31,'[3]2.12 Input tables'!M31)","v":33115.49},{"$f":"SUM('[2]2.12 Input tables'!N31,'[3]2.12 Input tables'!N31)","v":428540.39000000007},{"$f":"SUM('[2]2.12 Input tables'!O31,'[3]2.12 Input tables'!O31)","v":179430.13999999998},{"$f":"SUM('[2]2.12 Input tables'!P31,'[3]2.12 Input tables'!P31)","v":191720.97000000003},{"$f":"SUM('[2]2.12 Input tables'!Q31,'[3]2.12 Input tables'!Q31)","v":0},{"$f":"SUM('[2]2.12 Input tables'!R31,'[3]2.12 Input tables'!R31)","v":0}]
["ED_INP212_00024",null,"Zone substation equipment maintenance",null,"DNSP NAME","INPUT COSTS","ROUTINE MAINTENANCE","DIRECT MATERIAL COST",{"$f":"$C$32","v":"Zone substation equipment maintenance"},"EXPENDITURE","$0's",null,{"$f":"SUM('[2]2.12 Input tables'!M32,'[3]2.12 Input tables'!M32)","v":19882.52},{"$f":"SUM('[2]2.12 Input tables'!N32,'[3]2.12 Input tables'!N32)","v":454932.49999999994},{"$f":"SUM('[2]2.12 Input tables'!O32,'[3]2.12 Input tables'!O32)","v":157042.69},{"$f":"SUM('[2]2.12 Input tables'!P32,'[3]2.12 Input tables'!P32)","v":181032.67999999993},{"$f":"SUM('[2]2.12 Input tables'!Q32,'[3]2.12 Input tables'!Q32)","v":0},{"$f":"SUM('[2]2.12 Input tables'!R32,'[3]2.12 Input tables'!R32)","v":0}]
["ED_INP212_00025",null,"Zone substation property maintenance",null,"DNSP NAME","INPUT COSTS","ROUTINE MAINTENANCE","DIRECT MATERIAL COST",{"$f":"$C$33","v":"Zone substation property maintenance"},"EXPENDITURE","$0's",null,{"$f":"SUM('[2]2.12 Input tables'!M33,'[3]2.12 Input tables'!M33)","v":480.57000000000005},{"$f":"SUM('[2]2.12 Input tables'!N33,'[3]2.12 Input tables'!N33)","v":37518.599999999991},{"$f":"SUM('[2]2.12 Input tables'!O33,'[3]2.12 Input tables'!O33)","v":31566.799999999999},{"$f":"SUM('[2]2.12 Input tables'!P33,'[3]2.12 Input tables'!P33)","v":412302.49000000005},{"$f":"SUM('[2]2.12 Input tables'!Q33,'[3]2.12 Input tables'!Q33)","v":2178.12},{"$f":"SUM('[2]2.12 Input tables'!R33,'[3]2.12 Input tables'!R33)","v":0}]
["ED_INP212_00026",null,"Public lighting maintenance",null,"DNSP NAME","INPUT COSTS","ROUTINE MAINTENANCE","DIRECT MATERIAL COST",{"$f":"$C$34","v":"Public lighting maintenance"},"EXPENDITURE","$0's",null,{"$f":"SUM('[2]2.12 Input tables'!M34,'[3]2.12 Input tables'!M34)","v":0},{"$f":"SUM('[2]2.12 Input tables'!N34,'[3]2.12 Input tables'!N34)","v":0},{"$f":"SUM('[2]2.12 Input tables'!O34,'[3]2.12 Input tables'!O34)","v":0},{"$f":"SUM('[2]2.12 Input tables'!P34,'[3]2.12 Input tables'!P34)","v":0},{"$f":"SUM('[2]2.12 Input tables'!Q34,'[3]2.12 Input tables'!Q34)","v":0},{"$f":"SUM('[2]2.12 Input tables'!R34,'[3]2.12 Input tables'!R34)","v":0}]
["ED_INP212_00027",null,"Scada & network control maintenance",null,"DNSP NAME","INPUT COSTS","ROUTINE MAINTENANCE","DIRECT MATERIAL COST",{"$f":"$C$35","v":"Scada & network control maintenance"},"EXPENDITURE","$0's",null,{"$f":"SUM('[2]2.12 Input tables'!M35,'[3]2.12 Input tables'!M35)","v":0},{"$f":"SUM('[2]2.12 Input tables'!N35,'[3]2.12 Input tables'!N35)","v":8848.24},{"$f":"SUM('[2]2.12 Input tables'!O35,'[3]2.12 Input tables'!O35)","v":-3547.7800000000025},{"$f":"SUM('[2]2.12 Input tables'!P35,'[3]2.12 Input tables'!P35)","v":2212.08},{"$f":"SUM('[2]2.12 Input tables'!Q35,'[3]2.12 Input tables'!Q35)","v":0},{"$f":"SUM('[2]2.12 Input tables'!R35,'[3]2.12 Input tables'!R35)","v":0}]
["ED_INP212_00028",null,"Protection systems maintenance",null,"DNSP NAME","INPUT COSTS","ROUTINE MAINTENANCE","DIRECT MATERIAL COST",{"$f":"$C$36","v":"Protection systems maintenance"},"EXPENDITURE","$0's",null,{"$f":"SUM('[2]2.12 Input tables'!M36,'[3]2.12 Input tables'!M36)","v":15764.559999999998},{"$f":"SUM('[2]2.12 Input tables'!N36,'[3]2.12 Input tables'!N36)","v":893133.30999999936},{"$f":"SUM('[2]2.12 Input tables'!O36,'[3]2.12 Input tables'!O36)","v":413.11},{"$f":"SUM('[2]2.12 Input tables'!P36,'[3]2.12 Input tables'!P36)","v":325960.24000000057},{"$f":"SUM('[2]2.12 Input tables'!Q36,'[3]2.12 Input tables'!Q36)","v":0},{"$f":"SUM('[2]2.12 Input tables'!R36,'[3]2.12 Input tables'!R36)","v":0}]
["ED_INP212_00029",null,"Subtransmission asset maintenance - for dnsps with dual function assets",null,"DNSP NAME","INPUT COSTS","ROUTINE MAINTENANCE","DIRECT MATERIAL COST",{"$f":"$C$37","v":"Subtransmission asset maintenance - for dnsps with dual function assets"},"EXPENDITURE","$0's",null,{"$f":"SUM('[2]2.12 Input tables'!M37,'[3]2.12 Input tables'!M37)","v":0},{"$f":"SUM('[2]2.12 Input tables'!N37,'[3]2.12 Input tables'!N37)","v":15266.33},{"$f":"SUM('[2]2.12 Input tables'!O37,'[3]2.12 Input tables'!O37)","v":0},{"$f":"SUM('[2]2.12 Input tables'!P37,'[3]2.12 Input tables'!P37)","v":6767.9299999999985},{"$f":"SUM('[2]2.12 Input tables'!Q37,'[3]2.12 Input tables'!Q37)","v":0},{"$f":"SUM('[2]2.12 Input tables'!R37,'[3]2.12 Input tables'!R37)","v":0}]
["ED_INP212_00031",null,"Other",null,"DNSP NAME","INPUT COSTS","ROUTINE MAINTENANCE","DIRECT MATERIAL COST",{"$f":"$C$38","v":"Other"},"EXPENDITURE","$0's",null,{"$f":"SUM('[2]2.12 Input tables'!M38,'[3]2.12 Input tables'!M38)","v":0},{"$f":"SUM('[2]2.12 Input tables'!N38,'[3]2.12 Input tables'!N38)","v":0},{"$f":"SUM('[2]2.12 Input tables'!O38,'[3]2.12 Input tables'!O38)","v":0},{"$f":"SUM('[2]2.12 Input tables'!P38,'[3]2.12 Input tables'!P38)","v":0},{"$f":"SUM('[2]2.12 Input tables'!Q38,'[3]2.12 Input tables'!Q38)","v":0},{"$f":"SUM('[2]2.12 Input tables'!R38,'[3]2.12 Input tables'!R38)","v":0}]
["ED_INP212_00032","NON-ROUTINE MAINTENANCE","Pole top, overhead line & service line maintenance",null,"DNSP NAME","INPUT COSTS","NON-ROUTINE MAINTENANCE","DIRECT MATERIAL COST",{"$f":"$C$39","v":"Pole top, overhead line & service line maintenance"},"EXPENDITURE","$0's",null,{"$f":"SUM('[2]2.12 Input tables'!M39,'[3]2.12 Input tables'!M39)","v":95591.649999999965},{"$f":"SUM('[2]2.12 Input tables'!N39,'[3]2.12 Input tables'!N39)","v":433713.89999999956},{"$f":"SUM('[2]2.12 Input tables'!O39,'[3]2.12 Input tables'!O39)","v":51989.19},{"$f":"SUM('[2]2.12 Input tables'!P39,'[3]2.12 Input tables'!P39)","v":176813.8300000001},{"$f":"SUM('[2]2.12 Input tables'!Q39,'[3]2.12 Input tables'!Q39)","v":2031.81},{"$f":"SUM('[2]2.12 Input tables'!R39,'[3]2.12 Input tables'!R39)","v":0}]
["ED_INP212_00033",null,"Pole inspection and treatment",null,"DNSP NAME","INPUT COSTS","NON-ROUTINE MAINTENANCE","DIRECT MATERIAL COST",{"$f":"$C$40","v":"Pole inspection and treatment"},"EXPENDITURE","$0's",null,{"$f":"SUM('[2]2.12 Input tables'!M40,'[3]2.12 Input tables'!M40)","v":0},{"$f":"SUM('[2]2.12 Input tables'!N40,'[3]2.12 Input tables'!N40)","v":0},{"$f":"SUM('[2]2.12 Input tables'!O40,'[3]2.12 Input tables'!O40)","v":0},{"$f":"SUM('[2]2.12 Input tables'!P40,'[3]2.12 Input tables'!P40)","v":0},{"$f":"SUM('[2]2.12 Input tables'!Q40,'[3]2.12 Input tables'!Q40)","v":0},{"$f":"SUM('[2]2.12 Input tables'!R40,'[3]2.12 Input tables'!R40)","v":0}]
["ED_INP212_00034",null,"Overhead asset inspection",null,"DNSP NAME","INPUT COSTS","NON-ROUTINE MAINTENANCE","DIRECT MATERIAL COST",{"$f":"$C$41","v":"Overhead asset inspection"},"EXPENDITURE","$0's",null,{"$f":"SUM('[2]2.12 Input tables'!M41,'[3]2.12 Input tables'!M41)","v":0},{"$f":"SUM('[2]2.12 Input tables'!N41,'[3]2.12 Input tables'!N41)","v":2014.9099999999999},{"$f":"SUM('[2]2.12 Input tables'!O41,'[3]2.12 Input tables'!O41)","v":0},{"$f":"SUM('[2]2.12 Input tables'!P41,'[3]2.12 Input tables'!P41)","v":823.45000000000016},{"$f":"SUM('[2]2.12 Input tables'!Q41,'[3]2.12 Input tables'!Q41)","v":0},{"$f":"SUM('[2]2.12 Input tables'!R41,'[3]2.12 Input tables'!R41)","v":0}]
["ED_INP212_00035",null,"Network underground cable maintenance",null,"DNSP NAME","INPUT COSTS","NON-ROUTINE MAINTENANCE","DIRECT MATERIAL COST",{"$f":"$C$42","v":"Network underground cable maintenance"},"EXPENDITURE","$0's",null,{"$f":"SUM('[2]2.12 Input tables'!M42,'[3]2.12 Input tables'!M42)","v":44215.890000000007},{"$f":"SUM('[2]2.12 Input tables'!N42,'[3]2.12 Input tables'!N42)","v":256526.97999999989},{"$f":"SUM('[2]2.12 Input tables'!O42,'[3]2.12 Input tables'!O42)","v":64773.14},{"$f":"SUM('[2]2.12 Input tables'!P42,'[3]2.12 Input tables'!P42)","v":110570.1700000001},{"$f":"SUM('[2]2.12 Input tables'!Q42,'[3]2.12 Input tables'!Q42)","v":0},{"$f":"SUM('[2]2.12 Input tables'!R42,'[3]2.12 Input tables'!R42)","v":0}]
["ED_INP212_00036",null,"Distribution substation equipment & property maintenance",null,"DNSP NAME","INPUT COSTS","NON-ROUTINE MAINTENANCE","DIRECT MATERIAL COST",{"$f":"$C$43","v":"Distribution substation equipment & property maintenance"},"EXPENDITURE","$0's",null,{"$f":"SUM('[2]2.12 Input tables'!M43,'[3]2.12 Input tables'!M43)","v":24017.530000000002},{"$f":"SUM('[2]2.12 Input tables'!N43,'[3]2.12 Input tables'!N43)","v":204503.67},{"$f":"SUM('[2]2.12 Input tables'!O43,'[3]2.12 Input tables'!O43)","v":62124.7},{"$f":"SUM('[2]2.12 Input tables'!P43,'[3]2.12 Input tables'!P43)","v":82464.209999999977},{"$f":"SUM('[2]2.12 Input tables'!Q43,'[3]2.12 Input tables'!Q43)","v":0},{"$f":"SUM('[2]2.12 Input tables'!R43,'[3]2.12 Input tables'!R43)","v":0}]
["ED_INP212_00037",null,"Zone substation equipment maintenance",null,"DNSP NAME","INPUT COSTS","NON-ROUTINE MAINTENANCE","DIRECT MATERIAL COST",{"$f":"$C$44","v":"Zone substation equipment maintenance"},"EXPENDITURE","$0's",null,{"$f":"SUM('[2]2.12 Input tables'!M44,'[3]2.12 Input tables'!M44)","v":863.72},{"$f":"SUM('[2]2.12 Input tables'!N44,'[3]2.12 Input tables'!N44)","v":33215.300000000003},{"$f":"SUM('[2]2.12 Input tables'!O44,'[3]2.12 Input tables'!O44)","v":1925},{"$f":"SUM('[2]2.12 Input tables'!P44,'[3]2.12 Input tables'!P44)","v":12485.919999999998},{"$f":"SUM('[2]2.12 Input tables'!Q44,'[3]2.12 Input tables'!Q44)","v":0},{"$f":"SUM('[2]2.12 Input tables'!R44,'[3]2.12 Input tables'!R44)","v":0}]
["ED_INP212_00038",null,"Zone substation property maintenance",null,"DNSP NAME","INPUT COSTS","NON-ROUTINE MAINTENANCE","DIRECT MATERIAL COST",{"$f":"$C$45","v":"Zone substation property maintenance"},"EXPENDITURE","$0's",null,{"$f":"SUM('[2]2.12 Input tables'!M45,'[3]2.12 Input tables'!M45)","v":0},{"$f":"SUM('[2]2.12 Input tables'!N45,'[3]2.12 Input tables'!N45)","v":0},{"$f":"SUM('[2]2.12 Input tables'!O45,'[3]2.12 Input tables'!O45)","v":0},{"$f":"SUM('[2]2.12 Input tables'!P45,'[3]2.12 Input tables'!P45)","v":0},{"$f":"SUM('[2]2.12 Input tables'!Q45,'[3]2.12 Input tables'!Q45)","v":0},{"$f":"SUM('[2]2.12 Input tables'!R45,'[3]2.12 Input tables'!R45)","v":0}]
["ED_INP212_00039",null,"Public lighting maintenance",null,"DNSP NAME","INPUT COSTS","NON-ROUTINE MAINTENANCE","DIRECT MATERIAL COST",{"$f":"$C$46","v":"Public lighting maintenance"},"EXPENDITURE","$0's",null,{"$f":"SUM('[2]2.12 Input tables'!M46,'[3]2.12 Input tables'!M46)","v":0},{"$f":"SUM('[2]2.12 Input tables'!N46,'[3]2.12 Input tables'!N46)","v":0},{"$f":"SUM('[2]2.12 Input tables'!O46,'[3]2.12 Input tables'!O46)","v":0},{"$f":"SUM('[2]2.12 Input tables'!P46,'[3]2.12 Input tables'!P46)","v":0},{"$f":"SUM('[2]2.12 Input tables'!Q46,'[3]2.12 Input tables'!Q46)","v":0},{"$f":"SUM('[2]2.12 Input tables'!R46,'[3]2.12 Input tables'!R46)","v":0}]
["ED_INP212_00040",null,"SCADA & network control maintenance",null,"DNSP NAME","INPUT COSTS","NON-ROUTINE MAINTENANCE","DIRECT MATERIAL COST",{"$f":"$C$47","v":"SCADA & network control maintenance"},"EXPENDITURE","$0's",null,{"$f":"SUM('[2]2.12 Input tables'!M47,'[3]2.12 Input tables'!M47)","v":0},{"$f":"SUM('[2]2.12 Input tables'!N47,'[3]2.12 Input tables'!N47)","v":12895.11},{"$f":"SUM('[2]2.12 Input tables'!O47,'[3]2.12 Input tables'!O47)","v":0},{"$f":"SUM('[2]2.12 Input tables'!P47,'[3]2.12 Input tables'!P47)","v":3117.7500000000005},{"$f":"SUM('[2]2.12 Input tables'!Q47,'[3]2.12 Input tables'!Q47)","v":0},{"$f":"SUM('[2]2.12 Input tables'!R47,'[3]2.12 Input tables'!R47)","v":0}]
["ED_INP212_00041",null,"Protection systems maintenance",null,"DNSP NAME","INPUT COSTS","NON-ROUTINE MAINTENANCE","DIRECT MATERIAL COST",{"$f":"$C$48","v":"Protection systems maintenance"},"EXPENDITURE","$0's",null,{"$f":"SUM('[2]2.12 Input tables'!M48,'[3]2.12 Input tables'!M48)","v":95.74},{"$f":"SUM('[2]2.12 Input tables'!N48,'[3]2.12 Input tables'!N48)","v":25715.219999999998},{"$f":"SUM('[2]2.12 Input tables'!O48,'[3]2.12 Input tables'!O48)","v":0},{"$f":"SUM('[2]2.12 Input tables'!P48,'[3]2.12 Input tables'!P48)","v":10137.549999999999},{"$f":"SUM('[2]2.12 Input tables'!Q48,'[3]2.12 Input tables'!Q48)","v":0},{"$f":"SUM('[2]2.12 Input tables'!R48,'[3]2.12 Input tables'!R48)","v":0}]
["ED_INP212_00042",null,"Subtransmission asset maintenance - for DNSP with dual function assets",null,"DNSP NAME","INPUT COSTS","NON-ROUTINE MAINTENANCE","DIRECT MATERIAL COST",{"$f":"$C$49","v":"Subtransmission asset maintenance - for DNSP with dual function assets"},"EXPENDITURE","$0's",null,{"$f":"SUM('[2]2.12 Input tables'!M49,'[3]2.12 Input tables'!M49)","v":0},{"$f":"SUM('[2]2.12 Input tables'!N49,'[3]2.12 Input tables'!N49)","v":5523.7400000000007},{"$f":"SUM('[2]2.12 Input tables'!O49,'[3]2.12 Input tables'!O49)","v":3202},{"$f":"SUM('[2]2.12 Input tables'!P49,'[3]2.12 Input tables'!P49)","v":2224.86},{"$f":"SUM('[2]2.12 Input tables'!Q49,'[3]2.12 Input tables'!Q49)","v":0},{"$f":"SUM('[2]2.12 Input tables'!R49,'[3]2.12 Input tables'!R49)","v":0}]
["ED_INP212_00044",null,"Other",null,"DNSP NAME","INPUT COSTS","NON-ROUTINE MAINTENANCE","DIRECT MATERIAL COST",{"$f":"$C$50","v":"Other"},"EXPENDITURE","$0's",null,{"$f":"SUM('[2]2.12 Input tables'!M50,'[3]2.12 Input tables'!M50)","v":0},{"$f":"SUM('[2]2.12 Input tables'!N50,'[3]2.12 Input tables'!N50)","v":0},{"$f":"SUM('[2]2.12 Input tables'!O50,'[3]2.12 Input tables'!O50)","v":0},{"$f":"SUM('[2]2.12 Input tables'!P50,'[3]2.12 Input tables'!P50)","v":0},{"$f":"SUM('[2]2.12 Input tables'!Q50,'[3]2.12 Input tables'!Q50)","v":0},{"$f":"SUM('[2]2.12 Input tables'!R50,'[3]2.12 Input tables'!R50)","v":0}]
["ED_INP212_00045","OVERHEADS","Network overheads",null,"DNSP NAME","INPUT COSTS","OVERHEADS","DIRECT MATERIAL COST",{"$f":"$C$51","v":"Network overheads"},"EXPENDITURE","$0's",null,{"$f":"SUM('[2]2.12 Input tables'!M51,'[3]2.12 Input tables'!M51)","v":39391.42},{"$f":"SUM('[2]2.12 Input tables'!N51,'[3]2.12 Input tables'!N51)","v":13653175.35999999},{"$f":"SUM('[2]2.12 Input tables'!O51,'[3]2.12 Input tables'!O51)","v":2335120.6},{"$f":"SUM('[2]2.12 Input tables'!P51,'[3]2.12 Input tables'!P51)","v":28976154.400000006},{"$f":"SUM('[2]2.12 Input tables'!Q51,'[3]2.12 Input tables'!Q51)","v":1858645.94},{"$f":"SUM('[2]2.12 Input tables'!R51,'[3]2.12 Input tables'!R51)","v":0}]
["ED_INP212_00046",null,"Corporate overheads",null,"DNSP NAME","INPUT COSTS","OVERHEADS","DIRECT MATERIAL COST",{"$f":"$C$52","v":"Corporate overheads"},"EXPENDITURE","$0's",null,{"$f":"SUM('[2]2.12 Input tables'!M52,'[3]2.12 Input tables'!M52)","v":9400.3740702680116},{"$f":"SUM('[2]2.12 Input tables'!N52,'[3]2.12 Input tables'!N52)","v":15749749.791946387},{"$f":"SUM('[2]2.12 Input tables'!O52,'[3]2.12 Input tables'!O52)","v":2887611.867492998},{"$f":"SUM('[2]2.12 Input tables'!P52,'[3]2.12 Input tables'!P52)","v":6990105.6672329493},{"$f":"SUM('[2]2.12 Input tables'!Q52,'[3]2.12 Input tables'!Q52)","v":0},{"$f":"SUM('[2]2.12 Input tables'!R52,'[3]2.12 Input tables'!R52)","v":0}]
["ED_INP212_00047","AUGMENTATION","Subtransmission substations, switching stations, zone substations",null,"DNSP NAME","INPUT COSTS","AUGMENTATION","DIRECT MATERIAL COST",{"$f":"$C$53","v":"Subtransmission substations, switching stations, zone substations"},"EXPENDITURE","$0's",null,{"$f":"SUM('[2]2.12 Input tables'!M53,'[3]2.12 Input tables'!M53)","v":62663.55},{"$f":"SUM('[2]2.12 Input tables'!N53,'[3]2.12 Input tables'!N53)","v":237189.90000000002},{"$f":"SUM('[2]2.12 Input tables'!O53,'[3]2.12 Input tables'!O53)","v":184060.87999999995},{"$f":"SUM('[2]2.12 Input tables'!P53,'[3]2.12 Input tables'!P53)","v":91900.709999999992},{"$f":"SUM('[2]2.12 Input tables'!Q53,'[3]2.12 Input tables'!Q53)","v":96513.829999999958},{"$f":"SUM('[2]2.12 Input tables'!R53,'[3]2.12 Input tables'!R53)","v":0}]
["ED_INP212_00048",null,"Subtransmission lines",null,"DNSP NAME","INPUT COSTS","AUGMENTATION","DIRECT MATERIAL COST",{"$f":"$C$54","v":"Subtransmission lines"},"EXPENDITURE","$0's",null,{"$f":"SUM('[2]2.12 Input tables'!M54,'[3]2.12 Input tables'!M54)","v":65515.570000000007},{"$f":"SUM('[2]2.12 Input tables'!N54,'[3]2.12 Input tables'!N54)","v":313233},{"$f":"SUM('[2]2.12 Input tables'!O54,'[3]2.12 Input tables'!O54)","v":773050.30999999994},{"$f":"SUM('[2]2.12 Input tables'!P54,'[3]2.12 Input tables'!P54)","v":337002.00000000012},{"$f":"SUM('[2]2.12 Input tables'!Q54,'[3]2.12 Input tables'!Q54)","v":0},{"$f":"SUM('[2]2.12 Input tables'!R54,'[3]2.12 Input tables'!R54)","v":0}]
["ED_INP212_00049",null,"HV feeders",null,"DNSP NAME","INPUT COSTS","AUGMENTATION","DIRECT MATERIAL COST",{"$f":"$C$55","v":"HV feeders"},"EXPENDITURE","$0's",null,{"$f":"SUM('[2]2.12 Input tables'!M55,'[3]2.12 Input tables'!M55)","v":75190.389999999985},{"$f":"SUM('[2]2.12 Input tables'!N55,'[3]2.12 Input tables'!N55)","v":246832.16999999998},{"$f":"SUM('[2]2.12 Input tables'!O55,'[3]2.12 Input tables'!O55)","v":354826.94},{"$f":"SUM('[2]2.12 Input tables'!P55,'[3]2.12 Input tables'!P55)","v":143355.58999999997},{"$f":"SUM('[2]2.12 Input tables'!Q55,'[3]2.12 Input tables'!Q55)","v":0},{"$f":"SUM('[2]2.12 Input tables'!R55,'[3]2.12 Input tables'!R55)","v":0}]
["ED_INP212_00050",null,"Distribution substations",null,"DNSP NAME","INPUT COSTS","AUGMENTATION","DIRECT MATERIAL COST",{"$f":"$C$56","v":"Distribution substations"},"EXPENDITURE","$0's",null,{"$f":"SUM('[2]2.12 Input tables'!M56,'[3]2.12 Input tables'!M56)","v":0},{"$f":"SUM('[2]2.12 Input tables'!N56,'[3]2.12 Input tables'!N56)","v":0},{"$f":"SUM('[2]2.12 Input tables'!O56,'[3]2.12 Input tables'!O56)","v":0},{"$f":"SUM('[2]2.12 Input tables'!P56,'[3]2.12 Input tables'!P56)","v":0},{"$f":"SUM('[2]2.12 Input tables'!Q56,'[3]2.12 Input tables'!Q56)","v":0},{"$f":"SUM('[2]2.12 Input tables'!R56,'[3]2.12 Input tables'!R56)","v":0}]
["ED_INP212_00051",null,"LV feeders",null,"DNSP NAME","INPUT COSTS","AUGMENTATION","DIRECT MATERIAL COST",{"$f":"$C$57","v":"LV feeders"},"EXPENDITURE","$0's",null,{"$f":"SUM('[2]2.12 Input tables'!M57,'[3]2.12 Input tables'!M57)","v":0},{"$f":"SUM('[2]2.12 Input tables'!N57,'[3]2.12 Input tables'!N57)","v":0},{"$f":"SUM('[2]2.12 Input tables'!O57,'[3]2.12 Input tables'!O57)","v":0},{"$f":"SUM('[2]2.12 Input tables'!P57,'[3]2.12 Input tables'!P57)","v":0},{"$f":"SUM('[2]2.12 Input tables'!Q57,'[3]2.12 Input tables'!Q57)","v":0},{"$f":"SUM('[2]2.12 Input tables'!R57,'[3]2.12 Input tables'!R57)","v":0}]
["ED_INP212_00052",null,"Other assets",null,"DNSP NAME","INPUT COSTS","AUGMENTATION","DIRECT MATERIAL COST",{"$f":"$C$58","v":"Other assets"},"EXPENDITURE","$0's",null,{"$f":"SUM('[2]2.12 Input tables'!M58,'[3]2.12 Input tables'!M58)","v":0},{"$f":"SUM('[2]2.12 Input tables'!N58,'[3]2.12 Input tables'!N58)","v":0},{"$f":"SUM('[2]2.12 Input tables'!O58,'[3]2.12 Input tables'!O58)","v":0},{"$f":"SUM('[2]2.12 Input tables'!P58,'[3]2.12 Input tables'!P58)","v":0},{"$f":"SUM('[2]2.12 Input tables'!Q58,'[3]2.12 Input tables'!Q58)","v":0},{"$f":"SUM('[2]2.12 Input tables'!R58,'[3]2.12 Input tables'!R58)","v":0}]
["ED_INP212_00053","CONNECTIONS","Simple and complex customer connections",null,"DNSP NAME","INPUT COSTS","CONNECTIONS","DIRECT MATERIAL COST",{"$f":"$C$59","v":"Simple and complex customer connections"},"EXPENDITURE","$0's",null,{"$f":"SUM('[2]2.12 Input tables'!M59,'[3]2.12 Input tables'!M59)","v":7456510.7299999986},{"$f":"SUM('[2]2.12 Input tables'!N59,'[3]2.12 Input tables'!N59)","v":5111059.9899999984},{"$f":"SUM('[2]2.12 Input tables'!O59,'[3]2.12 Input tables'!O59)","v":3832214.0100000002},{"$f":"SUM('[2]2.12 Input tables'!P59,'[3]2.12 Input tables'!P59)","v":2121524.1999999983},{"$f":"SUM('[2]2.12 Input tables'!Q59,'[3]2.12 Input tables'!Q59)","v":0},{"$f":"SUM('[2]2.12 Input tables'!R59,'[3]2.12 Input tables'!R59)","v":0}]
["ED_INP212_00054","EMERGENCY RESPONSE","Major storms",null,"DNSP NAME","INPUT COSTS","EMERGENCY RESPONSE","DIRECT MATERIAL COST",{"$f":"$C$60","v":"Major storms"},"EXPENDITURE","$0's",null,{"$f":"SUM('[2]2.12 Input tables'!M60,'[3]2.12 Input tables'!M60)","v":275909.03000000003},{"$f":"SUM('[2]2.12 Input tables'!N60,'[3]2.12 Input tables'!N60)","v":1984981.6500000006},{"$f":"SUM('[2]2.12 Input tables'!O60,'[3]2.12 Input tables'!O60)","v":251849.05000000002},{"$f":"SUM('[2]2.12 Input tables'!P60,'[3]2.12 Input tables'!P60)","v":754373.87},{"$f":"SUM('[2]2.12 Input tables'!Q60,'[3]2.12 Input tables'!Q60)","v":0},{"$f":"SUM('[2]2.12 Input tables'!R60,'[3]2.12 Input tables'!R60)","v":0}]
["ED_INP212_00055",null,"Major event days",null,"DNSP NAME","INPUT COSTS","EMERGENCY RESPONSE","DIRECT MATERIAL COST",{"$f":"$C$61","v":"Major event days"},"EXPENDITURE","$0's",null,{"$f":"SUM('[2]2.12 Input tables'!M61,'[3]2.12 Input tables'!M61)","v":0},{"$f":"SUM('[2]2.12 Input tables'!N61,'[3]2.12 Input tables'!N61)","v":0},{"$f":"SUM('[2]2.12 Input tables'!O61,'[3]2.12 Input tables'!O61)","v":0},{"$f":"SUM('[2]2.12 Input tables'!P61,'[3]2.12 Input tables'!P61)","v":0},{"$f":"SUM('[2]2.12 Input tables'!Q61,'[3]2.12 Input tables'!Q61)","v":0},{"$f":"SUM('[2]2.12 Input tables'!R61,'[3]2.12 Input tables'!R61)","v":0}]
["ED_INP212_00056","PUBLIC LIGHTING","All public lighting services",null,"DNSP NAME","INPUT COSTS","PUBLIC LIGHTING","DIRECT MATERIAL COST",{"$f":"$C$62","v":"All public lighting services"},"EXPENDITURE","$0's",null,{"$f":"SUM('[2]2.12 Input tables'!M62,'[3]2.12 Input tables'!M62)","v":0},{"$f":"SUM('[2]2.12 Input tables'!N62,'[3]2.12 Input tables'!N62)","v":0},{"$f":"SUM('[2]2.12 Input tables'!O62,'[3]2.12 Input tables'!O62)","v":0},{"$f":"SUM('[2]2.12 Input tables'!P62,'[3]2.12 Input tables'!P62)","v":0},{"$f":"SUM('[2]2.12 Input tables'!Q62,'[3]2.12 Input tables'!Q62)","v":0},{"$f":"SUM('[2]2.12 Input tables'!R62,'[3]2.12 Input tables'!R62)","v":0}]
["ED_INP212_00057","METERING","All metering services",null,"DNSP NAME","INPUT COSTS","METERING","DIRECT MATERIAL COST",{"$f":"$C$63","v":"All metering services"},"EXPENDITURE","$0's",null,{"$f":"SUM('[2]2.12 Input tables'!M63,'[3]2.12 Input tables'!M63)","v":1055452.1199999971},{"$f":"SUM('[2]2.12 Input tables'!N63,'[3]2.12 Input tables'!N63)","v":2673521.3400000059},{"$f":"SUM('[2]2.12 Input tables'!O63,'[3]2.12 Input tables'!O63)","v":1960864.7600000002},{"$f":"SUM('[2]2.12 Input tables'!P63,'[3]2.12 Input tables'!P63)","v":1053557.0400000007},{"$f":"SUM('[2]2.12 Input tables'!Q63,'[3]2.12 Input tables'!Q63)","v":0},{"$f":"SUM('[2]2.12 Input tables'!R63,'[3]2.12 Input tables'!R63)","v":0}]
["ED_INP212_00058","FEE-BASED SERVICES","All fee-based services",null,"DNSP NAME","INPUT COSTS","FEE-BASED SERVICES","DIRECT MATERIAL COST",{"$f":"$C$64","v":"All fee-based services"},"EXPENDITURE","$0's",null,{"$f":"SUM('[2]2.12 Input tables'!M64,'[3]2.12 Input tables'!M64)","v":166095.49999999988},{"$f":"SUM('[2]2.12 Input tables'!N64,'[3]2.12 Input tables'!N64)","v":2019356.670000036},{"$f":"SUM('[2]2.12 Input tables'!O64,'[3]2.12 Input tables'!O64)","v":128796.08000000002},{"$f":"SUM('[2]2.12 Input tables'!P64,'[3]2.12 Input tables'!P64)","v":834130.17000002251},{"$f":"SUM('[2]2.12 Input tables'!Q64,'[3]2.12 Input tables'!Q64)","v":0},{"$f":"SUM('[2]2.12 Input tables'!R64,'[3]2.12 Input tables'!R64)","v":0}]
["ED_INP212_00059","QUOTED SERVICES","All quoted services",null,"DNSP NAME","INPUT COSTS","QUOTED SERVICES","DIRECT MATERIAL COST",{"$f":"$C$65","v":"All quoted services"},"EXPENDITURE","$0's",null,{"$f":"SUM('[2]2.12 Input tables'!M65,'[3]2.12 Input tables'!M65)","v":585437.01},{"$f":"SUM('[2]2.12 Input tables'!N65,'[3]2.12 Input tables'!N65)","v":1408579.7600000002},{"$f":"SUM('[2]2.12 Input tables'!O65,'[3]2.12 Input tables'!O65)","v":952792.89},{"$f":"SUM('[2]2.12 Input tables'!P65,'[3]2.12 Input tables'!P65)","v":548269.99000000011},{"$f":"SUM('[2]2.12 Input tables'!Q65,'[3]2.12 Input tables'!Q65)","v":0},{"$f":"SUM('[2]2.12 Input tables'!R65,'[3]2.12 Input tables'!R65)","v":0}]
["ED_INP212_00060","REPLACEMENT","Poles",null,"DNSP NAME","INPUT COSTS","REPLACEMENT","DIRECT MATERIAL COST",{"$f":"$C$66","v":"Poles"},"EXPENDITURE","$0's",null,{"$f":"SUM('[2]2.12 Input tables'!M66,'[3]2.12 Input tables'!M66)","v":2709498.2099999986},{"$f":"SUM('[2]2.12 Input tables'!N66,'[3]2.12 Input tables'!N66)","v":4101981.7600000012},{"$f":"SUM('[2]2.12 Input tables'!O66,'[3]2.12 Input tables'!O66)","v":2115514.09},{"$f":"SUM('[2]2.12 Input tables'!P66,'[3]2.12 Input tables'!P66)","v":1757810.9800000007},{"$f":"SUM('[2]2.12 Input tables'!Q66,'[3]2.12 Input tables'!Q66)","v":0},{"$f":"SUM('[2]2.12 Input tables'!R66,'[3]2.12 Input tables'!R66)","v":0}]
["ED_INP212_00061",null,"Pole top structures",null,"DNSP NAME","INPUT COSTS","REPLACEMENT","DIRECT MATERIAL COST",{"$f":"$C$67","v":"Pole top structures"},"EXPENDITURE","$0's",null,{"$f":"SUM('[2]2.12 Input tables'!M67,'[3]2.12 Input tables'!M67)","v":147608.03999999998},{"$f":"SUM('[2]2.12 Input tables'!N67,'[3]2.12 Input tables'!N67)","v":543037.34000000008},{"$f":"SUM('[2]2.12 Input tables'!O67,'[3]2.12 Input tables'!O67)","v":70143.74000000002},{"$f":"SUM('[2]2.12 Input tables'!P67,'[3]2.12 Input tables'!P67)","v":236496.30000000002},{"$f":"SUM('[2]2.12 Input tables'!Q67,'[3]2.12 Input tables'!Q67)","v":0},{"$f":"SUM('[2]2.12 Input tables'!R67,'[3]2.12 Input tables'!R67)","v":0}]
["ED_INP212_00062",null,"Overhead conductors",null,"DNSP NAME","INPUT COSTS","REPLACEMENT","DIRECT MATERIAL COST",{"$f":"$C$68","v":"Overhead conductors"},"EXPENDITURE","$0's",null,{"$f":"SUM('[2]2.12 Input tables'!M68,'[3]2.12 Input tables'!M68)","v":28110.27},{"$f":"SUM('[2]2.12 Input tables'!N68,'[3]2.12 Input tables'!N68)","v":127578.4},{"$f":"SUM('[2]2.12 Input tables'!O68,'[3]2.12 Input tables'!O68)","v":19148.879999999997},{"$f":"SUM('[2]2.12 Input tables'!P68,'[3]2.12 Input tables'!P68)","v":57230.070000000007},{"$f":"SUM('[2]2.12 Input tables'!Q68,'[3]2.12 Input tables'!Q68)","v":0},{"$f":"SUM('[2]2.12 Input tables'!R68,'[3]2.12 Input tables'!R68)","v":0}]
["ED_INP212_00063",null,"Underground cables",null,"DNSP NAME","INPUT COSTS","REPLACEMENT","DIRECT MATERIAL COST",{"$f":"$C$69","v":"Underground cables"},"EXPENDITURE","$0's",null,{"$f":"SUM('[2]2.12 Input tables'!M69,'[3]2.12 Input tables'!M69)","v":193584.89},{"$f":"SUM('[2]2.12 Input tables'!N69,'[3]2.12 Input tables'!N69)","v":484790.35000000003},{"$f":"SUM('[2]2.12 Input tables'!O69,'[3]2.12 Input tables'!O69)","v":287312.20999999996},{"$f":"SUM('[2]2.12 Input tables'!P69,'[3]2.12 Input tables'!P69)","v":182242.77000000002},{"$f":"SUM('[2]2.12 Input tables'!Q69,'[3]2.12 Input tables'!Q69)","v":0},{"$f":"SUM('[2]2.12 Input tables'!R69,'[3]2.12 Input tables'!R69)","v":0}]
["ED_INP212_00064",null,"Service lines",null,"DNSP NAME","INPUT COSTS","REPLACEMENT","DIRECT MATERIAL COST",{"$f":"$C$70","v":"Service lines"},"EXPENDITURE","$0's",null,{"$f":"SUM('[2]2.12 Input tables'!M70,'[3]2.12 Input tables'!M70)","v":4840.7800000000007},{"$f":"SUM('[2]2.12 Input tables'!N70,'[3]2.12 Input tables'!N70)","v":19042.799999999996},{"$f":"SUM('[2]2.12 Input tables'!O70,'[3]2.12 Input tables'!O70)","v":9323.75},{"$f":"SUM('[2]2.12 Input tables'!P70,'[3]2.12 Input tables'!P70)","v":6300.11},{"$f":"SUM('[2]2.12 Input tables'!Q70,'[3]2.12 Input tables'!Q70)","v":0},{"$f":"SUM('[2]2.12 Input tables'!R70,'[3]2.12 Input tables'!R70)","v":0}]
["ED_INP212_00065",null,"Transformers",null,"DNSP NAME","INPUT COSTS","REPLACEMENT","DIRECT MATERIAL COST",{"$f":"$C$71","v":"Transformers"},"EXPENDITURE","$0's",null,{"$f":"SUM('[2]2.12 Input tables'!M71,'[3]2.12 Input tables'!M71)","v":534554.87999999989},{"$f":"SUM('[2]2.12 Input tables'!N71,'[3]2.12 Input tables'!N71)","v":444284.54},{"$f":"SUM('[2]2.12 Input tables'!O71,'[3]2.12 Input tables'!O71)","v":163969.12},{"$f":"SUM('[2]2.12 Input tables'!P71,'[3]2.12 Input tables'!P71)","v":187360.50000000003},{"$f":"SUM('[2]2.12 Input tables'!Q71,'[3]2.12 Input tables'!Q71)","v":0},{"$f":"SUM('[2]2.12 Input tables'!R71,'[3]2.12 Input tables'!R71)","v":0}]
["ED_INP212_00066",null,"Switchgear",null,"DNSP NAME","INPUT COSTS","REPLACEMENT","DIRECT MATERIAL COST",{"$f":"$C$72","v":"Switchgear"},"EXPENDITURE","$0's",null,{"$f":"SUM('[2]2.12 Input tables'!M72,'[3]2.12 Input tables'!M72)","v":845351.81999999972},{"$f":"SUM('[2]2.12 Input tables'!N72,'[3]2.12 Input tables'!N72)","v":979046.35000000009},{"$f":"SUM('[2]2.12 Input tables'!O72,'[3]2.12 Input tables'!O72)","v":300550.44000000006},{"$f":"SUM('[2]2.12 Input tables'!P72,'[3]2.12 Input tables'!P72)","v":358042.85000000003},{"$f":"SUM('[2]2.12 Input tables'!Q72,'[3]2.12 Input tables'!Q72)","v":0},{"$f":"SUM('[2]2.12 Input tables'!R72,'[3]2.12 Input tables'!R72)","v":0}]
["ED_INP212_00067",null,"Public lighting",null,"DNSP NAME","INPUT COSTS","REPLACEMENT","DIRECT MATERIAL COST",{"$f":"$C$74","v":"SCADA network control and protection systems"},"EXPENDITURE","$0's",null,{"$f":"SUM('[2]2.12 Input tables'!M73,'[3]2.12 Input tables'!M73)","v":0},{"$f":"SUM('[2]2.12 Input tables'!N73,'[3]2.12 Input tables'!N73)","v":0},{"$f":"SUM('[2]2.12 Input tables'!O73,'[3]2.12 Input tables'!O73)","v":0},{"$f":"SUM('[2]2.12 Input tables'!P73,'[3]2.12 Input tables'!P73)","v":0},{"$f":"SUM('[2]2.12 Input tables'!Q73,'[3]2.12 Input tables'!Q73)","v":0},{"$f":"SUM('[2]2.12 Input tables'!R73,'[3]2.12 Input tables'!R73)","v":0}]
["ED_INP212_00068",null,"SCADA network control and protection systems",null,"DNSP NAME","INPUT COSTS","REPLACEMENT","DIRECT MATERIAL COST",{"$f":"$C$74","v":"SCADA network control and protection systems"},"EXPENDITURE","$0's",null,{"$f":"SUM('[2]2.12 Input tables'!M74,'[3]2.12 Input tables'!M74)","v":78320.660000000018},{"$f":"SUM('[2]2.12 Input tables'!N74,'[3]2.12 Input tables'!N74)","v":678777.16000000015},{"$f":"SUM('[2]2.12 Input tables'!O74,'[3]2.12 Input tables'!O74)","v":179447.63999999998},{"$f":"SUM('[2]2.12 Input tables'!P74,'[3]2.12 Input tables'!P74)","v":231287.53000000003},{"$f":"SUM('[2]2.12 Input tables'!Q74,'[3]2.12 Input tables'!Q74)","v":0},{"$f":"SUM('[2]2.12 Input tables'!R74,'[3]2.12 Input tables'!R74)","v":0}]
["ED_INP212_00069",null,"Other",null,"DNSP NAME","INPUT COSTS","REPLACEMENT","DIRECT MATERIAL COST",{"$f":"$C$75","v":"Other"},"EXPENDITURE","$0's",null,{"$f":"SUM('[2]2.12 Input tables'!M75,'[3]2.12 Input tables'!M75)","v":199145.01},{"$f":"SUM('[2]2.12 Input tables'!N75,'[3]2.12 Input tables'!N75)","v":278505.5},{"$f":"SUM('[2]2.12 Input tables'!O75,'[3]2.12 Input tables'!O75)","v":144977.28},{"$f":"SUM('[2]2.12 Input tables'!P75,'[3]2.12 Input tables'!P75)","v":106326.31999999996},{"$f":"SUM('[2]2.12 Input tables'!Q75,'[3]2.12 Input tables'!Q75)","v":0},{"$f":"SUM('[2]2.12 Input tables'!R75,'[3]2.12 Input tables'!R75)","v":0}]
["ED_INP212_00070","NON-NETWORK EXPENDITURE","IT and communications",null,"DNSP NAME","INPUT COSTS","NON-NETWORK","DIRECT MATERIAL COST",{"$f":"$C$76","v":"IT and communications"},"EXPENDITURE","$0's",null,{"$f":"SUM('[2]2.12 Input tables'!M76,'[3]2.12 Input tables'!M76)","v":36630.640000000007},{"$f":"SUM('[2]2.12 Input tables'!N76,'[3]2.12 Input tables'!N76)","v":3902317.55},{"$f":"SUM('[2]2.12 Input tables'!O76,'[3]2.12 Input tables'!O76)","v":15940089.029999997},{"$f":"SUM('[2]2.12 Input tables'!P76,'[3]2.12 Input tables'!P76)","v":3742516.92},{"$f":"SUM('[2]2.12 Input tables'!Q76,'[3]2.12 Input tables'!Q76)","v":23975},{"$f":"SUM('[2]2.12 Input tables'!R76,'[3]2.12 Input tables'!R76)","v":0}]
["ED_INP212_00071",null,"Motor vehicles",null,"DNSP NAME","INPUT COSTS","NON-NETWORK","DIRECT MATERIAL COST",{"$f":"$C$77","v":"Motor vehicles"},"EXPENDITURE","$0's",null,{"$f":"SUM('[2]2.12 Input tables'!M77,'[3]2.12 Input tables'!M77)","v":0},{"$f":"SUM('[2]2.12 Input tables'!N77,'[3]2.12 Input tables'!N77)","v":0},{"$f":"SUM('[2]2.12 Input tables'!O77,'[3]2.12 Input tables'!O77)","v":0},{"$f":"SUM('[2]2.12 Input tables'!P77,'[3]2.12 Input tables'!P77)","v":8748758.3499999996},{"$f":"SUM('[2]2.12 Input tables'!Q77,'[3]2.12 Input tables'!Q77)","v":0},{"$f":"SUM('[2]2.12 Input tables'!R77,'[3]2.12 Input tables'!R77)","v":0}]
["ED_INP212_00072",null,"Buildings and property",null,"DNSP NAME","INPUT COSTS","NON-NETWORK","DIRECT MATERIAL COST",{"$f":"$C$78","v":"Buildings and property"},"EXPENDITURE","$0's",null,{"$f":"SUM('[2]2.12 Input tables'!M78,'[3]2.12 Input tables'!M78)","v":113764.73000000001},{"$f":"SUM('[2]2.12 Input tables'!N78,'[3]2.12 Input tables'!N78)","v":226055.84000000005},{"$f":"SUM('[2]2.12 Input tables'!O78,'[3]2.12 Input tables'!O78)","v":1184134.27},{"$f":"SUM('[2]2.12 Input tables'!P78,'[3]2.12 Input tables'!P78)","v":1327071.99},{"$f":"SUM('[2]2.12 Input tables'!Q78,'[3]2.12 Input tables'!Q78)","v":0},{"$f":"SUM('[2]2.12 Input tables'!R78,'[3]2.12 Input tables'!R78)","v":0}]
["ED_INP212_00073",null,"Other",null,"DNSP NAME","INPUT COSTS","NON-NETWORK","DIRECT MATERIAL COST",{"$f":"$C$79","v":"Other"},"EXPENDITURE","$0's",null,{"$f":"SUM('[2]2.12 Input tables'!M79,'[3]2.12 Input tables'!M79)","v":0},{"$f":"SUM('[2]2.12 Input tables'!N79,'[3]2.12 Input tables'!N79)","v":0},{"$f":"SUM('[2]2.12 Input tables'!O79,'[3]2.12 Input tables'!O79)","v":0},{"$f":"SUM('[2]2.12 Input tables'!P79,'[3]2.12 Input tables'!P79)","v":285073.82999999973},{"$f":"SUM('[2]2.12 Input tables'!Q79,'[3]2.12 Input tables'!Q79)","v":0},{"$f":"SUM('[2]2.12 Input tables'!R79,'[3]2.12 Input tables'!R79)","v":0}]

{"sheet":"4.1 Public lighting","index":13,"n_rows":237,"n_cols":4,"rows_kept":237,"cut":false,"hidden":false,"merged":[]}
[null,{"$f":"(LOOKUP(dms_Model,dms_Model_List,dms_Worksheet_List))","v":"REGULATORY REPORTING STATEMENT"}]
[null,"Australian Distribution Co."]
[null,{"$f":"CONCATENATE(\"Category Analysis RIN response \",CRY)","v":"Category Analysis RIN response 2014-15"}]
[null,"4.1 PUBLIC LIGHTING"]
[]
[null,"TABLE 4.1.1 - DESCRIPTOR METRICS OVER 2013-14 YEAR"]
[]
[]
[null,null,"LIGHT TYPE","VOLUME \n(0's)"]
["PUB411",null,null,{"$f":"CRY","v":"2014-15"}]
["ED_PUB411_00001","POPULATION OF LIGHTS","DNSP to enter description"]
["ED_PUB411_00002"]
["ED_PUB411_00003"]
["ED_PUB411_00004"]
["ED_PUB411_00005"]
["ED_PUB411_00006"]
["ED_PUB411_00007"]
["ED_PUB411_00008"]
["ED_PUB411_00009"]
["ED_PUB411_00010"]
["ED_PUB411_00011"]
["ED_PUB411_00012"]
["ED_PUB411_00013"]
["ED_PUB411_00014"]
["ED_PUB411_00015"]
["ED_PUB411_00016"]
["ED_PUB411_00017"]
["ED_PUB411_00018"]
["ED_PUB411_00019"]
["ED_PUB411_00020"]
["ED_PUB411_00021"]
["ED_PUB411_00022"]
["ED_PUB411_00023"]
["ED_PUB411_00024"]
["ED_PUB411_00025"]
["ED_PUB411_00026"]
["ED_PUB411_00027"]
["ED_PUB411_00028"]
["ED_PUB411_00029"]
["ED_PUB411_00030"]
["ED_PUB411_00031"]
["ED_PUB411_00032"]
["ED_PUB411_00033"]
["ED_PUB411_00034"]
["ED_PUB411_00035"]
["ED_PUB411_00036"]
["ED_PUB411_00037"]
["ED_PUB411_00038"]
["ED_PUB411_00039"]
["ED_PUB411_00040"]
["ED_PUB411_00041"]
["ED_PUB411_00042"]
["ED_PUB411_00043"]
["ED_PUB411_00044"]
["ED_PUB411_00045"]
["ED_PUB411_00046"]
["ED_PUB411_00047"]
["ED_PUB411_00048"]
["ED_PUB411_00049"]
["ED_PUB411_00050"]
["ED_PUB411_00051"]
["ED_PUB411_00052"]
["ED_PUB411_00053"]
["ED_PUB411_00054"]
["ED_PUB411_00055"]
["ED_PUB411_00056"]
["ED_PUB411_00057"]
["ED_PUB411_00058"]
["ED_PUB411_00059"]
["ED_PUB411_00060"]
["ED_PUB411_00061"]
["ED_PUB411_00062"]
["ED_PUB411_00063"]
["ED_PUB411_00064"]
["ED_PUB411_00065"]
["ED_PUB411_00066"]
["ED_PUB411_00067"]
["ED_PUB411_00068"]
["ED_PUB411_00069"]
["ED_PUB411_00070"]
["ED_PUB411_00071"]
["ED_PUB411_00072"]
["ED_PUB411_00073"]
["ED_PUB411_00074"]
["ED_PUB411_00075"]
["ED_PUB411_00076"]
["ED_PUB411_00077"]
["ED_PUB411_00078"]
["ED_PUB411_00079"]
["ED_PUB411_00080"]
["ED_PUB411_00081"]
["ED_PUB411_00082"]
["ED_PUB411_00083"]
["ED_PUB411_00084"]
["ED_PUB411_00085"]
["ED_PUB411_00086"]
["ED_PUB411_00087"]
["ED_PUB411_00088"]
["ED_PUB411_00089"]
["ED_PUB411_00090"]
["ED_PUB411_00091"]
["ED_PUB411_00092"]
["ED_PUB411_00093"]
["ED_PUB411_00094"]
["ED_PUB411_00095"]
["ED_PUB411_00096"]
["ED_PUB411_00097"]
["ED_PUB411_00098"]
["ED_PUB411_00099"]
["ED_PUB411_00100"]
["ED_PUB411_00101"]
["ED_PUB411_00102"]
[]
[]
[]
[]
[null,"TABLE 4.1.2 - DESCRIPTOR METRICS ANNUALLY"]
[]
[]
[null,null,null,"VOLUMES \n& EXPENDITURE"]
["PUB412","SERVICE/SERVICE QUALITY - Volumes and Expenditure","DESCRIPTOR METRIC",{"$f":"CRY","v":"2014-15"}]
["ED_PUB412_00001","LIGHT INSTALLATION","Major road light installation (volume)"]
["ED_PUB412_00002",null,"Minor road light installation (volume)"]
["ED_PUB412_00003",null,"Number of poles installed"]
["ED_PUB412_00004",null,"Total cost ($'s)"]
["ED_PUB412_00005","LIGHT REPLACEMENT","Major road light replacement (volume)"]
["ED_PUB412_00006",null,"Minor road light replacement (volume)"]
["ED_PUB412_00007",null,"Number of poles replaced"]
["ED_PUB412_00008",null,"Total cost ($'s)"]
["ED_PUB412_00009","LIGHT MAINTENANCE","Major road light maintenance (volume)"]
["ED_PUB412_00010",null,"Minor road light maintenance (volume)"]
["ED_PUB412_00011",null,"Number of poles installed"]
["ED_PUB412_00012",null,"Total cost ($'s)"]
["ED_PUB412_00013","QUALITY OF SUPPLY","Mean days to rectify/replace public lighting assets (days)"]
["ED_PUB412_00014",null,"GSO breaches (volume 0's)"]
["ED_PUB412_00015",null,"GSL payments ($0's)"]
["ED_PUB412_00016",null,"Customer complaints (volume 0's)"]
[]
[]
[]
[]
[]
[null,"TABLE 4.1.3 - COST METRICS"]
[]
[]
[null,null,null,"AVERAGE UNIT COST \n($)"]
["PUB413","ROAD TYPE","LIGHT TYPE",{"$f":"CRY","v":"2014-15"}]
["PUB413_00001","LIGHT INSTALLATION - Major Road","DNSP to enter description",""]
["PUB413_00002"]
["PUB413_00003"]
["PUB413_00004"]
["PUB413_00005"]
["PUB413_00006"]
["PUB413_00007"]
["PUB413_00008"]
["PUB413_00009",null,null,""]
["PUB413_00010",null,null,""]
["PUB413_00011",null,null,""]
["PUB413_00012",null,null,""]
["PUB413_00013",null,null,""]
["PUB413_00014",null,null,""]
["PUB413_00015",null,null,""]
["PUB413_00010","LIGHT INSTALLATION - Minor Road","DNSP to enter description",""]
["PUB413_00011"]
["PUB413_00012"]
["PUB413_00013"]
["PUB413_00014"]
["PUB413_00014"]
["PUB413_00015"]
["PUB413_00016"]
["PUB413_00017"]
["PUB413_00018",null,null,""]
["PUB413_00019",null,null,""]
["PUB413_00020",null,null,""]
["PUB413_00021",null,null,""]
["PUB413_00022",null,null,""]
["PUB413_00023",null,null,""]
["PUB413_00024","LIGHT REPLACEMENT - Major Road","DNSP to enter description",""]
["PUB413_00025",null,null,""]
["PUB413_00026"]
["PUB413_00027"]
["PUB413_00028",null,null,""]
["PUB413_00029",null,null,""]
["PUB413_00030",null,null,""]
["PUB413_00025",null,null,""]
["PUB413_00026",null,null,""]
["PUB413_00027",null,null,""]
["PUB413_00028",null,null,""]
["PUB413_00029",null,null,""]
["PUB413_00030",null,null,""]
["PUB413_00025",null,null,""]
["PUB413_00031",null,null,""]
["PUB413_00032","LIGHT REPLACEMENT - Minor Road","DNSP to enter description",""]
["PUB413_00033",null,null,""]
["PUB413_00034",null,null,""]
["PUB413_00035",null,null,""]
["PUB413_00036",null,null,""]
["PUB413_00036",null,null,""]
["PUB413_00033",null,null,""]
["PUB413_00034",null,null,""]
["PUB413_00035",null,null,""]
["PUB413_00036",null,null,""]
["PUB413_00033",null,null,""]
["PUB413_00034",null,null,""]
["PUB413_00035",null,null,""]
["PUB413_00036",null,null,""]
["PUB413_00037",null,null,""]
["PUB413_00038","LIGHT MAINTENANCE - Major Road","DNSP to enter description",""]
["PUB413_00039",null,null,""]
["PUB413_00040",null,"",""]
["PUB413_00041",null,"",""]
["PUB413_00042",null,"",""]
["PUB413_00043",null,"",""]
["PUB413_00044",null,"",""]
["PUB413_00039",null,null,""]
["PUB413_00040",null,"",""]
["PUB413_00041",null,"",""]
["PUB413_00042",null,"",""]
["PUB413_00043",null,"",""]
["PUB413_00044",null,"",""]
["PUB413_00045",null,"",""]
["PUB413_00047",null,"",""]
["PUB413_00048","LIGHT MAINTENANCE - Minor Road","DNSP to enter description",""]
["PUB413_00049",null,"",""]
["PUB413_00050",null,"",""]
["PUB413_00051",null,"",""]
["PUB413_00052",null,"",""]
["PUB413_00049",null,"",""]
["PUB413_00050",null,"",""]
["PUB413_00051",null,""]
["PUB413_00052",null,"",""]
["PUB413_00049",null,"",""]
["PUB413_00050",null,"",""]
["PUB413_00051",null,"",""]
["PUB413_00052",null,"",""]
["PUB413_00049",null,"",""]
["PUB413_00050",null,"",""]

{"sheet":"4.2 Metering","index":14,"n_rows":45,"n_cols":10,"rows_kept":45,"cut":false,"hidden":false,"merged":[]}
[null,{"$f":"(LOOKUP(dms_Model,dms_Model_List,dms_Worksheet_List))","v":"REGULATORY REPORTING STATEMENT"}]
[null,"Australian Distribution Co."]
[null,{"$f":"CONCATENATE(\"Category Analysis RIN response \",CRY)","v":"Category Analysis RIN response 2014-15"}]
[null,"4.2 METERING"]
[]
[]
[null,"TABLE 4.2.1 - METERING DESCRIPTOR METRIC",null,null,null,"TABLE 4.2.2 - COST METRICS"]
[]
[]
[null,null,null,"VOLUMES\n(0's)",null,null,null,"EXPENDITURE\n($0's)",null,"VOLUMES\n(0's)"]
[null,"ASSET CATEGORY","ASSET SUBCATEGORY",{"$f":"CRY","v":"2014-15"},null,"SERVICE SUBCATEGORY","METER TYPE",{"$f":"CRY","v":"2014-15"},null,{"$f":"CRY","v":"2014-15"}]
["ED_MET421_00001","Meter Type 4","Single phase meter population ",{"$f":"'[2]4.2 Metering'!D12+'[3]4.2 Metering'!D12","v":0},"ED_MET422_00001","Meter purchase ","Meter Type 4",{"$f":"'[2]4.2 Metering'!H12+'[3]4.2 Metering'!H12","v":0},"ED_MET422_00001",{"$f":"'[2]4.2 Metering'!J12+'[3]4.2 Metering'!J12","v":0}]
["ED_MET421_00002",null,"Multi phase meter population ",{"$f":"'[2]4.2 Metering'!D13+'[3]4.2 Metering'!D13","v":0},"ED_MET422_00002",null,"Meter Type 5",{"$f":"'[2]4.2 Metering'!H13+'[3]4.2 Metering'!H13","v":1048677.6399999971},"ED_MET422_00002",{"$f":"'[2]4.2 Metering'!J13+'[3]4.2 Metering'!J13","v":8200}]
["ED_MET421_00003",null,"Current transformer connected meter population ",{"$f":"'[2]4.2 Metering'!D14+'[3]4.2 Metering'!D14","v":0},"ED_MET422_00003",null,"Meter Type 6",{"$f":"'[2]4.2 Metering'!H14+'[3]4.2 Metering'!H14","v":0},"ED_MET422_00003",{"$f":"'[2]4.2 Metering'!J14+'[3]4.2 Metering'!J14","v":0}]
["ED_MET421_00004",null,"Direct connect meter population ",{"$f":"'[2]4.2 Metering'!D15+'[3]4.2 Metering'!D15","v":0},"ED_MET422_00004","Meter testing ","Meter Type 4",{"$f":"'[2]4.2 Metering'!H15+'[3]4.2 Metering'!H15","v":0},"ED_MET422_00004",{"$f":"'[2]4.2 Metering'!J15+'[3]4.2 Metering'!J15","v":0}]
["ED_MET421_00005","Meter Type 5","Single phase meter population ",{"$f":"'[2]4.2 Metering'!D16+'[3]4.2 Metering'!D16","v":58700},"ED_MET422_00005",null,"Meter Type 5",{"$f":"'[2]4.2 Metering'!H16+'[3]4.2 Metering'!H16","v":0},"ED_MET422_00005",{"$f":"'[2]4.2 Metering'!J16+'[3]4.2 Metering'!J16","v":0}]
["ED_MET421_00006",null,"Multi phase meter population ",{"$f":"'[2]4.2 Metering'!D17+'[3]4.2 Metering'!D17","v":19800},"ED_MET422_00006",null,"Meter Type 6",{"$f":"'[2]4.2 Metering'!H17+'[3]4.2 Metering'!H17","v":206240.32456140348},"ED_MET422_00006",{"$f":"'[2]4.2 Metering'!J17+'[3]4.2 Metering'!J17","v":910}]
["ED_MET421_00007",null,"Current transformer connected meter population ",{"$f":"'[2]4.2 Metering'!D18+'[3]4.2 Metering'!D18","v":1600},"ED_MET422_00007","Meter investigation ","Meter Type 4",{"$f":"'[2]4.2 Metering'!H18+'[3]4.2 Metering'!H18","v":0},"ED_MET422_00007",{"$f":"'[2]4.2 Metering'!J18+'[3]4.2 Metering'!J18","v":0}]
["ED_MET421_00008",null,"Direct connect meter population ",{"$f":"'[2]4.2 Metering'!D19+'[3]4.2 Metering'!D19","v":76900},"ED_MET422_00008",null,"Meter Type 5",{"$f":"'[2]4.2 Metering'!H19+'[3]4.2 Metering'!H19","v":0},"ED_MET422_00008",{"$f":"'[2]4.2 Metering'!J19+'[3]4.2 Metering'!J19","v":0}]
["ED_MET421_00009","Meter Type 6","Single phase meter population ",{"$f":"'[2]4.2 Metering'!D20+'[3]4.2 Metering'!D20","v":88500},"ED_MET422_00009",null,"Meter Type 6",{"$f":"'[2]4.2 Metering'!H20+'[3]4.2 Metering'!H20","v":181310.17543859646},"ED_MET422_00009",{"$f":"'[2]4.2 Metering'!J20+'[3]4.2 Metering'!J20","v":800}]
["ED_MET421_00010",null,"Multi phase meter population ",{"$f":"'[2]4.2 Metering'!D21+'[3]4.2 Metering'!D21","v":36500},"ED_MET422_00010","Scheduled meter reading ","Meter Type 4",{"$f":"'[2]4.2 Metering'!H21+'[3]4.2 Metering'!H21","v":0},"ED_MET422_00010",{"$f":"'[2]4.2 Metering'!J21+'[3]4.2 Metering'!J21","v":0}]
["ED_MET421_00011",null,"Current transformer connected meter population ",{"$f":"'[2]4.2 Metering'!D22+'[3]4.2 Metering'!D22","v":0},"ED_MET422_00011",null,"Meter Type 5",{"$f":"'[2]4.2 Metering'!H22+'[3]4.2 Metering'!H22","v":570415.99999999988},"ED_MET422_00011",{"$f":"'[2]4.2 Metering'!J22+'[3]4.2 Metering'!J22","v":17600}]
["ED_MET421_00012",null,"Direct connect meter population ",{"$f":"'[2]4.2 Metering'!D23+'[3]4.2 Metering'!D23","v":125000},"ED_MET422_00012",null,"Meter Type 6",{"$f":"'[2]4.2 Metering'!H23+'[3]4.2 Metering'!H23","v":910751.26000000036},"ED_MET422_00012",{"$f":"'[2]4.2 Metering'!J23+'[3]4.2 Metering'!J23","v":2368000}]
[null,null,null,null,"ED_MET422_00013","Special meter reading ","Meter Type 4",{"$f":"'[2]4.2 Metering'!H24+'[3]4.2 Metering'!H24","v":0},"ED_MET422_00013",{"$f":"'[2]4.2 Metering'!J24+'[3]4.2 Metering'!J24","v":0}]
[null,null,null,null,"ED_MET422_00014",null,"Meter Type 5",{"$f":"'[2]4.2 Metering'!H25+'[3]4.2 Metering'!H25","v":17145},"ED_MET422_00014",{"$f":"'[2]4.2 Metering'!J25+'[3]4.2 Metering'!J25","v":300}]
[null,null,null,null,"ED_MET422_00015",null,"Meter Type 6",{"$f":"'[2]4.2 Metering'!H26+'[3]4.2 Metering'!H26","v":431.25},"ED_MET422_00015",{"$f":"'[2]4.2 Metering'!J26+'[3]4.2 Metering'!J26","v":69000}]
[null,null,null,null,"ED_MET422_00016","New meter installation ","Meter Type 4",{"$f":"'[2]4.2 Metering'!H27+'[3]4.2 Metering'!H27","v":0},"ED_MET422_00016",{"$f":"'[2]4.2 Metering'!J27+'[3]4.2 Metering'!J27","v":0}]
[null,null,null,null,"ED_MET422_00017",null,"Meter Type 5",{"$f":"'[2]4.2 Metering'!H28+'[3]4.2 Metering'!H28","v":9321},"ED_MET422_00017",{"$f":"'[2]4.2 Metering'!J28+'[3]4.2 Metering'!J28","v":10}]
[null,null,null,null,"ED_MET422_00018",null,"Meter Type 6",{"$f":"'[2]4.2 Metering'!H29+'[3]4.2 Metering'!H29","v":2195503.5800000066},"ED_MET422_00018",{"$f":"'[2]4.2 Metering'!J29+'[3]4.2 Metering'!J29","v":2300}]
[null,null,null,null,"ED_MET422_00019","Meter replacement ","Meter Type 4",{"$f":"'[2]4.2 Metering'!H30+'[3]4.2 Metering'!H30","v":0},"ED_MET422_00019",{"$f":"'[2]4.2 Metering'!J30+'[3]4.2 Metering'!J30","v":0}]
[null,null,null,null,"ED_MET422_00020",null,"Meter Type 5",{"$f":"'[2]4.2 Metering'!H31+'[3]4.2 Metering'!H31","v":37284},"ED_MET422_00020",{"$f":"'[2]4.2 Metering'!J31+'[3]4.2 Metering'!J31","v":40}]
[null,null,null,null,"ED_MET422_00021",null,"Meter Type 6",{"$f":"'[2]4.2 Metering'!H32+'[3]4.2 Metering'!H32","v":611640.49999999977},"ED_MET422_00021",{"$f":"'[2]4.2 Metering'!J32+'[3]4.2 Metering'!J32","v":2605}]
[null,null,null,null,"ED_MET422_00022","Meter maintenance ","Meter Type 4",{"$f":"'[2]4.2 Metering'!H33+'[3]4.2 Metering'!H33","v":0},"ED_MET422_00022",{"$f":"'[2]4.2 Metering'!J33+'[3]4.2 Metering'!J33","v":0}]
[null,null,null,null,"ED_MET422_00023",null,"Meter Type 5",{"$f":"'[2]4.2 Metering'!H34+'[3]4.2 Metering'!H34","v":0},"ED_MET422_00023",{"$f":"'[2]4.2 Metering'!J34+'[3]4.2 Metering'!J34","v":0}]
[null,null,null,null,"ED_MET422_00024",null,"Meter Type 6",{"$f":"'[2]4.2 Metering'!H35+'[3]4.2 Metering'!H35","v":0},"ED_MET422_00024",{"$f":"'[2]4.2 Metering'!J35+'[3]4.2 Metering'!J35","v":0}]
[null,null,null,null,"ED_MET422_00025","Remote meter reading ","Meter Type 4",{"$f":"'[2]4.2 Metering'!H36+'[3]4.2 Metering'!H36","v":0},"ED_MET422_00025",{"$f":"'[2]4.2 Metering'!J36+'[3]4.2 Metering'!J36","v":0}]
[null,null,null,null,"ED_MET422_00026","Remote meter re-configuration ","Meter Type 4",{"$f":"'[2]4.2 Metering'!H37+'[3]4.2 Metering'!H37","v":0},"ED_MET422_00026",{"$f":"'[2]4.2 Metering'!J37+'[3]4.2 Metering'!J37","v":0}]
[null,null,null,null,"ED_MET422_00027","Other metering ","Meter Type 4",{"$f":"'[2]4.2 Metering'!H38+'[3]4.2 Metering'!H38","v":0}]
[null,null,null,null,"ED_MET422_00028",null,"Meter Type 5",{"$f":"'[2]4.2 Metering'!H39+'[3]4.2 Metering'!H39","v":0}]
[null,null,null,null,"ED_MET422_00029",null,"Meter Type 6",{"$f":"'[2]4.2 Metering'!H40+'[3]4.2 Metering'!H40","v":954674.53000000014}]
[null,null,null,null,"ED_MET422_00030",null,"Meter Type 7",{"$f":"'[2]4.2 Metering'!H41+'[3]4.2 Metering'!H41","v":0}]
[null,null,null,null,"ED_MET422_00031","IT infrastructure capex ","Meter Type 4",{"$f":"'[2]4.2 Metering'!H42+'[3]4.2 Metering'!H42","v":0}]
[null,null,null,null,"ED_MET422_00032","IT infrastructure opex ","Meter Type 4",{"$f":"'[2]4.2 Metering'!H43+'[3]4.2 Metering'!H43","v":0}]
[null,null,null,null,"ED_MET422_00033","Communications infrastructure capex ","Meter Type 4",{"$f":"'[2]4.2 Metering'!H44+'[3]4.2 Metering'!H44","v":0}]
[null,null,null,null,"ED_MET422_00034","Communications infrastructure opex ","Meter Type 4",0]

{"sheet":"4.3 Fee-based services","index":15,"n_rows":477,"n_cols":6,"rows_kept":477,"cut":false,"hidden":false,"merged":[]}
[null,{"$f":"(LOOKUP(dms_Model,dms_Model_List,dms_Worksheet_List))","v":"REGULATORY REPORTING STATEMENT"}]
[null,"Australian Distribution Co."]
[null,{"$f":"CONCATENATE(\"Category Analysis RIN response \",CRY)","v":"Category Analysis RIN response 2014-15"}]
[null,"4.3 ANCILLARY SERVICES - FEE BASED SERVICES"]
[]
[null,"TABLE 4.3.1 - COST METRICS FOR FEE-BASED SERVICES"]
[]
[]
[null,null,null,"EXPENDITURE ($0's)",null,"VOLUMES \n(0's)"]
[null,"SERVICE","SERVICE SUBCATEGORY",{"$f":"CRY","v":"2014-15"},null,{"$f":"CRY","v":"2014-15"}]
["ED_FEE431_00001","Premise Re-energisation – Existing Network Connection","Re-energise premise – Business Hours",{"$f":"'[2]4.3 Fee-based services'!D11+'[3]4.3 Fee-based services'!D11","v":661696.25},"ED_FEE431_00001",{"$f":"'[2]4.3 Fee-based services'!F11+'[3]4.3 Fee-based services'!F11","v":4551.4170000000004}]
["ED_FEE431_00002","Premise Re-energisation – Existing Network Connection","Re-energise premise – After Hours",{"$f":"'[2]4.3 Fee-based services'!D12+'[3]4.3 Fee-based services'!D12","v":42397.13},"ED_FEE431_00002",{"$f":"'[2]4.3 Fee-based services'!F12+'[3]4.3 Fee-based services'!F12","v":841}]
["ED_FEE431_00003","Premise Re-energisation – Existing Network Connection","Re-energise premise – Non payment",{"$f":"'[2]4.3 Fee-based services'!D13+'[3]4.3 Fee-based services'!D13","v":5418.18},"ED_FEE431_00003",{"$f":"'[2]4.3 Fee-based services'!F13+'[3]4.3 Fee-based services'!F13","v":0}]
["ED_FEE431_00004","Premise De-energisation – Existing Network Connection","De-energise premise – Business Hours",{"$f":"'[2]4.3 Fee-based services'!D14+'[3]4.3 Fee-based services'!D14","v":288069.12},"ED_FEE431_00004",{"$f":"'[2]4.3 Fee-based services'!F14+'[3]4.3 Fee-based services'!F14","v":1966.9169999999999}]
["ED_FEE431_00005","Premise De-energisation – Existing Network Connection","De-energise premise for debt non-payment ",{"$f":"'[2]4.3 Fee-based services'!D15+'[3]4.3 Fee-based services'!D15","v":76887.17},"ED_FEE431_00005",{"$f":"'[2]4.3 Fee-based services'!F15+'[3]4.3 Fee-based services'!F15","v":256.34899999999999}]
["ED_FEE431_00006","Temporary Network Connections","Temporary Builders’ Supply – Overhead (Business Hours)",{"$f":"'[2]4.3 Fee-based services'!D16+'[3]4.3 Fee-based services'!D16","v":192261.14},"ED_FEE431_00006",{"$f":"'[2]4.3 Fee-based services'!F16+'[3]4.3 Fee-based services'!F16","v":168.16800000000001}]
["ED_FEE431_00007","Temporary Network Connections","Temporary Builders’ Supply – Underground (Business Hours)",{"$f":"'[2]4.3 Fee-based services'!D17+'[3]4.3 Fee-based services'!D17","v":0},"ED_FEE431_00007",{"$f":"'[2]4.3 Fee-based services'!F17+'[3]4.3 Fee-based services'!F17","v":0}]
["ED_FEE431_00008","Temporary De-energisation","Temporary de-energisation – LV (Business Hours)",{"$f":"'[2]4.3 Fee-based services'!D18+'[3]4.3 Fee-based services'!D18","v":43260.13},"ED_FEE431_00008",{"$f":"'[2]4.3 Fee-based services'!F18+'[3]4.3 Fee-based services'!F18","v":134}]
["ED_FEE431_00009","Temporary De-energisation","Temporary de-energisation – HV (Business Hours)",{"$f":"'[2]4.3 Fee-based services'!D19+'[3]4.3 Fee-based services'!D19","v":0},"ED_FEE431_00009",{"$f":"'[2]4.3 Fee-based services'!F19+'[3]4.3 Fee-based services'!F19","v":0}]
["ED_FEE431_00010","Network Connection Alterations and Additions","Overhead Service Relocation – Single Visit (Business Hours)",{"$f":"'[2]4.3 Fee-based services'!D20+'[3]4.3 Fee-based services'!D20","v":1248882.1100000001},"ED_FEE431_00010",{"$f":"'[2]4.3 Fee-based services'!F20+'[3]4.3 Fee-based services'!F20","v":336.726}]
["ED_FEE431_00011","Network Connection Alterations and Additions","Underground Service Relocation – Single Visit (Business Hours)",{"$f":"'[2]4.3 Fee-based services'!D21+'[3]4.3 Fee-based services'!D21","v":0},"ED_FEE431_00011",{"$f":"'[2]4.3 Fee-based services'!F21+'[3]4.3 Fee-based services'!F21","v":0}]
["ED_FEE431_00012","Miscellaneous Customer Initiated Services","Install & Remove Tiger Tails – Establishment (Business Hours)",{"$f":"'[2]4.3 Fee-based services'!D22+'[3]4.3 Fee-based services'!D22","v":32587.73},"ED_FEE431_00012",{"$f":"'[2]4.3 Fee-based services'!F22+'[3]4.3 Fee-based services'!F22","v":51}]
["ED_FEE431_00013","Miscellaneous Customer Initiated Services","Install & Remove Warning Flags – Installation (Business Hours)",{"$f":"'[2]4.3 Fee-based services'!D23+'[3]4.3 Fee-based services'!D23","v":0},"ED_FEE431_00013",{"$f":"'[2]4.3 Fee-based services'!F23+'[3]4.3 Fee-based services'!F23","v":0}]
["ED_FEE431_00014","Embedded Generation - Operational & Maintenance Fees","Embedded Generation - Operational & Maintenance Fees",{"$f":"'[2]4.3 Fee-based services'!D24+'[3]4.3 Fee-based services'!D24","v":0},"ED_FEE431_00014",{"$f":"'[2]4.3 Fee-based services'!F24+'[3]4.3 Fee-based services'!F24","v":0}]
["ED_FEE431_00015","Connection Enquiry Processing - PV Installations*","Connection Enquiry Processing - PV Installations*",{"$f":"'[2]4.3 Fee-based services'!D25+'[3]4.3 Fee-based services'!D25","v":430599.14},"ED_FEE431_00015",{"$f":"'[2]4.3 Fee-based services'!F25+'[3]4.3 Fee-based services'!F25","v":6}]
["ED_FEE431_00016","Network Design & Investigation / Analysis Services - PV Installations ","Network Design & Investigation / Analysis Services - PV Installations ",{"$f":"'[2]4.3 Fee-based services'!D26+'[3]4.3 Fee-based services'!D26","v":0},"ED_FEE431_00016",{"$f":"'[2]4.3 Fee-based services'!F26+'[3]4.3 Fee-based services'!F26","v":0}]
["ED_FEE431_00017","Rescheduled Site Visits","Rescheduled Site Visits",{"$f":"'[2]4.3 Fee-based services'!D27+'[3]4.3 Fee-based services'!D27","v":30672.04},"ED_FEE431_00017",{"$f":"'[2]4.3 Fee-based services'!F27+'[3]4.3 Fee-based services'!F27","v":23.998999999999999}]
["ED_FEE431_00018","Issue of copies of electrical drawings","Issue of copies of electrical drawings",{"$f":"'[2]4.3 Fee-based services'!D28+'[3]4.3 Fee-based services'!D28","v":4858.92},"ED_FEE431_00018",{"$f":"'[2]4.3 Fee-based services'!F28+'[3]4.3 Fee-based services'!F28","v":0}]
["ED_FEE431_00019","Meter Investigations","Meter Test (Whole Current) – Business Hours",{"$f":"'[2]4.3 Fee-based services'!D29+'[3]4.3 Fee-based services'!D29","v":90789.36},"ED_FEE431_00019",{"$f":"'[2]4.3 Fee-based services'!F29+'[3]4.3 Fee-based services'!F29","v":435.08499999999998}]
["ED_FEE431_00024","Miscellaneous Fee-Based Services",null,"","ED_FEE431_00024",""]
["ED_FEE431_00025","Miscellaneous Fee-Based Services",null,"","ED_FEE431_00025",""]
["ED_FEE431_00026","Miscellaneous Fee-Based Services",null,"","ED_FEE431_00026",""]
["ED_FEE431_00027","Miscellaneous Fee-Based Services",null,"","ED_FEE431_00027",""]
["ED_FEE431_00028","Miscellaneous Fee-Based Services",null,"","ED_FEE431_00028",""]
["ED_FEE431_00029","Miscellaneous Fee-Based Services",null,"","ED_FEE431_00029",""]
["ED_FEE431_00030","Miscellaneous Fee-Based Services",null,"","ED_FEE431_00030",""]
["ED_FEE431_00031","Miscellaneous Fee-Based Services",null,"","ED_FEE431_00031",""]
["ED_FEE431_00032","Miscellaneous Fee-Based Services",null,"","ED_FEE431_00032",""]
["ED_FEE431_00033","Miscellaneous Fee-Based Services",null,"","ED_FEE431_00033",""]
["ED_FEE431_00034","Miscellaneous Fee-Based Services",null,"","ED_FEE431_00034",""]
["ED_FEE431_00035","Miscellaneous Fee-Based Services",null,"","ED_FEE431_00035",""]
["ED_FEE431_00036","Miscellaneous Fee-Based Services",null,"","ED_FEE431_00036",""]
["ED_FEE431_00037","Miscellaneous Fee-Based Services",null,"","ED_FEE431_00037",""]
["ED_FEE431_00038","Miscellaneous Fee-Based Services",null,"","ED_FEE431_00038",""]
["ED_FEE431_00039","Miscellaneous Fee-Based Services",null,"","ED_FEE431_00039",""]
["ED_FEE431_00040","Miscellaneous Fee-Based Services",null,"","ED_FEE431_00040",""]
["ED_FEE431_00041","Miscellaneous Fee-Based Services",null,"","ED_FEE431_00041",""]
["ED_FEE431_00042","Miscellaneous Fee-Based Services",null,"","ED_FEE431_00042",""]
["ED_FEE431_00043","Miscellaneous Fee-Based Services",null,"","ED_FEE431_00043",""]
["ED_FEE431_00044","Miscellaneous Fee-Based Services",null,"","ED_FEE431_00044",""]
["ED_FEE431_00045","Miscellaneous Fee-Based Services",null,"","ED_FEE431_00045",""]
["ED_FEE431_00046","Miscellaneous Fee-Based Services",null,"","ED_FEE431_00046",""]
["ED_FEE431_00047","Miscellaneous Fee-Based Services",null,"","ED_FEE431_00047",""]
["ED_FEE431_00048","Miscellaneous Fee-Based Services",null,"","ED_FEE431_00048",""]
["ED_FEE431_00049","Miscellaneous Fee-Based Services",null,"","ED_FEE431_00049",""]
["ED_FEE431_00050","Miscellaneous Fee-Based Services",null,"","ED_FEE431_00050",""]
["ED_FEE431_00051","Miscellaneous Fee-Based Services",null,"","ED_FEE431_00051",""]
["ED_FEE431_00052","Miscellaneous Fee-Based Services",null,"","ED_FEE431_00052",""]
["ED_FEE431_00053","Miscellaneous Fee-Based Services",null,"","ED_FEE431_00053",""]
["ED_FEE431_00054","Miscellaneous Fee-Based Services",null,"","ED_FEE431_00054",""]
["ED_FEE431_00055","Miscellaneous Fee-Based Services",null,"","ED_FEE431_00055",""]
["ED_FEE431_00056","Miscellaneous Fee-Based Services",null,"","ED_FEE431_00056",""]
["ED_FEE431_00057","Miscellaneous Fee-Based Services",null,"","ED_FEE431_00057",""]
["ED_FEE431_00058","Miscellaneous Fee-Based Services",null,"","ED_FEE431_00058",""]
["ED_FEE431_00059","Miscellaneous Fee-Based Services",null,"","ED_FEE431_00059",""]
["ED_FEE431_00060","Miscellaneous Fee-Based Services",null,"","ED_FEE431_00060",""]
["ED_FEE431_00061","Miscellaneous Fee-Based Services",null,"","ED_FEE431_00061",""]
["ED_FEE431_00062","Miscellaneous Fee-Based Services",null,"","ED_FEE431_00062",""]
["ED_FEE431_00063","Miscellaneous Fee-Based Services",null,"","ED_FEE431_00063",""]
["ED_FEE431_00064","Miscellaneous Fee-Based Services",null,"","ED_FEE431_00064",""]
["ED_FEE431_00065","Miscellaneous Fee-Based Services",null,"","ED_FEE431_00065",""]
["ED_FEE431_00066","Miscellaneous Fee-Based Services",null,"","ED_FEE431_00066",""]
["ED_FEE431_00067","Miscellaneous Fee-Based Services",null,"","ED_FEE431_00067",""]
["ED_FEE431_00068","Miscellaneous Fee-Based Services",null,"","ED_FEE431_00068",""]
["ED_FEE431_00069","Miscellaneous Fee-Based Services",null,"","ED_FEE431_00069",""]
["ED_FEE431_00070","Miscellaneous Fee-Based Services",null,"","ED_FEE431_00070",""]
["ED_FEE431_00071","Miscellaneous Fee-Based Services",null,"","ED_FEE431_00071",""]
["ED_FEE431_00072","Miscellaneous Fee-Based Services",null,"","ED_FEE431_00072",""]
["ED_FEE431_00073","Miscellaneous Fee-Based Services",null,"","ED_FEE431_00073",""]
["ED_FEE431_00074","Miscellaneous Fee-Based Services",null,"","ED_FEE431_00074",""]
["ED_FEE431_00075","Miscellaneous Fee-Based Services",null,"","ED_FEE431_00075",""]
["ED_FEE431_00076","Miscellaneous Fee-Based Services",null,"","ED_FEE431_00076",""]
["ED_FEE431_00077","Miscellaneous Fee-Based Services",null,"","ED_FEE431_00077",""]
["ED_FEE431_00078","Miscellaneous Fee-Based Services",null,"","ED_FEE431_00078",""]
["ED_FEE431_00079","Miscellaneous Fee-Based Services",null,"","ED_FEE431_00079",""]
["ED_FEE431_00080","Miscellaneous Fee-Based Services",null,"","ED_FEE431_00080",""]
["ED_FEE431_00081","Miscellaneous Fee-Based Services",null,"","ED_FEE431_00081",""]
["ED_FEE431_00082","Miscellaneous Fee-Based Services",null,"","ED_FEE431_00082",""]
["ED_FEE431_00083","Miscellaneous Fee-Based Services",null,"","ED_FEE431_00083",""]
["ED_FEE431_00084","Miscellaneous Fee-Based Services",null,"","ED_FEE431_00084",""]
["ED_FEE431_00085","Miscellaneous Fee-Based Services",null,"","ED_FEE431_00085",""]
["ED_FEE431_00086","Miscellaneous Fee-Based Services",null,"","ED_FEE431_00086",""]
["ED_FEE431_00087","Miscellaneous Fee-Based Services",null,"","ED_FEE431_00087",""]
["ED_FEE431_00088","Miscellaneous Fee-Based Services",null,"","ED_FEE431_00088",""]
["ED_FEE431_00089","Miscellaneous Fee-Based Services",null,"","ED_FEE431_00089",""]
["ED_FEE431_00090","Miscellaneous Fee-Based Services",null,"","ED_FEE431_00090",""]
["ED_FEE431_00091","Miscellaneous Fee-Based Services",null,"","ED_FEE431_00091",""]
["ED_FEE431_00092","Miscellaneous Fee-Based Services",null,"","ED_FEE431_00092",""]
["ED_FEE431_00093","Miscellaneous Fee-Based Services",null,"","ED_FEE431_00093",""]
["ED_FEE431_00094","Miscellaneous Fee-Based Services",null,"","ED_FEE431_00094",""]
["ED_FEE431_00095","Miscellaneous Fee-Based Services",null,"","ED_FEE431_00095",""]
["ED_FEE431_00096","Miscellaneous Fee-Based Services",null,"","ED_FEE431_00096",""]
["ED_FEE431_00097","Miscellaneous Fee-Based Services",null,"","ED_FEE431_00097",""]
["ED_FEE431_00098","Miscellaneous Fee-Based Services",null,"","ED_FEE431_00098",""]
["ED_FEE431_00099","Miscellaneous Fee-Based Services",null,"","ED_FEE431_00099",""]
["ED_FEE431_00100","Miscellaneous Fee-Based Services",null,"","ED_FEE431_00100",""]
["ED_FEE431_00101","Miscellaneous Fee-Based Services",null,"","ED_FEE431_00101",""]
["ED_FEE431_00102","Miscellaneous Fee-Based Services",null,"","ED_FEE431_00102",""]
["ED_FEE431_00103","Miscellaneous Fee-Based Services",null,"","ED_FEE431_00103",""]
["ED_FEE431_00104","Miscellaneous Fee-Based Services",null,"","ED_FEE431_00104",""]
["ED_FEE431_00105","Miscellaneous Fee-Based Services",null,"","ED_FEE431_00105",""]
["ED_FEE431_00106","Miscellaneous Fee-Based Services",null,"","ED_FEE431_00106",""]
["ED_FEE431_00107","Miscellaneous Fee-Based Services",null,"","ED_FEE431_00107",""]
["ED_FEE431_00108","Miscellaneous Fee-Based Services",null,"","ED_FEE431_00108",""]
["ED_FEE431_00109","Miscellaneous Fee-Based Services",null,"","ED_FEE431_00109",""]
["ED_FEE431_00110","Miscellaneous Fee-Based Services",null,"","ED_FEE431_00110",""]
["ED_FEE431_00111","Miscellaneous Fee-Based Services",null,"","ED_FEE431_00111",""]
["ED_FEE431_00112","Miscellaneous Fee-Based Services",null,"","ED_FEE431_00112",""]
["ED_FEE431_00113","Miscellaneous Fee-Based Services",null,"","ED_FEE431_00113",""]
["ED_FEE431_00114","Miscellaneous Fee-Based Services",null,"","ED_FEE431_00114",""]
["ED_FEE431_00115","Miscellaneous Fee-Based Services",null,"","ED_FEE431_00115",""]
["ED_FEE431_00116","Miscellaneous Fee-Based Services",null,"","ED_FEE431_00116",""]
["ED_FEE431_00117","Miscellaneous Fee-Based Services",null,"","ED_FEE431_00117",""]
["ED_FEE431_00118","Miscellaneous Fee-Based Services",null,"","ED_FEE431_00118",""]
["ED_FEE431_00119","Miscellaneous Fee-Based Services",null,"","ED_FEE431_00119",""]
["ED_FEE431_00120","Miscellaneous Fee-Based Services",null,"","ED_FEE431_00120",""]
["ED_FEE431_00121","Miscellaneous Fee-Based Services",null,"","ED_FEE431_00121",""]
["ED_FEE431_00122","Miscellaneous Fee-Based Services",null,"","ED_FEE431_00122",""]
["ED_FEE431_00123","Miscellaneous Fee-Based Services",null,"","ED_FEE431_00123",""]
["ED_FEE431_00124","Miscellaneous Fee-Based Services",null,"","ED_FEE431_00124",""]
["ED_FEE431_00125","Miscellaneous Fee-Based Services",null,"","ED_FEE431_00125",""]
["ED_FEE431_00126","Miscellaneous Fee-Based Services",null,"","ED_FEE431_00126",""]
["ED_FEE431_00127","Miscellaneous Fee-Based Services",null,"","ED_FEE431_00127",""]
["ED_FEE431_00128","Miscellaneous Fee-Based Services",null,"","ED_FEE431_00128",""]
["ED_FEE431_00129","Miscellaneous Fee-Based Services",null,"","ED_FEE431_00129",""]
["ED_FEE431_00130","Miscellaneous Fee-Based Services",null,"","ED_FEE431_00130",""]
["ED_FEE431_00131","Miscellaneous Fee-Based Services",null,"","ED_FEE431_00131",""]
["ED_FEE431_00132","Miscellaneous Fee-Based Services",null,"","ED_FEE431_00132",""]
["ED_FEE431_00133","Miscellaneous Fee-Based Services",null,"","ED_FEE431_00133",""]
["ED_FEE431_00134","Miscellaneous Fee-Based Services",null,"","ED_FEE431_00134",""]
["ED_FEE431_00135","Miscellaneous Fee-Based Services",null,"","ED_FEE431_00135",""]
["ED_FEE431_00136","Miscellaneous Fee-Based Services",null,"","ED_FEE431_00136",""]
["ED_FEE431_00137","Miscellaneous Fee-Based Services",null,"","ED_FEE431_00137",""]
["ED_FEE431_00138","Miscellaneous Fee-Based Services",null,"","ED_FEE431_00138",""]
["ED_FEE431_00139","Miscellaneous Fee-Based Services",null,"","ED_FEE431_00139",""]
["ED_FEE431_00140","Miscellaneous Fee-Based Services",null,"","ED_FEE431_00140",""]
["ED_FEE431_00141","Miscellaneous Fee-Based Services",null,"","ED_FEE431_00141",""]
["ED_FEE431_00142","Miscellaneous Fee-Based Services",null,"","ED_FEE431_00142",""]
["ED_FEE431_00143","Miscellaneous Fee-Based Services",null,"","ED_FEE431_00143",""]
["ED_FEE431_00144","Miscellaneous Fee-Based Services",null,"","ED_FEE431_00144",""]
["ED_FEE431_00145","Miscellaneous Fee-Based Services",null,"","ED_FEE431_00145",""]
["ED_FEE431_00146","Miscellaneous Fee-Based Services",null,"","ED_FEE431_00146",""]
["ED_FEE431_00147","Miscellaneous Fee-Based Services",null,"","ED_FEE431_00147",""]
["ED_FEE431_00148","Miscellaneous Fee-Based Services",null,"","ED_FEE431_00148",""]
["ED_FEE431_00149","Miscellaneous Fee-Based Services",null,"","ED_FEE431_00149",""]
["ED_FEE431_00150","Miscellaneous Fee-Based Services",null,"","ED_FEE431_00150",""]
["ED_FEE431_00151","Miscellaneous Fee-Based Services",null,"","ED_FEE431_00151",""]
["ED_FEE431_00152","Miscellaneous Fee-Based Services",null,"","ED_FEE431_00152",""]
["ED_FEE431_00153","Miscellaneous Fee-Based Services",null,"","ED_FEE431_00153",""]
["ED_FEE431_00154","Miscellaneous Fee-Based Services",null,"","ED_FEE431_00154",""]
["ED_FEE431_00155","Miscellaneous Fee-Based Services",null,"","ED_FEE431_00155",""]
["ED_FEE431_00156","Miscellaneous Fee-Based Services",null,"","ED_FEE431_00156",""]
["ED_FEE431_00157","Miscellaneous Fee-Based Services",null,"","ED_FEE431_00157",""]
["ED_FEE431_00158","Miscellaneous Fee-Based Services",null,"","ED_FEE431_00158",""]
["ED_FEE431_00159","Miscellaneous Fee-Based Services",null,"","ED_FEE431_00159",""]
["ED_FEE431_00160","Miscellaneous Fee-Based Services",null,"","ED_FEE431_00160",""]
["ED_FEE431_00161","Miscellaneous Fee-Based Services",null,"","ED_FEE431_00161",""]
["ED_FEE431_00162","Miscellaneous Fee-Based Services",null,"","ED_FEE431_00162",""]
["ED_FEE431_00163","Miscellaneous Fee-Based Services",null,"","ED_FEE431_00163",""]
["ED_FEE431_00164","Miscellaneous Fee-Based Services",null,"","ED_FEE431_00164",""]
["ED_FEE431_00165","Miscellaneous Fee-Based Services",null,"","ED_FEE431_00165",""]
["ED_FEE431_00166","Miscellaneous Fee-Based Services",null,"","ED_FEE431_00166",""]
["ED_FEE431_00167","Miscellaneous Fee-Based Services",null,"","ED_FEE431_00167",""]
["ED_FEE431_00168","Miscellaneous Fee-Based Services",null,"","ED_FEE431_00168",""]
["ED_FEE431_00169","Miscellaneous Fee-Based Services",null,"","ED_FEE431_00169",""]
["ED_FEE431_00170","Miscellaneous Fee-Based Services",null,"","ED_FEE431_00170",""]
["ED_FEE431_00171","Miscellaneous Fee-Based Services",null,"","ED_FEE431_00171",""]
["ED_FEE431_00172","Miscellaneous Fee-Based Services",null,"","ED_FEE431_00172",""]
["ED_FEE431_00173","Miscellaneous Fee-Based Services",null,"","ED_FEE431_00173",""]
["ED_FEE431_00174","Miscellaneous Fee-Based Services",null,"","ED_FEE431_00174",""]
["ED_FEE431_00175","Miscellaneous Fee-Based Services",null,"","ED_FEE431_00175",""]
["ED_FEE431_00176","Miscellaneous Fee-Based Services",null,"","ED_FEE431_00176",""]
["ED_FEE431_00177","Miscellaneous Fee-Based Services",null,"","ED_FEE431_00177",""]
["ED_FEE431_00178","Miscellaneous Fee-Based Services",null,"","ED_FEE431_00178",""]
["ED_FEE431_00179","Miscellaneous Fee-Based Services",null,"","ED_FEE431_00179",""]
["ED_FEE431_00180","Miscellaneous Fee-Based Services",null,"","ED_FEE431_00180",""]
["ED_FEE431_00181","Miscellaneous Fee-Based Services",null,"","ED_FEE431_00181",""]
["ED_FEE431_00182","Miscellaneous Fee-Based Services",null,"","ED_FEE431_00182",""]
["ED_FEE431_00183","Miscellaneous Fee-Based Services",null,"","ED_FEE431_00183",""]
["ED_FEE431_00184","Miscellaneous Fee-Based Services",null,"","ED_FEE431_00184",""]
["ED_FEE431_00185","Miscellaneous Fee-Based Services",null,"","ED_FEE431_00185",""]
["ED_FEE431_00186","Miscellaneous Fee-Based Services",null,"","ED_FEE431_00186",""]
["ED_FEE431_00187","Miscellaneous Fee-Based Services",null,"","ED_FEE431_00187",""]
["ED_FEE431_00188","Miscellaneous Fee-Based Services",null,"","ED_FEE431_00188",""]
["ED_FEE431_00189","Miscellaneous Fee-Based Services",null,"","ED_FEE431_00189",""]
["ED_FEE431_00190","Miscellaneous Fee-Based Services",null,"","ED_FEE431_00190",""]
["ED_FEE431_00191","Miscellaneous Fee-Based Services",null,"","ED_FEE431_00191",""]
["ED_FEE431_00192","Miscellaneous Fee-Based Services",null,"","ED_FEE431_00192",""]
["ED_FEE431_00193","Miscellaneous Fee-Based Services",null,"","ED_FEE431_00193",""]
["ED_FEE431_00194","Miscellaneous Fee-Based Services",null,"","ED_FEE431_00194",""]
["ED_FEE431_00195","Miscellaneous Fee-Based Services",null,"","ED_FEE431_00195",""]
["ED_FEE431_00196","Miscellaneous Fee-Based Services",null,"","ED_FEE431_00196",""]
["ED_FEE431_00197","Miscellaneous Fee-Based Services",null,"","ED_FEE431_00197",""]
["ED_FEE431_00198","Miscellaneous Fee-Based Services",null,"","ED_FEE431_00198",""]
["ED_FEE431_00199","Miscellaneous Fee-Based Services",null,"","ED_FEE431_00199",""]
["ED_FEE431_00200","Miscellaneous Fee-Based Services",null,"","ED_FEE431_00200",""]
["ED_FEE431_00201","Miscellaneous Fee-Based Services",null,"","ED_FEE431_00201",""]
["ED_FEE431_00202","Miscellaneous Fee-Based Services",null,"","ED_FEE431_00202",""]
["ED_FEE431_00203","Miscellaneous Fee-Based Services",null,"","ED_FEE431_00203",""]
["ED_FEE431_00204","Miscellaneous Fee-Based Services",null,"","ED_FEE431_00204",""]
["ED_FEE431_00205","Miscellaneous Fee-Based Services",null,"","ED_FEE431_00205",""]
["ED_FEE431_00206","Miscellaneous Fee-Based Services",null,"","ED_FEE431_00206",""]
["ED_FEE431_00207","Miscellaneous Fee-Based Services",null,"","ED_FEE431_00207",""]
["ED_FEE431_00208","Miscellaneous Fee-Based Services",null,"","ED_FEE431_00208",""]
["ED_FEE431_00209","Miscellaneous Fee-Based Services",null,"","ED_FEE431_00209",""]
["ED_FEE431_00210","Miscellaneous Fee-Based Services",null,"","ED_FEE431_00210",""]
["ED_FEE431_00211","Miscellaneous Fee-Based Services",null,"","ED_FEE431_00211",""]
["ED_FEE431_00212","Miscellaneous Fee-Based Services",null,"","ED_FEE431_00212",""]
["ED_FEE431_00213","Miscellaneous Fee-Based Services",null,"","ED_FEE431_00213",""]
["ED_FEE431_00214","Miscellaneous Fee-Based Services",null,"","ED_FEE431_00214",""]
["ED_FEE431_00215","Miscellaneous Fee-Based Services",null,"","ED_FEE431_00215",""]
["ED_FEE431_00216","Miscellaneous Fee-Based Services",null,"","ED_FEE431_00216",""]
["ED_FEE431_00217","Miscellaneous Fee-Based Services",null,"","ED_FEE431_00217",""]
["ED_FEE431_00218","Miscellaneous Fee-Based Services",null,"","ED_FEE431_00218",""]
["ED_FEE431_00219","Miscellaneous Fee-Based Services",null,"","ED_FEE431_00219",""]
["ED_FEE431_00220","Miscellaneous Fee-Based Services",null,"","ED_FEE431_00220",""]
["ED_FEE431_00221","Miscellaneous Fee-Based Services",null,"","ED_FEE431_00221",""]
["ED_FEE431_00222","Miscellaneous Fee-Based Services",null,"","ED_FEE431_00222",""]
["ED_FEE431_00223","Miscellaneous Fee-Based Services",null,"","ED_FEE431_00223",""]
["ED_FEE431_00224","Miscellaneous Fee-Based Services",null,"","ED_FEE431_00224",""]
["ED_FEE431_00225","Miscellaneous Fee-Based Services",null,"","ED_FEE431_00225",""]
["ED_FEE431_00226","Miscellaneous Fee-Based Services",null,"","ED_FEE431_00226",""]
["ED_FEE431_00227","Miscellaneous Fee-Based Services",null,"","ED_FEE431_00227",""]
["ED_FEE431_00228","Miscellaneous Fee-Based Services",null,"","ED_FEE431_00228",""]
["ED_FEE431_00229","Miscellaneous Fee-Based Services",null,"","ED_FEE431_00229",""]
["ED_FEE431_00230","Miscellaneous Fee-Based Services",null,"","ED_FEE431_00230",""]
["ED_FEE431_00231","Miscellaneous Fee-Based Services",null,"","ED_FEE431_00231",""]
["ED_FEE431_00232","Miscellaneous Fee-Based Services",null,"","ED_FEE431_00232",""]
["ED_FEE431_00233","Miscellaneous Fee-Based Services",null,null,"ED_FEE431_00233"]
["ED_FEE431_00234","Miscellaneous Fee-Based Services",null,"","ED_FEE431_00234",""]
["ED_FEE431_00235","Miscellaneous Fee-Based Services",null,"","ED_FEE431_00235",""]
["ED_FEE431_00236","Miscellaneous Fee-Based Services",null,"","ED_FEE431_00236",""]
["ED_FEE431_00237","Miscellaneous Fee-Based Services",null,"","ED_FEE431_00237",""]
["ED_FEE431_00238","Miscellaneous Fee-Based Services",null,"","ED_FEE431_00238",""]
["ED_FEE431_00239","Miscellaneous Fee-Based Services",null,"","ED_FEE431_00239",""]
["ED_FEE431_00240","Miscellaneous Fee-Based Services",null,"","ED_FEE431_00240",""]
["ED_FEE431_00241","Miscellaneous Fee-Based Services",null,"","ED_FEE431_00241",""]
["ED_FEE431_00242","Miscellaneous Fee-Based Services",null,"","ED_FEE431_00242",""]
["ED_FEE431_00243","Miscellaneous Fee-Based Services",null,"","ED_FEE431_00243",""]
["ED_FEE431_00244","Miscellaneous Fee-Based Services",null,"","ED_FEE431_00244",""]
["ED_FEE431_00245","Miscellaneous Fee-Based Services",null,"","ED_FEE431_00245",""]
["ED_FEE431_00246","Miscellaneous Fee-Based Services",null,"","ED_FEE431_00246",""]
["ED_FEE431_00247","Miscellaneous Fee-Based Services",null,"","ED_FEE431_00247",""]
["ED_FEE431_00248","Miscellaneous Fee-Based Services",null,"","ED_FEE431_00248",""]
["ED_FEE431_00249","Miscellaneous Fee-Based Services",null,"","ED_FEE431_00249",""]
["ED_FEE431_00250","Miscellaneous Fee-Based Services",null,"","ED_FEE431_00250",""]
["ED_FEE431_00251","Miscellaneous Fee-Based Services",null,"","ED_FEE431_00251",""]
["ED_FEE431_00252","Miscellaneous Fee-Based Services",null,"","ED_FEE431_00252",""]
["ED_FEE431_00253","Miscellaneous Fee-Based Services",null,"","ED_FEE431_00253",""]
["ED_FEE431_00254","Miscellaneous Fee-Based Services",null,"","ED_FEE431_00254",""]
["ED_FEE431_00255","Miscellaneous Fee-Based Services",null,"","ED_FEE431_00255",""]
["ED_FEE431_00256","Miscellaneous Fee-Based Services",null,"","ED_FEE431_00256",""]
["ED_FEE431_00257","Miscellaneous Fee-Based Services",null,"","ED_FEE431_00257",""]
["ED_FEE431_00258","Miscellaneous Fee-Based Services",null,"","ED_FEE431_00258",""]
["ED_FEE431_00259","Miscellaneous Fee-Based Services",null,"","ED_FEE431_00259",""]
["ED_FEE431_00260","Miscellaneous Fee-Based Services",null,"","ED_FEE431_00260",""]
["ED_FEE431_00261","Miscellaneous Fee-Based Services",null,"","ED_FEE431_00261",""]
["ED_FEE431_00262","Miscellaneous Fee-Based Services",null,"","ED_FEE431_00262",""]
["ED_FEE431_00263","Miscellaneous Fee-Based Services",null,"","ED_FEE431_00263",""]
["ED_FEE431_00264","Miscellaneous Fee-Based Services",null,"","ED_FEE431_00264",""]
["ED_FEE431_00265","Miscellaneous Fee-Based Services",null,"","ED_FEE431_00265",""]
["ED_FEE431_00266","Miscellaneous Fee-Based Services",null,"","ED_FEE431_00266",""]
["ED_FEE431_00267","Miscellaneous Fee-Based Services",null,"","ED_FEE431_00267",""]
["ED_FEE431_00268","Miscellaneous Fee-Based Services",null,"","ED_FEE431_00268",""]
["ED_FEE431_00269","Miscellaneous Fee-Based Services",null,"","ED_FEE431_00269",""]
["ED_FEE431_00270","Miscellaneous Fee-Based Services",null,"","ED_FEE431_00270",""]
["ED_FEE431_00271","Miscellaneous Fee-Based Services",null,"","ED_FEE431_00271",""]
["ED_FEE431_00272","Miscellaneous Fee-Based Services",null,"","ED_FEE431_00272",""]
["ED_FEE431_00273","Miscellaneous Fee-Based Services",null,"","ED_FEE431_00273",""]
["ED_FEE431_00274","Miscellaneous Fee-Based Services",null,"","ED_FEE431_00274",""]
["ED_FEE431_00275","Miscellaneous Fee-Based Services",null,"","ED_FEE431_00275",""]
["ED_FEE431_00276","Miscellaneous Fee-Based Services",null,"","ED_FEE431_00276",""]
["ED_FEE431_00277","Miscellaneous Fee-Based Services",null,"","ED_FEE431_00277",""]
["ED_FEE431_00278","Miscellaneous Fee-Based Services",null,"","ED_FEE431_00278",""]
["ED_FEE431_00279","Miscellaneous Fee-Based Services",null,"","ED_FEE431_00279",""]
["ED_FEE431_00280","Miscellaneous Fee-Based Services",null,"","ED_FEE431_00280",""]
["ED_FEE431_00281","Miscellaneous Fee-Based Services",null,"","ED_FEE431_00281",""]
["ED_FEE431_00282","Miscellaneous Fee-Based Services",null,"","ED_FEE431_00282",""]
["ED_FEE431_00283","Miscellaneous Fee-Based Services",null,"","ED_FEE431_00283",""]
["ED_FEE431_00284","Miscellaneous Fee-Based Services",null,"","ED_FEE431_00284",""]
["ED_FEE431_00285","Miscellaneous Fee-Based Services",null,"","ED_FEE431_00285",""]
["ED_FEE431_00286","Miscellaneous Fee-Based Services",null,"","ED_FEE431_00286",""]
["ED_FEE431_00287","Miscellaneous Fee-Based Services",null,"","ED_FEE431_00287",""]
["ED_FEE431_00288","Miscellaneous Fee-Based Services",null,"","ED_FEE431_00288",""]
["ED_FEE431_00289","Miscellaneous Fee-Based Services",null,"","ED_FEE431_00289",""]
["ED_FEE431_00290","Miscellaneous Fee-Based Services",null,"","ED_FEE431_00290",""]
["ED_FEE431_00291","Miscellaneous Fee-Based Services",null,"","ED_FEE431_00291",""]
["ED_FEE431_00292","Miscellaneous Fee-Based Services",null,"","ED_FEE431_00292",""]
["ED_FEE431_00293","Miscellaneous Fee-Based Services",null,"","ED_FEE431_00293",""]
["ED_FEE431_00294","Miscellaneous Fee-Based Services",null,"","ED_FEE431_00294",""]
["ED_FEE431_00295","Miscellaneous Fee-Based Services",null,"","ED_FEE431_00295",""]
["ED_FEE431_00296","Miscellaneous Fee-Based Services",null,"","ED_FEE431_00296",""]
["ED_FEE431_00297","Miscellaneous Fee-Based Services",null,"","ED_FEE431_00297",""]
["ED_FEE431_00298","Miscellaneous Fee-Based Services",null,"","ED_FEE431_00298",""]
["ED_FEE431_00299","Miscellaneous Fee-Based Services",null,"","ED_FEE431_00299",""]
["ED_FEE431_00300","Miscellaneous Fee-Based Services",null,"","ED_FEE431_00300",""]
["ED_FEE431_00301","Miscellaneous Fee-Based Services",null,"","ED_FEE431_00301",""]
["ED_FEE431_00302","Miscellaneous Fee-Based Services",null,"","ED_FEE431_00302",""]
["ED_FEE431_00303","Miscellaneous Fee-Based Services",null,"","ED_FEE431_00303",""]
["ED_FEE431_00304","Miscellaneous Fee-Based Services",null,"","ED_FEE431_00304",""]
["ED_FEE431_00305","Miscellaneous Fee-Based Services",null,"","ED_FEE431_00305",""]
["ED_FEE431_00306","Miscellaneous Fee-Based Services",null,"","ED_FEE431_00306",""]
["ED_FEE431_00307","Miscellaneous Fee-Based Services",null,"","ED_FEE431_00307",""]
["ED_FEE431_00308","Miscellaneous Fee-Based Services",null,"","ED_FEE431_00308",""]
["ED_FEE431_00309","Miscellaneous Fee-Based Services",null,"","ED_FEE431_00309",""]
["ED_FEE431_00310","Miscellaneous Fee-Based Services",null,"","ED_FEE431_00310",""]
["ED_FEE431_00311","Miscellaneous Fee-Based Services",null,"","ED_FEE431_00311",""]
["ED_FEE431_00312","Miscellaneous Fee-Based Services",null,"","ED_FEE431_00312",""]
["ED_FEE431_00313","Miscellaneous Fee-Based Services",null,"","ED_FEE431_00313",""]
["ED_FEE431_00314","Miscellaneous Fee-Based Services",null,"","ED_FEE431_00314",""]
["ED_FEE431_00315","Miscellaneous Fee-Based Services",null,"","ED_FEE431_00315",""]
["ED_FEE431_00316","Miscellaneous Fee-Based Services",null,"","ED_FEE431_00316",""]
["ED_FEE431_00317","Miscellaneous Fee-Based Services",null,"","ED_FEE431_00317",""]
["ED_FEE431_00318","Miscellaneous Fee-Based Services",null,"","ED_FEE431_00318",""]
["ED_FEE431_00319","Miscellaneous Fee-Based Services",null,"","ED_FEE431_00319",""]
["ED_FEE431_00320","Miscellaneous Fee-Based Services",null,"","ED_FEE431_00320",""]
["ED_FEE431_00321","Miscellaneous Fee-Based Services",null,"","ED_FEE431_00321",""]
["ED_FEE431_00322","Miscellaneous Fee-Based Services",null,"","ED_FEE431_00322",""]
["ED_FEE431_00323","Miscellaneous Fee-Based Services",null,"","ED_FEE431_00323",""]
["ED_FEE431_00324","Miscellaneous Fee-Based Services",null,"","ED_FEE431_00324",""]
["ED_FEE431_00325","Miscellaneous Fee-Based Services",null,"","ED_FEE431_00325",""]
["ED_FEE431_00326","Miscellaneous Fee-Based Services",null,"","ED_FEE431_00326",""]
["ED_FEE431_00327","Miscellaneous Fee-Based Services",null,"","ED_FEE431_00327",""]
["ED_FEE431_00328","Miscellaneous Fee-Based Services",null,"","ED_FEE431_00328",""]
["ED_FEE431_00329","Miscellaneous Fee-Based Services",null,"","ED_FEE431_00329",""]
["ED_FEE431_00330","Miscellaneous Fee-Based Services",null,"","ED_FEE431_00330",""]
["ED_FEE431_00331","Miscellaneous Fee-Based Services",null,"","ED_FEE431_00331",""]
["ED_FEE431_00332","Miscellaneous Fee-Based Services",null,"","ED_FEE431_00332",""]
["ED_FEE431_00333","Miscellaneous Fee-Based Services",null,"","ED_FEE431_00333",""]
["ED_FEE431_00334","Miscellaneous Fee-Based Services",null,"","ED_FEE431_00334",""]
["ED_FEE431_00335","Miscellaneous Fee-Based Services",null,"","ED_FEE431_00335",""]
["ED_FEE431_00336","Miscellaneous Fee-Based Services",null,"","ED_FEE431_00336",""]
["ED_FEE431_00337","Miscellaneous Fee-Based Services",null,"","ED_FEE431_00337",""]
["ED_FEE431_00338","Miscellaneous Fee-Based Services",null,"","ED_FEE431_00338",""]
["ED_FEE431_00339","Miscellaneous Fee-Based Services",null,"","ED_FEE431_00339",""]
["ED_FEE431_00340","Miscellaneous Fee-Based Services",null,"","ED_FEE431_00340",""]
["ED_FEE431_00341","Miscellaneous Fee-Based Services",null,"","ED_FEE431_00341",""]
["ED_FEE431_00342","Miscellaneous Fee-Based Services",null,"","ED_FEE431_00342",""]
["ED_FEE431_00343","Miscellaneous Fee-Based Services",null,"","ED_FEE431_00343",""]
["ED_FEE431_00344","Miscellaneous Fee-Based Services",null,"","ED_FEE431_00344",""]
["ED_FEE431_00345","Miscellaneous Fee-Based Services",null,"","ED_FEE431_00345",""]
["ED_FEE431_00346","Miscellaneous Fee-Based Services",null,"","ED_FEE431_00346",""]
["ED_FEE431_00347","Miscellaneous Fee-Based Services",null,"","ED_FEE431_00347",""]
["ED_FEE431_00348","Miscellaneous Fee-Based Services",null,"","ED_FEE431_00348",""]
["ED_FEE431_00349","Miscellaneous Fee-Based Services",null,"","ED_FEE431_00349",""]
["ED_FEE431_00350","Miscellaneous Fee-Based Services",null,"","ED_FEE431_00350",""]
["ED_FEE431_00351","Miscellaneous Fee-Based Services",null,"","ED_FEE431_00351",""]
["ED_FEE431_00352","Miscellaneous Fee-Based Services",null,"","ED_FEE431_00352",""]
["ED_FEE431_00353","Miscellaneous Fee-Based Services",null,"","ED_FEE431_00353",""]
["ED_FEE431_00354","Miscellaneous Fee-Based Services",null,"","ED_FEE431_00354",""]
["ED_FEE431_00355","Miscellaneous Fee-Based Services",null,"","ED_FEE431_00355",""]
["ED_FEE431_00356","Miscellaneous Fee-Based Services",null,"","ED_FEE431_00356",""]
["ED_FEE431_00357","Miscellaneous Fee-Based Services",null,"","ED_FEE431_00357",""]
["ED_FEE431_00358","Miscellaneous Fee-Based Services",null,"","ED_FEE431_00358",""]
["ED_FEE431_00359","Miscellaneous Fee-Based Services",null,"","ED_FEE431_00359",""]
["ED_FEE431_00360","Miscellaneous Fee-Based Services",null,"","ED_FEE431_00360",""]
["ED_FEE431_00361","Miscellaneous Fee-Based Services",null,"","ED_FEE431_00361",""]
["ED_FEE431_00362","Miscellaneous Fee-Based Services",null,"","ED_FEE431_00362",""]
["ED_FEE431_00363","Miscellaneous Fee-Based Services",null,"","ED_FEE431_00363",""]
["ED_FEE431_00364","Miscellaneous Fee-Based Services",null,"","ED_FEE431_00364",""]
["ED_FEE431_00365","Miscellaneous Fee-Based Services",null,"","ED_FEE431_00365",""]
["ED_FEE431_00366","Miscellaneous Fee-Based Services",null,"","ED_FEE431_00366",""]
["ED_FEE431_00367","Miscellaneous Fee-Based Services",null,"","ED_FEE431_00367",""]
["ED_FEE431_00368","Miscellaneous Fee-Based Services",null,"","ED_FEE431_00368",""]
["ED_FEE431_00369","Miscellaneous Fee-Based Services",null,"","ED_FEE431_00369",""]
["ED_FEE431_00370","Miscellaneous Fee-Based Services",null,"","ED_FEE431_00370",""]
["ED_FEE431_00371","Miscellaneous Fee-Based Services",null,"","ED_FEE431_00371",""]
["ED_FEE431_00372","Miscellaneous Fee-Based Services",null,"","ED_FEE431_00372",""]
["ED_FEE431_00373","Miscellaneous Fee-Based Services",null,"","ED_FEE431_00373",""]
["ED_FEE431_00374","Miscellaneous Fee-Based Services",null,"","ED_FEE431_00374",""]
["ED_FEE431_00375","Miscellaneous Fee-Based Services",null,"","ED_FEE431_00375",""]
["ED_FEE431_00376","Miscellaneous Fee-Based Services",null,"","ED_FEE431_00376",""]
["ED_FEE431_00377","Miscellaneous Fee-Based Services",null,"","ED_FEE431_00377",""]
["ED_FEE431_00378","Miscellaneous Fee-Based Services",null,"","ED_FEE431_00378",""]
["ED_FEE431_00379","Miscellaneous Fee-Based Services",null,"","ED_FEE431_00379",""]
["ED_FEE431_00380","Miscellaneous Fee-Based Services",null,"","ED_FEE431_00380",""]
["ED_FEE431_00381","Miscellaneous Fee-Based Services",null,"","ED_FEE431_00381",""]
["ED_FEE431_00382","Miscellaneous Fee-Based Services",null,"","ED_FEE431_00382",""]
["ED_FEE431_00383","Miscellaneous Fee-Based Services",null,"","ED_FEE431_00383",""]
["ED_FEE431_00384","Miscellaneous Fee-Based Services",null,"","ED_FEE431_00384",""]
["ED_FEE431_00385","Miscellaneous Fee-Based Services",null,"","ED_FEE431_00385",""]
["ED_FEE431_00386","Miscellaneous Fee-Based Services",null,"","ED_FEE431_00386",""]
["ED_FEE431_00387","Miscellaneous Fee-Based Services",null,"","ED_FEE431_00387",""]
["ED_FEE431_00388","Miscellaneous Fee-Based Services",null,"","ED_FEE431_00388",""]
["ED_FEE431_00389","Miscellaneous Fee-Based Services",null,"","ED_FEE431_00389",""]
["ED_FEE431_00390","Miscellaneous Fee-Based Services",null,"","ED_FEE431_00390",""]
["ED_FEE431_00391","Miscellaneous Fee-Based Services",null,"","ED_FEE431_00391",""]
["ED_FEE431_00392","Miscellaneous Fee-Based Services",null,"","ED_FEE431_00392",""]
["ED_FEE431_00393","Miscellaneous Fee-Based Services",null,"","ED_FEE431_00393",""]
["ED_FEE431_00394","Miscellaneous Fee-Based Services",null,"","ED_FEE431_00394",""]
["ED_FEE431_00395","Miscellaneous Fee-Based Services",null,"","ED_FEE431_00395",""]
["ED_FEE431_00396","Miscellaneous Fee-Based Services",null,"","ED_FEE431_00396",""]
["ED_FEE431_00397","Miscellaneous Fee-Based Services",null,"","ED_FEE431_00397",""]
["ED_FEE431_00398","Miscellaneous Fee-Based Services",null,"","ED_FEE431_00398",""]
["ED_FEE431_00399","Miscellaneous Fee-Based Services",null,"","ED_FEE431_00399",""]
["ED_FEE431_00400","Miscellaneous Fee-Based Services",null,"","ED_FEE431_00400",""]
["ED_FEE431_00401","Miscellaneous Fee-Based Services",null,"","ED_FEE431_00401",""]
["ED_FEE431_00402","Miscellaneous Fee-Based Services",null,"","ED_FEE431_00402",""]
["ED_FEE431_00403","Miscellaneous Fee-Based Services",null,"","ED_FEE431_00403",""]
["ED_FEE431_00404","Miscellaneous Fee-Based Services",null,"","ED_FEE431_00404",""]
["ED_FEE431_00405","Miscellaneous Fee-Based Services",null,"","ED_FEE431_00405",""]
["ED_FEE431_00406","Miscellaneous Fee-Based Services",null,"","ED_FEE431_00406",""]
["ED_FEE431_00407","Miscellaneous Fee-Based Services",null,"","ED_FEE431_00407",""]
["ED_FEE431_00408","Miscellaneous Fee-Based Services",null,"","ED_FEE431_00408",""]
["ED_FEE431_00409","Miscellaneous Fee-Based Services",null,"","ED_FEE431_00409",""]
["ED_FEE431_00410","Miscellaneous Fee-Based Services",null,"","ED_FEE431_00410",""]
["ED_FEE431_00411","Miscellaneous Fee-Based Services",null,"","ED_FEE431_00411",""]
["ED_FEE431_00412","Miscellaneous Fee-Based Services",null,"","ED_FEE431_00412",""]
["ED_FEE431_00413","Miscellaneous Fee-Based Services",null,"","ED_FEE431_00413",""]
["ED_FEE431_00414","Miscellaneous Fee-Based Services",null,"","ED_FEE431_00414",""]
["ED_FEE431_00415","Miscellaneous Fee-Based Services",null,"","ED_FEE431_00415",""]
["ED_FEE431_00416","Miscellaneous Fee-Based Services",null,"","ED_FEE431_00416",""]
["ED_FEE431_00417","Miscellaneous Fee-Based Services",null,"","ED_FEE431_00417",""]
["ED_FEE431_00418","Miscellaneous Fee-Based Services",null,"","ED_FEE431_00418",""]
["ED_FEE431_00419","Miscellaneous Fee-Based Services",null,"","ED_FEE431_00419",""]
["ED_FEE431_00420","Miscellaneous Fee-Based Services",null,"","ED_FEE431_00420",""]
["ED_FEE431_00421","Miscellaneous Fee-Based Services",null,"","ED_FEE431_00421",""]
["ED_FEE431_00422","Miscellaneous Fee-Based Services",null,"","ED_FEE431_00422",""]
["ED_FEE431_00423","Miscellaneous Fee-Based Services",null,"","ED_FEE431_00423",""]
["ED_FEE431_00424","Miscellaneous Fee-Based Services",null,"","ED_FEE431_00424",""]
["ED_FEE431_00425","Miscellaneous Fee-Based Services",null,"","ED_FEE431_00425",""]
["ED_FEE431_00426","Miscellaneous Fee-Based Services",null,"","ED_FEE431_00426",""]
["ED_FEE431_00427","Miscellaneous Fee-Based Services",null,"","ED_FEE431_00427",""]
["ED_FEE431_00428","Miscellaneous Fee-Based Services",null,"","ED_FEE431_00428",""]
["ED_FEE431_00429","Miscellaneous Fee-Based Services",null,"","ED_FEE431_00429",""]
["ED_FEE431_00430","Miscellaneous Fee-Based Services",null,"","ED_FEE431_00430",""]
["ED_FEE431_00431","Miscellaneous Fee-Based Services",null,"","ED_FEE431_00431",""]
["ED_FEE431_00432","Miscellaneous Fee-Based Services",null,"","ED_FEE431_00432",""]
["ED_FEE431_00433","Miscellaneous Fee-Based Services",null,"","ED_FEE431_00433",""]
["ED_FEE431_00434","Miscellaneous Fee-Based Services",null,"","ED_FEE431_00434",""]
["ED_FEE431_00435","Miscellaneous Fee-Based Services",null,"","ED_FEE431_00435",""]
["ED_FEE431_00436","Miscellaneous Fee-Based Services",null,"","ED_FEE431_00436",""]
["ED_FEE431_00437","Miscellaneous Fee-Based Services",null,"","ED_FEE431_00437",""]
["ED_FEE431_00438","Miscellaneous Fee-Based Services",null,"","ED_FEE431_00438",""]
["ED_FEE431_00439","Miscellaneous Fee-Based Services",null,"","ED_FEE431_00439",""]
["ED_FEE431_00440","Miscellaneous Fee-Based Services",null,"","ED_FEE431_00440",""]
["ED_FEE431_00441","Miscellaneous Fee-Based Services",null,"","ED_FEE431_00441",""]
["ED_FEE431_00442","Miscellaneous Fee-Based Services",null,"","ED_FEE431_00442",""]
["ED_FEE431_00443","Miscellaneous Fee-Based Services",null,"","ED_FEE431_00443",""]
["ED_FEE431_00444","Miscellaneous Fee-Based Services",null,"","ED_FEE431_00444",""]
["ED_FEE431_00445","Miscellaneous Fee-Based Services",null,"","ED_FEE431_00445",""]
["ED_FEE431_00446","Miscellaneous Fee-Based Services",null,"","ED_FEE431_00446",""]
["ED_FEE431_00447","Miscellaneous Fee-Based Services",null,"","ED_FEE431_00447",""]
["ED_FEE431_00448","Miscellaneous Fee-Based Services",null,"","ED_FEE431_00448",""]
["ED_FEE431_00449","Miscellaneous Fee-Based Services",null,"","ED_FEE431_00449",""]
["ED_FEE431_00450","Miscellaneous Fee-Based Services",null,"","ED_FEE431_00450",""]
["ED_FEE431_00451","Miscellaneous Fee-Based Services",null,"","ED_FEE431_00451",""]
["ED_FEE431_00452","Miscellaneous Fee-Based Services",null,"","ED_FEE431_00452",""]
["ED_FEE431_00453","Miscellaneous Fee-Based Services",null,"","ED_FEE431_00453",""]
["ED_FEE431_00454","Miscellaneous Fee-Based Services",null,"","ED_FEE431_00454",""]
["ED_FEE431_00455","Miscellaneous Fee-Based Services",null,"","ED_FEE431_00455",""]
["ED_FEE431_00456","Miscellaneous Fee-Based Services",null,"","ED_FEE431_00456",""]
["ED_FEE431_00457","Miscellaneous Fee-Based Services",null,"","ED_FEE431_00457",""]
["ED_FEE431_00458","Miscellaneous Fee-Based Services",null,"","ED_FEE431_00458",""]
["ED_FEE431_00459","Miscellaneous Fee-Based Services",null,"","ED_FEE431_00459",""]
["ED_FEE431_00460","Miscellaneous Fee-Based Services",null,"","ED_FEE431_00460",""]
["ED_FEE431_00461","Miscellaneous Fee-Based Services",null,"","ED_FEE431_00461",""]
["ED_FEE431_00462","Miscellaneous Fee-Based Services",null,"","ED_FEE431_00462",""]
["ED_FEE431_00463","Miscellaneous Fee-Based Services",null,"","ED_FEE431_00463",""]
["ED_FEE431_00464","Miscellaneous Fee-Based Services",null,"","ED_FEE431_00464",""]
["ED_FEE431_00465","Miscellaneous Fee-Based Services",null,"","ED_FEE431_00465",""]
["ED_FEE431_00466","Miscellaneous Fee-Based Services",null,"","ED_FEE431_00466",""]
["ED_FEE431_00467","Miscellaneous Fee-Based Services",null,"","ED_FEE431_00467",""]
["ED_FEE431_00468","Miscellaneous Fee-Based Services",null,"","ED_FEE431_00468",""]
["ED_FEE431_00469","Miscellaneous Fee-Based Services",null,"","ED_FEE431_00469",""]
["ED_FEE431_00470","Miscellaneous Fee-Based Services",null,"","ED_FEE431_00470",""]
["ED_FEE431_00471","Miscellaneous Fee-Based Services",null,"","ED_FEE431_00471",""]

{"sheet":"4.4 Quoted services","index":16,"n_rows":483,"n_cols":6,"rows_kept":483,"cut":false,"hidden":false,"merged":[]}
[null,{"$f":"(LOOKUP(dms_Model,dms_Model_List,dms_Worksheet_List))","v":"REGULATORY REPORTING STATEMENT"}]
[null,"Australian Distribution Co."]
[null,{"$f":"CONCATENATE(\"Category Analysis RIN response \",CRY)","v":"Category Analysis RIN response 2014-15"}]
[null,"4.4 ANCILLARY SERVICES - QUOTED SERVICES"]
[]
[null,"TABLE 4.4.1 - COST METRICS FOR QUOTED SERVICES"]
[]
[]
[null,null,null,"EXPENDITURE \n($0's)",null,"VOLUMES \n(0's)"]
[null,"SERVICE","SERVICE SUBCATEGORY",{"$f":"CRY","v":"2014-15"},null,{"$f":"CRY","v":"2014-15"}]
["ED_QUO441_00001","Quoted Service opex","Customer Requested Shutdown",{"$f":"'[2]4.4 Quoted services'!D11+'[3]4.4 Quoted services'!D11","v":95340.99},"ED_QUO441_00001",{"$f":"'[2]4.4 Quoted services'!F11+'[3]4.4 Quoted services'!F11","v":105}]
["ED_QUO441_00002","Quoted Service opex","Protection Modification",{"$f":"'[2]4.4 Quoted services'!D12+'[3]4.4 Quoted services'!D12","v":0},"ED_QUO441_00002",{"$f":"'[2]4.4 Quoted services'!F12+'[3]4.4 Quoted services'!F12","v":0}]
["ED_QUO441_00003","Quoted Service opex","Temporary Supply",{"$f":"'[2]4.4 Quoted services'!D13+'[3]4.4 Quoted services'!D13","v":0},"ED_QUO441_00003",{"$f":"'[2]4.4 Quoted services'!F13+'[3]4.4 Quoted services'!F13","v":0}]
["ED_QUO441_00004","Quoted Service opex","Tri-gen Connection",{"$f":"'[2]4.4 Quoted services'!D14+'[3]4.4 Quoted services'!D14","v":0},"ED_QUO441_00004",{"$f":"'[2]4.4 Quoted services'!F14+'[3]4.4 Quoted services'!F14","v":0}]
["ED_QUO441_00005","Quoted Service opex","PV Installation Studies (Greater Than 200kW)",{"$f":"'[2]4.4 Quoted services'!D15+'[3]4.4 Quoted services'!D15","v":0},"ED_QUO441_00005",{"$f":"'[2]4.4 Quoted services'!F15+'[3]4.4 Quoted services'!F15","v":0}]
["ED_QUO441_00006","Quoted Service opex","PV Installation Studies (Less Than or Equal to 200kW)",{"$f":"'[2]4.4 Quoted services'!D16+'[3]4.4 Quoted services'!D16","v":0},"ED_QUO441_00006",{"$f":"'[2]4.4 Quoted services'!F16+'[3]4.4 Quoted services'!F16","v":0}]
["ED_QUO441_00007","Quoted Service opex","Miscellaneous",{"$f":"'[2]4.4 Quoted services'!D17+'[3]4.4 Quoted services'!D17","v":32196.57},"ED_QUO441_00007",{"$f":"'[2]4.4 Quoted services'!F17+'[3]4.4 Quoted services'!F17","v":45}]
["ED_QUO441_00008","Quoted Service opex","Third Party Damages",{"$f":"'[2]4.4 Quoted services'!D18+'[3]4.4 Quoted services'!D18","v":216378.25},"ED_QUO441_00008",{"$f":"'[2]4.4 Quoted services'!F18+'[3]4.4 Quoted services'!F18","v":69}]
["ED_QUO441_00009","Quoted Service opex","Termination of mains",{"$f":"'[2]4.4 Quoted services'!D19+'[3]4.4 Quoted services'!D19","v":149935.89000000001},"ED_QUO441_00009",{"$f":"'[2]4.4 Quoted services'!F19+'[3]4.4 Quoted services'!F19","v":209}]
["ED_QUO441_00010","Quoted Service opex","Removal of Assets",{"$f":"'[2]4.4 Quoted services'!D20+'[3]4.4 Quoted services'!D20","v":85079.4},"ED_QUO441_00010",{"$f":"'[2]4.4 Quoted services'!F20+'[3]4.4 Quoted services'!F20","v":125}]
["ED_QUO441_00011","Quoted Service opex","Relocation of Assets",{"$f":"'[2]4.4 Quoted services'!D21+'[3]4.4 Quoted services'!D21","v":0},"ED_QUO441_00011",{"$f":"'[2]4.4 Quoted services'!F21+'[3]4.4 Quoted services'!F21","v":0}]
["ED_QUO441_00012","Quoted Service opex","Customer Initiated Replacement",{"$f":"'[2]4.4 Quoted services'!D22+'[3]4.4 Quoted services'!D22","v":89333.14},"ED_QUO441_00012",{"$f":"'[2]4.4 Quoted services'!F22+'[3]4.4 Quoted services'!F22","v":17}]
["ED_QUO441_00013","Quoted Service opex","Relocation of Assets Capital",{"$f":"'[2]4.4 Quoted services'!D23+'[3]4.4 Quoted services'!D23","v":2826815.41},"ED_QUO441_00013",{"$f":"'[2]4.4 Quoted services'!F23+'[3]4.4 Quoted services'!F23","v":75}]
["ED_QUO441_00014","Quoted Services",null,null,"ED_QUO441_00014"]
["ED_QUO441_00015","Quoted Services",null,null,"ED_QUO441_00015"]
["ED_QUO441_00016","Quoted Services",null,null,"ED_QUO441_00016"]
["ED_QUO441_00017","Quoted Services",null,null,"ED_QUO441_00017"]
["ED_QUO441_00018","Quoted Services",null,null,"ED_QUO441_00018"]
["ED_QUO441_00019","Quoted Services",null,null,"ED_QUO441_00019"]
["ED_QUO441_00020","Quoted Services",null,null,"ED_QUO441_00020"]
["ED_QUO441_00021","Quoted Services",null,null,"ED_QUO441_00021"]
["ED_QUO441_00022","Quoted Services",null,null,"ED_QUO441_00022"]
["ED_QUO441_00023","Quoted Services",null,null,"ED_QUO441_00023"]
["ED_QUO441_00024","Quoted Services",null,null,"ED_QUO441_00024"]
["ED_QUO441_00025","Quoted Services",null,null,"ED_QUO441_00025"]
["ED_QUO441_00026","Quoted Services",null,null,"ED_QUO441_00026"]
["ED_QUO441_00027","Quoted Services",null,null,"ED_QUO441_00027"]
["ED_QUO441_00028","Quoted Services",null,null,"ED_QUO441_00028"]
["ED_QUO441_00029","Quoted Services",null,null,"ED_QUO441_00029"]
["ED_QUO441_00030","Quoted Services",null,null,"ED_QUO441_00030"]
["ED_QUO441_00031","Quoted Services",null,null,"ED_QUO441_00031"]
["ED_QUO441_00032","Quoted Services",null,null,"ED_QUO441_00032"]
["ED_QUO441_00033","Quoted Services",null,null,"ED_QUO441_00033"]
["ED_QUO441_00034","Quoted Services",null,"","ED_QUO441_00034",""]
["ED_QUO441_00035","Quoted Services",null,"","ED_QUO441_00035",""]
["ED_QUO441_00036","Quoted Services",null,"","ED_QUO441_00036",""]
["ED_QUO441_00037","Quoted Services",null,"","ED_QUO441_00037",""]
["ED_QUO441_00038","Quoted Services",null,"","ED_QUO441_00038",""]
["ED_QUO441_00039","Quoted Services",null,"","ED_QUO441_00039",""]
["ED_QUO441_00040","Quoted Services",null,"","ED_QUO441_00040",""]
["ED_QUO441_00041","Quoted Services",null,"","ED_QUO441_00041",""]
["ED_QUO441_00042","Quoted Services",null,"","ED_QUO441_00042",""]
["ED_QUO441_00043","Quoted Services",null,"","ED_QUO441_00043",""]
["ED_QUO441_00044","Quoted Services",null,"","ED_QUO441_00044",""]
["ED_QUO441_00045","Quoted Services",null,"","ED_QUO441_00045",""]
["ED_QUO441_00046","Quoted Services",null,"","ED_QUO441_00046",""]
["ED_QUO441_00047","Quoted Services",null,"","ED_QUO441_00047",""]
["ED_QUO441_00048","Quoted Services",null,"","ED_QUO441_00048",""]
["ED_QUO441_00049","Quoted Services",null,"","ED_QUO441_00049",""]
["ED_QUO441_00050","Quoted Services",null,"","ED_QUO441_00050",""]
["ED_QUO441_00051","Quoted Services",null,"","ED_QUO441_00051",""]
["ED_QUO441_00052","Quoted Services",null,"","ED_QUO441_00052",""]
["ED_QUO441_00053","Quoted Services",null,"","ED_QUO441_00053",""]
["ED_QUO441_00054","Quoted Services",null,"","ED_QUO441_00054",""]
["ED_QUO441_00055","Quoted Services",null,"","ED_QUO441_00055",""]
["ED_QUO441_00056","Quoted Services",null,"","ED_QUO441_00056",""]
["ED_QUO441_00057","Quoted Services",null,"","ED_QUO441_00057",""]
["ED_QUO441_00058","Quoted Services",null,"","ED_QUO441_00058",""]
["ED_QUO441_00059","Quoted Services",null,"","ED_QUO441_00059",""]
["ED_QUO441_00060","Quoted Services",null,"","ED_QUO441_00060",""]
["ED_QUO441_00061","Quoted Services",null,"","ED_QUO441_00061",""]
["ED_QUO441_00062","Quoted Services",null,"","ED_QUO441_00062",""]
["ED_QUO441_00063","Quoted Services",null,"","ED_QUO441_00063",""]
["ED_QUO441_00064","Quoted Services",null,"","ED_QUO441_00064",""]
["ED_QUO441_00065","Quoted Services",null,"","ED_QUO441_00065",""]
["ED_QUO441_00066","Quoted Services",null,"","ED_QUO441_00066",""]
["ED_QUO441_00067","Quoted Services",null,"","ED_QUO441_00067",""]
["ED_QUO441_00068","Quoted Services",null,"","ED_QUO441_00068",""]
["ED_QUO441_00069","Quoted Services",null,"","ED_QUO441_00069",""]
["ED_QUO441_00070","Quoted Services",null,"","ED_QUO441_00070",""]
["ED_QUO441_00071","Quoted Services",null,"","ED_QUO441_00071",""]
["ED_QUO441_00072","Quoted Services",null,"","ED_QUO441_00072",""]
["ED_QUO441_00073","Quoted Services",null,"","ED_QUO441_00073",""]
["ED_QUO441_00074","Quoted Services",null,"","ED_QUO441_00074",""]
["ED_QUO441_00075","Quoted Services",null,"","ED_QUO441_00075",""]
["ED_QUO441_00076","Quoted Services",null,"","ED_QUO441_00076",""]
["ED_QUO441_00077","Quoted Services",null,"","ED_QUO441_00077",""]
["ED_QUO441_00078","Quoted Services",null,"","ED_QUO441_00078",""]
["ED_QUO441_00079","Quoted Services",null,"","ED_QUO441_00079",""]
["ED_QUO441_00080","Quoted Services",null,"","ED_QUO441_00080",""]
["ED_QUO441_00081","Quoted Services",null,"","ED_QUO441_00081",""]
["ED_QUO441_00082","Quoted Services",null,"","ED_QUO441_00082",""]
["ED_QUO441_00083","Quoted Services",null,"","ED_QUO441_00083",""]
["ED_QUO441_00084","Quoted Services",null,"","ED_QUO441_00084",""]
["ED_QUO441_00085","Quoted Services",null,"","ED_QUO441_00085",""]
["ED_QUO441_00086","Quoted Services",null,"","ED_QUO441_00086",""]
["ED_QUO441_00087","Quoted Services",null,"","ED_QUO441_00087",""]
["ED_QUO441_00088","Quoted Services",null,"","ED_QUO441_00088",""]
["ED_QUO441_00089","Quoted Services",null,"","ED_QUO441_00089",""]
["ED_QUO441_00090","Quoted Services",null,"","ED_QUO441_00090",""]
["ED_QUO441_00091","Quoted Services",null,"","ED_QUO441_00091",""]
["ED_QUO441_00092","Quoted Services",null,"","ED_QUO441_00092",""]
["ED_QUO441_00093","Quoted Services",null,"","ED_QUO441_00093",""]
["ED_QUO441_00094","Quoted Services",null,"","ED_QUO441_00094",""]
["ED_QUO441_00095","Quoted Services",null,"","ED_QUO441_00095",""]
["ED_QUO441_00096","Quoted Services",null,"","ED_QUO441_00096",""]
["ED_QUO441_00097","Quoted Services",null,"","ED_QUO441_00097",""]
["ED_QUO441_00098","Quoted Services",null,"","ED_QUO441_00098",""]
["ED_QUO441_00099","Quoted Services",null,"","ED_QUO441_00099",""]
["ED_QUO441_00100","Quoted Services",null,"","ED_QUO441_00100",""]
["ED_QUO441_00101","Quoted Services",null,"","ED_QUO441_00101",""]
["ED_QUO441_00102","Quoted Services",null,"","ED_QUO441_00102",""]
["ED_QUO441_00103","Quoted Services",null,"","ED_QUO441_00103",""]
["ED_QUO441_00104","Quoted Services",null,"","ED_QUO441_00104",""]
["ED_QUO441_00105","Quoted Services",null,"","ED_QUO441_00105",""]
["ED_QUO441_00106","Quoted Services",null,"","ED_QUO441_00106",""]
["ED_QUO441_00107","Quoted Services",null,"","ED_QUO441_00107",""]
["ED_QUO441_00108","Quoted Services",null,"","ED_QUO441_00108",""]
["ED_QUO441_00109","Quoted Services",null,"","ED_QUO441_00109",""]
["ED_QUO441_00110","Quoted Services",null,"","ED_QUO441_00110",""]
["ED_QUO441_00111","Quoted Services",null,"","ED_QUO441_00111",""]
["ED_QUO441_00112","Quoted Services",null,"","ED_QUO441_00112",""]
["ED_QUO441_00113","Quoted Services",null,"","ED_QUO441_00113",""]
["ED_QUO441_00114","Quoted Services",null,"","ED_QUO441_00114",""]
["ED_QUO441_00115","Quoted Services",null,"","ED_QUO441_00115",""]
["ED_QUO441_00116","Quoted Services",null,"","ED_QUO441_00116",""]
["ED_QUO441_00117","Quoted Services",null,"","ED_QUO441_00117",""]
["ED_QUO441_00118","Quoted Services",null,"","ED_QUO441_00118",""]
["ED_QUO441_00119","Quoted Services",null,"","ED_QUO441_00119",""]
["ED_QUO441_00120","Quoted Services",null,"","ED_QUO441_00120",""]
["ED_QUO441_00121","Quoted Services",null,"","ED_QUO441_00121",""]
["ED_QUO441_00122","Quoted Services",null,"","ED_QUO441_00122",""]
["ED_QUO441_00123","Quoted Services",null,"","ED_QUO441_00123",""]
["ED_QUO441_00124","Quoted Services",null,"","ED_QUO441_00124",""]
["ED_QUO441_00125","Quoted Services",null,"","ED_QUO441_00125",""]
["ED_QUO441_00126","Quoted Services",null,"","ED_QUO441_00126",""]
["ED_QUO441_00127","Quoted Services",null,"","ED_QUO441_00127",""]
["ED_QUO441_00128","Quoted Services",null,"","ED_QUO441_00128",""]
["ED_QUO441_00129","Quoted Services",null,"","ED_QUO441_00129",""]
["ED_QUO441_00130","Quoted Services",null,"","ED_QUO441_00130",""]
["ED_QUO441_00131","Quoted Services",null,"","ED_QUO441_00131",""]
["ED_QUO441_00132","Quoted Services",null,"","ED_QUO441_00132",""]
["ED_QUO441_00133","Quoted Services",null,"","ED_QUO441_00133",""]
["ED_QUO441_00134","Quoted Services",null,"","ED_QUO441_00134",""]
["ED_QUO441_00135","Quoted Services",null,"","ED_QUO441_00135",""]
["ED_QUO441_00136","Quoted Services",null,"","ED_QUO441_00136",""]
["ED_QUO441_00137","Quoted Services",null,"","ED_QUO441_00137",""]
["ED_QUO441_00138","Quoted Services",null,"","ED_QUO441_00138",""]
["ED_QUO441_00139","Quoted Services",null,"","ED_QUO441_00139",""]
["ED_QUO441_00140","Quoted Services",null,"","ED_QUO441_00140",""]
["ED_QUO441_00141","Quoted Services",null,"","ED_QUO441_00141",""]
["ED_QUO441_00142","Quoted Services",null,"","ED_QUO441_00142",""]
["ED_QUO441_00143","Quoted Services",null,"","ED_QUO441_00143",""]
["ED_QUO441_00144","Quoted Services",null,"","ED_QUO441_00144",""]
["ED_QUO441_00145","Quoted Services",null,"","ED_QUO441_00145",""]
["ED_QUO441_00146","Quoted Services",null,"","ED_QUO441_00146",""]
["ED_QUO441_00147","Quoted Services",null,"","ED_QUO441_00147",""]
["ED_QUO441_00148","Quoted Services",null,"","ED_QUO441_00148",""]
["ED_QUO441_00149","Quoted Services",null,"","ED_QUO441_00149",""]
["ED_QUO441_00150","Quoted Services",null,"","ED_QUO441_00150",""]
["ED_QUO441_00151","Quoted Services",null,"","ED_QUO441_00151",""]
["ED_QUO441_00152","Quoted Services",null,"","ED_QUO441_00152",""]
["ED_QUO441_00153","Quoted Services",null,"","ED_QUO441_00153",""]
["ED_QUO441_00154","Quoted Services",null,"","ED_QUO441_00154",""]
["ED_QUO441_00155","Quoted Services",null,"","ED_QUO441_00155",""]
["ED_QUO441_00156","Quoted Services",null,"","ED_QUO441_00156",""]
["ED_QUO441_00157","Quoted Services",null,"","ED_QUO441_00157",""]
["ED_QUO441_00158","Quoted Services",null,"","ED_QUO441_00158",""]
["ED_QUO441_00159","Quoted Services",null,"","ED_QUO441_00159",""]
["ED_QUO441_00160","Quoted Services",null,"","ED_QUO441_00160",""]
["ED_QUO441_00161","Quoted Services",null,"","ED_QUO441_00161",""]
["ED_QUO441_00162","Quoted Services",null,"","ED_QUO441_00162",""]
["ED_QUO441_00163","Quoted Services",null,"","ED_QUO441_00163",""]
["ED_QUO441_00164","Quoted Services",null,"","ED_QUO441_00164",""]
["ED_QUO441_00165","Quoted Services",null,"","ED_QUO441_00165",""]
["ED_QUO441_00166","Quoted Services",null,"","ED_QUO441_00166",""]
["ED_QUO441_00167","Quoted Services",null,"","ED_QUO441_00167",""]
["ED_QUO441_00168","Quoted Services",null,"","ED_QUO441_00168",""]
["ED_QUO441_00169","Quoted Services",null,"","ED_QUO441_00169",""]
["ED_QUO441_00170","Quoted Services",null,"","ED_QUO441_00170",""]
["ED_QUO441_00171","Quoted Services",null,"","ED_QUO441_00171",""]
["ED_QUO441_00172","Quoted Services",null,"","ED_QUO441_00172",""]
["ED_QUO441_00173","Quoted Services",null,"","ED_QUO441_00173",""]
["ED_QUO441_00174","Quoted Services",null,"","ED_QUO441_00174",""]
["ED_QUO441_00175","Quoted Services",null,"","ED_QUO441_00175",""]
["ED_QUO441_00176","Quoted Services",null,"","ED_QUO441_00176",""]
["ED_QUO441_00177","Quoted Services",null,"","ED_QUO441_00177",""]
["ED_QUO441_00178","Quoted Services",null,"","ED_QUO441_00178",""]
["ED_QUO441_00179","Quoted Services",null,"","ED_QUO441_00179",""]
["ED_QUO441_00180","Quoted Services",null,"","ED_QUO441_00180",""]
["ED_QUO441_00181","Quoted Services",null,"","ED_QUO441_00181",""]
["ED_QUO441_00182","Quoted Services",null,"","ED_QUO441_00182",""]
["ED_QUO441_00183","Quoted Services",null,"","ED_QUO441_00183",""]
["ED_QUO441_00184","Quoted Services",null,"","ED_QUO441_00184",""]
["ED_QUO441_00185","Quoted Services",null,"","ED_QUO441_00185",""]
["ED_QUO441_00186","Quoted Services",null,"","ED_QUO441_00186",""]
["ED_QUO441_00187","Quoted Services",null,"","ED_QUO441_00187",""]
["ED_QUO441_00188","Quoted Services",null,"","ED_QUO441_00188",""]
["ED_QUO441_00189","Quoted Services",null,"","ED_QUO441_00189",""]
["ED_QUO441_00190","Quoted Services",null,"","ED_QUO441_00190",""]
["ED_QUO441_00191","Quoted Services",null,"","ED_QUO441_00191",""]
["ED_QUO441_00192","Quoted Services",null,"","ED_QUO441_00192",""]
["ED_QUO441_00193","Quoted Services",null,"","ED_QUO441_00193",""]
["ED_QUO441_00194","Quoted Services",null,"","ED_QUO441_00194",""]
["ED_QUO441_00195","Quoted Services",null,"","ED_QUO441_00195",""]
["ED_QUO441_00196","Quoted Services",null,"","ED_QUO441_00196",""]
["ED_QUO441_00197","Quoted Services",null,"","ED_QUO441_00197",""]
["ED_QUO441_00198","Quoted Services",null,"","ED_QUO441_00198",""]
["ED_QUO441_00199","Quoted Services",null,"","ED_QUO441_00199",""]
["ED_QUO441_00200","Quoted Services",null,"","ED_QUO441_00200",""]
["ED_QUO441_00201","Quoted Services",null,"","ED_QUO441_00201",""]
["ED_QUO441_00202","Quoted Services",null,"","ED_QUO441_00202",""]
["ED_QUO441_00203","Quoted Services",null,"","ED_QUO441_00203",""]
["ED_QUO441_00204","Quoted Services",null,"","ED_QUO441_00204",""]
["ED_QUO441_00205","Quoted Services",null,"","ED_QUO441_00205",""]
["ED_QUO441_00206","Quoted Services",null,"","ED_QUO441_00206",""]
["ED_QUO441_00207","Quoted Services",null,"","ED_QUO441_00207",""]
["ED_QUO441_00208","Quoted Services",null,"","ED_QUO441_00208",""]
["ED_QUO441_00209","Quoted Services",null,"","ED_QUO441_00209",""]
["ED_QUO441_00210","Quoted Services",null,"","ED_QUO441_00210",""]
["ED_QUO441_00211","Quoted Services",null,"","ED_QUO441_00211",""]
["ED_QUO441_00212","Quoted Services",null,"","ED_QUO441_00212",""]
["ED_QUO441_00213","Quoted Services",null,"","ED_QUO441_00213",""]
["ED_QUO441_00214","Quoted Services",null,"","ED_QUO441_00214",""]
["ED_QUO441_00215","Quoted Services",null,"","ED_QUO441_00215",""]
["ED_QUO441_00216","Quoted Services",null,"","ED_QUO441_00216",""]
["ED_QUO441_00217","Quoted Services",null,"","ED_QUO441_00217",""]
["ED_QUO441_00218","Quoted Services",null,"","ED_QUO441_00218",""]
["ED_QUO441_00219","Quoted Services",null,"","ED_QUO441_00219",""]
["ED_QUO441_00220","Quoted Services",null,"","ED_QUO441_00220",""]
["ED_QUO441_00221","Quoted Services",null,"","ED_QUO441_00221",""]
["ED_QUO441_00222","Quoted Services",null,"","ED_QUO441_00222",""]
["ED_QUO441_00223","Quoted Services",null,"","ED_QUO441_00223",""]
["ED_QUO441_00224","Quoted Services",null,"","ED_QUO441_00224",""]
["ED_QUO441_00225","Quoted Services",null,"","ED_QUO441_00225",""]
["ED_QUO441_00226","Quoted Services",null,"","ED_QUO441_00226",""]
["ED_QUO441_00227","Quoted Services",null,"","ED_QUO441_00227",""]
["ED_QUO441_00228","Quoted Services",null,"","ED_QUO441_00228",""]
["ED_QUO441_00229","Quoted Services",null,"","ED_QUO441_00229",""]
["ED_QUO441_00230","Quoted Services",null,"","ED_QUO441_00230",""]
["ED_QUO441_00231","Quoted Services",null,"","ED_QUO441_00231",""]
["ED_QUO441_00232","Quoted Services",null,"","ED_QUO441_00232",""]
["ED_QUO441_00233","Quoted Services",null,"","ED_QUO441_00233",""]
["ED_QUO441_00234","Quoted Services",null,"","ED_QUO441_00234",""]
["ED_QUO441_00235","Quoted Services",null,"","ED_QUO441_00235",""]
["ED_QUO441_00236","Quoted Services",null,"","ED_QUO441_00236",""]
["ED_QUO441_00237","Quoted Services",null,"","ED_QUO441_00237",""]
["ED_QUO441_00238","Quoted Services",null,"","ED_QUO441_00238",""]
["ED_QUO441_00239","Quoted Services",null,"","ED_QUO441_00239",""]
["ED_QUO441_00240","Quoted Services",null,"","ED_QUO441_00240",""]
["ED_QUO441_00241","Quoted Services",null,"","ED_QUO441_00241",""]
["ED_QUO441_00242","Quoted Services",null,"","ED_QUO441_00242",""]
["ED_QUO441_00243","Quoted Services",null,"","ED_QUO441_00243",""]
["ED_QUO441_00244","Quoted Services",null,"","ED_QUO441_00244",""]
["ED_QUO441_00245","Quoted Services",null,"","ED_QUO441_00245",""]
["ED_QUO441_00246","Quoted Services",null,"","ED_QUO441_00246",""]
["ED_QUO441_00247","Quoted Services",null,"","ED_QUO441_00247",""]
["ED_QUO441_00248","Quoted Services",null,"","ED_QUO441_00248",""]
["ED_QUO441_00249","Quoted Services",null,"","ED_QUO441_00249",""]
["ED_QUO441_00250","Quoted Services",null,"","ED_QUO441_00250",""]
["ED_QUO441_00251","Quoted Services",null,"","ED_QUO441_00251",""]
["ED_QUO441_00252","Quoted Services",null,"","ED_QUO441_00252",""]
["ED_QUO441_00253","Quoted Services",null,"","ED_QUO441_00253",""]
["ED_QUO441_00254","Quoted Services",null,"","ED_QUO441_00254",""]
["ED_QUO441_00255","Quoted Services",null,"","ED_QUO441_00255",""]
["ED_QUO441_00256","Quoted Services",null,"","ED_QUO441_00256",""]
["ED_QUO441_00257","Quoted Services",null,"","ED_QUO441_00257",""]
["ED_QUO441_00258","Quoted Services",null,"","ED_QUO441_00258",""]
["ED_QUO441_00259","Quoted Services",null,"","ED_QUO441_00259",""]
["ED_QUO441_00260","Quoted Services",null,"","ED_QUO441_00260",""]
["ED_QUO441_00261","Quoted Services",null,"","ED_QUO441_00261",""]
["ED_QUO441_00262","Quoted Services",null,"","ED_QUO441_00262",""]
["ED_QUO441_00263","Quoted Services",null,"","ED_QUO441_00263",""]
["ED_QUO441_00264","Quoted Services",null,"","ED_QUO441_00264",""]
["ED_QUO441_00265","Quoted Services",null,"","ED_QUO441_00265",""]
["ED_QUO441_00266","Quoted Services",null,"","ED_QUO441_00266",""]
["ED_QUO441_00267","Quoted Services",null,"","ED_QUO441_00267",""]
["ED_QUO441_00268","Quoted Services",null,"","ED_QUO441_00268",""]
["ED_QUO441_00269","Quoted Services",null,"","ED_QUO441_00269",""]
["ED_QUO441_00270","Quoted Services",null,"","ED_QUO441_00270",""]
["ED_QUO441_00271","Quoted Services",null,"","ED_QUO441_00271",""]
["ED_QUO441_00272","Quoted Services",null,"","ED_QUO441_00272",""]
["ED_QUO441_00273","Quoted Services",null,"","ED_QUO441_00273",""]
["ED_QUO441_00274","Quoted Services",null,"","ED_QUO441_00274",""]
["ED_QUO441_00275","Quoted Services",null,"","ED_QUO441_00275",""]
["ED_QUO441_00276","Quoted Services",null,"","ED_QUO441_00276",""]
["ED_QUO441_00277","Quoted Services",null,"","ED_QUO441_00277",""]
["ED_QUO441_00278","Quoted Services",null,"","ED_QUO441_00278",""]
["ED_QUO441_00279","Quoted Services",null,"","ED_QUO441_00279",""]
["ED_QUO441_00280","Quoted Services",null,"","ED_QUO441_00280",""]
["ED_QUO441_00281","Quoted Services",null,"","ED_QUO441_00281",""]
["ED_QUO441_00282","Quoted Services",null,"","ED_QUO441_00282",""]
["ED_QUO441_00283","Quoted Services",null,"","ED_QUO441_00283",""]
["ED_QUO441_00284","Quoted Services",null,"","ED_QUO441_00284",""]
["ED_QUO441_00285","Quoted Services",null,"","ED_QUO441_00285",""]
["ED_QUO441_00286","Quoted Services",null,"","ED_QUO441_00286",""]
["ED_QUO441_00287","Quoted Services",null,"","ED_QUO441_00287",""]
["ED_QUO441_00288","Quoted Services",null,"","ED_QUO441_00288",""]
["ED_QUO441_00289","Quoted Services",null,"","ED_QUO441_00289",""]
["ED_QUO441_00290","Quoted Services",null,"","ED_QUO441_00290",""]
["ED_QUO441_00291","Quoted Services",null,"","ED_QUO441_00291",""]
["ED_QUO441_00292","Quoted Services",null,"","ED_QUO441_00292",""]
["ED_QUO441_00293","Quoted Services",null,"","ED_QUO441_00293",""]
["ED_QUO441_00294","Quoted Services",null,"","ED_QUO441_00294",""]
["ED_QUO441_00295","Quoted Services",null,"","ED_QUO441_00295",""]
["ED_QUO441_00296","Quoted Services",null,"","ED_QUO441_00296",""]
["ED_QUO441_00297","Quoted Services",null,"","ED_QUO441_00297",""]
["ED_QUO441_00298","Quoted Services",null,"","ED_QUO441_00298",""]
["ED_QUO441_00299","Quoted Services",null,"","ED_QUO441_00299",""]
["ED_QUO441_00300","Quoted Services",null,"","ED_QUO441_00300",""]
["ED_QUO441_00301","Quoted Services",null,"","ED_QUO441_00301",""]
["ED_QUO441_00302","Quoted Services",null,"","ED_QUO441_00302",""]
["ED_QUO441_00303","Quoted Services",null,"","ED_QUO441_00303",""]
["ED_QUO441_00304","Quoted Services",null,"","ED_QUO441_00304",""]
["ED_QUO441_00305","Quoted Services",null,"","ED_QUO441_00305",""]
["ED_QUO441_00306","Quoted Services",null,"","ED_QUO441_00306",""]
["ED_QUO441_00307","Quoted Services",null,"","ED_QUO441_00307",""]
["ED_QUO441_00308","Quoted Services",null,"","ED_QUO441_00308",""]
["ED_QUO441_00309","Quoted Services",null,"","ED_QUO441_00309",""]
["ED_QUO441_00310","Quoted Services",null,"","ED_QUO441_00310",""]
["ED_QUO441_00311","Quoted Services",null,"","ED_QUO441_00311",""]
["ED_QUO441_00312","Quoted Services",null,"","ED_QUO441_00312",""]
["ED_QUO441_00313","Quoted Services",null,"","ED_QUO441_00313",""]
["ED_QUO441_00314","Quoted Services",null,"","ED_QUO441_00314",""]
["ED_QUO441_00315","Quoted Services",null,"","ED_QUO441_00315",""]
["ED_QUO441_00316","Quoted Services",null,"","ED_QUO441_00316",""]
["ED_QUO441_00317","Quoted Services",null,"","ED_QUO441_00317",""]
["ED_QUO441_00318","Quoted Services",null,"","ED_QUO441_00318",""]
["ED_QUO441_00319","Quoted Services",null,"","ED_QUO441_00319",""]
["ED_QUO441_00320","Quoted Services",null,"","ED_QUO441_00320",""]
["ED_QUO441_00321","Quoted Services",null,"","ED_QUO441_00321",""]
["ED_QUO441_00322","Quoted Services",null,"","ED_QUO441_00322",""]
["ED_QUO441_00323","Quoted Services",null,"","ED_QUO441_00323",""]
["ED_QUO441_00324","Quoted Services",null,"","ED_QUO441_00324",""]
["ED_QUO441_00325","Quoted Services",null,"","ED_QUO441_00325",""]
["ED_QUO441_00326","Quoted Services",null,"","ED_QUO441_00326",""]
["ED_QUO441_00327","Quoted Services",null,"","ED_QUO441_00327",""]
["ED_QUO441_00328","Quoted Services",null,"","ED_QUO441_00328",""]
["ED_QUO441_00329","Quoted Services",null,"","ED_QUO441_00329",""]
["ED_QUO441_00330","Quoted Services",null,"","ED_QUO441_00330",""]
["ED_QUO441_00331","Quoted Services",null,"","ED_QUO441_00331",""]
["ED_QUO441_00332","Quoted Services",null,"","ED_QUO441_00332",""]
["ED_QUO441_00333","Quoted Services",null,"","ED_QUO441_00333",""]
["ED_QUO441_00334","Quoted Services",null,"","ED_QUO441_00334",""]
["ED_QUO441_00335","Quoted Services",null,"","ED_QUO441_00335",""]
["ED_QUO441_00336","Quoted Services",null,"","ED_QUO441_00336",""]
["ED_QUO441_00337","Quoted Services",null,"","ED_QUO441_00337",""]
["ED_QUO441_00338","Quoted Services",null,"","ED_QUO441_00338",""]
["ED_QUO441_00339","Quoted Services",null,"","ED_QUO441_00339",""]
["ED_QUO441_00340","Quoted Services",null,"","ED_QUO441_00340",""]
["ED_QUO441_00341","Quoted Services",null,"","ED_QUO441_00341",""]
["ED_QUO441_00342","Quoted Services",null,"","ED_QUO441_00342",""]
["ED_QUO441_00343","Quoted Services",null,"","ED_QUO441_00343",""]
["ED_QUO441_00344","Quoted Services",null,"","ED_QUO441_00344",""]
["ED_QUO441_00345","Quoted Services",null,"","ED_QUO441_00345",""]
["ED_QUO441_00346","Quoted Services",null,"","ED_QUO441_00346",""]
["ED_QUO441_00347","Quoted Services",null,"","ED_QUO441_00347",""]
["ED_QUO441_00348","Quoted Services",null,"","ED_QUO441_00348",""]
["ED_QUO441_00349","Quoted Services",null,"","ED_QUO441_00349",""]
["ED_QUO441_00350","Quoted Services",null,"","ED_QUO441_00350",""]
["ED_QUO441_00351","Quoted Services",null,"","ED_QUO441_00351",""]
["ED_QUO441_00352","Quoted Services",null,"","ED_QUO441_00352",""]
["ED_QUO441_00353","Quoted Services",null,"","ED_QUO441_00353",""]
["ED_QUO441_00354","Quoted Services",null,"","ED_QUO441_00354",""]
["ED_QUO441_00355","Quoted Services",null,"","ED_QUO441_00355",""]
["ED_QUO441_00356","Quoted Services",null,"","ED_QUO441_00356",""]
["ED_QUO441_00357","Quoted Services",null,"","ED_QUO441_00357",""]
["ED_QUO441_00358","Quoted Services",null,"","ED_QUO441_00358",""]
["ED_QUO441_00359","Quoted Services",null,"","ED_QUO441_00359",""]
["ED_QUO441_00360","Quoted Services",null,"","ED_QUO441_00360",""]
["ED_QUO441_00361","Quoted Services",null,"","ED_QUO441_00361",""]
["ED_QUO441_00362","Quoted Services",null,"","ED_QUO441_00362",""]
["ED_QUO441_00363","Quoted Services",null,"","ED_QUO441_00363",""]
["ED_QUO441_00364","Quoted Services",null,"","ED_QUO441_00364",""]
["ED_QUO441_00365","Quoted Services",null,"","ED_QUO441_00365",""]
["ED_QUO441_00366","Quoted Services",null,"","ED_QUO441_00366",""]
["ED_QUO441_00367","Quoted Services",null,"","ED_QUO441_00367",""]
["ED_QUO441_00368","Quoted Services",null,"","ED_QUO441_00368",""]
["ED_QUO441_00369","Quoted Services",null,"","ED_QUO441_00369",""]
["ED_QUO441_00370","Quoted Services",null,"","ED_QUO441_00370",""]
["ED_QUO441_00371","Quoted Services",null,"","ED_QUO441_00371",""]
["ED_QUO441_00372","Quoted Services",null,"","ED_QUO441_00372",""]
["ED_QUO441_00373","Quoted Services",null,"","ED_QUO441_00373",""]
["ED_QUO441_00374","Quoted Services",null,"","ED_QUO441_00374",""]
["ED_QUO441_00375","Quoted Services",null,"","ED_QUO441_00375",""]
["ED_QUO441_00376","Quoted Services",null,"","ED_QUO441_00376",""]
["ED_QUO441_00377","Quoted Services",null,"","ED_QUO441_00377",""]
["ED_QUO441_00378","Quoted Services",null,"","ED_QUO441_00378",""]
["ED_QUO441_00379","Quoted Services",null,"","ED_QUO441_00379",""]
["ED_QUO441_00380","Quoted Services",null,"","ED_QUO441_00380",""]
["ED_QUO441_00381","Quoted Services",null,"","ED_QUO441_00381",""]
["ED_QUO441_00382","Quoted Services",null,"","ED_QUO441_00382",""]
["ED_QUO441_00383","Quoted Services",null,"","ED_QUO441_00383",""]
["ED_QUO441_00384","Quoted Services",null,"","ED_QUO441_00384",""]
["ED_QUO441_00385","Quoted Services",null,"","ED_QUO441_00385",""]
["ED_QUO441_00386","Quoted Services",null,"","ED_QUO441_00386",""]
["ED_QUO441_00387","Quoted Services",null,"","ED_QUO441_00387",""]
["ED_QUO441_00388","Quoted Services",null,"","ED_QUO441_00388",""]
["ED_QUO441_00389","Quoted Services",null,"","ED_QUO441_00389",""]
["ED_QUO441_00390","Quoted Services",null,"","ED_QUO441_00390",""]
["ED_QUO441_00391","Quoted Services",null,"","ED_QUO441_00391",""]
["ED_QUO441_00392","Quoted Services",null,"","ED_QUO441_00392",""]
["ED_QUO441_00393","Quoted Services",null,"","ED_QUO441_00393",""]
["ED_QUO441_00394","Quoted Services",null,"","ED_QUO441_00394",""]
["ED_QUO441_00395","Quoted Services",null,"","ED_QUO441_00395",""]
["ED_QUO441_00396","Quoted Services",null,"","ED_QUO441_00396",""]
["ED_QUO441_00397","Quoted Services",null,"","ED_QUO441_00397",""]
["ED_QUO441_00398","Quoted Services",null,"","ED_QUO441_00398",""]
["ED_QUO441_00399","Quoted Services",null,"","ED_QUO441_00399",""]
["ED_QUO441_00400","Quoted Services",null,"","ED_QUO441_00400",""]
["ED_QUO441_00401","Quoted Services",null,"","ED_QUO441_00401",""]
["ED_QUO441_00402","Quoted Services",null,"","ED_QUO441_00402",""]
["ED_QUO441_00403","Quoted Services",null,"","ED_QUO441_00403",""]
["ED_QUO441_00404","Quoted Services",null,"","ED_QUO441_00404",""]
["ED_QUO441_00405","Quoted Services",null,"","ED_QUO441_00405",""]
["ED_QUO441_00406","Quoted Services",null,"","ED_QUO441_00406",""]
["ED_QUO441_00407","Quoted Services",null,"","ED_QUO441_00407",""]
["ED_QUO441_00408","Quoted Services",null,"","ED_QUO441_00408",""]
["ED_QUO441_00409","Quoted Services",null,"","ED_QUO441_00409",""]
["ED_QUO441_00410","Quoted Services",null,"","ED_QUO441_00410",""]
["ED_QUO441_00411","Quoted Services",null,"","ED_QUO441_00411",""]
["ED_QUO441_00412","Quoted Services",null,"","ED_QUO441_00412",""]
["ED_QUO441_00413","Quoted Services",null,"","ED_QUO441_00413",""]
["ED_QUO441_00414","Quoted Services",null,"","ED_QUO441_00414",""]
["ED_QUO441_00415","Quoted Services",null,"","ED_QUO441_00415",""]
["ED_QUO441_00416","Quoted Services",null,"","ED_QUO441_00416",""]
["ED_QUO441_00417","Quoted Services",null,"","ED_QUO441_00417",""]
["ED_QUO441_00418","Quoted Services",null,"","ED_QUO441_00418",""]
["ED_QUO441_00419","Quoted Services",null,"","ED_QUO441_00419",""]
["ED_QUO441_00420","Quoted Services",null,"","ED_QUO441_00420",""]
["ED_QUO441_00421","Quoted Services",null,"","ED_QUO441_00421",""]
["ED_QUO441_00422","Quoted Services",null,"","ED_QUO441_00422",""]
["ED_QUO441_00423","Quoted Services",null,"","ED_QUO441_00423",""]
["ED_QUO441_00424","Quoted Services",null,"","ED_QUO441_00424",""]
["ED_QUO441_00425","Quoted Services",null,"","ED_QUO441_00425",""]
["ED_QUO441_00426","Quoted Services",null,"","ED_QUO441_00426",""]
["ED_QUO441_00427","Quoted Services",null,"","ED_QUO441_00427",""]
["ED_QUO441_00428","Quoted Services",null,"","ED_QUO441_00428",""]
["ED_QUO441_00429","Quoted Services",null,"","ED_QUO441_00429",""]
["ED_QUO441_00430","Quoted Services",null,"","ED_QUO441_00430",""]
["ED_QUO441_00431","Quoted Services",null,"","ED_QUO441_00431",""]
["ED_QUO441_00432","Quoted Services",null,"","ED_QUO441_00432",""]
["ED_QUO441_00433","Quoted Services",null,"","ED_QUO441_00433",""]
["ED_QUO441_00434","Quoted Services",null,"","ED_QUO441_00434",""]
["ED_QUO441_00435","Quoted Services",null,"","ED_QUO441_00435",""]
["ED_QUO441_00436","Quoted Services",null,"","ED_QUO441_00436",""]
["ED_QUO441_00437","Quoted Services",null,"","ED_QUO441_00437",""]
["ED_QUO441_00438","Quoted Services",null,"","ED_QUO441_00438",""]
["ED_QUO441_00439","Quoted Services",null,"","ED_QUO441_00439",""]
["ED_QUO441_00440","Quoted Services",null,"","ED_QUO441_00440",""]
["ED_QUO441_00441","Quoted Services",null,"","ED_QUO441_00441",""]
["ED_QUO441_00442","Quoted Services",null,"","ED_QUO441_00442",""]
["ED_QUO441_00443","Quoted Services",null,"","ED_QUO441_00443",""]
["ED_QUO441_00444","Quoted Services",null,"","ED_QUO441_00444",""]
["ED_QUO441_00445","Quoted Services",null,"","ED_QUO441_00445",""]
["ED_QUO441_00446","Quoted Services",null,"","ED_QUO441_00446",""]
["ED_QUO441_00447","Quoted Services",null,"","ED_QUO441_00447",""]
["ED_QUO441_00448","Quoted Services",null,"","ED_QUO441_00448",""]
["ED_QUO441_00449","Quoted Services",null,"","ED_QUO441_00449",""]
["ED_QUO441_00450","Quoted Services",null,"","ED_QUO441_00450",""]
["ED_QUO441_00451","Quoted Services",null,"","ED_QUO441_00451",""]
["ED_QUO441_00452","Quoted Services",null,"","ED_QUO441_00452",""]
["ED_QUO441_00453","Quoted Services",null,"","ED_QUO441_00453",""]
["ED_QUO441_00454","Quoted Services",null,"","ED_QUO441_00454",""]
["ED_QUO441_00455","Quoted Services",null,"","ED_QUO441_00455",""]
["ED_QUO441_00456","Quoted Services",null,"","ED_QUO441_00456",""]
["ED_QUO441_00457","Quoted Services",null,"","ED_QUO441_00457",""]
["ED_QUO441_00458","Quoted Services",null,"","ED_QUO441_00458",""]
["ED_QUO441_00459","Quoted Services",null,"","ED_QUO441_00459",""]
["ED_QUO441_00460","Quoted Services",null,"","ED_QUO441_00460",""]
["ED_QUO441_00461","Quoted Services",null,"","ED_QUO441_00461",""]
["ED_QUO441_00462","Quoted Services",null,"","ED_QUO441_00462",""]
["ED_QUO441_00463","Quoted Services",null,"","ED_QUO441_00463",""]
["ED_QUO441_00464","Quoted Services",null,"","ED_QUO441_00464",""]
["ED_QUO441_00465","Quoted Services",null,"","ED_QUO441_00465",""]
["ED_QUO441_00466","Quoted Services",null,"","ED_QUO441_00466",""]
["ED_QUO441_00467","Quoted Services",null,"","ED_QUO441_00467",""]
["ED_QUO441_00468","Quoted Services",null,"","ED_QUO441_00468",""]
["ED_QUO441_00469","Quoted Services",null,"","ED_QUO441_00469",""]
["ED_QUO441_00470","Quoted Services",null,"","ED_QUO441_00470",""]
["ED_QUO441_00471","Quoted Services",null,"","ED_QUO441_00471",""]
["ED_QUO441_00472","Quoted Services",null,"","ED_QUO441_00472",""]
["ED_QUO441_00473","Quoted Services",null,"","ED_QUO441_00473",""]

{"sheet":"5.2 Asset Age Profile","index":17,"n_rows":148,"n_cols":140,"rows_kept":148,"cut":false,"hidden":false,"merged":[[8,13,8,24]]}
[null,{"$f":"(LOOKUP(dms_Model,dms_Model_List,dms_Worksheet_List))","v":"REGULATORY REPORTING STATEMENT"}]
[null,"Australian Distribution Co."]
[null,{"$f":"CONCATENATE(\"Category Analysis RIN response \",CRY)","v":"Category Analysis RIN response 2014-15"}]
[null,"5.2 ASSET AGE PROFILE"]
[]
[null,"TABLE 5.2.1 - ASSET AGE PROFILE"]
[null,null,null,null,1,null,null,null,null,null,null,null,null,null,null,2,null,null,null,null,null,null,null,null,null,null,3]
[]
[null,null,null,null,null,null,null,null,null,null,null,null,null,"ECONOMIC LIFE (YEARS)",null,null,null,null,null,null,null,null,null,null,null,null,null,null,null,null,null,null,null,null,null,"INSTALLED ASSETS -˃ QUANTITY CURRENTLY IN COMMISSION BY YEAR"]
[null,"ASSET GROUP","ASSET CATEGORY",null,"DNSP NAME","SERVICE","ASSET GROUP","ASSET CATEGORY","DATA TYPE","DATA TYPE SUBCATEGORY","MEASUREMENT","DENOMINATION",null,"MEAN ",null,"DNSP NAME","SERVICE","ASSET GROUP","ASSET CATEGORY","DATA TYPE","DATA TYPE SUBCATEGORY","MEASUREMENT","DENOMINATION",null,"STANDARD DEVIATION ",null,"DNSP NAME","SERVICE","ASSET GROUP","ASSET CATEGORY","DATA TYPE","DATA TYPE SUBCATEGORY","MEASUREMENT","DENOMINATION",null,"2014-15","2013-14","2012-13","2011-12","2010-11","2009-10","2008-09","2007-08","2006-07","2005-06","2004-05","2003-04","2002-03","2001-02","2000-01","1999-00","1998-99","1997-98","1996-97","1995-96","1994-95","1993-94","1992-93","1991-92","1990-91","1989-90","1988-89","1987-88","1986-87","1985-86","1984-85","1983-84","1982-83","1981-82","1980-81","1979-80","1978-79","1977-78","1976-77","1975-76","1974-75","1973-74","1972-73","1971-72","1970-71","1969-70","1968-69","1967-68","1966-67","1965-66","1964-65","1963-64","1962-63","1961-62","1960-61","1959-60","1958-59","1957-58","1956-57","1955-56","1954-55","1953-54","1952-53","1951-52","1950-51","1949-50","1948-49","1947-48","1946-47","1945-46","1944-45","1943-44","1942-43","1941-42","1940-41","1939-40","1938-39","1937-38","1936-37","1935-36","1934-35","1933-34","1932-33","1931-32","1930-31","1929-30","1928-29","1927-28","1926-27","1925-26","1924-25","1923-24","1922-23","1921-22","1920-21","1919-20","1918-19","1917-18","1916-17","1915-16","1914-15","1913-14","1912-13","1911-12","1910-11"]
["ED_ASS521_00001","POLES BY: \nHIGHEST OPERATING VOLTAGE ; MATERIAL TYPE;  STAKING (IF WOOD)","Staking of a wooden pole",null,"DNSP NAME","REPEX","POLES",{"$f":"C11","v":"Staking of a wooden pole"},"DESCRIPTOR METRIC","MEAN ECONOMIC LIFE","YEARS","NUMBER",null,{"$f":"'[2]5.2 Asset Age Profile'!N11+'[3]5.2 Asset Age Profile'!N11","v":0},{"$f":"'[2]5.2 Asset Age Profile'!O11+'[3]5.2 Asset Age Profile'!O11","v":0},{"$f":"'[2]5.2 Asset Age Profile'!P11+'[3]5.2 Asset Age Profile'!P11","v":0},{"$f":"'[2]5.2 Asset Age Profile'!Q11+'[3]5.2 Asset Age Profile'!Q11","v":0},{"$f":"'[2]5.2 Asset Age Profile'!R11+'[3]5.2 Asset Age Profile'!R11","v":0},{"$f":"'[2]5.2 Asset Age Profile'!S11+'[3]5.2 Asset Age Profile'!S11","v":0},{"$f":"'[2]5.2 Asset Age Profile'!T11+'[3]5.2 Asset Age Profile'!T11","v":0},{"$f":"'[2]5.2 Asset Age Profile'!U11+'[3]5.2 Asset Age Profile'!U11","v":0},{"$f":"'[2]5.2 Asset Age Profile'!V11+'[3]5.2 Asset Age Profile'!V11","v":0},{"$f":"'[2]5.2 Asset Age Profile'!W11+'[3]5.2 Asset Age Profile'!W11","v":0},{"$f":"'[2]5.2 Asset Age Profile'!X11+'[3]5.2 Asset Age Profile'!X11","v":0},{"$f":"'[2]5.2 Asset Age Profile'!Y11+'[3]5.2 Asset Age Profile'!Y11","v":0},{"$f":"'[2]5.2 Asset Age Profile'!Z11+'[3]5.2 Asset Age Profile'!Z11","v":0},{"$f":"'[2]5.2 Asset Age Profile'!AA11+'[3]5.2 Asset Age Profile'!AA11","v":0},{"$f":"'[2]5.2 Asset Age Profile'!AB11+'[3]5.2 Asset Age Profile'!AB11","v":0},{"$f":"'[2]5.2 Asset Age Profile'!AC11+'[3]5.2 Asset Age Profile'!AC11","v":0},{"$f":"'[2]5.2 Asset Age Profile'!AD11+'[3]5.2 Asset Age Profile'!AD11","v":0},{"$f":"'[2]5.2 Asset Age Profile'!AE11+'[3]5.2 Asset Age Profile'!AE11","v":0},{"$f":"'[2]5.2 Asset Age Profile'!AF11+'[3]5.2 Asset Age Profile'!AF11","v":0},{"$f":"'[2]5.2 Asset Age Profile'!AG11+'[3]5.2 Asset Age Profile'!AG11","v":0},{"$f":"'[2]5.2 Asset Age Profile'!AH11+'[3]5.2 Asset Age Profile'!AH11","v":0},{"$f":"'[2]5.2 Asset Age Profile'!AI11+'[3]5.2 Asset Age Profile'!AI11","v":0},{"$f":"'[2]5.2 Asset Age Profile'!AJ11+'[3]5.2 Asset Age Profile'!AJ11","v":676},{"$f":"'[2]5.2 Asset Age Profile'!AK11+'[3]5.2 Asset Age Profile'!AK11","v":615},{"$f":"'[2]5.2 Asset Age Profile'!AL11+'[3]5.2 Asset Age Profile'!AL11","v":746},{"$f":"'[2]5.2 Asset Age Profile'!AM11+'[3]5.2 Asset Age Profile'!AM11","v":864},{"$f":"'[2]5.2 Asset Age Profile'!AN11+'[3]5.2 Asset Age Profile'!AN11","v":920},{"$f":"'[2]5.2 Asset Age Profile'!AO11+'[3]5.2 Asset Age Profile'!AO11","v":790},{"$f":"'[2]5.2 Asset Age Profile'!AP11+'[3]5.2 Asset Age Profile'!AP11","v":1020},{"$f":"'[2]5.2 Asset Age Profile'!AQ11+'[3]5.2 Asset Age Profile'!AQ11","v":2835},{"$f":"'[2]5.2 Asset Age Profile'!AR11+'[3]5.2 Asset Age Profile'!AR11","v":3012},{"$f":"'[2]5.2 Asset Age Profile'!AS11+'[3]5.2 Asset Age Profile'!AS11","v":1491},{"$f":"'[2]5.2 Asset Age Profile'!AT11+'[3]5.2 Asset Age Profile'!AT11","v":567},{"$f":"'[2]5.2 Asset Age Profile'!AU11+'[3]5.2 Asset Age Profile'!AU11","v":52},{"$f":"'[2]5.2 Asset Age Profile'!AV11+'[3]5.2 Asset Age Profile'!AV11","v":8},{"$f":"'[2]5.2 Asset Age Profile'!AW11+'[3]5.2 Asset Age Profile'!AW11","v":9},{"$f":"'[2]5.2 Asset Age Profile'!AX11+'[3]5.2 Asset Age Profile'!AX11","v":1},{"$f":"'[2]5.2 Asset Age Profile'!AY11+'[3]5.2 Asset Age Profile'!AY11","v":1},{"$f":"'[2]5.2 Asset Age Profile'!AZ11+'[3]5.2 Asset Age Profile'!AZ11","v":0},{"$f":"'[2]5.2 Asset Age Profile'!BA11+'[3]5.2 Asset Age Profile'!BA11","v":0},{"$f":"'[2]5.2 Asset Age Profile'!BB11+'[3]5.2 Asset Age Profile'!BB11","v":0},{"$f":"'[2]5.2 Asset Age Profile'!BC11+'[3]5.2 Asset Age Profile'!BC11","v":0},{"$f":"'[2]5.2 Asset Age Profile'!BD11+'[3]5.2 Asset Age Profile'!BD11","v":0},{"$f":"'[2]5.2 Asset Age Profile'!BE11+'[3]5.2 Asset Age Profile'!BE11","v":0},{"$f":"'[2]5.2 Asset Age Profile'!BF11+'[3]5.2 Asset Age Profile'!BF11","v":0},{"$f":"'[2]5.2 Asset Age Profile'!BG11+'[3]5.2 Asset Age Profile'!BG11","v":0},{"$f":"'[2]5.2 Asset Age Profile'!BH11+'[3]5.2 Asset Age Profile'!BH11","v":0},{"$f":"'[2]5.2 Asset Age Profile'!BI11+'[3]5.2 Asset Age Profile'!BI11","v":0},{"$f":"'[2]5.2 Asset Age Profile'!BJ11+'[3]5.2 Asset Age Profile'!BJ11","v":0},{"$f":"'[2]5.2 Asset Age Profile'!BK11+'[3]5.2 Asset Age Profile'!BK11","v":0},{"$f":"'[2]5.2 Asset Age Profile'!BL11+'[3]5.2 Asset Age Profile'!BL11","v":0},{"$f":"'[2]5.2 Asset Age Profile'!BM11+'[3]5.2 Asset Age Profile'!BM11","v":0},{"$f":"'[2]5.2 Asset Age Profile'!BN11+'[3]5.2 Asset Age Profile'!BN11","v":0},{"$f":"'[2]5.2 Asset Age Profile'!BO11+'[3]5.2 Asset Age Profile'!BO11","v":0},{"$f":"'[2]5.2 Asset Age Profile'!BP11+'[3]5.2 Asset Age Profile'!BP11","v":0},{"$f":"'[2]5.2 Asset Age Profile'!BQ11+'[3]5.2 Asset Age Profile'!BQ11","v":0},{"$f":"'[2]5.2 Asset Age Profile'!BR11+'[3]5.2 Asset Age Profile'!BR11","v":0},{"$f":"'[2]5.2 Asset Age Profile'!BS11+'[3]5.2 Asset Age Profile'!BS11","v":0},{"$f":"'[2]5.2 Asset Age Profile'!BT11+'[3]5.2 Asset Age Profile'!BT11","v":0},{"$f":"'[2]5.2 Asset Age Profile'!BU11+'[3]5.2 Asset Age Profile'!BU11","v":0},{"$f":"'[2]5.2 Asset Age Profile'!BV11+'[3]5.2 Asset Age Profile'!BV11","v":0},{"$f":"'[2]5.2 Asset Age Profile'!BW11+'[3]5.2 Asset Age Profile'!BW11","v":0},{"$f":"'[2]5.2 Asset Age Profile'!BX11+'[3]5.2 Asset Age Profile'!BX11","v":0},{"$f":"'[2]5.2 Asset Age Profile'!BY11+'[3]5.2 Asset Age Profile'!BY11","v":0},{"$f":"'[2]5.2 Asset Age Profile'!BZ11+'[3]5.2 Asset Age Profile'!BZ11","v":0},{"$f":"'[2]5.2 Asset Age Profile'!CA11+'[3]5.2 Asset Age Profile'!CA11","v":0},{"$f":"'[2]5.2 Asset Age Profile'!CB11+'[3]5.2 Asset Age Profile'!CB11","v":0},{"$f":"'[2]5.2 Asset Age Profile'!CC11+'[3]5.2 Asset Age Profile'!CC11","v":0},{"$f":"'[2]5.2 Asset Age Profile'!CD11+'[3]5.2 Asset Age Profile'!CD11","v":0},{"$f":"'[2]5.2 Asset Age Profile'!CE11+'[3]5.2 Asset Age Profile'!CE11","v":0},{"$f":"'[2]5.2 Asset Age Profile'!CF11+'[3]5.2 Asset Age Profile'!CF11","v":0},{"$f":"'[2]5.2 Asset Age Profile'!CG11+'[3]5.2 Asset Age Profile'!CG11","v":0},{"$f":"'[2]5.2 Asset Age Profile'!CH11+'[3]5.2 Asset Age Profile'!CH11","v":0},{"$f":"'[2]5.2 Asset Age Profile'!CI11+'[3]5.2 Asset Age Profile'!CI11","v":0},{"$f":"'[2]5.2 Asset Age Profile'!CJ11+'[3]5.2 Asset Age Profile'!CJ11","v":0},{"$f":"'[2]5.2 Asset Age Profile'!CK11+'[3]5.2 Asset Age Profile'!CK11","v":0},{"$f":"'[2]5.2 Asset Age Profile'!CL11+'[3]5.2 Asset Age Profile'!CL11","v":0},{"$f":"'[2]5.2 Asset Age Profile'!CM11+'[3]5.2 Asset Age Profile'!CM11","v":0},{"$f":"'[2]5.2 Asset Age Profile'!CN11+'[3]5.2 Asset Age Profile'!CN11","v":0},{"$f":"'[2]5.2 Asset Age Profile'!CO11+'[3]5.2 Asset Age Profile'!CO11","v":0},{"$f":"'[2]5.2 Asset Age Profile'!CP11+'[3]5.2 Asset Age Profile'!CP11","v":0},{"$f":"'[2]5.2 Asset Age Profile'!CQ11+'[3]5.2 Asset Age Profile'!CQ11","v":0},{"$f":"'[2]5.2 Asset Age Profile'!CR11+'[3]5.2 Asset Age Profile'!CR11","v":0},{"$f":"'[2]5.2 Asset Age Profile'!CS11+'[3]5.2 Asset Age Profile'!CS11","v":0},{"$f":"'[2]5.2 Asset Age Profile'!CT11+'[3]5.2 Asset Age Profile'!CT11","v":0},{"$f":"'[2]5.2 Asset Age Profile'!CU11+'[3]5.2 Asset Age Profile'!CU11","v":0},{"$f":"'[2]5.2 Asset Age Profile'!CV11+'[3]5.2 Asset Age Profile'!CV11","v":0},{"$f":"'[2]5.2 Asset Age Profile'!CW11+'[3]5.2 Asset Age Profile'!CW11","v":0},{"$f":"'[2]5.2 Asset Age Profile'!CX11+'[3]5.2 Asset Age Profile'!CX11","v":0},{"$f":"'[2]5.2 Asset Age Profile'!CY11+'[3]5.2 Asset Age Profile'!CY11","v":0},{"$f":"'[2]5.2 Asset Age Profile'!CZ11+'[3]5.2 Asset Age Profile'!CZ11","v":0},{"$f":"'[2]5.2 Asset Age Profile'!DA11+'[3]5.2 Asset Age Profile'!DA11","v":0},{"$f":"'[2]5.2 Asset Age Profile'!DB11+'[3]5.2 Asset Age Profile'!DB11","v":0},{"$f":"'[2]5.2 Asset Age Profile'!DC11+'[3]5.2 Asset Age Profile'!DC11","v":0},{"$f":"'[2]5.2 Asset Age Profile'!DD11+'[3]5.2 Asset Age Profile'!DD11","v":0},{"$f":"'[2]5.2 Asset Age Profile'!DE11+'[3]5.2 Asset Age Profile'!DE11","v":0},{"$f":"'[2]5.2 Asset Age Profile'!DF11+'[3]5.2 Asset Age Profile'!DF11","v":0},{"$f":"'[2]5.2 Asset Age Profile'!DG11+'[3]5.2 Asset Age Profile'!DG11","v":0},{"$f":"'[2]5.2 Asset Age Profile'!DH11+'[3]5.2 Asset Age Profile'!DH11","v":0},{"$f":"'[2]5.2 Asset Age Profile'!DI11+'[3]5.2 Asset Age Profile'!DI11","v":0},{"$f":"'[2]5.2 Asset Age Profile'!DJ11+'[3]5.2 Asset Age Profile'!DJ11","v":0},{"$f":"'[2]5.2 Asset Age Profile'!DK11+'[3]5.2 Asset Age Profile'!DK11","v":0},{"$f":"'[2]5.2 Asset Age Profile'!DL11+'[3]5.2 Asset Age Profile'!DL11","v":0},{"$f":"'[2]5.2 Asset Age Profile'!DM11+'[3]5.2 Asset Age Profile'!DM11","v":0},{"$f":"'[2]5.2 Asset Age Profile'!DN11+'[3]5.2 Asset Age Profile'!DN11","v":0},{"$f":"'[2]5.2 Asset Age Profile'!DO11+'[3]5.2 Asset Age Profile'!DO11","v":0},{"$f":"'[2]5.2 Asset Age Profile'!DP11+'[3]5.2 Asset Age Profile'!DP11","v":0},{"$f":"'[2]5.2 Asset Age Profile'!DQ11+'[3]5.2 Asset Age Profile'!DQ11","v":0},{"$f":"'[2]5.2 Asset Age Profile'!DR11+'[3]5.2 Asset Age Profile'!DR11","v":0},{"$f":"'[2]5.2 Asset Age Profile'!DS11+'[3]5.2 Asset Age Profile'!DS11","v":0},{"$f":"'[2]5.2 Asset Age Profile'!DT11+'[3]5.2 Asset Age Profile'!DT11","v":0},{"$f":"'[2]5.2 Asset Age Profile'!DU11+'[3]5.2 Asset Age Profile'!DU11","v":0},{"$f":"'[2]5.2 Asset Age Profile'!DV11+'[3]5.2 Asset Age Profile'!DV11","v":0},{"$f":"'[2]5.2 Asset Age Profile'!DW11+'[3]5.2 Asset Age Profile'!DW11","v":0},{"$f":"'[2]5.2 Asset Age Profile'!DX11+'[3]5.2 Asset Age Profile'!DX11","v":0},{"$f":"'[2]5.2 Asset Age Profile'!DY11+'[3]5.2 Asset Age Profile'!DY11","v":0},{"$f":"'[2]5.2 Asset Age Profile'!DZ11+'[3]5.2 Asset Age Profile'!DZ11","v":0},{"$f":"'[2]5.2 Asset Age Profile'!EA11+'[3]5.2 Asset Age Profile'!EA11","v":0},{"$f":"'[2]5.2 Asset Age Profile'!EB11+'[3]5.2 Asset Age Profile'!EB11","v":0},{"$f":"'[2]5.2 Asset Age Profile'!EC11+'[3]5.2 Asset Age Profile'!EC11","v":0},{"$f":"'[2]5.2 Asset Age Profile'!ED11+'[3]5.2 Asset Age Profile'!ED11","v":0},{"$f":"'[2]5.2 Asset Age Profile'!EE11+'[3]5.2 Asset Age Profile'!EE11","v":0},{"$f":"'[2]5.2 Asset Age Profile'!EF11+'[3]5.2 Asset Age Profile'!EF11","v":0},{"$f":"'[2]5.2 Asset Age Profile'!EG11+'[3]5.2 Asset Age Profile'!EG11","v":0},{"$f":"'[2]5.2 Asset Age Profile'!EH11+'[3]5.2 Asset Age Profile'!EH11","v":0},{"$f":"'[2]5.2 Asset Age Profile'!EI11+'[3]5.2 Asset Age Profile'!EI11","v":0},{"$f":"'[2]5.2 Asset Age Profile'!EJ11+'[3]5.2 Asset Age Profile'!EJ11","v":0}]
["ED_ASS521_00002",null,"˂ = 1 kV; Wood",null,"TNSP NAME","REPEX","POLES",{"$f":"C12","v":"˂ = 1 kV; Wood"},"DESCRIPTOR METRIC","MEAN ECONOMIC LIFE","YEARS","NUMBER",null,{"$f":"'[2]5.2 Asset Age Profile'!N12+'[3]5.2 Asset Age Profile'!N12","v":42},{"$f":"'[2]5.2 Asset Age Profile'!O12+'[3]5.2 Asset Age Profile'!O12","v":0},{"$f":"'[2]5.2 Asset Age Profile'!P12+'[3]5.2 Asset Age Profile'!P12","v":0},{"$f":"'[2]5.2 Asset Age Profile'!Q12+'[3]5.2 Asset Age Profile'!Q12","v":0},{"$f":"'[2]5.2 Asset Age Profile'!R12+'[3]5.2 Asset Age Profile'!R12","v":0},{"$f":"'[2]5.2 Asset Age Profile'!S12+'[3]5.2 Asset Age Profile'!S12","v":0},{"$f":"'[2]5.2 Asset Age Profile'!T12+'[3]5.2 Asset Age Profile'!T12","v":0},{"$f":"'[2]5.2 Asset Age Profile'!U12+'[3]5.2 Asset Age Profile'!U12","v":0},{"$f":"'[2]5.2 Asset Age Profile'!V12+'[3]5.2 Asset Age Profile'!V12","v":0},{"$f":"'[2]5.2 Asset Age Profile'!W12+'[3]5.2 Asset Age Profile'!W12","v":0},{"$f":"'[2]5.2 Asset Age Profile'!X12+'[3]5.2 Asset Age Profile'!X12","v":0},{"$f":"'[2]5.2 Asset Age Profile'!Y12+'[3]5.2 Asset Age Profile'!Y12","v":22},{"$f":"'[2]5.2 Asset Age Profile'!Z12+'[3]5.2 Asset Age Profile'!Z12","v":0},{"$f":"'[2]5.2 Asset Age Profile'!AA12+'[3]5.2 Asset Age Profile'!AA12","v":0},{"$f":"'[2]5.2 Asset Age Profile'!AB12+'[3]5.2 Asset Age Profile'!AB12","v":0},{"$f":"'[2]5.2 Asset Age Profile'!AC12+'[3]5.2 Asset Age Profile'!AC12","v":0},{"$f":"'[2]5.2 Asset Age Profile'!AD12+'[3]5.2 Asset Age Profile'!AD12","v":0},{"$f":"'[2]5.2 Asset Age Profile'!AE12+'[3]5.2 Asset Age Profile'!AE12","v":0},{"$f":"'[2]5.2 Asset Age Profile'!AF12+'[3]5.2 Asset Age Profile'!AF12","v":0},{"$f":"'[2]5.2 Asset Age Profile'!AG12+'[3]5.2 Asset Age Profile'!AG12","v":0},{"$f":"'[2]5.2 Asset Age Profile'!AH12+'[3]5.2 Asset Age Profile'!AH12","v":0},{"$f":"'[2]5.2 Asset Age Profile'!AI12+'[3]5.2 Asset Age Profile'!AI12","v":0},{"$f":"'[2]5.2 Asset Age Profile'!AJ12+'[3]5.2 Asset Age Profile'!AJ12","v":3},{"$f":"'[2]5.2 Asset Age Profile'!AK12+'[3]5.2 Asset Age Profile'!AK12","v":3},{"$f":"'[2]5.2 Asset Age Profile'!AL12+'[3]5.2 Asset Age Profile'!AL12","v":5},{"$f":"'[2]5.2 Asset Age Profile'!AM12+'[3]5.2 Asset Age Profile'!AM12","v":8},{"$f":"'[2]5.2 Asset Age Profile'!AN12+'[3]5.2 Asset Age Profile'!AN12","v":19},{"$f":"'[2]5.2 Asset Age Profile'!AO12+'[3]5.2 Asset Age Profile'!AO12","v":10},{"$f":"'[2]5.2 Asset Age Profile'!AP12+'[3]5.2 Asset Age Profile'!AP12","v":9},{"$f":"'[2]5.2 Asset Age Profile'!AQ12+'[3]5.2 Asset Age Profile'!AQ12","v":16},{"$f":"'[2]5.2 Asset Age Profile'!AR12+'[3]5.2 Asset Age Profile'!AR12","v":26},{"$f":"'[2]5.2 Asset Age Profile'!AS12+'[3]5.2 Asset Age Profile'!AS12","v":28},{"$f":"'[2]5.2 Asset Age Profile'!AT12+'[3]5.2 Asset Age Profile'!AT12","v":73},{"$f":"'[2]5.2 Asset Age Profile'!AU12+'[3]5.2 Asset Age Profile'!AU12","v":75},{"$f":"'[2]5.2 Asset Age Profile'!AV12+'[3]5.2 Asset Age Profile'!AV12","v":92},{"$f":"'[2]5.2 Asset Age Profile'!AW12+'[3]5.2 Asset Age Profile'!AW12","v":54},{"$f":"'[2]5.2 Asset Age Profile'!AX12+'[3]5.2 Asset Age Profile'!AX12","v":80},{"$f":"'[2]5.2 Asset Age Profile'!AY12+'[3]5.2 Asset Age Profile'!AY12","v":91},{"$f":"'[2]5.2 Asset Age Profile'!AZ12+'[3]5.2 Asset Age Profile'!AZ12","v":12},{"$f":"'[2]5.2 Asset Age Profile'!BA12+'[3]5.2 Asset Age Profile'!BA12","v":36},{"$f":"'[2]5.2 Asset Age Profile'!BB12+'[3]5.2 Asset Age Profile'!BB12","v":4},{"$f":"'[2]5.2 Asset Age Profile'!BC12+'[3]5.2 Asset Age Profile'!BC12","v":61},{"$f":"'[2]5.2 Asset Age Profile'!BD12+'[3]5.2 Asset Age Profile'!BD12","v":71},{"$f":"'[2]5.2 Asset Age Profile'!BE12+'[3]5.2 Asset Age Profile'!BE12","v":17},{"$f":"'[2]5.2 Asset Age Profile'!BF12+'[3]5.2 Asset Age Profile'!BF12","v":43},{"$f":"'[2]5.2 Asset Age Profile'!BG12+'[3]5.2 Asset Age Profile'!BG12","v":24},{"$f":"'[2]5.2 Asset Age Profile'!BH12+'[3]5.2 Asset Age Profile'!BH12","v":25},{"$f":"'[2]5.2 Asset Age Profile'!BI12+'[3]5.2 Asset Age Profile'!BI12","v":72},{"$f":"'[2]5.2 Asset Age Profile'!BJ12+'[3]5.2 Asset Age Profile'!BJ12","v":21},{"$f":"'[2]5.2 Asset Age Profile'!BK12+'[3]5.2 Asset Age Profile'!BK12","v":160},{"$f":"'[2]5.2 Asset Age Profile'!BL12+'[3]5.2 Asset Age Profile'!BL12","v":96},{"$f":"'[2]5.2 Asset Age Profile'!BM12+'[3]5.2 Asset Age Profile'!BM12","v":303},{"$f":"'[2]5.2 Asset Age Profile'!BN12+'[3]5.2 Asset Age Profile'!BN12","v":384},{"$f":"'[2]5.2 Asset Age Profile'!BO12+'[3]5.2 Asset Age Profile'!BO12","v":1146},{"$f":"'[2]5.2 Asset Age Profile'!BP12+'[3]5.2 Asset Age Profile'!BP12","v":161},{"$f":"'[2]5.2 Asset Age Profile'!BQ12+'[3]5.2 Asset Age Profile'!BQ12","v":467},{"$f":"'[2]5.2 Asset Age Profile'!BR12+'[3]5.2 Asset Age Profile'!BR12","v":1197},{"$f":"'[2]5.2 Asset Age Profile'!BS12+'[3]5.2 Asset Age Profile'!BS12","v":117},{"$f":"'[2]5.2 Asset Age Profile'!BT12+'[3]5.2 Asset Age Profile'!BT12","v":102},{"$f":"'[2]5.2 Asset Age Profile'!BU12+'[3]5.2 Asset Age Profile'!BU12","v":352},{"$f":"'[2]5.2 Asset Age Profile'!BV12+'[3]5.2 Asset Age Profile'!BV12","v":28},{"$f":"'[2]5.2 Asset Age Profile'!BW12+'[3]5.2 Asset Age Profile'!BW12","v":1111},{"$f":"'[2]5.2 Asset Age Profile'!BX12+'[3]5.2 Asset Age Profile'!BX12","v":1538},{"$f":"'[2]5.2 Asset Age Profile'!BY12+'[3]5.2 Asset Age Profile'!BY12","v":1948},{"$f":"'[2]5.2 Asset Age Profile'!BZ12+'[3]5.2 Asset Age Profile'!BZ12","v":957},{"$f":"'[2]5.2 Asset Age Profile'!CA12+'[3]5.2 Asset Age Profile'!CA12","v":1050},{"$f":"'[2]5.2 Asset Age Profile'!CB12+'[3]5.2 Asset Age Profile'!CB12","v":752},{"$f":"'[2]5.2 Asset Age Profile'!CC12+'[3]5.2 Asset Age Profile'!CC12","v":1052},{"$f":"'[2]5.2 Asset Age Profile'!CD12+'[3]5.2 Asset Age Profile'!CD12","v":844},{"$f":"'[2]5.2 Asset Age Profile'!CE12+'[3]5.2 Asset Age Profile'!CE12","v":487},{"$f":"'[2]5.2 Asset Age Profile'!CF12+'[3]5.2 Asset Age Profile'!CF12","v":1256},{"$f":"'[2]5.2 Asset Age Profile'!CG12+'[3]5.2 Asset Age Profile'!CG12","v":400},{"$f":"'[2]5.2 Asset Age Profile'!CH12+'[3]5.2 Asset Age Profile'!CH12","v":160},{"$f":"'[2]5.2 Asset Age Profile'!CI12+'[3]5.2 Asset Age Profile'!CI12","v":344},{"$f":"'[2]5.2 Asset Age Profile'!CJ12+'[3]5.2 Asset Age Profile'!CJ12","v":492},{"$f":"'[2]5.2 Asset Age Profile'!CK12+'[3]5.2 Asset Age Profile'!CK12","v":12},{"$f":"'[2]5.2 Asset Age Profile'!CL12+'[3]5.2 Asset Age Profile'!CL12","v":473},{"$f":"'[2]5.2 Asset Age Profile'!CM12+'[3]5.2 Asset Age Profile'!CM12","v":41},{"$f":"'[2]5.2 Asset Age Profile'!CN12+'[3]5.2 Asset Age Profile'!CN12","v":10},{"$f":"'[2]5.2 Asset Age Profile'!CO12+'[3]5.2 Asset Age Profile'!CO12","v":656},{"$f":"'[2]5.2 Asset Age Profile'!CP12+'[3]5.2 Asset Age Profile'!CP12","v":9},{"$f":"'[2]5.2 Asset Age Profile'!CQ12+'[3]5.2 Asset Age Profile'!CQ12","v":11},{"$f":"'[2]5.2 Asset Age Profile'!CR12+'[3]5.2 Asset Age Profile'!CR12","v":9},{"$f":"'[2]5.2 Asset Age Profile'!CS12+'[3]5.2 Asset Age Profile'!CS12","v":9},{"$f":"'[2]5.2 Asset Age Profile'!CT12+'[3]5.2 Asset Age Profile'!CT12","v":9},{"$f":"'[2]5.2 Asset Age Profile'!CU12+'[3]5.2 Asset Age Profile'!CU12","v":9},{"$f":"'[2]5.2 Asset Age Profile'!CV12+'[3]5.2 Asset Age Profile'!CV12","v":9},{"$f":"'[2]5.2 Asset Age Profile'!CW12+'[3]5.2 Asset Age Profile'!CW12","v":43},{"$f":"'[2]5.2 Asset Age Profile'!CX12+'[3]5.2 Asset Age Profile'!CX12","v":9},{"$f":"'[2]5.2 Asset Age Profile'!CY12+'[3]5.2 Asset Age Profile'!CY12","v":290},{"$f":"'[2]5.2 Asset Age Profile'!CZ12+'[3]5.2 Asset Age Profile'!CZ12","v":345},{"$f":"'[2]5.2 Asset Age Profile'!DA12+'[3]5.2 Asset Age Profile'!DA12","v":177},{"$f":"'[2]5.2 Asset Age Profile'!DB12+'[3]5.2 Asset Age Profile'!DB12","v":9},{"$f":"'[2]5.2 Asset Age Profile'!DC12+'[3]5.2 Asset Age Profile'!DC12","v":763},{"$f":"'[2]5.2 Asset Age Profile'!DD12+'[3]5.2 Asset Age Profile'!DD12","v":223},{"$f":"'[2]5.2 Asset Age Profile'!DE12+'[3]5.2 Asset Age Profile'!DE12","v":306},{"$f":"'[2]5.2 Asset Age Profile'!DF12+'[3]5.2 Asset Age Profile'!DF12","v":0},{"$f":"'[2]5.2 Asset Age Profile'!DG12+'[3]5.2 Asset Age Profile'!DG12","v":0},{"$f":"'[2]5.2 Asset Age Profile'!DH12+'[3]5.2 Asset Age Profile'!DH12","v":0},{"$f":"'[2]5.2 Asset Age Profile'!DI12+'[3]5.2 Asset Age Profile'!DI12","v":93},{"$f":"'[2]5.2 Asset Age Profile'!DJ12+'[3]5.2 Asset Age Profile'!DJ12","v":0},{"$f":"'[2]5.2 Asset Age Profile'!DK12+'[3]5.2 Asset Age Profile'!DK12","v":35},{"$f":"'[2]5.2 Asset Age Profile'!DL12+'[3]5.2 Asset Age Profile'!DL12","v":0},{"$f":"'[2]5.2 Asset Age Profile'!DM12+'[3]5.2 Asset Age Profile'!DM12","v":0},{"$f":"'[2]5.2 Asset Age Profile'!DN12+'[3]5.2 Asset Age Profile'!DN12","v":0},{"$f":"'[2]5.2 Asset Age Profile'!DO12+'[3]5.2 Asset Age Profile'!DO12","v":0},{"$f":"'[2]5.2 Asset Age Profile'!DP12+'[3]5.2 Asset Age Profile'!DP12","v":0},{"$f":"'[2]5.2 Asset Age Profile'!DQ12+'[3]5.2 Asset Age Profile'!DQ12","v":0},{"$f":"'[2]5.2 Asset Age Profile'!DR12+'[3]5.2 Asset Age Profile'!DR12","v":0},{"$f":"'[2]5.2 Asset Age Profile'!DS12+'[3]5.2 Asset Age Profile'!DS12","v":21},{"$f":"'[2]5.2 Asset Age Profile'!DT12+'[3]5.2 Asset Age Profile'!DT12","v":10},{"$f":"'[2]5.2 Asset Age Profile'!DU12+'[3]5.2 Asset Age Profile'!DU12","v":0},{"$f":"'[2]5.2 Asset Age Profile'!DV12+'[3]5.2 Asset Age Profile'!DV12","v":0},{"$f":"'[2]5.2 Asset Age Profile'!DW12+'[3]5.2 Asset Age Profile'!DW12","v":0},{"$f":"'[2]5.2 Asset Age Profile'!DX12+'[3]5.2 Asset Age Profile'!DX12","v":0},{"$f":"'[2]5.2 Asset Age Profile'!DY12+'[3]5.2 Asset Age Profile'!DY12","v":0},{"$f":"'[2]5.2 Asset Age Profile'!DZ12+'[3]5.2 Asset Age Profile'!DZ12","v":0},{"$f":"'[2]5.2 Asset Age Profile'!EA12+'[3]5.2 Asset Age Profile'!EA12","v":2},{"$f":"'[2]5.2 Asset Age Profile'!EB12+'[3]5.2 Asset Age Profile'!EB12","v":0},{"$f":"'[2]5.2 Asset Age Profile'!EC12+'[3]5.2 Asset Age Profile'!EC12","v":0},{"$f":"'[2]5.2 Asset Age Profile'!ED12+'[3]5.2 Asset Age Profile'!ED12","v":0},{"$f":"'[2]5.2 Asset Age Profile'!EE12+'[3]5.2 Asset Age Profile'!EE12","v":0},{"$f":"'[2]5.2 Asset Age Profile'!EF12+'[3]5.2 Asset Age Profile'!EF12","v":0},{"$f":"'[2]5.2 Asset Age Profile'!EG12+'[3]5.2 Asset Age Profile'!EG12","v":0},{"$f":"'[2]5.2 Asset Age Profile'!EH12+'[3]5.2 Asset Age Profile'!EH12","v":0},{"$f":"'[2]5.2 Asset Age Profile'!EI12+'[3]5.2 Asset Age Profile'!EI12","v":0},{"$f":"'[2]5.2 Asset Age Profile'!EJ12+'[3]5.2 Asset Age Profile'!EJ12","v":0}]
["ED_ASS521_00003",null,"> 1 kV & < = 11 kV; Wood",null,"TNSP NAME","REPEX","POLES","> 1 kV & < = 11 kV; Wood","DESCRIPTOR METRIC","MEAN ECONOMIC LIFE","YEARS","NUMBER",null,{"$f":"'[2]5.2 Asset Age Profile'!N13+'[3]5.2 Asset Age Profile'!N13","v":42},{"$f":"'[2]5.2 Asset Age Profile'!O13+'[3]5.2 Asset Age Profile'!O13","v":0},{"$f":"'[2]5.2 Asset Age Profile'!P13+'[3]5.2 Asset Age Profile'!P13","v":0},{"$f":"'[2]5.2 Asset Age Profile'!Q13+'[3]5.2 Asset Age Profile'!Q13","v":0},{"$f":"'[2]5.2 Asset Age Profile'!R13+'[3]5.2 Asset Age Profile'!R13","v":0},{"$f":"'[2]5.2 Asset Age Profile'!S13+'[3]5.2 Asset Age Profile'!S13","v":0},{"$f":"'[2]5.2 Asset Age Profile'!T13+'[3]5.2 Asset Age Profile'!T13","v":0},{"$f":"'[2]5.2 Asset Age Profile'!U13+'[3]5.2 Asset Age Profile'!U13","v":0},{"$f":"'[2]5.2 Asset Age Profile'!V13+'[3]5.2 Asset Age Profile'!V13","v":0},{"$f":"'[2]5.2 Asset Age Profile'!W13+'[3]5.2 Asset Age Profile'!W13","v":0},{"$f":"'[2]5.2 Asset Age Profile'!X13+'[3]5.2 Asset Age Profile'!X13","v":0},{"$f":"'[2]5.2 Asset Age Profile'!Y13+'[3]5.2 Asset Age Profile'!Y13","v":22},{"$f":"'[2]5.2 Asset Age Profile'!Z13+'[3]5.2 Asset Age Profile'!Z13","v":0},{"$f":"'[2]5.2 Asset Age Profile'!AA13+'[3]5.2 Asset Age Profile'!AA13","v":0},{"$f":"'[2]5.2 Asset Age Profile'!AB13+'[3]5.2 Asset Age Profile'!AB13","v":0},{"$f":"'[2]5.2 Asset Age Profile'!AC13+'[3]5.2 Asset Age Profile'!AC13","v":0},{"$f":"'[2]5.2 Asset Age Profile'!AD13+'[3]5.2 Asset Age Profile'!AD13","v":0},{"$f":"'[2]5.2 Asset Age Profile'!AE13+'[3]5.2 Asset Age Profile'!AE13","v":0},{"$f":"'[2]5.2 Asset Age Profile'!AF13+'[3]5.2 Asset Age Profile'!AF13","v":0},{"$f":"'[2]5.2 Asset Age Profile'!AG13+'[3]5.2 Asset Age Profile'!AG13","v":0},{"$f":"'[2]5.2 Asset Age Profile'!AH13+'[3]5.2 Asset Age Profile'!AH13","v":0},{"$f":"'[2]5.2 Asset Age Profile'!AI13+'[3]5.2 Asset Age Profile'!AI13","v":0},{"$f":"'[2]5.2 Asset Age Profile'!AJ13+'[3]5.2 Asset Age Profile'!AJ13","v":0},{"$f":"'[2]5.2 Asset Age Profile'!AK13+'[3]5.2 Asset Age Profile'!AK13","v":0},{"$f":"'[2]5.2 Asset Age Profile'!AL13+'[3]5.2 Asset Age Profile'!AL13","v":2},{"$f":"'[2]5.2 Asset Age Profile'!AM13+'[3]5.2 Asset Age Profile'!AM13","v":0},{"$f":"'[2]5.2 Asset Age Profile'!AN13+'[3]5.2 Asset Age Profile'!AN13","v":0},{"$f":"'[2]5.2 Asset Age Profile'!AO13+'[3]5.2 Asset Age Profile'!AO13","v":0},{"$f":"'[2]5.2 Asset Age Profile'!AP13+'[3]5.2 Asset Age Profile'!AP13","v":0},{"$f":"'[2]5.2 Asset Age Profile'!AQ13+'[3]5.2 Asset Age Profile'!AQ13","v":0},{"$f":"'[2]5.2 Asset Age Profile'!AR13+'[3]5.2 Asset Age Profile'!AR13","v":0},{"$f":"'[2]5.2 Asset Age Profile'!AS13+'[3]5.2 Asset Age Profile'!AS13","v":0},{"$f":"'[2]5.2 Asset Age Profile'!AT13+'[3]5.2 Asset Age Profile'!AT13","v":0},{"$f":"'[2]5.2 Asset Age Profile'!AU13+'[3]5.2 Asset Age Profile'!AU13","v":0},{"$f":"'[2]5.2 Asset Age Profile'!AV13+'[3]5.2 Asset Age Profile'!AV13","v":26},{"$f":"'[2]5.2 Asset Age Profile'!AW13+'[3]5.2 Asset Age Profile'!AW13","v":27},{"$f":"'[2]5.2 Asset Age Profile'!AX13+'[3]5.2 Asset Age Profile'!AX13","v":5},{"$f":"'[2]5.2 Asset Age Profile'!AY13+'[3]5.2 Asset Age Profile'!AY13","v":2},{"$f":"'[2]5.2 Asset Age Profile'!AZ13+'[3]5.2 Asset Age Profile'!AZ13","v":1},{"$f":"'[2]5.2 Asset Age Profile'!BA13+'[3]5.2 Asset Age Profile'!BA13","v":0},{"$f":"'[2]5.2 Asset Age Profile'!BB13+'[3]5.2 Asset Age Profile'!BB13","v":0},{"$f":"'[2]5.2 Asset Age Profile'!BC13+'[3]5.2 Asset Age Profile'!BC13","v":1},{"$f":"'[2]5.2 Asset Age Profile'!BD13+'[3]5.2 Asset Age Profile'!BD13","v":0},{"$f":"'[2]5.2 Asset Age Profile'!BE13+'[3]5.2 Asset Age Profile'!BE13","v":0},{"$f":"'[2]5.2 Asset Age Profile'!BF13+'[3]5.2 Asset Age Profile'!BF13","v":0},{"$f":"'[2]5.2 Asset Age Profile'!BG13+'[3]5.2 Asset Age Profile'!BG13","v":1},{"$f":"'[2]5.2 Asset Age Profile'!BH13+'[3]5.2 Asset Age Profile'!BH13","v":0},{"$f":"'[2]5.2 Asset Age Profile'!BI13+'[3]5.2 Asset Age Profile'!BI13","v":0},{"$f":"'[2]5.2 Asset Age Profile'!BJ13+'[3]5.2 Asset Age Profile'!BJ13","v":0},{"$f":"'[2]5.2 Asset Age Profile'!BK13+'[3]5.2 Asset Age Profile'!BK13","v":1},{"$f":"'[2]5.2 Asset Age Profile'!BL13+'[3]5.2 Asset Age Profile'!BL13","v":1},{"$f":"'[2]5.2 Asset Age Profile'!BM13+'[3]5.2 Asset Age Profile'!BM13","v":1},{"$f":"'[2]5.2 Asset Age Profile'!BN13+'[3]5.2 Asset Age Profile'!BN13","v":4},{"$f":"'[2]5.2 Asset Age Profile'!BO13+'[3]5.2 Asset Age Profile'!BO13","v":10},{"$f":"'[2]5.2 Asset Age Profile'!BP13+'[3]5.2 Asset Age Profile'!BP13","v":4},{"$f":"'[2]5.2 Asset Age Profile'!BQ13+'[3]5.2 Asset Age Profile'!BQ13","v":1},{"$f":"'[2]5.2 Asset Age Profile'!BR13+'[3]5.2 Asset Age Profile'!BR13","v":4},{"$f":"'[2]5.2 Asset Age Profile'!BS13+'[3]5.2 Asset Age Profile'!BS13","v":1},{"$f":"'[2]5.2 Asset Age Profile'!BT13+'[3]5.2 Asset Age Profile'!BT13","v":1},{"$f":"'[2]5.2 Asset Age Profile'!BU13+'[3]5.2 Asset Age Profile'!BU13","v":1},{"$f":"'[2]5.2 Asset Age Profile'!BV13+'[3]5.2 Asset Age Profile'!BV13","v":0},{"$f":"'[2]5.2 Asset Age Profile'!BW13+'[3]5.2 Asset Age Profile'!BW13","v":0},{"$f":"'[2]5.2 Asset Age Profile'!BX13+'[3]5.2 Asset Age Profile'!BX13","v":0},{"$f":"'[2]5.2 Asset Age Profile'!BY13+'[3]5.2 Asset Age Profile'!BY13","v":1},{"$f":"'[2]5.2 Asset Age Profile'!BZ13+'[3]5.2 Asset Age Profile'!BZ13","v":0},{"$f":"'[2]5.2 Asset Age Profile'!CA13+'[3]5.2 Asset Age Profile'!CA13","v":0},{"$f":"'[2]5.2 Asset Age Profile'!CB13+'[3]5.2 Asset Age Profile'!CB13","v":24},{"$f":"'[2]5.2 Asset Age Profile'!CC13+'[3]5.2 Asset Age Profile'!CC13","v":10},{"$f":"'[2]5.2 Asset Age Profile'!CD13+'[3]5.2 Asset Age Profile'!CD13","v":11},{"$f":"'[2]5.2 Asset Age Profile'!CE13+'[3]5.2 Asset Age Profile'!CE13","v":0},{"$f":"'[2]5.2 Asset Age Profile'!CF13+'[3]5.2 Asset Age Profile'!CF13","v":0},{"$f":"'[2]5.2 Asset Age Profile'!CG13+'[3]5.2 Asset Age Profile'!CG13","v":0},{"$f":"'[2]5.2 Asset Age Profile'!CH13+'[3]5.2 Asset Age Profile'!CH13","v":9},{"$f":"'[2]5.2 Asset Age Profile'!CI13+'[3]5.2 Asset Age Profile'!CI13","v":3},{"$f":"'[2]5.2 Asset Age Profile'!CJ13+'[3]5.2 Asset Age Profile'!CJ13","v":2},{"$f":"'[2]5.2 Asset Age Profile'!CK13+'[3]5.2 Asset Age Profile'!CK13","v":1},{"$f":"'[2]5.2 Asset Age Profile'!CL13+'[3]5.2 Asset Age Profile'!CL13","v":1},{"$f":"'[2]5.2 Asset Age Profile'!CM13+'[3]5.2 Asset Age Profile'!CM13","v":1},{"$f":"'[2]5.2 Asset Age Profile'!CN13+'[3]5.2 Asset Age Profile'!CN13","v":1},{"$f":"'[2]5.2 Asset Age Profile'!CO13+'[3]5.2 Asset Age Profile'!CO13","v":1},{"$f":"'[2]5.2 Asset Age Profile'!CP13+'[3]5.2 Asset Age Profile'!CP13","v":1},{"$f":"'[2]5.2 Asset Age Profile'!CQ13+'[3]5.2 Asset Age Profile'!CQ13","v":1},{"$f":"'[2]5.2 Asset Age Profile'!CR13+'[3]5.2 Asset Age Profile'!CR13","v":1},{"$f":"'[2]5.2 Asset Age Profile'!CS13+'[3]5.2 Asset Age Profile'!CS13","v":1},{"$f":"'[2]5.2 Asset Age Profile'!CT13+'[3]5.2 Asset Age Profile'!CT13","v":1},{"$f":"'[2]5.2 Asset Age Profile'!CU13+'[3]5.2 Asset Age Profile'!CU13","v":1},{"$f":"'[2]5.2 Asset Age Profile'!CV13+'[3]5.2 Asset Age Profile'!CV13","v":1},{"$f":"'[2]5.2 Asset Age Profile'!CW13+'[3]5.2 Asset Age Profile'!CW13","v":1},{"$f":"'[2]5.2 Asset Age Profile'!CX13+'[3]5.2 Asset Age Profile'!CX13","v":1},{"$f":"'[2]5.2 Asset Age Profile'!CY13+'[3]5.2 Asset Age Profile'!CY13","v":1},{"$f":"'[2]5.2 Asset Age Profile'!CZ13+'[3]5.2 Asset Age Profile'!CZ13","v":1},{"$f":"'[2]5.2 Asset Age Profile'!DA13+'[3]5.2 Asset Age Profile'!DA13","v":1},{"$f":"'[2]5.2 Asset Age Profile'!DB13+'[3]5.2 Asset Age Profile'!DB13","v":1},{"$f":"'[2]5.2 Asset Age Profile'!DC13+'[3]5.2 Asset Age Profile'!DC13","v":0},{"$f":"'[2]5.2 Asset Age Profile'!DD13+'[3]5.2 Asset Age Profile'!DD13","v":0},{"$f":"'[2]5.2 Asset Age Profile'!DE13+'[3]5.2 Asset Age Profile'!DE13","v":0},{"$f":"'[2]5.2 Asset Age Profile'!DF13+'[3]5.2 Asset Age Profile'!DF13","v":0},{"$f":"'[2]5.2 Asset Age Profile'!DG13+'[3]5.2 Asset Age Profile'!DG13","v":0},{"$f":"'[2]5.2 Asset Age Profile'!DH13+'[3]5.2 Asset Age Profile'!DH13","v":0},{"$f":"'[2]5.2 Asset Age Profile'!DI13+'[3]5.2 Asset Age Profile'!DI13","v":0},{"$f":"'[2]5.2 Asset Age Profile'!DJ13+'[3]5.2 Asset Age Profile'!DJ13","v":0},{"$f":"'[2]5.2 Asset Age Profile'!DK13+'[3]5.2 Asset Age Profile'!DK13","v":0},{"$f":"'[2]5.2 Asset Age Profile'!DL13+'[3]5.2 Asset Age Profile'!DL13","v":0},{"$f":"'[2]5.2 Asset Age Profile'!DM13+'[3]5.2 Asset Age Profile'!DM13","v":0},{"$f":"'[2]5.2 Asset Age Profile'!DN13+'[3]5.2 Asset Age Profile'!DN13","v":0},{"$f":"'[2]5.2 Asset Age Profile'!DO13+'[3]5.2 Asset Age Profile'!DO13","v":0},{"$f":"'[2]5.2 Asset Age Profile'!DP13+'[3]5.2 Asset Age Profile'!DP13","v":0},{"$f":"'[2]5.2 Asset Age Profile'!DQ13+'[3]5.2 Asset Age Profile'!DQ13","v":0},{"$f":"'[2]5.2 Asset Age Profile'!DR13+'[3]5.2 Asset Age Profile'!DR13","v":0},{"$f":"'[2]5.2 Asset Age Profile'!DS13+'[3]5.2 Asset Age Profile'!DS13","v":0},{"$f":"'[2]5.2 Asset Age Profile'!DT13+'[3]5.2 Asset Age Profile'!DT13","v":0},{"$f":"'[2]5.2 Asset Age Profile'!DU13+'[3]5.2 Asset Age Profile'!DU13","v":0},{"$f":"'[2]5.2 Asset Age Profile'!DV13+'[3]5.2 Asset Age Profile'!DV13","v":0},{"$f":"'[2]5.2 Asset Age Profile'!DW13+'[3]5.2 Asset Age Profile'!DW13","v":0},{"$f":"'[2]5.2 Asset Age Profile'!DX13+'[3]5.2 Asset Age Profile'!DX13","v":0},{"$f":"'[2]5.2 Asset Age Profile'!DY13+'[3]5.2 Asset Age Profile'!DY13","v":0},{"$f":"'[2]5.2 Asset Age Profile'!DZ13+'[3]5.2 Asset Age Profile'!DZ13","v":0},{"$f":"'[2]5.2 Asset Age Profile'!EA13+'[3]5.2 Asset Age Profile'!EA13","v":0},{"$f":"'[2]5.2 Asset Age Profile'!EB13+'[3]5.2 Asset Age Profile'!EB13","v":0},{"$f":"'[2]5.2 Asset Age Profile'!EC13+'[3]5.2 Asset Age Profile'!EC13","v":0},{"$f":"'[2]5.2 Asset Age Profile'!ED13+'[3]5.2 Asset Age Profile'!ED13","v":0},{"$f":"'[2]5.2 Asset Age Profile'!EE13+'[3]5.2 Asset Age Profile'!EE13","v":0},{"$f":"'[2]5.2 Asset Age Profile'!EF13+'[3]5.2 Asset Age Profile'!EF13","v":0},{"$f":"'[2]5.2 Asset Age Profile'!EG13+'[3]5.2 Asset Age Profile'!EG13","v":0},{"$f":"'[2]5.2 Asset Age Profile'!EH13+'[3]5.2 Asset Age Profile'!EH13","v":0},{"$f":"'[2]5.2 Asset Age Profile'!EI13+'[3]5.2 Asset Age Profile'!EI13","v":0},{"$f":"'[2]5.2 Asset Age Profile'!EJ13+'[3]5.2 Asset Age Profile'!EJ13","v":0}]
["ED_ASS521_00004",null,"˃ 11 kV & < = 22 kV; Wood",null,"DNSP NAME","REPEX","POLES","˃ 11 kV & < = 22 kV; Wood","DESCRIPTOR METRIC","MEAN ECONOMIC LIFE","YEARS","NUMBER",null,{"$f":"'[2]5.2 Asset Age Profile'!N14+'[3]5.2 Asset Age Profile'!N14","v":42},{"$f":"'[2]5.2 Asset Age Profile'!O14+'[3]5.2 Asset Age Profile'!O14","v":0},{"$f":"'[2]5.2 Asset Age Profile'!P14+'[3]5.2 Asset Age Profile'!P14","v":0},{"$f":"'[2]5.2 Asset Age Profile'!Q14+'[3]5.2 Asset Age Profile'!Q14","v":0},{"$f":"'[2]5.2 Asset Age Profile'!R14+'[3]5.2 Asset Age Profile'!R14","v":0},{"$f":"'[2]5.2 Asset Age Profile'!S14+'[3]5.2 Asset Age Profile'!S14","v":0},{"$f":"'[2]5.2 Asset Age Profile'!T14+'[3]5.2 Asset Age Profile'!T14","v":0},{"$f":"'[2]5.2 Asset Age Profile'!U14+'[3]5.2 Asset Age Profile'!U14","v":0},{"$f":"'[2]5.2 Asset Age Profile'!V14+'[3]5.2 Asset Age Profile'!V14","v":0},{"$f":"'[2]5.2 Asset Age Profile'!W14+'[3]5.2 Asset Age Profile'!W14","v":0},{"$f":"'[2]5.2 Asset Age Profile'!X14+'[3]5.2 Asset Age Profile'!X14","v":0},{"$f":"'[2]5.2 Asset Age Profile'!Y14+'[3]5.2 Asset Age Profile'!Y14","v":22},{"$f":"'[2]5.2 Asset Age Profile'!Z14+'[3]5.2 Asset Age Profile'!Z14","v":0},{"$f":"'[2]5.2 Asset Age Profile'!AA14+'[3]5.2 Asset Age Profile'!AA14","v":0},{"$f":"'[2]5.2 Asset Age Profile'!AB14+'[3]5.2 Asset Age Profile'!AB14","v":0},{"$f":"'[2]5.2 Asset Age Profile'!AC14+'[3]5.2 Asset Age Profile'!AC14","v":0},{"$f":"'[2]5.2 Asset Age Profile'!AD14+'[3]5.2 Asset Age Profile'!AD14","v":0},{"$f":"'[2]5.2 Asset Age Profile'!AE14+'[3]5.2 Asset Age Profile'!AE14","v":0},{"$f":"'[2]5.2 Asset Age Profile'!AF14+'[3]5.2 Asset Age Profile'!AF14","v":0},{"$f":"'[2]5.2 Asset Age Profile'!AG14+'[3]5.2 Asset Age Profile'!AG14","v":0},{"$f":"'[2]5.2 Asset Age Profile'!AH14+'[3]5.2 Asset Age Profile'!AH14","v":0},{"$f":"'[2]5.2 Asset Age Profile'!AI14+'[3]5.2 Asset Age Profile'!AI14","v":0},{"$f":"'[2]5.2 Asset Age Profile'!AJ14+'[3]5.2 Asset Age Profile'!AJ14","v":0},{"$f":"'[2]5.2 Asset Age Profile'!AK14+'[3]5.2 Asset Age Profile'!AK14","v":2},{"$f":"'[2]5.2 Asset Age Profile'!AL14+'[3]5.2 Asset Age Profile'!AL14","v":3},{"$f":"'[2]5.2 Asset Age Profile'!AM14+'[3]5.2 Asset Age Profile'!AM14","v":6},{"$f":"'[2]5.2 Asset Age Profile'!AN14+'[3]5.2 Asset Age Profile'!AN14","v":11},{"$f":"'[2]5.2 Asset Age Profile'!AO14+'[3]5.2 Asset Age Profile'!AO14","v":14},{"$f":"'[2]5.2 Asset Age Profile'!AP14+'[3]5.2 Asset Age Profile'!AP14","v":2},{"$f":"'[2]5.2 Asset Age Profile'!AQ14+'[3]5.2 Asset Age Profile'!AQ14","v":13},{"$f":"'[2]5.2 Asset Age Profile'!AR14+'[3]5.2 Asset Age Profile'!AR14","v":8},{"$f":"'[2]5.2 Asset Age Profile'!AS14+'[3]5.2 Asset Age Profile'!AS14","v":17},{"$f":"'[2]5.2 Asset Age Profile'!AT14+'[3]5.2 Asset Age Profile'!AT14","v":96},{"$f":"'[2]5.2 Asset Age Profile'!AU14+'[3]5.2 Asset Age Profile'!AU14","v":12},{"$f":"'[2]5.2 Asset Age Profile'!AV14+'[3]5.2 Asset Age Profile'!AV14","v":88},{"$f":"'[2]5.2 Asset Age Profile'!AW14+'[3]5.2 Asset Age Profile'!AW14","v":231},{"$f":"'[2]5.2 Asset Age Profile'!AX14+'[3]5.2 Asset Age Profile'!AX14","v":44},{"$f":"'[2]5.2 Asset Age Profile'!AY14+'[3]5.2 Asset Age Profile'!AY14","v":27},{"$f":"'[2]5.2 Asset Age Profile'!AZ14+'[3]5.2 Asset Age Profile'!AZ14","v":15},{"$f":"'[2]5.2 Asset Age Profile'!BA14+'[3]5.2 Asset Age Profile'!BA14","v":27},{"$f":"'[2]5.2 Asset Age Profile'!BB14+'[3]5.2 Asset Age Profile'!BB14","v":9},{"$f":"'[2]5.2 Asset Age Profile'!BC14+'[3]5.2 Asset Age Profile'!BC14","v":48},{"$f":"'[2]5.2 Asset Age Profile'!BD14+'[3]5.2 Asset Age Profile'!BD14","v":22},{"$f":"'[2]5.2 Asset Age Profile'!BE14+'[3]5.2 Asset Age Profile'!BE14","v":4},{"$f":"'[2]5.2 Asset Age Profile'!BF14+'[3]5.2 Asset Age Profile'!BF14","v":13},{"$f":"'[2]5.2 Asset Age Profile'!BG14+'[3]5.2 Asset Age Profile'!BG14","v":33},{"$f":"'[2]5.2 Asset Age Profile'!BH14+'[3]5.2 Asset Age Profile'!BH14","v":83},{"$f":"'[2]5.2 Asset Age Profile'!BI14+'[3]5.2 Asset Age Profile'!BI14","v":38},{"$f":"'[2]5.2 Asset Age Profile'!BJ14+'[3]5.2 Asset Age Profile'!BJ14","v":89},{"$f":"'[2]5.2 Asset Age Profile'!BK14+'[3]5.2 Asset Age Profile'!BK14","v":108},{"$f":"'[2]5.2 Asset Age Profile'!BL14+'[3]5.2 Asset Age Profile'!BL14","v":127},{"$f":"'[2]5.2 Asset Age Profile'!BM14+'[3]5.2 Asset Age Profile'!BM14","v":230},{"$f":"'[2]5.2 Asset Age Profile'!BN14+'[3]5.2 Asset Age Profile'!BN14","v":149},{"$f":"'[2]5.2 Asset Age Profile'!BO14+'[3]5.2 Asset Age Profile'!BO14","v":236},{"$f":"'[2]5.2 Asset Age Profile'!BP14+'[3]5.2 Asset Age Profile'!BP14","v":200},{"$f":"'[2]5.2 Asset Age Profile'!BQ14+'[3]5.2 Asset Age Profile'!BQ14","v":272},{"$f":"'[2]5.2 Asset Age Profile'!BR14+'[3]5.2 Asset Age Profile'!BR14","v":219},{"$f":"'[2]5.2 Asset Age Profile'!BS14+'[3]5.2 Asset Age Profile'!BS14","v":223},{"$f":"'[2]5.2 Asset Age Profile'!BT14+'[3]5.2 Asset Age Profile'!BT14","v":204},{"$f":"'[2]5.2 Asset Age Profile'!BU14+'[3]5.2 Asset Age Profile'!BU14","v":143},{"$f":"'[2]5.2 Asset Age Profile'!BV14+'[3]5.2 Asset Age Profile'!BV14","v":14},{"$f":"'[2]5.2 Asset Age Profile'!BW14+'[3]5.2 Asset Age Profile'!BW14","v":169},{"$f":"'[2]5.2 Asset Age Profile'!BX14+'[3]5.2 Asset Age Profile'!BX14","v":401},{"$f":"'[2]5.2 Asset Age Profile'!BY14+'[3]5.2 Asset Age Profile'!BY14","v":197},{"$f":"'[2]5.2 Asset Age Profile'!BZ14+'[3]5.2 Asset Age Profile'!BZ14","v":281},{"$f":"'[2]5.2 Asset Age Profile'!CA14+'[3]5.2 Asset Age Profile'!CA14","v":351},{"$f":"'[2]5.2 Asset Age Profile'!CB14+'[3]5.2 Asset Age Profile'!CB14","v":248},{"$f":"'[2]5.2 Asset Age Profile'!CC14+'[3]5.2 Asset Age Profile'!CC14","v":212},{"$f":"'[2]5.2 Asset Age Profile'!CD14+'[3]5.2 Asset Age Profile'!CD14","v":231},{"$f":"'[2]5.2 Asset Age Profile'!CE14+'[3]5.2 Asset Age Profile'!CE14","v":76},{"$f":"'[2]5.2 Asset Age Profile'!CF14+'[3]5.2 Asset Age Profile'!CF14","v":435},{"$f":"'[2]5.2 Asset Age Profile'!CG14+'[3]5.2 Asset Age Profile'!CG14","v":121},{"$f":"'[2]5.2 Asset Age Profile'!CH14+'[3]5.2 Asset Age Profile'!CH14","v":74},{"$f":"'[2]5.2 Asset Age Profile'!CI14+'[3]5.2 Asset Age Profile'!CI14","v":146},{"$f":"'[2]5.2 Asset Age Profile'!CJ14+'[3]5.2 Asset Age Profile'!CJ14","v":189},{"$f":"'[2]5.2 Asset Age Profile'!CK14+'[3]5.2 Asset Age Profile'!CK14","v":48},{"$f":"'[2]5.2 Asset Age Profile'!CL14+'[3]5.2 Asset Age Profile'!CL14","v":125},{"$f":"'[2]5.2 Asset Age Profile'!CM14+'[3]5.2 Asset Age Profile'!CM14","v":67},{"$f":"'[2]5.2 Asset Age Profile'!CN14+'[3]5.2 Asset Age Profile'!CN14","v":47},{"$f":"'[2]5.2 Asset Age Profile'!CO14+'[3]5.2 Asset Age Profile'!CO14","v":258},{"$f":"'[2]5.2 Asset Age Profile'!CP14+'[3]5.2 Asset Age Profile'!CP14","v":47},{"$f":"'[2]5.2 Asset Age Profile'!CQ14+'[3]5.2 Asset Age Profile'!CQ14","v":47},{"$f":"'[2]5.2 Asset Age Profile'!CR14+'[3]5.2 Asset Age Profile'!CR14","v":47},{"$f":"'[2]5.2 Asset Age Profile'!CS14+'[3]5.2 Asset Age Profile'!CS14","v":47},{"$f":"'[2]5.2 Asset Age Profile'!CT14+'[3]5.2 Asset Age Profile'!CT14","v":47},{"$f":"'[2]5.2 Asset Age Profile'!CU14+'[3]5.2 Asset Age Profile'!CU14","v":47},{"$f":"'[2]5.2 Asset Age Profile'!CV14+'[3]5.2 Asset Age Profile'!CV14","v":47},{"$f":"'[2]5.2 Asset Age Profile'!CW14+'[3]5.2 Asset Age Profile'!CW14","v":63},{"$f":"'[2]5.2 Asset Age Profile'!CX14+'[3]5.2 Asset Age Profile'!CX14","v":47},{"$f":"'[2]5.2 Asset Age Profile'!CY14+'[3]5.2 Asset Age Profile'!CY14","v":112},{"$f":"'[2]5.2 Asset Age Profile'!CZ14+'[3]5.2 Asset Age Profile'!CZ14","v":121},{"$f":"'[2]5.2 Asset Age Profile'!DA14+'[3]5.2 Asset Age Profile'!DA14","v":108},{"$f":"'[2]5.2 Asset Age Profile'!DB14+'[3]5.2 Asset Age Profile'!DB14","v":47},{"$f":"'[2]5.2 Asset Age Profile'!DC14+'[3]5.2 Asset Age Profile'!DC14","v":153},{"$f":"'[2]5.2 Asset Age Profile'!DD14+'[3]5.2 Asset Age Profile'!DD14","v":60},{"$f":"'[2]5.2 Asset Age Profile'!DE14+'[3]5.2 Asset Age Profile'!DE14","v":68},{"$f":"'[2]5.2 Asset Age Profile'!DF14+'[3]5.2 Asset Age Profile'!DF14","v":0},{"$f":"'[2]5.2 Asset Age Profile'!DG14+'[3]5.2 Asset Age Profile'!DG14","v":0},{"$f":"'[2]5.2 Asset Age Profile'!DH14+'[3]5.2 Asset Age Profile'!DH14","v":0},{"$f":"'[2]5.2 Asset Age Profile'!DI14+'[3]5.2 Asset Age Profile'!DI14","v":1},{"$f":"'[2]5.2 Asset Age Profile'!DJ14+'[3]5.2 Asset Age Profile'!DJ14","v":0},{"$f":"'[2]5.2 Asset Age Profile'!DK14+'[3]5.2 Asset Age Profile'!DK14","v":19},{"$f":"'[2]5.2 Asset Age Profile'!DL14+'[3]5.2 Asset Age Profile'!DL14","v":0},{"$f":"'[2]5.2 Asset Age Profile'!DM14+'[3]5.2 Asset Age Profile'!DM14","v":0},{"$f":"'[2]5.2 Asset Age Profile'!DN14+'[3]5.2 Asset Age Profile'!DN14","v":0},{"$f":"'[2]5.2 Asset Age Profile'!DO14+'[3]5.2 Asset Age Profile'!DO14","v":0},{"$f":"'[2]5.2 Asset Age Profile'!DP14+'[3]5.2 Asset Age Profile'!DP14","v":0},{"$f":"'[2]5.2 Asset Age Profile'!DQ14+'[3]5.2 Asset Age Profile'!DQ14","v":0},{"$f":"'[2]5.2 Asset Age Profile'!DR14+'[3]5.2 Asset Age Profile'!DR14","v":0},{"$f":"'[2]5.2 Asset Age Profile'!DS14+'[3]5.2 Asset Age Profile'!DS14","v":17},{"$f":"'[2]5.2 Asset Age Profile'!DT14+'[3]5.2 Asset Age Profile'!DT14","v":5},{"$f":"'[2]5.2 Asset Age Profile'!DU14+'[3]5.2 Asset Age Profile'!DU14","v":0},{"$f":"'[2]5.2 Asset Age Profile'!DV14+'[3]5.2 Asset Age Profile'!DV14","v":0},{"$f":"'[2]5.2 Asset Age Profile'!DW14+'[3]5.2 Asset Age Profile'!DW14","v":0},{"$f":"'[2]5.2 Asset Age Profile'!DX14+'[3]5.2 Asset Age Profile'!DX14","v":0},{"$f":"'[2]5.2 Asset Age Profile'!DY14+'[3]5.2 Asset Age Profile'!DY14","v":0},{"$f":"'[2]5.2 Asset Age Profile'!DZ14+'[3]5.2 Asset Age Profile'!DZ14","v":0},{"$f":"'[2]5.2 Asset Age Profile'!EA14+'[3]5.2 Asset Age Profile'!EA14","v":47},{"$f":"'[2]5.2 Asset Age Profile'!EB14+'[3]5.2 Asset Age Profile'!EB14","v":0},{"$f":"'[2]5.2 Asset Age Profile'!EC14+'[3]5.2 Asset Age Profile'!EC14","v":0},{"$f":"'[2]5.2 Asset Age Profile'!ED14+'[3]5.2 Asset Age Profile'!ED14","v":0},{"$f":"'[2]5.2 Asset Age Profile'!EE14+'[3]5.2 Asset Age Profile'!EE14","v":0},{"$f":"'[2]5.2 Asset Age Profile'!EF14+'[3]5.2 Asset Age Profile'!EF14","v":0},{"$f":"'[2]5.2 Asset Age Profile'!EG14+'[3]5.2 Asset Age Profile'!EG14","v":0},{"$f":"'[2]5.2 Asset Age Profile'!EH14+'[3]5.2 Asset Age Profile'!EH14","v":0},{"$f":"'[2]5.2 Asset Age Profile'!EI14+'[3]5.2 Asset Age Profile'!EI14","v":0},{"$f":"'[2]5.2 Asset Age Profile'!EJ14+'[3]5.2 Asset Age Profile'!EJ14","v":0}]
["ED_ASS521_00005",null,"> 22 kV & < = 66 kV; Wood",null,"DNSP NAME","REPEX","POLES","> 22 kV & < = 66 kV; Wood","DESCRIPTOR METRIC","MEAN ECONOMIC LIFE","YEARS","NUMBER",null,{"$f":"'[2]5.2 Asset Age Profile'!N15+'[3]5.2 Asset Age Profile'!N15","v":45},{"$f":"'[2]5.2 Asset Age Profile'!O15+'[3]5.2 Asset Age Profile'!O15","v":0},{"$f":"'[2]5.2 Asset Age Profile'!P15+'[3]5.2 Asset Age Profile'!P15","v":0},{"$f":"'[2]5.2 Asset Age Profile'!Q15+'[3]5.2 Asset Age Profile'!Q15","v":0},{"$f":"'[2]5.2 Asset Age Profile'!R15+'[3]5.2 Asset Age Profile'!R15","v":0},{"$f":"'[2]5.2 Asset Age Profile'!S15+'[3]5.2 Asset Age Profile'!S15","v":0},{"$f":"'[2]5.2 Asset Age Profile'!T15+'[3]5.2 Asset Age Profile'!T15","v":0},{"$f":"'[2]5.2 Asset Age Profile'!U15+'[3]5.2 Asset Age Profile'!U15","v":0},{"$f":"'[2]5.2 Asset Age Profile'!V15+'[3]5.2 Asset Age Profile'!V15","v":0},{"$f":"'[2]5.2 Asset Age Profile'!W15+'[3]5.2 Asset Age Profile'!W15","v":0},{"$f":"'[2]5.2 Asset Age Profile'!X15+'[3]5.2 Asset Age Profile'!X15","v":0},{"$f":"'[2]5.2 Asset Age Profile'!Y15+'[3]5.2 Asset Age Profile'!Y15","v":22},{"$f":"'[2]5.2 Asset Age Profile'!Z15+'[3]5.2 Asset Age Profile'!Z15","v":0},{"$f":"'[2]5.2 Asset Age Profile'!AA15+'[3]5.2 Asset Age Profile'!AA15","v":0},{"$f":"'[2]5.2 Asset Age Profile'!AB15+'[3]5.2 Asset Age Profile'!AB15","v":0},{"$f":"'[2]5.2 Asset Age Profile'!AC15+'[3]5.2 Asset Age Profile'!AC15","v":0},{"$f":"'[2]5.2 Asset Age Profile'!AD15+'[3]5.2 Asset Age Profile'!AD15","v":0},{"$f":"'[2]5.2 Asset Age Profile'!AE15+'[3]5.2 Asset Age Profile'!AE15","v":0},{"$f":"'[2]5.2 Asset Age Profile'!AF15+'[3]5.2 Asset Age Profile'!AF15","v":0},{"$f":"'[2]5.2 Asset Age Profile'!AG15+'[3]5.2 Asset Age Profile'!AG15","v":0},{"$f":"'[2]5.2 Asset Age Profile'!AH15+'[3]5.2 Asset Age Profile'!AH15","v":0},{"$f":"'[2]5.2 Asset Age Profile'!AI15+'[3]5.2 Asset Age Profile'!AI15","v":0},{"$f":"'[2]5.2 Asset Age Profile'!AJ15+'[3]5.2 Asset Age Profile'!AJ15","v":0},{"$f":"'[2]5.2 Asset Age Profile'!AK15+'[3]5.2 Asset Age Profile'!AK15","v":0},{"$f":"'[2]5.2 Asset Age Profile'!AL15+'[3]5.2 Asset Age Profile'!AL15","v":0},{"$f":"'[2]5.2 Asset Age Profile'!AM15+'[3]5.2 Asset Age Profile'!AM15","v":0},{"$f":"'[2]5.2 Asset Age Profile'!AN15+'[3]5.2 Asset Age Profile'!AN15","v":0},{"$f":"'[2]5.2 Asset Age Profile'!AO15+'[3]5.2 Asset Age Profile'!AO15","v":0},{"$f":"'[2]5.2 Asset Age Profile'!AP15+'[3]5.2 Asset Age Profile'!AP15","v":0},{"$f":"'[2]5.2 Asset Age Profile'!AQ15+'[3]5.2 Asset Age Profile'!AQ15","v":0},{"$f":"'[2]5.2 Asset Age Profile'!AR15+'[3]5.2 Asset Age Profile'!AR15","v":0},{"$f":"'[2]5.2 Asset Age Profile'!AS15+'[3]5.2 Asset Age Profile'!AS15","v":1},{"$f":"'[2]5.2 Asset Age Profile'!AT15+'[3]5.2 Asset Age Profile'!AT15","v":0},{"$f":"'[2]5.2 Asset Age Profile'!AU15+'[3]5.2 Asset Age Profile'!AU15","v":0},{"$f":"'[2]5.2 Asset Age Profile'!AV15+'[3]5.2 Asset Age Profile'!AV15","v":0},{"$f":"'[2]5.2 Asset Age Profile'!AW15+'[3]5.2 Asset Age Profile'!AW15","v":0},{"$f":"'[2]5.2 Asset Age Profile'!AX15+'[3]5.2 Asset Age Profile'!AX15","v":0},{"$f":"'[2]5.2 Asset Age Profile'!AY15+'[3]5.2 Asset Age Profile'!AY15","v":0},{"$f":"'[2]5.2 Asset Age Profile'!AZ15+'[3]5.2 Asset Age Profile'!AZ15","v":0},{"$f":"'[2]5.2 Asset Age Profile'!BA15+'[3]5.2 Asset Age Profile'!BA15","v":0},{"$f":"'[2]5.2 Asset Age Profile'!BB15+'[3]5.2 Asset Age Profile'!BB15","v":0},{"$f":"'[2]5.2 Asset Age Profile'!BC15+'[3]5.2 Asset Age Profile'!BC15","v":0},{"$f":"'[2]5.2 Asset Age Profile'!BD15+'[3]5.2 Asset Age Profile'!BD15","v":0},{"$f":"'[2]5.2 Asset Age Profile'!BE15+'[3]5.2 Asset Age Profile'!BE15","v":0},{"$f":"'[2]5.2 Asset Age Profile'!BF15+'[3]5.2 Asset Age Profile'!BF15","v":0},{"$f":"'[2]5.2 Asset Age Profile'!BG15+'[3]5.2 Asset Age Profile'!BG15","v":0},{"$f":"'[2]5.2 Asset Age Profile'!BH15+'[3]5.2 Asset Age Profile'!BH15","v":0},{"$f":"'[2]5.2 Asset Age Profile'!BI15+'[3]5.2 Asset Age Profile'!BI15","v":0},{"$f":"'[2]5.2 Asset Age Profile'!BJ15+'[3]5.2 Asset Age Profile'!BJ15","v":0},{"$f":"'[2]5.2 Asset Age Profile'!BK15+'[3]5.2 Asset Age Profile'!BK15","v":0},{"$f":"'[2]5.2 Asset Age Profile'!BL15+'[3]5.2 Asset Age Profile'!BL15","v":0},{"$f":"'[2]5.2 Asset Age Profile'!BM15+'[3]5.2 Asset Age Profile'!BM15","v":0},{"$f":"'[2]5.2 Asset Age Profile'!BN15+'[3]5.2 Asset Age Profile'!BN15","v":0},{"$f":"'[2]5.2 Asset Age Profile'!BO15+'[3]5.2 Asset Age Profile'!BO15","v":0},{"$f":"'[2]5.2 Asset Age Profile'!BP15+'[3]5.2 Asset Age Profile'!BP15","v":0},{"$f":"'[2]5.2 Asset Age Profile'!BQ15+'[3]5.2 Asset Age Profile'!BQ15","v":0},{"$f":"'[2]5.2 Asset Age Profile'!BR15+'[3]5.2 Asset Age Profile'!BR15","v":0},{"$f":"'[2]5.2 Asset Age Profile'!BS15+'[3]5.2 Asset Age Profile'!BS15","v":0},{"$f":"'[2]5.2 Asset Age Profile'!BT15+'[3]5.2 Asset Age Profile'!BT15","v":0},{"$f":"'[2]5.2 Asset Age Profile'!BU15+'[3]5.2 Asset Age Profile'!BU15","v":0},{"$f":"'[2]5.2 Asset Age Profile'!BV15+'[3]5.2 Asset Age Profile'!BV15","v":0},{"$f":"'[2]5.2 Asset Age Profile'!BW15+'[3]5.2 Asset Age Profile'!BW15","v":0},{"$f":"'[2]5.2 Asset Age Profile'!BX15+'[3]5.2 Asset Age Profile'!BX15","v":0},{"$f":"'[2]5.2 Asset Age Profile'!BY15+'[3]5.2 Asset Age Profile'!BY15","v":0},{"$f":"'[2]5.2 Asset Age Profile'!BZ15+'[3]5.2 Asset Age Profile'!BZ15","v":0},{"$f":"'[2]5.2 Asset Age Profile'!CA15+'[3]5.2 Asset Age Profile'!CA15","v":0},{"$f":"'[2]5.2 Asset Age Profile'!CB15+'[3]5.2 Asset Age Profile'!CB15","v":0},{"$f":"'[2]5.2 Asset Age Profile'!CC15+'[3]5.2 Asset Age Profile'!CC15","v":0},{"$f":"'[2]5.2 Asset Age Profile'!CD15+'[3]5.2 Asset Age Profile'!CD15","v":0},{"$f":"'[2]5.2 Asset Age Profile'!CE15+'[3]5.2 Asset Age Profile'!CE15","v":0},{"$f":"'[2]5.2 Asset Age Profile'!CF15+'[3]5.2 Asset Age Profile'!CF15","v":0},{"$f":"'[2]5.2 Asset Age Profile'!CG15+'[3]5.2 Asset Age Profile'!CG15","v":0},{"$f":"'[2]5.2 Asset Age Profile'!CH15+'[3]5.2 Asset Age Profile'!CH15","v":0},{"$f":"'[2]5.2 Asset Age Profile'!CI15+'[3]5.2 Asset Age Profile'!CI15","v":0},{"$f":"'[2]5.2 Asset Age Profile'!CJ15+'[3]5.2 Asset Age Profile'!CJ15","v":0},{"$f":"'[2]5.2 Asset Age Profile'!CK15+'[3]5.2 Asset Age Profile'!CK15","v":0},{"$f":"'[2]5.2 Asset Age Profile'!CL15+'[3]5.2 Asset Age Profile'!CL15","v":0},{"$f":"'[2]5.2 Asset Age Profile'!CM15+'[3]5.2 Asset Age Profile'!CM15","v":42},{"$f":"'[2]5.2 Asset Age Profile'!CN15+'[3]5.2 Asset Age Profile'!CN15","v":0},{"$f":"'[2]5.2 Asset Age Profile'!CO15+'[3]5.2 Asset Age Profile'!CO15","v":0},{"$f":"'[2]5.2 Asset Age Profile'!CP15+'[3]5.2 Asset Age Profile'!CP15","v":0},{"$f":"'[2]5.2 Asset Age Profile'!CQ15+'[3]5.2 Asset Age Profile'!CQ15","v":0},{"$f":"'[2]5.2 Asset Age Profile'!CR15+'[3]5.2 Asset Age Profile'!CR15","v":0},{"$f":"'[2]5.2 Asset Age Profile'!CS15+'[3]5.2 Asset Age Profile'!CS15","v":0},{"$f":"'[2]5.2 Asset Age Profile'!CT15+'[3]5.2 Asset Age Profile'!CT15","v":0},{"$f":"'[2]5.2 Asset Age Profile'!CU15+'[3]5.2 Asset Age Profile'!CU15","v":0},{"$f":"'[2]5.2 Asset Age Profile'!CV15+'[3]5.2 Asset Age Profile'!CV15","v":0},{"$f":"'[2]5.2 Asset Age Profile'!CW15+'[3]5.2 Asset Age Profile'!CW15","v":0},{"$f":"'[2]5.2 Asset Age Profile'!CX15+'[3]5.2 Asset Age Profile'!CX15","v":0},{"$f":"'[2]5.2 Asset Age Profile'!CY15+'[3]5.2 Asset Age Profile'!CY15","v":0},{"$f":"'[2]5.2 Asset Age Profile'!CZ15+'[3]5.2 Asset Age Profile'!CZ15","v":0},{"$f":"'[2]5.2 Asset Age Profile'!DA15+'[3]5.2 Asset Age Profile'!DA15","v":0},{"$f":"'[2]5.2 Asset Age Profile'!DB15+'[3]5.2 Asset Age Profile'!DB15","v":0},{"$f":"'[2]5.2 Asset Age Profile'!DC15+'[3]5.2 Asset Age Profile'!DC15","v":0},{"$f":"'[2]5.2 Asset Age Profile'!DD15+'[3]5.2 Asset Age Profile'!DD15","v":0},{"$f":"'[2]5.2 Asset Age Profile'!DE15+'[3]5.2 Asset Age Profile'!DE15","v":0},{"$f":"'[2]5.2 Asset Age Profile'!DF15+'[3]5.2 Asset Age Profile'!DF15","v":0},{"$f":"'[2]5.2 Asset Age Profile'!DG15+'[3]5.2 Asset Age Profile'!DG15","v":0},{"$f":"'[2]5.2 Asset Age Profile'!DH15+'[3]5.2 Asset Age Profile'!DH15","v":0},{"$f":"'[2]5.2 Asset Age Profile'!DI15+'[3]5.2 Asset Age Profile'!DI15","v":0},{"$f":"'[2]5.2 Asset Age Profile'!DJ15+'[3]5.2 Asset Age Profile'!DJ15","v":0},{"$f":"'[2]5.2 Asset Age Profile'!DK15+'[3]5.2 Asset Age Profile'!DK15","v":0},{"$f":"'[2]5.2 Asset Age Profile'!DL15+'[3]5.2 Asset Age Profile'!DL15","v":0},{"$f":"'[2]5.2 Asset Age Profile'!DM15+'[3]5.2 Asset Age Profile'!DM15","v":0},{"$f":"'[2]5.2 Asset Age Profile'!DN15+'[3]5.2 Asset Age Profile'!DN15","v":0},{"$f":"'[2]5.2 Asset Age Profile'!DO15+'[3]5.2 Asset Age Profile'!DO15","v":0},{"$f":"'[2]5.2 Asset Age Profile'!DP15+'[3]5.2 Asset Age Profile'!DP15","v":0},{"$f":"'[2]5.2 Asset Age Profile'!DQ15+'[3]5.2 Asset Age Profile'!DQ15","v":0},{"$f":"'[2]5.2 Asset Age Profile'!DR15+'[3]5.2 Asset Age Profile'!DR15","v":0},{"$f":"'[2]5.2 Asset Age Profile'!DS15+'[3]5.2 Asset Age Profile'!DS15","v":0},{"$f":"'[2]5.2 Asset Age Profile'!DT15+'[3]5.2 Asset Age Profile'!DT15","v":0},{"$f":"'[2]5.2 Asset Age Profile'!DU15+'[3]5.2 Asset Age Profile'!DU15","v":0},{"$f":"'[2]5.2 Asset Age Profile'!DV15+'[3]5.2 Asset Age Profile'!DV15","v":0},{"$f":"'[2]5.2 Asset Age Profile'!DW15+'[3]5.2 Asset Age Profile'!DW15","v":0},{"$f":"'[2]5.2 Asset Age Profile'!DX15+'[3]5.2 Asset Age Profile'!DX15","v":0},{"$f":"'[2]5.2 Asset Age Profile'!DY15+'[3]5.2 Asset Age Profile'!DY15","v":0},{"$f":"'[2]5.2 Asset Age Profile'!DZ15+'[3]5.2 Asset Age Profile'!DZ15","v":0},{"$f":"'[2]5.2 Asset Age Profile'!EA15+'[3]5.2 Asset Age Profile'!EA15","v":0},{"$f":"'[2]5.2 Asset Age Profile'!EB15+'[3]5.2 Asset Age Profile'!EB15","v":0},{"$f":"'[2]5.2 Asset Age Profile'!EC15+'[3]5.2 Asset Age Profile'!EC15","v":0},{"$f":"'[2]5.2 Asset Age Profile'!ED15+'[3]5.2 Asset Age Profile'!ED15","v":0},{"$f":"'[2]5.2 Asset Age Profile'!EE15+'[3]5.2 Asset Age Profile'!EE15","v":0},{"$f":"'[2]5.2 Asset Age Profile'!EF15+'[3]5.2 Asset Age Profile'!EF15","v":0},{"$f":"'[2]5.2 Asset Age Profile'!EG15+'[3]5.2 Asset Age Profile'!EG15","v":0},{"$f":"'[2]5.2 Asset Age Profile'!EH15+'[3]5.2 Asset Age Profile'!EH15","v":0},{"$f":"'[2]5.2 Asset Age Profile'!EI15+'[3]5.2 Asset Age Profile'!EI15","v":0},{"$f":"'[2]5.2 Asset Age Profile'!EJ15+'[3]5.2 Asset Age Profile'!EJ15","v":0}]
["ED_ASS521_00006",null,"> 66 kV & < = 132 kV; Wood",null,"DNSP NAME","REPEX","POLES","> 66 kV & < = 132 kV; Wood","DESCRIPTOR METRIC","MEAN ECONOMIC LIFE","YEARS","NUMBER",null,{"$f":"'[2]5.2 Asset Age Profile'!N16+'[3]5.2 Asset Age Profile'!N16","v":45},{"$f":"'[2]5.2 Asset Age Profile'!O16+'[3]5.2 Asset Age Profile'!O16","v":0},{"$f":"'[2]5.2 Asset Age Profile'!P16+'[3]5.2 Asset Age Profile'!P16","v":0},{"$f":"'[2]5.2 Asset Age Profile'!Q16+'[3]5.2 Asset Age Profile'!Q16","v":0},{"$f":"'[2]5.2 Asset Age Profile'!R16+'[3]5.2 Asset Age Profile'!R16","v":0},{"$f":"'[2]5.2 Asset Age Profile'!S16+'[3]5.2 Asset Age Profile'!S16","v":0},{"$f":"'[2]5.2 Asset Age Profile'!T16+'[3]5.2 Asset Age Profile'!T16","v":0},{"$f":"'[2]5.2 Asset Age Profile'!U16+'[3]5.2 Asset Age Profile'!U16","v":0},{"$f":"'[2]5.2 Asset Age Profile'!V16+'[3]5.2 Asset Age Profile'!V16","v":0},{"$f":"'[2]5.2 Asset Age Profile'!W16+'[3]5.2 Asset Age Profile'!W16","v":0},{"$f":"'[2]5.2 Asset Age Profile'!X16+'[3]5.2 Asset Age Profile'!X16","v":0},{"$f":"'[2]5.2 Asset Age Profile'!Y16+'[3]5.2 Asset Age Profile'!Y16","v":22},{"$f":"'[2]5.2 Asset Age Profile'!Z16+'[3]5.2 Asset Age Profile'!Z16","v":0},{"$f":"'[2]5.2 Asset Age Profile'!AA16+'[3]5.2 Asset Age Profile'!AA16","v":0},{"$f":"'[2]5.2 Asset Age Profile'!AB16+'[3]5.2 Asset Age Profile'!AB16","v":0},{"$f":"'[2]5.2 Asset Age Profile'!AC16+'[3]5.2 Asset Age Profile'!AC16","v":0},{"$f":"'[2]5.2 Asset Age Profile'!AD16+'[3]5.2 Asset Age Profile'!AD16","v":0},{"$f":"'[2]5.2 Asset Age Profile'!AE16+'[3]5.2 Asset Age Profile'!AE16","v":0},{"$f":"'[2]5.2 Asset Age Profile'!AF16+'[3]5.2 Asset Age Profile'!AF16","v":0},{"$f":"'[2]5.2 Asset Age Profile'!AG16+'[3]5.2 Asset Age Profile'!AG16","v":0},{"$f":"'[2]5.2 Asset Age Profile'!AH16+'[3]5.2 Asset Age Profile'!AH16","v":0},{"$f":"'[2]5.2 Asset Age Profile'!AI16+'[3]5.2 Asset Age Profile'!AI16","v":0},{"$f":"'[2]5.2 Asset Age Profile'!AJ16+'[3]5.2 Asset Age Profile'!AJ16","v":0},{"$f":"'[2]5.2 Asset Age Profile'!AK16+'[3]5.2 Asset Age Profile'!AK16","v":0},{"$f":"'[2]5.2 Asset Age Profile'!AL16+'[3]5.2 Asset Age Profile'!AL16","v":0},{"$f":"'[2]5.2 Asset Age Profile'!AM16+'[3]5.2 Asset Age Profile'!AM16","v":0},{"$f":"'[2]5.2 Asset Age Profile'!AN16+'[3]5.2 Asset Age Profile'!AN16","v":0},{"$f":"'[2]5.2 Asset Age Profile'!AO16+'[3]5.2 Asset Age Profile'!AO16","v":0},{"$f":"'[2]5.2 Asset Age Profile'!AP16+'[3]5.2 Asset Age Profile'!AP16","v":4},{"$f":"'[2]5.2 Asset Age Profile'!AQ16+'[3]5.2 Asset Age Profile'!AQ16","v":0},{"$f":"'[2]5.2 Asset Age Profile'!AR16+'[3]5.2 Asset Age Profile'!AR16","v":0},{"$f":"'[2]5.2 Asset Age Profile'!AS16+'[3]5.2 Asset Age Profile'!AS16","v":3},{"$f":"'[2]5.2 Asset Age Profile'!AT16+'[3]5.2 Asset Age Profile'!AT16","v":1},{"$f":"'[2]5.2 Asset Age Profile'!AU16+'[3]5.2 Asset Age Profile'!AU16","v":1},{"$f":"'[2]5.2 Asset Age Profile'!AV16+'[3]5.2 Asset Age Profile'!AV16","v":0},{"$f":"'[2]5.2 Asset Age Profile'!AW16+'[3]5.2 Asset Age Profile'!AW16","v":1},{"$f":"'[2]5.2 Asset Age Profile'!AX16+'[3]5.2 Asset Age Profile'!AX16","v":18},{"$f":"'[2]5.2 Asset Age Profile'!AY16+'[3]5.2 Asset Age Profile'!AY16","v":7},{"$f":"'[2]5.2 Asset Age Profile'!AZ16+'[3]5.2 Asset Age Profile'!AZ16","v":0},{"$f":"'[2]5.2 Asset Age Profile'!BA16+'[3]5.2 Asset Age Profile'!BA16","v":0},{"$f":"'[2]5.2 Asset Age Profile'!BB16+'[3]5.2 Asset Age Profile'!BB16","v":0},{"$f":"'[2]5.2 Asset Age Profile'!BC16+'[3]5.2 Asset Age Profile'!BC16","v":0},{"$f":"'[2]5.2 Asset Age Profile'!BD16+'[3]5.2 Asset Age Profile'!BD16","v":0},{"$f":"'[2]5.2 Asset Age Profile'!BE16+'[3]5.2 Asset Age Profile'!BE16","v":0},{"$f":"'[2]5.2 Asset Age Profile'!BF16+'[3]5.2 Asset Age Profile'!BF16","v":0},{"$f":"'[2]5.2 Asset Age Profile'!BG16+'[3]5.2 Asset Age Profile'!BG16","v":0},{"$f":"'[2]5.2 Asset Age Profile'!BH16+'[3]5.2 Asset Age Profile'!BH16","v":0},{"$f":"'[2]5.2 Asset Age Profile'!BI16+'[3]5.2 Asset Age Profile'!BI16","v":0},{"$f":"'[2]5.2 Asset Age Profile'!BJ16+'[3]5.2 Asset Age Profile'!BJ16","v":0},{"$f":"'[2]5.2 Asset Age Profile'!BK16+'[3]5.2 Asset Age Profile'!BK16","v":17},{"$f":"'[2]5.2 Asset Age Profile'!BL16+'[3]5.2 Asset Age Profile'!BL16","v":0},{"$f":"'[2]5.2 Asset Age Profile'!BM16+'[3]5.2 Asset Age Profile'!BM16","v":0},{"$f":"'[2]5.2 Asset Age Profile'!BN16+'[3]5.2 Asset Age Profile'!BN16","v":3},{"$f":"'[2]5.2 Asset Age Profile'!BO16+'[3]5.2 Asset Age Profile'!BO16","v":0},{"$f":"'[2]5.2 Asset Age Profile'!BP16+'[3]5.2 Asset Age Profile'!BP16","v":0},{"$f":"'[2]5.2 Asset Age Profile'!BQ16+'[3]5.2 Asset Age Profile'!BQ16","v":0},{"$f":"'[2]5.2 Asset Age Profile'!BR16+'[3]5.2 Asset Age Profile'!BR16","v":0},{"$f":"'[2]5.2 Asset Age Profile'!BS16+'[3]5.2 Asset Age Profile'!BS16","v":192},{"$f":"'[2]5.2 Asset Age Profile'!BT16+'[3]5.2 Asset Age Profile'!BT16","v":0},{"$f":"'[2]5.2 Asset Age Profile'!BU16+'[3]5.2 Asset Age Profile'!BU16","v":3},{"$f":"'[2]5.2 Asset Age Profile'!BV16+'[3]5.2 Asset Age Profile'!BV16","v":0},{"$f":"'[2]5.2 Asset Age Profile'!BW16+'[3]5.2 Asset Age Profile'!BW16","v":102},{"$f":"'[2]5.2 Asset Age Profile'!BX16+'[3]5.2 Asset Age Profile'!BX16","v":0},{"$f":"'[2]5.2 Asset Age Profile'!BY16+'[3]5.2 Asset Age Profile'!BY16","v":3},{"$f":"'[2]5.2 Asset Age Profile'!BZ16+'[3]5.2 Asset Age Profile'!BZ16","v":3},{"$f":"'[2]5.2 Asset Age Profile'!CA16+'[3]5.2 Asset Age Profile'!CA16","v":5},{"$f":"'[2]5.2 Asset Age Profile'!CB16+'[3]5.2 Asset Age Profile'!CB16","v":11},{"$f":"'[2]5.2 Asset Age Profile'!CC16+'[3]5.2 Asset Age Profile'!CC16","v":0},{"$f":"'[2]5.2 Asset Age Profile'!CD16+'[3]5.2 Asset Age Profile'!CD16","v":0},{"$f":"'[2]5.2 Asset Age Profile'!CE16+'[3]5.2 Asset Age Profile'!CE16","v":4},{"$f":"'[2]5.2 Asset Age Profile'!CF16+'[3]5.2 Asset Age Profile'!CF16","v":0},{"$f":"'[2]5.2 Asset Age Profile'!CG16+'[3]5.2 Asset Age Profile'!CG16","v":0},{"$f":"'[2]5.2 Asset Age Profile'!CH16+'[3]5.2 Asset Age Profile'!CH16","v":0},{"$f":"'[2]5.2 Asset Age Profile'!CI16+'[3]5.2 Asset Age Profile'!CI16","v":2},{"$f":"'[2]5.2 Asset Age Profile'!CJ16+'[3]5.2 Asset Age Profile'!CJ16","v":2},{"$f":"'[2]5.2 Asset Age Profile'!CK16+'[3]5.2 Asset Age Profile'!CK16","v":2},{"$f":"'[2]5.2 Asset Age Profile'!CL16+'[3]5.2 Asset Age Profile'!CL16","v":2},{"$f":"'[2]5.2 Asset Age Profile'!CM16+'[3]5.2 Asset Age Profile'!CM16","v":7},{"$f":"'[2]5.2 Asset Age Profile'!CN16+'[3]5.2 Asset Age Profile'!CN16","v":1},{"$f":"'[2]5.2 Asset Age Profile'!CO16+'[3]5.2 Asset Age Profile'!CO16","v":1},{"$f":"'[2]5.2 Asset Age Profile'!CP16+'[3]5.2 Asset Age Profile'!CP16","v":1},{"$f":"'[2]5.2 Asset Age Profile'!CQ16+'[3]5.2 Asset Age Profile'!CQ16","v":1},{"$f":"'[2]5.2 Asset Age Profile'!CR16+'[3]5.2 Asset Age Profile'!CR16","v":1},{"$f":"'[2]5.2 Asset Age Profile'!CS16+'[3]5.2 Asset Age Profile'!CS16","v":1},{"$f":"'[2]5.2 Asset Age Profile'!CT16+'[3]5.2 Asset Age Profile'!CT16","v":1},{"$f":"'[2]5.2 Asset Age Profile'!CU16+'[3]5.2 Asset Age Profile'!CU16","v":1},{"$f":"'[2]5.2 Asset Age Profile'!CV16+'[3]5.2 Asset Age Profile'!CV16","v":1},{"$f":"'[2]5.2 Asset Age Profile'!CW16+'[3]5.2 Asset Age Profile'!CW16","v":1},{"$f":"'[2]5.2 Asset Age Profile'!CX16+'[3]5.2 Asset Age Profile'!CX16","v":1},{"$f":"'[2]5.2 Asset Age Profile'!CY16+'[3]5.2 Asset Age Profile'!CY16","v":1},{"$f":"'[2]5.2 Asset Age Profile'!CZ16+'[3]5.2 Asset Age Profile'!CZ16","v":1},{"$f":"'[2]5.2 Asset Age Profile'!DA16+'[3]5.2 Asset Age Profile'!DA16","v":1},{"$f":"'[2]5.2 Asset Age Profile'!DB16+'[3]5.2 Asset Age Profile'!DB16","v":1},{"$f":"'[2]5.2 Asset Age Profile'!DC16+'[3]5.2 Asset Age Profile'!DC16","v":0},{"$f":"'[2]5.2 Asset Age Profile'!DD16+'[3]5.2 Asset Age Profile'!DD16","v":0},{"$f":"'[2]5.2 Asset Age Profile'!DE16+'[3]5.2 Asset Age Profile'!DE16","v":0},{"$f":"'[2]5.2 Asset Age Profile'!DF16+'[3]5.2 Asset Age Profile'!DF16","v":0},{"$f":"'[2]5.2 Asset Age Profile'!DG16+'[3]5.2 Asset Age Profile'!DG16","v":0},{"$f":"'[2]5.2 Asset Age Profile'!DH16+'[3]5.2 Asset Age Profile'!DH16","v":0},{"$f":"'[2]5.2 Asset Age Profile'!DI16+'[3]5.2 Asset Age Profile'!DI16","v":0},{"$f":"'[2]5.2 Asset Age Profile'!DJ16+'[3]5.2 Asset Age Profile'!DJ16","v":0},{"$f":"'[2]5.2 Asset Age Profile'!DK16+'[3]5.2 Asset Age Profile'!DK16","v":0},{"$f":"'[2]5.2 Asset Age Profile'!DL16+'[3]5.2 Asset Age Profile'!DL16","v":0},{"$f":"'[2]5.2 Asset Age Profile'!DM16+'[3]5.2 Asset Age Profile'!DM16","v":0},{"$f":"'[2]5.2 Asset Age Profile'!DN16+'[3]5.2 Asset Age Profile'!DN16","v":0},{"$f":"'[2]5.2 Asset Age Profile'!DO16+'[3]5.2 Asset Age Profile'!DO16","v":0},{"$f":"'[2]5.2 Asset Age Profile'!DP16+'[3]5.2 Asset Age Profile'!DP16","v":0},{"$f":"'[2]5.2 Asset Age Profile'!DQ16+'[3]5.2 Asset Age Profile'!DQ16","v":0},{"$f":"'[2]5.2 Asset Age Profile'!DR16+'[3]5.2 Asset Age Profile'!DR16","v":0},{"$f":"'[2]5.2 Asset Age Profile'!DS16+'[3]5.2 Asset Age Profile'!DS16","v":0},{"$f":"'[2]5.2 Asset Age Profile'!DT16+'[3]5.2 Asset Age Profile'!DT16","v":0},{"$f":"'[2]5.2 Asset Age Profile'!DU16+'[3]5.2 Asset Age Profile'!DU16","v":0},{"$f":"'[2]5.2 Asset Age Profile'!DV16+'[3]5.2 Asset Age Profile'!DV16","v":0},{"$f":"'[2]5.2 Asset Age Profile'!DW16+'[3]5.2 Asset Age Profile'!DW16","v":0},{"$f":"'[2]5.2 Asset Age Profile'!DX16+'[3]5.2 Asset Age Profile'!DX16","v":0},{"$f":"'[2]5.2 Asset Age Profile'!DY16+'[3]5.2 Asset Age Profile'!DY16","v":0},{"$f":"'[2]5.2 Asset Age Profile'!DZ16+'[3]5.2 Asset Age Profile'!DZ16","v":0},{"$f":"'[2]5.2 Asset Age Profile'!EA16+'[3]5.2 Asset Age Profile'!EA16","v":0},{"$f":"'[2]5.2 Asset Age Profile'!EB16+'[3]5.2 Asset Age Profile'!EB16","v":0},{"$f":"'[2]5.2 Asset Age Profile'!EC16+'[3]5.2 Asset Age Profile'!EC16","v":0},{"$f":"'[2]5.2 Asset Age Profile'!ED16+'[3]5.2 Asset Age Profile'!ED16","v":0},{"$f":"'[2]5.2 Asset Age Profile'!EE16+'[3]5.2 Asset Age Profile'!EE16","v":0},{"$f":"'[2]5.2 Asset Age Profile'!EF16+'[3]5.2 Asset Age Profile'!EF16","v":0},{"$f":"'[2]5.2 Asset Age Profile'!EG16+'[3]5.2 Asset Age Profile'!EG16","v":0},{"$f":"'[2]5.2 Asset Age Profile'!EH16+'[3]5.2 Asset Age Profile'!EH16","v":0},{"$f":"'[2]5.2 Asset Age Profile'!EI16+'[3]5.2 Asset Age Profile'!EI16","v":0},{"$f":"'[2]5.2 Asset Age Profile'!EJ16+'[3]5.2 Asset Age Profile'!EJ16","v":0}]
["ED_ASS521_00007",null,"> 132 kV; Wood",null,"DNSP NAME","REPEX","POLES","> 132 kV; Wood","DESCRIPTOR METRIC","MEAN ECONOMIC LIFE","YEARS","NUMBER",null,{"$f":"'[2]5.2 Asset Age Profile'!N17+'[3]5.2 Asset Age Profile'!N17","v":45},{"$f":"'[2]5.2 Asset Age Profile'!O17+'[3]5.2 Asset Age Profile'!O17","v":0},{"$f":"'[2]5.2 Asset Age Profile'!P17+'[3]5.2 Asset Age Profile'!P17","v":0},{"$f":"'[2]5.2 Asset Age Profile'!Q17+'[3]5.2 Asset Age Profile'!Q17","v":0},{"$f":"'[2]5.2 Asset Age Profile'!R17+'[3]5.2 Asset Age Profile'!R17","v":0},{"$f":"'[2]5.2 Asset Age Profile'!S17+'[3]5.2 Asset Age Profile'!S17","v":0},{"$f":"'[2]5.2 Asset Age Profile'!T17+'[3]5.2 Asset Age Profile'!T17","v":0},{"$f":"'[2]5.2 Asset Age Profile'!U17+'[3]5.2 Asset Age Profile'!U17","v":0},{"$f":"'[2]5.2 Asset Age Profile'!V17+'[3]5.2 Asset Age Profile'!V17","v":0},{"$f":"'[2]5.2 Asset Age Profile'!W17+'[3]5.2 Asset Age Profile'!W17","v":0},{"$f":"'[2]5.2 Asset Age Profile'!X17+'[3]5.2 Asset Age Profile'!X17","v":0},{"$f":"'[2]5.2 Asset Age Profile'!Y17+'[3]5.2 Asset Age Profile'!Y17","v":22},{"$f":"'[2]5.2 Asset Age Profile'!Z17+'[3]5.2 Asset Age Profile'!Z17","v":0},{"$f":"'[2]5.2 Asset Age Profile'!AA17+'[3]5.2 Asset Age Profile'!AA17","v":0},{"$f":"'[2]5.2 Asset Age Profile'!AB17+'[3]5.2 Asset Age Profile'!AB17","v":0},{"$f":"'[2]5.2 Asset Age Profile'!AC17+'[3]5.2 Asset Age Profile'!AC17","v":0},{"$f":"'[2]5.2 Asset Age Profile'!AD17+'[3]5.2 Asset Age Profile'!AD17","v":0},{"$f":"'[2]5.2 Asset Age Profile'!AE17+'[3]5.2 Asset Age Profile'!AE17","v":0},{"$f":"'[2]5.2 Asset Age Profile'!AF17+'[3]5.2 Asset Age Profile'!AF17","v":0},{"$f":"'[2]5.2 Asset Age Profile'!AG17+'[3]5.2 Asset Age Profile'!AG17","v":0},{"$f":"'[2]5.2 Asset Age Profile'!AH17+'[3]5.2 Asset Age Profile'!AH17","v":0},{"$f":"'[2]5.2 Asset Age Profile'!AI17+'[3]5.2 Asset Age Profile'!AI17","v":0},{"$f":"'[2]5.2 Asset Age Profile'!AJ17+'[3]5.2 Asset Age Profile'!AJ17","v":0},{"$f":"'[2]5.2 Asset Age Profile'!AK17+'[3]5.2 Asset Age Profile'!AK17","v":0},{"$f":"'[2]5.2 Asset Age Profile'!AL17+'[3]5.2 Asset Age Profile'!AL17","v":0},{"$f":"'[2]5.2 Asset Age Profile'!AM17+'[3]5.2 Asset Age Profile'!AM17","v":0},{"$f":"'[2]5.2 Asset Age Profile'!AN17+'[3]5.2 Asset Age Profile'!AN17","v":0},{"$f":"'[2]5.2 Asset Age Profile'!AO17+'[3]5.2 Asset Age Profile'!AO17","v":0},{"$f":"'[2]5.2 Asset Age Profile'!AP17+'[3]5.2 Asset Age Profile'!AP17","v":0},{"$f":"'[2]5.2 Asset Age Profile'!AQ17+'[3]5.2 Asset Age Profile'!AQ17","v":0},{"$f":"'[2]5.2 Asset Age Profile'!AR17+'[3]5.2 Asset Age Profile'!AR17","v":0},{"$f":"'[2]5.2 Asset Age Profile'!AS17+'[3]5.2 Asset Age Profile'!AS17","v":0},{"$f":"'[2]5.2 Asset Age Profile'!AT17+'[3]5.2 Asset Age Profile'!AT17","v":0},{"$f":"'[2]5.2 Asset Age Profile'!AU17+'[3]5.2 Asset Age Profile'!AU17","v":0},{"$f":"'[2]5.2 Asset Age Profile'!AV17+'[3]5.2 Asset Age Profile'!AV17","v":0},{"$f":"'[2]5.2 Asset Age Profile'!AW17+'[3]5.2 Asset Age Profile'!AW17","v":0},{"$f":"'[2]5.2 Asset Age Profile'!AX17+'[3]5.2 Asset Age Profile'!AX17","v":0},{"$f":"'[2]5.2 Asset Age Profile'!AY17+'[3]5.2 Asset Age Profile'!AY17","v":0},{"$f":"'[2]5.2 Asset Age Profile'!AZ17+'[3]5.2 Asset Age Profile'!AZ17","v":0},{"$f":"'[2]5.2 Asset Age Profile'!BA17+'[3]5.2 Asset Age Profile'!BA17","v":0},{"$f":"'[2]5.2 Asset Age Profile'!BB17+'[3]5.2 Asset Age Profile'!BB17","v":0},{"$f":"'[2]5.2 Asset Age Profile'!BC17+'[3]5.2 Asset Age Profile'!BC17","v":0},{"$f":"'[2]5.2 Asset Age Profile'!BD17+'[3]5.2 Asset Age Profile'!BD17","v":0},{"$f":"'[2]5.2 Asset Age Profile'!BE17+'[3]5.2 Asset Age Profile'!BE17","v":0},{"$f":"'[2]5.2 Asset Age Profile'!BF17+'[3]5.2 Asset Age Profile'!BF17","v":0},{"$f":"'[2]5.2 Asset Age Profile'!BG17+'[3]5.2 Asset Age Profile'!BG17","v":0},{"$f":"'[2]5.2 Asset Age Profile'!BH17+'[3]5.2 Asset Age Profile'!BH17","v":0},{"$f":"'[2]5.2 Asset Age Profile'!BI17+'[3]5.2 Asset Age Profile'!BI17","v":0},{"$f":"'[2]5.2 Asset Age Profile'!BJ17+'[3]5.2 Asset Age Profile'!BJ17","v":0},{"$f":"'[2]5.2 Asset Age Profile'!BK17+'[3]5.2 Asset Age Profile'!BK17","v":0},{"$f":"'[2]5.2 Asset Age Profile'!BL17+'[3]5.2 Asset Age Profile'!BL17","v":0},{"$f":"'[2]5.2 Asset Age Profile'!BM17+'[3]5.2 Asset Age Profile'!BM17","v":0},{"$f":"'[2]5.2 Asset Age Profile'!BN17+'[3]5.2 Asset Age Profile'!BN17","v":0},{"$f":"'[2]5.2 Asset Age Profile'!BO17+'[3]5.2 Asset Age Profile'!BO17","v":0},{"$f":"'[2]5.2 Asset Age Profile'!BP17+'[3]5.2 Asset Age Profile'!BP17","v":0},{"$f":"'[2]5.2 Asset Age Profile'!BQ17+'[3]5.2 Asset Age Profile'!BQ17","v":0},{"$f":"'[2]5.2 Asset Age Profile'!BR17+'[3]5.2 Asset Age Profile'!BR17","v":0},{"$f":"'[2]5.2 Asset Age Profile'!BS17+'[3]5.2 Asset Age Profile'!BS17","v":0},{"$f":"'[2]5.2 Asset Age Profile'!BT17+'[3]5.2 Asset Age Profile'!BT17","v":0},{"$f":"'[2]5.2 Asset Age Profile'!BU17+'[3]5.2 Asset Age Profile'!BU17","v":0},{"$f":"'[2]5.2 Asset Age Profile'!BV17+'[3]5.2 Asset Age Profile'!BV17","v":0},{"$f":"'[2]5.2 Asset Age Profile'!BW17+'[3]5.2 Asset Age Profile'!BW17","v":0},{"$f":"'[2]5.2 Asset Age Profile'!BX17+'[3]5.2 Asset Age Profile'!BX17","v":0},{"$f":"'[2]5.2 Asset Age Profile'!BY17+'[3]5.2 Asset Age Profile'!BY17","v":0},{"$f":"'[2]5.2 Asset Age Profile'!BZ17+'[3]5.2 Asset Age Profile'!BZ17","v":0},{"$f":"'[2]5.2 Asset Age Profile'!CA17+'[3]5.2 Asset Age Profile'!CA17","v":0},{"$f":"'[2]5.2 Asset Age Profile'!CB17+'[3]5.2 Asset Age Profile'!CB17","v":0},{"$f":"'[2]5.2 Asset Age Profile'!CC17+'[3]5.2 Asset Age Profile'!CC17","v":0},{"$f":"'[2]5.2 Asset Age Profile'!CD17+'[3]5.2 Asset Age Profile'!CD17","v":0},{"$f":"'[2]5.2 Asset Age Profile'!CE17+'[3]5.2 Asset Age Profile'!CE17","v":0},{"$f":"'[2]5.2 Asset Age Profile'!CF17+'[3]5.2 Asset Age Profile'!CF17","v":0},{"$f":"'[2]5.2 Asset Age Profile'!CG17+'[3]5.2 Asset Age Profile'!CG17","v":0},{"$f":"'[2]5.2 Asset Age Profile'!CH17+'[3]5.2 Asset Age Profile'!CH17","v":0},{"$f":"'[2]5.2 Asset Age Profile'!CI17+'[3]5.2 Asset Age Profile'!CI17","v":0},{"$f":"'[2]5.2 Asset Age Profile'!CJ17+'[3]5.2 Asset Age Profile'!CJ17","v":0},{"$f":"'[2]5.2 Asset Age Profile'!CK17+'[3]5.2 Asset Age Profile'!CK17","v":0},{"$f":"'[2]5.2 Asset Age Profile'!CL17+'[3]5.2 Asset Age Profile'!CL17","v":0},{"$f":"'[2]5.2 Asset Age Profile'!CM17+'[3]5.2 Asset Age Profile'!CM17","v":0},{"$f":"'[2]5.2 Asset Age Profile'!CN17+'[3]5.2 Asset Age Profile'!CN17","v":0},{"$f":"'[2]5.2 Asset Age Profile'!CO17+'[3]5.2 Asset Age Profile'!CO17","v":0},{"$f":"'[2]5.2 Asset Age Profile'!CP17+'[3]5.2 Asset Age Profile'!CP17","v":0},{"$f":"'[2]5.2 Asset Age Profile'!CQ17+'[3]5.2 Asset Age Profile'!CQ17","v":0},{"$f":"'[2]5.2 Asset Age Profile'!CR17+'[3]5.2 Asset Age Profile'!CR17","v":0},{"$f":"'[2]5.2 Asset Age Profile'!CS17+'[3]5.2 Asset Age Profile'!CS17","v":0},{"$f":"'[2]5.2 Asset Age Profile'!CT17+'[3]5.2 Asset Age Profile'!CT17","v":0},{"$f":"'[2]5.2 Asset Age Profile'!CU17+'[3]5.2 Asset Age Profile'!CU17","v":0},{"$f":"'[2]5.2 Asset Age Profile'!CV17+'[3]5.2 Asset Age Profile'!CV17","v":0},{"$f":"'[2]5.2 Asset Age Profile'!CW17+'[3]5.2 Asset Age Profile'!CW17","v":0},{"$f":"'[2]5.2 Asset Age Profile'!CX17+'[3]5.2 Asset Age Profile'!CX17","v":0},{"$f":"'[2]5.2 Asset Age Profile'!CY17+'[3]5.2 Asset Age Profile'!CY17","v":0},{"$f":"'[2]5.2 Asset Age Profile'!CZ17+'[3]5.2 Asset Age Profile'!CZ17","v":0},{"$f":"'[2]5.2 Asset Age Profile'!DA17+'[3]5.2 Asset Age Profile'!DA17","v":0},{"$f":"'[2]5.2 Asset Age Profile'!DB17+'[3]5.2 Asset Age Profile'!DB17","v":0},{"$f":"'[2]5.2 Asset Age Profile'!DC17+'[3]5.2 Asset Age Profile'!DC17","v":0},{"$f":"'[2]5.2 Asset Age Profile'!DD17+'[3]5.2 Asset Age Profile'!DD17","v":0},{"$f":"'[2]5.2 Asset Age Profile'!DE17+'[3]5.2 Asset Age Profile'!DE17","v":0},{"$f":"'[2]5.2 Asset Age Profile'!DF17+'[3]5.2 Asset Age Profile'!DF17","v":0},{"$f":"'[2]5.2 Asset Age Profile'!DG17+'[3]5.2 Asset Age Profile'!DG17","v":0},{"$f":"'[2]5.2 Asset Age Profile'!DH17+'[3]5.2 Asset Age Profile'!DH17","v":0},{"$f":"'[2]5.2 Asset Age Profile'!DI17+'[3]5.2 Asset Age Profile'!DI17","v":0},{"$f":"'[2]5.2 Asset Age Profile'!DJ17+'[3]5.2 Asset Age Profile'!DJ17","v":0},{"$f":"'[2]5.2 Asset Age Profile'!DK17+'[3]5.2 Asset Age Profile'!DK17","v":0},{"$f":"'[2]5.2 Asset Age Profile'!DL17+'[3]5.2 Asset Age Profile'!DL17","v":0},{"$f":"'[2]5.2 Asset Age Profile'!DM17+'[3]5.2 Asset Age Profile'!DM17","v":0},{"$f":"'[2]5.2 Asset Age Profile'!DN17+'[3]5.2 Asset Age Profile'!DN17","v":0},{"$f":"'[2]5.2 Asset Age Profile'!DO17+'[3]5.2 Asset Age Profile'!DO17","v":0},{"$f":"'[2]5.2 Asset Age Profile'!DP17+'[3]5.2 Asset Age Profile'!DP17","v":0},{"$f":"'[2]5.2 Asset Age Profile'!DQ17+'[3]5.2 Asset Age Profile'!DQ17","v":0},{"$f":"'[2]5.2 Asset Age Profile'!DR17+'[3]5.2 Asset Age Profile'!DR17","v":0},{"$f":"'[2]5.2 Asset Age Profile'!DS17+'[3]5.2 Asset Age Profile'!DS17","v":0},{"$f":"'[2]5.2 Asset Age Profile'!DT17+'[3]5.2 Asset Age Profile'!DT17","v":0},{"$f":"'[2]5.2 Asset Age Profile'!DU17+'[3]5.2 Asset Age Profile'!DU17","v":0},{"$f":"'[2]5.2 Asset Age Profile'!DV17+'[3]5.2 Asset Age Profile'!DV17","v":0},{"$f":"'[2]5.2 Asset Age Profile'!DW17+'[3]5.2 Asset Age Profile'!DW17","v":0},{"$f":"'[2]5.2 Asset Age Profile'!DX17+'[3]5.2 Asset Age Profile'!DX17","v":0},{"$f":"'[2]5.2 Asset Age Profile'!DY17+'[3]5.2 Asset Age Profile'!DY17","v":0},{"$f":"'[2]5.2 Asset Age Profile'!DZ17+'[3]5.2 Asset Age Profile'!DZ17","v":0},{"$f":"'[2]5.2 Asset Age Profile'!EA17+'[3]5.2 Asset Age Profile'!EA17","v":0},{"$f":"'[2]5.2 Asset Age Profile'!EB17+'[3]5.2 Asset Age Profile'!EB17","v":0},{"$f":"'[2]5.2 Asset Age Profile'!EC17+'[3]5.2 Asset Age Profile'!EC17","v":0},{"$f":"'[2]5.2 Asset Age Profile'!ED17+'[3]5.2 Asset Age Profile'!ED17","v":0},{"$f":"'[2]5.2 Asset Age Profile'!EE17+'[3]5.2 Asset Age Profile'!EE17","v":0},{"$f":"'[2]5.2 Asset Age Profile'!EF17+'[3]5.2 Asset Age Profile'!EF17","v":0},{"$f":"'[2]5.2 Asset Age Profile'!EG17+'[3]5.2 Asset Age Profile'!EG17","v":0},{"$f":"'[2]5.2 Asset Age Profile'!EH17+'[3]5.2 Asset Age Profile'!EH17","v":0},{"$f":"'[2]5.2 Asset Age Profile'!EI17+'[3]5.2 Asset Age Profile'!EI17","v":0},{"$f":"'[2]5.2 Asset Age Profile'!EJ17+'[3]5.2 Asset Age Profile'!EJ17","v":0}]
["ED_ASS521_00008",null,"˂ = 1 kV; Concrete",null,"DNSP NAME","REPEX","POLES","˂ = 1 kV; Concrete","DESCRIPTOR METRIC","MEAN ECONOMIC LIFE","YEARS","NUMBER",null,{"$f":"'[2]5.2 Asset Age Profile'!N18+'[3]5.2 Asset Age Profile'!N18","v":60},{"$f":"'[2]5.2 Asset Age Profile'!O18+'[3]5.2 Asset Age Profile'!O18","v":0},{"$f":"'[2]5.2 Asset Age Profile'!P18+'[3]5.2 Asset Age Profile'!P18","v":0},{"$f":"'[2]5.2 Asset Age Profile'!Q18+'[3]5.2 Asset Age Profile'!Q18","v":0},{"$f":"'[2]5.2 Asset Age Profile'!R18+'[3]5.2 Asset Age Profile'!R18","v":0},{"$f":"'[2]5.2 Asset Age Profile'!S18+'[3]5.2 Asset Age Profile'!S18","v":0},{"$f":"'[2]5.2 Asset Age Profile'!T18+'[3]5.2 Asset Age Profile'!T18","v":0},{"$f":"'[2]5.2 Asset Age Profile'!U18+'[3]5.2 Asset Age Profile'!U18","v":0},{"$f":"'[2]5.2 Asset Age Profile'!V18+'[3]5.2 Asset Age Profile'!V18","v":0},{"$f":"'[2]5.2 Asset Age Profile'!W18+'[3]5.2 Asset Age Profile'!W18","v":0},{"$f":"'[2]5.2 Asset Age Profile'!X18+'[3]5.2 Asset Age Profile'!X18","v":0},{"$f":"'[2]5.2 Asset Age Profile'!Y18+'[3]5.2 Asset Age Profile'!Y18","v":10},{"$f":"'[2]5.2 Asset Age Profile'!Z18+'[3]5.2 Asset Age Profile'!Z18","v":0},{"$f":"'[2]5.2 Asset Age Profile'!AA18+'[3]5.2 Asset Age Profile'!AA18","v":0},{"$f":"'[2]5.2 Asset Age Profile'!AB18+'[3]5.2 Asset Age Profile'!AB18","v":0},{"$f":"'[2]5.2 Asset Age Profile'!AC18+'[3]5.2 Asset Age Profile'!AC18","v":0},{"$f":"'[2]5.2 Asset Age Profile'!AD18+'[3]5.2 Asset Age Profile'!AD18","v":0},{"$f":"'[2]5.2 Asset Age Profile'!AE18+'[3]5.2 Asset Age Profile'!AE18","v":0},{"$f":"'[2]5.2 Asset Age Profile'!AF18+'[3]5.2 Asset Age Profile'!AF18","v":0},{"$f":"'[2]5.2 Asset Age Profile'!AG18+'[3]5.2 Asset Age Profile'!AG18","v":0},{"$f":"'[2]5.2 Asset Age Profile'!AH18+'[3]5.2 Asset Age Profile'!AH18","v":0},{"$f":"'[2]5.2 Asset Age Profile'!AI18+'[3]5.2 Asset Age Profile'!AI18","v":0},{"$f":"'[2]5.2 Asset Age Profile'!AJ18+'[3]5.2 Asset Age Profile'!AJ18","v":95},{"$f":"'[2]5.2 Asset Age Profile'!AK18+'[3]5.2 Asset Age Profile'!AK18","v":104},{"$f":"'[2]5.2 Asset Age Profile'!AL18+'[3]5.2 Asset Age Profile'!AL18","v":85},{"$f":"'[2]5.2 Asset Age Profile'!AM18+'[3]5.2 Asset Age Profile'!AM18","v":100},{"$f":"'[2]5.2 Asset Age Profile'!AN18+'[3]5.2 Asset Age Profile'!AN18","v":155},{"$f":"'[2]5.2 Asset Age Profile'!AO18+'[3]5.2 Asset Age Profile'!AO18","v":172},{"$f":"'[2]5.2 Asset Age Profile'!AP18+'[3]5.2 Asset Age Profile'!AP18","v":199},{"$f":"'[2]5.2 Asset Age Profile'!AQ18+'[3]5.2 Asset Age Profile'!AQ18","v":225},{"$f":"'[2]5.2 Asset Age Profile'!AR18+'[3]5.2 Asset Age Profile'!AR18","v":179},{"$f":"'[2]5.2 Asset Age Profile'!AS18+'[3]5.2 Asset Age Profile'!AS18","v":169},{"$f":"'[2]5.2 Asset Age Profile'!AT18+'[3]5.2 Asset Age Profile'!AT18","v":180},{"$f":"'[2]5.2 Asset Age Profile'!AU18+'[3]5.2 Asset Age Profile'!AU18","v":146},{"$f":"'[2]5.2 Asset Age Profile'!AV18+'[3]5.2 Asset Age Profile'!AV18","v":48},{"$f":"'[2]5.2 Asset Age Profile'!AW18+'[3]5.2 Asset Age Profile'!AW18","v":120},{"$f":"'[2]5.2 Asset Age Profile'!AX18+'[3]5.2 Asset Age Profile'!AX18","v":143},{"$f":"'[2]5.2 Asset Age Profile'!AY18+'[3]5.2 Asset Age Profile'!AY18","v":124},{"$f":"'[2]5.2 Asset Age Profile'!AZ18+'[3]5.2 Asset Age Profile'!AZ18","v":12},{"$f":"'[2]5.2 Asset Age Profile'!BA18+'[3]5.2 Asset Age Profile'!BA18","v":5},{"$f":"'[2]5.2 Asset Age Profile'!BB18+'[3]5.2 Asset Age Profile'!BB18","v":2},{"$f":"'[2]5.2 Asset Age Profile'!BC18+'[3]5.2 Asset Age Profile'!BC18","v":7},{"$f":"'[2]5.2 Asset Age Profile'!BD18+'[3]5.2 Asset Age Profile'!BD18","v":18},{"$f":"'[2]5.2 Asset Age Profile'!BE18+'[3]5.2 Asset Age Profile'!BE18","v":39},{"$f":"'[2]5.2 Asset Age Profile'!BF18+'[3]5.2 Asset Age Profile'!BF18","v":95},{"$f":"'[2]5.2 Asset Age Profile'!BG18+'[3]5.2 Asset Age Profile'!BG18","v":73},{"$f":"'[2]5.2 Asset Age Profile'!BH18+'[3]5.2 Asset Age Profile'!BH18","v":139},{"$f":"'[2]5.2 Asset Age Profile'!BI18+'[3]5.2 Asset Age Profile'!BI18","v":387},{"$f":"'[2]5.2 Asset Age Profile'!BJ18+'[3]5.2 Asset Age Profile'!BJ18","v":276},{"$f":"'[2]5.2 Asset Age Profile'!BK18+'[3]5.2 Asset Age Profile'!BK18","v":240},{"$f":"'[2]5.2 Asset Age Profile'!BL18+'[3]5.2 Asset Age Profile'!BL18","v":362},{"$f":"'[2]5.2 Asset Age Profile'!BM18+'[3]5.2 Asset Age Profile'!BM18","v":464},{"$f":"'[2]5.2 Asset Age Profile'!BN18+'[3]5.2 Asset Age Profile'!BN18","v":528},{"$f":"'[2]5.2 Asset Age Profile'!BO18+'[3]5.2 Asset Age Profile'!BO18","v":33},{"$f":"'[2]5.2 Asset Age Profile'!BP18+'[3]5.2 Asset Age Profile'!BP18","v":4},{"$f":"'[2]5.2 Asset Age Profile'!BQ18+'[3]5.2 Asset Age Profile'!BQ18","v":62},{"$f":"'[2]5.2 Asset Age Profile'!BR18+'[3]5.2 Asset Age Profile'!BR18","v":3},{"$f":"'[2]5.2 Asset Age Profile'!BS18+'[3]5.2 Asset Age Profile'!BS18","v":2},{"$f":"'[2]5.2 Asset Age Profile'!BT18+'[3]5.2 Asset Age Profile'!BT18","v":0},{"$f":"'[2]5.2 Asset Age Profile'!BU18+'[3]5.2 Asset Age Profile'!BU18","v":38},{"$f":"'[2]5.2 Asset Age Profile'!BV18+'[3]5.2 Asset Age Profile'!BV18","v":0},{"$f":"'[2]5.2 Asset Age Profile'!BW18+'[3]5.2 Asset Age Profile'!BW18","v":5},{"$f":"'[2]5.2 Asset Age Profile'!BX18+'[3]5.2 Asset Age Profile'!BX18","v":12},{"$f":"'[2]5.2 Asset Age Profile'!BY18+'[3]5.2 Asset Age Profile'!BY18","v":15},{"$f":"'[2]5.2 Asset Age Profile'!BZ18+'[3]5.2 Asset Age Profile'!BZ18","v":1},{"$f":"'[2]5.2 Asset Age Profile'!CA18+'[3]5.2 Asset Age Profile'!CA18","v":3},{"$f":"'[2]5.2 Asset Age Profile'!CB18+'[3]5.2 Asset Age Profile'!CB18","v":0},{"$f":"'[2]5.2 Asset Age Profile'!CC18+'[3]5.2 Asset Age Profile'!CC18","v":2},{"$f":"'[2]5.2 Asset Age Profile'!CD18+'[3]5.2 Asset Age Profile'!CD18","v":0},{"$f":"'[2]5.2 Asset Age Profile'!CE18+'[3]5.2 Asset Age Profile'!CE18","v":1},{"$f":"'[2]5.2 Asset Age Profile'!CF18+'[3]5.2 Asset Age Profile'!CF18","v":6},{"$f":"'[2]5.2 Asset Age Profile'!CG18+'[3]5.2 Asset Age Profile'!CG18","v":4},{"$f":"'[2]5.2 Asset Age Profile'!CH18+'[3]5.2 Asset Age Profile'!CH18","v":0},{"$f":"'[2]5.2 Asset Age Profile'!CI18+'[3]5.2 Asset Age Profile'!CI18","v":1},{"$f":"'[2]5.2 Asset Age Profile'!CJ18+'[3]5.2 Asset Age Profile'!CJ18","v":1},{"$f":"'[2]5.2 Asset Age Profile'!CK18+'[3]5.2 Asset Age Profile'!CK18","v":1},{"$f":"'[2]5.2 Asset Age Profile'!CL18+'[3]5.2 Asset Age Profile'!CL18","v":2},{"$f":"'[2]5.2 Asset Age Profile'!CM18+'[3]5.2 Asset Age Profile'!CM18","v":1},{"$f":"'[2]5.2 Asset Age Profile'!CN18+'[3]5.2 Asset Age Profile'!CN18","v":0},{"$f":"'[2]5.2 Asset Age Profile'!CO18+'[3]5.2 Asset Age Profile'!CO18","v":14},{"$f":"'[2]5.2 Asset Age Profile'!CP18+'[3]5.2 Asset Age Profile'!CP18","v":0},{"$f":"'[2]5.2 Asset Age Profile'!CQ18+'[3]5.2 Asset Age Profile'!CQ18","v":0},{"$f":"'[2]5.2 Asset Age Profile'!CR18+'[3]5.2 Asset Age Profile'!CR18","v":0},{"$f":"'[2]5.2 Asset Age Profile'!CS18+'[3]5.2 Asset Age Profile'!CS18","v":0},{"$f":"'[2]5.2 Asset Age Profile'!CT18+'[3]5.2 Asset Age Profile'!CT18","v":0},{"$f":"'[2]5.2 Asset Age Profile'!CU18+'[3]5.2 Asset Age Profile'!CU18","v":0},{"$f":"'[2]5.2 Asset Age Profile'!CV18+'[3]5.2 Asset Age Profile'!CV18","v":0},{"$f":"'[2]5.2 Asset Age Profile'!CW18+'[3]5.2 Asset Age Profile'!CW18","v":0},{"$f":"'[2]5.2 Asset Age Profile'!CX18+'[3]5.2 Asset Age Profile'!CX18","v":0},{"$f":"'[2]5.2 Asset Age Profile'!CY18+'[3]5.2 Asset Age Profile'!CY18","v":1},{"$f":"'[2]5.2 Asset Age Profile'!CZ18+'[3]5.2 Asset Age Profile'!CZ18","v":4},{"$f":"'[2]5.2 Asset Age Profile'!DA18+'[3]5.2 Asset Age Profile'!DA18","v":2},{"$f":"'[2]5.2 Asset Age Profile'!DB18+'[3]5.2 Asset Age Profile'!DB18","v":1},{"$f":"'[2]5.2 Asset Age Profile'!DC18+'[3]5.2 Asset Age Profile'!DC18","v":5},{"$f":"'[2]5.2 Asset Age Profile'!DD18+'[3]5.2 Asset Age Profile'!DD18","v":5},{"$f":"'[2]5.2 Asset Age Profile'!DE18+'[3]5.2 Asset Age Profile'!DE18","v":3},{"$f":"'[2]5.2 Asset Age Profile'!DF18+'[3]5.2 Asset Age Profile'!DF18","v":0},{"$f":"'[2]5.2 Asset Age Profile'!DG18+'[3]5.2 Asset Age Profile'!DG18","v":0},{"$f":"'[2]5.2 Asset Age Profile'!DH18+'[3]5.2 Asset Age Profile'!DH18","v":0},{"$f":"'[2]5.2 Asset Age Profile'!DI18+'[3]5.2 Asset Age Profile'!DI18","v":1},{"$f":"'[2]5.2 Asset Age Profile'!DJ18+'[3]5.2 Asset Age Profile'!DJ18","v":0},{"$f":"'[2]5.2 Asset Age Profile'!DK18+'[3]5.2 Asset Age Profile'!DK18","v":0},{"$f":"'[2]5.2 Asset Age Profile'!DL18+'[3]5.2 Asset Age Profile'!DL18","v":0},{"$f":"'[2]5.2 Asset Age Profile'!DM18+'[3]5.2 Asset Age Profile'!DM18","v":0},{"$f":"'[2]5.2 Asset Age Profile'!DN18+'[3]5.2 Asset Age Profile'!DN18","v":0},{"$f":"'[2]5.2 Asset Age Profile'!DO18+'[3]5.2 Asset Age Profile'!DO18","v":0},{"$f":"'[2]5.2 Asset Age Profile'!DP18+'[3]5.2 Asset Age Profile'!DP18","v":0},{"$f":"'[2]5.2 Asset Age Profile'!DQ18+'[3]5.2 Asset Age Profile'!DQ18","v":0},{"$f":"'[2]5.2 Asset Age Profile'!DR18+'[3]5.2 Asset Age Profile'!DR18","v":0},{"$f":"'[2]5.2 Asset Age Profile'!DS18+'[3]5.2 Asset Age Profile'!DS18","v":0},{"$f":"'[2]5.2 Asset Age Profile'!DT18+'[3]5.2 Asset Age Profile'!DT18","v":0},{"$f":"'[2]5.2 Asset Age Profile'!DU18+'[3]5.2 Asset Age Profile'!DU18","v":0},{"$f":"'[2]5.2 Asset Age Profile'!DV18+'[3]5.2 Asset Age Profile'!DV18","v":0},{"$f":"'[2]5.2 Asset Age Profile'!DW18+'[3]5.2 Asset Age Profile'!DW18","v":0},{"$f":"'[2]5.2 Asset Age Profile'!DX18+'[3]5.2 Asset Age Profile'!DX18","v":0},{"$f":"'[2]5.2 Asset Age Profile'!DY18+'[3]5.2 Asset Age Profile'!DY18","v":0},{"$f":"'[2]5.2 Asset Age Profile'!DZ18+'[3]5.2 Asset Age Profile'!DZ18","v":0},{"$f":"'[2]5.2 Asset Age Profile'!EA18+'[3]5.2 Asset Age Profile'!EA18","v":0},{"$f":"'[2]5.2 Asset Age Profile'!EB18+'[3]5.2 Asset Age Profile'!EB18","v":0},{"$f":"'[2]5.2 Asset Age Profile'!EC18+'[3]5.2 Asset Age Profile'!EC18","v":0},{"$f":"'[2]5.2 Asset Age Profile'!ED18+'[3]5.2 Asset Age Profile'!ED18","v":0},{"$f":"'[2]5.2 Asset Age Profile'!EE18+'[3]5.2 Asset Age Profile'!EE18","v":0},{"$f":"'[2]5.2 Asset Age Profile'!EF18+'[3]5.2 Asset Age Profile'!EF18","v":0},{"$f":"'[2]5.2 Asset Age Profile'!EG18+'[3]5.2 Asset Age Profile'!EG18","v":0},{"$f":"'[2]5.2 Asset Age Profile'!EH18+'[3]5.2 Asset Age Profile'!EH18","v":0},{"$f":"'[2]5.2 Asset Age Profile'!EI18+'[3]5.2 Asset Age Profile'!EI18","v":0},{"$f":"'[2]5.2 Asset Age Profile'!EJ18+'[3]5.2 Asset Age Profile'!EJ18","v":0}]
["ED_ASS521_00009",null,"> 1 kV & < = 11 kV; Concrete",null,"DNSP NAME","REPEX","POLES","> 1 kV & < = 11 kV; Concrete","DESCRIPTOR METRIC","MEAN ECONOMIC LIFE","YEARS","NUMBER",null,{"$f":"'[2]5.2 Asset Age Profile'!N19+'[3]5.2 Asset Age Profile'!N19","v":60},{"$f":"'[2]5.2 Asset Age Profile'!O19+'[3]5.2 Asset Age Profile'!O19","v":0},{"$f":"'[2]5.2 Asset Age Profile'!P19+'[3]5.2 Asset Age Profile'!P19","v":0},{"$f":"'[2]5.2 Asset Age Profile'!Q19+'[3]5.2 Asset Age Profile'!Q19","v":0},{"$f":"'[2]5.2 Asset Age Profile'!R19+'[3]5.2 Asset Age Profile'!R19","v":0},{"$f":"'[2]5.2 Asset Age Profile'!S19+'[3]5.2 Asset Age Profile'!S19","v":0},{"$f":"'[2]5.2 Asset Age Profile'!T19+'[3]5.2 Asset Age Profile'!T19","v":0},{"$f":"'[2]5.2 Asset Age Profile'!U19+'[3]5.2 Asset Age Profile'!U19","v":0},{"$f":"'[2]5.2 Asset Age Profile'!V19+'[3]5.2 Asset Age Profile'!V19","v":0},{"$f":"'[2]5.2 Asset Age Profile'!W19+'[3]5.2 Asset Age Profile'!W19","v":0},{"$f":"'[2]5.2 Asset Age Profile'!X19+'[3]5.2 Asset Age Profile'!X19","v":0},{"$f":"'[2]5.2 Asset Age Profile'!Y19+'[3]5.2 Asset Age Profile'!Y19","v":10},{"$f":"'[2]5.2 Asset Age Profile'!Z19+'[3]5.2 Asset Age Profile'!Z19","v":0},{"$f":"'[2]5.2 Asset Age Profile'!AA19+'[3]5.2 Asset Age Profile'!AA19","v":0},{"$f":"'[2]5.2 Asset Age Profile'!AB19+'[3]5.2 Asset Age Profile'!AB19","v":0},{"$f":"'[2]5.2 Asset Age Profile'!AC19+'[3]5.2 Asset Age Profile'!AC19","v":0},{"$f":"'[2]5.2 Asset Age Profile'!AD19+'[3]5.2 Asset Age Profile'!AD19","v":0},{"$f":"'[2]5.2 Asset Age Profile'!AE19+'[3]5.2 Asset Age Profile'!AE19","v":0},{"$f":"'[2]5.2 Asset Age Profile'!AF19+'[3]5.2 Asset Age Profile'!AF19","v":0},{"$f":"'[2]5.2 Asset Age Profile'!AG19+'[3]5.2 Asset Age Profile'!AG19","v":0},{"$f":"'[2]5.2 Asset Age Profile'!AH19+'[3]5.2 Asset Age Profile'!AH19","v":0},{"$f":"'[2]5.2 Asset Age Profile'!AI19+'[3]5.2 Asset Age Profile'!AI19","v":0},{"$f":"'[2]5.2 Asset Age Profile'!AJ19+'[3]5.2 Asset Age Profile'!AJ19","v":1},{"$f":"'[2]5.2 Asset Age Profile'!AK19+'[3]5.2 Asset Age Profile'!AK19","v":2},{"$f":"'[2]5.2 Asset Age Profile'!AL19+'[3]5.2 Asset Age Profile'!AL19","v":12},{"$f":"'[2]5.2 Asset Age Profile'!AM19+'[3]5.2 Asset Age Profile'!AM19","v":7},{"$f":"'[2]5.2 Asset Age Profile'!AN19+'[3]5.2 Asset Age Profile'!AN19","v":1},{"$f":"'[2]5.2 Asset Age Profile'!AO19+'[3]5.2 Asset Age Profile'!AO19","v":3},{"$f":"'[2]5.2 Asset Age Profile'!AP19+'[3]5.2 Asset Age Profile'!AP19","v":5},{"$f":"'[2]5.2 Asset Age Profile'!AQ19+'[3]5.2 Asset Age Profile'!AQ19","v":7},{"$f":"'[2]5.2 Asset Age Profile'!AR19+'[3]5.2 Asset Age Profile'!AR19","v":6},{"$f":"'[2]5.2 Asset Age Profile'!AS19+'[3]5.2 Asset Age Profile'!AS19","v":0},{"$f":"'[2]5.2 Asset Age Profile'!AT19+'[3]5.2 Asset Age Profile'!AT19","v":0},{"$f":"'[2]5.2 Asset Age Profile'!AU19+'[3]5.2 Asset Age Profile'!AU19","v":4},{"$f":"'[2]5.2 Asset Age Profile'!AV19+'[3]5.2 Asset Age Profile'!AV19","v":8},{"$f":"'[2]5.2 Asset Age Profile'!AW19+'[3]5.2 Asset Age Profile'!AW19","v":2},{"$f":"'[2]5.2 Asset Age Profile'!AX19+'[3]5.2 Asset Age Profile'!AX19","v":1},{"$f":"'[2]5.2 Asset Age Profile'!AY19+'[3]5.2 Asset Age Profile'!AY19","v":2},{"$f":"'[2]5.2 Asset Age Profile'!AZ19+'[3]5.2 Asset Age Profile'!AZ19","v":4},{"$f":"'[2]5.2 Asset Age Profile'!BA19+'[3]5.2 Asset Age Profile'!BA19","v":0},{"$f":"'[2]5.2 Asset Age Profile'!BB19+'[3]5.2 Asset Age Profile'!BB19","v":1},{"$f":"'[2]5.2 Asset Age Profile'!BC19+'[3]5.2 Asset Age Profile'!BC19","v":0},{"$f":"'[2]5.2 Asset Age Profile'!BD19+'[3]5.2 Asset Age Profile'!BD19","v":0},{"$f":"'[2]5.2 Asset Age Profile'!BE19+'[3]5.2 Asset Age Profile'!BE19","v":0},{"$f":"'[2]5.2 Asset Age Profile'!BF19+'[3]5.2 Asset Age Profile'!BF19","v":0},{"$f":"'[2]5.2 Asset Age Profile'!BG19+'[3]5.2 Asset Age Profile'!BG19","v":0},{"$f":"'[2]5.2 Asset Age Profile'!BH19+'[3]5.2 Asset Age Profile'!BH19","v":1},{"$f":"'[2]5.2 Asset Age Profile'!BI19+'[3]5.2 Asset Age Profile'!BI19","v":0},{"$f":"'[2]5.2 Asset Age Profile'!BJ19+'[3]5.2 Asset Age Profile'!BJ19","v":1},{"$f":"'[2]5.2 Asset Age Profile'!BK19+'[3]5.2 Asset Age Profile'!BK19","v":1},{"$f":"'[2]5.2 Asset Age Profile'!BL19+'[3]5.2 Asset Age Profile'!BL19","v":3},{"$f":"'[2]5.2 Asset Age Profile'!BM19+'[3]5.2 Asset Age Profile'!BM19","v":1},{"$f":"'[2]5.2 Asset Age Profile'!BN19+'[3]5.2 Asset Age Profile'!BN19","v":0},{"$f":"'[2]5.2 Asset Age Profile'!BO19+'[3]5.2 Asset Age Profile'!BO19","v":0},{"$f":"'[2]5.2 Asset Age Profile'!BP19+'[3]5.2 Asset Age Profile'!BP19","v":0},{"$f":"'[2]5.2 Asset Age Profile'!BQ19+'[3]5.2 Asset Age Profile'!BQ19","v":0},{"$f":"'[2]5.2 Asset Age Profile'!BR19+'[3]5.2 Asset Age Profile'!BR19","v":0},{"$f":"'[2]5.2 Asset Age Profile'!BS19+'[3]5.2 Asset Age Profile'!BS19","v":0},{"$f":"'[2]5.2 Asset Age Profile'!BT19+'[3]5.2 Asset Age Profile'!BT19","v":0},{"$f":"'[2]5.2 Asset Age Profile'!BU19+'[3]5.2 Asset Age Profile'!BU19","v":0},{"$f":"'[2]5.2 Asset Age Profile'!BV19+'[3]5.2 Asset Age Profile'!BV19","v":0},{"$f":"'[2]5.2 Asset Age Profile'!BW19+'[3]5.2 Asset Age Profile'!BW19","v":0},{"$f":"'[2]5.2 Asset Age Profile'!BX19+'[3]5.2 Asset Age Profile'!BX19","v":0},{"$f":"'[2]5.2 Asset Age Profile'!BY19+'[3]5.2 Asset Age Profile'!BY19","v":0},{"$f":"'[2]5.2 Asset Age Profile'!BZ19+'[3]5.2 Asset Age Profile'!BZ19","v":0},{"$f":"'[2]5.2 Asset Age Profile'!CA19+'[3]5.2 Asset Age Profile'!CA19","v":0},{"$f":"'[2]5.2 Asset Age Profile'!CB19+'[3]5.2 Asset Age Profile'!CB19","v":0},{"$f":"'[2]5.2 Asset Age Profile'!CC19+'[3]5.2 Asset Age Profile'!CC19","v":0},{"$f":"'[2]5.2 Asset Age Profile'!CD19+'[3]5.2 Asset Age Profile'!CD19","v":0},{"$f":"'[2]5.2 Asset Age Profile'!CE19+'[3]5.2 Asset Age Profile'!CE19","v":0},{"$f":"'[2]5.2 Asset Age Profile'!CF19+'[3]5.2 Asset Age Profile'!CF19","v":0},{"$f":"'[2]5.2 Asset Age Profile'!CG19+'[3]5.2 Asset Age Profile'!CG19","v":0},{"$f":"'[2]5.2 Asset Age Profile'!CH19+'[3]5.2 Asset Age Profile'!CH19","v":0},{"$f":"'[2]5.2 Asset Age Profile'!CI19+'[3]5.2 Asset Age Profile'!CI19","v":0},{"$f":"'[2]5.2 Asset Age Profile'!CJ19+'[3]5.2 Asset Age Profile'!CJ19","v":0},{"$f":"'[2]5.2 Asset Age Profile'!CK19+'[3]5.2 Asset Age Profile'!CK19","v":0},{"$f":"'[2]5.2 Asset Age Profile'!CL19+'[3]5.2 Asset Age Profile'!CL19","v":0},{"$f":"'[2]5.2 Asset Age Profile'!CM19+'[3]5.2 Asset Age Profile'!CM19","v":0},{"$f":"'[2]5.2 Asset Age Profile'!CN19+'[3]5.2 Asset Age Profile'!CN19","v":0},{"$f":"'[2]5.2 Asset Age Profile'!CO19+'[3]5.2 Asset Age Profile'!CO19","v":0},{"$f":"'[2]5.2 Asset Age Profile'!CP19+'[3]5.2 Asset Age Profile'!CP19","v":0},{"$f":"'[2]5.2 Asset Age Profile'!CQ19+'[3]5.2 Asset Age Profile'!CQ19","v":0},{"$f":"'[2]5.2 Asset Age Profile'!CR19+'[3]5.2 Asset Age Profile'!CR19","v":0},{"$f":"'[2]5.2 Asset Age Profile'!CS19+'[3]5.2 Asset Age Profile'!CS19","v":0},{"$f":"'[2]5.2 Asset Age Profile'!CT19+'[3]5.2 Asset Age Profile'!CT19","v":0},{"$f":"'[2]5.2 Asset Age Profile'!CU19+'[3]5.2 Asset Age Profile'!CU19","v":0},{"$f":"'[2]5.2 Asset Age Profile'!CV19+'[3]5.2 Asset Age Profile'!CV19","v":0},{"$f":"'[2]5.2 Asset Age Profile'!CW19+'[3]5.2 Asset Age Profile'!CW19","v":0},{"$f":"'[2]5.2 Asset Age Profile'!CX19+'[3]5.2 Asset Age Profile'!CX19","v":0},{"$f":"'[2]5.2 Asset Age Profile'!CY19+'[3]5.2 Asset Age Profile'!CY19","v":0},{"$f":"'[2]5.2 Asset Age Profile'!CZ19+'[3]5.2 Asset Age Profile'!CZ19","v":0},{"$f":"'[2]5.2 Asset Age Profile'!DA19+'[3]5.2 Asset Age Profile'!DA19","v":0},{"$f":"'[2]5.2 Asset Age Profile'!DB19+'[3]5.2 Asset Age Profile'!DB19","v":1},{"$f":"'[2]5.2 Asset Age Profile'!DC19+'[3]5.2 Asset Age Profile'!DC19","v":0},{"$f":"'[2]5.2 Asset Age Profile'!DD19+'[3]5.2 Asset Age Profile'!DD19","v":0},{"$f":"'[2]5.2 Asset Age Profile'!DE19+'[3]5.2 Asset Age Profile'!DE19","v":0},{"$f":"'[2]5.2 Asset Age Profile'!DF19+'[3]5.2 Asset Age Profile'!DF19","v":0},{"$f":"'[2]5.2 Asset Age Profile'!DG19+'[3]5.2 Asset Age Profile'!DG19","v":0},{"$f":"'[2]5.2 Asset Age Profile'!DH19+'[3]5.2 Asset Age Profile'!DH19","v":0},{"$f":"'[2]5.2 Asset Age Profile'!DI19+'[3]5.2 Asset Age Profile'!DI19","v":0},{"$f":"'[2]5.2 Asset Age Profile'!DJ19+'[3]5.2 Asset Age Profile'!DJ19","v":0},{"$f":"'[2]5.2 Asset Age Profile'!DK19+'[3]5.2 Asset Age Profile'!DK19","v":0},{"$f":"'[2]5.2 Asset Age Profile'!DL19+'[3]5.2 Asset Age Profile'!DL19","v":0},{"$f":"'[2]5.2 Asset Age Profile'!DM19+'[3]5.2 Asset Age Profile'!DM19","v":0},{"$f":"'[2]5.2 Asset Age Profile'!DN19+'[3]5.2 Asset Age Profile'!DN19","v":0},{"$f":"'[2]5.2 Asset Age Profile'!DO19+'[3]5.2 Asset Age Profile'!DO19","v":0},{"$f":"'[2]5.2 Asset Age Profile'!DP19+'[3]5.2 Asset Age Profile'!DP19","v":0},{"$f":"'[2]5.2 Asset Age Profile'!DQ19+'[3]5.2 Asset Age Profile'!DQ19","v":0},{"$f":"'[2]5.2 Asset Age Profile'!DR19+'[3]5.2 Asset Age Profile'!DR19","v":0},{"$f":"'[2]5.2 Asset Age Profile'!DS19+'[3]5.2 Asset Age Profile'!DS19","v":0},{"$f":"'[2]5.2 Asset Age Profile'!DT19+'[3]5.2 Asset Age Profile'!DT19","v":0},{"$f":"'[2]5.2 Asset Age Profile'!DU19+'[3]5.2 Asset Age Profile'!DU19","v":0},{"$f":"'[2]5.2 Asset Age Profile'!DV19+'[3]5.2 Asset Age Profile'!DV19","v":0},{"$f":"'[2]5.2 Asset Age Profile'!DW19+'[3]5.2 Asset Age Profile'!DW19","v":0},{"$f":"'[2]5.2 Asset Age Profile'!DX19+'[3]5.2 Asset Age Profile'!DX19","v":0},{"$f":"'[2]5.2 Asset Age Profile'!DY19+'[3]5.2 Asset Age Profile'!DY19","v":0},{"$f":"'[2]5.2 Asset Age Profile'!DZ19+'[3]5.2 Asset Age Profile'!DZ19","v":0},{"$f":"'[2]5.2 Asset Age Profile'!EA19+'[3]5.2 Asset Age Profile'!EA19","v":0},{"$f":"'[2]5.2 Asset Age Profile'!EB19+'[3]5.2 Asset Age Profile'!EB19","v":0},{"$f":"'[2]5.2 Asset Age Profile'!EC19+'[3]5.2 Asset Age Profile'!EC19","v":0},{"$f":"'[2]5.2 Asset Age Profile'!ED19+'[3]5.2 Asset Age Profile'!ED19","v":0},{"$f":"'[2]5.2 Asset Age Profile'!EE19+'[3]5.2 Asset Age Profile'!EE19","v":0},{"$f":"'[2]5.2 Asset Age Profile'!EF19+'[3]5.2 Asset Age Profile'!EF19","v":0},{"$f":"'[2]5.2 Asset Age Profile'!EG19+'[3]5.2 Asset Age Profile'!EG19","v":0},{"$f":"'[2]5.2 Asset Age Profile'!EH19+'[3]5.2 Asset Age Profile'!EH19","v":0},{"$f":"'[2]5.2 Asset Age Profile'!EI19+'[3]5.2 Asset Age Profile'!EI19","v":0},{"$f":"'[2]5.2 Asset Age Profile'!EJ19+'[3]5.2 Asset Age Profile'!EJ19","v":0}]
["ED_ASS521_00010",null,"˃ 11 kV & < = 22 kV; Concrete",null,"DNSP NAME","REPEX","POLES","˃ 11 kV & < = 22 kV; Concrete","DESCRIPTOR METRIC","MEAN ECONOMIC LIFE","YEARS","NUMBER",null,{"$f":"'[2]5.2 Asset Age Profile'!N20+'[3]5.2 Asset Age Profile'!N20","v":60},{"$f":"'[2]5.2 Asset Age Profile'!O20+'[3]5.2 Asset Age Profile'!O20","v":0},{"$f":"'[2]5.2 Asset Age Profile'!P20+'[3]5.2 Asset Age Profile'!P20","v":0},{"$f":"'[2]5.2 Asset Age Profile'!Q20+'[3]5.2 Asset Age Profile'!Q20","v":0},{"$f":"'[2]5.2 Asset Age Profile'!R20+'[3]5.2 Asset Age Profile'!R20","v":0},{"$f":"'[2]5.2 Asset Age Profile'!S20+'[3]5.2 Asset Age Profile'!S20","v":0},{"$f":"'[2]5.2 Asset Age Profile'!T20+'[3]5.2 Asset Age Profile'!T20","v":0},{"$f":"'[2]5.2 Asset Age Profile'!U20+'[3]5.2 Asset Age Profile'!U20","v":0},{"$f":"'[2]5.2 Asset Age Profile'!V20+'[3]5.2 Asset Age Profile'!V20","v":0},{"$f":"'[2]5.2 Asset Age Profile'!W20+'[3]5.2 Asset Age Profile'!W20","v":0},{"$f":"'[2]5.2 Asset Age Profile'!X20+'[3]5.2 Asset Age Profile'!X20","v":0},{"$f":"'[2]5.2 Asset Age Profile'!Y20+'[3]5.2 Asset Age Profile'!Y20","v":10},{"$f":"'[2]5.2 Asset Age Profile'!Z20+'[3]5.2 Asset Age Profile'!Z20","v":0},{"$f":"'[2]5.2 Asset Age Profile'!AA20+'[3]5.2 Asset Age Profile'!AA20","v":0},{"$f":"'[2]5.2 Asset Age Profile'!AB20+'[3]5.2 Asset Age Profile'!AB20","v":0},{"$f":"'[2]5.2 Asset Age Profile'!AC20+'[3]5.2 Asset Age Profile'!AC20","v":0},{"$f":"'[2]5.2 Asset Age Profile'!AD20+'[3]5.2 Asset Age Profile'!AD20","v":0},{"$f":"'[2]5.2 Asset Age Profile'!AE20+'[3]5.2 Asset Age Profile'!AE20","v":0},{"$f":"'[2]5.2 Asset Age Profile'!AF20+'[3]5.2 Asset Age Profile'!AF20","v":0},{"$f":"'[2]5.2 Asset Age Profile'!AG20+'[3]5.2 Asset Age Profile'!AG20","v":0},{"$f":"'[2]5.2 Asset Age Profile'!AH20+'[3]5.2 Asset Age Profile'!AH20","v":0},{"$f":"'[2]5.2 Asset Age Profile'!AI20+'[3]5.2 Asset Age Profile'!AI20","v":0},{"$f":"'[2]5.2 Asset Age Profile'!AJ20+'[3]5.2 Asset Age Profile'!AJ20","v":121},{"$f":"'[2]5.2 Asset Age Profile'!AK20+'[3]5.2 Asset Age Profile'!AK20","v":203},{"$f":"'[2]5.2 Asset Age Profile'!AL20+'[3]5.2 Asset Age Profile'!AL20","v":204},{"$f":"'[2]5.2 Asset Age Profile'!AM20+'[3]5.2 Asset Age Profile'!AM20","v":272},{"$f":"'[2]5.2 Asset Age Profile'!AN20+'[3]5.2 Asset Age Profile'!AN20","v":234},{"$f":"'[2]5.2 Asset Age Profile'!AO20+'[3]5.2 Asset Age Profile'!AO20","v":261},{"$f":"'[2]5.2 Asset Age Profile'!AP20+'[3]5.2 Asset Age Profile'!AP20","v":297},{"$f":"'[2]5.2 Asset Age Profile'!AQ20+'[3]5.2 Asset Age Profile'!AQ20","v":380},{"$f":"'[2]5.2 Asset Age Profile'!AR20+'[3]5.2 Asset Age Profile'!AR20","v":322},{"$f":"'[2]5.2 Asset Age Profile'!AS20+'[3]5.2 Asset Age Profile'!AS20","v":232},{"$f":"'[2]5.2 Asset Age Profile'!AT20+'[3]5.2 Asset Age Profile'!AT20","v":278},{"$f":"'[2]5.2 Asset Age Profile'!AU20+'[3]5.2 Asset Age Profile'!AU20","v":178},{"$f":"'[2]5.2 Asset Age Profile'!AV20+'[3]5.2 Asset Age Profile'!AV20","v":95},{"$f":"'[2]5.2 Asset Age Profile'!AW20+'[3]5.2 Asset Age Profile'!AW20","v":86},{"$f":"'[2]5.2 Asset Age Profile'!AX20+'[3]5.2 Asset Age Profile'!AX20","v":32},{"$f":"'[2]5.2 Asset Age Profile'!AY20+'[3]5.2 Asset Age Profile'!AY20","v":93},{"$f":"'[2]5.2 Asset Age Profile'!AZ20+'[3]5.2 Asset Age Profile'!AZ20","v":114},{"$f":"'[2]5.2 Asset Age Profile'!BA20+'[3]5.2 Asset Age Profile'!BA20","v":88},{"$f":"'[2]5.2 Asset Age Profile'!BB20+'[3]5.2 Asset Age Profile'!BB20","v":32},{"$f":"'[2]5.2 Asset Age Profile'!BC20+'[3]5.2 Asset Age Profile'!BC20","v":62},{"$f":"'[2]5.2 Asset Age Profile'!BD20+'[3]5.2 Asset Age Profile'!BD20","v":63},{"$f":"'[2]5.2 Asset Age Profile'!BE20+'[3]5.2 Asset Age Profile'!BE20","v":65},{"$f":"'[2]5.2 Asset Age Profile'!BF20+'[3]5.2 Asset Age Profile'!BF20","v":243},{"$f":"'[2]5.2 Asset Age Profile'!BG20+'[3]5.2 Asset Age Profile'!BG20","v":100},{"$f":"'[2]5.2 Asset Age Profile'!BH20+'[3]5.2 Asset Age Profile'!BH20","v":270},{"$f":"'[2]5.2 Asset Age Profile'!BI20+'[3]5.2 Asset Age Profile'!BI20","v":101},{"$f":"'[2]5.2 Asset Age Profile'!BJ20+'[3]5.2 Asset Age Profile'!BJ20","v":125},{"$f":"'[2]5.2 Asset Age Profile'!BK20+'[3]5.2 Asset Age Profile'!BK20","v":354},{"$f":"'[2]5.2 Asset Age Profile'!BL20+'[3]5.2 Asset Age Profile'!BL20","v":136},{"$f":"'[2]5.2 Asset Age Profile'!BM20+'[3]5.2 Asset Age Profile'!BM20","v":38},{"$f":"'[2]5.2 Asset Age Profile'!BN20+'[3]5.2 Asset Age Profile'!BN20","v":68},{"$f":"'[2]5.2 Asset Age Profile'!BO20+'[3]5.2 Asset Age Profile'!BO20","v":10},{"$f":"'[2]5.2 Asset Age Profile'!BP20+'[3]5.2 Asset Age Profile'!BP20","v":8},{"$f":"'[2]5.2 Asset Age Profile'!BQ20+'[3]5.2 Asset Age Profile'!BQ20","v":53},{"$f":"'[2]5.2 Asset Age Profile'!BR20+'[3]5.2 Asset Age Profile'!BR20","v":3},{"$f":"'[2]5.2 Asset Age Profile'!BS20+'[3]5.2 Asset Age Profile'!BS20","v":5},{"$f":"'[2]5.2 Asset Age Profile'!BT20+'[3]5.2 Asset Age Profile'!BT20","v":4},{"$f":"'[2]5.2 Asset Age Profile'!BU20+'[3]5.2 Asset Age Profile'!BU20","v":1},{"$f":"'[2]5.2 Asset Age Profile'!BV20+'[3]5.2 Asset Age Profile'!BV20","v":1},{"$f":"'[2]5.2 Asset Age Profile'!BW20+'[3]5.2 Asset Age Profile'!BW20","v":2},{"$f":"'[2]5.2 Asset Age Profile'!BX20+'[3]5.2 Asset Age Profile'!BX20","v":18},{"$f":"'[2]5.2 Asset Age Profile'!BY20+'[3]5.2 Asset Age Profile'!BY20","v":3},{"$f":"'[2]5.2 Asset Age Profile'!BZ20+'[3]5.2 Asset Age Profile'!BZ20","v":4},{"$f":"'[2]5.2 Asset Age Profile'!CA20+'[3]5.2 Asset Age Profile'!CA20","v":9},{"$f":"'[2]5.2 Asset Age Profile'!CB20+'[3]5.2 Asset Age Profile'!CB20","v":4},{"$f":"'[2]5.2 Asset Age Profile'!CC20+'[3]5.2 Asset Age Profile'!CC20","v":0},{"$f":"'[2]5.2 Asset Age Profile'!CD20+'[3]5.2 Asset Age Profile'!CD20","v":1},{"$f":"'[2]5.2 Asset Age Profile'!CE20+'[3]5.2 Asset Age Profile'!CE20","v":3},{"$f":"'[2]5.2 Asset Age Profile'!CF20+'[3]5.2 Asset Age Profile'!CF20","v":3},{"$f":"'[2]5.2 Asset Age Profile'!CG20+'[3]5.2 Asset Age Profile'!CG20","v":1},{"$f":"'[2]5.2 Asset Age Profile'!CH20+'[3]5.2 Asset Age Profile'!CH20","v":4},{"$f":"'[2]5.2 Asset Age Profile'!CI20+'[3]5.2 Asset Age Profile'!CI20","v":1},{"$f":"'[2]5.2 Asset Age Profile'!CJ20+'[3]5.2 Asset Age Profile'!CJ20","v":1},{"$f":"'[2]5.2 Asset Age Profile'!CK20+'[3]5.2 Asset Age Profile'!CK20","v":1},{"$f":"'[2]5.2 Asset Age Profile'!CL20+'[3]5.2 Asset Age Profile'!CL20","v":7},{"$f":"'[2]5.2 Asset Age Profile'!CM20+'[3]5.2 Asset Age Profile'!CM20","v":3},{"$f":"'[2]5.2 Asset Age Profile'!CN20+'[3]5.2 Asset Age Profile'!CN20","v":1},{"$f":"'[2]5.2 Asset Age Profile'!CO20+'[3]5.2 Asset Age Profile'!CO20","v":10},{"$f":"'[2]5.2 Asset Age Profile'!CP20+'[3]5.2 Asset Age Profile'!CP20","v":2},{"$f":"'[2]5.2 Asset Age Profile'!CQ20+'[3]5.2 Asset Age Profile'!CQ20","v":2},{"$f":"'[2]5.2 Asset Age Profile'!CR20+'[3]5.2 Asset Age Profile'!CR20","v":2},{"$f":"'[2]5.2 Asset Age Profile'!CS20+'[3]5.2 Asset Age Profile'!CS20","v":2},{"$f":"'[2]5.2 Asset Age Profile'!CT20+'[3]5.2 Asset Age Profile'!CT20","v":2},{"$f":"'[2]5.2 Asset Age Profile'!CU20+'[3]5.2 Asset Age Profile'!CU20","v":2},{"$f":"'[2]5.2 Asset Age Profile'!CV20+'[3]5.2 Asset Age Profile'!CV20","v":2},{"$f":"'[2]5.2 Asset Age Profile'!CW20+'[3]5.2 Asset Age Profile'!CW20","v":2},{"$f":"'[2]5.2 Asset Age Profile'!CX20+'[3]5.2 Asset Age Profile'!CX20","v":2},{"$f":"'[2]5.2 Asset Age Profile'!CY20+'[3]5.2 Asset Age Profile'!CY20","v":6},{"$f":"'[2]5.2 Asset Age Profile'!CZ20+'[3]5.2 Asset Age Profile'!CZ20","v":7},{"$f":"'[2]5.2 Asset Age Profile'!DA20+'[3]5.2 Asset Age Profile'!DA20","v":11},{"$f":"'[2]5.2 Asset Age Profile'!DB20+'[3]5.2 Asset Age Profile'!DB20","v":2},{"$f":"'[2]5.2 Asset Age Profile'!DC20+'[3]5.2 Asset Age Profile'!DC20","v":2},{"$f":"'[2]5.2 Asset Age Profile'!DD20+'[3]5.2 Asset Age Profile'!DD20","v":2},{"$f":"'[2]5.2 Asset Age Profile'!DE20+'[3]5.2 Asset Age Profile'!DE20","v":1},{"$f":"'[2]5.2 Asset Age Profile'!DF20+'[3]5.2 Asset Age Profile'!DF20","v":0},{"$f":"'[2]5.2 Asset Age Profile'!DG20+'[3]5.2 Asset Age Profile'!DG20","v":0},{"$f":"'[2]5.2 Asset Age Profile'!DH20+'[3]5.2 Asset Age Profile'!DH20","v":0},{"$f":"'[2]5.2 Asset Age Profile'!DI20+'[3]5.2 Asset Age Profile'!DI20","v":0},{"$f":"'[2]5.2 Asset Age Profile'!DJ20+'[3]5.2 Asset Age Profile'!DJ20","v":0},{"$f":"'[2]5.2 Asset Age Profile'!DK20+'[3]5.2 Asset Age Profile'!DK20","v":0},{"$f":"'[2]5.2 Asset Age Profile'!DL20+'[3]5.2 Asset Age Profile'!DL20","v":0},{"$f":"'[2]5.2 Asset Age Profile'!DM20+'[3]5.2 Asset Age Profile'!DM20","v":0},{"$f":"'[2]5.2 Asset Age Profile'!DN20+'[3]5.2 Asset Age Profile'!DN20","v":0},{"$f":"'[2]5.2 Asset Age Profile'!DO20+'[3]5.2 Asset Age Profile'!DO20","v":0},{"$f":"'[2]5.2 Asset Age Profile'!DP20+'[3]5.2 Asset Age Profile'!DP20","v":0},{"$f":"'[2]5.2 Asset Age Profile'!DQ20+'[3]5.2 Asset Age Profile'!DQ20","v":0},{"$f":"'[2]5.2 Asset Age Profile'!DR20+'[3]5.2 Asset Age Profile'!DR20","v":0},{"$f":"'[2]5.2 Asset Age Profile'!DS20+'[3]5.2 Asset Age Profile'!DS20","v":0},{"$f":"'[2]5.2 Asset Age Profile'!DT20+'[3]5.2 Asset Age Profile'!DT20","v":0},{"$f":"'[2]5.2 Asset Age Profile'!DU20+'[3]5.2 Asset Age Profile'!DU20","v":0},{"$f":"'[2]5.2 Asset Age Profile'!DV20+'[3]5.2 Asset Age Profile'!DV20","v":0},{"$f":"'[2]5.2 Asset Age Profile'!DW20+'[3]5.2 Asset Age Profile'!DW20","v":0},{"$f":"'[2]5.2 Asset Age Profile'!DX20+'[3]5.2 Asset Age Profile'!DX20","v":0},{"$f":"'[2]5.2 Asset Age Profile'!DY20+'[3]5.2 Asset Age Profile'!DY20","v":0},{"$f":"'[2]5.2 Asset Age Profile'!DZ20+'[3]5.2 Asset Age Profile'!DZ20","v":0},{"$f":"'[2]5.2 Asset Age Profile'!EA20+'[3]5.2 Asset Age Profile'!EA20","v":2},{"$f":"'[2]5.2 Asset Age Profile'!EB20+'[3]5.2 Asset Age Profile'!EB20","v":0},{"$f":"'[2]5.2 Asset Age Profile'!EC20+'[3]5.2 Asset Age Profile'!EC20","v":0},{"$f":"'[2]5.2 Asset Age Profile'!ED20+'[3]5.2 Asset Age Profile'!ED20","v":0},{"$f":"'[2]5.2 Asset Age Profile'!EE20+'[3]5.2 Asset Age Profile'!EE20","v":0},{"$f":"'[2]5.2 Asset Age Profile'!EF20+'[3]5.2 Asset Age Profile'!EF20","v":0},{"$f":"'[2]5.2 Asset Age Profile'!EG20+'[3]5.2 Asset Age Profile'!EG20","v":0},{"$f":"'[2]5.2 Asset Age Profile'!EH20+'[3]5.2 Asset Age Profile'!EH20","v":0},{"$f":"'[2]5.2 Asset Age Profile'!EI20+'[3]5.2 Asset Age Profile'!EI20","v":0},{"$f":"'[2]5.2 Asset Age Profile'!EJ20+'[3]5.2 Asset Age Profile'!EJ20","v":0}]
["ED_ASS521_00011",null,"> 22 kV & < = 66 kV; Concrete",null,null,null,null,null,null,null,null,null,null,{"$f":"'[2]5.2 Asset Age Profile'!N21+'[3]5.2 Asset Age Profile'!N21","v":60},{"$f":"'[2]5.2 Asset Age Profile'!O21+'[3]5.2 Asset Age Profile'!O21","v":0},{"$f":"'[2]5.2 Asset Age Profile'!P21+'[3]5.2 Asset Age Profile'!P21","v":0},{"$f":"'[2]5.2 Asset Age Profile'!Q21+'[3]5.2 Asset Age Profile'!Q21","v":0},{"$f":"'[2]5.2 Asset Age Profile'!R21+'[3]5.2 Asset Age Profile'!R21","v":0},{"$f":"'[2]5.2 Asset Age Profile'!S21+'[3]5.2 Asset Age Profile'!S21","v":0},{"$f":"'[2]5.2 Asset Age Profile'!T21+'[3]5.2 Asset Age Profile'!T21","v":0},{"$f":"'[2]5.2 Asset Age Profile'!U21+'[3]5.2 Asset Age Profile'!U21","v":0},{"$f":"'[2]5.2 Asset Age Profile'!V21+'[3]5.2 Asset Age Profile'!V21","v":0},{"$f":"'[2]5.2 Asset Age Profile'!W21+'[3]5.2 Asset Age Profile'!W21","v":0},{"$f":"'[2]5.2 Asset Age Profile'!X21+'[3]5.2 Asset Age Profile'!X21","v":0},{"$f":"'[2]5.2 Asset Age Profile'!Y21+'[3]5.2 Asset Age Profile'!Y21","v":10},{"$f":"'[2]5.2 Asset Age Profile'!Z21+'[3]5.2 Asset Age Profile'!Z21","v":0},{"$f":"'[2]5.2 Asset Age Profile'!AA21+'[3]5.2 Asset Age Profile'!AA21","v":0},{"$f":"'[2]5.2 Asset Age Profile'!AB21+'[3]5.2 Asset Age Profile'!AB21","v":0},{"$f":"'[2]5.2 Asset Age Profile'!AC21+'[3]5.2 Asset Age Profile'!AC21","v":0},{"$f":"'[2]5.2 Asset Age Profile'!AD21+'[3]5.2 Asset Age Profile'!AD21","v":0},{"$f":"'[2]5.2 Asset Age Profile'!AE21+'[3]5.2 Asset Age Profile'!AE21","v":0},{"$f":"'[2]5.2 Asset Age Profile'!AF21+'[3]5.2 Asset Age Profile'!AF21","v":0},{"$f":"'[2]5.2 Asset Age Profile'!AG21+'[3]5.2 Asset Age Profile'!AG21","v":0},{"$f":"'[2]5.2 Asset Age Profile'!AH21+'[3]5.2 Asset Age Profile'!AH21","v":0},{"$f":"'[2]5.2 Asset Age Profile'!AI21+'[3]5.2 Asset Age Profile'!AI21","v":0},{"$f":"'[2]5.2 Asset Age Profile'!AJ21+'[3]5.2 Asset Age Profile'!AJ21","v":0},{"$f":"'[2]5.2 Asset Age Profile'!AK21+'[3]5.2 Asset Age Profile'!AK21","v":0},{"$f":"'[2]5.2 Asset Age Profile'!AL21+'[3]5.2 Asset Age Profile'!AL21","v":0},{"$f":"'[2]5.2 Asset Age Profile'!AM21+'[3]5.2 Asset Age Profile'!AM21","v":0},{"$f":"'[2]5.2 Asset Age Profile'!AN21+'[3]5.2 Asset Age Profile'!AN21","v":0},{"$f":"'[2]5.2 Asset Age Profile'!AO21+'[3]5.2 Asset Age Profile'!AO21","v":0},{"$f":"'[2]5.2 Asset Age Profile'!AP21+'[3]5.2 Asset Age Profile'!AP21","v":0},{"$f":"'[2]5.2 Asset Age Profile'!AQ21+'[3]5.2 Asset Age Profile'!AQ21","v":0},{"$f":"'[2]5.2 Asset Age Profile'!AR21+'[3]5.2 Asset Age Profile'!AR21","v":0},{"$f":"'[2]5.2 Asset Age Profile'!AS21+'[3]5.2 Asset Age Profile'!AS21","v":0},{"$f":"'[2]5.2 Asset Age Profile'!AT21+'[3]5.2 Asset Age Profile'!AT21","v":0},{"$f":"'[2]5.2 Asset Age Profile'!AU21+'[3]5.2 Asset Age Profile'!AU21","v":0},{"$f":"'[2]5.2 Asset Age Profile'!AV21+'[3]5.2 Asset Age Profile'!AV21","v":0},{"$f":"'[2]5.2 Asset Age Profile'!AW21+'[3]5.2 Asset Age Profile'!AW21","v":0},{"$f":"'[2]5.2 Asset Age Profile'!AX21+'[3]5.2 Asset Age Profile'!AX21","v":0},{"$f":"'[2]5.2 Asset Age Profile'!AY21+'[3]5.2 Asset Age Profile'!AY21","v":0},{"$f":"'[2]5.2 Asset Age Profile'!AZ21+'[3]5.2 Asset Age Profile'!AZ21","v":0},{"$f":"'[2]5.2 Asset Age Profile'!BA21+'[3]5.2 Asset Age Profile'!BA21","v":0},{"$f":"'[2]5.2 Asset Age Profile'!BB21+'[3]5.2 Asset Age Profile'!BB21","v":0},{"$f":"'[2]5.2 Asset Age Profile'!BC21+'[3]5.2 Asset Age Profile'!BC21","v":0},{"$f":"'[2]5.2 Asset Age Profile'!BD21+'[3]5.2 Asset Age Profile'!BD21","v":0},{"$f":"'[2]5.2 Asset Age Profile'!BE21+'[3]5.2 Asset Age Profile'!BE21","v":0},{"$f":"'[2]5.2 Asset Age Profile'!BF21+'[3]5.2 Asset Age Profile'!BF21","v":0},{"$f":"'[2]5.2 Asset Age Profile'!BG21+'[3]5.2 Asset Age Profile'!BG21","v":0},{"$f":"'[2]5.2 Asset Age Profile'!BH21+'[3]5.2 Asset Age Profile'!BH21","v":0},{"$f":"'[2]5.2 Asset Age Profile'!BI21+'[3]5.2 Asset Age Profile'!BI21","v":0},{"$f":"'[2]5.2 Asset Age Profile'!BJ21+'[3]5.2 Asset Age Profile'!BJ21","v":0},{"$f":"'[2]5.2 Asset Age Profile'!BK21+'[3]5.2 Asset Age Profile'!BK21","v":0},{"$f":"'[2]5.2 Asset Age Profile'!BL21+'[3]5.2 Asset Age Profile'!BL21","v":0},{"$f":"'[2]5.2 Asset Age Profile'!BM21+'[3]5.2 Asset Age Profile'!BM21","v":0},{"$f":"'[2]5.2 Asset Age Profile'!BN21+'[3]5.2 Asset Age Profile'!BN21","v":0},{"$f":"'[2]5.2 Asset Age Profile'!BO21+'[3]5.2 Asset Age Profile'!BO21","v":0},{"$f":"'[2]5.2 Asset Age Profile'!BP21+'[3]5.2 Asset Age Profile'!BP21","v":0},{"$f":"'[2]5.2 Asset Age Profile'!BQ21+'[3]5.2 Asset Age Profile'!BQ21","v":0},{"$f":"'[2]5.2 Asset Age Profile'!BR21+'[3]5.2 Asset Age Profile'!BR21","v":0},{"$f":"'[2]5.2 Asset Age Profile'!BS21+'[3]5.2 Asset Age Profile'!BS21","v":0},{"$f":"'[2]5.2 Asset Age Profile'!BT21+'[3]5.2 Asset Age Profile'!BT21","v":0},{"$f":"'[2]5.2 Asset Age Profile'!BU21+'[3]5.2 Asset Age Profile'!BU21","v":0},{"$f":"'[2]5.2 Asset Age Profile'!BV21+'[3]5.2 Asset Age Profile'!BV21","v":1},{"$f":"'[2]5.2 Asset Age Profile'!BW21+'[3]5.2 Asset Age Profile'!BW21","v":0},{"$f":"'[2]5.2 Asset Age Profile'!BX21+'[3]5.2 Asset Age Profile'!BX21","v":0},{"$f":"'[2]5.2 Asset Age Profile'!BY21+'[3]5.2 Asset Age Profile'!BY21","v":0},{"$f":"'[2]5.2 Asset Age Profile'!BZ21+'[3]5.2 Asset Age Profile'!BZ21","v":0},{"$f":"'[2]5.2 Asset Age Profile'!CA21+'[3]5.2 Asset Age Profile'!CA21","v":0},{"$f":"'[2]5.2 Asset Age Profile'!CB21+'[3]5.2 Asset Age Profile'!CB21","v":0},{"$f":"'[2]5.2 Asset Age Profile'!CC21+'[3]5.2 Asset Age Profile'!CC21","v":0},{"$f":"'[2]5.2 Asset Age Profile'!CD21+'[3]5.2 Asset Age Profile'!CD21","v":0},{"$f":"'[2]5.2 Asset Age Profile'!CE21+'[3]5.2 Asset Age Profile'!CE21","v":0},{"$f":"'[2]5.2 Asset Age Profile'!CF21+'[3]5.2 Asset Age Profile'!CF21","v":0},{"$f":"'[2]5.2 Asset Age Profile'!CG21+'[3]5.2 Asset Age Profile'!CG21","v":0},{"$f":"'[2]5.2 Asset Age Profile'!CH21+'[3]5.2 Asset Age Profile'!CH21","v":0},{"$f":"'[2]5.2 Asset Age Profile'!CI21+'[3]5.2 Asset Age Profile'!CI21","v":0},{"$f":"'[2]5.2 Asset Age Profile'!CJ21+'[3]5.2 Asset Age Profile'!CJ21","v":0},{"$f":"'[2]5.2 Asset Age Profile'!CK21+'[3]5.2 Asset Age Profile'!CK21","v":0},{"$f":"'[2]5.2 Asset Age Profile'!CL21+'[3]5.2 Asset Age Profile'!CL21","v":0},{"$f":"'[2]5.2 Asset Age Profile'!CM21+'[3]5.2 Asset Age Profile'!CM21","v":0},{"$f":"'[2]5.2 Asset Age Profile'!CN21+'[3]5.2 Asset Age Profile'!CN21","v":0},{"$f":"'[2]5.2 Asset Age Profile'!CO21+'[3]5.2 Asset Age Profile'!CO21","v":0},{"$f":"'[2]5.2 Asset Age Profile'!CP21+'[3]5.2 Asset Age Profile'!CP21","v":0},{"$f":"'[2]5.2 Asset Age Profile'!CQ21+'[3]5.2 Asset Age Profile'!CQ21","v":0},{"$f":"'[2]5.2 Asset Age Profile'!CR21+'[3]5.2 Asset Age Profile'!CR21","v":0},{"$f":"'[2]5.2 Asset Age Profile'!CS21+'[3]5.2 Asset Age Profile'!CS21","v":0},{"$f":"'[2]5.2 Asset Age Profile'!CT21+'[3]5.2 Asset Age Profile'!CT21","v":0},{"$f":"'[2]5.2 Asset Age Profile'!CU21+'[3]5.2 Asset Age Profile'!CU21","v":0},{"$f":"'[2]5.2 Asset Age Profile'!CV21+'[3]5.2 Asset Age Profile'!CV21","v":0},{"$f":"'[2]5.2 Asset Age Profile'!CW21+'[3]5.2 Asset Age Profile'!CW21","v":0},{"$f":"'[2]5.2 Asset Age Profile'!CX21+'[3]5.2 Asset Age Profile'!CX21","v":0},{"$f":"'[2]5.2 Asset Age Profile'!CY21+'[3]5.2 Asset Age Profile'!CY21","v":0},{"$f":"'[2]5.2 Asset Age Profile'!CZ21+'[3]5.2 Asset Age Profile'!CZ21","v":0},{"$f":"'[2]5.2 Asset Age Profile'!DA21+'[3]5.2 Asset Age Profile'!DA21","v":0},{"$f":"'[2]5.2 Asset Age Profile'!DB21+'[3]5.2 Asset Age Profile'!DB21","v":0},{"$f":"'[2]5.2 Asset Age Profile'!DC21+'[3]5.2 Asset Age Profile'!DC21","v":0},{"$f":"'[2]5.2 Asset Age Profile'!DD21+'[3]5.2 Asset Age Profile'!DD21","v":0},{"$f":"'[2]5.2 Asset Age Profile'!DE21+'[3]5.2 Asset Age Profile'!DE21","v":0},{"$f":"'[2]5.2 Asset Age Profile'!DF21+'[3]5.2 Asset Age Profile'!DF21","v":0},{"$f":"'[2]5.2 Asset Age Profile'!DG21+'[3]5.2 Asset Age Profile'!DG21","v":0},{"$f":"'[2]5.2 Asset Age Profile'!DH21+'[3]5.2 Asset Age Profile'!DH21","v":0},{"$f":"'[2]5.2 Asset Age Profile'!DI21+'[3]5.2 Asset Age Profile'!DI21","v":0},{"$f":"'[2]5.2 Asset Age Profile'!DJ21+'[3]5.2 Asset Age Profile'!DJ21","v":0},{"$f":"'[2]5.2 Asset Age Profile'!DK21+'[3]5.2 Asset Age Profile'!DK21","v":0},{"$f":"'[2]5.2 Asset Age Profile'!DL21+'[3]5.2 Asset Age Profile'!DL21","v":0},{"$f":"'[2]5.2 Asset Age Profile'!DM21+'[3]5.2 Asset Age Profile'!DM21","v":0},{"$f":"'[2]5.2 Asset Age Profile'!DN21+'[3]5.2 Asset Age Profile'!DN21","v":0},{"$f":"'[2]5.2 Asset Age Profile'!DO21+'[3]5.2 Asset Age Profile'!DO21","v":0},{"$f":"'[2]5.2 Asset Age Profile'!DP21+'[3]5.2 Asset Age Profile'!DP21","v":0},{"$f":"'[2]5.2 Asset Age Profile'!DQ21+'[3]5.2 Asset Age Profile'!DQ21","v":0},{"$f":"'[2]5.2 Asset Age Profile'!DR21+'[3]5.2 Asset Age Profile'!DR21","v":0},{"$f":"'[2]5.2 Asset Age Profile'!DS21+'[3]5.2 Asset Age Profile'!DS21","v":0},{"$f":"'[2]5.2 Asset Age Profile'!DT21+'[3]5.2 Asset Age Profile'!DT21","v":0},{"$f":"'[2]5.2 Asset Age Profile'!DU21+'[3]5.2 Asset Age Profile'!DU21","v":0},{"$f":"'[2]5.2 Asset Age Profile'!DV21+'[3]5.2 Asset Age Profile'!DV21","v":0},{"$f":"'[2]5.2 Asset Age Profile'!DW21+'[3]5.2 Asset Age Profile'!DW21","v":0},{"$f":"'[2]5.2 Asset Age Profile'!DX21+'[3]5.2 Asset Age Profile'!DX21","v":0},{"$f":"'[2]5.2 Asset Age Profile'!DY21+'[3]5.2 Asset Age Profile'!DY21","v":0},{"$f":"'[2]5.2 Asset Age Profile'!DZ21+'[3]5.2 Asset Age Profile'!DZ21","v":0},{"$f":"'[2]5.2 Asset Age Profile'!EA21+'[3]5.2 Asset Age Profile'!EA21","v":0},{"$f":"'[2]5.2 Asset Age Profile'!EB21+'[3]5.2 Asset Age Profile'!EB21","v":0},{"$f":"'[2]5.2 Asset Age Profile'!EC21+'[3]5.2 Asset Age Profile'!EC21","v":0},{"$f":"'[2]5.2 Asset Age Profile'!ED21+'[3]5.2 Asset Age Profile'!ED21","v":0},{"$f":"'[2]5.2 Asset Age Profile'!EE21+'[3]5.2 Asset Age Profile'!EE21","v":0},{"$f":"'[2]5.2 Asset Age Profile'!EF21+'[3]5.2 Asset Age Profile'!EF21","v":0},{"$f":"'[2]5.2 Asset Age Profile'!EG21+'[3]5.2 Asset Age Profile'!EG21","v":0},{"$f":"'[2]5.2 Asset Age Profile'!EH21+'[3]5.2 Asset Age Profile'!EH21","v":0},{"$f":"'[2]5.2 Asset Age Profile'!EI21+'[3]5.2 Asset Age Profile'!EI21","v":0},{"$f":"'[2]5.2 Asset Age Profile'!EJ21+'[3]5.2 Asset Age Profile'!EJ21","v":0}]
["ED_ASS521_00012",null,"> 66 kV & < = 132 kV; Concrete",null,null,null,null,null,null,null,null,null,null,{"$f":"'[2]5.2 Asset Age Profile'!N22+'[3]5.2 Asset Age Profile'!N22","v":60},{"$f":"'[2]5.2 Asset Age Profile'!O22+'[3]5.2 Asset Age Profile'!O22","v":0},{"$f":"'[2]5.2 Asset Age Profile'!P22+'[3]5.2 Asset Age Profile'!P22","v":0},{"$f":"'[2]5.2 Asset Age Profile'!Q22+'[3]5.2 Asset Age Profile'!Q22","v":0},{"$f":"'[2]5.2 Asset Age Profile'!R22+'[3]5.2 Asset Age Profile'!R22","v":0},{"$f":"'[2]5.2 Asset Age Profile'!S22+'[3]5.2 Asset Age Profile'!S22","v":0},{"$f":"'[2]5.2 Asset Age Profile'!T22+'[3]5.2 Asset Age Profile'!T22","v":0},{"$f":"'[2]5.2 Asset Age Profile'!U22+'[3]5.2 Asset Age Profile'!U22","v":0},{"$f":"'[2]5.2 Asset Age Profile'!V22+'[3]5.2 Asset Age Profile'!V22","v":0},{"$f":"'[2]5.2 Asset Age Profile'!W22+'[3]5.2 Asset Age Profile'!W22","v":0},{"$f":"'[2]5.2 Asset Age Profile'!X22+'[3]5.2 Asset Age Profile'!X22","v":0},{"$f":"'[2]5.2 Asset Age Profile'!Y22+'[3]5.2 Asset Age Profile'!Y22","v":10},{"$f":"'[2]5.2 Asset Age Profile'!Z22+'[3]5.2 Asset Age Profile'!Z22","v":0},{"$f":"'[2]5.2 Asset Age Profile'!AA22+'[3]5.2 Asset Age Profile'!AA22","v":0},{"$f":"'[2]5.2 Asset Age Profile'!AB22+'[3]5.2 Asset Age Profile'!AB22","v":0},{"$f":"'[2]5.2 Asset Age Profile'!AC22+'[3]5.2 Asset Age Profile'!AC22","v":0},{"$f":"'[2]5.2 Asset Age Profile'!AD22+'[3]5.2 Asset Age Profile'!AD22","v":0},{"$f":"'[2]5.2 Asset Age Profile'!AE22+'[3]5.2 Asset Age Profile'!AE22","v":0},{"$f":"'[2]5.2 Asset Age Profile'!AF22+'[3]5.2 Asset Age Profile'!AF22","v":0},{"$f":"'[2]5.2 Asset Age Profile'!AG22+'[3]5.2 Asset Age Profile'!AG22","v":0},{"$f":"'[2]5.2 Asset Age Profile'!AH22+'[3]5.2 Asset Age Profile'!AH22","v":0},{"$f":"'[2]5.2 Asset Age Profile'!AI22+'[3]5.2 Asset Age Profile'!AI22","v":0},{"$f":"'[2]5.2 Asset Age Profile'!AJ22+'[3]5.2 Asset Age Profile'!AJ22","v":0},{"$f":"'[2]5.2 Asset Age Profile'!AK22+'[3]5.2 Asset Age Profile'!AK22","v":15},{"$f":"'[2]5.2 Asset Age Profile'!AL22+'[3]5.2 Asset Age Profile'!AL22","v":0},{"$f":"'[2]5.2 Asset Age Profile'!AM22+'[3]5.2 Asset Age Profile'!AM22","v":150},{"$f":"'[2]5.2 Asset Age Profile'!AN22+'[3]5.2 Asset Age Profile'!AN22","v":0},{"$f":"'[2]5.2 Asset Age Profile'!AO22+'[3]5.2 Asset Age Profile'!AO22","v":0},{"$f":"'[2]5.2 Asset Age Profile'!AP22+'[3]5.2 Asset Age Profile'!AP22","v":3},{"$f":"'[2]5.2 Asset Age Profile'!AQ22+'[3]5.2 Asset Age Profile'!AQ22","v":0},{"$f":"'[2]5.2 Asset Age Profile'!AR22+'[3]5.2 Asset Age Profile'!AR22","v":7},{"$f":"'[2]5.2 Asset Age Profile'!AS22+'[3]5.2 Asset Age Profile'!AS22","v":0},{"$f":"'[2]5.2 Asset Age Profile'!AT22+'[3]5.2 Asset Age Profile'!AT22","v":0},{"$f":"'[2]5.2 Asset Age Profile'!AU22+'[3]5.2 Asset Age Profile'!AU22","v":0},{"$f":"'[2]5.2 Asset Age Profile'!AV22+'[3]5.2 Asset Age Profile'!AV22","v":0},{"$f":"'[2]5.2 Asset Age Profile'!AW22+'[3]5.2 Asset Age Profile'!AW22","v":0},{"$f":"'[2]5.2 Asset Age Profile'!AX22+'[3]5.2 Asset Age Profile'!AX22","v":0},{"$f":"'[2]5.2 Asset Age Profile'!AY22+'[3]5.2 Asset Age Profile'!AY22","v":0},{"$f":"'[2]5.2 Asset Age Profile'!AZ22+'[3]5.2 Asset Age Profile'!AZ22","v":0},{"$f":"'[2]5.2 Asset Age Profile'!BA22+'[3]5.2 Asset Age Profile'!BA22","v":21},{"$f":"'[2]5.2 Asset Age Profile'!BB22+'[3]5.2 Asset Age Profile'!BB22","v":1},{"$f":"'[2]5.2 Asset Age Profile'!BC22+'[3]5.2 Asset Age Profile'!BC22","v":1},{"$f":"'[2]5.2 Asset Age Profile'!BD22+'[3]5.2 Asset Age Profile'!BD22","v":0},{"$f":"'[2]5.2 Asset Age Profile'!BE22+'[3]5.2 Asset Age Profile'!BE22","v":81},{"$f":"'[2]5.2 Asset Age Profile'!BF22+'[3]5.2 Asset Age Profile'!BF22","v":2},{"$f":"'[2]5.2 Asset Age Profile'!BG22+'[3]5.2 Asset Age Profile'!BG22","v":0},{"$f":"'[2]5.2 Asset Age Profile'!BH22+'[3]5.2 Asset Age Profile'!BH22","v":97},{"$f":"'[2]5.2 Asset Age Profile'!BI22+'[3]5.2 Asset Age Profile'!BI22","v":96},{"$f":"'[2]5.2 Asset Age Profile'!BJ22+'[3]5.2 Asset Age Profile'!BJ22","v":38},{"$f":"'[2]5.2 Asset Age Profile'!BK22+'[3]5.2 Asset Age Profile'!BK22","v":160},{"$f":"'[2]5.2 Asset Age Profile'!BL22+'[3]5.2 Asset Age Profile'!BL22","v":0},{"$f":"'[2]5.2 Asset Age Profile'!BM22+'[3]5.2 Asset Age Profile'!BM22","v":0},{"$f":"'[2]5.2 Asset Age Profile'!BN22+'[3]5.2 Asset Age Profile'!BN22","v":0},{"$f":"'[2]5.2 Asset Age Profile'!BO22+'[3]5.2 Asset Age Profile'!BO22","v":0},{"$f":"'[2]5.2 Asset Age Profile'!BP22+'[3]5.2 Asset Age Profile'!BP22","v":0},{"$f":"'[2]5.2 Asset Age Profile'!BQ22+'[3]5.2 Asset Age Profile'!BQ22","v":0},{"$f":"'[2]5.2 Asset Age Profile'!BR22+'[3]5.2 Asset Age Profile'!BR22","v":0},{"$f":"'[2]5.2 Asset Age Profile'!BS22+'[3]5.2 Asset Age Profile'!BS22","v":138},{"$f":"'[2]5.2 Asset Age Profile'!BT22+'[3]5.2 Asset Age Profile'!BT22","v":0},{"$f":"'[2]5.2 Asset Age Profile'!BU22+'[3]5.2 Asset Age Profile'!BU22","v":0},{"$f":"'[2]5.2 Asset Age Profile'!BV22+'[3]5.2 Asset Age Profile'!BV22","v":0},{"$f":"'[2]5.2 Asset Age Profile'!BW22+'[3]5.2 Asset Age Profile'!BW22","v":5},{"$f":"'[2]5.2 Asset Age Profile'!BX22+'[3]5.2 Asset Age Profile'!BX22","v":0},{"$f":"'[2]5.2 Asset Age Profile'!BY22+'[3]5.2 Asset Age Profile'!BY22","v":0},{"$f":"'[2]5.2 Asset Age Profile'!BZ22+'[3]5.2 Asset Age Profile'!BZ22","v":0},{"$f":"'[2]5.2 Asset Age Profile'!CA22+'[3]5.2 Asset Age Profile'!CA22","v":0},{"$f":"'[2]5.2 Asset Age Profile'!CB22+'[3]5.2 Asset Age Profile'!CB22","v":0},{"$f":"'[2]5.2 Asset Age Profile'!CC22+'[3]5.2 Asset Age Profile'!CC22","v":1},{"$f":"'[2]5.2 Asset Age Profile'!CD22+'[3]5.2 Asset Age Profile'!CD22","v":0},{"$f":"'[2]5.2 Asset Age Profile'!CE22+'[3]5.2 Asset Age Profile'!CE22","v":0},{"$f":"'[2]5.2 Asset Age Profile'!CF22+'[3]5.2 Asset Age Profile'!CF22","v":0},{"$f":"'[2]5.2 Asset Age Profile'!CG22+'[3]5.2 Asset Age Profile'!CG22","v":0},{"$f":"'[2]5.2 Asset Age Profile'!CH22+'[3]5.2 Asset Age Profile'!CH22","v":0},{"$f":"'[2]5.2 Asset Age Profile'!CI22+'[3]5.2 Asset Age Profile'!CI22","v":0},{"$f":"'[2]5.2 Asset Age Profile'!CJ22+'[3]5.2 Asset Age Profile'!CJ22","v":0},{"$f":"'[2]5.2 Asset Age Profile'!CK22+'[3]5.2 Asset Age Profile'!CK22","v":0},{"$f":"'[2]5.2 Asset Age Profile'!CL22+'[3]5.2 Asset Age Profile'!CL22","v":0},{"$f":"'[2]5.2 Asset Age Profile'!CM22+'[3]5.2 Asset Age Profile'!CM22","v":0},{"$f":"'[2]5.2 Asset Age Profile'!CN22+'[3]5.2 Asset Age Profile'!CN22","v":0},{"$f":"'[2]5.2 Asset Age Profile'!CO22+'[3]5.2 Asset Age Profile'!CO22","v":0},{"$f":"'[2]5.2 Asset Age Profile'!CP22+'[3]5.2 Asset Age Profile'!CP22","v":0},{"$f":"'[2]5.2 Asset Age Profile'!CQ22+'[3]5.2 Asset Age Profile'!CQ22","v":0},{"$f":"'[2]5.2 Asset Age Profile'!CR22+'[3]5.2 Asset Age Profile'!CR22","v":0},{"$f":"'[2]5.2 Asset Age Profile'!CS22+'[3]5.2 Asset Age Profile'!CS22","v":0},{"$f":"'[2]5.2 Asset Age Profile'!CT22+'[3]5.2 Asset Age Profile'!CT22","v":0},{"$f":"'[2]5.2 Asset Age Profile'!CU22+'[3]5.2 Asset Age Profile'!CU22","v":0},{"$f":"'[2]5.2 Asset Age Profile'!CV22+'[3]5.2 Asset Age Profile'!CV22","v":0},{"$f":"'[2]5.2 Asset Age Profile'!CW22+'[3]5.2 Asset Age Profile'!CW22","v":0},{"$f":"'[2]5.2 Asset Age Profile'!CX22+'[3]5.2 Asset Age Profile'!CX22","v":0},{"$f":"'[2]5.2 Asset Age Profile'!CY22+'[3]5.2 Asset Age Profile'!CY22","v":0},{"$f":"'[2]5.2 Asset Age Profile'!CZ22+'[3]5.2 Asset Age Profile'!CZ22","v":0},{"$f":"'[2]5.2 Asset Age Profile'!DA22+'[3]5.2 Asset Age Profile'!DA22","v":0},{"$f":"'[2]5.2 Asset Age Profile'!DB22+'[3]5.2 Asset Age Profile'!DB22","v":1},{"$f":"'[2]5.2 Asset Age Profile'!DC22+'[3]5.2 Asset Age Profile'!DC22","v":0},{"$f":"'[2]5.2 Asset Age Profile'!DD22+'[3]5.2 Asset Age Profile'!DD22","v":0},{"$f":"'[2]5.2 Asset Age Profile'!DE22+'[3]5.2 Asset Age Profile'!DE22","v":0},{"$f":"'[2]5.2 Asset Age Profile'!DF22+'[3]5.2 Asset Age Profile'!DF22","v":0},{"$f":"'[2]5.2 Asset Age Profile'!DG22+'[3]5.2 Asset Age Profile'!DG22","v":0},{"$f":"'[2]5.2 Asset Age Profile'!DH22+'[3]5.2 Asset Age Profile'!DH22","v":0},{"$f":"'[2]5.2 Asset Age Profile'!DI22+'[3]5.2 Asset Age Profile'!DI22","v":0},{"$f":"'[2]5.2 Asset Age Profile'!DJ22+'[3]5.2 Asset Age Profile'!DJ22","v":0},{"$f":"'[2]5.2 Asset Age Profile'!DK22+'[3]5.2 Asset Age Profile'!DK22","v":0},{"$f":"'[2]5.2 Asset Age Profile'!DL22+'[3]5.2 Asset Age Profile'!DL22","v":0},{"$f":"'[2]5.2 Asset Age Profile'!DM22+'[3]5.2 Asset Age Profile'!DM22","v":0},{"$f":"'[2]5.2 Asset Age Profile'!DN22+'[3]5.2 Asset Age Profile'!DN22","v":0},{"$f":"'[2]5.2 Asset Age Profile'!DO22+'[3]5.2 Asset Age Profile'!DO22","v":0},{"$f":"'[2]5.2 Asset Age Profile'!DP22+'[3]5.2 Asset Age Profile'!DP22","v":0},{"$f":"'[2]5.2 Asset Age Profile'!DQ22+'[3]5.2 Asset Age Profile'!DQ22","v":0},{"$f":"'[2]5.2 Asset Age Profile'!DR22+'[3]5.2 Asset Age Profile'!DR22","v":0},{"$f":"'[2]5.2 Asset Age Profile'!DS22+'[3]5.2 Asset Age Profile'!DS22","v":0},{"$f":"'[2]5.2 Asset Age Profile'!DT22+'[3]5.2 Asset Age Profile'!DT22","v":0},{"$f":"'[2]5.2 Asset Age Profile'!DU22+'[3]5.2 Asset Age Profile'!DU22","v":0},{"$f":"'[2]5.2 Asset Age Profile'!DV22+'[3]5.2 Asset Age Profile'!DV22","v":0},{"$f":"'[2]5.2 Asset Age Profile'!DW22+'[3]5.2 Asset Age Profile'!DW22","v":0},{"$f":"'[2]5.2 Asset Age Profile'!DX22+'[3]5.2 Asset Age Profile'!DX22","v":0},{"$f":"'[2]5.2 Asset Age Profile'!DY22+'[3]5.2 Asset Age Profile'!DY22","v":0},{"$f":"'[2]5.2 Asset Age Profile'!DZ22+'[3]5.2 Asset Age Profile'!DZ22","v":0},{"$f":"'[2]5.2 Asset Age Profile'!EA22+'[3]5.2 Asset Age Profile'!EA22","v":0},{"$f":"'[2]5.2 Asset Age Profile'!EB22+'[3]5.2 Asset Age Profile'!EB22","v":0},{"$f":"'[2]5.2 Asset Age Profile'!EC22+'[3]5.2 Asset Age Profile'!EC22","v":0},{"$f":"'[2]5.2 Asset Age Profile'!ED22+'[3]5.2 Asset Age Profile'!ED22","v":0},{"$f":"'[2]5.2 Asset Age Profile'!EE22+'[3]5.2 Asset Age Profile'!EE22","v":0},{"$f":"'[2]5.2 Asset Age Profile'!EF22+'[3]5.2 Asset Age Profile'!EF22","v":0},{"$f":"'[2]5.2 Asset Age Profile'!EG22+'[3]5.2 Asset Age Profile'!EG22","v":0},{"$f":"'[2]5.2 Asset Age Profile'!EH22+'[3]5.2 Asset Age Profile'!EH22","v":0},{"$f":"'[2]5.2 Asset Age Profile'!EI22+'[3]5.2 Asset Age Profile'!EI22","v":0},{"$f":"'[2]5.2 Asset Age Profile'!EJ22+'[3]5.2 Asset Age Profile'!EJ22","v":0}]
["ED_ASS521_00013",null,"> 132 kV; Concrete",null,null,null,null,null,null,null,null,null,null,{"$f":"'[2]5.2 Asset Age Profile'!N23+'[3]5.2 Asset Age Profile'!N23","v":60},{"$f":"'[2]5.2 Asset Age Profile'!O23+'[3]5.2 Asset Age Profile'!O23","v":0},{"$f":"'[2]5.2 Asset Age Profile'!P23+'[3]5.2 Asset Age Profile'!P23","v":0},{"$f":"'[2]5.2 Asset Age Profile'!Q23+'[3]5.2 Asset Age Profile'!Q23","v":0},{"$f":"'[2]5.2 Asset Age Profile'!R23+'[3]5.2 Asset Age Profile'!R23","v":0},{"$f":"'[2]5.2 Asset Age Profile'!S23+'[3]5.2 Asset Age Profile'!S23","v":0},{"$f":"'[2]5.2 Asset Age Profile'!T23+'[3]5.2 Asset Age Profile'!T23","v":0},{"$f":"'[2]5.2 Asset Age Profile'!U23+'[3]5.2 Asset Age Profile'!U23","v":0},{"$f":"'[2]5.2 Asset Age Profile'!V23+'[3]5.2 Asset Age Profile'!V23","v":0},{"$f":"'[2]5.2 Asset Age Profile'!W23+'[3]5.2 Asset Age Profile'!W23","v":0},{"$f":"'[2]5.2 Asset Age Profile'!X23+'[3]5.2 Asset Age Profile'!X23","v":0},{"$f":"'[2]5.2 Asset Age Profile'!Y23+'[3]5.2 Asset Age Profile'!Y23","v":10},{"$f":"'[2]5.2 Asset Age Profile'!Z23+'[3]5.2 Asset Age Profile'!Z23","v":0},{"$f":"'[2]5.2 Asset Age Profile'!AA23+'[3]5.2 Asset Age Profile'!AA23","v":0},{"$f":"'[2]5.2 Asset Age Profile'!AB23+'[3]5.2 Asset Age Profile'!AB23","v":0},{"$f":"'[2]5.2 Asset Age Profile'!AC23+'[3]5.2 Asset Age Profile'!AC23","v":0},{"$f":"'[2]5.2 Asset Age Profile'!AD23+'[3]5.2 Asset Age Profile'!AD23","v":0},{"$f":"'[2]5.2 Asset Age Profile'!AE23+'[3]5.2 Asset Age Profile'!AE23","v":0},{"$f":"'[2]5.2 Asset Age Profile'!AF23+'[3]5.2 Asset Age Profile'!AF23","v":0},{"$f":"'[2]5.2 Asset Age Profile'!AG23+'[3]5.2 Asset Age Profile'!AG23","v":0},{"$f":"'[2]5.2 Asset Age Profile'!AH23+'[3]5.2 Asset Age Profile'!AH23","v":0},{"$f":"'[2]5.2 Asset Age Profile'!AI23+'[3]5.2 Asset Age Profile'!AI23","v":0},{"$f":"'[2]5.2 Asset Age Profile'!AJ23+'[3]5.2 Asset Age Profile'!AJ23","v":0},{"$f":"'[2]5.2 Asset Age Profile'!AK23+'[3]5.2 Asset Age Profile'!AK23","v":0},{"$f":"'[2]5.2 Asset Age Profile'!AL23+'[3]5.2 Asset Age Profile'!AL23","v":0},{"$f":"'[2]5.2 Asset Age Profile'!AM23+'[3]5.2 Asset Age Profile'!AM23","v":0},{"$f":"'[2]5.2 Asset Age Profile'!AN23+'[3]5.2 Asset Age Profile'!AN23","v":0},{"$f":"'[2]5.2 Asset Age Profile'!AO23+'[3]5.2 Asset Age Profile'!AO23","v":0},{"$f":"'[2]5.2 Asset Age Profile'!AP23+'[3]5.2 Asset Age Profile'!AP23","v":0},{"$f":"'[2]5.2 Asset Age Profile'!AQ23+'[3]5.2 Asset Age Profile'!AQ23","v":0},{"$f":"'[2]5.2 Asset Age Profile'!AR23+'[3]5.2 Asset Age Profile'!AR23","v":0},{"$f":"'[2]5.2 Asset Age Profile'!AS23+'[3]5.2 Asset Age Profile'!AS23","v":0},{"$f":"'[2]5.2 Asset Age Profile'!AT23+'[3]5.2 Asset Age Profile'!AT23","v":0},{"$f":"'[2]5.2 Asset Age Profile'!AU23+'[3]5.2 Asset Age Profile'!AU23","v":0},{"$f":"'[2]5.2 Asset Age Profile'!AV23+'[3]5.2 Asset Age Profile'!AV23","v":0},{"$f":"'[2]5.2 Asset Age Profile'!AW23+'[3]5.2 Asset Age Profile'!AW23","v":0},{"$f":"'[2]5.2 Asset Age Profile'!AX23+'[3]5.2 Asset Age Profile'!AX23","v":0},{"$f":"'[2]5.2 Asset Age Profile'!AY23+'[3]5.2 Asset Age Profile'!AY23","v":0},{"$f":"'[2]5.2 Asset Age Profile'!AZ23+'[3]5.2 Asset Age Profile'!AZ23","v":0},{"$f":"'[2]5.2 Asset Age Profile'!BA23+'[3]5.2 Asset Age Profile'!BA23","v":0},{"$f":"'[2]5.2 Asset Age Profile'!BB23+'[3]5.2 Asset Age Profile'!BB23","v":0},{"$f":"'[2]5.2 Asset Age Profile'!BC23+'[3]5.2 Asset Age Profile'!BC23","v":0},{"$f":"'[2]5.2 Asset Age Profile'!BD23+'[3]5.2 Asset Age Profile'!BD23","v":0},{"$f":"'[2]5.2 Asset Age Profile'!BE23+'[3]5.2 Asset Age Profile'!BE23","v":0},{"$f":"'[2]5.2 Asset Age Profile'!BF23+'[3]5.2 Asset Age Profile'!BF23","v":0},{"$f":"'[2]5.2 Asset Age Profile'!BG23+'[3]5.2 Asset Age Profile'!BG23","v":0},{"$f":"'[2]5.2 Asset Age Profile'!BH23+'[3]5.2 Asset Age Profile'!BH23","v":0},{"$f":"'[2]5.2 Asset Age Profile'!BI23+'[3]5.2 Asset Age Profile'!BI23","v":0},{"$f":"'[2]5.2 Asset Age Profile'!BJ23+'[3]5.2 Asset Age Profile'!BJ23","v":0},{"$f":"'[2]5.2 Asset Age Profile'!BK23+'[3]5.2 Asset Age Profile'!BK23","v":0},{"$f":"'[2]5.2 Asset Age Profile'!BL23+'[3]5.2 Asset Age Profile'!BL23","v":0},{"$f":"'[2]5.2 Asset Age Profile'!BM23+'[3]5.2 Asset Age Profile'!BM23","v":0},{"$f":"'[2]5.2 Asset Age Profile'!BN23+'[3]5.2 Asset Age Profile'!BN23","v":0},{"$f":"'[2]5.2 Asset Age Profile'!BO23+'[3]5.2 Asset Age Profile'!BO23","v":0},{"$f":"'[2]5.2 Asset Age Profile'!BP23+'[3]5.2 Asset Age Profile'!BP23","v":0},{"$f":"'[2]5.2 Asset Age Profile'!BQ23+'[3]5.2 Asset Age Profile'!BQ23","v":0},{"$f":"'[2]5.2 Asset Age Profile'!BR23+'[3]5.2 Asset Age Profile'!BR23","v":0},{"$f":"'[2]5.2 Asset Age Profile'!BS23+'[3]5.2 Asset Age Profile'!BS23","v":0},{"$f":"'[2]5.2 Asset Age Profile'!BT23+'[3]5.2 Asset Age Profile'!BT23","v":0},{"$f":"'[2]5.2 Asset Age Profile'!BU23+'[3]5.2 Asset Age Profile'!BU23","v":0},{"$f":"'[2]5.2 Asset Age Profile'!BV23+'[3]5.2 Asset Age Profile'!BV23","v":0},{"$f":"'[2]5.2 Asset Age Profile'!BW23+'[3]5.2 Asset Age Profile'!BW23","v":0},{"$f":"'[2]5.2 Asset Age Profile'!BX23+'[3]5.2 Asset Age Profile'!BX23","v":0},{"$f":"'[2]5.2 Asset Age Profile'!BY23+'[3]5.2 Asset Age Profile'!BY23","v":0},{"$f":"'[2]5.2 Asset Age Profile'!BZ23+'[3]5.2 Asset Age Profile'!BZ23","v":0},{"$f":"'[2]5.2 Asset Age Profile'!CA23+'[3]5.2 Asset Age Profile'!CA23","v":0},{"$f":"'[2]5.2 Asset Age Profile'!CB23+'[3]5.2 Asset Age Profile'!CB23","v":0},{"$f":"'[2]5.2 Asset Age Profile'!CC23+'[3]5.2 Asset Age Profile'!CC23","v":0},{"$f":"'[2]5.2 Asset Age Profile'!CD23+'[3]5.2 Asset Age Profile'!CD23","v":0},{"$f":"'[2]5.2 Asset Age Profile'!CE23+'[3]5.2 Asset Age Profile'!CE23","v":0},{"$f":"'[2]5.2 Asset Age Profile'!CF23+'[3]5.2 Asset Age Profile'!CF23","v":0},{"$f":"'[2]5.2 Asset Age Profile'!CG23+'[3]5.2 Asset Age Profile'!CG23","v":0},{"$f":"'[2]5.2 Asset Age Profile'!CH23+'[3]5.2 Asset Age Profile'!CH23","v":0},{"$f":"'[2]5.2 Asset Age Profile'!CI23+'[3]5.2 Asset Age Profile'!CI23","v":0},{"$f":"'[2]5.2 Asset Age Profile'!CJ23+'[3]5.2 Asset Age Profile'!CJ23","v":0},{"$f":"'[2]5.2 Asset Age Profile'!CK23+'[3]5.2 Asset Age Profile'!CK23","v":0},{"$f":"'[2]5.2 Asset Age Profile'!CL23+'[3]5.2 Asset Age Profile'!CL23","v":0},{"$f":"'[2]5.2 Asset Age Profile'!CM23+'[3]5.2 Asset Age Profile'!CM23","v":0},{"$f":"'[2]5.2 Asset Age Profile'!CN23+'[3]5.2 Asset Age Profile'!CN23","v":0},{"$f":"'[2]5.2 Asset Age Profile'!CO23+'[3]5.2 Asset Age Profile'!CO23","v":0},{"$f":"'[2]5.2 Asset Age Profile'!CP23+'[3]5.2 Asset Age Profile'!CP23","v":0},{"$f":"'[2]5.2 Asset Age Profile'!CQ23+'[3]5.2 Asset Age Profile'!CQ23","v":0},{"$f":"'[2]5.2 Asset Age Profile'!CR23+'[3]5.2 Asset Age Profile'!CR23","v":0},{"$f":"'[2]5.2 Asset Age Profile'!CS23+'[3]5.2 Asset Age Profile'!CS23","v":0},{"$f":"'[2]5.2 Asset Age Profile'!CT23+'[3]5.2 Asset Age Profile'!CT23","v":0},{"$f":"'[2]5.2 Asset Age Profile'!CU23+'[3]5.2 Asset Age Profile'!CU23","v":0},{"$f":"'[2]5.2 Asset Age Profile'!CV23+'[3]5.2 Asset Age Profile'!CV23","v":0},{"$f":"'[2]5.2 Asset Age Profile'!CW23+'[3]5.2 Asset Age Profile'!CW23","v":0},{"$f":"'[2]5.2 Asset Age Profile'!CX23+'[3]5.2 Asset Age Profile'!CX23","v":0},{"$f":"'[2]5.2 Asset Age Profile'!CY23+'[3]5.2 Asset Age Profile'!CY23","v":0},{"$f":"'[2]5.2 Asset Age Profile'!CZ23+'[3]5.2 Asset Age Profile'!CZ23","v":0},{"$f":"'[2]5.2 Asset Age Profile'!DA23+'[3]5.2 Asset Age Profile'!DA23","v":0},{"$f":"'[2]5.2 Asset Age Profile'!DB23+'[3]5.2 Asset Age Profile'!DB23","v":0},{"$f":"'[2]5.2 Asset Age Profile'!DC23+'[3]5.2 Asset Age Profile'!DC23","v":0},{"$f":"'[2]5.2 Asset Age Profile'!DD23+'[3]5.2 Asset Age Profile'!DD23","v":0},{"$f":"'[2]5.2 Asset Age Profile'!DE23+'[3]5.2 Asset Age Profile'!DE23","v":0},{"$f":"'[2]5.2 Asset Age Profile'!DF23+'[3]5.2 Asset Age Profile'!DF23","v":0},{"$f":"'[2]5.2 Asset Age Profile'!DG23+'[3]5.2 Asset Age Profile'!DG23","v":0},{"$f":"'[2]5.2 Asset Age Profile'!DH23+'[3]5.2 Asset Age Profile'!DH23","v":0},{"$f":"'[2]5.2 Asset Age Profile'!DI23+'[3]5.2 Asset Age Profile'!DI23","v":0},{"$f":"'[2]5.2 Asset Age Profile'!DJ23+'[3]5.2 Asset Age Profile'!DJ23","v":0},{"$f":"'[2]5.2 Asset Age Profile'!DK23+'[3]5.2 Asset Age Profile'!DK23","v":0},{"$f":"'[2]5.2 Asset Age Profile'!DL23+'[3]5.2 Asset Age Profile'!DL23","v":0},{"$f":"'[2]5.2 Asset Age Profile'!DM23+'[3]5.2 Asset Age Profile'!DM23","v":0},{"$f":"'[2]5.2 Asset Age Profile'!DN23+'[3]5.2 Asset Age Profile'!DN23","v":0},{"$f":"'[2]5.2 Asset Age Profile'!DO23+'[3]5.2 Asset Age Profile'!DO23","v":0},{"$f":"'[2]5.2 Asset Age Profile'!DP23+'[3]5.2 Asset Age Profile'!DP23","v":0},{"$f":"'[2]5.2 Asset Age Profile'!DQ23+'[3]5.2 Asset Age Profile'!DQ23","v":0},{"$f":"'[2]5.2 Asset Age Profile'!DR23+'[3]5.2 Asset Age Profile'!DR23","v":0},{"$f":"'[2]5.2 Asset Age Profile'!DS23+'[3]5.2 Asset Age Profile'!DS23","v":0},{"$f":"'[2]5.2 Asset Age Profile'!DT23+'[3]5.2 Asset Age Profile'!DT23","v":0},{"$f":"'[2]5.2 Asset Age Profile'!DU23+'[3]5.2 Asset Age Profile'!DU23","v":0},{"$f":"'[2]5.2 Asset Age Profile'!DV23+'[3]5.2 Asset Age Profile'!DV23","v":0},{"$f":"'[2]5.2 Asset Age Profile'!DW23+'[3]5.2 Asset Age Profile'!DW23","v":0},{"$f":"'[2]5.2 Asset Age Profile'!DX23+'[3]5.2 Asset Age Profile'!DX23","v":0},{"$f":"'[2]5.2 Asset Age Profile'!DY23+'[3]5.2 Asset Age Profile'!DY23","v":0},{"$f":"'[2]5.2 Asset Age Profile'!DZ23+'[3]5.2 Asset Age Profile'!DZ23","v":0},{"$f":"'[2]5.2 Asset Age Profile'!EA23+'[3]5.2 Asset Age Profile'!EA23","v":0},{"$f":"'[2]5.2 Asset Age Profile'!EB23+'[3]5.2 Asset Age Profile'!EB23","v":0},{"$f":"'[2]5.2 Asset Age Profile'!EC23+'[3]5.2 Asset Age Profile'!EC23","v":0},{"$f":"'[2]5.2 Asset Age Profile'!ED23+'[3]5.2 Asset Age Profile'!ED23","v":0},{"$f":"'[2]5.2 Asset Age Profile'!EE23+'[3]5.2 Asset Age Profile'!EE23","v":0},{"$f":"'[2]5.2 Asset Age Profile'!EF23+'[3]5.2 Asset Age Profile'!EF23","v":0},{"$f":"'[2]5.2 Asset Age Profile'!EG23+'[3]5.2 Asset Age Profile'!EG23","v":0},{"$f":"'[2]5.2 Asset Age Profile'!EH23+'[3]5.2 Asset Age Profile'!EH23","v":0},{"$f":"'[2]5.2 Asset Age Profile'!EI23+'[3]5.2 Asset Age Profile'!EI23","v":0},{"$f":"'[2]5.2 Asset Age Profile'!EJ23+'[3]5.2 Asset Age Profile'!EJ23","v":0}]
["ED_ASS521_00014",null,"˂ = 1 kV; Steel",null,null,null,null,null,null,null,null,null,null,{"$f":"'[2]5.2 Asset Age Profile'!N24+'[3]5.2 Asset Age Profile'!N24","v":60},{"$f":"'[2]5.2 Asset Age Profile'!O24+'[3]5.2 Asset Age Profile'!O24","v":0},{"$f":"'[2]5.2 Asset Age Profile'!P24+'[3]5.2 Asset Age Profile'!P24","v":0},{"$f":"'[2]5.2 Asset Age Profile'!Q24+'[3]5.2 Asset Age Profile'!Q24","v":0},{"$f":"'[2]5.2 Asset Age Profile'!R24+'[3]5.2 Asset Age Profile'!R24","v":0},{"$f":"'[2]5.2 Asset Age Profile'!S24+'[3]5.2 Asset Age Profile'!S24","v":0},{"$f":"'[2]5.2 Asset Age Profile'!T24+'[3]5.2 Asset Age Profile'!T24","v":0},{"$f":"'[2]5.2 Asset Age Profile'!U24+'[3]5.2 Asset Age Profile'!U24","v":0},{"$f":"'[2]5.2 Asset Age Profile'!V24+'[3]5.2 Asset Age Profile'!V24","v":0},{"$f":"'[2]5.2 Asset Age Profile'!W24+'[3]5.2 Asset Age Profile'!W24","v":0},{"$f":"'[2]5.2 Asset Age Profile'!X24+'[3]5.2 Asset Age Profile'!X24","v":0},{"$f":"'[2]5.2 Asset Age Profile'!Y24+'[3]5.2 Asset Age Profile'!Y24","v":10},{"$f":"'[2]5.2 Asset Age Profile'!Z24+'[3]5.2 Asset Age Profile'!Z24","v":0},{"$f":"'[2]5.2 Asset Age Profile'!AA24+'[3]5.2 Asset Age Profile'!AA24","v":0},{"$f":"'[2]5.2 Asset Age Profile'!AB24+'[3]5.2 Asset Age Profile'!AB24","v":0},{"$f":"'[2]5.2 Asset Age Profile'!AC24+'[3]5.2 Asset Age Profile'!AC24","v":0},{"$f":"'[2]5.2 Asset Age Profile'!AD24+'[3]5.2 Asset Age Profile'!AD24","v":0},{"$f":"'[2]5.2 Asset Age Profile'!AE24+'[3]5.2 Asset Age Profile'!AE24","v":0},{"$f":"'[2]5.2 Asset Age Profile'!AF24+'[3]5.2 Asset Age Profile'!AF24","v":0},{"$f":"'[2]5.2 Asset Age Profile'!AG24+'[3]5.2 Asset Age Profile'!AG24","v":0},{"$f":"'[2]5.2 Asset Age Profile'!AH24+'[3]5.2 Asset Age Profile'!AH24","v":0},{"$f":"'[2]5.2 Asset Age Profile'!AI24+'[3]5.2 Asset Age Profile'!AI24","v":0},{"$f":"'[2]5.2 Asset Age Profile'!AJ24+'[3]5.2 Asset Age Profile'!AJ24","v":2},{"$f":"'[2]5.2 Asset Age Profile'!AK24+'[3]5.2 Asset Age Profile'!AK24","v":1},{"$f":"'[2]5.2 Asset Age Profile'!AL24+'[3]5.2 Asset Age Profile'!AL24","v":1},{"$f":"'[2]5.2 Asset Age Profile'!AM24+'[3]5.2 Asset Age Profile'!AM24","v":16},{"$f":"'[2]5.2 Asset Age Profile'!AN24+'[3]5.2 Asset Age Profile'!AN24","v":69},{"$f":"'[2]5.2 Asset Age Profile'!AO24+'[3]5.2 Asset Age Profile'!AO24","v":241},{"$f":"'[2]5.2 Asset Age Profile'!AP24+'[3]5.2 Asset Age Profile'!AP24","v":379},{"$f":"'[2]5.2 Asset Age Profile'!AQ24+'[3]5.2 Asset Age Profile'!AQ24","v":670},{"$f":"'[2]5.2 Asset Age Profile'!AR24+'[3]5.2 Asset Age Profile'!AR24","v":640},{"$f":"'[2]5.2 Asset Age Profile'!AS24+'[3]5.2 Asset Age Profile'!AS24","v":564},{"$f":"'[2]5.2 Asset Age Profile'!AT24+'[3]5.2 Asset Age Profile'!AT24","v":609},{"$f":"'[2]5.2 Asset Age Profile'!AU24+'[3]5.2 Asset Age Profile'!AU24","v":390},{"$f":"'[2]5.2 Asset Age Profile'!AV24+'[3]5.2 Asset Age Profile'!AV24","v":79},{"$f":"'[2]5.2 Asset Age Profile'!AW24+'[3]5.2 Asset Age Profile'!AW24","v":57},{"$f":"'[2]5.2 Asset Age Profile'!AX24+'[3]5.2 Asset Age Profile'!AX24","v":430},{"$f":"'[2]5.2 Asset Age Profile'!AY24+'[3]5.2 Asset Age Profile'!AY24","v":180},{"$f":"'[2]5.2 Asset Age Profile'!AZ24+'[3]5.2 Asset Age Profile'!AZ24","v":54},{"$f":"'[2]5.2 Asset Age Profile'!BA24+'[3]5.2 Asset Age Profile'!BA24","v":58},{"$f":"'[2]5.2 Asset Age Profile'!BB24+'[3]5.2 Asset Age Profile'!BB24","v":0},{"$f":"'[2]5.2 Asset Age Profile'!BC24+'[3]5.2 Asset Age Profile'!BC24","v":20},{"$f":"'[2]5.2 Asset Age Profile'!BD24+'[3]5.2 Asset Age Profile'!BD24","v":108},{"$f":"'[2]5.2 Asset Age Profile'!BE24+'[3]5.2 Asset Age Profile'!BE24","v":33},{"$f":"'[2]5.2 Asset Age Profile'!BF24+'[3]5.2 Asset Age Profile'!BF24","v":41},{"$f":"'[2]5.2 Asset Age Profile'!BG24+'[3]5.2 Asset Age Profile'!BG24","v":74},{"$f":"'[2]5.2 Asset Age Profile'!BH24+'[3]5.2 Asset Age Profile'!BH24","v":131},{"$f":"'[2]5.2 Asset Age Profile'!BI24+'[3]5.2 Asset Age Profile'!BI24","v":0},{"$f":"'[2]5.2 Asset Age Profile'!BJ24+'[3]5.2 Asset Age Profile'!BJ24","v":344},{"$f":"'[2]5.2 Asset Age Profile'!BK24+'[3]5.2 Asset Age Profile'!BK24","v":0},{"$f":"'[2]5.2 Asset Age Profile'!BL24+'[3]5.2 Asset Age Profile'!BL24","v":144},{"$f":"'[2]5.2 Asset Age Profile'!BM24+'[3]5.2 Asset Age Profile'!BM24","v":20},{"$f":"'[2]5.2 Asset Age Profile'!BN24+'[3]5.2 Asset Age Profile'!BN24","v":1},{"$f":"'[2]5.2 Asset Age Profile'!BO24+'[3]5.2 Asset Age Profile'!BO24","v":17},{"$f":"'[2]5.2 Asset Age Profile'!BP24+'[3]5.2 Asset Age Profile'!BP24","v":1},{"$f":"'[2]5.2 Asset Age Profile'!BQ24+'[3]5.2 Asset Age Profile'!BQ24","v":22},{"$f":"'[2]5.2 Asset Age Profile'!BR24+'[3]5.2 Asset Age Profile'!BR24","v":0},{"$f":"'[2]5.2 Asset Age Profile'!BS24+'[3]5.2 Asset Age Profile'!BS24","v":0},{"$f":"'[2]5.2 Asset Age Profile'!BT24+'[3]5.2 Asset Age Profile'!BT24","v":0},{"$f":"'[2]5.2 Asset Age Profile'!BU24+'[3]5.2 Asset Age Profile'!BU24","v":2},{"$f":"'[2]5.2 Asset Age Profile'!BV24+'[3]5.2 Asset Age Profile'!BV24","v":0},{"$f":"'[2]5.2 Asset Age Profile'!BW24+'[3]5.2 Asset Age Profile'!BW24","v":0},{"$f":"'[2]5.2 Asset Age Profile'!BX24+'[3]5.2 Asset Age Profile'!BX24","v":71},{"$f":"'[2]5.2 Asset Age Profile'!BY24+'[3]5.2 Asset Age Profile'!BY24","v":27},{"$f":"'[2]5.2 Asset Age Profile'!BZ24+'[3]5.2 Asset Age Profile'!BZ24","v":5},{"$f":"'[2]5.2 Asset Age Profile'!CA24+'[3]5.2 Asset Age Profile'!CA24","v":15},{"$f":"'[2]5.2 Asset Age Profile'!CB24+'[3]5.2 Asset Age Profile'!CB24","v":23},{"$f":"'[2]5.2 Asset Age Profile'!CC24+'[3]5.2 Asset Age Profile'!CC24","v":28},{"$f":"'[2]5.2 Asset Age Profile'!CD24+'[3]5.2 Asset Age Profile'!CD24","v":0},{"$f":"'[2]5.2 Asset Age Profile'!CE24+'[3]5.2 Asset Age Profile'!CE24","v":27},{"$f":"'[2]5.2 Asset Age Profile'!CF24+'[3]5.2 Asset Age Profile'!CF24","v":11},{"$f":"'[2]5.2 Asset Age Profile'!CG24+'[3]5.2 Asset Age Profile'!CG24","v":24},{"$f":"'[2]5.2 Asset Age Profile'!CH24+'[3]5.2 Asset Age Profile'!CH24","v":0},{"$f":"'[2]5.2 Asset Age Profile'!CI24+'[3]5.2 Asset Age Profile'!CI24","v":5},{"$f":"'[2]5.2 Asset Age Profile'!CJ24+'[3]5.2 Asset Age Profile'!CJ24","v":3},{"$f":"'[2]5.2 Asset Age Profile'!CK24+'[3]5.2 Asset Age Profile'!CK24","v":14},{"$f":"'[2]5.2 Asset Age Profile'!CL24+'[3]5.2 Asset Age Profile'!CL24","v":2},{"$f":"'[2]5.2 Asset Age Profile'!CM24+'[3]5.2 Asset Age Profile'!CM24","v":23},{"$f":"'[2]5.2 Asset Age Profile'!CN24+'[3]5.2 Asset Age Profile'!CN24","v":1},{"$f":"'[2]5.2 Asset Age Profile'!CO24+'[3]5.2 Asset Age Profile'!CO24","v":9},{"$f":"'[2]5.2 Asset Age Profile'!CP24+'[3]5.2 Asset Age Profile'!CP24","v":1},{"$f":"'[2]5.2 Asset Age Profile'!CQ24+'[3]5.2 Asset Age Profile'!CQ24","v":8},{"$f":"'[2]5.2 Asset Age Profile'!CR24+'[3]5.2 Asset Age Profile'!CR24","v":1},{"$f":"'[2]5.2 Asset Age Profile'!CS24+'[3]5.2 Asset Age Profile'!CS24","v":1},{"$f":"'[2]5.2 Asset Age Profile'!CT24+'[3]5.2 Asset Age Profile'!CT24","v":1},{"$f":"'[2]5.2 Asset Age Profile'!CU24+'[3]5.2 Asset Age Profile'!CU24","v":1},{"$f":"'[2]5.2 Asset Age Profile'!CV24+'[3]5.2 Asset Age Profile'!CV24","v":1},{"$f":"'[2]5.2 Asset Age Profile'!CW24+'[3]5.2 Asset Age Profile'!CW24","v":1},{"$f":"'[2]5.2 Asset Age Profile'!CX24+'[3]5.2 Asset Age Profile'!CX24","v":1},{"$f":"'[2]5.2 Asset Age Profile'!CY24+'[3]5.2 Asset Age Profile'!CY24","v":13},{"$f":"'[2]5.2 Asset Age Profile'!CZ24+'[3]5.2 Asset Age Profile'!CZ24","v":5},{"$f":"'[2]5.2 Asset Age Profile'!DA24+'[3]5.2 Asset Age Profile'!DA24","v":11},{"$f":"'[2]5.2 Asset Age Profile'!DB24+'[3]5.2 Asset Age Profile'!DB24","v":1},{"$f":"'[2]5.2 Asset Age Profile'!DC24+'[3]5.2 Asset Age Profile'!DC24","v":20},{"$f":"'[2]5.2 Asset Age Profile'!DD24+'[3]5.2 Asset Age Profile'!DD24","v":9},{"$f":"'[2]5.2 Asset Age Profile'!DE24+'[3]5.2 Asset Age Profile'!DE24","v":18},{"$f":"'[2]5.2 Asset Age Profile'!DF24+'[3]5.2 Asset Age Profile'!DF24","v":0},{"$f":"'[2]5.2 Asset Age Profile'!DG24+'[3]5.2 Asset Age Profile'!DG24","v":0},{"$f":"'[2]5.2 Asset Age Profile'!DH24+'[3]5.2 Asset Age Profile'!DH24","v":0},{"$f":"'[2]5.2 Asset Age Profile'!DI24+'[3]5.2 Asset Age Profile'!DI24","v":11},{"$f":"'[2]5.2 Asset Age Profile'!DJ24+'[3]5.2 Asset Age Profile'!DJ24","v":0},{"$f":"'[2]5.2 Asset Age Profile'!DK24+'[3]5.2 Asset Age Profile'!DK24","v":0},{"$f":"'[2]5.2 Asset Age Profile'!DL24+'[3]5.2 Asset Age Profile'!DL24","v":0},{"$f":"'[2]5.2 Asset Age Profile'!DM24+'[3]5.2 Asset Age Profile'!DM24","v":0},{"$f":"'[2]5.2 Asset Age Profile'!DN24+'[3]5.2 Asset Age Profile'!DN24","v":0},{"$f":"'[2]5.2 Asset Age Profile'!DO24+'[3]5.2 Asset Age Profile'!DO24","v":0},{"$f":"'[2]5.2 Asset Age Profile'!DP24+'[3]5.2 Asset Age Profile'!DP24","v":0},{"$f":"'[2]5.2 Asset Age Profile'!DQ24+'[3]5.2 Asset Age Profile'!DQ24","v":0},{"$f":"'[2]5.2 Asset Age Profile'!DR24+'[3]5.2 Asset Age Profile'!DR24","v":0},{"$f":"'[2]5.2 Asset Age Profile'!DS24+'[3]5.2 Asset Age Profile'!DS24","v":74},{"$f":"'[2]5.2 Asset Age Profile'!DT24+'[3]5.2 Asset Age Profile'!DT24","v":0},{"$f":"'[2]5.2 Asset Age Profile'!DU24+'[3]5.2 Asset Age Profile'!DU24","v":0},{"$f":"'[2]5.2 Asset Age Profile'!DV24+'[3]5.2 Asset Age Profile'!DV24","v":0},{"$f":"'[2]5.2 Asset Age Profile'!DW24+'[3]5.2 Asset Age Profile'!DW24","v":0},{"$f":"'[2]5.2 Asset Age Profile'!DX24+'[3]5.2 Asset Age Profile'!DX24","v":0},{"$f":"'[2]5.2 Asset Age Profile'!DY24+'[3]5.2 Asset Age Profile'!DY24","v":0},{"$f":"'[2]5.2 Asset Age Profile'!DZ24+'[3]5.2 Asset Age Profile'!DZ24","v":0},{"$f":"'[2]5.2 Asset Age Profile'!EA24+'[3]5.2 Asset Age Profile'!EA24","v":0},{"$f":"'[2]5.2 Asset Age Profile'!EB24+'[3]5.2 Asset Age Profile'!EB24","v":0},{"$f":"'[2]5.2 Asset Age Profile'!EC24+'[3]5.2 Asset Age Profile'!EC24","v":0},{"$f":"'[2]5.2 Asset Age Profile'!ED24+'[3]5.2 Asset Age Profile'!ED24","v":0},{"$f":"'[2]5.2 Asset Age Profile'!EE24+'[3]5.2 Asset Age Profile'!EE24","v":0},{"$f":"'[2]5.2 Asset Age Profile'!EF24+'[3]5.2 Asset Age Profile'!EF24","v":0},{"$f":"'[2]5.2 Asset Age Profile'!EG24+'[3]5.2 Asset Age Profile'!EG24","v":0},{"$f":"'[2]5.2 Asset Age Profile'!EH24+'[3]5.2 Asset Age Profile'!EH24","v":0},{"$f":"'[2]5.2 Asset Age Profile'!EI24+'[3]5.2 Asset Age Profile'!EI24","v":0},{"$f":"'[2]5.2 Asset Age Profile'!EJ24+'[3]5.2 Asset Age Profile'!EJ24","v":0}]
["ED_ASS521_00015",null,"> 1 kV & < = 11 kV; Steel",null,null,null,null,null,null,null,null,null,null,{"$f":"'[2]5.2 Asset Age Profile'!N25+'[3]5.2 Asset Age Profile'!N25","v":60},{"$f":"'[2]5.2 Asset Age Profile'!O25+'[3]5.2 Asset Age Profile'!O25","v":0},{"$f":"'[2]5.2 Asset Age Profile'!P25+'[3]5.2 Asset Age Profile'!P25","v":0},{"$f":"'[2]5.2 Asset Age Profile'!Q25+'[3]5.2 Asset Age Profile'!Q25","v":0},{"$f":"'[2]5.2 Asset Age Profile'!R25+'[3]5.2 Asset Age Profile'!R25","v":0},{"$f":"'[2]5.2 Asset Age Profile'!S25+'[3]5.2 Asset Age Profile'!S25","v":0},{"$f":"'[2]5.2 Asset Age Profile'!T25+'[3]5.2 Asset Age Profile'!T25","v":0},{"$f":"'[2]5.2 Asset Age Profile'!U25+'[3]5.2 Asset Age Profile'!U25","v":0},{"$f":"'[2]5.2 Asset Age Profile'!V25+'[3]5.2 Asset Age Profile'!V25","v":0},{"$f":"'[2]5.2 Asset Age Profile'!W25+'[3]5.2 Asset Age Profile'!W25","v":0},{"$f":"'[2]5.2 Asset Age Profile'!X25+'[3]5.2 Asset Age Profile'!X25","v":0},{"$f":"'[2]5.2 Asset Age Profile'!Y25+'[3]5.2 Asset Age Profile'!Y25","v":10},{"$f":"'[2]5.2 Asset Age Profile'!Z25+'[3]5.2 Asset Age Profile'!Z25","v":0},{"$f":"'[2]5.2 Asset Age Profile'!AA25+'[3]5.2 Asset Age Profile'!AA25","v":0},{"$f":"'[2]5.2 Asset Age Profile'!AB25+'[3]5.2 Asset Age Profile'!AB25","v":0},{"$f":"'[2]5.2 Asset Age Profile'!AC25+'[3]5.2 Asset Age Profile'!AC25","v":0},{"$f":"'[2]5.2 Asset Age Profile'!AD25+'[3]5.2 Asset Age Profile'!AD25","v":0},{"$f":"'[2]5.2 Asset Age Profile'!AE25+'[3]5.2 Asset Age Profile'!AE25","v":0},{"$f":"'[2]5.2 Asset Age Profile'!AF25+'[3]5.2 Asset Age Profile'!AF25","v":0},{"$f":"'[2]5.2 Asset Age Profile'!AG25+'[3]5.2 Asset Age Profile'!AG25","v":0},{"$f":"'[2]5.2 Asset Age Profile'!AH25+'[3]5.2 Asset Age Profile'!AH25","v":0},{"$f":"'[2]5.2 Asset Age Profile'!AI25+'[3]5.2 Asset Age Profile'!AI25","v":0},{"$f":"'[2]5.2 Asset Age Profile'!AJ25+'[3]5.2 Asset Age Profile'!AJ25","v":0},{"$f":"'[2]5.2 Asset Age Profile'!AK25+'[3]5.2 Asset Age Profile'!AK25","v":1},{"$f":"'[2]5.2 Asset Age Profile'!AL25+'[3]5.2 Asset Age Profile'!AL25","v":0},{"$f":"'[2]5.2 Asset Age Profile'!AM25+'[3]5.2 Asset Age Profile'!AM25","v":0},{"$f":"'[2]5.2 Asset Age Profile'!AN25+'[3]5.2 Asset Age Profile'!AN25","v":0},{"$f":"'[2]5.2 Asset Age Profile'!AO25+'[3]5.2 Asset Age Profile'!AO25","v":0},{"$f":"'[2]5.2 Asset Age Profile'!AP25+'[3]5.2 Asset Age Profile'!AP25","v":0},{"$f":"'[2]5.2 Asset Age Profile'!AQ25+'[3]5.2 Asset Age Profile'!AQ25","v":0},{"$f":"'[2]5.2 Asset Age Profile'!AR25+'[3]5.2 Asset Age Profile'!AR25","v":0},{"$f":"'[2]5.2 Asset Age Profile'!AS25+'[3]5.2 Asset Age Profile'!AS25","v":0},{"$f":"'[2]5.2 Asset Age Profile'!AT25+'[3]5.2 Asset Age Profile'!AT25","v":24},{"$f":"'[2]5.2 Asset Age Profile'!AU25+'[3]5.2 Asset Age Profile'!AU25","v":0},{"$f":"'[2]5.2 Asset Age Profile'!AV25+'[3]5.2 Asset Age Profile'!AV25","v":3},{"$f":"'[2]5.2 Asset Age Profile'!AW25+'[3]5.2 Asset Age Profile'!AW25","v":2},{"$f":"'[2]5.2 Asset Age Profile'!AX25+'[3]5.2 Asset Age Profile'!AX25","v":0},{"$f":"'[2]5.2 Asset Age Profile'!AY25+'[3]5.2 Asset Age Profile'!AY25","v":0},{"$f":"'[2]5.2 Asset Age Profile'!AZ25+'[3]5.2 Asset Age Profile'!AZ25","v":6},{"$f":"'[2]5.2 Asset Age Profile'!BA25+'[3]5.2 Asset Age Profile'!BA25","v":0},{"$f":"'[2]5.2 Asset Age Profile'!BB25+'[3]5.2 Asset Age Profile'!BB25","v":0},{"$f":"'[2]5.2 Asset Age Profile'!BC25+'[3]5.2 Asset Age Profile'!BC25","v":0},{"$f":"'[2]5.2 Asset Age Profile'!BD25+'[3]5.2 Asset Age Profile'!BD25","v":0},{"$f":"'[2]5.2 Asset Age Profile'!BE25+'[3]5.2 Asset Age Profile'!BE25","v":0},{"$f":"'[2]5.2 Asset Age Profile'!BF25+'[3]5.2 Asset Age Profile'!BF25","v":0},{"$f":"'[2]5.2 Asset Age Profile'!BG25+'[3]5.2 Asset Age Profile'!BG25","v":0},{"$f":"'[2]5.2 Asset Age Profile'!BH25+'[3]5.2 Asset Age Profile'!BH25","v":0},{"$f":"'[2]5.2 Asset Age Profile'!BI25+'[3]5.2 Asset Age Profile'!BI25","v":0},{"$f":"'[2]5.2 Asset Age Profile'!BJ25+'[3]5.2 Asset Age Profile'!BJ25","v":0},{"$f":"'[2]5.2 Asset Age Profile'!BK25+'[3]5.2 Asset Age Profile'!BK25","v":0},{"$f":"'[2]5.2 Asset Age Profile'!BL25+'[3]5.2 Asset Age Profile'!BL25","v":0},{"$f":"'[2]5.2 Asset Age Profile'!BM25+'[3]5.2 Asset Age Profile'!BM25","v":0},{"$f":"'[2]5.2 Asset Age Profile'!BN25+'[3]5.2 Asset Age Profile'!BN25","v":0},{"$f":"'[2]5.2 Asset Age Profile'!BO25+'[3]5.2 Asset Age Profile'!BO25","v":0},{"$f":"'[2]5.2 Asset Age Profile'!BP25+'[3]5.2 Asset Age Profile'!BP25","v":0},{"$f":"'[2]5.2 Asset Age Profile'!BQ25+'[3]5.2 Asset Age Profile'!BQ25","v":0},{"$f":"'[2]5.2 Asset Age Profile'!BR25+'[3]5.2 Asset Age Profile'!BR25","v":0},{"$f":"'[2]5.2 Asset Age Profile'!BS25+'[3]5.2 Asset Age Profile'!BS25","v":0},{"$f":"'[2]5.2 Asset Age Profile'!BT25+'[3]5.2 Asset Age Profile'!BT25","v":0},{"$f":"'[2]5.2 Asset Age Profile'!BU25+'[3]5.2 Asset Age Profile'!BU25","v":0},{"$f":"'[2]5.2 Asset Age Profile'!BV25+'[3]5.2 Asset Age Profile'!BV25","v":0},{"$f":"'[2]5.2 Asset Age Profile'!BW25+'[3]5.2 Asset Age Profile'!BW25","v":0},{"$f":"'[2]5.2 Asset Age Profile'!BX25+'[3]5.2 Asset Age Profile'!BX25","v":0},{"$f":"'[2]5.2 Asset Age Profile'!BY25+'[3]5.2 Asset Age Profile'!BY25","v":0},{"$f":"'[2]5.2 Asset Age Profile'!BZ25+'[3]5.2 Asset Age Profile'!BZ25","v":0},{"$f":"'[2]5.2 Asset Age Profile'!CA25+'[3]5.2 Asset Age Profile'!CA25","v":0},{"$f":"'[2]5.2 Asset Age Profile'!CB25+'[3]5.2 Asset Age Profile'!CB25","v":0},{"$f":"'[2]5.2 Asset Age Profile'!CC25+'[3]5.2 Asset Age Profile'!CC25","v":0},{"$f":"'[2]5.2 Asset Age Profile'!CD25+'[3]5.2 Asset Age Profile'!CD25","v":0},{"$f":"'[2]5.2 Asset Age Profile'!CE25+'[3]5.2 Asset Age Profile'!CE25","v":0},{"$f":"'[2]5.2 Asset Age Profile'!CF25+'[3]5.2 Asset Age Profile'!CF25","v":0},{"$f":"'[2]5.2 Asset Age Profile'!CG25+'[3]5.2 Asset Age Profile'!CG25","v":0},{"$f":"'[2]5.2 Asset Age Profile'!CH25+'[3]5.2 Asset Age Profile'!CH25","v":0},{"$f":"'[2]5.2 Asset Age Profile'!CI25+'[3]5.2 Asset Age Profile'!CI25","v":0},{"$f":"'[2]5.2 Asset Age Profile'!CJ25+'[3]5.2 Asset Age Profile'!CJ25","v":0},{"$f":"'[2]5.2 Asset Age Profile'!CK25+'[3]5.2 Asset Age Profile'!CK25","v":0},{"$f":"'[2]5.2 Asset Age Profile'!CL25+'[3]5.2 Asset Age Profile'!CL25","v":0},{"$f":"'[2]5.2 Asset Age Profile'!CM25+'[3]5.2 Asset Age Profile'!CM25","v":0},{"$f":"'[2]5.2 Asset Age Profile'!CN25+'[3]5.2 Asset Age Profile'!CN25","v":0},{"$f":"'[2]5.2 Asset Age Profile'!CO25+'[3]5.2 Asset Age Profile'!CO25","v":0},{"$f":"'[2]5.2 Asset Age Profile'!CP25+'[3]5.2 Asset Age Profile'!CP25","v":0},{"$f":"'[2]5.2 Asset Age Profile'!CQ25+'[3]5.2 Asset Age Profile'!CQ25","v":0},{"$f":"'[2]5.2 Asset Age Profile'!CR25+'[3]5.2 Asset Age Profile'!CR25","v":0},{"$f":"'[2]5.2 Asset Age Profile'!CS25+'[3]5.2 Asset Age Profile'!CS25","v":0},{"$f":"'[2]5.2 Asset Age Profile'!CT25+'[3]5.2 Asset Age Profile'!CT25","v":0},{"$f":"'[2]5.2 Asset Age Profile'!CU25+'[3]5.2 Asset Age Profile'!CU25","v":0},{"$f":"'[2]5.2 Asset Age Profile'!CV25+'[3]5.2 Asset Age Profile'!CV25","v":0},{"$f":"'[2]5.2 Asset Age Profile'!CW25+'[3]5.2 Asset Age Profile'!CW25","v":0},{"$f":"'[2]5.2 Asset Age Profile'!CX25+'[3]5.2 Asset Age Profile'!CX25","v":0},{"$f":"'[2]5.2 Asset Age Profile'!CY25+'[3]5.2 Asset Age Profile'!CY25","v":1},{"$f":"'[2]5.2 Asset Age Profile'!CZ25+'[3]5.2 Asset Age Profile'!CZ25","v":1},{"$f":"'[2]5.2 Asset Age Profile'!DA25+'[3]5.2 Asset Age Profile'!DA25","v":1},{"$f":"'[2]5.2 Asset Age Profile'!DB25+'[3]5.2 Asset Age Profile'!DB25","v":1},{"$f":"'[2]5.2 Asset Age Profile'!DC25+'[3]5.2 Asset Age Profile'!DC25","v":0},{"$f":"'[2]5.2 Asset Age Profile'!DD25+'[3]5.2 Asset Age Profile'!DD25","v":0},{"$f":"'[2]5.2 Asset Age Profile'!DE25+'[3]5.2 Asset Age Profile'!DE25","v":0},{"$f":"'[2]5.2 Asset Age Profile'!DF25+'[3]5.2 Asset Age Profile'!DF25","v":0},{"$f":"'[2]5.2 Asset Age Profile'!DG25+'[3]5.2 Asset Age Profile'!DG25","v":0},{"$f":"'[2]5.2 Asset Age Profile'!DH25+'[3]5.2 Asset Age Profile'!DH25","v":0},{"$f":"'[2]5.2 Asset Age Profile'!DI25+'[3]5.2 Asset Age Profile'!DI25","v":0},{"$f":"'[2]5.2 Asset Age Profile'!DJ25+'[3]5.2 Asset Age Profile'!DJ25","v":0},{"$f":"'[2]5.2 Asset Age Profile'!DK25+'[3]5.2 Asset Age Profile'!DK25","v":0},{"$f":"'[2]5.2 Asset Age Profile'!DL25+'[3]5.2 Asset Age Profile'!DL25","v":0},{"$f":"'[2]5.2 Asset Age Profile'!DM25+'[3]5.2 Asset Age Profile'!DM25","v":0},{"$f":"'[2]5.2 Asset Age Profile'!DN25+'[3]5.2 Asset Age Profile'!DN25","v":0},{"$f":"'[2]5.2 Asset Age Profile'!DO25+'[3]5.2 Asset Age Profile'!DO25","v":0},{"$f":"'[2]5.2 Asset Age Profile'!DP25+'[3]5.2 Asset Age Profile'!DP25","v":0},{"$f":"'[2]5.2 Asset Age Profile'!DQ25+'[3]5.2 Asset Age Profile'!DQ25","v":0},{"$f":"'[2]5.2 Asset Age Profile'!DR25+'[3]5.2 Asset Age Profile'!DR25","v":0},{"$f":"'[2]5.2 Asset Age Profile'!DS25+'[3]5.2 Asset Age Profile'!DS25","v":0},{"$f":"'[2]5.2 Asset Age Profile'!DT25+'[3]5.2 Asset Age Profile'!DT25","v":0},{"$f":"'[2]5.2 Asset Age Profile'!DU25+'[3]5.2 Asset Age Profile'!DU25","v":0},{"$f":"'[2]5.2 Asset Age Profile'!DV25+'[3]5.2 Asset Age Profile'!DV25","v":0},{"$f":"'[2]5.2 Asset Age Profile'!DW25+'[3]5.2 Asset Age Profile'!DW25","v":0},{"$f":"'[2]5.2 Asset Age Profile'!DX25+'[3]5.2 Asset Age Profile'!DX25","v":0},{"$f":"'[2]5.2 Asset Age Profile'!DY25+'[3]5.2 Asset Age Profile'!DY25","v":0},{"$f":"'[2]5.2 Asset Age Profile'!DZ25+'[3]5.2 Asset Age Profile'!DZ25","v":0},{"$f":"'[2]5.2 Asset Age Profile'!EA25+'[3]5.2 Asset Age Profile'!EA25","v":0},{"$f":"'[2]5.2 Asset Age Profile'!EB25+'[3]5.2 Asset Age Profile'!EB25","v":0},{"$f":"'[2]5.2 Asset Age Profile'!EC25+'[3]5.2 Asset Age Profile'!EC25","v":0},{"$f":"'[2]5.2 Asset Age Profile'!ED25+'[3]5.2 Asset Age Profile'!ED25","v":0},{"$f":"'[2]5.2 Asset Age Profile'!EE25+'[3]5.2 Asset Age Profile'!EE25","v":0},{"$f":"'[2]5.2 Asset Age Profile'!EF25+'[3]5.2 Asset Age Profile'!EF25","v":0},{"$f":"'[2]5.2 Asset Age Profile'!EG25+'[3]5.2 Asset Age Profile'!EG25","v":0},{"$f":"'[2]5.2 Asset Age Profile'!EH25+'[3]5.2 Asset Age Profile'!EH25","v":0},{"$f":"'[2]5.2 Asset Age Profile'!EI25+'[3]5.2 Asset Age Profile'!EI25","v":0},{"$f":"'[2]5.2 Asset Age Profile'!EJ25+'[3]5.2 Asset Age Profile'!EJ25","v":0}]
["ED_ASS521_00016",null,"˃ 11 kV & < = 22 kV; Steel",null,null,null,null,null,null,null,null,null,null,{"$f":"'[2]5.2 Asset Age Profile'!N26+'[3]5.2 Asset Age Profile'!N26","v":60},{"$f":"'[2]5.2 Asset Age Profile'!O26+'[3]5.2 Asset Age Profile'!O26","v":0},{"$f":"'[2]5.2 Asset Age Profile'!P26+'[3]5.2 Asset Age Profile'!P26","v":0},{"$f":"'[2]5.2 Asset Age Profile'!Q26+'[3]5.2 Asset Age Profile'!Q26","v":0},{"$f":"'[2]5.2 Asset Age Profile'!R26+'[3]5.2 Asset Age Profile'!R26","v":0},{"$f":"'[2]5.2 Asset Age Profile'!S26+'[3]5.2 Asset Age Profile'!S26","v":0},{"$f":"'[2]5.2 Asset Age Profile'!T26+'[3]5.2 Asset Age Profile'!T26","v":0},{"$f":"'[2]5.2 Asset Age Profile'!U26+'[3]5.2 Asset Age Profile'!U26","v":0},{"$f":"'[2]5.2 Asset Age Profile'!V26+'[3]5.2 Asset Age Profile'!V26","v":0},{"$f":"'[2]5.2 Asset Age Profile'!W26+'[3]5.2 Asset Age Profile'!W26","v":0},{"$f":"'[2]5.2 Asset Age Profile'!X26+'[3]5.2 Asset Age Profile'!X26","v":0},{"$f":"'[2]5.2 Asset Age Profile'!Y26+'[3]5.2 Asset Age Profile'!Y26","v":10},{"$f":"'[2]5.2 Asset Age Profile'!Z26+'[3]5.2 Asset Age Profile'!Z26","v":0},{"$f":"'[2]5.2 Asset Age Profile'!AA26+'[3]5.2 Asset Age Profile'!AA26","v":0},{"$f":"'[2]5.2 Asset Age Profile'!AB26+'[3]5.2 Asset Age Profile'!AB26","v":0},{"$f":"'[2]5.2 Asset Age Profile'!AC26+'[3]5.2 Asset Age Profile'!AC26","v":0},{"$f":"'[2]5.2 Asset Age Profile'!AD26+'[3]5.2 Asset Age Profile'!AD26","v":0},{"$f":"'[2]5.2 Asset Age Profile'!AE26+'[3]5.2 Asset Age Profile'!AE26","v":0},{"$f":"'[2]5.2 Asset Age Profile'!AF26+'[3]5.2 Asset Age Profile'!AF26","v":0},{"$f":"'[2]5.2 Asset Age Profile'!AG26+'[3]5.2 Asset Age Profile'!AG26","v":0},{"$f":"'[2]5.2 Asset Age Profile'!AH26+'[3]5.2 Asset Age Profile'!AH26","v":0},{"$f":"'[2]5.2 Asset Age Profile'!AI26+'[3]5.2 Asset Age Profile'!AI26","v":0},{"$f":"'[2]5.2 Asset Age Profile'!AJ26+'[3]5.2 Asset Age Profile'!AJ26","v":0},{"$f":"'[2]5.2 Asset Age Profile'!AK26+'[3]5.2 Asset Age Profile'!AK26","v":0},{"$f":"'[2]5.2 Asset Age Profile'!AL26+'[3]5.2 Asset Age Profile'!AL26","v":0},{"$f":"'[2]5.2 Asset Age Profile'!AM26+'[3]5.2 Asset Age Profile'!AM26","v":0},{"$f":"'[2]5.2 Asset Age Profile'!AN26+'[3]5.2 Asset Age Profile'!AN26","v":0},{"$f":"'[2]5.2 Asset Age Profile'!AO26+'[3]5.2 Asset Age Profile'!AO26","v":0},{"$f":"'[2]5.2 Asset Age Profile'!AP26+'[3]5.2 Asset Age Profile'!AP26","v":0},{"$f":"'[2]5.2 Asset Age Profile'!AQ26+'[3]5.2 Asset Age Profile'!AQ26","v":0},{"$f":"'[2]5.2 Asset Age Profile'!AR26+'[3]5.2 Asset Age Profile'!AR26","v":0},{"$f":"'[2]5.2 Asset Age Profile'!AS26+'[3]5.2 Asset Age Profile'!AS26","v":0},{"$f":"'[2]5.2 Asset Age Profile'!AT26+'[3]5.2 Asset Age Profile'!AT26","v":0},{"$f":"'[2]5.2 Asset Age Profile'!AU26+'[3]5.2 Asset Age Profile'!AU26","v":0},{"$f":"'[2]5.2 Asset Age Profile'!AV26+'[3]5.2 Asset Age Profile'!AV26","v":0},{"$f":"'[2]5.2 Asset Age Profile'!AW26+'[3]5.2 Asset Age Profile'!AW26","v":0},{"$f":"'[2]5.2 Asset Age Profile'!AX26+'[3]5.2 Asset Age Profile'!AX26","v":0},{"$f":"'[2]5.2 Asset Age Profile'!AY26+'[3]5.2 Asset Age Profile'!AY26","v":0},{"$f":"'[2]5.2 Asset Age Profile'!AZ26+'[3]5.2 Asset Age Profile'!AZ26","v":0},{"$f":"'[2]5.2 Asset Age Profile'!BA26+'[3]5.2 Asset Age Profile'!BA26","v":0},{"$f":"'[2]5.2 Asset Age Profile'!BB26+'[3]5.2 Asset Age Profile'!BB26","v":0},{"$f":"'[2]5.2 Asset Age Profile'!BC26+'[3]5.2 Asset Age Profile'!BC26","v":0},{"$f":"'[2]5.2 Asset Age Profile'!BD26+'[3]5.2 Asset Age Profile'!BD26","v":0},{"$f":"'[2]5.2 Asset Age Profile'!BE26+'[3]5.2 Asset Age Profile'!BE26","v":0},{"$f":"'[2]5.2 Asset Age Profile'!BF26+'[3]5.2 Asset Age Profile'!BF26","v":0},{"$f":"'[2]5.2 Asset Age Profile'!BG26+'[3]5.2 Asset Age Profile'!BG26","v":0},{"$f":"'[2]5.2 Asset Age Profile'!BH26+'[3]5.2 Asset Age Profile'!BH26","v":0},{"$f":"'[2]5.2 Asset Age Profile'!BI26+'[3]5.2 Asset Age Profile'!BI26","v":0},{"$f":"'[2]5.2 Asset Age Profile'!BJ26+'[3]5.2 Asset Age Profile'!BJ26","v":0},{"$f":"'[2]5.2 Asset Age Profile'!BK26+'[3]5.2 Asset Age Profile'!BK26","v":0},{"$f":"'[2]5.2 Asset Age Profile'!BL26+'[3]5.2 Asset Age Profile'!BL26","v":0},{"$f":"'[2]5.2 Asset Age Profile'!BM26+'[3]5.2 Asset Age Profile'!BM26","v":0},{"$f":"'[2]5.2 Asset Age Profile'!BN26+'[3]5.2 Asset Age Profile'!BN26","v":0},{"$f":"'[2]5.2 Asset Age Profile'!BO26+'[3]5.2 Asset Age Profile'!BO26","v":0},{"$f":"'[2]5.2 Asset Age Profile'!BP26+'[3]5.2 Asset Age Profile'!BP26","v":0},{"$f":"'[2]5.2 Asset Age Profile'!BQ26+'[3]5.2 Asset Age Profile'!BQ26","v":0},{"$f":"'[2]5.2 Asset Age Profile'!BR26+'[3]5.2 Asset Age Profile'!BR26","v":0},{"$f":"'[2]5.2 Asset Age Profile'!BS26+'[3]5.2 Asset Age Profile'!BS26","v":0},{"$f":"'[2]5.2 Asset Age Profile'!BT26+'[3]5.2 Asset Age Profile'!BT26","v":0},{"$f":"'[2]5.2 Asset Age Profile'!BU26+'[3]5.2 Asset Age Profile'!BU26","v":0},{"$f":"'[2]5.2 Asset Age Profile'!BV26+'[3]5.2 Asset Age Profile'!BV26","v":0},{"$f":"'[2]5.2 Asset Age Profile'!BW26+'[3]5.2 Asset Age Profile'!BW26","v":0},{"$f":"'[2]5.2 Asset Age Profile'!BX26+'[3]5.2 Asset Age Profile'!BX26","v":0},{"$f":"'[2]5.2 Asset Age Profile'!BY26+'[3]5.2 Asset Age Profile'!BY26","v":0},{"$f":"'[2]5.2 Asset Age Profile'!BZ26+'[3]5.2 Asset Age Profile'!BZ26","v":0},{"$f":"'[2]5.2 Asset Age Profile'!CA26+'[3]5.2 Asset Age Profile'!CA26","v":0},{"$f":"'[2]5.2 Asset Age Profile'!CB26+'[3]5.2 Asset Age Profile'!CB26","v":0},{"$f":"'[2]5.2 Asset Age Profile'!CC26+'[3]5.2 Asset Age Profile'!CC26","v":0},{"$f":"'[2]5.2 Asset Age Profile'!CD26+'[3]5.2 Asset Age Profile'!CD26","v":0},{"$f":"'[2]5.2 Asset Age Profile'!CE26+'[3]5.2 Asset Age Profile'!CE26","v":0},{"$f":"'[2]5.2 Asset Age Profile'!CF26+'[3]5.2 Asset Age Profile'!CF26","v":0},{"$f":"'[2]5.2 Asset Age Profile'!CG26+'[3]5.2 Asset Age Profile'!CG26","v":0},{"$f":"'[2]5.2 Asset Age Profile'!CH26+'[3]5.2 Asset Age Profile'!CH26","v":0},{"$f":"'[2]5.2 Asset Age Profile'!CI26+'[3]5.2 Asset Age Profile'!CI26","v":0},{"$f":"'[2]5.2 Asset Age Profile'!CJ26+'[3]5.2 Asset Age Profile'!CJ26","v":0},{"$f":"'[2]5.2 Asset Age Profile'!CK26+'[3]5.2 Asset Age Profile'!CK26","v":0},{"$f":"'[2]5.2 Asset Age Profile'!CL26+'[3]5.2 Asset Age Profile'!CL26","v":0},{"$f":"'[2]5.2 Asset Age Profile'!CM26+'[3]5.2 Asset Age Profile'!CM26","v":0},{"$f":"'[2]5.2 Asset Age Profile'!CN26+'[3]5.2 Asset Age Profile'!CN26","v":0},{"$f":"'[2]5.2 Asset Age Profile'!CO26+'[3]5.2 Asset Age Profile'!CO26","v":0},{"$f":"'[2]5.2 Asset Age Profile'!CP26+'[3]5.2 Asset Age Profile'!CP26","v":0},{"$f":"'[2]5.2 Asset Age Profile'!CQ26+'[3]5.2 Asset Age Profile'!CQ26","v":0},{"$f":"'[2]5.2 Asset Age Profile'!CR26+'[3]5.2 Asset Age Profile'!CR26","v":0},{"$f":"'[2]5.2 Asset Age Profile'!CS26+'[3]5.2 Asset Age Profile'!CS26","v":0},{"$f":"'[2]5.2 Asset Age Profile'!CT26+'[3]5.2 Asset Age Profile'!CT26","v":0},{"$f":"'[2]5.2 Asset Age Profile'!CU26+'[3]5.2 Asset Age Profile'!CU26","v":0},{"$f":"'[2]5.2 Asset Age Profile'!CV26+'[3]5.2 Asset Age Profile'!CV26","v":0},{"$f":"'[2]5.2 Asset Age Profile'!CW26+'[3]5.2 Asset Age Profile'!CW26","v":0},{"$f":"'[2]5.2 Asset Age Profile'!CX26+'[3]5.2 Asset Age Profile'!CX26","v":0},{"$f":"'[2]5.2 Asset Age Profile'!CY26+'[3]5.2 Asset Age Profile'!CY26","v":0},{"$f":"'[2]5.2 Asset Age Profile'!CZ26+'[3]5.2 Asset Age Profile'!CZ26","v":0},{"$f":"'[2]5.2 Asset Age Profile'!DA26+'[3]5.2 Asset Age Profile'!DA26","v":0},{"$f":"'[2]5.2 Asset Age Profile'!DB26+'[3]5.2 Asset Age Profile'!DB26","v":0},{"$f":"'[2]5.2 Asset Age Profile'!DC26+'[3]5.2 Asset Age Profile'!DC26","v":0},{"$f":"'[2]5.2 Asset Age Profile'!DD26+'[3]5.2 Asset Age Profile'!DD26","v":0},{"$f":"'[2]5.2 Asset Age Profile'!DE26+'[3]5.2 Asset Age Profile'!DE26","v":0},{"$f":"'[2]5.2 Asset Age Profile'!DF26+'[3]5.2 Asset Age Profile'!DF26","v":0},{"$f":"'[2]5.2 Asset Age Profile'!DG26+'[3]5.2 Asset Age Profile'!DG26","v":0},{"$f":"'[2]5.2 Asset Age Profile'!DH26+'[3]5.2 Asset Age Profile'!DH26","v":0},{"$f":"'[2]5.2 Asset Age Profile'!DI26+'[3]5.2 Asset Age Profile'!DI26","v":0},{"$f":"'[2]5.2 Asset Age Profile'!DJ26+'[3]5.2 Asset Age Profile'!DJ26","v":0},{"$f":"'[2]5.2 Asset Age Profile'!DK26+'[3]5.2 Asset Age Profile'!DK26","v":0},{"$f":"'[2]5.2 Asset Age Profile'!DL26+'[3]5.2 Asset Age Profile'!DL26","v":0},{"$f":"'[2]5.2 Asset Age Profile'!DM26+'[3]5.2 Asset Age Profile'!DM26","v":0},{"$f":"'[2]5.2 Asset Age Profile'!DN26+'[3]5.2 Asset Age Profile'!DN26","v":0},{"$f":"'[2]5.2 Asset Age Profile'!DO26+'[3]5.2 Asset Age Profile'!DO26","v":0},{"$f":"'[2]5.2 Asset Age Profile'!DP26+'[3]5.2 Asset Age Profile'!DP26","v":0},{"$f":"'[2]5.2 Asset Age Profile'!DQ26+'[3]5.2 Asset Age Profile'!DQ26","v":0},{"$f":"'[2]5.2 Asset Age Profile'!DR26+'[3]5.2 Asset Age Profile'!DR26","v":0},{"$f":"'[2]5.2 Asset Age Profile'!DS26+'[3]5.2 Asset Age Profile'!DS26","v":0},{"$f":"'[2]5.2 Asset Age Profile'!DT26+'[3]5.2 Asset Age Profile'!DT26","v":0},{"$f":"'[2]5.2 Asset Age Profile'!DU26+'[3]5.2 Asset Age Profile'!DU26","v":0},{"$f":"'[2]5.2 Asset Age Profile'!DV26+'[3]5.2 Asset Age Profile'!DV26","v":0},{"$f":"'[2]5.2 Asset Age Profile'!DW26+'[3]5.2 Asset Age Profile'!DW26","v":0},{"$f":"'[2]5.2 Asset Age Profile'!DX26+'[3]5.2 Asset Age Profile'!DX26","v":0},{"$f":"'[2]5.2 Asset Age Profile'!DY26+'[3]5.2 Asset Age Profile'!DY26","v":0},{"$f":"'[2]5.2 Asset Age Profile'!DZ26+'[3]5.2 Asset Age Profile'!DZ26","v":0},{"$f":"'[2]5.2 Asset Age Profile'!EA26+'[3]5.2 Asset Age Profile'!EA26","v":0},{"$f":"'[2]5.2 Asset Age Profile'!EB26+'[3]5.2 Asset Age Profile'!EB26","v":0},{"$f":"'[2]5.2 Asset Age Profile'!EC26+'[3]5.2 Asset Age Profile'!EC26","v":0},{"$f":"'[2]5.2 Asset Age Profile'!ED26+'[3]5.2 Asset Age Profile'!ED26","v":0},{"$f":"'[2]5.2 Asset Age Profile'!EE26+'[3]5.2 Asset Age Profile'!EE26","v":0},{"$f":"'[2]5.2 Asset Age Profile'!EF26+'[3]5.2 Asset Age Profile'!EF26","v":0},{"$f":"'[2]5.2 Asset Age Profile'!EG26+'[3]5.2 Asset Age Profile'!EG26","v":0},{"$f":"'[2]5.2 Asset Age Profile'!EH26+'[3]5.2 Asset Age Profile'!EH26","v":0},{"$f":"'[2]5.2 Asset Age Profile'!EI26+'[3]5.2 Asset Age Profile'!EI26","v":0},{"$f":"'[2]5.2 Asset Age Profile'!EJ26+'[3]5.2 Asset Age Profile'!EJ26","v":0}]
["ED_ASS521_00017",null,"> 22 kV & < = 66 kV; Steel",null,null,null,null,null,null,null,null,null,null,{"$f":"'[2]5.2 Asset Age Profile'!N27+'[3]5.2 Asset Age Profile'!N27","v":60},{"$f":"'[2]5.2 Asset Age Profile'!O27+'[3]5.2 Asset Age Profile'!O27","v":0},{"$f":"'[2]5.2 Asset Age Profile'!P27+'[3]5.2 Asset Age Profile'!P27","v":0},{"$f":"'[2]5.2 Asset Age Profile'!Q27+'[3]5.2 Asset Age Profile'!Q27","v":0},{"$f":"'[2]5.2 Asset Age Profile'!R27+'[3]5.2 Asset Age Profile'!R27","v":0},{"$f":"'[2]5.2 Asset Age Profile'!S27+'[3]5.2 Asset Age Profile'!S27","v":0},{"$f":"'[2]5.2 Asset Age Profile'!T27+'[3]5.2 Asset Age Profile'!T27","v":0},{"$f":"'[2]5.2 Asset Age Profile'!U27+'[3]5.2 Asset Age Profile'!U27","v":0},{"$f":"'[2]5.2 Asset Age Profile'!V27+'[3]5.2 Asset Age Profile'!V27","v":0},{"$f":"'[2]5.2 Asset Age Profile'!W27+'[3]5.2 Asset Age Profile'!W27","v":0},{"$f":"'[2]5.2 Asset Age Profile'!X27+'[3]5.2 Asset Age Profile'!X27","v":0},{"$f":"'[2]5.2 Asset Age Profile'!Y27+'[3]5.2 Asset Age Profile'!Y27","v":10},{"$f":"'[2]5.2 Asset Age Profile'!Z27+'[3]5.2 Asset Age Profile'!Z27","v":0},{"$f":"'[2]5.2 Asset Age Profile'!AA27+'[3]5.2 Asset Age Profile'!AA27","v":0},{"$f":"'[2]5.2 Asset Age Profile'!AB27+'[3]5.2 Asset Age Profile'!AB27","v":0},{"$f":"'[2]5.2 Asset Age Profile'!AC27+'[3]5.2 Asset Age Profile'!AC27","v":0},{"$f":"'[2]5.2 Asset Age Profile'!AD27+'[3]5.2 Asset Age Profile'!AD27","v":0},{"$f":"'[2]5.2 Asset Age Profile'!AE27+'[3]5.2 Asset Age Profile'!AE27","v":0},{"$f":"'[2]5.2 Asset Age Profile'!AF27+'[3]5.2 Asset Age Profile'!AF27","v":0},{"$f":"'[2]5.2 Asset Age Profile'!AG27+'[3]5.2 Asset Age Profile'!AG27","v":0},{"$f":"'[2]5.2 Asset Age Profile'!AH27+'[3]5.2 Asset Age Profile'!AH27","v":0},{"$f":"'[2]5.2 Asset Age Profile'!AI27+'[3]5.2 Asset Age Profile'!AI27","v":0},{"$f":"'[2]5.2 Asset Age Profile'!AJ27+'[3]5.2 Asset Age Profile'!AJ27","v":0},{"$f":"'[2]5.2 Asset Age Profile'!AK27+'[3]5.2 Asset Age Profile'!AK27","v":0},{"$f":"'[2]5.2 Asset Age Profile'!AL27+'[3]5.2 Asset Age Profile'!AL27","v":0},{"$f":"'[2]5.2 Asset Age Profile'!AM27+'[3]5.2 Asset Age Profile'!AM27","v":0},{"$f":"'[2]5.2 Asset Age Profile'!AN27+'[3]5.2 Asset Age Profile'!AN27","v":0},{"$f":"'[2]5.2 Asset Age Profile'!AO27+'[3]5.2 Asset Age Profile'!AO27","v":0},{"$f":"'[2]5.2 Asset Age Profile'!AP27+'[3]5.2 Asset Age Profile'!AP27","v":0},{"$f":"'[2]5.2 Asset Age Profile'!AQ27+'[3]5.2 Asset Age Profile'!AQ27","v":0},{"$f":"'[2]5.2 Asset Age Profile'!AR27+'[3]5.2 Asset Age Profile'!AR27","v":0},{"$f":"'[2]5.2 Asset Age Profile'!AS27+'[3]5.2 Asset Age Profile'!AS27","v":0},{"$f":"'[2]5.2 Asset Age Profile'!AT27+'[3]5.2 Asset Age Profile'!AT27","v":0},{"$f":"'[2]5.2 Asset Age Profile'!AU27+'[3]5.2 Asset Age Profile'!AU27","v":0},{"$f":"'[2]5.2 Asset Age Profile'!AV27+'[3]5.2 Asset Age Profile'!AV27","v":0},{"$f":"'[2]5.2 Asset Age Profile'!AW27+'[3]5.2 Asset Age Profile'!AW27","v":0},{"$f":"'[2]5.2 Asset Age Profile'!AX27+'[3]5.2 Asset Age Profile'!AX27","v":0},{"$f":"'[2]5.2 Asset Age Profile'!AY27+'[3]5.2 Asset Age Profile'!AY27","v":0},{"$f":"'[2]5.2 Asset Age Profile'!AZ27+'[3]5.2 Asset Age Profile'!AZ27","v":0},{"$f":"'[2]5.2 Asset Age Profile'!BA27+'[3]5.2 Asset Age Profile'!BA27","v":0},{"$f":"'[2]5.2 Asset Age Profile'!BB27+'[3]5.2 Asset Age Profile'!BB27","v":0},{"$f":"'[2]5.2 Asset Age Profile'!BC27+'[3]5.2 Asset Age Profile'!BC27","v":0},{"$f":"'[2]5.2 Asset Age Profile'!BD27+'[3]5.2 Asset Age Profile'!BD27","v":0},{"$f":"'[2]5.2 Asset Age Profile'!BE27+'[3]5.2 Asset Age Profile'!BE27","v":0},{"$f":"'[2]5.2 Asset Age Profile'!BF27+'[3]5.2 Asset Age Profile'!BF27","v":0},{"$f":"'[2]5.2 Asset Age Profile'!BG27+'[3]5.2 Asset Age Profile'!BG27","v":0},{"$f":"'[2]5.2 Asset Age Profile'!BH27+'[3]5.2 Asset Age Profile'!BH27","v":0},{"$f":"'[2]5.2 Asset Age Profile'!BI27+'[3]5.2 Asset Age Profile'!BI27","v":0},{"$f":"'[2]5.2 Asset Age Profile'!BJ27+'[3]5.2 Asset Age Profile'!BJ27","v":0},{"$f":"'[2]5.2 Asset Age Profile'!BK27+'[3]5.2 Asset Age Profile'!BK27","v":0},{"$f":"'[2]5.2 Asset Age Profile'!BL27+'[3]5.2 Asset Age Profile'!BL27","v":0},{"$f":"'[2]5.2 Asset Age Profile'!BM27+'[3]5.2 Asset Age Profile'!BM27","v":0},{"$f":"'[2]5.2 Asset Age Profile'!BN27+'[3]5.2 Asset Age Profile'!BN27","v":0},{"$f":"'[2]5.2 Asset Age Profile'!BO27+'[3]5.2 Asset Age Profile'!BO27","v":0},{"$f":"'[2]5.2 Asset Age Profile'!BP27+'[3]5.2 Asset Age Profile'!BP27","v":0},{"$f":"'[2]5.2 Asset Age Profile'!BQ27+'[3]5.2 Asset Age Profile'!BQ27","v":0},{"$f":"'[2]5.2 Asset Age Profile'!BR27+'[3]5.2 Asset Age Profile'!BR27","v":0},{"$f":"'[2]5.2 Asset Age Profile'!BS27+'[3]5.2 Asset Age Profile'!BS27","v":0},{"$f":"'[2]5.2 Asset Age Profile'!BT27+'[3]5.2 Asset Age Profile'!BT27","v":0},{"$f":"'[2]5.2 Asset Age Profile'!BU27+'[3]5.2 Asset Age Profile'!BU27","v":0},{"$f":"'[2]5.2 Asset Age Profile'!BV27+'[3]5.2 Asset Age Profile'!BV27","v":0},{"$f":"'[2]5.2 Asset Age Profile'!BW27+'[3]5.2 Asset Age Profile'!BW27","v":0},{"$f":"'[2]5.2 Asset Age Profile'!BX27+'[3]5.2 Asset Age Profile'!BX27","v":0},{"$f":"'[2]5.2 Asset Age Profile'!BY27+'[3]5.2 Asset Age Profile'!BY27","v":0},{"$f":"'[2]5.2 Asset Age Profile'!BZ27+'[3]5.2 Asset Age Profile'!BZ27","v":0},{"$f":"'[2]5.2 Asset Age Profile'!CA27+'[3]5.2 Asset Age Profile'!CA27","v":0},{"$f":"'[2]5.2 Asset Age Profile'!CB27+'[3]5.2 Asset Age Profile'!CB27","v":0},{"$f":"'[2]5.2 Asset Age Profile'!CC27+'[3]5.2 Asset Age Profile'!CC27","v":0},{"$f":"'[2]5.2 Asset Age Profile'!CD27+'[3]5.2 Asset Age Profile'!CD27","v":0},{"$f":"'[2]5.2 Asset Age Profile'!CE27+'[3]5.2 Asset Age Profile'!CE27","v":0},{"$f":"'[2]5.2 Asset Age Profile'!CF27+'[3]5.2 Asset Age Profile'!CF27","v":0},{"$f":"'[2]5.2 Asset Age Profile'!CG27+'[3]5.2 Asset Age Profile'!CG27","v":0},{"$f":"'[2]5.2 Asset Age Profile'!CH27+'[3]5.2 Asset Age Profile'!CH27","v":0},{"$f":"'[2]5.2 Asset Age Profile'!CI27+'[3]5.2 Asset Age Profile'!CI27","v":0},{"$f":"'[2]5.2 Asset Age Profile'!CJ27+'[3]5.2 Asset Age Profile'!CJ27","v":0},{"$f":"'[2]5.2 Asset Age Profile'!CK27+'[3]5.2 Asset Age Profile'!CK27","v":0},{"$f":"'[2]5.2 Asset Age Profile'!CL27+'[3]5.2 Asset Age Profile'!CL27","v":0},{"$f":"'[2]5.2 Asset Age Profile'!CM27+'[3]5.2 Asset Age Profile'!CM27","v":0},{"$f":"'[2]5.2 Asset Age Profile'!CN27+'[3]5.2 Asset Age Profile'!CN27","v":0},{"$f":"'[2]5.2 Asset Age Profile'!CO27+'[3]5.2 Asset Age Profile'!CO27","v":0},{"$f":"'[2]5.2 Asset Age Profile'!CP27+'[3]5.2 Asset Age Profile'!CP27","v":0},{"$f":"'[2]5.2 Asset Age Profile'!CQ27+'[3]5.2 Asset Age Profile'!CQ27","v":0},{"$f":"'[2]5.2 Asset Age Profile'!CR27+'[3]5.2 Asset Age Profile'!CR27","v":0},{"$f":"'[2]5.2 Asset Age Profile'!CS27+'[3]5.2 Asset Age Profile'!CS27","v":0},{"$f":"'[2]5.2 Asset Age Profile'!CT27+'[3]5.2 Asset Age Profile'!CT27","v":0},{"$f":"'[2]5.2 Asset Age Profile'!CU27+'[3]5.2 Asset Age Profile'!CU27","v":0},{"$f":"'[2]5.2 Asset Age Profile'!CV27+'[3]5.2 Asset Age Profile'!CV27","v":0},{"$f":"'[2]5.2 Asset Age Profile'!CW27+'[3]5.2 Asset Age Profile'!CW27","v":0},{"$f":"'[2]5.2 Asset Age Profile'!CX27+'[3]5.2 Asset Age Profile'!CX27","v":0},{"$f":"'[2]5.2 Asset Age Profile'!CY27+'[3]5.2 Asset Age Profile'!CY27","v":0},{"$f":"'[2]5.2 Asset Age Profile'!CZ27+'[3]5.2 Asset Age Profile'!CZ27","v":0},{"$f":"'[2]5.2 Asset Age Profile'!DA27+'[3]5.2 Asset Age Profile'!DA27","v":0},{"$f":"'[2]5.2 Asset Age Profile'!DB27+'[3]5.2 Asset Age Profile'!DB27","v":0},{"$f":"'[2]5.2 Asset Age Profile'!DC27+'[3]5.2 Asset Age Profile'!DC27","v":0},{"$f":"'[2]5.2 Asset Age Profile'!DD27+'[3]5.2 Asset Age Profile'!DD27","v":0},{"$f":"'[2]5.2 Asset Age Profile'!DE27+'[3]5.2 Asset Age Profile'!DE27","v":0},{"$f":"'[2]5.2 Asset Age Profile'!DF27+'[3]5.2 Asset Age Profile'!DF27","v":0},{"$f":"'[2]5.2 Asset Age Profile'!DG27+'[3]5.2 Asset Age Profile'!DG27","v":0},{"$f":"'[2]5.2 Asset Age Profile'!DH27+'[3]5.2 Asset Age Profile'!DH27","v":0},{"$f":"'[2]5.2 Asset Age Profile'!DI27+'[3]5.2 Asset Age Profile'!DI27","v":0},{"$f":"'[2]5.2 Asset Age Profile'!DJ27+'[3]5.2 Asset Age Profile'!DJ27","v":0},{"$f":"'[2]5.2 Asset Age Profile'!DK27+'[3]5.2 Asset Age Profile'!DK27","v":0},{"$f":"'[2]5.2 Asset Age Profile'!DL27+'[3]5.2 Asset Age Profile'!DL27","v":0},{"$f":"'[2]5.2 Asset Age Profile'!DM27+'[3]5.2 Asset Age Profile'!DM27","v":0},{"$f":"'[2]5.2 Asset Age Profile'!DN27+'[3]5.2 Asset Age Profile'!DN27","v":0},{"$f":"'[2]5.2 Asset Age Profile'!DO27+'[3]5.2 Asset Age Profile'!DO27","v":0},{"$f":"'[2]5.2 Asset Age Profile'!DP27+'[3]5.2 Asset Age Profile'!DP27","v":0},{"$f":"'[2]5.2 Asset Age Profile'!DQ27+'[3]5.2 Asset Age Profile'!DQ27","v":0},{"$f":"'[2]5.2 Asset Age Profile'!DR27+'[3]5.2 Asset Age Profile'!DR27","v":0},{"$f":"'[2]5.2 Asset Age Profile'!DS27+'[3]5.2 Asset Age Profile'!DS27","v":0},{"$f":"'[2]5.2 Asset Age Profile'!DT27+'[3]5.2 Asset Age Profile'!DT27","v":0},{"$f":"'[2]5.2 Asset Age Profile'!DU27+'[3]5.2 Asset Age Profile'!DU27","v":0},{"$f":"'[2]5.2 Asset Age Profile'!DV27+'[3]5.2 Asset Age Profile'!DV27","v":0},{"$f":"'[2]5.2 Asset Age Profile'!DW27+'[3]5.2 Asset Age Profile'!DW27","v":0},{"$f":"'[2]5.2 Asset Age Profile'!DX27+'[3]5.2 Asset Age Profile'!DX27","v":0},{"$f":"'[2]5.2 Asset Age Profile'!DY27+'[3]5.2 Asset Age Profile'!DY27","v":0},{"$f":"'[2]5.2 Asset Age Profile'!DZ27+'[3]5.2 Asset Age Profile'!DZ27","v":0},{"$f":"'[2]5.2 Asset Age Profile'!EA27+'[3]5.2 Asset Age Profile'!EA27","v":0},{"$f":"'[2]5.2 Asset Age Profile'!EB27+'[3]5.2 Asset Age Profile'!EB27","v":0},{"$f":"'[2]5.2 Asset Age Profile'!EC27+'[3]5.2 Asset Age Profile'!EC27","v":0},{"$f":"'[2]5.2 Asset Age Profile'!ED27+'[3]5.2 Asset Age Profile'!ED27","v":0},{"$f":"'[2]5.2 Asset Age Profile'!EE27+'[3]5.2 Asset Age Profile'!EE27","v":0},{"$f":"'[2]5.2 Asset Age Profile'!EF27+'[3]5.2 Asset Age Profile'!EF27","v":0},{"$f":"'[2]5.2 Asset Age Profile'!EG27+'[3]5.2 Asset Age Profile'!EG27","v":0},{"$f":"'[2]5.2 Asset Age Profile'!EH27+'[3]5.2 Asset Age Profile'!EH27","v":0},{"$f":"'[2]5.2 Asset Age Profile'!EI27+'[3]5.2 Asset Age Profile'!EI27","v":0},{"$f":"'[2]5.2 Asset Age Profile'!EJ27+'[3]5.2 Asset Age Profile'!EJ27","v":0}]
["ED_ASS521_00018",null,"> 66 kV & < = 132 kV; Steel",null,null,null,null,null,null,null,null,null,null,{"$f":"'[2]5.2 Asset Age Profile'!N28+'[3]5.2 Asset Age Profile'!N28","v":60},{"$f":"'[2]5.2 Asset Age Profile'!O28+'[3]5.2 Asset Age Profile'!O28","v":0},{"$f":"'[2]5.2 Asset Age Profile'!P28+'[3]5.2 Asset Age Profile'!P28","v":0},{"$f":"'[2]5.2 Asset Age Profile'!Q28+'[3]5.2 Asset Age Profile'!Q28","v":0},{"$f":"'[2]5.2 Asset Age Profile'!R28+'[3]5.2 Asset Age Profile'!R28","v":0},{"$f":"'[2]5.2 Asset Age Profile'!S28+'[3]5.2 Asset Age Profile'!S28","v":0},{"$f":"'[2]5.2 Asset Age Profile'!T28+'[3]5.2 Asset Age Profile'!T28","v":0},{"$f":"'[2]5.2 Asset Age Profile'!U28+'[3]5.2 Asset Age Profile'!U28","v":0},{"$f":"'[2]5.2 Asset Age Profile'!V28+'[3]5.2 Asset Age Profile'!V28","v":0},{"$f":"'[2]5.2 Asset Age Profile'!W28+'[3]5.2 Asset Age Profile'!W28","v":0},{"$f":"'[2]5.2 Asset Age Profile'!X28+'[3]5.2 Asset Age Profile'!X28","v":0},{"$f":"'[2]5.2 Asset Age Profile'!Y28+'[3]5.2 Asset Age Profile'!Y28","v":10},{"$f":"'[2]5.2 Asset Age Profile'!Z28+'[3]5.2 Asset Age Profile'!Z28","v":0},{"$f":"'[2]5.2 Asset Age Profile'!AA28+'[3]5.2 Asset Age Profile'!AA28","v":0},{"$f":"'[2]5.2 Asset Age Profile'!AB28+'[3]5.2 Asset Age Profile'!AB28","v":0},{"$f":"'[2]5.2 Asset Age Profile'!AC28+'[3]5.2 Asset Age Profile'!AC28","v":0},{"$f":"'[2]5.2 Asset Age Profile'!AD28+'[3]5.2 Asset Age Profile'!AD28","v":0},{"$f":"'[2]5.2 Asset Age Profile'!AE28+'[3]5.2 Asset Age Profile'!AE28","v":0},{"$f":"'[2]5.2 Asset Age Profile'!AF28+'[3]5.2 Asset Age Profile'!AF28","v":0},{"$f":"'[2]5.2 Asset Age Profile'!AG28+'[3]5.2 Asset Age Profile'!AG28","v":0},{"$f":"'[2]5.2 Asset Age Profile'!AH28+'[3]5.2 Asset Age Profile'!AH28","v":0},{"$f":"'[2]5.2 Asset Age Profile'!AI28+'[3]5.2 Asset Age Profile'!AI28","v":0},{"$f":"'[2]5.2 Asset Age Profile'!AJ28+'[3]5.2 Asset Age Profile'!AJ28","v":0},{"$f":"'[2]5.2 Asset Age Profile'!AK28+'[3]5.2 Asset Age Profile'!AK28","v":0},{"$f":"'[2]5.2 Asset Age Profile'!AL28+'[3]5.2 Asset Age Profile'!AL28","v":0},{"$f":"'[2]5.2 Asset Age Profile'!AM28+'[3]5.2 Asset Age Profile'!AM28","v":0},{"$f":"'[2]5.2 Asset Age Profile'!AN28+'[3]5.2 Asset Age Profile'!AN28","v":0},{"$f":"'[2]5.2 Asset Age Profile'!AO28+'[3]5.2 Asset Age Profile'!AO28","v":0},{"$f":"'[2]5.2 Asset Age Profile'!AP28+'[3]5.2 Asset Age Profile'!AP28","v":0},{"$f":"'[2]5.2 Asset Age Profile'!AQ28+'[3]5.2 Asset Age Profile'!AQ28","v":0},{"$f":"'[2]5.2 Asset Age Profile'!AR28+'[3]5.2 Asset Age Profile'!AR28","v":0},{"$f":"'[2]5.2 Asset Age Profile'!AS28+'[3]5.2 Asset Age Profile'!AS28","v":0},{"$f":"'[2]5.2 Asset Age Profile'!AT28+'[3]5.2 Asset Age Profile'!AT28","v":0},{"$f":"'[2]5.2 Asset Age Profile'!AU28+'[3]5.2 Asset Age Profile'!AU28","v":0},{"$f":"'[2]5.2 Asset Age Profile'!AV28+'[3]5.2 Asset Age Profile'!AV28","v":0},{"$f":"'[2]5.2 Asset Age Profile'!AW28+'[3]5.2 Asset Age Profile'!AW28","v":0},{"$f":"'[2]5.2 Asset Age Profile'!AX28+'[3]5.2 Asset Age Profile'!AX28","v":0},{"$f":"'[2]5.2 Asset Age Profile'!AY28+'[3]5.2 Asset Age Profile'!AY28","v":0},{"$f":"'[2]5.2 Asset Age Profile'!AZ28+'[3]5.2 Asset Age Profile'!AZ28","v":0},{"$f":"'[2]5.2 Asset Age Profile'!BA28+'[3]5.2 Asset Age Profile'!BA28","v":1},{"$f":"'[2]5.2 Asset Age Profile'!BB28+'[3]5.2 Asset Age Profile'!BB28","v":0},{"$f":"'[2]5.2 Asset Age Profile'!BC28+'[3]5.2 Asset Age Profile'!BC28","v":0},{"$f":"'[2]5.2 Asset Age Profile'!BD28+'[3]5.2 Asset Age Profile'!BD28","v":0},{"$f":"'[2]5.2 Asset Age Profile'!BE28+'[3]5.2 Asset Age Profile'!BE28","v":56},{"$f":"'[2]5.2 Asset Age Profile'!BF28+'[3]5.2 Asset Age Profile'!BF28","v":0},{"$f":"'[2]5.2 Asset Age Profile'!BG28+'[3]5.2 Asset Age Profile'!BG28","v":0},{"$f":"'[2]5.2 Asset Age Profile'!BH28+'[3]5.2 Asset Age Profile'!BH28","v":0},{"$f":"'[2]5.2 Asset Age Profile'!BI28+'[3]5.2 Asset Age Profile'!BI28","v":0},{"$f":"'[2]5.2 Asset Age Profile'!BJ28+'[3]5.2 Asset Age Profile'!BJ28","v":0},{"$f":"'[2]5.2 Asset Age Profile'!BK28+'[3]5.2 Asset Age Profile'!BK28","v":0},{"$f":"'[2]5.2 Asset Age Profile'!BL28+'[3]5.2 Asset Age Profile'!BL28","v":0},{"$f":"'[2]5.2 Asset Age Profile'!BM28+'[3]5.2 Asset Age Profile'!BM28","v":0},{"$f":"'[2]5.2 Asset Age Profile'!BN28+'[3]5.2 Asset Age Profile'!BN28","v":0},{"$f":"'[2]5.2 Asset Age Profile'!BO28+'[3]5.2 Asset Age Profile'!BO28","v":0},{"$f":"'[2]5.2 Asset Age Profile'!BP28+'[3]5.2 Asset Age Profile'!BP28","v":0},{"$f":"'[2]5.2 Asset Age Profile'!BQ28+'[3]5.2 Asset Age Profile'!BQ28","v":0},{"$f":"'[2]5.2 Asset Age Profile'!BR28+'[3]5.2 Asset Age Profile'!BR28","v":0},{"$f":"'[2]5.2 Asset Age Profile'!BS28+'[3]5.2 Asset Age Profile'!BS28","v":18},{"$f":"'[2]5.2 Asset Age Profile'!BT28+'[3]5.2 Asset Age Profile'!BT28","v":0},{"$f":"'[2]5.2 Asset Age Profile'!BU28+'[3]5.2 Asset Age Profile'!BU28","v":0},{"$f":"'[2]5.2 Asset Age Profile'!BV28+'[3]5.2 Asset Age Profile'!BV28","v":0},{"$f":"'[2]5.2 Asset Age Profile'!BW28+'[3]5.2 Asset Age Profile'!BW28","v":0},{"$f":"'[2]5.2 Asset Age Profile'!BX28+'[3]5.2 Asset Age Profile'!BX28","v":0},{"$f":"'[2]5.2 Asset Age Profile'!BY28+'[3]5.2 Asset Age Profile'!BY28","v":0},{"$f":"'[2]5.2 Asset Age Profile'!BZ28+'[3]5.2 Asset Age Profile'!BZ28","v":0},{"$f":"'[2]5.2 Asset Age Profile'!CA28+'[3]5.2 Asset Age Profile'!CA28","v":0},{"$f":"'[2]5.2 Asset Age Profile'!CB28+'[3]5.2 Asset Age Profile'!CB28","v":0},{"$f":"'[2]5.2 Asset Age Profile'!CC28+'[3]5.2 Asset Age Profile'!CC28","v":0},{"$f":"'[2]5.2 Asset Age Profile'!CD28+'[3]5.2 Asset Age Profile'!CD28","v":0},{"$f":"'[2]5.2 Asset Age Profile'!CE28+'[3]5.2 Asset Age Profile'!CE28","v":126},{"$f":"'[2]5.2 Asset Age Profile'!CF28+'[3]5.2 Asset Age Profile'!CF28","v":0},{"$f":"'[2]5.2 Asset Age Profile'!CG28+'[3]5.2 Asset Age Profile'!CG28","v":0},{"$f":"'[2]5.2 Asset Age Profile'!CH28+'[3]5.2 Asset Age Profile'!CH28","v":0},{"$f":"'[2]5.2 Asset Age Profile'!CI28+'[3]5.2 Asset Age Profile'!CI28","v":0},{"$f":"'[2]5.2 Asset Age Profile'!CJ28+'[3]5.2 Asset Age Profile'!CJ28","v":0},{"$f":"'[2]5.2 Asset Age Profile'!CK28+'[3]5.2 Asset Age Profile'!CK28","v":0},{"$f":"'[2]5.2 Asset Age Profile'!CL28+'[3]5.2 Asset Age Profile'!CL28","v":0},{"$f":"'[2]5.2 Asset Age Profile'!CM28+'[3]5.2 Asset Age Profile'!CM28","v":0},{"$f":"'[2]5.2 Asset Age Profile'!CN28+'[3]5.2 Asset Age Profile'!CN28","v":0},{"$f":"'[2]5.2 Asset Age Profile'!CO28+'[3]5.2 Asset Age Profile'!CO28","v":0},{"$f":"'[2]5.2 Asset Age Profile'!CP28+'[3]5.2 Asset Age Profile'!CP28","v":0},{"$f":"'[2]5.2 Asset Age Profile'!CQ28+'[3]5.2 Asset Age Profile'!CQ28","v":0},{"$f":"'[2]5.2 Asset Age Profile'!CR28+'[3]5.2 Asset Age Profile'!CR28","v":0},{"$f":"'[2]5.2 Asset Age Profile'!CS28+'[3]5.2 Asset Age Profile'!CS28","v":0},{"$f":"'[2]5.2 Asset Age Profile'!CT28+'[3]5.2 Asset Age Profile'!CT28","v":0},{"$f":"'[2]5.2 Asset Age Profile'!CU28+'[3]5.2 Asset Age Profile'!CU28","v":0},{"$f":"'[2]5.2 Asset Age Profile'!CV28+'[3]5.2 Asset Age Profile'!CV28","v":0},{"$f":"'[2]5.2 Asset Age Profile'!CW28+'[3]5.2 Asset Age Profile'!CW28","v":0},{"$f":"'[2]5.2 Asset Age Profile'!CX28+'[3]5.2 Asset Age Profile'!CX28","v":0},{"$f":"'[2]5.2 Asset Age Profile'!CY28+'[3]5.2 Asset Age Profile'!CY28","v":0},{"$f":"'[2]5.2 Asset Age Profile'!CZ28+'[3]5.2 Asset Age Profile'!CZ28","v":0},{"$f":"'[2]5.2 Asset Age Profile'!DA28+'[3]5.2 Asset Age Profile'!DA28","v":0},{"$f":"'[2]5.2 Asset Age Profile'!DB28+'[3]5.2 Asset Age Profile'!DB28","v":0},{"$f":"'[2]5.2 Asset Age Profile'!DC28+'[3]5.2 Asset Age Profile'!DC28","v":0},{"$f":"'[2]5.2 Asset Age Profile'!DD28+'[3]5.2 Asset Age Profile'!DD28","v":0},{"$f":"'[2]5.2 Asset Age Profile'!DE28+'[3]5.2 Asset Age Profile'!DE28","v":0},{"$f":"'[2]5.2 Asset Age Profile'!DF28+'[3]5.2 Asset Age Profile'!DF28","v":0},{"$f":"'[2]5.2 Asset Age Profile'!DG28+'[3]5.2 Asset Age Profile'!DG28","v":0},{"$f":"'[2]5.2 Asset Age Profile'!DH28+'[3]5.2 Asset Age Profile'!DH28","v":0},{"$f":"'[2]5.2 Asset Age Profile'!DI28+'[3]5.2 Asset Age Profile'!DI28","v":0},{"$f":"'[2]5.2 Asset Age Profile'!DJ28+'[3]5.2 Asset Age Profile'!DJ28","v":0},{"$f":"'[2]5.2 Asset Age Profile'!DK28+'[3]5.2 Asset Age Profile'!DK28","v":0},{"$f":"'[2]5.2 Asset Age Profile'!DL28+'[3]5.2 Asset Age Profile'!DL28","v":0},{"$f":"'[2]5.2 Asset Age Profile'!DM28+'[3]5.2 Asset Age Profile'!DM28","v":0},{"$f":"'[2]5.2 Asset Age Profile'!DN28+'[3]5.2 Asset Age Profile'!DN28","v":0},{"$f":"'[2]5.2 Asset Age Profile'!DO28+'[3]5.2 Asset Age Profile'!DO28","v":0},{"$f":"'[2]5.2 Asset Age Profile'!DP28+'[3]5.2 Asset Age Profile'!DP28","v":0},{"$f":"'[2]5.2 Asset Age Profile'!DQ28+'[3]5.2 Asset Age Profile'!DQ28","v":0},{"$f":"'[2]5.2 Asset Age Profile'!DR28+'[3]5.2 Asset Age Profile'!DR28","v":0},{"$f":"'[2]5.2 Asset Age Profile'!DS28+'[3]5.2 Asset Age Profile'!DS28","v":0},{"$f":"'[2]5.2 Asset Age Profile'!DT28+'[3]5.2 Asset Age Profile'!DT28","v":0},{"$f":"'[2]5.2 Asset Age Profile'!DU28+'[3]5.2 Asset Age Profile'!DU28","v":0},{"$f":"'[2]5.2 Asset Age Profile'!DV28+'[3]5.2 Asset Age Profile'!DV28","v":0},{"$f":"'[2]5.2 Asset Age Profile'!DW28+'[3]5.2 Asset Age Profile'!DW28","v":0},{"$f":"'[2]5.2 Asset Age Profile'!DX28+'[3]5.2 Asset Age Profile'!DX28","v":0},{"$f":"'[2]5.2 Asset Age Profile'!DY28+'[3]5.2 Asset Age Profile'!DY28","v":0},{"$f":"'[2]5.2 Asset Age Profile'!DZ28+'[3]5.2 Asset Age Profile'!DZ28","v":0},{"$f":"'[2]5.2 Asset Age Profile'!EA28+'[3]5.2 Asset Age Profile'!EA28","v":0},{"$f":"'[2]5.2 Asset Age Profile'!EB28+'[3]5.2 Asset Age Profile'!EB28","v":0},{"$f":"'[2]5.2 Asset Age Profile'!EC28+'[3]5.2 Asset Age Profile'!EC28","v":0},{"$f":"'[2]5.2 Asset Age Profile'!ED28+'[3]5.2 Asset Age Profile'!ED28","v":0},{"$f":"'[2]5.2 Asset Age Profile'!EE28+'[3]5.2 Asset Age Profile'!EE28","v":0},{"$f":"'[2]5.2 Asset Age Profile'!EF28+'[3]5.2 Asset Age Profile'!EF28","v":0},{"$f":"'[2]5.2 Asset Age Profile'!EG28+'[3]5.2 Asset Age Profile'!EG28","v":0},{"$f":"'[2]5.2 Asset Age Profile'!EH28+'[3]5.2 Asset Age Profile'!EH28","v":0},{"$f":"'[2]5.2 Asset Age Profile'!EI28+'[3]5.2 Asset Age Profile'!EI28","v":0},{"$f":"'[2]5.2 Asset Age Profile'!EJ28+'[3]5.2 Asset Age Profile'!EJ28","v":0}]
["ED_ASS521_00019",null,"> 132 kV; Steel",null,null,null,null,null,null,null,null,null,null,{"$f":"'[2]5.2 Asset Age Profile'!N29+'[3]5.2 Asset Age Profile'!N29","v":60},{"$f":"'[2]5.2 Asset Age Profile'!O29+'[3]5.2 Asset Age Profile'!O29","v":0},{"$f":"'[2]5.2 Asset Age Profile'!P29+'[3]5.2 Asset Age Profile'!P29","v":0},{"$f":"'[2]5.2 Asset Age Profile'!Q29+'[3]5.2 Asset Age Profile'!Q29","v":0},{"$f":"'[2]5.2 Asset Age Profile'!R29+'[3]5.2 Asset Age Profile'!R29","v":0},{"$f":"'[2]5.2 Asset Age Profile'!S29+'[3]5.2 Asset Age Profile'!S29","v":0},{"$f":"'[2]5.2 Asset Age Profile'!T29+'[3]5.2 Asset Age Profile'!T29","v":0},{"$f":"'[2]5.2 Asset Age Profile'!U29+'[3]5.2 Asset Age Profile'!U29","v":0},{"$f":"'[2]5.2 Asset Age Profile'!V29+'[3]5.2 Asset Age Profile'!V29","v":0},{"$f":"'[2]5.2 Asset Age Profile'!W29+'[3]5.2 Asset Age Profile'!W29","v":0},{"$f":"'[2]5.2 Asset Age Profile'!X29+'[3]5.2 Asset Age Profile'!X29","v":0},{"$f":"'[2]5.2 Asset Age Profile'!Y29+'[3]5.2 Asset Age Profile'!Y29","v":10},{"$f":"'[2]5.2 Asset Age Profile'!Z29+'[3]5.2 Asset Age Profile'!Z29","v":0},{"$f":"'[2]5.2 Asset Age Profile'!AA29+'[3]5.2 Asset Age Profile'!AA29","v":0},{"$f":"'[2]5.2 Asset Age Profile'!AB29+'[3]5.2 Asset Age Profile'!AB29","v":0},{"$f":"'[2]5.2 Asset Age Profile'!AC29+'[3]5.2 Asset Age Profile'!AC29","v":0},{"$f":"'[2]5.2 Asset Age Profile'!AD29+'[3]5.2 Asset Age Profile'!AD29","v":0},{"$f":"'[2]5.2 Asset Age Profile'!AE29+'[3]5.2 Asset Age Profile'!AE29","v":0},{"$f":"'[2]5.2 Asset Age Profile'!AF29+'[3]5.2 Asset Age Profile'!AF29","v":0},{"$f":"'[2]5.2 Asset Age Profile'!AG29+'[3]5.2 Asset Age Profile'!AG29","v":0},{"$f":"'[2]5.2 Asset Age Profile'!AH29+'[3]5.2 Asset Age Profile'!AH29","v":0},{"$f":"'[2]5.2 Asset Age Profile'!AI29+'[3]5.2 Asset Age Profile'!AI29","v":0},{"$f":"'[2]5.2 Asset Age Profile'!AJ29+'[3]5.2 Asset Age Profile'!AJ29","v":0},{"$f":"'[2]5.2 Asset Age Profile'!AK29+'[3]5.2 Asset Age Profile'!AK29","v":0},{"$f":"'[2]5.2 Asset Age Profile'!AL29+'[3]5.2 Asset Age Profile'!AL29","v":0},{"$f":"'[2]5.2 Asset Age Profile'!AM29+'[3]5.2 Asset Age Profile'!AM29","v":0},{"$f":"'[2]5.2 Asset Age Profile'!AN29+'[3]5.2 Asset Age Profile'!AN29","v":0},{"$f":"'[2]5.2 Asset Age Profile'!AO29+'[3]5.2 Asset Age Profile'!AO29","v":0},{"$f":"'[2]5.2 Asset Age Profile'!AP29+'[3]5.2 Asset Age Profile'!AP29","v":0},{"$f":"'[2]5.2 Asset Age Profile'!AQ29+'[3]5.2 Asset Age Profile'!AQ29","v":0},{"$f":"'[2]5.2 Asset Age Profile'!AR29+'[3]5.2 Asset Age Profile'!AR29","v":0},{"$f":"'[2]5.2 Asset Age Profile'!AS29+'[3]5.2 Asset Age Profile'!AS29","v":0},{"$f":"'[2]5.2 Asset Age Profile'!AT29+'[3]5.2 Asset Age Profile'!AT29","v":0},{"$f":"'[2]5.2 Asset Age Profile'!AU29+'[3]5.2 Asset Age Profile'!AU29","v":0},{"$f":"'[2]5.2 Asset Age Profile'!AV29+'[3]5.2 Asset Age Profile'!AV29","v":0},{"$f":"'[2]5.2 Asset Age Profile'!AW29+'[3]5.2 Asset Age Profile'!AW29","v":0},{"$f":"'[2]5.2 Asset Age Profile'!AX29+'[3]5.2 Asset Age Profile'!AX29","v":0},{"$f":"'[2]5.2 Asset Age Profile'!AY29+'[3]5.2 Asset Age Profile'!AY29","v":0},{"$f":"'[2]5.2 Asset Age Profile'!AZ29+'[3]5.2 Asset Age Profile'!AZ29","v":0},{"$f":"'[2]5.2 Asset Age Profile'!BA29+'[3]5.2 Asset Age Profile'!BA29","v":0},{"$f":"'[2]5.2 Asset Age Profile'!BB29+'[3]5.2 Asset Age Profile'!BB29","v":0},{"$f":"'[2]5.2 Asset Age Profile'!BC29+'[3]5.2 Asset Age Profile'!BC29","v":0},{"$f":"'[2]5.2 Asset Age Profile'!BD29+'[3]5.2 Asset Age Profile'!BD29","v":0},{"$f":"'[2]5.2 Asset Age Profile'!BE29+'[3]5.2 Asset Age Profile'!BE29","v":0},{"$f":"'[2]5.2 Asset Age Profile'!BF29+'[3]5.2 Asset Age Profile'!BF29","v":0},{"$f":"'[2]5.2 Asset Age Profile'!BG29+'[3]5.2 Asset Age Profile'!BG29","v":0},{"$f":"'[2]5.2 Asset Age Profile'!BH29+'[3]5.2 Asset Age Profile'!BH29","v":0},{"$f":"'[2]5.2 Asset Age Profile'!BI29+'[3]5.2 Asset Age Profile'!BI29","v":0},{"$f":"'[2]5.2 Asset Age Profile'!BJ29+'[3]5.2 Asset Age Profile'!BJ29","v":0},{"$f":"'[2]5.2 Asset Age Profile'!BK29+'[3]5.2 Asset Age Profile'!BK29","v":0},{"$f":"'[2]5.2 Asset Age Profile'!BL29+'[3]5.2 Asset Age Profile'!BL29","v":0},{"$f":"'[2]5.2 Asset Age Profile'!BM29+'[3]5.2 Asset Age Profile'!BM29","v":0},{"$f":"'[2]5.2 Asset Age Profile'!BN29+'[3]5.2 Asset Age Profile'!BN29","v":0},{"$f":"'[2]5.2 Asset Age Profile'!BO29+'[3]5.2 Asset Age Profile'!BO29","v":0},{"$f":"'[2]5.2 Asset Age Profile'!BP29+'[3]5.2 Asset Age Profile'!BP29","v":0},{"$f":"'[2]5.2 Asset Age Profile'!BQ29+'[3]5.2 Asset Age Profile'!BQ29","v":0},{"$f":"'[2]5.2 Asset Age Profile'!BR29+'[3]5.2 Asset Age Profile'!BR29","v":0},{"$f":"'[2]5.2 Asset Age Profile'!BS29+'[3]5.2 Asset Age Profile'!BS29","v":0},{"$f":"'[2]5.2 Asset Age Profile'!BT29+'[3]5.2 Asset Age Profile'!BT29","v":0},{"$f":"'[2]5.2 Asset Age Profile'!BU29+'[3]5.2 Asset Age Profile'!BU29","v":0},{"$f":"'[2]5.2 Asset Age Profile'!BV29+'[3]5.2 Asset Age Profile'!BV29","v":0},{"$f":"'[2]5.2 Asset Age Profile'!BW29+'[3]5.2 Asset Age Profile'!BW29","v":0},{"$f":"'[2]5.2 Asset Age Profile'!BX29+'[3]5.2 Asset Age Profile'!BX29","v":0},{"$f":"'[2]5.2 Asset Age Profile'!BY29+'[3]5.2 Asset Age Profile'!BY29","v":0},{"$f":"'[2]5.2 Asset Age Profile'!BZ29+'[3]5.2 Asset Age Profile'!BZ29","v":0},{"$f":"'[2]5.2 Asset Age Profile'!CA29+'[3]5.2 Asset Age Profile'!CA29","v":0},{"$f":"'[2]5.2 Asset Age Profile'!CB29+'[3]5.2 Asset Age Profile'!CB29","v":0},{"$f":"'[2]5.2 Asset Age Profile'!CC29+'[3]5.2 Asset Age Profile'!CC29","v":0},{"$f":"'[2]5.2 Asset Age Profile'!CD29+'[3]5.2 Asset Age Profile'!CD29","v":0},{"$f":"'[2]5.2 Asset Age Profile'!CE29+'[3]5.2 Asset Age Profile'!CE29","v":0},{"$f":"'[2]5.2 Asset Age Profile'!CF29+'[3]5.2 Asset Age Profile'!CF29","v":0},{"$f":"'[2]5.2 Asset Age Profile'!CG29+'[3]5.2 Asset Age Profile'!CG29","v":0},{"$f":"'[2]5.2 Asset Age Profile'!CH29+'[3]5.2 Asset Age Profile'!CH29","v":0},{"$f":"'[2]5.2 Asset Age Profile'!CI29+'[3]5.2 Asset Age Profile'!CI29","v":0},{"$f":"'[2]5.2 Asset Age Profile'!CJ29+'[3]5.2 Asset Age Profile'!CJ29","v":0},{"$f":"'[2]5.2 Asset Age Profile'!CK29+'[3]5.2 Asset Age Profile'!CK29","v":0},{"$f":"'[2]5.2 Asset Age Profile'!CL29+'[3]5.2 Asset Age Profile'!CL29","v":0},{"$f":"'[2]5.2 Asset Age Profile'!CM29+'[3]5.2 Asset Age Profile'!CM29","v":0},{"$f":"'[2]5.2 Asset Age Profile'!CN29+'[3]5.2 Asset Age Profile'!CN29","v":0},{"$f":"'[2]5.2 Asset Age Profile'!CO29+'[3]5.2 Asset Age Profile'!CO29","v":0},{"$f":"'[2]5.2 Asset Age Profile'!CP29+'[3]5.2 Asset Age Profile'!CP29","v":0},{"$f":"'[2]5.2 Asset Age Profile'!CQ29+'[3]5.2 Asset Age Profile'!CQ29","v":0},{"$f":"'[2]5.2 Asset Age Profile'!CR29+'[3]5.2 Asset Age Profile'!CR29","v":0},{"$f":"'[2]5.2 Asset Age Profile'!CS29+'[3]5.2 Asset Age Profile'!CS29","v":0},{"$f":"'[2]5.2 Asset Age Profile'!CT29+'[3]5.2 Asset Age Profile'!CT29","v":0},{"$f":"'[2]5.2 Asset Age Profile'!CU29+'[3]5.2 Asset Age Profile'!CU29","v":0},{"$f":"'[2]5.2 Asset Age Profile'!CV29+'[3]5.2 Asset Age Profile'!CV29","v":0},{"$f":"'[2]5.2 Asset Age Profile'!CW29+'[3]5.2 Asset Age Profile'!CW29","v":0},{"$f":"'[2]5.2 Asset Age Profile'!CX29+'[3]5.2 Asset Age Profile'!CX29","v":0},{"$f":"'[2]5.2 Asset Age Profile'!CY29+'[3]5.2 Asset Age Profile'!CY29","v":0},{"$f":"'[2]5.2 Asset Age Profile'!CZ29+'[3]5.2 Asset Age Profile'!CZ29","v":0},{"$f":"'[2]5.2 Asset Age Profile'!DA29+'[3]5.2 Asset Age Profile'!DA29","v":0},{"$f":"'[2]5.2 Asset Age Profile'!DB29+'[3]5.2 Asset Age Profile'!DB29","v":0},{"$f":"'[2]5.2 Asset Age Profile'!DC29+'[3]5.2 Asset Age Profile'!DC29","v":0},{"$f":"'[2]5.2 Asset Age Profile'!DD29+'[3]5.2 Asset Age Profile'!DD29","v":0},{"$f":"'[2]5.2 Asset Age Profile'!DE29+'[3]5.2 Asset Age Profile'!DE29","v":0},{"$f":"'[2]5.2 Asset Age Profile'!DF29+'[3]5.2 Asset Age Profile'!DF29","v":0},{"$f":"'[2]5.2 Asset Age Profile'!DG29+'[3]5.2 Asset Age Profile'!DG29","v":0},{"$f":"'[2]5.2 Asset Age Profile'!DH29+'[3]5.2 Asset Age Profile'!DH29","v":0},{"$f":"'[2]5.2 Asset Age Profile'!DI29+'[3]5.2 Asset Age Profile'!DI29","v":0},{"$f":"'[2]5.2 Asset Age Profile'!DJ29+'[3]5.2 Asset Age Profile'!DJ29","v":0},{"$f":"'[2]5.2 Asset Age Profile'!DK29+'[3]5.2 Asset Age Profile'!DK29","v":0},{"$f":"'[2]5.2 Asset Age Profile'!DL29+'[3]5.2 Asset Age Profile'!DL29","v":0},{"$f":"'[2]5.2 Asset Age Profile'!DM29+'[3]5.2 Asset Age Profile'!DM29","v":0},{"$f":"'[2]5.2 Asset Age Profile'!DN29+'[3]5.2 Asset Age Profile'!DN29","v":0},{"$f":"'[2]5.2 Asset Age Profile'!DO29+'[3]5.2 Asset Age Profile'!DO29","v":0},{"$f":"'[2]5.2 Asset Age Profile'!DP29+'[3]5.2 Asset Age Profile'!DP29","v":0},{"$f":"'[2]5.2 Asset Age Profile'!DQ29+'[3]5.2 Asset Age Profile'!DQ29","v":0},{"$f":"'[2]5.2 Asset Age Profile'!DR29+'[3]5.2 Asset Age Profile'!DR29","v":0},{"$f":"'[2]5.2 Asset Age Profile'!DS29+'[3]5.2 Asset Age Profile'!DS29","v":0},{"$f":"'[2]5.2 Asset Age Profile'!DT29+'[3]5.2 Asset Age Profile'!DT29","v":0},{"$f":"'[2]5.2 Asset Age Profile'!DU29+'[3]5.2 Asset Age Profile'!DU29","v":0},{"$f":"'[2]5.2 Asset Age Profile'!DV29+'[3]5.2 Asset Age Profile'!DV29","v":0},{"$f":"'[2]5.2 Asset Age Profile'!DW29+'[3]5.2 Asset Age Profile'!DW29","v":0},{"$f":"'[2]5.2 Asset Age Profile'!DX29+'[3]5.2 Asset Age Profile'!DX29","v":0},{"$f":"'[2]5.2 Asset Age Profile'!DY29+'[3]5.2 Asset Age Profile'!DY29","v":0},{"$f":"'[2]5.2 Asset Age Profile'!DZ29+'[3]5.2 Asset Age Profile'!DZ29","v":0},{"$f":"'[2]5.2 Asset Age Profile'!EA29+'[3]5.2 Asset Age Profile'!EA29","v":0},{"$f":"'[2]5.2 Asset Age Profile'!EB29+'[3]5.2 Asset Age Profile'!EB29","v":0},{"$f":"'[2]5.2 Asset Age Profile'!EC29+'[3]5.2 Asset Age Profile'!EC29","v":0},{"$f":"'[2]5.2 Asset Age Profile'!ED29+'[3]5.2 Asset Age Profile'!ED29","v":0},{"$f":"'[2]5.2 Asset Age Profile'!EE29+'[3]5.2 Asset Age Profile'!EE29","v":0},{"$f":"'[2]5.2 Asset Age Profile'!EF29+'[3]5.2 Asset Age Profile'!EF29","v":0},{"$f":"'[2]5.2 Asset Age Profile'!EG29+'[3]5.2 Asset Age Profile'!EG29","v":0},{"$f":"'[2]5.2 Asset Age Profile'!EH29+'[3]5.2 Asset Age Profile'!EH29","v":0},{"$f":"'[2]5.2 Asset Age Profile'!EI29+'[3]5.2 Asset Age Profile'!EI29","v":0},{"$f":"'[2]5.2 Asset Age Profile'!EJ29+'[3]5.2 Asset Age Profile'!EJ29","v":0}]
["ED_ASS521_00020",null,"Other",null,"DNSP NAME","REPEX","POLES","Other","DESCRIPTOR METRIC","MEAN ECONOMIC LIFE","YEARS","NUMBER",null,{"$f":"'[2]5.2 Asset Age Profile'!N30+'[3]5.2 Asset Age Profile'!N30","v":60},{"$f":"'[2]5.2 Asset Age Profile'!O30+'[3]5.2 Asset Age Profile'!O30","v":0},{"$f":"'[2]5.2 Asset Age Profile'!P30+'[3]5.2 Asset Age Profile'!P30","v":0},{"$f":"'[2]5.2 Asset Age Profile'!Q30+'[3]5.2 Asset Age Profile'!Q30","v":0},{"$f":"'[2]5.2 Asset Age Profile'!R30+'[3]5.2 Asset Age Profile'!R30","v":0},{"$f":"'[2]5.2 Asset Age Profile'!S30+'[3]5.2 Asset Age Profile'!S30","v":0},{"$f":"'[2]5.2 Asset Age Profile'!T30+'[3]5.2 Asset Age Profile'!T30","v":0},{"$f":"'[2]5.2 Asset Age Profile'!U30+'[3]5.2 Asset Age Profile'!U30","v":0},{"$f":"'[2]5.2 Asset Age Profile'!V30+'[3]5.2 Asset Age Profile'!V30","v":0},{"$f":"'[2]5.2 Asset Age Profile'!W30+'[3]5.2 Asset Age Profile'!W30","v":0},{"$f":"'[2]5.2 Asset Age Profile'!X30+'[3]5.2 Asset Age Profile'!X30","v":0},{"$f":"'[2]5.2 Asset Age Profile'!Y30+'[3]5.2 Asset Age Profile'!Y30","v":10},{"$f":"'[2]5.2 Asset Age Profile'!Z30+'[3]5.2 Asset Age Profile'!Z30","v":0},{"$f":"'[2]5.2 Asset Age Profile'!AA30+'[3]5.2 Asset Age Profile'!AA30","v":0},{"$f":"'[2]5.2 Asset Age Profile'!AB30+'[3]5.2 Asset Age Profile'!AB30","v":0},{"$f":"'[2]5.2 Asset Age Profile'!AC30+'[3]5.2 Asset Age Profile'!AC30","v":0},{"$f":"'[2]5.2 Asset Age Profile'!AD30+'[3]5.2 Asset Age Profile'!AD30","v":0},{"$f":"'[2]5.2 Asset Age Profile'!AE30+'[3]5.2 Asset Age Profile'!AE30","v":0},{"$f":"'[2]5.2 Asset Age Profile'!AF30+'[3]5.2 Asset Age Profile'!AF30","v":0},{"$f":"'[2]5.2 Asset Age Profile'!AG30+'[3]5.2 Asset Age Profile'!AG30","v":0},{"$f":"'[2]5.2 Asset Age Profile'!AH30+'[3]5.2 Asset Age Profile'!AH30","v":0},{"$f":"'[2]5.2 Asset Age Profile'!AI30+'[3]5.2 Asset Age Profile'!AI30","v":0},{"$f":"'[2]5.2 Asset Age Profile'!AJ30+'[3]5.2 Asset Age Profile'!AJ30","v":572},{"$f":"'[2]5.2 Asset Age Profile'!AK30+'[3]5.2 Asset Age Profile'!AK30","v":348},{"$f":"'[2]5.2 Asset Age Profile'!AL30+'[3]5.2 Asset Age Profile'!AL30","v":460},{"$f":"'[2]5.2 Asset Age Profile'!AM30+'[3]5.2 Asset Age Profile'!AM30","v":434},{"$f":"'[2]5.2 Asset Age Profile'!AN30+'[3]5.2 Asset Age Profile'!AN30","v":518},{"$f":"'[2]5.2 Asset Age Profile'!AO30+'[3]5.2 Asset Age Profile'!AO30","v":298},{"$f":"'[2]5.2 Asset Age Profile'!AP30+'[3]5.2 Asset Age Profile'!AP30","v":144},{"$f":"'[2]5.2 Asset Age Profile'!AQ30+'[3]5.2 Asset Age Profile'!AQ30","v":4},{"$f":"'[2]5.2 Asset Age Profile'!AR30+'[3]5.2 Asset Age Profile'!AR30","v":19},{"$f":"'[2]5.2 Asset Age Profile'!AS30+'[3]5.2 Asset Age Profile'!AS30","v":3},{"$f":"'[2]5.2 Asset Age Profile'!AT30+'[3]5.2 Asset Age Profile'!AT30","v":0},{"$f":"'[2]5.2 Asset Age Profile'!AU30+'[3]5.2 Asset Age Profile'!AU30","v":0},{"$f":"'[2]5.2 Asset Age Profile'!AV30+'[3]5.2 Asset Age Profile'!AV30","v":0},{"$f":"'[2]5.2 Asset Age Profile'!AW30+'[3]5.2 Asset Age Profile'!AW30","v":0},{"$f":"'[2]5.2 Asset Age Profile'!AX30+'[3]5.2 Asset Age Profile'!AX30","v":0},{"$f":"'[2]5.2 Asset Age Profile'!AY30+'[3]5.2 Asset Age Profile'!AY30","v":0},{"$f":"'[2]5.2 Asset Age Profile'!AZ30+'[3]5.2 Asset Age Profile'!AZ30","v":0},{"$f":"'[2]5.2 Asset Age Profile'!BA30+'[3]5.2 Asset Age Profile'!BA30","v":0},{"$f":"'[2]5.2 Asset Age Profile'!BB30+'[3]5.2 Asset Age Profile'!BB30","v":0},{"$f":"'[2]5.2 Asset Age Profile'!BC30+'[3]5.2 Asset Age Profile'!BC30","v":0},{"$f":"'[2]5.2 Asset Age Profile'!BD30+'[3]5.2 Asset Age Profile'!BD30","v":0},{"$f":"'[2]5.2 Asset Age Profile'!BE30+'[3]5.2 Asset Age Profile'!BE30","v":0},{"$f":"'[2]5.2 Asset Age Profile'!BF30+'[3]5.2 Asset Age Profile'!BF30","v":0},{"$f":"'[2]5.2 Asset Age Profile'!BG30+'[3]5.2 Asset Age Profile'!BG30","v":0},{"$f":"'[2]5.2 Asset Age Profile'!BH30+'[3]5.2 Asset Age Profile'!BH30","v":1},{"$f":"'[2]5.2 Asset Age Profile'!BI30+'[3]5.2 Asset Age Profile'!BI30","v":0},{"$f":"'[2]5.2 Asset Age Profile'!BJ30+'[3]5.2 Asset Age Profile'!BJ30","v":0},{"$f":"'[2]5.2 Asset Age Profile'!BK30+'[3]5.2 Asset Age Profile'!BK30","v":0},{"$f":"'[2]5.2 Asset Age Profile'!BL30+'[3]5.2 Asset Age Profile'!BL30","v":2},{"$f":"'[2]5.2 Asset Age Profile'!BM30+'[3]5.2 Asset Age Profile'!BM30","v":0},{"$f":"'[2]5.2 Asset Age Profile'!BN30+'[3]5.2 Asset Age Profile'!BN30","v":0},{"$f":"'[2]5.2 Asset Age Profile'!BO30+'[3]5.2 Asset Age Profile'!BO30","v":0},{"$f":"'[2]5.2 Asset Age Profile'!BP30+'[3]5.2 Asset Age Profile'!BP30","v":0},{"$f":"'[2]5.2 Asset Age Profile'!BQ30+'[3]5.2 Asset Age Profile'!BQ30","v":1},{"$f":"'[2]5.2 Asset Age Profile'!BR30+'[3]5.2 Asset Age Profile'!BR30","v":0},{"$f":"'[2]5.2 Asset Age Profile'!BS30+'[3]5.2 Asset Age Profile'!BS30","v":0},{"$f":"'[2]5.2 Asset Age Profile'!BT30+'[3]5.2 Asset Age Profile'!BT30","v":0},{"$f":"'[2]5.2 Asset Age Profile'!BU30+'[3]5.2 Asset Age Profile'!BU30","v":0},{"$f":"'[2]5.2 Asset Age Profile'!BV30+'[3]5.2 Asset Age Profile'!BV30","v":0},{"$f":"'[2]5.2 Asset Age Profile'!BW30+'[3]5.2 Asset Age Profile'!BW30","v":0},{"$f":"'[2]5.2 Asset Age Profile'!BX30+'[3]5.2 Asset Age Profile'!BX30","v":2},{"$f":"'[2]5.2 Asset Age Profile'!BY30+'[3]5.2 Asset Age Profile'!BY30","v":4},{"$f":"'[2]5.2 Asset Age Profile'!BZ30+'[3]5.2 Asset Age Profile'!BZ30","v":4},{"$f":"'[2]5.2 Asset Age Profile'!CA30+'[3]5.2 Asset Age Profile'!CA30","v":0},{"$f":"'[2]5.2 Asset Age Profile'!CB30+'[3]5.2 Asset Age Profile'!CB30","v":2},{"$f":"'[2]5.2 Asset Age Profile'!CC30+'[3]5.2 Asset Age Profile'!CC30","v":3},{"$f":"'[2]5.2 Asset Age Profile'!CD30+'[3]5.2 Asset Age Profile'!CD30","v":0},{"$f":"'[2]5.2 Asset Age Profile'!CE30+'[3]5.2 Asset Age Profile'!CE30","v":0},{"$f":"'[2]5.2 Asset Age Profile'!CF30+'[3]5.2 Asset Age Profile'!CF30","v":0},{"$f":"'[2]5.2 Asset Age Profile'!CG30+'[3]5.2 Asset Age Profile'!CG30","v":2},{"$f":"'[2]5.2 Asset Age Profile'!CH30+'[3]5.2 Asset Age Profile'!CH30","v":0},{"$f":"'[2]5.2 Asset Age Profile'!CI30+'[3]5.2 Asset Age Profile'!CI30","v":6},{"$f":"'[2]5.2 Asset Age Profile'!CJ30+'[3]5.2 Asset Age Profile'!CJ30","v":2},{"$f":"'[2]5.2 Asset Age Profile'!CK30+'[3]5.2 Asset Age Profile'!CK30","v":2},{"$f":"'[2]5.2 Asset Age Profile'!CL30+'[3]5.2 Asset Age Profile'!CL30","v":2},{"$f":"'[2]5.2 Asset Age Profile'!CM30+'[3]5.2 Asset Age Profile'!CM30","v":5},{"$f":"'[2]5.2 Asset Age Profile'!CN30+'[3]5.2 Asset Age Profile'!CN30","v":2},{"$f":"'[2]5.2 Asset Age Profile'!CO30+'[3]5.2 Asset Age Profile'!CO30","v":2},{"$f":"'[2]5.2 Asset Age Profile'!CP30+'[3]5.2 Asset Age Profile'!CP30","v":2},{"$f":"'[2]5.2 Asset Age Profile'!CQ30+'[3]5.2 Asset Age Profile'!CQ30","v":2},{"$f":"'[2]5.2 Asset Age Profile'!CR30+'[3]5.2 Asset Age Profile'!CR30","v":2},{"$f":"'[2]5.2 Asset Age Profile'!CS30+'[3]5.2 Asset Age Profile'!CS30","v":2},{"$f":"'[2]5.2 Asset Age Profile'!CT30+'[3]5.2 Asset Age Profile'!CT30","v":2},{"$f":"'[2]5.2 Asset Age Profile'!CU30+'[3]5.2 Asset Age Profile'!CU30","v":2},{"$f":"'[2]5.2 Asset Age Profile'!CV30+'[3]5.2 Asset Age Profile'!CV30","v":2},{"$f":"'[2]5.2 Asset Age Profile'!CW30+'[3]5.2 Asset Age Profile'!CW30","v":2},{"$f":"'[2]5.2 Asset Age Profile'!CX30+'[3]5.2 Asset Age Profile'!CX30","v":2},{"$f":"'[2]5.2 Asset Age Profile'!CY30+'[3]5.2 Asset Age Profile'!CY30","v":68},{"$f":"'[2]5.2 Asset Age Profile'!CZ30+'[3]5.2 Asset Age Profile'!CZ30","v":126},{"$f":"'[2]5.2 Asset Age Profile'!DA30+'[3]5.2 Asset Age Profile'!DA30","v":3},{"$f":"'[2]5.2 Asset Age Profile'!DB30+'[3]5.2 Asset Age Profile'!DB30","v":2},{"$f":"'[2]5.2 Asset Age Profile'!DC30+'[3]5.2 Asset Age Profile'!DC30","v":0},{"$f":"'[2]5.2 Asset Age Profile'!DD30+'[3]5.2 Asset Age Profile'!DD30","v":111},{"$f":"'[2]5.2 Asset Age Profile'!DE30+'[3]5.2 Asset Age Profile'!DE30","v":10},{"$f":"'[2]5.2 Asset Age Profile'!DF30+'[3]5.2 Asset Age Profile'!DF30","v":0},{"$f":"'[2]5.2 Asset Age Profile'!DG30+'[3]5.2 Asset Age Profile'!DG30","v":0},{"$f":"'[2]5.2 Asset Age Profile'!DH30+'[3]5.2 Asset Age Profile'!DH30","v":0},{"$f":"'[2]5.2 Asset Age Profile'!DI30+'[3]5.2 Asset Age Profile'!DI30","v":0},{"$f":"'[2]5.2 Asset Age Profile'!DJ30+'[3]5.2 Asset Age Profile'!DJ30","v":0},{"$f":"'[2]5.2 Asset Age Profile'!DK30+'[3]5.2 Asset Age Profile'!DK30","v":0},{"$f":"'[2]5.2 Asset Age Profile'!DL30+'[3]5.2 Asset Age Profile'!DL30","v":0},{"$f":"'[2]5.2 Asset Age Profile'!DM30+'[3]5.2 Asset Age Profile'!DM30","v":0},{"$f":"'[2]5.2 Asset Age Profile'!DN30+'[3]5.2 Asset Age Profile'!DN30","v":0},{"$f":"'[2]5.2 Asset Age Profile'!DO30+'[3]5.2 Asset Age Profile'!DO30","v":0},{"$f":"'[2]5.2 Asset Age Profile'!DP30+'[3]5.2 Asset Age Profile'!DP30","v":0},{"$f":"'[2]5.2 Asset Age Profile'!DQ30+'[3]5.2 Asset Age Profile'!DQ30","v":0},{"$f":"'[2]5.2 Asset Age Profile'!DR30+'[3]5.2 Asset Age Profile'!DR30","v":0},{"$f":"'[2]5.2 Asset Age Profile'!DS30+'[3]5.2 Asset Age Profile'!DS30","v":3},{"$f":"'[2]5.2 Asset Age Profile'!DT30+'[3]5.2 Asset Age Profile'!DT30","v":0},{"$f":"'[2]5.2 Asset Age Profile'!DU30+'[3]5.2 Asset Age Profile'!DU30","v":0},{"$f":"'[2]5.2 Asset Age Profile'!DV30+'[3]5.2 Asset Age Profile'!DV30","v":0},{"$f":"'[2]5.2 Asset Age Profile'!DW30+'[3]5.2 Asset Age Profile'!DW30","v":0},{"$f":"'[2]5.2 Asset Age Profile'!DX30+'[3]5.2 Asset Age Profile'!DX30","v":0},{"$f":"'[2]5.2 Asset Age Profile'!DY30+'[3]5.2 Asset Age Profile'!DY30","v":0},{"$f":"'[2]5.2 Asset Age Profile'!DZ30+'[3]5.2 Asset Age Profile'!DZ30","v":0},{"$f":"'[2]5.2 Asset Age Profile'!EA30+'[3]5.2 Asset Age Profile'!EA30","v":0},{"$f":"'[2]5.2 Asset Age Profile'!EB30+'[3]5.2 Asset Age Profile'!EB30","v":0},{"$f":"'[2]5.2 Asset Age Profile'!EC30+'[3]5.2 Asset Age Profile'!EC30","v":0},{"$f":"'[2]5.2 Asset Age Profile'!ED30+'[3]5.2 Asset Age Profile'!ED30","v":0},{"$f":"'[2]5.2 Asset Age Profile'!EE30+'[3]5.2 Asset Age Profile'!EE30","v":0},{"$f":"'[2]5.2 Asset Age Profile'!EF30+'[3]5.2 Asset Age Profile'!EF30","v":0},{"$f":"'[2]5.2 Asset Age Profile'!EG30+'[3]5.2 Asset Age Profile'!EG30","v":0},{"$f":"'[2]5.2 Asset Age Profile'!EH30+'[3]5.2 Asset Age Profile'!EH30","v":0},{"$f":"'[2]5.2 Asset Age Profile'!EI30+'[3]5.2 Asset Age Profile'!EI30","v":0},{"$f":"'[2]5.2 Asset Age Profile'!EJ30+'[3]5.2 Asset Age Profile'!EJ30","v":0}]
["ED_ASS521_00021","POLE TOP STRUCTURES BY: \nHighest operating voltage","˂ = 1 kV",null,null,null,null,null,null,null,null,null,null,{"$f":"'[2]5.2 Asset Age Profile'!N31+'[3]5.2 Asset Age Profile'!N31","v":0},{"$f":"'[2]5.2 Asset Age Profile'!O31+'[3]5.2 Asset Age Profile'!O31","v":0},{"$f":"'[2]5.2 Asset Age Profile'!P31+'[3]5.2 Asset Age Profile'!P31","v":0},{"$f":"'[2]5.2 Asset Age Profile'!Q31+'[3]5.2 Asset Age Profile'!Q31","v":0},{"$f":"'[2]5.2 Asset Age Profile'!R31+'[3]5.2 Asset Age Profile'!R31","v":0},{"$f":"'[2]5.2 Asset Age Profile'!S31+'[3]5.2 Asset Age Profile'!S31","v":0},{"$f":"'[2]5.2 Asset Age Profile'!T31+'[3]5.2 Asset Age Profile'!T31","v":0},{"$f":"'[2]5.2 Asset Age Profile'!U31+'[3]5.2 Asset Age Profile'!U31","v":0},{"$f":"'[2]5.2 Asset Age Profile'!V31+'[3]5.2 Asset Age Profile'!V31","v":0},{"$f":"'[2]5.2 Asset Age Profile'!W31+'[3]5.2 Asset Age Profile'!W31","v":0},{"$f":"'[2]5.2 Asset Age Profile'!X31+'[3]5.2 Asset Age Profile'!X31","v":0},{"$f":"'[2]5.2 Asset Age Profile'!Y31+'[3]5.2 Asset Age Profile'!Y31","v":0},{"$f":"'[2]5.2 Asset Age Profile'!Z31+'[3]5.2 Asset Age Profile'!Z31","v":0},{"$f":"'[2]5.2 Asset Age Profile'!AA31+'[3]5.2 Asset Age Profile'!AA31","v":0},{"$f":"'[2]5.2 Asset Age Profile'!AB31+'[3]5.2 Asset Age Profile'!AB31","v":0},{"$f":"'[2]5.2 Asset Age Profile'!AC31+'[3]5.2 Asset Age Profile'!AC31","v":0},{"$f":"'[2]5.2 Asset Age Profile'!AD31+'[3]5.2 Asset Age Profile'!AD31","v":0},{"$f":"'[2]5.2 Asset Age Profile'!AE31+'[3]5.2 Asset Age Profile'!AE31","v":0},{"$f":"'[2]5.2 Asset Age Profile'!AF31+'[3]5.2 Asset Age Profile'!AF31","v":0},{"$f":"'[2]5.2 Asset Age Profile'!AG31+'[3]5.2 Asset Age Profile'!AG31","v":0},{"$f":"'[2]5.2 Asset Age Profile'!AH31+'[3]5.2 Asset Age Profile'!AH31","v":0},{"$f":"'[2]5.2 Asset Age Profile'!AI31+'[3]5.2 Asset Age Profile'!AI31","v":0},{"$f":"'[2]5.2 Asset Age Profile'!AJ31+'[3]5.2 Asset Age Profile'!AJ31","v":0},{"$f":"'[2]5.2 Asset Age Profile'!AK31+'[3]5.2 Asset Age Profile'!AK31","v":0},{"$f":"'[2]5.2 Asset Age Profile'!AL31+'[3]5.2 Asset Age Profile'!AL31","v":0},{"$f":"'[2]5.2 Asset Age Profile'!AM31+'[3]5.2 Asset Age Profile'!AM31","v":0},{"$f":"'[2]5.2 Asset Age Profile'!AN31+'[3]5.2 Asset Age Profile'!AN31","v":0},{"$f":"'[2]5.2 Asset Age Profile'!AO31+'[3]5.2 Asset Age Profile'!AO31","v":0},{"$f":"'[2]5.2 Asset Age Profile'!AP31+'[3]5.2 Asset Age Profile'!AP31","v":0},{"$f":"'[2]5.2 Asset Age Profile'!AQ31+'[3]5.2 Asset Age Profile'!AQ31","v":0},{"$f":"'[2]5.2 Asset Age Profile'!AR31+'[3]5.2 Asset Age Profile'!AR31","v":0},{"$f":"'[2]5.2 Asset Age Profile'!AS31+'[3]5.2 Asset Age Profile'!AS31","v":0},{"$f":"'[2]5.2 Asset Age Profile'!AT31+'[3]5.2 Asset Age Profile'!AT31","v":0},{"$f":"'[2]5.2 Asset Age Profile'!AU31+'[3]5.2 Asset Age Profile'!AU31","v":0},{"$f":"'[2]5.2 Asset Age Profile'!AV31+'[3]5.2 Asset Age Profile'!AV31","v":0},{"$f":"'[2]5.2 Asset Age Profile'!AW31+'[3]5.2 Asset Age Profile'!AW31","v":0},{"$f":"'[2]5.2 Asset Age Profile'!AX31+'[3]5.2 Asset Age Profile'!AX31","v":0},{"$f":"'[2]5.2 Asset Age Profile'!AY31+'[3]5.2 Asset Age Profile'!AY31","v":0},{"$f":"'[2]5.2 Asset Age Profile'!AZ31+'[3]5.2 Asset Age Profile'!AZ31","v":0},{"$f":"'[2]5.2 Asset Age Profile'!BA31+'[3]5.2 Asset Age Profile'!BA31","v":0},{"$f":"'[2]5.2 Asset Age Profile'!BB31+'[3]5.2 Asset Age Profile'!BB31","v":0},{"$f":"'[2]5.2 Asset Age Profile'!BC31+'[3]5.2 Asset Age Profile'!BC31","v":0},{"$f":"'[2]5.2 Asset Age Profile'!BD31+'[3]5.2 Asset Age Profile'!BD31","v":0},{"$f":"'[2]5.2 Asset Age Profile'!BE31+'[3]5.2 Asset Age Profile'!BE31","v":0},{"$f":"'[2]5.2 Asset Age Profile'!BF31+'[3]5.2 Asset Age Profile'!BF31","v":0},{"$f":"'[2]5.2 Asset Age Profile'!BG31+'[3]5.2 Asset Age Profile'!BG31","v":0},{"$f":"'[2]5.2 Asset Age Profile'!BH31+'[3]5.2 Asset Age Profile'!BH31","v":0},{"$f":"'[2]5.2 Asset Age Profile'!BI31+'[3]5.2 Asset Age Profile'!BI31","v":0},{"$f":"'[2]5.2 Asset Age Profile'!BJ31+'[3]5.2 Asset Age Profile'!BJ31","v":0},{"$f":"'[2]5.2 Asset Age Profile'!BK31+'[3]5.2 Asset Age Profile'!BK31","v":0},{"$f":"'[2]5.2 Asset Age Profile'!BL31+'[3]5.2 Asset Age Profile'!BL31","v":0},{"$f":"'[2]5.2 Asset Age Profile'!BM31+'[3]5.2 Asset Age Profile'!BM31","v":0},{"$f":"'[2]5.2 Asset Age Profile'!BN31+'[3]5.2 Asset Age Profile'!BN31","v":0},{"$f":"'[2]5.2 Asset Age Profile'!BO31+'[3]5.2 Asset Age Profile'!BO31","v":0},{"$f":"'[2]5.2 Asset Age Profile'!BP31+'[3]5.2 Asset Age Profile'!BP31","v":0},{"$f":"'[2]5.2 Asset Age Profile'!BQ31+'[3]5.2 Asset Age Profile'!BQ31","v":0},{"$f":"'[2]5.2 Asset Age Profile'!BR31+'[3]5.2 Asset Age Profile'!BR31","v":0},{"$f":"'[2]5.2 Asset Age Profile'!BS31+'[3]5.2 Asset Age Profile'!BS31","v":0},{"$f":"'[2]5.2 Asset Age Profile'!BT31+'[3]5.2 Asset Age Profile'!BT31","v":0},{"$f":"'[2]5.2 Asset Age Profile'!BU31+'[3]5.2 Asset Age Profile'!BU31","v":0},{"$f":"'[2]5.2 Asset Age Profile'!BV31+'[3]5.2 Asset Age Profile'!BV31","v":0},{"$f":"'[2]5.2 Asset Age Profile'!BW31+'[3]5.2 Asset Age Profile'!BW31","v":0},{"$f":"'[2]5.2 Asset Age Profile'!BX31+'[3]5.2 Asset Age Profile'!BX31","v":0},{"$f":"'[2]5.2 Asset Age Profile'!BY31+'[3]5.2 Asset Age Profile'!BY31","v":0},{"$f":"'[2]5.2 Asset Age Profile'!BZ31+'[3]5.2 Asset Age Profile'!BZ31","v":0},{"$f":"'[2]5.2 Asset Age Profile'!CA31+'[3]5.2 Asset Age Profile'!CA31","v":0},{"$f":"'[2]5.2 Asset Age Profile'!CB31+'[3]5.2 Asset Age Profile'!CB31","v":0},{"$f":"'[2]5.2 Asset Age Profile'!CC31+'[3]5.2 Asset Age Profile'!CC31","v":0},{"$f":"'[2]5.2 Asset Age Profile'!CD31+'[3]5.2 Asset Age Profile'!CD31","v":0},{"$f":"'[2]5.2 Asset Age Profile'!CE31+'[3]5.2 Asset Age Profile'!CE31","v":0},{"$f":"'[2]5.2 Asset Age Profile'!CF31+'[3]5.2 Asset Age Profile'!CF31","v":0},{"$f":"'[2]5.2 Asset Age Profile'!CG31+'[3]5.2 Asset Age Profile'!CG31","v":0},{"$f":"'[2]5.2 Asset Age Profile'!CH31+'[3]5.2 Asset Age Profile'!CH31","v":0},{"$f":"'[2]5.2 Asset Age Profile'!CI31+'[3]5.2 Asset Age Profile'!CI31","v":0},{"$f":"'[2]5.2 Asset Age Profile'!CJ31+'[3]5.2 Asset Age Profile'!CJ31","v":0},{"$f":"'[2]5.2 Asset Age Profile'!CK31+'[3]5.2 Asset Age Profile'!CK31","v":0},{"$f":"'[2]5.2 Asset Age Profile'!CL31+'[3]5.2 Asset Age Profile'!CL31","v":0},{"$f":"'[2]5.2 Asset Age Profile'!CM31+'[3]5.2 Asset Age Profile'!CM31","v":0},{"$f":"'[2]5.2 Asset Age Profile'!CN31+'[3]5.2 Asset Age Profile'!CN31","v":0},{"$f":"'[2]5.2 Asset Age Profile'!CO31+'[3]5.2 Asset Age Profile'!CO31","v":0},{"$f":"'[2]5.2 Asset Age Profile'!CP31+'[3]5.2 Asset Age Profile'!CP31","v":0},{"$f":"'[2]5.2 Asset Age Profile'!CQ31+'[3]5.2 Asset Age Profile'!CQ31","v":0},{"$f":"'[2]5.2 Asset Age Profile'!CR31+'[3]5.2 Asset Age Profile'!CR31","v":0},{"$f":"'[2]5.2 Asset Age Profile'!CS31+'[3]5.2 Asset Age Profile'!CS31","v":0},{"$f":"'[2]5.2 Asset Age Profile'!CT31+'[3]5.2 Asset Age Profile'!CT31","v":0},{"$f":"'[2]5.2 Asset Age Profile'!CU31+'[3]5.2 Asset Age Profile'!CU31","v":0},{"$f":"'[2]5.2 Asset Age Profile'!CV31+'[3]5.2 Asset Age Profile'!CV31","v":0},{"$f":"'[2]5.2 Asset Age Profile'!CW31+'[3]5.2 Asset Age Profile'!CW31","v":0},{"$f":"'[2]5.2 Asset Age Profile'!CX31+'[3]5.2 Asset Age Profile'!CX31","v":0},{"$f":"'[2]5.2 Asset Age Profile'!CY31+'[3]5.2 Asset Age Profile'!CY31","v":0},{"$f":"'[2]5.2 Asset Age Profile'!CZ31+'[3]5.2 Asset Age Profile'!CZ31","v":0},{"$f":"'[2]5.2 Asset Age Profile'!DA31+'[3]5.2 Asset Age Profile'!DA31","v":0},{"$f":"'[2]5.2 Asset Age Profile'!DB31+'[3]5.2 Asset Age Profile'!DB31","v":0},{"$f":"'[2]5.2 Asset Age Profile'!DC31+'[3]5.2 Asset Age Profile'!DC31","v":0},{"$f":"'[2]5.2 Asset Age Profile'!DD31+'[3]5.2 Asset Age Profile'!DD31","v":0},{"$f":"'[2]5.2 Asset Age Profile'!DE31+'[3]5.2 Asset Age Profile'!DE31","v":0},{"$f":"'[2]5.2 Asset Age Profile'!DF31+'[3]5.2 Asset Age Profile'!DF31","v":0},{"$f":"'[2]5.2 Asset Age Profile'!DG31+'[3]5.2 Asset Age Profile'!DG31","v":0},{"$f":"'[2]5.2 Asset Age Profile'!DH31+'[3]5.2 Asset Age Profile'!DH31","v":0},{"$f":"'[2]5.2 Asset Age Profile'!DI31+'[3]5.2 Asset Age Profile'!DI31","v":0},{"$f":"'[2]5.2 Asset Age Profile'!DJ31+'[3]5.2 Asset Age Profile'!DJ31","v":0},{"$f":"'[2]5.2 Asset Age Profile'!DK31+'[3]5.2 Asset Age Profile'!DK31","v":0},{"$f":"'[2]5.2 Asset Age Profile'!DL31+'[3]5.2 Asset Age Profile'!DL31","v":0},{"$f":"'[2]5.2 Asset Age Profile'!DM31+'[3]5.2 Asset Age Profile'!DM31","v":0},{"$f":"'[2]5.2 Asset Age Profile'!DN31+'[3]5.2 Asset Age Profile'!DN31","v":0},{"$f":"'[2]5.2 Asset Age Profile'!DO31+'[3]5.2 Asset Age Profile'!DO31","v":0},{"$f":"'[2]5.2 Asset Age Profile'!DP31+'[3]5.2 Asset Age Profile'!DP31","v":0},{"$f":"'[2]5.2 Asset Age Profile'!DQ31+'[3]5.2 Asset Age Profile'!DQ31","v":0},{"$f":"'[2]5.2 Asset Age Profile'!DR31+'[3]5.2 Asset Age Profile'!DR31","v":0},{"$f":"'[2]5.2 Asset Age Profile'!DS31+'[3]5.2 Asset Age Profile'!DS31","v":0},{"$f":"'[2]5.2 Asset Age Profile'!DT31+'[3]5.2 Asset Age Profile'!DT31","v":0},{"$f":"'[2]5.2 Asset Age Profile'!DU31+'[3]5.2 Asset Age Profile'!DU31","v":0},{"$f":"'[2]5.2 Asset Age Profile'!DV31+'[3]5.2 Asset Age Profile'!DV31","v":0},{"$f":"'[2]5.2 Asset Age Profile'!DW31+'[3]5.2 Asset Age Profile'!DW31","v":0},{"$f":"'[2]5.2 Asset Age Profile'!DX31+'[3]5.2 Asset Age Profile'!DX31","v":0},{"$f":"'[2]5.2 Asset Age Profile'!DY31+'[3]5.2 Asset Age Profile'!DY31","v":0},{"$f":"'[2]5.2 Asset Age Profile'!DZ31+'[3]5.2 Asset Age Profile'!DZ31","v":0},{"$f":"'[2]5.2 Asset Age Profile'!EA31+'[3]5.2 Asset Age Profile'!EA31","v":0},{"$f":"'[2]5.2 Asset Age Profile'!EB31+'[3]5.2 Asset Age Profile'!EB31","v":0},{"$f":"'[2]5.2 Asset Age Profile'!EC31+'[3]5.2 Asset Age Profile'!EC31","v":0},{"$f":"'[2]5.2 Asset Age Profile'!ED31+'[3]5.2 Asset Age Profile'!ED31","v":0},{"$f":"'[2]5.2 Asset Age Profile'!EE31+'[3]5.2 Asset Age Profile'!EE31","v":0},{"$f":"'[2]5.2 Asset Age Profile'!EF31+'[3]5.2 Asset Age Profile'!EF31","v":0},{"$f":"'[2]5.2 Asset Age Profile'!EG31+'[3]5.2 Asset Age Profile'!EG31","v":0},{"$f":"'[2]5.2 Asset Age Profile'!EH31+'[3]5.2 Asset Age Profile'!EH31","v":0},{"$f":"'[2]5.2 Asset Age Profile'!EI31+'[3]5.2 Asset Age Profile'!EI31","v":0},{"$f":"'[2]5.2 Asset Age Profile'!EJ31+'[3]5.2 Asset Age Profile'!EJ31","v":0}]
["ED_ASS521_00022",null,"> 1 kV & < = 11 kV",null,null,null,null,null,null,null,null,null,null,{"$f":"'[2]5.2 Asset Age Profile'!N32+'[3]5.2 Asset Age Profile'!N32","v":0},{"$f":"'[2]5.2 Asset Age Profile'!O32+'[3]5.2 Asset Age Profile'!O32","v":0},{"$f":"'[2]5.2 Asset Age Profile'!P32+'[3]5.2 Asset Age Profile'!P32","v":0},{"$f":"'[2]5.2 Asset Age Profile'!Q32+'[3]5.2 Asset Age Profile'!Q32","v":0},{"$f":"'[2]5.2 Asset Age Profile'!R32+'[3]5.2 Asset Age Profile'!R32","v":0},{"$f":"'[2]5.2 Asset Age Profile'!S32+'[3]5.2 Asset Age Profile'!S32","v":0},{"$f":"'[2]5.2 Asset Age Profile'!T32+'[3]5.2 Asset Age Profile'!T32","v":0},{"$f":"'[2]5.2 Asset Age Profile'!U32+'[3]5.2 Asset Age Profile'!U32","v":0},{"$f":"'[2]5.2 Asset Age Profile'!V32+'[3]5.2 Asset Age Profile'!V32","v":0},{"$f":"'[2]5.2 Asset Age Profile'!W32+'[3]5.2 Asset Age Profile'!W32","v":0},{"$f":"'[2]5.2 Asset Age Profile'!X32+'[3]5.2 Asset Age Profile'!X32","v":0},{"$f":"'[2]5.2 Asset Age Profile'!Y32+'[3]5.2 Asset Age Profile'!Y32","v":0},{"$f":"'[2]5.2 Asset Age Profile'!Z32+'[3]5.2 Asset Age Profile'!Z32","v":0},{"$f":"'[2]5.2 Asset Age Profile'!AA32+'[3]5.2 Asset Age Profile'!AA32","v":0},{"$f":"'[2]5.2 Asset Age Profile'!AB32+'[3]5.2 Asset Age Profile'!AB32","v":0},{"$f":"'[2]5.2 Asset Age Profile'!AC32+'[3]5.2 Asset Age Profile'!AC32","v":0},{"$f":"'[2]5.2 Asset Age Profile'!AD32+'[3]5.2 Asset Age Profile'!AD32","v":0},{"$f":"'[2]5.2 Asset Age Profile'!AE32+'[3]5.2 Asset Age Profile'!AE32","v":0},{"$f":"'[2]5.2 Asset Age Profile'!AF32+'[3]5.2 Asset Age Profile'!AF32","v":0},{"$f":"'[2]5.2 Asset Age Profile'!AG32+'[3]5.2 Asset Age Profile'!AG32","v":0},{"$f":"'[2]5.2 Asset Age Profile'!AH32+'[3]5.2 Asset Age Profile'!AH32","v":0},{"$f":"'[2]5.2 Asset Age Profile'!AI32+'[3]5.2 Asset Age Profile'!AI32","v":0},{"$f":"'[2]5.2 Asset Age Profile'!AJ32+'[3]5.2 Asset Age Profile'!AJ32","v":0},{"$f":"'[2]5.2 Asset Age Profile'!AK32+'[3]5.2 Asset Age Profile'!AK32","v":0},{"$f":"'[2]5.2 Asset Age Profile'!AL32+'[3]5.2 Asset Age Profile'!AL32","v":0},{"$f":"'[2]5.2 Asset Age Profile'!AM32+'[3]5.2 Asset Age Profile'!AM32","v":0},{"$f":"'[2]5.2 Asset Age Profile'!AN32+'[3]5.2 Asset Age Profile'!AN32","v":0},{"$f":"'[2]5.2 Asset Age Profile'!AO32+'[3]5.2 Asset Age Profile'!AO32","v":0},{"$f":"'[2]5.2 Asset Age Profile'!AP32+'[3]5.2 Asset Age Profile'!AP32","v":0},{"$f":"'[2]5.2 Asset Age Profile'!AQ32+'[3]5.2 Asset Age Profile'!AQ32","v":0},{"$f":"'[2]5.2 Asset Age Profile'!AR32+'[3]5.2 Asset Age Profile'!AR32","v":0},{"$f":"'[2]5.2 Asset Age Profile'!AS32+'[3]5.2 Asset Age Profile'!AS32","v":0},{"$f":"'[2]5.2 Asset Age Profile'!AT32+'[3]5.2 Asset Age Profile'!AT32","v":0},{"$f":"'[2]5.2 Asset Age Profile'!AU32+'[3]5.2 Asset Age Profile'!AU32","v":0},{"$f":"'[2]5.2 Asset Age Profile'!AV32+'[3]5.2 Asset Age Profile'!AV32","v":0},{"$f":"'[2]5.2 Asset Age Profile'!AW32+'[3]5.2 Asset Age Profile'!AW32","v":0},{"$f":"'[2]5.2 Asset Age Profile'!AX32+'[3]5.2 Asset Age Profile'!AX32","v":0},{"$f":"'[2]5.2 Asset Age Profile'!AY32+'[3]5.2 Asset Age Profile'!AY32","v":0},{"$f":"'[2]5.2 Asset Age Profile'!AZ32+'[3]5.2 Asset Age Profile'!AZ32","v":0},{"$f":"'[2]5.2 Asset Age Profile'!BA32+'[3]5.2 Asset Age Profile'!BA32","v":0},{"$f":"'[2]5.2 Asset Age Profile'!BB32+'[3]5.2 Asset Age Profile'!BB32","v":0},{"$f":"'[2]5.2 Asset Age Profile'!BC32+'[3]5.2 Asset Age Profile'!BC32","v":0},{"$f":"'[2]5.2 Asset Age Profile'!BD32+'[3]5.2 Asset Age Profile'!BD32","v":0},{"$f":"'[2]5.2 Asset Age Profile'!BE32+'[3]5.2 Asset Age Profile'!BE32","v":0},{"$f":"'[2]5.2 Asset Age Profile'!BF32+'[3]5.2 Asset Age Profile'!BF32","v":0},{"$f":"'[2]5.2 Asset Age Profile'!BG32+'[3]5.2 Asset Age Profile'!BG32","v":0},{"$f":"'[2]5.2 Asset Age Profile'!BH32+'[3]5.2 Asset Age Profile'!BH32","v":0},{"$f":"'[2]5.2 Asset Age Profile'!BI32+'[3]5.2 Asset Age Profile'!BI32","v":0},{"$f":"'[2]5.2 Asset Age Profile'!BJ32+'[3]5.2 Asset Age Profile'!BJ32","v":0},{"$f":"'[2]5.2 Asset Age Profile'!BK32+'[3]5.2 Asset Age Profile'!BK32","v":0},{"$f":"'[2]5.2 Asset Age Profile'!BL32+'[3]5.2 Asset Age Profile'!BL32","v":0},{"$f":"'[2]5.2 Asset Age Profile'!BM32+'[3]5.2 Asset Age Profile'!BM32","v":0},{"$f":"'[2]5.2 Asset Age Profile'!BN32+'[3]5.2 Asset Age Profile'!BN32","v":0},{"$f":"'[2]5.2 Asset Age Profile'!BO32+'[3]5.2 Asset Age Profile'!BO32","v":0},{"$f":"'[2]5.2 Asset Age Profile'!BP32+'[3]5.2 Asset Age Profile'!BP32","v":0},{"$f":"'[2]5.2 Asset Age Profile'!BQ32+'[3]5.2 Asset Age Profile'!BQ32","v":0},{"$f":"'[2]5.2 Asset Age Profile'!BR32+'[3]5.2 Asset Age Profile'!BR32","v":0},{"$f":"'[2]5.2 Asset Age Profile'!BS32+'[3]5.2 Asset Age Profile'!BS32","v":0},{"$f":"'[2]5.2 Asset Age Profile'!BT32+'[3]5.2 Asset Age Profile'!BT32","v":0},{"$f":"'[2]5.2 Asset Age Profile'!BU32+'[3]5.2 Asset Age Profile'!BU32","v":0},{"$f":"'[2]5.2 Asset Age Profile'!BV32+'[3]5.2 Asset Age Profile'!BV32","v":0},{"$f":"'[2]5.2 Asset Age Profile'!BW32+'[3]5.2 Asset Age Profile'!BW32","v":0},{"$f":"'[2]5.2 Asset Age Profile'!BX32+'[3]5.2 Asset Age Profile'!BX32","v":0},{"$f":"'[2]5.2 Asset Age Profile'!BY32+'[3]5.2 Asset Age Profile'!BY32","v":0},{"$f":"'[2]5.2 Asset Age Profile'!BZ32+'[3]5.2 Asset Age Profile'!BZ32","v":0},{"$f":"'[2]5.2 Asset Age Profile'!CA32+'[3]5.2 Asset Age Profile'!CA32","v":0},{"$f":"'[2]5.2 Asset Age Profile'!CB32+'[3]5.2 Asset Age Profile'!CB32","v":0},{"$f":"'[2]5.2 Asset Age Profile'!CC32+'[3]5.2 Asset Age Profile'!CC32","v":0},{"$f":"'[2]5.2 Asset Age Profile'!CD32+'[3]5.2 Asset Age Profile'!CD32","v":0},{"$f":"'[2]5.2 Asset Age Profile'!CE32+'[3]5.2 Asset Age Profile'!CE32","v":0},{"$f":"'[2]5.2 Asset Age Profile'!CF32+'[3]5.2 Asset Age Profile'!CF32","v":0},{"$f":"'[2]5.2 Asset Age Profile'!CG32+'[3]5.2 Asset Age Profile'!CG32","v":0},{"$f":"'[2]5.2 Asset Age Profile'!CH32+'[3]5.2 Asset Age Profile'!CH32","v":0},{"$f":"'[2]5.2 Asset Age Profile'!CI32+'[3]5.2 Asset Age Profile'!CI32","v":0},{"$f":"'[2]5.2 Asset Age Profile'!CJ32+'[3]5.2 Asset Age Profile'!CJ32","v":0},{"$f":"'[2]5.2 Asset Age Profile'!CK32+'[3]5.2 Asset Age Profile'!CK32","v":0},{"$f":"'[2]5.2 Asset Age Profile'!CL32+'[3]5.2 Asset Age Profile'!CL32","v":0},{"$f":"'[2]5.2 Asset Age Profile'!CM32+'[3]5.2 Asset Age Profile'!CM32","v":0},{"$f":"'[2]5.2 Asset Age Profile'!CN32+'[3]5.2 Asset Age Profile'!CN32","v":0},{"$f":"'[2]5.2 Asset Age Profile'!CO32+'[3]5.2 Asset Age Profile'!CO32","v":0},{"$f":"'[2]5.2 Asset Age Profile'!CP32+'[3]5.2 Asset Age Profile'!CP32","v":0},{"$f":"'[2]5.2 Asset Age Profile'!CQ32+'[3]5.2 Asset Age Profile'!CQ32","v":0},{"$f":"'[2]5.2 Asset Age Profile'!CR32+'[3]5.2 Asset Age Profile'!CR32","v":0},{"$f":"'[2]5.2 Asset Age Profile'!CS32+'[3]5.2 Asset Age Profile'!CS32","v":0},{"$f":"'[2]5.2 Asset Age Profile'!CT32+'[3]5.2 Asset Age Profile'!CT32","v":0},{"$f":"'[2]5.2 Asset Age Profile'!CU32+'[3]5.2 Asset Age Profile'!CU32","v":0},{"$f":"'[2]5.2 Asset Age Profile'!CV32+'[3]5.2 Asset Age Profile'!CV32","v":0},{"$f":"'[2]5.2 Asset Age Profile'!CW32+'[3]5.2 Asset Age Profile'!CW32","v":0},{"$f":"'[2]5.2 Asset Age Profile'!CX32+'[3]5.2 Asset Age Profile'!CX32","v":0},{"$f":"'[2]5.2 Asset Age Profile'!CY32+'[3]5.2 Asset Age Profile'!CY32","v":0},{"$f":"'[2]5.2 Asset Age Profile'!CZ32+'[3]5.2 Asset Age Profile'!CZ32","v":0},{"$f":"'[2]5.2 Asset Age Profile'!DA32+'[3]5.2 Asset Age Profile'!DA32","v":0},{"$f":"'[2]5.2 Asset Age Profile'!DB32+'[3]5.2 Asset Age Profile'!DB32","v":0},{"$f":"'[2]5.2 Asset Age Profile'!DC32+'[3]5.2 Asset Age Profile'!DC32","v":0},{"$f":"'[2]5.2 Asset Age Profile'!DD32+'[3]5.2 Asset Age Profile'!DD32","v":0},{"$f":"'[2]5.2 Asset Age Profile'!DE32+'[3]5.2 Asset Age Profile'!DE32","v":0},{"$f":"'[2]5.2 Asset Age Profile'!DF32+'[3]5.2 Asset Age Profile'!DF32","v":0},{"$f":"'[2]5.2 Asset Age Profile'!DG32+'[3]5.2 Asset Age Profile'!DG32","v":0},{"$f":"'[2]5.2 Asset Age Profile'!DH32+'[3]5.2 Asset Age Profile'!DH32","v":0},{"$f":"'[2]5.2 Asset Age Profile'!DI32+'[3]5.2 Asset Age Profile'!DI32","v":0},{"$f":"'[2]5.2 Asset Age Profile'!DJ32+'[3]5.2 Asset Age Profile'!DJ32","v":0},{"$f":"'[2]5.2 Asset Age Profile'!DK32+'[3]5.2 Asset Age Profile'!DK32","v":0},{"$f":"'[2]5.2 Asset Age Profile'!DL32+'[3]5.2 Asset Age Profile'!DL32","v":0},{"$f":"'[2]5.2 Asset Age Profile'!DM32+'[3]5.2 Asset Age Profile'!DM32","v":0},{"$f":"'[2]5.2 Asset Age Profile'!DN32+'[3]5.2 Asset Age Profile'!DN32","v":0},{"$f":"'[2]5.2 Asset Age Profile'!DO32+'[3]5.2 Asset Age Profile'!DO32","v":0},{"$f":"'[2]5.2 Asset Age Profile'!DP32+'[3]5.2 Asset Age Profile'!DP32","v":0},{"$f":"'[2]5.2 Asset Age Profile'!DQ32+'[3]5.2 Asset Age Profile'!DQ32","v":0},{"$f":"'[2]5.2 Asset Age Profile'!DR32+'[3]5.2 Asset Age Profile'!DR32","v":0},{"$f":"'[2]5.2 Asset Age Profile'!DS32+'[3]5.2 Asset Age Profile'!DS32","v":0},{"$f":"'[2]5.2 Asset Age Profile'!DT32+'[3]5.2 Asset Age Profile'!DT32","v":0},{"$f":"'[2]5.2 Asset Age Profile'!DU32+'[3]5.2 Asset Age Profile'!DU32","v":0},{"$f":"'[2]5.2 Asset Age Profile'!DV32+'[3]5.2 Asset Age Profile'!DV32","v":0},{"$f":"'[2]5.2 Asset Age Profile'!DW32+'[3]5.2 Asset Age Profile'!DW32","v":0},{"$f":"'[2]5.2 Asset Age Profile'!DX32+'[3]5.2 Asset Age Profile'!DX32","v":0},{"$f":"'[2]5.2 Asset Age Profile'!DY32+'[3]5.2 Asset Age Profile'!DY32","v":0},{"$f":"'[2]5.2 Asset Age Profile'!DZ32+'[3]5.2 Asset Age Profile'!DZ32","v":0},{"$f":"'[2]5.2 Asset Age Profile'!EA32+'[3]5.2 Asset Age Profile'!EA32","v":0},{"$f":"'[2]5.2 Asset Age Profile'!EB32+'[3]5.2 Asset Age Profile'!EB32","v":0},{"$f":"'[2]5.2 Asset Age Profile'!EC32+'[3]5.2 Asset Age Profile'!EC32","v":0},{"$f":"'[2]5.2 Asset Age Profile'!ED32+'[3]5.2 Asset Age Profile'!ED32","v":0},{"$f":"'[2]5.2 Asset Age Profile'!EE32+'[3]5.2 Asset Age Profile'!EE32","v":0},{"$f":"'[2]5.2 Asset Age Profile'!EF32+'[3]5.2 Asset Age Profile'!EF32","v":0},{"$f":"'[2]5.2 Asset Age Profile'!EG32+'[3]5.2 Asset Age Profile'!EG32","v":0},{"$f":"'[2]5.2 Asset Age Profile'!EH32+'[3]5.2 Asset Age Profile'!EH32","v":0},{"$f":"'[2]5.2 Asset Age Profile'!EI32+'[3]5.2 Asset Age Profile'!EI32","v":0},{"$f":"'[2]5.2 Asset Age Profile'!EJ32+'[3]5.2 Asset Age Profile'!EJ32","v":0}]
["ED_ASS521_00023",null,"˃ 11 kV & < = 22 kV",null,null,null,null,null,null,null,null,null,null,{"$f":"'[2]5.2 Asset Age Profile'!N33+'[3]5.2 Asset Age Profile'!N33","v":0},{"$f":"'[2]5.2 Asset Age Profile'!O33+'[3]5.2 Asset Age Profile'!O33","v":0},{"$f":"'[2]5.2 Asset Age Profile'!P33+'[3]5.2 Asset Age Profile'!P33","v":0},{"$f":"'[2]5.2 Asset Age Profile'!Q33+'[3]5.2 Asset Age Profile'!Q33","v":0},{"$f":"'[2]5.2 Asset Age Profile'!R33+'[3]5.2 Asset Age Profile'!R33","v":0},{"$f":"'[2]5.2 Asset Age Profile'!S33+'[3]5.2 Asset Age Profile'!S33","v":0},{"$f":"'[2]5.2 Asset Age Profile'!T33+'[3]5.2 Asset Age Profile'!T33","v":0},{"$f":"'[2]5.2 Asset Age Profile'!U33+'[3]5.2 Asset Age Profile'!U33","v":0},{"$f":"'[2]5.2 Asset Age Profile'!V33+'[3]5.2 Asset Age Profile'!V33","v":0},{"$f":"'[2]5.2 Asset Age Profile'!W33+'[3]5.2 Asset Age Profile'!W33","v":0},{"$f":"'[2]5.2 Asset Age Profile'!X33+'[3]5.2 Asset Age Profile'!X33","v":0},{"$f":"'[2]5.2 Asset Age Profile'!Y33+'[3]5.2 Asset Age Profile'!Y33","v":0},{"$f":"'[2]5.2 Asset Age Profile'!Z33+'[3]5.2 Asset Age Profile'!Z33","v":0},{"$f":"'[2]5.2 Asset Age Profile'!AA33+'[3]5.2 Asset Age Profile'!AA33","v":0},{"$f":"'[2]5.2 Asset Age Profile'!AB33+'[3]5.2 Asset Age Profile'!AB33","v":0},{"$f":"'[2]5.2 Asset Age Profile'!AC33+'[3]5.2 Asset Age Profile'!AC33","v":0},{"$f":"'[2]5.2 Asset Age Profile'!AD33+'[3]5.2 Asset Age Profile'!AD33","v":0},{"$f":"'[2]5.2 Asset Age Profile'!AE33+'[3]5.2 Asset Age Profile'!AE33","v":0},{"$f":"'[2]5.2 Asset Age Profile'!AF33+'[3]5.2 Asset Age Profile'!AF33","v":0},{"$f":"'[2]5.2 Asset Age Profile'!AG33+'[3]5.2 Asset Age Profile'!AG33","v":0},{"$f":"'[2]5.2 Asset Age Profile'!AH33+'[3]5.2 Asset Age Profile'!AH33","v":0},{"$f":"'[2]5.2 Asset Age Profile'!AI33+'[3]5.2 Asset Age Profile'!AI33","v":0},{"$f":"'[2]5.2 Asset Age Profile'!AJ33+'[3]5.2 Asset Age Profile'!AJ33","v":0},{"$f":"'[2]5.2 Asset Age Profile'!AK33+'[3]5.2 Asset Age Profile'!AK33","v":0},{"$f":"'[2]5.2 Asset Age Profile'!AL33+'[3]5.2 Asset Age Profile'!AL33","v":0},{"$f":"'[2]5.2 Asset Age Profile'!AM33+'[3]5.2 Asset Age Profile'!AM33","v":0},{"$f":"'[2]5.2 Asset Age Profile'!AN33+'[3]5.2 Asset Age Profile'!AN33","v":0},{"$f":"'[2]5.2 Asset Age Profile'!AO33+'[3]5.2 Asset Age Profile'!AO33","v":0},{"$f":"'[2]5.2 Asset Age Profile'!AP33+'[3]5.2 Asset Age Profile'!AP33","v":0},{"$f":"'[2]5.2 Asset Age Profile'!AQ33+'[3]5.2 Asset Age Profile'!AQ33","v":0},{"$f":"'[2]5.2 Asset Age Profile'!AR33+'[3]5.2 Asset Age Profile'!AR33","v":0},{"$f":"'[2]5.2 Asset Age Profile'!AS33+'[3]5.2 Asset Age Profile'!AS33","v":0},{"$f":"'[2]5.2 Asset Age Profile'!AT33+'[3]5.2 Asset Age Profile'!AT33","v":0},{"$f":"'[2]5.2 Asset Age Profile'!AU33+'[3]5.2 Asset Age Profile'!AU33","v":0},{"$f":"'[2]5.2 Asset Age Profile'!AV33+'[3]5.2 Asset Age Profile'!AV33","v":0},{"$f":"'[2]5.2 Asset Age Profile'!AW33+'[3]5.2 Asset Age Profile'!AW33","v":0},{"$f":"'[2]5.2 Asset Age Profile'!AX33+'[3]5.2 Asset Age Profile'!AX33","v":0},{"$f":"'[2]5.2 Asset Age Profile'!AY33+'[3]5.2 Asset Age Profile'!AY33","v":0},{"$f":"'[2]5.2 Asset Age Profile'!AZ33+'[3]5.2 Asset Age Profile'!AZ33","v":0},{"$f":"'[2]5.2 Asset Age Profile'!BA33+'[3]5.2 Asset Age Profile'!BA33","v":0},{"$f":"'[2]5.2 Asset Age Profile'!BB33+'[3]5.2 Asset Age Profile'!BB33","v":0},{"$f":"'[2]5.2 Asset Age Profile'!BC33+'[3]5.2 Asset Age Profile'!BC33","v":0},{"$f":"'[2]5.2 Asset Age Profile'!BD33+'[3]5.2 Asset Age Profile'!BD33","v":0},{"$f":"'[2]5.2 Asset Age Profile'!BE33+'[3]5.2 Asset Age Profile'!BE33","v":0},{"$f":"'[2]5.2 Asset Age Profile'!BF33+'[3]5.2 Asset Age Profile'!BF33","v":0},{"$f":"'[2]5.2 Asset Age Profile'!BG33+'[3]5.2 Asset Age Profile'!BG33","v":0},{"$f":"'[2]5.2 Asset Age Profile'!BH33+'[3]5.2 Asset Age Profile'!BH33","v":0},{"$f":"'[2]5.2 Asset Age Profile'!BI33+'[3]5.2 Asset Age Profile'!BI33","v":0},{"$f":"'[2]5.2 Asset Age Profile'!BJ33+'[3]5.2 Asset Age Profile'!BJ33","v":0},{"$f":"'[2]5.2 Asset Age Profile'!BK33+'[3]5.2 Asset Age Profile'!BK33","v":0},{"$f":"'[2]5.2 Asset Age Profile'!BL33+'[3]5.2 Asset Age Profile'!BL33","v":0},{"$f":"'[2]5.2 Asset Age Profile'!BM33+'[3]5.2 Asset Age Profile'!BM33","v":0},{"$f":"'[2]5.2 Asset Age Profile'!BN33+'[3]5.2 Asset Age Profile'!BN33","v":0},{"$f":"'[2]5.2 Asset Age Profile'!BO33+'[3]5.2 Asset Age Profile'!BO33","v":0},{"$f":"'[2]5.2 Asset Age Profile'!BP33+'[3]5.2 Asset Age Profile'!BP33","v":0},{"$f":"'[2]5.2 Asset Age Profile'!BQ33+'[3]5.2 Asset Age Profile'!BQ33","v":0},{"$f":"'[2]5.2 Asset Age Profile'!BR33+'[3]5.2 Asset Age Profile'!BR33","v":0},{"$f":"'[2]5.2 Asset Age Profile'!BS33+'[3]5.2 Asset Age Profile'!BS33","v":0},{"$f":"'[2]5.2 Asset Age Profile'!BT33+'[3]5.2 Asset Age Profile'!BT33","v":0},{"$f":"'[2]5.2 Asset Age Profile'!BU33+'[3]5.2 Asset Age Profile'!BU33","v":0},{"$f":"'[2]5.2 Asset Age Profile'!BV33+'[3]5.2 Asset Age Profile'!BV33","v":0},{"$f":"'[2]5.2 Asset Age Profile'!BW33+'[3]5.2 Asset Age Profile'!BW33","v":0},{"$f":"'[2]5.2 Asset Age Profile'!BX33+'[3]5.2 Asset Age Profile'!BX33","v":0},{"$f":"'[2]5.2 Asset Age Profile'!BY33+'[3]5.2 Asset Age Profile'!BY33","v":0},{"$f":"'[2]5.2 Asset Age Profile'!BZ33+'[3]5.2 Asset Age Profile'!BZ33","v":0},{"$f":"'[2]5.2 Asset Age Profile'!CA33+'[3]5.2 Asset Age Profile'!CA33","v":0},{"$f":"'[2]5.2 Asset Age Profile'!CB33+'[3]5.2 Asset Age Profile'!CB33","v":0},{"$f":"'[2]5.2 Asset Age Profile'!CC33+'[3]5.2 Asset Age Profile'!CC33","v":0},{"$f":"'[2]5.2 Asset Age Profile'!CD33+'[3]5.2 Asset Age Profile'!CD33","v":0},{"$f":"'[2]5.2 Asset Age Profile'!CE33+'[3]5.2 Asset Age Profile'!CE33","v":0},{"$f":"'[2]5.2 Asset Age Profile'!CF33+'[3]5.2 Asset Age Profile'!CF33","v":0},{"$f":"'[2]5.2 Asset Age Profile'!CG33+'[3]5.2 Asset Age Profile'!CG33","v":0},{"$f":"'[2]5.2 Asset Age Profile'!CH33+'[3]5.2 Asset Age Profile'!CH33","v":0},{"$f":"'[2]5.2 Asset Age Profile'!CI33+'[3]5.2 Asset Age Profile'!CI33","v":0},{"$f":"'[2]5.2 Asset Age Profile'!CJ33+'[3]5.2 Asset Age Profile'!CJ33","v":0},{"$f":"'[2]5.2 Asset Age Profile'!CK33+'[3]5.2 Asset Age Profile'!CK33","v":0},{"$f":"'[2]5.2 Asset Age Profile'!CL33+'[3]5.2 Asset Age Profile'!CL33","v":0},{"$f":"'[2]5.2 Asset Age Profile'!CM33+'[3]5.2 Asset Age Profile'!CM33","v":0},{"$f":"'[2]5.2 Asset Age Profile'!CN33+'[3]5.2 Asset Age Profile'!CN33","v":0},{"$f":"'[2]5.2 Asset Age Profile'!CO33+'[3]5.2 Asset Age Profile'!CO33","v":0},{"$f":"'[2]5.2 Asset Age Profile'!CP33+'[3]5.2 Asset Age Profile'!CP33","v":0},{"$f":"'[2]5.2 Asset Age Profile'!CQ33+'[3]5.2 Asset Age Profile'!CQ33","v":0},{"$f":"'[2]5.2 Asset Age Profile'!CR33+'[3]5.2 Asset Age Profile'!CR33","v":0},{"$f":"'[2]5.2 Asset Age Profile'!CS33+'[3]5.2 Asset Age Profile'!CS33","v":0},{"$f":"'[2]5.2 Asset Age Profile'!CT33+'[3]5.2 Asset Age Profile'!CT33","v":0},{"$f":"'[2]5.2 Asset Age Profile'!CU33+'[3]5.2 Asset Age Profile'!CU33","v":0},{"$f":"'[2]5.2 Asset Age Profile'!CV33+'[3]5.2 Asset Age Profile'!CV33","v":0},{"$f":"'[2]5.2 Asset Age Profile'!CW33+'[3]5.2 Asset Age Profile'!CW33","v":0},{"$f":"'[2]5.2 Asset Age Profile'!CX33+'[3]5.2 Asset Age Profile'!CX33","v":0},{"$f":"'[2]5.2 Asset Age Profile'!CY33+'[3]5.2 Asset Age Profile'!CY33","v":0},{"$f":"'[2]5.2 Asset Age Profile'!CZ33+'[3]5.2 Asset Age Profile'!CZ33","v":0},{"$f":"'[2]5.2 Asset Age Profile'!DA33+'[3]5.2 Asset Age Profile'!DA33","v":0},{"$f":"'[2]5.2 Asset Age Profile'!DB33+'[3]5.2 Asset Age Profile'!DB33","v":0},{"$f":"'[2]5.2 Asset Age Profile'!DC33+'[3]5.2 Asset Age Profile'!DC33","v":0},{"$f":"'[2]5.2 Asset Age Profile'!DD33+'[3]5.2 Asset Age Profile'!DD33","v":0},{"$f":"'[2]5.2 Asset Age Profile'!DE33+'[3]5.2 Asset Age Profile'!DE33","v":0},{"$f":"'[2]5.2 Asset Age Profile'!DF33+'[3]5.2 Asset Age Profile'!DF33","v":0},{"$f":"'[2]5.2 Asset Age Profile'!DG33+'[3]5.2 Asset Age Profile'!DG33","v":0},{"$f":"'[2]5.2 Asset Age Profile'!DH33+'[3]5.2 Asset Age Profile'!DH33","v":0},{"$f":"'[2]5.2 Asset Age Profile'!DI33+'[3]5.2 Asset Age Profile'!DI33","v":0},{"$f":"'[2]5.2 Asset Age Profile'!DJ33+'[3]5.2 Asset Age Profile'!DJ33","v":0},{"$f":"'[2]5.2 Asset Age Profile'!DK33+'[3]5.2 Asset Age Profile'!DK33","v":0},{"$f":"'[2]5.2 Asset Age Profile'!DL33+'[3]5.2 Asset Age Profile'!DL33","v":0},{"$f":"'[2]5.2 Asset Age Profile'!DM33+'[3]5.2 Asset Age Profile'!DM33","v":0},{"$f":"'[2]5.2 Asset Age Profile'!DN33+'[3]5.2 Asset Age Profile'!DN33","v":0},{"$f":"'[2]5.2 Asset Age Profile'!DO33+'[3]5.2 Asset Age Profile'!DO33","v":0},{"$f":"'[2]5.2 Asset Age Profile'!DP33+'[3]5.2 Asset Age Profile'!DP33","v":0},{"$f":"'[2]5.2 Asset Age Profile'!DQ33+'[3]5.2 Asset Age Profile'!DQ33","v":0},{"$f":"'[2]5.2 Asset Age Profile'!DR33+'[3]5.2 Asset Age Profile'!DR33","v":0},{"$f":"'[2]5.2 Asset Age Profile'!DS33+'[3]5.2 Asset Age Profile'!DS33","v":0},{"$f":"'[2]5.2 Asset Age Profile'!DT33+'[3]5.2 Asset Age Profile'!DT33","v":0},{"$f":"'[2]5.2 Asset Age Profile'!DU33+'[3]5.2 Asset Age Profile'!DU33","v":0},{"$f":"'[2]5.2 Asset Age Profile'!DV33+'[3]5.2 Asset Age Profile'!DV33","v":0},{"$f":"'[2]5.2 Asset Age Profile'!DW33+'[3]5.2 Asset Age Profile'!DW33","v":0},{"$f":"'[2]5.2 Asset Age Profile'!DX33+'[3]5.2 Asset Age Profile'!DX33","v":0},{"$f":"'[2]5.2 Asset Age Profile'!DY33+'[3]5.2 Asset Age Profile'!DY33","v":0},{"$f":"'[2]5.2 Asset Age Profile'!DZ33+'[3]5.2 Asset Age Profile'!DZ33","v":0},{"$f":"'[2]5.2 Asset Age Profile'!EA33+'[3]5.2 Asset Age Profile'!EA33","v":0},{"$f":"'[2]5.2 Asset Age Profile'!EB33+'[3]5.2 Asset Age Profile'!EB33","v":0},{"$f":"'[2]5.2 Asset Age Profile'!EC33+'[3]5.2 Asset Age Profile'!EC33","v":0},{"$f":"'[2]5.2 Asset Age Profile'!ED33+'[3]5.2 Asset Age Profile'!ED33","v":0},{"$f":"'[2]5.2 Asset Age Profile'!EE33+'[3]5.2 Asset Age Profile'!EE33","v":0},{"$f":"'[2]5.2 Asset Age Profile'!EF33+'[3]5.2 Asset Age Profile'!EF33","v":0},{"$f":"'[2]5.2 Asset Age Profile'!EG33+'[3]5.2 Asset Age Profile'!EG33","v":0},{"$f":"'[2]5.2 Asset Age Profile'!EH33+'[3]5.2 Asset Age Profile'!EH33","v":0},{"$f":"'[2]5.2 Asset Age Profile'!EI33+'[3]5.2 Asset Age Profile'!EI33","v":0},{"$f":"'[2]5.2 Asset Age Profile'!EJ33+'[3]5.2 Asset Age Profile'!EJ33","v":0}]
["ED_ASS521_00024",null,"> 22 kV & < = 66 kV",null,null,null,null,null,null,null,null,null,null,{"$f":"'[2]5.2 Asset Age Profile'!N34+'[3]5.2 Asset Age Profile'!N34","v":0},{"$f":"'[2]5.2 Asset Age Profile'!O34+'[3]5.2 Asset Age Profile'!O34","v":0},{"$f":"'[2]5.2 Asset Age Profile'!P34+'[3]5.2 Asset Age Profile'!P34","v":0},{"$f":"'[2]5.2 Asset Age Profile'!Q34+'[3]5.2 Asset Age Profile'!Q34","v":0},{"$f":"'[2]5.2 Asset Age Profile'!R34+'[3]5.2 Asset Age Profile'!R34","v":0},{"$f":"'[2]5.2 Asset Age Profile'!S34+'[3]5.2 Asset Age Profile'!S34","v":0},{"$f":"'[2]5.2 Asset Age Profile'!T34+'[3]5.2 Asset Age Profile'!T34","v":0},{"$f":"'[2]5.2 Asset Age Profile'!U34+'[3]5.2 Asset Age Profile'!U34","v":0},{"$f":"'[2]5.2 Asset Age Profile'!V34+'[3]5.2 Asset Age Profile'!V34","v":0},{"$f":"'[2]5.2 Asset Age Profile'!W34+'[3]5.2 Asset Age Profile'!W34","v":0},{"$f":"'[2]5.2 Asset Age Profile'!X34+'[3]5.2 Asset Age Profile'!X34","v":0},{"$f":"'[2]5.2 Asset Age Profile'!Y34+'[3]5.2 Asset Age Profile'!Y34","v":0},{"$f":"'[2]5.2 Asset Age Profile'!Z34+'[3]5.2 Asset Age Profile'!Z34","v":0},{"$f":"'[2]5.2 Asset Age Profile'!AA34+'[3]5.2 Asset Age Profile'!AA34","v":0},{"$f":"'[2]5.2 Asset Age Profile'!AB34+'[3]5.2 Asset Age Profile'!AB34","v":0},{"$f":"'[2]5.2 Asset Age Profile'!AC34+'[3]5.2 Asset Age Profile'!AC34","v":0},{"$f":"'[2]5.2 Asset Age Profile'!AD34+'[3]5.2 Asset Age Profile'!AD34","v":0},{"$f":"'[2]5.2 Asset Age Profile'!AE34+'[3]5.2 Asset Age Profile'!AE34","v":0},{"$f":"'[2]5.2 Asset Age Profile'!AF34+'[3]5.2 Asset Age Profile'!AF34","v":0},{"$f":"'[2]5.2 Asset Age Profile'!AG34+'[3]5.2 Asset Age Profile'!AG34","v":0},{"$f":"'[2]5.2 Asset Age Profile'!AH34+'[3]5.2 Asset Age Profile'!AH34","v":0},{"$f":"'[2]5.2 Asset Age Profile'!AI34+'[3]5.2 Asset Age Profile'!AI34","v":0},{"$f":"'[2]5.2 Asset Age Profile'!AJ34+'[3]5.2 Asset Age Profile'!AJ34","v":0},{"$f":"'[2]5.2 Asset Age Profile'!AK34+'[3]5.2 Asset Age Profile'!AK34","v":0},{"$f":"'[2]5.2 Asset Age Profile'!AL34+'[3]5.2 Asset Age Profile'!AL34","v":0},{"$f":"'[2]5.2 Asset Age Profile'!AM34+'[3]5.2 Asset Age Profile'!AM34","v":0},{"$f":"'[2]5.2 Asset Age Profile'!AN34+'[3]5.2 Asset Age Profile'!AN34","v":0},{"$f":"'[2]5.2 Asset Age Profile'!AO34+'[3]5.2 Asset Age Profile'!AO34","v":0},{"$f":"'[2]5.2 Asset Age Profile'!AP34+'[3]5.2 Asset Age Profile'!AP34","v":0},{"$f":"'[2]5.2 Asset Age Profile'!AQ34+'[3]5.2 Asset Age Profile'!AQ34","v":0},{"$f":"'[2]5.2 Asset Age Profile'!AR34+'[3]5.2 Asset Age Profile'!AR34","v":0},{"$f":"'[2]5.2 Asset Age Profile'!AS34+'[3]5.2 Asset Age Profile'!AS34","v":0},{"$f":"'[2]5.2 Asset Age Profile'!AT34+'[3]5.2 Asset Age Profile'!AT34","v":0},{"$f":"'[2]5.2 Asset Age Profile'!AU34+'[3]5.2 Asset Age Profile'!AU34","v":0},{"$f":"'[2]5.2 Asset Age Profile'!AV34+'[3]5.2 Asset Age Profile'!AV34","v":0},{"$f":"'[2]5.2 Asset Age Profile'!AW34+'[3]5.2 Asset Age Profile'!AW34","v":0},{"$f":"'[2]5.2 Asset Age Profile'!AX34+'[3]5.2 Asset Age Profile'!AX34","v":0},{"$f":"'[2]5.2 Asset Age Profile'!AY34+'[3]5.2 Asset Age Profile'!AY34","v":0},{"$f":"'[2]5.2 Asset Age Profile'!AZ34+'[3]5.2 Asset Age Profile'!AZ34","v":0},{"$f":"'[2]5.2 Asset Age Profile'!BA34+'[3]5.2 Asset Age Profile'!BA34","v":0},{"$f":"'[2]5.2 Asset Age Profile'!BB34+'[3]5.2 Asset Age Profile'!BB34","v":0},{"$f":"'[2]5.2 Asset Age Profile'!BC34+'[3]5.2 Asset Age Profile'!BC34","v":0},{"$f":"'[2]5.2 Asset Age Profile'!BD34+'[3]5.2 Asset Age Profile'!BD34","v":0},{"$f":"'[2]5.2 Asset Age Profile'!BE34+'[3]5.2 Asset Age Profile'!BE34","v":0},{"$f":"'[2]5.2 Asset Age Profile'!BF34+'[3]5.2 Asset Age Profile'!BF34","v":0},{"$f":"'[2]5.2 Asset Age Profile'!BG34+'[3]5.2 Asset Age Profile'!BG34","v":0},{"$f":"'[2]5.2 Asset Age Profile'!BH34+'[3]5.2 Asset Age Profile'!BH34","v":0},{"$f":"'[2]5.2 Asset Age Profile'!BI34+'[3]5.2 Asset Age Profile'!BI34","v":0},{"$f":"'[2]5.2 Asset Age Profile'!BJ34+'[3]5.2 Asset Age Profile'!BJ34","v":0},{"$f":"'[2]5.2 Asset Age Profile'!BK34+'[3]5.2 Asset Age Profile'!BK34","v":0},{"$f":"'[2]5.2 Asset Age Profile'!BL34+'[3]5.2 Asset Age Profile'!BL34","v":0},{"$f":"'[2]5.2 Asset Age Profile'!BM34+'[3]5.2 Asset Age Profile'!BM34","v":0},{"$f":"'[2]5.2 Asset Age Profile'!BN34+'[3]5.2 Asset Age Profile'!BN34","v":0},{"$f":"'[2]5.2 Asset Age Profile'!BO34+'[3]5.2 Asset Age Profile'!BO34","v":0},{"$f":"'[2]5.2 Asset Age Profile'!BP34+'[3]5.2 Asset Age Profile'!BP34","v":0},{"$f":"'[2]5.2 Asset Age Profile'!BQ34+'[3]5.2 Asset Age Profile'!BQ34","v":0},{"$f":"'[2]5.2 Asset Age Profile'!BR34+'[3]5.2 Asset Age Profile'!BR34","v":0},{"$f":"'[2]5.2 Asset Age Profile'!BS34+'[3]5.2 Asset Age Profile'!BS34","v":0},{"$f":"'[2]5.2 Asset Age Profile'!BT34+'[3]5.2 Asset Age Profile'!BT34","v":0},{"$f":"'[2]5.2 Asset Age Profile'!BU34+'[3]5.2 Asset Age Profile'!BU34","v":0},{"$f":"'[2]5.2 Asset Age Profile'!BV34+'[3]5.2 Asset Age Profile'!BV34","v":0},{"$f":"'[2]5.2 Asset Age Profile'!BW34+'[3]5.2 Asset Age Profile'!BW34","v":0},{"$f":"'[2]5.2 Asset Age Profile'!BX34+'[3]5.2 Asset Age Profile'!BX34","v":0},{"$f":"'[2]5.2 Asset Age Profile'!BY34+'[3]5.2 Asset Age Profile'!BY34","v":0},{"$f":"'[2]5.2 Asset Age Profile'!BZ34+'[3]5.2 Asset Age Profile'!BZ34","v":0},{"$f":"'[2]5.2 Asset Age Profile'!CA34+'[3]5.2 Asset Age Profile'!CA34","v":0},{"$f":"'[2]5.2 Asset Age Profile'!CB34+'[3]5.2 Asset Age Profile'!CB34","v":0},{"$f":"'[2]5.2 Asset Age Profile'!CC34+'[3]5.2 Asset Age Profile'!CC34","v":0},{"$f":"'[2]5.2 Asset Age Profile'!CD34+'[3]5.2 Asset Age Profile'!CD34","v":0},{"$f":"'[2]5.2 Asset Age Profile'!CE34+'[3]5.2 Asset Age Profile'!CE34","v":0},{"$f":"'[2]5.2 Asset Age Profile'!CF34+'[3]5.2 Asset Age Profile'!CF34","v":0},{"$f":"'[2]5.2 Asset Age Profile'!CG34+'[3]5.2 Asset Age Profile'!CG34","v":0},{"$f":"'[2]5.2 Asset Age Profile'!CH34+'[3]5.2 Asset Age Profile'!CH34","v":0},{"$f":"'[2]5.2 Asset Age Profile'!CI34+'[3]5.2 Asset Age Profile'!CI34","v":0},{"$f":"'[2]5.2 Asset Age Profile'!CJ34+'[3]5.2 Asset Age Profile'!CJ34","v":0},{"$f":"'[2]5.2 Asset Age Profile'!CK34+'[3]5.2 Asset Age Profile'!CK34","v":0},{"$f":"'[2]5.2 Asset Age Profile'!CL34+'[3]5.2 Asset Age Profile'!CL34","v":0},{"$f":"'[2]5.2 Asset Age Profile'!CM34+'[3]5.2 Asset Age Profile'!CM34","v":0},{"$f":"'[2]5.2 Asset Age Profile'!CN34+'[3]5.2 Asset Age Profile'!CN34","v":0},{"$f":"'[2]5.2 Asset Age Profile'!CO34+'[3]5.2 Asset Age Profile'!CO34","v":0},{"$f":"'[2]5.2 Asset Age Profile'!CP34+'[3]5.2 Asset Age Profile'!CP34","v":0},{"$f":"'[2]5.2 Asset Age Profile'!CQ34+'[3]5.2 Asset Age Profile'!CQ34","v":0},{"$f":"'[2]5.2 Asset Age Profile'!CR34+'[3]5.2 Asset Age Profile'!CR34","v":0},{"$f":"'[2]5.2 Asset Age Profile'!CS34+'[3]5.2 Asset Age Profile'!CS34","v":0},{"$f":"'[2]5.2 Asset Age Profile'!CT34+'[3]5.2 Asset Age Profile'!CT34","v":0},{"$f":"'[2]5.2 Asset Age Profile'!CU34+'[3]5.2 Asset Age Profile'!CU34","v":0},{"$f":"'[2]5.2 Asset Age Profile'!CV34+'[3]5.2 Asset Age Profile'!CV34","v":0},{"$f":"'[2]5.2 Asset Age Profile'!CW34+'[3]5.2 Asset Age Profile'!CW34","v":0},{"$f":"'[2]5.2 Asset Age Profile'!CX34+'[3]5.2 Asset Age Profile'!CX34","v":0},{"$f":"'[2]5.2 Asset Age Profile'!CY34+'[3]5.2 Asset Age Profile'!CY34","v":0},{"$f":"'[2]5.2 Asset Age Profile'!CZ34+'[3]5.2 Asset Age Profile'!CZ34","v":0},{"$f":"'[2]5.2 Asset Age Profile'!DA34+'[3]5.2 Asset Age Profile'!DA34","v":0},{"$f":"'[2]5.2 Asset Age Profile'!DB34+'[3]5.2 Asset Age Profile'!DB34","v":0},{"$f":"'[2]5.2 Asset Age Profile'!DC34+'[3]5.2 Asset Age Profile'!DC34","v":0},{"$f":"'[2]5.2 Asset Age Profile'!DD34+'[3]5.2 Asset Age Profile'!DD34","v":0},{"$f":"'[2]5.2 Asset Age Profile'!DE34+'[3]5.2 Asset Age Profile'!DE34","v":0},{"$f":"'[2]5.2 Asset Age Profile'!DF34+'[3]5.2 Asset Age Profile'!DF34","v":0},{"$f":"'[2]5.2 Asset Age Profile'!DG34+'[3]5.2 Asset Age Profile'!DG34","v":0},{"$f":"'[2]5.2 Asset Age Profile'!DH34+'[3]5.2 Asset Age Profile'!DH34","v":0},{"$f":"'[2]5.2 Asset Age Profile'!DI34+'[3]5.2 Asset Age Profile'!DI34","v":0},{"$f":"'[2]5.2 Asset Age Profile'!DJ34+'[3]5.2 Asset Age Profile'!DJ34","v":0},{"$f":"'[2]5.2 Asset Age Profile'!DK34+'[3]5.2 Asset Age Profile'!DK34","v":0},{"$f":"'[2]5.2 Asset Age Profile'!DL34+'[3]5.2 Asset Age Profile'!DL34","v":0},{"$f":"'[2]5.2 Asset Age Profile'!DM34+'[3]5.2 Asset Age Profile'!DM34","v":0},{"$f":"'[2]5.2 Asset Age Profile'!DN34+'[3]5.2 Asset Age Profile'!DN34","v":0},{"$f":"'[2]5.2 Asset Age Profile'!DO34+'[3]5.2 Asset Age Profile'!DO34","v":0},{"$f":"'[2]5.2 Asset Age Profile'!DP34+'[3]5.2 Asset Age Profile'!DP34","v":0},{"$f":"'[2]5.2 Asset Age Profile'!DQ34+'[3]5.2 Asset Age Profile'!DQ34","v":0},{"$f":"'[2]5.2 Asset Age Profile'!DR34+'[3]5.2 Asset Age Profile'!DR34","v":0},{"$f":"'[2]5.2 Asset Age Profile'!DS34+'[3]5.2 Asset Age Profile'!DS34","v":0},{"$f":"'[2]5.2 Asset Age Profile'!DT34+'[3]5.2 Asset Age Profile'!DT34","v":0},{"$f":"'[2]5.2 Asset Age Profile'!DU34+'[3]5.2 Asset Age Profile'!DU34","v":0},{"$f":"'[2]5.2 Asset Age Profile'!DV34+'[3]5.2 Asset Age Profile'!DV34","v":0},{"$f":"'[2]5.2 Asset Age Profile'!DW34+'[3]5.2 Asset Age Profile'!DW34","v":0},{"$f":"'[2]5.2 Asset Age Profile'!DX34+'[3]5.2 Asset Age Profile'!DX34","v":0},{"$f":"'[2]5.2 Asset Age Profile'!DY34+'[3]5.2 Asset Age Profile'!DY34","v":0},{"$f":"'[2]5.2 Asset Age Profile'!DZ34+'[3]5.2 Asset Age Profile'!DZ34","v":0},{"$f":"'[2]5.2 Asset Age Profile'!EA34+'[3]5.2 Asset Age Profile'!EA34","v":0},{"$f":"'[2]5.2 Asset Age Profile'!EB34+'[3]5.2 Asset Age Profile'!EB34","v":0},{"$f":"'[2]5.2 Asset Age Profile'!EC34+'[3]5.2 Asset Age Profile'!EC34","v":0},{"$f":"'[2]5.2 Asset Age Profile'!ED34+'[3]5.2 Asset Age Profile'!ED34","v":0},{"$f":"'[2]5.2 Asset Age Profile'!EE34+'[3]5.2 Asset Age Profile'!EE34","v":0},{"$f":"'[2]5.2 Asset Age Profile'!EF34+'[3]5.2 Asset Age Profile'!EF34","v":0},{"$f":"'[2]5.2 Asset Age Profile'!EG34+'[3]5.2 Asset Age Profile'!EG34","v":0},{"$f":"'[2]5.2 Asset Age Profile'!EH34+'[3]5.2 Asset Age Profile'!EH34","v":0},{"$f":"'[2]5.2 Asset Age Profile'!EI34+'[3]5.2 Asset Age Profile'!EI34","v":0},{"$f":"'[2]5.2 Asset Age Profile'!EJ34+'[3]5.2 Asset Age Profile'!EJ34","v":0}]
["ED_ASS521_00025",null,"> 66 kV & < = 132 kV",null,null,null,null,null,null,null,null,null,null,{"$f":"'[2]5.2 Asset Age Profile'!N35+'[3]5.2 Asset Age Profile'!N35","v":0},{"$f":"'[2]5.2 Asset Age Profile'!O35+'[3]5.2 Asset Age Profile'!O35","v":0},{"$f":"'[2]5.2 Asset Age Profile'!P35+'[3]5.2 Asset Age Profile'!P35","v":0},{"$f":"'[2]5.2 Asset Age Profile'!Q35+'[3]5.2 Asset Age Profile'!Q35","v":0},{"$f":"'[2]5.2 Asset Age Profile'!R35+'[3]5.2 Asset Age Profile'!R35","v":0},{"$f":"'[2]5.2 Asset Age Profile'!S35+'[3]5.2 Asset Age Profile'!S35","v":0},{"$f":"'[2]5.2 Asset Age Profile'!T35+'[3]5.2 Asset Age Profile'!T35","v":0},{"$f":"'[2]5.2 Asset Age Profile'!U35+'[3]5.2 Asset Age Profile'!U35","v":0},{"$f":"'[2]5.2 Asset Age Profile'!V35+'[3]5.2 Asset Age Profile'!V35","v":0},{"$f":"'[2]5.2 Asset Age Profile'!W35+'[3]5.2 Asset Age Profile'!W35","v":0},{"$f":"'[2]5.2 Asset Age Profile'!X35+'[3]5.2 Asset Age Profile'!X35","v":0},{"$f":"'[2]5.2 Asset Age Profile'!Y35+'[3]5.2 Asset Age Profile'!Y35","v":0},{"$f":"'[2]5.2 Asset Age Profile'!Z35+'[3]5.2 Asset Age Profile'!Z35","v":0},{"$f":"'[2]5.2 Asset Age Profile'!AA35+'[3]5.2 Asset Age Profile'!AA35","v":0},{"$f":"'[2]5.2 Asset Age Profile'!AB35+'[3]5.2 Asset Age Profile'!AB35","v":0},{"$f":"'[2]5.2 Asset Age Profile'!AC35+'[3]5.2 Asset Age Profile'!AC35","v":0},{"$f":"'[2]5.2 Asset Age Profile'!AD35+'[3]5.2 Asset Age Profile'!AD35","v":0},{"$f":"'[2]5.2 Asset Age Profile'!AE35+'[3]5.2 Asset Age Profile'!AE35","v":0},{"$f":"'[2]5.2 Asset Age Profile'!AF35+'[3]5.2 Asset Age Profile'!AF35","v":0},{"$f":"'[2]5.2 Asset Age Profile'!AG35+'[3]5.2 Asset Age Profile'!AG35","v":0},{"$f":"'[2]5.2 Asset Age Profile'!AH35+'[3]5.2 Asset Age Profile'!AH35","v":0},{"$f":"'[2]5.2 Asset Age Profile'!AI35+'[3]5.2 Asset Age Profile'!AI35","v":0},{"$f":"'[2]5.2 Asset Age Profile'!AJ35+'[3]5.2 Asset Age Profile'!AJ35","v":0},{"$f":"'[2]5.2 Asset Age Profile'!AK35+'[3]5.2 Asset Age Profile'!AK35","v":0},{"$f":"'[2]5.2 Asset Age Profile'!AL35+'[3]5.2 Asset Age Profile'!AL35","v":0},{"$f":"'[2]5.2 Asset Age Profile'!AM35+'[3]5.2 Asset Age Profile'!AM35","v":0},{"$f":"'[2]5.2 Asset Age Profile'!AN35+'[3]5.2 Asset Age Profile'!AN35","v":0},{"$f":"'[2]5.2 Asset Age Profile'!AO35+'[3]5.2 Asset Age Profile'!AO35","v":0},{"$f":"'[2]5.2 Asset Age Profile'!AP35+'[3]5.2 Asset Age Profile'!AP35","v":0},{"$f":"'[2]5.2 Asset Age Profile'!AQ35+'[3]5.2 Asset Age Profile'!AQ35","v":0},{"$f":"'[2]5.2 Asset Age Profile'!AR35+'[3]5.2 Asset Age Profile'!AR35","v":0},{"$f":"'[2]5.2 Asset Age Profile'!AS35+'[3]5.2 Asset Age Profile'!AS35","v":0},{"$f":"'[2]5.2 Asset Age Profile'!AT35+'[3]5.2 Asset Age Profile'!AT35","v":0},{"$f":"'[2]5.2 Asset Age Profile'!AU35+'[3]5.2 Asset Age Profile'!AU35","v":0},{"$f":"'[2]5.2 Asset Age Profile'!AV35+'[3]5.2 Asset Age Profile'!AV35","v":0},{"$f":"'[2]5.2 Asset Age Profile'!AW35+'[3]5.2 Asset Age Profile'!AW35","v":0},{"$f":"'[2]5.2 Asset Age Profile'!AX35+'[3]5.2 Asset Age Profile'!AX35","v":0},{"$f":"'[2]5.2 Asset Age Profile'!AY35+'[3]5.2 Asset Age Profile'!AY35","v":0},{"$f":"'[2]5.2 Asset Age Profile'!AZ35+'[3]5.2 Asset Age Profile'!AZ35","v":0},{"$f":"'[2]5.2 Asset Age Profile'!BA35+'[3]5.2 Asset Age Profile'!BA35","v":0},{"$f":"'[2]5.2 Asset Age Profile'!BB35+'[3]5.2 Asset Age Profile'!BB35","v":0},{"$f":"'[2]5.2 Asset Age Profile'!BC35+'[3]5.2 Asset Age Profile'!BC35","v":0},{"$f":"'[2]5.2 Asset Age Profile'!BD35+'[3]5.2 Asset Age Profile'!BD35","v":0},{"$f":"'[2]5.2 Asset Age Profile'!BE35+'[3]5.2 Asset Age Profile'!BE35","v":0},{"$f":"'[2]5.2 Asset Age Profile'!BF35+'[3]5.2 Asset Age Profile'!BF35","v":0},{"$f":"'[2]5.2 Asset Age Profile'!BG35+'[3]5.2 Asset Age Profile'!BG35","v":0},{"$f":"'[2]5.2 Asset Age Profile'!BH35+'[3]5.2 Asset Age Profile'!BH35","v":0},{"$f":"'[2]5.2 Asset Age Profile'!BI35+'[3]5.2 Asset Age Profile'!BI35","v":0},{"$f":"'[2]5.2 Asset Age Profile'!BJ35+'[3]5.2 Asset Age Profile'!BJ35","v":0},{"$f":"'[2]5.2 Asset Age Profile'!BK35+'[3]5.2 Asset Age Profile'!BK35","v":0},{"$f":"'[2]5.2 Asset Age Profile'!BL35+'[3]5.2 Asset Age Profile'!BL35","v":0},{"$f":"'[2]5.2 Asset Age Profile'!BM35+'[3]5.2 Asset Age Profile'!BM35","v":0},{"$f":"'[2]5.2 Asset Age Profile'!BN35+'[3]5.2 Asset Age Profile'!BN35","v":0},{"$f":"'[2]5.2 Asset Age Profile'!BO35+'[3]5.2 Asset Age Profile'!BO35","v":0},{"$f":"'[2]5.2 Asset Age Profile'!BP35+'[3]5.2 Asset Age Profile'!BP35","v":0},{"$f":"'[2]5.2 Asset Age Profile'!BQ35+'[3]5.2 Asset Age Profile'!BQ35","v":0},{"$f":"'[2]5.2 Asset Age Profile'!BR35+'[3]5.2 Asset Age Profile'!BR35","v":0},{"$f":"'[2]5.2 Asset Age Profile'!BS35+'[3]5.2 Asset Age Profile'!BS35","v":0},{"$f":"'[2]5.2 Asset Age Profile'!BT35+'[3]5.2 Asset Age Profile'!BT35","v":0},{"$f":"'[2]5.2 Asset Age Profile'!BU35+'[3]5.2 Asset Age Profile'!BU35","v":0},{"$f":"'[2]5.2 Asset Age Profile'!BV35+'[3]5.2 Asset Age Profile'!BV35","v":0},{"$f":"'[2]5.2 Asset Age Profile'!BW35+'[3]5.2 Asset Age Profile'!BW35","v":0},{"$f":"'[2]5.2 Asset Age Profile'!BX35+'[3]5.2 Asset Age Profile'!BX35","v":0},{"$f":"'[2]5.2 Asset Age Profile'!BY35+'[3]5.2 Asset Age Profile'!BY35","v":0},{"$f":"'[2]5.2 Asset Age Profile'!BZ35+'[3]5.2 Asset Age Profile'!BZ35","v":0},{"$f":"'[2]5.2 Asset Age Profile'!CA35+'[3]5.2 Asset Age Profile'!CA35","v":0},{"$f":"'[2]5.2 Asset Age Profile'!CB35+'[3]5.2 Asset Age Profile'!CB35","v":0},{"$f":"'[2]5.2 Asset Age Profile'!CC35+'[3]5.2 Asset Age Profile'!CC35","v":0},{"$f":"'[2]5.2 Asset Age Profile'!CD35+'[3]5.2 Asset Age Profile'!CD35","v":0},{"$f":"'[2]5.2 Asset Age Profile'!CE35+'[3]5.2 Asset Age Profile'!CE35","v":0},{"$f":"'[2]5.2 Asset Age Profile'!CF35+'[3]5.2 Asset Age Profile'!CF35","v":0},{"$f":"'[2]5.2 Asset Age Profile'!CG35+'[3]5.2 Asset Age Profile'!CG35","v":0},{"$f":"'[2]5.2 Asset Age Profile'!CH35+'[3]5.2 Asset Age Profile'!CH35","v":0},{"$f":"'[2]5.2 Asset Age Profile'!CI35+'[3]5.2 Asset Age Profile'!CI35","v":0},{"$f":"'[2]5.2 Asset Age Profile'!CJ35+'[3]5.2 Asset Age Profile'!CJ35","v":0},{"$f":"'[2]5.2 Asset Age Profile'!CK35+'[3]5.2 Asset Age Profile'!CK35","v":0},{"$f":"'[2]5.2 Asset Age Profile'!CL35+'[3]5.2 Asset Age Profile'!CL35","v":0},{"$f":"'[2]5.2 Asset Age Profile'!CM35+'[3]5.2 Asset Age Profile'!CM35","v":0},{"$f":"'[2]5.2 Asset Age Profile'!CN35+'[3]5.2 Asset Age Profile'!CN35","v":0},{"$f":"'[2]5.2 Asset Age Profile'!CO35+'[3]5.2 Asset Age Profile'!CO35","v":0},{"$f":"'[2]5.2 Asset Age Profile'!CP35+'[3]5.2 Asset Age Profile'!CP35","v":0},{"$f":"'[2]5.2 Asset Age Profile'!CQ35+'[3]5.2 Asset Age Profile'!CQ35","v":0},{"$f":"'[2]5.2 Asset Age Profile'!CR35+'[3]5.2 Asset Age Profile'!CR35","v":0},{"$f":"'[2]5.2 Asset Age Profile'!CS35+'[3]5.2 Asset Age Profile'!CS35","v":0},{"$f":"'[2]5.2 Asset Age Profile'!CT35+'[3]5.2 Asset Age Profile'!CT35","v":0},{"$f":"'[2]5.2 Asset Age Profile'!CU35+'[3]5.2 Asset Age Profile'!CU35","v":0},{"$f":"'[2]5.2 Asset Age Profile'!CV35+'[3]5.2 Asset Age Profile'!CV35","v":0},{"$f":"'[2]5.2 Asset Age Profile'!CW35+'[3]5.2 Asset Age Profile'!CW35","v":0},{"$f":"'[2]5.2 Asset Age Profile'!CX35+'[3]5.2 Asset Age Profile'!CX35","v":0},{"$f":"'[2]5.2 Asset Age Profile'!CY35+'[3]5.2 Asset Age Profile'!CY35","v":0},{"$f":"'[2]5.2 Asset Age Profile'!CZ35+'[3]5.2 Asset Age Profile'!CZ35","v":0},{"$f":"'[2]5.2 Asset Age Profile'!DA35+'[3]5.2 Asset Age Profile'!DA35","v":0},{"$f":"'[2]5.2 Asset Age Profile'!DB35+'[3]5.2 Asset Age Profile'!DB35","v":0},{"$f":"'[2]5.2 Asset Age Profile'!DC35+'[3]5.2 Asset Age Profile'!DC35","v":0},{"$f":"'[2]5.2 Asset Age Profile'!DD35+'[3]5.2 Asset Age Profile'!DD35","v":0},{"$f":"'[2]5.2 Asset Age Profile'!DE35+'[3]5.2 Asset Age Profile'!DE35","v":0},{"$f":"'[2]5.2 Asset Age Profile'!DF35+'[3]5.2 Asset Age Profile'!DF35","v":0},{"$f":"'[2]5.2 Asset Age Profile'!DG35+'[3]5.2 Asset Age Profile'!DG35","v":0},{"$f":"'[2]5.2 Asset Age Profile'!DH35+'[3]5.2 Asset Age Profile'!DH35","v":0},{"$f":"'[2]5.2 Asset Age Profile'!DI35+'[3]5.2 Asset Age Profile'!DI35","v":0},{"$f":"'[2]5.2 Asset Age Profile'!DJ35+'[3]5.2 Asset Age Profile'!DJ35","v":0},{"$f":"'[2]5.2 Asset Age Profile'!DK35+'[3]5.2 Asset Age Profile'!DK35","v":0},{"$f":"'[2]5.2 Asset Age Profile'!DL35+'[3]5.2 Asset Age Profile'!DL35","v":0},{"$f":"'[2]5.2 Asset Age Profile'!DM35+'[3]5.2 Asset Age Profile'!DM35","v":0},{"$f":"'[2]5.2 Asset Age Profile'!DN35+'[3]5.2 Asset Age Profile'!DN35","v":0},{"$f":"'[2]5.2 Asset Age Profile'!DO35+'[3]5.2 Asset Age Profile'!DO35","v":0},{"$f":"'[2]5.2 Asset Age Profile'!DP35+'[3]5.2 Asset Age Profile'!DP35","v":0},{"$f":"'[2]5.2 Asset Age Profile'!DQ35+'[3]5.2 Asset Age Profile'!DQ35","v":0},{"$f":"'[2]5.2 Asset Age Profile'!DR35+'[3]5.2 Asset Age Profile'!DR35","v":0},{"$f":"'[2]5.2 Asset Age Profile'!DS35+'[3]5.2 Asset Age Profile'!DS35","v":0},{"$f":"'[2]5.2 Asset Age Profile'!DT35+'[3]5.2 Asset Age Profile'!DT35","v":0},{"$f":"'[2]5.2 Asset Age Profile'!DU35+'[3]5.2 Asset Age Profile'!DU35","v":0},{"$f":"'[2]5.2 Asset Age Profile'!DV35+'[3]5.2 Asset Age Profile'!DV35","v":0},{"$f":"'[2]5.2 Asset Age Profile'!DW35+'[3]5.2 Asset Age Profile'!DW35","v":0},{"$f":"'[2]5.2 Asset Age Profile'!DX35+'[3]5.2 Asset Age Profile'!DX35","v":0},{"$f":"'[2]5.2 Asset Age Profile'!DY35+'[3]5.2 Asset Age Profile'!DY35","v":0},{"$f":"'[2]5.2 Asset Age Profile'!DZ35+'[3]5.2 Asset Age Profile'!DZ35","v":0},{"$f":"'[2]5.2 Asset Age Profile'!EA35+'[3]5.2 Asset Age Profile'!EA35","v":0},{"$f":"'[2]5.2 Asset Age Profile'!EB35+'[3]5.2 Asset Age Profile'!EB35","v":0},{"$f":"'[2]5.2 Asset Age Profile'!EC35+'[3]5.2 Asset Age Profile'!EC35","v":0},{"$f":"'[2]5.2 Asset Age Profile'!ED35+'[3]5.2 Asset Age Profile'!ED35","v":0},{"$f":"'[2]5.2 Asset Age Profile'!EE35+'[3]5.2 Asset Age Profile'!EE35","v":0},{"$f":"'[2]5.2 Asset Age Profile'!EF35+'[3]5.2 Asset Age Profile'!EF35","v":0},{"$f":"'[2]5.2 Asset Age Profile'!EG35+'[3]5.2 Asset Age Profile'!EG35","v":0},{"$f":"'[2]5.2 Asset Age Profile'!EH35+'[3]5.2 Asset Age Profile'!EH35","v":0},{"$f":"'[2]5.2 Asset Age Profile'!EI35+'[3]5.2 Asset Age Profile'!EI35","v":0},{"$f":"'[2]5.2 Asset Age Profile'!EJ35+'[3]5.2 Asset Age Profile'!EJ35","v":0}]
["ED_ASS521_00026",null,"> 132 kV",null,null,null,null,null,null,null,null,null,null,{"$f":"'[2]5.2 Asset Age Profile'!N36+'[3]5.2 Asset Age Profile'!N36","v":0},{"$f":"'[2]5.2 Asset Age Profile'!O36+'[3]5.2 Asset Age Profile'!O36","v":0},{"$f":"'[2]5.2 Asset Age Profile'!P36+'[3]5.2 Asset Age Profile'!P36","v":0},{"$f":"'[2]5.2 Asset Age Profile'!Q36+'[3]5.2 Asset Age Profile'!Q36","v":0},{"$f":"'[2]5.2 Asset Age Profile'!R36+'[3]5.2 Asset Age Profile'!R36","v":0},{"$f":"'[2]5.2 Asset Age Profile'!S36+'[3]5.2 Asset Age Profile'!S36","v":0},{"$f":"'[2]5.2 Asset Age Profile'!T36+'[3]5.2 Asset Age Profile'!T36","v":0},{"$f":"'[2]5.2 Asset Age Profile'!U36+'[3]5.2 Asset Age Profile'!U36","v":0},{"$f":"'[2]5.2 Asset Age Profile'!V36+'[3]5.2 Asset Age Profile'!V36","v":0},{"$f":"'[2]5.2 Asset Age Profile'!W36+'[3]5.2 Asset Age Profile'!W36","v":0},{"$f":"'[2]5.2 Asset Age Profile'!X36+'[3]5.2 Asset Age Profile'!X36","v":0},{"$f":"'[2]5.2 Asset Age Profile'!Y36+'[3]5.2 Asset Age Profile'!Y36","v":0},{"$f":"'[2]5.2 Asset Age Profile'!Z36+'[3]5.2 Asset Age Profile'!Z36","v":0},{"$f":"'[2]5.2 Asset Age Profile'!AA36+'[3]5.2 Asset Age Profile'!AA36","v":0},{"$f":"'[2]5.2 Asset Age Profile'!AB36+'[3]5.2 Asset Age Profile'!AB36","v":0},{"$f":"'[2]5.2 Asset Age Profile'!AC36+'[3]5.2 Asset Age Profile'!AC36","v":0},{"$f":"'[2]5.2 Asset Age Profile'!AD36+'[3]5.2 Asset Age Profile'!AD36","v":0},{"$f":"'[2]5.2 Asset Age Profile'!AE36+'[3]5.2 Asset Age Profile'!AE36","v":0},{"$f":"'[2]5.2 Asset Age Profile'!AF36+'[3]5.2 Asset Age Profile'!AF36","v":0},{"$f":"'[2]5.2 Asset Age Profile'!AG36+'[3]5.2 Asset Age Profile'!AG36","v":0},{"$f":"'[2]5.2 Asset Age Profile'!AH36+'[3]5.2 Asset Age Profile'!AH36","v":0},{"$f":"'[2]5.2 Asset Age Profile'!AI36+'[3]5.2 Asset Age Profile'!AI36","v":0},{"$f":"'[2]5.2 Asset Age Profile'!AJ36+'[3]5.2 Asset Age Profile'!AJ36","v":0},{"$f":"'[2]5.2 Asset Age Profile'!AK36+'[3]5.2 Asset Age Profile'!AK36","v":0},{"$f":"'[2]5.2 Asset Age Profile'!AL36+'[3]5.2 Asset Age Profile'!AL36","v":0},{"$f":"'[2]5.2 Asset Age Profile'!AM36+'[3]5.2 Asset Age Profile'!AM36","v":0},{"$f":"'[2]5.2 Asset Age Profile'!AN36+'[3]5.2 Asset Age Profile'!AN36","v":0},{"$f":"'[2]5.2 Asset Age Profile'!AO36+'[3]5.2 Asset Age Profile'!AO36","v":0},{"$f":"'[2]5.2 Asset Age Profile'!AP36+'[3]5.2 Asset Age Profile'!AP36","v":0},{"$f":"'[2]5.2 Asset Age Profile'!AQ36+'[3]5.2 Asset Age Profile'!AQ36","v":0},{"$f":"'[2]5.2 Asset Age Profile'!AR36+'[3]5.2 Asset Age Profile'!AR36","v":0},{"$f":"'[2]5.2 Asset Age Profile'!AS36+'[3]5.2 Asset Age Profile'!AS36","v":0},{"$f":"'[2]5.2 Asset Age Profile'!AT36+'[3]5.2 Asset Age Profile'!AT36","v":0},{"$f":"'[2]5.2 Asset Age Profile'!AU36+'[3]5.2 Asset Age Profile'!AU36","v":0},{"$f":"'[2]5.2 Asset Age Profile'!AV36+'[3]5.2 Asset Age Profile'!AV36","v":0},{"$f":"'[2]5.2 Asset Age Profile'!AW36+'[3]5.2 Asset Age Profile'!AW36","v":0},{"$f":"'[2]5.2 Asset Age Profile'!AX36+'[3]5.2 Asset Age Profile'!AX36","v":0},{"$f":"'[2]5.2 Asset Age Profile'!AY36+'[3]5.2 Asset Age Profile'!AY36","v":0},{"$f":"'[2]5.2 Asset Age Profile'!AZ36+'[3]5.2 Asset Age Profile'!AZ36","v":0},{"$f":"'[2]5.2 Asset Age Profile'!BA36+'[3]5.2 Asset Age Profile'!BA36","v":0},{"$f":"'[2]5.2 Asset Age Profile'!BB36+'[3]5.2 Asset Age Profile'!BB36","v":0},{"$f":"'[2]5.2 Asset Age Profile'!BC36+'[3]5.2 Asset Age Profile'!BC36","v":0},{"$f":"'[2]5.2 Asset Age Profile'!BD36+'[3]5.2 Asset Age Profile'!BD36","v":0},{"$f":"'[2]5.2 Asset Age Profile'!BE36+'[3]5.2 Asset Age Profile'!BE36","v":0},{"$f":"'[2]5.2 Asset Age Profile'!BF36+'[3]5.2 Asset Age Profile'!BF36","v":0},{"$f":"'[2]5.2 Asset Age Profile'!BG36+'[3]5.2 Asset Age Profile'!BG36","v":0},{"$f":"'[2]5.2 Asset Age Profile'!BH36+'[3]5.2 Asset Age Profile'!BH36","v":0},{"$f":"'[2]5.2 Asset Age Profile'!BI36+'[3]5.2 Asset Age Profile'!BI36","v":0},{"$f":"'[2]5.2 Asset Age Profile'!BJ36+'[3]5.2 Asset Age Profile'!BJ36","v":0},{"$f":"'[2]5.2 Asset Age Profile'!BK36+'[3]5.2 Asset Age Profile'!BK36","v":0},{"$f":"'[2]5.2 Asset Age Profile'!BL36+'[3]5.2 Asset Age Profile'!BL36","v":0},{"$f":"'[2]5.2 Asset Age Profile'!BM36+'[3]5.2 Asset Age Profile'!BM36","v":0},{"$f":"'[2]5.2 Asset Age Profile'!BN36+'[3]5.2 Asset Age Profile'!BN36","v":0},{"$f":"'[2]5.2 Asset Age Profile'!BO36+'[3]5.2 Asset Age Profile'!BO36","v":0},{"$f":"'[2]5.2 Asset Age Profile'!BP36+'[3]5.2 Asset Age Profile'!BP36","v":0},{"$f":"'[2]5.2 Asset Age Profile'!BQ36+'[3]5.2 Asset Age Profile'!BQ36","v":0},{"$f":"'[2]5.2 Asset Age Profile'!BR36+'[3]5.2 Asset Age Profile'!BR36","v":0},{"$f":"'[2]5.2 Asset Age Profile'!BS36+'[3]5.2 Asset Age Profile'!BS36","v":0},{"$f":"'[2]5.2 Asset Age Profile'!BT36+'[3]5.2 Asset Age Profile'!BT36","v":0},{"$f":"'[2]5.2 Asset Age Profile'!BU36+'[3]5.2 Asset Age Profile'!BU36","v":0},{"$f":"'[2]5.2 Asset Age Profile'!BV36+'[3]5.2 Asset Age Profile'!BV36","v":0},{"$f":"'[2]5.2 Asset Age Profile'!BW36+'[3]5.2 Asset Age Profile'!BW36","v":0},{"$f":"'[2]5.2 Asset Age Profile'!BX36+'[3]5.2 Asset Age Profile'!BX36","v":0},{"$f":"'[2]5.2 Asset Age Profile'!BY36+'[3]5.2 Asset Age Profile'!BY36","v":0},{"$f":"'[2]5.2 Asset Age Profile'!BZ36+'[3]5.2 Asset Age Profile'!BZ36","v":0},{"$f":"'[2]5.2 Asset Age Profile'!CA36+'[3]5.2 Asset Age Profile'!CA36","v":0},{"$f":"'[2]5.2 Asset Age Profile'!CB36+'[3]5.2 Asset Age Profile'!CB36","v":0},{"$f":"'[2]5.2 Asset Age Profile'!CC36+'[3]5.2 Asset Age Profile'!CC36","v":0},{"$f":"'[2]5.2 Asset Age Profile'!CD36+'[3]5.2 Asset Age Profile'!CD36","v":0},{"$f":"'[2]5.2 Asset Age Profile'!CE36+'[3]5.2 Asset Age Profile'!CE36","v":0},{"$f":"'[2]5.2 Asset Age Profile'!CF36+'[3]5.2 Asset Age Profile'!CF36","v":0},{"$f":"'[2]5.2 Asset Age Profile'!CG36+'[3]5.2 Asset Age Profile'!CG36","v":0},{"$f":"'[2]5.2 Asset Age Profile'!CH36+'[3]5.2 Asset Age Profile'!CH36","v":0},{"$f":"'[2]5.2 Asset Age Profile'!CI36+'[3]5.2 Asset Age Profile'!CI36","v":0},{"$f":"'[2]5.2 Asset Age Profile'!CJ36+'[3]5.2 Asset Age Profile'!CJ36","v":0},{"$f":"'[2]5.2 Asset Age Profile'!CK36+'[3]5.2 Asset Age Profile'!CK36","v":0},{"$f":"'[2]5.2 Asset Age Profile'!CL36+'[3]5.2 Asset Age Profile'!CL36","v":0},{"$f":"'[2]5.2 Asset Age Profile'!CM36+'[3]5.2 Asset Age Profile'!CM36","v":0},{"$f":"'[2]5.2 Asset Age Profile'!CN36+'[3]5.2 Asset Age Profile'!CN36","v":0},{"$f":"'[2]5.2 Asset Age Profile'!CO36+'[3]5.2 Asset Age Profile'!CO36","v":0},{"$f":"'[2]5.2 Asset Age Profile'!CP36+'[3]5.2 Asset Age Profile'!CP36","v":0},{"$f":"'[2]5.2 Asset Age Profile'!CQ36+'[3]5.2 Asset Age Profile'!CQ36","v":0},{"$f":"'[2]5.2 Asset Age Profile'!CR36+'[3]5.2 Asset Age Profile'!CR36","v":0},{"$f":"'[2]5.2 Asset Age Profile'!CS36+'[3]5.2 Asset Age Profile'!CS36","v":0},{"$f":"'[2]5.2 Asset Age Profile'!CT36+'[3]5.2 Asset Age Profile'!CT36","v":0},{"$f":"'[2]5.2 Asset Age Profile'!CU36+'[3]5.2 Asset Age Profile'!CU36","v":0},{"$f":"'[2]5.2 Asset Age Profile'!CV36+'[3]5.2 Asset Age Profile'!CV36","v":0},{"$f":"'[2]5.2 Asset Age Profile'!CW36+'[3]5.2 Asset Age Profile'!CW36","v":0},{"$f":"'[2]5.2 Asset Age Profile'!CX36+'[3]5.2 Asset Age Profile'!CX36","v":0},{"$f":"'[2]5.2 Asset Age Profile'!CY36+'[3]5.2 Asset Age Profile'!CY36","v":0},{"$f":"'[2]5.2 Asset Age Profile'!CZ36+'[3]5.2 Asset Age Profile'!CZ36","v":0},{"$f":"'[2]5.2 Asset Age Profile'!DA36+'[3]5.2 Asset Age Profile'!DA36","v":0},{"$f":"'[2]5.2 Asset Age Profile'!DB36+'[3]5.2 Asset Age Profile'!DB36","v":0},{"$f":"'[2]5.2 Asset Age Profile'!DC36+'[3]5.2 Asset Age Profile'!DC36","v":0},{"$f":"'[2]5.2 Asset Age Profile'!DD36+'[3]5.2 Asset Age Profile'!DD36","v":0},{"$f":"'[2]5.2 Asset Age Profile'!DE36+'[3]5.2 Asset Age Profile'!DE36","v":0},{"$f":"'[2]5.2 Asset Age Profile'!DF36+'[3]5.2 Asset Age Profile'!DF36","v":0},{"$f":"'[2]5.2 Asset Age Profile'!DG36+'[3]5.2 Asset Age Profile'!DG36","v":0},{"$f":"'[2]5.2 Asset Age Profile'!DH36+'[3]5.2 Asset Age Profile'!DH36","v":0},{"$f":"'[2]5.2 Asset Age Profile'!DI36+'[3]5.2 Asset Age Profile'!DI36","v":0},{"$f":"'[2]5.2 Asset Age Profile'!DJ36+'[3]5.2 Asset Age Profile'!DJ36","v":0},{"$f":"'[2]5.2 Asset Age Profile'!DK36+'[3]5.2 Asset Age Profile'!DK36","v":0},{"$f":"'[2]5.2 Asset Age Profile'!DL36+'[3]5.2 Asset Age Profile'!DL36","v":0},{"$f":"'[2]5.2 Asset Age Profile'!DM36+'[3]5.2 Asset Age Profile'!DM36","v":0},{"$f":"'[2]5.2 Asset Age Profile'!DN36+'[3]5.2 Asset Age Profile'!DN36","v":0},{"$f":"'[2]5.2 Asset Age Profile'!DO36+'[3]5.2 Asset Age Profile'!DO36","v":0},{"$f":"'[2]5.2 Asset Age Profile'!DP36+'[3]5.2 Asset Age Profile'!DP36","v":0},{"$f":"'[2]5.2 Asset Age Profile'!DQ36+'[3]5.2 Asset Age Profile'!DQ36","v":0},{"$f":"'[2]5.2 Asset Age Profile'!DR36+'[3]5.2 Asset Age Profile'!DR36","v":0},{"$f":"'[2]5.2 Asset Age Profile'!DS36+'[3]5.2 Asset Age Profile'!DS36","v":0},{"$f":"'[2]5.2 Asset Age Profile'!DT36+'[3]5.2 Asset Age Profile'!DT36","v":0},{"$f":"'[2]5.2 Asset Age Profile'!DU36+'[3]5.2 Asset Age Profile'!DU36","v":0},{"$f":"'[2]5.2 Asset Age Profile'!DV36+'[3]5.2 Asset Age Profile'!DV36","v":0},{"$f":"'[2]5.2 Asset Age Profile'!DW36+'[3]5.2 Asset Age Profile'!DW36","v":0},{"$f":"'[2]5.2 Asset Age Profile'!DX36+'[3]5.2 Asset Age Profile'!DX36","v":0},{"$f":"'[2]5.2 Asset Age Profile'!DY36+'[3]5.2 Asset Age Profile'!DY36","v":0},{"$f":"'[2]5.2 Asset Age Profile'!DZ36+'[3]5.2 Asset Age Profile'!DZ36","v":0},{"$f":"'[2]5.2 Asset Age Profile'!EA36+'[3]5.2 Asset Age Profile'!EA36","v":0},{"$f":"'[2]5.2 Asset Age Profile'!EB36+'[3]5.2 Asset Age Profile'!EB36","v":0},{"$f":"'[2]5.2 Asset Age Profile'!EC36+'[3]5.2 Asset Age Profile'!EC36","v":0},{"$f":"'[2]5.2 Asset Age Profile'!ED36+'[3]5.2 Asset Age Profile'!ED36","v":0},{"$f":"'[2]5.2 Asset Age Profile'!EE36+'[3]5.2 Asset Age Profile'!EE36","v":0},{"$f":"'[2]5.2 Asset Age Profile'!EF36+'[3]5.2 Asset Age Profile'!EF36","v":0},{"$f":"'[2]5.2 Asset Age Profile'!EG36+'[3]5.2 Asset Age Profile'!EG36","v":0},{"$f":"'[2]5.2 Asset Age Profile'!EH36+'[3]5.2 Asset Age Profile'!EH36","v":0},{"$f":"'[2]5.2 Asset Age Profile'!EI36+'[3]5.2 Asset Age Profile'!EI36","v":0},{"$f":"'[2]5.2 Asset Age Profile'!EJ36+'[3]5.2 Asset Age Profile'!EJ36","v":0}]
["ED_ASS521_00027",null,"Other",null,null,null,null,null,null,null,null,null,null,{"$f":"'[2]5.2 Asset Age Profile'!N37+'[3]5.2 Asset Age Profile'!N37","v":0},{"$f":"'[2]5.2 Asset Age Profile'!O37+'[3]5.2 Asset Age Profile'!O37","v":0},{"$f":"'[2]5.2 Asset Age Profile'!P37+'[3]5.2 Asset Age Profile'!P37","v":0},{"$f":"'[2]5.2 Asset Age Profile'!Q37+'[3]5.2 Asset Age Profile'!Q37","v":0},{"$f":"'[2]5.2 Asset Age Profile'!R37+'[3]5.2 Asset Age Profile'!R37","v":0},{"$f":"'[2]5.2 Asset Age Profile'!S37+'[3]5.2 Asset Age Profile'!S37","v":0},{"$f":"'[2]5.2 Asset Age Profile'!T37+'[3]5.2 Asset Age Profile'!T37","v":0},{"$f":"'[2]5.2 Asset Age Profile'!U37+'[3]5.2 Asset Age Profile'!U37","v":0},{"$f":"'[2]5.2 Asset Age Profile'!V37+'[3]5.2 Asset Age Profile'!V37","v":0},{"$f":"'[2]5.2 Asset Age Profile'!W37+'[3]5.2 Asset Age Profile'!W37","v":0},{"$f":"'[2]5.2 Asset Age Profile'!X37+'[3]5.2 Asset Age Profile'!X37","v":0},{"$f":"'[2]5.2 Asset Age Profile'!Y37+'[3]5.2 Asset Age Profile'!Y37","v":0},{"$f":"'[2]5.2 Asset Age Profile'!Z37+'[3]5.2 Asset Age Profile'!Z37","v":0},{"$f":"'[2]5.2 Asset Age Profile'!AA37+'[3]5.2 Asset Age Profile'!AA37","v":0},{"$f":"'[2]5.2 Asset Age Profile'!AB37+'[3]5.2 Asset Age Profile'!AB37","v":0},{"$f":"'[2]5.2 Asset Age Profile'!AC37+'[3]5.2 Asset Age Profile'!AC37","v":0},{"$f":"'[2]5.2 Asset Age Profile'!AD37+'[3]5.2 Asset Age Profile'!AD37","v":0},{"$f":"'[2]5.2 Asset Age Profile'!AE37+'[3]5.2 Asset Age Profile'!AE37","v":0},{"$f":"'[2]5.2 Asset Age Profile'!AF37+'[3]5.2 Asset Age Profile'!AF37","v":0},{"$f":"'[2]5.2 Asset Age Profile'!AG37+'[3]5.2 Asset Age Profile'!AG37","v":0},{"$f":"'[2]5.2 Asset Age Profile'!AH37+'[3]5.2 Asset Age Profile'!AH37","v":0},{"$f":"'[2]5.2 Asset Age Profile'!AI37+'[3]5.2 Asset Age Profile'!AI37","v":0},{"$f":"'[2]5.2 Asset Age Profile'!AJ37+'[3]5.2 Asset Age Profile'!AJ37","v":0},{"$f":"'[2]5.2 Asset Age Profile'!AK37+'[3]5.2 Asset Age Profile'!AK37","v":0},{"$f":"'[2]5.2 Asset Age Profile'!AL37+'[3]5.2 Asset Age Profile'!AL37","v":0},{"$f":"'[2]5.2 Asset Age Profile'!AM37+'[3]5.2 Asset Age Profile'!AM37","v":0},{"$f":"'[2]5.2 Asset Age Profile'!AN37+'[3]5.2 Asset Age Profile'!AN37","v":0},{"$f":"'[2]5.2 Asset Age Profile'!AO37+'[3]5.2 Asset Age Profile'!AO37","v":0},{"$f":"'[2]5.2 Asset Age Profile'!AP37+'[3]5.2 Asset Age Profile'!AP37","v":0},{"$f":"'[2]5.2 Asset Age Profile'!AQ37+'[3]5.2 Asset Age Profile'!AQ37","v":0},{"$f":"'[2]5.2 Asset Age Profile'!AR37+'[3]5.2 Asset Age Profile'!AR37","v":0},{"$f":"'[2]5.2 Asset Age Profile'!AS37+'[3]5.2 Asset Age Profile'!AS37","v":0},{"$f":"'[2]5.2 Asset Age Profile'!AT37+'[3]5.2 Asset Age Profile'!AT37","v":0},{"$f":"'[2]5.2 Asset Age Profile'!AU37+'[3]5.2 Asset Age Profile'!AU37","v":0},{"$f":"'[2]5.2 Asset Age Profile'!AV37+'[3]5.2 Asset Age Profile'!AV37","v":0},{"$f":"'[2]5.2 Asset Age Profile'!AW37+'[3]5.2 Asset Age Profile'!AW37","v":0},{"$f":"'[2]5.2 Asset Age Profile'!AX37+'[3]5.2 Asset Age Profile'!AX37","v":0},{"$f":"'[2]5.2 Asset Age Profile'!AY37+'[3]5.2 Asset Age Profile'!AY37","v":0},{"$f":"'[2]5.2 Asset Age Profile'!AZ37+'[3]5.2 Asset Age Profile'!AZ37","v":0},{"$f":"'[2]5.2 Asset Age Profile'!BA37+'[3]5.2 Asset Age Profile'!BA37","v":0},{"$f":"'[2]5.2 Asset Age Profile'!BB37+'[3]5.2 Asset Age Profile'!BB37","v":0},{"$f":"'[2]5.2 Asset Age Profile'!BC37+'[3]5.2 Asset Age Profile'!BC37","v":0},{"$f":"'[2]5.2 Asset Age Profile'!BD37+'[3]5.2 Asset Age Profile'!BD37","v":0},{"$f":"'[2]5.2 Asset Age Profile'!BE37+'[3]5.2 Asset Age Profile'!BE37","v":0},{"$f":"'[2]5.2 Asset Age Profile'!BF37+'[3]5.2 Asset Age Profile'!BF37","v":0},{"$f":"'[2]5.2 Asset Age Profile'!BG37+'[3]5.2 Asset Age Profile'!BG37","v":0},{"$f":"'[2]5.2 Asset Age Profile'!BH37+'[3]5.2 Asset Age Profile'!BH37","v":0},{"$f":"'[2]5.2 Asset Age Profile'!BI37+'[3]5.2 Asset Age Profile'!BI37","v":0},{"$f":"'[2]5.2 Asset Age Profile'!BJ37+'[3]5.2 Asset Age Profile'!BJ37","v":0},{"$f":"'[2]5.2 Asset Age Profile'!BK37+'[3]5.2 Asset Age Profile'!BK37","v":0},{"$f":"'[2]5.2 Asset Age Profile'!BL37+'[3]5.2 Asset Age Profile'!BL37","v":0},{"$f":"'[2]5.2 Asset Age Profile'!BM37+'[3]5.2 Asset Age Profile'!BM37","v":0},{"$f":"'[2]5.2 Asset Age Profile'!BN37+'[3]5.2 Asset Age Profile'!BN37","v":0},{"$f":"'[2]5.2 Asset Age Profile'!BO37+'[3]5.2 Asset Age Profile'!BO37","v":0},{"$f":"'[2]5.2 Asset Age Profile'!BP37+'[3]5.2 Asset Age Profile'!BP37","v":0},{"$f":"'[2]5.2 Asset Age Profile'!BQ37+'[3]5.2 Asset Age Profile'!BQ37","v":0},{"$f":"'[2]5.2 Asset Age Profile'!BR37+'[3]5.2 Asset Age Profile'!BR37","v":0},{"$f":"'[2]5.2 Asset Age Profile'!BS37+'[3]5.2 Asset Age Profile'!BS37","v":0},{"$f":"'[2]5.2 Asset Age Profile'!BT37+'[3]5.2 Asset Age Profile'!BT37","v":0},{"$f":"'[2]5.2 Asset Age Profile'!BU37+'[3]5.2 Asset Age Profile'!BU37","v":0},{"$f":"'[2]5.2 Asset Age Profile'!BV37+'[3]5.2 Asset Age Profile'!BV37","v":0},{"$f":"'[2]5.2 Asset Age Profile'!BW37+'[3]5.2 Asset Age Profile'!BW37","v":0},{"$f":"'[2]5.2 Asset Age Profile'!BX37+'[3]5.2 Asset Age Profile'!BX37","v":0},{"$f":"'[2]5.2 Asset Age Profile'!BY37+'[3]5.2 Asset Age Profile'!BY37","v":0},{"$f":"'[2]5.2 Asset Age Profile'!BZ37+'[3]5.2 Asset Age Profile'!BZ37","v":0},{"$f":"'[2]5.2 Asset Age Profile'!CA37+'[3]5.2 Asset Age Profile'!CA37","v":0},{"$f":"'[2]5.2 Asset Age Profile'!CB37+'[3]5.2 Asset Age Profile'!CB37","v":0},{"$f":"'[2]5.2 Asset Age Profile'!CC37+'[3]5.2 Asset Age Profile'!CC37","v":0},{"$f":"'[2]5.2 Asset Age Profile'!CD37+'[3]5.2 Asset Age Profile'!CD37","v":0},{"$f":"'[2]5.2 Asset Age Profile'!CE37+'[3]5.2 Asset Age Profile'!CE37","v":0},{"$f":"'[2]5.2 Asset Age Profile'!CF37+'[3]5.2 Asset Age Profile'!CF37","v":0},{"$f":"'[2]5.2 Asset Age Profile'!CG37+'[3]5.2 Asset Age Profile'!CG37","v":0},{"$f":"'[2]5.2 Asset Age Profile'!CH37+'[3]5.2 Asset Age Profile'!CH37","v":0},{"$f":"'[2]5.2 Asset Age Profile'!CI37+'[3]5.2 Asset Age Profile'!CI37","v":0},{"$f":"'[2]5.2 Asset Age Profile'!CJ37+'[3]5.2 Asset Age Profile'!CJ37","v":0},{"$f":"'[2]5.2 Asset Age Profile'!CK37+'[3]5.2 Asset Age Profile'!CK37","v":0},{"$f":"'[2]5.2 Asset Age Profile'!CL37+'[3]5.2 Asset Age Profile'!CL37","v":0},{"$f":"'[2]5.2 Asset Age Profile'!CM37+'[3]5.2 Asset Age Profile'!CM37","v":0},{"$f":"'[2]5.2 Asset Age Profile'!CN37+'[3]5.2 Asset Age Profile'!CN37","v":0},{"$f":"'[2]5.2 Asset Age Profile'!CO37+'[3]5.2 Asset Age Profile'!CO37","v":0},{"$f":"'[2]5.2 Asset Age Profile'!CP37+'[3]5.2 Asset Age Profile'!CP37","v":0},{"$f":"'[2]5.2 Asset Age Profile'!CQ37+'[3]5.2 Asset Age Profile'!CQ37","v":0},{"$f":"'[2]5.2 Asset Age Profile'!CR37+'[3]5.2 Asset Age Profile'!CR37","v":0},{"$f":"'[2]5.2 Asset Age Profile'!CS37+'[3]5.2 Asset Age Profile'!CS37","v":0},{"$f":"'[2]5.2 Asset Age Profile'!CT37+'[3]5.2 Asset Age Profile'!CT37","v":0},{"$f":"'[2]5.2 Asset Age Profile'!CU37+'[3]5.2 Asset Age Profile'!CU37","v":0},{"$f":"'[2]5.2 Asset Age Profile'!CV37+'[3]5.2 Asset Age Profile'!CV37","v":0},{"$f":"'[2]5.2 Asset Age Profile'!CW37+'[3]5.2 Asset Age Profile'!CW37","v":0},{"$f":"'[2]5.2 Asset Age Profile'!CX37+'[3]5.2 Asset Age Profile'!CX37","v":0},{"$f":"'[2]5.2 Asset Age Profile'!CY37+'[3]5.2 Asset Age Profile'!CY37","v":0},{"$f":"'[2]5.2 Asset Age Profile'!CZ37+'[3]5.2 Asset Age Profile'!CZ37","v":0},{"$f":"'[2]5.2 Asset Age Profile'!DA37+'[3]5.2 Asset Age Profile'!DA37","v":0},{"$f":"'[2]5.2 Asset Age Profile'!DB37+'[3]5.2 Asset Age Profile'!DB37","v":0},{"$f":"'[2]5.2 Asset Age Profile'!DC37+'[3]5.2 Asset Age Profile'!DC37","v":0},{"$f":"'[2]5.2 Asset Age Profile'!DD37+'[3]5.2 Asset Age Profile'!DD37","v":0},{"$f":"'[2]5.2 Asset Age Profile'!DE37+'[3]5.2 Asset Age Profile'!DE37","v":0},{"$f":"'[2]5.2 Asset Age Profile'!DF37+'[3]5.2 Asset Age Profile'!DF37","v":0},{"$f":"'[2]5.2 Asset Age Profile'!DG37+'[3]5.2 Asset Age Profile'!DG37","v":0},{"$f":"'[2]5.2 Asset Age Profile'!DH37+'[3]5.2 Asset Age Profile'!DH37","v":0},{"$f":"'[2]5.2 Asset Age Profile'!DI37+'[3]5.2 Asset Age Profile'!DI37","v":0},{"$f":"'[2]5.2 Asset Age Profile'!DJ37+'[3]5.2 Asset Age Profile'!DJ37","v":0},{"$f":"'[2]5.2 Asset Age Profile'!DK37+'[3]5.2 Asset Age Profile'!DK37","v":0},{"$f":"'[2]5.2 Asset Age Profile'!DL37+'[3]5.2 Asset Age Profile'!DL37","v":0},{"$f":"'[2]5.2 Asset Age Profile'!DM37+'[3]5.2 Asset Age Profile'!DM37","v":0},{"$f":"'[2]5.2 Asset Age Profile'!DN37+'[3]5.2 Asset Age Profile'!DN37","v":0},{"$f":"'[2]5.2 Asset Age Profile'!DO37+'[3]5.2 Asset Age Profile'!DO37","v":0},{"$f":"'[2]5.2 Asset Age Profile'!DP37+'[3]5.2 Asset Age Profile'!DP37","v":0},{"$f":"'[2]5.2 Asset Age Profile'!DQ37+'[3]5.2 Asset Age Profile'!DQ37","v":0},{"$f":"'[2]5.2 Asset Age Profile'!DR37+'[3]5.2 Asset Age Profile'!DR37","v":0},{"$f":"'[2]5.2 Asset Age Profile'!DS37+'[3]5.2 Asset Age Profile'!DS37","v":0},{"$f":"'[2]5.2 Asset Age Profile'!DT37+'[3]5.2 Asset Age Profile'!DT37","v":0},{"$f":"'[2]5.2 Asset Age Profile'!DU37+'[3]5.2 Asset Age Profile'!DU37","v":0},{"$f":"'[2]5.2 Asset Age Profile'!DV37+'[3]5.2 Asset Age Profile'!DV37","v":0},{"$f":"'[2]5.2 Asset Age Profile'!DW37+'[3]5.2 Asset Age Profile'!DW37","v":0},{"$f":"'[2]5.2 Asset Age Profile'!DX37+'[3]5.2 Asset Age Profile'!DX37","v":0},{"$f":"'[2]5.2 Asset Age Profile'!DY37+'[3]5.2 Asset Age Profile'!DY37","v":0},{"$f":"'[2]5.2 Asset Age Profile'!DZ37+'[3]5.2 Asset Age Profile'!DZ37","v":0},{"$f":"'[2]5.2 Asset Age Profile'!EA37+'[3]5.2 Asset Age Profile'!EA37","v":0},{"$f":"'[2]5.2 Asset Age Profile'!EB37+'[3]5.2 Asset Age Profile'!EB37","v":0},{"$f":"'[2]5.2 Asset Age Profile'!EC37+'[3]5.2 Asset Age Profile'!EC37","v":0},{"$f":"'[2]5.2 Asset Age Profile'!ED37+'[3]5.2 Asset Age Profile'!ED37","v":0},{"$f":"'[2]5.2 Asset Age Profile'!EE37+'[3]5.2 Asset Age Profile'!EE37","v":0},{"$f":"'[2]5.2 Asset Age Profile'!EF37+'[3]5.2 Asset Age Profile'!EF37","v":0},{"$f":"'[2]5.2 Asset Age Profile'!EG37+'[3]5.2 Asset Age Profile'!EG37","v":0},{"$f":"'[2]5.2 Asset Age Profile'!EH37+'[3]5.2 Asset Age Profile'!EH37","v":0},{"$f":"'[2]5.2 Asset Age Profile'!EI37+'[3]5.2 Asset Age Profile'!EI37","v":0},{"$f":"'[2]5.2 Asset Age Profile'!EJ37+'[3]5.2 Asset Age Profile'!EJ37","v":0}]
["ED_ASS521_00028","OVERHEAD CONDUCTORS BY: \nHIGHEST OPERATING VOLTAGE; NUMBER OF PHASES (AT HV)","˂ = 1 kV",null,"DNSP NAME","REPEX","OVERHEAD CONDUCTORS","˂ = 1 kV","DESCRIPTOR METRIC","MEAN ECONOMIC LIFE","YEARS","NUMBER",null,{"$f":"'[2]5.2 Asset Age Profile'!N38+'[3]5.2 Asset Age Profile'!N38","v":50},{"$f":"'[2]5.2 Asset Age Profile'!O38+'[3]5.2 Asset Age Profile'!O38","v":0},{"$f":"'[2]5.2 Asset Age Profile'!P38+'[3]5.2 Asset Age Profile'!P38","v":0},{"$f":"'[2]5.2 Asset Age Profile'!Q38+'[3]5.2 Asset Age Profile'!Q38","v":0},{"$f":"'[2]5.2 Asset Age Profile'!R38+'[3]5.2 Asset Age Profile'!R38","v":0},{"$f":"'[2]5.2 Asset Age Profile'!S38+'[3]5.2 Asset Age Profile'!S38","v":0},{"$f":"'[2]5.2 Asset Age Profile'!T38+'[3]5.2 Asset Age Profile'!T38","v":0},{"$f":"'[2]5.2 Asset Age Profile'!U38+'[3]5.2 Asset Age Profile'!U38","v":0},{"$f":"'[2]5.2 Asset Age Profile'!V38+'[3]5.2 Asset Age Profile'!V38","v":0},{"$f":"'[2]5.2 Asset Age Profile'!W38+'[3]5.2 Asset Age Profile'!W38","v":0},{"$f":"'[2]5.2 Asset Age Profile'!X38+'[3]5.2 Asset Age Profile'!X38","v":0},{"$f":"'[2]5.2 Asset Age Profile'!Y38+'[3]5.2 Asset Age Profile'!Y38","v":7},{"$f":"'[2]5.2 Asset Age Profile'!Z38+'[3]5.2 Asset Age Profile'!Z38","v":0},{"$f":"'[2]5.2 Asset Age Profile'!AA38+'[3]5.2 Asset Age Profile'!AA38","v":0},{"$f":"'[2]5.2 Asset Age Profile'!AB38+'[3]5.2 Asset Age Profile'!AB38","v":0},{"$f":"'[2]5.2 Asset Age Profile'!AC38+'[3]5.2 Asset Age Profile'!AC38","v":0},{"$f":"'[2]5.2 Asset Age Profile'!AD38+'[3]5.2 Asset Age Profile'!AD38","v":0},{"$f":"'[2]5.2 Asset Age Profile'!AE38+'[3]5.2 Asset Age Profile'!AE38","v":0},{"$f":"'[2]5.2 Asset Age Profile'!AF38+'[3]5.2 Asset Age Profile'!AF38","v":0},{"$f":"'[2]5.2 Asset Age Profile'!AG38+'[3]5.2 Asset Age Profile'!AG38","v":0},{"$f":"'[2]5.2 Asset Age Profile'!AH38+'[3]5.2 Asset Age Profile'!AH38","v":0},{"$f":"'[2]5.2 Asset Age Profile'!AI38+'[3]5.2 Asset Age Profile'!AI38","v":0},{"$f":"'[2]5.2 Asset Age Profile'!AJ38+'[3]5.2 Asset Age Profile'!AJ38","v":1.6599605160684925},{"$f":"'[2]5.2 Asset Age Profile'!AK38+'[3]5.2 Asset Age Profile'!AK38","v":2.9079003041459193},{"$f":"'[2]5.2 Asset Age Profile'!AL38+'[3]5.2 Asset Age Profile'!AL38","v":3.5168215860980361},{"$f":"'[2]5.2 Asset Age Profile'!AM38+'[3]5.2 Asset Age Profile'!AM38","v":4.0978003870389426},{"$f":"'[2]5.2 Asset Age Profile'!AN38+'[3]5.2 Asset Age Profile'!AN38","v":5.5484136528926573},{"$f":"'[2]5.2 Asset Age Profile'!AO38+'[3]5.2 Asset Age Profile'!AO38","v":4.5124044140219119},{"$f":"'[2]5.2 Asset Age Profile'!AP38+'[3]5.2 Asset Age Profile'!AP38","v":4.8801775193570007},{"$f":"'[2]5.2 Asset Age Profile'!AQ38+'[3]5.2 Asset Age Profile'!AQ38","v":6.8696729059205373},{"$f":"'[2]5.2 Asset Age Profile'!AR38+'[3]5.2 Asset Age Profile'!AR38","v":8.0970224377911819},{"$f":"'[2]5.2 Asset Age Profile'!AS38+'[3]5.2 Asset Age Profile'!AS38","v":5.5710425602901248},{"$f":"'[2]5.2 Asset Age Profile'!AT38+'[3]5.2 Asset Age Profile'!AT38","v":4.9747678200561039},{"$f":"'[2]5.2 Asset Age Profile'!AU38+'[3]5.2 Asset Age Profile'!AU38","v":4.4079305332079626},{"$f":"'[2]5.2 Asset Age Profile'!AV38+'[3]5.2 Asset Age Profile'!AV38","v":1.4908697906415602},{"$f":"'[2]5.2 Asset Age Profile'!AW38+'[3]5.2 Asset Age Profile'!AW38","v":8.2499999857957437E-4},{"$f":"'[2]5.2 Asset Age Profile'!AX38+'[3]5.2 Asset Age Profile'!AX38","v":2.1222921182886999E-2},{"$f":"'[2]5.2 Asset Age Profile'!AY38+'[3]5.2 Asset Age Profile'!AY38","v":0.25959712159398968},{"$f":"'[2]5.2 Asset Age Profile'!AZ38+'[3]5.2 Asset Age Profile'!AZ38","v":0},{"$f":"'[2]5.2 Asset Age Profile'!BA38+'[3]5.2 Asset Age Profile'!BA38","v":0},{"$f":"'[2]5.2 Asset Age Profile'!BB38+'[3]5.2 Asset Age Profile'!BB38","v":0},{"$f":"'[2]5.2 Asset Age Profile'!BC38+'[3]5.2 Asset Age Profile'!BC38","v":0},{"$f":"'[2]5.2 Asset Age Profile'!BD38+'[3]5.2 Asset Age Profile'!BD38","v":0.96579004013062819},{"$f":"'[2]5.2 Asset Age Profile'!BE38+'[3]5.2 Asset Age Profile'!BE38","v":0},{"$f":"'[2]5.2 Asset Age Profile'!BF38+'[3]5.2 Asset Age Profile'!BF38","v":0},{"$f":"'[2]5.2 Asset Age Profile'!BG38+'[3]5.2 Asset Age Profile'!BG38","v":0.87284388127412982},{"$f":"'[2]5.2 Asset Age Profile'!BH38+'[3]5.2 Asset Age Profile'!BH38","v":0.32220835732826381},{"$f":"'[2]5.2 Asset Age Profile'!BI38+'[3]5.2 Asset Age Profile'!BI38","v":7.7878171018982005},{"$f":"'[2]5.2 Asset Age Profile'!BJ38+'[3]5.2 Asset Age Profile'!BJ38","v":0},{"$f":"'[2]5.2 Asset Age Profile'!BK38+'[3]5.2 Asset Age Profile'!BK38","v":0},{"$f":"'[2]5.2 Asset Age Profile'!BL38+'[3]5.2 Asset Age Profile'!BL38","v":25.713602854810112},{"$f":"'[2]5.2 Asset Age Profile'!BM38+'[3]5.2 Asset Age Profile'!BM38","v":14.60207229677069},{"$f":"'[2]5.2 Asset Age Profile'!BN38+'[3]5.2 Asset Age Profile'!BN38","v":14.179887728593984},{"$f":"'[2]5.2 Asset Age Profile'!BO38+'[3]5.2 Asset Age Profile'!BO38","v":16.437523929702088},{"$f":"'[2]5.2 Asset Age Profile'!BP38+'[3]5.2 Asset Age Profile'!BP38","v":4.4926580727003342},{"$f":"'[2]5.2 Asset Age Profile'!BQ38+'[3]5.2 Asset Age Profile'!BQ38","v":21.39375828954746},{"$f":"'[2]5.2 Asset Age Profile'!BR38+'[3]5.2 Asset Age Profile'!BR38","v":40.032830520617715},{"$f":"'[2]5.2 Asset Age Profile'!BS38+'[3]5.2 Asset Age Profile'!BS38","v":13.988041886044709},{"$f":"'[2]5.2 Asset Age Profile'!BT38+'[3]5.2 Asset Age Profile'!BT38","v":3.5235172660697676},{"$f":"'[2]5.2 Asset Age Profile'!BU38+'[3]5.2 Asset Age Profile'!BU38","v":17.976496251293788},{"$f":"'[2]5.2 Asset Age Profile'!BV38+'[3]5.2 Asset Age Profile'!BV38","v":0},{"$f":"'[2]5.2 Asset Age Profile'!BW38+'[3]5.2 Asset Age Profile'!BW38","v":56.697813191338639},{"$f":"'[2]5.2 Asset Age Profile'!BX38+'[3]5.2 Asset Age Profile'!BX38","v":90.180867245580217},{"$f":"'[2]5.2 Asset Age Profile'!BY38+'[3]5.2 Asset Age Profile'!BY38","v":89.684959248127981},{"$f":"'[2]5.2 Asset Age Profile'!BZ38+'[3]5.2 Asset Age Profile'!BZ38","v":37.496332326509638},{"$f":"'[2]5.2 Asset Age Profile'!CA38+'[3]5.2 Asset Age Profile'!CA38","v":60.09415527391495},{"$f":"'[2]5.2 Asset Age Profile'!CB38+'[3]5.2 Asset Age Profile'!CB38","v":43.431317250896448},{"$f":"'[2]5.2 Asset Age Profile'!CC38+'[3]5.2 Asset Age Profile'!CC38","v":60.994250045406957},{"$f":"'[2]5.2 Asset Age Profile'!CD38+'[3]5.2 Asset Age Profile'!CD38","v":39.350994103085021},{"$f":"'[2]5.2 Asset Age Profile'!CE38+'[3]5.2 Asset Age Profile'!CE38","v":25.618102944073538},{"$f":"'[2]5.2 Asset Age Profile'!CF38+'[3]5.2 Asset Age Profile'!CF38","v":77.945253244375408},{"$f":"'[2]5.2 Asset Age Profile'!CG38+'[3]5.2 Asset Age Profile'!CG38","v":31.598363667966819},{"$f":"'[2]5.2 Asset Age Profile'!CH38+'[3]5.2 Asset Age Profile'!CH38","v":14.119943916842866},{"$f":"'[2]5.2 Asset Age Profile'!CI38+'[3]5.2 Asset Age Profile'!CI38","v":22.399114448223322},{"$f":"'[2]5.2 Asset Age Profile'!CJ38+'[3]5.2 Asset Age Profile'!CJ38","v":29.546212194638485},{"$f":"'[2]5.2 Asset Age Profile'!CK38+'[3]5.2 Asset Age Profile'!CK38","v":1.1735609736655892},{"$f":"'[2]5.2 Asset Age Profile'!CL38+'[3]5.2 Asset Age Profile'!CL38","v":32.454798731931518},{"$f":"'[2]5.2 Asset Age Profile'!CM38+'[3]5.2 Asset Age Profile'!CM38","v":4.3558614656032786},{"$f":"'[2]5.2 Asset Age Profile'!CN38+'[3]5.2 Asset Age Profile'!CN38","v":0.1215271705812173},{"$f":"'[2]5.2 Asset Age Profile'!CO38+'[3]5.2 Asset Age Profile'!CO38","v":40.727442458715728},{"$f":"'[2]5.2 Asset Age Profile'!CP38+'[3]5.2 Asset Age Profile'!CP38","v":0},{"$f":"'[2]5.2 Asset Age Profile'!CQ38+'[3]5.2 Asset Age Profile'!CQ38","v":0.15608963150829983},{"$f":"'[2]5.2 Asset Age Profile'!CR38+'[3]5.2 Asset Age Profile'!CR38","v":0},{"$f":"'[2]5.2 Asset Age Profile'!CS38+'[3]5.2 Asset Age Profile'!CS38","v":0},{"$f":"'[2]5.2 Asset Age Profile'!CT38+'[3]5.2 Asset Age Profile'!CT38","v":0},{"$f":"'[2]5.2 Asset Age Profile'!CU38+'[3]5.2 Asset Age Profile'!CU38","v":0},{"$f":"'[2]5.2 Asset Age Profile'!CV38+'[3]5.2 Asset Age Profile'!CV38","v":0},{"$f":"'[2]5.2 Asset Age Profile'!CW38+'[3]5.2 Asset Age Profile'!CW38","v":2.2424205858489397},{"$f":"'[2]5.2 Asset Age Profile'!CX38+'[3]5.2 Asset Age Profile'!CX38","v":0},{"$f":"'[2]5.2 Asset Age Profile'!CY38+'[3]5.2 Asset Age Profile'!CY38","v":22.463605749286465},{"$f":"'[2]5.2 Asset Age Profile'!CZ38+'[3]5.2 Asset Age Profile'!CZ38","v":23.410657892406686},{"$f":"'[2]5.2 Asset Age Profile'!DA38+'[3]5.2 Asset Age Profile'!DA38","v":13.165640919567869},{"$f":"'[2]5.2 Asset Age Profile'!DB38+'[3]5.2 Asset Age Profile'!DB38","v":0},{"$f":"'[2]5.2 Asset Age Profile'!DC38+'[3]5.2 Asset Age Profile'!DC38","v":43.90630919478243},{"$f":"'[2]5.2 Asset Age Profile'!DD38+'[3]5.2 Asset Age Profile'!DD38","v":19.51587335823525},{"$f":"'[2]5.2 Asset Age Profile'!DE38+'[3]5.2 Asset Age Profile'!DE38","v":23.616527249984792},{"$f":"'[2]5.2 Asset Age Profile'!DF38+'[3]5.2 Asset Age Profile'!DF38","v":0},{"$f":"'[2]5.2 Asset Age Profile'!DG38+'[3]5.2 Asset Age Profile'!DG38","v":0},{"$f":"'[2]5.2 Asset Age Profile'!DH38+'[3]5.2 Asset Age Profile'!DH38","v":0},{"$f":"'[2]5.2 Asset Age Profile'!DI38+'[3]5.2 Asset Age Profile'!DI38","v":6.0669715613654125},{"$f":"'[2]5.2 Asset Age Profile'!DJ38+'[3]5.2 Asset Age Profile'!DJ38","v":0},{"$f":"'[2]5.2 Asset Age Profile'!DK38+'[3]5.2 Asset Age Profile'!DK38","v":2.6890181227882226},{"$f":"'[2]5.2 Asset Age Profile'!DL38+'[3]5.2 Asset Age Profile'!DL38","v":0},{"$f":"'[2]5.2 Asset Age Profile'!DM38+'[3]5.2 Asset Age Profile'!DM38","v":0},{"$f":"'[2]5.2 Asset Age Profile'!DN38+'[3]5.2 Asset Age Profile'!DN38","v":0},{"$f":"'[2]5.2 Asset Age Profile'!DO38+'[3]5.2 Asset Age Profile'!DO38","v":0},{"$f":"'[2]5.2 Asset Age Profile'!DP38+'[3]5.2 Asset Age Profile'!DP38","v":0},{"$f":"'[2]5.2 Asset Age Profile'!DQ38+'[3]5.2 Asset Age Profile'!DQ38","v":0},{"$f":"'[2]5.2 Asset Age Profile'!DR38+'[3]5.2 Asset Age Profile'!DR38","v":0},{"$f":"'[2]5.2 Asset Age Profile'!DS38+'[3]5.2 Asset Age Profile'!DS38","v":10.410943483923736},{"$f":"'[2]5.2 Asset Age Profile'!DT38+'[3]5.2 Asset Age Profile'!DT38","v":0.96815748761116671},{"$f":"'[2]5.2 Asset Age Profile'!DU38+'[3]5.2 Asset Age Profile'!DU38","v":0},{"$f":"'[2]5.2 Asset Age Profile'!DV38+'[3]5.2 Asset Age Profile'!DV38","v":0},{"$f":"'[2]5.2 Asset Age Profile'!DW38+'[3]5.2 Asset Age Profile'!DW38","v":0},{"$f":"'[2]5.2 Asset Age Profile'!DX38+'[3]5.2 Asset Age Profile'!DX38","v":0},{"$f":"'[2]5.2 Asset Age Profile'!DY38+'[3]5.2 Asset Age Profile'!DY38","v":0},{"$f":"'[2]5.2 Asset Age Profile'!DZ38+'[3]5.2 Asset Age Profile'!DZ38","v":0},{"$f":"'[2]5.2 Asset Age Profile'!EA38+'[3]5.2 Asset Age Profile'!EA38","v":0.88636004409276203},{"$f":"'[2]5.2 Asset Age Profile'!EB38+'[3]5.2 Asset Age Profile'!EB38","v":0},{"$f":"'[2]5.2 Asset Age Profile'!EC38+'[3]5.2 Asset Age Profile'!EC38","v":0},{"$f":"'[2]5.2 Asset Age Profile'!ED38+'[3]5.2 Asset Age Profile'!ED38","v":0},{"$f":"'[2]5.2 Asset Age Profile'!EE38+'[3]5.2 Asset Age Profile'!EE38","v":0},{"$f":"'[2]5.2 Asset Age Profile'!EF38+'[3]5.2 Asset Age Profile'!EF38","v":0},{"$f":"'[2]5.2 Asset Age Profile'!EG38+'[3]5.2 Asset Age Profile'!EG38","v":0},{"$f":"'[2]5.2 Asset Age Profile'!EH38+'[3]5.2 Asset Age Profile'!EH38","v":0},{"$f":"'[2]5.2 Asset Age Profile'!EI38+'[3]5.2 Asset Age Profile'!EI38","v":0},{"$f":"'[2]5.2 Asset Age Profile'!EJ38+'[3]5.2 Asset Age Profile'!EJ38","v":0}]
["ED_ASS521_00029",null,"> 1 kV & < = 11 kV",null,"DNSP NAME","REPEX","OVERHEAD CONDUCTORS","> 1 kV & < = 11 kV","DESCRIPTOR METRIC","MEAN ECONOMIC LIFE","YEARS","NUMBER",null,{"$f":"'[2]5.2 Asset Age Profile'!N39+'[3]5.2 Asset Age Profile'!N39","v":50},{"$f":"'[2]5.2 Asset Age Profile'!O39+'[3]5.2 Asset Age Profile'!O39","v":0},{"$f":"'[2]5.2 Asset Age Profile'!P39+'[3]5.2 Asset Age Profile'!P39","v":0},{"$f":"'[2]5.2 Asset Age Profile'!Q39+'[3]5.2 Asset Age Profile'!Q39","v":0},{"$f":"'[2]5.2 Asset Age Profile'!R39+'[3]5.2 Asset Age Profile'!R39","v":0},{"$f":"'[2]5.2 Asset Age Profile'!S39+'[3]5.2 Asset Age Profile'!S39","v":0},{"$f":"'[2]5.2 Asset Age Profile'!T39+'[3]5.2 Asset Age Profile'!T39","v":0},{"$f":"'[2]5.2 Asset Age Profile'!U39+'[3]5.2 Asset Age Profile'!U39","v":0},{"$f":"'[2]5.2 Asset Age Profile'!V39+'[3]5.2 Asset Age Profile'!V39","v":0},{"$f":"'[2]5.2 Asset Age Profile'!W39+'[3]5.2 Asset Age Profile'!W39","v":0},{"$f":"'[2]5.2 Asset Age Profile'!X39+'[3]5.2 Asset Age Profile'!X39","v":0},{"$f":"'[2]5.2 Asset Age Profile'!Y39+'[3]5.2 Asset Age Profile'!Y39","v":7},{"$f":"'[2]5.2 Asset Age Profile'!Z39+'[3]5.2 Asset Age Profile'!Z39","v":0},{"$f":"'[2]5.2 Asset Age Profile'!AA39+'[3]5.2 Asset Age Profile'!AA39","v":0},{"$f":"'[2]5.2 Asset Age Profile'!AB39+'[3]5.2 Asset Age Profile'!AB39","v":0},{"$f":"'[2]5.2 Asset Age Profile'!AC39+'[3]5.2 Asset Age Profile'!AC39","v":0},{"$f":"'[2]5.2 Asset Age Profile'!AD39+'[3]5.2 Asset Age Profile'!AD39","v":0},{"$f":"'[2]5.2 Asset Age Profile'!AE39+'[3]5.2 Asset Age Profile'!AE39","v":0},{"$f":"'[2]5.2 Asset Age Profile'!AF39+'[3]5.2 Asset Age Profile'!AF39","v":0},{"$f":"'[2]5.2 Asset Age Profile'!AG39+'[3]5.2 Asset Age Profile'!AG39","v":0},{"$f":"'[2]5.2 Asset Age Profile'!AH39+'[3]5.2 Asset Age Profile'!AH39","v":0},{"$f":"'[2]5.2 Asset Age Profile'!AI39+'[3]5.2 Asset Age Profile'!AI39","v":0},{"$f":"'[2]5.2 Asset Age Profile'!AJ39+'[3]5.2 Asset Age Profile'!AJ39","v":0.84825874204266283},{"$f":"'[2]5.2 Asset Age Profile'!AK39+'[3]5.2 Asset Age Profile'!AK39","v":1.9732700177785882},{"$f":"'[2]5.2 Asset Age Profile'!AL39+'[3]5.2 Asset Age Profile'!AL39","v":3.8321459064997927},{"$f":"'[2]5.2 Asset Age Profile'!AM39+'[3]5.2 Asset Age Profile'!AM39","v":1.1649622659468359},{"$f":"'[2]5.2 Asset Age Profile'!AN39+'[3]5.2 Asset Age Profile'!AN39","v":3.984972380650682},{"$f":"'[2]5.2 Asset Age Profile'!AO39+'[3]5.2 Asset Age Profile'!AO39","v":2.3625996368723143},{"$f":"'[2]5.2 Asset Age Profile'!AP39+'[3]5.2 Asset Age Profile'!AP39","v":7.0254675399171509},{"$f":"'[2]5.2 Asset Age Profile'!AQ39+'[3]5.2 Asset Age Profile'!AQ39","v":8.4046680017808413},{"$f":"'[2]5.2 Asset Age Profile'!AR39+'[3]5.2 Asset Age Profile'!AR39","v":2.485954059090266},{"$f":"'[2]5.2 Asset Age Profile'!AS39+'[3]5.2 Asset Age Profile'!AS39","v":2.920312017479989},{"$f":"'[2]5.2 Asset Age Profile'!AT39+'[3]5.2 Asset Age Profile'!AT39","v":6.1395704962401485},{"$f":"'[2]5.2 Asset Age Profile'!AU39+'[3]5.2 Asset Age Profile'!AU39","v":0.63703010207550792},{"$f":"'[2]5.2 Asset Age Profile'!AV39+'[3]5.2 Asset Age Profile'!AV39","v":0.46183856190282219},{"$f":"'[2]5.2 Asset Age Profile'!AW39+'[3]5.2 Asset Age Profile'!AW39","v":1.3027750614167148},{"$f":"'[2]5.2 Asset Age Profile'!AX39+'[3]5.2 Asset Age Profile'!AX39","v":0},{"$f":"'[2]5.2 Asset Age Profile'!AY39+'[3]5.2 Asset Age Profile'!AY39","v":6.1238722714557872},{"$f":"'[2]5.2 Asset Age Profile'!AZ39+'[3]5.2 Asset Age Profile'!AZ39","v":42.948822369097662},{"$f":"'[2]5.2 Asset Age Profile'!BA39+'[3]5.2 Asset Age Profile'!BA39","v":0},{"$f":"'[2]5.2 Asset Age Profile'!BB39+'[3]5.2 Asset Age Profile'!BB39","v":5.3542097169452643E-2},{"$f":"'[2]5.2 Asset Age Profile'!BC39+'[3]5.2 Asset Age Profile'!BC39","v":0.58641318107558149},{"$f":"'[2]5.2 Asset Age Profile'!BD39+'[3]5.2 Asset Age Profile'!BD39","v":5.456444524287642},{"$f":"'[2]5.2 Asset Age Profile'!BE39+'[3]5.2 Asset Age Profile'!BE39","v":0.2027748349173141},{"$f":"'[2]5.2 Asset Age Profile'!BF39+'[3]5.2 Asset Age Profile'!BF39","v":0},{"$f":"'[2]5.2 Asset Age Profile'!BG39+'[3]5.2 Asset Age Profile'!BG39","v":5.6509342773968099},{"$f":"'[2]5.2 Asset Age Profile'!BH39+'[3]5.2 Asset Age Profile'!BH39","v":1.2436573023908311},{"$f":"'[2]5.2 Asset Age Profile'!BI39+'[3]5.2 Asset Age Profile'!BI39","v":0.76157407945403011},{"$f":"'[2]5.2 Asset Age Profile'!BJ39+'[3]5.2 Asset Age Profile'!BJ39","v":5.0134372705637427},{"$f":"'[2]5.2 Asset Age Profile'!BK39+'[3]5.2 Asset Age Profile'!BK39","v":0},{"$f":"'[2]5.2 Asset Age Profile'!BL39+'[3]5.2 Asset Age Profile'!BL39","v":6.5453884868591103},{"$f":"'[2]5.2 Asset Age Profile'!BM39+'[3]5.2 Asset Age Profile'!BM39","v":1.6998088490351282},{"$f":"'[2]5.2 Asset Age Profile'!BN39+'[3]5.2 Asset Age Profile'!BN39","v":1.7406879633154269},{"$f":"'[2]5.2 Asset Age Profile'!BO39+'[3]5.2 Asset Age Profile'!BO39","v":7.9137207127629647},{"$f":"'[2]5.2 Asset Age Profile'!BP39+'[3]5.2 Asset Age Profile'!BP39","v":13.69616118918489},{"$f":"'[2]5.2 Asset Age Profile'!BQ39+'[3]5.2 Asset Age Profile'!BQ39","v":6.2066028830127253},{"$f":"'[2]5.2 Asset Age Profile'!BR39+'[3]5.2 Asset Age Profile'!BR39","v":11.170697759850105},{"$f":"'[2]5.2 Asset Age Profile'!BS39+'[3]5.2 Asset Age Profile'!BS39","v":0.44511736776941846},{"$f":"'[2]5.2 Asset Age Profile'!BT39+'[3]5.2 Asset Age Profile'!BT39","v":14.651729470244266},{"$f":"'[2]5.2 Asset Age Profile'!BU39+'[3]5.2 Asset Age Profile'!BU39","v":2.5132469662479049},{"$f":"'[2]5.2 Asset Age Profile'!BV39+'[3]5.2 Asset Age Profile'!BV39","v":0},{"$f":"'[2]5.2 Asset Age Profile'!BW39+'[3]5.2 Asset Age Profile'!BW39","v":4.4562338498107827},{"$f":"'[2]5.2 Asset Age Profile'!BX39+'[3]5.2 Asset Age Profile'!BX39","v":152.52415563175276},{"$f":"'[2]5.2 Asset Age Profile'!BY39+'[3]5.2 Asset Age Profile'!BY39","v":34.710356780411651},{"$f":"'[2]5.2 Asset Age Profile'!BZ39+'[3]5.2 Asset Age Profile'!BZ39","v":73.944856545833929},{"$f":"'[2]5.2 Asset Age Profile'!CA39+'[3]5.2 Asset Age Profile'!CA39","v":5.0405413674145194},{"$f":"'[2]5.2 Asset Age Profile'!CB39+'[3]5.2 Asset Age Profile'!CB39","v":30.493112073845005},{"$f":"'[2]5.2 Asset Age Profile'!CC39+'[3]5.2 Asset Age Profile'!CC39","v":51.705678421887583},{"$f":"'[2]5.2 Asset Age Profile'!CD39+'[3]5.2 Asset Age Profile'!CD39","v":1.942375263889198},{"$f":"'[2]5.2 Asset Age Profile'!CE39+'[3]5.2 Asset Age Profile'!CE39","v":88.402766881098643},{"$f":"'[2]5.2 Asset Age Profile'!CF39+'[3]5.2 Asset Age Profile'!CF39","v":33.339575671799444},{"$f":"'[2]5.2 Asset Age Profile'!CG39+'[3]5.2 Asset Age Profile'!CG39","v":41.57967927191568},{"$f":"'[2]5.2 Asset Age Profile'!CH39+'[3]5.2 Asset Age Profile'!CH39","v":19.633942716445976},{"$f":"'[2]5.2 Asset Age Profile'!CI39+'[3]5.2 Asset Age Profile'!CI39","v":0.30175684374253953},{"$f":"'[2]5.2 Asset Age Profile'!CJ39+'[3]5.2 Asset Age Profile'!CJ39","v":20.528642960299809},{"$f":"'[2]5.2 Asset Age Profile'!CK39+'[3]5.2 Asset Age Profile'!CK39","v":13.312497066952709},{"$f":"'[2]5.2 Asset Age Profile'!CL39+'[3]5.2 Asset Age Profile'!CL39","v":15.138933487039813},{"$f":"'[2]5.2 Asset Age Profile'!CM39+'[3]5.2 Asset Age Profile'!CM39","v":5.2837655315109195},{"$f":"'[2]5.2 Asset Age Profile'!CN39+'[3]5.2 Asset Age Profile'!CN39","v":0},{"$f":"'[2]5.2 Asset Age Profile'!CO39+'[3]5.2 Asset Age Profile'!CO39","v":19.303361264234422},{"$f":"'[2]5.2 Asset Age Profile'!CP39+'[3]5.2 Asset Age Profile'!CP39","v":0},{"$f":"'[2]5.2 Asset Age Profile'!CQ39+'[3]5.2 Asset Age Profile'!CQ39","v":0.52527846101027331},{"$f":"'[2]5.2 Asset Age Profile'!CR39+'[3]5.2 Asset Age Profile'!CR39","v":0},{"$f":"'[2]5.2 Asset Age Profile'!CS39+'[3]5.2 Asset Age Profile'!CS39","v":0},{"$f":"'[2]5.2 Asset Age Profile'!CT39+'[3]5.2 Asset Age Profile'!CT39","v":0},{"$f":"'[2]5.2 Asset Age Profile'!CU39+'[3]5.2 Asset Age Profile'!CU39","v":0},{"$f":"'[2]5.2 Asset Age Profile'!CV39+'[3]5.2 Asset Age Profile'!CV39","v":0},{"$f":"'[2]5.2 Asset Age Profile'!CW39+'[3]5.2 Asset Age Profile'!CW39","v":1.1937632074825755},{"$f":"'[2]5.2 Asset Age Profile'!CX39+'[3]5.2 Asset Age Profile'!CX39","v":0},{"$f":"'[2]5.2 Asset Age Profile'!CY39+'[3]5.2 Asset Age Profile'!CY39","v":0.11627086306364309},{"$f":"'[2]5.2 Asset Age Profile'!CZ39+'[3]5.2 Asset Age Profile'!CZ39","v":10.354389905714081},{"$f":"'[2]5.2 Asset Age Profile'!DA39+'[3]5.2 Asset Age Profile'!DA39","v":2.4220182888713953},{"$f":"'[2]5.2 Asset Age Profile'!DB39+'[3]5.2 Asset Age Profile'!DB39","v":0},{"$f":"'[2]5.2 Asset Age Profile'!DC39+'[3]5.2 Asset Age Profile'!DC39","v":18.088046520397306},{"$f":"'[2]5.2 Asset Age Profile'!DD39+'[3]5.2 Asset Age Profile'!DD39","v":6.6749653125563864},{"$f":"'[2]5.2 Asset Age Profile'!DE39+'[3]5.2 Asset Age Profile'!DE39","v":3.1701585737568934},{"$f":"'[2]5.2 Asset Age Profile'!DF39+'[3]5.2 Asset Age Profile'!DF39","v":0},{"$f":"'[2]5.2 Asset Age Profile'!DG39+'[3]5.2 Asset Age Profile'!DG39","v":0},{"$f":"'[2]5.2 Asset Age Profile'!DH39+'[3]5.2 Asset Age Profile'!DH39","v":0},{"$f":"'[2]5.2 Asset Age Profile'!DI39+'[3]5.2 Asset Age Profile'!DI39","v":0},{"$f":"'[2]5.2 Asset Age Profile'!DJ39+'[3]5.2 Asset Age Profile'!DJ39","v":0},{"$f":"'[2]5.2 Asset Age Profile'!DK39+'[3]5.2 Asset Age Profile'!DK39","v":2.6242413563836982},{"$f":"'[2]5.2 Asset Age Profile'!DL39+'[3]5.2 Asset Age Profile'!DL39","v":0},{"$f":"'[2]5.2 Asset Age Profile'!DM39+'[3]5.2 Asset Age Profile'!DM39","v":0},{"$f":"'[2]5.2 Asset Age Profile'!DN39+'[3]5.2 Asset Age Profile'!DN39","v":0},{"$f":"'[2]5.2 Asset Age Profile'!DO39+'[3]5.2 Asset Age Profile'!DO39","v":0},{"$f":"'[2]5.2 Asset Age Profile'!DP39+'[3]5.2 Asset Age Profile'!DP39","v":0},{"$f":"'[2]5.2 Asset Age Profile'!DQ39+'[3]5.2 Asset Age Profile'!DQ39","v":0},{"$f":"'[2]5.2 Asset Age Profile'!DR39+'[3]5.2 Asset Age Profile'!DR39","v":0},{"$f":"'[2]5.2 Asset Age Profile'!DS39+'[3]5.2 Asset Age Profile'!DS39","v":131.85643541905338},{"$f":"'[2]5.2 Asset Age Profile'!DT39+'[3]5.2 Asset Age Profile'!DT39","v":0.18130479896375709},{"$f":"'[2]5.2 Asset Age Profile'!DU39+'[3]5.2 Asset Age Profile'!DU39","v":0},{"$f":"'[2]5.2 Asset Age Profile'!DV39+'[3]5.2 Asset Age Profile'!DV39","v":0},{"$f":"'[2]5.2 Asset Age Profile'!DW39+'[3]5.2 Asset Age Profile'!DW39","v":0},{"$f":"'[2]5.2 Asset Age Profile'!DX39+'[3]5.2 Asset Age Profile'!DX39","v":0},{"$f":"'[2]5.2 Asset Age Profile'!DY39+'[3]5.2 Asset Age Profile'!DY39","v":0},{"$f":"'[2]5.2 Asset Age Profile'!DZ39+'[3]5.2 Asset Age Profile'!DZ39","v":0},{"$f":"'[2]5.2 Asset Age Profile'!EA39+'[3]5.2 Asset Age Profile'!EA39","v":0.1360148433230762},{"$f":"'[2]5.2 Asset Age Profile'!EB39+'[3]5.2 Asset Age Profile'!EB39","v":0},{"$f":"'[2]5.2 Asset Age Profile'!EC39+'[3]5.2 Asset Age Profile'!EC39","v":0},{"$f":"'[2]5.2 Asset Age Profile'!ED39+'[3]5.2 Asset Age Profile'!ED39","v":0},{"$f":"'[2]5.2 Asset Age Profile'!EE39+'[3]5.2 Asset Age Profile'!EE39","v":0},{"$f":"'[2]5.2 Asset Age Profile'!EF39+'[3]5.2 Asset Age Profile'!EF39","v":0},{"$f":"'[2]5.2 Asset Age Profile'!EG39+'[3]5.2 Asset Age Profile'!EG39","v":0},{"$f":"'[2]5.2 Asset Age Profile'!EH39+'[3]5.2 Asset Age Profile'!EH39","v":0},{"$f":"'[2]5.2 Asset Age Profile'!EI39+'[3]5.2 Asset Age Profile'!EI39","v":0},{"$f":"'[2]5.2 Asset Age Profile'!EJ39+'[3]5.2 Asset Age Profile'!EJ39","v":0}]
["ED_ASS521_00030",null,"˃ 11 kV & < = 22 kV  ; SWER",null,null,null,null,null,null,null,null,null,null,{"$f":"'[2]5.2 Asset Age Profile'!N40+'[3]5.2 Asset Age Profile'!N40","v":0},{"$f":"'[2]5.2 Asset Age Profile'!O40+'[3]5.2 Asset Age Profile'!O40","v":0},{"$f":"'[2]5.2 Asset Age Profile'!P40+'[3]5.2 Asset Age Profile'!P40","v":0},{"$f":"'[2]5.2 Asset Age Profile'!Q40+'[3]5.2 Asset Age Profile'!Q40","v":0},{"$f":"'[2]5.2 Asset Age Profile'!R40+'[3]5.2 Asset Age Profile'!R40","v":0},{"$f":"'[2]5.2 Asset Age Profile'!S40+'[3]5.2 Asset Age Profile'!S40","v":0},{"$f":"'[2]5.2 Asset Age Profile'!T40+'[3]5.2 Asset Age Profile'!T40","v":0},{"$f":"'[2]5.2 Asset Age Profile'!U40+'[3]5.2 Asset Age Profile'!U40","v":0},{"$f":"'[2]5.2 Asset Age Profile'!V40+'[3]5.2 Asset Age Profile'!V40","v":0},{"$f":"'[2]5.2 Asset Age Profile'!W40+'[3]5.2 Asset Age Profile'!W40","v":0},{"$f":"'[2]5.2 Asset Age Profile'!X40+'[3]5.2 Asset Age Profile'!X40","v":0},{"$f":"'[2]5.2 Asset Age Profile'!Y40+'[3]5.2 Asset Age Profile'!Y40","v":0},{"$f":"'[2]5.2 Asset Age Profile'!Z40+'[3]5.2 Asset Age Profile'!Z40","v":0},{"$f":"'[2]5.2 Asset Age Profile'!AA40+'[3]5.2 Asset Age Profile'!AA40","v":0},{"$f":"'[2]5.2 Asset Age Profile'!AB40+'[3]5.2 Asset Age Profile'!AB40","v":0},{"$f":"'[2]5.2 Asset Age Profile'!AC40+'[3]5.2 Asset Age Profile'!AC40","v":0},{"$f":"'[2]5.2 Asset Age Profile'!AD40+'[3]5.2 Asset Age Profile'!AD40","v":0},{"$f":"'[2]5.2 Asset Age Profile'!AE40+'[3]5.2 Asset Age Profile'!AE40","v":0},{"$f":"'[2]5.2 Asset Age Profile'!AF40+'[3]5.2 Asset Age Profile'!AF40","v":0},{"$f":"'[2]5.2 Asset Age Profile'!AG40+'[3]5.2 Asset Age Profile'!AG40","v":0},{"$f":"'[2]5.2 Asset Age Profile'!AH40+'[3]5.2 Asset Age Profile'!AH40","v":0},{"$f":"'[2]5.2 Asset Age Profile'!AI40+'[3]5.2 Asset Age Profile'!AI40","v":0},{"$f":"'[2]5.2 Asset Age Profile'!AJ40+'[3]5.2 Asset Age Profile'!AJ40","v":0},{"$f":"'[2]5.2 Asset Age Profile'!AK40+'[3]5.2 Asset Age Profile'!AK40","v":0},{"$f":"'[2]5.2 Asset Age Profile'!AL40+'[3]5.2 Asset Age Profile'!AL40","v":0},{"$f":"'[2]5.2 Asset Age Profile'!AM40+'[3]5.2 Asset Age Profile'!AM40","v":0},{"$f":"'[2]5.2 Asset Age Profile'!AN40+'[3]5.2 Asset Age Profile'!AN40","v":0},{"$f":"'[2]5.2 Asset Age Profile'!AO40+'[3]5.2 Asset Age Profile'!AO40","v":0},{"$f":"'[2]5.2 Asset Age Profile'!AP40+'[3]5.2 Asset Age Profile'!AP40","v":0},{"$f":"'[2]5.2 Asset Age Profile'!AQ40+'[3]5.2 Asset Age Profile'!AQ40","v":0},{"$f":"'[2]5.2 Asset Age Profile'!AR40+'[3]5.2 Asset Age Profile'!AR40","v":0},{"$f":"'[2]5.2 Asset Age Profile'!AS40+'[3]5.2 Asset Age Profile'!AS40","v":0},{"$f":"'[2]5.2 Asset Age Profile'!AT40+'[3]5.2 Asset Age Profile'!AT40","v":0},{"$f":"'[2]5.2 Asset Age Profile'!AU40+'[3]5.2 Asset Age Profile'!AU40","v":0},{"$f":"'[2]5.2 Asset Age Profile'!AV40+'[3]5.2 Asset Age Profile'!AV40","v":0},{"$f":"'[2]5.2 Asset Age Profile'!AW40+'[3]5.2 Asset Age Profile'!AW40","v":0},{"$f":"'[2]5.2 Asset Age Profile'!AX40+'[3]5.2 Asset Age Profile'!AX40","v":0},{"$f":"'[2]5.2 Asset Age Profile'!AY40+'[3]5.2 Asset Age Profile'!AY40","v":0},{"$f":"'[2]5.2 Asset Age Profile'!AZ40+'[3]5.2 Asset Age Profile'!AZ40","v":0},{"$f":"'[2]5.2 Asset Age Profile'!BA40+'[3]5.2 Asset Age Profile'!BA40","v":0},{"$f":"'[2]5.2 Asset Age Profile'!BB40+'[3]5.2 Asset Age Profile'!BB40","v":0},{"$f":"'[2]5.2 Asset Age Profile'!BC40+'[3]5.2 Asset Age Profile'!BC40","v":0},{"$f":"'[2]5.2 Asset Age Profile'!BD40+'[3]5.2 Asset Age Profile'!BD40","v":0},{"$f":"'[2]5.2 Asset Age Profile'!BE40+'[3]5.2 Asset Age Profile'!BE40","v":0},{"$f":"'[2]5.2 Asset Age Profile'!BF40+'[3]5.2 Asset Age Profile'!BF40","v":0},{"$f":"'[2]5.2 Asset Age Profile'!BG40+'[3]5.2 Asset Age Profile'!BG40","v":0},{"$f":"'[2]5.2 Asset Age Profile'!BH40+'[3]5.2 Asset Age Profile'!BH40","v":0},{"$f":"'[2]5.2 Asset Age Profile'!BI40+'[3]5.2 Asset Age Profile'!BI40","v":0},{"$f":"'[2]5.2 Asset Age Profile'!BJ40+'[3]5.2 Asset Age Profile'!BJ40","v":0},{"$f":"'[2]5.2 Asset Age Profile'!BK40+'[3]5.2 Asset Age Profile'!BK40","v":0},{"$f":"'[2]5.2 Asset Age Profile'!BL40+'[3]5.2 Asset Age Profile'!BL40","v":0},{"$f":"'[2]5.2 Asset Age Profile'!BM40+'[3]5.2 Asset Age Profile'!BM40","v":0},{"$f":"'[2]5.2 Asset Age Profile'!BN40+'[3]5.2 Asset Age Profile'!BN40","v":0},{"$f":"'[2]5.2 Asset Age Profile'!BO40+'[3]5.2 Asset Age Profile'!BO40","v":0},{"$f":"'[2]5.2 Asset Age Profile'!BP40+'[3]5.2 Asset Age Profile'!BP40","v":0},{"$f":"'[2]5.2 Asset Age Profile'!BQ40+'[3]5.2 Asset Age Profile'!BQ40","v":0},{"$f":"'[2]5.2 Asset Age Profile'!BR40+'[3]5.2 Asset Age Profile'!BR40","v":0},{"$f":"'[2]5.2 Asset Age Profile'!BS40+'[3]5.2 Asset Age Profile'!BS40","v":0},{"$f":"'[2]5.2 Asset Age Profile'!BT40+'[3]5.2 Asset Age Profile'!BT40","v":0},{"$f":"'[2]5.2 Asset Age Profile'!BU40+'[3]5.2 Asset Age Profile'!BU40","v":0},{"$f":"'[2]5.2 Asset Age Profile'!BV40+'[3]5.2 Asset Age Profile'!BV40","v":0},{"$f":"'[2]5.2 Asset Age Profile'!BW40+'[3]5.2 Asset Age Profile'!BW40","v":0},{"$f":"'[2]5.2 Asset Age Profile'!BX40+'[3]5.2 Asset Age Profile'!BX40","v":0},{"$f":"'[2]5.2 Asset Age Profile'!BY40+'[3]5.2 Asset Age Profile'!BY40","v":0},{"$f":"'[2]5.2 Asset Age Profile'!BZ40+'[3]5.2 Asset Age Profile'!BZ40","v":0},{"$f":"'[2]5.2 Asset Age Profile'!CA40+'[3]5.2 Asset Age Profile'!CA40","v":0},{"$f":"'[2]5.2 Asset Age Profile'!CB40+'[3]5.2 Asset Age Profile'!CB40","v":0},{"$f":"'[2]5.2 Asset Age Profile'!CC40+'[3]5.2 Asset Age Profile'!CC40","v":0},{"$f":"'[2]5.2 Asset Age Profile'!CD40+'[3]5.2 Asset Age Profile'!CD40","v":0},{"$f":"'[2]5.2 Asset Age Profile'!CE40+'[3]5.2 Asset Age Profile'!CE40","v":0},{"$f":"'[2]5.2 Asset Age Profile'!CF40+'[3]5.2 Asset Age Profile'!CF40","v":0},{"$f":"'[2]5.2 Asset Age Profile'!CG40+'[3]5.2 Asset Age Profile'!CG40","v":0},{"$f":"'[2]5.2 Asset Age Profile'!CH40+'[3]5.2 Asset Age Profile'!CH40","v":0},{"$f":"'[2]5.2 Asset Age Profile'!CI40+'[3]5.2 Asset Age Profile'!CI40","v":0},{"$f":"'[2]5.2 Asset Age Profile'!CJ40+'[3]5.2 Asset Age Profile'!CJ40","v":0},{"$f":"'[2]5.2 Asset Age Profile'!CK40+'[3]5.2 Asset Age Profile'!CK40","v":0},{"$f":"'[2]5.2 Asset Age Profile'!CL40+'[3]5.2 Asset Age Profile'!CL40","v":0},{"$f":"'[2]5.2 Asset Age Profile'!CM40+'[3]5.2 Asset Age Profile'!CM40","v":0},{"$f":"'[2]5.2 Asset Age Profile'!CN40+'[3]5.2 Asset Age Profile'!CN40","v":0},{"$f":"'[2]5.2 Asset Age Profile'!CO40+'[3]5.2 Asset Age Profile'!CO40","v":0},{"$f":"'[2]5.2 Asset Age Profile'!CP40+'[3]5.2 Asset Age Profile'!CP40","v":0},{"$f":"'[2]5.2 Asset Age Profile'!CQ40+'[3]5.2 Asset Age Profile'!CQ40","v":0},{"$f":"'[2]5.2 Asset Age Profile'!CR40+'[3]5.2 Asset Age Profile'!CR40","v":0},{"$f":"'[2]5.2 Asset Age Profile'!CS40+'[3]5.2 Asset Age Profile'!CS40","v":0},{"$f":"'[2]5.2 Asset Age Profile'!CT40+'[3]5.2 Asset Age Profile'!CT40","v":0},{"$f":"'[2]5.2 Asset Age Profile'!CU40+'[3]5.2 Asset Age Profile'!CU40","v":0},{"$f":"'[2]5.2 Asset Age Profile'!CV40+'[3]5.2 Asset Age Profile'!CV40","v":0},{"$f":"'[2]5.2 Asset Age Profile'!CW40+'[3]5.2 Asset Age Profile'!CW40","v":0},{"$f":"'[2]5.2 Asset Age Profile'!CX40+'[3]5.2 Asset Age Profile'!CX40","v":0},{"$f":"'[2]5.2 Asset Age Profile'!CY40+'[3]5.2 Asset Age Profile'!CY40","v":0},{"$f":"'[2]5.2 Asset Age Profile'!CZ40+'[3]5.2 Asset Age Profile'!CZ40","v":0},{"$f":"'[2]5.2 Asset Age Profile'!DA40+'[3]5.2 Asset Age Profile'!DA40","v":0},{"$f":"'[2]5.2 Asset Age Profile'!DB40+'[3]5.2 Asset Age Profile'!DB40","v":0},{"$f":"'[2]5.2 Asset Age Profile'!DC40+'[3]5.2 Asset Age Profile'!DC40","v":0},{"$f":"'[2]5.2 Asset Age Profile'!DD40+'[3]5.2 Asset Age Profile'!DD40","v":0},{"$f":"'[2]5.2 Asset Age Profile'!DE40+'[3]5.2 Asset Age Profile'!DE40","v":0},{"$f":"'[2]5.2 Asset Age Profile'!DF40+'[3]5.2 Asset Age Profile'!DF40","v":0},{"$f":"'[2]5.2 Asset Age Profile'!DG40+'[3]5.2 Asset Age Profile'!DG40","v":0},{"$f":"'[2]5.2 Asset Age Profile'!DH40+'[3]5.2 Asset Age Profile'!DH40","v":0},{"$f":"'[2]5.2 Asset Age Profile'!DI40+'[3]5.2 Asset Age Profile'!DI40","v":0},{"$f":"'[2]5.2 Asset Age Profile'!DJ40+'[3]5.2 Asset Age Profile'!DJ40","v":0},{"$f":"'[2]5.2 Asset Age Profile'!DK40+'[3]5.2 Asset Age Profile'!DK40","v":0},{"$f":"'[2]5.2 Asset Age Profile'!DL40+'[3]5.2 Asset Age Profile'!DL40","v":0},{"$f":"'[2]5.2 Asset Age Profile'!DM40+'[3]5.2 Asset Age Profile'!DM40","v":0},{"$f":"'[2]5.2 Asset Age Profile'!DN40+'[3]5.2 Asset Age Profile'!DN40","v":0},{"$f":"'[2]5.2 Asset Age Profile'!DO40+'[3]5.2 Asset Age Profile'!DO40","v":0},{"$f":"'[2]5.2 Asset Age Profile'!DP40+'[3]5.2 Asset Age Profile'!DP40","v":0},{"$f":"'[2]5.2 Asset Age Profile'!DQ40+'[3]5.2 Asset Age Profile'!DQ40","v":0},{"$f":"'[2]5.2 Asset Age Profile'!DR40+'[3]5.2 Asset Age Profile'!DR40","v":0},{"$f":"'[2]5.2 Asset Age Profile'!DS40+'[3]5.2 Asset Age Profile'!DS40","v":0},{"$f":"'[2]5.2 Asset Age Profile'!DT40+'[3]5.2 Asset Age Profile'!DT40","v":0},{"$f":"'[2]5.2 Asset Age Profile'!DU40+'[3]5.2 Asset Age Profile'!DU40","v":0},{"$f":"'[2]5.2 Asset Age Profile'!DV40+'[3]5.2 Asset Age Profile'!DV40","v":0},{"$f":"'[2]5.2 Asset Age Profile'!DW40+'[3]5.2 Asset Age Profile'!DW40","v":0},{"$f":"'[2]5.2 Asset Age Profile'!DX40+'[3]5.2 Asset Age Profile'!DX40","v":0},{"$f":"'[2]5.2 Asset Age Profile'!DY40+'[3]5.2 Asset Age Profile'!DY40","v":0},{"$f":"'[2]5.2 Asset Age Profile'!DZ40+'[3]5.2 Asset Age Profile'!DZ40","v":0},{"$f":"'[2]5.2 Asset Age Profile'!EA40+'[3]5.2 Asset Age Profile'!EA40","v":0},{"$f":"'[2]5.2 Asset Age Profile'!EB40+'[3]5.2 Asset Age Profile'!EB40","v":0},{"$f":"'[2]5.2 Asset Age Profile'!EC40+'[3]5.2 Asset Age Profile'!EC40","v":0},{"$f":"'[2]5.2 Asset Age Profile'!ED40+'[3]5.2 Asset Age Profile'!ED40","v":0},{"$f":"'[2]5.2 Asset Age Profile'!EE40+'[3]5.2 Asset Age Profile'!EE40","v":0},{"$f":"'[2]5.2 Asset Age Profile'!EF40+'[3]5.2 Asset Age Profile'!EF40","v":0},{"$f":"'[2]5.2 Asset Age Profile'!EG40+'[3]5.2 Asset Age Profile'!EG40","v":0},{"$f":"'[2]5.2 Asset Age Profile'!EH40+'[3]5.2 Asset Age Profile'!EH40","v":0},{"$f":"'[2]5.2 Asset Age Profile'!EI40+'[3]5.2 Asset Age Profile'!EI40","v":0},{"$f":"'[2]5.2 Asset Age Profile'!EJ40+'[3]5.2 Asset Age Profile'!EJ40","v":0}]
["ED_ASS521_00031",null,"˃ 11 kV & < = 22 kV ; Single-Phase",null,null,null,null,null,null,null,null,null,null,{"$f":"'[2]5.2 Asset Age Profile'!N41+'[3]5.2 Asset Age Profile'!N41","v":0},{"$f":"'[2]5.2 Asset Age Profile'!O41+'[3]5.2 Asset Age Profile'!O41","v":0},{"$f":"'[2]5.2 Asset Age Profile'!P41+'[3]5.2 Asset Age Profile'!P41","v":0},{"$f":"'[2]5.2 Asset Age Profile'!Q41+'[3]5.2 Asset Age Profile'!Q41","v":0},{"$f":"'[2]5.2 Asset Age Profile'!R41+'[3]5.2 Asset Age Profile'!R41","v":0},{"$f":"'[2]5.2 Asset Age Profile'!S41+'[3]5.2 Asset Age Profile'!S41","v":0},{"$f":"'[2]5.2 Asset Age Profile'!T41+'[3]5.2 Asset Age Profile'!T41","v":0},{"$f":"'[2]5.2 Asset Age Profile'!U41+'[3]5.2 Asset Age Profile'!U41","v":0},{"$f":"'[2]5.2 Asset Age Profile'!V41+'[3]5.2 Asset Age Profile'!V41","v":0},{"$f":"'[2]5.2 Asset Age Profile'!W41+'[3]5.2 Asset Age Profile'!W41","v":0},{"$f":"'[2]5.2 Asset Age Profile'!X41+'[3]5.2 Asset Age Profile'!X41","v":0},{"$f":"'[2]5.2 Asset Age Profile'!Y41+'[3]5.2 Asset Age Profile'!Y41","v":0},{"$f":"'[2]5.2 Asset Age Profile'!Z41+'[3]5.2 Asset Age Profile'!Z41","v":0},{"$f":"'[2]5.2 Asset Age Profile'!AA41+'[3]5.2 Asset Age Profile'!AA41","v":0},{"$f":"'[2]5.2 Asset Age Profile'!AB41+'[3]5.2 Asset Age Profile'!AB41","v":0},{"$f":"'[2]5.2 Asset Age Profile'!AC41+'[3]5.2 Asset Age Profile'!AC41","v":0},{"$f":"'[2]5.2 Asset Age Profile'!AD41+'[3]5.2 Asset Age Profile'!AD41","v":0},{"$f":"'[2]5.2 Asset Age Profile'!AE41+'[3]5.2 Asset Age Profile'!AE41","v":0},{"$f":"'[2]5.2 Asset Age Profile'!AF41+'[3]5.2 Asset Age Profile'!AF41","v":0},{"$f":"'[2]5.2 Asset Age Profile'!AG41+'[3]5.2 Asset Age Profile'!AG41","v":0},{"$f":"'[2]5.2 Asset Age Profile'!AH41+'[3]5.2 Asset Age Profile'!AH41","v":0},{"$f":"'[2]5.2 Asset Age Profile'!AI41+'[3]5.2 Asset Age Profile'!AI41","v":0},{"$f":"'[2]5.2 Asset Age Profile'!AJ41+'[3]5.2 Asset Age Profile'!AJ41","v":0},{"$f":"'[2]5.2 Asset Age Profile'!AK41+'[3]5.2 Asset Age Profile'!AK41","v":0},{"$f":"'[2]5.2 Asset Age Profile'!AL41+'[3]5.2 Asset Age Profile'!AL41","v":0},{"$f":"'[2]5.2 Asset Age Profile'!AM41+'[3]5.2 Asset Age Profile'!AM41","v":0},{"$f":"'[2]5.2 Asset Age Profile'!AN41+'[3]5.2 Asset Age Profile'!AN41","v":0},{"$f":"'[2]5.2 Asset Age Profile'!AO41+'[3]5.2 Asset Age Profile'!AO41","v":0},{"$f":"'[2]5.2 Asset Age Profile'!AP41+'[3]5.2 Asset Age Profile'!AP41","v":0},{"$f":"'[2]5.2 Asset Age Profile'!AQ41+'[3]5.2 Asset Age Profile'!AQ41","v":0},{"$f":"'[2]5.2 Asset Age Profile'!AR41+'[3]5.2 Asset Age Profile'!AR41","v":0},{"$f":"'[2]5.2 Asset Age Profile'!AS41+'[3]5.2 Asset Age Profile'!AS41","v":0},{"$f":"'[2]5.2 Asset Age Profile'!AT41+'[3]5.2 Asset Age Profile'!AT41","v":0},{"$f":"'[2]5.2 Asset Age Profile'!AU41+'[3]5.2 Asset Age Profile'!AU41","v":0},{"$f":"'[2]5.2 Asset Age Profile'!AV41+'[3]5.2 Asset Age Profile'!AV41","v":0},{"$f":"'[2]5.2 Asset Age Profile'!AW41+'[3]5.2 Asset Age Profile'!AW41","v":0},{"$f":"'[2]5.2 Asset Age Profile'!AX41+'[3]5.2 Asset Age Profile'!AX41","v":0},{"$f":"'[2]5.2 Asset Age Profile'!AY41+'[3]5.2 Asset Age Profile'!AY41","v":0},{"$f":"'[2]5.2 Asset Age Profile'!AZ41+'[3]5.2 Asset Age Profile'!AZ41","v":0},{"$f":"'[2]5.2 Asset Age Profile'!BA41+'[3]5.2 Asset Age Profile'!BA41","v":0},{"$f":"'[2]5.2 Asset Age Profile'!BB41+'[3]5.2 Asset Age Profile'!BB41","v":0},{"$f":"'[2]5.2 Asset Age Profile'!BC41+'[3]5.2 Asset Age Profile'!BC41","v":0},{"$f":"'[2]5.2 Asset Age Profile'!BD41+'[3]5.2 Asset Age Profile'!BD41","v":0},{"$f":"'[2]5.2 Asset Age Profile'!BE41+'[3]5.2 Asset Age Profile'!BE41","v":0},{"$f":"'[2]5.2 Asset Age Profile'!BF41+'[3]5.2 Asset Age Profile'!BF41","v":0},{"$f":"'[2]5.2 Asset Age Profile'!BG41+'[3]5.2 Asset Age Profile'!BG41","v":0},{"$f":"'[2]5.2 Asset Age Profile'!BH41+'[3]5.2 Asset Age Profile'!BH41","v":0},{"$f":"'[2]5.2 Asset Age Profile'!BI41+'[3]5.2 Asset Age Profile'!BI41","v":0},{"$f":"'[2]5.2 Asset Age Profile'!BJ41+'[3]5.2 Asset Age Profile'!BJ41","v":0},{"$f":"'[2]5.2 Asset Age Profile'!BK41+'[3]5.2 Asset Age Profile'!BK41","v":0},{"$f":"'[2]5.2 Asset Age Profile'!BL41+'[3]5.2 Asset Age Profile'!BL41","v":0},{"$f":"'[2]5.2 Asset Age Profile'!BM41+'[3]5.2 Asset Age Profile'!BM41","v":0},{"$f":"'[2]5.2 Asset Age Profile'!BN41+'[3]5.2 Asset Age Profile'!BN41","v":0},{"$f":"'[2]5.2 Asset Age Profile'!BO41+'[3]5.2 Asset Age Profile'!BO41","v":0},{"$f":"'[2]5.2 Asset Age Profile'!BP41+'[3]5.2 Asset Age Profile'!BP41","v":0},{"$f":"'[2]5.2 Asset Age Profile'!BQ41+'[3]5.2 Asset Age Profile'!BQ41","v":0},{"$f":"'[2]5.2 Asset Age Profile'!BR41+'[3]5.2 Asset Age Profile'!BR41","v":0},{"$f":"'[2]5.2 Asset Age Profile'!BS41+'[3]5.2 Asset Age Profile'!BS41","v":0},{"$f":"'[2]5.2 Asset Age Profile'!BT41+'[3]5.2 Asset Age Profile'!BT41","v":0},{"$f":"'[2]5.2 Asset Age Profile'!BU41+'[3]5.2 Asset Age Profile'!BU41","v":0},{"$f":"'[2]5.2 Asset Age Profile'!BV41+'[3]5.2 Asset Age Profile'!BV41","v":0},{"$f":"'[2]5.2 Asset Age Profile'!BW41+'[3]5.2 Asset Age Profile'!BW41","v":0},{"$f":"'[2]5.2 Asset Age Profile'!BX41+'[3]5.2 Asset Age Profile'!BX41","v":0},{"$f":"'[2]5.2 Asset Age Profile'!BY41+'[3]5.2 Asset Age Profile'!BY41","v":0},{"$f":"'[2]5.2 Asset Age Profile'!BZ41+'[3]5.2 Asset Age Profile'!BZ41","v":0},{"$f":"'[2]5.2 Asset Age Profile'!CA41+'[3]5.2 Asset Age Profile'!CA41","v":0},{"$f":"'[2]5.2 Asset Age Profile'!CB41+'[3]5.2 Asset Age Profile'!CB41","v":0},{"$f":"'[2]5.2 Asset Age Profile'!CC41+'[3]5.2 Asset Age Profile'!CC41","v":0},{"$f":"'[2]5.2 Asset Age Profile'!CD41+'[3]5.2 Asset Age Profile'!CD41","v":0},{"$f":"'[2]5.2 Asset Age Profile'!CE41+'[3]5.2 Asset Age Profile'!CE41","v":0},{"$f":"'[2]5.2 Asset Age Profile'!CF41+'[3]5.2 Asset Age Profile'!CF41","v":0},{"$f":"'[2]5.2 Asset Age Profile'!CG41+'[3]5.2 Asset Age Profile'!CG41","v":0},{"$f":"'[2]5.2 Asset Age Profile'!CH41+'[3]5.2 Asset Age Profile'!CH41","v":0},{"$f":"'[2]5.2 Asset Age Profile'!CI41+'[3]5.2 Asset Age Profile'!CI41","v":0},{"$f":"'[2]5.2 Asset Age Profile'!CJ41+'[3]5.2 Asset Age Profile'!CJ41","v":0},{"$f":"'[2]5.2 Asset Age Profile'!CK41+'[3]5.2 Asset Age Profile'!CK41","v":0},{"$f":"'[2]5.2 Asset Age Profile'!CL41+'[3]5.2 Asset Age Profile'!CL41","v":0},{"$f":"'[2]5.2 Asset Age Profile'!CM41+'[3]5.2 Asset Age Profile'!CM41","v":0},{"$f":"'[2]5.2 Asset Age Profile'!CN41+'[3]5.2 Asset Age Profile'!CN41","v":0},{"$f":"'[2]5.2 Asset Age Profile'!CO41+'[3]5.2 Asset Age Profile'!CO41","v":0},{"$f":"'[2]5.2 Asset Age Profile'!CP41+'[3]5.2 Asset Age Profile'!CP41","v":0},{"$f":"'[2]5.2 Asset Age Profile'!CQ41+'[3]5.2 Asset Age Profile'!CQ41","v":0},{"$f":"'[2]5.2 Asset Age Profile'!CR41+'[3]5.2 Asset Age Profile'!CR41","v":0},{"$f":"'[2]5.2 Asset Age Profile'!CS41+'[3]5.2 Asset Age Profile'!CS41","v":0},{"$f":"'[2]5.2 Asset Age Profile'!CT41+'[3]5.2 Asset Age Profile'!CT41","v":0},{"$f":"'[2]5.2 Asset Age Profile'!CU41+'[3]5.2 Asset Age Profile'!CU41","v":0},{"$f":"'[2]5.2 Asset Age Profile'!CV41+'[3]5.2 Asset Age Profile'!CV41","v":0},{"$f":"'[2]5.2 Asset Age Profile'!CW41+'[3]5.2 Asset Age Profile'!CW41","v":0},{"$f":"'[2]5.2 Asset Age Profile'!CX41+'[3]5.2 Asset Age Profile'!CX41","v":0},{"$f":"'[2]5.2 Asset Age Profile'!CY41+'[3]5.2 Asset Age Profile'!CY41","v":0},{"$f":"'[2]5.2 Asset Age Profile'!CZ41+'[3]5.2 Asset Age Profile'!CZ41","v":0},{"$f":"'[2]5.2 Asset Age Profile'!DA41+'[3]5.2 Asset Age Profile'!DA41","v":0},{"$f":"'[2]5.2 Asset Age Profile'!DB41+'[3]5.2 Asset Age Profile'!DB41","v":0},{"$f":"'[2]5.2 Asset Age Profile'!DC41+'[3]5.2 Asset Age Profile'!DC41","v":0},{"$f":"'[2]5.2 Asset Age Profile'!DD41+'[3]5.2 Asset Age Profile'!DD41","v":0},{"$f":"'[2]5.2 Asset Age Profile'!DE41+'[3]5.2 Asset Age Profile'!DE41","v":0},{"$f":"'[2]5.2 Asset Age Profile'!DF41+'[3]5.2 Asset Age Profile'!DF41","v":0},{"$f":"'[2]5.2 Asset Age Profile'!DG41+'[3]5.2 Asset Age Profile'!DG41","v":0},{"$f":"'[2]5.2 Asset Age Profile'!DH41+'[3]5.2 Asset Age Profile'!DH41","v":0},{"$f":"'[2]5.2 Asset Age Profile'!DI41+'[3]5.2 Asset Age Profile'!DI41","v":0},{"$f":"'[2]5.2 Asset Age Profile'!DJ41+'[3]5.2 Asset Age Profile'!DJ41","v":0},{"$f":"'[2]5.2 Asset Age Profile'!DK41+'[3]5.2 Asset Age Profile'!DK41","v":0},{"$f":"'[2]5.2 Asset Age Profile'!DL41+'[3]5.2 Asset Age Profile'!DL41","v":0},{"$f":"'[2]5.2 Asset Age Profile'!DM41+'[3]5.2 Asset Age Profile'!DM41","v":0},{"$f":"'[2]5.2 Asset Age Profile'!DN41+'[3]5.2 Asset Age Profile'!DN41","v":0},{"$f":"'[2]5.2 Asset Age Profile'!DO41+'[3]5.2 Asset Age Profile'!DO41","v":0},{"$f":"'[2]5.2 Asset Age Profile'!DP41+'[3]5.2 Asset Age Profile'!DP41","v":0},{"$f":"'[2]5.2 Asset Age Profile'!DQ41+'[3]5.2 Asset Age Profile'!DQ41","v":0},{"$f":"'[2]5.2 Asset Age Profile'!DR41+'[3]5.2 Asset Age Profile'!DR41","v":0},{"$f":"'[2]5.2 Asset Age Profile'!DS41+'[3]5.2 Asset Age Profile'!DS41","v":0},{"$f":"'[2]5.2 Asset Age Profile'!DT41+'[3]5.2 Asset Age Profile'!DT41","v":0},{"$f":"'[2]5.2 Asset Age Profile'!DU41+'[3]5.2 Asset Age Profile'!DU41","v":0},{"$f":"'[2]5.2 Asset Age Profile'!DV41+'[3]5.2 Asset Age Profile'!DV41","v":0},{"$f":"'[2]5.2 Asset Age Profile'!DW41+'[3]5.2 Asset Age Profile'!DW41","v":0},{"$f":"'[2]5.2 Asset Age Profile'!DX41+'[3]5.2 Asset Age Profile'!DX41","v":0},{"$f":"'[2]5.2 Asset Age Profile'!DY41+'[3]5.2 Asset Age Profile'!DY41","v":0},{"$f":"'[2]5.2 Asset Age Profile'!DZ41+'[3]5.2 Asset Age Profile'!DZ41","v":0},{"$f":"'[2]5.2 Asset Age Profile'!EA41+'[3]5.2 Asset Age Profile'!EA41","v":0},{"$f":"'[2]5.2 Asset Age Profile'!EB41+'[3]5.2 Asset Age Profile'!EB41","v":0},{"$f":"'[2]5.2 Asset Age Profile'!EC41+'[3]5.2 Asset Age Profile'!EC41","v":0},{"$f":"'[2]5.2 Asset Age Profile'!ED41+'[3]5.2 Asset Age Profile'!ED41","v":0},{"$f":"'[2]5.2 Asset Age Profile'!EE41+'[3]5.2 Asset Age Profile'!EE41","v":0},{"$f":"'[2]5.2 Asset Age Profile'!EF41+'[3]5.2 Asset Age Profile'!EF41","v":0},{"$f":"'[2]5.2 Asset Age Profile'!EG41+'[3]5.2 Asset Age Profile'!EG41","v":0},{"$f":"'[2]5.2 Asset Age Profile'!EH41+'[3]5.2 Asset Age Profile'!EH41","v":0},{"$f":"'[2]5.2 Asset Age Profile'!EI41+'[3]5.2 Asset Age Profile'!EI41","v":0},{"$f":"'[2]5.2 Asset Age Profile'!EJ41+'[3]5.2 Asset Age Profile'!EJ41","v":0}]
["ED_ASS521_00032",null,"˃ 11 kV & < = 22 kV ; Multiple-Phase",null,null,null,null,null,null,null,null,null,null,{"$f":"'[2]5.2 Asset Age Profile'!N42+'[3]5.2 Asset Age Profile'!N42","v":50},{"$f":"'[2]5.2 Asset Age Profile'!O42+'[3]5.2 Asset Age Profile'!O42","v":0},{"$f":"'[2]5.2 Asset Age Profile'!P42+'[3]5.2 Asset Age Profile'!P42","v":0},{"$f":"'[2]5.2 Asset Age Profile'!Q42+'[3]5.2 Asset Age Profile'!Q42","v":0},{"$f":"'[2]5.2 Asset Age Profile'!R42+'[3]5.2 Asset Age Profile'!R42","v":0},{"$f":"'[2]5.2 Asset Age Profile'!S42+'[3]5.2 Asset Age Profile'!S42","v":0},{"$f":"'[2]5.2 Asset Age Profile'!T42+'[3]5.2 Asset Age Profile'!T42","v":0},{"$f":"'[2]5.2 Asset Age Profile'!U42+'[3]5.2 Asset Age Profile'!U42","v":0},{"$f":"'[2]5.2 Asset Age Profile'!V42+'[3]5.2 Asset Age Profile'!V42","v":0},{"$f":"'[2]5.2 Asset Age Profile'!W42+'[3]5.2 Asset Age Profile'!W42","v":0},{"$f":"'[2]5.2 Asset Age Profile'!X42+'[3]5.2 Asset Age Profile'!X42","v":0},{"$f":"'[2]5.2 Asset Age Profile'!Y42+'[3]5.2 Asset Age Profile'!Y42","v":7},{"$f":"'[2]5.2 Asset Age Profile'!Z42+'[3]5.2 Asset Age Profile'!Z42","v":0},{"$f":"'[2]5.2 Asset Age Profile'!AA42+'[3]5.2 Asset Age Profile'!AA42","v":0},{"$f":"'[2]5.2 Asset Age Profile'!AB42+'[3]5.2 Asset Age Profile'!AB42","v":0},{"$f":"'[2]5.2 Asset Age Profile'!AC42+'[3]5.2 Asset Age Profile'!AC42","v":0},{"$f":"'[2]5.2 Asset Age Profile'!AD42+'[3]5.2 Asset Age Profile'!AD42","v":0},{"$f":"'[2]5.2 Asset Age Profile'!AE42+'[3]5.2 Asset Age Profile'!AE42","v":0},{"$f":"'[2]5.2 Asset Age Profile'!AF42+'[3]5.2 Asset Age Profile'!AF42","v":0},{"$f":"'[2]5.2 Asset Age Profile'!AG42+'[3]5.2 Asset Age Profile'!AG42","v":0},{"$f":"'[2]5.2 Asset Age Profile'!AH42+'[3]5.2 Asset Age Profile'!AH42","v":0},{"$f":"'[2]5.2 Asset Age Profile'!AI42+'[3]5.2 Asset Age Profile'!AI42","v":0},{"$f":"'[2]5.2 Asset Age Profile'!AJ42+'[3]5.2 Asset Age Profile'!AJ42","v":0},{"$f":"'[2]5.2 Asset Age Profile'!AK42+'[3]5.2 Asset Age Profile'!AK42","v":0},{"$f":"'[2]5.2 Asset Age Profile'!AL42+'[3]5.2 Asset Age Profile'!AL42","v":0.58301179526694202},{"$f":"'[2]5.2 Asset Age Profile'!AM42+'[3]5.2 Asset Age Profile'!AM42","v":0},{"$f":"'[2]5.2 Asset Age Profile'!AN42+'[3]5.2 Asset Age Profile'!AN42","v":0},{"$f":"'[2]5.2 Asset Age Profile'!AO42+'[3]5.2 Asset Age Profile'!AO42","v":0},{"$f":"'[2]5.2 Asset Age Profile'!AP42+'[3]5.2 Asset Age Profile'!AP42","v":0},{"$f":"'[2]5.2 Asset Age Profile'!AQ42+'[3]5.2 Asset Age Profile'!AQ42","v":0},{"$f":"'[2]5.2 Asset Age Profile'!AR42+'[3]5.2 Asset Age Profile'!AR42","v":4.3720447254321587E-2},{"$f":"'[2]5.2 Asset Age Profile'!AS42+'[3]5.2 Asset Age Profile'!AS42","v":0},{"$f":"'[2]5.2 Asset Age Profile'!AT42+'[3]5.2 Asset Age Profile'!AT42","v":0},{"$f":"'[2]5.2 Asset Age Profile'!AU42+'[3]5.2 Asset Age Profile'!AU42","v":0.58766066584136989},{"$f":"'[2]5.2 Asset Age Profile'!AV42+'[3]5.2 Asset Age Profile'!AV42","v":0},{"$f":"'[2]5.2 Asset Age Profile'!AW42+'[3]5.2 Asset Age Profile'!AW42","v":0},{"$f":"'[2]5.2 Asset Age Profile'!AX42+'[3]5.2 Asset Age Profile'!AX42","v":0},{"$f":"'[2]5.2 Asset Age Profile'!AY42+'[3]5.2 Asset Age Profile'!AY42","v":0},{"$f":"'[2]5.2 Asset Age Profile'!AZ42+'[3]5.2 Asset Age Profile'!AZ42","v":0},{"$f":"'[2]5.2 Asset Age Profile'!BA42+'[3]5.2 Asset Age Profile'!BA42","v":0},{"$f":"'[2]5.2 Asset Age Profile'!BB42+'[3]5.2 Asset Age Profile'!BB42","v":0},{"$f":"'[2]5.2 Asset Age Profile'!BC42+'[3]5.2 Asset Age Profile'!BC42","v":0},{"$f":"'[2]5.2 Asset Age Profile'!BD42+'[3]5.2 Asset Age Profile'!BD42","v":22.001333062538372},{"$f":"'[2]5.2 Asset Age Profile'!BE42+'[3]5.2 Asset Age Profile'!BE42","v":0},{"$f":"'[2]5.2 Asset Age Profile'!BF42+'[3]5.2 Asset Age Profile'!BF42","v":0},{"$f":"'[2]5.2 Asset Age Profile'!BG42+'[3]5.2 Asset Age Profile'!BG42","v":0},{"$f":"'[2]5.2 Asset Age Profile'!BH42+'[3]5.2 Asset Age Profile'!BH42","v":0},{"$f":"'[2]5.2 Asset Age Profile'!BI42+'[3]5.2 Asset Age Profile'!BI42","v":0},{"$f":"'[2]5.2 Asset Age Profile'!BJ42+'[3]5.2 Asset Age Profile'!BJ42","v":0},{"$f":"'[2]5.2 Asset Age Profile'!BK42+'[3]5.2 Asset Age Profile'!BK42","v":0},{"$f":"'[2]5.2 Asset Age Profile'!BL42+'[3]5.2 Asset Age Profile'!BL42","v":0},{"$f":"'[2]5.2 Asset Age Profile'!BM42+'[3]5.2 Asset Age Profile'!BM42","v":0},{"$f":"'[2]5.2 Asset Age Profile'!BN42+'[3]5.2 Asset Age Profile'!BN42","v":0},{"$f":"'[2]5.2 Asset Age Profile'!BO42+'[3]5.2 Asset Age Profile'!BO42","v":0},{"$f":"'[2]5.2 Asset Age Profile'!BP42+'[3]5.2 Asset Age Profile'!BP42","v":0},{"$f":"'[2]5.2 Asset Age Profile'!BQ42+'[3]5.2 Asset Age Profile'!BQ42","v":0},{"$f":"'[2]5.2 Asset Age Profile'!BR42+'[3]5.2 Asset Age Profile'!BR42","v":0},{"$f":"'[2]5.2 Asset Age Profile'!BS42+'[3]5.2 Asset Age Profile'!BS42","v":0},{"$f":"'[2]5.2 Asset Age Profile'!BT42+'[3]5.2 Asset Age Profile'!BT42","v":0},{"$f":"'[2]5.2 Asset Age Profile'!BU42+'[3]5.2 Asset Age Profile'!BU42","v":0},{"$f":"'[2]5.2 Asset Age Profile'!BV42+'[3]5.2 Asset Age Profile'!BV42","v":0},{"$f":"'[2]5.2 Asset Age Profile'!BW42+'[3]5.2 Asset Age Profile'!BW42","v":0},{"$f":"'[2]5.2 Asset Age Profile'!BX42+'[3]5.2 Asset Age Profile'!BX42","v":0},{"$f":"'[2]5.2 Asset Age Profile'!BY42+'[3]5.2 Asset Age Profile'!BY42","v":0},{"$f":"'[2]5.2 Asset Age Profile'!BZ42+'[3]5.2 Asset Age Profile'!BZ42","v":0},{"$f":"'[2]5.2 Asset Age Profile'!CA42+'[3]5.2 Asset Age Profile'!CA42","v":0},{"$f":"'[2]5.2 Asset Age Profile'!CB42+'[3]5.2 Asset Age Profile'!CB42","v":10.478227912771143},{"$f":"'[2]5.2 Asset Age Profile'!CC42+'[3]5.2 Asset Age Profile'!CC42","v":0},{"$f":"'[2]5.2 Asset Age Profile'!CD42+'[3]5.2 Asset Age Profile'!CD42","v":0},{"$f":"'[2]5.2 Asset Age Profile'!CE42+'[3]5.2 Asset Age Profile'!CE42","v":0},{"$f":"'[2]5.2 Asset Age Profile'!CF42+'[3]5.2 Asset Age Profile'!CF42","v":0},{"$f":"'[2]5.2 Asset Age Profile'!CG42+'[3]5.2 Asset Age Profile'!CG42","v":0},{"$f":"'[2]5.2 Asset Age Profile'!CH42+'[3]5.2 Asset Age Profile'!CH42","v":0.17516867227651961},{"$f":"'[2]5.2 Asset Age Profile'!CI42+'[3]5.2 Asset Age Profile'!CI42","v":0},{"$f":"'[2]5.2 Asset Age Profile'!CJ42+'[3]5.2 Asset Age Profile'!CJ42","v":0},{"$f":"'[2]5.2 Asset Age Profile'!CK42+'[3]5.2 Asset Age Profile'!CK42","v":0},{"$f":"'[2]5.2 Asset Age Profile'!CL42+'[3]5.2 Asset Age Profile'!CL42","v":0},{"$f":"'[2]5.2 Asset Age Profile'!CM42+'[3]5.2 Asset Age Profile'!CM42","v":0},{"$f":"'[2]5.2 Asset Age Profile'!CN42+'[3]5.2 Asset Age Profile'!CN42","v":0},{"$f":"'[2]5.2 Asset Age Profile'!CO42+'[3]5.2 Asset Age Profile'!CO42","v":0},{"$f":"'[2]5.2 Asset Age Profile'!CP42+'[3]5.2 Asset Age Profile'!CP42","v":0},{"$f":"'[2]5.2 Asset Age Profile'!CQ42+'[3]5.2 Asset Age Profile'!CQ42","v":0},{"$f":"'[2]5.2 Asset Age Profile'!CR42+'[3]5.2 Asset Age Profile'!CR42","v":0},{"$f":"'[2]5.2 Asset Age Profile'!CS42+'[3]5.2 Asset Age Profile'!CS42","v":0},{"$f":"'[2]5.2 Asset Age Profile'!CT42+'[3]5.2 Asset Age Profile'!CT42","v":0},{"$f":"'[2]5.2 Asset Age Profile'!CU42+'[3]5.2 Asset Age Profile'!CU42","v":0},{"$f":"'[2]5.2 Asset Age Profile'!CV42+'[3]5.2 Asset Age Profile'!CV42","v":0},{"$f":"'[2]5.2 Asset Age Profile'!CW42+'[3]5.2 Asset Age Profile'!CW42","v":0},{"$f":"'[2]5.2 Asset Age Profile'!CX42+'[3]5.2 Asset Age Profile'!CX42","v":0},{"$f":"'[2]5.2 Asset Age Profile'!CY42+'[3]5.2 Asset Age Profile'!CY42","v":0},{"$f":"'[2]5.2 Asset Age Profile'!CZ42+'[3]5.2 Asset Age Profile'!CZ42","v":0},{"$f":"'[2]5.2 Asset Age Profile'!DA42+'[3]5.2 Asset Age Profile'!DA42","v":0},{"$f":"'[2]5.2 Asset Age Profile'!DB42+'[3]5.2 Asset Age Profile'!DB42","v":0},{"$f":"'[2]5.2 Asset Age Profile'!DC42+'[3]5.2 Asset Age Profile'!DC42","v":0},{"$f":"'[2]5.2 Asset Age Profile'!DD42+'[3]5.2 Asset Age Profile'!DD42","v":0},{"$f":"'[2]5.2 Asset Age Profile'!DE42+'[3]5.2 Asset Age Profile'!DE42","v":0},{"$f":"'[2]5.2 Asset Age Profile'!DF42+'[3]5.2 Asset Age Profile'!DF42","v":0},{"$f":"'[2]5.2 Asset Age Profile'!DG42+'[3]5.2 Asset Age Profile'!DG42","v":0},{"$f":"'[2]5.2 Asset Age Profile'!DH42+'[3]5.2 Asset Age Profile'!DH42","v":0},{"$f":"'[2]5.2 Asset Age Profile'!DI42+'[3]5.2 Asset Age Profile'!DI42","v":0},{"$f":"'[2]5.2 Asset Age Profile'!DJ42+'[3]5.2 Asset Age Profile'!DJ42","v":0},{"$f":"'[2]5.2 Asset Age Profile'!DK42+'[3]5.2 Asset Age Profile'!DK42","v":0},{"$f":"'[2]5.2 Asset Age Profile'!DL42+'[3]5.2 Asset Age Profile'!DL42","v":0},{"$f":"'[2]5.2 Asset Age Profile'!DM42+'[3]5.2 Asset Age Profile'!DM42","v":0},{"$f":"'[2]5.2 Asset Age Profile'!DN42+'[3]5.2 Asset Age Profile'!DN42","v":0},{"$f":"'[2]5.2 Asset Age Profile'!DO42+'[3]5.2 Asset Age Profile'!DO42","v":0},{"$f":"'[2]5.2 Asset Age Profile'!DP42+'[3]5.2 Asset Age Profile'!DP42","v":0},{"$f":"'[2]5.2 Asset Age Profile'!DQ42+'[3]5.2 Asset Age Profile'!DQ42","v":0},{"$f":"'[2]5.2 Asset Age Profile'!DR42+'[3]5.2 Asset Age Profile'!DR42","v":0},{"$f":"'[2]5.2 Asset Age Profile'!DS42+'[3]5.2 Asset Age Profile'!DS42","v":0},{"$f":"'[2]5.2 Asset Age Profile'!DT42+'[3]5.2 Asset Age Profile'!DT42","v":0},{"$f":"'[2]5.2 Asset Age Profile'!DU42+'[3]5.2 Asset Age Profile'!DU42","v":0},{"$f":"'[2]5.2 Asset Age Profile'!DV42+'[3]5.2 Asset Age Profile'!DV42","v":0},{"$f":"'[2]5.2 Asset Age Profile'!DW42+'[3]5.2 Asset Age Profile'!DW42","v":0},{"$f":"'[2]5.2 Asset Age Profile'!DX42+'[3]5.2 Asset Age Profile'!DX42","v":0},{"$f":"'[2]5.2 Asset Age Profile'!DY42+'[3]5.2 Asset Age Profile'!DY42","v":0},{"$f":"'[2]5.2 Asset Age Profile'!DZ42+'[3]5.2 Asset Age Profile'!DZ42","v":0},{"$f":"'[2]5.2 Asset Age Profile'!EA42+'[3]5.2 Asset Age Profile'!EA42","v":0},{"$f":"'[2]5.2 Asset Age Profile'!EB42+'[3]5.2 Asset Age Profile'!EB42","v":0},{"$f":"'[2]5.2 Asset Age Profile'!EC42+'[3]5.2 Asset Age Profile'!EC42","v":0},{"$f":"'[2]5.2 Asset Age Profile'!ED42+'[3]5.2 Asset Age Profile'!ED42","v":0},{"$f":"'[2]5.2 Asset Age Profile'!EE42+'[3]5.2 Asset Age Profile'!EE42","v":0},{"$f":"'[2]5.2 Asset Age Profile'!EF42+'[3]5.2 Asset Age Profile'!EF42","v":0},{"$f":"'[2]5.2 Asset Age Profile'!EG42+'[3]5.2 Asset Age Profile'!EG42","v":0},{"$f":"'[2]5.2 Asset Age Profile'!EH42+'[3]5.2 Asset Age Profile'!EH42","v":0},{"$f":"'[2]5.2 Asset Age Profile'!EI42+'[3]5.2 Asset Age Profile'!EI42","v":0},{"$f":"'[2]5.2 Asset Age Profile'!EJ42+'[3]5.2 Asset Age Profile'!EJ42","v":0}]
["ED_ASS521_00033",null,"> 22 kV & < = 66 kV",null,null,null,null,null,null,null,null,null,null,{"$f":"'[2]5.2 Asset Age Profile'!N43+'[3]5.2 Asset Age Profile'!N43","v":50},{"$f":"'[2]5.2 Asset Age Profile'!O43+'[3]5.2 Asset Age Profile'!O43","v":0},{"$f":"'[2]5.2 Asset Age Profile'!P43+'[3]5.2 Asset Age Profile'!P43","v":0},{"$f":"'[2]5.2 Asset Age Profile'!Q43+'[3]5.2 Asset Age Profile'!Q43","v":0},{"$f":"'[2]5.2 Asset Age Profile'!R43+'[3]5.2 Asset Age Profile'!R43","v":0},{"$f":"'[2]5.2 Asset Age Profile'!S43+'[3]5.2 Asset Age Profile'!S43","v":0},{"$f":"'[2]5.2 Asset Age Profile'!T43+'[3]5.2 Asset Age Profile'!T43","v":0},{"$f":"'[2]5.2 Asset Age Profile'!U43+'[3]5.2 Asset Age Profile'!U43","v":0},{"$f":"'[2]5.2 Asset Age Profile'!V43+'[3]5.2 Asset Age Profile'!V43","v":0},{"$f":"'[2]5.2 Asset Age Profile'!W43+'[3]5.2 Asset Age Profile'!W43","v":0},{"$f":"'[2]5.2 Asset Age Profile'!X43+'[3]5.2 Asset Age Profile'!X43","v":0},{"$f":"'[2]5.2 Asset Age Profile'!Y43+'[3]5.2 Asset Age Profile'!Y43","v":7},{"$f":"'[2]5.2 Asset Age Profile'!Z43+'[3]5.2 Asset Age Profile'!Z43","v":0},{"$f":"'[2]5.2 Asset Age Profile'!AA43+'[3]5.2 Asset Age Profile'!AA43","v":0},{"$f":"'[2]5.2 Asset Age Profile'!AB43+'[3]5.2 Asset Age Profile'!AB43","v":0},{"$f":"'[2]5.2 Asset Age Profile'!AC43+'[3]5.2 Asset Age Profile'!AC43","v":0},{"$f":"'[2]5.2 Asset Age Profile'!AD43+'[3]5.2 Asset Age Profile'!AD43","v":0},{"$f":"'[2]5.2 Asset Age Profile'!AE43+'[3]5.2 Asset Age Profile'!AE43","v":0},{"$f":"'[2]5.2 Asset Age Profile'!AF43+'[3]5.2 Asset Age Profile'!AF43","v":0},{"$f":"'[2]5.2 Asset Age Profile'!AG43+'[3]5.2 Asset Age Profile'!AG43","v":0},{"$f":"'[2]5.2 Asset Age Profile'!AH43+'[3]5.2 Asset Age Profile'!AH43","v":0},{"$f":"'[2]5.2 Asset Age Profile'!AI43+'[3]5.2 Asset Age Profile'!AI43","v":0},{"$f":"'[2]5.2 Asset Age Profile'!AJ43+'[3]5.2 Asset Age Profile'!AJ43","v":0},{"$f":"'[2]5.2 Asset Age Profile'!AK43+'[3]5.2 Asset Age Profile'!AK43","v":0},{"$f":"'[2]5.2 Asset Age Profile'!AL43+'[3]5.2 Asset Age Profile'!AL43","v":0},{"$f":"'[2]5.2 Asset Age Profile'!AM43+'[3]5.2 Asset Age Profile'!AM43","v":0},{"$f":"'[2]5.2 Asset Age Profile'!AN43+'[3]5.2 Asset Age Profile'!AN43","v":0},{"$f":"'[2]5.2 Asset Age Profile'!AO43+'[3]5.2 Asset Age Profile'!AO43","v":0},{"$f":"'[2]5.2 Asset Age Profile'!AP43+'[3]5.2 Asset Age Profile'!AP43","v":0},{"$f":"'[2]5.2 Asset Age Profile'!AQ43+'[3]5.2 Asset Age Profile'!AQ43","v":0},{"$f":"'[2]5.2 Asset Age Profile'!AR43+'[3]5.2 Asset Age Profile'!AR43","v":0},{"$f":"'[2]5.2 Asset Age Profile'!AS43+'[3]5.2 Asset Age Profile'!AS43","v":0},{"$f":"'[2]5.2 Asset Age Profile'!AT43+'[3]5.2 Asset Age Profile'!AT43","v":0},{"$f":"'[2]5.2 Asset Age Profile'!AU43+'[3]5.2 Asset Age Profile'!AU43","v":0},{"$f":"'[2]5.2 Asset Age Profile'!AV43+'[3]5.2 Asset Age Profile'!AV43","v":0},{"$f":"'[2]5.2 Asset Age Profile'!AW43+'[3]5.2 Asset Age Profile'!AW43","v":0},{"$f":"'[2]5.2 Asset Age Profile'!AX43+'[3]5.2 Asset Age Profile'!AX43","v":0},{"$f":"'[2]5.2 Asset Age Profile'!AY43+'[3]5.2 Asset Age Profile'!AY43","v":0},{"$f":"'[2]5.2 Asset Age Profile'!AZ43+'[3]5.2 Asset Age Profile'!AZ43","v":0},{"$f":"'[2]5.2 Asset Age Profile'!BA43+'[3]5.2 Asset Age Profile'!BA43","v":0},{"$f":"'[2]5.2 Asset Age Profile'!BB43+'[3]5.2 Asset Age Profile'!BB43","v":0},{"$f":"'[2]5.2 Asset Age Profile'!BC43+'[3]5.2 Asset Age Profile'!BC43","v":0},{"$f":"'[2]5.2 Asset Age Profile'!BD43+'[3]5.2 Asset Age Profile'!BD43","v":0},{"$f":"'[2]5.2 Asset Age Profile'!BE43+'[3]5.2 Asset Age Profile'!BE43","v":0},{"$f":"'[2]5.2 Asset Age Profile'!BF43+'[3]5.2 Asset Age Profile'!BF43","v":0},{"$f":"'[2]5.2 Asset Age Profile'!BG43+'[3]5.2 Asset Age Profile'!BG43","v":0},{"$f":"'[2]5.2 Asset Age Profile'!BH43+'[3]5.2 Asset Age Profile'!BH43","v":0},{"$f":"'[2]5.2 Asset Age Profile'!BI43+'[3]5.2 Asset Age Profile'!BI43","v":0},{"$f":"'[2]5.2 Asset Age Profile'!BJ43+'[3]5.2 Asset Age Profile'!BJ43","v":0},{"$f":"'[2]5.2 Asset Age Profile'!BK43+'[3]5.2 Asset Age Profile'!BK43","v":0},{"$f":"'[2]5.2 Asset Age Profile'!BL43+'[3]5.2 Asset Age Profile'!BL43","v":0},{"$f":"'[2]5.2 Asset Age Profile'!BM43+'[3]5.2 Asset Age Profile'!BM43","v":0},{"$f":"'[2]5.2 Asset Age Profile'!BN43+'[3]5.2 Asset Age Profile'!BN43","v":0},{"$f":"'[2]5.2 Asset Age Profile'!BO43+'[3]5.2 Asset Age Profile'!BO43","v":9.580000000000001E-2},{"$f":"'[2]5.2 Asset Age Profile'!BP43+'[3]5.2 Asset Age Profile'!BP43","v":0},{"$f":"'[2]5.2 Asset Age Profile'!BQ43+'[3]5.2 Asset Age Profile'!BQ43","v":0},{"$f":"'[2]5.2 Asset Age Profile'!BR43+'[3]5.2 Asset Age Profile'!BR43","v":0},{"$f":"'[2]5.2 Asset Age Profile'!BS43+'[3]5.2 Asset Age Profile'!BS43","v":0},{"$f":"'[2]5.2 Asset Age Profile'!BT43+'[3]5.2 Asset Age Profile'!BT43","v":0},{"$f":"'[2]5.2 Asset Age Profile'!BU43+'[3]5.2 Asset Age Profile'!BU43","v":0},{"$f":"'[2]5.2 Asset Age Profile'!BV43+'[3]5.2 Asset Age Profile'!BV43","v":0},{"$f":"'[2]5.2 Asset Age Profile'!BW43+'[3]5.2 Asset Age Profile'!BW43","v":0},{"$f":"'[2]5.2 Asset Age Profile'!BX43+'[3]5.2 Asset Age Profile'!BX43","v":0},{"$f":"'[2]5.2 Asset Age Profile'!BY43+'[3]5.2 Asset Age Profile'!BY43","v":0},{"$f":"'[2]5.2 Asset Age Profile'!BZ43+'[3]5.2 Asset Age Profile'!BZ43","v":0},{"$f":"'[2]5.2 Asset Age Profile'!CA43+'[3]5.2 Asset Age Profile'!CA43","v":0},{"$f":"'[2]5.2 Asset Age Profile'!CB43+'[3]5.2 Asset Age Profile'!CB43","v":0},{"$f":"'[2]5.2 Asset Age Profile'!CC43+'[3]5.2 Asset Age Profile'!CC43","v":0},{"$f":"'[2]5.2 Asset Age Profile'!CD43+'[3]5.2 Asset Age Profile'!CD43","v":0},{"$f":"'[2]5.2 Asset Age Profile'!CE43+'[3]5.2 Asset Age Profile'!CE43","v":2.648E-2},{"$f":"'[2]5.2 Asset Age Profile'!CF43+'[3]5.2 Asset Age Profile'!CF43","v":0},{"$f":"'[2]5.2 Asset Age Profile'!CG43+'[3]5.2 Asset Age Profile'!CG43","v":6.3969999999999999E-2},{"$f":"'[2]5.2 Asset Age Profile'!CH43+'[3]5.2 Asset Age Profile'!CH43","v":0},{"$f":"'[2]5.2 Asset Age Profile'!CI43+'[3]5.2 Asset Age Profile'!CI43","v":0},{"$f":"'[2]5.2 Asset Age Profile'!CJ43+'[3]5.2 Asset Age Profile'!CJ43","v":0},{"$f":"'[2]5.2 Asset Age Profile'!CK43+'[3]5.2 Asset Age Profile'!CK43","v":0},{"$f":"'[2]5.2 Asset Age Profile'!CL43+'[3]5.2 Asset Age Profile'!CL43","v":0},{"$f":"'[2]5.2 Asset Age Profile'!CM43+'[3]5.2 Asset Age Profile'!CM43","v":7.15665},{"$f":"'[2]5.2 Asset Age Profile'!CN43+'[3]5.2 Asset Age Profile'!CN43","v":0},{"$f":"'[2]5.2 Asset Age Profile'!CO43+'[3]5.2 Asset Age Profile'!CO43","v":0},{"$f":"'[2]5.2 Asset Age Profile'!CP43+'[3]5.2 Asset Age Profile'!CP43","v":0},{"$f":"'[2]5.2 Asset Age Profile'!CQ43+'[3]5.2 Asset Age Profile'!CQ43","v":0},{"$f":"'[2]5.2 Asset Age Profile'!CR43+'[3]5.2 Asset Age Profile'!CR43","v":0},{"$f":"'[2]5.2 Asset Age Profile'!CS43+'[3]5.2 Asset Age Profile'!CS43","v":0},{"$f":"'[2]5.2 Asset Age Profile'!CT43+'[3]5.2 Asset Age Profile'!CT43","v":0},{"$f":"'[2]5.2 Asset Age Profile'!CU43+'[3]5.2 Asset Age Profile'!CU43","v":0},{"$f":"'[2]5.2 Asset Age Profile'!CV43+'[3]5.2 Asset Age Profile'!CV43","v":0},{"$f":"'[2]5.2 Asset Age Profile'!CW43+'[3]5.2 Asset Age Profile'!CW43","v":0},{"$f":"'[2]5.2 Asset Age Profile'!CX43+'[3]5.2 Asset Age Profile'!CX43","v":0},{"$f":"'[2]5.2 Asset Age Profile'!CY43+'[3]5.2 Asset Age Profile'!CY43","v":0},{"$f":"'[2]5.2 Asset Age Profile'!CZ43+'[3]5.2 Asset Age Profile'!CZ43","v":0},{"$f":"'[2]5.2 Asset Age Profile'!DA43+'[3]5.2 Asset Age Profile'!DA43","v":0},{"$f":"'[2]5.2 Asset Age Profile'!DB43+'[3]5.2 Asset Age Profile'!DB43","v":0},{"$f":"'[2]5.2 Asset Age Profile'!DC43+'[3]5.2 Asset Age Profile'!DC43","v":0},{"$f":"'[2]5.2 Asset Age Profile'!DD43+'[3]5.2 Asset Age Profile'!DD43","v":0},{"$f":"'[2]5.2 Asset Age Profile'!DE43+'[3]5.2 Asset Age Profile'!DE43","v":0},{"$f":"'[2]5.2 Asset Age Profile'!DF43+'[3]5.2 Asset Age Profile'!DF43","v":0},{"$f":"'[2]5.2 Asset Age Profile'!DG43+'[3]5.2 Asset Age Profile'!DG43","v":0},{"$f":"'[2]5.2 Asset Age Profile'!DH43+'[3]5.2 Asset Age Profile'!DH43","v":0},{"$f":"'[2]5.2 Asset Age Profile'!DI43+'[3]5.2 Asset Age Profile'!DI43","v":0},{"$f":"'[2]5.2 Asset Age Profile'!DJ43+'[3]5.2 Asset Age Profile'!DJ43","v":0},{"$f":"'[2]5.2 Asset Age Profile'!DK43+'[3]5.2 Asset Age Profile'!DK43","v":0},{"$f":"'[2]5.2 Asset Age Profile'!DL43+'[3]5.2 Asset Age Profile'!DL43","v":0},{"$f":"'[2]5.2 Asset Age Profile'!DM43+'[3]5.2 Asset Age Profile'!DM43","v":0},{"$f":"'[2]5.2 Asset Age Profile'!DN43+'[3]5.2 Asset Age Profile'!DN43","v":0},{"$f":"'[2]5.2 Asset Age Profile'!DO43+'[3]5.2 Asset Age Profile'!DO43","v":0},{"$f":"'[2]5.2 Asset Age Profile'!DP43+'[3]5.2 Asset Age Profile'!DP43","v":0},{"$f":"'[2]5.2 Asset Age Profile'!DQ43+'[3]5.2 Asset Age Profile'!DQ43","v":0},{"$f":"'[2]5.2 Asset Age Profile'!DR43+'[3]5.2 Asset Age Profile'!DR43","v":0},{"$f":"'[2]5.2 Asset Age Profile'!DS43+'[3]5.2 Asset Age Profile'!DS43","v":0},{"$f":"'[2]5.2 Asset Age Profile'!DT43+'[3]5.2 Asset Age Profile'!DT43","v":0},{"$f":"'[2]5.2 Asset Age Profile'!DU43+'[3]5.2 Asset Age Profile'!DU43","v":0},{"$f":"'[2]5.2 Asset Age Profile'!DV43+'[3]5.2 Asset Age Profile'!DV43","v":0},{"$f":"'[2]5.2 Asset Age Profile'!DW43+'[3]5.2 Asset Age Profile'!DW43","v":0},{"$f":"'[2]5.2 Asset Age Profile'!DX43+'[3]5.2 Asset Age Profile'!DX43","v":0},{"$f":"'[2]5.2 Asset Age Profile'!DY43+'[3]5.2 Asset Age Profile'!DY43","v":0},{"$f":"'[2]5.2 Asset Age Profile'!DZ43+'[3]5.2 Asset Age Profile'!DZ43","v":0},{"$f":"'[2]5.2 Asset Age Profile'!EA43+'[3]5.2 Asset Age Profile'!EA43","v":0},{"$f":"'[2]5.2 Asset Age Profile'!EB43+'[3]5.2 Asset Age Profile'!EB43","v":0},{"$f":"'[2]5.2 Asset Age Profile'!EC43+'[3]5.2 Asset Age Profile'!EC43","v":0},{"$f":"'[2]5.2 Asset Age Profile'!ED43+'[3]5.2 Asset Age Profile'!ED43","v":0},{"$f":"'[2]5.2 Asset Age Profile'!EE43+'[3]5.2 Asset Age Profile'!EE43","v":0},{"$f":"'[2]5.2 Asset Age Profile'!EF43+'[3]5.2 Asset Age Profile'!EF43","v":0},{"$f":"'[2]5.2 Asset Age Profile'!EG43+'[3]5.2 Asset Age Profile'!EG43","v":0},{"$f":"'[2]5.2 Asset Age Profile'!EH43+'[3]5.2 Asset Age Profile'!EH43","v":0},{"$f":"'[2]5.2 Asset Age Profile'!EI43+'[3]5.2 Asset Age Profile'!EI43","v":0},{"$f":"'[2]5.2 Asset Age Profile'!EJ43+'[3]5.2 Asset Age Profile'!EJ43","v":0}]
["ED_ASS521_00034",null,"> 66 kV & < = 132 kV",null,null,null,null,null,null,null,null,null,null,{"$f":"'[2]5.2 Asset Age Profile'!N44+'[3]5.2 Asset Age Profile'!N44","v":50},{"$f":"'[2]5.2 Asset Age Profile'!O44+'[3]5.2 Asset Age Profile'!O44","v":0},{"$f":"'[2]5.2 Asset Age Profile'!P44+'[3]5.2 Asset Age Profile'!P44","v":0},{"$f":"'[2]5.2 Asset Age Profile'!Q44+'[3]5.2 Asset Age Profile'!Q44","v":0},{"$f":"'[2]5.2 Asset Age Profile'!R44+'[3]5.2 Asset Age Profile'!R44","v":0},{"$f":"'[2]5.2 Asset Age Profile'!S44+'[3]5.2 Asset Age Profile'!S44","v":0},{"$f":"'[2]5.2 Asset Age Profile'!T44+'[3]5.2 Asset Age Profile'!T44","v":0},{"$f":"'[2]5.2 Asset Age Profile'!U44+'[3]5.2 Asset Age Profile'!U44","v":0},{"$f":"'[2]5.2 Asset Age Profile'!V44+'[3]5.2 Asset Age Profile'!V44","v":0},{"$f":"'[2]5.2 Asset Age Profile'!W44+'[3]5.2 Asset Age Profile'!W44","v":0},{"$f":"'[2]5.2 Asset Age Profile'!X44+'[3]5.2 Asset Age Profile'!X44","v":0},{"$f":"'[2]5.2 Asset Age Profile'!Y44+'[3]5.2 Asset Age Profile'!Y44","v":7},{"$f":"'[2]5.2 Asset Age Profile'!Z44+'[3]5.2 Asset Age Profile'!Z44","v":0},{"$f":"'[2]5.2 Asset Age Profile'!AA44+'[3]5.2 Asset Age Profile'!AA44","v":0},{"$f":"'[2]5.2 Asset Age Profile'!AB44+'[3]5.2 Asset Age Profile'!AB44","v":0},{"$f":"'[2]5.2 Asset Age Profile'!AC44+'[3]5.2 Asset Age Profile'!AC44","v":0},{"$f":"'[2]5.2 Asset Age Profile'!AD44+'[3]5.2 Asset Age Profile'!AD44","v":0},{"$f":"'[2]5.2 Asset Age Profile'!AE44+'[3]5.2 Asset Age Profile'!AE44","v":0},{"$f":"'[2]5.2 Asset Age Profile'!AF44+'[3]5.2 Asset Age Profile'!AF44","v":0},{"$f":"'[2]5.2 Asset Age Profile'!AG44+'[3]5.2 Asset Age Profile'!AG44","v":0},{"$f":"'[2]5.2 Asset Age Profile'!AH44+'[3]5.2 Asset Age Profile'!AH44","v":0},{"$f":"'[2]5.2 Asset Age Profile'!AI44+'[3]5.2 Asset Age Profile'!AI44","v":0},{"$f":"'[2]5.2 Asset Age Profile'!AJ44+'[3]5.2 Asset Age Profile'!AJ44","v":0},{"$f":"'[2]5.2 Asset Age Profile'!AK44+'[3]5.2 Asset Age Profile'!AK44","v":6.4049999999999996E-2},{"$f":"'[2]5.2 Asset Age Profile'!AL44+'[3]5.2 Asset Age Profile'!AL44","v":0},{"$f":"'[2]5.2 Asset Age Profile'!AM44+'[3]5.2 Asset Age Profile'!AM44","v":30.446840000000002},{"$f":"'[2]5.2 Asset Age Profile'!AN44+'[3]5.2 Asset Age Profile'!AN44","v":0},{"$f":"'[2]5.2 Asset Age Profile'!AO44+'[3]5.2 Asset Age Profile'!AO44","v":0},{"$f":"'[2]5.2 Asset Age Profile'!AP44+'[3]5.2 Asset Age Profile'!AP44","v":0},{"$f":"'[2]5.2 Asset Age Profile'!AQ44+'[3]5.2 Asset Age Profile'!AQ44","v":0},{"$f":"'[2]5.2 Asset Age Profile'!AR44+'[3]5.2 Asset Age Profile'!AR44","v":0},{"$f":"'[2]5.2 Asset Age Profile'!AS44+'[3]5.2 Asset Age Profile'!AS44","v":0},{"$f":"'[2]5.2 Asset Age Profile'!AT44+'[3]5.2 Asset Age Profile'!AT44","v":0},{"$f":"'[2]5.2 Asset Age Profile'!AU44+'[3]5.2 Asset Age Profile'!AU44","v":0},{"$f":"'[2]5.2 Asset Age Profile'!AV44+'[3]5.2 Asset Age Profile'!AV44","v":0},{"$f":"'[2]5.2 Asset Age Profile'!AW44+'[3]5.2 Asset Age Profile'!AW44","v":0},{"$f":"'[2]5.2 Asset Age Profile'!AX44+'[3]5.2 Asset Age Profile'!AX44","v":0},{"$f":"'[2]5.2 Asset Age Profile'!AY44+'[3]5.2 Asset Age Profile'!AY44","v":0},{"$f":"'[2]5.2 Asset Age Profile'!AZ44+'[3]5.2 Asset Age Profile'!AZ44","v":0},{"$f":"'[2]5.2 Asset Age Profile'!BA44+'[3]5.2 Asset Age Profile'!BA44","v":0},{"$f":"'[2]5.2 Asset Age Profile'!BB44+'[3]5.2 Asset Age Profile'!BB44","v":0},{"$f":"'[2]5.2 Asset Age Profile'!BC44+'[3]5.2 Asset Age Profile'!BC44","v":0},{"$f":"'[2]5.2 Asset Age Profile'!BD44+'[3]5.2 Asset Age Profile'!BD44","v":0},{"$f":"'[2]5.2 Asset Age Profile'!BE44+'[3]5.2 Asset Age Profile'!BE44","v":26.314299999999996},{"$f":"'[2]5.2 Asset Age Profile'!BF44+'[3]5.2 Asset Age Profile'!BF44","v":0},{"$f":"'[2]5.2 Asset Age Profile'!BG44+'[3]5.2 Asset Age Profile'!BG44","v":1.8773199999999999},{"$f":"'[2]5.2 Asset Age Profile'!BH44+'[3]5.2 Asset Age Profile'!BH44","v":14.07546},{"$f":"'[2]5.2 Asset Age Profile'!BI44+'[3]5.2 Asset Age Profile'!BI44","v":0},{"$f":"'[2]5.2 Asset Age Profile'!BJ44+'[3]5.2 Asset Age Profile'!BJ44","v":13.145850000000001},{"$f":"'[2]5.2 Asset Age Profile'!BK44+'[3]5.2 Asset Age Profile'!BK44","v":19.306049999999999},{"$f":"'[2]5.2 Asset Age Profile'!BL44+'[3]5.2 Asset Age Profile'!BL44","v":0},{"$f":"'[2]5.2 Asset Age Profile'!BM44+'[3]5.2 Asset Age Profile'!BM44","v":0.11607999999999999},{"$f":"'[2]5.2 Asset Age Profile'!BN44+'[3]5.2 Asset Age Profile'!BN44","v":0},{"$f":"'[2]5.2 Asset Age Profile'!BO44+'[3]5.2 Asset Age Profile'!BO44","v":0},{"$f":"'[2]5.2 Asset Age Profile'!BP44+'[3]5.2 Asset Age Profile'!BP44","v":0},{"$f":"'[2]5.2 Asset Age Profile'!BQ44+'[3]5.2 Asset Age Profile'!BQ44","v":0},{"$f":"'[2]5.2 Asset Age Profile'!BR44+'[3]5.2 Asset Age Profile'!BR44","v":0},{"$f":"'[2]5.2 Asset Age Profile'!BS44+'[3]5.2 Asset Age Profile'!BS44","v":29.001950000000004},{"$f":"'[2]5.2 Asset Age Profile'!BT44+'[3]5.2 Asset Age Profile'!BT44","v":0},{"$f":"'[2]5.2 Asset Age Profile'!BU44+'[3]5.2 Asset Age Profile'!BU44","v":0},{"$f":"'[2]5.2 Asset Age Profile'!BV44+'[3]5.2 Asset Age Profile'!BV44","v":0},{"$f":"'[2]5.2 Asset Age Profile'!BW44+'[3]5.2 Asset Age Profile'!BW44","v":14.953750000000001},{"$f":"'[2]5.2 Asset Age Profile'!BX44+'[3]5.2 Asset Age Profile'!BX44","v":0},{"$f":"'[2]5.2 Asset Age Profile'!BY44+'[3]5.2 Asset Age Profile'!BY44","v":0},{"$f":"'[2]5.2 Asset Age Profile'!BZ44+'[3]5.2 Asset Age Profile'!BZ44","v":0},{"$f":"'[2]5.2 Asset Age Profile'!CA44+'[3]5.2 Asset Age Profile'!CA44","v":0},{"$f":"'[2]5.2 Asset Age Profile'!CB44+'[3]5.2 Asset Age Profile'!CB44","v":0},{"$f":"'[2]5.2 Asset Age Profile'!CC44+'[3]5.2 Asset Age Profile'!CC44","v":0},{"$f":"'[2]5.2 Asset Age Profile'!CD44+'[3]5.2 Asset Age Profile'!CD44","v":0},{"$f":"'[2]5.2 Asset Age Profile'!CE44+'[3]5.2 Asset Age Profile'!CE44","v":39.977080000000001},{"$f":"'[2]5.2 Asset Age Profile'!CF44+'[3]5.2 Asset Age Profile'!CF44","v":8.0870000000000025E-2},{"$f":"'[2]5.2 Asset Age Profile'!CG44+'[3]5.2 Asset Age Profile'!CG44","v":0.22423000000000012},{"$f":"'[2]5.2 Asset Age Profile'!CH44+'[3]5.2 Asset Age Profile'!CH44","v":0},{"$f":"'[2]5.2 Asset Age Profile'!CI44+'[3]5.2 Asset Age Profile'!CI44","v":0},{"$f":"'[2]5.2 Asset Age Profile'!CJ44+'[3]5.2 Asset Age Profile'!CJ44","v":0},{"$f":"'[2]5.2 Asset Age Profile'!CK44+'[3]5.2 Asset Age Profile'!CK44","v":0},{"$f":"'[2]5.2 Asset Age Profile'!CL44+'[3]5.2 Asset Age Profile'!CL44","v":0},{"$f":"'[2]5.2 Asset Age Profile'!CM44+'[3]5.2 Asset Age Profile'!CM44","v":8.4880000000000025E-2},{"$f":"'[2]5.2 Asset Age Profile'!CN44+'[3]5.2 Asset Age Profile'!CN44","v":0},{"$f":"'[2]5.2 Asset Age Profile'!CO44+'[3]5.2 Asset Age Profile'!CO44","v":0},{"$f":"'[2]5.2 Asset Age Profile'!CP44+'[3]5.2 Asset Age Profile'!CP44","v":0},{"$f":"'[2]5.2 Asset Age Profile'!CQ44+'[3]5.2 Asset Age Profile'!CQ44","v":0},{"$f":"'[2]5.2 Asset Age Profile'!CR44+'[3]5.2 Asset Age Profile'!CR44","v":0},{"$f":"'[2]5.2 Asset Age Profile'!CS44+'[3]5.2 Asset Age Profile'!CS44","v":0},{"$f":"'[2]5.2 Asset Age Profile'!CT44+'[3]5.2 Asset Age Profile'!CT44","v":0},{"$f":"'[2]5.2 Asset Age Profile'!CU44+'[3]5.2 Asset Age Profile'!CU44","v":0},{"$f":"'[2]5.2 Asset Age Profile'!CV44+'[3]5.2 Asset Age Profile'!CV44","v":0},{"$f":"'[2]5.2 Asset Age Profile'!CW44+'[3]5.2 Asset Age Profile'!CW44","v":0},{"$f":"'[2]5.2 Asset Age Profile'!CX44+'[3]5.2 Asset Age Profile'!CX44","v":0},{"$f":"'[2]5.2 Asset Age Profile'!CY44+'[3]5.2 Asset Age Profile'!CY44","v":0},{"$f":"'[2]5.2 Asset Age Profile'!CZ44+'[3]5.2 Asset Age Profile'!CZ44","v":0},{"$f":"'[2]5.2 Asset Age Profile'!DA44+'[3]5.2 Asset Age Profile'!DA44","v":0},{"$f":"'[2]5.2 Asset Age Profile'!DB44+'[3]5.2 Asset Age Profile'!DB44","v":0},{"$f":"'[2]5.2 Asset Age Profile'!DC44+'[3]5.2 Asset Age Profile'!DC44","v":0},{"$f":"'[2]5.2 Asset Age Profile'!DD44+'[3]5.2 Asset Age Profile'!DD44","v":0},{"$f":"'[2]5.2 Asset Age Profile'!DE44+'[3]5.2 Asset Age Profile'!DE44","v":0},{"$f":"'[2]5.2 Asset Age Profile'!DF44+'[3]5.2 Asset Age Profile'!DF44","v":0},{"$f":"'[2]5.2 Asset Age Profile'!DG44+'[3]5.2 Asset Age Profile'!DG44","v":0},{"$f":"'[2]5.2 Asset Age Profile'!DH44+'[3]5.2 Asset Age Profile'!DH44","v":0},{"$f":"'[2]5.2 Asset Age Profile'!DI44+'[3]5.2 Asset Age Profile'!DI44","v":0},{"$f":"'[2]5.2 Asset Age Profile'!DJ44+'[3]5.2 Asset Age Profile'!DJ44","v":0},{"$f":"'[2]5.2 Asset Age Profile'!DK44+'[3]5.2 Asset Age Profile'!DK44","v":0},{"$f":"'[2]5.2 Asset Age Profile'!DL44+'[3]5.2 Asset Age Profile'!DL44","v":0},{"$f":"'[2]5.2 Asset Age Profile'!DM44+'[3]5.2 Asset Age Profile'!DM44","v":0},{"$f":"'[2]5.2 Asset Age Profile'!DN44+'[3]5.2 Asset Age Profile'!DN44","v":0},{"$f":"'[2]5.2 Asset Age Profile'!DO44+'[3]5.2 Asset Age Profile'!DO44","v":0},{"$f":"'[2]5.2 Asset Age Profile'!DP44+'[3]5.2 Asset Age Profile'!DP44","v":0},{"$f":"'[2]5.2 Asset Age Profile'!DQ44+'[3]5.2 Asset Age Profile'!DQ44","v":0},{"$f":"'[2]5.2 Asset Age Profile'!DR44+'[3]5.2 Asset Age Profile'!DR44","v":0},{"$f":"'[2]5.2 Asset Age Profile'!DS44+'[3]5.2 Asset Age Profile'!DS44","v":0.14587999999999995},{"$f":"'[2]5.2 Asset Age Profile'!DT44+'[3]5.2 Asset Age Profile'!DT44","v":0},{"$f":"'[2]5.2 Asset Age Profile'!DU44+'[3]5.2 Asset Age Profile'!DU44","v":0},{"$f":"'[2]5.2 Asset Age Profile'!DV44+'[3]5.2 Asset Age Profile'!DV44","v":0},{"$f":"'[2]5.2 Asset Age Profile'!DW44+'[3]5.2 Asset Age Profile'!DW44","v":0},{"$f":"'[2]5.2 Asset Age Profile'!DX44+'[3]5.2 Asset Age Profile'!DX44","v":0},{"$f":"'[2]5.2 Asset Age Profile'!DY44+'[3]5.2 Asset Age Profile'!DY44","v":0},{"$f":"'[2]5.2 Asset Age Profile'!DZ44+'[3]5.2 Asset Age Profile'!DZ44","v":0},{"$f":"'[2]5.2 Asset Age Profile'!EA44+'[3]5.2 Asset Age Profile'!EA44","v":0},{"$f":"'[2]5.2 Asset Age Profile'!EB44+'[3]5.2 Asset Age Profile'!EB44","v":0},{"$f":"'[2]5.2 Asset Age Profile'!EC44+'[3]5.2 Asset Age Profile'!EC44","v":0},{"$f":"'[2]5.2 Asset Age Profile'!ED44+'[3]5.2 Asset Age Profile'!ED44","v":0},{"$f":"'[2]5.2 Asset Age Profile'!EE44+'[3]5.2 Asset Age Profile'!EE44","v":0},{"$f":"'[2]5.2 Asset Age Profile'!EF44+'[3]5.2 Asset Age Profile'!EF44","v":0},{"$f":"'[2]5.2 Asset Age Profile'!EG44+'[3]5.2 Asset Age Profile'!EG44","v":0},{"$f":"'[2]5.2 Asset Age Profile'!EH44+'[3]5.2 Asset Age Profile'!EH44","v":0},{"$f":"'[2]5.2 Asset Age Profile'!EI44+'[3]5.2 Asset Age Profile'!EI44","v":0},{"$f":"'[2]5.2 Asset Age Profile'!EJ44+'[3]5.2 Asset Age Profile'!EJ44","v":0}]
["ED_ASS521_00035",null,"> 132 kV",null,null,null,null,null,null,null,null,null,null,{"$f":"'[2]5.2 Asset Age Profile'!N45+'[3]5.2 Asset Age Profile'!N45","v":0},{"$f":"'[2]5.2 Asset Age Profile'!O45+'[3]5.2 Asset Age Profile'!O45","v":0},{"$f":"'[2]5.2 Asset Age Profile'!P45+'[3]5.2 Asset Age Profile'!P45","v":0},{"$f":"'[2]5.2 Asset Age Profile'!Q45+'[3]5.2 Asset Age Profile'!Q45","v":0},{"$f":"'[2]5.2 Asset Age Profile'!R45+'[3]5.2 Asset Age Profile'!R45","v":0},{"$f":"'[2]5.2 Asset Age Profile'!S45+'[3]5.2 Asset Age Profile'!S45","v":0},{"$f":"'[2]5.2 Asset Age Profile'!T45+'[3]5.2 Asset Age Profile'!T45","v":0},{"$f":"'[2]5.2 Asset Age Profile'!U45+'[3]5.2 Asset Age Profile'!U45","v":0},{"$f":"'[2]5.2 Asset Age Profile'!V45+'[3]5.2 Asset Age Profile'!V45","v":0},{"$f":"'[2]5.2 Asset Age Profile'!W45+'[3]5.2 Asset Age Profile'!W45","v":0},{"$f":"'[2]5.2 Asset Age Profile'!X45+'[3]5.2 Asset Age Profile'!X45","v":0},{"$f":"'[2]5.2 Asset Age Profile'!Y45+'[3]5.2 Asset Age Profile'!Y45","v":0},{"$f":"'[2]5.2 Asset Age Profile'!Z45+'[3]5.2 Asset Age Profile'!Z45","v":0},{"$f":"'[2]5.2 Asset Age Profile'!AA45+'[3]5.2 Asset Age Profile'!AA45","v":0},{"$f":"'[2]5.2 Asset Age Profile'!AB45+'[3]5.2 Asset Age Profile'!AB45","v":0},{"$f":"'[2]5.2 Asset Age Profile'!AC45+'[3]5.2 Asset Age Profile'!AC45","v":0},{"$f":"'[2]5.2 Asset Age Profile'!AD45+'[3]5.2 Asset Age Profile'!AD45","v":0},{"$f":"'[2]5.2 Asset Age Profile'!AE45+'[3]5.2 Asset Age Profile'!AE45","v":0},{"$f":"'[2]5.2 Asset Age Profile'!AF45+'[3]5.2 Asset Age Profile'!AF45","v":0},{"$f":"'[2]5.2 Asset Age Profile'!AG45+'[3]5.2 Asset Age Profile'!AG45","v":0},{"$f":"'[2]5.2 Asset Age Profile'!AH45+'[3]5.2 Asset Age Profile'!AH45","v":0},{"$f":"'[2]5.2 Asset Age Profile'!AI45+'[3]5.2 Asset Age Profile'!AI45","v":0},{"$f":"'[2]5.2 Asset Age Profile'!AJ45+'[3]5.2 Asset Age Profile'!AJ45","v":0},{"$f":"'[2]5.2 Asset Age Profile'!AK45+'[3]5.2 Asset Age Profile'!AK45","v":0},{"$f":"'[2]5.2 Asset Age Profile'!AL45+'[3]5.2 Asset Age Profile'!AL45","v":0},{"$f":"'[2]5.2 Asset Age Profile'!AM45+'[3]5.2 Asset Age Profile'!AM45","v":0},{"$f":"'[2]5.2 Asset Age Profile'!AN45+'[3]5.2 Asset Age Profile'!AN45","v":0},{"$f":"'[2]5.2 Asset Age Profile'!AO45+'[3]5.2 Asset Age Profile'!AO45","v":0},{"$f":"'[2]5.2 Asset Age Profile'!AP45+'[3]5.2 Asset Age Profile'!AP45","v":0},{"$f":"'[2]5.2 Asset Age Profile'!AQ45+'[3]5.2 Asset Age Profile'!AQ45","v":0},{"$f":"'[2]5.2 Asset Age Profile'!AR45+'[3]5.2 Asset Age Profile'!AR45","v":0},{"$f":"'[2]5.2 Asset Age Profile'!AS45+'[3]5.2 Asset Age Profile'!AS45","v":0},{"$f":"'[2]5.2 Asset Age Profile'!AT45+'[3]5.2 Asset Age Profile'!AT45","v":0},{"$f":"'[2]5.2 Asset Age Profile'!AU45+'[3]5.2 Asset Age Profile'!AU45","v":0},{"$f":"'[2]5.2 Asset Age Profile'!AV45+'[3]5.2 Asset Age Profile'!AV45","v":0},{"$f":"'[2]5.2 Asset Age Profile'!AW45+'[3]5.2 Asset Age Profile'!AW45","v":0},{"$f":"'[2]5.2 Asset Age Profile'!AX45+'[3]5.2 Asset Age Profile'!AX45","v":0},{"$f":"'[2]5.2 Asset Age Profile'!AY45+'[3]5.2 Asset Age Profile'!AY45","v":0},{"$f":"'[2]5.2 Asset Age Profile'!AZ45+'[3]5.2 Asset Age Profile'!AZ45","v":0},{"$f":"'[2]5.2 Asset Age Profile'!BA45+'[3]5.2 Asset Age Profile'!BA45","v":0},{"$f":"'[2]5.2 Asset Age Profile'!BB45+'[3]5.2 Asset Age Profile'!BB45","v":0},{"$f":"'[2]5.2 Asset Age Profile'!BC45+'[3]5.2 Asset Age Profile'!BC45","v":0},{"$f":"'[2]5.2 Asset Age Profile'!BD45+'[3]5.2 Asset Age Profile'!BD45","v":0},{"$f":"'[2]5.2 Asset Age Profile'!BE45+'[3]5.2 Asset Age Profile'!BE45","v":0},{"$f":"'[2]5.2 Asset Age Profile'!BF45+'[3]5.2 Asset Age Profile'!BF45","v":0},{"$f":"'[2]5.2 Asset Age Profile'!BG45+'[3]5.2 Asset Age Profile'!BG45","v":0},{"$f":"'[2]5.2 Asset Age Profile'!BH45+'[3]5.2 Asset Age Profile'!BH45","v":0},{"$f":"'[2]5.2 Asset Age Profile'!BI45+'[3]5.2 Asset Age Profile'!BI45","v":0},{"$f":"'[2]5.2 Asset Age Profile'!BJ45+'[3]5.2 Asset Age Profile'!BJ45","v":0},{"$f":"'[2]5.2 Asset Age Profile'!BK45+'[3]5.2 Asset Age Profile'!BK45","v":0},{"$f":"'[2]5.2 Asset Age Profile'!BL45+'[3]5.2 Asset Age Profile'!BL45","v":0},{"$f":"'[2]5.2 Asset Age Profile'!BM45+'[3]5.2 Asset Age Profile'!BM45","v":0},{"$f":"'[2]5.2 Asset Age Profile'!BN45+'[3]5.2 Asset Age Profile'!BN45","v":0},{"$f":"'[2]5.2 Asset Age Profile'!BO45+'[3]5.2 Asset Age Profile'!BO45","v":0},{"$f":"'[2]5.2 Asset Age Profile'!BP45+'[3]5.2 Asset Age Profile'!BP45","v":0},{"$f":"'[2]5.2 Asset Age Profile'!BQ45+'[3]5.2 Asset Age Profile'!BQ45","v":0},{"$f":"'[2]5.2 Asset Age Profile'!BR45+'[3]5.2 Asset Age Profile'!BR45","v":0},{"$f":"'[2]5.2 Asset Age Profile'!BS45+'[3]5.2 Asset Age Profile'!BS45","v":0},{"$f":"'[2]5.2 Asset Age Profile'!BT45+'[3]5.2 Asset Age Profile'!BT45","v":0},{"$f":"'[2]5.2 Asset Age Profile'!BU45+'[3]5.2 Asset Age Profile'!BU45","v":0},{"$f":"'[2]5.2 Asset Age Profile'!BV45+'[3]5.2 Asset Age Profile'!BV45","v":0},{"$f":"'[2]5.2 Asset Age Profile'!BW45+'[3]5.2 Asset Age Profile'!BW45","v":0},{"$f":"'[2]5.2 Asset Age Profile'!BX45+'[3]5.2 Asset Age Profile'!BX45","v":0},{"$f":"'[2]5.2 Asset Age Profile'!BY45+'[3]5.2 Asset Age Profile'!BY45","v":0},{"$f":"'[2]5.2 Asset Age Profile'!BZ45+'[3]5.2 Asset Age Profile'!BZ45","v":0},{"$f":"'[2]5.2 Asset Age Profile'!CA45+'[3]5.2 Asset Age Profile'!CA45","v":0},{"$f":"'[2]5.2 Asset Age Profile'!CB45+'[3]5.2 Asset Age Profile'!CB45","v":0},{"$f":"'[2]5.2 Asset Age Profile'!CC45+'[3]5.2 Asset Age Profile'!CC45","v":0},{"$f":"'[2]5.2 Asset Age Profile'!CD45+'[3]5.2 Asset Age Profile'!CD45","v":0},{"$f":"'[2]5.2 Asset Age Profile'!CE45+'[3]5.2 Asset Age Profile'!CE45","v":0},{"$f":"'[2]5.2 Asset Age Profile'!CF45+'[3]5.2 Asset Age Profile'!CF45","v":0},{"$f":"'[2]5.2 Asset Age Profile'!CG45+'[3]5.2 Asset Age Profile'!CG45","v":0},{"$f":"'[2]5.2 Asset Age Profile'!CH45+'[3]5.2 Asset Age Profile'!CH45","v":0},{"$f":"'[2]5.2 Asset Age Profile'!CI45+'[3]5.2 Asset Age Profile'!CI45","v":0},{"$f":"'[2]5.2 Asset Age Profile'!CJ45+'[3]5.2 Asset Age Profile'!CJ45","v":0},{"$f":"'[2]5.2 Asset Age Profile'!CK45+'[3]5.2 Asset Age Profile'!CK45","v":0},{"$f":"'[2]5.2 Asset Age Profile'!CL45+'[3]5.2 Asset Age Profile'!CL45","v":0},{"$f":"'[2]5.2 Asset Age Profile'!CM45+'[3]5.2 Asset Age Profile'!CM45","v":0},{"$f":"'[2]5.2 Asset Age Profile'!CN45+'[3]5.2 Asset Age Profile'!CN45","v":0},{"$f":"'[2]5.2 Asset Age Profile'!CO45+'[3]5.2 Asset Age Profile'!CO45","v":0},{"$f":"'[2]5.2 Asset Age Profile'!CP45+'[3]5.2 Asset Age Profile'!CP45","v":0},{"$f":"'[2]5.2 Asset Age Profile'!CQ45+'[3]5.2 Asset Age Profile'!CQ45","v":0},{"$f":"'[2]5.2 Asset Age Profile'!CR45+'[3]5.2 Asset Age Profile'!CR45","v":0},{"$f":"'[2]5.2 Asset Age Profile'!CS45+'[3]5.2 Asset Age Profile'!CS45","v":0},{"$f":"'[2]5.2 Asset Age Profile'!CT45+'[3]5.2 Asset Age Profile'!CT45","v":0},{"$f":"'[2]5.2 Asset Age Profile'!CU45+'[3]5.2 Asset Age Profile'!CU45","v":0},{"$f":"'[2]5.2 Asset Age Profile'!CV45+'[3]5.2 Asset Age Profile'!CV45","v":0},{"$f":"'[2]5.2 Asset Age Profile'!CW45+'[3]5.2 Asset Age Profile'!CW45","v":0},{"$f":"'[2]5.2 Asset Age Profile'!CX45+'[3]5.2 Asset Age Profile'!CX45","v":0},{"$f":"'[2]5.2 Asset Age Profile'!CY45+'[3]5.2 Asset Age Profile'!CY45","v":0},{"$f":"'[2]5.2 Asset Age Profile'!CZ45+'[3]5.2 Asset Age Profile'!CZ45","v":0},{"$f":"'[2]5.2 Asset Age Profile'!DA45+'[3]5.2 Asset Age Profile'!DA45","v":0},{"$f":"'[2]5.2 Asset Age Profile'!DB45+'[3]5.2 Asset Age Profile'!DB45","v":0},{"$f":"'[2]5.2 Asset Age Profile'!DC45+'[3]5.2 Asset Age Profile'!DC45","v":0},{"$f":"'[2]5.2 Asset Age Profile'!DD45+'[3]5.2 Asset Age Profile'!DD45","v":0},{"$f":"'[2]5.2 Asset Age Profile'!DE45+'[3]5.2 Asset Age Profile'!DE45","v":0},{"$f":"'[2]5.2 Asset Age Profile'!DF45+'[3]5.2 Asset Age Profile'!DF45","v":0},{"$f":"'[2]5.2 Asset Age Profile'!DG45+'[3]5.2 Asset Age Profile'!DG45","v":0},{"$f":"'[2]5.2 Asset Age Profile'!DH45+'[3]5.2 Asset Age Profile'!DH45","v":0},{"$f":"'[2]5.2 Asset Age Profile'!DI45+'[3]5.2 Asset Age Profile'!DI45","v":0},{"$f":"'[2]5.2 Asset Age Profile'!DJ45+'[3]5.2 Asset Age Profile'!DJ45","v":0},{"$f":"'[2]5.2 Asset Age Profile'!DK45+'[3]5.2 Asset Age Profile'!DK45","v":0},{"$f":"'[2]5.2 Asset Age Profile'!DL45+'[3]5.2 Asset Age Profile'!DL45","v":0},{"$f":"'[2]5.2 Asset Age Profile'!DM45+'[3]5.2 Asset Age Profile'!DM45","v":0},{"$f":"'[2]5.2 Asset Age Profile'!DN45+'[3]5.2 Asset Age Profile'!DN45","v":0},{"$f":"'[2]5.2 Asset Age Profile'!DO45+'[3]5.2 Asset Age Profile'!DO45","v":0},{"$f":"'[2]5.2 Asset Age Profile'!DP45+'[3]5.2 Asset Age Profile'!DP45","v":0},{"$f":"'[2]5.2 Asset Age Profile'!DQ45+'[3]5.2 Asset Age Profile'!DQ45","v":0},{"$f":"'[2]5.2 Asset Age Profile'!DR45+'[3]5.2 Asset Age Profile'!DR45","v":0},{"$f":"'[2]5.2 Asset Age Profile'!DS45+'[3]5.2 Asset Age Profile'!DS45","v":0},{"$f":"'[2]5.2 Asset Age Profile'!DT45+'[3]5.2 Asset Age Profile'!DT45","v":0},{"$f":"'[2]5.2 Asset Age Profile'!DU45+'[3]5.2 Asset Age Profile'!DU45","v":0},{"$f":"'[2]5.2 Asset Age Profile'!DV45+'[3]5.2 Asset Age Profile'!DV45","v":0},{"$f":"'[2]5.2 Asset Age Profile'!DW45+'[3]5.2 Asset Age Profile'!DW45","v":0},{"$f":"'[2]5.2 Asset Age Profile'!DX45+'[3]5.2 Asset Age Profile'!DX45","v":0},{"$f":"'[2]5.2 Asset Age Profile'!DY45+'[3]5.2 Asset Age Profile'!DY45","v":0},{"$f":"'[2]5.2 Asset Age Profile'!DZ45+'[3]5.2 Asset Age Profile'!DZ45","v":0},{"$f":"'[2]5.2 Asset Age Profile'!EA45+'[3]5.2 Asset Age Profile'!EA45","v":0},{"$f":"'[2]5.2 Asset Age Profile'!EB45+'[3]5.2 Asset Age Profile'!EB45","v":0},{"$f":"'[2]5.2 Asset Age Profile'!EC45+'[3]5.2 Asset Age Profile'!EC45","v":0},{"$f":"'[2]5.2 Asset Age Profile'!ED45+'[3]5.2 Asset Age Profile'!ED45","v":0},{"$f":"'[2]5.2 Asset Age Profile'!EE45+'[3]5.2 Asset Age Profile'!EE45","v":0},{"$f":"'[2]5.2 Asset Age Profile'!EF45+'[3]5.2 Asset Age Profile'!EF45","v":0},{"$f":"'[2]5.2 Asset Age Profile'!EG45+'[3]5.2 Asset Age Profile'!EG45","v":0},{"$f":"'[2]5.2 Asset Age Profile'!EH45+'[3]5.2 Asset Age Profile'!EH45","v":0},{"$f":"'[2]5.2 Asset Age Profile'!EI45+'[3]5.2 Asset Age Profile'!EI45","v":0},{"$f":"'[2]5.2 Asset Age Profile'!EJ45+'[3]5.2 Asset Age Profile'!EJ45","v":0}]
["ED_ASS521_00036",null,"Other",null,"DNSP NAME","REPEX","OVERHEAD CONDUCTORS","Other","DESCRIPTOR METRIC","MEAN ECONOMIC LIFE","YEARS","NUMBER",null,{"$f":"'[2]5.2 Asset Age Profile'!N46+'[3]5.2 Asset Age Profile'!N46","v":0},{"$f":"'[2]5.2 Asset Age Profile'!O46+'[3]5.2 Asset Age Profile'!O46","v":0},{"$f":"'[2]5.2 Asset Age Profile'!P46+'[3]5.2 Asset Age Profile'!P46","v":0},{"$f":"'[2]5.2 Asset Age Profile'!Q46+'[3]5.2 Asset Age Profile'!Q46","v":0},{"$f":"'[2]5.2 Asset Age Profile'!R46+'[3]5.2 Asset Age Profile'!R46","v":0},{"$f":"'[2]5.2 Asset Age Profile'!S46+'[3]5.2 Asset Age Profile'!S46","v":0},{"$f":"'[2]5.2 Asset Age Profile'!T46+'[3]5.2 Asset Age Profile'!T46","v":0},{"$f":"'[2]5.2 Asset Age Profile'!U46+'[3]5.2 Asset Age Profile'!U46","v":0},{"$f":"'[2]5.2 Asset Age Profile'!V46+'[3]5.2 Asset Age Profile'!V46","v":0},{"$f":"'[2]5.2 Asset Age Profile'!W46+'[3]5.2 Asset Age Profile'!W46","v":0},{"$f":"'[2]5.2 Asset Age Profile'!X46+'[3]5.2 Asset Age Profile'!X46","v":0},{"$f":"'[2]5.2 Asset Age Profile'!Y46+'[3]5.2 Asset Age Profile'!Y46","v":0},{"$f":"'[2]5.2 Asset Age Profile'!Z46+'[3]5.2 Asset Age Profile'!Z46","v":0},{"$f":"'[2]5.2 Asset Age Profile'!AA46+'[3]5.2 Asset Age Profile'!AA46","v":0},{"$f":"'[2]5.2 Asset Age Profile'!AB46+'[3]5.2 Asset Age Profile'!AB46","v":0},{"$f":"'[2]5.2 Asset Age Profile'!AC46+'[3]5.2 Asset Age Profile'!AC46","v":0},{"$f":"'[2]5.2 Asset Age Profile'!AD46+'[3]5.2 Asset Age Profile'!AD46","v":0},{"$f":"'[2]5.2 Asset Age Profile'!AE46+'[3]5.2 Asset Age Profile'!AE46","v":0},{"$f":"'[2]5.2 Asset Age Profile'!AF46+'[3]5.2 Asset Age Profile'!AF46","v":0},{"$f":"'[2]5.2 Asset Age Profile'!AG46+'[3]5.2 Asset Age Profile'!AG46","v":0},{"$f":"'[2]5.2 Asset Age Profile'!AH46+'[3]5.2 Asset Age Profile'!AH46","v":0},{"$f":"'[2]5.2 Asset Age Profile'!AI46+'[3]5.2 Asset Age Profile'!AI46","v":0},{"$f":"'[2]5.2 Asset Age Profile'!AJ46+'[3]5.2 Asset Age Profile'!AJ46","v":0},{"$f":"'[2]5.2 Asset Age Profile'!AK46+'[3]5.2 Asset Age Profile'!AK46","v":0},{"$f":"'[2]5.2 Asset Age Profile'!AL46+'[3]5.2 Asset Age Profile'!AL46","v":0},{"$f":"'[2]5.2 Asset Age Profile'!AM46+'[3]5.2 Asset Age Profile'!AM46","v":0},{"$f":"'[2]5.2 Asset Age Profile'!AN46+'[3]5.2 Asset Age Profile'!AN46","v":0},{"$f":"'[2]5.2 Asset Age Profile'!AO46+'[3]5.2 Asset Age Profile'!AO46","v":0},{"$f":"'[2]5.2 Asset Age Profile'!AP46+'[3]5.2 Asset Age Profile'!AP46","v":0},{"$f":"'[2]5.2 Asset Age Profile'!AQ46+'[3]5.2 Asset Age Profile'!AQ46","v":0},{"$f":"'[2]5.2 Asset Age Profile'!AR46+'[3]5.2 Asset Age Profile'!AR46","v":0},{"$f":"'[2]5.2 Asset Age Profile'!AS46+'[3]5.2 Asset Age Profile'!AS46","v":0},{"$f":"'[2]5.2 Asset Age Profile'!AT46+'[3]5.2 Asset Age Profile'!AT46","v":0},{"$f":"'[2]5.2 Asset Age Profile'!AU46+'[3]5.2 Asset Age Profile'!AU46","v":0},{"$f":"'[2]5.2 Asset Age Profile'!AV46+'[3]5.2 Asset Age Profile'!AV46","v":0},{"$f":"'[2]5.2 Asset Age Profile'!AW46+'[3]5.2 Asset Age Profile'!AW46","v":0},{"$f":"'[2]5.2 Asset Age Profile'!AX46+'[3]5.2 Asset Age Profile'!AX46","v":0},{"$f":"'[2]5.2 Asset Age Profile'!AY46+'[3]5.2 Asset Age Profile'!AY46","v":0},{"$f":"'[2]5.2 Asset Age Profile'!AZ46+'[3]5.2 Asset Age Profile'!AZ46","v":0},{"$f":"'[2]5.2 Asset Age Profile'!BA46+'[3]5.2 Asset Age Profile'!BA46","v":0},{"$f":"'[2]5.2 Asset Age Profile'!BB46+'[3]5.2 Asset Age Profile'!BB46","v":0},{"$f":"'[2]5.2 Asset Age Profile'!BC46+'[3]5.2 Asset Age Profile'!BC46","v":0},{"$f":"'[2]5.2 Asset Age Profile'!BD46+'[3]5.2 Asset Age Profile'!BD46","v":0},{"$f":"'[2]5.2 Asset Age Profile'!BE46+'[3]5.2 Asset Age Profile'!BE46","v":0},{"$f":"'[2]5.2 Asset Age Profile'!BF46+'[3]5.2 Asset Age Profile'!BF46","v":0},{"$f":"'[2]5.2 Asset Age Profile'!BG46+'[3]5.2 Asset Age Profile'!BG46","v":0},{"$f":"'[2]5.2 Asset Age Profile'!BH46+'[3]5.2 Asset Age Profile'!BH46","v":0},{"$f":"'[2]5.2 Asset Age Profile'!BI46+'[3]5.2 Asset Age Profile'!BI46","v":0},{"$f":"'[2]5.2 Asset Age Profile'!BJ46+'[3]5.2 Asset Age Profile'!BJ46","v":0},{"$f":"'[2]5.2 Asset Age Profile'!BK46+'[3]5.2 Asset Age Profile'!BK46","v":0},{"$f":"'[2]5.2 Asset Age Profile'!BL46+'[3]5.2 Asset Age Profile'!BL46","v":0},{"$f":"'[2]5.2 Asset Age Profile'!BM46+'[3]5.2 Asset Age Profile'!BM46","v":0},{"$f":"'[2]5.2 Asset Age Profile'!BN46+'[3]5.2 Asset Age Profile'!BN46","v":0},{"$f":"'[2]5.2 Asset Age Profile'!BO46+'[3]5.2 Asset Age Profile'!BO46","v":0},{"$f":"'[2]5.2 Asset Age Profile'!BP46+'[3]5.2 Asset Age Profile'!BP46","v":0},{"$f":"'[2]5.2 Asset Age Profile'!BQ46+'[3]5.2 Asset Age Profile'!BQ46","v":0},{"$f":"'[2]5.2 Asset Age Profile'!BR46+'[3]5.2 Asset Age Profile'!BR46","v":0},{"$f":"'[2]5.2 Asset Age Profile'!BS46+'[3]5.2 Asset Age Profile'!BS46","v":0},{"$f":"'[2]5.2 Asset Age Profile'!BT46+'[3]5.2 Asset Age Profile'!BT46","v":0},{"$f":"'[2]5.2 Asset Age Profile'!BU46+'[3]5.2 Asset Age Profile'!BU46","v":0},{"$f":"'[2]5.2 Asset Age Profile'!BV46+'[3]5.2 Asset Age Profile'!BV46","v":0},{"$f":"'[2]5.2 Asset Age Profile'!BW46+'[3]5.2 Asset Age Profile'!BW46","v":0},{"$f":"'[2]5.2 Asset Age Profile'!BX46+'[3]5.2 Asset Age Profile'!BX46","v":0},{"$f":"'[2]5.2 Asset Age Profile'!BY46+'[3]5.2 Asset Age Profile'!BY46","v":0},{"$f":"'[2]5.2 Asset Age Profile'!BZ46+'[3]5.2 Asset Age Profile'!BZ46","v":0},{"$f":"'[2]5.2 Asset Age Profile'!CA46+'[3]5.2 Asset Age Profile'!CA46","v":0},{"$f":"'[2]5.2 Asset Age Profile'!CB46+'[3]5.2 Asset Age Profile'!CB46","v":0},{"$f":"'[2]5.2 Asset Age Profile'!CC46+'[3]5.2 Asset Age Profile'!CC46","v":0},{"$f":"'[2]5.2 Asset Age Profile'!CD46+'[3]5.2 Asset Age Profile'!CD46","v":0},{"$f":"'[2]5.2 Asset Age Profile'!CE46+'[3]5.2 Asset Age Profile'!CE46","v":0},{"$f":"'[2]5.2 Asset Age Profile'!CF46+'[3]5.2 Asset Age Profile'!CF46","v":0},{"$f":"'[2]5.2 Asset Age Profile'!CG46+'[3]5.2 Asset Age Profile'!CG46","v":0},{"$f":"'[2]5.2 Asset Age Profile'!CH46+'[3]5.2 Asset Age Profile'!CH46","v":0},{"$f":"'[2]5.2 Asset Age Profile'!CI46+'[3]5.2 Asset Age Profile'!CI46","v":0},{"$f":"'[2]5.2 Asset Age Profile'!CJ46+'[3]5.2 Asset Age Profile'!CJ46","v":0},{"$f":"'[2]5.2 Asset Age Profile'!CK46+'[3]5.2 Asset Age Profile'!CK46","v":0},{"$f":"'[2]5.2 Asset Age Profile'!CL46+'[3]5.2 Asset Age Profile'!CL46","v":0},{"$f":"'[2]5.2 Asset Age Profile'!CM46+'[3]5.2 Asset Age Profile'!CM46","v":0},{"$f":"'[2]5.2 Asset Age Profile'!CN46+'[3]5.2 Asset Age Profile'!CN46","v":0},{"$f":"'[2]5.2 Asset Age Profile'!CO46+'[3]5.2 Asset Age Profile'!CO46","v":0},{"$f":"'[2]5.2 Asset Age Profile'!CP46+'[3]5.2 Asset Age Profile'!CP46","v":0},{"$f":"'[2]5.2 Asset Age Profile'!CQ46+'[3]5.2 Asset Age Profile'!CQ46","v":0},{"$f":"'[2]5.2 Asset Age Profile'!CR46+'[3]5.2 Asset Age Profile'!CR46","v":0},{"$f":"'[2]5.2 Asset Age Profile'!CS46+'[3]5.2 Asset Age Profile'!CS46","v":0},{"$f":"'[2]5.2 Asset Age Profile'!CT46+'[3]5.2 Asset Age Profile'!CT46","v":0},{"$f":"'[2]5.2 Asset Age Profile'!CU46+'[3]5.2 Asset Age Profile'!CU46","v":0},{"$f":"'[2]5.2 Asset Age Profile'!CV46+'[3]5.2 Asset Age Profile'!CV46","v":0},{"$f":"'[2]5.2 Asset Age Profile'!CW46+'[3]5.2 Asset Age Profile'!CW46","v":0},{"$f":"'[2]5.2 Asset Age Profile'!CX46+'[3]5.2 Asset Age Profile'!CX46","v":0},{"$f":"'[2]5.2 Asset Age Profile'!CY46+'[3]5.2 Asset Age Profile'!CY46","v":0},{"$f":"'[2]5.2 Asset Age Profile'!CZ46+'[3]5.2 Asset Age Profile'!CZ46","v":0},{"$f":"'[2]5.2 Asset Age Profile'!DA46+'[3]5.2 Asset Age Profile'!DA46","v":0},{"$f":"'[2]5.2 Asset Age Profile'!DB46+'[3]5.2 Asset Age Profile'!DB46","v":0},{"$f":"'[2]5.2 Asset Age Profile'!DC46+'[3]5.2 Asset Age Profile'!DC46","v":0},{"$f":"'[2]5.2 Asset Age Profile'!DD46+'[3]5.2 Asset Age Profile'!DD46","v":0},{"$f":"'[2]5.2 Asset Age Profile'!DE46+'[3]5.2 Asset Age Profile'!DE46","v":0},{"$f":"'[2]5.2 Asset Age Profile'!DF46+'[3]5.2 Asset Age Profile'!DF46","v":0},{"$f":"'[2]5.2 Asset Age Profile'!DG46+'[3]5.2 Asset Age Profile'!DG46","v":0},{"$f":"'[2]5.2 Asset Age Profile'!DH46+'[3]5.2 Asset Age Profile'!DH46","v":0},{"$f":"'[2]5.2 Asset Age Profile'!DI46+'[3]5.2 Asset Age Profile'!DI46","v":0},{"$f":"'[2]5.2 Asset Age Profile'!DJ46+'[3]5.2 Asset Age Profile'!DJ46","v":0},{"$f":"'[2]5.2 Asset Age Profile'!DK46+'[3]5.2 Asset Age Profile'!DK46","v":0},{"$f":"'[2]5.2 Asset Age Profile'!DL46+'[3]5.2 Asset Age Profile'!DL46","v":0},{"$f":"'[2]5.2 Asset Age Profile'!DM46+'[3]5.2 Asset Age Profile'!DM46","v":0},{"$f":"'[2]5.2 Asset Age Profile'!DN46+'[3]5.2 Asset Age Profile'!DN46","v":0},{"$f":"'[2]5.2 Asset Age Profile'!DO46+'[3]5.2 Asset Age Profile'!DO46","v":0},{"$f":"'[2]5.2 Asset Age Profile'!DP46+'[3]5.2 Asset Age Profile'!DP46","v":0},{"$f":"'[2]5.2 Asset Age Profile'!DQ46+'[3]5.2 Asset Age Profile'!DQ46","v":0},{"$f":"'[2]5.2 Asset Age Profile'!DR46+'[3]5.2 Asset Age Profile'!DR46","v":0},{"$f":"'[2]5.2 Asset Age Profile'!DS46+'[3]5.2 Asset Age Profile'!DS46","v":0},{"$f":"'[2]5.2 Asset Age Profile'!DT46+'[3]5.2 Asset Age Profile'!DT46","v":0},{"$f":"'[2]5.2 Asset Age Profile'!DU46+'[3]5.2 Asset Age Profile'!DU46","v":0},{"$f":"'[2]5.2 Asset Age Profile'!DV46+'[3]5.2 Asset Age Profile'!DV46","v":0},{"$f":"'[2]5.2 Asset Age Profile'!DW46+'[3]5.2 Asset Age Profile'!DW46","v":0},{"$f":"'[2]5.2 Asset Age Profile'!DX46+'[3]5.2 Asset Age Profile'!DX46","v":0},{"$f":"'[2]5.2 Asset Age Profile'!DY46+'[3]5.2 Asset Age Profile'!DY46","v":0},{"$f":"'[2]5.2 Asset Age Profile'!DZ46+'[3]5.2 Asset Age Profile'!DZ46","v":0},{"$f":"'[2]5.2 Asset Age Profile'!EA46+'[3]5.2 Asset Age Profile'!EA46","v":0},{"$f":"'[2]5.2 Asset Age Profile'!EB46+'[3]5.2 Asset Age Profile'!EB46","v":0},{"$f":"'[2]5.2 Asset Age Profile'!EC46+'[3]5.2 Asset Age Profile'!EC46","v":0},{"$f":"'[2]5.2 Asset Age Profile'!ED46+'[3]5.2 Asset Age Profile'!ED46","v":0},{"$f":"'[2]5.2 Asset Age Profile'!EE46+'[3]5.2 Asset Age Profile'!EE46","v":0},{"$f":"'[2]5.2 Asset Age Profile'!EF46+'[3]5.2 Asset Age Profile'!EF46","v":0},{"$f":"'[2]5.2 Asset Age Profile'!EG46+'[3]5.2 Asset Age Profile'!EG46","v":0},{"$f":"'[2]5.2 Asset Age Profile'!EH46+'[3]5.2 Asset Age Profile'!EH46","v":0},{"$f":"'[2]5.2 Asset Age Profile'!EI46+'[3]5.2 Asset Age Profile'!EI46","v":0},{"$f":"'[2]5.2 Asset Age Profile'!EJ46+'[3]5.2 Asset Age Profile'!EJ46","v":0}]
["ED_ASS521_00037","UNDERGROUND CABLES BY: \nHIGHEST OPERATING VOLTAGE","˂ = 1 kV",null,"DNSP NAME","REPEX","UNDERGROUND CABLES","˂ = 1 kV","DESCRIPTOR METRIC","MEAN ECONOMIC LIFE","YEARS","NUMBER",null,{"$f":"'[2]5.2 Asset Age Profile'!N47+'[3]5.2 Asset Age Profile'!N47","v":40},{"$f":"'[2]5.2 Asset Age Profile'!O47+'[3]5.2 Asset Age Profile'!O47","v":0},{"$f":"'[2]5.2 Asset Age Profile'!P47+'[3]5.2 Asset Age Profile'!P47","v":0},{"$f":"'[2]5.2 Asset Age Profile'!Q47+'[3]5.2 Asset Age Profile'!Q47","v":0},{"$f":"'[2]5.2 Asset Age Profile'!R47+'[3]5.2 Asset Age Profile'!R47","v":0},{"$f":"'[2]5.2 Asset Age Profile'!S47+'[3]5.2 Asset Age Profile'!S47","v":0},{"$f":"'[2]5.2 Asset Age Profile'!T47+'[3]5.2 Asset Age Profile'!T47","v":0},{"$f":"'[2]5.2 Asset Age Profile'!U47+'[3]5.2 Asset Age Profile'!U47","v":0},{"$f":"'[2]5.2 Asset Age Profile'!V47+'[3]5.2 Asset Age Profile'!V47","v":0},{"$f":"'[2]5.2 Asset Age Profile'!W47+'[3]5.2 Asset Age Profile'!W47","v":0},{"$f":"'[2]5.2 Asset Age Profile'!X47+'[3]5.2 Asset Age Profile'!X47","v":0},{"$f":"'[2]5.2 Asset Age Profile'!Y47+'[3]5.2 Asset Age Profile'!Y47","v":6},{"$f":"'[2]5.2 Asset Age Profile'!Z47+'[3]5.2 Asset Age Profile'!Z47","v":0},{"$f":"'[2]5.2 Asset Age Profile'!AA47+'[3]5.2 Asset Age Profile'!AA47","v":0},{"$f":"'[2]5.2 Asset Age Profile'!AB47+'[3]5.2 Asset Age Profile'!AB47","v":0},{"$f":"'[2]5.2 Asset Age Profile'!AC47+'[3]5.2 Asset Age Profile'!AC47","v":0},{"$f":"'[2]5.2 Asset Age Profile'!AD47+'[3]5.2 Asset Age Profile'!AD47","v":0},{"$f":"'[2]5.2 Asset Age Profile'!AE47+'[3]5.2 Asset Age Profile'!AE47","v":0},{"$f":"'[2]5.2 Asset Age Profile'!AF47+'[3]5.2 Asset Age Profile'!AF47","v":0},{"$f":"'[2]5.2 Asset Age Profile'!AG47+'[3]5.2 Asset Age Profile'!AG47","v":0},{"$f":"'[2]5.2 Asset Age Profile'!AH47+'[3]5.2 Asset Age Profile'!AH47","v":0},{"$f":"'[2]5.2 Asset Age Profile'!AI47+'[3]5.2 Asset Age Profile'!AI47","v":0},{"$f":"'[2]5.2 Asset Age Profile'!AJ47+'[3]5.2 Asset Age Profile'!AJ47","v":21.845266901702963},{"$f":"'[2]5.2 Asset Age Profile'!AK47+'[3]5.2 Asset Age Profile'!AK47","v":38.834017675199519},{"$f":"'[2]5.2 Asset Age Profile'!AL47+'[3]5.2 Asset Age Profile'!AL47","v":28.630120530374651},{"$f":"'[2]5.2 Asset Age Profile'!AM47+'[3]5.2 Asset Age Profile'!AM47","v":66.162334861342856},{"$f":"'[2]5.2 Asset Age Profile'!AN47+'[3]5.2 Asset Age Profile'!AN47","v":52.798532426132169},{"$f":"'[2]5.2 Asset Age Profile'!AO47+'[3]5.2 Asset Age Profile'!AO47","v":39.682176083293662},{"$f":"'[2]5.2 Asset Age Profile'!AP47+'[3]5.2 Asset Age Profile'!AP47","v":49.657097150985045},{"$f":"'[2]5.2 Asset Age Profile'!AQ47+'[3]5.2 Asset Age Profile'!AQ47","v":34.045656256012151},{"$f":"'[2]5.2 Asset Age Profile'!AR47+'[3]5.2 Asset Age Profile'!AR47","v":19.243218385461763},{"$f":"'[2]5.2 Asset Age Profile'!AS47+'[3]5.2 Asset Age Profile'!AS47","v":16.153289370952649},{"$f":"'[2]5.2 Asset Age Profile'!AT47+'[3]5.2 Asset Age Profile'!AT47","v":30.070814143847379},{"$f":"'[2]5.2 Asset Age Profile'!AU47+'[3]5.2 Asset Age Profile'!AU47","v":23.626719022042437},{"$f":"'[2]5.2 Asset Age Profile'!AV47+'[3]5.2 Asset Age Profile'!AV47","v":37.033442716488715},{"$f":"'[2]5.2 Asset Age Profile'!AW47+'[3]5.2 Asset Age Profile'!AW47","v":6.2569480449333224},{"$f":"'[2]5.2 Asset Age Profile'!AX47+'[3]5.2 Asset Age Profile'!AX47","v":1.7250000000031015E-2},{"$f":"'[2]5.2 Asset Age Profile'!AY47+'[3]5.2 Asset Age Profile'!AY47","v":0},{"$f":"'[2]5.2 Asset Age Profile'!AZ47+'[3]5.2 Asset Age Profile'!AZ47","v":5.1525650520751887},{"$f":"'[2]5.2 Asset Age Profile'!BA47+'[3]5.2 Asset Age Profile'!BA47","v":0},{"$f":"'[2]5.2 Asset Age Profile'!BB47+'[3]5.2 Asset Age Profile'!BB47","v":0.1577762497958993},{"$f":"'[2]5.2 Asset Age Profile'!BC47+'[3]5.2 Asset Age Profile'!BC47","v":0.66359193934596261},{"$f":"'[2]5.2 Asset Age Profile'!BD47+'[3]5.2 Asset Age Profile'!BD47","v":0.32988485955895064},{"$f":"'[2]5.2 Asset Age Profile'!BE47+'[3]5.2 Asset Age Profile'!BE47","v":19.248577647566535},{"$f":"'[2]5.2 Asset Age Profile'!BF47+'[3]5.2 Asset Age Profile'!BF47","v":2.4750000000044015E-2},{"$f":"'[2]5.2 Asset Age Profile'!BG47+'[3]5.2 Asset Age Profile'!BG47","v":73.183430871068197},{"$f":"'[2]5.2 Asset Age Profile'!BH47+'[3]5.2 Asset Age Profile'!BH47","v":72.097886853680947},{"$f":"'[2]5.2 Asset Age Profile'!BI47+'[3]5.2 Asset Age Profile'!BI47","v":61.126592706165738},{"$f":"'[2]5.2 Asset Age Profile'!BJ47+'[3]5.2 Asset Age Profile'!BJ47","v":9.8093859489002284},{"$f":"'[2]5.2 Asset Age Profile'!BK47+'[3]5.2 Asset Age Profile'!BK47","v":0},{"$f":"'[2]5.2 Asset Age Profile'!BL47+'[3]5.2 Asset Age Profile'!BL47","v":82.424395678059952},{"$f":"'[2]5.2 Asset Age Profile'!BM47+'[3]5.2 Asset Age Profile'!BM47","v":33.756133475901301},{"$f":"'[2]5.2 Asset Age Profile'!BN47+'[3]5.2 Asset Age Profile'!BN47","v":14.315364125289729},{"$f":"'[2]5.2 Asset Age Profile'!BO47+'[3]5.2 Asset Age Profile'!BO47","v":10.321807573614162},{"$f":"'[2]5.2 Asset Age Profile'!BP47+'[3]5.2 Asset Age Profile'!BP47","v":0.88243089441051381},{"$f":"'[2]5.2 Asset Age Profile'!BQ47+'[3]5.2 Asset Age Profile'!BQ47","v":31.471876484850853},{"$f":"'[2]5.2 Asset Age Profile'!BR47+'[3]5.2 Asset Age Profile'!BR47","v":15.581137578169272},{"$f":"'[2]5.2 Asset Age Profile'!BS47+'[3]5.2 Asset Age Profile'!BS47","v":26.682574637939307},{"$f":"'[2]5.2 Asset Age Profile'!BT47+'[3]5.2 Asset Age Profile'!BT47","v":18.202690067728589},{"$f":"'[2]5.2 Asset Age Profile'!BU47+'[3]5.2 Asset Age Profile'!BU47","v":13.044386258446124},{"$f":"'[2]5.2 Asset Age Profile'!BV47+'[3]5.2 Asset Age Profile'!BV47","v":0},{"$f":"'[2]5.2 Asset Age Profile'!BW47+'[3]5.2 Asset Age Profile'!BW47","v":19.508470592220785},{"$f":"'[2]5.2 Asset Age Profile'!BX47+'[3]5.2 Asset Age Profile'!BX47","v":25.877969136374261},{"$f":"'[2]5.2 Asset Age Profile'!BY47+'[3]5.2 Asset Age Profile'!BY47","v":37.239015757069303},{"$f":"'[2]5.2 Asset Age Profile'!BZ47+'[3]5.2 Asset Age Profile'!BZ47","v":52.983094245818855},{"$f":"'[2]5.2 Asset Age Profile'!CA47+'[3]5.2 Asset Age Profile'!CA47","v":25.143576001587821},{"$f":"'[2]5.2 Asset Age Profile'!CB47+'[3]5.2 Asset Age Profile'!CB47","v":14.641324022827625},{"$f":"'[2]5.2 Asset Age Profile'!CC47+'[3]5.2 Asset Age Profile'!CC47","v":16.503871951175174},{"$f":"'[2]5.2 Asset Age Profile'!CD47+'[3]5.2 Asset Age Profile'!CD47","v":10.084820626387302},{"$f":"'[2]5.2 Asset Age Profile'!CE47+'[3]5.2 Asset Age Profile'!CE47","v":22.701335351600431},{"$f":"'[2]5.2 Asset Age Profile'!CF47+'[3]5.2 Asset Age Profile'!CF47","v":18.253283151602311},{"$f":"'[2]5.2 Asset Age Profile'!CG47+'[3]5.2 Asset Age Profile'!CG47","v":9.5634783370521479},{"$f":"'[2]5.2 Asset Age Profile'!CH47+'[3]5.2 Asset Age Profile'!CH47","v":1.2620040992230557},{"$f":"'[2]5.2 Asset Age Profile'!CI47+'[3]5.2 Asset Age Profile'!CI47","v":1.9040423963114701},{"$f":"'[2]5.2 Asset Age Profile'!CJ47+'[3]5.2 Asset Age Profile'!CJ47","v":5.2458787380021237},{"$f":"'[2]5.2 Asset Age Profile'!CK47+'[3]5.2 Asset Age Profile'!CK47","v":0.23764769363341801},{"$f":"'[2]5.2 Asset Age Profile'!CL47+'[3]5.2 Asset Age Profile'!CL47","v":5.1374468907170954},{"$f":"'[2]5.2 Asset Age Profile'!CM47+'[3]5.2 Asset Age Profile'!CM47","v":2.3926851408424477},{"$f":"'[2]5.2 Asset Age Profile'!CN47+'[3]5.2 Asset Age Profile'!CN47","v":3.3445792581248033},{"$f":"'[2]5.2 Asset Age Profile'!CO47+'[3]5.2 Asset Age Profile'!CO47","v":29.850933071254971},{"$f":"'[2]5.2 Asset Age Profile'!CP47+'[3]5.2 Asset Age Profile'!CP47","v":0},{"$f":"'[2]5.2 Asset Age Profile'!CQ47+'[3]5.2 Asset Age Profile'!CQ47","v":4.207230460841245E-2},{"$f":"'[2]5.2 Asset Age Profile'!CR47+'[3]5.2 Asset Age Profile'!CR47","v":0},{"$f":"'[2]5.2 Asset Age Profile'!CS47+'[3]5.2 Asset Age Profile'!CS47","v":0},{"$f":"'[2]5.2 Asset Age Profile'!CT47+'[3]5.2 Asset Age Profile'!CT47","v":0},{"$f":"'[2]5.2 Asset Age Profile'!CU47+'[3]5.2 Asset Age Profile'!CU47","v":0},{"$f":"'[2]5.2 Asset Age Profile'!CV47+'[3]5.2 Asset Age Profile'!CV47","v":0},{"$f":"'[2]5.2 Asset Age Profile'!CW47+'[3]5.2 Asset Age Profile'!CW47","v":0},{"$f":"'[2]5.2 Asset Age Profile'!CX47+'[3]5.2 Asset Age Profile'!CX47","v":0},{"$f":"'[2]5.2 Asset Age Profile'!CY47+'[3]5.2 Asset Age Profile'!CY47","v":4.1382292167336994},{"$f":"'[2]5.2 Asset Age Profile'!CZ47+'[3]5.2 Asset Age Profile'!CZ47","v":4.8728021818555165},{"$f":"'[2]5.2 Asset Age Profile'!DA47+'[3]5.2 Asset Age Profile'!DA47","v":8.7384681973728302},{"$f":"'[2]5.2 Asset Age Profile'!DB47+'[3]5.2 Asset Age Profile'!DB47","v":0},{"$f":"'[2]5.2 Asset Age Profile'!DC47+'[3]5.2 Asset Age Profile'!DC47","v":9.1636493077616787},{"$f":"'[2]5.2 Asset Age Profile'!DD47+'[3]5.2 Asset Age Profile'!DD47","v":17.966683461530767},{"$f":"'[2]5.2 Asset Age Profile'!DE47+'[3]5.2 Asset Age Profile'!DE47","v":25.860003875623374},{"$f":"'[2]5.2 Asset Age Profile'!DF47+'[3]5.2 Asset Age Profile'!DF47","v":0},{"$f":"'[2]5.2 Asset Age Profile'!DG47+'[3]5.2 Asset Age Profile'!DG47","v":0},{"$f":"'[2]5.2 Asset Age Profile'!DH47+'[3]5.2 Asset Age Profile'!DH47","v":0},{"$f":"'[2]5.2 Asset Age Profile'!DI47+'[3]5.2 Asset Age Profile'!DI47","v":5.2211905962778928},{"$f":"'[2]5.2 Asset Age Profile'!DJ47+'[3]5.2 Asset Age Profile'!DJ47","v":0},{"$f":"'[2]5.2 Asset Age Profile'!DK47+'[3]5.2 Asset Age Profile'!DK47","v":4.8164267194724051},{"$f":"'[2]5.2 Asset Age Profile'!DL47+'[3]5.2 Asset Age Profile'!DL47","v":0},{"$f":"'[2]5.2 Asset Age Profile'!DM47+'[3]5.2 Asset Age Profile'!DM47","v":0},{"$f":"'[2]5.2 Asset Age Profile'!DN47+'[3]5.2 Asset Age Profile'!DN47","v":0},{"$f":"'[2]5.2 Asset Age Profile'!DO47+'[3]5.2 Asset Age Profile'!DO47","v":0},{"$f":"'[2]5.2 Asset Age Profile'!DP47+'[3]5.2 Asset Age Profile'!DP47","v":0},{"$f":"'[2]5.2 Asset Age Profile'!DQ47+'[3]5.2 Asset Age Profile'!DQ47","v":0},{"$f":"'[2]5.2 Asset Age Profile'!DR47+'[3]5.2 Asset Age Profile'!DR47","v":0},{"$f":"'[2]5.2 Asset Age Profile'!DS47+'[3]5.2 Asset Age Profile'!DS47","v":10.214540115842965},{"$f":"'[2]5.2 Asset Age Profile'!DT47+'[3]5.2 Asset Age Profile'!DT47","v":3.6637416877371818},{"$f":"'[2]5.2 Asset Age Profile'!DU47+'[3]5.2 Asset Age Profile'!DU47","v":0},{"$f":"'[2]5.2 Asset Age Profile'!DV47+'[3]5.2 Asset Age Profile'!DV47","v":0},{"$f":"'[2]5.2 Asset Age Profile'!DW47+'[3]5.2 Asset Age Profile'!DW47","v":0},{"$f":"'[2]5.2 Asset Age Profile'!DX47+'[3]5.2 Asset Age Profile'!DX47","v":0},{"$f":"'[2]5.2 Asset Age Profile'!DY47+'[3]5.2 Asset Age Profile'!DY47","v":0},{"$f":"'[2]5.2 Asset Age Profile'!DZ47+'[3]5.2 Asset Age Profile'!DZ47","v":0},{"$f":"'[2]5.2 Asset Age Profile'!EA47+'[3]5.2 Asset Age Profile'!EA47","v":1.6960996114336446},{"$f":"'[2]5.2 Asset Age Profile'!EB47+'[3]5.2 Asset Age Profile'!EB47","v":0},{"$f":"'[2]5.2 Asset Age Profile'!EC47+'[3]5.2 Asset Age Profile'!EC47","v":0},{"$f":"'[2]5.2 Asset Age Profile'!ED47+'[3]5.2 Asset Age Profile'!ED47","v":0},{"$f":"'[2]5.2 Asset Age Profile'!EE47+'[3]5.2 Asset Age Profile'!EE47","v":0},{"$f":"'[2]5.2 Asset Age Profile'!EF47+'[3]5.2 Asset Age Profile'!EF47","v":0},{"$f":"'[2]5.2 Asset Age Profile'!EG47+'[3]5.2 Asset Age Profile'!EG47","v":0},{"$f":"'[2]5.2 Asset Age Profile'!EH47+'[3]5.2 Asset Age Profile'!EH47","v":0},{"$f":"'[2]5.2 Asset Age Profile'!EI47+'[3]5.2 Asset Age Profile'!EI47","v":0},{"$f":"'[2]5.2 Asset Age Profile'!EJ47+'[3]5.2 Asset Age Profile'!EJ47","v":0}]
["ED_ASS521_00038",null,"> 1 kV & < = 11 kV",null,null,null,null,null,null,null,null,null,null,{"$f":"'[2]5.2 Asset Age Profile'!N48+'[3]5.2 Asset Age Profile'!N48","v":50},{"$f":"'[2]5.2 Asset Age Profile'!O48+'[3]5.2 Asset Age Profile'!O48","v":0},{"$f":"'[2]5.2 Asset Age Profile'!P48+'[3]5.2 Asset Age Profile'!P48","v":0},{"$f":"'[2]5.2 Asset Age Profile'!Q48+'[3]5.2 Asset Age Profile'!Q48","v":0},{"$f":"'[2]5.2 Asset Age Profile'!R48+'[3]5.2 Asset Age Profile'!R48","v":0},{"$f":"'[2]5.2 Asset Age Profile'!S48+'[3]5.2 Asset Age Profile'!S48","v":0},{"$f":"'[2]5.2 Asset Age Profile'!T48+'[3]5.2 Asset Age Profile'!T48","v":0},{"$f":"'[2]5.2 Asset Age Profile'!U48+'[3]5.2 Asset Age Profile'!U48","v":0},{"$f":"'[2]5.2 Asset Age Profile'!V48+'[3]5.2 Asset Age Profile'!V48","v":0},{"$f":"'[2]5.2 Asset Age Profile'!W48+'[3]5.2 Asset Age Profile'!W48","v":0},{"$f":"'[2]5.2 Asset Age Profile'!X48+'[3]5.2 Asset Age Profile'!X48","v":0},{"$f":"'[2]5.2 Asset Age Profile'!Y48+'[3]5.2 Asset Age Profile'!Y48","v":7},{"$f":"'[2]5.2 Asset Age Profile'!Z48+'[3]5.2 Asset Age Profile'!Z48","v":0},{"$f":"'[2]5.2 Asset Age Profile'!AA48+'[3]5.2 Asset Age Profile'!AA48","v":0},{"$f":"'[2]5.2 Asset Age Profile'!AB48+'[3]5.2 Asset Age Profile'!AB48","v":0},{"$f":"'[2]5.2 Asset Age Profile'!AC48+'[3]5.2 Asset Age Profile'!AC48","v":0},{"$f":"'[2]5.2 Asset Age Profile'!AD48+'[3]5.2 Asset Age Profile'!AD48","v":0},{"$f":"'[2]5.2 Asset Age Profile'!AE48+'[3]5.2 Asset Age Profile'!AE48","v":0},{"$f":"'[2]5.2 Asset Age Profile'!AF48+'[3]5.2 Asset Age Profile'!AF48","v":0},{"$f":"'[2]5.2 Asset Age Profile'!AG48+'[3]5.2 Asset Age Profile'!AG48","v":0},{"$f":"'[2]5.2 Asset Age Profile'!AH48+'[3]5.2 Asset Age Profile'!AH48","v":0},{"$f":"'[2]5.2 Asset Age Profile'!AI48+'[3]5.2 Asset Age Profile'!AI48","v":0},{"$f":"'[2]5.2 Asset Age Profile'!AJ48+'[3]5.2 Asset Age Profile'!AJ48","v":21.671285649844371},{"$f":"'[2]5.2 Asset Age Profile'!AK48+'[3]5.2 Asset Age Profile'!AK48","v":35.971739260769773},{"$f":"'[2]5.2 Asset Age Profile'!AL48+'[3]5.2 Asset Age Profile'!AL48","v":37.258205878182913},{"$f":"'[2]5.2 Asset Age Profile'!AM48+'[3]5.2 Asset Age Profile'!AM48","v":54.826246314283324},{"$f":"'[2]5.2 Asset Age Profile'!AN48+'[3]5.2 Asset Age Profile'!AN48","v":37.535459020606496},{"$f":"'[2]5.2 Asset Age Profile'!AO48+'[3]5.2 Asset Age Profile'!AO48","v":34.50151287478284},{"$f":"'[2]5.2 Asset Age Profile'!AP48+'[3]5.2 Asset Age Profile'!AP48","v":38.677154267742253},{"$f":"'[2]5.2 Asset Age Profile'!AQ48+'[3]5.2 Asset Age Profile'!AQ48","v":29.432303662362148},{"$f":"'[2]5.2 Asset Age Profile'!AR48+'[3]5.2 Asset Age Profile'!AR48","v":18.925075340704332},{"$f":"'[2]5.2 Asset Age Profile'!AS48+'[3]5.2 Asset Age Profile'!AS48","v":23.299534392980263},{"$f":"'[2]5.2 Asset Age Profile'!AT48+'[3]5.2 Asset Age Profile'!AT48","v":29.726245907376384},{"$f":"'[2]5.2 Asset Age Profile'!AU48+'[3]5.2 Asset Age Profile'!AU48","v":21.554133560335156},{"$f":"'[2]5.2 Asset Age Profile'!AV48+'[3]5.2 Asset Age Profile'!AV48","v":18.044183252167116},{"$f":"'[2]5.2 Asset Age Profile'!AW48+'[3]5.2 Asset Age Profile'!AW48","v":3.7432751900046584},{"$f":"'[2]5.2 Asset Age Profile'!AX48+'[3]5.2 Asset Age Profile'!AX48","v":1.1500000000056396E-2},{"$f":"'[2]5.2 Asset Age Profile'!AY48+'[3]5.2 Asset Age Profile'!AY48","v":3.0191255871570069},{"$f":"'[2]5.2 Asset Age Profile'!AZ48+'[3]5.2 Asset Age Profile'!AZ48","v":5.6488856222351149},{"$f":"'[2]5.2 Asset Age Profile'!BA48+'[3]5.2 Asset Age Profile'!BA48","v":0},{"$f":"'[2]5.2 Asset Age Profile'!BB48+'[3]5.2 Asset Age Profile'!BB48","v":3.2148340490607756},{"$f":"'[2]5.2 Asset Age Profile'!BC48+'[3]5.2 Asset Age Profile'!BC48","v":28.567650317262039},{"$f":"'[2]5.2 Asset Age Profile'!BD48+'[3]5.2 Asset Age Profile'!BD48","v":1.400418464981847},{"$f":"'[2]5.2 Asset Age Profile'!BE48+'[3]5.2 Asset Age Profile'!BE48","v":2.882433348639251},{"$f":"'[2]5.2 Asset Age Profile'!BF48+'[3]5.2 Asset Age Profile'!BF48","v":0.26165748488145574},{"$f":"'[2]5.2 Asset Age Profile'!BG48+'[3]5.2 Asset Age Profile'!BG48","v":35.686362951401328},{"$f":"'[2]5.2 Asset Age Profile'!BH48+'[3]5.2 Asset Age Profile'!BH48","v":48.662192796060637},{"$f":"'[2]5.2 Asset Age Profile'!BI48+'[3]5.2 Asset Age Profile'!BI48","v":37.06350918650228},{"$f":"'[2]5.2 Asset Age Profile'!BJ48+'[3]5.2 Asset Age Profile'!BJ48","v":2.7832886712801646},{"$f":"'[2]5.2 Asset Age Profile'!BK48+'[3]5.2 Asset Age Profile'!BK48","v":0},{"$f":"'[2]5.2 Asset Age Profile'!BL48+'[3]5.2 Asset Age Profile'!BL48","v":48.788056411151658},{"$f":"'[2]5.2 Asset Age Profile'!BM48+'[3]5.2 Asset Age Profile'!BM48","v":29.76186266005854},{"$f":"'[2]5.2 Asset Age Profile'!BN48+'[3]5.2 Asset Age Profile'!BN48","v":17.813803424300879},{"$f":"'[2]5.2 Asset Age Profile'!BO48+'[3]5.2 Asset Age Profile'!BO48","v":8.6710151097232142},{"$f":"'[2]5.2 Asset Age Profile'!BP48+'[3]5.2 Asset Age Profile'!BP48","v":0.91197164426164645},{"$f":"'[2]5.2 Asset Age Profile'!BQ48+'[3]5.2 Asset Age Profile'!BQ48","v":20.065017245857721},{"$f":"'[2]5.2 Asset Age Profile'!BR48+'[3]5.2 Asset Age Profile'!BR48","v":38.917827974972568},{"$f":"'[2]5.2 Asset Age Profile'!BS48+'[3]5.2 Asset Age Profile'!BS48","v":1.2673190219272961},{"$f":"'[2]5.2 Asset Age Profile'!BT48+'[3]5.2 Asset Age Profile'!BT48","v":5.4728683686638488},{"$f":"'[2]5.2 Asset Age Profile'!BU48+'[3]5.2 Asset Age Profile'!BU48","v":1.5439377689189302},{"$f":"'[2]5.2 Asset Age Profile'!BV48+'[3]5.2 Asset Age Profile'!BV48","v":0},{"$f":"'[2]5.2 Asset Age Profile'!BW48+'[3]5.2 Asset Age Profile'!BW48","v":1.0262802888843261},{"$f":"'[2]5.2 Asset Age Profile'!BX48+'[3]5.2 Asset Age Profile'!BX48","v":53.692760476877766},{"$f":"'[2]5.2 Asset Age Profile'!BY48+'[3]5.2 Asset Age Profile'!BY48","v":72.713371406456559},{"$f":"'[2]5.2 Asset Age Profile'!BZ48+'[3]5.2 Asset Age Profile'!BZ48","v":57.037368876683878},{"$f":"'[2]5.2 Asset Age Profile'!CA48+'[3]5.2 Asset Age Profile'!CA48","v":25.481502085647584},{"$f":"'[2]5.2 Asset Age Profile'!CB48+'[3]5.2 Asset Age Profile'!CB48","v":25.850942037170274},{"$f":"'[2]5.2 Asset Age Profile'!CC48+'[3]5.2 Asset Age Profile'!CC48","v":25.574999676493064},{"$f":"'[2]5.2 Asset Age Profile'!CD48+'[3]5.2 Asset Age Profile'!CD48","v":1.2106405241713836},{"$f":"'[2]5.2 Asset Age Profile'!CE48+'[3]5.2 Asset Age Profile'!CE48","v":142.64879829206055},{"$f":"'[2]5.2 Asset Age Profile'!CF48+'[3]5.2 Asset Age Profile'!CF48","v":18.586789335954407},{"$f":"'[2]5.2 Asset Age Profile'!CG48+'[3]5.2 Asset Age Profile'!CG48","v":53.107895953831338},{"$f":"'[2]5.2 Asset Age Profile'!CH48+'[3]5.2 Asset Age Profile'!CH48","v":9.0330116515026599},{"$f":"'[2]5.2 Asset Age Profile'!CI48+'[3]5.2 Asset Age Profile'!CI48","v":0},{"$f":"'[2]5.2 Asset Age Profile'!CJ48+'[3]5.2 Asset Age Profile'!CJ48","v":0.79288660750500617},{"$f":"'[2]5.2 Asset Age Profile'!CK48+'[3]5.2 Asset Age Profile'!CK48","v":7.009882302807716},{"$f":"'[2]5.2 Asset Age Profile'!CL48+'[3]5.2 Asset Age Profile'!CL48","v":8.412735960771494},{"$f":"'[2]5.2 Asset Age Profile'!CM48+'[3]5.2 Asset Age Profile'!CM48","v":3.1346690321902027},{"$f":"'[2]5.2 Asset Age Profile'!CN48+'[3]5.2 Asset Age Profile'!CN48","v":5.8934101240507379},{"$f":"'[2]5.2 Asset Age Profile'!CO48+'[3]5.2 Asset Age Profile'!CO48","v":16.414557133978985},{"$f":"'[2]5.2 Asset Age Profile'!CP48+'[3]5.2 Asset Age Profile'!CP48","v":0},{"$f":"'[2]5.2 Asset Age Profile'!CQ48+'[3]5.2 Asset Age Profile'!CQ48","v":3.5636906010592946E-2},{"$f":"'[2]5.2 Asset Age Profile'!CR48+'[3]5.2 Asset Age Profile'!CR48","v":0},{"$f":"'[2]5.2 Asset Age Profile'!CS48+'[3]5.2 Asset Age Profile'!CS48","v":0},{"$f":"'[2]5.2 Asset Age Profile'!CT48+'[3]5.2 Asset Age Profile'!CT48","v":0},{"$f":"'[2]5.2 Asset Age Profile'!CU48+'[3]5.2 Asset Age Profile'!CU48","v":0},{"$f":"'[2]5.2 Asset Age Profile'!CV48+'[3]5.2 Asset Age Profile'!CV48","v":0},{"$f":"'[2]5.2 Asset Age Profile'!CW48+'[3]5.2 Asset Age Profile'!CW48","v":0},{"$f":"'[2]5.2 Asset Age Profile'!CX48+'[3]5.2 Asset Age Profile'!CX48","v":0},{"$f":"'[2]5.2 Asset Age Profile'!CY48+'[3]5.2 Asset Age Profile'!CY48","v":0},{"$f":"'[2]5.2 Asset Age Profile'!CZ48+'[3]5.2 Asset Age Profile'!CZ48","v":6.5080180230281162},{"$f":"'[2]5.2 Asset Age Profile'!DA48+'[3]5.2 Asset Age Profile'!DA48","v":2.4930982498138188},{"$f":"'[2]5.2 Asset Age Profile'!DB48+'[3]5.2 Asset Age Profile'!DB48","v":0},{"$f":"'[2]5.2 Asset Age Profile'!DC48+'[3]5.2 Asset Age Profile'!DC48","v":24.312112768426513},{"$f":"'[2]5.2 Asset Age Profile'!DD48+'[3]5.2 Asset Age Profile'!DD48","v":7.5183860221958305},{"$f":"'[2]5.2 Asset Age Profile'!DE48+'[3]5.2 Asset Age Profile'!DE48","v":13.36376611772528},{"$f":"'[2]5.2 Asset Age Profile'!DF48+'[3]5.2 Asset Age Profile'!DF48","v":0},{"$f":"'[2]5.2 Asset Age Profile'!DG48+'[3]5.2 Asset Age Profile'!DG48","v":0},{"$f":"'[2]5.2 Asset Age Profile'!DH48+'[3]5.2 Asset Age Profile'!DH48","v":0},{"$f":"'[2]5.2 Asset Age Profile'!DI48+'[3]5.2 Asset Age Profile'!DI48","v":0.56781880968865051},{"$f":"'[2]5.2 Asset Age Profile'!DJ48+'[3]5.2 Asset Age Profile'!DJ48","v":0},{"$f":"'[2]5.2 Asset Age Profile'!DK48+'[3]5.2 Asset Age Profile'!DK48","v":8.7774163048547003},{"$f":"'[2]5.2 Asset Age Profile'!DL48+'[3]5.2 Asset Age Profile'!DL48","v":0},{"$f":"'[2]5.2 Asset Age Profile'!DM48+'[3]5.2 Asset Age Profile'!DM48","v":0},{"$f":"'[2]5.2 Asset Age Profile'!DN48+'[3]5.2 Asset Age Profile'!DN48","v":0},{"$f":"'[2]5.2 Asset Age Profile'!DO48+'[3]5.2 Asset Age Profile'!DO48","v":0},{"$f":"'[2]5.2 Asset Age Profile'!DP48+'[3]5.2 Asset Age Profile'!DP48","v":0},{"$f":"'[2]5.2 Asset Age Profile'!DQ48+'[3]5.2 Asset Age Profile'!DQ48","v":0},{"$f":"'[2]5.2 Asset Age Profile'!DR48+'[3]5.2 Asset Age Profile'!DR48","v":0},{"$f":"'[2]5.2 Asset Age Profile'!DS48+'[3]5.2 Asset Age Profile'!DS48","v":129.85515505019632},{"$f":"'[2]5.2 Asset Age Profile'!DT48+'[3]5.2 Asset Age Profile'!DT48","v":45.077220354533139},{"$f":"'[2]5.2 Asset Age Profile'!DU48+'[3]5.2 Asset Age Profile'!DU48","v":0},{"$f":"'[2]5.2 Asset Age Profile'!DV48+'[3]5.2 Asset Age Profile'!DV48","v":0},{"$f":"'[2]5.2 Asset Age Profile'!DW48+'[3]5.2 Asset Age Profile'!DW48","v":0},{"$f":"'[2]5.2 Asset Age Profile'!DX48+'[3]5.2 Asset Age Profile'!DX48","v":0},{"$f":"'[2]5.2 Asset Age Profile'!DY48+'[3]5.2 Asset Age Profile'!DY48","v":0},{"$f":"'[2]5.2 Asset Age Profile'!DZ48+'[3]5.2 Asset Age Profile'!DZ48","v":0},{"$f":"'[2]5.2 Asset Age Profile'!EA48+'[3]5.2 Asset Age Profile'!EA48","v":12.817144015536417},{"$f":"'[2]5.2 Asset Age Profile'!EB48+'[3]5.2 Asset Age Profile'!EB48","v":0},{"$f":"'[2]5.2 Asset Age Profile'!EC48+'[3]5.2 Asset Age Profile'!EC48","v":0},{"$f":"'[2]5.2 Asset Age Profile'!ED48+'[3]5.2 Asset Age Profile'!ED48","v":0},{"$f":"'[2]5.2 Asset Age Profile'!EE48+'[3]5.2 Asset Age Profile'!EE48","v":0},{"$f":"'[2]5.2 Asset Age Profile'!EF48+'[3]5.2 Asset Age Profile'!EF48","v":0},{"$f":"'[2]5.2 Asset Age Profile'!EG48+'[3]5.2 Asset Age Profile'!EG48","v":0},{"$f":"'[2]5.2 Asset Age Profile'!EH48+'[3]5.2 Asset Age Profile'!EH48","v":0},{"$f":"'[2]5.2 Asset Age Profile'!EI48+'[3]5.2 Asset Age Profile'!EI48","v":0},{"$f":"'[2]5.2 Asset Age Profile'!EJ48+'[3]5.2 Asset Age Profile'!EJ48","v":0}]
["ED_ASS521_00039",null,"> 11 kV & < = 22 kV",null,null,null,null,null,null,null,null,null,null,{"$f":"'[2]5.2 Asset Age Profile'!N49+'[3]5.2 Asset Age Profile'!N49","v":50},{"$f":"'[2]5.2 Asset Age Profile'!O49+'[3]5.2 Asset Age Profile'!O49","v":0},{"$f":"'[2]5.2 Asset Age Profile'!P49+'[3]5.2 Asset Age Profile'!P49","v":0},{"$f":"'[2]5.2 Asset Age Profile'!Q49+'[3]5.2 Asset Age Profile'!Q49","v":0},{"$f":"'[2]5.2 Asset Age Profile'!R49+'[3]5.2 Asset Age Profile'!R49","v":0},{"$f":"'[2]5.2 Asset Age Profile'!S49+'[3]5.2 Asset Age Profile'!S49","v":0},{"$f":"'[2]5.2 Asset Age Profile'!T49+'[3]5.2 Asset Age Profile'!T49","v":0},{"$f":"'[2]5.2 Asset Age Profile'!U49+'[3]5.2 Asset Age Profile'!U49","v":0},{"$f":"'[2]5.2 Asset Age Profile'!V49+'[3]5.2 Asset Age Profile'!V49","v":0},{"$f":"'[2]5.2 Asset Age Profile'!W49+'[3]5.2 Asset Age Profile'!W49","v":0},{"$f":"'[2]5.2 Asset Age Profile'!X49+'[3]5.2 Asset Age Profile'!X49","v":0},{"$f":"'[2]5.2 Asset Age Profile'!Y49+'[3]5.2 Asset Age Profile'!Y49","v":7},{"$f":"'[2]5.2 Asset Age Profile'!Z49+'[3]5.2 Asset Age Profile'!Z49","v":0},{"$f":"'[2]5.2 Asset Age Profile'!AA49+'[3]5.2 Asset Age Profile'!AA49","v":0},{"$f":"'[2]5.2 Asset Age Profile'!AB49+'[3]5.2 Asset Age Profile'!AB49","v":0},{"$f":"'[2]5.2 Asset Age Profile'!AC49+'[3]5.2 Asset Age Profile'!AC49","v":0},{"$f":"'[2]5.2 Asset Age Profile'!AD49+'[3]5.2 Asset Age Profile'!AD49","v":0},{"$f":"'[2]5.2 Asset Age Profile'!AE49+'[3]5.2 Asset Age Profile'!AE49","v":0},{"$f":"'[2]5.2 Asset Age Profile'!AF49+'[3]5.2 Asset Age Profile'!AF49","v":0},{"$f":"'[2]5.2 Asset Age Profile'!AG49+'[3]5.2 Asset Age Profile'!AG49","v":0},{"$f":"'[2]5.2 Asset Age Profile'!AH49+'[3]5.2 Asset Age Profile'!AH49","v":0},{"$f":"'[2]5.2 Asset Age Profile'!AI49+'[3]5.2 Asset Age Profile'!AI49","v":0},{"$f":"'[2]5.2 Asset Age Profile'!AJ49+'[3]5.2 Asset Age Profile'!AJ49","v":0},{"$f":"'[2]5.2 Asset Age Profile'!AK49+'[3]5.2 Asset Age Profile'!AK49","v":2.5079857940970399E-2},{"$f":"'[2]5.2 Asset Age Profile'!AL49+'[3]5.2 Asset Age Profile'!AL49","v":0.43401921046011604},{"$f":"'[2]5.2 Asset Age Profile'!AM49+'[3]5.2 Asset Age Profile'!AM49","v":0},{"$f":"'[2]5.2 Asset Age Profile'!AN49+'[3]5.2 Asset Age Profile'!AN49","v":0},{"$f":"'[2]5.2 Asset Age Profile'!AO49+'[3]5.2 Asset Age Profile'!AO49","v":0.10117081914113291},{"$f":"'[2]5.2 Asset Age Profile'!AP49+'[3]5.2 Asset Age Profile'!AP49","v":0},{"$f":"'[2]5.2 Asset Age Profile'!AQ49+'[3]5.2 Asset Age Profile'!AQ49","v":1.84590755804163E-2},{"$f":"'[2]5.2 Asset Age Profile'!AR49+'[3]5.2 Asset Age Profile'!AR49","v":0},{"$f":"'[2]5.2 Asset Age Profile'!AS49+'[3]5.2 Asset Age Profile'!AS49","v":0},{"$f":"'[2]5.2 Asset Age Profile'!AT49+'[3]5.2 Asset Age Profile'!AT49","v":0},{"$f":"'[2]5.2 Asset Age Profile'!AU49+'[3]5.2 Asset Age Profile'!AU49","v":0},{"$f":"'[2]5.2 Asset Age Profile'!AV49+'[3]5.2 Asset Age Profile'!AV49","v":1.980627822948566E-2},{"$f":"'[2]5.2 Asset Age Profile'!AW49+'[3]5.2 Asset Age Profile'!AW49","v":0},{"$f":"'[2]5.2 Asset Age Profile'!AX49+'[3]5.2 Asset Age Profile'!AX49","v":0},{"$f":"'[2]5.2 Asset Age Profile'!AY49+'[3]5.2 Asset Age Profile'!AY49","v":0},{"$f":"'[2]5.2 Asset Age Profile'!AZ49+'[3]5.2 Asset Age Profile'!AZ49","v":0},{"$f":"'[2]5.2 Asset Age Profile'!BA49+'[3]5.2 Asset Age Profile'!BA49","v":0},{"$f":"'[2]5.2 Asset Age Profile'!BB49+'[3]5.2 Asset Age Profile'!BB49","v":0},{"$f":"'[2]5.2 Asset Age Profile'!BC49+'[3]5.2 Asset Age Profile'!BC49","v":0},{"$f":"'[2]5.2 Asset Age Profile'!BD49+'[3]5.2 Asset Age Profile'!BD49","v":0},{"$f":"'[2]5.2 Asset Age Profile'!BE49+'[3]5.2 Asset Age Profile'!BE49","v":0},{"$f":"'[2]5.2 Asset Age Profile'!BF49+'[3]5.2 Asset Age Profile'!BF49","v":0},{"$f":"'[2]5.2 Asset Age Profile'!BG49+'[3]5.2 Asset Age Profile'!BG49","v":0},{"$f":"'[2]5.2 Asset Age Profile'!BH49+'[3]5.2 Asset Age Profile'!BH49","v":0},{"$f":"'[2]5.2 Asset Age Profile'!BI49+'[3]5.2 Asset Age Profile'!BI49","v":0},{"$f":"'[2]5.2 Asset Age Profile'!BJ49+'[3]5.2 Asset Age Profile'!BJ49","v":0},{"$f":"'[2]5.2 Asset Age Profile'!BK49+'[3]5.2 Asset Age Profile'!BK49","v":0},{"$f":"'[2]5.2 Asset Age Profile'!BL49+'[3]5.2 Asset Age Profile'!BL49","v":0},{"$f":"'[2]5.2 Asset Age Profile'!BM49+'[3]5.2 Asset Age Profile'!BM49","v":0},{"$f":"'[2]5.2 Asset Age Profile'!BN49+'[3]5.2 Asset Age Profile'!BN49","v":0},{"$f":"'[2]5.2 Asset Age Profile'!BO49+'[3]5.2 Asset Age Profile'!BO49","v":0},{"$f":"'[2]5.2 Asset Age Profile'!BP49+'[3]5.2 Asset Age Profile'!BP49","v":0},{"$f":"'[2]5.2 Asset Age Profile'!BQ49+'[3]5.2 Asset Age Profile'!BQ49","v":0},{"$f":"'[2]5.2 Asset Age Profile'!BR49+'[3]5.2 Asset Age Profile'!BR49","v":0},{"$f":"'[2]5.2 Asset Age Profile'!BS49+'[3]5.2 Asset Age Profile'!BS49","v":0},{"$f":"'[2]5.2 Asset Age Profile'!BT49+'[3]5.2 Asset Age Profile'!BT49","v":0},{"$f":"'[2]5.2 Asset Age Profile'!BU49+'[3]5.2 Asset Age Profile'!BU49","v":0},{"$f":"'[2]5.2 Asset Age Profile'!BV49+'[3]5.2 Asset Age Profile'!BV49","v":0},{"$f":"'[2]5.2 Asset Age Profile'!BW49+'[3]5.2 Asset Age Profile'!BW49","v":0},{"$f":"'[2]5.2 Asset Age Profile'!BX49+'[3]5.2 Asset Age Profile'!BX49","v":0},{"$f":"'[2]5.2 Asset Age Profile'!BY49+'[3]5.2 Asset Age Profile'!BY49","v":0},{"$f":"'[2]5.2 Asset Age Profile'!BZ49+'[3]5.2 Asset Age Profile'!BZ49","v":0},{"$f":"'[2]5.2 Asset Age Profile'!CA49+'[3]5.2 Asset Age Profile'!CA49","v":0},{"$f":"'[2]5.2 Asset Age Profile'!CB49+'[3]5.2 Asset Age Profile'!CB49","v":0},{"$f":"'[2]5.2 Asset Age Profile'!CC49+'[3]5.2 Asset Age Profile'!CC49","v":0},{"$f":"'[2]5.2 Asset Age Profile'!CD49+'[3]5.2 Asset Age Profile'!CD49","v":0},{"$f":"'[2]5.2 Asset Age Profile'!CE49+'[3]5.2 Asset Age Profile'!CE49","v":0},{"$f":"'[2]5.2 Asset Age Profile'!CF49+'[3]5.2 Asset Age Profile'!CF49","v":0},{"$f":"'[2]5.2 Asset Age Profile'!CG49+'[3]5.2 Asset Age Profile'!CG49","v":1.7255619805581441},{"$f":"'[2]5.2 Asset Age Profile'!CH49+'[3]5.2 Asset Age Profile'!CH49","v":0.13215834727519668},{"$f":"'[2]5.2 Asset Age Profile'!CI49+'[3]5.2 Asset Age Profile'!CI49","v":0},{"$f":"'[2]5.2 Asset Age Profile'!CJ49+'[3]5.2 Asset Age Profile'!CJ49","v":0},{"$f":"'[2]5.2 Asset Age Profile'!CK49+'[3]5.2 Asset Age Profile'!CK49","v":0},{"$f":"'[2]5.2 Asset Age Profile'!CL49+'[3]5.2 Asset Age Profile'!CL49","v":0},{"$f":"'[2]5.2 Asset Age Profile'!CM49+'[3]5.2 Asset Age Profile'!CM49","v":0},{"$f":"'[2]5.2 Asset Age Profile'!CN49+'[3]5.2 Asset Age Profile'!CN49","v":0},{"$f":"'[2]5.2 Asset Age Profile'!CO49+'[3]5.2 Asset Age Profile'!CO49","v":0},{"$f":"'[2]5.2 Asset Age Profile'!CP49+'[3]5.2 Asset Age Profile'!CP49","v":0},{"$f":"'[2]5.2 Asset Age Profile'!CQ49+'[3]5.2 Asset Age Profile'!CQ49","v":1.49999999811783E-3},{"$f":"'[2]5.2 Asset Age Profile'!CR49+'[3]5.2 Asset Age Profile'!CR49","v":0},{"$f":"'[2]5.2 Asset Age Profile'!CS49+'[3]5.2 Asset Age Profile'!CS49","v":0},{"$f":"'[2]5.2 Asset Age Profile'!CT49+'[3]5.2 Asset Age Profile'!CT49","v":0},{"$f":"'[2]5.2 Asset Age Profile'!CU49+'[3]5.2 Asset Age Profile'!CU49","v":0},{"$f":"'[2]5.2 Asset Age Profile'!CV49+'[3]5.2 Asset Age Profile'!CV49","v":0},{"$f":"'[2]5.2 Asset Age Profile'!CW49+'[3]5.2 Asset Age Profile'!CW49","v":0},{"$f":"'[2]5.2 Asset Age Profile'!CX49+'[3]5.2 Asset Age Profile'!CX49","v":0},{"$f":"'[2]5.2 Asset Age Profile'!CY49+'[3]5.2 Asset Age Profile'!CY49","v":0},{"$f":"'[2]5.2 Asset Age Profile'!CZ49+'[3]5.2 Asset Age Profile'!CZ49","v":0},{"$f":"'[2]5.2 Asset Age Profile'!DA49+'[3]5.2 Asset Age Profile'!DA49","v":0},{"$f":"'[2]5.2 Asset Age Profile'!DB49+'[3]5.2 Asset Age Profile'!DB49","v":0},{"$f":"'[2]5.2 Asset Age Profile'!DC49+'[3]5.2 Asset Age Profile'!DC49","v":0},{"$f":"'[2]5.2 Asset Age Profile'!DD49+'[3]5.2 Asset Age Profile'!DD49","v":0},{"$f":"'[2]5.2 Asset Age Profile'!DE49+'[3]5.2 Asset Age Profile'!DE49","v":0},{"$f":"'[2]5.2 Asset Age Profile'!DF49+'[3]5.2 Asset Age Profile'!DF49","v":0},{"$f":"'[2]5.2 Asset Age Profile'!DG49+'[3]5.2 Asset Age Profile'!DG49","v":0},{"$f":"'[2]5.2 Asset Age Profile'!DH49+'[3]5.2 Asset Age Profile'!DH49","v":0},{"$f":"'[2]5.2 Asset Age Profile'!DI49+'[3]5.2 Asset Age Profile'!DI49","v":0},{"$f":"'[2]5.2 Asset Age Profile'!DJ49+'[3]5.2 Asset Age Profile'!DJ49","v":0},{"$f":"'[2]5.2 Asset Age Profile'!DK49+'[3]5.2 Asset Age Profile'!DK49","v":0},{"$f":"'[2]5.2 Asset Age Profile'!DL49+'[3]5.2 Asset Age Profile'!DL49","v":0},{"$f":"'[2]5.2 Asset Age Profile'!DM49+'[3]5.2 Asset Age Profile'!DM49","v":0},{"$f":"'[2]5.2 Asset Age Profile'!DN49+'[3]5.2 Asset Age Profile'!DN49","v":0},{"$f":"'[2]5.2 Asset Age Profile'!DO49+'[3]5.2 Asset Age Profile'!DO49","v":0},{"$f":"'[2]5.2 Asset Age Profile'!DP49+'[3]5.2 Asset Age Profile'!DP49","v":0},{"$f":"'[2]5.2 Asset Age Profile'!DQ49+'[3]5.2 Asset Age Profile'!DQ49","v":0},{"$f":"'[2]5.2 Asset Age Profile'!DR49+'[3]5.2 Asset Age Profile'!DR49","v":0},{"$f":"'[2]5.2 Asset Age Profile'!DS49+'[3]5.2 Asset Age Profile'!DS49","v":4.4999999861507801E-3},{"$f":"'[2]5.2 Asset Age Profile'!DT49+'[3]5.2 Asset Age Profile'!DT49","v":0},{"$f":"'[2]5.2 Asset Age Profile'!DU49+'[3]5.2 Asset Age Profile'!DU49","v":0},{"$f":"'[2]5.2 Asset Age Profile'!DV49+'[3]5.2 Asset Age Profile'!DV49","v":0},{"$f":"'[2]5.2 Asset Age Profile'!DW49+'[3]5.2 Asset Age Profile'!DW49","v":0},{"$f":"'[2]5.2 Asset Age Profile'!DX49+'[3]5.2 Asset Age Profile'!DX49","v":0},{"$f":"'[2]5.2 Asset Age Profile'!DY49+'[3]5.2 Asset Age Profile'!DY49","v":0},{"$f":"'[2]5.2 Asset Age Profile'!DZ49+'[3]5.2 Asset Age Profile'!DZ49","v":0},{"$f":"'[2]5.2 Asset Age Profile'!EA49+'[3]5.2 Asset Age Profile'!EA49","v":0},{"$f":"'[2]5.2 Asset Age Profile'!EB49+'[3]5.2 Asset Age Profile'!EB49","v":0},{"$f":"'[2]5.2 Asset Age Profile'!EC49+'[3]5.2 Asset Age Profile'!EC49","v":0},{"$f":"'[2]5.2 Asset Age Profile'!ED49+'[3]5.2 Asset Age Profile'!ED49","v":0},{"$f":"'[2]5.2 Asset Age Profile'!EE49+'[3]5.2 Asset Age Profile'!EE49","v":0},{"$f":"'[2]5.2 Asset Age Profile'!EF49+'[3]5.2 Asset Age Profile'!EF49","v":0},{"$f":"'[2]5.2 Asset Age Profile'!EG49+'[3]5.2 Asset Age Profile'!EG49","v":0},{"$f":"'[2]5.2 Asset Age Profile'!EH49+'[3]5.2 Asset Age Profile'!EH49","v":0},{"$f":"'[2]5.2 Asset Age Profile'!EI49+'[3]5.2 Asset Age Profile'!EI49","v":0},{"$f":"'[2]5.2 Asset Age Profile'!EJ49+'[3]5.2 Asset Age Profile'!EJ49","v":0}]
["ED_ASS521_00040",null,"> 22 kV & < = 33 kV",null,null,null,null,null,null,null,null,null,null,{"$f":"'[2]5.2 Asset Age Profile'!N50+'[3]5.2 Asset Age Profile'!N50","v":0},{"$f":"'[2]5.2 Asset Age Profile'!O50+'[3]5.2 Asset Age Profile'!O50","v":0},{"$f":"'[2]5.2 Asset Age Profile'!P50+'[3]5.2 Asset Age Profile'!P50","v":0},{"$f":"'[2]5.2 Asset Age Profile'!Q50+'[3]5.2 Asset Age Profile'!Q50","v":0},{"$f":"'[2]5.2 Asset Age Profile'!R50+'[3]5.2 Asset Age Profile'!R50","v":0},{"$f":"'[2]5.2 Asset Age Profile'!S50+'[3]5.2 Asset Age Profile'!S50","v":0},{"$f":"'[2]5.2 Asset Age Profile'!T50+'[3]5.2 Asset Age Profile'!T50","v":0},{"$f":"'[2]5.2 Asset Age Profile'!U50+'[3]5.2 Asset Age Profile'!U50","v":0},{"$f":"'[2]5.2 Asset Age Profile'!V50+'[3]5.2 Asset Age Profile'!V50","v":0},{"$f":"'[2]5.2 Asset Age Profile'!W50+'[3]5.2 Asset Age Profile'!W50","v":0},{"$f":"'[2]5.2 Asset Age Profile'!X50+'[3]5.2 Asset Age Profile'!X50","v":0},{"$f":"'[2]5.2 Asset Age Profile'!Y50+'[3]5.2 Asset Age Profile'!Y50","v":0},{"$f":"'[2]5.2 Asset Age Profile'!Z50+'[3]5.2 Asset Age Profile'!Z50","v":0},{"$f":"'[2]5.2 Asset Age Profile'!AA50+'[3]5.2 Asset Age Profile'!AA50","v":0},{"$f":"'[2]5.2 Asset Age Profile'!AB50+'[3]5.2 Asset Age Profile'!AB50","v":0},{"$f":"'[2]5.2 Asset Age Profile'!AC50+'[3]5.2 Asset Age Profile'!AC50","v":0},{"$f":"'[2]5.2 Asset Age Profile'!AD50+'[3]5.2 Asset Age Profile'!AD50","v":0},{"$f":"'[2]5.2 Asset Age Profile'!AE50+'[3]5.2 Asset Age Profile'!AE50","v":0},{"$f":"'[2]5.2 Asset Age Profile'!AF50+'[3]5.2 Asset Age Profile'!AF50","v":0},{"$f":"'[2]5.2 Asset Age Profile'!AG50+'[3]5.2 Asset Age Profile'!AG50","v":0},{"$f":"'[2]5.2 Asset Age Profile'!AH50+'[3]5.2 Asset Age Profile'!AH50","v":0},{"$f":"'[2]5.2 Asset Age Profile'!AI50+'[3]5.2 Asset Age Profile'!AI50","v":0},{"$f":"'[2]5.2 Asset Age Profile'!AJ50+'[3]5.2 Asset Age Profile'!AJ50","v":0},{"$f":"'[2]5.2 Asset Age Profile'!AK50+'[3]5.2 Asset Age Profile'!AK50","v":0},{"$f":"'[2]5.2 Asset Age Profile'!AL50+'[3]5.2 Asset Age Profile'!AL50","v":0},{"$f":"'[2]5.2 Asset Age Profile'!AM50+'[3]5.2 Asset Age Profile'!AM50","v":0},{"$f":"'[2]5.2 Asset Age Profile'!AN50+'[3]5.2 Asset Age Profile'!AN50","v":0},{"$f":"'[2]5.2 Asset Age Profile'!AO50+'[3]5.2 Asset Age Profile'!AO50","v":0},{"$f":"'[2]5.2 Asset Age Profile'!AP50+'[3]5.2 Asset Age Profile'!AP50","v":0},{"$f":"'[2]5.2 Asset Age Profile'!AQ50+'[3]5.2 Asset Age Profile'!AQ50","v":0},{"$f":"'[2]5.2 Asset Age Profile'!AR50+'[3]5.2 Asset Age Profile'!AR50","v":0},{"$f":"'[2]5.2 Asset Age Profile'!AS50+'[3]5.2 Asset Age Profile'!AS50","v":0},{"$f":"'[2]5.2 Asset Age Profile'!AT50+'[3]5.2 Asset Age Profile'!AT50","v":0},{"$f":"'[2]5.2 Asset Age Profile'!AU50+'[3]5.2 Asset Age Profile'!AU50","v":0},{"$f":"'[2]5.2 Asset Age Profile'!AV50+'[3]5.2 Asset Age Profile'!AV50","v":0},{"$f":"'[2]5.2 Asset Age Profile'!AW50+'[3]5.2 Asset Age Profile'!AW50","v":0},{"$f":"'[2]5.2 Asset Age Profile'!AX50+'[3]5.2 Asset Age Profile'!AX50","v":0},{"$f":"'[2]5.2 Asset Age Profile'!AY50+'[3]5.2 Asset Age Profile'!AY50","v":0},{"$f":"'[2]5.2 Asset Age Profile'!AZ50+'[3]5.2 Asset Age Profile'!AZ50","v":0},{"$f":"'[2]5.2 Asset Age Profile'!BA50+'[3]5.2 Asset Age Profile'!BA50","v":0},{"$f":"'[2]5.2 Asset Age Profile'!BB50+'[3]5.2 Asset Age Profile'!BB50","v":0},{"$f":"'[2]5.2 Asset Age Profile'!BC50+'[3]5.2 Asset Age Profile'!BC50","v":0},{"$f":"'[2]5.2 Asset Age Profile'!BD50+'[3]5.2 Asset Age Profile'!BD50","v":0},{"$f":"'[2]5.2 Asset Age Profile'!BE50+'[3]5.2 Asset Age Profile'!BE50","v":0},{"$f":"'[2]5.2 Asset Age Profile'!BF50+'[3]5.2 Asset Age Profile'!BF50","v":0},{"$f":"'[2]5.2 Asset Age Profile'!BG50+'[3]5.2 Asset Age Profile'!BG50","v":0},{"$f":"'[2]5.2 Asset Age Profile'!BH50+'[3]5.2 Asset Age Profile'!BH50","v":0},{"$f":"'[2]5.2 Asset Age Profile'!BI50+'[3]5.2 Asset Age Profile'!BI50","v":0},{"$f":"'[2]5.2 Asset Age Profile'!BJ50+'[3]5.2 Asset Age Profile'!BJ50","v":0},{"$f":"'[2]5.2 Asset Age Profile'!BK50+'[3]5.2 Asset Age Profile'!BK50","v":0},{"$f":"'[2]5.2 Asset Age Profile'!BL50+'[3]5.2 Asset Age Profile'!BL50","v":0},{"$f":"'[2]5.2 Asset Age Profile'!BM50+'[3]5.2 Asset Age Profile'!BM50","v":0},{"$f":"'[2]5.2 Asset Age Profile'!BN50+'[3]5.2 Asset Age Profile'!BN50","v":0},{"$f":"'[2]5.2 Asset Age Profile'!BO50+'[3]5.2 Asset Age Profile'!BO50","v":0},{"$f":"'[2]5.2 Asset Age Profile'!BP50+'[3]5.2 Asset Age Profile'!BP50","v":0},{"$f":"'[2]5.2 Asset Age Profile'!BQ50+'[3]5.2 Asset Age Profile'!BQ50","v":0},{"$f":"'[2]5.2 Asset Age Profile'!BR50+'[3]5.2 Asset Age Profile'!BR50","v":0},{"$f":"'[2]5.2 Asset Age Profile'!BS50+'[3]5.2 Asset Age Profile'!BS50","v":0},{"$f":"'[2]5.2 Asset Age Profile'!BT50+'[3]5.2 Asset Age Profile'!BT50","v":0},{"$f":"'[2]5.2 Asset Age Profile'!BU50+'[3]5.2 Asset Age Profile'!BU50","v":0},{"$f":"'[2]5.2 Asset Age Profile'!BV50+'[3]5.2 Asset Age Profile'!BV50","v":0},{"$f":"'[2]5.2 Asset Age Profile'!BW50+'[3]5.2 Asset Age Profile'!BW50","v":0},{"$f":"'[2]5.2 Asset Age Profile'!BX50+'[3]5.2 Asset Age Profile'!BX50","v":0},{"$f":"'[2]5.2 Asset Age Profile'!BY50+'[3]5.2 Asset Age Profile'!BY50","v":0},{"$f":"'[2]5.2 Asset Age Profile'!BZ50+'[3]5.2 Asset Age Profile'!BZ50","v":0},{"$f":"'[2]5.2 Asset Age Profile'!CA50+'[3]5.2 Asset Age Profile'!CA50","v":0},{"$f":"'[2]5.2 Asset Age Profile'!CB50+'[3]5.2 Asset Age Profile'!CB50","v":0},{"$f":"'[2]5.2 Asset Age Profile'!CC50+'[3]5.2 Asset Age Profile'!CC50","v":0},{"$f":"'[2]5.2 Asset Age Profile'!CD50+'[3]5.2 Asset Age Profile'!CD50","v":0},{"$f":"'[2]5.2 Asset Age Profile'!CE50+'[3]5.2 Asset Age Profile'!CE50","v":0},{"$f":"'[2]5.2 Asset Age Profile'!CF50+'[3]5.2 Asset Age Profile'!CF50","v":0},{"$f":"'[2]5.2 Asset Age Profile'!CG50+'[3]5.2 Asset Age Profile'!CG50","v":0},{"$f":"'[2]5.2 Asset Age Profile'!CH50+'[3]5.2 Asset Age Profile'!CH50","v":0},{"$f":"'[2]5.2 Asset Age Profile'!CI50+'[3]5.2 Asset Age Profile'!CI50","v":0},{"$f":"'[2]5.2 Asset Age Profile'!CJ50+'[3]5.2 Asset Age Profile'!CJ50","v":0},{"$f":"'[2]5.2 Asset Age Profile'!CK50+'[3]5.2 Asset Age Profile'!CK50","v":0},{"$f":"'[2]5.2 Asset Age Profile'!CL50+'[3]5.2 Asset Age Profile'!CL50","v":0},{"$f":"'[2]5.2 Asset Age Profile'!CM50+'[3]5.2 Asset Age Profile'!CM50","v":0},{"$f":"'[2]5.2 Asset Age Profile'!CN50+'[3]5.2 Asset Age Profile'!CN50","v":0},{"$f":"'[2]5.2 Asset Age Profile'!CO50+'[3]5.2 Asset Age Profile'!CO50","v":0},{"$f":"'[2]5.2 Asset Age Profile'!CP50+'[3]5.2 Asset Age Profile'!CP50","v":0},{"$f":"'[2]5.2 Asset Age Profile'!CQ50+'[3]5.2 Asset Age Profile'!CQ50","v":0},{"$f":"'[2]5.2 Asset Age Profile'!CR50+'[3]5.2 Asset Age Profile'!CR50","v":0},{"$f":"'[2]5.2 Asset Age Profile'!CS50+'[3]5.2 Asset Age Profile'!CS50","v":0},{"$f":"'[2]5.2 Asset Age Profile'!CT50+'[3]5.2 Asset Age Profile'!CT50","v":0},{"$f":"'[2]5.2 Asset Age Profile'!CU50+'[3]5.2 Asset Age Profile'!CU50","v":0},{"$f":"'[2]5.2 Asset Age Profile'!CV50+'[3]5.2 Asset Age Profile'!CV50","v":0},{"$f":"'[2]5.2 Asset Age Profile'!CW50+'[3]5.2 Asset Age Profile'!CW50","v":0},{"$f":"'[2]5.2 Asset Age Profile'!CX50+'[3]5.2 Asset Age Profile'!CX50","v":0},{"$f":"'[2]5.2 Asset Age Profile'!CY50+'[3]5.2 Asset Age Profile'!CY50","v":0},{"$f":"'[2]5.2 Asset Age Profile'!CZ50+'[3]5.2 Asset Age Profile'!CZ50","v":0},{"$f":"'[2]5.2 Asset Age Profile'!DA50+'[3]5.2 Asset Age Profile'!DA50","v":0},{"$f":"'[2]5.2 Asset Age Profile'!DB50+'[3]5.2 Asset Age Profile'!DB50","v":0},{"$f":"'[2]5.2 Asset Age Profile'!DC50+'[3]5.2 Asset Age Profile'!DC50","v":0},{"$f":"'[2]5.2 Asset Age Profile'!DD50+'[3]5.2 Asset Age Profile'!DD50","v":0},{"$f":"'[2]5.2 Asset Age Profile'!DE50+'[3]5.2 Asset Age Profile'!DE50","v":0},{"$f":"'[2]5.2 Asset Age Profile'!DF50+'[3]5.2 Asset Age Profile'!DF50","v":0},{"$f":"'[2]5.2 Asset Age Profile'!DG50+'[3]5.2 Asset Age Profile'!DG50","v":0},{"$f":"'[2]5.2 Asset Age Profile'!DH50+'[3]5.2 Asset Age Profile'!DH50","v":0},{"$f":"'[2]5.2 Asset Age Profile'!DI50+'[3]5.2 Asset Age Profile'!DI50","v":0},{"$f":"'[2]5.2 Asset Age Profile'!DJ50+'[3]5.2 Asset Age Profile'!DJ50","v":0},{"$f":"'[2]5.2 Asset Age Profile'!DK50+'[3]5.2 Asset Age Profile'!DK50","v":0},{"$f":"'[2]5.2 Asset Age Profile'!DL50+'[3]5.2 Asset Age Profile'!DL50","v":0},{"$f":"'[2]5.2 Asset Age Profile'!DM50+'[3]5.2 Asset Age Profile'!DM50","v":0},{"$f":"'[2]5.2 Asset Age Profile'!DN50+'[3]5.2 Asset Age Profile'!DN50","v":0},{"$f":"'[2]5.2 Asset Age Profile'!DO50+'[3]5.2 Asset Age Profile'!DO50","v":0},{"$f":"'[2]5.2 Asset Age Profile'!DP50+'[3]5.2 Asset Age Profile'!DP50","v":0},{"$f":"'[2]5.2 Asset Age Profile'!DQ50+'[3]5.2 Asset Age Profile'!DQ50","v":0},{"$f":"'[2]5.2 Asset Age Profile'!DR50+'[3]5.2 Asset Age Profile'!DR50","v":0},{"$f":"'[2]5.2 Asset Age Profile'!DS50+'[3]5.2 Asset Age Profile'!DS50","v":0},{"$f":"'[2]5.2 Asset Age Profile'!DT50+'[3]5.2 Asset Age Profile'!DT50","v":0},{"$f":"'[2]5.2 Asset Age Profile'!DU50+'[3]5.2 Asset Age Profile'!DU50","v":0},{"$f":"'[2]5.2 Asset Age Profile'!DV50+'[3]5.2 Asset Age Profile'!DV50","v":0},{"$f":"'[2]5.2 Asset Age Profile'!DW50+'[3]5.2 Asset Age Profile'!DW50","v":0},{"$f":"'[2]5.2 Asset Age Profile'!DX50+'[3]5.2 Asset Age Profile'!DX50","v":0},{"$f":"'[2]5.2 Asset Age Profile'!DY50+'[3]5.2 Asset Age Profile'!DY50","v":0},{"$f":"'[2]5.2 Asset Age Profile'!DZ50+'[3]5.2 Asset Age Profile'!DZ50","v":0},{"$f":"'[2]5.2 Asset Age Profile'!EA50+'[3]5.2 Asset Age Profile'!EA50","v":0},{"$f":"'[2]5.2 Asset Age Profile'!EB50+'[3]5.2 Asset Age Profile'!EB50","v":0},{"$f":"'[2]5.2 Asset Age Profile'!EC50+'[3]5.2 Asset Age Profile'!EC50","v":0},{"$f":"'[2]5.2 Asset Age Profile'!ED50+'[3]5.2 Asset Age Profile'!ED50","v":0},{"$f":"'[2]5.2 Asset Age Profile'!EE50+'[3]5.2 Asset Age Profile'!EE50","v":0},{"$f":"'[2]5.2 Asset Age Profile'!EF50+'[3]5.2 Asset Age Profile'!EF50","v":0},{"$f":"'[2]5.2 Asset Age Profile'!EG50+'[3]5.2 Asset Age Profile'!EG50","v":0},{"$f":"'[2]5.2 Asset Age Profile'!EH50+'[3]5.2 Asset Age Profile'!EH50","v":0},{"$f":"'[2]5.2 Asset Age Profile'!EI50+'[3]5.2 Asset Age Profile'!EI50","v":0},{"$f":"'[2]5.2 Asset Age Profile'!EJ50+'[3]5.2 Asset Age Profile'!EJ50","v":0}]
["ED_ASS521_00041",null,"> 33 kV & < = 66 kV",null,null,null,null,null,null,null,null,null,null,{"$f":"'[2]5.2 Asset Age Profile'!N51+'[3]5.2 Asset Age Profile'!N51","v":0},{"$f":"'[2]5.2 Asset Age Profile'!O51+'[3]5.2 Asset Age Profile'!O51","v":0},{"$f":"'[2]5.2 Asset Age Profile'!P51+'[3]5.2 Asset Age Profile'!P51","v":0},{"$f":"'[2]5.2 Asset Age Profile'!Q51+'[3]5.2 Asset Age Profile'!Q51","v":0},{"$f":"'[2]5.2 Asset Age Profile'!R51+'[3]5.2 Asset Age Profile'!R51","v":0},{"$f":"'[2]5.2 Asset Age Profile'!S51+'[3]5.2 Asset Age Profile'!S51","v":0},{"$f":"'[2]5.2 Asset Age Profile'!T51+'[3]5.2 Asset Age Profile'!T51","v":0},{"$f":"'[2]5.2 Asset Age Profile'!U51+'[3]5.2 Asset Age Profile'!U51","v":0},{"$f":"'[2]5.2 Asset Age Profile'!V51+'[3]5.2 Asset Age Profile'!V51","v":0},{"$f":"'[2]5.2 Asset Age Profile'!W51+'[3]5.2 Asset Age Profile'!W51","v":0},{"$f":"'[2]5.2 Asset Age Profile'!X51+'[3]5.2 Asset Age Profile'!X51","v":0},{"$f":"'[2]5.2 Asset Age Profile'!Y51+'[3]5.2 Asset Age Profile'!Y51","v":0},{"$f":"'[2]5.2 Asset Age Profile'!Z51+'[3]5.2 Asset Age Profile'!Z51","v":0},{"$f":"'[2]5.2 Asset Age Profile'!AA51+'[3]5.2 Asset Age Profile'!AA51","v":0},{"$f":"'[2]5.2 Asset Age Profile'!AB51+'[3]5.2 Asset Age Profile'!AB51","v":0},{"$f":"'[2]5.2 Asset Age Profile'!AC51+'[3]5.2 Asset Age Profile'!AC51","v":0},{"$f":"'[2]5.2 Asset Age Profile'!AD51+'[3]5.2 Asset Age Profile'!AD51","v":0},{"$f":"'[2]5.2 Asset Age Profile'!AE51+'[3]5.2 Asset Age Profile'!AE51","v":0},{"$f":"'[2]5.2 Asset Age Profile'!AF51+'[3]5.2 Asset Age Profile'!AF51","v":0},{"$f":"'[2]5.2 Asset Age Profile'!AG51+'[3]5.2 Asset Age Profile'!AG51","v":0},{"$f":"'[2]5.2 Asset Age Profile'!AH51+'[3]5.2 Asset Age Profile'!AH51","v":0},{"$f":"'[2]5.2 Asset Age Profile'!AI51+'[3]5.2 Asset Age Profile'!AI51","v":0},{"$f":"'[2]5.2 Asset Age Profile'!AJ51+'[3]5.2 Asset Age Profile'!AJ51","v":0},{"$f":"'[2]5.2 Asset Age Profile'!AK51+'[3]5.2 Asset Age Profile'!AK51","v":0},{"$f":"'[2]5.2 Asset Age Profile'!AL51+'[3]5.2 Asset Age Profile'!AL51","v":0},{"$f":"'[2]5.2 Asset Age Profile'!AM51+'[3]5.2 Asset Age Profile'!AM51","v":0},{"$f":"'[2]5.2 Asset Age Profile'!AN51+'[3]5.2 Asset Age Profile'!AN51","v":0},{"$f":"'[2]5.2 Asset Age Profile'!AO51+'[3]5.2 Asset Age Profile'!AO51","v":0},{"$f":"'[2]5.2 Asset Age Profile'!AP51+'[3]5.2 Asset Age Profile'!AP51","v":0},{"$f":"'[2]5.2 Asset Age Profile'!AQ51+'[3]5.2 Asset Age Profile'!AQ51","v":0},{"$f":"'[2]5.2 Asset Age Profile'!AR51+'[3]5.2 Asset Age Profile'!AR51","v":0},{"$f":"'[2]5.2 Asset Age Profile'!AS51+'[3]5.2 Asset Age Profile'!AS51","v":0},{"$f":"'[2]5.2 Asset Age Profile'!AT51+'[3]5.2 Asset Age Profile'!AT51","v":0},{"$f":"'[2]5.2 Asset Age Profile'!AU51+'[3]5.2 Asset Age Profile'!AU51","v":0},{"$f":"'[2]5.2 Asset Age Profile'!AV51+'[3]5.2 Asset Age Profile'!AV51","v":0},{"$f":"'[2]5.2 Asset Age Profile'!AW51+'[3]5.2 Asset Age Profile'!AW51","v":0},{"$f":"'[2]5.2 Asset Age Profile'!AX51+'[3]5.2 Asset Age Profile'!AX51","v":0},{"$f":"'[2]5.2 Asset Age Profile'!AY51+'[3]5.2 Asset Age Profile'!AY51","v":0},{"$f":"'[2]5.2 Asset Age Profile'!AZ51+'[3]5.2 Asset Age Profile'!AZ51","v":0},{"$f":"'[2]5.2 Asset Age Profile'!BA51+'[3]5.2 Asset Age Profile'!BA51","v":0},{"$f":"'[2]5.2 Asset Age Profile'!BB51+'[3]5.2 Asset Age Profile'!BB51","v":0},{"$f":"'[2]5.2 Asset Age Profile'!BC51+'[3]5.2 Asset Age Profile'!BC51","v":0},{"$f":"'[2]5.2 Asset Age Profile'!BD51+'[3]5.2 Asset Age Profile'!BD51","v":0},{"$f":"'[2]5.2 Asset Age Profile'!BE51+'[3]5.2 Asset Age Profile'!BE51","v":0},{"$f":"'[2]5.2 Asset Age Profile'!BF51+'[3]5.2 Asset Age Profile'!BF51","v":0},{"$f":"'[2]5.2 Asset Age Profile'!BG51+'[3]5.2 Asset Age Profile'!BG51","v":0},{"$f":"'[2]5.2 Asset Age Profile'!BH51+'[3]5.2 Asset Age Profile'!BH51","v":0},{"$f":"'[2]5.2 Asset Age Profile'!BI51+'[3]5.2 Asset Age Profile'!BI51","v":0},{"$f":"'[2]5.2 Asset Age Profile'!BJ51+'[3]5.2 Asset Age Profile'!BJ51","v":0},{"$f":"'[2]5.2 Asset Age Profile'!BK51+'[3]5.2 Asset Age Profile'!BK51","v":0},{"$f":"'[2]5.2 Asset Age Profile'!BL51+'[3]5.2 Asset Age Profile'!BL51","v":0},{"$f":"'[2]5.2 Asset Age Profile'!BM51+'[3]5.2 Asset Age Profile'!BM51","v":0},{"$f":"'[2]5.2 Asset Age Profile'!BN51+'[3]5.2 Asset Age Profile'!BN51","v":0},{"$f":"'[2]5.2 Asset Age Profile'!BO51+'[3]5.2 Asset Age Profile'!BO51","v":0},{"$f":"'[2]5.2 Asset Age Profile'!BP51+'[3]5.2 Asset Age Profile'!BP51","v":0},{"$f":"'[2]5.2 Asset Age Profile'!BQ51+'[3]5.2 Asset Age Profile'!BQ51","v":0},{"$f":"'[2]5.2 Asset Age Profile'!BR51+'[3]5.2 Asset Age Profile'!BR51","v":0},{"$f":"'[2]5.2 Asset Age Profile'!BS51+'[3]5.2 Asset Age Profile'!BS51","v":0},{"$f":"'[2]5.2 Asset Age Profile'!BT51+'[3]5.2 Asset Age Profile'!BT51","v":0},{"$f":"'[2]5.2 Asset Age Profile'!BU51+'[3]5.2 Asset Age Profile'!BU51","v":0},{"$f":"'[2]5.2 Asset Age Profile'!BV51+'[3]5.2 Asset Age Profile'!BV51","v":0},{"$f":"'[2]5.2 Asset Age Profile'!BW51+'[3]5.2 Asset Age Profile'!BW51","v":0},{"$f":"'[2]5.2 Asset Age Profile'!BX51+'[3]5.2 Asset Age Profile'!BX51","v":0},{"$f":"'[2]5.2 Asset Age Profile'!BY51+'[3]5.2 Asset Age Profile'!BY51","v":0},{"$f":"'[2]5.2 Asset Age Profile'!BZ51+'[3]5.2 Asset Age Profile'!BZ51","v":0},{"$f":"'[2]5.2 Asset Age Profile'!CA51+'[3]5.2 Asset Age Profile'!CA51","v":0},{"$f":"'[2]5.2 Asset Age Profile'!CB51+'[3]5.2 Asset Age Profile'!CB51","v":0},{"$f":"'[2]5.2 Asset Age Profile'!CC51+'[3]5.2 Asset Age Profile'!CC51","v":0},{"$f":"'[2]5.2 Asset Age Profile'!CD51+'[3]5.2 Asset Age Profile'!CD51","v":0},{"$f":"'[2]5.2 Asset Age Profile'!CE51+'[3]5.2 Asset Age Profile'!CE51","v":0},{"$f":"'[2]5.2 Asset Age Profile'!CF51+'[3]5.2 Asset Age Profile'!CF51","v":0},{"$f":"'[2]5.2 Asset Age Profile'!CG51+'[3]5.2 Asset Age Profile'!CG51","v":0},{"$f":"'[2]5.2 Asset Age Profile'!CH51+'[3]5.2 Asset Age Profile'!CH51","v":0},{"$f":"'[2]5.2 Asset Age Profile'!CI51+'[3]5.2 Asset Age Profile'!CI51","v":0},{"$f":"'[2]5.2 Asset Age Profile'!CJ51+'[3]5.2 Asset Age Profile'!CJ51","v":0},{"$f":"'[2]5.2 Asset Age Profile'!CK51+'[3]5.2 Asset Age Profile'!CK51","v":0},{"$f":"'[2]5.2 Asset Age Profile'!CL51+'[3]5.2 Asset Age Profile'!CL51","v":0},{"$f":"'[2]5.2 Asset Age Profile'!CM51+'[3]5.2 Asset Age Profile'!CM51","v":0},{"$f":"'[2]5.2 Asset Age Profile'!CN51+'[3]5.2 Asset Age Profile'!CN51","v":0},{"$f":"'[2]5.2 Asset Age Profile'!CO51+'[3]5.2 Asset Age Profile'!CO51","v":0},{"$f":"'[2]5.2 Asset Age Profile'!CP51+'[3]5.2 Asset Age Profile'!CP51","v":0},{"$f":"'[2]5.2 Asset Age Profile'!CQ51+'[3]5.2 Asset Age Profile'!CQ51","v":0},{"$f":"'[2]5.2 Asset Age Profile'!CR51+'[3]5.2 Asset Age Profile'!CR51","v":0},{"$f":"'[2]5.2 Asset Age Profile'!CS51+'[3]5.2 Asset Age Profile'!CS51","v":0},{"$f":"'[2]5.2 Asset Age Profile'!CT51+'[3]5.2 Asset Age Profile'!CT51","v":0},{"$f":"'[2]5.2 Asset Age Profile'!CU51+'[3]5.2 Asset Age Profile'!CU51","v":0},{"$f":"'[2]5.2 Asset Age Profile'!CV51+'[3]5.2 Asset Age Profile'!CV51","v":0},{"$f":"'[2]5.2 Asset Age Profile'!CW51+'[3]5.2 Asset Age Profile'!CW51","v":0},{"$f":"'[2]5.2 Asset Age Profile'!CX51+'[3]5.2 Asset Age Profile'!CX51","v":0},{"$f":"'[2]5.2 Asset Age Profile'!CY51+'[3]5.2 Asset Age Profile'!CY51","v":0},{"$f":"'[2]5.2 Asset Age Profile'!CZ51+'[3]5.2 Asset Age Profile'!CZ51","v":0},{"$f":"'[2]5.2 Asset Age Profile'!DA51+'[3]5.2 Asset Age Profile'!DA51","v":0},{"$f":"'[2]5.2 Asset Age Profile'!DB51+'[3]5.2 Asset Age Profile'!DB51","v":0},{"$f":"'[2]5.2 Asset Age Profile'!DC51+'[3]5.2 Asset Age Profile'!DC51","v":0},{"$f":"'[2]5.2 Asset Age Profile'!DD51+'[3]5.2 Asset Age Profile'!DD51","v":0},{"$f":"'[2]5.2 Asset Age Profile'!DE51+'[3]5.2 Asset Age Profile'!DE51","v":0},{"$f":"'[2]5.2 Asset Age Profile'!DF51+'[3]5.2 Asset Age Profile'!DF51","v":0},{"$f":"'[2]5.2 Asset Age Profile'!DG51+'[3]5.2 Asset Age Profile'!DG51","v":0},{"$f":"'[2]5.2 Asset Age Profile'!DH51+'[3]5.2 Asset Age Profile'!DH51","v":0},{"$f":"'[2]5.2 Asset Age Profile'!DI51+'[3]5.2 Asset Age Profile'!DI51","v":0},{"$f":"'[2]5.2 Asset Age Profile'!DJ51+'[3]5.2 Asset Age Profile'!DJ51","v":0},{"$f":"'[2]5.2 Asset Age Profile'!DK51+'[3]5.2 Asset Age Profile'!DK51","v":0},{"$f":"'[2]5.2 Asset Age Profile'!DL51+'[3]5.2 Asset Age Profile'!DL51","v":0},{"$f":"'[2]5.2 Asset Age Profile'!DM51+'[3]5.2 Asset Age Profile'!DM51","v":0},{"$f":"'[2]5.2 Asset Age Profile'!DN51+'[3]5.2 Asset Age Profile'!DN51","v":0},{"$f":"'[2]5.2 Asset Age Profile'!DO51+'[3]5.2 Asset Age Profile'!DO51","v":0},{"$f":"'[2]5.2 Asset Age Profile'!DP51+'[3]5.2 Asset Age Profile'!DP51","v":0},{"$f":"'[2]5.2 Asset Age Profile'!DQ51+'[3]5.2 Asset Age Profile'!DQ51","v":0},{"$f":"'[2]5.2 Asset Age Profile'!DR51+'[3]5.2 Asset Age Profile'!DR51","v":0},{"$f":"'[2]5.2 Asset Age Profile'!DS51+'[3]5.2 Asset Age Profile'!DS51","v":0},{"$f":"'[2]5.2 Asset Age Profile'!DT51+'[3]5.2 Asset Age Profile'!DT51","v":0},{"$f":"'[2]5.2 Asset Age Profile'!DU51+'[3]5.2 Asset Age Profile'!DU51","v":0},{"$f":"'[2]5.2 Asset Age Profile'!DV51+'[3]5.2 Asset Age Profile'!DV51","v":0},{"$f":"'[2]5.2 Asset Age Profile'!DW51+'[3]5.2 Asset Age Profile'!DW51","v":0},{"$f":"'[2]5.2 Asset Age Profile'!DX51+'[3]5.2 Asset Age Profile'!DX51","v":0},{"$f":"'[2]5.2 Asset Age Profile'!DY51+'[3]5.2 Asset Age Profile'!DY51","v":0},{"$f":"'[2]5.2 Asset Age Profile'!DZ51+'[3]5.2 Asset Age Profile'!DZ51","v":0},{"$f":"'[2]5.2 Asset Age Profile'!EA51+'[3]5.2 Asset Age Profile'!EA51","v":0},{"$f":"'[2]5.2 Asset Age Profile'!EB51+'[3]5.2 Asset Age Profile'!EB51","v":0},{"$f":"'[2]5.2 Asset Age Profile'!EC51+'[3]5.2 Asset Age Profile'!EC51","v":0},{"$f":"'[2]5.2 Asset Age Profile'!ED51+'[3]5.2 Asset Age Profile'!ED51","v":0},{"$f":"'[2]5.2 Asset Age Profile'!EE51+'[3]5.2 Asset Age Profile'!EE51","v":0},{"$f":"'[2]5.2 Asset Age Profile'!EF51+'[3]5.2 Asset Age Profile'!EF51","v":0},{"$f":"'[2]5.2 Asset Age Profile'!EG51+'[3]5.2 Asset Age Profile'!EG51","v":0},{"$f":"'[2]5.2 Asset Age Profile'!EH51+'[3]5.2 Asset Age Profile'!EH51","v":0},{"$f":"'[2]5.2 Asset Age Profile'!EI51+'[3]5.2 Asset Age Profile'!EI51","v":0},{"$f":"'[2]5.2 Asset Age Profile'!EJ51+'[3]5.2 Asset Age Profile'!EJ51","v":0}]
["ED_ASS521_00042",null,"> 66 kV & < = 132 kV",null,null,null,null,null,null,null,null,null,null,{"$f":"'[2]5.2 Asset Age Profile'!N52+'[3]5.2 Asset Age Profile'!N52","v":50},{"$f":"'[2]5.2 Asset Age Profile'!O52+'[3]5.2 Asset Age Profile'!O52","v":0},{"$f":"'[2]5.2 Asset Age Profile'!P52+'[3]5.2 Asset Age Profile'!P52","v":0},{"$f":"'[2]5.2 Asset Age Profile'!Q52+'[3]5.2 Asset Age Profile'!Q52","v":0},{"$f":"'[2]5.2 Asset Age Profile'!R52+'[3]5.2 Asset Age Profile'!R52","v":0},{"$f":"'[2]5.2 Asset Age Profile'!S52+'[3]5.2 Asset Age Profile'!S52","v":0},{"$f":"'[2]5.2 Asset Age Profile'!T52+'[3]5.2 Asset Age Profile'!T52","v":0},{"$f":"'[2]5.2 Asset Age Profile'!U52+'[3]5.2 Asset Age Profile'!U52","v":0},{"$f":"'[2]5.2 Asset Age Profile'!V52+'[3]5.2 Asset Age Profile'!V52","v":0},{"$f":"'[2]5.2 Asset Age Profile'!W52+'[3]5.2 Asset Age Profile'!W52","v":0},{"$f":"'[2]5.2 Asset Age Profile'!X52+'[3]5.2 Asset Age Profile'!X52","v":0},{"$f":"'[2]5.2 Asset Age Profile'!Y52+'[3]5.2 Asset Age Profile'!Y52","v":7},{"$f":"'[2]5.2 Asset Age Profile'!Z52+'[3]5.2 Asset Age Profile'!Z52","v":0},{"$f":"'[2]5.2 Asset Age Profile'!AA52+'[3]5.2 Asset Age Profile'!AA52","v":0},{"$f":"'[2]5.2 Asset Age Profile'!AB52+'[3]5.2 Asset Age Profile'!AB52","v":0},{"$f":"'[2]5.2 Asset Age Profile'!AC52+'[3]5.2 Asset Age Profile'!AC52","v":0},{"$f":"'[2]5.2 Asset Age Profile'!AD52+'[3]5.2 Asset Age Profile'!AD52","v":0},{"$f":"'[2]5.2 Asset Age Profile'!AE52+'[3]5.2 Asset Age Profile'!AE52","v":0},{"$f":"'[2]5.2 Asset Age Profile'!AF52+'[3]5.2 Asset Age Profile'!AF52","v":0},{"$f":"'[2]5.2 Asset Age Profile'!AG52+'[3]5.2 Asset Age Profile'!AG52","v":0},{"$f":"'[2]5.2 Asset Age Profile'!AH52+'[3]5.2 Asset Age Profile'!AH52","v":0},{"$f":"'[2]5.2 Asset Age Profile'!AI52+'[3]5.2 Asset Age Profile'!AI52","v":0},{"$f":"'[2]5.2 Asset Age Profile'!AJ52+'[3]5.2 Asset Age Profile'!AJ52","v":0},{"$f":"'[2]5.2 Asset Age Profile'!AK52+'[3]5.2 Asset Age Profile'!AK52","v":3.04474324539181},{"$f":"'[2]5.2 Asset Age Profile'!AL52+'[3]5.2 Asset Age Profile'!AL52","v":0},{"$f":"'[2]5.2 Asset Age Profile'!AM52+'[3]5.2 Asset Age Profile'!AM52","v":0},{"$f":"'[2]5.2 Asset Age Profile'!AN52+'[3]5.2 Asset Age Profile'!AN52","v":0},{"$f":"'[2]5.2 Asset Age Profile'!AO52+'[3]5.2 Asset Age Profile'!AO52","v":0},{"$f":"'[2]5.2 Asset Age Profile'!AP52+'[3]5.2 Asset Age Profile'!AP52","v":0},{"$f":"'[2]5.2 Asset Age Profile'!AQ52+'[3]5.2 Asset Age Profile'!AQ52","v":0},{"$f":"'[2]5.2 Asset Age Profile'!AR52+'[3]5.2 Asset Age Profile'!AR52","v":0},{"$f":"'[2]5.2 Asset Age Profile'!AS52+'[3]5.2 Asset Age Profile'!AS52","v":0},{"$f":"'[2]5.2 Asset Age Profile'!AT52+'[3]5.2 Asset Age Profile'!AT52","v":0},{"$f":"'[2]5.2 Asset Age Profile'!AU52+'[3]5.2 Asset Age Profile'!AU52","v":0},{"$f":"'[2]5.2 Asset Age Profile'!AV52+'[3]5.2 Asset Age Profile'!AV52","v":2.947124461969957},{"$f":"'[2]5.2 Asset Age Profile'!AW52+'[3]5.2 Asset Age Profile'!AW52","v":0},{"$f":"'[2]5.2 Asset Age Profile'!AX52+'[3]5.2 Asset Age Profile'!AX52","v":0},{"$f":"'[2]5.2 Asset Age Profile'!AY52+'[3]5.2 Asset Age Profile'!AY52","v":0},{"$f":"'[2]5.2 Asset Age Profile'!AZ52+'[3]5.2 Asset Age Profile'!AZ52","v":0},{"$f":"'[2]5.2 Asset Age Profile'!BA52+'[3]5.2 Asset Age Profile'!BA52","v":0},{"$f":"'[2]5.2 Asset Age Profile'!BB52+'[3]5.2 Asset Age Profile'!BB52","v":0},{"$f":"'[2]5.2 Asset Age Profile'!BC52+'[3]5.2 Asset Age Profile'!BC52","v":0},{"$f":"'[2]5.2 Asset Age Profile'!BD52+'[3]5.2 Asset Age Profile'!BD52","v":0},{"$f":"'[2]5.2 Asset Age Profile'!BE52+'[3]5.2 Asset Age Profile'!BE52","v":0},{"$f":"'[2]5.2 Asset Age Profile'!BF52+'[3]5.2 Asset Age Profile'!BF52","v":0},{"$f":"'[2]5.2 Asset Age Profile'!BG52+'[3]5.2 Asset Age Profile'!BG52","v":0},{"$f":"'[2]5.2 Asset Age Profile'!BH52+'[3]5.2 Asset Age Profile'!BH52","v":0},{"$f":"'[2]5.2 Asset Age Profile'!BI52+'[3]5.2 Asset Age Profile'!BI52","v":0},{"$f":"'[2]5.2 Asset Age Profile'!BJ52+'[3]5.2 Asset Age Profile'!BJ52","v":0},{"$f":"'[2]5.2 Asset Age Profile'!BK52+'[3]5.2 Asset Age Profile'!BK52","v":0},{"$f":"'[2]5.2 Asset Age Profile'!BL52+'[3]5.2 Asset Age Profile'!BL52","v":0},{"$f":"'[2]5.2 Asset Age Profile'!BM52+'[3]5.2 Asset Age Profile'!BM52","v":0},{"$f":"'[2]5.2 Asset Age Profile'!BN52+'[3]5.2 Asset Age Profile'!BN52","v":0},{"$f":"'[2]5.2 Asset Age Profile'!BO52+'[3]5.2 Asset Age Profile'!BO52","v":0},{"$f":"'[2]5.2 Asset Age Profile'!BP52+'[3]5.2 Asset Age Profile'!BP52","v":0},{"$f":"'[2]5.2 Asset Age Profile'!BQ52+'[3]5.2 Asset Age Profile'!BQ52","v":0},{"$f":"'[2]5.2 Asset Age Profile'!BR52+'[3]5.2 Asset Age Profile'!BR52","v":0},{"$f":"'[2]5.2 Asset Age Profile'!BS52+'[3]5.2 Asset Age Profile'!BS52","v":0},{"$f":"'[2]5.2 Asset Age Profile'!BT52+'[3]5.2 Asset Age Profile'!BT52","v":0},{"$f":"'[2]5.2 Asset Age Profile'!BU52+'[3]5.2 Asset Age Profile'!BU52","v":0},{"$f":"'[2]5.2 Asset Age Profile'!BV52+'[3]5.2 Asset Age Profile'!BV52","v":0},{"$f":"'[2]5.2 Asset Age Profile'!BW52+'[3]5.2 Asset Age Profile'!BW52","v":0},{"$f":"'[2]5.2 Asset Age Profile'!BX52+'[3]5.2 Asset Age Profile'!BX52","v":0},{"$f":"'[2]5.2 Asset Age Profile'!BY52+'[3]5.2 Asset Age Profile'!BY52","v":0},{"$f":"'[2]5.2 Asset Age Profile'!BZ52+'[3]5.2 Asset Age Profile'!BZ52","v":0},{"$f":"'[2]5.2 Asset Age Profile'!CA52+'[3]5.2 Asset Age Profile'!CA52","v":0},{"$f":"'[2]5.2 Asset Age Profile'!CB52+'[3]5.2 Asset Age Profile'!CB52","v":0},{"$f":"'[2]5.2 Asset Age Profile'!CC52+'[3]5.2 Asset Age Profile'!CC52","v":0},{"$f":"'[2]5.2 Asset Age Profile'!CD52+'[3]5.2 Asset Age Profile'!CD52","v":0},{"$f":"'[2]5.2 Asset Age Profile'!CE52+'[3]5.2 Asset Age Profile'!CE52","v":0},{"$f":"'[2]5.2 Asset Age Profile'!CF52+'[3]5.2 Asset Age Profile'!CF52","v":0},{"$f":"'[2]5.2 Asset Age Profile'!CG52+'[3]5.2 Asset Age Profile'!CG52","v":0},{"$f":"'[2]5.2 Asset Age Profile'!CH52+'[3]5.2 Asset Age Profile'!CH52","v":0},{"$f":"'[2]5.2 Asset Age Profile'!CI52+'[3]5.2 Asset Age Profile'!CI52","v":0},{"$f":"'[2]5.2 Asset Age Profile'!CJ52+'[3]5.2 Asset Age Profile'!CJ52","v":0},{"$f":"'[2]5.2 Asset Age Profile'!CK52+'[3]5.2 Asset Age Profile'!CK52","v":0},{"$f":"'[2]5.2 Asset Age Profile'!CL52+'[3]5.2 Asset Age Profile'!CL52","v":0},{"$f":"'[2]5.2 Asset Age Profile'!CM52+'[3]5.2 Asset Age Profile'!CM52","v":0},{"$f":"'[2]5.2 Asset Age Profile'!CN52+'[3]5.2 Asset Age Profile'!CN52","v":0},{"$f":"'[2]5.2 Asset Age Profile'!CO52+'[3]5.2 Asset Age Profile'!CO52","v":0},{"$f":"'[2]5.2 Asset Age Profile'!CP52+'[3]5.2 Asset Age Profile'!CP52","v":0},{"$f":"'[2]5.2 Asset Age Profile'!CQ52+'[3]5.2 Asset Age Profile'!CQ52","v":0},{"$f":"'[2]5.2 Asset Age Profile'!CR52+'[3]5.2 Asset Age Profile'!CR52","v":0},{"$f":"'[2]5.2 Asset Age Profile'!CS52+'[3]5.2 Asset Age Profile'!CS52","v":0},{"$f":"'[2]5.2 Asset Age Profile'!CT52+'[3]5.2 Asset Age Profile'!CT52","v":0},{"$f":"'[2]5.2 Asset Age Profile'!CU52+'[3]5.2 Asset Age Profile'!CU52","v":0},{"$f":"'[2]5.2 Asset Age Profile'!CV52+'[3]5.2 Asset Age Profile'!CV52","v":0},{"$f":"'[2]5.2 Asset Age Profile'!CW52+'[3]5.2 Asset Age Profile'!CW52","v":0},{"$f":"'[2]5.2 Asset Age Profile'!CX52+'[3]5.2 Asset Age Profile'!CX52","v":0},{"$f":"'[2]5.2 Asset Age Profile'!CY52+'[3]5.2 Asset Age Profile'!CY52","v":0},{"$f":"'[2]5.2 Asset Age Profile'!CZ52+'[3]5.2 Asset Age Profile'!CZ52","v":0},{"$f":"'[2]5.2 Asset Age Profile'!DA52+'[3]5.2 Asset Age Profile'!DA52","v":0},{"$f":"'[2]5.2 Asset Age Profile'!DB52+'[3]5.2 Asset Age Profile'!DB52","v":0},{"$f":"'[2]5.2 Asset Age Profile'!DC52+'[3]5.2 Asset Age Profile'!DC52","v":0},{"$f":"'[2]5.2 Asset Age Profile'!DD52+'[3]5.2 Asset Age Profile'!DD52","v":0},{"$f":"'[2]5.2 Asset Age Profile'!DE52+'[3]5.2 Asset Age Profile'!DE52","v":0},{"$f":"'[2]5.2 Asset Age Profile'!DF52+'[3]5.2 Asset Age Profile'!DF52","v":0},{"$f":"'[2]5.2 Asset Age Profile'!DG52+'[3]5.2 Asset Age Profile'!DG52","v":0},{"$f":"'[2]5.2 Asset Age Profile'!DH52+'[3]5.2 Asset Age Profile'!DH52","v":0},{"$f":"'[2]5.2 Asset Age Profile'!DI52+'[3]5.2 Asset Age Profile'!DI52","v":0},{"$f":"'[2]5.2 Asset Age Profile'!DJ52+'[3]5.2 Asset Age Profile'!DJ52","v":0},{"$f":"'[2]5.2 Asset Age Profile'!DK52+'[3]5.2 Asset Age Profile'!DK52","v":0},{"$f":"'[2]5.2 Asset Age Profile'!DL52+'[3]5.2 Asset Age Profile'!DL52","v":0},{"$f":"'[2]5.2 Asset Age Profile'!DM52+'[3]5.2 Asset Age Profile'!DM52","v":0},{"$f":"'[2]5.2 Asset Age Profile'!DN52+'[3]5.2 Asset Age Profile'!DN52","v":0},{"$f":"'[2]5.2 Asset Age Profile'!DO52+'[3]5.2 Asset Age Profile'!DO52","v":0},{"$f":"'[2]5.2 Asset Age Profile'!DP52+'[3]5.2 Asset Age Profile'!DP52","v":0},{"$f":"'[2]5.2 Asset Age Profile'!DQ52+'[3]5.2 Asset Age Profile'!DQ52","v":0},{"$f":"'[2]5.2 Asset Age Profile'!DR52+'[3]5.2 Asset Age Profile'!DR52","v":0},{"$f":"'[2]5.2 Asset Age Profile'!DS52+'[3]5.2 Asset Age Profile'!DS52","v":0},{"$f":"'[2]5.2 Asset Age Profile'!DT52+'[3]5.2 Asset Age Profile'!DT52","v":0},{"$f":"'[2]5.2 Asset Age Profile'!DU52+'[3]5.2 Asset Age Profile'!DU52","v":0},{"$f":"'[2]5.2 Asset Age Profile'!DV52+'[3]5.2 Asset Age Profile'!DV52","v":0},{"$f":"'[2]5.2 Asset Age Profile'!DW52+'[3]5.2 Asset Age Profile'!DW52","v":0},{"$f":"'[2]5.2 Asset Age Profile'!DX52+'[3]5.2 Asset Age Profile'!DX52","v":0},{"$f":"'[2]5.2 Asset Age Profile'!DY52+'[3]5.2 Asset Age Profile'!DY52","v":0},{"$f":"'[2]5.2 Asset Age Profile'!DZ52+'[3]5.2 Asset Age Profile'!DZ52","v":0},{"$f":"'[2]5.2 Asset Age Profile'!EA52+'[3]5.2 Asset Age Profile'!EA52","v":0},{"$f":"'[2]5.2 Asset Age Profile'!EB52+'[3]5.2 Asset Age Profile'!EB52","v":0},{"$f":"'[2]5.2 Asset Age Profile'!EC52+'[3]5.2 Asset Age Profile'!EC52","v":0},{"$f":"'[2]5.2 Asset Age Profile'!ED52+'[3]5.2 Asset Age Profile'!ED52","v":0},{"$f":"'[2]5.2 Asset Age Profile'!EE52+'[3]5.2 Asset Age Profile'!EE52","v":0},{"$f":"'[2]5.2 Asset Age Profile'!EF52+'[3]5.2 Asset Age Profile'!EF52","v":0},{"$f":"'[2]5.2 Asset Age Profile'!EG52+'[3]5.2 Asset Age Profile'!EG52","v":0},{"$f":"'[2]5.2 Asset Age Profile'!EH52+'[3]5.2 Asset Age Profile'!EH52","v":0},{"$f":"'[2]5.2 Asset Age Profile'!EI52+'[3]5.2 Asset Age Profile'!EI52","v":0},{"$f":"'[2]5.2 Asset Age Profile'!EJ52+'[3]5.2 Asset Age Profile'!EJ52","v":0}]
["ED_ASS521_00043",null,">  132 kV",null,null,null,null,null,null,null,null,null,null,{"$f":"'[2]5.2 Asset Age Profile'!N53+'[3]5.2 Asset Age Profile'!N53","v":0},{"$f":"'[2]5.2 Asset Age Profile'!O53+'[3]5.2 Asset Age Profile'!O53","v":0},{"$f":"'[2]5.2 Asset Age Profile'!P53+'[3]5.2 Asset Age Profile'!P53","v":0},{"$f":"'[2]5.2 Asset Age Profile'!Q53+'[3]5.2 Asset Age Profile'!Q53","v":0},{"$f":"'[2]5.2 Asset Age Profile'!R53+'[3]5.2 Asset Age Profile'!R53","v":0},{"$f":"'[2]5.2 Asset Age Profile'!S53+'[3]5.2 Asset Age Profile'!S53","v":0},{"$f":"'[2]5.2 Asset Age Profile'!T53+'[3]5.2 Asset Age Profile'!T53","v":0},{"$f":"'[2]5.2 Asset Age Profile'!U53+'[3]5.2 Asset Age Profile'!U53","v":0},{"$f":"'[2]5.2 Asset Age Profile'!V53+'[3]5.2 Asset Age Profile'!V53","v":0},{"$f":"'[2]5.2 Asset Age Profile'!W53+'[3]5.2 Asset Age Profile'!W53","v":0},{"$f":"'[2]5.2 Asset Age Profile'!X53+'[3]5.2 Asset Age Profile'!X53","v":0},{"$f":"'[2]5.2 Asset Age Profile'!Y53+'[3]5.2 Asset Age Profile'!Y53","v":0},{"$f":"'[2]5.2 Asset Age Profile'!Z53+'[3]5.2 Asset Age Profile'!Z53","v":0},{"$f":"'[2]5.2 Asset Age Profile'!AA53+'[3]5.2 Asset Age Profile'!AA53","v":0},{"$f":"'[2]5.2 Asset Age Profile'!AB53+'[3]5.2 Asset Age Profile'!AB53","v":0},{"$f":"'[2]5.2 Asset Age Profile'!AC53+'[3]5.2 Asset Age Profile'!AC53","v":0},{"$f":"'[2]5.2 Asset Age Profile'!AD53+'[3]5.2 Asset Age Profile'!AD53","v":0},{"$f":"'[2]5.2 Asset Age Profile'!AE53+'[3]5.2 Asset Age Profile'!AE53","v":0},{"$f":"'[2]5.2 Asset Age Profile'!AF53+'[3]5.2 Asset Age Profile'!AF53","v":0},{"$f":"'[2]5.2 Asset Age Profile'!AG53+'[3]5.2 Asset Age Profile'!AG53","v":0},{"$f":"'[2]5.2 Asset Age Profile'!AH53+'[3]5.2 Asset Age Profile'!AH53","v":0},{"$f":"'[2]5.2 Asset Age Profile'!AI53+'[3]5.2 Asset Age Profile'!AI53","v":0},{"$f":"'[2]5.2 Asset Age Profile'!AJ53+'[3]5.2 Asset Age Profile'!AJ53","v":0},{"$f":"'[2]5.2 Asset Age Profile'!AK53+'[3]5.2 Asset Age Profile'!AK53","v":0},{"$f":"'[2]5.2 Asset Age Profile'!AL53+'[3]5.2 Asset Age Profile'!AL53","v":0},{"$f":"'[2]5.2 Asset Age Profile'!AM53+'[3]5.2 Asset Age Profile'!AM53","v":0},{"$f":"'[2]5.2 Asset Age Profile'!AN53+'[3]5.2 Asset Age Profile'!AN53","v":0},{"$f":"'[2]5.2 Asset Age Profile'!AO53+'[3]5.2 Asset Age Profile'!AO53","v":0},{"$f":"'[2]5.2 Asset Age Profile'!AP53+'[3]5.2 Asset Age Profile'!AP53","v":0},{"$f":"'[2]5.2 Asset Age Profile'!AQ53+'[3]5.2 Asset Age Profile'!AQ53","v":0},{"$f":"'[2]5.2 Asset Age Profile'!AR53+'[3]5.2 Asset Age Profile'!AR53","v":0},{"$f":"'[2]5.2 Asset Age Profile'!AS53+'[3]5.2 Asset Age Profile'!AS53","v":0},{"$f":"'[2]5.2 Asset Age Profile'!AT53+'[3]5.2 Asset Age Profile'!AT53","v":0},{"$f":"'[2]5.2 Asset Age Profile'!AU53+'[3]5.2 Asset Age Profile'!AU53","v":0},{"$f":"'[2]5.2 Asset Age Profile'!AV53+'[3]5.2 Asset Age Profile'!AV53","v":0},{"$f":"'[2]5.2 Asset Age Profile'!AW53+'[3]5.2 Asset Age Profile'!AW53","v":0},{"$f":"'[2]5.2 Asset Age Profile'!AX53+'[3]5.2 Asset Age Profile'!AX53","v":0},{"$f":"'[2]5.2 Asset Age Profile'!AY53+'[3]5.2 Asset Age Profile'!AY53","v":0},{"$f":"'[2]5.2 Asset Age Profile'!AZ53+'[3]5.2 Asset Age Profile'!AZ53","v":0},{"$f":"'[2]5.2 Asset Age Profile'!BA53+'[3]5.2 Asset Age Profile'!BA53","v":0},{"$f":"'[2]5.2 Asset Age Profile'!BB53+'[3]5.2 Asset Age Profile'!BB53","v":0},{"$f":"'[2]5.2 Asset Age Profile'!BC53+'[3]5.2 Asset Age Profile'!BC53","v":0},{"$f":"'[2]5.2 Asset Age Profile'!BD53+'[3]5.2 Asset Age Profile'!BD53","v":0},{"$f":"'[2]5.2 Asset Age Profile'!BE53+'[3]5.2 Asset Age Profile'!BE53","v":0},{"$f":"'[2]5.2 Asset Age Profile'!BF53+'[3]5.2 Asset Age Profile'!BF53","v":0},{"$f":"'[2]5.2 Asset Age Profile'!BG53+'[3]5.2 Asset Age Profile'!BG53","v":0},{"$f":"'[2]5.2 Asset Age Profile'!BH53+'[3]5.2 Asset Age Profile'!BH53","v":0},{"$f":"'[2]5.2 Asset Age Profile'!BI53+'[3]5.2 Asset Age Profile'!BI53","v":0},{"$f":"'[2]5.2 Asset Age Profile'!BJ53+'[3]5.2 Asset Age Profile'!BJ53","v":0},{"$f":"'[2]5.2 Asset Age Profile'!BK53+'[3]5.2 Asset Age Profile'!BK53","v":0},{"$f":"'[2]5.2 Asset Age Profile'!BL53+'[3]5.2 Asset Age Profile'!BL53","v":0},{"$f":"'[2]5.2 Asset Age Profile'!BM53+'[3]5.2 Asset Age Profile'!BM53","v":0},{"$f":"'[2]5.2 Asset Age Profile'!BN53+'[3]5.2 Asset Age Profile'!BN53","v":0},{"$f":"'[2]5.2 Asset Age Profile'!BO53+'[3]5.2 Asset Age Profile'!BO53","v":0},{"$f":"'[2]5.2 Asset Age Profile'!BP53+'[3]5.2 Asset Age Profile'!BP53","v":0},{"$f":"'[2]5.2 Asset Age Profile'!BQ53+'[3]5.2 Asset Age Profile'!BQ53","v":0},{"$f":"'[2]5.2 Asset Age Profile'!BR53+'[3]5.2 Asset Age Profile'!BR53","v":0},{"$f":"'[2]5.2 Asset Age Profile'!BS53+'[3]5.2 Asset Age Profile'!BS53","v":0},{"$f":"'[2]5.2 Asset Age Profile'!BT53+'[3]5.2 Asset Age Profile'!BT53","v":0},{"$f":"'[2]5.2 Asset Age Profile'!BU53+'[3]5.2 Asset Age Profile'!BU53","v":0},{"$f":"'[2]5.2 Asset Age Profile'!BV53+'[3]5.2 Asset Age Profile'!BV53","v":0},{"$f":"'[2]5.2 Asset Age Profile'!BW53+'[3]5.2 Asset Age Profile'!BW53","v":0},{"$f":"'[2]5.2 Asset Age Profile'!BX53+'[3]5.2 Asset Age Profile'!BX53","v":0},{"$f":"'[2]5.2 Asset Age Profile'!BY53+'[3]5.2 Asset Age Profile'!BY53","v":0},{"$f":"'[2]5.2 Asset Age Profile'!BZ53+'[3]5.2 Asset Age Profile'!BZ53","v":0},{"$f":"'[2]5.2 Asset Age Profile'!CA53+'[3]5.2 Asset Age Profile'!CA53","v":0},{"$f":"'[2]5.2 Asset Age Profile'!CB53+'[3]5.2 Asset Age Profile'!CB53","v":0},{"$f":"'[2]5.2 Asset Age Profile'!CC53+'[3]5.2 Asset Age Profile'!CC53","v":0},{"$f":"'[2]5.2 Asset Age Profile'!CD53+'[3]5.2 Asset Age Profile'!CD53","v":0},{"$f":"'[2]5.2 Asset Age Profile'!CE53+'[3]5.2 Asset Age Profile'!CE53","v":0},{"$f":"'[2]5.2 Asset Age Profile'!CF53+'[3]5.2 Asset Age Profile'!CF53","v":0},{"$f":"'[2]5.2 Asset Age Profile'!CG53+'[3]5.2 Asset Age Profile'!CG53","v":0},{"$f":"'[2]5.2 Asset Age Profile'!CH53+'[3]5.2 Asset Age Profile'!CH53","v":0},{"$f":"'[2]5.2 Asset Age Profile'!CI53+'[3]5.2 Asset Age Profile'!CI53","v":0},{"$f":"'[2]5.2 Asset Age Profile'!CJ53+'[3]5.2 Asset Age Profile'!CJ53","v":0},{"$f":"'[2]5.2 Asset Age Profile'!CK53+'[3]5.2 Asset Age Profile'!CK53","v":0},{"$f":"'[2]5.2 Asset Age Profile'!CL53+'[3]5.2 Asset Age Profile'!CL53","v":0},{"$f":"'[2]5.2 Asset Age Profile'!CM53+'[3]5.2 Asset Age Profile'!CM53","v":0},{"$f":"'[2]5.2 Asset Age Profile'!CN53+'[3]5.2 Asset Age Profile'!CN53","v":0},{"$f":"'[2]5.2 Asset Age Profile'!CO53+'[3]5.2 Asset Age Profile'!CO53","v":0},{"$f":"'[2]5.2 Asset Age Profile'!CP53+'[3]5.2 Asset Age Profile'!CP53","v":0},{"$f":"'[2]5.2 Asset Age Profile'!CQ53+'[3]5.2 Asset Age Profile'!CQ53","v":0},{"$f":"'[2]5.2 Asset Age Profile'!CR53+'[3]5.2 Asset Age Profile'!CR53","v":0},{"$f":"'[2]5.2 Asset Age Profile'!CS53+'[3]5.2 Asset Age Profile'!CS53","v":0},{"$f":"'[2]5.2 Asset Age Profile'!CT53+'[3]5.2 Asset Age Profile'!CT53","v":0},{"$f":"'[2]5.2 Asset Age Profile'!CU53+'[3]5.2 Asset Age Profile'!CU53","v":0},{"$f":"'[2]5.2 Asset Age Profile'!CV53+'[3]5.2 Asset Age Profile'!CV53","v":0},{"$f":"'[2]5.2 Asset Age Profile'!CW53+'[3]5.2 Asset Age Profile'!CW53","v":0},{"$f":"'[2]5.2 Asset Age Profile'!CX53+'[3]5.2 Asset Age Profile'!CX53","v":0},{"$f":"'[2]5.2 Asset Age Profile'!CY53+'[3]5.2 Asset Age Profile'!CY53","v":0},{"$f":"'[2]5.2 Asset Age Profile'!CZ53+'[3]5.2 Asset Age Profile'!CZ53","v":0},{"$f":"'[2]5.2 Asset Age Profile'!DA53+'[3]5.2 Asset Age Profile'!DA53","v":0},{"$f":"'[2]5.2 Asset Age Profile'!DB53+'[3]5.2 Asset Age Profile'!DB53","v":0},{"$f":"'[2]5.2 Asset Age Profile'!DC53+'[3]5.2 Asset Age Profile'!DC53","v":0},{"$f":"'[2]5.2 Asset Age Profile'!DD53+'[3]5.2 Asset Age Profile'!DD53","v":0},{"$f":"'[2]5.2 Asset Age Profile'!DE53+'[3]5.2 Asset Age Profile'!DE53","v":0},{"$f":"'[2]5.2 Asset Age Profile'!DF53+'[3]5.2 Asset Age Profile'!DF53","v":0},{"$f":"'[2]5.2 Asset Age Profile'!DG53+'[3]5.2 Asset Age Profile'!DG53","v":0},{"$f":"'[2]5.2 Asset Age Profile'!DH53+'[3]5.2 Asset Age Profile'!DH53","v":0},{"$f":"'[2]5.2 Asset Age Profile'!DI53+'[3]5.2 Asset Age Profile'!DI53","v":0},{"$f":"'[2]5.2 Asset Age Profile'!DJ53+'[3]5.2 Asset Age Profile'!DJ53","v":0},{"$f":"'[2]5.2 Asset Age Profile'!DK53+'[3]5.2 Asset Age Profile'!DK53","v":0},{"$f":"'[2]5.2 Asset Age Profile'!DL53+'[3]5.2 Asset Age Profile'!DL53","v":0},{"$f":"'[2]5.2 Asset Age Profile'!DM53+'[3]5.2 Asset Age Profile'!DM53","v":0},{"$f":"'[2]5.2 Asset Age Profile'!DN53+'[3]5.2 Asset Age Profile'!DN53","v":0},{"$f":"'[2]5.2 Asset Age Profile'!DO53+'[3]5.2 Asset Age Profile'!DO53","v":0},{"$f":"'[2]5.2 Asset Age Profile'!DP53+'[3]5.2 Asset Age Profile'!DP53","v":0},{"$f":"'[2]5.2 Asset Age Profile'!DQ53+'[3]5.2 Asset Age Profile'!DQ53","v":0},{"$f":"'[2]5.2 Asset Age Profile'!DR53+'[3]5.2 Asset Age Profile'!DR53","v":0},{"$f":"'[2]5.2 Asset Age Profile'!DS53+'[3]5.2 Asset Age Profile'!DS53","v":0},{"$f":"'[2]5.2 Asset Age Profile'!DT53+'[3]5.2 Asset Age Profile'!DT53","v":0},{"$f":"'[2]5.2 Asset Age Profile'!DU53+'[3]5.2 Asset Age Profile'!DU53","v":0},{"$f":"'[2]5.2 Asset Age Profile'!DV53+'[3]5.2 Asset Age Profile'!DV53","v":0},{"$f":"'[2]5.2 Asset Age Profile'!DW53+'[3]5.2 Asset Age Profile'!DW53","v":0},{"$f":"'[2]5.2 Asset Age Profile'!DX53+'[3]5.2 Asset Age Profile'!DX53","v":0},{"$f":"'[2]5.2 Asset Age Profile'!DY53+'[3]5.2 Asset Age Profile'!DY53","v":0},{"$f":"'[2]5.2 Asset Age Profile'!DZ53+'[3]5.2 Asset Age Profile'!DZ53","v":0},{"$f":"'[2]5.2 Asset Age Profile'!EA53+'[3]5.2 Asset Age Profile'!EA53","v":0},{"$f":"'[2]5.2 Asset Age Profile'!EB53+'[3]5.2 Asset Age Profile'!EB53","v":0},{"$f":"'[2]5.2 Asset Age Profile'!EC53+'[3]5.2 Asset Age Profile'!EC53","v":0},{"$f":"'[2]5.2 Asset Age Profile'!ED53+'[3]5.2 Asset Age Profile'!ED53","v":0},{"$f":"'[2]5.2 Asset Age Profile'!EE53+'[3]5.2 Asset Age Profile'!EE53","v":0},{"$f":"'[2]5.2 Asset Age Profile'!EF53+'[3]5.2 Asset Age Profile'!EF53","v":0},{"$f":"'[2]5.2 Asset Age Profile'!EG53+'[3]5.2 Asset Age Profile'!EG53","v":0},{"$f":"'[2]5.2 Asset Age Profile'!EH53+'[3]5.2 Asset Age Profile'!EH53","v":0},{"$f":"'[2]5.2 Asset Age Profile'!EI53+'[3]5.2 Asset Age Profile'!EI53","v":0},{"$f":"'[2]5.2 Asset Age Profile'!EJ53+'[3]5.2 Asset Age Profile'!EJ53","v":0}]
["ED_ASS521_00044",null,"Other",null,"DNSP NAME","REPEX","SERVICE LINES","Other","DESCRIPTOR METRIC","MEAN ECONOMIC LIFE","YEARS","NUMBER",null,{"$f":"'[2]5.2 Asset Age Profile'!N54+'[3]5.2 Asset Age Profile'!N54","v":0},{"$f":"'[2]5.2 Asset Age Profile'!O54+'[3]5.2 Asset Age Profile'!O54","v":0},{"$f":"'[2]5.2 Asset Age Profile'!P54+'[3]5.2 Asset Age Profile'!P54","v":0},{"$f":"'[2]5.2 Asset Age Profile'!Q54+'[3]5.2 Asset Age Profile'!Q54","v":0},{"$f":"'[2]5.2 Asset Age Profile'!R54+'[3]5.2 Asset Age Profile'!R54","v":0},{"$f":"'[2]5.2 Asset Age Profile'!S54+'[3]5.2 Asset Age Profile'!S54","v":0},{"$f":"'[2]5.2 Asset Age Profile'!T54+'[3]5.2 Asset Age Profile'!T54","v":0},{"$f":"'[2]5.2 Asset Age Profile'!U54+'[3]5.2 Asset Age Profile'!U54","v":0},{"$f":"'[2]5.2 Asset Age Profile'!V54+'[3]5.2 Asset Age Profile'!V54","v":0},{"$f":"'[2]5.2 Asset Age Profile'!W54+'[3]5.2 Asset Age Profile'!W54","v":0},{"$f":"'[2]5.2 Asset Age Profile'!X54+'[3]5.2 Asset Age Profile'!X54","v":0},{"$f":"'[2]5.2 Asset Age Profile'!Y54+'[3]5.2 Asset Age Profile'!Y54","v":0},{"$f":"'[2]5.2 Asset Age Profile'!Z54+'[3]5.2 Asset Age Profile'!Z54","v":0},{"$f":"'[2]5.2 Asset Age Profile'!AA54+'[3]5.2 Asset Age Profile'!AA54","v":0},{"$f":"'[2]5.2 Asset Age Profile'!AB54+'[3]5.2 Asset Age Profile'!AB54","v":0},{"$f":"'[2]5.2 Asset Age Profile'!AC54+'[3]5.2 Asset Age Profile'!AC54","v":0},{"$f":"'[2]5.2 Asset Age Profile'!AD54+'[3]5.2 Asset Age Profile'!AD54","v":0},{"$f":"'[2]5.2 Asset Age Profile'!AE54+'[3]5.2 Asset Age Profile'!AE54","v":0},{"$f":"'[2]5.2 Asset Age Profile'!AF54+'[3]5.2 Asset Age Profile'!AF54","v":0},{"$f":"'[2]5.2 Asset Age Profile'!AG54+'[3]5.2 Asset Age Profile'!AG54","v":0},{"$f":"'[2]5.2 Asset Age Profile'!AH54+'[3]5.2 Asset Age Profile'!AH54","v":0},{"$f":"'[2]5.2 Asset Age Profile'!AI54+'[3]5.2 Asset Age Profile'!AI54","v":0},{"$f":"'[2]5.2 Asset Age Profile'!AJ54+'[3]5.2 Asset Age Profile'!AJ54","v":0},{"$f":"'[2]5.2 Asset Age Profile'!AK54+'[3]5.2 Asset Age Profile'!AK54","v":0},{"$f":"'[2]5.2 Asset Age Profile'!AL54+'[3]5.2 Asset Age Profile'!AL54","v":0},{"$f":"'[2]5.2 Asset Age Profile'!AM54+'[3]5.2 Asset Age Profile'!AM54","v":0},{"$f":"'[2]5.2 Asset Age Profile'!AN54+'[3]5.2 Asset Age Profile'!AN54","v":0},{"$f":"'[2]5.2 Asset Age Profile'!AO54+'[3]5.2 Asset Age Profile'!AO54","v":0},{"$f":"'[2]5.2 Asset Age Profile'!AP54+'[3]5.2 Asset Age Profile'!AP54","v":0},{"$f":"'[2]5.2 Asset Age Profile'!AQ54+'[3]5.2 Asset Age Profile'!AQ54","v":0},{"$f":"'[2]5.2 Asset Age Profile'!AR54+'[3]5.2 Asset Age Profile'!AR54","v":0},{"$f":"'[2]5.2 Asset Age Profile'!AS54+'[3]5.2 Asset Age Profile'!AS54","v":0},{"$f":"'[2]5.2 Asset Age Profile'!AT54+'[3]5.2 Asset Age Profile'!AT54","v":0},{"$f":"'[2]5.2 Asset Age Profile'!AU54+'[3]5.2 Asset Age Profile'!AU54","v":0},{"$f":"'[2]5.2 Asset Age Profile'!AV54+'[3]5.2 Asset Age Profile'!AV54","v":0},{"$f":"'[2]5.2 Asset Age Profile'!AW54+'[3]5.2 Asset Age Profile'!AW54","v":0},{"$f":"'[2]5.2 Asset Age Profile'!AX54+'[3]5.2 Asset Age Profile'!AX54","v":0},{"$f":"'[2]5.2 Asset Age Profile'!AY54+'[3]5.2 Asset Age Profile'!AY54","v":0},{"$f":"'[2]5.2 Asset Age Profile'!AZ54+'[3]5.2 Asset Age Profile'!AZ54","v":0},{"$f":"'[2]5.2 Asset Age Profile'!BA54+'[3]5.2 Asset Age Profile'!BA54","v":0},{"$f":"'[2]5.2 Asset Age Profile'!BB54+'[3]5.2 Asset Age Profile'!BB54","v":0},{"$f":"'[2]5.2 Asset Age Profile'!BC54+'[3]5.2 Asset Age Profile'!BC54","v":0},{"$f":"'[2]5.2 Asset Age Profile'!BD54+'[3]5.2 Asset Age Profile'!BD54","v":0},{"$f":"'[2]5.2 Asset Age Profile'!BE54+'[3]5.2 Asset Age Profile'!BE54","v":0},{"$f":"'[2]5.2 Asset Age Profile'!BF54+'[3]5.2 Asset Age Profile'!BF54","v":0},{"$f":"'[2]5.2 Asset Age Profile'!BG54+'[3]5.2 Asset Age Profile'!BG54","v":0},{"$f":"'[2]5.2 Asset Age Profile'!BH54+'[3]5.2 Asset Age Profile'!BH54","v":0},{"$f":"'[2]5.2 Asset Age Profile'!BI54+'[3]5.2 Asset Age Profile'!BI54","v":0},{"$f":"'[2]5.2 Asset Age Profile'!BJ54+'[3]5.2 Asset Age Profile'!BJ54","v":0},{"$f":"'[2]5.2 Asset Age Profile'!BK54+'[3]5.2 Asset Age Profile'!BK54","v":0},{"$f":"'[2]5.2 Asset Age Profile'!BL54+'[3]5.2 Asset Age Profile'!BL54","v":0},{"$f":"'[2]5.2 Asset Age Profile'!BM54+'[3]5.2 Asset Age Profile'!BM54","v":0},{"$f":"'[2]5.2 Asset Age Profile'!BN54+'[3]5.2 Asset Age Profile'!BN54","v":0},{"$f":"'[2]5.2 Asset Age Profile'!BO54+'[3]5.2 Asset Age Profile'!BO54","v":0},{"$f":"'[2]5.2 Asset Age Profile'!BP54+'[3]5.2 Asset Age Profile'!BP54","v":0},{"$f":"'[2]5.2 Asset Age Profile'!BQ54+'[3]5.2 Asset Age Profile'!BQ54","v":0},{"$f":"'[2]5.2 Asset Age Profile'!BR54+'[3]5.2 Asset Age Profile'!BR54","v":0},{"$f":"'[2]5.2 Asset Age Profile'!BS54+'[3]5.2 Asset Age Profile'!BS54","v":0},{"$f":"'[2]5.2 Asset Age Profile'!BT54+'[3]5.2 Asset Age Profile'!BT54","v":0},{"$f":"'[2]5.2 Asset Age Profile'!BU54+'[3]5.2 Asset Age Profile'!BU54","v":0},{"$f":"'[2]5.2 Asset Age Profile'!BV54+'[3]5.2 Asset Age Profile'!BV54","v":0},{"$f":"'[2]5.2 Asset Age Profile'!BW54+'[3]5.2 Asset Age Profile'!BW54","v":0},{"$f":"'[2]5.2 Asset Age Profile'!BX54+'[3]5.2 Asset Age Profile'!BX54","v":0},{"$f":"'[2]5.2 Asset Age Profile'!BY54+'[3]5.2 Asset Age Profile'!BY54","v":0},{"$f":"'[2]5.2 Asset Age Profile'!BZ54+'[3]5.2 Asset Age Profile'!BZ54","v":0},{"$f":"'[2]5.2 Asset Age Profile'!CA54+'[3]5.2 Asset Age Profile'!CA54","v":0},{"$f":"'[2]5.2 Asset Age Profile'!CB54+'[3]5.2 Asset Age Profile'!CB54","v":0},{"$f":"'[2]5.2 Asset Age Profile'!CC54+'[3]5.2 Asset Age Profile'!CC54","v":0},{"$f":"'[2]5.2 Asset Age Profile'!CD54+'[3]5.2 Asset Age Profile'!CD54","v":0},{"$f":"'[2]5.2 Asset Age Profile'!CE54+'[3]5.2 Asset Age Profile'!CE54","v":0},{"$f":"'[2]5.2 Asset Age Profile'!CF54+'[3]5.2 Asset Age Profile'!CF54","v":0},{"$f":"'[2]5.2 Asset Age Profile'!CG54+'[3]5.2 Asset Age Profile'!CG54","v":0},{"$f":"'[2]5.2 Asset Age Profile'!CH54+'[3]5.2 Asset Age Profile'!CH54","v":0},{"$f":"'[2]5.2 Asset Age Profile'!CI54+'[3]5.2 Asset Age Profile'!CI54","v":0},{"$f":"'[2]5.2 Asset Age Profile'!CJ54+'[3]5.2 Asset Age Profile'!CJ54","v":0},{"$f":"'[2]5.2 Asset Age Profile'!CK54+'[3]5.2 Asset Age Profile'!CK54","v":0},{"$f":"'[2]5.2 Asset Age Profile'!CL54+'[3]5.2 Asset Age Profile'!CL54","v":0},{"$f":"'[2]5.2 Asset Age Profile'!CM54+'[3]5.2 Asset Age Profile'!CM54","v":0},{"$f":"'[2]5.2 Asset Age Profile'!CN54+'[3]5.2 Asset Age Profile'!CN54","v":0},{"$f":"'[2]5.2 Asset Age Profile'!CO54+'[3]5.2 Asset Age Profile'!CO54","v":0},{"$f":"'[2]5.2 Asset Age Profile'!CP54+'[3]5.2 Asset Age Profile'!CP54","v":0},{"$f":"'[2]5.2 Asset Age Profile'!CQ54+'[3]5.2 Asset Age Profile'!CQ54","v":0},{"$f":"'[2]5.2 Asset Age Profile'!CR54+'[3]5.2 Asset Age Profile'!CR54","v":0},{"$f":"'[2]5.2 Asset Age Profile'!CS54+'[3]5.2 Asset Age Profile'!CS54","v":0},{"$f":"'[2]5.2 Asset Age Profile'!CT54+'[3]5.2 Asset Age Profile'!CT54","v":0},{"$f":"'[2]5.2 Asset Age Profile'!CU54+'[3]5.2 Asset Age Profile'!CU54","v":0},{"$f":"'[2]5.2 Asset Age Profile'!CV54+'[3]5.2 Asset Age Profile'!CV54","v":0},{"$f":"'[2]5.2 Asset Age Profile'!CW54+'[3]5.2 Asset Age Profile'!CW54","v":0},{"$f":"'[2]5.2 Asset Age Profile'!CX54+'[3]5.2 Asset Age Profile'!CX54","v":0},{"$f":"'[2]5.2 Asset Age Profile'!CY54+'[3]5.2 Asset Age Profile'!CY54","v":0},{"$f":"'[2]5.2 Asset Age Profile'!CZ54+'[3]5.2 Asset Age Profile'!CZ54","v":0},{"$f":"'[2]5.2 Asset Age Profile'!DA54+'[3]5.2 Asset Age Profile'!DA54","v":0},{"$f":"'[2]5.2 Asset Age Profile'!DB54+'[3]5.2 Asset Age Profile'!DB54","v":0},{"$f":"'[2]5.2 Asset Age Profile'!DC54+'[3]5.2 Asset Age Profile'!DC54","v":0},{"$f":"'[2]5.2 Asset Age Profile'!DD54+'[3]5.2 Asset Age Profile'!DD54","v":0},{"$f":"'[2]5.2 Asset Age Profile'!DE54+'[3]5.2 Asset Age Profile'!DE54","v":0},{"$f":"'[2]5.2 Asset Age Profile'!DF54+'[3]5.2 Asset Age Profile'!DF54","v":0},{"$f":"'[2]5.2 Asset Age Profile'!DG54+'[3]5.2 Asset Age Profile'!DG54","v":0},{"$f":"'[2]5.2 Asset Age Profile'!DH54+'[3]5.2 Asset Age Profile'!DH54","v":0},{"$f":"'[2]5.2 Asset Age Profile'!DI54+'[3]5.2 Asset Age Profile'!DI54","v":0},{"$f":"'[2]5.2 Asset Age Profile'!DJ54+'[3]5.2 Asset Age Profile'!DJ54","v":0},{"$f":"'[2]5.2 Asset Age Profile'!DK54+'[3]5.2 Asset Age Profile'!DK54","v":0},{"$f":"'[2]5.2 Asset Age Profile'!DL54+'[3]5.2 Asset Age Profile'!DL54","v":0},{"$f":"'[2]5.2 Asset Age Profile'!DM54+'[3]5.2 Asset Age Profile'!DM54","v":0},{"$f":"'[2]5.2 Asset Age Profile'!DN54+'[3]5.2 Asset Age Profile'!DN54","v":0},{"$f":"'[2]5.2 Asset Age Profile'!DO54+'[3]5.2 Asset Age Profile'!DO54","v":0},{"$f":"'[2]5.2 Asset Age Profile'!DP54+'[3]5.2 Asset Age Profile'!DP54","v":0},{"$f":"'[2]5.2 Asset Age Profile'!DQ54+'[3]5.2 Asset Age Profile'!DQ54","v":0},{"$f":"'[2]5.2 Asset Age Profile'!DR54+'[3]5.2 Asset Age Profile'!DR54","v":0},{"$f":"'[2]5.2 Asset Age Profile'!DS54+'[3]5.2 Asset Age Profile'!DS54","v":0},{"$f":"'[2]5.2 Asset Age Profile'!DT54+'[3]5.2 Asset Age Profile'!DT54","v":0},{"$f":"'[2]5.2 Asset Age Profile'!DU54+'[3]5.2 Asset Age Profile'!DU54","v":0},{"$f":"'[2]5.2 Asset Age Profile'!DV54+'[3]5.2 Asset Age Profile'!DV54","v":0},{"$f":"'[2]5.2 Asset Age Profile'!DW54+'[3]5.2 Asset Age Profile'!DW54","v":0},{"$f":"'[2]5.2 Asset Age Profile'!DX54+'[3]5.2 Asset Age Profile'!DX54","v":0},{"$f":"'[2]5.2 Asset Age Profile'!DY54+'[3]5.2 Asset Age Profile'!DY54","v":0},{"$f":"'[2]5.2 Asset Age Profile'!DZ54+'[3]5.2 Asset Age Profile'!DZ54","v":0},{"$f":"'[2]5.2 Asset Age Profile'!EA54+'[3]5.2 Asset Age Profile'!EA54","v":0},{"$f":"'[2]5.2 Asset Age Profile'!EB54+'[3]5.2 Asset Age Profile'!EB54","v":0},{"$f":"'[2]5.2 Asset Age Profile'!EC54+'[3]5.2 Asset Age Profile'!EC54","v":0},{"$f":"'[2]5.2 Asset Age Profile'!ED54+'[3]5.2 Asset Age Profile'!ED54","v":0},{"$f":"'[2]5.2 Asset Age Profile'!EE54+'[3]5.2 Asset Age Profile'!EE54","v":0},{"$f":"'[2]5.2 Asset Age Profile'!EF54+'[3]5.2 Asset Age Profile'!EF54","v":0},{"$f":"'[2]5.2 Asset Age Profile'!EG54+'[3]5.2 Asset Age Profile'!EG54","v":0},{"$f":"'[2]5.2 Asset Age Profile'!EH54+'[3]5.2 Asset Age Profile'!EH54","v":0},{"$f":"'[2]5.2 Asset Age Profile'!EI54+'[3]5.2 Asset Age Profile'!EI54","v":0},{"$f":"'[2]5.2 Asset Age Profile'!EJ54+'[3]5.2 Asset Age Profile'!EJ54","v":0}]
["ED_ASS521_00045","SERVICE LINES BY: \nCONNECTION VOLTAGE; CUSTOMER TYPE; CONNECTION COMPLEXITY ","˂ = 11 kV ; Residential ; Simple Type",null,"DNSP NAME","REPEX","SERVICE LINES","˂ = 11 kV ; Residential ; Simple Type","DESCRIPTOR METRIC","MEAN ECONOMIC LIFE","YEARS","NUMBER",null,{"$f":"'[2]5.2 Asset Age Profile'!N55+'[3]5.2 Asset Age Profile'!N55","v":{"$error":"#VALUE!"}},{"$f":"'[2]5.2 Asset Age Profile'!O55+'[3]5.2 Asset Age Profile'!O55","v":0},{"$f":"'[2]5.2 Asset Age Profile'!P55+'[3]5.2 Asset Age Profile'!P55","v":0},{"$f":"'[2]5.2 Asset Age Profile'!Q55+'[3]5.2 Asset Age Profile'!Q55","v":0},{"$f":"'[2]5.2 Asset Age Profile'!R55+'[3]5.2 Asset Age Profile'!R55","v":0},{"$f":"'[2]5.2 Asset Age Profile'!S55+'[3]5.2 Asset Age Profile'!S55","v":0},{"$f":"'[2]5.2 Asset Age Profile'!T55+'[3]5.2 Asset Age Profile'!T55","v":0},{"$f":"'[2]5.2 Asset Age Profile'!U55+'[3]5.2 Asset Age Profile'!U55","v":0},{"$f":"'[2]5.2 Asset Age Profile'!V55+'[3]5.2 Asset Age Profile'!V55","v":0},{"$f":"'[2]5.2 Asset Age Profile'!W55+'[3]5.2 Asset Age Profile'!W55","v":0},{"$f":"'[2]5.2 Asset Age Profile'!X55+'[3]5.2 Asset Age Profile'!X55","v":0},{"$f":"'[2]5.2 Asset Age Profile'!Y55+'[3]5.2 Asset Age Profile'!Y55","v":42163},{"$f":"'[2]5.2 Asset Age Profile'!Z55+'[3]5.2 Asset Age Profile'!Z55","v":0},{"$f":"'[2]5.2 Asset Age Profile'!AA55+'[3]5.2 Asset Age Profile'!AA55","v":0},{"$f":"'[2]5.2 Asset Age Profile'!AB55+'[3]5.2 Asset Age Profile'!AB55","v":0},{"$f":"'[2]5.2 Asset Age Profile'!AC55+'[3]5.2 Asset Age Profile'!AC55","v":0},{"$f":"'[2]5.2 Asset Age Profile'!AD55+'[3]5.2 Asset Age Profile'!AD55","v":0},{"$f":"'[2]5.2 Asset Age Profile'!AE55+'[3]5.2 Asset Age Profile'!AE55","v":0},{"$f":"'[2]5.2 Asset Age Profile'!AF55+'[3]5.2 Asset Age Profile'!AF55","v":0},{"$f":"'[2]5.2 Asset Age Profile'!AG55+'[3]5.2 Asset Age Profile'!AG55","v":0},{"$f":"'[2]5.2 Asset Age Profile'!AH55+'[3]5.2 Asset Age Profile'!AH55","v":0},{"$f":"'[2]5.2 Asset Age Profile'!AI55+'[3]5.2 Asset Age Profile'!AI55","v":0},{"$f":"'[2]5.2 Asset Age Profile'!AJ55+'[3]5.2 Asset Age Profile'!AJ55","v":3446},{"$f":"'[2]5.2 Asset Age Profile'!AK55+'[3]5.2 Asset Age Profile'!AK55","v":3118},{"$f":"'[2]5.2 Asset Age Profile'!AL55+'[3]5.2 Asset Age Profile'!AL55","v":2624},{"$f":"'[2]5.2 Asset Age Profile'!AM55+'[3]5.2 Asset Age Profile'!AM55","v":4645},{"$f":"'[2]5.2 Asset Age Profile'!AN55+'[3]5.2 Asset Age Profile'!AN55","v":4071},{"$f":"'[2]5.2 Asset Age Profile'!AO55+'[3]5.2 Asset Age Profile'!AO55","v":4972},{"$f":"'[2]5.2 Asset Age Profile'!AP55+'[3]5.2 Asset Age Profile'!AP55","v":3809},{"$f":"'[2]5.2 Asset Age Profile'!AQ55+'[3]5.2 Asset Age Profile'!AQ55","v":3211},{"$f":"'[2]5.2 Asset Age Profile'!AR55+'[3]5.2 Asset Age Profile'!AR55","v":1564},{"$f":"'[2]5.2 Asset Age Profile'!AS55+'[3]5.2 Asset Age Profile'!AS55","v":1785},{"$f":"'[2]5.2 Asset Age Profile'!AT55+'[3]5.2 Asset Age Profile'!AT55","v":2421},{"$f":"'[2]5.2 Asset Age Profile'!AU55+'[3]5.2 Asset Age Profile'!AU55","v":1545},{"$f":"'[2]5.2 Asset Age Profile'!AV55+'[3]5.2 Asset Age Profile'!AV55","v":1846},{"$f":"'[2]5.2 Asset Age Profile'!AW55+'[3]5.2 Asset Age Profile'!AW55","v":1022},{"$f":"'[2]5.2 Asset Age Profile'!AX55+'[3]5.2 Asset Age Profile'!AX55","v":2368},{"$f":"'[2]5.2 Asset Age Profile'!AY55+'[3]5.2 Asset Age Profile'!AY55","v":491},{"$f":"'[2]5.2 Asset Age Profile'!AZ55+'[3]5.2 Asset Age Profile'!AZ55","v":477},{"$f":"'[2]5.2 Asset Age Profile'!BA55+'[3]5.2 Asset Age Profile'!BA55","v":686},{"$f":"'[2]5.2 Asset Age Profile'!BB55+'[3]5.2 Asset Age Profile'!BB55","v":790},{"$f":"'[2]5.2 Asset Age Profile'!BC55+'[3]5.2 Asset Age Profile'!BC55","v":707},{"$f":"'[2]5.2 Asset Age Profile'!BD55+'[3]5.2 Asset Age Profile'!BD55","v":566},{"$f":"'[2]5.2 Asset Age Profile'!BE55+'[3]5.2 Asset Age Profile'!BE55","v":943},{"$f":"'[2]5.2 Asset Age Profile'!BF55+'[3]5.2 Asset Age Profile'!BF55","v":3088},{"$f":"'[2]5.2 Asset Age Profile'!BG55+'[3]5.2 Asset Age Profile'!BG55","v":6101},{"$f":"'[2]5.2 Asset Age Profile'!BH55+'[3]5.2 Asset Age Profile'!BH55","v":19554},{"$f":"'[2]5.2 Asset Age Profile'!BI55+'[3]5.2 Asset Age Profile'!BI55","v":3203},{"$f":"'[2]5.2 Asset Age Profile'!BJ55+'[3]5.2 Asset Age Profile'!BJ55","v":470},{"$f":"'[2]5.2 Asset Age Profile'!BK55+'[3]5.2 Asset Age Profile'!BK55","v":2},{"$f":"'[2]5.2 Asset Age Profile'!BL55+'[3]5.2 Asset Age Profile'!BL55","v":10193},{"$f":"'[2]5.2 Asset Age Profile'!BM55+'[3]5.2 Asset Age Profile'!BM55","v":3291},{"$f":"'[2]5.2 Asset Age Profile'!BN55+'[3]5.2 Asset Age Profile'!BN55","v":375},{"$f":"'[2]5.2 Asset Age Profile'!BO55+'[3]5.2 Asset Age Profile'!BO55","v":543},{"$f":"'[2]5.2 Asset Age Profile'!BP55+'[3]5.2 Asset Age Profile'!BP55","v":1},{"$f":"'[2]5.2 Asset Age Profile'!BQ55+'[3]5.2 Asset Age Profile'!BQ55","v":2066},{"$f":"'[2]5.2 Asset Age Profile'!BR55+'[3]5.2 Asset Age Profile'!BR55","v":748},{"$f":"'[2]5.2 Asset Age Profile'!BS55+'[3]5.2 Asset Age Profile'!BS55","v":1114},{"$f":"'[2]5.2 Asset Age Profile'!BT55+'[3]5.2 Asset Age Profile'!BT55","v":844},{"$f":"'[2]5.2 Asset Age Profile'!BU55+'[3]5.2 Asset Age Profile'!BU55","v":768},{"$f":"'[2]5.2 Asset Age Profile'!BV55+'[3]5.2 Asset Age Profile'!BV55","v":0},{"$f":"'[2]5.2 Asset Age Profile'!BW55+'[3]5.2 Asset Age Profile'!BW55","v":910},{"$f":"'[2]5.2 Asset Age Profile'!BX55+'[3]5.2 Asset Age Profile'!BX55","v":13959},{"$f":"'[2]5.2 Asset Age Profile'!BY55+'[3]5.2 Asset Age Profile'!BY55","v":8600},{"$f":"'[2]5.2 Asset Age Profile'!BZ55+'[3]5.2 Asset Age Profile'!BZ55","v":7411},{"$f":"'[2]5.2 Asset Age Profile'!CA55+'[3]5.2 Asset Age Profile'!CA55","v":3760},{"$f":"'[2]5.2 Asset Age Profile'!CB55+'[3]5.2 Asset Age Profile'!CB55","v":7327},{"$f":"'[2]5.2 Asset Age Profile'!CC55+'[3]5.2 Asset Age Profile'!CC55","v":8093},{"$f":"'[2]5.2 Asset Age Profile'!CD55+'[3]5.2 Asset Age Profile'!CD55","v":753},{"$f":"'[2]5.2 Asset Age Profile'!CE55+'[3]5.2 Asset Age Profile'!CE55","v":9509},{"$f":"'[2]5.2 Asset Age Profile'!CF55+'[3]5.2 Asset Age Profile'!CF55","v":2523},{"$f":"'[2]5.2 Asset Age Profile'!CG55+'[3]5.2 Asset Age Profile'!CG55","v":6492},{"$f":"'[2]5.2 Asset Age Profile'!CH55+'[3]5.2 Asset Age Profile'!CH55","v":108},{"$f":"'[2]5.2 Asset Age Profile'!CI55+'[3]5.2 Asset Age Profile'!CI55","v":311},{"$f":"'[2]5.2 Asset Age Profile'!CJ55+'[3]5.2 Asset Age Profile'!CJ55","v":373},{"$f":"'[2]5.2 Asset Age Profile'!CK55+'[3]5.2 Asset Age Profile'!CK55","v":1769},{"$f":"'[2]5.2 Asset Age Profile'!CL55+'[3]5.2 Asset Age Profile'!CL55","v":135},{"$f":"'[2]5.2 Asset Age Profile'!CM55+'[3]5.2 Asset Age Profile'!CM55","v":2351},{"$f":"'[2]5.2 Asset Age Profile'!CN55+'[3]5.2 Asset Age Profile'!CN55","v":0},{"$f":"'[2]5.2 Asset Age Profile'!CO55+'[3]5.2 Asset Age Profile'!CO55","v":762},{"$f":"'[2]5.2 Asset Age Profile'!CP55+'[3]5.2 Asset Age Profile'!CP55","v":0},{"$f":"'[2]5.2 Asset Age Profile'!CQ55+'[3]5.2 Asset Age Profile'!CQ55","v":553},{"$f":"'[2]5.2 Asset Age Profile'!CR55+'[3]5.2 Asset Age Profile'!CR55","v":0},{"$f":"'[2]5.2 Asset Age Profile'!CS55+'[3]5.2 Asset Age Profile'!CS55","v":0},{"$f":"'[2]5.2 Asset Age Profile'!CT55+'[3]5.2 Asset Age Profile'!CT55","v":0},{"$f":"'[2]5.2 Asset Age Profile'!CU55+'[3]5.2 Asset Age Profile'!CU55","v":0},{"$f":"'[2]5.2 Asset Age Profile'!CV55+'[3]5.2 Asset Age Profile'!CV55","v":0},{"$f":"'[2]5.2 Asset Age Profile'!CW55+'[3]5.2 Asset Age Profile'!CW55","v":16},{"$f":"'[2]5.2 Asset Age Profile'!CX55+'[3]5.2 Asset Age Profile'!CX55","v":0},{"$f":"'[2]5.2 Asset Age Profile'!CY55+'[3]5.2 Asset Age Profile'!CY55","v":495},{"$f":"'[2]5.2 Asset Age Profile'!CZ55+'[3]5.2 Asset Age Profile'!CZ55","v":782},{"$f":"'[2]5.2 Asset Age Profile'!DA55+'[3]5.2 Asset Age Profile'!DA55","v":400},{"$f":"'[2]5.2 Asset Age Profile'!DB55+'[3]5.2 Asset Age Profile'!DB55","v":0},{"$f":"'[2]5.2 Asset Age Profile'!DC55+'[3]5.2 Asset Age Profile'!DC55","v":503},{"$f":"'[2]5.2 Asset Age Profile'!DD55+'[3]5.2 Asset Age Profile'!DD55","v":623},{"$f":"'[2]5.2 Asset Age Profile'!DE55+'[3]5.2 Asset Age Profile'!DE55","v":737},{"$f":"'[2]5.2 Asset Age Profile'!DF55+'[3]5.2 Asset Age Profile'!DF55","v":0},{"$f":"'[2]5.2 Asset Age Profile'!DG55+'[3]5.2 Asset Age Profile'!DG55","v":0},{"$f":"'[2]5.2 Asset Age Profile'!DH55+'[3]5.2 Asset Age Profile'!DH55","v":0},{"$f":"'[2]5.2 Asset Age Profile'!DI55+'[3]5.2 Asset Age Profile'!DI55","v":122},{"$f":"'[2]5.2 Asset Age Profile'!DJ55+'[3]5.2 Asset Age Profile'!DJ55","v":0},{"$f":"'[2]5.2 Asset Age Profile'!DK55+'[3]5.2 Asset Age Profile'!DK55","v":50},{"$f":"'[2]5.2 Asset Age Profile'!DL55+'[3]5.2 Asset Age Profile'!DL55","v":0},{"$f":"'[2]5.2 Asset Age Profile'!DM55+'[3]5.2 Asset Age Profile'!DM55","v":0},{"$f":"'[2]5.2 Asset Age Profile'!DN55+'[3]5.2 Asset Age Profile'!DN55","v":0},{"$f":"'[2]5.2 Asset Age Profile'!DO55+'[3]5.2 Asset Age Profile'!DO55","v":0},{"$f":"'[2]5.2 Asset Age Profile'!DP55+'[3]5.2 Asset Age Profile'!DP55","v":0},{"$f":"'[2]5.2 Asset Age Profile'!DQ55+'[3]5.2 Asset Age Profile'!DQ55","v":0},{"$f":"'[2]5.2 Asset Age Profile'!DR55+'[3]5.2 Asset Age Profile'!DR55","v":0},{"$f":"'[2]5.2 Asset Age Profile'!DS55+'[3]5.2 Asset Age Profile'!DS55","v":8352},{"$f":"'[2]5.2 Asset Age Profile'!DT55+'[3]5.2 Asset Age Profile'!DT55","v":17},{"$f":"'[2]5.2 Asset Age Profile'!DU55+'[3]5.2 Asset Age Profile'!DU55","v":0},{"$f":"'[2]5.2 Asset Age Profile'!DV55+'[3]5.2 Asset Age Profile'!DV55","v":0},{"$f":"'[2]5.2 Asset Age Profile'!DW55+'[3]5.2 Asset Age Profile'!DW55","v":0},{"$f":"'[2]5.2 Asset Age Profile'!DX55+'[3]5.2 Asset Age Profile'!DX55","v":0},{"$f":"'[2]5.2 Asset Age Profile'!DY55+'[3]5.2 Asset Age Profile'!DY55","v":0},{"$f":"'[2]5.2 Asset Age Profile'!DZ55+'[3]5.2 Asset Age Profile'!DZ55","v":0},{"$f":"'[2]5.2 Asset Age Profile'!EA55+'[3]5.2 Asset Age Profile'!EA55","v":0},{"$f":"'[2]5.2 Asset Age Profile'!EB55+'[3]5.2 Asset Age Profile'!EB55","v":0},{"$f":"'[2]5.2 Asset Age Profile'!EC55+'[3]5.2 Asset Age Profile'!EC55","v":0},{"$f":"'[2]5.2 Asset Age Profile'!ED55+'[3]5.2 Asset Age Profile'!ED55","v":0},{"$f":"'[2]5.2 Asset Age Profile'!EE55+'[3]5.2 Asset Age Profile'!EE55","v":0},{"$f":"'[2]5.2 Asset Age Profile'!EF55+'[3]5.2 Asset Age Profile'!EF55","v":0},{"$f":"'[2]5.2 Asset Age Profile'!EG55+'[3]5.2 Asset Age Profile'!EG55","v":0},{"$f":"'[2]5.2 Asset Age Profile'!EH55+'[3]5.2 Asset Age Profile'!EH55","v":0},{"$f":"'[2]5.2 Asset Age Profile'!EI55+'[3]5.2 Asset Age Profile'!EI55","v":0},{"$f":"'[2]5.2 Asset Age Profile'!EJ55+'[3]5.2 Asset Age Profile'!EJ55","v":140}]
["ED_ASS521_00046",null,"˂ = 11 kV ; Commercial & Industrial ; Simple Type",null,"DNSP NAME","REPEX","SERVICE LINES","˂ = 11 kV ; Commercial & Industrial ; Simple Type","DESCRIPTOR METRIC","MEAN ECONOMIC LIFE","YEARS","NUMBER",null,{"$f":"'[2]5.2 Asset Age Profile'!N56+'[3]5.2 Asset Age Profile'!N56","v":{"$error":"#VALUE!"}},{"$f":"'[2]5.2 Asset Age Profile'!O56+'[3]5.2 Asset Age Profile'!O56","v":0},{"$f":"'[2]5.2 Asset Age Profile'!P56+'[3]5.2 Asset Age Profile'!P56","v":0},{"$f":"'[2]5.2 Asset Age Profile'!Q56+'[3]5.2 Asset Age Profile'!Q56","v":0},{"$f":"'[2]5.2 Asset Age Profile'!R56+'[3]5.2 Asset Age Profile'!R56","v":0},{"$f":"'[2]5.2 Asset Age Profile'!S56+'[3]5.2 Asset Age Profile'!S56","v":0},{"$f":"'[2]5.2 Asset Age Profile'!T56+'[3]5.2 Asset Age Profile'!T56","v":0},{"$f":"'[2]5.2 Asset Age Profile'!U56+'[3]5.2 Asset Age Profile'!U56","v":0},{"$f":"'[2]5.2 Asset Age Profile'!V56+'[3]5.2 Asset Age Profile'!V56","v":0},{"$f":"'[2]5.2 Asset Age Profile'!W56+'[3]5.2 Asset Age Profile'!W56","v":0},{"$f":"'[2]5.2 Asset Age Profile'!X56+'[3]5.2 Asset Age Profile'!X56","v":0},{"$f":"'[2]5.2 Asset Age Profile'!Y56+'[3]5.2 Asset Age Profile'!Y56","v":42163},{"$f":"'[2]5.2 Asset Age Profile'!Z56+'[3]5.2 Asset Age Profile'!Z56","v":0},{"$f":"'[2]5.2 Asset Age Profile'!AA56+'[3]5.2 Asset Age Profile'!AA56","v":0},{"$f":"'[2]5.2 Asset Age Profile'!AB56+'[3]5.2 Asset Age Profile'!AB56","v":0},{"$f":"'[2]5.2 Asset Age Profile'!AC56+'[3]5.2 Asset Age Profile'!AC56","v":0},{"$f":"'[2]5.2 Asset Age Profile'!AD56+'[3]5.2 Asset Age Profile'!AD56","v":0},{"$f":"'[2]5.2 Asset Age Profile'!AE56+'[3]5.2 Asset Age Profile'!AE56","v":0},{"$f":"'[2]5.2 Asset Age Profile'!AF56+'[3]5.2 Asset Age Profile'!AF56","v":0},{"$f":"'[2]5.2 Asset Age Profile'!AG56+'[3]5.2 Asset Age Profile'!AG56","v":0},{"$f":"'[2]5.2 Asset Age Profile'!AH56+'[3]5.2 Asset Age Profile'!AH56","v":0},{"$f":"'[2]5.2 Asset Age Profile'!AI56+'[3]5.2 Asset Age Profile'!AI56","v":0},{"$f":"'[2]5.2 Asset Age Profile'!AJ56+'[3]5.2 Asset Age Profile'!AJ56","v":207},{"$f":"'[2]5.2 Asset Age Profile'!AK56+'[3]5.2 Asset Age Profile'!AK56","v":227},{"$f":"'[2]5.2 Asset Age Profile'!AL56+'[3]5.2 Asset Age Profile'!AL56","v":344},{"$f":"'[2]5.2 Asset Age Profile'!AM56+'[3]5.2 Asset Age Profile'!AM56","v":292},{"$f":"'[2]5.2 Asset Age Profile'!AN56+'[3]5.2 Asset Age Profile'!AN56","v":462},{"$f":"'[2]5.2 Asset Age Profile'!AO56+'[3]5.2 Asset Age Profile'!AO56","v":207},{"$f":"'[2]5.2 Asset Age Profile'!AP56+'[3]5.2 Asset Age Profile'!AP56","v":250},{"$f":"'[2]5.2 Asset Age Profile'!AQ56+'[3]5.2 Asset Age Profile'!AQ56","v":350},{"$f":"'[2]5.2 Asset Age Profile'!AR56+'[3]5.2 Asset Age Profile'!AR56","v":380},{"$f":"'[2]5.2 Asset Age Profile'!AS56+'[3]5.2 Asset Age Profile'!AS56","v":197},{"$f":"'[2]5.2 Asset Age Profile'!AT56+'[3]5.2 Asset Age Profile'!AT56","v":180},{"$f":"'[2]5.2 Asset Age Profile'!AU56+'[3]5.2 Asset Age Profile'!AU56","v":139},{"$f":"'[2]5.2 Asset Age Profile'!AV56+'[3]5.2 Asset Age Profile'!AV56","v":351},{"$f":"'[2]5.2 Asset Age Profile'!AW56+'[3]5.2 Asset Age Profile'!AW56","v":78},{"$f":"'[2]5.2 Asset Age Profile'!AX56+'[3]5.2 Asset Age Profile'!AX56","v":563},{"$f":"'[2]5.2 Asset Age Profile'!AY56+'[3]5.2 Asset Age Profile'!AY56","v":5},{"$f":"'[2]5.2 Asset Age Profile'!AZ56+'[3]5.2 Asset Age Profile'!AZ56","v":48},{"$f":"'[2]5.2 Asset Age Profile'!BA56+'[3]5.2 Asset Age Profile'!BA56","v":0},{"$f":"'[2]5.2 Asset Age Profile'!BB56+'[3]5.2 Asset Age Profile'!BB56","v":6},{"$f":"'[2]5.2 Asset Age Profile'!BC56+'[3]5.2 Asset Age Profile'!BC56","v":5},{"$f":"'[2]5.2 Asset Age Profile'!BD56+'[3]5.2 Asset Age Profile'!BD56","v":104},{"$f":"'[2]5.2 Asset Age Profile'!BE56+'[3]5.2 Asset Age Profile'!BE56","v":0},{"$f":"'[2]5.2 Asset Age Profile'!BF56+'[3]5.2 Asset Age Profile'!BF56","v":93},{"$f":"'[2]5.2 Asset Age Profile'!BG56+'[3]5.2 Asset Age Profile'!BG56","v":879},{"$f":"'[2]5.2 Asset Age Profile'!BH56+'[3]5.2 Asset Age Profile'!BH56","v":2052},{"$f":"'[2]5.2 Asset Age Profile'!BI56+'[3]5.2 Asset Age Profile'!BI56","v":18},{"$f":"'[2]5.2 Asset Age Profile'!BJ56+'[3]5.2 Asset Age Profile'!BJ56","v":45},{"$f":"'[2]5.2 Asset Age Profile'!BK56+'[3]5.2 Asset Age Profile'!BK56","v":0},{"$f":"'[2]5.2 Asset Age Profile'!BL56+'[3]5.2 Asset Age Profile'!BL56","v":487},{"$f":"'[2]5.2 Asset Age Profile'!BM56+'[3]5.2 Asset Age Profile'!BM56","v":166},{"$f":"'[2]5.2 Asset Age Profile'!BN56+'[3]5.2 Asset Age Profile'!BN56","v":36},{"$f":"'[2]5.2 Asset Age Profile'!BO56+'[3]5.2 Asset Age Profile'!BO56","v":87},{"$f":"'[2]5.2 Asset Age Profile'!BP56+'[3]5.2 Asset Age Profile'!BP56","v":96},{"$f":"'[2]5.2 Asset Age Profile'!BQ56+'[3]5.2 Asset Age Profile'!BQ56","v":181},{"$f":"'[2]5.2 Asset Age Profile'!BR56+'[3]5.2 Asset Age Profile'!BR56","v":41},{"$f":"'[2]5.2 Asset Age Profile'!BS56+'[3]5.2 Asset Age Profile'!BS56","v":198},{"$f":"'[2]5.2 Asset Age Profile'!BT56+'[3]5.2 Asset Age Profile'!BT56","v":149},{"$f":"'[2]5.2 Asset Age Profile'!BU56+'[3]5.2 Asset Age Profile'!BU56","v":9},{"$f":"'[2]5.2 Asset Age Profile'!BV56+'[3]5.2 Asset Age Profile'!BV56","v":0},{"$f":"'[2]5.2 Asset Age Profile'!BW56+'[3]5.2 Asset Age Profile'!BW56","v":54},{"$f":"'[2]5.2 Asset Age Profile'!BX56+'[3]5.2 Asset Age Profile'!BX56","v":848},{"$f":"'[2]5.2 Asset Age Profile'!BY56+'[3]5.2 Asset Age Profile'!BY56","v":233},{"$f":"'[2]5.2 Asset Age Profile'!BZ56+'[3]5.2 Asset Age Profile'!BZ56","v":490},{"$f":"'[2]5.2 Asset Age Profile'!CA56+'[3]5.2 Asset Age Profile'!CA56","v":98},{"$f":"'[2]5.2 Asset Age Profile'!CB56+'[3]5.2 Asset Age Profile'!CB56","v":312},{"$f":"'[2]5.2 Asset Age Profile'!CC56+'[3]5.2 Asset Age Profile'!CC56","v":413},{"$f":"'[2]5.2 Asset Age Profile'!CD56+'[3]5.2 Asset Age Profile'!CD56","v":76},{"$f":"'[2]5.2 Asset Age Profile'!CE56+'[3]5.2 Asset Age Profile'!CE56","v":623},{"$f":"'[2]5.2 Asset Age Profile'!CF56+'[3]5.2 Asset Age Profile'!CF56","v":193},{"$f":"'[2]5.2 Asset Age Profile'!CG56+'[3]5.2 Asset Age Profile'!CG56","v":684},{"$f":"'[2]5.2 Asset Age Profile'!CH56+'[3]5.2 Asset Age Profile'!CH56","v":17},{"$f":"'[2]5.2 Asset Age Profile'!CI56+'[3]5.2 Asset Age Profile'!CI56","v":27},{"$f":"'[2]5.2 Asset Age Profile'!CJ56+'[3]5.2 Asset Age Profile'!CJ56","v":77},{"$f":"'[2]5.2 Asset Age Profile'!CK56+'[3]5.2 Asset Age Profile'!CK56","v":126},{"$f":"'[2]5.2 Asset Age Profile'!CL56+'[3]5.2 Asset Age Profile'!CL56","v":102},{"$f":"'[2]5.2 Asset Age Profile'!CM56+'[3]5.2 Asset Age Profile'!CM56","v":275},{"$f":"'[2]5.2 Asset Age Profile'!CN56+'[3]5.2 Asset Age Profile'!CN56","v":121},{"$f":"'[2]5.2 Asset Age Profile'!CO56+'[3]5.2 Asset Age Profile'!CO56","v":494},{"$f":"'[2]5.2 Asset Age Profile'!CP56+'[3]5.2 Asset Age Profile'!CP56","v":0},{"$f":"'[2]5.2 Asset Age Profile'!CQ56+'[3]5.2 Asset Age Profile'!CQ56","v":252},{"$f":"'[2]5.2 Asset Age Profile'!CR56+'[3]5.2 Asset Age Profile'!CR56","v":0},{"$f":"'[2]5.2 Asset Age Profile'!CS56+'[3]5.2 Asset Age Profile'!CS56","v":0},{"$f":"'[2]5.2 Asset Age Profile'!CT56+'[3]5.2 Asset Age Profile'!CT56","v":0},{"$f":"'[2]5.2 Asset Age Profile'!CU56+'[3]5.2 Asset Age Profile'!CU56","v":0},{"$f":"'[2]5.2 Asset Age Profile'!CV56+'[3]5.2 Asset Age Profile'!CV56","v":0},{"$f":"'[2]5.2 Asset Age Profile'!CW56+'[3]5.2 Asset Age Profile'!CW56","v":8},{"$f":"'[2]5.2 Asset Age Profile'!CX56+'[3]5.2 Asset Age Profile'!CX56","v":0},{"$f":"'[2]5.2 Asset Age Profile'!CY56+'[3]5.2 Asset Age Profile'!CY56","v":22},{"$f":"'[2]5.2 Asset Age Profile'!CZ56+'[3]5.2 Asset Age Profile'!CZ56","v":23},{"$f":"'[2]5.2 Asset Age Profile'!DA56+'[3]5.2 Asset Age Profile'!DA56","v":139},{"$f":"'[2]5.2 Asset Age Profile'!DB56+'[3]5.2 Asset Age Profile'!DB56","v":0},{"$f":"'[2]5.2 Asset Age Profile'!DC56+'[3]5.2 Asset Age Profile'!DC56","v":89},{"$f":"'[2]5.2 Asset Age Profile'!DD56+'[3]5.2 Asset Age Profile'!DD56","v":79},{"$f":"'[2]5.2 Asset Age Profile'!DE56+'[3]5.2 Asset Age Profile'!DE56","v":254},{"$f":"'[2]5.2 Asset Age Profile'!DF56+'[3]5.2 Asset Age Profile'!DF56","v":0},{"$f":"'[2]5.2 Asset Age Profile'!DG56+'[3]5.2 Asset Age Profile'!DG56","v":0},{"$f":"'[2]5.2 Asset Age Profile'!DH56+'[3]5.2 Asset Age Profile'!DH56","v":0},{"$f":"'[2]5.2 Asset Age Profile'!DI56+'[3]5.2 Asset Age Profile'!DI56","v":82},{"$f":"'[2]5.2 Asset Age Profile'!DJ56+'[3]5.2 Asset Age Profile'!DJ56","v":0},{"$f":"'[2]5.2 Asset Age Profile'!DK56+'[3]5.2 Asset Age Profile'!DK56","v":31},{"$f":"'[2]5.2 Asset Age Profile'!DL56+'[3]5.2 Asset Age Profile'!DL56","v":0},{"$f":"'[2]5.2 Asset Age Profile'!DM56+'[3]5.2 Asset Age Profile'!DM56","v":0},{"$f":"'[2]5.2 Asset Age Profile'!DN56+'[3]5.2 Asset Age Profile'!DN56","v":0},{"$f":"'[2]5.2 Asset Age Profile'!DO56+'[3]5.2 Asset Age Profile'!DO56","v":0},{"$f":"'[2]5.2 Asset Age Profile'!DP56+'[3]5.2 Asset Age Profile'!DP56","v":0},{"$f":"'[2]5.2 Asset Age Profile'!DQ56+'[3]5.2 Asset Age Profile'!DQ56","v":0},{"$f":"'[2]5.2 Asset Age Profile'!DR56+'[3]5.2 Asset Age Profile'!DR56","v":0},{"$f":"'[2]5.2 Asset Age Profile'!DS56+'[3]5.2 Asset Age Profile'!DS56","v":2133},{"$f":"'[2]5.2 Asset Age Profile'!DT56+'[3]5.2 Asset Age Profile'!DT56","v":48},{"$f":"'[2]5.2 Asset Age Profile'!DU56+'[3]5.2 Asset Age Profile'!DU56","v":0},{"$f":"'[2]5.2 Asset Age Profile'!DV56+'[3]5.2 Asset Age Profile'!DV56","v":0},{"$f":"'[2]5.2 Asset Age Profile'!DW56+'[3]5.2 Asset Age Profile'!DW56","v":0},{"$f":"'[2]5.2 Asset Age Profile'!DX56+'[3]5.2 Asset Age Profile'!DX56","v":0},{"$f":"'[2]5.2 Asset Age Profile'!DY56+'[3]5.2 Asset Age Profile'!DY56","v":0},{"$f":"'[2]5.2 Asset Age Profile'!DZ56+'[3]5.2 Asset Age Profile'!DZ56","v":0},{"$f":"'[2]5.2 Asset Age Profile'!EA56+'[3]5.2 Asset Age Profile'!EA56","v":77},{"$f":"'[2]5.2 Asset Age Profile'!EB56+'[3]5.2 Asset Age Profile'!EB56","v":0},{"$f":"'[2]5.2 Asset Age Profile'!EC56+'[3]5.2 Asset Age Profile'!EC56","v":0},{"$f":"'[2]5.2 Asset Age Profile'!ED56+'[3]5.2 Asset Age Profile'!ED56","v":0},{"$f":"'[2]5.2 Asset Age Profile'!EE56+'[3]5.2 Asset Age Profile'!EE56","v":0},{"$f":"'[2]5.2 Asset Age Profile'!EF56+'[3]5.2 Asset Age Profile'!EF56","v":0},{"$f":"'[2]5.2 Asset Age Profile'!EG56+'[3]5.2 Asset Age Profile'!EG56","v":0},{"$f":"'[2]5.2 Asset Age Profile'!EH56+'[3]5.2 Asset Age Profile'!EH56","v":0},{"$f":"'[2]5.2 Asset Age Profile'!EI56+'[3]5.2 Asset Age Profile'!EI56","v":0},{"$f":"'[2]5.2 Asset Age Profile'!EJ56+'[3]5.2 Asset Age Profile'!EJ56","v":1248}]
["ED_ASS521_00047",null,"˂ = 11 kV ; Residential ; Complex Type",null,"DNSP NAME","REPEX","SERVICE LINES","˂ = 11 kV ; Residential ; Complex Type","DESCRIPTOR METRIC","MEAN ECONOMIC LIFE","YEARS","NUMBER",null,{"$f":"'[2]5.2 Asset Age Profile'!N57+'[3]5.2 Asset Age Profile'!N57","v":0},{"$f":"'[2]5.2 Asset Age Profile'!O57+'[3]5.2 Asset Age Profile'!O57","v":0},{"$f":"'[2]5.2 Asset Age Profile'!P57+'[3]5.2 Asset Age Profile'!P57","v":0},{"$f":"'[2]5.2 Asset Age Profile'!Q57+'[3]5.2 Asset Age Profile'!Q57","v":0},{"$f":"'[2]5.2 Asset Age Profile'!R57+'[3]5.2 Asset Age Profile'!R57","v":0},{"$f":"'[2]5.2 Asset Age Profile'!S57+'[3]5.2 Asset Age Profile'!S57","v":0},{"$f":"'[2]5.2 Asset Age Profile'!T57+'[3]5.2 Asset Age Profile'!T57","v":0},{"$f":"'[2]5.2 Asset Age Profile'!U57+'[3]5.2 Asset Age Profile'!U57","v":0},{"$f":"'[2]5.2 Asset Age Profile'!V57+'[3]5.2 Asset Age Profile'!V57","v":0},{"$f":"'[2]5.2 Asset Age Profile'!W57+'[3]5.2 Asset Age Profile'!W57","v":0},{"$f":"'[2]5.2 Asset Age Profile'!X57+'[3]5.2 Asset Age Profile'!X57","v":0},{"$f":"'[2]5.2 Asset Age Profile'!Y57+'[3]5.2 Asset Age Profile'!Y57","v":0},{"$f":"'[2]5.2 Asset Age Profile'!Z57+'[3]5.2 Asset Age Profile'!Z57","v":0},{"$f":"'[2]5.2 Asset Age Profile'!AA57+'[3]5.2 Asset Age Profile'!AA57","v":0},{"$f":"'[2]5.2 Asset Age Profile'!AB57+'[3]5.2 Asset Age Profile'!AB57","v":0},{"$f":"'[2]5.2 Asset Age Profile'!AC57+'[3]5.2 Asset Age Profile'!AC57","v":0},{"$f":"'[2]5.2 Asset Age Profile'!AD57+'[3]5.2 Asset Age Profile'!AD57","v":0},{"$f":"'[2]5.2 Asset Age Profile'!AE57+'[3]5.2 Asset Age Profile'!AE57","v":0},{"$f":"'[2]5.2 Asset Age Profile'!AF57+'[3]5.2 Asset Age Profile'!AF57","v":0},{"$f":"'[2]5.2 Asset Age Profile'!AG57+'[3]5.2 Asset Age Profile'!AG57","v":0},{"$f":"'[2]5.2 Asset Age Profile'!AH57+'[3]5.2 Asset Age Profile'!AH57","v":0},{"$f":"'[2]5.2 Asset Age Profile'!AI57+'[3]5.2 Asset Age Profile'!AI57","v":0},{"$f":"'[2]5.2 Asset Age Profile'!AJ57+'[3]5.2 Asset Age Profile'!AJ57","v":0},{"$f":"'[2]5.2 Asset Age Profile'!AK57+'[3]5.2 Asset Age Profile'!AK57","v":0},{"$f":"'[2]5.2 Asset Age Profile'!AL57+'[3]5.2 Asset Age Profile'!AL57","v":0},{"$f":"'[2]5.2 Asset Age Profile'!AM57+'[3]5.2 Asset Age Profile'!AM57","v":0},{"$f":"'[2]5.2 Asset Age Profile'!AN57+'[3]5.2 Asset Age Profile'!AN57","v":0},{"$f":"'[2]5.2 Asset Age Profile'!AO57+'[3]5.2 Asset Age Profile'!AO57","v":0},{"$f":"'[2]5.2 Asset Age Profile'!AP57+'[3]5.2 Asset Age Profile'!AP57","v":0},{"$f":"'[2]5.2 Asset Age Profile'!AQ57+'[3]5.2 Asset Age Profile'!AQ57","v":0},{"$f":"'[2]5.2 Asset Age Profile'!AR57+'[3]5.2 Asset Age Profile'!AR57","v":0},{"$f":"'[2]5.2 Asset Age Profile'!AS57+'[3]5.2 Asset Age Profile'!AS57","v":0},{"$f":"'[2]5.2 Asset Age Profile'!AT57+'[3]5.2 Asset Age Profile'!AT57","v":0},{"$f":"'[2]5.2 Asset Age Profile'!AU57+'[3]5.2 Asset Age Profile'!AU57","v":0},{"$f":"'[2]5.2 Asset Age Profile'!AV57+'[3]5.2 Asset Age Profile'!AV57","v":0},{"$f":"'[2]5.2 Asset Age Profile'!AW57+'[3]5.2 Asset Age Profile'!AW57","v":0},{"$f":"'[2]5.2 Asset Age Profile'!AX57+'[3]5.2 Asset Age Profile'!AX57","v":0},{"$f":"'[2]5.2 Asset Age Profile'!AY57+'[3]5.2 Asset Age Profile'!AY57","v":0},{"$f":"'[2]5.2 Asset Age Profile'!AZ57+'[3]5.2 Asset Age Profile'!AZ57","v":0},{"$f":"'[2]5.2 Asset Age Profile'!BA57+'[3]5.2 Asset Age Profile'!BA57","v":0},{"$f":"'[2]5.2 Asset Age Profile'!BB57+'[3]5.2 Asset Age Profile'!BB57","v":0},{"$f":"'[2]5.2 Asset Age Profile'!BC57+'[3]5.2 Asset Age Profile'!BC57","v":0},{"$f":"'[2]5.2 Asset Age Profile'!BD57+'[3]5.2 Asset Age Profile'!BD57","v":0},{"$f":"'[2]5.2 Asset Age Profile'!BE57+'[3]5.2 Asset Age Profile'!BE57","v":0},{"$f":"'[2]5.2 Asset Age Profile'!BF57+'[3]5.2 Asset Age Profile'!BF57","v":0},{"$f":"'[2]5.2 Asset Age Profile'!BG57+'[3]5.2 Asset Age Profile'!BG57","v":0},{"$f":"'[2]5.2 Asset Age Profile'!BH57+'[3]5.2 Asset Age Profile'!BH57","v":0},{"$f":"'[2]5.2 Asset Age Profile'!BI57+'[3]5.2 Asset Age Profile'!BI57","v":0},{"$f":"'[2]5.2 Asset Age Profile'!BJ57+'[3]5.2 Asset Age Profile'!BJ57","v":0},{"$f":"'[2]5.2 Asset Age Profile'!BK57+'[3]5.2 Asset Age Profile'!BK57","v":0},{"$f":"'[2]5.2 Asset Age Profile'!BL57+'[3]5.2 Asset Age Profile'!BL57","v":0},{"$f":"'[2]5.2 Asset Age Profile'!BM57+'[3]5.2 Asset Age Profile'!BM57","v":0},{"$f":"'[2]5.2 Asset Age Profile'!BN57+'[3]5.2 Asset Age Profile'!BN57","v":0},{"$f":"'[2]5.2 Asset Age Profile'!BO57+'[3]5.2 Asset Age Profile'!BO57","v":0},{"$f":"'[2]5.2 Asset Age Profile'!BP57+'[3]5.2 Asset Age Profile'!BP57","v":0},{"$f":"'[2]5.2 Asset Age Profile'!BQ57+'[3]5.2 Asset Age Profile'!BQ57","v":0},{"$f":"'[2]5.2 Asset Age Profile'!BR57+'[3]5.2 Asset Age Profile'!BR57","v":0},{"$f":"'[2]5.2 Asset Age Profile'!BS57+'[3]5.2 Asset Age Profile'!BS57","v":0},{"$f":"'[2]5.2 Asset Age Profile'!BT57+'[3]5.2 Asset Age Profile'!BT57","v":0},{"$f":"'[2]5.2 Asset Age Profile'!BU57+'[3]5.2 Asset Age Profile'!BU57","v":0},{"$f":"'[2]5.2 Asset Age Profile'!BV57+'[3]5.2 Asset Age Profile'!BV57","v":0},{"$f":"'[2]5.2 Asset Age Profile'!BW57+'[3]5.2 Asset Age Profile'!BW57","v":0},{"$f":"'[2]5.2 Asset Age Profile'!BX57+'[3]5.2 Asset Age Profile'!BX57","v":0},{"$f":"'[2]5.2 Asset Age Profile'!BY57+'[3]5.2 Asset Age Profile'!BY57","v":0},{"$f":"'[2]5.2 Asset Age Profile'!BZ57+'[3]5.2 Asset Age Profile'!BZ57","v":0},{"$f":"'[2]5.2 Asset Age Profile'!CA57+'[3]5.2 Asset Age Profile'!CA57","v":0},{"$f":"'[2]5.2 Asset Age Profile'!CB57+'[3]5.2 Asset Age Profile'!CB57","v":0},{"$f":"'[2]5.2 Asset Age Profile'!CC57+'[3]5.2 Asset Age Profile'!CC57","v":0},{"$f":"'[2]5.2 Asset Age Profile'!CD57+'[3]5.2 Asset Age Profile'!CD57","v":0},{"$f":"'[2]5.2 Asset Age Profile'!CE57+'[3]5.2 Asset Age Profile'!CE57","v":0},{"$f":"'[2]5.2 Asset Age Profile'!CF57+'[3]5.2 Asset Age Profile'!CF57","v":0},{"$f":"'[2]5.2 Asset Age Profile'!CG57+'[3]5.2 Asset Age Profile'!CG57","v":0},{"$f":"'[2]5.2 Asset Age Profile'!CH57+'[3]5.2 Asset Age Profile'!CH57","v":0},{"$f":"'[2]5.2 Asset Age Profile'!CI57+'[3]5.2 Asset Age Profile'!CI57","v":0},{"$f":"'[2]5.2 Asset Age Profile'!CJ57+'[3]5.2 Asset Age Profile'!CJ57","v":0},{"$f":"'[2]5.2 Asset Age Profile'!CK57+'[3]5.2 Asset Age Profile'!CK57","v":0},{"$f":"'[2]5.2 Asset Age Profile'!CL57+'[3]5.2 Asset Age Profile'!CL57","v":0},{"$f":"'[2]5.2 Asset Age Profile'!CM57+'[3]5.2 Asset Age Profile'!CM57","v":0},{"$f":"'[2]5.2 Asset Age Profile'!CN57+'[3]5.2 Asset Age Profile'!CN57","v":0},{"$f":"'[2]5.2 Asset Age Profile'!CO57+'[3]5.2 Asset Age Profile'!CO57","v":0},{"$f":"'[2]5.2 Asset Age Profile'!CP57+'[3]5.2 Asset Age Profile'!CP57","v":0},{"$f":"'[2]5.2 Asset Age Profile'!CQ57+'[3]5.2 Asset Age Profile'!CQ57","v":0},{"$f":"'[2]5.2 Asset Age Profile'!CR57+'[3]5.2 Asset Age Profile'!CR57","v":0},{"$f":"'[2]5.2 Asset Age Profile'!CS57+'[3]5.2 Asset Age Profile'!CS57","v":0},{"$f":"'[2]5.2 Asset Age Profile'!CT57+'[3]5.2 Asset Age Profile'!CT57","v":0},{"$f":"'[2]5.2 Asset Age Profile'!CU57+'[3]5.2 Asset Age Profile'!CU57","v":0},{"$f":"'[2]5.2 Asset Age Profile'!CV57+'[3]5.2 Asset Age Profile'!CV57","v":0},{"$f":"'[2]5.2 Asset Age Profile'!CW57+'[3]5.2 Asset Age Profile'!CW57","v":0},{"$f":"'[2]5.2 Asset Age Profile'!CX57+'[3]5.2 Asset Age Profile'!CX57","v":0},{"$f":"'[2]5.2 Asset Age Profile'!CY57+'[3]5.2 Asset Age Profile'!CY57","v":0},{"$f":"'[2]5.2 Asset Age Profile'!CZ57+'[3]5.2 Asset Age Profile'!CZ57","v":0},{"$f":"'[2]5.2 Asset Age Profile'!DA57+'[3]5.2 Asset Age Profile'!DA57","v":0},{"$f":"'[2]5.2 Asset Age Profile'!DB57+'[3]5.2 Asset Age Profile'!DB57","v":0},{"$f":"'[2]5.2 Asset Age Profile'!DC57+'[3]5.2 Asset Age Profile'!DC57","v":0},{"$f":"'[2]5.2 Asset Age Profile'!DD57+'[3]5.2 Asset Age Profile'!DD57","v":0},{"$f":"'[2]5.2 Asset Age Profile'!DE57+'[3]5.2 Asset Age Profile'!DE57","v":0},{"$f":"'[2]5.2 Asset Age Profile'!DF57+'[3]5.2 Asset Age Profile'!DF57","v":0},{"$f":"'[2]5.2 Asset Age Profile'!DG57+'[3]5.2 Asset Age Profile'!DG57","v":0},{"$f":"'[2]5.2 Asset Age Profile'!DH57+'[3]5.2 Asset Age Profile'!DH57","v":0},{"$f":"'[2]5.2 Asset Age Profile'!DI57+'[3]5.2 Asset Age Profile'!DI57","v":0},{"$f":"'[2]5.2 Asset Age Profile'!DJ57+'[3]5.2 Asset Age Profile'!DJ57","v":0},{"$f":"'[2]5.2 Asset Age Profile'!DK57+'[3]5.2 Asset Age Profile'!DK57","v":0},{"$f":"'[2]5.2 Asset Age Profile'!DL57+'[3]5.2 Asset Age Profile'!DL57","v":0},{"$f":"'[2]5.2 Asset Age Profile'!DM57+'[3]5.2 Asset Age Profile'!DM57","v":0},{"$f":"'[2]5.2 Asset Age Profile'!DN57+'[3]5.2 Asset Age Profile'!DN57","v":0},{"$f":"'[2]5.2 Asset Age Profile'!DO57+'[3]5.2 Asset Age Profile'!DO57","v":0},{"$f":"'[2]5.2 Asset Age Profile'!DP57+'[3]5.2 Asset Age Profile'!DP57","v":0},{"$f":"'[2]5.2 Asset Age Profile'!DQ57+'[3]5.2 Asset Age Profile'!DQ57","v":0},{"$f":"'[2]5.2 Asset Age Profile'!DR57+'[3]5.2 Asset Age Profile'!DR57","v":0},{"$f":"'[2]5.2 Asset Age Profile'!DS57+'[3]5.2 Asset Age Profile'!DS57","v":0},{"$f":"'[2]5.2 Asset Age Profile'!DT57+'[3]5.2 Asset Age Profile'!DT57","v":0},{"$f":"'[2]5.2 Asset Age Profile'!DU57+'[3]5.2 Asset Age Profile'!DU57","v":0},{"$f":"'[2]5.2 Asset Age Profile'!DV57+'[3]5.2 Asset Age Profile'!DV57","v":0},{"$f":"'[2]5.2 Asset Age Profile'!DW57+'[3]5.2 Asset Age Profile'!DW57","v":0},{"$f":"'[2]5.2 Asset Age Profile'!DX57+'[3]5.2 Asset Age Profile'!DX57","v":0},{"$f":"'[2]5.2 Asset Age Profile'!DY57+'[3]5.2 Asset Age Profile'!DY57","v":0},{"$f":"'[2]5.2 Asset Age Profile'!DZ57+'[3]5.2 Asset Age Profile'!DZ57","v":0},{"$f":"'[2]5.2 Asset Age Profile'!EA57+'[3]5.2 Asset Age Profile'!EA57","v":0},{"$f":"'[2]5.2 Asset Age Profile'!EB57+'[3]5.2 Asset Age Profile'!EB57","v":0},{"$f":"'[2]5.2 Asset Age Profile'!EC57+'[3]5.2 Asset Age Profile'!EC57","v":0},{"$f":"'[2]5.2 Asset Age Profile'!ED57+'[3]5.2 Asset Age Profile'!ED57","v":0},{"$f":"'[2]5.2 Asset Age Profile'!EE57+'[3]5.2 Asset Age Profile'!EE57","v":0},{"$f":"'[2]5.2 Asset Age Profile'!EF57+'[3]5.2 Asset Age Profile'!EF57","v":0},{"$f":"'[2]5.2 Asset Age Profile'!EG57+'[3]5.2 Asset Age Profile'!EG57","v":0},{"$f":"'[2]5.2 Asset Age Profile'!EH57+'[3]5.2 Asset Age Profile'!EH57","v":0},{"$f":"'[2]5.2 Asset Age Profile'!EI57+'[3]5.2 Asset Age Profile'!EI57","v":0},{"$f":"'[2]5.2 Asset Age Profile'!EJ57+'[3]5.2 Asset Age Profile'!EJ57","v":0}]
["ED_ASS521_00048",null,"˂ = 11 kV ; Commercial & Industrial ; Complex Type",null,null,null,null,null,null,null,null,null,null,{"$f":"'[2]5.2 Asset Age Profile'!N58+'[3]5.2 Asset Age Profile'!N58","v":0},{"$f":"'[2]5.2 Asset Age Profile'!O58+'[3]5.2 Asset Age Profile'!O58","v":0},{"$f":"'[2]5.2 Asset Age Profile'!P58+'[3]5.2 Asset Age Profile'!P58","v":0},{"$f":"'[2]5.2 Asset Age Profile'!Q58+'[3]5.2 Asset Age Profile'!Q58","v":0},{"$f":"'[2]5.2 Asset Age Profile'!R58+'[3]5.2 Asset Age Profile'!R58","v":0},{"$f":"'[2]5.2 Asset Age Profile'!S58+'[3]5.2 Asset Age Profile'!S58","v":0},{"$f":"'[2]5.2 Asset Age Profile'!T58+'[3]5.2 Asset Age Profile'!T58","v":0},{"$f":"'[2]5.2 Asset Age Profile'!U58+'[3]5.2 Asset Age Profile'!U58","v":0},{"$f":"'[2]5.2 Asset Age Profile'!V58+'[3]5.2 Asset Age Profile'!V58","v":0},{"$f":"'[2]5.2 Asset Age Profile'!W58+'[3]5.2 Asset Age Profile'!W58","v":0},{"$f":"'[2]5.2 Asset Age Profile'!X58+'[3]5.2 Asset Age Profile'!X58","v":0},{"$f":"'[2]5.2 Asset Age Profile'!Y58+'[3]5.2 Asset Age Profile'!Y58","v":0},{"$f":"'[2]5.2 Asset Age Profile'!Z58+'[3]5.2 Asset Age Profile'!Z58","v":0},{"$f":"'[2]5.2 Asset Age Profile'!AA58+'[3]5.2 Asset Age Profile'!AA58","v":0},{"$f":"'[2]5.2 Asset Age Profile'!AB58+'[3]5.2 Asset Age Profile'!AB58","v":0},{"$f":"'[2]5.2 Asset Age Profile'!AC58+'[3]5.2 Asset Age Profile'!AC58","v":0},{"$f":"'[2]5.2 Asset Age Profile'!AD58+'[3]5.2 Asset Age Profile'!AD58","v":0},{"$f":"'[2]5.2 Asset Age Profile'!AE58+'[3]5.2 Asset Age Profile'!AE58","v":0},{"$f":"'[2]5.2 Asset Age Profile'!AF58+'[3]5.2 Asset Age Profile'!AF58","v":0},{"$f":"'[2]5.2 Asset Age Profile'!AG58+'[3]5.2 Asset Age Profile'!AG58","v":0},{"$f":"'[2]5.2 Asset Age Profile'!AH58+'[3]5.2 Asset Age Profile'!AH58","v":0},{"$f":"'[2]5.2 Asset Age Profile'!AI58+'[3]5.2 Asset Age Profile'!AI58","v":0},{"$f":"'[2]5.2 Asset Age Profile'!AJ58+'[3]5.2 Asset Age Profile'!AJ58","v":0},{"$f":"'[2]5.2 Asset Age Profile'!AK58+'[3]5.2 Asset Age Profile'!AK58","v":0},{"$f":"'[2]5.2 Asset Age Profile'!AL58+'[3]5.2 Asset Age Profile'!AL58","v":0},{"$f":"'[2]5.2 Asset Age Profile'!AM58+'[3]5.2 Asset Age Profile'!AM58","v":0},{"$f":"'[2]5.2 Asset Age Profile'!AN58+'[3]5.2 Asset Age Profile'!AN58","v":0},{"$f":"'[2]5.2 Asset Age Profile'!AO58+'[3]5.2 Asset Age Profile'!AO58","v":0},{"$f":"'[2]5.2 Asset Age Profile'!AP58+'[3]5.2 Asset Age Profile'!AP58","v":0},{"$f":"'[2]5.2 Asset Age Profile'!AQ58+'[3]5.2 Asset Age Profile'!AQ58","v":0},{"$f":"'[2]5.2 Asset Age Profile'!AR58+'[3]5.2 Asset Age Profile'!AR58","v":0},{"$f":"'[2]5.2 Asset Age Profile'!AS58+'[3]5.2 Asset Age Profile'!AS58","v":0},{"$f":"'[2]5.2 Asset Age Profile'!AT58+'[3]5.2 Asset Age Profile'!AT58","v":0},{"$f":"'[2]5.2 Asset Age Profile'!AU58+'[3]5.2 Asset Age Profile'!AU58","v":0},{"$f":"'[2]5.2 Asset Age Profile'!AV58+'[3]5.2 Asset Age Profile'!AV58","v":0},{"$f":"'[2]5.2 Asset Age Profile'!AW58+'[3]5.2 Asset Age Profile'!AW58","v":0},{"$f":"'[2]5.2 Asset Age Profile'!AX58+'[3]5.2 Asset Age Profile'!AX58","v":0},{"$f":"'[2]5.2 Asset Age Profile'!AY58+'[3]5.2 Asset Age Profile'!AY58","v":0},{"$f":"'[2]5.2 Asset Age Profile'!AZ58+'[3]5.2 Asset Age Profile'!AZ58","v":0},{"$f":"'[2]5.2 Asset Age Profile'!BA58+'[3]5.2 Asset Age Profile'!BA58","v":0},{"$f":"'[2]5.2 Asset Age Profile'!BB58+'[3]5.2 Asset Age Profile'!BB58","v":0},{"$f":"'[2]5.2 Asset Age Profile'!BC58+'[3]5.2 Asset Age Profile'!BC58","v":0},{"$f":"'[2]5.2 Asset Age Profile'!BD58+'[3]5.2 Asset Age Profile'!BD58","v":0},{"$f":"'[2]5.2 Asset Age Profile'!BE58+'[3]5.2 Asset Age Profile'!BE58","v":0},{"$f":"'[2]5.2 Asset Age Profile'!BF58+'[3]5.2 Asset Age Profile'!BF58","v":0},{"$f":"'[2]5.2 Asset Age Profile'!BG58+'[3]5.2 Asset Age Profile'!BG58","v":0},{"$f":"'[2]5.2 Asset Age Profile'!BH58+'[3]5.2 Asset Age Profile'!BH58","v":0},{"$f":"'[2]5.2 Asset Age Profile'!BI58+'[3]5.2 Asset Age Profile'!BI58","v":0},{"$f":"'[2]5.2 Asset Age Profile'!BJ58+'[3]5.2 Asset Age Profile'!BJ58","v":0},{"$f":"'[2]5.2 Asset Age Profile'!BK58+'[3]5.2 Asset Age Profile'!BK58","v":0},{"$f":"'[2]5.2 Asset Age Profile'!BL58+'[3]5.2 Asset Age Profile'!BL58","v":0},{"$f":"'[2]5.2 Asset Age Profile'!BM58+'[3]5.2 Asset Age Profile'!BM58","v":0},{"$f":"'[2]5.2 Asset Age Profile'!BN58+'[3]5.2 Asset Age Profile'!BN58","v":0},{"$f":"'[2]5.2 Asset Age Profile'!BO58+'[3]5.2 Asset Age Profile'!BO58","v":0},{"$f":"'[2]5.2 Asset Age Profile'!BP58+'[3]5.2 Asset Age Profile'!BP58","v":0},{"$f":"'[2]5.2 Asset Age Profile'!BQ58+'[3]5.2 Asset Age Profile'!BQ58","v":0},{"$f":"'[2]5.2 Asset Age Profile'!BR58+'[3]5.2 Asset Age Profile'!BR58","v":0},{"$f":"'[2]5.2 Asset Age Profile'!BS58+'[3]5.2 Asset Age Profile'!BS58","v":0},{"$f":"'[2]5.2 Asset Age Profile'!BT58+'[3]5.2 Asset Age Profile'!BT58","v":0},{"$f":"'[2]5.2 Asset Age Profile'!BU58+'[3]5.2 Asset Age Profile'!BU58","v":0},{"$f":"'[2]5.2 Asset Age Profile'!BV58+'[3]5.2 Asset Age Profile'!BV58","v":0},{"$f":"'[2]5.2 Asset Age Profile'!BW58+'[3]5.2 Asset Age Profile'!BW58","v":0},{"$f":"'[2]5.2 Asset Age Profile'!BX58+'[3]5.2 Asset Age Profile'!BX58","v":0},{"$f":"'[2]5.2 Asset Age Profile'!BY58+'[3]5.2 Asset Age Profile'!BY58","v":0},{"$f":"'[2]5.2 Asset Age Profile'!BZ58+'[3]5.2 Asset Age Profile'!BZ58","v":0},{"$f":"'[2]5.2 Asset Age Profile'!CA58+'[3]5.2 Asset Age Profile'!CA58","v":0},{"$f":"'[2]5.2 Asset Age Profile'!CB58+'[3]5.2 Asset Age Profile'!CB58","v":0},{"$f":"'[2]5.2 Asset Age Profile'!CC58+'[3]5.2 Asset Age Profile'!CC58","v":0},{"$f":"'[2]5.2 Asset Age Profile'!CD58+'[3]5.2 Asset Age Profile'!CD58","v":0},{"$f":"'[2]5.2 Asset Age Profile'!CE58+'[3]5.2 Asset Age Profile'!CE58","v":0},{"$f":"'[2]5.2 Asset Age Profile'!CF58+'[3]5.2 Asset Age Profile'!CF58","v":0},{"$f":"'[2]5.2 Asset Age Profile'!CG58+'[3]5.2 Asset Age Profile'!CG58","v":0},{"$f":"'[2]5.2 Asset Age Profile'!CH58+'[3]5.2 Asset Age Profile'!CH58","v":0},{"$f":"'[2]5.2 Asset Age Profile'!CI58+'[3]5.2 Asset Age Profile'!CI58","v":0},{"$f":"'[2]5.2 Asset Age Profile'!CJ58+'[3]5.2 Asset Age Profile'!CJ58","v":0},{"$f":"'[2]5.2 Asset Age Profile'!CK58+'[3]5.2 Asset Age Profile'!CK58","v":0},{"$f":"'[2]5.2 Asset Age Profile'!CL58+'[3]5.2 Asset Age Profile'!CL58","v":0},{"$f":"'[2]5.2 Asset Age Profile'!CM58+'[3]5.2 Asset Age Profile'!CM58","v":0},{"$f":"'[2]5.2 Asset Age Profile'!CN58+'[3]5.2 Asset Age Profile'!CN58","v":0},{"$f":"'[2]5.2 Asset Age Profile'!CO58+'[3]5.2 Asset Age Profile'!CO58","v":0},{"$f":"'[2]5.2 Asset Age Profile'!CP58+'[3]5.2 Asset Age Profile'!CP58","v":0},{"$f":"'[2]5.2 Asset Age Profile'!CQ58+'[3]5.2 Asset Age Profile'!CQ58","v":0},{"$f":"'[2]5.2 Asset Age Profile'!CR58+'[3]5.2 Asset Age Profile'!CR58","v":0},{"$f":"'[2]5.2 Asset Age Profile'!CS58+'[3]5.2 Asset Age Profile'!CS58","v":0},{"$f":"'[2]5.2 Asset Age Profile'!CT58+'[3]5.2 Asset Age Profile'!CT58","v":0},{"$f":"'[2]5.2 Asset Age Profile'!CU58+'[3]5.2 Asset Age Profile'!CU58","v":0},{"$f":"'[2]5.2 Asset Age Profile'!CV58+'[3]5.2 Asset Age Profile'!CV58","v":0},{"$f":"'[2]5.2 Asset Age Profile'!CW58+'[3]5.2 Asset Age Profile'!CW58","v":0},{"$f":"'[2]5.2 Asset Age Profile'!CX58+'[3]5.2 Asset Age Profile'!CX58","v":0},{"$f":"'[2]5.2 Asset Age Profile'!CY58+'[3]5.2 Asset Age Profile'!CY58","v":0},{"$f":"'[2]5.2 Asset Age Profile'!CZ58+'[3]5.2 Asset Age Profile'!CZ58","v":0},{"$f":"'[2]5.2 Asset Age Profile'!DA58+'[3]5.2 Asset Age Profile'!DA58","v":0},{"$f":"'[2]5.2 Asset Age Profile'!DB58+'[3]5.2 Asset Age Profile'!DB58","v":0},{"$f":"'[2]5.2 Asset Age Profile'!DC58+'[3]5.2 Asset Age Profile'!DC58","v":0},{"$f":"'[2]5.2 Asset Age Profile'!DD58+'[3]5.2 Asset Age Profile'!DD58","v":0},{"$f":"'[2]5.2 Asset Age Profile'!DE58+'[3]5.2 Asset Age Profile'!DE58","v":0},{"$f":"'[2]5.2 Asset Age Profile'!DF58+'[3]5.2 Asset Age Profile'!DF58","v":0},{"$f":"'[2]5.2 Asset Age Profile'!DG58+'[3]5.2 Asset Age Profile'!DG58","v":0},{"$f":"'[2]5.2 Asset Age Profile'!DH58+'[3]5.2 Asset Age Profile'!DH58","v":0},{"$f":"'[2]5.2 Asset Age Profile'!DI58+'[3]5.2 Asset Age Profile'!DI58","v":0},{"$f":"'[2]5.2 Asset Age Profile'!DJ58+'[3]5.2 Asset Age Profile'!DJ58","v":0},{"$f":"'[2]5.2 Asset Age Profile'!DK58+'[3]5.2 Asset Age Profile'!DK58","v":0},{"$f":"'[2]5.2 Asset Age Profile'!DL58+'[3]5.2 Asset Age Profile'!DL58","v":0},{"$f":"'[2]5.2 Asset Age Profile'!DM58+'[3]5.2 Asset Age Profile'!DM58","v":0},{"$f":"'[2]5.2 Asset Age Profile'!DN58+'[3]5.2 Asset Age Profile'!DN58","v":0},{"$f":"'[2]5.2 Asset Age Profile'!DO58+'[3]5.2 Asset Age Profile'!DO58","v":0},{"$f":"'[2]5.2 Asset Age Profile'!DP58+'[3]5.2 Asset Age Profile'!DP58","v":0},{"$f":"'[2]5.2 Asset Age Profile'!DQ58+'[3]5.2 Asset Age Profile'!DQ58","v":0},{"$f":"'[2]5.2 Asset Age Profile'!DR58+'[3]5.2 Asset Age Profile'!DR58","v":0},{"$f":"'[2]5.2 Asset Age Profile'!DS58+'[3]5.2 Asset Age Profile'!DS58","v":0},{"$f":"'[2]5.2 Asset Age Profile'!DT58+'[3]5.2 Asset Age Profile'!DT58","v":0},{"$f":"'[2]5.2 Asset Age Profile'!DU58+'[3]5.2 Asset Age Profile'!DU58","v":0},{"$f":"'[2]5.2 Asset Age Profile'!DV58+'[3]5.2 Asset Age Profile'!DV58","v":0},{"$f":"'[2]5.2 Asset Age Profile'!DW58+'[3]5.2 Asset Age Profile'!DW58","v":0},{"$f":"'[2]5.2 Asset Age Profile'!DX58+'[3]5.2 Asset Age Profile'!DX58","v":0},{"$f":"'[2]5.2 Asset Age Profile'!DY58+'[3]5.2 Asset Age Profile'!DY58","v":0},{"$f":"'[2]5.2 Asset Age Profile'!DZ58+'[3]5.2 Asset Age Profile'!DZ58","v":0},{"$f":"'[2]5.2 Asset Age Profile'!EA58+'[3]5.2 Asset Age Profile'!EA58","v":0},{"$f":"'[2]5.2 Asset Age Profile'!EB58+'[3]5.2 Asset Age Profile'!EB58","v":0},{"$f":"'[2]5.2 Asset Age Profile'!EC58+'[3]5.2 Asset Age Profile'!EC58","v":0},{"$f":"'[2]5.2 Asset Age Profile'!ED58+'[3]5.2 Asset Age Profile'!ED58","v":0},{"$f":"'[2]5.2 Asset Age Profile'!EE58+'[3]5.2 Asset Age Profile'!EE58","v":0},{"$f":"'[2]5.2 Asset Age Profile'!EF58+'[3]5.2 Asset Age Profile'!EF58","v":0},{"$f":"'[2]5.2 Asset Age Profile'!EG58+'[3]5.2 Asset Age Profile'!EG58","v":0},{"$f":"'[2]5.2 Asset Age Profile'!EH58+'[3]5.2 Asset Age Profile'!EH58","v":0},{"$f":"'[2]5.2 Asset Age Profile'!EI58+'[3]5.2 Asset Age Profile'!EI58","v":0},{"$f":"'[2]5.2 Asset Age Profile'!EJ58+'[3]5.2 Asset Age Profile'!EJ58","v":0}]
["ED_ASS521_00049",null,"˂ = 11 kV ; Subdivision ; Complex Type",null,null,null,null,null,null,null,null,null,null,{"$f":"'[2]5.2 Asset Age Profile'!N59+'[3]5.2 Asset Age Profile'!N59","v":0},{"$f":"'[2]5.2 Asset Age Profile'!O59+'[3]5.2 Asset Age Profile'!O59","v":0},{"$f":"'[2]5.2 Asset Age Profile'!P59+'[3]5.2 Asset Age Profile'!P59","v":0},{"$f":"'[2]5.2 Asset Age Profile'!Q59+'[3]5.2 Asset Age Profile'!Q59","v":0},{"$f":"'[2]5.2 Asset Age Profile'!R59+'[3]5.2 Asset Age Profile'!R59","v":0},{"$f":"'[2]5.2 Asset Age Profile'!S59+'[3]5.2 Asset Age Profile'!S59","v":0},{"$f":"'[2]5.2 Asset Age Profile'!T59+'[3]5.2 Asset Age Profile'!T59","v":0},{"$f":"'[2]5.2 Asset Age Profile'!U59+'[3]5.2 Asset Age Profile'!U59","v":0},{"$f":"'[2]5.2 Asset Age Profile'!V59+'[3]5.2 Asset Age Profile'!V59","v":0},{"$f":"'[2]5.2 Asset Age Profile'!W59+'[3]5.2 Asset Age Profile'!W59","v":0},{"$f":"'[2]5.2 Asset Age Profile'!X59+'[3]5.2 Asset Age Profile'!X59","v":0},{"$f":"'[2]5.2 Asset Age Profile'!Y59+'[3]5.2 Asset Age Profile'!Y59","v":0},{"$f":"'[2]5.2 Asset Age Profile'!Z59+'[3]5.2 Asset Age Profile'!Z59","v":0},{"$f":"'[2]5.2 Asset Age Profile'!AA59+'[3]5.2 Asset Age Profile'!AA59","v":0},{"$f":"'[2]5.2 Asset Age Profile'!AB59+'[3]5.2 Asset Age Profile'!AB59","v":0},{"$f":"'[2]5.2 Asset Age Profile'!AC59+'[3]5.2 Asset Age Profile'!AC59","v":0},{"$f":"'[2]5.2 Asset Age Profile'!AD59+'[3]5.2 Asset Age Profile'!AD59","v":0},{"$f":"'[2]5.2 Asset Age Profile'!AE59+'[3]5.2 Asset Age Profile'!AE59","v":0},{"$f":"'[2]5.2 Asset Age Profile'!AF59+'[3]5.2 Asset Age Profile'!AF59","v":0},{"$f":"'[2]5.2 Asset Age Profile'!AG59+'[3]5.2 Asset Age Profile'!AG59","v":0},{"$f":"'[2]5.2 Asset Age Profile'!AH59+'[3]5.2 Asset Age Profile'!AH59","v":0},{"$f":"'[2]5.2 Asset Age Profile'!AI59+'[3]5.2 Asset Age Profile'!AI59","v":0},{"$f":"'[2]5.2 Asset Age Profile'!AJ59+'[3]5.2 Asset Age Profile'!AJ59","v":0},{"$f":"'[2]5.2 Asset Age Profile'!AK59+'[3]5.2 Asset Age Profile'!AK59","v":0},{"$f":"'[2]5.2 Asset Age Profile'!AL59+'[3]5.2 Asset Age Profile'!AL59","v":0},{"$f":"'[2]5.2 Asset Age Profile'!AM59+'[3]5.2 Asset Age Profile'!AM59","v":0},{"$f":"'[2]5.2 Asset Age Profile'!AN59+'[3]5.2 Asset Age Profile'!AN59","v":0},{"$f":"'[2]5.2 Asset Age Profile'!AO59+'[3]5.2 Asset Age Profile'!AO59","v":0},{"$f":"'[2]5.2 Asset Age Profile'!AP59+'[3]5.2 Asset Age Profile'!AP59","v":0},{"$f":"'[2]5.2 Asset Age Profile'!AQ59+'[3]5.2 Asset Age Profile'!AQ59","v":0},{"$f":"'[2]5.2 Asset Age Profile'!AR59+'[3]5.2 Asset Age Profile'!AR59","v":0},{"$f":"'[2]5.2 Asset Age Profile'!AS59+'[3]5.2 Asset Age Profile'!AS59","v":0},{"$f":"'[2]5.2 Asset Age Profile'!AT59+'[3]5.2 Asset Age Profile'!AT59","v":0},{"$f":"'[2]5.2 Asset Age Profile'!AU59+'[3]5.2 Asset Age Profile'!AU59","v":0},{"$f":"'[2]5.2 Asset Age Profile'!AV59+'[3]5.2 Asset Age Profile'!AV59","v":0},{"$f":"'[2]5.2 Asset Age Profile'!AW59+'[3]5.2 Asset Age Profile'!AW59","v":0},{"$f":"'[2]5.2 Asset Age Profile'!AX59+'[3]5.2 Asset Age Profile'!AX59","v":0},{"$f":"'[2]5.2 Asset Age Profile'!AY59+'[3]5.2 Asset Age Profile'!AY59","v":0},{"$f":"'[2]5.2 Asset Age Profile'!AZ59+'[3]5.2 Asset Age Profile'!AZ59","v":0},{"$f":"'[2]5.2 Asset Age Profile'!BA59+'[3]5.2 Asset Age Profile'!BA59","v":0},{"$f":"'[2]5.2 Asset Age Profile'!BB59+'[3]5.2 Asset Age Profile'!BB59","v":0},{"$f":"'[2]5.2 Asset Age Profile'!BC59+'[3]5.2 Asset Age Profile'!BC59","v":0},{"$f":"'[2]5.2 Asset Age Profile'!BD59+'[3]5.2 Asset Age Profile'!BD59","v":0},{"$f":"'[2]5.2 Asset Age Profile'!BE59+'[3]5.2 Asset Age Profile'!BE59","v":0},{"$f":"'[2]5.2 Asset Age Profile'!BF59+'[3]5.2 Asset Age Profile'!BF59","v":0},{"$f":"'[2]5.2 Asset Age Profile'!BG59+'[3]5.2 Asset Age Profile'!BG59","v":0},{"$f":"'[2]5.2 Asset Age Profile'!BH59+'[3]5.2 Asset Age Profile'!BH59","v":0},{"$f":"'[2]5.2 Asset Age Profile'!BI59+'[3]5.2 Asset Age Profile'!BI59","v":0},{"$f":"'[2]5.2 Asset Age Profile'!BJ59+'[3]5.2 Asset Age Profile'!BJ59","v":0},{"$f":"'[2]5.2 Asset Age Profile'!BK59+'[3]5.2 Asset Age Profile'!BK59","v":0},{"$f":"'[2]5.2 Asset Age Profile'!BL59+'[3]5.2 Asset Age Profile'!BL59","v":0},{"$f":"'[2]5.2 Asset Age Profile'!BM59+'[3]5.2 Asset Age Profile'!BM59","v":0},{"$f":"'[2]5.2 Asset Age Profile'!BN59+'[3]5.2 Asset Age Profile'!BN59","v":0},{"$f":"'[2]5.2 Asset Age Profile'!BO59+'[3]5.2 Asset Age Profile'!BO59","v":0},{"$f":"'[2]5.2 Asset Age Profile'!BP59+'[3]5.2 Asset Age Profile'!BP59","v":0},{"$f":"'[2]5.2 Asset Age Profile'!BQ59+'[3]5.2 Asset Age Profile'!BQ59","v":0},{"$f":"'[2]5.2 Asset Age Profile'!BR59+'[3]5.2 Asset Age Profile'!BR59","v":0},{"$f":"'[2]5.2 Asset Age Profile'!BS59+'[3]5.2 Asset Age Profile'!BS59","v":0},{"$f":"'[2]5.2 Asset Age Profile'!BT59+'[3]5.2 Asset Age Profile'!BT59","v":0},{"$f":"'[2]5.2 Asset Age Profile'!BU59+'[3]5.2 Asset Age Profile'!BU59","v":0},{"$f":"'[2]5.2 Asset Age Profile'!BV59+'[3]5.2 Asset Age Profile'!BV59","v":0},{"$f":"'[2]5.2 Asset Age Profile'!BW59+'[3]5.2 Asset Age Profile'!BW59","v":0},{"$f":"'[2]5.2 Asset Age Profile'!BX59+'[3]5.2 Asset Age Profile'!BX59","v":0},{"$f":"'[2]5.2 Asset Age Profile'!BY59+'[3]5.2 Asset Age Profile'!BY59","v":0},{"$f":"'[2]5.2 Asset Age Profile'!BZ59+'[3]5.2 Asset Age Profile'!BZ59","v":0},{"$f":"'[2]5.2 Asset Age Profile'!CA59+'[3]5.2 Asset Age Profile'!CA59","v":0},{"$f":"'[2]5.2 Asset Age Profile'!CB59+'[3]5.2 Asset Age Profile'!CB59","v":0},{"$f":"'[2]5.2 Asset Age Profile'!CC59+'[3]5.2 Asset Age Profile'!CC59","v":0},{"$f":"'[2]5.2 Asset Age Profile'!CD59+'[3]5.2 Asset Age Profile'!CD59","v":0},{"$f":"'[2]5.2 Asset Age Profile'!CE59+'[3]5.2 Asset Age Profile'!CE59","v":0},{"$f":"'[2]5.2 Asset Age Profile'!CF59+'[3]5.2 Asset Age Profile'!CF59","v":0},{"$f":"'[2]5.2 Asset Age Profile'!CG59+'[3]5.2 Asset Age Profile'!CG59","v":0},{"$f":"'[2]5.2 Asset Age Profile'!CH59+'[3]5.2 Asset Age Profile'!CH59","v":0},{"$f":"'[2]5.2 Asset Age Profile'!CI59+'[3]5.2 Asset Age Profile'!CI59","v":0},{"$f":"'[2]5.2 Asset Age Profile'!CJ59+'[3]5.2 Asset Age Profile'!CJ59","v":0},{"$f":"'[2]5.2 Asset Age Profile'!CK59+'[3]5.2 Asset Age Profile'!CK59","v":0},{"$f":"'[2]5.2 Asset Age Profile'!CL59+'[3]5.2 Asset Age Profile'!CL59","v":0},{"$f":"'[2]5.2 Asset Age Profile'!CM59+'[3]5.2 Asset Age Profile'!CM59","v":0},{"$f":"'[2]5.2 Asset Age Profile'!CN59+'[3]5.2 Asset Age Profile'!CN59","v":0},{"$f":"'[2]5.2 Asset Age Profile'!CO59+'[3]5.2 Asset Age Profile'!CO59","v":0},{"$f":"'[2]5.2 Asset Age Profile'!CP59+'[3]5.2 Asset Age Profile'!CP59","v":0},{"$f":"'[2]5.2 Asset Age Profile'!CQ59+'[3]5.2 Asset Age Profile'!CQ59","v":0},{"$f":"'[2]5.2 Asset Age Profile'!CR59+'[3]5.2 Asset Age Profile'!CR59","v":0},{"$f":"'[2]5.2 Asset Age Profile'!CS59+'[3]5.2 Asset Age Profile'!CS59","v":0},{"$f":"'[2]5.2 Asset Age Profile'!CT59+'[3]5.2 Asset Age Profile'!CT59","v":0},{"$f":"'[2]5.2 Asset Age Profile'!CU59+'[3]5.2 Asset Age Profile'!CU59","v":0},{"$f":"'[2]5.2 Asset Age Profile'!CV59+'[3]5.2 Asset Age Profile'!CV59","v":0},{"$f":"'[2]5.2 Asset Age Profile'!CW59+'[3]5.2 Asset Age Profile'!CW59","v":0},{"$f":"'[2]5.2 Asset Age Profile'!CX59+'[3]5.2 Asset Age Profile'!CX59","v":0},{"$f":"'[2]5.2 Asset Age Profile'!CY59+'[3]5.2 Asset Age Profile'!CY59","v":0},{"$f":"'[2]5.2 Asset Age Profile'!CZ59+'[3]5.2 Asset Age Profile'!CZ59","v":0},{"$f":"'[2]5.2 Asset Age Profile'!DA59+'[3]5.2 Asset Age Profile'!DA59","v":0},{"$f":"'[2]5.2 Asset Age Profile'!DB59+'[3]5.2 Asset Age Profile'!DB59","v":0},{"$f":"'[2]5.2 Asset Age Profile'!DC59+'[3]5.2 Asset Age Profile'!DC59","v":0},{"$f":"'[2]5.2 Asset Age Profile'!DD59+'[3]5.2 Asset Age Profile'!DD59","v":0},{"$f":"'[2]5.2 Asset Age Profile'!DE59+'[3]5.2 Asset Age Profile'!DE59","v":0},{"$f":"'[2]5.2 Asset Age Profile'!DF59+'[3]5.2 Asset Age Profile'!DF59","v":0},{"$f":"'[2]5.2 Asset Age Profile'!DG59+'[3]5.2 Asset Age Profile'!DG59","v":0},{"$f":"'[2]5.2 Asset Age Profile'!DH59+'[3]5.2 Asset Age Profile'!DH59","v":0},{"$f":"'[2]5.2 Asset Age Profile'!DI59+'[3]5.2 Asset Age Profile'!DI59","v":0},{"$f":"'[2]5.2 Asset Age Profile'!DJ59+'[3]5.2 Asset Age Profile'!DJ59","v":0},{"$f":"'[2]5.2 Asset Age Profile'!DK59+'[3]5.2 Asset Age Profile'!DK59","v":0},{"$f":"'[2]5.2 Asset Age Profile'!DL59+'[3]5.2 Asset Age Profile'!DL59","v":0},{"$f":"'[2]5.2 Asset Age Profile'!DM59+'[3]5.2 Asset Age Profile'!DM59","v":0},{"$f":"'[2]5.2 Asset Age Profile'!DN59+'[3]5.2 Asset Age Profile'!DN59","v":0},{"$f":"'[2]5.2 Asset Age Profile'!DO59+'[3]5.2 Asset Age Profile'!DO59","v":0},{"$f":"'[2]5.2 Asset Age Profile'!DP59+'[3]5.2 Asset Age Profile'!DP59","v":0},{"$f":"'[2]5.2 Asset Age Profile'!DQ59+'[3]5.2 Asset Age Profile'!DQ59","v":0},{"$f":"'[2]5.2 Asset Age Profile'!DR59+'[3]5.2 Asset Age Profile'!DR59","v":0},{"$f":"'[2]5.2 Asset Age Profile'!DS59+'[3]5.2 Asset Age Profile'!DS59","v":0},{"$f":"'[2]5.2 Asset Age Profile'!DT59+'[3]5.2 Asset Age Profile'!DT59","v":0},{"$f":"'[2]5.2 Asset Age Profile'!DU59+'[3]5.2 Asset Age Profile'!DU59","v":0},{"$f":"'[2]5.2 Asset Age Profile'!DV59+'[3]5.2 Asset Age Profile'!DV59","v":0},{"$f":"'[2]5.2 Asset Age Profile'!DW59+'[3]5.2 Asset Age Profile'!DW59","v":0},{"$f":"'[2]5.2 Asset Age Profile'!DX59+'[3]5.2 Asset Age Profile'!DX59","v":0},{"$f":"'[2]5.2 Asset Age Profile'!DY59+'[3]5.2 Asset Age Profile'!DY59","v":0},{"$f":"'[2]5.2 Asset Age Profile'!DZ59+'[3]5.2 Asset Age Profile'!DZ59","v":0},{"$f":"'[2]5.2 Asset Age Profile'!EA59+'[3]5.2 Asset Age Profile'!EA59","v":0},{"$f":"'[2]5.2 Asset Age Profile'!EB59+'[3]5.2 Asset Age Profile'!EB59","v":0},{"$f":"'[2]5.2 Asset Age Profile'!EC59+'[3]5.2 Asset Age Profile'!EC59","v":0},{"$f":"'[2]5.2 Asset Age Profile'!ED59+'[3]5.2 Asset Age Profile'!ED59","v":0},{"$f":"'[2]5.2 Asset Age Profile'!EE59+'[3]5.2 Asset Age Profile'!EE59","v":0},{"$f":"'[2]5.2 Asset Age Profile'!EF59+'[3]5.2 Asset Age Profile'!EF59","v":0},{"$f":"'[2]5.2 Asset Age Profile'!EG59+'[3]5.2 Asset Age Profile'!EG59","v":0},{"$f":"'[2]5.2 Asset Age Profile'!EH59+'[3]5.2 Asset Age Profile'!EH59","v":0},{"$f":"'[2]5.2 Asset Age Profile'!EI59+'[3]5.2 Asset Age Profile'!EI59","v":0},{"$f":"'[2]5.2 Asset Age Profile'!EJ59+'[3]5.2 Asset Age Profile'!EJ59","v":0}]
["ED_ASS521_00050",null,"> 11 kV  & < = 22 kV ; Commercial & Industrial  ",null,null,null,null,null,null,null,null,null,null,{"$f":"'[2]5.2 Asset Age Profile'!N60+'[3]5.2 Asset Age Profile'!N60","v":0},{"$f":"'[2]5.2 Asset Age Profile'!O60+'[3]5.2 Asset Age Profile'!O60","v":0},{"$f":"'[2]5.2 Asset Age Profile'!P60+'[3]5.2 Asset Age Profile'!P60","v":0},{"$f":"'[2]5.2 Asset Age Profile'!Q60+'[3]5.2 Asset Age Profile'!Q60","v":0},{"$f":"'[2]5.2 Asset Age Profile'!R60+'[3]5.2 Asset Age Profile'!R60","v":0},{"$f":"'[2]5.2 Asset Age Profile'!S60+'[3]5.2 Asset Age Profile'!S60","v":0},{"$f":"'[2]5.2 Asset Age Profile'!T60+'[3]5.2 Asset Age Profile'!T60","v":0},{"$f":"'[2]5.2 Asset Age Profile'!U60+'[3]5.2 Asset Age Profile'!U60","v":0},{"$f":"'[2]5.2 Asset Age Profile'!V60+'[3]5.2 Asset Age Profile'!V60","v":0},{"$f":"'[2]5.2 Asset Age Profile'!W60+'[3]5.2 Asset Age Profile'!W60","v":0},{"$f":"'[2]5.2 Asset Age Profile'!X60+'[3]5.2 Asset Age Profile'!X60","v":0},{"$f":"'[2]5.2 Asset Age Profile'!Y60+'[3]5.2 Asset Age Profile'!Y60","v":0},{"$f":"'[2]5.2 Asset Age Profile'!Z60+'[3]5.2 Asset Age Profile'!Z60","v":0},{"$f":"'[2]5.2 Asset Age Profile'!AA60+'[3]5.2 Asset Age Profile'!AA60","v":0},{"$f":"'[2]5.2 Asset Age Profile'!AB60+'[3]5.2 Asset Age Profile'!AB60","v":0},{"$f":"'[2]5.2 Asset Age Profile'!AC60+'[3]5.2 Asset Age Profile'!AC60","v":0},{"$f":"'[2]5.2 Asset Age Profile'!AD60+'[3]5.2 Asset Age Profile'!AD60","v":0},{"$f":"'[2]5.2 Asset Age Profile'!AE60+'[3]5.2 Asset Age Profile'!AE60","v":0},{"$f":"'[2]5.2 Asset Age Profile'!AF60+'[3]5.2 Asset Age Profile'!AF60","v":0},{"$f":"'[2]5.2 Asset Age Profile'!AG60+'[3]5.2 Asset Age Profile'!AG60","v":0},{"$f":"'[2]5.2 Asset Age Profile'!AH60+'[3]5.2 Asset Age Profile'!AH60","v":0},{"$f":"'[2]5.2 Asset Age Profile'!AI60+'[3]5.2 Asset Age Profile'!AI60","v":0},{"$f":"'[2]5.2 Asset Age Profile'!AJ60+'[3]5.2 Asset Age Profile'!AJ60","v":0},{"$f":"'[2]5.2 Asset Age Profile'!AK60+'[3]5.2 Asset Age Profile'!AK60","v":0},{"$f":"'[2]5.2 Asset Age Profile'!AL60+'[3]5.2 Asset Age Profile'!AL60","v":0},{"$f":"'[2]5.2 Asset Age Profile'!AM60+'[3]5.2 Asset Age Profile'!AM60","v":0},{"$f":"'[2]5.2 Asset Age Profile'!AN60+'[3]5.2 Asset Age Profile'!AN60","v":0},{"$f":"'[2]5.2 Asset Age Profile'!AO60+'[3]5.2 Asset Age Profile'!AO60","v":0},{"$f":"'[2]5.2 Asset Age Profile'!AP60+'[3]5.2 Asset Age Profile'!AP60","v":0},{"$f":"'[2]5.2 Asset Age Profile'!AQ60+'[3]5.2 Asset Age Profile'!AQ60","v":0},{"$f":"'[2]5.2 Asset Age Profile'!AR60+'[3]5.2 Asset Age Profile'!AR60","v":0},{"$f":"'[2]5.2 Asset Age Profile'!AS60+'[3]5.2 Asset Age Profile'!AS60","v":0},{"$f":"'[2]5.2 Asset Age Profile'!AT60+'[3]5.2 Asset Age Profile'!AT60","v":0},{"$f":"'[2]5.2 Asset Age Profile'!AU60+'[3]5.2 Asset Age Profile'!AU60","v":0},{"$f":"'[2]5.2 Asset Age Profile'!AV60+'[3]5.2 Asset Age Profile'!AV60","v":0},{"$f":"'[2]5.2 Asset Age Profile'!AW60+'[3]5.2 Asset Age Profile'!AW60","v":0},{"$f":"'[2]5.2 Asset Age Profile'!AX60+'[3]5.2 Asset Age Profile'!AX60","v":0},{"$f":"'[2]5.2 Asset Age Profile'!AY60+'[3]5.2 Asset Age Profile'!AY60","v":0},{"$f":"'[2]5.2 Asset Age Profile'!AZ60+'[3]5.2 Asset Age Profile'!AZ60","v":0},{"$f":"'[2]5.2 Asset Age Profile'!BA60+'[3]5.2 Asset Age Profile'!BA60","v":0},{"$f":"'[2]5.2 Asset Age Profile'!BB60+'[3]5.2 Asset Age Profile'!BB60","v":0},{"$f":"'[2]5.2 Asset Age Profile'!BC60+'[3]5.2 Asset Age Profile'!BC60","v":0},{"$f":"'[2]5.2 Asset Age Profile'!BD60+'[3]5.2 Asset Age Profile'!BD60","v":0},{"$f":"'[2]5.2 Asset Age Profile'!BE60+'[3]5.2 Asset Age Profile'!BE60","v":0},{"$f":"'[2]5.2 Asset Age Profile'!BF60+'[3]5.2 Asset Age Profile'!BF60","v":0},{"$f":"'[2]5.2 Asset Age Profile'!BG60+'[3]5.2 Asset Age Profile'!BG60","v":0},{"$f":"'[2]5.2 Asset Age Profile'!BH60+'[3]5.2 Asset Age Profile'!BH60","v":0},{"$f":"'[2]5.2 Asset Age Profile'!BI60+'[3]5.2 Asset Age Profile'!BI60","v":0},{"$f":"'[2]5.2 Asset Age Profile'!BJ60+'[3]5.2 Asset Age Profile'!BJ60","v":0},{"$f":"'[2]5.2 Asset Age Profile'!BK60+'[3]5.2 Asset Age Profile'!BK60","v":0},{"$f":"'[2]5.2 Asset Age Profile'!BL60+'[3]5.2 Asset Age Profile'!BL60","v":0},{"$f":"'[2]5.2 Asset Age Profile'!BM60+'[3]5.2 Asset Age Profile'!BM60","v":0},{"$f":"'[2]5.2 Asset Age Profile'!BN60+'[3]5.2 Asset Age Profile'!BN60","v":0},{"$f":"'[2]5.2 Asset Age Profile'!BO60+'[3]5.2 Asset Age Profile'!BO60","v":0},{"$f":"'[2]5.2 Asset Age Profile'!BP60+'[3]5.2 Asset Age Profile'!BP60","v":0},{"$f":"'[2]5.2 Asset Age Profile'!BQ60+'[3]5.2 Asset Age Profile'!BQ60","v":0},{"$f":"'[2]5.2 Asset Age Profile'!BR60+'[3]5.2 Asset Age Profile'!BR60","v":0},{"$f":"'[2]5.2 Asset Age Profile'!BS60+'[3]5.2 Asset Age Profile'!BS60","v":0},{"$f":"'[2]5.2 Asset Age Profile'!BT60+'[3]5.2 Asset Age Profile'!BT60","v":0},{"$f":"'[2]5.2 Asset Age Profile'!BU60+'[3]5.2 Asset Age Profile'!BU60","v":0},{"$f":"'[2]5.2 Asset Age Profile'!BV60+'[3]5.2 Asset Age Profile'!BV60","v":0},{"$f":"'[2]5.2 Asset Age Profile'!BW60+'[3]5.2 Asset Age Profile'!BW60","v":0},{"$f":"'[2]5.2 Asset Age Profile'!BX60+'[3]5.2 Asset Age Profile'!BX60","v":0},{"$f":"'[2]5.2 Asset Age Profile'!BY60+'[3]5.2 Asset Age Profile'!BY60","v":0},{"$f":"'[2]5.2 Asset Age Profile'!BZ60+'[3]5.2 Asset Age Profile'!BZ60","v":0},{"$f":"'[2]5.2 Asset Age Profile'!CA60+'[3]5.2 Asset Age Profile'!CA60","v":0},{"$f":"'[2]5.2 Asset Age Profile'!CB60+'[3]5.2 Asset Age Profile'!CB60","v":0},{"$f":"'[2]5.2 Asset Age Profile'!CC60+'[3]5.2 Asset Age Profile'!CC60","v":0},{"$f":"'[2]5.2 Asset Age Profile'!CD60+'[3]5.2 Asset Age Profile'!CD60","v":0},{"$f":"'[2]5.2 Asset Age Profile'!CE60+'[3]5.2 Asset Age Profile'!CE60","v":0},{"$f":"'[2]5.2 Asset Age Profile'!CF60+'[3]5.2 Asset Age Profile'!CF60","v":0},{"$f":"'[2]5.2 Asset Age Profile'!CG60+'[3]5.2 Asset Age Profile'!CG60","v":0},{"$f":"'[2]5.2 Asset Age Profile'!CH60+'[3]5.2 Asset Age Profile'!CH60","v":0},{"$f":"'[2]5.2 Asset Age Profile'!CI60+'[3]5.2 Asset Age Profile'!CI60","v":0},{"$f":"'[2]5.2 Asset Age Profile'!CJ60+'[3]5.2 Asset Age Profile'!CJ60","v":0},{"$f":"'[2]5.2 Asset Age Profile'!CK60+'[3]5.2 Asset Age Profile'!CK60","v":0},{"$f":"'[2]5.2 Asset Age Profile'!CL60+'[3]5.2 Asset Age Profile'!CL60","v":0},{"$f":"'[2]5.2 Asset Age Profile'!CM60+'[3]5.2 Asset Age Profile'!CM60","v":0},{"$f":"'[2]5.2 Asset Age Profile'!CN60+'[3]5.2 Asset Age Profile'!CN60","v":0},{"$f":"'[2]5.2 Asset Age Profile'!CO60+'[3]5.2 Asset Age Profile'!CO60","v":0},{"$f":"'[2]5.2 Asset Age Profile'!CP60+'[3]5.2 Asset Age Profile'!CP60","v":0},{"$f":"'[2]5.2 Asset Age Profile'!CQ60+'[3]5.2 Asset Age Profile'!CQ60","v":0},{"$f":"'[2]5.2 Asset Age Profile'!CR60+'[3]5.2 Asset Age Profile'!CR60","v":0},{"$f":"'[2]5.2 Asset Age Profile'!CS60+'[3]5.2 Asset Age Profile'!CS60","v":0},{"$f":"'[2]5.2 Asset Age Profile'!CT60+'[3]5.2 Asset Age Profile'!CT60","v":0},{"$f":"'[2]5.2 Asset Age Profile'!CU60+'[3]5.2 Asset Age Profile'!CU60","v":0},{"$f":"'[2]5.2 Asset Age Profile'!CV60+'[3]5.2 Asset Age Profile'!CV60","v":0},{"$f":"'[2]5.2 Asset Age Profile'!CW60+'[3]5.2 Asset Age Profile'!CW60","v":0},{"$f":"'[2]5.2 Asset Age Profile'!CX60+'[3]5.2 Asset Age Profile'!CX60","v":0},{"$f":"'[2]5.2 Asset Age Profile'!CY60+'[3]5.2 Asset Age Profile'!CY60","v":0},{"$f":"'[2]5.2 Asset Age Profile'!CZ60+'[3]5.2 Asset Age Profile'!CZ60","v":0},{"$f":"'[2]5.2 Asset Age Profile'!DA60+'[3]5.2 Asset Age Profile'!DA60","v":0},{"$f":"'[2]5.2 Asset Age Profile'!DB60+'[3]5.2 Asset Age Profile'!DB60","v":0},{"$f":"'[2]5.2 Asset Age Profile'!DC60+'[3]5.2 Asset Age Profile'!DC60","v":0},{"$f":"'[2]5.2 Asset Age Profile'!DD60+'[3]5.2 Asset Age Profile'!DD60","v":0},{"$f":"'[2]5.2 Asset Age Profile'!DE60+'[3]5.2 Asset Age Profile'!DE60","v":0},{"$f":"'[2]5.2 Asset Age Profile'!DF60+'[3]5.2 Asset Age Profile'!DF60","v":0},{"$f":"'[2]5.2 Asset Age Profile'!DG60+'[3]5.2 Asset Age Profile'!DG60","v":0},{"$f":"'[2]5.2 Asset Age Profile'!DH60+'[3]5.2 Asset Age Profile'!DH60","v":0},{"$f":"'[2]5.2 Asset Age Profile'!DI60+'[3]5.2 Asset Age Profile'!DI60","v":0},{"$f":"'[2]5.2 Asset Age Profile'!DJ60+'[3]5.2 Asset Age Profile'!DJ60","v":0},{"$f":"'[2]5.2 Asset Age Profile'!DK60+'[3]5.2 Asset Age Profile'!DK60","v":0},{"$f":"'[2]5.2 Asset Age Profile'!DL60+'[3]5.2 Asset Age Profile'!DL60","v":0},{"$f":"'[2]5.2 Asset Age Profile'!DM60+'[3]5.2 Asset Age Profile'!DM60","v":0},{"$f":"'[2]5.2 Asset Age Profile'!DN60+'[3]5.2 Asset Age Profile'!DN60","v":0},{"$f":"'[2]5.2 Asset Age Profile'!DO60+'[3]5.2 Asset Age Profile'!DO60","v":0},{"$f":"'[2]5.2 Asset Age Profile'!DP60+'[3]5.2 Asset Age Profile'!DP60","v":0},{"$f":"'[2]5.2 Asset Age Profile'!DQ60+'[3]5.2 Asset Age Profile'!DQ60","v":0},{"$f":"'[2]5.2 Asset Age Profile'!DR60+'[3]5.2 Asset Age Profile'!DR60","v":0},{"$f":"'[2]5.2 Asset Age Profile'!DS60+'[3]5.2 Asset Age Profile'!DS60","v":0},{"$f":"'[2]5.2 Asset Age Profile'!DT60+'[3]5.2 Asset Age Profile'!DT60","v":0},{"$f":"'[2]5.2 Asset Age Profile'!DU60+'[3]5.2 Asset Age Profile'!DU60","v":0},{"$f":"'[2]5.2 Asset Age Profile'!DV60+'[3]5.2 Asset Age Profile'!DV60","v":0},{"$f":"'[2]5.2 Asset Age Profile'!DW60+'[3]5.2 Asset Age Profile'!DW60","v":0},{"$f":"'[2]5.2 Asset Age Profile'!DX60+'[3]5.2 Asset Age Profile'!DX60","v":0},{"$f":"'[2]5.2 Asset Age Profile'!DY60+'[3]5.2 Asset Age Profile'!DY60","v":0},{"$f":"'[2]5.2 Asset Age Profile'!DZ60+'[3]5.2 Asset Age Profile'!DZ60","v":0},{"$f":"'[2]5.2 Asset Age Profile'!EA60+'[3]5.2 Asset Age Profile'!EA60","v":0},{"$f":"'[2]5.2 Asset Age Profile'!EB60+'[3]5.2 Asset Age Profile'!EB60","v":0},{"$f":"'[2]5.2 Asset Age Profile'!EC60+'[3]5.2 Asset Age Profile'!EC60","v":0},{"$f":"'[2]5.2 Asset Age Profile'!ED60+'[3]5.2 Asset Age Profile'!ED60","v":0},{"$f":"'[2]5.2 Asset Age Profile'!EE60+'[3]5.2 Asset Age Profile'!EE60","v":0},{"$f":"'[2]5.2 Asset Age Profile'!EF60+'[3]5.2 Asset Age Profile'!EF60","v":0},{"$f":"'[2]5.2 Asset Age Profile'!EG60+'[3]5.2 Asset Age Profile'!EG60","v":0},{"$f":"'[2]5.2 Asset Age Profile'!EH60+'[3]5.2 Asset Age Profile'!EH60","v":0},{"$f":"'[2]5.2 Asset Age Profile'!EI60+'[3]5.2 Asset Age Profile'!EI60","v":0},{"$f":"'[2]5.2 Asset Age Profile'!EJ60+'[3]5.2 Asset Age Profile'!EJ60","v":0}]
["ED_ASS521_00051",null,"> 11 kV  & < = 22 kV ; Subdivision  ",null,null,null,null,null,null,null,null,null,null,{"$f":"'[2]5.2 Asset Age Profile'!N61+'[3]5.2 Asset Age Profile'!N61","v":0},{"$f":"'[2]5.2 Asset Age Profile'!O61+'[3]5.2 Asset Age Profile'!O61","v":0},{"$f":"'[2]5.2 Asset Age Profile'!P61+'[3]5.2 Asset Age Profile'!P61","v":0},{"$f":"'[2]5.2 Asset Age Profile'!Q61+'[3]5.2 Asset Age Profile'!Q61","v":0},{"$f":"'[2]5.2 Asset Age Profile'!R61+'[3]5.2 Asset Age Profile'!R61","v":0},{"$f":"'[2]5.2 Asset Age Profile'!S61+'[3]5.2 Asset Age Profile'!S61","v":0},{"$f":"'[2]5.2 Asset Age Profile'!T61+'[3]5.2 Asset Age Profile'!T61","v":0},{"$f":"'[2]5.2 Asset Age Profile'!U61+'[3]5.2 Asset Age Profile'!U61","v":0},{"$f":"'[2]5.2 Asset Age Profile'!V61+'[3]5.2 Asset Age Profile'!V61","v":0},{"$f":"'[2]5.2 Asset Age Profile'!W61+'[3]5.2 Asset Age Profile'!W61","v":0},{"$f":"'[2]5.2 Asset Age Profile'!X61+'[3]5.2 Asset Age Profile'!X61","v":0},{"$f":"'[2]5.2 Asset Age Profile'!Y61+'[3]5.2 Asset Age Profile'!Y61","v":0},{"$f":"'[2]5.2 Asset Age Profile'!Z61+'[3]5.2 Asset Age Profile'!Z61","v":0},{"$f":"'[2]5.2 Asset Age Profile'!AA61+'[3]5.2 Asset Age Profile'!AA61","v":0},{"$f":"'[2]5.2 Asset Age Profile'!AB61+'[3]5.2 Asset Age Profile'!AB61","v":0},{"$f":"'[2]5.2 Asset Age Profile'!AC61+'[3]5.2 Asset Age Profile'!AC61","v":0},{"$f":"'[2]5.2 Asset Age Profile'!AD61+'[3]5.2 Asset Age Profile'!AD61","v":0},{"$f":"'[2]5.2 Asset Age Profile'!AE61+'[3]5.2 Asset Age Profile'!AE61","v":0},{"$f":"'[2]5.2 Asset Age Profile'!AF61+'[3]5.2 Asset Age Profile'!AF61","v":0},{"$f":"'[2]5.2 Asset Age Profile'!AG61+'[3]5.2 Asset Age Profile'!AG61","v":0},{"$f":"'[2]5.2 Asset Age Profile'!AH61+'[3]5.2 Asset Age Profile'!AH61","v":0},{"$f":"'[2]5.2 Asset Age Profile'!AI61+'[3]5.2 Asset Age Profile'!AI61","v":0},{"$f":"'[2]5.2 Asset Age Profile'!AJ61+'[3]5.2 Asset Age Profile'!AJ61","v":0},{"$f":"'[2]5.2 Asset Age Profile'!AK61+'[3]5.2 Asset Age Profile'!AK61","v":0},{"$f":"'[2]5.2 Asset Age Profile'!AL61+'[3]5.2 Asset Age Profile'!AL61","v":0},{"$f":"'[2]5.2 Asset Age Profile'!AM61+'[3]5.2 Asset Age Profile'!AM61","v":0},{"$f":"'[2]5.2 Asset Age Profile'!AN61+'[3]5.2 Asset Age Profile'!AN61","v":0},{"$f":"'[2]5.2 Asset Age Profile'!AO61+'[3]5.2 Asset Age Profile'!AO61","v":0},{"$f":"'[2]5.2 Asset Age Profile'!AP61+'[3]5.2 Asset Age Profile'!AP61","v":0},{"$f":"'[2]5.2 Asset Age Profile'!AQ61+'[3]5.2 Asset Age Profile'!AQ61","v":0},{"$f":"'[2]5.2 Asset Age Profile'!AR61+'[3]5.2 Asset Age Profile'!AR61","v":0},{"$f":"'[2]5.2 Asset Age Profile'!AS61+'[3]5.2 Asset Age Profile'!AS61","v":0},{"$f":"'[2]5.2 Asset Age Profile'!AT61+'[3]5.2 Asset Age Profile'!AT61","v":0},{"$f":"'[2]5.2 Asset Age Profile'!AU61+'[3]5.2 Asset Age Profile'!AU61","v":0},{"$f":"'[2]5.2 Asset Age Profile'!AV61+'[3]5.2 Asset Age Profile'!AV61","v":0},{"$f":"'[2]5.2 Asset Age Profile'!AW61+'[3]5.2 Asset Age Profile'!AW61","v":0},{"$f":"'[2]5.2 Asset Age Profile'!AX61+'[3]5.2 Asset Age Profile'!AX61","v":0},{"$f":"'[2]5.2 Asset Age Profile'!AY61+'[3]5.2 Asset Age Profile'!AY61","v":0},{"$f":"'[2]5.2 Asset Age Profile'!AZ61+'[3]5.2 Asset Age Profile'!AZ61","v":0},{"$f":"'[2]5.2 Asset Age Profile'!BA61+'[3]5.2 Asset Age Profile'!BA61","v":0},{"$f":"'[2]5.2 Asset Age Profile'!BB61+'[3]5.2 Asset Age Profile'!BB61","v":0},{"$f":"'[2]5.2 Asset Age Profile'!BC61+'[3]5.2 Asset Age Profile'!BC61","v":0},{"$f":"'[2]5.2 Asset Age Profile'!BD61+'[3]5.2 Asset Age Profile'!BD61","v":0},{"$f":"'[2]5.2 Asset Age Profile'!BE61+'[3]5.2 Asset Age Profile'!BE61","v":0},{"$f":"'[2]5.2 Asset Age Profile'!BF61+'[3]5.2 Asset Age Profile'!BF61","v":0},{"$f":"'[2]5.2 Asset Age Profile'!BG61+'[3]5.2 Asset Age Profile'!BG61","v":0},{"$f":"'[2]5.2 Asset Age Profile'!BH61+'[3]5.2 Asset Age Profile'!BH61","v":0},{"$f":"'[2]5.2 Asset Age Profile'!BI61+'[3]5.2 Asset Age Profile'!BI61","v":0},{"$f":"'[2]5.2 Asset Age Profile'!BJ61+'[3]5.2 Asset Age Profile'!BJ61","v":0},{"$f":"'[2]5.2 Asset Age Profile'!BK61+'[3]5.2 Asset Age Profile'!BK61","v":0},{"$f":"'[2]5.2 Asset Age Profile'!BL61+'[3]5.2 Asset Age Profile'!BL61","v":0},{"$f":"'[2]5.2 Asset Age Profile'!BM61+'[3]5.2 Asset Age Profile'!BM61","v":0},{"$f":"'[2]5.2 Asset Age Profile'!BN61+'[3]5.2 Asset Age Profile'!BN61","v":0},{"$f":"'[2]5.2 Asset Age Profile'!BO61+'[3]5.2 Asset Age Profile'!BO61","v":0},{"$f":"'[2]5.2 Asset Age Profile'!BP61+'[3]5.2 Asset Age Profile'!BP61","v":0},{"$f":"'[2]5.2 Asset Age Profile'!BQ61+'[3]5.2 Asset Age Profile'!BQ61","v":0},{"$f":"'[2]5.2 Asset Age Profile'!BR61+'[3]5.2 Asset Age Profile'!BR61","v":0},{"$f":"'[2]5.2 Asset Age Profile'!BS61+'[3]5.2 Asset Age Profile'!BS61","v":0},{"$f":"'[2]5.2 Asset Age Profile'!BT61+'[3]5.2 Asset Age Profile'!BT61","v":0},{"$f":"'[2]5.2 Asset Age Profile'!BU61+'[3]5.2 Asset Age Profile'!BU61","v":0},{"$f":"'[2]5.2 Asset Age Profile'!BV61+'[3]5.2 Asset Age Profile'!BV61","v":0},{"$f":"'[2]5.2 Asset Age Profile'!BW61+'[3]5.2 Asset Age Profile'!BW61","v":0},{"$f":"'[2]5.2 Asset Age Profile'!BX61+'[3]5.2 Asset Age Profile'!BX61","v":0},{"$f":"'[2]5.2 Asset Age Profile'!BY61+'[3]5.2 Asset Age Profile'!BY61","v":0},{"$f":"'[2]5.2 Asset Age Profile'!BZ61+'[3]5.2 Asset Age Profile'!BZ61","v":0},{"$f":"'[2]5.2 Asset Age Profile'!CA61+'[3]5.2 Asset Age Profile'!CA61","v":0},{"$f":"'[2]5.2 Asset Age Profile'!CB61+'[3]5.2 Asset Age Profile'!CB61","v":0},{"$f":"'[2]5.2 Asset Age Profile'!CC61+'[3]5.2 Asset Age Profile'!CC61","v":0},{"$f":"'[2]5.2 Asset Age Profile'!CD61+'[3]5.2 Asset Age Profile'!CD61","v":0},{"$f":"'[2]5.2 Asset Age Profile'!CE61+'[3]5.2 Asset Age Profile'!CE61","v":0},{"$f":"'[2]5.2 Asset Age Profile'!CF61+'[3]5.2 Asset Age Profile'!CF61","v":0},{"$f":"'[2]5.2 Asset Age Profile'!CG61+'[3]5.2 Asset Age Profile'!CG61","v":0},{"$f":"'[2]5.2 Asset Age Profile'!CH61+'[3]5.2 Asset Age Profile'!CH61","v":0},{"$f":"'[2]5.2 Asset Age Profile'!CI61+'[3]5.2 Asset Age Profile'!CI61","v":0},{"$f":"'[2]5.2 Asset Age Profile'!CJ61+'[3]5.2 Asset Age Profile'!CJ61","v":0},{"$f":"'[2]5.2 Asset Age Profile'!CK61+'[3]5.2 Asset Age Profile'!CK61","v":0},{"$f":"'[2]5.2 Asset Age Profile'!CL61+'[3]5.2 Asset Age Profile'!CL61","v":0},{"$f":"'[2]5.2 Asset Age Profile'!CM61+'[3]5.2 Asset Age Profile'!CM61","v":0},{"$f":"'[2]5.2 Asset Age Profile'!CN61+'[3]5.2 Asset Age Profile'!CN61","v":0},{"$f":"'[2]5.2 Asset Age Profile'!CO61+'[3]5.2 Asset Age Profile'!CO61","v":0},{"$f":"'[2]5.2 Asset Age Profile'!CP61+'[3]5.2 Asset Age Profile'!CP61","v":0},{"$f":"'[2]5.2 Asset Age Profile'!CQ61+'[3]5.2 Asset Age Profile'!CQ61","v":0},{"$f":"'[2]5.2 Asset Age Profile'!CR61+'[3]5.2 Asset Age Profile'!CR61","v":0},{"$f":"'[2]5.2 Asset Age Profile'!CS61+'[3]5.2 Asset Age Profile'!CS61","v":0},{"$f":"'[2]5.2 Asset Age Profile'!CT61+'[3]5.2 Asset Age Profile'!CT61","v":0},{"$f":"'[2]5.2 Asset Age Profile'!CU61+'[3]5.2 Asset Age Profile'!CU61","v":0},{"$f":"'[2]5.2 Asset Age Profile'!CV61+'[3]5.2 Asset Age Profile'!CV61","v":0},{"$f":"'[2]5.2 Asset Age Profile'!CW61+'[3]5.2 Asset Age Profile'!CW61","v":0},{"$f":"'[2]5.2 Asset Age Profile'!CX61+'[3]5.2 Asset Age Profile'!CX61","v":0},{"$f":"'[2]5.2 Asset Age Profile'!CY61+'[3]5.2 Asset Age Profile'!CY61","v":0},{"$f":"'[2]5.2 Asset Age Profile'!CZ61+'[3]5.2 Asset Age Profile'!CZ61","v":0},{"$f":"'[2]5.2 Asset Age Profile'!DA61+'[3]5.2 Asset Age Profile'!DA61","v":0},{"$f":"'[2]5.2 Asset Age Profile'!DB61+'[3]5.2 Asset Age Profile'!DB61","v":0},{"$f":"'[2]5.2 Asset Age Profile'!DC61+'[3]5.2 Asset Age Profile'!DC61","v":0},{"$f":"'[2]5.2 Asset Age Profile'!DD61+'[3]5.2 Asset Age Profile'!DD61","v":0},{"$f":"'[2]5.2 Asset Age Profile'!DE61+'[3]5.2 Asset Age Profile'!DE61","v":0},{"$f":"'[2]5.2 Asset Age Profile'!DF61+'[3]5.2 Asset Age Profile'!DF61","v":0},{"$f":"'[2]5.2 Asset Age Profile'!DG61+'[3]5.2 Asset Age Profile'!DG61","v":0},{"$f":"'[2]5.2 Asset Age Profile'!DH61+'[3]5.2 Asset Age Profile'!DH61","v":0},{"$f":"'[2]5.2 Asset Age Profile'!DI61+'[3]5.2 Asset Age Profile'!DI61","v":0},{"$f":"'[2]5.2 Asset Age Profile'!DJ61+'[3]5.2 Asset Age Profile'!DJ61","v":0},{"$f":"'[2]5.2 Asset Age Profile'!DK61+'[3]5.2 Asset Age Profile'!DK61","v":0},{"$f":"'[2]5.2 Asset Age Profile'!DL61+'[3]5.2 Asset Age Profile'!DL61","v":0},{"$f":"'[2]5.2 Asset Age Profile'!DM61+'[3]5.2 Asset Age Profile'!DM61","v":0},{"$f":"'[2]5.2 Asset Age Profile'!DN61+'[3]5.2 Asset Age Profile'!DN61","v":0},{"$f":"'[2]5.2 Asset Age Profile'!DO61+'[3]5.2 Asset Age Profile'!DO61","v":0},{"$f":"'[2]5.2 Asset Age Profile'!DP61+'[3]5.2 Asset Age Profile'!DP61","v":0},{"$f":"'[2]5.2 Asset Age Profile'!DQ61+'[3]5.2 Asset Age Profile'!DQ61","v":0},{"$f":"'[2]5.2 Asset Age Profile'!DR61+'[3]5.2 Asset Age Profile'!DR61","v":0},{"$f":"'[2]5.2 Asset Age Profile'!DS61+'[3]5.2 Asset Age Profile'!DS61","v":0},{"$f":"'[2]5.2 Asset Age Profile'!DT61+'[3]5.2 Asset Age Profile'!DT61","v":0},{"$f":"'[2]5.2 Asset Age Profile'!DU61+'[3]5.2 Asset Age Profile'!DU61","v":0},{"$f":"'[2]5.2 Asset Age Profile'!DV61+'[3]5.2 Asset Age Profile'!DV61","v":0},{"$f":"'[2]5.2 Asset Age Profile'!DW61+'[3]5.2 Asset Age Profile'!DW61","v":0},{"$f":"'[2]5.2 Asset Age Profile'!DX61+'[3]5.2 Asset Age Profile'!DX61","v":0},{"$f":"'[2]5.2 Asset Age Profile'!DY61+'[3]5.2 Asset Age Profile'!DY61","v":0},{"$f":"'[2]5.2 Asset Age Profile'!DZ61+'[3]5.2 Asset Age Profile'!DZ61","v":0},{"$f":"'[2]5.2 Asset Age Profile'!EA61+'[3]5.2 Asset Age Profile'!EA61","v":0},{"$f":"'[2]5.2 Asset Age Profile'!EB61+'[3]5.2 Asset Age Profile'!EB61","v":0},{"$f":"'[2]5.2 Asset Age Profile'!EC61+'[3]5.2 Asset Age Profile'!EC61","v":0},{"$f":"'[2]5.2 Asset Age Profile'!ED61+'[3]5.2 Asset Age Profile'!ED61","v":0},{"$f":"'[2]5.2 Asset Age Profile'!EE61+'[3]5.2 Asset Age Profile'!EE61","v":0},{"$f":"'[2]5.2 Asset Age Profile'!EF61+'[3]5.2 Asset Age Profile'!EF61","v":0},{"$f":"'[2]5.2 Asset Age Profile'!EG61+'[3]5.2 Asset Age Profile'!EG61","v":0},{"$f":"'[2]5.2 Asset Age Profile'!EH61+'[3]5.2 Asset Age Profile'!EH61","v":0},{"$f":"'[2]5.2 Asset Age Profile'!EI61+'[3]5.2 Asset Age Profile'!EI61","v":0},{"$f":"'[2]5.2 Asset Age Profile'!EJ61+'[3]5.2 Asset Age Profile'!EJ61","v":0}]
["ED_ASS521_00052",null,"> 22 kV & < = 33 kV ; Commercial & Industrial  ",null,null,null,null,null,null,null,null,null,null,{"$f":"'[2]5.2 Asset Age Profile'!N62+'[3]5.2 Asset Age Profile'!N62","v":0},{"$f":"'[2]5.2 Asset Age Profile'!O62+'[3]5.2 Asset Age Profile'!O62","v":0},{"$f":"'[2]5.2 Asset Age Profile'!P62+'[3]5.2 Asset Age Profile'!P62","v":0},{"$f":"'[2]5.2 Asset Age Profile'!Q62+'[3]5.2 Asset Age Profile'!Q62","v":0},{"$f":"'[2]5.2 Asset Age Profile'!R62+'[3]5.2 Asset Age Profile'!R62","v":0},{"$f":"'[2]5.2 Asset Age Profile'!S62+'[3]5.2 Asset Age Profile'!S62","v":0},{"$f":"'[2]5.2 Asset Age Profile'!T62+'[3]5.2 Asset Age Profile'!T62","v":0},{"$f":"'[2]5.2 Asset Age Profile'!U62+'[3]5.2 Asset Age Profile'!U62","v":0},{"$f":"'[2]5.2 Asset Age Profile'!V62+'[3]5.2 Asset Age Profile'!V62","v":0},{"$f":"'[2]5.2 Asset Age Profile'!W62+'[3]5.2 Asset Age Profile'!W62","v":0},{"$f":"'[2]5.2 Asset Age Profile'!X62+'[3]5.2 Asset Age Profile'!X62","v":0},{"$f":"'[2]5.2 Asset Age Profile'!Y62+'[3]5.2 Asset Age Profile'!Y62","v":0},{"$f":"'[2]5.2 Asset Age Profile'!Z62+'[3]5.2 Asset Age Profile'!Z62","v":0},{"$f":"'[2]5.2 Asset Age Profile'!AA62+'[3]5.2 Asset Age Profile'!AA62","v":0},{"$f":"'[2]5.2 Asset Age Profile'!AB62+'[3]5.2 Asset Age Profile'!AB62","v":0},{"$f":"'[2]5.2 Asset Age Profile'!AC62+'[3]5.2 Asset Age Profile'!AC62","v":0},{"$f":"'[2]5.2 Asset Age Profile'!AD62+'[3]5.2 Asset Age Profile'!AD62","v":0},{"$f":"'[2]5.2 Asset Age Profile'!AE62+'[3]5.2 Asset Age Profile'!AE62","v":0},{"$f":"'[2]5.2 Asset Age Profile'!AF62+'[3]5.2 Asset Age Profile'!AF62","v":0},{"$f":"'[2]5.2 Asset Age Profile'!AG62+'[3]5.2 Asset Age Profile'!AG62","v":0},{"$f":"'[2]5.2 Asset Age Profile'!AH62+'[3]5.2 Asset Age Profile'!AH62","v":0},{"$f":"'[2]5.2 Asset Age Profile'!AI62+'[3]5.2 Asset Age Profile'!AI62","v":0},{"$f":"'[2]5.2 Asset Age Profile'!AJ62+'[3]5.2 Asset Age Profile'!AJ62","v":0},{"$f":"'[2]5.2 Asset Age Profile'!AK62+'[3]5.2 Asset Age Profile'!AK62","v":0},{"$f":"'[2]5.2 Asset Age Profile'!AL62+'[3]5.2 Asset Age Profile'!AL62","v":0},{"$f":"'[2]5.2 Asset Age Profile'!AM62+'[3]5.2 Asset Age Profile'!AM62","v":0},{"$f":"'[2]5.2 Asset Age Profile'!AN62+'[3]5.2 Asset Age Profile'!AN62","v":0},{"$f":"'[2]5.2 Asset Age Profile'!AO62+'[3]5.2 Asset Age Profile'!AO62","v":0},{"$f":"'[2]5.2 Asset Age Profile'!AP62+'[3]5.2 Asset Age Profile'!AP62","v":0},{"$f":"'[2]5.2 Asset Age Profile'!AQ62+'[3]5.2 Asset Age Profile'!AQ62","v":0},{"$f":"'[2]5.2 Asset Age Profile'!AR62+'[3]5.2 Asset Age Profile'!AR62","v":0},{"$f":"'[2]5.2 Asset Age Profile'!AS62+'[3]5.2 Asset Age Profile'!AS62","v":0},{"$f":"'[2]5.2 Asset Age Profile'!AT62+'[3]5.2 Asset Age Profile'!AT62","v":0},{"$f":"'[2]5.2 Asset Age Profile'!AU62+'[3]5.2 Asset Age Profile'!AU62","v":0},{"$f":"'[2]5.2 Asset Age Profile'!AV62+'[3]5.2 Asset Age Profile'!AV62","v":0},{"$f":"'[2]5.2 Asset Age Profile'!AW62+'[3]5.2 Asset Age Profile'!AW62","v":0},{"$f":"'[2]5.2 Asset Age Profile'!AX62+'[3]5.2 Asset Age Profile'!AX62","v":0},{"$f":"'[2]5.2 Asset Age Profile'!AY62+'[3]5.2 Asset Age Profile'!AY62","v":0},{"$f":"'[2]5.2 Asset Age Profile'!AZ62+'[3]5.2 Asset Age Profile'!AZ62","v":0},{"$f":"'[2]5.2 Asset Age Profile'!BA62+'[3]5.2 Asset Age Profile'!BA62","v":0},{"$f":"'[2]5.2 Asset Age Profile'!BB62+'[3]5.2 Asset Age Profile'!BB62","v":0},{"$f":"'[2]5.2 Asset Age Profile'!BC62+'[3]5.2 Asset Age Profile'!BC62","v":0},{"$f":"'[2]5.2 Asset Age Profile'!BD62+'[3]5.2 Asset Age Profile'!BD62","v":0},{"$f":"'[2]5.2 Asset Age Profile'!BE62+'[3]5.2 Asset Age Profile'!BE62","v":0},{"$f":"'[2]5.2 Asset Age Profile'!BF62+'[3]5.2 Asset Age Profile'!BF62","v":0},{"$f":"'[2]5.2 Asset Age Profile'!BG62+'[3]5.2 Asset Age Profile'!BG62","v":0},{"$f":"'[2]5.2 Asset Age Profile'!BH62+'[3]5.2 Asset Age Profile'!BH62","v":0},{"$f":"'[2]5.2 Asset Age Profile'!BI62+'[3]5.2 Asset Age Profile'!BI62","v":0},{"$f":"'[2]5.2 Asset Age Profile'!BJ62+'[3]5.2 Asset Age Profile'!BJ62","v":0},{"$f":"'[2]5.2 Asset Age Profile'!BK62+'[3]5.2 Asset Age Profile'!BK62","v":0},{"$f":"'[2]5.2 Asset Age Profile'!BL62+'[3]5.2 Asset Age Profile'!BL62","v":0},{"$f":"'[2]5.2 Asset Age Profile'!BM62+'[3]5.2 Asset Age Profile'!BM62","v":0},{"$f":"'[2]5.2 Asset Age Profile'!BN62+'[3]5.2 Asset Age Profile'!BN62","v":0},{"$f":"'[2]5.2 Asset Age Profile'!BO62+'[3]5.2 Asset Age Profile'!BO62","v":0},{"$f":"'[2]5.2 Asset Age Profile'!BP62+'[3]5.2 Asset Age Profile'!BP62","v":0},{"$f":"'[2]5.2 Asset Age Profile'!BQ62+'[3]5.2 Asset Age Profile'!BQ62","v":0},{"$f":"'[2]5.2 Asset Age Profile'!BR62+'[3]5.2 Asset Age Profile'!BR62","v":0},{"$f":"'[2]5.2 Asset Age Profile'!BS62+'[3]5.2 Asset Age Profile'!BS62","v":0},{"$f":"'[2]5.2 Asset Age Profile'!BT62+'[3]5.2 Asset Age Profile'!BT62","v":0},{"$f":"'[2]5.2 Asset Age Profile'!BU62+'[3]5.2 Asset Age Profile'!BU62","v":0},{"$f":"'[2]5.2 Asset Age Profile'!BV62+'[3]5.2 Asset Age Profile'!BV62","v":0},{"$f":"'[2]5.2 Asset Age Profile'!BW62+'[3]5.2 Asset Age Profile'!BW62","v":0},{"$f":"'[2]5.2 Asset Age Profile'!BX62+'[3]5.2 Asset Age Profile'!BX62","v":0},{"$f":"'[2]5.2 Asset Age Profile'!BY62+'[3]5.2 Asset Age Profile'!BY62","v":0},{"$f":"'[2]5.2 Asset Age Profile'!BZ62+'[3]5.2 Asset Age Profile'!BZ62","v":0},{"$f":"'[2]5.2 Asset Age Profile'!CA62+'[3]5.2 Asset Age Profile'!CA62","v":0},{"$f":"'[2]5.2 Asset Age Profile'!CB62+'[3]5.2 Asset Age Profile'!CB62","v":0},{"$f":"'[2]5.2 Asset Age Profile'!CC62+'[3]5.2 Asset Age Profile'!CC62","v":0},{"$f":"'[2]5.2 Asset Age Profile'!CD62+'[3]5.2 Asset Age Profile'!CD62","v":0},{"$f":"'[2]5.2 Asset Age Profile'!CE62+'[3]5.2 Asset Age Profile'!CE62","v":0},{"$f":"'[2]5.2 Asset Age Profile'!CF62+'[3]5.2 Asset Age Profile'!CF62","v":0},{"$f":"'[2]5.2 Asset Age Profile'!CG62+'[3]5.2 Asset Age Profile'!CG62","v":0},{"$f":"'[2]5.2 Asset Age Profile'!CH62+'[3]5.2 Asset Age Profile'!CH62","v":0},{"$f":"'[2]5.2 Asset Age Profile'!CI62+'[3]5.2 Asset Age Profile'!CI62","v":0},{"$f":"'[2]5.2 Asset Age Profile'!CJ62+'[3]5.2 Asset Age Profile'!CJ62","v":0},{"$f":"'[2]5.2 Asset Age Profile'!CK62+'[3]5.2 Asset Age Profile'!CK62","v":0},{"$f":"'[2]5.2 Asset Age Profile'!CL62+'[3]5.2 Asset Age Profile'!CL62","v":0},{"$f":"'[2]5.2 Asset Age Profile'!CM62+'[3]5.2 Asset Age Profile'!CM62","v":0},{"$f":"'[2]5.2 Asset Age Profile'!CN62+'[3]5.2 Asset Age Profile'!CN62","v":0},{"$f":"'[2]5.2 Asset Age Profile'!CO62+'[3]5.2 Asset Age Profile'!CO62","v":0},{"$f":"'[2]5.2 Asset Age Profile'!CP62+'[3]5.2 Asset Age Profile'!CP62","v":0},{"$f":"'[2]5.2 Asset Age Profile'!CQ62+'[3]5.2 Asset Age Profile'!CQ62","v":0},{"$f":"'[2]5.2 Asset Age Profile'!CR62+'[3]5.2 Asset Age Profile'!CR62","v":0},{"$f":"'[2]5.2 Asset Age Profile'!CS62+'[3]5.2 Asset Age Profile'!CS62","v":0},{"$f":"'[2]5.2 Asset Age Profile'!CT62+'[3]5.2 Asset Age Profile'!CT62","v":0},{"$f":"'[2]5.2 Asset Age Profile'!CU62+'[3]5.2 Asset Age Profile'!CU62","v":0},{"$f":"'[2]5.2 Asset Age Profile'!CV62+'[3]5.2 Asset Age Profile'!CV62","v":0},{"$f":"'[2]5.2 Asset Age Profile'!CW62+'[3]5.2 Asset Age Profile'!CW62","v":0},{"$f":"'[2]5.2 Asset Age Profile'!CX62+'[3]5.2 Asset Age Profile'!CX62","v":0},{"$f":"'[2]5.2 Asset Age Profile'!CY62+'[3]5.2 Asset Age Profile'!CY62","v":0},{"$f":"'[2]5.2 Asset Age Profile'!CZ62+'[3]5.2 Asset Age Profile'!CZ62","v":0},{"$f":"'[2]5.2 Asset Age Profile'!DA62+'[3]5.2 Asset Age Profile'!DA62","v":0},{"$f":"'[2]5.2 Asset Age Profile'!DB62+'[3]5.2 Asset Age Profile'!DB62","v":0},{"$f":"'[2]5.2 Asset Age Profile'!DC62+'[3]5.2 Asset Age Profile'!DC62","v":0},{"$f":"'[2]5.2 Asset Age Profile'!DD62+'[3]5.2 Asset Age Profile'!DD62","v":0},{"$f":"'[2]5.2 Asset Age Profile'!DE62+'[3]5.2 Asset Age Profile'!DE62","v":0},{"$f":"'[2]5.2 Asset Age Profile'!DF62+'[3]5.2 Asset Age Profile'!DF62","v":0},{"$f":"'[2]5.2 Asset Age Profile'!DG62+'[3]5.2 Asset Age Profile'!DG62","v":0},{"$f":"'[2]5.2 Asset Age Profile'!DH62+'[3]5.2 Asset Age Profile'!DH62","v":0},{"$f":"'[2]5.2 Asset Age Profile'!DI62+'[3]5.2 Asset Age Profile'!DI62","v":0},{"$f":"'[2]5.2 Asset Age Profile'!DJ62+'[3]5.2 Asset Age Profile'!DJ62","v":0},{"$f":"'[2]5.2 Asset Age Profile'!DK62+'[3]5.2 Asset Age Profile'!DK62","v":0},{"$f":"'[2]5.2 Asset Age Profile'!DL62+'[3]5.2 Asset Age Profile'!DL62","v":0},{"$f":"'[2]5.2 Asset Age Profile'!DM62+'[3]5.2 Asset Age Profile'!DM62","v":0},{"$f":"'[2]5.2 Asset Age Profile'!DN62+'[3]5.2 Asset Age Profile'!DN62","v":0},{"$f":"'[2]5.2 Asset Age Profile'!DO62+'[3]5.2 Asset Age Profile'!DO62","v":0},{"$f":"'[2]5.2 Asset Age Profile'!DP62+'[3]5.2 Asset Age Profile'!DP62","v":0},{"$f":"'[2]5.2 Asset Age Profile'!DQ62+'[3]5.2 Asset Age Profile'!DQ62","v":0},{"$f":"'[2]5.2 Asset Age Profile'!DR62+'[3]5.2 Asset Age Profile'!DR62","v":0},{"$f":"'[2]5.2 Asset Age Profile'!DS62+'[3]5.2 Asset Age Profile'!DS62","v":0},{"$f":"'[2]5.2 Asset Age Profile'!DT62+'[3]5.2 Asset Age Profile'!DT62","v":0},{"$f":"'[2]5.2 Asset Age Profile'!DU62+'[3]5.2 Asset Age Profile'!DU62","v":0},{"$f":"'[2]5.2 Asset Age Profile'!DV62+'[3]5.2 Asset Age Profile'!DV62","v":0},{"$f":"'[2]5.2 Asset Age Profile'!DW62+'[3]5.2 Asset Age Profile'!DW62","v":0},{"$f":"'[2]5.2 Asset Age Profile'!DX62+'[3]5.2 Asset Age Profile'!DX62","v":0},{"$f":"'[2]5.2 Asset Age Profile'!DY62+'[3]5.2 Asset Age Profile'!DY62","v":0},{"$f":"'[2]5.2 Asset Age Profile'!DZ62+'[3]5.2 Asset Age Profile'!DZ62","v":0},{"$f":"'[2]5.2 Asset Age Profile'!EA62+'[3]5.2 Asset Age Profile'!EA62","v":0},{"$f":"'[2]5.2 Asset Age Profile'!EB62+'[3]5.2 Asset Age Profile'!EB62","v":0},{"$f":"'[2]5.2 Asset Age Profile'!EC62+'[3]5.2 Asset Age Profile'!EC62","v":0},{"$f":"'[2]5.2 Asset Age Profile'!ED62+'[3]5.2 Asset Age Profile'!ED62","v":0},{"$f":"'[2]5.2 Asset Age Profile'!EE62+'[3]5.2 Asset Age Profile'!EE62","v":0},{"$f":"'[2]5.2 Asset Age Profile'!EF62+'[3]5.2 Asset Age Profile'!EF62","v":0},{"$f":"'[2]5.2 Asset Age Profile'!EG62+'[3]5.2 Asset Age Profile'!EG62","v":0},{"$f":"'[2]5.2 Asset Age Profile'!EH62+'[3]5.2 Asset Age Profile'!EH62","v":0},{"$f":"'[2]5.2 Asset Age Profile'!EI62+'[3]5.2 Asset Age Profile'!EI62","v":0},{"$f":"'[2]5.2 Asset Age Profile'!EJ62+'[3]5.2 Asset Age Profile'!EJ62","v":0}]
["ED_ASS521_00053",null,"> 22 kV & < = 33 kV ; Subdivision  ",null,null,null,null,null,null,null,null,null,null,{"$f":"'[2]5.2 Asset Age Profile'!N63+'[3]5.2 Asset Age Profile'!N63","v":0},{"$f":"'[2]5.2 Asset Age Profile'!O63+'[3]5.2 Asset Age Profile'!O63","v":0},{"$f":"'[2]5.2 Asset Age Profile'!P63+'[3]5.2 Asset Age Profile'!P63","v":0},{"$f":"'[2]5.2 Asset Age Profile'!Q63+'[3]5.2 Asset Age Profile'!Q63","v":0},{"$f":"'[2]5.2 Asset Age Profile'!R63+'[3]5.2 Asset Age Profile'!R63","v":0},{"$f":"'[2]5.2 Asset Age Profile'!S63+'[3]5.2 Asset Age Profile'!S63","v":0},{"$f":"'[2]5.2 Asset Age Profile'!T63+'[3]5.2 Asset Age Profile'!T63","v":0},{"$f":"'[2]5.2 Asset Age Profile'!U63+'[3]5.2 Asset Age Profile'!U63","v":0},{"$f":"'[2]5.2 Asset Age Profile'!V63+'[3]5.2 Asset Age Profile'!V63","v":0},{"$f":"'[2]5.2 Asset Age Profile'!W63+'[3]5.2 Asset Age Profile'!W63","v":0},{"$f":"'[2]5.2 Asset Age Profile'!X63+'[3]5.2 Asset Age Profile'!X63","v":0},{"$f":"'[2]5.2 Asset Age Profile'!Y63+'[3]5.2 Asset Age Profile'!Y63","v":0},{"$f":"'[2]5.2 Asset Age Profile'!Z63+'[3]5.2 Asset Age Profile'!Z63","v":0},{"$f":"'[2]5.2 Asset Age Profile'!AA63+'[3]5.2 Asset Age Profile'!AA63","v":0},{"$f":"'[2]5.2 Asset Age Profile'!AB63+'[3]5.2 Asset Age Profile'!AB63","v":0},{"$f":"'[2]5.2 Asset Age Profile'!AC63+'[3]5.2 Asset Age Profile'!AC63","v":0},{"$f":"'[2]5.2 Asset Age Profile'!AD63+'[3]5.2 Asset Age Profile'!AD63","v":0},{"$f":"'[2]5.2 Asset Age Profile'!AE63+'[3]5.2 Asset Age Profile'!AE63","v":0},{"$f":"'[2]5.2 Asset Age Profile'!AF63+'[3]5.2 Asset Age Profile'!AF63","v":0},{"$f":"'[2]5.2 Asset Age Profile'!AG63+'[3]5.2 Asset Age Profile'!AG63","v":0},{"$f":"'[2]5.2 Asset Age Profile'!AH63+'[3]5.2 Asset Age Profile'!AH63","v":0},{"$f":"'[2]5.2 Asset Age Profile'!AI63+'[3]5.2 Asset Age Profile'!AI63","v":0},{"$f":"'[2]5.2 Asset Age Profile'!AJ63+'[3]5.2 Asset Age Profile'!AJ63","v":0},{"$f":"'[2]5.2 Asset Age Profile'!AK63+'[3]5.2 Asset Age Profile'!AK63","v":0},{"$f":"'[2]5.2 Asset Age Profile'!AL63+'[3]5.2 Asset Age Profile'!AL63","v":0},{"$f":"'[2]5.2 Asset Age Profile'!AM63+'[3]5.2 Asset Age Profile'!AM63","v":0},{"$f":"'[2]5.2 Asset Age Profile'!AN63+'[3]5.2 Asset Age Profile'!AN63","v":0},{"$f":"'[2]5.2 Asset Age Profile'!AO63+'[3]5.2 Asset Age Profile'!AO63","v":0},{"$f":"'[2]5.2 Asset Age Profile'!AP63+'[3]5.2 Asset Age Profile'!AP63","v":0},{"$f":"'[2]5.2 Asset Age Profile'!AQ63+'[3]5.2 Asset Age Profile'!AQ63","v":0},{"$f":"'[2]5.2 Asset Age Profile'!AR63+'[3]5.2 Asset Age Profile'!AR63","v":0},{"$f":"'[2]5.2 Asset Age Profile'!AS63+'[3]5.2 Asset Age Profile'!AS63","v":0},{"$f":"'[2]5.2 Asset Age Profile'!AT63+'[3]5.2 Asset Age Profile'!AT63","v":0},{"$f":"'[2]5.2 Asset Age Profile'!AU63+'[3]5.2 Asset Age Profile'!AU63","v":0},{"$f":"'[2]5.2 Asset Age Profile'!AV63+'[3]5.2 Asset Age Profile'!AV63","v":0},{"$f":"'[2]5.2 Asset Age Profile'!AW63+'[3]5.2 Asset Age Profile'!AW63","v":0},{"$f":"'[2]5.2 Asset Age Profile'!AX63+'[3]5.2 Asset Age Profile'!AX63","v":0},{"$f":"'[2]5.2 Asset Age Profile'!AY63+'[3]5.2 Asset Age Profile'!AY63","v":0},{"$f":"'[2]5.2 Asset Age Profile'!AZ63+'[3]5.2 Asset Age Profile'!AZ63","v":0},{"$f":"'[2]5.2 Asset Age Profile'!BA63+'[3]5.2 Asset Age Profile'!BA63","v":0},{"$f":"'[2]5.2 Asset Age Profile'!BB63+'[3]5.2 Asset Age Profile'!BB63","v":0},{"$f":"'[2]5.2 Asset Age Profile'!BC63+'[3]5.2 Asset Age Profile'!BC63","v":0},{"$f":"'[2]5.2 Asset Age Profile'!BD63+'[3]5.2 Asset Age Profile'!BD63","v":0},{"$f":"'[2]5.2 Asset Age Profile'!BE63+'[3]5.2 Asset Age Profile'!BE63","v":0},{"$f":"'[2]5.2 Asset Age Profile'!BF63+'[3]5.2 Asset Age Profile'!BF63","v":0},{"$f":"'[2]5.2 Asset Age Profile'!BG63+'[3]5.2 Asset Age Profile'!BG63","v":0},{"$f":"'[2]5.2 Asset Age Profile'!BH63+'[3]5.2 Asset Age Profile'!BH63","v":0},{"$f":"'[2]5.2 Asset Age Profile'!BI63+'[3]5.2 Asset Age Profile'!BI63","v":0},{"$f":"'[2]5.2 Asset Age Profile'!BJ63+'[3]5.2 Asset Age Profile'!BJ63","v":0},{"$f":"'[2]5.2 Asset Age Profile'!BK63+'[3]5.2 Asset Age Profile'!BK63","v":0},{"$f":"'[2]5.2 Asset Age Profile'!BL63+'[3]5.2 Asset Age Profile'!BL63","v":0},{"$f":"'[2]5.2 Asset Age Profile'!BM63+'[3]5.2 Asset Age Profile'!BM63","v":0},{"$f":"'[2]5.2 Asset Age Profile'!BN63+'[3]5.2 Asset Age Profile'!BN63","v":0},{"$f":"'[2]5.2 Asset Age Profile'!BO63+'[3]5.2 Asset Age Profile'!BO63","v":0},{"$f":"'[2]5.2 Asset Age Profile'!BP63+'[3]5.2 Asset Age Profile'!BP63","v":0},{"$f":"'[2]5.2 Asset Age Profile'!BQ63+'[3]5.2 Asset Age Profile'!BQ63","v":0},{"$f":"'[2]5.2 Asset Age Profile'!BR63+'[3]5.2 Asset Age Profile'!BR63","v":0},{"$f":"'[2]5.2 Asset Age Profile'!BS63+'[3]5.2 Asset Age Profile'!BS63","v":0},{"$f":"'[2]5.2 Asset Age Profile'!BT63+'[3]5.2 Asset Age Profile'!BT63","v":0},{"$f":"'[2]5.2 Asset Age Profile'!BU63+'[3]5.2 Asset Age Profile'!BU63","v":0},{"$f":"'[2]5.2 Asset Age Profile'!BV63+'[3]5.2 Asset Age Profile'!BV63","v":0},{"$f":"'[2]5.2 Asset Age Profile'!BW63+'[3]5.2 Asset Age Profile'!BW63","v":0},{"$f":"'[2]5.2 Asset Age Profile'!BX63+'[3]5.2 Asset Age Profile'!BX63","v":0},{"$f":"'[2]5.2 Asset Age Profile'!BY63+'[3]5.2 Asset Age Profile'!BY63","v":0},{"$f":"'[2]5.2 Asset Age Profile'!BZ63+'[3]5.2 Asset Age Profile'!BZ63","v":0},{"$f":"'[2]5.2 Asset Age Profile'!CA63+'[3]5.2 Asset Age Profile'!CA63","v":0},{"$f":"'[2]5.2 Asset Age Profile'!CB63+'[3]5.2 Asset Age Profile'!CB63","v":0},{"$f":"'[2]5.2 Asset Age Profile'!CC63+'[3]5.2 Asset Age Profile'!CC63","v":0},{"$f":"'[2]5.2 Asset Age Profile'!CD63+'[3]5.2 Asset Age Profile'!CD63","v":0},{"$f":"'[2]5.2 Asset Age Profile'!CE63+'[3]5.2 Asset Age Profile'!CE63","v":0},{"$f":"'[2]5.2 Asset Age Profile'!CF63+'[3]5.2 Asset Age Profile'!CF63","v":0},{"$f":"'[2]5.2 Asset Age Profile'!CG63+'[3]5.2 Asset Age Profile'!CG63","v":0},{"$f":"'[2]5.2 Asset Age Profile'!CH63+'[3]5.2 Asset Age Profile'!CH63","v":0},{"$f":"'[2]5.2 Asset Age Profile'!CI63+'[3]5.2 Asset Age Profile'!CI63","v":0},{"$f":"'[2]5.2 Asset Age Profile'!CJ63+'[3]5.2 Asset Age Profile'!CJ63","v":0},{"$f":"'[2]5.2 Asset Age Profile'!CK63+'[3]5.2 Asset Age Profile'!CK63","v":0},{"$f":"'[2]5.2 Asset Age Profile'!CL63+'[3]5.2 Asset Age Profile'!CL63","v":0},{"$f":"'[2]5.2 Asset Age Profile'!CM63+'[3]5.2 Asset Age Profile'!CM63","v":0},{"$f":"'[2]5.2 Asset Age Profile'!CN63+'[3]5.2 Asset Age Profile'!CN63","v":0},{"$f":"'[2]5.2 Asset Age Profile'!CO63+'[3]5.2 Asset Age Profile'!CO63","v":0},{"$f":"'[2]5.2 Asset Age Profile'!CP63+'[3]5.2 Asset Age Profile'!CP63","v":0},{"$f":"'[2]5.2 Asset Age Profile'!CQ63+'[3]5.2 Asset Age Profile'!CQ63","v":0},{"$f":"'[2]5.2 Asset Age Profile'!CR63+'[3]5.2 Asset Age Profile'!CR63","v":0},{"$f":"'[2]5.2 Asset Age Profile'!CS63+'[3]5.2 Asset Age Profile'!CS63","v":0},{"$f":"'[2]5.2 Asset Age Profile'!CT63+'[3]5.2 Asset Age Profile'!CT63","v":0},{"$f":"'[2]5.2 Asset Age Profile'!CU63+'[3]5.2 Asset Age Profile'!CU63","v":0},{"$f":"'[2]5.2 Asset Age Profile'!CV63+'[3]5.2 Asset Age Profile'!CV63","v":0},{"$f":"'[2]5.2 Asset Age Profile'!CW63+'[3]5.2 Asset Age Profile'!CW63","v":0},{"$f":"'[2]5.2 Asset Age Profile'!CX63+'[3]5.2 Asset Age Profile'!CX63","v":0},{"$f":"'[2]5.2 Asset Age Profile'!CY63+'[3]5.2 Asset Age Profile'!CY63","v":0},{"$f":"'[2]5.2 Asset Age Profile'!CZ63+'[3]5.2 Asset Age Profile'!CZ63","v":0},{"$f":"'[2]5.2 Asset Age Profile'!DA63+'[3]5.2 Asset Age Profile'!DA63","v":0},{"$f":"'[2]5.2 Asset Age Profile'!DB63+'[3]5.2 Asset Age Profile'!DB63","v":0},{"$f":"'[2]5.2 Asset Age Profile'!DC63+'[3]5.2 Asset Age Profile'!DC63","v":0},{"$f":"'[2]5.2 Asset Age Profile'!DD63+'[3]5.2 Asset Age Profile'!DD63","v":0},{"$f":"'[2]5.2 Asset Age Profile'!DE63+'[3]5.2 Asset Age Profile'!DE63","v":0},{"$f":"'[2]5.2 Asset Age Profile'!DF63+'[3]5.2 Asset Age Profile'!DF63","v":0},{"$f":"'[2]5.2 Asset Age Profile'!DG63+'[3]5.2 Asset Age Profile'!DG63","v":0},{"$f":"'[2]5.2 Asset Age Profile'!DH63+'[3]5.2 Asset Age Profile'!DH63","v":0},{"$f":"'[2]5.2 Asset Age Profile'!DI63+'[3]5.2 Asset Age Profile'!DI63","v":0},{"$f":"'[2]5.2 Asset Age Profile'!DJ63+'[3]5.2 Asset Age Profile'!DJ63","v":0},{"$f":"'[2]5.2 Asset Age Profile'!DK63+'[3]5.2 Asset Age Profile'!DK63","v":0},{"$f":"'[2]5.2 Asset Age Profile'!DL63+'[3]5.2 Asset Age Profile'!DL63","v":0},{"$f":"'[2]5.2 Asset Age Profile'!DM63+'[3]5.2 Asset Age Profile'!DM63","v":0},{"$f":"'[2]5.2 Asset Age Profile'!DN63+'[3]5.2 Asset Age Profile'!DN63","v":0},{"$f":"'[2]5.2 Asset Age Profile'!DO63+'[3]5.2 Asset Age Profile'!DO63","v":0},{"$f":"'[2]5.2 Asset Age Profile'!DP63+'[3]5.2 Asset Age Profile'!DP63","v":0},{"$f":"'[2]5.2 Asset Age Profile'!DQ63+'[3]5.2 Asset Age Profile'!DQ63","v":0},{"$f":"'[2]5.2 Asset Age Profile'!DR63+'[3]5.2 Asset Age Profile'!DR63","v":0},{"$f":"'[2]5.2 Asset Age Profile'!DS63+'[3]5.2 Asset Age Profile'!DS63","v":0},{"$f":"'[2]5.2 Asset Age Profile'!DT63+'[3]5.2 Asset Age Profile'!DT63","v":0},{"$f":"'[2]5.2 Asset Age Profile'!DU63+'[3]5.2 Asset Age Profile'!DU63","v":0},{"$f":"'[2]5.2 Asset Age Profile'!DV63+'[3]5.2 Asset Age Profile'!DV63","v":0},{"$f":"'[2]5.2 Asset Age Profile'!DW63+'[3]5.2 Asset Age Profile'!DW63","v":0},{"$f":"'[2]5.2 Asset Age Profile'!DX63+'[3]5.2 Asset Age Profile'!DX63","v":0},{"$f":"'[2]5.2 Asset Age Profile'!DY63+'[3]5.2 Asset Age Profile'!DY63","v":0},{"$f":"'[2]5.2 Asset Age Profile'!DZ63+'[3]5.2 Asset Age Profile'!DZ63","v":0},{"$f":"'[2]5.2 Asset Age Profile'!EA63+'[3]5.2 Asset Age Profile'!EA63","v":0},{"$f":"'[2]5.2 Asset Age Profile'!EB63+'[3]5.2 Asset Age Profile'!EB63","v":0},{"$f":"'[2]5.2 Asset Age Profile'!EC63+'[3]5.2 Asset Age Profile'!EC63","v":0},{"$f":"'[2]5.2 Asset Age Profile'!ED63+'[3]5.2 Asset Age Profile'!ED63","v":0},{"$f":"'[2]5.2 Asset Age Profile'!EE63+'[3]5.2 Asset Age Profile'!EE63","v":0},{"$f":"'[2]5.2 Asset Age Profile'!EF63+'[3]5.2 Asset Age Profile'!EF63","v":0},{"$f":"'[2]5.2 Asset Age Profile'!EG63+'[3]5.2 Asset Age Profile'!EG63","v":0},{"$f":"'[2]5.2 Asset Age Profile'!EH63+'[3]5.2 Asset Age Profile'!EH63","v":0},{"$f":"'[2]5.2 Asset Age Profile'!EI63+'[3]5.2 Asset Age Profile'!EI63","v":0},{"$f":"'[2]5.2 Asset Age Profile'!EJ63+'[3]5.2 Asset Age Profile'!EJ63","v":0}]
["ED_ASS521_00054",null,"> 33 kV & < = 66 kV ; Commercial & Industrial  ",null,null,null,null,null,null,null,null,null,null,{"$f":"'[2]5.2 Asset Age Profile'!N64+'[3]5.2 Asset Age Profile'!N64","v":0},{"$f":"'[2]5.2 Asset Age Profile'!O64+'[3]5.2 Asset Age Profile'!O64","v":0},{"$f":"'[2]5.2 Asset Age Profile'!P64+'[3]5.2 Asset Age Profile'!P64","v":0},{"$f":"'[2]5.2 Asset Age Profile'!Q64+'[3]5.2 Asset Age Profile'!Q64","v":0},{"$f":"'[2]5.2 Asset Age Profile'!R64+'[3]5.2 Asset Age Profile'!R64","v":0},{"$f":"'[2]5.2 Asset Age Profile'!S64+'[3]5.2 Asset Age Profile'!S64","v":0},{"$f":"'[2]5.2 Asset Age Profile'!T64+'[3]5.2 Asset Age Profile'!T64","v":0},{"$f":"'[2]5.2 Asset Age Profile'!U64+'[3]5.2 Asset Age Profile'!U64","v":0},{"$f":"'[2]5.2 Asset Age Profile'!V64+'[3]5.2 Asset Age Profile'!V64","v":0},{"$f":"'[2]5.2 Asset Age Profile'!W64+'[3]5.2 Asset Age Profile'!W64","v":0},{"$f":"'[2]5.2 Asset Age Profile'!X64+'[3]5.2 Asset Age Profile'!X64","v":0},{"$f":"'[2]5.2 Asset Age Profile'!Y64+'[3]5.2 Asset Age Profile'!Y64","v":0},{"$f":"'[2]5.2 Asset Age Profile'!Z64+'[3]5.2 Asset Age Profile'!Z64","v":0},{"$f":"'[2]5.2 Asset Age Profile'!AA64+'[3]5.2 Asset Age Profile'!AA64","v":0},{"$f":"'[2]5.2 Asset Age Profile'!AB64+'[3]5.2 Asset Age Profile'!AB64","v":0},{"$f":"'[2]5.2 Asset Age Profile'!AC64+'[3]5.2 Asset Age Profile'!AC64","v":0},{"$f":"'[2]5.2 Asset Age Profile'!AD64+'[3]5.2 Asset Age Profile'!AD64","v":0},{"$f":"'[2]5.2 Asset Age Profile'!AE64+'[3]5.2 Asset Age Profile'!AE64","v":0},{"$f":"'[2]5.2 Asset Age Profile'!AF64+'[3]5.2 Asset Age Profile'!AF64","v":0},{"$f":"'[2]5.2 Asset Age Profile'!AG64+'[3]5.2 Asset Age Profile'!AG64","v":0},{"$f":"'[2]5.2 Asset Age Profile'!AH64+'[3]5.2 Asset Age Profile'!AH64","v":0},{"$f":"'[2]5.2 Asset Age Profile'!AI64+'[3]5.2 Asset Age Profile'!AI64","v":0},{"$f":"'[2]5.2 Asset Age Profile'!AJ64+'[3]5.2 Asset Age Profile'!AJ64","v":0},{"$f":"'[2]5.2 Asset Age Profile'!AK64+'[3]5.2 Asset Age Profile'!AK64","v":0},{"$f":"'[2]5.2 Asset Age Profile'!AL64+'[3]5.2 Asset Age Profile'!AL64","v":0},{"$f":"'[2]5.2 Asset Age Profile'!AM64+'[3]5.2 Asset Age Profile'!AM64","v":0},{"$f":"'[2]5.2 Asset Age Profile'!AN64+'[3]5.2 Asset Age Profile'!AN64","v":0},{"$f":"'[2]5.2 Asset Age Profile'!AO64+'[3]5.2 Asset Age Profile'!AO64","v":0},{"$f":"'[2]5.2 Asset Age Profile'!AP64+'[3]5.2 Asset Age Profile'!AP64","v":0},{"$f":"'[2]5.2 Asset Age Profile'!AQ64+'[3]5.2 Asset Age Profile'!AQ64","v":0},{"$f":"'[2]5.2 Asset Age Profile'!AR64+'[3]5.2 Asset Age Profile'!AR64","v":0},{"$f":"'[2]5.2 Asset Age Profile'!AS64+'[3]5.2 Asset Age Profile'!AS64","v":0},{"$f":"'[2]5.2 Asset Age Profile'!AT64+'[3]5.2 Asset Age Profile'!AT64","v":0},{"$f":"'[2]5.2 Asset Age Profile'!AU64+'[3]5.2 Asset Age Profile'!AU64","v":0},{"$f":"'[2]5.2 Asset Age Profile'!AV64+'[3]5.2 Asset Age Profile'!AV64","v":0},{"$f":"'[2]5.2 Asset Age Profile'!AW64+'[3]5.2 Asset Age Profile'!AW64","v":0},{"$f":"'[2]5.2 Asset Age Profile'!AX64+'[3]5.2 Asset Age Profile'!AX64","v":0},{"$f":"'[2]5.2 Asset Age Profile'!AY64+'[3]5.2 Asset Age Profile'!AY64","v":0},{"$f":"'[2]5.2 Asset Age Profile'!AZ64+'[3]5.2 Asset Age Profile'!AZ64","v":0},{"$f":"'[2]5.2 Asset Age Profile'!BA64+'[3]5.2 Asset Age Profile'!BA64","v":0},{"$f":"'[2]5.2 Asset Age Profile'!BB64+'[3]5.2 Asset Age Profile'!BB64","v":0},{"$f":"'[2]5.2 Asset Age Profile'!BC64+'[3]5.2 Asset Age Profile'!BC64","v":0},{"$f":"'[2]5.2 Asset Age Profile'!BD64+'[3]5.2 Asset Age Profile'!BD64","v":0},{"$f":"'[2]5.2 Asset Age Profile'!BE64+'[3]5.2 Asset Age Profile'!BE64","v":0},{"$f":"'[2]5.2 Asset Age Profile'!BF64+'[3]5.2 Asset Age Profile'!BF64","v":0},{"$f":"'[2]5.2 Asset Age Profile'!BG64+'[3]5.2 Asset Age Profile'!BG64","v":0},{"$f":"'[2]5.2 Asset Age Profile'!BH64+'[3]5.2 Asset Age Profile'!BH64","v":0},{"$f":"'[2]5.2 Asset Age Profile'!BI64+'[3]5.2 Asset Age Profile'!BI64","v":0},{"$f":"'[2]5.2 Asset Age Profile'!BJ64+'[3]5.2 Asset Age Profile'!BJ64","v":0},{"$f":"'[2]5.2 Asset Age Profile'!BK64+'[3]5.2 Asset Age Profile'!BK64","v":0},{"$f":"'[2]5.2 Asset Age Profile'!BL64+'[3]5.2 Asset Age Profile'!BL64","v":0},{"$f":"'[2]5.2 Asset Age Profile'!BM64+'[3]5.2 Asset Age Profile'!BM64","v":0},{"$f":"'[2]5.2 Asset Age Profile'!BN64+'[3]5.2 Asset Age Profile'!BN64","v":0},{"$f":"'[2]5.2 Asset Age Profile'!BO64+'[3]5.2 Asset Age Profile'!BO64","v":0},{"$f":"'[2]5.2 Asset Age Profile'!BP64+'[3]5.2 Asset Age Profile'!BP64","v":0},{"$f":"'[2]5.2 Asset Age Profile'!BQ64+'[3]5.2 Asset Age Profile'!BQ64","v":0},{"$f":"'[2]5.2 Asset Age Profile'!BR64+'[3]5.2 Asset Age Profile'!BR64","v":0},{"$f":"'[2]5.2 Asset Age Profile'!BS64+'[3]5.2 Asset Age Profile'!BS64","v":0},{"$f":"'[2]5.2 Asset Age Profile'!BT64+'[3]5.2 Asset Age Profile'!BT64","v":0},{"$f":"'[2]5.2 Asset Age Profile'!BU64+'[3]5.2 Asset Age Profile'!BU64","v":0},{"$f":"'[2]5.2 Asset Age Profile'!BV64+'[3]5.2 Asset Age Profile'!BV64","v":0},{"$f":"'[2]5.2 Asset Age Profile'!BW64+'[3]5.2 Asset Age Profile'!BW64","v":0},{"$f":"'[2]5.2 Asset Age Profile'!BX64+'[3]5.2 Asset Age Profile'!BX64","v":0},{"$f":"'[2]5.2 Asset Age Profile'!BY64+'[3]5.2 Asset Age Profile'!BY64","v":0},{"$f":"'[2]5.2 Asset Age Profile'!BZ64+'[3]5.2 Asset Age Profile'!BZ64","v":0},{"$f":"'[2]5.2 Asset Age Profile'!CA64+'[3]5.2 Asset Age Profile'!CA64","v":0},{"$f":"'[2]5.2 Asset Age Profile'!CB64+'[3]5.2 Asset Age Profile'!CB64","v":0},{"$f":"'[2]5.2 Asset Age Profile'!CC64+'[3]5.2 Asset Age Profile'!CC64","v":0},{"$f":"'[2]5.2 Asset Age Profile'!CD64+'[3]5.2 Asset Age Profile'!CD64","v":0},{"$f":"'[2]5.2 Asset Age Profile'!CE64+'[3]5.2 Asset Age Profile'!CE64","v":0},{"$f":"'[2]5.2 Asset Age Profile'!CF64+'[3]5.2 Asset Age Profile'!CF64","v":0},{"$f":"'[2]5.2 Asset Age Profile'!CG64+'[3]5.2 Asset Age Profile'!CG64","v":0},{"$f":"'[2]5.2 Asset Age Profile'!CH64+'[3]5.2 Asset Age Profile'!CH64","v":0},{"$f":"'[2]5.2 Asset Age Profile'!CI64+'[3]5.2 Asset Age Profile'!CI64","v":0},{"$f":"'[2]5.2 Asset Age Profile'!CJ64+'[3]5.2 Asset Age Profile'!CJ64","v":0},{"$f":"'[2]5.2 Asset Age Profile'!CK64+'[3]5.2 Asset Age Profile'!CK64","v":0},{"$f":"'[2]5.2 Asset Age Profile'!CL64+'[3]5.2 Asset Age Profile'!CL64","v":0},{"$f":"'[2]5.2 Asset Age Profile'!CM64+'[3]5.2 Asset Age Profile'!CM64","v":0},{"$f":"'[2]5.2 Asset Age Profile'!CN64+'[3]5.2 Asset Age Profile'!CN64","v":0},{"$f":"'[2]5.2 Asset Age Profile'!CO64+'[3]5.2 Asset Age Profile'!CO64","v":0},{"$f":"'[2]5.2 Asset Age Profile'!CP64+'[3]5.2 Asset Age Profile'!CP64","v":0},{"$f":"'[2]5.2 Asset Age Profile'!CQ64+'[3]5.2 Asset Age Profile'!CQ64","v":0},{"$f":"'[2]5.2 Asset Age Profile'!CR64+'[3]5.2 Asset Age Profile'!CR64","v":0},{"$f":"'[2]5.2 Asset Age Profile'!CS64+'[3]5.2 Asset Age Profile'!CS64","v":0},{"$f":"'[2]5.2 Asset Age Profile'!CT64+'[3]5.2 Asset Age Profile'!CT64","v":0},{"$f":"'[2]5.2 Asset Age Profile'!CU64+'[3]5.2 Asset Age Profile'!CU64","v":0},{"$f":"'[2]5.2 Asset Age Profile'!CV64+'[3]5.2 Asset Age Profile'!CV64","v":0},{"$f":"'[2]5.2 Asset Age Profile'!CW64+'[3]5.2 Asset Age Profile'!CW64","v":0},{"$f":"'[2]5.2 Asset Age Profile'!CX64+'[3]5.2 Asset Age Profile'!CX64","v":0},{"$f":"'[2]5.2 Asset Age Profile'!CY64+'[3]5.2 Asset Age Profile'!CY64","v":0},{"$f":"'[2]5.2 Asset Age Profile'!CZ64+'[3]5.2 Asset Age Profile'!CZ64","v":0},{"$f":"'[2]5.2 Asset Age Profile'!DA64+'[3]5.2 Asset Age Profile'!DA64","v":0},{"$f":"'[2]5.2 Asset Age Profile'!DB64+'[3]5.2 Asset Age Profile'!DB64","v":0},{"$f":"'[2]5.2 Asset Age Profile'!DC64+'[3]5.2 Asset Age Profile'!DC64","v":0},{"$f":"'[2]5.2 Asset Age Profile'!DD64+'[3]5.2 Asset Age Profile'!DD64","v":0},{"$f":"'[2]5.2 Asset Age Profile'!DE64+'[3]5.2 Asset Age Profile'!DE64","v":0},{"$f":"'[2]5.2 Asset Age Profile'!DF64+'[3]5.2 Asset Age Profile'!DF64","v":0},{"$f":"'[2]5.2 Asset Age Profile'!DG64+'[3]5.2 Asset Age Profile'!DG64","v":0},{"$f":"'[2]5.2 Asset Age Profile'!DH64+'[3]5.2 Asset Age Profile'!DH64","v":0},{"$f":"'[2]5.2 Asset Age Profile'!DI64+'[3]5.2 Asset Age Profile'!DI64","v":0},{"$f":"'[2]5.2 Asset Age Profile'!DJ64+'[3]5.2 Asset Age Profile'!DJ64","v":0},{"$f":"'[2]5.2 Asset Age Profile'!DK64+'[3]5.2 Asset Age Profile'!DK64","v":0},{"$f":"'[2]5.2 Asset Age Profile'!DL64+'[3]5.2 Asset Age Profile'!DL64","v":0},{"$f":"'[2]5.2 Asset Age Profile'!DM64+'[3]5.2 Asset Age Profile'!DM64","v":0},{"$f":"'[2]5.2 Asset Age Profile'!DN64+'[3]5.2 Asset Age Profile'!DN64","v":0},{"$f":"'[2]5.2 Asset Age Profile'!DO64+'[3]5.2 Asset Age Profile'!DO64","v":0},{"$f":"'[2]5.2 Asset Age Profile'!DP64+'[3]5.2 Asset Age Profile'!DP64","v":0},{"$f":"'[2]5.2 Asset Age Profile'!DQ64+'[3]5.2 Asset Age Profile'!DQ64","v":0},{"$f":"'[2]5.2 Asset Age Profile'!DR64+'[3]5.2 Asset Age Profile'!DR64","v":0},{"$f":"'[2]5.2 Asset Age Profile'!DS64+'[3]5.2 Asset Age Profile'!DS64","v":0},{"$f":"'[2]5.2 Asset Age Profile'!DT64+'[3]5.2 Asset Age Profile'!DT64","v":0},{"$f":"'[2]5.2 Asset Age Profile'!DU64+'[3]5.2 Asset Age Profile'!DU64","v":0},{"$f":"'[2]5.2 Asset Age Profile'!DV64+'[3]5.2 Asset Age Profile'!DV64","v":0},{"$f":"'[2]5.2 Asset Age Profile'!DW64+'[3]5.2 Asset Age Profile'!DW64","v":0},{"$f":"'[2]5.2 Asset Age Profile'!DX64+'[3]5.2 Asset Age Profile'!DX64","v":0},{"$f":"'[2]5.2 Asset Age Profile'!DY64+'[3]5.2 Asset Age Profile'!DY64","v":0},{"$f":"'[2]5.2 Asset Age Profile'!DZ64+'[3]5.2 Asset Age Profile'!DZ64","v":0},{"$f":"'[2]5.2 Asset Age Profile'!EA64+'[3]5.2 Asset Age Profile'!EA64","v":0},{"$f":"'[2]5.2 Asset Age Profile'!EB64+'[3]5.2 Asset Age Profile'!EB64","v":0},{"$f":"'[2]5.2 Asset Age Profile'!EC64+'[3]5.2 Asset Age Profile'!EC64","v":0},{"$f":"'[2]5.2 Asset Age Profile'!ED64+'[3]5.2 Asset Age Profile'!ED64","v":0},{"$f":"'[2]5.2 Asset Age Profile'!EE64+'[3]5.2 Asset Age Profile'!EE64","v":0},{"$f":"'[2]5.2 Asset Age Profile'!EF64+'[3]5.2 Asset Age Profile'!EF64","v":0},{"$f":"'[2]5.2 Asset Age Profile'!EG64+'[3]5.2 Asset Age Profile'!EG64","v":0},{"$f":"'[2]5.2 Asset Age Profile'!EH64+'[3]5.2 Asset Age Profile'!EH64","v":0},{"$f":"'[2]5.2 Asset Age Profile'!EI64+'[3]5.2 Asset Age Profile'!EI64","v":0},{"$f":"'[2]5.2 Asset Age Profile'!EJ64+'[3]5.2 Asset Age Profile'!EJ64","v":0}]
["ED_ASS521_00055",null,"> 33 kV & < = 66 kV ; Subdivision  ",null,null,null,null,null,null,null,null,null,null,{"$f":"'[2]5.2 Asset Age Profile'!N65+'[3]5.2 Asset Age Profile'!N65","v":0},{"$f":"'[2]5.2 Asset Age Profile'!O65+'[3]5.2 Asset Age Profile'!O65","v":0},{"$f":"'[2]5.2 Asset Age Profile'!P65+'[3]5.2 Asset Age Profile'!P65","v":0},{"$f":"'[2]5.2 Asset Age Profile'!Q65+'[3]5.2 Asset Age Profile'!Q65","v":0},{"$f":"'[2]5.2 Asset Age Profile'!R65+'[3]5.2 Asset Age Profile'!R65","v":0},{"$f":"'[2]5.2 Asset Age Profile'!S65+'[3]5.2 Asset Age Profile'!S65","v":0},{"$f":"'[2]5.2 Asset Age Profile'!T65+'[3]5.2 Asset Age Profile'!T65","v":0},{"$f":"'[2]5.2 Asset Age Profile'!U65+'[3]5.2 Asset Age Profile'!U65","v":0},{"$f":"'[2]5.2 Asset Age Profile'!V65+'[3]5.2 Asset Age Profile'!V65","v":0},{"$f":"'[2]5.2 Asset Age Profile'!W65+'[3]5.2 Asset Age Profile'!W65","v":0},{"$f":"'[2]5.2 Asset Age Profile'!X65+'[3]5.2 Asset Age Profile'!X65","v":0},{"$f":"'[2]5.2 Asset Age Profile'!Y65+'[3]5.2 Asset Age Profile'!Y65","v":0},{"$f":"'[2]5.2 Asset Age Profile'!Z65+'[3]5.2 Asset Age Profile'!Z65","v":0},{"$f":"'[2]5.2 Asset Age Profile'!AA65+'[3]5.2 Asset Age Profile'!AA65","v":0},{"$f":"'[2]5.2 Asset Age Profile'!AB65+'[3]5.2 Asset Age Profile'!AB65","v":0},{"$f":"'[2]5.2 Asset Age Profile'!AC65+'[3]5.2 Asset Age Profile'!AC65","v":0},{"$f":"'[2]5.2 Asset Age Profile'!AD65+'[3]5.2 Asset Age Profile'!AD65","v":0},{"$f":"'[2]5.2 Asset Age Profile'!AE65+'[3]5.2 Asset Age Profile'!AE65","v":0},{"$f":"'[2]5.2 Asset Age Profile'!AF65+'[3]5.2 Asset Age Profile'!AF65","v":0},{"$f":"'[2]5.2 Asset Age Profile'!AG65+'[3]5.2 Asset Age Profile'!AG65","v":0},{"$f":"'[2]5.2 Asset Age Profile'!AH65+'[3]5.2 Asset Age Profile'!AH65","v":0},{"$f":"'[2]5.2 Asset Age Profile'!AI65+'[3]5.2 Asset Age Profile'!AI65","v":0},{"$f":"'[2]5.2 Asset Age Profile'!AJ65+'[3]5.2 Asset Age Profile'!AJ65","v":0},{"$f":"'[2]5.2 Asset Age Profile'!AK65+'[3]5.2 Asset Age Profile'!AK65","v":0},{"$f":"'[2]5.2 Asset Age Profile'!AL65+'[3]5.2 Asset Age Profile'!AL65","v":0},{"$f":"'[2]5.2 Asset Age Profile'!AM65+'[3]5.2 Asset Age Profile'!AM65","v":0},{"$f":"'[2]5.2 Asset Age Profile'!AN65+'[3]5.2 Asset Age Profile'!AN65","v":0},{"$f":"'[2]5.2 Asset Age Profile'!AO65+'[3]5.2 Asset Age Profile'!AO65","v":0},{"$f":"'[2]5.2 Asset Age Profile'!AP65+'[3]5.2 Asset Age Profile'!AP65","v":0},{"$f":"'[2]5.2 Asset Age Profile'!AQ65+'[3]5.2 Asset Age Profile'!AQ65","v":0},{"$f":"'[2]5.2 Asset Age Profile'!AR65+'[3]5.2 Asset Age Profile'!AR65","v":0},{"$f":"'[2]5.2 Asset Age Profile'!AS65+'[3]5.2 Asset Age Profile'!AS65","v":0},{"$f":"'[2]5.2 Asset Age Profile'!AT65+'[3]5.2 Asset Age Profile'!AT65","v":0},{"$f":"'[2]5.2 Asset Age Profile'!AU65+'[3]5.2 Asset Age Profile'!AU65","v":0},{"$f":"'[2]5.2 Asset Age Profile'!AV65+'[3]5.2 Asset Age Profile'!AV65","v":0},{"$f":"'[2]5.2 Asset Age Profile'!AW65+'[3]5.2 Asset Age Profile'!AW65","v":0},{"$f":"'[2]5.2 Asset Age Profile'!AX65+'[3]5.2 Asset Age Profile'!AX65","v":0},{"$f":"'[2]5.2 Asset Age Profile'!AY65+'[3]5.2 Asset Age Profile'!AY65","v":0},{"$f":"'[2]5.2 Asset Age Profile'!AZ65+'[3]5.2 Asset Age Profile'!AZ65","v":0},{"$f":"'[2]5.2 Asset Age Profile'!BA65+'[3]5.2 Asset Age Profile'!BA65","v":0},{"$f":"'[2]5.2 Asset Age Profile'!BB65+'[3]5.2 Asset Age Profile'!BB65","v":0},{"$f":"'[2]5.2 Asset Age Profile'!BC65+'[3]5.2 Asset Age Profile'!BC65","v":0},{"$f":"'[2]5.2 Asset Age Profile'!BD65+'[3]5.2 Asset Age Profile'!BD65","v":0},{"$f":"'[2]5.2 Asset Age Profile'!BE65+'[3]5.2 Asset Age Profile'!BE65","v":0},{"$f":"'[2]5.2 Asset Age Profile'!BF65+'[3]5.2 Asset Age Profile'!BF65","v":0},{"$f":"'[2]5.2 Asset Age Profile'!BG65+'[3]5.2 Asset Age Profile'!BG65","v":0},{"$f":"'[2]5.2 Asset Age Profile'!BH65+'[3]5.2 Asset Age Profile'!BH65","v":0},{"$f":"'[2]5.2 Asset Age Profile'!BI65+'[3]5.2 Asset Age Profile'!BI65","v":0},{"$f":"'[2]5.2 Asset Age Profile'!BJ65+'[3]5.2 Asset Age Profile'!BJ65","v":0},{"$f":"'[2]5.2 Asset Age Profile'!BK65+'[3]5.2 Asset Age Profile'!BK65","v":0},{"$f":"'[2]5.2 Asset Age Profile'!BL65+'[3]5.2 Asset Age Profile'!BL65","v":0},{"$f":"'[2]5.2 Asset Age Profile'!BM65+'[3]5.2 Asset Age Profile'!BM65","v":0},{"$f":"'[2]5.2 Asset Age Profile'!BN65+'[3]5.2 Asset Age Profile'!BN65","v":0},{"$f":"'[2]5.2 Asset Age Profile'!BO65+'[3]5.2 Asset Age Profile'!BO65","v":0},{"$f":"'[2]5.2 Asset Age Profile'!BP65+'[3]5.2 Asset Age Profile'!BP65","v":0},{"$f":"'[2]5.2 Asset Age Profile'!BQ65+'[3]5.2 Asset Age Profile'!BQ65","v":0},{"$f":"'[2]5.2 Asset Age Profile'!BR65+'[3]5.2 Asset Age Profile'!BR65","v":0},{"$f":"'[2]5.2 Asset Age Profile'!BS65+'[3]5.2 Asset Age Profile'!BS65","v":0},{"$f":"'[2]5.2 Asset Age Profile'!BT65+'[3]5.2 Asset Age Profile'!BT65","v":0},{"$f":"'[2]5.2 Asset Age Profile'!BU65+'[3]5.2 Asset Age Profile'!BU65","v":0},{"$f":"'[2]5.2 Asset Age Profile'!BV65+'[3]5.2 Asset Age Profile'!BV65","v":0},{"$f":"'[2]5.2 Asset Age Profile'!BW65+'[3]5.2 Asset Age Profile'!BW65","v":0},{"$f":"'[2]5.2 Asset Age Profile'!BX65+'[3]5.2 Asset Age Profile'!BX65","v":0},{"$f":"'[2]5.2 Asset Age Profile'!BY65+'[3]5.2 Asset Age Profile'!BY65","v":0},{"$f":"'[2]5.2 Asset Age Profile'!BZ65+'[3]5.2 Asset Age Profile'!BZ65","v":0},{"$f":"'[2]5.2 Asset Age Profile'!CA65+'[3]5.2 Asset Age Profile'!CA65","v":0},{"$f":"'[2]5.2 Asset Age Profile'!CB65+'[3]5.2 Asset Age Profile'!CB65","v":0},{"$f":"'[2]5.2 Asset Age Profile'!CC65+'[3]5.2 Asset Age Profile'!CC65","v":0},{"$f":"'[2]5.2 Asset Age Profile'!CD65+'[3]5.2 Asset Age Profile'!CD65","v":0},{"$f":"'[2]5.2 Asset Age Profile'!CE65+'[3]5.2 Asset Age Profile'!CE65","v":0},{"$f":"'[2]5.2 Asset Age Profile'!CF65+'[3]5.2 Asset Age Profile'!CF65","v":0},{"$f":"'[2]5.2 Asset Age Profile'!CG65+'[3]5.2 Asset Age Profile'!CG65","v":0},{"$f":"'[2]5.2 Asset Age Profile'!CH65+'[3]5.2 Asset Age Profile'!CH65","v":0},{"$f":"'[2]5.2 Asset Age Profile'!CI65+'[3]5.2 Asset Age Profile'!CI65","v":0},{"$f":"'[2]5.2 Asset Age Profile'!CJ65+'[3]5.2 Asset Age Profile'!CJ65","v":0},{"$f":"'[2]5.2 Asset Age Profile'!CK65+'[3]5.2 Asset Age Profile'!CK65","v":0},{"$f":"'[2]5.2 Asset Age Profile'!CL65+'[3]5.2 Asset Age Profile'!CL65","v":0},{"$f":"'[2]5.2 Asset Age Profile'!CM65+'[3]5.2 Asset Age Profile'!CM65","v":0},{"$f":"'[2]5.2 Asset Age Profile'!CN65+'[3]5.2 Asset Age Profile'!CN65","v":0},{"$f":"'[2]5.2 Asset Age Profile'!CO65+'[3]5.2 Asset Age Profile'!CO65","v":0},{"$f":"'[2]5.2 Asset Age Profile'!CP65+'[3]5.2 Asset Age Profile'!CP65","v":0},{"$f":"'[2]5.2 Asset Age Profile'!CQ65+'[3]5.2 Asset Age Profile'!CQ65","v":0},{"$f":"'[2]5.2 Asset Age Profile'!CR65+'[3]5.2 Asset Age Profile'!CR65","v":0},{"$f":"'[2]5.2 Asset Age Profile'!CS65+'[3]5.2 Asset Age Profile'!CS65","v":0},{"$f":"'[2]5.2 Asset Age Profile'!CT65+'[3]5.2 Asset Age Profile'!CT65","v":0},{"$f":"'[2]5.2 Asset Age Profile'!CU65+'[3]5.2 Asset Age Profile'!CU65","v":0},{"$f":"'[2]5.2 Asset Age Profile'!CV65+'[3]5.2 Asset Age Profile'!CV65","v":0},{"$f":"'[2]5.2 Asset Age Profile'!CW65+'[3]5.2 Asset Age Profile'!CW65","v":0},{"$f":"'[2]5.2 Asset Age Profile'!CX65+'[3]5.2 Asset Age Profile'!CX65","v":0},{"$f":"'[2]5.2 Asset Age Profile'!CY65+'[3]5.2 Asset Age Profile'!CY65","v":0},{"$f":"'[2]5.2 Asset Age Profile'!CZ65+'[3]5.2 Asset Age Profile'!CZ65","v":0},{"$f":"'[2]5.2 Asset Age Profile'!DA65+'[3]5.2 Asset Age Profile'!DA65","v":0},{"$f":"'[2]5.2 Asset Age Profile'!DB65+'[3]5.2 Asset Age Profile'!DB65","v":0},{"$f":"'[2]5.2 Asset Age Profile'!DC65+'[3]5.2 Asset Age Profile'!DC65","v":0},{"$f":"'[2]5.2 Asset Age Profile'!DD65+'[3]5.2 Asset Age Profile'!DD65","v":0},{"$f":"'[2]5.2 Asset Age Profile'!DE65+'[3]5.2 Asset Age Profile'!DE65","v":0},{"$f":"'[2]5.2 Asset Age Profile'!DF65+'[3]5.2 Asset Age Profile'!DF65","v":0},{"$f":"'[2]5.2 Asset Age Profile'!DG65+'[3]5.2 Asset Age Profile'!DG65","v":0},{"$f":"'[2]5.2 Asset Age Profile'!DH65+'[3]5.2 Asset Age Profile'!DH65","v":0},{"$f":"'[2]5.2 Asset Age Profile'!DI65+'[3]5.2 Asset Age Profile'!DI65","v":0},{"$f":"'[2]5.2 Asset Age Profile'!DJ65+'[3]5.2 Asset Age Profile'!DJ65","v":0},{"$f":"'[2]5.2 Asset Age Profile'!DK65+'[3]5.2 Asset Age Profile'!DK65","v":0},{"$f":"'[2]5.2 Asset Age Profile'!DL65+'[3]5.2 Asset Age Profile'!DL65","v":0},{"$f":"'[2]5.2 Asset Age Profile'!DM65+'[3]5.2 Asset Age Profile'!DM65","v":0},{"$f":"'[2]5.2 Asset Age Profile'!DN65+'[3]5.2 Asset Age Profile'!DN65","v":0},{"$f":"'[2]5.2 Asset Age Profile'!DO65+'[3]5.2 Asset Age Profile'!DO65","v":0},{"$f":"'[2]5.2 Asset Age Profile'!DP65+'[3]5.2 Asset Age Profile'!DP65","v":0},{"$f":"'[2]5.2 Asset Age Profile'!DQ65+'[3]5.2 Asset Age Profile'!DQ65","v":0},{"$f":"'[2]5.2 Asset Age Profile'!DR65+'[3]5.2 Asset Age Profile'!DR65","v":0},{"$f":"'[2]5.2 Asset Age Profile'!DS65+'[3]5.2 Asset Age Profile'!DS65","v":0},{"$f":"'[2]5.2 Asset Age Profile'!DT65+'[3]5.2 Asset Age Profile'!DT65","v":0},{"$f":"'[2]5.2 Asset Age Profile'!DU65+'[3]5.2 Asset Age Profile'!DU65","v":0},{"$f":"'[2]5.2 Asset Age Profile'!DV65+'[3]5.2 Asset Age Profile'!DV65","v":0},{"$f":"'[2]5.2 Asset Age Profile'!DW65+'[3]5.2 Asset Age Profile'!DW65","v":0},{"$f":"'[2]5.2 Asset Age Profile'!DX65+'[3]5.2 Asset Age Profile'!DX65","v":0},{"$f":"'[2]5.2 Asset Age Profile'!DY65+'[3]5.2 Asset Age Profile'!DY65","v":0},{"$f":"'[2]5.2 Asset Age Profile'!DZ65+'[3]5.2 Asset Age Profile'!DZ65","v":0},{"$f":"'[2]5.2 Asset Age Profile'!EA65+'[3]5.2 Asset Age Profile'!EA65","v":0},{"$f":"'[2]5.2 Asset Age Profile'!EB65+'[3]5.2 Asset Age Profile'!EB65","v":0},{"$f":"'[2]5.2 Asset Age Profile'!EC65+'[3]5.2 Asset Age Profile'!EC65","v":0},{"$f":"'[2]5.2 Asset Age Profile'!ED65+'[3]5.2 Asset Age Profile'!ED65","v":0},{"$f":"'[2]5.2 Asset Age Profile'!EE65+'[3]5.2 Asset Age Profile'!EE65","v":0},{"$f":"'[2]5.2 Asset Age Profile'!EF65+'[3]5.2 Asset Age Profile'!EF65","v":0},{"$f":"'[2]5.2 Asset Age Profile'!EG65+'[3]5.2 Asset Age Profile'!EG65","v":0},{"$f":"'[2]5.2 Asset Age Profile'!EH65+'[3]5.2 Asset Age Profile'!EH65","v":0},{"$f":"'[2]5.2 Asset Age Profile'!EI65+'[3]5.2 Asset Age Profile'!EI65","v":0},{"$f":"'[2]5.2 Asset Age Profile'!EJ65+'[3]5.2 Asset Age Profile'!EJ65","v":0}]
["ED_ASS521_00056",null,"> 66 kV & < = 132 kV ; Commercial & Industrial  ",null,null,null,null,null,null,null,null,null,null,{"$f":"'[2]5.2 Asset Age Profile'!N66+'[3]5.2 Asset Age Profile'!N66","v":0},{"$f":"'[2]5.2 Asset Age Profile'!O66+'[3]5.2 Asset Age Profile'!O66","v":0},{"$f":"'[2]5.2 Asset Age Profile'!P66+'[3]5.2 Asset Age Profile'!P66","v":0},{"$f":"'[2]5.2 Asset Age Profile'!Q66+'[3]5.2 Asset Age Profile'!Q66","v":0},{"$f":"'[2]5.2 Asset Age Profile'!R66+'[3]5.2 Asset Age Profile'!R66","v":0},{"$f":"'[2]5.2 Asset Age Profile'!S66+'[3]5.2 Asset Age Profile'!S66","v":0},{"$f":"'[2]5.2 Asset Age Profile'!T66+'[3]5.2 Asset Age Profile'!T66","v":0},{"$f":"'[2]5.2 Asset Age Profile'!U66+'[3]5.2 Asset Age Profile'!U66","v":0},{"$f":"'[2]5.2 Asset Age Profile'!V66+'[3]5.2 Asset Age Profile'!V66","v":0},{"$f":"'[2]5.2 Asset Age Profile'!W66+'[3]5.2 Asset Age Profile'!W66","v":0},{"$f":"'[2]5.2 Asset Age Profile'!X66+'[3]5.2 Asset Age Profile'!X66","v":0},{"$f":"'[2]5.2 Asset Age Profile'!Y66+'[3]5.2 Asset Age Profile'!Y66","v":0},{"$f":"'[2]5.2 Asset Age Profile'!Z66+'[3]5.2 Asset Age Profile'!Z66","v":0},{"$f":"'[2]5.2 Asset Age Profile'!AA66+'[3]5.2 Asset Age Profile'!AA66","v":0},{"$f":"'[2]5.2 Asset Age Profile'!AB66+'[3]5.2 Asset Age Profile'!AB66","v":0},{"$f":"'[2]5.2 Asset Age Profile'!AC66+'[3]5.2 Asset Age Profile'!AC66","v":0},{"$f":"'[2]5.2 Asset Age Profile'!AD66+'[3]5.2 Asset Age Profile'!AD66","v":0},{"$f":"'[2]5.2 Asset Age Profile'!AE66+'[3]5.2 Asset Age Profile'!AE66","v":0},{"$f":"'[2]5.2 Asset Age Profile'!AF66+'[3]5.2 Asset Age Profile'!AF66","v":0},{"$f":"'[2]5.2 Asset Age Profile'!AG66+'[3]5.2 Asset Age Profile'!AG66","v":0},{"$f":"'[2]5.2 Asset Age Profile'!AH66+'[3]5.2 Asset Age Profile'!AH66","v":0},{"$f":"'[2]5.2 Asset Age Profile'!AI66+'[3]5.2 Asset Age Profile'!AI66","v":0},{"$f":"'[2]5.2 Asset Age Profile'!AJ66+'[3]5.2 Asset Age Profile'!AJ66","v":0},{"$f":"'[2]5.2 Asset Age Profile'!AK66+'[3]5.2 Asset Age Profile'!AK66","v":0},{"$f":"'[2]5.2 Asset Age Profile'!AL66+'[3]5.2 Asset Age Profile'!AL66","v":0},{"$f":"'[2]5.2 Asset Age Profile'!AM66+'[3]5.2 Asset Age Profile'!AM66","v":0},{"$f":"'[2]5.2 Asset Age Profile'!AN66+'[3]5.2 Asset Age Profile'!AN66","v":0},{"$f":"'[2]5.2 Asset Age Profile'!AO66+'[3]5.2 Asset Age Profile'!AO66","v":0},{"$f":"'[2]5.2 Asset Age Profile'!AP66+'[3]5.2 Asset Age Profile'!AP66","v":0},{"$f":"'[2]5.2 Asset Age Profile'!AQ66+'[3]5.2 Asset Age Profile'!AQ66","v":0},{"$f":"'[2]5.2 Asset Age Profile'!AR66+'[3]5.2 Asset Age Profile'!AR66","v":0},{"$f":"'[2]5.2 Asset Age Profile'!AS66+'[3]5.2 Asset Age Profile'!AS66","v":0},{"$f":"'[2]5.2 Asset Age Profile'!AT66+'[3]5.2 Asset Age Profile'!AT66","v":0},{"$f":"'[2]5.2 Asset Age Profile'!AU66+'[3]5.2 Asset Age Profile'!AU66","v":0},{"$f":"'[2]5.2 Asset Age Profile'!AV66+'[3]5.2 Asset Age Profile'!AV66","v":0},{"$f":"'[2]5.2 Asset Age Profile'!AW66+'[3]5.2 Asset Age Profile'!AW66","v":0},{"$f":"'[2]5.2 Asset Age Profile'!AX66+'[3]5.2 Asset Age Profile'!AX66","v":0},{"$f":"'[2]5.2 Asset Age Profile'!AY66+'[3]5.2 Asset Age Profile'!AY66","v":0},{"$f":"'[2]5.2 Asset Age Profile'!AZ66+'[3]5.2 Asset Age Profile'!AZ66","v":0},{"$f":"'[2]5.2 Asset Age Profile'!BA66+'[3]5.2 Asset Age Profile'!BA66","v":0},{"$f":"'[2]5.2 Asset Age Profile'!BB66+'[3]5.2 Asset Age Profile'!BB66","v":0},{"$f":"'[2]5.2 Asset Age Profile'!BC66+'[3]5.2 Asset Age Profile'!BC66","v":0},{"$f":"'[2]5.2 Asset Age Profile'!BD66+'[3]5.2 Asset Age Profile'!BD66","v":0},{"$f":"'[2]5.2 Asset Age Profile'!BE66+'[3]5.2 Asset Age Profile'!BE66","v":0},{"$f":"'[2]5.2 Asset Age Profile'!BF66+'[3]5.2 Asset Age Profile'!BF66","v":0},{"$f":"'[2]5.2 Asset Age Profile'!BG66+'[3]5.2 Asset Age Profile'!BG66","v":0},{"$f":"'[2]5.2 Asset Age Profile'!BH66+'[3]5.2 Asset Age Profile'!BH66","v":0},{"$f":"'[2]5.2 Asset Age Profile'!BI66+'[3]5.2 Asset Age Profile'!BI66","v":0},{"$f":"'[2]5.2 Asset Age Profile'!BJ66+'[3]5.2 Asset Age Profile'!BJ66","v":0},{"$f":"'[2]5.2 Asset Age Profile'!BK66+'[3]5.2 Asset Age Profile'!BK66","v":0},{"$f":"'[2]5.2 Asset Age Profile'!BL66+'[3]5.2 Asset Age Profile'!BL66","v":0},{"$f":"'[2]5.2 Asset Age Profile'!BM66+'[3]5.2 Asset Age Profile'!BM66","v":0},{"$f":"'[2]5.2 Asset Age Profile'!BN66+'[3]5.2 Asset Age Profile'!BN66","v":0},{"$f":"'[2]5.2 Asset Age Profile'!BO66+'[3]5.2 Asset Age Profile'!BO66","v":0},{"$f":"'[2]5.2 Asset Age Profile'!BP66+'[3]5.2 Asset Age Profile'!BP66","v":0},{"$f":"'[2]5.2 Asset Age Profile'!BQ66+'[3]5.2 Asset Age Profile'!BQ66","v":0},{"$f":"'[2]5.2 Asset Age Profile'!BR66+'[3]5.2 Asset Age Profile'!BR66","v":0},{"$f":"'[2]5.2 Asset Age Profile'!BS66+'[3]5.2 Asset Age Profile'!BS66","v":0},{"$f":"'[2]5.2 Asset Age Profile'!BT66+'[3]5.2 Asset Age Profile'!BT66","v":0},{"$f":"'[2]5.2 Asset Age Profile'!BU66+'[3]5.2 Asset Age Profile'!BU66","v":0},{"$f":"'[2]5.2 Asset Age Profile'!BV66+'[3]5.2 Asset Age Profile'!BV66","v":0},{"$f":"'[2]5.2 Asset Age Profile'!BW66+'[3]5.2 Asset Age Profile'!BW66","v":0},{"$f":"'[2]5.2 Asset Age Profile'!BX66+'[3]5.2 Asset Age Profile'!BX66","v":0},{"$f":"'[2]5.2 Asset Age Profile'!BY66+'[3]5.2 Asset Age Profile'!BY66","v":0},{"$f":"'[2]5.2 Asset Age Profile'!BZ66+'[3]5.2 Asset Age Profile'!BZ66","v":0},{"$f":"'[2]5.2 Asset Age Profile'!CA66+'[3]5.2 Asset Age Profile'!CA66","v":0},{"$f":"'[2]5.2 Asset Age Profile'!CB66+'[3]5.2 Asset Age Profile'!CB66","v":0},{"$f":"'[2]5.2 Asset Age Profile'!CC66+'[3]5.2 Asset Age Profile'!CC66","v":0},{"$f":"'[2]5.2 Asset Age Profile'!CD66+'[3]5.2 Asset Age Profile'!CD66","v":0},{"$f":"'[2]5.2 Asset Age Profile'!CE66+'[3]5.2 Asset Age Profile'!CE66","v":0},{"$f":"'[2]5.2 Asset Age Profile'!CF66+'[3]5.2 Asset Age Profile'!CF66","v":0},{"$f":"'[2]5.2 Asset Age Profile'!CG66+'[3]5.2 Asset Age Profile'!CG66","v":0},{"$f":"'[2]5.2 Asset Age Profile'!CH66+'[3]5.2 Asset Age Profile'!CH66","v":0},{"$f":"'[2]5.2 Asset Age Profile'!CI66+'[3]5.2 Asset Age Profile'!CI66","v":0},{"$f":"'[2]5.2 Asset Age Profile'!CJ66+'[3]5.2 Asset Age Profile'!CJ66","v":0},{"$f":"'[2]5.2 Asset Age Profile'!CK66+'[3]5.2 Asset Age Profile'!CK66","v":0},{"$f":"'[2]5.2 Asset Age Profile'!CL66+'[3]5.2 Asset Age Profile'!CL66","v":0},{"$f":"'[2]5.2 Asset Age Profile'!CM66+'[3]5.2 Asset Age Profile'!CM66","v":0},{"$f":"'[2]5.2 Asset Age Profile'!CN66+'[3]5.2 Asset Age Profile'!CN66","v":0},{"$f":"'[2]5.2 Asset Age Profile'!CO66+'[3]5.2 Asset Age Profile'!CO66","v":0},{"$f":"'[2]5.2 Asset Age Profile'!CP66+'[3]5.2 Asset Age Profile'!CP66","v":0},{"$f":"'[2]5.2 Asset Age Profile'!CQ66+'[3]5.2 Asset Age Profile'!CQ66","v":0},{"$f":"'[2]5.2 Asset Age Profile'!CR66+'[3]5.2 Asset Age Profile'!CR66","v":0},{"$f":"'[2]5.2 Asset Age Profile'!CS66+'[3]5.2 Asset Age Profile'!CS66","v":0},{"$f":"'[2]5.2 Asset Age Profile'!CT66+'[3]5.2 Asset Age Profile'!CT66","v":0},{"$f":"'[2]5.2 Asset Age Profile'!CU66+'[3]5.2 Asset Age Profile'!CU66","v":0},{"$f":"'[2]5.2 Asset Age Profile'!CV66+'[3]5.2 Asset Age Profile'!CV66","v":0},{"$f":"'[2]5.2 Asset Age Profile'!CW66+'[3]5.2 Asset Age Profile'!CW66","v":0},{"$f":"'[2]5.2 Asset Age Profile'!CX66+'[3]5.2 Asset Age Profile'!CX66","v":0},{"$f":"'[2]5.2 Asset Age Profile'!CY66+'[3]5.2 Asset Age Profile'!CY66","v":0},{"$f":"'[2]5.2 Asset Age Profile'!CZ66+'[3]5.2 Asset Age Profile'!CZ66","v":0},{"$f":"'[2]5.2 Asset Age Profile'!DA66+'[3]5.2 Asset Age Profile'!DA66","v":0},{"$f":"'[2]5.2 Asset Age Profile'!DB66+'[3]5.2 Asset Age Profile'!DB66","v":0},{"$f":"'[2]5.2 Asset Age Profile'!DC66+'[3]5.2 Asset Age Profile'!DC66","v":0},{"$f":"'[2]5.2 Asset Age Profile'!DD66+'[3]5.2 Asset Age Profile'!DD66","v":0},{"$f":"'[2]5.2 Asset Age Profile'!DE66+'[3]5.2 Asset Age Profile'!DE66","v":0},{"$f":"'[2]5.2 Asset Age Profile'!DF66+'[3]5.2 Asset Age Profile'!DF66","v":0},{"$f":"'[2]5.2 Asset Age Profile'!DG66+'[3]5.2 Asset Age Profile'!DG66","v":0},{"$f":"'[2]5.2 Asset Age Profile'!DH66+'[3]5.2 Asset Age Profile'!DH66","v":0},{"$f":"'[2]5.2 Asset Age Profile'!DI66+'[3]5.2 Asset Age Profile'!DI66","v":0},{"$f":"'[2]5.2 Asset Age Profile'!DJ66+'[3]5.2 Asset Age Profile'!DJ66","v":0},{"$f":"'[2]5.2 Asset Age Profile'!DK66+'[3]5.2 Asset Age Profile'!DK66","v":0},{"$f":"'[2]5.2 Asset Age Profile'!DL66+'[3]5.2 Asset Age Profile'!DL66","v":0},{"$f":"'[2]5.2 Asset Age Profile'!DM66+'[3]5.2 Asset Age Profile'!DM66","v":0},{"$f":"'[2]5.2 Asset Age Profile'!DN66+'[3]5.2 Asset Age Profile'!DN66","v":0},{"$f":"'[2]5.2 Asset Age Profile'!DO66+'[3]5.2 Asset Age Profile'!DO66","v":0},{"$f":"'[2]5.2 Asset Age Profile'!DP66+'[3]5.2 Asset Age Profile'!DP66","v":0},{"$f":"'[2]5.2 Asset Age Profile'!DQ66+'[3]5.2 Asset Age Profile'!DQ66","v":0},{"$f":"'[2]5.2 Asset Age Profile'!DR66+'[3]5.2 Asset Age Profile'!DR66","v":0},{"$f":"'[2]5.2 Asset Age Profile'!DS66+'[3]5.2 Asset Age Profile'!DS66","v":0},{"$f":"'[2]5.2 Asset Age Profile'!DT66+'[3]5.2 Asset Age Profile'!DT66","v":0},{"$f":"'[2]5.2 Asset Age Profile'!DU66+'[3]5.2 Asset Age Profile'!DU66","v":0},{"$f":"'[2]5.2 Asset Age Profile'!DV66+'[3]5.2 Asset Age Profile'!DV66","v":0},{"$f":"'[2]5.2 Asset Age Profile'!DW66+'[3]5.2 Asset Age Profile'!DW66","v":0},{"$f":"'[2]5.2 Asset Age Profile'!DX66+'[3]5.2 Asset Age Profile'!DX66","v":0},{"$f":"'[2]5.2 Asset Age Profile'!DY66+'[3]5.2 Asset Age Profile'!DY66","v":0},{"$f":"'[2]5.2 Asset Age Profile'!DZ66+'[3]5.2 Asset Age Profile'!DZ66","v":0},{"$f":"'[2]5.2 Asset Age Profile'!EA66+'[3]5.2 Asset Age Profile'!EA66","v":0},{"$f":"'[2]5.2 Asset Age Profile'!EB66+'[3]5.2 Asset Age Profile'!EB66","v":0},{"$f":"'[2]5.2 Asset Age Profile'!EC66+'[3]5.2 Asset Age Profile'!EC66","v":0},{"$f":"'[2]5.2 Asset Age Profile'!ED66+'[3]5.2 Asset Age Profile'!ED66","v":0},{"$f":"'[2]5.2 Asset Age Profile'!EE66+'[3]5.2 Asset Age Profile'!EE66","v":0},{"$f":"'[2]5.2 Asset Age Profile'!EF66+'[3]5.2 Asset Age Profile'!EF66","v":0},{"$f":"'[2]5.2 Asset Age Profile'!EG66+'[3]5.2 Asset Age Profile'!EG66","v":0},{"$f":"'[2]5.2 Asset Age Profile'!EH66+'[3]5.2 Asset Age Profile'!EH66","v":0},{"$f":"'[2]5.2 Asset Age Profile'!EI66+'[3]5.2 Asset Age Profile'!EI66","v":0},{"$f":"'[2]5.2 Asset Age Profile'!EJ66+'[3]5.2 Asset Age Profile'!EJ66","v":0}]
["ED_ASS521_00057",null,"> 66 kV & < = 132 kV ; Subdivision  ",null,null,null,null,null,null,null,null,null,null,{"$f":"'[2]5.2 Asset Age Profile'!N67+'[3]5.2 Asset Age Profile'!N67","v":0},{"$f":"'[2]5.2 Asset Age Profile'!O67+'[3]5.2 Asset Age Profile'!O67","v":0},{"$f":"'[2]5.2 Asset Age Profile'!P67+'[3]5.2 Asset Age Profile'!P67","v":0},{"$f":"'[2]5.2 Asset Age Profile'!Q67+'[3]5.2 Asset Age Profile'!Q67","v":0},{"$f":"'[2]5.2 Asset Age Profile'!R67+'[3]5.2 Asset Age Profile'!R67","v":0},{"$f":"'[2]5.2 Asset Age Profile'!S67+'[3]5.2 Asset Age Profile'!S67","v":0},{"$f":"'[2]5.2 Asset Age Profile'!T67+'[3]5.2 Asset Age Profile'!T67","v":0},{"$f":"'[2]5.2 Asset Age Profile'!U67+'[3]5.2 Asset Age Profile'!U67","v":0},{"$f":"'[2]5.2 Asset Age Profile'!V67+'[3]5.2 Asset Age Profile'!V67","v":0},{"$f":"'[2]5.2 Asset Age Profile'!W67+'[3]5.2 Asset Age Profile'!W67","v":0},{"$f":"'[2]5.2 Asset Age Profile'!X67+'[3]5.2 Asset Age Profile'!X67","v":0},{"$f":"'[2]5.2 Asset Age Profile'!Y67+'[3]5.2 Asset Age Profile'!Y67","v":0},{"$f":"'[2]5.2 Asset Age Profile'!Z67+'[3]5.2 Asset Age Profile'!Z67","v":0},{"$f":"'[2]5.2 Asset Age Profile'!AA67+'[3]5.2 Asset Age Profile'!AA67","v":0},{"$f":"'[2]5.2 Asset Age Profile'!AB67+'[3]5.2 Asset Age Profile'!AB67","v":0},{"$f":"'[2]5.2 Asset Age Profile'!AC67+'[3]5.2 Asset Age Profile'!AC67","v":0},{"$f":"'[2]5.2 Asset Age Profile'!AD67+'[3]5.2 Asset Age Profile'!AD67","v":0},{"$f":"'[2]5.2 Asset Age Profile'!AE67+'[3]5.2 Asset Age Profile'!AE67","v":0},{"$f":"'[2]5.2 Asset Age Profile'!AF67+'[3]5.2 Asset Age Profile'!AF67","v":0},{"$f":"'[2]5.2 Asset Age Profile'!AG67+'[3]5.2 Asset Age Profile'!AG67","v":0},{"$f":"'[2]5.2 Asset Age Profile'!AH67+'[3]5.2 Asset Age Profile'!AH67","v":0},{"$f":"'[2]5.2 Asset Age Profile'!AI67+'[3]5.2 Asset Age Profile'!AI67","v":0},{"$f":"'[2]5.2 Asset Age Profile'!AJ67+'[3]5.2 Asset Age Profile'!AJ67","v":0},{"$f":"'[2]5.2 Asset Age Profile'!AK67+'[3]5.2 Asset Age Profile'!AK67","v":0},{"$f":"'[2]5.2 Asset Age Profile'!AL67+'[3]5.2 Asset Age Profile'!AL67","v":0},{"$f":"'[2]5.2 Asset Age Profile'!AM67+'[3]5.2 Asset Age Profile'!AM67","v":0},{"$f":"'[2]5.2 Asset Age Profile'!AN67+'[3]5.2 Asset Age Profile'!AN67","v":0},{"$f":"'[2]5.2 Asset Age Profile'!AO67+'[3]5.2 Asset Age Profile'!AO67","v":0},{"$f":"'[2]5.2 Asset Age Profile'!AP67+'[3]5.2 Asset Age Profile'!AP67","v":0},{"$f":"'[2]5.2 Asset Age Profile'!AQ67+'[3]5.2 Asset Age Profile'!AQ67","v":0},{"$f":"'[2]5.2 Asset Age Profile'!AR67+'[3]5.2 Asset Age Profile'!AR67","v":0},{"$f":"'[2]5.2 Asset Age Profile'!AS67+'[3]5.2 Asset Age Profile'!AS67","v":0},{"$f":"'[2]5.2 Asset Age Profile'!AT67+'[3]5.2 Asset Age Profile'!AT67","v":0},{"$f":"'[2]5.2 Asset Age Profile'!AU67+'[3]5.2 Asset Age Profile'!AU67","v":0},{"$f":"'[2]5.2 Asset Age Profile'!AV67+'[3]5.2 Asset Age Profile'!AV67","v":0},{"$f":"'[2]5.2 Asset Age Profile'!AW67+'[3]5.2 Asset Age Profile'!AW67","v":0},{"$f":"'[2]5.2 Asset Age Profile'!AX67+'[3]5.2 Asset Age Profile'!AX67","v":0},{"$f":"'[2]5.2 Asset Age Profile'!AY67+'[3]5.2 Asset Age Profile'!AY67","v":0},{"$f":"'[2]5.2 Asset Age Profile'!AZ67+'[3]5.2 Asset Age Profile'!AZ67","v":0},{"$f":"'[2]5.2 Asset Age Profile'!BA67+'[3]5.2 Asset Age Profile'!BA67","v":0},{"$f":"'[2]5.2 Asset Age Profile'!BB67+'[3]5.2 Asset Age Profile'!BB67","v":0},{"$f":"'[2]5.2 Asset Age Profile'!BC67+'[3]5.2 Asset Age Profile'!BC67","v":0},{"$f":"'[2]5.2 Asset Age Profile'!BD67+'[3]5.2 Asset Age Profile'!BD67","v":0},{"$f":"'[2]5.2 Asset Age Profile'!BE67+'[3]5.2 Asset Age Profile'!BE67","v":0},{"$f":"'[2]5.2 Asset Age Profile'!BF67+'[3]5.2 Asset Age Profile'!BF67","v":0},{"$f":"'[2]5.2 Asset Age Profile'!BG67+'[3]5.2 Asset Age Profile'!BG67","v":0},{"$f":"'[2]5.2 Asset Age Profile'!BH67+'[3]5.2 Asset Age Profile'!BH67","v":0},{"$f":"'[2]5.2 Asset Age Profile'!BI67+'[3]5.2 Asset Age Profile'!BI67","v":0},{"$f":"'[2]5.2 Asset Age Profile'!BJ67+'[3]5.2 Asset Age Profile'!BJ67","v":0},{"$f":"'[2]5.2 Asset Age Profile'!BK67+'[3]5.2 Asset Age Profile'!BK67","v":0},{"$f":"'[2]5.2 Asset Age Profile'!BL67+'[3]5.2 Asset Age Profile'!BL67","v":0},{"$f":"'[2]5.2 Asset Age Profile'!BM67+'[3]5.2 Asset Age Profile'!BM67","v":0},{"$f":"'[2]5.2 Asset Age Profile'!BN67+'[3]5.2 Asset Age Profile'!BN67","v":0},{"$f":"'[2]5.2 Asset Age Profile'!BO67+'[3]5.2 Asset Age Profile'!BO67","v":0},{"$f":"'[2]5.2 Asset Age Profile'!BP67+'[3]5.2 Asset Age Profile'!BP67","v":0},{"$f":"'[2]5.2 Asset Age Profile'!BQ67+'[3]5.2 Asset Age Profile'!BQ67","v":0},{"$f":"'[2]5.2 Asset Age Profile'!BR67+'[3]5.2 Asset Age Profile'!BR67","v":0},{"$f":"'[2]5.2 Asset Age Profile'!BS67+'[3]5.2 Asset Age Profile'!BS67","v":0},{"$f":"'[2]5.2 Asset Age Profile'!BT67+'[3]5.2 Asset Age Profile'!BT67","v":0},{"$f":"'[2]5.2 Asset Age Profile'!BU67+'[3]5.2 Asset Age Profile'!BU67","v":0},{"$f":"'[2]5.2 Asset Age Profile'!BV67+'[3]5.2 Asset Age Profile'!BV67","v":0},{"$f":"'[2]5.2 Asset Age Profile'!BW67+'[3]5.2 Asset Age Profile'!BW67","v":0},{"$f":"'[2]5.2 Asset Age Profile'!BX67+'[3]5.2 Asset Age Profile'!BX67","v":0},{"$f":"'[2]5.2 Asset Age Profile'!BY67+'[3]5.2 Asset Age Profile'!BY67","v":0},{"$f":"'[2]5.2 Asset Age Profile'!BZ67+'[3]5.2 Asset Age Profile'!BZ67","v":0},{"$f":"'[2]5.2 Asset Age Profile'!CA67+'[3]5.2 Asset Age Profile'!CA67","v":0},{"$f":"'[2]5.2 Asset Age Profile'!CB67+'[3]5.2 Asset Age Profile'!CB67","v":0},{"$f":"'[2]5.2 Asset Age Profile'!CC67+'[3]5.2 Asset Age Profile'!CC67","v":0},{"$f":"'[2]5.2 Asset Age Profile'!CD67+'[3]5.2 Asset Age Profile'!CD67","v":0},{"$f":"'[2]5.2 Asset Age Profile'!CE67+'[3]5.2 Asset Age Profile'!CE67","v":0},{"$f":"'[2]5.2 Asset Age Profile'!CF67+'[3]5.2 Asset Age Profile'!CF67","v":0},{"$f":"'[2]5.2 Asset Age Profile'!CG67+'[3]5.2 Asset Age Profile'!CG67","v":0},{"$f":"'[2]5.2 Asset Age Profile'!CH67+'[3]5.2 Asset Age Profile'!CH67","v":0},{"$f":"'[2]5.2 Asset Age Profile'!CI67+'[3]5.2 Asset Age Profile'!CI67","v":0},{"$f":"'[2]5.2 Asset Age Profile'!CJ67+'[3]5.2 Asset Age Profile'!CJ67","v":0},{"$f":"'[2]5.2 Asset Age Profile'!CK67+'[3]5.2 Asset Age Profile'!CK67","v":0},{"$f":"'[2]5.2 Asset Age Profile'!CL67+'[3]5.2 Asset Age Profile'!CL67","v":0},{"$f":"'[2]5.2 Asset Age Profile'!CM67+'[3]5.2 Asset Age Profile'!CM67","v":0},{"$f":"'[2]5.2 Asset Age Profile'!CN67+'[3]5.2 Asset Age Profile'!CN67","v":0},{"$f":"'[2]5.2 Asset Age Profile'!CO67+'[3]5.2 Asset Age Profile'!CO67","v":0},{"$f":"'[2]5.2 Asset Age Profile'!CP67+'[3]5.2 Asset Age Profile'!CP67","v":0},{"$f":"'[2]5.2 Asset Age Profile'!CQ67+'[3]5.2 Asset Age Profile'!CQ67","v":0},{"$f":"'[2]5.2 Asset Age Profile'!CR67+'[3]5.2 Asset Age Profile'!CR67","v":0},{"$f":"'[2]5.2 Asset Age Profile'!CS67+'[3]5.2 Asset Age Profile'!CS67","v":0},{"$f":"'[2]5.2 Asset Age Profile'!CT67+'[3]5.2 Asset Age Profile'!CT67","v":0},{"$f":"'[2]5.2 Asset Age Profile'!CU67+'[3]5.2 Asset Age Profile'!CU67","v":0},{"$f":"'[2]5.2 Asset Age Profile'!CV67+'[3]5.2 Asset Age Profile'!CV67","v":0},{"$f":"'[2]5.2 Asset Age Profile'!CW67+'[3]5.2 Asset Age Profile'!CW67","v":0},{"$f":"'[2]5.2 Asset Age Profile'!CX67+'[3]5.2 Asset Age Profile'!CX67","v":0},{"$f":"'[2]5.2 Asset Age Profile'!CY67+'[3]5.2 Asset Age Profile'!CY67","v":0},{"$f":"'[2]5.2 Asset Age Profile'!CZ67+'[3]5.2 Asset Age Profile'!CZ67","v":0},{"$f":"'[2]5.2 Asset Age Profile'!DA67+'[3]5.2 Asset Age Profile'!DA67","v":0},{"$f":"'[2]5.2 Asset Age Profile'!DB67+'[3]5.2 Asset Age Profile'!DB67","v":0},{"$f":"'[2]5.2 Asset Age Profile'!DC67+'[3]5.2 Asset Age Profile'!DC67","v":0},{"$f":"'[2]5.2 Asset Age Profile'!DD67+'[3]5.2 Asset Age Profile'!DD67","v":0},{"$f":"'[2]5.2 Asset Age Profile'!DE67+'[3]5.2 Asset Age Profile'!DE67","v":0},{"$f":"'[2]5.2 Asset Age Profile'!DF67+'[3]5.2 Asset Age Profile'!DF67","v":0},{"$f":"'[2]5.2 Asset Age Profile'!DG67+'[3]5.2 Asset Age Profile'!DG67","v":0},{"$f":"'[2]5.2 Asset Age Profile'!DH67+'[3]5.2 Asset Age Profile'!DH67","v":0},{"$f":"'[2]5.2 Asset Age Profile'!DI67+'[3]5.2 Asset Age Profile'!DI67","v":0},{"$f":"'[2]5.2 Asset Age Profile'!DJ67+'[3]5.2 Asset Age Profile'!DJ67","v":0},{"$f":"'[2]5.2 Asset Age Profile'!DK67+'[3]5.2 Asset Age Profile'!DK67","v":0},{"$f":"'[2]5.2 Asset Age Profile'!DL67+'[3]5.2 Asset Age Profile'!DL67","v":0},{"$f":"'[2]5.2 Asset Age Profile'!DM67+'[3]5.2 Asset Age Profile'!DM67","v":0},{"$f":"'[2]5.2 Asset Age Profile'!DN67+'[3]5.2 Asset Age Profile'!DN67","v":0},{"$f":"'[2]5.2 Asset Age Profile'!DO67+'[3]5.2 Asset Age Profile'!DO67","v":0},{"$f":"'[2]5.2 Asset Age Profile'!DP67+'[3]5.2 Asset Age Profile'!DP67","v":0},{"$f":"'[2]5.2 Asset Age Profile'!DQ67+'[3]5.2 Asset Age Profile'!DQ67","v":0},{"$f":"'[2]5.2 Asset Age Profile'!DR67+'[3]5.2 Asset Age Profile'!DR67","v":0},{"$f":"'[2]5.2 Asset Age Profile'!DS67+'[3]5.2 Asset Age Profile'!DS67","v":0},{"$f":"'[2]5.2 Asset Age Profile'!DT67+'[3]5.2 Asset Age Profile'!DT67","v":0},{"$f":"'[2]5.2 Asset Age Profile'!DU67+'[3]5.2 Asset Age Profile'!DU67","v":0},{"$f":"'[2]5.2 Asset Age Profile'!DV67+'[3]5.2 Asset Age Profile'!DV67","v":0},{"$f":"'[2]5.2 Asset Age Profile'!DW67+'[3]5.2 Asset Age Profile'!DW67","v":0},{"$f":"'[2]5.2 Asset Age Profile'!DX67+'[3]5.2 Asset Age Profile'!DX67","v":0},{"$f":"'[2]5.2 Asset Age Profile'!DY67+'[3]5.2 Asset Age Profile'!DY67","v":0},{"$f":"'[2]5.2 Asset Age Profile'!DZ67+'[3]5.2 Asset Age Profile'!DZ67","v":0},{"$f":"'[2]5.2 Asset Age Profile'!EA67+'[3]5.2 Asset Age Profile'!EA67","v":0},{"$f":"'[2]5.2 Asset Age Profile'!EB67+'[3]5.2 Asset Age Profile'!EB67","v":0},{"$f":"'[2]5.2 Asset Age Profile'!EC67+'[3]5.2 Asset Age Profile'!EC67","v":0},{"$f":"'[2]5.2 Asset Age Profile'!ED67+'[3]5.2 Asset Age Profile'!ED67","v":0},{"$f":"'[2]5.2 Asset Age Profile'!EE67+'[3]5.2 Asset Age Profile'!EE67","v":0},{"$f":"'[2]5.2 Asset Age Profile'!EF67+'[3]5.2 Asset Age Profile'!EF67","v":0},{"$f":"'[2]5.2 Asset Age Profile'!EG67+'[3]5.2 Asset Age Profile'!EG67","v":0},{"$f":"'[2]5.2 Asset Age Profile'!EH67+'[3]5.2 Asset Age Profile'!EH67","v":0},{"$f":"'[2]5.2 Asset Age Profile'!EI67+'[3]5.2 Asset Age Profile'!EI67","v":0},{"$f":"'[2]5.2 Asset Age Profile'!EJ67+'[3]5.2 Asset Age Profile'!EJ67","v":0}]
["ED_ASS521_00058",null,"> 132 kV ; Commercial & Industrial  ",null,null,null,null,null,null,null,null,null,null,{"$f":"'[2]5.2 Asset Age Profile'!N68+'[3]5.2 Asset Age Profile'!N68","v":0},{"$f":"'[2]5.2 Asset Age Profile'!O68+'[3]5.2 Asset Age Profile'!O68","v":0},{"$f":"'[2]5.2 Asset Age Profile'!P68+'[3]5.2 Asset Age Profile'!P68","v":0},{"$f":"'[2]5.2 Asset Age Profile'!Q68+'[3]5.2 Asset Age Profile'!Q68","v":0},{"$f":"'[2]5.2 Asset Age Profile'!R68+'[3]5.2 Asset Age Profile'!R68","v":0},{"$f":"'[2]5.2 Asset Age Profile'!S68+'[3]5.2 Asset Age Profile'!S68","v":0},{"$f":"'[2]5.2 Asset Age Profile'!T68+'[3]5.2 Asset Age Profile'!T68","v":0},{"$f":"'[2]5.2 Asset Age Profile'!U68+'[3]5.2 Asset Age Profile'!U68","v":0},{"$f":"'[2]5.2 Asset Age Profile'!V68+'[3]5.2 Asset Age Profile'!V68","v":0},{"$f":"'[2]5.2 Asset Age Profile'!W68+'[3]5.2 Asset Age Profile'!W68","v":0},{"$f":"'[2]5.2 Asset Age Profile'!X68+'[3]5.2 Asset Age Profile'!X68","v":0},{"$f":"'[2]5.2 Asset Age Profile'!Y68+'[3]5.2 Asset Age Profile'!Y68","v":0},{"$f":"'[2]5.2 Asset Age Profile'!Z68+'[3]5.2 Asset Age Profile'!Z68","v":0},{"$f":"'[2]5.2 Asset Age Profile'!AA68+'[3]5.2 Asset Age Profile'!AA68","v":0},{"$f":"'[2]5.2 Asset Age Profile'!AB68+'[3]5.2 Asset Age Profile'!AB68","v":0},{"$f":"'[2]5.2 Asset Age Profile'!AC68+'[3]5.2 Asset Age Profile'!AC68","v":0},{"$f":"'[2]5.2 Asset Age Profile'!AD68+'[3]5.2 Asset Age Profile'!AD68","v":0},{"$f":"'[2]5.2 Asset Age Profile'!AE68+'[3]5.2 Asset Age Profile'!AE68","v":0},{"$f":"'[2]5.2 Asset Age Profile'!AF68+'[3]5.2 Asset Age Profile'!AF68","v":0},{"$f":"'[2]5.2 Asset Age Profile'!AG68+'[3]5.2 Asset Age Profile'!AG68","v":0},{"$f":"'[2]5.2 Asset Age Profile'!AH68+'[3]5.2 Asset Age Profile'!AH68","v":0},{"$f":"'[2]5.2 Asset Age Profile'!AI68+'[3]5.2 Asset Age Profile'!AI68","v":0},{"$f":"'[2]5.2 Asset Age Profile'!AJ68+'[3]5.2 Asset Age Profile'!AJ68","v":0},{"$f":"'[2]5.2 Asset Age Profile'!AK68+'[3]5.2 Asset Age Profile'!AK68","v":0},{"$f":"'[2]5.2 Asset Age Profile'!AL68+'[3]5.2 Asset Age Profile'!AL68","v":0},{"$f":"'[2]5.2 Asset Age Profile'!AM68+'[3]5.2 Asset Age Profile'!AM68","v":0},{"$f":"'[2]5.2 Asset Age Profile'!AN68+'[3]5.2 Asset Age Profile'!AN68","v":0},{"$f":"'[2]5.2 Asset Age Profile'!AO68+'[3]5.2 Asset Age Profile'!AO68","v":0},{"$f":"'[2]5.2 Asset Age Profile'!AP68+'[3]5.2 Asset Age Profile'!AP68","v":0},{"$f":"'[2]5.2 Asset Age Profile'!AQ68+'[3]5.2 Asset Age Profile'!AQ68","v":0},{"$f":"'[2]5.2 Asset Age Profile'!AR68+'[3]5.2 Asset Age Profile'!AR68","v":0},{"$f":"'[2]5.2 Asset Age Profile'!AS68+'[3]5.2 Asset Age Profile'!AS68","v":0},{"$f":"'[2]5.2 Asset Age Profile'!AT68+'[3]5.2 Asset Age Profile'!AT68","v":0},{"$f":"'[2]5.2 Asset Age Profile'!AU68+'[3]5.2 Asset Age Profile'!AU68","v":0},{"$f":"'[2]5.2 Asset Age Profile'!AV68+'[3]5.2 Asset Age Profile'!AV68","v":0},{"$f":"'[2]5.2 Asset Age Profile'!AW68+'[3]5.2 Asset Age Profile'!AW68","v":0},{"$f":"'[2]5.2 Asset Age Profile'!AX68+'[3]5.2 Asset Age Profile'!AX68","v":0},{"$f":"'[2]5.2 Asset Age Profile'!AY68+'[3]5.2 Asset Age Profile'!AY68","v":0},{"$f":"'[2]5.2 Asset Age Profile'!AZ68+'[3]5.2 Asset Age Profile'!AZ68","v":0},{"$f":"'[2]5.2 Asset Age Profile'!BA68+'[3]5.2 Asset Age Profile'!BA68","v":0},{"$f":"'[2]5.2 Asset Age Profile'!BB68+'[3]5.2 Asset Age Profile'!BB68","v":0},{"$f":"'[2]5.2 Asset Age Profile'!BC68+'[3]5.2 Asset Age Profile'!BC68","v":0},{"$f":"'[2]5.2 Asset Age Profile'!BD68+'[3]5.2 Asset Age Profile'!BD68","v":0},{"$f":"'[2]5.2 Asset Age Profile'!BE68+'[3]5.2 Asset Age Profile'!BE68","v":0},{"$f":"'[2]5.2 Asset Age Profile'!BF68+'[3]5.2 Asset Age Profile'!BF68","v":0},{"$f":"'[2]5.2 Asset Age Profile'!BG68+'[3]5.2 Asset Age Profile'!BG68","v":0},{"$f":"'[2]5.2 Asset Age Profile'!BH68+'[3]5.2 Asset Age Profile'!BH68","v":0},{"$f":"'[2]5.2 Asset Age Profile'!BI68+'[3]5.2 Asset Age Profile'!BI68","v":0},{"$f":"'[2]5.2 Asset Age Profile'!BJ68+'[3]5.2 Asset Age Profile'!BJ68","v":0},{"$f":"'[2]5.2 Asset Age Profile'!BK68+'[3]5.2 Asset Age Profile'!BK68","v":0},{"$f":"'[2]5.2 Asset Age Profile'!BL68+'[3]5.2 Asset Age Profile'!BL68","v":0},{"$f":"'[2]5.2 Asset Age Profile'!BM68+'[3]5.2 Asset Age Profile'!BM68","v":0},{"$f":"'[2]5.2 Asset Age Profile'!BN68+'[3]5.2 Asset Age Profile'!BN68","v":0},{"$f":"'[2]5.2 Asset Age Profile'!BO68+'[3]5.2 Asset Age Profile'!BO68","v":0},{"$f":"'[2]5.2 Asset Age Profile'!BP68+'[3]5.2 Asset Age Profile'!BP68","v":0},{"$f":"'[2]5.2 Asset Age Profile'!BQ68+'[3]5.2 Asset Age Profile'!BQ68","v":0},{"$f":"'[2]5.2 Asset Age Profile'!BR68+'[3]5.2 Asset Age Profile'!BR68","v":0},{"$f":"'[2]5.2 Asset Age Profile'!BS68+'[3]5.2 Asset Age Profile'!BS68","v":0},{"$f":"'[2]5.2 Asset Age Profile'!BT68+'[3]5.2 Asset Age Profile'!BT68","v":0},{"$f":"'[2]5.2 Asset Age Profile'!BU68+'[3]5.2 Asset Age Profile'!BU68","v":0},{"$f":"'[2]5.2 Asset Age Profile'!BV68+'[3]5.2 Asset Age Profile'!BV68","v":0},{"$f":"'[2]5.2 Asset Age Profile'!BW68+'[3]5.2 Asset Age Profile'!BW68","v":0},{"$f":"'[2]5.2 Asset Age Profile'!BX68+'[3]5.2 Asset Age Profile'!BX68","v":0},{"$f":"'[2]5.2 Asset Age Profile'!BY68+'[3]5.2 Asset Age Profile'!BY68","v":0},{"$f":"'[2]5.2 Asset Age Profile'!BZ68+'[3]5.2 Asset Age Profile'!BZ68","v":0},{"$f":"'[2]5.2 Asset Age Profile'!CA68+'[3]5.2 Asset Age Profile'!CA68","v":0},{"$f":"'[2]5.2 Asset Age Profile'!CB68+'[3]5.2 Asset Age Profile'!CB68","v":0},{"$f":"'[2]5.2 Asset Age Profile'!CC68+'[3]5.2 Asset Age Profile'!CC68","v":0},{"$f":"'[2]5.2 Asset Age Profile'!CD68+'[3]5.2 Asset Age Profile'!CD68","v":0},{"$f":"'[2]5.2 Asset Age Profile'!CE68+'[3]5.2 Asset Age Profile'!CE68","v":0},{"$f":"'[2]5.2 Asset Age Profile'!CF68+'[3]5.2 Asset Age Profile'!CF68","v":0},{"$f":"'[2]5.2 Asset Age Profile'!CG68+'[3]5.2 Asset Age Profile'!CG68","v":0},{"$f":"'[2]5.2 Asset Age Profile'!CH68+'[3]5.2 Asset Age Profile'!CH68","v":0},{"$f":"'[2]5.2 Asset Age Profile'!CI68+'[3]5.2 Asset Age Profile'!CI68","v":0},{"$f":"'[2]5.2 Asset Age Profile'!CJ68+'[3]5.2 Asset Age Profile'!CJ68","v":0},{"$f":"'[2]5.2 Asset Age Profile'!CK68+'[3]5.2 Asset Age Profile'!CK68","v":0},{"$f":"'[2]5.2 Asset Age Profile'!CL68+'[3]5.2 Asset Age Profile'!CL68","v":0},{"$f":"'[2]5.2 Asset Age Profile'!CM68+'[3]5.2 Asset Age Profile'!CM68","v":0},{"$f":"'[2]5.2 Asset Age Profile'!CN68+'[3]5.2 Asset Age Profile'!CN68","v":0},{"$f":"'[2]5.2 Asset Age Profile'!CO68+'[3]5.2 Asset Age Profile'!CO68","v":0},{"$f":"'[2]5.2 Asset Age Profile'!CP68+'[3]5.2 Asset Age Profile'!CP68","v":0},{"$f":"'[2]5.2 Asset Age Profile'!CQ68+'[3]5.2 Asset Age Profile'!CQ68","v":0},{"$f":"'[2]5.2 Asset Age Profile'!CR68+'[3]5.2 Asset Age Profile'!CR68","v":0},{"$f":"'[2]5.2 Asset Age Profile'!CS68+'[3]5.2 Asset Age Profile'!CS68","v":0},{"$f":"'[2]5.2 Asset Age Profile'!CT68+'[3]5.2 Asset Age Profile'!CT68","v":0},{"$f":"'[2]5.2 Asset Age Profile'!CU68+'[3]5.2 Asset Age Profile'!CU68","v":0},{"$f":"'[2]5.2 Asset Age Profile'!CV68+'[3]5.2 Asset Age Profile'!CV68","v":0},{"$f":"'[2]5.2 Asset Age Profile'!CW68+'[3]5.2 Asset Age Profile'!CW68","v":0},{"$f":"'[2]5.2 Asset Age Profile'!CX68+'[3]5.2 Asset Age Profile'!CX68","v":0},{"$f":"'[2]5.2 Asset Age Profile'!CY68+'[3]5.2 Asset Age Profile'!CY68","v":0},{"$f":"'[2]5.2 Asset Age Profile'!CZ68+'[3]5.2 Asset Age Profile'!CZ68","v":0},{"$f":"'[2]5.2 Asset Age Profile'!DA68+'[3]5.2 Asset Age Profile'!DA68","v":0},{"$f":"'[2]5.2 Asset Age Profile'!DB68+'[3]5.2 Asset Age Profile'!DB68","v":0},{"$f":"'[2]5.2 Asset Age Profile'!DC68+'[3]5.2 Asset Age Profile'!DC68","v":0},{"$f":"'[2]5.2 Asset Age Profile'!DD68+'[3]5.2 Asset Age Profile'!DD68","v":0},{"$f":"'[2]5.2 Asset Age Profile'!DE68+'[3]5.2 Asset Age Profile'!DE68","v":0},{"$f":"'[2]5.2 Asset Age Profile'!DF68+'[3]5.2 Asset Age Profile'!DF68","v":0},{"$f":"'[2]5.2 Asset Age Profile'!DG68+'[3]5.2 Asset Age Profile'!DG68","v":0},{"$f":"'[2]5.2 Asset Age Profile'!DH68+'[3]5.2 Asset Age Profile'!DH68","v":0},{"$f":"'[2]5.2 Asset Age Profile'!DI68+'[3]5.2 Asset Age Profile'!DI68","v":0},{"$f":"'[2]5.2 Asset Age Profile'!DJ68+'[3]5.2 Asset Age Profile'!DJ68","v":0},{"$f":"'[2]5.2 Asset Age Profile'!DK68+'[3]5.2 Asset Age Profile'!DK68","v":0},{"$f":"'[2]5.2 Asset Age Profile'!DL68+'[3]5.2 Asset Age Profile'!DL68","v":0},{"$f":"'[2]5.2 Asset Age Profile'!DM68+'[3]5.2 Asset Age Profile'!DM68","v":0},{"$f":"'[2]5.2 Asset Age Profile'!DN68+'[3]5.2 Asset Age Profile'!DN68","v":0},{"$f":"'[2]5.2 Asset Age Profile'!DO68+'[3]5.2 Asset Age Profile'!DO68","v":0},{"$f":"'[2]5.2 Asset Age Profile'!DP68+'[3]5.2 Asset Age Profile'!DP68","v":0},{"$f":"'[2]5.2 Asset Age Profile'!DQ68+'[3]5.2 Asset Age Profile'!DQ68","v":0},{"$f":"'[2]5.2 Asset Age Profile'!DR68+'[3]5.2 Asset Age Profile'!DR68","v":0},{"$f":"'[2]5.2 Asset Age Profile'!DS68+'[3]5.2 Asset Age Profile'!DS68","v":0},{"$f":"'[2]5.2 Asset Age Profile'!DT68+'[3]5.2 Asset Age Profile'!DT68","v":0},{"$f":"'[2]5.2 Asset Age Profile'!DU68+'[3]5.2 Asset Age Profile'!DU68","v":0},{"$f":"'[2]5.2 Asset Age Profile'!DV68+'[3]5.2 Asset Age Profile'!DV68","v":0},{"$f":"'[2]5.2 Asset Age Profile'!DW68+'[3]5.2 Asset Age Profile'!DW68","v":0},{"$f":"'[2]5.2 Asset Age Profile'!DX68+'[3]5.2 Asset Age Profile'!DX68","v":0},{"$f":"'[2]5.2 Asset Age Profile'!DY68+'[3]5.2 Asset Age Profile'!DY68","v":0},{"$f":"'[2]5.2 Asset Age Profile'!DZ68+'[3]5.2 Asset Age Profile'!DZ68","v":0},{"$f":"'[2]5.2 Asset Age Profile'!EA68+'[3]5.2 Asset Age Profile'!EA68","v":0},{"$f":"'[2]5.2 Asset Age Profile'!EB68+'[3]5.2 Asset Age Profile'!EB68","v":0},{"$f":"'[2]5.2 Asset Age Profile'!EC68+'[3]5.2 Asset Age Profile'!EC68","v":0},{"$f":"'[2]5.2 Asset Age Profile'!ED68+'[3]5.2 Asset Age Profile'!ED68","v":0},{"$f":"'[2]5.2 Asset Age Profile'!EE68+'[3]5.2 Asset Age Profile'!EE68","v":0},{"$f":"'[2]5.2 Asset Age Profile'!EF68+'[3]5.2 Asset Age Profile'!EF68","v":0},{"$f":"'[2]5.2 Asset Age Profile'!EG68+'[3]5.2 Asset Age Profile'!EG68","v":0},{"$f":"'[2]5.2 Asset Age Profile'!EH68+'[3]5.2 Asset Age Profile'!EH68","v":0},{"$f":"'[2]5.2 Asset Age Profile'!EI68+'[3]5.2 Asset Age Profile'!EI68","v":0},{"$f":"'[2]5.2 Asset Age Profile'!EJ68+'[3]5.2 Asset Age Profile'!EJ68","v":0}]
["ED_ASS521_00059",null,"> 132 kV ; Subdivision  ",null,null,null,null,null,null,null,null,null,null,{"$f":"'[2]5.2 Asset Age Profile'!N69+'[3]5.2 Asset Age Profile'!N69","v":0},{"$f":"'[2]5.2 Asset Age Profile'!O69+'[3]5.2 Asset Age Profile'!O69","v":0},{"$f":"'[2]5.2 Asset Age Profile'!P69+'[3]5.2 Asset Age Profile'!P69","v":0},{"$f":"'[2]5.2 Asset Age Profile'!Q69+'[3]5.2 Asset Age Profile'!Q69","v":0},{"$f":"'[2]5.2 Asset Age Profile'!R69+'[3]5.2 Asset Age Profile'!R69","v":0},{"$f":"'[2]5.2 Asset Age Profile'!S69+'[3]5.2 Asset Age Profile'!S69","v":0},{"$f":"'[2]5.2 Asset Age Profile'!T69+'[3]5.2 Asset Age Profile'!T69","v":0},{"$f":"'[2]5.2 Asset Age Profile'!U69+'[3]5.2 Asset Age Profile'!U69","v":0},{"$f":"'[2]5.2 Asset Age Profile'!V69+'[3]5.2 Asset Age Profile'!V69","v":0},{"$f":"'[2]5.2 Asset Age Profile'!W69+'[3]5.2 Asset Age Profile'!W69","v":0},{"$f":"'[2]5.2 Asset Age Profile'!X69+'[3]5.2 Asset Age Profile'!X69","v":0},{"$f":"'[2]5.2 Asset Age Profile'!Y69+'[3]5.2 Asset Age Profile'!Y69","v":0},{"$f":"'[2]5.2 Asset Age Profile'!Z69+'[3]5.2 Asset Age Profile'!Z69","v":0},{"$f":"'[2]5.2 Asset Age Profile'!AA69+'[3]5.2 Asset Age Profile'!AA69","v":0},{"$f":"'[2]5.2 Asset Age Profile'!AB69+'[3]5.2 Asset Age Profile'!AB69","v":0},{"$f":"'[2]5.2 Asset Age Profile'!AC69+'[3]5.2 Asset Age Profile'!AC69","v":0},{"$f":"'[2]5.2 Asset Age Profile'!AD69+'[3]5.2 Asset Age Profile'!AD69","v":0},{"$f":"'[2]5.2 Asset Age Profile'!AE69+'[3]5.2 Asset Age Profile'!AE69","v":0},{"$f":"'[2]5.2 Asset Age Profile'!AF69+'[3]5.2 Asset Age Profile'!AF69","v":0},{"$f":"'[2]5.2 Asset Age Profile'!AG69+'[3]5.2 Asset Age Profile'!AG69","v":0},{"$f":"'[2]5.2 Asset Age Profile'!AH69+'[3]5.2 Asset Age Profile'!AH69","v":0},{"$f":"'[2]5.2 Asset Age Profile'!AI69+'[3]5.2 Asset Age Profile'!AI69","v":0},{"$f":"'[2]5.2 Asset Age Profile'!AJ69+'[3]5.2 Asset Age Profile'!AJ69","v":0},{"$f":"'[2]5.2 Asset Age Profile'!AK69+'[3]5.2 Asset Age Profile'!AK69","v":0},{"$f":"'[2]5.2 Asset Age Profile'!AL69+'[3]5.2 Asset Age Profile'!AL69","v":0},{"$f":"'[2]5.2 Asset Age Profile'!AM69+'[3]5.2 Asset Age Profile'!AM69","v":0},{"$f":"'[2]5.2 Asset Age Profile'!AN69+'[3]5.2 Asset Age Profile'!AN69","v":0},{"$f":"'[2]5.2 Asset Age Profile'!AO69+'[3]5.2 Asset Age Profile'!AO69","v":0},{"$f":"'[2]5.2 Asset Age Profile'!AP69+'[3]5.2 Asset Age Profile'!AP69","v":0},{"$f":"'[2]5.2 Asset Age Profile'!AQ69+'[3]5.2 Asset Age Profile'!AQ69","v":0},{"$f":"'[2]5.2 Asset Age Profile'!AR69+'[3]5.2 Asset Age Profile'!AR69","v":0},{"$f":"'[2]5.2 Asset Age Profile'!AS69+'[3]5.2 Asset Age Profile'!AS69","v":0},{"$f":"'[2]5.2 Asset Age Profile'!AT69+'[3]5.2 Asset Age Profile'!AT69","v":0},{"$f":"'[2]5.2 Asset Age Profile'!AU69+'[3]5.2 Asset Age Profile'!AU69","v":0},{"$f":"'[2]5.2 Asset Age Profile'!AV69+'[3]5.2 Asset Age Profile'!AV69","v":0},{"$f":"'[2]5.2 Asset Age Profile'!AW69+'[3]5.2 Asset Age Profile'!AW69","v":0},{"$f":"'[2]5.2 Asset Age Profile'!AX69+'[3]5.2 Asset Age Profile'!AX69","v":0},{"$f":"'[2]5.2 Asset Age Profile'!AY69+'[3]5.2 Asset Age Profile'!AY69","v":0},{"$f":"'[2]5.2 Asset Age Profile'!AZ69+'[3]5.2 Asset Age Profile'!AZ69","v":0},{"$f":"'[2]5.2 Asset Age Profile'!BA69+'[3]5.2 Asset Age Profile'!BA69","v":0},{"$f":"'[2]5.2 Asset Age Profile'!BB69+'[3]5.2 Asset Age Profile'!BB69","v":0},{"$f":"'[2]5.2 Asset Age Profile'!BC69+'[3]5.2 Asset Age Profile'!BC69","v":0},{"$f":"'[2]5.2 Asset Age Profile'!BD69+'[3]5.2 Asset Age Profile'!BD69","v":0},{"$f":"'[2]5.2 Asset Age Profile'!BE69+'[3]5.2 Asset Age Profile'!BE69","v":0},{"$f":"'[2]5.2 Asset Age Profile'!BF69+'[3]5.2 Asset Age Profile'!BF69","v":0},{"$f":"'[2]5.2 Asset Age Profile'!BG69+'[3]5.2 Asset Age Profile'!BG69","v":0},{"$f":"'[2]5.2 Asset Age Profile'!BH69+'[3]5.2 Asset Age Profile'!BH69","v":0},{"$f":"'[2]5.2 Asset Age Profile'!BI69+'[3]5.2 Asset Age Profile'!BI69","v":0},{"$f":"'[2]5.2 Asset Age Profile'!BJ69+'[3]5.2 Asset Age Profile'!BJ69","v":0},{"$f":"'[2]5.2 Asset Age Profile'!BK69+'[3]5.2 Asset Age Profile'!BK69","v":0},{"$f":"'[2]5.2 Asset Age Profile'!BL69+'[3]5.2 Asset Age Profile'!BL69","v":0},{"$f":"'[2]5.2 Asset Age Profile'!BM69+'[3]5.2 Asset Age Profile'!BM69","v":0},{"$f":"'[2]5.2 Asset Age Profile'!BN69+'[3]5.2 Asset Age Profile'!BN69","v":0},{"$f":"'[2]5.2 Asset Age Profile'!BO69+'[3]5.2 Asset Age Profile'!BO69","v":0},{"$f":"'[2]5.2 Asset Age Profile'!BP69+'[3]5.2 Asset Age Profile'!BP69","v":0},{"$f":"'[2]5.2 Asset Age Profile'!BQ69+'[3]5.2 Asset Age Profile'!BQ69","v":0},{"$f":"'[2]5.2 Asset Age Profile'!BR69+'[3]5.2 Asset Age Profile'!BR69","v":0},{"$f":"'[2]5.2 Asset Age Profile'!BS69+'[3]5.2 Asset Age Profile'!BS69","v":0},{"$f":"'[2]5.2 Asset Age Profile'!BT69+'[3]5.2 Asset Age Profile'!BT69","v":0},{"$f":"'[2]5.2 Asset Age Profile'!BU69+'[3]5.2 Asset Age Profile'!BU69","v":0},{"$f":"'[2]5.2 Asset Age Profile'!BV69+'[3]5.2 Asset Age Profile'!BV69","v":0},{"$f":"'[2]5.2 Asset Age Profile'!BW69+'[3]5.2 Asset Age Profile'!BW69","v":0},{"$f":"'[2]5.2 Asset Age Profile'!BX69+'[3]5.2 Asset Age Profile'!BX69","v":0},{"$f":"'[2]5.2 Asset Age Profile'!BY69+'[3]5.2 Asset Age Profile'!BY69","v":0},{"$f":"'[2]5.2 Asset Age Profile'!BZ69+'[3]5.2 Asset Age Profile'!BZ69","v":0},{"$f":"'[2]5.2 Asset Age Profile'!CA69+'[3]5.2 Asset Age Profile'!CA69","v":0},{"$f":"'[2]5.2 Asset Age Profile'!CB69+'[3]5.2 Asset Age Profile'!CB69","v":0},{"$f":"'[2]5.2 Asset Age Profile'!CC69+'[3]5.2 Asset Age Profile'!CC69","v":0},{"$f":"'[2]5.2 Asset Age Profile'!CD69+'[3]5.2 Asset Age Profile'!CD69","v":0},{"$f":"'[2]5.2 Asset Age Profile'!CE69+'[3]5.2 Asset Age Profile'!CE69","v":0},{"$f":"'[2]5.2 Asset Age Profile'!CF69+'[3]5.2 Asset Age Profile'!CF69","v":0},{"$f":"'[2]5.2 Asset Age Profile'!CG69+'[3]5.2 Asset Age Profile'!CG69","v":0},{"$f":"'[2]5.2 Asset Age Profile'!CH69+'[3]5.2 Asset Age Profile'!CH69","v":0},{"$f":"'[2]5.2 Asset Age Profile'!CI69+'[3]5.2 Asset Age Profile'!CI69","v":0},{"$f":"'[2]5.2 Asset Age Profile'!CJ69+'[3]5.2 Asset Age Profile'!CJ69","v":0},{"$f":"'[2]5.2 Asset Age Profile'!CK69+'[3]5.2 Asset Age Profile'!CK69","v":0},{"$f":"'[2]5.2 Asset Age Profile'!CL69+'[3]5.2 Asset Age Profile'!CL69","v":0},{"$f":"'[2]5.2 Asset Age Profile'!CM69+'[3]5.2 Asset Age Profile'!CM69","v":0},{"$f":"'[2]5.2 Asset Age Profile'!CN69+'[3]5.2 Asset Age Profile'!CN69","v":0},{"$f":"'[2]5.2 Asset Age Profile'!CO69+'[3]5.2 Asset Age Profile'!CO69","v":0},{"$f":"'[2]5.2 Asset Age Profile'!CP69+'[3]5.2 Asset Age Profile'!CP69","v":0},{"$f":"'[2]5.2 Asset Age Profile'!CQ69+'[3]5.2 Asset Age Profile'!CQ69","v":0},{"$f":"'[2]5.2 Asset Age Profile'!CR69+'[3]5.2 Asset Age Profile'!CR69","v":0},{"$f":"'[2]5.2 Asset Age Profile'!CS69+'[3]5.2 Asset Age Profile'!CS69","v":0},{"$f":"'[2]5.2 Asset Age Profile'!CT69+'[3]5.2 Asset Age Profile'!CT69","v":0},{"$f":"'[2]5.2 Asset Age Profile'!CU69+'[3]5.2 Asset Age Profile'!CU69","v":0},{"$f":"'[2]5.2 Asset Age Profile'!CV69+'[3]5.2 Asset Age Profile'!CV69","v":0},{"$f":"'[2]5.2 Asset Age Profile'!CW69+'[3]5.2 Asset Age Profile'!CW69","v":0},{"$f":"'[2]5.2 Asset Age Profile'!CX69+'[3]5.2 Asset Age Profile'!CX69","v":0},{"$f":"'[2]5.2 Asset Age Profile'!CY69+'[3]5.2 Asset Age Profile'!CY69","v":0},{"$f":"'[2]5.2 Asset Age Profile'!CZ69+'[3]5.2 Asset Age Profile'!CZ69","v":0},{"$f":"'[2]5.2 Asset Age Profile'!DA69+'[3]5.2 Asset Age Profile'!DA69","v":0},{"$f":"'[2]5.2 Asset Age Profile'!DB69+'[3]5.2 Asset Age Profile'!DB69","v":0},{"$f":"'[2]5.2 Asset Age Profile'!DC69+'[3]5.2 Asset Age Profile'!DC69","v":0},{"$f":"'[2]5.2 Asset Age Profile'!DD69+'[3]5.2 Asset Age Profile'!DD69","v":0},{"$f":"'[2]5.2 Asset Age Profile'!DE69+'[3]5.2 Asset Age Profile'!DE69","v":0},{"$f":"'[2]5.2 Asset Age Profile'!DF69+'[3]5.2 Asset Age Profile'!DF69","v":0},{"$f":"'[2]5.2 Asset Age Profile'!DG69+'[3]5.2 Asset Age Profile'!DG69","v":0},{"$f":"'[2]5.2 Asset Age Profile'!DH69+'[3]5.2 Asset Age Profile'!DH69","v":0},{"$f":"'[2]5.2 Asset Age Profile'!DI69+'[3]5.2 Asset Age Profile'!DI69","v":0},{"$f":"'[2]5.2 Asset Age Profile'!DJ69+'[3]5.2 Asset Age Profile'!DJ69","v":0},{"$f":"'[2]5.2 Asset Age Profile'!DK69+'[3]5.2 Asset Age Profile'!DK69","v":0},{"$f":"'[2]5.2 Asset Age Profile'!DL69+'[3]5.2 Asset Age Profile'!DL69","v":0},{"$f":"'[2]5.2 Asset Age Profile'!DM69+'[3]5.2 Asset Age Profile'!DM69","v":0},{"$f":"'[2]5.2 Asset Age Profile'!DN69+'[3]5.2 Asset Age Profile'!DN69","v":0},{"$f":"'[2]5.2 Asset Age Profile'!DO69+'[3]5.2 Asset Age Profile'!DO69","v":0},{"$f":"'[2]5.2 Asset Age Profile'!DP69+'[3]5.2 Asset Age Profile'!DP69","v":0},{"$f":"'[2]5.2 Asset Age Profile'!DQ69+'[3]5.2 Asset Age Profile'!DQ69","v":0},{"$f":"'[2]5.2 Asset Age Profile'!DR69+'[3]5.2 Asset Age Profile'!DR69","v":0},{"$f":"'[2]5.2 Asset Age Profile'!DS69+'[3]5.2 Asset Age Profile'!DS69","v":0},{"$f":"'[2]5.2 Asset Age Profile'!DT69+'[3]5.2 Asset Age Profile'!DT69","v":0},{"$f":"'[2]5.2 Asset Age Profile'!DU69+'[3]5.2 Asset Age Profile'!DU69","v":0},{"$f":"'[2]5.2 Asset Age Profile'!DV69+'[3]5.2 Asset Age Profile'!DV69","v":0},{"$f":"'[2]5.2 Asset Age Profile'!DW69+'[3]5.2 Asset Age Profile'!DW69","v":0},{"$f":"'[2]5.2 Asset Age Profile'!DX69+'[3]5.2 Asset Age Profile'!DX69","v":0},{"$f":"'[2]5.2 Asset Age Profile'!DY69+'[3]5.2 Asset Age Profile'!DY69","v":0},{"$f":"'[2]5.2 Asset Age Profile'!DZ69+'[3]5.2 Asset Age Profile'!DZ69","v":0},{"$f":"'[2]5.2 Asset Age Profile'!EA69+'[3]5.2 Asset Age Profile'!EA69","v":0},{"$f":"'[2]5.2 Asset Age Profile'!EB69+'[3]5.2 Asset Age Profile'!EB69","v":0},{"$f":"'[2]5.2 Asset Age Profile'!EC69+'[3]5.2 Asset Age Profile'!EC69","v":0},{"$f":"'[2]5.2 Asset Age Profile'!ED69+'[3]5.2 Asset Age Profile'!ED69","v":0},{"$f":"'[2]5.2 Asset Age Profile'!EE69+'[3]5.2 Asset Age Profile'!EE69","v":0},{"$f":"'[2]5.2 Asset Age Profile'!EF69+'[3]5.2 Asset Age Profile'!EF69","v":0},{"$f":"'[2]5.2 Asset Age Profile'!EG69+'[3]5.2 Asset Age Profile'!EG69","v":0},{"$f":"'[2]5.2 Asset Age Profile'!EH69+'[3]5.2 Asset Age Profile'!EH69","v":0},{"$f":"'[2]5.2 Asset Age Profile'!EI69+'[3]5.2 Asset Age Profile'!EI69","v":0},{"$f":"'[2]5.2 Asset Age Profile'!EJ69+'[3]5.2 Asset Age Profile'!EJ69","v":0}]
["ED_ASS521_00060",null,"Other",null,"DNSP NAME","REPEX","SERVICE LINES","Other","DESCRIPTOR METRIC","MEAN ECONOMIC LIFE","YEARS","NUMBER",null,{"$f":"'[2]5.2 Asset Age Profile'!N70+'[3]5.2 Asset Age Profile'!N70","v":0},{"$f":"'[2]5.2 Asset Age Profile'!O70+'[3]5.2 Asset Age Profile'!O70","v":0},{"$f":"'[2]5.2 Asset Age Profile'!P70+'[3]5.2 Asset Age Profile'!P70","v":0},{"$f":"'[2]5.2 Asset Age Profile'!Q70+'[3]5.2 Asset Age Profile'!Q70","v":0},{"$f":"'[2]5.2 Asset Age Profile'!R70+'[3]5.2 Asset Age Profile'!R70","v":0},{"$f":"'[2]5.2 Asset Age Profile'!S70+'[3]5.2 Asset Age Profile'!S70","v":0},{"$f":"'[2]5.2 Asset Age Profile'!T70+'[3]5.2 Asset Age Profile'!T70","v":0},{"$f":"'[2]5.2 Asset Age Profile'!U70+'[3]5.2 Asset Age Profile'!U70","v":0},{"$f":"'[2]5.2 Asset Age Profile'!V70+'[3]5.2 Asset Age Profile'!V70","v":0},{"$f":"'[2]5.2 Asset Age Profile'!W70+'[3]5.2 Asset Age Profile'!W70","v":0},{"$f":"'[2]5.2 Asset Age Profile'!X70+'[3]5.2 Asset Age Profile'!X70","v":0},{"$f":"'[2]5.2 Asset Age Profile'!Y70+'[3]5.2 Asset Age Profile'!Y70","v":0},{"$f":"'[2]5.2 Asset Age Profile'!Z70+'[3]5.2 Asset Age Profile'!Z70","v":0},{"$f":"'[2]5.2 Asset Age Profile'!AA70+'[3]5.2 Asset Age Profile'!AA70","v":0},{"$f":"'[2]5.2 Asset Age Profile'!AB70+'[3]5.2 Asset Age Profile'!AB70","v":0},{"$f":"'[2]5.2 Asset Age Profile'!AC70+'[3]5.2 Asset Age Profile'!AC70","v":0},{"$f":"'[2]5.2 Asset Age Profile'!AD70+'[3]5.2 Asset Age Profile'!AD70","v":0},{"$f":"'[2]5.2 Asset Age Profile'!AE70+'[3]5.2 Asset Age Profile'!AE70","v":0},{"$f":"'[2]5.2 Asset Age Profile'!AF70+'[3]5.2 Asset Age Profile'!AF70","v":0},{"$f":"'[2]5.2 Asset Age Profile'!AG70+'[3]5.2 Asset Age Profile'!AG70","v":0},{"$f":"'[2]5.2 Asset Age Profile'!AH70+'[3]5.2 Asset Age Profile'!AH70","v":0},{"$f":"'[2]5.2 Asset Age Profile'!AI70+'[3]5.2 Asset Age Profile'!AI70","v":0},{"$f":"'[2]5.2 Asset Age Profile'!AJ70+'[3]5.2 Asset Age Profile'!AJ70","v":0},{"$f":"'[2]5.2 Asset Age Profile'!AK70+'[3]5.2 Asset Age Profile'!AK70","v":0},{"$f":"'[2]5.2 Asset Age Profile'!AL70+'[3]5.2 Asset Age Profile'!AL70","v":0},{"$f":"'[2]5.2 Asset Age Profile'!AM70+'[3]5.2 Asset Age Profile'!AM70","v":0},{"$f":"'[2]5.2 Asset Age Profile'!AN70+'[3]5.2 Asset Age Profile'!AN70","v":0},{"$f":"'[2]5.2 Asset Age Profile'!AO70+'[3]5.2 Asset Age Profile'!AO70","v":0},{"$f":"'[2]5.2 Asset Age Profile'!AP70+'[3]5.2 Asset Age Profile'!AP70","v":0},{"$f":"'[2]5.2 Asset Age Profile'!AQ70+'[3]5.2 Asset Age Profile'!AQ70","v":0},{"$f":"'[2]5.2 Asset Age Profile'!AR70+'[3]5.2 Asset Age Profile'!AR70","v":0},{"$f":"'[2]5.2 Asset Age Profile'!AS70+'[3]5.2 Asset Age Profile'!AS70","v":0},{"$f":"'[2]5.2 Asset Age Profile'!AT70+'[3]5.2 Asset Age Profile'!AT70","v":0},{"$f":"'[2]5.2 Asset Age Profile'!AU70+'[3]5.2 Asset Age Profile'!AU70","v":0},{"$f":"'[2]5.2 Asset Age Profile'!AV70+'[3]5.2 Asset Age Profile'!AV70","v":0},{"$f":"'[2]5.2 Asset Age Profile'!AW70+'[3]5.2 Asset Age Profile'!AW70","v":0},{"$f":"'[2]5.2 Asset Age Profile'!AX70+'[3]5.2 Asset Age Profile'!AX70","v":0},{"$f":"'[2]5.2 Asset Age Profile'!AY70+'[3]5.2 Asset Age Profile'!AY70","v":0},{"$f":"'[2]5.2 Asset Age Profile'!AZ70+'[3]5.2 Asset Age Profile'!AZ70","v":0},{"$f":"'[2]5.2 Asset Age Profile'!BA70+'[3]5.2 Asset Age Profile'!BA70","v":0},{"$f":"'[2]5.2 Asset Age Profile'!BB70+'[3]5.2 Asset Age Profile'!BB70","v":0},{"$f":"'[2]5.2 Asset Age Profile'!BC70+'[3]5.2 Asset Age Profile'!BC70","v":0},{"$f":"'[2]5.2 Asset Age Profile'!BD70+'[3]5.2 Asset Age Profile'!BD70","v":0},{"$f":"'[2]5.2 Asset Age Profile'!BE70+'[3]5.2 Asset Age Profile'!BE70","v":0},{"$f":"'[2]5.2 Asset Age Profile'!BF70+'[3]5.2 Asset Age Profile'!BF70","v":0},{"$f":"'[2]5.2 Asset Age Profile'!BG70+'[3]5.2 Asset Age Profile'!BG70","v":0},{"$f":"'[2]5.2 Asset Age Profile'!BH70+'[3]5.2 Asset Age Profile'!BH70","v":0},{"$f":"'[2]5.2 Asset Age Profile'!BI70+'[3]5.2 Asset Age Profile'!BI70","v":0},{"$f":"'[2]5.2 Asset Age Profile'!BJ70+'[3]5.2 Asset Age Profile'!BJ70","v":0},{"$f":"'[2]5.2 Asset Age Profile'!BK70+'[3]5.2 Asset Age Profile'!BK70","v":0},{"$f":"'[2]5.2 Asset Age Profile'!BL70+'[3]5.2 Asset Age Profile'!BL70","v":0},{"$f":"'[2]5.2 Asset Age Profile'!BM70+'[3]5.2 Asset Age Profile'!BM70","v":0},{"$f":"'[2]5.2 Asset Age Profile'!BN70+'[3]5.2 Asset Age Profile'!BN70","v":0},{"$f":"'[2]5.2 Asset Age Profile'!BO70+'[3]5.2 Asset Age Profile'!BO70","v":0},{"$f":"'[2]5.2 Asset Age Profile'!BP70+'[3]5.2 Asset Age Profile'!BP70","v":0},{"$f":"'[2]5.2 Asset Age Profile'!BQ70+'[3]5.2 Asset Age Profile'!BQ70","v":0},{"$f":"'[2]5.2 Asset Age Profile'!BR70+'[3]5.2 Asset Age Profile'!BR70","v":0},{"$f":"'[2]5.2 Asset Age Profile'!BS70+'[3]5.2 Asset Age Profile'!BS70","v":0},{"$f":"'[2]5.2 Asset Age Profile'!BT70+'[3]5.2 Asset Age Profile'!BT70","v":0},{"$f":"'[2]5.2 Asset Age Profile'!BU70+'[3]5.2 Asset Age Profile'!BU70","v":0},{"$f":"'[2]5.2 Asset Age Profile'!BV70+'[3]5.2 Asset Age Profile'!BV70","v":0},{"$f":"'[2]5.2 Asset Age Profile'!BW70+'[3]5.2 Asset Age Profile'!BW70","v":0},{"$f":"'[2]5.2 Asset Age Profile'!BX70+'[3]5.2 Asset Age Profile'!BX70","v":0},{"$f":"'[2]5.2 Asset Age Profile'!BY70+'[3]5.2 Asset Age Profile'!BY70","v":0},{"$f":"'[2]5.2 Asset Age Profile'!BZ70+'[3]5.2 Asset Age Profile'!BZ70","v":0},{"$f":"'[2]5.2 Asset Age Profile'!CA70+'[3]5.2 Asset Age Profile'!CA70","v":0},{"$f":"'[2]5.2 Asset Age Profile'!CB70+'[3]5.2 Asset Age Profile'!CB70","v":0},{"$f":"'[2]5.2 Asset Age Profile'!CC70+'[3]5.2 Asset Age Profile'!CC70","v":0},{"$f":"'[2]5.2 Asset Age Profile'!CD70+'[3]5.2 Asset Age Profile'!CD70","v":0},{"$f":"'[2]5.2 Asset Age Profile'!CE70+'[3]5.2 Asset Age Profile'!CE70","v":0},{"$f":"'[2]5.2 Asset Age Profile'!CF70+'[3]5.2 Asset Age Profile'!CF70","v":0},{"$f":"'[2]5.2 Asset Age Profile'!CG70+'[3]5.2 Asset Age Profile'!CG70","v":0},{"$f":"'[2]5.2 Asset Age Profile'!CH70+'[3]5.2 Asset Age Profile'!CH70","v":0},{"$f":"'[2]5.2 Asset Age Profile'!CI70+'[3]5.2 Asset Age Profile'!CI70","v":0},{"$f":"'[2]5.2 Asset Age Profile'!CJ70+'[3]5.2 Asset Age Profile'!CJ70","v":0},{"$f":"'[2]5.2 Asset Age Profile'!CK70+'[3]5.2 Asset Age Profile'!CK70","v":0},{"$f":"'[2]5.2 Asset Age Profile'!CL70+'[3]5.2 Asset Age Profile'!CL70","v":0},{"$f":"'[2]5.2 Asset Age Profile'!CM70+'[3]5.2 Asset Age Profile'!CM70","v":0},{"$f":"'[2]5.2 Asset Age Profile'!CN70+'[3]5.2 Asset Age Profile'!CN70","v":0},{"$f":"'[2]5.2 Asset Age Profile'!CO70+'[3]5.2 Asset Age Profile'!CO70","v":0},{"$f":"'[2]5.2 Asset Age Profile'!CP70+'[3]5.2 Asset Age Profile'!CP70","v":0},{"$f":"'[2]5.2 Asset Age Profile'!CQ70+'[3]5.2 Asset Age Profile'!CQ70","v":0},{"$f":"'[2]5.2 Asset Age Profile'!CR70+'[3]5.2 Asset Age Profile'!CR70","v":0},{"$f":"'[2]5.2 Asset Age Profile'!CS70+'[3]5.2 Asset Age Profile'!CS70","v":0},{"$f":"'[2]5.2 Asset Age Profile'!CT70+'[3]5.2 Asset Age Profile'!CT70","v":0},{"$f":"'[2]5.2 Asset Age Profile'!CU70+'[3]5.2 Asset Age Profile'!CU70","v":0},{"$f":"'[2]5.2 Asset Age Profile'!CV70+'[3]5.2 Asset Age Profile'!CV70","v":0},{"$f":"'[2]5.2 Asset Age Profile'!CW70+'[3]5.2 Asset Age Profile'!CW70","v":0},{"$f":"'[2]5.2 Asset Age Profile'!CX70+'[3]5.2 Asset Age Profile'!CX70","v":0},{"$f":"'[2]5.2 Asset Age Profile'!CY70+'[3]5.2 Asset Age Profile'!CY70","v":0},{"$f":"'[2]5.2 Asset Age Profile'!CZ70+'[3]5.2 Asset Age Profile'!CZ70","v":0},{"$f":"'[2]5.2 Asset Age Profile'!DA70+'[3]5.2 Asset Age Profile'!DA70","v":0},{"$f":"'[2]5.2 Asset Age Profile'!DB70+'[3]5.2 Asset Age Profile'!DB70","v":0},{"$f":"'[2]5.2 Asset Age Profile'!DC70+'[3]5.2 Asset Age Profile'!DC70","v":0},{"$f":"'[2]5.2 Asset Age Profile'!DD70+'[3]5.2 Asset Age Profile'!DD70","v":0},{"$f":"'[2]5.2 Asset Age Profile'!DE70+'[3]5.2 Asset Age Profile'!DE70","v":0},{"$f":"'[2]5.2 Asset Age Profile'!DF70+'[3]5.2 Asset Age Profile'!DF70","v":0},{"$f":"'[2]5.2 Asset Age Profile'!DG70+'[3]5.2 Asset Age Profile'!DG70","v":0},{"$f":"'[2]5.2 Asset Age Profile'!DH70+'[3]5.2 Asset Age Profile'!DH70","v":0},{"$f":"'[2]5.2 Asset Age Profile'!DI70+'[3]5.2 Asset Age Profile'!DI70","v":0},{"$f":"'[2]5.2 Asset Age Profile'!DJ70+'[3]5.2 Asset Age Profile'!DJ70","v":0},{"$f":"'[2]5.2 Asset Age Profile'!DK70+'[3]5.2 Asset Age Profile'!DK70","v":0},{"$f":"'[2]5.2 Asset Age Profile'!DL70+'[3]5.2 Asset Age Profile'!DL70","v":0},{"$f":"'[2]5.2 Asset Age Profile'!DM70+'[3]5.2 Asset Age Profile'!DM70","v":0},{"$f":"'[2]5.2 Asset Age Profile'!DN70+'[3]5.2 Asset Age Profile'!DN70","v":0},{"$f":"'[2]5.2 Asset Age Profile'!DO70+'[3]5.2 Asset Age Profile'!DO70","v":0},{"$f":"'[2]5.2 Asset Age Profile'!DP70+'[3]5.2 Asset Age Profile'!DP70","v":0},{"$f":"'[2]5.2 Asset Age Profile'!DQ70+'[3]5.2 Asset Age Profile'!DQ70","v":0},{"$f":"'[2]5.2 Asset Age Profile'!DR70+'[3]5.2 Asset Age Profile'!DR70","v":0},{"$f":"'[2]5.2 Asset Age Profile'!DS70+'[3]5.2 Asset Age Profile'!DS70","v":0},{"$f":"'[2]5.2 Asset Age Profile'!DT70+'[3]5.2 Asset Age Profile'!DT70","v":0},{"$f":"'[2]5.2 Asset Age Profile'!DU70+'[3]5.2 Asset Age Profile'!DU70","v":0},{"$f":"'[2]5.2 Asset Age Profile'!DV70+'[3]5.2 Asset Age Profile'!DV70","v":0},{"$f":"'[2]5.2 Asset Age Profile'!DW70+'[3]5.2 Asset Age Profile'!DW70","v":0},{"$f":"'[2]5.2 Asset Age Profile'!DX70+'[3]5.2 Asset Age Profile'!DX70","v":0},{"$f":"'[2]5.2 Asset Age Profile'!DY70+'[3]5.2 Asset Age Profile'!DY70","v":0},{"$f":"'[2]5.2 Asset Age Profile'!DZ70+'[3]5.2 Asset Age Profile'!DZ70","v":0},{"$f":"'[2]5.2 Asset Age Profile'!EA70+'[3]5.2 Asset Age Profile'!EA70","v":0},{"$f":"'[2]5.2 Asset Age Profile'!EB70+'[3]5.2 Asset Age Profile'!EB70","v":0},{"$f":"'[2]5.2 Asset Age Profile'!EC70+'[3]5.2 Asset Age Profile'!EC70","v":0},{"$f":"'[2]5.2 Asset Age Profile'!ED70+'[3]5.2 Asset Age Profile'!ED70","v":0},{"$f":"'[2]5.2 Asset Age Profile'!EE70+'[3]5.2 Asset Age Profile'!EE70","v":0},{"$f":"'[2]5.2 Asset Age Profile'!EF70+'[3]5.2 Asset Age Profile'!EF70","v":0},{"$f":"'[2]5.2 Asset Age Profile'!EG70+'[3]5.2 Asset Age Profile'!EG70","v":0},{"$f":"'[2]5.2 Asset Age Profile'!EH70+'[3]5.2 Asset Age Profile'!EH70","v":0},{"$f":"'[2]5.2 Asset Age Profile'!EI70+'[3]5.2 Asset Age Profile'!EI70","v":0},{"$f":"'[2]5.2 Asset Age Profile'!EJ70+'[3]5.2 Asset Age Profile'!EJ70","v":0}]
["ED_ASS521_00061","TRANSFORMERS BY: \nMOUNTING TYPE; HIGHEST OPERATING VOLTAGE ; AMPERE RATING; NUMBER OF PHASES (AT LV)","Pole Mounted ; < = 22kV ;  < = 60 kVA ; Single Phase",null,"DNSP NAME","REPEX","TRANSFORMERS","Pole Mounted ; < = 22kV ;  < = 60 kVA ; Single Phase","DESCRIPTOR METRIC","MEAN ECONOMIC LIFE","YEARS","NUMBER",null,{"$f":"'[2]5.2 Asset Age Profile'!N71+'[3]5.2 Asset Age Profile'!N71","v":55},{"$f":"'[2]5.2 Asset Age Profile'!O71+'[3]5.2 Asset Age Profile'!O71","v":0},{"$f":"'[2]5.2 Asset Age Profile'!P71+'[3]5.2 Asset Age Profile'!P71","v":0},{"$f":"'[2]5.2 Asset Age Profile'!Q71+'[3]5.2 Asset Age Profile'!Q71","v":0},{"$f":"'[2]5.2 Asset Age Profile'!R71+'[3]5.2 Asset Age Profile'!R71","v":0},{"$f":"'[2]5.2 Asset Age Profile'!S71+'[3]5.2 Asset Age Profile'!S71","v":0},{"$f":"'[2]5.2 Asset Age Profile'!T71+'[3]5.2 Asset Age Profile'!T71","v":0},{"$f":"'[2]5.2 Asset Age Profile'!U71+'[3]5.2 Asset Age Profile'!U71","v":0},{"$f":"'[2]5.2 Asset Age Profile'!V71+'[3]5.2 Asset Age Profile'!V71","v":0},{"$f":"'[2]5.2 Asset Age Profile'!W71+'[3]5.2 Asset Age Profile'!W71","v":0},{"$f":"'[2]5.2 Asset Age Profile'!X71+'[3]5.2 Asset Age Profile'!X71","v":0},{"$f":"'[2]5.2 Asset Age Profile'!Y71+'[3]5.2 Asset Age Profile'!Y71","v":13},{"$f":"'[2]5.2 Asset Age Profile'!Z71+'[3]5.2 Asset Age Profile'!Z71","v":0},{"$f":"'[2]5.2 Asset Age Profile'!AA71+'[3]5.2 Asset Age Profile'!AA71","v":0},{"$f":"'[2]5.2 Asset Age Profile'!AB71+'[3]5.2 Asset Age Profile'!AB71","v":0},{"$f":"'[2]5.2 Asset Age Profile'!AC71+'[3]5.2 Asset Age Profile'!AC71","v":0},{"$f":"'[2]5.2 Asset Age Profile'!AD71+'[3]5.2 Asset Age Profile'!AD71","v":0},{"$f":"'[2]5.2 Asset Age Profile'!AE71+'[3]5.2 Asset Age Profile'!AE71","v":0},{"$f":"'[2]5.2 Asset Age Profile'!AF71+'[3]5.2 Asset Age Profile'!AF71","v":0},{"$f":"'[2]5.2 Asset Age Profile'!AG71+'[3]5.2 Asset Age Profile'!AG71","v":0},{"$f":"'[2]5.2 Asset Age Profile'!AH71+'[3]5.2 Asset Age Profile'!AH71","v":0},{"$f":"'[2]5.2 Asset Age Profile'!AI71+'[3]5.2 Asset Age Profile'!AI71","v":0},{"$f":"'[2]5.2 Asset Age Profile'!AJ71+'[3]5.2 Asset Age Profile'!AJ71","v":2},{"$f":"'[2]5.2 Asset Age Profile'!AK71+'[3]5.2 Asset Age Profile'!AK71","v":0},{"$f":"'[2]5.2 Asset Age Profile'!AL71+'[3]5.2 Asset Age Profile'!AL71","v":3},{"$f":"'[2]5.2 Asset Age Profile'!AM71+'[3]5.2 Asset Age Profile'!AM71","v":0},{"$f":"'[2]5.2 Asset Age Profile'!AN71+'[3]5.2 Asset Age Profile'!AN71","v":3},{"$f":"'[2]5.2 Asset Age Profile'!AO71+'[3]5.2 Asset Age Profile'!AO71","v":0},{"$f":"'[2]5.2 Asset Age Profile'!AP71+'[3]5.2 Asset Age Profile'!AP71","v":0},{"$f":"'[2]5.2 Asset Age Profile'!AQ71+'[3]5.2 Asset Age Profile'!AQ71","v":4},{"$f":"'[2]5.2 Asset Age Profile'!AR71+'[3]5.2 Asset Age Profile'!AR71","v":10},{"$f":"'[2]5.2 Asset Age Profile'!AS71+'[3]5.2 Asset Age Profile'!AS71","v":7},{"$f":"'[2]5.2 Asset Age Profile'!AT71+'[3]5.2 Asset Age Profile'!AT71","v":6},{"$f":"'[2]5.2 Asset Age Profile'!AU71+'[3]5.2 Asset Age Profile'!AU71","v":2},{"$f":"'[2]5.2 Asset Age Profile'!AV71+'[3]5.2 Asset Age Profile'!AV71","v":7},{"$f":"'[2]5.2 Asset Age Profile'!AW71+'[3]5.2 Asset Age Profile'!AW71","v":2},{"$f":"'[2]5.2 Asset Age Profile'!AX71+'[3]5.2 Asset Age Profile'!AX71","v":4},{"$f":"'[2]5.2 Asset Age Profile'!AY71+'[3]5.2 Asset Age Profile'!AY71","v":7},{"$f":"'[2]5.2 Asset Age Profile'!AZ71+'[3]5.2 Asset Age Profile'!AZ71","v":4},{"$f":"'[2]5.2 Asset Age Profile'!BA71+'[3]5.2 Asset Age Profile'!BA71","v":3},{"$f":"'[2]5.2 Asset Age Profile'!BB71+'[3]5.2 Asset Age Profile'!BB71","v":2},{"$f":"'[2]5.2 Asset Age Profile'!BC71+'[3]5.2 Asset Age Profile'!BC71","v":0},{"$f":"'[2]5.2 Asset Age Profile'!BD71+'[3]5.2 Asset Age Profile'!BD71","v":0},{"$f":"'[2]5.2 Asset Age Profile'!BE71+'[3]5.2 Asset Age Profile'!BE71","v":0},{"$f":"'[2]5.2 Asset Age Profile'!BF71+'[3]5.2 Asset Age Profile'!BF71","v":1},{"$f":"'[2]5.2 Asset Age Profile'!BG71+'[3]5.2 Asset Age Profile'!BG71","v":3},{"$f":"'[2]5.2 Asset Age Profile'!BH71+'[3]5.2 Asset Age Profile'!BH71","v":4},{"$f":"'[2]5.2 Asset Age Profile'!BI71+'[3]5.2 Asset Age Profile'!BI71","v":1},{"$f":"'[2]5.2 Asset Age Profile'!BJ71+'[3]5.2 Asset Age Profile'!BJ71","v":0},{"$f":"'[2]5.2 Asset Age Profile'!BK71+'[3]5.2 Asset Age Profile'!BK71","v":3},{"$f":"'[2]5.2 Asset Age Profile'!BL71+'[3]5.2 Asset Age Profile'!BL71","v":0},{"$f":"'[2]5.2 Asset Age Profile'!BM71+'[3]5.2 Asset Age Profile'!BM71","v":0},{"$f":"'[2]5.2 Asset Age Profile'!BN71+'[3]5.2 Asset Age Profile'!BN71","v":2},{"$f":"'[2]5.2 Asset Age Profile'!BO71+'[3]5.2 Asset Age Profile'!BO71","v":1},{"$f":"'[2]5.2 Asset Age Profile'!BP71+'[3]5.2 Asset Age Profile'!BP71","v":0},{"$f":"'[2]5.2 Asset Age Profile'!BQ71+'[3]5.2 Asset Age Profile'!BQ71","v":3},{"$f":"'[2]5.2 Asset Age Profile'!BR71+'[3]5.2 Asset Age Profile'!BR71","v":2},{"$f":"'[2]5.2 Asset Age Profile'!BS71+'[3]5.2 Asset Age Profile'!BS71","v":1},{"$f":"'[2]5.2 Asset Age Profile'!BT71+'[3]5.2 Asset Age Profile'!BT71","v":4},{"$f":"'[2]5.2 Asset Age Profile'!BU71+'[3]5.2 Asset Age Profile'!BU71","v":4},{"$f":"'[2]5.2 Asset Age Profile'!BV71+'[3]5.2 Asset Age Profile'!BV71","v":0},{"$f":"'[2]5.2 Asset Age Profile'!BW71+'[3]5.2 Asset Age Profile'!BW71","v":1},{"$f":"'[2]5.2 Asset Age Profile'!BX71+'[3]5.2 Asset Age Profile'!BX71","v":1},{"$f":"'[2]5.2 Asset Age Profile'!BY71+'[3]5.2 Asset Age Profile'!BY71","v":2},{"$f":"'[2]5.2 Asset Age Profile'!BZ71+'[3]5.2 Asset Age Profile'!BZ71","v":4},{"$f":"'[2]5.2 Asset Age Profile'!CA71+'[3]5.2 Asset Age Profile'!CA71","v":3},{"$f":"'[2]5.2 Asset Age Profile'!CB71+'[3]5.2 Asset Age Profile'!CB71","v":2},{"$f":"'[2]5.2 Asset Age Profile'!CC71+'[3]5.2 Asset Age Profile'!CC71","v":2},{"$f":"'[2]5.2 Asset Age Profile'!CD71+'[3]5.2 Asset Age Profile'!CD71","v":0},{"$f":"'[2]5.2 Asset Age Profile'!CE71+'[3]5.2 Asset Age Profile'!CE71","v":2},{"$f":"'[2]5.2 Asset Age Profile'!CF71+'[3]5.2 Asset Age Profile'!CF71","v":1},{"$f":"'[2]5.2 Asset Age Profile'!CG71+'[3]5.2 Asset Age Profile'!CG71","v":4},{"$f":"'[2]5.2 Asset Age Profile'!CH71+'[3]5.2 Asset Age Profile'!CH71","v":2},{"$f":"'[2]5.2 Asset Age Profile'!CI71+'[3]5.2 Asset Age Profile'!CI71","v":1},{"$f":"'[2]5.2 Asset Age Profile'!CJ71+'[3]5.2 Asset Age Profile'!CJ71","v":1},{"$f":"'[2]5.2 Asset Age Profile'!CK71+'[3]5.2 Asset Age Profile'!CK71","v":0},{"$f":"'[2]5.2 Asset Age Profile'!CL71+'[3]5.2 Asset Age Profile'!CL71","v":0},{"$f":"'[2]5.2 Asset Age Profile'!CM71+'[3]5.2 Asset Age Profile'!CM71","v":0},{"$f":"'[2]5.2 Asset Age Profile'!CN71+'[3]5.2 Asset Age Profile'!CN71","v":0},{"$f":"'[2]5.2 Asset Age Profile'!CO71+'[3]5.2 Asset Age Profile'!CO71","v":1},{"$f":"'[2]5.2 Asset Age Profile'!CP71+'[3]5.2 Asset Age Profile'!CP71","v":0},{"$f":"'[2]5.2 Asset Age Profile'!CQ71+'[3]5.2 Asset Age Profile'!CQ71","v":0},{"$f":"'[2]5.2 Asset Age Profile'!CR71+'[3]5.2 Asset Age Profile'!CR71","v":0},{"$f":"'[2]5.2 Asset Age Profile'!CS71+'[3]5.2 Asset Age Profile'!CS71","v":1},{"$f":"'[2]5.2 Asset Age Profile'!CT71+'[3]5.2 Asset Age Profile'!CT71","v":1},{"$f":"'[2]5.2 Asset Age Profile'!CU71+'[3]5.2 Asset Age Profile'!CU71","v":0},{"$f":"'[2]5.2 Asset Age Profile'!CV71+'[3]5.2 Asset Age Profile'!CV71","v":0},{"$f":"'[2]5.2 Asset Age Profile'!CW71+'[3]5.2 Asset Age Profile'!CW71","v":0},{"$f":"'[2]5.2 Asset Age Profile'!CX71+'[3]5.2 Asset Age Profile'!CX71","v":0},{"$f":"'[2]5.2 Asset Age Profile'!CY71+'[3]5.2 Asset Age Profile'!CY71","v":0},{"$f":"'[2]5.2 Asset Age Profile'!CZ71+'[3]5.2 Asset Age Profile'!CZ71","v":0},{"$f":"'[2]5.2 Asset Age Profile'!DA71+'[3]5.2 Asset Age Profile'!DA71","v":0},{"$f":"'[2]5.2 Asset Age Profile'!DB71+'[3]5.2 Asset Age Profile'!DB71","v":0},{"$f":"'[2]5.2 Asset Age Profile'!DC71+'[3]5.2 Asset Age Profile'!DC71","v":0},{"$f":"'[2]5.2 Asset Age Profile'!DD71+'[3]5.2 Asset Age Profile'!DD71","v":0},{"$f":"'[2]5.2 Asset Age Profile'!DE71+'[3]5.2 Asset Age Profile'!DE71","v":0},{"$f":"'[2]5.2 Asset Age Profile'!DF71+'[3]5.2 Asset Age Profile'!DF71","v":0},{"$f":"'[2]5.2 Asset Age Profile'!DG71+'[3]5.2 Asset Age Profile'!DG71","v":0},{"$f":"'[2]5.2 Asset Age Profile'!DH71+'[3]5.2 Asset Age Profile'!DH71","v":0},{"$f":"'[2]5.2 Asset Age Profile'!DI71+'[3]5.2 Asset Age Profile'!DI71","v":0},{"$f":"'[2]5.2 Asset Age Profile'!DJ71+'[3]5.2 Asset Age Profile'!DJ71","v":0},{"$f":"'[2]5.2 Asset Age Profile'!DK71+'[3]5.2 Asset Age Profile'!DK71","v":0},{"$f":"'[2]5.2 Asset Age Profile'!DL71+'[3]5.2 Asset Age Profile'!DL71","v":0},{"$f":"'[2]5.2 Asset Age Profile'!DM71+'[3]5.2 Asset Age Profile'!DM71","v":0},{"$f":"'[2]5.2 Asset Age Profile'!DN71+'[3]5.2 Asset Age Profile'!DN71","v":0},{"$f":"'[2]5.2 Asset Age Profile'!DO71+'[3]5.2 Asset Age Profile'!DO71","v":0},{"$f":"'[2]5.2 Asset Age Profile'!DP71+'[3]5.2 Asset Age Profile'!DP71","v":0},{"$f":"'[2]5.2 Asset Age Profile'!DQ71+'[3]5.2 Asset Age Profile'!DQ71","v":0},{"$f":"'[2]5.2 Asset Age Profile'!DR71+'[3]5.2 Asset Age Profile'!DR71","v":0},{"$f":"'[2]5.2 Asset Age Profile'!DS71+'[3]5.2 Asset Age Profile'!DS71","v":0},{"$f":"'[2]5.2 Asset Age Profile'!DT71+'[3]5.2 Asset Age Profile'!DT71","v":0},{"$f":"'[2]5.2 Asset Age Profile'!DU71+'[3]5.2 Asset Age Profile'!DU71","v":0},{"$f":"'[2]5.2 Asset Age Profile'!DV71+'[3]5.2 Asset Age Profile'!DV71","v":0},{"$f":"'[2]5.2 Asset Age Profile'!DW71+'[3]5.2 Asset Age Profile'!DW71","v":0},{"$f":"'[2]5.2 Asset Age Profile'!DX71+'[3]5.2 Asset Age Profile'!DX71","v":0},{"$f":"'[2]5.2 Asset Age Profile'!DY71+'[3]5.2 Asset Age Profile'!DY71","v":0},{"$f":"'[2]5.2 Asset Age Profile'!DZ71+'[3]5.2 Asset Age Profile'!DZ71","v":0},{"$f":"'[2]5.2 Asset Age Profile'!EA71+'[3]5.2 Asset Age Profile'!EA71","v":0},{"$f":"'[2]5.2 Asset Age Profile'!EB71+'[3]5.2 Asset Age Profile'!EB71","v":0},{"$f":"'[2]5.2 Asset Age Profile'!EC71+'[3]5.2 Asset Age Profile'!EC71","v":0},{"$f":"'[2]5.2 Asset Age Profile'!ED71+'[3]5.2 Asset Age Profile'!ED71","v":0},{"$f":"'[2]5.2 Asset Age Profile'!EE71+'[3]5.2 Asset Age Profile'!EE71","v":0},{"$f":"'[2]5.2 Asset Age Profile'!EF71+'[3]5.2 Asset Age Profile'!EF71","v":0},{"$f":"'[2]5.2 Asset Age Profile'!EG71+'[3]5.2 Asset Age Profile'!EG71","v":0},{"$f":"'[2]5.2 Asset Age Profile'!EH71+'[3]5.2 Asset Age Profile'!EH71","v":0},{"$f":"'[2]5.2 Asset Age Profile'!EI71+'[3]5.2 Asset Age Profile'!EI71","v":0},{"$f":"'[2]5.2 Asset Age Profile'!EJ71+'[3]5.2 Asset Age Profile'!EJ71","v":15}]
["ED_ASS521_00062",null,"Pole Mounted ; < = 22kV ;  > 60 kVA and < = 600 kVA ; Single Phase",null,"DNSP NAME","REPEX","TRANSFORMERS","Pole Mounted ; < = 22kV ;  > 60 kVA and < = 600 kVA ; Single Phase","DESCRIPTOR METRIC","MEAN ECONOMIC LIFE","YEARS","NUMBER",null,{"$f":"'[2]5.2 Asset Age Profile'!N72+'[3]5.2 Asset Age Profile'!N72","v":55},{"$f":"'[2]5.2 Asset Age Profile'!O72+'[3]5.2 Asset Age Profile'!O72","v":0},{"$f":"'[2]5.2 Asset Age Profile'!P72+'[3]5.2 Asset Age Profile'!P72","v":0},{"$f":"'[2]5.2 Asset Age Profile'!Q72+'[3]5.2 Asset Age Profile'!Q72","v":0},{"$f":"'[2]5.2 Asset Age Profile'!R72+'[3]5.2 Asset Age Profile'!R72","v":0},{"$f":"'[2]5.2 Asset Age Profile'!S72+'[3]5.2 Asset Age Profile'!S72","v":0},{"$f":"'[2]5.2 Asset Age Profile'!T72+'[3]5.2 Asset Age Profile'!T72","v":0},{"$f":"'[2]5.2 Asset Age Profile'!U72+'[3]5.2 Asset Age Profile'!U72","v":0},{"$f":"'[2]5.2 Asset Age Profile'!V72+'[3]5.2 Asset Age Profile'!V72","v":0},{"$f":"'[2]5.2 Asset Age Profile'!W72+'[3]5.2 Asset Age Profile'!W72","v":0},{"$f":"'[2]5.2 Asset Age Profile'!X72+'[3]5.2 Asset Age Profile'!X72","v":0},{"$f":"'[2]5.2 Asset Age Profile'!Y72+'[3]5.2 Asset Age Profile'!Y72","v":13},{"$f":"'[2]5.2 Asset Age Profile'!Z72+'[3]5.2 Asset Age Profile'!Z72","v":0},{"$f":"'[2]5.2 Asset Age Profile'!AA72+'[3]5.2 Asset Age Profile'!AA72","v":0},{"$f":"'[2]5.2 Asset Age Profile'!AB72+'[3]5.2 Asset Age Profile'!AB72","v":0},{"$f":"'[2]5.2 Asset Age Profile'!AC72+'[3]5.2 Asset Age Profile'!AC72","v":0},{"$f":"'[2]5.2 Asset Age Profile'!AD72+'[3]5.2 Asset Age Profile'!AD72","v":0},{"$f":"'[2]5.2 Asset Age Profile'!AE72+'[3]5.2 Asset Age Profile'!AE72","v":0},{"$f":"'[2]5.2 Asset Age Profile'!AF72+'[3]5.2 Asset Age Profile'!AF72","v":0},{"$f":"'[2]5.2 Asset Age Profile'!AG72+'[3]5.2 Asset Age Profile'!AG72","v":0},{"$f":"'[2]5.2 Asset Age Profile'!AH72+'[3]5.2 Asset Age Profile'!AH72","v":0},{"$f":"'[2]5.2 Asset Age Profile'!AI72+'[3]5.2 Asset Age Profile'!AI72","v":0},{"$f":"'[2]5.2 Asset Age Profile'!AJ72+'[3]5.2 Asset Age Profile'!AJ72","v":0},{"$f":"'[2]5.2 Asset Age Profile'!AK72+'[3]5.2 Asset Age Profile'!AK72","v":0},{"$f":"'[2]5.2 Asset Age Profile'!AL72+'[3]5.2 Asset Age Profile'!AL72","v":0},{"$f":"'[2]5.2 Asset Age Profile'!AM72+'[3]5.2 Asset Age Profile'!AM72","v":0},{"$f":"'[2]5.2 Asset Age Profile'!AN72+'[3]5.2 Asset Age Profile'!AN72","v":0},{"$f":"'[2]5.2 Asset Age Profile'!AO72+'[3]5.2 Asset Age Profile'!AO72","v":0},{"$f":"'[2]5.2 Asset Age Profile'!AP72+'[3]5.2 Asset Age Profile'!AP72","v":0},{"$f":"'[2]5.2 Asset Age Profile'!AQ72+'[3]5.2 Asset Age Profile'!AQ72","v":0},{"$f":"'[2]5.2 Asset Age Profile'!AR72+'[3]5.2 Asset Age Profile'!AR72","v":0},{"$f":"'[2]5.2 Asset Age Profile'!AS72+'[3]5.2 Asset Age Profile'!AS72","v":1},{"$f":"'[2]5.2 Asset Age Profile'!AT72+'[3]5.2 Asset Age Profile'!AT72","v":0},{"$f":"'[2]5.2 Asset Age Profile'!AU72+'[3]5.2 Asset Age Profile'!AU72","v":0},{"$f":"'[2]5.2 Asset Age Profile'!AV72+'[3]5.2 Asset Age Profile'!AV72","v":0},{"$f":"'[2]5.2 Asset Age Profile'!AW72+'[3]5.2 Asset Age Profile'!AW72","v":0},{"$f":"'[2]5.2 Asset Age Profile'!AX72+'[3]5.2 Asset Age Profile'!AX72","v":0},{"$f":"'[2]5.2 Asset Age Profile'!AY72+'[3]5.2 Asset Age Profile'!AY72","v":0},{"$f":"'[2]5.2 Asset Age Profile'!AZ72+'[3]5.2 Asset Age Profile'!AZ72","v":0},{"$f":"'[2]5.2 Asset Age Profile'!BA72+'[3]5.2 Asset Age Profile'!BA72","v":1},{"$f":"'[2]5.2 Asset Age Profile'!BB72+'[3]5.2 Asset Age Profile'!BB72","v":0},{"$f":"'[2]5.2 Asset Age Profile'!BC72+'[3]5.2 Asset Age Profile'!BC72","v":0},{"$f":"'[2]5.2 Asset Age Profile'!BD72+'[3]5.2 Asset Age Profile'!BD72","v":0},{"$f":"'[2]5.2 Asset Age Profile'!BE72+'[3]5.2 Asset Age Profile'!BE72","v":0},{"$f":"'[2]5.2 Asset Age Profile'!BF72+'[3]5.2 Asset Age Profile'!BF72","v":0},{"$f":"'[2]5.2 Asset Age Profile'!BG72+'[3]5.2 Asset Age Profile'!BG72","v":0},{"$f":"'[2]5.2 Asset Age Profile'!BH72+'[3]5.2 Asset Age Profile'!BH72","v":0},{"$f":"'[2]5.2 Asset Age Profile'!BI72+'[3]5.2 Asset Age Profile'!BI72","v":0},{"$f":"'[2]5.2 Asset Age Profile'!BJ72+'[3]5.2 Asset Age Profile'!BJ72","v":1},{"$f":"'[2]5.2 Asset Age Profile'!BK72+'[3]5.2 Asset Age Profile'!BK72","v":0},{"$f":"'[2]5.2 Asset Age Profile'!BL72+'[3]5.2 Asset Age Profile'!BL72","v":0},{"$f":"'[2]5.2 Asset Age Profile'!BM72+'[3]5.2 Asset Age Profile'!BM72","v":0},{"$f":"'[2]5.2 Asset Age Profile'!BN72+'[3]5.2 Asset Age Profile'!BN72","v":0},{"$f":"'[2]5.2 Asset Age Profile'!BO72+'[3]5.2 Asset Age Profile'!BO72","v":0},{"$f":"'[2]5.2 Asset Age Profile'!BP72+'[3]5.2 Asset Age Profile'!BP72","v":0},{"$f":"'[2]5.2 Asset Age Profile'!BQ72+'[3]5.2 Asset Age Profile'!BQ72","v":0},{"$f":"'[2]5.2 Asset Age Profile'!BR72+'[3]5.2 Asset Age Profile'!BR72","v":0},{"$f":"'[2]5.2 Asset Age Profile'!BS72+'[3]5.2 Asset Age Profile'!BS72","v":0},{"$f":"'[2]5.2 Asset Age Profile'!BT72+'[3]5.2 Asset Age Profile'!BT72","v":0},{"$f":"'[2]5.2 Asset Age Profile'!BU72+'[3]5.2 Asset Age Profile'!BU72","v":0},{"$f":"'[2]5.2 Asset Age Profile'!BV72+'[3]5.2 Asset Age Profile'!BV72","v":0},{"$f":"'[2]5.2 Asset Age Profile'!BW72+'[3]5.2 Asset Age Profile'!BW72","v":0},{"$f":"'[2]5.2 Asset Age Profile'!BX72+'[3]5.2 Asset Age Profile'!BX72","v":0},{"$f":"'[2]5.2 Asset Age Profile'!BY72+'[3]5.2 Asset Age Profile'!BY72","v":0},{"$f":"'[2]5.2 Asset Age Profile'!BZ72+'[3]5.2 Asset Age Profile'!BZ72","v":0},{"$f":"'[2]5.2 Asset Age Profile'!CA72+'[3]5.2 Asset Age Profile'!CA72","v":0},{"$f":"'[2]5.2 Asset Age Profile'!CB72+'[3]5.2 Asset Age Profile'!CB72","v":0},{"$f":"'[2]5.2 Asset Age Profile'!CC72+'[3]5.2 Asset Age Profile'!CC72","v":0},{"$f":"'[2]5.2 Asset Age Profile'!CD72+'[3]5.2 Asset Age Profile'!CD72","v":0},{"$f":"'[2]5.2 Asset Age Profile'!CE72+'[3]5.2 Asset Age Profile'!CE72","v":0},{"$f":"'[2]5.2 Asset Age Profile'!CF72+'[3]5.2 Asset Age Profile'!CF72","v":0},{"$f":"'[2]5.2 Asset Age Profile'!CG72+'[3]5.2 Asset Age Profile'!CG72","v":0},{"$f":"'[2]5.2 Asset Age Profile'!CH72+'[3]5.2 Asset Age Profile'!CH72","v":0},{"$f":"'[2]5.2 Asset Age Profile'!CI72+'[3]5.2 Asset Age Profile'!CI72","v":0},{"$f":"'[2]5.2 Asset Age Profile'!CJ72+'[3]5.2 Asset Age Profile'!CJ72","v":0},{"$f":"'[2]5.2 Asset Age Profile'!CK72+'[3]5.2 Asset Age Profile'!CK72","v":0},{"$f":"'[2]5.2 Asset Age Profile'!CL72+'[3]5.2 Asset Age Profile'!CL72","v":0},{"$f":"'[2]5.2 Asset Age Profile'!CM72+'[3]5.2 Asset Age Profile'!CM72","v":0},{"$f":"'[2]5.2 Asset Age Profile'!CN72+'[3]5.2 Asset Age Profile'!CN72","v":0},{"$f":"'[2]5.2 Asset Age Profile'!CO72+'[3]5.2 Asset Age Profile'!CO72","v":0},{"$f":"'[2]5.2 Asset Age Profile'!CP72+'[3]5.2 Asset Age Profile'!CP72","v":0},{"$f":"'[2]5.2 Asset Age Profile'!CQ72+'[3]5.2 Asset Age Profile'!CQ72","v":0},{"$f":"'[2]5.2 Asset Age Profile'!CR72+'[3]5.2 Asset Age Profile'!CR72","v":0},{"$f":"'[2]5.2 Asset Age Profile'!CS72+'[3]5.2 Asset Age Profile'!CS72","v":0},{"$f":"'[2]5.2 Asset Age Profile'!CT72+'[3]5.2 Asset Age Profile'!CT72","v":0},{"$f":"'[2]5.2 Asset Age Profile'!CU72+'[3]5.2 Asset Age Profile'!CU72","v":0},{"$f":"'[2]5.2 Asset Age Profile'!CV72+'[3]5.2 Asset Age Profile'!CV72","v":0},{"$f":"'[2]5.2 Asset Age Profile'!CW72+'[3]5.2 Asset Age Profile'!CW72","v":0},{"$f":"'[2]5.2 Asset Age Profile'!CX72+'[3]5.2 Asset Age Profile'!CX72","v":0},{"$f":"'[2]5.2 Asset Age Profile'!CY72+'[3]5.2 Asset Age Profile'!CY72","v":0},{"$f":"'[2]5.2 Asset Age Profile'!CZ72+'[3]5.2 Asset Age Profile'!CZ72","v":0},{"$f":"'[2]5.2 Asset Age Profile'!DA72+'[3]5.2 Asset Age Profile'!DA72","v":0},{"$f":"'[2]5.2 Asset Age Profile'!DB72+'[3]5.2 Asset Age Profile'!DB72","v":0},{"$f":"'[2]5.2 Asset Age Profile'!DC72+'[3]5.2 Asset Age Profile'!DC72","v":0},{"$f":"'[2]5.2 Asset Age Profile'!DD72+'[3]5.2 Asset Age Profile'!DD72","v":0},{"$f":"'[2]5.2 Asset Age Profile'!DE72+'[3]5.2 Asset Age Profile'!DE72","v":0},{"$f":"'[2]5.2 Asset Age Profile'!DF72+'[3]5.2 Asset Age Profile'!DF72","v":0},{"$f":"'[2]5.2 Asset Age Profile'!DG72+'[3]5.2 Asset Age Profile'!DG72","v":0},{"$f":"'[2]5.2 Asset Age Profile'!DH72+'[3]5.2 Asset Age Profile'!DH72","v":0},{"$f":"'[2]5.2 Asset Age Profile'!DI72+'[3]5.2 Asset Age Profile'!DI72","v":0},{"$f":"'[2]5.2 Asset Age Profile'!DJ72+'[3]5.2 Asset Age Profile'!DJ72","v":0},{"$f":"'[2]5.2 Asset Age Profile'!DK72+'[3]5.2 Asset Age Profile'!DK72","v":0},{"$f":"'[2]5.2 Asset Age Profile'!DL72+'[3]5.2 Asset Age Profile'!DL72","v":0},{"$f":"'[2]5.2 Asset Age Profile'!DM72+'[3]5.2 Asset Age Profile'!DM72","v":0},{"$f":"'[2]5.2 Asset Age Profile'!DN72+'[3]5.2 Asset Age Profile'!DN72","v":0},{"$f":"'[2]5.2 Asset Age Profile'!DO72+'[3]5.2 Asset Age Profile'!DO72","v":0},{"$f":"'[2]5.2 Asset Age Profile'!DP72+'[3]5.2 Asset Age Profile'!DP72","v":0},{"$f":"'[2]5.2 Asset Age Profile'!DQ72+'[3]5.2 Asset Age Profile'!DQ72","v":0},{"$f":"'[2]5.2 Asset Age Profile'!DR72+'[3]5.2 Asset Age Profile'!DR72","v":0},{"$f":"'[2]5.2 Asset Age Profile'!DS72+'[3]5.2 Asset Age Profile'!DS72","v":0},{"$f":"'[2]5.2 Asset Age Profile'!DT72+'[3]5.2 Asset Age Profile'!DT72","v":0},{"$f":"'[2]5.2 Asset Age Profile'!DU72+'[3]5.2 Asset Age Profile'!DU72","v":0},{"$f":"'[2]5.2 Asset Age Profile'!DV72+'[3]5.2 Asset Age Profile'!DV72","v":0},{"$f":"'[2]5.2 Asset Age Profile'!DW72+'[3]5.2 Asset Age Profile'!DW72","v":0},{"$f":"'[2]5.2 Asset Age Profile'!DX72+'[3]5.2 Asset Age Profile'!DX72","v":0},{"$f":"'[2]5.2 Asset Age Profile'!DY72+'[3]5.2 Asset Age Profile'!DY72","v":0},{"$f":"'[2]5.2 Asset Age Profile'!DZ72+'[3]5.2 Asset Age Profile'!DZ72","v":0},{"$f":"'[2]5.2 Asset Age Profile'!EA72+'[3]5.2 Asset Age Profile'!EA72","v":0},{"$f":"'[2]5.2 Asset Age Profile'!EB72+'[3]5.2 Asset Age Profile'!EB72","v":0},{"$f":"'[2]5.2 Asset Age Profile'!EC72+'[3]5.2 Asset Age Profile'!EC72","v":0},{"$f":"'[2]5.2 Asset Age Profile'!ED72+'[3]5.2 Asset Age Profile'!ED72","v":0},{"$f":"'[2]5.2 Asset Age Profile'!EE72+'[3]5.2 Asset Age Profile'!EE72","v":0},{"$f":"'[2]5.2 Asset Age Profile'!EF72+'[3]5.2 Asset Age Profile'!EF72","v":0},{"$f":"'[2]5.2 Asset Age Profile'!EG72+'[3]5.2 Asset Age Profile'!EG72","v":0},{"$f":"'[2]5.2 Asset Age Profile'!EH72+'[3]5.2 Asset Age Profile'!EH72","v":0},{"$f":"'[2]5.2 Asset Age Profile'!EI72+'[3]5.2 Asset Age Profile'!EI72","v":0},{"$f":"'[2]5.2 Asset Age Profile'!EJ72+'[3]5.2 Asset Age Profile'!EJ72","v":0}]
["ED_ASS521_00063",null,"Pole Mounted ; < = 22kV ;  > 600 kVA ; Single Phase",null,"DNSP NAME","REPEX","TRANSFORMERS","Pole Mounted ; < = 22kV ;  > 600 kVA ; Single Phase","DESCRIPTOR METRIC","MEAN ECONOMIC LIFE","YEARS","NUMBER",null,{"$f":"'[2]5.2 Asset Age Profile'!N73+'[3]5.2 Asset Age Profile'!N73","v":0},{"$f":"'[2]5.2 Asset Age Profile'!O73+'[3]5.2 Asset Age Profile'!O73","v":0},{"$f":"'[2]5.2 Asset Age Profile'!P73+'[3]5.2 Asset Age Profile'!P73","v":0},{"$f":"'[2]5.2 Asset Age Profile'!Q73+'[3]5.2 Asset Age Profile'!Q73","v":0},{"$f":"'[2]5.2 Asset Age Profile'!R73+'[3]5.2 Asset Age Profile'!R73","v":0},{"$f":"'[2]5.2 Asset Age Profile'!S73+'[3]5.2 Asset Age Profile'!S73","v":0},{"$f":"'[2]5.2 Asset Age Profile'!T73+'[3]5.2 Asset Age Profile'!T73","v":0},{"$f":"'[2]5.2 Asset Age Profile'!U73+'[3]5.2 Asset Age Profile'!U73","v":0},{"$f":"'[2]5.2 Asset Age Profile'!V73+'[3]5.2 Asset Age Profile'!V73","v":0},{"$f":"'[2]5.2 Asset Age Profile'!W73+'[3]5.2 Asset Age Profile'!W73","v":0},{"$f":"'[2]5.2 Asset Age Profile'!X73+'[3]5.2 Asset Age Profile'!X73","v":0},{"$f":"'[2]5.2 Asset Age Profile'!Y73+'[3]5.2 Asset Age Profile'!Y73","v":0},{"$f":"'[2]5.2 Asset Age Profile'!Z73+'[3]5.2 Asset Age Profile'!Z73","v":0},{"$f":"'[2]5.2 Asset Age Profile'!AA73+'[3]5.2 Asset Age Profile'!AA73","v":0},{"$f":"'[2]5.2 Asset Age Profile'!AB73+'[3]5.2 Asset Age Profile'!AB73","v":0},{"$f":"'[2]5.2 Asset Age Profile'!AC73+'[3]5.2 Asset Age Profile'!AC73","v":0},{"$f":"'[2]5.2 Asset Age Profile'!AD73+'[3]5.2 Asset Age Profile'!AD73","v":0},{"$f":"'[2]5.2 Asset Age Profile'!AE73+'[3]5.2 Asset Age Profile'!AE73","v":0},{"$f":"'[2]5.2 Asset Age Profile'!AF73+'[3]5.2 Asset Age Profile'!AF73","v":0},{"$f":"'[2]5.2 Asset Age Profile'!AG73+'[3]5.2 Asset Age Profile'!AG73","v":0},{"$f":"'[2]5.2 Asset Age Profile'!AH73+'[3]5.2 Asset Age Profile'!AH73","v":0},{"$f":"'[2]5.2 Asset Age Profile'!AI73+'[3]5.2 Asset Age Profile'!AI73","v":0},{"$f":"'[2]5.2 Asset Age Profile'!AJ73+'[3]5.2 Asset Age Profile'!AJ73","v":0},{"$f":"'[2]5.2 Asset Age Profile'!AK73+'[3]5.2 Asset Age Profile'!AK73","v":0},{"$f":"'[2]5.2 Asset Age Profile'!AL73+'[3]5.2 Asset Age Profile'!AL73","v":0},{"$f":"'[2]5.2 Asset Age Profile'!AM73+'[3]5.2 Asset Age Profile'!AM73","v":0},{"$f":"'[2]5.2 Asset Age Profile'!AN73+'[3]5.2 Asset Age Profile'!AN73","v":0},{"$f":"'[2]5.2 Asset Age Profile'!AO73+'[3]5.2 Asset Age Profile'!AO73","v":0},{"$f":"'[2]5.2 Asset Age Profile'!AP73+'[3]5.2 Asset Age Profile'!AP73","v":0},{"$f":"'[2]5.2 Asset Age Profile'!AQ73+'[3]5.2 Asset Age Profile'!AQ73","v":0},{"$f":"'[2]5.2 Asset Age Profile'!AR73+'[3]5.2 Asset Age Profile'!AR73","v":0},{"$f":"'[2]5.2 Asset Age Profile'!AS73+'[3]5.2 Asset Age Profile'!AS73","v":0},{"$f":"'[2]5.2 Asset Age Profile'!AT73+'[3]5.2 Asset Age Profile'!AT73","v":0},{"$f":"'[2]5.2 Asset Age Profile'!AU73+'[3]5.2 Asset Age Profile'!AU73","v":0},{"$f":"'[2]5.2 Asset Age Profile'!AV73+'[3]5.2 Asset Age Profile'!AV73","v":0},{"$f":"'[2]5.2 Asset Age Profile'!AW73+'[3]5.2 Asset Age Profile'!AW73","v":0},{"$f":"'[2]5.2 Asset Age Profile'!AX73+'[3]5.2 Asset Age Profile'!AX73","v":0},{"$f":"'[2]5.2 Asset Age Profile'!AY73+'[3]5.2 Asset Age Profile'!AY73","v":0},{"$f":"'[2]5.2 Asset Age Profile'!AZ73+'[3]5.2 Asset Age Profile'!AZ73","v":0},{"$f":"'[2]5.2 Asset Age Profile'!BA73+'[3]5.2 Asset Age Profile'!BA73","v":0},{"$f":"'[2]5.2 Asset Age Profile'!BB73+'[3]5.2 Asset Age Profile'!BB73","v":0},{"$f":"'[2]5.2 Asset Age Profile'!BC73+'[3]5.2 Asset Age Profile'!BC73","v":0},{"$f":"'[2]5.2 Asset Age Profile'!BD73+'[3]5.2 Asset Age Profile'!BD73","v":0},{"$f":"'[2]5.2 Asset Age Profile'!BE73+'[3]5.2 Asset Age Profile'!BE73","v":0},{"$f":"'[2]5.2 Asset Age Profile'!BF73+'[3]5.2 Asset Age Profile'!BF73","v":0},{"$f":"'[2]5.2 Asset Age Profile'!BG73+'[3]5.2 Asset Age Profile'!BG73","v":0},{"$f":"'[2]5.2 Asset Age Profile'!BH73+'[3]5.2 Asset Age Profile'!BH73","v":0},{"$f":"'[2]5.2 Asset Age Profile'!BI73+'[3]5.2 Asset Age Profile'!BI73","v":0},{"$f":"'[2]5.2 Asset Age Profile'!BJ73+'[3]5.2 Asset Age Profile'!BJ73","v":0},{"$f":"'[2]5.2 Asset Age Profile'!BK73+'[3]5.2 Asset Age Profile'!BK73","v":0},{"$f":"'[2]5.2 Asset Age Profile'!BL73+'[3]5.2 Asset Age Profile'!BL73","v":0},{"$f":"'[2]5.2 Asset Age Profile'!BM73+'[3]5.2 Asset Age Profile'!BM73","v":0},{"$f":"'[2]5.2 Asset Age Profile'!BN73+'[3]5.2 Asset Age Profile'!BN73","v":0},{"$f":"'[2]5.2 Asset Age Profile'!BO73+'[3]5.2 Asset Age Profile'!BO73","v":0},{"$f":"'[2]5.2 Asset Age Profile'!BP73+'[3]5.2 Asset Age Profile'!BP73","v":0},{"$f":"'[2]5.2 Asset Age Profile'!BQ73+'[3]5.2 Asset Age Profile'!BQ73","v":0},{"$f":"'[2]5.2 Asset Age Profile'!BR73+'[3]5.2 Asset Age Profile'!BR73","v":0},{"$f":"'[2]5.2 Asset Age Profile'!BS73+'[3]5.2 Asset Age Profile'!BS73","v":0},{"$f":"'[2]5.2 Asset Age Profile'!BT73+'[3]5.2 Asset Age Profile'!BT73","v":0},{"$f":"'[2]5.2 Asset Age Profile'!BU73+'[3]5.2 Asset Age Profile'!BU73","v":0},{"$f":"'[2]5.2 Asset Age Profile'!BV73+'[3]5.2 Asset Age Profile'!BV73","v":0},{"$f":"'[2]5.2 Asset Age Profile'!BW73+'[3]5.2 Asset Age Profile'!BW73","v":0},{"$f":"'[2]5.2 Asset Age Profile'!BX73+'[3]5.2 Asset Age Profile'!BX73","v":0},{"$f":"'[2]5.2 Asset Age Profile'!BY73+'[3]5.2 Asset Age Profile'!BY73","v":0},{"$f":"'[2]5.2 Asset Age Profile'!BZ73+'[3]5.2 Asset Age Profile'!BZ73","v":0},{"$f":"'[2]5.2 Asset Age Profile'!CA73+'[3]5.2 Asset Age Profile'!CA73","v":0},{"$f":"'[2]5.2 Asset Age Profile'!CB73+'[3]5.2 Asset Age Profile'!CB73","v":0},{"$f":"'[2]5.2 Asset Age Profile'!CC73+'[3]5.2 Asset Age Profile'!CC73","v":0},{"$f":"'[2]5.2 Asset Age Profile'!CD73+'[3]5.2 Asset Age Profile'!CD73","v":0},{"$f":"'[2]5.2 Asset Age Profile'!CE73+'[3]5.2 Asset Age Profile'!CE73","v":0},{"$f":"'[2]5.2 Asset Age Profile'!CF73+'[3]5.2 Asset Age Profile'!CF73","v":0},{"$f":"'[2]5.2 Asset Age Profile'!CG73+'[3]5.2 Asset Age Profile'!CG73","v":0},{"$f":"'[2]5.2 Asset Age Profile'!CH73+'[3]5.2 Asset Age Profile'!CH73","v":0},{"$f":"'[2]5.2 Asset Age Profile'!CI73+'[3]5.2 Asset Age Profile'!CI73","v":0},{"$f":"'[2]5.2 Asset Age Profile'!CJ73+'[3]5.2 Asset Age Profile'!CJ73","v":0},{"$f":"'[2]5.2 Asset Age Profile'!CK73+'[3]5.2 Asset Age Profile'!CK73","v":0},{"$f":"'[2]5.2 Asset Age Profile'!CL73+'[3]5.2 Asset Age Profile'!CL73","v":0},{"$f":"'[2]5.2 Asset Age Profile'!CM73+'[3]5.2 Asset Age Profile'!CM73","v":0},{"$f":"'[2]5.2 Asset Age Profile'!CN73+'[3]5.2 Asset Age Profile'!CN73","v":0},{"$f":"'[2]5.2 Asset Age Profile'!CO73+'[3]5.2 Asset Age Profile'!CO73","v":0},{"$f":"'[2]5.2 Asset Age Profile'!CP73+'[3]5.2 Asset Age Profile'!CP73","v":0},{"$f":"'[2]5.2 Asset Age Profile'!CQ73+'[3]5.2 Asset Age Profile'!CQ73","v":0},{"$f":"'[2]5.2 Asset Age Profile'!CR73+'[3]5.2 Asset Age Profile'!CR73","v":0},{"$f":"'[2]5.2 Asset Age Profile'!CS73+'[3]5.2 Asset Age Profile'!CS73","v":0},{"$f":"'[2]5.2 Asset Age Profile'!CT73+'[3]5.2 Asset Age Profile'!CT73","v":0},{"$f":"'[2]5.2 Asset Age Profile'!CU73+'[3]5.2 Asset Age Profile'!CU73","v":0},{"$f":"'[2]5.2 Asset Age Profile'!CV73+'[3]5.2 Asset Age Profile'!CV73","v":0},{"$f":"'[2]5.2 Asset Age Profile'!CW73+'[3]5.2 Asset Age Profile'!CW73","v":0},{"$f":"'[2]5.2 Asset Age Profile'!CX73+'[3]5.2 Asset Age Profile'!CX73","v":0},{"$f":"'[2]5.2 Asset Age Profile'!CY73+'[3]5.2 Asset Age Profile'!CY73","v":0},{"$f":"'[2]5.2 Asset Age Profile'!CZ73+'[3]5.2 Asset Age Profile'!CZ73","v":0},{"$f":"'[2]5.2 Asset Age Profile'!DA73+'[3]5.2 Asset Age Profile'!DA73","v":0},{"$f":"'[2]5.2 Asset Age Profile'!DB73+'[3]5.2 Asset Age Profile'!DB73","v":0},{"$f":"'[2]5.2 Asset Age Profile'!DC73+'[3]5.2 Asset Age Profile'!DC73","v":0},{"$f":"'[2]5.2 Asset Age Profile'!DD73+'[3]5.2 Asset Age Profile'!DD73","v":0},{"$f":"'[2]5.2 Asset Age Profile'!DE73+'[3]5.2 Asset Age Profile'!DE73","v":0},{"$f":"'[2]5.2 Asset Age Profile'!DF73+'[3]5.2 Asset Age Profile'!DF73","v":0},{"$f":"'[2]5.2 Asset Age Profile'!DG73+'[3]5.2 Asset Age Profile'!DG73","v":0},{"$f":"'[2]5.2 Asset Age Profile'!DH73+'[3]5.2 Asset Age Profile'!DH73","v":0},{"$f":"'[2]5.2 Asset Age Profile'!DI73+'[3]5.2 Asset Age Profile'!DI73","v":0},{"$f":"'[2]5.2 Asset Age Profile'!DJ73+'[3]5.2 Asset Age Profile'!DJ73","v":0},{"$f":"'[2]5.2 Asset Age Profile'!DK73+'[3]5.2 Asset Age Profile'!DK73","v":0},{"$f":"'[2]5.2 Asset Age Profile'!DL73+'[3]5.2 Asset Age Profile'!DL73","v":0},{"$f":"'[2]5.2 Asset Age Profile'!DM73+'[3]5.2 Asset Age Profile'!DM73","v":0},{"$f":"'[2]5.2 Asset Age Profile'!DN73+'[3]5.2 Asset Age Profile'!DN73","v":0},{"$f":"'[2]5.2 Asset Age Profile'!DO73+'[3]5.2 Asset Age Profile'!DO73","v":0},{"$f":"'[2]5.2 Asset Age Profile'!DP73+'[3]5.2 Asset Age Profile'!DP73","v":0},{"$f":"'[2]5.2 Asset Age Profile'!DQ73+'[3]5.2 Asset Age Profile'!DQ73","v":0},{"$f":"'[2]5.2 Asset Age Profile'!DR73+'[3]5.2 Asset Age Profile'!DR73","v":0},{"$f":"'[2]5.2 Asset Age Profile'!DS73+'[3]5.2 Asset Age Profile'!DS73","v":0},{"$f":"'[2]5.2 Asset Age Profile'!DT73+'[3]5.2 Asset Age Profile'!DT73","v":0},{"$f":"'[2]5.2 Asset Age Profile'!DU73+'[3]5.2 Asset Age Profile'!DU73","v":0},{"$f":"'[2]5.2 Asset Age Profile'!DV73+'[3]5.2 Asset Age Profile'!DV73","v":0},{"$f":"'[2]5.2 Asset Age Profile'!DW73+'[3]5.2 Asset Age Profile'!DW73","v":0},{"$f":"'[2]5.2 Asset Age Profile'!DX73+'[3]5.2 Asset Age Profile'!DX73","v":0},{"$f":"'[2]5.2 Asset Age Profile'!DY73+'[3]5.2 Asset Age Profile'!DY73","v":0},{"$f":"'[2]5.2 Asset Age Profile'!DZ73+'[3]5.2 Asset Age Profile'!DZ73","v":0},{"$f":"'[2]5.2 Asset Age Profile'!EA73+'[3]5.2 Asset Age Profile'!EA73","v":0},{"$f":"'[2]5.2 Asset Age Profile'!EB73+'[3]5.2 Asset Age Profile'!EB73","v":0},{"$f":"'[2]5.2 Asset Age Profile'!EC73+'[3]5.2 Asset Age Profile'!EC73","v":0},{"$f":"'[2]5.2 Asset Age Profile'!ED73+'[3]5.2 Asset Age Profile'!ED73","v":0},{"$f":"'[2]5.2 Asset Age Profile'!EE73+'[3]5.2 Asset Age Profile'!EE73","v":0},{"$f":"'[2]5.2 Asset Age Profile'!EF73+'[3]5.2 Asset Age Profile'!EF73","v":0},{"$f":"'[2]5.2 Asset Age Profile'!EG73+'[3]5.2 Asset Age Profile'!EG73","v":0},{"$f":"'[2]5.2 Asset Age Profile'!EH73+'[3]5.2 Asset Age Profile'!EH73","v":0},{"$f":"'[2]5.2 Asset Age Profile'!EI73+'[3]5.2 Asset Age Profile'!EI73","v":0},{"$f":"'[2]5.2 Asset Age Profile'!EJ73+'[3]5.2 Asset Age Profile'!EJ73","v":0}]
["ED_ASS521_00064",null,"Pole Mounted ; < = 22kV ;  < = 60 kVA  ; Multiple Phase",null,"DNSP NAME","REPEX","TRANSFORMERS","Pole Mounted ; < = 22kV ;  < = 60 kVA  ; Multiple Phase","DESCRIPTOR METRIC","MEAN ECONOMIC LIFE","YEARS","NUMBER",null,{"$f":"'[2]5.2 Asset Age Profile'!N74+'[3]5.2 Asset Age Profile'!N74","v":55},{"$f":"'[2]5.2 Asset Age Profile'!O74+'[3]5.2 Asset Age Profile'!O74","v":0},{"$f":"'[2]5.2 Asset Age Profile'!P74+'[3]5.2 Asset Age Profile'!P74","v":0},{"$f":"'[2]5.2 Asset Age Profile'!Q74+'[3]5.2 Asset Age Profile'!Q74","v":0},{"$f":"'[2]5.2 Asset Age Profile'!R74+'[3]5.2 Asset Age Profile'!R74","v":0},{"$f":"'[2]5.2 Asset Age Profile'!S74+'[3]5.2 Asset Age Profile'!S74","v":0},{"$f":"'[2]5.2 Asset Age Profile'!T74+'[3]5.2 Asset Age Profile'!T74","v":0},{"$f":"'[2]5.2 Asset Age Profile'!U74+'[3]5.2 Asset Age Profile'!U74","v":0},{"$f":"'[2]5.2 Asset Age Profile'!V74+'[3]5.2 Asset Age Profile'!V74","v":0},{"$f":"'[2]5.2 Asset Age Profile'!W74+'[3]5.2 Asset Age Profile'!W74","v":0},{"$f":"'[2]5.2 Asset Age Profile'!X74+'[3]5.2 Asset Age Profile'!X74","v":0},{"$f":"'[2]5.2 Asset Age Profile'!Y74+'[3]5.2 Asset Age Profile'!Y74","v":13},{"$f":"'[2]5.2 Asset Age Profile'!Z74+'[3]5.2 Asset Age Profile'!Z74","v":0},{"$f":"'[2]5.2 Asset Age Profile'!AA74+'[3]5.2 Asset Age Profile'!AA74","v":0},{"$f":"'[2]5.2 Asset Age Profile'!AB74+'[3]5.2 Asset Age Profile'!AB74","v":0},{"$f":"'[2]5.2 Asset Age Profile'!AC74+'[3]5.2 Asset Age Profile'!AC74","v":0},{"$f":"'[2]5.2 Asset Age Profile'!AD74+'[3]5.2 Asset Age Profile'!AD74","v":0},{"$f":"'[2]5.2 Asset Age Profile'!AE74+'[3]5.2 Asset Age Profile'!AE74","v":0},{"$f":"'[2]5.2 Asset Age Profile'!AF74+'[3]5.2 Asset Age Profile'!AF74","v":0},{"$f":"'[2]5.2 Asset Age Profile'!AG74+'[3]5.2 Asset Age Profile'!AG74","v":0},{"$f":"'[2]5.2 Asset Age Profile'!AH74+'[3]5.2 Asset Age Profile'!AH74","v":0},{"$f":"'[2]5.2 Asset Age Profile'!AI74+'[3]5.2 Asset Age Profile'!AI74","v":0},{"$f":"'[2]5.2 Asset Age Profile'!AJ74+'[3]5.2 Asset Age Profile'!AJ74","v":2},{"$f":"'[2]5.2 Asset Age Profile'!AK74+'[3]5.2 Asset Age Profile'!AK74","v":1},{"$f":"'[2]5.2 Asset Age Profile'!AL74+'[3]5.2 Asset Age Profile'!AL74","v":1},{"$f":"'[2]5.2 Asset Age Profile'!AM74+'[3]5.2 Asset Age Profile'!AM74","v":0},{"$f":"'[2]5.2 Asset Age Profile'!AN74+'[3]5.2 Asset Age Profile'!AN74","v":4},{"$f":"'[2]5.2 Asset Age Profile'!AO74+'[3]5.2 Asset Age Profile'!AO74","v":5},{"$f":"'[2]5.2 Asset Age Profile'!AP74+'[3]5.2 Asset Age Profile'!AP74","v":2},{"$f":"'[2]5.2 Asset Age Profile'!AQ74+'[3]5.2 Asset Age Profile'!AQ74","v":3},{"$f":"'[2]5.2 Asset Age Profile'!AR74+'[3]5.2 Asset Age Profile'!AR74","v":7},{"$f":"'[2]5.2 Asset Age Profile'!AS74+'[3]5.2 Asset Age Profile'!AS74","v":10},{"$f":"'[2]5.2 Asset Age Profile'!AT74+'[3]5.2 Asset Age Profile'!AT74","v":12},{"$f":"'[2]5.2 Asset Age Profile'!AU74+'[3]5.2 Asset Age Profile'!AU74","v":4},{"$f":"'[2]5.2 Asset Age Profile'!AV74+'[3]5.2 Asset Age Profile'!AV74","v":5},{"$f":"'[2]5.2 Asset Age Profile'!AW74+'[3]5.2 Asset Age Profile'!AW74","v":2},{"$f":"'[2]5.2 Asset Age Profile'!AX74+'[3]5.2 Asset Age Profile'!AX74","v":15},{"$f":"'[2]5.2 Asset Age Profile'!AY74+'[3]5.2 Asset Age Profile'!AY74","v":3},{"$f":"'[2]5.2 Asset Age Profile'!AZ74+'[3]5.2 Asset Age Profile'!AZ74","v":3},{"$f":"'[2]5.2 Asset Age Profile'!BA74+'[3]5.2 Asset Age Profile'!BA74","v":1},{"$f":"'[2]5.2 Asset Age Profile'!BB74+'[3]5.2 Asset Age Profile'!BB74","v":9},{"$f":"'[2]5.2 Asset Age Profile'!BC74+'[3]5.2 Asset Age Profile'!BC74","v":0},{"$f":"'[2]5.2 Asset Age Profile'!BD74+'[3]5.2 Asset Age Profile'!BD74","v":4},{"$f":"'[2]5.2 Asset Age Profile'!BE74+'[3]5.2 Asset Age Profile'!BE74","v":9},{"$f":"'[2]5.2 Asset Age Profile'!BF74+'[3]5.2 Asset Age Profile'!BF74","v":3},{"$f":"'[2]5.2 Asset Age Profile'!BG74+'[3]5.2 Asset Age Profile'!BG74","v":6},{"$f":"'[2]5.2 Asset Age Profile'!BH74+'[3]5.2 Asset Age Profile'!BH74","v":2},{"$f":"'[2]5.2 Asset Age Profile'!BI74+'[3]5.2 Asset Age Profile'!BI74","v":4},{"$f":"'[2]5.2 Asset Age Profile'!BJ74+'[3]5.2 Asset Age Profile'!BJ74","v":3},{"$f":"'[2]5.2 Asset Age Profile'!BK74+'[3]5.2 Asset Age Profile'!BK74","v":6},{"$f":"'[2]5.2 Asset Age Profile'!BL74+'[3]5.2 Asset Age Profile'!BL74","v":4},{"$f":"'[2]5.2 Asset Age Profile'!BM74+'[3]5.2 Asset Age Profile'!BM74","v":0},{"$f":"'[2]5.2 Asset Age Profile'!BN74+'[3]5.2 Asset Age Profile'!BN74","v":3},{"$f":"'[2]5.2 Asset Age Profile'!BO74+'[3]5.2 Asset Age Profile'!BO74","v":5},{"$f":"'[2]5.2 Asset Age Profile'!BP74+'[3]5.2 Asset Age Profile'!BP74","v":3},{"$f":"'[2]5.2 Asset Age Profile'!BQ74+'[3]5.2 Asset Age Profile'!BQ74","v":4},{"$f":"'[2]5.2 Asset Age Profile'!BR74+'[3]5.2 Asset Age Profile'!BR74","v":3},{"$f":"'[2]5.2 Asset Age Profile'!BS74+'[3]5.2 Asset Age Profile'!BS74","v":9},{"$f":"'[2]5.2 Asset Age Profile'!BT74+'[3]5.2 Asset Age Profile'!BT74","v":6},{"$f":"'[2]5.2 Asset Age Profile'!BU74+'[3]5.2 Asset Age Profile'!BU74","v":3},{"$f":"'[2]5.2 Asset Age Profile'!BV74+'[3]5.2 Asset Age Profile'!BV74","v":3},{"$f":"'[2]5.2 Asset Age Profile'!BW74+'[3]5.2 Asset Age Profile'!BW74","v":2},{"$f":"'[2]5.2 Asset Age Profile'!BX74+'[3]5.2 Asset Age Profile'!BX74","v":3},{"$f":"'[2]5.2 Asset Age Profile'!BY74+'[3]5.2 Asset Age Profile'!BY74","v":3},{"$f":"'[2]5.2 Asset Age Profile'!BZ74+'[3]5.2 Asset Age Profile'!BZ74","v":3},{"$f":"'[2]5.2 Asset Age Profile'!CA74+'[3]5.2 Asset Age Profile'!CA74","v":1},{"$f":"'[2]5.2 Asset Age Profile'!CB74+'[3]5.2 Asset Age Profile'!CB74","v":4},{"$f":"'[2]5.2 Asset Age Profile'!CC74+'[3]5.2 Asset Age Profile'!CC74","v":3},{"$f":"'[2]5.2 Asset Age Profile'!CD74+'[3]5.2 Asset Age Profile'!CD74","v":2},{"$f":"'[2]5.2 Asset Age Profile'!CE74+'[3]5.2 Asset Age Profile'!CE74","v":2},{"$f":"'[2]5.2 Asset Age Profile'!CF74+'[3]5.2 Asset Age Profile'!CF74","v":1},{"$f":"'[2]5.2 Asset Age Profile'!CG74+'[3]5.2 Asset Age Profile'!CG74","v":0},{"$f":"'[2]5.2 Asset Age Profile'!CH74+'[3]5.2 Asset Age Profile'!CH74","v":1},{"$f":"'[2]5.2 Asset Age Profile'!CI74+'[3]5.2 Asset Age Profile'!CI74","v":0},{"$f":"'[2]5.2 Asset Age Profile'!CJ74+'[3]5.2 Asset Age Profile'!CJ74","v":0},{"$f":"'[2]5.2 Asset Age Profile'!CK74+'[3]5.2 Asset Age Profile'!CK74","v":1},{"$f":"'[2]5.2 Asset Age Profile'!CL74+'[3]5.2 Asset Age Profile'!CL74","v":1},{"$f":"'[2]5.2 Asset Age Profile'!CM74+'[3]5.2 Asset Age Profile'!CM74","v":0},{"$f":"'[2]5.2 Asset Age Profile'!CN74+'[3]5.2 Asset Age Profile'!CN74","v":0},{"$f":"'[2]5.2 Asset Age Profile'!CO74+'[3]5.2 Asset Age Profile'!CO74","v":0},{"$f":"'[2]5.2 Asset Age Profile'!CP74+'[3]5.2 Asset Age Profile'!CP74","v":0},{"$f":"'[2]5.2 Asset Age Profile'!CQ74+'[3]5.2 Asset Age Profile'!CQ74","v":0},{"$f":"'[2]5.2 Asset Age Profile'!CR74+'[3]5.2 Asset Age Profile'!CR74","v":0},{"$f":"'[2]5.2 Asset Age Profile'!CS74+'[3]5.2 Asset Age Profile'!CS74","v":0},{"$f":"'[2]5.2 Asset Age Profile'!CT74+'[3]5.2 Asset Age Profile'!CT74","v":2},{"$f":"'[2]5.2 Asset Age Profile'!CU74+'[3]5.2 Asset Age Profile'!CU74","v":2},{"$f":"'[2]5.2 Asset Age Profile'!CV74+'[3]5.2 Asset Age Profile'!CV74","v":0},{"$f":"'[2]5.2 Asset Age Profile'!CW74+'[3]5.2 Asset Age Profile'!CW74","v":0},{"$f":"'[2]5.2 Asset Age Profile'!CX74+'[3]5.2 Asset Age Profile'!CX74","v":0},{"$f":"'[2]5.2 Asset Age Profile'!CY74+'[3]5.2 Asset Age Profile'!CY74","v":0},{"$f":"'[2]5.2 Asset Age Profile'!CZ74+'[3]5.2 Asset Age Profile'!CZ74","v":0},{"$f":"'[2]5.2 Asset Age Profile'!DA74+'[3]5.2 Asset Age Profile'!DA74","v":0},{"$f":"'[2]5.2 Asset Age Profile'!DB74+'[3]5.2 Asset Age Profile'!DB74","v":0},{"$f":"'[2]5.2 Asset Age Profile'!DC74+'[3]5.2 Asset Age Profile'!DC74","v":0},{"$f":"'[2]5.2 Asset Age Profile'!DD74+'[3]5.2 Asset Age Profile'!DD74","v":0},{"$f":"'[2]5.2 Asset Age Profile'!DE74+'[3]5.2 Asset Age Profile'!DE74","v":0},{"$f":"'[2]5.2 Asset Age Profile'!DF74+'[3]5.2 Asset Age Profile'!DF74","v":0},{"$f":"'[2]5.2 Asset Age Profile'!DG74+'[3]5.2 Asset Age Profile'!DG74","v":0},{"$f":"'[2]5.2 Asset Age Profile'!DH74+'[3]5.2 Asset Age Profile'!DH74","v":0},{"$f":"'[2]5.2 Asset Age Profile'!DI74+'[3]5.2 Asset Age Profile'!DI74","v":0},{"$f":"'[2]5.2 Asset Age Profile'!DJ74+'[3]5.2 Asset Age Profile'!DJ74","v":0},{"$f":"'[2]5.2 Asset Age Profile'!DK74+'[3]5.2 Asset Age Profile'!DK74","v":0},{"$f":"'[2]5.2 Asset Age Profile'!DL74+'[3]5.2 Asset Age Profile'!DL74","v":0},{"$f":"'[2]5.2 Asset Age Profile'!DM74+'[3]5.2 Asset Age Profile'!DM74","v":0},{"$f":"'[2]5.2 Asset Age Profile'!DN74+'[3]5.2 Asset Age Profile'!DN74","v":0},{"$f":"'[2]5.2 Asset Age Profile'!DO74+'[3]5.2 Asset Age Profile'!DO74","v":0},{"$f":"'[2]5.2 Asset Age Profile'!DP74+'[3]5.2 Asset Age Profile'!DP74","v":0},{"$f":"'[2]5.2 Asset Age Profile'!DQ74+'[3]5.2 Asset Age Profile'!DQ74","v":0},{"$f":"'[2]5.2 Asset Age Profile'!DR74+'[3]5.2 Asset Age Profile'!DR74","v":0},{"$f":"'[2]5.2 Asset Age Profile'!DS74+'[3]5.2 Asset Age Profile'!DS74","v":0},{"$f":"'[2]5.2 Asset Age Profile'!DT74+'[3]5.2 Asset Age Profile'!DT74","v":0},{"$f":"'[2]5.2 Asset Age Profile'!DU74+'[3]5.2 Asset Age Profile'!DU74","v":0},{"$f":"'[2]5.2 Asset Age Profile'!DV74+'[3]5.2 Asset Age Profile'!DV74","v":0},{"$f":"'[2]5.2 Asset Age Profile'!DW74+'[3]5.2 Asset Age Profile'!DW74","v":0},{"$f":"'[2]5.2 Asset Age Profile'!DX74+'[3]5.2 Asset Age Profile'!DX74","v":0},{"$f":"'[2]5.2 Asset Age Profile'!DY74+'[3]5.2 Asset Age Profile'!DY74","v":0},{"$f":"'[2]5.2 Asset Age Profile'!DZ74+'[3]5.2 Asset Age Profile'!DZ74","v":0},{"$f":"'[2]5.2 Asset Age Profile'!EA74+'[3]5.2 Asset Age Profile'!EA74","v":0},{"$f":"'[2]5.2 Asset Age Profile'!EB74+'[3]5.2 Asset Age Profile'!EB74","v":0},{"$f":"'[2]5.2 Asset Age Profile'!EC74+'[3]5.2 Asset Age Profile'!EC74","v":0},{"$f":"'[2]5.2 Asset Age Profile'!ED74+'[3]5.2 Asset Age Profile'!ED74","v":0},{"$f":"'[2]5.2 Asset Age Profile'!EE74+'[3]5.2 Asset Age Profile'!EE74","v":0},{"$f":"'[2]5.2 Asset Age Profile'!EF74+'[3]5.2 Asset Age Profile'!EF74","v":0},{"$f":"'[2]5.2 Asset Age Profile'!EG74+'[3]5.2 Asset Age Profile'!EG74","v":0},{"$f":"'[2]5.2 Asset Age Profile'!EH74+'[3]5.2 Asset Age Profile'!EH74","v":0},{"$f":"'[2]5.2 Asset Age Profile'!EI74+'[3]5.2 Asset Age Profile'!EI74","v":0},{"$f":"'[2]5.2 Asset Age Profile'!EJ74+'[3]5.2 Asset Age Profile'!EJ74","v":5}]
["ED_ASS521_00065",null,"Pole Mounted ; < = 22kV ;  > 60 kVA and < = 600 kVA  ; Multiple Phase",null,"DNSP NAME","REPEX","TRANSFORMERS","Pole Mounted ; < = 22kV ;  > 60 kVA and < = 600 kVA  ; Multiple Phase","DESCRIPTOR METRIC","MEAN ECONOMIC LIFE","YEARS","NUMBER",null,{"$f":"'[2]5.2 Asset Age Profile'!N75+'[3]5.2 Asset Age Profile'!N75","v":55},{"$f":"'[2]5.2 Asset Age Profile'!O75+'[3]5.2 Asset Age Profile'!O75","v":0},{"$f":"'[2]5.2 Asset Age Profile'!P75+'[3]5.2 Asset Age Profile'!P75","v":0},{"$f":"'[2]5.2 Asset Age Profile'!Q75+'[3]5.2 Asset Age Profile'!Q75","v":0},{"$f":"'[2]5.2 Asset Age Profile'!R75+'[3]5.2 Asset Age Profile'!R75","v":0},{"$f":"'[2]5.2 Asset Age Profile'!S75+'[3]5.2 Asset Age Profile'!S75","v":0},{"$f":"'[2]5.2 Asset Age Profile'!T75+'[3]5.2 Asset Age Profile'!T75","v":0},{"$f":"'[2]5.2 Asset Age Profile'!U75+'[3]5.2 Asset Age Profile'!U75","v":0},{"$f":"'[2]5.2 Asset Age Profile'!V75+'[3]5.2 Asset Age Profile'!V75","v":0},{"$f":"'[2]5.2 Asset Age Profile'!W75+'[3]5.2 Asset Age Profile'!W75","v":0},{"$f":"'[2]5.2 Asset Age Profile'!X75+'[3]5.2 Asset Age Profile'!X75","v":0},{"$f":"'[2]5.2 Asset Age Profile'!Y75+'[3]5.2 Asset Age Profile'!Y75","v":13},{"$f":"'[2]5.2 Asset Age Profile'!Z75+'[3]5.2 Asset Age Profile'!Z75","v":0},{"$f":"'[2]5.2 Asset Age Profile'!AA75+'[3]5.2 Asset Age Profile'!AA75","v":0},{"$f":"'[2]5.2 Asset Age Profile'!AB75+'[3]5.2 Asset Age Profile'!AB75","v":0},{"$f":"'[2]5.2 Asset Age Profile'!AC75+'[3]5.2 Asset Age Profile'!AC75","v":0},{"$f":"'[2]5.2 Asset Age Profile'!AD75+'[3]5.2 Asset Age Profile'!AD75","v":0},{"$f":"'[2]5.2 Asset Age Profile'!AE75+'[3]5.2 Asset Age Profile'!AE75","v":0},{"$f":"'[2]5.2 Asset Age Profile'!AF75+'[3]5.2 Asset Age Profile'!AF75","v":0},{"$f":"'[2]5.2 Asset Age Profile'!AG75+'[3]5.2 Asset Age Profile'!AG75","v":0},{"$f":"'[2]5.2 Asset Age Profile'!AH75+'[3]5.2 Asset Age Profile'!AH75","v":0},{"$f":"'[2]5.2 Asset Age Profile'!AI75+'[3]5.2 Asset Age Profile'!AI75","v":0},{"$f":"'[2]5.2 Asset Age Profile'!AJ75+'[3]5.2 Asset Age Profile'!AJ75","v":8},{"$f":"'[2]5.2 Asset Age Profile'!AK75+'[3]5.2 Asset Age Profile'!AK75","v":30},{"$f":"'[2]5.2 Asset Age Profile'!AL75+'[3]5.2 Asset Age Profile'!AL75","v":21},{"$f":"'[2]5.2 Asset Age Profile'!AM75+'[3]5.2 Asset Age Profile'!AM75","v":4},{"$f":"'[2]5.2 Asset Age Profile'!AN75+'[3]5.2 Asset Age Profile'!AN75","v":35},{"$f":"'[2]5.2 Asset Age Profile'!AO75+'[3]5.2 Asset Age Profile'!AO75","v":25},{"$f":"'[2]5.2 Asset Age Profile'!AP75+'[3]5.2 Asset Age Profile'!AP75","v":42},{"$f":"'[2]5.2 Asset Age Profile'!AQ75+'[3]5.2 Asset Age Profile'!AQ75","v":51},{"$f":"'[2]5.2 Asset Age Profile'!AR75+'[3]5.2 Asset Age Profile'!AR75","v":59},{"$f":"'[2]5.2 Asset Age Profile'!AS75+'[3]5.2 Asset Age Profile'!AS75","v":54},{"$f":"'[2]5.2 Asset Age Profile'!AT75+'[3]5.2 Asset Age Profile'!AT75","v":41},{"$f":"'[2]5.2 Asset Age Profile'!AU75+'[3]5.2 Asset Age Profile'!AU75","v":43},{"$f":"'[2]5.2 Asset Age Profile'!AV75+'[3]5.2 Asset Age Profile'!AV75","v":23},{"$f":"'[2]5.2 Asset Age Profile'!AW75+'[3]5.2 Asset Age Profile'!AW75","v":13},{"$f":"'[2]5.2 Asset Age Profile'!AX75+'[3]5.2 Asset Age Profile'!AX75","v":23},{"$f":"'[2]5.2 Asset Age Profile'!AY75+'[3]5.2 Asset Age Profile'!AY75","v":17},{"$f":"'[2]5.2 Asset Age Profile'!AZ75+'[3]5.2 Asset Age Profile'!AZ75","v":8},{"$f":"'[2]5.2 Asset Age Profile'!BA75+'[3]5.2 Asset Age Profile'!BA75","v":10},{"$f":"'[2]5.2 Asset Age Profile'!BB75+'[3]5.2 Asset Age Profile'!BB75","v":14},{"$f":"'[2]5.2 Asset Age Profile'!BC75+'[3]5.2 Asset Age Profile'!BC75","v":13},{"$f":"'[2]5.2 Asset Age Profile'!BD75+'[3]5.2 Asset Age Profile'!BD75","v":16},{"$f":"'[2]5.2 Asset Age Profile'!BE75+'[3]5.2 Asset Age Profile'!BE75","v":6},{"$f":"'[2]5.2 Asset Age Profile'!BF75+'[3]5.2 Asset Age Profile'!BF75","v":11},{"$f":"'[2]5.2 Asset Age Profile'!BG75+'[3]5.2 Asset Age Profile'!BG75","v":12},{"$f":"'[2]5.2 Asset Age Profile'!BH75+'[3]5.2 Asset Age Profile'!BH75","v":13},{"$f":"'[2]5.2 Asset Age Profile'!BI75+'[3]5.2 Asset Age Profile'!BI75","v":19},{"$f":"'[2]5.2 Asset Age Profile'!BJ75+'[3]5.2 Asset Age Profile'!BJ75","v":10},{"$f":"'[2]5.2 Asset Age Profile'!BK75+'[3]5.2 Asset Age Profile'!BK75","v":14},{"$f":"'[2]5.2 Asset Age Profile'!BL75+'[3]5.2 Asset Age Profile'!BL75","v":11},{"$f":"'[2]5.2 Asset Age Profile'!BM75+'[3]5.2 Asset Age Profile'!BM75","v":16},{"$f":"'[2]5.2 Asset Age Profile'!BN75+'[3]5.2 Asset Age Profile'!BN75","v":4},{"$f":"'[2]5.2 Asset Age Profile'!BO75+'[3]5.2 Asset Age Profile'!BO75","v":16},{"$f":"'[2]5.2 Asset Age Profile'!BP75+'[3]5.2 Asset Age Profile'!BP75","v":14},{"$f":"'[2]5.2 Asset Age Profile'!BQ75+'[3]5.2 Asset Age Profile'!BQ75","v":20},{"$f":"'[2]5.2 Asset Age Profile'!BR75+'[3]5.2 Asset Age Profile'!BR75","v":12},{"$f":"'[2]5.2 Asset Age Profile'!BS75+'[3]5.2 Asset Age Profile'!BS75","v":12},{"$f":"'[2]5.2 Asset Age Profile'!BT75+'[3]5.2 Asset Age Profile'!BT75","v":26},{"$f":"'[2]5.2 Asset Age Profile'!BU75+'[3]5.2 Asset Age Profile'!BU75","v":20},{"$f":"'[2]5.2 Asset Age Profile'!BV75+'[3]5.2 Asset Age Profile'!BV75","v":28},{"$f":"'[2]5.2 Asset Age Profile'!BW75+'[3]5.2 Asset Age Profile'!BW75","v":27},{"$f":"'[2]5.2 Asset Age Profile'!BX75+'[3]5.2 Asset Age Profile'!BX75","v":23},{"$f":"'[2]5.2 Asset Age Profile'!BY75+'[3]5.2 Asset Age Profile'!BY75","v":17},{"$f":"'[2]5.2 Asset Age Profile'!BZ75+'[3]5.2 Asset Age Profile'!BZ75","v":20},{"$f":"'[2]5.2 Asset Age Profile'!CA75+'[3]5.2 Asset Age Profile'!CA75","v":20},{"$f":"'[2]5.2 Asset Age Profile'!CB75+'[3]5.2 Asset Age Profile'!CB75","v":21},{"$f":"'[2]5.2 Asset Age Profile'!CC75+'[3]5.2 Asset Age Profile'!CC75","v":24},{"$f":"'[2]5.2 Asset Age Profile'!CD75+'[3]5.2 Asset Age Profile'!CD75","v":22},{"$f":"'[2]5.2 Asset Age Profile'!CE75+'[3]5.2 Asset Age Profile'!CE75","v":24},{"$f":"'[2]5.2 Asset Age Profile'!CF75+'[3]5.2 Asset Age Profile'!CF75","v":22},{"$f":"'[2]5.2 Asset Age Profile'!CG75+'[3]5.2 Asset Age Profile'!CG75","v":7},{"$f":"'[2]5.2 Asset Age Profile'!CH75+'[3]5.2 Asset Age Profile'!CH75","v":0},{"$f":"'[2]5.2 Asset Age Profile'!CI75+'[3]5.2 Asset Age Profile'!CI75","v":1},{"$f":"'[2]5.2 Asset Age Profile'!CJ75+'[3]5.2 Asset Age Profile'!CJ75","v":1},{"$f":"'[2]5.2 Asset Age Profile'!CK75+'[3]5.2 Asset Age Profile'!CK75","v":0},{"$f":"'[2]5.2 Asset Age Profile'!CL75+'[3]5.2 Asset Age Profile'!CL75","v":0},{"$f":"'[2]5.2 Asset Age Profile'!CM75+'[3]5.2 Asset Age Profile'!CM75","v":1},{"$f":"'[2]5.2 Asset Age Profile'!CN75+'[3]5.2 Asset Age Profile'!CN75","v":0},{"$f":"'[2]5.2 Asset Age Profile'!CO75+'[3]5.2 Asset Age Profile'!CO75","v":0},{"$f":"'[2]5.2 Asset Age Profile'!CP75+'[3]5.2 Asset Age Profile'!CP75","v":1},{"$f":"'[2]5.2 Asset Age Profile'!CQ75+'[3]5.2 Asset Age Profile'!CQ75","v":0},{"$f":"'[2]5.2 Asset Age Profile'!CR75+'[3]5.2 Asset Age Profile'!CR75","v":0},{"$f":"'[2]5.2 Asset Age Profile'!CS75+'[3]5.2 Asset Age Profile'!CS75","v":0},{"$f":"'[2]5.2 Asset Age Profile'!CT75+'[3]5.2 Asset Age Profile'!CT75","v":0},{"$f":"'[2]5.2 Asset Age Profile'!CU75+'[3]5.2 Asset Age Profile'!CU75","v":0},{"$f":"'[2]5.2 Asset Age Profile'!CV75+'[3]5.2 Asset Age Profile'!CV75","v":1},{"$f":"'[2]5.2 Asset Age Profile'!CW75+'[3]5.2 Asset Age Profile'!CW75","v":0},{"$f":"'[2]5.2 Asset Age Profile'!CX75+'[3]5.2 Asset Age Profile'!CX75","v":0},{"$f":"'[2]5.2 Asset Age Profile'!CY75+'[3]5.2 Asset Age Profile'!CY75","v":0},{"$f":"'[2]5.2 Asset Age Profile'!CZ75+'[3]5.2 Asset Age Profile'!CZ75","v":0},{"$f":"'[2]5.2 Asset Age Profile'!DA75+'[3]5.2 Asset Age Profile'!DA75","v":0},{"$f":"'[2]5.2 Asset Age Profile'!DB75+'[3]5.2 Asset Age Profile'!DB75","v":0},{"$f":"'[2]5.2 Asset Age Profile'!DC75+'[3]5.2 Asset Age Profile'!DC75","v":0},{"$f":"'[2]5.2 Asset Age Profile'!DD75+'[3]5.2 Asset Age Profile'!DD75","v":0},{"$f":"'[2]5.2 Asset Age Profile'!DE75+'[3]5.2 Asset Age Profile'!DE75","v":0},{"$f":"'[2]5.2 Asset Age Profile'!DF75+'[3]5.2 Asset Age Profile'!DF75","v":0},{"$f":"'[2]5.2 Asset Age Profile'!DG75+'[3]5.2 Asset Age Profile'!DG75","v":0},{"$f":"'[2]5.2 Asset Age Profile'!DH75+'[3]5.2 Asset Age Profile'!DH75","v":0},{"$f":"'[2]5.2 Asset Age Profile'!DI75+'[3]5.2 Asset Age Profile'!DI75","v":0},{"$f":"'[2]5.2 Asset Age Profile'!DJ75+'[3]5.2 Asset Age Profile'!DJ75","v":0},{"$f":"'[2]5.2 Asset Age Profile'!DK75+'[3]5.2 Asset Age Profile'!DK75","v":0},{"$f":"'[2]5.2 Asset Age Profile'!DL75+'[3]5.2 Asset Age Profile'!DL75","v":0},{"$f":"'[2]5.2 Asset Age Profile'!DM75+'[3]5.2 Asset Age Profile'!DM75","v":0},{"$f":"'[2]5.2 Asset Age Profile'!DN75+'[3]5.2 Asset Age Profile'!DN75","v":0},{"$f":"'[2]5.2 Asset Age Profile'!DO75+'[3]5.2 Asset Age Profile'!DO75","v":0},{"$f":"'[2]5.2 Asset Age Profile'!DP75+'[3]5.2 Asset Age Profile'!DP75","v":0},{"$f":"'[2]5.2 Asset Age Profile'!DQ75+'[3]5.2 Asset Age Profile'!DQ75","v":0},{"$f":"'[2]5.2 Asset Age Profile'!DR75+'[3]5.2 Asset Age Profile'!DR75","v":0},{"$f":"'[2]5.2 Asset Age Profile'!DS75+'[3]5.2 Asset Age Profile'!DS75","v":0},{"$f":"'[2]5.2 Asset Age Profile'!DT75+'[3]5.2 Asset Age Profile'!DT75","v":0},{"$f":"'[2]5.2 Asset Age Profile'!DU75+'[3]5.2 Asset Age Profile'!DU75","v":0},{"$f":"'[2]5.2 Asset Age Profile'!DV75+'[3]5.2 Asset Age Profile'!DV75","v":0},{"$f":"'[2]5.2 Asset Age Profile'!DW75+'[3]5.2 Asset Age Profile'!DW75","v":0},{"$f":"'[2]5.2 Asset Age Profile'!DX75+'[3]5.2 Asset Age Profile'!DX75","v":0},{"$f":"'[2]5.2 Asset Age Profile'!DY75+'[3]5.2 Asset Age Profile'!DY75","v":0},{"$f":"'[2]5.2 Asset Age Profile'!DZ75+'[3]5.2 Asset Age Profile'!DZ75","v":0},{"$f":"'[2]5.2 Asset Age Profile'!EA75+'[3]5.2 Asset Age Profile'!EA75","v":0},{"$f":"'[2]5.2 Asset Age Profile'!EB75+'[3]5.2 Asset Age Profile'!EB75","v":0},{"$f":"'[2]5.2 Asset Age Profile'!EC75+'[3]5.2 Asset Age Profile'!EC75","v":0},{"$f":"'[2]5.2 Asset Age Profile'!ED75+'[3]5.2 Asset Age Profile'!ED75","v":0},{"$f":"'[2]5.2 Asset Age Profile'!EE75+'[3]5.2 Asset Age Profile'!EE75","v":0},{"$f":"'[2]5.2 Asset Age Profile'!EF75+'[3]5.2 Asset Age Profile'!EF75","v":0},{"$f":"'[2]5.2 Asset Age Profile'!EG75+'[3]5.2 Asset Age Profile'!EG75","v":0},{"$f":"'[2]5.2 Asset Age Profile'!EH75+'[3]5.2 Asset Age Profile'!EH75","v":0},{"$f":"'[2]5.2 Asset Age Profile'!EI75+'[3]5.2 Asset Age Profile'!EI75","v":1},{"$f":"'[2]5.2 Asset Age Profile'!EJ75+'[3]5.2 Asset Age Profile'!EJ75","v":1}]
["ED_ASS521_00066",null,"Pole Mounted ; < = 22kV ;  > 600 kVA  ; Multiple Phase",null,"DNSP NAME","REPEX","TRANSFORMERS","Pole Mounted ; < = 22kV ;  > 600 kVA  ; Multiple Phase","DESCRIPTOR METRIC","MEAN ECONOMIC LIFE","YEARS","NUMBER",null,{"$f":"'[2]5.2 Asset Age Profile'!N76+'[3]5.2 Asset Age Profile'!N76","v":0},{"$f":"'[2]5.2 Asset Age Profile'!O76+'[3]5.2 Asset Age Profile'!O76","v":0},{"$f":"'[2]5.2 Asset Age Profile'!P76+'[3]5.2 Asset Age Profile'!P76","v":0},{"$f":"'[2]5.2 Asset Age Profile'!Q76+'[3]5.2 Asset Age Profile'!Q76","v":0},{"$f":"'[2]5.2 Asset Age Profile'!R76+'[3]5.2 Asset Age Profile'!R76","v":0},{"$f":"'[2]5.2 Asset Age Profile'!S76+'[3]5.2 Asset Age Profile'!S76","v":0},{"$f":"'[2]5.2 Asset Age Profile'!T76+'[3]5.2 Asset Age Profile'!T76","v":0},{"$f":"'[2]5.2 Asset Age Profile'!U76+'[3]5.2 Asset Age Profile'!U76","v":0},{"$f":"'[2]5.2 Asset Age Profile'!V76+'[3]5.2 Asset Age Profile'!V76","v":0},{"$f":"'[2]5.2 Asset Age Profile'!W76+'[3]5.2 Asset Age Profile'!W76","v":0},{"$f":"'[2]5.2 Asset Age Profile'!X76+'[3]5.2 Asset Age Profile'!X76","v":0},{"$f":"'[2]5.2 Asset Age Profile'!Y76+'[3]5.2 Asset Age Profile'!Y76","v":0},{"$f":"'[2]5.2 Asset Age Profile'!Z76+'[3]5.2 Asset Age Profile'!Z76","v":0},{"$f":"'[2]5.2 Asset Age Profile'!AA76+'[3]5.2 Asset Age Profile'!AA76","v":0},{"$f":"'[2]5.2 Asset Age Profile'!AB76+'[3]5.2 Asset Age Profile'!AB76","v":0},{"$f":"'[2]5.2 Asset Age Profile'!AC76+'[3]5.2 Asset Age Profile'!AC76","v":0},{"$f":"'[2]5.2 Asset Age Profile'!AD76+'[3]5.2 Asset Age Profile'!AD76","v":0},{"$f":"'[2]5.2 Asset Age Profile'!AE76+'[3]5.2 Asset Age Profile'!AE76","v":0},{"$f":"'[2]5.2 Asset Age Profile'!AF76+'[3]5.2 Asset Age Profile'!AF76","v":0},{"$f":"'[2]5.2 Asset Age Profile'!AG76+'[3]5.2 Asset Age Profile'!AG76","v":0},{"$f":"'[2]5.2 Asset Age Profile'!AH76+'[3]5.2 Asset Age Profile'!AH76","v":0},{"$f":"'[2]5.2 Asset Age Profile'!AI76+'[3]5.2 Asset Age Profile'!AI76","v":0},{"$f":"'[2]5.2 Asset Age Profile'!AJ76+'[3]5.2 Asset Age Profile'!AJ76","v":0},{"$f":"'[2]5.2 Asset Age Profile'!AK76+'[3]5.2 Asset Age Profile'!AK76","v":0},{"$f":"'[2]5.2 Asset Age Profile'!AL76+'[3]5.2 Asset Age Profile'!AL76","v":0},{"$f":"'[2]5.2 Asset Age Profile'!AM76+'[3]5.2 Asset Age Profile'!AM76","v":0},{"$f":"'[2]5.2 Asset Age Profile'!AN76+'[3]5.2 Asset Age Profile'!AN76","v":0},{"$f":"'[2]5.2 Asset Age Profile'!AO76+'[3]5.2 Asset Age Profile'!AO76","v":0},{"$f":"'[2]5.2 Asset Age Profile'!AP76+'[3]5.2 Asset Age Profile'!AP76","v":0},{"$f":"'[2]5.2 Asset Age Profile'!AQ76+'[3]5.2 Asset Age Profile'!AQ76","v":0},{"$f":"'[2]5.2 Asset Age Profile'!AR76+'[3]5.2 Asset Age Profile'!AR76","v":0},{"$f":"'[2]5.2 Asset Age Profile'!AS76+'[3]5.2 Asset Age Profile'!AS76","v":0},{"$f":"'[2]5.2 Asset Age Profile'!AT76+'[3]5.2 Asset Age Profile'!AT76","v":0},{"$f":"'[2]5.2 Asset Age Profile'!AU76+'[3]5.2 Asset Age Profile'!AU76","v":0},{"$f":"'[2]5.2 Asset Age Profile'!AV76+'[3]5.2 Asset Age Profile'!AV76","v":0},{"$f":"'[2]5.2 Asset Age Profile'!AW76+'[3]5.2 Asset Age Profile'!AW76","v":0},{"$f":"'[2]5.2 Asset Age Profile'!AX76+'[3]5.2 Asset Age Profile'!AX76","v":0},{"$f":"'[2]5.2 Asset Age Profile'!AY76+'[3]5.2 Asset Age Profile'!AY76","v":0},{"$f":"'[2]5.2 Asset Age Profile'!AZ76+'[3]5.2 Asset Age Profile'!AZ76","v":0},{"$f":"'[2]5.2 Asset Age Profile'!BA76+'[3]5.2 Asset Age Profile'!BA76","v":0},{"$f":"'[2]5.2 Asset Age Profile'!BB76+'[3]5.2 Asset Age Profile'!BB76","v":0},{"$f":"'[2]5.2 Asset Age Profile'!BC76+'[3]5.2 Asset Age Profile'!BC76","v":0},{"$f":"'[2]5.2 Asset Age Profile'!BD76+'[3]5.2 Asset Age Profile'!BD76","v":0},{"$f":"'[2]5.2 Asset Age Profile'!BE76+'[3]5.2 Asset Age Profile'!BE76","v":0},{"$f":"'[2]5.2 Asset Age Profile'!BF76+'[3]5.2 Asset Age Profile'!BF76","v":0},{"$f":"'[2]5.2 Asset Age Profile'!BG76+'[3]5.2 Asset Age Profile'!BG76","v":0},{"$f":"'[2]5.2 Asset Age Profile'!BH76+'[3]5.2 Asset Age Profile'!BH76","v":0},{"$f":"'[2]5.2 Asset Age Profile'!BI76+'[3]5.2 Asset Age Profile'!BI76","v":0},{"$f":"'[2]5.2 Asset Age Profile'!BJ76+'[3]5.2 Asset Age Profile'!BJ76","v":0},{"$f":"'[2]5.2 Asset Age Profile'!BK76+'[3]5.2 Asset Age Profile'!BK76","v":0},{"$f":"'[2]5.2 Asset Age Profile'!BL76+'[3]5.2 Asset Age Profile'!BL76","v":0},{"$f":"'[2]5.2 Asset Age Profile'!BM76+'[3]5.2 Asset Age Profile'!BM76","v":0},{"$f":"'[2]5.2 Asset Age Profile'!BN76+'[3]5.2 Asset Age Profile'!BN76","v":0},{"$f":"'[2]5.2 Asset Age Profile'!BO76+'[3]5.2 Asset Age Profile'!BO76","v":0},{"$f":"'[2]5.2 Asset Age Profile'!BP76+'[3]5.2 Asset Age Profile'!BP76","v":0},{"$f":"'[2]5.2 Asset Age Profile'!BQ76+'[3]5.2 Asset Age Profile'!BQ76","v":0},{"$f":"'[2]5.2 Asset Age Profile'!BR76+'[3]5.2 Asset Age Profile'!BR76","v":0},{"$f":"'[2]5.2 Asset Age Profile'!BS76+'[3]5.2 Asset Age Profile'!BS76","v":0},{"$f":"'[2]5.2 Asset Age Profile'!BT76+'[3]5.2 Asset Age Profile'!BT76","v":0},{"$f":"'[2]5.2 Asset Age Profile'!BU76+'[3]5.2 Asset Age Profile'!BU76","v":0},{"$f":"'[2]5.2 Asset Age Profile'!BV76+'[3]5.2 Asset Age Profile'!BV76","v":0},{"$f":"'[2]5.2 Asset Age Profile'!BW76+'[3]5.2 Asset Age Profile'!BW76","v":0},{"$f":"'[2]5.2 Asset Age Profile'!BX76+'[3]5.2 Asset Age Profile'!BX76","v":0},{"$f":"'[2]5.2 Asset Age Profile'!BY76+'[3]5.2 Asset Age Profile'!BY76","v":0},{"$f":"'[2]5.2 Asset Age Profile'!BZ76+'[3]5.2 Asset Age Profile'!BZ76","v":0},{"$f":"'[2]5.2 Asset Age Profile'!CA76+'[3]5.2 Asset Age Profile'!CA76","v":0},{"$f":"'[2]5.2 Asset Age Profile'!CB76+'[3]5.2 Asset Age Profile'!CB76","v":0},{"$f":"'[2]5.2 Asset Age Profile'!CC76+'[3]5.2 Asset Age Profile'!CC76","v":0},{"$f":"'[2]5.2 Asset Age Profile'!CD76+'[3]5.2 Asset Age Profile'!CD76","v":0},{"$f":"'[2]5.2 Asset Age Profile'!CE76+'[3]5.2 Asset Age Profile'!CE76","v":0},{"$f":"'[2]5.2 Asset Age Profile'!CF76+'[3]5.2 Asset Age Profile'!CF76","v":0},{"$f":"'[2]5.2 Asset Age Profile'!CG76+'[3]5.2 Asset Age Profile'!CG76","v":0},{"$f":"'[2]5.2 Asset Age Profile'!CH76+'[3]5.2 Asset Age Profile'!CH76","v":0},{"$f":"'[2]5.2 Asset Age Profile'!CI76+'[3]5.2 Asset Age Profile'!CI76","v":0},{"$f":"'[2]5.2 Asset Age Profile'!CJ76+'[3]5.2 Asset Age Profile'!CJ76","v":0},{"$f":"'[2]5.2 Asset Age Profile'!CK76+'[3]5.2 Asset Age Profile'!CK76","v":0},{"$f":"'[2]5.2 Asset Age Profile'!CL76+'[3]5.2 Asset Age Profile'!CL76","v":0},{"$f":"'[2]5.2 Asset Age Profile'!CM76+'[3]5.2 Asset Age Profile'!CM76","v":0},{"$f":"'[2]5.2 Asset Age Profile'!CN76+'[3]5.2 Asset Age Profile'!CN76","v":0},{"$f":"'[2]5.2 Asset Age Profile'!CO76+'[3]5.2 Asset Age Profile'!CO76","v":0},{"$f":"'[2]5.2 Asset Age Profile'!CP76+'[3]5.2 Asset Age Profile'!CP76","v":0},{"$f":"'[2]5.2 Asset Age Profile'!CQ76+'[3]5.2 Asset Age Profile'!CQ76","v":0},{"$f":"'[2]5.2 Asset Age Profile'!CR76+'[3]5.2 Asset Age Profile'!CR76","v":0},{"$f":"'[2]5.2 Asset Age Profile'!CS76+'[3]5.2 Asset Age Profile'!CS76","v":0},{"$f":"'[2]5.2 Asset Age Profile'!CT76+'[3]5.2 Asset Age Profile'!CT76","v":0},{"$f":"'[2]5.2 Asset Age Profile'!CU76+'[3]5.2 Asset Age Profile'!CU76","v":0},{"$f":"'[2]5.2 Asset Age Profile'!CV76+'[3]5.2 Asset Age Profile'!CV76","v":0},{"$f":"'[2]5.2 Asset Age Profile'!CW76+'[3]5.2 Asset Age Profile'!CW76","v":0},{"$f":"'[2]5.2 Asset Age Profile'!CX76+'[3]5.2 Asset Age Profile'!CX76","v":0},{"$f":"'[2]5.2 Asset Age Profile'!CY76+'[3]5.2 Asset Age Profile'!CY76","v":0},{"$f":"'[2]5.2 Asset Age Profile'!CZ76+'[3]5.2 Asset Age Profile'!CZ76","v":0},{"$f":"'[2]5.2 Asset Age Profile'!DA76+'[3]5.2 Asset Age Profile'!DA76","v":0},{"$f":"'[2]5.2 Asset Age Profile'!DB76+'[3]5.2 Asset Age Profile'!DB76","v":0},{"$f":"'[2]5.2 Asset Age Profile'!DC76+'[3]5.2 Asset Age Profile'!DC76","v":0},{"$f":"'[2]5.2 Asset Age Profile'!DD76+'[3]5.2 Asset Age Profile'!DD76","v":0},{"$f":"'[2]5.2 Asset Age Profile'!DE76+'[3]5.2 Asset Age Profile'!DE76","v":0},{"$f":"'[2]5.2 Asset Age Profile'!DF76+'[3]5.2 Asset Age Profile'!DF76","v":0},{"$f":"'[2]5.2 Asset Age Profile'!DG76+'[3]5.2 Asset Age Profile'!DG76","v":0},{"$f":"'[2]5.2 Asset Age Profile'!DH76+'[3]5.2 Asset Age Profile'!DH76","v":0},{"$f":"'[2]5.2 Asset Age Profile'!DI76+'[3]5.2 Asset Age Profile'!DI76","v":0},{"$f":"'[2]5.2 Asset Age Profile'!DJ76+'[3]5.2 Asset Age Profile'!DJ76","v":0},{"$f":"'[2]5.2 Asset Age Profile'!DK76+'[3]5.2 Asset Age Profile'!DK76","v":0},{"$f":"'[2]5.2 Asset Age Profile'!DL76+'[3]5.2 Asset Age Profile'!DL76","v":0},{"$f":"'[2]5.2 Asset Age Profile'!DM76+'[3]5.2 Asset Age Profile'!DM76","v":0},{"$f":"'[2]5.2 Asset Age Profile'!DN76+'[3]5.2 Asset Age Profile'!DN76","v":0},{"$f":"'[2]5.2 Asset Age Profile'!DO76+'[3]5.2 Asset Age Profile'!DO76","v":0},{"$f":"'[2]5.2 Asset Age Profile'!DP76+'[3]5.2 Asset Age Profile'!DP76","v":0},{"$f":"'[2]5.2 Asset Age Profile'!DQ76+'[3]5.2 Asset Age Profile'!DQ76","v":0},{"$f":"'[2]5.2 Asset Age Profile'!DR76+'[3]5.2 Asset Age Profile'!DR76","v":0},{"$f":"'[2]5.2 Asset Age Profile'!DS76+'[3]5.2 Asset Age Profile'!DS76","v":0},{"$f":"'[2]5.2 Asset Age Profile'!DT76+'[3]5.2 Asset Age Profile'!DT76","v":0},{"$f":"'[2]5.2 Asset Age Profile'!DU76+'[3]5.2 Asset Age Profile'!DU76","v":0},{"$f":"'[2]5.2 Asset Age Profile'!DV76+'[3]5.2 Asset Age Profile'!DV76","v":0},{"$f":"'[2]5.2 Asset Age Profile'!DW76+'[3]5.2 Asset Age Profile'!DW76","v":0},{"$f":"'[2]5.2 Asset Age Profile'!DX76+'[3]5.2 Asset Age Profile'!DX76","v":0},{"$f":"'[2]5.2 Asset Age Profile'!DY76+'[3]5.2 Asset Age Profile'!DY76","v":0},{"$f":"'[2]5.2 Asset Age Profile'!DZ76+'[3]5.2 Asset Age Profile'!DZ76","v":0},{"$f":"'[2]5.2 Asset Age Profile'!EA76+'[3]5.2 Asset Age Profile'!EA76","v":0},{"$f":"'[2]5.2 Asset Age Profile'!EB76+'[3]5.2 Asset Age Profile'!EB76","v":0},{"$f":"'[2]5.2 Asset Age Profile'!EC76+'[3]5.2 Asset Age Profile'!EC76","v":0},{"$f":"'[2]5.2 Asset Age Profile'!ED76+'[3]5.2 Asset Age Profile'!ED76","v":0},{"$f":"'[2]5.2 Asset Age Profile'!EE76+'[3]5.2 Asset Age Profile'!EE76","v":0},{"$f":"'[2]5.2 Asset Age Profile'!EF76+'[3]5.2 Asset Age Profile'!EF76","v":0},{"$f":"'[2]5.2 Asset Age Profile'!EG76+'[3]5.2 Asset Age Profile'!EG76","v":0},{"$f":"'[2]5.2 Asset Age Profile'!EH76+'[3]5.2 Asset Age Profile'!EH76","v":0},{"$f":"'[2]5.2 Asset Age Profile'!EI76+'[3]5.2 Asset Age Profile'!EI76","v":0},{"$f":"'[2]5.2 Asset Age Profile'!EJ76+'[3]5.2 Asset Age Profile'!EJ76","v":0}]
["ED_ASS521_00067",null,"Kiosk Mounted ; < = 22kV ;  < = 60 kVA ; Single Phase",null,null,null,null,null,null,null,null,null,null,{"$f":"'[2]5.2 Asset Age Profile'!N77+'[3]5.2 Asset Age Profile'!N77","v":0},{"$f":"'[2]5.2 Asset Age Profile'!O77+'[3]5.2 Asset Age Profile'!O77","v":0},{"$f":"'[2]5.2 Asset Age Profile'!P77+'[3]5.2 Asset Age Profile'!P77","v":0},{"$f":"'[2]5.2 Asset Age Profile'!Q77+'[3]5.2 Asset Age Profile'!Q77","v":0},{"$f":"'[2]5.2 Asset Age Profile'!R77+'[3]5.2 Asset Age Profile'!R77","v":0},{"$f":"'[2]5.2 Asset Age Profile'!S77+'[3]5.2 Asset Age Profile'!S77","v":0},{"$f":"'[2]5.2 Asset Age Profile'!T77+'[3]5.2 Asset Age Profile'!T77","v":0},{"$f":"'[2]5.2 Asset Age Profile'!U77+'[3]5.2 Asset Age Profile'!U77","v":0},{"$f":"'[2]5.2 Asset Age Profile'!V77+'[3]5.2 Asset Age Profile'!V77","v":0},{"$f":"'[2]5.2 Asset Age Profile'!W77+'[3]5.2 Asset Age Profile'!W77","v":0},{"$f":"'[2]5.2 Asset Age Profile'!X77+'[3]5.2 Asset Age Profile'!X77","v":0},{"$f":"'[2]5.2 Asset Age Profile'!Y77+'[3]5.2 Asset Age Profile'!Y77","v":0},{"$f":"'[2]5.2 Asset Age Profile'!Z77+'[3]5.2 Asset Age Profile'!Z77","v":0},{"$f":"'[2]5.2 Asset Age Profile'!AA77+'[3]5.2 Asset Age Profile'!AA77","v":0},{"$f":"'[2]5.2 Asset Age Profile'!AB77+'[3]5.2 Asset Age Profile'!AB77","v":0},{"$f":"'[2]5.2 Asset Age Profile'!AC77+'[3]5.2 Asset Age Profile'!AC77","v":0},{"$f":"'[2]5.2 Asset Age Profile'!AD77+'[3]5.2 Asset Age Profile'!AD77","v":0},{"$f":"'[2]5.2 Asset Age Profile'!AE77+'[3]5.2 Asset Age Profile'!AE77","v":0},{"$f":"'[2]5.2 Asset Age Profile'!AF77+'[3]5.2 Asset Age Profile'!AF77","v":0},{"$f":"'[2]5.2 Asset Age Profile'!AG77+'[3]5.2 Asset Age Profile'!AG77","v":0},{"$f":"'[2]5.2 Asset Age Profile'!AH77+'[3]5.2 Asset Age Profile'!AH77","v":0},{"$f":"'[2]5.2 Asset Age Profile'!AI77+'[3]5.2 Asset Age Profile'!AI77","v":0},{"$f":"'[2]5.2 Asset Age Profile'!AJ77+'[3]5.2 Asset Age Profile'!AJ77","v":0},{"$f":"'[2]5.2 Asset Age Profile'!AK77+'[3]5.2 Asset Age Profile'!AK77","v":0},{"$f":"'[2]5.2 Asset Age Profile'!AL77+'[3]5.2 Asset Age Profile'!AL77","v":0},{"$f":"'[2]5.2 Asset Age Profile'!AM77+'[3]5.2 Asset Age Profile'!AM77","v":0},{"$f":"'[2]5.2 Asset Age Profile'!AN77+'[3]5.2 Asset Age Profile'!AN77","v":0},{"$f":"'[2]5.2 Asset Age Profile'!AO77+'[3]5.2 Asset Age Profile'!AO77","v":0},{"$f":"'[2]5.2 Asset Age Profile'!AP77+'[3]5.2 Asset Age Profile'!AP77","v":0},{"$f":"'[2]5.2 Asset Age Profile'!AQ77+'[3]5.2 Asset Age Profile'!AQ77","v":0},{"$f":"'[2]5.2 Asset Age Profile'!AR77+'[3]5.2 Asset Age Profile'!AR77","v":0},{"$f":"'[2]5.2 Asset Age Profile'!AS77+'[3]5.2 Asset Age Profile'!AS77","v":0},{"$f":"'[2]5.2 Asset Age Profile'!AT77+'[3]5.2 Asset Age Profile'!AT77","v":0},{"$f":"'[2]5.2 Asset Age Profile'!AU77+'[3]5.2 Asset Age Profile'!AU77","v":0},{"$f":"'[2]5.2 Asset Age Profile'!AV77+'[3]5.2 Asset Age Profile'!AV77","v":0},{"$f":"'[2]5.2 Asset Age Profile'!AW77+'[3]5.2 Asset Age Profile'!AW77","v":0},{"$f":"'[2]5.2 Asset Age Profile'!AX77+'[3]5.2 Asset Age Profile'!AX77","v":0},{"$f":"'[2]5.2 Asset Age Profile'!AY77+'[3]5.2 Asset Age Profile'!AY77","v":0},{"$f":"'[2]5.2 Asset Age Profile'!AZ77+'[3]5.2 Asset Age Profile'!AZ77","v":0},{"$f":"'[2]5.2 Asset Age Profile'!BA77+'[3]5.2 Asset Age Profile'!BA77","v":0},{"$f":"'[2]5.2 Asset Age Profile'!BB77+'[3]5.2 Asset Age Profile'!BB77","v":0},{"$f":"'[2]5.2 Asset Age Profile'!BC77+'[3]5.2 Asset Age Profile'!BC77","v":0},{"$f":"'[2]5.2 Asset Age Profile'!BD77+'[3]5.2 Asset Age Profile'!BD77","v":0},{"$f":"'[2]5.2 Asset Age Profile'!BE77+'[3]5.2 Asset Age Profile'!BE77","v":0},{"$f":"'[2]5.2 Asset Age Profile'!BF77+'[3]5.2 Asset Age Profile'!BF77","v":0},{"$f":"'[2]5.2 Asset Age Profile'!BG77+'[3]5.2 Asset Age Profile'!BG77","v":0},{"$f":"'[2]5.2 Asset Age Profile'!BH77+'[3]5.2 Asset Age Profile'!BH77","v":0},{"$f":"'[2]5.2 Asset Age Profile'!BI77+'[3]5.2 Asset Age Profile'!BI77","v":0},{"$f":"'[2]5.2 Asset Age Profile'!BJ77+'[3]5.2 Asset Age Profile'!BJ77","v":0},{"$f":"'[2]5.2 Asset Age Profile'!BK77+'[3]5.2 Asset Age Profile'!BK77","v":0},{"$f":"'[2]5.2 Asset Age Profile'!BL77+'[3]5.2 Asset Age Profile'!BL77","v":0},{"$f":"'[2]5.2 Asset Age Profile'!BM77+'[3]5.2 Asset Age Profile'!BM77","v":0},{"$f":"'[2]5.2 Asset Age Profile'!BN77+'[3]5.2 Asset Age Profile'!BN77","v":0},{"$f":"'[2]5.2 Asset Age Profile'!BO77+'[3]5.2 Asset Age Profile'!BO77","v":0},{"$f":"'[2]5.2 Asset Age Profile'!BP77+'[3]5.2 Asset Age Profile'!BP77","v":0},{"$f":"'[2]5.2 Asset Age Profile'!BQ77+'[3]5.2 Asset Age Profile'!BQ77","v":0},{"$f":"'[2]5.2 Asset Age Profile'!BR77+'[3]5.2 Asset Age Profile'!BR77","v":0},{"$f":"'[2]5.2 Asset Age Profile'!BS77+'[3]5.2 Asset Age Profile'!BS77","v":0},{"$f":"'[2]5.2 Asset Age Profile'!BT77+'[3]5.2 Asset Age Profile'!BT77","v":0},{"$f":"'[2]5.2 Asset Age Profile'!BU77+'[3]5.2 Asset Age Profile'!BU77","v":0},{"$f":"'[2]5.2 Asset Age Profile'!BV77+'[3]5.2 Asset Age Profile'!BV77","v":0},{"$f":"'[2]5.2 Asset Age Profile'!BW77+'[3]5.2 Asset Age Profile'!BW77","v":0},{"$f":"'[2]5.2 Asset Age Profile'!BX77+'[3]5.2 Asset Age Profile'!BX77","v":0},{"$f":"'[2]5.2 Asset Age Profile'!BY77+'[3]5.2 Asset Age Profile'!BY77","v":0},{"$f":"'[2]5.2 Asset Age Profile'!BZ77+'[3]5.2 Asset Age Profile'!BZ77","v":0},{"$f":"'[2]5.2 Asset Age Profile'!CA77+'[3]5.2 Asset Age Profile'!CA77","v":0},{"$f":"'[2]5.2 Asset Age Profile'!CB77+'[3]5.2 Asset Age Profile'!CB77","v":0},{"$f":"'[2]5.2 Asset Age Profile'!CC77+'[3]5.2 Asset Age Profile'!CC77","v":0},{"$f":"'[2]5.2 Asset Age Profile'!CD77+'[3]5.2 Asset Age Profile'!CD77","v":0},{"$f":"'[2]5.2 Asset Age Profile'!CE77+'[3]5.2 Asset Age Profile'!CE77","v":0},{"$f":"'[2]5.2 Asset Age Profile'!CF77+'[3]5.2 Asset Age Profile'!CF77","v":0},{"$f":"'[2]5.2 Asset Age Profile'!CG77+'[3]5.2 Asset Age Profile'!CG77","v":0},{"$f":"'[2]5.2 Asset Age Profile'!CH77+'[3]5.2 Asset Age Profile'!CH77","v":0},{"$f":"'[2]5.2 Asset Age Profile'!CI77+'[3]5.2 Asset Age Profile'!CI77","v":0},{"$f":"'[2]5.2 Asset Age Profile'!CJ77+'[3]5.2 Asset Age Profile'!CJ77","v":0},{"$f":"'[2]5.2 Asset Age Profile'!CK77+'[3]5.2 Asset Age Profile'!CK77","v":0},{"$f":"'[2]5.2 Asset Age Profile'!CL77+'[3]5.2 Asset Age Profile'!CL77","v":0},{"$f":"'[2]5.2 Asset Age Profile'!CM77+'[3]5.2 Asset Age Profile'!CM77","v":0},{"$f":"'[2]5.2 Asset Age Profile'!CN77+'[3]5.2 Asset Age Profile'!CN77","v":0},{"$f":"'[2]5.2 Asset Age Profile'!CO77+'[3]5.2 Asset Age Profile'!CO77","v":0},{"$f":"'[2]5.2 Asset Age Profile'!CP77+'[3]5.2 Asset Age Profile'!CP77","v":0},{"$f":"'[2]5.2 Asset Age Profile'!CQ77+'[3]5.2 Asset Age Profile'!CQ77","v":0},{"$f":"'[2]5.2 Asset Age Profile'!CR77+'[3]5.2 Asset Age Profile'!CR77","v":0},{"$f":"'[2]5.2 Asset Age Profile'!CS77+'[3]5.2 Asset Age Profile'!CS77","v":0},{"$f":"'[2]5.2 Asset Age Profile'!CT77+'[3]5.2 Asset Age Profile'!CT77","v":0},{"$f":"'[2]5.2 Asset Age Profile'!CU77+'[3]5.2 Asset Age Profile'!CU77","v":0},{"$f":"'[2]5.2 Asset Age Profile'!CV77+'[3]5.2 Asset Age Profile'!CV77","v":0},{"$f":"'[2]5.2 Asset Age Profile'!CW77+'[3]5.2 Asset Age Profile'!CW77","v":0},{"$f":"'[2]5.2 Asset Age Profile'!CX77+'[3]5.2 Asset Age Profile'!CX77","v":0},{"$f":"'[2]5.2 Asset Age Profile'!CY77+'[3]5.2 Asset Age Profile'!CY77","v":0},{"$f":"'[2]5.2 Asset Age Profile'!CZ77+'[3]5.2 Asset Age Profile'!CZ77","v":0},{"$f":"'[2]5.2 Asset Age Profile'!DA77+'[3]5.2 Asset Age Profile'!DA77","v":0},{"$f":"'[2]5.2 Asset Age Profile'!DB77+'[3]5.2 Asset Age Profile'!DB77","v":0},{"$f":"'[2]5.2 Asset Age Profile'!DC77+'[3]5.2 Asset Age Profile'!DC77","v":0},{"$f":"'[2]5.2 Asset Age Profile'!DD77+'[3]5.2 Asset Age Profile'!DD77","v":0},{"$f":"'[2]5.2 Asset Age Profile'!DE77+'[3]5.2 Asset Age Profile'!DE77","v":0},{"$f":"'[2]5.2 Asset Age Profile'!DF77+'[3]5.2 Asset Age Profile'!DF77","v":0},{"$f":"'[2]5.2 Asset Age Profile'!DG77+'[3]5.2 Asset Age Profile'!DG77","v":0},{"$f":"'[2]5.2 Asset Age Profile'!DH77+'[3]5.2 Asset Age Profile'!DH77","v":0},{"$f":"'[2]5.2 Asset Age Profile'!DI77+'[3]5.2 Asset Age Profile'!DI77","v":0},{"$f":"'[2]5.2 Asset Age Profile'!DJ77+'[3]5.2 Asset Age Profile'!DJ77","v":0},{"$f":"'[2]5.2 Asset Age Profile'!DK77+'[3]5.2 Asset Age Profile'!DK77","v":0},{"$f":"'[2]5.2 Asset Age Profile'!DL77+'[3]5.2 Asset Age Profile'!DL77","v":0},{"$f":"'[2]5.2 Asset Age Profile'!DM77+'[3]5.2 Asset Age Profile'!DM77","v":0},{"$f":"'[2]5.2 Asset Age Profile'!DN77+'[3]5.2 Asset Age Profile'!DN77","v":0},{"$f":"'[2]5.2 Asset Age Profile'!DO77+'[3]5.2 Asset Age Profile'!DO77","v":0},{"$f":"'[2]5.2 Asset Age Profile'!DP77+'[3]5.2 Asset Age Profile'!DP77","v":0},{"$f":"'[2]5.2 Asset Age Profile'!DQ77+'[3]5.2 Asset Age Profile'!DQ77","v":0},{"$f":"'[2]5.2 Asset Age Profile'!DR77+'[3]5.2 Asset Age Profile'!DR77","v":0},{"$f":"'[2]5.2 Asset Age Profile'!DS77+'[3]5.2 Asset Age Profile'!DS77","v":0},{"$f":"'[2]5.2 Asset Age Profile'!DT77+'[3]5.2 Asset Age Profile'!DT77","v":0},{"$f":"'[2]5.2 Asset Age Profile'!DU77+'[3]5.2 Asset Age Profile'!DU77","v":0},{"$f":"'[2]5.2 Asset Age Profile'!DV77+'[3]5.2 Asset Age Profile'!DV77","v":0},{"$f":"'[2]5.2 Asset Age Profile'!DW77+'[3]5.2 Asset Age Profile'!DW77","v":0},{"$f":"'[2]5.2 Asset Age Profile'!DX77+'[3]5.2 Asset Age Profile'!DX77","v":0},{"$f":"'[2]5.2 Asset Age Profile'!DY77+'[3]5.2 Asset Age Profile'!DY77","v":0},{"$f":"'[2]5.2 Asset Age Profile'!DZ77+'[3]5.2 Asset Age Profile'!DZ77","v":0},{"$f":"'[2]5.2 Asset Age Profile'!EA77+'[3]5.2 Asset Age Profile'!EA77","v":0},{"$f":"'[2]5.2 Asset Age Profile'!EB77+'[3]5.2 Asset Age Profile'!EB77","v":0},{"$f":"'[2]5.2 Asset Age Profile'!EC77+'[3]5.2 Asset Age Profile'!EC77","v":0},{"$f":"'[2]5.2 Asset Age Profile'!ED77+'[3]5.2 Asset Age Profile'!ED77","v":0},{"$f":"'[2]5.2 Asset Age Profile'!EE77+'[3]5.2 Asset Age Profile'!EE77","v":0},{"$f":"'[2]5.2 Asset Age Profile'!EF77+'[3]5.2 Asset Age Profile'!EF77","v":0},{"$f":"'[2]5.2 Asset Age Profile'!EG77+'[3]5.2 Asset Age Profile'!EG77","v":0},{"$f":"'[2]5.2 Asset Age Profile'!EH77+'[3]5.2 Asset Age Profile'!EH77","v":0},{"$f":"'[2]5.2 Asset Age Profile'!EI77+'[3]5.2 Asset Age Profile'!EI77","v":0},{"$f":"'[2]5.2 Asset Age Profile'!EJ77+'[3]5.2 Asset Age Profile'!EJ77","v":0}]
["ED_ASS521_00068",null,"Kiosk Mounted ; < = 22kV ;  > 60 kVA and < = 600 kVA ; Single Phase",null,null,null,null,null,null,null,null,null,null,{"$f":"'[2]5.2 Asset Age Profile'!N78+'[3]5.2 Asset Age Profile'!N78","v":0},{"$f":"'[2]5.2 Asset Age Profile'!O78+'[3]5.2 Asset Age Profile'!O78","v":0},{"$f":"'[2]5.2 Asset Age Profile'!P78+'[3]5.2 Asset Age Profile'!P78","v":0},{"$f":"'[2]5.2 Asset Age Profile'!Q78+'[3]5.2 Asset Age Profile'!Q78","v":0},{"$f":"'[2]5.2 Asset Age Profile'!R78+'[3]5.2 Asset Age Profile'!R78","v":0},{"$f":"'[2]5.2 Asset Age Profile'!S78+'[3]5.2 Asset Age Profile'!S78","v":0},{"$f":"'[2]5.2 Asset Age Profile'!T78+'[3]5.2 Asset Age Profile'!T78","v":0},{"$f":"'[2]5.2 Asset Age Profile'!U78+'[3]5.2 Asset Age Profile'!U78","v":0},{"$f":"'[2]5.2 Asset Age Profile'!V78+'[3]5.2 Asset Age Profile'!V78","v":0},{"$f":"'[2]5.2 Asset Age Profile'!W78+'[3]5.2 Asset Age Profile'!W78","v":0},{"$f":"'[2]5.2 Asset Age Profile'!X78+'[3]5.2 Asset Age Profile'!X78","v":0},{"$f":"'[2]5.2 Asset Age Profile'!Y78+'[3]5.2 Asset Age Profile'!Y78","v":0},{"$f":"'[2]5.2 Asset Age Profile'!Z78+'[3]5.2 Asset Age Profile'!Z78","v":0},{"$f":"'[2]5.2 Asset Age Profile'!AA78+'[3]5.2 Asset Age Profile'!AA78","v":0},{"$f":"'[2]5.2 Asset Age Profile'!AB78+'[3]5.2 Asset Age Profile'!AB78","v":0},{"$f":"'[2]5.2 Asset Age Profile'!AC78+'[3]5.2 Asset Age Profile'!AC78","v":0},{"$f":"'[2]5.2 Asset Age Profile'!AD78+'[3]5.2 Asset Age Profile'!AD78","v":0},{"$f":"'[2]5.2 Asset Age Profile'!AE78+'[3]5.2 Asset Age Profile'!AE78","v":0},{"$f":"'[2]5.2 Asset Age Profile'!AF78+'[3]5.2 Asset Age Profile'!AF78","v":0},{"$f":"'[2]5.2 Asset Age Profile'!AG78+'[3]5.2 Asset Age Profile'!AG78","v":0},{"$f":"'[2]5.2 Asset Age Profile'!AH78+'[3]5.2 Asset Age Profile'!AH78","v":0},{"$f":"'[2]5.2 Asset Age Profile'!AI78+'[3]5.2 Asset Age Profile'!AI78","v":0},{"$f":"'[2]5.2 Asset Age Profile'!AJ78+'[3]5.2 Asset Age Profile'!AJ78","v":0},{"$f":"'[2]5.2 Asset Age Profile'!AK78+'[3]5.2 Asset Age Profile'!AK78","v":0},{"$f":"'[2]5.2 Asset Age Profile'!AL78+'[3]5.2 Asset Age Profile'!AL78","v":0},{"$f":"'[2]5.2 Asset Age Profile'!AM78+'[3]5.2 Asset Age Profile'!AM78","v":0},{"$f":"'[2]5.2 Asset Age Profile'!AN78+'[3]5.2 Asset Age Profile'!AN78","v":0},{"$f":"'[2]5.2 Asset Age Profile'!AO78+'[3]5.2 Asset Age Profile'!AO78","v":0},{"$f":"'[2]5.2 Asset Age Profile'!AP78+'[3]5.2 Asset Age Profile'!AP78","v":0},{"$f":"'[2]5.2 Asset Age Profile'!AQ78+'[3]5.2 Asset Age Profile'!AQ78","v":0},{"$f":"'[2]5.2 Asset Age Profile'!AR78+'[3]5.2 Asset Age Profile'!AR78","v":0},{"$f":"'[2]5.2 Asset Age Profile'!AS78+'[3]5.2 Asset Age Profile'!AS78","v":0},{"$f":"'[2]5.2 Asset Age Profile'!AT78+'[3]5.2 Asset Age Profile'!AT78","v":0},{"$f":"'[2]5.2 Asset Age Profile'!AU78+'[3]5.2 Asset Age Profile'!AU78","v":0},{"$f":"'[2]5.2 Asset Age Profile'!AV78+'[3]5.2 Asset Age Profile'!AV78","v":0},{"$f":"'[2]5.2 Asset Age Profile'!AW78+'[3]5.2 Asset Age Profile'!AW78","v":0},{"$f":"'[2]5.2 Asset Age Profile'!AX78+'[3]5.2 Asset Age Profile'!AX78","v":0},{"$f":"'[2]5.2 Asset Age Profile'!AY78+'[3]5.2 Asset Age Profile'!AY78","v":0},{"$f":"'[2]5.2 Asset Age Profile'!AZ78+'[3]5.2 Asset Age Profile'!AZ78","v":0},{"$f":"'[2]5.2 Asset Age Profile'!BA78+'[3]5.2 Asset Age Profile'!BA78","v":0},{"$f":"'[2]5.2 Asset Age Profile'!BB78+'[3]5.2 Asset Age Profile'!BB78","v":0},{"$f":"'[2]5.2 Asset Age Profile'!BC78+'[3]5.2 Asset Age Profile'!BC78","v":0},{"$f":"'[2]5.2 Asset Age Profile'!BD78+'[3]5.2 Asset Age Profile'!BD78","v":0},{"$f":"'[2]5.2 Asset Age Profile'!BE78+'[3]5.2 Asset Age Profile'!BE78","v":0},{"$f":"'[2]5.2 Asset Age Profile'!BF78+'[3]5.2 Asset Age Profile'!BF78","v":0},{"$f":"'[2]5.2 Asset Age Profile'!BG78+'[3]5.2 Asset Age Profile'!BG78","v":0},{"$f":"'[2]5.2 Asset Age Profile'!BH78+'[3]5.2 Asset Age Profile'!BH78","v":0},{"$f":"'[2]5.2 Asset Age Profile'!BI78+'[3]5.2 Asset Age Profile'!BI78","v":0},{"$f":"'[2]5.2 Asset Age Profile'!BJ78+'[3]5.2 Asset Age Profile'!BJ78","v":0},{"$f":"'[2]5.2 Asset Age Profile'!BK78+'[3]5.2 Asset Age Profile'!BK78","v":0},{"$f":"'[2]5.2 Asset Age Profile'!BL78+'[3]5.2 Asset Age Profile'!BL78","v":0},{"$f":"'[2]5.2 Asset Age Profile'!BM78+'[3]5.2 Asset Age Profile'!BM78","v":0},{"$f":"'[2]5.2 Asset Age Profile'!BN78+'[3]5.2 Asset Age Profile'!BN78","v":0},{"$f":"'[2]5.2 Asset Age Profile'!BO78+'[3]5.2 Asset Age Profile'!BO78","v":0},{"$f":"'[2]5.2 Asset Age Profile'!BP78+'[3]5.2 Asset Age Profile'!BP78","v":0},{"$f":"'[2]5.2 Asset Age Profile'!BQ78+'[3]5.2 Asset Age Profile'!BQ78","v":0},{"$f":"'[2]5.2 Asset Age Profile'!BR78+'[3]5.2 Asset Age Profile'!BR78","v":0},{"$f":"'[2]5.2 Asset Age Profile'!BS78+'[3]5.2 Asset Age Profile'!BS78","v":0},{"$f":"'[2]5.2 Asset Age Profile'!BT78+'[3]5.2 Asset Age Profile'!BT78","v":0},{"$f":"'[2]5.2 Asset Age Profile'!BU78+'[3]5.2 Asset Age Profile'!BU78","v":0},{"$f":"'[2]5.2 Asset Age Profile'!BV78+'[3]5.2 Asset Age Profile'!BV78","v":0},{"$f":"'[2]5.2 Asset Age Profile'!BW78+'[3]5.2 Asset Age Profile'!BW78","v":0},{"$f":"'[2]5.2 Asset Age Profile'!BX78+'[3]5.2 Asset Age Profile'!BX78","v":0},{"$f":"'[2]5.2 Asset Age Profile'!BY78+'[3]5.2 Asset Age Profile'!BY78","v":0},{"$f":"'[2]5.2 Asset Age Profile'!BZ78+'[3]5.2 Asset Age Profile'!BZ78","v":0},{"$f":"'[2]5.2 Asset Age Profile'!CA78+'[3]5.2 Asset Age Profile'!CA78","v":0},{"$f":"'[2]5.2 Asset Age Profile'!CB78+'[3]5.2 Asset Age Profile'!CB78","v":0},{"$f":"'[2]5.2 Asset Age Profile'!CC78+'[3]5.2 Asset Age Profile'!CC78","v":0},{"$f":"'[2]5.2 Asset Age Profile'!CD78+'[3]5.2 Asset Age Profile'!CD78","v":0},{"$f":"'[2]5.2 Asset Age Profile'!CE78+'[3]5.2 Asset Age Profile'!CE78","v":0},{"$f":"'[2]5.2 Asset Age Profile'!CF78+'[3]5.2 Asset Age Profile'!CF78","v":0},{"$f":"'[2]5.2 Asset Age Profile'!CG78+'[3]5.2 Asset Age Profile'!CG78","v":0},{"$f":"'[2]5.2 Asset Age Profile'!CH78+'[3]5.2 Asset Age Profile'!CH78","v":0},{"$f":"'[2]5.2 Asset Age Profile'!CI78+'[3]5.2 Asset Age Profile'!CI78","v":0},{"$f":"'[2]5.2 Asset Age Profile'!CJ78+'[3]5.2 Asset Age Profile'!CJ78","v":0},{"$f":"'[2]5.2 Asset Age Profile'!CK78+'[3]5.2 Asset Age Profile'!CK78","v":0},{"$f":"'[2]5.2 Asset Age Profile'!CL78+'[3]5.2 Asset Age Profile'!CL78","v":0},{"$f":"'[2]5.2 Asset Age Profile'!CM78+'[3]5.2 Asset Age Profile'!CM78","v":0},{"$f":"'[2]5.2 Asset Age Profile'!CN78+'[3]5.2 Asset Age Profile'!CN78","v":0},{"$f":"'[2]5.2 Asset Age Profile'!CO78+'[3]5.2 Asset Age Profile'!CO78","v":0},{"$f":"'[2]5.2 Asset Age Profile'!CP78+'[3]5.2 Asset Age Profile'!CP78","v":0},{"$f":"'[2]5.2 Asset Age Profile'!CQ78+'[3]5.2 Asset Age Profile'!CQ78","v":0},{"$f":"'[2]5.2 Asset Age Profile'!CR78+'[3]5.2 Asset Age Profile'!CR78","v":0},{"$f":"'[2]5.2 Asset Age Profile'!CS78+'[3]5.2 Asset Age Profile'!CS78","v":0},{"$f":"'[2]5.2 Asset Age Profile'!CT78+'[3]5.2 Asset Age Profile'!CT78","v":0},{"$f":"'[2]5.2 Asset Age Profile'!CU78+'[3]5.2 Asset Age Profile'!CU78","v":0},{"$f":"'[2]5.2 Asset Age Profile'!CV78+'[3]5.2 Asset Age Profile'!CV78","v":0},{"$f":"'[2]5.2 Asset Age Profile'!CW78+'[3]5.2 Asset Age Profile'!CW78","v":0},{"$f":"'[2]5.2 Asset Age Profile'!CX78+'[3]5.2 Asset Age Profile'!CX78","v":0},{"$f":"'[2]5.2 Asset Age Profile'!CY78+'[3]5.2 Asset Age Profile'!CY78","v":0},{"$f":"'[2]5.2 Asset Age Profile'!CZ78+'[3]5.2 Asset Age Profile'!CZ78","v":0},{"$f":"'[2]5.2 Asset Age Profile'!DA78+'[3]5.2 Asset Age Profile'!DA78","v":0},{"$f":"'[2]5.2 Asset Age Profile'!DB78+'[3]5.2 Asset Age Profile'!DB78","v":0},{"$f":"'[2]5.2 Asset Age Profile'!DC78+'[3]5.2 Asset Age Profile'!DC78","v":0},{"$f":"'[2]5.2 Asset Age Profile'!DD78+'[3]5.2 Asset Age Profile'!DD78","v":0},{"$f":"'[2]5.2 Asset Age Profile'!DE78+'[3]5.2 Asset Age Profile'!DE78","v":0},{"$f":"'[2]5.2 Asset Age Profile'!DF78+'[3]5.2 Asset Age Profile'!DF78","v":0},{"$f":"'[2]5.2 Asset Age Profile'!DG78+'[3]5.2 Asset Age Profile'!DG78","v":0},{"$f":"'[2]5.2 Asset Age Profile'!DH78+'[3]5.2 Asset Age Profile'!DH78","v":0},{"$f":"'[2]5.2 Asset Age Profile'!DI78+'[3]5.2 Asset Age Profile'!DI78","v":0},{"$f":"'[2]5.2 Asset Age Profile'!DJ78+'[3]5.2 Asset Age Profile'!DJ78","v":0},{"$f":"'[2]5.2 Asset Age Profile'!DK78+'[3]5.2 Asset Age Profile'!DK78","v":0},{"$f":"'[2]5.2 Asset Age Profile'!DL78+'[3]5.2 Asset Age Profile'!DL78","v":0},{"$f":"'[2]5.2 Asset Age Profile'!DM78+'[3]5.2 Asset Age Profile'!DM78","v":0},{"$f":"'[2]5.2 Asset Age Profile'!DN78+'[3]5.2 Asset Age Profile'!DN78","v":0},{"$f":"'[2]5.2 Asset Age Profile'!DO78+'[3]5.2 Asset Age Profile'!DO78","v":0},{"$f":"'[2]5.2 Asset Age Profile'!DP78+'[3]5.2 Asset Age Profile'!DP78","v":0},{"$f":"'[2]5.2 Asset Age Profile'!DQ78+'[3]5.2 Asset Age Profile'!DQ78","v":0},{"$f":"'[2]5.2 Asset Age Profile'!DR78+'[3]5.2 Asset Age Profile'!DR78","v":0},{"$f":"'[2]5.2 Asset Age Profile'!DS78+'[3]5.2 Asset Age Profile'!DS78","v":0},{"$f":"'[2]5.2 Asset Age Profile'!DT78+'[3]5.2 Asset Age Profile'!DT78","v":0},{"$f":"'[2]5.2 Asset Age Profile'!DU78+'[3]5.2 Asset Age Profile'!DU78","v":0},{"$f":"'[2]5.2 Asset Age Profile'!DV78+'[3]5.2 Asset Age Profile'!DV78","v":0},{"$f":"'[2]5.2 Asset Age Profile'!DW78+'[3]5.2 Asset Age Profile'!DW78","v":0},{"$f":"'[2]5.2 Asset Age Profile'!DX78+'[3]5.2 Asset Age Profile'!DX78","v":0},{"$f":"'[2]5.2 Asset Age Profile'!DY78+'[3]5.2 Asset Age Profile'!DY78","v":0},{"$f":"'[2]5.2 Asset Age Profile'!DZ78+'[3]5.2 Asset Age Profile'!DZ78","v":0},{"$f":"'[2]5.2 Asset Age Profile'!EA78+'[3]5.2 Asset Age Profile'!EA78","v":0},{"$f":"'[2]5.2 Asset Age Profile'!EB78+'[3]5.2 Asset Age Profile'!EB78","v":0},{"$f":"'[2]5.2 Asset Age Profile'!EC78+'[3]5.2 Asset Age Profile'!EC78","v":0},{"$f":"'[2]5.2 Asset Age Profile'!ED78+'[3]5.2 Asset Age Profile'!ED78","v":0},{"$f":"'[2]5.2 Asset Age Profile'!EE78+'[3]5.2 Asset Age Profile'!EE78","v":0},{"$f":"'[2]5.2 Asset Age Profile'!EF78+'[3]5.2 Asset Age Profile'!EF78","v":0},{"$f":"'[2]5.2 Asset Age Profile'!EG78+'[3]5.2 Asset Age Profile'!EG78","v":0},{"$f":"'[2]5.2 Asset Age Profile'!EH78+'[3]5.2 Asset Age Profile'!EH78","v":0},{"$f":"'[2]5.2 Asset Age Profile'!EI78+'[3]5.2 Asset Age Profile'!EI78","v":0},{"$f":"'[2]5.2 Asset Age Profile'!EJ78+'[3]5.2 Asset Age Profile'!EJ78","v":0}]
["ED_ASS521_00069",null,"Kiosk Mounted ; < = 22kV ;  > 600 kVA ; Single Phase",null,null,null,null,null,null,null,null,null,null,{"$f":"'[2]5.2 Asset Age Profile'!N79+'[3]5.2 Asset Age Profile'!N79","v":0},{"$f":"'[2]5.2 Asset Age Profile'!O79+'[3]5.2 Asset Age Profile'!O79","v":0},{"$f":"'[2]5.2 Asset Age Profile'!P79+'[3]5.2 Asset Age Profile'!P79","v":0},{"$f":"'[2]5.2 Asset Age Profile'!Q79+'[3]5.2 Asset Age Profile'!Q79","v":0},{"$f":"'[2]5.2 Asset Age Profile'!R79+'[3]5.2 Asset Age Profile'!R79","v":0},{"$f":"'[2]5.2 Asset Age Profile'!S79+'[3]5.2 Asset Age Profile'!S79","v":0},{"$f":"'[2]5.2 Asset Age Profile'!T79+'[3]5.2 Asset Age Profile'!T79","v":0},{"$f":"'[2]5.2 Asset Age Profile'!U79+'[3]5.2 Asset Age Profile'!U79","v":0},{"$f":"'[2]5.2 Asset Age Profile'!V79+'[3]5.2 Asset Age Profile'!V79","v":0},{"$f":"'[2]5.2 Asset Age Profile'!W79+'[3]5.2 Asset Age Profile'!W79","v":0},{"$f":"'[2]5.2 Asset Age Profile'!X79+'[3]5.2 Asset Age Profile'!X79","v":0},{"$f":"'[2]5.2 Asset Age Profile'!Y79+'[3]5.2 Asset Age Profile'!Y79","v":0},{"$f":"'[2]5.2 Asset Age Profile'!Z79+'[3]5.2 Asset Age Profile'!Z79","v":0},{"$f":"'[2]5.2 Asset Age Profile'!AA79+'[3]5.2 Asset Age Profile'!AA79","v":0},{"$f":"'[2]5.2 Asset Age Profile'!AB79+'[3]5.2 Asset Age Profile'!AB79","v":0},{"$f":"'[2]5.2 Asset Age Profile'!AC79+'[3]5.2 Asset Age Profile'!AC79","v":0},{"$f":"'[2]5.2 Asset Age Profile'!AD79+'[3]5.2 Asset Age Profile'!AD79","v":0},{"$f":"'[2]5.2 Asset Age Profile'!AE79+'[3]5.2 Asset Age Profile'!AE79","v":0},{"$f":"'[2]5.2 Asset Age Profile'!AF79+'[3]5.2 Asset Age Profile'!AF79","v":0},{"$f":"'[2]5.2 Asset Age Profile'!AG79+'[3]5.2 Asset Age Profile'!AG79","v":0},{"$f":"'[2]5.2 Asset Age Profile'!AH79+'[3]5.2 Asset Age Profile'!AH79","v":0},{"$f":"'[2]5.2 Asset Age Profile'!AI79+'[3]5.2 Asset Age Profile'!AI79","v":0},{"$f":"'[2]5.2 Asset Age Profile'!AJ79+'[3]5.2 Asset Age Profile'!AJ79","v":0},{"$f":"'[2]5.2 Asset Age Profile'!AK79+'[3]5.2 Asset Age Profile'!AK79","v":0},{"$f":"'[2]5.2 Asset Age Profile'!AL79+'[3]5.2 Asset Age Profile'!AL79","v":0},{"$f":"'[2]5.2 Asset Age Profile'!AM79+'[3]5.2 Asset Age Profile'!AM79","v":0},{"$f":"'[2]5.2 Asset Age Profile'!AN79+'[3]5.2 Asset Age Profile'!AN79","v":0},{"$f":"'[2]5.2 Asset Age Profile'!AO79+'[3]5.2 Asset Age Profile'!AO79","v":0},{"$f":"'[2]5.2 Asset Age Profile'!AP79+'[3]5.2 Asset Age Profile'!AP79","v":0},{"$f":"'[2]5.2 Asset Age Profile'!AQ79+'[3]5.2 Asset Age Profile'!AQ79","v":0},{"$f":"'[2]5.2 Asset Age Profile'!AR79+'[3]5.2 Asset Age Profile'!AR79","v":0},{"$f":"'[2]5.2 Asset Age Profile'!AS79+'[3]5.2 Asset Age Profile'!AS79","v":0},{"$f":"'[2]5.2 Asset Age Profile'!AT79+'[3]5.2 Asset Age Profile'!AT79","v":0},{"$f":"'[2]5.2 Asset Age Profile'!AU79+'[3]5.2 Asset Age Profile'!AU79","v":0},{"$f":"'[2]5.2 Asset Age Profile'!AV79+'[3]5.2 Asset Age Profile'!AV79","v":0},{"$f":"'[2]5.2 Asset Age Profile'!AW79+'[3]5.2 Asset Age Profile'!AW79","v":0},{"$f":"'[2]5.2 Asset Age Profile'!AX79+'[3]5.2 Asset Age Profile'!AX79","v":0},{"$f":"'[2]5.2 Asset Age Profile'!AY79+'[3]5.2 Asset Age Profile'!AY79","v":0},{"$f":"'[2]5.2 Asset Age Profile'!AZ79+'[3]5.2 Asset Age Profile'!AZ79","v":0},{"$f":"'[2]5.2 Asset Age Profile'!BA79+'[3]5.2 Asset Age Profile'!BA79","v":0},{"$f":"'[2]5.2 Asset Age Profile'!BB79+'[3]5.2 Asset Age Profile'!BB79","v":0},{"$f":"'[2]5.2 Asset Age Profile'!BC79+'[3]5.2 Asset Age Profile'!BC79","v":0},{"$f":"'[2]5.2 Asset Age Profile'!BD79+'[3]5.2 Asset Age Profile'!BD79","v":0},{"$f":"'[2]5.2 Asset Age Profile'!BE79+'[3]5.2 Asset Age Profile'!BE79","v":0},{"$f":"'[2]5.2 Asset Age Profile'!BF79+'[3]5.2 Asset Age Profile'!BF79","v":0},{"$f":"'[2]5.2 Asset Age Profile'!BG79+'[3]5.2 Asset Age Profile'!BG79","v":0},{"$f":"'[2]5.2 Asset Age Profile'!BH79+'[3]5.2 Asset Age Profile'!BH79","v":0},{"$f":"'[2]5.2 Asset Age Profile'!BI79+'[3]5.2 Asset Age Profile'!BI79","v":0},{"$f":"'[2]5.2 Asset Age Profile'!BJ79+'[3]5.2 Asset Age Profile'!BJ79","v":0},{"$f":"'[2]5.2 Asset Age Profile'!BK79+'[3]5.2 Asset Age Profile'!BK79","v":0},{"$f":"'[2]5.2 Asset Age Profile'!BL79+'[3]5.2 Asset Age Profile'!BL79","v":0},{"$f":"'[2]5.2 Asset Age Profile'!BM79+'[3]5.2 Asset Age Profile'!BM79","v":0},{"$f":"'[2]5.2 Asset Age Profile'!BN79+'[3]5.2 Asset Age Profile'!BN79","v":0},{"$f":"'[2]5.2 Asset Age Profile'!BO79+'[3]5.2 Asset Age Profile'!BO79","v":0},{"$f":"'[2]5.2 Asset Age Profile'!BP79+'[3]5.2 Asset Age Profile'!BP79","v":0},{"$f":"'[2]5.2 Asset Age Profile'!BQ79+'[3]5.2 Asset Age Profile'!BQ79","v":0},{"$f":"'[2]5.2 Asset Age Profile'!BR79+'[3]5.2 Asset Age Profile'!BR79","v":0},{"$f":"'[2]5.2 Asset Age Profile'!BS79+'[3]5.2 Asset Age Profile'!BS79","v":0},{"$f":"'[2]5.2 Asset Age Profile'!BT79+'[3]5.2 Asset Age Profile'!BT79","v":0},{"$f":"'[2]5.2 Asset Age Profile'!BU79+'[3]5.2 Asset Age Profile'!BU79","v":0},{"$f":"'[2]5.2 Asset Age Profile'!BV79+'[3]5.2 Asset Age Profile'!BV79","v":0},{"$f":"'[2]5.2 Asset Age Profile'!BW79+'[3]5.2 Asset Age Profile'!BW79","v":0},{"$f":"'[2]5.2 Asset Age Profile'!BX79+'[3]5.2 Asset Age Profile'!BX79","v":0},{"$f":"'[2]5.2 Asset Age Profile'!BY79+'[3]5.2 Asset Age Profile'!BY79","v":0},{"$f":"'[2]5.2 Asset Age Profile'!BZ79+'[3]5.2 Asset Age Profile'!BZ79","v":0},{"$f":"'[2]5.2 Asset Age Profile'!CA79+'[3]5.2 Asset Age Profile'!CA79","v":0},{"$f":"'[2]5.2 Asset Age Profile'!CB79+'[3]5.2 Asset Age Profile'!CB79","v":0},{"$f":"'[2]5.2 Asset Age Profile'!CC79+'[3]5.2 Asset Age Profile'!CC79","v":0},{"$f":"'[2]5.2 Asset Age Profile'!CD79+'[3]5.2 Asset Age Profile'!CD79","v":0},{"$f":"'[2]5.2 Asset Age Profile'!CE79+'[3]5.2 Asset Age Profile'!CE79","v":0},{"$f":"'[2]5.2 Asset Age Profile'!CF79+'[3]5.2 Asset Age Profile'!CF79","v":0},{"$f":"'[2]5.2 Asset Age Profile'!CG79+'[3]5.2 Asset Age Profile'!CG79","v":0},{"$f":"'[2]5.2 Asset Age Profile'!CH79+'[3]5.2 Asset Age Profile'!CH79","v":0},{"$f":"'[2]5.2 Asset Age Profile'!CI79+'[3]5.2 Asset Age Profile'!CI79","v":0},{"$f":"'[2]5.2 Asset Age Profile'!CJ79+'[3]5.2 Asset Age Profile'!CJ79","v":0},{"$f":"'[2]5.2 Asset Age Profile'!CK79+'[3]5.2 Asset Age Profile'!CK79","v":0},{"$f":"'[2]5.2 Asset Age Profile'!CL79+'[3]5.2 Asset Age Profile'!CL79","v":0},{"$f":"'[2]5.2 Asset Age Profile'!CM79+'[3]5.2 Asset Age Profile'!CM79","v":0},{"$f":"'[2]5.2 Asset Age Profile'!CN79+'[3]5.2 Asset Age Profile'!CN79","v":0},{"$f":"'[2]5.2 Asset Age Profile'!CO79+'[3]5.2 Asset Age Profile'!CO79","v":0},{"$f":"'[2]5.2 Asset Age Profile'!CP79+'[3]5.2 Asset Age Profile'!CP79","v":0},{"$f":"'[2]5.2 Asset Age Profile'!CQ79+'[3]5.2 Asset Age Profile'!CQ79","v":0},{"$f":"'[2]5.2 Asset Age Profile'!CR79+'[3]5.2 Asset Age Profile'!CR79","v":0},{"$f":"'[2]5.2 Asset Age Profile'!CS79+'[3]5.2 Asset Age Profile'!CS79","v":0},{"$f":"'[2]5.2 Asset Age Profile'!CT79+'[3]5.2 Asset Age Profile'!CT79","v":0},{"$f":"'[2]5.2 Asset Age Profile'!CU79+'[3]5.2 Asset Age Profile'!CU79","v":0},{"$f":"'[2]5.2 Asset Age Profile'!CV79+'[3]5.2 Asset Age Profile'!CV79","v":0},{"$f":"'[2]5.2 Asset Age Profile'!CW79+'[3]5.2 Asset Age Profile'!CW79","v":0},{"$f":"'[2]5.2 Asset Age Profile'!CX79+'[3]5.2 Asset Age Profile'!CX79","v":0},{"$f":"'[2]5.2 Asset Age Profile'!CY79+'[3]5.2 Asset Age Profile'!CY79","v":0},{"$f":"'[2]5.2 Asset Age Profile'!CZ79+'[3]5.2 Asset Age Profile'!CZ79","v":0},{"$f":"'[2]5.2 Asset Age Profile'!DA79+'[3]5.2 Asset Age Profile'!DA79","v":0},{"$f":"'[2]5.2 Asset Age Profile'!DB79+'[3]5.2 Asset Age Profile'!DB79","v":0},{"$f":"'[2]5.2 Asset Age Profile'!DC79+'[3]5.2 Asset Age Profile'!DC79","v":0},{"$f":"'[2]5.2 Asset Age Profile'!DD79+'[3]5.2 Asset Age Profile'!DD79","v":0},{"$f":"'[2]5.2 Asset Age Profile'!DE79+'[3]5.2 Asset Age Profile'!DE79","v":0},{"$f":"'[2]5.2 Asset Age Profile'!DF79+'[3]5.2 Asset Age Profile'!DF79","v":0},{"$f":"'[2]5.2 Asset Age Profile'!DG79+'[3]5.2 Asset Age Profile'!DG79","v":0},{"$f":"'[2]5.2 Asset Age Profile'!DH79+'[3]5.2 Asset Age Profile'!DH79","v":0},{"$f":"'[2]5.2 Asset Age Profile'!DI79+'[3]5.2 Asset Age Profile'!DI79","v":0},{"$f":"'[2]5.2 Asset Age Profile'!DJ79+'[3]5.2 Asset Age Profile'!DJ79","v":0},{"$f":"'[2]5.2 Asset Age Profile'!DK79+'[3]5.2 Asset Age Profile'!DK79","v":0},{"$f":"'[2]5.2 Asset Age Profile'!DL79+'[3]5.2 Asset Age Profile'!DL79","v":0},{"$f":"'[2]5.2 Asset Age Profile'!DM79+'[3]5.2 Asset Age Profile'!DM79","v":0},{"$f":"'[2]5.2 Asset Age Profile'!DN79+'[3]5.2 Asset Age Profile'!DN79","v":0},{"$f":"'[2]5.2 Asset Age Profile'!DO79+'[3]5.2 Asset Age Profile'!DO79","v":0},{"$f":"'[2]5.2 Asset Age Profile'!DP79+'[3]5.2 Asset Age Profile'!DP79","v":0},{"$f":"'[2]5.2 Asset Age Profile'!DQ79+'[3]5.2 Asset Age Profile'!DQ79","v":0},{"$f":"'[2]5.2 Asset Age Profile'!DR79+'[3]5.2 Asset Age Profile'!DR79","v":0},{"$f":"'[2]5.2 Asset Age Profile'!DS79+'[3]5.2 Asset Age Profile'!DS79","v":0},{"$f":"'[2]5.2 Asset Age Profile'!DT79+'[3]5.2 Asset Age Profile'!DT79","v":0},{"$f":"'[2]5.2 Asset Age Profile'!DU79+'[3]5.2 Asset Age Profile'!DU79","v":0},{"$f":"'[2]5.2 Asset Age Profile'!DV79+'[3]5.2 Asset Age Profile'!DV79","v":0},{"$f":"'[2]5.2 Asset Age Profile'!DW79+'[3]5.2 Asset Age Profile'!DW79","v":0},{"$f":"'[2]5.2 Asset Age Profile'!DX79+'[3]5.2 Asset Age Profile'!DX79","v":0},{"$f":"'[2]5.2 Asset Age Profile'!DY79+'[3]5.2 Asset Age Profile'!DY79","v":0},{"$f":"'[2]5.2 Asset Age Profile'!DZ79+'[3]5.2 Asset Age Profile'!DZ79","v":0},{"$f":"'[2]5.2 Asset Age Profile'!EA79+'[3]5.2 Asset Age Profile'!EA79","v":0},{"$f":"'[2]5.2 Asset Age Profile'!EB79+'[3]5.2 Asset Age Profile'!EB79","v":0},{"$f":"'[2]5.2 Asset Age Profile'!EC79+'[3]5.2 Asset Age Profile'!EC79","v":0},{"$f":"'[2]5.2 Asset Age Profile'!ED79+'[3]5.2 Asset Age Profile'!ED79","v":0},{"$f":"'[2]5.2 Asset Age Profile'!EE79+'[3]5.2 Asset Age Profile'!EE79","v":0},{"$f":"'[2]5.2 Asset Age Profile'!EF79+'[3]5.2 Asset Age Profile'!EF79","v":0},{"$f":"'[2]5.2 Asset Age Profile'!EG79+'[3]5.2 Asset Age Profile'!EG79","v":0},{"$f":"'[2]5.2 Asset Age Profile'!EH79+'[3]5.2 Asset Age Profile'!EH79","v":0},{"$f":"'[2]5.2 Asset Age Profile'!EI79+'[3]5.2 Asset Age Profile'!EI79","v":0},{"$f":"'[2]5.2 Asset Age Profile'!EJ79+'[3]5.2 Asset Age Profile'!EJ79","v":0}]
["ED_ASS521_00070",null,"Kiosk Mounted ; < = 22kV ;  < = 60 kVA  ; Multiple Phase",null,null,null,null,null,null,null,null,null,null,{"$f":"'[2]5.2 Asset Age Profile'!N80+'[3]5.2 Asset Age Profile'!N80","v":50},{"$f":"'[2]5.2 Asset Age Profile'!O80+'[3]5.2 Asset Age Profile'!O80","v":0},{"$f":"'[2]5.2 Asset Age Profile'!P80+'[3]5.2 Asset Age Profile'!P80","v":0},{"$f":"'[2]5.2 Asset Age Profile'!Q80+'[3]5.2 Asset Age Profile'!Q80","v":0},{"$f":"'[2]5.2 Asset Age Profile'!R80+'[3]5.2 Asset Age Profile'!R80","v":0},{"$f":"'[2]5.2 Asset Age Profile'!S80+'[3]5.2 Asset Age Profile'!S80","v":0},{"$f":"'[2]5.2 Asset Age Profile'!T80+'[3]5.2 Asset Age Profile'!T80","v":0},{"$f":"'[2]5.2 Asset Age Profile'!U80+'[3]5.2 Asset Age Profile'!U80","v":0},{"$f":"'[2]5.2 Asset Age Profile'!V80+'[3]5.2 Asset Age Profile'!V80","v":0},{"$f":"'[2]5.2 Asset Age Profile'!W80+'[3]5.2 Asset Age Profile'!W80","v":0},{"$f":"'[2]5.2 Asset Age Profile'!X80+'[3]5.2 Asset Age Profile'!X80","v":0},{"$f":"'[2]5.2 Asset Age Profile'!Y80+'[3]5.2 Asset Age Profile'!Y80","v":13},{"$f":"'[2]5.2 Asset Age Profile'!Z80+'[3]5.2 Asset Age Profile'!Z80","v":0},{"$f":"'[2]5.2 Asset Age Profile'!AA80+'[3]5.2 Asset Age Profile'!AA80","v":0},{"$f":"'[2]5.2 Asset Age Profile'!AB80+'[3]5.2 Asset Age Profile'!AB80","v":0},{"$f":"'[2]5.2 Asset Age Profile'!AC80+'[3]5.2 Asset Age Profile'!AC80","v":0},{"$f":"'[2]5.2 Asset Age Profile'!AD80+'[3]5.2 Asset Age Profile'!AD80","v":0},{"$f":"'[2]5.2 Asset Age Profile'!AE80+'[3]5.2 Asset Age Profile'!AE80","v":0},{"$f":"'[2]5.2 Asset Age Profile'!AF80+'[3]5.2 Asset Age Profile'!AF80","v":0},{"$f":"'[2]5.2 Asset Age Profile'!AG80+'[3]5.2 Asset Age Profile'!AG80","v":0},{"$f":"'[2]5.2 Asset Age Profile'!AH80+'[3]5.2 Asset Age Profile'!AH80","v":0},{"$f":"'[2]5.2 Asset Age Profile'!AI80+'[3]5.2 Asset Age Profile'!AI80","v":0},{"$f":"'[2]5.2 Asset Age Profile'!AJ80+'[3]5.2 Asset Age Profile'!AJ80","v":0},{"$f":"'[2]5.2 Asset Age Profile'!AK80+'[3]5.2 Asset Age Profile'!AK80","v":1},{"$f":"'[2]5.2 Asset Age Profile'!AL80+'[3]5.2 Asset Age Profile'!AL80","v":0},{"$f":"'[2]5.2 Asset Age Profile'!AM80+'[3]5.2 Asset Age Profile'!AM80","v":0},{"$f":"'[2]5.2 Asset Age Profile'!AN80+'[3]5.2 Asset Age Profile'!AN80","v":0},{"$f":"'[2]5.2 Asset Age Profile'!AO80+'[3]5.2 Asset Age Profile'!AO80","v":0},{"$f":"'[2]5.2 Asset Age Profile'!AP80+'[3]5.2 Asset Age Profile'!AP80","v":0},{"$f":"'[2]5.2 Asset Age Profile'!AQ80+'[3]5.2 Asset Age Profile'!AQ80","v":0},{"$f":"'[2]5.2 Asset Age Profile'!AR80+'[3]5.2 Asset Age Profile'!AR80","v":0},{"$f":"'[2]5.2 Asset Age Profile'!AS80+'[3]5.2 Asset Age Profile'!AS80","v":0},{"$f":"'[2]5.2 Asset Age Profile'!AT80+'[3]5.2 Asset Age Profile'!AT80","v":0},{"$f":"'[2]5.2 Asset Age Profile'!AU80+'[3]5.2 Asset Age Profile'!AU80","v":0},{"$f":"'[2]5.2 Asset Age Profile'!AV80+'[3]5.2 Asset Age Profile'!AV80","v":0},{"$f":"'[2]5.2 Asset Age Profile'!AW80+'[3]5.2 Asset Age Profile'!AW80","v":0},{"$f":"'[2]5.2 Asset Age Profile'!AX80+'[3]5.2 Asset Age Profile'!AX80","v":0},{"$f":"'[2]5.2 Asset Age Profile'!AY80+'[3]5.2 Asset Age Profile'!AY80","v":0},{"$f":"'[2]5.2 Asset Age Profile'!AZ80+'[3]5.2 Asset Age Profile'!AZ80","v":0},{"$f":"'[2]5.2 Asset Age Profile'!BA80+'[3]5.2 Asset Age Profile'!BA80","v":0},{"$f":"'[2]5.2 Asset Age Profile'!BB80+'[3]5.2 Asset Age Profile'!BB80","v":0},{"$f":"'[2]5.2 Asset Age Profile'!BC80+'[3]5.2 Asset Age Profile'!BC80","v":0},{"$f":"'[2]5.2 Asset Age Profile'!BD80+'[3]5.2 Asset Age Profile'!BD80","v":0},{"$f":"'[2]5.2 Asset Age Profile'!BE80+'[3]5.2 Asset Age Profile'!BE80","v":0},{"$f":"'[2]5.2 Asset Age Profile'!BF80+'[3]5.2 Asset Age Profile'!BF80","v":0},{"$f":"'[2]5.2 Asset Age Profile'!BG80+'[3]5.2 Asset Age Profile'!BG80","v":0},{"$f":"'[2]5.2 Asset Age Profile'!BH80+'[3]5.2 Asset Age Profile'!BH80","v":0},{"$f":"'[2]5.2 Asset Age Profile'!BI80+'[3]5.2 Asset Age Profile'!BI80","v":0},{"$f":"'[2]5.2 Asset Age Profile'!BJ80+'[3]5.2 Asset Age Profile'!BJ80","v":0},{"$f":"'[2]5.2 Asset Age Profile'!BK80+'[3]5.2 Asset Age Profile'!BK80","v":0},{"$f":"'[2]5.2 Asset Age Profile'!BL80+'[3]5.2 Asset Age Profile'!BL80","v":0},{"$f":"'[2]5.2 Asset Age Profile'!BM80+'[3]5.2 Asset Age Profile'!BM80","v":0},{"$f":"'[2]5.2 Asset Age Profile'!BN80+'[3]5.2 Asset Age Profile'!BN80","v":0},{"$f":"'[2]5.2 Asset Age Profile'!BO80+'[3]5.2 Asset Age Profile'!BO80","v":0},{"$f":"'[2]5.2 Asset Age Profile'!BP80+'[3]5.2 Asset Age Profile'!BP80","v":0},{"$f":"'[2]5.2 Asset Age Profile'!BQ80+'[3]5.2 Asset Age Profile'!BQ80","v":0},{"$f":"'[2]5.2 Asset Age Profile'!BR80+'[3]5.2 Asset Age Profile'!BR80","v":0},{"$f":"'[2]5.2 Asset Age Profile'!BS80+'[3]5.2 Asset Age Profile'!BS80","v":0},{"$f":"'[2]5.2 Asset Age Profile'!BT80+'[3]5.2 Asset Age Profile'!BT80","v":0},{"$f":"'[2]5.2 Asset Age Profile'!BU80+'[3]5.2 Asset Age Profile'!BU80","v":0},{"$f":"'[2]5.2 Asset Age Profile'!BV80+'[3]5.2 Asset Age Profile'!BV80","v":1},{"$f":"'[2]5.2 Asset Age Profile'!BW80+'[3]5.2 Asset Age Profile'!BW80","v":0},{"$f":"'[2]5.2 Asset Age Profile'!BX80+'[3]5.2 Asset Age Profile'!BX80","v":0},{"$f":"'[2]5.2 Asset Age Profile'!BY80+'[3]5.2 Asset Age Profile'!BY80","v":0},{"$f":"'[2]5.2 Asset Age Profile'!BZ80+'[3]5.2 Asset Age Profile'!BZ80","v":0},{"$f":"'[2]5.2 Asset Age Profile'!CA80+'[3]5.2 Asset Age Profile'!CA80","v":0},{"$f":"'[2]5.2 Asset Age Profile'!CB80+'[3]5.2 Asset Age Profile'!CB80","v":0},{"$f":"'[2]5.2 Asset Age Profile'!CC80+'[3]5.2 Asset Age Profile'!CC80","v":0},{"$f":"'[2]5.2 Asset Age Profile'!CD80+'[3]5.2 Asset Age Profile'!CD80","v":1},{"$f":"'[2]5.2 Asset Age Profile'!CE80+'[3]5.2 Asset Age Profile'!CE80","v":0},{"$f":"'[2]5.2 Asset Age Profile'!CF80+'[3]5.2 Asset Age Profile'!CF80","v":0},{"$f":"'[2]5.2 Asset Age Profile'!CG80+'[3]5.2 Asset Age Profile'!CG80","v":0},{"$f":"'[2]5.2 Asset Age Profile'!CH80+'[3]5.2 Asset Age Profile'!CH80","v":0},{"$f":"'[2]5.2 Asset Age Profile'!CI80+'[3]5.2 Asset Age Profile'!CI80","v":0},{"$f":"'[2]5.2 Asset Age Profile'!CJ80+'[3]5.2 Asset Age Profile'!CJ80","v":0},{"$f":"'[2]5.2 Asset Age Profile'!CK80+'[3]5.2 Asset Age Profile'!CK80","v":0},{"$f":"'[2]5.2 Asset Age Profile'!CL80+'[3]5.2 Asset Age Profile'!CL80","v":0},{"$f":"'[2]5.2 Asset Age Profile'!CM80+'[3]5.2 Asset Age Profile'!CM80","v":0},{"$f":"'[2]5.2 Asset Age Profile'!CN80+'[3]5.2 Asset Age Profile'!CN80","v":0},{"$f":"'[2]5.2 Asset Age Profile'!CO80+'[3]5.2 Asset Age Profile'!CO80","v":0},{"$f":"'[2]5.2 Asset Age Profile'!CP80+'[3]5.2 Asset Age Profile'!CP80","v":0},{"$f":"'[2]5.2 Asset Age Profile'!CQ80+'[3]5.2 Asset Age Profile'!CQ80","v":0},{"$f":"'[2]5.2 Asset Age Profile'!CR80+'[3]5.2 Asset Age Profile'!CR80","v":0},{"$f":"'[2]5.2 Asset Age Profile'!CS80+'[3]5.2 Asset Age Profile'!CS80","v":0},{"$f":"'[2]5.2 Asset Age Profile'!CT80+'[3]5.2 Asset Age Profile'!CT80","v":0},{"$f":"'[2]5.2 Asset Age Profile'!CU80+'[3]5.2 Asset Age Profile'!CU80","v":0},{"$f":"'[2]5.2 Asset Age Profile'!CV80+'[3]5.2 Asset Age Profile'!CV80","v":0},{"$f":"'[2]5.2 Asset Age Profile'!CW80+'[3]5.2 Asset Age Profile'!CW80","v":0},{"$f":"'[2]5.2 Asset Age Profile'!CX80+'[3]5.2 Asset Age Profile'!CX80","v":0},{"$f":"'[2]5.2 Asset Age Profile'!CY80+'[3]5.2 Asset Age Profile'!CY80","v":0},{"$f":"'[2]5.2 Asset Age Profile'!CZ80+'[3]5.2 Asset Age Profile'!CZ80","v":0},{"$f":"'[2]5.2 Asset Age Profile'!DA80+'[3]5.2 Asset Age Profile'!DA80","v":0},{"$f":"'[2]5.2 Asset Age Profile'!DB80+'[3]5.2 Asset Age Profile'!DB80","v":0},{"$f":"'[2]5.2 Asset Age Profile'!DC80+'[3]5.2 Asset Age Profile'!DC80","v":0},{"$f":"'[2]5.2 Asset Age Profile'!DD80+'[3]5.2 Asset Age Profile'!DD80","v":0},{"$f":"'[2]5.2 Asset Age Profile'!DE80+'[3]5.2 Asset Age Profile'!DE80","v":0},{"$f":"'[2]5.2 Asset Age Profile'!DF80+'[3]5.2 Asset Age Profile'!DF80","v":0},{"$f":"'[2]5.2 Asset Age Profile'!DG80+'[3]5.2 Asset Age Profile'!DG80","v":0},{"$f":"'[2]5.2 Asset Age Profile'!DH80+'[3]5.2 Asset Age Profile'!DH80","v":0},{"$f":"'[2]5.2 Asset Age Profile'!DI80+'[3]5.2 Asset Age Profile'!DI80","v":0},{"$f":"'[2]5.2 Asset Age Profile'!DJ80+'[3]5.2 Asset Age Profile'!DJ80","v":0},{"$f":"'[2]5.2 Asset Age Profile'!DK80+'[3]5.2 Asset Age Profile'!DK80","v":0},{"$f":"'[2]5.2 Asset Age Profile'!DL80+'[3]5.2 Asset Age Profile'!DL80","v":0},{"$f":"'[2]5.2 Asset Age Profile'!DM80+'[3]5.2 Asset Age Profile'!DM80","v":0},{"$f":"'[2]5.2 Asset Age Profile'!DN80+'[3]5.2 Asset Age Profile'!DN80","v":0},{"$f":"'[2]5.2 Asset Age Profile'!DO80+'[3]5.2 Asset Age Profile'!DO80","v":0},{"$f":"'[2]5.2 Asset Age Profile'!DP80+'[3]5.2 Asset Age Profile'!DP80","v":0},{"$f":"'[2]5.2 Asset Age Profile'!DQ80+'[3]5.2 Asset Age Profile'!DQ80","v":0},{"$f":"'[2]5.2 Asset Age Profile'!DR80+'[3]5.2 Asset Age Profile'!DR80","v":0},{"$f":"'[2]5.2 Asset Age Profile'!DS80+'[3]5.2 Asset Age Profile'!DS80","v":0},{"$f":"'[2]5.2 Asset Age Profile'!DT80+'[3]5.2 Asset Age Profile'!DT80","v":0},{"$f":"'[2]5.2 Asset Age Profile'!DU80+'[3]5.2 Asset Age Profile'!DU80","v":0},{"$f":"'[2]5.2 Asset Age Profile'!DV80+'[3]5.2 Asset Age Profile'!DV80","v":0},{"$f":"'[2]5.2 Asset Age Profile'!DW80+'[3]5.2 Asset Age Profile'!DW80","v":0},{"$f":"'[2]5.2 Asset Age Profile'!DX80+'[3]5.2 Asset Age Profile'!DX80","v":0},{"$f":"'[2]5.2 Asset Age Profile'!DY80+'[3]5.2 Asset Age Profile'!DY80","v":0},{"$f":"'[2]5.2 Asset Age Profile'!DZ80+'[3]5.2 Asset Age Profile'!DZ80","v":0},{"$f":"'[2]5.2 Asset Age Profile'!EA80+'[3]5.2 Asset Age Profile'!EA80","v":0},{"$f":"'[2]5.2 Asset Age Profile'!EB80+'[3]5.2 Asset Age Profile'!EB80","v":0},{"$f":"'[2]5.2 Asset Age Profile'!EC80+'[3]5.2 Asset Age Profile'!EC80","v":0},{"$f":"'[2]5.2 Asset Age Profile'!ED80+'[3]5.2 Asset Age Profile'!ED80","v":0},{"$f":"'[2]5.2 Asset Age Profile'!EE80+'[3]5.2 Asset Age Profile'!EE80","v":0},{"$f":"'[2]5.2 Asset Age Profile'!EF80+'[3]5.2 Asset Age Profile'!EF80","v":0},{"$f":"'[2]5.2 Asset Age Profile'!EG80+'[3]5.2 Asset Age Profile'!EG80","v":0},{"$f":"'[2]5.2 Asset Age Profile'!EH80+'[3]5.2 Asset Age Profile'!EH80","v":0},{"$f":"'[2]5.2 Asset Age Profile'!EI80+'[3]5.2 Asset Age Profile'!EI80","v":0},{"$f":"'[2]5.2 Asset Age Profile'!EJ80+'[3]5.2 Asset Age Profile'!EJ80","v":0}]
["ED_ASS521_00071",null,"Kiosk Mounted ; < = 22kV ;  > 60 kVA and < = 600 kVA  ; Multiple Phase",null,null,null,null,null,null,null,null,null,null,{"$f":"'[2]5.2 Asset Age Profile'!N81+'[3]5.2 Asset Age Profile'!N81","v":50},{"$f":"'[2]5.2 Asset Age Profile'!O81+'[3]5.2 Asset Age Profile'!O81","v":0},{"$f":"'[2]5.2 Asset Age Profile'!P81+'[3]5.2 Asset Age Profile'!P81","v":0},{"$f":"'[2]5.2 Asset Age Profile'!Q81+'[3]5.2 Asset Age Profile'!Q81","v":0},{"$f":"'[2]5.2 Asset Age Profile'!R81+'[3]5.2 Asset Age Profile'!R81","v":0},{"$f":"'[2]5.2 Asset Age Profile'!S81+'[3]5.2 Asset Age Profile'!S81","v":0},{"$f":"'[2]5.2 Asset Age Profile'!T81+'[3]5.2 Asset Age Profile'!T81","v":0},{"$f":"'[2]5.2 Asset Age Profile'!U81+'[3]5.2 Asset Age Profile'!U81","v":0},{"$f":"'[2]5.2 Asset Age Profile'!V81+'[3]5.2 Asset Age Profile'!V81","v":0},{"$f":"'[2]5.2 Asset Age Profile'!W81+'[3]5.2 Asset Age Profile'!W81","v":0},{"$f":"'[2]5.2 Asset Age Profile'!X81+'[3]5.2 Asset Age Profile'!X81","v":0},{"$f":"'[2]5.2 Asset Age Profile'!Y81+'[3]5.2 Asset Age Profile'!Y81","v":13},{"$f":"'[2]5.2 Asset Age Profile'!Z81+'[3]5.2 Asset Age Profile'!Z81","v":0},{"$f":"'[2]5.2 Asset Age Profile'!AA81+'[3]5.2 Asset Age Profile'!AA81","v":0},{"$f":"'[2]5.2 Asset Age Profile'!AB81+'[3]5.2 Asset Age Profile'!AB81","v":0},{"$f":"'[2]5.2 Asset Age Profile'!AC81+'[3]5.2 Asset Age Profile'!AC81","v":0},{"$f":"'[2]5.2 Asset Age Profile'!AD81+'[3]5.2 Asset Age Profile'!AD81","v":0},{"$f":"'[2]5.2 Asset Age Profile'!AE81+'[3]5.2 Asset Age Profile'!AE81","v":0},{"$f":"'[2]5.2 Asset Age Profile'!AF81+'[3]5.2 Asset Age Profile'!AF81","v":0},{"$f":"'[2]5.2 Asset Age Profile'!AG81+'[3]5.2 Asset Age Profile'!AG81","v":0},{"$f":"'[2]5.2 Asset Age Profile'!AH81+'[3]5.2 Asset Age Profile'!AH81","v":0},{"$f":"'[2]5.2 Asset Age Profile'!AI81+'[3]5.2 Asset Age Profile'!AI81","v":0},{"$f":"'[2]5.2 Asset Age Profile'!AJ81+'[3]5.2 Asset Age Profile'!AJ81","v":40},{"$f":"'[2]5.2 Asset Age Profile'!AK81+'[3]5.2 Asset Age Profile'!AK81","v":41},{"$f":"'[2]5.2 Asset Age Profile'!AL81+'[3]5.2 Asset Age Profile'!AL81","v":10},{"$f":"'[2]5.2 Asset Age Profile'!AM81+'[3]5.2 Asset Age Profile'!AM81","v":4},{"$f":"'[2]5.2 Asset Age Profile'!AN81+'[3]5.2 Asset Age Profile'!AN81","v":57},{"$f":"'[2]5.2 Asset Age Profile'!AO81+'[3]5.2 Asset Age Profile'!AO81","v":50},{"$f":"'[2]5.2 Asset Age Profile'!AP81+'[3]5.2 Asset Age Profile'!AP81","v":34},{"$f":"'[2]5.2 Asset Age Profile'!AQ81+'[3]5.2 Asset Age Profile'!AQ81","v":68},{"$f":"'[2]5.2 Asset Age Profile'!AR81+'[3]5.2 Asset Age Profile'!AR81","v":36},{"$f":"'[2]5.2 Asset Age Profile'!AS81+'[3]5.2 Asset Age Profile'!AS81","v":36},{"$f":"'[2]5.2 Asset Age Profile'!AT81+'[3]5.2 Asset Age Profile'!AT81","v":45},{"$f":"'[2]5.2 Asset Age Profile'!AU81+'[3]5.2 Asset Age Profile'!AU81","v":26},{"$f":"'[2]5.2 Asset Age Profile'!AV81+'[3]5.2 Asset Age Profile'!AV81","v":32},{"$f":"'[2]5.2 Asset Age Profile'!AW81+'[3]5.2 Asset Age Profile'!AW81","v":21},{"$f":"'[2]5.2 Asset Age Profile'!AX81+'[3]5.2 Asset Age Profile'!AX81","v":51},{"$f":"'[2]5.2 Asset Age Profile'!AY81+'[3]5.2 Asset Age Profile'!AY81","v":25},{"$f":"'[2]5.2 Asset Age Profile'!AZ81+'[3]5.2 Asset Age Profile'!AZ81","v":25},{"$f":"'[2]5.2 Asset Age Profile'!BA81+'[3]5.2 Asset Age Profile'!BA81","v":18},{"$f":"'[2]5.2 Asset Age Profile'!BB81+'[3]5.2 Asset Age Profile'!BB81","v":28},{"$f":"'[2]5.2 Asset Age Profile'!BC81+'[3]5.2 Asset Age Profile'!BC81","v":30},{"$f":"'[2]5.2 Asset Age Profile'!BD81+'[3]5.2 Asset Age Profile'!BD81","v":91},{"$f":"'[2]5.2 Asset Age Profile'!BE81+'[3]5.2 Asset Age Profile'!BE81","v":87},{"$f":"'[2]5.2 Asset Age Profile'!BF81+'[3]5.2 Asset Age Profile'!BF81","v":101},{"$f":"'[2]5.2 Asset Age Profile'!BG81+'[3]5.2 Asset Age Profile'!BG81","v":78},{"$f":"'[2]5.2 Asset Age Profile'!BH81+'[3]5.2 Asset Age Profile'!BH81","v":70},{"$f":"'[2]5.2 Asset Age Profile'!BI81+'[3]5.2 Asset Age Profile'!BI81","v":68},{"$f":"'[2]5.2 Asset Age Profile'!BJ81+'[3]5.2 Asset Age Profile'!BJ81","v":71},{"$f":"'[2]5.2 Asset Age Profile'!BK81+'[3]5.2 Asset Age Profile'!BK81","v":44},{"$f":"'[2]5.2 Asset Age Profile'!BL81+'[3]5.2 Asset Age Profile'!BL81","v":72},{"$f":"'[2]5.2 Asset Age Profile'!BM81+'[3]5.2 Asset Age Profile'!BM81","v":107},{"$f":"'[2]5.2 Asset Age Profile'!BN81+'[3]5.2 Asset Age Profile'!BN81","v":88},{"$f":"'[2]5.2 Asset Age Profile'!BO81+'[3]5.2 Asset Age Profile'!BO81","v":41},{"$f":"'[2]5.2 Asset Age Profile'!BP81+'[3]5.2 Asset Age Profile'!BP81","v":52},{"$f":"'[2]5.2 Asset Age Profile'!BQ81+'[3]5.2 Asset Age Profile'!BQ81","v":114},{"$f":"'[2]5.2 Asset Age Profile'!BR81+'[3]5.2 Asset Age Profile'!BR81","v":78},{"$f":"'[2]5.2 Asset Age Profile'!BS81+'[3]5.2 Asset Age Profile'!BS81","v":69},{"$f":"'[2]5.2 Asset Age Profile'!BT81+'[3]5.2 Asset Age Profile'!BT81","v":67},{"$f":"'[2]5.2 Asset Age Profile'!BU81+'[3]5.2 Asset Age Profile'!BU81","v":41},{"$f":"'[2]5.2 Asset Age Profile'!BV81+'[3]5.2 Asset Age Profile'!BV81","v":69},{"$f":"'[2]5.2 Asset Age Profile'!BW81+'[3]5.2 Asset Age Profile'!BW81","v":70},{"$f":"'[2]5.2 Asset Age Profile'!BX81+'[3]5.2 Asset Age Profile'!BX81","v":60},{"$f":"'[2]5.2 Asset Age Profile'!BY81+'[3]5.2 Asset Age Profile'!BY81","v":34},{"$f":"'[2]5.2 Asset Age Profile'!BZ81+'[3]5.2 Asset Age Profile'!BZ81","v":28},{"$f":"'[2]5.2 Asset Age Profile'!CA81+'[3]5.2 Asset Age Profile'!CA81","v":29},{"$f":"'[2]5.2 Asset Age Profile'!CB81+'[3]5.2 Asset Age Profile'!CB81","v":33},{"$f":"'[2]5.2 Asset Age Profile'!CC81+'[3]5.2 Asset Age Profile'!CC81","v":19},{"$f":"'[2]5.2 Asset Age Profile'!CD81+'[3]5.2 Asset Age Profile'!CD81","v":19},{"$f":"'[2]5.2 Asset Age Profile'!CE81+'[3]5.2 Asset Age Profile'!CE81","v":15},{"$f":"'[2]5.2 Asset Age Profile'!CF81+'[3]5.2 Asset Age Profile'!CF81","v":11},{"$f":"'[2]5.2 Asset Age Profile'!CG81+'[3]5.2 Asset Age Profile'!CG81","v":6},{"$f":"'[2]5.2 Asset Age Profile'!CH81+'[3]5.2 Asset Age Profile'!CH81","v":6},{"$f":"'[2]5.2 Asset Age Profile'!CI81+'[3]5.2 Asset Age Profile'!CI81","v":1},{"$f":"'[2]5.2 Asset Age Profile'!CJ81+'[3]5.2 Asset Age Profile'!CJ81","v":1},{"$f":"'[2]5.2 Asset Age Profile'!CK81+'[3]5.2 Asset Age Profile'!CK81","v":2},{"$f":"'[2]5.2 Asset Age Profile'!CL81+'[3]5.2 Asset Age Profile'!CL81","v":0},{"$f":"'[2]5.2 Asset Age Profile'!CM81+'[3]5.2 Asset Age Profile'!CM81","v":3},{"$f":"'[2]5.2 Asset Age Profile'!CN81+'[3]5.2 Asset Age Profile'!CN81","v":0},{"$f":"'[2]5.2 Asset Age Profile'!CO81+'[3]5.2 Asset Age Profile'!CO81","v":0},{"$f":"'[2]5.2 Asset Age Profile'!CP81+'[3]5.2 Asset Age Profile'!CP81","v":0},{"$f":"'[2]5.2 Asset Age Profile'!CQ81+'[3]5.2 Asset Age Profile'!CQ81","v":0},{"$f":"'[2]5.2 Asset Age Profile'!CR81+'[3]5.2 Asset Age Profile'!CR81","v":0},{"$f":"'[2]5.2 Asset Age Profile'!CS81+'[3]5.2 Asset Age Profile'!CS81","v":0},{"$f":"'[2]5.2 Asset Age Profile'!CT81+'[3]5.2 Asset Age Profile'!CT81","v":0},{"$f":"'[2]5.2 Asset Age Profile'!CU81+'[3]5.2 Asset Age Profile'!CU81","v":0},{"$f":"'[2]5.2 Asset Age Profile'!CV81+'[3]5.2 Asset Age Profile'!CV81","v":2},{"$f":"'[2]5.2 Asset Age Profile'!CW81+'[3]5.2 Asset Age Profile'!CW81","v":0},{"$f":"'[2]5.2 Asset Age Profile'!CX81+'[3]5.2 Asset Age Profile'!CX81","v":0},{"$f":"'[2]5.2 Asset Age Profile'!CY81+'[3]5.2 Asset Age Profile'!CY81","v":0},{"$f":"'[2]5.2 Asset Age Profile'!CZ81+'[3]5.2 Asset Age Profile'!CZ81","v":0},{"$f":"'[2]5.2 Asset Age Profile'!DA81+'[3]5.2 Asset Age Profile'!DA81","v":0},{"$f":"'[2]5.2 Asset Age Profile'!DB81+'[3]5.2 Asset Age Profile'!DB81","v":0},{"$f":"'[2]5.2 Asset Age Profile'!DC81+'[3]5.2 Asset Age Profile'!DC81","v":0},{"$f":"'[2]5.2 Asset Age Profile'!DD81+'[3]5.2 Asset Age Profile'!DD81","v":0},{"$f":"'[2]5.2 Asset Age Profile'!DE81+'[3]5.2 Asset Age Profile'!DE81","v":0},{"$f":"'[2]5.2 Asset Age Profile'!DF81+'[3]5.2 Asset Age Profile'!DF81","v":0},{"$f":"'[2]5.2 Asset Age Profile'!DG81+'[3]5.2 Asset Age Profile'!DG81","v":0},{"$f":"'[2]5.2 Asset Age Profile'!DH81+'[3]5.2 Asset Age Profile'!DH81","v":0},{"$f":"'[2]5.2 Asset Age Profile'!DI81+'[3]5.2 Asset Age Profile'!DI81","v":0},{"$f":"'[2]5.2 Asset Age Profile'!DJ81+'[3]5.2 Asset Age Profile'!DJ81","v":0},{"$f":"'[2]5.2 Asset Age Profile'!DK81+'[3]5.2 Asset Age Profile'!DK81","v":0},{"$f":"'[2]5.2 Asset Age Profile'!DL81+'[3]5.2 Asset Age Profile'!DL81","v":0},{"$f":"'[2]5.2 Asset Age Profile'!DM81+'[3]5.2 Asset Age Profile'!DM81","v":0},{"$f":"'[2]5.2 Asset Age Profile'!DN81+'[3]5.2 Asset Age Profile'!DN81","v":0},{"$f":"'[2]5.2 Asset Age Profile'!DO81+'[3]5.2 Asset Age Profile'!DO81","v":0},{"$f":"'[2]5.2 Asset Age Profile'!DP81+'[3]5.2 Asset Age Profile'!DP81","v":0},{"$f":"'[2]5.2 Asset Age Profile'!DQ81+'[3]5.2 Asset Age Profile'!DQ81","v":0},{"$f":"'[2]5.2 Asset Age Profile'!DR81+'[3]5.2 Asset Age Profile'!DR81","v":0},{"$f":"'[2]5.2 Asset Age Profile'!DS81+'[3]5.2 Asset Age Profile'!DS81","v":4},{"$f":"'[2]5.2 Asset Age Profile'!DT81+'[3]5.2 Asset Age Profile'!DT81","v":0},{"$f":"'[2]5.2 Asset Age Profile'!DU81+'[3]5.2 Asset Age Profile'!DU81","v":0},{"$f":"'[2]5.2 Asset Age Profile'!DV81+'[3]5.2 Asset Age Profile'!DV81","v":0},{"$f":"'[2]5.2 Asset Age Profile'!DW81+'[3]5.2 Asset Age Profile'!DW81","v":0},{"$f":"'[2]5.2 Asset Age Profile'!DX81+'[3]5.2 Asset Age Profile'!DX81","v":0},{"$f":"'[2]5.2 Asset Age Profile'!DY81+'[3]5.2 Asset Age Profile'!DY81","v":0},{"$f":"'[2]5.2 Asset Age Profile'!DZ81+'[3]5.2 Asset Age Profile'!DZ81","v":0},{"$f":"'[2]5.2 Asset Age Profile'!EA81+'[3]5.2 Asset Age Profile'!EA81","v":0},{"$f":"'[2]5.2 Asset Age Profile'!EB81+'[3]5.2 Asset Age Profile'!EB81","v":0},{"$f":"'[2]5.2 Asset Age Profile'!EC81+'[3]5.2 Asset Age Profile'!EC81","v":0},{"$f":"'[2]5.2 Asset Age Profile'!ED81+'[3]5.2 Asset Age Profile'!ED81","v":0},{"$f":"'[2]5.2 Asset Age Profile'!EE81+'[3]5.2 Asset Age Profile'!EE81","v":0},{"$f":"'[2]5.2 Asset Age Profile'!EF81+'[3]5.2 Asset Age Profile'!EF81","v":0},{"$f":"'[2]5.2 Asset Age Profile'!EG81+'[3]5.2 Asset Age Profile'!EG81","v":0},{"$f":"'[2]5.2 Asset Age Profile'!EH81+'[3]5.2 Asset Age Profile'!EH81","v":0},{"$f":"'[2]5.2 Asset Age Profile'!EI81+'[3]5.2 Asset Age Profile'!EI81","v":0},{"$f":"'[2]5.2 Asset Age Profile'!EJ81+'[3]5.2 Asset Age Profile'!EJ81","v":0}]
["ED_ASS521_00072",null,"Kiosk Mounted ; < = 22kV ;  > 600 kVA  ; Multiple Phase",null,null,null,null,null,null,null,null,null,null,{"$f":"'[2]5.2 Asset Age Profile'!N82+'[3]5.2 Asset Age Profile'!N82","v":50},{"$f":"'[2]5.2 Asset Age Profile'!O82+'[3]5.2 Asset Age Profile'!O82","v":0},{"$f":"'[2]5.2 Asset Age Profile'!P82+'[3]5.2 Asset Age Profile'!P82","v":0},{"$f":"'[2]5.2 Asset Age Profile'!Q82+'[3]5.2 Asset Age Profile'!Q82","v":0},{"$f":"'[2]5.2 Asset Age Profile'!R82+'[3]5.2 Asset Age Profile'!R82","v":0},{"$f":"'[2]5.2 Asset Age Profile'!S82+'[3]5.2 Asset Age Profile'!S82","v":0},{"$f":"'[2]5.2 Asset Age Profile'!T82+'[3]5.2 Asset Age Profile'!T82","v":0},{"$f":"'[2]5.2 Asset Age Profile'!U82+'[3]5.2 Asset Age Profile'!U82","v":0},{"$f":"'[2]5.2 Asset Age Profile'!V82+'[3]5.2 Asset Age Profile'!V82","v":0},{"$f":"'[2]5.2 Asset Age Profile'!W82+'[3]5.2 Asset Age Profile'!W82","v":0},{"$f":"'[2]5.2 Asset Age Profile'!X82+'[3]5.2 Asset Age Profile'!X82","v":0},{"$f":"'[2]5.2 Asset Age Profile'!Y82+'[3]5.2 Asset Age Profile'!Y82","v":13},{"$f":"'[2]5.2 Asset Age Profile'!Z82+'[3]5.2 Asset Age Profile'!Z82","v":0},{"$f":"'[2]5.2 Asset Age Profile'!AA82+'[3]5.2 Asset Age Profile'!AA82","v":0},{"$f":"'[2]5.2 Asset Age Profile'!AB82+'[3]5.2 Asset Age Profile'!AB82","v":0},{"$f":"'[2]5.2 Asset Age Profile'!AC82+'[3]5.2 Asset Age Profile'!AC82","v":0},{"$f":"'[2]5.2 Asset Age Profile'!AD82+'[3]5.2 Asset Age Profile'!AD82","v":0},{"$f":"'[2]5.2 Asset Age Profile'!AE82+'[3]5.2 Asset Age Profile'!AE82","v":0},{"$f":"'[2]5.2 Asset Age Profile'!AF82+'[3]5.2 Asset Age Profile'!AF82","v":0},{"$f":"'[2]5.2 Asset Age Profile'!AG82+'[3]5.2 Asset Age Profile'!AG82","v":0},{"$f":"'[2]5.2 Asset Age Profile'!AH82+'[3]5.2 Asset Age Profile'!AH82","v":0},{"$f":"'[2]5.2 Asset Age Profile'!AI82+'[3]5.2 Asset Age Profile'!AI82","v":0},{"$f":"'[2]5.2 Asset Age Profile'!AJ82+'[3]5.2 Asset Age Profile'!AJ82","v":12},{"$f":"'[2]5.2 Asset Age Profile'!AK82+'[3]5.2 Asset Age Profile'!AK82","v":11},{"$f":"'[2]5.2 Asset Age Profile'!AL82+'[3]5.2 Asset Age Profile'!AL82","v":3},{"$f":"'[2]5.2 Asset Age Profile'!AM82+'[3]5.2 Asset Age Profile'!AM82","v":5},{"$f":"'[2]5.2 Asset Age Profile'!AN82+'[3]5.2 Asset Age Profile'!AN82","v":25},{"$f":"'[2]5.2 Asset Age Profile'!AO82+'[3]5.2 Asset Age Profile'!AO82","v":14},{"$f":"'[2]5.2 Asset Age Profile'!AP82+'[3]5.2 Asset Age Profile'!AP82","v":10},{"$f":"'[2]5.2 Asset Age Profile'!AQ82+'[3]5.2 Asset Age Profile'!AQ82","v":20},{"$f":"'[2]5.2 Asset Age Profile'!AR82+'[3]5.2 Asset Age Profile'!AR82","v":25},{"$f":"'[2]5.2 Asset Age Profile'!AS82+'[3]5.2 Asset Age Profile'!AS82","v":19},{"$f":"'[2]5.2 Asset Age Profile'!AT82+'[3]5.2 Asset Age Profile'!AT82","v":13},{"$f":"'[2]5.2 Asset Age Profile'!AU82+'[3]5.2 Asset Age Profile'!AU82","v":14},{"$f":"'[2]5.2 Asset Age Profile'!AV82+'[3]5.2 Asset Age Profile'!AV82","v":4},{"$f":"'[2]5.2 Asset Age Profile'!AW82+'[3]5.2 Asset Age Profile'!AW82","v":4},{"$f":"'[2]5.2 Asset Age Profile'!AX82+'[3]5.2 Asset Age Profile'!AX82","v":16},{"$f":"'[2]5.2 Asset Age Profile'!AY82+'[3]5.2 Asset Age Profile'!AY82","v":5},{"$f":"'[2]5.2 Asset Age Profile'!AZ82+'[3]5.2 Asset Age Profile'!AZ82","v":6},{"$f":"'[2]5.2 Asset Age Profile'!BA82+'[3]5.2 Asset Age Profile'!BA82","v":5},{"$f":"'[2]5.2 Asset Age Profile'!BB82+'[3]5.2 Asset Age Profile'!BB82","v":2},{"$f":"'[2]5.2 Asset Age Profile'!BC82+'[3]5.2 Asset Age Profile'!BC82","v":10},{"$f":"'[2]5.2 Asset Age Profile'!BD82+'[3]5.2 Asset Age Profile'!BD82","v":3},{"$f":"'[2]5.2 Asset Age Profile'!BE82+'[3]5.2 Asset Age Profile'!BE82","v":4},{"$f":"'[2]5.2 Asset Age Profile'!BF82+'[3]5.2 Asset Age Profile'!BF82","v":2},{"$f":"'[2]5.2 Asset Age Profile'!BG82+'[3]5.2 Asset Age Profile'!BG82","v":3},{"$f":"'[2]5.2 Asset Age Profile'!BH82+'[3]5.2 Asset Age Profile'!BH82","v":4},{"$f":"'[2]5.2 Asset Age Profile'!BI82+'[3]5.2 Asset Age Profile'!BI82","v":2},{"$f":"'[2]5.2 Asset Age Profile'!BJ82+'[3]5.2 Asset Age Profile'!BJ82","v":1},{"$f":"'[2]5.2 Asset Age Profile'!BK82+'[3]5.2 Asset Age Profile'!BK82","v":1},{"$f":"'[2]5.2 Asset Age Profile'!BL82+'[3]5.2 Asset Age Profile'!BL82","v":2},{"$f":"'[2]5.2 Asset Age Profile'!BM82+'[3]5.2 Asset Age Profile'!BM82","v":5},{"$f":"'[2]5.2 Asset Age Profile'!BN82+'[3]5.2 Asset Age Profile'!BN82","v":0},{"$f":"'[2]5.2 Asset Age Profile'!BO82+'[3]5.2 Asset Age Profile'!BO82","v":3},{"$f":"'[2]5.2 Asset Age Profile'!BP82+'[3]5.2 Asset Age Profile'!BP82","v":0},{"$f":"'[2]5.2 Asset Age Profile'!BQ82+'[3]5.2 Asset Age Profile'!BQ82","v":1},{"$f":"'[2]5.2 Asset Age Profile'!BR82+'[3]5.2 Asset Age Profile'!BR82","v":2},{"$f":"'[2]5.2 Asset Age Profile'!BS82+'[3]5.2 Asset Age Profile'!BS82","v":1},{"$f":"'[2]5.2 Asset Age Profile'!BT82+'[3]5.2 Asset Age Profile'!BT82","v":2},{"$f":"'[2]5.2 Asset Age Profile'!BU82+'[3]5.2 Asset Age Profile'!BU82","v":4},{"$f":"'[2]5.2 Asset Age Profile'!BV82+'[3]5.2 Asset Age Profile'!BV82","v":2},{"$f":"'[2]5.2 Asset Age Profile'!BW82+'[3]5.2 Asset Age Profile'!BW82","v":2},{"$f":"'[2]5.2 Asset Age Profile'!BX82+'[3]5.2 Asset Age Profile'!BX82","v":3},{"$f":"'[2]5.2 Asset Age Profile'!BY82+'[3]5.2 Asset Age Profile'!BY82","v":0},{"$f":"'[2]5.2 Asset Age Profile'!BZ82+'[3]5.2 Asset Age Profile'!BZ82","v":0},{"$f":"'[2]5.2 Asset Age Profile'!CA82+'[3]5.2 Asset Age Profile'!CA82","v":1},{"$f":"'[2]5.2 Asset Age Profile'!CB82+'[3]5.2 Asset Age Profile'!CB82","v":0},{"$f":"'[2]5.2 Asset Age Profile'!CC82+'[3]5.2 Asset Age Profile'!CC82","v":3},{"$f":"'[2]5.2 Asset Age Profile'!CD82+'[3]5.2 Asset Age Profile'!CD82","v":1},{"$f":"'[2]5.2 Asset Age Profile'!CE82+'[3]5.2 Asset Age Profile'!CE82","v":1},{"$f":"'[2]5.2 Asset Age Profile'!CF82+'[3]5.2 Asset Age Profile'!CF82","v":0},{"$f":"'[2]5.2 Asset Age Profile'!CG82+'[3]5.2 Asset Age Profile'!CG82","v":0},{"$f":"'[2]5.2 Asset Age Profile'!CH82+'[3]5.2 Asset Age Profile'!CH82","v":0},{"$f":"'[2]5.2 Asset Age Profile'!CI82+'[3]5.2 Asset Age Profile'!CI82","v":0},{"$f":"'[2]5.2 Asset Age Profile'!CJ82+'[3]5.2 Asset Age Profile'!CJ82","v":0},{"$f":"'[2]5.2 Asset Age Profile'!CK82+'[3]5.2 Asset Age Profile'!CK82","v":0},{"$f":"'[2]5.2 Asset Age Profile'!CL82+'[3]5.2 Asset Age Profile'!CL82","v":0},{"$f":"'[2]5.2 Asset Age Profile'!CM82+'[3]5.2 Asset Age Profile'!CM82","v":0},{"$f":"'[2]5.2 Asset Age Profile'!CN82+'[3]5.2 Asset Age Profile'!CN82","v":0},{"$f":"'[2]5.2 Asset Age Profile'!CO82+'[3]5.2 Asset Age Profile'!CO82","v":0},{"$f":"'[2]5.2 Asset Age Profile'!CP82+'[3]5.2 Asset Age Profile'!CP82","v":0},{"$f":"'[2]5.2 Asset Age Profile'!CQ82+'[3]5.2 Asset Age Profile'!CQ82","v":0},{"$f":"'[2]5.2 Asset Age Profile'!CR82+'[3]5.2 Asset Age Profile'!CR82","v":0},{"$f":"'[2]5.2 Asset Age Profile'!CS82+'[3]5.2 Asset Age Profile'!CS82","v":0},{"$f":"'[2]5.2 Asset Age Profile'!CT82+'[3]5.2 Asset Age Profile'!CT82","v":0},{"$f":"'[2]5.2 Asset Age Profile'!CU82+'[3]5.2 Asset Age Profile'!CU82","v":0},{"$f":"'[2]5.2 Asset Age Profile'!CV82+'[3]5.2 Asset Age Profile'!CV82","v":0},{"$f":"'[2]5.2 Asset Age Profile'!CW82+'[3]5.2 Asset Age Profile'!CW82","v":0},{"$f":"'[2]5.2 Asset Age Profile'!CX82+'[3]5.2 Asset Age Profile'!CX82","v":0},{"$f":"'[2]5.2 Asset Age Profile'!CY82+'[3]5.2 Asset Age Profile'!CY82","v":0},{"$f":"'[2]5.2 Asset Age Profile'!CZ82+'[3]5.2 Asset Age Profile'!CZ82","v":0},{"$f":"'[2]5.2 Asset Age Profile'!DA82+'[3]5.2 Asset Age Profile'!DA82","v":0},{"$f":"'[2]5.2 Asset Age Profile'!DB82+'[3]5.2 Asset Age Profile'!DB82","v":0},{"$f":"'[2]5.2 Asset Age Profile'!DC82+'[3]5.2 Asset Age Profile'!DC82","v":0},{"$f":"'[2]5.2 Asset Age Profile'!DD82+'[3]5.2 Asset Age Profile'!DD82","v":0},{"$f":"'[2]5.2 Asset Age Profile'!DE82+'[3]5.2 Asset Age Profile'!DE82","v":0},{"$f":"'[2]5.2 Asset Age Profile'!DF82+'[3]5.2 Asset Age Profile'!DF82","v":0},{"$f":"'[2]5.2 Asset Age Profile'!DG82+'[3]5.2 Asset Age Profile'!DG82","v":0},{"$f":"'[2]5.2 Asset Age Profile'!DH82+'[3]5.2 Asset Age Profile'!DH82","v":0},{"$f":"'[2]5.2 Asset Age Profile'!DI82+'[3]5.2 Asset Age Profile'!DI82","v":0},{"$f":"'[2]5.2 Asset Age Profile'!DJ82+'[3]5.2 Asset Age Profile'!DJ82","v":0},{"$f":"'[2]5.2 Asset Age Profile'!DK82+'[3]5.2 Asset Age Profile'!DK82","v":0},{"$f":"'[2]5.2 Asset Age Profile'!DL82+'[3]5.2 Asset Age Profile'!DL82","v":0},{"$f":"'[2]5.2 Asset Age Profile'!DM82+'[3]5.2 Asset Age Profile'!DM82","v":0},{"$f":"'[2]5.2 Asset Age Profile'!DN82+'[3]5.2 Asset Age Profile'!DN82","v":0},{"$f":"'[2]5.2 Asset Age Profile'!DO82+'[3]5.2 Asset Age Profile'!DO82","v":0},{"$f":"'[2]5.2 Asset Age Profile'!DP82+'[3]5.2 Asset Age Profile'!DP82","v":0},{"$f":"'[2]5.2 Asset Age Profile'!DQ82+'[3]5.2 Asset Age Profile'!DQ82","v":0},{"$f":"'[2]5.2 Asset Age Profile'!DR82+'[3]5.2 Asset Age Profile'!DR82","v":0},{"$f":"'[2]5.2 Asset Age Profile'!DS82+'[3]5.2 Asset Age Profile'!DS82","v":1},{"$f":"'[2]5.2 Asset Age Profile'!DT82+'[3]5.2 Asset Age Profile'!DT82","v":0},{"$f":"'[2]5.2 Asset Age Profile'!DU82+'[3]5.2 Asset Age Profile'!DU82","v":0},{"$f":"'[2]5.2 Asset Age Profile'!DV82+'[3]5.2 Asset Age Profile'!DV82","v":0},{"$f":"'[2]5.2 Asset Age Profile'!DW82+'[3]5.2 Asset Age Profile'!DW82","v":0},{"$f":"'[2]5.2 Asset Age Profile'!DX82+'[3]5.2 Asset Age Profile'!DX82","v":0},{"$f":"'[2]5.2 Asset Age Profile'!DY82+'[3]5.2 Asset Age Profile'!DY82","v":0},{"$f":"'[2]5.2 Asset Age Profile'!DZ82+'[3]5.2 Asset Age Profile'!DZ82","v":0},{"$f":"'[2]5.2 Asset Age Profile'!EA82+'[3]5.2 Asset Age Profile'!EA82","v":0},{"$f":"'[2]5.2 Asset Age Profile'!EB82+'[3]5.2 Asset Age Profile'!EB82","v":0},{"$f":"'[2]5.2 Asset Age Profile'!EC82+'[3]5.2 Asset Age Profile'!EC82","v":0},{"$f":"'[2]5.2 Asset Age Profile'!ED82+'[3]5.2 Asset Age Profile'!ED82","v":0},{"$f":"'[2]5.2 Asset Age Profile'!EE82+'[3]5.2 Asset Age Profile'!EE82","v":0},{"$f":"'[2]5.2 Asset Age Profile'!EF82+'[3]5.2 Asset Age Profile'!EF82","v":0},{"$f":"'[2]5.2 Asset Age Profile'!EG82+'[3]5.2 Asset Age Profile'!EG82","v":0},{"$f":"'[2]5.2 Asset Age Profile'!EH82+'[3]5.2 Asset Age Profile'!EH82","v":0},{"$f":"'[2]5.2 Asset Age Profile'!EI82+'[3]5.2 Asset Age Profile'!EI82","v":0},{"$f":"'[2]5.2 Asset Age Profile'!EJ82+'[3]5.2 Asset Age Profile'!EJ82","v":0}]
["ED_ASS521_00073",null,"Ground Outdoor / Indoor Chamber Mounted; ˂ 22 kV ;  < = 60 kVA ; Single Phase",null,null,null,null,null,null,null,null,null,null,{"$f":"'[2]5.2 Asset Age Profile'!N83+'[3]5.2 Asset Age Profile'!N83","v":0},{"$f":"'[2]5.2 Asset Age Profile'!O83+'[3]5.2 Asset Age Profile'!O83","v":0},{"$f":"'[2]5.2 Asset Age Profile'!P83+'[3]5.2 Asset Age Profile'!P83","v":0},{"$f":"'[2]5.2 Asset Age Profile'!Q83+'[3]5.2 Asset Age Profile'!Q83","v":0},{"$f":"'[2]5.2 Asset Age Profile'!R83+'[3]5.2 Asset Age Profile'!R83","v":0},{"$f":"'[2]5.2 Asset Age Profile'!S83+'[3]5.2 Asset Age Profile'!S83","v":0},{"$f":"'[2]5.2 Asset Age Profile'!T83+'[3]5.2 Asset Age Profile'!T83","v":0},{"$f":"'[2]5.2 Asset Age Profile'!U83+'[3]5.2 Asset Age Profile'!U83","v":0},{"$f":"'[2]5.2 Asset Age Profile'!V83+'[3]5.2 Asset Age Profile'!V83","v":0},{"$f":"'[2]5.2 Asset Age Profile'!W83+'[3]5.2 Asset Age Profile'!W83","v":0},{"$f":"'[2]5.2 Asset Age Profile'!X83+'[3]5.2 Asset Age Profile'!X83","v":0},{"$f":"'[2]5.2 Asset Age Profile'!Y83+'[3]5.2 Asset Age Profile'!Y83","v":0},{"$f":"'[2]5.2 Asset Age Profile'!Z83+'[3]5.2 Asset Age Profile'!Z83","v":0},{"$f":"'[2]5.2 Asset Age Profile'!AA83+'[3]5.2 Asset Age Profile'!AA83","v":0},{"$f":"'[2]5.2 Asset Age Profile'!AB83+'[3]5.2 Asset Age Profile'!AB83","v":0},{"$f":"'[2]5.2 Asset Age Profile'!AC83+'[3]5.2 Asset Age Profile'!AC83","v":0},{"$f":"'[2]5.2 Asset Age Profile'!AD83+'[3]5.2 Asset Age Profile'!AD83","v":0},{"$f":"'[2]5.2 Asset Age Profile'!AE83+'[3]5.2 Asset Age Profile'!AE83","v":0},{"$f":"'[2]5.2 Asset Age Profile'!AF83+'[3]5.2 Asset Age Profile'!AF83","v":0},{"$f":"'[2]5.2 Asset Age Profile'!AG83+'[3]5.2 Asset Age Profile'!AG83","v":0},{"$f":"'[2]5.2 Asset Age Profile'!AH83+'[3]5.2 Asset Age Profile'!AH83","v":0},{"$f":"'[2]5.2 Asset Age Profile'!AI83+'[3]5.2 Asset Age Profile'!AI83","v":0},{"$f":"'[2]5.2 Asset Age Profile'!AJ83+'[3]5.2 Asset Age Profile'!AJ83","v":0},{"$f":"'[2]5.2 Asset Age Profile'!AK83+'[3]5.2 Asset Age Profile'!AK83","v":0},{"$f":"'[2]5.2 Asset Age Profile'!AL83+'[3]5.2 Asset Age Profile'!AL83","v":0},{"$f":"'[2]5.2 Asset Age Profile'!AM83+'[3]5.2 Asset Age Profile'!AM83","v":0},{"$f":"'[2]5.2 Asset Age Profile'!AN83+'[3]5.2 Asset Age Profile'!AN83","v":0},{"$f":"'[2]5.2 Asset Age Profile'!AO83+'[3]5.2 Asset Age Profile'!AO83","v":0},{"$f":"'[2]5.2 Asset Age Profile'!AP83+'[3]5.2 Asset Age Profile'!AP83","v":0},{"$f":"'[2]5.2 Asset Age Profile'!AQ83+'[3]5.2 Asset Age Profile'!AQ83","v":0},{"$f":"'[2]5.2 Asset Age Profile'!AR83+'[3]5.2 Asset Age Profile'!AR83","v":0},{"$f":"'[2]5.2 Asset Age Profile'!AS83+'[3]5.2 Asset Age Profile'!AS83","v":0},{"$f":"'[2]5.2 Asset Age Profile'!AT83+'[3]5.2 Asset Age Profile'!AT83","v":0},{"$f":"'[2]5.2 Asset Age Profile'!AU83+'[3]5.2 Asset Age Profile'!AU83","v":0},{"$f":"'[2]5.2 Asset Age Profile'!AV83+'[3]5.2 Asset Age Profile'!AV83","v":0},{"$f":"'[2]5.2 Asset Age Profile'!AW83+'[3]5.2 Asset Age Profile'!AW83","v":0},{"$f":"'[2]5.2 Asset Age Profile'!AX83+'[3]5.2 Asset Age Profile'!AX83","v":0},{"$f":"'[2]5.2 Asset Age Profile'!AY83+'[3]5.2 Asset Age Profile'!AY83","v":0},{"$f":"'[2]5.2 Asset Age Profile'!AZ83+'[3]5.2 Asset Age Profile'!AZ83","v":0},{"$f":"'[2]5.2 Asset Age Profile'!BA83+'[3]5.2 Asset Age Profile'!BA83","v":0},{"$f":"'[2]5.2 Asset Age Profile'!BB83+'[3]5.2 Asset Age Profile'!BB83","v":0},{"$f":"'[2]5.2 Asset Age Profile'!BC83+'[3]5.2 Asset Age Profile'!BC83","v":0},{"$f":"'[2]5.2 Asset Age Profile'!BD83+'[3]5.2 Asset Age Profile'!BD83","v":0},{"$f":"'[2]5.2 Asset Age Profile'!BE83+'[3]5.2 Asset Age Profile'!BE83","v":0},{"$f":"'[2]5.2 Asset Age Profile'!BF83+'[3]5.2 Asset Age Profile'!BF83","v":0},{"$f":"'[2]5.2 Asset Age Profile'!BG83+'[3]5.2 Asset Age Profile'!BG83","v":0},{"$f":"'[2]5.2 Asset Age Profile'!BH83+'[3]5.2 Asset Age Profile'!BH83","v":0},{"$f":"'[2]5.2 Asset Age Profile'!BI83+'[3]5.2 Asset Age Profile'!BI83","v":0},{"$f":"'[2]5.2 Asset Age Profile'!BJ83+'[3]5.2 Asset Age Profile'!BJ83","v":0},{"$f":"'[2]5.2 Asset Age Profile'!BK83+'[3]5.2 Asset Age Profile'!BK83","v":0},{"$f":"'[2]5.2 Asset Age Profile'!BL83+'[3]5.2 Asset Age Profile'!BL83","v":0},{"$f":"'[2]5.2 Asset Age Profile'!BM83+'[3]5.2 Asset Age Profile'!BM83","v":0},{"$f":"'[2]5.2 Asset Age Profile'!BN83+'[3]5.2 Asset Age Profile'!BN83","v":0},{"$f":"'[2]5.2 Asset Age Profile'!BO83+'[3]5.2 Asset Age Profile'!BO83","v":0},{"$f":"'[2]5.2 Asset Age Profile'!BP83+'[3]5.2 Asset Age Profile'!BP83","v":0},{"$f":"'[2]5.2 Asset Age Profile'!BQ83+'[3]5.2 Asset Age Profile'!BQ83","v":0},{"$f":"'[2]5.2 Asset Age Profile'!BR83+'[3]5.2 Asset Age Profile'!BR83","v":0},{"$f":"'[2]5.2 Asset Age Profile'!BS83+'[3]5.2 Asset Age Profile'!BS83","v":0},{"$f":"'[2]5.2 Asset Age Profile'!BT83+'[3]5.2 Asset Age Profile'!BT83","v":0},{"$f":"'[2]5.2 Asset Age Profile'!BU83+'[3]5.2 Asset Age Profile'!BU83","v":0},{"$f":"'[2]5.2 Asset Age Profile'!BV83+'[3]5.2 Asset Age Profile'!BV83","v":0},{"$f":"'[2]5.2 Asset Age Profile'!BW83+'[3]5.2 Asset Age Profile'!BW83","v":0},{"$f":"'[2]5.2 Asset Age Profile'!BX83+'[3]5.2 Asset Age Profile'!BX83","v":0},{"$f":"'[2]5.2 Asset Age Profile'!BY83+'[3]5.2 Asset Age Profile'!BY83","v":0},{"$f":"'[2]5.2 Asset Age Profile'!BZ83+'[3]5.2 Asset Age Profile'!BZ83","v":0},{"$f":"'[2]5.2 Asset Age Profile'!CA83+'[3]5.2 Asset Age Profile'!CA83","v":0},{"$f":"'[2]5.2 Asset Age Profile'!CB83+'[3]5.2 Asset Age Profile'!CB83","v":0},{"$f":"'[2]5.2 Asset Age Profile'!CC83+'[3]5.2 Asset Age Profile'!CC83","v":0},{"$f":"'[2]5.2 Asset Age Profile'!CD83+'[3]5.2 Asset Age Profile'!CD83","v":0},{"$f":"'[2]5.2 Asset Age Profile'!CE83+'[3]5.2 Asset Age Profile'!CE83","v":0},{"$f":"'[2]5.2 Asset Age Profile'!CF83+'[3]5.2 Asset Age Profile'!CF83","v":0},{"$f":"'[2]5.2 Asset Age Profile'!CG83+'[3]5.2 Asset Age Profile'!CG83","v":0},{"$f":"'[2]5.2 Asset Age Profile'!CH83+'[3]5.2 Asset Age Profile'!CH83","v":0},{"$f":"'[2]5.2 Asset Age Profile'!CI83+'[3]5.2 Asset Age Profile'!CI83","v":0},{"$f":"'[2]5.2 Asset Age Profile'!CJ83+'[3]5.2 Asset Age Profile'!CJ83","v":0},{"$f":"'[2]5.2 Asset Age Profile'!CK83+'[3]5.2 Asset Age Profile'!CK83","v":0},{"$f":"'[2]5.2 Asset Age Profile'!CL83+'[3]5.2 Asset Age Profile'!CL83","v":0},{"$f":"'[2]5.2 Asset Age Profile'!CM83+'[3]5.2 Asset Age Profile'!CM83","v":0},{"$f":"'[2]5.2 Asset Age Profile'!CN83+'[3]5.2 Asset Age Profile'!CN83","v":0},{"$f":"'[2]5.2 Asset Age Profile'!CO83+'[3]5.2 Asset Age Profile'!CO83","v":0},{"$f":"'[2]5.2 Asset Age Profile'!CP83+'[3]5.2 Asset Age Profile'!CP83","v":0},{"$f":"'[2]5.2 Asset Age Profile'!CQ83+'[3]5.2 Asset Age Profile'!CQ83","v":0},{"$f":"'[2]5.2 Asset Age Profile'!CR83+'[3]5.2 Asset Age Profile'!CR83","v":0},{"$f":"'[2]5.2 Asset Age Profile'!CS83+'[3]5.2 Asset Age Profile'!CS83","v":0},{"$f":"'[2]5.2 Asset Age Profile'!CT83+'[3]5.2 Asset Age Profile'!CT83","v":0},{"$f":"'[2]5.2 Asset Age Profile'!CU83+'[3]5.2 Asset Age Profile'!CU83","v":0},{"$f":"'[2]5.2 Asset Age Profile'!CV83+'[3]5.2 Asset Age Profile'!CV83","v":0},{"$f":"'[2]5.2 Asset Age Profile'!CW83+'[3]5.2 Asset Age Profile'!CW83","v":0},{"$f":"'[2]5.2 Asset Age Profile'!CX83+'[3]5.2 Asset Age Profile'!CX83","v":0},{"$f":"'[2]5.2 Asset Age Profile'!CY83+'[3]5.2 Asset Age Profile'!CY83","v":0},{"$f":"'[2]5.2 Asset Age Profile'!CZ83+'[3]5.2 Asset Age Profile'!CZ83","v":0},{"$f":"'[2]5.2 Asset Age Profile'!DA83+'[3]5.2 Asset Age Profile'!DA83","v":0},{"$f":"'[2]5.2 Asset Age Profile'!DB83+'[3]5.2 Asset Age Profile'!DB83","v":0},{"$f":"'[2]5.2 Asset Age Profile'!DC83+'[3]5.2 Asset Age Profile'!DC83","v":0},{"$f":"'[2]5.2 Asset Age Profile'!DD83+'[3]5.2 Asset Age Profile'!DD83","v":0},{"$f":"'[2]5.2 Asset Age Profile'!DE83+'[3]5.2 Asset Age Profile'!DE83","v":0},{"$f":"'[2]5.2 Asset Age Profile'!DF83+'[3]5.2 Asset Age Profile'!DF83","v":0},{"$f":"'[2]5.2 Asset Age Profile'!DG83+'[3]5.2 Asset Age Profile'!DG83","v":0},{"$f":"'[2]5.2 Asset Age Profile'!DH83+'[3]5.2 Asset Age Profile'!DH83","v":0},{"$f":"'[2]5.2 Asset Age Profile'!DI83+'[3]5.2 Asset Age Profile'!DI83","v":0},{"$f":"'[2]5.2 Asset Age Profile'!DJ83+'[3]5.2 Asset Age Profile'!DJ83","v":0},{"$f":"'[2]5.2 Asset Age Profile'!DK83+'[3]5.2 Asset Age Profile'!DK83","v":0},{"$f":"'[2]5.2 Asset Age Profile'!DL83+'[3]5.2 Asset Age Profile'!DL83","v":0},{"$f":"'[2]5.2 Asset Age Profile'!DM83+'[3]5.2 Asset Age Profile'!DM83","v":0},{"$f":"'[2]5.2 Asset Age Profile'!DN83+'[3]5.2 Asset Age Profile'!DN83","v":0},{"$f":"'[2]5.2 Asset Age Profile'!DO83+'[3]5.2 Asset Age Profile'!DO83","v":0},{"$f":"'[2]5.2 Asset Age Profile'!DP83+'[3]5.2 Asset Age Profile'!DP83","v":0},{"$f":"'[2]5.2 Asset Age Profile'!DQ83+'[3]5.2 Asset Age Profile'!DQ83","v":0},{"$f":"'[2]5.2 Asset Age Profile'!DR83+'[3]5.2 Asset Age Profile'!DR83","v":0},{"$f":"'[2]5.2 Asset Age Profile'!DS83+'[3]5.2 Asset Age Profile'!DS83","v":0},{"$f":"'[2]5.2 Asset Age Profile'!DT83+'[3]5.2 Asset Age Profile'!DT83","v":0},{"$f":"'[2]5.2 Asset Age Profile'!DU83+'[3]5.2 Asset Age Profile'!DU83","v":0},{"$f":"'[2]5.2 Asset Age Profile'!DV83+'[3]5.2 Asset Age Profile'!DV83","v":0},{"$f":"'[2]5.2 Asset Age Profile'!DW83+'[3]5.2 Asset Age Profile'!DW83","v":0},{"$f":"'[2]5.2 Asset Age Profile'!DX83+'[3]5.2 Asset Age Profile'!DX83","v":0},{"$f":"'[2]5.2 Asset Age Profile'!DY83+'[3]5.2 Asset Age Profile'!DY83","v":0},{"$f":"'[2]5.2 Asset Age Profile'!DZ83+'[3]5.2 Asset Age Profile'!DZ83","v":0},{"$f":"'[2]5.2 Asset Age Profile'!EA83+'[3]5.2 Asset Age Profile'!EA83","v":0},{"$f":"'[2]5.2 Asset Age Profile'!EB83+'[3]5.2 Asset Age Profile'!EB83","v":0},{"$f":"'[2]5.2 Asset Age Profile'!EC83+'[3]5.2 Asset Age Profile'!EC83","v":0},{"$f":"'[2]5.2 Asset Age Profile'!ED83+'[3]5.2 Asset Age Profile'!ED83","v":0},{"$f":"'[2]5.2 Asset Age Profile'!EE83+'[3]5.2 Asset Age Profile'!EE83","v":0},{"$f":"'[2]5.2 Asset Age Profile'!EF83+'[3]5.2 Asset Age Profile'!EF83","v":0},{"$f":"'[2]5.2 Asset Age Profile'!EG83+'[3]5.2 Asset Age Profile'!EG83","v":0},{"$f":"'[2]5.2 Asset Age Profile'!EH83+'[3]5.2 Asset Age Profile'!EH83","v":0},{"$f":"'[2]5.2 Asset Age Profile'!EI83+'[3]5.2 Asset Age Profile'!EI83","v":0},{"$f":"'[2]5.2 Asset Age Profile'!EJ83+'[3]5.2 Asset Age Profile'!EJ83","v":0}]
["ED_ASS521_00074",null,"Ground Outdoor / Indoor Chamber Mounted; ˂  22 kV ;  > 60 kVA  and < = 600 kVA ; Single Phase",null,null,null,null,null,null,null,null,null,null,{"$f":"'[2]5.2 Asset Age Profile'!N84+'[3]5.2 Asset Age Profile'!N84","v":0},{"$f":"'[2]5.2 Asset Age Profile'!O84+'[3]5.2 Asset Age Profile'!O84","v":0},{"$f":"'[2]5.2 Asset Age Profile'!P84+'[3]5.2 Asset Age Profile'!P84","v":0},{"$f":"'[2]5.2 Asset Age Profile'!Q84+'[3]5.2 Asset Age Profile'!Q84","v":0},{"$f":"'[2]5.2 Asset Age Profile'!R84+'[3]5.2 Asset Age Profile'!R84","v":0},{"$f":"'[2]5.2 Asset Age Profile'!S84+'[3]5.2 Asset Age Profile'!S84","v":0},{"$f":"'[2]5.2 Asset Age Profile'!T84+'[3]5.2 Asset Age Profile'!T84","v":0},{"$f":"'[2]5.2 Asset Age Profile'!U84+'[3]5.2 Asset Age Profile'!U84","v":0},{"$f":"'[2]5.2 Asset Age Profile'!V84+'[3]5.2 Asset Age Profile'!V84","v":0},{"$f":"'[2]5.2 Asset Age Profile'!W84+'[3]5.2 Asset Age Profile'!W84","v":0},{"$f":"'[2]5.2 Asset Age Profile'!X84+'[3]5.2 Asset Age Profile'!X84","v":0},{"$f":"'[2]5.2 Asset Age Profile'!Y84+'[3]5.2 Asset Age Profile'!Y84","v":0},{"$f":"'[2]5.2 Asset Age Profile'!Z84+'[3]5.2 Asset Age Profile'!Z84","v":0},{"$f":"'[2]5.2 Asset Age Profile'!AA84+'[3]5.2 Asset Age Profile'!AA84","v":0},{"$f":"'[2]5.2 Asset Age Profile'!AB84+'[3]5.2 Asset Age Profile'!AB84","v":0},{"$f":"'[2]5.2 Asset Age Profile'!AC84+'[3]5.2 Asset Age Profile'!AC84","v":0},{"$f":"'[2]5.2 Asset Age Profile'!AD84+'[3]5.2 Asset Age Profile'!AD84","v":0},{"$f":"'[2]5.2 Asset Age Profile'!AE84+'[3]5.2 Asset Age Profile'!AE84","v":0},{"$f":"'[2]5.2 Asset Age Profile'!AF84+'[3]5.2 Asset Age Profile'!AF84","v":0},{"$f":"'[2]5.2 Asset Age Profile'!AG84+'[3]5.2 Asset Age Profile'!AG84","v":0},{"$f":"'[2]5.2 Asset Age Profile'!AH84+'[3]5.2 Asset Age Profile'!AH84","v":0},{"$f":"'[2]5.2 Asset Age Profile'!AI84+'[3]5.2 Asset Age Profile'!AI84","v":0},{"$f":"'[2]5.2 Asset Age Profile'!AJ84+'[3]5.2 Asset Age Profile'!AJ84","v":0},{"$f":"'[2]5.2 Asset Age Profile'!AK84+'[3]5.2 Asset Age Profile'!AK84","v":0},{"$f":"'[2]5.2 Asset Age Profile'!AL84+'[3]5.2 Asset Age Profile'!AL84","v":0},{"$f":"'[2]5.2 Asset Age Profile'!AM84+'[3]5.2 Asset Age Profile'!AM84","v":0},{"$f":"'[2]5.2 Asset Age Profile'!AN84+'[3]5.2 Asset Age Profile'!AN84","v":0},{"$f":"'[2]5.2 Asset Age Profile'!AO84+'[3]5.2 Asset Age Profile'!AO84","v":0},{"$f":"'[2]5.2 Asset Age Profile'!AP84+'[3]5.2 Asset Age Profile'!AP84","v":0},{"$f":"'[2]5.2 Asset Age Profile'!AQ84+'[3]5.2 Asset Age Profile'!AQ84","v":0},{"$f":"'[2]5.2 Asset Age Profile'!AR84+'[3]5.2 Asset Age Profile'!AR84","v":0},{"$f":"'[2]5.2 Asset Age Profile'!AS84+'[3]5.2 Asset Age Profile'!AS84","v":0},{"$f":"'[2]5.2 Asset Age Profile'!AT84+'[3]5.2 Asset Age Profile'!AT84","v":0},{"$f":"'[2]5.2 Asset Age Profile'!AU84+'[3]5.2 Asset Age Profile'!AU84","v":0},{"$f":"'[2]5.2 Asset Age Profile'!AV84+'[3]5.2 Asset Age Profile'!AV84","v":0},{"$f":"'[2]5.2 Asset Age Profile'!AW84+'[3]5.2 Asset Age Profile'!AW84","v":0},{"$f":"'[2]5.2 Asset Age Profile'!AX84+'[3]5.2 Asset Age Profile'!AX84","v":0},{"$f":"'[2]5.2 Asset Age Profile'!AY84+'[3]5.2 Asset Age Profile'!AY84","v":0},{"$f":"'[2]5.2 Asset Age Profile'!AZ84+'[3]5.2 Asset Age Profile'!AZ84","v":0},{"$f":"'[2]5.2 Asset Age Profile'!BA84+'[3]5.2 Asset Age Profile'!BA84","v":0},{"$f":"'[2]5.2 Asset Age Profile'!BB84+'[3]5.2 Asset Age Profile'!BB84","v":0},{"$f":"'[2]5.2 Asset Age Profile'!BC84+'[3]5.2 Asset Age Profile'!BC84","v":0},{"$f":"'[2]5.2 Asset Age Profile'!BD84+'[3]5.2 Asset Age Profile'!BD84","v":0},{"$f":"'[2]5.2 Asset Age Profile'!BE84+'[3]5.2 Asset Age Profile'!BE84","v":0},{"$f":"'[2]5.2 Asset Age Profile'!BF84+'[3]5.2 Asset Age Profile'!BF84","v":0},{"$f":"'[2]5.2 Asset Age Profile'!BG84+'[3]5.2 Asset Age Profile'!BG84","v":0},{"$f":"'[2]5.2 Asset Age Profile'!BH84+'[3]5.2 Asset Age Profile'!BH84","v":0},{"$f":"'[2]5.2 Asset Age Profile'!BI84+'[3]5.2 Asset Age Profile'!BI84","v":0},{"$f":"'[2]5.2 Asset Age Profile'!BJ84+'[3]5.2 Asset Age Profile'!BJ84","v":0},{"$f":"'[2]5.2 Asset Age Profile'!BK84+'[3]5.2 Asset Age Profile'!BK84","v":0},{"$f":"'[2]5.2 Asset Age Profile'!BL84+'[3]5.2 Asset Age Profile'!BL84","v":0},{"$f":"'[2]5.2 Asset Age Profile'!BM84+'[3]5.2 Asset Age Profile'!BM84","v":0},{"$f":"'[2]5.2 Asset Age Profile'!BN84+'[3]5.2 Asset Age Profile'!BN84","v":0},{"$f":"'[2]5.2 Asset Age Profile'!BO84+'[3]5.2 Asset Age Profile'!BO84","v":0},{"$f":"'[2]5.2 Asset Age Profile'!BP84+'[3]5.2 Asset Age Profile'!BP84","v":0},{"$f":"'[2]5.2 Asset Age Profile'!BQ84+'[3]5.2 Asset Age Profile'!BQ84","v":0},{"$f":"'[2]5.2 Asset Age Profile'!BR84+'[3]5.2 Asset Age Profile'!BR84","v":0},{"$f":"'[2]5.2 Asset Age Profile'!BS84+'[3]5.2 Asset Age Profile'!BS84","v":0},{"$f":"'[2]5.2 Asset Age Profile'!BT84+'[3]5.2 Asset Age Profile'!BT84","v":0},{"$f":"'[2]5.2 Asset Age Profile'!BU84+'[3]5.2 Asset Age Profile'!BU84","v":0},{"$f":"'[2]5.2 Asset Age Profile'!BV84+'[3]5.2 Asset Age Profile'!BV84","v":0},{"$f":"'[2]5.2 Asset Age Profile'!BW84+'[3]5.2 Asset Age Profile'!BW84","v":0},{"$f":"'[2]5.2 Asset Age Profile'!BX84+'[3]5.2 Asset Age Profile'!BX84","v":0},{"$f":"'[2]5.2 Asset Age Profile'!BY84+'[3]5.2 Asset Age Profile'!BY84","v":0},{"$f":"'[2]5.2 Asset Age Profile'!BZ84+'[3]5.2 Asset Age Profile'!BZ84","v":0},{"$f":"'[2]5.2 Asset Age Profile'!CA84+'[3]5.2 Asset Age Profile'!CA84","v":0},{"$f":"'[2]5.2 Asset Age Profile'!CB84+'[3]5.2 Asset Age Profile'!CB84","v":0},{"$f":"'[2]5.2 Asset Age Profile'!CC84+'[3]5.2 Asset Age Profile'!CC84","v":0},{"$f":"'[2]5.2 Asset Age Profile'!CD84+'[3]5.2 Asset Age Profile'!CD84","v":0},{"$f":"'[2]5.2 Asset Age Profile'!CE84+'[3]5.2 Asset Age Profile'!CE84","v":0},{"$f":"'[2]5.2 Asset Age Profile'!CF84+'[3]5.2 Asset Age Profile'!CF84","v":0},{"$f":"'[2]5.2 Asset Age Profile'!CG84+'[3]5.2 Asset Age Profile'!CG84","v":0},{"$f":"'[2]5.2 Asset Age Profile'!CH84+'[3]5.2 Asset Age Profile'!CH84","v":0},{"$f":"'[2]5.2 Asset Age Profile'!CI84+'[3]5.2 Asset Age Profile'!CI84","v":0},{"$f":"'[2]5.2 Asset Age Profile'!CJ84+'[3]5.2 Asset Age Profile'!CJ84","v":0},{"$f":"'[2]5.2 Asset Age Profile'!CK84+'[3]5.2 Asset Age Profile'!CK84","v":0},{"$f":"'[2]5.2 Asset Age Profile'!CL84+'[3]5.2 Asset Age Profile'!CL84","v":0},{"$f":"'[2]5.2 Asset Age Profile'!CM84+'[3]5.2 Asset Age Profile'!CM84","v":0},{"$f":"'[2]5.2 Asset Age Profile'!CN84+'[3]5.2 Asset Age Profile'!CN84","v":0},{"$f":"'[2]5.2 Asset Age Profile'!CO84+'[3]5.2 Asset Age Profile'!CO84","v":0},{"$f":"'[2]5.2 Asset Age Profile'!CP84+'[3]5.2 Asset Age Profile'!CP84","v":0},{"$f":"'[2]5.2 Asset Age Profile'!CQ84+'[3]5.2 Asset Age Profile'!CQ84","v":0},{"$f":"'[2]5.2 Asset Age Profile'!CR84+'[3]5.2 Asset Age Profile'!CR84","v":0},{"$f":"'[2]5.2 Asset Age Profile'!CS84+'[3]5.2 Asset Age Profile'!CS84","v":0},{"$f":"'[2]5.2 Asset Age Profile'!CT84+'[3]5.2 Asset Age Profile'!CT84","v":0},{"$f":"'[2]5.2 Asset Age Profile'!CU84+'[3]5.2 Asset Age Profile'!CU84","v":0},{"$f":"'[2]5.2 Asset Age Profile'!CV84+'[3]5.2 Asset Age Profile'!CV84","v":0},{"$f":"'[2]5.2 Asset Age Profile'!CW84+'[3]5.2 Asset Age Profile'!CW84","v":0},{"$f":"'[2]5.2 Asset Age Profile'!CX84+'[3]5.2 Asset Age Profile'!CX84","v":0},{"$f":"'[2]5.2 Asset Age Profile'!CY84+'[3]5.2 Asset Age Profile'!CY84","v":0},{"$f":"'[2]5.2 Asset Age Profile'!CZ84+'[3]5.2 Asset Age Profile'!CZ84","v":0},{"$f":"'[2]5.2 Asset Age Profile'!DA84+'[3]5.2 Asset Age Profile'!DA84","v":0},{"$f":"'[2]5.2 Asset Age Profile'!DB84+'[3]5.2 Asset Age Profile'!DB84","v":0},{"$f":"'[2]5.2 Asset Age Profile'!DC84+'[3]5.2 Asset Age Profile'!DC84","v":0},{"$f":"'[2]5.2 Asset Age Profile'!DD84+'[3]5.2 Asset Age Profile'!DD84","v":0},{"$f":"'[2]5.2 Asset Age Profile'!DE84+'[3]5.2 Asset Age Profile'!DE84","v":0},{"$f":"'[2]5.2 Asset Age Profile'!DF84+'[3]5.2 Asset Age Profile'!DF84","v":0},{"$f":"'[2]5.2 Asset Age Profile'!DG84+'[3]5.2 Asset Age Profile'!DG84","v":0},{"$f":"'[2]5.2 Asset Age Profile'!DH84+'[3]5.2 Asset Age Profile'!DH84","v":0},{"$f":"'[2]5.2 Asset Age Profile'!DI84+'[3]5.2 Asset Age Profile'!DI84","v":0},{"$f":"'[2]5.2 Asset Age Profile'!DJ84+'[3]5.2 Asset Age Profile'!DJ84","v":0},{"$f":"'[2]5.2 Asset Age Profile'!DK84+'[3]5.2 Asset Age Profile'!DK84","v":0},{"$f":"'[2]5.2 Asset Age Profile'!DL84+'[3]5.2 Asset Age Profile'!DL84","v":0},{"$f":"'[2]5.2 Asset Age Profile'!DM84+'[3]5.2 Asset Age Profile'!DM84","v":0},{"$f":"'[2]5.2 Asset Age Profile'!DN84+'[3]5.2 Asset Age Profile'!DN84","v":0},{"$f":"'[2]5.2 Asset Age Profile'!DO84+'[3]5.2 Asset Age Profile'!DO84","v":0},{"$f":"'[2]5.2 Asset Age Profile'!DP84+'[3]5.2 Asset Age Profile'!DP84","v":0},{"$f":"'[2]5.2 Asset Age Profile'!DQ84+'[3]5.2 Asset Age Profile'!DQ84","v":0},{"$f":"'[2]5.2 Asset Age Profile'!DR84+'[3]5.2 Asset Age Profile'!DR84","v":0},{"$f":"'[2]5.2 Asset Age Profile'!DS84+'[3]5.2 Asset Age Profile'!DS84","v":0},{"$f":"'[2]5.2 Asset Age Profile'!DT84+'[3]5.2 Asset Age Profile'!DT84","v":0},{"$f":"'[2]5.2 Asset Age Profile'!DU84+'[3]5.2 Asset Age Profile'!DU84","v":0},{"$f":"'[2]5.2 Asset Age Profile'!DV84+'[3]5.2 Asset Age Profile'!DV84","v":0},{"$f":"'[2]5.2 Asset Age Profile'!DW84+'[3]5.2 Asset Age Profile'!DW84","v":0},{"$f":"'[2]5.2 Asset Age Profile'!DX84+'[3]5.2 Asset Age Profile'!DX84","v":0},{"$f":"'[2]5.2 Asset Age Profile'!DY84+'[3]5.2 Asset Age Profile'!DY84","v":0},{"$f":"'[2]5.2 Asset Age Profile'!DZ84+'[3]5.2 Asset Age Profile'!DZ84","v":0},{"$f":"'[2]5.2 Asset Age Profile'!EA84+'[3]5.2 Asset Age Profile'!EA84","v":0},{"$f":"'[2]5.2 Asset Age Profile'!EB84+'[3]5.2 Asset Age Profile'!EB84","v":0},{"$f":"'[2]5.2 Asset Age Profile'!EC84+'[3]5.2 Asset Age Profile'!EC84","v":0},{"$f":"'[2]5.2 Asset Age Profile'!ED84+'[3]5.2 Asset Age Profile'!ED84","v":0},{"$f":"'[2]5.2 Asset Age Profile'!EE84+'[3]5.2 Asset Age Profile'!EE84","v":0},{"$f":"'[2]5.2 Asset Age Profile'!EF84+'[3]5.2 Asset Age Profile'!EF84","v":0},{"$f":"'[2]5.2 Asset Age Profile'!EG84+'[3]5.2 Asset Age Profile'!EG84","v":0},{"$f":"'[2]5.2 Asset Age Profile'!EH84+'[3]5.2 Asset Age Profile'!EH84","v":0},{"$f":"'[2]5.2 Asset Age Profile'!EI84+'[3]5.2 Asset Age Profile'!EI84","v":0},{"$f":"'[2]5.2 Asset Age Profile'!EJ84+'[3]5.2 Asset Age Profile'!EJ84","v":0}]
["ED_ASS521_00075",null,"Ground Outdoor / Indoor Chamber Mounted; ˂  22 kV ;  >  600 kVA ; Single Phase",null,null,null,null,null,null,null,null,null,null,{"$f":"'[2]5.2 Asset Age Profile'!N85+'[3]5.2 Asset Age Profile'!N85","v":0},{"$f":"'[2]5.2 Asset Age Profile'!O85+'[3]5.2 Asset Age Profile'!O85","v":0},{"$f":"'[2]5.2 Asset Age Profile'!P85+'[3]5.2 Asset Age Profile'!P85","v":0},{"$f":"'[2]5.2 Asset Age Profile'!Q85+'[3]5.2 Asset Age Profile'!Q85","v":0},{"$f":"'[2]5.2 Asset Age Profile'!R85+'[3]5.2 Asset Age Profile'!R85","v":0},{"$f":"'[2]5.2 Asset Age Profile'!S85+'[3]5.2 Asset Age Profile'!S85","v":0},{"$f":"'[2]5.2 Asset Age Profile'!T85+'[3]5.2 Asset Age Profile'!T85","v":0},{"$f":"'[2]5.2 Asset Age Profile'!U85+'[3]5.2 Asset Age Profile'!U85","v":0},{"$f":"'[2]5.2 Asset Age Profile'!V85+'[3]5.2 Asset Age Profile'!V85","v":0},{"$f":"'[2]5.2 Asset Age Profile'!W85+'[3]5.2 Asset Age Profile'!W85","v":0},{"$f":"'[2]5.2 Asset Age Profile'!X85+'[3]5.2 Asset Age Profile'!X85","v":0},{"$f":"'[2]5.2 Asset Age Profile'!Y85+'[3]5.2 Asset Age Profile'!Y85","v":0},{"$f":"'[2]5.2 Asset Age Profile'!Z85+'[3]5.2 Asset Age Profile'!Z85","v":0},{"$f":"'[2]5.2 Asset Age Profile'!AA85+'[3]5.2 Asset Age Profile'!AA85","v":0},{"$f":"'[2]5.2 Asset Age Profile'!AB85+'[3]5.2 Asset Age Profile'!AB85","v":0},{"$f":"'[2]5.2 Asset Age Profile'!AC85+'[3]5.2 Asset Age Profile'!AC85","v":0},{"$f":"'[2]5.2 Asset Age Profile'!AD85+'[3]5.2 Asset Age Profile'!AD85","v":0},{"$f":"'[2]5.2 Asset Age Profile'!AE85+'[3]5.2 Asset Age Profile'!AE85","v":0},{"$f":"'[2]5.2 Asset Age Profile'!AF85+'[3]5.2 Asset Age Profile'!AF85","v":0},{"$f":"'[2]5.2 Asset Age Profile'!AG85+'[3]5.2 Asset Age Profile'!AG85","v":0},{"$f":"'[2]5.2 Asset Age Profile'!AH85+'[3]5.2 Asset Age Profile'!AH85","v":0},{"$f":"'[2]5.2 Asset Age Profile'!AI85+'[3]5.2 Asset Age Profile'!AI85","v":0},{"$f":"'[2]5.2 Asset Age Profile'!AJ85+'[3]5.2 Asset Age Profile'!AJ85","v":0},{"$f":"'[2]5.2 Asset Age Profile'!AK85+'[3]5.2 Asset Age Profile'!AK85","v":0},{"$f":"'[2]5.2 Asset Age Profile'!AL85+'[3]5.2 Asset Age Profile'!AL85","v":0},{"$f":"'[2]5.2 Asset Age Profile'!AM85+'[3]5.2 Asset Age Profile'!AM85","v":0},{"$f":"'[2]5.2 Asset Age Profile'!AN85+'[3]5.2 Asset Age Profile'!AN85","v":0},{"$f":"'[2]5.2 Asset Age Profile'!AO85+'[3]5.2 Asset Age Profile'!AO85","v":0},{"$f":"'[2]5.2 Asset Age Profile'!AP85+'[3]5.2 Asset Age Profile'!AP85","v":0},{"$f":"'[2]5.2 Asset Age Profile'!AQ85+'[3]5.2 Asset Age Profile'!AQ85","v":0},{"$f":"'[2]5.2 Asset Age Profile'!AR85+'[3]5.2 Asset Age Profile'!AR85","v":0},{"$f":"'[2]5.2 Asset Age Profile'!AS85+'[3]5.2 Asset Age Profile'!AS85","v":0},{"$f":"'[2]5.2 Asset Age Profile'!AT85+'[3]5.2 Asset Age Profile'!AT85","v":0},{"$f":"'[2]5.2 Asset Age Profile'!AU85+'[3]5.2 Asset Age Profile'!AU85","v":0},{"$f":"'[2]5.2 Asset Age Profile'!AV85+'[3]5.2 Asset Age Profile'!AV85","v":0},{"$f":"'[2]5.2 Asset Age Profile'!AW85+'[3]5.2 Asset Age Profile'!AW85","v":0},{"$f":"'[2]5.2 Asset Age Profile'!AX85+'[3]5.2 Asset Age Profile'!AX85","v":0},{"$f":"'[2]5.2 Asset Age Profile'!AY85+'[3]5.2 Asset Age Profile'!AY85","v":0},{"$f":"'[2]5.2 Asset Age Profile'!AZ85+'[3]5.2 Asset Age Profile'!AZ85","v":0},{"$f":"'[2]5.2 Asset Age Profile'!BA85+'[3]5.2 Asset Age Profile'!BA85","v":0},{"$f":"'[2]5.2 Asset Age Profile'!BB85+'[3]5.2 Asset Age Profile'!BB85","v":0},{"$f":"'[2]5.2 Asset Age Profile'!BC85+'[3]5.2 Asset Age Profile'!BC85","v":0},{"$f":"'[2]5.2 Asset Age Profile'!BD85+'[3]5.2 Asset Age Profile'!BD85","v":0},{"$f":"'[2]5.2 Asset Age Profile'!BE85+'[3]5.2 Asset Age Profile'!BE85","v":0},{"$f":"'[2]5.2 Asset Age Profile'!BF85+'[3]5.2 Asset Age Profile'!BF85","v":0},{"$f":"'[2]5.2 Asset Age Profile'!BG85+'[3]5.2 Asset Age Profile'!BG85","v":0},{"$f":"'[2]5.2 Asset Age Profile'!BH85+'[3]5.2 Asset Age Profile'!BH85","v":0},{"$f":"'[2]5.2 Asset Age Profile'!BI85+'[3]5.2 Asset Age Profile'!BI85","v":0},{"$f":"'[2]5.2 Asset Age Profile'!BJ85+'[3]5.2 Asset Age Profile'!BJ85","v":0},{"$f":"'[2]5.2 Asset Age Profile'!BK85+'[3]5.2 Asset Age Profile'!BK85","v":0},{"$f":"'[2]5.2 Asset Age Profile'!BL85+'[3]5.2 Asset Age Profile'!BL85","v":0},{"$f":"'[2]5.2 Asset Age Profile'!BM85+'[3]5.2 Asset Age Profile'!BM85","v":0},{"$f":"'[2]5.2 Asset Age Profile'!BN85+'[3]5.2 Asset Age Profile'!BN85","v":0},{"$f":"'[2]5.2 Asset Age Profile'!BO85+'[3]5.2 Asset Age Profile'!BO85","v":0},{"$f":"'[2]5.2 Asset Age Profile'!BP85+'[3]5.2 Asset Age Profile'!BP85","v":0},{"$f":"'[2]5.2 Asset Age Profile'!BQ85+'[3]5.2 Asset Age Profile'!BQ85","v":0},{"$f":"'[2]5.2 Asset Age Profile'!BR85+'[3]5.2 Asset Age Profile'!BR85","v":0},{"$f":"'[2]5.2 Asset Age Profile'!BS85+'[3]5.2 Asset Age Profile'!BS85","v":0},{"$f":"'[2]5.2 Asset Age Profile'!BT85+'[3]5.2 Asset Age Profile'!BT85","v":0},{"$f":"'[2]5.2 Asset Age Profile'!BU85+'[3]5.2 Asset Age Profile'!BU85","v":0},{"$f":"'[2]5.2 Asset Age Profile'!BV85+'[3]5.2 Asset Age Profile'!BV85","v":0},{"$f":"'[2]5.2 Asset Age Profile'!BW85+'[3]5.2 Asset Age Profile'!BW85","v":0},{"$f":"'[2]5.2 Asset Age Profile'!BX85+'[3]5.2 Asset Age Profile'!BX85","v":0},{"$f":"'[2]5.2 Asset Age Profile'!BY85+'[3]5.2 Asset Age Profile'!BY85","v":0},{"$f":"'[2]5.2 Asset Age Profile'!BZ85+'[3]5.2 Asset Age Profile'!BZ85","v":0},{"$f":"'[2]5.2 Asset Age Profile'!CA85+'[3]5.2 Asset Age Profile'!CA85","v":0},{"$f":"'[2]5.2 Asset Age Profile'!CB85+'[3]5.2 Asset Age Profile'!CB85","v":0},{"$f":"'[2]5.2 Asset Age Profile'!CC85+'[3]5.2 Asset Age Profile'!CC85","v":0},{"$f":"'[2]5.2 Asset Age Profile'!CD85+'[3]5.2 Asset Age Profile'!CD85","v":0},{"$f":"'[2]5.2 Asset Age Profile'!CE85+'[3]5.2 Asset Age Profile'!CE85","v":0},{"$f":"'[2]5.2 Asset Age Profile'!CF85+'[3]5.2 Asset Age Profile'!CF85","v":0},{"$f":"'[2]5.2 Asset Age Profile'!CG85+'[3]5.2 Asset Age Profile'!CG85","v":0},{"$f":"'[2]5.2 Asset Age Profile'!CH85+'[3]5.2 Asset Age Profile'!CH85","v":0},{"$f":"'[2]5.2 Asset Age Profile'!CI85+'[3]5.2 Asset Age Profile'!CI85","v":0},{"$f":"'[2]5.2 Asset Age Profile'!CJ85+'[3]5.2 Asset Age Profile'!CJ85","v":0},{"$f":"'[2]5.2 Asset Age Profile'!CK85+'[3]5.2 Asset Age Profile'!CK85","v":0},{"$f":"'[2]5.2 Asset Age Profile'!CL85+'[3]5.2 Asset Age Profile'!CL85","v":0},{"$f":"'[2]5.2 Asset Age Profile'!CM85+'[3]5.2 Asset Age Profile'!CM85","v":0},{"$f":"'[2]5.2 Asset Age Profile'!CN85+'[3]5.2 Asset Age Profile'!CN85","v":0},{"$f":"'[2]5.2 Asset Age Profile'!CO85+'[3]5.2 Asset Age Profile'!CO85","v":0},{"$f":"'[2]5.2 Asset Age Profile'!CP85+'[3]5.2 Asset Age Profile'!CP85","v":0},{"$f":"'[2]5.2 Asset Age Profile'!CQ85+'[3]5.2 Asset Age Profile'!CQ85","v":0},{"$f":"'[2]5.2 Asset Age Profile'!CR85+'[3]5.2 Asset Age Profile'!CR85","v":0},{"$f":"'[2]5.2 Asset Age Profile'!CS85+'[3]5.2 Asset Age Profile'!CS85","v":0},{"$f":"'[2]5.2 Asset Age Profile'!CT85+'[3]5.2 Asset Age Profile'!CT85","v":0},{"$f":"'[2]5.2 Asset Age Profile'!CU85+'[3]5.2 Asset Age Profile'!CU85","v":0},{"$f":"'[2]5.2 Asset Age Profile'!CV85+'[3]5.2 Asset Age Profile'!CV85","v":0},{"$f":"'[2]5.2 Asset Age Profile'!CW85+'[3]5.2 Asset Age Profile'!CW85","v":0},{"$f":"'[2]5.2 Asset Age Profile'!CX85+'[3]5.2 Asset Age Profile'!CX85","v":0},{"$f":"'[2]5.2 Asset Age Profile'!CY85+'[3]5.2 Asset Age Profile'!CY85","v":0},{"$f":"'[2]5.2 Asset Age Profile'!CZ85+'[3]5.2 Asset Age Profile'!CZ85","v":0},{"$f":"'[2]5.2 Asset Age Profile'!DA85+'[3]5.2 Asset Age Profile'!DA85","v":0},{"$f":"'[2]5.2 Asset Age Profile'!DB85+'[3]5.2 Asset Age Profile'!DB85","v":0},{"$f":"'[2]5.2 Asset Age Profile'!DC85+'[3]5.2 Asset Age Profile'!DC85","v":0},{"$f":"'[2]5.2 Asset Age Profile'!DD85+'[3]5.2 Asset Age Profile'!DD85","v":0},{"$f":"'[2]5.2 Asset Age Profile'!DE85+'[3]5.2 Asset Age Profile'!DE85","v":0},{"$f":"'[2]5.2 Asset Age Profile'!DF85+'[3]5.2 Asset Age Profile'!DF85","v":0},{"$f":"'[2]5.2 Asset Age Profile'!DG85+'[3]5.2 Asset Age Profile'!DG85","v":0},{"$f":"'[2]5.2 Asset Age Profile'!DH85+'[3]5.2 Asset Age Profile'!DH85","v":0},{"$f":"'[2]5.2 Asset Age Profile'!DI85+'[3]5.2 Asset Age Profile'!DI85","v":0},{"$f":"'[2]5.2 Asset Age Profile'!DJ85+'[3]5.2 Asset Age Profile'!DJ85","v":0},{"$f":"'[2]5.2 Asset Age Profile'!DK85+'[3]5.2 Asset Age Profile'!DK85","v":0},{"$f":"'[2]5.2 Asset Age Profile'!DL85+'[3]5.2 Asset Age Profile'!DL85","v":0},{"$f":"'[2]5.2 Asset Age Profile'!DM85+'[3]5.2 Asset Age Profile'!DM85","v":0},{"$f":"'[2]5.2 Asset Age Profile'!DN85+'[3]5.2 Asset Age Profile'!DN85","v":0},{"$f":"'[2]5.2 Asset Age Profile'!DO85+'[3]5.2 Asset Age Profile'!DO85","v":0},{"$f":"'[2]5.2 Asset Age Profile'!DP85+'[3]5.2 Asset Age Profile'!DP85","v":0},{"$f":"'[2]5.2 Asset Age Profile'!DQ85+'[3]5.2 Asset Age Profile'!DQ85","v":0},{"$f":"'[2]5.2 Asset Age Profile'!DR85+'[3]5.2 Asset Age Profile'!DR85","v":0},{"$f":"'[2]5.2 Asset Age Profile'!DS85+'[3]5.2 Asset Age Profile'!DS85","v":0},{"$f":"'[2]5.2 Asset Age Profile'!DT85+'[3]5.2 Asset Age Profile'!DT85","v":0},{"$f":"'[2]5.2 Asset Age Profile'!DU85+'[3]5.2 Asset Age Profile'!DU85","v":0},{"$f":"'[2]5.2 Asset Age Profile'!DV85+'[3]5.2 Asset Age Profile'!DV85","v":0},{"$f":"'[2]5.2 Asset Age Profile'!DW85+'[3]5.2 Asset Age Profile'!DW85","v":0},{"$f":"'[2]5.2 Asset Age Profile'!DX85+'[3]5.2 Asset Age Profile'!DX85","v":0},{"$f":"'[2]5.2 Asset Age Profile'!DY85+'[3]5.2 Asset Age Profile'!DY85","v":0},{"$f":"'[2]5.2 Asset Age Profile'!DZ85+'[3]5.2 Asset Age Profile'!DZ85","v":0},{"$f":"'[2]5.2 Asset Age Profile'!EA85+'[3]5.2 Asset Age Profile'!EA85","v":0},{"$f":"'[2]5.2 Asset Age Profile'!EB85+'[3]5.2 Asset Age Profile'!EB85","v":0},{"$f":"'[2]5.2 Asset Age Profile'!EC85+'[3]5.2 Asset Age Profile'!EC85","v":0},{"$f":"'[2]5.2 Asset Age Profile'!ED85+'[3]5.2 Asset Age Profile'!ED85","v":0},{"$f":"'[2]5.2 Asset Age Profile'!EE85+'[3]5.2 Asset Age Profile'!EE85","v":0},{"$f":"'[2]5.2 Asset Age Profile'!EF85+'[3]5.2 Asset Age Profile'!EF85","v":0},{"$f":"'[2]5.2 Asset Age Profile'!EG85+'[3]5.2 Asset Age Profile'!EG85","v":0},{"$f":"'[2]5.2 Asset Age Profile'!EH85+'[3]5.2 Asset Age Profile'!EH85","v":0},{"$f":"'[2]5.2 Asset Age Profile'!EI85+'[3]5.2 Asset Age Profile'!EI85","v":0},{"$f":"'[2]5.2 Asset Age Profile'!EJ85+'[3]5.2 Asset Age Profile'!EJ85","v":0}]
["ED_ASS521_00076",null,"Ground Outdoor / Indoor Chamber Mounted; ˂  22 kV ;  < = 60 kVA ; Multiple Phase",null,null,null,null,null,null,null,null,null,null,{"$f":"'[2]5.2 Asset Age Profile'!N86+'[3]5.2 Asset Age Profile'!N86","v":0},{"$f":"'[2]5.2 Asset Age Profile'!O86+'[3]5.2 Asset Age Profile'!O86","v":0},{"$f":"'[2]5.2 Asset Age Profile'!P86+'[3]5.2 Asset Age Profile'!P86","v":0},{"$f":"'[2]5.2 Asset Age Profile'!Q86+'[3]5.2 Asset Age Profile'!Q86","v":0},{"$f":"'[2]5.2 Asset Age Profile'!R86+'[3]5.2 Asset Age Profile'!R86","v":0},{"$f":"'[2]5.2 Asset Age Profile'!S86+'[3]5.2 Asset Age Profile'!S86","v":0},{"$f":"'[2]5.2 Asset Age Profile'!T86+'[3]5.2 Asset Age Profile'!T86","v":0},{"$f":"'[2]5.2 Asset Age Profile'!U86+'[3]5.2 Asset Age Profile'!U86","v":0},{"$f":"'[2]5.2 Asset Age Profile'!V86+'[3]5.2 Asset Age Profile'!V86","v":0},{"$f":"'[2]5.2 Asset Age Profile'!W86+'[3]5.2 Asset Age Profile'!W86","v":0},{"$f":"'[2]5.2 Asset Age Profile'!X86+'[3]5.2 Asset Age Profile'!X86","v":0},{"$f":"'[2]5.2 Asset Age Profile'!Y86+'[3]5.2 Asset Age Profile'!Y86","v":0},{"$f":"'[2]5.2 Asset Age Profile'!Z86+'[3]5.2 Asset Age Profile'!Z86","v":0},{"$f":"'[2]5.2 Asset Age Profile'!AA86+'[3]5.2 Asset Age Profile'!AA86","v":0},{"$f":"'[2]5.2 Asset Age Profile'!AB86+'[3]5.2 Asset Age Profile'!AB86","v":0},{"$f":"'[2]5.2 Asset Age Profile'!AC86+'[3]5.2 Asset Age Profile'!AC86","v":0},{"$f":"'[2]5.2 Asset Age Profile'!AD86+'[3]5.2 Asset Age Profile'!AD86","v":0},{"$f":"'[2]5.2 Asset Age Profile'!AE86+'[3]5.2 Asset Age Profile'!AE86","v":0},{"$f":"'[2]5.2 Asset Age Profile'!AF86+'[3]5.2 Asset Age Profile'!AF86","v":0},{"$f":"'[2]5.2 Asset Age Profile'!AG86+'[3]5.2 Asset Age Profile'!AG86","v":0},{"$f":"'[2]5.2 Asset Age Profile'!AH86+'[3]5.2 Asset Age Profile'!AH86","v":0},{"$f":"'[2]5.2 Asset Age Profile'!AI86+'[3]5.2 Asset Age Profile'!AI86","v":0},{"$f":"'[2]5.2 Asset Age Profile'!AJ86+'[3]5.2 Asset Age Profile'!AJ86","v":0},{"$f":"'[2]5.2 Asset Age Profile'!AK86+'[3]5.2 Asset Age Profile'!AK86","v":0},{"$f":"'[2]5.2 Asset Age Profile'!AL86+'[3]5.2 Asset Age Profile'!AL86","v":0},{"$f":"'[2]5.2 Asset Age Profile'!AM86+'[3]5.2 Asset Age Profile'!AM86","v":0},{"$f":"'[2]5.2 Asset Age Profile'!AN86+'[3]5.2 Asset Age Profile'!AN86","v":0},{"$f":"'[2]5.2 Asset Age Profile'!AO86+'[3]5.2 Asset Age Profile'!AO86","v":0},{"$f":"'[2]5.2 Asset Age Profile'!AP86+'[3]5.2 Asset Age Profile'!AP86","v":0},{"$f":"'[2]5.2 Asset Age Profile'!AQ86+'[3]5.2 Asset Age Profile'!AQ86","v":0},{"$f":"'[2]5.2 Asset Age Profile'!AR86+'[3]5.2 Asset Age Profile'!AR86","v":0},{"$f":"'[2]5.2 Asset Age Profile'!AS86+'[3]5.2 Asset Age Profile'!AS86","v":0},{"$f":"'[2]5.2 Asset Age Profile'!AT86+'[3]5.2 Asset Age Profile'!AT86","v":0},{"$f":"'[2]5.2 Asset Age Profile'!AU86+'[3]5.2 Asset Age Profile'!AU86","v":0},{"$f":"'[2]5.2 Asset Age Profile'!AV86+'[3]5.2 Asset Age Profile'!AV86","v":0},{"$f":"'[2]5.2 Asset Age Profile'!AW86+'[3]5.2 Asset Age Profile'!AW86","v":0},{"$f":"'[2]5.2 Asset Age Profile'!AX86+'[3]5.2 Asset Age Profile'!AX86","v":0},{"$f":"'[2]5.2 Asset Age Profile'!AY86+'[3]5.2 Asset Age Profile'!AY86","v":0},{"$f":"'[2]5.2 Asset Age Profile'!AZ86+'[3]5.2 Asset Age Profile'!AZ86","v":0},{"$f":"'[2]5.2 Asset Age Profile'!BA86+'[3]5.2 Asset Age Profile'!BA86","v":0},{"$f":"'[2]5.2 Asset Age Profile'!BB86+'[3]5.2 Asset Age Profile'!BB86","v":0},{"$f":"'[2]5.2 Asset Age Profile'!BC86+'[3]5.2 Asset Age Profile'!BC86","v":0},{"$f":"'[2]5.2 Asset Age Profile'!BD86+'[3]5.2 Asset Age Profile'!BD86","v":0},{"$f":"'[2]5.2 Asset Age Profile'!BE86+'[3]5.2 Asset Age Profile'!BE86","v":0},{"$f":"'[2]5.2 Asset Age Profile'!BF86+'[3]5.2 Asset Age Profile'!BF86","v":0},{"$f":"'[2]5.2 Asset Age Profile'!BG86+'[3]5.2 Asset Age Profile'!BG86","v":0},{"$f":"'[2]5.2 Asset Age Profile'!BH86+'[3]5.2 Asset Age Profile'!BH86","v":0},{"$f":"'[2]5.2 Asset Age Profile'!BI86+'[3]5.2 Asset Age Profile'!BI86","v":0},{"$f":"'[2]5.2 Asset Age Profile'!BJ86+'[3]5.2 Asset Age Profile'!BJ86","v":0},{"$f":"'[2]5.2 Asset Age Profile'!BK86+'[3]5.2 Asset Age Profile'!BK86","v":0},{"$f":"'[2]5.2 Asset Age Profile'!BL86+'[3]5.2 Asset Age Profile'!BL86","v":0},{"$f":"'[2]5.2 Asset Age Profile'!BM86+'[3]5.2 Asset Age Profile'!BM86","v":0},{"$f":"'[2]5.2 Asset Age Profile'!BN86+'[3]5.2 Asset Age Profile'!BN86","v":0},{"$f":"'[2]5.2 Asset Age Profile'!BO86+'[3]5.2 Asset Age Profile'!BO86","v":0},{"$f":"'[2]5.2 Asset Age Profile'!BP86+'[3]5.2 Asset Age Profile'!BP86","v":0},{"$f":"'[2]5.2 Asset Age Profile'!BQ86+'[3]5.2 Asset Age Profile'!BQ86","v":0},{"$f":"'[2]5.2 Asset Age Profile'!BR86+'[3]5.2 Asset Age Profile'!BR86","v":0},{"$f":"'[2]5.2 Asset Age Profile'!BS86+'[3]5.2 Asset Age Profile'!BS86","v":0},{"$f":"'[2]5.2 Asset Age Profile'!BT86+'[3]5.2 Asset Age Profile'!BT86","v":0},{"$f":"'[2]5.2 Asset Age Profile'!BU86+'[3]5.2 Asset Age Profile'!BU86","v":0},{"$f":"'[2]5.2 Asset Age Profile'!BV86+'[3]5.2 Asset Age Profile'!BV86","v":0},{"$f":"'[2]5.2 Asset Age Profile'!BW86+'[3]5.2 Asset Age Profile'!BW86","v":0},{"$f":"'[2]5.2 Asset Age Profile'!BX86+'[3]5.2 Asset Age Profile'!BX86","v":0},{"$f":"'[2]5.2 Asset Age Profile'!BY86+'[3]5.2 Asset Age Profile'!BY86","v":0},{"$f":"'[2]5.2 Asset Age Profile'!BZ86+'[3]5.2 Asset Age Profile'!BZ86","v":0},{"$f":"'[2]5.2 Asset Age Profile'!CA86+'[3]5.2 Asset Age Profile'!CA86","v":0},{"$f":"'[2]5.2 Asset Age Profile'!CB86+'[3]5.2 Asset Age Profile'!CB86","v":0},{"$f":"'[2]5.2 Asset Age Profile'!CC86+'[3]5.2 Asset Age Profile'!CC86","v":0},{"$f":"'[2]5.2 Asset Age Profile'!CD86+'[3]5.2 Asset Age Profile'!CD86","v":0},{"$f":"'[2]5.2 Asset Age Profile'!CE86+'[3]5.2 Asset Age Profile'!CE86","v":0},{"$f":"'[2]5.2 Asset Age Profile'!CF86+'[3]5.2 Asset Age Profile'!CF86","v":0},{"$f":"'[2]5.2 Asset Age Profile'!CG86+'[3]5.2 Asset Age Profile'!CG86","v":0},{"$f":"'[2]5.2 Asset Age Profile'!CH86+'[3]5.2 Asset Age Profile'!CH86","v":0},{"$f":"'[2]5.2 Asset Age Profile'!CI86+'[3]5.2 Asset Age Profile'!CI86","v":0},{"$f":"'[2]5.2 Asset Age Profile'!CJ86+'[3]5.2 Asset Age Profile'!CJ86","v":0},{"$f":"'[2]5.2 Asset Age Profile'!CK86+'[3]5.2 Asset Age Profile'!CK86","v":0},{"$f":"'[2]5.2 Asset Age Profile'!CL86+'[3]5.2 Asset Age Profile'!CL86","v":0},{"$f":"'[2]5.2 Asset Age Profile'!CM86+'[3]5.2 Asset Age Profile'!CM86","v":0},{"$f":"'[2]5.2 Asset Age Profile'!CN86+'[3]5.2 Asset Age Profile'!CN86","v":0},{"$f":"'[2]5.2 Asset Age Profile'!CO86+'[3]5.2 Asset Age Profile'!CO86","v":0},{"$f":"'[2]5.2 Asset Age Profile'!CP86+'[3]5.2 Asset Age Profile'!CP86","v":0},{"$f":"'[2]5.2 Asset Age Profile'!CQ86+'[3]5.2 Asset Age Profile'!CQ86","v":0},{"$f":"'[2]5.2 Asset Age Profile'!CR86+'[3]5.2 Asset Age Profile'!CR86","v":0},{"$f":"'[2]5.2 Asset Age Profile'!CS86+'[3]5.2 Asset Age Profile'!CS86","v":0},{"$f":"'[2]5.2 Asset Age Profile'!CT86+'[3]5.2 Asset Age Profile'!CT86","v":0},{"$f":"'[2]5.2 Asset Age Profile'!CU86+'[3]5.2 Asset Age Profile'!CU86","v":0},{"$f":"'[2]5.2 Asset Age Profile'!CV86+'[3]5.2 Asset Age Profile'!CV86","v":0},{"$f":"'[2]5.2 Asset Age Profile'!CW86+'[3]5.2 Asset Age Profile'!CW86","v":0},{"$f":"'[2]5.2 Asset Age Profile'!CX86+'[3]5.2 Asset Age Profile'!CX86","v":0},{"$f":"'[2]5.2 Asset Age Profile'!CY86+'[3]5.2 Asset Age Profile'!CY86","v":0},{"$f":"'[2]5.2 Asset Age Profile'!CZ86+'[3]5.2 Asset Age Profile'!CZ86","v":0},{"$f":"'[2]5.2 Asset Age Profile'!DA86+'[3]5.2 Asset Age Profile'!DA86","v":0},{"$f":"'[2]5.2 Asset Age Profile'!DB86+'[3]5.2 Asset Age Profile'!DB86","v":0},{"$f":"'[2]5.2 Asset Age Profile'!DC86+'[3]5.2 Asset Age Profile'!DC86","v":0},{"$f":"'[2]5.2 Asset Age Profile'!DD86+'[3]5.2 Asset Age Profile'!DD86","v":0},{"$f":"'[2]5.2 Asset Age Profile'!DE86+'[3]5.2 Asset Age Profile'!DE86","v":0},{"$f":"'[2]5.2 Asset Age Profile'!DF86+'[3]5.2 Asset Age Profile'!DF86","v":0},{"$f":"'[2]5.2 Asset Age Profile'!DG86+'[3]5.2 Asset Age Profile'!DG86","v":0},{"$f":"'[2]5.2 Asset Age Profile'!DH86+'[3]5.2 Asset Age Profile'!DH86","v":0},{"$f":"'[2]5.2 Asset Age Profile'!DI86+'[3]5.2 Asset Age Profile'!DI86","v":0},{"$f":"'[2]5.2 Asset Age Profile'!DJ86+'[3]5.2 Asset Age Profile'!DJ86","v":0},{"$f":"'[2]5.2 Asset Age Profile'!DK86+'[3]5.2 Asset Age Profile'!DK86","v":0},{"$f":"'[2]5.2 Asset Age Profile'!DL86+'[3]5.2 Asset Age Profile'!DL86","v":0},{"$f":"'[2]5.2 Asset Age Profile'!DM86+'[3]5.2 Asset Age Profile'!DM86","v":0},{"$f":"'[2]5.2 Asset Age Profile'!DN86+'[3]5.2 Asset Age Profile'!DN86","v":0},{"$f":"'[2]5.2 Asset Age Profile'!DO86+'[3]5.2 Asset Age Profile'!DO86","v":0},{"$f":"'[2]5.2 Asset Age Profile'!DP86+'[3]5.2 Asset Age Profile'!DP86","v":0},{"$f":"'[2]5.2 Asset Age Profile'!DQ86+'[3]5.2 Asset Age Profile'!DQ86","v":0},{"$f":"'[2]5.2 Asset Age Profile'!DR86+'[3]5.2 Asset Age Profile'!DR86","v":0},{"$f":"'[2]5.2 Asset Age Profile'!DS86+'[3]5.2 Asset Age Profile'!DS86","v":0},{"$f":"'[2]5.2 Asset Age Profile'!DT86+'[3]5.2 Asset Age Profile'!DT86","v":0},{"$f":"'[2]5.2 Asset Age Profile'!DU86+'[3]5.2 Asset Age Profile'!DU86","v":0},{"$f":"'[2]5.2 Asset Age Profile'!DV86+'[3]5.2 Asset Age Profile'!DV86","v":0},{"$f":"'[2]5.2 Asset Age Profile'!DW86+'[3]5.2 Asset Age Profile'!DW86","v":0},{"$f":"'[2]5.2 Asset Age Profile'!DX86+'[3]5.2 Asset Age Profile'!DX86","v":0},{"$f":"'[2]5.2 Asset Age Profile'!DY86+'[3]5.2 Asset Age Profile'!DY86","v":0},{"$f":"'[2]5.2 Asset Age Profile'!DZ86+'[3]5.2 Asset Age Profile'!DZ86","v":0},{"$f":"'[2]5.2 Asset Age Profile'!EA86+'[3]5.2 Asset Age Profile'!EA86","v":0},{"$f":"'[2]5.2 Asset Age Profile'!EB86+'[3]5.2 Asset Age Profile'!EB86","v":0},{"$f":"'[2]5.2 Asset Age Profile'!EC86+'[3]5.2 Asset Age Profile'!EC86","v":0},{"$f":"'[2]5.2 Asset Age Profile'!ED86+'[3]5.2 Asset Age Profile'!ED86","v":0},{"$f":"'[2]5.2 Asset Age Profile'!EE86+'[3]5.2 Asset Age Profile'!EE86","v":0},{"$f":"'[2]5.2 Asset Age Profile'!EF86+'[3]5.2 Asset Age Profile'!EF86","v":0},{"$f":"'[2]5.2 Asset Age Profile'!EG86+'[3]5.2 Asset Age Profile'!EG86","v":0},{"$f":"'[2]5.2 Asset Age Profile'!EH86+'[3]5.2 Asset Age Profile'!EH86","v":0},{"$f":"'[2]5.2 Asset Age Profile'!EI86+'[3]5.2 Asset Age Profile'!EI86","v":0},{"$f":"'[2]5.2 Asset Age Profile'!EJ86+'[3]5.2 Asset Age Profile'!EJ86","v":0}]
["ED_ASS521_00077",null,"Ground Outdoor / Indoor Chamber Mounted; ˂  22 kV ;  > 60 kVA  and < = 600 kVA ; Multiple Phase",null,null,null,null,null,null,null,null,null,null,{"$f":"'[2]5.2 Asset Age Profile'!N87+'[3]5.2 Asset Age Profile'!N87","v":50},{"$f":"'[2]5.2 Asset Age Profile'!O87+'[3]5.2 Asset Age Profile'!O87","v":0},{"$f":"'[2]5.2 Asset Age Profile'!P87+'[3]5.2 Asset Age Profile'!P87","v":0},{"$f":"'[2]5.2 Asset Age Profile'!Q87+'[3]5.2 Asset Age Profile'!Q87","v":0},{"$f":"'[2]5.2 Asset Age Profile'!R87+'[3]5.2 Asset Age Profile'!R87","v":0},{"$f":"'[2]5.2 Asset Age Profile'!S87+'[3]5.2 Asset Age Profile'!S87","v":0},{"$f":"'[2]5.2 Asset Age Profile'!T87+'[3]5.2 Asset Age Profile'!T87","v":0},{"$f":"'[2]5.2 Asset Age Profile'!U87+'[3]5.2 Asset Age Profile'!U87","v":0},{"$f":"'[2]5.2 Asset Age Profile'!V87+'[3]5.2 Asset Age Profile'!V87","v":0},{"$f":"'[2]5.2 Asset Age Profile'!W87+'[3]5.2 Asset Age Profile'!W87","v":0},{"$f":"'[2]5.2 Asset Age Profile'!X87+'[3]5.2 Asset Age Profile'!X87","v":0},{"$f":"'[2]5.2 Asset Age Profile'!Y87+'[3]5.2 Asset Age Profile'!Y87","v":13},{"$f":"'[2]5.2 Asset Age Profile'!Z87+'[3]5.2 Asset Age Profile'!Z87","v":0},{"$f":"'[2]5.2 Asset Age Profile'!AA87+'[3]5.2 Asset Age Profile'!AA87","v":0},{"$f":"'[2]5.2 Asset Age Profile'!AB87+'[3]5.2 Asset Age Profile'!AB87","v":0},{"$f":"'[2]5.2 Asset Age Profile'!AC87+'[3]5.2 Asset Age Profile'!AC87","v":0},{"$f":"'[2]5.2 Asset Age Profile'!AD87+'[3]5.2 Asset Age Profile'!AD87","v":0},{"$f":"'[2]5.2 Asset Age Profile'!AE87+'[3]5.2 Asset Age Profile'!AE87","v":0},{"$f":"'[2]5.2 Asset Age Profile'!AF87+'[3]5.2 Asset Age Profile'!AF87","v":0},{"$f":"'[2]5.2 Asset Age Profile'!AG87+'[3]5.2 Asset Age Profile'!AG87","v":0},{"$f":"'[2]5.2 Asset Age Profile'!AH87+'[3]5.2 Asset Age Profile'!AH87","v":0},{"$f":"'[2]5.2 Asset Age Profile'!AI87+'[3]5.2 Asset Age Profile'!AI87","v":0},{"$f":"'[2]5.2 Asset Age Profile'!AJ87+'[3]5.2 Asset Age Profile'!AJ87","v":1},{"$f":"'[2]5.2 Asset Age Profile'!AK87+'[3]5.2 Asset Age Profile'!AK87","v":1},{"$f":"'[2]5.2 Asset Age Profile'!AL87+'[3]5.2 Asset Age Profile'!AL87","v":2},{"$f":"'[2]5.2 Asset Age Profile'!AM87+'[3]5.2 Asset Age Profile'!AM87","v":1},{"$f":"'[2]5.2 Asset Age Profile'!AN87+'[3]5.2 Asset Age Profile'!AN87","v":3},{"$f":"'[2]5.2 Asset Age Profile'!AO87+'[3]5.2 Asset Age Profile'!AO87","v":0},{"$f":"'[2]5.2 Asset Age Profile'!AP87+'[3]5.2 Asset Age Profile'!AP87","v":1},{"$f":"'[2]5.2 Asset Age Profile'!AQ87+'[3]5.2 Asset Age Profile'!AQ87","v":0},{"$f":"'[2]5.2 Asset Age Profile'!AR87+'[3]5.2 Asset Age Profile'!AR87","v":4},{"$f":"'[2]5.2 Asset Age Profile'!AS87+'[3]5.2 Asset Age Profile'!AS87","v":2},{"$f":"'[2]5.2 Asset Age Profile'!AT87+'[3]5.2 Asset Age Profile'!AT87","v":3},{"$f":"'[2]5.2 Asset Age Profile'!AU87+'[3]5.2 Asset Age Profile'!AU87","v":0},{"$f":"'[2]5.2 Asset Age Profile'!AV87+'[3]5.2 Asset Age Profile'!AV87","v":4},{"$f":"'[2]5.2 Asset Age Profile'!AW87+'[3]5.2 Asset Age Profile'!AW87","v":0},{"$f":"'[2]5.2 Asset Age Profile'!AX87+'[3]5.2 Asset Age Profile'!AX87","v":6},{"$f":"'[2]5.2 Asset Age Profile'!AY87+'[3]5.2 Asset Age Profile'!AY87","v":0},{"$f":"'[2]5.2 Asset Age Profile'!AZ87+'[3]5.2 Asset Age Profile'!AZ87","v":0},{"$f":"'[2]5.2 Asset Age Profile'!BA87+'[3]5.2 Asset Age Profile'!BA87","v":3},{"$f":"'[2]5.2 Asset Age Profile'!BB87+'[3]5.2 Asset Age Profile'!BB87","v":3},{"$f":"'[2]5.2 Asset Age Profile'!BC87+'[3]5.2 Asset Age Profile'!BC87","v":3},{"$f":"'[2]5.2 Asset Age Profile'!BD87+'[3]5.2 Asset Age Profile'!BD87","v":2},{"$f":"'[2]5.2 Asset Age Profile'!BE87+'[3]5.2 Asset Age Profile'!BE87","v":4},{"$f":"'[2]5.2 Asset Age Profile'!BF87+'[3]5.2 Asset Age Profile'!BF87","v":5},{"$f":"'[2]5.2 Asset Age Profile'!BG87+'[3]5.2 Asset Age Profile'!BG87","v":7},{"$f":"'[2]5.2 Asset Age Profile'!BH87+'[3]5.2 Asset Age Profile'!BH87","v":11},{"$f":"'[2]5.2 Asset Age Profile'!BI87+'[3]5.2 Asset Age Profile'!BI87","v":16},{"$f":"'[2]5.2 Asset Age Profile'!BJ87+'[3]5.2 Asset Age Profile'!BJ87","v":6},{"$f":"'[2]5.2 Asset Age Profile'!BK87+'[3]5.2 Asset Age Profile'!BK87","v":10},{"$f":"'[2]5.2 Asset Age Profile'!BL87+'[3]5.2 Asset Age Profile'!BL87","v":22},{"$f":"'[2]5.2 Asset Age Profile'!BM87+'[3]5.2 Asset Age Profile'!BM87","v":11},{"$f":"'[2]5.2 Asset Age Profile'!BN87+'[3]5.2 Asset Age Profile'!BN87","v":15},{"$f":"'[2]5.2 Asset Age Profile'!BO87+'[3]5.2 Asset Age Profile'!BO87","v":11},{"$f":"'[2]5.2 Asset Age Profile'!BP87+'[3]5.2 Asset Age Profile'!BP87","v":4},{"$f":"'[2]5.2 Asset Age Profile'!BQ87+'[3]5.2 Asset Age Profile'!BQ87","v":6},{"$f":"'[2]5.2 Asset Age Profile'!BR87+'[3]5.2 Asset Age Profile'!BR87","v":5},{"$f":"'[2]5.2 Asset Age Profile'!BS87+'[3]5.2 Asset Age Profile'!BS87","v":5},{"$f":"'[2]5.2 Asset Age Profile'!BT87+'[3]5.2 Asset Age Profile'!BT87","v":3},{"$f":"'[2]5.2 Asset Age Profile'!BU87+'[3]5.2 Asset Age Profile'!BU87","v":2},{"$f":"'[2]5.2 Asset Age Profile'!BV87+'[3]5.2 Asset Age Profile'!BV87","v":2},{"$f":"'[2]5.2 Asset Age Profile'!BW87+'[3]5.2 Asset Age Profile'!BW87","v":2},{"$f":"'[2]5.2 Asset Age Profile'!BX87+'[3]5.2 Asset Age Profile'!BX87","v":4},{"$f":"'[2]5.2 Asset Age Profile'!BY87+'[3]5.2 Asset Age Profile'!BY87","v":3},{"$f":"'[2]5.2 Asset Age Profile'!BZ87+'[3]5.2 Asset Age Profile'!BZ87","v":5},{"$f":"'[2]5.2 Asset Age Profile'!CA87+'[3]5.2 Asset Age Profile'!CA87","v":13},{"$f":"'[2]5.2 Asset Age Profile'!CB87+'[3]5.2 Asset Age Profile'!CB87","v":3},{"$f":"'[2]5.2 Asset Age Profile'!CC87+'[3]5.2 Asset Age Profile'!CC87","v":2},{"$f":"'[2]5.2 Asset Age Profile'!CD87+'[3]5.2 Asset Age Profile'!CD87","v":6},{"$f":"'[2]5.2 Asset Age Profile'!CE87+'[3]5.2 Asset Age Profile'!CE87","v":3},{"$f":"'[2]5.2 Asset Age Profile'!CF87+'[3]5.2 Asset Age Profile'!CF87","v":2},{"$f":"'[2]5.2 Asset Age Profile'!CG87+'[3]5.2 Asset Age Profile'!CG87","v":5},{"$f":"'[2]5.2 Asset Age Profile'!CH87+'[3]5.2 Asset Age Profile'!CH87","v":3},{"$f":"'[2]5.2 Asset Age Profile'!CI87+'[3]5.2 Asset Age Profile'!CI87","v":1},{"$f":"'[2]5.2 Asset Age Profile'!CJ87+'[3]5.2 Asset Age Profile'!CJ87","v":1},{"$f":"'[2]5.2 Asset Age Profile'!CK87+'[3]5.2 Asset Age Profile'!CK87","v":0},{"$f":"'[2]5.2 Asset Age Profile'!CL87+'[3]5.2 Asset Age Profile'!CL87","v":0},{"$f":"'[2]5.2 Asset Age Profile'!CM87+'[3]5.2 Asset Age Profile'!CM87","v":0},{"$f":"'[2]5.2 Asset Age Profile'!CN87+'[3]5.2 Asset Age Profile'!CN87","v":0},{"$f":"'[2]5.2 Asset Age Profile'!CO87+'[3]5.2 Asset Age Profile'!CO87","v":0},{"$f":"'[2]5.2 Asset Age Profile'!CP87+'[3]5.2 Asset Age Profile'!CP87","v":0},{"$f":"'[2]5.2 Asset Age Profile'!CQ87+'[3]5.2 Asset Age Profile'!CQ87","v":0},{"$f":"'[2]5.2 Asset Age Profile'!CR87+'[3]5.2 Asset Age Profile'!CR87","v":0},{"$f":"'[2]5.2 Asset Age Profile'!CS87+'[3]5.2 Asset Age Profile'!CS87","v":0},{"$f":"'[2]5.2 Asset Age Profile'!CT87+'[3]5.2 Asset Age Profile'!CT87","v":0},{"$f":"'[2]5.2 Asset Age Profile'!CU87+'[3]5.2 Asset Age Profile'!CU87","v":0},{"$f":"'[2]5.2 Asset Age Profile'!CV87+'[3]5.2 Asset Age Profile'!CV87","v":0},{"$f":"'[2]5.2 Asset Age Profile'!CW87+'[3]5.2 Asset Age Profile'!CW87","v":0},{"$f":"'[2]5.2 Asset Age Profile'!CX87+'[3]5.2 Asset Age Profile'!CX87","v":0},{"$f":"'[2]5.2 Asset Age Profile'!CY87+'[3]5.2 Asset Age Profile'!CY87","v":0},{"$f":"'[2]5.2 Asset Age Profile'!CZ87+'[3]5.2 Asset Age Profile'!CZ87","v":0},{"$f":"'[2]5.2 Asset Age Profile'!DA87+'[3]5.2 Asset Age Profile'!DA87","v":0},{"$f":"'[2]5.2 Asset Age Profile'!DB87+'[3]5.2 Asset Age Profile'!DB87","v":0},{"$f":"'[2]5.2 Asset Age Profile'!DC87+'[3]5.2 Asset Age Profile'!DC87","v":0},{"$f":"'[2]5.2 Asset Age Profile'!DD87+'[3]5.2 Asset Age Profile'!DD87","v":0},{"$f":"'[2]5.2 Asset Age Profile'!DE87+'[3]5.2 Asset Age Profile'!DE87","v":1},{"$f":"'[2]5.2 Asset Age Profile'!DF87+'[3]5.2 Asset Age Profile'!DF87","v":0},{"$f":"'[2]5.2 Asset Age Profile'!DG87+'[3]5.2 Asset Age Profile'!DG87","v":0},{"$f":"'[2]5.2 Asset Age Profile'!DH87+'[3]5.2 Asset Age Profile'!DH87","v":0},{"$f":"'[2]5.2 Asset Age Profile'!DI87+'[3]5.2 Asset Age Profile'!DI87","v":0},{"$f":"'[2]5.2 Asset Age Profile'!DJ87+'[3]5.2 Asset Age Profile'!DJ87","v":0},{"$f":"'[2]5.2 Asset Age Profile'!DK87+'[3]5.2 Asset Age Profile'!DK87","v":0},{"$f":"'[2]5.2 Asset Age Profile'!DL87+'[3]5.2 Asset Age Profile'!DL87","v":0},{"$f":"'[2]5.2 Asset Age Profile'!DM87+'[3]5.2 Asset Age Profile'!DM87","v":0},{"$f":"'[2]5.2 Asset Age Profile'!DN87+'[3]5.2 Asset Age Profile'!DN87","v":0},{"$f":"'[2]5.2 Asset Age Profile'!DO87+'[3]5.2 Asset Age Profile'!DO87","v":0},{"$f":"'[2]5.2 Asset Age Profile'!DP87+'[3]5.2 Asset Age Profile'!DP87","v":0},{"$f":"'[2]5.2 Asset Age Profile'!DQ87+'[3]5.2 Asset Age Profile'!DQ87","v":0},{"$f":"'[2]5.2 Asset Age Profile'!DR87+'[3]5.2 Asset Age Profile'!DR87","v":0},{"$f":"'[2]5.2 Asset Age Profile'!DS87+'[3]5.2 Asset Age Profile'!DS87","v":1},{"$f":"'[2]5.2 Asset Age Profile'!DT87+'[3]5.2 Asset Age Profile'!DT87","v":0},{"$f":"'[2]5.2 Asset Age Profile'!DU87+'[3]5.2 Asset Age Profile'!DU87","v":0},{"$f":"'[2]5.2 Asset Age Profile'!DV87+'[3]5.2 Asset Age Profile'!DV87","v":0},{"$f":"'[2]5.2 Asset Age Profile'!DW87+'[3]5.2 Asset Age Profile'!DW87","v":0},{"$f":"'[2]5.2 Asset Age Profile'!DX87+'[3]5.2 Asset Age Profile'!DX87","v":0},{"$f":"'[2]5.2 Asset Age Profile'!DY87+'[3]5.2 Asset Age Profile'!DY87","v":0},{"$f":"'[2]5.2 Asset Age Profile'!DZ87+'[3]5.2 Asset Age Profile'!DZ87","v":0},{"$f":"'[2]5.2 Asset Age Profile'!EA87+'[3]5.2 Asset Age Profile'!EA87","v":0},{"$f":"'[2]5.2 Asset Age Profile'!EB87+'[3]5.2 Asset Age Profile'!EB87","v":0},{"$f":"'[2]5.2 Asset Age Profile'!EC87+'[3]5.2 Asset Age Profile'!EC87","v":0},{"$f":"'[2]5.2 Asset Age Profile'!ED87+'[3]5.2 Asset Age Profile'!ED87","v":0},{"$f":"'[2]5.2 Asset Age Profile'!EE87+'[3]5.2 Asset Age Profile'!EE87","v":0},{"$f":"'[2]5.2 Asset Age Profile'!EF87+'[3]5.2 Asset Age Profile'!EF87","v":0},{"$f":"'[2]5.2 Asset Age Profile'!EG87+'[3]5.2 Asset Age Profile'!EG87","v":0},{"$f":"'[2]5.2 Asset Age Profile'!EH87+'[3]5.2 Asset Age Profile'!EH87","v":0},{"$f":"'[2]5.2 Asset Age Profile'!EI87+'[3]5.2 Asset Age Profile'!EI87","v":0},{"$f":"'[2]5.2 Asset Age Profile'!EJ87+'[3]5.2 Asset Age Profile'!EJ87","v":0}]
["ED_ASS521_00078",null,"Ground Outdoor / Indoor Chamber Mounted; ˂  22 kV ;  >  600 kVA ; Multiple Phase",null,null,null,null,null,null,null,null,null,null,{"$f":"'[2]5.2 Asset Age Profile'!N88+'[3]5.2 Asset Age Profile'!N88","v":50},{"$f":"'[2]5.2 Asset Age Profile'!O88+'[3]5.2 Asset Age Profile'!O88","v":0},{"$f":"'[2]5.2 Asset Age Profile'!P88+'[3]5.2 Asset Age Profile'!P88","v":0},{"$f":"'[2]5.2 Asset Age Profile'!Q88+'[3]5.2 Asset Age Profile'!Q88","v":0},{"$f":"'[2]5.2 Asset Age Profile'!R88+'[3]5.2 Asset Age Profile'!R88","v":0},{"$f":"'[2]5.2 Asset Age Profile'!S88+'[3]5.2 Asset Age Profile'!S88","v":0},{"$f":"'[2]5.2 Asset Age Profile'!T88+'[3]5.2 Asset Age Profile'!T88","v":0},{"$f":"'[2]5.2 Asset Age Profile'!U88+'[3]5.2 Asset Age Profile'!U88","v":0},{"$f":"'[2]5.2 Asset Age Profile'!V88+'[3]5.2 Asset Age Profile'!V88","v":0},{"$f":"'[2]5.2 Asset Age Profile'!W88+'[3]5.2 Asset Age Profile'!W88","v":0},{"$f":"'[2]5.2 Asset Age Profile'!X88+'[3]5.2 Asset Age Profile'!X88","v":0},{"$f":"'[2]5.2 Asset Age Profile'!Y88+'[3]5.2 Asset Age Profile'!Y88","v":13},{"$f":"'[2]5.2 Asset Age Profile'!Z88+'[3]5.2 Asset Age Profile'!Z88","v":0},{"$f":"'[2]5.2 Asset Age Profile'!AA88+'[3]5.2 Asset Age Profile'!AA88","v":0},{"$f":"'[2]5.2 Asset Age Profile'!AB88+'[3]5.2 Asset Age Profile'!AB88","v":0},{"$f":"'[2]5.2 Asset Age Profile'!AC88+'[3]5.2 Asset Age Profile'!AC88","v":0},{"$f":"'[2]5.2 Asset Age Profile'!AD88+'[3]5.2 Asset Age Profile'!AD88","v":0},{"$f":"'[2]5.2 Asset Age Profile'!AE88+'[3]5.2 Asset Age Profile'!AE88","v":0},{"$f":"'[2]5.2 Asset Age Profile'!AF88+'[3]5.2 Asset Age Profile'!AF88","v":0},{"$f":"'[2]5.2 Asset Age Profile'!AG88+'[3]5.2 Asset Age Profile'!AG88","v":0},{"$f":"'[2]5.2 Asset Age Profile'!AH88+'[3]5.2 Asset Age Profile'!AH88","v":0},{"$f":"'[2]5.2 Asset Age Profile'!AI88+'[3]5.2 Asset Age Profile'!AI88","v":0},{"$f":"'[2]5.2 Asset Age Profile'!AJ88+'[3]5.2 Asset Age Profile'!AJ88","v":2},{"$f":"'[2]5.2 Asset Age Profile'!AK88+'[3]5.2 Asset Age Profile'!AK88","v":7},{"$f":"'[2]5.2 Asset Age Profile'!AL88+'[3]5.2 Asset Age Profile'!AL88","v":14},{"$f":"'[2]5.2 Asset Age Profile'!AM88+'[3]5.2 Asset Age Profile'!AM88","v":10},{"$f":"'[2]5.2 Asset Age Profile'!AN88+'[3]5.2 Asset Age Profile'!AN88","v":20},{"$f":"'[2]5.2 Asset Age Profile'!AO88+'[3]5.2 Asset Age Profile'!AO88","v":18},{"$f":"'[2]5.2 Asset Age Profile'!AP88+'[3]5.2 Asset Age Profile'!AP88","v":9},{"$f":"'[2]5.2 Asset Age Profile'!AQ88+'[3]5.2 Asset Age Profile'!AQ88","v":45},{"$f":"'[2]5.2 Asset Age Profile'!AR88+'[3]5.2 Asset Age Profile'!AR88","v":72},{"$f":"'[2]5.2 Asset Age Profile'!AS88+'[3]5.2 Asset Age Profile'!AS88","v":29},{"$f":"'[2]5.2 Asset Age Profile'!AT88+'[3]5.2 Asset Age Profile'!AT88","v":12},{"$f":"'[2]5.2 Asset Age Profile'!AU88+'[3]5.2 Asset Age Profile'!AU88","v":8},{"$f":"'[2]5.2 Asset Age Profile'!AV88+'[3]5.2 Asset Age Profile'!AV88","v":9},{"$f":"'[2]5.2 Asset Age Profile'!AW88+'[3]5.2 Asset Age Profile'!AW88","v":10},{"$f":"'[2]5.2 Asset Age Profile'!AX88+'[3]5.2 Asset Age Profile'!AX88","v":19},{"$f":"'[2]5.2 Asset Age Profile'!AY88+'[3]5.2 Asset Age Profile'!AY88","v":9},{"$f":"'[2]5.2 Asset Age Profile'!AZ88+'[3]5.2 Asset Age Profile'!AZ88","v":14},{"$f":"'[2]5.2 Asset Age Profile'!BA88+'[3]5.2 Asset Age Profile'!BA88","v":8},{"$f":"'[2]5.2 Asset Age Profile'!BB88+'[3]5.2 Asset Age Profile'!BB88","v":15},{"$f":"'[2]5.2 Asset Age Profile'!BC88+'[3]5.2 Asset Age Profile'!BC88","v":15},{"$f":"'[2]5.2 Asset Age Profile'!BD88+'[3]5.2 Asset Age Profile'!BD88","v":10},{"$f":"'[2]5.2 Asset Age Profile'!BE88+'[3]5.2 Asset Age Profile'!BE88","v":16},{"$f":"'[2]5.2 Asset Age Profile'!BF88+'[3]5.2 Asset Age Profile'!BF88","v":18},{"$f":"'[2]5.2 Asset Age Profile'!BG88+'[3]5.2 Asset Age Profile'!BG88","v":8},{"$f":"'[2]5.2 Asset Age Profile'!BH88+'[3]5.2 Asset Age Profile'!BH88","v":22},{"$f":"'[2]5.2 Asset Age Profile'!BI88+'[3]5.2 Asset Age Profile'!BI88","v":17},{"$f":"'[2]5.2 Asset Age Profile'!BJ88+'[3]5.2 Asset Age Profile'!BJ88","v":30},{"$f":"'[2]5.2 Asset Age Profile'!BK88+'[3]5.2 Asset Age Profile'!BK88","v":35},{"$f":"'[2]5.2 Asset Age Profile'!BL88+'[3]5.2 Asset Age Profile'!BL88","v":29},{"$f":"'[2]5.2 Asset Age Profile'!BM88+'[3]5.2 Asset Age Profile'!BM88","v":13},{"$f":"'[2]5.2 Asset Age Profile'!BN88+'[3]5.2 Asset Age Profile'!BN88","v":8},{"$f":"'[2]5.2 Asset Age Profile'!BO88+'[3]5.2 Asset Age Profile'!BO88","v":34},{"$f":"'[2]5.2 Asset Age Profile'!BP88+'[3]5.2 Asset Age Profile'!BP88","v":14},{"$f":"'[2]5.2 Asset Age Profile'!BQ88+'[3]5.2 Asset Age Profile'!BQ88","v":8},{"$f":"'[2]5.2 Asset Age Profile'!BR88+'[3]5.2 Asset Age Profile'!BR88","v":21},{"$f":"'[2]5.2 Asset Age Profile'!BS88+'[3]5.2 Asset Age Profile'!BS88","v":3},{"$f":"'[2]5.2 Asset Age Profile'!BT88+'[3]5.2 Asset Age Profile'!BT88","v":8},{"$f":"'[2]5.2 Asset Age Profile'!BU88+'[3]5.2 Asset Age Profile'!BU88","v":19},{"$f":"'[2]5.2 Asset Age Profile'!BV88+'[3]5.2 Asset Age Profile'!BV88","v":13},{"$f":"'[2]5.2 Asset Age Profile'!BW88+'[3]5.2 Asset Age Profile'!BW88","v":7},{"$f":"'[2]5.2 Asset Age Profile'!BX88+'[3]5.2 Asset Age Profile'!BX88","v":4},{"$f":"'[2]5.2 Asset Age Profile'!BY88+'[3]5.2 Asset Age Profile'!BY88","v":3},{"$f":"'[2]5.2 Asset Age Profile'!BZ88+'[3]5.2 Asset Age Profile'!BZ88","v":2},{"$f":"'[2]5.2 Asset Age Profile'!CA88+'[3]5.2 Asset Age Profile'!CA88","v":7},{"$f":"'[2]5.2 Asset Age Profile'!CB88+'[3]5.2 Asset Age Profile'!CB88","v":14},{"$f":"'[2]5.2 Asset Age Profile'!CC88+'[3]5.2 Asset Age Profile'!CC88","v":7},{"$f":"'[2]5.2 Asset Age Profile'!CD88+'[3]5.2 Asset Age Profile'!CD88","v":2},{"$f":"'[2]5.2 Asset Age Profile'!CE88+'[3]5.2 Asset Age Profile'!CE88","v":7},{"$f":"'[2]5.2 Asset Age Profile'!CF88+'[3]5.2 Asset Age Profile'!CF88","v":0},{"$f":"'[2]5.2 Asset Age Profile'!CG88+'[3]5.2 Asset Age Profile'!CG88","v":0},{"$f":"'[2]5.2 Asset Age Profile'!CH88+'[3]5.2 Asset Age Profile'!CH88","v":0},{"$f":"'[2]5.2 Asset Age Profile'!CI88+'[3]5.2 Asset Age Profile'!CI88","v":0},{"$f":"'[2]5.2 Asset Age Profile'!CJ88+'[3]5.2 Asset Age Profile'!CJ88","v":0},{"$f":"'[2]5.2 Asset Age Profile'!CK88+'[3]5.2 Asset Age Profile'!CK88","v":0},{"$f":"'[2]5.2 Asset Age Profile'!CL88+'[3]5.2 Asset Age Profile'!CL88","v":0},{"$f":"'[2]5.2 Asset Age Profile'!CM88+'[3]5.2 Asset Age Profile'!CM88","v":5},{"$f":"'[2]5.2 Asset Age Profile'!CN88+'[3]5.2 Asset Age Profile'!CN88","v":0},{"$f":"'[2]5.2 Asset Age Profile'!CO88+'[3]5.2 Asset Age Profile'!CO88","v":0},{"$f":"'[2]5.2 Asset Age Profile'!CP88+'[3]5.2 Asset Age Profile'!CP88","v":0},{"$f":"'[2]5.2 Asset Age Profile'!CQ88+'[3]5.2 Asset Age Profile'!CQ88","v":0},{"$f":"'[2]5.2 Asset Age Profile'!CR88+'[3]5.2 Asset Age Profile'!CR88","v":0},{"$f":"'[2]5.2 Asset Age Profile'!CS88+'[3]5.2 Asset Age Profile'!CS88","v":0},{"$f":"'[2]5.2 Asset Age Profile'!CT88+'[3]5.2 Asset Age Profile'!CT88","v":0},{"$f":"'[2]5.2 Asset Age Profile'!CU88+'[3]5.2 Asset Age Profile'!CU88","v":0},{"$f":"'[2]5.2 Asset Age Profile'!CV88+'[3]5.2 Asset Age Profile'!CV88","v":0},{"$f":"'[2]5.2 Asset Age Profile'!CW88+'[3]5.2 Asset Age Profile'!CW88","v":0},{"$f":"'[2]5.2 Asset Age Profile'!CX88+'[3]5.2 Asset Age Profile'!CX88","v":0},{"$f":"'[2]5.2 Asset Age Profile'!CY88+'[3]5.2 Asset Age Profile'!CY88","v":0},{"$f":"'[2]5.2 Asset Age Profile'!CZ88+'[3]5.2 Asset Age Profile'!CZ88","v":0},{"$f":"'[2]5.2 Asset Age Profile'!DA88+'[3]5.2 Asset Age Profile'!DA88","v":0},{"$f":"'[2]5.2 Asset Age Profile'!DB88+'[3]5.2 Asset Age Profile'!DB88","v":0},{"$f":"'[2]5.2 Asset Age Profile'!DC88+'[3]5.2 Asset Age Profile'!DC88","v":0},{"$f":"'[2]5.2 Asset Age Profile'!DD88+'[3]5.2 Asset Age Profile'!DD88","v":0},{"$f":"'[2]5.2 Asset Age Profile'!DE88+'[3]5.2 Asset Age Profile'!DE88","v":0},{"$f":"'[2]5.2 Asset Age Profile'!DF88+'[3]5.2 Asset Age Profile'!DF88","v":0},{"$f":"'[2]5.2 Asset Age Profile'!DG88+'[3]5.2 Asset Age Profile'!DG88","v":0},{"$f":"'[2]5.2 Asset Age Profile'!DH88+'[3]5.2 Asset Age Profile'!DH88","v":0},{"$f":"'[2]5.2 Asset Age Profile'!DI88+'[3]5.2 Asset Age Profile'!DI88","v":0},{"$f":"'[2]5.2 Asset Age Profile'!DJ88+'[3]5.2 Asset Age Profile'!DJ88","v":0},{"$f":"'[2]5.2 Asset Age Profile'!DK88+'[3]5.2 Asset Age Profile'!DK88","v":0},{"$f":"'[2]5.2 Asset Age Profile'!DL88+'[3]5.2 Asset Age Profile'!DL88","v":0},{"$f":"'[2]5.2 Asset Age Profile'!DM88+'[3]5.2 Asset Age Profile'!DM88","v":0},{"$f":"'[2]5.2 Asset Age Profile'!DN88+'[3]5.2 Asset Age Profile'!DN88","v":0},{"$f":"'[2]5.2 Asset Age Profile'!DO88+'[3]5.2 Asset Age Profile'!DO88","v":0},{"$f":"'[2]5.2 Asset Age Profile'!DP88+'[3]5.2 Asset Age Profile'!DP88","v":0},{"$f":"'[2]5.2 Asset Age Profile'!DQ88+'[3]5.2 Asset Age Profile'!DQ88","v":0},{"$f":"'[2]5.2 Asset Age Profile'!DR88+'[3]5.2 Asset Age Profile'!DR88","v":0},{"$f":"'[2]5.2 Asset Age Profile'!DS88+'[3]5.2 Asset Age Profile'!DS88","v":0},{"$f":"'[2]5.2 Asset Age Profile'!DT88+'[3]5.2 Asset Age Profile'!DT88","v":0},{"$f":"'[2]5.2 Asset Age Profile'!DU88+'[3]5.2 Asset Age Profile'!DU88","v":0},{"$f":"'[2]5.2 Asset Age Profile'!DV88+'[3]5.2 Asset Age Profile'!DV88","v":0},{"$f":"'[2]5.2 Asset Age Profile'!DW88+'[3]5.2 Asset Age Profile'!DW88","v":0},{"$f":"'[2]5.2 Asset Age Profile'!DX88+'[3]5.2 Asset Age Profile'!DX88","v":0},{"$f":"'[2]5.2 Asset Age Profile'!DY88+'[3]5.2 Asset Age Profile'!DY88","v":0},{"$f":"'[2]5.2 Asset Age Profile'!DZ88+'[3]5.2 Asset Age Profile'!DZ88","v":0},{"$f":"'[2]5.2 Asset Age Profile'!EA88+'[3]5.2 Asset Age Profile'!EA88","v":0},{"$f":"'[2]5.2 Asset Age Profile'!EB88+'[3]5.2 Asset Age Profile'!EB88","v":0},{"$f":"'[2]5.2 Asset Age Profile'!EC88+'[3]5.2 Asset Age Profile'!EC88","v":0},{"$f":"'[2]5.2 Asset Age Profile'!ED88+'[3]5.2 Asset Age Profile'!ED88","v":0},{"$f":"'[2]5.2 Asset Age Profile'!EE88+'[3]5.2 Asset Age Profile'!EE88","v":0},{"$f":"'[2]5.2 Asset Age Profile'!EF88+'[3]5.2 Asset Age Profile'!EF88","v":0},{"$f":"'[2]5.2 Asset Age Profile'!EG88+'[3]5.2 Asset Age Profile'!EG88","v":0},{"$f":"'[2]5.2 Asset Age Profile'!EH88+'[3]5.2 Asset Age Profile'!EH88","v":0},{"$f":"'[2]5.2 Asset Age Profile'!EI88+'[3]5.2 Asset Age Profile'!EI88","v":0},{"$f":"'[2]5.2 Asset Age Profile'!EJ88+'[3]5.2 Asset Age Profile'!EJ88","v":0}]
["ED_ASS521_00079",null,"Ground Outdoor / Indoor Chamber Mounted; > = 22 kV & < = 33 kV ;  < = 15 MVA",null,null,null,null,null,null,null,null,null,null,{"$f":"'[2]5.2 Asset Age Profile'!N89+'[3]5.2 Asset Age Profile'!N89","v":50},{"$f":"'[2]5.2 Asset Age Profile'!O89+'[3]5.2 Asset Age Profile'!O89","v":0},{"$f":"'[2]5.2 Asset Age Profile'!P89+'[3]5.2 Asset Age Profile'!P89","v":0},{"$f":"'[2]5.2 Asset Age Profile'!Q89+'[3]5.2 Asset Age Profile'!Q89","v":0},{"$f":"'[2]5.2 Asset Age Profile'!R89+'[3]5.2 Asset Age Profile'!R89","v":0},{"$f":"'[2]5.2 Asset Age Profile'!S89+'[3]5.2 Asset Age Profile'!S89","v":0},{"$f":"'[2]5.2 Asset Age Profile'!T89+'[3]5.2 Asset Age Profile'!T89","v":0},{"$f":"'[2]5.2 Asset Age Profile'!U89+'[3]5.2 Asset Age Profile'!U89","v":0},{"$f":"'[2]5.2 Asset Age Profile'!V89+'[3]5.2 Asset Age Profile'!V89","v":0},{"$f":"'[2]5.2 Asset Age Profile'!W89+'[3]5.2 Asset Age Profile'!W89","v":0},{"$f":"'[2]5.2 Asset Age Profile'!X89+'[3]5.2 Asset Age Profile'!X89","v":0},{"$f":"'[2]5.2 Asset Age Profile'!Y89+'[3]5.2 Asset Age Profile'!Y89","v":13},{"$f":"'[2]5.2 Asset Age Profile'!Z89+'[3]5.2 Asset Age Profile'!Z89","v":0},{"$f":"'[2]5.2 Asset Age Profile'!AA89+'[3]5.2 Asset Age Profile'!AA89","v":0},{"$f":"'[2]5.2 Asset Age Profile'!AB89+'[3]5.2 Asset Age Profile'!AB89","v":0},{"$f":"'[2]5.2 Asset Age Profile'!AC89+'[3]5.2 Asset Age Profile'!AC89","v":0},{"$f":"'[2]5.2 Asset Age Profile'!AD89+'[3]5.2 Asset Age Profile'!AD89","v":0},{"$f":"'[2]5.2 Asset Age Profile'!AE89+'[3]5.2 Asset Age Profile'!AE89","v":0},{"$f":"'[2]5.2 Asset Age Profile'!AF89+'[3]5.2 Asset Age Profile'!AF89","v":0},{"$f":"'[2]5.2 Asset Age Profile'!AG89+'[3]5.2 Asset Age Profile'!AG89","v":0},{"$f":"'[2]5.2 Asset Age Profile'!AH89+'[3]5.2 Asset Age Profile'!AH89","v":0},{"$f":"'[2]5.2 Asset Age Profile'!AI89+'[3]5.2 Asset Age Profile'!AI89","v":0},{"$f":"'[2]5.2 Asset Age Profile'!AJ89+'[3]5.2 Asset Age Profile'!AJ89","v":0},{"$f":"'[2]5.2 Asset Age Profile'!AK89+'[3]5.2 Asset Age Profile'!AK89","v":0},{"$f":"'[2]5.2 Asset Age Profile'!AL89+'[3]5.2 Asset Age Profile'!AL89","v":0},{"$f":"'[2]5.2 Asset Age Profile'!AM89+'[3]5.2 Asset Age Profile'!AM89","v":0},{"$f":"'[2]5.2 Asset Age Profile'!AN89+'[3]5.2 Asset Age Profile'!AN89","v":0},{"$f":"'[2]5.2 Asset Age Profile'!AO89+'[3]5.2 Asset Age Profile'!AO89","v":0},{"$f":"'[2]5.2 Asset Age Profile'!AP89+'[3]5.2 Asset Age Profile'!AP89","v":0},{"$f":"'[2]5.2 Asset Age Profile'!AQ89+'[3]5.2 Asset Age Profile'!AQ89","v":0},{"$f":"'[2]5.2 Asset Age Profile'!AR89+'[3]5.2 Asset Age Profile'!AR89","v":0},{"$f":"'[2]5.2 Asset Age Profile'!AS89+'[3]5.2 Asset Age Profile'!AS89","v":0},{"$f":"'[2]5.2 Asset Age Profile'!AT89+'[3]5.2 Asset Age Profile'!AT89","v":0},{"$f":"'[2]5.2 Asset Age Profile'!AU89+'[3]5.2 Asset Age Profile'!AU89","v":0},{"$f":"'[2]5.2 Asset Age Profile'!AV89+'[3]5.2 Asset Age Profile'!AV89","v":0},{"$f":"'[2]5.2 Asset Age Profile'!AW89+'[3]5.2 Asset Age Profile'!AW89","v":0},{"$f":"'[2]5.2 Asset Age Profile'!AX89+'[3]5.2 Asset Age Profile'!AX89","v":0},{"$f":"'[2]5.2 Asset Age Profile'!AY89+'[3]5.2 Asset Age Profile'!AY89","v":0},{"$f":"'[2]5.2 Asset Age Profile'!AZ89+'[3]5.2 Asset Age Profile'!AZ89","v":0},{"$f":"'[2]5.2 Asset Age Profile'!BA89+'[3]5.2 Asset Age Profile'!BA89","v":0},{"$f":"'[2]5.2 Asset Age Profile'!BB89+'[3]5.2 Asset Age Profile'!BB89","v":0},{"$f":"'[2]5.2 Asset Age Profile'!BC89+'[3]5.2 Asset Age Profile'!BC89","v":0},{"$f":"'[2]5.2 Asset Age Profile'!BD89+'[3]5.2 Asset Age Profile'!BD89","v":0},{"$f":"'[2]5.2 Asset Age Profile'!BE89+'[3]5.2 Asset Age Profile'!BE89","v":0},{"$f":"'[2]5.2 Asset Age Profile'!BF89+'[3]5.2 Asset Age Profile'!BF89","v":0},{"$f":"'[2]5.2 Asset Age Profile'!BG89+'[3]5.2 Asset Age Profile'!BG89","v":0},{"$f":"'[2]5.2 Asset Age Profile'!BH89+'[3]5.2 Asset Age Profile'!BH89","v":0},{"$f":"'[2]5.2 Asset Age Profile'!BI89+'[3]5.2 Asset Age Profile'!BI89","v":0},{"$f":"'[2]5.2 Asset Age Profile'!BJ89+'[3]5.2 Asset Age Profile'!BJ89","v":0},{"$f":"'[2]5.2 Asset Age Profile'!BK89+'[3]5.2 Asset Age Profile'!BK89","v":0},{"$f":"'[2]5.2 Asset Age Profile'!BL89+'[3]5.2 Asset Age Profile'!BL89","v":0},{"$f":"'[2]5.2 Asset Age Profile'!BM89+'[3]5.2 Asset Age Profile'!BM89","v":0},{"$f":"'[2]5.2 Asset Age Profile'!BN89+'[3]5.2 Asset Age Profile'!BN89","v":0},{"$f":"'[2]5.2 Asset Age Profile'!BO89+'[3]5.2 Asset Age Profile'!BO89","v":0},{"$f":"'[2]5.2 Asset Age Profile'!BP89+'[3]5.2 Asset Age Profile'!BP89","v":0},{"$f":"'[2]5.2 Asset Age Profile'!BQ89+'[3]5.2 Asset Age Profile'!BQ89","v":0},{"$f":"'[2]5.2 Asset Age Profile'!BR89+'[3]5.2 Asset Age Profile'!BR89","v":0},{"$f":"'[2]5.2 Asset Age Profile'!BS89+'[3]5.2 Asset Age Profile'!BS89","v":0},{"$f":"'[2]5.2 Asset Age Profile'!BT89+'[3]5.2 Asset Age Profile'!BT89","v":0},{"$f":"'[2]5.2 Asset Age Profile'!BU89+'[3]5.2 Asset Age Profile'!BU89","v":0},{"$f":"'[2]5.2 Asset Age Profile'!BV89+'[3]5.2 Asset Age Profile'!BV89","v":0},{"$f":"'[2]5.2 Asset Age Profile'!BW89+'[3]5.2 Asset Age Profile'!BW89","v":0},{"$f":"'[2]5.2 Asset Age Profile'!BX89+'[3]5.2 Asset Age Profile'!BX89","v":0},{"$f":"'[2]5.2 Asset Age Profile'!BY89+'[3]5.2 Asset Age Profile'!BY89","v":0},{"$f":"'[2]5.2 Asset Age Profile'!BZ89+'[3]5.2 Asset Age Profile'!BZ89","v":0},{"$f":"'[2]5.2 Asset Age Profile'!CA89+'[3]5.2 Asset Age Profile'!CA89","v":0},{"$f":"'[2]5.2 Asset Age Profile'!CB89+'[3]5.2 Asset Age Profile'!CB89","v":0},{"$f":"'[2]5.2 Asset Age Profile'!CC89+'[3]5.2 Asset Age Profile'!CC89","v":0},{"$f":"'[2]5.2 Asset Age Profile'!CD89+'[3]5.2 Asset Age Profile'!CD89","v":0},{"$f":"'[2]5.2 Asset Age Profile'!CE89+'[3]5.2 Asset Age Profile'!CE89","v":0},{"$f":"'[2]5.2 Asset Age Profile'!CF89+'[3]5.2 Asset Age Profile'!CF89","v":0},{"$f":"'[2]5.2 Asset Age Profile'!CG89+'[3]5.2 Asset Age Profile'!CG89","v":0},{"$f":"'[2]5.2 Asset Age Profile'!CH89+'[3]5.2 Asset Age Profile'!CH89","v":0},{"$f":"'[2]5.2 Asset Age Profile'!CI89+'[3]5.2 Asset Age Profile'!CI89","v":0},{"$f":"'[2]5.2 Asset Age Profile'!CJ89+'[3]5.2 Asset Age Profile'!CJ89","v":0},{"$f":"'[2]5.2 Asset Age Profile'!CK89+'[3]5.2 Asset Age Profile'!CK89","v":0},{"$f":"'[2]5.2 Asset Age Profile'!CL89+'[3]5.2 Asset Age Profile'!CL89","v":0},{"$f":"'[2]5.2 Asset Age Profile'!CM89+'[3]5.2 Asset Age Profile'!CM89","v":0},{"$f":"'[2]5.2 Asset Age Profile'!CN89+'[3]5.2 Asset Age Profile'!CN89","v":0},{"$f":"'[2]5.2 Asset Age Profile'!CO89+'[3]5.2 Asset Age Profile'!CO89","v":0},{"$f":"'[2]5.2 Asset Age Profile'!CP89+'[3]5.2 Asset Age Profile'!CP89","v":0},{"$f":"'[2]5.2 Asset Age Profile'!CQ89+'[3]5.2 Asset Age Profile'!CQ89","v":0},{"$f":"'[2]5.2 Asset Age Profile'!CR89+'[3]5.2 Asset Age Profile'!CR89","v":0},{"$f":"'[2]5.2 Asset Age Profile'!CS89+'[3]5.2 Asset Age Profile'!CS89","v":0},{"$f":"'[2]5.2 Asset Age Profile'!CT89+'[3]5.2 Asset Age Profile'!CT89","v":0},{"$f":"'[2]5.2 Asset Age Profile'!CU89+'[3]5.2 Asset Age Profile'!CU89","v":0},{"$f":"'[2]5.2 Asset Age Profile'!CV89+'[3]5.2 Asset Age Profile'!CV89","v":0},{"$f":"'[2]5.2 Asset Age Profile'!CW89+'[3]5.2 Asset Age Profile'!CW89","v":0},{"$f":"'[2]5.2 Asset Age Profile'!CX89+'[3]5.2 Asset Age Profile'!CX89","v":0},{"$f":"'[2]5.2 Asset Age Profile'!CY89+'[3]5.2 Asset Age Profile'!CY89","v":0},{"$f":"'[2]5.2 Asset Age Profile'!CZ89+'[3]5.2 Asset Age Profile'!CZ89","v":0},{"$f":"'[2]5.2 Asset Age Profile'!DA89+'[3]5.2 Asset Age Profile'!DA89","v":0},{"$f":"'[2]5.2 Asset Age Profile'!DB89+'[3]5.2 Asset Age Profile'!DB89","v":0},{"$f":"'[2]5.2 Asset Age Profile'!DC89+'[3]5.2 Asset Age Profile'!DC89","v":0},{"$f":"'[2]5.2 Asset Age Profile'!DD89+'[3]5.2 Asset Age Profile'!DD89","v":0},{"$f":"'[2]5.2 Asset Age Profile'!DE89+'[3]5.2 Asset Age Profile'!DE89","v":0},{"$f":"'[2]5.2 Asset Age Profile'!DF89+'[3]5.2 Asset Age Profile'!DF89","v":0},{"$f":"'[2]5.2 Asset Age Profile'!DG89+'[3]5.2 Asset Age Profile'!DG89","v":0},{"$f":"'[2]5.2 Asset Age Profile'!DH89+'[3]5.2 Asset Age Profile'!DH89","v":0},{"$f":"'[2]5.2 Asset Age Profile'!DI89+'[3]5.2 Asset Age Profile'!DI89","v":0},{"$f":"'[2]5.2 Asset Age Profile'!DJ89+'[3]5.2 Asset Age Profile'!DJ89","v":0},{"$f":"'[2]5.2 Asset Age Profile'!DK89+'[3]5.2 Asset Age Profile'!DK89","v":0},{"$f":"'[2]5.2 Asset Age Profile'!DL89+'[3]5.2 Asset Age Profile'!DL89","v":0},{"$f":"'[2]5.2 Asset Age Profile'!DM89+'[3]5.2 Asset Age Profile'!DM89","v":0},{"$f":"'[2]5.2 Asset Age Profile'!DN89+'[3]5.2 Asset Age Profile'!DN89","v":0},{"$f":"'[2]5.2 Asset Age Profile'!DO89+'[3]5.2 Asset Age Profile'!DO89","v":0},{"$f":"'[2]5.2 Asset Age Profile'!DP89+'[3]5.2 Asset Age Profile'!DP89","v":0},{"$f":"'[2]5.2 Asset Age Profile'!DQ89+'[3]5.2 Asset Age Profile'!DQ89","v":0},{"$f":"'[2]5.2 Asset Age Profile'!DR89+'[3]5.2 Asset Age Profile'!DR89","v":0},{"$f":"'[2]5.2 Asset Age Profile'!DS89+'[3]5.2 Asset Age Profile'!DS89","v":0},{"$f":"'[2]5.2 Asset Age Profile'!DT89+'[3]5.2 Asset Age Profile'!DT89","v":0},{"$f":"'[2]5.2 Asset Age Profile'!DU89+'[3]5.2 Asset Age Profile'!DU89","v":0},{"$f":"'[2]5.2 Asset Age Profile'!DV89+'[3]5.2 Asset Age Profile'!DV89","v":0},{"$f":"'[2]5.2 Asset Age Profile'!DW89+'[3]5.2 Asset Age Profile'!DW89","v":0},{"$f":"'[2]5.2 Asset Age Profile'!DX89+'[3]5.2 Asset Age Profile'!DX89","v":0},{"$f":"'[2]5.2 Asset Age Profile'!DY89+'[3]5.2 Asset Age Profile'!DY89","v":0},{"$f":"'[2]5.2 Asset Age Profile'!DZ89+'[3]5.2 Asset Age Profile'!DZ89","v":0},{"$f":"'[2]5.2 Asset Age Profile'!EA89+'[3]5.2 Asset Age Profile'!EA89","v":0},{"$f":"'[2]5.2 Asset Age Profile'!EB89+'[3]5.2 Asset Age Profile'!EB89","v":0},{"$f":"'[2]5.2 Asset Age Profile'!EC89+'[3]5.2 Asset Age Profile'!EC89","v":0},{"$f":"'[2]5.2 Asset Age Profile'!ED89+'[3]5.2 Asset Age Profile'!ED89","v":0},{"$f":"'[2]5.2 Asset Age Profile'!EE89+'[3]5.2 Asset Age Profile'!EE89","v":0},{"$f":"'[2]5.2 Asset Age Profile'!EF89+'[3]5.2 Asset Age Profile'!EF89","v":0},{"$f":"'[2]5.2 Asset Age Profile'!EG89+'[3]5.2 Asset Age Profile'!EG89","v":0},{"$f":"'[2]5.2 Asset Age Profile'!EH89+'[3]5.2 Asset Age Profile'!EH89","v":0},{"$f":"'[2]5.2 Asset Age Profile'!EI89+'[3]5.2 Asset Age Profile'!EI89","v":0},{"$f":"'[2]5.2 Asset Age Profile'!EJ89+'[3]5.2 Asset Age Profile'!EJ89","v":0}]
["ED_ASS521_00080",null,"Ground Outdoor / Indoor Chamber Mounted; > = 22 kV & < = 33 kV ;  > 15 MVA and < = 40 MVA",null,null,null,null,null,null,null,null,null,null,{"$f":"'[2]5.2 Asset Age Profile'!N90+'[3]5.2 Asset Age Profile'!N90","v":0},{"$f":"'[2]5.2 Asset Age Profile'!O90+'[3]5.2 Asset Age Profile'!O90","v":0},{"$f":"'[2]5.2 Asset Age Profile'!P90+'[3]5.2 Asset Age Profile'!P90","v":0},{"$f":"'[2]5.2 Asset Age Profile'!Q90+'[3]5.2 Asset Age Profile'!Q90","v":0},{"$f":"'[2]5.2 Asset Age Profile'!R90+'[3]5.2 Asset Age Profile'!R90","v":0},{"$f":"'[2]5.2 Asset Age Profile'!S90+'[3]5.2 Asset Age Profile'!S90","v":0},{"$f":"'[2]5.2 Asset Age Profile'!T90+'[3]5.2 Asset Age Profile'!T90","v":0},{"$f":"'[2]5.2 Asset Age Profile'!U90+'[3]5.2 Asset Age Profile'!U90","v":0},{"$f":"'[2]5.2 Asset Age Profile'!V90+'[3]5.2 Asset Age Profile'!V90","v":0},{"$f":"'[2]5.2 Asset Age Profile'!W90+'[3]5.2 Asset Age Profile'!W90","v":0},{"$f":"'[2]5.2 Asset Age Profile'!X90+'[3]5.2 Asset Age Profile'!X90","v":0},{"$f":"'[2]5.2 Asset Age Profile'!Y90+'[3]5.2 Asset Age Profile'!Y90","v":0},{"$f":"'[2]5.2 Asset Age Profile'!Z90+'[3]5.2 Asset Age Profile'!Z90","v":0},{"$f":"'[2]5.2 Asset Age Profile'!AA90+'[3]5.2 Asset Age Profile'!AA90","v":0},{"$f":"'[2]5.2 Asset Age Profile'!AB90+'[3]5.2 Asset Age Profile'!AB90","v":0},{"$f":"'[2]5.2 Asset Age Profile'!AC90+'[3]5.2 Asset Age Profile'!AC90","v":0},{"$f":"'[2]5.2 Asset Age Profile'!AD90+'[3]5.2 Asset Age Profile'!AD90","v":0},{"$f":"'[2]5.2 Asset Age Profile'!AE90+'[3]5.2 Asset Age Profile'!AE90","v":0},{"$f":"'[2]5.2 Asset Age Profile'!AF90+'[3]5.2 Asset Age Profile'!AF90","v":0},{"$f":"'[2]5.2 Asset Age Profile'!AG90+'[3]5.2 Asset Age Profile'!AG90","v":0},{"$f":"'[2]5.2 Asset Age Profile'!AH90+'[3]5.2 Asset Age Profile'!AH90","v":0},{"$f":"'[2]5.2 Asset Age Profile'!AI90+'[3]5.2 Asset Age Profile'!AI90","v":0},{"$f":"'[2]5.2 Asset Age Profile'!AJ90+'[3]5.2 Asset Age Profile'!AJ90","v":0},{"$f":"'[2]5.2 Asset Age Profile'!AK90+'[3]5.2 Asset Age Profile'!AK90","v":0},{"$f":"'[2]5.2 Asset Age Profile'!AL90+'[3]5.2 Asset Age Profile'!AL90","v":0},{"$f":"'[2]5.2 Asset Age Profile'!AM90+'[3]5.2 Asset Age Profile'!AM90","v":0},{"$f":"'[2]5.2 Asset Age Profile'!AN90+'[3]5.2 Asset Age Profile'!AN90","v":0},{"$f":"'[2]5.2 Asset Age Profile'!AO90+'[3]5.2 Asset Age Profile'!AO90","v":0},{"$f":"'[2]5.2 Asset Age Profile'!AP90+'[3]5.2 Asset Age Profile'!AP90","v":0},{"$f":"'[2]5.2 Asset Age Profile'!AQ90+'[3]5.2 Asset Age Profile'!AQ90","v":0},{"$f":"'[2]5.2 Asset Age Profile'!AR90+'[3]5.2 Asset Age Profile'!AR90","v":0},{"$f":"'[2]5.2 Asset Age Profile'!AS90+'[3]5.2 Asset Age Profile'!AS90","v":0},{"$f":"'[2]5.2 Asset Age Profile'!AT90+'[3]5.2 Asset Age Profile'!AT90","v":0},{"$f":"'[2]5.2 Asset Age Profile'!AU90+'[3]5.2 Asset Age Profile'!AU90","v":0},{"$f":"'[2]5.2 Asset Age Profile'!AV90+'[3]5.2 Asset Age Profile'!AV90","v":0},{"$f":"'[2]5.2 Asset Age Profile'!AW90+'[3]5.2 Asset Age Profile'!AW90","v":0},{"$f":"'[2]5.2 Asset Age Profile'!AX90+'[3]5.2 Asset Age Profile'!AX90","v":0},{"$f":"'[2]5.2 Asset Age Profile'!AY90+'[3]5.2 Asset Age Profile'!AY90","v":0},{"$f":"'[2]5.2 Asset Age Profile'!AZ90+'[3]5.2 Asset Age Profile'!AZ90","v":0},{"$f":"'[2]5.2 Asset Age Profile'!BA90+'[3]5.2 Asset Age Profile'!BA90","v":0},{"$f":"'[2]5.2 Asset Age Profile'!BB90+'[3]5.2 Asset Age Profile'!BB90","v":0},{"$f":"'[2]5.2 Asset Age Profile'!BC90+'[3]5.2 Asset Age Profile'!BC90","v":0},{"$f":"'[2]5.2 Asset Age Profile'!BD90+'[3]5.2 Asset Age Profile'!BD90","v":0},{"$f":"'[2]5.2 Asset Age Profile'!BE90+'[3]5.2 Asset Age Profile'!BE90","v":0},{"$f":"'[2]5.2 Asset Age Profile'!BF90+'[3]5.2 Asset Age Profile'!BF90","v":0},{"$f":"'[2]5.2 Asset Age Profile'!BG90+'[3]5.2 Asset Age Profile'!BG90","v":0},{"$f":"'[2]5.2 Asset Age Profile'!BH90+'[3]5.2 Asset Age Profile'!BH90","v":0},{"$f":"'[2]5.2 Asset Age Profile'!BI90+'[3]5.2 Asset Age Profile'!BI90","v":0},{"$f":"'[2]5.2 Asset Age Profile'!BJ90+'[3]5.2 Asset Age Profile'!BJ90","v":0},{"$f":"'[2]5.2 Asset Age Profile'!BK90+'[3]5.2 Asset Age Profile'!BK90","v":0},{"$f":"'[2]5.2 Asset Age Profile'!BL90+'[3]5.2 Asset Age Profile'!BL90","v":0},{"$f":"'[2]5.2 Asset Age Profile'!BM90+'[3]5.2 Asset Age Profile'!BM90","v":0},{"$f":"'[2]5.2 Asset Age Profile'!BN90+'[3]5.2 Asset Age Profile'!BN90","v":0},{"$f":"'[2]5.2 Asset Age Profile'!BO90+'[3]5.2 Asset Age Profile'!BO90","v":0},{"$f":"'[2]5.2 Asset Age Profile'!BP90+'[3]5.2 Asset Age Profile'!BP90","v":0},{"$f":"'[2]5.2 Asset Age Profile'!BQ90+'[3]5.2 Asset Age Profile'!BQ90","v":0},{"$f":"'[2]5.2 Asset Age Profile'!BR90+'[3]5.2 Asset Age Profile'!BR90","v":0},{"$f":"'[2]5.2 Asset Age Profile'!BS90+'[3]5.2 Asset Age Profile'!BS90","v":0},{"$f":"'[2]5.2 Asset Age Profile'!BT90+'[3]5.2 Asset Age Profile'!BT90","v":0},{"$f":"'[2]5.2 Asset Age Profile'!BU90+'[3]5.2 Asset Age Profile'!BU90","v":0},{"$f":"'[2]5.2 Asset Age Profile'!BV90+'[3]5.2 Asset Age Profile'!BV90","v":0},{"$f":"'[2]5.2 Asset Age Profile'!BW90+'[3]5.2 Asset Age Profile'!BW90","v":0},{"$f":"'[2]5.2 Asset Age Profile'!BX90+'[3]5.2 Asset Age Profile'!BX90","v":0},{"$f":"'[2]5.2 Asset Age Profile'!BY90+'[3]5.2 Asset Age Profile'!BY90","v":0},{"$f":"'[2]5.2 Asset Age Profile'!BZ90+'[3]5.2 Asset Age Profile'!BZ90","v":0},{"$f":"'[2]5.2 Asset Age Profile'!CA90+'[3]5.2 Asset Age Profile'!CA90","v":0},{"$f":"'[2]5.2 Asset Age Profile'!CB90+'[3]5.2 Asset Age Profile'!CB90","v":0},{"$f":"'[2]5.2 Asset Age Profile'!CC90+'[3]5.2 Asset Age Profile'!CC90","v":0},{"$f":"'[2]5.2 Asset Age Profile'!CD90+'[3]5.2 Asset Age Profile'!CD90","v":0},{"$f":"'[2]5.2 Asset Age Profile'!CE90+'[3]5.2 Asset Age Profile'!CE90","v":0},{"$f":"'[2]5.2 Asset Age Profile'!CF90+'[3]5.2 Asset Age Profile'!CF90","v":0},{"$f":"'[2]5.2 Asset Age Profile'!CG90+'[3]5.2 Asset Age Profile'!CG90","v":0},{"$f":"'[2]5.2 Asset Age Profile'!CH90+'[3]5.2 Asset Age Profile'!CH90","v":0},{"$f":"'[2]5.2 Asset Age Profile'!CI90+'[3]5.2 Asset Age Profile'!CI90","v":0},{"$f":"'[2]5.2 Asset Age Profile'!CJ90+'[3]5.2 Asset Age Profile'!CJ90","v":0},{"$f":"'[2]5.2 Asset Age Profile'!CK90+'[3]5.2 Asset Age Profile'!CK90","v":0},{"$f":"'[2]5.2 Asset Age Profile'!CL90+'[3]5.2 Asset Age Profile'!CL90","v":0},{"$f":"'[2]5.2 Asset Age Profile'!CM90+'[3]5.2 Asset Age Profile'!CM90","v":0},{"$f":"'[2]5.2 Asset Age Profile'!CN90+'[3]5.2 Asset Age Profile'!CN90","v":0},{"$f":"'[2]5.2 Asset Age Profile'!CO90+'[3]5.2 Asset Age Profile'!CO90","v":0},{"$f":"'[2]5.2 Asset Age Profile'!CP90+'[3]5.2 Asset Age Profile'!CP90","v":0},{"$f":"'[2]5.2 Asset Age Profile'!CQ90+'[3]5.2 Asset Age Profile'!CQ90","v":0},{"$f":"'[2]5.2 Asset Age Profile'!CR90+'[3]5.2 Asset Age Profile'!CR90","v":0},{"$f":"'[2]5.2 Asset Age Profile'!CS90+'[3]5.2 Asset Age Profile'!CS90","v":0},{"$f":"'[2]5.2 Asset Age Profile'!CT90+'[3]5.2 Asset Age Profile'!CT90","v":0},{"$f":"'[2]5.2 Asset Age Profile'!CU90+'[3]5.2 Asset Age Profile'!CU90","v":0},{"$f":"'[2]5.2 Asset Age Profile'!CV90+'[3]5.2 Asset Age Profile'!CV90","v":0},{"$f":"'[2]5.2 Asset Age Profile'!CW90+'[3]5.2 Asset Age Profile'!CW90","v":0},{"$f":"'[2]5.2 Asset Age Profile'!CX90+'[3]5.2 Asset Age Profile'!CX90","v":0},{"$f":"'[2]5.2 Asset Age Profile'!CY90+'[3]5.2 Asset Age Profile'!CY90","v":0},{"$f":"'[2]5.2 Asset Age Profile'!CZ90+'[3]5.2 Asset Age Profile'!CZ90","v":0},{"$f":"'[2]5.2 Asset Age Profile'!DA90+'[3]5.2 Asset Age Profile'!DA90","v":0},{"$f":"'[2]5.2 Asset Age Profile'!DB90+'[3]5.2 Asset Age Profile'!DB90","v":0},{"$f":"'[2]5.2 Asset Age Profile'!DC90+'[3]5.2 Asset Age Profile'!DC90","v":0},{"$f":"'[2]5.2 Asset Age Profile'!DD90+'[3]5.2 Asset Age Profile'!DD90","v":0},{"$f":"'[2]5.2 Asset Age Profile'!DE90+'[3]5.2 Asset Age Profile'!DE90","v":0},{"$f":"'[2]5.2 Asset Age Profile'!DF90+'[3]5.2 Asset Age Profile'!DF90","v":0},{"$f":"'[2]5.2 Asset Age Profile'!DG90+'[3]5.2 Asset Age Profile'!DG90","v":0},{"$f":"'[2]5.2 Asset Age Profile'!DH90+'[3]5.2 Asset Age Profile'!DH90","v":0},{"$f":"'[2]5.2 Asset Age Profile'!DI90+'[3]5.2 Asset Age Profile'!DI90","v":0},{"$f":"'[2]5.2 Asset Age Profile'!DJ90+'[3]5.2 Asset Age Profile'!DJ90","v":0},{"$f":"'[2]5.2 Asset Age Profile'!DK90+'[3]5.2 Asset Age Profile'!DK90","v":0},{"$f":"'[2]5.2 Asset Age Profile'!DL90+'[3]5.2 Asset Age Profile'!DL90","v":0},{"$f":"'[2]5.2 Asset Age Profile'!DM90+'[3]5.2 Asset Age Profile'!DM90","v":0},{"$f":"'[2]5.2 Asset Age Profile'!DN90+'[3]5.2 Asset Age Profile'!DN90","v":0},{"$f":"'[2]5.2 Asset Age Profile'!DO90+'[3]5.2 Asset Age Profile'!DO90","v":0},{"$f":"'[2]5.2 Asset Age Profile'!DP90+'[3]5.2 Asset Age Profile'!DP90","v":0},{"$f":"'[2]5.2 Asset Age Profile'!DQ90+'[3]5.2 Asset Age Profile'!DQ90","v":0},{"$f":"'[2]5.2 Asset Age Profile'!DR90+'[3]5.2 Asset Age Profile'!DR90","v":0},{"$f":"'[2]5.2 Asset Age Profile'!DS90+'[3]5.2 Asset Age Profile'!DS90","v":0},{"$f":"'[2]5.2 Asset Age Profile'!DT90+'[3]5.2 Asset Age Profile'!DT90","v":0},{"$f":"'[2]5.2 Asset Age Profile'!DU90+'[3]5.2 Asset Age Profile'!DU90","v":0},{"$f":"'[2]5.2 Asset Age Profile'!DV90+'[3]5.2 Asset Age Profile'!DV90","v":0},{"$f":"'[2]5.2 Asset Age Profile'!DW90+'[3]5.2 Asset Age Profile'!DW90","v":0},{"$f":"'[2]5.2 Asset Age Profile'!DX90+'[3]5.2 Asset Age Profile'!DX90","v":0},{"$f":"'[2]5.2 Asset Age Profile'!DY90+'[3]5.2 Asset Age Profile'!DY90","v":0},{"$f":"'[2]5.2 Asset Age Profile'!DZ90+'[3]5.2 Asset Age Profile'!DZ90","v":0},{"$f":"'[2]5.2 Asset Age Profile'!EA90+'[3]5.2 Asset Age Profile'!EA90","v":0},{"$f":"'[2]5.2 Asset Age Profile'!EB90+'[3]5.2 Asset Age Profile'!EB90","v":0},{"$f":"'[2]5.2 Asset Age Profile'!EC90+'[3]5.2 Asset Age Profile'!EC90","v":0},{"$f":"'[2]5.2 Asset Age Profile'!ED90+'[3]5.2 Asset Age Profile'!ED90","v":0},{"$f":"'[2]5.2 Asset Age Profile'!EE90+'[3]5.2 Asset Age Profile'!EE90","v":0},{"$f":"'[2]5.2 Asset Age Profile'!EF90+'[3]5.2 Asset Age Profile'!EF90","v":0},{"$f":"'[2]5.2 Asset Age Profile'!EG90+'[3]5.2 Asset Age Profile'!EG90","v":0},{"$f":"'[2]5.2 Asset Age Profile'!EH90+'[3]5.2 Asset Age Profile'!EH90","v":0},{"$f":"'[2]5.2 Asset Age Profile'!EI90+'[3]5.2 Asset Age Profile'!EI90","v":0},{"$f":"'[2]5.2 Asset Age Profile'!EJ90+'[3]5.2 Asset Age Profile'!EJ90","v":0}]
["ED_ASS521_00081",null,"Ground Outdoor / Indoor Chamber Mounted; > = 22 kV & < = 33 kV ;  > 40 MVA",null,null,null,null,null,null,null,null,null,null,{"$f":"'[2]5.2 Asset Age Profile'!N91+'[3]5.2 Asset Age Profile'!N91","v":0},{"$f":"'[2]5.2 Asset Age Profile'!O91+'[3]5.2 Asset Age Profile'!O91","v":0},{"$f":"'[2]5.2 Asset Age Profile'!P91+'[3]5.2 Asset Age Profile'!P91","v":0},{"$f":"'[2]5.2 Asset Age Profile'!Q91+'[3]5.2 Asset Age Profile'!Q91","v":0},{"$f":"'[2]5.2 Asset Age Profile'!R91+'[3]5.2 Asset Age Profile'!R91","v":0},{"$f":"'[2]5.2 Asset Age Profile'!S91+'[3]5.2 Asset Age Profile'!S91","v":0},{"$f":"'[2]5.2 Asset Age Profile'!T91+'[3]5.2 Asset Age Profile'!T91","v":0},{"$f":"'[2]5.2 Asset Age Profile'!U91+'[3]5.2 Asset Age Profile'!U91","v":0},{"$f":"'[2]5.2 Asset Age Profile'!V91+'[3]5.2 Asset Age Profile'!V91","v":0},{"$f":"'[2]5.2 Asset Age Profile'!W91+'[3]5.2 Asset Age Profile'!W91","v":0},{"$f":"'[2]5.2 Asset Age Profile'!X91+'[3]5.2 Asset Age Profile'!X91","v":0},{"$f":"'[2]5.2 Asset Age Profile'!Y91+'[3]5.2 Asset Age Profile'!Y91","v":0},{"$f":"'[2]5.2 Asset Age Profile'!Z91+'[3]5.2 Asset Age Profile'!Z91","v":0},{"$f":"'[2]5.2 Asset Age Profile'!AA91+'[3]5.2 Asset Age Profile'!AA91","v":0},{"$f":"'[2]5.2 Asset Age Profile'!AB91+'[3]5.2 Asset Age Profile'!AB91","v":0},{"$f":"'[2]5.2 Asset Age Profile'!AC91+'[3]5.2 Asset Age Profile'!AC91","v":0},{"$f":"'[2]5.2 Asset Age Profile'!AD91+'[3]5.2 Asset Age Profile'!AD91","v":0},{"$f":"'[2]5.2 Asset Age Profile'!AE91+'[3]5.2 Asset Age Profile'!AE91","v":0},{"$f":"'[2]5.2 Asset Age Profile'!AF91+'[3]5.2 Asset Age Profile'!AF91","v":0},{"$f":"'[2]5.2 Asset Age Profile'!AG91+'[3]5.2 Asset Age Profile'!AG91","v":0},{"$f":"'[2]5.2 Asset Age Profile'!AH91+'[3]5.2 Asset Age Profile'!AH91","v":0},{"$f":"'[2]5.2 Asset Age Profile'!AI91+'[3]5.2 Asset Age Profile'!AI91","v":0},{"$f":"'[2]5.2 Asset Age Profile'!AJ91+'[3]5.2 Asset Age Profile'!AJ91","v":0},{"$f":"'[2]5.2 Asset Age Profile'!AK91+'[3]5.2 Asset Age Profile'!AK91","v":0},{"$f":"'[2]5.2 Asset Age Profile'!AL91+'[3]5.2 Asset Age Profile'!AL91","v":0},{"$f":"'[2]5.2 Asset Age Profile'!AM91+'[3]5.2 Asset Age Profile'!AM91","v":0},{"$f":"'[2]5.2 Asset Age Profile'!AN91+'[3]5.2 Asset Age Profile'!AN91","v":0},{"$f":"'[2]5.2 Asset Age Profile'!AO91+'[3]5.2 Asset Age Profile'!AO91","v":0},{"$f":"'[2]5.2 Asset Age Profile'!AP91+'[3]5.2 Asset Age Profile'!AP91","v":0},{"$f":"'[2]5.2 Asset Age Profile'!AQ91+'[3]5.2 Asset Age Profile'!AQ91","v":0},{"$f":"'[2]5.2 Asset Age Profile'!AR91+'[3]5.2 Asset Age Profile'!AR91","v":0},{"$f":"'[2]5.2 Asset Age Profile'!AS91+'[3]5.2 Asset Age Profile'!AS91","v":0},{"$f":"'[2]5.2 Asset Age Profile'!AT91+'[3]5.2 Asset Age Profile'!AT91","v":0},{"$f":"'[2]5.2 Asset Age Profile'!AU91+'[3]5.2 Asset Age Profile'!AU91","v":0},{"$f":"'[2]5.2 Asset Age Profile'!AV91+'[3]5.2 Asset Age Profile'!AV91","v":0},{"$f":"'[2]5.2 Asset Age Profile'!AW91+'[3]5.2 Asset Age Profile'!AW91","v":0},{"$f":"'[2]5.2 Asset Age Profile'!AX91+'[3]5.2 Asset Age Profile'!AX91","v":0},{"$f":"'[2]5.2 Asset Age Profile'!AY91+'[3]5.2 Asset Age Profile'!AY91","v":0},{"$f":"'[2]5.2 Asset Age Profile'!AZ91+'[3]5.2 Asset Age Profile'!AZ91","v":0},{"$f":"'[2]5.2 Asset Age Profile'!BA91+'[3]5.2 Asset Age Profile'!BA91","v":0},{"$f":"'[2]5.2 Asset Age Profile'!BB91+'[3]5.2 Asset Age Profile'!BB91","v":0},{"$f":"'[2]5.2 Asset Age Profile'!BC91+'[3]5.2 Asset Age Profile'!BC91","v":0},{"$f":"'[2]5.2 Asset Age Profile'!BD91+'[3]5.2 Asset Age Profile'!BD91","v":0},{"$f":"'[2]5.2 Asset Age Profile'!BE91+'[3]5.2 Asset Age Profile'!BE91","v":0},{"$f":"'[2]5.2 Asset Age Profile'!BF91+'[3]5.2 Asset Age Profile'!BF91","v":0},{"$f":"'[2]5.2 Asset Age Profile'!BG91+'[3]5.2 Asset Age Profile'!BG91","v":0},{"$f":"'[2]5.2 Asset Age Profile'!BH91+'[3]5.2 Asset Age Profile'!BH91","v":0},{"$f":"'[2]5.2 Asset Age Profile'!BI91+'[3]5.2 Asset Age Profile'!BI91","v":0},{"$f":"'[2]5.2 Asset Age Profile'!BJ91+'[3]5.2 Asset Age Profile'!BJ91","v":0},{"$f":"'[2]5.2 Asset Age Profile'!BK91+'[3]5.2 Asset Age Profile'!BK91","v":0},{"$f":"'[2]5.2 Asset Age Profile'!BL91+'[3]5.2 Asset Age Profile'!BL91","v":0},{"$f":"'[2]5.2 Asset Age Profile'!BM91+'[3]5.2 Asset Age Profile'!BM91","v":0},{"$f":"'[2]5.2 Asset Age Profile'!BN91+'[3]5.2 Asset Age Profile'!BN91","v":0},{"$f":"'[2]5.2 Asset Age Profile'!BO91+'[3]5.2 Asset Age Profile'!BO91","v":0},{"$f":"'[2]5.2 Asset Age Profile'!BP91+'[3]5.2 Asset Age Profile'!BP91","v":0},{"$f":"'[2]5.2 Asset Age Profile'!BQ91+'[3]5.2 Asset Age Profile'!BQ91","v":0},{"$f":"'[2]5.2 Asset Age Profile'!BR91+'[3]5.2 Asset Age Profile'!BR91","v":0},{"$f":"'[2]5.2 Asset Age Profile'!BS91+'[3]5.2 Asset Age Profile'!BS91","v":0},{"$f":"'[2]5.2 Asset Age Profile'!BT91+'[3]5.2 Asset Age Profile'!BT91","v":0},{"$f":"'[2]5.2 Asset Age Profile'!BU91+'[3]5.2 Asset Age Profile'!BU91","v":0},{"$f":"'[2]5.2 Asset Age Profile'!BV91+'[3]5.2 Asset Age Profile'!BV91","v":0},{"$f":"'[2]5.2 Asset Age Profile'!BW91+'[3]5.2 Asset Age Profile'!BW91","v":0},{"$f":"'[2]5.2 Asset Age Profile'!BX91+'[3]5.2 Asset Age Profile'!BX91","v":0},{"$f":"'[2]5.2 Asset Age Profile'!BY91+'[3]5.2 Asset Age Profile'!BY91","v":0},{"$f":"'[2]5.2 Asset Age Profile'!BZ91+'[3]5.2 Asset Age Profile'!BZ91","v":0},{"$f":"'[2]5.2 Asset Age Profile'!CA91+'[3]5.2 Asset Age Profile'!CA91","v":0},{"$f":"'[2]5.2 Asset Age Profile'!CB91+'[3]5.2 Asset Age Profile'!CB91","v":0},{"$f":"'[2]5.2 Asset Age Profile'!CC91+'[3]5.2 Asset Age Profile'!CC91","v":0},{"$f":"'[2]5.2 Asset Age Profile'!CD91+'[3]5.2 Asset Age Profile'!CD91","v":0},{"$f":"'[2]5.2 Asset Age Profile'!CE91+'[3]5.2 Asset Age Profile'!CE91","v":0},{"$f":"'[2]5.2 Asset Age Profile'!CF91+'[3]5.2 Asset Age Profile'!CF91","v":0},{"$f":"'[2]5.2 Asset Age Profile'!CG91+'[3]5.2 Asset Age Profile'!CG91","v":0},{"$f":"'[2]5.2 Asset Age Profile'!CH91+'[3]5.2 Asset Age Profile'!CH91","v":0},{"$f":"'[2]5.2 Asset Age Profile'!CI91+'[3]5.2 Asset Age Profile'!CI91","v":0},{"$f":"'[2]5.2 Asset Age Profile'!CJ91+'[3]5.2 Asset Age Profile'!CJ91","v":0},{"$f":"'[2]5.2 Asset Age Profile'!CK91+'[3]5.2 Asset Age Profile'!CK91","v":0},{"$f":"'[2]5.2 Asset Age Profile'!CL91+'[3]5.2 Asset Age Profile'!CL91","v":0},{"$f":"'[2]5.2 Asset Age Profile'!CM91+'[3]5.2 Asset Age Profile'!CM91","v":0},{"$f":"'[2]5.2 Asset Age Profile'!CN91+'[3]5.2 Asset Age Profile'!CN91","v":0},{"$f":"'[2]5.2 Asset Age Profile'!CO91+'[3]5.2 Asset Age Profile'!CO91","v":0},{"$f":"'[2]5.2 Asset Age Profile'!CP91+'[3]5.2 Asset Age Profile'!CP91","v":0},{"$f":"'[2]5.2 Asset Age Profile'!CQ91+'[3]5.2 Asset Age Profile'!CQ91","v":0},{"$f":"'[2]5.2 Asset Age Profile'!CR91+'[3]5.2 Asset Age Profile'!CR91","v":0},{"$f":"'[2]5.2 Asset Age Profile'!CS91+'[3]5.2 Asset Age Profile'!CS91","v":0},{"$f":"'[2]5.2 Asset Age Profile'!CT91+'[3]5.2 Asset Age Profile'!CT91","v":0},{"$f":"'[2]5.2 Asset Age Profile'!CU91+'[3]5.2 Asset Age Profile'!CU91","v":0},{"$f":"'[2]5.2 Asset Age Profile'!CV91+'[3]5.2 Asset Age Profile'!CV91","v":0},{"$f":"'[2]5.2 Asset Age Profile'!CW91+'[3]5.2 Asset Age Profile'!CW91","v":0},{"$f":"'[2]5.2 Asset Age Profile'!CX91+'[3]5.2 Asset Age Profile'!CX91","v":0},{"$f":"'[2]5.2 Asset Age Profile'!CY91+'[3]5.2 Asset Age Profile'!CY91","v":0},{"$f":"'[2]5.2 Asset Age Profile'!CZ91+'[3]5.2 Asset Age Profile'!CZ91","v":0},{"$f":"'[2]5.2 Asset Age Profile'!DA91+'[3]5.2 Asset Age Profile'!DA91","v":0},{"$f":"'[2]5.2 Asset Age Profile'!DB91+'[3]5.2 Asset Age Profile'!DB91","v":0},{"$f":"'[2]5.2 Asset Age Profile'!DC91+'[3]5.2 Asset Age Profile'!DC91","v":0},{"$f":"'[2]5.2 Asset Age Profile'!DD91+'[3]5.2 Asset Age Profile'!DD91","v":0},{"$f":"'[2]5.2 Asset Age Profile'!DE91+'[3]5.2 Asset Age Profile'!DE91","v":0},{"$f":"'[2]5.2 Asset Age Profile'!DF91+'[3]5.2 Asset Age Profile'!DF91","v":0},{"$f":"'[2]5.2 Asset Age Profile'!DG91+'[3]5.2 Asset Age Profile'!DG91","v":0},{"$f":"'[2]5.2 Asset Age Profile'!DH91+'[3]5.2 Asset Age Profile'!DH91","v":0},{"$f":"'[2]5.2 Asset Age Profile'!DI91+'[3]5.2 Asset Age Profile'!DI91","v":0},{"$f":"'[2]5.2 Asset Age Profile'!DJ91+'[3]5.2 Asset Age Profile'!DJ91","v":0},{"$f":"'[2]5.2 Asset Age Profile'!DK91+'[3]5.2 Asset Age Profile'!DK91","v":0},{"$f":"'[2]5.2 Asset Age Profile'!DL91+'[3]5.2 Asset Age Profile'!DL91","v":0},{"$f":"'[2]5.2 Asset Age Profile'!DM91+'[3]5.2 Asset Age Profile'!DM91","v":0},{"$f":"'[2]5.2 Asset Age Profile'!DN91+'[3]5.2 Asset Age Profile'!DN91","v":0},{"$f":"'[2]5.2 Asset Age Profile'!DO91+'[3]5.2 Asset Age Profile'!DO91","v":0},{"$f":"'[2]5.2 Asset Age Profile'!DP91+'[3]5.2 Asset Age Profile'!DP91","v":0},{"$f":"'[2]5.2 Asset Age Profile'!DQ91+'[3]5.2 Asset Age Profile'!DQ91","v":0},{"$f":"'[2]5.2 Asset Age Profile'!DR91+'[3]5.2 Asset Age Profile'!DR91","v":0},{"$f":"'[2]5.2 Asset Age Profile'!DS91+'[3]5.2 Asset Age Profile'!DS91","v":0},{"$f":"'[2]5.2 Asset Age Profile'!DT91+'[3]5.2 Asset Age Profile'!DT91","v":0},{"$f":"'[2]5.2 Asset Age Profile'!DU91+'[3]5.2 Asset Age Profile'!DU91","v":0},{"$f":"'[2]5.2 Asset Age Profile'!DV91+'[3]5.2 Asset Age Profile'!DV91","v":0},{"$f":"'[2]5.2 Asset Age Profile'!DW91+'[3]5.2 Asset Age Profile'!DW91","v":0},{"$f":"'[2]5.2 Asset Age Profile'!DX91+'[3]5.2 Asset Age Profile'!DX91","v":0},{"$f":"'[2]5.2 Asset Age Profile'!DY91+'[3]5.2 Asset Age Profile'!DY91","v":0},{"$f":"'[2]5.2 Asset Age Profile'!DZ91+'[3]5.2 Asset Age Profile'!DZ91","v":0},{"$f":"'[2]5.2 Asset Age Profile'!EA91+'[3]5.2 Asset Age Profile'!EA91","v":0},{"$f":"'[2]5.2 Asset Age Profile'!EB91+'[3]5.2 Asset Age Profile'!EB91","v":0},{"$f":"'[2]5.2 Asset Age Profile'!EC91+'[3]5.2 Asset Age Profile'!EC91","v":0},{"$f":"'[2]5.2 Asset Age Profile'!ED91+'[3]5.2 Asset Age Profile'!ED91","v":0},{"$f":"'[2]5.2 Asset Age Profile'!EE91+'[3]5.2 Asset Age Profile'!EE91","v":0},{"$f":"'[2]5.2 Asset Age Profile'!EF91+'[3]5.2 Asset Age Profile'!EF91","v":0},{"$f":"'[2]5.2 Asset Age Profile'!EG91+'[3]5.2 Asset Age Profile'!EG91","v":0},{"$f":"'[2]5.2 Asset Age Profile'!EH91+'[3]5.2 Asset Age Profile'!EH91","v":0},{"$f":"'[2]5.2 Asset Age Profile'!EI91+'[3]5.2 Asset Age Profile'!EI91","v":0},{"$f":"'[2]5.2 Asset Age Profile'!EJ91+'[3]5.2 Asset Age Profile'!EJ91","v":0}]
["ED_ASS521_00082",null,"Ground Outdoor / Indoor Chamber Mounted; > 33 kV & < = 66 kV ;  < = 15 MVA",null,null,null,null,null,null,null,null,null,null,{"$f":"'[2]5.2 Asset Age Profile'!N92+'[3]5.2 Asset Age Profile'!N92","v":0},{"$f":"'[2]5.2 Asset Age Profile'!O92+'[3]5.2 Asset Age Profile'!O92","v":0},{"$f":"'[2]5.2 Asset Age Profile'!P92+'[3]5.2 Asset Age Profile'!P92","v":0},{"$f":"'[2]5.2 Asset Age Profile'!Q92+'[3]5.2 Asset Age Profile'!Q92","v":0},{"$f":"'[2]5.2 Asset Age Profile'!R92+'[3]5.2 Asset Age Profile'!R92","v":0},{"$f":"'[2]5.2 Asset Age Profile'!S92+'[3]5.2 Asset Age Profile'!S92","v":0},{"$f":"'[2]5.2 Asset Age Profile'!T92+'[3]5.2 Asset Age Profile'!T92","v":0},{"$f":"'[2]5.2 Asset Age Profile'!U92+'[3]5.2 Asset Age Profile'!U92","v":0},{"$f":"'[2]5.2 Asset Age Profile'!V92+'[3]5.2 Asset Age Profile'!V92","v":0},{"$f":"'[2]5.2 Asset Age Profile'!W92+'[3]5.2 Asset Age Profile'!W92","v":0},{"$f":"'[2]5.2 Asset Age Profile'!X92+'[3]5.2 Asset Age Profile'!X92","v":0},{"$f":"'[2]5.2 Asset Age Profile'!Y92+'[3]5.2 Asset Age Profile'!Y92","v":0},{"$f":"'[2]5.2 Asset Age Profile'!Z92+'[3]5.2 Asset Age Profile'!Z92","v":0},{"$f":"'[2]5.2 Asset Age Profile'!AA92+'[3]5.2 Asset Age Profile'!AA92","v":0},{"$f":"'[2]5.2 Asset Age Profile'!AB92+'[3]5.2 Asset Age Profile'!AB92","v":0},{"$f":"'[2]5.2 Asset Age Profile'!AC92+'[3]5.2 Asset Age Profile'!AC92","v":0},{"$f":"'[2]5.2 Asset Age Profile'!AD92+'[3]5.2 Asset Age Profile'!AD92","v":0},{"$f":"'[2]5.2 Asset Age Profile'!AE92+'[3]5.2 Asset Age Profile'!AE92","v":0},{"$f":"'[2]5.2 Asset Age Profile'!AF92+'[3]5.2 Asset Age Profile'!AF92","v":0},{"$f":"'[2]5.2 Asset Age Profile'!AG92+'[3]5.2 Asset Age Profile'!AG92","v":0},{"$f":"'[2]5.2 Asset Age Profile'!AH92+'[3]5.2 Asset Age Profile'!AH92","v":0},{"$f":"'[2]5.2 Asset Age Profile'!AI92+'[3]5.2 Asset Age Profile'!AI92","v":0},{"$f":"'[2]5.2 Asset Age Profile'!AJ92+'[3]5.2 Asset Age Profile'!AJ92","v":0},{"$f":"'[2]5.2 Asset Age Profile'!AK92+'[3]5.2 Asset Age Profile'!AK92","v":0},{"$f":"'[2]5.2 Asset Age Profile'!AL92+'[3]5.2 Asset Age Profile'!AL92","v":0},{"$f":"'[2]5.2 Asset Age Profile'!AM92+'[3]5.2 Asset Age Profile'!AM92","v":0},{"$f":"'[2]5.2 Asset Age Profile'!AN92+'[3]5.2 Asset Age Profile'!AN92","v":0},{"$f":"'[2]5.2 Asset Age Profile'!AO92+'[3]5.2 Asset Age Profile'!AO92","v":0},{"$f":"'[2]5.2 Asset Age Profile'!AP92+'[3]5.2 Asset Age Profile'!AP92","v":0},{"$f":"'[2]5.2 Asset Age Profile'!AQ92+'[3]5.2 Asset Age Profile'!AQ92","v":0},{"$f":"'[2]5.2 Asset Age Profile'!AR92+'[3]5.2 Asset Age Profile'!AR92","v":0},{"$f":"'[2]5.2 Asset Age Profile'!AS92+'[3]5.2 Asset Age Profile'!AS92","v":0},{"$f":"'[2]5.2 Asset Age Profile'!AT92+'[3]5.2 Asset Age Profile'!AT92","v":0},{"$f":"'[2]5.2 Asset Age Profile'!AU92+'[3]5.2 Asset Age Profile'!AU92","v":0},{"$f":"'[2]5.2 Asset Age Profile'!AV92+'[3]5.2 Asset Age Profile'!AV92","v":0},{"$f":"'[2]5.2 Asset Age Profile'!AW92+'[3]5.2 Asset Age Profile'!AW92","v":0},{"$f":"'[2]5.2 Asset Age Profile'!AX92+'[3]5.2 Asset Age Profile'!AX92","v":0},{"$f":"'[2]5.2 Asset Age Profile'!AY92+'[3]5.2 Asset Age Profile'!AY92","v":0},{"$f":"'[2]5.2 Asset Age Profile'!AZ92+'[3]5.2 Asset Age Profile'!AZ92","v":0},{"$f":"'[2]5.2 Asset Age Profile'!BA92+'[3]5.2 Asset Age Profile'!BA92","v":0},{"$f":"'[2]5.2 Asset Age Profile'!BB92+'[3]5.2 Asset Age Profile'!BB92","v":0},{"$f":"'[2]5.2 Asset Age Profile'!BC92+'[3]5.2 Asset Age Profile'!BC92","v":0},{"$f":"'[2]5.2 Asset Age Profile'!BD92+'[3]5.2 Asset Age Profile'!BD92","v":0},{"$f":"'[2]5.2 Asset Age Profile'!BE92+'[3]5.2 Asset Age Profile'!BE92","v":0},{"$f":"'[2]5.2 Asset Age Profile'!BF92+'[3]5.2 Asset Age Profile'!BF92","v":0},{"$f":"'[2]5.2 Asset Age Profile'!BG92+'[3]5.2 Asset Age Profile'!BG92","v":0},{"$f":"'[2]5.2 Asset Age Profile'!BH92+'[3]5.2 Asset Age Profile'!BH92","v":0},{"$f":"'[2]5.2 Asset Age Profile'!BI92+'[3]5.2 Asset Age Profile'!BI92","v":0},{"$f":"'[2]5.2 Asset Age Profile'!BJ92+'[3]5.2 Asset Age Profile'!BJ92","v":0},{"$f":"'[2]5.2 Asset Age Profile'!BK92+'[3]5.2 Asset Age Profile'!BK92","v":0},{"$f":"'[2]5.2 Asset Age Profile'!BL92+'[3]5.2 Asset Age Profile'!BL92","v":0},{"$f":"'[2]5.2 Asset Age Profile'!BM92+'[3]5.2 Asset Age Profile'!BM92","v":0},{"$f":"'[2]5.2 Asset Age Profile'!BN92+'[3]5.2 Asset Age Profile'!BN92","v":0},{"$f":"'[2]5.2 Asset Age Profile'!BO92+'[3]5.2 Asset Age Profile'!BO92","v":0},{"$f":"'[2]5.2 Asset Age Profile'!BP92+'[3]5.2 Asset Age Profile'!BP92","v":0},{"$f":"'[2]5.2 Asset Age Profile'!BQ92+'[3]5.2 Asset Age Profile'!BQ92","v":0},{"$f":"'[2]5.2 Asset Age Profile'!BR92+'[3]5.2 Asset Age Profile'!BR92","v":0},{"$f":"'[2]5.2 Asset Age Profile'!BS92+'[3]5.2 Asset Age Profile'!BS92","v":0},{"$f":"'[2]5.2 Asset Age Profile'!BT92+'[3]5.2 Asset Age Profile'!BT92","v":0},{"$f":"'[2]5.2 Asset Age Profile'!BU92+'[3]5.2 Asset Age Profile'!BU92","v":0},{"$f":"'[2]5.2 Asset Age Profile'!BV92+'[3]5.2 Asset Age Profile'!BV92","v":0},{"$f":"'[2]5.2 Asset Age Profile'!BW92+'[3]5.2 Asset Age Profile'!BW92","v":0},{"$f":"'[2]5.2 Asset Age Profile'!BX92+'[3]5.2 Asset Age Profile'!BX92","v":0},{"$f":"'[2]5.2 Asset Age Profile'!BY92+'[3]5.2 Asset Age Profile'!BY92","v":0},{"$f":"'[2]5.2 Asset Age Profile'!BZ92+'[3]5.2 Asset Age Profile'!BZ92","v":0},{"$f":"'[2]5.2 Asset Age Profile'!CA92+'[3]5.2 Asset Age Profile'!CA92","v":0},{"$f":"'[2]5.2 Asset Age Profile'!CB92+'[3]5.2 Asset Age Profile'!CB92","v":0},{"$f":"'[2]5.2 Asset Age Profile'!CC92+'[3]5.2 Asset Age Profile'!CC92","v":0},{"$f":"'[2]5.2 Asset Age Profile'!CD92+'[3]5.2 Asset Age Profile'!CD92","v":0},{"$f":"'[2]5.2 Asset Age Profile'!CE92+'[3]5.2 Asset Age Profile'!CE92","v":0},{"$f":"'[2]5.2 Asset Age Profile'!CF92+'[3]5.2 Asset Age Profile'!CF92","v":0},{"$f":"'[2]5.2 Asset Age Profile'!CG92+'[3]5.2 Asset Age Profile'!CG92","v":0},{"$f":"'[2]5.2 Asset Age Profile'!CH92+'[3]5.2 Asset Age Profile'!CH92","v":0},{"$f":"'[2]5.2 Asset Age Profile'!CI92+'[3]5.2 Asset Age Profile'!CI92","v":0},{"$f":"'[2]5.2 Asset Age Profile'!CJ92+'[3]5.2 Asset Age Profile'!CJ92","v":0},{"$f":"'[2]5.2 Asset Age Profile'!CK92+'[3]5.2 Asset Age Profile'!CK92","v":0},{"$f":"'[2]5.2 Asset Age Profile'!CL92+'[3]5.2 Asset Age Profile'!CL92","v":0},{"$f":"'[2]5.2 Asset Age Profile'!CM92+'[3]5.2 Asset Age Profile'!CM92","v":0},{"$f":"'[2]5.2 Asset Age Profile'!CN92+'[3]5.2 Asset Age Profile'!CN92","v":0},{"$f":"'[2]5.2 Asset Age Profile'!CO92+'[3]5.2 Asset Age Profile'!CO92","v":0},{"$f":"'[2]5.2 Asset Age Profile'!CP92+'[3]5.2 Asset Age Profile'!CP92","v":0},{"$f":"'[2]5.2 Asset Age Profile'!CQ92+'[3]5.2 Asset Age Profile'!CQ92","v":0},{"$f":"'[2]5.2 Asset Age Profile'!CR92+'[3]5.2 Asset Age Profile'!CR92","v":0},{"$f":"'[2]5.2 Asset Age Profile'!CS92+'[3]5.2 Asset Age Profile'!CS92","v":0},{"$f":"'[2]5.2 Asset Age Profile'!CT92+'[3]5.2 Asset Age Profile'!CT92","v":0},{"$f":"'[2]5.2 Asset Age Profile'!CU92+'[3]5.2 Asset Age Profile'!CU92","v":0},{"$f":"'[2]5.2 Asset Age Profile'!CV92+'[3]5.2 Asset Age Profile'!CV92","v":0},{"$f":"'[2]5.2 Asset Age Profile'!CW92+'[3]5.2 Asset Age Profile'!CW92","v":0},{"$f":"'[2]5.2 Asset Age Profile'!CX92+'[3]5.2 Asset Age Profile'!CX92","v":0},{"$f":"'[2]5.2 Asset Age Profile'!CY92+'[3]5.2 Asset Age Profile'!CY92","v":0},{"$f":"'[2]5.2 Asset Age Profile'!CZ92+'[3]5.2 Asset Age Profile'!CZ92","v":0},{"$f":"'[2]5.2 Asset Age Profile'!DA92+'[3]5.2 Asset Age Profile'!DA92","v":0},{"$f":"'[2]5.2 Asset Age Profile'!DB92+'[3]5.2 Asset Age Profile'!DB92","v":0},{"$f":"'[2]5.2 Asset Age Profile'!DC92+'[3]5.2 Asset Age Profile'!DC92","v":0},{"$f":"'[2]5.2 Asset Age Profile'!DD92+'[3]5.2 Asset Age Profile'!DD92","v":0},{"$f":"'[2]5.2 Asset Age Profile'!DE92+'[3]5.2 Asset Age Profile'!DE92","v":0},{"$f":"'[2]5.2 Asset Age Profile'!DF92+'[3]5.2 Asset Age Profile'!DF92","v":0},{"$f":"'[2]5.2 Asset Age Profile'!DG92+'[3]5.2 Asset Age Profile'!DG92","v":0},{"$f":"'[2]5.2 Asset Age Profile'!DH92+'[3]5.2 Asset Age Profile'!DH92","v":0},{"$f":"'[2]5.2 Asset Age Profile'!DI92+'[3]5.2 Asset Age Profile'!DI92","v":0},{"$f":"'[2]5.2 Asset Age Profile'!DJ92+'[3]5.2 Asset Age Profile'!DJ92","v":0},{"$f":"'[2]5.2 Asset Age Profile'!DK92+'[3]5.2 Asset Age Profile'!DK92","v":0},{"$f":"'[2]5.2 Asset Age Profile'!DL92+'[3]5.2 Asset Age Profile'!DL92","v":0},{"$f":"'[2]5.2 Asset Age Profile'!DM92+'[3]5.2 Asset Age Profile'!DM92","v":0},{"$f":"'[2]5.2 Asset Age Profile'!DN92+'[3]5.2 Asset Age Profile'!DN92","v":0},{"$f":"'[2]5.2 Asset Age Profile'!DO92+'[3]5.2 Asset Age Profile'!DO92","v":0},{"$f":"'[2]5.2 Asset Age Profile'!DP92+'[3]5.2 Asset Age Profile'!DP92","v":0},{"$f":"'[2]5.2 Asset Age Profile'!DQ92+'[3]5.2 Asset Age Profile'!DQ92","v":0},{"$f":"'[2]5.2 Asset Age Profile'!DR92+'[3]5.2 Asset Age Profile'!DR92","v":0},{"$f":"'[2]5.2 Asset Age Profile'!DS92+'[3]5.2 Asset Age Profile'!DS92","v":0},{"$f":"'[2]5.2 Asset Age Profile'!DT92+'[3]5.2 Asset Age Profile'!DT92","v":0},{"$f":"'[2]5.2 Asset Age Profile'!DU92+'[3]5.2 Asset Age Profile'!DU92","v":0},{"$f":"'[2]5.2 Asset Age Profile'!DV92+'[3]5.2 Asset Age Profile'!DV92","v":0},{"$f":"'[2]5.2 Asset Age Profile'!DW92+'[3]5.2 Asset Age Profile'!DW92","v":0},{"$f":"'[2]5.2 Asset Age Profile'!DX92+'[3]5.2 Asset Age Profile'!DX92","v":0},{"$f":"'[2]5.2 Asset Age Profile'!DY92+'[3]5.2 Asset Age Profile'!DY92","v":0},{"$f":"'[2]5.2 Asset Age Profile'!DZ92+'[3]5.2 Asset Age Profile'!DZ92","v":0},{"$f":"'[2]5.2 Asset Age Profile'!EA92+'[3]5.2 Asset Age Profile'!EA92","v":0},{"$f":"'[2]5.2 Asset Age Profile'!EB92+'[3]5.2 Asset Age Profile'!EB92","v":0},{"$f":"'[2]5.2 Asset Age Profile'!EC92+'[3]5.2 Asset Age Profile'!EC92","v":0},{"$f":"'[2]5.2 Asset Age Profile'!ED92+'[3]5.2 Asset Age Profile'!ED92","v":0},{"$f":"'[2]5.2 Asset Age Profile'!EE92+'[3]5.2 Asset Age Profile'!EE92","v":0},{"$f":"'[2]5.2 Asset Age Profile'!EF92+'[3]5.2 Asset Age Profile'!EF92","v":0},{"$f":"'[2]5.2 Asset Age Profile'!EG92+'[3]5.2 Asset Age Profile'!EG92","v":0},{"$f":"'[2]5.2 Asset Age Profile'!EH92+'[3]5.2 Asset Age Profile'!EH92","v":0},{"$f":"'[2]5.2 Asset Age Profile'!EI92+'[3]5.2 Asset Age Profile'!EI92","v":0},{"$f":"'[2]5.2 Asset Age Profile'!EJ92+'[3]5.2 Asset Age Profile'!EJ92","v":0}]
["ED_ASS521_00083",null,"Ground Outdoor / Indoor Chamber Mounted; > 33 kV & < = 66 kV ;  > 15 MVA and < = 40 MVA",null,null,null,null,null,null,null,null,null,null,{"$f":"'[2]5.2 Asset Age Profile'!N93+'[3]5.2 Asset Age Profile'!N93","v":50},{"$f":"'[2]5.2 Asset Age Profile'!O93+'[3]5.2 Asset Age Profile'!O93","v":0},{"$f":"'[2]5.2 Asset Age Profile'!P93+'[3]5.2 Asset Age Profile'!P93","v":0},{"$f":"'[2]5.2 Asset Age Profile'!Q93+'[3]5.2 Asset Age Profile'!Q93","v":0},{"$f":"'[2]5.2 Asset Age Profile'!R93+'[3]5.2 Asset Age Profile'!R93","v":0},{"$f":"'[2]5.2 Asset Age Profile'!S93+'[3]5.2 Asset Age Profile'!S93","v":0},{"$f":"'[2]5.2 Asset Age Profile'!T93+'[3]5.2 Asset Age Profile'!T93","v":0},{"$f":"'[2]5.2 Asset Age Profile'!U93+'[3]5.2 Asset Age Profile'!U93","v":0},{"$f":"'[2]5.2 Asset Age Profile'!V93+'[3]5.2 Asset Age Profile'!V93","v":0},{"$f":"'[2]5.2 Asset Age Profile'!W93+'[3]5.2 Asset Age Profile'!W93","v":0},{"$f":"'[2]5.2 Asset Age Profile'!X93+'[3]5.2 Asset Age Profile'!X93","v":0},{"$f":"'[2]5.2 Asset Age Profile'!Y93+'[3]5.2 Asset Age Profile'!Y93","v":13},{"$f":"'[2]5.2 Asset Age Profile'!Z93+'[3]5.2 Asset Age Profile'!Z93","v":0},{"$f":"'[2]5.2 Asset Age Profile'!AA93+'[3]5.2 Asset Age Profile'!AA93","v":0},{"$f":"'[2]5.2 Asset Age Profile'!AB93+'[3]5.2 Asset Age Profile'!AB93","v":0},{"$f":"'[2]5.2 Asset Age Profile'!AC93+'[3]5.2 Asset Age Profile'!AC93","v":0},{"$f":"'[2]5.2 Asset Age Profile'!AD93+'[3]5.2 Asset Age Profile'!AD93","v":0},{"$f":"'[2]5.2 Asset Age Profile'!AE93+'[3]5.2 Asset Age Profile'!AE93","v":0},{"$f":"'[2]5.2 Asset Age Profile'!AF93+'[3]5.2 Asset Age Profile'!AF93","v":0},{"$f":"'[2]5.2 Asset Age Profile'!AG93+'[3]5.2 Asset Age Profile'!AG93","v":0},{"$f":"'[2]5.2 Asset Age Profile'!AH93+'[3]5.2 Asset Age Profile'!AH93","v":0},{"$f":"'[2]5.2 Asset Age Profile'!AI93+'[3]5.2 Asset Age Profile'!AI93","v":0},{"$f":"'[2]5.2 Asset Age Profile'!AJ93+'[3]5.2 Asset Age Profile'!AJ93","v":0},{"$f":"'[2]5.2 Asset Age Profile'!AK93+'[3]5.2 Asset Age Profile'!AK93","v":1},{"$f":"'[2]5.2 Asset Age Profile'!AL93+'[3]5.2 Asset Age Profile'!AL93","v":0},{"$f":"'[2]5.2 Asset Age Profile'!AM93+'[3]5.2 Asset Age Profile'!AM93","v":0},{"$f":"'[2]5.2 Asset Age Profile'!AN93+'[3]5.2 Asset Age Profile'!AN93","v":0},{"$f":"'[2]5.2 Asset Age Profile'!AO93+'[3]5.2 Asset Age Profile'!AO93","v":0},{"$f":"'[2]5.2 Asset Age Profile'!AP93+'[3]5.2 Asset Age Profile'!AP93","v":0},{"$f":"'[2]5.2 Asset Age Profile'!AQ93+'[3]5.2 Asset Age Profile'!AQ93","v":1},{"$f":"'[2]5.2 Asset Age Profile'!AR93+'[3]5.2 Asset Age Profile'!AR93","v":0},{"$f":"'[2]5.2 Asset Age Profile'!AS93+'[3]5.2 Asset Age Profile'!AS93","v":1},{"$f":"'[2]5.2 Asset Age Profile'!AT93+'[3]5.2 Asset Age Profile'!AT93","v":0},{"$f":"'[2]5.2 Asset Age Profile'!AU93+'[3]5.2 Asset Age Profile'!AU93","v":0},{"$f":"'[2]5.2 Asset Age Profile'!AV93+'[3]5.2 Asset Age Profile'!AV93","v":0},{"$f":"'[2]5.2 Asset Age Profile'!AW93+'[3]5.2 Asset Age Profile'!AW93","v":0},{"$f":"'[2]5.2 Asset Age Profile'!AX93+'[3]5.2 Asset Age Profile'!AX93","v":0},{"$f":"'[2]5.2 Asset Age Profile'!AY93+'[3]5.2 Asset Age Profile'!AY93","v":0},{"$f":"'[2]5.2 Asset Age Profile'!AZ93+'[3]5.2 Asset Age Profile'!AZ93","v":0},{"$f":"'[2]5.2 Asset Age Profile'!BA93+'[3]5.2 Asset Age Profile'!BA93","v":0},{"$f":"'[2]5.2 Asset Age Profile'!BB93+'[3]5.2 Asset Age Profile'!BB93","v":0},{"$f":"'[2]5.2 Asset Age Profile'!BC93+'[3]5.2 Asset Age Profile'!BC93","v":0},{"$f":"'[2]5.2 Asset Age Profile'!BD93+'[3]5.2 Asset Age Profile'!BD93","v":0},{"$f":"'[2]5.2 Asset Age Profile'!BE93+'[3]5.2 Asset Age Profile'!BE93","v":0},{"$f":"'[2]5.2 Asset Age Profile'!BF93+'[3]5.2 Asset Age Profile'!BF93","v":0},{"$f":"'[2]5.2 Asset Age Profile'!BG93+'[3]5.2 Asset Age Profile'!BG93","v":0},{"$f":"'[2]5.2 Asset Age Profile'!BH93+'[3]5.2 Asset Age Profile'!BH93","v":0},{"$f":"'[2]5.2 Asset Age Profile'!BI93+'[3]5.2 Asset Age Profile'!BI93","v":0},{"$f":"'[2]5.2 Asset Age Profile'!BJ93+'[3]5.2 Asset Age Profile'!BJ93","v":0},{"$f":"'[2]5.2 Asset Age Profile'!BK93+'[3]5.2 Asset Age Profile'!BK93","v":0},{"$f":"'[2]5.2 Asset Age Profile'!BL93+'[3]5.2 Asset Age Profile'!BL93","v":0},{"$f":"'[2]5.2 Asset Age Profile'!BM93+'[3]5.2 Asset Age Profile'!BM93","v":0},{"$f":"'[2]5.2 Asset Age Profile'!BN93+'[3]5.2 Asset Age Profile'!BN93","v":0},{"$f":"'[2]5.2 Asset Age Profile'!BO93+'[3]5.2 Asset Age Profile'!BO93","v":0},{"$f":"'[2]5.2 Asset Age Profile'!BP93+'[3]5.2 Asset Age Profile'!BP93","v":0},{"$f":"'[2]5.2 Asset Age Profile'!BQ93+'[3]5.2 Asset Age Profile'!BQ93","v":0},{"$f":"'[2]5.2 Asset Age Profile'!BR93+'[3]5.2 Asset Age Profile'!BR93","v":0},{"$f":"'[2]5.2 Asset Age Profile'!BS93+'[3]5.2 Asset Age Profile'!BS93","v":0},{"$f":"'[2]5.2 Asset Age Profile'!BT93+'[3]5.2 Asset Age Profile'!BT93","v":0},{"$f":"'[2]5.2 Asset Age Profile'!BU93+'[3]5.2 Asset Age Profile'!BU93","v":0},{"$f":"'[2]5.2 Asset Age Profile'!BV93+'[3]5.2 Asset Age Profile'!BV93","v":0},{"$f":"'[2]5.2 Asset Age Profile'!BW93+'[3]5.2 Asset Age Profile'!BW93","v":0},{"$f":"'[2]5.2 Asset Age Profile'!BX93+'[3]5.2 Asset Age Profile'!BX93","v":0},{"$f":"'[2]5.2 Asset Age Profile'!BY93+'[3]5.2 Asset Age Profile'!BY93","v":0},{"$f":"'[2]5.2 Asset Age Profile'!BZ93+'[3]5.2 Asset Age Profile'!BZ93","v":0},{"$f":"'[2]5.2 Asset Age Profile'!CA93+'[3]5.2 Asset Age Profile'!CA93","v":0},{"$f":"'[2]5.2 Asset Age Profile'!CB93+'[3]5.2 Asset Age Profile'!CB93","v":0},{"$f":"'[2]5.2 Asset Age Profile'!CC93+'[3]5.2 Asset Age Profile'!CC93","v":0},{"$f":"'[2]5.2 Asset Age Profile'!CD93+'[3]5.2 Asset Age Profile'!CD93","v":0},{"$f":"'[2]5.2 Asset Age Profile'!CE93+'[3]5.2 Asset Age Profile'!CE93","v":0},{"$f":"'[2]5.2 Asset Age Profile'!CF93+'[3]5.2 Asset Age Profile'!CF93","v":0},{"$f":"'[2]5.2 Asset Age Profile'!CG93+'[3]5.2 Asset Age Profile'!CG93","v":0},{"$f":"'[2]5.2 Asset Age Profile'!CH93+'[3]5.2 Asset Age Profile'!CH93","v":0},{"$f":"'[2]5.2 Asset Age Profile'!CI93+'[3]5.2 Asset Age Profile'!CI93","v":0},{"$f":"'[2]5.2 Asset Age Profile'!CJ93+'[3]5.2 Asset Age Profile'!CJ93","v":0},{"$f":"'[2]5.2 Asset Age Profile'!CK93+'[3]5.2 Asset Age Profile'!CK93","v":0},{"$f":"'[2]5.2 Asset Age Profile'!CL93+'[3]5.2 Asset Age Profile'!CL93","v":0},{"$f":"'[2]5.2 Asset Age Profile'!CM93+'[3]5.2 Asset Age Profile'!CM93","v":0},{"$f":"'[2]5.2 Asset Age Profile'!CN93+'[3]5.2 Asset Age Profile'!CN93","v":0},{"$f":"'[2]5.2 Asset Age Profile'!CO93+'[3]5.2 Asset Age Profile'!CO93","v":0},{"$f":"'[2]5.2 Asset Age Profile'!CP93+'[3]5.2 Asset Age Profile'!CP93","v":0},{"$f":"'[2]5.2 Asset Age Profile'!CQ93+'[3]5.2 Asset Age Profile'!CQ93","v":0},{"$f":"'[2]5.2 Asset Age Profile'!CR93+'[3]5.2 Asset Age Profile'!CR93","v":0},{"$f":"'[2]5.2 Asset Age Profile'!CS93+'[3]5.2 Asset Age Profile'!CS93","v":0},{"$f":"'[2]5.2 Asset Age Profile'!CT93+'[3]5.2 Asset Age Profile'!CT93","v":0},{"$f":"'[2]5.2 Asset Age Profile'!CU93+'[3]5.2 Asset Age Profile'!CU93","v":0},{"$f":"'[2]5.2 Asset Age Profile'!CV93+'[3]5.2 Asset Age Profile'!CV93","v":0},{"$f":"'[2]5.2 Asset Age Profile'!CW93+'[3]5.2 Asset Age Profile'!CW93","v":0},{"$f":"'[2]5.2 Asset Age Profile'!CX93+'[3]5.2 Asset Age Profile'!CX93","v":0},{"$f":"'[2]5.2 Asset Age Profile'!CY93+'[3]5.2 Asset Age Profile'!CY93","v":0},{"$f":"'[2]5.2 Asset Age Profile'!CZ93+'[3]5.2 Asset Age Profile'!CZ93","v":0},{"$f":"'[2]5.2 Asset Age Profile'!DA93+'[3]5.2 Asset Age Profile'!DA93","v":0},{"$f":"'[2]5.2 Asset Age Profile'!DB93+'[3]5.2 Asset Age Profile'!DB93","v":0},{"$f":"'[2]5.2 Asset Age Profile'!DC93+'[3]5.2 Asset Age Profile'!DC93","v":0},{"$f":"'[2]5.2 Asset Age Profile'!DD93+'[3]5.2 Asset Age Profile'!DD93","v":0},{"$f":"'[2]5.2 Asset Age Profile'!DE93+'[3]5.2 Asset Age Profile'!DE93","v":0},{"$f":"'[2]5.2 Asset Age Profile'!DF93+'[3]5.2 Asset Age Profile'!DF93","v":0},{"$f":"'[2]5.2 Asset Age Profile'!DG93+'[3]5.2 Asset Age Profile'!DG93","v":0},{"$f":"'[2]5.2 Asset Age Profile'!DH93+'[3]5.2 Asset Age Profile'!DH93","v":0},{"$f":"'[2]5.2 Asset Age Profile'!DI93+'[3]5.2 Asset Age Profile'!DI93","v":0},{"$f":"'[2]5.2 Asset Age Profile'!DJ93+'[3]5.2 Asset Age Profile'!DJ93","v":0},{"$f":"'[2]5.2 Asset Age Profile'!DK93+'[3]5.2 Asset Age Profile'!DK93","v":0},{"$f":"'[2]5.2 Asset Age Profile'!DL93+'[3]5.2 Asset Age Profile'!DL93","v":0},{"$f":"'[2]5.2 Asset Age Profile'!DM93+'[3]5.2 Asset Age Profile'!DM93","v":0},{"$f":"'[2]5.2 Asset Age Profile'!DN93+'[3]5.2 Asset Age Profile'!DN93","v":0},{"$f":"'[2]5.2 Asset Age Profile'!DO93+'[3]5.2 Asset Age Profile'!DO93","v":0},{"$f":"'[2]5.2 Asset Age Profile'!DP93+'[3]5.2 Asset Age Profile'!DP93","v":0},{"$f":"'[2]5.2 Asset Age Profile'!DQ93+'[3]5.2 Asset Age Profile'!DQ93","v":0},{"$f":"'[2]5.2 Asset Age Profile'!DR93+'[3]5.2 Asset Age Profile'!DR93","v":0},{"$f":"'[2]5.2 Asset Age Profile'!DS93+'[3]5.2 Asset Age Profile'!DS93","v":0},{"$f":"'[2]5.2 Asset Age Profile'!DT93+'[3]5.2 Asset Age Profile'!DT93","v":0},{"$f":"'[2]5.2 Asset Age Profile'!DU93+'[3]5.2 Asset Age Profile'!DU93","v":0},{"$f":"'[2]5.2 Asset Age Profile'!DV93+'[3]5.2 Asset Age Profile'!DV93","v":0},{"$f":"'[2]5.2 Asset Age Profile'!DW93+'[3]5.2 Asset Age Profile'!DW93","v":0},{"$f":"'[2]5.2 Asset Age Profile'!DX93+'[3]5.2 Asset Age Profile'!DX93","v":0},{"$f":"'[2]5.2 Asset Age Profile'!DY93+'[3]5.2 Asset Age Profile'!DY93","v":0},{"$f":"'[2]5.2 Asset Age Profile'!DZ93+'[3]5.2 Asset Age Profile'!DZ93","v":0},{"$f":"'[2]5.2 Asset Age Profile'!EA93+'[3]5.2 Asset Age Profile'!EA93","v":0},{"$f":"'[2]5.2 Asset Age Profile'!EB93+'[3]5.2 Asset Age Profile'!EB93","v":0},{"$f":"'[2]5.2 Asset Age Profile'!EC93+'[3]5.2 Asset Age Profile'!EC93","v":0},{"$f":"'[2]5.2 Asset Age Profile'!ED93+'[3]5.2 Asset Age Profile'!ED93","v":0},{"$f":"'[2]5.2 Asset Age Profile'!EE93+'[3]5.2 Asset Age Profile'!EE93","v":0},{"$f":"'[2]5.2 Asset Age Profile'!EF93+'[3]5.2 Asset Age Profile'!EF93","v":0},{"$f":"'[2]5.2 Asset Age Profile'!EG93+'[3]5.2 Asset Age Profile'!EG93","v":0},{"$f":"'[2]5.2 Asset Age Profile'!EH93+'[3]5.2 Asset Age Profile'!EH93","v":0},{"$f":"'[2]5.2 Asset Age Profile'!EI93+'[3]5.2 Asset Age Profile'!EI93","v":0},{"$f":"'[2]5.2 Asset Age Profile'!EJ93+'[3]5.2 Asset Age Profile'!EJ93","v":0}]
["ED_ASS521_00084",null,"Ground Outdoor / Indoor Chamber Mounted; > 33 kV & < = 66 kV ;  > 40 MVA",null,null,null,null,null,null,null,null,null,null,{"$f":"'[2]5.2 Asset Age Profile'!N94+'[3]5.2 Asset Age Profile'!N94","v":0},{"$f":"'[2]5.2 Asset Age Profile'!O94+'[3]5.2 Asset Age Profile'!O94","v":0},{"$f":"'[2]5.2 Asset Age Profile'!P94+'[3]5.2 Asset Age Profile'!P94","v":0},{"$f":"'[2]5.2 Asset Age Profile'!Q94+'[3]5.2 Asset Age Profile'!Q94","v":0},{"$f":"'[2]5.2 Asset Age Profile'!R94+'[3]5.2 Asset Age Profile'!R94","v":0},{"$f":"'[2]5.2 Asset Age Profile'!S94+'[3]5.2 Asset Age Profile'!S94","v":0},{"$f":"'[2]5.2 Asset Age Profile'!T94+'[3]5.2 Asset Age Profile'!T94","v":0},{"$f":"'[2]5.2 Asset Age Profile'!U94+'[3]5.2 Asset Age Profile'!U94","v":0},{"$f":"'[2]5.2 Asset Age Profile'!V94+'[3]5.2 Asset Age Profile'!V94","v":0},{"$f":"'[2]5.2 Asset Age Profile'!W94+'[3]5.2 Asset Age Profile'!W94","v":0},{"$f":"'[2]5.2 Asset Age Profile'!X94+'[3]5.2 Asset Age Profile'!X94","v":0},{"$f":"'[2]5.2 Asset Age Profile'!Y94+'[3]5.2 Asset Age Profile'!Y94","v":0},{"$f":"'[2]5.2 Asset Age Profile'!Z94+'[3]5.2 Asset Age Profile'!Z94","v":0},{"$f":"'[2]5.2 Asset Age Profile'!AA94+'[3]5.2 Asset Age Profile'!AA94","v":0},{"$f":"'[2]5.2 Asset Age Profile'!AB94+'[3]5.2 Asset Age Profile'!AB94","v":0},{"$f":"'[2]5.2 Asset Age Profile'!AC94+'[3]5.2 Asset Age Profile'!AC94","v":0},{"$f":"'[2]5.2 Asset Age Profile'!AD94+'[3]5.2 Asset Age Profile'!AD94","v":0},{"$f":"'[2]5.2 Asset Age Profile'!AE94+'[3]5.2 Asset Age Profile'!AE94","v":0},{"$f":"'[2]5.2 Asset Age Profile'!AF94+'[3]5.2 Asset Age Profile'!AF94","v":0},{"$f":"'[2]5.2 Asset Age Profile'!AG94+'[3]5.2 Asset Age Profile'!AG94","v":0},{"$f":"'[2]5.2 Asset Age Profile'!AH94+'[3]5.2 Asset Age Profile'!AH94","v":0},{"$f":"'[2]5.2 Asset Age Profile'!AI94+'[3]5.2 Asset Age Profile'!AI94","v":0},{"$f":"'[2]5.2 Asset Age Profile'!AJ94+'[3]5.2 Asset Age Profile'!AJ94","v":0},{"$f":"'[2]5.2 Asset Age Profile'!AK94+'[3]5.2 Asset Age Profile'!AK94","v":0},{"$f":"'[2]5.2 Asset Age Profile'!AL94+'[3]5.2 Asset Age Profile'!AL94","v":0},{"$f":"'[2]5.2 Asset Age Profile'!AM94+'[3]5.2 Asset Age Profile'!AM94","v":0},{"$f":"'[2]5.2 Asset Age Profile'!AN94+'[3]5.2 Asset Age Profile'!AN94","v":0},{"$f":"'[2]5.2 Asset Age Profile'!AO94+'[3]5.2 Asset Age Profile'!AO94","v":0},{"$f":"'[2]5.2 Asset Age Profile'!AP94+'[3]5.2 Asset Age Profile'!AP94","v":0},{"$f":"'[2]5.2 Asset Age Profile'!AQ94+'[3]5.2 Asset Age Profile'!AQ94","v":0},{"$f":"'[2]5.2 Asset Age Profile'!AR94+'[3]5.2 Asset Age Profile'!AR94","v":0},{"$f":"'[2]5.2 Asset Age Profile'!AS94+'[3]5.2 Asset Age Profile'!AS94","v":0},{"$f":"'[2]5.2 Asset Age Profile'!AT94+'[3]5.2 Asset Age Profile'!AT94","v":0},{"$f":"'[2]5.2 Asset Age Profile'!AU94+'[3]5.2 Asset Age Profile'!AU94","v":0},{"$f":"'[2]5.2 Asset Age Profile'!AV94+'[3]5.2 Asset Age Profile'!AV94","v":0},{"$f":"'[2]5.2 Asset Age Profile'!AW94+'[3]5.2 Asset Age Profile'!AW94","v":0},{"$f":"'[2]5.2 Asset Age Profile'!AX94+'[3]5.2 Asset Age Profile'!AX94","v":0},{"$f":"'[2]5.2 Asset Age Profile'!AY94+'[3]5.2 Asset Age Profile'!AY94","v":0},{"$f":"'[2]5.2 Asset Age Profile'!AZ94+'[3]5.2 Asset Age Profile'!AZ94","v":0},{"$f":"'[2]5.2 Asset Age Profile'!BA94+'[3]5.2 Asset Age Profile'!BA94","v":0},{"$f":"'[2]5.2 Asset Age Profile'!BB94+'[3]5.2 Asset Age Profile'!BB94","v":0},{"$f":"'[2]5.2 Asset Age Profile'!BC94+'[3]5.2 Asset Age Profile'!BC94","v":0},{"$f":"'[2]5.2 Asset Age Profile'!BD94+'[3]5.2 Asset Age Profile'!BD94","v":0},{"$f":"'[2]5.2 Asset Age Profile'!BE94+'[3]5.2 Asset Age Profile'!BE94","v":0},{"$f":"'[2]5.2 Asset Age Profile'!BF94+'[3]5.2 Asset Age Profile'!BF94","v":0},{"$f":"'[2]5.2 Asset Age Profile'!BG94+'[3]5.2 Asset Age Profile'!BG94","v":0},{"$f":"'[2]5.2 Asset Age Profile'!BH94+'[3]5.2 Asset Age Profile'!BH94","v":0},{"$f":"'[2]5.2 Asset Age Profile'!BI94+'[3]5.2 Asset Age Profile'!BI94","v":0},{"$f":"'[2]5.2 Asset Age Profile'!BJ94+'[3]5.2 Asset Age Profile'!BJ94","v":0},{"$f":"'[2]5.2 Asset Age Profile'!BK94+'[3]5.2 Asset Age Profile'!BK94","v":0},{"$f":"'[2]5.2 Asset Age Profile'!BL94+'[3]5.2 Asset Age Profile'!BL94","v":0},{"$f":"'[2]5.2 Asset Age Profile'!BM94+'[3]5.2 Asset Age Profile'!BM94","v":0},{"$f":"'[2]5.2 Asset Age Profile'!BN94+'[3]5.2 Asset Age Profile'!BN94","v":0},{"$f":"'[2]5.2 Asset Age Profile'!BO94+'[3]5.2 Asset Age Profile'!BO94","v":0},{"$f":"'[2]5.2 Asset Age Profile'!BP94+'[3]5.2 Asset Age Profile'!BP94","v":0},{"$f":"'[2]5.2 Asset Age Profile'!BQ94+'[3]5.2 Asset Age Profile'!BQ94","v":0},{"$f":"'[2]5.2 Asset Age Profile'!BR94+'[3]5.2 Asset Age Profile'!BR94","v":0},{"$f":"'[2]5.2 Asset Age Profile'!BS94+'[3]5.2 Asset Age Profile'!BS94","v":0},{"$f":"'[2]5.2 Asset Age Profile'!BT94+'[3]5.2 Asset Age Profile'!BT94","v":0},{"$f":"'[2]5.2 Asset Age Profile'!BU94+'[3]5.2 Asset Age Profile'!BU94","v":0},{"$f":"'[2]5.2 Asset Age Profile'!BV94+'[3]5.2 Asset Age Profile'!BV94","v":0},{"$f":"'[2]5.2 Asset Age Profile'!BW94+'[3]5.2 Asset Age Profile'!BW94","v":0},{"$f":"'[2]5.2 Asset Age Profile'!BX94+'[3]5.2 Asset Age Profile'!BX94","v":0},{"$f":"'[2]5.2 Asset Age Profile'!BY94+'[3]5.2 Asset Age Profile'!BY94","v":0},{"$f":"'[2]5.2 Asset Age Profile'!BZ94+'[3]5.2 Asset Age Profile'!BZ94","v":0},{"$f":"'[2]5.2 Asset Age Profile'!CA94+'[3]5.2 Asset Age Profile'!CA94","v":0},{"$f":"'[2]5.2 Asset Age Profile'!CB94+'[3]5.2 Asset Age Profile'!CB94","v":0},{"$f":"'[2]5.2 Asset Age Profile'!CC94+'[3]5.2 Asset Age Profile'!CC94","v":0},{"$f":"'[2]5.2 Asset Age Profile'!CD94+'[3]5.2 Asset Age Profile'!CD94","v":0},{"$f":"'[2]5.2 Asset Age Profile'!CE94+'[3]5.2 Asset Age Profile'!CE94","v":0},{"$f":"'[2]5.2 Asset Age Profile'!CF94+'[3]5.2 Asset Age Profile'!CF94","v":0},{"$f":"'[2]5.2 Asset Age Profile'!CG94+'[3]5.2 Asset Age Profile'!CG94","v":0},{"$f":"'[2]5.2 Asset Age Profile'!CH94+'[3]5.2 Asset Age Profile'!CH94","v":0},{"$f":"'[2]5.2 Asset Age Profile'!CI94+'[3]5.2 Asset Age Profile'!CI94","v":0},{"$f":"'[2]5.2 Asset Age Profile'!CJ94+'[3]5.2 Asset Age Profile'!CJ94","v":0},{"$f":"'[2]5.2 Asset Age Profile'!CK94+'[3]5.2 Asset Age Profile'!CK94","v":0},{"$f":"'[2]5.2 Asset Age Profile'!CL94+'[3]5.2 Asset Age Profile'!CL94","v":0},{"$f":"'[2]5.2 Asset Age Profile'!CM94+'[3]5.2 Asset Age Profile'!CM94","v":0},{"$f":"'[2]5.2 Asset Age Profile'!CN94+'[3]5.2 Asset Age Profile'!CN94","v":0},{"$f":"'[2]5.2 Asset Age Profile'!CO94+'[3]5.2 Asset Age Profile'!CO94","v":0},{"$f":"'[2]5.2 Asset Age Profile'!CP94+'[3]5.2 Asset Age Profile'!CP94","v":0},{"$f":"'[2]5.2 Asset Age Profile'!CQ94+'[3]5.2 Asset Age Profile'!CQ94","v":0},{"$f":"'[2]5.2 Asset Age Profile'!CR94+'[3]5.2 Asset Age Profile'!CR94","v":0},{"$f":"'[2]5.2 Asset Age Profile'!CS94+'[3]5.2 Asset Age Profile'!CS94","v":0},{"$f":"'[2]5.2 Asset Age Profile'!CT94+'[3]5.2 Asset Age Profile'!CT94","v":0},{"$f":"'[2]5.2 Asset Age Profile'!CU94+'[3]5.2 Asset Age Profile'!CU94","v":0},{"$f":"'[2]5.2 Asset Age Profile'!CV94+'[3]5.2 Asset Age Profile'!CV94","v":0},{"$f":"'[2]5.2 Asset Age Profile'!CW94+'[3]5.2 Asset Age Profile'!CW94","v":0},{"$f":"'[2]5.2 Asset Age Profile'!CX94+'[3]5.2 Asset Age Profile'!CX94","v":0},{"$f":"'[2]5.2 Asset Age Profile'!CY94+'[3]5.2 Asset Age Profile'!CY94","v":0},{"$f":"'[2]5.2 Asset Age Profile'!CZ94+'[3]5.2 Asset Age Profile'!CZ94","v":0},{"$f":"'[2]5.2 Asset Age Profile'!DA94+'[3]5.2 Asset Age Profile'!DA94","v":0},{"$f":"'[2]5.2 Asset Age Profile'!DB94+'[3]5.2 Asset Age Profile'!DB94","v":0},{"$f":"'[2]5.2 Asset Age Profile'!DC94+'[3]5.2 Asset Age Profile'!DC94","v":0},{"$f":"'[2]5.2 Asset Age Profile'!DD94+'[3]5.2 Asset Age Profile'!DD94","v":0},{"$f":"'[2]5.2 Asset Age Profile'!DE94+'[3]5.2 Asset Age Profile'!DE94","v":0},{"$f":"'[2]5.2 Asset Age Profile'!DF94+'[3]5.2 Asset Age Profile'!DF94","v":0},{"$f":"'[2]5.2 Asset Age Profile'!DG94+'[3]5.2 Asset Age Profile'!DG94","v":0},{"$f":"'[2]5.2 Asset Age Profile'!DH94+'[3]5.2 Asset Age Profile'!DH94","v":0},{"$f":"'[2]5.2 Asset Age Profile'!DI94+'[3]5.2 Asset Age Profile'!DI94","v":0},{"$f":"'[2]5.2 Asset Age Profile'!DJ94+'[3]5.2 Asset Age Profile'!DJ94","v":0},{"$f":"'[2]5.2 Asset Age Profile'!DK94+'[3]5.2 Asset Age Profile'!DK94","v":0},{"$f":"'[2]5.2 Asset Age Profile'!DL94+'[3]5.2 Asset Age Profile'!DL94","v":0},{"$f":"'[2]5.2 Asset Age Profile'!DM94+'[3]5.2 Asset Age Profile'!DM94","v":0},{"$f":"'[2]5.2 Asset Age Profile'!DN94+'[3]5.2 Asset Age Profile'!DN94","v":0},{"$f":"'[2]5.2 Asset Age Profile'!DO94+'[3]5.2 Asset Age Profile'!DO94","v":0},{"$f":"'[2]5.2 Asset Age Profile'!DP94+'[3]5.2 Asset Age Profile'!DP94","v":0},{"$f":"'[2]5.2 Asset Age Profile'!DQ94+'[3]5.2 Asset Age Profile'!DQ94","v":0},{"$f":"'[2]5.2 Asset Age Profile'!DR94+'[3]5.2 Asset Age Profile'!DR94","v":0},{"$f":"'[2]5.2 Asset Age Profile'!DS94+'[3]5.2 Asset Age Profile'!DS94","v":0},{"$f":"'[2]5.2 Asset Age Profile'!DT94+'[3]5.2 Asset Age Profile'!DT94","v":0},{"$f":"'[2]5.2 Asset Age Profile'!DU94+'[3]5.2 Asset Age Profile'!DU94","v":0},{"$f":"'[2]5.2 Asset Age Profile'!DV94+'[3]5.2 Asset Age Profile'!DV94","v":0},{"$f":"'[2]5.2 Asset Age Profile'!DW94+'[3]5.2 Asset Age Profile'!DW94","v":0},{"$f":"'[2]5.2 Asset Age Profile'!DX94+'[3]5.2 Asset Age Profile'!DX94","v":0},{"$f":"'[2]5.2 Asset Age Profile'!DY94+'[3]5.2 Asset Age Profile'!DY94","v":0},{"$f":"'[2]5.2 Asset Age Profile'!DZ94+'[3]5.2 Asset Age Profile'!DZ94","v":0},{"$f":"'[2]5.2 Asset Age Profile'!EA94+'[3]5.2 Asset Age Profile'!EA94","v":0},{"$f":"'[2]5.2 Asset Age Profile'!EB94+'[3]5.2 Asset Age Profile'!EB94","v":0},{"$f":"'[2]5.2 Asset Age Profile'!EC94+'[3]5.2 Asset Age Profile'!EC94","v":0},{"$f":"'[2]5.2 Asset Age Profile'!ED94+'[3]5.2 Asset Age Profile'!ED94","v":0},{"$f":"'[2]5.2 Asset Age Profile'!EE94+'[3]5.2 Asset Age Profile'!EE94","v":0},{"$f":"'[2]5.2 Asset Age Profile'!EF94+'[3]5.2 Asset Age Profile'!EF94","v":0},{"$f":"'[2]5.2 Asset Age Profile'!EG94+'[3]5.2 Asset Age Profile'!EG94","v":0},{"$f":"'[2]5.2 Asset Age Profile'!EH94+'[3]5.2 Asset Age Profile'!EH94","v":0},{"$f":"'[2]5.2 Asset Age Profile'!EI94+'[3]5.2 Asset Age Profile'!EI94","v":0},{"$f":"'[2]5.2 Asset Age Profile'!EJ94+'[3]5.2 Asset Age Profile'!EJ94","v":0}]
["ED_ASS521_00085",null,"Ground Outdoor / Indoor Chamber Mounted; > 66 kV & < = 132 kV ;  < = 100 MVA",null,null,null,null,null,null,null,null,null,null,{"$f":"'[2]5.2 Asset Age Profile'!N95+'[3]5.2 Asset Age Profile'!N95","v":50},{"$f":"'[2]5.2 Asset Age Profile'!O95+'[3]5.2 Asset Age Profile'!O95","v":0},{"$f":"'[2]5.2 Asset Age Profile'!P95+'[3]5.2 Asset Age Profile'!P95","v":0},{"$f":"'[2]5.2 Asset Age Profile'!Q95+'[3]5.2 Asset Age Profile'!Q95","v":0},{"$f":"'[2]5.2 Asset Age Profile'!R95+'[3]5.2 Asset Age Profile'!R95","v":0},{"$f":"'[2]5.2 Asset Age Profile'!S95+'[3]5.2 Asset Age Profile'!S95","v":0},{"$f":"'[2]5.2 Asset Age Profile'!T95+'[3]5.2 Asset Age Profile'!T95","v":0},{"$f":"'[2]5.2 Asset Age Profile'!U95+'[3]5.2 Asset Age Profile'!U95","v":0},{"$f":"'[2]5.2 Asset Age Profile'!V95+'[3]5.2 Asset Age Profile'!V95","v":0},{"$f":"'[2]5.2 Asset Age Profile'!W95+'[3]5.2 Asset Age Profile'!W95","v":0},{"$f":"'[2]5.2 Asset Age Profile'!X95+'[3]5.2 Asset Age Profile'!X95","v":0},{"$f":"'[2]5.2 Asset Age Profile'!Y95+'[3]5.2 Asset Age Profile'!Y95","v":13},{"$f":"'[2]5.2 Asset Age Profile'!Z95+'[3]5.2 Asset Age Profile'!Z95","v":0},{"$f":"'[2]5.2 Asset Age Profile'!AA95+'[3]5.2 Asset Age Profile'!AA95","v":0},{"$f":"'[2]5.2 Asset Age Profile'!AB95+'[3]5.2 Asset Age Profile'!AB95","v":0},{"$f":"'[2]5.2 Asset Age Profile'!AC95+'[3]5.2 Asset Age Profile'!AC95","v":0},{"$f":"'[2]5.2 Asset Age Profile'!AD95+'[3]5.2 Asset Age Profile'!AD95","v":0},{"$f":"'[2]5.2 Asset Age Profile'!AE95+'[3]5.2 Asset Age Profile'!AE95","v":0},{"$f":"'[2]5.2 Asset Age Profile'!AF95+'[3]5.2 Asset Age Profile'!AF95","v":0},{"$f":"'[2]5.2 Asset Age Profile'!AG95+'[3]5.2 Asset Age Profile'!AG95","v":0},{"$f":"'[2]5.2 Asset Age Profile'!AH95+'[3]5.2 Asset Age Profile'!AH95","v":0},{"$f":"'[2]5.2 Asset Age Profile'!AI95+'[3]5.2 Asset Age Profile'!AI95","v":0},{"$f":"'[2]5.2 Asset Age Profile'!AJ95+'[3]5.2 Asset Age Profile'!AJ95","v":0},{"$f":"'[2]5.2 Asset Age Profile'!AK95+'[3]5.2 Asset Age Profile'!AK95","v":1},{"$f":"'[2]5.2 Asset Age Profile'!AL95+'[3]5.2 Asset Age Profile'!AL95","v":0},{"$f":"'[2]5.2 Asset Age Profile'!AM95+'[3]5.2 Asset Age Profile'!AM95","v":1},{"$f":"'[2]5.2 Asset Age Profile'!AN95+'[3]5.2 Asset Age Profile'!AN95","v":0},{"$f":"'[2]5.2 Asset Age Profile'!AO95+'[3]5.2 Asset Age Profile'!AO95","v":1},{"$f":"'[2]5.2 Asset Age Profile'!AP95+'[3]5.2 Asset Age Profile'!AP95","v":0},{"$f":"'[2]5.2 Asset Age Profile'!AQ95+'[3]5.2 Asset Age Profile'!AQ95","v":0},{"$f":"'[2]5.2 Asset Age Profile'!AR95+'[3]5.2 Asset Age Profile'!AR95","v":0},{"$f":"'[2]5.2 Asset Age Profile'!AS95+'[3]5.2 Asset Age Profile'!AS95","v":0},{"$f":"'[2]5.2 Asset Age Profile'!AT95+'[3]5.2 Asset Age Profile'!AT95","v":0},{"$f":"'[2]5.2 Asset Age Profile'!AU95+'[3]5.2 Asset Age Profile'!AU95","v":0},{"$f":"'[2]5.2 Asset Age Profile'!AV95+'[3]5.2 Asset Age Profile'!AV95","v":0},{"$f":"'[2]5.2 Asset Age Profile'!AW95+'[3]5.2 Asset Age Profile'!AW95","v":0},{"$f":"'[2]5.2 Asset Age Profile'!AX95+'[3]5.2 Asset Age Profile'!AX95","v":0},{"$f":"'[2]5.2 Asset Age Profile'!AY95+'[3]5.2 Asset Age Profile'!AY95","v":0},{"$f":"'[2]5.2 Asset Age Profile'!AZ95+'[3]5.2 Asset Age Profile'!AZ95","v":0},{"$f":"'[2]5.2 Asset Age Profile'!BA95+'[3]5.2 Asset Age Profile'!BA95","v":0},{"$f":"'[2]5.2 Asset Age Profile'!BB95+'[3]5.2 Asset Age Profile'!BB95","v":0},{"$f":"'[2]5.2 Asset Age Profile'!BC95+'[3]5.2 Asset Age Profile'!BC95","v":0},{"$f":"'[2]5.2 Asset Age Profile'!BD95+'[3]5.2 Asset Age Profile'!BD95","v":1},{"$f":"'[2]5.2 Asset Age Profile'!BE95+'[3]5.2 Asset Age Profile'!BE95","v":1},{"$f":"'[2]5.2 Asset Age Profile'!BF95+'[3]5.2 Asset Age Profile'!BF95","v":0},{"$f":"'[2]5.2 Asset Age Profile'!BG95+'[3]5.2 Asset Age Profile'!BG95","v":0},{"$f":"'[2]5.2 Asset Age Profile'!BH95+'[3]5.2 Asset Age Profile'!BH95","v":0},{"$f":"'[2]5.2 Asset Age Profile'!BI95+'[3]5.2 Asset Age Profile'!BI95","v":0},{"$f":"'[2]5.2 Asset Age Profile'!BJ95+'[3]5.2 Asset Age Profile'!BJ95","v":2},{"$f":"'[2]5.2 Asset Age Profile'!BK95+'[3]5.2 Asset Age Profile'!BK95","v":0},{"$f":"'[2]5.2 Asset Age Profile'!BL95+'[3]5.2 Asset Age Profile'!BL95","v":3},{"$f":"'[2]5.2 Asset Age Profile'!BM95+'[3]5.2 Asset Age Profile'!BM95","v":0},{"$f":"'[2]5.2 Asset Age Profile'!BN95+'[3]5.2 Asset Age Profile'!BN95","v":2},{"$f":"'[2]5.2 Asset Age Profile'!BO95+'[3]5.2 Asset Age Profile'!BO95","v":1},{"$f":"'[2]5.2 Asset Age Profile'!BP95+'[3]5.2 Asset Age Profile'!BP95","v":1},{"$f":"'[2]5.2 Asset Age Profile'!BQ95+'[3]5.2 Asset Age Profile'!BQ95","v":1},{"$f":"'[2]5.2 Asset Age Profile'!BR95+'[3]5.2 Asset Age Profile'!BR95","v":0},{"$f":"'[2]5.2 Asset Age Profile'!BS95+'[3]5.2 Asset Age Profile'!BS95","v":1},{"$f":"'[2]5.2 Asset Age Profile'!BT95+'[3]5.2 Asset Age Profile'!BT95","v":2},{"$f":"'[2]5.2 Asset Age Profile'!BU95+'[3]5.2 Asset Age Profile'!BU95","v":2},{"$f":"'[2]5.2 Asset Age Profile'!BV95+'[3]5.2 Asset Age Profile'!BV95","v":0},{"$f":"'[2]5.2 Asset Age Profile'!BW95+'[3]5.2 Asset Age Profile'!BW95","v":1},{"$f":"'[2]5.2 Asset Age Profile'!BX95+'[3]5.2 Asset Age Profile'!BX95","v":1},{"$f":"'[2]5.2 Asset Age Profile'!BY95+'[3]5.2 Asset Age Profile'!BY95","v":0},{"$f":"'[2]5.2 Asset Age Profile'!BZ95+'[3]5.2 Asset Age Profile'!BZ95","v":0},{"$f":"'[2]5.2 Asset Age Profile'!CA95+'[3]5.2 Asset Age Profile'!CA95","v":0},{"$f":"'[2]5.2 Asset Age Profile'!CB95+'[3]5.2 Asset Age Profile'!CB95","v":2},{"$f":"'[2]5.2 Asset Age Profile'!CC95+'[3]5.2 Asset Age Profile'!CC95","v":0},{"$f":"'[2]5.2 Asset Age Profile'!CD95+'[3]5.2 Asset Age Profile'!CD95","v":0},{"$f":"'[2]5.2 Asset Age Profile'!CE95+'[3]5.2 Asset Age Profile'!CE95","v":0},{"$f":"'[2]5.2 Asset Age Profile'!CF95+'[3]5.2 Asset Age Profile'!CF95","v":4},{"$f":"'[2]5.2 Asset Age Profile'!CG95+'[3]5.2 Asset Age Profile'!CG95","v":0},{"$f":"'[2]5.2 Asset Age Profile'!CH95+'[3]5.2 Asset Age Profile'!CH95","v":0},{"$f":"'[2]5.2 Asset Age Profile'!CI95+'[3]5.2 Asset Age Profile'!CI95","v":0},{"$f":"'[2]5.2 Asset Age Profile'!CJ95+'[3]5.2 Asset Age Profile'!CJ95","v":0},{"$f":"'[2]5.2 Asset Age Profile'!CK95+'[3]5.2 Asset Age Profile'!CK95","v":0},{"$f":"'[2]5.2 Asset Age Profile'!CL95+'[3]5.2 Asset Age Profile'!CL95","v":0},{"$f":"'[2]5.2 Asset Age Profile'!CM95+'[3]5.2 Asset Age Profile'!CM95","v":0},{"$f":"'[2]5.2 Asset Age Profile'!CN95+'[3]5.2 Asset Age Profile'!CN95","v":0},{"$f":"'[2]5.2 Asset Age Profile'!CO95+'[3]5.2 Asset Age Profile'!CO95","v":0},{"$f":"'[2]5.2 Asset Age Profile'!CP95+'[3]5.2 Asset Age Profile'!CP95","v":0},{"$f":"'[2]5.2 Asset Age Profile'!CQ95+'[3]5.2 Asset Age Profile'!CQ95","v":0},{"$f":"'[2]5.2 Asset Age Profile'!CR95+'[3]5.2 Asset Age Profile'!CR95","v":0},{"$f":"'[2]5.2 Asset Age Profile'!CS95+'[3]5.2 Asset Age Profile'!CS95","v":0},{"$f":"'[2]5.2 Asset Age Profile'!CT95+'[3]5.2 Asset Age Profile'!CT95","v":0},{"$f":"'[2]5.2 Asset Age Profile'!CU95+'[3]5.2 Asset Age Profile'!CU95","v":0},{"$f":"'[2]5.2 Asset Age Profile'!CV95+'[3]5.2 Asset Age Profile'!CV95","v":0},{"$f":"'[2]5.2 Asset Age Profile'!CW95+'[3]5.2 Asset Age Profile'!CW95","v":0},{"$f":"'[2]5.2 Asset Age Profile'!CX95+'[3]5.2 Asset Age Profile'!CX95","v":0},{"$f":"'[2]5.2 Asset Age Profile'!CY95+'[3]5.2 Asset Age Profile'!CY95","v":0},{"$f":"'[2]5.2 Asset Age Profile'!CZ95+'[3]5.2 Asset Age Profile'!CZ95","v":0},{"$f":"'[2]5.2 Asset Age Profile'!DA95+'[3]5.2 Asset Age Profile'!DA95","v":0},{"$f":"'[2]5.2 Asset Age Profile'!DB95+'[3]5.2 Asset Age Profile'!DB95","v":0},{"$f":"'[2]5.2 Asset Age Profile'!DC95+'[3]5.2 Asset Age Profile'!DC95","v":0},{"$f":"'[2]5.2 Asset Age Profile'!DD95+'[3]5.2 Asset Age Profile'!DD95","v":0},{"$f":"'[2]5.2 Asset Age Profile'!DE95+'[3]5.2 Asset Age Profile'!DE95","v":0},{"$f":"'[2]5.2 Asset Age Profile'!DF95+'[3]5.2 Asset Age Profile'!DF95","v":0},{"$f":"'[2]5.2 Asset Age Profile'!DG95+'[3]5.2 Asset Age Profile'!DG95","v":0},{"$f":"'[2]5.2 Asset Age Profile'!DH95+'[3]5.2 Asset Age Profile'!DH95","v":0},{"$f":"'[2]5.2 Asset Age Profile'!DI95+'[3]5.2 Asset Age Profile'!DI95","v":0},{"$f":"'[2]5.2 Asset Age Profile'!DJ95+'[3]5.2 Asset Age Profile'!DJ95","v":0},{"$f":"'[2]5.2 Asset Age Profile'!DK95+'[3]5.2 Asset Age Profile'!DK95","v":0},{"$f":"'[2]5.2 Asset Age Profile'!DL95+'[3]5.2 Asset Age Profile'!DL95","v":0},{"$f":"'[2]5.2 Asset Age Profile'!DM95+'[3]5.2 Asset Age Profile'!DM95","v":0},{"$f":"'[2]5.2 Asset Age Profile'!DN95+'[3]5.2 Asset Age Profile'!DN95","v":0},{"$f":"'[2]5.2 Asset Age Profile'!DO95+'[3]5.2 Asset Age Profile'!DO95","v":0},{"$f":"'[2]5.2 Asset Age Profile'!DP95+'[3]5.2 Asset Age Profile'!DP95","v":0},{"$f":"'[2]5.2 Asset Age Profile'!DQ95+'[3]5.2 Asset Age Profile'!DQ95","v":0},{"$f":"'[2]5.2 Asset Age Profile'!DR95+'[3]5.2 Asset Age Profile'!DR95","v":0},{"$f":"'[2]5.2 Asset Age Profile'!DS95+'[3]5.2 Asset Age Profile'!DS95","v":0},{"$f":"'[2]5.2 Asset Age Profile'!DT95+'[3]5.2 Asset Age Profile'!DT95","v":0},{"$f":"'[2]5.2 Asset Age Profile'!DU95+'[3]5.2 Asset Age Profile'!DU95","v":0},{"$f":"'[2]5.2 Asset Age Profile'!DV95+'[3]5.2 Asset Age Profile'!DV95","v":0},{"$f":"'[2]5.2 Asset Age Profile'!DW95+'[3]5.2 Asset Age Profile'!DW95","v":0},{"$f":"'[2]5.2 Asset Age Profile'!DX95+'[3]5.2 Asset Age Profile'!DX95","v":0},{"$f":"'[2]5.2 Asset Age Profile'!DY95+'[3]5.2 Asset Age Profile'!DY95","v":0},{"$f":"'[2]5.2 Asset Age Profile'!DZ95+'[3]5.2 Asset Age Profile'!DZ95","v":0},{"$f":"'[2]5.2 Asset Age Profile'!EA95+'[3]5.2 Asset Age Profile'!EA95","v":0},{"$f":"'[2]5.2 Asset Age Profile'!EB95+'[3]5.2 Asset Age Profile'!EB95","v":0},{"$f":"'[2]5.2 Asset Age Profile'!EC95+'[3]5.2 Asset Age Profile'!EC95","v":0},{"$f":"'[2]5.2 Asset Age Profile'!ED95+'[3]5.2 Asset Age Profile'!ED95","v":0},{"$f":"'[2]5.2 Asset Age Profile'!EE95+'[3]5.2 Asset Age Profile'!EE95","v":0},{"$f":"'[2]5.2 Asset Age Profile'!EF95+'[3]5.2 Asset Age Profile'!EF95","v":0},{"$f":"'[2]5.2 Asset Age Profile'!EG95+'[3]5.2 Asset Age Profile'!EG95","v":0},{"$f":"'[2]5.2 Asset Age Profile'!EH95+'[3]5.2 Asset Age Profile'!EH95","v":0},{"$f":"'[2]5.2 Asset Age Profile'!EI95+'[3]5.2 Asset Age Profile'!EI95","v":0},{"$f":"'[2]5.2 Asset Age Profile'!EJ95+'[3]5.2 Asset Age Profile'!EJ95","v":0}]
["ED_ASS521_00086",null,"Ground Outdoor / Indoor Chamber Mounted; > 66 kV & < = 132 kV ;  > 100 MVA",null,null,null,null,null,null,null,null,null,null,{"$f":"'[2]5.2 Asset Age Profile'!N96+'[3]5.2 Asset Age Profile'!N96","v":0},{"$f":"'[2]5.2 Asset Age Profile'!O96+'[3]5.2 Asset Age Profile'!O96","v":0},{"$f":"'[2]5.2 Asset Age Profile'!P96+'[3]5.2 Asset Age Profile'!P96","v":0},{"$f":"'[2]5.2 Asset Age Profile'!Q96+'[3]5.2 Asset Age Profile'!Q96","v":0},{"$f":"'[2]5.2 Asset Age Profile'!R96+'[3]5.2 Asset Age Profile'!R96","v":0},{"$f":"'[2]5.2 Asset Age Profile'!S96+'[3]5.2 Asset Age Profile'!S96","v":0},{"$f":"'[2]5.2 Asset Age Profile'!T96+'[3]5.2 Asset Age Profile'!T96","v":0},{"$f":"'[2]5.2 Asset Age Profile'!U96+'[3]5.2 Asset Age Profile'!U96","v":0},{"$f":"'[2]5.2 Asset Age Profile'!V96+'[3]5.2 Asset Age Profile'!V96","v":0},{"$f":"'[2]5.2 Asset Age Profile'!W96+'[3]5.2 Asset Age Profile'!W96","v":0},{"$f":"'[2]5.2 Asset Age Profile'!X96+'[3]5.2 Asset Age Profile'!X96","v":0},{"$f":"'[2]5.2 Asset Age Profile'!Y96+'[3]5.2 Asset Age Profile'!Y96","v":0},{"$f":"'[2]5.2 Asset Age Profile'!Z96+'[3]5.2 Asset Age Profile'!Z96","v":0},{"$f":"'[2]5.2 Asset Age Profile'!AA96+'[3]5.2 Asset Age Profile'!AA96","v":0},{"$f":"'[2]5.2 Asset Age Profile'!AB96+'[3]5.2 Asset Age Profile'!AB96","v":0},{"$f":"'[2]5.2 Asset Age Profile'!AC96+'[3]5.2 Asset Age Profile'!AC96","v":0},{"$f":"'[2]5.2 Asset Age Profile'!AD96+'[3]5.2 Asset Age Profile'!AD96","v":0},{"$f":"'[2]5.2 Asset Age Profile'!AE96+'[3]5.2 Asset Age Profile'!AE96","v":0},{"$f":"'[2]5.2 Asset Age Profile'!AF96+'[3]5.2 Asset Age Profile'!AF96","v":0},{"$f":"'[2]5.2 Asset Age Profile'!AG96+'[3]5.2 Asset Age Profile'!AG96","v":0},{"$f":"'[2]5.2 Asset Age Profile'!AH96+'[3]5.2 Asset Age Profile'!AH96","v":0},{"$f":"'[2]5.2 Asset Age Profile'!AI96+'[3]5.2 Asset Age Profile'!AI96","v":0},{"$f":"'[2]5.2 Asset Age Profile'!AJ96+'[3]5.2 Asset Age Profile'!AJ96","v":0},{"$f":"'[2]5.2 Asset Age Profile'!AK96+'[3]5.2 Asset Age Profile'!AK96","v":0},{"$f":"'[2]5.2 Asset Age Profile'!AL96+'[3]5.2 Asset Age Profile'!AL96","v":0},{"$f":"'[2]5.2 Asset Age Profile'!AM96+'[3]5.2 Asset Age Profile'!AM96","v":0},{"$f":"'[2]5.2 Asset Age Profile'!AN96+'[3]5.2 Asset Age Profile'!AN96","v":0},{"$f":"'[2]5.2 Asset Age Profile'!AO96+'[3]5.2 Asset Age Profile'!AO96","v":0},{"$f":"'[2]5.2 Asset Age Profile'!AP96+'[3]5.2 Asset Age Profile'!AP96","v":0},{"$f":"'[2]5.2 Asset Age Profile'!AQ96+'[3]5.2 Asset Age Profile'!AQ96","v":0},{"$f":"'[2]5.2 Asset Age Profile'!AR96+'[3]5.2 Asset Age Profile'!AR96","v":0},{"$f":"'[2]5.2 Asset Age Profile'!AS96+'[3]5.2 Asset Age Profile'!AS96","v":0},{"$f":"'[2]5.2 Asset Age Profile'!AT96+'[3]5.2 Asset Age Profile'!AT96","v":0},{"$f":"'[2]5.2 Asset Age Profile'!AU96+'[3]5.2 Asset Age Profile'!AU96","v":0},{"$f":"'[2]5.2 Asset Age Profile'!AV96+'[3]5.2 Asset Age Profile'!AV96","v":0},{"$f":"'[2]5.2 Asset Age Profile'!AW96+'[3]5.2 Asset Age Profile'!AW96","v":0},{"$f":"'[2]5.2 Asset Age Profile'!AX96+'[3]5.2 Asset Age Profile'!AX96","v":0},{"$f":"'[2]5.2 Asset Age Profile'!AY96+'[3]5.2 Asset Age Profile'!AY96","v":0},{"$f":"'[2]5.2 Asset Age Profile'!AZ96+'[3]5.2 Asset Age Profile'!AZ96","v":0},{"$f":"'[2]5.2 Asset Age Profile'!BA96+'[3]5.2 Asset Age Profile'!BA96","v":0},{"$f":"'[2]5.2 Asset Age Profile'!BB96+'[3]5.2 Asset Age Profile'!BB96","v":0},{"$f":"'[2]5.2 Asset Age Profile'!BC96+'[3]5.2 Asset Age Profile'!BC96","v":0},{"$f":"'[2]5.2 Asset Age Profile'!BD96+'[3]5.2 Asset Age Profile'!BD96","v":0},{"$f":"'[2]5.2 Asset Age Profile'!BE96+'[3]5.2 Asset Age Profile'!BE96","v":0},{"$f":"'[2]5.2 Asset Age Profile'!BF96+'[3]5.2 Asset Age Profile'!BF96","v":0},{"$f":"'[2]5.2 Asset Age Profile'!BG96+'[3]5.2 Asset Age Profile'!BG96","v":0},{"$f":"'[2]5.2 Asset Age Profile'!BH96+'[3]5.2 Asset Age Profile'!BH96","v":0},{"$f":"'[2]5.2 Asset Age Profile'!BI96+'[3]5.2 Asset Age Profile'!BI96","v":0},{"$f":"'[2]5.2 Asset Age Profile'!BJ96+'[3]5.2 Asset Age Profile'!BJ96","v":0},{"$f":"'[2]5.2 Asset Age Profile'!BK96+'[3]5.2 Asset Age Profile'!BK96","v":0},{"$f":"'[2]5.2 Asset Age Profile'!BL96+'[3]5.2 Asset Age Profile'!BL96","v":0},{"$f":"'[2]5.2 Asset Age Profile'!BM96+'[3]5.2 Asset Age Profile'!BM96","v":0},{"$f":"'[2]5.2 Asset Age Profile'!BN96+'[3]5.2 Asset Age Profile'!BN96","v":0},{"$f":"'[2]5.2 Asset Age Profile'!BO96+'[3]5.2 Asset Age Profile'!BO96","v":0},{"$f":"'[2]5.2 Asset Age Profile'!BP96+'[3]5.2 Asset Age Profile'!BP96","v":0},{"$f":"'[2]5.2 Asset Age Profile'!BQ96+'[3]5.2 Asset Age Profile'!BQ96","v":0},{"$f":"'[2]5.2 Asset Age Profile'!BR96+'[3]5.2 Asset Age Profile'!BR96","v":0},{"$f":"'[2]5.2 Asset Age Profile'!BS96+'[3]5.2 Asset Age Profile'!BS96","v":0},{"$f":"'[2]5.2 Asset Age Profile'!BT96+'[3]5.2 Asset Age Profile'!BT96","v":0},{"$f":"'[2]5.2 Asset Age Profile'!BU96+'[3]5.2 Asset Age Profile'!BU96","v":0},{"$f":"'[2]5.2 Asset Age Profile'!BV96+'[3]5.2 Asset Age Profile'!BV96","v":0},{"$f":"'[2]5.2 Asset Age Profile'!BW96+'[3]5.2 Asset Age Profile'!BW96","v":0},{"$f":"'[2]5.2 Asset Age Profile'!BX96+'[3]5.2 Asset Age Profile'!BX96","v":0},{"$f":"'[2]5.2 Asset Age Profile'!BY96+'[3]5.2 Asset Age Profile'!BY96","v":0},{"$f":"'[2]5.2 Asset Age Profile'!BZ96+'[3]5.2 Asset Age Profile'!BZ96","v":0},{"$f":"'[2]5.2 Asset Age Profile'!CA96+'[3]5.2 Asset Age Profile'!CA96","v":0},{"$f":"'[2]5.2 Asset Age Profile'!CB96+'[3]5.2 Asset Age Profile'!CB96","v":0},{"$f":"'[2]5.2 Asset Age Profile'!CC96+'[3]5.2 Asset Age Profile'!CC96","v":0},{"$f":"'[2]5.2 Asset Age Profile'!CD96+'[3]5.2 Asset Age Profile'!CD96","v":0},{"$f":"'[2]5.2 Asset Age Profile'!CE96+'[3]5.2 Asset Age Profile'!CE96","v":0},{"$f":"'[2]5.2 Asset Age Profile'!CF96+'[3]5.2 Asset Age Profile'!CF96","v":0},{"$f":"'[2]5.2 Asset Age Profile'!CG96+'[3]5.2 Asset Age Profile'!CG96","v":0},{"$f":"'[2]5.2 Asset Age Profile'!CH96+'[3]5.2 Asset Age Profile'!CH96","v":0},{"$f":"'[2]5.2 Asset Age Profile'!CI96+'[3]5.2 Asset Age Profile'!CI96","v":0},{"$f":"'[2]5.2 Asset Age Profile'!CJ96+'[3]5.2 Asset Age Profile'!CJ96","v":0},{"$f":"'[2]5.2 Asset Age Profile'!CK96+'[3]5.2 Asset Age Profile'!CK96","v":0},{"$f":"'[2]5.2 Asset Age Profile'!CL96+'[3]5.2 Asset Age Profile'!CL96","v":0},{"$f":"'[2]5.2 Asset Age Profile'!CM96+'[3]5.2 Asset Age Profile'!CM96","v":0},{"$f":"'[2]5.2 Asset Age Profile'!CN96+'[3]5.2 Asset Age Profile'!CN96","v":0},{"$f":"'[2]5.2 Asset Age Profile'!CO96+'[3]5.2 Asset Age Profile'!CO96","v":0},{"$f":"'[2]5.2 Asset Age Profile'!CP96+'[3]5.2 Asset Age Profile'!CP96","v":0},{"$f":"'[2]5.2 Asset Age Profile'!CQ96+'[3]5.2 Asset Age Profile'!CQ96","v":0},{"$f":"'[2]5.2 Asset Age Profile'!CR96+'[3]5.2 Asset Age Profile'!CR96","v":0},{"$f":"'[2]5.2 Asset Age Profile'!CS96+'[3]5.2 Asset Age Profile'!CS96","v":0},{"$f":"'[2]5.2 Asset Age Profile'!CT96+'[3]5.2 Asset Age Profile'!CT96","v":0},{"$f":"'[2]5.2 Asset Age Profile'!CU96+'[3]5.2 Asset Age Profile'!CU96","v":0},{"$f":"'[2]5.2 Asset Age Profile'!CV96+'[3]5.2 Asset Age Profile'!CV96","v":0},{"$f":"'[2]5.2 Asset Age Profile'!CW96+'[3]5.2 Asset Age Profile'!CW96","v":0},{"$f":"'[2]5.2 Asset Age Profile'!CX96+'[3]5.2 Asset Age Profile'!CX96","v":0},{"$f":"'[2]5.2 Asset Age Profile'!CY96+'[3]5.2 Asset Age Profile'!CY96","v":0},{"$f":"'[2]5.2 Asset Age Profile'!CZ96+'[3]5.2 Asset Age Profile'!CZ96","v":0},{"$f":"'[2]5.2 Asset Age Profile'!DA96+'[3]5.2 Asset Age Profile'!DA96","v":0},{"$f":"'[2]5.2 Asset Age Profile'!DB96+'[3]5.2 Asset Age Profile'!DB96","v":0},{"$f":"'[2]5.2 Asset Age Profile'!DC96+'[3]5.2 Asset Age Profile'!DC96","v":0},{"$f":"'[2]5.2 Asset Age Profile'!DD96+'[3]5.2 Asset Age Profile'!DD96","v":0},{"$f":"'[2]5.2 Asset Age Profile'!DE96+'[3]5.2 Asset Age Profile'!DE96","v":0},{"$f":"'[2]5.2 Asset Age Profile'!DF96+'[3]5.2 Asset Age Profile'!DF96","v":0},{"$f":"'[2]5.2 Asset Age Profile'!DG96+'[3]5.2 Asset Age Profile'!DG96","v":0},{"$f":"'[2]5.2 Asset Age Profile'!DH96+'[3]5.2 Asset Age Profile'!DH96","v":0},{"$f":"'[2]5.2 Asset Age Profile'!DI96+'[3]5.2 Asset Age Profile'!DI96","v":0},{"$f":"'[2]5.2 Asset Age Profile'!DJ96+'[3]5.2 Asset Age Profile'!DJ96","v":0},{"$f":"'[2]5.2 Asset Age Profile'!DK96+'[3]5.2 Asset Age Profile'!DK96","v":0},{"$f":"'[2]5.2 Asset Age Profile'!DL96+'[3]5.2 Asset Age Profile'!DL96","v":0},{"$f":"'[2]5.2 Asset Age Profile'!DM96+'[3]5.2 Asset Age Profile'!DM96","v":0},{"$f":"'[2]5.2 Asset Age Profile'!DN96+'[3]5.2 Asset Age Profile'!DN96","v":0},{"$f":"'[2]5.2 Asset Age Profile'!DO96+'[3]5.2 Asset Age Profile'!DO96","v":0},{"$f":"'[2]5.2 Asset Age Profile'!DP96+'[3]5.2 Asset Age Profile'!DP96","v":0},{"$f":"'[2]5.2 Asset Age Profile'!DQ96+'[3]5.2 Asset Age Profile'!DQ96","v":0},{"$f":"'[2]5.2 Asset Age Profile'!DR96+'[3]5.2 Asset Age Profile'!DR96","v":0},{"$f":"'[2]5.2 Asset Age Profile'!DS96+'[3]5.2 Asset Age Profile'!DS96","v":0},{"$f":"'[2]5.2 Asset Age Profile'!DT96+'[3]5.2 Asset Age Profile'!DT96","v":0},{"$f":"'[2]5.2 Asset Age Profile'!DU96+'[3]5.2 Asset Age Profile'!DU96","v":0},{"$f":"'[2]5.2 Asset Age Profile'!DV96+'[3]5.2 Asset Age Profile'!DV96","v":0},{"$f":"'[2]5.2 Asset Age Profile'!DW96+'[3]5.2 Asset Age Profile'!DW96","v":0},{"$f":"'[2]5.2 Asset Age Profile'!DX96+'[3]5.2 Asset Age Profile'!DX96","v":0},{"$f":"'[2]5.2 Asset Age Profile'!DY96+'[3]5.2 Asset Age Profile'!DY96","v":0},{"$f":"'[2]5.2 Asset Age Profile'!DZ96+'[3]5.2 Asset Age Profile'!DZ96","v":0},{"$f":"'[2]5.2 Asset Age Profile'!EA96+'[3]5.2 Asset Age Profile'!EA96","v":0},{"$f":"'[2]5.2 Asset Age Profile'!EB96+'[3]5.2 Asset Age Profile'!EB96","v":0},{"$f":"'[2]5.2 Asset Age Profile'!EC96+'[3]5.2 Asset Age Profile'!EC96","v":0},{"$f":"'[2]5.2 Asset Age Profile'!ED96+'[3]5.2 Asset Age Profile'!ED96","v":0},{"$f":"'[2]5.2 Asset Age Profile'!EE96+'[3]5.2 Asset Age Profile'!EE96","v":0},{"$f":"'[2]5.2 Asset Age Profile'!EF96+'[3]5.2 Asset Age Profile'!EF96","v":0},{"$f":"'[2]5.2 Asset Age Profile'!EG96+'[3]5.2 Asset Age Profile'!EG96","v":0},{"$f":"'[2]5.2 Asset Age Profile'!EH96+'[3]5.2 Asset Age Profile'!EH96","v":0},{"$f":"'[2]5.2 Asset Age Profile'!EI96+'[3]5.2 Asset Age Profile'!EI96","v":0},{"$f":"'[2]5.2 Asset Age Profile'!EJ96+'[3]5.2 Asset Age Profile'!EJ96","v":0}]
["ED_ASS521_00087",null,"Ground Outdoor / Indoor Chamber Mounted; > 132 kV ;  < = 100 MVA",null,null,null,null,null,null,null,null,null,null,{"$f":"'[2]5.2 Asset Age Profile'!N97+'[3]5.2 Asset Age Profile'!N97","v":0},{"$f":"'[2]5.2 Asset Age Profile'!O97+'[3]5.2 Asset Age Profile'!O97","v":0},{"$f":"'[2]5.2 Asset Age Profile'!P97+'[3]5.2 Asset Age Profile'!P97","v":0},{"$f":"'[2]5.2 Asset Age Profile'!Q97+'[3]5.2 Asset Age Profile'!Q97","v":0},{"$f":"'[2]5.2 Asset Age Profile'!R97+'[3]5.2 Asset Age Profile'!R97","v":0},{"$f":"'[2]5.2 Asset Age Profile'!S97+'[3]5.2 Asset Age Profile'!S97","v":0},{"$f":"'[2]5.2 Asset Age Profile'!T97+'[3]5.2 Asset Age Profile'!T97","v":0},{"$f":"'[2]5.2 Asset Age Profile'!U97+'[3]5.2 Asset Age Profile'!U97","v":0},{"$f":"'[2]5.2 Asset Age Profile'!V97+'[3]5.2 Asset Age Profile'!V97","v":0},{"$f":"'[2]5.2 Asset Age Profile'!W97+'[3]5.2 Asset Age Profile'!W97","v":0},{"$f":"'[2]5.2 Asset Age Profile'!X97+'[3]5.2 Asset Age Profile'!X97","v":0},{"$f":"'[2]5.2 Asset Age Profile'!Y97+'[3]5.2 Asset Age Profile'!Y97","v":0},{"$f":"'[2]5.2 Asset Age Profile'!Z97+'[3]5.2 Asset Age Profile'!Z97","v":0},{"$f":"'[2]5.2 Asset Age Profile'!AA97+'[3]5.2 Asset Age Profile'!AA97","v":0},{"$f":"'[2]5.2 Asset Age Profile'!AB97+'[3]5.2 Asset Age Profile'!AB97","v":0},{"$f":"'[2]5.2 Asset Age Profile'!AC97+'[3]5.2 Asset Age Profile'!AC97","v":0},{"$f":"'[2]5.2 Asset Age Profile'!AD97+'[3]5.2 Asset Age Profile'!AD97","v":0},{"$f":"'[2]5.2 Asset Age Profile'!AE97+'[3]5.2 Asset Age Profile'!AE97","v":0},{"$f":"'[2]5.2 Asset Age Profile'!AF97+'[3]5.2 Asset Age Profile'!AF97","v":0},{"$f":"'[2]5.2 Asset Age Profile'!AG97+'[3]5.2 Asset Age Profile'!AG97","v":0},{"$f":"'[2]5.2 Asset Age Profile'!AH97+'[3]5.2 Asset Age Profile'!AH97","v":0},{"$f":"'[2]5.2 Asset Age Profile'!AI97+'[3]5.2 Asset Age Profile'!AI97","v":0},{"$f":"'[2]5.2 Asset Age Profile'!AJ97+'[3]5.2 Asset Age Profile'!AJ97","v":0},{"$f":"'[2]5.2 Asset Age Profile'!AK97+'[3]5.2 Asset Age Profile'!AK97","v":0},{"$f":"'[2]5.2 Asset Age Profile'!AL97+'[3]5.2 Asset Age Profile'!AL97","v":0},{"$f":"'[2]5.2 Asset Age Profile'!AM97+'[3]5.2 Asset Age Profile'!AM97","v":0},{"$f":"'[2]5.2 Asset Age Profile'!AN97+'[3]5.2 Asset Age Profile'!AN97","v":0},{"$f":"'[2]5.2 Asset Age Profile'!AO97+'[3]5.2 Asset Age Profile'!AO97","v":0},{"$f":"'[2]5.2 Asset Age Profile'!AP97+'[3]5.2 Asset Age Profile'!AP97","v":0},{"$f":"'[2]5.2 Asset Age Profile'!AQ97+'[3]5.2 Asset Age Profile'!AQ97","v":0},{"$f":"'[2]5.2 Asset Age Profile'!AR97+'[3]5.2 Asset Age Profile'!AR97","v":0},{"$f":"'[2]5.2 Asset Age Profile'!AS97+'[3]5.2 Asset Age Profile'!AS97","v":0},{"$f":"'[2]5.2 Asset Age Profile'!AT97+'[3]5.2 Asset Age Profile'!AT97","v":0},{"$f":"'[2]5.2 Asset Age Profile'!AU97+'[3]5.2 Asset Age Profile'!AU97","v":0},{"$f":"'[2]5.2 Asset Age Profile'!AV97+'[3]5.2 Asset Age Profile'!AV97","v":0},{"$f":"'[2]5.2 Asset Age Profile'!AW97+'[3]5.2 Asset Age Profile'!AW97","v":0},{"$f":"'[2]5.2 Asset Age Profile'!AX97+'[3]5.2 Asset Age Profile'!AX97","v":0},{"$f":"'[2]5.2 Asset Age Profile'!AY97+'[3]5.2 Asset Age Profile'!AY97","v":0},{"$f":"'[2]5.2 Asset Age Profile'!AZ97+'[3]5.2 Asset Age Profile'!AZ97","v":0},{"$f":"'[2]5.2 Asset Age Profile'!BA97+'[3]5.2 Asset Age Profile'!BA97","v":0},{"$f":"'[2]5.2 Asset Age Profile'!BB97+'[3]5.2 Asset Age Profile'!BB97","v":0},{"$f":"'[2]5.2 Asset Age Profile'!BC97+'[3]5.2 Asset Age Profile'!BC97","v":0},{"$f":"'[2]5.2 Asset Age Profile'!BD97+'[3]5.2 Asset Age Profile'!BD97","v":0},{"$f":"'[2]5.2 Asset Age Profile'!BE97+'[3]5.2 Asset Age Profile'!BE97","v":0},{"$f":"'[2]5.2 Asset Age Profile'!BF97+'[3]5.2 Asset Age Profile'!BF97","v":0},{"$f":"'[2]5.2 Asset Age Profile'!BG97+'[3]5.2 Asset Age Profile'!BG97","v":0},{"$f":"'[2]5.2 Asset Age Profile'!BH97+'[3]5.2 Asset Age Profile'!BH97","v":0},{"$f":"'[2]5.2 Asset Age Profile'!BI97+'[3]5.2 Asset Age Profile'!BI97","v":0},{"$f":"'[2]5.2 Asset Age Profile'!BJ97+'[3]5.2 Asset Age Profile'!BJ97","v":0},{"$f":"'[2]5.2 Asset Age Profile'!BK97+'[3]5.2 Asset Age Profile'!BK97","v":0},{"$f":"'[2]5.2 Asset Age Profile'!BL97+'[3]5.2 Asset Age Profile'!BL97","v":0},{"$f":"'[2]5.2 Asset Age Profile'!BM97+'[3]5.2 Asset Age Profile'!BM97","v":0},{"$f":"'[2]5.2 Asset Age Profile'!BN97+'[3]5.2 Asset Age Profile'!BN97","v":0},{"$f":"'[2]5.2 Asset Age Profile'!BO97+'[3]5.2 Asset Age Profile'!BO97","v":0},{"$f":"'[2]5.2 Asset Age Profile'!BP97+'[3]5.2 Asset Age Profile'!BP97","v":0},{"$f":"'[2]5.2 Asset Age Profile'!BQ97+'[3]5.2 Asset Age Profile'!BQ97","v":0},{"$f":"'[2]5.2 Asset Age Profile'!BR97+'[3]5.2 Asset Age Profile'!BR97","v":0},{"$f":"'[2]5.2 Asset Age Profile'!BS97+'[3]5.2 Asset Age Profile'!BS97","v":0},{"$f":"'[2]5.2 Asset Age Profile'!BT97+'[3]5.2 Asset Age Profile'!BT97","v":0},{"$f":"'[2]5.2 Asset Age Profile'!BU97+'[3]5.2 Asset Age Profile'!BU97","v":0},{"$f":"'[2]5.2 Asset Age Profile'!BV97+'[3]5.2 Asset Age Profile'!BV97","v":0},{"$f":"'[2]5.2 Asset Age Profile'!BW97+'[3]5.2 Asset Age Profile'!BW97","v":0},{"$f":"'[2]5.2 Asset Age Profile'!BX97+'[3]5.2 Asset Age Profile'!BX97","v":0},{"$f":"'[2]5.2 Asset Age Profile'!BY97+'[3]5.2 Asset Age Profile'!BY97","v":0},{"$f":"'[2]5.2 Asset Age Profile'!BZ97+'[3]5.2 Asset Age Profile'!BZ97","v":0},{"$f":"'[2]5.2 Asset Age Profile'!CA97+'[3]5.2 Asset Age Profile'!CA97","v":0},{"$f":"'[2]5.2 Asset Age Profile'!CB97+'[3]5.2 Asset Age Profile'!CB97","v":0},{"$f":"'[2]5.2 Asset Age Profile'!CC97+'[3]5.2 Asset Age Profile'!CC97","v":0},{"$f":"'[2]5.2 Asset Age Profile'!CD97+'[3]5.2 Asset Age Profile'!CD97","v":0},{"$f":"'[2]5.2 Asset Age Profile'!CE97+'[3]5.2 Asset Age Profile'!CE97","v":0},{"$f":"'[2]5.2 Asset Age Profile'!CF97+'[3]5.2 Asset Age Profile'!CF97","v":0},{"$f":"'[2]5.2 Asset Age Profile'!CG97+'[3]5.2 Asset Age Profile'!CG97","v":0},{"$f":"'[2]5.2 Asset Age Profile'!CH97+'[3]5.2 Asset Age Profile'!CH97","v":0},{"$f":"'[2]5.2 Asset Age Profile'!CI97+'[3]5.2 Asset Age Profile'!CI97","v":0},{"$f":"'[2]5.2 Asset Age Profile'!CJ97+'[3]5.2 Asset Age Profile'!CJ97","v":0},{"$f":"'[2]5.2 Asset Age Profile'!CK97+'[3]5.2 Asset Age Profile'!CK97","v":0},{"$f":"'[2]5.2 Asset Age Profile'!CL97+'[3]5.2 Asset Age Profile'!CL97","v":0},{"$f":"'[2]5.2 Asset Age Profile'!CM97+'[3]5.2 Asset Age Profile'!CM97","v":0},{"$f":"'[2]5.2 Asset Age Profile'!CN97+'[3]5.2 Asset Age Profile'!CN97","v":0},{"$f":"'[2]5.2 Asset Age Profile'!CO97+'[3]5.2 Asset Age Profile'!CO97","v":0},{"$f":"'[2]5.2 Asset Age Profile'!CP97+'[3]5.2 Asset Age Profile'!CP97","v":0},{"$f":"'[2]5.2 Asset Age Profile'!CQ97+'[3]5.2 Asset Age Profile'!CQ97","v":0},{"$f":"'[2]5.2 Asset Age Profile'!CR97+'[3]5.2 Asset Age Profile'!CR97","v":0},{"$f":"'[2]5.2 Asset Age Profile'!CS97+'[3]5.2 Asset Age Profile'!CS97","v":0},{"$f":"'[2]5.2 Asset Age Profile'!CT97+'[3]5.2 Asset Age Profile'!CT97","v":0},{"$f":"'[2]5.2 Asset Age Profile'!CU97+'[3]5.2 Asset Age Profile'!CU97","v":0},{"$f":"'[2]5.2 Asset Age Profile'!CV97+'[3]5.2 Asset Age Profile'!CV97","v":0},{"$f":"'[2]5.2 Asset Age Profile'!CW97+'[3]5.2 Asset Age Profile'!CW97","v":0},{"$f":"'[2]5.2 Asset Age Profile'!CX97+'[3]5.2 Asset Age Profile'!CX97","v":0},{"$f":"'[2]5.2 Asset Age Profile'!CY97+'[3]5.2 Asset Age Profile'!CY97","v":0},{"$f":"'[2]5.2 Asset Age Profile'!CZ97+'[3]5.2 Asset Age Profile'!CZ97","v":0},{"$f":"'[2]5.2 Asset Age Profile'!DA97+'[3]5.2 Asset Age Profile'!DA97","v":0},{"$f":"'[2]5.2 Asset Age Profile'!DB97+'[3]5.2 Asset Age Profile'!DB97","v":0},{"$f":"'[2]5.2 Asset Age Profile'!DC97+'[3]5.2 Asset Age Profile'!DC97","v":0},{"$f":"'[2]5.2 Asset Age Profile'!DD97+'[3]5.2 Asset Age Profile'!DD97","v":0},{"$f":"'[2]5.2 Asset Age Profile'!DE97+'[3]5.2 Asset Age Profile'!DE97","v":0},{"$f":"'[2]5.2 Asset Age Profile'!DF97+'[3]5.2 Asset Age Profile'!DF97","v":0},{"$f":"'[2]5.2 Asset Age Profile'!DG97+'[3]5.2 Asset Age Profile'!DG97","v":0},{"$f":"'[2]5.2 Asset Age Profile'!DH97+'[3]5.2 Asset Age Profile'!DH97","v":0},{"$f":"'[2]5.2 Asset Age Profile'!DI97+'[3]5.2 Asset Age Profile'!DI97","v":0},{"$f":"'[2]5.2 Asset Age Profile'!DJ97+'[3]5.2 Asset Age Profile'!DJ97","v":0},{"$f":"'[2]5.2 Asset Age Profile'!DK97+'[3]5.2 Asset Age Profile'!DK97","v":0},{"$f":"'[2]5.2 Asset Age Profile'!DL97+'[3]5.2 Asset Age Profile'!DL97","v":0},{"$f":"'[2]5.2 Asset Age Profile'!DM97+'[3]5.2 Asset Age Profile'!DM97","v":0},{"$f":"'[2]5.2 Asset Age Profile'!DN97+'[3]5.2 Asset Age Profile'!DN97","v":0},{"$f":"'[2]5.2 Asset Age Profile'!DO97+'[3]5.2 Asset Age Profile'!DO97","v":0},{"$f":"'[2]5.2 Asset Age Profile'!DP97+'[3]5.2 Asset Age Profile'!DP97","v":0},{"$f":"'[2]5.2 Asset Age Profile'!DQ97+'[3]5.2 Asset Age Profile'!DQ97","v":0},{"$f":"'[2]5.2 Asset Age Profile'!DR97+'[3]5.2 Asset Age Profile'!DR97","v":0},{"$f":"'[2]5.2 Asset Age Profile'!DS97+'[3]5.2 Asset Age Profile'!DS97","v":0},{"$f":"'[2]5.2 Asset Age Profile'!DT97+'[3]5.2 Asset Age Profile'!DT97","v":0},{"$f":"'[2]5.2 Asset Age Profile'!DU97+'[3]5.2 Asset Age Profile'!DU97","v":0},{"$f":"'[2]5.2 Asset Age Profile'!DV97+'[3]5.2 Asset Age Profile'!DV97","v":0},{"$f":"'[2]5.2 Asset Age Profile'!DW97+'[3]5.2 Asset Age Profile'!DW97","v":0},{"$f":"'[2]5.2 Asset Age Profile'!DX97+'[3]5.2 Asset Age Profile'!DX97","v":0},{"$f":"'[2]5.2 Asset Age Profile'!DY97+'[3]5.2 Asset Age Profile'!DY97","v":0},{"$f":"'[2]5.2 Asset Age Profile'!DZ97+'[3]5.2 Asset Age Profile'!DZ97","v":0},{"$f":"'[2]5.2 Asset Age Profile'!EA97+'[3]5.2 Asset Age Profile'!EA97","v":0},{"$f":"'[2]5.2 Asset Age Profile'!EB97+'[3]5.2 Asset Age Profile'!EB97","v":0},{"$f":"'[2]5.2 Asset Age Profile'!EC97+'[3]5.2 Asset Age Profile'!EC97","v":0},{"$f":"'[2]5.2 Asset Age Profile'!ED97+'[3]5.2 Asset Age Profile'!ED97","v":0},{"$f":"'[2]5.2 Asset Age Profile'!EE97+'[3]5.2 Asset Age Profile'!EE97","v":0},{"$f":"'[2]5.2 Asset Age Profile'!EF97+'[3]5.2 Asset Age Profile'!EF97","v":0},{"$f":"'[2]5.2 Asset Age Profile'!EG97+'[3]5.2 Asset Age Profile'!EG97","v":0},{"$f":"'[2]5.2 Asset Age Profile'!EH97+'[3]5.2 Asset Age Profile'!EH97","v":0},{"$f":"'[2]5.2 Asset Age Profile'!EI97+'[3]5.2 Asset Age Profile'!EI97","v":0},{"$f":"'[2]5.2 Asset Age Profile'!EJ97+'[3]5.2 Asset Age Profile'!EJ97","v":0}]
["ED_ASS521_00088",null,"Ground Outdoor / Indoor Chamber Mounted; > 132 kV ;  > 100 MVA",null,null,null,null,null,null,null,null,null,null,{"$f":"'[2]5.2 Asset Age Profile'!N98+'[3]5.2 Asset Age Profile'!N98","v":0},{"$f":"'[2]5.2 Asset Age Profile'!O98+'[3]5.2 Asset Age Profile'!O98","v":0},{"$f":"'[2]5.2 Asset Age Profile'!P98+'[3]5.2 Asset Age Profile'!P98","v":0},{"$f":"'[2]5.2 Asset Age Profile'!Q98+'[3]5.2 Asset Age Profile'!Q98","v":0},{"$f":"'[2]5.2 Asset Age Profile'!R98+'[3]5.2 Asset Age Profile'!R98","v":0},{"$f":"'[2]5.2 Asset Age Profile'!S98+'[3]5.2 Asset Age Profile'!S98","v":0},{"$f":"'[2]5.2 Asset Age Profile'!T98+'[3]5.2 Asset Age Profile'!T98","v":0},{"$f":"'[2]5.2 Asset Age Profile'!U98+'[3]5.2 Asset Age Profile'!U98","v":0},{"$f":"'[2]5.2 Asset Age Profile'!V98+'[3]5.2 Asset Age Profile'!V98","v":0},{"$f":"'[2]5.2 Asset Age Profile'!W98+'[3]5.2 Asset Age Profile'!W98","v":0},{"$f":"'[2]5.2 Asset Age Profile'!X98+'[3]5.2 Asset Age Profile'!X98","v":0},{"$f":"'[2]5.2 Asset Age Profile'!Y98+'[3]5.2 Asset Age Profile'!Y98","v":0},{"$f":"'[2]5.2 Asset Age Profile'!Z98+'[3]5.2 Asset Age Profile'!Z98","v":0},{"$f":"'[2]5.2 Asset Age Profile'!AA98+'[3]5.2 Asset Age Profile'!AA98","v":0},{"$f":"'[2]5.2 Asset Age Profile'!AB98+'[3]5.2 Asset Age Profile'!AB98","v":0},{"$f":"'[2]5.2 Asset Age Profile'!AC98+'[3]5.2 Asset Age Profile'!AC98","v":0},{"$f":"'[2]5.2 Asset Age Profile'!AD98+'[3]5.2 Asset Age Profile'!AD98","v":0},{"$f":"'[2]5.2 Asset Age Profile'!AE98+'[3]5.2 Asset Age Profile'!AE98","v":0},{"$f":"'[2]5.2 Asset Age Profile'!AF98+'[3]5.2 Asset Age Profile'!AF98","v":0},{"$f":"'[2]5.2 Asset Age Profile'!AG98+'[3]5.2 Asset Age Profile'!AG98","v":0},{"$f":"'[2]5.2 Asset Age Profile'!AH98+'[3]5.2 Asset Age Profile'!AH98","v":0},{"$f":"'[2]5.2 Asset Age Profile'!AI98+'[3]5.2 Asset Age Profile'!AI98","v":0},{"$f":"'[2]5.2 Asset Age Profile'!AJ98+'[3]5.2 Asset Age Profile'!AJ98","v":0},{"$f":"'[2]5.2 Asset Age Profile'!AK98+'[3]5.2 Asset Age Profile'!AK98","v":0},{"$f":"'[2]5.2 Asset Age Profile'!AL98+'[3]5.2 Asset Age Profile'!AL98","v":0},{"$f":"'[2]5.2 Asset Age Profile'!AM98+'[3]5.2 Asset Age Profile'!AM98","v":0},{"$f":"'[2]5.2 Asset Age Profile'!AN98+'[3]5.2 Asset Age Profile'!AN98","v":0},{"$f":"'[2]5.2 Asset Age Profile'!AO98+'[3]5.2 Asset Age Profile'!AO98","v":0},{"$f":"'[2]5.2 Asset Age Profile'!AP98+'[3]5.2 Asset Age Profile'!AP98","v":0},{"$f":"'[2]5.2 Asset Age Profile'!AQ98+'[3]5.2 Asset Age Profile'!AQ98","v":0},{"$f":"'[2]5.2 Asset Age Profile'!AR98+'[3]5.2 Asset Age Profile'!AR98","v":0},{"$f":"'[2]5.2 Asset Age Profile'!AS98+'[3]5.2 Asset Age Profile'!AS98","v":0},{"$f":"'[2]5.2 Asset Age Profile'!AT98+'[3]5.2 Asset Age Profile'!AT98","v":0},{"$f":"'[2]5.2 Asset Age Profile'!AU98+'[3]5.2 Asset Age Profile'!AU98","v":0},{"$f":"'[2]5.2 Asset Age Profile'!AV98+'[3]5.2 Asset Age Profile'!AV98","v":0},{"$f":"'[2]5.2 Asset Age Profile'!AW98+'[3]5.2 Asset Age Profile'!AW98","v":0},{"$f":"'[2]5.2 Asset Age Profile'!AX98+'[3]5.2 Asset Age Profile'!AX98","v":0},{"$f":"'[2]5.2 Asset Age Profile'!AY98+'[3]5.2 Asset Age Profile'!AY98","v":0},{"$f":"'[2]5.2 Asset Age Profile'!AZ98+'[3]5.2 Asset Age Profile'!AZ98","v":0},{"$f":"'[2]5.2 Asset Age Profile'!BA98+'[3]5.2 Asset Age Profile'!BA98","v":0},{"$f":"'[2]5.2 Asset Age Profile'!BB98+'[3]5.2 Asset Age Profile'!BB98","v":0},{"$f":"'[2]5.2 Asset Age Profile'!BC98+'[3]5.2 Asset Age Profile'!BC98","v":0},{"$f":"'[2]5.2 Asset Age Profile'!BD98+'[3]5.2 Asset Age Profile'!BD98","v":0},{"$f":"'[2]5.2 Asset Age Profile'!BE98+'[3]5.2 Asset Age Profile'!BE98","v":0},{"$f":"'[2]5.2 Asset Age Profile'!BF98+'[3]5.2 Asset Age Profile'!BF98","v":0},{"$f":"'[2]5.2 Asset Age Profile'!BG98+'[3]5.2 Asset Age Profile'!BG98","v":0},{"$f":"'[2]5.2 Asset Age Profile'!BH98+'[3]5.2 Asset Age Profile'!BH98","v":0},{"$f":"'[2]5.2 Asset Age Profile'!BI98+'[3]5.2 Asset Age Profile'!BI98","v":0},{"$f":"'[2]5.2 Asset Age Profile'!BJ98+'[3]5.2 Asset Age Profile'!BJ98","v":0},{"$f":"'[2]5.2 Asset Age Profile'!BK98+'[3]5.2 Asset Age Profile'!BK98","v":0},{"$f":"'[2]5.2 Asset Age Profile'!BL98+'[3]5.2 Asset Age Profile'!BL98","v":0},{"$f":"'[2]5.2 Asset Age Profile'!BM98+'[3]5.2 Asset Age Profile'!BM98","v":0},{"$f":"'[2]5.2 Asset Age Profile'!BN98+'[3]5.2 Asset Age Profile'!BN98","v":0},{"$f":"'[2]5.2 Asset Age Profile'!BO98+'[3]5.2 Asset Age Profile'!BO98","v":0},{"$f":"'[2]5.2 Asset Age Profile'!BP98+'[3]5.2 Asset Age Profile'!BP98","v":0},{"$f":"'[2]5.2 Asset Age Profile'!BQ98+'[3]5.2 Asset Age Profile'!BQ98","v":0},{"$f":"'[2]5.2 Asset Age Profile'!BR98+'[3]5.2 Asset Age Profile'!BR98","v":0},{"$f":"'[2]5.2 Asset Age Profile'!BS98+'[3]5.2 Asset Age Profile'!BS98","v":0},{"$f":"'[2]5.2 Asset Age Profile'!BT98+'[3]5.2 Asset Age Profile'!BT98","v":0},{"$f":"'[2]5.2 Asset Age Profile'!BU98+'[3]5.2 Asset Age Profile'!BU98","v":0},{"$f":"'[2]5.2 Asset Age Profile'!BV98+'[3]5.2 Asset Age Profile'!BV98","v":0},{"$f":"'[2]5.2 Asset Age Profile'!BW98+'[3]5.2 Asset Age Profile'!BW98","v":0},{"$f":"'[2]5.2 Asset Age Profile'!BX98+'[3]5.2 Asset Age Profile'!BX98","v":0},{"$f":"'[2]5.2 Asset Age Profile'!BY98+'[3]5.2 Asset Age Profile'!BY98","v":0},{"$f":"'[2]5.2 Asset Age Profile'!BZ98+'[3]5.2 Asset Age Profile'!BZ98","v":0},{"$f":"'[2]5.2 Asset Age Profile'!CA98+'[3]5.2 Asset Age Profile'!CA98","v":0},{"$f":"'[2]5.2 Asset Age Profile'!CB98+'[3]5.2 Asset Age Profile'!CB98","v":0},{"$f":"'[2]5.2 Asset Age Profile'!CC98+'[3]5.2 Asset Age Profile'!CC98","v":0},{"$f":"'[2]5.2 Asset Age Profile'!CD98+'[3]5.2 Asset Age Profile'!CD98","v":0},{"$f":"'[2]5.2 Asset Age Profile'!CE98+'[3]5.2 Asset Age Profile'!CE98","v":0},{"$f":"'[2]5.2 Asset Age Profile'!CF98+'[3]5.2 Asset Age Profile'!CF98","v":0},{"$f":"'[2]5.2 Asset Age Profile'!CG98+'[3]5.2 Asset Age Profile'!CG98","v":0},{"$f":"'[2]5.2 Asset Age Profile'!CH98+'[3]5.2 Asset Age Profile'!CH98","v":0},{"$f":"'[2]5.2 Asset Age Profile'!CI98+'[3]5.2 Asset Age Profile'!CI98","v":0},{"$f":"'[2]5.2 Asset Age Profile'!CJ98+'[3]5.2 Asset Age Profile'!CJ98","v":0},{"$f":"'[2]5.2 Asset Age Profile'!CK98+'[3]5.2 Asset Age Profile'!CK98","v":0},{"$f":"'[2]5.2 Asset Age Profile'!CL98+'[3]5.2 Asset Age Profile'!CL98","v":0},{"$f":"'[2]5.2 Asset Age Profile'!CM98+'[3]5.2 Asset Age Profile'!CM98","v":0},{"$f":"'[2]5.2 Asset Age Profile'!CN98+'[3]5.2 Asset Age Profile'!CN98","v":0},{"$f":"'[2]5.2 Asset Age Profile'!CO98+'[3]5.2 Asset Age Profile'!CO98","v":0},{"$f":"'[2]5.2 Asset Age Profile'!CP98+'[3]5.2 Asset Age Profile'!CP98","v":0},{"$f":"'[2]5.2 Asset Age Profile'!CQ98+'[3]5.2 Asset Age Profile'!CQ98","v":0},{"$f":"'[2]5.2 Asset Age Profile'!CR98+'[3]5.2 Asset Age Profile'!CR98","v":0},{"$f":"'[2]5.2 Asset Age Profile'!CS98+'[3]5.2 Asset Age Profile'!CS98","v":0},{"$f":"'[2]5.2 Asset Age Profile'!CT98+'[3]5.2 Asset Age Profile'!CT98","v":0},{"$f":"'[2]5.2 Asset Age Profile'!CU98+'[3]5.2 Asset Age Profile'!CU98","v":0},{"$f":"'[2]5.2 Asset Age Profile'!CV98+'[3]5.2 Asset Age Profile'!CV98","v":0},{"$f":"'[2]5.2 Asset Age Profile'!CW98+'[3]5.2 Asset Age Profile'!CW98","v":0},{"$f":"'[2]5.2 Asset Age Profile'!CX98+'[3]5.2 Asset Age Profile'!CX98","v":0},{"$f":"'[2]5.2 Asset Age Profile'!CY98+'[3]5.2 Asset Age Profile'!CY98","v":0},{"$f":"'[2]5.2 Asset Age Profile'!CZ98+'[3]5.2 Asset Age Profile'!CZ98","v":0},{"$f":"'[2]5.2 Asset Age Profile'!DA98+'[3]5.2 Asset Age Profile'!DA98","v":0},{"$f":"'[2]5.2 Asset Age Profile'!DB98+'[3]5.2 Asset Age Profile'!DB98","v":0},{"$f":"'[2]5.2 Asset Age Profile'!DC98+'[3]5.2 Asset Age Profile'!DC98","v":0},{"$f":"'[2]5.2 Asset Age Profile'!DD98+'[3]5.2 Asset Age Profile'!DD98","v":0},{"$f":"'[2]5.2 Asset Age Profile'!DE98+'[3]5.2 Asset Age Profile'!DE98","v":0},{"$f":"'[2]5.2 Asset Age Profile'!DF98+'[3]5.2 Asset Age Profile'!DF98","v":0},{"$f":"'[2]5.2 Asset Age Profile'!DG98+'[3]5.2 Asset Age Profile'!DG98","v":0},{"$f":"'[2]5.2 Asset Age Profile'!DH98+'[3]5.2 Asset Age Profile'!DH98","v":0},{"$f":"'[2]5.2 Asset Age Profile'!DI98+'[3]5.2 Asset Age Profile'!DI98","v":0},{"$f":"'[2]5.2 Asset Age Profile'!DJ98+'[3]5.2 Asset Age Profile'!DJ98","v":0},{"$f":"'[2]5.2 Asset Age Profile'!DK98+'[3]5.2 Asset Age Profile'!DK98","v":0},{"$f":"'[2]5.2 Asset Age Profile'!DL98+'[3]5.2 Asset Age Profile'!DL98","v":0},{"$f":"'[2]5.2 Asset Age Profile'!DM98+'[3]5.2 Asset Age Profile'!DM98","v":0},{"$f":"'[2]5.2 Asset Age Profile'!DN98+'[3]5.2 Asset Age Profile'!DN98","v":0},{"$f":"'[2]5.2 Asset Age Profile'!DO98+'[3]5.2 Asset Age Profile'!DO98","v":0},{"$f":"'[2]5.2 Asset Age Profile'!DP98+'[3]5.2 Asset Age Profile'!DP98","v":0},{"$f":"'[2]5.2 Asset Age Profile'!DQ98+'[3]5.2 Asset Age Profile'!DQ98","v":0},{"$f":"'[2]5.2 Asset Age Profile'!DR98+'[3]5.2 Asset Age Profile'!DR98","v":0},{"$f":"'[2]5.2 Asset Age Profile'!DS98+'[3]5.2 Asset Age Profile'!DS98","v":0},{"$f":"'[2]5.2 Asset Age Profile'!DT98+'[3]5.2 Asset Age Profile'!DT98","v":0},{"$f":"'[2]5.2 Asset Age Profile'!DU98+'[3]5.2 Asset Age Profile'!DU98","v":0},{"$f":"'[2]5.2 Asset Age Profile'!DV98+'[3]5.2 Asset Age Profile'!DV98","v":0},{"$f":"'[2]5.2 Asset Age Profile'!DW98+'[3]5.2 Asset Age Profile'!DW98","v":0},{"$f":"'[2]5.2 Asset Age Profile'!DX98+'[3]5.2 Asset Age Profile'!DX98","v":0},{"$f":"'[2]5.2 Asset Age Profile'!DY98+'[3]5.2 Asset Age Profile'!DY98","v":0},{"$f":"'[2]5.2 Asset Age Profile'!DZ98+'[3]5.2 Asset Age Profile'!DZ98","v":0},{"$f":"'[2]5.2 Asset Age Profile'!EA98+'[3]5.2 Asset Age Profile'!EA98","v":0},{"$f":"'[2]5.2 Asset Age Profile'!EB98+'[3]5.2 Asset Age Profile'!EB98","v":0},{"$f":"'[2]5.2 Asset Age Profile'!EC98+'[3]5.2 Asset Age Profile'!EC98","v":0},{"$f":"'[2]5.2 Asset Age Profile'!ED98+'[3]5.2 Asset Age Profile'!ED98","v":0},{"$f":"'[2]5.2 Asset Age Profile'!EE98+'[3]5.2 Asset Age Profile'!EE98","v":0},{"$f":"'[2]5.2 Asset Age Profile'!EF98+'[3]5.2 Asset Age Profile'!EF98","v":0},{"$f":"'[2]5.2 Asset Age Profile'!EG98+'[3]5.2 Asset Age Profile'!EG98","v":0},{"$f":"'[2]5.2 Asset Age Profile'!EH98+'[3]5.2 Asset Age Profile'!EH98","v":0},{"$f":"'[2]5.2 Asset Age Profile'!EI98+'[3]5.2 Asset Age Profile'!EI98","v":0},{"$f":"'[2]5.2 Asset Age Profile'!EJ98+'[3]5.2 Asset Age Profile'!EJ98","v":0}]
["ED_ASS521_00089",null,"Other",null,"DNSP NAME","REPEX","TRANSFORMERS",{"$f":"C99","v":"Other"},"DESCRIPTOR METRIC","MEAN ECONOMIC LIFE","YEARS","NUMBER",null,{"$f":"'[2]5.2 Asset Age Profile'!N99+'[3]5.2 Asset Age Profile'!N99","v":50},{"$f":"'[2]5.2 Asset Age Profile'!O99+'[3]5.2 Asset Age Profile'!O99","v":0},{"$f":"'[2]5.2 Asset Age Profile'!P99+'[3]5.2 Asset Age Profile'!P99","v":0},{"$f":"'[2]5.2 Asset Age Profile'!Q99+'[3]5.2 Asset Age Profile'!Q99","v":0},{"$f":"'[2]5.2 Asset Age Profile'!R99+'[3]5.2 Asset Age Profile'!R99","v":0},{"$f":"'[2]5.2 Asset Age Profile'!S99+'[3]5.2 Asset Age Profile'!S99","v":0},{"$f":"'[2]5.2 Asset Age Profile'!T99+'[3]5.2 Asset Age Profile'!T99","v":0},{"$f":"'[2]5.2 Asset Age Profile'!U99+'[3]5.2 Asset Age Profile'!U99","v":0},{"$f":"'[2]5.2 Asset Age Profile'!V99+'[3]5.2 Asset Age Profile'!V99","v":0},{"$f":"'[2]5.2 Asset Age Profile'!W99+'[3]5.2 Asset Age Profile'!W99","v":0},{"$f":"'[2]5.2 Asset Age Profile'!X99+'[3]5.2 Asset Age Profile'!X99","v":0},{"$f":"'[2]5.2 Asset Age Profile'!Y99+'[3]5.2 Asset Age Profile'!Y99","v":13},{"$f":"'[2]5.2 Asset Age Profile'!Z99+'[3]5.2 Asset Age Profile'!Z99","v":0},{"$f":"'[2]5.2 Asset Age Profile'!AA99+'[3]5.2 Asset Age Profile'!AA99","v":0},{"$f":"'[2]5.2 Asset Age Profile'!AB99+'[3]5.2 Asset Age Profile'!AB99","v":0},{"$f":"'[2]5.2 Asset Age Profile'!AC99+'[3]5.2 Asset Age Profile'!AC99","v":0},{"$f":"'[2]5.2 Asset Age Profile'!AD99+'[3]5.2 Asset Age Profile'!AD99","v":0},{"$f":"'[2]5.2 Asset Age Profile'!AE99+'[3]5.2 Asset Age Profile'!AE99","v":0},{"$f":"'[2]5.2 Asset Age Profile'!AF99+'[3]5.2 Asset Age Profile'!AF99","v":0},{"$f":"'[2]5.2 Asset Age Profile'!AG99+'[3]5.2 Asset Age Profile'!AG99","v":0},{"$f":"'[2]5.2 Asset Age Profile'!AH99+'[3]5.2 Asset Age Profile'!AH99","v":0},{"$f":"'[2]5.2 Asset Age Profile'!AI99+'[3]5.2 Asset Age Profile'!AI99","v":0},{"$f":"'[2]5.2 Asset Age Profile'!AJ99+'[3]5.2 Asset Age Profile'!AJ99","v":1},{"$f":"'[2]5.2 Asset Age Profile'!AK99+'[3]5.2 Asset Age Profile'!AK99","v":1},{"$f":"'[2]5.2 Asset Age Profile'!AL99+'[3]5.2 Asset Age Profile'!AL99","v":0},{"$f":"'[2]5.2 Asset Age Profile'!AM99+'[3]5.2 Asset Age Profile'!AM99","v":1},{"$f":"'[2]5.2 Asset Age Profile'!AN99+'[3]5.2 Asset Age Profile'!AN99","v":0},{"$f":"'[2]5.2 Asset Age Profile'!AO99+'[3]5.2 Asset Age Profile'!AO99","v":1},{"$f":"'[2]5.2 Asset Age Profile'!AP99+'[3]5.2 Asset Age Profile'!AP99","v":0},{"$f":"'[2]5.2 Asset Age Profile'!AQ99+'[3]5.2 Asset Age Profile'!AQ99","v":0},{"$f":"'[2]5.2 Asset Age Profile'!AR99+'[3]5.2 Asset Age Profile'!AR99","v":0},{"$f":"'[2]5.2 Asset Age Profile'!AS99+'[3]5.2 Asset Age Profile'!AS99","v":0},{"$f":"'[2]5.2 Asset Age Profile'!AT99+'[3]5.2 Asset Age Profile'!AT99","v":0},{"$f":"'[2]5.2 Asset Age Profile'!AU99+'[3]5.2 Asset Age Profile'!AU99","v":0},{"$f":"'[2]5.2 Asset Age Profile'!AV99+'[3]5.2 Asset Age Profile'!AV99","v":0},{"$f":"'[2]5.2 Asset Age Profile'!AW99+'[3]5.2 Asset Age Profile'!AW99","v":0},{"$f":"'[2]5.2 Asset Age Profile'!AX99+'[3]5.2 Asset Age Profile'!AX99","v":0},{"$f":"'[2]5.2 Asset Age Profile'!AY99+'[3]5.2 Asset Age Profile'!AY99","v":0},{"$f":"'[2]5.2 Asset Age Profile'!AZ99+'[3]5.2 Asset Age Profile'!AZ99","v":0},{"$f":"'[2]5.2 Asset Age Profile'!BA99+'[3]5.2 Asset Age Profile'!BA99","v":0},{"$f":"'[2]5.2 Asset Age Profile'!BB99+'[3]5.2 Asset Age Profile'!BB99","v":0},{"$f":"'[2]5.2 Asset Age Profile'!BC99+'[3]5.2 Asset Age Profile'!BC99","v":0},{"$f":"'[2]5.2 Asset Age Profile'!BD99+'[3]5.2 Asset Age Profile'!BD99","v":0},{"$f":"'[2]5.2 Asset Age Profile'!BE99+'[3]5.2 Asset Age Profile'!BE99","v":2},{"$f":"'[2]5.2 Asset Age Profile'!BF99+'[3]5.2 Asset Age Profile'!BF99","v":1},{"$f":"'[2]5.2 Asset Age Profile'!BG99+'[3]5.2 Asset Age Profile'!BG99","v":0},{"$f":"'[2]5.2 Asset Age Profile'!BH99+'[3]5.2 Asset Age Profile'!BH99","v":0},{"$f":"'[2]5.2 Asset Age Profile'!BI99+'[3]5.2 Asset Age Profile'!BI99","v":0},{"$f":"'[2]5.2 Asset Age Profile'!BJ99+'[3]5.2 Asset Age Profile'!BJ99","v":0},{"$f":"'[2]5.2 Asset Age Profile'!BK99+'[3]5.2 Asset Age Profile'!BK99","v":0},{"$f":"'[2]5.2 Asset Age Profile'!BL99+'[3]5.2 Asset Age Profile'!BL99","v":0},{"$f":"'[2]5.2 Asset Age Profile'!BM99+'[3]5.2 Asset Age Profile'!BM99","v":3},{"$f":"'[2]5.2 Asset Age Profile'!BN99+'[3]5.2 Asset Age Profile'!BN99","v":2},{"$f":"'[2]5.2 Asset Age Profile'!BO99+'[3]5.2 Asset Age Profile'!BO99","v":0},{"$f":"'[2]5.2 Asset Age Profile'!BP99+'[3]5.2 Asset Age Profile'!BP99","v":4},{"$f":"'[2]5.2 Asset Age Profile'!BQ99+'[3]5.2 Asset Age Profile'!BQ99","v":1},{"$f":"'[2]5.2 Asset Age Profile'!BR99+'[3]5.2 Asset Age Profile'!BR99","v":0},{"$f":"'[2]5.2 Asset Age Profile'!BS99+'[3]5.2 Asset Age Profile'!BS99","v":1},{"$f":"'[2]5.2 Asset Age Profile'!BT99+'[3]5.2 Asset Age Profile'!BT99","v":2},{"$f":"'[2]5.2 Asset Age Profile'!BU99+'[3]5.2 Asset Age Profile'!BU99","v":0},{"$f":"'[2]5.2 Asset Age Profile'!BV99+'[3]5.2 Asset Age Profile'!BV99","v":2},{"$f":"'[2]5.2 Asset Age Profile'!BW99+'[3]5.2 Asset Age Profile'!BW99","v":0},{"$f":"'[2]5.2 Asset Age Profile'!BX99+'[3]5.2 Asset Age Profile'!BX99","v":2},{"$f":"'[2]5.2 Asset Age Profile'!BY99+'[3]5.2 Asset Age Profile'!BY99","v":0},{"$f":"'[2]5.2 Asset Age Profile'!BZ99+'[3]5.2 Asset Age Profile'!BZ99","v":0},{"$f":"'[2]5.2 Asset Age Profile'!CA99+'[3]5.2 Asset Age Profile'!CA99","v":0},{"$f":"'[2]5.2 Asset Age Profile'!CB99+'[3]5.2 Asset Age Profile'!CB99","v":2},{"$f":"'[2]5.2 Asset Age Profile'!CC99+'[3]5.2 Asset Age Profile'!CC99","v":0},{"$f":"'[2]5.2 Asset Age Profile'!CD99+'[3]5.2 Asset Age Profile'!CD99","v":0},{"$f":"'[2]5.2 Asset Age Profile'!CE99+'[3]5.2 Asset Age Profile'!CE99","v":0},{"$f":"'[2]5.2 Asset Age Profile'!CF99+'[3]5.2 Asset Age Profile'!CF99","v":0},{"$f":"'[2]5.2 Asset Age Profile'!CG99+'[3]5.2 Asset Age Profile'!CG99","v":4},{"$f":"'[2]5.2 Asset Age Profile'!CH99+'[3]5.2 Asset Age Profile'!CH99","v":0},{"$f":"'[2]5.2 Asset Age Profile'!CI99+'[3]5.2 Asset Age Profile'!CI99","v":0},{"$f":"'[2]5.2 Asset Age Profile'!CJ99+'[3]5.2 Asset Age Profile'!CJ99","v":0},{"$f":"'[2]5.2 Asset Age Profile'!CK99+'[3]5.2 Asset Age Profile'!CK99","v":0},{"$f":"'[2]5.2 Asset Age Profile'!CL99+'[3]5.2 Asset Age Profile'!CL99","v":0},{"$f":"'[2]5.2 Asset Age Profile'!CM99+'[3]5.2 Asset Age Profile'!CM99","v":0},{"$f":"'[2]5.2 Asset Age Profile'!CN99+'[3]5.2 Asset Age Profile'!CN99","v":0},{"$f":"'[2]5.2 Asset Age Profile'!CO99+'[3]5.2 Asset Age Profile'!CO99","v":0},{"$f":"'[2]5.2 Asset Age Profile'!CP99+'[3]5.2 Asset Age Profile'!CP99","v":0},{"$f":"'[2]5.2 Asset Age Profile'!CQ99+'[3]5.2 Asset Age Profile'!CQ99","v":0},{"$f":"'[2]5.2 Asset Age Profile'!CR99+'[3]5.2 Asset Age Profile'!CR99","v":0},{"$f":"'[2]5.2 Asset Age Profile'!CS99+'[3]5.2 Asset Age Profile'!CS99","v":0},{"$f":"'[2]5.2 Asset Age Profile'!CT99+'[3]5.2 Asset Age Profile'!CT99","v":0},{"$f":"'[2]5.2 Asset Age Profile'!CU99+'[3]5.2 Asset Age Profile'!CU99","v":0},{"$f":"'[2]5.2 Asset Age Profile'!CV99+'[3]5.2 Asset Age Profile'!CV99","v":0},{"$f":"'[2]5.2 Asset Age Profile'!CW99+'[3]5.2 Asset Age Profile'!CW99","v":0},{"$f":"'[2]5.2 Asset Age Profile'!CX99+'[3]5.2 Asset Age Profile'!CX99","v":0},{"$f":"'[2]5.2 Asset Age Profile'!CY99+'[3]5.2 Asset Age Profile'!CY99","v":0},{"$f":"'[2]5.2 Asset Age Profile'!CZ99+'[3]5.2 Asset Age Profile'!CZ99","v":0},{"$f":"'[2]5.2 Asset Age Profile'!DA99+'[3]5.2 Asset Age Profile'!DA99","v":0},{"$f":"'[2]5.2 Asset Age Profile'!DB99+'[3]5.2 Asset Age Profile'!DB99","v":0},{"$f":"'[2]5.2 Asset Age Profile'!DC99+'[3]5.2 Asset Age Profile'!DC99","v":0},{"$f":"'[2]5.2 Asset Age Profile'!DD99+'[3]5.2 Asset Age Profile'!DD99","v":0},{"$f":"'[2]5.2 Asset Age Profile'!DE99+'[3]5.2 Asset Age Profile'!DE99","v":0},{"$f":"'[2]5.2 Asset Age Profile'!DF99+'[3]5.2 Asset Age Profile'!DF99","v":0},{"$f":"'[2]5.2 Asset Age Profile'!DG99+'[3]5.2 Asset Age Profile'!DG99","v":0},{"$f":"'[2]5.2 Asset Age Profile'!DH99+'[3]5.2 Asset Age Profile'!DH99","v":0},{"$f":"'[2]5.2 Asset Age Profile'!DI99+'[3]5.2 Asset Age Profile'!DI99","v":0},{"$f":"'[2]5.2 Asset Age Profile'!DJ99+'[3]5.2 Asset Age Profile'!DJ99","v":0},{"$f":"'[2]5.2 Asset Age Profile'!DK99+'[3]5.2 Asset Age Profile'!DK99","v":0},{"$f":"'[2]5.2 Asset Age Profile'!DL99+'[3]5.2 Asset Age Profile'!DL99","v":0},{"$f":"'[2]5.2 Asset Age Profile'!DM99+'[3]5.2 Asset Age Profile'!DM99","v":0},{"$f":"'[2]5.2 Asset Age Profile'!DN99+'[3]5.2 Asset Age Profile'!DN99","v":0},{"$f":"'[2]5.2 Asset Age Profile'!DO99+'[3]5.2 Asset Age Profile'!DO99","v":0},{"$f":"'[2]5.2 Asset Age Profile'!DP99+'[3]5.2 Asset Age Profile'!DP99","v":0},{"$f":"'[2]5.2 Asset Age Profile'!DQ99+'[3]5.2 Asset Age Profile'!DQ99","v":0},{"$f":"'[2]5.2 Asset Age Profile'!DR99+'[3]5.2 Asset Age Profile'!DR99","v":0},{"$f":"'[2]5.2 Asset Age Profile'!DS99+'[3]5.2 Asset Age Profile'!DS99","v":0},{"$f":"'[2]5.2 Asset Age Profile'!DT99+'[3]5.2 Asset Age Profile'!DT99","v":0},{"$f":"'[2]5.2 Asset Age Profile'!DU99+'[3]5.2 Asset Age Profile'!DU99","v":0},{"$f":"'[2]5.2 Asset Age Profile'!DV99+'[3]5.2 Asset Age Profile'!DV99","v":0},{"$f":"'[2]5.2 Asset Age Profile'!DW99+'[3]5.2 Asset Age Profile'!DW99","v":0},{"$f":"'[2]5.2 Asset Age Profile'!DX99+'[3]5.2 Asset Age Profile'!DX99","v":0},{"$f":"'[2]5.2 Asset Age Profile'!DY99+'[3]5.2 Asset Age Profile'!DY99","v":0},{"$f":"'[2]5.2 Asset Age Profile'!DZ99+'[3]5.2 Asset Age Profile'!DZ99","v":0},{"$f":"'[2]5.2 Asset Age Profile'!EA99+'[3]5.2 Asset Age Profile'!EA99","v":0},{"$f":"'[2]5.2 Asset Age Profile'!EB99+'[3]5.2 Asset Age Profile'!EB99","v":0},{"$f":"'[2]5.2 Asset Age Profile'!EC99+'[3]5.2 Asset Age Profile'!EC99","v":0},{"$f":"'[2]5.2 Asset Age Profile'!ED99+'[3]5.2 Asset Age Profile'!ED99","v":0},{"$f":"'[2]5.2 Asset Age Profile'!EE99+'[3]5.2 Asset Age Profile'!EE99","v":0},{"$f":"'[2]5.2 Asset Age Profile'!EF99+'[3]5.2 Asset Age Profile'!EF99","v":0},{"$f":"'[2]5.2 Asset Age Profile'!EG99+'[3]5.2 Asset Age Profile'!EG99","v":0},{"$f":"'[2]5.2 Asset Age Profile'!EH99+'[3]5.2 Asset Age Profile'!EH99","v":0},{"$f":"'[2]5.2 Asset Age Profile'!EI99+'[3]5.2 Asset Age Profile'!EI99","v":0},{"$f":"'[2]5.2 Asset Age Profile'!EJ99+'[3]5.2 Asset Age Profile'!EJ99","v":0}]
["ED_ASS521_00090","SWITCHGEAR BY: \nHIGHEST OPERATING VOLTAGE ; SWITCH FUNCTION","˂ = 11 kV ;  Fuse",null,"DNSP NAME","REPEX","SWITCHGEAR","˂ = 11 kV ;  Fuse","DESCRIPTOR METRIC","MEAN ECONOMIC LIFE","YEARS","NUMBER",null,{"$f":"'[2]5.2 Asset Age Profile'!N100+'[3]5.2 Asset Age Profile'!N100","v":35},{"$f":"'[2]5.2 Asset Age Profile'!O100+'[3]5.2 Asset Age Profile'!O100","v":0},{"$f":"'[2]5.2 Asset Age Profile'!P100+'[3]5.2 Asset Age Profile'!P100","v":0},{"$f":"'[2]5.2 Asset Age Profile'!Q100+'[3]5.2 Asset Age Profile'!Q100","v":0},{"$f":"'[2]5.2 Asset Age Profile'!R100+'[3]5.2 Asset Age Profile'!R100","v":0},{"$f":"'[2]5.2 Asset Age Profile'!S100+'[3]5.2 Asset Age Profile'!S100","v":0},{"$f":"'[2]5.2 Asset Age Profile'!T100+'[3]5.2 Asset Age Profile'!T100","v":0},{"$f":"'[2]5.2 Asset Age Profile'!U100+'[3]5.2 Asset Age Profile'!U100","v":0},{"$f":"'[2]5.2 Asset Age Profile'!V100+'[3]5.2 Asset Age Profile'!V100","v":0},{"$f":"'[2]5.2 Asset Age Profile'!W100+'[3]5.2 Asset Age Profile'!W100","v":0},{"$f":"'[2]5.2 Asset Age Profile'!X100+'[3]5.2 Asset Age Profile'!X100","v":0},{"$f":"'[2]5.2 Asset Age Profile'!Y100+'[3]5.2 Asset Age Profile'!Y100","v":10},{"$f":"'[2]5.2 Asset Age Profile'!Z100+'[3]5.2 Asset Age Profile'!Z100","v":0},{"$f":"'[2]5.2 Asset Age Profile'!AA100+'[3]5.2 Asset Age Profile'!AA100","v":0},{"$f":"'[2]5.2 Asset Age Profile'!AB100+'[3]5.2 Asset Age Profile'!AB100","v":0},{"$f":"'[2]5.2 Asset Age Profile'!AC100+'[3]5.2 Asset Age Profile'!AC100","v":0},{"$f":"'[2]5.2 Asset Age Profile'!AD100+'[3]5.2 Asset Age Profile'!AD100","v":0},{"$f":"'[2]5.2 Asset Age Profile'!AE100+'[3]5.2 Asset Age Profile'!AE100","v":0},{"$f":"'[2]5.2 Asset Age Profile'!AF100+'[3]5.2 Asset Age Profile'!AF100","v":0},{"$f":"'[2]5.2 Asset Age Profile'!AG100+'[3]5.2 Asset Age Profile'!AG100","v":0},{"$f":"'[2]5.2 Asset Age Profile'!AH100+'[3]5.2 Asset Age Profile'!AH100","v":0},{"$f":"'[2]5.2 Asset Age Profile'!AI100+'[3]5.2 Asset Age Profile'!AI100","v":0},{"$f":"'[2]5.2 Asset Age Profile'!AJ100+'[3]5.2 Asset Age Profile'!AJ100","v":1131},{"$f":"'[2]5.2 Asset Age Profile'!AK100+'[3]5.2 Asset Age Profile'!AK100","v":1137},{"$f":"'[2]5.2 Asset Age Profile'!AL100+'[3]5.2 Asset Age Profile'!AL100","v":296},{"$f":"'[2]5.2 Asset Age Profile'!AM100+'[3]5.2 Asset Age Profile'!AM100","v":3440},{"$f":"'[2]5.2 Asset Age Profile'!AN100+'[3]5.2 Asset Age Profile'!AN100","v":2753},{"$f":"'[2]5.2 Asset Age Profile'!AO100+'[3]5.2 Asset Age Profile'!AO100","v":1859},{"$f":"'[2]5.2 Asset Age Profile'!AP100+'[3]5.2 Asset Age Profile'!AP100","v":808},{"$f":"'[2]5.2 Asset Age Profile'!AQ100+'[3]5.2 Asset Age Profile'!AQ100","v":1571},{"$f":"'[2]5.2 Asset Age Profile'!AR100+'[3]5.2 Asset Age Profile'!AR100","v":1091},{"$f":"'[2]5.2 Asset Age Profile'!AS100+'[3]5.2 Asset Age Profile'!AS100","v":1471},{"$f":"'[2]5.2 Asset Age Profile'!AT100+'[3]5.2 Asset Age Profile'!AT100","v":1630},{"$f":"'[2]5.2 Asset Age Profile'!AU100+'[3]5.2 Asset Age Profile'!AU100","v":1479},{"$f":"'[2]5.2 Asset Age Profile'!AV100+'[3]5.2 Asset Age Profile'!AV100","v":2097},{"$f":"'[2]5.2 Asset Age Profile'!AW100+'[3]5.2 Asset Age Profile'!AW100","v":532},{"$f":"'[2]5.2 Asset Age Profile'!AX100+'[3]5.2 Asset Age Profile'!AX100","v":745},{"$f":"'[2]5.2 Asset Age Profile'!AY100+'[3]5.2 Asset Age Profile'!AY100","v":53},{"$f":"'[2]5.2 Asset Age Profile'!AZ100+'[3]5.2 Asset Age Profile'!AZ100","v":355},{"$f":"'[2]5.2 Asset Age Profile'!BA100+'[3]5.2 Asset Age Profile'!BA100","v":37},{"$f":"'[2]5.2 Asset Age Profile'!BB100+'[3]5.2 Asset Age Profile'!BB100","v":82},{"$f":"'[2]5.2 Asset Age Profile'!BC100+'[3]5.2 Asset Age Profile'!BC100","v":95},{"$f":"'[2]5.2 Asset Age Profile'!BD100+'[3]5.2 Asset Age Profile'!BD100","v":207},{"$f":"'[2]5.2 Asset Age Profile'!BE100+'[3]5.2 Asset Age Profile'!BE100","v":1313},{"$f":"'[2]5.2 Asset Age Profile'!BF100+'[3]5.2 Asset Age Profile'!BF100","v":200},{"$f":"'[2]5.2 Asset Age Profile'!BG100+'[3]5.2 Asset Age Profile'!BG100","v":4945},{"$f":"'[2]5.2 Asset Age Profile'!BH100+'[3]5.2 Asset Age Profile'!BH100","v":8275},{"$f":"'[2]5.2 Asset Age Profile'!BI100+'[3]5.2 Asset Age Profile'!BI100","v":3320},{"$f":"'[2]5.2 Asset Age Profile'!BJ100+'[3]5.2 Asset Age Profile'!BJ100","v":568},{"$f":"'[2]5.2 Asset Age Profile'!BK100+'[3]5.2 Asset Age Profile'!BK100","v":85},{"$f":"'[2]5.2 Asset Age Profile'!BL100+'[3]5.2 Asset Age Profile'!BL100","v":4749},{"$f":"'[2]5.2 Asset Age Profile'!BM100+'[3]5.2 Asset Age Profile'!BM100","v":1628},{"$f":"'[2]5.2 Asset Age Profile'!BN100+'[3]5.2 Asset Age Profile'!BN100","v":337},{"$f":"'[2]5.2 Asset Age Profile'!BO100+'[3]5.2 Asset Age Profile'!BO100","v":349},{"$f":"'[2]5.2 Asset Age Profile'!BP100+'[3]5.2 Asset Age Profile'!BP100","v":55},{"$f":"'[2]5.2 Asset Age Profile'!BQ100+'[3]5.2 Asset Age Profile'!BQ100","v":1225},{"$f":"'[2]5.2 Asset Age Profile'!BR100+'[3]5.2 Asset Age Profile'!BR100","v":695},{"$f":"'[2]5.2 Asset Age Profile'!BS100+'[3]5.2 Asset Age Profile'!BS100","v":1154},{"$f":"'[2]5.2 Asset Age Profile'!BT100+'[3]5.2 Asset Age Profile'!BT100","v":906},{"$f":"'[2]5.2 Asset Age Profile'!BU100+'[3]5.2 Asset Age Profile'!BU100","v":675},{"$f":"'[2]5.2 Asset Age Profile'!BV100+'[3]5.2 Asset Age Profile'!BV100","v":60},{"$f":"'[2]5.2 Asset Age Profile'!BW100+'[3]5.2 Asset Age Profile'!BW100","v":591},{"$f":"'[2]5.2 Asset Age Profile'!BX100+'[3]5.2 Asset Age Profile'!BX100","v":1343},{"$f":"'[2]5.2 Asset Age Profile'!BY100+'[3]5.2 Asset Age Profile'!BY100","v":1767},{"$f":"'[2]5.2 Asset Age Profile'!BZ100+'[3]5.2 Asset Age Profile'!BZ100","v":2804},{"$f":"'[2]5.2 Asset Age Profile'!CA100+'[3]5.2 Asset Age Profile'!CA100","v":1497},{"$f":"'[2]5.2 Asset Age Profile'!CB100+'[3]5.2 Asset Age Profile'!CB100","v":1649},{"$f":"'[2]5.2 Asset Age Profile'!CC100+'[3]5.2 Asset Age Profile'!CC100","v":888},{"$f":"'[2]5.2 Asset Age Profile'!CD100+'[3]5.2 Asset Age Profile'!CD100","v":546},{"$f":"'[2]5.2 Asset Age Profile'!CE100+'[3]5.2 Asset Age Profile'!CE100","v":1760},{"$f":"'[2]5.2 Asset Age Profile'!CF100+'[3]5.2 Asset Age Profile'!CF100","v":926},{"$f":"'[2]5.2 Asset Age Profile'!CG100+'[3]5.2 Asset Age Profile'!CG100","v":708},{"$f":"'[2]5.2 Asset Age Profile'!CH100+'[3]5.2 Asset Age Profile'!CH100","v":134},{"$f":"'[2]5.2 Asset Age Profile'!CI100+'[3]5.2 Asset Age Profile'!CI100","v":186},{"$f":"'[2]5.2 Asset Age Profile'!CJ100+'[3]5.2 Asset Age Profile'!CJ100","v":214},{"$f":"'[2]5.2 Asset Age Profile'!CK100+'[3]5.2 Asset Age Profile'!CK100","v":191},{"$f":"'[2]5.2 Asset Age Profile'!CL100+'[3]5.2 Asset Age Profile'!CL100","v":200},{"$f":"'[2]5.2 Asset Age Profile'!CM100+'[3]5.2 Asset Age Profile'!CM100","v":59},{"$f":"'[2]5.2 Asset Age Profile'!CN100+'[3]5.2 Asset Age Profile'!CN100","v":39},{"$f":"'[2]5.2 Asset Age Profile'!CO100+'[3]5.2 Asset Age Profile'!CO100","v":724},{"$f":"'[2]5.2 Asset Age Profile'!CP100+'[3]5.2 Asset Age Profile'!CP100","v":0},{"$f":"'[2]5.2 Asset Age Profile'!CQ100+'[3]5.2 Asset Age Profile'!CQ100","v":14},{"$f":"'[2]5.2 Asset Age Profile'!CR100+'[3]5.2 Asset Age Profile'!CR100","v":0},{"$f":"'[2]5.2 Asset Age Profile'!CS100+'[3]5.2 Asset Age Profile'!CS100","v":5},{"$f":"'[2]5.2 Asset Age Profile'!CT100+'[3]5.2 Asset Age Profile'!CT100","v":1},{"$f":"'[2]5.2 Asset Age Profile'!CU100+'[3]5.2 Asset Age Profile'!CU100","v":4},{"$f":"'[2]5.2 Asset Age Profile'!CV100+'[3]5.2 Asset Age Profile'!CV100","v":4},{"$f":"'[2]5.2 Asset Age Profile'!CW100+'[3]5.2 Asset Age Profile'!CW100","v":0},{"$f":"'[2]5.2 Asset Age Profile'!CX100+'[3]5.2 Asset Age Profile'!CX100","v":1},{"$f":"'[2]5.2 Asset Age Profile'!CY100+'[3]5.2 Asset Age Profile'!CY100","v":47},{"$f":"'[2]5.2 Asset Age Profile'!CZ100+'[3]5.2 Asset Age Profile'!CZ100","v":30},{"$f":"'[2]5.2 Asset Age Profile'!DA100+'[3]5.2 Asset Age Profile'!DA100","v":63},{"$f":"'[2]5.2 Asset Age Profile'!DB100+'[3]5.2 Asset Age Profile'!DB100","v":0},{"$f":"'[2]5.2 Asset Age Profile'!DC100+'[3]5.2 Asset Age Profile'!DC100","v":241},{"$f":"'[2]5.2 Asset Age Profile'!DD100+'[3]5.2 Asset Age Profile'!DD100","v":88},{"$f":"'[2]5.2 Asset Age Profile'!DE100+'[3]5.2 Asset Age Profile'!DE100","v":319},{"$f":"'[2]5.2 Asset Age Profile'!DF100+'[3]5.2 Asset Age Profile'!DF100","v":0},{"$f":"'[2]5.2 Asset Age Profile'!DG100+'[3]5.2 Asset Age Profile'!DG100","v":32},{"$f":"'[2]5.2 Asset Age Profile'!DH100+'[3]5.2 Asset Age Profile'!DH100","v":0},{"$f":"'[2]5.2 Asset Age Profile'!DI100+'[3]5.2 Asset Age Profile'!DI100","v":37},{"$f":"'[2]5.2 Asset Age Profile'!DJ100+'[3]5.2 Asset Age Profile'!DJ100","v":0},{"$f":"'[2]5.2 Asset Age Profile'!DK100+'[3]5.2 Asset Age Profile'!DK100","v":38},{"$f":"'[2]5.2 Asset Age Profile'!DL100+'[3]5.2 Asset Age Profile'!DL100","v":0},{"$f":"'[2]5.2 Asset Age Profile'!DM100+'[3]5.2 Asset Age Profile'!DM100","v":0},{"$f":"'[2]5.2 Asset Age Profile'!DN100+'[3]5.2 Asset Age Profile'!DN100","v":0},{"$f":"'[2]5.2 Asset Age Profile'!DO100+'[3]5.2 Asset Age Profile'!DO100","v":0},{"$f":"'[2]5.2 Asset Age Profile'!DP100+'[3]5.2 Asset Age Profile'!DP100","v":0},{"$f":"'[2]5.2 Asset Age Profile'!DQ100+'[3]5.2 Asset Age Profile'!DQ100","v":1},{"$f":"'[2]5.2 Asset Age Profile'!DR100+'[3]5.2 Asset Age Profile'!DR100","v":0},{"$f":"'[2]5.2 Asset Age Profile'!DS100+'[3]5.2 Asset Age Profile'!DS100","v":2068},{"$f":"'[2]5.2 Asset Age Profile'!DT100+'[3]5.2 Asset Age Profile'!DT100","v":39},{"$f":"'[2]5.2 Asset Age Profile'!DU100+'[3]5.2 Asset Age Profile'!DU100","v":0},{"$f":"'[2]5.2 Asset Age Profile'!DV100+'[3]5.2 Asset Age Profile'!DV100","v":0},{"$f":"'[2]5.2 Asset Age Profile'!DW100+'[3]5.2 Asset Age Profile'!DW100","v":0},{"$f":"'[2]5.2 Asset Age Profile'!DX100+'[3]5.2 Asset Age Profile'!DX100","v":0},{"$f":"'[2]5.2 Asset Age Profile'!DY100+'[3]5.2 Asset Age Profile'!DY100","v":0},{"$f":"'[2]5.2 Asset Age Profile'!DZ100+'[3]5.2 Asset Age Profile'!DZ100","v":0},{"$f":"'[2]5.2 Asset Age Profile'!EA100+'[3]5.2 Asset Age Profile'!EA100","v":91},{"$f":"'[2]5.2 Asset Age Profile'!EB100+'[3]5.2 Asset Age Profile'!EB100","v":252},{"$f":"'[2]5.2 Asset Age Profile'!EC100+'[3]5.2 Asset Age Profile'!EC100","v":0},{"$f":"'[2]5.2 Asset Age Profile'!ED100+'[3]5.2 Asset Age Profile'!ED100","v":0},{"$f":"'[2]5.2 Asset Age Profile'!EE100+'[3]5.2 Asset Age Profile'!EE100","v":0},{"$f":"'[2]5.2 Asset Age Profile'!EF100+'[3]5.2 Asset Age Profile'!EF100","v":0},{"$f":"'[2]5.2 Asset Age Profile'!EG100+'[3]5.2 Asset Age Profile'!EG100","v":0},{"$f":"'[2]5.2 Asset Age Profile'!EH100+'[3]5.2 Asset Age Profile'!EH100","v":0},{"$f":"'[2]5.2 Asset Age Profile'!EI100+'[3]5.2 Asset Age Profile'!EI100","v":0},{"$f":"'[2]5.2 Asset Age Profile'!EJ100+'[3]5.2 Asset Age Profile'!EJ100","v":0}]
["ED_ASS521_00091",null,"˂ = 11 kV  ; Switch",null,"DNSP NAME","REPEX","SWITCHGEAR","˂ = 11 kV  ; Switch","DESCRIPTOR METRIC","MEAN ECONOMIC LIFE","YEARS","NUMBER",null,{"$f":"'[2]5.2 Asset Age Profile'!N101+'[3]5.2 Asset Age Profile'!N101","v":35},{"$f":"'[2]5.2 Asset Age Profile'!O101+'[3]5.2 Asset Age Profile'!O101","v":0},{"$f":"'[2]5.2 Asset Age Profile'!P101+'[3]5.2 Asset Age Profile'!P101","v":0},{"$f":"'[2]5.2 Asset Age Profile'!Q101+'[3]5.2 Asset Age Profile'!Q101","v":0},{"$f":"'[2]5.2 Asset Age Profile'!R101+'[3]5.2 Asset Age Profile'!R101","v":0},{"$f":"'[2]5.2 Asset Age Profile'!S101+'[3]5.2 Asset Age Profile'!S101","v":0},{"$f":"'[2]5.2 Asset Age Profile'!T101+'[3]5.2 Asset Age Profile'!T101","v":0},{"$f":"'[2]5.2 Asset Age Profile'!U101+'[3]5.2 Asset Age Profile'!U101","v":0},{"$f":"'[2]5.2 Asset Age Profile'!V101+'[3]5.2 Asset Age Profile'!V101","v":0},{"$f":"'[2]5.2 Asset Age Profile'!W101+'[3]5.2 Asset Age Profile'!W101","v":0},{"$f":"'[2]5.2 Asset Age Profile'!X101+'[3]5.2 Asset Age Profile'!X101","v":0},{"$f":"'[2]5.2 Asset Age Profile'!Y101+'[3]5.2 Asset Age Profile'!Y101","v":10},{"$f":"'[2]5.2 Asset Age Profile'!Z101+'[3]5.2 Asset Age Profile'!Z101","v":0},{"$f":"'[2]5.2 Asset Age Profile'!AA101+'[3]5.2 Asset Age Profile'!AA101","v":0},{"$f":"'[2]5.2 Asset Age Profile'!AB101+'[3]5.2 Asset Age Profile'!AB101","v":0},{"$f":"'[2]5.2 Asset Age Profile'!AC101+'[3]5.2 Asset Age Profile'!AC101","v":0},{"$f":"'[2]5.2 Asset Age Profile'!AD101+'[3]5.2 Asset Age Profile'!AD101","v":0},{"$f":"'[2]5.2 Asset Age Profile'!AE101+'[3]5.2 Asset Age Profile'!AE101","v":0},{"$f":"'[2]5.2 Asset Age Profile'!AF101+'[3]5.2 Asset Age Profile'!AF101","v":0},{"$f":"'[2]5.2 Asset Age Profile'!AG101+'[3]5.2 Asset Age Profile'!AG101","v":0},{"$f":"'[2]5.2 Asset Age Profile'!AH101+'[3]5.2 Asset Age Profile'!AH101","v":0},{"$f":"'[2]5.2 Asset Age Profile'!AI101+'[3]5.2 Asset Age Profile'!AI101","v":0},{"$f":"'[2]5.2 Asset Age Profile'!AJ101+'[3]5.2 Asset Age Profile'!AJ101","v":763},{"$f":"'[2]5.2 Asset Age Profile'!AK101+'[3]5.2 Asset Age Profile'!AK101","v":597},{"$f":"'[2]5.2 Asset Age Profile'!AL101+'[3]5.2 Asset Age Profile'!AL101","v":521},{"$f":"'[2]5.2 Asset Age Profile'!AM101+'[3]5.2 Asset Age Profile'!AM101","v":757},{"$f":"'[2]5.2 Asset Age Profile'!AN101+'[3]5.2 Asset Age Profile'!AN101","v":709},{"$f":"'[2]5.2 Asset Age Profile'!AO101+'[3]5.2 Asset Age Profile'!AO101","v":637},{"$f":"'[2]5.2 Asset Age Profile'!AP101+'[3]5.2 Asset Age Profile'!AP101","v":579},{"$f":"'[2]5.2 Asset Age Profile'!AQ101+'[3]5.2 Asset Age Profile'!AQ101","v":515},{"$f":"'[2]5.2 Asset Age Profile'!AR101+'[3]5.2 Asset Age Profile'!AR101","v":527},{"$f":"'[2]5.2 Asset Age Profile'!AS101+'[3]5.2 Asset Age Profile'!AS101","v":429},{"$f":"'[2]5.2 Asset Age Profile'!AT101+'[3]5.2 Asset Age Profile'!AT101","v":520},{"$f":"'[2]5.2 Asset Age Profile'!AU101+'[3]5.2 Asset Age Profile'!AU101","v":411},{"$f":"'[2]5.2 Asset Age Profile'!AV101+'[3]5.2 Asset Age Profile'!AV101","v":439},{"$f":"'[2]5.2 Asset Age Profile'!AW101+'[3]5.2 Asset Age Profile'!AW101","v":326},{"$f":"'[2]5.2 Asset Age Profile'!AX101+'[3]5.2 Asset Age Profile'!AX101","v":300},{"$f":"'[2]5.2 Asset Age Profile'!AY101+'[3]5.2 Asset Age Profile'!AY101","v":214},{"$f":"'[2]5.2 Asset Age Profile'!AZ101+'[3]5.2 Asset Age Profile'!AZ101","v":278},{"$f":"'[2]5.2 Asset Age Profile'!BA101+'[3]5.2 Asset Age Profile'!BA101","v":171},{"$f":"'[2]5.2 Asset Age Profile'!BB101+'[3]5.2 Asset Age Profile'!BB101","v":350},{"$f":"'[2]5.2 Asset Age Profile'!BC101+'[3]5.2 Asset Age Profile'!BC101","v":321},{"$f":"'[2]5.2 Asset Age Profile'!BD101+'[3]5.2 Asset Age Profile'!BD101","v":547},{"$f":"'[2]5.2 Asset Age Profile'!BE101+'[3]5.2 Asset Age Profile'!BE101","v":649},{"$f":"'[2]5.2 Asset Age Profile'!BF101+'[3]5.2 Asset Age Profile'!BF101","v":726},{"$f":"'[2]5.2 Asset Age Profile'!BG101+'[3]5.2 Asset Age Profile'!BG101","v":830},{"$f":"'[2]5.2 Asset Age Profile'!BH101+'[3]5.2 Asset Age Profile'!BH101","v":1015},{"$f":"'[2]5.2 Asset Age Profile'!BI101+'[3]5.2 Asset Age Profile'!BI101","v":640},{"$f":"'[2]5.2 Asset Age Profile'!BJ101+'[3]5.2 Asset Age Profile'!BJ101","v":480},{"$f":"'[2]5.2 Asset Age Profile'!BK101+'[3]5.2 Asset Age Profile'!BK101","v":388},{"$f":"'[2]5.2 Asset Age Profile'!BL101+'[3]5.2 Asset Age Profile'!BL101","v":972},{"$f":"'[2]5.2 Asset Age Profile'!BM101+'[3]5.2 Asset Age Profile'!BM101","v":894},{"$f":"'[2]5.2 Asset Age Profile'!BN101+'[3]5.2 Asset Age Profile'!BN101","v":656},{"$f":"'[2]5.2 Asset Age Profile'!BO101+'[3]5.2 Asset Age Profile'!BO101","v":383},{"$f":"'[2]5.2 Asset Age Profile'!BP101+'[3]5.2 Asset Age Profile'!BP101","v":332},{"$f":"'[2]5.2 Asset Age Profile'!BQ101+'[3]5.2 Asset Age Profile'!BQ101","v":942},{"$f":"'[2]5.2 Asset Age Profile'!BR101+'[3]5.2 Asset Age Profile'!BR101","v":789},{"$f":"'[2]5.2 Asset Age Profile'!BS101+'[3]5.2 Asset Age Profile'!BS101","v":528},{"$f":"'[2]5.2 Asset Age Profile'!BT101+'[3]5.2 Asset Age Profile'!BT101","v":547},{"$f":"'[2]5.2 Asset Age Profile'!BU101+'[3]5.2 Asset Age Profile'!BU101","v":489},{"$f":"'[2]5.2 Asset Age Profile'!BV101+'[3]5.2 Asset Age Profile'!BV101","v":530},{"$f":"'[2]5.2 Asset Age Profile'!BW101+'[3]5.2 Asset Age Profile'!BW101","v":577},{"$f":"'[2]5.2 Asset Age Profile'!BX101+'[3]5.2 Asset Age Profile'!BX101","v":805},{"$f":"'[2]5.2 Asset Age Profile'!BY101+'[3]5.2 Asset Age Profile'!BY101","v":534},{"$f":"'[2]5.2 Asset Age Profile'!BZ101+'[3]5.2 Asset Age Profile'!BZ101","v":490},{"$f":"'[2]5.2 Asset Age Profile'!CA101+'[3]5.2 Asset Age Profile'!CA101","v":407},{"$f":"'[2]5.2 Asset Age Profile'!CB101+'[3]5.2 Asset Age Profile'!CB101","v":501},{"$f":"'[2]5.2 Asset Age Profile'!CC101+'[3]5.2 Asset Age Profile'!CC101","v":665},{"$f":"'[2]5.2 Asset Age Profile'!CD101+'[3]5.2 Asset Age Profile'!CD101","v":266},{"$f":"'[2]5.2 Asset Age Profile'!CE101+'[3]5.2 Asset Age Profile'!CE101","v":1376},{"$f":"'[2]5.2 Asset Age Profile'!CF101+'[3]5.2 Asset Age Profile'!CF101","v":204},{"$f":"'[2]5.2 Asset Age Profile'!CG101+'[3]5.2 Asset Age Profile'!CG101","v":970},{"$f":"'[2]5.2 Asset Age Profile'!CH101+'[3]5.2 Asset Age Profile'!CH101","v":106},{"$f":"'[2]5.2 Asset Age Profile'!CI101+'[3]5.2 Asset Age Profile'!CI101","v":47},{"$f":"'[2]5.2 Asset Age Profile'!CJ101+'[3]5.2 Asset Age Profile'!CJ101","v":103},{"$f":"'[2]5.2 Asset Age Profile'!CK101+'[3]5.2 Asset Age Profile'!CK101","v":294},{"$f":"'[2]5.2 Asset Age Profile'!CL101+'[3]5.2 Asset Age Profile'!CL101","v":64},{"$f":"'[2]5.2 Asset Age Profile'!CM101+'[3]5.2 Asset Age Profile'!CM101","v":115},{"$f":"'[2]5.2 Asset Age Profile'!CN101+'[3]5.2 Asset Age Profile'!CN101","v":16},{"$f":"'[2]5.2 Asset Age Profile'!CO101+'[3]5.2 Asset Age Profile'!CO101","v":156},{"$f":"'[2]5.2 Asset Age Profile'!CP101+'[3]5.2 Asset Age Profile'!CP101","v":0},{"$f":"'[2]5.2 Asset Age Profile'!CQ101+'[3]5.2 Asset Age Profile'!CQ101","v":62},{"$f":"'[2]5.2 Asset Age Profile'!CR101+'[3]5.2 Asset Age Profile'!CR101","v":0},{"$f":"'[2]5.2 Asset Age Profile'!CS101+'[3]5.2 Asset Age Profile'!CS101","v":8},{"$f":"'[2]5.2 Asset Age Profile'!CT101+'[3]5.2 Asset Age Profile'!CT101","v":8},{"$f":"'[2]5.2 Asset Age Profile'!CU101+'[3]5.2 Asset Age Profile'!CU101","v":17},{"$f":"'[2]5.2 Asset Age Profile'!CV101+'[3]5.2 Asset Age Profile'!CV101","v":22},{"$f":"'[2]5.2 Asset Age Profile'!CW101+'[3]5.2 Asset Age Profile'!CW101","v":0},{"$f":"'[2]5.2 Asset Age Profile'!CX101+'[3]5.2 Asset Age Profile'!CX101","v":8},{"$f":"'[2]5.2 Asset Age Profile'!CY101+'[3]5.2 Asset Age Profile'!CY101","v":17},{"$f":"'[2]5.2 Asset Age Profile'!CZ101+'[3]5.2 Asset Age Profile'!CZ101","v":35},{"$f":"'[2]5.2 Asset Age Profile'!DA101+'[3]5.2 Asset Age Profile'!DA101","v":74},{"$f":"'[2]5.2 Asset Age Profile'!DB101+'[3]5.2 Asset Age Profile'!DB101","v":0},{"$f":"'[2]5.2 Asset Age Profile'!DC101+'[3]5.2 Asset Age Profile'!DC101","v":35},{"$f":"'[2]5.2 Asset Age Profile'!DD101+'[3]5.2 Asset Age Profile'!DD101","v":100},{"$f":"'[2]5.2 Asset Age Profile'!DE101+'[3]5.2 Asset Age Profile'!DE101","v":125},{"$f":"'[2]5.2 Asset Age Profile'!DF101+'[3]5.2 Asset Age Profile'!DF101","v":0},{"$f":"'[2]5.2 Asset Age Profile'!DG101+'[3]5.2 Asset Age Profile'!DG101","v":21},{"$f":"'[2]5.2 Asset Age Profile'!DH101+'[3]5.2 Asset Age Profile'!DH101","v":0},{"$f":"'[2]5.2 Asset Age Profile'!DI101+'[3]5.2 Asset Age Profile'!DI101","v":8},{"$f":"'[2]5.2 Asset Age Profile'!DJ101+'[3]5.2 Asset Age Profile'!DJ101","v":0},{"$f":"'[2]5.2 Asset Age Profile'!DK101+'[3]5.2 Asset Age Profile'!DK101","v":55},{"$f":"'[2]5.2 Asset Age Profile'!DL101+'[3]5.2 Asset Age Profile'!DL101","v":0},{"$f":"'[2]5.2 Asset Age Profile'!DM101+'[3]5.2 Asset Age Profile'!DM101","v":0},{"$f":"'[2]5.2 Asset Age Profile'!DN101+'[3]5.2 Asset Age Profile'!DN101","v":0},{"$f":"'[2]5.2 Asset Age Profile'!DO101+'[3]5.2 Asset Age Profile'!DO101","v":0},{"$f":"'[2]5.2 Asset Age Profile'!DP101+'[3]5.2 Asset Age Profile'!DP101","v":0},{"$f":"'[2]5.2 Asset Age Profile'!DQ101+'[3]5.2 Asset Age Profile'!DQ101","v":2},{"$f":"'[2]5.2 Asset Age Profile'!DR101+'[3]5.2 Asset Age Profile'!DR101","v":0},{"$f":"'[2]5.2 Asset Age Profile'!DS101+'[3]5.2 Asset Age Profile'!DS101","v":3732},{"$f":"'[2]5.2 Asset Age Profile'!DT101+'[3]5.2 Asset Age Profile'!DT101","v":20},{"$f":"'[2]5.2 Asset Age Profile'!DU101+'[3]5.2 Asset Age Profile'!DU101","v":0},{"$f":"'[2]5.2 Asset Age Profile'!DV101+'[3]5.2 Asset Age Profile'!DV101","v":0},{"$f":"'[2]5.2 Asset Age Profile'!DW101+'[3]5.2 Asset Age Profile'!DW101","v":0},{"$f":"'[2]5.2 Asset Age Profile'!DX101+'[3]5.2 Asset Age Profile'!DX101","v":0},{"$f":"'[2]5.2 Asset Age Profile'!DY101+'[3]5.2 Asset Age Profile'!DY101","v":0},{"$f":"'[2]5.2 Asset Age Profile'!DZ101+'[3]5.2 Asset Age Profile'!DZ101","v":0},{"$f":"'[2]5.2 Asset Age Profile'!EA101+'[3]5.2 Asset Age Profile'!EA101","v":58},{"$f":"'[2]5.2 Asset Age Profile'!EB101+'[3]5.2 Asset Age Profile'!EB101","v":25},{"$f":"'[2]5.2 Asset Age Profile'!EC101+'[3]5.2 Asset Age Profile'!EC101","v":0},{"$f":"'[2]5.2 Asset Age Profile'!ED101+'[3]5.2 Asset Age Profile'!ED101","v":0},{"$f":"'[2]5.2 Asset Age Profile'!EE101+'[3]5.2 Asset Age Profile'!EE101","v":0},{"$f":"'[2]5.2 Asset Age Profile'!EF101+'[3]5.2 Asset Age Profile'!EF101","v":0},{"$f":"'[2]5.2 Asset Age Profile'!EG101+'[3]5.2 Asset Age Profile'!EG101","v":0},{"$f":"'[2]5.2 Asset Age Profile'!EH101+'[3]5.2 Asset Age Profile'!EH101","v":0},{"$f":"'[2]5.2 Asset Age Profile'!EI101+'[3]5.2 Asset Age Profile'!EI101","v":0},{"$f":"'[2]5.2 Asset Age Profile'!EJ101+'[3]5.2 Asset Age Profile'!EJ101","v":0}]
["ED_ASS521_00092",null,"˂ = 11 kV ;  Circuit Breaker",null,null,null,null,null,null,null,null,null,null,{"$f":"'[2]5.2 Asset Age Profile'!N102+'[3]5.2 Asset Age Profile'!N102","v":50},{"$f":"'[2]5.2 Asset Age Profile'!O102+'[3]5.2 Asset Age Profile'!O102","v":0},{"$f":"'[2]5.2 Asset Age Profile'!P102+'[3]5.2 Asset Age Profile'!P102","v":0},{"$f":"'[2]5.2 Asset Age Profile'!Q102+'[3]5.2 Asset Age Profile'!Q102","v":0},{"$f":"'[2]5.2 Asset Age Profile'!R102+'[3]5.2 Asset Age Profile'!R102","v":0},{"$f":"'[2]5.2 Asset Age Profile'!S102+'[3]5.2 Asset Age Profile'!S102","v":0},{"$f":"'[2]5.2 Asset Age Profile'!T102+'[3]5.2 Asset Age Profile'!T102","v":0},{"$f":"'[2]5.2 Asset Age Profile'!U102+'[3]5.2 Asset Age Profile'!U102","v":0},{"$f":"'[2]5.2 Asset Age Profile'!V102+'[3]5.2 Asset Age Profile'!V102","v":0},{"$f":"'[2]5.2 Asset Age Profile'!W102+'[3]5.2 Asset Age Profile'!W102","v":0},{"$f":"'[2]5.2 Asset Age Profile'!X102+'[3]5.2 Asset Age Profile'!X102","v":0},{"$f":"'[2]5.2 Asset Age Profile'!Y102+'[3]5.2 Asset Age Profile'!Y102","v":18},{"$f":"'[2]5.2 Asset Age Profile'!Z102+'[3]5.2 Asset Age Profile'!Z102","v":0},{"$f":"'[2]5.2 Asset Age Profile'!AA102+'[3]5.2 Asset Age Profile'!AA102","v":0},{"$f":"'[2]5.2 Asset Age Profile'!AB102+'[3]5.2 Asset Age Profile'!AB102","v":0},{"$f":"'[2]5.2 Asset Age Profile'!AC102+'[3]5.2 Asset Age Profile'!AC102","v":0},{"$f":"'[2]5.2 Asset Age Profile'!AD102+'[3]5.2 Asset Age Profile'!AD102","v":0},{"$f":"'[2]5.2 Asset Age Profile'!AE102+'[3]5.2 Asset Age Profile'!AE102","v":0},{"$f":"'[2]5.2 Asset Age Profile'!AF102+'[3]5.2 Asset Age Profile'!AF102","v":0},{"$f":"'[2]5.2 Asset Age Profile'!AG102+'[3]5.2 Asset Age Profile'!AG102","v":0},{"$f":"'[2]5.2 Asset Age Profile'!AH102+'[3]5.2 Asset Age Profile'!AH102","v":0},{"$f":"'[2]5.2 Asset Age Profile'!AI102+'[3]5.2 Asset Age Profile'!AI102","v":0},{"$f":"'[2]5.2 Asset Age Profile'!AJ102+'[3]5.2 Asset Age Profile'!AJ102","v":44},{"$f":"'[2]5.2 Asset Age Profile'!AK102+'[3]5.2 Asset Age Profile'!AK102","v":30},{"$f":"'[2]5.2 Asset Age Profile'!AL102+'[3]5.2 Asset Age Profile'!AL102","v":109},{"$f":"'[2]5.2 Asset Age Profile'!AM102+'[3]5.2 Asset Age Profile'!AM102","v":85},{"$f":"'[2]5.2 Asset Age Profile'!AN102+'[3]5.2 Asset Age Profile'!AN102","v":53},{"$f":"'[2]5.2 Asset Age Profile'!AO102+'[3]5.2 Asset Age Profile'!AO102","v":53},{"$f":"'[2]5.2 Asset Age Profile'!AP102+'[3]5.2 Asset Age Profile'!AP102","v":47},{"$f":"'[2]5.2 Asset Age Profile'!AQ102+'[3]5.2 Asset Age Profile'!AQ102","v":50},{"$f":"'[2]5.2 Asset Age Profile'!AR102+'[3]5.2 Asset Age Profile'!AR102","v":121},{"$f":"'[2]5.2 Asset Age Profile'!AS102+'[3]5.2 Asset Age Profile'!AS102","v":38},{"$f":"'[2]5.2 Asset Age Profile'!AT102+'[3]5.2 Asset Age Profile'!AT102","v":29},{"$f":"'[2]5.2 Asset Age Profile'!AU102+'[3]5.2 Asset Age Profile'!AU102","v":13},{"$f":"'[2]5.2 Asset Age Profile'!AV102+'[3]5.2 Asset Age Profile'!AV102","v":14},{"$f":"'[2]5.2 Asset Age Profile'!AW102+'[3]5.2 Asset Age Profile'!AW102","v":3},{"$f":"'[2]5.2 Asset Age Profile'!AX102+'[3]5.2 Asset Age Profile'!AX102","v":17},{"$f":"'[2]5.2 Asset Age Profile'!AY102+'[3]5.2 Asset Age Profile'!AY102","v":17},{"$f":"'[2]5.2 Asset Age Profile'!AZ102+'[3]5.2 Asset Age Profile'!AZ102","v":27},{"$f":"'[2]5.2 Asset Age Profile'!BA102+'[3]5.2 Asset Age Profile'!BA102","v":20},{"$f":"'[2]5.2 Asset Age Profile'!BB102+'[3]5.2 Asset Age Profile'!BB102","v":43},{"$f":"'[2]5.2 Asset Age Profile'!BC102+'[3]5.2 Asset Age Profile'!BC102","v":57},{"$f":"'[2]5.2 Asset Age Profile'!BD102+'[3]5.2 Asset Age Profile'!BD102","v":12},{"$f":"'[2]5.2 Asset Age Profile'!BE102+'[3]5.2 Asset Age Profile'!BE102","v":19},{"$f":"'[2]5.2 Asset Age Profile'!BF102+'[3]5.2 Asset Age Profile'!BF102","v":20},{"$f":"'[2]5.2 Asset Age Profile'!BG102+'[3]5.2 Asset Age Profile'!BG102","v":29},{"$f":"'[2]5.2 Asset Age Profile'!BH102+'[3]5.2 Asset Age Profile'!BH102","v":54},{"$f":"'[2]5.2 Asset Age Profile'!BI102+'[3]5.2 Asset Age Profile'!BI102","v":32},{"$f":"'[2]5.2 Asset Age Profile'!BJ102+'[3]5.2 Asset Age Profile'!BJ102","v":6},{"$f":"'[2]5.2 Asset Age Profile'!BK102+'[3]5.2 Asset Age Profile'!BK102","v":51},{"$f":"'[2]5.2 Asset Age Profile'!BL102+'[3]5.2 Asset Age Profile'!BL102","v":85},{"$f":"'[2]5.2 Asset Age Profile'!BM102+'[3]5.2 Asset Age Profile'!BM102","v":49},{"$f":"'[2]5.2 Asset Age Profile'!BN102+'[3]5.2 Asset Age Profile'!BN102","v":18},{"$f":"'[2]5.2 Asset Age Profile'!BO102+'[3]5.2 Asset Age Profile'!BO102","v":18},{"$f":"'[2]5.2 Asset Age Profile'!BP102+'[3]5.2 Asset Age Profile'!BP102","v":4},{"$f":"'[2]5.2 Asset Age Profile'!BQ102+'[3]5.2 Asset Age Profile'!BQ102","v":19},{"$f":"'[2]5.2 Asset Age Profile'!BR102+'[3]5.2 Asset Age Profile'!BR102","v":29},{"$f":"'[2]5.2 Asset Age Profile'!BS102+'[3]5.2 Asset Age Profile'!BS102","v":22},{"$f":"'[2]5.2 Asset Age Profile'!BT102+'[3]5.2 Asset Age Profile'!BT102","v":6},{"$f":"'[2]5.2 Asset Age Profile'!BU102+'[3]5.2 Asset Age Profile'!BU102","v":51},{"$f":"'[2]5.2 Asset Age Profile'!BV102+'[3]5.2 Asset Age Profile'!BV102","v":15},{"$f":"'[2]5.2 Asset Age Profile'!BW102+'[3]5.2 Asset Age Profile'!BW102","v":35},{"$f":"'[2]5.2 Asset Age Profile'!BX102+'[3]5.2 Asset Age Profile'!BX102","v":20},{"$f":"'[2]5.2 Asset Age Profile'!BY102+'[3]5.2 Asset Age Profile'!BY102","v":15},{"$f":"'[2]5.2 Asset Age Profile'!BZ102+'[3]5.2 Asset Age Profile'!BZ102","v":13},{"$f":"'[2]5.2 Asset Age Profile'!CA102+'[3]5.2 Asset Age Profile'!CA102","v":6},{"$f":"'[2]5.2 Asset Age Profile'!CB102+'[3]5.2 Asset Age Profile'!CB102","v":19},{"$f":"'[2]5.2 Asset Age Profile'!CC102+'[3]5.2 Asset Age Profile'!CC102","v":14},{"$f":"'[2]5.2 Asset Age Profile'!CD102+'[3]5.2 Asset Age Profile'!CD102","v":31},{"$f":"'[2]5.2 Asset Age Profile'!CE102+'[3]5.2 Asset Age Profile'!CE102","v":44},{"$f":"'[2]5.2 Asset Age Profile'!CF102+'[3]5.2 Asset Age Profile'!CF102","v":33},{"$f":"'[2]5.2 Asset Age Profile'!CG102+'[3]5.2 Asset Age Profile'!CG102","v":20},{"$f":"'[2]5.2 Asset Age Profile'!CH102+'[3]5.2 Asset Age Profile'!CH102","v":26},{"$f":"'[2]5.2 Asset Age Profile'!CI102+'[3]5.2 Asset Age Profile'!CI102","v":0},{"$f":"'[2]5.2 Asset Age Profile'!CJ102+'[3]5.2 Asset Age Profile'!CJ102","v":1},{"$f":"'[2]5.2 Asset Age Profile'!CK102+'[3]5.2 Asset Age Profile'!CK102","v":3},{"$f":"'[2]5.2 Asset Age Profile'!CL102+'[3]5.2 Asset Age Profile'!CL102","v":0},{"$f":"'[2]5.2 Asset Age Profile'!CM102+'[3]5.2 Asset Age Profile'!CM102","v":5},{"$f":"'[2]5.2 Asset Age Profile'!CN102+'[3]5.2 Asset Age Profile'!CN102","v":1},{"$f":"'[2]5.2 Asset Age Profile'!CO102+'[3]5.2 Asset Age Profile'!CO102","v":0},{"$f":"'[2]5.2 Asset Age Profile'!CP102+'[3]5.2 Asset Age Profile'!CP102","v":0},{"$f":"'[2]5.2 Asset Age Profile'!CQ102+'[3]5.2 Asset Age Profile'!CQ102","v":6},{"$f":"'[2]5.2 Asset Age Profile'!CR102+'[3]5.2 Asset Age Profile'!CR102","v":0},{"$f":"'[2]5.2 Asset Age Profile'!CS102+'[3]5.2 Asset Age Profile'!CS102","v":0},{"$f":"'[2]5.2 Asset Age Profile'!CT102+'[3]5.2 Asset Age Profile'!CT102","v":2},{"$f":"'[2]5.2 Asset Age Profile'!CU102+'[3]5.2 Asset Age Profile'!CU102","v":0},{"$f":"'[2]5.2 Asset Age Profile'!CV102+'[3]5.2 Asset Age Profile'!CV102","v":1},{"$f":"'[2]5.2 Asset Age Profile'!CW102+'[3]5.2 Asset Age Profile'!CW102","v":0},{"$f":"'[2]5.2 Asset Age Profile'!CX102+'[3]5.2 Asset Age Profile'!CX102","v":1},{"$f":"'[2]5.2 Asset Age Profile'!CY102+'[3]5.2 Asset Age Profile'!CY102","v":0},{"$f":"'[2]5.2 Asset Age Profile'!CZ102+'[3]5.2 Asset Age Profile'!CZ102","v":0},{"$f":"'[2]5.2 Asset Age Profile'!DA102+'[3]5.2 Asset Age Profile'!DA102","v":5},{"$f":"'[2]5.2 Asset Age Profile'!DB102+'[3]5.2 Asset Age Profile'!DB102","v":0},{"$f":"'[2]5.2 Asset Age Profile'!DC102+'[3]5.2 Asset Age Profile'!DC102","v":0},{"$f":"'[2]5.2 Asset Age Profile'!DD102+'[3]5.2 Asset Age Profile'!DD102","v":0},{"$f":"'[2]5.2 Asset Age Profile'!DE102+'[3]5.2 Asset Age Profile'!DE102","v":0},{"$f":"'[2]5.2 Asset Age Profile'!DF102+'[3]5.2 Asset Age Profile'!DF102","v":0},{"$f":"'[2]5.2 Asset Age Profile'!DG102+'[3]5.2 Asset Age Profile'!DG102","v":4},{"$f":"'[2]5.2 Asset Age Profile'!DH102+'[3]5.2 Asset Age Profile'!DH102","v":0},{"$f":"'[2]5.2 Asset Age Profile'!DI102+'[3]5.2 Asset Age Profile'!DI102","v":0},{"$f":"'[2]5.2 Asset Age Profile'!DJ102+'[3]5.2 Asset Age Profile'!DJ102","v":0},{"$f":"'[2]5.2 Asset Age Profile'!DK102+'[3]5.2 Asset Age Profile'!DK102","v":0},{"$f":"'[2]5.2 Asset Age Profile'!DL102+'[3]5.2 Asset Age Profile'!DL102","v":0},{"$f":"'[2]5.2 Asset Age Profile'!DM102+'[3]5.2 Asset Age Profile'!DM102","v":0},{"$f":"'[2]5.2 Asset Age Profile'!DN102+'[3]5.2 Asset Age Profile'!DN102","v":0},{"$f":"'[2]5.2 Asset Age Profile'!DO102+'[3]5.2 Asset Age Profile'!DO102","v":0},{"$f":"'[2]5.2 Asset Age Profile'!DP102+'[3]5.2 Asset Age Profile'!DP102","v":0},{"$f":"'[2]5.2 Asset Age Profile'!DQ102+'[3]5.2 Asset Age Profile'!DQ102","v":1},{"$f":"'[2]5.2 Asset Age Profile'!DR102+'[3]5.2 Asset Age Profile'!DR102","v":0},{"$f":"'[2]5.2 Asset Age Profile'!DS102+'[3]5.2 Asset Age Profile'!DS102","v":186},{"$f":"'[2]5.2 Asset Age Profile'!DT102+'[3]5.2 Asset Age Profile'!DT102","v":0},{"$f":"'[2]5.2 Asset Age Profile'!DU102+'[3]5.2 Asset Age Profile'!DU102","v":0},{"$f":"'[2]5.2 Asset Age Profile'!DV102+'[3]5.2 Asset Age Profile'!DV102","v":0},{"$f":"'[2]5.2 Asset Age Profile'!DW102+'[3]5.2 Asset Age Profile'!DW102","v":0},{"$f":"'[2]5.2 Asset Age Profile'!DX102+'[3]5.2 Asset Age Profile'!DX102","v":0},{"$f":"'[2]5.2 Asset Age Profile'!DY102+'[3]5.2 Asset Age Profile'!DY102","v":0},{"$f":"'[2]5.2 Asset Age Profile'!DZ102+'[3]5.2 Asset Age Profile'!DZ102","v":0},{"$f":"'[2]5.2 Asset Age Profile'!EA102+'[3]5.2 Asset Age Profile'!EA102","v":4},{"$f":"'[2]5.2 Asset Age Profile'!EB102+'[3]5.2 Asset Age Profile'!EB102","v":53},{"$f":"'[2]5.2 Asset Age Profile'!EC102+'[3]5.2 Asset Age Profile'!EC102","v":0},{"$f":"'[2]5.2 Asset Age Profile'!ED102+'[3]5.2 Asset Age Profile'!ED102","v":0},{"$f":"'[2]5.2 Asset Age Profile'!EE102+'[3]5.2 Asset Age Profile'!EE102","v":0},{"$f":"'[2]5.2 Asset Age Profile'!EF102+'[3]5.2 Asset Age Profile'!EF102","v":0},{"$f":"'[2]5.2 Asset Age Profile'!EG102+'[3]5.2 Asset Age Profile'!EG102","v":0},{"$f":"'[2]5.2 Asset Age Profile'!EH102+'[3]5.2 Asset Age Profile'!EH102","v":0},{"$f":"'[2]5.2 Asset Age Profile'!EI102+'[3]5.2 Asset Age Profile'!EI102","v":0},{"$f":"'[2]5.2 Asset Age Profile'!EJ102+'[3]5.2 Asset Age Profile'!EJ102","v":0}]
["ED_ASS521_00093",null,"> 11 kV & < = 22 kV  ; Switch",null,null,null,null,null,null,null,null,null,null,{"$f":"'[2]5.2 Asset Age Profile'!N103+'[3]5.2 Asset Age Profile'!N103","v":35},{"$f":"'[2]5.2 Asset Age Profile'!O103+'[3]5.2 Asset Age Profile'!O103","v":0},{"$f":"'[2]5.2 Asset Age Profile'!P103+'[3]5.2 Asset Age Profile'!P103","v":0},{"$f":"'[2]5.2 Asset Age Profile'!Q103+'[3]5.2 Asset Age Profile'!Q103","v":0},{"$f":"'[2]5.2 Asset Age Profile'!R103+'[3]5.2 Asset Age Profile'!R103","v":0},{"$f":"'[2]5.2 Asset Age Profile'!S103+'[3]5.2 Asset Age Profile'!S103","v":0},{"$f":"'[2]5.2 Asset Age Profile'!T103+'[3]5.2 Asset Age Profile'!T103","v":0},{"$f":"'[2]5.2 Asset Age Profile'!U103+'[3]5.2 Asset Age Profile'!U103","v":0},{"$f":"'[2]5.2 Asset Age Profile'!V103+'[3]5.2 Asset Age Profile'!V103","v":0},{"$f":"'[2]5.2 Asset Age Profile'!W103+'[3]5.2 Asset Age Profile'!W103","v":0},{"$f":"'[2]5.2 Asset Age Profile'!X103+'[3]5.2 Asset Age Profile'!X103","v":0},{"$f":"'[2]5.2 Asset Age Profile'!Y103+'[3]5.2 Asset Age Profile'!Y103","v":10},{"$f":"'[2]5.2 Asset Age Profile'!Z103+'[3]5.2 Asset Age Profile'!Z103","v":0},{"$f":"'[2]5.2 Asset Age Profile'!AA103+'[3]5.2 Asset Age Profile'!AA103","v":0},{"$f":"'[2]5.2 Asset Age Profile'!AB103+'[3]5.2 Asset Age Profile'!AB103","v":0},{"$f":"'[2]5.2 Asset Age Profile'!AC103+'[3]5.2 Asset Age Profile'!AC103","v":0},{"$f":"'[2]5.2 Asset Age Profile'!AD103+'[3]5.2 Asset Age Profile'!AD103","v":0},{"$f":"'[2]5.2 Asset Age Profile'!AE103+'[3]5.2 Asset Age Profile'!AE103","v":0},{"$f":"'[2]5.2 Asset Age Profile'!AF103+'[3]5.2 Asset Age Profile'!AF103","v":0},{"$f":"'[2]5.2 Asset Age Profile'!AG103+'[3]5.2 Asset Age Profile'!AG103","v":0},{"$f":"'[2]5.2 Asset Age Profile'!AH103+'[3]5.2 Asset Age Profile'!AH103","v":0},{"$f":"'[2]5.2 Asset Age Profile'!AI103+'[3]5.2 Asset Age Profile'!AI103","v":0},{"$f":"'[2]5.2 Asset Age Profile'!AJ103+'[3]5.2 Asset Age Profile'!AJ103","v":0},{"$f":"'[2]5.2 Asset Age Profile'!AK103+'[3]5.2 Asset Age Profile'!AK103","v":1},{"$f":"'[2]5.2 Asset Age Profile'!AL103+'[3]5.2 Asset Age Profile'!AL103","v":0},{"$f":"'[2]5.2 Asset Age Profile'!AM103+'[3]5.2 Asset Age Profile'!AM103","v":0},{"$f":"'[2]5.2 Asset Age Profile'!AN103+'[3]5.2 Asset Age Profile'!AN103","v":0},{"$f":"'[2]5.2 Asset Age Profile'!AO103+'[3]5.2 Asset Age Profile'!AO103","v":0},{"$f":"'[2]5.2 Asset Age Profile'!AP103+'[3]5.2 Asset Age Profile'!AP103","v":0},{"$f":"'[2]5.2 Asset Age Profile'!AQ103+'[3]5.2 Asset Age Profile'!AQ103","v":0},{"$f":"'[2]5.2 Asset Age Profile'!AR103+'[3]5.2 Asset Age Profile'!AR103","v":0},{"$f":"'[2]5.2 Asset Age Profile'!AS103+'[3]5.2 Asset Age Profile'!AS103","v":0},{"$f":"'[2]5.2 Asset Age Profile'!AT103+'[3]5.2 Asset Age Profile'!AT103","v":0},{"$f":"'[2]5.2 Asset Age Profile'!AU103+'[3]5.2 Asset Age Profile'!AU103","v":0},{"$f":"'[2]5.2 Asset Age Profile'!AV103+'[3]5.2 Asset Age Profile'!AV103","v":0},{"$f":"'[2]5.2 Asset Age Profile'!AW103+'[3]5.2 Asset Age Profile'!AW103","v":0},{"$f":"'[2]5.2 Asset Age Profile'!AX103+'[3]5.2 Asset Age Profile'!AX103","v":0},{"$f":"'[2]5.2 Asset Age Profile'!AY103+'[3]5.2 Asset Age Profile'!AY103","v":0},{"$f":"'[2]5.2 Asset Age Profile'!AZ103+'[3]5.2 Asset Age Profile'!AZ103","v":0},{"$f":"'[2]5.2 Asset Age Profile'!BA103+'[3]5.2 Asset Age Profile'!BA103","v":0},{"$f":"'[2]5.2 Asset Age Profile'!BB103+'[3]5.2 Asset Age Profile'!BB103","v":0},{"$f":"'[2]5.2 Asset Age Profile'!BC103+'[3]5.2 Asset Age Profile'!BC103","v":0},{"$f":"'[2]5.2 Asset Age Profile'!BD103+'[3]5.2 Asset Age Profile'!BD103","v":0},{"$f":"'[2]5.2 Asset Age Profile'!BE103+'[3]5.2 Asset Age Profile'!BE103","v":0},{"$f":"'[2]5.2 Asset Age Profile'!BF103+'[3]5.2 Asset Age Profile'!BF103","v":0},{"$f":"'[2]5.2 Asset Age Profile'!BG103+'[3]5.2 Asset Age Profile'!BG103","v":0},{"$f":"'[2]5.2 Asset Age Profile'!BH103+'[3]5.2 Asset Age Profile'!BH103","v":0},{"$f":"'[2]5.2 Asset Age Profile'!BI103+'[3]5.2 Asset Age Profile'!BI103","v":0},{"$f":"'[2]5.2 Asset Age Profile'!BJ103+'[3]5.2 Asset Age Profile'!BJ103","v":0},{"$f":"'[2]5.2 Asset Age Profile'!BK103+'[3]5.2 Asset Age Profile'!BK103","v":0},{"$f":"'[2]5.2 Asset Age Profile'!BL103+'[3]5.2 Asset Age Profile'!BL103","v":0},{"$f":"'[2]5.2 Asset Age Profile'!BM103+'[3]5.2 Asset Age Profile'!BM103","v":0},{"$f":"'[2]5.2 Asset Age Profile'!BN103+'[3]5.2 Asset Age Profile'!BN103","v":0},{"$f":"'[2]5.2 Asset Age Profile'!BO103+'[3]5.2 Asset Age Profile'!BO103","v":0},{"$f":"'[2]5.2 Asset Age Profile'!BP103+'[3]5.2 Asset Age Profile'!BP103","v":0},{"$f":"'[2]5.2 Asset Age Profile'!BQ103+'[3]5.2 Asset Age Profile'!BQ103","v":0},{"$f":"'[2]5.2 Asset Age Profile'!BR103+'[3]5.2 Asset Age Profile'!BR103","v":0},{"$f":"'[2]5.2 Asset Age Profile'!BS103+'[3]5.2 Asset Age Profile'!BS103","v":0},{"$f":"'[2]5.2 Asset Age Profile'!BT103+'[3]5.2 Asset Age Profile'!BT103","v":0},{"$f":"'[2]5.2 Asset Age Profile'!BU103+'[3]5.2 Asset Age Profile'!BU103","v":0},{"$f":"'[2]5.2 Asset Age Profile'!BV103+'[3]5.2 Asset Age Profile'!BV103","v":0},{"$f":"'[2]5.2 Asset Age Profile'!BW103+'[3]5.2 Asset Age Profile'!BW103","v":0},{"$f":"'[2]5.2 Asset Age Profile'!BX103+'[3]5.2 Asset Age Profile'!BX103","v":0},{"$f":"'[2]5.2 Asset Age Profile'!BY103+'[3]5.2 Asset Age Profile'!BY103","v":0},{"$f":"'[2]5.2 Asset Age Profile'!BZ103+'[3]5.2 Asset Age Profile'!BZ103","v":0},{"$f":"'[2]5.2 Asset Age Profile'!CA103+'[3]5.2 Asset Age Profile'!CA103","v":0},{"$f":"'[2]5.2 Asset Age Profile'!CB103+'[3]5.2 Asset Age Profile'!CB103","v":0},{"$f":"'[2]5.2 Asset Age Profile'!CC103+'[3]5.2 Asset Age Profile'!CC103","v":0},{"$f":"'[2]5.2 Asset Age Profile'!CD103+'[3]5.2 Asset Age Profile'!CD103","v":3},{"$f":"'[2]5.2 Asset Age Profile'!CE103+'[3]5.2 Asset Age Profile'!CE103","v":0},{"$f":"'[2]5.2 Asset Age Profile'!CF103+'[3]5.2 Asset Age Profile'!CF103","v":0},{"$f":"'[2]5.2 Asset Age Profile'!CG103+'[3]5.2 Asset Age Profile'!CG103","v":0},{"$f":"'[2]5.2 Asset Age Profile'!CH103+'[3]5.2 Asset Age Profile'!CH103","v":0},{"$f":"'[2]5.2 Asset Age Profile'!CI103+'[3]5.2 Asset Age Profile'!CI103","v":0},{"$f":"'[2]5.2 Asset Age Profile'!CJ103+'[3]5.2 Asset Age Profile'!CJ103","v":0},{"$f":"'[2]5.2 Asset Age Profile'!CK103+'[3]5.2 Asset Age Profile'!CK103","v":0},{"$f":"'[2]5.2 Asset Age Profile'!CL103+'[3]5.2 Asset Age Profile'!CL103","v":0},{"$f":"'[2]5.2 Asset Age Profile'!CM103+'[3]5.2 Asset Age Profile'!CM103","v":0},{"$f":"'[2]5.2 Asset Age Profile'!CN103+'[3]5.2 Asset Age Profile'!CN103","v":0},{"$f":"'[2]5.2 Asset Age Profile'!CO103+'[3]5.2 Asset Age Profile'!CO103","v":0},{"$f":"'[2]5.2 Asset Age Profile'!CP103+'[3]5.2 Asset Age Profile'!CP103","v":0},{"$f":"'[2]5.2 Asset Age Profile'!CQ103+'[3]5.2 Asset Age Profile'!CQ103","v":0},{"$f":"'[2]5.2 Asset Age Profile'!CR103+'[3]5.2 Asset Age Profile'!CR103","v":0},{"$f":"'[2]5.2 Asset Age Profile'!CS103+'[3]5.2 Asset Age Profile'!CS103","v":0},{"$f":"'[2]5.2 Asset Age Profile'!CT103+'[3]5.2 Asset Age Profile'!CT103","v":0},{"$f":"'[2]5.2 Asset Age Profile'!CU103+'[3]5.2 Asset Age Profile'!CU103","v":0},{"$f":"'[2]5.2 Asset Age Profile'!CV103+'[3]5.2 Asset Age Profile'!CV103","v":0},{"$f":"'[2]5.2 Asset Age Profile'!CW103+'[3]5.2 Asset Age Profile'!CW103","v":0},{"$f":"'[2]5.2 Asset Age Profile'!CX103+'[3]5.2 Asset Age Profile'!CX103","v":0},{"$f":"'[2]5.2 Asset Age Profile'!CY103+'[3]5.2 Asset Age Profile'!CY103","v":0},{"$f":"'[2]5.2 Asset Age Profile'!CZ103+'[3]5.2 Asset Age Profile'!CZ103","v":0},{"$f":"'[2]5.2 Asset Age Profile'!DA103+'[3]5.2 Asset Age Profile'!DA103","v":0},{"$f":"'[2]5.2 Asset Age Profile'!DB103+'[3]5.2 Asset Age Profile'!DB103","v":0},{"$f":"'[2]5.2 Asset Age Profile'!DC103+'[3]5.2 Asset Age Profile'!DC103","v":0},{"$f":"'[2]5.2 Asset Age Profile'!DD103+'[3]5.2 Asset Age Profile'!DD103","v":0},{"$f":"'[2]5.2 Asset Age Profile'!DE103+'[3]5.2 Asset Age Profile'!DE103","v":0},{"$f":"'[2]5.2 Asset Age Profile'!DF103+'[3]5.2 Asset Age Profile'!DF103","v":0},{"$f":"'[2]5.2 Asset Age Profile'!DG103+'[3]5.2 Asset Age Profile'!DG103","v":0},{"$f":"'[2]5.2 Asset Age Profile'!DH103+'[3]5.2 Asset Age Profile'!DH103","v":0},{"$f":"'[2]5.2 Asset Age Profile'!DI103+'[3]5.2 Asset Age Profile'!DI103","v":0},{"$f":"'[2]5.2 Asset Age Profile'!DJ103+'[3]5.2 Asset Age Profile'!DJ103","v":0},{"$f":"'[2]5.2 Asset Age Profile'!DK103+'[3]5.2 Asset Age Profile'!DK103","v":0},{"$f":"'[2]5.2 Asset Age Profile'!DL103+'[3]5.2 Asset Age Profile'!DL103","v":0},{"$f":"'[2]5.2 Asset Age Profile'!DM103+'[3]5.2 Asset Age Profile'!DM103","v":0},{"$f":"'[2]5.2 Asset Age Profile'!DN103+'[3]5.2 Asset Age Profile'!DN103","v":0},{"$f":"'[2]5.2 Asset Age Profile'!DO103+'[3]5.2 Asset Age Profile'!DO103","v":0},{"$f":"'[2]5.2 Asset Age Profile'!DP103+'[3]5.2 Asset Age Profile'!DP103","v":0},{"$f":"'[2]5.2 Asset Age Profile'!DQ103+'[3]5.2 Asset Age Profile'!DQ103","v":0},{"$f":"'[2]5.2 Asset Age Profile'!DR103+'[3]5.2 Asset Age Profile'!DR103","v":0},{"$f":"'[2]5.2 Asset Age Profile'!DS103+'[3]5.2 Asset Age Profile'!DS103","v":0},{"$f":"'[2]5.2 Asset Age Profile'!DT103+'[3]5.2 Asset Age Profile'!DT103","v":0},{"$f":"'[2]5.2 Asset Age Profile'!DU103+'[3]5.2 Asset Age Profile'!DU103","v":0},{"$f":"'[2]5.2 Asset Age Profile'!DV103+'[3]5.2 Asset Age Profile'!DV103","v":0},{"$f":"'[2]5.2 Asset Age Profile'!DW103+'[3]5.2 Asset Age Profile'!DW103","v":0},{"$f":"'[2]5.2 Asset Age Profile'!DX103+'[3]5.2 Asset Age Profile'!DX103","v":0},{"$f":"'[2]5.2 Asset Age Profile'!DY103+'[3]5.2 Asset Age Profile'!DY103","v":0},{"$f":"'[2]5.2 Asset Age Profile'!DZ103+'[3]5.2 Asset Age Profile'!DZ103","v":0},{"$f":"'[2]5.2 Asset Age Profile'!EA103+'[3]5.2 Asset Age Profile'!EA103","v":0},{"$f":"'[2]5.2 Asset Age Profile'!EB103+'[3]5.2 Asset Age Profile'!EB103","v":0},{"$f":"'[2]5.2 Asset Age Profile'!EC103+'[3]5.2 Asset Age Profile'!EC103","v":0},{"$f":"'[2]5.2 Asset Age Profile'!ED103+'[3]5.2 Asset Age Profile'!ED103","v":0},{"$f":"'[2]5.2 Asset Age Profile'!EE103+'[3]5.2 Asset Age Profile'!EE103","v":0},{"$f":"'[2]5.2 Asset Age Profile'!EF103+'[3]5.2 Asset Age Profile'!EF103","v":0},{"$f":"'[2]5.2 Asset Age Profile'!EG103+'[3]5.2 Asset Age Profile'!EG103","v":0},{"$f":"'[2]5.2 Asset Age Profile'!EH103+'[3]5.2 Asset Age Profile'!EH103","v":0},{"$f":"'[2]5.2 Asset Age Profile'!EI103+'[3]5.2 Asset Age Profile'!EI103","v":0},{"$f":"'[2]5.2 Asset Age Profile'!EJ103+'[3]5.2 Asset Age Profile'!EJ103","v":0}]
["ED_ASS521_00094",null,"> 11 kV & < = 22 kV  ; Circuit Breaker",null,null,null,null,null,null,null,null,null,null,{"$f":"'[2]5.2 Asset Age Profile'!N104+'[3]5.2 Asset Age Profile'!N104","v":50},{"$f":"'[2]5.2 Asset Age Profile'!O104+'[3]5.2 Asset Age Profile'!O104","v":0},{"$f":"'[2]5.2 Asset Age Profile'!P104+'[3]5.2 Asset Age Profile'!P104","v":0},{"$f":"'[2]5.2 Asset Age Profile'!Q104+'[3]5.2 Asset Age Profile'!Q104","v":0},{"$f":"'[2]5.2 Asset Age Profile'!R104+'[3]5.2 Asset Age Profile'!R104","v":0},{"$f":"'[2]5.2 Asset Age Profile'!S104+'[3]5.2 Asset Age Profile'!S104","v":0},{"$f":"'[2]5.2 Asset Age Profile'!T104+'[3]5.2 Asset Age Profile'!T104","v":0},{"$f":"'[2]5.2 Asset Age Profile'!U104+'[3]5.2 Asset Age Profile'!U104","v":0},{"$f":"'[2]5.2 Asset Age Profile'!V104+'[3]5.2 Asset Age Profile'!V104","v":0},{"$f":"'[2]5.2 Asset Age Profile'!W104+'[3]5.2 Asset Age Profile'!W104","v":0},{"$f":"'[2]5.2 Asset Age Profile'!X104+'[3]5.2 Asset Age Profile'!X104","v":0},{"$f":"'[2]5.2 Asset Age Profile'!Y104+'[3]5.2 Asset Age Profile'!Y104","v":18},{"$f":"'[2]5.2 Asset Age Profile'!Z104+'[3]5.2 Asset Age Profile'!Z104","v":0},{"$f":"'[2]5.2 Asset Age Profile'!AA104+'[3]5.2 Asset Age Profile'!AA104","v":0},{"$f":"'[2]5.2 Asset Age Profile'!AB104+'[3]5.2 Asset Age Profile'!AB104","v":0},{"$f":"'[2]5.2 Asset Age Profile'!AC104+'[3]5.2 Asset Age Profile'!AC104","v":0},{"$f":"'[2]5.2 Asset Age Profile'!AD104+'[3]5.2 Asset Age Profile'!AD104","v":0},{"$f":"'[2]5.2 Asset Age Profile'!AE104+'[3]5.2 Asset Age Profile'!AE104","v":0},{"$f":"'[2]5.2 Asset Age Profile'!AF104+'[3]5.2 Asset Age Profile'!AF104","v":0},{"$f":"'[2]5.2 Asset Age Profile'!AG104+'[3]5.2 Asset Age Profile'!AG104","v":0},{"$f":"'[2]5.2 Asset Age Profile'!AH104+'[3]5.2 Asset Age Profile'!AH104","v":0},{"$f":"'[2]5.2 Asset Age Profile'!AI104+'[3]5.2 Asset Age Profile'!AI104","v":0},{"$f":"'[2]5.2 Asset Age Profile'!AJ104+'[3]5.2 Asset Age Profile'!AJ104","v":0},{"$f":"'[2]5.2 Asset Age Profile'!AK104+'[3]5.2 Asset Age Profile'!AK104","v":20},{"$f":"'[2]5.2 Asset Age Profile'!AL104+'[3]5.2 Asset Age Profile'!AL104","v":0},{"$f":"'[2]5.2 Asset Age Profile'!AM104+'[3]5.2 Asset Age Profile'!AM104","v":0},{"$f":"'[2]5.2 Asset Age Profile'!AN104+'[3]5.2 Asset Age Profile'!AN104","v":0},{"$f":"'[2]5.2 Asset Age Profile'!AO104+'[3]5.2 Asset Age Profile'!AO104","v":0},{"$f":"'[2]5.2 Asset Age Profile'!AP104+'[3]5.2 Asset Age Profile'!AP104","v":0},{"$f":"'[2]5.2 Asset Age Profile'!AQ104+'[3]5.2 Asset Age Profile'!AQ104","v":0},{"$f":"'[2]5.2 Asset Age Profile'!AR104+'[3]5.2 Asset Age Profile'!AR104","v":0},{"$f":"'[2]5.2 Asset Age Profile'!AS104+'[3]5.2 Asset Age Profile'!AS104","v":0},{"$f":"'[2]5.2 Asset Age Profile'!AT104+'[3]5.2 Asset Age Profile'!AT104","v":0},{"$f":"'[2]5.2 Asset Age Profile'!AU104+'[3]5.2 Asset Age Profile'!AU104","v":0},{"$f":"'[2]5.2 Asset Age Profile'!AV104+'[3]5.2 Asset Age Profile'!AV104","v":0},{"$f":"'[2]5.2 Asset Age Profile'!AW104+'[3]5.2 Asset Age Profile'!AW104","v":0},{"$f":"'[2]5.2 Asset Age Profile'!AX104+'[3]5.2 Asset Age Profile'!AX104","v":0},{"$f":"'[2]5.2 Asset Age Profile'!AY104+'[3]5.2 Asset Age Profile'!AY104","v":0},{"$f":"'[2]5.2 Asset Age Profile'!AZ104+'[3]5.2 Asset Age Profile'!AZ104","v":0},{"$f":"'[2]5.2 Asset Age Profile'!BA104+'[3]5.2 Asset Age Profile'!BA104","v":0},{"$f":"'[2]5.2 Asset Age Profile'!BB104+'[3]5.2 Asset Age Profile'!BB104","v":0},{"$f":"'[2]5.2 Asset Age Profile'!BC104+'[3]5.2 Asset Age Profile'!BC104","v":0},{"$f":"'[2]5.2 Asset Age Profile'!BD104+'[3]5.2 Asset Age Profile'!BD104","v":0},{"$f":"'[2]5.2 Asset Age Profile'!BE104+'[3]5.2 Asset Age Profile'!BE104","v":0},{"$f":"'[2]5.2 Asset Age Profile'!BF104+'[3]5.2 Asset Age Profile'!BF104","v":0},{"$f":"'[2]5.2 Asset Age Profile'!BG104+'[3]5.2 Asset Age Profile'!BG104","v":0},{"$f":"'[2]5.2 Asset Age Profile'!BH104+'[3]5.2 Asset Age Profile'!BH104","v":0},{"$f":"'[2]5.2 Asset Age Profile'!BI104+'[3]5.2 Asset Age Profile'!BI104","v":0},{"$f":"'[2]5.2 Asset Age Profile'!BJ104+'[3]5.2 Asset Age Profile'!BJ104","v":0},{"$f":"'[2]5.2 Asset Age Profile'!BK104+'[3]5.2 Asset Age Profile'!BK104","v":0},{"$f":"'[2]5.2 Asset Age Profile'!BL104+'[3]5.2 Asset Age Profile'!BL104","v":0},{"$f":"'[2]5.2 Asset Age Profile'!BM104+'[3]5.2 Asset Age Profile'!BM104","v":0},{"$f":"'[2]5.2 Asset Age Profile'!BN104+'[3]5.2 Asset Age Profile'!BN104","v":0},{"$f":"'[2]5.2 Asset Age Profile'!BO104+'[3]5.2 Asset Age Profile'!BO104","v":0},{"$f":"'[2]5.2 Asset Age Profile'!BP104+'[3]5.2 Asset Age Profile'!BP104","v":0},{"$f":"'[2]5.2 Asset Age Profile'!BQ104+'[3]5.2 Asset Age Profile'!BQ104","v":0},{"$f":"'[2]5.2 Asset Age Profile'!BR104+'[3]5.2 Asset Age Profile'!BR104","v":0},{"$f":"'[2]5.2 Asset Age Profile'!BS104+'[3]5.2 Asset Age Profile'!BS104","v":0},{"$f":"'[2]5.2 Asset Age Profile'!BT104+'[3]5.2 Asset Age Profile'!BT104","v":0},{"$f":"'[2]5.2 Asset Age Profile'!BU104+'[3]5.2 Asset Age Profile'!BU104","v":0},{"$f":"'[2]5.2 Asset Age Profile'!BV104+'[3]5.2 Asset Age Profile'!BV104","v":0},{"$f":"'[2]5.2 Asset Age Profile'!BW104+'[3]5.2 Asset Age Profile'!BW104","v":0},{"$f":"'[2]5.2 Asset Age Profile'!BX104+'[3]5.2 Asset Age Profile'!BX104","v":0},{"$f":"'[2]5.2 Asset Age Profile'!BY104+'[3]5.2 Asset Age Profile'!BY104","v":0},{"$f":"'[2]5.2 Asset Age Profile'!BZ104+'[3]5.2 Asset Age Profile'!BZ104","v":0},{"$f":"'[2]5.2 Asset Age Profile'!CA104+'[3]5.2 Asset Age Profile'!CA104","v":0},{"$f":"'[2]5.2 Asset Age Profile'!CB104+'[3]5.2 Asset Age Profile'!CB104","v":0},{"$f":"'[2]5.2 Asset Age Profile'!CC104+'[3]5.2 Asset Age Profile'!CC104","v":0},{"$f":"'[2]5.2 Asset Age Profile'!CD104+'[3]5.2 Asset Age Profile'!CD104","v":7},{"$f":"'[2]5.2 Asset Age Profile'!CE104+'[3]5.2 Asset Age Profile'!CE104","v":0},{"$f":"'[2]5.2 Asset Age Profile'!CF104+'[3]5.2 Asset Age Profile'!CF104","v":0},{"$f":"'[2]5.2 Asset Age Profile'!CG104+'[3]5.2 Asset Age Profile'!CG104","v":0},{"$f":"'[2]5.2 Asset Age Profile'!CH104+'[3]5.2 Asset Age Profile'!CH104","v":0},{"$f":"'[2]5.2 Asset Age Profile'!CI104+'[3]5.2 Asset Age Profile'!CI104","v":0},{"$f":"'[2]5.2 Asset Age Profile'!CJ104+'[3]5.2 Asset Age Profile'!CJ104","v":0},{"$f":"'[2]5.2 Asset Age Profile'!CK104+'[3]5.2 Asset Age Profile'!CK104","v":0},{"$f":"'[2]5.2 Asset Age Profile'!CL104+'[3]5.2 Asset Age Profile'!CL104","v":0},{"$f":"'[2]5.2 Asset Age Profile'!CM104+'[3]5.2 Asset Age Profile'!CM104","v":0},{"$f":"'[2]5.2 Asset Age Profile'!CN104+'[3]5.2 Asset Age Profile'!CN104","v":0},{"$f":"'[2]5.2 Asset Age Profile'!CO104+'[3]5.2 Asset Age Profile'!CO104","v":0},{"$f":"'[2]5.2 Asset Age Profile'!CP104+'[3]5.2 Asset Age Profile'!CP104","v":0},{"$f":"'[2]5.2 Asset Age Profile'!CQ104+'[3]5.2 Asset Age Profile'!CQ104","v":0},{"$f":"'[2]5.2 Asset Age Profile'!CR104+'[3]5.2 Asset Age Profile'!CR104","v":0},{"$f":"'[2]5.2 Asset Age Profile'!CS104+'[3]5.2 Asset Age Profile'!CS104","v":0},{"$f":"'[2]5.2 Asset Age Profile'!CT104+'[3]5.2 Asset Age Profile'!CT104","v":0},{"$f":"'[2]5.2 Asset Age Profile'!CU104+'[3]5.2 Asset Age Profile'!CU104","v":0},{"$f":"'[2]5.2 Asset Age Profile'!CV104+'[3]5.2 Asset Age Profile'!CV104","v":0},{"$f":"'[2]5.2 Asset Age Profile'!CW104+'[3]5.2 Asset Age Profile'!CW104","v":0},{"$f":"'[2]5.2 Asset Age Profile'!CX104+'[3]5.2 Asset Age Profile'!CX104","v":0},{"$f":"'[2]5.2 Asset Age Profile'!CY104+'[3]5.2 Asset Age Profile'!CY104","v":0},{"$f":"'[2]5.2 Asset Age Profile'!CZ104+'[3]5.2 Asset Age Profile'!CZ104","v":0},{"$f":"'[2]5.2 Asset Age Profile'!DA104+'[3]5.2 Asset Age Profile'!DA104","v":0},{"$f":"'[2]5.2 Asset Age Profile'!DB104+'[3]5.2 Asset Age Profile'!DB104","v":0},{"$f":"'[2]5.2 Asset Age Profile'!DC104+'[3]5.2 Asset Age Profile'!DC104","v":0},{"$f":"'[2]5.2 Asset Age Profile'!DD104+'[3]5.2 Asset Age Profile'!DD104","v":0},{"$f":"'[2]5.2 Asset Age Profile'!DE104+'[3]5.2 Asset Age Profile'!DE104","v":0},{"$f":"'[2]5.2 Asset Age Profile'!DF104+'[3]5.2 Asset Age Profile'!DF104","v":0},{"$f":"'[2]5.2 Asset Age Profile'!DG104+'[3]5.2 Asset Age Profile'!DG104","v":0},{"$f":"'[2]5.2 Asset Age Profile'!DH104+'[3]5.2 Asset Age Profile'!DH104","v":0},{"$f":"'[2]5.2 Asset Age Profile'!DI104+'[3]5.2 Asset Age Profile'!DI104","v":0},{"$f":"'[2]5.2 Asset Age Profile'!DJ104+'[3]5.2 Asset Age Profile'!DJ104","v":0},{"$f":"'[2]5.2 Asset Age Profile'!DK104+'[3]5.2 Asset Age Profile'!DK104","v":0},{"$f":"'[2]5.2 Asset Age Profile'!DL104+'[3]5.2 Asset Age Profile'!DL104","v":0},{"$f":"'[2]5.2 Asset Age Profile'!DM104+'[3]5.2 Asset Age Profile'!DM104","v":0},{"$f":"'[2]5.2 Asset Age Profile'!DN104+'[3]5.2 Asset Age Profile'!DN104","v":0},{"$f":"'[2]5.2 Asset Age Profile'!DO104+'[3]5.2 Asset Age Profile'!DO104","v":0},{"$f":"'[2]5.2 Asset Age Profile'!DP104+'[3]5.2 Asset Age Profile'!DP104","v":0},{"$f":"'[2]5.2 Asset Age Profile'!DQ104+'[3]5.2 Asset Age Profile'!DQ104","v":0},{"$f":"'[2]5.2 Asset Age Profile'!DR104+'[3]5.2 Asset Age Profile'!DR104","v":0},{"$f":"'[2]5.2 Asset Age Profile'!DS104+'[3]5.2 Asset Age Profile'!DS104","v":0},{"$f":"'[2]5.2 Asset Age Profile'!DT104+'[3]5.2 Asset Age Profile'!DT104","v":0},{"$f":"'[2]5.2 Asset Age Profile'!DU104+'[3]5.2 Asset Age Profile'!DU104","v":0},{"$f":"'[2]5.2 Asset Age Profile'!DV104+'[3]5.2 Asset Age Profile'!DV104","v":0},{"$f":"'[2]5.2 Asset Age Profile'!DW104+'[3]5.2 Asset Age Profile'!DW104","v":0},{"$f":"'[2]5.2 Asset Age Profile'!DX104+'[3]5.2 Asset Age Profile'!DX104","v":0},{"$f":"'[2]5.2 Asset Age Profile'!DY104+'[3]5.2 Asset Age Profile'!DY104","v":0},{"$f":"'[2]5.2 Asset Age Profile'!DZ104+'[3]5.2 Asset Age Profile'!DZ104","v":0},{"$f":"'[2]5.2 Asset Age Profile'!EA104+'[3]5.2 Asset Age Profile'!EA104","v":0},{"$f":"'[2]5.2 Asset Age Profile'!EB104+'[3]5.2 Asset Age Profile'!EB104","v":0},{"$f":"'[2]5.2 Asset Age Profile'!EC104+'[3]5.2 Asset Age Profile'!EC104","v":0},{"$f":"'[2]5.2 Asset Age Profile'!ED104+'[3]5.2 Asset Age Profile'!ED104","v":0},{"$f":"'[2]5.2 Asset Age Profile'!EE104+'[3]5.2 Asset Age Profile'!EE104","v":0},{"$f":"'[2]5.2 Asset Age Profile'!EF104+'[3]5.2 Asset Age Profile'!EF104","v":0},{"$f":"'[2]5.2 Asset Age Profile'!EG104+'[3]5.2 Asset Age Profile'!EG104","v":0},{"$f":"'[2]5.2 Asset Age Profile'!EH104+'[3]5.2 Asset Age Profile'!EH104","v":0},{"$f":"'[2]5.2 Asset Age Profile'!EI104+'[3]5.2 Asset Age Profile'!EI104","v":0},{"$f":"'[2]5.2 Asset Age Profile'!EJ104+'[3]5.2 Asset Age Profile'!EJ104","v":0}]
["ED_ASS521_00095",null,"> 22 kV & < = 33 kV ; Switch",null,null,null,null,null,null,null,null,null,null,{"$f":"'[2]5.2 Asset Age Profile'!N105+'[3]5.2 Asset Age Profile'!N105","v":0},{"$f":"'[2]5.2 Asset Age Profile'!O105+'[3]5.2 Asset Age Profile'!O105","v":0},{"$f":"'[2]5.2 Asset Age Profile'!P105+'[3]5.2 Asset Age Profile'!P105","v":0},{"$f":"'[2]5.2 Asset Age Profile'!Q105+'[3]5.2 Asset Age Profile'!Q105","v":0},{"$f":"'[2]5.2 Asset Age Profile'!R105+'[3]5.2 Asset Age Profile'!R105","v":0},{"$f":"'[2]5.2 Asset Age Profile'!S105+'[3]5.2 Asset Age Profile'!S105","v":0},{"$f":"'[2]5.2 Asset Age Profile'!T105+'[3]5.2 Asset Age Profile'!T105","v":0},{"$f":"'[2]5.2 Asset Age Profile'!U105+'[3]5.2 Asset Age Profile'!U105","v":0},{"$f":"'[2]5.2 Asset Age Profile'!V105+'[3]5.2 Asset Age Profile'!V105","v":0},{"$f":"'[2]5.2 Asset Age Profile'!W105+'[3]5.2 Asset Age Profile'!W105","v":0},{"$f":"'[2]5.2 Asset Age Profile'!X105+'[3]5.2 Asset Age Profile'!X105","v":0},{"$f":"'[2]5.2 Asset Age Profile'!Y105+'[3]5.2 Asset Age Profile'!Y105","v":0},{"$f":"'[2]5.2 Asset Age Profile'!Z105+'[3]5.2 Asset Age Profile'!Z105","v":0},{"$f":"'[2]5.2 Asset Age Profile'!AA105+'[3]5.2 Asset Age Profile'!AA105","v":0},{"$f":"'[2]5.2 Asset Age Profile'!AB105+'[3]5.2 Asset Age Profile'!AB105","v":0},{"$f":"'[2]5.2 Asset Age Profile'!AC105+'[3]5.2 Asset Age Profile'!AC105","v":0},{"$f":"'[2]5.2 Asset Age Profile'!AD105+'[3]5.2 Asset Age Profile'!AD105","v":0},{"$f":"'[2]5.2 Asset Age Profile'!AE105+'[3]5.2 Asset Age Profile'!AE105","v":0},{"$f":"'[2]5.2 Asset Age Profile'!AF105+'[3]5.2 Asset Age Profile'!AF105","v":0},{"$f":"'[2]5.2 Asset Age Profile'!AG105+'[3]5.2 Asset Age Profile'!AG105","v":0},{"$f":"'[2]5.2 Asset Age Profile'!AH105+'[3]5.2 Asset Age Profile'!AH105","v":0},{"$f":"'[2]5.2 Asset Age Profile'!AI105+'[3]5.2 Asset Age Profile'!AI105","v":0},{"$f":"'[2]5.2 Asset Age Profile'!AJ105+'[3]5.2 Asset Age Profile'!AJ105","v":0},{"$f":"'[2]5.2 Asset Age Profile'!AK105+'[3]5.2 Asset Age Profile'!AK105","v":0},{"$f":"'[2]5.2 Asset Age Profile'!AL105+'[3]5.2 Asset Age Profile'!AL105","v":0},{"$f":"'[2]5.2 Asset Age Profile'!AM105+'[3]5.2 Asset Age Profile'!AM105","v":0},{"$f":"'[2]5.2 Asset Age Profile'!AN105+'[3]5.2 Asset Age Profile'!AN105","v":0},{"$f":"'[2]5.2 Asset Age Profile'!AO105+'[3]5.2 Asset Age Profile'!AO105","v":0},{"$f":"'[2]5.2 Asset Age Profile'!AP105+'[3]5.2 Asset Age Profile'!AP105","v":0},{"$f":"'[2]5.2 Asset Age Profile'!AQ105+'[3]5.2 Asset Age Profile'!AQ105","v":0},{"$f":"'[2]5.2 Asset Age Profile'!AR105+'[3]5.2 Asset Age Profile'!AR105","v":0},{"$f":"'[2]5.2 Asset Age Profile'!AS105+'[3]5.2 Asset Age Profile'!AS105","v":0},{"$f":"'[2]5.2 Asset Age Profile'!AT105+'[3]5.2 Asset Age Profile'!AT105","v":0},{"$f":"'[2]5.2 Asset Age Profile'!AU105+'[3]5.2 Asset Age Profile'!AU105","v":0},{"$f":"'[2]5.2 Asset Age Profile'!AV105+'[3]5.2 Asset Age Profile'!AV105","v":0},{"$f":"'[2]5.2 Asset Age Profile'!AW105+'[3]5.2 Asset Age Profile'!AW105","v":0},{"$f":"'[2]5.2 Asset Age Profile'!AX105+'[3]5.2 Asset Age Profile'!AX105","v":0},{"$f":"'[2]5.2 Asset Age Profile'!AY105+'[3]5.2 Asset Age Profile'!AY105","v":0},{"$f":"'[2]5.2 Asset Age Profile'!AZ105+'[3]5.2 Asset Age Profile'!AZ105","v":0},{"$f":"'[2]5.2 Asset Age Profile'!BA105+'[3]5.2 Asset Age Profile'!BA105","v":0},{"$f":"'[2]5.2 Asset Age Profile'!BB105+'[3]5.2 Asset Age Profile'!BB105","v":0},{"$f":"'[2]5.2 Asset Age Profile'!BC105+'[3]5.2 Asset Age Profile'!BC105","v":0},{"$f":"'[2]5.2 Asset Age Profile'!BD105+'[3]5.2 Asset Age Profile'!BD105","v":0},{"$f":"'[2]5.2 Asset Age Profile'!BE105+'[3]5.2 Asset Age Profile'!BE105","v":0},{"$f":"'[2]5.2 Asset Age Profile'!BF105+'[3]5.2 Asset Age Profile'!BF105","v":0},{"$f":"'[2]5.2 Asset Age Profile'!BG105+'[3]5.2 Asset Age Profile'!BG105","v":0},{"$f":"'[2]5.2 Asset Age Profile'!BH105+'[3]5.2 Asset Age Profile'!BH105","v":0},{"$f":"'[2]5.2 Asset Age Profile'!BI105+'[3]5.2 Asset Age Profile'!BI105","v":0},{"$f":"'[2]5.2 Asset Age Profile'!BJ105+'[3]5.2 Asset Age Profile'!BJ105","v":0},{"$f":"'[2]5.2 Asset Age Profile'!BK105+'[3]5.2 Asset Age Profile'!BK105","v":0},{"$f":"'[2]5.2 Asset Age Profile'!BL105+'[3]5.2 Asset Age Profile'!BL105","v":0},{"$f":"'[2]5.2 Asset Age Profile'!BM105+'[3]5.2 Asset Age Profile'!BM105","v":0},{"$f":"'[2]5.2 Asset Age Profile'!BN105+'[3]5.2 Asset Age Profile'!BN105","v":0},{"$f":"'[2]5.2 Asset Age Profile'!BO105+'[3]5.2 Asset Age Profile'!BO105","v":0},{"$f":"'[2]5.2 Asset Age Profile'!BP105+'[3]5.2 Asset Age Profile'!BP105","v":0},{"$f":"'[2]5.2 Asset Age Profile'!BQ105+'[3]5.2 Asset Age Profile'!BQ105","v":0},{"$f":"'[2]5.2 Asset Age Profile'!BR105+'[3]5.2 Asset Age Profile'!BR105","v":0},{"$f":"'[2]5.2 Asset Age Profile'!BS105+'[3]5.2 Asset Age Profile'!BS105","v":0},{"$f":"'[2]5.2 Asset Age Profile'!BT105+'[3]5.2 Asset Age Profile'!BT105","v":0},{"$f":"'[2]5.2 Asset Age Profile'!BU105+'[3]5.2 Asset Age Profile'!BU105","v":0},{"$f":"'[2]5.2 Asset Age Profile'!BV105+'[3]5.2 Asset Age Profile'!BV105","v":0},{"$f":"'[2]5.2 Asset Age Profile'!BW105+'[3]5.2 Asset Age Profile'!BW105","v":0},{"$f":"'[2]5.2 Asset Age Profile'!BX105+'[3]5.2 Asset Age Profile'!BX105","v":0},{"$f":"'[2]5.2 Asset Age Profile'!BY105+'[3]5.2 Asset Age Profile'!BY105","v":0},{"$f":"'[2]5.2 Asset Age Profile'!BZ105+'[3]5.2 Asset Age Profile'!BZ105","v":0},{"$f":"'[2]5.2 Asset Age Profile'!CA105+'[3]5.2 Asset Age Profile'!CA105","v":0},{"$f":"'[2]5.2 Asset Age Profile'!CB105+'[3]5.2 Asset Age Profile'!CB105","v":0},{"$f":"'[2]5.2 Asset Age Profile'!CC105+'[3]5.2 Asset Age Profile'!CC105","v":0},{"$f":"'[2]5.2 Asset Age Profile'!CD105+'[3]5.2 Asset Age Profile'!CD105","v":0},{"$f":"'[2]5.2 Asset Age Profile'!CE105+'[3]5.2 Asset Age Profile'!CE105","v":0},{"$f":"'[2]5.2 Asset Age Profile'!CF105+'[3]5.2 Asset Age Profile'!CF105","v":0},{"$f":"'[2]5.2 Asset Age Profile'!CG105+'[3]5.2 Asset Age Profile'!CG105","v":0},{"$f":"'[2]5.2 Asset Age Profile'!CH105+'[3]5.2 Asset Age Profile'!CH105","v":0},{"$f":"'[2]5.2 Asset Age Profile'!CI105+'[3]5.2 Asset Age Profile'!CI105","v":0},{"$f":"'[2]5.2 Asset Age Profile'!CJ105+'[3]5.2 Asset Age Profile'!CJ105","v":0},{"$f":"'[2]5.2 Asset Age Profile'!CK105+'[3]5.2 Asset Age Profile'!CK105","v":0},{"$f":"'[2]5.2 Asset Age Profile'!CL105+'[3]5.2 Asset Age Profile'!CL105","v":0},{"$f":"'[2]5.2 Asset Age Profile'!CM105+'[3]5.2 Asset Age Profile'!CM105","v":0},{"$f":"'[2]5.2 Asset Age Profile'!CN105+'[3]5.2 Asset Age Profile'!CN105","v":0},{"$f":"'[2]5.2 Asset Age Profile'!CO105+'[3]5.2 Asset Age Profile'!CO105","v":0},{"$f":"'[2]5.2 Asset Age Profile'!CP105+'[3]5.2 Asset Age Profile'!CP105","v":0},{"$f":"'[2]5.2 Asset Age Profile'!CQ105+'[3]5.2 Asset Age Profile'!CQ105","v":0},{"$f":"'[2]5.2 Asset Age Profile'!CR105+'[3]5.2 Asset Age Profile'!CR105","v":0},{"$f":"'[2]5.2 Asset Age Profile'!CS105+'[3]5.2 Asset Age Profile'!CS105","v":0},{"$f":"'[2]5.2 Asset Age Profile'!CT105+'[3]5.2 Asset Age Profile'!CT105","v":0},{"$f":"'[2]5.2 Asset Age Profile'!CU105+'[3]5.2 Asset Age Profile'!CU105","v":0},{"$f":"'[2]5.2 Asset Age Profile'!CV105+'[3]5.2 Asset Age Profile'!CV105","v":0},{"$f":"'[2]5.2 Asset Age Profile'!CW105+'[3]5.2 Asset Age Profile'!CW105","v":0},{"$f":"'[2]5.2 Asset Age Profile'!CX105+'[3]5.2 Asset Age Profile'!CX105","v":0},{"$f":"'[2]5.2 Asset Age Profile'!CY105+'[3]5.2 Asset Age Profile'!CY105","v":0},{"$f":"'[2]5.2 Asset Age Profile'!CZ105+'[3]5.2 Asset Age Profile'!CZ105","v":0},{"$f":"'[2]5.2 Asset Age Profile'!DA105+'[3]5.2 Asset Age Profile'!DA105","v":0},{"$f":"'[2]5.2 Asset Age Profile'!DB105+'[3]5.2 Asset Age Profile'!DB105","v":0},{"$f":"'[2]5.2 Asset Age Profile'!DC105+'[3]5.2 Asset Age Profile'!DC105","v":0},{"$f":"'[2]5.2 Asset Age Profile'!DD105+'[3]5.2 Asset Age Profile'!DD105","v":0},{"$f":"'[2]5.2 Asset Age Profile'!DE105+'[3]5.2 Asset Age Profile'!DE105","v":0},{"$f":"'[2]5.2 Asset Age Profile'!DF105+'[3]5.2 Asset Age Profile'!DF105","v":0},{"$f":"'[2]5.2 Asset Age Profile'!DG105+'[3]5.2 Asset Age Profile'!DG105","v":0},{"$f":"'[2]5.2 Asset Age Profile'!DH105+'[3]5.2 Asset Age Profile'!DH105","v":0},{"$f":"'[2]5.2 Asset Age Profile'!DI105+'[3]5.2 Asset Age Profile'!DI105","v":0},{"$f":"'[2]5.2 Asset Age Profile'!DJ105+'[3]5.2 Asset Age Profile'!DJ105","v":0},{"$f":"'[2]5.2 Asset Age Profile'!DK105+'[3]5.2 Asset Age Profile'!DK105","v":0},{"$f":"'[2]5.2 Asset Age Profile'!DL105+'[3]5.2 Asset Age Profile'!DL105","v":0},{"$f":"'[2]5.2 Asset Age Profile'!DM105+'[3]5.2 Asset Age Profile'!DM105","v":0},{"$f":"'[2]5.2 Asset Age Profile'!DN105+'[3]5.2 Asset Age Profile'!DN105","v":0},{"$f":"'[2]5.2 Asset Age Profile'!DO105+'[3]5.2 Asset Age Profile'!DO105","v":0},{"$f":"'[2]5.2 Asset Age Profile'!DP105+'[3]5.2 Asset Age Profile'!DP105","v":0},{"$f":"'[2]5.2 Asset Age Profile'!DQ105+'[3]5.2 Asset Age Profile'!DQ105","v":0},{"$f":"'[2]5.2 Asset Age Profile'!DR105+'[3]5.2 Asset Age Profile'!DR105","v":0},{"$f":"'[2]5.2 Asset Age Profile'!DS105+'[3]5.2 Asset Age Profile'!DS105","v":0},{"$f":"'[2]5.2 Asset Age Profile'!DT105+'[3]5.2 Asset Age Profile'!DT105","v":0},{"$f":"'[2]5.2 Asset Age Profile'!DU105+'[3]5.2 Asset Age Profile'!DU105","v":0},{"$f":"'[2]5.2 Asset Age Profile'!DV105+'[3]5.2 Asset Age Profile'!DV105","v":0},{"$f":"'[2]5.2 Asset Age Profile'!DW105+'[3]5.2 Asset Age Profile'!DW105","v":0},{"$f":"'[2]5.2 Asset Age Profile'!DX105+'[3]5.2 Asset Age Profile'!DX105","v":0},{"$f":"'[2]5.2 Asset Age Profile'!DY105+'[3]5.2 Asset Age Profile'!DY105","v":0},{"$f":"'[2]5.2 Asset Age Profile'!DZ105+'[3]5.2 Asset Age Profile'!DZ105","v":0},{"$f":"'[2]5.2 Asset Age Profile'!EA105+'[3]5.2 Asset Age Profile'!EA105","v":0},{"$f":"'[2]5.2 Asset Age Profile'!EB105+'[3]5.2 Asset Age Profile'!EB105","v":0},{"$f":"'[2]5.2 Asset Age Profile'!EC105+'[3]5.2 Asset Age Profile'!EC105","v":0},{"$f":"'[2]5.2 Asset Age Profile'!ED105+'[3]5.2 Asset Age Profile'!ED105","v":0},{"$f":"'[2]5.2 Asset Age Profile'!EE105+'[3]5.2 Asset Age Profile'!EE105","v":0},{"$f":"'[2]5.2 Asset Age Profile'!EF105+'[3]5.2 Asset Age Profile'!EF105","v":0},{"$f":"'[2]5.2 Asset Age Profile'!EG105+'[3]5.2 Asset Age Profile'!EG105","v":0},{"$f":"'[2]5.2 Asset Age Profile'!EH105+'[3]5.2 Asset Age Profile'!EH105","v":0},{"$f":"'[2]5.2 Asset Age Profile'!EI105+'[3]5.2 Asset Age Profile'!EI105","v":0},{"$f":"'[2]5.2 Asset Age Profile'!EJ105+'[3]5.2 Asset Age Profile'!EJ105","v":0}]
["ED_ASS521_00096",null,"> 22 kV & < = 33 kV ; Circuit Breaker",null,null,null,null,null,null,null,null,null,null,{"$f":"'[2]5.2 Asset Age Profile'!N106+'[3]5.2 Asset Age Profile'!N106","v":0},{"$f":"'[2]5.2 Asset Age Profile'!O106+'[3]5.2 Asset Age Profile'!O106","v":0},{"$f":"'[2]5.2 Asset Age Profile'!P106+'[3]5.2 Asset Age Profile'!P106","v":0},{"$f":"'[2]5.2 Asset Age Profile'!Q106+'[3]5.2 Asset Age Profile'!Q106","v":0},{"$f":"'[2]5.2 Asset Age Profile'!R106+'[3]5.2 Asset Age Profile'!R106","v":0},{"$f":"'[2]5.2 Asset Age Profile'!S106+'[3]5.2 Asset Age Profile'!S106","v":0},{"$f":"'[2]5.2 Asset Age Profile'!T106+'[3]5.2 Asset Age Profile'!T106","v":0},{"$f":"'[2]5.2 Asset Age Profile'!U106+'[3]5.2 Asset Age Profile'!U106","v":0},{"$f":"'[2]5.2 Asset Age Profile'!V106+'[3]5.2 Asset Age Profile'!V106","v":0},{"$f":"'[2]5.2 Asset Age Profile'!W106+'[3]5.2 Asset Age Profile'!W106","v":0},{"$f":"'[2]5.2 Asset Age Profile'!X106+'[3]5.2 Asset Age Profile'!X106","v":0},{"$f":"'[2]5.2 Asset Age Profile'!Y106+'[3]5.2 Asset Age Profile'!Y106","v":0},{"$f":"'[2]5.2 Asset Age Profile'!Z106+'[3]5.2 Asset Age Profile'!Z106","v":0},{"$f":"'[2]5.2 Asset Age Profile'!AA106+'[3]5.2 Asset Age Profile'!AA106","v":0},{"$f":"'[2]5.2 Asset Age Profile'!AB106+'[3]5.2 Asset Age Profile'!AB106","v":0},{"$f":"'[2]5.2 Asset Age Profile'!AC106+'[3]5.2 Asset Age Profile'!AC106","v":0},{"$f":"'[2]5.2 Asset Age Profile'!AD106+'[3]5.2 Asset Age Profile'!AD106","v":0},{"$f":"'[2]5.2 Asset Age Profile'!AE106+'[3]5.2 Asset Age Profile'!AE106","v":0},{"$f":"'[2]5.2 Asset Age Profile'!AF106+'[3]5.2 Asset Age Profile'!AF106","v":0},{"$f":"'[2]5.2 Asset Age Profile'!AG106+'[3]5.2 Asset Age Profile'!AG106","v":0},{"$f":"'[2]5.2 Asset Age Profile'!AH106+'[3]5.2 Asset Age Profile'!AH106","v":0},{"$f":"'[2]5.2 Asset Age Profile'!AI106+'[3]5.2 Asset Age Profile'!AI106","v":0},{"$f":"'[2]5.2 Asset Age Profile'!AJ106+'[3]5.2 Asset Age Profile'!AJ106","v":0},{"$f":"'[2]5.2 Asset Age Profile'!AK106+'[3]5.2 Asset Age Profile'!AK106","v":0},{"$f":"'[2]5.2 Asset Age Profile'!AL106+'[3]5.2 Asset Age Profile'!AL106","v":0},{"$f":"'[2]5.2 Asset Age Profile'!AM106+'[3]5.2 Asset Age Profile'!AM106","v":0},{"$f":"'[2]5.2 Asset Age Profile'!AN106+'[3]5.2 Asset Age Profile'!AN106","v":0},{"$f":"'[2]5.2 Asset Age Profile'!AO106+'[3]5.2 Asset Age Profile'!AO106","v":0},{"$f":"'[2]5.2 Asset Age Profile'!AP106+'[3]5.2 Asset Age Profile'!AP106","v":0},{"$f":"'[2]5.2 Asset Age Profile'!AQ106+'[3]5.2 Asset Age Profile'!AQ106","v":0},{"$f":"'[2]5.2 Asset Age Profile'!AR106+'[3]5.2 Asset Age Profile'!AR106","v":0},{"$f":"'[2]5.2 Asset Age Profile'!AS106+'[3]5.2 Asset Age Profile'!AS106","v":0},{"$f":"'[2]5.2 Asset Age Profile'!AT106+'[3]5.2 Asset Age Profile'!AT106","v":0},{"$f":"'[2]5.2 Asset Age Profile'!AU106+'[3]5.2 Asset Age Profile'!AU106","v":0},{"$f":"'[2]5.2 Asset Age Profile'!AV106+'[3]5.2 Asset Age Profile'!AV106","v":0},{"$f":"'[2]5.2 Asset Age Profile'!AW106+'[3]5.2 Asset Age Profile'!AW106","v":0},{"$f":"'[2]5.2 Asset Age Profile'!AX106+'[3]5.2 Asset Age Profile'!AX106","v":0},{"$f":"'[2]5.2 Asset Age Profile'!AY106+'[3]5.2 Asset Age Profile'!AY106","v":0},{"$f":"'[2]5.2 Asset Age Profile'!AZ106+'[3]5.2 Asset Age Profile'!AZ106","v":0},{"$f":"'[2]5.2 Asset Age Profile'!BA106+'[3]5.2 Asset Age Profile'!BA106","v":0},{"$f":"'[2]5.2 Asset Age Profile'!BB106+'[3]5.2 Asset Age Profile'!BB106","v":0},{"$f":"'[2]5.2 Asset Age Profile'!BC106+'[3]5.2 Asset Age Profile'!BC106","v":0},{"$f":"'[2]5.2 Asset Age Profile'!BD106+'[3]5.2 Asset Age Profile'!BD106","v":0},{"$f":"'[2]5.2 Asset Age Profile'!BE106+'[3]5.2 Asset Age Profile'!BE106","v":0},{"$f":"'[2]5.2 Asset Age Profile'!BF106+'[3]5.2 Asset Age Profile'!BF106","v":0},{"$f":"'[2]5.2 Asset Age Profile'!BG106+'[3]5.2 Asset Age Profile'!BG106","v":0},{"$f":"'[2]5.2 Asset Age Profile'!BH106+'[3]5.2 Asset Age Profile'!BH106","v":0},{"$f":"'[2]5.2 Asset Age Profile'!BI106+'[3]5.2 Asset Age Profile'!BI106","v":0},{"$f":"'[2]5.2 Asset Age Profile'!BJ106+'[3]5.2 Asset Age Profile'!BJ106","v":0},{"$f":"'[2]5.2 Asset Age Profile'!BK106+'[3]5.2 Asset Age Profile'!BK106","v":0},{"$f":"'[2]5.2 Asset Age Profile'!BL106+'[3]5.2 Asset Age Profile'!BL106","v":0},{"$f":"'[2]5.2 Asset Age Profile'!BM106+'[3]5.2 Asset Age Profile'!BM106","v":0},{"$f":"'[2]5.2 Asset Age Profile'!BN106+'[3]5.2 Asset Age Profile'!BN106","v":0},{"$f":"'[2]5.2 Asset Age Profile'!BO106+'[3]5.2 Asset Age Profile'!BO106","v":0},{"$f":"'[2]5.2 Asset Age Profile'!BP106+'[3]5.2 Asset Age Profile'!BP106","v":0},{"$f":"'[2]5.2 Asset Age Profile'!BQ106+'[3]5.2 Asset Age Profile'!BQ106","v":0},{"$f":"'[2]5.2 Asset Age Profile'!BR106+'[3]5.2 Asset Age Profile'!BR106","v":0},{"$f":"'[2]5.2 Asset Age Profile'!BS106+'[3]5.2 Asset Age Profile'!BS106","v":0},{"$f":"'[2]5.2 Asset Age Profile'!BT106+'[3]5.2 Asset Age Profile'!BT106","v":0},{"$f":"'[2]5.2 Asset Age Profile'!BU106+'[3]5.2 Asset Age Profile'!BU106","v":0},{"$f":"'[2]5.2 Asset Age Profile'!BV106+'[3]5.2 Asset Age Profile'!BV106","v":0},{"$f":"'[2]5.2 Asset Age Profile'!BW106+'[3]5.2 Asset Age Profile'!BW106","v":0},{"$f":"'[2]5.2 Asset Age Profile'!BX106+'[3]5.2 Asset Age Profile'!BX106","v":0},{"$f":"'[2]5.2 Asset Age Profile'!BY106+'[3]5.2 Asset Age Profile'!BY106","v":0},{"$f":"'[2]5.2 Asset Age Profile'!BZ106+'[3]5.2 Asset Age Profile'!BZ106","v":0},{"$f":"'[2]5.2 Asset Age Profile'!CA106+'[3]5.2 Asset Age Profile'!CA106","v":0},{"$f":"'[2]5.2 Asset Age Profile'!CB106+'[3]5.2 Asset Age Profile'!CB106","v":0},{"$f":"'[2]5.2 Asset Age Profile'!CC106+'[3]5.2 Asset Age Profile'!CC106","v":0},{"$f":"'[2]5.2 Asset Age Profile'!CD106+'[3]5.2 Asset Age Profile'!CD106","v":0},{"$f":"'[2]5.2 Asset Age Profile'!CE106+'[3]5.2 Asset Age Profile'!CE106","v":0},{"$f":"'[2]5.2 Asset Age Profile'!CF106+'[3]5.2 Asset Age Profile'!CF106","v":0},{"$f":"'[2]5.2 Asset Age Profile'!CG106+'[3]5.2 Asset Age Profile'!CG106","v":0},{"$f":"'[2]5.2 Asset Age Profile'!CH106+'[3]5.2 Asset Age Profile'!CH106","v":0},{"$f":"'[2]5.2 Asset Age Profile'!CI106+'[3]5.2 Asset Age Profile'!CI106","v":0},{"$f":"'[2]5.2 Asset Age Profile'!CJ106+'[3]5.2 Asset Age Profile'!CJ106","v":0},{"$f":"'[2]5.2 Asset Age Profile'!CK106+'[3]5.2 Asset Age Profile'!CK106","v":0},{"$f":"'[2]5.2 Asset Age Profile'!CL106+'[3]5.2 Asset Age Profile'!CL106","v":0},{"$f":"'[2]5.2 Asset Age Profile'!CM106+'[3]5.2 Asset Age Profile'!CM106","v":0},{"$f":"'[2]5.2 Asset Age Profile'!CN106+'[3]5.2 Asset Age Profile'!CN106","v":0},{"$f":"'[2]5.2 Asset Age Profile'!CO106+'[3]5.2 Asset Age Profile'!CO106","v":0},{"$f":"'[2]5.2 Asset Age Profile'!CP106+'[3]5.2 Asset Age Profile'!CP106","v":0},{"$f":"'[2]5.2 Asset Age Profile'!CQ106+'[3]5.2 Asset Age Profile'!CQ106","v":0},{"$f":"'[2]5.2 Asset Age Profile'!CR106+'[3]5.2 Asset Age Profile'!CR106","v":0},{"$f":"'[2]5.2 Asset Age Profile'!CS106+'[3]5.2 Asset Age Profile'!CS106","v":0},{"$f":"'[2]5.2 Asset Age Profile'!CT106+'[3]5.2 Asset Age Profile'!CT106","v":0},{"$f":"'[2]5.2 Asset Age Profile'!CU106+'[3]5.2 Asset Age Profile'!CU106","v":0},{"$f":"'[2]5.2 Asset Age Profile'!CV106+'[3]5.2 Asset Age Profile'!CV106","v":0},{"$f":"'[2]5.2 Asset Age Profile'!CW106+'[3]5.2 Asset Age Profile'!CW106","v":0},{"$f":"'[2]5.2 Asset Age Profile'!CX106+'[3]5.2 Asset Age Profile'!CX106","v":0},{"$f":"'[2]5.2 Asset Age Profile'!CY106+'[3]5.2 Asset Age Profile'!CY106","v":0},{"$f":"'[2]5.2 Asset Age Profile'!CZ106+'[3]5.2 Asset Age Profile'!CZ106","v":0},{"$f":"'[2]5.2 Asset Age Profile'!DA106+'[3]5.2 Asset Age Profile'!DA106","v":0},{"$f":"'[2]5.2 Asset Age Profile'!DB106+'[3]5.2 Asset Age Profile'!DB106","v":0},{"$f":"'[2]5.2 Asset Age Profile'!DC106+'[3]5.2 Asset Age Profile'!DC106","v":0},{"$f":"'[2]5.2 Asset Age Profile'!DD106+'[3]5.2 Asset Age Profile'!DD106","v":0},{"$f":"'[2]5.2 Asset Age Profile'!DE106+'[3]5.2 Asset Age Profile'!DE106","v":0},{"$f":"'[2]5.2 Asset Age Profile'!DF106+'[3]5.2 Asset Age Profile'!DF106","v":0},{"$f":"'[2]5.2 Asset Age Profile'!DG106+'[3]5.2 Asset Age Profile'!DG106","v":0},{"$f":"'[2]5.2 Asset Age Profile'!DH106+'[3]5.2 Asset Age Profile'!DH106","v":0},{"$f":"'[2]5.2 Asset Age Profile'!DI106+'[3]5.2 Asset Age Profile'!DI106","v":0},{"$f":"'[2]5.2 Asset Age Profile'!DJ106+'[3]5.2 Asset Age Profile'!DJ106","v":0},{"$f":"'[2]5.2 Asset Age Profile'!DK106+'[3]5.2 Asset Age Profile'!DK106","v":0},{"$f":"'[2]5.2 Asset Age Profile'!DL106+'[3]5.2 Asset Age Profile'!DL106","v":0},{"$f":"'[2]5.2 Asset Age Profile'!DM106+'[3]5.2 Asset Age Profile'!DM106","v":0},{"$f":"'[2]5.2 Asset Age Profile'!DN106+'[3]5.2 Asset Age Profile'!DN106","v":0},{"$f":"'[2]5.2 Asset Age Profile'!DO106+'[3]5.2 Asset Age Profile'!DO106","v":0},{"$f":"'[2]5.2 Asset Age Profile'!DP106+'[3]5.2 Asset Age Profile'!DP106","v":0},{"$f":"'[2]5.2 Asset Age Profile'!DQ106+'[3]5.2 Asset Age Profile'!DQ106","v":0},{"$f":"'[2]5.2 Asset Age Profile'!DR106+'[3]5.2 Asset Age Profile'!DR106","v":0},{"$f":"'[2]5.2 Asset Age Profile'!DS106+'[3]5.2 Asset Age Profile'!DS106","v":0},{"$f":"'[2]5.2 Asset Age Profile'!DT106+'[3]5.2 Asset Age Profile'!DT106","v":0},{"$f":"'[2]5.2 Asset Age Profile'!DU106+'[3]5.2 Asset Age Profile'!DU106","v":0},{"$f":"'[2]5.2 Asset Age Profile'!DV106+'[3]5.2 Asset Age Profile'!DV106","v":0},{"$f":"'[2]5.2 Asset Age Profile'!DW106+'[3]5.2 Asset Age Profile'!DW106","v":0},{"$f":"'[2]5.2 Asset Age Profile'!DX106+'[3]5.2 Asset Age Profile'!DX106","v":0},{"$f":"'[2]5.2 Asset Age Profile'!DY106+'[3]5.2 Asset Age Profile'!DY106","v":0},{"$f":"'[2]5.2 Asset Age Profile'!DZ106+'[3]5.2 Asset Age Profile'!DZ106","v":0},{"$f":"'[2]5.2 Asset Age Profile'!EA106+'[3]5.2 Asset Age Profile'!EA106","v":0},{"$f":"'[2]5.2 Asset Age Profile'!EB106+'[3]5.2 Asset Age Profile'!EB106","v":0},{"$f":"'[2]5.2 Asset Age Profile'!EC106+'[3]5.2 Asset Age Profile'!EC106","v":0},{"$f":"'[2]5.2 Asset Age Profile'!ED106+'[3]5.2 Asset Age Profile'!ED106","v":0},{"$f":"'[2]5.2 Asset Age Profile'!EE106+'[3]5.2 Asset Age Profile'!EE106","v":0},{"$f":"'[2]5.2 Asset Age Profile'!EF106+'[3]5.2 Asset Age Profile'!EF106","v":0},{"$f":"'[2]5.2 Asset Age Profile'!EG106+'[3]5.2 Asset Age Profile'!EG106","v":0},{"$f":"'[2]5.2 Asset Age Profile'!EH106+'[3]5.2 Asset Age Profile'!EH106","v":0},{"$f":"'[2]5.2 Asset Age Profile'!EI106+'[3]5.2 Asset Age Profile'!EI106","v":0},{"$f":"'[2]5.2 Asset Age Profile'!EJ106+'[3]5.2 Asset Age Profile'!EJ106","v":0}]
["ED_ASS521_00097",null,"> 33 kV & < = 66 kV ; Switch",null,null,null,null,null,null,null,null,null,null,{"$f":"'[2]5.2 Asset Age Profile'!N107+'[3]5.2 Asset Age Profile'!N107","v":35},{"$f":"'[2]5.2 Asset Age Profile'!O107+'[3]5.2 Asset Age Profile'!O107","v":10},{"$f":"'[2]5.2 Asset Age Profile'!P107+'[3]5.2 Asset Age Profile'!P107","v":0},{"$f":"'[2]5.2 Asset Age Profile'!Q107+'[3]5.2 Asset Age Profile'!Q107","v":0},{"$f":"'[2]5.2 Asset Age Profile'!R107+'[3]5.2 Asset Age Profile'!R107","v":0},{"$f":"'[2]5.2 Asset Age Profile'!S107+'[3]5.2 Asset Age Profile'!S107","v":0},{"$f":"'[2]5.2 Asset Age Profile'!T107+'[3]5.2 Asset Age Profile'!T107","v":0},{"$f":"'[2]5.2 Asset Age Profile'!U107+'[3]5.2 Asset Age Profile'!U107","v":0},{"$f":"'[2]5.2 Asset Age Profile'!V107+'[3]5.2 Asset Age Profile'!V107","v":0},{"$f":"'[2]5.2 Asset Age Profile'!W107+'[3]5.2 Asset Age Profile'!W107","v":0},{"$f":"'[2]5.2 Asset Age Profile'!X107+'[3]5.2 Asset Age Profile'!X107","v":0},{"$f":"'[2]5.2 Asset Age Profile'!Y107+'[3]5.2 Asset Age Profile'!Y107","v":10},{"$f":"'[2]5.2 Asset Age Profile'!Z107+'[3]5.2 Asset Age Profile'!Z107","v":0},{"$f":"'[2]5.2 Asset Age Profile'!AA107+'[3]5.2 Asset Age Profile'!AA107","v":0},{"$f":"'[2]5.2 Asset Age Profile'!AB107+'[3]5.2 Asset Age Profile'!AB107","v":0},{"$f":"'[2]5.2 Asset Age Profile'!AC107+'[3]5.2 Asset Age Profile'!AC107","v":0},{"$f":"'[2]5.2 Asset Age Profile'!AD107+'[3]5.2 Asset Age Profile'!AD107","v":0},{"$f":"'[2]5.2 Asset Age Profile'!AE107+'[3]5.2 Asset Age Profile'!AE107","v":0},{"$f":"'[2]5.2 Asset Age Profile'!AF107+'[3]5.2 Asset Age Profile'!AF107","v":0},{"$f":"'[2]5.2 Asset Age Profile'!AG107+'[3]5.2 Asset Age Profile'!AG107","v":0},{"$f":"'[2]5.2 Asset Age Profile'!AH107+'[3]5.2 Asset Age Profile'!AH107","v":0},{"$f":"'[2]5.2 Asset Age Profile'!AI107+'[3]5.2 Asset Age Profile'!AI107","v":0},{"$f":"'[2]5.2 Asset Age Profile'!AJ107+'[3]5.2 Asset Age Profile'!AJ107","v":0},{"$f":"'[2]5.2 Asset Age Profile'!AK107+'[3]5.2 Asset Age Profile'!AK107","v":0},{"$f":"'[2]5.2 Asset Age Profile'!AL107+'[3]5.2 Asset Age Profile'!AL107","v":0},{"$f":"'[2]5.2 Asset Age Profile'!AM107+'[3]5.2 Asset Age Profile'!AM107","v":0},{"$f":"'[2]5.2 Asset Age Profile'!AN107+'[3]5.2 Asset Age Profile'!AN107","v":0},{"$f":"'[2]5.2 Asset Age Profile'!AO107+'[3]5.2 Asset Age Profile'!AO107","v":0},{"$f":"'[2]5.2 Asset Age Profile'!AP107+'[3]5.2 Asset Age Profile'!AP107","v":0},{"$f":"'[2]5.2 Asset Age Profile'!AQ107+'[3]5.2 Asset Age Profile'!AQ107","v":0},{"$f":"'[2]5.2 Asset Age Profile'!AR107+'[3]5.2 Asset Age Profile'!AR107","v":0},{"$f":"'[2]5.2 Asset Age Profile'!AS107+'[3]5.2 Asset Age Profile'!AS107","v":0},{"$f":"'[2]5.2 Asset Age Profile'!AT107+'[3]5.2 Asset Age Profile'!AT107","v":0},{"$f":"'[2]5.2 Asset Age Profile'!AU107+'[3]5.2 Asset Age Profile'!AU107","v":0},{"$f":"'[2]5.2 Asset Age Profile'!AV107+'[3]5.2 Asset Age Profile'!AV107","v":0},{"$f":"'[2]5.2 Asset Age Profile'!AW107+'[3]5.2 Asset Age Profile'!AW107","v":0},{"$f":"'[2]5.2 Asset Age Profile'!AX107+'[3]5.2 Asset Age Profile'!AX107","v":0},{"$f":"'[2]5.2 Asset Age Profile'!AY107+'[3]5.2 Asset Age Profile'!AY107","v":0},{"$f":"'[2]5.2 Asset Age Profile'!AZ107+'[3]5.2 Asset Age Profile'!AZ107","v":0},{"$f":"'[2]5.2 Asset Age Profile'!BA107+'[3]5.2 Asset Age Profile'!BA107","v":0},{"$f":"'[2]5.2 Asset Age Profile'!BB107+'[3]5.2 Asset Age Profile'!BB107","v":0},{"$f":"'[2]5.2 Asset Age Profile'!BC107+'[3]5.2 Asset Age Profile'!BC107","v":0},{"$f":"'[2]5.2 Asset Age Profile'!BD107+'[3]5.2 Asset Age Profile'!BD107","v":0},{"$f":"'[2]5.2 Asset Age Profile'!BE107+'[3]5.2 Asset Age Profile'!BE107","v":0},{"$f":"'[2]5.2 Asset Age Profile'!BF107+'[3]5.2 Asset Age Profile'!BF107","v":0},{"$f":"'[2]5.2 Asset Age Profile'!BG107+'[3]5.2 Asset Age Profile'!BG107","v":0},{"$f":"'[2]5.2 Asset Age Profile'!BH107+'[3]5.2 Asset Age Profile'!BH107","v":0},{"$f":"'[2]5.2 Asset Age Profile'!BI107+'[3]5.2 Asset Age Profile'!BI107","v":0},{"$f":"'[2]5.2 Asset Age Profile'!BJ107+'[3]5.2 Asset Age Profile'!BJ107","v":0},{"$f":"'[2]5.2 Asset Age Profile'!BK107+'[3]5.2 Asset Age Profile'!BK107","v":0},{"$f":"'[2]5.2 Asset Age Profile'!BL107+'[3]5.2 Asset Age Profile'!BL107","v":0},{"$f":"'[2]5.2 Asset Age Profile'!BM107+'[3]5.2 Asset Age Profile'!BM107","v":1},{"$f":"'[2]5.2 Asset Age Profile'!BN107+'[3]5.2 Asset Age Profile'!BN107","v":0},{"$f":"'[2]5.2 Asset Age Profile'!BO107+'[3]5.2 Asset Age Profile'!BO107","v":0},{"$f":"'[2]5.2 Asset Age Profile'!BP107+'[3]5.2 Asset Age Profile'!BP107","v":0},{"$f":"'[2]5.2 Asset Age Profile'!BQ107+'[3]5.2 Asset Age Profile'!BQ107","v":0},{"$f":"'[2]5.2 Asset Age Profile'!BR107+'[3]5.2 Asset Age Profile'!BR107","v":0},{"$f":"'[2]5.2 Asset Age Profile'!BS107+'[3]5.2 Asset Age Profile'!BS107","v":0},{"$f":"'[2]5.2 Asset Age Profile'!BT107+'[3]5.2 Asset Age Profile'!BT107","v":0},{"$f":"'[2]5.2 Asset Age Profile'!BU107+'[3]5.2 Asset Age Profile'!BU107","v":0},{"$f":"'[2]5.2 Asset Age Profile'!BV107+'[3]5.2 Asset Age Profile'!BV107","v":0},{"$f":"'[2]5.2 Asset Age Profile'!BW107+'[3]5.2 Asset Age Profile'!BW107","v":0},{"$f":"'[2]5.2 Asset Age Profile'!BX107+'[3]5.2 Asset Age Profile'!BX107","v":0},{"$f":"'[2]5.2 Asset Age Profile'!BY107+'[3]5.2 Asset Age Profile'!BY107","v":0},{"$f":"'[2]5.2 Asset Age Profile'!BZ107+'[3]5.2 Asset Age Profile'!BZ107","v":0},{"$f":"'[2]5.2 Asset Age Profile'!CA107+'[3]5.2 Asset Age Profile'!CA107","v":0},{"$f":"'[2]5.2 Asset Age Profile'!CB107+'[3]5.2 Asset Age Profile'!CB107","v":0},{"$f":"'[2]5.2 Asset Age Profile'!CC107+'[3]5.2 Asset Age Profile'!CC107","v":0},{"$f":"'[2]5.2 Asset Age Profile'!CD107+'[3]5.2 Asset Age Profile'!CD107","v":0},{"$f":"'[2]5.2 Asset Age Profile'!CE107+'[3]5.2 Asset Age Profile'!CE107","v":0},{"$f":"'[2]5.2 Asset Age Profile'!CF107+'[3]5.2 Asset Age Profile'!CF107","v":0},{"$f":"'[2]5.2 Asset Age Profile'!CG107+'[3]5.2 Asset Age Profile'!CG107","v":4},{"$f":"'[2]5.2 Asset Age Profile'!CH107+'[3]5.2 Asset Age Profile'!CH107","v":0},{"$f":"'[2]5.2 Asset Age Profile'!CI107+'[3]5.2 Asset Age Profile'!CI107","v":0},{"$f":"'[2]5.2 Asset Age Profile'!CJ107+'[3]5.2 Asset Age Profile'!CJ107","v":0},{"$f":"'[2]5.2 Asset Age Profile'!CK107+'[3]5.2 Asset Age Profile'!CK107","v":0},{"$f":"'[2]5.2 Asset Age Profile'!CL107+'[3]5.2 Asset Age Profile'!CL107","v":0},{"$f":"'[2]5.2 Asset Age Profile'!CM107+'[3]5.2 Asset Age Profile'!CM107","v":0},{"$f":"'[2]5.2 Asset Age Profile'!CN107+'[3]5.2 Asset Age Profile'!CN107","v":0},{"$f":"'[2]5.2 Asset Age Profile'!CO107+'[3]5.2 Asset Age Profile'!CO107","v":0},{"$f":"'[2]5.2 Asset Age Profile'!CP107+'[3]5.2 Asset Age Profile'!CP107","v":0},{"$f":"'[2]5.2 Asset Age Profile'!CQ107+'[3]5.2 Asset Age Profile'!CQ107","v":0},{"$f":"'[2]5.2 Asset Age Profile'!CR107+'[3]5.2 Asset Age Profile'!CR107","v":0},{"$f":"'[2]5.2 Asset Age Profile'!CS107+'[3]5.2 Asset Age Profile'!CS107","v":0},{"$f":"'[2]5.2 Asset Age Profile'!CT107+'[3]5.2 Asset Age Profile'!CT107","v":0},{"$f":"'[2]5.2 Asset Age Profile'!CU107+'[3]5.2 Asset Age Profile'!CU107","v":0},{"$f":"'[2]5.2 Asset Age Profile'!CV107+'[3]5.2 Asset Age Profile'!CV107","v":0},{"$f":"'[2]5.2 Asset Age Profile'!CW107+'[3]5.2 Asset Age Profile'!CW107","v":0},{"$f":"'[2]5.2 Asset Age Profile'!CX107+'[3]5.2 Asset Age Profile'!CX107","v":0},{"$f":"'[2]5.2 Asset Age Profile'!CY107+'[3]5.2 Asset Age Profile'!CY107","v":0},{"$f":"'[2]5.2 Asset Age Profile'!CZ107+'[3]5.2 Asset Age Profile'!CZ107","v":0},{"$f":"'[2]5.2 Asset Age Profile'!DA107+'[3]5.2 Asset Age Profile'!DA107","v":0},{"$f":"'[2]5.2 Asset Age Profile'!DB107+'[3]5.2 Asset Age Profile'!DB107","v":0},{"$f":"'[2]5.2 Asset Age Profile'!DC107+'[3]5.2 Asset Age Profile'!DC107","v":0},{"$f":"'[2]5.2 Asset Age Profile'!DD107+'[3]5.2 Asset Age Profile'!DD107","v":0},{"$f":"'[2]5.2 Asset Age Profile'!DE107+'[3]5.2 Asset Age Profile'!DE107","v":0},{"$f":"'[2]5.2 Asset Age Profile'!DF107+'[3]5.2 Asset Age Profile'!DF107","v":0},{"$f":"'[2]5.2 Asset Age Profile'!DG107+'[3]5.2 Asset Age Profile'!DG107","v":0},{"$f":"'[2]5.2 Asset Age Profile'!DH107+'[3]5.2 Asset Age Profile'!DH107","v":0},{"$f":"'[2]5.2 Asset Age Profile'!DI107+'[3]5.2 Asset Age Profile'!DI107","v":0},{"$f":"'[2]5.2 Asset Age Profile'!DJ107+'[3]5.2 Asset Age Profile'!DJ107","v":0},{"$f":"'[2]5.2 Asset Age Profile'!DK107+'[3]5.2 Asset Age Profile'!DK107","v":0},{"$f":"'[2]5.2 Asset Age Profile'!DL107+'[3]5.2 Asset Age Profile'!DL107","v":0},{"$f":"'[2]5.2 Asset Age Profile'!DM107+'[3]5.2 Asset Age Profile'!DM107","v":0},{"$f":"'[2]5.2 Asset Age Profile'!DN107+'[3]5.2 Asset Age Profile'!DN107","v":0},{"$f":"'[2]5.2 Asset Age Profile'!DO107+'[3]5.2 Asset Age Profile'!DO107","v":0},{"$f":"'[2]5.2 Asset Age Profile'!DP107+'[3]5.2 Asset Age Profile'!DP107","v":0},{"$f":"'[2]5.2 Asset Age Profile'!DQ107+'[3]5.2 Asset Age Profile'!DQ107","v":0},{"$f":"'[2]5.2 Asset Age Profile'!DR107+'[3]5.2 Asset Age Profile'!DR107","v":0},{"$f":"'[2]5.2 Asset Age Profile'!DS107+'[3]5.2 Asset Age Profile'!DS107","v":0},{"$f":"'[2]5.2 Asset Age Profile'!DT107+'[3]5.2 Asset Age Profile'!DT107","v":0},{"$f":"'[2]5.2 Asset Age Profile'!DU107+'[3]5.2 Asset Age Profile'!DU107","v":0},{"$f":"'[2]5.2 Asset Age Profile'!DV107+'[3]5.2 Asset Age Profile'!DV107","v":0},{"$f":"'[2]5.2 Asset Age Profile'!DW107+'[3]5.2 Asset Age Profile'!DW107","v":0},{"$f":"'[2]5.2 Asset Age Profile'!DX107+'[3]5.2 Asset Age Profile'!DX107","v":0},{"$f":"'[2]5.2 Asset Age Profile'!DY107+'[3]5.2 Asset Age Profile'!DY107","v":0},{"$f":"'[2]5.2 Asset Age Profile'!DZ107+'[3]5.2 Asset Age Profile'!DZ107","v":0},{"$f":"'[2]5.2 Asset Age Profile'!EA107+'[3]5.2 Asset Age Profile'!EA107","v":0},{"$f":"'[2]5.2 Asset Age Profile'!EB107+'[3]5.2 Asset Age Profile'!EB107","v":0},{"$f":"'[2]5.2 Asset Age Profile'!EC107+'[3]5.2 Asset Age Profile'!EC107","v":0},{"$f":"'[2]5.2 Asset Age Profile'!ED107+'[3]5.2 Asset Age Profile'!ED107","v":0},{"$f":"'[2]5.2 Asset Age Profile'!EE107+'[3]5.2 Asset Age Profile'!EE107","v":0},{"$f":"'[2]5.2 Asset Age Profile'!EF107+'[3]5.2 Asset Age Profile'!EF107","v":0},{"$f":"'[2]5.2 Asset Age Profile'!EG107+'[3]5.2 Asset Age Profile'!EG107","v":0},{"$f":"'[2]5.2 Asset Age Profile'!EH107+'[3]5.2 Asset Age Profile'!EH107","v":0},{"$f":"'[2]5.2 Asset Age Profile'!EI107+'[3]5.2 Asset Age Profile'!EI107","v":0},{"$f":"'[2]5.2 Asset Age Profile'!EJ107+'[3]5.2 Asset Age Profile'!EJ107","v":0}]
["ED_ASS521_00098",null,"> 33 kV & < = 66 kV ; Circuit Breaker",null,null,null,null,null,null,null,null,null,null,{"$f":"'[2]5.2 Asset Age Profile'!N108+'[3]5.2 Asset Age Profile'!N108","v":50},{"$f":"'[2]5.2 Asset Age Profile'!O108+'[3]5.2 Asset Age Profile'!O108","v":18},{"$f":"'[2]5.2 Asset Age Profile'!P108+'[3]5.2 Asset Age Profile'!P108","v":0},{"$f":"'[2]5.2 Asset Age Profile'!Q108+'[3]5.2 Asset Age Profile'!Q108","v":0},{"$f":"'[2]5.2 Asset Age Profile'!R108+'[3]5.2 Asset Age Profile'!R108","v":0},{"$f":"'[2]5.2 Asset Age Profile'!S108+'[3]5.2 Asset Age Profile'!S108","v":0},{"$f":"'[2]5.2 Asset Age Profile'!T108+'[3]5.2 Asset Age Profile'!T108","v":0},{"$f":"'[2]5.2 Asset Age Profile'!U108+'[3]5.2 Asset Age Profile'!U108","v":0},{"$f":"'[2]5.2 Asset Age Profile'!V108+'[3]5.2 Asset Age Profile'!V108","v":0},{"$f":"'[2]5.2 Asset Age Profile'!W108+'[3]5.2 Asset Age Profile'!W108","v":0},{"$f":"'[2]5.2 Asset Age Profile'!X108+'[3]5.2 Asset Age Profile'!X108","v":0},{"$f":"'[2]5.2 Asset Age Profile'!Y108+'[3]5.2 Asset Age Profile'!Y108","v":18},{"$f":"'[2]5.2 Asset Age Profile'!Z108+'[3]5.2 Asset Age Profile'!Z108","v":0},{"$f":"'[2]5.2 Asset Age Profile'!AA108+'[3]5.2 Asset Age Profile'!AA108","v":0},{"$f":"'[2]5.2 Asset Age Profile'!AB108+'[3]5.2 Asset Age Profile'!AB108","v":0},{"$f":"'[2]5.2 Asset Age Profile'!AC108+'[3]5.2 Asset Age Profile'!AC108","v":0},{"$f":"'[2]5.2 Asset Age Profile'!AD108+'[3]5.2 Asset Age Profile'!AD108","v":0},{"$f":"'[2]5.2 Asset Age Profile'!AE108+'[3]5.2 Asset Age Profile'!AE108","v":0},{"$f":"'[2]5.2 Asset Age Profile'!AF108+'[3]5.2 Asset Age Profile'!AF108","v":0},{"$f":"'[2]5.2 Asset Age Profile'!AG108+'[3]5.2 Asset Age Profile'!AG108","v":0},{"$f":"'[2]5.2 Asset Age Profile'!AH108+'[3]5.2 Asset Age Profile'!AH108","v":0},{"$f":"'[2]5.2 Asset Age Profile'!AI108+'[3]5.2 Asset Age Profile'!AI108","v":0},{"$f":"'[2]5.2 Asset Age Profile'!AJ108+'[3]5.2 Asset Age Profile'!AJ108","v":0},{"$f":"'[2]5.2 Asset Age Profile'!AK108+'[3]5.2 Asset Age Profile'!AK108","v":0},{"$f":"'[2]5.2 Asset Age Profile'!AL108+'[3]5.2 Asset Age Profile'!AL108","v":0},{"$f":"'[2]5.2 Asset Age Profile'!AM108+'[3]5.2 Asset Age Profile'!AM108","v":0},{"$f":"'[2]5.2 Asset Age Profile'!AN108+'[3]5.2 Asset Age Profile'!AN108","v":0},{"$f":"'[2]5.2 Asset Age Profile'!AO108+'[3]5.2 Asset Age Profile'!AO108","v":0},{"$f":"'[2]5.2 Asset Age Profile'!AP108+'[3]5.2 Asset Age Profile'!AP108","v":0},{"$f":"'[2]5.2 Asset Age Profile'!AQ108+'[3]5.2 Asset Age Profile'!AQ108","v":0},{"$f":"'[2]5.2 Asset Age Profile'!AR108+'[3]5.2 Asset Age Profile'!AR108","v":0},{"$f":"'[2]5.2 Asset Age Profile'!AS108+'[3]5.2 Asset Age Profile'!AS108","v":0},{"$f":"'[2]5.2 Asset Age Profile'!AT108+'[3]5.2 Asset Age Profile'!AT108","v":0},{"$f":"'[2]5.2 Asset Age Profile'!AU108+'[3]5.2 Asset Age Profile'!AU108","v":0},{"$f":"'[2]5.2 Asset Age Profile'!AV108+'[3]5.2 Asset Age Profile'!AV108","v":0},{"$f":"'[2]5.2 Asset Age Profile'!AW108+'[3]5.2 Asset Age Profile'!AW108","v":0},{"$f":"'[2]5.2 Asset Age Profile'!AX108+'[3]5.2 Asset Age Profile'!AX108","v":0},{"$f":"'[2]5.2 Asset Age Profile'!AY108+'[3]5.2 Asset Age Profile'!AY108","v":0},{"$f":"'[2]5.2 Asset Age Profile'!AZ108+'[3]5.2 Asset Age Profile'!AZ108","v":0},{"$f":"'[2]5.2 Asset Age Profile'!BA108+'[3]5.2 Asset Age Profile'!BA108","v":0},{"$f":"'[2]5.2 Asset Age Profile'!BB108+'[3]5.2 Asset Age Profile'!BB108","v":0},{"$f":"'[2]5.2 Asset Age Profile'!BC108+'[3]5.2 Asset Age Profile'!BC108","v":0},{"$f":"'[2]5.2 Asset Age Profile'!BD108+'[3]5.2 Asset Age Profile'!BD108","v":0},{"$f":"'[2]5.2 Asset Age Profile'!BE108+'[3]5.2 Asset Age Profile'!BE108","v":0},{"$f":"'[2]5.2 Asset Age Profile'!BF108+'[3]5.2 Asset Age Profile'!BF108","v":0},{"$f":"'[2]5.2 Asset Age Profile'!BG108+'[3]5.2 Asset Age Profile'!BG108","v":0},{"$f":"'[2]5.2 Asset Age Profile'!BH108+'[3]5.2 Asset Age Profile'!BH108","v":0},{"$f":"'[2]5.2 Asset Age Profile'!BI108+'[3]5.2 Asset Age Profile'!BI108","v":0},{"$f":"'[2]5.2 Asset Age Profile'!BJ108+'[3]5.2 Asset Age Profile'!BJ108","v":0},{"$f":"'[2]5.2 Asset Age Profile'!BK108+'[3]5.2 Asset Age Profile'!BK108","v":0},{"$f":"'[2]5.2 Asset Age Profile'!BL108+'[3]5.2 Asset Age Profile'!BL108","v":0},{"$f":"'[2]5.2 Asset Age Profile'!BM108+'[3]5.2 Asset Age Profile'!BM108","v":1},{"$f":"'[2]5.2 Asset Age Profile'!BN108+'[3]5.2 Asset Age Profile'!BN108","v":0},{"$f":"'[2]5.2 Asset Age Profile'!BO108+'[3]5.2 Asset Age Profile'!BO108","v":0},{"$f":"'[2]5.2 Asset Age Profile'!BP108+'[3]5.2 Asset Age Profile'!BP108","v":0},{"$f":"'[2]5.2 Asset Age Profile'!BQ108+'[3]5.2 Asset Age Profile'!BQ108","v":0},{"$f":"'[2]5.2 Asset Age Profile'!BR108+'[3]5.2 Asset Age Profile'!BR108","v":0},{"$f":"'[2]5.2 Asset Age Profile'!BS108+'[3]5.2 Asset Age Profile'!BS108","v":0},{"$f":"'[2]5.2 Asset Age Profile'!BT108+'[3]5.2 Asset Age Profile'!BT108","v":0},{"$f":"'[2]5.2 Asset Age Profile'!BU108+'[3]5.2 Asset Age Profile'!BU108","v":0},{"$f":"'[2]5.2 Asset Age Profile'!BV108+'[3]5.2 Asset Age Profile'!BV108","v":0},{"$f":"'[2]5.2 Asset Age Profile'!BW108+'[3]5.2 Asset Age Profile'!BW108","v":0},{"$f":"'[2]5.2 Asset Age Profile'!BX108+'[3]5.2 Asset Age Profile'!BX108","v":0},{"$f":"'[2]5.2 Asset Age Profile'!BY108+'[3]5.2 Asset Age Profile'!BY108","v":0},{"$f":"'[2]5.2 Asset Age Profile'!BZ108+'[3]5.2 Asset Age Profile'!BZ108","v":0},{"$f":"'[2]5.2 Asset Age Profile'!CA108+'[3]5.2 Asset Age Profile'!CA108","v":5},{"$f":"'[2]5.2 Asset Age Profile'!CB108+'[3]5.2 Asset Age Profile'!CB108","v":0},{"$f":"'[2]5.2 Asset Age Profile'!CC108+'[3]5.2 Asset Age Profile'!CC108","v":0},{"$f":"'[2]5.2 Asset Age Profile'!CD108+'[3]5.2 Asset Age Profile'!CD108","v":0},{"$f":"'[2]5.2 Asset Age Profile'!CE108+'[3]5.2 Asset Age Profile'!CE108","v":0},{"$f":"'[2]5.2 Asset Age Profile'!CF108+'[3]5.2 Asset Age Profile'!CF108","v":0},{"$f":"'[2]5.2 Asset Age Profile'!CG108+'[3]5.2 Asset Age Profile'!CG108","v":0},{"$f":"'[2]5.2 Asset Age Profile'!CH108+'[3]5.2 Asset Age Profile'!CH108","v":0},{"$f":"'[2]5.2 Asset Age Profile'!CI108+'[3]5.2 Asset Age Profile'!CI108","v":0},{"$f":"'[2]5.2 Asset Age Profile'!CJ108+'[3]5.2 Asset Age Profile'!CJ108","v":0},{"$f":"'[2]5.2 Asset Age Profile'!CK108+'[3]5.2 Asset Age Profile'!CK108","v":0},{"$f":"'[2]5.2 Asset Age Profile'!CL108+'[3]5.2 Asset Age Profile'!CL108","v":0},{"$f":"'[2]5.2 Asset Age Profile'!CM108+'[3]5.2 Asset Age Profile'!CM108","v":0},{"$f":"'[2]5.2 Asset Age Profile'!CN108+'[3]5.2 Asset Age Profile'!CN108","v":0},{"$f":"'[2]5.2 Asset Age Profile'!CO108+'[3]5.2 Asset Age Profile'!CO108","v":0},{"$f":"'[2]5.2 Asset Age Profile'!CP108+'[3]5.2 Asset Age Profile'!CP108","v":0},{"$f":"'[2]5.2 Asset Age Profile'!CQ108+'[3]5.2 Asset Age Profile'!CQ108","v":0},{"$f":"'[2]5.2 Asset Age Profile'!CR108+'[3]5.2 Asset Age Profile'!CR108","v":0},{"$f":"'[2]5.2 Asset Age Profile'!CS108+'[3]5.2 Asset Age Profile'!CS108","v":0},{"$f":"'[2]5.2 Asset Age Profile'!CT108+'[3]5.2 Asset Age Profile'!CT108","v":0},{"$f":"'[2]5.2 Asset Age Profile'!CU108+'[3]5.2 Asset Age Profile'!CU108","v":0},{"$f":"'[2]5.2 Asset Age Profile'!CV108+'[3]5.2 Asset Age Profile'!CV108","v":0},{"$f":"'[2]5.2 Asset Age Profile'!CW108+'[3]5.2 Asset Age Profile'!CW108","v":0},{"$f":"'[2]5.2 Asset Age Profile'!CX108+'[3]5.2 Asset Age Profile'!CX108","v":0},{"$f":"'[2]5.2 Asset Age Profile'!CY108+'[3]5.2 Asset Age Profile'!CY108","v":0},{"$f":"'[2]5.2 Asset Age Profile'!CZ108+'[3]5.2 Asset Age Profile'!CZ108","v":0},{"$f":"'[2]5.2 Asset Age Profile'!DA108+'[3]5.2 Asset Age Profile'!DA108","v":0},{"$f":"'[2]5.2 Asset Age Profile'!DB108+'[3]5.2 Asset Age Profile'!DB108","v":0},{"$f":"'[2]5.2 Asset Age Profile'!DC108+'[3]5.2 Asset Age Profile'!DC108","v":0},{"$f":"'[2]5.2 Asset Age Profile'!DD108+'[3]5.2 Asset Age Profile'!DD108","v":0},{"$f":"'[2]5.2 Asset Age Profile'!DE108+'[3]5.2 Asset Age Profile'!DE108","v":0},{"$f":"'[2]5.2 Asset Age Profile'!DF108+'[3]5.2 Asset Age Profile'!DF108","v":0},{"$f":"'[2]5.2 Asset Age Profile'!DG108+'[3]5.2 Asset Age Profile'!DG108","v":0},{"$f":"'[2]5.2 Asset Age Profile'!DH108+'[3]5.2 Asset Age Profile'!DH108","v":0},{"$f":"'[2]5.2 Asset Age Profile'!DI108+'[3]5.2 Asset Age Profile'!DI108","v":0},{"$f":"'[2]5.2 Asset Age Profile'!DJ108+'[3]5.2 Asset Age Profile'!DJ108","v":0},{"$f":"'[2]5.2 Asset Age Profile'!DK108+'[3]5.2 Asset Age Profile'!DK108","v":0},{"$f":"'[2]5.2 Asset Age Profile'!DL108+'[3]5.2 Asset Age Profile'!DL108","v":0},{"$f":"'[2]5.2 Asset Age Profile'!DM108+'[3]5.2 Asset Age Profile'!DM108","v":0},{"$f":"'[2]5.2 Asset Age Profile'!DN108+'[3]5.2 Asset Age Profile'!DN108","v":0},{"$f":"'[2]5.2 Asset Age Profile'!DO108+'[3]5.2 Asset Age Profile'!DO108","v":0},{"$f":"'[2]5.2 Asset Age Profile'!DP108+'[3]5.2 Asset Age Profile'!DP108","v":0},{"$f":"'[2]5.2 Asset Age Profile'!DQ108+'[3]5.2 Asset Age Profile'!DQ108","v":0},{"$f":"'[2]5.2 Asset Age Profile'!DR108+'[3]5.2 Asset Age Profile'!DR108","v":0},{"$f":"'[2]5.2 Asset Age Profile'!DS108+'[3]5.2 Asset Age Profile'!DS108","v":0},{"$f":"'[2]5.2 Asset Age Profile'!DT108+'[3]5.2 Asset Age Profile'!DT108","v":0},{"$f":"'[2]5.2 Asset Age Profile'!DU108+'[3]5.2 Asset Age Profile'!DU108","v":0},{"$f":"'[2]5.2 Asset Age Profile'!DV108+'[3]5.2 Asset Age Profile'!DV108","v":0},{"$f":"'[2]5.2 Asset Age Profile'!DW108+'[3]5.2 Asset Age Profile'!DW108","v":0},{"$f":"'[2]5.2 Asset Age Profile'!DX108+'[3]5.2 Asset Age Profile'!DX108","v":0},{"$f":"'[2]5.2 Asset Age Profile'!DY108+'[3]5.2 Asset Age Profile'!DY108","v":0},{"$f":"'[2]5.2 Asset Age Profile'!DZ108+'[3]5.2 Asset Age Profile'!DZ108","v":0},{"$f":"'[2]5.2 Asset Age Profile'!EA108+'[3]5.2 Asset Age Profile'!EA108","v":0},{"$f":"'[2]5.2 Asset Age Profile'!EB108+'[3]5.2 Asset Age Profile'!EB108","v":0},{"$f":"'[2]5.2 Asset Age Profile'!EC108+'[3]5.2 Asset Age Profile'!EC108","v":0},{"$f":"'[2]5.2 Asset Age Profile'!ED108+'[3]5.2 Asset Age Profile'!ED108","v":0},{"$f":"'[2]5.2 Asset Age Profile'!EE108+'[3]5.2 Asset Age Profile'!EE108","v":0},{"$f":"'[2]5.2 Asset Age Profile'!EF108+'[3]5.2 Asset Age Profile'!EF108","v":0},{"$f":"'[2]5.2 Asset Age Profile'!EG108+'[3]5.2 Asset Age Profile'!EG108","v":0},{"$f":"'[2]5.2 Asset Age Profile'!EH108+'[3]5.2 Asset Age Profile'!EH108","v":0},{"$f":"'[2]5.2 Asset Age Profile'!EI108+'[3]5.2 Asset Age Profile'!EI108","v":0},{"$f":"'[2]5.2 Asset Age Profile'!EJ108+'[3]5.2 Asset Age Profile'!EJ108","v":0}]
["ED_ASS521_00099",null,"> 66 kV & < = 132 kV ; Switch",null,null,null,null,null,null,null,null,null,null,{"$f":"'[2]5.2 Asset Age Profile'!N109+'[3]5.2 Asset Age Profile'!N109","v":35},{"$f":"'[2]5.2 Asset Age Profile'!O109+'[3]5.2 Asset Age Profile'!O109","v":10},{"$f":"'[2]5.2 Asset Age Profile'!P109+'[3]5.2 Asset Age Profile'!P109","v":0},{"$f":"'[2]5.2 Asset Age Profile'!Q109+'[3]5.2 Asset Age Profile'!Q109","v":0},{"$f":"'[2]5.2 Asset Age Profile'!R109+'[3]5.2 Asset Age Profile'!R109","v":0},{"$f":"'[2]5.2 Asset Age Profile'!S109+'[3]5.2 Asset Age Profile'!S109","v":0},{"$f":"'[2]5.2 Asset Age Profile'!T109+'[3]5.2 Asset Age Profile'!T109","v":0},{"$f":"'[2]5.2 Asset Age Profile'!U109+'[3]5.2 Asset Age Profile'!U109","v":0},{"$f":"'[2]5.2 Asset Age Profile'!V109+'[3]5.2 Asset Age Profile'!V109","v":0},{"$f":"'[2]5.2 Asset Age Profile'!W109+'[3]5.2 Asset Age Profile'!W109","v":0},{"$f":"'[2]5.2 Asset Age Profile'!X109+'[3]5.2 Asset Age Profile'!X109","v":0},{"$f":"'[2]5.2 Asset Age Profile'!Y109+'[3]5.2 Asset Age Profile'!Y109","v":10},{"$f":"'[2]5.2 Asset Age Profile'!Z109+'[3]5.2 Asset Age Profile'!Z109","v":0},{"$f":"'[2]5.2 Asset Age Profile'!AA109+'[3]5.2 Asset Age Profile'!AA109","v":0},{"$f":"'[2]5.2 Asset Age Profile'!AB109+'[3]5.2 Asset Age Profile'!AB109","v":0},{"$f":"'[2]5.2 Asset Age Profile'!AC109+'[3]5.2 Asset Age Profile'!AC109","v":0},{"$f":"'[2]5.2 Asset Age Profile'!AD109+'[3]5.2 Asset Age Profile'!AD109","v":0},{"$f":"'[2]5.2 Asset Age Profile'!AE109+'[3]5.2 Asset Age Profile'!AE109","v":0},{"$f":"'[2]5.2 Asset Age Profile'!AF109+'[3]5.2 Asset Age Profile'!AF109","v":0},{"$f":"'[2]5.2 Asset Age Profile'!AG109+'[3]5.2 Asset Age Profile'!AG109","v":0},{"$f":"'[2]5.2 Asset Age Profile'!AH109+'[3]5.2 Asset Age Profile'!AH109","v":0},{"$f":"'[2]5.2 Asset Age Profile'!AI109+'[3]5.2 Asset Age Profile'!AI109","v":0},{"$f":"'[2]5.2 Asset Age Profile'!AJ109+'[3]5.2 Asset Age Profile'!AJ109","v":0},{"$f":"'[2]5.2 Asset Age Profile'!AK109+'[3]5.2 Asset Age Profile'!AK109","v":28},{"$f":"'[2]5.2 Asset Age Profile'!AL109+'[3]5.2 Asset Age Profile'!AL109","v":0},{"$f":"'[2]5.2 Asset Age Profile'!AM109+'[3]5.2 Asset Age Profile'!AM109","v":6},{"$f":"'[2]5.2 Asset Age Profile'!AN109+'[3]5.2 Asset Age Profile'!AN109","v":0},{"$f":"'[2]5.2 Asset Age Profile'!AO109+'[3]5.2 Asset Age Profile'!AO109","v":2},{"$f":"'[2]5.2 Asset Age Profile'!AP109+'[3]5.2 Asset Age Profile'!AP109","v":0},{"$f":"'[2]5.2 Asset Age Profile'!AQ109+'[3]5.2 Asset Age Profile'!AQ109","v":0},{"$f":"'[2]5.2 Asset Age Profile'!AR109+'[3]5.2 Asset Age Profile'!AR109","v":0},{"$f":"'[2]5.2 Asset Age Profile'!AS109+'[3]5.2 Asset Age Profile'!AS109","v":0},{"$f":"'[2]5.2 Asset Age Profile'!AT109+'[3]5.2 Asset Age Profile'!AT109","v":0},{"$f":"'[2]5.2 Asset Age Profile'!AU109+'[3]5.2 Asset Age Profile'!AU109","v":9},{"$f":"'[2]5.2 Asset Age Profile'!AV109+'[3]5.2 Asset Age Profile'!AV109","v":0},{"$f":"'[2]5.2 Asset Age Profile'!AW109+'[3]5.2 Asset Age Profile'!AW109","v":0},{"$f":"'[2]5.2 Asset Age Profile'!AX109+'[3]5.2 Asset Age Profile'!AX109","v":0},{"$f":"'[2]5.2 Asset Age Profile'!AY109+'[3]5.2 Asset Age Profile'!AY109","v":0},{"$f":"'[2]5.2 Asset Age Profile'!AZ109+'[3]5.2 Asset Age Profile'!AZ109","v":0},{"$f":"'[2]5.2 Asset Age Profile'!BA109+'[3]5.2 Asset Age Profile'!BA109","v":0},{"$f":"'[2]5.2 Asset Age Profile'!BB109+'[3]5.2 Asset Age Profile'!BB109","v":0},{"$f":"'[2]5.2 Asset Age Profile'!BC109+'[3]5.2 Asset Age Profile'!BC109","v":0},{"$f":"'[2]5.2 Asset Age Profile'!BD109+'[3]5.2 Asset Age Profile'!BD109","v":0},{"$f":"'[2]5.2 Asset Age Profile'!BE109+'[3]5.2 Asset Age Profile'!BE109","v":0},{"$f":"'[2]5.2 Asset Age Profile'!BF109+'[3]5.2 Asset Age Profile'!BF109","v":13},{"$f":"'[2]5.2 Asset Age Profile'!BG109+'[3]5.2 Asset Age Profile'!BG109","v":0},{"$f":"'[2]5.2 Asset Age Profile'!BH109+'[3]5.2 Asset Age Profile'!BH109","v":0},{"$f":"'[2]5.2 Asset Age Profile'!BI109+'[3]5.2 Asset Age Profile'!BI109","v":0},{"$f":"'[2]5.2 Asset Age Profile'!BJ109+'[3]5.2 Asset Age Profile'!BJ109","v":0},{"$f":"'[2]5.2 Asset Age Profile'!BK109+'[3]5.2 Asset Age Profile'!BK109","v":13},{"$f":"'[2]5.2 Asset Age Profile'!BL109+'[3]5.2 Asset Age Profile'!BL109","v":0},{"$f":"'[2]5.2 Asset Age Profile'!BM109+'[3]5.2 Asset Age Profile'!BM109","v":51},{"$f":"'[2]5.2 Asset Age Profile'!BN109+'[3]5.2 Asset Age Profile'!BN109","v":0},{"$f":"'[2]5.2 Asset Age Profile'!BO109+'[3]5.2 Asset Age Profile'!BO109","v":0},{"$f":"'[2]5.2 Asset Age Profile'!BP109+'[3]5.2 Asset Age Profile'!BP109","v":7},{"$f":"'[2]5.2 Asset Age Profile'!BQ109+'[3]5.2 Asset Age Profile'!BQ109","v":0},{"$f":"'[2]5.2 Asset Age Profile'!BR109+'[3]5.2 Asset Age Profile'!BR109","v":28},{"$f":"'[2]5.2 Asset Age Profile'!BS109+'[3]5.2 Asset Age Profile'!BS109","v":0},{"$f":"'[2]5.2 Asset Age Profile'!BT109+'[3]5.2 Asset Age Profile'!BT109","v":0},{"$f":"'[2]5.2 Asset Age Profile'!BU109+'[3]5.2 Asset Age Profile'!BU109","v":32},{"$f":"'[2]5.2 Asset Age Profile'!BV109+'[3]5.2 Asset Age Profile'!BV109","v":1},{"$f":"'[2]5.2 Asset Age Profile'!BW109+'[3]5.2 Asset Age Profile'!BW109","v":0},{"$f":"'[2]5.2 Asset Age Profile'!BX109+'[3]5.2 Asset Age Profile'!BX109","v":0},{"$f":"'[2]5.2 Asset Age Profile'!BY109+'[3]5.2 Asset Age Profile'!BY109","v":0},{"$f":"'[2]5.2 Asset Age Profile'!BZ109+'[3]5.2 Asset Age Profile'!BZ109","v":0},{"$f":"'[2]5.2 Asset Age Profile'!CA109+'[3]5.2 Asset Age Profile'!CA109","v":0},{"$f":"'[2]5.2 Asset Age Profile'!CB109+'[3]5.2 Asset Age Profile'!CB109","v":0},{"$f":"'[2]5.2 Asset Age Profile'!CC109+'[3]5.2 Asset Age Profile'!CC109","v":0},{"$f":"'[2]5.2 Asset Age Profile'!CD109+'[3]5.2 Asset Age Profile'!CD109","v":0},{"$f":"'[2]5.2 Asset Age Profile'!CE109+'[3]5.2 Asset Age Profile'!CE109","v":0},{"$f":"'[2]5.2 Asset Age Profile'!CF109+'[3]5.2 Asset Age Profile'!CF109","v":10},{"$f":"'[2]5.2 Asset Age Profile'!CG109+'[3]5.2 Asset Age Profile'!CG109","v":10},{"$f":"'[2]5.2 Asset Age Profile'!CH109+'[3]5.2 Asset Age Profile'!CH109","v":0},{"$f":"'[2]5.2 Asset Age Profile'!CI109+'[3]5.2 Asset Age Profile'!CI109","v":0},{"$f":"'[2]5.2 Asset Age Profile'!CJ109+'[3]5.2 Asset Age Profile'!CJ109","v":0},{"$f":"'[2]5.2 Asset Age Profile'!CK109+'[3]5.2 Asset Age Profile'!CK109","v":0},{"$f":"'[2]5.2 Asset Age Profile'!CL109+'[3]5.2 Asset Age Profile'!CL109","v":0},{"$f":"'[2]5.2 Asset Age Profile'!CM109+'[3]5.2 Asset Age Profile'!CM109","v":0},{"$f":"'[2]5.2 Asset Age Profile'!CN109+'[3]5.2 Asset Age Profile'!CN109","v":0},{"$f":"'[2]5.2 Asset Age Profile'!CO109+'[3]5.2 Asset Age Profile'!CO109","v":0},{"$f":"'[2]5.2 Asset Age Profile'!CP109+'[3]5.2 Asset Age Profile'!CP109","v":0},{"$f":"'[2]5.2 Asset Age Profile'!CQ109+'[3]5.2 Asset Age Profile'!CQ109","v":0},{"$f":"'[2]5.2 Asset Age Profile'!CR109+'[3]5.2 Asset Age Profile'!CR109","v":0},{"$f":"'[2]5.2 Asset Age Profile'!CS109+'[3]5.2 Asset Age Profile'!CS109","v":0},{"$f":"'[2]5.2 Asset Age Profile'!CT109+'[3]5.2 Asset Age Profile'!CT109","v":0},{"$f":"'[2]5.2 Asset Age Profile'!CU109+'[3]5.2 Asset Age Profile'!CU109","v":0},{"$f":"'[2]5.2 Asset Age Profile'!CV109+'[3]5.2 Asset Age Profile'!CV109","v":0},{"$f":"'[2]5.2 Asset Age Profile'!CW109+'[3]5.2 Asset Age Profile'!CW109","v":0},{"$f":"'[2]5.2 Asset Age Profile'!CX109+'[3]5.2 Asset Age Profile'!CX109","v":0},{"$f":"'[2]5.2 Asset Age Profile'!CY109+'[3]5.2 Asset Age Profile'!CY109","v":0},{"$f":"'[2]5.2 Asset Age Profile'!CZ109+'[3]5.2 Asset Age Profile'!CZ109","v":0},{"$f":"'[2]5.2 Asset Age Profile'!DA109+'[3]5.2 Asset Age Profile'!DA109","v":0},{"$f":"'[2]5.2 Asset Age Profile'!DB109+'[3]5.2 Asset Age Profile'!DB109","v":0},{"$f":"'[2]5.2 Asset Age Profile'!DC109+'[3]5.2 Asset Age Profile'!DC109","v":0},{"$f":"'[2]5.2 Asset Age Profile'!DD109+'[3]5.2 Asset Age Profile'!DD109","v":0},{"$f":"'[2]5.2 Asset Age Profile'!DE109+'[3]5.2 Asset Age Profile'!DE109","v":0},{"$f":"'[2]5.2 Asset Age Profile'!DF109+'[3]5.2 Asset Age Profile'!DF109","v":0},{"$f":"'[2]5.2 Asset Age Profile'!DG109+'[3]5.2 Asset Age Profile'!DG109","v":0},{"$f":"'[2]5.2 Asset Age Profile'!DH109+'[3]5.2 Asset Age Profile'!DH109","v":0},{"$f":"'[2]5.2 Asset Age Profile'!DI109+'[3]5.2 Asset Age Profile'!DI109","v":0},{"$f":"'[2]5.2 Asset Age Profile'!DJ109+'[3]5.2 Asset Age Profile'!DJ109","v":0},{"$f":"'[2]5.2 Asset Age Profile'!DK109+'[3]5.2 Asset Age Profile'!DK109","v":0},{"$f":"'[2]5.2 Asset Age Profile'!DL109+'[3]5.2 Asset Age Profile'!DL109","v":0},{"$f":"'[2]5.2 Asset Age Profile'!DM109+'[3]5.2 Asset Age Profile'!DM109","v":0},{"$f":"'[2]5.2 Asset Age Profile'!DN109+'[3]5.2 Asset Age Profile'!DN109","v":0},{"$f":"'[2]5.2 Asset Age Profile'!DO109+'[3]5.2 Asset Age Profile'!DO109","v":0},{"$f":"'[2]5.2 Asset Age Profile'!DP109+'[3]5.2 Asset Age Profile'!DP109","v":0},{"$f":"'[2]5.2 Asset Age Profile'!DQ109+'[3]5.2 Asset Age Profile'!DQ109","v":0},{"$f":"'[2]5.2 Asset Age Profile'!DR109+'[3]5.2 Asset Age Profile'!DR109","v":0},{"$f":"'[2]5.2 Asset Age Profile'!DS109+'[3]5.2 Asset Age Profile'!DS109","v":0},{"$f":"'[2]5.2 Asset Age Profile'!DT109+'[3]5.2 Asset Age Profile'!DT109","v":0},{"$f":"'[2]5.2 Asset Age Profile'!DU109+'[3]5.2 Asset Age Profile'!DU109","v":0},{"$f":"'[2]5.2 Asset Age Profile'!DV109+'[3]5.2 Asset Age Profile'!DV109","v":0},{"$f":"'[2]5.2 Asset Age Profile'!DW109+'[3]5.2 Asset Age Profile'!DW109","v":0},{"$f":"'[2]5.2 Asset Age Profile'!DX109+'[3]5.2 Asset Age Profile'!DX109","v":0},{"$f":"'[2]5.2 Asset Age Profile'!DY109+'[3]5.2 Asset Age Profile'!DY109","v":0},{"$f":"'[2]5.2 Asset Age Profile'!DZ109+'[3]5.2 Asset Age Profile'!DZ109","v":0},{"$f":"'[2]5.2 Asset Age Profile'!EA109+'[3]5.2 Asset Age Profile'!EA109","v":0},{"$f":"'[2]5.2 Asset Age Profile'!EB109+'[3]5.2 Asset Age Profile'!EB109","v":0},{"$f":"'[2]5.2 Asset Age Profile'!EC109+'[3]5.2 Asset Age Profile'!EC109","v":0},{"$f":"'[2]5.2 Asset Age Profile'!ED109+'[3]5.2 Asset Age Profile'!ED109","v":0},{"$f":"'[2]5.2 Asset Age Profile'!EE109+'[3]5.2 Asset Age Profile'!EE109","v":0},{"$f":"'[2]5.2 Asset Age Profile'!EF109+'[3]5.2 Asset Age Profile'!EF109","v":0},{"$f":"'[2]5.2 Asset Age Profile'!EG109+'[3]5.2 Asset Age Profile'!EG109","v":0},{"$f":"'[2]5.2 Asset Age Profile'!EH109+'[3]5.2 Asset Age Profile'!EH109","v":0},{"$f":"'[2]5.2 Asset Age Profile'!EI109+'[3]5.2 Asset Age Profile'!EI109","v":0},{"$f":"'[2]5.2 Asset Age Profile'!EJ109+'[3]5.2 Asset Age Profile'!EJ109","v":0}]
["ED_ASS521_00100",null,"> 66 kV & < = 132 kV  ; Circuit Breaker",null,null,null,null,null,null,null,null,null,null,{"$f":"'[2]5.2 Asset Age Profile'!N110+'[3]5.2 Asset Age Profile'!N110","v":50},{"$f":"'[2]5.2 Asset Age Profile'!O110+'[3]5.2 Asset Age Profile'!O110","v":18},{"$f":"'[2]5.2 Asset Age Profile'!P110+'[3]5.2 Asset Age Profile'!P110","v":0},{"$f":"'[2]5.2 Asset Age Profile'!Q110+'[3]5.2 Asset Age Profile'!Q110","v":0},{"$f":"'[2]5.2 Asset Age Profile'!R110+'[3]5.2 Asset Age Profile'!R110","v":0},{"$f":"'[2]5.2 Asset Age Profile'!S110+'[3]5.2 Asset Age Profile'!S110","v":0},{"$f":"'[2]5.2 Asset Age Profile'!T110+'[3]5.2 Asset Age Profile'!T110","v":0},{"$f":"'[2]5.2 Asset Age Profile'!U110+'[3]5.2 Asset Age Profile'!U110","v":0},{"$f":"'[2]5.2 Asset Age Profile'!V110+'[3]5.2 Asset Age Profile'!V110","v":0},{"$f":"'[2]5.2 Asset Age Profile'!W110+'[3]5.2 Asset Age Profile'!W110","v":0},{"$f":"'[2]5.2 Asset Age Profile'!X110+'[3]5.2 Asset Age Profile'!X110","v":0},{"$f":"'[2]5.2 Asset Age Profile'!Y110+'[3]5.2 Asset Age Profile'!Y110","v":18},{"$f":"'[2]5.2 Asset Age Profile'!Z110+'[3]5.2 Asset Age Profile'!Z110","v":0},{"$f":"'[2]5.2 Asset Age Profile'!AA110+'[3]5.2 Asset Age Profile'!AA110","v":0},{"$f":"'[2]5.2 Asset Age Profile'!AB110+'[3]5.2 Asset Age Profile'!AB110","v":0},{"$f":"'[2]5.2 Asset Age Profile'!AC110+'[3]5.2 Asset Age Profile'!AC110","v":0},{"$f":"'[2]5.2 Asset Age Profile'!AD110+'[3]5.2 Asset Age Profile'!AD110","v":0},{"$f":"'[2]5.2 Asset Age Profile'!AE110+'[3]5.2 Asset Age Profile'!AE110","v":0},{"$f":"'[2]5.2 Asset Age Profile'!AF110+'[3]5.2 Asset Age Profile'!AF110","v":0},{"$f":"'[2]5.2 Asset Age Profile'!AG110+'[3]5.2 Asset Age Profile'!AG110","v":0},{"$f":"'[2]5.2 Asset Age Profile'!AH110+'[3]5.2 Asset Age Profile'!AH110","v":0},{"$f":"'[2]5.2 Asset Age Profile'!AI110+'[3]5.2 Asset Age Profile'!AI110","v":0},{"$f":"'[2]5.2 Asset Age Profile'!AJ110+'[3]5.2 Asset Age Profile'!AJ110","v":4},{"$f":"'[2]5.2 Asset Age Profile'!AK110+'[3]5.2 Asset Age Profile'!AK110","v":10},{"$f":"'[2]5.2 Asset Age Profile'!AL110+'[3]5.2 Asset Age Profile'!AL110","v":2},{"$f":"'[2]5.2 Asset Age Profile'!AM110+'[3]5.2 Asset Age Profile'!AM110","v":5},{"$f":"'[2]5.2 Asset Age Profile'!AN110+'[3]5.2 Asset Age Profile'!AN110","v":0},{"$f":"'[2]5.2 Asset Age Profile'!AO110+'[3]5.2 Asset Age Profile'!AO110","v":1},{"$f":"'[2]5.2 Asset Age Profile'!AP110+'[3]5.2 Asset Age Profile'!AP110","v":0},{"$f":"'[2]5.2 Asset Age Profile'!AQ110+'[3]5.2 Asset Age Profile'!AQ110","v":0},{"$f":"'[2]5.2 Asset Age Profile'!AR110+'[3]5.2 Asset Age Profile'!AR110","v":0},{"$f":"'[2]5.2 Asset Age Profile'!AS110+'[3]5.2 Asset Age Profile'!AS110","v":0},{"$f":"'[2]5.2 Asset Age Profile'!AT110+'[3]5.2 Asset Age Profile'!AT110","v":0},{"$f":"'[2]5.2 Asset Age Profile'!AU110+'[3]5.2 Asset Age Profile'!AU110","v":0},{"$f":"'[2]5.2 Asset Age Profile'!AV110+'[3]5.2 Asset Age Profile'!AV110","v":0},{"$f":"'[2]5.2 Asset Age Profile'!AW110+'[3]5.2 Asset Age Profile'!AW110","v":0},{"$f":"'[2]5.2 Asset Age Profile'!AX110+'[3]5.2 Asset Age Profile'!AX110","v":0},{"$f":"'[2]5.2 Asset Age Profile'!AY110+'[3]5.2 Asset Age Profile'!AY110","v":0},{"$f":"'[2]5.2 Asset Age Profile'!AZ110+'[3]5.2 Asset Age Profile'!AZ110","v":0},{"$f":"'[2]5.2 Asset Age Profile'!BA110+'[3]5.2 Asset Age Profile'!BA110","v":0},{"$f":"'[2]5.2 Asset Age Profile'!BB110+'[3]5.2 Asset Age Profile'!BB110","v":0},{"$f":"'[2]5.2 Asset Age Profile'!BC110+'[3]5.2 Asset Age Profile'!BC110","v":1},{"$f":"'[2]5.2 Asset Age Profile'!BD110+'[3]5.2 Asset Age Profile'!BD110","v":1},{"$f":"'[2]5.2 Asset Age Profile'!BE110+'[3]5.2 Asset Age Profile'!BE110","v":4},{"$f":"'[2]5.2 Asset Age Profile'!BF110+'[3]5.2 Asset Age Profile'!BF110","v":0},{"$f":"'[2]5.2 Asset Age Profile'!BG110+'[3]5.2 Asset Age Profile'!BG110","v":3},{"$f":"'[2]5.2 Asset Age Profile'!BH110+'[3]5.2 Asset Age Profile'!BH110","v":0},{"$f":"'[2]5.2 Asset Age Profile'!BI110+'[3]5.2 Asset Age Profile'!BI110","v":0},{"$f":"'[2]5.2 Asset Age Profile'!BJ110+'[3]5.2 Asset Age Profile'!BJ110","v":4},{"$f":"'[2]5.2 Asset Age Profile'!BK110+'[3]5.2 Asset Age Profile'!BK110","v":0},{"$f":"'[2]5.2 Asset Age Profile'!BL110+'[3]5.2 Asset Age Profile'!BL110","v":0},{"$f":"'[2]5.2 Asset Age Profile'!BM110+'[3]5.2 Asset Age Profile'!BM110","v":8},{"$f":"'[2]5.2 Asset Age Profile'!BN110+'[3]5.2 Asset Age Profile'!BN110","v":7},{"$f":"'[2]5.2 Asset Age Profile'!BO110+'[3]5.2 Asset Age Profile'!BO110","v":0},{"$f":"'[2]5.2 Asset Age Profile'!BP110+'[3]5.2 Asset Age Profile'!BP110","v":6},{"$f":"'[2]5.2 Asset Age Profile'!BQ110+'[3]5.2 Asset Age Profile'!BQ110","v":1},{"$f":"'[2]5.2 Asset Age Profile'!BR110+'[3]5.2 Asset Age Profile'!BR110","v":4},{"$f":"'[2]5.2 Asset Age Profile'!BS110+'[3]5.2 Asset Age Profile'!BS110","v":0},{"$f":"'[2]5.2 Asset Age Profile'!BT110+'[3]5.2 Asset Age Profile'!BT110","v":9},{"$f":"'[2]5.2 Asset Age Profile'!BU110+'[3]5.2 Asset Age Profile'!BU110","v":0},{"$f":"'[2]5.2 Asset Age Profile'!BV110+'[3]5.2 Asset Age Profile'!BV110","v":2},{"$f":"'[2]5.2 Asset Age Profile'!BW110+'[3]5.2 Asset Age Profile'!BW110","v":0},{"$f":"'[2]5.2 Asset Age Profile'!BX110+'[3]5.2 Asset Age Profile'!BX110","v":1},{"$f":"'[2]5.2 Asset Age Profile'!BY110+'[3]5.2 Asset Age Profile'!BY110","v":0},{"$f":"'[2]5.2 Asset Age Profile'!BZ110+'[3]5.2 Asset Age Profile'!BZ110","v":2},{"$f":"'[2]5.2 Asset Age Profile'!CA110+'[3]5.2 Asset Age Profile'!CA110","v":0},{"$f":"'[2]5.2 Asset Age Profile'!CB110+'[3]5.2 Asset Age Profile'!CB110","v":0},{"$f":"'[2]5.2 Asset Age Profile'!CC110+'[3]5.2 Asset Age Profile'!CC110","v":0},{"$f":"'[2]5.2 Asset Age Profile'!CD110+'[3]5.2 Asset Age Profile'!CD110","v":0},{"$f":"'[2]5.2 Asset Age Profile'!CE110+'[3]5.2 Asset Age Profile'!CE110","v":0},{"$f":"'[2]5.2 Asset Age Profile'!CF110+'[3]5.2 Asset Age Profile'!CF110","v":0},{"$f":"'[2]5.2 Asset Age Profile'!CG110+'[3]5.2 Asset Age Profile'!CG110","v":0},{"$f":"'[2]5.2 Asset Age Profile'!CH110+'[3]5.2 Asset Age Profile'!CH110","v":0},{"$f":"'[2]5.2 Asset Age Profile'!CI110+'[3]5.2 Asset Age Profile'!CI110","v":0},{"$f":"'[2]5.2 Asset Age Profile'!CJ110+'[3]5.2 Asset Age Profile'!CJ110","v":0},{"$f":"'[2]5.2 Asset Age Profile'!CK110+'[3]5.2 Asset Age Profile'!CK110","v":0},{"$f":"'[2]5.2 Asset Age Profile'!CL110+'[3]5.2 Asset Age Profile'!CL110","v":0},{"$f":"'[2]5.2 Asset Age Profile'!CM110+'[3]5.2 Asset Age Profile'!CM110","v":0},{"$f":"'[2]5.2 Asset Age Profile'!CN110+'[3]5.2 Asset Age Profile'!CN110","v":0},{"$f":"'[2]5.2 Asset Age Profile'!CO110+'[3]5.2 Asset Age Profile'!CO110","v":0},{"$f":"'[2]5.2 Asset Age Profile'!CP110+'[3]5.2 Asset Age Profile'!CP110","v":0},{"$f":"'[2]5.2 Asset Age Profile'!CQ110+'[3]5.2 Asset Age Profile'!CQ110","v":0},{"$f":"'[2]5.2 Asset Age Profile'!CR110+'[3]5.2 Asset Age Profile'!CR110","v":0},{"$f":"'[2]5.2 Asset Age Profile'!CS110+'[3]5.2 Asset Age Profile'!CS110","v":0},{"$f":"'[2]5.2 Asset Age Profile'!CT110+'[3]5.2 Asset Age Profile'!CT110","v":0},{"$f":"'[2]5.2 Asset Age Profile'!CU110+'[3]5.2 Asset Age Profile'!CU110","v":0},{"$f":"'[2]5.2 Asset Age Profile'!CV110+'[3]5.2 Asset Age Profile'!CV110","v":0},{"$f":"'[2]5.2 Asset Age Profile'!CW110+'[3]5.2 Asset Age Profile'!CW110","v":0},{"$f":"'[2]5.2 Asset Age Profile'!CX110+'[3]5.2 Asset Age Profile'!CX110","v":0},{"$f":"'[2]5.2 Asset Age Profile'!CY110+'[3]5.2 Asset Age Profile'!CY110","v":0},{"$f":"'[2]5.2 Asset Age Profile'!CZ110+'[3]5.2 Asset Age Profile'!CZ110","v":0},{"$f":"'[2]5.2 Asset Age Profile'!DA110+'[3]5.2 Asset Age Profile'!DA110","v":0},{"$f":"'[2]5.2 Asset Age Profile'!DB110+'[3]5.2 Asset Age Profile'!DB110","v":0},{"$f":"'[2]5.2 Asset Age Profile'!DC110+'[3]5.2 Asset Age Profile'!DC110","v":0},{"$f":"'[2]5.2 Asset Age Profile'!DD110+'[3]5.2 Asset Age Profile'!DD110","v":0},{"$f":"'[2]5.2 Asset Age Profile'!DE110+'[3]5.2 Asset Age Profile'!DE110","v":0},{"$f":"'[2]5.2 Asset Age Profile'!DF110+'[3]5.2 Asset Age Profile'!DF110","v":0},{"$f":"'[2]5.2 Asset Age Profile'!DG110+'[3]5.2 Asset Age Profile'!DG110","v":0},{"$f":"'[2]5.2 Asset Age Profile'!DH110+'[3]5.2 Asset Age Profile'!DH110","v":0},{"$f":"'[2]5.2 Asset Age Profile'!DI110+'[3]5.2 Asset Age Profile'!DI110","v":0},{"$f":"'[2]5.2 Asset Age Profile'!DJ110+'[3]5.2 Asset Age Profile'!DJ110","v":0},{"$f":"'[2]5.2 Asset Age Profile'!DK110+'[3]5.2 Asset Age Profile'!DK110","v":0},{"$f":"'[2]5.2 Asset Age Profile'!DL110+'[3]5.2 Asset Age Profile'!DL110","v":0},{"$f":"'[2]5.2 Asset Age Profile'!DM110+'[3]5.2 Asset Age Profile'!DM110","v":0},{"$f":"'[2]5.2 Asset Age Profile'!DN110+'[3]5.2 Asset Age Profile'!DN110","v":0},{"$f":"'[2]5.2 Asset Age Profile'!DO110+'[3]5.2 Asset Age Profile'!DO110","v":0},{"$f":"'[2]5.2 Asset Age Profile'!DP110+'[3]5.2 Asset Age Profile'!DP110","v":0},{"$f":"'[2]5.2 Asset Age Profile'!DQ110+'[3]5.2 Asset Age Profile'!DQ110","v":0},{"$f":"'[2]5.2 Asset Age Profile'!DR110+'[3]5.2 Asset Age Profile'!DR110","v":0},{"$f":"'[2]5.2 Asset Age Profile'!DS110+'[3]5.2 Asset Age Profile'!DS110","v":0},{"$f":"'[2]5.2 Asset Age Profile'!DT110+'[3]5.2 Asset Age Profile'!DT110","v":0},{"$f":"'[2]5.2 Asset Age Profile'!DU110+'[3]5.2 Asset Age Profile'!DU110","v":0},{"$f":"'[2]5.2 Asset Age Profile'!DV110+'[3]5.2 Asset Age Profile'!DV110","v":0},{"$f":"'[2]5.2 Asset Age Profile'!DW110+'[3]5.2 Asset Age Profile'!DW110","v":0},{"$f":"'[2]5.2 Asset Age Profile'!DX110+'[3]5.2 Asset Age Profile'!DX110","v":0},{"$f":"'[2]5.2 Asset Age Profile'!DY110+'[3]5.2 Asset Age Profile'!DY110","v":0},{"$f":"'[2]5.2 Asset Age Profile'!DZ110+'[3]5.2 Asset Age Profile'!DZ110","v":0},{"$f":"'[2]5.2 Asset Age Profile'!EA110+'[3]5.2 Asset Age Profile'!EA110","v":0},{"$f":"'[2]5.2 Asset Age Profile'!EB110+'[3]5.2 Asset Age Profile'!EB110","v":0},{"$f":"'[2]5.2 Asset Age Profile'!EC110+'[3]5.2 Asset Age Profile'!EC110","v":0},{"$f":"'[2]5.2 Asset Age Profile'!ED110+'[3]5.2 Asset Age Profile'!ED110","v":0},{"$f":"'[2]5.2 Asset Age Profile'!EE110+'[3]5.2 Asset Age Profile'!EE110","v":0},{"$f":"'[2]5.2 Asset Age Profile'!EF110+'[3]5.2 Asset Age Profile'!EF110","v":0},{"$f":"'[2]5.2 Asset Age Profile'!EG110+'[3]5.2 Asset Age Profile'!EG110","v":0},{"$f":"'[2]5.2 Asset Age Profile'!EH110+'[3]5.2 Asset Age Profile'!EH110","v":0},{"$f":"'[2]5.2 Asset Age Profile'!EI110+'[3]5.2 Asset Age Profile'!EI110","v":0},{"$f":"'[2]5.2 Asset Age Profile'!EJ110+'[3]5.2 Asset Age Profile'!EJ110","v":0}]
["ED_ASS521_00101",null,"> 132 kV ; Switch",null,null,null,null,null,null,null,null,null,null,{"$f":"'[2]5.2 Asset Age Profile'!N111+'[3]5.2 Asset Age Profile'!N111","v":0},{"$f":"'[2]5.2 Asset Age Profile'!O111+'[3]5.2 Asset Age Profile'!O111","v":0},{"$f":"'[2]5.2 Asset Age Profile'!P111+'[3]5.2 Asset Age Profile'!P111","v":0},{"$f":"'[2]5.2 Asset Age Profile'!Q111+'[3]5.2 Asset Age Profile'!Q111","v":0},{"$f":"'[2]5.2 Asset Age Profile'!R111+'[3]5.2 Asset Age Profile'!R111","v":0},{"$f":"'[2]5.2 Asset Age Profile'!S111+'[3]5.2 Asset Age Profile'!S111","v":0},{"$f":"'[2]5.2 Asset Age Profile'!T111+'[3]5.2 Asset Age Profile'!T111","v":0},{"$f":"'[2]5.2 Asset Age Profile'!U111+'[3]5.2 Asset Age Profile'!U111","v":0},{"$f":"'[2]5.2 Asset Age Profile'!V111+'[3]5.2 Asset Age Profile'!V111","v":0},{"$f":"'[2]5.2 Asset Age Profile'!W111+'[3]5.2 Asset Age Profile'!W111","v":0},{"$f":"'[2]5.2 Asset Age Profile'!X111+'[3]5.2 Asset Age Profile'!X111","v":0},{"$f":"'[2]5.2 Asset Age Profile'!Y111+'[3]5.2 Asset Age Profile'!Y111","v":0},{"$f":"'[2]5.2 Asset Age Profile'!Z111+'[3]5.2 Asset Age Profile'!Z111","v":0},{"$f":"'[2]5.2 Asset Age Profile'!AA111+'[3]5.2 Asset Age Profile'!AA111","v":0},{"$f":"'[2]5.2 Asset Age Profile'!AB111+'[3]5.2 Asset Age Profile'!AB111","v":0},{"$f":"'[2]5.2 Asset Age Profile'!AC111+'[3]5.2 Asset Age Profile'!AC111","v":0},{"$f":"'[2]5.2 Asset Age Profile'!AD111+'[3]5.2 Asset Age Profile'!AD111","v":0},{"$f":"'[2]5.2 Asset Age Profile'!AE111+'[3]5.2 Asset Age Profile'!AE111","v":0},{"$f":"'[2]5.2 Asset Age Profile'!AF111+'[3]5.2 Asset Age Profile'!AF111","v":0},{"$f":"'[2]5.2 Asset Age Profile'!AG111+'[3]5.2 Asset Age Profile'!AG111","v":0},{"$f":"'[2]5.2 Asset Age Profile'!AH111+'[3]5.2 Asset Age Profile'!AH111","v":0},{"$f":"'[2]5.2 Asset Age Profile'!AI111+'[3]5.2 Asset Age Profile'!AI111","v":0},{"$f":"'[2]5.2 Asset Age Profile'!AJ111+'[3]5.2 Asset Age Profile'!AJ111","v":0},{"$f":"'[2]5.2 Asset Age Profile'!AK111+'[3]5.2 Asset Age Profile'!AK111","v":0},{"$f":"'[2]5.2 Asset Age Profile'!AL111+'[3]5.2 Asset Age Profile'!AL111","v":0},{"$f":"'[2]5.2 Asset Age Profile'!AM111+'[3]5.2 Asset Age Profile'!AM111","v":0},{"$f":"'[2]5.2 Asset Age Profile'!AN111+'[3]5.2 Asset Age Profile'!AN111","v":0},{"$f":"'[2]5.2 Asset Age Profile'!AO111+'[3]5.2 Asset Age Profile'!AO111","v":0},{"$f":"'[2]5.2 Asset Age Profile'!AP111+'[3]5.2 Asset Age Profile'!AP111","v":0},{"$f":"'[2]5.2 Asset Age Profile'!AQ111+'[3]5.2 Asset Age Profile'!AQ111","v":0},{"$f":"'[2]5.2 Asset Age Profile'!AR111+'[3]5.2 Asset Age Profile'!AR111","v":0},{"$f":"'[2]5.2 Asset Age Profile'!AS111+'[3]5.2 Asset Age Profile'!AS111","v":0},{"$f":"'[2]5.2 Asset Age Profile'!AT111+'[3]5.2 Asset Age Profile'!AT111","v":0},{"$f":"'[2]5.2 Asset Age Profile'!AU111+'[3]5.2 Asset Age Profile'!AU111","v":0},{"$f":"'[2]5.2 Asset Age Profile'!AV111+'[3]5.2 Asset Age Profile'!AV111","v":0},{"$f":"'[2]5.2 Asset Age Profile'!AW111+'[3]5.2 Asset Age Profile'!AW111","v":0},{"$f":"'[2]5.2 Asset Age Profile'!AX111+'[3]5.2 Asset Age Profile'!AX111","v":0},{"$f":"'[2]5.2 Asset Age Profile'!AY111+'[3]5.2 Asset Age Profile'!AY111","v":0},{"$f":"'[2]5.2 Asset Age Profile'!AZ111+'[3]5.2 Asset Age Profile'!AZ111","v":0},{"$f":"'[2]5.2 Asset Age Profile'!BA111+'[3]5.2 Asset Age Profile'!BA111","v":0},{"$f":"'[2]5.2 Asset Age Profile'!BB111+'[3]5.2 Asset Age Profile'!BB111","v":0},{"$f":"'[2]5.2 Asset Age Profile'!BC111+'[3]5.2 Asset Age Profile'!BC111","v":0},{"$f":"'[2]5.2 Asset Age Profile'!BD111+'[3]5.2 Asset Age Profile'!BD111","v":0},{"$f":"'[2]5.2 Asset Age Profile'!BE111+'[3]5.2 Asset Age Profile'!BE111","v":0},{"$f":"'[2]5.2 Asset Age Profile'!BF111+'[3]5.2 Asset Age Profile'!BF111","v":0},{"$f":"'[2]5.2 Asset Age Profile'!BG111+'[3]5.2 Asset Age Profile'!BG111","v":0},{"$f":"'[2]5.2 Asset Age Profile'!BH111+'[3]5.2 Asset Age Profile'!BH111","v":0},{"$f":"'[2]5.2 Asset Age Profile'!BI111+'[3]5.2 Asset Age Profile'!BI111","v":0},{"$f":"'[2]5.2 Asset Age Profile'!BJ111+'[3]5.2 Asset Age Profile'!BJ111","v":0},{"$f":"'[2]5.2 Asset Age Profile'!BK111+'[3]5.2 Asset Age Profile'!BK111","v":0},{"$f":"'[2]5.2 Asset Age Profile'!BL111+'[3]5.2 Asset Age Profile'!BL111","v":0},{"$f":"'[2]5.2 Asset Age Profile'!BM111+'[3]5.2 Asset Age Profile'!BM111","v":0},{"$f":"'[2]5.2 Asset Age Profile'!BN111+'[3]5.2 Asset Age Profile'!BN111","v":0},{"$f":"'[2]5.2 Asset Age Profile'!BO111+'[3]5.2 Asset Age Profile'!BO111","v":0},{"$f":"'[2]5.2 Asset Age Profile'!BP111+'[3]5.2 Asset Age Profile'!BP111","v":0},{"$f":"'[2]5.2 Asset Age Profile'!BQ111+'[3]5.2 Asset Age Profile'!BQ111","v":0},{"$f":"'[2]5.2 Asset Age Profile'!BR111+'[3]5.2 Asset Age Profile'!BR111","v":0},{"$f":"'[2]5.2 Asset Age Profile'!BS111+'[3]5.2 Asset Age Profile'!BS111","v":0},{"$f":"'[2]5.2 Asset Age Profile'!BT111+'[3]5.2 Asset Age Profile'!BT111","v":0},{"$f":"'[2]5.2 Asset Age Profile'!BU111+'[3]5.2 Asset Age Profile'!BU111","v":0},{"$f":"'[2]5.2 Asset Age Profile'!BV111+'[3]5.2 Asset Age Profile'!BV111","v":0},{"$f":"'[2]5.2 Asset Age Profile'!BW111+'[3]5.2 Asset Age Profile'!BW111","v":0},{"$f":"'[2]5.2 Asset Age Profile'!BX111+'[3]5.2 Asset Age Profile'!BX111","v":0},{"$f":"'[2]5.2 Asset Age Profile'!BY111+'[3]5.2 Asset Age Profile'!BY111","v":0},{"$f":"'[2]5.2 Asset Age Profile'!BZ111+'[3]5.2 Asset Age Profile'!BZ111","v":0},{"$f":"'[2]5.2 Asset Age Profile'!CA111+'[3]5.2 Asset Age Profile'!CA111","v":0},{"$f":"'[2]5.2 Asset Age Profile'!CB111+'[3]5.2 Asset Age Profile'!CB111","v":0},{"$f":"'[2]5.2 Asset Age Profile'!CC111+'[3]5.2 Asset Age Profile'!CC111","v":0},{"$f":"'[2]5.2 Asset Age Profile'!CD111+'[3]5.2 Asset Age Profile'!CD111","v":0},{"$f":"'[2]5.2 Asset Age Profile'!CE111+'[3]5.2 Asset Age Profile'!CE111","v":0},{"$f":"'[2]5.2 Asset Age Profile'!CF111+'[3]5.2 Asset Age Profile'!CF111","v":0},{"$f":"'[2]5.2 Asset Age Profile'!CG111+'[3]5.2 Asset Age Profile'!CG111","v":0},{"$f":"'[2]5.2 Asset Age Profile'!CH111+'[3]5.2 Asset Age Profile'!CH111","v":0},{"$f":"'[2]5.2 Asset Age Profile'!CI111+'[3]5.2 Asset Age Profile'!CI111","v":0},{"$f":"'[2]5.2 Asset Age Profile'!CJ111+'[3]5.2 Asset Age Profile'!CJ111","v":0},{"$f":"'[2]5.2 Asset Age Profile'!CK111+'[3]5.2 Asset Age Profile'!CK111","v":0},{"$f":"'[2]5.2 Asset Age Profile'!CL111+'[3]5.2 Asset Age Profile'!CL111","v":0},{"$f":"'[2]5.2 Asset Age Profile'!CM111+'[3]5.2 Asset Age Profile'!CM111","v":0},{"$f":"'[2]5.2 Asset Age Profile'!CN111+'[3]5.2 Asset Age Profile'!CN111","v":0},{"$f":"'[2]5.2 Asset Age Profile'!CO111+'[3]5.2 Asset Age Profile'!CO111","v":0},{"$f":"'[2]5.2 Asset Age Profile'!CP111+'[3]5.2 Asset Age Profile'!CP111","v":0},{"$f":"'[2]5.2 Asset Age Profile'!CQ111+'[3]5.2 Asset Age Profile'!CQ111","v":0},{"$f":"'[2]5.2 Asset Age Profile'!CR111+'[3]5.2 Asset Age Profile'!CR111","v":0},{"$f":"'[2]5.2 Asset Age Profile'!CS111+'[3]5.2 Asset Age Profile'!CS111","v":0},{"$f":"'[2]5.2 Asset Age Profile'!CT111+'[3]5.2 Asset Age Profile'!CT111","v":0},{"$f":"'[2]5.2 Asset Age Profile'!CU111+'[3]5.2 Asset Age Profile'!CU111","v":0},{"$f":"'[2]5.2 Asset Age Profile'!CV111+'[3]5.2 Asset Age Profile'!CV111","v":0},{"$f":"'[2]5.2 Asset Age Profile'!CW111+'[3]5.2 Asset Age Profile'!CW111","v":0},{"$f":"'[2]5.2 Asset Age Profile'!CX111+'[3]5.2 Asset Age Profile'!CX111","v":0},{"$f":"'[2]5.2 Asset Age Profile'!CY111+'[3]5.2 Asset Age Profile'!CY111","v":0},{"$f":"'[2]5.2 Asset Age Profile'!CZ111+'[3]5.2 Asset Age Profile'!CZ111","v":0},{"$f":"'[2]5.2 Asset Age Profile'!DA111+'[3]5.2 Asset Age Profile'!DA111","v":0},{"$f":"'[2]5.2 Asset Age Profile'!DB111+'[3]5.2 Asset Age Profile'!DB111","v":0},{"$f":"'[2]5.2 Asset Age Profile'!DC111+'[3]5.2 Asset Age Profile'!DC111","v":0},{"$f":"'[2]5.2 Asset Age Profile'!DD111+'[3]5.2 Asset Age Profile'!DD111","v":0},{"$f":"'[2]5.2 Asset Age Profile'!DE111+'[3]5.2 Asset Age Profile'!DE111","v":0},{"$f":"'[2]5.2 Asset Age Profile'!DF111+'[3]5.2 Asset Age Profile'!DF111","v":0},{"$f":"'[2]5.2 Asset Age Profile'!DG111+'[3]5.2 Asset Age Profile'!DG111","v":0},{"$f":"'[2]5.2 Asset Age Profile'!DH111+'[3]5.2 Asset Age Profile'!DH111","v":0},{"$f":"'[2]5.2 Asset Age Profile'!DI111+'[3]5.2 Asset Age Profile'!DI111","v":0},{"$f":"'[2]5.2 Asset Age Profile'!DJ111+'[3]5.2 Asset Age Profile'!DJ111","v":0},{"$f":"'[2]5.2 Asset Age Profile'!DK111+'[3]5.2 Asset Age Profile'!DK111","v":0},{"$f":"'[2]5.2 Asset Age Profile'!DL111+'[3]5.2 Asset Age Profile'!DL111","v":0},{"$f":"'[2]5.2 Asset Age Profile'!DM111+'[3]5.2 Asset Age Profile'!DM111","v":0},{"$f":"'[2]5.2 Asset Age Profile'!DN111+'[3]5.2 Asset Age Profile'!DN111","v":0},{"$f":"'[2]5.2 Asset Age Profile'!DO111+'[3]5.2 Asset Age Profile'!DO111","v":0},{"$f":"'[2]5.2 Asset Age Profile'!DP111+'[3]5.2 Asset Age Profile'!DP111","v":0},{"$f":"'[2]5.2 Asset Age Profile'!DQ111+'[3]5.2 Asset Age Profile'!DQ111","v":0},{"$f":"'[2]5.2 Asset Age Profile'!DR111+'[3]5.2 Asset Age Profile'!DR111","v":0},{"$f":"'[2]5.2 Asset Age Profile'!DS111+'[3]5.2 Asset Age Profile'!DS111","v":0},{"$f":"'[2]5.2 Asset Age Profile'!DT111+'[3]5.2 Asset Age Profile'!DT111","v":0},{"$f":"'[2]5.2 Asset Age Profile'!DU111+'[3]5.2 Asset Age Profile'!DU111","v":0},{"$f":"'[2]5.2 Asset Age Profile'!DV111+'[3]5.2 Asset Age Profile'!DV111","v":0},{"$f":"'[2]5.2 Asset Age Profile'!DW111+'[3]5.2 Asset Age Profile'!DW111","v":0},{"$f":"'[2]5.2 Asset Age Profile'!DX111+'[3]5.2 Asset Age Profile'!DX111","v":0},{"$f":"'[2]5.2 Asset Age Profile'!DY111+'[3]5.2 Asset Age Profile'!DY111","v":0},{"$f":"'[2]5.2 Asset Age Profile'!DZ111+'[3]5.2 Asset Age Profile'!DZ111","v":0},{"$f":"'[2]5.2 Asset Age Profile'!EA111+'[3]5.2 Asset Age Profile'!EA111","v":0},{"$f":"'[2]5.2 Asset Age Profile'!EB111+'[3]5.2 Asset Age Profile'!EB111","v":0},{"$f":"'[2]5.2 Asset Age Profile'!EC111+'[3]5.2 Asset Age Profile'!EC111","v":0},{"$f":"'[2]5.2 Asset Age Profile'!ED111+'[3]5.2 Asset Age Profile'!ED111","v":0},{"$f":"'[2]5.2 Asset Age Profile'!EE111+'[3]5.2 Asset Age Profile'!EE111","v":0},{"$f":"'[2]5.2 Asset Age Profile'!EF111+'[3]5.2 Asset Age Profile'!EF111","v":0},{"$f":"'[2]5.2 Asset Age Profile'!EG111+'[3]5.2 Asset Age Profile'!EG111","v":0},{"$f":"'[2]5.2 Asset Age Profile'!EH111+'[3]5.2 Asset Age Profile'!EH111","v":0},{"$f":"'[2]5.2 Asset Age Profile'!EI111+'[3]5.2 Asset Age Profile'!EI111","v":0},{"$f":"'[2]5.2 Asset Age Profile'!EJ111+'[3]5.2 Asset Age Profile'!EJ111","v":0}]
["ED_ASS521_00102",null,"> 132 kV ; Circuit Breaker",null,null,null,null,null,null,null,null,null,null,{"$f":"'[2]5.2 Asset Age Profile'!N112+'[3]5.2 Asset Age Profile'!N112","v":0},{"$f":"'[2]5.2 Asset Age Profile'!O112+'[3]5.2 Asset Age Profile'!O112","v":0},{"$f":"'[2]5.2 Asset Age Profile'!P112+'[3]5.2 Asset Age Profile'!P112","v":0},{"$f":"'[2]5.2 Asset Age Profile'!Q112+'[3]5.2 Asset Age Profile'!Q112","v":0},{"$f":"'[2]5.2 Asset Age Profile'!R112+'[3]5.2 Asset Age Profile'!R112","v":0},{"$f":"'[2]5.2 Asset Age Profile'!S112+'[3]5.2 Asset Age Profile'!S112","v":0},{"$f":"'[2]5.2 Asset Age Profile'!T112+'[3]5.2 Asset Age Profile'!T112","v":0},{"$f":"'[2]5.2 Asset Age Profile'!U112+'[3]5.2 Asset Age Profile'!U112","v":0},{"$f":"'[2]5.2 Asset Age Profile'!V112+'[3]5.2 Asset Age Profile'!V112","v":0},{"$f":"'[2]5.2 Asset Age Profile'!W112+'[3]5.2 Asset Age Profile'!W112","v":0},{"$f":"'[2]5.2 Asset Age Profile'!X112+'[3]5.2 Asset Age Profile'!X112","v":0},{"$f":"'[2]5.2 Asset Age Profile'!Y112+'[3]5.2 Asset Age Profile'!Y112","v":0},{"$f":"'[2]5.2 Asset Age Profile'!Z112+'[3]5.2 Asset Age Profile'!Z112","v":0},{"$f":"'[2]5.2 Asset Age Profile'!AA112+'[3]5.2 Asset Age Profile'!AA112","v":0},{"$f":"'[2]5.2 Asset Age Profile'!AB112+'[3]5.2 Asset Age Profile'!AB112","v":0},{"$f":"'[2]5.2 Asset Age Profile'!AC112+'[3]5.2 Asset Age Profile'!AC112","v":0},{"$f":"'[2]5.2 Asset Age Profile'!AD112+'[3]5.2 Asset Age Profile'!AD112","v":0},{"$f":"'[2]5.2 Asset Age Profile'!AE112+'[3]5.2 Asset Age Profile'!AE112","v":0},{"$f":"'[2]5.2 Asset Age Profile'!AF112+'[3]5.2 Asset Age Profile'!AF112","v":0},{"$f":"'[2]5.2 Asset Age Profile'!AG112+'[3]5.2 Asset Age Profile'!AG112","v":0},{"$f":"'[2]5.2 Asset Age Profile'!AH112+'[3]5.2 Asset Age Profile'!AH112","v":0},{"$f":"'[2]5.2 Asset Age Profile'!AI112+'[3]5.2 Asset Age Profile'!AI112","v":0},{"$f":"'[2]5.2 Asset Age Profile'!AJ112+'[3]5.2 Asset Age Profile'!AJ112","v":0},{"$f":"'[2]5.2 Asset Age Profile'!AK112+'[3]5.2 Asset Age Profile'!AK112","v":0},{"$f":"'[2]5.2 Asset Age Profile'!AL112+'[3]5.2 Asset Age Profile'!AL112","v":0},{"$f":"'[2]5.2 Asset Age Profile'!AM112+'[3]5.2 Asset Age Profile'!AM112","v":0},{"$f":"'[2]5.2 Asset Age Profile'!AN112+'[3]5.2 Asset Age Profile'!AN112","v":0},{"$f":"'[2]5.2 Asset Age Profile'!AO112+'[3]5.2 Asset Age Profile'!AO112","v":0},{"$f":"'[2]5.2 Asset Age Profile'!AP112+'[3]5.2 Asset Age Profile'!AP112","v":0},{"$f":"'[2]5.2 Asset Age Profile'!AQ112+'[3]5.2 Asset Age Profile'!AQ112","v":0},{"$f":"'[2]5.2 Asset Age Profile'!AR112+'[3]5.2 Asset Age Profile'!AR112","v":0},{"$f":"'[2]5.2 Asset Age Profile'!AS112+'[3]5.2 Asset Age Profile'!AS112","v":0},{"$f":"'[2]5.2 Asset Age Profile'!AT112+'[3]5.2 Asset Age Profile'!AT112","v":0},{"$f":"'[2]5.2 Asset Age Profile'!AU112+'[3]5.2 Asset Age Profile'!AU112","v":0},{"$f":"'[2]5.2 Asset Age Profile'!AV112+'[3]5.2 Asset Age Profile'!AV112","v":0},{"$f":"'[2]5.2 Asset Age Profile'!AW112+'[3]5.2 Asset Age Profile'!AW112","v":0},{"$f":"'[2]5.2 Asset Age Profile'!AX112+'[3]5.2 Asset Age Profile'!AX112","v":0},{"$f":"'[2]5.2 Asset Age Profile'!AY112+'[3]5.2 Asset Age Profile'!AY112","v":0},{"$f":"'[2]5.2 Asset Age Profile'!AZ112+'[3]5.2 Asset Age Profile'!AZ112","v":0},{"$f":"'[2]5.2 Asset Age Profile'!BA112+'[3]5.2 Asset Age Profile'!BA112","v":0},{"$f":"'[2]5.2 Asset Age Profile'!BB112+'[3]5.2 Asset Age Profile'!BB112","v":0},{"$f":"'[2]5.2 Asset Age Profile'!BC112+'[3]5.2 Asset Age Profile'!BC112","v":0},{"$f":"'[2]5.2 Asset Age Profile'!BD112+'[3]5.2 Asset Age Profile'!BD112","v":0},{"$f":"'[2]5.2 Asset Age Profile'!BE112+'[3]5.2 Asset Age Profile'!BE112","v":0},{"$f":"'[2]5.2 Asset Age Profile'!BF112+'[3]5.2 Asset Age Profile'!BF112","v":0},{"$f":"'[2]5.2 Asset Age Profile'!BG112+'[3]5.2 Asset Age Profile'!BG112","v":0},{"$f":"'[2]5.2 Asset Age Profile'!BH112+'[3]5.2 Asset Age Profile'!BH112","v":0},{"$f":"'[2]5.2 Asset Age Profile'!BI112+'[3]5.2 Asset Age Profile'!BI112","v":0},{"$f":"'[2]5.2 Asset Age Profile'!BJ112+'[3]5.2 Asset Age Profile'!BJ112","v":0},{"$f":"'[2]5.2 Asset Age Profile'!BK112+'[3]5.2 Asset Age Profile'!BK112","v":0},{"$f":"'[2]5.2 Asset Age Profile'!BL112+'[3]5.2 Asset Age Profile'!BL112","v":0},{"$f":"'[2]5.2 Asset Age Profile'!BM112+'[3]5.2 Asset Age Profile'!BM112","v":0},{"$f":"'[2]5.2 Asset Age Profile'!BN112+'[3]5.2 Asset Age Profile'!BN112","v":0},{"$f":"'[2]5.2 Asset Age Profile'!BO112+'[3]5.2 Asset Age Profile'!BO112","v":0},{"$f":"'[2]5.2 Asset Age Profile'!BP112+'[3]5.2 Asset Age Profile'!BP112","v":0},{"$f":"'[2]5.2 Asset Age Profile'!BQ112+'[3]5.2 Asset Age Profile'!BQ112","v":0},{"$f":"'[2]5.2 Asset Age Profile'!BR112+'[3]5.2 Asset Age Profile'!BR112","v":0},{"$f":"'[2]5.2 Asset Age Profile'!BS112+'[3]5.2 Asset Age Profile'!BS112","v":0},{"$f":"'[2]5.2 Asset Age Profile'!BT112+'[3]5.2 Asset Age Profile'!BT112","v":0},{"$f":"'[2]5.2 Asset Age Profile'!BU112+'[3]5.2 Asset Age Profile'!BU112","v":0},{"$f":"'[2]5.2 Asset Age Profile'!BV112+'[3]5.2 Asset Age Profile'!BV112","v":0},{"$f":"'[2]5.2 Asset Age Profile'!BW112+'[3]5.2 Asset Age Profile'!BW112","v":0},{"$f":"'[2]5.2 Asset Age Profile'!BX112+'[3]5.2 Asset Age Profile'!BX112","v":0},{"$f":"'[2]5.2 Asset Age Profile'!BY112+'[3]5.2 Asset Age Profile'!BY112","v":0},{"$f":"'[2]5.2 Asset Age Profile'!BZ112+'[3]5.2 Asset Age Profile'!BZ112","v":0},{"$f":"'[2]5.2 Asset Age Profile'!CA112+'[3]5.2 Asset Age Profile'!CA112","v":0},{"$f":"'[2]5.2 Asset Age Profile'!CB112+'[3]5.2 Asset Age Profile'!CB112","v":0},{"$f":"'[2]5.2 Asset Age Profile'!CC112+'[3]5.2 Asset Age Profile'!CC112","v":0},{"$f":"'[2]5.2 Asset Age Profile'!CD112+'[3]5.2 Asset Age Profile'!CD112","v":0},{"$f":"'[2]5.2 Asset Age Profile'!CE112+'[3]5.2 Asset Age Profile'!CE112","v":0},{"$f":"'[2]5.2 Asset Age Profile'!CF112+'[3]5.2 Asset Age Profile'!CF112","v":0},{"$f":"'[2]5.2 Asset Age Profile'!CG112+'[3]5.2 Asset Age Profile'!CG112","v":0},{"$f":"'[2]5.2 Asset Age Profile'!CH112+'[3]5.2 Asset Age Profile'!CH112","v":0},{"$f":"'[2]5.2 Asset Age Profile'!CI112+'[3]5.2 Asset Age Profile'!CI112","v":0},{"$f":"'[2]5.2 Asset Age Profile'!CJ112+'[3]5.2 Asset Age Profile'!CJ112","v":0},{"$f":"'[2]5.2 Asset Age Profile'!CK112+'[3]5.2 Asset Age Profile'!CK112","v":0},{"$f":"'[2]5.2 Asset Age Profile'!CL112+'[3]5.2 Asset Age Profile'!CL112","v":0},{"$f":"'[2]5.2 Asset Age Profile'!CM112+'[3]5.2 Asset Age Profile'!CM112","v":0},{"$f":"'[2]5.2 Asset Age Profile'!CN112+'[3]5.2 Asset Age Profile'!CN112","v":0},{"$f":"'[2]5.2 Asset Age Profile'!CO112+'[3]5.2 Asset Age Profile'!CO112","v":0},{"$f":"'[2]5.2 Asset Age Profile'!CP112+'[3]5.2 Asset Age Profile'!CP112","v":0},{"$f":"'[2]5.2 Asset Age Profile'!CQ112+'[3]5.2 Asset Age Profile'!CQ112","v":0},{"$f":"'[2]5.2 Asset Age Profile'!CR112+'[3]5.2 Asset Age Profile'!CR112","v":0},{"$f":"'[2]5.2 Asset Age Profile'!CS112+'[3]5.2 Asset Age Profile'!CS112","v":0},{"$f":"'[2]5.2 Asset Age Profile'!CT112+'[3]5.2 Asset Age Profile'!CT112","v":0},{"$f":"'[2]5.2 Asset Age Profile'!CU112+'[3]5.2 Asset Age Profile'!CU112","v":0},{"$f":"'[2]5.2 Asset Age Profile'!CV112+'[3]5.2 Asset Age Profile'!CV112","v":0},{"$f":"'[2]5.2 Asset Age Profile'!CW112+'[3]5.2 Asset Age Profile'!CW112","v":0},{"$f":"'[2]5.2 Asset Age Profile'!CX112+'[3]5.2 Asset Age Profile'!CX112","v":0},{"$f":"'[2]5.2 Asset Age Profile'!CY112+'[3]5.2 Asset Age Profile'!CY112","v":0},{"$f":"'[2]5.2 Asset Age Profile'!CZ112+'[3]5.2 Asset Age Profile'!CZ112","v":0},{"$f":"'[2]5.2 Asset Age Profile'!DA112+'[3]5.2 Asset Age Profile'!DA112","v":0},{"$f":"'[2]5.2 Asset Age Profile'!DB112+'[3]5.2 Asset Age Profile'!DB112","v":0},{"$f":"'[2]5.2 Asset Age Profile'!DC112+'[3]5.2 Asset Age Profile'!DC112","v":0},{"$f":"'[2]5.2 Asset Age Profile'!DD112+'[3]5.2 Asset Age Profile'!DD112","v":0},{"$f":"'[2]5.2 Asset Age Profile'!DE112+'[3]5.2 Asset Age Profile'!DE112","v":0},{"$f":"'[2]5.2 Asset Age Profile'!DF112+'[3]5.2 Asset Age Profile'!DF112","v":0},{"$f":"'[2]5.2 Asset Age Profile'!DG112+'[3]5.2 Asset Age Profile'!DG112","v":0},{"$f":"'[2]5.2 Asset Age Profile'!DH112+'[3]5.2 Asset Age Profile'!DH112","v":0},{"$f":"'[2]5.2 Asset Age Profile'!DI112+'[3]5.2 Asset Age Profile'!DI112","v":0},{"$f":"'[2]5.2 Asset Age Profile'!DJ112+'[3]5.2 Asset Age Profile'!DJ112","v":0},{"$f":"'[2]5.2 Asset Age Profile'!DK112+'[3]5.2 Asset Age Profile'!DK112","v":0},{"$f":"'[2]5.2 Asset Age Profile'!DL112+'[3]5.2 Asset Age Profile'!DL112","v":0},{"$f":"'[2]5.2 Asset Age Profile'!DM112+'[3]5.2 Asset Age Profile'!DM112","v":0},{"$f":"'[2]5.2 Asset Age Profile'!DN112+'[3]5.2 Asset Age Profile'!DN112","v":0},{"$f":"'[2]5.2 Asset Age Profile'!DO112+'[3]5.2 Asset Age Profile'!DO112","v":0},{"$f":"'[2]5.2 Asset Age Profile'!DP112+'[3]5.2 Asset Age Profile'!DP112","v":0},{"$f":"'[2]5.2 Asset Age Profile'!DQ112+'[3]5.2 Asset Age Profile'!DQ112","v":0},{"$f":"'[2]5.2 Asset Age Profile'!DR112+'[3]5.2 Asset Age Profile'!DR112","v":0},{"$f":"'[2]5.2 Asset Age Profile'!DS112+'[3]5.2 Asset Age Profile'!DS112","v":0},{"$f":"'[2]5.2 Asset Age Profile'!DT112+'[3]5.2 Asset Age Profile'!DT112","v":0},{"$f":"'[2]5.2 Asset Age Profile'!DU112+'[3]5.2 Asset Age Profile'!DU112","v":0},{"$f":"'[2]5.2 Asset Age Profile'!DV112+'[3]5.2 Asset Age Profile'!DV112","v":0},{"$f":"'[2]5.2 Asset Age Profile'!DW112+'[3]5.2 Asset Age Profile'!DW112","v":0},{"$f":"'[2]5.2 Asset Age Profile'!DX112+'[3]5.2 Asset Age Profile'!DX112","v":0},{"$f":"'[2]5.2 Asset Age Profile'!DY112+'[3]5.2 Asset Age Profile'!DY112","v":0},{"$f":"'[2]5.2 Asset Age Profile'!DZ112+'[3]5.2 Asset Age Profile'!DZ112","v":0},{"$f":"'[2]5.2 Asset Age Profile'!EA112+'[3]5.2 Asset Age Profile'!EA112","v":0},{"$f":"'[2]5.2 Asset Age Profile'!EB112+'[3]5.2 Asset Age Profile'!EB112","v":0},{"$f":"'[2]5.2 Asset Age Profile'!EC112+'[3]5.2 Asset Age Profile'!EC112","v":0},{"$f":"'[2]5.2 Asset Age Profile'!ED112+'[3]5.2 Asset Age Profile'!ED112","v":0},{"$f":"'[2]5.2 Asset Age Profile'!EE112+'[3]5.2 Asset Age Profile'!EE112","v":0},{"$f":"'[2]5.2 Asset Age Profile'!EF112+'[3]5.2 Asset Age Profile'!EF112","v":0},{"$f":"'[2]5.2 Asset Age Profile'!EG112+'[3]5.2 Asset Age Profile'!EG112","v":0},{"$f":"'[2]5.2 Asset Age Profile'!EH112+'[3]5.2 Asset Age Profile'!EH112","v":0},{"$f":"'[2]5.2 Asset Age Profile'!EI112+'[3]5.2 Asset Age Profile'!EI112","v":0},{"$f":"'[2]5.2 Asset Age Profile'!EJ112+'[3]5.2 Asset Age Profile'!EJ112","v":0}]
["ED_ASS521_00103",null,"Other",null,"DNSP NAME","REPEX","SWITCHGEAR","Other","DESCRIPTOR METRIC","MEAN ECONOMIC LIFE","YEARS","NUMBER",null,{"$f":"'[2]5.2 Asset Age Profile'!N113+'[3]5.2 Asset Age Profile'!N113","v":0},{"$f":"'[2]5.2 Asset Age Profile'!O113+'[3]5.2 Asset Age Profile'!O113","v":0},{"$f":"'[2]5.2 Asset Age Profile'!P113+'[3]5.2 Asset Age Profile'!P113","v":0},{"$f":"'[2]5.2 Asset Age Profile'!Q113+'[3]5.2 Asset Age Profile'!Q113","v":0},{"$f":"'[2]5.2 Asset Age Profile'!R113+'[3]5.2 Asset Age Profile'!R113","v":0},{"$f":"'[2]5.2 Asset Age Profile'!S113+'[3]5.2 Asset Age Profile'!S113","v":0},{"$f":"'[2]5.2 Asset Age Profile'!T113+'[3]5.2 Asset Age Profile'!T113","v":0},{"$f":"'[2]5.2 Asset Age Profile'!U113+'[3]5.2 Asset Age Profile'!U113","v":0},{"$f":"'[2]5.2 Asset Age Profile'!V113+'[3]5.2 Asset Age Profile'!V113","v":0},{"$f":"'[2]5.2 Asset Age Profile'!W113+'[3]5.2 Asset Age Profile'!W113","v":0},{"$f":"'[2]5.2 Asset Age Profile'!X113+'[3]5.2 Asset Age Profile'!X113","v":0},{"$f":"'[2]5.2 Asset Age Profile'!Y113+'[3]5.2 Asset Age Profile'!Y113","v":0},{"$f":"'[2]5.2 Asset Age Profile'!Z113+'[3]5.2 Asset Age Profile'!Z113","v":0},{"$f":"'[2]5.2 Asset Age Profile'!AA113+'[3]5.2 Asset Age Profile'!AA113","v":0},{"$f":"'[2]5.2 Asset Age Profile'!AB113+'[3]5.2 Asset Age Profile'!AB113","v":0},{"$f":"'[2]5.2 Asset Age Profile'!AC113+'[3]5.2 Asset Age Profile'!AC113","v":0},{"$f":"'[2]5.2 Asset Age Profile'!AD113+'[3]5.2 Asset Age Profile'!AD113","v":0},{"$f":"'[2]5.2 Asset Age Profile'!AE113+'[3]5.2 Asset Age Profile'!AE113","v":0},{"$f":"'[2]5.2 Asset Age Profile'!AF113+'[3]5.2 Asset Age Profile'!AF113","v":0},{"$f":"'[2]5.2 Asset Age Profile'!AG113+'[3]5.2 Asset Age Profile'!AG113","v":0},{"$f":"'[2]5.2 Asset Age Profile'!AH113+'[3]5.2 Asset Age Profile'!AH113","v":0},{"$f":"'[2]5.2 Asset Age Profile'!AI113+'[3]5.2 Asset Age Profile'!AI113","v":0},{"$f":"'[2]5.2 Asset Age Profile'!AJ113+'[3]5.2 Asset Age Profile'!AJ113","v":0},{"$f":"'[2]5.2 Asset Age Profile'!AK113+'[3]5.2 Asset Age Profile'!AK113","v":0},{"$f":"'[2]5.2 Asset Age Profile'!AL113+'[3]5.2 Asset Age Profile'!AL113","v":0},{"$f":"'[2]5.2 Asset Age Profile'!AM113+'[3]5.2 Asset Age Profile'!AM113","v":0},{"$f":"'[2]5.2 Asset Age Profile'!AN113+'[3]5.2 Asset Age Profile'!AN113","v":0},{"$f":"'[2]5.2 Asset Age Profile'!AO113+'[3]5.2 Asset Age Profile'!AO113","v":0},{"$f":"'[2]5.2 Asset Age Profile'!AP113+'[3]5.2 Asset Age Profile'!AP113","v":0},{"$f":"'[2]5.2 Asset Age Profile'!AQ113+'[3]5.2 Asset Age Profile'!AQ113","v":0},{"$f":"'[2]5.2 Asset Age Profile'!AR113+'[3]5.2 Asset Age Profile'!AR113","v":0},{"$f":"'[2]5.2 Asset Age Profile'!AS113+'[3]5.2 Asset Age Profile'!AS113","v":0},{"$f":"'[2]5.2 Asset Age Profile'!AT113+'[3]5.2 Asset Age Profile'!AT113","v":0},{"$f":"'[2]5.2 Asset Age Profile'!AU113+'[3]5.2 Asset Age Profile'!AU113","v":0},{"$f":"'[2]5.2 Asset Age Profile'!AV113+'[3]5.2 Asset Age Profile'!AV113","v":0},{"$f":"'[2]5.2 Asset Age Profile'!AW113+'[3]5.2 Asset Age Profile'!AW113","v":0},{"$f":"'[2]5.2 Asset Age Profile'!AX113+'[3]5.2 Asset Age Profile'!AX113","v":0},{"$f":"'[2]5.2 Asset Age Profile'!AY113+'[3]5.2 Asset Age Profile'!AY113","v":0},{"$f":"'[2]5.2 Asset Age Profile'!AZ113+'[3]5.2 Asset Age Profile'!AZ113","v":0},{"$f":"'[2]5.2 Asset Age Profile'!BA113+'[3]5.2 Asset Age Profile'!BA113","v":0},{"$f":"'[2]5.2 Asset Age Profile'!BB113+'[3]5.2 Asset Age Profile'!BB113","v":0},{"$f":"'[2]5.2 Asset Age Profile'!BC113+'[3]5.2 Asset Age Profile'!BC113","v":0},{"$f":"'[2]5.2 Asset Age Profile'!BD113+'[3]5.2 Asset Age Profile'!BD113","v":0},{"$f":"'[2]5.2 Asset Age Profile'!BE113+'[3]5.2 Asset Age Profile'!BE113","v":0},{"$f":"'[2]5.2 Asset Age Profile'!BF113+'[3]5.2 Asset Age Profile'!BF113","v":0},{"$f":"'[2]5.2 Asset Age Profile'!BG113+'[3]5.2 Asset Age Profile'!BG113","v":0},{"$f":"'[2]5.2 Asset Age Profile'!BH113+'[3]5.2 Asset Age Profile'!BH113","v":0},{"$f":"'[2]5.2 Asset Age Profile'!BI113+'[3]5.2 Asset Age Profile'!BI113","v":0},{"$f":"'[2]5.2 Asset Age Profile'!BJ113+'[3]5.2 Asset Age Profile'!BJ113","v":0},{"$f":"'[2]5.2 Asset Age Profile'!BK113+'[3]5.2 Asset Age Profile'!BK113","v":0},{"$f":"'[2]5.2 Asset Age Profile'!BL113+'[3]5.2 Asset Age Profile'!BL113","v":0},{"$f":"'[2]5.2 Asset Age Profile'!BM113+'[3]5.2 Asset Age Profile'!BM113","v":0},{"$f":"'[2]5.2 Asset Age Profile'!BN113+'[3]5.2 Asset Age Profile'!BN113","v":0},{"$f":"'[2]5.2 Asset Age Profile'!BO113+'[3]5.2 Asset Age Profile'!BO113","v":0},{"$f":"'[2]5.2 Asset Age Profile'!BP113+'[3]5.2 Asset Age Profile'!BP113","v":0},{"$f":"'[2]5.2 Asset Age Profile'!BQ113+'[3]5.2 Asset Age Profile'!BQ113","v":0},{"$f":"'[2]5.2 Asset Age Profile'!BR113+'[3]5.2 Asset Age Profile'!BR113","v":0},{"$f":"'[2]5.2 Asset Age Profile'!BS113+'[3]5.2 Asset Age Profile'!BS113","v":0},{"$f":"'[2]5.2 Asset Age Profile'!BT113+'[3]5.2 Asset Age Profile'!BT113","v":0},{"$f":"'[2]5.2 Asset Age Profile'!BU113+'[3]5.2 Asset Age Profile'!BU113","v":0},{"$f":"'[2]5.2 Asset Age Profile'!BV113+'[3]5.2 Asset Age Profile'!BV113","v":0},{"$f":"'[2]5.2 Asset Age Profile'!BW113+'[3]5.2 Asset Age Profile'!BW113","v":0},{"$f":"'[2]5.2 Asset Age Profile'!BX113+'[3]5.2 Asset Age Profile'!BX113","v":0},{"$f":"'[2]5.2 Asset Age Profile'!BY113+'[3]5.2 Asset Age Profile'!BY113","v":0},{"$f":"'[2]5.2 Asset Age Profile'!BZ113+'[3]5.2 Asset Age Profile'!BZ113","v":0},{"$f":"'[2]5.2 Asset Age Profile'!CA113+'[3]5.2 Asset Age Profile'!CA113","v":0},{"$f":"'[2]5.2 Asset Age Profile'!CB113+'[3]5.2 Asset Age Profile'!CB113","v":0},{"$f":"'[2]5.2 Asset Age Profile'!CC113+'[3]5.2 Asset Age Profile'!CC113","v":0},{"$f":"'[2]5.2 Asset Age Profile'!CD113+'[3]5.2 Asset Age Profile'!CD113","v":0},{"$f":"'[2]5.2 Asset Age Profile'!CE113+'[3]5.2 Asset Age Profile'!CE113","v":0},{"$f":"'[2]5.2 Asset Age Profile'!CF113+'[3]5.2 Asset Age Profile'!CF113","v":0},{"$f":"'[2]5.2 Asset Age Profile'!CG113+'[3]5.2 Asset Age Profile'!CG113","v":0},{"$f":"'[2]5.2 Asset Age Profile'!CH113+'[3]5.2 Asset Age Profile'!CH113","v":0},{"$f":"'[2]5.2 Asset Age Profile'!CI113+'[3]5.2 Asset Age Profile'!CI113","v":0},{"$f":"'[2]5.2 Asset Age Profile'!CJ113+'[3]5.2 Asset Age Profile'!CJ113","v":0},{"$f":"'[2]5.2 Asset Age Profile'!CK113+'[3]5.2 Asset Age Profile'!CK113","v":0},{"$f":"'[2]5.2 Asset Age Profile'!CL113+'[3]5.2 Asset Age Profile'!CL113","v":0},{"$f":"'[2]5.2 Asset Age Profile'!CM113+'[3]5.2 Asset Age Profile'!CM113","v":0},{"$f":"'[2]5.2 Asset Age Profile'!CN113+'[3]5.2 Asset Age Profile'!CN113","v":0},{"$f":"'[2]5.2 Asset Age Profile'!CO113+'[3]5.2 Asset Age Profile'!CO113","v":0},{"$f":"'[2]5.2 Asset Age Profile'!CP113+'[3]5.2 Asset Age Profile'!CP113","v":0},{"$f":"'[2]5.2 Asset Age Profile'!CQ113+'[3]5.2 Asset Age Profile'!CQ113","v":0},{"$f":"'[2]5.2 Asset Age Profile'!CR113+'[3]5.2 Asset Age Profile'!CR113","v":0},{"$f":"'[2]5.2 Asset Age Profile'!CS113+'[3]5.2 Asset Age Profile'!CS113","v":0},{"$f":"'[2]5.2 Asset Age Profile'!CT113+'[3]5.2 Asset Age Profile'!CT113","v":0},{"$f":"'[2]5.2 Asset Age Profile'!CU113+'[3]5.2 Asset Age Profile'!CU113","v":0},{"$f":"'[2]5.2 Asset Age Profile'!CV113+'[3]5.2 Asset Age Profile'!CV113","v":0},{"$f":"'[2]5.2 Asset Age Profile'!CW113+'[3]5.2 Asset Age Profile'!CW113","v":0},{"$f":"'[2]5.2 Asset Age Profile'!CX113+'[3]5.2 Asset Age Profile'!CX113","v":0},{"$f":"'[2]5.2 Asset Age Profile'!CY113+'[3]5.2 Asset Age Profile'!CY113","v":0},{"$f":"'[2]5.2 Asset Age Profile'!CZ113+'[3]5.2 Asset Age Profile'!CZ113","v":0},{"$f":"'[2]5.2 Asset Age Profile'!DA113+'[3]5.2 Asset Age Profile'!DA113","v":0},{"$f":"'[2]5.2 Asset Age Profile'!DB113+'[3]5.2 Asset Age Profile'!DB113","v":0},{"$f":"'[2]5.2 Asset Age Profile'!DC113+'[3]5.2 Asset Age Profile'!DC113","v":0},{"$f":"'[2]5.2 Asset Age Profile'!DD113+'[3]5.2 Asset Age Profile'!DD113","v":0},{"$f":"'[2]5.2 Asset Age Profile'!DE113+'[3]5.2 Asset Age Profile'!DE113","v":0},{"$f":"'[2]5.2 Asset Age Profile'!DF113+'[3]5.2 Asset Age Profile'!DF113","v":0},{"$f":"'[2]5.2 Asset Age Profile'!DG113+'[3]5.2 Asset Age Profile'!DG113","v":0},{"$f":"'[2]5.2 Asset Age Profile'!DH113+'[3]5.2 Asset Age Profile'!DH113","v":0},{"$f":"'[2]5.2 Asset Age Profile'!DI113+'[3]5.2 Asset Age Profile'!DI113","v":0},{"$f":"'[2]5.2 Asset Age Profile'!DJ113+'[3]5.2 Asset Age Profile'!DJ113","v":0},{"$f":"'[2]5.2 Asset Age Profile'!DK113+'[3]5.2 Asset Age Profile'!DK113","v":0},{"$f":"'[2]5.2 Asset Age Profile'!DL113+'[3]5.2 Asset Age Profile'!DL113","v":0},{"$f":"'[2]5.2 Asset Age Profile'!DM113+'[3]5.2 Asset Age Profile'!DM113","v":0},{"$f":"'[2]5.2 Asset Age Profile'!DN113+'[3]5.2 Asset Age Profile'!DN113","v":0},{"$f":"'[2]5.2 Asset Age Profile'!DO113+'[3]5.2 Asset Age Profile'!DO113","v":0},{"$f":"'[2]5.2 Asset Age Profile'!DP113+'[3]5.2 Asset Age Profile'!DP113","v":0},{"$f":"'[2]5.2 Asset Age Profile'!DQ113+'[3]5.2 Asset Age Profile'!DQ113","v":0},{"$f":"'[2]5.2 Asset Age Profile'!DR113+'[3]5.2 Asset Age Profile'!DR113","v":0},{"$f":"'[2]5.2 Asset Age Profile'!DS113+'[3]5.2 Asset Age Profile'!DS113","v":0},{"$f":"'[2]5.2 Asset Age Profile'!DT113+'[3]5.2 Asset Age Profile'!DT113","v":0},{"$f":"'[2]5.2 Asset Age Profile'!DU113+'[3]5.2 Asset Age Profile'!DU113","v":0},{"$f":"'[2]5.2 Asset Age Profile'!DV113+'[3]5.2 Asset Age Profile'!DV113","v":0},{"$f":"'[2]5.2 Asset Age Profile'!DW113+'[3]5.2 Asset Age Profile'!DW113","v":0},{"$f":"'[2]5.2 Asset Age Profile'!DX113+'[3]5.2 Asset Age Profile'!DX113","v":0},{"$f":"'[2]5.2 Asset Age Profile'!DY113+'[3]5.2 Asset Age Profile'!DY113","v":0},{"$f":"'[2]5.2 Asset Age Profile'!DZ113+'[3]5.2 Asset Age Profile'!DZ113","v":0},{"$f":"'[2]5.2 Asset Age Profile'!EA113+'[3]5.2 Asset Age Profile'!EA113","v":0},{"$f":"'[2]5.2 Asset Age Profile'!EB113+'[3]5.2 Asset Age Profile'!EB113","v":0},{"$f":"'[2]5.2 Asset Age Profile'!EC113+'[3]5.2 Asset Age Profile'!EC113","v":0},{"$f":"'[2]5.2 Asset Age Profile'!ED113+'[3]5.2 Asset Age Profile'!ED113","v":0},{"$f":"'[2]5.2 Asset Age Profile'!EE113+'[3]5.2 Asset Age Profile'!EE113","v":0},{"$f":"'[2]5.2 Asset Age Profile'!EF113+'[3]5.2 Asset Age Profile'!EF113","v":0},{"$f":"'[2]5.2 Asset Age Profile'!EG113+'[3]5.2 Asset Age Profile'!EG113","v":0},{"$f":"'[2]5.2 Asset Age Profile'!EH113+'[3]5.2 Asset Age Profile'!EH113","v":0},{"$f":"'[2]5.2 Asset Age Profile'!EI113+'[3]5.2 Asset Age Profile'!EI113","v":0},{"$f":"'[2]5.2 Asset Age Profile'!EJ113+'[3]5.2 Asset Age Profile'!EJ113","v":0}]
["ED_ASS521_00104","PUBLIC LIGHTING BY: \nASSET TYPE ; LIGHTING OBLIGATION","Luminaires ;  Major Road",null,"DNSP NAME","REPEX","PUBLIC LIGHTING","Luminaires ;  Major Road","DESCRIPTOR METRIC","MEAN ECONOMIC LIFE","YEARS","NUMBER",null,{"$f":"'[2]5.2 Asset Age Profile'!N114+'[3]5.2 Asset Age Profile'!N114","v":0},{"$f":"'[2]5.2 Asset Age Profile'!O114+'[3]5.2 Asset Age Profile'!O114","v":0},{"$f":"'[2]5.2 Asset Age Profile'!P114+'[3]5.2 Asset Age Profile'!P114","v":0},{"$f":"'[2]5.2 Asset Age Profile'!Q114+'[3]5.2 Asset Age Profile'!Q114","v":0},{"$f":"'[2]5.2 Asset Age Profile'!R114+'[3]5.2 Asset Age Profile'!R114","v":0},{"$f":"'[2]5.2 Asset Age Profile'!S114+'[3]5.2 Asset Age Profile'!S114","v":0},{"$f":"'[2]5.2 Asset Age Profile'!T114+'[3]5.2 Asset Age Profile'!T114","v":0},{"$f":"'[2]5.2 Asset Age Profile'!U114+'[3]5.2 Asset Age Profile'!U114","v":0},{"$f":"'[2]5.2 Asset Age Profile'!V114+'[3]5.2 Asset Age Profile'!V114","v":0},{"$f":"'[2]5.2 Asset Age Profile'!W114+'[3]5.2 Asset Age Profile'!W114","v":0},{"$f":"'[2]5.2 Asset Age Profile'!X114+'[3]5.2 Asset Age Profile'!X114","v":0},{"$f":"'[2]5.2 Asset Age Profile'!Y114+'[3]5.2 Asset Age Profile'!Y114","v":0},{"$f":"'[2]5.2 Asset Age Profile'!Z114+'[3]5.2 Asset Age Profile'!Z114","v":0},{"$f":"'[2]5.2 Asset Age Profile'!AA114+'[3]5.2 Asset Age Profile'!AA114","v":0},{"$f":"'[2]5.2 Asset Age Profile'!AB114+'[3]5.2 Asset Age Profile'!AB114","v":0},{"$f":"'[2]5.2 Asset Age Profile'!AC114+'[3]5.2 Asset Age Profile'!AC114","v":0},{"$f":"'[2]5.2 Asset Age Profile'!AD114+'[3]5.2 Asset Age Profile'!AD114","v":0},{"$f":"'[2]5.2 Asset Age Profile'!AE114+'[3]5.2 Asset Age Profile'!AE114","v":0},{"$f":"'[2]5.2 Asset Age Profile'!AF114+'[3]5.2 Asset Age Profile'!AF114","v":0},{"$f":"'[2]5.2 Asset Age Profile'!AG114+'[3]5.2 Asset Age Profile'!AG114","v":0},{"$f":"'[2]5.2 Asset Age Profile'!AH114+'[3]5.2 Asset Age Profile'!AH114","v":0},{"$f":"'[2]5.2 Asset Age Profile'!AI114+'[3]5.2 Asset Age Profile'!AI114","v":0},{"$f":"'[2]5.2 Asset Age Profile'!AJ114+'[3]5.2 Asset Age Profile'!AJ114","v":0},{"$f":"'[2]5.2 Asset Age Profile'!AK114+'[3]5.2 Asset Age Profile'!AK114","v":0},{"$f":"'[2]5.2 Asset Age Profile'!AL114+'[3]5.2 Asset Age Profile'!AL114","v":0},{"$f":"'[2]5.2 Asset Age Profile'!AM114+'[3]5.2 Asset Age Profile'!AM114","v":0},{"$f":"'[2]5.2 Asset Age Profile'!AN114+'[3]5.2 Asset Age Profile'!AN114","v":0},{"$f":"'[2]5.2 Asset Age Profile'!AO114+'[3]5.2 Asset Age Profile'!AO114","v":0},{"$f":"'[2]5.2 Asset Age Profile'!AP114+'[3]5.2 Asset Age Profile'!AP114","v":0},{"$f":"'[2]5.2 Asset Age Profile'!AQ114+'[3]5.2 Asset Age Profile'!AQ114","v":0},{"$f":"'[2]5.2 Asset Age Profile'!AR114+'[3]5.2 Asset Age Profile'!AR114","v":0},{"$f":"'[2]5.2 Asset Age Profile'!AS114+'[3]5.2 Asset Age Profile'!AS114","v":0},{"$f":"'[2]5.2 Asset Age Profile'!AT114+'[3]5.2 Asset Age Profile'!AT114","v":0},{"$f":"'[2]5.2 Asset Age Profile'!AU114+'[3]5.2 Asset Age Profile'!AU114","v":0},{"$f":"'[2]5.2 Asset Age Profile'!AV114+'[3]5.2 Asset Age Profile'!AV114","v":0},{"$f":"'[2]5.2 Asset Age Profile'!AW114+'[3]5.2 Asset Age Profile'!AW114","v":0},{"$f":"'[2]5.2 Asset Age Profile'!AX114+'[3]5.2 Asset Age Profile'!AX114","v":0},{"$f":"'[2]5.2 Asset Age Profile'!AY114+'[3]5.2 Asset Age Profile'!AY114","v":0},{"$f":"'[2]5.2 Asset Age Profile'!AZ114+'[3]5.2 Asset Age Profile'!AZ114","v":0},{"$f":"'[2]5.2 Asset Age Profile'!BA114+'[3]5.2 Asset Age Profile'!BA114","v":0},{"$f":"'[2]5.2 Asset Age Profile'!BB114+'[3]5.2 Asset Age Profile'!BB114","v":0},{"$f":"'[2]5.2 Asset Age Profile'!BC114+'[3]5.2 Asset Age Profile'!BC114","v":0},{"$f":"'[2]5.2 Asset Age Profile'!BD114+'[3]5.2 Asset Age Profile'!BD114","v":0},{"$f":"'[2]5.2 Asset Age Profile'!BE114+'[3]5.2 Asset Age Profile'!BE114","v":0},{"$f":"'[2]5.2 Asset Age Profile'!BF114+'[3]5.2 Asset Age Profile'!BF114","v":0},{"$f":"'[2]5.2 Asset Age Profile'!BG114+'[3]5.2 Asset Age Profile'!BG114","v":0},{"$f":"'[2]5.2 Asset Age Profile'!BH114+'[3]5.2 Asset Age Profile'!BH114","v":0},{"$f":"'[2]5.2 Asset Age Profile'!BI114+'[3]5.2 Asset Age Profile'!BI114","v":0},{"$f":"'[2]5.2 Asset Age Profile'!BJ114+'[3]5.2 Asset Age Profile'!BJ114","v":0},{"$f":"'[2]5.2 Asset Age Profile'!BK114+'[3]5.2 Asset Age Profile'!BK114","v":0},{"$f":"'[2]5.2 Asset Age Profile'!BL114+'[3]5.2 Asset Age Profile'!BL114","v":0},{"$f":"'[2]5.2 Asset Age Profile'!BM114+'[3]5.2 Asset Age Profile'!BM114","v":0},{"$f":"'[2]5.2 Asset Age Profile'!BN114+'[3]5.2 Asset Age Profile'!BN114","v":0},{"$f":"'[2]5.2 Asset Age Profile'!BO114+'[3]5.2 Asset Age Profile'!BO114","v":0},{"$f":"'[2]5.2 Asset Age Profile'!BP114+'[3]5.2 Asset Age Profile'!BP114","v":0},{"$f":"'[2]5.2 Asset Age Profile'!BQ114+'[3]5.2 Asset Age Profile'!BQ114","v":0},{"$f":"'[2]5.2 Asset Age Profile'!BR114+'[3]5.2 Asset Age Profile'!BR114","v":0},{"$f":"'[2]5.2 Asset Age Profile'!BS114+'[3]5.2 Asset Age Profile'!BS114","v":0},{"$f":"'[2]5.2 Asset Age Profile'!BT114+'[3]5.2 Asset Age Profile'!BT114","v":0},{"$f":"'[2]5.2 Asset Age Profile'!BU114+'[3]5.2 Asset Age Profile'!BU114","v":0},{"$f":"'[2]5.2 Asset Age Profile'!BV114+'[3]5.2 Asset Age Profile'!BV114","v":0},{"$f":"'[2]5.2 Asset Age Profile'!BW114+'[3]5.2 Asset Age Profile'!BW114","v":0},{"$f":"'[2]5.2 Asset Age Profile'!BX114+'[3]5.2 Asset Age Profile'!BX114","v":0},{"$f":"'[2]5.2 Asset Age Profile'!BY114+'[3]5.2 Asset Age Profile'!BY114","v":0},{"$f":"'[2]5.2 Asset Age Profile'!BZ114+'[3]5.2 Asset Age Profile'!BZ114","v":0},{"$f":"'[2]5.2 Asset Age Profile'!CA114+'[3]5.2 Asset Age Profile'!CA114","v":0},{"$f":"'[2]5.2 Asset Age Profile'!CB114+'[3]5.2 Asset Age Profile'!CB114","v":0},{"$f":"'[2]5.2 Asset Age Profile'!CC114+'[3]5.2 Asset Age Profile'!CC114","v":0},{"$f":"'[2]5.2 Asset Age Profile'!CD114+'[3]5.2 Asset Age Profile'!CD114","v":0},{"$f":"'[2]5.2 Asset Age Profile'!CE114+'[3]5.2 Asset Age Profile'!CE114","v":0},{"$f":"'[2]5.2 Asset Age Profile'!CF114+'[3]5.2 Asset Age Profile'!CF114","v":0},{"$f":"'[2]5.2 Asset Age Profile'!CG114+'[3]5.2 Asset Age Profile'!CG114","v":0},{"$f":"'[2]5.2 Asset Age Profile'!CH114+'[3]5.2 Asset Age Profile'!CH114","v":0},{"$f":"'[2]5.2 Asset Age Profile'!CI114+'[3]5.2 Asset Age Profile'!CI114","v":0},{"$f":"'[2]5.2 Asset Age Profile'!CJ114+'[3]5.2 Asset Age Profile'!CJ114","v":0},{"$f":"'[2]5.2 Asset Age Profile'!CK114+'[3]5.2 Asset Age Profile'!CK114","v":0},{"$f":"'[2]5.2 Asset Age Profile'!CL114+'[3]5.2 Asset Age Profile'!CL114","v":0},{"$f":"'[2]5.2 Asset Age Profile'!CM114+'[3]5.2 Asset Age Profile'!CM114","v":0},{"$f":"'[2]5.2 Asset Age Profile'!CN114+'[3]5.2 Asset Age Profile'!CN114","v":0},{"$f":"'[2]5.2 Asset Age Profile'!CO114+'[3]5.2 Asset Age Profile'!CO114","v":0},{"$f":"'[2]5.2 Asset Age Profile'!CP114+'[3]5.2 Asset Age Profile'!CP114","v":0},{"$f":"'[2]5.2 Asset Age Profile'!CQ114+'[3]5.2 Asset Age Profile'!CQ114","v":0},{"$f":"'[2]5.2 Asset Age Profile'!CR114+'[3]5.2 Asset Age Profile'!CR114","v":0},{"$f":"'[2]5.2 Asset Age Profile'!CS114+'[3]5.2 Asset Age Profile'!CS114","v":0},{"$f":"'[2]5.2 Asset Age Profile'!CT114+'[3]5.2 Asset Age Profile'!CT114","v":0},{"$f":"'[2]5.2 Asset Age Profile'!CU114+'[3]5.2 Asset Age Profile'!CU114","v":0},{"$f":"'[2]5.2 Asset Age Profile'!CV114+'[3]5.2 Asset Age Profile'!CV114","v":0},{"$f":"'[2]5.2 Asset Age Profile'!CW114+'[3]5.2 Asset Age Profile'!CW114","v":0},{"$f":"'[2]5.2 Asset Age Profile'!CX114+'[3]5.2 Asset Age Profile'!CX114","v":0},{"$f":"'[2]5.2 Asset Age Profile'!CY114+'[3]5.2 Asset Age Profile'!CY114","v":0},{"$f":"'[2]5.2 Asset Age Profile'!CZ114+'[3]5.2 Asset Age Profile'!CZ114","v":0},{"$f":"'[2]5.2 Asset Age Profile'!DA114+'[3]5.2 Asset Age Profile'!DA114","v":0},{"$f":"'[2]5.2 Asset Age Profile'!DB114+'[3]5.2 Asset Age Profile'!DB114","v":0},{"$f":"'[2]5.2 Asset Age Profile'!DC114+'[3]5.2 Asset Age Profile'!DC114","v":0},{"$f":"'[2]5.2 Asset Age Profile'!DD114+'[3]5.2 Asset Age Profile'!DD114","v":0},{"$f":"'[2]5.2 Asset Age Profile'!DE114+'[3]5.2 Asset Age Profile'!DE114","v":0},{"$f":"'[2]5.2 Asset Age Profile'!DF114+'[3]5.2 Asset Age Profile'!DF114","v":0},{"$f":"'[2]5.2 Asset Age Profile'!DG114+'[3]5.2 Asset Age Profile'!DG114","v":0},{"$f":"'[2]5.2 Asset Age Profile'!DH114+'[3]5.2 Asset Age Profile'!DH114","v":0},{"$f":"'[2]5.2 Asset Age Profile'!DI114+'[3]5.2 Asset Age Profile'!DI114","v":0},{"$f":"'[2]5.2 Asset Age Profile'!DJ114+'[3]5.2 Asset Age Profile'!DJ114","v":0},{"$f":"'[2]5.2 Asset Age Profile'!DK114+'[3]5.2 Asset Age Profile'!DK114","v":0},{"$f":"'[2]5.2 Asset Age Profile'!DL114+'[3]5.2 Asset Age Profile'!DL114","v":0},{"$f":"'[2]5.2 Asset Age Profile'!DM114+'[3]5.2 Asset Age Profile'!DM114","v":0},{"$f":"'[2]5.2 Asset Age Profile'!DN114+'[3]5.2 Asset Age Profile'!DN114","v":0},{"$f":"'[2]5.2 Asset Age Profile'!DO114+'[3]5.2 Asset Age Profile'!DO114","v":0},{"$f":"'[2]5.2 Asset Age Profile'!DP114+'[3]5.2 Asset Age Profile'!DP114","v":0},{"$f":"'[2]5.2 Asset Age Profile'!DQ114+'[3]5.2 Asset Age Profile'!DQ114","v":0},{"$f":"'[2]5.2 Asset Age Profile'!DR114+'[3]5.2 Asset Age Profile'!DR114","v":0},{"$f":"'[2]5.2 Asset Age Profile'!DS114+'[3]5.2 Asset Age Profile'!DS114","v":0},{"$f":"'[2]5.2 Asset Age Profile'!DT114+'[3]5.2 Asset Age Profile'!DT114","v":0},{"$f":"'[2]5.2 Asset Age Profile'!DU114+'[3]5.2 Asset Age Profile'!DU114","v":0},{"$f":"'[2]5.2 Asset Age Profile'!DV114+'[3]5.2 Asset Age Profile'!DV114","v":0},{"$f":"'[2]5.2 Asset Age Profile'!DW114+'[3]5.2 Asset Age Profile'!DW114","v":0},{"$f":"'[2]5.2 Asset Age Profile'!DX114+'[3]5.2 Asset Age Profile'!DX114","v":0},{"$f":"'[2]5.2 Asset Age Profile'!DY114+'[3]5.2 Asset Age Profile'!DY114","v":0},{"$f":"'[2]5.2 Asset Age Profile'!DZ114+'[3]5.2 Asset Age Profile'!DZ114","v":0},{"$f":"'[2]5.2 Asset Age Profile'!EA114+'[3]5.2 Asset Age Profile'!EA114","v":0},{"$f":"'[2]5.2 Asset Age Profile'!EB114+'[3]5.2 Asset Age Profile'!EB114","v":0},{"$f":"'[2]5.2 Asset Age Profile'!EC114+'[3]5.2 Asset Age Profile'!EC114","v":0},{"$f":"'[2]5.2 Asset Age Profile'!ED114+'[3]5.2 Asset Age Profile'!ED114","v":0},{"$f":"'[2]5.2 Asset Age Profile'!EE114+'[3]5.2 Asset Age Profile'!EE114","v":0},{"$f":"'[2]5.2 Asset Age Profile'!EF114+'[3]5.2 Asset Age Profile'!EF114","v":0},{"$f":"'[2]5.2 Asset Age Profile'!EG114+'[3]5.2 Asset Age Profile'!EG114","v":0},{"$f":"'[2]5.2 Asset Age Profile'!EH114+'[3]5.2 Asset Age Profile'!EH114","v":0},{"$f":"'[2]5.2 Asset Age Profile'!EI114+'[3]5.2 Asset Age Profile'!EI114","v":0},{"$f":"'[2]5.2 Asset Age Profile'!EJ114+'[3]5.2 Asset Age Profile'!EJ114","v":0}]
["ED_ASS521_00105",null,"Luminaires ;  Minor Road",null,"DNSP NAME","REPEX","PUBLIC LIGHTING","Luminaires ;  Minor Road","DESCRIPTOR METRIC","MEAN ECONOMIC LIFE","YEARS","NUMBER",null,{"$f":"'[2]5.2 Asset Age Profile'!N115+'[3]5.2 Asset Age Profile'!N115","v":0},{"$f":"'[2]5.2 Asset Age Profile'!O115+'[3]5.2 Asset Age Profile'!O115","v":0},{"$f":"'[2]5.2 Asset Age Profile'!P115+'[3]5.2 Asset Age Profile'!P115","v":0},{"$f":"'[2]5.2 Asset Age Profile'!Q115+'[3]5.2 Asset Age Profile'!Q115","v":0},{"$f":"'[2]5.2 Asset Age Profile'!R115+'[3]5.2 Asset Age Profile'!R115","v":0},{"$f":"'[2]5.2 Asset Age Profile'!S115+'[3]5.2 Asset Age Profile'!S115","v":0},{"$f":"'[2]5.2 Asset Age Profile'!T115+'[3]5.2 Asset Age Profile'!T115","v":0},{"$f":"'[2]5.2 Asset Age Profile'!U115+'[3]5.2 Asset Age Profile'!U115","v":0},{"$f":"'[2]5.2 Asset Age Profile'!V115+'[3]5.2 Asset Age Profile'!V115","v":0},{"$f":"'[2]5.2 Asset Age Profile'!W115+'[3]5.2 Asset Age Profile'!W115","v":0},{"$f":"'[2]5.2 Asset Age Profile'!X115+'[3]5.2 Asset Age Profile'!X115","v":0},{"$f":"'[2]5.2 Asset Age Profile'!Y115+'[3]5.2 Asset Age Profile'!Y115","v":0},{"$f":"'[2]5.2 Asset Age Profile'!Z115+'[3]5.2 Asset Age Profile'!Z115","v":0},{"$f":"'[2]5.2 Asset Age Profile'!AA115+'[3]5.2 Asset Age Profile'!AA115","v":0},{"$f":"'[2]5.2 Asset Age Profile'!AB115+'[3]5.2 Asset Age Profile'!AB115","v":0},{"$f":"'[2]5.2 Asset Age Profile'!AC115+'[3]5.2 Asset Age Profile'!AC115","v":0},{"$f":"'[2]5.2 Asset Age Profile'!AD115+'[3]5.2 Asset Age Profile'!AD115","v":0},{"$f":"'[2]5.2 Asset Age Profile'!AE115+'[3]5.2 Asset Age Profile'!AE115","v":0},{"$f":"'[2]5.2 Asset Age Profile'!AF115+'[3]5.2 Asset Age Profile'!AF115","v":0},{"$f":"'[2]5.2 Asset Age Profile'!AG115+'[3]5.2 Asset Age Profile'!AG115","v":0},{"$f":"'[2]5.2 Asset Age Profile'!AH115+'[3]5.2 Asset Age Profile'!AH115","v":0},{"$f":"'[2]5.2 Asset Age Profile'!AI115+'[3]5.2 Asset Age Profile'!AI115","v":0},{"$f":"'[2]5.2 Asset Age Profile'!AJ115+'[3]5.2 Asset Age Profile'!AJ115","v":0},{"$f":"'[2]5.2 Asset Age Profile'!AK115+'[3]5.2 Asset Age Profile'!AK115","v":0},{"$f":"'[2]5.2 Asset Age Profile'!AL115+'[3]5.2 Asset Age Profile'!AL115","v":0},{"$f":"'[2]5.2 Asset Age Profile'!AM115+'[3]5.2 Asset Age Profile'!AM115","v":0},{"$f":"'[2]5.2 Asset Age Profile'!AN115+'[3]5.2 Asset Age Profile'!AN115","v":0},{"$f":"'[2]5.2 Asset Age Profile'!AO115+'[3]5.2 Asset Age Profile'!AO115","v":0},{"$f":"'[2]5.2 Asset Age Profile'!AP115+'[3]5.2 Asset Age Profile'!AP115","v":0},{"$f":"'[2]5.2 Asset Age Profile'!AQ115+'[3]5.2 Asset Age Profile'!AQ115","v":0},{"$f":"'[2]5.2 Asset Age Profile'!AR115+'[3]5.2 Asset Age Profile'!AR115","v":0},{"$f":"'[2]5.2 Asset Age Profile'!AS115+'[3]5.2 Asset Age Profile'!AS115","v":0},{"$f":"'[2]5.2 Asset Age Profile'!AT115+'[3]5.2 Asset Age Profile'!AT115","v":0},{"$f":"'[2]5.2 Asset Age Profile'!AU115+'[3]5.2 Asset Age Profile'!AU115","v":0},{"$f":"'[2]5.2 Asset Age Profile'!AV115+'[3]5.2 Asset Age Profile'!AV115","v":0},{"$f":"'[2]5.2 Asset Age Profile'!AW115+'[3]5.2 Asset Age Profile'!AW115","v":0},{"$f":"'[2]5.2 Asset Age Profile'!AX115+'[3]5.2 Asset Age Profile'!AX115","v":0},{"$f":"'[2]5.2 Asset Age Profile'!AY115+'[3]5.2 Asset Age Profile'!AY115","v":0},{"$f":"'[2]5.2 Asset Age Profile'!AZ115+'[3]5.2 Asset Age Profile'!AZ115","v":0},{"$f":"'[2]5.2 Asset Age Profile'!BA115+'[3]5.2 Asset Age Profile'!BA115","v":0},{"$f":"'[2]5.2 Asset Age Profile'!BB115+'[3]5.2 Asset Age Profile'!BB115","v":0},{"$f":"'[2]5.2 Asset Age Profile'!BC115+'[3]5.2 Asset Age Profile'!BC115","v":0},{"$f":"'[2]5.2 Asset Age Profile'!BD115+'[3]5.2 Asset Age Profile'!BD115","v":0},{"$f":"'[2]5.2 Asset Age Profile'!BE115+'[3]5.2 Asset Age Profile'!BE115","v":0},{"$f":"'[2]5.2 Asset Age Profile'!BF115+'[3]5.2 Asset Age Profile'!BF115","v":0},{"$f":"'[2]5.2 Asset Age Profile'!BG115+'[3]5.2 Asset Age Profile'!BG115","v":0},{"$f":"'[2]5.2 Asset Age Profile'!BH115+'[3]5.2 Asset Age Profile'!BH115","v":0},{"$f":"'[2]5.2 Asset Age Profile'!BI115+'[3]5.2 Asset Age Profile'!BI115","v":0},{"$f":"'[2]5.2 Asset Age Profile'!BJ115+'[3]5.2 Asset Age Profile'!BJ115","v":0},{"$f":"'[2]5.2 Asset Age Profile'!BK115+'[3]5.2 Asset Age Profile'!BK115","v":0},{"$f":"'[2]5.2 Asset Age Profile'!BL115+'[3]5.2 Asset Age Profile'!BL115","v":0},{"$f":"'[2]5.2 Asset Age Profile'!BM115+'[3]5.2 Asset Age Profile'!BM115","v":0},{"$f":"'[2]5.2 Asset Age Profile'!BN115+'[3]5.2 Asset Age Profile'!BN115","v":0},{"$f":"'[2]5.2 Asset Age Profile'!BO115+'[3]5.2 Asset Age Profile'!BO115","v":0},{"$f":"'[2]5.2 Asset Age Profile'!BP115+'[3]5.2 Asset Age Profile'!BP115","v":0},{"$f":"'[2]5.2 Asset Age Profile'!BQ115+'[3]5.2 Asset Age Profile'!BQ115","v":0},{"$f":"'[2]5.2 Asset Age Profile'!BR115+'[3]5.2 Asset Age Profile'!BR115","v":0},{"$f":"'[2]5.2 Asset Age Profile'!BS115+'[3]5.2 Asset Age Profile'!BS115","v":0},{"$f":"'[2]5.2 Asset Age Profile'!BT115+'[3]5.2 Asset Age Profile'!BT115","v":0},{"$f":"'[2]5.2 Asset Age Profile'!BU115+'[3]5.2 Asset Age Profile'!BU115","v":0},{"$f":"'[2]5.2 Asset Age Profile'!BV115+'[3]5.2 Asset Age Profile'!BV115","v":0},{"$f":"'[2]5.2 Asset Age Profile'!BW115+'[3]5.2 Asset Age Profile'!BW115","v":0},{"$f":"'[2]5.2 Asset Age Profile'!BX115+'[3]5.2 Asset Age Profile'!BX115","v":0},{"$f":"'[2]5.2 Asset Age Profile'!BY115+'[3]5.2 Asset Age Profile'!BY115","v":0},{"$f":"'[2]5.2 Asset Age Profile'!BZ115+'[3]5.2 Asset Age Profile'!BZ115","v":0},{"$f":"'[2]5.2 Asset Age Profile'!CA115+'[3]5.2 Asset Age Profile'!CA115","v":0},{"$f":"'[2]5.2 Asset Age Profile'!CB115+'[3]5.2 Asset Age Profile'!CB115","v":0},{"$f":"'[2]5.2 Asset Age Profile'!CC115+'[3]5.2 Asset Age Profile'!CC115","v":0},{"$f":"'[2]5.2 Asset Age Profile'!CD115+'[3]5.2 Asset Age Profile'!CD115","v":0},{"$f":"'[2]5.2 Asset Age Profile'!CE115+'[3]5.2 Asset Age Profile'!CE115","v":0},{"$f":"'[2]5.2 Asset Age Profile'!CF115+'[3]5.2 Asset Age Profile'!CF115","v":0},{"$f":"'[2]5.2 Asset Age Profile'!CG115+'[3]5.2 Asset Age Profile'!CG115","v":0},{"$f":"'[2]5.2 Asset Age Profile'!CH115+'[3]5.2 Asset Age Profile'!CH115","v":0},{"$f":"'[2]5.2 Asset Age Profile'!CI115+'[3]5.2 Asset Age Profile'!CI115","v":0},{"$f":"'[2]5.2 Asset Age Profile'!CJ115+'[3]5.2 Asset Age Profile'!CJ115","v":0},{"$f":"'[2]5.2 Asset Age Profile'!CK115+'[3]5.2 Asset Age Profile'!CK115","v":0},{"$f":"'[2]5.2 Asset Age Profile'!CL115+'[3]5.2 Asset Age Profile'!CL115","v":0},{"$f":"'[2]5.2 Asset Age Profile'!CM115+'[3]5.2 Asset Age Profile'!CM115","v":0},{"$f":"'[2]5.2 Asset Age Profile'!CN115+'[3]5.2 Asset Age Profile'!CN115","v":0},{"$f":"'[2]5.2 Asset Age Profile'!CO115+'[3]5.2 Asset Age Profile'!CO115","v":0},{"$f":"'[2]5.2 Asset Age Profile'!CP115+'[3]5.2 Asset Age Profile'!CP115","v":0},{"$f":"'[2]5.2 Asset Age Profile'!CQ115+'[3]5.2 Asset Age Profile'!CQ115","v":0},{"$f":"'[2]5.2 Asset Age Profile'!CR115+'[3]5.2 Asset Age Profile'!CR115","v":0},{"$f":"'[2]5.2 Asset Age Profile'!CS115+'[3]5.2 Asset Age Profile'!CS115","v":0},{"$f":"'[2]5.2 Asset Age Profile'!CT115+'[3]5.2 Asset Age Profile'!CT115","v":0},{"$f":"'[2]5.2 Asset Age Profile'!CU115+'[3]5.2 Asset Age Profile'!CU115","v":0},{"$f":"'[2]5.2 Asset Age Profile'!CV115+'[3]5.2 Asset Age Profile'!CV115","v":0},{"$f":"'[2]5.2 Asset Age Profile'!CW115+'[3]5.2 Asset Age Profile'!CW115","v":0},{"$f":"'[2]5.2 Asset Age Profile'!CX115+'[3]5.2 Asset Age Profile'!CX115","v":0},{"$f":"'[2]5.2 Asset Age Profile'!CY115+'[3]5.2 Asset Age Profile'!CY115","v":0},{"$f":"'[2]5.2 Asset Age Profile'!CZ115+'[3]5.2 Asset Age Profile'!CZ115","v":0},{"$f":"'[2]5.2 Asset Age Profile'!DA115+'[3]5.2 Asset Age Profile'!DA115","v":0},{"$f":"'[2]5.2 Asset Age Profile'!DB115+'[3]5.2 Asset Age Profile'!DB115","v":0},{"$f":"'[2]5.2 Asset Age Profile'!DC115+'[3]5.2 Asset Age Profile'!DC115","v":0},{"$f":"'[2]5.2 Asset Age Profile'!DD115+'[3]5.2 Asset Age Profile'!DD115","v":0},{"$f":"'[2]5.2 Asset Age Profile'!DE115+'[3]5.2 Asset Age Profile'!DE115","v":0},{"$f":"'[2]5.2 Asset Age Profile'!DF115+'[3]5.2 Asset Age Profile'!DF115","v":0},{"$f":"'[2]5.2 Asset Age Profile'!DG115+'[3]5.2 Asset Age Profile'!DG115","v":0},{"$f":"'[2]5.2 Asset Age Profile'!DH115+'[3]5.2 Asset Age Profile'!DH115","v":0},{"$f":"'[2]5.2 Asset Age Profile'!DI115+'[3]5.2 Asset Age Profile'!DI115","v":0},{"$f":"'[2]5.2 Asset Age Profile'!DJ115+'[3]5.2 Asset Age Profile'!DJ115","v":0},{"$f":"'[2]5.2 Asset Age Profile'!DK115+'[3]5.2 Asset Age Profile'!DK115","v":0},{"$f":"'[2]5.2 Asset Age Profile'!DL115+'[3]5.2 Asset Age Profile'!DL115","v":0},{"$f":"'[2]5.2 Asset Age Profile'!DM115+'[3]5.2 Asset Age Profile'!DM115","v":0},{"$f":"'[2]5.2 Asset Age Profile'!DN115+'[3]5.2 Asset Age Profile'!DN115","v":0},{"$f":"'[2]5.2 Asset Age Profile'!DO115+'[3]5.2 Asset Age Profile'!DO115","v":0},{"$f":"'[2]5.2 Asset Age Profile'!DP115+'[3]5.2 Asset Age Profile'!DP115","v":0},{"$f":"'[2]5.2 Asset Age Profile'!DQ115+'[3]5.2 Asset Age Profile'!DQ115","v":0},{"$f":"'[2]5.2 Asset Age Profile'!DR115+'[3]5.2 Asset Age Profile'!DR115","v":0},{"$f":"'[2]5.2 Asset Age Profile'!DS115+'[3]5.2 Asset Age Profile'!DS115","v":0},{"$f":"'[2]5.2 Asset Age Profile'!DT115+'[3]5.2 Asset Age Profile'!DT115","v":0},{"$f":"'[2]5.2 Asset Age Profile'!DU115+'[3]5.2 Asset Age Profile'!DU115","v":0},{"$f":"'[2]5.2 Asset Age Profile'!DV115+'[3]5.2 Asset Age Profile'!DV115","v":0},{"$f":"'[2]5.2 Asset Age Profile'!DW115+'[3]5.2 Asset Age Profile'!DW115","v":0},{"$f":"'[2]5.2 Asset Age Profile'!DX115+'[3]5.2 Asset Age Profile'!DX115","v":0},{"$f":"'[2]5.2 Asset Age Profile'!DY115+'[3]5.2 Asset Age Profile'!DY115","v":0},{"$f":"'[2]5.2 Asset Age Profile'!DZ115+'[3]5.2 Asset Age Profile'!DZ115","v":0},{"$f":"'[2]5.2 Asset Age Profile'!EA115+'[3]5.2 Asset Age Profile'!EA115","v":0},{"$f":"'[2]5.2 Asset Age Profile'!EB115+'[3]5.2 Asset Age Profile'!EB115","v":0},{"$f":"'[2]5.2 Asset Age Profile'!EC115+'[3]5.2 Asset Age Profile'!EC115","v":0},{"$f":"'[2]5.2 Asset Age Profile'!ED115+'[3]5.2 Asset Age Profile'!ED115","v":0},{"$f":"'[2]5.2 Asset Age Profile'!EE115+'[3]5.2 Asset Age Profile'!EE115","v":0},{"$f":"'[2]5.2 Asset Age Profile'!EF115+'[3]5.2 Asset Age Profile'!EF115","v":0},{"$f":"'[2]5.2 Asset Age Profile'!EG115+'[3]5.2 Asset Age Profile'!EG115","v":0},{"$f":"'[2]5.2 Asset Age Profile'!EH115+'[3]5.2 Asset Age Profile'!EH115","v":0},{"$f":"'[2]5.2 Asset Age Profile'!EI115+'[3]5.2 Asset Age Profile'!EI115","v":0},{"$f":"'[2]5.2 Asset Age Profile'!EJ115+'[3]5.2 Asset Age Profile'!EJ115","v":0}]
["ED_ASS521_00106",null,"Brackets ; Major Road",null,"DNSP NAME","REPEX","PUBLIC LIGHTING","Brackets ; Major Road","DESCRIPTOR METRIC","MEAN ECONOMIC LIFE","YEARS","NUMBER",null,{"$f":"'[2]5.2 Asset Age Profile'!N116+'[3]5.2 Asset Age Profile'!N116","v":0},{"$f":"'[2]5.2 Asset Age Profile'!O116+'[3]5.2 Asset Age Profile'!O116","v":0},{"$f":"'[2]5.2 Asset Age Profile'!P116+'[3]5.2 Asset Age Profile'!P116","v":0},{"$f":"'[2]5.2 Asset Age Profile'!Q116+'[3]5.2 Asset Age Profile'!Q116","v":0},{"$f":"'[2]5.2 Asset Age Profile'!R116+'[3]5.2 Asset Age Profile'!R116","v":0},{"$f":"'[2]5.2 Asset Age Profile'!S116+'[3]5.2 Asset Age Profile'!S116","v":0},{"$f":"'[2]5.2 Asset Age Profile'!T116+'[3]5.2 Asset Age Profile'!T116","v":0},{"$f":"'[2]5.2 Asset Age Profile'!U116+'[3]5.2 Asset Age Profile'!U116","v":0},{"$f":"'[2]5.2 Asset Age Profile'!V116+'[3]5.2 Asset Age Profile'!V116","v":0},{"$f":"'[2]5.2 Asset Age Profile'!W116+'[3]5.2 Asset Age Profile'!W116","v":0},{"$f":"'[2]5.2 Asset Age Profile'!X116+'[3]5.2 Asset Age Profile'!X116","v":0},{"$f":"'[2]5.2 Asset Age Profile'!Y116+'[3]5.2 Asset Age Profile'!Y116","v":0},{"$f":"'[2]5.2 Asset Age Profile'!Z116+'[3]5.2 Asset Age Profile'!Z116","v":0},{"$f":"'[2]5.2 Asset Age Profile'!AA116+'[3]5.2 Asset Age Profile'!AA116","v":0},{"$f":"'[2]5.2 Asset Age Profile'!AB116+'[3]5.2 Asset Age Profile'!AB116","v":0},{"$f":"'[2]5.2 Asset Age Profile'!AC116+'[3]5.2 Asset Age Profile'!AC116","v":0},{"$f":"'[2]5.2 Asset Age Profile'!AD116+'[3]5.2 Asset Age Profile'!AD116","v":0},{"$f":"'[2]5.2 Asset Age Profile'!AE116+'[3]5.2 Asset Age Profile'!AE116","v":0},{"$f":"'[2]5.2 Asset Age Profile'!AF116+'[3]5.2 Asset Age Profile'!AF116","v":0},{"$f":"'[2]5.2 Asset Age Profile'!AG116+'[3]5.2 Asset Age Profile'!AG116","v":0},{"$f":"'[2]5.2 Asset Age Profile'!AH116+'[3]5.2 Asset Age Profile'!AH116","v":0},{"$f":"'[2]5.2 Asset Age Profile'!AI116+'[3]5.2 Asset Age Profile'!AI116","v":0},{"$f":"'[2]5.2 Asset Age Profile'!AJ116+'[3]5.2 Asset Age Profile'!AJ116","v":0},{"$f":"'[2]5.2 Asset Age Profile'!AK116+'[3]5.2 Asset Age Profile'!AK116","v":0},{"$f":"'[2]5.2 Asset Age Profile'!AL116+'[3]5.2 Asset Age Profile'!AL116","v":0},{"$f":"'[2]5.2 Asset Age Profile'!AM116+'[3]5.2 Asset Age Profile'!AM116","v":0},{"$f":"'[2]5.2 Asset Age Profile'!AN116+'[3]5.2 Asset Age Profile'!AN116","v":0},{"$f":"'[2]5.2 Asset Age Profile'!AO116+'[3]5.2 Asset Age Profile'!AO116","v":0},{"$f":"'[2]5.2 Asset Age Profile'!AP116+'[3]5.2 Asset Age Profile'!AP116","v":0},{"$f":"'[2]5.2 Asset Age Profile'!AQ116+'[3]5.2 Asset Age Profile'!AQ116","v":0},{"$f":"'[2]5.2 Asset Age Profile'!AR116+'[3]5.2 Asset Age Profile'!AR116","v":0},{"$f":"'[2]5.2 Asset Age Profile'!AS116+'[3]5.2 Asset Age Profile'!AS116","v":0},{"$f":"'[2]5.2 Asset Age Profile'!AT116+'[3]5.2 Asset Age Profile'!AT116","v":0},{"$f":"'[2]5.2 Asset Age Profile'!AU116+'[3]5.2 Asset Age Profile'!AU116","v":0},{"$f":"'[2]5.2 Asset Age Profile'!AV116+'[3]5.2 Asset Age Profile'!AV116","v":0},{"$f":"'[2]5.2 Asset Age Profile'!AW116+'[3]5.2 Asset Age Profile'!AW116","v":0},{"$f":"'[2]5.2 Asset Age Profile'!AX116+'[3]5.2 Asset Age Profile'!AX116","v":0},{"$f":"'[2]5.2 Asset Age Profile'!AY116+'[3]5.2 Asset Age Profile'!AY116","v":0},{"$f":"'[2]5.2 Asset Age Profile'!AZ116+'[3]5.2 Asset Age Profile'!AZ116","v":0},{"$f":"'[2]5.2 Asset Age Profile'!BA116+'[3]5.2 Asset Age Profile'!BA116","v":0},{"$f":"'[2]5.2 Asset Age Profile'!BB116+'[3]5.2 Asset Age Profile'!BB116","v":0},{"$f":"'[2]5.2 Asset Age Profile'!BC116+'[3]5.2 Asset Age Profile'!BC116","v":0},{"$f":"'[2]5.2 Asset Age Profile'!BD116+'[3]5.2 Asset Age Profile'!BD116","v":0},{"$f":"'[2]5.2 Asset Age Profile'!BE116+'[3]5.2 Asset Age Profile'!BE116","v":0},{"$f":"'[2]5.2 Asset Age Profile'!BF116+'[3]5.2 Asset Age Profile'!BF116","v":0},{"$f":"'[2]5.2 Asset Age Profile'!BG116+'[3]5.2 Asset Age Profile'!BG116","v":0},{"$f":"'[2]5.2 Asset Age Profile'!BH116+'[3]5.2 Asset Age Profile'!BH116","v":0},{"$f":"'[2]5.2 Asset Age Profile'!BI116+'[3]5.2 Asset Age Profile'!BI116","v":0},{"$f":"'[2]5.2 Asset Age Profile'!BJ116+'[3]5.2 Asset Age Profile'!BJ116","v":0},{"$f":"'[2]5.2 Asset Age Profile'!BK116+'[3]5.2 Asset Age Profile'!BK116","v":0},{"$f":"'[2]5.2 Asset Age Profile'!BL116+'[3]5.2 Asset Age Profile'!BL116","v":0},{"$f":"'[2]5.2 Asset Age Profile'!BM116+'[3]5.2 Asset Age Profile'!BM116","v":0},{"$f":"'[2]5.2 Asset Age Profile'!BN116+'[3]5.2 Asset Age Profile'!BN116","v":0},{"$f":"'[2]5.2 Asset Age Profile'!BO116+'[3]5.2 Asset Age Profile'!BO116","v":0},{"$f":"'[2]5.2 Asset Age Profile'!BP116+'[3]5.2 Asset Age Profile'!BP116","v":0},{"$f":"'[2]5.2 Asset Age Profile'!BQ116+'[3]5.2 Asset Age Profile'!BQ116","v":0},{"$f":"'[2]5.2 Asset Age Profile'!BR116+'[3]5.2 Asset Age Profile'!BR116","v":0},{"$f":"'[2]5.2 Asset Age Profile'!BS116+'[3]5.2 Asset Age Profile'!BS116","v":0},{"$f":"'[2]5.2 Asset Age Profile'!BT116+'[3]5.2 Asset Age Profile'!BT116","v":0},{"$f":"'[2]5.2 Asset Age Profile'!BU116+'[3]5.2 Asset Age Profile'!BU116","v":0},{"$f":"'[2]5.2 Asset Age Profile'!BV116+'[3]5.2 Asset Age Profile'!BV116","v":0},{"$f":"'[2]5.2 Asset Age Profile'!BW116+'[3]5.2 Asset Age Profile'!BW116","v":0},{"$f":"'[2]5.2 Asset Age Profile'!BX116+'[3]5.2 Asset Age Profile'!BX116","v":0},{"$f":"'[2]5.2 Asset Age Profile'!BY116+'[3]5.2 Asset Age Profile'!BY116","v":0},{"$f":"'[2]5.2 Asset Age Profile'!BZ116+'[3]5.2 Asset Age Profile'!BZ116","v":0},{"$f":"'[2]5.2 Asset Age Profile'!CA116+'[3]5.2 Asset Age Profile'!CA116","v":0},{"$f":"'[2]5.2 Asset Age Profile'!CB116+'[3]5.2 Asset Age Profile'!CB116","v":0},{"$f":"'[2]5.2 Asset Age Profile'!CC116+'[3]5.2 Asset Age Profile'!CC116","v":0},{"$f":"'[2]5.2 Asset Age Profile'!CD116+'[3]5.2 Asset Age Profile'!CD116","v":0},{"$f":"'[2]5.2 Asset Age Profile'!CE116+'[3]5.2 Asset Age Profile'!CE116","v":0},{"$f":"'[2]5.2 Asset Age Profile'!CF116+'[3]5.2 Asset Age Profile'!CF116","v":0},{"$f":"'[2]5.2 Asset Age Profile'!CG116+'[3]5.2 Asset Age Profile'!CG116","v":0},{"$f":"'[2]5.2 Asset Age Profile'!CH116+'[3]5.2 Asset Age Profile'!CH116","v":0},{"$f":"'[2]5.2 Asset Age Profile'!CI116+'[3]5.2 Asset Age Profile'!CI116","v":0},{"$f":"'[2]5.2 Asset Age Profile'!CJ116+'[3]5.2 Asset Age Profile'!CJ116","v":0},{"$f":"'[2]5.2 Asset Age Profile'!CK116+'[3]5.2 Asset Age Profile'!CK116","v":0},{"$f":"'[2]5.2 Asset Age Profile'!CL116+'[3]5.2 Asset Age Profile'!CL116","v":0},{"$f":"'[2]5.2 Asset Age Profile'!CM116+'[3]5.2 Asset Age Profile'!CM116","v":0},{"$f":"'[2]5.2 Asset Age Profile'!CN116+'[3]5.2 Asset Age Profile'!CN116","v":0},{"$f":"'[2]5.2 Asset Age Profile'!CO116+'[3]5.2 Asset Age Profile'!CO116","v":0},{"$f":"'[2]5.2 Asset Age Profile'!CP116+'[3]5.2 Asset Age Profile'!CP116","v":0},{"$f":"'[2]5.2 Asset Age Profile'!CQ116+'[3]5.2 Asset Age Profile'!CQ116","v":0},{"$f":"'[2]5.2 Asset Age Profile'!CR116+'[3]5.2 Asset Age Profile'!CR116","v":0},{"$f":"'[2]5.2 Asset Age Profile'!CS116+'[3]5.2 Asset Age Profile'!CS116","v":0},{"$f":"'[2]5.2 Asset Age Profile'!CT116+'[3]5.2 Asset Age Profile'!CT116","v":0},{"$f":"'[2]5.2 Asset Age Profile'!CU116+'[3]5.2 Asset Age Profile'!CU116","v":0},{"$f":"'[2]5.2 Asset Age Profile'!CV116+'[3]5.2 Asset Age Profile'!CV116","v":0},{"$f":"'[2]5.2 Asset Age Profile'!CW116+'[3]5.2 Asset Age Profile'!CW116","v":0},{"$f":"'[2]5.2 Asset Age Profile'!CX116+'[3]5.2 Asset Age Profile'!CX116","v":0},{"$f":"'[2]5.2 Asset Age Profile'!CY116+'[3]5.2 Asset Age Profile'!CY116","v":0},{"$f":"'[2]5.2 Asset Age Profile'!CZ116+'[3]5.2 Asset Age Profile'!CZ116","v":0},{"$f":"'[2]5.2 Asset Age Profile'!DA116+'[3]5.2 Asset Age Profile'!DA116","v":0},{"$f":"'[2]5.2 Asset Age Profile'!DB116+'[3]5.2 Asset Age Profile'!DB116","v":0},{"$f":"'[2]5.2 Asset Age Profile'!DC116+'[3]5.2 Asset Age Profile'!DC116","v":0},{"$f":"'[2]5.2 Asset Age Profile'!DD116+'[3]5.2 Asset Age Profile'!DD116","v":0},{"$f":"'[2]5.2 Asset Age Profile'!DE116+'[3]5.2 Asset Age Profile'!DE116","v":0},{"$f":"'[2]5.2 Asset Age Profile'!DF116+'[3]5.2 Asset Age Profile'!DF116","v":0},{"$f":"'[2]5.2 Asset Age Profile'!DG116+'[3]5.2 Asset Age Profile'!DG116","v":0},{"$f":"'[2]5.2 Asset Age Profile'!DH116+'[3]5.2 Asset Age Profile'!DH116","v":0},{"$f":"'[2]5.2 Asset Age Profile'!DI116+'[3]5.2 Asset Age Profile'!DI116","v":0},{"$f":"'[2]5.2 Asset Age Profile'!DJ116+'[3]5.2 Asset Age Profile'!DJ116","v":0},{"$f":"'[2]5.2 Asset Age Profile'!DK116+'[3]5.2 Asset Age Profile'!DK116","v":0},{"$f":"'[2]5.2 Asset Age Profile'!DL116+'[3]5.2 Asset Age Profile'!DL116","v":0},{"$f":"'[2]5.2 Asset Age Profile'!DM116+'[3]5.2 Asset Age Profile'!DM116","v":0},{"$f":"'[2]5.2 Asset Age Profile'!DN116+'[3]5.2 Asset Age Profile'!DN116","v":0},{"$f":"'[2]5.2 Asset Age Profile'!DO116+'[3]5.2 Asset Age Profile'!DO116","v":0},{"$f":"'[2]5.2 Asset Age Profile'!DP116+'[3]5.2 Asset Age Profile'!DP116","v":0},{"$f":"'[2]5.2 Asset Age Profile'!DQ116+'[3]5.2 Asset Age Profile'!DQ116","v":0},{"$f":"'[2]5.2 Asset Age Profile'!DR116+'[3]5.2 Asset Age Profile'!DR116","v":0},{"$f":"'[2]5.2 Asset Age Profile'!DS116+'[3]5.2 Asset Age Profile'!DS116","v":0},{"$f":"'[2]5.2 Asset Age Profile'!DT116+'[3]5.2 Asset Age Profile'!DT116","v":0},{"$f":"'[2]5.2 Asset Age Profile'!DU116+'[3]5.2 Asset Age Profile'!DU116","v":0},{"$f":"'[2]5.2 Asset Age Profile'!DV116+'[3]5.2 Asset Age Profile'!DV116","v":0},{"$f":"'[2]5.2 Asset Age Profile'!DW116+'[3]5.2 Asset Age Profile'!DW116","v":0},{"$f":"'[2]5.2 Asset Age Profile'!DX116+'[3]5.2 Asset Age Profile'!DX116","v":0},{"$f":"'[2]5.2 Asset Age Profile'!DY116+'[3]5.2 Asset Age Profile'!DY116","v":0},{"$f":"'[2]5.2 Asset Age Profile'!DZ116+'[3]5.2 Asset Age Profile'!DZ116","v":0},{"$f":"'[2]5.2 Asset Age Profile'!EA116+'[3]5.2 Asset Age Profile'!EA116","v":0},{"$f":"'[2]5.2 Asset Age Profile'!EB116+'[3]5.2 Asset Age Profile'!EB116","v":0},{"$f":"'[2]5.2 Asset Age Profile'!EC116+'[3]5.2 Asset Age Profile'!EC116","v":0},{"$f":"'[2]5.2 Asset Age Profile'!ED116+'[3]5.2 Asset Age Profile'!ED116","v":0},{"$f":"'[2]5.2 Asset Age Profile'!EE116+'[3]5.2 Asset Age Profile'!EE116","v":0},{"$f":"'[2]5.2 Asset Age Profile'!EF116+'[3]5.2 Asset Age Profile'!EF116","v":0},{"$f":"'[2]5.2 Asset Age Profile'!EG116+'[3]5.2 Asset Age Profile'!EG116","v":0},{"$f":"'[2]5.2 Asset Age Profile'!EH116+'[3]5.2 Asset Age Profile'!EH116","v":0},{"$f":"'[2]5.2 Asset Age Profile'!EI116+'[3]5.2 Asset Age Profile'!EI116","v":0},{"$f":"'[2]5.2 Asset Age Profile'!EJ116+'[3]5.2 Asset Age Profile'!EJ116","v":0}]
["ED_ASS521_00107",null,"Brackets ; Minor Road",null,"DNSP NAME","REPEX","PUBLIC LIGHTING","Brackets ; Minor Road","DESCRIPTOR METRIC","MEAN ECONOMIC LIFE","YEARS","NUMBER",null,{"$f":"'[2]5.2 Asset Age Profile'!N117+'[3]5.2 Asset Age Profile'!N117","v":0},{"$f":"'[2]5.2 Asset Age Profile'!O117+'[3]5.2 Asset Age Profile'!O117","v":0},{"$f":"'[2]5.2 Asset Age Profile'!P117+'[3]5.2 Asset Age Profile'!P117","v":0},{"$f":"'[2]5.2 Asset Age Profile'!Q117+'[3]5.2 Asset Age Profile'!Q117","v":0},{"$f":"'[2]5.2 Asset Age Profile'!R117+'[3]5.2 Asset Age Profile'!R117","v":0},{"$f":"'[2]5.2 Asset Age Profile'!S117+'[3]5.2 Asset Age Profile'!S117","v":0},{"$f":"'[2]5.2 Asset Age Profile'!T117+'[3]5.2 Asset Age Profile'!T117","v":0},{"$f":"'[2]5.2 Asset Age Profile'!U117+'[3]5.2 Asset Age Profile'!U117","v":0},{"$f":"'[2]5.2 Asset Age Profile'!V117+'[3]5.2 Asset Age Profile'!V117","v":0},{"$f":"'[2]5.2 Asset Age Profile'!W117+'[3]5.2 Asset Age Profile'!W117","v":0},{"$f":"'[2]5.2 Asset Age Profile'!X117+'[3]5.2 Asset Age Profile'!X117","v":0},{"$f":"'[2]5.2 Asset Age Profile'!Y117+'[3]5.2 Asset Age Profile'!Y117","v":0},{"$f":"'[2]5.2 Asset Age Profile'!Z117+'[3]5.2 Asset Age Profile'!Z117","v":0},{"$f":"'[2]5.2 Asset Age Profile'!AA117+'[3]5.2 Asset Age Profile'!AA117","v":0},{"$f":"'[2]5.2 Asset Age Profile'!AB117+'[3]5.2 Asset Age Profile'!AB117","v":0},{"$f":"'[2]5.2 Asset Age Profile'!AC117+'[3]5.2 Asset Age Profile'!AC117","v":0},{"$f":"'[2]5.2 Asset Age Profile'!AD117+'[3]5.2 Asset Age Profile'!AD117","v":0},{"$f":"'[2]5.2 Asset Age Profile'!AE117+'[3]5.2 Asset Age Profile'!AE117","v":0},{"$f":"'[2]5.2 Asset Age Profile'!AF117+'[3]5.2 Asset Age Profile'!AF117","v":0},{"$f":"'[2]5.2 Asset Age Profile'!AG117+'[3]5.2 Asset Age Profile'!AG117","v":0},{"$f":"'[2]5.2 Asset Age Profile'!AH117+'[3]5.2 Asset Age Profile'!AH117","v":0},{"$f":"'[2]5.2 Asset Age Profile'!AI117+'[3]5.2 Asset Age Profile'!AI117","v":0},{"$f":"'[2]5.2 Asset Age Profile'!AJ117+'[3]5.2 Asset Age Profile'!AJ117","v":0},{"$f":"'[2]5.2 Asset Age Profile'!AK117+'[3]5.2 Asset Age Profile'!AK117","v":0},{"$f":"'[2]5.2 Asset Age Profile'!AL117+'[3]5.2 Asset Age Profile'!AL117","v":0},{"$f":"'[2]5.2 Asset Age Profile'!AM117+'[3]5.2 Asset Age Profile'!AM117","v":0},{"$f":"'[2]5.2 Asset Age Profile'!AN117+'[3]5.2 Asset Age Profile'!AN117","v":0},{"$f":"'[2]5.2 Asset Age Profile'!AO117+'[3]5.2 Asset Age Profile'!AO117","v":0},{"$f":"'[2]5.2 Asset Age Profile'!AP117+'[3]5.2 Asset Age Profile'!AP117","v":0},{"$f":"'[2]5.2 Asset Age Profile'!AQ117+'[3]5.2 Asset Age Profile'!AQ117","v":0},{"$f":"'[2]5.2 Asset Age Profile'!AR117+'[3]5.2 Asset Age Profile'!AR117","v":0},{"$f":"'[2]5.2 Asset Age Profile'!AS117+'[3]5.2 Asset Age Profile'!AS117","v":0},{"$f":"'[2]5.2 Asset Age Profile'!AT117+'[3]5.2 Asset Age Profile'!AT117","v":0},{"$f":"'[2]5.2 Asset Age Profile'!AU117+'[3]5.2 Asset Age Profile'!AU117","v":0},{"$f":"'[2]5.2 Asset Age Profile'!AV117+'[3]5.2 Asset Age Profile'!AV117","v":0},{"$f":"'[2]5.2 Asset Age Profile'!AW117+'[3]5.2 Asset Age Profile'!AW117","v":0},{"$f":"'[2]5.2 Asset Age Profile'!AX117+'[3]5.2 Asset Age Profile'!AX117","v":0},{"$f":"'[2]5.2 Asset Age Profile'!AY117+'[3]5.2 Asset Age Profile'!AY117","v":0},{"$f":"'[2]5.2 Asset Age Profile'!AZ117+'[3]5.2 Asset Age Profile'!AZ117","v":0},{"$f":"'[2]5.2 Asset Age Profile'!BA117+'[3]5.2 Asset Age Profile'!BA117","v":0},{"$f":"'[2]5.2 Asset Age Profile'!BB117+'[3]5.2 Asset Age Profile'!BB117","v":0},{"$f":"'[2]5.2 Asset Age Profile'!BC117+'[3]5.2 Asset Age Profile'!BC117","v":0},{"$f":"'[2]5.2 Asset Age Profile'!BD117+'[3]5.2 Asset Age Profile'!BD117","v":0},{"$f":"'[2]5.2 Asset Age Profile'!BE117+'[3]5.2 Asset Age Profile'!BE117","v":0},{"$f":"'[2]5.2 Asset Age Profile'!BF117+'[3]5.2 Asset Age Profile'!BF117","v":0},{"$f":"'[2]5.2 Asset Age Profile'!BG117+'[3]5.2 Asset Age Profile'!BG117","v":0},{"$f":"'[2]5.2 Asset Age Profile'!BH117+'[3]5.2 Asset Age Profile'!BH117","v":0},{"$f":"'[2]5.2 Asset Age Profile'!BI117+'[3]5.2 Asset Age Profile'!BI117","v":0},{"$f":"'[2]5.2 Asset Age Profile'!BJ117+'[3]5.2 Asset Age Profile'!BJ117","v":0},{"$f":"'[2]5.2 Asset Age Profile'!BK117+'[3]5.2 Asset Age Profile'!BK117","v":0},{"$f":"'[2]5.2 Asset Age Profile'!BL117+'[3]5.2 Asset Age Profile'!BL117","v":0},{"$f":"'[2]5.2 Asset Age Profile'!BM117+'[3]5.2 Asset Age Profile'!BM117","v":0},{"$f":"'[2]5.2 Asset Age Profile'!BN117+'[3]5.2 Asset Age Profile'!BN117","v":0},{"$f":"'[2]5.2 Asset Age Profile'!BO117+'[3]5.2 Asset Age Profile'!BO117","v":0},{"$f":"'[2]5.2 Asset Age Profile'!BP117+'[3]5.2 Asset Age Profile'!BP117","v":0},{"$f":"'[2]5.2 Asset Age Profile'!BQ117+'[3]5.2 Asset Age Profile'!BQ117","v":0},{"$f":"'[2]5.2 Asset Age Profile'!BR117+'[3]5.2 Asset Age Profile'!BR117","v":0},{"$f":"'[2]5.2 Asset Age Profile'!BS117+'[3]5.2 Asset Age Profile'!BS117","v":0},{"$f":"'[2]5.2 Asset Age Profile'!BT117+'[3]5.2 Asset Age Profile'!BT117","v":0},{"$f":"'[2]5.2 Asset Age Profile'!BU117+'[3]5.2 Asset Age Profile'!BU117","v":0},{"$f":"'[2]5.2 Asset Age Profile'!BV117+'[3]5.2 Asset Age Profile'!BV117","v":0},{"$f":"'[2]5.2 Asset Age Profile'!BW117+'[3]5.2 Asset Age Profile'!BW117","v":0},{"$f":"'[2]5.2 Asset Age Profile'!BX117+'[3]5.2 Asset Age Profile'!BX117","v":0},{"$f":"'[2]5.2 Asset Age Profile'!BY117+'[3]5.2 Asset Age Profile'!BY117","v":0},{"$f":"'[2]5.2 Asset Age Profile'!BZ117+'[3]5.2 Asset Age Profile'!BZ117","v":0},{"$f":"'[2]5.2 Asset Age Profile'!CA117+'[3]5.2 Asset Age Profile'!CA117","v":0},{"$f":"'[2]5.2 Asset Age Profile'!CB117+'[3]5.2 Asset Age Profile'!CB117","v":0},{"$f":"'[2]5.2 Asset Age Profile'!CC117+'[3]5.2 Asset Age Profile'!CC117","v":0},{"$f":"'[2]5.2 Asset Age Profile'!CD117+'[3]5.2 Asset Age Profile'!CD117","v":0},{"$f":"'[2]5.2 Asset Age Profile'!CE117+'[3]5.2 Asset Age Profile'!CE117","v":0},{"$f":"'[2]5.2 Asset Age Profile'!CF117+'[3]5.2 Asset Age Profile'!CF117","v":0},{"$f":"'[2]5.2 Asset Age Profile'!CG117+'[3]5.2 Asset Age Profile'!CG117","v":0},{"$f":"'[2]5.2 Asset Age Profile'!CH117+'[3]5.2 Asset Age Profile'!CH117","v":0},{"$f":"'[2]5.2 Asset Age Profile'!CI117+'[3]5.2 Asset Age Profile'!CI117","v":0},{"$f":"'[2]5.2 Asset Age Profile'!CJ117+'[3]5.2 Asset Age Profile'!CJ117","v":0},{"$f":"'[2]5.2 Asset Age Profile'!CK117+'[3]5.2 Asset Age Profile'!CK117","v":0},{"$f":"'[2]5.2 Asset Age Profile'!CL117+'[3]5.2 Asset Age Profile'!CL117","v":0},{"$f":"'[2]5.2 Asset Age Profile'!CM117+'[3]5.2 Asset Age Profile'!CM117","v":0},{"$f":"'[2]5.2 Asset Age Profile'!CN117+'[3]5.2 Asset Age Profile'!CN117","v":0},{"$f":"'[2]5.2 Asset Age Profile'!CO117+'[3]5.2 Asset Age Profile'!CO117","v":0},{"$f":"'[2]5.2 Asset Age Profile'!CP117+'[3]5.2 Asset Age Profile'!CP117","v":0},{"$f":"'[2]5.2 Asset Age Profile'!CQ117+'[3]5.2 Asset Age Profile'!CQ117","v":0},{"$f":"'[2]5.2 Asset Age Profile'!CR117+'[3]5.2 Asset Age Profile'!CR117","v":0},{"$f":"'[2]5.2 Asset Age Profile'!CS117+'[3]5.2 Asset Age Profile'!CS117","v":0},{"$f":"'[2]5.2 Asset Age Profile'!CT117+'[3]5.2 Asset Age Profile'!CT117","v":0},{"$f":"'[2]5.2 Asset Age Profile'!CU117+'[3]5.2 Asset Age Profile'!CU117","v":0},{"$f":"'[2]5.2 Asset Age Profile'!CV117+'[3]5.2 Asset Age Profile'!CV117","v":0},{"$f":"'[2]5.2 Asset Age Profile'!CW117+'[3]5.2 Asset Age Profile'!CW117","v":0},{"$f":"'[2]5.2 Asset Age Profile'!CX117+'[3]5.2 Asset Age Profile'!CX117","v":0},{"$f":"'[2]5.2 Asset Age Profile'!CY117+'[3]5.2 Asset Age Profile'!CY117","v":0},{"$f":"'[2]5.2 Asset Age Profile'!CZ117+'[3]5.2 Asset Age Profile'!CZ117","v":0},{"$f":"'[2]5.2 Asset Age Profile'!DA117+'[3]5.2 Asset Age Profile'!DA117","v":0},{"$f":"'[2]5.2 Asset Age Profile'!DB117+'[3]5.2 Asset Age Profile'!DB117","v":0},{"$f":"'[2]5.2 Asset Age Profile'!DC117+'[3]5.2 Asset Age Profile'!DC117","v":0},{"$f":"'[2]5.2 Asset Age Profile'!DD117+'[3]5.2 Asset Age Profile'!DD117","v":0},{"$f":"'[2]5.2 Asset Age Profile'!DE117+'[3]5.2 Asset Age Profile'!DE117","v":0},{"$f":"'[2]5.2 Asset Age Profile'!DF117+'[3]5.2 Asset Age Profile'!DF117","v":0},{"$f":"'[2]5.2 Asset Age Profile'!DG117+'[3]5.2 Asset Age Profile'!DG117","v":0},{"$f":"'[2]5.2 Asset Age Profile'!DH117+'[3]5.2 Asset Age Profile'!DH117","v":0},{"$f":"'[2]5.2 Asset Age Profile'!DI117+'[3]5.2 Asset Age Profile'!DI117","v":0},{"$f":"'[2]5.2 Asset Age Profile'!DJ117+'[3]5.2 Asset Age Profile'!DJ117","v":0},{"$f":"'[2]5.2 Asset Age Profile'!DK117+'[3]5.2 Asset Age Profile'!DK117","v":0},{"$f":"'[2]5.2 Asset Age Profile'!DL117+'[3]5.2 Asset Age Profile'!DL117","v":0},{"$f":"'[2]5.2 Asset Age Profile'!DM117+'[3]5.2 Asset Age Profile'!DM117","v":0},{"$f":"'[2]5.2 Asset Age Profile'!DN117+'[3]5.2 Asset Age Profile'!DN117","v":0},{"$f":"'[2]5.2 Asset Age Profile'!DO117+'[3]5.2 Asset Age Profile'!DO117","v":0},{"$f":"'[2]5.2 Asset Age Profile'!DP117+'[3]5.2 Asset Age Profile'!DP117","v":0},{"$f":"'[2]5.2 Asset Age Profile'!DQ117+'[3]5.2 Asset Age Profile'!DQ117","v":0},{"$f":"'[2]5.2 Asset Age Profile'!DR117+'[3]5.2 Asset Age Profile'!DR117","v":0},{"$f":"'[2]5.2 Asset Age Profile'!DS117+'[3]5.2 Asset Age Profile'!DS117","v":0},{"$f":"'[2]5.2 Asset Age Profile'!DT117+'[3]5.2 Asset Age Profile'!DT117","v":0},{"$f":"'[2]5.2 Asset Age Profile'!DU117+'[3]5.2 Asset Age Profile'!DU117","v":0},{"$f":"'[2]5.2 Asset Age Profile'!DV117+'[3]5.2 Asset Age Profile'!DV117","v":0},{"$f":"'[2]5.2 Asset Age Profile'!DW117+'[3]5.2 Asset Age Profile'!DW117","v":0},{"$f":"'[2]5.2 Asset Age Profile'!DX117+'[3]5.2 Asset Age Profile'!DX117","v":0},{"$f":"'[2]5.2 Asset Age Profile'!DY117+'[3]5.2 Asset Age Profile'!DY117","v":0},{"$f":"'[2]5.2 Asset Age Profile'!DZ117+'[3]5.2 Asset Age Profile'!DZ117","v":0},{"$f":"'[2]5.2 Asset Age Profile'!EA117+'[3]5.2 Asset Age Profile'!EA117","v":0},{"$f":"'[2]5.2 Asset Age Profile'!EB117+'[3]5.2 Asset Age Profile'!EB117","v":0},{"$f":"'[2]5.2 Asset Age Profile'!EC117+'[3]5.2 Asset Age Profile'!EC117","v":0},{"$f":"'[2]5.2 Asset Age Profile'!ED117+'[3]5.2 Asset Age Profile'!ED117","v":0},{"$f":"'[2]5.2 Asset Age Profile'!EE117+'[3]5.2 Asset Age Profile'!EE117","v":0},{"$f":"'[2]5.2 Asset Age Profile'!EF117+'[3]5.2 Asset Age Profile'!EF117","v":0},{"$f":"'[2]5.2 Asset Age Profile'!EG117+'[3]5.2 Asset Age Profile'!EG117","v":0},{"$f":"'[2]5.2 Asset Age Profile'!EH117+'[3]5.2 Asset Age Profile'!EH117","v":0},{"$f":"'[2]5.2 Asset Age Profile'!EI117+'[3]5.2 Asset Age Profile'!EI117","v":0},{"$f":"'[2]5.2 Asset Age Profile'!EJ117+'[3]5.2 Asset Age Profile'!EJ117","v":0}]
["ED_ASS521_00108",null,"Lamps ; Major Road",null,"DNSP NAME","REPEX","PUBLIC LIGHTING","Lamps ; Major Road","DESCRIPTOR METRIC","MEAN ECONOMIC LIFE","YEARS","NUMBER",null,{"$f":"'[2]5.2 Asset Age Profile'!N118+'[3]5.2 Asset Age Profile'!N118","v":0},{"$f":"'[2]5.2 Asset Age Profile'!O118+'[3]5.2 Asset Age Profile'!O118","v":0},{"$f":"'[2]5.2 Asset Age Profile'!P118+'[3]5.2 Asset Age Profile'!P118","v":0},{"$f":"'[2]5.2 Asset Age Profile'!Q118+'[3]5.2 Asset Age Profile'!Q118","v":0},{"$f":"'[2]5.2 Asset Age Profile'!R118+'[3]5.2 Asset Age Profile'!R118","v":0},{"$f":"'[2]5.2 Asset Age Profile'!S118+'[3]5.2 Asset Age Profile'!S118","v":0},{"$f":"'[2]5.2 Asset Age Profile'!T118+'[3]5.2 Asset Age Profile'!T118","v":0},{"$f":"'[2]5.2 Asset Age Profile'!U118+'[3]5.2 Asset Age Profile'!U118","v":0},{"$f":"'[2]5.2 Asset Age Profile'!V118+'[3]5.2 Asset Age Profile'!V118","v":0},{"$f":"'[2]5.2 Asset Age Profile'!W118+'[3]5.2 Asset Age Profile'!W118","v":0},{"$f":"'[2]5.2 Asset Age Profile'!X118+'[3]5.2 Asset Age Profile'!X118","v":0},{"$f":"'[2]5.2 Asset Age Profile'!Y118+'[3]5.2 Asset Age Profile'!Y118","v":0},{"$f":"'[2]5.2 Asset Age Profile'!Z118+'[3]5.2 Asset Age Profile'!Z118","v":0},{"$f":"'[2]5.2 Asset Age Profile'!AA118+'[3]5.2 Asset Age Profile'!AA118","v":0},{"$f":"'[2]5.2 Asset Age Profile'!AB118+'[3]5.2 Asset Age Profile'!AB118","v":0},{"$f":"'[2]5.2 Asset Age Profile'!AC118+'[3]5.2 Asset Age Profile'!AC118","v":0},{"$f":"'[2]5.2 Asset Age Profile'!AD118+'[3]5.2 Asset Age Profile'!AD118","v":0},{"$f":"'[2]5.2 Asset Age Profile'!AE118+'[3]5.2 Asset Age Profile'!AE118","v":0},{"$f":"'[2]5.2 Asset Age Profile'!AF118+'[3]5.2 Asset Age Profile'!AF118","v":0},{"$f":"'[2]5.2 Asset Age Profile'!AG118+'[3]5.2 Asset Age Profile'!AG118","v":0},{"$f":"'[2]5.2 Asset Age Profile'!AH118+'[3]5.2 Asset Age Profile'!AH118","v":0},{"$f":"'[2]5.2 Asset Age Profile'!AI118+'[3]5.2 Asset Age Profile'!AI118","v":0},{"$f":"'[2]5.2 Asset Age Profile'!AJ118+'[3]5.2 Asset Age Profile'!AJ118","v":0},{"$f":"'[2]5.2 Asset Age Profile'!AK118+'[3]5.2 Asset Age Profile'!AK118","v":0},{"$f":"'[2]5.2 Asset Age Profile'!AL118+'[3]5.2 Asset Age Profile'!AL118","v":0},{"$f":"'[2]5.2 Asset Age Profile'!AM118+'[3]5.2 Asset Age Profile'!AM118","v":0},{"$f":"'[2]5.2 Asset Age Profile'!AN118+'[3]5.2 Asset Age Profile'!AN118","v":0},{"$f":"'[2]5.2 Asset Age Profile'!AO118+'[3]5.2 Asset Age Profile'!AO118","v":0},{"$f":"'[2]5.2 Asset Age Profile'!AP118+'[3]5.2 Asset Age Profile'!AP118","v":0},{"$f":"'[2]5.2 Asset Age Profile'!AQ118+'[3]5.2 Asset Age Profile'!AQ118","v":0},{"$f":"'[2]5.2 Asset Age Profile'!AR118+'[3]5.2 Asset Age Profile'!AR118","v":0},{"$f":"'[2]5.2 Asset Age Profile'!AS118+'[3]5.2 Asset Age Profile'!AS118","v":0},{"$f":"'[2]5.2 Asset Age Profile'!AT118+'[3]5.2 Asset Age Profile'!AT118","v":0},{"$f":"'[2]5.2 Asset Age Profile'!AU118+'[3]5.2 Asset Age Profile'!AU118","v":0},{"$f":"'[2]5.2 Asset Age Profile'!AV118+'[3]5.2 Asset Age Profile'!AV118","v":0},{"$f":"'[2]5.2 Asset Age Profile'!AW118+'[3]5.2 Asset Age Profile'!AW118","v":0},{"$f":"'[2]5.2 Asset Age Profile'!AX118+'[3]5.2 Asset Age Profile'!AX118","v":0},{"$f":"'[2]5.2 Asset Age Profile'!AY118+'[3]5.2 Asset Age Profile'!AY118","v":0},{"$f":"'[2]5.2 Asset Age Profile'!AZ118+'[3]5.2 Asset Age Profile'!AZ118","v":0},{"$f":"'[2]5.2 Asset Age Profile'!BA118+'[3]5.2 Asset Age Profile'!BA118","v":0},{"$f":"'[2]5.2 Asset Age Profile'!BB118+'[3]5.2 Asset Age Profile'!BB118","v":0},{"$f":"'[2]5.2 Asset Age Profile'!BC118+'[3]5.2 Asset Age Profile'!BC118","v":0},{"$f":"'[2]5.2 Asset Age Profile'!BD118+'[3]5.2 Asset Age Profile'!BD118","v":0},{"$f":"'[2]5.2 Asset Age Profile'!BE118+'[3]5.2 Asset Age Profile'!BE118","v":0},{"$f":"'[2]5.2 Asset Age Profile'!BF118+'[3]5.2 Asset Age Profile'!BF118","v":0},{"$f":"'[2]5.2 Asset Age Profile'!BG118+'[3]5.2 Asset Age Profile'!BG118","v":0},{"$f":"'[2]5.2 Asset Age Profile'!BH118+'[3]5.2 Asset Age Profile'!BH118","v":0},{"$f":"'[2]5.2 Asset Age Profile'!BI118+'[3]5.2 Asset Age Profile'!BI118","v":0},{"$f":"'[2]5.2 Asset Age Profile'!BJ118+'[3]5.2 Asset Age Profile'!BJ118","v":0},{"$f":"'[2]5.2 Asset Age Profile'!BK118+'[3]5.2 Asset Age Profile'!BK118","v":0},{"$f":"'[2]5.2 Asset Age Profile'!BL118+'[3]5.2 Asset Age Profile'!BL118","v":0},{"$f":"'[2]5.2 Asset Age Profile'!BM118+'[3]5.2 Asset Age Profile'!BM118","v":0},{"$f":"'[2]5.2 Asset Age Profile'!BN118+'[3]5.2 Asset Age Profile'!BN118","v":0},{"$f":"'[2]5.2 Asset Age Profile'!BO118+'[3]5.2 Asset Age Profile'!BO118","v":0},{"$f":"'[2]5.2 Asset Age Profile'!BP118+'[3]5.2 Asset Age Profile'!BP118","v":0},{"$f":"'[2]5.2 Asset Age Profile'!BQ118+'[3]5.2 Asset Age Profile'!BQ118","v":0},{"$f":"'[2]5.2 Asset Age Profile'!BR118+'[3]5.2 Asset Age Profile'!BR118","v":0},{"$f":"'[2]5.2 Asset Age Profile'!BS118+'[3]5.2 Asset Age Profile'!BS118","v":0},{"$f":"'[2]5.2 Asset Age Profile'!BT118+'[3]5.2 Asset Age Profile'!BT118","v":0},{"$f":"'[2]5.2 Asset Age Profile'!BU118+'[3]5.2 Asset Age Profile'!BU118","v":0},{"$f":"'[2]5.2 Asset Age Profile'!BV118+'[3]5.2 Asset Age Profile'!BV118","v":0},{"$f":"'[2]5.2 Asset Age Profile'!BW118+'[3]5.2 Asset Age Profile'!BW118","v":0},{"$f":"'[2]5.2 Asset Age Profile'!BX118+'[3]5.2 Asset Age Profile'!BX118","v":0},{"$f":"'[2]5.2 Asset Age Profile'!BY118+'[3]5.2 Asset Age Profile'!BY118","v":0},{"$f":"'[2]5.2 Asset Age Profile'!BZ118+'[3]5.2 Asset Age Profile'!BZ118","v":0},{"$f":"'[2]5.2 Asset Age Profile'!CA118+'[3]5.2 Asset Age Profile'!CA118","v":0},{"$f":"'[2]5.2 Asset Age Profile'!CB118+'[3]5.2 Asset Age Profile'!CB118","v":0},{"$f":"'[2]5.2 Asset Age Profile'!CC118+'[3]5.2 Asset Age Profile'!CC118","v":0},{"$f":"'[2]5.2 Asset Age Profile'!CD118+'[3]5.2 Asset Age Profile'!CD118","v":0},{"$f":"'[2]5.2 Asset Age Profile'!CE118+'[3]5.2 Asset Age Profile'!CE118","v":0},{"$f":"'[2]5.2 Asset Age Profile'!CF118+'[3]5.2 Asset Age Profile'!CF118","v":0},{"$f":"'[2]5.2 Asset Age Profile'!CG118+'[3]5.2 Asset Age Profile'!CG118","v":0},{"$f":"'[2]5.2 Asset Age Profile'!CH118+'[3]5.2 Asset Age Profile'!CH118","v":0},{"$f":"'[2]5.2 Asset Age Profile'!CI118+'[3]5.2 Asset Age Profile'!CI118","v":0},{"$f":"'[2]5.2 Asset Age Profile'!CJ118+'[3]5.2 Asset Age Profile'!CJ118","v":0},{"$f":"'[2]5.2 Asset Age Profile'!CK118+'[3]5.2 Asset Age Profile'!CK118","v":0},{"$f":"'[2]5.2 Asset Age Profile'!CL118+'[3]5.2 Asset Age Profile'!CL118","v":0},{"$f":"'[2]5.2 Asset Age Profile'!CM118+'[3]5.2 Asset Age Profile'!CM118","v":0},{"$f":"'[2]5.2 Asset Age Profile'!CN118+'[3]5.2 Asset Age Profile'!CN118","v":0},{"$f":"'[2]5.2 Asset Age Profile'!CO118+'[3]5.2 Asset Age Profile'!CO118","v":0},{"$f":"'[2]5.2 Asset Age Profile'!CP118+'[3]5.2 Asset Age Profile'!CP118","v":0},{"$f":"'[2]5.2 Asset Age Profile'!CQ118+'[3]5.2 Asset Age Profile'!CQ118","v":0},{"$f":"'[2]5.2 Asset Age Profile'!CR118+'[3]5.2 Asset Age Profile'!CR118","v":0},{"$f":"'[2]5.2 Asset Age Profile'!CS118+'[3]5.2 Asset Age Profile'!CS118","v":0},{"$f":"'[2]5.2 Asset Age Profile'!CT118+'[3]5.2 Asset Age Profile'!CT118","v":0},{"$f":"'[2]5.2 Asset Age Profile'!CU118+'[3]5.2 Asset Age Profile'!CU118","v":0},{"$f":"'[2]5.2 Asset Age Profile'!CV118+'[3]5.2 Asset Age Profile'!CV118","v":0},{"$f":"'[2]5.2 Asset Age Profile'!CW118+'[3]5.2 Asset Age Profile'!CW118","v":0},{"$f":"'[2]5.2 Asset Age Profile'!CX118+'[3]5.2 Asset Age Profile'!CX118","v":0},{"$f":"'[2]5.2 Asset Age Profile'!CY118+'[3]5.2 Asset Age Profile'!CY118","v":0},{"$f":"'[2]5.2 Asset Age Profile'!CZ118+'[3]5.2 Asset Age Profile'!CZ118","v":0},{"$f":"'[2]5.2 Asset Age Profile'!DA118+'[3]5.2 Asset Age Profile'!DA118","v":0},{"$f":"'[2]5.2 Asset Age Profile'!DB118+'[3]5.2 Asset Age Profile'!DB118","v":0},{"$f":"'[2]5.2 Asset Age Profile'!DC118+'[3]5.2 Asset Age Profile'!DC118","v":0},{"$f":"'[2]5.2 Asset Age Profile'!DD118+'[3]5.2 Asset Age Profile'!DD118","v":0},{"$f":"'[2]5.2 Asset Age Profile'!DE118+'[3]5.2 Asset Age Profile'!DE118","v":0},{"$f":"'[2]5.2 Asset Age Profile'!DF118+'[3]5.2 Asset Age Profile'!DF118","v":0},{"$f":"'[2]5.2 Asset Age Profile'!DG118+'[3]5.2 Asset Age Profile'!DG118","v":0},{"$f":"'[2]5.2 Asset Age Profile'!DH118+'[3]5.2 Asset Age Profile'!DH118","v":0},{"$f":"'[2]5.2 Asset Age Profile'!DI118+'[3]5.2 Asset Age Profile'!DI118","v":0},{"$f":"'[2]5.2 Asset Age Profile'!DJ118+'[3]5.2 Asset Age Profile'!DJ118","v":0},{"$f":"'[2]5.2 Asset Age Profile'!DK118+'[3]5.2 Asset Age Profile'!DK118","v":0},{"$f":"'[2]5.2 Asset Age Profile'!DL118+'[3]5.2 Asset Age Profile'!DL118","v":0},{"$f":"'[2]5.2 Asset Age Profile'!DM118+'[3]5.2 Asset Age Profile'!DM118","v":0},{"$f":"'[2]5.2 Asset Age Profile'!DN118+'[3]5.2 Asset Age Profile'!DN118","v":0},{"$f":"'[2]5.2 Asset Age Profile'!DO118+'[3]5.2 Asset Age Profile'!DO118","v":0},{"$f":"'[2]5.2 Asset Age Profile'!DP118+'[3]5.2 Asset Age Profile'!DP118","v":0},{"$f":"'[2]5.2 Asset Age Profile'!DQ118+'[3]5.2 Asset Age Profile'!DQ118","v":0},{"$f":"'[2]5.2 Asset Age Profile'!DR118+'[3]5.2 Asset Age Profile'!DR118","v":0},{"$f":"'[2]5.2 Asset Age Profile'!DS118+'[3]5.2 Asset Age Profile'!DS118","v":0},{"$f":"'[2]5.2 Asset Age Profile'!DT118+'[3]5.2 Asset Age Profile'!DT118","v":0},{"$f":"'[2]5.2 Asset Age Profile'!DU118+'[3]5.2 Asset Age Profile'!DU118","v":0},{"$f":"'[2]5.2 Asset Age Profile'!DV118+'[3]5.2 Asset Age Profile'!DV118","v":0},{"$f":"'[2]5.2 Asset Age Profile'!DW118+'[3]5.2 Asset Age Profile'!DW118","v":0},{"$f":"'[2]5.2 Asset Age Profile'!DX118+'[3]5.2 Asset Age Profile'!DX118","v":0},{"$f":"'[2]5.2 Asset Age Profile'!DY118+'[3]5.2 Asset Age Profile'!DY118","v":0},{"$f":"'[2]5.2 Asset Age Profile'!DZ118+'[3]5.2 Asset Age Profile'!DZ118","v":0},{"$f":"'[2]5.2 Asset Age Profile'!EA118+'[3]5.2 Asset Age Profile'!EA118","v":0},{"$f":"'[2]5.2 Asset Age Profile'!EB118+'[3]5.2 Asset Age Profile'!EB118","v":0},{"$f":"'[2]5.2 Asset Age Profile'!EC118+'[3]5.2 Asset Age Profile'!EC118","v":0},{"$f":"'[2]5.2 Asset Age Profile'!ED118+'[3]5.2 Asset Age Profile'!ED118","v":0},{"$f":"'[2]5.2 Asset Age Profile'!EE118+'[3]5.2 Asset Age Profile'!EE118","v":0},{"$f":"'[2]5.2 Asset Age Profile'!EF118+'[3]5.2 Asset Age Profile'!EF118","v":0},{"$f":"'[2]5.2 Asset Age Profile'!EG118+'[3]5.2 Asset Age Profile'!EG118","v":0},{"$f":"'[2]5.2 Asset Age Profile'!EH118+'[3]5.2 Asset Age Profile'!EH118","v":0},{"$f":"'[2]5.2 Asset Age Profile'!EI118+'[3]5.2 Asset Age Profile'!EI118","v":0},{"$f":"'[2]5.2 Asset Age Profile'!EJ118+'[3]5.2 Asset Age Profile'!EJ118","v":0}]
["ED_ASS521_00109",null,"Lamps ; Minor Road",null,"DNSP NAME","REPEX","PUBLIC LIGHTING","Lamps ; Minor Road","DESCRIPTOR METRIC","MEAN ECONOMIC LIFE","YEARS","NUMBER",null,{"$f":"'[2]5.2 Asset Age Profile'!N119+'[3]5.2 Asset Age Profile'!N119","v":0},{"$f":"'[2]5.2 Asset Age Profile'!O119+'[3]5.2 Asset Age Profile'!O119","v":0},{"$f":"'[2]5.2 Asset Age Profile'!P119+'[3]5.2 Asset Age Profile'!P119","v":0},{"$f":"'[2]5.2 Asset Age Profile'!Q119+'[3]5.2 Asset Age Profile'!Q119","v":0},{"$f":"'[2]5.2 Asset Age Profile'!R119+'[3]5.2 Asset Age Profile'!R119","v":0},{"$f":"'[2]5.2 Asset Age Profile'!S119+'[3]5.2 Asset Age Profile'!S119","v":0},{"$f":"'[2]5.2 Asset Age Profile'!T119+'[3]5.2 Asset Age Profile'!T119","v":0},{"$f":"'[2]5.2 Asset Age Profile'!U119+'[3]5.2 Asset Age Profile'!U119","v":0},{"$f":"'[2]5.2 Asset Age Profile'!V119+'[3]5.2 Asset Age Profile'!V119","v":0},{"$f":"'[2]5.2 Asset Age Profile'!W119+'[3]5.2 Asset Age Profile'!W119","v":0},{"$f":"'[2]5.2 Asset Age Profile'!X119+'[3]5.2 Asset Age Profile'!X119","v":0},{"$f":"'[2]5.2 Asset Age Profile'!Y119+'[3]5.2 Asset Age Profile'!Y119","v":0},{"$f":"'[2]5.2 Asset Age Profile'!Z119+'[3]5.2 Asset Age Profile'!Z119","v":0},{"$f":"'[2]5.2 Asset Age Profile'!AA119+'[3]5.2 Asset Age Profile'!AA119","v":0},{"$f":"'[2]5.2 Asset Age Profile'!AB119+'[3]5.2 Asset Age Profile'!AB119","v":0},{"$f":"'[2]5.2 Asset Age Profile'!AC119+'[3]5.2 Asset Age Profile'!AC119","v":0},{"$f":"'[2]5.2 Asset Age Profile'!AD119+'[3]5.2 Asset Age Profile'!AD119","v":0},{"$f":"'[2]5.2 Asset Age Profile'!AE119+'[3]5.2 Asset Age Profile'!AE119","v":0},{"$f":"'[2]5.2 Asset Age Profile'!AF119+'[3]5.2 Asset Age Profile'!AF119","v":0},{"$f":"'[2]5.2 Asset Age Profile'!AG119+'[3]5.2 Asset Age Profile'!AG119","v":0},{"$f":"'[2]5.2 Asset Age Profile'!AH119+'[3]5.2 Asset Age Profile'!AH119","v":0},{"$f":"'[2]5.2 Asset Age Profile'!AI119+'[3]5.2 Asset Age Profile'!AI119","v":0},{"$f":"'[2]5.2 Asset Age Profile'!AJ119+'[3]5.2 Asset Age Profile'!AJ119","v":0},{"$f":"'[2]5.2 Asset Age Profile'!AK119+'[3]5.2 Asset Age Profile'!AK119","v":0},{"$f":"'[2]5.2 Asset Age Profile'!AL119+'[3]5.2 Asset Age Profile'!AL119","v":0},{"$f":"'[2]5.2 Asset Age Profile'!AM119+'[3]5.2 Asset Age Profile'!AM119","v":0},{"$f":"'[2]5.2 Asset Age Profile'!AN119+'[3]5.2 Asset Age Profile'!AN119","v":0},{"$f":"'[2]5.2 Asset Age Profile'!AO119+'[3]5.2 Asset Age Profile'!AO119","v":0},{"$f":"'[2]5.2 Asset Age Profile'!AP119+'[3]5.2 Asset Age Profile'!AP119","v":0},{"$f":"'[2]5.2 Asset Age Profile'!AQ119+'[3]5.2 Asset Age Profile'!AQ119","v":0},{"$f":"'[2]5.2 Asset Age Profile'!AR119+'[3]5.2 Asset Age Profile'!AR119","v":0},{"$f":"'[2]5.2 Asset Age Profile'!AS119+'[3]5.2 Asset Age Profile'!AS119","v":0},{"$f":"'[2]5.2 Asset Age Profile'!AT119+'[3]5.2 Asset Age Profile'!AT119","v":0},{"$f":"'[2]5.2 Asset Age Profile'!AU119+'[3]5.2 Asset Age Profile'!AU119","v":0},{"$f":"'[2]5.2 Asset Age Profile'!AV119+'[3]5.2 Asset Age Profile'!AV119","v":0},{"$f":"'[2]5.2 Asset Age Profile'!AW119+'[3]5.2 Asset Age Profile'!AW119","v":0},{"$f":"'[2]5.2 Asset Age Profile'!AX119+'[3]5.2 Asset Age Profile'!AX119","v":0},{"$f":"'[2]5.2 Asset Age Profile'!AY119+'[3]5.2 Asset Age Profile'!AY119","v":0},{"$f":"'[2]5.2 Asset Age Profile'!AZ119+'[3]5.2 Asset Age Profile'!AZ119","v":0},{"$f":"'[2]5.2 Asset Age Profile'!BA119+'[3]5.2 Asset Age Profile'!BA119","v":0},{"$f":"'[2]5.2 Asset Age Profile'!BB119+'[3]5.2 Asset Age Profile'!BB119","v":0},{"$f":"'[2]5.2 Asset Age Profile'!BC119+'[3]5.2 Asset Age Profile'!BC119","v":0},{"$f":"'[2]5.2 Asset Age Profile'!BD119+'[3]5.2 Asset Age Profile'!BD119","v":0},{"$f":"'[2]5.2 Asset Age Profile'!BE119+'[3]5.2 Asset Age Profile'!BE119","v":0},{"$f":"'[2]5.2 Asset Age Profile'!BF119+'[3]5.2 Asset Age Profile'!BF119","v":0},{"$f":"'[2]5.2 Asset Age Profile'!BG119+'[3]5.2 Asset Age Profile'!BG119","v":0},{"$f":"'[2]5.2 Asset Age Profile'!BH119+'[3]5.2 Asset Age Profile'!BH119","v":0},{"$f":"'[2]5.2 Asset Age Profile'!BI119+'[3]5.2 Asset Age Profile'!BI119","v":0},{"$f":"'[2]5.2 Asset Age Profile'!BJ119+'[3]5.2 Asset Age Profile'!BJ119","v":0},{"$f":"'[2]5.2 Asset Age Profile'!BK119+'[3]5.2 Asset Age Profile'!BK119","v":0},{"$f":"'[2]5.2 Asset Age Profile'!BL119+'[3]5.2 Asset Age Profile'!BL119","v":0},{"$f":"'[2]5.2 Asset Age Profile'!BM119+'[3]5.2 Asset Age Profile'!BM119","v":0},{"$f":"'[2]5.2 Asset Age Profile'!BN119+'[3]5.2 Asset Age Profile'!BN119","v":0},{"$f":"'[2]5.2 Asset Age Profile'!BO119+'[3]5.2 Asset Age Profile'!BO119","v":0},{"$f":"'[2]5.2 Asset Age Profile'!BP119+'[3]5.2 Asset Age Profile'!BP119","v":0},{"$f":"'[2]5.2 Asset Age Profile'!BQ119+'[3]5.2 Asset Age Profile'!BQ119","v":0},{"$f":"'[2]5.2 Asset Age Profile'!BR119+'[3]5.2 Asset Age Profile'!BR119","v":0},{"$f":"'[2]5.2 Asset Age Profile'!BS119+'[3]5.2 Asset Age Profile'!BS119","v":0},{"$f":"'[2]5.2 Asset Age Profile'!BT119+'[3]5.2 Asset Age Profile'!BT119","v":0},{"$f":"'[2]5.2 Asset Age Profile'!BU119+'[3]5.2 Asset Age Profile'!BU119","v":0},{"$f":"'[2]5.2 Asset Age Profile'!BV119+'[3]5.2 Asset Age Profile'!BV119","v":0},{"$f":"'[2]5.2 Asset Age Profile'!BW119+'[3]5.2 Asset Age Profile'!BW119","v":0},{"$f":"'[2]5.2 Asset Age Profile'!BX119+'[3]5.2 Asset Age Profile'!BX119","v":0},{"$f":"'[2]5.2 Asset Age Profile'!BY119+'[3]5.2 Asset Age Profile'!BY119","v":0},{"$f":"'[2]5.2 Asset Age Profile'!BZ119+'[3]5.2 Asset Age Profile'!BZ119","v":0},{"$f":"'[2]5.2 Asset Age Profile'!CA119+'[3]5.2 Asset Age Profile'!CA119","v":0},{"$f":"'[2]5.2 Asset Age Profile'!CB119+'[3]5.2 Asset Age Profile'!CB119","v":0},{"$f":"'[2]5.2 Asset Age Profile'!CC119+'[3]5.2 Asset Age Profile'!CC119","v":0},{"$f":"'[2]5.2 Asset Age Profile'!CD119+'[3]5.2 Asset Age Profile'!CD119","v":0},{"$f":"'[2]5.2 Asset Age Profile'!CE119+'[3]5.2 Asset Age Profile'!CE119","v":0},{"$f":"'[2]5.2 Asset Age Profile'!CF119+'[3]5.2 Asset Age Profile'!CF119","v":0},{"$f":"'[2]5.2 Asset Age Profile'!CG119+'[3]5.2 Asset Age Profile'!CG119","v":0},{"$f":"'[2]5.2 Asset Age Profile'!CH119+'[3]5.2 Asset Age Profile'!CH119","v":0},{"$f":"'[2]5.2 Asset Age Profile'!CI119+'[3]5.2 Asset Age Profile'!CI119","v":0},{"$f":"'[2]5.2 Asset Age Profile'!CJ119+'[3]5.2 Asset Age Profile'!CJ119","v":0},{"$f":"'[2]5.2 Asset Age Profile'!CK119+'[3]5.2 Asset Age Profile'!CK119","v":0},{"$f":"'[2]5.2 Asset Age Profile'!CL119+'[3]5.2 Asset Age Profile'!CL119","v":0},{"$f":"'[2]5.2 Asset Age Profile'!CM119+'[3]5.2 Asset Age Profile'!CM119","v":0},{"$f":"'[2]5.2 Asset Age Profile'!CN119+'[3]5.2 Asset Age Profile'!CN119","v":0},{"$f":"'[2]5.2 Asset Age Profile'!CO119+'[3]5.2 Asset Age Profile'!CO119","v":0},{"$f":"'[2]5.2 Asset Age Profile'!CP119+'[3]5.2 Asset Age Profile'!CP119","v":0},{"$f":"'[2]5.2 Asset Age Profile'!CQ119+'[3]5.2 Asset Age Profile'!CQ119","v":0},{"$f":"'[2]5.2 Asset Age Profile'!CR119+'[3]5.2 Asset Age Profile'!CR119","v":0},{"$f":"'[2]5.2 Asset Age Profile'!CS119+'[3]5.2 Asset Age Profile'!CS119","v":0},{"$f":"'[2]5.2 Asset Age Profile'!CT119+'[3]5.2 Asset Age Profile'!CT119","v":0},{"$f":"'[2]5.2 Asset Age Profile'!CU119+'[3]5.2 Asset Age Profile'!CU119","v":0},{"$f":"'[2]5.2 Asset Age Profile'!CV119+'[3]5.2 Asset Age Profile'!CV119","v":0},{"$f":"'[2]5.2 Asset Age Profile'!CW119+'[3]5.2 Asset Age Profile'!CW119","v":0},{"$f":"'[2]5.2 Asset Age Profile'!CX119+'[3]5.2 Asset Age Profile'!CX119","v":0},{"$f":"'[2]5.2 Asset Age Profile'!CY119+'[3]5.2 Asset Age Profile'!CY119","v":0},{"$f":"'[2]5.2 Asset Age Profile'!CZ119+'[3]5.2 Asset Age Profile'!CZ119","v":0},{"$f":"'[2]5.2 Asset Age Profile'!DA119+'[3]5.2 Asset Age Profile'!DA119","v":0},{"$f":"'[2]5.2 Asset Age Profile'!DB119+'[3]5.2 Asset Age Profile'!DB119","v":0},{"$f":"'[2]5.2 Asset Age Profile'!DC119+'[3]5.2 Asset Age Profile'!DC119","v":0},{"$f":"'[2]5.2 Asset Age Profile'!DD119+'[3]5.2 Asset Age Profile'!DD119","v":0},{"$f":"'[2]5.2 Asset Age Profile'!DE119+'[3]5.2 Asset Age Profile'!DE119","v":0},{"$f":"'[2]5.2 Asset Age Profile'!DF119+'[3]5.2 Asset Age Profile'!DF119","v":0},{"$f":"'[2]5.2 Asset Age Profile'!DG119+'[3]5.2 Asset Age Profile'!DG119","v":0},{"$f":"'[2]5.2 Asset Age Profile'!DH119+'[3]5.2 Asset Age Profile'!DH119","v":0},{"$f":"'[2]5.2 Asset Age Profile'!DI119+'[3]5.2 Asset Age Profile'!DI119","v":0},{"$f":"'[2]5.2 Asset Age Profile'!DJ119+'[3]5.2 Asset Age Profile'!DJ119","v":0},{"$f":"'[2]5.2 Asset Age Profile'!DK119+'[3]5.2 Asset Age Profile'!DK119","v":0},{"$f":"'[2]5.2 Asset Age Profile'!DL119+'[3]5.2 Asset Age Profile'!DL119","v":0},{"$f":"'[2]5.2 Asset Age Profile'!DM119+'[3]5.2 Asset Age Profile'!DM119","v":0},{"$f":"'[2]5.2 Asset Age Profile'!DN119+'[3]5.2 Asset Age Profile'!DN119","v":0},{"$f":"'[2]5.2 Asset Age Profile'!DO119+'[3]5.2 Asset Age Profile'!DO119","v":0},{"$f":"'[2]5.2 Asset Age Profile'!DP119+'[3]5.2 Asset Age Profile'!DP119","v":0},{"$f":"'[2]5.2 Asset Age Profile'!DQ119+'[3]5.2 Asset Age Profile'!DQ119","v":0},{"$f":"'[2]5.2 Asset Age Profile'!DR119+'[3]5.2 Asset Age Profile'!DR119","v":0},{"$f":"'[2]5.2 Asset Age Profile'!DS119+'[3]5.2 Asset Age Profile'!DS119","v":0},{"$f":"'[2]5.2 Asset Age Profile'!DT119+'[3]5.2 Asset Age Profile'!DT119","v":0},{"$f":"'[2]5.2 Asset Age Profile'!DU119+'[3]5.2 Asset Age Profile'!DU119","v":0},{"$f":"'[2]5.2 Asset Age Profile'!DV119+'[3]5.2 Asset Age Profile'!DV119","v":0},{"$f":"'[2]5.2 Asset Age Profile'!DW119+'[3]5.2 Asset Age Profile'!DW119","v":0},{"$f":"'[2]5.2 Asset Age Profile'!DX119+'[3]5.2 Asset Age Profile'!DX119","v":0},{"$f":"'[2]5.2 Asset Age Profile'!DY119+'[3]5.2 Asset Age Profile'!DY119","v":0},{"$f":"'[2]5.2 Asset Age Profile'!DZ119+'[3]5.2 Asset Age Profile'!DZ119","v":0},{"$f":"'[2]5.2 Asset Age Profile'!EA119+'[3]5.2 Asset Age Profile'!EA119","v":0},{"$f":"'[2]5.2 Asset Age Profile'!EB119+'[3]5.2 Asset Age Profile'!EB119","v":0},{"$f":"'[2]5.2 Asset Age Profile'!EC119+'[3]5.2 Asset Age Profile'!EC119","v":0},{"$f":"'[2]5.2 Asset Age Profile'!ED119+'[3]5.2 Asset Age Profile'!ED119","v":0},{"$f":"'[2]5.2 Asset Age Profile'!EE119+'[3]5.2 Asset Age Profile'!EE119","v":0},{"$f":"'[2]5.2 Asset Age Profile'!EF119+'[3]5.2 Asset Age Profile'!EF119","v":0},{"$f":"'[2]5.2 Asset Age Profile'!EG119+'[3]5.2 Asset Age Profile'!EG119","v":0},{"$f":"'[2]5.2 Asset Age Profile'!EH119+'[3]5.2 Asset Age Profile'!EH119","v":0},{"$f":"'[2]5.2 Asset Age Profile'!EI119+'[3]5.2 Asset Age Profile'!EI119","v":0},{"$f":"'[2]5.2 Asset Age Profile'!EJ119+'[3]5.2 Asset Age Profile'!EJ119","v":0}]
["ED_ASS521_00110",null,"Poles / Columns ; Major Road",null,"DNSP NAME","REPEX","PUBLIC LIGHTING","Poles / Columns ; Major Road","DESCRIPTOR METRIC","MEAN ECONOMIC LIFE","YEARS","NUMBER",null,{"$f":"'[2]5.2 Asset Age Profile'!N120+'[3]5.2 Asset Age Profile'!N120","v":0},{"$f":"'[2]5.2 Asset Age Profile'!O120+'[3]5.2 Asset Age Profile'!O120","v":0},{"$f":"'[2]5.2 Asset Age Profile'!P120+'[3]5.2 Asset Age Profile'!P120","v":0},{"$f":"'[2]5.2 Asset Age Profile'!Q120+'[3]5.2 Asset Age Profile'!Q120","v":0},{"$f":"'[2]5.2 Asset Age Profile'!R120+'[3]5.2 Asset Age Profile'!R120","v":0},{"$f":"'[2]5.2 Asset Age Profile'!S120+'[3]5.2 Asset Age Profile'!S120","v":0},{"$f":"'[2]5.2 Asset Age Profile'!T120+'[3]5.2 Asset Age Profile'!T120","v":0},{"$f":"'[2]5.2 Asset Age Profile'!U120+'[3]5.2 Asset Age Profile'!U120","v":0},{"$f":"'[2]5.2 Asset Age Profile'!V120+'[3]5.2 Asset Age Profile'!V120","v":0},{"$f":"'[2]5.2 Asset Age Profile'!W120+'[3]5.2 Asset Age Profile'!W120","v":0},{"$f":"'[2]5.2 Asset Age Profile'!X120+'[3]5.2 Asset Age Profile'!X120","v":0},{"$f":"'[2]5.2 Asset Age Profile'!Y120+'[3]5.2 Asset Age Profile'!Y120","v":0},{"$f":"'[2]5.2 Asset Age Profile'!Z120+'[3]5.2 Asset Age Profile'!Z120","v":0},{"$f":"'[2]5.2 Asset Age Profile'!AA120+'[3]5.2 Asset Age Profile'!AA120","v":0},{"$f":"'[2]5.2 Asset Age Profile'!AB120+'[3]5.2 Asset Age Profile'!AB120","v":0},{"$f":"'[2]5.2 Asset Age Profile'!AC120+'[3]5.2 Asset Age Profile'!AC120","v":0},{"$f":"'[2]5.2 Asset Age Profile'!AD120+'[3]5.2 Asset Age Profile'!AD120","v":0},{"$f":"'[2]5.2 Asset Age Profile'!AE120+'[3]5.2 Asset Age Profile'!AE120","v":0},{"$f":"'[2]5.2 Asset Age Profile'!AF120+'[3]5.2 Asset Age Profile'!AF120","v":0},{"$f":"'[2]5.2 Asset Age Profile'!AG120+'[3]5.2 Asset Age Profile'!AG120","v":0},{"$f":"'[2]5.2 Asset Age Profile'!AH120+'[3]5.2 Asset Age Profile'!AH120","v":0},{"$f":"'[2]5.2 Asset Age Profile'!AI120+'[3]5.2 Asset Age Profile'!AI120","v":0},{"$f":"'[2]5.2 Asset Age Profile'!AJ120+'[3]5.2 Asset Age Profile'!AJ120","v":0},{"$f":"'[2]5.2 Asset Age Profile'!AK120+'[3]5.2 Asset Age Profile'!AK120","v":0},{"$f":"'[2]5.2 Asset Age Profile'!AL120+'[3]5.2 Asset Age Profile'!AL120","v":0},{"$f":"'[2]5.2 Asset Age Profile'!AM120+'[3]5.2 Asset Age Profile'!AM120","v":0},{"$f":"'[2]5.2 Asset Age Profile'!AN120+'[3]5.2 Asset Age Profile'!AN120","v":0},{"$f":"'[2]5.2 Asset Age Profile'!AO120+'[3]5.2 Asset Age Profile'!AO120","v":0},{"$f":"'[2]5.2 Asset Age Profile'!AP120+'[3]5.2 Asset Age Profile'!AP120","v":0},{"$f":"'[2]5.2 Asset Age Profile'!AQ120+'[3]5.2 Asset Age Profile'!AQ120","v":0},{"$f":"'[2]5.2 Asset Age Profile'!AR120+'[3]5.2 Asset Age Profile'!AR120","v":0},{"$f":"'[2]5.2 Asset Age Profile'!AS120+'[3]5.2 Asset Age Profile'!AS120","v":0},{"$f":"'[2]5.2 Asset Age Profile'!AT120+'[3]5.2 Asset Age Profile'!AT120","v":0},{"$f":"'[2]5.2 Asset Age Profile'!AU120+'[3]5.2 Asset Age Profile'!AU120","v":0},{"$f":"'[2]5.2 Asset Age Profile'!AV120+'[3]5.2 Asset Age Profile'!AV120","v":0},{"$f":"'[2]5.2 Asset Age Profile'!AW120+'[3]5.2 Asset Age Profile'!AW120","v":0},{"$f":"'[2]5.2 Asset Age Profile'!AX120+'[3]5.2 Asset Age Profile'!AX120","v":0},{"$f":"'[2]5.2 Asset Age Profile'!AY120+'[3]5.2 Asset Age Profile'!AY120","v":0},{"$f":"'[2]5.2 Asset Age Profile'!AZ120+'[3]5.2 Asset Age Profile'!AZ120","v":0},{"$f":"'[2]5.2 Asset Age Profile'!BA120+'[3]5.2 Asset Age Profile'!BA120","v":0},{"$f":"'[2]5.2 Asset Age Profile'!BB120+'[3]5.2 Asset Age Profile'!BB120","v":0},{"$f":"'[2]5.2 Asset Age Profile'!BC120+'[3]5.2 Asset Age Profile'!BC120","v":0},{"$f":"'[2]5.2 Asset Age Profile'!BD120+'[3]5.2 Asset Age Profile'!BD120","v":0},{"$f":"'[2]5.2 Asset Age Profile'!BE120+'[3]5.2 Asset Age Profile'!BE120","v":0},{"$f":"'[2]5.2 Asset Age Profile'!BF120+'[3]5.2 Asset Age Profile'!BF120","v":0},{"$f":"'[2]5.2 Asset Age Profile'!BG120+'[3]5.2 Asset Age Profile'!BG120","v":0},{"$f":"'[2]5.2 Asset Age Profile'!BH120+'[3]5.2 Asset Age Profile'!BH120","v":0},{"$f":"'[2]5.2 Asset Age Profile'!BI120+'[3]5.2 Asset Age Profile'!BI120","v":0},{"$f":"'[2]5.2 Asset Age Profile'!BJ120+'[3]5.2 Asset Age Profile'!BJ120","v":0},{"$f":"'[2]5.2 Asset Age Profile'!BK120+'[3]5.2 Asset Age Profile'!BK120","v":0},{"$f":"'[2]5.2 Asset Age Profile'!BL120+'[3]5.2 Asset Age Profile'!BL120","v":0},{"$f":"'[2]5.2 Asset Age Profile'!BM120+'[3]5.2 Asset Age Profile'!BM120","v":0},{"$f":"'[2]5.2 Asset Age Profile'!BN120+'[3]5.2 Asset Age Profile'!BN120","v":0},{"$f":"'[2]5.2 Asset Age Profile'!BO120+'[3]5.2 Asset Age Profile'!BO120","v":0},{"$f":"'[2]5.2 Asset Age Profile'!BP120+'[3]5.2 Asset Age Profile'!BP120","v":0},{"$f":"'[2]5.2 Asset Age Profile'!BQ120+'[3]5.2 Asset Age Profile'!BQ120","v":0},{"$f":"'[2]5.2 Asset Age Profile'!BR120+'[3]5.2 Asset Age Profile'!BR120","v":0},{"$f":"'[2]5.2 Asset Age Profile'!BS120+'[3]5.2 Asset Age Profile'!BS120","v":0},{"$f":"'[2]5.2 Asset Age Profile'!BT120+'[3]5.2 Asset Age Profile'!BT120","v":0},{"$f":"'[2]5.2 Asset Age Profile'!BU120+'[3]5.2 Asset Age Profile'!BU120","v":0},{"$f":"'[2]5.2 Asset Age Profile'!BV120+'[3]5.2 Asset Age Profile'!BV120","v":0},{"$f":"'[2]5.2 Asset Age Profile'!BW120+'[3]5.2 Asset Age Profile'!BW120","v":0},{"$f":"'[2]5.2 Asset Age Profile'!BX120+'[3]5.2 Asset Age Profile'!BX120","v":0},{"$f":"'[2]5.2 Asset Age Profile'!BY120+'[3]5.2 Asset Age Profile'!BY120","v":0},{"$f":"'[2]5.2 Asset Age Profile'!BZ120+'[3]5.2 Asset Age Profile'!BZ120","v":0},{"$f":"'[2]5.2 Asset Age Profile'!CA120+'[3]5.2 Asset Age Profile'!CA120","v":0},{"$f":"'[2]5.2 Asset Age Profile'!CB120+'[3]5.2 Asset Age Profile'!CB120","v":0},{"$f":"'[2]5.2 Asset Age Profile'!CC120+'[3]5.2 Asset Age Profile'!CC120","v":0},{"$f":"'[2]5.2 Asset Age Profile'!CD120+'[3]5.2 Asset Age Profile'!CD120","v":0},{"$f":"'[2]5.2 Asset Age Profile'!CE120+'[3]5.2 Asset Age Profile'!CE120","v":0},{"$f":"'[2]5.2 Asset Age Profile'!CF120+'[3]5.2 Asset Age Profile'!CF120","v":0},{"$f":"'[2]5.2 Asset Age Profile'!CG120+'[3]5.2 Asset Age Profile'!CG120","v":0},{"$f":"'[2]5.2 Asset Age Profile'!CH120+'[3]5.2 Asset Age Profile'!CH120","v":0},{"$f":"'[2]5.2 Asset Age Profile'!CI120+'[3]5.2 Asset Age Profile'!CI120","v":0},{"$f":"'[2]5.2 Asset Age Profile'!CJ120+'[3]5.2 Asset Age Profile'!CJ120","v":0},{"$f":"'[2]5.2 Asset Age Profile'!CK120+'[3]5.2 Asset Age Profile'!CK120","v":0},{"$f":"'[2]5.2 Asset Age Profile'!CL120+'[3]5.2 Asset Age Profile'!CL120","v":0},{"$f":"'[2]5.2 Asset Age Profile'!CM120+'[3]5.2 Asset Age Profile'!CM120","v":0},{"$f":"'[2]5.2 Asset Age Profile'!CN120+'[3]5.2 Asset Age Profile'!CN120","v":0},{"$f":"'[2]5.2 Asset Age Profile'!CO120+'[3]5.2 Asset Age Profile'!CO120","v":0},{"$f":"'[2]5.2 Asset Age Profile'!CP120+'[3]5.2 Asset Age Profile'!CP120","v":0},{"$f":"'[2]5.2 Asset Age Profile'!CQ120+'[3]5.2 Asset Age Profile'!CQ120","v":0},{"$f":"'[2]5.2 Asset Age Profile'!CR120+'[3]5.2 Asset Age Profile'!CR120","v":0},{"$f":"'[2]5.2 Asset Age Profile'!CS120+'[3]5.2 Asset Age Profile'!CS120","v":0},{"$f":"'[2]5.2 Asset Age Profile'!CT120+'[3]5.2 Asset Age Profile'!CT120","v":0},{"$f":"'[2]5.2 Asset Age Profile'!CU120+'[3]5.2 Asset Age Profile'!CU120","v":0},{"$f":"'[2]5.2 Asset Age Profile'!CV120+'[3]5.2 Asset Age Profile'!CV120","v":0},{"$f":"'[2]5.2 Asset Age Profile'!CW120+'[3]5.2 Asset Age Profile'!CW120","v":0},{"$f":"'[2]5.2 Asset Age Profile'!CX120+'[3]5.2 Asset Age Profile'!CX120","v":0},{"$f":"'[2]5.2 Asset Age Profile'!CY120+'[3]5.2 Asset Age Profile'!CY120","v":0},{"$f":"'[2]5.2 Asset Age Profile'!CZ120+'[3]5.2 Asset Age Profile'!CZ120","v":0},{"$f":"'[2]5.2 Asset Age Profile'!DA120+'[3]5.2 Asset Age Profile'!DA120","v":0},{"$f":"'[2]5.2 Asset Age Profile'!DB120+'[3]5.2 Asset Age Profile'!DB120","v":0},{"$f":"'[2]5.2 Asset Age Profile'!DC120+'[3]5.2 Asset Age Profile'!DC120","v":0},{"$f":"'[2]5.2 Asset Age Profile'!DD120+'[3]5.2 Asset Age Profile'!DD120","v":0},{"$f":"'[2]5.2 Asset Age Profile'!DE120+'[3]5.2 Asset Age Profile'!DE120","v":0},{"$f":"'[2]5.2 Asset Age Profile'!DF120+'[3]5.2 Asset Age Profile'!DF120","v":0},{"$f":"'[2]5.2 Asset Age Profile'!DG120+'[3]5.2 Asset Age Profile'!DG120","v":0},{"$f":"'[2]5.2 Asset Age Profile'!DH120+'[3]5.2 Asset Age Profile'!DH120","v":0},{"$f":"'[2]5.2 Asset Age Profile'!DI120+'[3]5.2 Asset Age Profile'!DI120","v":0},{"$f":"'[2]5.2 Asset Age Profile'!DJ120+'[3]5.2 Asset Age Profile'!DJ120","v":0},{"$f":"'[2]5.2 Asset Age Profile'!DK120+'[3]5.2 Asset Age Profile'!DK120","v":0},{"$f":"'[2]5.2 Asset Age Profile'!DL120+'[3]5.2 Asset Age Profile'!DL120","v":0},{"$f":"'[2]5.2 Asset Age Profile'!DM120+'[3]5.2 Asset Age Profile'!DM120","v":0},{"$f":"'[2]5.2 Asset Age Profile'!DN120+'[3]5.2 Asset Age Profile'!DN120","v":0},{"$f":"'[2]5.2 Asset Age Profile'!DO120+'[3]5.2 Asset Age Profile'!DO120","v":0},{"$f":"'[2]5.2 Asset Age Profile'!DP120+'[3]5.2 Asset Age Profile'!DP120","v":0},{"$f":"'[2]5.2 Asset Age Profile'!DQ120+'[3]5.2 Asset Age Profile'!DQ120","v":0},{"$f":"'[2]5.2 Asset Age Profile'!DR120+'[3]5.2 Asset Age Profile'!DR120","v":0},{"$f":"'[2]5.2 Asset Age Profile'!DS120+'[3]5.2 Asset Age Profile'!DS120","v":0},{"$f":"'[2]5.2 Asset Age Profile'!DT120+'[3]5.2 Asset Age Profile'!DT120","v":0},{"$f":"'[2]5.2 Asset Age Profile'!DU120+'[3]5.2 Asset Age Profile'!DU120","v":0},{"$f":"'[2]5.2 Asset Age Profile'!DV120+'[3]5.2 Asset Age Profile'!DV120","v":0},{"$f":"'[2]5.2 Asset Age Profile'!DW120+'[3]5.2 Asset Age Profile'!DW120","v":0},{"$f":"'[2]5.2 Asset Age Profile'!DX120+'[3]5.2 Asset Age Profile'!DX120","v":0},{"$f":"'[2]5.2 Asset Age Profile'!DY120+'[3]5.2 Asset Age Profile'!DY120","v":0},{"$f":"'[2]5.2 Asset Age Profile'!DZ120+'[3]5.2 Asset Age Profile'!DZ120","v":0},{"$f":"'[2]5.2 Asset Age Profile'!EA120+'[3]5.2 Asset Age Profile'!EA120","v":0},{"$f":"'[2]5.2 Asset Age Profile'!EB120+'[3]5.2 Asset Age Profile'!EB120","v":0},{"$f":"'[2]5.2 Asset Age Profile'!EC120+'[3]5.2 Asset Age Profile'!EC120","v":0},{"$f":"'[2]5.2 Asset Age Profile'!ED120+'[3]5.2 Asset Age Profile'!ED120","v":0},{"$f":"'[2]5.2 Asset Age Profile'!EE120+'[3]5.2 Asset Age Profile'!EE120","v":0},{"$f":"'[2]5.2 Asset Age Profile'!EF120+'[3]5.2 Asset Age Profile'!EF120","v":0},{"$f":"'[2]5.2 Asset Age Profile'!EG120+'[3]5.2 Asset Age Profile'!EG120","v":0},{"$f":"'[2]5.2 Asset Age Profile'!EH120+'[3]5.2 Asset Age Profile'!EH120","v":0},{"$f":"'[2]5.2 Asset Age Profile'!EI120+'[3]5.2 Asset Age Profile'!EI120","v":0},{"$f":"'[2]5.2 Asset Age Profile'!EJ120+'[3]5.2 Asset Age Profile'!EJ120","v":0}]
["ED_ASS521_00111",null,"Poles / Columns ; Minor Road",null,"DNSP NAME","REPEX","PUBLIC LIGHTING","Poles / Columns ; Minor Road","DESCRIPTOR METRIC","MEAN ECONOMIC LIFE","YEARS","NUMBER",null,{"$f":"'[2]5.2 Asset Age Profile'!N121+'[3]5.2 Asset Age Profile'!N121","v":0},{"$f":"'[2]5.2 Asset Age Profile'!O121+'[3]5.2 Asset Age Profile'!O121","v":0},{"$f":"'[2]5.2 Asset Age Profile'!P121+'[3]5.2 Asset Age Profile'!P121","v":0},{"$f":"'[2]5.2 Asset Age Profile'!Q121+'[3]5.2 Asset Age Profile'!Q121","v":0},{"$f":"'[2]5.2 Asset Age Profile'!R121+'[3]5.2 Asset Age Profile'!R121","v":0},{"$f":"'[2]5.2 Asset Age Profile'!S121+'[3]5.2 Asset Age Profile'!S121","v":0},{"$f":"'[2]5.2 Asset Age Profile'!T121+'[3]5.2 Asset Age Profile'!T121","v":0},{"$f":"'[2]5.2 Asset Age Profile'!U121+'[3]5.2 Asset Age Profile'!U121","v":0},{"$f":"'[2]5.2 Asset Age Profile'!V121+'[3]5.2 Asset Age Profile'!V121","v":0},{"$f":"'[2]5.2 Asset Age Profile'!W121+'[3]5.2 Asset Age Profile'!W121","v":0},{"$f":"'[2]5.2 Asset Age Profile'!X121+'[3]5.2 Asset Age Profile'!X121","v":0},{"$f":"'[2]5.2 Asset Age Profile'!Y121+'[3]5.2 Asset Age Profile'!Y121","v":0},{"$f":"'[2]5.2 Asset Age Profile'!Z121+'[3]5.2 Asset Age Profile'!Z121","v":0},{"$f":"'[2]5.2 Asset Age Profile'!AA121+'[3]5.2 Asset Age Profile'!AA121","v":0},{"$f":"'[2]5.2 Asset Age Profile'!AB121+'[3]5.2 Asset Age Profile'!AB121","v":0},{"$f":"'[2]5.2 Asset Age Profile'!AC121+'[3]5.2 Asset Age Profile'!AC121","v":0},{"$f":"'[2]5.2 Asset Age Profile'!AD121+'[3]5.2 Asset Age Profile'!AD121","v":0},{"$f":"'[2]5.2 Asset Age Profile'!AE121+'[3]5.2 Asset Age Profile'!AE121","v":0},{"$f":"'[2]5.2 Asset Age Profile'!AF121+'[3]5.2 Asset Age Profile'!AF121","v":0},{"$f":"'[2]5.2 Asset Age Profile'!AG121+'[3]5.2 Asset Age Profile'!AG121","v":0},{"$f":"'[2]5.2 Asset Age Profile'!AH121+'[3]5.2 Asset Age Profile'!AH121","v":0},{"$f":"'[2]5.2 Asset Age Profile'!AI121+'[3]5.2 Asset Age Profile'!AI121","v":0},{"$f":"'[2]5.2 Asset Age Profile'!AJ121+'[3]5.2 Asset Age Profile'!AJ121","v":0},{"$f":"'[2]5.2 Asset Age Profile'!AK121+'[3]5.2 Asset Age Profile'!AK121","v":0},{"$f":"'[2]5.2 Asset Age Profile'!AL121+'[3]5.2 Asset Age Profile'!AL121","v":0},{"$f":"'[2]5.2 Asset Age Profile'!AM121+'[3]5.2 Asset Age Profile'!AM121","v":0},{"$f":"'[2]5.2 Asset Age Profile'!AN121+'[3]5.2 Asset Age Profile'!AN121","v":0},{"$f":"'[2]5.2 Asset Age Profile'!AO121+'[3]5.2 Asset Age Profile'!AO121","v":0},{"$f":"'[2]5.2 Asset Age Profile'!AP121+'[3]5.2 Asset Age Profile'!AP121","v":0},{"$f":"'[2]5.2 Asset Age Profile'!AQ121+'[3]5.2 Asset Age Profile'!AQ121","v":0},{"$f":"'[2]5.2 Asset Age Profile'!AR121+'[3]5.2 Asset Age Profile'!AR121","v":0},{"$f":"'[2]5.2 Asset Age Profile'!AS121+'[3]5.2 Asset Age Profile'!AS121","v":0},{"$f":"'[2]5.2 Asset Age Profile'!AT121+'[3]5.2 Asset Age Profile'!AT121","v":0},{"$f":"'[2]5.2 Asset Age Profile'!AU121+'[3]5.2 Asset Age Profile'!AU121","v":0},{"$f":"'[2]5.2 Asset Age Profile'!AV121+'[3]5.2 Asset Age Profile'!AV121","v":0},{"$f":"'[2]5.2 Asset Age Profile'!AW121+'[3]5.2 Asset Age Profile'!AW121","v":0},{"$f":"'[2]5.2 Asset Age Profile'!AX121+'[3]5.2 Asset Age Profile'!AX121","v":0},{"$f":"'[2]5.2 Asset Age Profile'!AY121+'[3]5.2 Asset Age Profile'!AY121","v":0},{"$f":"'[2]5.2 Asset Age Profile'!AZ121+'[3]5.2 Asset Age Profile'!AZ121","v":0},{"$f":"'[2]5.2 Asset Age Profile'!BA121+'[3]5.2 Asset Age Profile'!BA121","v":0},{"$f":"'[2]5.2 Asset Age Profile'!BB121+'[3]5.2 Asset Age Profile'!BB121","v":0},{"$f":"'[2]5.2 Asset Age Profile'!BC121+'[3]5.2 Asset Age Profile'!BC121","v":0},{"$f":"'[2]5.2 Asset Age Profile'!BD121+'[3]5.2 Asset Age Profile'!BD121","v":0},{"$f":"'[2]5.2 Asset Age Profile'!BE121+'[3]5.2 Asset Age Profile'!BE121","v":0},{"$f":"'[2]5.2 Asset Age Profile'!BF121+'[3]5.2 Asset Age Profile'!BF121","v":0},{"$f":"'[2]5.2 Asset Age Profile'!BG121+'[3]5.2 Asset Age Profile'!BG121","v":0},{"$f":"'[2]5.2 Asset Age Profile'!BH121+'[3]5.2 Asset Age Profile'!BH121","v":0},{"$f":"'[2]5.2 Asset Age Profile'!BI121+'[3]5.2 Asset Age Profile'!BI121","v":0},{"$f":"'[2]5.2 Asset Age Profile'!BJ121+'[3]5.2 Asset Age Profile'!BJ121","v":0},{"$f":"'[2]5.2 Asset Age Profile'!BK121+'[3]5.2 Asset Age Profile'!BK121","v":0},{"$f":"'[2]5.2 Asset Age Profile'!BL121+'[3]5.2 Asset Age Profile'!BL121","v":0},{"$f":"'[2]5.2 Asset Age Profile'!BM121+'[3]5.2 Asset Age Profile'!BM121","v":0},{"$f":"'[2]5.2 Asset Age Profile'!BN121+'[3]5.2 Asset Age Profile'!BN121","v":0},{"$f":"'[2]5.2 Asset Age Profile'!BO121+'[3]5.2 Asset Age Profile'!BO121","v":0},{"$f":"'[2]5.2 Asset Age Profile'!BP121+'[3]5.2 Asset Age Profile'!BP121","v":0},{"$f":"'[2]5.2 Asset Age Profile'!BQ121+'[3]5.2 Asset Age Profile'!BQ121","v":0},{"$f":"'[2]5.2 Asset Age Profile'!BR121+'[3]5.2 Asset Age Profile'!BR121","v":0},{"$f":"'[2]5.2 Asset Age Profile'!BS121+'[3]5.2 Asset Age Profile'!BS121","v":0},{"$f":"'[2]5.2 Asset Age Profile'!BT121+'[3]5.2 Asset Age Profile'!BT121","v":0},{"$f":"'[2]5.2 Asset Age Profile'!BU121+'[3]5.2 Asset Age Profile'!BU121","v":0},{"$f":"'[2]5.2 Asset Age Profile'!BV121+'[3]5.2 Asset Age Profile'!BV121","v":0},{"$f":"'[2]5.2 Asset Age Profile'!BW121+'[3]5.2 Asset Age Profile'!BW121","v":0},{"$f":"'[2]5.2 Asset Age Profile'!BX121+'[3]5.2 Asset Age Profile'!BX121","v":0},{"$f":"'[2]5.2 Asset Age Profile'!BY121+'[3]5.2 Asset Age Profile'!BY121","v":0},{"$f":"'[2]5.2 Asset Age Profile'!BZ121+'[3]5.2 Asset Age Profile'!BZ121","v":0},{"$f":"'[2]5.2 Asset Age Profile'!CA121+'[3]5.2 Asset Age Profile'!CA121","v":0},{"$f":"'[2]5.2 Asset Age Profile'!CB121+'[3]5.2 Asset Age Profile'!CB121","v":0},{"$f":"'[2]5.2 Asset Age Profile'!CC121+'[3]5.2 Asset Age Profile'!CC121","v":0},{"$f":"'[2]5.2 Asset Age Profile'!CD121+'[3]5.2 Asset Age Profile'!CD121","v":0},{"$f":"'[2]5.2 Asset Age Profile'!CE121+'[3]5.2 Asset Age Profile'!CE121","v":0},{"$f":"'[2]5.2 Asset Age Profile'!CF121+'[3]5.2 Asset Age Profile'!CF121","v":0},{"$f":"'[2]5.2 Asset Age Profile'!CG121+'[3]5.2 Asset Age Profile'!CG121","v":0},{"$f":"'[2]5.2 Asset Age Profile'!CH121+'[3]5.2 Asset Age Profile'!CH121","v":0},{"$f":"'[2]5.2 Asset Age Profile'!CI121+'[3]5.2 Asset Age Profile'!CI121","v":0},{"$f":"'[2]5.2 Asset Age Profile'!CJ121+'[3]5.2 Asset Age Profile'!CJ121","v":0},{"$f":"'[2]5.2 Asset Age Profile'!CK121+'[3]5.2 Asset Age Profile'!CK121","v":0},{"$f":"'[2]5.2 Asset Age Profile'!CL121+'[3]5.2 Asset Age Profile'!CL121","v":0},{"$f":"'[2]5.2 Asset Age Profile'!CM121+'[3]5.2 Asset Age Profile'!CM121","v":0},{"$f":"'[2]5.2 Asset Age Profile'!CN121+'[3]5.2 Asset Age Profile'!CN121","v":0},{"$f":"'[2]5.2 Asset Age Profile'!CO121+'[3]5.2 Asset Age Profile'!CO121","v":0},{"$f":"'[2]5.2 Asset Age Profile'!CP121+'[3]5.2 Asset Age Profile'!CP121","v":0},{"$f":"'[2]5.2 Asset Age Profile'!CQ121+'[3]5.2 Asset Age Profile'!CQ121","v":0},{"$f":"'[2]5.2 Asset Age Profile'!CR121+'[3]5.2 Asset Age Profile'!CR121","v":0},{"$f":"'[2]5.2 Asset Age Profile'!CS121+'[3]5.2 Asset Age Profile'!CS121","v":0},{"$f":"'[2]5.2 Asset Age Profile'!CT121+'[3]5.2 Asset Age Profile'!CT121","v":0},{"$f":"'[2]5.2 Asset Age Profile'!CU121+'[3]5.2 Asset Age Profile'!CU121","v":0},{"$f":"'[2]5.2 Asset Age Profile'!CV121+'[3]5.2 Asset Age Profile'!CV121","v":0},{"$f":"'[2]5.2 Asset Age Profile'!CW121+'[3]5.2 Asset Age Profile'!CW121","v":0},{"$f":"'[2]5.2 Asset Age Profile'!CX121+'[3]5.2 Asset Age Profile'!CX121","v":0},{"$f":"'[2]5.2 Asset Age Profile'!CY121+'[3]5.2 Asset Age Profile'!CY121","v":0},{"$f":"'[2]5.2 Asset Age Profile'!CZ121+'[3]5.2 Asset Age Profile'!CZ121","v":0},{"$f":"'[2]5.2 Asset Age Profile'!DA121+'[3]5.2 Asset Age Profile'!DA121","v":0},{"$f":"'[2]5.2 Asset Age Profile'!DB121+'[3]5.2 Asset Age Profile'!DB121","v":0},{"$f":"'[2]5.2 Asset Age Profile'!DC121+'[3]5.2 Asset Age Profile'!DC121","v":0},{"$f":"'[2]5.2 Asset Age Profile'!DD121+'[3]5.2 Asset Age Profile'!DD121","v":0},{"$f":"'[2]5.2 Asset Age Profile'!DE121+'[3]5.2 Asset Age Profile'!DE121","v":0},{"$f":"'[2]5.2 Asset Age Profile'!DF121+'[3]5.2 Asset Age Profile'!DF121","v":0},{"$f":"'[2]5.2 Asset Age Profile'!DG121+'[3]5.2 Asset Age Profile'!DG121","v":0},{"$f":"'[2]5.2 Asset Age Profile'!DH121+'[3]5.2 Asset Age Profile'!DH121","v":0},{"$f":"'[2]5.2 Asset Age Profile'!DI121+'[3]5.2 Asset Age Profile'!DI121","v":0},{"$f":"'[2]5.2 Asset Age Profile'!DJ121+'[3]5.2 Asset Age Profile'!DJ121","v":0},{"$f":"'[2]5.2 Asset Age Profile'!DK121+'[3]5.2 Asset Age Profile'!DK121","v":0},{"$f":"'[2]5.2 Asset Age Profile'!DL121+'[3]5.2 Asset Age Profile'!DL121","v":0},{"$f":"'[2]5.2 Asset Age Profile'!DM121+'[3]5.2 Asset Age Profile'!DM121","v":0},{"$f":"'[2]5.2 Asset Age Profile'!DN121+'[3]5.2 Asset Age Profile'!DN121","v":0},{"$f":"'[2]5.2 Asset Age Profile'!DO121+'[3]5.2 Asset Age Profile'!DO121","v":0},{"$f":"'[2]5.2 Asset Age Profile'!DP121+'[3]5.2 Asset Age Profile'!DP121","v":0},{"$f":"'[2]5.2 Asset Age Profile'!DQ121+'[3]5.2 Asset Age Profile'!DQ121","v":0},{"$f":"'[2]5.2 Asset Age Profile'!DR121+'[3]5.2 Asset Age Profile'!DR121","v":0},{"$f":"'[2]5.2 Asset Age Profile'!DS121+'[3]5.2 Asset Age Profile'!DS121","v":0},{"$f":"'[2]5.2 Asset Age Profile'!DT121+'[3]5.2 Asset Age Profile'!DT121","v":0},{"$f":"'[2]5.2 Asset Age Profile'!DU121+'[3]5.2 Asset Age Profile'!DU121","v":0},{"$f":"'[2]5.2 Asset Age Profile'!DV121+'[3]5.2 Asset Age Profile'!DV121","v":0},{"$f":"'[2]5.2 Asset Age Profile'!DW121+'[3]5.2 Asset Age Profile'!DW121","v":0},{"$f":"'[2]5.2 Asset Age Profile'!DX121+'[3]5.2 Asset Age Profile'!DX121","v":0},{"$f":"'[2]5.2 Asset Age Profile'!DY121+'[3]5.2 Asset Age Profile'!DY121","v":0},{"$f":"'[2]5.2 Asset Age Profile'!DZ121+'[3]5.2 Asset Age Profile'!DZ121","v":0},{"$f":"'[2]5.2 Asset Age Profile'!EA121+'[3]5.2 Asset Age Profile'!EA121","v":0},{"$f":"'[2]5.2 Asset Age Profile'!EB121+'[3]5.2 Asset Age Profile'!EB121","v":0},{"$f":"'[2]5.2 Asset Age Profile'!EC121+'[3]5.2 Asset Age Profile'!EC121","v":0},{"$f":"'[2]5.2 Asset Age Profile'!ED121+'[3]5.2 Asset Age Profile'!ED121","v":0},{"$f":"'[2]5.2 Asset Age Profile'!EE121+'[3]5.2 Asset Age Profile'!EE121","v":0},{"$f":"'[2]5.2 Asset Age Profile'!EF121+'[3]5.2 Asset Age Profile'!EF121","v":0},{"$f":"'[2]5.2 Asset Age Profile'!EG121+'[3]5.2 Asset Age Profile'!EG121","v":0},{"$f":"'[2]5.2 Asset Age Profile'!EH121+'[3]5.2 Asset Age Profile'!EH121","v":0},{"$f":"'[2]5.2 Asset Age Profile'!EI121+'[3]5.2 Asset Age Profile'!EI121","v":0},{"$f":"'[2]5.2 Asset Age Profile'!EJ121+'[3]5.2 Asset Age Profile'!EJ121","v":0}]
["ED_ASS521_00112",null,"Other",null,"DNSP NAME","REPEX","PUBLIC LIGHTING","Other","DESCRIPTOR METRIC","MEAN ECONOMIC LIFE","YEARS","NUMBER",null,{"$f":"'[2]5.2 Asset Age Profile'!N122+'[3]5.2 Asset Age Profile'!N122","v":0},{"$f":"'[2]5.2 Asset Age Profile'!O122+'[3]5.2 Asset Age Profile'!O122","v":0},{"$f":"'[2]5.2 Asset Age Profile'!P122+'[3]5.2 Asset Age Profile'!P122","v":0},{"$f":"'[2]5.2 Asset Age Profile'!Q122+'[3]5.2 Asset Age Profile'!Q122","v":0},{"$f":"'[2]5.2 Asset Age Profile'!R122+'[3]5.2 Asset Age Profile'!R122","v":0},{"$f":"'[2]5.2 Asset Age Profile'!S122+'[3]5.2 Asset Age Profile'!S122","v":0},{"$f":"'[2]5.2 Asset Age Profile'!T122+'[3]5.2 Asset Age Profile'!T122","v":0},{"$f":"'[2]5.2 Asset Age Profile'!U122+'[3]5.2 Asset Age Profile'!U122","v":0},{"$f":"'[2]5.2 Asset Age Profile'!V122+'[3]5.2 Asset Age Profile'!V122","v":0},{"$f":"'[2]5.2 Asset Age Profile'!W122+'[3]5.2 Asset Age Profile'!W122","v":0},{"$f":"'[2]5.2 Asset Age Profile'!X122+'[3]5.2 Asset Age Profile'!X122","v":0},{"$f":"'[2]5.2 Asset Age Profile'!Y122+'[3]5.2 Asset Age Profile'!Y122","v":0},{"$f":"'[2]5.2 Asset Age Profile'!Z122+'[3]5.2 Asset Age Profile'!Z122","v":0},{"$f":"'[2]5.2 Asset Age Profile'!AA122+'[3]5.2 Asset Age Profile'!AA122","v":0},{"$f":"'[2]5.2 Asset Age Profile'!AB122+'[3]5.2 Asset Age Profile'!AB122","v":0},{"$f":"'[2]5.2 Asset Age Profile'!AC122+'[3]5.2 Asset Age Profile'!AC122","v":0},{"$f":"'[2]5.2 Asset Age Profile'!AD122+'[3]5.2 Asset Age Profile'!AD122","v":0},{"$f":"'[2]5.2 Asset Age Profile'!AE122+'[3]5.2 Asset Age Profile'!AE122","v":0},{"$f":"'[2]5.2 Asset Age Profile'!AF122+'[3]5.2 Asset Age Profile'!AF122","v":0},{"$f":"'[2]5.2 Asset Age Profile'!AG122+'[3]5.2 Asset Age Profile'!AG122","v":0},{"$f":"'[2]5.2 Asset Age Profile'!AH122+'[3]5.2 Asset Age Profile'!AH122","v":0},{"$f":"'[2]5.2 Asset Age Profile'!AI122+'[3]5.2 Asset Age Profile'!AI122","v":0},{"$f":"'[2]5.2 Asset Age Profile'!AJ122+'[3]5.2 Asset Age Profile'!AJ122","v":0},{"$f":"'[2]5.2 Asset Age Profile'!AK122+'[3]5.2 Asset Age Profile'!AK122","v":0},{"$f":"'[2]5.2 Asset Age Profile'!AL122+'[3]5.2 Asset Age Profile'!AL122","v":0},{"$f":"'[2]5.2 Asset Age Profile'!AM122+'[3]5.2 Asset Age Profile'!AM122","v":0},{"$f":"'[2]5.2 Asset Age Profile'!AN122+'[3]5.2 Asset Age Profile'!AN122","v":0},{"$f":"'[2]5.2 Asset Age Profile'!AO122+'[3]5.2 Asset Age Profile'!AO122","v":0},{"$f":"'[2]5.2 Asset Age Profile'!AP122+'[3]5.2 Asset Age Profile'!AP122","v":0},{"$f":"'[2]5.2 Asset Age Profile'!AQ122+'[3]5.2 Asset Age Profile'!AQ122","v":0},{"$f":"'[2]5.2 Asset Age Profile'!AR122+'[3]5.2 Asset Age Profile'!AR122","v":0},{"$f":"'[2]5.2 Asset Age Profile'!AS122+'[3]5.2 Asset Age Profile'!AS122","v":0},{"$f":"'[2]5.2 Asset Age Profile'!AT122+'[3]5.2 Asset Age Profile'!AT122","v":0},{"$f":"'[2]5.2 Asset Age Profile'!AU122+'[3]5.2 Asset Age Profile'!AU122","v":0},{"$f":"'[2]5.2 Asset Age Profile'!AV122+'[3]5.2 Asset Age Profile'!AV122","v":0},{"$f":"'[2]5.2 Asset Age Profile'!AW122+'[3]5.2 Asset Age Profile'!AW122","v":0},{"$f":"'[2]5.2 Asset Age Profile'!AX122+'[3]5.2 Asset Age Profile'!AX122","v":0},{"$f":"'[2]5.2 Asset Age Profile'!AY122+'[3]5.2 Asset Age Profile'!AY122","v":0},{"$f":"'[2]5.2 Asset Age Profile'!AZ122+'[3]5.2 Asset Age Profile'!AZ122","v":0},{"$f":"'[2]5.2 Asset Age Profile'!BA122+'[3]5.2 Asset Age Profile'!BA122","v":0},{"$f":"'[2]5.2 Asset Age Profile'!BB122+'[3]5.2 Asset Age Profile'!BB122","v":0},{"$f":"'[2]5.2 Asset Age Profile'!BC122+'[3]5.2 Asset Age Profile'!BC122","v":0},{"$f":"'[2]5.2 Asset Age Profile'!BD122+'[3]5.2 Asset Age Profile'!BD122","v":0},{"$f":"'[2]5.2 Asset Age Profile'!BE122+'[3]5.2 Asset Age Profile'!BE122","v":0},{"$f":"'[2]5.2 Asset Age Profile'!BF122+'[3]5.2 Asset Age Profile'!BF122","v":0},{"$f":"'[2]5.2 Asset Age Profile'!BG122+'[3]5.2 Asset Age Profile'!BG122","v":0},{"$f":"'[2]5.2 Asset Age Profile'!BH122+'[3]5.2 Asset Age Profile'!BH122","v":0},{"$f":"'[2]5.2 Asset Age Profile'!BI122+'[3]5.2 Asset Age Profile'!BI122","v":0},{"$f":"'[2]5.2 Asset Age Profile'!BJ122+'[3]5.2 Asset Age Profile'!BJ122","v":0},{"$f":"'[2]5.2 Asset Age Profile'!BK122+'[3]5.2 Asset Age Profile'!BK122","v":0},{"$f":"'[2]5.2 Asset Age Profile'!BL122+'[3]5.2 Asset Age Profile'!BL122","v":0},{"$f":"'[2]5.2 Asset Age Profile'!BM122+'[3]5.2 Asset Age Profile'!BM122","v":0},{"$f":"'[2]5.2 Asset Age Profile'!BN122+'[3]5.2 Asset Age Profile'!BN122","v":0},{"$f":"'[2]5.2 Asset Age Profile'!BO122+'[3]5.2 Asset Age Profile'!BO122","v":0},{"$f":"'[2]5.2 Asset Age Profile'!BP122+'[3]5.2 Asset Age Profile'!BP122","v":0},{"$f":"'[2]5.2 Asset Age Profile'!BQ122+'[3]5.2 Asset Age Profile'!BQ122","v":0},{"$f":"'[2]5.2 Asset Age Profile'!BR122+'[3]5.2 Asset Age Profile'!BR122","v":0},{"$f":"'[2]5.2 Asset Age Profile'!BS122+'[3]5.2 Asset Age Profile'!BS122","v":0},{"$f":"'[2]5.2 Asset Age Profile'!BT122+'[3]5.2 Asset Age Profile'!BT122","v":0},{"$f":"'[2]5.2 Asset Age Profile'!BU122+'[3]5.2 Asset Age Profile'!BU122","v":0},{"$f":"'[2]5.2 Asset Age Profile'!BV122+'[3]5.2 Asset Age Profile'!BV122","v":0},{"$f":"'[2]5.2 Asset Age Profile'!BW122+'[3]5.2 Asset Age Profile'!BW122","v":0},{"$f":"'[2]5.2 Asset Age Profile'!BX122+'[3]5.2 Asset Age Profile'!BX122","v":0},{"$f":"'[2]5.2 Asset Age Profile'!BY122+'[3]5.2 Asset Age Profile'!BY122","v":0},{"$f":"'[2]5.2 Asset Age Profile'!BZ122+'[3]5.2 Asset Age Profile'!BZ122","v":0},{"$f":"'[2]5.2 Asset Age Profile'!CA122+'[3]5.2 Asset Age Profile'!CA122","v":0},{"$f":"'[2]5.2 Asset Age Profile'!CB122+'[3]5.2 Asset Age Profile'!CB122","v":0},{"$f":"'[2]5.2 Asset Age Profile'!CC122+'[3]5.2 Asset Age Profile'!CC122","v":0},{"$f":"'[2]5.2 Asset Age Profile'!CD122+'[3]5.2 Asset Age Profile'!CD122","v":0},{"$f":"'[2]5.2 Asset Age Profile'!CE122+'[3]5.2 Asset Age Profile'!CE122","v":0},{"$f":"'[2]5.2 Asset Age Profile'!CF122+'[3]5.2 Asset Age Profile'!CF122","v":0},{"$f":"'[2]5.2 Asset Age Profile'!CG122+'[3]5.2 Asset Age Profile'!CG122","v":0},{"$f":"'[2]5.2 Asset Age Profile'!CH122+'[3]5.2 Asset Age Profile'!CH122","v":0},{"$f":"'[2]5.2 Asset Age Profile'!CI122+'[3]5.2 Asset Age Profile'!CI122","v":0},{"$f":"'[2]5.2 Asset Age Profile'!CJ122+'[3]5.2 Asset Age Profile'!CJ122","v":0},{"$f":"'[2]5.2 Asset Age Profile'!CK122+'[3]5.2 Asset Age Profile'!CK122","v":0},{"$f":"'[2]5.2 Asset Age Profile'!CL122+'[3]5.2 Asset Age Profile'!CL122","v":0},{"$f":"'[2]5.2 Asset Age Profile'!CM122+'[3]5.2 Asset Age Profile'!CM122","v":0},{"$f":"'[2]5.2 Asset Age Profile'!CN122+'[3]5.2 Asset Age Profile'!CN122","v":0},{"$f":"'[2]5.2 Asset Age Profile'!CO122+'[3]5.2 Asset Age Profile'!CO122","v":0},{"$f":"'[2]5.2 Asset Age Profile'!CP122+'[3]5.2 Asset Age Profile'!CP122","v":0},{"$f":"'[2]5.2 Asset Age Profile'!CQ122+'[3]5.2 Asset Age Profile'!CQ122","v":0},{"$f":"'[2]5.2 Asset Age Profile'!CR122+'[3]5.2 Asset Age Profile'!CR122","v":0},{"$f":"'[2]5.2 Asset Age Profile'!CS122+'[3]5.2 Asset Age Profile'!CS122","v":0},{"$f":"'[2]5.2 Asset Age Profile'!CT122+'[3]5.2 Asset Age Profile'!CT122","v":0},{"$f":"'[2]5.2 Asset Age Profile'!CU122+'[3]5.2 Asset Age Profile'!CU122","v":0},{"$f":"'[2]5.2 Asset Age Profile'!CV122+'[3]5.2 Asset Age Profile'!CV122","v":0},{"$f":"'[2]5.2 Asset Age Profile'!CW122+'[3]5.2 Asset Age Profile'!CW122","v":0},{"$f":"'[2]5.2 Asset Age Profile'!CX122+'[3]5.2 Asset Age Profile'!CX122","v":0},{"$f":"'[2]5.2 Asset Age Profile'!CY122+'[3]5.2 Asset Age Profile'!CY122","v":0},{"$f":"'[2]5.2 Asset Age Profile'!CZ122+'[3]5.2 Asset Age Profile'!CZ122","v":0},{"$f":"'[2]5.2 Asset Age Profile'!DA122+'[3]5.2 Asset Age Profile'!DA122","v":0},{"$f":"'[2]5.2 Asset Age Profile'!DB122+'[3]5.2 Asset Age Profile'!DB122","v":0},{"$f":"'[2]5.2 Asset Age Profile'!DC122+'[3]5.2 Asset Age Profile'!DC122","v":0},{"$f":"'[2]5.2 Asset Age Profile'!DD122+'[3]5.2 Asset Age Profile'!DD122","v":0},{"$f":"'[2]5.2 Asset Age Profile'!DE122+'[3]5.2 Asset Age Profile'!DE122","v":0},{"$f":"'[2]5.2 Asset Age Profile'!DF122+'[3]5.2 Asset Age Profile'!DF122","v":0},{"$f":"'[2]5.2 Asset Age Profile'!DG122+'[3]5.2 Asset Age Profile'!DG122","v":0},{"$f":"'[2]5.2 Asset Age Profile'!DH122+'[3]5.2 Asset Age Profile'!DH122","v":0},{"$f":"'[2]5.2 Asset Age Profile'!DI122+'[3]5.2 Asset Age Profile'!DI122","v":0},{"$f":"'[2]5.2 Asset Age Profile'!DJ122+'[3]5.2 Asset Age Profile'!DJ122","v":0},{"$f":"'[2]5.2 Asset Age Profile'!DK122+'[3]5.2 Asset Age Profile'!DK122","v":0},{"$f":"'[2]5.2 Asset Age Profile'!DL122+'[3]5.2 Asset Age Profile'!DL122","v":0},{"$f":"'[2]5.2 Asset Age Profile'!DM122+'[3]5.2 Asset Age Profile'!DM122","v":0},{"$f":"'[2]5.2 Asset Age Profile'!DN122+'[3]5.2 Asset Age Profile'!DN122","v":0},{"$f":"'[2]5.2 Asset Age Profile'!DO122+'[3]5.2 Asset Age Profile'!DO122","v":0},{"$f":"'[2]5.2 Asset Age Profile'!DP122+'[3]5.2 Asset Age Profile'!DP122","v":0},{"$f":"'[2]5.2 Asset Age Profile'!DQ122+'[3]5.2 Asset Age Profile'!DQ122","v":0},{"$f":"'[2]5.2 Asset Age Profile'!DR122+'[3]5.2 Asset Age Profile'!DR122","v":0},{"$f":"'[2]5.2 Asset Age Profile'!DS122+'[3]5.2 Asset Age Profile'!DS122","v":0},{"$f":"'[2]5.2 Asset Age Profile'!DT122+'[3]5.2 Asset Age Profile'!DT122","v":0},{"$f":"'[2]5.2 Asset Age Profile'!DU122+'[3]5.2 Asset Age Profile'!DU122","v":0},{"$f":"'[2]5.2 Asset Age Profile'!DV122+'[3]5.2 Asset Age Profile'!DV122","v":0},{"$f":"'[2]5.2 Asset Age Profile'!DW122+'[3]5.2 Asset Age Profile'!DW122","v":0},{"$f":"'[2]5.2 Asset Age Profile'!DX122+'[3]5.2 Asset Age Profile'!DX122","v":0},{"$f":"'[2]5.2 Asset Age Profile'!DY122+'[3]5.2 Asset Age Profile'!DY122","v":0},{"$f":"'[2]5.2 Asset Age Profile'!DZ122+'[3]5.2 Asset Age Profile'!DZ122","v":0},{"$f":"'[2]5.2 Asset Age Profile'!EA122+'[3]5.2 Asset Age Profile'!EA122","v":0},{"$f":"'[2]5.2 Asset Age Profile'!EB122+'[3]5.2 Asset Age Profile'!EB122","v":0},{"$f":"'[2]5.2 Asset Age Profile'!EC122+'[3]5.2 Asset Age Profile'!EC122","v":0},{"$f":"'[2]5.2 Asset Age Profile'!ED122+'[3]5.2 Asset Age Profile'!ED122","v":0},{"$f":"'[2]5.2 Asset Age Profile'!EE122+'[3]5.2 Asset Age Profile'!EE122","v":0},{"$f":"'[2]5.2 Asset Age Profile'!EF122+'[3]5.2 Asset Age Profile'!EF122","v":0},{"$f":"'[2]5.2 Asset Age Profile'!EG122+'[3]5.2 Asset Age Profile'!EG122","v":0},{"$f":"'[2]5.2 Asset Age Profile'!EH122+'[3]5.2 Asset Age Profile'!EH122","v":0},{"$f":"'[2]5.2 Asset Age Profile'!EI122+'[3]5.2 Asset Age Profile'!EI122","v":0},{"$f":"'[2]5.2 Asset Age Profile'!EJ122+'[3]5.2 Asset Age Profile'!EJ122","v":0}]
["ED_ASS521_00113","SCADA, NETWORK CONTROL AND PROTECTION SYSTEMS BY: \nFUNCTION","Field Devices",null,"DNSP NAME","REPEX","SCADA AND PROTECTION","Field Devices","DESCRIPTOR METRIC","MEAN ECONOMIC LIFE","YEARS","NUMBER",null,{"$f":"'[2]5.2 Asset Age Profile'!N123+'[3]5.2 Asset Age Profile'!N123","v":15},{"$f":"'[2]5.2 Asset Age Profile'!O123+'[3]5.2 Asset Age Profile'!O123","v":0},{"$f":"'[2]5.2 Asset Age Profile'!P123+'[3]5.2 Asset Age Profile'!P123","v":9},{"$f":"'[2]5.2 Asset Age Profile'!Q123+'[3]5.2 Asset Age Profile'!Q123","v":7},{"$f":"'[2]5.2 Asset Age Profile'!R123+'[3]5.2 Asset Age Profile'!R123","v":27},{"$f":"'[2]5.2 Asset Age Profile'!S123+'[3]5.2 Asset Age Profile'!S123","v":5},{"$f":"'[2]5.2 Asset Age Profile'!T123+'[3]5.2 Asset Age Profile'!T123","v":4},{"$f":"'[2]5.2 Asset Age Profile'!U123+'[3]5.2 Asset Age Profile'!U123","v":2},{"$f":"'[2]5.2 Asset Age Profile'!V123+'[3]5.2 Asset Age Profile'!V123","v":0},{"$f":"'[2]5.2 Asset Age Profile'!W123+'[3]5.2 Asset Age Profile'!W123","v":0},{"$f":"'[2]5.2 Asset Age Profile'!X123+'[3]5.2 Asset Age Profile'!X123","v":0},{"$f":"'[2]5.2 Asset Age Profile'!Y123+'[3]5.2 Asset Age Profile'!Y123","v":0},{"$f":"'[2]5.2 Asset Age Profile'!Z123+'[3]5.2 Asset Age Profile'!Z123","v":0},{"$f":"'[2]5.2 Asset Age Profile'!AA123+'[3]5.2 Asset Age Profile'!AA123","v":0},{"$f":"'[2]5.2 Asset Age Profile'!AB123+'[3]5.2 Asset Age Profile'!AB123","v":0},{"$f":"'[2]5.2 Asset Age Profile'!AC123+'[3]5.2 Asset Age Profile'!AC123","v":0},{"$f":"'[2]5.2 Asset Age Profile'!AD123+'[3]5.2 Asset Age Profile'!AD123","v":2},{"$f":"'[2]5.2 Asset Age Profile'!AE123+'[3]5.2 Asset Age Profile'!AE123","v":0},{"$f":"'[2]5.2 Asset Age Profile'!AF123+'[3]5.2 Asset Age Profile'!AF123","v":0},{"$f":"'[2]5.2 Asset Age Profile'!AG123+'[3]5.2 Asset Age Profile'!AG123","v":0},{"$f":"'[2]5.2 Asset Age Profile'!AH123+'[3]5.2 Asset Age Profile'!AH123","v":0},{"$f":"'[2]5.2 Asset Age Profile'!AI123+'[3]5.2 Asset Age Profile'!AI123","v":5},{"$f":"'[2]5.2 Asset Age Profile'!AJ123+'[3]5.2 Asset Age Profile'!AJ123","v":106},{"$f":"'[2]5.2 Asset Age Profile'!AK123+'[3]5.2 Asset Age Profile'!AK123","v":260},{"$f":"'[2]5.2 Asset Age Profile'!AL123+'[3]5.2 Asset Age Profile'!AL123","v":247},{"$f":"'[2]5.2 Asset Age Profile'!AM123+'[3]5.2 Asset Age Profile'!AM123","v":102},{"$f":"'[2]5.2 Asset Age Profile'!AN123+'[3]5.2 Asset Age Profile'!AN123","v":83},{"$f":"'[2]5.2 Asset Age Profile'!AO123+'[3]5.2 Asset Age Profile'!AO123","v":52},{"$f":"'[2]5.2 Asset Age Profile'!AP123+'[3]5.2 Asset Age Profile'!AP123","v":48},{"$f":"'[2]5.2 Asset Age Profile'!AQ123+'[3]5.2 Asset Age Profile'!AQ123","v":63},{"$f":"'[2]5.2 Asset Age Profile'!AR123+'[3]5.2 Asset Age Profile'!AR123","v":100},{"$f":"'[2]5.2 Asset Age Profile'!AS123+'[3]5.2 Asset Age Profile'!AS123","v":109},{"$f":"'[2]5.2 Asset Age Profile'!AT123+'[3]5.2 Asset Age Profile'!AT123","v":57},{"$f":"'[2]5.2 Asset Age Profile'!AU123+'[3]5.2 Asset Age Profile'!AU123","v":61},{"$f":"'[2]5.2 Asset Age Profile'!AV123+'[3]5.2 Asset Age Profile'!AV123","v":47},{"$f":"'[2]5.2 Asset Age Profile'!AW123+'[3]5.2 Asset Age Profile'!AW123","v":43},{"$f":"'[2]5.2 Asset Age Profile'!AX123+'[3]5.2 Asset Age Profile'!AX123","v":76},{"$f":"'[2]5.2 Asset Age Profile'!AY123+'[3]5.2 Asset Age Profile'!AY123","v":75},{"$f":"'[2]5.2 Asset Age Profile'!AZ123+'[3]5.2 Asset Age Profile'!AZ123","v":61},{"$f":"'[2]5.2 Asset Age Profile'!BA123+'[3]5.2 Asset Age Profile'!BA123","v":150},{"$f":"'[2]5.2 Asset Age Profile'!BB123+'[3]5.2 Asset Age Profile'!BB123","v":184},{"$f":"'[2]5.2 Asset Age Profile'!BC123+'[3]5.2 Asset Age Profile'!BC123","v":114},{"$f":"'[2]5.2 Asset Age Profile'!BD123+'[3]5.2 Asset Age Profile'!BD123","v":72},{"$f":"'[2]5.2 Asset Age Profile'!BE123+'[3]5.2 Asset Age Profile'!BE123","v":179},{"$f":"'[2]5.2 Asset Age Profile'!BF123+'[3]5.2 Asset Age Profile'!BF123","v":160},{"$f":"'[2]5.2 Asset Age Profile'!BG123+'[3]5.2 Asset Age Profile'!BG123","v":61},{"$f":"'[2]5.2 Asset Age Profile'!BH123+'[3]5.2 Asset Age Profile'!BH123","v":165},{"$f":"'[2]5.2 Asset Age Profile'!BI123+'[3]5.2 Asset Age Profile'!BI123","v":41},{"$f":"'[2]5.2 Asset Age Profile'!BJ123+'[3]5.2 Asset Age Profile'!BJ123","v":51},{"$f":"'[2]5.2 Asset Age Profile'!BK123+'[3]5.2 Asset Age Profile'!BK123","v":257},{"$f":"'[2]5.2 Asset Age Profile'!BL123+'[3]5.2 Asset Age Profile'!BL123","v":59},{"$f":"'[2]5.2 Asset Age Profile'!BM123+'[3]5.2 Asset Age Profile'!BM123","v":100},{"$f":"'[2]5.2 Asset Age Profile'!BN123+'[3]5.2 Asset Age Profile'!BN123","v":3},{"$f":"'[2]5.2 Asset Age Profile'!BO123+'[3]5.2 Asset Age Profile'!BO123","v":2},{"$f":"'[2]5.2 Asset Age Profile'!BP123+'[3]5.2 Asset Age Profile'!BP123","v":28},{"$f":"'[2]5.2 Asset Age Profile'!BQ123+'[3]5.2 Asset Age Profile'!BQ123","v":5},{"$f":"'[2]5.2 Asset Age Profile'!BR123+'[3]5.2 Asset Age Profile'!BR123","v":11},{"$f":"'[2]5.2 Asset Age Profile'!BS123+'[3]5.2 Asset Age Profile'!BS123","v":1},{"$f":"'[2]5.2 Asset Age Profile'!BT123+'[3]5.2 Asset Age Profile'!BT123","v":17},{"$f":"'[2]5.2 Asset Age Profile'!BU123+'[3]5.2 Asset Age Profile'!BU123","v":0},{"$f":"'[2]5.2 Asset Age Profile'!BV123+'[3]5.2 Asset Age Profile'!BV123","v":19},{"$f":"'[2]5.2 Asset Age Profile'!BW123+'[3]5.2 Asset Age Profile'!BW123","v":6},{"$f":"'[2]5.2 Asset Age Profile'!BX123+'[3]5.2 Asset Age Profile'!BX123","v":1},{"$f":"'[2]5.2 Asset Age Profile'!BY123+'[3]5.2 Asset Age Profile'!BY123","v":0},{"$f":"'[2]5.2 Asset Age Profile'!BZ123+'[3]5.2 Asset Age Profile'!BZ123","v":0},{"$f":"'[2]5.2 Asset Age Profile'!CA123+'[3]5.2 Asset Age Profile'!CA123","v":0},{"$f":"'[2]5.2 Asset Age Profile'!CB123+'[3]5.2 Asset Age Profile'!CB123","v":2},{"$f":"'[2]5.2 Asset Age Profile'!CC123+'[3]5.2 Asset Age Profile'!CC123","v":0},{"$f":"'[2]5.2 Asset Age Profile'!CD123+'[3]5.2 Asset Age Profile'!CD123","v":0},{"$f":"'[2]5.2 Asset Age Profile'!CE123+'[3]5.2 Asset Age Profile'!CE123","v":0},{"$f":"'[2]5.2 Asset Age Profile'!CF123+'[3]5.2 Asset Age Profile'!CF123","v":0},{"$f":"'[2]5.2 Asset Age Profile'!CG123+'[3]5.2 Asset Age Profile'!CG123","v":0},{"$f":"'[2]5.2 Asset Age Profile'!CH123+'[3]5.2 Asset Age Profile'!CH123","v":0},{"$f":"'[2]5.2 Asset Age Profile'!CI123+'[3]5.2 Asset Age Profile'!CI123","v":0},{"$f":"'[2]5.2 Asset Age Profile'!CJ123+'[3]5.2 Asset Age Profile'!CJ123","v":0},{"$f":"'[2]5.2 Asset Age Profile'!CK123+'[3]5.2 Asset Age Profile'!CK123","v":0},{"$f":"'[2]5.2 Asset Age Profile'!CL123+'[3]5.2 Asset Age Profile'!CL123","v":0},{"$f":"'[2]5.2 Asset Age Profile'!CM123+'[3]5.2 Asset Age Profile'!CM123","v":0},{"$f":"'[2]5.2 Asset Age Profile'!CN123+'[3]5.2 Asset Age Profile'!CN123","v":0},{"$f":"'[2]5.2 Asset Age Profile'!CO123+'[3]5.2 Asset Age Profile'!CO123","v":0},{"$f":"'[2]5.2 Asset Age Profile'!CP123+'[3]5.2 Asset Age Profile'!CP123","v":0},{"$f":"'[2]5.2 Asset Age Profile'!CQ123+'[3]5.2 Asset Age Profile'!CQ123","v":0},{"$f":"'[2]5.2 Asset Age Profile'!CR123+'[3]5.2 Asset Age Profile'!CR123","v":0},{"$f":"'[2]5.2 Asset Age Profile'!CS123+'[3]5.2 Asset Age Profile'!CS123","v":0},{"$f":"'[2]5.2 Asset Age Profile'!CT123+'[3]5.2 Asset Age Profile'!CT123","v":0},{"$f":"'[2]5.2 Asset Age Profile'!CU123+'[3]5.2 Asset Age Profile'!CU123","v":0},{"$f":"'[2]5.2 Asset Age Profile'!CV123+'[3]5.2 Asset Age Profile'!CV123","v":0},{"$f":"'[2]5.2 Asset Age Profile'!CW123+'[3]5.2 Asset Age Profile'!CW123","v":0},{"$f":"'[2]5.2 Asset Age Profile'!CX123+'[3]5.2 Asset Age Profile'!CX123","v":0},{"$f":"'[2]5.2 Asset Age Profile'!CY123+'[3]5.2 Asset Age Profile'!CY123","v":0},{"$f":"'[2]5.2 Asset Age Profile'!CZ123+'[3]5.2 Asset Age Profile'!CZ123","v":0},{"$f":"'[2]5.2 Asset Age Profile'!DA123+'[3]5.2 Asset Age Profile'!DA123","v":0},{"$f":"'[2]5.2 Asset Age Profile'!DB123+'[3]5.2 Asset Age Profile'!DB123","v":0},{"$f":"'[2]5.2 Asset Age Profile'!DC123+'[3]5.2 Asset Age Profile'!DC123","v":0},{"$f":"'[2]5.2 Asset Age Profile'!DD123+'[3]5.2 Asset Age Profile'!DD123","v":0},{"$f":"'[2]5.2 Asset Age Profile'!DE123+'[3]5.2 Asset Age Profile'!DE123","v":0},{"$f":"'[2]5.2 Asset Age Profile'!DF123+'[3]5.2 Asset Age Profile'!DF123","v":0},{"$f":"'[2]5.2 Asset Age Profile'!DG123+'[3]5.2 Asset Age Profile'!DG123","v":0},{"$f":"'[2]5.2 Asset Age Profile'!DH123+'[3]5.2 Asset Age Profile'!DH123","v":0},{"$f":"'[2]5.2 Asset Age Profile'!DI123+'[3]5.2 Asset Age Profile'!DI123","v":0},{"$f":"'[2]5.2 Asset Age Profile'!DJ123+'[3]5.2 Asset Age Profile'!DJ123","v":0},{"$f":"'[2]5.2 Asset Age Profile'!DK123+'[3]5.2 Asset Age Profile'!DK123","v":0},{"$f":"'[2]5.2 Asset Age Profile'!DL123+'[3]5.2 Asset Age Profile'!DL123","v":0},{"$f":"'[2]5.2 Asset Age Profile'!DM123+'[3]5.2 Asset Age Profile'!DM123","v":0},{"$f":"'[2]5.2 Asset Age Profile'!DN123+'[3]5.2 Asset Age Profile'!DN123","v":0},{"$f":"'[2]5.2 Asset Age Profile'!DO123+'[3]5.2 Asset Age Profile'!DO123","v":0},{"$f":"'[2]5.2 Asset Age Profile'!DP123+'[3]5.2 Asset Age Profile'!DP123","v":0},{"$f":"'[2]5.2 Asset Age Profile'!DQ123+'[3]5.2 Asset Age Profile'!DQ123","v":0},{"$f":"'[2]5.2 Asset Age Profile'!DR123+'[3]5.2 Asset Age Profile'!DR123","v":0},{"$f":"'[2]5.2 Asset Age Profile'!DS123+'[3]5.2 Asset Age Profile'!DS123","v":0},{"$f":"'[2]5.2 Asset Age Profile'!DT123+'[3]5.2 Asset Age Profile'!DT123","v":0},{"$f":"'[2]5.2 Asset Age Profile'!DU123+'[3]5.2 Asset Age Profile'!DU123","v":0},{"$f":"'[2]5.2 Asset Age Profile'!DV123+'[3]5.2 Asset Age Profile'!DV123","v":0},{"$f":"'[2]5.2 Asset Age Profile'!DW123+'[3]5.2 Asset Age Profile'!DW123","v":0},{"$f":"'[2]5.2 Asset Age Profile'!DX123+'[3]5.2 Asset Age Profile'!DX123","v":0},{"$f":"'[2]5.2 Asset Age Profile'!DY123+'[3]5.2 Asset Age Profile'!DY123","v":0},{"$f":"'[2]5.2 Asset Age Profile'!DZ123+'[3]5.2 Asset Age Profile'!DZ123","v":0},{"$f":"'[2]5.2 Asset Age Profile'!EA123+'[3]5.2 Asset Age Profile'!EA123","v":0},{"$f":"'[2]5.2 Asset Age Profile'!EB123+'[3]5.2 Asset Age Profile'!EB123","v":0},{"$f":"'[2]5.2 Asset Age Profile'!EC123+'[3]5.2 Asset Age Profile'!EC123","v":0},{"$f":"'[2]5.2 Asset Age Profile'!ED123+'[3]5.2 Asset Age Profile'!ED123","v":0},{"$f":"'[2]5.2 Asset Age Profile'!EE123+'[3]5.2 Asset Age Profile'!EE123","v":0},{"$f":"'[2]5.2 Asset Age Profile'!EF123+'[3]5.2 Asset Age Profile'!EF123","v":0},{"$f":"'[2]5.2 Asset Age Profile'!EG123+'[3]5.2 Asset Age Profile'!EG123","v":0},{"$f":"'[2]5.2 Asset Age Profile'!EH123+'[3]5.2 Asset Age Profile'!EH123","v":0},{"$f":"'[2]5.2 Asset Age Profile'!EI123+'[3]5.2 Asset Age Profile'!EI123","v":0},{"$f":"'[2]5.2 Asset Age Profile'!EJ123+'[3]5.2 Asset Age Profile'!EJ123","v":0}]
["ED_ASS521_00114",null,"Local Network Wiring Assets",null,"DNSP NAME","REPEX","SCADA AND PROTECTION","Local Network Wiring Assets","DESCRIPTOR METRIC","MEAN ECONOMIC LIFE","YEARS","NUMBER",null,{"$f":"'[2]5.2 Asset Age Profile'!N124+'[3]5.2 Asset Age Profile'!N124","v":15},{"$f":"'[2]5.2 Asset Age Profile'!O124+'[3]5.2 Asset Age Profile'!O124","v":0},{"$f":"'[2]5.2 Asset Age Profile'!P124+'[3]5.2 Asset Age Profile'!P124","v":7},{"$f":"'[2]5.2 Asset Age Profile'!Q124+'[3]5.2 Asset Age Profile'!Q124","v":9},{"$f":"'[2]5.2 Asset Age Profile'!R124+'[3]5.2 Asset Age Profile'!R124","v":15},{"$f":"'[2]5.2 Asset Age Profile'!S124+'[3]5.2 Asset Age Profile'!S124","v":5},{"$f":"'[2]5.2 Asset Age Profile'!T124+'[3]5.2 Asset Age Profile'!T124","v":6},{"$f":"'[2]5.2 Asset Age Profile'!U124+'[3]5.2 Asset Age Profile'!U124","v":8},{"$f":"'[2]5.2 Asset Age Profile'!V124+'[3]5.2 Asset Age Profile'!V124","v":2},{"$f":"'[2]5.2 Asset Age Profile'!W124+'[3]5.2 Asset Age Profile'!W124","v":12},{"$f":"'[2]5.2 Asset Age Profile'!X124+'[3]5.2 Asset Age Profile'!X124","v":3},{"$f":"'[2]5.2 Asset Age Profile'!Y124+'[3]5.2 Asset Age Profile'!Y124","v":0},{"$f":"'[2]5.2 Asset Age Profile'!Z124+'[3]5.2 Asset Age Profile'!Z124","v":1},{"$f":"'[2]5.2 Asset Age Profile'!AA124+'[3]5.2 Asset Age Profile'!AA124","v":3},{"$f":"'[2]5.2 Asset Age Profile'!AB124+'[3]5.2 Asset Age Profile'!AB124","v":3},{"$f":"'[2]5.2 Asset Age Profile'!AC124+'[3]5.2 Asset Age Profile'!AC124","v":11},{"$f":"'[2]5.2 Asset Age Profile'!AD124+'[3]5.2 Asset Age Profile'!AD124","v":15},{"$f":"'[2]5.2 Asset Age Profile'!AE124+'[3]5.2 Asset Age Profile'!AE124","v":3},{"$f":"'[2]5.2 Asset Age Profile'!AF124+'[3]5.2 Asset Age Profile'!AF124","v":0},{"$f":"'[2]5.2 Asset Age Profile'!AG124+'[3]5.2 Asset Age Profile'!AG124","v":0},{"$f":"'[2]5.2 Asset Age Profile'!AH124+'[3]5.2 Asset Age Profile'!AH124","v":0},{"$f":"'[2]5.2 Asset Age Profile'!AI124+'[3]5.2 Asset Age Profile'!AI124","v":0},{"$f":"'[2]5.2 Asset Age Profile'!AJ124+'[3]5.2 Asset Age Profile'!AJ124","v":0},{"$f":"'[2]5.2 Asset Age Profile'!AK124+'[3]5.2 Asset Age Profile'!AK124","v":0},{"$f":"'[2]5.2 Asset Age Profile'!AL124+'[3]5.2 Asset Age Profile'!AL124","v":0},{"$f":"'[2]5.2 Asset Age Profile'!AM124+'[3]5.2 Asset Age Profile'!AM124","v":0},{"$f":"'[2]5.2 Asset Age Profile'!AN124+'[3]5.2 Asset Age Profile'!AN124","v":0},{"$f":"'[2]5.2 Asset Age Profile'!AO124+'[3]5.2 Asset Age Profile'!AO124","v":0},{"$f":"'[2]5.2 Asset Age Profile'!AP124+'[3]5.2 Asset Age Profile'!AP124","v":0},{"$f":"'[2]5.2 Asset Age Profile'!AQ124+'[3]5.2 Asset Age Profile'!AQ124","v":0},{"$f":"'[2]5.2 Asset Age Profile'!AR124+'[3]5.2 Asset Age Profile'!AR124","v":0},{"$f":"'[2]5.2 Asset Age Profile'!AS124+'[3]5.2 Asset Age Profile'!AS124","v":0},{"$f":"'[2]5.2 Asset Age Profile'!AT124+'[3]5.2 Asset Age Profile'!AT124","v":0},{"$f":"'[2]5.2 Asset Age Profile'!AU124+'[3]5.2 Asset Age Profile'!AU124","v":0},{"$f":"'[2]5.2 Asset Age Profile'!AV124+'[3]5.2 Asset Age Profile'!AV124","v":0},{"$f":"'[2]5.2 Asset Age Profile'!AW124+'[3]5.2 Asset Age Profile'!AW124","v":0},{"$f":"'[2]5.2 Asset Age Profile'!AX124+'[3]5.2 Asset Age Profile'!AX124","v":0},{"$f":"'[2]5.2 Asset Age Profile'!AY124+'[3]5.2 Asset Age Profile'!AY124","v":0},{"$f":"'[2]5.2 Asset Age Profile'!AZ124+'[3]5.2 Asset Age Profile'!AZ124","v":0},{"$f":"'[2]5.2 Asset Age Profile'!BA124+'[3]5.2 Asset Age Profile'!BA124","v":0},{"$f":"'[2]5.2 Asset Age Profile'!BB124+'[3]5.2 Asset Age Profile'!BB124","v":0},{"$f":"'[2]5.2 Asset Age Profile'!BC124+'[3]5.2 Asset Age Profile'!BC124","v":0},{"$f":"'[2]5.2 Asset Age Profile'!BD124+'[3]5.2 Asset Age Profile'!BD124","v":0},{"$f":"'[2]5.2 Asset Age Profile'!BE124+'[3]5.2 Asset Age Profile'!BE124","v":0},{"$f":"'[2]5.2 Asset Age Profile'!BF124+'[3]5.2 Asset Age Profile'!BF124","v":0},{"$f":"'[2]5.2 Asset Age Profile'!BG124+'[3]5.2 Asset Age Profile'!BG124","v":0},{"$f":"'[2]5.2 Asset Age Profile'!BH124+'[3]5.2 Asset Age Profile'!BH124","v":0},{"$f":"'[2]5.2 Asset Age Profile'!BI124+'[3]5.2 Asset Age Profile'!BI124","v":0},{"$f":"'[2]5.2 Asset Age Profile'!BJ124+'[3]5.2 Asset Age Profile'!BJ124","v":0},{"$f":"'[2]5.2 Asset Age Profile'!BK124+'[3]5.2 Asset Age Profile'!BK124","v":0},{"$f":"'[2]5.2 Asset Age Profile'!BL124+'[3]5.2 Asset Age Profile'!BL124","v":0},{"$f":"'[2]5.2 Asset Age Profile'!BM124+'[3]5.2 Asset Age Profile'!BM124","v":0},{"$f":"'[2]5.2 Asset Age Profile'!BN124+'[3]5.2 Asset Age Profile'!BN124","v":0},{"$f":"'[2]5.2 Asset Age Profile'!BO124+'[3]5.2 Asset Age Profile'!BO124","v":0},{"$f":"'[2]5.2 Asset Age Profile'!BP124+'[3]5.2 Asset Age Profile'!BP124","v":0},{"$f":"'[2]5.2 Asset Age Profile'!BQ124+'[3]5.2 Asset Age Profile'!BQ124","v":0},{"$f":"'[2]5.2 Asset Age Profile'!BR124+'[3]5.2 Asset Age Profile'!BR124","v":0},{"$f":"'[2]5.2 Asset Age Profile'!BS124+'[3]5.2 Asset Age Profile'!BS124","v":0},{"$f":"'[2]5.2 Asset Age Profile'!BT124+'[3]5.2 Asset Age Profile'!BT124","v":0},{"$f":"'[2]5.2 Asset Age Profile'!BU124+'[3]5.2 Asset Age Profile'!BU124","v":0},{"$f":"'[2]5.2 Asset Age Profile'!BV124+'[3]5.2 Asset Age Profile'!BV124","v":0},{"$f":"'[2]5.2 Asset Age Profile'!BW124+'[3]5.2 Asset Age Profile'!BW124","v":0},{"$f":"'[2]5.2 Asset Age Profile'!BX124+'[3]5.2 Asset Age Profile'!BX124","v":0},{"$f":"'[2]5.2 Asset Age Profile'!BY124+'[3]5.2 Asset Age Profile'!BY124","v":0},{"$f":"'[2]5.2 Asset Age Profile'!BZ124+'[3]5.2 Asset Age Profile'!BZ124","v":0},{"$f":"'[2]5.2 Asset Age Profile'!CA124+'[3]5.2 Asset Age Profile'!CA124","v":0},{"$f":"'[2]5.2 Asset Age Profile'!CB124+'[3]5.2 Asset Age Profile'!CB124","v":0},{"$f":"'[2]5.2 Asset Age Profile'!CC124+'[3]5.2 Asset Age Profile'!CC124","v":0},{"$f":"'[2]5.2 Asset Age Profile'!CD124+'[3]5.2 Asset Age Profile'!CD124","v":0},{"$f":"'[2]5.2 Asset Age Profile'!CE124+'[3]5.2 Asset Age Profile'!CE124","v":0},{"$f":"'[2]5.2 Asset Age Profile'!CF124+'[3]5.2 Asset Age Profile'!CF124","v":0},{"$f":"'[2]5.2 Asset Age Profile'!CG124+'[3]5.2 Asset Age Profile'!CG124","v":0},{"$f":"'[2]5.2 Asset Age Profile'!CH124+'[3]5.2 Asset Age Profile'!CH124","v":0},{"$f":"'[2]5.2 Asset Age Profile'!CI124+'[3]5.2 Asset Age Profile'!CI124","v":0},{"$f":"'[2]5.2 Asset Age Profile'!CJ124+'[3]5.2 Asset Age Profile'!CJ124","v":0},{"$f":"'[2]5.2 Asset Age Profile'!CK124+'[3]5.2 Asset Age Profile'!CK124","v":0},{"$f":"'[2]5.2 Asset Age Profile'!CL124+'[3]5.2 Asset Age Profile'!CL124","v":0},{"$f":"'[2]5.2 Asset Age Profile'!CM124+'[3]5.2 Asset Age Profile'!CM124","v":0},{"$f":"'[2]5.2 Asset Age Profile'!CN124+'[3]5.2 Asset Age Profile'!CN124","v":0},{"$f":"'[2]5.2 Asset Age Profile'!CO124+'[3]5.2 Asset Age Profile'!CO124","v":0},{"$f":"'[2]5.2 Asset Age Profile'!CP124+'[3]5.2 Asset Age Profile'!CP124","v":0},{"$f":"'[2]5.2 Asset Age Profile'!CQ124+'[3]5.2 Asset Age Profile'!CQ124","v":0},{"$f":"'[2]5.2 Asset Age Profile'!CR124+'[3]5.2 Asset Age Profile'!CR124","v":0},{"$f":"'[2]5.2 Asset Age Profile'!CS124+'[3]5.2 Asset Age Profile'!CS124","v":0},{"$f":"'[2]5.2 Asset Age Profile'!CT124+'[3]5.2 Asset Age Profile'!CT124","v":0},{"$f":"'[2]5.2 Asset Age Profile'!CU124+'[3]5.2 Asset Age Profile'!CU124","v":0},{"$f":"'[2]5.2 Asset Age Profile'!CV124+'[3]5.2 Asset Age Profile'!CV124","v":0},{"$f":"'[2]5.2 Asset Age Profile'!CW124+'[3]5.2 Asset Age Profile'!CW124","v":0},{"$f":"'[2]5.2 Asset Age Profile'!CX124+'[3]5.2 Asset Age Profile'!CX124","v":0},{"$f":"'[2]5.2 Asset Age Profile'!CY124+'[3]5.2 Asset Age Profile'!CY124","v":0},{"$f":"'[2]5.2 Asset Age Profile'!CZ124+'[3]5.2 Asset Age Profile'!CZ124","v":0},{"$f":"'[2]5.2 Asset Age Profile'!DA124+'[3]5.2 Asset Age Profile'!DA124","v":0},{"$f":"'[2]5.2 Asset Age Profile'!DB124+'[3]5.2 Asset Age Profile'!DB124","v":0},{"$f":"'[2]5.2 Asset Age Profile'!DC124+'[3]5.2 Asset Age Profile'!DC124","v":0},{"$f":"'[2]5.2 Asset Age Profile'!DD124+'[3]5.2 Asset Age Profile'!DD124","v":0},{"$f":"'[2]5.2 Asset Age Profile'!DE124+'[3]5.2 Asset Age Profile'!DE124","v":0},{"$f":"'[2]5.2 Asset Age Profile'!DF124+'[3]5.2 Asset Age Profile'!DF124","v":0},{"$f":"'[2]5.2 Asset Age Profile'!DG124+'[3]5.2 Asset Age Profile'!DG124","v":0},{"$f":"'[2]5.2 Asset Age Profile'!DH124+'[3]5.2 Asset Age Profile'!DH124","v":0},{"$f":"'[2]5.2 Asset Age Profile'!DI124+'[3]5.2 Asset Age Profile'!DI124","v":0},{"$f":"'[2]5.2 Asset Age Profile'!DJ124+'[3]5.2 Asset Age Profile'!DJ124","v":0},{"$f":"'[2]5.2 Asset Age Profile'!DK124+'[3]5.2 Asset Age Profile'!DK124","v":0},{"$f":"'[2]5.2 Asset Age Profile'!DL124+'[3]5.2 Asset Age Profile'!DL124","v":0},{"$f":"'[2]5.2 Asset Age Profile'!DM124+'[3]5.2 Asset Age Profile'!DM124","v":0},{"$f":"'[2]5.2 Asset Age Profile'!DN124+'[3]5.2 Asset Age Profile'!DN124","v":0},{"$f":"'[2]5.2 Asset Age Profile'!DO124+'[3]5.2 Asset Age Profile'!DO124","v":0},{"$f":"'[2]5.2 Asset Age Profile'!DP124+'[3]5.2 Asset Age Profile'!DP124","v":0},{"$f":"'[2]5.2 Asset Age Profile'!DQ124+'[3]5.2 Asset Age Profile'!DQ124","v":0},{"$f":"'[2]5.2 Asset Age Profile'!DR124+'[3]5.2 Asset Age Profile'!DR124","v":0},{"$f":"'[2]5.2 Asset Age Profile'!DS124+'[3]5.2 Asset Age Profile'!DS124","v":0},{"$f":"'[2]5.2 Asset Age Profile'!DT124+'[3]5.2 Asset Age Profile'!DT124","v":0},{"$f":"'[2]5.2 Asset Age Profile'!DU124+'[3]5.2 Asset Age Profile'!DU124","v":0},{"$f":"'[2]5.2 Asset Age Profile'!DV124+'[3]5.2 Asset Age Profile'!DV124","v":0},{"$f":"'[2]5.2 Asset Age Profile'!DW124+'[3]5.2 Asset Age Profile'!DW124","v":0},{"$f":"'[2]5.2 Asset Age Profile'!DX124+'[3]5.2 Asset Age Profile'!DX124","v":0},{"$f":"'[2]5.2 Asset Age Profile'!DY124+'[3]5.2 Asset Age Profile'!DY124","v":0},{"$f":"'[2]5.2 Asset Age Profile'!DZ124+'[3]5.2 Asset Age Profile'!DZ124","v":0},{"$f":"'[2]5.2 Asset Age Profile'!EA124+'[3]5.2 Asset Age Profile'!EA124","v":0},{"$f":"'[2]5.2 Asset Age Profile'!EB124+'[3]5.2 Asset Age Profile'!EB124","v":0},{"$f":"'[2]5.2 Asset Age Profile'!EC124+'[3]5.2 Asset Age Profile'!EC124","v":0},{"$f":"'[2]5.2 Asset Age Profile'!ED124+'[3]5.2 Asset Age Profile'!ED124","v":0},{"$f":"'[2]5.2 Asset Age Profile'!EE124+'[3]5.2 Asset Age Profile'!EE124","v":0},{"$f":"'[2]5.2 Asset Age Profile'!EF124+'[3]5.2 Asset Age Profile'!EF124","v":0},{"$f":"'[2]5.2 Asset Age Profile'!EG124+'[3]5.2 Asset Age Profile'!EG124","v":0},{"$f":"'[2]5.2 Asset Age Profile'!EH124+'[3]5.2 Asset Age Profile'!EH124","v":0},{"$f":"'[2]5.2 Asset Age Profile'!EI124+'[3]5.2 Asset Age Profile'!EI124","v":0},{"$f":"'[2]5.2 Asset Age Profile'!EJ124+'[3]5.2 Asset Age Profile'!EJ124","v":0}]
["ED_ASS521_00115",null,"Communications Network Assets",null,"DNSP NAME","REPEX","SCADA AND PROTECTION","Communications Network Assets","DESCRIPTOR METRIC","MEAN ECONOMIC LIFE","YEARS","NUMBER",null,{"$f":"'[2]5.2 Asset Age Profile'!N125+'[3]5.2 Asset Age Profile'!N125","v":15},{"$f":"'[2]5.2 Asset Age Profile'!O125+'[3]5.2 Asset Age Profile'!O125","v":0},{"$f":"'[2]5.2 Asset Age Profile'!P125+'[3]5.2 Asset Age Profile'!P125","v":0},{"$f":"'[2]5.2 Asset Age Profile'!Q125+'[3]5.2 Asset Age Profile'!Q125","v":0},{"$f":"'[2]5.2 Asset Age Profile'!R125+'[3]5.2 Asset Age Profile'!R125","v":0},{"$f":"'[2]5.2 Asset Age Profile'!S125+'[3]5.2 Asset Age Profile'!S125","v":0},{"$f":"'[2]5.2 Asset Age Profile'!T125+'[3]5.2 Asset Age Profile'!T125","v":0},{"$f":"'[2]5.2 Asset Age Profile'!U125+'[3]5.2 Asset Age Profile'!U125","v":0},{"$f":"'[2]5.2 Asset Age Profile'!V125+'[3]5.2 Asset Age Profile'!V125","v":0},{"$f":"'[2]5.2 Asset Age Profile'!W125+'[3]5.2 Asset Age Profile'!W125","v":0},{"$f":"'[2]5.2 Asset Age Profile'!X125+'[3]5.2 Asset Age Profile'!X125","v":0},{"$f":"'[2]5.2 Asset Age Profile'!Y125+'[3]5.2 Asset Age Profile'!Y125","v":0},{"$f":"'[2]5.2 Asset Age Profile'!Z125+'[3]5.2 Asset Age Profile'!Z125","v":0},{"$f":"'[2]5.2 Asset Age Profile'!AA125+'[3]5.2 Asset Age Profile'!AA125","v":0},{"$f":"'[2]5.2 Asset Age Profile'!AB125+'[3]5.2 Asset Age Profile'!AB125","v":0},{"$f":"'[2]5.2 Asset Age Profile'!AC125+'[3]5.2 Asset Age Profile'!AC125","v":0},{"$f":"'[2]5.2 Asset Age Profile'!AD125+'[3]5.2 Asset Age Profile'!AD125","v":1},{"$f":"'[2]5.2 Asset Age Profile'!AE125+'[3]5.2 Asset Age Profile'!AE125","v":0},{"$f":"'[2]5.2 Asset Age Profile'!AF125+'[3]5.2 Asset Age Profile'!AF125","v":0},{"$f":"'[2]5.2 Asset Age Profile'!AG125+'[3]5.2 Asset Age Profile'!AG125","v":0},{"$f":"'[2]5.2 Asset Age Profile'!AH125+'[3]5.2 Asset Age Profile'!AH125","v":0},{"$f":"'[2]5.2 Asset Age Profile'!AI125+'[3]5.2 Asset Age Profile'!AI125","v":0},{"$f":"'[2]5.2 Asset Age Profile'!AJ125+'[3]5.2 Asset Age Profile'!AJ125","v":19},{"$f":"'[2]5.2 Asset Age Profile'!AK125+'[3]5.2 Asset Age Profile'!AK125","v":17},{"$f":"'[2]5.2 Asset Age Profile'!AL125+'[3]5.2 Asset Age Profile'!AL125","v":31},{"$f":"'[2]5.2 Asset Age Profile'!AM125+'[3]5.2 Asset Age Profile'!AM125","v":20},{"$f":"'[2]5.2 Asset Age Profile'!AN125+'[3]5.2 Asset Age Profile'!AN125","v":32},{"$f":"'[2]5.2 Asset Age Profile'!AO125+'[3]5.2 Asset Age Profile'!AO125","v":8},{"$f":"'[2]5.2 Asset Age Profile'!AP125+'[3]5.2 Asset Age Profile'!AP125","v":2},{"$f":"'[2]5.2 Asset Age Profile'!AQ125+'[3]5.2 Asset Age Profile'!AQ125","v":12},{"$f":"'[2]5.2 Asset Age Profile'!AR125+'[3]5.2 Asset Age Profile'!AR125","v":3},{"$f":"'[2]5.2 Asset Age Profile'!AS125+'[3]5.2 Asset Age Profile'!AS125","v":5},{"$f":"'[2]5.2 Asset Age Profile'!AT125+'[3]5.2 Asset Age Profile'!AT125","v":1},{"$f":"'[2]5.2 Asset Age Profile'!AU125+'[3]5.2 Asset Age Profile'!AU125","v":3},{"$f":"'[2]5.2 Asset Age Profile'!AV125+'[3]5.2 Asset Age Profile'!AV125","v":3},{"$f":"'[2]5.2 Asset Age Profile'!AW125+'[3]5.2 Asset Age Profile'!AW125","v":11},{"$f":"'[2]5.2 Asset Age Profile'!AX125+'[3]5.2 Asset Age Profile'!AX125","v":15},{"$f":"'[2]5.2 Asset Age Profile'!AY125+'[3]5.2 Asset Age Profile'!AY125","v":3},{"$f":"'[2]5.2 Asset Age Profile'!AZ125+'[3]5.2 Asset Age Profile'!AZ125","v":0},{"$f":"'[2]5.2 Asset Age Profile'!BA125+'[3]5.2 Asset Age Profile'!BA125","v":0},{"$f":"'[2]5.2 Asset Age Profile'!BB125+'[3]5.2 Asset Age Profile'!BB125","v":0},{"$f":"'[2]5.2 Asset Age Profile'!BC125+'[3]5.2 Asset Age Profile'!BC125","v":0},{"$f":"'[2]5.2 Asset Age Profile'!BD125+'[3]5.2 Asset Age Profile'!BD125","v":0},{"$f":"'[2]5.2 Asset Age Profile'!BE125+'[3]5.2 Asset Age Profile'!BE125","v":0},{"$f":"'[2]5.2 Asset Age Profile'!BF125+'[3]5.2 Asset Age Profile'!BF125","v":0},{"$f":"'[2]5.2 Asset Age Profile'!BG125+'[3]5.2 Asset Age Profile'!BG125","v":0},{"$f":"'[2]5.2 Asset Age Profile'!BH125+'[3]5.2 Asset Age Profile'!BH125","v":0},{"$f":"'[2]5.2 Asset Age Profile'!BI125+'[3]5.2 Asset Age Profile'!BI125","v":0},{"$f":"'[2]5.2 Asset Age Profile'!BJ125+'[3]5.2 Asset Age Profile'!BJ125","v":0},{"$f":"'[2]5.2 Asset Age Profile'!BK125+'[3]5.2 Asset Age Profile'!BK125","v":0},{"$f":"'[2]5.2 Asset Age Profile'!BL125+'[3]5.2 Asset Age Profile'!BL125","v":0},{"$f":"'[2]5.2 Asset Age Profile'!BM125+'[3]5.2 Asset Age Profile'!BM125","v":0},{"$f":"'[2]5.2 Asset Age Profile'!BN125+'[3]5.2 Asset Age Profile'!BN125","v":0},{"$f":"'[2]5.2 Asset Age Profile'!BO125+'[3]5.2 Asset Age Profile'!BO125","v":0},{"$f":"'[2]5.2 Asset Age Profile'!BP125+'[3]5.2 Asset Age Profile'!BP125","v":0},{"$f":"'[2]5.2 Asset Age Profile'!BQ125+'[3]5.2 Asset Age Profile'!BQ125","v":0},{"$f":"'[2]5.2 Asset Age Profile'!BR125+'[3]5.2 Asset Age Profile'!BR125","v":0},{"$f":"'[2]5.2 Asset Age Profile'!BS125+'[3]5.2 Asset Age Profile'!BS125","v":0},{"$f":"'[2]5.2 Asset Age Profile'!BT125+'[3]5.2 Asset Age Profile'!BT125","v":0},{"$f":"'[2]5.2 Asset Age Profile'!BU125+'[3]5.2 Asset Age Profile'!BU125","v":0},{"$f":"'[2]5.2 Asset Age Profile'!BV125+'[3]5.2 Asset Age Profile'!BV125","v":0},{"$f":"'[2]5.2 Asset Age Profile'!BW125+'[3]5.2 Asset Age Profile'!BW125","v":0},{"$f":"'[2]5.2 Asset Age Profile'!BX125+'[3]5.2 Asset Age Profile'!BX125","v":0},{"$f":"'[2]5.2 Asset Age Profile'!BY125+'[3]5.2 Asset Age Profile'!BY125","v":0},{"$f":"'[2]5.2 Asset Age Profile'!BZ125+'[3]5.2 Asset Age Profile'!BZ125","v":0},{"$f":"'[2]5.2 Asset Age Profile'!CA125+'[3]5.2 Asset Age Profile'!CA125","v":0},{"$f":"'[2]5.2 Asset Age Profile'!CB125+'[3]5.2 Asset Age Profile'!CB125","v":0},{"$f":"'[2]5.2 Asset Age Profile'!CC125+'[3]5.2 Asset Age Profile'!CC125","v":0},{"$f":"'[2]5.2 Asset Age Profile'!CD125+'[3]5.2 Asset Age Profile'!CD125","v":0},{"$f":"'[2]5.2 Asset Age Profile'!CE125+'[3]5.2 Asset Age Profile'!CE125","v":0},{"$f":"'[2]5.2 Asset Age Profile'!CF125+'[3]5.2 Asset Age Profile'!CF125","v":0},{"$f":"'[2]5.2 Asset Age Profile'!CG125+'[3]5.2 Asset Age Profile'!CG125","v":0},{"$f":"'[2]5.2 Asset Age Profile'!CH125+'[3]5.2 Asset Age Profile'!CH125","v":0},{"$f":"'[2]5.2 Asset Age Profile'!CI125+'[3]5.2 Asset Age Profile'!CI125","v":0},{"$f":"'[2]5.2 Asset Age Profile'!CJ125+'[3]5.2 Asset Age Profile'!CJ125","v":0},{"$f":"'[2]5.2 Asset Age Profile'!CK125+'[3]5.2 Asset Age Profile'!CK125","v":0},{"$f":"'[2]5.2 Asset Age Profile'!CL125+'[3]5.2 Asset Age Profile'!CL125","v":0},{"$f":"'[2]5.2 Asset Age Profile'!CM125+'[3]5.2 Asset Age Profile'!CM125","v":0},{"$f":"'[2]5.2 Asset Age Profile'!CN125+'[3]5.2 Asset Age Profile'!CN125","v":0},{"$f":"'[2]5.2 Asset Age Profile'!CO125+'[3]5.2 Asset Age Profile'!CO125","v":0},{"$f":"'[2]5.2 Asset Age Profile'!CP125+'[3]5.2 Asset Age Profile'!CP125","v":0},{"$f":"'[2]5.2 Asset Age Profile'!CQ125+'[3]5.2 Asset Age Profile'!CQ125","v":0},{"$f":"'[2]5.2 Asset Age Profile'!CR125+'[3]5.2 Asset Age Profile'!CR125","v":0},{"$f":"'[2]5.2 Asset Age Profile'!CS125+'[3]5.2 Asset Age Profile'!CS125","v":0},{"$f":"'[2]5.2 Asset Age Profile'!CT125+'[3]5.2 Asset Age Profile'!CT125","v":0},{"$f":"'[2]5.2 Asset Age Profile'!CU125+'[3]5.2 Asset Age Profile'!CU125","v":0},{"$f":"'[2]5.2 Asset Age Profile'!CV125+'[3]5.2 Asset Age Profile'!CV125","v":0},{"$f":"'[2]5.2 Asset Age Profile'!CW125+'[3]5.2 Asset Age Profile'!CW125","v":0},{"$f":"'[2]5.2 Asset Age Profile'!CX125+'[3]5.2 Asset Age Profile'!CX125","v":0},{"$f":"'[2]5.2 Asset Age Profile'!CY125+'[3]5.2 Asset Age Profile'!CY125","v":0},{"$f":"'[2]5.2 Asset Age Profile'!CZ125+'[3]5.2 Asset Age Profile'!CZ125","v":0},{"$f":"'[2]5.2 Asset Age Profile'!DA125+'[3]5.2 Asset Age Profile'!DA125","v":0},{"$f":"'[2]5.2 Asset Age Profile'!DB125+'[3]5.2 Asset Age Profile'!DB125","v":0},{"$f":"'[2]5.2 Asset Age Profile'!DC125+'[3]5.2 Asset Age Profile'!DC125","v":0},{"$f":"'[2]5.2 Asset Age Profile'!DD125+'[3]5.2 Asset Age Profile'!DD125","v":0},{"$f":"'[2]5.2 Asset Age Profile'!DE125+'[3]5.2 Asset Age Profile'!DE125","v":0},{"$f":"'[2]5.2 Asset Age Profile'!DF125+'[3]5.2 Asset Age Profile'!DF125","v":0},{"$f":"'[2]5.2 Asset Age Profile'!DG125+'[3]5.2 Asset Age Profile'!DG125","v":0},{"$f":"'[2]5.2 Asset Age Profile'!DH125+'[3]5.2 Asset Age Profile'!DH125","v":0},{"$f":"'[2]5.2 Asset Age Profile'!DI125+'[3]5.2 Asset Age Profile'!DI125","v":0},{"$f":"'[2]5.2 Asset Age Profile'!DJ125+'[3]5.2 Asset Age Profile'!DJ125","v":0},{"$f":"'[2]5.2 Asset Age Profile'!DK125+'[3]5.2 Asset Age Profile'!DK125","v":0},{"$f":"'[2]5.2 Asset Age Profile'!DL125+'[3]5.2 Asset Age Profile'!DL125","v":0},{"$f":"'[2]5.2 Asset Age Profile'!DM125+'[3]5.2 Asset Age Profile'!DM125","v":0},{"$f":"'[2]5.2 Asset Age Profile'!DN125+'[3]5.2 Asset Age Profile'!DN125","v":0},{"$f":"'[2]5.2 Asset Age Profile'!DO125+'[3]5.2 Asset Age Profile'!DO125","v":0},{"$f":"'[2]5.2 Asset Age Profile'!DP125+'[3]5.2 Asset Age Profile'!DP125","v":0},{"$f":"'[2]5.2 Asset Age Profile'!DQ125+'[3]5.2 Asset Age Profile'!DQ125","v":0},{"$f":"'[2]5.2 Asset Age Profile'!DR125+'[3]5.2 Asset Age Profile'!DR125","v":0},{"$f":"'[2]5.2 Asset Age Profile'!DS125+'[3]5.2 Asset Age Profile'!DS125","v":0},{"$f":"'[2]5.2 Asset Age Profile'!DT125+'[3]5.2 Asset Age Profile'!DT125","v":0},{"$f":"'[2]5.2 Asset Age Profile'!DU125+'[3]5.2 Asset Age Profile'!DU125","v":0},{"$f":"'[2]5.2 Asset Age Profile'!DV125+'[3]5.2 Asset Age Profile'!DV125","v":0},{"$f":"'[2]5.2 Asset Age Profile'!DW125+'[3]5.2 Asset Age Profile'!DW125","v":0},{"$f":"'[2]5.2 Asset Age Profile'!DX125+'[3]5.2 Asset Age Profile'!DX125","v":0},{"$f":"'[2]5.2 Asset Age Profile'!DY125+'[3]5.2 Asset Age Profile'!DY125","v":0},{"$f":"'[2]5.2 Asset Age Profile'!DZ125+'[3]5.2 Asset Age Profile'!DZ125","v":0},{"$f":"'[2]5.2 Asset Age Profile'!EA125+'[3]5.2 Asset Age Profile'!EA125","v":0},{"$f":"'[2]5.2 Asset Age Profile'!EB125+'[3]5.2 Asset Age Profile'!EB125","v":0},{"$f":"'[2]5.2 Asset Age Profile'!EC125+'[3]5.2 Asset Age Profile'!EC125","v":0},{"$f":"'[2]5.2 Asset Age Profile'!ED125+'[3]5.2 Asset Age Profile'!ED125","v":0},{"$f":"'[2]5.2 Asset Age Profile'!EE125+'[3]5.2 Asset Age Profile'!EE125","v":0},{"$f":"'[2]5.2 Asset Age Profile'!EF125+'[3]5.2 Asset Age Profile'!EF125","v":0},{"$f":"'[2]5.2 Asset Age Profile'!EG125+'[3]5.2 Asset Age Profile'!EG125","v":0},{"$f":"'[2]5.2 Asset Age Profile'!EH125+'[3]5.2 Asset Age Profile'!EH125","v":0},{"$f":"'[2]5.2 Asset Age Profile'!EI125+'[3]5.2 Asset Age Profile'!EI125","v":0},{"$f":"'[2]5.2 Asset Age Profile'!EJ125+'[3]5.2 Asset Age Profile'!EJ125","v":0}]
["ED_ASS521_00116",null,"Master Station Assets",null,"DNSP NAME","REPEX","SCADA AND PROTECTION","Master Station Assets","DESCRIPTOR METRIC","MEAN ECONOMIC LIFE","YEARS","NUMBER",null,{"$f":"'[2]5.2 Asset Age Profile'!N126+'[3]5.2 Asset Age Profile'!N126","v":15},{"$f":"'[2]5.2 Asset Age Profile'!O126+'[3]5.2 Asset Age Profile'!O126","v":0},{"$f":"'[2]5.2 Asset Age Profile'!P126+'[3]5.2 Asset Age Profile'!P126","v":0},{"$f":"'[2]5.2 Asset Age Profile'!Q126+'[3]5.2 Asset Age Profile'!Q126","v":8},{"$f":"'[2]5.2 Asset Age Profile'!R126+'[3]5.2 Asset Age Profile'!R126","v":1},{"$f":"'[2]5.2 Asset Age Profile'!S126+'[3]5.2 Asset Age Profile'!S126","v":34},{"$f":"'[2]5.2 Asset Age Profile'!T126+'[3]5.2 Asset Age Profile'!T126","v":8},{"$f":"'[2]5.2 Asset Age Profile'!U126+'[3]5.2 Asset Age Profile'!U126","v":4},{"$f":"'[2]5.2 Asset Age Profile'!V126+'[3]5.2 Asset Age Profile'!V126","v":1},{"$f":"'[2]5.2 Asset Age Profile'!W126+'[3]5.2 Asset Age Profile'!W126","v":1},{"$f":"'[2]5.2 Asset Age Profile'!X126+'[3]5.2 Asset Age Profile'!X126","v":0},{"$f":"'[2]5.2 Asset Age Profile'!Y126+'[3]5.2 Asset Age Profile'!Y126","v":0},{"$f":"'[2]5.2 Asset Age Profile'!Z126+'[3]5.2 Asset Age Profile'!Z126","v":0},{"$f":"'[2]5.2 Asset Age Profile'!AA126+'[3]5.2 Asset Age Profile'!AA126","v":0},{"$f":"'[2]5.2 Asset Age Profile'!AB126+'[3]5.2 Asset Age Profile'!AB126","v":0},{"$f":"'[2]5.2 Asset Age Profile'!AC126+'[3]5.2 Asset Age Profile'!AC126","v":1},{"$f":"'[2]5.2 Asset Age Profile'!AD126+'[3]5.2 Asset Age Profile'!AD126","v":1},{"$f":"'[2]5.2 Asset Age Profile'!AE126+'[3]5.2 Asset Age Profile'!AE126","v":0},{"$f":"'[2]5.2 Asset Age Profile'!AF126+'[3]5.2 Asset Age Profile'!AF126","v":0},{"$f":"'[2]5.2 Asset Age Profile'!AG126+'[3]5.2 Asset Age Profile'!AG126","v":0},{"$f":"'[2]5.2 Asset Age Profile'!AH126+'[3]5.2 Asset Age Profile'!AH126","v":0},{"$f":"'[2]5.2 Asset Age Profile'!AI126+'[3]5.2 Asset Age Profile'!AI126","v":5},{"$f":"'[2]5.2 Asset Age Profile'!AJ126+'[3]5.2 Asset Age Profile'!AJ126","v":0},{"$f":"'[2]5.2 Asset Age Profile'!AK126+'[3]5.2 Asset Age Profile'!AK126","v":0},{"$f":"'[2]5.2 Asset Age Profile'!AL126+'[3]5.2 Asset Age Profile'!AL126","v":0},{"$f":"'[2]5.2 Asset Age Profile'!AM126+'[3]5.2 Asset Age Profile'!AM126","v":0},{"$f":"'[2]5.2 Asset Age Profile'!AN126+'[3]5.2 Asset Age Profile'!AN126","v":0},{"$f":"'[2]5.2 Asset Age Profile'!AO126+'[3]5.2 Asset Age Profile'!AO126","v":0},{"$f":"'[2]5.2 Asset Age Profile'!AP126+'[3]5.2 Asset Age Profile'!AP126","v":0},{"$f":"'[2]5.2 Asset Age Profile'!AQ126+'[3]5.2 Asset Age Profile'!AQ126","v":0},{"$f":"'[2]5.2 Asset Age Profile'!AR126+'[3]5.2 Asset Age Profile'!AR126","v":0},{"$f":"'[2]5.2 Asset Age Profile'!AS126+'[3]5.2 Asset Age Profile'!AS126","v":0},{"$f":"'[2]5.2 Asset Age Profile'!AT126+'[3]5.2 Asset Age Profile'!AT126","v":0},{"$f":"'[2]5.2 Asset Age Profile'!AU126+'[3]5.2 Asset Age Profile'!AU126","v":0},{"$f":"'[2]5.2 Asset Age Profile'!AV126+'[3]5.2 Asset Age Profile'!AV126","v":0},{"$f":"'[2]5.2 Asset Age Profile'!AW126+'[3]5.2 Asset Age Profile'!AW126","v":0},{"$f":"'[2]5.2 Asset Age Profile'!AX126+'[3]5.2 Asset Age Profile'!AX126","v":1},{"$f":"'[2]5.2 Asset Age Profile'!AY126+'[3]5.2 Asset Age Profile'!AY126","v":0},{"$f":"'[2]5.2 Asset Age Profile'!AZ126+'[3]5.2 Asset Age Profile'!AZ126","v":0},{"$f":"'[2]5.2 Asset Age Profile'!BA126+'[3]5.2 Asset Age Profile'!BA126","v":0},{"$f":"'[2]5.2 Asset Age Profile'!BB126+'[3]5.2 Asset Age Profile'!BB126","v":0},{"$f":"'[2]5.2 Asset Age Profile'!BC126+'[3]5.2 Asset Age Profile'!BC126","v":0},{"$f":"'[2]5.2 Asset Age Profile'!BD126+'[3]5.2 Asset Age Profile'!BD126","v":0},{"$f":"'[2]5.2 Asset Age Profile'!BE126+'[3]5.2 Asset Age Profile'!BE126","v":0},{"$f":"'[2]5.2 Asset Age Profile'!BF126+'[3]5.2 Asset Age Profile'!BF126","v":0},{"$f":"'[2]5.2 Asset Age Profile'!BG126+'[3]5.2 Asset Age Profile'!BG126","v":0},{"$f":"'[2]5.2 Asset Age Profile'!BH126+'[3]5.2 Asset Age Profile'!BH126","v":0},{"$f":"'[2]5.2 Asset Age Profile'!BI126+'[3]5.2 Asset Age Profile'!BI126","v":0},{"$f":"'[2]5.2 Asset Age Profile'!BJ126+'[3]5.2 Asset Age Profile'!BJ126","v":0},{"$f":"'[2]5.2 Asset Age Profile'!BK126+'[3]5.2 Asset Age Profile'!BK126","v":0},{"$f":"'[2]5.2 Asset Age Profile'!BL126+'[3]5.2 Asset Age Profile'!BL126","v":0},{"$f":"'[2]5.2 Asset Age Profile'!BM126+'[3]5.2 Asset Age Profile'!BM126","v":0},{"$f":"'[2]5.2 Asset Age Profile'!BN126+'[3]5.2 Asset Age Profile'!BN126","v":0},{"$f":"'[2]5.2 Asset Age Profile'!BO126+'[3]5.2 Asset Age Profile'!BO126","v":0},{"$f":"'[2]5.2 Asset Age Profile'!BP126+'[3]5.2 Asset Age Profile'!BP126","v":0},{"$f":"'[2]5.2 Asset Age Profile'!BQ126+'[3]5.2 Asset Age Profile'!BQ126","v":0},{"$f":"'[2]5.2 Asset Age Profile'!BR126+'[3]5.2 Asset Age Profile'!BR126","v":0},{"$f":"'[2]5.2 Asset Age Profile'!BS126+'[3]5.2 Asset Age Profile'!BS126","v":0},{"$f":"'[2]5.2 Asset Age Profile'!BT126+'[3]5.2 Asset Age Profile'!BT126","v":0},{"$f":"'[2]5.2 Asset Age Profile'!BU126+'[3]5.2 Asset Age Profile'!BU126","v":0},{"$f":"'[2]5.2 Asset Age Profile'!BV126+'[3]5.2 Asset Age Profile'!BV126","v":0},{"$f":"'[2]5.2 Asset Age Profile'!BW126+'[3]5.2 Asset Age Profile'!BW126","v":0},{"$f":"'[2]5.2 Asset Age Profile'!BX126+'[3]5.2 Asset Age Profile'!BX126","v":0},{"$f":"'[2]5.2 Asset Age Profile'!BY126+'[3]5.2 Asset Age Profile'!BY126","v":0},{"$f":"'[2]5.2 Asset Age Profile'!BZ126+'[3]5.2 Asset Age Profile'!BZ126","v":0},{"$f":"'[2]5.2 Asset Age Profile'!CA126+'[3]5.2 Asset Age Profile'!CA126","v":0},{"$f":"'[2]5.2 Asset Age Profile'!CB126+'[3]5.2 Asset Age Profile'!CB126","v":0},{"$f":"'[2]5.2 Asset Age Profile'!CC126+'[3]5.2 Asset Age Profile'!CC126","v":0},{"$f":"'[2]5.2 Asset Age Profile'!CD126+'[3]5.2 Asset Age Profile'!CD126","v":0},{"$f":"'[2]5.2 Asset Age Profile'!CE126+'[3]5.2 Asset Age Profile'!CE126","v":0},{"$f":"'[2]5.2 Asset Age Profile'!CF126+'[3]5.2 Asset Age Profile'!CF126","v":0},{"$f":"'[2]5.2 Asset Age Profile'!CG126+'[3]5.2 Asset Age Profile'!CG126","v":0},{"$f":"'[2]5.2 Asset Age Profile'!CH126+'[3]5.2 Asset Age Profile'!CH126","v":0},{"$f":"'[2]5.2 Asset Age Profile'!CI126+'[3]5.2 Asset Age Profile'!CI126","v":0},{"$f":"'[2]5.2 Asset Age Profile'!CJ126+'[3]5.2 Asset Age Profile'!CJ126","v":0},{"$f":"'[2]5.2 Asset Age Profile'!CK126+'[3]5.2 Asset Age Profile'!CK126","v":0},{"$f":"'[2]5.2 Asset Age Profile'!CL126+'[3]5.2 Asset Age Profile'!CL126","v":0},{"$f":"'[2]5.2 Asset Age Profile'!CM126+'[3]5.2 Asset Age Profile'!CM126","v":0},{"$f":"'[2]5.2 Asset Age Profile'!CN126+'[3]5.2 Asset Age Profile'!CN126","v":0},{"$f":"'[2]5.2 Asset Age Profile'!CO126+'[3]5.2 Asset Age Profile'!CO126","v":0},{"$f":"'[2]5.2 Asset Age Profile'!CP126+'[3]5.2 Asset Age Profile'!CP126","v":0},{"$f":"'[2]5.2 Asset Age Profile'!CQ126+'[3]5.2 Asset Age Profile'!CQ126","v":0},{"$f":"'[2]5.2 Asset Age Profile'!CR126+'[3]5.2 Asset Age Profile'!CR126","v":0},{"$f":"'[2]5.2 Asset Age Profile'!CS126+'[3]5.2 Asset Age Profile'!CS126","v":0},{"$f":"'[2]5.2 Asset Age Profile'!CT126+'[3]5.2 Asset Age Profile'!CT126","v":0},{"$f":"'[2]5.2 Asset Age Profile'!CU126+'[3]5.2 Asset Age Profile'!CU126","v":0},{"$f":"'[2]5.2 Asset Age Profile'!CV126+'[3]5.2 Asset Age Profile'!CV126","v":0},{"$f":"'[2]5.2 Asset Age Profile'!CW126+'[3]5.2 Asset Age Profile'!CW126","v":0},{"$f":"'[2]5.2 Asset Age Profile'!CX126+'[3]5.2 Asset Age Profile'!CX126","v":0},{"$f":"'[2]5.2 Asset Age Profile'!CY126+'[3]5.2 Asset Age Profile'!CY126","v":0},{"$f":"'[2]5.2 Asset Age Profile'!CZ126+'[3]5.2 Asset Age Profile'!CZ126","v":0},{"$f":"'[2]5.2 Asset Age Profile'!DA126+'[3]5.2 Asset Age Profile'!DA126","v":0},{"$f":"'[2]5.2 Asset Age Profile'!DB126+'[3]5.2 Asset Age Profile'!DB126","v":0},{"$f":"'[2]5.2 Asset Age Profile'!DC126+'[3]5.2 Asset Age Profile'!DC126","v":0},{"$f":"'[2]5.2 Asset Age Profile'!DD126+'[3]5.2 Asset Age Profile'!DD126","v":0},{"$f":"'[2]5.2 Asset Age Profile'!DE126+'[3]5.2 Asset Age Profile'!DE126","v":0},{"$f":"'[2]5.2 Asset Age Profile'!DF126+'[3]5.2 Asset Age Profile'!DF126","v":0},{"$f":"'[2]5.2 Asset Age Profile'!DG126+'[3]5.2 Asset Age Profile'!DG126","v":0},{"$f":"'[2]5.2 Asset Age Profile'!DH126+'[3]5.2 Asset Age Profile'!DH126","v":0},{"$f":"'[2]5.2 Asset Age Profile'!DI126+'[3]5.2 Asset Age Profile'!DI126","v":0},{"$f":"'[2]5.2 Asset Age Profile'!DJ126+'[3]5.2 Asset Age Profile'!DJ126","v":0},{"$f":"'[2]5.2 Asset Age Profile'!DK126+'[3]5.2 Asset Age Profile'!DK126","v":0},{"$f":"'[2]5.2 Asset Age Profile'!DL126+'[3]5.2 Asset Age Profile'!DL126","v":0},{"$f":"'[2]5.2 Asset Age Profile'!DM126+'[3]5.2 Asset Age Profile'!DM126","v":0},{"$f":"'[2]5.2 Asset Age Profile'!DN126+'[3]5.2 Asset Age Profile'!DN126","v":0},{"$f":"'[2]5.2 Asset Age Profile'!DO126+'[3]5.2 Asset Age Profile'!DO126","v":0},{"$f":"'[2]5.2 Asset Age Profile'!DP126+'[3]5.2 Asset Age Profile'!DP126","v":0},{"$f":"'[2]5.2 Asset Age Profile'!DQ126+'[3]5.2 Asset Age Profile'!DQ126","v":0},{"$f":"'[2]5.2 Asset Age Profile'!DR126+'[3]5.2 Asset Age Profile'!DR126","v":0},{"$f":"'[2]5.2 Asset Age Profile'!DS126+'[3]5.2 Asset Age Profile'!DS126","v":0},{"$f":"'[2]5.2 Asset Age Profile'!DT126+'[3]5.2 Asset Age Profile'!DT126","v":0},{"$f":"'[2]5.2 Asset Age Profile'!DU126+'[3]5.2 Asset Age Profile'!DU126","v":0},{"$f":"'[2]5.2 Asset Age Profile'!DV126+'[3]5.2 Asset Age Profile'!DV126","v":0},{"$f":"'[2]5.2 Asset Age Profile'!DW126+'[3]5.2 Asset Age Profile'!DW126","v":0},{"$f":"'[2]5.2 Asset Age Profile'!DX126+'[3]5.2 Asset Age Profile'!DX126","v":0},{"$f":"'[2]5.2 Asset Age Profile'!DY126+'[3]5.2 Asset Age Profile'!DY126","v":0},{"$f":"'[2]5.2 Asset Age Profile'!DZ126+'[3]5.2 Asset Age Profile'!DZ126","v":0},{"$f":"'[2]5.2 Asset Age Profile'!EA126+'[3]5.2 Asset Age Profile'!EA126","v":0},{"$f":"'[2]5.2 Asset Age Profile'!EB126+'[3]5.2 Asset Age Profile'!EB126","v":0},{"$f":"'[2]5.2 Asset Age Profile'!EC126+'[3]5.2 Asset Age Profile'!EC126","v":0},{"$f":"'[2]5.2 Asset Age Profile'!ED126+'[3]5.2 Asset Age Profile'!ED126","v":0},{"$f":"'[2]5.2 Asset Age Profile'!EE126+'[3]5.2 Asset Age Profile'!EE126","v":0},{"$f":"'[2]5.2 Asset Age Profile'!EF126+'[3]5.2 Asset Age Profile'!EF126","v":0},{"$f":"'[2]5.2 Asset Age Profile'!EG126+'[3]5.2 Asset Age Profile'!EG126","v":0},{"$f":"'[2]5.2 Asset Age Profile'!EH126+'[3]5.2 Asset Age Profile'!EH126","v":0},{"$f":"'[2]5.2 Asset Age Profile'!EI126+'[3]5.2 Asset Age Profile'!EI126","v":0},{"$f":"'[2]5.2 Asset Age Profile'!EJ126+'[3]5.2 Asset Age Profile'!EJ126","v":0}]
["ED_ASS521_00117",null,"Communications Site Infrastructure",null,null,null,null,null,null,null,null,null,null,{"$f":"'[2]5.2 Asset Age Profile'!N127+'[3]5.2 Asset Age Profile'!N127","v":15},{"$f":"'[2]5.2 Asset Age Profile'!O127+'[3]5.2 Asset Age Profile'!O127","v":0},{"$f":"'[2]5.2 Asset Age Profile'!P127+'[3]5.2 Asset Age Profile'!P127","v":0},{"$f":"'[2]5.2 Asset Age Profile'!Q127+'[3]5.2 Asset Age Profile'!Q127","v":0},{"$f":"'[2]5.2 Asset Age Profile'!R127+'[3]5.2 Asset Age Profile'!R127","v":0},{"$f":"'[2]5.2 Asset Age Profile'!S127+'[3]5.2 Asset Age Profile'!S127","v":0},{"$f":"'[2]5.2 Asset Age Profile'!T127+'[3]5.2 Asset Age Profile'!T127","v":0},{"$f":"'[2]5.2 Asset Age Profile'!U127+'[3]5.2 Asset Age Profile'!U127","v":0},{"$f":"'[2]5.2 Asset Age Profile'!V127+'[3]5.2 Asset Age Profile'!V127","v":0},{"$f":"'[2]5.2 Asset Age Profile'!W127+'[3]5.2 Asset Age Profile'!W127","v":0},{"$f":"'[2]5.2 Asset Age Profile'!X127+'[3]5.2 Asset Age Profile'!X127","v":0},{"$f":"'[2]5.2 Asset Age Profile'!Y127+'[3]5.2 Asset Age Profile'!Y127","v":0},{"$f":"'[2]5.2 Asset Age Profile'!Z127+'[3]5.2 Asset Age Profile'!Z127","v":0},{"$f":"'[2]5.2 Asset Age Profile'!AA127+'[3]5.2 Asset Age Profile'!AA127","v":0},{"$f":"'[2]5.2 Asset Age Profile'!AB127+'[3]5.2 Asset Age Profile'!AB127","v":0},{"$f":"'[2]5.2 Asset Age Profile'!AC127+'[3]5.2 Asset Age Profile'!AC127","v":0},{"$f":"'[2]5.2 Asset Age Profile'!AD127+'[3]5.2 Asset Age Profile'!AD127","v":0},{"$f":"'[2]5.2 Asset Age Profile'!AE127+'[3]5.2 Asset Age Profile'!AE127","v":0},{"$f":"'[2]5.2 Asset Age Profile'!AF127+'[3]5.2 Asset Age Profile'!AF127","v":0},{"$f":"'[2]5.2 Asset Age Profile'!AG127+'[3]5.2 Asset Age Profile'!AG127","v":0},{"$f":"'[2]5.2 Asset Age Profile'!AH127+'[3]5.2 Asset Age Profile'!AH127","v":0},{"$f":"'[2]5.2 Asset Age Profile'!AI127+'[3]5.2 Asset Age Profile'!AI127","v":0},{"$f":"'[2]5.2 Asset Age Profile'!AJ127+'[3]5.2 Asset Age Profile'!AJ127","v":0},{"$f":"'[2]5.2 Asset Age Profile'!AK127+'[3]5.2 Asset Age Profile'!AK127","v":0},{"$f":"'[2]5.2 Asset Age Profile'!AL127+'[3]5.2 Asset Age Profile'!AL127","v":0},{"$f":"'[2]5.2 Asset Age Profile'!AM127+'[3]5.2 Asset Age Profile'!AM127","v":0},{"$f":"'[2]5.2 Asset Age Profile'!AN127+'[3]5.2 Asset Age Profile'!AN127","v":0},{"$f":"'[2]5.2 Asset Age Profile'!AO127+'[3]5.2 Asset Age Profile'!AO127","v":0},{"$f":"'[2]5.2 Asset Age Profile'!AP127+'[3]5.2 Asset Age Profile'!AP127","v":0},{"$f":"'[2]5.2 Asset Age Profile'!AQ127+'[3]5.2 Asset Age Profile'!AQ127","v":0},{"$f":"'[2]5.2 Asset Age Profile'!AR127+'[3]5.2 Asset Age Profile'!AR127","v":0},{"$f":"'[2]5.2 Asset Age Profile'!AS127+'[3]5.2 Asset Age Profile'!AS127","v":0},{"$f":"'[2]5.2 Asset Age Profile'!AT127+'[3]5.2 Asset Age Profile'!AT127","v":0},{"$f":"'[2]5.2 Asset Age Profile'!AU127+'[3]5.2 Asset Age Profile'!AU127","v":0},{"$f":"'[2]5.2 Asset Age Profile'!AV127+'[3]5.2 Asset Age Profile'!AV127","v":0},{"$f":"'[2]5.2 Asset Age Profile'!AW127+'[3]5.2 Asset Age Profile'!AW127","v":0},{"$f":"'[2]5.2 Asset Age Profile'!AX127+'[3]5.2 Asset Age Profile'!AX127","v":0},{"$f":"'[2]5.2 Asset Age Profile'!AY127+'[3]5.2 Asset Age Profile'!AY127","v":0},{"$f":"'[2]5.2 Asset Age Profile'!AZ127+'[3]5.2 Asset Age Profile'!AZ127","v":0},{"$f":"'[2]5.2 Asset Age Profile'!BA127+'[3]5.2 Asset Age Profile'!BA127","v":0},{"$f":"'[2]5.2 Asset Age Profile'!BB127+'[3]5.2 Asset Age Profile'!BB127","v":0},{"$f":"'[2]5.2 Asset Age Profile'!BC127+'[3]5.2 Asset Age Profile'!BC127","v":0},{"$f":"'[2]5.2 Asset Age Profile'!BD127+'[3]5.2 Asset Age Profile'!BD127","v":0},{"$f":"'[2]5.2 Asset Age Profile'!BE127+'[3]5.2 Asset Age Profile'!BE127","v":0},{"$f":"'[2]5.2 Asset Age Profile'!BF127+'[3]5.2 Asset Age Profile'!BF127","v":0},{"$f":"'[2]5.2 Asset Age Profile'!BG127+'[3]5.2 Asset Age Profile'!BG127","v":0},{"$f":"'[2]5.2 Asset Age Profile'!BH127+'[3]5.2 Asset Age Profile'!BH127","v":0},{"$f":"'[2]5.2 Asset Age Profile'!BI127+'[3]5.2 Asset Age Profile'!BI127","v":0},{"$f":"'[2]5.2 Asset Age Profile'!BJ127+'[3]5.2 Asset Age Profile'!BJ127","v":0},{"$f":"'[2]5.2 Asset Age Profile'!BK127+'[3]5.2 Asset Age Profile'!BK127","v":0},{"$f":"'[2]5.2 Asset Age Profile'!BL127+'[3]5.2 Asset Age Profile'!BL127","v":0},{"$f":"'[2]5.2 Asset Age Profile'!BM127+'[3]5.2 Asset Age Profile'!BM127","v":0},{"$f":"'[2]5.2 Asset Age Profile'!BN127+'[3]5.2 Asset Age Profile'!BN127","v":0},{"$f":"'[2]5.2 Asset Age Profile'!BO127+'[3]5.2 Asset Age Profile'!BO127","v":0},{"$f":"'[2]5.2 Asset Age Profile'!BP127+'[3]5.2 Asset Age Profile'!BP127","v":0},{"$f":"'[2]5.2 Asset Age Profile'!BQ127+'[3]5.2 Asset Age Profile'!BQ127","v":0},{"$f":"'[2]5.2 Asset Age Profile'!BR127+'[3]5.2 Asset Age Profile'!BR127","v":0},{"$f":"'[2]5.2 Asset Age Profile'!BS127+'[3]5.2 Asset Age Profile'!BS127","v":0},{"$f":"'[2]5.2 Asset Age Profile'!BT127+'[3]5.2 Asset Age Profile'!BT127","v":0},{"$f":"'[2]5.2 Asset Age Profile'!BU127+'[3]5.2 Asset Age Profile'!BU127","v":0},{"$f":"'[2]5.2 Asset Age Profile'!BV127+'[3]5.2 Asset Age Profile'!BV127","v":0},{"$f":"'[2]5.2 Asset Age Profile'!BW127+'[3]5.2 Asset Age Profile'!BW127","v":0},{"$f":"'[2]5.2 Asset Age Profile'!BX127+'[3]5.2 Asset Age Profile'!BX127","v":0},{"$f":"'[2]5.2 Asset Age Profile'!BY127+'[3]5.2 Asset Age Profile'!BY127","v":0},{"$f":"'[2]5.2 Asset Age Profile'!BZ127+'[3]5.2 Asset Age Profile'!BZ127","v":0},{"$f":"'[2]5.2 Asset Age Profile'!CA127+'[3]5.2 Asset Age Profile'!CA127","v":0},{"$f":"'[2]5.2 Asset Age Profile'!CB127+'[3]5.2 Asset Age Profile'!CB127","v":0},{"$f":"'[2]5.2 Asset Age Profile'!CC127+'[3]5.2 Asset Age Profile'!CC127","v":0},{"$f":"'[2]5.2 Asset Age Profile'!CD127+'[3]5.2 Asset Age Profile'!CD127","v":0},{"$f":"'[2]5.2 Asset Age Profile'!CE127+'[3]5.2 Asset Age Profile'!CE127","v":0},{"$f":"'[2]5.2 Asset Age Profile'!CF127+'[3]5.2 Asset Age Profile'!CF127","v":0},{"$f":"'[2]5.2 Asset Age Profile'!CG127+'[3]5.2 Asset Age Profile'!CG127","v":0},{"$f":"'[2]5.2 Asset Age Profile'!CH127+'[3]5.2 Asset Age Profile'!CH127","v":0},{"$f":"'[2]5.2 Asset Age Profile'!CI127+'[3]5.2 Asset Age Profile'!CI127","v":0},{"$f":"'[2]5.2 Asset Age Profile'!CJ127+'[3]5.2 Asset Age Profile'!CJ127","v":0},{"$f":"'[2]5.2 Asset Age Profile'!CK127+'[3]5.2 Asset Age Profile'!CK127","v":0},{"$f":"'[2]5.2 Asset Age Profile'!CL127+'[3]5.2 Asset Age Profile'!CL127","v":0},{"$f":"'[2]5.2 Asset Age Profile'!CM127+'[3]5.2 Asset Age Profile'!CM127","v":0},{"$f":"'[2]5.2 Asset Age Profile'!CN127+'[3]5.2 Asset Age Profile'!CN127","v":0},{"$f":"'[2]5.2 Asset Age Profile'!CO127+'[3]5.2 Asset Age Profile'!CO127","v":0},{"$f":"'[2]5.2 Asset Age Profile'!CP127+'[3]5.2 Asset Age Profile'!CP127","v":0},{"$f":"'[2]5.2 Asset Age Profile'!CQ127+'[3]5.2 Asset Age Profile'!CQ127","v":0},{"$f":"'[2]5.2 Asset Age Profile'!CR127+'[3]5.2 Asset Age Profile'!CR127","v":0},{"$f":"'[2]5.2 Asset Age Profile'!CS127+'[3]5.2 Asset Age Profile'!CS127","v":0},{"$f":"'[2]5.2 Asset Age Profile'!CT127+'[3]5.2 Asset Age Profile'!CT127","v":0},{"$f":"'[2]5.2 Asset Age Profile'!CU127+'[3]5.2 Asset Age Profile'!CU127","v":0},{"$f":"'[2]5.2 Asset Age Profile'!CV127+'[3]5.2 Asset Age Profile'!CV127","v":0},{"$f":"'[2]5.2 Asset Age Profile'!CW127+'[3]5.2 Asset Age Profile'!CW127","v":0},{"$f":"'[2]5.2 Asset Age Profile'!CX127+'[3]5.2 Asset Age Profile'!CX127","v":0},{"$f":"'[2]5.2 Asset Age Profile'!CY127+'[3]5.2 Asset Age Profile'!CY127","v":0},{"$f":"'[2]5.2 Asset Age Profile'!CZ127+'[3]5.2 Asset Age Profile'!CZ127","v":0},{"$f":"'[2]5.2 Asset Age Profile'!DA127+'[3]5.2 Asset Age Profile'!DA127","v":0},{"$f":"'[2]5.2 Asset Age Profile'!DB127+'[3]5.2 Asset Age Profile'!DB127","v":0},{"$f":"'[2]5.2 Asset Age Profile'!DC127+'[3]5.2 Asset Age Profile'!DC127","v":0},{"$f":"'[2]5.2 Asset Age Profile'!DD127+'[3]5.2 Asset Age Profile'!DD127","v":0},{"$f":"'[2]5.2 Asset Age Profile'!DE127+'[3]5.2 Asset Age Profile'!DE127","v":0},{"$f":"'[2]5.2 Asset Age Profile'!DF127+'[3]5.2 Asset Age Profile'!DF127","v":0},{"$f":"'[2]5.2 Asset Age Profile'!DG127+'[3]5.2 Asset Age Profile'!DG127","v":0},{"$f":"'[2]5.2 Asset Age Profile'!DH127+'[3]5.2 Asset Age Profile'!DH127","v":0},{"$f":"'[2]5.2 Asset Age Profile'!DI127+'[3]5.2 Asset Age Profile'!DI127","v":0},{"$f":"'[2]5.2 Asset Age Profile'!DJ127+'[3]5.2 Asset Age Profile'!DJ127","v":0},{"$f":"'[2]5.2 Asset Age Profile'!DK127+'[3]5.2 Asset Age Profile'!DK127","v":0},{"$f":"'[2]5.2 Asset Age Profile'!DL127+'[3]5.2 Asset Age Profile'!DL127","v":0},{"$f":"'[2]5.2 Asset Age Profile'!DM127+'[3]5.2 Asset Age Profile'!DM127","v":0},{"$f":"'[2]5.2 Asset Age Profile'!DN127+'[3]5.2 Asset Age Profile'!DN127","v":0},{"$f":"'[2]5.2 Asset Age Profile'!DO127+'[3]5.2 Asset Age Profile'!DO127","v":0},{"$f":"'[2]5.2 Asset Age Profile'!DP127+'[3]5.2 Asset Age Profile'!DP127","v":0},{"$f":"'[2]5.2 Asset Age Profile'!DQ127+'[3]5.2 Asset Age Profile'!DQ127","v":0},{"$f":"'[2]5.2 Asset Age Profile'!DR127+'[3]5.2 Asset Age Profile'!DR127","v":0},{"$f":"'[2]5.2 Asset Age Profile'!DS127+'[3]5.2 Asset Age Profile'!DS127","v":0},{"$f":"'[2]5.2 Asset Age Profile'!DT127+'[3]5.2 Asset Age Profile'!DT127","v":0},{"$f":"'[2]5.2 Asset Age Profile'!DU127+'[3]5.2 Asset Age Profile'!DU127","v":0},{"$f":"'[2]5.2 Asset Age Profile'!DV127+'[3]5.2 Asset Age Profile'!DV127","v":0},{"$f":"'[2]5.2 Asset Age Profile'!DW127+'[3]5.2 Asset Age Profile'!DW127","v":0},{"$f":"'[2]5.2 Asset Age Profile'!DX127+'[3]5.2 Asset Age Profile'!DX127","v":0},{"$f":"'[2]5.2 Asset Age Profile'!DY127+'[3]5.2 Asset Age Profile'!DY127","v":0},{"$f":"'[2]5.2 Asset Age Profile'!DZ127+'[3]5.2 Asset Age Profile'!DZ127","v":0},{"$f":"'[2]5.2 Asset Age Profile'!EA127+'[3]5.2 Asset Age Profile'!EA127","v":0},{"$f":"'[2]5.2 Asset Age Profile'!EB127+'[3]5.2 Asset Age Profile'!EB127","v":0},{"$f":"'[2]5.2 Asset Age Profile'!EC127+'[3]5.2 Asset Age Profile'!EC127","v":0},{"$f":"'[2]5.2 Asset Age Profile'!ED127+'[3]5.2 Asset Age Profile'!ED127","v":0},{"$f":"'[2]5.2 Asset Age Profile'!EE127+'[3]5.2 Asset Age Profile'!EE127","v":0},{"$f":"'[2]5.2 Asset Age Profile'!EF127+'[3]5.2 Asset Age Profile'!EF127","v":0},{"$f":"'[2]5.2 Asset Age Profile'!EG127+'[3]5.2 Asset Age Profile'!EG127","v":0},{"$f":"'[2]5.2 Asset Age Profile'!EH127+'[3]5.2 Asset Age Profile'!EH127","v":0},{"$f":"'[2]5.2 Asset Age Profile'!EI127+'[3]5.2 Asset Age Profile'!EI127","v":0},{"$f":"'[2]5.2 Asset Age Profile'!EJ127+'[3]5.2 Asset Age Profile'!EJ127","v":0}]
["ED_ASS521_00118",null,"Communications Linear Assets",null,null,null,null,null,null,null,null,null,null,{"$f":"'[2]5.2 Asset Age Profile'!N128+'[3]5.2 Asset Age Profile'!N128","v":0},{"$f":"'[2]5.2 Asset Age Profile'!O128+'[3]5.2 Asset Age Profile'!O128","v":0},{"$f":"'[2]5.2 Asset Age Profile'!P128+'[3]5.2 Asset Age Profile'!P128","v":0},{"$f":"'[2]5.2 Asset Age Profile'!Q128+'[3]5.2 Asset Age Profile'!Q128","v":0},{"$f":"'[2]5.2 Asset Age Profile'!R128+'[3]5.2 Asset Age Profile'!R128","v":0},{"$f":"'[2]5.2 Asset Age Profile'!S128+'[3]5.2 Asset Age Profile'!S128","v":0},{"$f":"'[2]5.2 Asset Age Profile'!T128+'[3]5.2 Asset Age Profile'!T128","v":0},{"$f":"'[2]5.2 Asset Age Profile'!U128+'[3]5.2 Asset Age Profile'!U128","v":0},{"$f":"'[2]5.2 Asset Age Profile'!V128+'[3]5.2 Asset Age Profile'!V128","v":0},{"$f":"'[2]5.2 Asset Age Profile'!W128+'[3]5.2 Asset Age Profile'!W128","v":0},{"$f":"'[2]5.2 Asset Age Profile'!X128+'[3]5.2 Asset Age Profile'!X128","v":0},{"$f":"'[2]5.2 Asset Age Profile'!Y128+'[3]5.2 Asset Age Profile'!Y128","v":0},{"$f":"'[2]5.2 Asset Age Profile'!Z128+'[3]5.2 Asset Age Profile'!Z128","v":0},{"$f":"'[2]5.2 Asset Age Profile'!AA128+'[3]5.2 Asset Age Profile'!AA128","v":0},{"$f":"'[2]5.2 Asset Age Profile'!AB128+'[3]5.2 Asset Age Profile'!AB128","v":0},{"$f":"'[2]5.2 Asset Age Profile'!AC128+'[3]5.2 Asset Age Profile'!AC128","v":0},{"$f":"'[2]5.2 Asset Age Profile'!AD128+'[3]5.2 Asset Age Profile'!AD128","v":0},{"$f":"'[2]5.2 Asset Age Profile'!AE128+'[3]5.2 Asset Age Profile'!AE128","v":0},{"$f":"'[2]5.2 Asset Age Profile'!AF128+'[3]5.2 Asset Age Profile'!AF128","v":0},{"$f":"'[2]5.2 Asset Age Profile'!AG128+'[3]5.2 Asset Age Profile'!AG128","v":0},{"$f":"'[2]5.2 Asset Age Profile'!AH128+'[3]5.2 Asset Age Profile'!AH128","v":0},{"$f":"'[2]5.2 Asset Age Profile'!AI128+'[3]5.2 Asset Age Profile'!AI128","v":0},{"$f":"'[2]5.2 Asset Age Profile'!AJ128+'[3]5.2 Asset Age Profile'!AJ128","v":0},{"$f":"'[2]5.2 Asset Age Profile'!AK128+'[3]5.2 Asset Age Profile'!AK128","v":0},{"$f":"'[2]5.2 Asset Age Profile'!AL128+'[3]5.2 Asset Age Profile'!AL128","v":0},{"$f":"'[2]5.2 Asset Age Profile'!AM128+'[3]5.2 Asset Age Profile'!AM128","v":0},{"$f":"'[2]5.2 Asset Age Profile'!AN128+'[3]5.2 Asset Age Profile'!AN128","v":0},{"$f":"'[2]5.2 Asset Age Profile'!AO128+'[3]5.2 Asset Age Profile'!AO128","v":0},{"$f":"'[2]5.2 Asset Age Profile'!AP128+'[3]5.2 Asset Age Profile'!AP128","v":0},{"$f":"'[2]5.2 Asset Age Profile'!AQ128+'[3]5.2 Asset Age Profile'!AQ128","v":0},{"$f":"'[2]5.2 Asset Age Profile'!AR128+'[3]5.2 Asset Age Profile'!AR128","v":0},{"$f":"'[2]5.2 Asset Age Profile'!AS128+'[3]5.2 Asset Age Profile'!AS128","v":0},{"$f":"'[2]5.2 Asset Age Profile'!AT128+'[3]5.2 Asset Age Profile'!AT128","v":0},{"$f":"'[2]5.2 Asset Age Profile'!AU128+'[3]5.2 Asset Age Profile'!AU128","v":0},{"$f":"'[2]5.2 Asset Age Profile'!AV128+'[3]5.2 Asset Age Profile'!AV128","v":0},{"$f":"'[2]5.2 Asset Age Profile'!AW128+'[3]5.2 Asset Age Profile'!AW128","v":0},{"$f":"'[2]5.2 Asset Age Profile'!AX128+'[3]5.2 Asset Age Profile'!AX128","v":0},{"$f":"'[2]5.2 Asset Age Profile'!AY128+'[3]5.2 Asset Age Profile'!AY128","v":0},{"$f":"'[2]5.2 Asset Age Profile'!AZ128+'[3]5.2 Asset Age Profile'!AZ128","v":0},{"$f":"'[2]5.2 Asset Age Profile'!BA128+'[3]5.2 Asset Age Profile'!BA128","v":0},{"$f":"'[2]5.2 Asset Age Profile'!BB128+'[3]5.2 Asset Age Profile'!BB128","v":0},{"$f":"'[2]5.2 Asset Age Profile'!BC128+'[3]5.2 Asset Age Profile'!BC128","v":0},{"$f":"'[2]5.2 Asset Age Profile'!BD128+'[3]5.2 Asset Age Profile'!BD128","v":0},{"$f":"'[2]5.2 Asset Age Profile'!BE128+'[3]5.2 Asset Age Profile'!BE128","v":0},{"$f":"'[2]5.2 Asset Age Profile'!BF128+'[3]5.2 Asset Age Profile'!BF128","v":0},{"$f":"'[2]5.2 Asset Age Profile'!BG128+'[3]5.2 Asset Age Profile'!BG128","v":0},{"$f":"'[2]5.2 Asset Age Profile'!BH128+'[3]5.2 Asset Age Profile'!BH128","v":0},{"$f":"'[2]5.2 Asset Age Profile'!BI128+'[3]5.2 Asset Age Profile'!BI128","v":0},{"$f":"'[2]5.2 Asset Age Profile'!BJ128+'[3]5.2 Asset Age Profile'!BJ128","v":0},{"$f":"'[2]5.2 Asset Age Profile'!BK128+'[3]5.2 Asset Age Profile'!BK128","v":0},{"$f":"'[2]5.2 Asset Age Profile'!BL128+'[3]5.2 Asset Age Profile'!BL128","v":0},{"$f":"'[2]5.2 Asset Age Profile'!BM128+'[3]5.2 Asset Age Profile'!BM128","v":0},{"$f":"'[2]5.2 Asset Age Profile'!BN128+'[3]5.2 Asset Age Profile'!BN128","v":0},{"$f":"'[2]5.2 Asset Age Profile'!BO128+'[3]5.2 Asset Age Profile'!BO128","v":0},{"$f":"'[2]5.2 Asset Age Profile'!BP128+'[3]5.2 Asset Age Profile'!BP128","v":0},{"$f":"'[2]5.2 Asset Age Profile'!BQ128+'[3]5.2 Asset Age Profile'!BQ128","v":0},{"$f":"'[2]5.2 Asset Age Profile'!BR128+'[3]5.2 Asset Age Profile'!BR128","v":0},{"$f":"'[2]5.2 Asset Age Profile'!BS128+'[3]5.2 Asset Age Profile'!BS128","v":0},{"$f":"'[2]5.2 Asset Age Profile'!BT128+'[3]5.2 Asset Age Profile'!BT128","v":0},{"$f":"'[2]5.2 Asset Age Profile'!BU128+'[3]5.2 Asset Age Profile'!BU128","v":0},{"$f":"'[2]5.2 Asset Age Profile'!BV128+'[3]5.2 Asset Age Profile'!BV128","v":0},{"$f":"'[2]5.2 Asset Age Profile'!BW128+'[3]5.2 Asset Age Profile'!BW128","v":0},{"$f":"'[2]5.2 Asset Age Profile'!BX128+'[3]5.2 Asset Age Profile'!BX128","v":0},{"$f":"'[2]5.2 Asset Age Profile'!BY128+'[3]5.2 Asset Age Profile'!BY128","v":0},{"$f":"'[2]5.2 Asset Age Profile'!BZ128+'[3]5.2 Asset Age Profile'!BZ128","v":0},{"$f":"'[2]5.2 Asset Age Profile'!CA128+'[3]5.2 Asset Age Profile'!CA128","v":0},{"$f":"'[2]5.2 Asset Age Profile'!CB128+'[3]5.2 Asset Age Profile'!CB128","v":0},{"$f":"'[2]5.2 Asset Age Profile'!CC128+'[3]5.2 Asset Age Profile'!CC128","v":0},{"$f":"'[2]5.2 Asset Age Profile'!CD128+'[3]5.2 Asset Age Profile'!CD128","v":0},{"$f":"'[2]5.2 Asset Age Profile'!CE128+'[3]5.2 Asset Age Profile'!CE128","v":0},{"$f":"'[2]5.2 Asset Age Profile'!CF128+'[3]5.2 Asset Age Profile'!CF128","v":0},{"$f":"'[2]5.2 Asset Age Profile'!CG128+'[3]5.2 Asset Age Profile'!CG128","v":0},{"$f":"'[2]5.2 Asset Age Profile'!CH128+'[3]5.2 Asset Age Profile'!CH128","v":0},{"$f":"'[2]5.2 Asset Age Profile'!CI128+'[3]5.2 Asset Age Profile'!CI128","v":0},{"$f":"'[2]5.2 Asset Age Profile'!CJ128+'[3]5.2 Asset Age Profile'!CJ128","v":0},{"$f":"'[2]5.2 Asset Age Profile'!CK128+'[3]5.2 Asset Age Profile'!CK128","v":0},{"$f":"'[2]5.2 Asset Age Profile'!CL128+'[3]5.2 Asset Age Profile'!CL128","v":0},{"$f":"'[2]5.2 Asset Age Profile'!CM128+'[3]5.2 Asset Age Profile'!CM128","v":0},{"$f":"'[2]5.2 Asset Age Profile'!CN128+'[3]5.2 Asset Age Profile'!CN128","v":0},{"$f":"'[2]5.2 Asset Age Profile'!CO128+'[3]5.2 Asset Age Profile'!CO128","v":0},{"$f":"'[2]5.2 Asset Age Profile'!CP128+'[3]5.2 Asset Age Profile'!CP128","v":0},{"$f":"'[2]5.2 Asset Age Profile'!CQ128+'[3]5.2 Asset Age Profile'!CQ128","v":0},{"$f":"'[2]5.2 Asset Age Profile'!CR128+'[3]5.2 Asset Age Profile'!CR128","v":0},{"$f":"'[2]5.2 Asset Age Profile'!CS128+'[3]5.2 Asset Age Profile'!CS128","v":0},{"$f":"'[2]5.2 Asset Age Profile'!CT128+'[3]5.2 Asset Age Profile'!CT128","v":0},{"$f":"'[2]5.2 Asset Age Profile'!CU128+'[3]5.2 Asset Age Profile'!CU128","v":0},{"$f":"'[2]5.2 Asset Age Profile'!CV128+'[3]5.2 Asset Age Profile'!CV128","v":0},{"$f":"'[2]5.2 Asset Age Profile'!CW128+'[3]5.2 Asset Age Profile'!CW128","v":0},{"$f":"'[2]5.2 Asset Age Profile'!CX128+'[3]5.2 Asset Age Profile'!CX128","v":0},{"$f":"'[2]5.2 Asset Age Profile'!CY128+'[3]5.2 Asset Age Profile'!CY128","v":0},{"$f":"'[2]5.2 Asset Age Profile'!CZ128+'[3]5.2 Asset Age Profile'!CZ128","v":0},{"$f":"'[2]5.2 Asset Age Profile'!DA128+'[3]5.2 Asset Age Profile'!DA128","v":0},{"$f":"'[2]5.2 Asset Age Profile'!DB128+'[3]5.2 Asset Age Profile'!DB128","v":0},{"$f":"'[2]5.2 Asset Age Profile'!DC128+'[3]5.2 Asset Age Profile'!DC128","v":0},{"$f":"'[2]5.2 Asset Age Profile'!DD128+'[3]5.2 Asset Age Profile'!DD128","v":0},{"$f":"'[2]5.2 Asset Age Profile'!DE128+'[3]5.2 Asset Age Profile'!DE128","v":0},{"$f":"'[2]5.2 Asset Age Profile'!DF128+'[3]5.2 Asset Age Profile'!DF128","v":0},{"$f":"'[2]5.2 Asset Age Profile'!DG128+'[3]5.2 Asset Age Profile'!DG128","v":0},{"$f":"'[2]5.2 Asset Age Profile'!DH128+'[3]5.2 Asset Age Profile'!DH128","v":0},{"$f":"'[2]5.2 Asset Age Profile'!DI128+'[3]5.2 Asset Age Profile'!DI128","v":0},{"$f":"'[2]5.2 Asset Age Profile'!DJ128+'[3]5.2 Asset Age Profile'!DJ128","v":0},{"$f":"'[2]5.2 Asset Age Profile'!DK128+'[3]5.2 Asset Age Profile'!DK128","v":0},{"$f":"'[2]5.2 Asset Age Profile'!DL128+'[3]5.2 Asset Age Profile'!DL128","v":0},{"$f":"'[2]5.2 Asset Age Profile'!DM128+'[3]5.2 Asset Age Profile'!DM128","v":0},{"$f":"'[2]5.2 Asset Age Profile'!DN128+'[3]5.2 Asset Age Profile'!DN128","v":0},{"$f":"'[2]5.2 Asset Age Profile'!DO128+'[3]5.2 Asset Age Profile'!DO128","v":0},{"$f":"'[2]5.2 Asset Age Profile'!DP128+'[3]5.2 Asset Age Profile'!DP128","v":0},{"$f":"'[2]5.2 Asset Age Profile'!DQ128+'[3]5.2 Asset Age Profile'!DQ128","v":0},{"$f":"'[2]5.2 Asset Age Profile'!DR128+'[3]5.2 Asset Age Profile'!DR128","v":0},{"$f":"'[2]5.2 Asset Age Profile'!DS128+'[3]5.2 Asset Age Profile'!DS128","v":0},{"$f":"'[2]5.2 Asset Age Profile'!DT128+'[3]5.2 Asset Age Profile'!DT128","v":0},{"$f":"'[2]5.2 Asset Age Profile'!DU128+'[3]5.2 Asset Age Profile'!DU128","v":0},{"$f":"'[2]5.2 Asset Age Profile'!DV128+'[3]5.2 Asset Age Profile'!DV128","v":0},{"$f":"'[2]5.2 Asset Age Profile'!DW128+'[3]5.2 Asset Age Profile'!DW128","v":0},{"$f":"'[2]5.2 Asset Age Profile'!DX128+'[3]5.2 Asset Age Profile'!DX128","v":0},{"$f":"'[2]5.2 Asset Age Profile'!DY128+'[3]5.2 Asset Age Profile'!DY128","v":0},{"$f":"'[2]5.2 Asset Age Profile'!DZ128+'[3]5.2 Asset Age Profile'!DZ128","v":0},{"$f":"'[2]5.2 Asset Age Profile'!EA128+'[3]5.2 Asset Age Profile'!EA128","v":0},{"$f":"'[2]5.2 Asset Age Profile'!EB128+'[3]5.2 Asset Age Profile'!EB128","v":0},{"$f":"'[2]5.2 Asset Age Profile'!EC128+'[3]5.2 Asset Age Profile'!EC128","v":0},{"$f":"'[2]5.2 Asset Age Profile'!ED128+'[3]5.2 Asset Age Profile'!ED128","v":0},{"$f":"'[2]5.2 Asset Age Profile'!EE128+'[3]5.2 Asset Age Profile'!EE128","v":0},{"$f":"'[2]5.2 Asset Age Profile'!EF128+'[3]5.2 Asset Age Profile'!EF128","v":0},{"$f":"'[2]5.2 Asset Age Profile'!EG128+'[3]5.2 Asset Age Profile'!EG128","v":0},{"$f":"'[2]5.2 Asset Age Profile'!EH128+'[3]5.2 Asset Age Profile'!EH128","v":0},{"$f":"'[2]5.2 Asset Age Profile'!EI128+'[3]5.2 Asset Age Profile'!EI128","v":0},{"$f":"'[2]5.2 Asset Age Profile'!EJ128+'[3]5.2 Asset Age Profile'!EJ128","v":0}]
["ED_ASS521_00119",null,"AFLC",null,"DNSP NAME","REPEX","SCADA AND PROTECTION","AFLC","DESCRIPTOR METRIC","MEAN ECONOMIC LIFE","YEARS","NUMBER",null,{"$f":"'[2]5.2 Asset Age Profile'!N129+'[3]5.2 Asset Age Profile'!N129","v":0},{"$f":"'[2]5.2 Asset Age Profile'!O129+'[3]5.2 Asset Age Profile'!O129","v":0},{"$f":"'[2]5.2 Asset Age Profile'!P129+'[3]5.2 Asset Age Profile'!P129","v":0},{"$f":"'[2]5.2 Asset Age Profile'!Q129+'[3]5.2 Asset Age Profile'!Q129","v":0},{"$f":"'[2]5.2 Asset Age Profile'!R129+'[3]5.2 Asset Age Profile'!R129","v":0},{"$f":"'[2]5.2 Asset Age Profile'!S129+'[3]5.2 Asset Age Profile'!S129","v":0},{"$f":"'[2]5.2 Asset Age Profile'!T129+'[3]5.2 Asset Age Profile'!T129","v":0},{"$f":"'[2]5.2 Asset Age Profile'!U129+'[3]5.2 Asset Age Profile'!U129","v":0},{"$f":"'[2]5.2 Asset Age Profile'!V129+'[3]5.2 Asset Age Profile'!V129","v":0},{"$f":"'[2]5.2 Asset Age Profile'!W129+'[3]5.2 Asset Age Profile'!W129","v":0},{"$f":"'[2]5.2 Asset Age Profile'!X129+'[3]5.2 Asset Age Profile'!X129","v":0},{"$f":"'[2]5.2 Asset Age Profile'!Y129+'[3]5.2 Asset Age Profile'!Y129","v":0},{"$f":"'[2]5.2 Asset Age Profile'!Z129+'[3]5.2 Asset Age Profile'!Z129","v":0},{"$f":"'[2]5.2 Asset Age Profile'!AA129+'[3]5.2 Asset Age Profile'!AA129","v":0},{"$f":"'[2]5.2 Asset Age Profile'!AB129+'[3]5.2 Asset Age Profile'!AB129","v":0},{"$f":"'[2]5.2 Asset Age Profile'!AC129+'[3]5.2 Asset Age Profile'!AC129","v":0},{"$f":"'[2]5.2 Asset Age Profile'!AD129+'[3]5.2 Asset Age Profile'!AD129","v":0},{"$f":"'[2]5.2 Asset Age Profile'!AE129+'[3]5.2 Asset Age Profile'!AE129","v":0},{"$f":"'[2]5.2 Asset Age Profile'!AF129+'[3]5.2 Asset Age Profile'!AF129","v":0},{"$f":"'[2]5.2 Asset Age Profile'!AG129+'[3]5.2 Asset Age Profile'!AG129","v":0},{"$f":"'[2]5.2 Asset Age Profile'!AH129+'[3]5.2 Asset Age Profile'!AH129","v":0},{"$f":"'[2]5.2 Asset Age Profile'!AI129+'[3]5.2 Asset Age Profile'!AI129","v":0},{"$f":"'[2]5.2 Asset Age Profile'!AJ129+'[3]5.2 Asset Age Profile'!AJ129","v":0},{"$f":"'[2]5.2 Asset Age Profile'!AK129+'[3]5.2 Asset Age Profile'!AK129","v":0},{"$f":"'[2]5.2 Asset Age Profile'!AL129+'[3]5.2 Asset Age Profile'!AL129","v":0},{"$f":"'[2]5.2 Asset Age Profile'!AM129+'[3]5.2 Asset Age Profile'!AM129","v":0},{"$f":"'[2]5.2 Asset Age Profile'!AN129+'[3]5.2 Asset Age Profile'!AN129","v":0},{"$f":"'[2]5.2 Asset Age Profile'!AO129+'[3]5.2 Asset Age Profile'!AO129","v":0},{"$f":"'[2]5.2 Asset Age Profile'!AP129+'[3]5.2 Asset Age Profile'!AP129","v":0},{"$f":"'[2]5.2 Asset Age Profile'!AQ129+'[3]5.2 Asset Age Profile'!AQ129","v":0},{"$f":"'[2]5.2 Asset Age Profile'!AR129+'[3]5.2 Asset Age Profile'!AR129","v":0},{"$f":"'[2]5.2 Asset Age Profile'!AS129+'[3]5.2 Asset Age Profile'!AS129","v":0},{"$f":"'[2]5.2 Asset Age Profile'!AT129+'[3]5.2 Asset Age Profile'!AT129","v":0},{"$f":"'[2]5.2 Asset Age Profile'!AU129+'[3]5.2 Asset Age Profile'!AU129","v":0},{"$f":"'[2]5.2 Asset Age Profile'!AV129+'[3]5.2 Asset Age Profile'!AV129","v":0},{"$f":"'[2]5.2 Asset Age Profile'!AW129+'[3]5.2 Asset Age Profile'!AW129","v":0},{"$f":"'[2]5.2 Asset Age Profile'!AX129+'[3]5.2 Asset Age Profile'!AX129","v":0},{"$f":"'[2]5.2 Asset Age Profile'!AY129+'[3]5.2 Asset Age Profile'!AY129","v":0},{"$f":"'[2]5.2 Asset Age Profile'!AZ129+'[3]5.2 Asset Age Profile'!AZ129","v":0},{"$f":"'[2]5.2 Asset Age Profile'!BA129+'[3]5.2 Asset Age Profile'!BA129","v":0},{"$f":"'[2]5.2 Asset Age Profile'!BB129+'[3]5.2 Asset Age Profile'!BB129","v":0},{"$f":"'[2]5.2 Asset Age Profile'!BC129+'[3]5.2 Asset Age Profile'!BC129","v":0},{"$f":"'[2]5.2 Asset Age Profile'!BD129+'[3]5.2 Asset Age Profile'!BD129","v":0},{"$f":"'[2]5.2 Asset Age Profile'!BE129+'[3]5.2 Asset Age Profile'!BE129","v":0},{"$f":"'[2]5.2 Asset Age Profile'!BF129+'[3]5.2 Asset Age Profile'!BF129","v":0},{"$f":"'[2]5.2 Asset Age Profile'!BG129+'[3]5.2 Asset Age Profile'!BG129","v":0},{"$f":"'[2]5.2 Asset Age Profile'!BH129+'[3]5.2 Asset Age Profile'!BH129","v":0},{"$f":"'[2]5.2 Asset Age Profile'!BI129+'[3]5.2 Asset Age Profile'!BI129","v":0},{"$f":"'[2]5.2 Asset Age Profile'!BJ129+'[3]5.2 Asset Age Profile'!BJ129","v":0},{"$f":"'[2]5.2 Asset Age Profile'!BK129+'[3]5.2 Asset Age Profile'!BK129","v":0},{"$f":"'[2]5.2 Asset Age Profile'!BL129+'[3]5.2 Asset Age Profile'!BL129","v":0},{"$f":"'[2]5.2 Asset Age Profile'!BM129+'[3]5.2 Asset Age Profile'!BM129","v":0},{"$f":"'[2]5.2 Asset Age Profile'!BN129+'[3]5.2 Asset Age Profile'!BN129","v":0},{"$f":"'[2]5.2 Asset Age Profile'!BO129+'[3]5.2 Asset Age Profile'!BO129","v":0},{"$f":"'[2]5.2 Asset Age Profile'!BP129+'[3]5.2 Asset Age Profile'!BP129","v":0},{"$f":"'[2]5.2 Asset Age Profile'!BQ129+'[3]5.2 Asset Age Profile'!BQ129","v":0},{"$f":"'[2]5.2 Asset Age Profile'!BR129+'[3]5.2 Asset Age Profile'!BR129","v":0},{"$f":"'[2]5.2 Asset Age Profile'!BS129+'[3]5.2 Asset Age Profile'!BS129","v":0},{"$f":"'[2]5.2 Asset Age Profile'!BT129+'[3]5.2 Asset Age Profile'!BT129","v":0},{"$f":"'[2]5.2 Asset Age Profile'!BU129+'[3]5.2 Asset Age Profile'!BU129","v":0},{"$f":"'[2]5.2 Asset Age Profile'!BV129+'[3]5.2 Asset Age Profile'!BV129","v":0},{"$f":"'[2]5.2 Asset Age Profile'!BW129+'[3]5.2 Asset Age Profile'!BW129","v":0},{"$f":"'[2]5.2 Asset Age Profile'!BX129+'[3]5.2 Asset Age Profile'!BX129","v":0},{"$f":"'[2]5.2 Asset Age Profile'!BY129+'[3]5.2 Asset Age Profile'!BY129","v":0},{"$f":"'[2]5.2 Asset Age Profile'!BZ129+'[3]5.2 Asset Age Profile'!BZ129","v":0},{"$f":"'[2]5.2 Asset Age Profile'!CA129+'[3]5.2 Asset Age Profile'!CA129","v":0},{"$f":"'[2]5.2 Asset Age Profile'!CB129+'[3]5.2 Asset Age Profile'!CB129","v":0},{"$f":"'[2]5.2 Asset Age Profile'!CC129+'[3]5.2 Asset Age Profile'!CC129","v":0},{"$f":"'[2]5.2 Asset Age Profile'!CD129+'[3]5.2 Asset Age Profile'!CD129","v":0},{"$f":"'[2]5.2 Asset Age Profile'!CE129+'[3]5.2 Asset Age Profile'!CE129","v":0},{"$f":"'[2]5.2 Asset Age Profile'!CF129+'[3]5.2 Asset Age Profile'!CF129","v":0},{"$f":"'[2]5.2 Asset Age Profile'!CG129+'[3]5.2 Asset Age Profile'!CG129","v":0},{"$f":"'[2]5.2 Asset Age Profile'!CH129+'[3]5.2 Asset Age Profile'!CH129","v":0},{"$f":"'[2]5.2 Asset Age Profile'!CI129+'[3]5.2 Asset Age Profile'!CI129","v":0},{"$f":"'[2]5.2 Asset Age Profile'!CJ129+'[3]5.2 Asset Age Profile'!CJ129","v":0},{"$f":"'[2]5.2 Asset Age Profile'!CK129+'[3]5.2 Asset Age Profile'!CK129","v":0},{"$f":"'[2]5.2 Asset Age Profile'!CL129+'[3]5.2 Asset Age Profile'!CL129","v":0},{"$f":"'[2]5.2 Asset Age Profile'!CM129+'[3]5.2 Asset Age Profile'!CM129","v":0},{"$f":"'[2]5.2 Asset Age Profile'!CN129+'[3]5.2 Asset Age Profile'!CN129","v":0},{"$f":"'[2]5.2 Asset Age Profile'!CO129+'[3]5.2 Asset Age Profile'!CO129","v":0},{"$f":"'[2]5.2 Asset Age Profile'!CP129+'[3]5.2 Asset Age Profile'!CP129","v":0},{"$f":"'[2]5.2 Asset Age Profile'!CQ129+'[3]5.2 Asset Age Profile'!CQ129","v":0},{"$f":"'[2]5.2 Asset Age Profile'!CR129+'[3]5.2 Asset Age Profile'!CR129","v":0},{"$f":"'[2]5.2 Asset Age Profile'!CS129+'[3]5.2 Asset Age Profile'!CS129","v":0},{"$f":"'[2]5.2 Asset Age Profile'!CT129+'[3]5.2 Asset Age Profile'!CT129","v":0},{"$f":"'[2]5.2 Asset Age Profile'!CU129+'[3]5.2 Asset Age Profile'!CU129","v":0},{"$f":"'[2]5.2 Asset Age Profile'!CV129+'[3]5.2 Asset Age Profile'!CV129","v":0},{"$f":"'[2]5.2 Asset Age Profile'!CW129+'[3]5.2 Asset Age Profile'!CW129","v":0},{"$f":"'[2]5.2 Asset Age Profile'!CX129+'[3]5.2 Asset Age Profile'!CX129","v":0},{"$f":"'[2]5.2 Asset Age Profile'!CY129+'[3]5.2 Asset Age Profile'!CY129","v":0},{"$f":"'[2]5.2 Asset Age Profile'!CZ129+'[3]5.2 Asset Age Profile'!CZ129","v":0},{"$f":"'[2]5.2 Asset Age Profile'!DA129+'[3]5.2 Asset Age Profile'!DA129","v":0},{"$f":"'[2]5.2 Asset Age Profile'!DB129+'[3]5.2 Asset Age Profile'!DB129","v":0},{"$f":"'[2]5.2 Asset Age Profile'!DC129+'[3]5.2 Asset Age Profile'!DC129","v":0},{"$f":"'[2]5.2 Asset Age Profile'!DD129+'[3]5.2 Asset Age Profile'!DD129","v":0},{"$f":"'[2]5.2 Asset Age Profile'!DE129+'[3]5.2 Asset Age Profile'!DE129","v":0},{"$f":"'[2]5.2 Asset Age Profile'!DF129+'[3]5.2 Asset Age Profile'!DF129","v":0},{"$f":"'[2]5.2 Asset Age Profile'!DG129+'[3]5.2 Asset Age Profile'!DG129","v":0},{"$f":"'[2]5.2 Asset Age Profile'!DH129+'[3]5.2 Asset Age Profile'!DH129","v":0},{"$f":"'[2]5.2 Asset Age Profile'!DI129+'[3]5.2 Asset Age Profile'!DI129","v":0},{"$f":"'[2]5.2 Asset Age Profile'!DJ129+'[3]5.2 Asset Age Profile'!DJ129","v":0},{"$f":"'[2]5.2 Asset Age Profile'!DK129+'[3]5.2 Asset Age Profile'!DK129","v":0},{"$f":"'[2]5.2 Asset Age Profile'!DL129+'[3]5.2 Asset Age Profile'!DL129","v":0},{"$f":"'[2]5.2 Asset Age Profile'!DM129+'[3]5.2 Asset Age Profile'!DM129","v":0},{"$f":"'[2]5.2 Asset Age Profile'!DN129+'[3]5.2 Asset Age Profile'!DN129","v":0},{"$f":"'[2]5.2 Asset Age Profile'!DO129+'[3]5.2 Asset Age Profile'!DO129","v":0},{"$f":"'[2]5.2 Asset Age Profile'!DP129+'[3]5.2 Asset Age Profile'!DP129","v":0},{"$f":"'[2]5.2 Asset Age Profile'!DQ129+'[3]5.2 Asset Age Profile'!DQ129","v":0},{"$f":"'[2]5.2 Asset Age Profile'!DR129+'[3]5.2 Asset Age Profile'!DR129","v":0},{"$f":"'[2]5.2 Asset Age Profile'!DS129+'[3]5.2 Asset Age Profile'!DS129","v":0},{"$f":"'[2]5.2 Asset Age Profile'!DT129+'[3]5.2 Asset Age Profile'!DT129","v":0},{"$f":"'[2]5.2 Asset Age Profile'!DU129+'[3]5.2 Asset Age Profile'!DU129","v":0},{"$f":"'[2]5.2 Asset Age Profile'!DV129+'[3]5.2 Asset Age Profile'!DV129","v":0},{"$f":"'[2]5.2 Asset Age Profile'!DW129+'[3]5.2 Asset Age Profile'!DW129","v":0},{"$f":"'[2]5.2 Asset Age Profile'!DX129+'[3]5.2 Asset Age Profile'!DX129","v":0},{"$f":"'[2]5.2 Asset Age Profile'!DY129+'[3]5.2 Asset Age Profile'!DY129","v":0},{"$f":"'[2]5.2 Asset Age Profile'!DZ129+'[3]5.2 Asset Age Profile'!DZ129","v":0},{"$f":"'[2]5.2 Asset Age Profile'!EA129+'[3]5.2 Asset Age Profile'!EA129","v":0},{"$f":"'[2]5.2 Asset Age Profile'!EB129+'[3]5.2 Asset Age Profile'!EB129","v":0},{"$f":"'[2]5.2 Asset Age Profile'!EC129+'[3]5.2 Asset Age Profile'!EC129","v":0},{"$f":"'[2]5.2 Asset Age Profile'!ED129+'[3]5.2 Asset Age Profile'!ED129","v":0},{"$f":"'[2]5.2 Asset Age Profile'!EE129+'[3]5.2 Asset Age Profile'!EE129","v":0},{"$f":"'[2]5.2 Asset Age Profile'!EF129+'[3]5.2 Asset Age Profile'!EF129","v":0},{"$f":"'[2]5.2 Asset Age Profile'!EG129+'[3]5.2 Asset Age Profile'!EG129","v":0},{"$f":"'[2]5.2 Asset Age Profile'!EH129+'[3]5.2 Asset Age Profile'!EH129","v":0},{"$f":"'[2]5.2 Asset Age Profile'!EI129+'[3]5.2 Asset Age Profile'!EI129","v":0},{"$f":"'[2]5.2 Asset Age Profile'!EJ129+'[3]5.2 Asset Age Profile'!EJ129","v":0}]
["ED_ASS521_00120",null,"Other",null,"DNSP NAME","REPEX","PUBLIC LIGHTING","Other","DESCRIPTOR METRIC","MEAN ECONOMIC LIFE","YEARS","NUMBER",null,{"$f":"'[2]5.2 Asset Age Profile'!N130+'[3]5.2 Asset Age Profile'!N130","v":0},{"$f":"'[2]5.2 Asset Age Profile'!O130+'[3]5.2 Asset Age Profile'!O130","v":0},{"$f":"'[2]5.2 Asset Age Profile'!P130+'[3]5.2 Asset Age Profile'!P130","v":0},{"$f":"'[2]5.2 Asset Age Profile'!Q130+'[3]5.2 Asset Age Profile'!Q130","v":0},{"$f":"'[2]5.2 Asset Age Profile'!R130+'[3]5.2 Asset Age Profile'!R130","v":0},{"$f":"'[2]5.2 Asset Age Profile'!S130+'[3]5.2 Asset Age Profile'!S130","v":0},{"$f":"'[2]5.2 Asset Age Profile'!T130+'[3]5.2 Asset Age Profile'!T130","v":0},{"$f":"'[2]5.2 Asset Age Profile'!U130+'[3]5.2 Asset Age Profile'!U130","v":0},{"$f":"'[2]5.2 Asset Age Profile'!V130+'[3]5.2 Asset Age Profile'!V130","v":0},{"$f":"'[2]5.2 Asset Age Profile'!W130+'[3]5.2 Asset Age Profile'!W130","v":0},{"$f":"'[2]5.2 Asset Age Profile'!X130+'[3]5.2 Asset Age Profile'!X130","v":0},{"$f":"'[2]5.2 Asset Age Profile'!Y130+'[3]5.2 Asset Age Profile'!Y130","v":0},{"$f":"'[2]5.2 Asset Age Profile'!Z130+'[3]5.2 Asset Age Profile'!Z130","v":0},{"$f":"'[2]5.2 Asset Age Profile'!AA130+'[3]5.2 Asset Age Profile'!AA130","v":0},{"$f":"'[2]5.2 Asset Age Profile'!AB130+'[3]5.2 Asset Age Profile'!AB130","v":0},{"$f":"'[2]5.2 Asset Age Profile'!AC130+'[3]5.2 Asset Age Profile'!AC130","v":0},{"$f":"'[2]5.2 Asset Age Profile'!AD130+'[3]5.2 Asset Age Profile'!AD130","v":0},{"$f":"'[2]5.2 Asset Age Profile'!AE130+'[3]5.2 Asset Age Profile'!AE130","v":0},{"$f":"'[2]5.2 Asset Age Profile'!AF130+'[3]5.2 Asset Age Profile'!AF130","v":0},{"$f":"'[2]5.2 Asset Age Profile'!AG130+'[3]5.2 Asset Age Profile'!AG130","v":0},{"$f":"'[2]5.2 Asset Age Profile'!AH130+'[3]5.2 Asset Age Profile'!AH130","v":0},{"$f":"'[2]5.2 Asset Age Profile'!AI130+'[3]5.2 Asset Age Profile'!AI130","v":0},{"$f":"'[2]5.2 Asset Age Profile'!AJ130+'[3]5.2 Asset Age Profile'!AJ130","v":0},{"$f":"'[2]5.2 Asset Age Profile'!AK130+'[3]5.2 Asset Age Profile'!AK130","v":0},{"$f":"'[2]5.2 Asset Age Profile'!AL130+'[3]5.2 Asset Age Profile'!AL130","v":0},{"$f":"'[2]5.2 Asset Age Profile'!AM130+'[3]5.2 Asset Age Profile'!AM130","v":0},{"$f":"'[2]5.2 Asset Age Profile'!AN130+'[3]5.2 Asset Age Profile'!AN130","v":0},{"$f":"'[2]5.2 Asset Age Profile'!AO130+'[3]5.2 Asset Age Profile'!AO130","v":0},{"$f":"'[2]5.2 Asset Age Profile'!AP130+'[3]5.2 Asset Age Profile'!AP130","v":0},{"$f":"'[2]5.2 Asset Age Profile'!AQ130+'[3]5.2 Asset Age Profile'!AQ130","v":0},{"$f":"'[2]5.2 Asset Age Profile'!AR130+'[3]5.2 Asset Age Profile'!AR130","v":0},{"$f":"'[2]5.2 Asset Age Profile'!AS130+'[3]5.2 Asset Age Profile'!AS130","v":0},{"$f":"'[2]5.2 Asset Age Profile'!AT130+'[3]5.2 Asset Age Profile'!AT130","v":0},{"$f":"'[2]5.2 Asset Age Profile'!AU130+'[3]5.2 Asset Age Profile'!AU130","v":0},{"$f":"'[2]5.2 Asset Age Profile'!AV130+'[3]5.2 Asset Age Profile'!AV130","v":0},{"$f":"'[2]5.2 Asset Age Profile'!AW130+'[3]5.2 Asset Age Profile'!AW130","v":0},{"$f":"'[2]5.2 Asset Age Profile'!AX130+'[3]5.2 Asset Age Profile'!AX130","v":0},{"$f":"'[2]5.2 Asset Age Profile'!AY130+'[3]5.2 Asset Age Profile'!AY130","v":0},{"$f":"'[2]5.2 Asset Age Profile'!AZ130+'[3]5.2 Asset Age Profile'!AZ130","v":0},{"$f":"'[2]5.2 Asset Age Profile'!BA130+'[3]5.2 Asset Age Profile'!BA130","v":0},{"$f":"'[2]5.2 Asset Age Profile'!BB130+'[3]5.2 Asset Age Profile'!BB130","v":0},{"$f":"'[2]5.2 Asset Age Profile'!BC130+'[3]5.2 Asset Age Profile'!BC130","v":0},{"$f":"'[2]5.2 Asset Age Profile'!BD130+'[3]5.2 Asset Age Profile'!BD130","v":0},{"$f":"'[2]5.2 Asset Age Profile'!BE130+'[3]5.2 Asset Age Profile'!BE130","v":0},{"$f":"'[2]5.2 Asset Age Profile'!BF130+'[3]5.2 Asset Age Profile'!BF130","v":0},{"$f":"'[2]5.2 Asset Age Profile'!BG130+'[3]5.2 Asset Age Profile'!BG130","v":0},{"$f":"'[2]5.2 Asset Age Profile'!BH130+'[3]5.2 Asset Age Profile'!BH130","v":0},{"$f":"'[2]5.2 Asset Age Profile'!BI130+'[3]5.2 Asset Age Profile'!BI130","v":0},{"$f":"'[2]5.2 Asset Age Profile'!BJ130+'[3]5.2 Asset Age Profile'!BJ130","v":0},{"$f":"'[2]5.2 Asset Age Profile'!BK130+'[3]5.2 Asset Age Profile'!BK130","v":0},{"$f":"'[2]5.2 Asset Age Profile'!BL130+'[3]5.2 Asset Age Profile'!BL130","v":0},{"$f":"'[2]5.2 Asset Age Profile'!BM130+'[3]5.2 Asset Age Profile'!BM130","v":0},{"$f":"'[2]5.2 Asset Age Profile'!BN130+'[3]5.2 Asset Age Profile'!BN130","v":0},{"$f":"'[2]5.2 Asset Age Profile'!BO130+'[3]5.2 Asset Age Profile'!BO130","v":0},{"$f":"'[2]5.2 Asset Age Profile'!BP130+'[3]5.2 Asset Age Profile'!BP130","v":0},{"$f":"'[2]5.2 Asset Age Profile'!BQ130+'[3]5.2 Asset Age Profile'!BQ130","v":0},{"$f":"'[2]5.2 Asset Age Profile'!BR130+'[3]5.2 Asset Age Profile'!BR130","v":0},{"$f":"'[2]5.2 Asset Age Profile'!BS130+'[3]5.2 Asset Age Profile'!BS130","v":0},{"$f":"'[2]5.2 Asset Age Profile'!BT130+'[3]5.2 Asset Age Profile'!BT130","v":0},{"$f":"'[2]5.2 Asset Age Profile'!BU130+'[3]5.2 Asset Age Profile'!BU130","v":0},{"$f":"'[2]5.2 Asset Age Profile'!BV130+'[3]5.2 Asset Age Profile'!BV130","v":0},{"$f":"'[2]5.2 Asset Age Profile'!BW130+'[3]5.2 Asset Age Profile'!BW130","v":0},{"$f":"'[2]5.2 Asset Age Profile'!BX130+'[3]5.2 Asset Age Profile'!BX130","v":0},{"$f":"'[2]5.2 Asset Age Profile'!BY130+'[3]5.2 Asset Age Profile'!BY130","v":0},{"$f":"'[2]5.2 Asset Age Profile'!BZ130+'[3]5.2 Asset Age Profile'!BZ130","v":0},{"$f":"'[2]5.2 Asset Age Profile'!CA130+'[3]5.2 Asset Age Profile'!CA130","v":0},{"$f":"'[2]5.2 Asset Age Profile'!CB130+'[3]5.2 Asset Age Profile'!CB130","v":0},{"$f":"'[2]5.2 Asset Age Profile'!CC130+'[3]5.2 Asset Age Profile'!CC130","v":0},{"$f":"'[2]5.2 Asset Age Profile'!CD130+'[3]5.2 Asset Age Profile'!CD130","v":0},{"$f":"'[2]5.2 Asset Age Profile'!CE130+'[3]5.2 Asset Age Profile'!CE130","v":0},{"$f":"'[2]5.2 Asset Age Profile'!CF130+'[3]5.2 Asset Age Profile'!CF130","v":0},{"$f":"'[2]5.2 Asset Age Profile'!CG130+'[3]5.2 Asset Age Profile'!CG130","v":0},{"$f":"'[2]5.2 Asset Age Profile'!CH130+'[3]5.2 Asset Age Profile'!CH130","v":0},{"$f":"'[2]5.2 Asset Age Profile'!CI130+'[3]5.2 Asset Age Profile'!CI130","v":0},{"$f":"'[2]5.2 Asset Age Profile'!CJ130+'[3]5.2 Asset Age Profile'!CJ130","v":0},{"$f":"'[2]5.2 Asset Age Profile'!CK130+'[3]5.2 Asset Age Profile'!CK130","v":0},{"$f":"'[2]5.2 Asset Age Profile'!CL130+'[3]5.2 Asset Age Profile'!CL130","v":0},{"$f":"'[2]5.2 Asset Age Profile'!CM130+'[3]5.2 Asset Age Profile'!CM130","v":0},{"$f":"'[2]5.2 Asset Age Profile'!CN130+'[3]5.2 Asset Age Profile'!CN130","v":0},{"$f":"'[2]5.2 Asset Age Profile'!CO130+'[3]5.2 Asset Age Profile'!CO130","v":0},{"$f":"'[2]5.2 Asset Age Profile'!CP130+'[3]5.2 Asset Age Profile'!CP130","v":0},{"$f":"'[2]5.2 Asset Age Profile'!CQ130+'[3]5.2 Asset Age Profile'!CQ130","v":0},{"$f":"'[2]5.2 Asset Age Profile'!CR130+'[3]5.2 Asset Age Profile'!CR130","v":0},{"$f":"'[2]5.2 Asset Age Profile'!CS130+'[3]5.2 Asset Age Profile'!CS130","v":0},{"$f":"'[2]5.2 Asset Age Profile'!CT130+'[3]5.2 Asset Age Profile'!CT130","v":0},{"$f":"'[2]5.2 Asset Age Profile'!CU130+'[3]5.2 Asset Age Profile'!CU130","v":0},{"$f":"'[2]5.2 Asset Age Profile'!CV130+'[3]5.2 Asset Age Profile'!CV130","v":0},{"$f":"'[2]5.2 Asset Age Profile'!CW130+'[3]5.2 Asset Age Profile'!CW130","v":0},{"$f":"'[2]5.2 Asset Age Profile'!CX130+'[3]5.2 Asset Age Profile'!CX130","v":0},{"$f":"'[2]5.2 Asset Age Profile'!CY130+'[3]5.2 Asset Age Profile'!CY130","v":0},{"$f":"'[2]5.2 Asset Age Profile'!CZ130+'[3]5.2 Asset Age Profile'!CZ130","v":0},{"$f":"'[2]5.2 Asset Age Profile'!DA130+'[3]5.2 Asset Age Profile'!DA130","v":0},{"$f":"'[2]5.2 Asset Age Profile'!DB130+'[3]5.2 Asset Age Profile'!DB130","v":0},{"$f":"'[2]5.2 Asset Age Profile'!DC130+'[3]5.2 Asset Age Profile'!DC130","v":0},{"$f":"'[2]5.2 Asset Age Profile'!DD130+'[3]5.2 Asset Age Profile'!DD130","v":0},{"$f":"'[2]5.2 Asset Age Profile'!DE130+'[3]5.2 Asset Age Profile'!DE130","v":0},{"$f":"'[2]5.2 Asset Age Profile'!DF130+'[3]5.2 Asset Age Profile'!DF130","v":0},{"$f":"'[2]5.2 Asset Age Profile'!DG130+'[3]5.2 Asset Age Profile'!DG130","v":0},{"$f":"'[2]5.2 Asset Age Profile'!DH130+'[3]5.2 Asset Age Profile'!DH130","v":0},{"$f":"'[2]5.2 Asset Age Profile'!DI130+'[3]5.2 Asset Age Profile'!DI130","v":0},{"$f":"'[2]5.2 Asset Age Profile'!DJ130+'[3]5.2 Asset Age Profile'!DJ130","v":0},{"$f":"'[2]5.2 Asset Age Profile'!DK130+'[3]5.2 Asset Age Profile'!DK130","v":0},{"$f":"'[2]5.2 Asset Age Profile'!DL130+'[3]5.2 Asset Age Profile'!DL130","v":0},{"$f":"'[2]5.2 Asset Age Profile'!DM130+'[3]5.2 Asset Age Profile'!DM130","v":0},{"$f":"'[2]5.2 Asset Age Profile'!DN130+'[3]5.2 Asset Age Profile'!DN130","v":0},{"$f":"'[2]5.2 Asset Age Profile'!DO130+'[3]5.2 Asset Age Profile'!DO130","v":0},{"$f":"'[2]5.2 Asset Age Profile'!DP130+'[3]5.2 Asset Age Profile'!DP130","v":0},{"$f":"'[2]5.2 Asset Age Profile'!DQ130+'[3]5.2 Asset Age Profile'!DQ130","v":0},{"$f":"'[2]5.2 Asset Age Profile'!DR130+'[3]5.2 Asset Age Profile'!DR130","v":0},{"$f":"'[2]5.2 Asset Age Profile'!DS130+'[3]5.2 Asset Age Profile'!DS130","v":0},{"$f":"'[2]5.2 Asset Age Profile'!DT130+'[3]5.2 Asset Age Profile'!DT130","v":0},{"$f":"'[2]5.2 Asset Age Profile'!DU130+'[3]5.2 Asset Age Profile'!DU130","v":0},{"$f":"'[2]5.2 Asset Age Profile'!DV130+'[3]5.2 Asset Age Profile'!DV130","v":0},{"$f":"'[2]5.2 Asset Age Profile'!DW130+'[3]5.2 Asset Age Profile'!DW130","v":0},{"$f":"'[2]5.2 Asset Age Profile'!DX130+'[3]5.2 Asset Age Profile'!DX130","v":0},{"$f":"'[2]5.2 Asset Age Profile'!DY130+'[3]5.2 Asset Age Profile'!DY130","v":0},{"$f":"'[2]5.2 Asset Age Profile'!DZ130+'[3]5.2 Asset Age Profile'!DZ130","v":0},{"$f":"'[2]5.2 Asset Age Profile'!EA130+'[3]5.2 Asset Age Profile'!EA130","v":0},{"$f":"'[2]5.2 Asset Age Profile'!EB130+'[3]5.2 Asset Age Profile'!EB130","v":0},{"$f":"'[2]5.2 Asset Age Profile'!EC130+'[3]5.2 Asset Age Profile'!EC130","v":0},{"$f":"'[2]5.2 Asset Age Profile'!ED130+'[3]5.2 Asset Age Profile'!ED130","v":0},{"$f":"'[2]5.2 Asset Age Profile'!EE130+'[3]5.2 Asset Age Profile'!EE130","v":0},{"$f":"'[2]5.2 Asset Age Profile'!EF130+'[3]5.2 Asset Age Profile'!EF130","v":0},{"$f":"'[2]5.2 Asset Age Profile'!EG130+'[3]5.2 Asset Age Profile'!EG130","v":0},{"$f":"'[2]5.2 Asset Age Profile'!EH130+'[3]5.2 Asset Age Profile'!EH130","v":0},{"$f":"'[2]5.2 Asset Age Profile'!EI130+'[3]5.2 Asset Age Profile'!EI130","v":0},{"$f":"'[2]5.2 Asset Age Profile'!EJ130+'[3]5.2 Asset Age Profile'!EJ130","v":0}]
["ED_ASS521_00121","OTHER BY: \nDNSP DEFINED","DNSP defined",null,"DNSP NAME","REPEX","OTHER","DNSP defined","DESCRIPTOR METRIC","MEAN ECONOMIC LIFE","YEARS","NUMBER"]
["ED_ASS521_00122"]
["ED_ASS521_00123"]
["ED_ASS521_00124"]
["ED_ASS521_00125"]
["ED_ASS521_00126"]
["ED_ASS521_00127"]
["ED_ASS521_00128"]
["ED_ASS521_00129"]
["ED_ASS521_00130"]
["ED_ASS521_00131"]
["ED_ASS521_00132"]
["ED_ASS521_00133"]
["ED_ASS521_00134"]
["ED_ASS521_00135"]
["ED_ASS521_00136"]
["ED_ASS521_00137"]
["ED_ASS521_00138"]

{"sheet":"5.3 MD - Network level","index":18,"n_rows":17,"n_cols":5,"rows_kept":17,"cut":false,"hidden":false,"merged":[]}
[null,{"$f":"(LOOKUP(dms_Model,dms_Model_List,dms_Worksheet_List))","v":"REGULATORY REPORTING STATEMENT"}]
[null,"Australian Distribution Co."]
[null,{"$f":"CONCATENATE(\"Category Analysis RIN response \",CRY)","v":"Category Analysis RIN response 2014-15"}]
[null,"5.3 MAXIMUM DEMAND AT NETWORK LEVEL"]
[]
[]
[null,"TABLE 5.3.1 - RAW AND WEATHER CORRECTED COINCIDENT MD AT NETWORK LEVEL \n(Summed at transmission connection point)"]
[]
[]
[null,null,"UNIT",{"$f":"CRY","v":"2014-15"}]
["ED_MDN531_00001","Raw network coincident MD","MW",{"$f":"'[2]5.3 MD - Network level'!D11+'[3]5.3 MD - Network level'!D11","v":591.94137599999999}]
["ED_MDN531_00002","Date MD occurred",null,{"$f":"'[2]5.3 MD - Network level'!D12+'[3]5.3 MD - Network level'!D12","v":"2014-07-09"}]
["ED_MDN531_00003","Half hour time period MD occurred",null,{"$f":"'[2]5.3 MD - Network level'!D13+'[3]5.3 MD - Network level'!D13","v":"18:00:00"}]
["ED_MDN531_00004","Winter/summer peaking",null,{"$f":"'[2]5.3 MD - Network level'!D14+'[3]5.3 MD - Network level'!D14","v":{"$error":"#VALUE!"}}," Winter"]
["ED_MDN531_00005","Embedded generation","MW",{"$f":"'[2]5.3 MD - Network level'!D15+'[3]5.3 MD - Network level'!D15","v":0}]
["ED_MDN531_00006","Weather corrected (10% POE) network coincident MD","MW",{"$f":"'[2]5.3 MD - Network level'!D16+'[3]5.3 MD - Network level'!D16","v":618.46299999999997}]
["ED_MDN531_00007","Weather corrected (50% POE) network coincident MD","MW",{"$f":"'[2]5.3 MD - Network level'!D17+'[3]5.3 MD - Network level'!D17","v":601.82399999999996}]

{"sheet":"5.4 MD & utilisation-Spatial","index":19,"n_rows":11436,"n_cols":7,"rows_kept":11436,"cut":false,"hidden":false,"merged":[[11430,3,11431,3],[11430,4,11431,4],[11432,3,11433,3],[11432,4,11433,4],[11434,3,11435,3],[11434,4,11435,4],[11422,4,11423,4],[11424,3,11425,3],[11424,4,11425,4],[11426,3,11427,3],[11426,4,11427,4],[11428,3,11429,3],[11428,4,11429,4],[11414,2,11435,2],[11414,3,11415,3],[11414,4,11415,4],[11416,3,11417,3],[11416,4,11417,4],[11418,3,11419,3],[11418,4,11419,4],[11420,3,11421,3],[11420,4,11421,4],[11422,3,11423,3],[11408,3,11409,3],[11408,4,11409,4],[11410,3,11411,3],[11410,4,11411,4],[11412,3,11413,3],[11412,4,11413,4],[11400,4,11401,4],[11402,3,11403,3],[11402,4,11403,4],[11404,3,11405,3],[11404,4,11405,4],[11406,3,11407,3],[11406,4,11407,4],[11392,2,11413,2],[11392,3,11393,3],[11392,4,11393,4],[11394,3,11395,3],[11394,4,11395,4],[11396,3,11397,3],[11396,4,11397,4],[11398,3,11399,3],[11398,4,11399,4],[11400,3,11401,3],[11386,3,11387,3],[11386,4,11387,4],[11388,3,11389,3],[11388,4,11389,4],[11390,3,11391,3],[11390,4,11391,4],[11378,4,11379,4],[11380,3,11381,3],[11380,4,11381,4],[11382,3,11383,3],[11382,4,11383,4],[11384,3,11385,3],[11384,4,11385,4],[11370,2,11391,2],[11370,3,11371,3],[11370,4,11371,4],[11372,3,11373,3],[11372,4,11373,4],[11374,3,11375,3],[11374,4,11375,4],[11376,3,11377,3],[11376,4,11377,4],[11378,3,11379,3],[11364,3,11365,3],[11364,4,11365,4],[11366,3,11367,3],[11366,4,11367,4],[11368,3,11369,3],[11368,4,11369,4],[11356,4,11357,4],[11358,3,11359,3],[11358,4,11359,4],[11360,3,11361,3],[11360,4,11361,4],[11362,3,11363,3],[11362,4,11363,4],[11348,2,11369,2],[11348,3,11349,3],[11348,4,11349,4],[11350,3,11351,3],[11350,4,11351,4],[11352,3,11353,3],[11352,4,11353,4],[11354,3,11355,3],[11354,4,11355,4],[11356,3,11357,3],[11342,3,11343,3],[11342,4,11343,4],[11344,3,11345,3],[11344,4,11345,4],[11346,3,11347,3],[11346,4,11347,4],[11334,4,11335,4],[11336,3,11337,3],[11336,4,11337,4],[11338,3,11339,3],[11338,4,11339,4],[11340,3,11341,3],[11340,4,11341,4],[11326,2,11347,2],[11326,3,11327,3],[11326,4,11327,4],[11328,3,11329,3],[11328,4,11329,4],[11330,3,11331,3],[11330,4,11331,4],[11332,3,11333,3],[11332,4,11333,4],[11334,3,11335,3],[11320,3,11321,3],[11320,4,11321,4],[11322,3,11323,3],[11322,4,11323,4],[11324,3,11325,3],[11324,4,11325,4],[11312,4,11313,4],[11314,3,11315,3],[11314,4,11315,4],[11316,3,11317,3],[11316,4,11317,4],[11318,3,11319,3],[11318,4,11319,4],[11304,2,11325,2],[11304,3,11305,3],[11304,4,11305,4],[11306,3,11307,3],[11306,4,11307,4],[11308,3,11309,3],[11308,4,11309,4],[11310,3,11311,3],[11310,4,11311,4],[11312,3,11313,3],[11298,3,11299,3],[11298,4,11299,4],[11300,3,11301,3],[11300,4,11301,4],[11302,3,11303,3],[11302,4,11303,4],[11290,4,11291,4],[11292,3,11293,3],[11292,4,11293,4],[11294,3,11295,3],[11294,4,11295,4],[11296,3,11297,3],[11296,4,11297,4],[11282,2,11303,2],[11282,3,11283,3],[11282,4,11283,4],[11284,3,11285,3],[11284,4,11285,4],[11286,3,11287,3],[11286,4,11287,4],[11288,3,11289,3],[11288,4,11289,4],[11290,3,11291,3],[11276,3,11277,3],[11276,4,11277,4],[11278,3,11279,3],[11278,4,11279,4],[11280,3,11281,3],[11280,4,11281,4],[11268,4,11269,4],[11270,3,11271,3],[11270,4,11271,4],[11272,3,11273,3],[11272,4,11273,4],[11274,3,11275,3],[11274,4,11275,4],[11260,2,11281,2],[11260,3,11261,3],[11260,4,11261,4],[11262,3,11263,3],[11262,4,11263,4],[11264,3,11265,3],[11264,4,11265,4],[11266,3,11267,3],[11266,4,11267,4],[11268,3,11269,3],[11254,3,11255,3],[11254,4,11255,4],[11256,3,11257,3],[11256,4,11257,4],[11258,3,11259,3],[11258,4,11259,4],[11246,4,11247,4],[11248,3,11249,3],[11248,4,11249,4],[11250,3,11251,3],[11250,4,11251,4],[11252,3,11253,3],[11252,4,11253,4],[11238,2,11259,2],[11238,3,11239,3],[11238,4,11239,4],[11240,3,11241,3],[11240,4,11241,4],[11242,3,11243,3],[11242,4,11243,4],[11244,3,11245,3],[11244,4,11245,4],[11246,3,11247,3],[11232,3,11233,3],[11232,4,11233,4],[11234,3,11235,3],[11234,4,11235,4],[11236,3,11237,3],[11236,4,11237,4],[11224,4,11225,4],[11226,3,11227,3],[11226,4,11227,4],[11228,3,11229,3],[11228,4,11229,4],[11230,3,11231,3],[11230,4,11231,4],[11216,2,11237,2],[11216,3,11217,3],[11216,4,11217,4],[11218,3,11219,3],[11218,4,11219,4],[11220,3,11221,3],[11220,4,11221,4],[11222,3,11223,3],[11222,4,11223,4],[11224,3,11225,3],[11210,3,11211,3],[11210,4,11211,4],[11212,3,11213,3],[11212,4,11213,4],[11214,3,11215,3],[11214,4,11215,4],[11202,4,11203,4],[11204,3,11205,3],[11204,4,11205,4],[11206,3,11207,3],[11206,4,11207,4],[11208,3,11209,3],[11208,4,11209,4],[11194,2,11215,2],[11194,3,11195,3],[11194,4,11195,4],[11196,3,11197,3],[11196,4,11197,4],[11198,3,11199,3],[11198,4,11199,4],[11200,3,11201,3],[11200,4,11201,4],[11202,3,11203,3],[11188,3,11189,3],[11188,4,11189,4],[11190,3,11191,3],[11190,4,11191,4],[11192,3,11193,3],[11192,4,11193,4],[11180,4,11181,4],[11182,3,11183,3],[11182,4,11183,4],[11184,3,11185,3],[11184,4,11185,4],[11186,3,11187,3],[11186,4,11187,4],[11172,2,11193,2],[11172,3,11173,3],[11172,4,11173,4],[11174,3,11175,3],[11174,4,11175,4],[11176,3,11177,3],[11176,4,11177,4],[11178,3,11179,3],[11178,4,11179,4],[11180,3,11181,3],[11166,3,11167,3],[11166,4,11167,4],[11168,3,11169,3],[11168,4,11169,4],[11170,3,11171,3],[11170,4,11171,4],[11158,4,11159,4],[11160,3,11161,3],[11160,4,11161,4],[11162,3,11163,3],[11162,4,11163,4],[11164,3,11165,3],[11164,4,11165,4],[11150,2,11171,2],[11150,3,11151,3],[11150,4,11151,4],[11152,3,11153,3],[11152,4,11153,4],[11154,3,11155,3],[11154,4,11155,4],[11156,3,11157,3],[11156,4,11157,4],[11158,3,11159,3],[11144,3,11145,3],[11144,4,11145,4],[11146,3,11147,3],[11146,4,11147,4],[11148,3,11149,3],[11148,4,11149,4],[11136,4,11137,4],[11138,3,11139,3],[11138,4,11139,4],[11140,3,11141,3],[11140,4,11141,4],[11142,3,11143,3],[11142,4,11143,4],[11128,2,11149,2],[11128,3,11129,3],[11128,4,11129,4],[11130,3,11131,3],[11130,4,11131,4],[11132,3,11133,3],[11132,4,11133,4],[11134,3,11135,3],[11134,4,11135,4],[11136,3,11137,3],[11122,3,11123,3],[11122,4,11123,4],[11124,3,11125,3],[11124,4,11125,4],[11126,3,11127,3],[11126,4,11127,4],[11114,4,11115,4],[11116,3,11117,3],[11116,4,11117,4],[11118,3,11119,3],[11118,4,11119,4],[11120,3,11121,3],[11120,4,11121,4],[11106,2,11127,2],[11106,3,11107,3],[11106,4,11107,4],[11108,3,11109,3],[11108,4,11109,4],[11110,3,11111,3],[11110,4,11111,4],[11112,3,11113,3],[11112,4,11113,4],[11114,3,11115,3],[11100,3,11101,3],[11100,4,11101,4],[11102,3,11103,3],[11102,4,11103,4],[11104,3,11105,3],[11104,4,11105,4],[11092,4,11093,4],[11094,3,11095,3],[11094,4,11095,4],[11096,3,11097,3],[11096,4,11097,4],[11098,3,11099,3],[11098,4,11099,4],[11084,2,11105,2],[11084,3,11085,3],[11084,4,11085,4],[11086,3,11087,3],[11086,4,11087,4],[11088,3,11089,3],[11088,4,11089,4],[11090,3,11091,3],[11090,4,11091,4],[11092,3,11093,3],[11078,3,11079,3],[11078,4,11079,4],[11080,3,11081,3],[11080,4,11081,4],[11082,3,11083,3],[11082,4,11083,4],[11070,4,11071,4],[11072,3,11073,3],[11072,4,11073,4],[11074,3,11075,3],[11074,4,11075,4],[11076,3,11077,3],[11076,4,11077,4],[11062,2,11083,2],[11062,3,11063,3],[11062,4,11063,4],[11064,3,11065,3],[11064,4,11065,4],[11066,3,11067,3],[11066,4,11067,4],[11068,3,11069,3],[11068,4,11069,4],[11070,3,11071,3],[11056,3,11057,3],[11056,4,11057,4],[11058,3,11059,3],[11058,4,11059,4],[11060,3,11061,3],[11060,4,11061,4],[11048,4,11049,4],[11050,3,11051,3],[11050,4,11051,4],[11052,3,11053,3],[11052,4,11053,4],[11054,3,11055,3],[11054,4,11055,4],[11040,2,11061,2],[11040,3,11041,3],[11040,4,11041,4],[11042,3,11043,3],[11042,4,11043,4],[11044,3,11045,3],[11044,4,11045,4],[11046,3,11047,3],[11046,4,11047,4],[11048,3,11049,3],[11034,3,11035,3],[11034,4,11035,4],[11036,3,11037,3],[11036,4,11037,4],[11038,3,11039,3],[11038,4,11039,4],[11026,4,11027,4],[11028,3,11029,3],[11028,4,11029,4],[11030,3,11031,3],[11030,4,11031,4],[11032,3,11033,3],[11032,4,11033,4],[11018,2,11039,2],[11018,3,11019,3],[11018,4,11019,4],[11020,3,11021,3],[11020,4,11021,4],[11022,3,11023,3],[11022,4,11023,4],[11024,3,11025,3],[11024,4,11025,4],[11026,3,11027,3],[11012,3,11013,3],[11012,4,11013,4],[11014,3,11015,3],[11014,4,11015,4],[11016,3,11017,3],[11016,4,11017,4],[11004,4,11005,4],[11006,3,11007,3],[11006,4,11007,4],[11008,3,11009,3],[11008,4,11009,4],[11010,3,11011,3],[11010,4,11011,4],[10996,2,11017,2],[10996,3,10997,3],[10996,4,10997,4],[10998,3,10999,3],[10998,4,10999,4],[11000,3,11001,3],[11000,4,11001,4],[11002,3,11003,3],[11002,4,11003,4],[11004,3,11005,3],[10990,3,10991,3],[10990,4,10991,4],[10992,3,10993,3],[10992,4,10993,4],[10994,3,10995,3],[10994,4,10995,4],[10982,4,10983,4],[10984,3,10985,3],[10984,4,10985,4],[10986,3,10987,3],[10986,4,10987,4],[10988,3,10989,3],[10988,4,10989,4],[10974,2,10995,2],[10974,3,10975,3],[10974,4,10975,4],[10976,3,10977,3],[10976,4,10977,4],[10978,3,10979,3],[10978,4,10979,4],[10980,3,10981,3],[10980,4,10981,4],[10982,3,10983,3],[10968,3,10969,3],[10968,4,10969,4],[10970,3,10971,3],[10970,4,10971,4],[10972,3,10973,3],[10972,4,10973,4],[10960,4,10961,4],[10962,3,10963,3],[10962,4,10963,4],[10964,3,10965,3],[10964,4,10965,4],[10966,3,10967,3],[10966,4,10967,4],[10952,2,10973,2],[10952,3,10953,3],[10952,4,10953,4],[10954,3,10955,3],[10954,4,10955,4],[10956,3,10957,3],[10956,4,10957,4],[10958,3,10959,3],[10958,4,10959,4],[10960,3,10961,3],[10946,3,10947,3],[10946,4,10947,4],[10948,3,10949,3],[10948,4,10949,4],[10950,3,10951,3],[10950,4,10951,4],[10938,4,10939,4],[10940,3,10941,3],[10940,4,10941,4],[10942,3,10943,3],[10942,4,10943,4],[10944,3,10945,3],[10944,4,10945,4],[10930,2,10951,2],[10930,3,10931,3],[10930,4,10931,4],[10932,3,10933,3],[10932,4,10933,4],[10934,3,10935,3],[10934,4,10935,4],[10936,3,10937,3],[10936,4,10937,4],[10938,3,10939,3],[10924,3,10925,3],[10924,4,10925,4],[10926,3,10927,3],[10926,4,10927,4],[10928,3,10929,3],[10928,4,10929,4],[10916,4,10917,4],[10918,3,10919,3],[10918,4,10919,4],[10920,3,10921,3],[10920,4,10921,4],[10922,3,10923,3],[10922,4,10923,4],[10908,2,10929,2],[10908,3,10909,3],[10908,4,10909,4],[10910,3,10911,3],[10910,4,10911,4],[10912,3,10913,3],[10912,4,10913,4],[10914,3,10915,3],[10914,4,10915,4],[10916,3,10917,3],[10902,3,10903,3],[10902,4,10903,4],[10904,3,10905,3],[10904,4,10905,4],[10906,3,10907,3],[10906,4,10907,4],[10894,4,10895,4],[10896,3,10897,3],[10896,4,10897,4],[10898,3,10899,3],[10898,4,10899,4],[10900,3,10901,3],[10900,4,10901,4],[10886,2,10907,2],[10886,3,10887,3],[10886,4,10887,4],[10888,3,10889,3],[10888,4,10889,4],[10890,3,10891,3],[10890,4,10891,4],[10892,3,10893,3],[10892,4,10893,4],[10894,3,10895,3],[10880,3,10881,3],[10880,4,10881,4],[10882,3,10883,3],[10882,4,10883,4],[10884,3,10885,3],[10884,4,10885,4],[10872,4,10873,4],[10874,3,10875,3],[10874,4,10875,4],[10876,3,10877,3],[10876,4,10877,4],[10878,3,10879,3],[10878,4,10879,4],[10864,2,10885,2],[10864,3,10865,3],[10864,4,10865,4],[10866,3,10867,3],[10866,4,10867,4],[10868,3,10869,3],[10868,4,10869,4],[10870,3,10871,3],[10870,4,10871,4],[10872,3,10873,3],[10858,3,10859,3],[10858,4,10859,4],[10860,3,10861,3],[10860,4,10861,4],[10862,3,10863,3],[10862,4,10863,4],[10850,4,10851,4],[10852,3,10853,3],[10852,4,10853,4],[10854,3,10855,3],[10854,4,10855,4],[10856,3,10857,3],[10856,4,10857,4],[10842,2,10863,2],[10842,3,10843,3],[10842,4,10843,4],[10844,3,10845,3],[10844,4,10845,4],[10846,3,10847,3],[10846,4,10847,4],[10848,3,10849,3],[10848,4,10849,4],[10850,3,10851,3],[10836,3,10837,3],[10836,4,10837,4],[10838,3,10839,3],[10838,4,10839,4],[10840,3,10841,3],[10840,4,10841,4],[10828,4,10829,4],[10830,3,10831,3],[10830,4,10831,4],[10832,3,10833,3],[10832,4,10833,4],[10834,3,10835,3],[10834,4,10835,4],[10820,2,10841,2],[10820,3,10821,3],[10820,4,10821,4],[10822,3,10823,3],[10822,4,10823,4],[10824,3,10825,3],[10824,4,10825,4],[10826,3,10827,3],[10826,4,10827,4],[10828,3,10829,3],[10814,3,10815,3],[10814,4,10815,4],[10816,3,10817,3],[10816,4,10817,4],[10818,3,10819,3],[10818,4,10819,4],[10806,4,10807,4],[10808,3,10809,3],[10808,4,10809,4],[10810,3,10811,3],[10810,4,10811,4],[10812,3,10813,3],[10812,4,10813,4],[10798,2,10819,2],[10798,3,10799,3],[10798,4,10799,4],[10800,3,10801,3],[10800,4,10801,4],[10802,3,10803,3],[10802,4,10803,4],[10804,3,10805,3],[10804,4,10805,4],[10806,3,10807,3],[10792,3,10793,3],[10792,4,10793,4],[10794,3,10795,3],[10794,4,10795,4],[10796,3,10797,3],[10796,4,10797,4],[10784,4,10785,4],[10786,3,10787,3],[10786,4,10787,4],[10788,3,10789,3],[10788,4,10789,4],[10790,3,10791,3],[10790,4,10791,4],[10776,2,10797,2],[10776,3,10777,3],[10776,4,10777,4],[10778,3,10779,3],[10778,4,10779,4],[10780,3,10781,3],[10780,4,10781,4],[10782,3,10783,3],[10782,4,10783,4],[10784,3,10785,3],[10770,3,10771,3],[10770,4,10771,4],[10772,3,10773,3],[10772,4,10773,4],[10774,3,10775,3],[10774,4,10775,4],[10762,4,10763,4],[10764,3,10765,3],[10764,4,10765,4],[10766,3,10767,3],[10766,4,10767,4],[10768,3,10769,3],[10768,4,10769,4],[10754,2,10775,2],[10754,3,10755,3],[10754,4,10755,4],[10756,3,10757,3],[10756,4,10757,4],[10758,3,10759,3],[10758,4,10759,4],[10760,3,10761,3],[10760,4,10761,4],[10762,3,10763,3],[10748,3,10749,3],[10748,4,10749,4],[10750,3,10751,3],[10750,4,10751,4],[10752,3,10753,3],[10752,4,10753,4],[10740,4,10741,4],[10742,3,10743,3],[10742,4,10743,4],[10744,3,10745,3],[10744,4,10745,4],[10746,3,10747,3],[10746,4,10747,4],[10732,2,10753,2],[10732,3,10733,3],[10732,4,10733,4],[10734,3,10735,3],[10734,4,10735,4],[10736,3,10737,3],[10736,4,10737,4],[10738,3,10739,3],[10738,4,10739,4],[10740,3,10741,3],[10726,3,10727,3],[10726,4,10727,4],[10728,3,10729,3],[10728,4,10729,4],[10730,3,10731,3],[10730,4,10731,4],[10718,4,10719,4],[10720,3,10721,3],[10720,4,10721,4],[10722,3,10723,3],[10722,4,10723,4],[10724,3,10725,3],[10724,4,10725,4],[10710,2,10731,2],[10710,3,10711,3],[10710,4,10711,4],[10712,3,10713,3],[10712,4,10713,4],[10714,3,10715,3],[10714,4,10715,4],[10716,3,10717,3],[10716,4,10717,4],[10718,3,10719,3],[10704,3,10705,3],[10704,4,10705,4],[10706,3,10707,3],[10706,4,10707,4],[10708,3,10709,3],[10708,4,10709,4],[10696,4,10697,4],[10698,3,10699,3],[10698,4,10699,4],[10700,3,10701,3],[10700,4,10701,4],[10702,3,10703,3],[10702,4,10703,4],[10688,2,10709,2],[10688,3,10689,3],[10688,4,10689,4],[10690,3,10691,3],[10690,4,10691,4],[10692,3,10693,3],[10692,4,10693,4],[10694,3,10695,3],[10694,4,10695,4],[10696,3,10697,3],[10682,3,10683,3],[10682,4,10683,4],[10684,3,10685,3],[10684,4,10685,4],[10686,3,10687,3],[10686,4,10687,4],[10674,4,10675,4],[10676,3,10677,3],[10676,4,10677,4],[10678,3,10679,3],[10678,4,10679,4],[10680,3,10681,3],[10680,4,10681,4],[10666,2,10687,2],[10666,3,10667,3],[10666,4,10667,4],[10668,3,10669,3],[10668,4,10669,4],[10670,3,10671,3],[10670,4,10671,4],[10672,3,10673,3],[10672,4,10673,4],[10674,3,10675,3],[10660,3,10661,3],[10660,4,10661,4],[10662,3,10663,3],[10662,4,10663,4],[10664,3,10665,3],[10664,4,10665,4],[10652,4,10653,4],[10654,3,10655,3],[10654,4,10655,4],[10656,3,10657,3],[10656,4,10657,4],[10658,3,10659,3],[10658,4,10659,4],[10644,2,10665,2],[10644,3,10645,3],[10644,4,10645,4],[10646,3,10647,3],[10646,4,10647,4],[10648,3,10649,3],[10648,4,10649,4],[10650,3,10651,3],[10650,4,10651,4],[10652,3,10653,3],[10638,3,10639,3],[10638,4,10639,4],[10640,3,10641,3],[10640,4,10641,4],[10642,3,10643,3],[10642,4,10643,4],[10630,4,10631,4],[10632,3,10633,3],[10632,4,10633,4],[10634,3,10635,3],[10634,4,10635,4],[10636,3,10637,3],[10636,4,10637,4],[10622,2,10643,2],[10622,3,10623,3],[10622,4,10623,4],[10624,3,10625,3],[10624,4,10625,4],[10626,3,10627,3],[10626,4,10627,4],[10628,3,10629,3],[10628,4,10629,4],[10630,3,10631,3],[10616,3,10617,3],[10616,4,10617,4],[10618,3,10619,3],[10618,4,10619,4],[10620,3,10621,3],[10620,4,10621,4],[10608,4,10609,4],[10610,3,10611,3],[10610,4,10611,4],[10612,3,10613,3],[10612,4,10613,4],[10614,3,10615,3],[10614,4,10615,4],[10600,2,10621,2],[10600,3,10601,3],[10600,4,10601,4],[10602,3,10603,3],[10602,4,10603,4],[10604,3,10605,3],[10604,4,10605,4],[10606,3,10607,3],[10606,4,10607,4],[10608,3,10609,3],[10594,3,10595,3],[10594,4,10595,4],[10596,3,10597,3],[10596,4,10597,4],[10598,3,10599,3],[10598,4,10599,4],[10586,4,10587,4],[10588,3,10589,3],[10588,4,10589,4],[10590,3,10591,3],[10590,4,10591,4],[10592,3,10593,3],[10592,4,10593,4],[10578,2,10599,2],[10578,3,10579,3],[10578,4,10579,4],[10580,3,10581,3],[10580,4,10581,4],[10582,3,10583,3],[10582,4,10583,4],[10584,3,10585,3],[10584,4,10585,4],[10586,3,10587,3],[10572,3,10573,3],[10572,4,10573,4],[10574,3,10575,3],[10574,4,10575,4],[10576,3,10577,3],[10576,4,10577,4],[10564,4,10565,4],[10566,3,10567,3],[10566,4,10567,4],[10568,3,10569,3],[10568,4,10569,4],[10570,3,10571,3],[10570,4,10571,4],[10556,2,10577,2],[10556,3,10557,3],[10556,4,10557,4],[10558,3,10559,3],[10558,4,10559,4],[10560,3,10561,3],[10560,4,10561,4],[10562,3,10563,3],[10562,4,10563,4],[10564,3,10565,3],[10550,3,10551,3],[10550,4,10551,4],[10552,3,10553,3],[10552,4,10553,4],[10554,3,10555,3],[10554,4,10555,4],[10542,4,10543,4],[10544,3,10545,3],[10544,4,10545,4],[10546,3,10547,3],[10546,4,10547,4],[10548,3,10549,3],[10548,4,10549,4],[10534,2,10555,2],[10534,3,10535,3],[10534,4,10535,4],[10536,3,10537,3],[10536,4,10537,4],[10538,3,10539,3],[10538,4,10539,4],[10540,3,10541,3],[10540,4,10541,4],[10542,3,10543,3],[10528,3,10529,3],[10528,4,10529,4],[10530,3,10531,3],[10530,4,10531,4],[10532,3,10533,3],[10532,4,10533,4],[10520,4,10521,4],[10522,3,10523,3],[10522,4,10523,4],[10524,3,10525,3],[10524,4,10525,4],[10526,3,10527,3],[10526,4,10527,4],[10512,2,10533,2],[10512,3,10513,3],[10512,4,10513,4],[10514,3,10515,3],[10514,4,10515,4],[10516,3,10517,3],[10516,4,10517,4],[10518,3,10519,3],[10518,4,10519,4],[10520,3,10521,3],[10506,3,10507,3],[10506,4,10507,4],[10508,3,10509,3],[10508,4,10509,4],[10510,3,10511,3],[10510,4,10511,4],[10498,4,10499,4],[10500,3,10501,3],[10500,4,10501,4],[10502,3,10503,3],[10502,4,10503,4],[10504,3,10505,3],[10504,4,10505,4],[10490,2,10511,2],[10490,3,10491,3],[10490,4,10491,4],[10492,3,10493,3],[10492,4,10493,4],[10494,3,10495,3],[10494,4,10495,4],[10496,3,10497,3],[10496,4,10497,4],[10498,3,10499,3],[10484,3,10485,3],[10484,4,10485,4],[10486,3,10487,3],[10486,4,10487,4],[10488,3,10489,3],[10488,4,10489,4],[10476,4,10477,4],[10478,3,10479,3],[10478,4,10479,4],[10480,3,10481,3],[10480,4,10481,4]],"merged_total":11937,"flags":["merged_cut"]}
[null,{"$f":"(LOOKUP(dms_Model,dms_Model_List,dms_Worksheet_List))","v":"REGULATORY REPORTING STATEMENT"},null,null,null,"Worksheet navigation"]
[null,"Australian Distribution Co."]
[null,{"$f":"CONCATENATE(\"Category Analysis RIN response \",CRY)","v":"Category Analysis RIN response 2014-15"}]
[null,"5.4 MAXIMUM DEMAND AND UTILISATION AT SPATIAL LEVEL"]
[]
[]
[]
[null,"TABLE 5.4.1 NON-COINCIDENT & COINCIDENT MAXIMUM DEMAND"]
[]
[]
[null,"NETWORK LEVEL","SUBSTATION","FORECASTING ELEMENTS","UNIT","MAX DEMAND",{"$f":"CRY","v":"2014-15"}]
["ED_MDU541_00001","SUBTRANSMISSION SUBSTATION","Canberra","Substation Rating","MVA","Non-Coincident",{"$f":"'[2]5.4 MD & utilisation-Spatial'!G12+'[3]5.4 MD & utilisation-Spatial'!G12","v":0}]
["ED_MDU541_00002",null,null,null,null,"Coincident",{"$f":"'[2]5.4 MD & utilisation-Spatial'!G13+'[3]5.4 MD & utilisation-Spatial'!G13","v":0}]
["ED_MDU541_00003",null,null,"Raw Adjusted MD","MW","Non-Coincident",{"$f":"'[2]5.4 MD & utilisation-Spatial'!G14+'[3]5.4 MD & utilisation-Spatial'!G14","v":505.92}]
["ED_MDU541_00004",null,null,null,null,"Coincident",{"$f":"'[2]5.4 MD & utilisation-Spatial'!G15+'[3]5.4 MD & utilisation-Spatial'!G15","v":418.56}]
["ED_MDU541_00005",null,null,"Raw Adjusted MD","MVA","Non-Coincident",{"$f":"'[2]5.4 MD & utilisation-Spatial'!G16+'[3]5.4 MD & utilisation-Spatial'!G16","v":513.77099999999996}]
["ED_MDU541_00006",null,null,null,null,"Coincident",{"$f":"'[2]5.4 MD & utilisation-Spatial'!G17+'[3]5.4 MD & utilisation-Spatial'!G17","v":439.08130695176715}]
["ED_MDU541_00007",null,null,"Date MD occurred",null,"Non-Coincident",{"$f":"'[2]5.4 MD & utilisation-Spatial'!G18+'[3]5.4 MD & utilisation-Spatial'!G18","v":"2015-05-30"}]
["ED_MDU541_00008",null,null,null,null,"Coincident",{"$f":"'[2]5.4 MD & utilisation-Spatial'!G19+'[3]5.4 MD & utilisation-Spatial'!G19","v":"2014-07-09"}]
["ED_MDU541_00009",null,null,"Half hour time period MD occurred",null,"Non-Coincident",{"$f":"'[2]5.4 MD & utilisation-Spatial'!G20+'[3]5.4 MD & utilisation-Spatial'!G20","v":"18:30:00"}]
["ED_MDU541_00010",null,null,null,null,"Coincident",{"$f":"'[2]5.4 MD & utilisation-Spatial'!G21+'[3]5.4 MD & utilisation-Spatial'!G21","v":"18:00:00"}]
["ED_MDU541_00011",null,null,"Winter/Summer Peaking",null,"Non-Coincident",{"$f":"'[2]5.4 MD & utilisation-Spatial'!G22+'[3]5.4 MD & utilisation-Spatial'!G22","v":{"$error":"#VALUE!"}}]
["ED_MDU541_00012",null,null,null,null,"Coincident",{"$f":"'[2]5.4 MD & utilisation-Spatial'!G23+'[3]5.4 MD & utilisation-Spatial'!G23","v":{"$error":"#VALUE!"}}]
["ED_MDU541_00013",null,null,"Adjustments - Embedded generation","MW","Non-Coincident",{"$f":"'[2]5.4 MD & utilisation-Spatial'!G24+'[3]5.4 MD & utilisation-Spatial'!G24","v":0}]
["ED_MDU541_00014",null,null,null,null,"Coincident",{"$f":"'[2]5.4 MD & utilisation-Spatial'!G25+'[3]5.4 MD & utilisation-Spatial'!G25","v":0}]
["ED_MDU541_00015",null,null,"Weather Corrected MD 10% POE","MW","Non-Coincident",{"$f":"'[2]5.4 MD & utilisation-Spatial'!G26+'[3]5.4 MD & utilisation-Spatial'!G26","v":483.5516793877681}]
["ED_MDU541_00016",null,null,null,null,"Coincident",{"$f":"'[2]5.4 MD & utilisation-Spatial'!G27+'[3]5.4 MD & utilisation-Spatial'!G27","v":437.31363983910558}]
["ED_MDU541_00017",null,null,"Weather Corrected MD 10% POE","MVA","Non-Coincident",{"$f":"'[2]5.4 MD & utilisation-Spatial'!G28+'[3]5.4 MD & utilisation-Spatial'!G28","v":490.91541054595746}]
["ED_MDU541_00018",null,null,null,null,"Coincident",{"$f":"'[2]5.4 MD & utilisation-Spatial'!G29+'[3]5.4 MD & utilisation-Spatial'!G29","v":458.7544068434367}]
["ED_MDU541_00019",null,null,"Weather Corrected MD 50% POE","MW","Non-Coincident",{"$f":"'[2]5.4 MD & utilisation-Spatial'!G30+'[3]5.4 MD & utilisation-Spatial'!G30","v":463.13312198237588}]
["ED_MDU541_00020",null,null,null,null,"Coincident",{"$f":"'[2]5.4 MD & utilisation-Spatial'!G31+'[3]5.4 MD & utilisation-Spatial'!G31","v":425.54824457167177}]
["ED_MDU541_00021",null,null,"Weather Corrected MD 50% POE","MVA","Non-Coincident",{"$f":"'[2]5.4 MD & utilisation-Spatial'!G32+'[3]5.4 MD & utilisation-Spatial'!G32","v":470.18591064200598}]
["ED_MDU541_00022",null,null,null,null,"Coincident",{"$f":"'[2]5.4 MD & utilisation-Spatial'!G33+'[3]5.4 MD & utilisation-Spatial'!G33","v":446.41217363713662}]
["ED_MDU541_00023",null,"Queanbeyan","Substation Rating","MVA","Non-Coincident",{"$f":"'[2]5.4 MD & utilisation-Spatial'!G34+'[3]5.4 MD & utilisation-Spatial'!G34","v":0}]
["ED_MDU541_00024",null,null,null,null,"Coincident",{"$f":"'[2]5.4 MD & utilisation-Spatial'!G35+'[3]5.4 MD & utilisation-Spatial'!G35","v":0}]
["ED_MDU541_00025",null,null,"Raw Adjusted MD","MW","Non-Coincident",{"$f":"'[2]5.4 MD & utilisation-Spatial'!G36+'[3]5.4 MD & utilisation-Spatial'!G36","v":25.441316}]
["ED_MDU541_00026",null,null,null,null,"Coincident",{"$f":"'[2]5.4 MD & utilisation-Spatial'!G37+'[3]5.4 MD & utilisation-Spatial'!G37","v":12.976128000000001}]
["ED_MDU541_00027",null,null,"Raw Adjusted MD","MVA","Non-Coincident",{"$f":"'[2]5.4 MD & utilisation-Spatial'!G38+'[3]5.4 MD & utilisation-Spatial'!G38","v":27.667194299999998}]
["ED_MDU541_00028",null,null,null,null,"Coincident",{"$f":"'[2]5.4 MD & utilisation-Spatial'!G39+'[3]5.4 MD & utilisation-Spatial'!G39","v":13.390943352962104}]
["ED_MDU541_00029",null,null,"Date MD occurred",null,"Non-Coincident",{"$f":"'[2]5.4 MD & utilisation-Spatial'!G40+'[3]5.4 MD & utilisation-Spatial'!G40","v":"2014-12-16"}]
["ED_MDU541_00030",null,null,null,null,"Coincident",{"$f":"'[2]5.4 MD & utilisation-Spatial'!G41+'[3]5.4 MD & utilisation-Spatial'!G41","v":"2014-07-09"}]
["ED_MDU541_00031",null,null,"Half hour time period MD occurred",null,"Non-Coincident",{"$f":"'[2]5.4 MD & utilisation-Spatial'!G42+'[3]5.4 MD & utilisation-Spatial'!G42","v":"13:00:00"}]
["ED_MDU541_00032",null,null,null,null,"Coincident",{"$f":"'[2]5.4 MD & utilisation-Spatial'!G43+'[3]5.4 MD & utilisation-Spatial'!G43","v":"18:00:00"}]
["ED_MDU541_00033",null,null,"Winter/Summer Peaking",null,"Non-Coincident",{"$f":"'[2]5.4 MD & utilisation-Spatial'!G44+'[3]5.4 MD & utilisation-Spatial'!G44","v":{"$error":"#VALUE!"}}]
["ED_MDU541_00034",null,null,null,null,"Coincident",{"$f":"'[2]5.4 MD & utilisation-Spatial'!G45+'[3]5.4 MD & utilisation-Spatial'!G45","v":{"$error":"#VALUE!"}}]
["ED_MDU541_00035",null,null,"Adjustments - Embedded generation","MW","Non-Coincident",{"$f":"'[2]5.4 MD & utilisation-Spatial'!G46+'[3]5.4 MD & utilisation-Spatial'!G46","v":0}]
["ED_MDU541_00036",null,null,null,null,"Coincident",{"$f":"'[2]5.4 MD & utilisation-Spatial'!G47+'[3]5.4 MD & utilisation-Spatial'!G47","v":0}]
["ED_MDU541_00037",null,null,"Weather Corrected MD 10% POE","MW","Non-Coincident",{"$f":"'[2]5.4 MD & utilisation-Spatial'!G48+'[3]5.4 MD & utilisation-Spatial'!G48","v":23.936656727919878}]
["ED_MDU541_00038",null,null,null,null,"Coincident",{"$f":"'[2]5.4 MD & utilisation-Spatial'!G49+'[3]5.4 MD & utilisation-Spatial'!G49","v":13.557525245360601}]
["ED_MDU541_00039",null,null,"Weather Corrected MD 10% POE","MVA","Non-Coincident",{"$f":"'[2]5.4 MD & utilisation-Spatial'!G50+'[3]5.4 MD & utilisation-Spatial'!G50","v":26.032253102686109}]
["ED_MDU541_00040",null,null,null,null,"Coincident",{"$f":"'[2]5.4 MD & utilisation-Spatial'!G51+'[3]5.4 MD & utilisation-Spatial'!G51","v":13.990926455392799}]
["ED_MDU541_00041",null,null,"Weather Corrected MD 50% POE","MW","Non-Coincident",{"$f":"'[2]5.4 MD & utilisation-Spatial'!G52+'[3]5.4 MD & utilisation-Spatial'!G52","v":22.306053137660562}]
["ED_MDU541_00042",null,null,null,null,"Coincident",{"$f":"'[2]5.4 MD & utilisation-Spatial'!G53+'[3]5.4 MD & utilisation-Spatial'!G53","v":13.192776404188931}]
["ED_MDU541_00043",null,null,"Weather Corrected MD 50% POE","MVA","Non-Coincident",{"$f":"'[2]5.4 MD & utilisation-Spatial'!G54+'[3]5.4 MD & utilisation-Spatial'!G54","v":24.258894113823342}]
["ED_MDU541_00044",null,null,null,null,"Coincident",{"$f":"'[2]5.4 MD & utilisation-Spatial'!G55+'[3]5.4 MD & utilisation-Spatial'!G55","v":13.614517478151996}]
["ED_MDU541_00045",null,"Williamsdale","Substation Rating","MVA","Non-Coincident",{"$f":"'[2]5.4 MD & utilisation-Spatial'!G56+'[3]5.4 MD & utilisation-Spatial'!G56","v":0}]
["ED_MDU541_00046",null,null,null,null,"Coincident",{"$f":"'[2]5.4 MD & utilisation-Spatial'!G57+'[3]5.4 MD & utilisation-Spatial'!G57","v":0}]
["ED_MDU541_00047",null,null,"Raw Adjusted MD","MW","Non-Coincident",{"$f":"'[2]5.4 MD & utilisation-Spatial'!G58+'[3]5.4 MD & utilisation-Spatial'!G58","v":192.62791399999998}]
["ED_MDU541_00048",null,null,null,null,"Coincident",{"$f":"'[2]5.4 MD & utilisation-Spatial'!G59+'[3]5.4 MD & utilisation-Spatial'!G59","v":160.405248}]
["ED_MDU541_00049",null,null,"Raw Adjusted MD","MVA","Non-Coincident",{"$f":"'[2]5.4 MD & utilisation-Spatial'!G60+'[3]5.4 MD & utilisation-Spatial'!G60","v":201.41194764414033}]
["ED_MDU541_00050",null,null,null,null,"Coincident",{"$f":"'[2]5.4 MD & utilisation-Spatial'!G61+'[3]5.4 MD & utilisation-Spatial'!G61","v":168.29279470209792}]
["ED_MDU541_00051",null,null,"Date MD occurred",null,"Non-Coincident",{"$f":"'[2]5.4 MD & utilisation-Spatial'!G62+'[3]5.4 MD & utilisation-Spatial'!G62","v":"2015-06-16"}]
["ED_MDU541_00052",null,null,null,null,"Coincident",{"$f":"'[2]5.4 MD & utilisation-Spatial'!G63+'[3]5.4 MD & utilisation-Spatial'!G63","v":"2014-07-09"}]
["ED_MDU541_00053",null,null,"Half hour time period MD occurred",null,"Non-Coincident",{"$f":"'[2]5.4 MD & utilisation-Spatial'!G64+'[3]5.4 MD & utilisation-Spatial'!G64","v":"18:00:00"}]
["ED_MDU541_00054",null,null,null,null,"Coincident",{"$f":"'[2]5.4 MD & utilisation-Spatial'!G65+'[3]5.4 MD & utilisation-Spatial'!G65","v":"18:00:00"}]
["ED_MDU541_00055",null,null,"Winter/Summer Peaking",null,"Non-Coincident",{"$f":"'[2]5.4 MD & utilisation-Spatial'!G66+'[3]5.4 MD & utilisation-Spatial'!G66","v":{"$error":"#VALUE!"}}]
["ED_MDU541_00056",null,null,null,null,"Coincident",{"$f":"'[2]5.4 MD & utilisation-Spatial'!G67+'[3]5.4 MD & utilisation-Spatial'!G67","v":{"$error":"#VALUE!"}}]
["ED_MDU541_00057",null,null,"Adjustments - Embedded generation","MW","Non-Coincident",{"$f":"'[2]5.4 MD & utilisation-Spatial'!G68+'[3]5.4 MD & utilisation-Spatial'!G68","v":0}]
["ED_MDU541_00058",null,null,null,null,"Coincident",{"$f":"'[2]5.4 MD & utilisation-Spatial'!G69+'[3]5.4 MD & utilisation-Spatial'!G69","v":0}]
["ED_MDU541_00059",null,null,"Weather Corrected MD 10% POE","MW","Non-Coincident",{"$f":"'[2]5.4 MD & utilisation-Spatial'!G70+'[3]5.4 MD & utilisation-Spatial'!G70","v":219.90955857320304}]
["ED_MDU541_00060",null,null,null,null,"Coincident",{"$f":"'[2]5.4 MD & utilisation-Spatial'!G71+'[3]5.4 MD & utilisation-Spatial'!G71","v":167.59217431010558}]
["ED_MDU541_00061",null,null,"Weather Corrected MD 10% POE","MVA","Non-Coincident",{"$f":"'[2]5.4 MD & utilisation-Spatial'!G72+'[3]5.4 MD & utilisation-Spatial'!G72","v":225.87259508340492}]
["ED_MDU541_00062",null,null,null,null,"Coincident",{"$f":"'[2]5.4 MD & utilisation-Spatial'!G73+'[3]5.4 MD & utilisation-Spatial'!G73","v":175.83312102636947}]
["ED_MDU541_00063",null,null,"Weather Corrected MD 50% POE","MW","Non-Coincident",{"$f":"'[2]5.4 MD & utilisation-Spatial'!G74+'[3]5.4 MD & utilisation-Spatial'!G74","v":206.50383897157963}]
["ED_MDU541_00064",null,null,null,null,"Coincident",{"$f":"'[2]5.4 MD & utilisation-Spatial'!G75+'[3]5.4 MD & utilisation-Spatial'!G75","v":163.08329621390934}]
["ED_MDU541_00065",null,null,"Weather Corrected MD 50% POE","MVA","Non-Coincident",{"$f":"'[2]5.4 MD & utilisation-Spatial'!G76+'[3]5.4 MD & utilisation-Spatial'!G76","v":212.10336788370955}]
["ED_MDU541_00066",null,null,null,null,"Coincident",{"$f":"'[2]5.4 MD & utilisation-Spatial'!G77+'[3]5.4 MD & utilisation-Spatial'!G77","v":171.10252956978607}]
["ED_MDU541_00067",null,"<Enter substation name>","Substation Rating","MVA","Non-Coincident"]
["ED_MDU541_00068",null,null,null,null,"Coincident"]
["ED_MDU541_00069",null,null,"Raw Adjusted MD","MW","Non-Coincident"]
["ED_MDU541_00070",null,null,null,null,"Coincident"]
["ED_MDU541_00071",null,null,"Raw Adjusted MD","MVA","Non-Coincident"]
["ED_MDU541_00072",null,null,null,null,"Coincident"]
["ED_MDU541_00073",null,null,"Date MD occurred",null,"Non-Coincident"]
["ED_MDU541_00074",null,null,null,null,"Coincident"]
["ED_MDU541_00075",null,null,"Half hour time period MD occurred",null,"Non-Coincident"]
["ED_MDU541_00076",null,null,null,null,"Coincident"]
["ED_MDU541_00077",null,null,"Winter/Summer Peaking",null,"Non-Coincident"]
["ED_MDU541_00078",null,null,null,null,"Coincident"]
["ED_MDU541_00079",null,null,"Adjustments - Embedded generation","MW","Non-Coincident"]
["ED_MDU541_00080",null,null,null,null,"Coincident"]
["ED_MDU541_00081",null,null,"Weather Corrected MD 10% POE","MW","Non-Coincident"]
["ED_MDU541_00082",null,null,null,null,"Coincident"]
["ED_MDU541_00083",null,null,"Weather Corrected MD 10% POE","MVA","Non-Coincident"]
["ED_MDU541_00084",null,null,null,null,"Coincident"]
["ED_MDU541_00085",null,null,"Weather Corrected MD 50% POE","MW","Non-Coincident"]
["ED_MDU541_00086",null,null,null,null,"Coincident"]
["ED_MDU541_00087",null,null,"Weather Corrected MD 50% POE","MVA","Non-Coincident"]
["ED_MDU541_00088",null,null,null,null,"Coincident"]
["ED_MDU541_00089",null,"<Enter substation name>","Substation Rating","MVA","Non-Coincident"]
["ED_MDU541_00090",null,null,null,null,"Coincident"]
["ED_MDU541_00091",null,null,"Raw Adjusted MD","MW","Non-Coincident"]
["ED_MDU541_00092",null,null,null,null,"Coincident"]
["ED_MDU541_00093",null,null,"Raw Adjusted MD","MVA","Non-Coincident"]
["ED_MDU541_00094",null,null,null,null,"Coincident"]
["ED_MDU541_00095",null,null,"Date MD occurred",null,"Non-Coincident"]
["ED_MDU541_00096",null,null,null,null,"Coincident"]
["ED_MDU541_00097",null,null,"Half hour time period MD occurred",null,"Non-Coincident"]
["ED_MDU541_00098",null,null,null,null,"Coincident"]
["ED_MDU541_00099",null,null,"Winter/Summer Peaking",null,"Non-Coincident"]
["ED_MDU541_00100",null,null,null,null,"Coincident"]
["ED_MDU541_00101",null,null,"Adjustments - Embedded generation","MW","Non-Coincident"]
["ED_MDU541_00102",null,null,null,null,"Coincident"]
["ED_MDU541_00103",null,null,"Weather Corrected MD 10% POE","MW","Non-Coincident"]
["ED_MDU541_00104",null,null,null,null,"Coincident"]
["ED_MDU541_00105",null,null,"Weather Corrected MD 10% POE","MVA","Non-Coincident"]
["ED_MDU541_00106",null,null,null,null,"Coincident"]
["ED_MDU541_00107",null,null,"Weather Corrected MD 50% POE","MW","Non-Coincident"]
["ED_MDU541_00108",null,null,null,null,"Coincident"]
["ED_MDU541_00109",null,null,"Weather Corrected MD 50% POE","MVA","Non-Coincident"]
["ED_MDU541_00110",null,null,null,null,"Coincident"]
["ED_MDU541_00111",null,"<Enter substation name>","Substation Rating","MVA","Non-Coincident"]
["ED_MDU541_00112",null,null,null,null,"Coincident"]
["ED_MDU541_00113",null,null,"Raw Adjusted MD","MW","Non-Coincident"]
["ED_MDU541_00114",null,null,null,null,"Coincident"]
["ED_MDU541_00115",null,null,"Raw Adjusted MD","MVA","Non-Coincident"]
["ED_MDU541_00116",null,null,null,null,"Coincident"]
["ED_MDU541_00117",null,null,"Date MD occurred",null,"Non-Coincident"]
["ED_MDU541_00118",null,null,null,null,"Coincident"]
["ED_MDU541_00119",null,null,"Half hour time period MD occurred",null,"Non-Coincident"]
["ED_MDU541_00120",null,null,null,null,"Coincident"]
["ED_MDU541_00121",null,null,"Winter/Summer Peaking",null,"Non-Coincident"]
["ED_MDU541_00122",null,null,null,null,"Coincident"]
["ED_MDU541_00123",null,null,"Adjustments - Embedded generation","MW","Non-Coincident"]
["ED_MDU541_00124",null,null,null,null,"Coincident"]
["ED_MDU541_00125",null,null,"Weather Corrected MD 10% POE","MW","Non-Coincident"]
["ED_MDU541_00126",null,null,null,null,"Coincident"]
["ED_MDU541_00127",null,null,"Weather Corrected MD 10% POE","MVA","Non-Coincident"]
["ED_MDU541_00128",null,null,null,null,"Coincident"]
["ED_MDU541_00129",null,null,"Weather Corrected MD 50% POE","MW","Non-Coincident"]
["ED_MDU541_00130",null,null,null,null,"Coincident"]
["ED_MDU541_00131",null,null,"Weather Corrected MD 50% POE","MVA","Non-Coincident"]
["ED_MDU541_00132",null,null,null,null,"Coincident"]
["ED_MDU541_00133",null,"<Enter substation name>","Substation Rating","MVA","Non-Coincident"]
["ED_MDU541_00134",null,null,null,null,"Coincident"]
["ED_MDU541_00135",null,null,"Raw Adjusted MD","MW","Non-Coincident"]
["ED_MDU541_00136",null,null,null,null,"Coincident"]
["ED_MDU541_00137",null,null,"Raw Adjusted MD","MVA","Non-Coincident"]
["ED_MDU541_00138",null,null,null,null,"Coincident"]
["ED_MDU541_00139",null,null,"Date MD occurred",null,"Non-Coincident"]
["ED_MDU541_00140",null,null,null,null,"Coincident"]
["ED_MDU541_00141",null,null,"Half hour time period MD occurred",null,"Non-Coincident"]
["ED_MDU541_00142",null,null,null,null,"Coincident"]
["ED_MDU541_00143",null,null,"Winter/Summer Peaking",null,"Non-Coincident"]
["ED_MDU541_00144",null,null,null,null,"Coincident"]
["ED_MDU541_00145",null,null,"Adjustments - Embedded generation","MW","Non-Coincident"]
["ED_MDU541_00146",null,null,null,null,"Coincident"]
["ED_MDU541_00147",null,null,"Weather Corrected MD 10% POE","MW","Non-Coincident"]
["ED_MDU541_00148",null,null,null,null,"Coincident"]
["ED_MDU541_00149",null,null,"Weather Corrected MD 10% POE","MVA","Non-Coincident"]
["ED_MDU541_00150",null,null,null,null,"Coincident"]
["ED_MDU541_00151",null,null,"Weather Corrected MD 50% POE","MW","Non-Coincident"]
["ED_MDU541_00152",null,null,null,null,"Coincident"]
["ED_MDU541_00153",null,null,"Weather Corrected MD 50% POE","MVA","Non-Coincident"]
["ED_MDU541_00154",null,null,null,null,"Coincident"]
["ED_MDU541_00155",null,"<Enter substation name>","Substation Rating","MVA","Non-Coincident"]
["ED_MDU541_00156",null,null,null,null,"Coincident"]
["ED_MDU541_00157",null,null,"Raw Adjusted MD","MW","Non-Coincident"]
["ED_MDU541_00158",null,null,null,null,"Coincident"]
["ED_MDU541_00159",null,null,"Raw Adjusted MD","MVA","Non-Coincident"]
["ED_MDU541_00160",null,null,null,null,"Coincident"]
["ED_MDU541_00161",null,null,"Date MD occurred",null,"Non-Coincident"]
["ED_MDU541_00162",null,null,null,null,"Coincident"]
["ED_MDU541_00163",null,null,"Half hour time period MD occurred",null,"Non-Coincident"]
["ED_MDU541_00164",null,null,null,null,"Coincident"]
["ED_MDU541_00165",null,null,"Winter/Summer Peaking",null,"Non-Coincident"]
["ED_MDU541_00166",null,null,null,null,"Coincident"]
["ED_MDU541_00167",null,null,"Adjustments - Embedded generation","MW","Non-Coincident"]
["ED_MDU541_00168",null,null,null,null,"Coincident"]
["ED_MDU541_00169",null,null,"Weather Corrected MD 10% POE","MW","Non-Coincident"]
["ED_MDU541_00170",null,null,null,null,"Coincident"]
["ED_MDU541_00171",null,null,"Weather Corrected MD 10% POE","MVA","Non-Coincident"]
["ED_MDU541_00172",null,null,null,null,"Coincident"]
["ED_MDU541_00173",null,null,"Weather Corrected MD 50% POE","MW","Non-Coincident"]
["ED_MDU541_00174",null,null,null,null,"Coincident"]
["ED_MDU541_00175",null,null,"Weather Corrected MD 50% POE","MVA","Non-Coincident"]
["ED_MDU541_00176",null,null,null,null,"Coincident"]
["ED_MDU541_00177",null,"<Enter substation name>","Substation Rating","MVA","Non-Coincident"]
["ED_MDU541_00178",null,null,null,null,"Coincident"]
["ED_MDU541_00179",null,null,"Raw Adjusted MD","MW","Non-Coincident"]
["ED_MDU541_00180",null,null,null,null,"Coincident"]
["ED_MDU541_00181",null,null,"Raw Adjusted MD","MVA","Non-Coincident"]
["ED_MDU541_00182",null,null,null,null,"Coincident"]
["ED_MDU541_00183",null,null,"Date MD occurred",null,"Non-Coincident"]
["ED_MDU541_00184",null,null,null,null,"Coincident"]
["ED_MDU541_00185",null,null,"Half hour time period MD occurred",null,"Non-Coincident"]
["ED_MDU541_00186",null,null,null,null,"Coincident"]
["ED_MDU541_00187",null,null,"Winter/Summer Peaking",null,"Non-Coincident"]
["ED_MDU541_00188",null,null,null,null,"Coincident"]
["ED_MDU541_00189",null,null,"Adjustments - Embedded generation","MW","Non-Coincident"]
["ED_MDU541_00190",null,null,null,null,"Coincident"]
["ED_MDU541_00191",null,null,"Weather Corrected MD 10% POE","MW","Non-Coincident"]
["ED_MDU541_00192",null,null,null,null,"Coincident"]
["ED_MDU541_00193",null,null,"Weather Corrected MD 10% POE","MVA","Non-Coincident"]
["ED_MDU541_00194",null,null,null,null,"Coincident"]
["ED_MDU541_00195",null,null,"Weather Corrected MD 50% POE","MW","Non-Coincident"]
["ED_MDU541_00196",null,null,null,null,"Coincident"]
["ED_MDU541_00197",null,null,"Weather Corrected MD 50% POE","MVA","Non-Coincident"]
["ED_MDU541_00198",null,null,null,null,"Coincident"]
["ED_MDU541_00199",null,"<Enter substation name>","Substation Rating","MVA","Non-Coincident"]
["ED_MDU541_00200",null,null,null,null,"Coincident"]
["ED_MDU541_00201",null,null,"Raw Adjusted MD","MW","Non-Coincident"]
["ED_MDU541_00202",null,null,null,null,"Coincident"]
["ED_MDU541_00203",null,null,"Raw Adjusted MD","MVA","Non-Coincident"]
["ED_MDU541_00204",null,null,null,null,"Coincident"]
["ED_MDU541_00205",null,null,"Date MD occurred",null,"Non-Coincident"]
["ED_MDU541_00206",null,null,null,null,"Coincident"]
["ED_MDU541_00207",null,null,"Half hour time period MD occurred",null,"Non-Coincident"]
["ED_MDU541_00208",null,null,null,null,"Coincident"]
["ED_MDU541_00209",null,null,"Winter/Summer Peaking",null,"Non-Coincident"]
["ED_MDU541_00210",null,null,null,null,"Coincident"]
["ED_MDU541_00211",null,null,"Adjustments - Embedded generation","MW","Non-Coincident"]
["ED_MDU541_00212",null,null,null,null,"Coincident"]
["ED_MDU541_00213",null,null,"Weather Corrected MD 10% POE","MW","Non-Coincident"]
["ED_MDU541_00214",null,null,null,null,"Coincident"]
["ED_MDU541_00215",null,null,"Weather Corrected MD 10% POE","MVA","Non-Coincident"]
["ED_MDU541_00216",null,null,null,null,"Coincident"]
["ED_MDU541_00217",null,null,"Weather Corrected MD 50% POE","MW","Non-Coincident"]
["ED_MDU541_00218",null,null,null,null,"Coincident"]
["ED_MDU541_00219",null,null,"Weather Corrected MD 50% POE","MVA","Non-Coincident"]
["ED_MDU541_00220",null,null,null,null,"Coincident"]
["ED_MDU541_00221",null,"<Enter substation name>","Substation Rating","MVA","Non-Coincident"]
["ED_MDU541_00222",null,null,null,null,"Coincident"]
["ED_MDU541_00223",null,null,"Raw Adjusted MD","MW","Non-Coincident"]
["ED_MDU541_00224",null,null,null,null,"Coincident"]
["ED_MDU541_00225",null,null,"Raw Adjusted MD","MVA","Non-Coincident"]
["ED_MDU541_00226",null,null,null,null,"Coincident"]
["ED_MDU541_00227",null,null,"Date MD occurred",null,"Non-Coincident"]
["ED_MDU541_00228",null,null,null,null,"Coincident"]
["ED_MDU541_00229",null,null,"Half hour time period MD occurred",null,"Non-Coincident"]
["ED_MDU541_00230",null,null,null,null,"Coincident"]
["ED_MDU541_00231",null,null,"Winter/Summer Peaking",null,"Non-Coincident"]
["ED_MDU541_00232",null,null,null,null,"Coincident"]
["ED_MDU541_00233",null,null,"Adjustments - Embedded generation","MW","Non-Coincident"]
["ED_MDU541_00234",null,null,null,null,"Coincident"]
["ED_MDU541_00235",null,null,"Weather Corrected MD 10% POE","MW","Non-Coincident"]
["ED_MDU541_00236",null,null,null,null,"Coincident"]
["ED_MDU541_00237",null,null,"Weather Corrected MD 10% POE","MVA","Non-Coincident"]
["ED_MDU541_00238",null,null,null,null,"Coincident"]
["ED_MDU541_00239",null,null,"Weather Corrected MD 50% POE","MW","Non-Coincident"]
["ED_MDU541_00240",null,null,null,null,"Coincident"]
["ED_MDU541_00241",null,null,"Weather Corrected MD 50% POE","MVA","Non-Coincident"]
["ED_MDU541_00242",null,null,null,null,"Coincident"]
["ED_MDU541_00243",null,"<Enter substation name>","Substation Rating","MVA","Non-Coincident"]
["ED_MDU541_00244",null,null,null,null,"Coincident"]
["ED_MDU541_00245",null,null,"Raw Adjusted MD","MW","Non-Coincident"]
["ED_MDU541_00246",null,null,null,null,"Coincident"]
["ED_MDU541_00247",null,null,"Raw Adjusted MD","MVA","Non-Coincident"]
["ED_MDU541_00248",null,null,null,null,"Coincident"]
["ED_MDU541_00249",null,null,"Date MD occurred",null,"Non-Coincident"]
["ED_MDU541_00250",null,null,null,null,"Coincident"]
["ED_MDU541_00251",null,null,"Half hour time period MD occurred",null,"Non-Coincident"]
["ED_MDU541_00252",null,null,null,null,"Coincident"]
["ED_MDU541_00253",null,null,"Winter/Summer Peaking",null,"Non-Coincident"]
["ED_MDU541_00254",null,null,null,null,"Coincident"]
["ED_MDU541_00255",null,null,"Adjustments - Embedded generation","MW","Non-Coincident"]
["ED_MDU541_00256",null,null,null,null,"Coincident"]
["ED_MDU541_00257",null,null,"Weather Corrected MD 10% POE","MW","Non-Coincident"]
["ED_MDU541_00258",null,null,null,null,"Coincident"]
["ED_MDU541_00259",null,null,"Weather Corrected MD 10% POE","MVA","Non-Coincident"]
["ED_MDU541_00260",null,null,null,null,"Coincident"]
["ED_MDU541_00261",null,null,"Weather Corrected MD 50% POE","MW","Non-Coincident"]
["ED_MDU541_00262",null,null,null,null,"Coincident"]
["ED_MDU541_00263",null,null,"Weather Corrected MD 50% POE","MVA","Non-Coincident"]
["ED_MDU541_00264",null,null,null,null,"Coincident"]
["ED_MDU541_00265",null,"<Enter substation name>","Substation Rating","MVA","Non-Coincident"]
["ED_MDU541_00266",null,null,null,null,"Coincident"]
["ED_MDU541_00267",null,null,"Raw Adjusted MD","MW","Non-Coincident"]
["ED_MDU541_00268",null,null,null,null,"Coincident"]
["ED_MDU541_00269",null,null,"Raw Adjusted MD","MVA","Non-Coincident"]
["ED_MDU541_00270",null,null,null,null,"Coincident"]
["ED_MDU541_00271",null,null,"Date MD occurred",null,"Non-Coincident"]
["ED_MDU541_00272",null,null,null,null,"Coincident"]
["ED_MDU541_00273",null,null,"Half hour time period MD occurred",null,"Non-Coincident"]
["ED_MDU541_00274",null,null,null,null,"Coincident"]
["ED_MDU541_00275",null,null,"Winter/Summer Peaking",null,"Non-Coincident"]
["ED_MDU541_00276",null,null,null,null,"Coincident"]
["ED_MDU541_00277",null,null,"Adjustments - Embedded generation","MW","Non-Coincident"]
["ED_MDU541_00278",null,null,null,null,"Coincident"]
["ED_MDU541_00279",null,null,"Weather Corrected MD 10% POE","MW","Non-Coincident"]
["ED_MDU541_00280",null,null,null,null,"Coincident"]
["ED_MDU541_00281",null,null,"Weather Corrected MD 10% POE","MVA","Non-Coincident"]
["ED_MDU541_00282",null,null,null,null,"Coincident"]
["ED_MDU541_00283",null,null,"Weather Corrected MD 50% POE","MW","Non-Coincident"]
["ED_MDU541_00284",null,null,null,null,"Coincident"]
["ED_MDU541_00285",null,null,"Weather Corrected MD 50% POE","MVA","Non-Coincident"]
["ED_MDU541_00286",null,null,null,null,"Coincident"]
["ED_MDU541_00287",null,"<Enter substation name>","Substation Rating","MVA","Non-Coincident"]
["ED_MDU541_00288",null,null,null,null,"Coincident"]
["ED_MDU541_00289",null,null,"Raw Adjusted MD","MW","Non-Coincident"]
["ED_MDU541_00290",null,null,null,null,"Coincident"]
["ED_MDU541_00291",null,null,"Raw Adjusted MD","MVA","Non-Coincident"]
["ED_MDU541_00292",null,null,null,null,"Coincident"]
["ED_MDU541_00293",null,null,"Date MD occurred",null,"Non-Coincident"]
["ED_MDU541_00294",null,null,null,null,"Coincident"]
["ED_MDU541_00295",null,null,"Half hour time period MD occurred",null,"Non-Coincident"]
["ED_MDU541_00296",null,null,null,null,"Coincident"]
["ED_MDU541_00297",null,null,"Winter/Summer Peaking",null,"Non-Coincident"]
["ED_MDU541_00298",null,null,null,null,"Coincident"]
["ED_MDU541_00299",null,null,"Adjustments - Embedded generation","MW","Non-Coincident"]
["ED_MDU541_00300",null,null,null,null,"Coincident"]
["ED_MDU541_00301",null,null,"Weather Corrected MD 10% POE","MW","Non-Coincident"]
["ED_MDU541_00302",null,null,null,null,"Coincident"]
["ED_MDU541_00303",null,null,"Weather Corrected MD 10% POE","MVA","Non-Coincident"]
["ED_MDU541_00304",null,null,null,null,"Coincident"]
["ED_MDU541_00305",null,null,"Weather Corrected MD 50% POE","MW","Non-Coincident"]
["ED_MDU541_00306",null,null,null,null,"Coincident"]
["ED_MDU541_00307",null,null,"Weather Corrected MD 50% POE","MVA","Non-Coincident"]
["ED_MDU541_00308",null,null,null,null,"Coincident"]
["ED_MDU541_00309",null,"<Enter substation name>","Substation Rating","MVA","Non-Coincident"]
["ED_MDU541_00310",null,null,null,null,"Coincident"]
["ED_MDU541_00311",null,null,"Raw Adjusted MD","MW","Non-Coincident"]
["ED_MDU541_00312",null,null,null,null,"Coincident"]
["ED_MDU541_00313",null,null,"Raw Adjusted MD","MVA","Non-Coincident"]
["ED_MDU541_00314",null,null,null,null,"Coincident"]
["ED_MDU541_00315",null,null,"Date MD occurred",null,"Non-Coincident"]
["ED_MDU541_00316",null,null,null,null,"Coincident"]
["ED_MDU541_00317",null,null,"Half hour time period MD occurred",null,"Non-Coincident"]
["ED_MDU541_00318",null,null,null,null,"Coincident"]
["ED_MDU541_00319",null,null,"Winter/Summer Peaking",null,"Non-Coincident"]
["ED_MDU541_00320",null,null,null,null,"Coincident"]
["ED_MDU541_00321",null,null,"Adjustments - Embedded generation","MW","Non-Coincident"]
["ED_MDU541_00322",null,null,null,null,"Coincident"]
["ED_MDU541_00323",null,null,"Weather Corrected MD 10% POE","MW","Non-Coincident"]
["ED_MDU541_00324",null,null,null,null,"Coincident"]
["ED_MDU541_00325",null,null,"Weather Corrected MD 10% POE","MVA","Non-Coincident"]
["ED_MDU541_00326",null,null,null,null,"Coincident"]
["ED_MDU541_00327",null,null,"Weather Corrected MD 50% POE","MW","Non-Coincident"]
["ED_MDU541_00328",null,null,null,null,"Coincident"]
["ED_MDU541_00329",null,null,"Weather Corrected MD 50% POE","MVA","Non-Coincident"]
["ED_MDU541_00330",null,null,null,null,"Coincident"]
["ED_MDU541_00331",null,"<Enter substation name>","Substation Rating","MVA","Non-Coincident"]
["ED_MDU541_00332",null,null,null,null,"Coincident"]
["ED_MDU541_00333",null,null,"Raw Adjusted MD","MW","Non-Coincident"]
["ED_MDU541_00334",null,null,null,null,"Coincident"]
["ED_MDU541_00335",null,null,"Raw Adjusted MD","MVA","Non-Coincident"]
["ED_MDU541_00336",null,null,null,null,"Coincident"]
["ED_MDU541_00337",null,null,"Date MD occurred",null,"Non-Coincident"]
["ED_MDU541_00338",null,null,null,null,"Coincident"]
["ED_MDU541_00339",null,null,"Half hour time period MD occurred",null,"Non-Coincident"]
["ED_MDU541_00340",null,null,null,null,"Coincident"]
["ED_MDU541_00341",null,null,"Winter/Summer Peaking",null,"Non-Coincident"]
["ED_MDU541_00342",null,null,null,null,"Coincident"]
["ED_MDU541_00343",null,null,"Adjustments - Embedded generation","MW","Non-Coincident"]
["ED_MDU541_00344",null,null,null,null,"Coincident"]
["ED_MDU541_00345",null,null,"Weather Corrected MD 10% POE","MW","Non-Coincident"]
["ED_MDU541_00346",null,null,null,null,"Coincident"]
["ED_MDU541_00347",null,null,"Weather Corrected MD 10% POE","MVA","Non-Coincident"]
["ED_MDU541_00348",null,null,null,null,"Coincident"]
["ED_MDU541_00349",null,null,"Weather Corrected MD 50% POE","MW","Non-Coincident"]
["ED_MDU541_00350",null,null,null,null,"Coincident"]
["ED_MDU541_00351",null,null,"Weather Corrected MD 50% POE","MVA","Non-Coincident"]
["ED_MDU541_00352",null,null,null,null,"Coincident"]
["ED_MDU541_00353",null,"<Enter substation name>","Substation Rating","MVA","Non-Coincident"]
["ED_MDU541_00354",null,null,null,null,"Coincident"]
["ED_MDU541_00355",null,null,"Raw Adjusted MD","MW","Non-Coincident"]
["ED_MDU541_00356",null,null,null,null,"Coincident"]
["ED_MDU541_00357",null,null,"Raw Adjusted MD","MVA","Non-Coincident"]
["ED_MDU541_00358",null,null,null,null,"Coincident"]
["ED_MDU541_00359",null,null,"Date MD occurred",null,"Non-Coincident"]
["ED_MDU541_00360",null,null,null,null,"Coincident"]
["ED_MDU541_00361",null,null,"Half hour time period MD occurred",null,"Non-Coincident"]
["ED_MDU541_00362",null,null,null,null,"Coincident"]
["ED_MDU541_00363",null,null,"Winter/Summer Peaking",null,"Non-Coincident"]
["ED_MDU541_00364",null,null,null,null,"Coincident"]
["ED_MDU541_00365",null,null,"Adjustments - Embedded generation","MW","Non-Coincident"]
["ED_MDU541_00366",null,null,null,null,"Coincident"]
["ED_MDU541_00367",null,null,"Weather Corrected MD 10% POE","MW","Non-Coincident"]
["ED_MDU541_00368",null,null,null,null,"Coincident"]
["ED_MDU541_00369",null,null,"Weather Corrected MD 10% POE","MVA","Non-Coincident"]
["ED_MDU541_00370",null,null,null,null,"Coincident"]
["ED_MDU541_00371",null,null,"Weather Corrected MD 50% POE","MW","Non-Coincident"]
["ED_MDU541_00372",null,null,null,null,"Coincident"]
["ED_MDU541_00373",null,null,"Weather Corrected MD 50% POE","MVA","Non-Coincident"]
["ED_MDU541_00374",null,null,null,null,"Coincident"]
["ED_MDU541_00375",null,"<Enter substation name>","Substation Rating","MVA","Non-Coincident"]
["ED_MDU541_00376",null,null,null,null,"Coincident"]
["ED_MDU541_00377",null,null,"Raw Adjusted MD","MW","Non-Coincident"]
["ED_MDU541_00378",null,null,null,null,"Coincident"]
["ED_MDU541_00379",null,null,"Raw Adjusted MD","MVA","Non-Coincident"]
["ED_MDU541_00380",null,null,null,null,"Coincident"]
["ED_MDU541_00381",null,null,"Date MD occurred",null,"Non-Coincident"]
["ED_MDU541_00382",null,null,null,null,"Coincident"]
["ED_MDU541_00383",null,null,"Half hour time period MD occurred",null,"Non-Coincident"]
["ED_MDU541_00384",null,null,null,null,"Coincident"]
["ED_MDU541_00385",null,null,"Winter/Summer Peaking",null,"Non-Coincident"]
["ED_MDU541_00386",null,null,null,null,"Coincident"]
["ED_MDU541_00387",null,null,"Adjustments - Embedded generation","MW","Non-Coincident"]
["ED_MDU541_00388",null,null,null,null,"Coincident"]
["ED_MDU541_00389",null,null,"Weather Corrected MD 10% POE","MW","Non-Coincident"]
["ED_MDU541_00390",null,null,null,null,"Coincident"]
["ED_MDU541_00391",null,null,"Weather Corrected MD 10% POE","MVA","Non-Coincident"]
["ED_MDU541_00392",null,null,null,null,"Coincident"]
["ED_MDU541_00393",null,null,"Weather Corrected MD 50% POE","MW","Non-Coincident"]
["ED_MDU541_00394",null,null,null,null,"Coincident"]
["ED_MDU541_00395",null,null,"Weather Corrected MD 50% POE","MVA","Non-Coincident"]
["ED_MDU541_00396",null,null,null,null,"Coincident"]
["ED_MDU541_00397",null,"<Enter substation name>","Substation Rating","MVA","Non-Coincident"]
["ED_MDU541_00398",null,null,null,null,"Coincident"]
["ED_MDU541_00399",null,null,"Raw Adjusted MD","MW","Non-Coincident"]
["ED_MDU541_00400",null,null,null,null,"Coincident"]
["ED_MDU541_00401",null,null,"Raw Adjusted MD","MVA","Non-Coincident"]
["ED_MDU541_00402",null,null,null,null,"Coincident"]
["ED_MDU541_00403",null,null,"Date MD occurred",null,"Non-Coincident"]
["ED_MDU541_00404",null,null,null,null,"Coincident"]
["ED_MDU541_00405",null,null,"Half hour time period MD occurred",null,"Non-Coincident"]
["ED_MDU541_00406",null,null,null,null,"Coincident"]
["ED_MDU541_00407",null,null,"Winter/Summer Peaking",null,"Non-Coincident"]
["ED_MDU541_00408",null,null,null,null,"Coincident"]
["ED_MDU541_00409",null,null,"Adjustments - Embedded generation","MW","Non-Coincident"]
["ED_MDU541_00410",null,null,null,null,"Coincident"]
["ED_MDU541_00411",null,null,"Weather Corrected MD 10% POE","MW","Non-Coincident"]
["ED_MDU541_00412",null,null,null,null,"Coincident"]
["ED_MDU541_00413",null,null,"Weather Corrected MD 10% POE","MVA","Non-Coincident"]
["ED_MDU541_00414",null,null,null,null,"Coincident"]
["ED_MDU541_00415",null,null,"Weather Corrected MD 50% POE","MW","Non-Coincident"]
["ED_MDU541_00416",null,null,null,null,"Coincident"]
["ED_MDU541_00417",null,null,"Weather Corrected MD 50% POE","MVA","Non-Coincident"]
["ED_MDU541_00418",null,null,null,null,"Coincident"]
["ED_MDU541_00419",null,"<Enter substation name>","Substation Rating","MVA","Non-Coincident"]
["ED_MDU541_00420",null,null,null,null,"Coincident"]
["ED_MDU541_00421",null,null,"Raw Adjusted MD","MW","Non-Coincident"]
["ED_MDU541_00422",null,null,null,null,"Coincident"]
["ED_MDU541_00423",null,null,"Raw Adjusted MD","MVA","Non-Coincident"]
["ED_MDU541_00424",null,null,null,null,"Coincident"]
["ED_MDU541_00425",null,null,"Date MD occurred",null,"Non-Coincident"]
["ED_MDU541_00426",null,null,null,null,"Coincident"]
["ED_MDU541_00427",null,null,"Half hour time period MD occurred",null,"Non-Coincident"]
["ED_MDU541_00428",null,null,null,null,"Coincident"]
["ED_MDU541_00429",null,null,"Winter/Summer Peaking",null,"Non-Coincident"]
["ED_MDU541_00430",null,null,null,null,"Coincident"]
["ED_MDU541_00431",null,null,"Adjustments - Embedded generation","MW","Non-Coincident"]
["ED_MDU541_00432",null,null,null,null,"Coincident"]
["ED_MDU541_00433",null,null,"Weather Corrected MD 10% POE","MW","Non-Coincident"]
["ED_MDU541_00434",null,null,null,null,"Coincident"]
["ED_MDU541_00435",null,null,"Weather Corrected MD 10% POE","MVA","Non-Coincident"]
["ED_MDU541_00436",null,null,null,null,"Coincident"]
["ED_MDU541_00437",null,null,"Weather Corrected MD 50% POE","MW","Non-Coincident"]
["ED_MDU541_00438",null,null,null,null,"Coincident"]
["ED_MDU541_00439",null,null,"Weather Corrected MD 50% POE","MVA","Non-Coincident"]
["ED_MDU541_00440",null,null,null,null,"Coincident"]
["ED_MDU541_00441",null,"<Enter substation name>","Substation Rating","MVA","Non-Coincident"]
["ED_MDU541_00442",null,null,null,null,"Coincident"]
["ED_MDU541_00443",null,null,"Raw Adjusted MD","MW","Non-Coincident"]
["ED_MDU541_00444",null,null,null,null,"Coincident"]
["ED_MDU541_00445",null,null,"Raw Adjusted MD","MVA","Non-Coincident"]
["ED_MDU541_00446",null,null,null,null,"Coincident"]
["ED_MDU541_00447",null,null,"Date MD occurred",null,"Non-Coincident"]
["ED_MDU541_00448",null,null,null,null,"Coincident"]
["ED_MDU541_00449",null,null,"Half hour time period MD occurred",null,"Non-Coincident"]
["ED_MDU541_00450",null,null,null,null,"Coincident"]
["ED_MDU541_00451",null,null,"Winter/Summer Peaking",null,"Non-Coincident"]
["ED_MDU541_00452",null,null,null,null,"Coincident"]
["ED_MDU541_00453",null,null,"Adjustments - Embedded generation","MW","Non-Coincident"]
["ED_MDU541_00454",null,null,null,null,"Coincident"]
["ED_MDU541_00455",null,null,"Weather Corrected MD 10% POE","MW","Non-Coincident"]
["ED_MDU541_00456",null,null,null,null,"Coincident"]
["ED_MDU541_00457",null,null,"Weather Corrected MD 10% POE","MVA","Non-Coincident"]
["ED_MDU541_00458",null,null,null,null,"Coincident"]
["ED_MDU541_00459",null,null,"Weather Corrected MD 50% POE","MW","Non-Coincident"]
["ED_MDU541_00460",null,null,null,null,"Coincident"]
["ED_MDU541_00461",null,null,"Weather Corrected MD 50% POE","MVA","Non-Coincident"]
["ED_MDU541_00462",null,null,null,null,"Coincident"]
["ED_MDU541_00463",null,"<Enter substation name>","Substation Rating","MVA","Non-Coincident"]
["ED_MDU541_00464",null,null,null,null,"Coincident"]
["ED_MDU541_00465",null,null,"Raw Adjusted MD","MW","Non-Coincident"]
["ED_MDU541_00466",null,null,null,null,"Coincident"]
["ED_MDU541_00467",null,null,"Raw Adjusted MD","MVA","Non-Coincident"]
["ED_MDU541_00468",null,null,null,null,"Coincident"]
["ED_MDU541_00469",null,null,"Date MD occurred",null,"Non-Coincident"]
["ED_MDU541_00470",null,null,null,null,"Coincident"]
["ED_MDU541_00471",null,null,"Half hour time period MD occurred",null,"Non-Coincident"]
["ED_MDU541_00472",null,null,null,null,"Coincident"]
["ED_MDU541_00473",null,null,"Winter/Summer Peaking",null,"Non-Coincident"]
["ED_MDU541_00474",null,null,null,null,"Coincident"]
["ED_MDU541_00475",null,null,"Adjustments - Embedded generation","MW","Non-Coincident"]
["ED_MDU541_00476",null,null,null,null,"Coincident"]
["ED_MDU541_00477",null,null,"Weather Corrected MD 10% POE","MW","Non-Coincident"]
["ED_MDU541_00478",null,null,null,null,"Coincident"]
["ED_MDU541_00479",null,null,"Weather Corrected MD 10% POE","MVA","Non-Coincident"]
["ED_MDU541_00480",null,null,null,null,"Coincident"]
["ED_MDU541_00481",null,null,"Weather Corrected MD 50% POE","MW","Non-Coincident"]
["ED_MDU541_00482",null,null,null,null,"Coincident"]
["ED_MDU541_00483",null,null,"Weather Corrected MD 50% POE","MVA","Non-Coincident"]
["ED_MDU541_00484",null,null,null,null,"Coincident"]
["ED_MDU541_00485",null,"<Enter substation name>","Substation Rating","MVA","Non-Coincident"]
["ED_MDU541_00486",null,null,null,null,"Coincident"]
["ED_MDU541_00487",null,null,"Raw Adjusted MD","MW","Non-Coincident"]
["ED_MDU541_00488",null,null,null,null,"Coincident"]
["ED_MDU541_00489",null,null,"Raw Adjusted MD","MVA","Non-Coincident"]
["ED_MDU541_00490",null,null,null,null,"Coincident"]
["ED_MDU541_00491",null,null,"Date MD occurred",null,"Non-Coincident"]
["ED_MDU541_00492",null,null,null,null,"Coincident"]
["ED_MDU541_00493",null,null,"Half hour time period MD occurred",null,"Non-Coincident"]
["ED_MDU541_00494",null,null,null,null,"Coincident"]
["ED_MDU541_00495",null,null,"Winter/Summer Peaking",null,"Non-Coincident"]
["ED_MDU541_00496",null,null,null,null,"Coincident"]
["ED_MDU541_00497",null,null,"Adjustments - Embedded generation","MW","Non-Coincident"]
["ED_MDU541_00498",null,null,null,null,"Coincident"]
["ED_MDU541_00499",null,null,"Weather Corrected MD 10% POE","MW","Non-Coincident"]
["ED_MDU541_00500",null,null,null,null,"Coincident"]
["ED_MDU541_00501",null,null,"Weather Corrected MD 10% POE","MVA","Non-Coincident"]
["ED_MDU541_00502",null,null,null,null,"Coincident"]
["ED_MDU541_00503",null,null,"Weather Corrected MD 50% POE","MW","Non-Coincident"]
["ED_MDU541_00504",null,null,null,null,"Coincident"]
["ED_MDU541_00505",null,null,"Weather Corrected MD 50% POE","MVA","Non-Coincident"]
["ED_MDU541_00506",null,null,null,null,"Coincident"]
["ED_MDU541_00507",null,"<Enter substation name>","Substation Rating","MVA","Non-Coincident"]
["ED_MDU541_00508",null,null,null,null,"Coincident"]
["ED_MDU541_00509",null,null,"Raw Adjusted MD","MW","Non-Coincident"]
["ED_MDU541_00510",null,null,null,null,"Coincident"]
["ED_MDU541_00511",null,null,"Raw Adjusted MD","MVA","Non-Coincident"]
["ED_MDU541_00512",null,null,null,null,"Coincident"]
["ED_MDU541_00513",null,null,"Date MD occurred",null,"Non-Coincident"]
["ED_MDU541_00514",null,null,null,null,"Coincident"]
["ED_MDU541_00515",null,null,"Half hour time period MD occurred",null,"Non-Coincident"]
["ED_MDU541_00516",null,null,null,null,"Coincident"]
["ED_MDU541_00517",null,null,"Winter/Summer Peaking",null,"Non-Coincident"]
["ED_MDU541_00518",null,null,null,null,"Coincident"]
["ED_MDU541_00519",null,null,"Adjustments - Embedded generation","MW","Non-Coincident"]
["ED_MDU541_00520",null,null,null,null,"Coincident"]
["ED_MDU541_00521",null,null,"Weather Corrected MD 10% POE","MW","Non-Coincident"]
["ED_MDU541_00522",null,null,null,null,"Coincident"]
["ED_MDU541_00523",null,null,"Weather Corrected MD 10% POE","MVA","Non-Coincident"]
["ED_MDU541_00524",null,null,null,null,"Coincident"]
["ED_MDU541_00525",null,null,"Weather Corrected MD 50% POE","MW","Non-Coincident"]
["ED_MDU541_00526",null,null,null,null,"Coincident"]
["ED_MDU541_00527",null,null,"Weather Corrected MD 50% POE","MVA","Non-Coincident"]
["ED_MDU541_00528",null,null,null,null,"Coincident"]
["ED_MDU541_00529",null,"<Enter substation name>","Substation Rating","MVA","Non-Coincident"]
["ED_MDU541_00530",null,null,null,null,"Coincident"]
["ED_MDU541_00531",null,null,"Raw Adjusted MD","MW","Non-Coincident"]
["ED_MDU541_00532",null,null,null,null,"Coincident"]
["ED_MDU541_00533",null,null,"Raw Adjusted MD","MVA","Non-Coincident"]
["ED_MDU541_00534",null,null,null,null,"Coincident"]
["ED_MDU541_00535",null,null,"Date MD occurred",null,"Non-Coincident"]
["ED_MDU541_00536",null,null,null,null,"Coincident"]
["ED_MDU541_00537",null,null,"Half hour time period MD occurred",null,"Non-Coincident"]
["ED_MDU541_00538",null,null,null,null,"Coincident"]
["ED_MDU541_00539",null,null,"Winter/Summer Peaking",null,"Non-Coincident"]
["ED_MDU541_00540",null,null,null,null,"Coincident"]
["ED_MDU541_00541",null,null,"Adjustments - Embedded generation","MW","Non-Coincident"]
["ED_MDU541_00542",null,null,null,null,"Coincident"]
["ED_MDU541_00543",null,null,"Weather Corrected MD 10% POE","MW","Non-Coincident"]
["ED_MDU541_00544",null,null,null,null,"Coincident"]
["ED_MDU541_00545",null,null,"Weather Corrected MD 10% POE","MVA","Non-Coincident"]
["ED_MDU541_00546",null,null,null,null,"Coincident"]
["ED_MDU541_00547",null,null,"Weather Corrected MD 50% POE","MW","Non-Coincident"]
["ED_MDU541_00548",null,null,null,null,"Coincident"]
["ED_MDU541_00549",null,null,"Weather Corrected MD 50% POE","MVA","Non-Coincident"]
["ED_MDU541_00550",null,null,null,null,"Coincident"]
["ED_MDU541_00551",null,"<Enter substation name>","Substation Rating","MVA","Non-Coincident"]
["ED_MDU541_00552",null,null,null,null,"Coincident"]
["ED_MDU541_00553",null,null,"Raw Adjusted MD","MW","Non-Coincident"]
["ED_MDU541_00554",null,null,null,null,"Coincident"]
["ED_MDU541_00555",null,null,"Raw Adjusted MD","MVA","Non-Coincident"]
["ED_MDU541_00556",null,null,null,null,"Coincident"]
["ED_MDU541_00557",null,null,"Date MD occurred",null,"Non-Coincident"]
["ED_MDU541_00558",null,null,null,null,"Coincident"]
["ED_MDU541_00559",null,null,"Half hour time period MD occurred",null,"Non-Coincident"]
["ED_MDU541_00560",null,null,null,null,"Coincident"]
["ED_MDU541_00561",null,null,"Winter/Summer Peaking",null,"Non-Coincident"]
["ED_MDU541_00562",null,null,null,null,"Coincident"]
["ED_MDU541_00563",null,null,"Adjustments - Embedded generation","MW","Non-Coincident"]
["ED_MDU541_00564",null,null,null,null,"Coincident"]
["ED_MDU541_00565",null,null,"Weather Corrected MD 10% POE","MW","Non-Coincident"]
["ED_MDU541_00566",null,null,null,null,"Coincident"]
["ED_MDU541_00567",null,null,"Weather Corrected MD 10% POE","MVA","Non-Coincident"]
["ED_MDU541_00568",null,null,null,null,"Coincident"]
["ED_MDU541_00569",null,null,"Weather Corrected MD 50% POE","MW","Non-Coincident"]
["ED_MDU541_00570",null,null,null,null,"Coincident"]
["ED_MDU541_00571",null,null,"Weather Corrected MD 50% POE","MVA","Non-Coincident"]
["ED_MDU541_00572",null,null,null,null,"Coincident"]
["ED_MDU541_00573",null,"<Enter substation name>","Substation Rating","MVA","Non-Coincident"]
["ED_MDU541_00574",null,null,null,null,"Coincident"]
["ED_MDU541_00575",null,null,"Raw Adjusted MD","MW","Non-Coincident"]
["ED_MDU541_00576",null,null,null,null,"Coincident"]
["ED_MDU541_00577",null,null,"Raw Adjusted MD","MVA","Non-Coincident"]
["ED_MDU541_00578",null,null,null,null,"Coincident"]
["ED_MDU541_00579",null,null,"Date MD occurred",null,"Non-Coincident"]
["ED_MDU541_00580",null,null,null,null,"Coincident"]
["ED_MDU541_00581",null,null,"Half hour time period MD occurred",null,"Non-Coincident"]
["ED_MDU541_00582",null,null,null,null,"Coincident"]
["ED_MDU541_00583",null,null,"Winter/Summer Peaking",null,"Non-Coincident"]
["ED_MDU541_00584",null,null,null,null,"Coincident"]
["ED_MDU541_00585",null,null,"Adjustments - Embedded generation","MW","Non-Coincident"]
["ED_MDU541_00586",null,null,null,null,"Coincident"]
["ED_MDU541_00587",null,null,"Weather Corrected MD 10% POE","MW","Non-Coincident"]
["ED_MDU541_00588",null,null,null,null,"Coincident"]
["ED_MDU541_00589",null,null,"Weather Corrected MD 10% POE","MVA","Non-Coincident"]
["ED_MDU541_00590",null,null,null,null,"Coincident"]
["ED_MDU541_00591",null,null,"Weather Corrected MD 50% POE","MW","Non-Coincident"]
["ED_MDU541_00592",null,null,null,null,"Coincident"]
["ED_MDU541_00593",null,null,"Weather Corrected MD 50% POE","MVA","Non-Coincident"]
["ED_MDU541_00594",null,null,null,null,"Coincident"]
["ED_MDU541_00595",null,"<Enter substation name>","Substation Rating","MVA","Non-Coincident"]
["ED_MDU541_00596",null,null,null,null,"Coincident"]
["ED_MDU541_00597",null,null,"Raw Adjusted MD","MW","Non-Coincident"]
["ED_MDU541_00598",null,null,null,null,"Coincident"]
["ED_MDU541_00599",null,null,"Raw Adjusted MD","MVA","Non-Coincident"]
["ED_MDU541_00600",null,null,null,null,"Coincident"]
["ED_MDU541_00601",null,null,"Date MD occurred",null,"Non-Coincident"]
["ED_MDU541_00602",null,null,null,null,"Coincident"]
["ED_MDU541_00603",null,null,"Half hour time period MD occurred",null,"Non-Coincident"]
["ED_MDU541_00604",null,null,null,null,"Coincident"]
["ED_MDU541_00605",null,null,"Winter/Summer Peaking",null,"Non-Coincident"]
["ED_MDU541_00606",null,null,null,null,"Coincident"]
["ED_MDU541_00607",null,null,"Adjustments - Embedded generation","MW","Non-Coincident"]
["ED_MDU541_00608",null,null,null,null,"Coincident"]
["ED_MDU541_00609",null,null,"Weather Corrected MD 10% POE","MW","Non-Coincident"]
["ED_MDU541_00610",null,null,null,null,"Coincident"]
["ED_MDU541_00611",null,null,"Weather Corrected MD 10% POE","MVA","Non-Coincident"]
["ED_MDU541_00612",null,null,null,null,"Coincident"]
["ED_MDU541_00613",null,null,"Weather Corrected MD 50% POE","MW","Non-Coincident"]
["ED_MDU541_00614",null,null,null,null,"Coincident"]
["ED_MDU541_00615",null,null,"Weather Corrected MD 50% POE","MVA","Non-Coincident"]
["ED_MDU541_00616",null,null,null,null,"Coincident"]
["ED_MDU541_00617",null,"<Enter substation name>","Substation Rating","MVA","Non-Coincident"]
["ED_MDU541_00618",null,null,null,null,"Coincident"]
["ED_MDU541_00619",null,null,"Raw Adjusted MD","MW","Non-Coincident"]
["ED_MDU541_00620",null,null,null,null,"Coincident"]
["ED_MDU541_00621",null,null,"Raw Adjusted MD","MVA","Non-Coincident"]
["ED_MDU541_00622",null,null,null,null,"Coincident"]
["ED_MDU541_00623",null,null,"Date MD occurred",null,"Non-Coincident"]
["ED_MDU541_00624",null,null,null,null,"Coincident"]
["ED_MDU541_00625",null,null,"Half hour time period MD occurred",null,"Non-Coincident"]
["ED_MDU541_00626",null,null,null,null,"Coincident"]
["ED_MDU541_00627",null,null,"Winter/Summer Peaking",null,"Non-Coincident"]
["ED_MDU541_00628",null,null,null,null,"Coincident"]
["ED_MDU541_00629",null,null,"Adjustments - Embedded generation","MW","Non-Coincident"]
["ED_MDU541_00630",null,null,null,null,"Coincident"]
["ED_MDU541_00631",null,null,"Weather Corrected MD 10% POE","MW","Non-Coincident"]
["ED_MDU541_00632",null,null,null,null,"Coincident"]
["ED_MDU541_00633",null,null,"Weather Corrected MD 10% POE","MVA","Non-Coincident"]
["ED_MDU541_00634",null,null,null,null,"Coincident"]
["ED_MDU541_00635",null,null,"Weather Corrected MD 50% POE","MW","Non-Coincident"]
["ED_MDU541_00636",null,null,null,null,"Coincident"]
["ED_MDU541_00637",null,null,"Weather Corrected MD 50% POE","MVA","Non-Coincident"]
["ED_MDU541_00638",null,null,null,null,"Coincident"]
["ED_MDU541_00639",null,"<Enter substation name>","Substation Rating","MVA","Non-Coincident"]
["ED_MDU541_00640",null,null,null,null,"Coincident"]
["ED_MDU541_00641",null,null,"Raw Adjusted MD","MW","Non-Coincident"]
["ED_MDU541_00642",null,null,null,null,"Coincident"]
["ED_MDU541_00643",null,null,"Raw Adjusted MD","MVA","Non-Coincident"]
["ED_MDU541_00644",null,null,null,null,"Coincident"]
["ED_MDU541_00645",null,null,"Date MD occurred",null,"Non-Coincident"]
["ED_MDU541_00646",null,null,null,null,"Coincident"]
["ED_MDU541_00647",null,null,"Half hour time period MD occurred",null,"Non-Coincident"]
["ED_MDU541_00648",null,null,null,null,"Coincident"]
["ED_MDU541_00649",null,null,"Winter/Summer Peaking",null,"Non-Coincident"]
["ED_MDU541_00650",null,null,null,null,"Coincident"]
["ED_MDU541_00651",null,null,"Adjustments - Embedded generation","MW","Non-Coincident"]
["ED_MDU541_00652",null,null,null,null,"Coincident"]
["ED_MDU541_00653",null,null,"Weather Corrected MD 10% POE","MW","Non-Coincident"]
["ED_MDU541_00654",null,null,null,null,"Coincident"]
["ED_MDU541_00655",null,null,"Weather Corrected MD 10% POE","MVA","Non-Coincident"]
["ED_MDU541_00656",null,null,null,null,"Coincident"]
["ED_MDU541_00657",null,null,"Weather Corrected MD 50% POE","MW","Non-Coincident"]
["ED_MDU541_00658",null,null,null,null,"Coincident"]
["ED_MDU541_00659",null,null,"Weather Corrected MD 50% POE","MVA","Non-Coincident"]
["ED_MDU541_00660",null,null,null,null,"Coincident"]
["ED_MDU541_00661",null,"<Enter substation name>","Substation Rating","MVA","Non-Coincident"]
["ED_MDU541_00662",null,null,null,null,"Coincident"]
["ED_MDU541_00663",null,null,"Raw Adjusted MD","MW","Non-Coincident"]
["ED_MDU541_00664",null,null,null,null,"Coincident"]
["ED_MDU541_00665",null,null,"Raw Adjusted MD","MVA","Non-Coincident"]
["ED_MDU541_00666",null,null,null,null,"Coincident"]
["ED_MDU541_00667",null,null,"Date MD occurred",null,"Non-Coincident"]
["ED_MDU541_00668",null,null,null,null,"Coincident"]
["ED_MDU541_00669",null,null,"Half hour time period MD occurred",null,"Non-Coincident"]
["ED_MDU541_00670",null,null,null,null,"Coincident"]
["ED_MDU541_00671",null,null,"Winter/Summer Peaking",null,"Non-Coincident"]
["ED_MDU541_00672",null,null,null,null,"Coincident"]
["ED_MDU541_00673",null,null,"Adjustments - Embedded generation","MW","Non-Coincident"]
["ED_MDU541_00674",null,null,null,null,"Coincident"]
["ED_MDU541_00675",null,null,"Weather Corrected MD 10% POE","MW","Non-Coincident"]
["ED_MDU541_00676",null,null,null,null,"Coincident"]
["ED_MDU541_00677",null,null,"Weather Corrected MD 10% POE","MVA","Non-Coincident"]
["ED_MDU541_00678",null,null,null,null,"Coincident"]
["ED_MDU541_00679",null,null,"Weather Corrected MD 50% POE","MW","Non-Coincident"]
["ED_MDU541_00680",null,null,null,null,"Coincident"]
["ED_MDU541_00681",null,null,"Weather Corrected MD 50% POE","MVA","Non-Coincident"]
["ED_MDU541_00682",null,null,null,null,"Coincident"]
["ED_MDU541_00683",null,"<Enter substation name>","Substation Rating","MVA","Non-Coincident"]
["ED_MDU541_00684",null,null,null,null,"Coincident"]
["ED_MDU541_00685",null,null,"Raw Adjusted MD","MW","Non-Coincident"]
["ED_MDU541_00686",null,null,null,null,"Coincident"]
["ED_MDU541_00687",null,null,"Raw Adjusted MD","MVA","Non-Coincident"]
["ED_MDU541_00688",null,null,null,null,"Coincident"]
["ED_MDU541_00689",null,null,"Date MD occurred",null,"Non-Coincident"]
["ED_MDU541_00690",null,null,null,null,"Coincident"]
["ED_MDU541_00691",null,null,"Half hour time period MD occurred",null,"Non-Coincident"]
["ED_MDU541_00692",null,null,null,null,"Coincident"]
["ED_MDU541_00693",null,null,"Winter/Summer Peaking",null,"Non-Coincident"]
["ED_MDU541_00694",null,null,null,null,"Coincident"]
["ED_MDU541_00695",null,null,"Adjustments - Embedded generation","MW","Non-Coincident"]
["ED_MDU541_00696",null,null,null,null,"Coincident"]
["ED_MDU541_00697",null,null,"Weather Corrected MD 10% POE","MW","Non-Coincident"]
["ED_MDU541_00698",null,null,null,null,"Coincident"]
["ED_MDU541_00699",null,null,"Weather Corrected MD 10% POE","MVA","Non-Coincident"]
["ED_MDU541_00700",null,null,null,null,"Coincident"]
["ED_MDU541_00701",null,null,"Weather Corrected MD 50% POE","MW","Non-Coincident"]
["ED_MDU541_00702",null,null,null,null,"Coincident"]
["ED_MDU541_00703",null,null,"Weather Corrected MD 50% POE","MVA","Non-Coincident"]
["ED_MDU541_00704",null,null,null,null,"Coincident"]
["ED_MDU541_00705",null,"<Enter substation name>","Substation Rating","MVA","Non-Coincident"]
["ED_MDU541_00706",null,null,null,null,"Coincident"]
["ED_MDU541_00707",null,null,"Raw Adjusted MD","MW","Non-Coincident"]
["ED_MDU541_00708",null,null,null,null,"Coincident"]
["ED_MDU541_00709",null,null,"Raw Adjusted MD","MVA","Non-Coincident"]
["ED_MDU541_00710",null,null,null,null,"Coincident"]
["ED_MDU541_00711",null,null,"Date MD occurred",null,"Non-Coincident"]
["ED_MDU541_00712",null,null,null,null,"Coincident"]
["ED_MDU541_00713",null,null,"Half hour time period MD occurred",null,"Non-Coincident"]
["ED_MDU541_00714",null,null,null,null,"Coincident"]
["ED_MDU541_00715",null,null,"Winter/Summer Peaking",null,"Non-Coincident"]
["ED_MDU541_00716",null,null,null,null,"Coincident"]
["ED_MDU541_00717",null,null,"Adjustments - Embedded generation","MW","Non-Coincident"]
["ED_MDU541_00718",null,null,null,null,"Coincident"]
["ED_MDU541_00719",null,null,"Weather Corrected MD 10% POE","MW","Non-Coincident"]
["ED_MDU541_00720",null,null,null,null,"Coincident"]
["ED_MDU541_00721",null,null,"Weather Corrected MD 10% POE","MVA","Non-Coincident"]
["ED_MDU541_00722",null,null,null,null,"Coincident"]
["ED_MDU541_00723",null,null,"Weather Corrected MD 50% POE","MW","Non-Coincident"]
["ED_MDU541_00724",null,null,null,null,"Coincident"]
["ED_MDU541_00725",null,null,"Weather Corrected MD 50% POE","MVA","Non-Coincident"]
["ED_MDU541_00726",null,null,null,null,"Coincident"]
["ED_MDU541_00727",null,"<Enter substation name>","Substation Rating","MVA","Non-Coincident"]
["ED_MDU541_00728",null,null,null,null,"Coincident"]
["ED_MDU541_00729",null,null,"Raw Adjusted MD","MW","Non-Coincident"]
["ED_MDU541_00730",null,null,null,null,"Coincident"]
["ED_MDU541_00731",null,null,"Raw Adjusted MD","MVA","Non-Coincident"]
["ED_MDU541_00732",null,null,null,null,"Coincident"]
["ED_MDU541_00733",null,null,"Date MD occurred",null,"Non-Coincident"]
["ED_MDU541_00734",null,null,null,null,"Coincident"]
["ED_MDU541_00735",null,null,"Half hour time period MD occurred",null,"Non-Coincident"]
["ED_MDU541_00736",null,null,null,null,"Coincident"]
["ED_MDU541_00737",null,null,"Winter/Summer Peaking",null,"Non-Coincident"]
["ED_MDU541_00738",null,null,null,null,"Coincident"]
["ED_MDU541_00739",null,null,"Adjustments - Embedded generation","MW","Non-Coincident"]
["ED_MDU541_00740",null,null,null,null,"Coincident"]
["ED_MDU541_00741",null,null,"Weather Corrected MD 10% POE","MW","Non-Coincident"]
["ED_MDU541_00742",null,null,null,null,"Coincident"]
["ED_MDU541_00743",null,null,"Weather Corrected MD 10% POE","MVA","Non-Coincident"]
["ED_MDU541_00744",null,null,null,null,"Coincident"]
["ED_MDU541_00745",null,null,"Weather Corrected MD 50% POE","MW","Non-Coincident"]
["ED_MDU541_00746",null,null,null,null,"Coincident"]
["ED_MDU541_00747",null,null,"Weather Corrected MD 50% POE","MVA","Non-Coincident"]
["ED_MDU541_00748",null,null,null,null,"Coincident"]
["ED_MDU541_00749",null,"<Enter substation name>","Substation Rating","MVA","Non-Coincident"]
["ED_MDU541_00750",null,null,null,null,"Coincident"]
["ED_MDU541_00751",null,null,"Raw Adjusted MD","MW","Non-Coincident"]
["ED_MDU541_00752",null,null,null,null,"Coincident"]
["ED_MDU541_00753",null,null,"Raw Adjusted MD","MVA","Non-Coincident"]
["ED_MDU541_00754",null,null,null,null,"Coincident"]
["ED_MDU541_00755",null,null,"Date MD occurred",null,"Non-Coincident"]
["ED_MDU541_00756",null,null,null,null,"Coincident"]
["ED_MDU541_00757",null,null,"Half hour time period MD occurred",null,"Non-Coincident"]
["ED_MDU541_00758",null,null,null,null,"Coincident"]
["ED_MDU541_00759",null,null,"Winter/Summer Peaking",null,"Non-Coincident"]
["ED_MDU541_00760",null,null,null,null,"Coincident"]
["ED_MDU541_00761",null,null,"Adjustments - Embedded generation","MW","Non-Coincident"]
["ED_MDU541_00762",null,null,null,null,"Coincident"]
["ED_MDU541_00763",null,null,"Weather Corrected MD 10% POE","MW","Non-Coincident"]
["ED_MDU541_00764",null,null,null,null,"Coincident"]
["ED_MDU541_00765",null,null,"Weather Corrected MD 10% POE","MVA","Non-Coincident"]
["ED_MDU541_00766",null,null,null,null,"Coincident"]
["ED_MDU541_00767",null,null,"Weather Corrected MD 50% POE","MW","Non-Coincident"]
["ED_MDU541_00768",null,null,null,null,"Coincident"]
["ED_MDU541_00769",null,null,"Weather Corrected MD 50% POE","MVA","Non-Coincident"]
["ED_MDU541_00770",null,null,null,null,"Coincident"]
["ED_MDU541_00771",null,"<Enter substation name>","Substation Rating","MVA","Non-Coincident"]
["ED_MDU541_00772",null,null,null,null,"Coincident"]
["ED_MDU541_00773",null,null,"Raw Adjusted MD","MW","Non-Coincident"]
["ED_MDU541_00774",null,null,null,null,"Coincident"]
["ED_MDU541_00775",null,null,"Raw Adjusted MD","MVA","Non-Coincident"]
["ED_MDU541_00776",null,null,null,null,"Coincident"]
["ED_MDU541_00777",null,null,"Date MD occurred",null,"Non-Coincident"]
["ED_MDU541_00778",null,null,null,null,"Coincident"]
["ED_MDU541_00779",null,null,"Half hour time period MD occurred",null,"Non-Coincident"]
["ED_MDU541_00780",null,null,null,null,"Coincident"]
["ED_MDU541_00781",null,null,"Winter/Summer Peaking",null,"Non-Coincident"]
["ED_MDU541_00782",null,null,null,null,"Coincident"]
["ED_MDU541_00783",null,null,"Adjustments - Embedded generation","MW","Non-Coincident"]
["ED_MDU541_00784",null,null,null,null,"Coincident"]
["ED_MDU541_00785",null,null,"Weather Corrected MD 10% POE","MW","Non-Coincident"]
["ED_MDU541_00786",null,null,null,null,"Coincident"]
["ED_MDU541_00787",null,null,"Weather Corrected MD 10% POE","MVA","Non-Coincident"]
["ED_MDU541_00788",null,null,null,null,"Coincident"]
["ED_MDU541_00789",null,null,"Weather Corrected MD 50% POE","MW","Non-Coincident"]
["ED_MDU541_00790",null,null,null,null,"Coincident"]
["ED_MDU541_00791",null,null,"Weather Corrected MD 50% POE","MVA","Non-Coincident"]
["ED_MDU541_00792",null,null,null,null,"Coincident"]
["ED_MDU541_00793",null,"<Enter substation name>","Substation Rating","MVA","Non-Coincident"]
["ED_MDU541_00794",null,null,null,null,"Coincident"]
["ED_MDU541_00795",null,null,"Raw Adjusted MD","MW","Non-Coincident"]
["ED_MDU541_00796",null,null,null,null,"Coincident"]
["ED_MDU541_00797",null,null,"Raw Adjusted MD","MVA","Non-Coincident"]
["ED_MDU541_00798",null,null,null,null,"Coincident"]
["ED_MDU541_00799",null,null,"Date MD occurred",null,"Non-Coincident"]
["ED_MDU541_00800",null,null,null,null,"Coincident"]
["ED_MDU541_00801",null,null,"Half hour time period MD occurred",null,"Non-Coincident"]
["ED_MDU541_00802",null,null,null,null,"Coincident"]
["ED_MDU541_00803",null,null,"Winter/Summer Peaking",null,"Non-Coincident"]
["ED_MDU541_00804",null,null,null,null,"Coincident"]
["ED_MDU541_00805",null,null,"Adjustments - Embedded generation","MW","Non-Coincident"]
["ED_MDU541_00806",null,null,null,null,"Coincident"]
["ED_MDU541_00807",null,null,"Weather Corrected MD 10% POE","MW","Non-Coincident"]
["ED_MDU541_00808",null,null,null,null,"Coincident"]
["ED_MDU541_00809",null,null,"Weather Corrected MD 10% POE","MVA","Non-Coincident"]
["ED_MDU541_00810",null,null,null,null,"Coincident"]
["ED_MDU541_00811",null,null,"Weather Corrected MD 50% POE","MW","Non-Coincident"]
["ED_MDU541_00812",null,null,null,null,"Coincident"]
["ED_MDU541_00813",null,null,"Weather Corrected MD 50% POE","MVA","Non-Coincident"]
["ED_MDU541_00814",null,null,null,null,"Coincident"]
["ED_MDU541_00815",null,"<Enter substation name>","Substation Rating","MVA","Non-Coincident"]
["ED_MDU541_00816",null,null,null,null,"Coincident"]
["ED_MDU541_00817",null,null,"Raw Adjusted MD","MW","Non-Coincident"]
["ED_MDU541_00818",null,null,null,null,"Coincident"]
["ED_MDU541_00819",null,null,"Raw Adjusted MD","MVA","Non-Coincident"]
["ED_MDU541_00820",null,null,null,null,"Coincident"]
["ED_MDU541_00821",null,null,"Date MD occurred",null,"Non-Coincident"]
["ED_MDU541_00822",null,null,null,null,"Coincident"]
["ED_MDU541_00823",null,null,"Half hour time period MD occurred",null,"Non-Coincident"]
["ED_MDU541_00824",null,null,null,null,"Coincident"]
["ED_MDU541_00825",null,null,"Winter/Summer Peaking",null,"Non-Coincident"]
["ED_MDU541_00826",null,null,null,null,"Coincident"]
["ED_MDU541_00827",null,null,"Adjustments - Embedded generation","MW","Non-Coincident"]
["ED_MDU541_00828",null,null,null,null,"Coincident"]
["ED_MDU541_00829",null,null,"Weather Corrected MD 10% POE","MW","Non-Coincident"]
["ED_MDU541_00830",null,null,null,null,"Coincident"]
["ED_MDU541_00831",null,null,"Weather Corrected MD 10% POE","MVA","Non-Coincident"]
["ED_MDU541_00832",null,null,null,null,"Coincident"]
["ED_MDU541_00833",null,null,"Weather Corrected MD 50% POE","MW","Non-Coincident"]
["ED_MDU541_00834",null,null,null,null,"Coincident"]
["ED_MDU541_00835",null,null,"Weather Corrected MD 50% POE","MVA","Non-Coincident"]
["ED_MDU541_00836",null,null,null,null,"Coincident"]
["ED_MDU541_00837",null,"<Enter substation name>","Substation Rating","MVA","Non-Coincident"]
["ED_MDU541_00838",null,null,null,null,"Coincident"]
["ED_MDU541_00839",null,null,"Raw Adjusted MD","MW","Non-Coincident"]
["ED_MDU541_00840",null,null,null,null,"Coincident"]
["ED_MDU541_00841",null,null,"Raw Adjusted MD","MVA","Non-Coincident"]
["ED_MDU541_00842",null,null,null,null,"Coincident"]
["ED_MDU541_00843",null,null,"Date MD occurred",null,"Non-Coincident"]
["ED_MDU541_00844",null,null,null,null,"Coincident"]
["ED_MDU541_00845",null,null,"Half hour time period MD occurred",null,"Non-Coincident"]
["ED_MDU541_00846",null,null,null,null,"Coincident"]
["ED_MDU541_00847",null,null,"Winter/Summer Peaking",null,"Non-Coincident"]
["ED_MDU541_00848",null,null,null,null,"Coincident"]
["ED_MDU541_00849",null,null,"Adjustments - Embedded generation","MW","Non-Coincident"]
["ED_MDU541_00850",null,null,null,null,"Coincident"]
["ED_MDU541_00851",null,null,"Weather Corrected MD 10% POE","MW","Non-Coincident"]
["ED_MDU541_00852",null,null,null,null,"Coincident"]
["ED_MDU541_00853",null,null,"Weather Corrected MD 10% POE","MVA","Non-Coincident"]
["ED_MDU541_00854",null,null,null,null,"Coincident"]
["ED_MDU541_00855",null,null,"Weather Corrected MD 50% POE","MW","Non-Coincident"]
["ED_MDU541_00856",null,null,null,null,"Coincident"]
["ED_MDU541_00857",null,null,"Weather Corrected MD 50% POE","MVA","Non-Coincident"]
["ED_MDU541_00858",null,null,null,null,"Coincident"]
["ED_MDU541_00859",null,"<Enter substation name>","Substation Rating","MVA","Non-Coincident"]
["ED_MDU541_00860",null,null,null,null,"Coincident"]
["ED_MDU541_00861",null,null,"Raw Adjusted MD","MW","Non-Coincident"]
["ED_MDU541_00862",null,null,null,null,"Coincident"]
["ED_MDU541_00863",null,null,"Raw Adjusted MD","MVA","Non-Coincident"]
["ED_MDU541_00864",null,null,null,null,"Coincident"]
["ED_MDU541_00865",null,null,"Date MD occurred",null,"Non-Coincident"]
["ED_MDU541_00866",null,null,null,null,"Coincident"]
["ED_MDU541_00867",null,null,"Half hour time period MD occurred",null,"Non-Coincident"]
["ED_MDU541_00868",null,null,null,null,"Coincident"]
["ED_MDU541_00869",null,null,"Winter/Summer Peaking",null,"Non-Coincident"]
["ED_MDU541_00870",null,null,null,null,"Coincident"]
["ED_MDU541_00871",null,null,"Adjustments - Embedded generation","MW","Non-Coincident"]
["ED_MDU541_00872",null,null,null,null,"Coincident"]
["ED_MDU541_00873",null,null,"Weather Corrected MD 10% POE","MW","Non-Coincident"]
["ED_MDU541_00874",null,null,null,null,"Coincident"]
["ED_MDU541_00875",null,null,"Weather Corrected MD 10% POE","MVA","Non-Coincident"]
["ED_MDU541_00876",null,null,null,null,"Coincident"]
["ED_MDU541_00877",null,null,"Weather Corrected MD 50% POE","MW","Non-Coincident"]
["ED_MDU541_00878",null,null,null,null,"Coincident"]
["ED_MDU541_00879",null,null,"Weather Corrected MD 50% POE","MVA","Non-Coincident"]
["ED_MDU541_00880",null,null,null,null,"Coincident"]
["ED_MDU541_00881",null,"<Enter substation name>","Substation Rating","MVA","Non-Coincident"]
["ED_MDU541_00882",null,null,null,null,"Coincident"]
["ED_MDU541_00883",null,null,"Raw Adjusted MD","MW","Non-Coincident"]
["ED_MDU541_00884",null,null,null,null,"Coincident"]
["ED_MDU541_00885",null,null,"Raw Adjusted MD","MVA","Non-Coincident"]
["ED_MDU541_00886",null,null,null,null,"Coincident"]
["ED_MDU541_00887",null,null,"Date MD occurred",null,"Non-Coincident"]
["ED_MDU541_00888",null,null,null,null,"Coincident"]
["ED_MDU541_00889",null,null,"Half hour time period MD occurred",null,"Non-Coincident"]
["ED_MDU541_00890",null,null,null,null,"Coincident"]
["ED_MDU541_00891",null,null,"Winter/Summer Peaking",null,"Non-Coincident"]
["ED_MDU541_00892",null,null,null,null,"Coincident"]
["ED_MDU541_00893",null,null,"Adjustments - Embedded generation","MW","Non-Coincident"]
["ED_MDU541_00894",null,null,null,null,"Coincident"]
["ED_MDU541_00895",null,null,"Weather Corrected MD 10% POE","MW","Non-Coincident"]
["ED_MDU541_00896",null,null,null,null,"Coincident"]
["ED_MDU541_00897",null,null,"Weather Corrected MD 10% POE","MVA","Non-Coincident"]
["ED_MDU541_00898",null,null,null,null,"Coincident"]
["ED_MDU541_00899",null,null,"Weather Corrected MD 50% POE","MW","Non-Coincident"]
["ED_MDU541_00900",null,null,null,null,"Coincident"]
["ED_MDU541_00901",null,null,"Weather Corrected MD 50% POE","MVA","Non-Coincident"]
["ED_MDU541_00902",null,null,null,null,"Coincident"]
["ED_MDU541_00903",null,"<Enter substation name>","Substation Rating","MVA","Non-Coincident"]
["ED_MDU541_00904",null,null,null,null,"Coincident"]
["ED_MDU541_00905",null,null,"Raw Adjusted MD","MW","Non-Coincident"]
["ED_MDU541_00906",null,null,null,null,"Coincident"]
["ED_MDU541_00907",null,null,"Raw Adjusted MD","MVA","Non-Coincident"]
["ED_MDU541_00908",null,null,null,null,"Coincident"]
["ED_MDU541_00909",null,null,"Date MD occurred",null,"Non-Coincident"]
["ED_MDU541_00910",null,null,null,null,"Coincident"]
["ED_MDU541_00911",null,null,"Half hour time period MD occurred",null,"Non-Coincident"]
["ED_MDU541_00912",null,null,null,null,"Coincident"]
["ED_MDU541_00913",null,null,"Winter/Summer Peaking",null,"Non-Coincident"]
["ED_MDU541_00914",null,null,null,null,"Coincident"]
["ED_MDU541_00915",null,null,"Adjustments - Embedded generation","MW","Non-Coincident"]
["ED_MDU541_00916",null,null,null,null,"Coincident"]
["ED_MDU541_00917",null,null,"Weather Corrected MD 10% POE","MW","Non-Coincident"]
["ED_MDU541_00918",null,null,null,null,"Coincident"]
["ED_MDU541_00919",null,null,"Weather Corrected MD 10% POE","MVA","Non-Coincident"]
["ED_MDU541_00920",null,null,null,null,"Coincident"]
["ED_MDU541_00921",null,null,"Weather Corrected MD 50% POE","MW","Non-Coincident"]
["ED_MDU541_00922",null,null,null,null,"Coincident"]
["ED_MDU541_00923",null,null,"Weather Corrected MD 50% POE","MVA","Non-Coincident"]
["ED_MDU541_00924",null,null,null,null,"Coincident"]
["ED_MDU541_00925",null,"<Enter substation name>","Substation Rating","MVA","Non-Coincident"]
["ED_MDU541_00926",null,null,null,null,"Coincident"]
["ED_MDU541_00927",null,null,"Raw Adjusted MD","MW","Non-Coincident"]
["ED_MDU541_00928",null,null,null,null,"Coincident"]
["ED_MDU541_00929",null,null,"Raw Adjusted MD","MVA","Non-Coincident"]
["ED_MDU541_00930",null,null,null,null,"Coincident"]
["ED_MDU541_00931",null,null,"Date MD occurred",null,"Non-Coincident"]
["ED_MDU541_00932",null,null,null,null,"Coincident"]
["ED_MDU541_00933",null,null,"Half hour time period MD occurred",null,"Non-Coincident"]
["ED_MDU541_00934",null,null,null,null,"Coincident"]
["ED_MDU541_00935",null,null,"Winter/Summer Peaking",null,"Non-Coincident"]
["ED_MDU541_00936",null,null,null,null,"Coincident"]
["ED_MDU541_00937",null,null,"Adjustments - Embedded generation","MW","Non-Coincident"]
["ED_MDU541_00938",null,null,null,null,"Coincident"]
["ED_MDU541_00939",null,null,"Weather Corrected MD 10% POE","MW","Non-Coincident"]
["ED_MDU541_00940",null,null,null,null,"Coincident"]
["ED_MDU541_00941",null,null,"Weather Corrected MD 10% POE","MVA","Non-Coincident"]
["ED_MDU541_00942",null,null,null,null,"Coincident"]
["ED_MDU541_00943",null,null,"Weather Corrected MD 50% POE","MW","Non-Coincident"]
["ED_MDU541_00944",null,null,null,null,"Coincident"]
["ED_MDU541_00945",null,null,"Weather Corrected MD 50% POE","MVA","Non-Coincident"]
["ED_MDU541_00946",null,null,null,null,"Coincident"]
["ED_MDU541_00947",null,"<Enter substation name>","Substation Rating","MVA","Non-Coincident"]
["ED_MDU541_00948",null,null,null,null,"Coincident"]
["ED_MDU541_00949",null,null,"Raw Adjusted MD","MW","Non-Coincident"]
["ED_MDU541_00950",null,null,null,null,"Coincident"]
["ED_MDU541_00951",null,null,"Raw Adjusted MD","MVA","Non-Coincident"]
["ED_MDU541_00952",null,null,null,null,"Coincident"]
["ED_MDU541_00953",null,null,"Date MD occurred",null,"Non-Coincident"]
["ED_MDU541_00954",null,null,null,null,"Coincident"]
["ED_MDU541_00955",null,null,"Half hour time period MD occurred",null,"Non-Coincident"]
["ED_MDU541_00956",null,null,null,null,"Coincident"]
["ED_MDU541_00957",null,null,"Winter/Summer Peaking",null,"Non-Coincident"]
["ED_MDU541_00958",null,null,null,null,"Coincident"]
["ED_MDU541_00959",null,null,"Adjustments - Embedded generation","MW","Non-Coincident"]
["ED_MDU541_00960",null,null,null,null,"Coincident"]
["ED_MDU541_00961",null,null,"Weather Corrected MD 10% POE","MW","Non-Coincident"]
["ED_MDU541_00962",null,null,null,null,"Coincident"]
["ED_MDU541_00963",null,null,"Weather Corrected MD 10% POE","MVA","Non-Coincident"]
["ED_MDU541_00964",null,null,null,null,"Coincident"]
["ED_MDU541_00965",null,null,"Weather Corrected MD 50% POE","MW","Non-Coincident"]
["ED_MDU541_00966",null,null,null,null,"Coincident"]
["ED_MDU541_00967",null,null,"Weather Corrected MD 50% POE","MVA","Non-Coincident"]
["ED_MDU541_00968",null,null,null,null,"Coincident"]
["ED_MDU541_00969",null,"<Enter substation name>","Substation Rating","MVA","Non-Coincident"]
["ED_MDU541_00970",null,null,null,null,"Coincident"]
["ED_MDU541_00971",null,null,"Raw Adjusted MD","MW","Non-Coincident"]
["ED_MDU541_00972",null,null,null,null,"Coincident"]
["ED_MDU541_00973",null,null,"Raw Adjusted MD","MVA","Non-Coincident"]
["ED_MDU541_00974",null,null,null,null,"Coincident"]
["ED_MDU541_00975",null,null,"Date MD occurred",null,"Non-Coincident"]
["ED_MDU541_00976",null,null,null,null,"Coincident"]
["ED_MDU541_00977",null,null,"Half hour time period MD occurred",null,"Non-Coincident"]
["ED_MDU541_00978",null,null,null,null,"Coincident"]
["ED_MDU541_00979",null,null,"Winter/Summer Peaking",null,"Non-Coincident"]
["ED_MDU541_00980",null,null,null,null,"Coincident"]
["ED_MDU541_00981",null,null,"Adjustments - Embedded generation","MW","Non-Coincident"]
["ED_MDU541_00982",null,null,null,null,"Coincident"]
["ED_MDU541_00983",null,null,"Weather Corrected MD 10% POE","MW","Non-Coincident"]
["ED_MDU541_00984",null,null,null,null,"Coincident"]
["ED_MDU541_00985",null,null,"Weather Corrected MD 10% POE","MVA","Non-Coincident"]
["ED_MDU541_00986",null,null,null,null,"Coincident"]
["ED_MDU541_00987",null,null,"Weather Corrected MD 50% POE","MW","Non-Coincident"]
["ED_MDU541_00988",null,null,null,null,"Coincident"]
["ED_MDU541_00989",null,null,"Weather Corrected MD 50% POE","MVA","Non-Coincident"]
["ED_MDU541_00990",null,null,null,null,"Coincident"]
["ED_MDU541_00991",null,"<Enter substation name>","Substation Rating","MVA","Non-Coincident"]
["ED_MDU541_00992",null,null,null,null,"Coincident"]
["ED_MDU541_00993",null,null,"Raw Adjusted MD","MW","Non-Coincident"]
["ED_MDU541_00994",null,null,null,null,"Coincident"]
["ED_MDU541_00995",null,null,"Raw Adjusted MD","MVA","Non-Coincident"]
["ED_MDU541_00996",null,null,null,null,"Coincident"]
["ED_MDU541_00997",null,null,"Date MD occurred",null,"Non-Coincident"]
["ED_MDU541_00998",null,null,null,null,"Coincident"]
["ED_MDU541_00999",null,null,"Half hour time period MD occurred",null,"Non-Coincident"]
["ED_MDU541_01000",null,null,null,null,"Coincident"]
["ED_MDU541_01001",null,null,"Winter/Summer Peaking",null,"Non-Coincident"]
["ED_MDU541_01002",null,null,null,null,"Coincident"]
["ED_MDU541_01003",null,null,"Adjustments - Embedded generation","MW","Non-Coincident"]
["ED_MDU541_01004",null,null,null,null,"Coincident"]
["ED_MDU541_01005",null,null,"Weather Corrected MD 10% POE","MW","Non-Coincident"]
["ED_MDU541_01006",null,null,null,null,"Coincident"]
["ED_MDU541_01007",null,null,"Weather Corrected MD 10% POE","MVA","Non-Coincident"]
["ED_MDU541_01008",null,null,null,null,"Coincident"]
["ED_MDU541_01009",null,null,"Weather Corrected MD 50% POE","MW","Non-Coincident"]
["ED_MDU541_01010",null,null,null,null,"Coincident"]
["ED_MDU541_01011",null,null,"Weather Corrected MD 50% POE","MVA","Non-Coincident"]
["ED_MDU541_01012",null,null,null,null,"Coincident"]
["ED_MDU541_01013",null,"<Enter substation name>","Substation Rating","MVA","Non-Coincident"]
["ED_MDU541_01014",null,null,null,null,"Coincident"]
["ED_MDU541_01015",null,null,"Raw Adjusted MD","MW","Non-Coincident"]
["ED_MDU541_01016",null,null,null,null,"Coincident"]
["ED_MDU541_01017",null,null,"Raw Adjusted MD","MVA","Non-Coincident"]
["ED_MDU541_01018",null,null,null,null,"Coincident"]
["ED_MDU541_01019",null,null,"Date MD occurred",null,"Non-Coincident"]
["ED_MDU541_01020",null,null,null,null,"Coincident"]
["ED_MDU541_01021",null,null,"Half hour time period MD occurred",null,"Non-Coincident"]
["ED_MDU541_01022",null,null,null,null,"Coincident"]
["ED_MDU541_01023",null,null,"Winter/Summer Peaking",null,"Non-Coincident"]
["ED_MDU541_01024",null,null,null,null,"Coincident"]
["ED_MDU541_01025",null,null,"Adjustments - Embedded generation","MW","Non-Coincident"]
["ED_MDU541_01026",null,null,null,null,"Coincident"]
["ED_MDU541_01027",null,null,"Weather Corrected MD 10% POE","MW","Non-Coincident"]
["ED_MDU541_01028",null,null,null,null,"Coincident"]
["ED_MDU541_01029",null,null,"Weather Corrected MD 10% POE","MVA","Non-Coincident"]
["ED_MDU541_01030",null,null,null,null,"Coincident"]
["ED_MDU541_01031",null,null,"Weather Corrected MD 50% POE","MW","Non-Coincident"]
["ED_MDU541_01032",null,null,null,null,"Coincident"]
["ED_MDU541_01033",null,null,"Weather Corrected MD 50% POE","MVA","Non-Coincident"]
["ED_MDU541_01034",null,null,null,null,"Coincident"]
["ED_MDU541_01035",null,"<Enter substation name>","Substation Rating","MVA","Non-Coincident"]
["ED_MDU541_01036",null,null,null,null,"Coincident"]
["ED_MDU541_01037",null,null,"Raw Adjusted MD","MW","Non-Coincident"]
["ED_MDU541_01038",null,null,null,null,"Coincident"]
["ED_MDU541_01039",null,null,"Raw Adjusted MD","MVA","Non-Coincident"]
["ED_MDU541_01040",null,null,null,null,"Coincident"]
["ED_MDU541_01041",null,null,"Date MD occurred",null,"Non-Coincident"]
["ED_MDU541_01042",null,null,null,null,"Coincident"]
["ED_MDU541_01043",null,null,"Half hour time period MD occurred",null,"Non-Coincident"]
["ED_MDU541_01044",null,null,null,null,"Coincident"]
["ED_MDU541_01045",null,null,"Winter/Summer Peaking",null,"Non-Coincident"]
["ED_MDU541_01046",null,null,null,null,"Coincident"]
["ED_MDU541_01047",null,null,"Adjustments - Embedded generation","MW","Non-Coincident"]
["ED_MDU541_01048",null,null,null,null,"Coincident"]
["ED_MDU541_01049",null,null,"Weather Corrected MD 10% POE","MW","Non-Coincident"]
["ED_MDU541_01050",null,null,null,null,"Coincident"]
["ED_MDU541_01051",null,null,"Weather Corrected MD 10% POE","MVA","Non-Coincident"]
["ED_MDU541_01052",null,null,null,null,"Coincident"]
["ED_MDU541_01053",null,null,"Weather Corrected MD 50% POE","MW","Non-Coincident"]
["ED_MDU541_01054",null,null,null,null,"Coincident"]
["ED_MDU541_01055",null,null,"Weather Corrected MD 50% POE","MVA","Non-Coincident"]
["ED_MDU541_01056",null,null,null,null,"Coincident"]
["ED_MDU541_01057",null,"<Enter substation name>","Substation Rating","MVA","Non-Coincident"]
["ED_MDU541_01058",null,null,null,null,"Coincident"]
["ED_MDU541_01059",null,null,"Raw Adjusted MD","MW","Non-Coincident"]
["ED_MDU541_01060",null,null,null,null,"Coincident"]
["ED_MDU541_01061",null,null,"Raw Adjusted MD","MVA","Non-Coincident"]
["ED_MDU541_01062",null,null,null,null,"Coincident"]
["ED_MDU541_01063",null,null,"Date MD occurred",null,"Non-Coincident"]
["ED_MDU541_01064",null,null,null,null,"Coincident"]
["ED_MDU541_01065",null,null,"Half hour time period MD occurred",null,"Non-Coincident"]
["ED_MDU541_01066",null,null,null,null,"Coincident"]
["ED_MDU541_01067",null,null,"Winter/Summer Peaking",null,"Non-Coincident"]
["ED_MDU541_01068",null,null,null,null,"Coincident"]
["ED_MDU541_01069",null,null,"Adjustments - Embedded generation","MW","Non-Coincident"]
["ED_MDU541_01070",null,null,null,null,"Coincident"]
["ED_MDU541_01071",null,null,"Weather Corrected MD 10% POE","MW","Non-Coincident"]
["ED_MDU541_01072",null,null,null,null,"Coincident"]
["ED_MDU541_01073",null,null,"Weather Corrected MD 10% POE","MVA","Non-Coincident"]
["ED_MDU541_01074",null,null,null,null,"Coincident"]
["ED_MDU541_01075",null,null,"Weather Corrected MD 50% POE","MW","Non-Coincident"]
["ED_MDU541_01076",null,null,null,null,"Coincident"]
["ED_MDU541_01077",null,null,"Weather Corrected MD 50% POE","MVA","Non-Coincident"]
["ED_MDU541_01078",null,null,null,null,"Coincident"]
["ED_MDU541_01079",null,"<Enter substation name>","Substation Rating","MVA","Non-Coincident"]
["ED_MDU541_01080",null,null,null,null,"Coincident"]
["ED_MDU541_01081",null,null,"Raw Adjusted MD","MW","Non-Coincident"]
["ED_MDU541_01082",null,null,null,null,"Coincident"]
["ED_MDU541_01083",null,null,"Raw Adjusted MD","MVA","Non-Coincident"]
["ED_MDU541_01084",null,null,null,null,"Coincident"]
["ED_MDU541_01085",null,null,"Date MD occurred",null,"Non-Coincident"]
["ED_MDU541_01086",null,null,null,null,"Coincident"]
["ED_MDU541_01087",null,null,"Half hour time period MD occurred",null,"Non-Coincident"]
["ED_MDU541_01088",null,null,null,null,"Coincident"]
["ED_MDU541_01089",null,null,"Winter/Summer Peaking",null,"Non-Coincident"]
["ED_MDU541_01090",null,null,null,null,"Coincident"]
["ED_MDU541_01091",null,null,"Adjustments - Embedded generation","MW","Non-Coincident"]
["ED_MDU541_01092",null,null,null,null,"Coincident"]
["ED_MDU541_01093",null,null,"Weather Corrected MD 10% POE","MW","Non-Coincident"]
["ED_MDU541_01094",null,null,null,null,"Coincident"]
["ED_MDU541_01095",null,null,"Weather Corrected MD 10% POE","MVA","Non-Coincident"]
["ED_MDU541_01096",null,null,null,null,"Coincident"]
["ED_MDU541_01097",null,null,"Weather Corrected MD 50% POE","MW","Non-Coincident"]
["ED_MDU541_01098",null,null,null,null,"Coincident"]
["ED_MDU541_01099",null,null,"Weather Corrected MD 50% POE","MVA","Non-Coincident"]
["ED_MDU541_01100",null,null,null,null,"Coincident"]
["ED_MDU541_01101",null,"<Enter substation name>","Substation Rating","MVA","Non-Coincident"]
["ED_MDU541_01102",null,null,null,null,"Coincident"]
["ED_MDU541_01103",null,null,"Raw Adjusted MD","MW","Non-Coincident"]
["ED_MDU541_01104",null,null,null,null,"Coincident"]
["ED_MDU541_01105",null,null,"Raw Adjusted MD","MVA","Non-Coincident"]
["ED_MDU541_01106",null,null,null,null,"Coincident"]
["ED_MDU541_01107",null,null,"Date MD occurred",null,"Non-Coincident"]
["ED_MDU541_01108",null,null,null,null,"Coincident"]
["ED_MDU541_01109",null,null,"Half hour time period MD occurred",null,"Non-Coincident"]
["ED_MDU541_01110",null,null,null,null,"Coincident"]
["ED_MDU541_01111",null,null,"Winter/Summer Peaking",null,"Non-Coincident"]
["ED_MDU541_01112",null,null,null,null,"Coincident"]
["ED_MDU541_01113",null,null,"Adjustments - Embedded generation","MW","Non-Coincident"]
["ED_MDU541_01114",null,null,null,null,"Coincident"]
["ED_MDU541_01115",null,null,"Weather Corrected MD 10% POE","MW","Non-Coincident"]
["ED_MDU541_01116",null,null,null,null,"Coincident"]
["ED_MDU541_01117",null,null,"Weather Corrected MD 10% POE","MVA","Non-Coincident"]
["ED_MDU541_01118",null,null,null,null,"Coincident"]
["ED_MDU541_01119",null,null,"Weather Corrected MD 50% POE","MW","Non-Coincident"]
["ED_MDU541_01120",null,null,null,null,"Coincident"]
["ED_MDU541_01121",null,null,"Weather Corrected MD 50% POE","MVA","Non-Coincident"]
["ED_MDU541_01122",null,null,null,null,"Coincident"]
[]
[]
[]
[]
[]
[]
[null,"NETWORK LEVEL","SUBSTATION","FORECASTING ELEMENTS","UNIT","MAX DEMAND"]
["ED_MDU541_01130","ZONE SUBSTATION","Angle Crossing","Substation Rating","MVA","Non-Coincident",{"$f":"'[2]5.4 MD & utilisation-Spatial'!G767+'[3]5.4 MD & utilisation-Spatial'!G1141","v":15}]
["ED_MDU541_01131",null,null,null,null,"Coincident",{"$f":"'[2]5.4 MD & utilisation-Spatial'!G768+'[3]5.4 MD & utilisation-Spatial'!G1142","v":15}]
["ED_MDU541_01132",null,null,"Raw Adjusted MD","MW","Non-Coincident",{"$f":"'[2]5.4 MD & utilisation-Spatial'!G769+'[3]5.4 MD & utilisation-Spatial'!G1143","v":2.09}]
["ED_MDU541_01133",null,null,null,null,"Coincident",{"$f":"'[2]5.4 MD & utilisation-Spatial'!G770+'[3]5.4 MD & utilisation-Spatial'!G1144","v":0}]
["ED_MDU541_01134",null,null,"Raw Adjusted MD","MVA","Non-Coincident",{"$f":"'[2]5.4 MD & utilisation-Spatial'!G771+'[3]5.4 MD & utilisation-Spatial'!G1145","v":2.35}]
["ED_MDU541_01135",null,null,null,null,"Coincident",{"$f":"'[2]5.4 MD & utilisation-Spatial'!G772+'[3]5.4 MD & utilisation-Spatial'!G1146","v":0}]
["ED_MDU541_01136",null,null,"Date MD occurred",null,"Non-Coincident",{"$f":"'[2]5.4 MD & utilisation-Spatial'!G773+'[3]5.4 MD & utilisation-Spatial'!G1147","v":"2015-04-23"}]
["ED_MDU541_01137",null,null,null,null,"Coincident",{"$f":"'[2]5.4 MD & utilisation-Spatial'!G774+'[3]5.4 MD & utilisation-Spatial'!G1148","v":"2014-07-09"}]
["ED_MDU541_01138",null,null,"Half hour time period MD occurred",null,"Non-Coincident",{"$f":"'[2]5.4 MD & utilisation-Spatial'!G775+'[3]5.4 MD & utilisation-Spatial'!G1149","v":"10:30:00"}]
["ED_MDU541_01139",null,null,null,null,"Coincident",{"$f":"'[2]5.4 MD & utilisation-Spatial'!G776+'[3]5.4 MD & utilisation-Spatial'!G1150","v":"18:00:00"}]
["ED_MDU541_01140",null,null,"Winter/Summer Peaking",null,"Non-Coincident",{"$f":"'[2]5.4 MD & utilisation-Spatial'!G777+'[3]5.4 MD & utilisation-Spatial'!G1151","v":{"$error":"#VALUE!"}}]
["ED_MDU541_01141",null,null,null,null,"Coincident",{"$f":"'[2]5.4 MD & utilisation-Spatial'!G778+'[3]5.4 MD & utilisation-Spatial'!G1152","v":{"$error":"#VALUE!"}}]
["ED_MDU541_01142",null,null,"Adjustments - Embedded generation","MW","Non-Coincident",{"$f":"'[2]5.4 MD & utilisation-Spatial'!G779+'[3]5.4 MD & utilisation-Spatial'!G1153","v":0}]
["ED_MDU541_01143",null,null,null,null,"Coincident",{"$f":"'[2]5.4 MD & utilisation-Spatial'!G780+'[3]5.4 MD & utilisation-Spatial'!G1154","v":0}]
["ED_MDU541_01144",null,null,"Weather Corrected MD 10% POE","MW","Non-Coincident",{"$f":"'[2]5.4 MD & utilisation-Spatial'!G781+'[3]5.4 MD & utilisation-Spatial'!G1155","v":{"$error":"#VALUE!"}}]
["ED_MDU541_01145",null,null,null,null,"Coincident",{"$f":"'[2]5.4 MD & utilisation-Spatial'!G782+'[3]5.4 MD & utilisation-Spatial'!G1156","v":{"$error":"#VALUE!"}}]
["ED_MDU541_01146",null,null,"Weather Corrected MD 10% POE","MVA","Non-Coincident",{"$f":"'[2]5.4 MD & utilisation-Spatial'!G783+'[3]5.4 MD & utilisation-Spatial'!G1157","v":{"$error":"#VALUE!"}}]
["ED_MDU541_01147",null,null,null,null,"Coincident",{"$f":"'[2]5.4 MD & utilisation-Spatial'!G784+'[3]5.4 MD & utilisation-Spatial'!G1158","v":{"$error":"#VALUE!"}}]
["ED_MDU541_01148",null,null,"Weather Corrected MD 50% POE","MW","Non-Coincident",{"$f":"'[2]5.4 MD & utilisation-Spatial'!G785+'[3]5.4 MD & utilisation-Spatial'!G1159","v":{"$error":"#VALUE!"}}]
["ED_MDU541_01149",null,null,null,null,"Coincident",{"$f":"'[2]5.4 MD & utilisation-Spatial'!G786+'[3]5.4 MD & utilisation-Spatial'!G1160","v":{"$error":"#VALUE!"}}]
["ED_MDU541_01150",null,null,"Weather Corrected MD 50% POE","MVA","Non-Coincident",{"$f":"'[2]5.4 MD & utilisation-Spatial'!G787+'[3]5.4 MD & utilisation-Spatial'!G1161","v":{"$error":"#VALUE!"}}]
["ED_MDU541_01151",null,null,null,null,"Coincident",{"$f":"'[2]5.4 MD & utilisation-Spatial'!G788+'[3]5.4 MD & utilisation-Spatial'!G1162","v":{"$error":"#VALUE!"}}]
["ED_MDU541_01152",null,"Belconnen","Substation Rating","MVA","Non-Coincident",{"$f":"'[2]5.4 MD & utilisation-Spatial'!G789+'[3]5.4 MD & utilisation-Spatial'!G1163","v":55}]
["ED_MDU541_01153",null,null,null,null,"Coincident",{"$f":"'[2]5.4 MD & utilisation-Spatial'!G790+'[3]5.4 MD & utilisation-Spatial'!G1164","v":55}]
["ED_MDU541_01154",null,null,"Raw Adjusted MD","MW","Non-Coincident",{"$f":"'[2]5.4 MD & utilisation-Spatial'!G791+'[3]5.4 MD & utilisation-Spatial'!G1165","v":51.657349070000002}]
["ED_MDU541_01155",null,null,null,null,"Coincident",{"$f":"'[2]5.4 MD & utilisation-Spatial'!G792+'[3]5.4 MD & utilisation-Spatial'!G1166","v":51.30709556}]
["ED_MDU541_01156",null,null,"Raw Adjusted MD","MVA","Non-Coincident",{"$f":"'[2]5.4 MD & utilisation-Spatial'!G793+'[3]5.4 MD & utilisation-Spatial'!G1167","v":54.19}]
["ED_MDU541_01157",null,null,null,null,"Coincident",{"$f":"'[2]5.4 MD & utilisation-Spatial'!G794+'[3]5.4 MD & utilisation-Spatial'!G1168","v":53.83}]
["ED_MDU541_01158",null,null,"Date MD occurred",null,"Non-Coincident",{"$f":"'[2]5.4 MD & utilisation-Spatial'!G795+'[3]5.4 MD & utilisation-Spatial'!G1169","v":"2014-07-09"}]
["ED_MDU541_01159",null,null,null,null,"Coincident",{"$f":"'[2]5.4 MD & utilisation-Spatial'!G796+'[3]5.4 MD & utilisation-Spatial'!G1170","v":"2014-07-09"}]
["ED_MDU541_01160",null,null,"Half hour time period MD occurred",null,"Non-Coincident",{"$f":"'[2]5.4 MD & utilisation-Spatial'!G797+'[3]5.4 MD & utilisation-Spatial'!G1171","v":"17:50:00"}]
["ED_MDU541_01161",null,null,null,null,"Coincident",{"$f":"'[2]5.4 MD & utilisation-Spatial'!G798+'[3]5.4 MD & utilisation-Spatial'!G1172","v":"18:00:00"}]
["ED_MDU541_01162",null,null,"Winter/Summer Peaking",null,"Non-Coincident",{"$f":"'[2]5.4 MD & utilisation-Spatial'!G799+'[3]5.4 MD & utilisation-Spatial'!G1173","v":{"$error":"#VALUE!"}}]
["ED_MDU541_01163",null,null,null,null,"Coincident",{"$f":"'[2]5.4 MD & utilisation-Spatial'!G800+'[3]5.4 MD & utilisation-Spatial'!G1174","v":{"$error":"#VALUE!"}}]
["ED_MDU541_01164",null,null,"Adjustments - Embedded generation","MW","Non-Coincident",{"$f":"'[2]5.4 MD & utilisation-Spatial'!G801+'[3]5.4 MD & utilisation-Spatial'!G1175","v":0}]
["ED_MDU541_01165",null,null,null,null,"Coincident",{"$f":"'[2]5.4 MD & utilisation-Spatial'!G802+'[3]5.4 MD & utilisation-Spatial'!G1176","v":0}]
["ED_MDU541_01166",null,null,"Weather Corrected MD 10% POE","MW","Non-Coincident",{"$f":"'[2]5.4 MD & utilisation-Spatial'!G803+'[3]5.4 MD & utilisation-Spatial'!G1177","v":53.689605839999999}]
["ED_MDU541_01167",null,null,null,null,"Coincident",{"$f":"'[2]5.4 MD & utilisation-Spatial'!G804+'[3]5.4 MD & utilisation-Spatial'!G1178","v":53.605917210000001}]
["ED_MDU541_01168",null,null,"Weather Corrected MD 10% POE","MVA","Non-Coincident",{"$f":"'[2]5.4 MD & utilisation-Spatial'!G805+'[3]5.4 MD & utilisation-Spatial'!G1179","v":56.321894039999997}]
["ED_MDU541_01169",null,null,null,null,"Coincident",{"$f":"'[2]5.4 MD & utilisation-Spatial'!G806+'[3]5.4 MD & utilisation-Spatial'!G1180","v":56.24186074}]
["ED_MDU541_01170",null,null,"Weather Corrected MD 50% POE","MW","Non-Coincident",{"$f":"'[2]5.4 MD & utilisation-Spatial'!G807+'[3]5.4 MD & utilisation-Spatial'!G1181","v":52.203105800000003}]
["ED_MDU541_01171",null,null,null,null,"Coincident",{"$f":"'[2]5.4 MD & utilisation-Spatial'!G808+'[3]5.4 MD & utilisation-Spatial'!G1182","v":52.163714759999998}]
["ED_MDU541_01172",null,null,"Weather Corrected MD 50% POE","MVA","Non-Coincident",{"$f":"'[2]5.4 MD & utilisation-Spatial'!G809+'[3]5.4 MD & utilisation-Spatial'!G1183","v":54.762514039999999}]
["ED_MDU541_01173",null,null,null,null,"Coincident",{"$f":"'[2]5.4 MD & utilisation-Spatial'!G810+'[3]5.4 MD & utilisation-Spatial'!G1184","v":54.728741409999998}]
["ED_MDU541_01174",null,"City East","Substation Rating","MVA","Non-Coincident",{"$f":"'[2]5.4 MD & utilisation-Spatial'!G811+'[3]5.4 MD & utilisation-Spatial'!G1185","v":112}]
["ED_MDU541_01175",null,null,null,null,"Coincident",{"$f":"'[2]5.4 MD & utilisation-Spatial'!G812+'[3]5.4 MD & utilisation-Spatial'!G1186","v":112}]
["ED_MDU541_01176",null,null,"Raw Adjusted MD","MW","Non-Coincident",{"$f":"'[2]5.4 MD & utilisation-Spatial'!G813+'[3]5.4 MD & utilisation-Spatial'!G1187","v":67.688583829999999}]
["ED_MDU541_01177",null,null,null,null,"Coincident",{"$f":"'[2]5.4 MD & utilisation-Spatial'!G814+'[3]5.4 MD & utilisation-Spatial'!G1188","v":66.719239999999999}]
["ED_MDU541_01178",null,null,"Raw Adjusted MD","MVA","Non-Coincident",{"$f":"'[2]5.4 MD & utilisation-Spatial'!G815+'[3]5.4 MD & utilisation-Spatial'!G1189","v":70.319999999999993}]
["ED_MDU541_01179",null,null,null,null,"Coincident",{"$f":"'[2]5.4 MD & utilisation-Spatial'!G816+'[3]5.4 MD & utilisation-Spatial'!G1190","v":70}]
["ED_MDU541_01180",null,null,"Date MD occurred",null,"Non-Coincident",{"$f":"'[2]5.4 MD & utilisation-Spatial'!G817+'[3]5.4 MD & utilisation-Spatial'!G1191","v":"2014-08-05"}]
["ED_MDU541_01181",null,null,null,null,"Coincident",{"$f":"'[2]5.4 MD & utilisation-Spatial'!G818+'[3]5.4 MD & utilisation-Spatial'!G1192","v":"2014-07-09"}]
["ED_MDU541_01182",null,null,"Half hour time period MD occurred",null,"Non-Coincident",{"$f":"'[2]5.4 MD & utilisation-Spatial'!G819+'[3]5.4 MD & utilisation-Spatial'!G1193","v":"08:10:00"}]
["ED_MDU541_01183",null,null,null,null,"Coincident",{"$f":"'[2]5.4 MD & utilisation-Spatial'!G820+'[3]5.4 MD & utilisation-Spatial'!G1194","v":"18:00:00"}]
["ED_MDU541_01184",null,null,"Winter/Summer Peaking",null,"Non-Coincident",{"$f":"'[2]5.4 MD & utilisation-Spatial'!G821+'[3]5.4 MD & utilisation-Spatial'!G1195","v":{"$error":"#VALUE!"}}]
["ED_MDU541_01185",null,null,null,null,"Coincident",{"$f":"'[2]5.4 MD & utilisation-Spatial'!G822+'[3]5.4 MD & utilisation-Spatial'!G1196","v":{"$error":"#VALUE!"}}]
["ED_MDU541_01186",null,null,"Adjustments - Embedded generation","MW","Non-Coincident",{"$f":"'[2]5.4 MD & utilisation-Spatial'!G823+'[3]5.4 MD & utilisation-Spatial'!G1197","v":0}]
["ED_MDU541_01187",null,null,null,null,"Coincident",{"$f":"'[2]5.4 MD & utilisation-Spatial'!G824+'[3]5.4 MD & utilisation-Spatial'!G1198","v":0}]
["ED_MDU541_01188",null,null,"Weather Corrected MD 10% POE","MW","Non-Coincident",{"$f":"'[2]5.4 MD & utilisation-Spatial'!G825+'[3]5.4 MD & utilisation-Spatial'!G1199","v":69.323561119999994}]
["ED_MDU541_01189",null,null,null,null,"Coincident",{"$f":"'[2]5.4 MD & utilisation-Spatial'!G826+'[3]5.4 MD & utilisation-Spatial'!G1200","v":69.708604960000002}]
["ED_MDU541_01190",null,null,"Weather Corrected MD 10% POE","MVA","Non-Coincident",{"$f":"'[2]5.4 MD & utilisation-Spatial'!G827+'[3]5.4 MD & utilisation-Spatial'!G1201","v":72.01853758}]
["ED_MDU541_01191",null,null,null,null,"Coincident",{"$f":"'[2]5.4 MD & utilisation-Spatial'!G828+'[3]5.4 MD & utilisation-Spatial'!G1202","v":73.136359870000007}]
["ED_MDU541_01192",null,null,"Weather Corrected MD 50% POE","MW","Non-Coincident",{"$f":"'[2]5.4 MD & utilisation-Spatial'!G829+'[3]5.4 MD & utilisation-Spatial'!G1203","v":67.668667979999995}]
["ED_MDU541_01193",null,null,null,null,"Coincident",{"$f":"'[2]5.4 MD & utilisation-Spatial'!G830+'[3]5.4 MD & utilisation-Spatial'!G1204","v":67.833179139999999}]
["ED_MDU541_01194",null,null,"Weather Corrected MD 50% POE","MVA","Non-Coincident",{"$f":"'[2]5.4 MD & utilisation-Spatial'!G831+'[3]5.4 MD & utilisation-Spatial'!G1205","v":70.299309910000005}]
["ED_MDU541_01195",null,null,null,null,"Coincident",{"$f":"'[2]5.4 MD & utilisation-Spatial'!G832+'[3]5.4 MD & utilisation-Spatial'!G1206","v":71.168714449999996}]
["ED_MDU541_01196",null,"Civic","Substation Rating","MVA","Non-Coincident",{"$f":"'[2]5.4 MD & utilisation-Spatial'!G833+'[3]5.4 MD & utilisation-Spatial'!G1207","v":110}]
["ED_MDU541_01197",null,null,null,null,"Coincident",{"$f":"'[2]5.4 MD & utilisation-Spatial'!G834+'[3]5.4 MD & utilisation-Spatial'!G1208","v":110}]
["ED_MDU541_01198",null,null,"Raw Adjusted MD","MW","Non-Coincident",{"$f":"'[2]5.4 MD & utilisation-Spatial'!G835+'[3]5.4 MD & utilisation-Spatial'!G1209","v":46.503}]
["ED_MDU541_01199",null,null,null,null,"Coincident",{"$f":"'[2]5.4 MD & utilisation-Spatial'!G836+'[3]5.4 MD & utilisation-Spatial'!G1210","v":45.559709599999998}]
["ED_MDU541_01200",null,null,"Raw Adjusted MD","MVA","Non-Coincident",{"$f":"'[2]5.4 MD & utilisation-Spatial'!G837+'[3]5.4 MD & utilisation-Spatial'!G1211","v":51.67}]
["ED_MDU541_01201",null,null,null,null,"Coincident",{"$f":"'[2]5.4 MD & utilisation-Spatial'!G838+'[3]5.4 MD & utilisation-Spatial'!G1212","v":47.8}]
["ED_MDU541_01202",null,null,"Date MD occurred",null,"Non-Coincident",{"$f":"'[2]5.4 MD & utilisation-Spatial'!G839+'[3]5.4 MD & utilisation-Spatial'!G1213","v":"2015-02-17"}]
["ED_MDU541_01203",null,null,null,null,"Coincident",{"$f":"'[2]5.4 MD & utilisation-Spatial'!G840+'[3]5.4 MD & utilisation-Spatial'!G1214","v":"2014-07-09"}]
["ED_MDU541_01204",null,null,"Half hour time period MD occurred",null,"Non-Coincident",{"$f":"'[2]5.4 MD & utilisation-Spatial'!G841+'[3]5.4 MD & utilisation-Spatial'!G1215","v":"15:45:00"}]
["ED_MDU541_01205",null,null,null,null,"Coincident",{"$f":"'[2]5.4 MD & utilisation-Spatial'!G842+'[3]5.4 MD & utilisation-Spatial'!G1216","v":"18:00:00"}]
["ED_MDU541_01206",null,null,"Winter/Summer Peaking",null,"Non-Coincident",{"$f":"'[2]5.4 MD & utilisation-Spatial'!G843+'[3]5.4 MD & utilisation-Spatial'!G1217","v":{"$error":"#VALUE!"}}]
["ED_MDU541_01207",null,null,null,null,"Coincident",{"$f":"'[2]5.4 MD & utilisation-Spatial'!G844+'[3]5.4 MD & utilisation-Spatial'!G1218","v":{"$error":"#VALUE!"}}]
["ED_MDU541_01208",null,null,"Adjustments - Embedded generation","MW","Non-Coincident",{"$f":"'[2]5.4 MD & utilisation-Spatial'!G845+'[3]5.4 MD & utilisation-Spatial'!G1219","v":0}]
["ED_MDU541_01209",null,null,null,null,"Coincident",{"$f":"'[2]5.4 MD & utilisation-Spatial'!G846+'[3]5.4 MD & utilisation-Spatial'!G1220","v":0}]
["ED_MDU541_01210",null,null,"Weather Corrected MD 10% POE","MW","Non-Coincident",{"$f":"'[2]5.4 MD & utilisation-Spatial'!G847+'[3]5.4 MD & utilisation-Spatial'!G1221","v":51.997743139999997}]
["ED_MDU541_01211",null,null,null,null,"Coincident",{"$f":"'[2]5.4 MD & utilisation-Spatial'!G848+'[3]5.4 MD & utilisation-Spatial'!G1222","v":47.601018809999999}]
["ED_MDU541_01212",null,null,"Weather Corrected MD 10% POE","MVA","Non-Coincident",{"$f":"'[2]5.4 MD & utilisation-Spatial'!G849+'[3]5.4 MD & utilisation-Spatial'!G1223","v":57.775270159999998}]
["ED_MDU541_01213",null,null,null,null,"Coincident",{"$f":"'[2]5.4 MD & utilisation-Spatial'!G850+'[3]5.4 MD & utilisation-Spatial'!G1224","v":49.941685739999997}]
["ED_MDU541_01214",null,null,"Weather Corrected MD 50% POE","MW","Non-Coincident",{"$f":"'[2]5.4 MD & utilisation-Spatial'!G851+'[3]5.4 MD & utilisation-Spatial'!G1225","v":48.856528279999999}]
["ED_MDU541_01215",null,null,null,null,"Coincident",{"$f":"'[2]5.4 MD & utilisation-Spatial'!G852+'[3]5.4 MD & utilisation-Spatial'!G1226","v":46.3203709}]
["ED_MDU541_01216",null,null,"Weather Corrected MD 50% POE","MVA","Non-Coincident",{"$f":"'[2]5.4 MD & utilisation-Spatial'!G853+'[3]5.4 MD & utilisation-Spatial'!G1227","v":54.285031429999997}]
["ED_MDU541_01217",null,null,null,null,"Coincident",{"$f":"'[2]5.4 MD & utilisation-Spatial'!G854+'[3]5.4 MD & utilisation-Spatial'!G1228","v":48.598065009999999}]
["ED_MDU541_01218",null,"East Lake","Substation Rating","MVA","Non-Coincident",{"$f":"'[2]5.4 MD & utilisation-Spatial'!G855+'[3]5.4 MD & utilisation-Spatial'!G1229","v":55}]
["ED_MDU541_01219",null,null,null,null,"Coincident",{"$f":"'[2]5.4 MD & utilisation-Spatial'!G856+'[3]5.4 MD & utilisation-Spatial'!G1230","v":55}]
["ED_MDU541_01220",null,null,"Raw Adjusted MD","MW","Non-Coincident",{"$f":"'[2]5.4 MD & utilisation-Spatial'!G857+'[3]5.4 MD & utilisation-Spatial'!G1231","v":17.84}]
["ED_MDU541_01221",null,null,null,null,"Coincident",{"$f":"'[2]5.4 MD & utilisation-Spatial'!G858+'[3]5.4 MD & utilisation-Spatial'!G1232","v":6.9988868179999999}]
["ED_MDU541_01222",null,null,"Raw Adjusted MD","MVA","Non-Coincident",{"$f":"'[2]5.4 MD & utilisation-Spatial'!G859+'[3]5.4 MD & utilisation-Spatial'!G1233","v":18.456}]
["ED_MDU541_01223",null,null,null,null,"Coincident",{"$f":"'[2]5.4 MD & utilisation-Spatial'!G860+'[3]5.4 MD & utilisation-Spatial'!G1234","v":7.1218871229999996}]
["ED_MDU541_01224",null,null,"Date MD occurred",null,"Non-Coincident",{"$f":"'[2]5.4 MD & utilisation-Spatial'!G861+'[3]5.4 MD & utilisation-Spatial'!G1235","v":"2015-06-22"}]
["ED_MDU541_01225",null,null,null,null,"Coincident",{"$f":"'[2]5.4 MD & utilisation-Spatial'!G862+'[3]5.4 MD & utilisation-Spatial'!G1236","v":"2014-07-09"}]
["ED_MDU541_01226",null,null,"Half hour time period MD occurred",null,"Non-Coincident",{"$f":"'[2]5.4 MD & utilisation-Spatial'!G863+'[3]5.4 MD & utilisation-Spatial'!G1237","v":"09:30:00"}]
["ED_MDU541_01227",null,null,null,null,"Coincident",{"$f":"'[2]5.4 MD & utilisation-Spatial'!G864+'[3]5.4 MD & utilisation-Spatial'!G1238","v":"18:00:00"}]
["ED_MDU541_01228",null,null,"Winter/Summer Peaking",null,"Non-Coincident",{"$f":"'[2]5.4 MD & utilisation-Spatial'!G865+'[3]5.4 MD & utilisation-Spatial'!G1239","v":{"$error":"#VALUE!"}}]
["ED_MDU541_01229",null,null,null,null,"Coincident",{"$f":"'[2]5.4 MD & utilisation-Spatial'!G866+'[3]5.4 MD & utilisation-Spatial'!G1240","v":{"$error":"#VALUE!"}}]
["ED_MDU541_01230",null,null,"Adjustments - Embedded generation","MW","Non-Coincident",{"$f":"'[2]5.4 MD & utilisation-Spatial'!G867+'[3]5.4 MD & utilisation-Spatial'!G1241","v":0}]
["ED_MDU541_01231",null,null,null,null,"Coincident",{"$f":"'[2]5.4 MD & utilisation-Spatial'!G868+'[3]5.4 MD & utilisation-Spatial'!G1242","v":0}]
["ED_MDU541_01232",null,null,"Weather Corrected MD 10% POE","MW","Non-Coincident",{"$f":"'[2]5.4 MD & utilisation-Spatial'!G869+'[3]5.4 MD & utilisation-Spatial'!G1243","v":18.908840659999999}]
["ED_MDU541_01233",null,null,null,null,"Coincident",{"$f":"'[2]5.4 MD & utilisation-Spatial'!G870+'[3]5.4 MD & utilisation-Spatial'!G1244","v":7.3124729290000001}]
["ED_MDU541_01234",null,null,"Weather Corrected MD 10% POE","MVA","Non-Coincident",{"$f":"'[2]5.4 MD & utilisation-Spatial'!G871+'[3]5.4 MD & utilisation-Spatial'!G1245","v":19.562165010000001}]
["ED_MDU541_01235",null,null,null,null,"Coincident",{"$f":"'[2]5.4 MD & utilisation-Spatial'!G872+'[3]5.4 MD & utilisation-Spatial'!G1246","v":7.4409842800000003}]
["ED_MDU541_01236",null,null,"Weather Corrected MD 50% POE","MW","Non-Coincident",{"$f":"'[2]5.4 MD & utilisation-Spatial'!G873+'[3]5.4 MD & utilisation-Spatial'!G1247","v":18.040863600000002}]
["ED_MDU541_01237",null,null,null,null,"Coincident",{"$f":"'[2]5.4 MD & utilisation-Spatial'!G874+'[3]5.4 MD & utilisation-Spatial'!G1248","v":7.1157396779999997}]
["ED_MDU541_01238",null,null,"Weather Corrected MD 50% POE","MVA","Non-Coincident",{"$f":"'[2]5.4 MD & utilisation-Spatial'!G875+'[3]5.4 MD & utilisation-Spatial'!G1249","v":18.664198240000001}]
["ED_MDU541_01239",null,null,null,null,"Coincident",{"$f":"'[2]5.4 MD & utilisation-Spatial'!G876+'[3]5.4 MD & utilisation-Spatial'!G1250","v":7.2407935849999996}]
["ED_MDU541_01240",null,"Fyshwick","Substation Rating","MVA","Non-Coincident",{"$f":"'[2]5.4 MD & utilisation-Spatial'!G877+'[3]5.4 MD & utilisation-Spatial'!G1251","v":28}]
["ED_MDU541_01241",null,null,null,null,"Coincident",{"$f":"'[2]5.4 MD & utilisation-Spatial'!G878+'[3]5.4 MD & utilisation-Spatial'!G1252","v":28}]
["ED_MDU541_01242",null,null,"Raw Adjusted MD","MW","Non-Coincident",{"$f":"'[2]5.4 MD & utilisation-Spatial'!G879+'[3]5.4 MD & utilisation-Spatial'!G1253","v":24.596625}]
["ED_MDU541_01243",null,null,null,null,"Coincident",{"$f":"'[2]5.4 MD & utilisation-Spatial'!G880+'[3]5.4 MD & utilisation-Spatial'!G1254","v":12.248446850000001}]
["ED_MDU541_01244",null,null,"Raw Adjusted MD","MVA","Non-Coincident",{"$f":"'[2]5.4 MD & utilisation-Spatial'!G881+'[3]5.4 MD & utilisation-Spatial'!G1255","v":26.75}]
["ED_MDU541_01245",null,null,null,null,"Coincident",{"$f":"'[2]5.4 MD & utilisation-Spatial'!G882+'[3]5.4 MD & utilisation-Spatial'!G1256","v":12.64}]
["ED_MDU541_01246",null,null,"Date MD occurred",null,"Non-Coincident",{"$f":"'[2]5.4 MD & utilisation-Spatial'!G883+'[3]5.4 MD & utilisation-Spatial'!G1257","v":"2014-12-16"}]
["ED_MDU541_01247",null,null,null,null,"Coincident",{"$f":"'[2]5.4 MD & utilisation-Spatial'!G884+'[3]5.4 MD & utilisation-Spatial'!G1258","v":"2014-07-09"}]
["ED_MDU541_01248",null,null,"Half hour time period MD occurred",null,"Non-Coincident",{"$f":"'[2]5.4 MD & utilisation-Spatial'!G885+'[3]5.4 MD & utilisation-Spatial'!G1259","v":"14:05:00"}]
["ED_MDU541_01249",null,null,null,null,"Coincident",{"$f":"'[2]5.4 MD & utilisation-Spatial'!G886+'[3]5.4 MD & utilisation-Spatial'!G1260","v":"18:00:00"}]
["ED_MDU541_01250",null,null,"Winter/Summer Peaking",null,"Non-Coincident",{"$f":"'[2]5.4 MD & utilisation-Spatial'!G887+'[3]5.4 MD & utilisation-Spatial'!G1261","v":{"$error":"#VALUE!"}}]
["ED_MDU541_01251",null,null,null,null,"Coincident",{"$f":"'[2]5.4 MD & utilisation-Spatial'!G888+'[3]5.4 MD & utilisation-Spatial'!G1262","v":{"$error":"#VALUE!"}}]
["ED_MDU541_01252",null,null,"Adjustments - Embedded generation","MW","Non-Coincident",{"$f":"'[2]5.4 MD & utilisation-Spatial'!G889+'[3]5.4 MD & utilisation-Spatial'!G1263","v":0}]
["ED_MDU541_01253",null,null,null,null,"Coincident",{"$f":"'[2]5.4 MD & utilisation-Spatial'!G890+'[3]5.4 MD & utilisation-Spatial'!G1264","v":0}]
["ED_MDU541_01254",null,null,"Weather Corrected MD 10% POE","MW","Non-Coincident",{"$f":"'[2]5.4 MD & utilisation-Spatial'!G891+'[3]5.4 MD & utilisation-Spatial'!G1265","v":22.893764520000001}]
["ED_MDU541_01255",null,null,null,null,"Coincident",{"$f":"'[2]5.4 MD & utilisation-Spatial'!G892+'[3]5.4 MD & utilisation-Spatial'!G1266","v":12.797240240000001}]
["ED_MDU541_01256",null,null,"Weather Corrected MD 10% POE","MVA","Non-Coincident",{"$f":"'[2]5.4 MD & utilisation-Spatial'!G893+'[3]5.4 MD & utilisation-Spatial'!G1267","v":24.898058200000001}]
["ED_MDU541_01257",null,null,null,null,"Coincident",{"$f":"'[2]5.4 MD & utilisation-Spatial'!G894+'[3]5.4 MD & utilisation-Spatial'!G1268","v":13.20633698}]
["ED_MDU541_01258",null,null,"Weather Corrected MD 50% POE","MW","Non-Coincident",{"$f":"'[2]5.4 MD & utilisation-Spatial'!G895+'[3]5.4 MD & utilisation-Spatial'!G1269","v":21.291256489999999}]
["ED_MDU541_01259",null,null,null,null,"Coincident",{"$f":"'[2]5.4 MD & utilisation-Spatial'!G896+'[3]5.4 MD & utilisation-Spatial'!G1270","v":12.45294595}]
["ED_MDU541_01260",null,null,"Weather Corrected MD 50% POE","MVA","Non-Coincident",{"$f":"'[2]5.4 MD & utilisation-Spatial'!G897+'[3]5.4 MD & utilisation-Spatial'!G1271","v":23.15525448}]
["ED_MDU541_01261",null,null,null,null,"Coincident",{"$f":"'[2]5.4 MD & utilisation-Spatial'!G898+'[3]5.4 MD & utilisation-Spatial'!G1272","v":12.85103644}]
["ED_MDU541_01262",null,"Gilmore","Substation Rating","MVA","Non-Coincident",{"$f":"'[2]5.4 MD & utilisation-Spatial'!G899+'[3]5.4 MD & utilisation-Spatial'!G1273","v":45}]
["ED_MDU541_01263",null,null,null,null,"Coincident",{"$f":"'[2]5.4 MD & utilisation-Spatial'!G900+'[3]5.4 MD & utilisation-Spatial'!G1274","v":45}]
["ED_MDU541_01264",null,null,"Raw Adjusted MD","MW","Non-Coincident",{"$f":"'[2]5.4 MD & utilisation-Spatial'!G901+'[3]5.4 MD & utilisation-Spatial'!G1275","v":28.44839846}]
["ED_MDU541_01265",null,null,null,null,"Coincident",{"$f":"'[2]5.4 MD & utilisation-Spatial'!G902+'[3]5.4 MD & utilisation-Spatial'!G1276","v":25.09596556}]
["ED_MDU541_01266",null,null,"Raw Adjusted MD","MVA","Non-Coincident",{"$f":"'[2]5.4 MD & utilisation-Spatial'!G903+'[3]5.4 MD & utilisation-Spatial'!G1277","v":29.48}]
["ED_MDU541_01267",null,null,null,null,"Coincident",{"$f":"'[2]5.4 MD & utilisation-Spatial'!G904+'[3]5.4 MD & utilisation-Spatial'!G1278","v":26.33}]
["ED_MDU541_01268",null,null,"Date MD occurred",null,"Non-Coincident",{"$f":"'[2]5.4 MD & utilisation-Spatial'!G905+'[3]5.4 MD & utilisation-Spatial'!G1279","v":"2014-08-05"}]
["ED_MDU541_01269",null,null,null,null,"Coincident",{"$f":"'[2]5.4 MD & utilisation-Spatial'!G906+'[3]5.4 MD & utilisation-Spatial'!G1280","v":"2014-07-09"}]
["ED_MDU541_01270",null,null,"Half hour time period MD occurred",null,"Non-Coincident",{"$f":"'[2]5.4 MD & utilisation-Spatial'!G907+'[3]5.4 MD & utilisation-Spatial'!G1281","v":"07:35:00"}]
["ED_MDU541_01271",null,null,null,null,"Coincident",{"$f":"'[2]5.4 MD & utilisation-Spatial'!G908+'[3]5.4 MD & utilisation-Spatial'!G1282","v":"18:00:00"}]
["ED_MDU541_01272",null,null,"Winter/Summer Peaking",null,"Non-Coincident",{"$f":"'[2]5.4 MD & utilisation-Spatial'!G909+'[3]5.4 MD & utilisation-Spatial'!G1283","v":{"$error":"#VALUE!"}}]
["ED_MDU541_01273",null,null,null,null,"Coincident",{"$f":"'[2]5.4 MD & utilisation-Spatial'!G910+'[3]5.4 MD & utilisation-Spatial'!G1284","v":{"$error":"#VALUE!"}}]
["ED_MDU541_01274",null,null,"Adjustments - Embedded generation","MW","Non-Coincident",{"$f":"'[2]5.4 MD & utilisation-Spatial'!G911+'[3]5.4 MD & utilisation-Spatial'!G1285","v":0}]
["ED_MDU541_01275",null,null,null,null,"Coincident",{"$f":"'[2]5.4 MD & utilisation-Spatial'!G912+'[3]5.4 MD & utilisation-Spatial'!G1286","v":0}]
["ED_MDU541_01276",null,null,"Weather Corrected MD 10% POE","MW","Non-Coincident",{"$f":"'[2]5.4 MD & utilisation-Spatial'!G913+'[3]5.4 MD & utilisation-Spatial'!G1287","v":27.915469890000001}]
["ED_MDU541_01277",null,null,null,null,"Coincident",{"$f":"'[2]5.4 MD & utilisation-Spatial'!G914+'[3]5.4 MD & utilisation-Spatial'!G1288","v":26.22039384}]
["ED_MDU541_01278",null,null,"Weather Corrected MD 10% POE","MVA","Non-Coincident",{"$f":"'[2]5.4 MD & utilisation-Spatial'!G915+'[3]5.4 MD & utilisation-Spatial'!G1289","v":28.927746259999999}]
["ED_MDU541_01279",null,null,null,null,"Coincident",{"$f":"'[2]5.4 MD & utilisation-Spatial'!G916+'[3]5.4 MD & utilisation-Spatial'!G1290","v":27.509719359999998}]
["ED_MDU541_01280",null,null,"Weather Corrected MD 50% POE","MW","Non-Coincident",{"$f":"'[2]5.4 MD & utilisation-Spatial'!G917+'[3]5.4 MD & utilisation-Spatial'!G1291","v":27.071957739999998}]
["ED_MDU541_01281",null,null,null,null,"Coincident",{"$f":"'[2]5.4 MD & utilisation-Spatial'!G918+'[3]5.4 MD & utilisation-Spatial'!G1292","v":25.51496581}]
["ED_MDU541_01282",null,null,"Weather Corrected MD 50% POE","MVA","Non-Coincident",{"$f":"'[2]5.4 MD & utilisation-Spatial'!G919+'[3]5.4 MD & utilisation-Spatial'!G1293","v":28.05364651}]
["ED_MDU541_01283",null,null,null,null,"Coincident",{"$f":"'[2]5.4 MD & utilisation-Spatial'!G920+'[3]5.4 MD & utilisation-Spatial'!G1294","v":26.769603589999999}]
["ED_MDU541_01284",null,"GoldCreek","Substation Rating","MVA","Non-Coincident",{"$f":"'[2]5.4 MD & utilisation-Spatial'!G921+'[3]5.4 MD & utilisation-Spatial'!G1295","v":57}]
["ED_MDU541_01285",null,null,null,null,"Coincident",{"$f":"'[2]5.4 MD & utilisation-Spatial'!G922+'[3]5.4 MD & utilisation-Spatial'!G1296","v":57}]
["ED_MDU541_01286",null,null,"Raw Adjusted MD","MW","Non-Coincident",{"$f":"'[2]5.4 MD & utilisation-Spatial'!G923+'[3]5.4 MD & utilisation-Spatial'!G1297","v":57.38400541}]
["ED_MDU541_01287",null,null,null,null,"Coincident",{"$f":"'[2]5.4 MD & utilisation-Spatial'!G924+'[3]5.4 MD & utilisation-Spatial'!G1298","v":50.277712999999999}]
["ED_MDU541_01288",null,null,"Raw Adjusted MD","MVA","Non-Coincident",{"$f":"'[2]5.4 MD & utilisation-Spatial'!G925+'[3]5.4 MD & utilisation-Spatial'!G1299","v":58.17}]
["ED_MDU541_01289",null,null,null,null,"Coincident",{"$f":"'[2]5.4 MD & utilisation-Spatial'!G926+'[3]5.4 MD & utilisation-Spatial'!G1300","v":52.75}]
["ED_MDU541_01290",null,null,"Date MD occurred",null,"Non-Coincident",{"$f":"'[2]5.4 MD & utilisation-Spatial'!G927+'[3]5.4 MD & utilisation-Spatial'!G1301","v":"2015-06-30"}]
["ED_MDU541_01291",null,null,null,null,"Coincident",{"$f":"'[2]5.4 MD & utilisation-Spatial'!G928+'[3]5.4 MD & utilisation-Spatial'!G1302","v":"2014-07-09"}]
["ED_MDU541_01292",null,null,"Half hour time period MD occurred",null,"Non-Coincident",{"$f":"'[2]5.4 MD & utilisation-Spatial'!G929+'[3]5.4 MD & utilisation-Spatial'!G1303","v":"19:20:00"}]
["ED_MDU541_01293",null,null,null,null,"Coincident",{"$f":"'[2]5.4 MD & utilisation-Spatial'!G930+'[3]5.4 MD & utilisation-Spatial'!G1304","v":"18:00:00"}]
["ED_MDU541_01294",null,null,"Winter/Summer Peaking",null,"Non-Coincident",{"$f":"'[2]5.4 MD & utilisation-Spatial'!G931+'[3]5.4 MD & utilisation-Spatial'!G1305","v":{"$error":"#VALUE!"}}]
["ED_MDU541_01295",null,null,null,null,"Coincident",{"$f":"'[2]5.4 MD & utilisation-Spatial'!G932+'[3]5.4 MD & utilisation-Spatial'!G1306","v":{"$error":"#VALUE!"}}]
["ED_MDU541_01296",null,null,"Adjustments - Embedded generation","MW","Non-Coincident",{"$f":"'[2]5.4 MD & utilisation-Spatial'!G933+'[3]5.4 MD & utilisation-Spatial'!G1307","v":0}]
["ED_MDU541_01297",null,null,null,null,"Coincident",{"$f":"'[2]5.4 MD & utilisation-Spatial'!G934+'[3]5.4 MD & utilisation-Spatial'!G1308","v":0}]
["ED_MDU541_01298",null,null,"Weather Corrected MD 10% POE","MW","Non-Coincident",{"$f":"'[2]5.4 MD & utilisation-Spatial'!G935+'[3]5.4 MD & utilisation-Spatial'!G1309","v":59.786003270000002}]
["ED_MDU541_01299",null,null,null,null,"Coincident",{"$f":"'[2]5.4 MD & utilisation-Spatial'!G936+'[3]5.4 MD & utilisation-Spatial'!G1310","v":52.530413019999997}]
["ED_MDU541_01300",null,null,"Weather Corrected MD 10% POE","MVA","Non-Coincident",{"$f":"'[2]5.4 MD & utilisation-Spatial'!G937+'[3]5.4 MD & utilisation-Spatial'!G1311","v":60.60489828}]
["ED_MDU541_01301",null,null,null,null,"Coincident",{"$f":"'[2]5.4 MD & utilisation-Spatial'!G938+'[3]5.4 MD & utilisation-Spatial'!G1312","v":55.113471189999999}]
["ED_MDU541_01302",null,null,"Weather Corrected MD 50% POE","MW","Non-Coincident",{"$f":"'[2]5.4 MD & utilisation-Spatial'!G939+'[3]5.4 MD & utilisation-Spatial'!G1313","v":57.235542199999998}]
["ED_MDU541_01303",null,null,null,null,"Coincident",{"$f":"'[2]5.4 MD & utilisation-Spatial'!G940+'[3]5.4 MD & utilisation-Spatial'!G1314","v":51.117145710000003}]
["ED_MDU541_01304",null,null,"Weather Corrected MD 50% POE","MVA","Non-Coincident",{"$f":"'[2]5.4 MD & utilisation-Spatial'!G941+'[3]5.4 MD & utilisation-Spatial'!G1315","v":58.019503270000001}]
["ED_MDU541_01305",null,null,null,null,"Coincident",{"$f":"'[2]5.4 MD & utilisation-Spatial'!G942+'[3]5.4 MD & utilisation-Spatial'!G1316","v":53.63070982}]
["ED_MDU541_01306",null,"Latham","Substation Rating","MVA","Non-Coincident",{"$f":"'[2]5.4 MD & utilisation-Spatial'!G943+'[3]5.4 MD & utilisation-Spatial'!G1317","v":100}]
["ED_MDU541_01307",null,null,null,null,"Coincident",{"$f":"'[2]5.4 MD & utilisation-Spatial'!G944+'[3]5.4 MD & utilisation-Spatial'!G1318","v":100}]
["ED_MDU541_01308",null,null,"Raw Adjusted MD","MW","Non-Coincident",{"$f":"'[2]5.4 MD & utilisation-Spatial'!G945+'[3]5.4 MD & utilisation-Spatial'!G1319","v":65.722141100000002}]
["ED_MDU541_01309",null,null,null,null,"Coincident",{"$f":"'[2]5.4 MD & utilisation-Spatial'!G946+'[3]5.4 MD & utilisation-Spatial'!G1320","v":61.229199680000001}]
["ED_MDU541_01310",null,null,"Raw Adjusted MD","MVA","Non-Coincident",{"$f":"'[2]5.4 MD & utilisation-Spatial'!G947+'[3]5.4 MD & utilisation-Spatial'!G1321","v":66.86}]
["ED_MDU541_01311",null,null,null,null,"Coincident",{"$f":"'[2]5.4 MD & utilisation-Spatial'!G948+'[3]5.4 MD & utilisation-Spatial'!G1322","v":64.239999999999995}]
["ED_MDU541_01312",null,null,"Date MD occurred",null,"Non-Coincident",{"$f":"'[2]5.4 MD & utilisation-Spatial'!G949+'[3]5.4 MD & utilisation-Spatial'!G1323","v":"2015-06-30"}]
["ED_MDU541_01313",null,null,null,null,"Coincident",{"$f":"'[2]5.4 MD & utilisation-Spatial'!G950+'[3]5.4 MD & utilisation-Spatial'!G1324","v":"2014-07-09"}]
["ED_MDU541_01314",null,null,"Half hour time period MD occurred",null,"Non-Coincident",{"$f":"'[2]5.4 MD & utilisation-Spatial'!G951+'[3]5.4 MD & utilisation-Spatial'!G1325","v":"18:45:00"}]
["ED_MDU541_01315",null,null,null,null,"Coincident",{"$f":"'[2]5.4 MD & utilisation-Spatial'!G952+'[3]5.4 MD & utilisation-Spatial'!G1326","v":"18:00:00"}]
["ED_MDU541_01316",null,null,"Winter/Summer Peaking",null,"Non-Coincident",{"$f":"'[2]5.4 MD & utilisation-Spatial'!G953+'[3]5.4 MD & utilisation-Spatial'!G1327","v":{"$error":"#VALUE!"}}]
["ED_MDU541_01317",null,null,null,null,"Coincident",{"$f":"'[2]5.4 MD & utilisation-Spatial'!G954+'[3]5.4 MD & utilisation-Spatial'!G1328","v":{"$error":"#VALUE!"}}]
["ED_MDU541_01318",null,null,"Adjustments - Embedded generation","MW","Non-Coincident",{"$f":"'[2]5.4 MD & utilisation-Spatial'!G955+'[3]5.4 MD & utilisation-Spatial'!G1329","v":0}]
["ED_MDU541_01319",null,null,null,null,"Coincident",{"$f":"'[2]5.4 MD & utilisation-Spatial'!G956+'[3]5.4 MD & utilisation-Spatial'!G1330","v":0}]
["ED_MDU541_01320",null,null,"Weather Corrected MD 10% POE","MW","Non-Coincident",{"$f":"'[2]5.4 MD & utilisation-Spatial'!G957+'[3]5.4 MD & utilisation-Spatial'!G1331","v":69.414480249999997}]
["ED_MDU541_01321",null,null,null,null,"Coincident",{"$f":"'[2]5.4 MD & utilisation-Spatial'!G958+'[3]5.4 MD & utilisation-Spatial'!G1332","v":63.972582610000003}]
["ED_MDU541_01322",null,null,"Weather Corrected MD 10% POE","MVA","Non-Coincident",{"$f":"'[2]5.4 MD & utilisation-Spatial'!G959+'[3]5.4 MD & utilisation-Spatial'!G1333","v":70.616265260000006}]
["ED_MDU541_01323",null,null,null,null,"Coincident",{"$f":"'[2]5.4 MD & utilisation-Spatial'!G960+'[3]5.4 MD & utilisation-Spatial'!G1334","v":67.118282260000001}]
["ED_MDU541_01324",null,null,"Weather Corrected MD 50% POE","MW","Non-Coincident",{"$f":"'[2]5.4 MD & utilisation-Spatial'!G961+'[3]5.4 MD & utilisation-Spatial'!G1335","v":66.822712030000005}]
["ED_MDU541_01325",null,null,null,null,"Coincident",{"$f":"'[2]5.4 MD & utilisation-Spatial'!G962+'[3]5.4 MD & utilisation-Spatial'!G1336","v":62.251477540000003}]
["ED_MDU541_01326",null,null,"Weather Corrected MD 50% POE","MVA","Non-Coincident",{"$f":"'[2]5.4 MD & utilisation-Spatial'!G963+'[3]5.4 MD & utilisation-Spatial'!G1337","v":67.979625310000003}]
["ED_MDU541_01327",null,null,null,null,"Coincident",{"$f":"'[2]5.4 MD & utilisation-Spatial'!G964+'[3]5.4 MD & utilisation-Spatial'!G1338","v":65.312545950000001}]
["ED_MDU541_01328",null,"Telopea Park","Substation Rating","MVA","Non-Coincident",{"$f":"'[2]5.4 MD & utilisation-Spatial'!G965+'[3]5.4 MD & utilisation-Spatial'!G1339","v":100}]
["ED_MDU541_01329",null,null,null,null,"Coincident",{"$f":"'[2]5.4 MD & utilisation-Spatial'!G966+'[3]5.4 MD & utilisation-Spatial'!G1340","v":100}]
["ED_MDU541_01330",null,null,"Raw Adjusted MD","MW","Non-Coincident",{"$f":"'[2]5.4 MD & utilisation-Spatial'!G967+'[3]5.4 MD & utilisation-Spatial'!G1341","v":92.534702429999996}]
["ED_MDU541_01331",null,null,null,null,"Coincident",{"$f":"'[2]5.4 MD & utilisation-Spatial'!G968+'[3]5.4 MD & utilisation-Spatial'!G1342","v":81.931226719999998}]
["ED_MDU541_01332",null,null,"Raw Adjusted MD","MVA","Non-Coincident",{"$f":"'[2]5.4 MD & utilisation-Spatial'!G969+'[3]5.4 MD & utilisation-Spatial'!G1343","v":93.93}]
["ED_MDU541_01333",null,null,null,null,"Coincident",{"$f":"'[2]5.4 MD & utilisation-Spatial'!G970+'[3]5.4 MD & utilisation-Spatial'!G1344","v":85.96}]
["ED_MDU541_01334",null,null,"Date MD occurred",null,"Non-Coincident",{"$f":"'[2]5.4 MD & utilisation-Spatial'!G971+'[3]5.4 MD & utilisation-Spatial'!G1345","v":"2014-07-28"}]
["ED_MDU541_01335",null,null,null,null,"Coincident",{"$f":"'[2]5.4 MD & utilisation-Spatial'!G972+'[3]5.4 MD & utilisation-Spatial'!G1346","v":"2014-07-09"}]
["ED_MDU541_01336",null,null,"Half hour time period MD occurred",null,"Non-Coincident",{"$f":"'[2]5.4 MD & utilisation-Spatial'!G973+'[3]5.4 MD & utilisation-Spatial'!G1347","v":"08:30:00"}]
["ED_MDU541_01337",null,null,null,null,"Coincident",{"$f":"'[2]5.4 MD & utilisation-Spatial'!G974+'[3]5.4 MD & utilisation-Spatial'!G1348","v":"18:00:00"}]
["ED_MDU541_01338",null,null,"Winter/Summer Peaking",null,"Non-Coincident",{"$f":"'[2]5.4 MD & utilisation-Spatial'!G975+'[3]5.4 MD & utilisation-Spatial'!G1349","v":{"$error":"#VALUE!"}}]
["ED_MDU541_01339",null,null,null,null,"Coincident",{"$f":"'[2]5.4 MD & utilisation-Spatial'!G976+'[3]5.4 MD & utilisation-Spatial'!G1350","v":{"$error":"#VALUE!"}}]
["ED_MDU541_01340",null,null,"Adjustments - Embedded generation","MW","Non-Coincident",{"$f":"'[2]5.4 MD & utilisation-Spatial'!G977+'[3]5.4 MD & utilisation-Spatial'!G1351","v":0}]
["ED_MDU541_01341",null,null,null,null,"Coincident",{"$f":"'[2]5.4 MD & utilisation-Spatial'!G978+'[3]5.4 MD & utilisation-Spatial'!G1352","v":0}]
["ED_MDU541_01342",null,null,"Weather Corrected MD 10% POE","MW","Non-Coincident",{"$f":"'[2]5.4 MD & utilisation-Spatial'!G979+'[3]5.4 MD & utilisation-Spatial'!G1353","v":92.911642850000007}]
["ED_MDU541_01343",null,null,null,null,"Coincident",{"$f":"'[2]5.4 MD & utilisation-Spatial'!G980+'[3]5.4 MD & utilisation-Spatial'!G1354","v":85.602166890000007}]
["ED_MDU541_01344",null,null,"Weather Corrected MD 10% POE","MVA","Non-Coincident",{"$f":"'[2]5.4 MD & utilisation-Spatial'!G981+'[3]5.4 MD & utilisation-Spatial'!G1355","v":94.312624170000007}]
["ED_MDU541_01345",null,null,null,null,"Coincident",{"$f":"'[2]5.4 MD & utilisation-Spatial'!G982+'[3]5.4 MD & utilisation-Spatial'!G1356","v":89.811449920000001}]
["ED_MDU541_01346",null,null,"Weather Corrected MD 50% POE","MW","Non-Coincident",{"$f":"'[2]5.4 MD & utilisation-Spatial'!G983+'[3]5.4 MD & utilisation-Spatial'!G1357","v":90.246259550000005}]
["ED_MDU541_01347",null,null,null,null,"Coincident",{"$f":"'[2]5.4 MD & utilisation-Spatial'!G984+'[3]5.4 MD & utilisation-Spatial'!G1358","v":83.299143979999997}]
["ED_MDU541_01348",null,null,"Weather Corrected MD 50% POE","MVA","Non-Coincident",{"$f":"'[2]5.4 MD & utilisation-Spatial'!G985+'[3]5.4 MD & utilisation-Spatial'!G1359","v":91.607050509999993}]
["ED_MDU541_01349",null,null,null,null,"Coincident",{"$f":"'[2]5.4 MD & utilisation-Spatial'!G986+'[3]5.4 MD & utilisation-Spatial'!G1360","v":87.395181339999993}]
["ED_MDU541_01350",null,"Theodore","Substation Rating","MVA","Non-Coincident",{"$f":"'[2]5.4 MD & utilisation-Spatial'!G987+'[3]5.4 MD & utilisation-Spatial'!G1361","v":45}]
["ED_MDU541_01351",null,null,null,null,"Coincident",{"$f":"'[2]5.4 MD & utilisation-Spatial'!G988+'[3]5.4 MD & utilisation-Spatial'!G1362","v":45}]
["ED_MDU541_01352",null,null,"Raw Adjusted MD","MW","Non-Coincident",{"$f":"'[2]5.4 MD & utilisation-Spatial'!G989+'[3]5.4 MD & utilisation-Spatial'!G1363","v":27.242222699999999}]
["ED_MDU541_01353",null,null,null,null,"Coincident",{"$f":"'[2]5.4 MD & utilisation-Spatial'!G990+'[3]5.4 MD & utilisation-Spatial'!G1364","v":25.010183680000001}]
["ED_MDU541_01354",null,null,"Raw Adjusted MD","MVA","Non-Coincident",{"$f":"'[2]5.4 MD & utilisation-Spatial'!G991+'[3]5.4 MD & utilisation-Spatial'!G1365","v":28.1}]
["ED_MDU541_01355",null,null,null,null,"Coincident",{"$f":"'[2]5.4 MD & utilisation-Spatial'!G992+'[3]5.4 MD & utilisation-Spatial'!G1366","v":26.24}]
["ED_MDU541_01356",null,null,"Date MD occurred",null,"Non-Coincident",{"$f":"'[2]5.4 MD & utilisation-Spatial'!G993+'[3]5.4 MD & utilisation-Spatial'!G1367","v":"2014-07-02"}]
["ED_MDU541_01357",null,null,null,null,"Coincident",{"$f":"'[2]5.4 MD & utilisation-Spatial'!G994+'[3]5.4 MD & utilisation-Spatial'!G1368","v":"2014-07-09"}]
["ED_MDU541_01358",null,null,"Half hour time period MD occurred",null,"Non-Coincident",{"$f":"'[2]5.4 MD & utilisation-Spatial'!G995+'[3]5.4 MD & utilisation-Spatial'!G1369","v":"18:50:00"}]
["ED_MDU541_01359",null,null,null,null,"Coincident",{"$f":"'[2]5.4 MD & utilisation-Spatial'!G996+'[3]5.4 MD & utilisation-Spatial'!G1370","v":"18:00:00"}]
["ED_MDU541_01360",null,null,"Winter/Summer Peaking",null,"Non-Coincident",{"$f":"'[2]5.4 MD & utilisation-Spatial'!G997+'[3]5.4 MD & utilisation-Spatial'!G1371","v":{"$error":"#VALUE!"}}]
["ED_MDU541_01361",null,null,null,null,"Coincident",{"$f":"'[2]5.4 MD & utilisation-Spatial'!G998+'[3]5.4 MD & utilisation-Spatial'!G1372","v":{"$error":"#VALUE!"}}]
["ED_MDU541_01362",null,null,"Adjustments - Embedded generation","MW","Non-Coincident",{"$f":"'[2]5.4 MD & utilisation-Spatial'!G999+'[3]5.4 MD & utilisation-Spatial'!G1373","v":0}]
["ED_MDU541_01363",null,null,null,null,"Coincident",{"$f":"'[2]5.4 MD & utilisation-Spatial'!G1000+'[3]5.4 MD & utilisation-Spatial'!G1374","v":0}]
["ED_MDU541_01364",null,null,"Weather Corrected MD 10% POE","MW","Non-Coincident",{"$f":"'[2]5.4 MD & utilisation-Spatial'!G1001+'[3]5.4 MD & utilisation-Spatial'!G1375","v":28.542464110000001}]
["ED_MDU541_01365",null,null,null,null,"Coincident",{"$f":"'[2]5.4 MD & utilisation-Spatial'!G1002+'[3]5.4 MD & utilisation-Spatial'!G1376","v":26.130768490000001}]
["ED_MDU541_01366",null,null,"Weather Corrected MD 10% POE","MVA","Non-Coincident",{"$f":"'[2]5.4 MD & utilisation-Spatial'!G1003+'[3]5.4 MD & utilisation-Spatial'!G1377","v":29.441182179999998}]
["ED_MDU541_01367",null,null,null,null,"Coincident",{"$f":"'[2]5.4 MD & utilisation-Spatial'!G1004+'[3]5.4 MD & utilisation-Spatial'!G1378","v":27.415686900000001}]
["ED_MDU541_01368",null,null,"Weather Corrected MD 50% POE","MW","Non-Coincident",{"$f":"'[2]5.4 MD & utilisation-Spatial'!G1005+'[3]5.4 MD & utilisation-Spatial'!G1379","v":27.397182789999999}]
["ED_MDU541_01369",null,null,null,null,"Coincident",{"$f":"'[2]5.4 MD & utilisation-Spatial'!G1006+'[3]5.4 MD & utilisation-Spatial'!G1380","v":25.42775172}]
["ED_MDU541_01370",null,null,"Weather Corrected MD 50% POE","MVA","Non-Coincident",{"$f":"'[2]5.4 MD & utilisation-Spatial'!G1007+'[3]5.4 MD & utilisation-Spatial'!G1381","v":28.259839329999998}]
["ED_MDU541_01371",null,null,null,null,"Coincident",{"$f":"'[2]5.4 MD & utilisation-Spatial'!G1008+'[3]5.4 MD & utilisation-Spatial'!G1382","v":26.678100959999998}]
["ED_MDU541_01372",null,"Wanniassa","Substation Rating","MVA","Non-Coincident",{"$f":"'[2]5.4 MD & utilisation-Spatial'!G1009+'[3]5.4 MD & utilisation-Spatial'!G1383","v":100}]
["ED_MDU541_01373",null,null,null,null,"Coincident",{"$f":"'[2]5.4 MD & utilisation-Spatial'!G1010+'[3]5.4 MD & utilisation-Spatial'!G1384","v":100}]
["ED_MDU541_01374",null,null,"Raw Adjusted MD","MW","Non-Coincident",{"$f":"'[2]5.4 MD & utilisation-Spatial'!G1011+'[3]5.4 MD & utilisation-Spatial'!G1385","v":74.149727589999998}]
["ED_MDU541_01375",null,null,null,null,"Coincident",{"$f":"'[2]5.4 MD & utilisation-Spatial'!G1012+'[3]5.4 MD & utilisation-Spatial'!G1386","v":71.33239888}]
["ED_MDU541_01376",null,null,"Raw Adjusted MD","MVA","Non-Coincident",{"$f":"'[2]5.4 MD & utilisation-Spatial'!G1013+'[3]5.4 MD & utilisation-Spatial'!G1387","v":76.989999999999995}]
["ED_MDU541_01377",null,null,null,null,"Coincident",{"$f":"'[2]5.4 MD & utilisation-Spatial'!G1014+'[3]5.4 MD & utilisation-Spatial'!G1388","v":74.84}]
["ED_MDU541_01378",null,null,"Date MD occurred",null,"Non-Coincident",{"$f":"'[2]5.4 MD & utilisation-Spatial'!G1015+'[3]5.4 MD & utilisation-Spatial'!G1389","v":41829}]
["ED_MDU541_01379",null,null,null,null,"Coincident",{"$f":"'[2]5.4 MD & utilisation-Spatial'!G1016+'[3]5.4 MD & utilisation-Spatial'!G1390","v":41829}]
["ED_MDU541_01380",null,null,"Half hour time period MD occurred",null,"Non-Coincident",{"$f":"'[2]5.4 MD & utilisation-Spatial'!G1017+'[3]5.4 MD & utilisation-Spatial'!G1391","v":"18:50:00"}]
["ED_MDU541_01381",null,null,null,null,"Coincident",{"$f":"'[2]5.4 MD & utilisation-Spatial'!G1018+'[3]5.4 MD & utilisation-Spatial'!G1392","v":"18:00:00"}]
["ED_MDU541_01382",null,null,"Winter/Summer Peaking",null,"Non-Coincident",{"$f":"'[2]5.4 MD & utilisation-Spatial'!G1019+'[3]5.4 MD & utilisation-Spatial'!G1393","v":{"$error":"#VALUE!"}}]
["ED_MDU541_01383",null,null,null,null,"Coincident",{"$f":"'[2]5.4 MD & utilisation-Spatial'!G1020+'[3]5.4 MD & utilisation-Spatial'!G1394","v":{"$error":"#VALUE!"}}]
["ED_MDU541_01384",null,null,"Adjustments - Embedded generation","MW","Non-Coincident",{"$f":"'[2]5.4 MD & utilisation-Spatial'!G1021+'[3]5.4 MD & utilisation-Spatial'!G1395","v":0}]
["ED_MDU541_01385",null,null,null,null,"Coincident",{"$f":"'[2]5.4 MD & utilisation-Spatial'!G1022+'[3]5.4 MD & utilisation-Spatial'!G1396","v":0}]
["ED_MDU541_01386",null,null,"Weather Corrected MD 10% POE","MW","Non-Coincident",{"$f":"'[2]5.4 MD & utilisation-Spatial'!G1023+'[3]5.4 MD & utilisation-Spatial'!G1397","v":77.445777890000002}]
["ED_MDU541_01387",null,null,null,null,"Coincident",{"$f":"'[2]5.4 MD & utilisation-Spatial'!G1024+'[3]5.4 MD & utilisation-Spatial'!G1398","v":74.528457070000002}]
["ED_MDU541_01388",null,null,"Weather Corrected MD 10% POE","MVA","Non-Coincident",{"$f":"'[2]5.4 MD & utilisation-Spatial'!G1025+'[3]5.4 MD & utilisation-Spatial'!G1399","v":80.412304030000001}]
["ED_MDU541_01389",null,null,null,null,"Coincident",{"$f":"'[2]5.4 MD & utilisation-Spatial'!G1026+'[3]5.4 MD & utilisation-Spatial'!G1400","v":78.193216759999999}]
["ED_MDU541_01390",null,null,"Weather Corrected MD 50% POE","MW","Non-Coincident",{"$f":"'[2]5.4 MD & utilisation-Spatial'!G1027+'[3]5.4 MD & utilisation-Spatial'!G1401","v":75.022552989999994}]
["ED_MDU541_01391",null,null,null,null,"Coincident",{"$f":"'[2]5.4 MD & utilisation-Spatial'!G1028+'[3]5.4 MD & utilisation-Spatial'!G1402","v":72.523358959999996}]
["ED_MDU541_01392",null,null,"Weather Corrected MD 50% POE","MVA","Non-Coincident",{"$f":"'[2]5.4 MD & utilisation-Spatial'!G1029+'[3]5.4 MD & utilisation-Spatial'!G1403","v":77.896258579999994}]
["ED_MDU541_01393",null,null,null,null,"Coincident",{"$f":"'[2]5.4 MD & utilisation-Spatial'!G1030+'[3]5.4 MD & utilisation-Spatial'!G1404","v":76.089522709999997}]
["ED_MDU541_01394",null,"Woden","Substation Rating","MVA","Non-Coincident",{"$f":"'[2]5.4 MD & utilisation-Spatial'!G1031+'[3]5.4 MD & utilisation-Spatial'!G1405","v":100}]
["ED_MDU541_01395",null,null,null,null,"Coincident",{"$f":"'[2]5.4 MD & utilisation-Spatial'!G1032+'[3]5.4 MD & utilisation-Spatial'!G1406","v":100}]
["ED_MDU541_01396",null,null,"Raw Adjusted MD","MW","Non-Coincident",{"$f":"'[2]5.4 MD & utilisation-Spatial'!G1033+'[3]5.4 MD & utilisation-Spatial'!G1407","v":74.61385421}]
["ED_MDU541_01397",null,null,null,null,"Coincident",{"$f":"'[2]5.4 MD & utilisation-Spatial'!G1034+'[3]5.4 MD & utilisation-Spatial'!G1408","v":68.606441360000005}]
["ED_MDU541_01398",null,null,"Raw Adjusted MD","MVA","Non-Coincident",{"$f":"'[2]5.4 MD & utilisation-Spatial'!G1035+'[3]5.4 MD & utilisation-Spatial'!G1409","v":77.150000000000006}]
["ED_MDU541_01399",null,null,null,null,"Coincident",{"$f":"'[2]5.4 MD & utilisation-Spatial'!G1036+'[3]5.4 MD & utilisation-Spatial'!G1410","v":71.98}]
["ED_MDU541_01400",null,null,"Date MD occurred",null,"Non-Coincident",{"$f":"'[2]5.4 MD & utilisation-Spatial'!G1037+'[3]5.4 MD & utilisation-Spatial'!G1411","v":42159}]
["ED_MDU541_01401",null,null,null,null,"Coincident",{"$f":"'[2]5.4 MD & utilisation-Spatial'!G1038+'[3]5.4 MD & utilisation-Spatial'!G1412","v":41829}]
["ED_MDU541_01402",null,null,"Half hour time period MD occurred",null,"Non-Coincident",{"$f":"'[2]5.4 MD & utilisation-Spatial'!G1039+'[3]5.4 MD & utilisation-Spatial'!G1413","v":"08:15:00"}]
["ED_MDU541_01403",null,null,null,null,"Coincident",{"$f":"'[2]5.4 MD & utilisation-Spatial'!G1040+'[3]5.4 MD & utilisation-Spatial'!G1414","v":"18:00:00"}]
["ED_MDU541_01404",null,null,"Winter/Summer Peaking",null,"Non-Coincident",{"$f":"'[2]5.4 MD & utilisation-Spatial'!G1041+'[3]5.4 MD & utilisation-Spatial'!G1415","v":{"$error":"#VALUE!"}}]
["ED_MDU541_01405",null,null,null,null,"Coincident",{"$f":"'[2]5.4 MD & utilisation-Spatial'!G1042+'[3]5.4 MD & utilisation-Spatial'!G1416","v":{"$error":"#VALUE!"}}]
["ED_MDU541_01406",null,null,"Adjustments - Embedded generation","MW","Non-Coincident",{"$f":"'[2]5.4 MD & utilisation-Spatial'!G1043+'[3]5.4 MD & utilisation-Spatial'!G1417","v":0}]
["ED_MDU541_01407",null,null,null,null,"Coincident",{"$f":"'[2]5.4 MD & utilisation-Spatial'!G1044+'[3]5.4 MD & utilisation-Spatial'!G1418","v":0}]
["ED_MDU541_01408",null,null,"Weather Corrected MD 10% POE","MW","Non-Coincident",{"$f":"'[2]5.4 MD & utilisation-Spatial'!G1045+'[3]5.4 MD & utilisation-Spatial'!G1419","v":76.713859429999999}]
["ED_MDU541_01409",null,null,null,null,"Coincident",{"$f":"'[2]5.4 MD & utilisation-Spatial'!G1046+'[3]5.4 MD & utilisation-Spatial'!G1420","v":71.680362639999998}]
["ED_MDU541_01410",null,null,"Weather Corrected MD 10% POE","MVA","Non-Coincident",{"$f":"'[2]5.4 MD & utilisation-Spatial'!G1047+'[3]5.4 MD & utilisation-Spatial'!G1421","v":79.321384980000005}]
["ED_MDU541_01411",null,null,null,null,"Coincident",{"$f":"'[2]5.4 MD & utilisation-Spatial'!G1048+'[3]5.4 MD & utilisation-Spatial'!G1422","v":75.205074049999993}]
["ED_MDU541_01412",null,null,"Weather Corrected MD 50% POE","MW","Non-Coincident",{"$f":"'[2]5.4 MD & utilisation-Spatial'!G1049+'[3]5.4 MD & utilisation-Spatial'!G1423","v":74.41322984}]
["ED_MDU541_01413",null,null,null,null,"Coincident",{"$f":"'[2]5.4 MD & utilisation-Spatial'!G1050+'[3]5.4 MD & utilisation-Spatial'!G1424","v":69.751889070000004}]
["ED_MDU541_01414",null,null,"Weather Corrected MD 50% POE","MVA","Non-Coincident",{"$f":"'[2]5.4 MD & utilisation-Spatial'!G1051+'[3]5.4 MD & utilisation-Spatial'!G1425","v":76.942556350000004}]
["ED_MDU541_01415",null,null,null,null,"Coincident",{"$f":"'[2]5.4 MD & utilisation-Spatial'!G1052+'[3]5.4 MD & utilisation-Spatial'!G1426","v":73.181772370000004}]
["ED_MDU541_01416",null,"<Enter substation name>","Substation Rating","MVA","Non-Coincident"]
["ED_MDU541_01417",null,null,null,null,"Coincident"]
["ED_MDU541_01418",null,null,"Raw Adjusted MD","MW","Non-Coincident"]
["ED_MDU541_01419",null,null,null,null,"Coincident"]
["ED_MDU541_01420",null,null,"Raw Adjusted MD","MVA","Non-Coincident"]
["ED_MDU541_01421",null,null,null,null,"Coincident"]
["ED_MDU541_01422",null,null,"Date MD occurred",null,"Non-Coincident"]
["ED_MDU541_01423",null,null,null,null,"Coincident"]
["ED_MDU541_01424",null,null,"Half hour time period MD occurred",null,"Non-Coincident"]
["ED_MDU541_01425",null,null,null,null,"Coincident"]
["ED_MDU541_01426",null,null,"Winter/Summer Peaking",null,"Non-Coincident"]
["ED_MDU541_01427",null,null,null,null,"Coincident"]
["ED_MDU541_01428",null,null,"Adjustments - Embedded generation","MW","Non-Coincident"]
["ED_MDU541_01429",null,null,null,null,"Coincident"]
["ED_MDU541_01430",null,null,"Weather Corrected MD 10% POE","MW","Non-Coincident"]
["ED_MDU541_01431",null,null,null,null,"Coincident"]
["ED_MDU541_01432",null,null,"Weather Corrected MD 10% POE","MVA","Non-Coincident"]
["ED_MDU541_01433",null,null,null,null,"Coincident"]
["ED_MDU541_01434",null,null,"Weather Corrected MD 50% POE","MW","Non-Coincident"]
["ED_MDU541_01435",null,null,null,null,"Coincident"]
["ED_MDU541_01436",null,null,"Weather Corrected MD 50% POE","MVA","Non-Coincident"]
["ED_MDU541_01437",null,null,null,null,"Coincident"]
["ED_MDU541_01438",null,"<Enter substation name>","Substation Rating","MVA","Non-Coincident"]
["ED_MDU541_01439",null,null,null,null,"Coincident"]
["ED_MDU541_01440",null,null,"Raw Adjusted MD","MW","Non-Coincident"]
["ED_MDU541_01441",null,null,null,null,"Coincident"]
["ED_MDU541_01442",null,null,"Raw Adjusted MD","MVA","Non-Coincident"]
["ED_MDU541_01443",null,null,null,null,"Coincident"]
["ED_MDU541_01444",null,null,"Date MD occurred",null,"Non-Coincident"]
["ED_MDU541_01445",null,null,null,null,"Coincident"]
["ED_MDU541_01446",null,null,"Half hour time period MD occurred",null,"Non-Coincident"]
["ED_MDU541_01447",null,null,null,null,"Coincident"]
["ED_MDU541_01448",null,null,"Winter/Summer Peaking",null,"Non-Coincident"]
["ED_MDU541_01449",null,null,null,null,"Coincident"]
["ED_MDU541_01450",null,null,"Adjustments - Embedded generation","MW","Non-Coincident"]
["ED_MDU541_01451",null,null,null,null,"Coincident"]
["ED_MDU541_01452",null,null,"Weather Corrected MD 10% POE","MW","Non-Coincident"]
["ED_MDU541_01453",null,null,null,null,"Coincident"]
["ED_MDU541_01454",null,null,"Weather Corrected MD 10% POE","MVA","Non-Coincident"]
["ED_MDU541_01455",null,null,null,null,"Coincident"]
["ED_MDU541_01456",null,null,"Weather Corrected MD 50% POE","MW","Non-Coincident"]
["ED_MDU541_01457",null,null,null,null,"Coincident"]
["ED_MDU541_01458",null,null,"Weather Corrected MD 50% POE","MVA","Non-Coincident"]
["ED_MDU541_01459",null,null,null,null,"Coincident"]
["ED_MDU541_01460",null,"<Enter substation name>","Substation Rating","MVA","Non-Coincident"]
["ED_MDU541_01461",null,null,null,null,"Coincident"]
["ED_MDU541_01462",null,null,"Raw Adjusted MD","MW","Non-Coincident"]
["ED_MDU541_01463",null,null,null,null,"Coincident"]
["ED_MDU541_01464",null,null,"Raw Adjusted MD","MVA","Non-Coincident"]
["ED_MDU541_01465",null,null,null,null,"Coincident"]
["ED_MDU541_01466",null,null,"Date MD occurred",null,"Non-Coincident"]
["ED_MDU541_01467",null,null,null,null,"Coincident"]
["ED_MDU541_01468",null,null,"Half hour time period MD occurred",null,"Non-Coincident"]
["ED_MDU541_01469",null,null,null,null,"Coincident"]
["ED_MDU541_01470",null,null,"Winter/Summer Peaking",null,"Non-Coincident"]
["ED_MDU541_01471",null,null,null,null,"Coincident"]
["ED_MDU541_01472",null,null,"Adjustments - Embedded generation","MW","Non-Coincident"]
["ED_MDU541_01473",null,null,null,null,"Coincident"]
["ED_MDU541_01474",null,null,"Weather Corrected MD 10% POE","MW","Non-Coincident"]
["ED_MDU541_01475",null,null,null,null,"Coincident"]
["ED_MDU541_01476",null,null,"Weather Corrected MD 10% POE","MVA","Non-Coincident"]
["ED_MDU541_01477",null,null,null,null,"Coincident"]
["ED_MDU541_01478",null,null,"Weather Corrected MD 50% POE","MW","Non-Coincident"]
["ED_MDU541_01479",null,null,null,null,"Coincident"]
["ED_MDU541_01480",null,null,"Weather Corrected MD 50% POE","MVA","Non-Coincident"]
["ED_MDU541_01481",null,null,null,null,"Coincident"]
["ED_MDU541_01482",null,"<Enter substation name>","Substation Rating","MVA","Non-Coincident"]
["ED_MDU541_01483",null,null,null,null,"Coincident"]
["ED_MDU541_01484",null,null,"Raw Adjusted MD","MW","Non-Coincident"]
["ED_MDU541_01485",null,null,null,null,"Coincident"]
["ED_MDU541_01486",null,null,"Raw Adjusted MD","MVA","Non-Coincident"]
["ED_MDU541_01487",null,null,null,null,"Coincident"]
["ED_MDU541_01488",null,null,"Date MD occurred",null,"Non-Coincident"]
["ED_MDU541_01489",null,null,null,null,"Coincident"]
["ED_MDU541_01490",null,null,"Half hour time period MD occurred",null,"Non-Coincident"]
["ED_MDU541_01491",null,null,null,null,"Coincident"]
["ED_MDU541_01492",null,null,"Winter/Summer Peaking",null,"Non-Coincident"]
["ED_MDU541_01493",null,null,null,null,"Coincident"]
["ED_MDU541_01494",null,null,"Adjustments - Embedded generation","MW","Non-Coincident"]
["ED_MDU541_01495",null,null,null,null,"Coincident"]
["ED_MDU541_01496",null,null,"Weather Corrected MD 10% POE","MW","Non-Coincident"]
["ED_MDU541_01497",null,null,null,null,"Coincident"]
["ED_MDU541_01498",null,null,"Weather Corrected MD 10% POE","MVA","Non-Coincident"]
["ED_MDU541_01499",null,null,null,null,"Coincident"]
["ED_MDU541_01500",null,null,"Weather Corrected MD 50% POE","MW","Non-Coincident"]
["ED_MDU541_01501",null,null,null,null,"Coincident"]
["ED_MDU541_01502",null,null,"Weather Corrected MD 50% POE","MVA","Non-Coincident"]
["ED_MDU541_01503",null,null,null,null,"Coincident"]
["ED_MDU541_01504",null,"<Enter substation name>","Substation Rating","MVA","Non-Coincident"]
["ED_MDU541_01505",null,null,null,null,"Coincident"]
["ED_MDU541_01506",null,null,"Raw Adjusted MD","MW","Non-Coincident"]
["ED_MDU541_01507",null,null,null,null,"Coincident"]
["ED_MDU541_01508",null,null,"Raw Adjusted MD","MVA","Non-Coincident"]
["ED_MDU541_01509",null,null,null,null,"Coincident"]
["ED_MDU541_01510",null,null,"Date MD occurred",null,"Non-Coincident"]
["ED_MDU541_01511",null,null,null,null,"Coincident"]
["ED_MDU541_01512",null,null,"Half hour time period MD occurred",null,"Non-Coincident"]
["ED_MDU541_01513",null,null,null,null,"Coincident"]
["ED_MDU541_01514",null,null,"Winter/Summer Peaking",null,"Non-Coincident"]
["ED_MDU541_01515",null,null,null,null,"Coincident"]
["ED_MDU541_01516",null,null,"Adjustments - Embedded generation","MW","Non-Coincident"]
["ED_MDU541_01517",null,null,null,null,"Coincident"]
["ED_MDU541_01518",null,null,"Weather Corrected MD 10% POE","MW","Non-Coincident"]
["ED_MDU541_01519",null,null,null,null,"Coincident"]
["ED_MDU541_01520",null,null,"Weather Corrected MD 10% POE","MVA","Non-Coincident"]
["ED_MDU541_01521",null,null,null,null,"Coincident"]
["ED_MDU541_01522",null,null,"Weather Corrected MD 50% POE","MW","Non-Coincident"]
["ED_MDU541_01523",null,null,null,null,"Coincident"]
["ED_MDU541_01524",null,null,"Weather Corrected MD 50% POE","MVA","Non-Coincident"]
["ED_MDU541_01525",null,null,null,null,"Coincident"]
["ED_MDU541_01526",null,"<Enter substation name>","Substation Rating","MVA","Non-Coincident"]
["ED_MDU541_01527",null,null,null,null,"Coincident"]
["ED_MDU541_01528",null,null,"Raw Adjusted MD","MW","Non-Coincident"]
["ED_MDU541_01529",null,null,null,null,"Coincident"]
["ED_MDU541_01530",null,null,"Raw Adjusted MD","MVA","Non-Coincident"]
["ED_MDU541_01531",null,null,null,null,"Coincident"]
["ED_MDU541_01532",null,null,"Date MD occurred",null,"Non-Coincident"]
["ED_MDU541_01533",null,null,null,null,"Coincident"]
["ED_MDU541_01534",null,null,"Half hour time period MD occurred",null,"Non-Coincident"]
["ED_MDU541_01535",null,null,null,null,"Coincident"]
["ED_MDU541_01536",null,null,"Winter/Summer Peaking",null,"Non-Coincident"]
["ED_MDU541_01537",null,null,null,null,"Coincident"]
["ED_MDU541_01538",null,null,"Adjustments - Embedded generation","MW","Non-Coincident"]
["ED_MDU541_01539",null,null,null,null,"Coincident"]
["ED_MDU541_01540",null,null,"Weather Corrected MD 10% POE","MW","Non-Coincident"]
["ED_MDU541_01541",null,null,null,null,"Coincident"]
["ED_MDU541_01542",null,null,"Weather Corrected MD 10% POE","MVA","Non-Coincident"]
["ED_MDU541_01543",null,null,null,null,"Coincident"]
["ED_MDU541_01544",null,null,"Weather Corrected MD 50% POE","MW","Non-Coincident"]
["ED_MDU541_01545",null,null,null,null,"Coincident"]
["ED_MDU541_01546",null,null,"Weather Corrected MD 50% POE","MVA","Non-Coincident"]
["ED_MDU541_01547",null,null,null,null,"Coincident"]
["ED_MDU541_01548",null,"<Enter substation name>","Substation Rating","MVA","Non-Coincident"]
["ED_MDU541_01549",null,null,null,null,"Coincident"]
["ED_MDU541_01550",null,null,"Raw Adjusted MD","MW","Non-Coincident"]
["ED_MDU541_01551",null,null,null,null,"Coincident"]
["ED_MDU541_01552",null,null,"Raw Adjusted MD","MVA","Non-Coincident"]
["ED_MDU541_01553",null,null,null,null,"Coincident"]
["ED_MDU541_01554",null,null,"Date MD occurred",null,"Non-Coincident"]
["ED_MDU541_01555",null,null,null,null,"Coincident"]
["ED_MDU541_01556",null,null,"Half hour time period MD occurred",null,"Non-Coincident"]
["ED_MDU541_01557",null,null,null,null,"Coincident"]
["ED_MDU541_01558",null,null,"Winter/Summer Peaking",null,"Non-Coincident"]
["ED_MDU541_01559",null,null,null,null,"Coincident"]
["ED_MDU541_01560",null,null,"Adjustments - Embedded generation","MW","Non-Coincident"]
["ED_MDU541_01561",null,null,null,null,"Coincident"]
["ED_MDU541_01562",null,null,"Weather Corrected MD 10% POE","MW","Non-Coincident"]
["ED_MDU541_01563",null,null,null,null,"Coincident"]
["ED_MDU541_01564",null,null,"Weather Corrected MD 10% POE","MVA","Non-Coincident"]
["ED_MDU541_01565",null,null,null,null,"Coincident"]
["ED_MDU541_01566",null,null,"Weather Corrected MD 50% POE","MW","Non-Coincident"]
["ED_MDU541_01567",null,null,null,null,"Coincident"]
["ED_MDU541_01568",null,null,"Weather Corrected MD 50% POE","MVA","Non-Coincident"]
["ED_MDU541_01569",null,null,null,null,"Coincident"]
["ED_MDU541_01570",null,"<Enter substation name>","Substation Rating","MVA","Non-Coincident"]
["ED_MDU541_01571",null,null,null,null,"Coincident"]
["ED_MDU541_01572",null,null,"Raw Adjusted MD","MW","Non-Coincident"]
["ED_MDU541_01573",null,null,null,null,"Coincident"]
["ED_MDU541_01574",null,null,"Raw Adjusted MD","MVA","Non-Coincident"]
["ED_MDU541_01575",null,null,null,null,"Coincident"]
["ED_MDU541_01576",null,null,"Date MD occurred",null,"Non-Coincident"]
["ED_MDU541_01577",null,null,null,null,"Coincident"]
["ED_MDU541_01578",null,null,"Half hour time period MD occurred",null,"Non-Coincident"]
["ED_MDU541_01579",null,null,null,null,"Coincident"]
["ED_MDU541_01580",null,null,"Winter/Summer Peaking",null,"Non-Coincident"]
["ED_MDU541_01581",null,null,null,null,"Coincident"]
["ED_MDU541_01582",null,null,"Adjustments - Embedded generation","MW","Non-Coincident"]
["ED_MDU541_01583",null,null,null,null,"Coincident"]
["ED_MDU541_01584",null,null,"Weather Corrected MD 10% POE","MW","Non-Coincident"]
["ED_MDU541_01585",null,null,null,null,"Coincident"]
["ED_MDU541_01586",null,null,"Weather Corrected MD 10% POE","MVA","Non-Coincident"]
["ED_MDU541_01587",null,null,null,null,"Coincident"]
["ED_MDU541_01588",null,null,"Weather Corrected MD 50% POE","MW","Non-Coincident"]
["ED_MDU541_01589",null,null,null,null,"Coincident"]
["ED_MDU541_01590",null,null,"Weather Corrected MD 50% POE","MVA","Non-Coincident"]
["ED_MDU541_01591",null,null,null,null,"Coincident"]
["ED_MDU541_01592",null,"<Enter substation name>","Substation Rating","MVA","Non-Coincident"]
["ED_MDU541_01593",null,null,null,null,"Coincident"]
["ED_MDU541_01594",null,null,"Raw Adjusted MD","MW","Non-Coincident"]
["ED_MDU541_01595",null,null,null,null,"Coincident"]
["ED_MDU541_01596",null,null,"Raw Adjusted MD","MVA","Non-Coincident"]
["ED_MDU541_01597",null,null,null,null,"Coincident"]
["ED_MDU541_01598",null,null,"Date MD occurred",null,"Non-Coincident"]
["ED_MDU541_01599",null,null,null,null,"Coincident"]
["ED_MDU541_01600",null,null,"Half hour time period MD occurred",null,"Non-Coincident"]
["ED_MDU541_01601",null,null,null,null,"Coincident"]
["ED_MDU541_01602",null,null,"Winter/Summer Peaking",null,"Non-Coincident"]
["ED_MDU541_01603",null,null,null,null,"Coincident"]
["ED_MDU541_01604",null,null,"Adjustments - Embedded generation","MW","Non-Coincident"]
["ED_MDU541_01605",null,null,null,null,"Coincident"]
["ED_MDU541_01606",null,null,"Weather Corrected MD 10% POE","MW","Non-Coincident"]
["ED_MDU541_01607",null,null,null,null,"Coincident"]
["ED_MDU541_01608",null,null,"Weather Corrected MD 10% POE","MVA","Non-Coincident"]
["ED_MDU541_01609",null,null,null,null,"Coincident"]
["ED_MDU541_01610",null,null,"Weather Corrected MD 50% POE","MW","Non-Coincident"]
["ED_MDU541_01611",null,null,null,null,"Coincident"]
["ED_MDU541_01612",null,null,"Weather Corrected MD 50% POE","MVA","Non-Coincident"]
["ED_MDU541_01613",null,null,null,null,"Coincident"]
["ED_MDU541_01614",null,"<Enter substation name>","Substation Rating","MVA","Non-Coincident"]
["ED_MDU541_01615",null,null,null,null,"Coincident"]
["ED_MDU541_01616",null,null,"Raw Adjusted MD","MW","Non-Coincident"]
["ED_MDU541_01617",null,null,null,null,"Coincident"]
["ED_MDU541_01618",null,null,"Raw Adjusted MD","MVA","Non-Coincident"]
["ED_MDU541_01619",null,null,null,null,"Coincident"]
["ED_MDU541_01620",null,null,"Date MD occurred",null,"Non-Coincident"]
["ED_MDU541_01621",null,null,null,null,"Coincident"]
["ED_MDU541_01622",null,null,"Half hour time period MD occurred",null,"Non-Coincident"]
["ED_MDU541_01623",null,null,null,null,"Coincident"]
["ED_MDU541_01624",null,null,"Winter/Summer Peaking",null,"Non-Coincident"]
["ED_MDU541_01625",null,null,null,null,"Coincident"]
["ED_MDU541_01626",null,null,"Adjustments - Embedded generation","MW","Non-Coincident"]
["ED_MDU541_01627",null,null,null,null,"Coincident"]
["ED_MDU541_01628",null,null,"Weather Corrected MD 10% POE","MW","Non-Coincident"]
["ED_MDU541_01629",null,null,null,null,"Coincident"]
["ED_MDU541_01630",null,null,"Weather Corrected MD 10% POE","MVA","Non-Coincident"]
["ED_MDU541_01631",null,null,null,null,"Coincident"]
["ED_MDU541_01632",null,null,"Weather Corrected MD 50% POE","MW","Non-Coincident"]
["ED_MDU541_01633",null,null,null,null,"Coincident"]
["ED_MDU541_01634",null,null,"Weather Corrected MD 50% POE","MVA","Non-Coincident"]
["ED_MDU541_01635",null,null,null,null,"Coincident"]
["ED_MDU541_01636",null,"<Enter substation name>","Substation Rating","MVA","Non-Coincident"]
["ED_MDU541_01637",null,null,null,null,"Coincident"]
["ED_MDU541_01638",null,null,"Raw Adjusted MD","MW","Non-Coincident"]
["ED_MDU541_01639",null,null,null,null,"Coincident"]
["ED_MDU541_01640",null,null,"Raw Adjusted MD","MVA","Non-Coincident"]
["ED_MDU541_01641",null,null,null,null,"Coincident"]
["ED_MDU541_01642",null,null,"Date MD occurred",null,"Non-Coincident"]
["ED_MDU541_01643",null,null,null,null,"Coincident"]
["ED_MDU541_01644",null,null,"Half hour time period MD occurred",null,"Non-Coincident"]
["ED_MDU541_01645",null,null,null,null,"Coincident"]
["ED_MDU541_01646",null,null,"Winter/Summer Peaking",null,"Non-Coincident"]
["ED_MDU541_01647",null,null,null,null,"Coincident"]
["ED_MDU541_01648",null,null,"Adjustments - Embedded generation","MW","Non-Coincident"]
["ED_MDU541_01649",null,null,null,null,"Coincident"]
["ED_MDU541_01650",null,null,"Weather Corrected MD 10% POE","MW","Non-Coincident"]
["ED_MDU541_01651",null,null,null,null,"Coincident"]
["ED_MDU541_01652",null,null,"Weather Corrected MD 10% POE","MVA","Non-Coincident"]
["ED_MDU541_01653",null,null,null,null,"Coincident"]
["ED_MDU541_01654",null,null,"Weather Corrected MD 50% POE","MW","Non-Coincident"]
["ED_MDU541_01655",null,null,null,null,"Coincident"]
["ED_MDU541_01656",null,null,"Weather Corrected MD 50% POE","MVA","Non-Coincident"]
["ED_MDU541_01657",null,null,null,null,"Coincident"]
["ED_MDU541_01658",null,"<Enter substation name>","Substation Rating","MVA","Non-Coincident"]
["ED_MDU541_01659",null,null,null,null,"Coincident"]
["ED_MDU541_01660",null,null,"Raw Adjusted MD","MW","Non-Coincident"]
["ED_MDU541_01661",null,null,null,null,"Coincident"]
["ED_MDU541_01662",null,null,"Raw Adjusted MD","MVA","Non-Coincident"]
["ED_MDU541_01663",null,null,null,null,"Coincident"]
["ED_MDU541_01664",null,null,"Date MD occurred",null,"Non-Coincident"]
["ED_MDU541_01665",null,null,null,null,"Coincident"]
["ED_MDU541_01666",null,null,"Half hour time period MD occurred",null,"Non-Coincident"]
["ED_MDU541_01667",null,null,null,null,"Coincident"]
["ED_MDU541_01668",null,null,"Winter/Summer Peaking",null,"Non-Coincident"]
["ED_MDU541_01669",null,null,null,null,"Coincident"]
["ED_MDU541_01670",null,null,"Adjustments - Embedded generation","MW","Non-Coincident"]
["ED_MDU541_01671",null,null,null,null,"Coincident"]
["ED_MDU541_01672",null,null,"Weather Corrected MD 10% POE","MW","Non-Coincident"]
["ED_MDU541_01673",null,null,null,null,"Coincident"]
["ED_MDU541_01674",null,null,"Weather Corrected MD 10% POE","MVA","Non-Coincident"]
["ED_MDU541_01675",null,null,null,null,"Coincident"]
["ED_MDU541_01676",null,null,"Weather Corrected MD 50% POE","MW","Non-Coincident"]
["ED_MDU541_01677",null,null,null,null,"Coincident"]
["ED_MDU541_01678",null,null,"Weather Corrected MD 50% POE","MVA","Non-Coincident"]
["ED_MDU541_01679",null,null,null,null,"Coincident"]
["ED_MDU541_01680",null,"<Enter substation name>","Substation Rating","MVA","Non-Coincident"]
["ED_MDU541_01681",null,null,null,null,"Coincident"]
["ED_MDU541_01682",null,null,"Raw Adjusted MD","MW","Non-Coincident"]
["ED_MDU541_01683",null,null,null,null,"Coincident"]
["ED_MDU541_01684",null,null,"Raw Adjusted MD","MVA","Non-Coincident"]
["ED_MDU541_01685",null,null,null,null,"Coincident"]
["ED_MDU541_01686",null,null,"Date MD occurred",null,"Non-Coincident"]
["ED_MDU541_01687",null,null,null,null,"Coincident"]
["ED_MDU541_01688",null,null,"Half hour time period MD occurred",null,"Non-Coincident"]
["ED_MDU541_01689",null,null,null,null,"Coincident"]
["ED_MDU541_01690",null,null,"Winter/Summer Peaking",null,"Non-Coincident"]
["ED_MDU541_01691",null,null,null,null,"Coincident"]
["ED_MDU541_01692",null,null,"Adjustments - Embedded generation","MW","Non-Coincident"]
["ED_MDU541_01693",null,null,null,null,"Coincident"]
["ED_MDU541_01694",null,null,"Weather Corrected MD 10% POE","MW","Non-Coincident"]
["ED_MDU541_01695",null,null,null,null,"Coincident"]
["ED_MDU541_01696",null,null,"Weather Corrected MD 10% POE","MVA","Non-Coincident"]
["ED_MDU541_01697",null,null,null,null,"Coincident"]
["ED_MDU541_01698",null,null,"Weather Corrected MD 50% POE","MW","Non-Coincident"]
["ED_MDU541_01699",null,null,null,null,"Coincident"]
["ED_MDU541_01700",null,null,"Weather Corrected MD 50% POE","MVA","Non-Coincident"]
["ED_MDU541_01701",null,null,null,null,"Coincident"]
["ED_MDU541_01702",null,"<Enter substation name>","Substation Rating","MVA","Non-Coincident"]
["ED_MDU541_01703",null,null,null,null,"Coincident"]
["ED_MDU541_01704",null,null,"Raw Adjusted MD","MW","Non-Coincident"]
["ED_MDU541_01705",null,null,null,null,"Coincident"]
["ED_MDU541_01706",null,null,"Raw Adjusted MD","MVA","Non-Coincident"]
["ED_MDU541_01707",null,null,null,null,"Coincident"]
["ED_MDU541_01708",null,null,"Date MD occurred",null,"Non-Coincident"]
["ED_MDU541_01709",null,null,null,null,"Coincident"]
["ED_MDU541_01710",null,null,"Half hour time period MD occurred",null,"Non-Coincident"]
["ED_MDU541_01711",null,null,null,null,"Coincident"]
["ED_MDU541_01712",null,null,"Winter/Summer Peaking",null,"Non-Coincident"]
["ED_MDU541_01713",null,null,null,null,"Coincident"]
["ED_MDU541_01714",null,null,"Adjustments - Embedded generation","MW","Non-Coincident"]
["ED_MDU541_01715",null,null,null,null,"Coincident"]
["ED_MDU541_01716",null,null,"Weather Corrected MD 10% POE","MW","Non-Coincident"]
["ED_MDU541_01717",null,null,null,null,"Coincident"]
["ED_MDU541_01718",null,null,"Weather Corrected MD 10% POE","MVA","Non-Coincident"]
["ED_MDU541_01719",null,null,null,null,"Coincident"]
["ED_MDU541_01720",null,null,"Weather Corrected MD 50% POE","MW","Non-Coincident"]
["ED_MDU541_01721",null,null,null,null,"Coincident"]
["ED_MDU541_01722",null,null,"Weather Corrected MD 50% POE","MVA","Non-Coincident"]
["ED_MDU541_01723",null,null,null,null,"Coincident"]
["ED_MDU541_01724",null,"<Enter substation name>","Substation Rating","MVA","Non-Coincident"]
["ED_MDU541_01725",null,null,null,null,"Coincident"]
["ED_MDU541_01726",null,null,"Raw Adjusted MD","MW","Non-Coincident"]
["ED_MDU541_01727",null,null,null,null,"Coincident"]
["ED_MDU541_01728",null,null,"Raw Adjusted MD","MVA","Non-Coincident"]
["ED_MDU541_01729",null,null,null,null,"Coincident"]
["ED_MDU541_01730",null,null,"Date MD occurred",null,"Non-Coincident"]
["ED_MDU541_01731",null,null,null,null,"Coincident"]
["ED_MDU541_01732",null,null,"Half hour time period MD occurred",null,"Non-Coincident"]
["ED_MDU541_01733",null,null,null,null,"Coincident"]
["ED_MDU541_01734",null,null,"Winter/Summer Peaking",null,"Non-Coincident"]
["ED_MDU541_01735",null,null,null,null,"Coincident"]
["ED_MDU541_01736",null,null,"Adjustments - Embedded generation","MW","Non-Coincident"]
["ED_MDU541_01737",null,null,null,null,"Coincident"]
["ED_MDU541_01738",null,null,"Weather Corrected MD 10% POE","MW","Non-Coincident"]
["ED_MDU541_01739",null,null,null,null,"Coincident"]
["ED_MDU541_01740",null,null,"Weather Corrected MD 10% POE","MVA","Non-Coincident"]
["ED_MDU541_01741",null,null,null,null,"Coincident"]
["ED_MDU541_01742",null,null,"Weather Corrected MD 50% POE","MW","Non-Coincident"]
["ED_MDU541_01743",null,null,null,null,"Coincident"]
["ED_MDU541_01744",null,null,"Weather Corrected MD 50% POE","MVA","Non-Coincident"]
["ED_MDU541_01745",null,null,null,null,"Coincident"]
["ED_MDU541_01746",null,"<Enter substation name>","Substation Rating","MVA","Non-Coincident"]
["ED_MDU541_01747",null,null,null,null,"Coincident"]
["ED_MDU541_01748",null,null,"Raw Adjusted MD","MW","Non-Coincident"]
["ED_MDU541_01749",null,null,null,null,"Coincident"]
["ED_MDU541_01750",null,null,"Raw Adjusted MD","MVA","Non-Coincident"]
["ED_MDU541_01751",null,null,null,null,"Coincident"]
["ED_MDU541_01752",null,null,"Date MD occurred",null,"Non-Coincident"]
["ED_MDU541_01753",null,null,null,null,"Coincident"]
["ED_MDU541_01754",null,null,"Half hour time period MD occurred",null,"Non-Coincident"]
["ED_MDU541_01755",null,null,null,null,"Coincident"]
["ED_MDU541_01756",null,null,"Winter/Summer Peaking",null,"Non-Coincident"]
["ED_MDU541_01757",null,null,null,null,"Coincident"]
["ED_MDU541_01758",null,null,"Adjustments - Embedded generation","MW","Non-Coincident"]
["ED_MDU541_01759",null,null,null,null,"Coincident"]
["ED_MDU541_01760",null,null,"Weather Corrected MD 10% POE","MW","Non-Coincident"]
["ED_MDU541_01761",null,null,null,null,"Coincident"]
["ED_MDU541_01762",null,null,"Weather Corrected MD 10% POE","MVA","Non-Coincident"]
["ED_MDU541_01763",null,null,null,null,"Coincident"]
["ED_MDU541_01764",null,null,"Weather Corrected MD 50% POE","MW","Non-Coincident"]
["ED_MDU541_01765",null,null,null,null,"Coincident"]
["ED_MDU541_01766",null,null,"Weather Corrected MD 50% POE","MVA","Non-Coincident"]
["ED_MDU541_01767",null,null,null,null,"Coincident"]
["ED_MDU541_01768",null,"<Enter substation name>","Substation Rating","MVA","Non-Coincident"]
["ED_MDU541_01769",null,null,null,null,"Coincident"]
["ED_MDU541_01770",null,null,"Raw Adjusted MD","MW","Non-Coincident"]
["ED_MDU541_01771",null,null,null,null,"Coincident"]
["ED_MDU541_01772",null,null,"Raw Adjusted MD","MVA","Non-Coincident"]
["ED_MDU541_01773",null,null,null,null,"Coincident"]
["ED_MDU541_01774",null,null,"Date MD occurred",null,"Non-Coincident"]
["ED_MDU541_01775",null,null,null,null,"Coincident"]
["ED_MDU541_01776",null,null,"Half hour time period MD occurred",null,"Non-Coincident"]
["ED_MDU541_01777",null,null,null,null,"Coincident"]
["ED_MDU541_01778",null,null,"Winter/Summer Peaking",null,"Non-Coincident"]
["ED_MDU541_01779",null,null,null,null,"Coincident"]
["ED_MDU541_01780",null,null,"Adjustments - Embedded generation","MW","Non-Coincident"]
["ED_MDU541_01781",null,null,null,null,"Coincident"]
["ED_MDU541_01782",null,null,"Weather Corrected MD 10% POE","MW","Non-Coincident"]
["ED_MDU541_01783",null,null,null,null,"Coincident"]
["ED_MDU541_01784",null,null,"Weather Corrected MD 10% POE","MVA","Non-Coincident"]
["ED_MDU541_01785",null,null,null,null,"Coincident"]
["ED_MDU541_01786",null,null,"Weather Corrected MD 50% POE","MW","Non-Coincident"]
["ED_MDU541_01787",null,null,null,null,"Coincident"]
["ED_MDU541_01788",null,null,"Weather Corrected MD 50% POE","MVA","Non-Coincident"]
["ED_MDU541_01789",null,null,null,null,"Coincident"]
["ED_MDU541_01790",null,"<Enter substation name>","Substation Rating","MVA","Non-Coincident"]
["ED_MDU541_01791",null,null,null,null,"Coincident"]
["ED_MDU541_01792",null,null,"Raw Adjusted MD","MW","Non-Coincident"]
["ED_MDU541_01793",null,null,null,null,"Coincident"]
["ED_MDU541_01794",null,null,"Raw Adjusted MD","MVA","Non-Coincident"]
["ED_MDU541_01795",null,null,null,null,"Coincident"]
["ED_MDU541_01796",null,null,"Date MD occurred",null,"Non-Coincident"]
["ED_MDU541_01797",null,null,null,null,"Coincident"]
["ED_MDU541_01798",null,null,"Half hour time period MD occurred",null,"Non-Coincident"]
["ED_MDU541_01799",null,null,null,null,"Coincident"]
["ED_MDU541_01800",null,null,"Winter/Summer Peaking",null,"Non-Coincident"]
["ED_MDU541_01801",null,null,null,null,"Coincident"]
["ED_MDU541_01802",null,null,"Adjustments - Embedded generation","MW","Non-Coincident"]
["ED_MDU541_01803",null,null,null,null,"Coincident"]
["ED_MDU541_01804",null,null,"Weather Corrected MD 10% POE","MW","Non-Coincident"]
["ED_MDU541_01805",null,null,null,null,"Coincident"]
["ED_MDU541_01806",null,null,"Weather Corrected MD 10% POE","MVA","Non-Coincident"]
["ED_MDU541_01807",null,null,null,null,"Coincident"]
["ED_MDU541_01808",null,null,"Weather Corrected MD 50% POE","MW","Non-Coincident"]
["ED_MDU541_01809",null,null,null,null,"Coincident"]
["ED_MDU541_01810",null,null,"Weather Corrected MD 50% POE","MVA","Non-Coincident"]
["ED_MDU541_01811",null,null,null,null,"Coincident"]
["ED_MDU541_01812",null,"<Enter substation name>","Substation Rating","MVA","Non-Coincident"]
["ED_MDU541_01813",null,null,null,null,"Coincident"]
["ED_MDU541_01814",null,null,"Raw Adjusted MD","MW","Non-Coincident"]
["ED_MDU541_01815",null,null,null,null,"Coincident"]
["ED_MDU541_01816",null,null,"Raw Adjusted MD","MVA","Non-Coincident"]
["ED_MDU541_01817",null,null,null,null,"Coincident"]
["ED_MDU541_01818",null,null,"Date MD occurred",null,"Non-Coincident"]
["ED_MDU541_01819",null,null,null,null,"Coincident"]
["ED_MDU541_01820",null,null,"Half hour time period MD occurred",null,"Non-Coincident"]
["ED_MDU541_01821",null,null,null,null,"Coincident"]
["ED_MDU541_01822",null,null,"Winter/Summer Peaking",null,"Non-Coincident"]
["ED_MDU541_01823",null,null,null,null,"Coincident"]
["ED_MDU541_01824",null,null,"Adjustments - Embedded generation","MW","Non-Coincident"]
["ED_MDU541_01825",null,null,null,null,"Coincident"]
["ED_MDU541_01826",null,null,"Weather Corrected MD 10% POE","MW","Non-Coincident"]
["ED_MDU541_01827",null,null,null,null,"Coincident"]
["ED_MDU541_01828",null,null,"Weather Corrected MD 10% POE","MVA","Non-Coincident"]
["ED_MDU541_01829",null,null,null,null,"Coincident"]
["ED_MDU541_01830",null,null,"Weather Corrected MD 50% POE","MW","Non-Coincident"]
["ED_MDU541_01831",null,null,null,null,"Coincident"]
["ED_MDU541_01832",null,null,"Weather Corrected MD 50% POE","MVA","Non-Coincident"]
["ED_MDU541_01833",null,null,null,null,"Coincident"]
["ED_MDU541_01834",null,"<Enter substation name>","Substation Rating","MVA","Non-Coincident"]
["ED_MDU541_01835",null,null,null,null,"Coincident"]
["ED_MDU541_01836",null,null,"Raw Adjusted MD","MW","Non-Coincident"]
["ED_MDU541_01837",null,null,null,null,"Coincident"]
["ED_MDU541_01838",null,null,"Raw Adjusted MD","MVA","Non-Coincident"]
["ED_MDU541_01839",null,null,null,null,"Coincident"]
["ED_MDU541_01840",null,null,"Date MD occurred",null,"Non-Coincident"]
["ED_MDU541_01841",null,null,null,null,"Coincident"]
["ED_MDU541_01842",null,null,"Half hour time period MD occurred",null,"Non-Coincident"]
["ED_MDU541_01843",null,null,null,null,"Coincident"]
["ED_MDU541_01844",null,null,"Winter/Summer Peaking",null,"Non-Coincident"]
["ED_MDU541_01845",null,null,null,null,"Coincident"]
["ED_MDU541_01846",null,null,"Adjustments - Embedded generation","MW","Non-Coincident"]
["ED_MDU541_01847",null,null,null,null,"Coincident"]
["ED_MDU541_01848",null,null,"Weather Corrected MD 10% POE","MW","Non-Coincident"]
["ED_MDU541_01849",null,null,null,null,"Coincident"]
["ED_MDU541_01850",null,null,"Weather Corrected MD 10% POE","MVA","Non-Coincident"]
["ED_MDU541_01851",null,null,null,null,"Coincident"]
["ED_MDU541_01852",null,null,"Weather Corrected MD 50% POE","MW","Non-Coincident"]
["ED_MDU541_01853",null,null,null,null,"Coincident"]
["ED_MDU541_01854",null,null,"Weather Corrected MD 50% POE","MVA","Non-Coincident"]
["ED_MDU541_01855",null,null,null,null,"Coincident"]
["ED_MDU541_01856",null,"<Enter substation name>","Substation Rating","MVA","Non-Coincident"]
["ED_MDU541_01857",null,null,null,null,"Coincident"]
["ED_MDU541_01858",null,null,"Raw Adjusted MD","MW","Non-Coincident"]
["ED_MDU541_01859",null,null,null,null,"Coincident"]
["ED_MDU541_01860",null,null,"Raw Adjusted MD","MVA","Non-Coincident"]
["ED_MDU541_01861",null,null,null,null,"Coincident"]
["ED_MDU541_01862",null,null,"Date MD occurred",null,"Non-Coincident"]
["ED_MDU541_01863",null,null,null,null,"Coincident"]
["ED_MDU541_01864",null,null,"Half hour time period MD occurred",null,"Non-Coincident"]
["ED_MDU541_01865",null,null,null,null,"Coincident"]
["ED_MDU541_01866",null,null,"Winter/Summer Peaking",null,"Non-Coincident"]
["ED_MDU541_01867",null,null,null,null,"Coincident"]
["ED_MDU541_01868",null,null,"Adjustments - Embedded generation","MW","Non-Coincident"]
["ED_MDU541_01869",null,null,null,null,"Coincident"]
["ED_MDU541_01870",null,null,"Weather Corrected MD 10% POE","MW","Non-Coincident"]
["ED_MDU541_01871",null,null,null,null,"Coincident"]
["ED_MDU541_01872",null,null,"Weather Corrected MD 10% POE","MVA","Non-Coincident"]
["ED_MDU541_01873",null,null,null,null,"Coincident"]
["ED_MDU541_01874",null,null,"Weather Corrected MD 50% POE","MW","Non-Coincident"]
["ED_MDU541_01875",null,null,null,null,"Coincident"]
["ED_MDU541_01876",null,null,"Weather Corrected MD 50% POE","MVA","Non-Coincident"]
["ED_MDU541_01877",null,null,null,null,"Coincident"]
["ED_MDU541_01878",null,"<Enter substation name>","Substation Rating","MVA","Non-Coincident"]
["ED_MDU541_01879",null,null,null,null,"Coincident"]
["ED_MDU541_01880",null,null,"Raw Adjusted MD","MW","Non-Coincident"]
["ED_MDU541_01881",null,null,null,null,"Coincident"]
["ED_MDU541_01882",null,null,"Raw Adjusted MD","MVA","Non-Coincident"]
["ED_MDU541_01883",null,null,null,null,"Coincident"]
["ED_MDU541_01884",null,null,"Date MD occurred",null,"Non-Coincident"]
["ED_MDU541_01885",null,null,null,null,"Coincident"]
["ED_MDU541_01886",null,null,"Half hour time period MD occurred",null,"Non-Coincident"]
["ED_MDU541_01887",null,null,null,null,"Coincident"]
["ED_MDU541_01888",null,null,"Winter/Summer Peaking",null,"Non-Coincident"]
["ED_MDU541_01889",null,null,null,null,"Coincident"]
["ED_MDU541_01890",null,null,"Adjustments - Embedded generation","MW","Non-Coincident"]
["ED_MDU541_01891",null,null,null,null,"Coincident"]
["ED_MDU541_01892",null,null,"Weather Corrected MD 10% POE","MW","Non-Coincident"]
["ED_MDU541_01893",null,null,null,null,"Coincident"]
["ED_MDU541_01894",null,null,"Weather Corrected MD 10% POE","MVA","Non-Coincident"]
["ED_MDU541_01895",null,null,null,null,"Coincident"]
["ED_MDU541_01896",null,null,"Weather Corrected MD 50% POE","MW","Non-Coincident"]
["ED_MDU541_01897",null,null,null,null,"Coincident"]
["ED_MDU541_01898",null,null,"Weather Corrected MD 50% POE","MVA","Non-Coincident"]
["ED_MDU541_01899",null,null,null,null,"Coincident"]
["ED_MDU541_01900",null,"<Enter substation name>","Substation Rating","MVA","Non-Coincident"]
["ED_MDU541_01901",null,null,null,null,"Coincident"]
["ED_MDU541_01902",null,null,"Raw Adjusted MD","MW","Non-Coincident"]
["ED_MDU541_01903",null,null,null,null,"Coincident"]
["ED_MDU541_01904",null,null,"Raw Adjusted MD","MVA","Non-Coincident"]
["ED_MDU541_01905",null,null,null,null,"Coincident"]
["ED_MDU541_01906",null,null,"Date MD occurred",null,"Non-Coincident"]
["ED_MDU541_01907",null,null,null,null,"Coincident"]
["ED_MDU541_01908",null,null,"Half hour time period MD occurred",null,"Non-Coincident"]
["ED_MDU541_01909",null,null,null,null,"Coincident"]
["ED_MDU541_01910",null,null,"Winter/Summer Peaking",null,"Non-Coincident"]
["ED_MDU541_01911",null,null,null,null,"Coincident"]
["ED_MDU541_01912",null,null,"Adjustments - Embedded generation","MW","Non-Coincident"]
["ED_MDU541_01913",null,null,null,null,"Coincident"]
["ED_MDU541_01914",null,null,"Weather Corrected MD 10% POE","MW","Non-Coincident"]
["ED_MDU541_01915",null,null,null,null,"Coincident"]
["ED_MDU541_01916",null,null,"Weather Corrected MD 10% POE","MVA","Non-Coincident"]
["ED_MDU541_01917",null,null,null,null,"Coincident"]
["ED_MDU541_01918",null,null,"Weather Corrected MD 50% POE","MW","Non-Coincident"]
["ED_MDU541_01919",null,null,null,null,"Coincident"]
["ED_MDU541_01920",null,null,"Weather Corrected MD 50% POE","MVA","Non-Coincident"]
["ED_MDU541_01921",null,null,null,null,"Coincident"]
["ED_MDU541_01922",null,"<Enter substation name>","Substation Rating","MVA","Non-Coincident"]
["ED_MDU541_01923",null,null,null,null,"Coincident"]
["ED_MDU541_01924",null,null,"Raw Adjusted MD","MW","Non-Coincident"]
["ED_MDU541_01925",null,null,null,null,"Coincident"]
["ED_MDU541_01926",null,null,"Raw Adjusted MD","MVA","Non-Coincident"]
["ED_MDU541_01927",null,null,null,null,"Coincident"]
["ED_MDU541_01928",null,null,"Date MD occurred",null,"Non-Coincident"]
["ED_MDU541_01929",null,null,null,null,"Coincident"]
["ED_MDU541_01930",null,null,"Half hour time period MD occurred",null,"Non-Coincident"]
["ED_MDU541_01931",null,null,null,null,"Coincident"]
["ED_MDU541_01932",null,null,"Winter/Summer Peaking",null,"Non-Coincident"]
["ED_MDU541_01933",null,null,null,null,"Coincident"]
["ED_MDU541_01934",null,null,"Adjustments - Embedded generation","MW","Non-Coincident"]
["ED_MDU541_01935",null,null,null,null,"Coincident"]
["ED_MDU541_01936",null,null,"Weather Corrected MD 10% POE","MW","Non-Coincident"]
["ED_MDU541_01937",null,null,null,null,"Coincident"]
["ED_MDU541_01938",null,null,"Weather Corrected MD 10% POE","MVA","Non-Coincident"]
["ED_MDU541_01939",null,null,null,null,"Coincident"]
["ED_MDU541_01940",null,null,"Weather Corrected MD 50% POE","MW","Non-Coincident"]
["ED_MDU541_01941",null,null,null,null,"Coincident"]
["ED_MDU541_01942",null,null,"Weather Corrected MD 50% POE","MVA","Non-Coincident"]
["ED_MDU541_01943",null,null,null,null,"Coincident"]
["ED_MDU541_01944",null,"<Enter substation name>","Substation Rating","MVA","Non-Coincident"]
["ED_MDU541_01945",null,null,null,null,"Coincident"]
["ED_MDU541_01946",null,null,"Raw Adjusted MD","MW","Non-Coincident"]
["ED_MDU541_01947",null,null,null,null,"Coincident"]
["ED_MDU541_01948",null,null,"Raw Adjusted MD","MVA","Non-Coincident"]
["ED_MDU541_01949",null,null,null,null,"Coincident"]
["ED_MDU541_01950",null,null,"Date MD occurred",null,"Non-Coincident"]
["ED_MDU541_01951",null,null,null,null,"Coincident"]
["ED_MDU541_01952",null,null,"Half hour time period MD occurred",null,"Non-Coincident"]
["ED_MDU541_01953",null,null,null,null,"Coincident"]
["ED_MDU541_01954",null,null,"Winter/Summer Peaking",null,"Non-Coincident"]
["ED_MDU541_01955",null,null,null,null,"Coincident"]
["ED_MDU541_01956",null,null,"Adjustments - Embedded generation","MW","Non-Coincident"]
["ED_MDU541_01957",null,null,null,null,"Coincident"]
["ED_MDU541_01958",null,null,"Weather Corrected MD 10% POE","MW","Non-Coincident"]
["ED_MDU541_01959",null,null,null,null,"Coincident"]
["ED_MDU541_01960",null,null,"Weather Corrected MD 10% POE","MVA","Non-Coincident"]
["ED_MDU541_01961",null,null,null,null,"Coincident"]
["ED_MDU541_01962",null,null,"Weather Corrected MD 50% POE","MW","Non-Coincident"]
["ED_MDU541_01963",null,null,null,null,"Coincident"]
["ED_MDU541_01964",null,null,"Weather Corrected MD 50% POE","MVA","Non-Coincident"]
["ED_MDU541_01965",null,null,null,null,"Coincident"]
["ED_MDU541_01966",null,"<Enter substation name>","Substation Rating","MVA","Non-Coincident"]
["ED_MDU541_01967",null,null,null,null,"Coincident"]
["ED_MDU541_01968",null,null,"Raw Adjusted MD","MW","Non-Coincident"]
["ED_MDU541_01969",null,null,null,null,"Coincident"]
["ED_MDU541_01970",null,null,"Raw Adjusted MD","MVA","Non-Coincident"]
["ED_MDU541_01971",null,null,null,null,"Coincident"]
["ED_MDU541_01972",null,null,"Date MD occurred",null,"Non-Coincident"]
["ED_MDU541_01973",null,null,null,null,"Coincident"]
["ED_MDU541_01974",null,null,"Half hour time period MD occurred",null,"Non-Coincident"]
["ED_MDU541_01975",null,null,null,null,"Coincident"]
["ED_MDU541_01976",null,null,"Winter/Summer Peaking",null,"Non-Coincident"]
["ED_MDU541_01977",null,null,null,null,"Coincident"]
["ED_MDU541_01978",null,null,"Adjustments - Embedded generation","MW","Non-Coincident"]
["ED_MDU541_01979",null,null,null,null,"Coincident"]
["ED_MDU541_01980",null,null,"Weather Corrected MD 10% POE","MW","Non-Coincident"]
["ED_MDU541_01981",null,null,null,null,"Coincident"]
["ED_MDU541_01982",null,null,"Weather Corrected MD 10% POE","MVA","Non-Coincident"]
["ED_MDU541_01983",null,null,null,null,"Coincident"]
["ED_MDU541_01984",null,null,"Weather Corrected MD 50% POE","MW","Non-Coincident"]
["ED_MDU541_01985",null,null,null,null,"Coincident"]
["ED_MDU541_01986",null,null,"Weather Corrected MD 50% POE","MVA","Non-Coincident"]
["ED_MDU541_01987",null,null,null,null,"Coincident"]
["ED_MDU541_01988",null,"<Enter substation name>","Substation Rating","MVA","Non-Coincident"]
["ED_MDU541_01989",null,null,null,null,"Coincident"]
["ED_MDU541_01990",null,null,"Raw Adjusted MD","MW","Non-Coincident"]
["ED_MDU541_01991",null,null,null,null,"Coincident"]
["ED_MDU541_01992",null,null,"Raw Adjusted MD","MVA","Non-Coincident"]
["ED_MDU541_01993",null,null,null,null,"Coincident"]
["ED_MDU541_01994",null,null,"Date MD occurred",null,"Non-Coincident"]
["ED_MDU541_01995",null,null,null,null,"Coincident"]
["ED_MDU541_01996",null,null,"Half hour time period MD occurred",null,"Non-Coincident"]
["ED_MDU541_01997",null,null,null,null,"Coincident"]
["ED_MDU541_01998",null,null,"Winter/Summer Peaking",null,"Non-Coincident"]
["ED_MDU541_01999",null,null,null,null,"Coincident"]
["ED_MDU541_02000",null,null,"Adjustments - Embedded generation","MW","Non-Coincident"]
["ED_MDU541_02001",null,null,null,null,"Coincident"]
["ED_MDU541_02002",null,null,"Weather Corrected MD 10% POE","MW","Non-Coincident"]
["ED_MDU541_02003",null,null,null,null,"Coincident"]
["ED_MDU541_02004",null,null,"Weather Corrected MD 10% POE","MVA","Non-Coincident"]
["ED_MDU541_02005",null,null,null,null,"Coincident"]
["ED_MDU541_02006",null,null,"Weather Corrected MD 50% POE","MW","Non-Coincident"]
["ED_MDU541_02007",null,null,null,null,"Coincident"]
["ED_MDU541_02008",null,null,"Weather Corrected MD 50% POE","MVA","Non-Coincident"]
["ED_MDU541_02009",null,null,null,null,"Coincident"]
["ED_MDU541_02010",null,"<Enter substation name>","Substation Rating","MVA","Non-Coincident"]
["ED_MDU541_02011",null,null,null,null,"Coincident"]
["ED_MDU541_02012",null,null,"Raw Adjusted MD","MW","Non-Coincident"]
["ED_MDU541_02013",null,null,null,null,"Coincident"]
["ED_MDU541_02014",null,null,"Raw Adjusted MD","MVA","Non-Coincident"]
["ED_MDU541_02015",null,null,null,null,"Coincident"]
["ED_MDU541_02016",null,null,"Date MD occurred",null,"Non-Coincident"]
["ED_MDU541_02017",null,null,null,null,"Coincident"]
["ED_MDU541_02018",null,null,"Half hour time period MD occurred",null,"Non-Coincident"]
["ED_MDU541_02019",null,null,null,null,"Coincident"]
["ED_MDU541_02020",null,null,"Winter/Summer Peaking",null,"Non-Coincident"]
["ED_MDU541_02021",null,null,null,null,"Coincident"]
["ED_MDU541_02022",null,null,"Adjustments - Embedded generation","MW","Non-Coincident"]
["ED_MDU541_02023",null,null,null,null,"Coincident"]
["ED_MDU541_02024",null,null,"Weather Corrected MD 10% POE","MW","Non-Coincident"]
["ED_MDU541_02025",null,null,null,null,"Coincident"]
["ED_MDU541_02026",null,null,"Weather Corrected MD 10% POE","MVA","Non-Coincident"]
["ED_MDU541_02027",null,null,null,null,"Coincident"]
["ED_MDU541_02028",null,null,"Weather Corrected MD 50% POE","MW","Non-Coincident"]
["ED_MDU541_02029",null,null,null,null,"Coincident"]
["ED_MDU541_02030",null,null,"Weather Corrected MD 50% POE","MVA","Non-Coincident"]
["ED_MDU541_02031",null,null,null,null,"Coincident"]
["ED_MDU541_02032",null,"<Enter substation name>","Substation Rating","MVA","Non-Coincident"]
["ED_MDU541_02033",null,null,null,null,"Coincident"]
["ED_MDU541_02034",null,null,"Raw Adjusted MD","MW","Non-Coincident"]
["ED_MDU541_02035",null,null,null,null,"Coincident"]
["ED_MDU541_02036",null,null,"Raw Adjusted MD","MVA","Non-Coincident"]
["ED_MDU541_02037",null,null,null,null,"Coincident"]
["ED_MDU541_02038",null,null,"Date MD occurred",null,"Non-Coincident"]
["ED_MDU541_02039",null,null,null,null,"Coincident"]
["ED_MDU541_02040",null,null,"Half hour time period MD occurred",null,"Non-Coincident"]
["ED_MDU541_02041",null,null,null,null,"Coincident"]
["ED_MDU541_02042",null,null,"Winter/Summer Peaking",null,"Non-Coincident"]
["ED_MDU541_02043",null,null,null,null,"Coincident"]
["ED_MDU541_02044",null,null,"Adjustments - Embedded generation","MW","Non-Coincident"]
["ED_MDU541_02045",null,null,null,null,"Coincident"]
["ED_MDU541_02046",null,null,"Weather Corrected MD 10% POE","MW","Non-Coincident"]
["ED_MDU541_02047",null,null,null,null,"Coincident"]
["ED_MDU541_02048",null,null,"Weather Corrected MD 10% POE","MVA","Non-Coincident"]
["ED_MDU541_02049",null,null,null,null,"Coincident"]
["ED_MDU541_02050",null,null,"Weather Corrected MD 50% POE","MW","Non-Coincident"]
["ED_MDU541_02051",null,null,null,null,"Coincident"]
["ED_MDU541_02052",null,null,"Weather Corrected MD 50% POE","MVA","Non-Coincident"]
["ED_MDU541_02053",null,null,null,null,"Coincident"]
["ED_MDU541_02054",null,"<Enter substation name>","Substation Rating","MVA","Non-Coincident"]
["ED_MDU541_02055",null,null,null,null,"Coincident"]
["ED_MDU541_02056",null,null,"Raw Adjusted MD","MW","Non-Coincident"]
["ED_MDU541_02057",null,null,null,null,"Coincident"]
["ED_MDU541_02058",null,null,"Raw Adjusted MD","MVA","Non-Coincident"]
["ED_MDU541_02059",null,null,null,null,"Coincident"]
["ED_MDU541_02060",null,null,"Date MD occurred",null,"Non-Coincident"]
["ED_MDU541_02061",null,null,null,null,"Coincident"]
["ED_MDU541_02062",null,null,"Half hour time period MD occurred",null,"Non-Coincident"]
["ED_MDU541_02063",null,null,null,null,"Coincident"]
["ED_MDU541_02064",null,null,"Winter/Summer Peaking",null,"Non-Coincident"]
["ED_MDU541_02065",null,null,null,null,"Coincident"]
["ED_MDU541_02066",null,null,"Adjustments - Embedded generation","MW","Non-Coincident"]
["ED_MDU541_02067",null,null,null,null,"Coincident"]
["ED_MDU541_02068",null,null,"Weather Corrected MD 10% POE","MW","Non-Coincident"]
["ED_MDU541_02069",null,null,null,null,"Coincident"]
["ED_MDU541_02070",null,null,"Weather Corrected MD 10% POE","MVA","Non-Coincident"]
["ED_MDU541_02071",null,null,null,null,"Coincident"]
["ED_MDU541_02072",null,null,"Weather Corrected MD 50% POE","MW","Non-Coincident"]
["ED_MDU541_02073",null,null,null,null,"Coincident"]
["ED_MDU541_02074",null,null,"Weather Corrected MD 50% POE","MVA","Non-Coincident"]
["ED_MDU541_02075",null,null,null,null,"Coincident"]
["ED_MDU541_02076",null,"<Enter substation name>","Substation Rating","MVA","Non-Coincident"]
["ED_MDU541_02077",null,null,null,null,"Coincident"]
["ED_MDU541_02078",null,null,"Raw Adjusted MD","MW","Non-Coincident"]
["ED_MDU541_02079",null,null,null,null,"Coincident"]
["ED_MDU541_02080",null,null,"Raw Adjusted MD","MVA","Non-Coincident"]
["ED_MDU541_02081",null,null,null,null,"Coincident"]
["ED_MDU541_02082",null,null,"Date MD occurred",null,"Non-Coincident"]
["ED_MDU541_02083",null,null,null,null,"Coincident"]
["ED_MDU541_02084",null,null,"Half hour time period MD occurred",null,"Non-Coincident"]
["ED_MDU541_02085",null,null,null,null,"Coincident"]
["ED_MDU541_02086",null,null,"Winter/Summer Peaking",null,"Non-Coincident"]
["ED_MDU541_02087",null,null,null,null,"Coincident"]
["ED_MDU541_02088",null,null,"Adjustments - Embedded generation","MW","Non-Coincident"]
["ED_MDU541_02089",null,null,null,null,"Coincident"]
["ED_MDU541_02090",null,null,"Weather Corrected MD 10% POE","MW","Non-Coincident"]
["ED_MDU541_02091",null,null,null,null,"Coincident"]
["ED_MDU541_02092",null,null,"Weather Corrected MD 10% POE","MVA","Non-Coincident"]
["ED_MDU541_02093",null,null,null,null,"Coincident"]
["ED_MDU541_02094",null,null,"Weather Corrected MD 50% POE","MW","Non-Coincident"]
["ED_MDU541_02095",null,null,null,null,"Coincident"]
["ED_MDU541_02096",null,null,"Weather Corrected MD 50% POE","MVA","Non-Coincident"]
["ED_MDU541_02097",null,null,null,null,"Coincident"]
["ED_MDU541_02098",null,"<Enter substation name>","Substation Rating","MVA","Non-Coincident"]
["ED_MDU541_02099",null,null,null,null,"Coincident"]
["ED_MDU541_02100",null,null,"Raw Adjusted MD","MW","Non-Coincident"]
["ED_MDU541_02101",null,null,null,null,"Coincident"]
["ED_MDU541_02102",null,null,"Raw Adjusted MD","MVA","Non-Coincident"]
["ED_MDU541_02103",null,null,null,null,"Coincident"]
["ED_MDU541_02104",null,null,"Date MD occurred",null,"Non-Coincident"]
["ED_MDU541_02105",null,null,null,null,"Coincident"]
["ED_MDU541_02106",null,null,"Half hour time period MD occurred",null,"Non-Coincident"]
["ED_MDU541_02107",null,null,null,null,"Coincident"]
["ED_MDU541_02108",null,null,"Winter/Summer Peaking",null,"Non-Coincident"]
["ED_MDU541_02109",null,null,null,null,"Coincident"]
["ED_MDU541_02110",null,null,"Adjustments - Embedded generation","MW","Non-Coincident"]
["ED_MDU541_02111",null,null,null,null,"Coincident"]
["ED_MDU541_02112",null,null,"Weather Corrected MD 10% POE","MW","Non-Coincident"]
["ED_MDU541_02113",null,null,null,null,"Coincident"]
["ED_MDU541_02114",null,null,"Weather Corrected MD 10% POE","MVA","Non-Coincident"]
["ED_MDU541_02115",null,null,null,null,"Coincident"]
["ED_MDU541_02116",null,null,"Weather Corrected MD 50% POE","MW","Non-Coincident"]
["ED_MDU541_02117",null,null,null,null,"Coincident"]
["ED_MDU541_02118",null,null,"Weather Corrected MD 50% POE","MVA","Non-Coincident"]
["ED_MDU541_02119",null,null,null,null,"Coincident"]
["ED_MDU541_02120",null,"<Enter substation name>","Substation Rating","MVA","Non-Coincident"]
["ED_MDU541_02121",null,null,null,null,"Coincident"]
["ED_MDU541_02122",null,null,"Raw Adjusted MD","MW","Non-Coincident"]
["ED_MDU541_02123",null,null,null,null,"Coincident"]
["ED_MDU541_02124",null,null,"Raw Adjusted MD","MVA","Non-Coincident"]
["ED_MDU541_02125",null,null,null,null,"Coincident"]
["ED_MDU541_02126",null,null,"Date MD occurred",null,"Non-Coincident"]
["ED_MDU541_02127",null,null,null,null,"Coincident"]
["ED_MDU541_02128",null,null,"Half hour time period MD occurred",null,"Non-Coincident"]
["ED_MDU541_02129",null,null,null,null,"Coincident"]
["ED_MDU541_02130",null,null,"Winter/Summer Peaking",null,"Non-Coincident"]
["ED_MDU541_02131",null,null,null,null,"Coincident"]
["ED_MDU541_02132",null,null,"Adjustments - Embedded generation","MW","Non-Coincident"]
["ED_MDU541_02133",null,null,null,null,"Coincident"]
["ED_MDU541_02134",null,null,"Weather Corrected MD 10% POE","MW","Non-Coincident"]
["ED_MDU541_02135",null,null,null,null,"Coincident"]
["ED_MDU541_02136",null,null,"Weather Corrected MD 10% POE","MVA","Non-Coincident"]
["ED_MDU541_02137",null,null,null,null,"Coincident"]
["ED_MDU541_02138",null,null,"Weather Corrected MD 50% POE","MW","Non-Coincident"]
["ED_MDU541_02139",null,null,null,null,"Coincident"]
["ED_MDU541_02140",null,null,"Weather Corrected MD 50% POE","MVA","Non-Coincident"]
["ED_MDU541_02141",null,null,null,null,"Coincident"]
["ED_MDU541_02142",null,"<Enter substation name>","Substation Rating","MVA","Non-Coincident"]
["ED_MDU541_02143",null,null,null,null,"Coincident"]
["ED_MDU541_02144",null,null,"Raw Adjusted MD","MW","Non-Coincident"]
["ED_MDU541_02145",null,null,null,null,"Coincident"]
["ED_MDU541_02146",null,null,"Raw Adjusted MD","MVA","Non-Coincident"]
["ED_MDU541_02147",null,null,null,null,"Coincident"]
["ED_MDU541_02148",null,null,"Date MD occurred",null,"Non-Coincident"]
["ED_MDU541_02149",null,null,null,null,"Coincident"]
["ED_MDU541_02150",null,null,"Half hour time period MD occurred",null,"Non-Coincident"]
["ED_MDU541_02151",null,null,null,null,"Coincident"]
["ED_MDU541_02152",null,null,"Winter/Summer Peaking",null,"Non-Coincident"]
["ED_MDU541_02153",null,null,null,null,"Coincident"]
["ED_MDU541_02154",null,null,"Adjustments - Embedded generation","MW","Non-Coincident"]
["ED_MDU541_02155",null,null,null,null,"Coincident"]
["ED_MDU541_02156",null,null,"Weather Corrected MD 10% POE","MW","Non-Coincident"]
["ED_MDU541_02157",null,null,null,null,"Coincident"]
["ED_MDU541_02158",null,null,"Weather Corrected MD 10% POE","MVA","Non-Coincident"]
["ED_MDU541_02159",null,null,null,null,"Coincident"]
["ED_MDU541_02160",null,null,"Weather Corrected MD 50% POE","MW","Non-Coincident"]
["ED_MDU541_02161",null,null,null,null,"Coincident"]
["ED_MDU541_02162",null,null,"Weather Corrected MD 50% POE","MVA","Non-Coincident"]
["ED_MDU541_02163",null,null,null,null,"Coincident"]
["ED_MDU541_02164",null,"<Enter substation name>","Substation Rating","MVA","Non-Coincident"]
["ED_MDU541_02165",null,null,null,null,"Coincident"]
["ED_MDU541_02166",null,null,"Raw Adjusted MD","MW","Non-Coincident"]
["ED_MDU541_02167",null,null,null,null,"Coincident"]
["ED_MDU541_02168",null,null,"Raw Adjusted MD","MVA","Non-Coincident"]
["ED_MDU541_02169",null,null,null,null,"Coincident"]
["ED_MDU541_02170",null,null,"Date MD occurred",null,"Non-Coincident"]
["ED_MDU541_02171",null,null,null,null,"Coincident"]
["ED_MDU541_02172",null,null,"Half hour time period MD occurred",null,"Non-Coincident"]
["ED_MDU541_02173",null,null,null,null,"Coincident"]
["ED_MDU541_02174",null,null,"Winter/Summer Peaking",null,"Non-Coincident"]
["ED_MDU541_02175",null,null,null,null,"Coincident"]
["ED_MDU541_02176",null,null,"Adjustments - Embedded generation","MW","Non-Coincident"]
["ED_MDU541_02177",null,null,null,null,"Coincident"]
["ED_MDU541_02178",null,null,"Weather Corrected MD 10% POE","MW","Non-Coincident"]
["ED_MDU541_02179",null,null,null,null,"Coincident"]
["ED_MDU541_02180",null,null,"Weather Corrected MD 10% POE","MVA","Non-Coincident"]
["ED_MDU541_02181",null,null,null,null,"Coincident"]
["ED_MDU541_02182",null,null,"Weather Corrected MD 50% POE","MW","Non-Coincident"]
["ED_MDU541_02183",null,null,null,null,"Coincident"]
["ED_MDU541_02184",null,null,"Weather Corrected MD 50% POE","MVA","Non-Coincident"]
["ED_MDU541_02185",null,null,null,null,"Coincident"]
["ED_MDU541_02186",null,"<Enter substation name>","Substation Rating","MVA","Non-Coincident"]
["ED_MDU541_02187",null,null,null,null,"Coincident"]
["ED_MDU541_02188",null,null,"Raw Adjusted MD","MW","Non-Coincident"]
["ED_MDU541_02189",null,null,null,null,"Coincident"]
["ED_MDU541_02190",null,null,"Raw Adjusted MD","MVA","Non-Coincident"]
["ED_MDU541_02191",null,null,null,null,"Coincident"]
["ED_MDU541_02192",null,null,"Date MD occurred",null,"Non-Coincident"]
["ED_MDU541_02193",null,null,null,null,"Coincident"]
["ED_MDU541_02194",null,null,"Half hour time period MD occurred",null,"Non-Coincident"]
["ED_MDU541_02195",null,null,null,null,"Coincident"]
["ED_MDU541_02196",null,null,"Winter/Summer Peaking",null,"Non-Coincident"]
["ED_MDU541_02197",null,null,null,null,"Coincident"]
["ED_MDU541_02198",null,null,"Adjustments - Embedded generation","MW","Non-Coincident"]
["ED_MDU541_02199",null,null,null,null,"Coincident"]
["ED_MDU541_02200",null,null,"Weather Corrected MD 10% POE","MW","Non-Coincident"]
["ED_MDU541_02201",null,null,null,null,"Coincident"]
["ED_MDU541_02202",null,null,"Weather Corrected MD 10% POE","MVA","Non-Coincident"]
["ED_MDU541_02203",null,null,null,null,"Coincident"]
["ED_MDU541_02204",null,null,"Weather Corrected MD 50% POE","MW","Non-Coincident"]
["ED_MDU541_02205",null,null,null,null,"Coincident"]
["ED_MDU541_02206",null,null,"Weather Corrected MD 50% POE","MVA","Non-Coincident"]
["ED_MDU541_02207",null,null,null,null,"Coincident"]
["ED_MDU541_02208",null,"<Enter substation name>","Substation Rating","MVA","Non-Coincident"]
["ED_MDU541_02209",null,null,null,null,"Coincident"]
["ED_MDU541_02210",null,null,"Raw Adjusted MD","MW","Non-Coincident"]
["ED_MDU541_02211",null,null,null,null,"Coincident"]
["ED_MDU541_02212",null,null,"Raw Adjusted MD","MVA","Non-Coincident"]
["ED_MDU541_02213",null,null,null,null,"Coincident"]
["ED_MDU541_02214",null,null,"Date MD occurred",null,"Non-Coincident"]
["ED_MDU541_02215",null,null,null,null,"Coincident"]
["ED_MDU541_02216",null,null,"Half hour time period MD occurred",null,"Non-Coincident"]
["ED_MDU541_02217",null,null,null,null,"Coincident"]
["ED_MDU541_02218",null,null,"Winter/Summer Peaking",null,"Non-Coincident"]
["ED_MDU541_02219",null,null,null,null,"Coincident"]
["ED_MDU541_02220",null,null,"Adjustments - Embedded generation","MW","Non-Coincident"]
["ED_MDU541_02221",null,null,null,null,"Coincident"]
["ED_MDU541_02222",null,null,"Weather Corrected MD 10% POE","MW","Non-Coincident"]
["ED_MDU541_02223",null,null,null,null,"Coincident"]
["ED_MDU541_02224",null,null,"Weather Corrected MD 10% POE","MVA","Non-Coincident"]
["ED_MDU541_02225",null,null,null,null,"Coincident"]
["ED_MDU541_02226",null,null,"Weather Corrected MD 50% POE","MW","Non-Coincident"]
["ED_MDU541_02227",null,null,null,null,"Coincident"]
["ED_MDU541_02228",null,null,"Weather Corrected MD 50% POE","MVA","Non-Coincident"]
["ED_MDU541_02229",null,null,null,null,"Coincident"]
["ED_MDU541_02230",null,"<Enter substation name>","Substation Rating","MVA","Non-Coincident"]
["ED_MDU541_02231",null,null,null,null,"Coincident"]
["ED_MDU541_02232",null,null,"Raw Adjusted MD","MW","Non-Coincident"]
["ED_MDU541_02233",null,null,null,null,"Coincident"]
["ED_MDU541_02234",null,null,"Raw Adjusted MD","MVA","Non-Coincident"]
["ED_MDU541_02235",null,null,null,null,"Coincident"]
["ED_MDU541_02236",null,null,"Date MD occurred",null,"Non-Coincident"]
["ED_MDU541_02237",null,null,null,null,"Coincident"]
["ED_MDU541_02238",null,null,"Half hour time period MD occurred",null,"Non-Coincident"]
["ED_MDU541_02239",null,null,null,null,"Coincident"]
["ED_MDU541_02240",null,null,"Winter/Summer Peaking",null,"Non-Coincident"]
["ED_MDU541_02241",null,null,null,null,"Coincident"]
["ED_MDU541_02242",null,null,"Adjustments - Embedded generation","MW","Non-Coincident"]
["ED_MDU541_02243",null,null,null,null,"Coincident"]
["ED_MDU541_02244",null,null,"Weather Corrected MD 10% POE","MW","Non-Coincident"]
["ED_MDU541_02245",null,null,null,null,"Coincident"]
["ED_MDU541_02246",null,null,"Weather Corrected MD 10% POE","MVA","Non-Coincident"]
["ED_MDU541_02247",null,null,null,null,"Coincident"]
["ED_MDU541_02248",null,null,"Weather Corrected MD 50% POE","MW","Non-Coincident"]
["ED_MDU541_02249",null,null,null,null,"Coincident"]
["ED_MDU541_02250",null,null,"Weather Corrected MD 50% POE","MVA","Non-Coincident"]
["ED_MDU541_02251",null,null,null,null,"Coincident"]
["ED_MDU541_02252",null,"<Enter substation name>","Substation Rating","MVA","Non-Coincident"]
["ED_MDU541_02253",null,null,null,null,"Coincident"]
["ED_MDU541_02254",null,null,"Raw Adjusted MD","MW","Non-Coincident"]
["ED_MDU541_02255",null,null,null,null,"Coincident"]
["ED_MDU541_02256",null,null,"Raw Adjusted MD","MVA","Non-Coincident"]
["ED_MDU541_02257",null,null,null,null,"Coincident"]
["ED_MDU541_02258",null,null,"Date MD occurred",null,"Non-Coincident"]
["ED_MDU541_02259",null,null,null,null,"Coincident"]
["ED_MDU541_02260",null,null,"Half hour time period MD occurred",null,"Non-Coincident"]
["ED_MDU541_02261",null,null,null,null,"Coincident"]
["ED_MDU541_02262",null,null,"Winter/Summer Peaking",null,"Non-Coincident"]
["ED_MDU541_02263",null,null,null,null,"Coincident"]
["ED_MDU541_02264",null,null,"Adjustments - Embedded generation","MW","Non-Coincident"]
["ED_MDU541_02265",null,null,null,null,"Coincident"]
["ED_MDU541_02266",null,null,"Weather Corrected MD 10% POE","MW","Non-Coincident"]
["ED_MDU541_02267",null,null,null,null,"Coincident"]
["ED_MDU541_02268",null,null,"Weather Corrected MD 10% POE","MVA","Non-Coincident"]
["ED_MDU541_02269",null,null,null,null,"Coincident"]
["ED_MDU541_02270",null,null,"Weather Corrected MD 50% POE","MW","Non-Coincident"]
["ED_MDU541_02271",null,null,null,null,"Coincident"]
["ED_MDU541_02272",null,null,"Weather Corrected MD 50% POE","MVA","Non-Coincident"]
["ED_MDU541_02273",null,null,null,null,"Coincident"]
["ED_MDU541_02274",null,"<Enter substation name>","Substation Rating","MVA","Non-Coincident"]
["ED_MDU541_02275",null,null,null,null,"Coincident"]
["ED_MDU541_02276",null,null,"Raw Adjusted MD","MW","Non-Coincident"]
["ED_MDU541_02277",null,null,null,null,"Coincident"]
["ED_MDU541_02278",null,null,"Raw Adjusted MD","MVA","Non-Coincident"]
["ED_MDU541_02279",null,null,null,null,"Coincident"]
["ED_MDU541_02280",null,null,"Date MD occurred",null,"Non-Coincident"]
["ED_MDU541_02281",null,null,null,null,"Coincident"]
["ED_MDU541_02282",null,null,"Half hour time period MD occurred",null,"Non-Coincident"]
["ED_MDU541_02283",null,null,null,null,"Coincident"]
["ED_MDU541_02284",null,null,"Winter/Summer Peaking",null,"Non-Coincident"]
["ED_MDU541_02285",null,null,null,null,"Coincident"]
["ED_MDU541_02286",null,null,"Adjustments - Embedded generation","MW","Non-Coincident"]
["ED_MDU541_02287",null,null,null,null,"Coincident"]
["ED_MDU541_02288",null,null,"Weather Corrected MD 10% POE","MW","Non-Coincident"]
["ED_MDU541_02289",null,null,null,null,"Coincident"]
["ED_MDU541_02290",null,null,"Weather Corrected MD 10% POE","MVA","Non-Coincident"]
["ED_MDU541_02291",null,null,null,null,"Coincident"]
["ED_MDU541_02292",null,null,"Weather Corrected MD 50% POE","MW","Non-Coincident"]
["ED_MDU541_02293",null,null,null,null,"Coincident"]
["ED_MDU541_02294",null,null,"Weather Corrected MD 50% POE","MVA","Non-Coincident"]
["ED_MDU541_02295",null,null,null,null,"Coincident"]
["ED_MDU541_02296",null,"<Enter substation name>","Substation Rating","MVA","Non-Coincident"]
["ED_MDU541_02297",null,null,null,null,"Coincident"]
["ED_MDU541_02298",null,null,"Raw Adjusted MD","MW","Non-Coincident"]
["ED_MDU541_02299",null,null,null,null,"Coincident"]
["ED_MDU541_02300",null,null,"Raw Adjusted MD","MVA","Non-Coincident"]
["ED_MDU541_02301",null,null,null,null,"Coincident"]
["ED_MDU541_02302",null,null,"Date MD occurred",null,"Non-Coincident"]
["ED_MDU541_02303",null,null,null,null,"Coincident"]
["ED_MDU541_02304",null,null,"Half hour time period MD occurred",null,"Non-Coincident"]
["ED_MDU541_02305",null,null,null,null,"Coincident"]
["ED_MDU541_02306",null,null,"Winter/Summer Peaking",null,"Non-Coincident"]
["ED_MDU541_02307",null,null,null,null,"Coincident"]
["ED_MDU541_02308",null,null,"Adjustments - Embedded generation","MW","Non-Coincident"]
["ED_MDU541_02309",null,null,null,null,"Coincident"]
["ED_MDU541_02310",null,null,"Weather Corrected MD 10% POE","MW","Non-Coincident"]
["ED_MDU541_02311",null,null,null,null,"Coincident"]
["ED_MDU541_02312",null,null,"Weather Corrected MD 10% POE","MVA","Non-Coincident"]
["ED_MDU541_02313",null,null,null,null,"Coincident"]
["ED_MDU541_02314",null,null,"Weather Corrected MD 50% POE","MW","Non-Coincident"]
["ED_MDU541_02315",null,null,null,null,"Coincident"]
["ED_MDU541_02316",null,null,"Weather Corrected MD 50% POE","MVA","Non-Coincident"]
["ED_MDU541_02317",null,null,null,null,"Coincident"]
["ED_MDU541_02318",null,"<Enter substation name>","Substation Rating","MVA","Non-Coincident"]
["ED_MDU541_02319",null,null,null,null,"Coincident"]
["ED_MDU541_02320",null,null,"Raw Adjusted MD","MW","Non-Coincident"]
["ED_MDU541_02321",null,null,null,null,"Coincident"]
["ED_MDU541_02322",null,null,"Raw Adjusted MD","MVA","Non-Coincident"]
["ED_MDU541_02323",null,null,null,null,"Coincident"]
["ED_MDU541_02324",null,null,"Date MD occurred",null,"Non-Coincident"]
["ED_MDU541_02325",null,null,null,null,"Coincident"]
["ED_MDU541_02326",null,null,"Half hour time period MD occurred",null,"Non-Coincident"]
["ED_MDU541_02327",null,null,null,null,"Coincident"]
["ED_MDU541_02328",null,null,"Winter/Summer Peaking",null,"Non-Coincident"]
["ED_MDU541_02329",null,null,null,null,"Coincident"]
["ED_MDU541_02330",null,null,"Adjustments - Embedded generation","MW","Non-Coincident"]
["ED_MDU541_02331",null,null,null,null,"Coincident"]
["ED_MDU541_02332",null,null,"Weather Corrected MD 10% POE","MW","Non-Coincident"]
["ED_MDU541_02333",null,null,null,null,"Coincident"]
["ED_MDU541_02334",null,null,"Weather Corrected MD 10% POE","MVA","Non-Coincident"]
["ED_MDU541_02335",null,null,null,null,"Coincident"]
["ED_MDU541_02336",null,null,"Weather Corrected MD 50% POE","MW","Non-Coincident"]
["ED_MDU541_02337",null,null,null,null,"Coincident"]
["ED_MDU541_02338",null,null,"Weather Corrected MD 50% POE","MVA","Non-Coincident"]
["ED_MDU541_02339",null,null,null,null,"Coincident"]
["ED_MDU541_02340",null,"<Enter substation name>","Substation Rating","MVA","Non-Coincident"]
["ED_MDU541_02341",null,null,null,null,"Coincident"]
["ED_MDU541_02342",null,null,"Raw Adjusted MD","MW","Non-Coincident"]
["ED_MDU541_02343",null,null,null,null,"Coincident"]
["ED_MDU541_02344",null,null,"Raw Adjusted MD","MVA","Non-Coincident"]
["ED_MDU541_02345",null,null,null,null,"Coincident"]
["ED_MDU541_02346",null,null,"Date MD occurred",null,"Non-Coincident"]
["ED_MDU541_02347",null,null,null,null,"Coincident"]
["ED_MDU541_02348",null,null,"Half hour time period MD occurred",null,"Non-Coincident"]
["ED_MDU541_02349",null,null,null,null,"Coincident"]
["ED_MDU541_02350",null,null,"Winter/Summer Peaking",null,"Non-Coincident"]
["ED_MDU541_02351",null,null,null,null,"Coincident"]
["ED_MDU541_02352",null,null,"Adjustments - Embedded generation","MW","Non-Coincident"]
["ED_MDU541_02353",null,null,null,null,"Coincident"]
["ED_MDU541_02354",null,null,"Weather Corrected MD 10% POE","MW","Non-Coincident"]
["ED_MDU541_02355",null,null,null,null,"Coincident"]
["ED_MDU541_02356",null,null,"Weather Corrected MD 10% POE","MVA","Non-Coincident"]
["ED_MDU541_02357",null,null,null,null,"Coincident"]
["ED_MDU541_02358",null,null,"Weather Corrected MD 50% POE","MW","Non-Coincident"]
["ED_MDU541_02359",null,null,null,null,"Coincident"]
["ED_MDU541_02360",null,null,"Weather Corrected MD 50% POE","MVA","Non-Coincident"]
["ED_MDU541_02361",null,null,null,null,"Coincident"]
["ED_MDU541_02362",null,"<Enter substation name>","Substation Rating","MVA","Non-Coincident"]
["ED_MDU541_02363",null,null,null,null,"Coincident"]
["ED_MDU541_02364",null,null,"Raw Adjusted MD","MW","Non-Coincident"]
["ED_MDU541_02365",null,null,null,null,"Coincident"]
["ED_MDU541_02366",null,null,"Raw Adjusted MD","MVA","Non-Coincident"]
["ED_MDU541_02367",null,null,null,null,"Coincident"]
["ED_MDU541_02368",null,null,"Date MD occurred",null,"Non-Coincident"]
["ED_MDU541_02369",null,null,null,null,"Coincident"]
["ED_MDU541_02370",null,null,"Half hour time period MD occurred",null,"Non-Coincident"]
["ED_MDU541_02371",null,null,null,null,"Coincident"]
["ED_MDU541_02372",null,null,"Winter/Summer Peaking",null,"Non-Coincident"]
["ED_MDU541_02373",null,null,null,null,"Coincident"]
["ED_MDU541_02374",null,null,"Adjustments - Embedded generation","MW","Non-Coincident"]
["ED_MDU541_02375",null,null,null,null,"Coincident"]
["ED_MDU541_02376",null,null,"Weather Corrected MD 10% POE","MW","Non-Coincident"]
["ED_MDU541_02377",null,null,null,null,"Coincident"]
["ED_MDU541_02378",null,null,"Weather Corrected MD 10% POE","MVA","Non-Coincident"]
["ED_MDU541_02379",null,null,null,null,"Coincident"]
["ED_MDU541_02380",null,null,"Weather Corrected MD 50% POE","MW","Non-Coincident"]
["ED_MDU541_02381",null,null,null,null,"Coincident"]
["ED_MDU541_02382",null,null,"Weather Corrected MD 50% POE","MVA","Non-Coincident"]
["ED_MDU541_02383",null,null,null,null,"Coincident"]
["ED_MDU541_02384",null,"<Enter substation name>","Substation Rating","MVA","Non-Coincident"]
["ED_MDU541_02385",null,null,null,null,"Coincident"]
["ED_MDU541_02386",null,null,"Raw Adjusted MD","MW","Non-Coincident"]
["ED_MDU541_02387",null,null,null,null,"Coincident"]
["ED_MDU541_02388",null,null,"Raw Adjusted MD","MVA","Non-Coincident"]
["ED_MDU541_02389",null,null,null,null,"Coincident"]
["ED_MDU541_02390",null,null,"Date MD occurred",null,"Non-Coincident"]
["ED_MDU541_02391",null,null,null,null,"Coincident"]
["ED_MDU541_02392",null,null,"Half hour time period MD occurred",null,"Non-Coincident"]
["ED_MDU541_02393",null,null,null,null,"Coincident"]
["ED_MDU541_02394",null,null,"Winter/Summer Peaking",null,"Non-Coincident"]
["ED_MDU541_02395",null,null,null,null,"Coincident"]
["ED_MDU541_02396",null,null,"Adjustments - Embedded generation","MW","Non-Coincident"]
["ED_MDU541_02397",null,null,null,null,"Coincident"]
["ED_MDU541_02398",null,null,"Weather Corrected MD 10% POE","MW","Non-Coincident"]
["ED_MDU541_02399",null,null,null,null,"Coincident"]
["ED_MDU541_02400",null,null,"Weather Corrected MD 10% POE","MVA","Non-Coincident"]
["ED_MDU541_02401",null,null,null,null,"Coincident"]
["ED_MDU541_02402",null,null,"Weather Corrected MD 50% POE","MW","Non-Coincident"]
["ED_MDU541_02403",null,null,null,null,"Coincident"]
["ED_MDU541_02404",null,null,"Weather Corrected MD 50% POE","MVA","Non-Coincident"]
["ED_MDU541_02405",null,null,null,null,"Coincident"]
["ED_MDU541_02406",null,"<Enter substation name>","Substation Rating","MVA","Non-Coincident"]
["ED_MDU541_02407",null,null,null,null,"Coincident"]
["ED_MDU541_02408",null,null,"Raw Adjusted MD","MW","Non-Coincident"]
["ED_MDU541_02409",null,null,null,null,"Coincident"]
["ED_MDU541_02410",null,null,"Raw Adjusted MD","MVA","Non-Coincident"]
["ED_MDU541_02411",null,null,null,null,"Coincident"]
["ED_MDU541_02412",null,null,"Date MD occurred",null,"Non-Coincident"]
["ED_MDU541_02413",null,null,null,null,"Coincident"]
["ED_MDU541_02414",null,null,"Half hour time period MD occurred",null,"Non-Coincident"]
["ED_MDU541_02415",null,null,null,null,"Coincident"]
["ED_MDU541_02416",null,null,"Winter/Summer Peaking",null,"Non-Coincident"]
["ED_MDU541_02417",null,null,null,null,"Coincident"]
["ED_MDU541_02418",null,null,"Adjustments - Embedded generation","MW","Non-Coincident"]
["ED_MDU541_02419",null,null,null,null,"Coincident"]
["ED_MDU541_02420",null,null,"Weather Corrected MD 10% POE","MW","Non-Coincident"]
["ED_MDU541_02421",null,null,null,null,"Coincident"]
["ED_MDU541_02422",null,null,"Weather Corrected MD 10% POE","MVA","Non-Coincident"]
["ED_MDU541_02423",null,null,null,null,"Coincident"]
["ED_MDU541_02424",null,null,"Weather Corrected MD 50% POE","MW","Non-Coincident"]
["ED_MDU541_02425",null,null,null,null,"Coincident"]
["ED_MDU541_02426",null,null,"Weather Corrected MD 50% POE","MVA","Non-Coincident"]
["ED_MDU541_02427",null,null,null,null,"Coincident"]
["ED_MDU541_02428",null,"<Enter substation name>","Substation Rating","MVA","Non-Coincident"]
["ED_MDU541_02429",null,null,null,null,"Coincident"]
["ED_MDU541_02430",null,null,"Raw Adjusted MD","MW","Non-Coincident"]
["ED_MDU541_02431",null,null,null,null,"Coincident"]
["ED_MDU541_02432",null,null,"Raw Adjusted MD","MVA","Non-Coincident"]
["ED_MDU541_02433",null,null,null,null,"Coincident"]
["ED_MDU541_02434",null,null,"Date MD occurred",null,"Non-Coincident"]
["ED_MDU541_02435",null,null,null,null,"Coincident"]
["ED_MDU541_02436",null,null,"Half hour time period MD occurred",null,"Non-Coincident"]
["ED_MDU541_02437",null,null,null,null,"Coincident"]
["ED_MDU541_02438",null,null,"Winter/Summer Peaking",null,"Non-Coincident"]
["ED_MDU541_02439",null,null,null,null,"Coincident"]
["ED_MDU541_02440",null,null,"Adjustments - Embedded generation","MW","Non-Coincident"]
["ED_MDU541_02441",null,null,null,null,"Coincident"]
["ED_MDU541_02442",null,null,"Weather Corrected MD 10% POE","MW","Non-Coincident"]
["ED_MDU541_02443",null,null,null,null,"Coincident"]
["ED_MDU541_02444",null,null,"Weather Corrected MD 10% POE","MVA","Non-Coincident"]
["ED_MDU541_02445",null,null,null,null,"Coincident"]
["ED_MDU541_02446",null,null,"Weather Corrected MD 50% POE","MW","Non-Coincident"]
["ED_MDU541_02447",null,null,null,null,"Coincident"]
["ED_MDU541_02448",null,null,"Weather Corrected MD 50% POE","MVA","Non-Coincident"]
["ED_MDU541_02449",null,null,null,null,"Coincident"]
["ED_MDU541_02450",null,"<Enter substation name>","Substation Rating","MVA","Non-Coincident"]
["ED_MDU541_02451",null,null,null,null,"Coincident"]
["ED_MDU541_02452",null,null,"Raw Adjusted MD","MW","Non-Coincident"]
["ED_MDU541_02453",null,null,null,null,"Coincident"]
["ED_MDU541_02454",null,null,"Raw Adjusted MD","MVA","Non-Coincident"]
["ED_MDU541_02455",null,null,null,null,"Coincident"]
["ED_MDU541_02456",null,null,"Date MD occurred",null,"Non-Coincident"]
["ED_MDU541_02457",null,null,null,null,"Coincident"]
["ED_MDU541_02458",null,null,"Half hour time period MD occurred",null,"Non-Coincident"]
["ED_MDU541_02459",null,null,null,null,"Coincident"]
["ED_MDU541_02460",null,null,"Winter/Summer Peaking",null,"Non-Coincident"]
["ED_MDU541_02461",null,null,null,null,"Coincident"]
["ED_MDU541_02462",null,null,"Adjustments - Embedded generation","MW","Non-Coincident"]
["ED_MDU541_02463",null,null,null,null,"Coincident"]
["ED_MDU541_02464",null,null,"Weather Corrected MD 10% POE","MW","Non-Coincident"]
["ED_MDU541_02465",null,null,null,null,"Coincident"]
["ED_MDU541_02466",null,null,"Weather Corrected MD 10% POE","MVA","Non-Coincident"]
["ED_MDU541_02467",null,null,null,null,"Coincident"]
["ED_MDU541_02468",null,null,"Weather Corrected MD 50% POE","MW","Non-Coincident"]
["ED_MDU541_02469",null,null,null,null,"Coincident"]
["ED_MDU541_02470",null,null,"Weather Corrected MD 50% POE","MVA","Non-Coincident"]
["ED_MDU541_02471",null,null,null,null,"Coincident"]
["ED_MDU541_02472",null,"<Enter substation name>","Substation Rating","MVA","Non-Coincident"]
["ED_MDU541_02473",null,null,null,null,"Coincident"]
["ED_MDU541_02474",null,null,"Raw Adjusted MD","MW","Non-Coincident"]
["ED_MDU541_02475",null,null,null,null,"Coincident"]
["ED_MDU541_02476",null,null,"Raw Adjusted MD","MVA","Non-Coincident"]
["ED_MDU541_02477",null,null,null,null,"Coincident"]
["ED_MDU541_02478",null,null,"Date MD occurred",null,"Non-Coincident"]
["ED_MDU541_02479",null,null,null,null,"Coincident"]
["ED_MDU541_02480",null,null,"Half hour time period MD occurred",null,"Non-Coincident"]
["ED_MDU541_02481",null,null,null,null,"Coincident"]
["ED_MDU541_02482",null,null,"Winter/Summer Peaking",null,"Non-Coincident"]
["ED_MDU541_02483",null,null,null,null,"Coincident"]
["ED_MDU541_02484",null,null,"Adjustments - Embedded generation","MW","Non-Coincident"]
["ED_MDU541_02485",null,null,null,null,"Coincident"]
["ED_MDU541_02486",null,null,"Weather Corrected MD 10% POE","MW","Non-Coincident"]
["ED_MDU541_02487",null,null,null,null,"Coincident"]
["ED_MDU541_02488",null,null,"Weather Corrected MD 10% POE","MVA","Non-Coincident"]
["ED_MDU541_02489",null,null,null,null,"Coincident"]
["ED_MDU541_02490",null,null,"Weather Corrected MD 50% POE","MW","Non-Coincident"]
["ED_MDU541_02491",null,null,null,null,"Coincident"]
["ED_MDU541_02492",null,null,"Weather Corrected MD 50% POE","MVA","Non-Coincident"]
["ED_MDU541_02493",null,null,null,null,"Coincident"]
["ED_MDU541_02494",null,"<Enter substation name>","Substation Rating","MVA","Non-Coincident"]
["ED_MDU541_02495",null,null,null,null,"Coincident"]
["ED_MDU541_02496",null,null,"Raw Adjusted MD","MW","Non-Coincident"]
["ED_MDU541_02497",null,null,null,null,"Coincident"]
["ED_MDU541_02498",null,null,"Raw Adjusted MD","MVA","Non-Coincident"]
["ED_MDU541_02499",null,null,null,null,"Coincident"]
["ED_MDU541_02500",null,null,"Date MD occurred",null,"Non-Coincident"]
["ED_MDU541_02501",null,null,null,null,"Coincident"]
["ED_MDU541_02502",null,null,"Half hour time period MD occurred",null,"Non-Coincident"]
["ED_MDU541_02503",null,null,null,null,"Coincident"]
["ED_MDU541_02504",null,null,"Winter/Summer Peaking",null,"Non-Coincident"]
["ED_MDU541_02505",null,null,null,null,"Coincident"]
["ED_MDU541_02506",null,null,"Adjustments - Embedded generation","MW","Non-Coincident"]
["ED_MDU541_02507",null,null,null,null,"Coincident"]
["ED_MDU541_02508",null,null,"Weather Corrected MD 10% POE","MW","Non-Coincident"]
["ED_MDU541_02509",null,null,null,null,"Coincident"]
["ED_MDU541_02510",null,null,"Weather Corrected MD 10% POE","MVA","Non-Coincident"]
["ED_MDU541_02511",null,null,null,null,"Coincident"]
["ED_MDU541_02512",null,null,"Weather Corrected MD 50% POE","MW","Non-Coincident"]
["ED_MDU541_02513",null,null,null,null,"Coincident"]
["ED_MDU541_02514",null,null,"Weather Corrected MD 50% POE","MVA","Non-Coincident"]
["ED_MDU541_02515",null,null,null,null,"Coincident"]
["ED_MDU541_02516",null,"<Enter substation name>","Substation Rating","MVA","Non-Coincident"]
["ED_MDU541_02517",null,null,null,null,"Coincident"]
["ED_MDU541_02518",null,null,"Raw Adjusted MD","MW","Non-Coincident"]
["ED_MDU541_02519",null,null,null,null,"Coincident"]
["ED_MDU541_02520",null,null,"Raw Adjusted MD","MVA","Non-Coincident"]
["ED_MDU541_02521",null,null,null,null,"Coincident"]
["ED_MDU541_02522",null,null,"Date MD occurred",null,"Non-Coincident"]
["ED_MDU541_02523",null,null,null,null,"Coincident"]
["ED_MDU541_02524",null,null,"Half hour time period MD occurred",null,"Non-Coincident"]
["ED_MDU541_02525",null,null,null,null,"Coincident"]
["ED_MDU541_02526",null,null,"Winter/Summer Peaking",null,"Non-Coincident"]
["ED_MDU541_02527",null,null,null,null,"Coincident"]
["ED_MDU541_02528",null,null,"Adjustments - Embedded generation","MW","Non-Coincident"]
["ED_MDU541_02529",null,null,null,null,"Coincident"]
["ED_MDU541_02530",null,null,"Weather Corrected MD 10% POE","MW","Non-Coincident"]
["ED_MDU541_02531",null,null,null,null,"Coincident"]
["ED_MDU541_02532",null,null,"Weather Corrected MD 10% POE","MVA","Non-Coincident"]
["ED_MDU541_02533",null,null,null,null,"Coincident"]
["ED_MDU541_02534",null,null,"Weather Corrected MD 50% POE","MW","Non-Coincident"]
["ED_MDU541_02535",null,null,null,null,"Coincident"]
["ED_MDU541_02536",null,null,"Weather Corrected MD 50% POE","MVA","Non-Coincident"]
["ED_MDU541_02537",null,null,null,null,"Coincident"]
["ED_MDU541_02538",null,"<Enter substation name>","Substation Rating","MVA","Non-Coincident"]
["ED_MDU541_02539",null,null,null,null,"Coincident"]
["ED_MDU541_02540",null,null,"Raw Adjusted MD","MW","Non-Coincident"]
["ED_MDU541_02541",null,null,null,null,"Coincident"]
["ED_MDU541_02542",null,null,"Raw Adjusted MD","MVA","Non-Coincident"]
["ED_MDU541_02543",null,null,null,null,"Coincident"]
["ED_MDU541_02544",null,null,"Date MD occurred",null,"Non-Coincident"]
["ED_MDU541_02545",null,null,null,null,"Coincident"]
["ED_MDU541_02546",null,null,"Half hour time period MD occurred",null,"Non-Coincident"]
["ED_MDU541_02547",null,null,null,null,"Coincident"]
["ED_MDU541_02548",null,null,"Winter/Summer Peaking",null,"Non-Coincident"]
["ED_MDU541_02549",null,null,null,null,"Coincident"]
["ED_MDU541_02550",null,null,"Adjustments - Embedded generation","MW","Non-Coincident"]
["ED_MDU541_02551",null,null,null,null,"Coincident"]
["ED_MDU541_02552",null,null,"Weather Corrected MD 10% POE","MW","Non-Coincident"]
["ED_MDU541_02553",null,null,null,null,"Coincident"]
["ED_MDU541_02554",null,null,"Weather Corrected MD 10% POE","MVA","Non-Coincident"]
["ED_MDU541_02555",null,null,null,null,"Coincident"]
["ED_MDU541_02556",null,null,"Weather Corrected MD 50% POE","MW","Non-Coincident"]
["ED_MDU541_02557",null,null,null,null,"Coincident"]
["ED_MDU541_02558",null,null,"Weather Corrected MD 50% POE","MVA","Non-Coincident"]
["ED_MDU541_02559",null,null,null,null,"Coincident"]
["ED_MDU541_02560",null,"<Enter substation name>","Substation Rating","MVA","Non-Coincident"]
["ED_MDU541_02561",null,null,null,null,"Coincident"]
["ED_MDU541_02562",null,null,"Raw Adjusted MD","MW","Non-Coincident"]
["ED_MDU541_02563",null,null,null,null,"Coincident"]
["ED_MDU541_02564",null,null,"Raw Adjusted MD","MVA","Non-Coincident"]
["ED_MDU541_02565",null,null,null,null,"Coincident"]
["ED_MDU541_02566",null,null,"Date MD occurred",null,"Non-Coincident"]
["ED_MDU541_02567",null,null,null,null,"Coincident"]
["ED_MDU541_02568",null,null,"Half hour time period MD occurred",null,"Non-Coincident"]
["ED_MDU541_02569",null,null,null,null,"Coincident"]
["ED_MDU541_02570",null,null,"Winter/Summer Peaking",null,"Non-Coincident"]
["ED_MDU541_02571",null,null,null,null,"Coincident"]
["ED_MDU541_02572",null,null,"Adjustments - Embedded generation","MW","Non-Coincident"]
["ED_MDU541_02573",null,null,null,null,"Coincident"]
["ED_MDU541_02574",null,null,"Weather Corrected MD 10% POE","MW","Non-Coincident"]
["ED_MDU541_02575",null,null,null,null,"Coincident"]
["ED_MDU541_02576",null,null,"Weather Corrected MD 10% POE","MVA","Non-Coincident"]
["ED_MDU541_02577",null,null,null,null,"Coincident"]
["ED_MDU541_02578",null,null,"Weather Corrected MD 50% POE","MW","Non-Coincident"]
["ED_MDU541_02579",null,null,null,null,"Coincident"]
["ED_MDU541_02580",null,null,"Weather Corrected MD 50% POE","MVA","Non-Coincident"]
["ED_MDU541_02581",null,null,null,null,"Coincident"]
["ED_MDU541_02582",null,"<Enter substation name>","Substation Rating","MVA","Non-Coincident"]
["ED_MDU541_02583",null,null,null,null,"Coincident"]
["ED_MDU541_02584",null,null,"Raw Adjusted MD","MW","Non-Coincident"]
["ED_MDU541_02585",null,null,null,null,"Coincident"]
["ED_MDU541_02586",null,null,"Raw Adjusted MD","MVA","Non-Coincident"]
["ED_MDU541_02587",null,null,null,null,"Coincident"]
["ED_MDU541_02588",null,null,"Date MD occurred",null,"Non-Coincident"]
["ED_MDU541_02589",null,null,null,null,"Coincident"]
["ED_MDU541_02590",null,null,"Half hour time period MD occurred",null,"Non-Coincident"]
["ED_MDU541_02591",null,null,null,null,"Coincident"]
["ED_MDU541_02592",null,null,"Winter/Summer Peaking",null,"Non-Coincident"]
["ED_MDU541_02593",null,null,null,null,"Coincident"]
["ED_MDU541_02594",null,null,"Adjustments - Embedded generation","MW","Non-Coincident"]
["ED_MDU541_02595",null,null,null,null,"Coincident"]
["ED_MDU541_02596",null,null,"Weather Corrected MD 10% POE","MW","Non-Coincident"]
["ED_MDU541_02597",null,null,null,null,"Coincident"]
["ED_MDU541_02598",null,null,"Weather Corrected MD 10% POE","MVA","Non-Coincident"]
["ED_MDU541_02599",null,null,null,null,"Coincident"]
["ED_MDU541_02600",null,null,"Weather Corrected MD 50% POE","MW","Non-Coincident"]
["ED_MDU541_02601",null,null,null,null,"Coincident"]
["ED_MDU541_02602",null,null,"Weather Corrected MD 50% POE","MVA","Non-Coincident"]
["ED_MDU541_02603",null,null,null,null,"Coincident"]
["ED_MDU541_02604",null,"<Enter substation name>","Substation Rating","MVA","Non-Coincident"]
["ED_MDU541_02605",null,null,null,null,"Coincident"]
["ED_MDU541_02606",null,null,"Raw Adjusted MD","MW","Non-Coincident"]
["ED_MDU541_02607",null,null,null,null,"Coincident"]
["ED_MDU541_02608",null,null,"Raw Adjusted MD","MVA","Non-Coincident"]
["ED_MDU541_02609",null,null,null,null,"Coincident"]
["ED_MDU541_02610",null,null,"Date MD occurred",null,"Non-Coincident"]
["ED_MDU541_02611",null,null,null,null,"Coincident"]
["ED_MDU541_02612",null,null,"Half hour time period MD occurred",null,"Non-Coincident"]
["ED_MDU541_02613",null,null,null,null,"Coincident"]
["ED_MDU541_02614",null,null,"Winter/Summer Peaking",null,"Non-Coincident"]
["ED_MDU541_02615",null,null,null,null,"Coincident"]
["ED_MDU541_02616",null,null,"Adjustments - Embedded generation","MW","Non-Coincident"]
["ED_MDU541_02617",null,null,null,null,"Coincident"]
["ED_MDU541_02618",null,null,"Weather Corrected MD 10% POE","MW","Non-Coincident"]
["ED_MDU541_02619",null,null,null,null,"Coincident"]
["ED_MDU541_02620",null,null,"Weather Corrected MD 10% POE","MVA","Non-Coincident"]
["ED_MDU541_02621",null,null,null,null,"Coincident"]
["ED_MDU541_02622",null,null,"Weather Corrected MD 50% POE","MW","Non-Coincident"]
["ED_MDU541_02623",null,null,null,null,"Coincident"]
["ED_MDU541_02624",null,null,"Weather Corrected MD 50% POE","MVA","Non-Coincident"]
["ED_MDU541_02625",null,null,null,null,"Coincident"]
["ED_MDU541_02626",null,"<Enter substation name>","Substation Rating","MVA","Non-Coincident"]
["ED_MDU541_02627",null,null,null,null,"Coincident"]
["ED_MDU541_02628",null,null,"Raw Adjusted MD","MW","Non-Coincident"]
["ED_MDU541_02629",null,null,null,null,"Coincident"]
["ED_MDU541_02630",null,null,"Raw Adjusted MD","MVA","Non-Coincident"]
["ED_MDU541_02631",null,null,null,null,"Coincident"]
["ED_MDU541_02632",null,null,"Date MD occurred",null,"Non-Coincident"]
["ED_MDU541_02633",null,null,null,null,"Coincident"]
["ED_MDU541_02634",null,null,"Half hour time period MD occurred",null,"Non-Coincident"]
["ED_MDU541_02635",null,null,null,null,"Coincident"]
["ED_MDU541_02636",null,null,"Winter/Summer Peaking",null,"Non-Coincident"]
["ED_MDU541_02637",null,null,null,null,"Coincident"]
["ED_MDU541_02638",null,null,"Adjustments - Embedded generation","MW","Non-Coincident"]
["ED_MDU541_02639",null,null,null,null,"Coincident"]
["ED_MDU541_02640",null,null,"Weather Corrected MD 10% POE","MW","Non-Coincident"]
["ED_MDU541_02641",null,null,null,null,"Coincident"]
["ED_MDU541_02642",null,null,"Weather Corrected MD 10% POE","MVA","Non-Coincident"]
["ED_MDU541_02643",null,null,null,null,"Coincident"]
["ED_MDU541_02644",null,null,"Weather Corrected MD 50% POE","MW","Non-Coincident"]
["ED_MDU541_02645",null,null,null,null,"Coincident"]
["ED_MDU541_02646",null,null,"Weather Corrected MD 50% POE","MVA","Non-Coincident"]
["ED_MDU541_02647",null,null,null,null,"Coincident"]
["ED_MDU541_02648",null,"<Enter substation name>","Substation Rating","MVA","Non-Coincident"]
["ED_MDU541_02649",null,null,null,null,"Coincident"]
["ED_MDU541_02650",null,null,"Raw Adjusted MD","MW","Non-Coincident"]
["ED_MDU541_02651",null,null,null,null,"Coincident"]
["ED_MDU541_02652",null,null,"Raw Adjusted MD","MVA","Non-Coincident"]
["ED_MDU541_02653",null,null,null,null,"Coincident"]
["ED_MDU541_02654",null,null,"Date MD occurred",null,"Non-Coincident"]
["ED_MDU541_02655",null,null,null,null,"Coincident"]
["ED_MDU541_02656",null,null,"Half hour time period MD occurred",null,"Non-Coincident"]
["ED_MDU541_02657",null,null,null,null,"Coincident"]
["ED_MDU541_02658",null,null,"Winter/Summer Peaking",null,"Non-Coincident"]
["ED_MDU541_02659",null,null,null,null,"Coincident"]
["ED_MDU541_02660",null,null,"Adjustments - Embedded generation","MW","Non-Coincident"]
["ED_MDU541_02661",null,null,null,null,"Coincident"]
["ED_MDU541_02662",null,null,"Weather Corrected MD 10% POE","MW","Non-Coincident"]
["ED_MDU541_02663",null,null,null,null,"Coincident"]
["ED_MDU541_02664",null,null,"Weather Corrected MD 10% POE","MVA","Non-Coincident"]
["ED_MDU541_02665",null,null,null,null,"Coincident"]
["ED_MDU541_02666",null,null,"Weather Corrected MD 50% POE","MW","Non-Coincident"]
["ED_MDU541_02667",null,null,null,null,"Coincident"]
["ED_MDU541_02668",null,null,"Weather Corrected MD 50% POE","MVA","Non-Coincident"]
["ED_MDU541_02669",null,null,null,null,"Coincident"]
["ED_MDU541_02670",null,"<Enter substation name>","Substation Rating","MVA","Non-Coincident"]
["ED_MDU541_02671",null,null,null,null,"Coincident"]
["ED_MDU541_02672",null,null,"Raw Adjusted MD","MW","Non-Coincident"]
["ED_MDU541_02673",null,null,null,null,"Coincident"]
["ED_MDU541_02674",null,null,"Raw Adjusted MD","MVA","Non-Coincident"]
["ED_MDU541_02675",null,null,null,null,"Coincident"]
["ED_MDU541_02676",null,null,"Date MD occurred",null,"Non-Coincident"]
["ED_MDU541_02677",null,null,null,null,"Coincident"]
["ED_MDU541_02678",null,null,"Half hour time period MD occurred",null,"Non-Coincident"]
["ED_MDU541_02679",null,null,null,null,"Coincident"]
["ED_MDU541_02680",null,null,"Winter/Summer Peaking",null,"Non-Coincident"]
["ED_MDU541_02681",null,null,null,null,"Coincident"]
["ED_MDU541_02682",null,null,"Adjustments - Embedded generation","MW","Non-Coincident"]
["ED_MDU541_02683",null,null,null,null,"Coincident"]
["ED_MDU541_02684",null,null,"Weather Corrected MD 10% POE","MW","Non-Coincident"]
["ED_MDU541_02685",null,null,null,null,"Coincident"]
["ED_MDU541_02686",null,null,"Weather Corrected MD 10% POE","MVA","Non-Coincident"]
["ED_MDU541_02687",null,null,null,null,"Coincident"]
["ED_MDU541_02688",null,null,"Weather Corrected MD 50% POE","MW","Non-Coincident"]
["ED_MDU541_02689",null,null,null,null,"Coincident"]
["ED_MDU541_02690",null,null,"Weather Corrected MD 50% POE","MVA","Non-Coincident"]
["ED_MDU541_02691",null,null,null,null,"Coincident"]
["ED_MDU541_02692",null,"<Enter substation name>","Substation Rating","MVA","Non-Coincident"]
["ED_MDU541_02693",null,null,null,null,"Coincident"]
["ED_MDU541_02694",null,null,"Raw Adjusted MD","MW","Non-Coincident"]
["ED_MDU541_02695",null,null,null,null,"Coincident"]
["ED_MDU541_02696",null,null,"Raw Adjusted MD","MVA","Non-Coincident"]
["ED_MDU541_02697",null,null,null,null,"Coincident"]
["ED_MDU541_02698",null,null,"Date MD occurred",null,"Non-Coincident"]
["ED_MDU541_02699",null,null,null,null,"Coincident"]
["ED_MDU541_02700",null,null,"Half hour time period MD occurred",null,"Non-Coincident"]
["ED_MDU541_02701",null,null,null,null,"Coincident"]
["ED_MDU541_02702",null,null,"Winter/Summer Peaking",null,"Non-Coincident"]
["ED_MDU541_02703",null,null,null,null,"Coincident"]
["ED_MDU541_02704",null,null,"Adjustments - Embedded generation","MW","Non-Coincident"]
["ED_MDU541_02705",null,null,null,null,"Coincident"]
["ED_MDU541_02706",null,null,"Weather Corrected MD 10% POE","MW","Non-Coincident"]
["ED_MDU541_02707",null,null,null,null,"Coincident"]
["ED_MDU541_02708",null,null,"Weather Corrected MD 10% POE","MVA","Non-Coincident"]
["ED_MDU541_02709",null,null,null,null,"Coincident"]
["ED_MDU541_02710",null,null,"Weather Corrected MD 50% POE","MW","Non-Coincident"]
["ED_MDU541_02711",null,null,null,null,"Coincident"]
["ED_MDU541_02712",null,null,"Weather Corrected MD 50% POE","MVA","Non-Coincident"]
["ED_MDU541_02713",null,null,null,null,"Coincident"]
["ED_MDU541_02714",null,"<Enter substation name>","Substation Rating","MVA","Non-Coincident"]
["ED_MDU541_02715",null,null,null,null,"Coincident"]
["ED_MDU541_02716",null,null,"Raw Adjusted MD","MW","Non-Coincident"]
["ED_MDU541_02717",null,null,null,null,"Coincident"]
["ED_MDU541_02718",null,null,"Raw Adjusted MD","MVA","Non-Coincident"]
["ED_MDU541_02719",null,null,null,null,"Coincident"]
["ED_MDU541_02720",null,null,"Date MD occurred",null,"Non-Coincident"]
["ED_MDU541_02721",null,null,null,null,"Coincident"]
["ED_MDU541_02722",null,null,"Half hour time period MD occurred",null,"Non-Coincident"]
["ED_MDU541_02723",null,null,null,null,"Coincident"]
["ED_MDU541_02724",null,null,"Winter/Summer Peaking",null,"Non-Coincident"]
["ED_MDU541_02725",null,null,null,null,"Coincident"]
["ED_MDU541_02726",null,null,"Adjustments - Embedded generation","MW","Non-Coincident"]
["ED_MDU541_02727",null,null,null,null,"Coincident"]
["ED_MDU541_02728",null,null,"Weather Corrected MD 10% POE","MW","Non-Coincident"]
["ED_MDU541_02729",null,null,null,null,"Coincident"]
["ED_MDU541_02730",null,null,"Weather Corrected MD 10% POE","MVA","Non-Coincident"]
["ED_MDU541_02731",null,null,null,null,"Coincident"]
["ED_MDU541_02732",null,null,"Weather Corrected MD 50% POE","MW","Non-Coincident"]
["ED_MDU541_02733",null,null,null,null,"Coincident"]
["ED_MDU541_02734",null,null,"Weather Corrected MD 50% POE","MVA","Non-Coincident"]
["ED_MDU541_02735",null,null,null,null,"Coincident"]
["ED_MDU541_02736",null,"<Enter substation name>","Substation Rating","MVA","Non-Coincident"]
["ED_MDU541_02737",null,null,null,null,"Coincident"]
["ED_MDU541_02738",null,null,"Raw Adjusted MD","MW","Non-Coincident"]
["ED_MDU541_02739",null,null,null,null,"Coincident"]
["ED_MDU541_02740",null,null,"Raw Adjusted MD","MVA","Non-Coincident"]
["ED_MDU541_02741",null,null,null,null,"Coincident"]
["ED_MDU541_02742",null,null,"Date MD occurred",null,"Non-Coincident"]
["ED_MDU541_02743",null,null,null,null,"Coincident"]
["ED_MDU541_02744",null,null,"Half hour time period MD occurred",null,"Non-Coincident"]
["ED_MDU541_02745",null,null,null,null,"Coincident"]
["ED_MDU541_02746",null,null,"Winter/Summer Peaking",null,"Non-Coincident"]
["ED_MDU541_02747",null,null,null,null,"Coincident"]
["ED_MDU541_02748",null,null,"Adjustments - Embedded generation","MW","Non-Coincident"]
["ED_MDU541_02749",null,null,null,null,"Coincident"]
["ED_MDU541_02750",null,null,"Weather Corrected MD 10% POE","MW","Non-Coincident"]
["ED_MDU541_02751",null,null,null,null,"Coincident"]
["ED_MDU541_02752",null,null,"Weather Corrected MD 10% POE","MVA","Non-Coincident"]
["ED_MDU541_02753",null,null,null,null,"Coincident"]
["ED_MDU541_02754",null,null,"Weather Corrected MD 50% POE","MW","Non-Coincident"]
["ED_MDU541_02755",null,null,null,null,"Coincident"]
["ED_MDU541_02756",null,null,"Weather Corrected MD 50% POE","MVA","Non-Coincident"]
["ED_MDU541_02757",null,null,null,null,"Coincident"]
["ED_MDU541_02758",null,"<Enter substation name>","Substation Rating","MVA","Non-Coincident"]
["ED_MDU541_02759",null,null,null,null,"Coincident"]
["ED_MDU541_02760",null,null,"Raw Adjusted MD","MW","Non-Coincident"]
["ED_MDU541_02761",null,null,null,null,"Coincident"]
["ED_MDU541_02762",null,null,"Raw Adjusted MD","MVA","Non-Coincident"]
["ED_MDU541_02763",null,null,null,null,"Coincident"]
["ED_MDU541_02764",null,null,"Date MD occurred",null,"Non-Coincident"]
["ED_MDU541_02765",null,null,null,null,"Coincident"]
["ED_MDU541_02766",null,null,"Half hour time period MD occurred",null,"Non-Coincident"]
["ED_MDU541_02767",null,null,null,null,"Coincident"]
["ED_MDU541_02768",null,null,"Winter/Summer Peaking",null,"Non-Coincident"]
["ED_MDU541_02769",null,null,null,null,"Coincident"]
["ED_MDU541_02770",null,null,"Adjustments - Embedded generation","MW","Non-Coincident"]
["ED_MDU541_02771",null,null,null,null,"Coincident"]
["ED_MDU541_02772",null,null,"Weather Corrected MD 10% POE","MW","Non-Coincident"]
["ED_MDU541_02773",null,null,null,null,"Coincident"]
["ED_MDU541_02774",null,null,"Weather Corrected MD 10% POE","MVA","Non-Coincident"]
["ED_MDU541_02775",null,null,null,null,"Coincident"]
["ED_MDU541_02776",null,null,"Weather Corrected MD 50% POE","MW","Non-Coincident"]
["ED_MDU541_02777",null,null,null,null,"Coincident"]
["ED_MDU541_02778",null,null,"Weather Corrected MD 50% POE","MVA","Non-Coincident"]
["ED_MDU541_02779",null,null,null,null,"Coincident"]
["ED_MDU541_02780",null,"<Enter substation name>","Substation Rating","MVA","Non-Coincident"]
["ED_MDU541_02781",null,null,null,null,"Coincident"]
["ED_MDU541_02782",null,null,"Raw Adjusted MD","MW","Non-Coincident"]
["ED_MDU541_02783",null,null,null,null,"Coincident"]
["ED_MDU541_02784",null,null,"Raw Adjusted MD","MVA","Non-Coincident"]
["ED_MDU541_02785",null,null,null,null,"Coincident"]
["ED_MDU541_02786",null,null,"Date MD occurred",null,"Non-Coincident"]
["ED_MDU541_02787",null,null,null,null,"Coincident"]
["ED_MDU541_02788",null,null,"Half hour time period MD occurred",null,"Non-Coincident"]
["ED_MDU541_02789",null,null,null,null,"Coincident"]
["ED_MDU541_02790",null,null,"Winter/Summer Peaking",null,"Non-Coincident"]
["ED_MDU541_02791",null,null,null,null,"Coincident"]
["ED_MDU541_02792",null,null,"Adjustments - Embedded generation","MW","Non-Coincident"]
["ED_MDU541_02793",null,null,null,null,"Coincident"]
["ED_MDU541_02794",null,null,"Weather Corrected MD 10% POE","MW","Non-Coincident"]
["ED_MDU541_02795",null,null,null,null,"Coincident"]
["ED_MDU541_02796",null,null,"Weather Corrected MD 10% POE","MVA","Non-Coincident"]
["ED_MDU541_02797",null,null,null,null,"Coincident"]
["ED_MDU541_02798",null,null,"Weather Corrected MD 50% POE","MW","Non-Coincident"]
["ED_MDU541_02799",null,null,null,null,"Coincident"]
["ED_MDU541_02800",null,null,"Weather Corrected MD 50% POE","MVA","Non-Coincident"]
["ED_MDU541_02801",null,null,null,null,"Coincident"]
["ED_MDU541_02802",null,"<Enter substation name>","Substation Rating","MVA","Non-Coincident"]
["ED_MDU541_02803",null,null,null,null,"Coincident"]
["ED_MDU541_02804",null,null,"Raw Adjusted MD","MW","Non-Coincident"]
["ED_MDU541_02805",null,null,null,null,"Coincident"]
["ED_MDU541_02806",null,null,"Raw Adjusted MD","MVA","Non-Coincident"]
["ED_MDU541_02807",null,null,null,null,"Coincident"]
["ED_MDU541_02808",null,null,"Date MD occurred",null,"Non-Coincident"]
["ED_MDU541_02809",null,null,null,null,"Coincident"]
["ED_MDU541_02810",null,null,"Half hour time period MD occurred",null,"Non-Coincident"]
["ED_MDU541_02811",null,null,null,null,"Coincident"]
["ED_MDU541_02812",null,null,"Winter/Summer Peaking",null,"Non-Coincident"]
["ED_MDU541_02813",null,null,null,null,"Coincident"]
["ED_MDU541_02814",null,null,"Adjustments - Embedded generation","MW","Non-Coincident"]
["ED_MDU541_02815",null,null,null,null,"Coincident"]
["ED_MDU541_02816",null,null,"Weather Corrected MD 10% POE","MW","Non-Coincident"]
["ED_MDU541_02817",null,null,null,null,"Coincident"]
["ED_MDU541_02818",null,null,"Weather Corrected MD 10% POE","MVA","Non-Coincident"]
["ED_MDU541_02819",null,null,null,null,"Coincident"]
["ED_MDU541_02820",null,null,"Weather Corrected MD 50% POE","MW","Non-Coincident"]
["ED_MDU541_02821",null,null,null,null,"Coincident"]
["ED_MDU541_02822",null,null,"Weather Corrected MD 50% POE","MVA","Non-Coincident"]
["ED_MDU541_02823",null,null,null,null,"Coincident"]
["ED_MDU541_02824",null,"<Enter substation name>","Substation Rating","MVA","Non-Coincident"]
["ED_MDU541_02825",null,null,null,null,"Coincident"]
["ED_MDU541_02826",null,null,"Raw Adjusted MD","MW","Non-Coincident"]
["ED_MDU541_02827",null,null,null,null,"Coincident"]
["ED_MDU541_02828",null,null,"Raw Adjusted MD","MVA","Non-Coincident"]
["ED_MDU541_02829",null,null,null,null,"Coincident"]
["ED_MDU541_02830",null,null,"Date MD occurred",null,"Non-Coincident"]
["ED_MDU541_02831",null,null,null,null,"Coincident"]
["ED_MDU541_02832",null,null,"Half hour time period MD occurred",null,"Non-Coincident"]
["ED_MDU541_02833",null,null,null,null,"Coincident"]
["ED_MDU541_02834",null,null,"Winter/Summer Peaking",null,"Non-Coincident"]
["ED_MDU541_02835",null,null,null,null,"Coincident"]
["ED_MDU541_02836",null,null,"Adjustments - Embedded generation","MW","Non-Coincident"]
["ED_MDU541_02837",null,null,null,null,"Coincident"]
["ED_MDU541_02838",null,null,"Weather Corrected MD 10% POE","MW","Non-Coincident"]
["ED_MDU541_02839",null,null,null,null,"Coincident"]
["ED_MDU541_02840",null,null,"Weather Corrected MD 10% POE","MVA","Non-Coincident"]
["ED_MDU541_02841",null,null,null,null,"Coincident"]
["ED_MDU541_02842",null,null,"Weather Corrected MD 50% POE","MW","Non-Coincident"]
["ED_MDU541_02843",null,null,null,null,"Coincident"]
["ED_MDU541_02844",null,null,"Weather Corrected MD 50% POE","MVA","Non-Coincident"]
["ED_MDU541_02845",null,null,null,null,"Coincident"]
["ED_MDU541_02846",null,"<Enter substation name>","Substation Rating","MVA","Non-Coincident"]
["ED_MDU541_02847",null,null,null,null,"Coincident"]
["ED_MDU541_02848",null,null,"Raw Adjusted MD","MW","Non-Coincident"]
["ED_MDU541_02849",null,null,null,null,"Coincident"]
["ED_MDU541_02850",null,null,"Raw Adjusted MD","MVA","Non-Coincident"]
["ED_MDU541_02851",null,null,null,null,"Coincident"]
["ED_MDU541_02852",null,null,"Date MD occurred",null,"Non-Coincident"]
["ED_MDU541_02853",null,null,null,null,"Coincident"]
["ED_MDU541_02854",null,null,"Half hour time period MD occurred",null,"Non-Coincident"]
["ED_MDU541_02855",null,null,null,null,"Coincident"]
["ED_MDU541_02856",null,null,"Winter/Summer Peaking",null,"Non-Coincident"]
["ED_MDU541_02857",null,null,null,null,"Coincident"]
["ED_MDU541_02858",null,null,"Adjustments - Embedded generation","MW","Non-Coincident"]
["ED_MDU541_02859",null,null,null,null,"Coincident"]
["ED_MDU541_02860",null,null,"Weather Corrected MD 10% POE","MW","Non-Coincident"]
["ED_MDU541_02861",null,null,null,null,"Coincident"]
["ED_MDU541_02862",null,null,"Weather Corrected MD 10% POE","MVA","Non-Coincident"]
["ED_MDU541_02863",null,null,null,null,"Coincident"]
["ED_MDU541_02864",null,null,"Weather Corrected MD 50% POE","MW","Non-Coincident"]
["ED_MDU541_02865",null,null,null,null,"Coincident"]
["ED_MDU541_02866",null,null,"Weather Corrected MD 50% POE","MVA","Non-Coincident"]
["ED_MDU541_02867",null,null,null,null,"Coincident"]
["ED_MDU541_02868",null,"<Enter substation name>","Substation Rating","MVA","Non-Coincident"]
["ED_MDU541_02869",null,null,null,null,"Coincident"]
["ED_MDU541_02870",null,null,"Raw Adjusted MD","MW","Non-Coincident"]
["ED_MDU541_02871",null,null,null,null,"Coincident"]
["ED_MDU541_02872",null,null,"Raw Adjusted MD","MVA","Non-Coincident"]
["ED_MDU541_02873",null,null,null,null,"Coincident"]
["ED_MDU541_02874",null,null,"Date MD occurred",null,"Non-Coincident"]
["ED_MDU541_02875",null,null,null,null,"Coincident"]
["ED_MDU541_02876",null,null,"Half hour time period MD occurred",null,"Non-Coincident"]
["ED_MDU541_02877",null,null,null,null,"Coincident"]
["ED_MDU541_02878",null,null,"Winter/Summer Peaking",null,"Non-Coincident"]
["ED_MDU541_02879",null,null,null,null,"Coincident"]
["ED_MDU541_02880",null,null,"Adjustments - Embedded generation","MW","Non-Coincident"]
["ED_MDU541_02881",null,null,null,null,"Coincident"]
["ED_MDU541_02882",null,null,"Weather Corrected MD 10% POE","MW","Non-Coincident"]
["ED_MDU541_02883",null,null,null,null,"Coincident"]
["ED_MDU541_02884",null,null,"Weather Corrected MD 10% POE","MVA","Non-Coincident"]
["ED_MDU541_02885",null,null,null,null,"Coincident"]
["ED_MDU541_02886",null,null,"Weather Corrected MD 50% POE","MW","Non-Coincident"]
["ED_MDU541_02887",null,null,null,null,"Coincident"]
["ED_MDU541_02888",null,null,"Weather Corrected MD 50% POE","MVA","Non-Coincident"]
["ED_MDU541_02889",null,null,null,null,"Coincident"]
["ED_MDU541_02890",null,"<Enter substation name>","Substation Rating","MVA","Non-Coincident"]
["ED_MDU541_02891",null,null,null,null,"Coincident"]
["ED_MDU541_02892",null,null,"Raw Adjusted MD","MW","Non-Coincident"]
["ED_MDU541_02893",null,null,null,null,"Coincident"]
["ED_MDU541_02894",null,null,"Raw Adjusted MD","MVA","Non-Coincident"]
["ED_MDU541_02895",null,null,null,null,"Coincident"]
["ED_MDU541_02896",null,null,"Date MD occurred",null,"Non-Coincident"]
["ED_MDU541_02897",null,null,null,null,"Coincident"]
["ED_MDU541_02898",null,null,"Half hour time period MD occurred",null,"Non-Coincident"]
["ED_MDU541_02899",null,null,null,null,"Coincident"]
["ED_MDU541_02900",null,null,"Winter/Summer Peaking",null,"Non-Coincident"]
["ED_MDU541_02901",null,null,null,null,"Coincident"]
["ED_MDU541_02902",null,null,"Adjustments - Embedded generation","MW","Non-Coincident"]
["ED_MDU541_02903",null,null,null,null,"Coincident"]
["ED_MDU541_02904",null,null,"Weather Corrected MD 10% POE","MW","Non-Coincident"]
["ED_MDU541_02905",null,null,null,null,"Coincident"]
["ED_MDU541_02906",null,null,"Weather Corrected MD 10% POE","MVA","Non-Coincident"]
["ED_MDU541_02907",null,null,null,null,"Coincident"]
["ED_MDU541_02908",null,null,"Weather Corrected MD 50% POE","MW","Non-Coincident"]
["ED_MDU541_02909",null,null,null,null,"Coincident"]
["ED_MDU541_02910",null,null,"Weather Corrected MD 50% POE","MVA","Non-Coincident"]
["ED_MDU541_02911",null,null,null,null,"Coincident"]
["ED_MDU541_02912",null,"<Enter substation name>","Substation Rating","MVA","Non-Coincident"]
["ED_MDU541_02913",null,null,null,null,"Coincident"]
["ED_MDU541_02914",null,null,"Raw Adjusted MD","MW","Non-Coincident"]
["ED_MDU541_02915",null,null,null,null,"Coincident"]
["ED_MDU541_02916",null,null,"Raw Adjusted MD","MVA","Non-Coincident"]
["ED_MDU541_02917",null,null,null,null,"Coincident"]
["ED_MDU541_02918",null,null,"Date MD occurred",null,"Non-Coincident"]
["ED_MDU541_02919",null,null,null,null,"Coincident"]
["ED_MDU541_02920",null,null,"Half hour time period MD occurred",null,"Non-Coincident"]
["ED_MDU541_02921",null,null,null,null,"Coincident"]
["ED_MDU541_02922",null,null,"Winter/Summer Peaking",null,"Non-Coincident"]
["ED_MDU541_02923",null,null,null,null,"Coincident"]
["ED_MDU541_02924",null,null,"Adjustments - Embedded generation","MW","Non-Coincident"]
["ED_MDU541_02925",null,null,null,null,"Coincident"]
["ED_MDU541_02926",null,null,"Weather Corrected MD 10% POE","MW","Non-Coincident"]
["ED_MDU541_02927",null,null,null,null,"Coincident"]
["ED_MDU541_02928",null,null,"Weather Corrected MD 10% POE","MVA","Non-Coincident"]
["ED_MDU541_02929",null,null,null,null,"Coincident"]
["ED_MDU541_02930",null,null,"Weather Corrected MD 50% POE","MW","Non-Coincident"]
["ED_MDU541_02931",null,null,null,null,"Coincident"]
["ED_MDU541_02932",null,null,"Weather Corrected MD 50% POE","MVA","Non-Coincident"]
["ED_MDU541_02933",null,null,null,null,"Coincident"]
["ED_MDU541_02934",null,"<Enter substation name>","Substation Rating","MVA","Non-Coincident"]
["ED_MDU541_02935",null,null,null,null,"Coincident"]
["ED_MDU541_02936",null,null,"Raw Adjusted MD","MW","Non-Coincident"]
["ED_MDU541_02937",null,null,null,null,"Coincident"]
["ED_MDU541_02938",null,null,"Raw Adjusted MD","MVA","Non-Coincident"]
["ED_MDU541_02939",null,null,null,null,"Coincident"]
["ED_MDU541_02940",null,null,"Date MD occurred",null,"Non-Coincident"]
["ED_MDU541_02941",null,null,null,null,"Coincident"]
["ED_MDU541_02942",null,null,"Half hour time period MD occurred",null,"Non-Coincident"]
["ED_MDU541_02943",null,null,null,null,"Coincident"]
["ED_MDU541_02944",null,null,"Winter/Summer Peaking",null,"Non-Coincident"]
["ED_MDU541_02945",null,null,null,null,"Coincident"]
["ED_MDU541_02946",null,null,"Adjustments - Embedded generation","MW","Non-Coincident"]
["ED_MDU541_02947",null,null,null,null,"Coincident"]
["ED_MDU541_02948",null,null,"Weather Corrected MD 10% POE","MW","Non-Coincident"]
["ED_MDU541_02949",null,null,null,null,"Coincident"]
["ED_MDU541_02950",null,null,"Weather Corrected MD 10% POE","MVA","Non-Coincident"]
["ED_MDU541_02951",null,null,null,null,"Coincident"]
["ED_MDU541_02952",null,null,"Weather Corrected MD 50% POE","MW","Non-Coincident"]
["ED_MDU541_02953",null,null,null,null,"Coincident"]
["ED_MDU541_02954",null,null,"Weather Corrected MD 50% POE","MVA","Non-Coincident"]
["ED_MDU541_02955",null,null,null,null,"Coincident"]
["ED_MDU541_02956",null,"<Enter substation name>","Substation Rating","MVA","Non-Coincident"]
["ED_MDU541_02957",null,null,null,null,"Coincident"]
["ED_MDU541_02958",null,null,"Raw Adjusted MD","MW","Non-Coincident"]
["ED_MDU541_02959",null,null,null,null,"Coincident"]
["ED_MDU541_02960",null,null,"Raw Adjusted MD","MVA","Non-Coincident"]
["ED_MDU541_02961",null,null,null,null,"Coincident"]
["ED_MDU541_02962",null,null,"Date MD occurred",null,"Non-Coincident"]
["ED_MDU541_02963",null,null,null,null,"Coincident"]
["ED_MDU541_02964",null,null,"Half hour time period MD occurred",null,"Non-Coincident"]
["ED_MDU541_02965",null,null,null,null,"Coincident"]
["ED_MDU541_02966",null,null,"Winter/Summer Peaking",null,"Non-Coincident"]
["ED_MDU541_02967",null,null,null,null,"Coincident"]
["ED_MDU541_02968",null,null,"Adjustments - Embedded generation","MW","Non-Coincident"]
["ED_MDU541_02969",null,null,null,null,"Coincident"]
["ED_MDU541_02970",null,null,"Weather Corrected MD 10% POE","MW","Non-Coincident"]
["ED_MDU541_02971",null,null,null,null,"Coincident"]
["ED_MDU541_02972",null,null,"Weather Corrected MD 10% POE","MVA","Non-Coincident"]
["ED_MDU541_02973",null,null,null,null,"Coincident"]
["ED_MDU541_02974",null,null,"Weather Corrected MD 50% POE","MW","Non-Coincident"]
["ED_MDU541_02975",null,null,null,null,"Coincident"]
["ED_MDU541_02976",null,null,"Weather Corrected MD 50% POE","MVA","Non-Coincident"]
["ED_MDU541_02977",null,null,null,null,"Coincident"]
["ED_MDU541_02978",null,"<Enter substation name>","Substation Rating","MVA","Non-Coincident"]
["ED_MDU541_02979",null,null,null,null,"Coincident"]
["ED_MDU541_02980",null,null,"Raw Adjusted MD","MW","Non-Coincident"]
["ED_MDU541_02981",null,null,null,null,"Coincident"]
["ED_MDU541_02982",null,null,"Raw Adjusted MD","MVA","Non-Coincident"]
["ED_MDU541_02983",null,null,null,null,"Coincident"]
["ED_MDU541_02984",null,null,"Date MD occurred",null,"Non-Coincident"]
["ED_MDU541_02985",null,null,null,null,"Coincident"]
["ED_MDU541_02986",null,null,"Half hour time period MD occurred",null,"Non-Coincident"]
["ED_MDU541_02987",null,null,null,null,"Coincident"]
["ED_MDU541_02988",null,null,"Winter/Summer Peaking",null,"Non-Coincident"]
["ED_MDU541_02989",null,null,null,null,"Coincident"]
["ED_MDU541_02990",null,null,"Adjustments - Embedded generation","MW","Non-Coincident"]
["ED_MDU541_02991",null,null,null,null,"Coincident"]
["ED_MDU541_02992",null,null,"Weather Corrected MD 10% POE","MW","Non-Coincident"]
["ED_MDU541_02993",null,null,null,null,"Coincident"]
["ED_MDU541_02994",null,null,"Weather Corrected MD 10% POE","MVA","Non-Coincident"]
["ED_MDU541_02995",null,null,null,null,"Coincident"]
["ED_MDU541_02996",null,null,"Weather Corrected MD 50% POE","MW","Non-Coincident"]
["ED_MDU541_02997",null,null,null,null,"Coincident"]
["ED_MDU541_02998",null,null,"Weather Corrected MD 50% POE","MVA","Non-Coincident"]
["ED_MDU541_02999",null,null,null,null,"Coincident"]
["ED_MDU541_03000",null,"<Enter substation name>","Substation Rating","MVA","Non-Coincident"]
["ED_MDU541_03001",null,null,null,null,"Coincident"]
["ED_MDU541_03002",null,null,"Raw Adjusted MD","MW","Non-Coincident"]
["ED_MDU541_03003",null,null,null,null,"Coincident"]
["ED_MDU541_03004",null,null,"Raw Adjusted MD","MVA","Non-Coincident"]
["ED_MDU541_03005",null,null,null,null,"Coincident"]
["ED_MDU541_03006",null,null,"Date MD occurred",null,"Non-Coincident"]
["ED_MDU541_03007",null,null,null,null,"Coincident"]
["ED_MDU541_03008",null,null,"Half hour time period MD occurred",null,"Non-Coincident"]
["ED_MDU541_03009",null,null,null,null,"Coincident"]
["ED_MDU541_03010",null,null,"Winter/Summer Peaking",null,"Non-Coincident"]
["ED_MDU541_03011",null,null,null,null,"Coincident"]
["ED_MDU541_03012",null,null,"Adjustments - Embedded generation","MW","Non-Coincident"]
["ED_MDU541_03013",null,null,null,null,"Coincident"]
["ED_MDU541_03014",null,null,"Weather Corrected MD 10% POE","MW","Non-Coincident"]
["ED_MDU541_03015",null,null,null,null,"Coincident"]
["ED_MDU541_03016",null,null,"Weather Corrected MD 10% POE","MVA","Non-Coincident"]
["ED_MDU541_03017",null,null,null,null,"Coincident"]
["ED_MDU541_03018",null,null,"Weather Corrected MD 50% POE","MW","Non-Coincident"]
["ED_MDU541_03019",null,null,null,null,"Coincident"]
["ED_MDU541_03020",null,null,"Weather Corrected MD 50% POE","MVA","Non-Coincident"]
["ED_MDU541_03021",null,null,null,null,"Coincident"]
["ED_MDU541_03022",null,"<Enter substation name>","Substation Rating","MVA","Non-Coincident"]
["ED_MDU541_03023",null,null,null,null,"Coincident"]
["ED_MDU541_03024",null,null,"Raw Adjusted MD","MW","Non-Coincident"]
["ED_MDU541_03025",null,null,null,null,"Coincident"]
["ED_MDU541_03026",null,null,"Raw Adjusted MD","MVA","Non-Coincident"]
["ED_MDU541_03027",null,null,null,null,"Coincident"]
["ED_MDU541_03028",null,null,"Date MD occurred",null,"Non-Coincident"]
["ED_MDU541_03029",null,null,null,null,"Coincident"]
["ED_MDU541_03030",null,null,"Half hour time period MD occurred",null,"Non-Coincident"]
["ED_MDU541_03031",null,null,null,null,"Coincident"]
["ED_MDU541_03032",null,null,"Winter/Summer Peaking",null,"Non-Coincident"]
["ED_MDU541_03033",null,null,null,null,"Coincident"]
["ED_MDU541_03034",null,null,"Adjustments - Embedded generation","MW","Non-Coincident"]
["ED_MDU541_03035",null,null,null,null,"Coincident"]
["ED_MDU541_03036",null,null,"Weather Corrected MD 10% POE","MW","Non-Coincident"]
["ED_MDU541_03037",null,null,null,null,"Coincident"]
["ED_MDU541_03038",null,null,"Weather Corrected MD 10% POE","MVA","Non-Coincident"]
["ED_MDU541_03039",null,null,null,null,"Coincident"]
["ED_MDU541_03040",null,null,"Weather Corrected MD 50% POE","MW","Non-Coincident"]
["ED_MDU541_03041",null,null,null,null,"Coincident"]
["ED_MDU541_03042",null,null,"Weather Corrected MD 50% POE","MVA","Non-Coincident"]
["ED_MDU541_03043",null,null,null,null,"Coincident"]
["ED_MDU541_03044",null,"<Enter substation name>","Substation Rating","MVA","Non-Coincident"]
["ED_MDU541_03045",null,null,null,null,"Coincident"]
["ED_MDU541_03046",null,null,"Raw Adjusted MD","MW","Non-Coincident"]
["ED_MDU541_03047",null,null,null,null,"Coincident"]
["ED_MDU541_03048",null,null,"Raw Adjusted MD","MVA","Non-Coincident"]
["ED_MDU541_03049",null,null,null,null,"Coincident"]
["ED_MDU541_03050",null,null,"Date MD occurred",null,"Non-Coincident"]
["ED_MDU541_03051",null,null,null,null,"Coincident"]
["ED_MDU541_03052",null,null,"Half hour time period MD occurred",null,"Non-Coincident"]
["ED_MDU541_03053",null,null,null,null,"Coincident"]
["ED_MDU541_03054",null,null,"Winter/Summer Peaking",null,"Non-Coincident"]
["ED_MDU541_03055",null,null,null,null,"Coincident"]
["ED_MDU541_03056",null,null,"Adjustments - Embedded generation","MW","Non-Coincident"]
["ED_MDU541_03057",null,null,null,null,"Coincident"]
["ED_MDU541_03058",null,null,"Weather Corrected MD 10% POE","MW","Non-Coincident"]
["ED_MDU541_03059",null,null,null,null,"Coincident"]
["ED_MDU541_03060",null,null,"Weather Corrected MD 10% POE","MVA","Non-Coincident"]
["ED_MDU541_03061",null,null,null,null,"Coincident"]
["ED_MDU541_03062",null,null,"Weather Corrected MD 50% POE","MW","Non-Coincident"]
["ED_MDU541_03063",null,null,null,null,"Coincident"]
["ED_MDU541_03064",null,null,"Weather Corrected MD 50% POE","MVA","Non-Coincident"]
["ED_MDU541_03065",null,null,null,null,"Coincident"]
["ED_MDU541_03066",null,"<Enter substation name>","Substation Rating","MVA","Non-Coincident"]
["ED_MDU541_03067",null,null,null,null,"Coincident"]
["ED_MDU541_03068",null,null,"Raw Adjusted MD","MW","Non-Coincident"]
["ED_MDU541_03069",null,null,null,null,"Coincident"]
["ED_MDU541_03070",null,null,"Raw Adjusted MD","MVA","Non-Coincident"]
["ED_MDU541_03071",null,null,null,null,"Coincident"]
["ED_MDU541_03072",null,null,"Date MD occurred",null,"Non-Coincident"]
["ED_MDU541_03073",null,null,null,null,"Coincident"]
["ED_MDU541_03074",null,null,"Half hour time period MD occurred",null,"Non-Coincident"]
["ED_MDU541_03075",null,null,null,null,"Coincident"]
["ED_MDU541_03076",null,null,"Winter/Summer Peaking",null,"Non-Coincident"]
["ED_MDU541_03077",null,null,null,null,"Coincident"]
["ED_MDU541_03078",null,null,"Adjustments - Embedded generation","MW","Non-Coincident"]
["ED_MDU541_03079",null,null,null,null,"Coincident"]
["ED_MDU541_03080",null,null,"Weather Corrected MD 10% POE","MW","Non-Coincident"]
["ED_MDU541_03081",null,null,null,null,"Coincident"]
["ED_MDU541_03082",null,null,"Weather Corrected MD 10% POE","MVA","Non-Coincident"]
["ED_MDU541_03083",null,null,null,null,"Coincident"]
["ED_MDU541_03084",null,null,"Weather Corrected MD 50% POE","MW","Non-Coincident"]
["ED_MDU541_03085",null,null,null,null,"Coincident"]
["ED_MDU541_03086",null,null,"Weather Corrected MD 50% POE","MVA","Non-Coincident"]
["ED_MDU541_03087",null,null,null,null,"Coincident"]
["ED_MDU541_03088",null,"<Enter substation name>","Substation Rating","MVA","Non-Coincident"]
["ED_MDU541_03089",null,null,null,null,"Coincident"]
["ED_MDU541_03090",null,null,"Raw Adjusted MD","MW","Non-Coincident"]
["ED_MDU541_03091",null,null,null,null,"Coincident"]
["ED_MDU541_03092",null,null,"Raw Adjusted MD","MVA","Non-Coincident"]
["ED_MDU541_03093",null,null,null,null,"Coincident"]
["ED_MDU541_03094",null,null,"Date MD occurred",null,"Non-Coincident"]
["ED_MDU541_03095",null,null,null,null,"Coincident"]
["ED_MDU541_03096",null,null,"Half hour time period MD occurred",null,"Non-Coincident"]
["ED_MDU541_03097",null,null,null,null,"Coincident"]
["ED_MDU541_03098",null,null,"Winter/Summer Peaking",null,"Non-Coincident"]
["ED_MDU541_03099",null,null,null,null,"Coincident"]
["ED_MDU541_03100",null,null,"Adjustments - Embedded generation","MW","Non-Coincident"]
["ED_MDU541_03101",null,null,null,null,"Coincident"]
["ED_MDU541_03102",null,null,"Weather Corrected MD 10% POE","MW","Non-Coincident"]
["ED_MDU541_03103",null,null,null,null,"Coincident"]
["ED_MDU541_03104",null,null,"Weather Corrected MD 10% POE","MVA","Non-Coincident"]
["ED_MDU541_03105",null,null,null,null,"Coincident"]
["ED_MDU541_03106",null,null,"Weather Corrected MD 50% POE","MW","Non-Coincident"]
["ED_MDU541_03107",null,null,null,null,"Coincident"]
["ED_MDU541_03108",null,null,"Weather Corrected MD 50% POE","MVA","Non-Coincident"]
["ED_MDU541_03109",null,null,null,null,"Coincident"]
["ED_MDU541_03110",null,"<Enter substation name>","Substation Rating","MVA","Non-Coincident"]
["ED_MDU541_03111",null,null,null,null,"Coincident"]
["ED_MDU541_03112",null,null,"Raw Adjusted MD","MW","Non-Coincident"]
["ED_MDU541_03113",null,null,null,null,"Coincident"]
["ED_MDU541_03114",null,null,"Raw Adjusted MD","MVA","Non-Coincident"]
["ED_MDU541_03115",null,null,null,null,"Coincident"]
["ED_MDU541_03116",null,null,"Date MD occurred",null,"Non-Coincident"]
["ED_MDU541_03117",null,null,null,null,"Coincident"]
["ED_MDU541_03118",null,null,"Half hour time period MD occurred",null,"Non-Coincident"]
["ED_MDU541_03119",null,null,null,null,"Coincident"]
["ED_MDU541_03120",null,null,"Winter/Summer Peaking",null,"Non-Coincident"]
["ED_MDU541_03121",null,null,null,null,"Coincident"]
["ED_MDU541_03122",null,null,"Adjustments - Embedded generation","MW","Non-Coincident"]
["ED_MDU541_03123",null,null,null,null,"Coincident"]
["ED_MDU541_03124",null,null,"Weather Corrected MD 10% POE","MW","Non-Coincident"]
["ED_MDU541_03125",null,null,null,null,"Coincident"]
["ED_MDU541_03126",null,null,"Weather Corrected MD 10% POE","MVA","Non-Coincident"]
["ED_MDU541_03127",null,null,null,null,"Coincident"]
["ED_MDU541_03128",null,null,"Weather Corrected MD 50% POE","MW","Non-Coincident"]
["ED_MDU541_03129",null,null,null,null,"Coincident"]
["ED_MDU541_03130",null,null,"Weather Corrected MD 50% POE","MVA","Non-Coincident"]
["ED_MDU541_03131",null,null,null,null,"Coincident"]
["ED_MDU541_03132",null,"<Enter substation name>","Substation Rating","MVA","Non-Coincident"]
["ED_MDU541_03133",null,null,null,null,"Coincident"]
["ED_MDU541_03134",null,null,"Raw Adjusted MD","MW","Non-Coincident"]
["ED_MDU541_03135",null,null,null,null,"Coincident"]
["ED_MDU541_03136",null,null,"Raw Adjusted MD","MVA","Non-Coincident"]
["ED_MDU541_03137",null,null,null,null,"Coincident"]
["ED_MDU541_03138",null,null,"Date MD occurred",null,"Non-Coincident"]
["ED_MDU541_03139",null,null,null,null,"Coincident"]
["ED_MDU541_03140",null,null,"Half hour time period MD occurred",null,"Non-Coincident"]
["ED_MDU541_03141",null,null,null,null,"Coincident"]
["ED_MDU541_03142",null,null,"Winter/Summer Peaking",null,"Non-Coincident"]
["ED_MDU541_03143",null,null,null,null,"Coincident"]
["ED_MDU541_03144",null,null,"Adjustments - Embedded generation","MW","Non-Coincident"]
["ED_MDU541_03145",null,null,null,null,"Coincident"]
["ED_MDU541_03146",null,null,"Weather Corrected MD 10% POE","MW","Non-Coincident"]
["ED_MDU541_03147",null,null,null,null,"Coincident"]
["ED_MDU541_03148",null,null,"Weather Corrected MD 10% POE","MVA","Non-Coincident"]
["ED_MDU541_03149",null,null,null,null,"Coincident"]
["ED_MDU541_03150",null,null,"Weather Corrected MD 50% POE","MW","Non-Coincident"]
["ED_MDU541_03151",null,null,null,null,"Coincident"]
["ED_MDU541_03152",null,null,"Weather Corrected MD 50% POE","MVA","Non-Coincident"]
["ED_MDU541_03153",null,null,null,null,"Coincident"]
["ED_MDU541_03154",null,"<Enter substation name>","Substation Rating","MVA","Non-Coincident"]
["ED_MDU541_03155",null,null,null,null,"Coincident"]
["ED_MDU541_03156",null,null,"Raw Adjusted MD","MW","Non-Coincident"]
["ED_MDU541_03157",null,null,null,null,"Coincident"]
["ED_MDU541_03158",null,null,"Raw Adjusted MD","MVA","Non-Coincident"]
["ED_MDU541_03159",null,null,null,null,"Coincident"]
["ED_MDU541_03160",null,null,"Date MD occurred",null,"Non-Coincident"]
["ED_MDU541_03161",null,null,null,null,"Coincident"]
["ED_MDU541_03162",null,null,"Half hour time period MD occurred",null,"Non-Coincident"]
["ED_MDU541_03163",null,null,null,null,"Coincident"]
["ED_MDU541_03164",null,null,"Winter/Summer Peaking",null,"Non-Coincident"]
["ED_MDU541_03165",null,null,null,null,"Coincident"]
["ED_MDU541_03166",null,null,"Adjustments - Embedded generation","MW","Non-Coincident"]
["ED_MDU541_03167",null,null,null,null,"Coincident"]
["ED_MDU541_03168",null,null,"Weather Corrected MD 10% POE","MW","Non-Coincident"]
["ED_MDU541_03169",null,null,null,null,"Coincident"]
["ED_MDU541_03170",null,null,"Weather Corrected MD 10% POE","MVA","Non-Coincident"]
["ED_MDU541_03171",null,null,null,null,"Coincident"]
["ED_MDU541_03172",null,null,"Weather Corrected MD 50% POE","MW","Non-Coincident"]
["ED_MDU541_03173",null,null,null,null,"Coincident"]
["ED_MDU541_03174",null,null,"Weather Corrected MD 50% POE","MVA","Non-Coincident"]
["ED_MDU541_03175",null,null,null,null,"Coincident"]
["ED_MDU541_03176",null,"<Enter substation name>","Substation Rating","MVA","Non-Coincident"]
["ED_MDU541_03177",null,null,null,null,"Coincident"]
["ED_MDU541_03178",null,null,"Raw Adjusted MD","MW","Non-Coincident"]
["ED_MDU541_03179",null,null,null,null,"Coincident"]
["ED_MDU541_03180",null,null,"Raw Adjusted MD","MVA","Non-Coincident"]
["ED_MDU541_03181",null,null,null,null,"Coincident"]
["ED_MDU541_03182",null,null,"Date MD occurred",null,"Non-Coincident"]
["ED_MDU541_03183",null,null,null,null,"Coincident"]
["ED_MDU541_03184",null,null,"Half hour time period MD occurred",null,"Non-Coincident"]
["ED_MDU541_03185",null,null,null,null,"Coincident"]
["ED_MDU541_03186",null,null,"Winter/Summer Peaking",null,"Non-Coincident"]
["ED_MDU541_03187",null,null,null,null,"Coincident"]
["ED_MDU541_03188",null,null,"Adjustments - Embedded generation","MW","Non-Coincident"]
["ED_MDU541_03189",null,null,null,null,"Coincident"]
["ED_MDU541_03190",null,null,"Weather Corrected MD 10% POE","MW","Non-Coincident"]
["ED_MDU541_03191",null,null,null,null,"Coincident"]
["ED_MDU541_03192",null,null,"Weather Corrected MD 10% POE","MVA","Non-Coincident"]
["ED_MDU541_03193",null,null,null,null,"Coincident"]
["ED_MDU541_03194",null,null,"Weather Corrected MD 50% POE","MW","Non-Coincident"]
["ED_MDU541_03195",null,null,null,null,"Coincident"]
["ED_MDU541_03196",null,null,"Weather Corrected MD 50% POE","MVA","Non-Coincident"]
["ED_MDU541_03197",null,null,null,null,"Coincident"]
["ED_MDU541_03198",null,"<Enter substation name>","Substation Rating","MVA","Non-Coincident"]
["ED_MDU541_03199",null,null,null,null,"Coincident"]
["ED_MDU541_03200",null,null,"Raw Adjusted MD","MW","Non-Coincident"]
["ED_MDU541_03201",null,null,null,null,"Coincident"]
["ED_MDU541_03202",null,null,"Raw Adjusted MD","MVA","Non-Coincident"]
["ED_MDU541_03203",null,null,null,null,"Coincident"]
["ED_MDU541_03204",null,null,"Date MD occurred",null,"Non-Coincident"]
["ED_MDU541_03205",null,null,null,null,"Coincident"]
["ED_MDU541_03206",null,null,"Half hour time period MD occurred",null,"Non-Coincident"]
["ED_MDU541_03207",null,null,null,null,"Coincident"]
["ED_MDU541_03208",null,null,"Winter/Summer Peaking",null,"Non-Coincident"]
["ED_MDU541_03209",null,null,null,null,"Coincident"]
["ED_MDU541_03210",null,null,"Adjustments - Embedded generation","MW","Non-Coincident"]
["ED_MDU541_03211",null,null,null,null,"Coincident"]
["ED_MDU541_03212",null,null,"Weather Corrected MD 10% POE","MW","Non-Coincident"]
["ED_MDU541_03213",null,null,null,null,"Coincident"]
["ED_MDU541_03214",null,null,"Weather Corrected MD 10% POE","MVA","Non-Coincident"]
["ED_MDU541_03215",null,null,null,null,"Coincident"]
["ED_MDU541_03216",null,null,"Weather Corrected MD 50% POE","MW","Non-Coincident"]
["ED_MDU541_03217",null,null,null,null,"Coincident"]
["ED_MDU541_03218",null,null,"Weather Corrected MD 50% POE","MVA","Non-Coincident"]
["ED_MDU541_03219",null,null,null,null,"Coincident"]
["ED_MDU541_03220",null,"<Enter substation name>","Substation Rating","MVA","Non-Coincident"]
["ED_MDU541_03221",null,null,null,null,"Coincident"]
["ED_MDU541_03222",null,null,"Raw Adjusted MD","MW","Non-Coincident"]
["ED_MDU541_03223",null,null,null,null,"Coincident"]
["ED_MDU541_03224",null,null,"Raw Adjusted MD","MVA","Non-Coincident"]
["ED_MDU541_03225",null,null,null,null,"Coincident"]
["ED_MDU541_03226",null,null,"Date MD occurred",null,"Non-Coincident"]
["ED_MDU541_03227",null,null,null,null,"Coincident"]
["ED_MDU541_03228",null,null,"Half hour time period MD occurred",null,"Non-Coincident"]
["ED_MDU541_03229",null,null,null,null,"Coincident"]
["ED_MDU541_03230",null,null,"Winter/Summer Peaking",null,"Non-Coincident"]
["ED_MDU541_03231",null,null,null,null,"Coincident"]
["ED_MDU541_03232",null,null,"Adjustments - Embedded generation","MW","Non-Coincident"]
["ED_MDU541_03233",null,null,null,null,"Coincident"]
["ED_MDU541_03234",null,null,"Weather Corrected MD 10% POE","MW","Non-Coincident"]
["ED_MDU541_03235",null,null,null,null,"Coincident"]
["ED_MDU541_03236",null,null,"Weather Corrected MD 10% POE","MVA","Non-Coincident"]
["ED_MDU541_03237",null,null,null,null,"Coincident"]
["ED_MDU541_03238",null,null,"Weather Corrected MD 50% POE","MW","Non-Coincident"]
["ED_MDU541_03239",null,null,null,null,"Coincident"]
["ED_MDU541_03240",null,null,"Weather Corrected MD 50% POE","MVA","Non-Coincident"]
["ED_MDU541_03241",null,null,null,null,"Coincident"]
["ED_MDU541_03242",null,"<Enter substation name>","Substation Rating","MVA","Non-Coincident"]
["ED_MDU541_03243",null,null,null,null,"Coincident"]
["ED_MDU541_03244",null,null,"Raw Adjusted MD","MW","Non-Coincident"]
["ED_MDU541_03245",null,null,null,null,"Coincident"]
["ED_MDU541_03246",null,null,"Raw Adjusted MD","MVA","Non-Coincident"]
["ED_MDU541_03247",null,null,null,null,"Coincident"]
["ED_MDU541_03248",null,null,"Date MD occurred",null,"Non-Coincident"]
["ED_MDU541_03249",null,null,null,null,"Coincident"]
["ED_MDU541_03250",null,null,"Half hour time period MD occurred",null,"Non-Coincident"]
["ED_MDU541_03251",null,null,null,null,"Coincident"]
["ED_MDU541_03252",null,null,"Winter/Summer Peaking",null,"Non-Coincident"]
["ED_MDU541_03253",null,null,null,null,"Coincident"]
["ED_MDU541_03254",null,null,"Adjustments - Embedded generation","MW","Non-Coincident"]
["ED_MDU541_03255",null,null,null,null,"Coincident"]
["ED_MDU541_03256",null,null,"Weather Corrected MD 10% POE","MW","Non-Coincident"]
["ED_MDU541_03257",null,null,null,null,"Coincident"]
["ED_MDU541_03258",null,null,"Weather Corrected MD 10% POE","MVA","Non-Coincident"]
["ED_MDU541_03259",null,null,null,null,"Coincident"]
["ED_MDU541_03260",null,null,"Weather Corrected MD 50% POE","MW","Non-Coincident"]
["ED_MDU541_03261",null,null,null,null,"Coincident"]
["ED_MDU541_03262",null,null,"Weather Corrected MD 50% POE","MVA","Non-Coincident"]
["ED_MDU541_03263",null,null,null,null,"Coincident"]
["ED_MDU541_03264",null,"<Enter substation name>","Substation Rating","MVA","Non-Coincident"]
["ED_MDU541_03265",null,null,null,null,"Coincident"]
["ED_MDU541_03266",null,null,"Raw Adjusted MD","MW","Non-Coincident"]
["ED_MDU541_03267",null,null,null,null,"Coincident"]
["ED_MDU541_03268",null,null,"Raw Adjusted MD","MVA","Non-Coincident"]
["ED_MDU541_03269",null,null,null,null,"Coincident"]
["ED_MDU541_03270",null,null,"Date MD occurred",null,"Non-Coincident"]
["ED_MDU541_03271",null,null,null,null,"Coincident"]
["ED_MDU541_03272",null,null,"Half hour time period MD occurred",null,"Non-Coincident"]
["ED_MDU541_03273",null,null,null,null,"Coincident"]
["ED_MDU541_03274",null,null,"Winter/Summer Peaking",null,"Non-Coincident"]
["ED_MDU541_03275",null,null,null,null,"Coincident"]
["ED_MDU541_03276",null,null,"Adjustments - Embedded generation","MW","Non-Coincident"]
["ED_MDU541_03277",null,null,null,null,"Coincident"]
["ED_MDU541_03278",null,null,"Weather Corrected MD 10% POE","MW","Non-Coincident"]
["ED_MDU541_03279",null,null,null,null,"Coincident"]
["ED_MDU541_03280",null,null,"Weather Corrected MD 10% POE","MVA","Non-Coincident"]
["ED_MDU541_03281",null,null,null,null,"Coincident"]
["ED_MDU541_03282",null,null,"Weather Corrected MD 50% POE","MW","Non-Coincident"]
["ED_MDU541_03283",null,null,null,null,"Coincident"]
["ED_MDU541_03284",null,null,"Weather Corrected MD 50% POE","MVA","Non-Coincident"]
["ED_MDU541_03285",null,null,null,null,"Coincident"]
["ED_MDU541_03286",null,"<Enter substation name>","Substation Rating","MVA","Non-Coincident"]
["ED_MDU541_03287",null,null,null,null,"Coincident"]
["ED_MDU541_03288",null,null,"Raw Adjusted MD","MW","Non-Coincident"]
["ED_MDU541_03289",null,null,null,null,"Coincident"]
["ED_MDU541_03290",null,null,"Raw Adjusted MD","MVA","Non-Coincident"]
["ED_MDU541_03291",null,null,null,null,"Coincident"]
["ED_MDU541_03292",null,null,"Date MD occurred",null,"Non-Coincident"]
["ED_MDU541_03293",null,null,null,null,"Coincident"]
["ED_MDU541_03294",null,null,"Half hour time period MD occurred",null,"Non-Coincident"]
["ED_MDU541_03295",null,null,null,null,"Coincident"]
["ED_MDU541_03296",null,null,"Winter/Summer Peaking",null,"Non-Coincident"]
["ED_MDU541_03297",null,null,null,null,"Coincident"]
["ED_MDU541_03298",null,null,"Adjustments - Embedded generation","MW","Non-Coincident"]
["ED_MDU541_03299",null,null,null,null,"Coincident"]
["ED_MDU541_03300",null,null,"Weather Corrected MD 10% POE","MW","Non-Coincident"]
["ED_MDU541_03301",null,null,null,null,"Coincident"]
["ED_MDU541_03302",null,null,"Weather Corrected MD 10% POE","MVA","Non-Coincident"]
["ED_MDU541_03303",null,null,null,null,"Coincident"]
["ED_MDU541_03304",null,null,"Weather Corrected MD 50% POE","MW","Non-Coincident"]
["ED_MDU541_03305",null,null,null,null,"Coincident"]
["ED_MDU541_03306",null,null,"Weather Corrected MD 50% POE","MVA","Non-Coincident"]
["ED_MDU541_03307",null,null,null,null,"Coincident"]
["ED_MDU541_03308",null,"<Enter substation name>","Substation Rating","MVA","Non-Coincident"]
["ED_MDU541_03309",null,null,null,null,"Coincident"]
["ED_MDU541_03310",null,null,"Raw Adjusted MD","MW","Non-Coincident"]
["ED_MDU541_03311",null,null,null,null,"Coincident"]
["ED_MDU541_03312",null,null,"Raw Adjusted MD","MVA","Non-Coincident"]
["ED_MDU541_03313",null,null,null,null,"Coincident"]
["ED_MDU541_03314",null,null,"Date MD occurred",null,"Non-Coincident"]
["ED_MDU541_03315",null,null,null,null,"Coincident"]
["ED_MDU541_03316",null,null,"Half hour time period MD occurred",null,"Non-Coincident"]
["ED_MDU541_03317",null,null,null,null,"Coincident"]
["ED_MDU541_03318",null,null,"Winter/Summer Peaking",null,"Non-Coincident"]
["ED_MDU541_03319",null,null,null,null,"Coincident"]
["ED_MDU541_03320",null,null,"Adjustments - Embedded generation","MW","Non-Coincident"]
["ED_MDU541_03321",null,null,null,null,"Coincident"]
["ED_MDU541_03322",null,null,"Weather Corrected MD 10% POE","MW","Non-Coincident"]
["ED_MDU541_03323",null,null,null,null,"Coincident"]
["ED_MDU541_03324",null,null,"Weather Corrected MD 10% POE","MVA","Non-Coincident"]
["ED_MDU541_03325",null,null,null,null,"Coincident"]
["ED_MDU541_03326",null,null,"Weather Corrected MD 50% POE","MW","Non-Coincident"]
["ED_MDU541_03327",null,null,null,null,"Coincident"]
["ED_MDU541_03328",null,null,"Weather Corrected MD 50% POE","MVA","Non-Coincident"]
["ED_MDU541_03329",null,null,null,null,"Coincident"]
["ED_MDU541_03330",null,"<Enter substation name>","Substation Rating","MVA","Non-Coincident"]
["ED_MDU541_03331",null,null,null,null,"Coincident"]
["ED_MDU541_03332",null,null,"Raw Adjusted MD","MW","Non-Coincident"]
["ED_MDU541_03333",null,null,null,null,"Coincident"]
["ED_MDU541_03334",null,null,"Raw Adjusted MD","MVA","Non-Coincident"]
["ED_MDU541_03335",null,null,null,null,"Coincident"]
["ED_MDU541_03336",null,null,"Date MD occurred",null,"Non-Coincident"]
["ED_MDU541_03337",null,null,null,null,"Coincident"]
["ED_MDU541_03338",null,null,"Half hour time period MD occurred",null,"Non-Coincident"]
["ED_MDU541_03339",null,null,null,null,"Coincident"]
["ED_MDU541_03340",null,null,"Winter/Summer Peaking",null,"Non-Coincident"]
["ED_MDU541_03341",null,null,null,null,"Coincident"]
["ED_MDU541_03342",null,null,"Adjustments - Embedded generation","MW","Non-Coincident"]
["ED_MDU541_03343",null,null,null,null,"Coincident"]
["ED_MDU541_03344",null,null,"Weather Corrected MD 10% POE","MW","Non-Coincident"]
["ED_MDU541_03345",null,null,null,null,"Coincident"]
["ED_MDU541_03346",null,null,"Weather Corrected MD 10% POE","MVA","Non-Coincident"]
["ED_MDU541_03347",null,null,null,null,"Coincident"]
["ED_MDU541_03348",null,null,"Weather Corrected MD 50% POE","MW","Non-Coincident"]
["ED_MDU541_03349",null,null,null,null,"Coincident"]
["ED_MDU541_03350",null,null,"Weather Corrected MD 50% POE","MVA","Non-Coincident"]
["ED_MDU541_03351",null,null,null,null,"Coincident"]
["ED_MDU541_03352",null,"<Enter substation name>","Substation Rating","MVA","Non-Coincident"]
["ED_MDU541_03353",null,null,null,null,"Coincident"]
["ED_MDU541_03354",null,null,"Raw Adjusted MD","MW","Non-Coincident"]
["ED_MDU541_03355",null,null,null,null,"Coincident"]
["ED_MDU541_03356",null,null,"Raw Adjusted MD","MVA","Non-Coincident"]
["ED_MDU541_03357",null,null,null,null,"Coincident"]
["ED_MDU541_03358",null,null,"Date MD occurred",null,"Non-Coincident"]
["ED_MDU541_03359",null,null,null,null,"Coincident"]
["ED_MDU541_03360",null,null,"Half hour time period MD occurred",null,"Non-Coincident"]
["ED_MDU541_03361",null,null,null,null,"Coincident"]
["ED_MDU541_03362",null,null,"Winter/Summer Peaking",null,"Non-Coincident"]
["ED_MDU541_03363",null,null,null,null,"Coincident"]
["ED_MDU541_03364",null,null,"Adjustments - Embedded generation","MW","Non-Coincident"]
["ED_MDU541_03365",null,null,null,null,"Coincident"]
["ED_MDU541_03366",null,null,"Weather Corrected MD 10% POE","MW","Non-Coincident"]
["ED_MDU541_03367",null,null,null,null,"Coincident"]
["ED_MDU541_03368",null,null,"Weather Corrected MD 10% POE","MVA","Non-Coincident"]
["ED_MDU541_03369",null,null,null,null,"Coincident"]
["ED_MDU541_03370",null,null,"Weather Corrected MD 50% POE","MW","Non-Coincident"]
["ED_MDU541_03371",null,null,null,null,"Coincident"]
["ED_MDU541_03372",null,null,"Weather Corrected MD 50% POE","MVA","Non-Coincident"]
["ED_MDU541_03373",null,null,null,null,"Coincident"]
["ED_MDU541_03374",null,"<Enter substation name>","Substation Rating","MVA","Non-Coincident"]
["ED_MDU541_03375",null,null,null,null,"Coincident"]
["ED_MDU541_03376",null,null,"Raw Adjusted MD","MW","Non-Coincident"]
["ED_MDU541_03377",null,null,null,null,"Coincident"]
["ED_MDU541_03378",null,null,"Raw Adjusted MD","MVA","Non-Coincident"]
["ED_MDU541_03379",null,null,null,null,"Coincident"]
["ED_MDU541_03380",null,null,"Date MD occurred",null,"Non-Coincident"]
["ED_MDU541_03381",null,null,null,null,"Coincident"]
["ED_MDU541_03382",null,null,"Half hour time period MD occurred",null,"Non-Coincident"]
["ED_MDU541_03383",null,null,null,null,"Coincident"]
["ED_MDU541_03384",null,null,"Winter/Summer Peaking",null,"Non-Coincident"]
["ED_MDU541_03385",null,null,null,null,"Coincident"]
["ED_MDU541_03386",null,null,"Adjustments - Embedded generation","MW","Non-Coincident"]
["ED_MDU541_03387",null,null,null,null,"Coincident"]
["ED_MDU541_03388",null,null,"Weather Corrected MD 10% POE","MW","Non-Coincident"]
["ED_MDU541_03389",null,null,null,null,"Coincident"]
["ED_MDU541_03390",null,null,"Weather Corrected MD 10% POE","MVA","Non-Coincident"]
["ED_MDU541_03391",null,null,null,null,"Coincident"]
["ED_MDU541_03392",null,null,"Weather Corrected MD 50% POE","MW","Non-Coincident"]
["ED_MDU541_03393",null,null,null,null,"Coincident"]
["ED_MDU541_03394",null,null,"Weather Corrected MD 50% POE","MVA","Non-Coincident"]
["ED_MDU541_03395",null,null,null,null,"Coincident"]
["ED_MDU541_03396",null,"<Enter substation name>","Substation Rating","MVA","Non-Coincident"]
["ED_MDU541_03397",null,null,null,null,"Coincident"]
["ED_MDU541_03398",null,null,"Raw Adjusted MD","MW","Non-Coincident"]
["ED_MDU541_03399",null,null,null,null,"Coincident"]
["ED_MDU541_03400",null,null,"Raw Adjusted MD","MVA","Non-Coincident"]
["ED_MDU541_03401",null,null,null,null,"Coincident"]
["ED_MDU541_03402",null,null,"Date MD occurred",null,"Non-Coincident"]
["ED_MDU541_03403",null,null,null,null,"Coincident"]
["ED_MDU541_03404",null,null,"Half hour time period MD occurred",null,"Non-Coincident"]
["ED_MDU541_03405",null,null,null,null,"Coincident"]
["ED_MDU541_03406",null,null,"Winter/Summer Peaking",null,"Non-Coincident"]
["ED_MDU541_03407",null,null,null,null,"Coincident"]
["ED_MDU541_03408",null,null,"Adjustments - Embedded generation","MW","Non-Coincident"]
["ED_MDU541_03409",null,null,null,null,"Coincident"]
["ED_MDU541_03410",null,null,"Weather Corrected MD 10% POE","MW","Non-Coincident"]
["ED_MDU541_03411",null,null,null,null,"Coincident"]
["ED_MDU541_03412",null,null,"Weather Corrected MD 10% POE","MVA","Non-Coincident"]
["ED_MDU541_03413",null,null,null,null,"Coincident"]
["ED_MDU541_03414",null,null,"Weather Corrected MD 50% POE","MW","Non-Coincident"]
["ED_MDU541_03415",null,null,null,null,"Coincident"]
["ED_MDU541_03416",null,null,"Weather Corrected MD 50% POE","MVA","Non-Coincident"]
["ED_MDU541_03417",null,null,null,null,"Coincident"]
["ED_MDU541_03418",null,"<Enter substation name>","Substation Rating","MVA","Non-Coincident"]
["ED_MDU541_03419",null,null,null,null,"Coincident"]
["ED_MDU541_03420",null,null,"Raw Adjusted MD","MW","Non-Coincident"]
["ED_MDU541_03421",null,null,null,null,"Coincident"]
["ED_MDU541_03422",null,null,"Raw Adjusted MD","MVA","Non-Coincident"]
["ED_MDU541_03423",null,null,null,null,"Coincident"]
["ED_MDU541_03424",null,null,"Date MD occurred",null,"Non-Coincident"]
["ED_MDU541_03425",null,null,null,null,"Coincident"]
["ED_MDU541_03426",null,null,"Half hour time period MD occurred",null,"Non-Coincident"]
["ED_MDU541_03427",null,null,null,null,"Coincident"]
["ED_MDU541_03428",null,null,"Winter/Summer Peaking",null,"Non-Coincident"]
["ED_MDU541_03429",null,null,null,null,"Coincident"]
["ED_MDU541_03430",null,null,"Adjustments - Embedded generation","MW","Non-Coincident"]
["ED_MDU541_03431",null,null,null,null,"Coincident"]
["ED_MDU541_03432",null,null,"Weather Corrected MD 10% POE","MW","Non-Coincident"]
["ED_MDU541_03433",null,null,null,null,"Coincident"]
["ED_MDU541_03434",null,null,"Weather Corrected MD 10% POE","MVA","Non-Coincident"]
["ED_MDU541_03435",null,null,null,null,"Coincident"]
["ED_MDU541_03436",null,null,"Weather Corrected MD 50% POE","MW","Non-Coincident"]
["ED_MDU541_03437",null,null,null,null,"Coincident"]
["ED_MDU541_03438",null,null,"Weather Corrected MD 50% POE","MVA","Non-Coincident"]
["ED_MDU541_03439",null,null,null,null,"Coincident"]
["ED_MDU541_03440",null,"<Enter substation name>","Substation Rating","MVA","Non-Coincident"]
["ED_MDU541_03441",null,null,null,null,"Coincident"]
["ED_MDU541_03442",null,null,"Raw Adjusted MD","MW","Non-Coincident"]
["ED_MDU541_03443",null,null,null,null,"Coincident"]
["ED_MDU541_03444",null,null,"Raw Adjusted MD","MVA","Non-Coincident"]
["ED_MDU541_03445",null,null,null,null,"Coincident"]
["ED_MDU541_03446",null,null,"Date MD occurred",null,"Non-Coincident"]
["ED_MDU541_03447",null,null,null,null,"Coincident"]
["ED_MDU541_03448",null,null,"Half hour time period MD occurred",null,"Non-Coincident"]
["ED_MDU541_03449",null,null,null,null,"Coincident"]
["ED_MDU541_03450",null,null,"Winter/Summer Peaking",null,"Non-Coincident"]
["ED_MDU541_03451",null,null,null,null,"Coincident"]
["ED_MDU541_03452",null,null,"Adjustments - Embedded generation","MW","Non-Coincident"]
["ED_MDU541_03453",null,null,null,null,"Coincident"]
["ED_MDU541_03454",null,null,"Weather Corrected MD 10% POE","MW","Non-Coincident"]
["ED_MDU541_03455",null,null,null,null,"Coincident"]
["ED_MDU541_03456",null,null,"Weather Corrected MD 10% POE","MVA","Non-Coincident"]
["ED_MDU541_03457",null,null,null,null,"Coincident"]
["ED_MDU541_03458",null,null,"Weather Corrected MD 50% POE","MW","Non-Coincident"]
["ED_MDU541_03459",null,null,null,null,"Coincident"]
["ED_MDU541_03460",null,null,"Weather Corrected MD 50% POE","MVA","Non-Coincident"]
["ED_MDU541_03461",null,null,null,null,"Coincident"]
["ED_MDU541_03462",null,"<Enter substation name>","Substation Rating","MVA","Non-Coincident"]
["ED_MDU541_03463",null,null,null,null,"Coincident"]
["ED_MDU541_03464",null,null,"Raw Adjusted MD","MW","Non-Coincident"]
["ED_MDU541_03465",null,null,null,null,"Coincident"]
["ED_MDU541_03466",null,null,"Raw Adjusted MD","MVA","Non-Coincident"]
["ED_MDU541_03467",null,null,null,null,"Coincident"]
["ED_MDU541_03468",null,null,"Date MD occurred",null,"Non-Coincident"]
["ED_MDU541_03469",null,null,null,null,"Coincident"]
["ED_MDU541_03470",null,null,"Half hour time period MD occurred",null,"Non-Coincident"]
["ED_MDU541_03471",null,null,null,null,"Coincident"]
["ED_MDU541_03472",null,null,"Winter/Summer Peaking",null,"Non-Coincident"]
["ED_MDU541_03473",null,null,null,null,"Coincident"]
["ED_MDU541_03474",null,null,"Adjustments - Embedded generation","MW","Non-Coincident"]
["ED_MDU541_03475",null,null,null,null,"Coincident"]
["ED_MDU541_03476",null,null,"Weather Corrected MD 10% POE","MW","Non-Coincident"]
["ED_MDU541_03477",null,null,null,null,"Coincident"]
["ED_MDU541_03478",null,null,"Weather Corrected MD 10% POE","MVA","Non-Coincident"]
["ED_MDU541_03479",null,null,null,null,"Coincident"]
["ED_MDU541_03480",null,null,"Weather Corrected MD 50% POE","MW","Non-Coincident"]
["ED_MDU541_03481",null,null,null,null,"Coincident"]
["ED_MDU541_03482",null,null,"Weather Corrected MD 50% POE","MVA","Non-Coincident"]
["ED_MDU541_03483",null,null,null,null,"Coincident"]
["ED_MDU541_03484",null,"<Enter substation name>","Substation Rating","MVA","Non-Coincident"]
["ED_MDU541_03485",null,null,null,null,"Coincident"]
["ED_MDU541_03486",null,null,"Raw Adjusted MD","MW","Non-Coincident"]
["ED_MDU541_03487",null,null,null,null,"Coincident"]
["ED_MDU541_03488",null,null,"Raw Adjusted MD","MVA","Non-Coincident"]
["ED_MDU541_03489",null,null,null,null,"Coincident"]
["ED_MDU541_03490",null,null,"Date MD occurred",null,"Non-Coincident"]
["ED_MDU541_03491",null,null,null,null,"Coincident"]
["ED_MDU541_03492",null,null,"Half hour time period MD occurred",null,"Non-Coincident"]
["ED_MDU541_03493",null,null,null,null,"Coincident"]
["ED_MDU541_03494",null,null,"Winter/Summer Peaking",null,"Non-Coincident"]
["ED_MDU541_03495",null,null,null,null,"Coincident"]
["ED_MDU541_03496",null,null,"Adjustments - Embedded generation","MW","Non-Coincident"]
["ED_MDU541_03497",null,null,null,null,"Coincident"]
["ED_MDU541_03498",null,null,"Weather Corrected MD 10% POE","MW","Non-Coincident"]
["ED_MDU541_03499",null,null,null,null,"Coincident"]
["ED_MDU541_03500",null,null,"Weather Corrected MD 10% POE","MVA","Non-Coincident"]
["ED_MDU541_03501",null,null,null,null,"Coincident"]
["ED_MDU541_03502",null,null,"Weather Corrected MD 50% POE","MW","Non-Coincident"]
["ED_MDU541_03503",null,null,null,null,"Coincident"]
["ED_MDU541_03504",null,null,"Weather Corrected MD 50% POE","MVA","Non-Coincident"]
["ED_MDU541_03505",null,null,null,null,"Coincident"]
["ED_MDU541_03506",null,"<Enter substation name>","Substation Rating","MVA","Non-Coincident"]
["ED_MDU541_03507",null,null,null,null,"Coincident"]
["ED_MDU541_03508",null,null,"Raw Adjusted MD","MW","Non-Coincident"]
["ED_MDU541_03509",null,null,null,null,"Coincident"]
["ED_MDU541_03510",null,null,"Raw Adjusted MD","MVA","Non-Coincident"]
["ED_MDU541_03511",null,null,null,null,"Coincident"]
["ED_MDU541_03512",null,null,"Date MD occurred",null,"Non-Coincident"]
["ED_MDU541_03513",null,null,null,null,"Coincident"]
["ED_MDU541_03514",null,null,"Half hour time period MD occurred",null,"Non-Coincident"]
["ED_MDU541_03515",null,null,null,null,"Coincident"]
["ED_MDU541_03516",null,null,"Winter/Summer Peaking",null,"Non-Coincident"]
["ED_MDU541_03517",null,null,null,null,"Coincident"]
["ED_MDU541_03518",null,null,"Adjustments - Embedded generation","MW","Non-Coincident"]
["ED_MDU541_03519",null,null,null,null,"Coincident"]
["ED_MDU541_03520",null,null,"Weather Corrected MD 10% POE","MW","Non-Coincident"]
["ED_MDU541_03521",null,null,null,null,"Coincident"]
["ED_MDU541_03522",null,null,"Weather Corrected MD 10% POE","MVA","Non-Coincident"]
["ED_MDU541_03523",null,null,null,null,"Coincident"]
["ED_MDU541_03524",null,null,"Weather Corrected MD 50% POE","MW","Non-Coincident"]
["ED_MDU541_03525",null,null,null,null,"Coincident"]
["ED_MDU541_03526",null,null,"Weather Corrected MD 50% POE","MVA","Non-Coincident"]
["ED_MDU541_03527",null,null,null,null,"Coincident"]
["ED_MDU541_03528",null,"<Enter substation name>","Substation Rating","MVA","Non-Coincident"]
["ED_MDU541_03529",null,null,null,null,"Coincident"]
["ED_MDU541_03530",null,null,"Raw Adjusted MD","MW","Non-Coincident"]
["ED_MDU541_03531",null,null,null,null,"Coincident"]
["ED_MDU541_03532",null,null,"Raw Adjusted MD","MVA","Non-Coincident"]
["ED_MDU541_03533",null,null,null,null,"Coincident"]
["ED_MDU541_03534",null,null,"Date MD occurred",null,"Non-Coincident"]
["ED_MDU541_03535",null,null,null,null,"Coincident"]
["ED_MDU541_03536",null,null,"Half hour time period MD occurred",null,"Non-Coincident"]
["ED_MDU541_03537",null,null,null,null,"Coincident"]
["ED_MDU541_03538",null,null,"Winter/Summer Peaking",null,"Non-Coincident"]
["ED_MDU541_03539",null,null,null,null,"Coincident"]
["ED_MDU541_03540",null,null,"Adjustments - Embedded generation","MW","Non-Coincident"]
["ED_MDU541_03541",null,null,null,null,"Coincident"]
["ED_MDU541_03542",null,null,"Weather Corrected MD 10% POE","MW","Non-Coincident"]
["ED_MDU541_03543",null,null,null,null,"Coincident"]
["ED_MDU541_03544",null,null,"Weather Corrected MD 10% POE","MVA","Non-Coincident"]
["ED_MDU541_03545",null,null,null,null,"Coincident"]
["ED_MDU541_03546",null,null,"Weather Corrected MD 50% POE","MW","Non-Coincident"]
["ED_MDU541_03547",null,null,null,null,"Coincident"]
["ED_MDU541_03548",null,null,"Weather Corrected MD 50% POE","MVA","Non-Coincident"]
["ED_MDU541_03549",null,null,null,null,"Coincident"]
["ED_MDU541_03550",null,"<Enter substation name>","Substation Rating","MVA","Non-Coincident"]
["ED_MDU541_03551",null,null,null,null,"Coincident"]
["ED_MDU541_03552",null,null,"Raw Adjusted MD","MW","Non-Coincident"]
["ED_MDU541_03553",null,null,null,null,"Coincident"]
["ED_MDU541_03554",null,null,"Raw Adjusted MD","MVA","Non-Coincident"]
["ED_MDU541_03555",null,null,null,null,"Coincident"]
["ED_MDU541_03556",null,null,"Date MD occurred",null,"Non-Coincident"]
["ED_MDU541_03557",null,null,null,null,"Coincident"]
["ED_MDU541_03558",null,null,"Half hour time period MD occurred",null,"Non-Coincident"]
["ED_MDU541_03559",null,null,null,null,"Coincident"]
["ED_MDU541_03560",null,null,"Winter/Summer Peaking",null,"Non-Coincident"]
["ED_MDU541_03561",null,null,null,null,"Coincident"]
["ED_MDU541_03562",null,null,"Adjustments - Embedded generation","MW","Non-Coincident"]
["ED_MDU541_03563",null,null,null,null,"Coincident"]
["ED_MDU541_03564",null,null,"Weather Corrected MD 10% POE","MW","Non-Coincident"]
["ED_MDU541_03565",null,null,null,null,"Coincident"]
["ED_MDU541_03566",null,null,"Weather Corrected MD 10% POE","MVA","Non-Coincident"]
["ED_MDU541_03567",null,null,null,null,"Coincident"]
["ED_MDU541_03568",null,null,"Weather Corrected MD 50% POE","MW","Non-Coincident"]
["ED_MDU541_03569",null,null,null,null,"Coincident"]
["ED_MDU541_03570",null,null,"Weather Corrected MD 50% POE","MVA","Non-Coincident"]
["ED_MDU541_03571",null,null,null,null,"Coincident"]
["ED_MDU541_03572",null,"<Enter substation name>","Substation Rating","MVA","Non-Coincident"]
["ED_MDU541_03573",null,null,null,null,"Coincident"]
["ED_MDU541_03574",null,null,"Raw Adjusted MD","MW","Non-Coincident"]
["ED_MDU541_03575",null,null,null,null,"Coincident"]
["ED_MDU541_03576",null,null,"Raw Adjusted MD","MVA","Non-Coincident"]
["ED_MDU541_03577",null,null,null,null,"Coincident"]
["ED_MDU541_03578",null,null,"Date MD occurred",null,"Non-Coincident"]
["ED_MDU541_03579",null,null,null,null,"Coincident"]
["ED_MDU541_03580",null,null,"Half hour time period MD occurred",null,"Non-Coincident"]
["ED_MDU541_03581",null,null,null,null,"Coincident"]
["ED_MDU541_03582",null,null,"Winter/Summer Peaking",null,"Non-Coincident"]
["ED_MDU541_03583",null,null,null,null,"Coincident"]
["ED_MDU541_03584",null,null,"Adjustments - Embedded generation","MW","Non-Coincident"]
["ED_MDU541_03585",null,null,null,null,"Coincident"]
["ED_MDU541_03586",null,null,"Weather Corrected MD 10% POE","MW","Non-Coincident"]
["ED_MDU541_03587",null,null,null,null,"Coincident"]
["ED_MDU541_03588",null,null,"Weather Corrected MD 10% POE","MVA","Non-Coincident"]
["ED_MDU541_03589",null,null,null,null,"Coincident"]
["ED_MDU541_03590",null,null,"Weather Corrected MD 50% POE","MW","Non-Coincident"]
["ED_MDU541_03591",null,null,null,null,"Coincident"]
["ED_MDU541_03592",null,null,"Weather Corrected MD 50% POE","MVA","Non-Coincident"]
["ED_MDU541_03593",null,null,null,null,"Coincident"]
["ED_MDU541_03594",null,"<Enter substation name>","Substation Rating","MVA","Non-Coincident"]
["ED_MDU541_03595",null,null,null,null,"Coincident"]
["ED_MDU541_03596",null,null,"Raw Adjusted MD","MW","Non-Coincident"]
["ED_MDU541_03597",null,null,null,null,"Coincident"]
["ED_MDU541_03598",null,null,"Raw Adjusted MD","MVA","Non-Coincident"]
["ED_MDU541_03599",null,null,null,null,"Coincident"]
["ED_MDU541_03600",null,null,"Date MD occurred",null,"Non-Coincident"]
["ED_MDU541_03601",null,null,null,null,"Coincident"]
["ED_MDU541_03602",null,null,"Half hour time period MD occurred",null,"Non-Coincident"]
["ED_MDU541_03603",null,null,null,null,"Coincident"]
["ED_MDU541_03604",null,null,"Winter/Summer Peaking",null,"Non-Coincident"]
["ED_MDU541_03605",null,null,null,null,"Coincident"]
["ED_MDU541_03606",null,null,"Adjustments - Embedded generation","MW","Non-Coincident"]
["ED_MDU541_03607",null,null,null,null,"Coincident"]
["ED_MDU541_03608",null,null,"Weather Corrected MD 10% POE","MW","Non-Coincident"]
["ED_MDU541_03609",null,null,null,null,"Coincident"]
["ED_MDU541_03610",null,null,"Weather Corrected MD 10% POE","MVA","Non-Coincident"]
["ED_MDU541_03611",null,null,null,null,"Coincident"]
["ED_MDU541_03612",null,null,"Weather Corrected MD 50% POE","MW","Non-Coincident"]
["ED_MDU541_03613",null,null,null,null,"Coincident"]
["ED_MDU541_03614",null,null,"Weather Corrected MD 50% POE","MVA","Non-Coincident"]
["ED_MDU541_03615",null,null,null,null,"Coincident"]
["ED_MDU541_03616",null,"<Enter substation name>","Substation Rating","MVA","Non-Coincident"]
["ED_MDU541_03617",null,null,null,null,"Coincident"]
["ED_MDU541_03618",null,null,"Raw Adjusted MD","MW","Non-Coincident"]
["ED_MDU541_03619",null,null,null,null,"Coincident"]
["ED_MDU541_03620",null,null,"Raw Adjusted MD","MVA","Non-Coincident"]
["ED_MDU541_03621",null,null,null,null,"Coincident"]
["ED_MDU541_03622",null,null,"Date MD occurred",null,"Non-Coincident"]
["ED_MDU541_03623",null,null,null,null,"Coincident"]
["ED_MDU541_03624",null,null,"Half hour time period MD occurred",null,"Non-Coincident"]
["ED_MDU541_03625",null,null,null,null,"Coincident"]
["ED_MDU541_03626",null,null,"Winter/Summer Peaking",null,"Non-Coincident"]
["ED_MDU541_03627",null,null,null,null,"Coincident"]
["ED_MDU541_03628",null,null,"Adjustments - Embedded generation","MW","Non-Coincident"]
["ED_MDU541_03629",null,null,null,null,"Coincident"]
["ED_MDU541_03630",null,null,"Weather Corrected MD 10% POE","MW","Non-Coincident"]
["ED_MDU541_03631",null,null,null,null,"Coincident"]
["ED_MDU541_03632",null,null,"Weather Corrected MD 10% POE","MVA","Non-Coincident"]
["ED_MDU541_03633",null,null,null,null,"Coincident"]
["ED_MDU541_03634",null,null,"Weather Corrected MD 50% POE","MW","Non-Coincident"]
["ED_MDU541_03635",null,null,null,null,"Coincident"]
["ED_MDU541_03636",null,null,"Weather Corrected MD 50% POE","MVA","Non-Coincident"]
["ED_MDU541_03637",null,null,null,null,"Coincident"]
["ED_MDU541_03638",null,"<Enter substation name>","Substation Rating","MVA","Non-Coincident"]
["ED_MDU541_03639",null,null,null,null,"Coincident"]
["ED_MDU541_03640",null,null,"Raw Adjusted MD","MW","Non-Coincident"]
["ED_MDU541_03641",null,null,null,null,"Coincident"]
["ED_MDU541_03642",null,null,"Raw Adjusted MD","MVA","Non-Coincident"]
["ED_MDU541_03643",null,null,null,null,"Coincident"]
["ED_MDU541_03644",null,null,"Date MD occurred",null,"Non-Coincident"]
["ED_MDU541_03645",null,null,null,null,"Coincident"]
["ED_MDU541_03646",null,null,"Half hour time period MD occurred",null,"Non-Coincident"]
["ED_MDU541_03647",null,null,null,null,"Coincident"]
["ED_MDU541_03648",null,null,"Winter/Summer Peaking",null,"Non-Coincident"]
["ED_MDU541_03649",null,null,null,null,"Coincident"]
["ED_MDU541_03650",null,null,"Adjustments - Embedded generation","MW","Non-Coincident"]
["ED_MDU541_03651",null,null,null,null,"Coincident"]
["ED_MDU541_03652",null,null,"Weather Corrected MD 10% POE","MW","Non-Coincident"]
["ED_MDU541_03653",null,null,null,null,"Coincident"]
["ED_MDU541_03654",null,null,"Weather Corrected MD 10% POE","MVA","Non-Coincident"]
["ED_MDU541_03655",null,null,null,null,"Coincident"]
["ED_MDU541_03656",null,null,"Weather Corrected MD 50% POE","MW","Non-Coincident"]
["ED_MDU541_03657",null,null,null,null,"Coincident"]
["ED_MDU541_03658",null,null,"Weather Corrected MD 50% POE","MVA","Non-Coincident"]
["ED_MDU541_03659",null,null,null,null,"Coincident"]
["ED_MDU541_03660",null,"<Enter substation name>","Substation Rating","MVA","Non-Coincident"]
["ED_MDU541_03661",null,null,null,null,"Coincident"]
["ED_MDU541_03662",null,null,"Raw Adjusted MD","MW","Non-Coincident"]
["ED_MDU541_03663",null,null,null,null,"Coincident"]
["ED_MDU541_03664",null,null,"Raw Adjusted MD","MVA","Non-Coincident"]
["ED_MDU541_03665",null,null,null,null,"Coincident"]
["ED_MDU541_03666",null,null,"Date MD occurred",null,"Non-Coincident"]
["ED_MDU541_03667",null,null,null,null,"Coincident"]
["ED_MDU541_03668",null,null,"Half hour time period MD occurred",null,"Non-Coincident"]
["ED_MDU541_03669",null,null,null,null,"Coincident"]
["ED_MDU541_03670",null,null,"Winter/Summer Peaking",null,"Non-Coincident"]
["ED_MDU541_03671",null,null,null,null,"Coincident"]
["ED_MDU541_03672",null,null,"Adjustments - Embedded generation","MW","Non-Coincident"]
["ED_MDU541_03673",null,null,null,null,"Coincident"]
["ED_MDU541_03674",null,null,"Weather Corrected MD 10% POE","MW","Non-Coincident"]
["ED_MDU541_03675",null,null,null,null,"Coincident"]
["ED_MDU541_03676",null,null,"Weather Corrected MD 10% POE","MVA","Non-Coincident"]
["ED_MDU541_03677",null,null,null,null,"Coincident"]
["ED_MDU541_03678",null,null,"Weather Corrected MD 50% POE","MW","Non-Coincident"]
["ED_MDU541_03679",null,null,null,null,"Coincident"]
["ED_MDU541_03680",null,null,"Weather Corrected MD 50% POE","MVA","Non-Coincident"]
["ED_MDU541_03681",null,null,null,null,"Coincident"]
["ED_MDU541_03682",null,"<Enter substation name>","Substation Rating","MVA","Non-Coincident"]
["ED_MDU541_03683",null,null,null,null,"Coincident"]
["ED_MDU541_03684",null,null,"Raw Adjusted MD","MW","Non-Coincident"]
["ED_MDU541_03685",null,null,null,null,"Coincident"]
["ED_MDU541_03686",null,null,"Raw Adjusted MD","MVA","Non-Coincident"]
["ED_MDU541_03687",null,null,null,null,"Coincident"]
["ED_MDU541_03688",null,null,"Date MD occurred",null,"Non-Coincident"]
["ED_MDU541_03689",null,null,null,null,"Coincident"]
["ED_MDU541_03690",null,null,"Half hour time period MD occurred",null,"Non-Coincident"]
["ED_MDU541_03691",null,null,null,null,"Coincident"]
["ED_MDU541_03692",null,null,"Winter/Summer Peaking",null,"Non-Coincident"]
["ED_MDU541_03693",null,null,null,null,"Coincident"]
["ED_MDU541_03694",null,null,"Adjustments - Embedded generation","MW","Non-Coincident"]
["ED_MDU541_03695",null,null,null,null,"Coincident"]
["ED_MDU541_03696",null,null,"Weather Corrected MD 10% POE","MW","Non-Coincident"]
["ED_MDU541_03697",null,null,null,null,"Coincident"]
["ED_MDU541_03698",null,null,"Weather Corrected MD 10% POE","MVA","Non-Coincident"]
["ED_MDU541_03699",null,null,null,null,"Coincident"]
["ED_MDU541_03700",null,null,"Weather Corrected MD 50% POE","MW","Non-Coincident"]
["ED_MDU541_03701",null,null,null,null,"Coincident"]
["ED_MDU541_03702",null,null,"Weather Corrected MD 50% POE","MVA","Non-Coincident"]
["ED_MDU541_03703",null,null,null,null,"Coincident"]
["ED_MDU541_03704",null,"<Enter substation name>","Substation Rating","MVA","Non-Coincident"]
["ED_MDU541_03705",null,null,null,null,"Coincident"]
["ED_MDU541_03706",null,null,"Raw Adjusted MD","MW","Non-Coincident"]
["ED_MDU541_03707",null,null,null,null,"Coincident"]
["ED_MDU541_03708",null,null,"Raw Adjusted MD","MVA","Non-Coincident"]
["ED_MDU541_03709",null,null,null,null,"Coincident"]
["ED_MDU541_03710",null,null,"Date MD occurred",null,"Non-Coincident"]
["ED_MDU541_03711",null,null,null,null,"Coincident"]
["ED_MDU541_03712",null,null,"Half hour time period MD occurred",null,"Non-Coincident"]
["ED_MDU541_03713",null,null,null,null,"Coincident"]
["ED_MDU541_03714",null,null,"Winter/Summer Peaking",null,"Non-Coincident"]
["ED_MDU541_03715",null,null,null,null,"Coincident"]
["ED_MDU541_03716",null,null,"Adjustments - Embedded generation","MW","Non-Coincident"]
["ED_MDU541_03717",null,null,null,null,"Coincident"]
["ED_MDU541_03718",null,null,"Weather Corrected MD 10% POE","MW","Non-Coincident"]
["ED_MDU541_03719",null,null,null,null,"Coincident"]
["ED_MDU541_03720",null,null,"Weather Corrected MD 10% POE","MVA","Non-Coincident"]
["ED_MDU541_03721",null,null,null,null,"Coincident"]
["ED_MDU541_03722",null,null,"Weather Corrected MD 50% POE","MW","Non-Coincident"]
["ED_MDU541_03723",null,null,null,null,"Coincident"]
["ED_MDU541_03724",null,null,"Weather Corrected MD 50% POE","MVA","Non-Coincident"]
["ED_MDU541_03725",null,null,null,null,"Coincident"]
["ED_MDU541_03726",null,"<Enter substation name>","Substation Rating","MVA","Non-Coincident"]
["ED_MDU541_03727",null,null,null,null,"Coincident"]
["ED_MDU541_03728",null,null,"Raw Adjusted MD","MW","Non-Coincident"]
["ED_MDU541_03729",null,null,null,null,"Coincident"]
["ED_MDU541_03730",null,null,"Raw Adjusted MD","MVA","Non-Coincident"]
["ED_MDU541_03731",null,null,null,null,"Coincident"]
["ED_MDU541_03732",null,null,"Date MD occurred",null,"Non-Coincident"]
["ED_MDU541_03733",null,null,null,null,"Coincident"]
["ED_MDU541_03734",null,null,"Half hour time period MD occurred",null,"Non-Coincident"]
["ED_MDU541_03735",null,null,null,null,"Coincident"]
["ED_MDU541_03736",null,null,"Winter/Summer Peaking",null,"Non-Coincident"]
["ED_MDU541_03737",null,null,null,null,"Coincident"]
["ED_MDU541_03738",null,null,"Adjustments - Embedded generation","MW","Non-Coincident"]
["ED_MDU541_03739",null,null,null,null,"Coincident"]
["ED_MDU541_03740",null,null,"Weather Corrected MD 10% POE","MW","Non-Coincident"]
["ED_MDU541_03741",null,null,null,null,"Coincident"]
["ED_MDU541_03742",null,null,"Weather Corrected MD 10% POE","MVA","Non-Coincident"]
["ED_MDU541_03743",null,null,null,null,"Coincident"]
["ED_MDU541_03744",null,null,"Weather Corrected MD 50% POE","MW","Non-Coincident"]
["ED_MDU541_03745",null,null,null,null,"Coincident"]
["ED_MDU541_03746",null,null,"Weather Corrected MD 50% POE","MVA","Non-Coincident"]
["ED_MDU541_03747",null,null,null,null,"Coincident"]
["ED_MDU541_03748",null,"<Enter substation name>","Substation Rating","MVA","Non-Coincident"]
["ED_MDU541_03749",null,null,null,null,"Coincident"]
["ED_MDU541_03750",null,null,"Raw Adjusted MD","MW","Non-Coincident"]
["ED_MDU541_03751",null,null,null,null,"Coincident"]
["ED_MDU541_03752",null,null,"Raw Adjusted MD","MVA","Non-Coincident"]
["ED_MDU541_03753",null,null,null,null,"Coincident"]
["ED_MDU541_03754",null,null,"Date MD occurred",null,"Non-Coincident"]
["ED_MDU541_03755",null,null,null,null,"Coincident"]
["ED_MDU541_03756",null,null,"Half hour time period MD occurred",null,"Non-Coincident"]
["ED_MDU541_03757",null,null,null,null,"Coincident"]
["ED_MDU541_03758",null,null,"Winter/Summer Peaking",null,"Non-Coincident"]
["ED_MDU541_03759",null,null,null,null,"Coincident"]
["ED_MDU541_03760",null,null,"Adjustments - Embedded generation","MW","Non-Coincident"]
["ED_MDU541_03761",null,null,null,null,"Coincident"]
["ED_MDU541_03762",null,null,"Weather Corrected MD 10% POE","MW","Non-Coincident"]
["ED_MDU541_03763",null,null,null,null,"Coincident"]
["ED_MDU541_03764",null,null,"Weather Corrected MD 10% POE","MVA","Non-Coincident"]
["ED_MDU541_03765",null,null,null,null,"Coincident"]
["ED_MDU541_03766",null,null,"Weather Corrected MD 50% POE","MW","Non-Coincident"]
["ED_MDU541_03767",null,null,null,null,"Coincident"]
["ED_MDU541_03768",null,null,"Weather Corrected MD 50% POE","MVA","Non-Coincident"]
["ED_MDU541_03769",null,null,null,null,"Coincident"]
["ED_MDU541_03770",null,"<Enter substation name>","Substation Rating","MVA","Non-Coincident"]
["ED_MDU541_03771",null,null,null,null,"Coincident"]
["ED_MDU541_03772",null,null,"Raw Adjusted MD","MW","Non-Coincident"]
["ED_MDU541_03773",null,null,null,null,"Coincident"]
["ED_MDU541_03774",null,null,"Raw Adjusted MD","MVA","Non-Coincident"]
["ED_MDU541_03775",null,null,null,null,"Coincident"]
["ED_MDU541_03776",null,null,"Date MD occurred",null,"Non-Coincident"]
["ED_MDU541_03777",null,null,null,null,"Coincident"]
["ED_MDU541_03778",null,null,"Half hour time period MD occurred",null,"Non-Coincident"]
["ED_MDU541_03779",null,null,null,null,"Coincident"]
["ED_MDU541_03780",null,null,"Winter/Summer Peaking",null,"Non-Coincident"]
["ED_MDU541_03781",null,null,null,null,"Coincident"]
["ED_MDU541_03782",null,null,"Adjustments - Embedded generation","MW","Non-Coincident"]
["ED_MDU541_03783",null,null,null,null,"Coincident"]
["ED_MDU541_03784",null,null,"Weather Corrected MD 10% POE","MW","Non-Coincident"]
["ED_MDU541_03785",null,null,null,null,"Coincident"]
["ED_MDU541_03786",null,null,"Weather Corrected MD 10% POE","MVA","Non-Coincident"]
["ED_MDU541_03787",null,null,null,null,"Coincident"]
["ED_MDU541_03788",null,null,"Weather Corrected MD 50% POE","MW","Non-Coincident"]
["ED_MDU541_03789",null,null,null,null,"Coincident"]
["ED_MDU541_03790",null,null,"Weather Corrected MD 50% POE","MVA","Non-Coincident"]
["ED_MDU541_03791",null,null,null,null,"Coincident"]
["ED_MDU541_03792",null,"<Enter substation name>","Substation Rating","MVA","Non-Coincident"]
["ED_MDU541_03793",null,null,null,null,"Coincident"]
["ED_MDU541_03794",null,null,"Raw Adjusted MD","MW","Non-Coincident"]
["ED_MDU541_03795",null,null,null,null,"Coincident"]
["ED_MDU541_03796",null,null,"Raw Adjusted MD","MVA","Non-Coincident"]
["ED_MDU541_03797",null,null,null,null,"Coincident"]
["ED_MDU541_03798",null,null,"Date MD occurred",null,"Non-Coincident"]
["ED_MDU541_03799",null,null,null,null,"Coincident"]
["ED_MDU541_03800",null,null,"Half hour time period MD occurred",null,"Non-Coincident"]
["ED_MDU541_03801",null,null,null,null,"Coincident"]
["ED_MDU541_03802",null,null,"Winter/Summer Peaking",null,"Non-Coincident"]
["ED_MDU541_03803",null,null,null,null,"Coincident"]
["ED_MDU541_03804",null,null,"Adjustments - Embedded generation","MW","Non-Coincident"]
["ED_MDU541_03805",null,null,null,null,"Coincident"]
["ED_MDU541_03806",null,null,"Weather Corrected MD 10% POE","MW","Non-Coincident"]
["ED_MDU541_03807",null,null,null,null,"Coincident"]
["ED_MDU541_03808",null,null,"Weather Corrected MD 10% POE","MVA","Non-Coincident"]
["ED_MDU541_03809",null,null,null,null,"Coincident"]
["ED_MDU541_03810",null,null,"Weather Corrected MD 50% POE","MW","Non-Coincident"]
["ED_MDU541_03811",null,null,null,null,"Coincident"]
["ED_MDU541_03812",null,null,"Weather Corrected MD 50% POE","MVA","Non-Coincident"]
["ED_MDU541_03813",null,null,null,null,"Coincident"]
["ED_MDU541_03814",null,"<Enter substation name>","Substation Rating","MVA","Non-Coincident"]
["ED_MDU541_03815",null,null,null,null,"Coincident"]
["ED_MDU541_03816",null,null,"Raw Adjusted MD","MW","Non-Coincident"]
["ED_MDU541_03817",null,null,null,null,"Coincident"]
["ED_MDU541_03818",null,null,"Raw Adjusted MD","MVA","Non-Coincident"]
["ED_MDU541_03819",null,null,null,null,"Coincident"]
["ED_MDU541_03820",null,null,"Date MD occurred",null,"Non-Coincident"]
["ED_MDU541_03821",null,null,null,null,"Coincident"]
["ED_MDU541_03822",null,null,"Half hour time period MD occurred",null,"Non-Coincident"]
["ED_MDU541_03823",null,null,null,null,"Coincident"]
["ED_MDU541_03824",null,null,"Winter/Summer Peaking",null,"Non-Coincident"]
["ED_MDU541_03825",null,null,null,null,"Coincident"]
["ED_MDU541_03826",null,null,"Adjustments - Embedded generation","MW","Non-Coincident"]
["ED_MDU541_03827",null,null,null,null,"Coincident"]
["ED_MDU541_03828",null,null,"Weather Corrected MD 10% POE","MW","Non-Coincident"]
["ED_MDU541_03829",null,null,null,null,"Coincident"]
["ED_MDU541_03830",null,null,"Weather Corrected MD 10% POE","MVA","Non-Coincident"]
["ED_MDU541_03831",null,null,null,null,"Coincident"]
["ED_MDU541_03832",null,null,"Weather Corrected MD 50% POE","MW","Non-Coincident"]
["ED_MDU541_03833",null,null,null,null,"Coincident"]
["ED_MDU541_03834",null,null,"Weather Corrected MD 50% POE","MVA","Non-Coincident"]
["ED_MDU541_03835",null,null,null,null,"Coincident"]
["ED_MDU541_03836",null,"<Enter substation name>","Substation Rating","MVA","Non-Coincident"]
["ED_MDU541_03837",null,null,null,null,"Coincident"]
["ED_MDU541_03838",null,null,"Raw Adjusted MD","MW","Non-Coincident"]
["ED_MDU541_03839",null,null,null,null,"Coincident"]
["ED_MDU541_03840",null,null,"Raw Adjusted MD","MVA","Non-Coincident"]
["ED_MDU541_03841",null,null,null,null,"Coincident"]
["ED_MDU541_03842",null,null,"Date MD occurred",null,"Non-Coincident"]
["ED_MDU541_03843",null,null,null,null,"Coincident"]
["ED_MDU541_03844",null,null,"Half hour time period MD occurred",null,"Non-Coincident"]
["ED_MDU541_03845",null,null,null,null,"Coincident"]
["ED_MDU541_03846",null,null,"Winter/Summer Peaking",null,"Non-Coincident"]
["ED_MDU541_03847",null,null,null,null,"Coincident"]
["ED_MDU541_03848",null,null,"Adjustments - Embedded generation","MW","Non-Coincident"]
["ED_MDU541_03849",null,null,null,null,"Coincident"]
["ED_MDU541_03850",null,null,"Weather Corrected MD 10% POE","MW","Non-Coincident"]
["ED_MDU541_03851",null,null,null,null,"Coincident"]
["ED_MDU541_03852",null,null,"Weather Corrected MD 10% POE","MVA","Non-Coincident"]
["ED_MDU541_03853",null,null,null,null,"Coincident"]
["ED_MDU541_03854",null,null,"Weather Corrected MD 50% POE","MW","Non-Coincident"]
["ED_MDU541_03855",null,null,null,null,"Coincident"]
["ED_MDU541_03856",null,null,"Weather Corrected MD 50% POE","MVA","Non-Coincident"]
["ED_MDU541_03857",null,null,null,null,"Coincident"]
["ED_MDU541_03858",null,"<Enter substation name>","Substation Rating","MVA","Non-Coincident"]
["ED_MDU541_03859",null,null,null,null,"Coincident"]
["ED_MDU541_03860",null,null,"Raw Adjusted MD","MW","Non-Coincident"]
["ED_MDU541_03861",null,null,null,null,"Coincident"]
["ED_MDU541_03862",null,null,"Raw Adjusted MD","MVA","Non-Coincident"]
["ED_MDU541_03863",null,null,null,null,"Coincident"]
["ED_MDU541_03864",null,null,"Date MD occurred",null,"Non-Coincident"]
["ED_MDU541_03865",null,null,null,null,"Coincident"]
["ED_MDU541_03866",null,null,"Half hour time period MD occurred",null,"Non-Coincident"]
["ED_MDU541_03867",null,null,null,null,"Coincident"]
["ED_MDU541_03868",null,null,"Winter/Summer Peaking",null,"Non-Coincident"]
["ED_MDU541_03869",null,null,null,null,"Coincident"]
["ED_MDU541_03870",null,null,"Adjustments - Embedded generation","MW","Non-Coincident"]
["ED_MDU541_03871",null,null,null,null,"Coincident"]
["ED_MDU541_03872",null,null,"Weather Corrected MD 10% POE","MW","Non-Coincident"]
["ED_MDU541_03873",null,null,null,null,"Coincident"]
["ED_MDU541_03874",null,null,"Weather Corrected MD 10% POE","MVA","Non-Coincident"]
["ED_MDU541_03875",null,null,null,null,"Coincident"]
["ED_MDU541_03876",null,null,"Weather Corrected MD 50% POE","MW","Non-Coincident"]
["ED_MDU541_03877",null,null,null,null,"Coincident"]
["ED_MDU541_03878",null,null,"Weather Corrected MD 50% POE","MVA","Non-Coincident"]
["ED_MDU541_03879",null,null,null,null,"Coincident"]
["ED_MDU541_03880",null,"<Enter substation name>","Substation Rating","MVA","Non-Coincident"]
["ED_MDU541_03881",null,null,null,null,"Coincident"]
["ED_MDU541_03882",null,null,"Raw Adjusted MD","MW","Non-Coincident"]
["ED_MDU541_03883",null,null,null,null,"Coincident"]
["ED_MDU541_03884",null,null,"Raw Adjusted MD","MVA","Non-Coincident"]
["ED_MDU541_03885",null,null,null,null,"Coincident"]
["ED_MDU541_03886",null,null,"Date MD occurred",null,"Non-Coincident"]
["ED_MDU541_03887",null,null,null,null,"Coincident"]
["ED_MDU541_03888",null,null,"Half hour time period MD occurred",null,"Non-Coincident"]
["ED_MDU541_03889",null,null,null,null,"Coincident"]
["ED_MDU541_03890",null,null,"Winter/Summer Peaking",null,"Non-Coincident"]
["ED_MDU541_03891",null,null,null,null,"Coincident"]
["ED_MDU541_03892",null,null,"Adjustments - Embedded generation","MW","Non-Coincident"]
["ED_MDU541_03893",null,null,null,null,"Coincident"]
["ED_MDU541_03894",null,null,"Weather Corrected MD 10% POE","MW","Non-Coincident"]
["ED_MDU541_03895",null,null,null,null,"Coincident"]
["ED_MDU541_03896",null,null,"Weather Corrected MD 10% POE","MVA","Non-Coincident"]
["ED_MDU541_03897",null,null,null,null,"Coincident"]
["ED_MDU541_03898",null,null,"Weather Corrected MD 50% POE","MW","Non-Coincident"]
["ED_MDU541_03899",null,null,null,null,"Coincident"]
["ED_MDU541_03900",null,null,"Weather Corrected MD 50% POE","MVA","Non-Coincident"]
["ED_MDU541_03901",null,null,null,null,"Coincident"]
["ED_MDU541_03902",null,"<Enter substation name>","Substation Rating","MVA","Non-Coincident"]
["ED_MDU541_03903",null,null,null,null,"Coincident"]
["ED_MDU541_03904",null,null,"Raw Adjusted MD","MW","Non-Coincident"]
["ED_MDU541_03905",null,null,null,null,"Coincident"]
["ED_MDU541_03906",null,null,"Raw Adjusted MD","MVA","Non-Coincident"]
["ED_MDU541_03907",null,null,null,null,"Coincident"]
["ED_MDU541_03908",null,null,"Date MD occurred",null,"Non-Coincident"]
["ED_MDU541_03909",null,null,null,null,"Coincident"]
["ED_MDU541_03910",null,null,"Half hour time period MD occurred",null,"Non-Coincident"]
["ED_MDU541_03911",null,null,null,null,"Coincident"]
["ED_MDU541_03912",null,null,"Winter/Summer Peaking",null,"Non-Coincident"]
["ED_MDU541_03913",null,null,null,null,"Coincident"]
["ED_MDU541_03914",null,null,"Adjustments - Embedded generation","MW","Non-Coincident"]
["ED_MDU541_03915",null,null,null,null,"Coincident"]
["ED_MDU541_03916",null,null,"Weather Corrected MD 10% POE","MW","Non-Coincident"]
["ED_MDU541_03917",null,null,null,null,"Coincident"]
["ED_MDU541_03918",null,null,"Weather Corrected MD 10% POE","MVA","Non-Coincident"]
["ED_MDU541_03919",null,null,null,null,"Coincident"]
["ED_MDU541_03920",null,null,"Weather Corrected MD 50% POE","MW","Non-Coincident"]
["ED_MDU541_03921",null,null,null,null,"Coincident"]
["ED_MDU541_03922",null,null,"Weather Corrected MD 50% POE","MVA","Non-Coincident"]
["ED_MDU541_03923",null,null,null,null,"Coincident"]
["ED_MDU541_03924",null,"<Enter substation name>","Substation Rating","MVA","Non-Coincident"]
["ED_MDU541_03925",null,null,null,null,"Coincident"]
["ED_MDU541_03926",null,null,"Raw Adjusted MD","MW","Non-Coincident"]
["ED_MDU541_03927",null,null,null,null,"Coincident"]
["ED_MDU541_03928",null,null,"Raw Adjusted MD","MVA","Non-Coincident"]
["ED_MDU541_03929",null,null,null,null,"Coincident"]
["ED_MDU541_03930",null,null,"Date MD occurred",null,"Non-Coincident"]
["ED_MDU541_03931",null,null,null,null,"Coincident"]
["ED_MDU541_03932",null,null,"Half hour time period MD occurred",null,"Non-Coincident"]
["ED_MDU541_03933",null,null,null,null,"Coincident"]
["ED_MDU541_03934",null,null,"Winter/Summer Peaking",null,"Non-Coincident"]
["ED_MDU541_03935",null,null,null,null,"Coincident"]
["ED_MDU541_03936",null,null,"Adjustments - Embedded generation","MW","Non-Coincident"]
["ED_MDU541_03937",null,null,null,null,"Coincident"]
["ED_MDU541_03938",null,null,"Weather Corrected MD 10% POE","MW","Non-Coincident"]
["ED_MDU541_03939",null,null,null,null,"Coincident"]
["ED_MDU541_03940",null,null,"Weather Corrected MD 10% POE","MVA","Non-Coincident"]
["ED_MDU541_03941",null,null,null,null,"Coincident"]
["ED_MDU541_03942",null,null,"Weather Corrected MD 50% POE","MW","Non-Coincident"]
["ED_MDU541_03943",null,null,null,null,"Coincident"]
["ED_MDU541_03944",null,null,"Weather Corrected MD 50% POE","MVA","Non-Coincident"]
["ED_MDU541_03945",null,null,null,null,"Coincident"]
["ED_MDU541_03946",null,"<Enter substation name>","Substation Rating","MVA","Non-Coincident"]
["ED_MDU541_03947",null,null,null,null,"Coincident"]
["ED_MDU541_03948",null,null,"Raw Adjusted MD","MW","Non-Coincident"]
["ED_MDU541_03949",null,null,null,null,"Coincident"]
["ED_MDU541_03950",null,null,"Raw Adjusted MD","MVA","Non-Coincident"]
["ED_MDU541_03951",null,null,null,null,"Coincident"]
["ED_MDU541_03952",null,null,"Date MD occurred",null,"Non-Coincident"]
["ED_MDU541_03953",null,null,null,null,"Coincident"]
["ED_MDU541_03954",null,null,"Half hour time period MD occurred",null,"Non-Coincident"]
["ED_MDU541_03955",null,null,null,null,"Coincident"]
["ED_MDU541_03956",null,null,"Winter/Summer Peaking",null,"Non-Coincident"]
["ED_MDU541_03957",null,null,null,null,"Coincident"]
["ED_MDU541_03958",null,null,"Adjustments - Embedded generation","MW","Non-Coincident"]
["ED_MDU541_03959",null,null,null,null,"Coincident"]
["ED_MDU541_03960",null,null,"Weather Corrected MD 10% POE","MW","Non-Coincident"]
["ED_MDU541_03961",null,null,null,null,"Coincident"]
["ED_MDU541_03962",null,null,"Weather Corrected MD 10% POE","MVA","Non-Coincident"]
["ED_MDU541_03963",null,null,null,null,"Coincident"]
["ED_MDU541_03964",null,null,"Weather Corrected MD 50% POE","MW","Non-Coincident"]
["ED_MDU541_03965",null,null,null,null,"Coincident"]
["ED_MDU541_03966",null,null,"Weather Corrected MD 50% POE","MVA","Non-Coincident"]
["ED_MDU541_03967",null,null,null,null,"Coincident"]
["ED_MDU541_03968",null,"<Enter substation name>","Substation Rating","MVA","Non-Coincident"]
["ED_MDU541_03969",null,null,null,null,"Coincident"]
["ED_MDU541_03970",null,null,"Raw Adjusted MD","MW","Non-Coincident"]
["ED_MDU541_03971",null,null,null,null,"Coincident"]
["ED_MDU541_03972",null,null,"Raw Adjusted MD","MVA","Non-Coincident"]
["ED_MDU541_03973",null,null,null,null,"Coincident"]
["ED_MDU541_03974",null,null,"Date MD occurred",null,"Non-Coincident"]
["ED_MDU541_03975",null,null,null,null,"Coincident"]
["ED_MDU541_03976",null,null,"Half hour time period MD occurred",null,"Non-Coincident"]
["ED_MDU541_03977",null,null,null,null,"Coincident"]
["ED_MDU541_03978",null,null,"Winter/Summer Peaking",null,"Non-Coincident"]
["ED_MDU541_03979",null,null,null,null,"Coincident"]
["ED_MDU541_03980",null,null,"Adjustments - Embedded generation","MW","Non-Coincident"]
["ED_MDU541_03981",null,null,null,null,"Coincident"]
["ED_MDU541_03982",null,null,"Weather Corrected MD 10% POE","MW","Non-Coincident"]
["ED_MDU541_03983",null,null,null,null,"Coincident"]
["ED_MDU541_03984",null,null,"Weather Corrected MD 10% POE","MVA","Non-Coincident"]
["ED_MDU541_03985",null,null,null,null,"Coincident"]
["ED_MDU541_03986",null,null,"Weather Corrected MD 50% POE","MW","Non-Coincident"]
["ED_MDU541_03987",null,null,null,null,"Coincident"]
["ED_MDU541_03988",null,null,"Weather Corrected MD 50% POE","MVA","Non-Coincident"]
["ED_MDU541_03989",null,null,null,null,"Coincident"]
["ED_MDU541_03990",null,"<Enter substation name>","Substation Rating","MVA","Non-Coincident"]
["ED_MDU541_03991",null,null,null,null,"Coincident"]
["ED_MDU541_03992",null,null,"Raw Adjusted MD","MW","Non-Coincident"]
["ED_MDU541_03993",null,null,null,null,"Coincident"]
["ED_MDU541_03994",null,null,"Raw Adjusted MD","MVA","Non-Coincident"]
["ED_MDU541_03995",null,null,null,null,"Coincident"]
["ED_MDU541_03996",null,null,"Date MD occurred",null,"Non-Coincident"]
["ED_MDU541_03997",null,null,null,null,"Coincident"]
["ED_MDU541_03998",null,null,"Half hour time period MD occurred",null,"Non-Coincident"]
["ED_MDU541_03999",null,null,null,null,"Coincident"]
["ED_MDU541_04000",null,null,"Winter/Summer Peaking",null,"Non-Coincident"]
["ED_MDU541_04001",null,null,null,null,"Coincident"]
["ED_MDU541_04002",null,null,"Adjustments - Embedded generation","MW","Non-Coincident"]
["ED_MDU541_04003",null,null,null,null,"Coincident"]
["ED_MDU541_04004",null,null,"Weather Corrected MD 10% POE","MW","Non-Coincident"]
["ED_MDU541_04005",null,null,null,null,"Coincident"]
["ED_MDU541_04006",null,null,"Weather Corrected MD 10% POE","MVA","Non-Coincident"]
["ED_MDU541_04007",null,null,null,null,"Coincident"]
["ED_MDU541_04008",null,null,"Weather Corrected MD 50% POE","MW","Non-Coincident"]
["ED_MDU541_04009",null,null,null,null,"Coincident"]
["ED_MDU541_04010",null,null,"Weather Corrected MD 50% POE","MVA","Non-Coincident"]
["ED_MDU541_04011",null,null,null,null,"Coincident"]
["ED_MDU541_04012",null,"<Enter substation name>","Substation Rating","MVA","Non-Coincident"]
["ED_MDU541_04013",null,null,null,null,"Coincident"]
["ED_MDU541_04014",null,null,"Raw Adjusted MD","MW","Non-Coincident"]
["ED_MDU541_04015",null,null,null,null,"Coincident"]
["ED_MDU541_04016",null,null,"Raw Adjusted MD","MVA","Non-Coincident"]
["ED_MDU541_04017",null,null,null,null,"Coincident"]
["ED_MDU541_04018",null,null,"Date MD occurred",null,"Non-Coincident"]
["ED_MDU541_04019",null,null,null,null,"Coincident"]
["ED_MDU541_04020",null,null,"Half hour time period MD occurred",null,"Non-Coincident"]
["ED_MDU541_04021",null,null,null,null,"Coincident"]
["ED_MDU541_04022",null,null,"Winter/Summer Peaking",null,"Non-Coincident"]
["ED_MDU541_04023",null,null,null,null,"Coincident"]
["ED_MDU541_04024",null,null,"Adjustments - Embedded generation","MW","Non-Coincident"]
["ED_MDU541_04025",null,null,null,null,"Coincident"]
["ED_MDU541_04026",null,null,"Weather Corrected MD 10% POE","MW","Non-Coincident"]
["ED_MDU541_04027",null,null,null,null,"Coincident"]
["ED_MDU541_04028",null,null,"Weather Corrected MD 10% POE","MVA","Non-Coincident"]
["ED_MDU541_04029",null,null,null,null,"Coincident"]
["ED_MDU541_04030",null,null,"Weather Corrected MD 50% POE","MW","Non-Coincident"]
["ED_MDU541_04031",null,null,null,null,"Coincident"]
["ED_MDU541_04032",null,null,"Weather Corrected MD 50% POE","MVA","Non-Coincident"]
["ED_MDU541_04033",null,null,null,null,"Coincident"]
["ED_MDU541_04034",null,"<Enter substation name>","Substation Rating","MVA","Non-Coincident"]
["ED_MDU541_04035",null,null,null,null,"Coincident"]
["ED_MDU541_04036",null,null,"Raw Adjusted MD","MW","Non-Coincident"]
["ED_MDU541_04037",null,null,null,null,"Coincident"]
["ED_MDU541_04038",null,null,"Raw Adjusted MD","MVA","Non-Coincident"]
["ED_MDU541_04039",null,null,null,null,"Coincident"]
["ED_MDU541_04040",null,null,"Date MD occurred",null,"Non-Coincident"]
["ED_MDU541_04041",null,null,null,null,"Coincident"]
["ED_MDU541_04042",null,null,"Half hour time period MD occurred",null,"Non-Coincident"]
["ED_MDU541_04043",null,null,null,null,"Coincident"]
["ED_MDU541_04044",null,null,"Winter/Summer Peaking",null,"Non-Coincident"]
["ED_MDU541_04045",null,null,null,null,"Coincident"]
["ED_MDU541_04046",null,null,"Adjustments - Embedded generation","MW","Non-Coincident"]
["ED_MDU541_04047",null,null,null,null,"Coincident"]
["ED_MDU541_04048",null,null,"Weather Corrected MD 10% POE","MW","Non-Coincident"]
["ED_MDU541_04049",null,null,null,null,"Coincident"]
["ED_MDU541_04050",null,null,"Weather Corrected MD 10% POE","MVA","Non-Coincident"]
["ED_MDU541_04051",null,null,null,null,"Coincident"]
["ED_MDU541_04052",null,null,"Weather Corrected MD 50% POE","MW","Non-Coincident"]
["ED_MDU541_04053",null,null,null,null,"Coincident"]
["ED_MDU541_04054",null,null,"Weather Corrected MD 50% POE","MVA","Non-Coincident"]
["ED_MDU541_04055",null,null,null,null,"Coincident"]
["ED_MDU541_04056",null,"<Enter substation name>","Substation Rating","MVA","Non-Coincident"]
["ED_MDU541_04057",null,null,null,null,"Coincident"]
["ED_MDU541_04058",null,null,"Raw Adjusted MD","MW","Non-Coincident"]
["ED_MDU541_04059",null,null,null,null,"Coincident"]
["ED_MDU541_04060",null,null,"Raw Adjusted MD","MVA","Non-Coincident"]
["ED_MDU541_04061",null,null,null,null,"Coincident"]
["ED_MDU541_04062",null,null,"Date MD occurred",null,"Non-Coincident"]
["ED_MDU541_04063",null,null,null,null,"Coincident"]
["ED_MDU541_04064",null,null,"Half hour time period MD occurred",null,"Non-Coincident"]
["ED_MDU541_04065",null,null,null,null,"Coincident"]
["ED_MDU541_04066",null,null,"Winter/Summer Peaking",null,"Non-Coincident"]
["ED_MDU541_04067",null,null,null,null,"Coincident"]
["ED_MDU541_04068",null,null,"Adjustments - Embedded generation","MW","Non-Coincident"]
["ED_MDU541_04069",null,null,null,null,"Coincident"]
["ED_MDU541_04070",null,null,"Weather Corrected MD 10% POE","MW","Non-Coincident"]
["ED_MDU541_04071",null,null,null,null,"Coincident"]
["ED_MDU541_04072",null,null,"Weather Corrected MD 10% POE","MVA","Non-Coincident"]
["ED_MDU541_04073",null,null,null,null,"Coincident"]
["ED_MDU541_04074",null,null,"Weather Corrected MD 50% POE","MW","Non-Coincident"]
["ED_MDU541_04075",null,null,null,null,"Coincident"]
["ED_MDU541_04076",null,null,"Weather Corrected MD 50% POE","MVA","Non-Coincident"]
["ED_MDU541_04077",null,null,null,null,"Coincident"]
["ED_MDU541_04078",null,"<Enter substation name>","Substation Rating","MVA","Non-Coincident"]
["ED_MDU541_04079",null,null,null,null,"Coincident"]
["ED_MDU541_04080",null,null,"Raw Adjusted MD","MW","Non-Coincident"]
["ED_MDU541_04081",null,null,null,null,"Coincident"]
["ED_MDU541_04082",null,null,"Raw Adjusted MD","MVA","Non-Coincident"]
["ED_MDU541_04083",null,null,null,null,"Coincident"]
["ED_MDU541_04084",null,null,"Date MD occurred",null,"Non-Coincident"]
["ED_MDU541_04085",null,null,null,null,"Coincident"]
["ED_MDU541_04086",null,null,"Half hour time period MD occurred",null,"Non-Coincident"]
["ED_MDU541_04087",null,null,null,null,"Coincident"]
["ED_MDU541_04088",null,null,"Winter/Summer Peaking",null,"Non-Coincident"]
["ED_MDU541_04089",null,null,null,null,"Coincident"]
["ED_MDU541_04090",null,null,"Adjustments - Embedded generation","MW","Non-Coincident"]
["ED_MDU541_04091",null,null,null,null,"Coincident"]
["ED_MDU541_04092",null,null,"Weather Corrected MD 10% POE","MW","Non-Coincident"]
["ED_MDU541_04093",null,null,null,null,"Coincident"]
["ED_MDU541_04094",null,null,"Weather Corrected MD 10% POE","MVA","Non-Coincident"]
["ED_MDU541_04095",null,null,null,null,"Coincident"]
["ED_MDU541_04096",null,null,"Weather Corrected MD 50% POE","MW","Non-Coincident"]
["ED_MDU541_04097",null,null,null,null,"Coincident"]
["ED_MDU541_04098",null,null,"Weather Corrected MD 50% POE","MVA","Non-Coincident"]
["ED_MDU541_04099",null,null,null,null,"Coincident"]
["ED_MDU541_04100",null,"<Enter substation name>","Substation Rating","MVA","Non-Coincident"]
["ED_MDU541_04101",null,null,null,null,"Coincident"]
["ED_MDU541_04102",null,null,"Raw Adjusted MD","MW","Non-Coincident"]
["ED_MDU541_04103",null,null,null,null,"Coincident"]
["ED_MDU541_04104",null,null,"Raw Adjusted MD","MVA","Non-Coincident"]
["ED_MDU541_04105",null,null,null,null,"Coincident"]
["ED_MDU541_04106",null,null,"Date MD occurred",null,"Non-Coincident"]
["ED_MDU541_04107",null,null,null,null,"Coincident"]
["ED_MDU541_04108",null,null,"Half hour time period MD occurred",null,"Non-Coincident"]
["ED_MDU541_04109",null,null,null,null,"Coincident"]
["ED_MDU541_04110",null,null,"Winter/Summer Peaking",null,"Non-Coincident"]
["ED_MDU541_04111",null,null,null,null,"Coincident"]
["ED_MDU541_04112",null,null,"Adjustments - Embedded generation","MW","Non-Coincident"]
["ED_MDU541_04113",null,null,null,null,"Coincident"]
["ED_MDU541_04114",null,null,"Weather Corrected MD 10% POE","MW","Non-Coincident"]
["ED_MDU541_04115",null,null,null,null,"Coincident"]
["ED_MDU541_04116",null,null,"Weather Corrected MD 10% POE","MVA","Non-Coincident"]
["ED_MDU541_04117",null,null,null,null,"Coincident"]
["ED_MDU541_04118",null,null,"Weather Corrected MD 50% POE","MW","Non-Coincident"]
["ED_MDU541_04119",null,null,null,null,"Coincident"]
["ED_MDU541_04120",null,null,"Weather Corrected MD 50% POE","MVA","Non-Coincident"]
["ED_MDU541_04121",null,null,null,null,"Coincident"]
["ED_MDU541_04122",null,"<Enter substation name>","Substation Rating","MVA","Non-Coincident"]
["ED_MDU541_04123",null,null,null,null,"Coincident"]
["ED_MDU541_04124",null,null,"Raw Adjusted MD","MW","Non-Coincident"]
["ED_MDU541_04125",null,null,null,null,"Coincident"]
["ED_MDU541_04126",null,null,"Raw Adjusted MD","MVA","Non-Coincident"]
["ED_MDU541_04127",null,null,null,null,"Coincident"]
["ED_MDU541_04128",null,null,"Date MD occurred",null,"Non-Coincident"]
["ED_MDU541_04129",null,null,null,null,"Coincident"]
["ED_MDU541_04130",null,null,"Half hour time period MD occurred",null,"Non-Coincident"]
["ED_MDU541_04131",null,null,null,null,"Coincident"]
["ED_MDU541_04132",null,null,"Winter/Summer Peaking",null,"Non-Coincident"]
["ED_MDU541_04133",null,null,null,null,"Coincident"]
["ED_MDU541_04134",null,null,"Adjustments - Embedded generation","MW","Non-Coincident"]
["ED_MDU541_04135",null,null,null,null,"Coincident"]
["ED_MDU541_04136",null,null,"Weather Corrected MD 10% POE","MW","Non-Coincident"]
["ED_MDU541_04137",null,null,null,null,"Coincident"]
["ED_MDU541_04138",null,null,"Weather Corrected MD 10% POE","MVA","Non-Coincident"]
["ED_MDU541_04139",null,null,null,null,"Coincident"]
["ED_MDU541_04140",null,null,"Weather Corrected MD 50% POE","MW","Non-Coincident"]
["ED_MDU541_04141",null,null,null,null,"Coincident"]
["ED_MDU541_04142",null,null,"Weather Corrected MD 50% POE","MVA","Non-Coincident"]
["ED_MDU541_04143",null,null,null,null,"Coincident"]
["ED_MDU541_04144",null,"<Enter substation name>","Substation Rating","MVA","Non-Coincident"]
["ED_MDU541_04145",null,null,null,null,"Coincident"]
["ED_MDU541_04146",null,null,"Raw Adjusted MD","MW","Non-Coincident"]
["ED_MDU541_04147",null,null,null,null,"Coincident"]
["ED_MDU541_04148",null,null,"Raw Adjusted MD","MVA","Non-Coincident"]
["ED_MDU541_04149",null,null,null,null,"Coincident"]
["ED_MDU541_04150",null,null,"Date MD occurred",null,"Non-Coincident"]
["ED_MDU541_04151",null,null,null,null,"Coincident"]
["ED_MDU541_04152",null,null,"Half hour time period MD occurred",null,"Non-Coincident"]
["ED_MDU541_04153",null,null,null,null,"Coincident"]
["ED_MDU541_04154",null,null,"Winter/Summer Peaking",null,"Non-Coincident"]
["ED_MDU541_04155",null,null,null,null,"Coincident"]
["ED_MDU541_04156",null,null,"Adjustments - Embedded generation","MW","Non-Coincident"]
["ED_MDU541_04157",null,null,null,null,"Coincident"]
["ED_MDU541_04158",null,null,"Weather Corrected MD 10% POE","MW","Non-Coincident"]
["ED_MDU541_04159",null,null,null,null,"Coincident"]
["ED_MDU541_04160",null,null,"Weather Corrected MD 10% POE","MVA","Non-Coincident"]
["ED_MDU541_04161",null,null,null,null,"Coincident"]
["ED_MDU541_04162",null,null,"Weather Corrected MD 50% POE","MW","Non-Coincident"]
["ED_MDU541_04163",null,null,null,null,"Coincident"]
["ED_MDU541_04164",null,null,"Weather Corrected MD 50% POE","MVA","Non-Coincident"]
["ED_MDU541_04165",null,null,null,null,"Coincident"]
["ED_MDU541_04166",null,"<Enter substation name>","Substation Rating","MVA","Non-Coincident"]
["ED_MDU541_04167",null,null,null,null,"Coincident"]
["ED_MDU541_04168",null,null,"Raw Adjusted MD","MW","Non-Coincident"]
["ED_MDU541_04169",null,null,null,null,"Coincident"]
["ED_MDU541_04170",null,null,"Raw Adjusted MD","MVA","Non-Coincident"]
["ED_MDU541_04171",null,null,null,null,"Coincident"]
["ED_MDU541_04172",null,null,"Date MD occurred",null,"Non-Coincident"]
["ED_MDU541_04173",null,null,null,null,"Coincident"]
["ED_MDU541_04174",null,null,"Half hour time period MD occurred",null,"Non-Coincident"]
["ED_MDU541_04175",null,null,null,null,"Coincident"]
["ED_MDU541_04176",null,null,"Winter/Summer Peaking",null,"Non-Coincident"]
["ED_MDU541_04177",null,null,null,null,"Coincident"]
["ED_MDU541_04178",null,null,"Adjustments - Embedded generation","MW","Non-Coincident"]
["ED_MDU541_04179",null,null,null,null,"Coincident"]
["ED_MDU541_04180",null,null,"Weather Corrected MD 10% POE","MW","Non-Coincident"]
["ED_MDU541_04181",null,null,null,null,"Coincident"]
["ED_MDU541_04182",null,null,"Weather Corrected MD 10% POE","MVA","Non-Coincident"]
["ED_MDU541_04183",null,null,null,null,"Coincident"]
["ED_MDU541_04184",null,null,"Weather Corrected MD 50% POE","MW","Non-Coincident"]
["ED_MDU541_04185",null,null,null,null,"Coincident"]
["ED_MDU541_04186",null,null,"Weather Corrected MD 50% POE","MVA","Non-Coincident"]
["ED_MDU541_04187",null,null,null,null,"Coincident"]
["ED_MDU541_04188",null,"<Enter substation name>","Substation Rating","MVA","Non-Coincident"]
["ED_MDU541_04189",null,null,null,null,"Coincident"]
["ED_MDU541_04190",null,null,"Raw Adjusted MD","MW","Non-Coincident"]
["ED_MDU541_04191",null,null,null,null,"Coincident"]
["ED_MDU541_04192",null,null,"Raw Adjusted MD","MVA","Non-Coincident"]
["ED_MDU541_04193",null,null,null,null,"Coincident"]
["ED_MDU541_04194",null,null,"Date MD occurred",null,"Non-Coincident"]
["ED_MDU541_04195",null,null,null,null,"Coincident"]
["ED_MDU541_04196",null,null,"Half hour time period MD occurred",null,"Non-Coincident"]
["ED_MDU541_04197",null,null,null,null,"Coincident"]
["ED_MDU541_04198",null,null,"Winter/Summer Peaking",null,"Non-Coincident"]
["ED_MDU541_04199",null,null,null,null,"Coincident"]
["ED_MDU541_04200",null,null,"Adjustments - Embedded generation","MW","Non-Coincident"]
["ED_MDU541_04201",null,null,null,null,"Coincident"]
["ED_MDU541_04202",null,null,"Weather Corrected MD 10% POE","MW","Non-Coincident"]
["ED_MDU541_04203",null,null,null,null,"Coincident"]
["ED_MDU541_04204",null,null,"Weather Corrected MD 10% POE","MVA","Non-Coincident"]
["ED_MDU541_04205",null,null,null,null,"Coincident"]
["ED_MDU541_04206",null,null,"Weather Corrected MD 50% POE","MW","Non-Coincident"]
["ED_MDU541_04207",null,null,null,null,"Coincident"]
["ED_MDU541_04208",null,null,"Weather Corrected MD 50% POE","MVA","Non-Coincident"]
["ED_MDU541_04209",null,null,null,null,"Coincident"]
["ED_MDU541_04210",null,"<Enter substation name>","Substation Rating","MVA","Non-Coincident"]
["ED_MDU541_04211",null,null,null,null,"Coincident"]
["ED_MDU541_04212",null,null,"Raw Adjusted MD","MW","Non-Coincident"]
["ED_MDU541_04213",null,null,null,null,"Coincident"]
["ED_MDU541_04214",null,null,"Raw Adjusted MD","MVA","Non-Coincident"]
["ED_MDU541_04215",null,null,null,null,"Coincident"]
["ED_MDU541_04216",null,null,"Date MD occurred",null,"Non-Coincident"]
["ED_MDU541_04217",null,null,null,null,"Coincident"]
["ED_MDU541_04218",null,null,"Half hour time period MD occurred",null,"Non-Coincident"]
["ED_MDU541_04219",null,null,null,null,"Coincident"]
["ED_MDU541_04220",null,null,"Winter/Summer Peaking",null,"Non-Coincident"]
["ED_MDU541_04221",null,null,null,null,"Coincident"]
["ED_MDU541_04222",null,null,"Adjustments - Embedded generation","MW","Non-Coincident"]
["ED_MDU541_04223",null,null,null,null,"Coincident"]
["ED_MDU541_04224",null,null,"Weather Corrected MD 10% POE","MW","Non-Coincident"]
["ED_MDU541_04225",null,null,null,null,"Coincident"]
["ED_MDU541_04226",null,null,"Weather Corrected MD 10% POE","MVA","Non-Coincident"]
["ED_MDU541_04227",null,null,null,null,"Coincident"]
["ED_MDU541_04228",null,null,"Weather Corrected MD 50% POE","MW","Non-Coincident"]
["ED_MDU541_04229",null,null,null,null,"Coincident"]
["ED_MDU541_04230",null,null,"Weather Corrected MD 50% POE","MVA","Non-Coincident"]
["ED_MDU541_04231",null,null,null,null,"Coincident"]
["ED_MDU541_04232",null,"<Enter substation name>","Substation Rating","MVA","Non-Coincident"]
["ED_MDU541_04233",null,null,null,null,"Coincident"]
["ED_MDU541_04234",null,null,"Raw Adjusted MD","MW","Non-Coincident"]
["ED_MDU541_04235",null,null,null,null,"Coincident"]
["ED_MDU541_04236",null,null,"Raw Adjusted MD","MVA","Non-Coincident"]
["ED_MDU541_04237",null,null,null,null,"Coincident"]
["ED_MDU541_04238",null,null,"Date MD occurred",null,"Non-Coincident"]
["ED_MDU541_04239",null,null,null,null,"Coincident"]
["ED_MDU541_04240",null,null,"Half hour time period MD occurred",null,"Non-Coincident"]
["ED_MDU541_04241",null,null,null,null,"Coincident"]
["ED_MDU541_04242",null,null,"Winter/Summer Peaking",null,"Non-Coincident"]
["ED_MDU541_04243",null,null,null,null,"Coincident"]
["ED_MDU541_04244",null,null,"Adjustments - Embedded generation","MW","Non-Coincident"]
["ED_MDU541_04245",null,null,null,null,"Coincident"]
["ED_MDU541_04246",null,null,"Weather Corrected MD 10% POE","MW","Non-Coincident"]
["ED_MDU541_04247",null,null,null,null,"Coincident"]
["ED_MDU541_04248",null,null,"Weather Corrected MD 10% POE","MVA","Non-Coincident"]
["ED_MDU541_04249",null,null,null,null,"Coincident"]
["ED_MDU541_04250",null,null,"Weather Corrected MD 50% POE","MW","Non-Coincident"]
["ED_MDU541_04251",null,null,null,null,"Coincident"]
["ED_MDU541_04252",null,null,"Weather Corrected MD 50% POE","MVA","Non-Coincident"]
["ED_MDU541_04253",null,null,null,null,"Coincident"]
["ED_MDU541_04254",null,"<Enter substation name>","Substation Rating","MVA","Non-Coincident"]
["ED_MDU541_04255",null,null,null,null,"Coincident"]
["ED_MDU541_04256",null,null,"Raw Adjusted MD","MW","Non-Coincident"]
["ED_MDU541_04257",null,null,null,null,"Coincident"]
["ED_MDU541_04258",null,null,"Raw Adjusted MD","MVA","Non-Coincident"]
["ED_MDU541_04259",null,null,null,null,"Coincident"]
["ED_MDU541_04260",null,null,"Date MD occurred",null,"Non-Coincident"]
["ED_MDU541_04261",null,null,null,null,"Coincident"]
["ED_MDU541_04262",null,null,"Half hour time period MD occurred",null,"Non-Coincident"]
["ED_MDU541_04263",null,null,null,null,"Coincident"]
["ED_MDU541_04264",null,null,"Winter/Summer Peaking",null,"Non-Coincident"]
["ED_MDU541_04265",null,null,null,null,"Coincident"]
["ED_MDU541_04266",null,null,"Adjustments - Embedded generation","MW","Non-Coincident"]
["ED_MDU541_04267",null,null,null,null,"Coincident"]
["ED_MDU541_04268",null,null,"Weather Corrected MD 10% POE","MW","Non-Coincident"]
["ED_MDU541_04269",null,null,null,null,"Coincident"]
["ED_MDU541_04270",null,null,"Weather Corrected MD 10% POE","MVA","Non-Coincident"]
["ED_MDU541_04271",null,null,null,null,"Coincident"]
["ED_MDU541_04272",null,null,"Weather Corrected MD 50% POE","MW","Non-Coincident"]
["ED_MDU541_04273",null,null,null,null,"Coincident"]
["ED_MDU541_04274",null,null,"Weather Corrected MD 50% POE","MVA","Non-Coincident"]
["ED_MDU541_04275",null,null,null,null,"Coincident"]
["ED_MDU541_04276",null,"<Enter substation name>","Substation Rating","MVA","Non-Coincident"]
["ED_MDU541_04277",null,null,null,null,"Coincident"]
["ED_MDU541_04278",null,null,"Raw Adjusted MD","MW","Non-Coincident"]
["ED_MDU541_04279",null,null,null,null,"Coincident"]
["ED_MDU541_04280",null,null,"Raw Adjusted MD","MVA","Non-Coincident"]
["ED_MDU541_04281",null,null,null,null,"Coincident"]
["ED_MDU541_04282",null,null,"Date MD occurred",null,"Non-Coincident"]
["ED_MDU541_04283",null,null,null,null,"Coincident"]
["ED_MDU541_04284",null,null,"Half hour time period MD occurred",null,"Non-Coincident"]
["ED_MDU541_04285",null,null,null,null,"Coincident"]
["ED_MDU541_04286",null,null,"Winter/Summer Peaking",null,"Non-Coincident"]
["ED_MDU541_04287",null,null,null,null,"Coincident"]
["ED_MDU541_04288",null,null,"Adjustments - Embedded generation","MW","Non-Coincident"]
["ED_MDU541_04289",null,null,null,null,"Coincident"]
["ED_MDU541_04290",null,null,"Weather Corrected MD 10% POE","MW","Non-Coincident"]
["ED_MDU541_04291",null,null,null,null,"Coincident"]
["ED_MDU541_04292",null,null,"Weather Corrected MD 10% POE","MVA","Non-Coincident"]
["ED_MDU541_04293",null,null,null,null,"Coincident"]
["ED_MDU541_04294",null,null,"Weather Corrected MD 50% POE","MW","Non-Coincident"]
["ED_MDU541_04295",null,null,null,null,"Coincident"]
["ED_MDU541_04296",null,null,"Weather Corrected MD 50% POE","MVA","Non-Coincident"]
["ED_MDU541_04297",null,null,null,null,"Coincident"]
["ED_MDU541_04298",null,"<Enter substation name>","Substation Rating","MVA","Non-Coincident"]
["ED_MDU541_04299",null,null,null,null,"Coincident"]
["ED_MDU541_04300",null,null,"Raw Adjusted MD","MW","Non-Coincident"]
["ED_MDU541_04301",null,null,null,null,"Coincident"]
["ED_MDU541_04302",null,null,"Raw Adjusted MD","MVA","Non-Coincident"]
["ED_MDU541_04303",null,null,null,null,"Coincident"]
["ED_MDU541_04304",null,null,"Date MD occurred",null,"Non-Coincident"]
["ED_MDU541_04305",null,null,null,null,"Coincident"]
["ED_MDU541_04306",null,null,"Half hour time period MD occurred",null,"Non-Coincident"]
["ED_MDU541_04307",null,null,null,null,"Coincident"]
["ED_MDU541_04308",null,null,"Winter/Summer Peaking",null,"Non-Coincident"]
["ED_MDU541_04309",null,null,null,null,"Coincident"]
["ED_MDU541_04310",null,null,"Adjustments - Embedded generation","MW","Non-Coincident"]
["ED_MDU541_04311",null,null,null,null,"Coincident"]
["ED_MDU541_04312",null,null,"Weather Corrected MD 10% POE","MW","Non-Coincident"]
["ED_MDU541_04313",null,null,null,null,"Coincident"]
["ED_MDU541_04314",null,null,"Weather Corrected MD 10% POE","MVA","Non-Coincident"]
["ED_MDU541_04315",null,null,null,null,"Coincident"]
["ED_MDU541_04316",null,null,"Weather Corrected MD 50% POE","MW","Non-Coincident"]
["ED_MDU541_04317",null,null,null,null,"Coincident"]
["ED_MDU541_04318",null,null,"Weather Corrected MD 50% POE","MVA","Non-Coincident"]
["ED_MDU541_04319",null,null,null,null,"Coincident"]
["ED_MDU541_04320",null,"<Enter substation name>","Substation Rating","MVA","Non-Coincident"]
["ED_MDU541_04321",null,null,null,null,"Coincident"]
["ED_MDU541_04322",null,null,"Raw Adjusted MD","MW","Non-Coincident"]
["ED_MDU541_04323",null,null,null,null,"Coincident"]
["ED_MDU541_04324",null,null,"Raw Adjusted MD","MVA","Non-Coincident"]
["ED_MDU541_04325",null,null,null,null,"Coincident"]
["ED_MDU541_04326",null,null,"Date MD occurred",null,"Non-Coincident"]
["ED_MDU541_04327",null,null,null,null,"Coincident"]
["ED_MDU541_04328",null,null,"Half hour time period MD occurred",null,"Non-Coincident"]
["ED_MDU541_04329",null,null,null,null,"Coincident"]
["ED_MDU541_04330",null,null,"Winter/Summer Peaking",null,"Non-Coincident"]
["ED_MDU541_04331",null,null,null,null,"Coincident"]
["ED_MDU541_04332",null,null,"Adjustments - Embedded generation","MW","Non-Coincident"]
["ED_MDU541_04333",null,null,null,null,"Coincident"]
["ED_MDU541_04334",null,null,"Weather Corrected MD 10% POE","MW","Non-Coincident"]
["ED_MDU541_04335",null,null,null,null,"Coincident"]
["ED_MDU541_04336",null,null,"Weather Corrected MD 10% POE","MVA","Non-Coincident"]
["ED_MDU541_04337",null,null,null,null,"Coincident"]
["ED_MDU541_04338",null,null,"Weather Corrected MD 50% POE","MW","Non-Coincident"]
["ED_MDU541_04339",null,null,null,null,"Coincident"]
["ED_MDU541_04340",null,null,"Weather Corrected MD 50% POE","MVA","Non-Coincident"]
["ED_MDU541_04341",null,null,null,null,"Coincident"]
["ED_MDU541_04342",null,"<Enter substation name>","Substation Rating","MVA","Non-Coincident"]
["ED_MDU541_04343",null,null,null,null,"Coincident"]
["ED_MDU541_04344",null,null,"Raw Adjusted MD","MW","Non-Coincident"]
["ED_MDU541_04345",null,null,null,null,"Coincident"]
["ED_MDU541_04346",null,null,"Raw Adjusted MD","MVA","Non-Coincident"]
["ED_MDU541_04347",null,null,null,null,"Coincident"]
["ED_MDU541_04348",null,null,"Date MD occurred",null,"Non-Coincident"]
["ED_MDU541_04349",null,null,null,null,"Coincident"]
["ED_MDU541_04350",null,null,"Half hour time period MD occurred",null,"Non-Coincident"]
["ED_MDU541_04351",null,null,null,null,"Coincident"]
["ED_MDU541_04352",null,null,"Winter/Summer Peaking",null,"Non-Coincident"]
["ED_MDU541_04353",null,null,null,null,"Coincident"]
["ED_MDU541_04354",null,null,"Adjustments - Embedded generation","MW","Non-Coincident"]
["ED_MDU541_04355",null,null,null,null,"Coincident"]
["ED_MDU541_04356",null,null,"Weather Corrected MD 10% POE","MW","Non-Coincident"]
["ED_MDU541_04357",null,null,null,null,"Coincident"]
["ED_MDU541_04358",null,null,"Weather Corrected MD 10% POE","MVA","Non-Coincident"]
["ED_MDU541_04359",null,null,null,null,"Coincident"]
["ED_MDU541_04360",null,null,"Weather Corrected MD 50% POE","MW","Non-Coincident"]
["ED_MDU541_04361",null,null,null,null,"Coincident"]
["ED_MDU541_04362",null,null,"Weather Corrected MD 50% POE","MVA","Non-Coincident"]
["ED_MDU541_04363",null,null,null,null,"Coincident"]
["ED_MDU541_04364",null,"<Enter substation name>","Substation Rating","MVA","Non-Coincident"]
["ED_MDU541_04365",null,null,null,null,"Coincident"]
["ED_MDU541_04366",null,null,"Raw Adjusted MD","MW","Non-Coincident"]
["ED_MDU541_04367",null,null,null,null,"Coincident"]
["ED_MDU541_04368",null,null,"Raw Adjusted MD","MVA","Non-Coincident"]
["ED_MDU541_04369",null,null,null,null,"Coincident"]
["ED_MDU541_04370",null,null,"Date MD occurred",null,"Non-Coincident"]
["ED_MDU541_04371",null,null,null,null,"Coincident"]
["ED_MDU541_04372",null,null,"Half hour time period MD occurred",null,"Non-Coincident"]
["ED_MDU541_04373",null,null,null,null,"Coincident"]
["ED_MDU541_04374",null,null,"Winter/Summer Peaking",null,"Non-Coincident"]
["ED_MDU541_04375",null,null,null,null,"Coincident"]
["ED_MDU541_04376",null,null,"Adjustments - Embedded generation","MW","Non-Coincident"]
["ED_MDU541_04377",null,null,null,null,"Coincident"]
["ED_MDU541_04378",null,null,"Weather Corrected MD 10% POE","MW","Non-Coincident"]
["ED_MDU541_04379",null,null,null,null,"Coincident"]
["ED_MDU541_04380",null,null,"Weather Corrected MD 10% POE","MVA","Non-Coincident"]
["ED_MDU541_04381",null,null,null,null,"Coincident"]
["ED_MDU541_04382",null,null,"Weather Corrected MD 50% POE","MW","Non-Coincident"]
["ED_MDU541_04383",null,null,null,null,"Coincident"]
["ED_MDU541_04384",null,null,"Weather Corrected MD 50% POE","MVA","Non-Coincident"]
["ED_MDU541_04385",null,null,null,null,"Coincident"]
["ED_MDU541_04386",null,"<Enter substation name>","Substation Rating","MVA","Non-Coincident"]
["ED_MDU541_04387",null,null,null,null,"Coincident"]
["ED_MDU541_04388",null,null,"Raw Adjusted MD","MW","Non-Coincident"]
["ED_MDU541_04389",null,null,null,null,"Coincident"]
["ED_MDU541_04390",null,null,"Raw Adjusted MD","MVA","Non-Coincident"]
["ED_MDU541_04391",null,null,null,null,"Coincident"]
["ED_MDU541_04392",null,null,"Date MD occurred",null,"Non-Coincident"]
["ED_MDU541_04393",null,null,null,null,"Coincident"]
["ED_MDU541_04394",null,null,"Half hour time period MD occurred",null,"Non-Coincident"]
["ED_MDU541_04395",null,null,null,null,"Coincident"]
["ED_MDU541_04396",null,null,"Winter/Summer Peaking",null,"Non-Coincident"]
["ED_MDU541_04397",null,null,null,null,"Coincident"]
["ED_MDU541_04398",null,null,"Adjustments - Embedded generation","MW","Non-Coincident"]
["ED_MDU541_04399",null,null,null,null,"Coincident"]
["ED_MDU541_04400",null,null,"Weather Corrected MD 10% POE","MW","Non-Coincident"]
["ED_MDU541_04401",null,null,null,null,"Coincident"]
["ED_MDU541_04402",null,null,"Weather Corrected MD 10% POE","MVA","Non-Coincident"]
["ED_MDU541_04403",null,null,null,null,"Coincident"]
["ED_MDU541_04404",null,null,"Weather Corrected MD 50% POE","MW","Non-Coincident"]
["ED_MDU541_04405",null,null,null,null,"Coincident"]
["ED_MDU541_04406",null,null,"Weather Corrected MD 50% POE","MVA","Non-Coincident"]
["ED_MDU541_04407",null,null,null,null,"Coincident"]
["ED_MDU541_04408",null,"<Enter substation name>","Substation Rating","MVA","Non-Coincident"]
["ED_MDU541_04409",null,null,null,null,"Coincident"]
["ED_MDU541_04410",null,null,"Raw Adjusted MD","MW","Non-Coincident"]
["ED_MDU541_04411",null,null,null,null,"Coincident"]
["ED_MDU541_04412",null,null,"Raw Adjusted MD","MVA","Non-Coincident"]
["ED_MDU541_04413",null,null,null,null,"Coincident"]
["ED_MDU541_04414",null,null,"Date MD occurred",null,"Non-Coincident"]
["ED_MDU541_04415",null,null,null,null,"Coincident"]
["ED_MDU541_04416",null,null,"Half hour time period MD occurred",null,"Non-Coincident"]
["ED_MDU541_04417",null,null,null,null,"Coincident"]
["ED_MDU541_04418",null,null,"Winter/Summer Peaking",null,"Non-Coincident"]
["ED_MDU541_04419",null,null,null,null,"Coincident"]
["ED_MDU541_04420",null,null,"Adjustments - Embedded generation","MW","Non-Coincident"]
["ED_MDU541_04421",null,null,null,null,"Coincident"]
["ED_MDU541_04422",null,null,"Weather Corrected MD 10% POE","MW","Non-Coincident"]
["ED_MDU541_04423",null,null,null,null,"Coincident"]
["ED_MDU541_04424",null,null,"Weather Corrected MD 10% POE","MVA","Non-Coincident"]
["ED_MDU541_04425",null,null,null,null,"Coincident"]
["ED_MDU541_04426",null,null,"Weather Corrected MD 50% POE","MW","Non-Coincident"]
["ED_MDU541_04427",null,null,null,null,"Coincident"]
["ED_MDU541_04428",null,null,"Weather Corrected MD 50% POE","MVA","Non-Coincident"]
["ED_MDU541_04429",null,null,null,null,"Coincident"]
["ED_MDU541_04430",null,"<Enter substation name>","Substation Rating","MVA","Non-Coincident"]
["ED_MDU541_04431",null,null,null,null,"Coincident"]
["ED_MDU541_04432",null,null,"Raw Adjusted MD","MW","Non-Coincident"]
["ED_MDU541_04433",null,null,null,null,"Coincident"]
["ED_MDU541_04434",null,null,"Raw Adjusted MD","MVA","Non-Coincident"]
["ED_MDU541_04435",null,null,null,null,"Coincident"]
["ED_MDU541_04436",null,null,"Date MD occurred",null,"Non-Coincident"]
["ED_MDU541_04437",null,null,null,null,"Coincident"]
["ED_MDU541_04438",null,null,"Half hour time period MD occurred",null,"Non-Coincident"]
["ED_MDU541_04439",null,null,null,null,"Coincident"]
["ED_MDU541_04440",null,null,"Winter/Summer Peaking",null,"Non-Coincident"]
["ED_MDU541_04441",null,null,null,null,"Coincident"]
["ED_MDU541_04442",null,null,"Adjustments - Embedded generation","MW","Non-Coincident"]
["ED_MDU541_04443",null,null,null,null,"Coincident"]
["ED_MDU541_04444",null,null,"Weather Corrected MD 10% POE","MW","Non-Coincident"]
["ED_MDU541_04445",null,null,null,null,"Coincident"]
["ED_MDU541_04446",null,null,"Weather Corrected MD 10% POE","MVA","Non-Coincident"]
["ED_MDU541_04447",null,null,null,null,"Coincident"]
["ED_MDU541_04448",null,null,"Weather Corrected MD 50% POE","MW","Non-Coincident"]
["ED_MDU541_04449",null,null,null,null,"Coincident"]
["ED_MDU541_04450",null,null,"Weather Corrected MD 50% POE","MVA","Non-Coincident"]
["ED_MDU541_04451",null,null,null,null,"Coincident"]
["ED_MDU541_04452",null,"<Enter substation name>","Substation Rating","MVA","Non-Coincident"]
["ED_MDU541_04453",null,null,null,null,"Coincident"]
["ED_MDU541_04454",null,null,"Raw Adjusted MD","MW","Non-Coincident"]
["ED_MDU541_04455",null,null,null,null,"Coincident"]
["ED_MDU541_04456",null,null,"Raw Adjusted MD","MVA","Non-Coincident"]
["ED_MDU541_04457",null,null,null,null,"Coincident"]
["ED_MDU541_04458",null,null,"Date MD occurred",null,"Non-Coincident"]
["ED_MDU541_04459",null,null,null,null,"Coincident"]
["ED_MDU541_04460",null,null,"Half hour time period MD occurred",null,"Non-Coincident"]
["ED_MDU541_04461",null,null,null,null,"Coincident"]
["ED_MDU541_04462",null,null,"Winter/Summer Peaking",null,"Non-Coincident"]
["ED_MDU541_04463",null,null,null,null,"Coincident"]
["ED_MDU541_04464",null,null,"Adjustments - Embedded generation","MW","Non-Coincident"]
["ED_MDU541_04465",null,null,null,null,"Coincident"]
["ED_MDU541_04466",null,null,"Weather Corrected MD 10% POE","MW","Non-Coincident"]
["ED_MDU541_04467",null,null,null,null,"Coincident"]
["ED_MDU541_04468",null,null,"Weather Corrected MD 10% POE","MVA","Non-Coincident"]
["ED_MDU541_04469",null,null,null,null,"Coincident"]
["ED_MDU541_04470",null,null,"Weather Corrected MD 50% POE","MW","Non-Coincident"]
["ED_MDU541_04471",null,null,null,null,"Coincident"]
["ED_MDU541_04472",null,null,"Weather Corrected MD 50% POE","MVA","Non-Coincident"]
["ED_MDU541_04473",null,null,null,null,"Coincident"]
["ED_MDU541_04474",null,"<Enter substation name>","Substation Rating","MVA","Non-Coincident"]
["ED_MDU541_04475",null,null,null,null,"Coincident"]
["ED_MDU541_04476",null,null,"Raw Adjusted MD","MW","Non-Coincident"]
["ED_MDU541_04477",null,null,null,null,"Coincident"]
["ED_MDU541_04478",null,null,"Raw Adjusted MD","MVA","Non-Coincident"]
["ED_MDU541_04479",null,null,null,null,"Coincident"]
["ED_MDU541_04480",null,null,"Date MD occurred",null,"Non-Coincident"]
["ED_MDU541_04481",null,null,null,null,"Coincident"]
["ED_MDU541_04482",null,null,"Half hour time period MD occurred",null,"Non-Coincident"]
["ED_MDU541_04483",null,null,null,null,"Coincident"]
["ED_MDU541_04484",null,null,"Winter/Summer Peaking",null,"Non-Coincident"]
["ED_MDU541_04485",null,null,null,null,"Coincident"]
["ED_MDU541_04486",null,null,"Adjustments - Embedded generation","MW","Non-Coincident"]
["ED_MDU541_04487",null,null,null,null,"Coincident"]
["ED_MDU541_04488",null,null,"Weather Corrected MD 10% POE","MW","Non-Coincident"]
["ED_MDU541_04489",null,null,null,null,"Coincident"]
["ED_MDU541_04490",null,null,"Weather Corrected MD 10% POE","MVA","Non-Coincident"]
["ED_MDU541_04491",null,null,null,null,"Coincident"]
["ED_MDU541_04492",null,null,"Weather Corrected MD 50% POE","MW","Non-Coincident"]
["ED_MDU541_04493",null,null,null,null,"Coincident"]
["ED_MDU541_04494",null,null,"Weather Corrected MD 50% POE","MVA","Non-Coincident"]
["ED_MDU541_04495",null,null,null,null,"Coincident"]
["ED_MDU541_04496",null,"<Enter substation name>","Substation Rating","MVA","Non-Coincident"]
["ED_MDU541_04497",null,null,null,null,"Coincident"]
["ED_MDU541_04498",null,null,"Raw Adjusted MD","MW","Non-Coincident"]
["ED_MDU541_04499",null,null,null,null,"Coincident"]
["ED_MDU541_04500",null,null,"Raw Adjusted MD","MVA","Non-Coincident"]
["ED_MDU541_04501",null,null,null,null,"Coincident"]
["ED_MDU541_04502",null,null,"Date MD occurred",null,"Non-Coincident"]
["ED_MDU541_04503",null,null,null,null,"Coincident"]
["ED_MDU541_04504",null,null,"Half hour time period MD occurred",null,"Non-Coincident"]
["ED_MDU541_04505",null,null,null,null,"Coincident"]
["ED_MDU541_04506",null,null,"Winter/Summer Peaking",null,"Non-Coincident"]
["ED_MDU541_04507",null,null,null,null,"Coincident"]
["ED_MDU541_04508",null,null,"Adjustments - Embedded generation","MW","Non-Coincident"]
["ED_MDU541_04509",null,null,null,null,"Coincident"]
["ED_MDU541_04510",null,null,"Weather Corrected MD 10% POE","MW","Non-Coincident"]
["ED_MDU541_04511",null,null,null,null,"Coincident"]
["ED_MDU541_04512",null,null,"Weather Corrected MD 10% POE","MVA","Non-Coincident"]
["ED_MDU541_04513",null,null,null,null,"Coincident"]
["ED_MDU541_04514",null,null,"Weather Corrected MD 50% POE","MW","Non-Coincident"]
["ED_MDU541_04515",null,null,null,null,"Coincident"]
["ED_MDU541_04516",null,null,"Weather Corrected MD 50% POE","MVA","Non-Coincident"]
["ED_MDU541_04517",null,null,null,null,"Coincident"]
["ED_MDU541_04518",null,"<Enter substation name>","Substation Rating","MVA","Non-Coincident"]
["ED_MDU541_04519",null,null,null,null,"Coincident"]
["ED_MDU541_04520",null,null,"Raw Adjusted MD","MW","Non-Coincident"]
["ED_MDU541_04521",null,null,null,null,"Coincident"]
["ED_MDU541_04522",null,null,"Raw Adjusted MD","MVA","Non-Coincident"]
["ED_MDU541_04523",null,null,null,null,"Coincident"]
["ED_MDU541_04524",null,null,"Date MD occurred",null,"Non-Coincident"]
["ED_MDU541_04525",null,null,null,null,"Coincident"]
["ED_MDU541_04526",null,null,"Half hour time period MD occurred",null,"Non-Coincident"]
["ED_MDU541_04527",null,null,null,null,"Coincident"]
["ED_MDU541_04528",null,null,"Winter/Summer Peaking",null,"Non-Coincident"]
["ED_MDU541_04529",null,null,null,null,"Coincident"]
["ED_MDU541_04530",null,null,"Adjustments - Embedded generation","MW","Non-Coincident"]
["ED_MDU541_04531",null,null,null,null,"Coincident"]
["ED_MDU541_04532",null,null,"Weather Corrected MD 10% POE","MW","Non-Coincident"]
["ED_MDU541_04533",null,null,null,null,"Coincident"]
["ED_MDU541_04534",null,null,"Weather Corrected MD 10% POE","MVA","Non-Coincident"]
["ED_MDU541_04535",null,null,null,null,"Coincident"]
["ED_MDU541_04536",null,null,"Weather Corrected MD 50% POE","MW","Non-Coincident"]
["ED_MDU541_04537",null,null,null,null,"Coincident"]
["ED_MDU541_04538",null,null,"Weather Corrected MD 50% POE","MVA","Non-Coincident"]
["ED_MDU541_04539",null,null,null,null,"Coincident"]
["ED_MDU541_04540",null,"<Enter substation name>","Substation Rating","MVA","Non-Coincident"]
["ED_MDU541_04541",null,null,null,null,"Coincident"]
["ED_MDU541_04542",null,null,"Raw Adjusted MD","MW","Non-Coincident"]
["ED_MDU541_04543",null,null,null,null,"Coincident"]
["ED_MDU541_04544",null,null,"Raw Adjusted MD","MVA","Non-Coincident"]
["ED_MDU541_04545",null,null,null,null,"Coincident"]
["ED_MDU541_04546",null,null,"Date MD occurred",null,"Non-Coincident"]
["ED_MDU541_04547",null,null,null,null,"Coincident"]
["ED_MDU541_04548",null,null,"Half hour time period MD occurred",null,"Non-Coincident"]
["ED_MDU541_04549",null,null,null,null,"Coincident"]
["ED_MDU541_04550",null,null,"Winter/Summer Peaking",null,"Non-Coincident"]
["ED_MDU541_04551",null,null,null,null,"Coincident"]
["ED_MDU541_04552",null,null,"Adjustments - Embedded generation","MW","Non-Coincident"]
["ED_MDU541_04553",null,null,null,null,"Coincident"]
["ED_MDU541_04554",null,null,"Weather Corrected MD 10% POE","MW","Non-Coincident"]
["ED_MDU541_04555",null,null,null,null,"Coincident"]
["ED_MDU541_04556",null,null,"Weather Corrected MD 10% POE","MVA","Non-Coincident"]
["ED_MDU541_04557",null,null,null,null,"Coincident"]
["ED_MDU541_04558",null,null,"Weather Corrected MD 50% POE","MW","Non-Coincident"]
["ED_MDU541_04559",null,null,null,null,"Coincident"]
["ED_MDU541_04560",null,null,"Weather Corrected MD 50% POE","MVA","Non-Coincident"]
["ED_MDU541_04561",null,null,null,null,"Coincident"]
["ED_MDU541_04562",null,"<Enter substation name>","Substation Rating","MVA","Non-Coincident"]
["ED_MDU541_04563",null,null,null,null,"Coincident"]
["ED_MDU541_04564",null,null,"Raw Adjusted MD","MW","Non-Coincident"]
["ED_MDU541_04565",null,null,null,null,"Coincident"]
["ED_MDU541_04566",null,null,"Raw Adjusted MD","MVA","Non-Coincident"]
["ED_MDU541_04567",null,null,null,null,"Coincident"]
["ED_MDU541_04568",null,null,"Date MD occurred",null,"Non-Coincident"]
["ED_MDU541_04569",null,null,null,null,"Coincident"]
["ED_MDU541_04570",null,null,"Half hour time period MD occurred",null,"Non-Coincident"]
["ED_MDU541_04571",null,null,null,null,"Coincident"]
["ED_MDU541_04572",null,null,"Winter/Summer Peaking",null,"Non-Coincident"]
["ED_MDU541_04573",null,null,null,null,"Coincident"]
["ED_MDU541_04574",null,null,"Adjustments - Embedded generation","MW","Non-Coincident"]
["ED_MDU541_04575",null,null,null,null,"Coincident"]
["ED_MDU541_04576",null,null,"Weather Corrected MD 10% POE","MW","Non-Coincident"]
["ED_MDU541_04577",null,null,null,null,"Coincident"]
["ED_MDU541_04578",null,null,"Weather Corrected MD 10% POE","MVA","Non-Coincident"]
["ED_MDU541_04579",null,null,null,null,"Coincident"]
["ED_MDU541_04580",null,null,"Weather Corrected MD 50% POE","MW","Non-Coincident"]
["ED_MDU541_04581",null,null,null,null,"Coincident"]
["ED_MDU541_04582",null,null,"Weather Corrected MD 50% POE","MVA","Non-Coincident"]
["ED_MDU541_04583",null,null,null,null,"Coincident"]
["ED_MDU541_04584",null,"<Enter substation name>","Substation Rating","MVA","Non-Coincident"]
["ED_MDU541_04585",null,null,null,null,"Coincident"]
["ED_MDU541_04586",null,null,"Raw Adjusted MD","MW","Non-Coincident"]
["ED_MDU541_04587",null,null,null,null,"Coincident"]
["ED_MDU541_04588",null,null,"Raw Adjusted MD","MVA","Non-Coincident"]
["ED_MDU541_04589",null,null,null,null,"Coincident"]
["ED_MDU541_04590",null,null,"Date MD occurred",null,"Non-Coincident"]
["ED_MDU541_04591",null,null,null,null,"Coincident"]
["ED_MDU541_04592",null,null,"Half hour time period MD occurred",null,"Non-Coincident"]
["ED_MDU541_04593",null,null,null,null,"Coincident"]
["ED_MDU541_04594",null,null,"Winter/Summer Peaking",null,"Non-Coincident"]
["ED_MDU541_04595",null,null,null,null,"Coincident"]
["ED_MDU541_04596",null,null,"Adjustments - Embedded generation","MW","Non-Coincident"]
["ED_MDU541_04597",null,null,null,null,"Coincident"]
["ED_MDU541_04598",null,null,"Weather Corrected MD 10% POE","MW","Non-Coincident"]
["ED_MDU541_04599",null,null,null,null,"Coincident"]
["ED_MDU541_04600",null,null,"Weather Corrected MD 10% POE","MVA","Non-Coincident"]
["ED_MDU541_04601",null,null,null,null,"Coincident"]
["ED_MDU541_04602",null,null,"Weather Corrected MD 50% POE","MW","Non-Coincident"]
["ED_MDU541_04603",null,null,null,null,"Coincident"]
["ED_MDU541_04604",null,null,"Weather Corrected MD 50% POE","MVA","Non-Coincident"]
["ED_MDU541_04605",null,null,null,null,"Coincident"]
["ED_MDU541_04606",null,"<Enter substation name>","Substation Rating","MVA","Non-Coincident"]
["ED_MDU541_04607",null,null,null,null,"Coincident"]
["ED_MDU541_04608",null,null,"Raw Adjusted MD","MW","Non-Coincident"]
["ED_MDU541_04609",null,null,null,null,"Coincident"]
["ED_MDU541_04610",null,null,"Raw Adjusted MD","MVA","Non-Coincident"]
["ED_MDU541_04611",null,null,null,null,"Coincident"]
["ED_MDU541_04612",null,null,"Date MD occurred",null,"Non-Coincident"]
["ED_MDU541_04613",null,null,null,null,"Coincident"]
["ED_MDU541_04614",null,null,"Half hour time period MD occurred",null,"Non-Coincident"]
["ED_MDU541_04615",null,null,null,null,"Coincident"]
["ED_MDU541_04616",null,null,"Winter/Summer Peaking",null,"Non-Coincident"]
["ED_MDU541_04617",null,null,null,null,"Coincident"]
["ED_MDU541_04618",null,null,"Adjustments - Embedded generation","MW","Non-Coincident"]
["ED_MDU541_04619",null,null,null,null,"Coincident"]
["ED_MDU541_04620",null,null,"Weather Corrected MD 10% POE","MW","Non-Coincident"]
["ED_MDU541_04621",null,null,null,null,"Coincident"]
["ED_MDU541_04622",null,null,"Weather Corrected MD 10% POE","MVA","Non-Coincident"]
["ED_MDU541_04623",null,null,null,null,"Coincident"]
["ED_MDU541_04624",null,null,"Weather Corrected MD 50% POE","MW","Non-Coincident"]
["ED_MDU541_04625",null,null,null,null,"Coincident"]
["ED_MDU541_04626",null,null,"Weather Corrected MD 50% POE","MVA","Non-Coincident"]
["ED_MDU541_04627",null,null,null,null,"Coincident"]
["ED_MDU541_04628",null,"<Enter substation name>","Substation Rating","MVA","Non-Coincident"]
["ED_MDU541_04629",null,null,null,null,"Coincident"]
["ED_MDU541_04630",null,null,"Raw Adjusted MD","MW","Non-Coincident"]
["ED_MDU541_04631",null,null,null,null,"Coincident"]
["ED_MDU541_04632",null,null,"Raw Adjusted MD","MVA","Non-Coincident"]
["ED_MDU541_04633",null,null,null,null,"Coincident"]
["ED_MDU541_04634",null,null,"Date MD occurred",null,"Non-Coincident"]
["ED_MDU541_04635",null,null,null,null,"Coincident"]
["ED_MDU541_04636",null,null,"Half hour time period MD occurred",null,"Non-Coincident"]
["ED_MDU541_04637",null,null,null,null,"Coincident"]
["ED_MDU541_04638",null,null,"Winter/Summer Peaking",null,"Non-Coincident"]
["ED_MDU541_04639",null,null,null,null,"Coincident"]
["ED_MDU541_04640",null,null,"Adjustments - Embedded generation","MW","Non-Coincident"]
["ED_MDU541_04641",null,null,null,null,"Coincident"]
["ED_MDU541_04642",null,null,"Weather Corrected MD 10% POE","MW","Non-Coincident"]
["ED_MDU541_04643",null,null,null,null,"Coincident"]
["ED_MDU541_04644",null,null,"Weather Corrected MD 10% POE","MVA","Non-Coincident"]
["ED_MDU541_04645",null,null,null,null,"Coincident"]
["ED_MDU541_04646",null,null,"Weather Corrected MD 50% POE","MW","Non-Coincident"]
["ED_MDU541_04647",null,null,null,null,"Coincident"]
["ED_MDU541_04648",null,null,"Weather Corrected MD 50% POE","MVA","Non-Coincident"]
["ED_MDU541_04649",null,null,null,null,"Coincident"]
["ED_MDU541_04650",null,"<Enter substation name>","Substation Rating","MVA","Non-Coincident"]
["ED_MDU541_04651",null,null,null,null,"Coincident"]
["ED_MDU541_04652",null,null,"Raw Adjusted MD","MW","Non-Coincident"]
["ED_MDU541_04653",null,null,null,null,"Coincident"]
["ED_MDU541_04654",null,null,"Raw Adjusted MD","MVA","Non-Coincident"]
["ED_MDU541_04655",null,null,null,null,"Coincident"]
["ED_MDU541_04656",null,null,"Date MD occurred",null,"Non-Coincident"]
["ED_MDU541_04657",null,null,null,null,"Coincident"]
["ED_MDU541_04658",null,null,"Half hour time period MD occurred",null,"Non-Coincident"]
["ED_MDU541_04659",null,null,null,null,"Coincident"]
["ED_MDU541_04660",null,null,"Winter/Summer Peaking",null,"Non-Coincident"]
["ED_MDU541_04661",null,null,null,null,"Coincident"]
["ED_MDU541_04662",null,null,"Adjustments - Embedded generation","MW","Non-Coincident"]
["ED_MDU541_04663",null,null,null,null,"Coincident"]
["ED_MDU541_04664",null,null,"Weather Corrected MD 10% POE","MW","Non-Coincident"]
["ED_MDU541_04665",null,null,null,null,"Coincident"]
["ED_MDU541_04666",null,null,"Weather Corrected MD 10% POE","MVA","Non-Coincident"]
["ED_MDU541_04667",null,null,null,null,"Coincident"]
["ED_MDU541_04668",null,null,"Weather Corrected MD 50% POE","MW","Non-Coincident"]
["ED_MDU541_04669",null,null,null,null,"Coincident"]
["ED_MDU541_04670",null,null,"Weather Corrected MD 50% POE","MVA","Non-Coincident"]
["ED_MDU541_04671",null,null,null,null,"Coincident"]
["ED_MDU541_04672",null,"<Enter substation name>","Substation Rating","MVA","Non-Coincident"]
["ED_MDU541_04673",null,null,null,null,"Coincident"]
["ED_MDU541_04674",null,null,"Raw Adjusted MD","MW","Non-Coincident"]
["ED_MDU541_04675",null,null,null,null,"Coincident"]
["ED_MDU541_04676",null,null,"Raw Adjusted MD","MVA","Non-Coincident"]
["ED_MDU541_04677",null,null,null,null,"Coincident"]
["ED_MDU541_04678",null,null,"Date MD occurred",null,"Non-Coincident"]
["ED_MDU541_04679",null,null,null,null,"Coincident"]
["ED_MDU541_04680",null,null,"Half hour time period MD occurred",null,"Non-Coincident"]
["ED_MDU541_04681",null,null,null,null,"Coincident"]
["ED_MDU541_04682",null,null,"Winter/Summer Peaking",null,"Non-Coincident"]
["ED_MDU541_04683",null,null,null,null,"Coincident"]
["ED_MDU541_04684",null,null,"Adjustments - Embedded generation","MW","Non-Coincident"]
["ED_MDU541_04685",null,null,null,null,"Coincident"]
["ED_MDU541_04686",null,null,"Weather Corrected MD 10% POE","MW","Non-Coincident"]
["ED_MDU541_04687",null,null,null,null,"Coincident"]
["ED_MDU541_04688",null,null,"Weather Corrected MD 10% POE","MVA","Non-Coincident"]
["ED_MDU541_04689",null,null,null,null,"Coincident"]
["ED_MDU541_04690",null,null,"Weather Corrected MD 50% POE","MW","Non-Coincident"]
["ED_MDU541_04691",null,null,null,null,"Coincident"]
["ED_MDU541_04692",null,null,"Weather Corrected MD 50% POE","MVA","Non-Coincident"]
["ED_MDU541_04693",null,null,null,null,"Coincident"]
["ED_MDU541_04694",null,"<Enter substation name>","Substation Rating","MVA","Non-Coincident"]
["ED_MDU541_04695",null,null,null,null,"Coincident"]
["ED_MDU541_04696",null,null,"Raw Adjusted MD","MW","Non-Coincident"]
["ED_MDU541_04697",null,null,null,null,"Coincident"]
["ED_MDU541_04698",null,null,"Raw Adjusted MD","MVA","Non-Coincident"]
["ED_MDU541_04699",null,null,null,null,"Coincident"]
["ED_MDU541_04700",null,null,"Date MD occurred",null,"Non-Coincident"]
["ED_MDU541_04701",null,null,null,null,"Coincident"]
["ED_MDU541_04702",null,null,"Half hour time period MD occurred",null,"Non-Coincident"]
["ED_MDU541_04703",null,null,null,null,"Coincident"]
["ED_MDU541_04704",null,null,"Winter/Summer Peaking",null,"Non-Coincident"]
["ED_MDU541_04705",null,null,null,null,"Coincident"]
["ED_MDU541_04706",null,null,"Adjustments - Embedded generation","MW","Non-Coincident"]
["ED_MDU541_04707",null,null,null,null,"Coincident"]
["ED_MDU541_04708",null,null,"Weather Corrected MD 10% POE","MW","Non-Coincident"]
["ED_MDU541_04709",null,null,null,null,"Coincident"]
["ED_MDU541_04710",null,null,"Weather Corrected MD 10% POE","MVA","Non-Coincident"]
["ED_MDU541_04711",null,null,null,null,"Coincident"]
["ED_MDU541_04712",null,null,"Weather Corrected MD 50% POE","MW","Non-Coincident"]
["ED_MDU541_04713",null,null,null,null,"Coincident"]
["ED_MDU541_04714",null,null,"Weather Corrected MD 50% POE","MVA","Non-Coincident"]
["ED_MDU541_04715",null,null,null,null,"Coincident"]
["ED_MDU541_04716",null,"<Enter substation name>","Substation Rating","MVA","Non-Coincident"]
["ED_MDU541_04717",null,null,null,null,"Coincident"]
["ED_MDU541_04718",null,null,"Raw Adjusted MD","MW","Non-Coincident"]
["ED_MDU541_04719",null,null,null,null,"Coincident"]
["ED_MDU541_04720",null,null,"Raw Adjusted MD","MVA","Non-Coincident"]
["ED_MDU541_04721",null,null,null,null,"Coincident"]
["ED_MDU541_04722",null,null,"Date MD occurred",null,"Non-Coincident"]
["ED_MDU541_04723",null,null,null,null,"Coincident"]
["ED_MDU541_04724",null,null,"Half hour time period MD occurred",null,"Non-Coincident"]
["ED_MDU541_04725",null,null,null,null,"Coincident"]
["ED_MDU541_04726",null,null,"Winter/Summer Peaking",null,"Non-Coincident"]
["ED_MDU541_04727",null,null,null,null,"Coincident"]
["ED_MDU541_04728",null,null,"Adjustments - Embedded generation","MW","Non-Coincident"]
["ED_MDU541_04729",null,null,null,null,"Coincident"]
["ED_MDU541_04730",null,null,"Weather Corrected MD 10% POE","MW","Non-Coincident"]
["ED_MDU541_04731",null,null,null,null,"Coincident"]
["ED_MDU541_04732",null,null,"Weather Corrected MD 10% POE","MVA","Non-Coincident"]
["ED_MDU541_04733",null,null,null,null,"Coincident"]
["ED_MDU541_04734",null,null,"Weather Corrected MD 50% POE","MW","Non-Coincident"]
["ED_MDU541_04735",null,null,null,null,"Coincident"]
["ED_MDU541_04736",null,null,"Weather Corrected MD 50% POE","MVA","Non-Coincident"]
["ED_MDU541_04737",null,null,null,null,"Coincident"]
["ED_MDU541_04738",null,"<Enter substation name>","Substation Rating","MVA","Non-Coincident"]
["ED_MDU541_04739",null,null,null,null,"Coincident"]
["ED_MDU541_04740",null,null,"Raw Adjusted MD","MW","Non-Coincident"]
["ED_MDU541_04741",null,null,null,null,"Coincident"]
["ED_MDU541_04742",null,null,"Raw Adjusted MD","MVA","Non-Coincident"]
["ED_MDU541_04743",null,null,null,null,"Coincident"]
["ED_MDU541_04744",null,null,"Date MD occurred",null,"Non-Coincident"]
["ED_MDU541_04745",null,null,null,null,"Coincident"]
["ED_MDU541_04746",null,null,"Half hour time period MD occurred",null,"Non-Coincident"]
["ED_MDU541_04747",null,null,null,null,"Coincident"]
["ED_MDU541_04748",null,null,"Winter/Summer Peaking",null,"Non-Coincident"]
["ED_MDU541_04749",null,null,null,null,"Coincident"]
["ED_MDU541_04750",null,null,"Adjustments - Embedded generation","MW","Non-Coincident"]
["ED_MDU541_04751",null,null,null,null,"Coincident"]
["ED_MDU541_04752",null,null,"Weather Corrected MD 10% POE","MW","Non-Coincident"]
["ED_MDU541_04753",null,null,null,null,"Coincident"]
["ED_MDU541_04754",null,null,"Weather Corrected MD 10% POE","MVA","Non-Coincident"]
["ED_MDU541_04755",null,null,null,null,"Coincident"]
["ED_MDU541_04756",null,null,"Weather Corrected MD 50% POE","MW","Non-Coincident"]
["ED_MDU541_04757",null,null,null,null,"Coincident"]
["ED_MDU541_04758",null,null,"Weather Corrected MD 50% POE","MVA","Non-Coincident"]
["ED_MDU541_04759",null,null,null,null,"Coincident"]
["ED_MDU541_04760",null,"<Enter substation name>","Substation Rating","MVA","Non-Coincident"]
["ED_MDU541_04761",null,null,null,null,"Coincident"]
["ED_MDU541_04762",null,null,"Raw Adjusted MD","MW","Non-Coincident"]
["ED_MDU541_04763",null,null,null,null,"Coincident"]
["ED_MDU541_04764",null,null,"Raw Adjusted MD","MVA","Non-Coincident"]
["ED_MDU541_04765",null,null,null,null,"Coincident"]
["ED_MDU541_04766",null,null,"Date MD occurred",null,"Non-Coincident"]
["ED_MDU541_04767",null,null,null,null,"Coincident"]
["ED_MDU541_04768",null,null,"Half hour time period MD occurred",null,"Non-Coincident"]
["ED_MDU541_04769",null,null,null,null,"Coincident"]
["ED_MDU541_04770",null,null,"Winter/Summer Peaking",null,"Non-Coincident"]
["ED_MDU541_04771",null,null,null,null,"Coincident"]
["ED_MDU541_04772",null,null,"Adjustments - Embedded generation","MW","Non-Coincident"]
["ED_MDU541_04773",null,null,null,null,"Coincident"]
["ED_MDU541_04774",null,null,"Weather Corrected MD 10% POE","MW","Non-Coincident"]
["ED_MDU541_04775",null,null,null,null,"Coincident"]
["ED_MDU541_04776",null,null,"Weather Corrected MD 10% POE","MVA","Non-Coincident"]
["ED_MDU541_04777",null,null,null,null,"Coincident"]
["ED_MDU541_04778",null,null,"Weather Corrected MD 50% POE","MW","Non-Coincident"]
["ED_MDU541_04779",null,null,null,null,"Coincident"]
["ED_MDU541_04780",null,null,"Weather Corrected MD 50% POE","MVA","Non-Coincident"]
["ED_MDU541_04781",null,null,null,null,"Coincident"]
["ED_MDU541_04782",null,"<Enter substation name>","Substation Rating","MVA","Non-Coincident"]
["ED_MDU541_04783",null,null,null,null,"Coincident"]
["ED_MDU541_04784",null,null,"Raw Adjusted MD","MW","Non-Coincident"]
["ED_MDU541_04785",null,null,null,null,"Coincident"]
["ED_MDU541_04786",null,null,"Raw Adjusted MD","MVA","Non-Coincident"]
["ED_MDU541_04787",null,null,null,null,"Coincident"]
["ED_MDU541_04788",null,null,"Date MD occurred",null,"Non-Coincident"]
["ED_MDU541_04789",null,null,null,null,"Coincident"]
["ED_MDU541_04790",null,null,"Half hour time period MD occurred",null,"Non-Coincident"]
["ED_MDU541_04791",null,null,null,null,"Coincident"]
["ED_MDU541_04792",null,null,"Winter/Summer Peaking",null,"Non-Coincident"]
["ED_MDU541_04793",null,null,null,null,"Coincident"]
["ED_MDU541_04794",null,null,"Adjustments - Embedded generation","MW","Non-Coincident"]
["ED_MDU541_04795",null,null,null,null,"Coincident"]
["ED_MDU541_04796",null,null,"Weather Corrected MD 10% POE","MW","Non-Coincident"]
["ED_MDU541_04797",null,null,null,null,"Coincident"]
["ED_MDU541_04798",null,null,"Weather Corrected MD 10% POE","MVA","Non-Coincident"]
["ED_MDU541_04799",null,null,null,null,"Coincident"]
["ED_MDU541_04800",null,null,"Weather Corrected MD 50% POE","MW","Non-Coincident"]
["ED_MDU541_04801",null,null,null,null,"Coincident"]
["ED_MDU541_04802",null,null,"Weather Corrected MD 50% POE","MVA","Non-Coincident"]
["ED_MDU541_04803",null,null,null,null,"Coincident"]
["ED_MDU541_04804",null,"<Enter substation name>","Substation Rating","MVA","Non-Coincident"]
["ED_MDU541_04805",null,null,null,null,"Coincident"]
["ED_MDU541_04806",null,null,"Raw Adjusted MD","MW","Non-Coincident"]
["ED_MDU541_04807",null,null,null,null,"Coincident"]
["ED_MDU541_04808",null,null,"Raw Adjusted MD","MVA","Non-Coincident"]
["ED_MDU541_04809",null,null,null,null,"Coincident"]
["ED_MDU541_04810",null,null,"Date MD occurred",null,"Non-Coincident"]
["ED_MDU541_04811",null,null,null,null,"Coincident"]
["ED_MDU541_04812",null,null,"Half hour time period MD occurred",null,"Non-Coincident"]
["ED_MDU541_04813",null,null,null,null,"Coincident"]
["ED_MDU541_04814",null,null,"Winter/Summer Peaking",null,"Non-Coincident"]
["ED_MDU541_04815",null,null,null,null,"Coincident"]
["ED_MDU541_04816",null,null,"Adjustments - Embedded generation","MW","Non-Coincident"]
["ED_MDU541_04817",null,null,null,null,"Coincident"]
["ED_MDU541_04818",null,null,"Weather Corrected MD 10% POE","MW","Non-Coincident"]
["ED_MDU541_04819",null,null,null,null,"Coincident"]
["ED_MDU541_04820",null,null,"Weather Corrected MD 10% POE","MVA","Non-Coincident"]
["ED_MDU541_04821",null,null,null,null,"Coincident"]
["ED_MDU541_04822",null,null,"Weather Corrected MD 50% POE","MW","Non-Coincident"]
["ED_MDU541_04823",null,null,null,null,"Coincident"]
["ED_MDU541_04824",null,null,"Weather Corrected MD 50% POE","MVA","Non-Coincident"]
["ED_MDU541_04825",null,null,null,null,"Coincident"]
["ED_MDU541_04826",null,"<Enter substation name>","Substation Rating","MVA","Non-Coincident"]
["ED_MDU541_04827",null,null,null,null,"Coincident"]
["ED_MDU541_04828",null,null,"Raw Adjusted MD","MW","Non-Coincident"]
["ED_MDU541_04829",null,null,null,null,"Coincident"]
["ED_MDU541_04830",null,null,"Raw Adjusted MD","MVA","Non-Coincident"]
["ED_MDU541_04831",null,null,null,null,"Coincident"]
["ED_MDU541_04832",null,null,"Date MD occurred",null,"Non-Coincident"]
["ED_MDU541_04833",null,null,null,null,"Coincident"]
["ED_MDU541_04834",null,null,"Half hour time period MD occurred",null,"Non-Coincident"]
["ED_MDU541_04835",null,null,null,null,"Coincident"]
["ED_MDU541_04836",null,null,"Winter/Summer Peaking",null,"Non-Coincident"]
["ED_MDU541_04837",null,null,null,null,"Coincident"]
["ED_MDU541_04838",null,null,"Adjustments - Embedded generation","MW","Non-Coincident"]
["ED_MDU541_04839",null,null,null,null,"Coincident"]
["ED_MDU541_04840",null,null,"Weather Corrected MD 10% POE","MW","Non-Coincident"]
["ED_MDU541_04841",null,null,null,null,"Coincident"]
["ED_MDU541_04842",null,null,"Weather Corrected MD 10% POE","MVA","Non-Coincident"]
["ED_MDU541_04843",null,null,null,null,"Coincident"]
["ED_MDU541_04844",null,null,"Weather Corrected MD 50% POE","MW","Non-Coincident"]
["ED_MDU541_04845",null,null,null,null,"Coincident"]
["ED_MDU541_04846",null,null,"Weather Corrected MD 50% POE","MVA","Non-Coincident"]
["ED_MDU541_04847",null,null,null,null,"Coincident"]
["ED_MDU541_04848",null,"<Enter substation name>","Substation Rating","MVA","Non-Coincident"]
["ED_MDU541_04849",null,null,null,null,"Coincident"]
["ED_MDU541_04850",null,null,"Raw Adjusted MD","MW","Non-Coincident"]
["ED_MDU541_04851",null,null,null,null,"Coincident"]
["ED_MDU541_04852",null,null,"Raw Adjusted MD","MVA","Non-Coincident"]
["ED_MDU541_04853",null,null,null,null,"Coincident"]
["ED_MDU541_04854",null,null,"Date MD occurred",null,"Non-Coincident"]
["ED_MDU541_04855",null,null,null,null,"Coincident"]
["ED_MDU541_04856",null,null,"Half hour time period MD occurred",null,"Non-Coincident"]
["ED_MDU541_04857",null,null,null,null,"Coincident"]
["ED_MDU541_04858",null,null,"Winter/Summer Peaking",null,"Non-Coincident"]
["ED_MDU541_04859",null,null,null,null,"Coincident"]
["ED_MDU541_04860",null,null,"Adjustments - Embedded generation","MW","Non-Coincident"]
["ED_MDU541_04861",null,null,null,null,"Coincident"]
["ED_MDU541_04862",null,null,"Weather Corrected MD 10% POE","MW","Non-Coincident"]
["ED_MDU541_04863",null,null,null,null,"Coincident"]
["ED_MDU541_04864",null,null,"Weather Corrected MD 10% POE","MVA","Non-Coincident"]
["ED_MDU541_04865",null,null,null,null,"Coincident"]
["ED_MDU541_04866",null,null,"Weather Corrected MD 50% POE","MW","Non-Coincident"]
["ED_MDU541_04867",null,null,null,null,"Coincident"]
["ED_MDU541_04868",null,null,"Weather Corrected MD 50% POE","MVA","Non-Coincident"]
["ED_MDU541_04869",null,null,null,null,"Coincident"]
["ED_MDU541_04870",null,"<Enter substation name>","Substation Rating","MVA","Non-Coincident"]
["ED_MDU541_04871",null,null,null,null,"Coincident"]
["ED_MDU541_04872",null,null,"Raw Adjusted MD","MW","Non-Coincident"]
["ED_MDU541_04873",null,null,null,null,"Coincident"]
["ED_MDU541_04874",null,null,"Raw Adjusted MD","MVA","Non-Coincident"]
["ED_MDU541_04875",null,null,null,null,"Coincident"]
["ED_MDU541_04876",null,null,"Date MD occurred",null,"Non-Coincident"]
["ED_MDU541_04877",null,null,null,null,"Coincident"]
["ED_MDU541_04878",null,null,"Half hour time period MD occurred",null,"Non-Coincident"]
["ED_MDU541_04879",null,null,null,null,"Coincident"]
["ED_MDU541_04880",null,null,"Winter/Summer Peaking",null,"Non-Coincident"]
["ED_MDU541_04881",null,null,null,null,"Coincident"]
["ED_MDU541_04882",null,null,"Adjustments - Embedded generation","MW","Non-Coincident"]
["ED_MDU541_04883",null,null,null,null,"Coincident"]
["ED_MDU541_04884",null,null,"Weather Corrected MD 10% POE","MW","Non-Coincident"]
["ED_MDU541_04885",null,null,null,null,"Coincident"]
["ED_MDU541_04886",null,null,"Weather Corrected MD 10% POE","MVA","Non-Coincident"]
["ED_MDU541_04887",null,null,null,null,"Coincident"]
["ED_MDU541_04888",null,null,"Weather Corrected MD 50% POE","MW","Non-Coincident"]
["ED_MDU541_04889",null,null,null,null,"Coincident"]
["ED_MDU541_04890",null,null,"Weather Corrected MD 50% POE","MVA","Non-Coincident"]
["ED_MDU541_04891",null,null,null,null,"Coincident"]
["ED_MDU541_04892",null,"<Enter substation name>","Substation Rating","MVA","Non-Coincident"]
["ED_MDU541_04893",null,null,null,null,"Coincident"]
["ED_MDU541_04894",null,null,"Raw Adjusted MD","MW","Non-Coincident"]
["ED_MDU541_04895",null,null,null,null,"Coincident"]
["ED_MDU541_04896",null,null,"Raw Adjusted MD","MVA","Non-Coincident"]
["ED_MDU541_04897",null,null,null,null,"Coincident"]
["ED_MDU541_04898",null,null,"Date MD occurred",null,"Non-Coincident"]
["ED_MDU541_04899",null,null,null,null,"Coincident"]
["ED_MDU541_04900",null,null,"Half hour time period MD occurred",null,"Non-Coincident"]
["ED_MDU541_04901",null,null,null,null,"Coincident"]
["ED_MDU541_04902",null,null,"Winter/Summer Peaking",null,"Non-Coincident"]
["ED_MDU541_04903",null,null,null,null,"Coincident"]
["ED_MDU541_04904",null,null,"Adjustments - Embedded generation","MW","Non-Coincident"]
["ED_MDU541_04905",null,null,null,null,"Coincident"]
["ED_MDU541_04906",null,null,"Weather Corrected MD 10% POE","MW","Non-Coincident"]
["ED_MDU541_04907",null,null,null,null,"Coincident"]
["ED_MDU541_04908",null,null,"Weather Corrected MD 10% POE","MVA","Non-Coincident"]
["ED_MDU541_04909",null,null,null,null,"Coincident"]
["ED_MDU541_04910",null,null,"Weather Corrected MD 50% POE","MW","Non-Coincident"]
["ED_MDU541_04911",null,null,null,null,"Coincident"]
["ED_MDU541_04912",null,null,"Weather Corrected MD 50% POE","MVA","Non-Coincident"]
["ED_MDU541_04913",null,null,null,null,"Coincident"]
["ED_MDU541_04914",null,"<Enter substation name>","Substation Rating","MVA","Non-Coincident"]
["ED_MDU541_04915",null,null,null,null,"Coincident"]
["ED_MDU541_04916",null,null,"Raw Adjusted MD","MW","Non-Coincident"]
["ED_MDU541_04917",null,null,null,null,"Coincident"]
["ED_MDU541_04918",null,null,"Raw Adjusted MD","MVA","Non-Coincident"]
["ED_MDU541_04919",null,null,null,null,"Coincident"]
["ED_MDU541_04920",null,null,"Date MD occurred",null,"Non-Coincident"]
["ED_MDU541_04921",null,null,null,null,"Coincident"]
["ED_MDU541_04922",null,null,"Half hour time period MD occurred",null,"Non-Coincident"]
["ED_MDU541_04923",null,null,null,null,"Coincident"]
["ED_MDU541_04924",null,null,"Winter/Summer Peaking",null,"Non-Coincident"]
["ED_MDU541_04925",null,null,null,null,"Coincident"]
["ED_MDU541_04926",null,null,"Adjustments - Embedded generation","MW","Non-Coincident"]
["ED_MDU541_04927",null,null,null,null,"Coincident"]
["ED_MDU541_04928",null,null,"Weather Corrected MD 10% POE","MW","Non-Coincident"]
["ED_MDU541_04929",null,null,null,null,"Coincident"]
["ED_MDU541_04930",null,null,"Weather Corrected MD 10% POE","MVA","Non-Coincident"]
["ED_MDU541_04931",null,null,null,null,"Coincident"]
["ED_MDU541_04932",null,null,"Weather Corrected MD 50% POE","MW","Non-Coincident"]
["ED_MDU541_04933",null,null,null,null,"Coincident"]
["ED_MDU541_04934",null,null,"Weather Corrected MD 50% POE","MVA","Non-Coincident"]
["ED_MDU541_04935",null,null,null,null,"Coincident"]
["ED_MDU541_04936",null,"<Enter substation name>","Substation Rating","MVA","Non-Coincident"]
["ED_MDU541_04937",null,null,null,null,"Coincident"]
["ED_MDU541_04938",null,null,"Raw Adjusted MD","MW","Non-Coincident"]
["ED_MDU541_04939",null,null,null,null,"Coincident"]
["ED_MDU541_04940",null,null,"Raw Adjusted MD","MVA","Non-Coincident"]
["ED_MDU541_04941",null,null,null,null,"Coincident"]
["ED_MDU541_04942",null,null,"Date MD occurred",null,"Non-Coincident"]
["ED_MDU541_04943",null,null,null,null,"Coincident"]
["ED_MDU541_04944",null,null,"Half hour time period MD occurred",null,"Non-Coincident"]
["ED_MDU541_04945",null,null,null,null,"Coincident"]
["ED_MDU541_04946",null,null,"Winter/Summer Peaking",null,"Non-Coincident"]
["ED_MDU541_04947",null,null,null,null,"Coincident"]
["ED_MDU541_04948",null,null,"Adjustments - Embedded generation","MW","Non-Coincident"]
["ED_MDU541_04949",null,null,null,null,"Coincident"]
["ED_MDU541_04950",null,null,"Weather Corrected MD 10% POE","MW","Non-Coincident"]
["ED_MDU541_04951",null,null,null,null,"Coincident"]
["ED_MDU541_04952",null,null,"Weather Corrected MD 10% POE","MVA","Non-Coincident"]
["ED_MDU541_04953",null,null,null,null,"Coincident"]
["ED_MDU541_04954",null,null,"Weather Corrected MD 50% POE","MW","Non-Coincident"]
["ED_MDU541_04955",null,null,null,null,"Coincident"]
["ED_MDU541_04956",null,null,"Weather Corrected MD 50% POE","MVA","Non-Coincident"]
["ED_MDU541_04957",null,null,null,null,"Coincident"]
["ED_MDU541_04958",null,"<Enter substation name>","Substation Rating","MVA","Non-Coincident"]
["ED_MDU541_04959",null,null,null,null,"Coincident"]
["ED_MDU541_04960",null,null,"Raw Adjusted MD","MW","Non-Coincident"]
["ED_MDU541_04961",null,null,null,null,"Coincident"]
["ED_MDU541_04962",null,null,"Raw Adjusted MD","MVA","Non-Coincident"]
["ED_MDU541_04963",null,null,null,null,"Coincident"]
["ED_MDU541_04964",null,null,"Date MD occurred",null,"Non-Coincident"]
["ED_MDU541_04965",null,null,null,null,"Coincident"]
["ED_MDU541_04966",null,null,"Half hour time period MD occurred",null,"Non-Coincident"]
["ED_MDU541_04967",null,null,null,null,"Coincident"]
["ED_MDU541_04968",null,null,"Winter/Summer Peaking",null,"Non-Coincident"]
["ED_MDU541_04969",null,null,null,null,"Coincident"]
["ED_MDU541_04970",null,null,"Adjustments - Embedded generation","MW","Non-Coincident"]
["ED_MDU541_04971",null,null,null,null,"Coincident"]
["ED_MDU541_04972",null,null,"Weather Corrected MD 10% POE","MW","Non-Coincident"]
["ED_MDU541_04973",null,null,null,null,"Coincident"]
["ED_MDU541_04974",null,null,"Weather Corrected MD 10% POE","MVA","Non-Coincident"]
["ED_MDU541_04975",null,null,null,null,"Coincident"]
["ED_MDU541_04976",null,null,"Weather Corrected MD 50% POE","MW","Non-Coincident"]
["ED_MDU541_04977",null,null,null,null,"Coincident"]
["ED_MDU541_04978",null,null,"Weather Corrected MD 50% POE","MVA","Non-Coincident"]
["ED_MDU541_04979",null,null,null,null,"Coincident"]
["ED_MDU541_04980",null,"<Enter substation name>","Substation Rating","MVA","Non-Coincident"]
["ED_MDU541_04981",null,null,null,null,"Coincident"]
["ED_MDU541_04982",null,null,"Raw Adjusted MD","MW","Non-Coincident"]
["ED_MDU541_04983",null,null,null,null,"Coincident"]
["ED_MDU541_04984",null,null,"Raw Adjusted MD","MVA","Non-Coincident"]
["ED_MDU541_04985",null,null,null,null,"Coincident"]
["ED_MDU541_04986",null,null,"Date MD occurred",null,"Non-Coincident"]
["ED_MDU541_04987",null,null,null,null,"Coincident"]
["ED_MDU541_04988",null,null,"Half hour time period MD occurred",null,"Non-Coincident"]
["ED_MDU541_04989",null,null,null,null,"Coincident"]
["ED_MDU541_04990",null,null,"Winter/Summer Peaking",null,"Non-Coincident"]
["ED_MDU541_04991",null,null,null,null,"Coincident"]
["ED_MDU541_04992",null,null,"Adjustments - Embedded generation","MW","Non-Coincident"]
["ED_MDU541_04993",null,null,null,null,"Coincident"]
["ED_MDU541_04994",null,null,"Weather Corrected MD 10% POE","MW","Non-Coincident"]
["ED_MDU541_04995",null,null,null,null,"Coincident"]
["ED_MDU541_04996",null,null,"Weather Corrected MD 10% POE","MVA","Non-Coincident"]
["ED_MDU541_04997",null,null,null,null,"Coincident"]
["ED_MDU541_04998",null,null,"Weather Corrected MD 50% POE","MW","Non-Coincident"]
["ED_MDU541_04999",null,null,null,null,"Coincident"]
["ED_MDU541_05000",null,null,"Weather Corrected MD 50% POE","MVA","Non-Coincident"]
["ED_MDU541_05001",null,null,null,null,"Coincident"]
["ED_MDU541_05002",null,"<Enter substation name>","Substation Rating","MVA","Non-Coincident"]
["ED_MDU541_05003",null,null,null,null,"Coincident"]
["ED_MDU541_05004",null,null,"Raw Adjusted MD","MW","Non-Coincident"]
["ED_MDU541_05005",null,null,null,null,"Coincident"]
["ED_MDU541_05006",null,null,"Raw Adjusted MD","MVA","Non-Coincident"]
["ED_MDU541_05007",null,null,null,null,"Coincident"]
["ED_MDU541_05008",null,null,"Date MD occurred",null,"Non-Coincident"]
["ED_MDU541_05009",null,null,null,null,"Coincident"]
["ED_MDU541_05010",null,null,"Half hour time period MD occurred",null,"Non-Coincident"]
["ED_MDU541_05011",null,null,null,null,"Coincident"]
["ED_MDU541_05012",null,null,"Winter/Summer Peaking",null,"Non-Coincident"]
["ED_MDU541_05013",null,null,null,null,"Coincident"]
["ED_MDU541_05014",null,null,"Adjustments - Embedded generation","MW","Non-Coincident"]
["ED_MDU541_05015",null,null,null,null,"Coincident"]
["ED_MDU541_05016",null,null,"Weather Corrected MD 10% POE","MW","Non-Coincident"]
["ED_MDU541_05017",null,null,null,null,"Coincident"]
["ED_MDU541_05018",null,null,"Weather Corrected MD 10% POE","MVA","Non-Coincident"]
["ED_MDU541_05019",null,null,null,null,"Coincident"]
["ED_MDU541_05020",null,null,"Weather Corrected MD 50% POE","MW","Non-Coincident"]
["ED_MDU541_05021",null,null,null,null,"Coincident"]
["ED_MDU541_05022",null,null,"Weather Corrected MD 50% POE","MVA","Non-Coincident"]
["ED_MDU541_05023",null,null,null,null,"Coincident"]
["ED_MDU541_05024",null,"<Enter substation name>","Substation Rating","MVA","Non-Coincident"]
["ED_MDU541_05025",null,null,null,null,"Coincident"]
["ED_MDU541_05026",null,null,"Raw Adjusted MD","MW","Non-Coincident"]
["ED_MDU541_05027",null,null,null,null,"Coincident"]
["ED_MDU541_05028",null,null,"Raw Adjusted MD","MVA","Non-Coincident"]
["ED_MDU541_05029",null,null,null,null,"Coincident"]
["ED_MDU541_05030",null,null,"Date MD occurred",null,"Non-Coincident"]
["ED_MDU541_05031",null,null,null,null,"Coincident"]
["ED_MDU541_05032",null,null,"Half hour time period MD occurred",null,"Non-Coincident"]
["ED_MDU541_05033",null,null,null,null,"Coincident"]
["ED_MDU541_05034",null,null,"Winter/Summer Peaking",null,"Non-Coincident"]
["ED_MDU541_05035",null,null,null,null,"Coincident"]
["ED_MDU541_05036",null,null,"Adjustments - Embedded generation","MW","Non-Coincident"]
["ED_MDU541_05037",null,null,null,null,"Coincident"]
["ED_MDU541_05038",null,null,"Weather Corrected MD 10% POE","MW","Non-Coincident"]
["ED_MDU541_05039",null,null,null,null,"Coincident"]
["ED_MDU541_05040",null,null,"Weather Corrected MD 10% POE","MVA","Non-Coincident"]
["ED_MDU541_05041",null,null,null,null,"Coincident"]
["ED_MDU541_05042",null,null,"Weather Corrected MD 50% POE","MW","Non-Coincident"]
["ED_MDU541_05043",null,null,null,null,"Coincident"]
["ED_MDU541_05044",null,null,"Weather Corrected MD 50% POE","MVA","Non-Coincident"]
["ED_MDU541_05045",null,null,null,null,"Coincident"]
["ED_MDU541_05046",null,"<Enter substation name>","Substation Rating","MVA","Non-Coincident"]
["ED_MDU541_05047",null,null,null,null,"Coincident"]
["ED_MDU541_05048",null,null,"Raw Adjusted MD","MW","Non-Coincident"]
["ED_MDU541_05049",null,null,null,null,"Coincident"]
["ED_MDU541_05050",null,null,"Raw Adjusted MD","MVA","Non-Coincident"]
["ED_MDU541_05051",null,null,null,null,"Coincident"]
["ED_MDU541_05052",null,null,"Date MD occurred",null,"Non-Coincident"]
["ED_MDU541_05053",null,null,null,null,"Coincident"]
["ED_MDU541_05054",null,null,"Half hour time period MD occurred",null,"Non-Coincident"]
["ED_MDU541_05055",null,null,null,null,"Coincident"]
["ED_MDU541_05056",null,null,"Winter/Summer Peaking",null,"Non-Coincident"]
["ED_MDU541_05057",null,null,null,null,"Coincident"]
["ED_MDU541_05058",null,null,"Adjustments - Embedded generation","MW","Non-Coincident"]
["ED_MDU541_05059",null,null,null,null,"Coincident"]
["ED_MDU541_05060",null,null,"Weather Corrected MD 10% POE","MW","Non-Coincident"]
["ED_MDU541_05061",null,null,null,null,"Coincident"]
["ED_MDU541_05062",null,null,"Weather Corrected MD 10% POE","MVA","Non-Coincident"]
["ED_MDU541_05063",null,null,null,null,"Coincident"]
["ED_MDU541_05064",null,null,"Weather Corrected MD 50% POE","MW","Non-Coincident"]
["ED_MDU541_05065",null,null,null,null,"Coincident"]
["ED_MDU541_05066",null,null,"Weather Corrected MD 50% POE","MVA","Non-Coincident"]
["ED_MDU541_05067",null,null,null,null,"Coincident"]
["ED_MDU541_05068",null,"<Enter substation name>","Substation Rating","MVA","Non-Coincident"]
["ED_MDU541_05069",null,null,null,null,"Coincident"]
["ED_MDU541_05070",null,null,"Raw Adjusted MD","MW","Non-Coincident"]
["ED_MDU541_05071",null,null,null,null,"Coincident"]
["ED_MDU541_05072",null,null,"Raw Adjusted MD","MVA","Non-Coincident"]
["ED_MDU541_05073",null,null,null,null,"Coincident"]
["ED_MDU541_05074",null,null,"Date MD occurred",null,"Non-Coincident"]
["ED_MDU541_05075",null,null,null,null,"Coincident"]
["ED_MDU541_05076",null,null,"Half hour time period MD occurred",null,"Non-Coincident"]
["ED_MDU541_05077",null,null,null,null,"Coincident"]
["ED_MDU541_05078",null,null,"Winter/Summer Peaking",null,"Non-Coincident"]
["ED_MDU541_05079",null,null,null,null,"Coincident"]
["ED_MDU541_05080",null,null,"Adjustments - Embedded generation","MW","Non-Coincident"]
["ED_MDU541_05081",null,null,null,null,"Coincident"]
["ED_MDU541_05082",null,null,"Weather Corrected MD 10% POE","MW","Non-Coincident"]
["ED_MDU541_05083",null,null,null,null,"Coincident"]
["ED_MDU541_05084",null,null,"Weather Corrected MD 10% POE","MVA","Non-Coincident"]
["ED_MDU541_05085",null,null,null,null,"Coincident"]
["ED_MDU541_05086",null,null,"Weather Corrected MD 50% POE","MW","Non-Coincident"]
["ED_MDU541_05087",null,null,null,null,"Coincident"]
["ED_MDU541_05088",null,null,"Weather Corrected MD 50% POE","MVA","Non-Coincident"]
["ED_MDU541_05089",null,null,null,null,"Coincident"]
["ED_MDU541_05090",null,"<Enter substation name>","Substation Rating","MVA","Non-Coincident"]
["ED_MDU541_05091",null,null,null,null,"Coincident"]
["ED_MDU541_05092",null,null,"Raw Adjusted MD","MW","Non-Coincident"]
["ED_MDU541_05093",null,null,null,null,"Coincident"]
["ED_MDU541_05094",null,null,"Raw Adjusted MD","MVA","Non-Coincident"]
["ED_MDU541_05095",null,null,null,null,"Coincident"]
["ED_MDU541_05096",null,null,"Date MD occurred",null,"Non-Coincident"]
["ED_MDU541_05097",null,null,null,null,"Coincident"]
["ED_MDU541_05098",null,null,"Half hour time period MD occurred",null,"Non-Coincident"]
["ED_MDU541_05099",null,null,null,null,"Coincident"]
["ED_MDU541_05100",null,null,"Winter/Summer Peaking",null,"Non-Coincident"]
["ED_MDU541_05101",null,null,null,null,"Coincident"]
["ED_MDU541_05102",null,null,"Adjustments - Embedded generation","MW","Non-Coincident"]
["ED_MDU541_05103",null,null,null,null,"Coincident"]
["ED_MDU541_05104",null,null,"Weather Corrected MD 10% POE","MW","Non-Coincident"]
["ED_MDU541_05105",null,null,null,null,"Coincident"]
["ED_MDU541_05106",null,null,"Weather Corrected MD 10% POE","MVA","Non-Coincident"]
["ED_MDU541_05107",null,null,null,null,"Coincident"]
["ED_MDU541_05108",null,null,"Weather Corrected MD 50% POE","MW","Non-Coincident"]
["ED_MDU541_05109",null,null,null,null,"Coincident"]
["ED_MDU541_05110",null,null,"Weather Corrected MD 50% POE","MVA","Non-Coincident"]
["ED_MDU541_05111",null,null,null,null,"Coincident"]
["ED_MDU541_05112",null,"<Enter substation name>","Substation Rating","MVA","Non-Coincident"]
["ED_MDU541_05113",null,null,null,null,"Coincident"]
["ED_MDU541_05114",null,null,"Raw Adjusted MD","MW","Non-Coincident"]
["ED_MDU541_05115",null,null,null,null,"Coincident"]
["ED_MDU541_05116",null,null,"Raw Adjusted MD","MVA","Non-Coincident"]
["ED_MDU541_05117",null,null,null,null,"Coincident"]
["ED_MDU541_05118",null,null,"Date MD occurred",null,"Non-Coincident"]
["ED_MDU541_05119",null,null,null,null,"Coincident"]
["ED_MDU541_05120",null,null,"Half hour time period MD occurred",null,"Non-Coincident"]
["ED_MDU541_05121",null,null,null,null,"Coincident"]
["ED_MDU541_05122",null,null,"Winter/Summer Peaking",null,"Non-Coincident"]
["ED_MDU541_05123",null,null,null,null,"Coincident"]
["ED_MDU541_05124",null,null,"Adjustments - Embedded generation","MW","Non-Coincident"]
["ED_MDU541_05125",null,null,null,null,"Coincident"]
["ED_MDU541_05126",null,null,"Weather Corrected MD 10% POE","MW","Non-Coincident"]
["ED_MDU541_05127",null,null,null,null,"Coincident"]
["ED_MDU541_05128",null,null,"Weather Corrected MD 10% POE","MVA","Non-Coincident"]
["ED_MDU541_05129",null,null,null,null,"Coincident"]
["ED_MDU541_05130",null,null,"Weather Corrected MD 50% POE","MW","Non-Coincident"]
["ED_MDU541_05131",null,null,null,null,"Coincident"]
["ED_MDU541_05132",null,null,"Weather Corrected MD 50% POE","MVA","Non-Coincident"]
["ED_MDU541_05133",null,null,null,null,"Coincident"]
["ED_MDU541_05134",null,"<Enter substation name>","Substation Rating","MVA","Non-Coincident"]
["ED_MDU541_05135",null,null,null,null,"Coincident"]
["ED_MDU541_05136",null,null,"Raw Adjusted MD","MW","Non-Coincident"]
["ED_MDU541_05137",null,null,null,null,"Coincident"]
["ED_MDU541_05138",null,null,"Raw Adjusted MD","MVA","Non-Coincident"]
["ED_MDU541_05139",null,null,null,null,"Coincident"]
["ED_MDU541_05140",null,null,"Date MD occurred",null,"Non-Coincident"]
["ED_MDU541_05141",null,null,null,null,"Coincident"]
["ED_MDU541_05142",null,null,"Half hour time period MD occurred",null,"Non-Coincident"]
["ED_MDU541_05143",null,null,null,null,"Coincident"]
["ED_MDU541_05144",null,null,"Winter/Summer Peaking",null,"Non-Coincident"]
["ED_MDU541_05145",null,null,null,null,"Coincident"]
["ED_MDU541_05146",null,null,"Adjustments - Embedded generation","MW","Non-Coincident"]
["ED_MDU541_05147",null,null,null,null,"Coincident"]
["ED_MDU541_05148",null,null,"Weather Corrected MD 10% POE","MW","Non-Coincident"]
["ED_MDU541_05149",null,null,null,null,"Coincident"]
["ED_MDU541_05150",null,null,"Weather Corrected MD 10% POE","MVA","Non-Coincident"]
["ED_MDU541_05151",null,null,null,null,"Coincident"]
["ED_MDU541_05152",null,null,"Weather Corrected MD 50% POE","MW","Non-Coincident"]
["ED_MDU541_05153",null,null,null,null,"Coincident"]
["ED_MDU541_05154",null,null,"Weather Corrected MD 50% POE","MVA","Non-Coincident"]
["ED_MDU541_05155",null,null,null,null,"Coincident"]
["ED_MDU541_05156",null,"<Enter substation name>","Substation Rating","MVA","Non-Coincident"]
["ED_MDU541_05157",null,null,null,null,"Coincident"]
["ED_MDU541_05158",null,null,"Raw Adjusted MD","MW","Non-Coincident"]
["ED_MDU541_05159",null,null,null,null,"Coincident"]
["ED_MDU541_05160",null,null,"Raw Adjusted MD","MVA","Non-Coincident"]
["ED_MDU541_05161",null,null,null,null,"Coincident"]
["ED_MDU541_05162",null,null,"Date MD occurred",null,"Non-Coincident"]
["ED_MDU541_05163",null,null,null,null,"Coincident"]
["ED_MDU541_05164",null,null,"Half hour time period MD occurred",null,"Non-Coincident"]
["ED_MDU541_05165",null,null,null,null,"Coincident"]
["ED_MDU541_05166",null,null,"Winter/Summer Peaking",null,"Non-Coincident"]
["ED_MDU541_05167",null,null,null,null,"Coincident"]
["ED_MDU541_05168",null,null,"Adjustments - Embedded generation","MW","Non-Coincident"]
["ED_MDU541_05169",null,null,null,null,"Coincident"]
["ED_MDU541_05170",null,null,"Weather Corrected MD 10% POE","MW","Non-Coincident"]
["ED_MDU541_05171",null,null,null,null,"Coincident"]
["ED_MDU541_05172",null,null,"Weather Corrected MD 10% POE","MVA","Non-Coincident"]
["ED_MDU541_05173",null,null,null,null,"Coincident"]
["ED_MDU541_05174",null,null,"Weather Corrected MD 50% POE","MW","Non-Coincident"]
["ED_MDU541_05175",null,null,null,null,"Coincident"]
["ED_MDU541_05176",null,null,"Weather Corrected MD 50% POE","MVA","Non-Coincident"]
["ED_MDU541_05177",null,null,null,null,"Coincident"]
["ED_MDU541_05178",null,"<Enter substation name>","Substation Rating","MVA","Non-Coincident"]
["ED_MDU541_05179",null,null,null,null,"Coincident"]
["ED_MDU541_05180",null,null,"Raw Adjusted MD","MW","Non-Coincident"]
["ED_MDU541_05181",null,null,null,null,"Coincident"]
["ED_MDU541_05182",null,null,"Raw Adjusted MD","MVA","Non-Coincident"]
["ED_MDU541_05183",null,null,null,null,"Coincident"]
["ED_MDU541_05184",null,null,"Date MD occurred",null,"Non-Coincident"]
["ED_MDU541_05185",null,null,null,null,"Coincident"]
["ED_MDU541_05186",null,null,"Half hour time period MD occurred",null,"Non-Coincident"]
["ED_MDU541_05187",null,null,null,null,"Coincident"]
["ED_MDU541_05188",null,null,"Winter/Summer Peaking",null,"Non-Coincident"]
["ED_MDU541_05189",null,null,null,null,"Coincident"]
["ED_MDU541_05190",null,null,"Adjustments - Embedded generation","MW","Non-Coincident"]
["ED_MDU541_05191",null,null,null,null,"Coincident"]
["ED_MDU541_05192",null,null,"Weather Corrected MD 10% POE","MW","Non-Coincident"]
["ED_MDU541_05193",null,null,null,null,"Coincident"]
["ED_MDU541_05194",null,null,"Weather Corrected MD 10% POE","MVA","Non-Coincident"]
["ED_MDU541_05195",null,null,null,null,"Coincident"]
["ED_MDU541_05196",null,null,"Weather Corrected MD 50% POE","MW","Non-Coincident"]
["ED_MDU541_05197",null,null,null,null,"Coincident"]
["ED_MDU541_05198",null,null,"Weather Corrected MD 50% POE","MVA","Non-Coincident"]
["ED_MDU541_05199",null,null,null,null,"Coincident"]
["ED_MDU541_05200",null,"<Enter substation name>","Substation Rating","MVA","Non-Coincident"]
["ED_MDU541_05201",null,null,null,null,"Coincident"]
["ED_MDU541_05202",null,null,"Raw Adjusted MD","MW","Non-Coincident"]
["ED_MDU541_05203",null,null,null,null,"Coincident"]
["ED_MDU541_05204",null,null,"Raw Adjusted MD","MVA","Non-Coincident"]
["ED_MDU541_05205",null,null,null,null,"Coincident"]
["ED_MDU541_05206",null,null,"Date MD occurred",null,"Non-Coincident"]
["ED_MDU541_05207",null,null,null,null,"Coincident"]
["ED_MDU541_05208",null,null,"Half hour time period MD occurred",null,"Non-Coincident"]
["ED_MDU541_05209",null,null,null,null,"Coincident"]
["ED_MDU541_05210",null,null,"Winter/Summer Peaking",null,"Non-Coincident"]
["ED_MDU541_05211",null,null,null,null,"Coincident"]
["ED_MDU541_05212",null,null,"Adjustments - Embedded generation","MW","Non-Coincident"]
["ED_MDU541_05213",null,null,null,null,"Coincident"]
["ED_MDU541_05214",null,null,"Weather Corrected MD 10% POE","MW","Non-Coincident"]
["ED_MDU541_05215",null,null,null,null,"Coincident"]
["ED_MDU541_05216",null,null,"Weather Corrected MD 10% POE","MVA","Non-Coincident"]
["ED_MDU541_05217",null,null,null,null,"Coincident"]
["ED_MDU541_05218",null,null,"Weather Corrected MD 50% POE","MW","Non-Coincident"]
["ED_MDU541_05219",null,null,null,null,"Coincident"]
["ED_MDU541_05220",null,null,"Weather Corrected MD 50% POE","MVA","Non-Coincident"]
["ED_MDU541_05221",null,null,null,null,"Coincident"]
["ED_MDU541_05222",null,"<Enter substation name>","Substation Rating","MVA","Non-Coincident"]
["ED_MDU541_05223",null,null,null,null,"Coincident"]
["ED_MDU541_05224",null,null,"Raw Adjusted MD","MW","Non-Coincident"]
["ED_MDU541_05225",null,null,null,null,"Coincident"]
["ED_MDU541_05226",null,null,"Raw Adjusted MD","MVA","Non-Coincident"]
["ED_MDU541_05227",null,null,null,null,"Coincident"]
["ED_MDU541_05228",null,null,"Date MD occurred",null,"Non-Coincident"]
["ED_MDU541_05229",null,null,null,null,"Coincident"]
["ED_MDU541_05230",null,null,"Half hour time period MD occurred",null,"Non-Coincident"]
["ED_MDU541_05231",null,null,null,null,"Coincident"]
["ED_MDU541_05232",null,null,"Winter/Summer Peaking",null,"Non-Coincident"]
["ED_MDU541_05233",null,null,null,null,"Coincident"]
["ED_MDU541_05234",null,null,"Adjustments - Embedded generation","MW","Non-Coincident"]
["ED_MDU541_05235",null,null,null,null,"Coincident"]
["ED_MDU541_05236",null,null,"Weather Corrected MD 10% POE","MW","Non-Coincident"]
["ED_MDU541_05237",null,null,null,null,"Coincident"]
["ED_MDU541_05238",null,null,"Weather Corrected MD 10% POE","MVA","Non-Coincident"]
["ED_MDU541_05239",null,null,null,null,"Coincident"]
["ED_MDU541_05240",null,null,"Weather Corrected MD 50% POE","MW","Non-Coincident"]
["ED_MDU541_05241",null,null,null,null,"Coincident"]
["ED_MDU541_05242",null,null,"Weather Corrected MD 50% POE","MVA","Non-Coincident"]
["ED_MDU541_05243",null,null,null,null,"Coincident"]
["ED_MDU541_05244",null,"<Enter substation name>","Substation Rating","MVA","Non-Coincident"]
["ED_MDU541_05245",null,null,null,null,"Coincident"]
["ED_MDU541_05246",null,null,"Raw Adjusted MD","MW","Non-Coincident"]
["ED_MDU541_05247",null,null,null,null,"Coincident"]
["ED_MDU541_05248",null,null,"Raw Adjusted MD","MVA","Non-Coincident"]
["ED_MDU541_05249",null,null,null,null,"Coincident"]
["ED_MDU541_05250",null,null,"Date MD occurred",null,"Non-Coincident"]
["ED_MDU541_05251",null,null,null,null,"Coincident"]
["ED_MDU541_05252",null,null,"Half hour time period MD occurred",null,"Non-Coincident"]
["ED_MDU541_05253",null,null,null,null,"Coincident"]
["ED_MDU541_05254",null,null,"Winter/Summer Peaking",null,"Non-Coincident"]
["ED_MDU541_05255",null,null,null,null,"Coincident"]
["ED_MDU541_05256",null,null,"Adjustments - Embedded generation","MW","Non-Coincident"]
["ED_MDU541_05257",null,null,null,null,"Coincident"]
["ED_MDU541_05258",null,null,"Weather Corrected MD 10% POE","MW","Non-Coincident"]
["ED_MDU541_05259",null,null,null,null,"Coincident"]
["ED_MDU541_05260",null,null,"Weather Corrected MD 10% POE","MVA","Non-Coincident"]
["ED_MDU541_05261",null,null,null,null,"Coincident"]
["ED_MDU541_05262",null,null,"Weather Corrected MD 50% POE","MW","Non-Coincident"]
["ED_MDU541_05263",null,null,null,null,"Coincident"]
["ED_MDU541_05264",null,null,"Weather Corrected MD 50% POE","MVA","Non-Coincident"]
["ED_MDU541_05265",null,null,null,null,"Coincident"]
["ED_MDU541_05266",null,"<Enter substation name>","Substation Rating","MVA","Non-Coincident"]
["ED_MDU541_05267",null,null,null,null,"Coincident"]
["ED_MDU541_05268",null,null,"Raw Adjusted MD","MW","Non-Coincident"]
["ED_MDU541_05269",null,null,null,null,"Coincident"]
["ED_MDU541_05270",null,null,"Raw Adjusted MD","MVA","Non-Coincident"]
["ED_MDU541_05271",null,null,null,null,"Coincident"]
["ED_MDU541_05272",null,null,"Date MD occurred",null,"Non-Coincident"]
["ED_MDU541_05273",null,null,null,null,"Coincident"]
["ED_MDU541_05274",null,null,"Half hour time period MD occurred",null,"Non-Coincident"]
["ED_MDU541_05275",null,null,null,null,"Coincident"]
["ED_MDU541_05276",null,null,"Winter/Summer Peaking",null,"Non-Coincident"]
["ED_MDU541_05277",null,null,null,null,"Coincident"]
["ED_MDU541_05278",null,null,"Adjustments - Embedded generation","MW","Non-Coincident"]
["ED_MDU541_05279",null,null,null,null,"Coincident"]
["ED_MDU541_05280",null,null,"Weather Corrected MD 10% POE","MW","Non-Coincident"]
["ED_MDU541_05281",null,null,null,null,"Coincident"]
["ED_MDU541_05282",null,null,"Weather Corrected MD 10% POE","MVA","Non-Coincident"]
["ED_MDU541_05283",null,null,null,null,"Coincident"]
["ED_MDU541_05284",null,null,"Weather Corrected MD 50% POE","MW","Non-Coincident"]
["ED_MDU541_05285",null,null,null,null,"Coincident"]
["ED_MDU541_05286",null,null,"Weather Corrected MD 50% POE","MVA","Non-Coincident"]
["ED_MDU541_05287",null,null,null,null,"Coincident"]
["ED_MDU541_05288",null,"<Enter substation name>","Substation Rating","MVA","Non-Coincident"]
["ED_MDU541_05289",null,null,null,null,"Coincident"]
["ED_MDU541_05290",null,null,"Raw Adjusted MD","MW","Non-Coincident"]
["ED_MDU541_05291",null,null,null,null,"Coincident"]
["ED_MDU541_05292",null,null,"Raw Adjusted MD","MVA","Non-Coincident"]
["ED_MDU541_05293",null,null,null,null,"Coincident"]
["ED_MDU541_05294",null,null,"Date MD occurred",null,"Non-Coincident"]
["ED_MDU541_05295",null,null,null,null,"Coincident"]
["ED_MDU541_05296",null,null,"Half hour time period MD occurred",null,"Non-Coincident"]
["ED_MDU541_05297",null,null,null,null,"Coincident"]
["ED_MDU541_05298",null,null,"Winter/Summer Peaking",null,"Non-Coincident"]
["ED_MDU541_05299",null,null,null,null,"Coincident"]
["ED_MDU541_05300",null,null,"Adjustments - Embedded generation","MW","Non-Coincident"]
["ED_MDU541_05301",null,null,null,null,"Coincident"]
["ED_MDU541_05302",null,null,"Weather Corrected MD 10% POE","MW","Non-Coincident"]
["ED_MDU541_05303",null,null,null,null,"Coincident"]
["ED_MDU541_05304",null,null,"Weather Corrected MD 10% POE","MVA","Non-Coincident"]
["ED_MDU541_05305",null,null,null,null,"Coincident"]
["ED_MDU541_05306",null,null,"Weather Corrected MD 50% POE","MW","Non-Coincident"]
["ED_MDU541_05307",null,null,null,null,"Coincident"]
["ED_MDU541_05308",null,null,"Weather Corrected MD 50% POE","MVA","Non-Coincident"]
["ED_MDU541_05309",null,null,null,null,"Coincident"]
["ED_MDU541_05310",null,"<Enter substation name>","Substation Rating","MVA","Non-Coincident"]
["ED_MDU541_05311",null,null,null,null,"Coincident"]
["ED_MDU541_05312",null,null,"Raw Adjusted MD","MW","Non-Coincident"]
["ED_MDU541_05313",null,null,null,null,"Coincident"]
["ED_MDU541_05314",null,null,"Raw Adjusted MD","MVA","Non-Coincident"]
["ED_MDU541_05315",null,null,null,null,"Coincident"]
["ED_MDU541_05316",null,null,"Date MD occurred",null,"Non-Coincident"]
["ED_MDU541_05317",null,null,null,null,"Coincident"]
["ED_MDU541_05318",null,null,"Half hour time period MD occurred",null,"Non-Coincident"]
["ED_MDU541_05319",null,null,null,null,"Coincident"]
["ED_MDU541_05320",null,null,"Winter/Summer Peaking",null,"Non-Coincident"]
["ED_MDU541_05321",null,null,null,null,"Coincident"]
["ED_MDU541_05322",null,null,"Adjustments - Embedded generation","MW","Non-Coincident"]
["ED_MDU541_05323",null,null,null,null,"Coincident"]
["ED_MDU541_05324",null,null,"Weather Corrected MD 10% POE","MW","Non-Coincident"]
["ED_MDU541_05325",null,null,null,null,"Coincident"]
["ED_MDU541_05326",null,null,"Weather Corrected MD 10% POE","MVA","Non-Coincident"]
["ED_MDU541_05327",null,null,null,null,"Coincident"]
["ED_MDU541_05328",null,null,"Weather Corrected MD 50% POE","MW","Non-Coincident"]
["ED_MDU541_05329",null,null,null,null,"Coincident"]
["ED_MDU541_05330",null,null,"Weather Corrected MD 50% POE","MVA","Non-Coincident"]
["ED_MDU541_05331",null,null,null,null,"Coincident"]
["ED_MDU541_05332",null,"<Enter substation name>","Substation Rating","MVA","Non-Coincident"]
["ED_MDU541_05333",null,null,null,null,"Coincident"]
["ED_MDU541_05334",null,null,"Raw Adjusted MD","MW","Non-Coincident"]
["ED_MDU541_05335",null,null,null,null,"Coincident"]
["ED_MDU541_05336",null,null,"Raw Adjusted MD","MVA","Non-Coincident"]
["ED_MDU541_05337",null,null,null,null,"Coincident"]
["ED_MDU541_05338",null,null,"Date MD occurred",null,"Non-Coincident"]
["ED_MDU541_05339",null,null,null,null,"Coincident"]
["ED_MDU541_05340",null,null,"Half hour time period MD occurred",null,"Non-Coincident"]
["ED_MDU541_05341",null,null,null,null,"Coincident"]
["ED_MDU541_05342",null,null,"Winter/Summer Peaking",null,"Non-Coincident"]
["ED_MDU541_05343",null,null,null,null,"Coincident"]
["ED_MDU541_05344",null,null,"Adjustments - Embedded generation","MW","Non-Coincident"]
["ED_MDU541_05345",null,null,null,null,"Coincident"]
["ED_MDU541_05346",null,null,"Weather Corrected MD 10% POE","MW","Non-Coincident"]
["ED_MDU541_05347",null,null,null,null,"Coincident"]
["ED_MDU541_05348",null,null,"Weather Corrected MD 10% POE","MVA","Non-Coincident"]
["ED_MDU541_05349",null,null,null,null,"Coincident"]
["ED_MDU541_05350",null,null,"Weather Corrected MD 50% POE","MW","Non-Coincident"]
["ED_MDU541_05351",null,null,null,null,"Coincident"]
["ED_MDU541_05352",null,null,"Weather Corrected MD 50% POE","MVA","Non-Coincident"]
["ED_MDU541_05353",null,null,null,null,"Coincident"]
["ED_MDU541_05354",null,"<Enter substation name>","Substation Rating","MVA","Non-Coincident"]
["ED_MDU541_05355",null,null,null,null,"Coincident"]
["ED_MDU541_05356",null,null,"Raw Adjusted MD","MW","Non-Coincident"]
["ED_MDU541_05357",null,null,null,null,"Coincident"]
["ED_MDU541_05358",null,null,"Raw Adjusted MD","MVA","Non-Coincident"]
["ED_MDU541_05359",null,null,null,null,"Coincident"]
["ED_MDU541_05360",null,null,"Date MD occurred",null,"Non-Coincident"]
["ED_MDU541_05361",null,null,null,null,"Coincident"]
["ED_MDU541_05362",null,null,"Half hour time period MD occurred",null,"Non-Coincident"]
["ED_MDU541_05363",null,null,null,null,"Coincident"]
["ED_MDU541_05364",null,null,"Winter/Summer Peaking",null,"Non-Coincident"]
["ED_MDU541_05365",null,null,null,null,"Coincident"]
["ED_MDU541_05366",null,null,"Adjustments - Embedded generation","MW","Non-Coincident"]
["ED_MDU541_05367",null,null,null,null,"Coincident"]
["ED_MDU541_05368",null,null,"Weather Corrected MD 10% POE","MW","Non-Coincident"]
["ED_MDU541_05369",null,null,null,null,"Coincident"]
["ED_MDU541_05370",null,null,"Weather Corrected MD 10% POE","MVA","Non-Coincident"]
["ED_MDU541_05371",null,null,null,null,"Coincident"]
["ED_MDU541_05372",null,null,"Weather Corrected MD 50% POE","MW","Non-Coincident"]
["ED_MDU541_05373",null,null,null,null,"Coincident"]
["ED_MDU541_05374",null,null,"Weather Corrected MD 50% POE","MVA","Non-Coincident"]
["ED_MDU541_05375",null,null,null,null,"Coincident"]
["ED_MDU541_05376",null,"<Enter substation name>","Substation Rating","MVA","Non-Coincident"]
["ED_MDU541_05377",null,null,null,null,"Coincident"]
["ED_MDU541_05378",null,null,"Raw Adjusted MD","MW","Non-Coincident"]
["ED_MDU541_05379",null,null,null,null,"Coincident"]
["ED_MDU541_05380",null,null,"Raw Adjusted MD","MVA","Non-Coincident"]
["ED_MDU541_05381",null,null,null,null,"Coincident"]
["ED_MDU541_05382",null,null,"Date MD occurred",null,"Non-Coincident"]
["ED_MDU541_05383",null,null,null,null,"Coincident"]
["ED_MDU541_05384",null,null,"Half hour time period MD occurred",null,"Non-Coincident"]
["ED_MDU541_05385",null,null,null,null,"Coincident"]
["ED_MDU541_05386",null,null,"Winter/Summer Peaking",null,"Non-Coincident"]
["ED_MDU541_05387",null,null,null,null,"Coincident"]
["ED_MDU541_05388",null,null,"Adjustments - Embedded generation","MW","Non-Coincident"]
["ED_MDU541_05389",null,null,null,null,"Coincident"]
["ED_MDU541_05390",null,null,"Weather Corrected MD 10% POE","MW","Non-Coincident"]
["ED_MDU541_05391",null,null,null,null,"Coincident"]
["ED_MDU541_05392",null,null,"Weather Corrected MD 10% POE","MVA","Non-Coincident"]
["ED_MDU541_05393",null,null,null,null,"Coincident"]
["ED_MDU541_05394",null,null,"Weather Corrected MD 50% POE","MW","Non-Coincident"]
["ED_MDU541_05395",null,null,null,null,"Coincident"]
["ED_MDU541_05396",null,null,"Weather Corrected MD 50% POE","MVA","Non-Coincident"]
["ED_MDU541_05397",null,null,null,null,"Coincident"]
["ED_MDU541_05398",null,"<Enter substation name>","Substation Rating","MVA","Non-Coincident"]
["ED_MDU541_05399",null,null,null,null,"Coincident"]
["ED_MDU541_05400",null,null,"Raw Adjusted MD","MW","Non-Coincident"]
["ED_MDU541_05401",null,null,null,null,"Coincident"]
["ED_MDU541_05402",null,null,"Raw Adjusted MD","MVA","Non-Coincident"]
["ED_MDU541_05403",null,null,null,null,"Coincident"]
["ED_MDU541_05404",null,null,"Date MD occurred",null,"Non-Coincident"]
["ED_MDU541_05405",null,null,null,null,"Coincident"]
["ED_MDU541_05406",null,null,"Half hour time period MD occurred",null,"Non-Coincident"]
["ED_MDU541_05407",null,null,null,null,"Coincident"]
["ED_MDU541_05408",null,null,"Winter/Summer Peaking",null,"Non-Coincident"]
["ED_MDU541_05409",null,null,null,null,"Coincident"]
["ED_MDU541_05410",null,null,"Adjustments - Embedded generation","MW","Non-Coincident"]
["ED_MDU541_05411",null,null,null,null,"Coincident"]
["ED_MDU541_05412",null,null,"Weather Corrected MD 10% POE","MW","Non-Coincident"]
["ED_MDU541_05413",null,null,null,null,"Coincident"]
["ED_MDU541_05414",null,null,"Weather Corrected MD 10% POE","MVA","Non-Coincident"]
["ED_MDU541_05415",null,null,null,null,"Coincident"]
["ED_MDU541_05416",null,null,"Weather Corrected MD 50% POE","MW","Non-Coincident"]
["ED_MDU541_05417",null,null,null,null,"Coincident"]
["ED_MDU541_05418",null,null,"Weather Corrected MD 50% POE","MVA","Non-Coincident"]
["ED_MDU541_05419",null,null,null,null,"Coincident"]
["ED_MDU541_05420",null,"<Enter substation name>","Substation Rating","MVA","Non-Coincident"]
["ED_MDU541_05421",null,null,null,null,"Coincident"]
["ED_MDU541_05422",null,null,"Raw Adjusted MD","MW","Non-Coincident"]
["ED_MDU541_05423",null,null,null,null,"Coincident"]
["ED_MDU541_05424",null,null,"Raw Adjusted MD","MVA","Non-Coincident"]
["ED_MDU541_05425",null,null,null,null,"Coincident"]
["ED_MDU541_05426",null,null,"Date MD occurred",null,"Non-Coincident"]
["ED_MDU541_05427",null,null,null,null,"Coincident"]
["ED_MDU541_05428",null,null,"Half hour time period MD occurred",null,"Non-Coincident"]
["ED_MDU541_05429",null,null,null,null,"Coincident"]
["ED_MDU541_05430",null,null,"Winter/Summer Peaking",null,"Non-Coincident"]
["ED_MDU541_05431",null,null,null,null,"Coincident"]
["ED_MDU541_05432",null,null,"Adjustments - Embedded generation","MW","Non-Coincident"]
["ED_MDU541_05433",null,null,null,null,"Coincident"]
["ED_MDU541_05434",null,null,"Weather Corrected MD 10% POE","MW","Non-Coincident"]
["ED_MDU541_05435",null,null,null,null,"Coincident"]
["ED_MDU541_05436",null,null,"Weather Corrected MD 10% POE","MVA","Non-Coincident"]
["ED_MDU541_05437",null,null,null,null,"Coincident"]
["ED_MDU541_05438",null,null,"Weather Corrected MD 50% POE","MW","Non-Coincident"]
["ED_MDU541_05439",null,null,null,null,"Coincident"]
["ED_MDU541_05440",null,null,"Weather Corrected MD 50% POE","MVA","Non-Coincident"]
["ED_MDU541_05441",null,null,null,null,"Coincident"]
["ED_MDU541_05442",null,"<Enter substation name>","Substation Rating","MVA","Non-Coincident"]
["ED_MDU541_05443",null,null,null,null,"Coincident"]
["ED_MDU541_05444",null,null,"Raw Adjusted MD","MW","Non-Coincident"]
["ED_MDU541_05445",null,null,null,null,"Coincident"]
["ED_MDU541_05446",null,null,"Raw Adjusted MD","MVA","Non-Coincident"]
["ED_MDU541_05447",null,null,null,null,"Coincident"]
["ED_MDU541_05448",null,null,"Date MD occurred",null,"Non-Coincident"]
["ED_MDU541_05449",null,null,null,null,"Coincident"]
["ED_MDU541_05450",null,null,"Half hour time period MD occurred",null,"Non-Coincident"]
["ED_MDU541_05451",null,null,null,null,"Coincident"]
["ED_MDU541_05452",null,null,"Winter/Summer Peaking",null,"Non-Coincident"]
["ED_MDU541_05453",null,null,null,null,"Coincident"]
["ED_MDU541_05454",null,null,"Adjustments - Embedded generation","MW","Non-Coincident"]
["ED_MDU541_05455",null,null,null,null,"Coincident"]
["ED_MDU541_05456",null,null,"Weather Corrected MD 10% POE","MW","Non-Coincident"]
["ED_MDU541_05457",null,null,null,null,"Coincident"]
["ED_MDU541_05458",null,null,"Weather Corrected MD 10% POE","MVA","Non-Coincident"]
["ED_MDU541_05459",null,null,null,null,"Coincident"]
["ED_MDU541_05460",null,null,"Weather Corrected MD 50% POE","MW","Non-Coincident"]
["ED_MDU541_05461",null,null,null,null,"Coincident"]
["ED_MDU541_05462",null,null,"Weather Corrected MD 50% POE","MVA","Non-Coincident"]
["ED_MDU541_05463",null,null,null,null,"Coincident"]
["ED_MDU541_05464",null,"<Enter substation name>","Substation Rating","MVA","Non-Coincident"]
["ED_MDU541_05465",null,null,null,null,"Coincident"]
["ED_MDU541_05466",null,null,"Raw Adjusted MD","MW","Non-Coincident"]
["ED_MDU541_05467",null,null,null,null,"Coincident"]
["ED_MDU541_05468",null,null,"Raw Adjusted MD","MVA","Non-Coincident"]
["ED_MDU541_05469",null,null,null,null,"Coincident"]
["ED_MDU541_05470",null,null,"Date MD occurred",null,"Non-Coincident"]
["ED_MDU541_05471",null,null,null,null,"Coincident"]
["ED_MDU541_05472",null,null,"Half hour time period MD occurred",null,"Non-Coincident"]
["ED_MDU541_05473",null,null,null,null,"Coincident"]
["ED_MDU541_05474",null,null,"Winter/Summer Peaking",null,"Non-Coincident"]
["ED_MDU541_05475",null,null,null,null,"Coincident"]
["ED_MDU541_05476",null,null,"Adjustments - Embedded generation","MW","Non-Coincident"]
["ED_MDU541_05477",null,null,null,null,"Coincident"]
["ED_MDU541_05478",null,null,"Weather Corrected MD 10% POE","MW","Non-Coincident"]
["ED_MDU541_05479",null,null,null,null,"Coincident"]
["ED_MDU541_05480",null,null,"Weather Corrected MD 10% POE","MVA","Non-Coincident"]
["ED_MDU541_05481",null,null,null,null,"Coincident"]
["ED_MDU541_05482",null,null,"Weather Corrected MD 50% POE","MW","Non-Coincident"]
["ED_MDU541_05483",null,null,null,null,"Coincident"]
["ED_MDU541_05484",null,null,"Weather Corrected MD 50% POE","MVA","Non-Coincident"]
["ED_MDU541_05485",null,null,null,null,"Coincident"]
["ED_MDU541_05486",null,"<Enter substation name>","Substation Rating","MVA","Non-Coincident"]
["ED_MDU541_05487",null,null,null,null,"Coincident"]
["ED_MDU541_05488",null,null,"Raw Adjusted MD","MW","Non-Coincident"]
["ED_MDU541_05489",null,null,null,null,"Coincident"]
["ED_MDU541_05490",null,null,"Raw Adjusted MD","MVA","Non-Coincident"]
["ED_MDU541_05491",null,null,null,null,"Coincident"]
["ED_MDU541_05492",null,null,"Date MD occurred",null,"Non-Coincident"]
["ED_MDU541_05493",null,null,null,null,"Coincident"]
["ED_MDU541_05494",null,null,"Half hour time period MD occurred",null,"Non-Coincident"]
["ED_MDU541_05495",null,null,null,null,"Coincident"]
["ED_MDU541_05496",null,null,"Winter/Summer Peaking",null,"Non-Coincident"]
["ED_MDU541_05497",null,null,null,null,"Coincident"]
["ED_MDU541_05498",null,null,"Adjustments - Embedded generation","MW","Non-Coincident"]
["ED_MDU541_05499",null,null,null,null,"Coincident"]
["ED_MDU541_05500",null,null,"Weather Corrected MD 10% POE","MW","Non-Coincident"]
["ED_MDU541_05501",null,null,null,null,"Coincident"]
["ED_MDU541_05502",null,null,"Weather Corrected MD 10% POE","MVA","Non-Coincident"]
["ED_MDU541_05503",null,null,null,null,"Coincident"]
["ED_MDU541_05504",null,null,"Weather Corrected MD 50% POE","MW","Non-Coincident"]
["ED_MDU541_05505",null,null,null,null,"Coincident"]
["ED_MDU541_05506",null,null,"Weather Corrected MD 50% POE","MVA","Non-Coincident"]
["ED_MDU541_05507",null,null,null,null,"Coincident"]
["ED_MDU541_05508",null,"<Enter substation name>","Substation Rating","MVA","Non-Coincident"]
["ED_MDU541_05509",null,null,null,null,"Coincident"]
["ED_MDU541_05510",null,null,"Raw Adjusted MD","MW","Non-Coincident"]
["ED_MDU541_05511",null,null,null,null,"Coincident"]
["ED_MDU541_05512",null,null,"Raw Adjusted MD","MVA","Non-Coincident"]
["ED_MDU541_05513",null,null,null,null,"Coincident"]
["ED_MDU541_05514",null,null,"Date MD occurred",null,"Non-Coincident"]
["ED_MDU541_05515",null,null,null,null,"Coincident"]
["ED_MDU541_05516",null,null,"Half hour time period MD occurred",null,"Non-Coincident"]
["ED_MDU541_05517",null,null,null,null,"Coincident"]
["ED_MDU541_05518",null,null,"Winter/Summer Peaking",null,"Non-Coincident"]
["ED_MDU541_05519",null,null,null,null,"Coincident"]
["ED_MDU541_05520",null,null,"Adjustments - Embedded generation","MW","Non-Coincident"]
["ED_MDU541_05521",null,null,null,null,"Coincident"]
["ED_MDU541_05522",null,null,"Weather Corrected MD 10% POE","MW","Non-Coincident"]
["ED_MDU541_05523",null,null,null,null,"Coincident"]
["ED_MDU541_05524",null,null,"Weather Corrected MD 10% POE","MVA","Non-Coincident"]
["ED_MDU541_05525",null,null,null,null,"Coincident"]
["ED_MDU541_05526",null,null,"Weather Corrected MD 50% POE","MW","Non-Coincident"]
["ED_MDU541_05527",null,null,null,null,"Coincident"]
["ED_MDU541_05528",null,null,"Weather Corrected MD 50% POE","MVA","Non-Coincident"]
["ED_MDU541_05529",null,null,null,null,"Coincident"]
["ED_MDU541_05530",null,"<Enter substation name>","Substation Rating","MVA","Non-Coincident"]
["ED_MDU541_05531",null,null,null,null,"Coincident"]
["ED_MDU541_05532",null,null,"Raw Adjusted MD","MW","Non-Coincident"]
["ED_MDU541_05533",null,null,null,null,"Coincident"]
["ED_MDU541_05534",null,null,"Raw Adjusted MD","MVA","Non-Coincident"]
["ED_MDU541_05535",null,null,null,null,"Coincident"]
["ED_MDU541_05536",null,null,"Date MD occurred",null,"Non-Coincident"]
["ED_MDU541_05537",null,null,null,null,"Coincident"]
["ED_MDU541_05538",null,null,"Half hour time period MD occurred",null,"Non-Coincident"]
["ED_MDU541_05539",null,null,null,null,"Coincident"]
["ED_MDU541_05540",null,null,"Winter/Summer Peaking",null,"Non-Coincident"]
["ED_MDU541_05541",null,null,null,null,"Coincident"]
["ED_MDU541_05542",null,null,"Adjustments - Embedded generation","MW","Non-Coincident"]
["ED_MDU541_05543",null,null,null,null,"Coincident"]
["ED_MDU541_05544",null,null,"Weather Corrected MD 10% POE","MW","Non-Coincident"]
["ED_MDU541_05545",null,null,null,null,"Coincident"]
["ED_MDU541_05546",null,null,"Weather Corrected MD 10% POE","MVA","Non-Coincident"]
["ED_MDU541_05547",null,null,null,null,"Coincident"]
["ED_MDU541_05548",null,null,"Weather Corrected MD 50% POE","MW","Non-Coincident"]
["ED_MDU541_05549",null,null,null,null,"Coincident"]
["ED_MDU541_05550",null,null,"Weather Corrected MD 50% POE","MVA","Non-Coincident"]
["ED_MDU541_05551",null,null,null,null,"Coincident"]
["ED_MDU541_05552",null,"<Enter substation name>","Substation Rating","MVA","Non-Coincident"]
["ED_MDU541_05553",null,null,null,null,"Coincident"]
["ED_MDU541_05554",null,null,"Raw Adjusted MD","MW","Non-Coincident"]
["ED_MDU541_05555",null,null,null,null,"Coincident"]
["ED_MDU541_05556",null,null,"Raw Adjusted MD","MVA","Non-Coincident"]
["ED_MDU541_05557",null,null,null,null,"Coincident"]
["ED_MDU541_05558",null,null,"Date MD occurred",null,"Non-Coincident"]
["ED_MDU541_05559",null,null,null,null,"Coincident"]
["ED_MDU541_05560",null,null,"Half hour time period MD occurred",null,"Non-Coincident"]
["ED_MDU541_05561",null,null,null,null,"Coincident"]
["ED_MDU541_05562",null,null,"Winter/Summer Peaking",null,"Non-Coincident"]
["ED_MDU541_05563",null,null,null,null,"Coincident"]
["ED_MDU541_05564",null,null,"Adjustments - Embedded generation","MW","Non-Coincident"]
["ED_MDU541_05565",null,null,null,null,"Coincident"]
["ED_MDU541_05566",null,null,"Weather Corrected MD 10% POE","MW","Non-Coincident"]
["ED_MDU541_05567",null,null,null,null,"Coincident"]
["ED_MDU541_05568",null,null,"Weather Corrected MD 10% POE","MVA","Non-Coincident"]
["ED_MDU541_05569",null,null,null,null,"Coincident"]
["ED_MDU541_05570",null,null,"Weather Corrected MD 50% POE","MW","Non-Coincident"]
["ED_MDU541_05571",null,null,null,null,"Coincident"]
["ED_MDU541_05572",null,null,"Weather Corrected MD 50% POE","MVA","Non-Coincident"]
["ED_MDU541_05573",null,null,null,null,"Coincident"]
["ED_MDU541_05574",null,"<Enter substation name>","Substation Rating","MVA","Non-Coincident"]
["ED_MDU541_05575",null,null,null,null,"Coincident"]
["ED_MDU541_05576",null,null,"Raw Adjusted MD","MW","Non-Coincident"]
["ED_MDU541_05577",null,null,null,null,"Coincident"]
["ED_MDU541_05578",null,null,"Raw Adjusted MD","MVA","Non-Coincident"]
["ED_MDU541_05579",null,null,null,null,"Coincident"]
["ED_MDU541_05580",null,null,"Date MD occurred",null,"Non-Coincident"]
["ED_MDU541_05581",null,null,null,null,"Coincident"]
["ED_MDU541_05582",null,null,"Half hour time period MD occurred",null,"Non-Coincident"]
["ED_MDU541_05583",null,null,null,null,"Coincident"]
["ED_MDU541_05584",null,null,"Winter/Summer Peaking",null,"Non-Coincident"]
["ED_MDU541_05585",null,null,null,null,"Coincident"]
["ED_MDU541_05586",null,null,"Adjustments - Embedded generation","MW","Non-Coincident"]
["ED_MDU541_05587",null,null,null,null,"Coincident"]
["ED_MDU541_05588",null,null,"Weather Corrected MD 10% POE","MW","Non-Coincident"]
["ED_MDU541_05589",null,null,null,null,"Coincident"]
["ED_MDU541_05590",null,null,"Weather Corrected MD 10% POE","MVA","Non-Coincident"]
["ED_MDU541_05591",null,null,null,null,"Coincident"]
["ED_MDU541_05592",null,null,"Weather Corrected MD 50% POE","MW","Non-Coincident"]
["ED_MDU541_05593",null,null,null,null,"Coincident"]
["ED_MDU541_05594",null,null,"Weather Corrected MD 50% POE","MVA","Non-Coincident"]
["ED_MDU541_05595",null,null,null,null,"Coincident"]
["ED_MDU541_05596",null,"<Enter substation name>","Substation Rating","MVA","Non-Coincident"]
["ED_MDU541_05597",null,null,null,null,"Coincident"]
["ED_MDU541_05598",null,null,"Raw Adjusted MD","MW","Non-Coincident"]
["ED_MDU541_05599",null,null,null,null,"Coincident"]
["ED_MDU541_05600",null,null,"Raw Adjusted MD","MVA","Non-Coincident"]
["ED_MDU541_05601",null,null,null,null,"Coincident"]
["ED_MDU541_05602",null,null,"Date MD occurred",null,"Non-Coincident"]
["ED_MDU541_05603",null,null,null,null,"Coincident"]
["ED_MDU541_05604",null,null,"Half hour time period MD occurred",null,"Non-Coincident"]
["ED_MDU541_05605",null,null,null,null,"Coincident"]
["ED_MDU541_05606",null,null,"Winter/Summer Peaking",null,"Non-Coincident"]
["ED_MDU541_05607",null,null,null,null,"Coincident"]
["ED_MDU541_05608",null,null,"Adjustments - Embedded generation","MW","Non-Coincident"]
["ED_MDU541_05609",null,null,null,null,"Coincident"]
["ED_MDU541_05610",null,null,"Weather Corrected MD 10% POE","MW","Non-Coincident"]
["ED_MDU541_05611",null,null,null,null,"Coincident"]
["ED_MDU541_05612",null,null,"Weather Corrected MD 10% POE","MVA","Non-Coincident"]
["ED_MDU541_05613",null,null,null,null,"Coincident"]
["ED_MDU541_05614",null,null,"Weather Corrected MD 50% POE","MW","Non-Coincident"]
["ED_MDU541_05615",null,null,null,null,"Coincident"]
["ED_MDU541_05616",null,null,"Weather Corrected MD 50% POE","MVA","Non-Coincident"]
["ED_MDU541_05617",null,null,null,null,"Coincident"]
["ED_MDU541_05618",null,"<Enter substation name>","Substation Rating","MVA","Non-Coincident"]
["ED_MDU541_05619",null,null,null,null,"Coincident"]
["ED_MDU541_05620",null,null,"Raw Adjusted MD","MW","Non-Coincident"]
["ED_MDU541_05621",null,null,null,null,"Coincident"]
["ED_MDU541_05622",null,null,"Raw Adjusted MD","MVA","Non-Coincident"]
["ED_MDU541_05623",null,null,null,null,"Coincident"]
["ED_MDU541_05624",null,null,"Date MD occurred",null,"Non-Coincident"]
["ED_MDU541_05625",null,null,null,null,"Coincident"]
["ED_MDU541_05626",null,null,"Half hour time period MD occurred",null,"Non-Coincident"]
["ED_MDU541_05627",null,null,null,null,"Coincident"]
["ED_MDU541_05628",null,null,"Winter/Summer Peaking",null,"Non-Coincident"]
["ED_MDU541_05629",null,null,null,null,"Coincident"]
["ED_MDU541_05630",null,null,"Adjustments - Embedded generation","MW","Non-Coincident"]
["ED_MDU541_05631",null,null,null,null,"Coincident"]
["ED_MDU541_05632",null,null,"Weather Corrected MD 10% POE","MW","Non-Coincident"]
["ED_MDU541_05633",null,null,null,null,"Coincident"]
["ED_MDU541_05634",null,null,"Weather Corrected MD 10% POE","MVA","Non-Coincident"]
["ED_MDU541_05635",null,null,null,null,"Coincident"]
["ED_MDU541_05636",null,null,"Weather Corrected MD 50% POE","MW","Non-Coincident"]
["ED_MDU541_05637",null,null,null,null,"Coincident"]
["ED_MDU541_05638",null,null,"Weather Corrected MD 50% POE","MVA","Non-Coincident"]
["ED_MDU541_05639",null,null,null,null,"Coincident"]
["ED_MDU541_05640",null,"<Enter substation name>","Substation Rating","MVA","Non-Coincident"]
["ED_MDU541_05641",null,null,null,null,"Coincident"]
["ED_MDU541_05642",null,null,"Raw Adjusted MD","MW","Non-Coincident"]
["ED_MDU541_05643",null,null,null,null,"Coincident"]
["ED_MDU541_05644",null,null,"Raw Adjusted MD","MVA","Non-Coincident"]
["ED_MDU541_05645",null,null,null,null,"Coincident"]
["ED_MDU541_05646",null,null,"Date MD occurred",null,"Non-Coincident"]
["ED_MDU541_05647",null,null,null,null,"Coincident"]
["ED_MDU541_05648",null,null,"Half hour time period MD occurred",null,"Non-Coincident"]
["ED_MDU541_05649",null,null,null,null,"Coincident"]
["ED_MDU541_05650",null,null,"Winter/Summer Peaking",null,"Non-Coincident"]
["ED_MDU541_05651",null,null,null,null,"Coincident"]
["ED_MDU541_05652",null,null,"Adjustments - Embedded generation","MW","Non-Coincident"]
["ED_MDU541_05653",null,null,null,null,"Coincident"]
["ED_MDU541_05654",null,null,"Weather Corrected MD 10% POE","MW","Non-Coincident"]
["ED_MDU541_05655",null,null,null,null,"Coincident"]
["ED_MDU541_05656",null,null,"Weather Corrected MD 10% POE","MVA","Non-Coincident"]
["ED_MDU541_05657",null,null,null,null,"Coincident"]
["ED_MDU541_05658",null,null,"Weather Corrected MD 50% POE","MW","Non-Coincident"]
["ED_MDU541_05659",null,null,null,null,"Coincident"]
["ED_MDU541_05660",null,null,"Weather Corrected MD 50% POE","MVA","Non-Coincident"]
["ED_MDU541_05661",null,null,null,null,"Coincident"]
["ED_MDU541_05662",null,"<Enter substation name>","Substation Rating","MVA","Non-Coincident"]
["ED_MDU541_05663",null,null,null,null,"Coincident"]
["ED_MDU541_05664",null,null,"Raw Adjusted MD","MW","Non-Coincident"]
["ED_MDU541_05665",null,null,null,null,"Coincident"]
["ED_MDU541_05666",null,null,"Raw Adjusted MD","MVA","Non-Coincident"]
["ED_MDU541_05667",null,null,null,null,"Coincident"]
["ED_MDU541_05668",null,null,"Date MD occurred",null,"Non-Coincident"]
["ED_MDU541_05669",null,null,null,null,"Coincident"]
["ED_MDU541_05670",null,null,"Half hour time period MD occurred",null,"Non-Coincident"]
["ED_MDU541_05671",null,null,null,null,"Coincident"]
["ED_MDU541_05672",null,null,"Winter/Summer Peaking",null,"Non-Coincident"]
["ED_MDU541_05673",null,null,null,null,"Coincident"]
["ED_MDU541_05674",null,null,"Adjustments - Embedded generation","MW","Non-Coincident"]
["ED_MDU541_05675",null,null,null,null,"Coincident"]
["ED_MDU541_05676",null,null,"Weather Corrected MD 10% POE","MW","Non-Coincident"]
["ED_MDU541_05677",null,null,null,null,"Coincident"]
["ED_MDU541_05678",null,null,"Weather Corrected MD 10% POE","MVA","Non-Coincident"]
["ED_MDU541_05679",null,null,null,null,"Coincident"]
["ED_MDU541_05680",null,null,"Weather Corrected MD 50% POE","MW","Non-Coincident"]
["ED_MDU541_05681",null,null,null,null,"Coincident"]
["ED_MDU541_05682",null,null,"Weather Corrected MD 50% POE","MVA","Non-Coincident"]
["ED_MDU541_05683",null,null,null,null,"Coincident"]
["ED_MDU541_05684",null,"<Enter substation name>","Substation Rating","MVA","Non-Coincident"]
["ED_MDU541_05685",null,null,null,null,"Coincident"]
["ED_MDU541_05686",null,null,"Raw Adjusted MD","MW","Non-Coincident"]
["ED_MDU541_05687",null,null,null,null,"Coincident"]
["ED_MDU541_05688",null,null,"Raw Adjusted MD","MVA","Non-Coincident"]
["ED_MDU541_05689",null,null,null,null,"Coincident"]
["ED_MDU541_05690",null,null,"Date MD occurred",null,"Non-Coincident"]
["ED_MDU541_05691",null,null,null,null,"Coincident"]
["ED_MDU541_05692",null,null,"Half hour time period MD occurred",null,"Non-Coincident"]
["ED_MDU541_05693",null,null,null,null,"Coincident"]
["ED_MDU541_05694",null,null,"Winter/Summer Peaking",null,"Non-Coincident"]
["ED_MDU541_05695",null,null,null,null,"Coincident"]
["ED_MDU541_05696",null,null,"Adjustments - Embedded generation","MW","Non-Coincident"]
["ED_MDU541_05697",null,null,null,null,"Coincident"]
["ED_MDU541_05698",null,null,"Weather Corrected MD 10% POE","MW","Non-Coincident"]
["ED_MDU541_05699",null,null,null,null,"Coincident"]
["ED_MDU541_05700",null,null,"Weather Corrected MD 10% POE","MVA","Non-Coincident"]
["ED_MDU541_05701",null,null,null,null,"Coincident"]
["ED_MDU541_05702",null,null,"Weather Corrected MD 50% POE","MW","Non-Coincident"]
["ED_MDU541_05703",null,null,null,null,"Coincident"]
["ED_MDU541_05704",null,null,"Weather Corrected MD 50% POE","MVA","Non-Coincident"]
["ED_MDU541_05705",null,null,null,null,"Coincident"]
["ED_MDU541_05706",null,"<Enter substation name>","Substation Rating","MVA","Non-Coincident"]
["ED_MDU541_05707",null,null,null,null,"Coincident"]
["ED_MDU541_05708",null,null,"Raw Adjusted MD","MW","Non-Coincident"]
["ED_MDU541_05709",null,null,null,null,"Coincident"]
["ED_MDU541_05710",null,null,"Raw Adjusted MD","MVA","Non-Coincident"]
["ED_MDU541_05711",null,null,null,null,"Coincident"]
["ED_MDU541_05712",null,null,"Date MD occurred",null,"Non-Coincident"]
["ED_MDU541_05713",null,null,null,null,"Coincident"]
["ED_MDU541_05714",null,null,"Half hour time period MD occurred",null,"Non-Coincident"]
["ED_MDU541_05715",null,null,null,null,"Coincident"]
["ED_MDU541_05716",null,null,"Winter/Summer Peaking",null,"Non-Coincident"]
["ED_MDU541_05717",null,null,null,null,"Coincident"]
["ED_MDU541_05718",null,null,"Adjustments - Embedded generation","MW","Non-Coincident"]
["ED_MDU541_05719",null,null,null,null,"Coincident"]
["ED_MDU541_05720",null,null,"Weather Corrected MD 10% POE","MW","Non-Coincident"]
["ED_MDU541_05721",null,null,null,null,"Coincident"]
["ED_MDU541_05722",null,null,"Weather Corrected MD 10% POE","MVA","Non-Coincident"]
["ED_MDU541_05723",null,null,null,null,"Coincident"]
["ED_MDU541_05724",null,null,"Weather Corrected MD 50% POE","MW","Non-Coincident"]
["ED_MDU541_05725",null,null,null,null,"Coincident"]
["ED_MDU541_05726",null,null,"Weather Corrected MD 50% POE","MVA","Non-Coincident"]
["ED_MDU541_05727",null,null,null,null,"Coincident"]
["ED_MDU541_05728",null,"<Enter substation name>","Substation Rating","MVA","Non-Coincident"]
["ED_MDU541_05729",null,null,null,null,"Coincident"]
["ED_MDU541_05730",null,null,"Raw Adjusted MD","MW","Non-Coincident"]
["ED_MDU541_05731",null,null,null,null,"Coincident"]
["ED_MDU541_05732",null,null,"Raw Adjusted MD","MVA","Non-Coincident"]
["ED_MDU541_05733",null,null,null,null,"Coincident"]
["ED_MDU541_05734",null,null,"Date MD occurred",null,"Non-Coincident"]
["ED_MDU541_05735",null,null,null,null,"Coincident"]
["ED_MDU541_05736",null,null,"Half hour time period MD occurred",null,"Non-Coincident"]
["ED_MDU541_05737",null,null,null,null,"Coincident"]
["ED_MDU541_05738",null,null,"Winter/Summer Peaking",null,"Non-Coincident"]
["ED_MDU541_05739",null,null,null,null,"Coincident"]
["ED_MDU541_05740",null,null,"Adjustments - Embedded generation","MW","Non-Coincident"]
["ED_MDU541_05741",null,null,null,null,"Coincident"]
["ED_MDU541_05742",null,null,"Weather Corrected MD 10% POE","MW","Non-Coincident"]
["ED_MDU541_05743",null,null,null,null,"Coincident"]
["ED_MDU541_05744",null,null,"Weather Corrected MD 10% POE","MVA","Non-Coincident"]
["ED_MDU541_05745",null,null,null,null,"Coincident"]
["ED_MDU541_05746",null,null,"Weather Corrected MD 50% POE","MW","Non-Coincident"]
["ED_MDU541_05747",null,null,null,null,"Coincident"]
["ED_MDU541_05748",null,null,"Weather Corrected MD 50% POE","MVA","Non-Coincident"]
["ED_MDU541_05749",null,null,null,null,"Coincident"]
["ED_MDU541_05750",null,"<Enter substation name>","Substation Rating","MVA","Non-Coincident"]
["ED_MDU541_05751",null,null,null,null,"Coincident"]
["ED_MDU541_05752",null,null,"Raw Adjusted MD","MW","Non-Coincident"]
["ED_MDU541_05753",null,null,null,null,"Coincident"]
["ED_MDU541_05754",null,null,"Raw Adjusted MD","MVA","Non-Coincident"]
["ED_MDU541_05755",null,null,null,null,"Coincident"]
["ED_MDU541_05756",null,null,"Date MD occurred",null,"Non-Coincident"]
["ED_MDU541_05757",null,null,null,null,"Coincident"]
["ED_MDU541_05758",null,null,"Half hour time period MD occurred",null,"Non-Coincident"]
["ED_MDU541_05759",null,null,null,null,"Coincident"]
["ED_MDU541_05760",null,null,"Winter/Summer Peaking",null,"Non-Coincident"]
["ED_MDU541_05761",null,null,null,null,"Coincident"]
["ED_MDU541_05762",null,null,"Adjustments - Embedded generation","MW","Non-Coincident"]
["ED_MDU541_05763",null,null,null,null,"Coincident"]
["ED_MDU541_05764",null,null,"Weather Corrected MD 10% POE","MW","Non-Coincident"]
["ED_MDU541_05765",null,null,null,null,"Coincident"]
["ED_MDU541_05766",null,null,"Weather Corrected MD 10% POE","MVA","Non-Coincident"]
["ED_MDU541_05767",null,null,null,null,"Coincident"]
["ED_MDU541_05768",null,null,"Weather Corrected MD 50% POE","MW","Non-Coincident"]
["ED_MDU541_05769",null,null,null,null,"Coincident"]
["ED_MDU541_05770",null,null,"Weather Corrected MD 50% POE","MVA","Non-Coincident"]
["ED_MDU541_05771",null,null,null,null,"Coincident"]
["ED_MDU541_05772",null,"<Enter substation name>","Substation Rating","MVA","Non-Coincident"]
["ED_MDU541_05773",null,null,null,null,"Coincident"]
["ED_MDU541_05774",null,null,"Raw Adjusted MD","MW","Non-Coincident"]
["ED_MDU541_05775",null,null,null,null,"Coincident"]
["ED_MDU541_05776",null,null,"Raw Adjusted MD","MVA","Non-Coincident"]
["ED_MDU541_05777",null,null,null,null,"Coincident"]
["ED_MDU541_05778",null,null,"Date MD occurred",null,"Non-Coincident"]
["ED_MDU541_05779",null,null,null,null,"Coincident"]
["ED_MDU541_05780",null,null,"Half hour time period MD occurred",null,"Non-Coincident"]
["ED_MDU541_05781",null,null,null,null,"Coincident"]
["ED_MDU541_05782",null,null,"Winter/Summer Peaking",null,"Non-Coincident"]
["ED_MDU541_05783",null,null,null,null,"Coincident"]
["ED_MDU541_05784",null,null,"Adjustments - Embedded generation","MW","Non-Coincident"]
["ED_MDU541_05785",null,null,null,null,"Coincident"]
["ED_MDU541_05786",null,null,"Weather Corrected MD 10% POE","MW","Non-Coincident"]
["ED_MDU541_05787",null,null,null,null,"Coincident"]
["ED_MDU541_05788",null,null,"Weather Corrected MD 10% POE","MVA","Non-Coincident"]
["ED_MDU541_05789",null,null,null,null,"Coincident"]
["ED_MDU541_05790",null,null,"Weather Corrected MD 50% POE","MW","Non-Coincident"]
["ED_MDU541_05791",null,null,null,null,"Coincident"]
["ED_MDU541_05792",null,null,"Weather Corrected MD 50% POE","MVA","Non-Coincident"]
["ED_MDU541_05793",null,null,null,null,"Coincident"]
["ED_MDU541_05794",null,"<Enter substation name>","Substation Rating","MVA","Non-Coincident"]
["ED_MDU541_05795",null,null,null,null,"Coincident"]
["ED_MDU541_05796",null,null,"Raw Adjusted MD","MW","Non-Coincident"]
["ED_MDU541_05797",null,null,null,null,"Coincident"]
["ED_MDU541_05798",null,null,"Raw Adjusted MD","MVA","Non-Coincident"]
["ED_MDU541_05799",null,null,null,null,"Coincident"]
["ED_MDU541_05800",null,null,"Date MD occurred",null,"Non-Coincident"]
["ED_MDU541_05801",null,null,null,null,"Coincident"]
["ED_MDU541_05802",null,null,"Half hour time period MD occurred",null,"Non-Coincident"]
["ED_MDU541_05803",null,null,null,null,"Coincident"]
["ED_MDU541_05804",null,null,"Winter/Summer Peaking",null,"Non-Coincident"]
["ED_MDU541_05805",null,null,null,null,"Coincident"]
["ED_MDU541_05806",null,null,"Adjustments - Embedded generation","MW","Non-Coincident"]
["ED_MDU541_05807",null,null,null,null,"Coincident"]
["ED_MDU541_05808",null,null,"Weather Corrected MD 10% POE","MW","Non-Coincident"]
["ED_MDU541_05809",null,null,null,null,"Coincident"]
["ED_MDU541_05810",null,null,"Weather Corrected MD 10% POE","MVA","Non-Coincident"]
["ED_MDU541_05811",null,null,null,null,"Coincident"]
["ED_MDU541_05812",null,null,"Weather Corrected MD 50% POE","MW","Non-Coincident"]
["ED_MDU541_05813",null,null,null,null,"Coincident"]
["ED_MDU541_05814",null,null,"Weather Corrected MD 50% POE","MVA","Non-Coincident"]
["ED_MDU541_05815",null,null,null,null,"Coincident"]
["ED_MDU541_05816",null,"<Enter substation name>","Substation Rating","MVA","Non-Coincident"]
["ED_MDU541_05817",null,null,null,null,"Coincident"]
["ED_MDU541_05818",null,null,"Raw Adjusted MD","MW","Non-Coincident"]
["ED_MDU541_05819",null,null,null,null,"Coincident"]
["ED_MDU541_05820",null,null,"Raw Adjusted MD","MVA","Non-Coincident"]
["ED_MDU541_05821",null,null,null,null,"Coincident"]
["ED_MDU541_05822",null,null,"Date MD occurred",null,"Non-Coincident"]
["ED_MDU541_05823",null,null,null,null,"Coincident"]
["ED_MDU541_05824",null,null,"Half hour time period MD occurred",null,"Non-Coincident"]
["ED_MDU541_05825",null,null,null,null,"Coincident"]
["ED_MDU541_05826",null,null,"Winter/Summer Peaking",null,"Non-Coincident"]
["ED_MDU541_05827",null,null,null,null,"Coincident"]
["ED_MDU541_05828",null,null,"Adjustments - Embedded generation","MW","Non-Coincident"]
["ED_MDU541_05829",null,null,null,null,"Coincident"]
["ED_MDU541_05830",null,null,"Weather Corrected MD 10% POE","MW","Non-Coincident"]
["ED_MDU541_05831",null,null,null,null,"Coincident"]
["ED_MDU541_05832",null,null,"Weather Corrected MD 10% POE","MVA","Non-Coincident"]
["ED_MDU541_05833",null,null,null,null,"Coincident"]
["ED_MDU541_05834",null,null,"Weather Corrected MD 50% POE","MW","Non-Coincident"]
["ED_MDU541_05835",null,null,null,null,"Coincident"]
["ED_MDU541_05836",null,null,"Weather Corrected MD 50% POE","MVA","Non-Coincident"]
["ED_MDU541_05837",null,null,null,null,"Coincident"]
["ED_MDU541_05838",null,"<Enter substation name>","Substation Rating","MVA","Non-Coincident"]
["ED_MDU541_05839",null,null,null,null,"Coincident"]
["ED_MDU541_05840",null,null,"Raw Adjusted MD","MW","Non-Coincident"]
["ED_MDU541_05841",null,null,null,null,"Coincident"]
["ED_MDU541_05842",null,null,"Raw Adjusted MD","MVA","Non-Coincident"]
["ED_MDU541_05843",null,null,null,null,"Coincident"]
["ED_MDU541_05844",null,null,"Date MD occurred",null,"Non-Coincident"]
["ED_MDU541_05845",null,null,null,null,"Coincident"]
["ED_MDU541_05846",null,null,"Half hour time period MD occurred",null,"Non-Coincident"]
["ED_MDU541_05847",null,null,null,null,"Coincident"]
["ED_MDU541_05848",null,null,"Winter/Summer Peaking",null,"Non-Coincident"]
["ED_MDU541_05849",null,null,null,null,"Coincident"]
["ED_MDU541_05850",null,null,"Adjustments - Embedded generation","MW","Non-Coincident"]
["ED_MDU541_05851",null,null,null,null,"Coincident"]
["ED_MDU541_05852",null,null,"Weather Corrected MD 10% POE","MW","Non-Coincident"]
["ED_MDU541_05853",null,null,null,null,"Coincident"]
["ED_MDU541_05854",null,null,"Weather Corrected MD 10% POE","MVA","Non-Coincident"]
["ED_MDU541_05855",null,null,null,null,"Coincident"]
["ED_MDU541_05856",null,null,"Weather Corrected MD 50% POE","MW","Non-Coincident"]
["ED_MDU541_05857",null,null,null,null,"Coincident"]
["ED_MDU541_05858",null,null,"Weather Corrected MD 50% POE","MVA","Non-Coincident"]
["ED_MDU541_05859",null,null,null,null,"Coincident"]
["ED_MDU541_05860",null,"<Enter substation name>","Substation Rating","MVA","Non-Coincident"]
["ED_MDU541_05861",null,null,null,null,"Coincident"]
["ED_MDU541_05862",null,null,"Raw Adjusted MD","MW","Non-Coincident"]
["ED_MDU541_05863",null,null,null,null,"Coincident"]
["ED_MDU541_05864",null,null,"Raw Adjusted MD","MVA","Non-Coincident"]
["ED_MDU541_05865",null,null,null,null,"Coincident"]
["ED_MDU541_05866",null,null,"Date MD occurred",null,"Non-Coincident"]
["ED_MDU541_05867",null,null,null,null,"Coincident"]
["ED_MDU541_05868",null,null,"Half hour time period MD occurred",null,"Non-Coincident"]
["ED_MDU541_05869",null,null,null,null,"Coincident"]
["ED_MDU541_05870",null,null,"Winter/Summer Peaking",null,"Non-Coincident"]
["ED_MDU541_05871",null,null,null,null,"Coincident"]
["ED_MDU541_05872",null,null,"Adjustments - Embedded generation","MW","Non-Coincident"]
["ED_MDU541_05873",null,null,null,null,"Coincident"]
["ED_MDU541_05874",null,null,"Weather Corrected MD 10% POE","MW","Non-Coincident"]
["ED_MDU541_05875",null,null,null,null,"Coincident"]
["ED_MDU541_05876",null,null,"Weather Corrected MD 10% POE","MVA","Non-Coincident"]
["ED_MDU541_05877",null,null,null,null,"Coincident"]
["ED_MDU541_05878",null,null,"Weather Corrected MD 50% POE","MW","Non-Coincident"]
["ED_MDU541_05879",null,null,null,null,"Coincident"]
["ED_MDU541_05880",null,null,"Weather Corrected MD 50% POE","MVA","Non-Coincident"]
["ED_MDU541_05881",null,null,null,null,"Coincident"]
["ED_MDU541_05882",null,"<Enter substation name>","Substation Rating","MVA","Non-Coincident"]
["ED_MDU541_05883",null,null,null,null,"Coincident"]
["ED_MDU541_05884",null,null,"Raw Adjusted MD","MW","Non-Coincident"]
["ED_MDU541_05885",null,null,null,null,"Coincident"]
["ED_MDU541_05886",null,null,"Raw Adjusted MD","MVA","Non-Coincident"]
["ED_MDU541_05887",null,null,null,null,"Coincident"]
["ED_MDU541_05888",null,null,"Date MD occurred",null,"Non-Coincident"]
["ED_MDU541_05889",null,null,null,null,"Coincident"]
["ED_MDU541_05890",null,null,"Half hour time period MD occurred",null,"Non-Coincident"]
["ED_MDU541_05891",null,null,null,null,"Coincident"]
["ED_MDU541_05892",null,null,"Winter/Summer Peaking",null,"Non-Coincident"]
["ED_MDU541_05893",null,null,null,null,"Coincident"]
["ED_MDU541_05894",null,null,"Adjustments - Embedded generation","MW","Non-Coincident"]
["ED_MDU541_05895",null,null,null,null,"Coincident"]
["ED_MDU541_05896",null,null,"Weather Corrected MD 10% POE","MW","Non-Coincident"]
["ED_MDU541_05897",null,null,null,null,"Coincident"]
["ED_MDU541_05898",null,null,"Weather Corrected MD 10% POE","MVA","Non-Coincident"]
["ED_MDU541_05899",null,null,null,null,"Coincident"]
["ED_MDU541_05900",null,null,"Weather Corrected MD 50% POE","MW","Non-Coincident"]
["ED_MDU541_05901",null,null,null,null,"Coincident"]
["ED_MDU541_05902",null,null,"Weather Corrected MD 50% POE","MVA","Non-Coincident"]
["ED_MDU541_05903",null,null,null,null,"Coincident"]
["ED_MDU541_05904",null,"<Enter substation name>","Substation Rating","MVA","Non-Coincident"]
["ED_MDU541_05905",null,null,null,null,"Coincident"]
["ED_MDU541_05906",null,null,"Raw Adjusted MD","MW","Non-Coincident"]
["ED_MDU541_05907",null,null,null,null,"Coincident"]
["ED_MDU541_05908",null,null,"Raw Adjusted MD","MVA","Non-Coincident"]
["ED_MDU541_05909",null,null,null,null,"Coincident"]
["ED_MDU541_05910",null,null,"Date MD occurred",null,"Non-Coincident"]
["ED_MDU541_05911",null,null,null,null,"Coincident"]
["ED_MDU541_05912",null,null,"Half hour time period MD occurred",null,"Non-Coincident"]
["ED_MDU541_05913",null,null,null,null,"Coincident"]
["ED_MDU541_05914",null,null,"Winter/Summer Peaking",null,"Non-Coincident"]
["ED_MDU541_05915",null,null,null,null,"Coincident"]
["ED_MDU541_05916",null,null,"Adjustments - Embedded generation","MW","Non-Coincident"]
["ED_MDU541_05917",null,null,null,null,"Coincident"]
["ED_MDU541_05918",null,null,"Weather Corrected MD 10% POE","MW","Non-Coincident"]
["ED_MDU541_05919",null,null,null,null,"Coincident"]
["ED_MDU541_05920",null,null,"Weather Corrected MD 10% POE","MVA","Non-Coincident"]
["ED_MDU541_05921",null,null,null,null,"Coincident"]
["ED_MDU541_05922",null,null,"Weather Corrected MD 50% POE","MW","Non-Coincident"]
["ED_MDU541_05923",null,null,null,null,"Coincident"]
["ED_MDU541_05924",null,null,"Weather Corrected MD 50% POE","MVA","Non-Coincident"]
["ED_MDU541_05925",null,null,null,null,"Coincident"]
["ED_MDU541_05926",null,"<Enter substation name>","Substation Rating","MVA","Non-Coincident"]
["ED_MDU541_05927",null,null,null,null,"Coincident"]
["ED_MDU541_05928",null,null,"Raw Adjusted MD","MW","Non-Coincident"]
["ED_MDU541_05929",null,null,null,null,"Coincident"]
["ED_MDU541_05930",null,null,"Raw Adjusted MD","MVA","Non-Coincident"]
["ED_MDU541_05931",null,null,null,null,"Coincident"]
["ED_MDU541_05932",null,null,"Date MD occurred",null,"Non-Coincident"]
["ED_MDU541_05933",null,null,null,null,"Coincident"]
["ED_MDU541_05934",null,null,"Half hour time period MD occurred",null,"Non-Coincident"]
["ED_MDU541_05935",null,null,null,null,"Coincident"]
["ED_MDU541_05936",null,null,"Winter/Summer Peaking",null,"Non-Coincident"]
["ED_MDU541_05937",null,null,null,null,"Coincident"]
["ED_MDU541_05938",null,null,"Adjustments - Embedded generation","MW","Non-Coincident"]
["ED_MDU541_05939",null,null,null,null,"Coincident"]
["ED_MDU541_05940",null,null,"Weather Corrected MD 10% POE","MW","Non-Coincident"]
["ED_MDU541_05941",null,null,null,null,"Coincident"]
["ED_MDU541_05942",null,null,"Weather Corrected MD 10% POE","MVA","Non-Coincident"]
["ED_MDU541_05943",null,null,null,null,"Coincident"]
["ED_MDU541_05944",null,null,"Weather Corrected MD 50% POE","MW","Non-Coincident"]
["ED_MDU541_05945",null,null,null,null,"Coincident"]
["ED_MDU541_05946",null,null,"Weather Corrected MD 50% POE","MVA","Non-Coincident"]
["ED_MDU541_05947",null,null,null,null,"Coincident"]
["ED_MDU541_05948",null,"<Enter substation name>","Substation Rating","MVA","Non-Coincident"]
["ED_MDU541_05949",null,null,null,null,"Coincident"]
["ED_MDU541_05950",null,null,"Raw Adjusted MD","MW","Non-Coincident"]
["ED_MDU541_05951",null,null,null,null,"Coincident"]
["ED_MDU541_05952",null,null,"Raw Adjusted MD","MVA","Non-Coincident"]
["ED_MDU541_05953",null,null,null,null,"Coincident"]
["ED_MDU541_05954",null,null,"Date MD occurred",null,"Non-Coincident"]
["ED_MDU541_05955",null,null,null,null,"Coincident"]
["ED_MDU541_05956",null,null,"Half hour time period MD occurred",null,"Non-Coincident"]
["ED_MDU541_05957",null,null,null,null,"Coincident"]
["ED_MDU541_05958",null,null,"Winter/Summer Peaking",null,"Non-Coincident"]
["ED_MDU541_05959",null,null,null,null,"Coincident"]
["ED_MDU541_05960",null,null,"Adjustments - Embedded generation","MW","Non-Coincident"]
["ED_MDU541_05961",null,null,null,null,"Coincident"]
["ED_MDU541_05962",null,null,"Weather Corrected MD 10% POE","MW","Non-Coincident"]
["ED_MDU541_05963",null,null,null,null,"Coincident"]
["ED_MDU541_05964",null,null,"Weather Corrected MD 10% POE","MVA","Non-Coincident"]
["ED_MDU541_05965",null,null,null,null,"Coincident"]
["ED_MDU541_05966",null,null,"Weather Corrected MD 50% POE","MW","Non-Coincident"]
["ED_MDU541_05967",null,null,null,null,"Coincident"]
["ED_MDU541_05968",null,null,"Weather Corrected MD 50% POE","MVA","Non-Coincident"]
["ED_MDU541_05969",null,null,null,null,"Coincident"]
["ED_MDU541_05970",null,"<Enter substation name>","Substation Rating","MVA","Non-Coincident"]
["ED_MDU541_05971",null,null,null,null,"Coincident"]
["ED_MDU541_05972",null,null,"Raw Adjusted MD","MW","Non-Coincident"]
["ED_MDU541_05973",null,null,null,null,"Coincident"]
["ED_MDU541_05974",null,null,"Raw Adjusted MD","MVA","Non-Coincident"]
["ED_MDU541_05975",null,null,null,null,"Coincident"]
["ED_MDU541_05976",null,null,"Date MD occurred",null,"Non-Coincident"]
["ED_MDU541_05977",null,null,null,null,"Coincident"]
["ED_MDU541_05978",null,null,"Half hour time period MD occurred",null,"Non-Coincident"]
["ED_MDU541_05979",null,null,null,null,"Coincident"]
["ED_MDU541_05980",null,null,"Winter/Summer Peaking",null,"Non-Coincident"]
["ED_MDU541_05981",null,null,null,null,"Coincident"]
["ED_MDU541_05982",null,null,"Adjustments - Embedded generation","MW","Non-Coincident"]
["ED_MDU541_05983",null,null,null,null,"Coincident"]
["ED_MDU541_05984",null,null,"Weather Corrected MD 10% POE","MW","Non-Coincident"]
["ED_MDU541_05985",null,null,null,null,"Coincident"]
["ED_MDU541_05986",null,null,"Weather Corrected MD 10% POE","MVA","Non-Coincident"]
["ED_MDU541_05987",null,null,null,null,"Coincident"]
["ED_MDU541_05988",null,null,"Weather Corrected MD 50% POE","MW","Non-Coincident"]
["ED_MDU541_05989",null,null,null,null,"Coincident"]
["ED_MDU541_05990",null,null,"Weather Corrected MD 50% POE","MVA","Non-Coincident"]
["ED_MDU541_05991",null,null,null,null,"Coincident"]
["ED_MDU541_05992",null,"<Enter substation name>","Substation Rating","MVA","Non-Coincident"]
["ED_MDU541_05993",null,null,null,null,"Coincident"]
["ED_MDU541_05994",null,null,"Raw Adjusted MD","MW","Non-Coincident"]
["ED_MDU541_05995",null,null,null,null,"Coincident"]
["ED_MDU541_05996",null,null,"Raw Adjusted MD","MVA","Non-Coincident"]
["ED_MDU541_05997",null,null,null,null,"Coincident"]
["ED_MDU541_05998",null,null,"Date MD occurred",null,"Non-Coincident"]
["ED_MDU541_05999",null,null,null,null,"Coincident"]
["ED_MDU541_06000",null,null,"Half hour time period MD occurred",null,"Non-Coincident"]
["ED_MDU541_06001",null,null,null,null,"Coincident"]
["ED_MDU541_06002",null,null,"Winter/Summer Peaking",null,"Non-Coincident"]
["ED_MDU541_06003",null,null,null,null,"Coincident"]
["ED_MDU541_06004",null,null,"Adjustments - Embedded generation","MW","Non-Coincident"]
["ED_MDU541_06005",null,null,null,null,"Coincident"]
["ED_MDU541_06006",null,null,"Weather Corrected MD 10% POE","MW","Non-Coincident"]
["ED_MDU541_06007",null,null,null,null,"Coincident"]
["ED_MDU541_06008",null,null,"Weather Corrected MD 10% POE","MVA","Non-Coincident"]
["ED_MDU541_06009",null,null,null,null,"Coincident"]
["ED_MDU541_06010",null,null,"Weather Corrected MD 50% POE","MW","Non-Coincident"]
["ED_MDU541_06011",null,null,null,null,"Coincident"]
["ED_MDU541_06012",null,null,"Weather Corrected MD 50% POE","MVA","Non-Coincident"]
["ED_MDU541_06013",null,null,null,null,"Coincident"]
["ED_MDU541_06014",null,"<Enter substation name>","Substation Rating","MVA","Non-Coincident"]
["ED_MDU541_06015",null,null,null,null,"Coincident"]
["ED_MDU541_06016",null,null,"Raw Adjusted MD","MW","Non-Coincident"]
["ED_MDU541_06017",null,null,null,null,"Coincident"]
["ED_MDU541_06018",null,null,"Raw Adjusted MD","MVA","Non-Coincident"]
["ED_MDU541_06019",null,null,null,null,"Coincident"]
["ED_MDU541_06020",null,null,"Date MD occurred",null,"Non-Coincident"]
["ED_MDU541_06021",null,null,null,null,"Coincident"]
["ED_MDU541_06022",null,null,"Half hour time period MD occurred",null,"Non-Coincident"]
["ED_MDU541_06023",null,null,null,null,"Coincident"]
["ED_MDU541_06024",null,null,"Winter/Summer Peaking",null,"Non-Coincident"]
["ED_MDU541_06025",null,null,null,null,"Coincident"]
["ED_MDU541_06026",null,null,"Adjustments - Embedded generation","MW","Non-Coincident"]
["ED_MDU541_06027",null,null,null,null,"Coincident"]
["ED_MDU541_06028",null,null,"Weather Corrected MD 10% POE","MW","Non-Coincident"]
["ED_MDU541_06029",null,null,null,null,"Coincident"]
["ED_MDU541_06030",null,null,"Weather Corrected MD 10% POE","MVA","Non-Coincident"]
["ED_MDU541_06031",null,null,null,null,"Coincident"]
["ED_MDU541_06032",null,null,"Weather Corrected MD 50% POE","MW","Non-Coincident"]
["ED_MDU541_06033",null,null,null,null,"Coincident"]
["ED_MDU541_06034",null,null,"Weather Corrected MD 50% POE","MVA","Non-Coincident"]
["ED_MDU541_06035",null,null,null,null,"Coincident"]
["ED_MDU541_06036",null,"<Enter substation name>","Substation Rating","MVA","Non-Coincident"]
["ED_MDU541_06037",null,null,null,null,"Coincident"]
["ED_MDU541_06038",null,null,"Raw Adjusted MD","MW","Non-Coincident"]
["ED_MDU541_06039",null,null,null,null,"Coincident"]
["ED_MDU541_06040",null,null,"Raw Adjusted MD","MVA","Non-Coincident"]
["ED_MDU541_06041",null,null,null,null,"Coincident"]
["ED_MDU541_06042",null,null,"Date MD occurred",null,"Non-Coincident"]
["ED_MDU541_06043",null,null,null,null,"Coincident"]
["ED_MDU541_06044",null,null,"Half hour time period MD occurred",null,"Non-Coincident"]
["ED_MDU541_06045",null,null,null,null,"Coincident"]
["ED_MDU541_06046",null,null,"Winter/Summer Peaking",null,"Non-Coincident"]
["ED_MDU541_06047",null,null,null,null,"Coincident"]
["ED_MDU541_06048",null,null,"Adjustments - Embedded generation","MW","Non-Coincident"]
["ED_MDU541_06049",null,null,null,null,"Coincident"]
["ED_MDU541_06050",null,null,"Weather Corrected MD 10% POE","MW","Non-Coincident"]
["ED_MDU541_06051",null,null,null,null,"Coincident"]
["ED_MDU541_06052",null,null,"Weather Corrected MD 10% POE","MVA","Non-Coincident"]
["ED_MDU541_06053",null,null,null,null,"Coincident"]
["ED_MDU541_06054",null,null,"Weather Corrected MD 50% POE","MW","Non-Coincident"]
["ED_MDU541_06055",null,null,null,null,"Coincident"]
["ED_MDU541_06056",null,null,"Weather Corrected MD 50% POE","MVA","Non-Coincident"]
["ED_MDU541_06057",null,null,null,null,"Coincident"]
["ED_MDU541_06058",null,"<Enter substation name>","Substation Rating","MVA","Non-Coincident"]
["ED_MDU541_06059",null,null,null,null,"Coincident"]
["ED_MDU541_06060",null,null,"Raw Adjusted MD","MW","Non-Coincident"]
["ED_MDU541_06061",null,null,null,null,"Coincident"]
["ED_MDU541_06062",null,null,"Raw Adjusted MD","MVA","Non-Coincident"]
["ED_MDU541_06063",null,null,null,null,"Coincident"]
["ED_MDU541_06064",null,null,"Date MD occurred",null,"Non-Coincident"]
["ED_MDU541_06065",null,null,null,null,"Coincident"]
["ED_MDU541_06066",null,null,"Half hour time period MD occurred",null,"Non-Coincident"]
["ED_MDU541_06067",null,null,null,null,"Coincident"]
["ED_MDU541_06068",null,null,"Winter/Summer Peaking",null,"Non-Coincident"]
["ED_MDU541_06069",null,null,null,null,"Coincident"]
["ED_MDU541_06070",null,null,"Adjustments - Embedded generation","MW","Non-Coincident"]
["ED_MDU541_06071",null,null,null,null,"Coincident"]
["ED_MDU541_06072",null,null,"Weather Corrected MD 10% POE","MW","Non-Coincident"]
["ED_MDU541_06073",null,null,null,null,"Coincident"]
["ED_MDU541_06074",null,null,"Weather Corrected MD 10% POE","MVA","Non-Coincident"]
["ED_MDU541_06075",null,null,null,null,"Coincident"]
["ED_MDU541_06076",null,null,"Weather Corrected MD 50% POE","MW","Non-Coincident"]
["ED_MDU541_06077",null,null,null,null,"Coincident"]
["ED_MDU541_06078",null,null,"Weather Corrected MD 50% POE","MVA","Non-Coincident"]
["ED_MDU541_06079",null,null,null,null,"Coincident"]
["ED_MDU541_06080",null,"<Enter substation name>","Substation Rating","MVA","Non-Coincident"]
["ED_MDU541_06081",null,null,null,null,"Coincident"]
["ED_MDU541_06082",null,null,"Raw Adjusted MD","MW","Non-Coincident"]
["ED_MDU541_06083",null,null,null,null,"Coincident"]
["ED_MDU541_06084",null,null,"Raw Adjusted MD","MVA","Non-Coincident"]
["ED_MDU541_06085",null,null,null,null,"Coincident"]
["ED_MDU541_06086",null,null,"Date MD occurred",null,"Non-Coincident"]
["ED_MDU541_06087",null,null,null,null,"Coincident"]
["ED_MDU541_06088",null,null,"Half hour time period MD occurred",null,"Non-Coincident"]
["ED_MDU541_06089",null,null,null,null,"Coincident"]
["ED_MDU541_06090",null,null,"Winter/Summer Peaking",null,"Non-Coincident"]
["ED_MDU541_06091",null,null,null,null,"Coincident"]
["ED_MDU541_06092",null,null,"Adjustments - Embedded generation","MW","Non-Coincident"]
["ED_MDU541_06093",null,null,null,null,"Coincident"]
["ED_MDU541_06094",null,null,"Weather Corrected MD 10% POE","MW","Non-Coincident"]
["ED_MDU541_06095",null,null,null,null,"Coincident"]
["ED_MDU541_06096",null,null,"Weather Corrected MD 10% POE","MVA","Non-Coincident"]
["ED_MDU541_06097",null,null,null,null,"Coincident"]
["ED_MDU541_06098",null,null,"Weather Corrected MD 50% POE","MW","Non-Coincident"]
["ED_MDU541_06099",null,null,null,null,"Coincident"]
["ED_MDU541_06100",null,null,"Weather Corrected MD 50% POE","MVA","Non-Coincident"]
["ED_MDU541_06101",null,null,null,null,"Coincident"]
["ED_MDU541_06102",null,"<Enter substation name>","Substation Rating","MVA","Non-Coincident"]
["ED_MDU541_06103",null,null,null,null,"Coincident"]
["ED_MDU541_06104",null,null,"Raw Adjusted MD","MW","Non-Coincident"]
["ED_MDU541_06105",null,null,null,null,"Coincident"]
["ED_MDU541_06106",null,null,"Raw Adjusted MD","MVA","Non-Coincident"]
["ED_MDU541_06107",null,null,null,null,"Coincident"]
["ED_MDU541_06108",null,null,"Date MD occurred",null,"Non-Coincident"]
["ED_MDU541_06109",null,null,null,null,"Coincident"]
["ED_MDU541_06110",null,null,"Half hour time period MD occurred",null,"Non-Coincident"]
["ED_MDU541_06111",null,null,null,null,"Coincident"]
["ED_MDU541_06112",null,null,"Winter/Summer Peaking",null,"Non-Coincident"]
["ED_MDU541_06113",null,null,null,null,"Coincident"]
["ED_MDU541_06114",null,null,"Adjustments - Embedded generation","MW","Non-Coincident"]
["ED_MDU541_06115",null,null,null,null,"Coincident"]
["ED_MDU541_06116",null,null,"Weather Corrected MD 10% POE","MW","Non-Coincident"]
["ED_MDU541_06117",null,null,null,null,"Coincident"]
["ED_MDU541_06118",null,null,"Weather Corrected MD 10% POE","MVA","Non-Coincident"]
["ED_MDU541_06119",null,null,null,null,"Coincident"]
["ED_MDU541_06120",null,null,"Weather Corrected MD 50% POE","MW","Non-Coincident"]
["ED_MDU541_06121",null,null,null,null,"Coincident"]
["ED_MDU541_06122",null,null,"Weather Corrected MD 50% POE","MVA","Non-Coincident"]
["ED_MDU541_06123",null,null,null,null,"Coincident"]
["ED_MDU541_06124",null,"<Enter substation name>","Substation Rating","MVA","Non-Coincident"]
["ED_MDU541_06125",null,null,null,null,"Coincident"]
["ED_MDU541_06126",null,null,"Raw Adjusted MD","MW","Non-Coincident"]
["ED_MDU541_06127",null,null,null,null,"Coincident"]
["ED_MDU541_06128",null,null,"Raw Adjusted MD","MVA","Non-Coincident"]
["ED_MDU541_06129",null,null,null,null,"Coincident"]
["ED_MDU541_06130",null,null,"Date MD occurred",null,"Non-Coincident"]
["ED_MDU541_06131",null,null,null,null,"Coincident"]
["ED_MDU541_06132",null,null,"Half hour time period MD occurred",null,"Non-Coincident"]
["ED_MDU541_06133",null,null,null,null,"Coincident"]
["ED_MDU541_06134",null,null,"Winter/Summer Peaking",null,"Non-Coincident"]
["ED_MDU541_06135",null,null,null,null,"Coincident"]
["ED_MDU541_06136",null,null,"Adjustments - Embedded generation","MW","Non-Coincident"]
["ED_MDU541_06137",null,null,null,null,"Coincident"]
["ED_MDU541_06138",null,null,"Weather Corrected MD 10% POE","MW","Non-Coincident"]
["ED_MDU541_06139",null,null,null,null,"Coincident"]
["ED_MDU541_06140",null,null,"Weather Corrected MD 10% POE","MVA","Non-Coincident"]
["ED_MDU541_06141",null,null,null,null,"Coincident"]
["ED_MDU541_06142",null,null,"Weather Corrected MD 50% POE","MW","Non-Coincident"]
["ED_MDU541_06143",null,null,null,null,"Coincident"]
["ED_MDU541_06144",null,null,"Weather Corrected MD 50% POE","MVA","Non-Coincident"]
["ED_MDU541_06145",null,null,null,null,"Coincident"]
["ED_MDU541_06146",null,"<Enter substation name>","Substation Rating","MVA","Non-Coincident"]
["ED_MDU541_06147",null,null,null,null,"Coincident"]
["ED_MDU541_06148",null,null,"Raw Adjusted MD","MW","Non-Coincident"]
["ED_MDU541_06149",null,null,null,null,"Coincident"]
["ED_MDU541_06150",null,null,"Raw Adjusted MD","MVA","Non-Coincident"]
["ED_MDU541_06151",null,null,null,null,"Coincident"]
["ED_MDU541_06152",null,null,"Date MD occurred",null,"Non-Coincident"]
["ED_MDU541_06153",null,null,null,null,"Coincident"]
["ED_MDU541_06154",null,null,"Half hour time period MD occurred",null,"Non-Coincident"]
["ED_MDU541_06155",null,null,null,null,"Coincident"]
["ED_MDU541_06156",null,null,"Winter/Summer Peaking",null,"Non-Coincident"]
["ED_MDU541_06157",null,null,null,null,"Coincident"]
["ED_MDU541_06158",null,null,"Adjustments - Embedded generation","MW","Non-Coincident"]
["ED_MDU541_06159",null,null,null,null,"Coincident"]
["ED_MDU541_06160",null,null,"Weather Corrected MD 10% POE","MW","Non-Coincident"]
["ED_MDU541_06161",null,null,null,null,"Coincident"]
["ED_MDU541_06162",null,null,"Weather Corrected MD 10% POE","MVA","Non-Coincident"]
["ED_MDU541_06163",null,null,null,null,"Coincident"]
["ED_MDU541_06164",null,null,"Weather Corrected MD 50% POE","MW","Non-Coincident"]
["ED_MDU541_06165",null,null,null,null,"Coincident"]
["ED_MDU541_06166",null,null,"Weather Corrected MD 50% POE","MVA","Non-Coincident"]
["ED_MDU541_06167",null,null,null,null,"Coincident"]
["ED_MDU541_06168",null,"<Enter substation name>","Substation Rating","MVA","Non-Coincident"]
["ED_MDU541_06169",null,null,null,null,"Coincident"]
["ED_MDU541_06170",null,null,"Raw Adjusted MD","MW","Non-Coincident"]
["ED_MDU541_06171",null,null,null,null,"Coincident"]
["ED_MDU541_06172",null,null,"Raw Adjusted MD","MVA","Non-Coincident"]
["ED_MDU541_06173",null,null,null,null,"Coincident"]
["ED_MDU541_06174",null,null,"Date MD occurred",null,"Non-Coincident"]
["ED_MDU541_06175",null,null,null,null,"Coincident"]
["ED_MDU541_06176",null,null,"Half hour time period MD occurred",null,"Non-Coincident"]
["ED_MDU541_06177",null,null,null,null,"Coincident"]
["ED_MDU541_06178",null,null,"Winter/Summer Peaking",null,"Non-Coincident"]
["ED_MDU541_06179",null,null,null,null,"Coincident"]
["ED_MDU541_06180",null,null,"Adjustments - Embedded generation","MW","Non-Coincident"]
["ED_MDU541_06181",null,null,null,null,"Coincident"]
["ED_MDU541_06182",null,null,"Weather Corrected MD 10% POE","MW","Non-Coincident"]
["ED_MDU541_06183",null,null,null,null,"Coincident"]
["ED_MDU541_06184",null,null,"Weather Corrected MD 10% POE","MVA","Non-Coincident"]
["ED_MDU541_06185",null,null,null,null,"Coincident"]
["ED_MDU541_06186",null,null,"Weather Corrected MD 50% POE","MW","Non-Coincident"]
["ED_MDU541_06187",null,null,null,null,"Coincident"]
["ED_MDU541_06188",null,null,"Weather Corrected MD 50% POE","MVA","Non-Coincident"]
["ED_MDU541_06189",null,null,null,null,"Coincident"]
["ED_MDU541_06190",null,"<Enter substation name>","Substation Rating","MVA","Non-Coincident"]
["ED_MDU541_06191",null,null,null,null,"Coincident"]
["ED_MDU541_06192",null,null,"Raw Adjusted MD","MW","Non-Coincident"]
["ED_MDU541_06193",null,null,null,null,"Coincident"]
["ED_MDU541_06194",null,null,"Raw Adjusted MD","MVA","Non-Coincident"]
["ED_MDU541_06195",null,null,null,null,"Coincident"]
["ED_MDU541_06196",null,null,"Date MD occurred",null,"Non-Coincident"]
["ED_MDU541_06197",null,null,null,null,"Coincident"]
["ED_MDU541_06198",null,null,"Half hour time period MD occurred",null,"Non-Coincident"]
["ED_MDU541_06199",null,null,null,null,"Coincident"]
["ED_MDU541_06200",null,null,"Winter/Summer Peaking",null,"Non-Coincident"]
["ED_MDU541_06201",null,null,null,null,"Coincident"]
["ED_MDU541_06202",null,null,"Adjustments - Embedded generation","MW","Non-Coincident"]
["ED_MDU541_06203",null,null,null,null,"Coincident"]
["ED_MDU541_06204",null,null,"Weather Corrected MD 10% POE","MW","Non-Coincident"]
["ED_MDU541_06205",null,null,null,null,"Coincident"]
["ED_MDU541_06206",null,null,"Weather Corrected MD 10% POE","MVA","Non-Coincident"]
["ED_MDU541_06207",null,null,null,null,"Coincident"]
["ED_MDU541_06208",null,null,"Weather Corrected MD 50% POE","MW","Non-Coincident"]
["ED_MDU541_06209",null,null,null,null,"Coincident"]
["ED_MDU541_06210",null,null,"Weather Corrected MD 50% POE","MVA","Non-Coincident"]
["ED_MDU541_06211",null,null,null,null,"Coincident"]
["ED_MDU541_06212",null,"<Enter substation name>","Substation Rating","MVA","Non-Coincident"]
["ED_MDU541_06213",null,null,null,null,"Coincident"]
["ED_MDU541_06214",null,null,"Raw Adjusted MD","MW","Non-Coincident"]
["ED_MDU541_06215",null,null,null,null,"Coincident"]
["ED_MDU541_06216",null,null,"Raw Adjusted MD","MVA","Non-Coincident"]
["ED_MDU541_06217",null,null,null,null,"Coincident"]
["ED_MDU541_06218",null,null,"Date MD occurred",null,"Non-Coincident"]
["ED_MDU541_06219",null,null,null,null,"Coincident"]
["ED_MDU541_06220",null,null,"Half hour time period MD occurred",null,"Non-Coincident"]
["ED_MDU541_06221",null,null,null,null,"Coincident"]
["ED_MDU541_06222",null,null,"Winter/Summer Peaking",null,"Non-Coincident"]
["ED_MDU541_06223",null,null,null,null,"Coincident"]
["ED_MDU541_06224",null,null,"Adjustments - Embedded generation","MW","Non-Coincident"]
["ED_MDU541_06225",null,null,null,null,"Coincident"]
["ED_MDU541_06226",null,null,"Weather Corrected MD 10% POE","MW","Non-Coincident"]
["ED_MDU541_06227",null,null,null,null,"Coincident"]
["ED_MDU541_06228",null,null,"Weather Corrected MD 10% POE","MVA","Non-Coincident"]
["ED_MDU541_06229",null,null,null,null,"Coincident"]
["ED_MDU541_06230",null,null,"Weather Corrected MD 50% POE","MW","Non-Coincident"]
["ED_MDU541_06231",null,null,null,null,"Coincident"]
["ED_MDU541_06232",null,null,"Weather Corrected MD 50% POE","MVA","Non-Coincident"]
["ED_MDU541_06233",null,null,null,null,"Coincident"]
["ED_MDU541_06234",null,"<Enter substation name>","Substation Rating","MVA","Non-Coincident"]
["ED_MDU541_06235",null,null,null,null,"Coincident"]
["ED_MDU541_06236",null,null,"Raw Adjusted MD","MW","Non-Coincident"]
["ED_MDU541_06237",null,null,null,null,"Coincident"]
["ED_MDU541_06238",null,null,"Raw Adjusted MD","MVA","Non-Coincident"]
["ED_MDU541_06239",null,null,null,null,"Coincident"]
["ED_MDU541_06240",null,null,"Date MD occurred",null,"Non-Coincident"]
["ED_MDU541_06241",null,null,null,null,"Coincident"]
["ED_MDU541_06242",null,null,"Half hour time period MD occurred",null,"Non-Coincident"]
["ED_MDU541_06243",null,null,null,null,"Coincident"]
["ED_MDU541_06244",null,null,"Winter/Summer Peaking",null,"Non-Coincident"]
["ED_MDU541_06245",null,null,null,null,"Coincident"]
["ED_MDU541_06246",null,null,"Adjustments - Embedded generation","MW","Non-Coincident"]
["ED_MDU541_06247",null,null,null,null,"Coincident"]
["ED_MDU541_06248",null,null,"Weather Corrected MD 10% POE","MW","Non-Coincident"]
["ED_MDU541_06249",null,null,null,null,"Coincident"]
["ED_MDU541_06250",null,null,"Weather Corrected MD 10% POE","MVA","Non-Coincident"]
["ED_MDU541_06251",null,null,null,null,"Coincident"]
["ED_MDU541_06252",null,null,"Weather Corrected MD 50% POE","MW","Non-Coincident"]
["ED_MDU541_06253",null,null,null,null,"Coincident"]
["ED_MDU541_06254",null,null,"Weather Corrected MD 50% POE","MVA","Non-Coincident"]
["ED_MDU541_06255",null,null,null,null,"Coincident"]
["ED_MDU541_06256",null,"<Enter substation name>","Substation Rating","MVA","Non-Coincident"]
["ED_MDU541_06257",null,null,null,null,"Coincident"]
["ED_MDU541_06258",null,null,"Raw Adjusted MD","MW","Non-Coincident"]
["ED_MDU541_06259",null,null,null,null,"Coincident"]
["ED_MDU541_06260",null,null,"Raw Adjusted MD","MVA","Non-Coincident"]
["ED_MDU541_06261",null,null,null,null,"Coincident"]
["ED_MDU541_06262",null,null,"Date MD occurred",null,"Non-Coincident"]
["ED_MDU541_06263",null,null,null,null,"Coincident"]
["ED_MDU541_06264",null,null,"Half hour time period MD occurred",null,"Non-Coincident"]
["ED_MDU541_06265",null,null,null,null,"Coincident"]
["ED_MDU541_06266",null,null,"Winter/Summer Peaking",null,"Non-Coincident"]
["ED_MDU541_06267",null,null,null,null,"Coincident"]
["ED_MDU541_06268",null,null,"Adjustments - Embedded generation","MW","Non-Coincident"]
["ED_MDU541_06269",null,null,null,null,"Coincident"]
["ED_MDU541_06270",null,null,"Weather Corrected MD 10% POE","MW","Non-Coincident"]
["ED_MDU541_06271",null,null,null,null,"Coincident"]
["ED_MDU541_06272",null,null,"Weather Corrected MD 10% POE","MVA","Non-Coincident"]
["ED_MDU541_06273",null,null,null,null,"Coincident"]
["ED_MDU541_06274",null,null,"Weather Corrected MD 50% POE","MW","Non-Coincident"]
["ED_MDU541_06275",null,null,null,null,"Coincident"]
["ED_MDU541_06276",null,null,"Weather Corrected MD 50% POE","MVA","Non-Coincident"]
["ED_MDU541_06277",null,null,null,null,"Coincident"]
["ED_MDU541_06278",null,"<Enter substation name>","Substation Rating","MVA","Non-Coincident"]
["ED_MDU541_06279",null,null,null,null,"Coincident"]
["ED_MDU541_06280",null,null,"Raw Adjusted MD","MW","Non-Coincident"]
["ED_MDU541_06281",null,null,null,null,"Coincident"]
["ED_MDU541_06282",null,null,"Raw Adjusted MD","MVA","Non-Coincident"]
["ED_MDU541_06283",null,null,null,null,"Coincident"]
["ED_MDU541_06284",null,null,"Date MD occurred",null,"Non-Coincident"]
["ED_MDU541_06285",null,null,null,null,"Coincident"]
["ED_MDU541_06286",null,null,"Half hour time period MD occurred",null,"Non-Coincident"]
["ED_MDU541_06287",null,null,null,null,"Coincident"]
["ED_MDU541_06288",null,null,"Winter/Summer Peaking",null,"Non-Coincident"]
["ED_MDU541_06289",null,null,null,null,"Coincident"]
["ED_MDU541_06290",null,null,"Adjustments - Embedded generation","MW","Non-Coincident"]
["ED_MDU541_06291",null,null,null,null,"Coincident"]
["ED_MDU541_06292",null,null,"Weather Corrected MD 10% POE","MW","Non-Coincident"]
["ED_MDU541_06293",null,null,null,null,"Coincident"]
["ED_MDU541_06294",null,null,"Weather Corrected MD 10% POE","MVA","Non-Coincident"]
["ED_MDU541_06295",null,null,null,null,"Coincident"]
["ED_MDU541_06296",null,null,"Weather Corrected MD 50% POE","MW","Non-Coincident"]
["ED_MDU541_06297",null,null,null,null,"Coincident"]
["ED_MDU541_06298",null,null,"Weather Corrected MD 50% POE","MVA","Non-Coincident"]
["ED_MDU541_06299",null,null,null,null,"Coincident"]
["ED_MDU541_06300",null,"<Enter substation name>","Substation Rating","MVA","Non-Coincident"]
["ED_MDU541_06301",null,null,null,null,"Coincident"]
["ED_MDU541_06302",null,null,"Raw Adjusted MD","MW","Non-Coincident"]
["ED_MDU541_06303",null,null,null,null,"Coincident"]
["ED_MDU541_06304",null,null,"Raw Adjusted MD","MVA","Non-Coincident"]
["ED_MDU541_06305",null,null,null,null,"Coincident"]
["ED_MDU541_06306",null,null,"Date MD occurred",null,"Non-Coincident"]
["ED_MDU541_06307",null,null,null,null,"Coincident"]
["ED_MDU541_06308",null,null,"Half hour time period MD occurred",null,"Non-Coincident"]
["ED_MDU541_06309",null,null,null,null,"Coincident"]
["ED_MDU541_06310",null,null,"Winter/Summer Peaking",null,"Non-Coincident"]
["ED_MDU541_06311",null,null,null,null,"Coincident"]
["ED_MDU541_06312",null,null,"Adjustments - Embedded generation","MW","Non-Coincident"]
["ED_MDU541_06313",null,null,null,null,"Coincident"]
["ED_MDU541_06314",null,null,"Weather Corrected MD 10% POE","MW","Non-Coincident"]
["ED_MDU541_06315",null,null,null,null,"Coincident"]
["ED_MDU541_06316",null,null,"Weather Corrected MD 10% POE","MVA","Non-Coincident"]
["ED_MDU541_06317",null,null,null,null,"Coincident"]
["ED_MDU541_06318",null,null,"Weather Corrected MD 50% POE","MW","Non-Coincident"]
["ED_MDU541_06319",null,null,null,null,"Coincident"]
["ED_MDU541_06320",null,null,"Weather Corrected MD 50% POE","MVA","Non-Coincident"]
["ED_MDU541_06321",null,null,null,null,"Coincident"]
["ED_MDU541_06322",null,"<Enter substation name>","Substation Rating","MVA","Non-Coincident"]
["ED_MDU541_06323",null,null,null,null,"Coincident"]
["ED_MDU541_06324",null,null,"Raw Adjusted MD","MW","Non-Coincident"]
["ED_MDU541_06325",null,null,null,null,"Coincident"]
["ED_MDU541_06326",null,null,"Raw Adjusted MD","MVA","Non-Coincident"]
["ED_MDU541_06327",null,null,null,null,"Coincident"]
["ED_MDU541_06328",null,null,"Date MD occurred",null,"Non-Coincident"]
["ED_MDU541_06329",null,null,null,null,"Coincident"]
["ED_MDU541_06330",null,null,"Half hour time period MD occurred",null,"Non-Coincident"]
["ED_MDU541_06331",null,null,null,null,"Coincident"]
["ED_MDU541_06332",null,null,"Winter/Summer Peaking",null,"Non-Coincident"]
["ED_MDU541_06333",null,null,null,null,"Coincident"]
["ED_MDU541_06334",null,null,"Adjustments - Embedded generation","MW","Non-Coincident"]
["ED_MDU541_06335",null,null,null,null,"Coincident"]
["ED_MDU541_06336",null,null,"Weather Corrected MD 10% POE","MW","Non-Coincident"]
["ED_MDU541_06337",null,null,null,null,"Coincident"]
["ED_MDU541_06338",null,null,"Weather Corrected MD 10% POE","MVA","Non-Coincident"]
["ED_MDU541_06339",null,null,null,null,"Coincident"]
["ED_MDU541_06340",null,null,"Weather Corrected MD 50% POE","MW","Non-Coincident"]
["ED_MDU541_06341",null,null,null,null,"Coincident"]
["ED_MDU541_06342",null,null,"Weather Corrected MD 50% POE","MVA","Non-Coincident"]
["ED_MDU541_06343",null,null,null,null,"Coincident"]
["ED_MDU541_06344",null,"<Enter substation name>","Substation Rating","MVA","Non-Coincident"]
["ED_MDU541_06345",null,null,null,null,"Coincident"]
["ED_MDU541_06346",null,null,"Raw Adjusted MD","MW","Non-Coincident"]
["ED_MDU541_06347",null,null,null,null,"Coincident"]
["ED_MDU541_06348",null,null,"Raw Adjusted MD","MVA","Non-Coincident"]
["ED_MDU541_06349",null,null,null,null,"Coincident"]
["ED_MDU541_06350",null,null,"Date MD occurred",null,"Non-Coincident"]
["ED_MDU541_06351",null,null,null,null,"Coincident"]
["ED_MDU541_06352",null,null,"Half hour time period MD occurred",null,"Non-Coincident"]
["ED_MDU541_06353",null,null,null,null,"Coincident"]
["ED_MDU541_06354",null,null,"Winter/Summer Peaking",null,"Non-Coincident"]
["ED_MDU541_06355",null,null,null,null,"Coincident"]
["ED_MDU541_06356",null,null,"Adjustments - Embedded generation","MW","Non-Coincident"]
["ED_MDU541_06357",null,null,null,null,"Coincident"]
["ED_MDU541_06358",null,null,"Weather Corrected MD 10% POE","MW","Non-Coincident"]
["ED_MDU541_06359",null,null,null,null,"Coincident"]
["ED_MDU541_06360",null,null,"Weather Corrected MD 10% POE","MVA","Non-Coincident"]
["ED_MDU541_06361",null,null,null,null,"Coincident"]
["ED_MDU541_06362",null,null,"Weather Corrected MD 50% POE","MW","Non-Coincident"]
["ED_MDU541_06363",null,null,null,null,"Coincident"]
["ED_MDU541_06364",null,null,"Weather Corrected MD 50% POE","MVA","Non-Coincident"]
["ED_MDU541_06365",null,null,null,null,"Coincident"]
["ED_MDU541_06366",null,"<Enter substation name>","Substation Rating","MVA","Non-Coincident"]
["ED_MDU541_06367",null,null,null,null,"Coincident"]
["ED_MDU541_06368",null,null,"Raw Adjusted MD","MW","Non-Coincident"]
["ED_MDU541_06369",null,null,null,null,"Coincident"]
["ED_MDU541_06370",null,null,"Raw Adjusted MD","MVA","Non-Coincident"]
["ED_MDU541_06371",null,null,null,null,"Coincident"]
["ED_MDU541_06372",null,null,"Date MD occurred",null,"Non-Coincident"]
["ED_MDU541_06373",null,null,null,null,"Coincident"]
["ED_MDU541_06374",null,null,"Half hour time period MD occurred",null,"Non-Coincident"]
["ED_MDU541_06375",null,null,null,null,"Coincident"]
["ED_MDU541_06376",null,null,"Winter/Summer Peaking",null,"Non-Coincident"]
["ED_MDU541_06377",null,null,null,null,"Coincident"]
["ED_MDU541_06378",null,null,"Adjustments - Embedded generation","MW","Non-Coincident"]
["ED_MDU541_06379",null,null,null,null,"Coincident"]
["ED_MDU541_06380",null,null,"Weather Corrected MD 10% POE","MW","Non-Coincident"]
["ED_MDU541_06381",null,null,null,null,"Coincident"]
["ED_MDU541_06382",null,null,"Weather Corrected MD 10% POE","MVA","Non-Coincident"]
["ED_MDU541_06383",null,null,null,null,"Coincident"]
["ED_MDU541_06384",null,null,"Weather Corrected MD 50% POE","MW","Non-Coincident"]
["ED_MDU541_06385",null,null,null,null,"Coincident"]
["ED_MDU541_06386",null,null,"Weather Corrected MD 50% POE","MVA","Non-Coincident"]
["ED_MDU541_06387",null,null,null,null,"Coincident"]
["ED_MDU541_06388",null,"<Enter substation name>","Substation Rating","MVA","Non-Coincident"]
["ED_MDU541_06389",null,null,null,null,"Coincident"]
["ED_MDU541_06390",null,null,"Raw Adjusted MD","MW","Non-Coincident"]
["ED_MDU541_06391",null,null,null,null,"Coincident"]
["ED_MDU541_06392",null,null,"Raw Adjusted MD","MVA","Non-Coincident"]
["ED_MDU541_06393",null,null,null,null,"Coincident"]
["ED_MDU541_06394",null,null,"Date MD occurred",null,"Non-Coincident"]
["ED_MDU541_06395",null,null,null,null,"Coincident"]
["ED_MDU541_06396",null,null,"Half hour time period MD occurred",null,"Non-Coincident"]
["ED_MDU541_06397",null,null,null,null,"Coincident"]
["ED_MDU541_06398",null,null,"Winter/Summer Peaking",null,"Non-Coincident"]
["ED_MDU541_06399",null,null,null,null,"Coincident"]
["ED_MDU541_06400",null,null,"Adjustments - Embedded generation","MW","Non-Coincident"]
["ED_MDU541_06401",null,null,null,null,"Coincident"]
["ED_MDU541_06402",null,null,"Weather Corrected MD 10% POE","MW","Non-Coincident"]
["ED_MDU541_06403",null,null,null,null,"Coincident"]
["ED_MDU541_06404",null,null,"Weather Corrected MD 10% POE","MVA","Non-Coincident"]
["ED_MDU541_06405",null,null,null,null,"Coincident"]
["ED_MDU541_06406",null,null,"Weather Corrected MD 50% POE","MW","Non-Coincident"]
["ED_MDU541_06407",null,null,null,null,"Coincident"]
["ED_MDU541_06408",null,null,"Weather Corrected MD 50% POE","MVA","Non-Coincident"]
["ED_MDU541_06409",null,null,null,null,"Coincident"]
["ED_MDU541_06410",null,"<Enter substation name>","Substation Rating","MVA","Non-Coincident"]
["ED_MDU541_06411",null,null,null,null,"Coincident"]
["ED_MDU541_06412",null,null,"Raw Adjusted MD","MW","Non-Coincident"]
["ED_MDU541_06413",null,null,null,null,"Coincident"]
["ED_MDU541_06414",null,null,"Raw Adjusted MD","MVA","Non-Coincident"]
["ED_MDU541_06415",null,null,null,null,"Coincident"]
["ED_MDU541_06416",null,null,"Date MD occurred",null,"Non-Coincident"]
["ED_MDU541_06417",null,null,null,null,"Coincident"]
["ED_MDU541_06418",null,null,"Half hour time period MD occurred",null,"Non-Coincident"]
["ED_MDU541_06419",null,null,null,null,"Coincident"]
["ED_MDU541_06420",null,null,"Winter/Summer Peaking",null,"Non-Coincident"]
["ED_MDU541_06421",null,null,null,null,"Coincident"]
["ED_MDU541_06422",null,null,"Adjustments - Embedded generation","MW","Non-Coincident"]
["ED_MDU541_06423",null,null,null,null,"Coincident"]
["ED_MDU541_06424",null,null,"Weather Corrected MD 10% POE","MW","Non-Coincident"]
["ED_MDU541_06425",null,null,null,null,"Coincident"]
["ED_MDU541_06426",null,null,"Weather Corrected MD 10% POE","MVA","Non-Coincident"]
["ED_MDU541_06427",null,null,null,null,"Coincident"]
["ED_MDU541_06428",null,null,"Weather Corrected MD 50% POE","MW","Non-Coincident"]
["ED_MDU541_06429",null,null,null,null,"Coincident"]
["ED_MDU541_06430",null,null,"Weather Corrected MD 50% POE","MVA","Non-Coincident"]
["ED_MDU541_06431",null,null,null,null,"Coincident"]
["ED_MDU541_06432",null,"<Enter substation name>","Substation Rating","MVA","Non-Coincident"]
["ED_MDU541_06433",null,null,null,null,"Coincident"]
["ED_MDU541_06434",null,null,"Raw Adjusted MD","MW","Non-Coincident"]
["ED_MDU541_06435",null,null,null,null,"Coincident"]
["ED_MDU541_06436",null,null,"Raw Adjusted MD","MVA","Non-Coincident"]
["ED_MDU541_06437",null,null,null,null,"Coincident"]
["ED_MDU541_06438",null,null,"Date MD occurred",null,"Non-Coincident"]
["ED_MDU541_06439",null,null,null,null,"Coincident"]
["ED_MDU541_06440",null,null,"Half hour time period MD occurred",null,"Non-Coincident"]
["ED_MDU541_06441",null,null,null,null,"Coincident"]
["ED_MDU541_06442",null,null,"Winter/Summer Peaking",null,"Non-Coincident"]
["ED_MDU541_06443",null,null,null,null,"Coincident"]
["ED_MDU541_06444",null,null,"Adjustments - Embedded generation","MW","Non-Coincident"]
["ED_MDU541_06445",null,null,null,null,"Coincident"]
["ED_MDU541_06446",null,null,"Weather Corrected MD 10% POE","MW","Non-Coincident"]
["ED_MDU541_06447",null,null,null,null,"Coincident"]
["ED_MDU541_06448",null,null,"Weather Corrected MD 10% POE","MVA","Non-Coincident"]
["ED_MDU541_06449",null,null,null,null,"Coincident"]
["ED_MDU541_06450",null,null,"Weather Corrected MD 50% POE","MW","Non-Coincident"]
["ED_MDU541_06451",null,null,null,null,"Coincident"]
["ED_MDU541_06452",null,null,"Weather Corrected MD 50% POE","MVA","Non-Coincident"]
["ED_MDU541_06453",null,null,null,null,"Coincident"]
["ED_MDU541_06454",null,"<Enter substation name>","Substation Rating","MVA","Non-Coincident"]
["ED_MDU541_06455",null,null,null,null,"Coincident"]
["ED_MDU541_06456",null,null,"Raw Adjusted MD","MW","Non-Coincident"]
["ED_MDU541_06457",null,null,null,null,"Coincident"]
["ED_MDU541_06458",null,null,"Raw Adjusted MD","MVA","Non-Coincident"]
["ED_MDU541_06459",null,null,null,null,"Coincident"]
["ED_MDU541_06460",null,null,"Date MD occurred",null,"Non-Coincident"]
["ED_MDU541_06461",null,null,null,null,"Coincident"]
["ED_MDU541_06462",null,null,"Half hour time period MD occurred",null,"Non-Coincident"]
["ED_MDU541_06463",null,null,null,null,"Coincident"]
["ED_MDU541_06464",null,null,"Winter/Summer Peaking",null,"Non-Coincident"]
["ED_MDU541_06465",null,null,null,null,"Coincident"]
["ED_MDU541_06466",null,null,"Adjustments - Embedded generation","MW","Non-Coincident"]
["ED_MDU541_06467",null,null,null,null,"Coincident"]
["ED_MDU541_06468",null,null,"Weather Corrected MD 10% POE","MW","Non-Coincident"]
["ED_MDU541_06469",null,null,null,null,"Coincident"]
["ED_MDU541_06470",null,null,"Weather Corrected MD 10% POE","MVA","Non-Coincident"]
["ED_MDU541_06471",null,null,null,null,"Coincident"]
["ED_MDU541_06472",null,null,"Weather Corrected MD 50% POE","MW","Non-Coincident"]
["ED_MDU541_06473",null,null,null,null,"Coincident"]
["ED_MDU541_06474",null,null,"Weather Corrected MD 50% POE","MVA","Non-Coincident"]
["ED_MDU541_06475",null,null,null,null,"Coincident"]
["ED_MDU541_06476",null,"<Enter substation name>","Substation Rating","MVA","Non-Coincident"]
["ED_MDU541_06477",null,null,null,null,"Coincident"]
["ED_MDU541_06478",null,null,"Raw Adjusted MD","MW","Non-Coincident"]
["ED_MDU541_06479",null,null,null,null,"Coincident"]
["ED_MDU541_06480",null,null,"Raw Adjusted MD","MVA","Non-Coincident"]
["ED_MDU541_06481",null,null,null,null,"Coincident"]
["ED_MDU541_06482",null,null,"Date MD occurred",null,"Non-Coincident"]
["ED_MDU541_06483",null,null,null,null,"Coincident"]
["ED_MDU541_06484",null,null,"Half hour time period MD occurred",null,"Non-Coincident"]
["ED_MDU541_06485",null,null,null,null,"Coincident"]
["ED_MDU541_06486",null,null,"Winter/Summer Peaking",null,"Non-Coincident"]
["ED_MDU541_06487",null,null,null,null,"Coincident"]
["ED_MDU541_06488",null,null,"Adjustments - Embedded generation","MW","Non-Coincident"]
["ED_MDU541_06489",null,null,null,null,"Coincident"]
["ED_MDU541_06490",null,null,"Weather Corrected MD 10% POE","MW","Non-Coincident"]
["ED_MDU541_06491",null,null,null,null,"Coincident"]
["ED_MDU541_06492",null,null,"Weather Corrected MD 10% POE","MVA","Non-Coincident"]
["ED_MDU541_06493",null,null,null,null,"Coincident"]
["ED_MDU541_06494",null,null,"Weather Corrected MD 50% POE","MW","Non-Coincident"]
["ED_MDU541_06495",null,null,null,null,"Coincident"]
["ED_MDU541_06496",null,null,"Weather Corrected MD 50% POE","MVA","Non-Coincident"]
["ED_MDU541_06497",null,null,null,null,"Coincident"]
["ED_MDU541_06498",null,"<Enter substation name>","Substation Rating","MVA","Non-Coincident"]
["ED_MDU541_06499",null,null,null,null,"Coincident"]
["ED_MDU541_06500",null,null,"Raw Adjusted MD","MW","Non-Coincident"]
["ED_MDU541_06501",null,null,null,null,"Coincident"]
["ED_MDU541_06502",null,null,"Raw Adjusted MD","MVA","Non-Coincident"]
["ED_MDU541_06503",null,null,null,null,"Coincident"]
["ED_MDU541_06504",null,null,"Date MD occurred",null,"Non-Coincident"]
["ED_MDU541_06505",null,null,null,null,"Coincident"]
["ED_MDU541_06506",null,null,"Half hour time period MD occurred",null,"Non-Coincident"]
["ED_MDU541_06507",null,null,null,null,"Coincident"]
["ED_MDU541_06508",null,null,"Winter/Summer Peaking",null,"Non-Coincident"]
["ED_MDU541_06509",null,null,null,null,"Coincident"]
["ED_MDU541_06510",null,null,"Adjustments - Embedded generation","MW","Non-Coincident"]
["ED_MDU541_06511",null,null,null,null,"Coincident"]
["ED_MDU541_06512",null,null,"Weather Corrected MD 10% POE","MW","Non-Coincident"]
["ED_MDU541_06513",null,null,null,null,"Coincident"]
["ED_MDU541_06514",null,null,"Weather Corrected MD 10% POE","MVA","Non-Coincident"]
["ED_MDU541_06515",null,null,null,null,"Coincident"]
["ED_MDU541_06516",null,null,"Weather Corrected MD 50% POE","MW","Non-Coincident"]
["ED_MDU541_06517",null,null,null,null,"Coincident"]
["ED_MDU541_06518",null,null,"Weather Corrected MD 50% POE","MVA","Non-Coincident"]
["ED_MDU541_06519",null,null,null,null,"Coincident"]
["ED_MDU541_06520",null,"<Enter substation name>","Substation Rating","MVA","Non-Coincident"]
["ED_MDU541_06521",null,null,null,null,"Coincident"]
["ED_MDU541_06522",null,null,"Raw Adjusted MD","MW","Non-Coincident"]
["ED_MDU541_06523",null,null,null,null,"Coincident"]
["ED_MDU541_06524",null,null,"Raw Adjusted MD","MVA","Non-Coincident"]
["ED_MDU541_06525",null,null,null,null,"Coincident"]
["ED_MDU541_06526",null,null,"Date MD occurred",null,"Non-Coincident"]
["ED_MDU541_06527",null,null,null,null,"Coincident"]
["ED_MDU541_06528",null,null,"Half hour time period MD occurred",null,"Non-Coincident"]
["ED_MDU541_06529",null,null,null,null,"Coincident"]
["ED_MDU541_06530",null,null,"Winter/Summer Peaking",null,"Non-Coincident"]
["ED_MDU541_06531",null,null,null,null,"Coincident"]
["ED_MDU541_06532",null,null,"Adjustments - Embedded generation","MW","Non-Coincident"]
["ED_MDU541_06533",null,null,null,null,"Coincident"]
["ED_MDU541_06534",null,null,"Weather Corrected MD 10% POE","MW","Non-Coincident"]
["ED_MDU541_06535",null,null,null,null,"Coincident"]
["ED_MDU541_06536",null,null,"Weather Corrected MD 10% POE","MVA","Non-Coincident"]
["ED_MDU541_06537",null,null,null,null,"Coincident"]
["ED_MDU541_06538",null,null,"Weather Corrected MD 50% POE","MW","Non-Coincident"]
["ED_MDU541_06539",null,null,null,null,"Coincident"]
["ED_MDU541_06540",null,null,"Weather Corrected MD 50% POE","MVA","Non-Coincident"]
["ED_MDU541_06541",null,null,null,null,"Coincident"]
["ED_MDU541_06542",null,"<Enter substation name>","Substation Rating","MVA","Non-Coincident"]
["ED_MDU541_06543",null,null,null,null,"Coincident"]
["ED_MDU541_06544",null,null,"Raw Adjusted MD","MW","Non-Coincident"]
["ED_MDU541_06545",null,null,null,null,"Coincident"]
["ED_MDU541_06546",null,null,"Raw Adjusted MD","MVA","Non-Coincident"]
["ED_MDU541_06547",null,null,null,null,"Coincident"]
["ED_MDU541_06548",null,null,"Date MD occurred",null,"Non-Coincident"]
["ED_MDU541_06549",null,null,null,null,"Coincident"]
["ED_MDU541_06550",null,null,"Half hour time period MD occurred",null,"Non-Coincident"]
["ED_MDU541_06551",null,null,null,null,"Coincident"]
["ED_MDU541_06552",null,null,"Winter/Summer Peaking",null,"Non-Coincident"]
["ED_MDU541_06553",null,null,null,null,"Coincident"]
["ED_MDU541_06554",null,null,"Adjustments - Embedded generation","MW","Non-Coincident"]
["ED_MDU541_06555",null,null,null,null,"Coincident"]
["ED_MDU541_06556",null,null,"Weather Corrected MD 10% POE","MW","Non-Coincident"]
["ED_MDU541_06557",null,null,null,null,"Coincident"]
["ED_MDU541_06558",null,null,"Weather Corrected MD 10% POE","MVA","Non-Coincident"]
["ED_MDU541_06559",null,null,null,null,"Coincident"]
["ED_MDU541_06560",null,null,"Weather Corrected MD 50% POE","MW","Non-Coincident"]
["ED_MDU541_06561",null,null,null,null,"Coincident"]
["ED_MDU541_06562",null,null,"Weather Corrected MD 50% POE","MVA","Non-Coincident"]
["ED_MDU541_06563",null,null,null,null,"Coincident"]
["ED_MDU541_06564",null,"<Enter substation name>","Substation Rating","MVA","Non-Coincident"]
["ED_MDU541_06565",null,null,null,null,"Coincident"]
["ED_MDU541_06566",null,null,"Raw Adjusted MD","MW","Non-Coincident"]
["ED_MDU541_06567",null,null,null,null,"Coincident"]
["ED_MDU541_06568",null,null,"Raw Adjusted MD","MVA","Non-Coincident"]
["ED_MDU541_06569",null,null,null,null,"Coincident"]
["ED_MDU541_06570",null,null,"Date MD occurred",null,"Non-Coincident"]
["ED_MDU541_06571",null,null,null,null,"Coincident"]
["ED_MDU541_06572",null,null,"Half hour time period MD occurred",null,"Non-Coincident"]
["ED_MDU541_06573",null,null,null,null,"Coincident"]
["ED_MDU541_06574",null,null,"Winter/Summer Peaking",null,"Non-Coincident"]
["ED_MDU541_06575",null,null,null,null,"Coincident"]
["ED_MDU541_06576",null,null,"Adjustments - Embedded generation","MW","Non-Coincident"]
["ED_MDU541_06577",null,null,null,null,"Coincident"]
["ED_MDU541_06578",null,null,"Weather Corrected MD 10% POE","MW","Non-Coincident"]
["ED_MDU541_06579",null,null,null,null,"Coincident"]
["ED_MDU541_06580",null,null,"Weather Corrected MD 10% POE","MVA","Non-Coincident"]
["ED_MDU541_06581",null,null,null,null,"Coincident"]
["ED_MDU541_06582",null,null,"Weather Corrected MD 50% POE","MW","Non-Coincident"]
["ED_MDU541_06583",null,null,null,null,"Coincident"]
["ED_MDU541_06584",null,null,"Weather Corrected MD 50% POE","MVA","Non-Coincident"]
["ED_MDU541_06585",null,null,null,null,"Coincident"]
["ED_MDU541_06586",null,"<Enter substation name>","Substation Rating","MVA","Non-Coincident"]
["ED_MDU541_06587",null,null,null,null,"Coincident"]
["ED_MDU541_06588",null,null,"Raw Adjusted MD","MW","Non-Coincident"]
["ED_MDU541_06589",null,null,null,null,"Coincident"]
["ED_MDU541_06590",null,null,"Raw Adjusted MD","MVA","Non-Coincident"]
["ED_MDU541_06591",null,null,null,null,"Coincident"]
["ED_MDU541_06592",null,null,"Date MD occurred",null,"Non-Coincident"]
["ED_MDU541_06593",null,null,null,null,"Coincident"]
["ED_MDU541_06594",null,null,"Half hour time period MD occurred",null,"Non-Coincident"]
["ED_MDU541_06595",null,null,null,null,"Coincident"]
["ED_MDU541_06596",null,null,"Winter/Summer Peaking",null,"Non-Coincident"]
["ED_MDU541_06597",null,null,null,null,"Coincident"]
["ED_MDU541_06598",null,null,"Adjustments - Embedded generation","MW","Non-Coincident"]
["ED_MDU541_06599",null,null,null,null,"Coincident"]
["ED_MDU541_06600",null,null,"Weather Corrected MD 10% POE","MW","Non-Coincident"]
["ED_MDU541_06601",null,null,null,null,"Coincident"]
["ED_MDU541_06602",null,null,"Weather Corrected MD 10% POE","MVA","Non-Coincident"]
["ED_MDU541_06603",null,null,null,null,"Coincident"]
["ED_MDU541_06604",null,null,"Weather Corrected MD 50% POE","MW","Non-Coincident"]
["ED_MDU541_06605",null,null,null,null,"Coincident"]
["ED_MDU541_06606",null,null,"Weather Corrected MD 50% POE","MVA","Non-Coincident"]
["ED_MDU541_06607",null,null,null,null,"Coincident"]
["ED_MDU541_06608",null,"<Enter substation name>","Substation Rating","MVA","Non-Coincident"]
["ED_MDU541_06609",null,null,null,null,"Coincident"]
["ED_MDU541_06610",null,null,"Raw Adjusted MD","MW","Non-Coincident"]
["ED_MDU541_06611",null,null,null,null,"Coincident"]
["ED_MDU541_06612",null,null,"Raw Adjusted MD","MVA","Non-Coincident"]
["ED_MDU541_06613",null,null,null,null,"Coincident"]
["ED_MDU541_06614",null,null,"Date MD occurred",null,"Non-Coincident"]
["ED_MDU541_06615",null,null,null,null,"Coincident"]
["ED_MDU541_06616",null,null,"Half hour time period MD occurred",null,"Non-Coincident"]
["ED_MDU541_06617",null,null,null,null,"Coincident"]
["ED_MDU541_06618",null,null,"Winter/Summer Peaking",null,"Non-Coincident"]
["ED_MDU541_06619",null,null,null,null,"Coincident"]
["ED_MDU541_06620",null,null,"Adjustments - Embedded generation","MW","Non-Coincident"]
["ED_MDU541_06621",null,null,null,null,"Coincident"]
["ED_MDU541_06622",null,null,"Weather Corrected MD 10% POE","MW","Non-Coincident"]
["ED_MDU541_06623",null,null,null,null,"Coincident"]
["ED_MDU541_06624",null,null,"Weather Corrected MD 10% POE","MVA","Non-Coincident"]
["ED_MDU541_06625",null,null,null,null,"Coincident"]
["ED_MDU541_06626",null,null,"Weather Corrected MD 50% POE","MW","Non-Coincident"]
["ED_MDU541_06627",null,null,null,null,"Coincident"]
["ED_MDU541_06628",null,null,"Weather Corrected MD 50% POE","MVA","Non-Coincident"]
["ED_MDU541_06629",null,null,null,null,"Coincident"]
["ED_MDU541_06630",null,"<Enter substation name>","Substation Rating","MVA","Non-Coincident"]
["ED_MDU541_06631",null,null,null,null,"Coincident"]
["ED_MDU541_06632",null,null,"Raw Adjusted MD","MW","Non-Coincident"]
["ED_MDU541_06633",null,null,null,null,"Coincident"]
["ED_MDU541_06634",null,null,"Raw Adjusted MD","MVA","Non-Coincident"]
["ED_MDU541_06635",null,null,null,null,"Coincident"]
["ED_MDU541_06636",null,null,"Date MD occurred",null,"Non-Coincident"]
["ED_MDU541_06637",null,null,null,null,"Coincident"]
["ED_MDU541_06638",null,null,"Half hour time period MD occurred",null,"Non-Coincident"]
["ED_MDU541_06639",null,null,null,null,"Coincident"]
["ED_MDU541_06640",null,null,"Winter/Summer Peaking",null,"Non-Coincident"]
["ED_MDU541_06641",null,null,null,null,"Coincident"]
["ED_MDU541_06642",null,null,"Adjustments - Embedded generation","MW","Non-Coincident"]
["ED_MDU541_06643",null,null,null,null,"Coincident"]
["ED_MDU541_06644",null,null,"Weather Corrected MD 10% POE","MW","Non-Coincident"]
["ED_MDU541_06645",null,null,null,null,"Coincident"]
["ED_MDU541_06646",null,null,"Weather Corrected MD 10% POE","MVA","Non-Coincident"]
["ED_MDU541_06647",null,null,null,null,"Coincident"]
["ED_MDU541_06648",null,null,"Weather Corrected MD 50% POE","MW","Non-Coincident"]
["ED_MDU541_06649",null,null,null,null,"Coincident"]
["ED_MDU541_06650",null,null,"Weather Corrected MD 50% POE","MVA","Non-Coincident"]
["ED_MDU541_06651",null,null,null,null,"Coincident"]
["ED_MDU541_06652",null,"<Enter substation name>","Substation Rating","MVA","Non-Coincident"]
["ED_MDU541_06653",null,null,null,null,"Coincident"]
["ED_MDU541_06654",null,null,"Raw Adjusted MD","MW","Non-Coincident"]
["ED_MDU541_06655",null,null,null,null,"Coincident"]
["ED_MDU541_06656",null,null,"Raw Adjusted MD","MVA","Non-Coincident"]
["ED_MDU541_06657",null,null,null,null,"Coincident"]
["ED_MDU541_06658",null,null,"Date MD occurred",null,"Non-Coincident"]
["ED_MDU541_06659",null,null,null,null,"Coincident"]
["ED_MDU541_06660",null,null,"Half hour time period MD occurred",null,"Non-Coincident"]
["ED_MDU541_06661",null,null,null,null,"Coincident"]
["ED_MDU541_06662",null,null,"Winter/Summer Peaking",null,"Non-Coincident"]
["ED_MDU541_06663",null,null,null,null,"Coincident"]
["ED_MDU541_06664",null,null,"Adjustments - Embedded generation","MW","Non-Coincident"]
["ED_MDU541_06665",null,null,null,null,"Coincident"]
["ED_MDU541_06666",null,null,"Weather Corrected MD 10% POE","MW","Non-Coincident"]
["ED_MDU541_06667",null,null,null,null,"Coincident"]
["ED_MDU541_06668",null,null,"Weather Corrected MD 10% POE","MVA","Non-Coincident"]
["ED_MDU541_06669",null,null,null,null,"Coincident"]
["ED_MDU541_06670",null,null,"Weather Corrected MD 50% POE","MW","Non-Coincident"]
["ED_MDU541_06671",null,null,null,null,"Coincident"]
["ED_MDU541_06672",null,null,"Weather Corrected MD 50% POE","MVA","Non-Coincident"]
["ED_MDU541_06673",null,null,null,null,"Coincident"]
["ED_MDU541_06674",null,"<Enter substation name>","Substation Rating","MVA","Non-Coincident"]
["ED_MDU541_06675",null,null,null,null,"Coincident"]
["ED_MDU541_06676",null,null,"Raw Adjusted MD","MW","Non-Coincident"]
["ED_MDU541_06677",null,null,null,null,"Coincident"]
["ED_MDU541_06678",null,null,"Raw Adjusted MD","MVA","Non-Coincident"]
["ED_MDU541_06679",null,null,null,null,"Coincident"]
["ED_MDU541_06680",null,null,"Date MD occurred",null,"Non-Coincident"]
["ED_MDU541_06681",null,null,null,null,"Coincident"]
["ED_MDU541_06682",null,null,"Half hour time period MD occurred",null,"Non-Coincident"]
["ED_MDU541_06683",null,null,null,null,"Coincident"]
["ED_MDU541_06684",null,null,"Winter/Summer Peaking",null,"Non-Coincident"]
["ED_MDU541_06685",null,null,null,null,"Coincident"]
["ED_MDU541_06686",null,null,"Adjustments - Embedded generation","MW","Non-Coincident"]
["ED_MDU541_06687",null,null,null,null,"Coincident"]
["ED_MDU541_06688",null,null,"Weather Corrected MD 10% POE","MW","Non-Coincident"]
["ED_MDU541_06689",null,null,null,null,"Coincident"]
["ED_MDU541_06690",null,null,"Weather Corrected MD 10% POE","MVA","Non-Coincident"]
["ED_MDU541_06691",null,null,null,null,"Coincident"]
["ED_MDU541_06692",null,null,"Weather Corrected MD 50% POE","MW","Non-Coincident"]
["ED_MDU541_06693",null,null,null,null,"Coincident"]
["ED_MDU541_06694",null,null,"Weather Corrected MD 50% POE","MVA","Non-Coincident"]
["ED_MDU541_06695",null,null,null,null,"Coincident"]
["ED_MDU541_06696",null,"<Enter substation name>","Substation Rating","MVA","Non-Coincident"]
["ED_MDU541_06697",null,null,null,null,"Coincident"]
["ED_MDU541_06698",null,null,"Raw Adjusted MD","MW","Non-Coincident"]
["ED_MDU541_06699",null,null,null,null,"Coincident"]
["ED_MDU541_06700",null,null,"Raw Adjusted MD","MVA","Non-Coincident"]
["ED_MDU541_06701",null,null,null,null,"Coincident"]
["ED_MDU541_06702",null,null,"Date MD occurred",null,"Non-Coincident"]
["ED_MDU541_06703",null,null,null,null,"Coincident"]
["ED_MDU541_06704",null,null,"Half hour time period MD occurred",null,"Non-Coincident"]
["ED_MDU541_06705",null,null,null,null,"Coincident"]
["ED_MDU541_06706",null,null,"Winter/Summer Peaking",null,"Non-Coincident"]
["ED_MDU541_06707",null,null,null,null,"Coincident"]
["ED_MDU541_06708",null,null,"Adjustments - Embedded generation","MW","Non-Coincident"]
["ED_MDU541_06709",null,null,null,null,"Coincident"]
["ED_MDU541_06710",null,null,"Weather Corrected MD 10% POE","MW","Non-Coincident"]
["ED_MDU541_06711",null,null,null,null,"Coincident"]
["ED_MDU541_06712",null,null,"Weather Corrected MD 10% POE","MVA","Non-Coincident"]
["ED_MDU541_06713",null,null,null,null,"Coincident"]
["ED_MDU541_06714",null,null,"Weather Corrected MD 50% POE","MW","Non-Coincident"]
["ED_MDU541_06715",null,null,null,null,"Coincident"]
["ED_MDU541_06716",null,null,"Weather Corrected MD 50% POE","MVA","Non-Coincident"]
["ED_MDU541_06717",null,null,null,null,"Coincident"]
["ED_MDU541_06718",null,"<Enter substation name>","Substation Rating","MVA","Non-Coincident"]
["ED_MDU541_06719",null,null,null,null,"Coincident"]
["ED_MDU541_06720",null,null,"Raw Adjusted MD","MW","Non-Coincident"]
["ED_MDU541_06721",null,null,null,null,"Coincident"]
["ED_MDU541_06722",null,null,"Raw Adjusted MD","MVA","Non-Coincident"]
["ED_MDU541_06723",null,null,null,null,"Coincident"]
["ED_MDU541_06724",null,null,"Date MD occurred",null,"Non-Coincident"]
["ED_MDU541_06725",null,null,null,null,"Coincident"]
["ED_MDU541_06726",null,null,"Half hour time period MD occurred",null,"Non-Coincident"]
["ED_MDU541_06727",null,null,null,null,"Coincident"]
["ED_MDU541_06728",null,null,"Winter/Summer Peaking",null,"Non-Coincident"]
["ED_MDU541_06729",null,null,null,null,"Coincident"]
["ED_MDU541_06730",null,null,"Adjustments - Embedded generation","MW","Non-Coincident"]
["ED_MDU541_06731",null,null,null,null,"Coincident"]
["ED_MDU541_06732",null,null,"Weather Corrected MD 10% POE","MW","Non-Coincident"]
["ED_MDU541_06733",null,null,null,null,"Coincident"]
["ED_MDU541_06734",null,null,"Weather Corrected MD 10% POE","MVA","Non-Coincident"]
["ED_MDU541_06735",null,null,null,null,"Coincident"]
["ED_MDU541_06736",null,null,"Weather Corrected MD 50% POE","MW","Non-Coincident"]
["ED_MDU541_06737",null,null,null,null,"Coincident"]
["ED_MDU541_06738",null,null,"Weather Corrected MD 50% POE","MVA","Non-Coincident"]
["ED_MDU541_06739",null,null,null,null,"Coincident"]
["ED_MDU541_06740",null,"<Enter substation name>","Substation Rating","MVA","Non-Coincident"]
["ED_MDU541_06741",null,null,null,null,"Coincident"]
["ED_MDU541_06742",null,null,"Raw Adjusted MD","MW","Non-Coincident"]
["ED_MDU541_06743",null,null,null,null,"Coincident"]
["ED_MDU541_06744",null,null,"Raw Adjusted MD","MVA","Non-Coincident"]
["ED_MDU541_06745",null,null,null,null,"Coincident"]
["ED_MDU541_06746",null,null,"Date MD occurred",null,"Non-Coincident"]
["ED_MDU541_06747",null,null,null,null,"Coincident"]
["ED_MDU541_06748",null,null,"Half hour time period MD occurred",null,"Non-Coincident"]
["ED_MDU541_06749",null,null,null,null,"Coincident"]
["ED_MDU541_06750",null,null,"Winter/Summer Peaking",null,"Non-Coincident"]
["ED_MDU541_06751",null,null,null,null,"Coincident"]
["ED_MDU541_06752",null,null,"Adjustments - Embedded generation","MW","Non-Coincident"]
["ED_MDU541_06753",null,null,null,null,"Coincident"]
["ED_MDU541_06754",null,null,"Weather Corrected MD 10% POE","MW","Non-Coincident"]
["ED_MDU541_06755",null,null,null,null,"Coincident"]
["ED_MDU541_06756",null,null,"Weather Corrected MD 10% POE","MVA","Non-Coincident"]
["ED_MDU541_06757",null,null,null,null,"Coincident"]
["ED_MDU541_06758",null,null,"Weather Corrected MD 50% POE","MW","Non-Coincident"]
["ED_MDU541_06759",null,null,null,null,"Coincident"]
["ED_MDU541_06760",null,null,"Weather Corrected MD 50% POE","MVA","Non-Coincident"]
["ED_MDU541_06761",null,null,null,null,"Coincident"]
["ED_MDU541_06762",null,"<Enter substation name>","Substation Rating","MVA","Non-Coincident"]
["ED_MDU541_06763",null,null,null,null,"Coincident"]
["ED_MDU541_06764",null,null,"Raw Adjusted MD","MW","Non-Coincident"]
["ED_MDU541_06765",null,null,null,null,"Coincident"]
["ED_MDU541_06766",null,null,"Raw Adjusted MD","MVA","Non-Coincident"]
["ED_MDU541_06767",null,null,null,null,"Coincident"]
["ED_MDU541_06768",null,null,"Date MD occurred",null,"Non-Coincident"]
["ED_MDU541_06769",null,null,null,null,"Coincident"]
["ED_MDU541_06770",null,null,"Half hour time period MD occurred",null,"Non-Coincident"]
["ED_MDU541_06771",null,null,null,null,"Coincident"]
["ED_MDU541_06772",null,null,"Winter/Summer Peaking",null,"Non-Coincident"]
["ED_MDU541_06773",null,null,null,null,"Coincident"]
["ED_MDU541_06774",null,null,"Adjustments - Embedded generation","MW","Non-Coincident"]
["ED_MDU541_06775",null,null,null,null,"Coincident"]
["ED_MDU541_06776",null,null,"Weather Corrected MD 10% POE","MW","Non-Coincident"]
["ED_MDU541_06777",null,null,null,null,"Coincident"]
["ED_MDU541_06778",null,null,"Weather Corrected MD 10% POE","MVA","Non-Coincident"]
["ED_MDU541_06779",null,null,null,null,"Coincident"]
["ED_MDU541_06780",null,null,"Weather Corrected MD 50% POE","MW","Non-Coincident"]
["ED_MDU541_06781",null,null,null,null,"Coincident"]
["ED_MDU541_06782",null,null,"Weather Corrected MD 50% POE","MVA","Non-Coincident"]
["ED_MDU541_06783",null,null,null,null,"Coincident"]
["ED_MDU541_06784",null,"<Enter substation name>","Substation Rating","MVA","Non-Coincident"]
["ED_MDU541_06785",null,null,null,null,"Coincident"]
["ED_MDU541_06786",null,null,"Raw Adjusted MD","MW","Non-Coincident"]
["ED_MDU541_06787",null,null,null,null,"Coincident"]
["ED_MDU541_06788",null,null,"Raw Adjusted MD","MVA","Non-Coincident"]
["ED_MDU541_06789",null,null,null,null,"Coincident"]
["ED_MDU541_06790",null,null,"Date MD occurred",null,"Non-Coincident"]
["ED_MDU541_06791",null,null,null,null,"Coincident"]
["ED_MDU541_06792",null,null,"Half hour time period MD occurred",null,"Non-Coincident"]
["ED_MDU541_06793",null,null,null,null,"Coincident"]
["ED_MDU541_06794",null,null,"Winter/Summer Peaking",null,"Non-Coincident"]
["ED_MDU541_06795",null,null,null,null,"Coincident"]
["ED_MDU541_06796",null,null,"Adjustments - Embedded generation","MW","Non-Coincident"]
["ED_MDU541_06797",null,null,null,null,"Coincident"]
["ED_MDU541_06798",null,null,"Weather Corrected MD 10% POE","MW","Non-Coincident"]
["ED_MDU541_06799",null,null,null,null,"Coincident"]
["ED_MDU541_06800",null,null,"Weather Corrected MD 10% POE","MVA","Non-Coincident"]
["ED_MDU541_06801",null,null,null,null,"Coincident"]
["ED_MDU541_06802",null,null,"Weather Corrected MD 50% POE","MW","Non-Coincident"]
["ED_MDU541_06803",null,null,null,null,"Coincident"]
["ED_MDU541_06804",null,null,"Weather Corrected MD 50% POE","MVA","Non-Coincident"]
["ED_MDU541_06805",null,null,null,null,"Coincident"]
["ED_MDU541_06806",null,"<Enter substation name>","Substation Rating","MVA","Non-Coincident"]
["ED_MDU541_06807",null,null,null,null,"Coincident"]
["ED_MDU541_06808",null,null,"Raw Adjusted MD","MW","Non-Coincident"]
["ED_MDU541_06809",null,null,null,null,"Coincident"]
["ED_MDU541_06810",null,null,"Raw Adjusted MD","MVA","Non-Coincident"]
["ED_MDU541_06811",null,null,null,null,"Coincident"]
["ED_MDU541_06812",null,null,"Date MD occurred",null,"Non-Coincident"]
["ED_MDU541_06813",null,null,null,null,"Coincident"]
["ED_MDU541_06814",null,null,"Half hour time period MD occurred",null,"Non-Coincident"]
["ED_MDU541_06815",null,null,null,null,"Coincident"]
["ED_MDU541_06816",null,null,"Winter/Summer Peaking",null,"Non-Coincident"]
["ED_MDU541_06817",null,null,null,null,"Coincident"]
["ED_MDU541_06818",null,null,"Adjustments - Embedded generation","MW","Non-Coincident"]
["ED_MDU541_06819",null,null,null,null,"Coincident"]
["ED_MDU541_06820",null,null,"Weather Corrected MD 10% POE","MW","Non-Coincident"]
["ED_MDU541_06821",null,null,null,null,"Coincident"]
["ED_MDU541_06822",null,null,"Weather Corrected MD 10% POE","MVA","Non-Coincident"]
["ED_MDU541_06823",null,null,null,null,"Coincident"]
["ED_MDU541_06824",null,null,"Weather Corrected MD 50% POE","MW","Non-Coincident"]
["ED_MDU541_06825",null,null,null,null,"Coincident"]
["ED_MDU541_06826",null,null,"Weather Corrected MD 50% POE","MVA","Non-Coincident"]
["ED_MDU541_06827",null,null,null,null,"Coincident"]
["ED_MDU541_06828",null,"<Enter substation name>","Substation Rating","MVA","Non-Coincident"]
["ED_MDU541_06829",null,null,null,null,"Coincident"]
["ED_MDU541_06830",null,null,"Raw Adjusted MD","MW","Non-Coincident"]
["ED_MDU541_06831",null,null,null,null,"Coincident"]
["ED_MDU541_06832",null,null,"Raw Adjusted MD","MVA","Non-Coincident"]
["ED_MDU541_06833",null,null,null,null,"Coincident"]
["ED_MDU541_06834",null,null,"Date MD occurred",null,"Non-Coincident"]
["ED_MDU541_06835",null,null,null,null,"Coincident"]
["ED_MDU541_06836",null,null,"Half hour time period MD occurred",null,"Non-Coincident"]
["ED_MDU541_06837",null,null,null,null,"Coincident"]
["ED_MDU541_06838",null,null,"Winter/Summer Peaking",null,"Non-Coincident"]
["ED_MDU541_06839",null,null,null,null,"Coincident"]
["ED_MDU541_06840",null,null,"Adjustments - Embedded generation","MW","Non-Coincident"]
["ED_MDU541_06841",null,null,null,null,"Coincident"]
["ED_MDU541_06842",null,null,"Weather Corrected MD 10% POE","MW","Non-Coincident"]
["ED_MDU541_06843",null,null,null,null,"Coincident"]
["ED_MDU541_06844",null,null,"Weather Corrected MD 10% POE","MVA","Non-Coincident"]
["ED_MDU541_06845",null,null,null,null,"Coincident"]
["ED_MDU541_06846",null,null,"Weather Corrected MD 50% POE","MW","Non-Coincident"]
["ED_MDU541_06847",null,null,null,null,"Coincident"]
["ED_MDU541_06848",null,null,"Weather Corrected MD 50% POE","MVA","Non-Coincident"]
["ED_MDU541_06849",null,null,null,null,"Coincident"]
["ED_MDU541_06850",null,"<Enter substation name>","Substation Rating","MVA","Non-Coincident"]
["ED_MDU541_06851",null,null,null,null,"Coincident"]
["ED_MDU541_06852",null,null,"Raw Adjusted MD","MW","Non-Coincident"]
["ED_MDU541_06853",null,null,null,null,"Coincident"]
["ED_MDU541_06854",null,null,"Raw Adjusted MD","MVA","Non-Coincident"]
["ED_MDU541_06855",null,null,null,null,"Coincident"]
["ED_MDU541_06856",null,null,"Date MD occurred",null,"Non-Coincident"]
["ED_MDU541_06857",null,null,null,null,"Coincident"]
["ED_MDU541_06858",null,null,"Half hour time period MD occurred",null,"Non-Coincident"]
["ED_MDU541_06859",null,null,null,null,"Coincident"]
["ED_MDU541_06860",null,null,"Winter/Summer Peaking",null,"Non-Coincident"]
["ED_MDU541_06861",null,null,null,null,"Coincident"]
["ED_MDU541_06862",null,null,"Adjustments - Embedded generation","MW","Non-Coincident"]
["ED_MDU541_06863",null,null,null,null,"Coincident"]
["ED_MDU541_06864",null,null,"Weather Corrected MD 10% POE","MW","Non-Coincident"]
["ED_MDU541_06865",null,null,null,null,"Coincident"]
["ED_MDU541_06866",null,null,"Weather Corrected MD 10% POE","MVA","Non-Coincident"]
["ED_MDU541_06867",null,null,null,null,"Coincident"]
["ED_MDU541_06868",null,null,"Weather Corrected MD 50% POE","MW","Non-Coincident"]
["ED_MDU541_06869",null,null,null,null,"Coincident"]
["ED_MDU541_06870",null,null,"Weather Corrected MD 50% POE","MVA","Non-Coincident"]
["ED_MDU541_06871",null,null,null,null,"Coincident"]
["ED_MDU541_06872",null,"<Enter substation name>","Substation Rating","MVA","Non-Coincident"]
["ED_MDU541_06873",null,null,null,null,"Coincident"]
["ED_MDU541_06874",null,null,"Raw Adjusted MD","MW","Non-Coincident"]
["ED_MDU541_06875",null,null,null,null,"Coincident"]
["ED_MDU541_06876",null,null,"Raw Adjusted MD","MVA","Non-Coincident"]
["ED_MDU541_06877",null,null,null,null,"Coincident"]
["ED_MDU541_06878",null,null,"Date MD occurred",null,"Non-Coincident"]
["ED_MDU541_06879",null,null,null,null,"Coincident"]
["ED_MDU541_06880",null,null,"Half hour time period MD occurred",null,"Non-Coincident"]
["ED_MDU541_06881",null,null,null,null,"Coincident"]
["ED_MDU541_06882",null,null,"Winter/Summer Peaking",null,"Non-Coincident"]
["ED_MDU541_06883",null,null,null,null,"Coincident"]
["ED_MDU541_06884",null,null,"Adjustments - Embedded generation","MW","Non-Coincident"]
["ED_MDU541_06885",null,null,null,null,"Coincident"]
["ED_MDU541_06886",null,null,"Weather Corrected MD 10% POE","MW","Non-Coincident"]
["ED_MDU541_06887",null,null,null,null,"Coincident"]
["ED_MDU541_06888",null,null,"Weather Corrected MD 10% POE","MVA","Non-Coincident"]
["ED_MDU541_06889",null,null,null,null,"Coincident"]
["ED_MDU541_06890",null,null,"Weather Corrected MD 50% POE","MW","Non-Coincident"]
["ED_MDU541_06891",null,null,null,null,"Coincident"]
["ED_MDU541_06892",null,null,"Weather Corrected MD 50% POE","MVA","Non-Coincident"]
["ED_MDU541_06893",null,null,null,null,"Coincident"]
["ED_MDU541_06894",null,"<Enter substation name>","Substation Rating","MVA","Non-Coincident"]
["ED_MDU541_06895",null,null,null,null,"Coincident"]
["ED_MDU541_06896",null,null,"Raw Adjusted MD","MW","Non-Coincident"]
["ED_MDU541_06897",null,null,null,null,"Coincident"]
["ED_MDU541_06898",null,null,"Raw Adjusted MD","MVA","Non-Coincident"]
["ED_MDU541_06899",null,null,null,null,"Coincident"]
["ED_MDU541_06900",null,null,"Date MD occurred",null,"Non-Coincident"]
["ED_MDU541_06901",null,null,null,null,"Coincident"]
["ED_MDU541_06902",null,null,"Half hour time period MD occurred",null,"Non-Coincident"]
["ED_MDU541_06903",null,null,null,null,"Coincident"]
["ED_MDU541_06904",null,null,"Winter/Summer Peaking",null,"Non-Coincident"]
["ED_MDU541_06905",null,null,null,null,"Coincident"]
["ED_MDU541_06906",null,null,"Adjustments - Embedded generation","MW","Non-Coincident"]
["ED_MDU541_06907",null,null,null,null,"Coincident"]
["ED_MDU541_06908",null,null,"Weather Corrected MD 10% POE","MW","Non-Coincident"]
["ED_MDU541_06909",null,null,null,null,"Coincident"]
["ED_MDU541_06910",null,null,"Weather Corrected MD 10% POE","MVA","Non-Coincident"]
["ED_MDU541_06911",null,null,null,null,"Coincident"]
["ED_MDU541_06912",null,null,"Weather Corrected MD 50% POE","MW","Non-Coincident"]
["ED_MDU541_06913",null,null,null,null,"Coincident"]
["ED_MDU541_06914",null,null,"Weather Corrected MD 50% POE","MVA","Non-Coincident"]
["ED_MDU541_06915",null,null,null,null,"Coincident"]
["ED_MDU541_06916",null,"<Enter substation name>","Substation Rating","MVA","Non-Coincident"]
["ED_MDU541_06917",null,null,null,null,"Coincident"]
["ED_MDU541_06918",null,null,"Raw Adjusted MD","MW","Non-Coincident"]
["ED_MDU541_06919",null,null,null,null,"Coincident"]
["ED_MDU541_06920",null,null,"Raw Adjusted MD","MVA","Non-Coincident"]
["ED_MDU541_06921",null,null,null,null,"Coincident"]
["ED_MDU541_06922",null,null,"Date MD occurred",null,"Non-Coincident"]
["ED_MDU541_06923",null,null,null,null,"Coincident"]
["ED_MDU541_06924",null,null,"Half hour time period MD occurred",null,"Non-Coincident"]
["ED_MDU541_06925",null,null,null,null,"Coincident"]
["ED_MDU541_06926",null,null,"Winter/Summer Peaking",null,"Non-Coincident"]
["ED_MDU541_06927",null,null,null,null,"Coincident"]
["ED_MDU541_06928",null,null,"Adjustments - Embedded generation","MW","Non-Coincident"]
["ED_MDU541_06929",null,null,null,null,"Coincident"]
["ED_MDU541_06930",null,null,"Weather Corrected MD 10% POE","MW","Non-Coincident"]
["ED_MDU541_06931",null,null,null,null,"Coincident"]
["ED_MDU541_06932",null,null,"Weather Corrected MD 10% POE","MVA","Non-Coincident"]
["ED_MDU541_06933",null,null,null,null,"Coincident"]
["ED_MDU541_06934",null,null,"Weather Corrected MD 50% POE","MW","Non-Coincident"]
["ED_MDU541_06935",null,null,null,null,"Coincident"]
["ED_MDU541_06936",null,null,"Weather Corrected MD 50% POE","MVA","Non-Coincident"]
["ED_MDU541_06937",null,null,null,null,"Coincident"]
["ED_MDU541_06938",null,"<Enter substation name>","Substation Rating","MVA","Non-Coincident"]
["ED_MDU541_06939",null,null,null,null,"Coincident"]
["ED_MDU541_06940",null,null,"Raw Adjusted MD","MW","Non-Coincident"]
["ED_MDU541_06941",null,null,null,null,"Coincident"]
["ED_MDU541_06942",null,null,"Raw Adjusted MD","MVA","Non-Coincident"]
["ED_MDU541_06943",null,null,null,null,"Coincident"]
["ED_MDU541_06944",null,null,"Date MD occurred",null,"Non-Coincident"]
["ED_MDU541_06945",null,null,null,null,"Coincident"]
["ED_MDU541_06946",null,null,"Half hour time period MD occurred",null,"Non-Coincident"]
["ED_MDU541_06947",null,null,null,null,"Coincident"]
["ED_MDU541_06948",null,null,"Winter/Summer Peaking",null,"Non-Coincident"]
["ED_MDU541_06949",null,null,null,null,"Coincident"]
["ED_MDU541_06950",null,null,"Adjustments - Embedded generation","MW","Non-Coincident"]
["ED_MDU541_06951",null,null,null,null,"Coincident"]
["ED_MDU541_06952",null,null,"Weather Corrected MD 10% POE","MW","Non-Coincident"]
["ED_MDU541_06953",null,null,null,null,"Coincident"]
["ED_MDU541_06954",null,null,"Weather Corrected MD 10% POE","MVA","Non-Coincident"]
["ED_MDU541_06955",null,null,null,null,"Coincident"]
["ED_MDU541_06956",null,null,"Weather Corrected MD 50% POE","MW","Non-Coincident"]
["ED_MDU541_06957",null,null,null,null,"Coincident"]
["ED_MDU541_06958",null,null,"Weather Corrected MD 50% POE","MVA","Non-Coincident"]
["ED_MDU541_06959",null,null,null,null,"Coincident"]
["ED_MDU541_06960",null,"<Enter substation name>","Substation Rating","MVA","Non-Coincident"]
["ED_MDU541_06961",null,null,null,null,"Coincident"]
["ED_MDU541_06962",null,null,"Raw Adjusted MD","MW","Non-Coincident"]
["ED_MDU541_06963",null,null,null,null,"Coincident"]
["ED_MDU541_06964",null,null,"Raw Adjusted MD","MVA","Non-Coincident"]
["ED_MDU541_06965",null,null,null,null,"Coincident"]
["ED_MDU541_06966",null,null,"Date MD occurred",null,"Non-Coincident"]
["ED_MDU541_06967",null,null,null,null,"Coincident"]
["ED_MDU541_06968",null,null,"Half hour time period MD occurred",null,"Non-Coincident"]
["ED_MDU541_06969",null,null,null,null,"Coincident"]
["ED_MDU541_06970",null,null,"Winter/Summer Peaking",null,"Non-Coincident"]
["ED_MDU541_06971",null,null,null,null,"Coincident"]
["ED_MDU541_06972",null,null,"Adjustments - Embedded generation","MW","Non-Coincident"]
["ED_MDU541_06973",null,null,null,null,"Coincident"]
["ED_MDU541_06974",null,null,"Weather Corrected MD 10% POE","MW","Non-Coincident"]
["ED_MDU541_06975",null,null,null,null,"Coincident"]
["ED_MDU541_06976",null,null,"Weather Corrected MD 10% POE","MVA","Non-Coincident"]
["ED_MDU541_06977",null,null,null,null,"Coincident"]
["ED_MDU541_06978",null,null,"Weather Corrected MD 50% POE","MW","Non-Coincident"]
["ED_MDU541_06979",null,null,null,null,"Coincident"]
["ED_MDU541_06980",null,null,"Weather Corrected MD 50% POE","MVA","Non-Coincident"]
["ED_MDU541_06981",null,null,null,null,"Coincident"]
["ED_MDU541_06982",null,"<Enter substation name>","Substation Rating","MVA","Non-Coincident"]
["ED_MDU541_06983",null,null,null,null,"Coincident"]
["ED_MDU541_06984",null,null,"Raw Adjusted MD","MW","Non-Coincident"]
["ED_MDU541_06985",null,null,null,null,"Coincident"]
["ED_MDU541_06986",null,null,"Raw Adjusted MD","MVA","Non-Coincident"]
["ED_MDU541_06987",null,null,null,null,"Coincident"]
["ED_MDU541_06988",null,null,"Date MD occurred",null,"Non-Coincident"]
["ED_MDU541_06989",null,null,null,null,"Coincident"]
["ED_MDU541_06990",null,null,"Half hour time period MD occurred",null,"Non-Coincident"]
["ED_MDU541_06991",null,null,null,null,"Coincident"]
["ED_MDU541_06992",null,null,"Winter/Summer Peaking",null,"Non-Coincident"]
["ED_MDU541_06993",null,null,null,null,"Coincident"]
["ED_MDU541_06994",null,null,"Adjustments - Embedded generation","MW","Non-Coincident"]
["ED_MDU541_06995",null,null,null,null,"Coincident"]
["ED_MDU541_06996",null,null,"Weather Corrected MD 10% POE","MW","Non-Coincident"]
["ED_MDU541_06997",null,null,null,null,"Coincident"]
["ED_MDU541_06998",null,null,"Weather Corrected MD 10% POE","MVA","Non-Coincident"]
["ED_MDU541_06999",null,null,null,null,"Coincident"]
["ED_MDU541_07000",null,null,"Weather Corrected MD 50% POE","MW","Non-Coincident"]
["ED_MDU541_07001",null,null,null,null,"Coincident"]
["ED_MDU541_07002",null,null,"Weather Corrected MD 50% POE","MVA","Non-Coincident"]
["ED_MDU541_07003",null,null,null,null,"Coincident"]
["ED_MDU541_07004",null,"<Enter substation name>","Substation Rating","MVA","Non-Coincident"]
["ED_MDU541_07005",null,null,null,null,"Coincident"]
["ED_MDU541_07006",null,null,"Raw Adjusted MD","MW","Non-Coincident"]
["ED_MDU541_07007",null,null,null,null,"Coincident"]
["ED_MDU541_07008",null,null,"Raw Adjusted MD","MVA","Non-Coincident"]
["ED_MDU541_07009",null,null,null,null,"Coincident"]
["ED_MDU541_07010",null,null,"Date MD occurred",null,"Non-Coincident"]
["ED_MDU541_07011",null,null,null,null,"Coincident"]
["ED_MDU541_07012",null,null,"Half hour time period MD occurred",null,"Non-Coincident"]
["ED_MDU541_07013",null,null,null,null,"Coincident"]
["ED_MDU541_07014",null,null,"Winter/Summer Peaking",null,"Non-Coincident"]
["ED_MDU541_07015",null,null,null,null,"Coincident"]
["ED_MDU541_07016",null,null,"Adjustments - Embedded generation","MW","Non-Coincident"]
["ED_MDU541_07017",null,null,null,null,"Coincident"]
["ED_MDU541_07018",null,null,"Weather Corrected MD 10% POE","MW","Non-Coincident"]
["ED_MDU541_07019",null,null,null,null,"Coincident"]
["ED_MDU541_07020",null,null,"Weather Corrected MD 10% POE","MVA","Non-Coincident"]
["ED_MDU541_07021",null,null,null,null,"Coincident"]
["ED_MDU541_07022",null,null,"Weather Corrected MD 50% POE","MW","Non-Coincident"]
["ED_MDU541_07023",null,null,null,null,"Coincident"]
["ED_MDU541_07024",null,null,"Weather Corrected MD 50% POE","MVA","Non-Coincident"]
["ED_MDU541_07025",null,null,null,null,"Coincident"]
["ED_MDU541_07026",null,"<Enter substation name>","Substation Rating","MVA","Non-Coincident"]
["ED_MDU541_07027",null,null,null,null,"Coincident"]
["ED_MDU541_07028",null,null,"Raw Adjusted MD","MW","Non-Coincident"]
["ED_MDU541_07029",null,null,null,null,"Coincident"]
["ED_MDU541_07030",null,null,"Raw Adjusted MD","MVA","Non-Coincident"]
["ED_MDU541_07031",null,null,null,null,"Coincident"]
["ED_MDU541_07032",null,null,"Date MD occurred",null,"Non-Coincident"]
["ED_MDU541_07033",null,null,null,null,"Coincident"]
["ED_MDU541_07034",null,null,"Half hour time period MD occurred",null,"Non-Coincident"]
["ED_MDU541_07035",null,null,null,null,"Coincident"]
["ED_MDU541_07036",null,null,"Winter/Summer Peaking",null,"Non-Coincident"]
["ED_MDU541_07037",null,null,null,null,"Coincident"]
["ED_MDU541_07038",null,null,"Adjustments - Embedded generation","MW","Non-Coincident"]
["ED_MDU541_07039",null,null,null,null,"Coincident"]
["ED_MDU541_07040",null,null,"Weather Corrected MD 10% POE","MW","Non-Coincident"]
["ED_MDU541_07041",null,null,null,null,"Coincident"]
["ED_MDU541_07042",null,null,"Weather Corrected MD 10% POE","MVA","Non-Coincident"]
["ED_MDU541_07043",null,null,null,null,"Coincident"]
["ED_MDU541_07044",null,null,"Weather Corrected MD 50% POE","MW","Non-Coincident"]
["ED_MDU541_07045",null,null,null,null,"Coincident"]
["ED_MDU541_07046",null,null,"Weather Corrected MD 50% POE","MVA","Non-Coincident"]
["ED_MDU541_07047",null,null,null,null,"Coincident"]
["ED_MDU541_07048",null,"<Enter substation name>","Substation Rating","MVA","Non-Coincident"]
["ED_MDU541_07049",null,null,null,null,"Coincident"]
["ED_MDU541_07050",null,null,"Raw Adjusted MD","MW","Non-Coincident"]
["ED_MDU541_07051",null,null,null,null,"Coincident"]
["ED_MDU541_07052",null,null,"Raw Adjusted MD","MVA","Non-Coincident"]
["ED_MDU541_07053",null,null,null,null,"Coincident"]
["ED_MDU541_07054",null,null,"Date MD occurred",null,"Non-Coincident"]
["ED_MDU541_07055",null,null,null,null,"Coincident"]
["ED_MDU541_07056",null,null,"Half hour time period MD occurred",null,"Non-Coincident"]
["ED_MDU541_07057",null,null,null,null,"Coincident"]
["ED_MDU541_07058",null,null,"Winter/Summer Peaking",null,"Non-Coincident"]
["ED_MDU541_07059",null,null,null,null,"Coincident"]
["ED_MDU541_07060",null,null,"Adjustments - Embedded generation","MW","Non-Coincident"]
["ED_MDU541_07061",null,null,null,null,"Coincident"]
["ED_MDU541_07062",null,null,"Weather Corrected MD 10% POE","MW","Non-Coincident"]
["ED_MDU541_07063",null,null,null,null,"Coincident"]
["ED_MDU541_07064",null,null,"Weather Corrected MD 10% POE","MVA","Non-Coincident"]
["ED_MDU541_07065",null,null,null,null,"Coincident"]
["ED_MDU541_07066",null,null,"Weather Corrected MD 50% POE","MW","Non-Coincident"]
["ED_MDU541_07067",null,null,null,null,"Coincident"]
["ED_MDU541_07068",null,null,"Weather Corrected MD 50% POE","MVA","Non-Coincident"]
["ED_MDU541_07069",null,null,null,null,"Coincident"]
["ED_MDU541_07070",null,"<Enter substation name>","Substation Rating","MVA","Non-Coincident"]
["ED_MDU541_07071",null,null,null,null,"Coincident"]
["ED_MDU541_07072",null,null,"Raw Adjusted MD","MW","Non-Coincident"]
["ED_MDU541_07073",null,null,null,null,"Coincident"]
["ED_MDU541_07074",null,null,"Raw Adjusted MD","MVA","Non-Coincident"]
["ED_MDU541_07075",null,null,null,null,"Coincident"]
["ED_MDU541_07076",null,null,"Date MD occurred",null,"Non-Coincident"]
["ED_MDU541_07077",null,null,null,null,"Coincident"]
["ED_MDU541_07078",null,null,"Half hour time period MD occurred",null,"Non-Coincident"]
["ED_MDU541_07079",null,null,null,null,"Coincident"]
["ED_MDU541_07080",null,null,"Winter/Summer Peaking",null,"Non-Coincident"]
["ED_MDU541_07081",null,null,null,null,"Coincident"]
["ED_MDU541_07082",null,null,"Adjustments - Embedded generation","MW","Non-Coincident"]
["ED_MDU541_07083",null,null,null,null,"Coincident"]
["ED_MDU541_07084",null,null,"Weather Corrected MD 10% POE","MW","Non-Coincident"]
["ED_MDU541_07085",null,null,null,null,"Coincident"]
["ED_MDU541_07086",null,null,"Weather Corrected MD 10% POE","MVA","Non-Coincident"]
["ED_MDU541_07087",null,null,null,null,"Coincident"]
["ED_MDU541_07088",null,null,"Weather Corrected MD 50% POE","MW","Non-Coincident"]
["ED_MDU541_07089",null,null,null,null,"Coincident"]
["ED_MDU541_07090",null,null,"Weather Corrected MD 50% POE","MVA","Non-Coincident"]
["ED_MDU541_07091",null,null,null,null,"Coincident"]
["ED_MDU541_07092",null,"<Enter substation name>","Substation Rating","MVA","Non-Coincident"]
["ED_MDU541_07093",null,null,null,null,"Coincident"]
["ED_MDU541_07094",null,null,"Raw Adjusted MD","MW","Non-Coincident"]
["ED_MDU541_07095",null,null,null,null,"Coincident"]
["ED_MDU541_07096",null,null,"Raw Adjusted MD","MVA","Non-Coincident"]
["ED_MDU541_07097",null,null,null,null,"Coincident"]
["ED_MDU541_07098",null,null,"Date MD occurred",null,"Non-Coincident"]
["ED_MDU541_07099",null,null,null,null,"Coincident"]
["ED_MDU541_07100",null,null,"Half hour time period MD occurred",null,"Non-Coincident"]
["ED_MDU541_07101",null,null,null,null,"Coincident"]
["ED_MDU541_07102",null,null,"Winter/Summer Peaking",null,"Non-Coincident"]
["ED_MDU541_07103",null,null,null,null,"Coincident"]
["ED_MDU541_07104",null,null,"Adjustments - Embedded generation","MW","Non-Coincident"]
["ED_MDU541_07105",null,null,null,null,"Coincident"]
["ED_MDU541_07106",null,null,"Weather Corrected MD 10% POE","MW","Non-Coincident"]
["ED_MDU541_07107",null,null,null,null,"Coincident"]
["ED_MDU541_07108",null,null,"Weather Corrected MD 10% POE","MVA","Non-Coincident"]
["ED_MDU541_07109",null,null,null,null,"Coincident"]
["ED_MDU541_07110",null,null,"Weather Corrected MD 50% POE","MW","Non-Coincident"]
["ED_MDU541_07111",null,null,null,null,"Coincident"]
["ED_MDU541_07112",null,null,"Weather Corrected MD 50% POE","MVA","Non-Coincident"]
["ED_MDU541_07113",null,null,null,null,"Coincident"]
["ED_MDU541_07114",null,"<Enter substation name>","Substation Rating","MVA","Non-Coincident"]
["ED_MDU541_07115",null,null,null,null,"Coincident"]
["ED_MDU541_07116",null,null,"Raw Adjusted MD","MW","Non-Coincident"]
["ED_MDU541_07117",null,null,null,null,"Coincident"]
["ED_MDU541_07118",null,null,"Raw Adjusted MD","MVA","Non-Coincident"]
["ED_MDU541_07119",null,null,null,null,"Coincident"]
["ED_MDU541_07120",null,null,"Date MD occurred",null,"Non-Coincident"]
["ED_MDU541_07121",null,null,null,null,"Coincident"]
["ED_MDU541_07122",null,null,"Half hour time period MD occurred",null,"Non-Coincident"]
["ED_MDU541_07123",null,null,null,null,"Coincident"]
["ED_MDU541_07124",null,null,"Winter/Summer Peaking",null,"Non-Coincident"]
["ED_MDU541_07125",null,null,null,null,"Coincident"]
["ED_MDU541_07126",null,null,"Adjustments - Embedded generation","MW","Non-Coincident"]
["ED_MDU541_07127",null,null,null,null,"Coincident"]
["ED_MDU541_07128",null,null,"Weather Corrected MD 10% POE","MW","Non-Coincident"]
["ED_MDU541_07129",null,null,null,null,"Coincident"]
["ED_MDU541_07130",null,null,"Weather Corrected MD 10% POE","MVA","Non-Coincident"]
["ED_MDU541_07131",null,null,null,null,"Coincident"]
["ED_MDU541_07132",null,null,"Weather Corrected MD 50% POE","MW","Non-Coincident"]
["ED_MDU541_07133",null,null,null,null,"Coincident"]
["ED_MDU541_07134",null,null,"Weather Corrected MD 50% POE","MVA","Non-Coincident"]
["ED_MDU541_07135",null,null,null,null,"Coincident"]
["ED_MDU541_07136",null,"<Enter substation name>","Substation Rating","MVA","Non-Coincident"]
["ED_MDU541_07137",null,null,null,null,"Coincident"]
["ED_MDU541_07138",null,null,"Raw Adjusted MD","MW","Non-Coincident"]
["ED_MDU541_07139",null,null,null,null,"Coincident"]
["ED_MDU541_07140",null,null,"Raw Adjusted MD","MVA","Non-Coincident"]
["ED_MDU541_07141",null,null,null,null,"Coincident"]
["ED_MDU541_07142",null,null,"Date MD occurred",null,"Non-Coincident"]
["ED_MDU541_07143",null,null,null,null,"Coincident"]
["ED_MDU541_07144",null,null,"Half hour time period MD occurred",null,"Non-Coincident"]
["ED_MDU541_07145",null,null,null,null,"Coincident"]
["ED_MDU541_07146",null,null,"Winter/Summer Peaking",null,"Non-Coincident"]
["ED_MDU541_07147",null,null,null,null,"Coincident"]
["ED_MDU541_07148",null,null,"Adjustments - Embedded generation","MW","Non-Coincident"]
["ED_MDU541_07149",null,null,null,null,"Coincident"]
["ED_MDU541_07150",null,null,"Weather Corrected MD 10% POE","MW","Non-Coincident"]
["ED_MDU541_07151",null,null,null,null,"Coincident"]
["ED_MDU541_07152",null,null,"Weather Corrected MD 10% POE","MVA","Non-Coincident"]
["ED_MDU541_07153",null,null,null,null,"Coincident"]
["ED_MDU541_07154",null,null,"Weather Corrected MD 50% POE","MW","Non-Coincident"]
["ED_MDU541_07155",null,null,null,null,"Coincident"]
["ED_MDU541_07156",null,null,"Weather Corrected MD 50% POE","MVA","Non-Coincident"]
["ED_MDU541_07157",null,null,null,null,"Coincident"]
["ED_MDU541_07158",null,"<Enter substation name>","Substation Rating","MVA","Non-Coincident"]
["ED_MDU541_07159",null,null,null,null,"Coincident"]
["ED_MDU541_07160",null,null,"Raw Adjusted MD","MW","Non-Coincident"]
["ED_MDU541_07161",null,null,null,null,"Coincident"]
["ED_MDU541_07162",null,null,"Raw Adjusted MD","MVA","Non-Coincident"]
["ED_MDU541_07163",null,null,null,null,"Coincident"]
["ED_MDU541_07164",null,null,"Date MD occurred",null,"Non-Coincident"]
["ED_MDU541_07165",null,null,null,null,"Coincident"]
["ED_MDU541_07166",null,null,"Half hour time period MD occurred",null,"Non-Coincident"]
["ED_MDU541_07167",null,null,null,null,"Coincident"]
["ED_MDU541_07168",null,null,"Winter/Summer Peaking",null,"Non-Coincident"]
["ED_MDU541_07169",null,null,null,null,"Coincident"]
["ED_MDU541_07170",null,null,"Adjustments - Embedded generation","MW","Non-Coincident"]
["ED_MDU541_07171",null,null,null,null,"Coincident"]
["ED_MDU541_07172",null,null,"Weather Corrected MD 10% POE","MW","Non-Coincident"]
["ED_MDU541_07173",null,null,null,null,"Coincident"]
["ED_MDU541_07174",null,null,"Weather Corrected MD 10% POE","MVA","Non-Coincident"]
["ED_MDU541_07175",null,null,null,null,"Coincident"]
["ED_MDU541_07176",null,null,"Weather Corrected MD 50% POE","MW","Non-Coincident"]
["ED_MDU541_07177",null,null,null,null,"Coincident"]
["ED_MDU541_07178",null,null,"Weather Corrected MD 50% POE","MVA","Non-Coincident"]
["ED_MDU541_07179",null,null,null,null,"Coincident"]
["ED_MDU541_07180",null,"<Enter substation name>","Substation Rating","MVA","Non-Coincident"]
["ED_MDU541_07181",null,null,null,null,"Coincident"]
["ED_MDU541_07182",null,null,"Raw Adjusted MD","MW","Non-Coincident"]
["ED_MDU541_07183",null,null,null,null,"Coincident"]
["ED_MDU541_07184",null,null,"Raw Adjusted MD","MVA","Non-Coincident"]
["ED_MDU541_07185",null,null,null,null,"Coincident"]
["ED_MDU541_07186",null,null,"Date MD occurred",null,"Non-Coincident"]
["ED_MDU541_07187",null,null,null,null,"Coincident"]
["ED_MDU541_07188",null,null,"Half hour time period MD occurred",null,"Non-Coincident"]
["ED_MDU541_07189",null,null,null,null,"Coincident"]
["ED_MDU541_07190",null,null,"Winter/Summer Peaking",null,"Non-Coincident"]
["ED_MDU541_07191",null,null,null,null,"Coincident"]
["ED_MDU541_07192",null,null,"Adjustments - Embedded generation","MW","Non-Coincident"]
["ED_MDU541_07193",null,null,null,null,"Coincident"]
["ED_MDU541_07194",null,null,"Weather Corrected MD 10% POE","MW","Non-Coincident"]
["ED_MDU541_07195",null,null,null,null,"Coincident"]
["ED_MDU541_07196",null,null,"Weather Corrected MD 10% POE","MVA","Non-Coincident"]
["ED_MDU541_07197",null,null,null,null,"Coincident"]
["ED_MDU541_07198",null,null,"Weather Corrected MD 50% POE","MW","Non-Coincident"]
["ED_MDU541_07199",null,null,null,null,"Coincident"]
["ED_MDU541_07200",null,null,"Weather Corrected MD 50% POE","MVA","Non-Coincident"]
["ED_MDU541_07201",null,null,null,null,"Coincident"]
["ED_MDU541_07202",null,"<Enter substation name>","Substation Rating","MVA","Non-Coincident"]
["ED_MDU541_07203",null,null,null,null,"Coincident"]
["ED_MDU541_07204",null,null,"Raw Adjusted MD","MW","Non-Coincident"]
["ED_MDU541_07205",null,null,null,null,"Coincident"]
["ED_MDU541_07206",null,null,"Raw Adjusted MD","MVA","Non-Coincident"]
["ED_MDU541_07207",null,null,null,null,"Coincident"]
["ED_MDU541_07208",null,null,"Date MD occurred",null,"Non-Coincident"]
["ED_MDU541_07209",null,null,null,null,"Coincident"]
["ED_MDU541_07210",null,null,"Half hour time period MD occurred",null,"Non-Coincident"]
["ED_MDU541_07211",null,null,null,null,"Coincident"]
["ED_MDU541_07212",null,null,"Winter/Summer Peaking",null,"Non-Coincident"]
["ED_MDU541_07213",null,null,null,null,"Coincident"]
["ED_MDU541_07214",null,null,"Adjustments - Embedded generation","MW","Non-Coincident"]
["ED_MDU541_07215",null,null,null,null,"Coincident"]
["ED_MDU541_07216",null,null,"Weather Corrected MD 10% POE","MW","Non-Coincident"]
["ED_MDU541_07217",null,null,null,null,"Coincident"]
["ED_MDU541_07218",null,null,"Weather Corrected MD 10% POE","MVA","Non-Coincident"]
["ED_MDU541_07219",null,null,null,null,"Coincident"]
["ED_MDU541_07220",null,null,"Weather Corrected MD 50% POE","MW","Non-Coincident"]
["ED_MDU541_07221",null,null,null,null,"Coincident"]
["ED_MDU541_07222",null,null,"Weather Corrected MD 50% POE","MVA","Non-Coincident"]
["ED_MDU541_07223",null,null,null,null,"Coincident"]
["ED_MDU541_07224",null,"<Enter substation name>","Substation Rating","MVA","Non-Coincident"]
["ED_MDU541_07225",null,null,null,null,"Coincident"]
["ED_MDU541_07226",null,null,"Raw Adjusted MD","MW","Non-Coincident"]
["ED_MDU541_07227",null,null,null,null,"Coincident"]
["ED_MDU541_07228",null,null,"Raw Adjusted MD","MVA","Non-Coincident"]
["ED_MDU541_07229",null,null,null,null,"Coincident"]
["ED_MDU541_07230",null,null,"Date MD occurred",null,"Non-Coincident"]
["ED_MDU541_07231",null,null,null,null,"Coincident"]
["ED_MDU541_07232",null,null,"Half hour time period MD occurred",null,"Non-Coincident"]
["ED_MDU541_07233",null,null,null,null,"Coincident"]
["ED_MDU541_07234",null,null,"Winter/Summer Peaking",null,"Non-Coincident"]
["ED_MDU541_07235",null,null,null,null,"Coincident"]
["ED_MDU541_07236",null,null,"Adjustments - Embedded generation","MW","Non-Coincident"]
["ED_MDU541_07237",null,null,null,null,"Coincident"]
["ED_MDU541_07238",null,null,"Weather Corrected MD 10% POE","MW","Non-Coincident"]
["ED_MDU541_07239",null,null,null,null,"Coincident"]
["ED_MDU541_07240",null,null,"Weather Corrected MD 10% POE","MVA","Non-Coincident"]
["ED_MDU541_07241",null,null,null,null,"Coincident"]
["ED_MDU541_07242",null,null,"Weather Corrected MD 50% POE","MW","Non-Coincident"]
["ED_MDU541_07243",null,null,null,null,"Coincident"]
["ED_MDU541_07244",null,null,"Weather Corrected MD 50% POE","MVA","Non-Coincident"]
["ED_MDU541_07245",null,null,null,null,"Coincident"]
["ED_MDU541_07246",null,"<Enter substation name>","Substation Rating","MVA","Non-Coincident"]
["ED_MDU541_07247",null,null,null,null,"Coincident"]
["ED_MDU541_07248",null,null,"Raw Adjusted MD","MW","Non-Coincident"]
["ED_MDU541_07249",null,null,null,null,"Coincident"]
["ED_MDU541_07250",null,null,"Raw Adjusted MD","MVA","Non-Coincident"]
["ED_MDU541_07251",null,null,null,null,"Coincident"]
["ED_MDU541_07252",null,null,"Date MD occurred",null,"Non-Coincident"]
["ED_MDU541_07253",null,null,null,null,"Coincident"]
["ED_MDU541_07254",null,null,"Half hour time period MD occurred",null,"Non-Coincident"]
["ED_MDU541_07255",null,null,null,null,"Coincident"]
["ED_MDU541_07256",null,null,"Winter/Summer Peaking",null,"Non-Coincident"]
["ED_MDU541_07257",null,null,null,null,"Coincident"]
["ED_MDU541_07258",null,null,"Adjustments - Embedded generation","MW","Non-Coincident"]
["ED_MDU541_07259",null,null,null,null,"Coincident"]
["ED_MDU541_07260",null,null,"Weather Corrected MD 10% POE","MW","Non-Coincident"]
["ED_MDU541_07261",null,null,null,null,"Coincident"]
["ED_MDU541_07262",null,null,"Weather Corrected MD 10% POE","MVA","Non-Coincident"]
["ED_MDU541_07263",null,null,null,null,"Coincident"]
["ED_MDU541_07264",null,null,"Weather Corrected MD 50% POE","MW","Non-Coincident"]
["ED_MDU541_07265",null,null,null,null,"Coincident"]
["ED_MDU541_07266",null,null,"Weather Corrected MD 50% POE","MVA","Non-Coincident"]
["ED_MDU541_07267",null,null,null,null,"Coincident"]
["ED_MDU541_07268",null,"<Enter substation name>","Substation Rating","MVA","Non-Coincident"]
["ED_MDU541_07269",null,null,null,null,"Coincident"]
["ED_MDU541_07270",null,null,"Raw Adjusted MD","MW","Non-Coincident"]
["ED_MDU541_07271",null,null,null,null,"Coincident"]
["ED_MDU541_07272",null,null,"Raw Adjusted MD","MVA","Non-Coincident"]
["ED_MDU541_07273",null,null,null,null,"Coincident"]
["ED_MDU541_07274",null,null,"Date MD occurred",null,"Non-Coincident"]
["ED_MDU541_07275",null,null,null,null,"Coincident"]
["ED_MDU541_07276",null,null,"Half hour time period MD occurred",null,"Non-Coincident"]
["ED_MDU541_07277",null,null,null,null,"Coincident"]
["ED_MDU541_07278",null,null,"Winter/Summer Peaking",null,"Non-Coincident"]
["ED_MDU541_07279",null,null,null,null,"Coincident"]
["ED_MDU541_07280",null,null,"Adjustments - Embedded generation","MW","Non-Coincident"]
["ED_MDU541_07281",null,null,null,null,"Coincident"]
["ED_MDU541_07282",null,null,"Weather Corrected MD 10% POE","MW","Non-Coincident"]
["ED_MDU541_07283",null,null,null,null,"Coincident"]
["ED_MDU541_07284",null,null,"Weather Corrected MD 10% POE","MVA","Non-Coincident"]
["ED_MDU541_07285",null,null,null,null,"Coincident"]
["ED_MDU541_07286",null,null,"Weather Corrected MD 50% POE","MW","Non-Coincident"]
["ED_MDU541_07287",null,null,null,null,"Coincident"]
["ED_MDU541_07288",null,null,"Weather Corrected MD 50% POE","MVA","Non-Coincident"]
["ED_MDU541_07289",null,null,null,null,"Coincident"]
["ED_MDU541_07290",null,"<Enter substation name>","Substation Rating","MVA","Non-Coincident"]
["ED_MDU541_07291",null,null,null,null,"Coincident"]
["ED_MDU541_07292",null,null,"Raw Adjusted MD","MW","Non-Coincident"]
["ED_MDU541_07293",null,null,null,null,"Coincident"]
["ED_MDU541_07294",null,null,"Raw Adjusted MD","MVA","Non-Coincident"]
["ED_MDU541_07295",null,null,null,null,"Coincident"]
["ED_MDU541_07296",null,null,"Date MD occurred",null,"Non-Coincident"]
["ED_MDU541_07297",null,null,null,null,"Coincident"]
["ED_MDU541_07298",null,null,"Half hour time period MD occurred",null,"Non-Coincident"]
["ED_MDU541_07299",null,null,null,null,"Coincident"]
["ED_MDU541_07300",null,null,"Winter/Summer Peaking",null,"Non-Coincident"]
["ED_MDU541_07301",null,null,null,null,"Coincident"]
["ED_MDU541_07302",null,null,"Adjustments - Embedded generation","MW","Non-Coincident"]
["ED_MDU541_07303",null,null,null,null,"Coincident"]
["ED_MDU541_07304",null,null,"Weather Corrected MD 10% POE","MW","Non-Coincident"]
["ED_MDU541_07305",null,null,null,null,"Coincident"]
["ED_MDU541_07306",null,null,"Weather Corrected MD 10% POE","MVA","Non-Coincident"]
["ED_MDU541_07307",null,null,null,null,"Coincident"]
["ED_MDU541_07308",null,null,"Weather Corrected MD 50% POE","MW","Non-Coincident"]
["ED_MDU541_07309",null,null,null,null,"Coincident"]
["ED_MDU541_07310",null,null,"Weather Corrected MD 50% POE","MVA","Non-Coincident"]
["ED_MDU541_07311",null,null,null,null,"Coincident"]
["ED_MDU541_07312",null,"<Enter substation name>","Substation Rating","MVA","Non-Coincident"]
["ED_MDU541_07313",null,null,null,null,"Coincident"]
["ED_MDU541_07314",null,null,"Raw Adjusted MD","MW","Non-Coincident"]
["ED_MDU541_07315",null,null,null,null,"Coincident"]
["ED_MDU541_07316",null,null,"Raw Adjusted MD","MVA","Non-Coincident"]
["ED_MDU541_07317",null,null,null,null,"Coincident"]
["ED_MDU541_07318",null,null,"Date MD occurred",null,"Non-Coincident"]
["ED_MDU541_07319",null,null,null,null,"Coincident"]
["ED_MDU541_07320",null,null,"Half hour time period MD occurred",null,"Non-Coincident"]
["ED_MDU541_07321",null,null,null,null,"Coincident"]
["ED_MDU541_07322",null,null,"Winter/Summer Peaking",null,"Non-Coincident"]
["ED_MDU541_07323",null,null,null,null,"Coincident"]
["ED_MDU541_07324",null,null,"Adjustments - Embedded generation","MW","Non-Coincident"]
["ED_MDU541_07325",null,null,null,null,"Coincident"]
["ED_MDU541_07326",null,null,"Weather Corrected MD 10% POE","MW","Non-Coincident"]
["ED_MDU541_07327",null,null,null,null,"Coincident"]
["ED_MDU541_07328",null,null,"Weather Corrected MD 10% POE","MVA","Non-Coincident"]
["ED_MDU541_07329",null,null,null,null,"Coincident"]
["ED_MDU541_07330",null,null,"Weather Corrected MD 50% POE","MW","Non-Coincident"]
["ED_MDU541_07331",null,null,null,null,"Coincident"]
["ED_MDU541_07332",null,null,"Weather Corrected MD 50% POE","MVA","Non-Coincident"]
["ED_MDU541_07333",null,null,null,null,"Coincident"]
["ED_MDU541_07334",null,"<Enter substation name>","Substation Rating","MVA","Non-Coincident"]
["ED_MDU541_07335",null,null,null,null,"Coincident"]
["ED_MDU541_07336",null,null,"Raw Adjusted MD","MW","Non-Coincident"]
["ED_MDU541_07337",null,null,null,null,"Coincident"]
["ED_MDU541_07338",null,null,"Raw Adjusted MD","MVA","Non-Coincident"]
["ED_MDU541_07339",null,null,null,null,"Coincident"]
["ED_MDU541_07340",null,null,"Date MD occurred",null,"Non-Coincident"]
["ED_MDU541_07341",null,null,null,null,"Coincident"]
["ED_MDU541_07342",null,null,"Half hour time period MD occurred",null,"Non-Coincident"]
["ED_MDU541_07343",null,null,null,null,"Coincident"]
["ED_MDU541_07344",null,null,"Winter/Summer Peaking",null,"Non-Coincident"]
["ED_MDU541_07345",null,null,null,null,"Coincident"]
["ED_MDU541_07346",null,null,"Adjustments - Embedded generation","MW","Non-Coincident"]
["ED_MDU541_07347",null,null,null,null,"Coincident"]
["ED_MDU541_07348",null,null,"Weather Corrected MD 10% POE","MW","Non-Coincident"]
["ED_MDU541_07349",null,null,null,null,"Coincident"]
["ED_MDU541_07350",null,null,"Weather Corrected MD 10% POE","MVA","Non-Coincident"]
["ED_MDU541_07351",null,null,null,null,"Coincident"]
["ED_MDU541_07352",null,null,"Weather Corrected MD 50% POE","MW","Non-Coincident"]
["ED_MDU541_07353",null,null,null,null,"Coincident"]
["ED_MDU541_07354",null,null,"Weather Corrected MD 50% POE","MVA","Non-Coincident"]
["ED_MDU541_07355",null,null,null,null,"Coincident"]
["ED_MDU541_07356",null,"<Enter substation name>","Substation Rating","MVA","Non-Coincident"]
["ED_MDU541_07357",null,null,null,null,"Coincident"]
["ED_MDU541_07358",null,null,"Raw Adjusted MD","MW","Non-Coincident"]
["ED_MDU541_07359",null,null,null,null,"Coincident"]
["ED_MDU541_07360",null,null,"Raw Adjusted MD","MVA","Non-Coincident"]
["ED_MDU541_07361",null,null,null,null,"Coincident"]
["ED_MDU541_07362",null,null,"Date MD occurred",null,"Non-Coincident"]
["ED_MDU541_07363",null,null,null,null,"Coincident"]
["ED_MDU541_07364",null,null,"Half hour time period MD occurred",null,"Non-Coincident"]
["ED_MDU541_07365",null,null,null,null,"Coincident"]
["ED_MDU541_07366",null,null,"Winter/Summer Peaking",null,"Non-Coincident"]
["ED_MDU541_07367",null,null,null,null,"Coincident"]
["ED_MDU541_07368",null,null,"Adjustments - Embedded generation","MW","Non-Coincident"]
["ED_MDU541_07369",null,null,null,null,"Coincident"]
["ED_MDU541_07370",null,null,"Weather Corrected MD 10% POE","MW","Non-Coincident"]
["ED_MDU541_07371",null,null,null,null,"Coincident"]
["ED_MDU541_07372",null,null,"Weather Corrected MD 10% POE","MVA","Non-Coincident"]
["ED_MDU541_07373",null,null,null,null,"Coincident"]
["ED_MDU541_07374",null,null,"Weather Corrected MD 50% POE","MW","Non-Coincident"]
["ED_MDU541_07375",null,null,null,null,"Coincident"]
["ED_MDU541_07376",null,null,"Weather Corrected MD 50% POE","MVA","Non-Coincident"]
["ED_MDU541_07377",null,null,null,null,"Coincident"]
["ED_MDU541_07378",null,"<Enter substation name>","Substation Rating","MVA","Non-Coincident"]
["ED_MDU541_07379",null,null,null,null,"Coincident"]
["ED_MDU541_07380",null,null,"Raw Adjusted MD","MW","Non-Coincident"]
["ED_MDU541_07381",null,null,null,null,"Coincident"]
["ED_MDU541_07382",null,null,"Raw Adjusted MD","MVA","Non-Coincident"]
["ED_MDU541_07383",null,null,null,null,"Coincident"]
["ED_MDU541_07384",null,null,"Date MD occurred",null,"Non-Coincident"]
["ED_MDU541_07385",null,null,null,null,"Coincident"]
["ED_MDU541_07386",null,null,"Half hour time period MD occurred",null,"Non-Coincident"]
["ED_MDU541_07387",null,null,null,null,"Coincident"]
["ED_MDU541_07388",null,null,"Winter/Summer Peaking",null,"Non-Coincident"]
["ED_MDU541_07389",null,null,null,null,"Coincident"]
["ED_MDU541_07390",null,null,"Adjustments - Embedded generation","MW","Non-Coincident"]
["ED_MDU541_07391",null,null,null,null,"Coincident"]
["ED_MDU541_07392",null,null,"Weather Corrected MD 10% POE","MW","Non-Coincident"]
["ED_MDU541_07393",null,null,null,null,"Coincident"]
["ED_MDU541_07394",null,null,"Weather Corrected MD 10% POE","MVA","Non-Coincident"]
["ED_MDU541_07395",null,null,null,null,"Coincident"]
["ED_MDU541_07396",null,null,"Weather Corrected MD 50% POE","MW","Non-Coincident"]
["ED_MDU541_07397",null,null,null,null,"Coincident"]
["ED_MDU541_07398",null,null,"Weather Corrected MD 50% POE","MVA","Non-Coincident"]
["ED_MDU541_07399",null,null,null,null,"Coincident"]
["ED_MDU541_07400",null,"<Enter substation name>","Substation Rating","MVA","Non-Coincident"]
["ED_MDU541_07401",null,null,null,null,"Coincident"]
["ED_MDU541_07402",null,null,"Raw Adjusted MD","MW","Non-Coincident"]
["ED_MDU541_07403",null,null,null,null,"Coincident"]
["ED_MDU541_07404",null,null,"Raw Adjusted MD","MVA","Non-Coincident"]
["ED_MDU541_07405",null,null,null,null,"Coincident"]
["ED_MDU541_07406",null,null,"Date MD occurred",null,"Non-Coincident"]
["ED_MDU541_07407",null,null,null,null,"Coincident"]
["ED_MDU541_07408",null,null,"Half hour time period MD occurred",null,"Non-Coincident"]
["ED_MDU541_07409",null,null,null,null,"Coincident"]
["ED_MDU541_07410",null,null,"Winter/Summer Peaking",null,"Non-Coincident"]
["ED_MDU541_07411",null,null,null,null,"Coincident"]
["ED_MDU541_07412",null,null,"Adjustments - Embedded generation","MW","Non-Coincident"]
["ED_MDU541_07413",null,null,null,null,"Coincident"]
["ED_MDU541_07414",null,null,"Weather Corrected MD 10% POE","MW","Non-Coincident"]
["ED_MDU541_07415",null,null,null,null,"Coincident"]
["ED_MDU541_07416",null,null,"Weather Corrected MD 10% POE","MVA","Non-Coincident"]
["ED_MDU541_07417",null,null,null,null,"Coincident"]
["ED_MDU541_07418",null,null,"Weather Corrected MD 50% POE","MW","Non-Coincident"]
["ED_MDU541_07419",null,null,null,null,"Coincident"]
["ED_MDU541_07420",null,null,"Weather Corrected MD 50% POE","MVA","Non-Coincident"]
["ED_MDU541_07421",null,null,null,null,"Coincident"]
["ED_MDU541_07422",null,"<Enter substation name>","Substation Rating","MVA","Non-Coincident"]
["ED_MDU541_07423",null,null,null,null,"Coincident"]
["ED_MDU541_07424",null,null,"Raw Adjusted MD","MW","Non-Coincident"]
["ED_MDU541_07425",null,null,null,null,"Coincident"]
["ED_MDU541_07426",null,null,"Raw Adjusted MD","MVA","Non-Coincident"]
["ED_MDU541_07427",null,null,null,null,"Coincident"]
["ED_MDU541_07428",null,null,"Date MD occurred",null,"Non-Coincident"]
["ED_MDU541_07429",null,null,null,null,"Coincident"]
["ED_MDU541_07430",null,null,"Half hour time period MD occurred",null,"Non-Coincident"]
["ED_MDU541_07431",null,null,null,null,"Coincident"]
["ED_MDU541_07432",null,null,"Winter/Summer Peaking",null,"Non-Coincident"]
["ED_MDU541_07433",null,null,null,null,"Coincident"]
["ED_MDU541_07434",null,null,"Adjustments - Embedded generation","MW","Non-Coincident"]
["ED_MDU541_07435",null,null,null,null,"Coincident"]
["ED_MDU541_07436",null,null,"Weather Corrected MD 10% POE","MW","Non-Coincident"]
["ED_MDU541_07437",null,null,null,null,"Coincident"]
["ED_MDU541_07438",null,null,"Weather Corrected MD 10% POE","MVA","Non-Coincident"]
["ED_MDU541_07439",null,null,null,null,"Coincident"]
["ED_MDU541_07440",null,null,"Weather Corrected MD 50% POE","MW","Non-Coincident"]
["ED_MDU541_07441",null,null,null,null,"Coincident"]
["ED_MDU541_07442",null,null,"Weather Corrected MD 50% POE","MVA","Non-Coincident"]
["ED_MDU541_07443",null,null,null,null,"Coincident"]
["ED_MDU541_07444",null,"<Enter substation name>","Substation Rating","MVA","Non-Coincident"]
["ED_MDU541_07445",null,null,null,null,"Coincident"]
["ED_MDU541_07446",null,null,"Raw Adjusted MD","MW","Non-Coincident"]
["ED_MDU541_07447",null,null,null,null,"Coincident"]
["ED_MDU541_07448",null,null,"Raw Adjusted MD","MVA","Non-Coincident"]
["ED_MDU541_07449",null,null,null,null,"Coincident"]
["ED_MDU541_07450",null,null,"Date MD occurred",null,"Non-Coincident"]
["ED_MDU541_07451",null,null,null,null,"Coincident"]
["ED_MDU541_07452",null,null,"Half hour time period MD occurred",null,"Non-Coincident"]
["ED_MDU541_07453",null,null,null,null,"Coincident"]
["ED_MDU541_07454",null,null,"Winter/Summer Peaking",null,"Non-Coincident"]
["ED_MDU541_07455",null,null,null,null,"Coincident"]
["ED_MDU541_07456",null,null,"Adjustments - Embedded generation","MW","Non-Coincident"]
["ED_MDU541_07457",null,null,null,null,"Coincident"]
["ED_MDU541_07458",null,null,"Weather Corrected MD 10% POE","MW","Non-Coincident"]
["ED_MDU541_07459",null,null,null,null,"Coincident"]
["ED_MDU541_07460",null,null,"Weather Corrected MD 10% POE","MVA","Non-Coincident"]
["ED_MDU541_07461",null,null,null,null,"Coincident"]
["ED_MDU541_07462",null,null,"Weather Corrected MD 50% POE","MW","Non-Coincident"]
["ED_MDU541_07463",null,null,null,null,"Coincident"]
["ED_MDU541_07464",null,null,"Weather Corrected MD 50% POE","MVA","Non-Coincident"]
["ED_MDU541_07465",null,null,null,null,"Coincident"]
["ED_MDU541_07466",null,"<Enter substation name>","Substation Rating","MVA","Non-Coincident"]
["ED_MDU541_07467",null,null,null,null,"Coincident"]
["ED_MDU541_07468",null,null,"Raw Adjusted MD","MW","Non-Coincident"]
["ED_MDU541_07469",null,null,null,null,"Coincident"]
["ED_MDU541_07470",null,null,"Raw Adjusted MD","MVA","Non-Coincident"]
["ED_MDU541_07471",null,null,null,null,"Coincident"]
["ED_MDU541_07472",null,null,"Date MD occurred",null,"Non-Coincident"]
["ED_MDU541_07473",null,null,null,null,"Coincident"]
["ED_MDU541_07474",null,null,"Half hour time period MD occurred",null,"Non-Coincident"]
["ED_MDU541_07475",null,null,null,null,"Coincident"]
["ED_MDU541_07476",null,null,"Winter/Summer Peaking",null,"Non-Coincident"]
["ED_MDU541_07477",null,null,null,null,"Coincident"]
["ED_MDU541_07478",null,null,"Adjustments - Embedded generation","MW","Non-Coincident"]
["ED_MDU541_07479",null,null,null,null,"Coincident"]
["ED_MDU541_07480",null,null,"Weather Corrected MD 10% POE","MW","Non-Coincident"]
["ED_MDU541_07481",null,null,null,null,"Coincident"]
["ED_MDU541_07482",null,null,"Weather Corrected MD 10% POE","MVA","Non-Coincident"]
["ED_MDU541_07483",null,null,null,null,"Coincident"]
["ED_MDU541_07484",null,null,"Weather Corrected MD 50% POE","MW","Non-Coincident"]
["ED_MDU541_07485",null,null,null,null,"Coincident"]
["ED_MDU541_07486",null,null,"Weather Corrected MD 50% POE","MVA","Non-Coincident"]
["ED_MDU541_07487",null,null,null,null,"Coincident"]
["ED_MDU541_07488",null,"<Enter substation name>","Substation Rating","MVA","Non-Coincident"]
["ED_MDU541_07489",null,null,null,null,"Coincident"]
["ED_MDU541_07490",null,null,"Raw Adjusted MD","MW","Non-Coincident"]
["ED_MDU541_07491",null,null,null,null,"Coincident"]
["ED_MDU541_07492",null,null,"Raw Adjusted MD","MVA","Non-Coincident"]
["ED_MDU541_07493",null,null,null,null,"Coincident"]
["ED_MDU541_07494",null,null,"Date MD occurred",null,"Non-Coincident"]
["ED_MDU541_07495",null,null,null,null,"Coincident"]
["ED_MDU541_07496",null,null,"Half hour time period MD occurred",null,"Non-Coincident"]
["ED_MDU541_07497",null,null,null,null,"Coincident"]
["ED_MDU541_07498",null,null,"Winter/Summer Peaking",null,"Non-Coincident"]
["ED_MDU541_07499",null,null,null,null,"Coincident"]
["ED_MDU541_07500",null,null,"Adjustments - Embedded generation","MW","Non-Coincident"]
["ED_MDU541_07501",null,null,null,null,"Coincident"]
["ED_MDU541_07502",null,null,"Weather Corrected MD 10% POE","MW","Non-Coincident"]
["ED_MDU541_07503",null,null,null,null,"Coincident"]
["ED_MDU541_07504",null,null,"Weather Corrected MD 10% POE","MVA","Non-Coincident"]
["ED_MDU541_07505",null,null,null,null,"Coincident"]
["ED_MDU541_07506",null,null,"Weather Corrected MD 50% POE","MW","Non-Coincident"]
["ED_MDU541_07507",null,null,null,null,"Coincident"]
["ED_MDU541_07508",null,null,"Weather Corrected MD 50% POE","MVA","Non-Coincident"]
["ED_MDU541_07509",null,null,null,null,"Coincident"]
["ED_MDU541_07510",null,"<Enter substation name>","Substation Rating","MVA","Non-Coincident"]
["ED_MDU541_07511",null,null,null,null,"Coincident"]
["ED_MDU541_07512",null,null,"Raw Adjusted MD","MW","Non-Coincident"]
["ED_MDU541_07513",null,null,null,null,"Coincident"]
["ED_MDU541_07514",null,null,"Raw Adjusted MD","MVA","Non-Coincident"]
["ED_MDU541_07515",null,null,null,null,"Coincident"]
["ED_MDU541_07516",null,null,"Date MD occurred",null,"Non-Coincident"]
["ED_MDU541_07517",null,null,null,null,"Coincident"]
["ED_MDU541_07518",null,null,"Half hour time period MD occurred",null,"Non-Coincident"]
["ED_MDU541_07519",null,null,null,null,"Coincident"]
["ED_MDU541_07520",null,null,"Winter/Summer Peaking",null,"Non-Coincident"]
["ED_MDU541_07521",null,null,null,null,"Coincident"]
["ED_MDU541_07522",null,null,"Adjustments - Embedded generation","MW","Non-Coincident"]
["ED_MDU541_07523",null,null,null,null,"Coincident"]
["ED_MDU541_07524",null,null,"Weather Corrected MD 10% POE","MW","Non-Coincident"]
["ED_MDU541_07525",null,null,null,null,"Coincident"]
["ED_MDU541_07526",null,null,"Weather Corrected MD 10% POE","MVA","Non-Coincident"]
["ED_MDU541_07527",null,null,null,null,"Coincident"]
["ED_MDU541_07528",null,null,"Weather Corrected MD 50% POE","MW","Non-Coincident"]
["ED_MDU541_07529",null,null,null,null,"Coincident"]
["ED_MDU541_07530",null,null,"Weather Corrected MD 50% POE","MVA","Non-Coincident"]
["ED_MDU541_07531",null,null,null,null,"Coincident"]
["ED_MDU541_07532",null,"<Enter substation name>","Substation Rating","MVA","Non-Coincident"]
["ED_MDU541_07533",null,null,null,null,"Coincident"]
["ED_MDU541_07534",null,null,"Raw Adjusted MD","MW","Non-Coincident"]
["ED_MDU541_07535",null,null,null,null,"Coincident"]
["ED_MDU541_07536",null,null,"Raw Adjusted MD","MVA","Non-Coincident"]
["ED_MDU541_07537",null,null,null,null,"Coincident"]
["ED_MDU541_07538",null,null,"Date MD occurred",null,"Non-Coincident"]
["ED_MDU541_07539",null,null,null,null,"Coincident"]
["ED_MDU541_07540",null,null,"Half hour time period MD occurred",null,"Non-Coincident"]
["ED_MDU541_07541",null,null,null,null,"Coincident"]
["ED_MDU541_07542",null,null,"Winter/Summer Peaking",null,"Non-Coincident"]
["ED_MDU541_07543",null,null,null,null,"Coincident"]
["ED_MDU541_07544",null,null,"Adjustments - Embedded generation","MW","Non-Coincident"]
["ED_MDU541_07545",null,null,null,null,"Coincident"]
["ED_MDU541_07546",null,null,"Weather Corrected MD 10% POE","MW","Non-Coincident"]
["ED_MDU541_07547",null,null,null,null,"Coincident"]
["ED_MDU541_07548",null,null,"Weather Corrected MD 10% POE","MVA","Non-Coincident"]
["ED_MDU541_07549",null,null,null,null,"Coincident"]
["ED_MDU541_07550",null,null,"Weather Corrected MD 50% POE","MW","Non-Coincident"]
["ED_MDU541_07551",null,null,null,null,"Coincident"]
["ED_MDU541_07552",null,null,"Weather Corrected MD 50% POE","MVA","Non-Coincident"]
["ED_MDU541_07553",null,null,null,null,"Coincident"]
["ED_MDU541_07554",null,"<Enter substation name>","Substation Rating","MVA","Non-Coincident"]
["ED_MDU541_07555",null,null,null,null,"Coincident"]
["ED_MDU541_07556",null,null,"Raw Adjusted MD","MW","Non-Coincident"]
["ED_MDU541_07557",null,null,null,null,"Coincident"]
["ED_MDU541_07558",null,null,"Raw Adjusted MD","MVA","Non-Coincident"]
["ED_MDU541_07559",null,null,null,null,"Coincident"]
["ED_MDU541_07560",null,null,"Date MD occurred",null,"Non-Coincident"]
["ED_MDU541_07561",null,null,null,null,"Coincident"]
["ED_MDU541_07562",null,null,"Half hour time period MD occurred",null,"Non-Coincident"]
["ED_MDU541_07563",null,null,null,null,"Coincident"]
["ED_MDU541_07564",null,null,"Winter/Summer Peaking",null,"Non-Coincident"]
["ED_MDU541_07565",null,null,null,null,"Coincident"]
["ED_MDU541_07566",null,null,"Adjustments - Embedded generation","MW","Non-Coincident"]
["ED_MDU541_07567",null,null,null,null,"Coincident"]
["ED_MDU541_07568",null,null,"Weather Corrected MD 10% POE","MW","Non-Coincident"]
["ED_MDU541_07569",null,null,null,null,"Coincident"]
["ED_MDU541_07570",null,null,"Weather Corrected MD 10% POE","MVA","Non-Coincident"]
["ED_MDU541_07571",null,null,null,null,"Coincident"]
["ED_MDU541_07572",null,null,"Weather Corrected MD 50% POE","MW","Non-Coincident"]
["ED_MDU541_07573",null,null,null,null,"Coincident"]
["ED_MDU541_07574",null,null,"Weather Corrected MD 50% POE","MVA","Non-Coincident"]
["ED_MDU541_07575",null,null,null,null,"Coincident"]
["ED_MDU541_07576",null,"<Enter substation name>","Substation Rating","MVA","Non-Coincident"]
["ED_MDU541_07577",null,null,null,null,"Coincident"]
["ED_MDU541_07578",null,null,"Raw Adjusted MD","MW","Non-Coincident"]
["ED_MDU541_07579",null,null,null,null,"Coincident"]
["ED_MDU541_07580",null,null,"Raw Adjusted MD","MVA","Non-Coincident"]
["ED_MDU541_07581",null,null,null,null,"Coincident"]
["ED_MDU541_07582",null,null,"Date MD occurred",null,"Non-Coincident"]
["ED_MDU541_07583",null,null,null,null,"Coincident"]
["ED_MDU541_07584",null,null,"Half hour time period MD occurred",null,"Non-Coincident"]
["ED_MDU541_07585",null,null,null,null,"Coincident"]
["ED_MDU541_07586",null,null,"Winter/Summer Peaking",null,"Non-Coincident"]
["ED_MDU541_07587",null,null,null,null,"Coincident"]
["ED_MDU541_07588",null,null,"Adjustments - Embedded generation","MW","Non-Coincident"]
["ED_MDU541_07589",null,null,null,null,"Coincident"]
["ED_MDU541_07590",null,null,"Weather Corrected MD 10% POE","MW","Non-Coincident"]
["ED_MDU541_07591",null,null,null,null,"Coincident"]
["ED_MDU541_07592",null,null,"Weather Corrected MD 10% POE","MVA","Non-Coincident"]
["ED_MDU541_07593",null,null,null,null,"Coincident"]
["ED_MDU541_07594",null,null,"Weather Corrected MD 50% POE","MW","Non-Coincident"]
["ED_MDU541_07595",null,null,null,null,"Coincident"]
["ED_MDU541_07596",null,null,"Weather Corrected MD 50% POE","MVA","Non-Coincident"]
["ED_MDU541_07597",null,null,null,null,"Coincident"]
["ED_MDU541_07598",null,"<Enter substation name>","Substation Rating","MVA","Non-Coincident"]
["ED_MDU541_07599",null,null,null,null,"Coincident"]
["ED_MDU541_07600",null,null,"Raw Adjusted MD","MW","Non-Coincident"]
["ED_MDU541_07601",null,null,null,null,"Coincident"]
["ED_MDU541_07602",null,null,"Raw Adjusted MD","MVA","Non-Coincident"]
["ED_MDU541_07603",null,null,null,null,"Coincident"]
["ED_MDU541_07604",null,null,"Date MD occurred",null,"Non-Coincident"]
["ED_MDU541_07605",null,null,null,null,"Coincident"]
["ED_MDU541_07606",null,null,"Half hour time period MD occurred",null,"Non-Coincident"]
["ED_MDU541_07607",null,null,null,null,"Coincident"]
["ED_MDU541_07608",null,null,"Winter/Summer Peaking",null,"Non-Coincident"]
["ED_MDU541_07609",null,null,null,null,"Coincident"]
["ED_MDU541_07610",null,null,"Adjustments - Embedded generation","MW","Non-Coincident"]
["ED_MDU541_07611",null,null,null,null,"Coincident"]
["ED_MDU541_07612",null,null,"Weather Corrected MD 10% POE","MW","Non-Coincident"]
["ED_MDU541_07613",null,null,null,null,"Coincident"]
["ED_MDU541_07614",null,null,"Weather Corrected MD 10% POE","MVA","Non-Coincident"]
["ED_MDU541_07615",null,null,null,null,"Coincident"]
["ED_MDU541_07616",null,null,"Weather Corrected MD 50% POE","MW","Non-Coincident"]
["ED_MDU541_07617",null,null,null,null,"Coincident"]
["ED_MDU541_07618",null,null,"Weather Corrected MD 50% POE","MVA","Non-Coincident"]
["ED_MDU541_07619",null,null,null,null,"Coincident"]
["ED_MDU541_07620",null,"<Enter substation name>","Substation Rating","MVA","Non-Coincident"]
["ED_MDU541_07621",null,null,null,null,"Coincident"]
["ED_MDU541_07622",null,null,"Raw Adjusted MD","MW","Non-Coincident"]
["ED_MDU541_07623",null,null,null,null,"Coincident"]
["ED_MDU541_07624",null,null,"Raw Adjusted MD","MVA","Non-Coincident"]
["ED_MDU541_07625",null,null,null,null,"Coincident"]
["ED_MDU541_07626",null,null,"Date MD occurred",null,"Non-Coincident"]
["ED_MDU541_07627",null,null,null,null,"Coincident"]
["ED_MDU541_07628",null,null,"Half hour time period MD occurred",null,"Non-Coincident"]
["ED_MDU541_07629",null,null,null,null,"Coincident"]
["ED_MDU541_07630",null,null,"Winter/Summer Peaking",null,"Non-Coincident"]
["ED_MDU541_07631",null,null,null,null,"Coincident"]
["ED_MDU541_07632",null,null,"Adjustments - Embedded generation","MW","Non-Coincident"]
["ED_MDU541_07633",null,null,null,null,"Coincident"]
["ED_MDU541_07634",null,null,"Weather Corrected MD 10% POE","MW","Non-Coincident"]
["ED_MDU541_07635",null,null,null,null,"Coincident"]
["ED_MDU541_07636",null,null,"Weather Corrected MD 10% POE","MVA","Non-Coincident"]
["ED_MDU541_07637",null,null,null,null,"Coincident"]
["ED_MDU541_07638",null,null,"Weather Corrected MD 50% POE","MW","Non-Coincident"]
["ED_MDU541_07639",null,null,null,null,"Coincident"]
["ED_MDU541_07640",null,null,"Weather Corrected MD 50% POE","MVA","Non-Coincident"]
["ED_MDU541_07641",null,null,null,null,"Coincident"]
["ED_MDU541_07642",null,"<Enter substation name>","Substation Rating","MVA","Non-Coincident"]
["ED_MDU541_07643",null,null,null,null,"Coincident"]
["ED_MDU541_07644",null,null,"Raw Adjusted MD","MW","Non-Coincident"]
["ED_MDU541_07645",null,null,null,null,"Coincident"]
["ED_MDU541_07646",null,null,"Raw Adjusted MD","MVA","Non-Coincident"]
["ED_MDU541_07647",null,null,null,null,"Coincident"]
["ED_MDU541_07648",null,null,"Date MD occurred",null,"Non-Coincident"]
["ED_MDU541_07649",null,null,null,null,"Coincident"]
["ED_MDU541_07650",null,null,"Half hour time period MD occurred",null,"Non-Coincident"]
["ED_MDU541_07651",null,null,null,null,"Coincident"]
["ED_MDU541_07652",null,null,"Winter/Summer Peaking",null,"Non-Coincident"]
["ED_MDU541_07653",null,null,null,null,"Coincident"]
["ED_MDU541_07654",null,null,"Adjustments - Embedded generation","MW","Non-Coincident"]
["ED_MDU541_07655",null,null,null,null,"Coincident"]
["ED_MDU541_07656",null,null,"Weather Corrected MD 10% POE","MW","Non-Coincident"]
["ED_MDU541_07657",null,null,null,null,"Coincident"]
["ED_MDU541_07658",null,null,"Weather Corrected MD 10% POE","MVA","Non-Coincident"]
["ED_MDU541_07659",null,null,null,null,"Coincident"]
["ED_MDU541_07660",null,null,"Weather Corrected MD 50% POE","MW","Non-Coincident"]
["ED_MDU541_07661",null,null,null,null,"Coincident"]
["ED_MDU541_07662",null,null,"Weather Corrected MD 50% POE","MVA","Non-Coincident"]
["ED_MDU541_07663",null,null,null,null,"Coincident"]
["ED_MDU541_07664",null,"<Enter substation name>","Substation Rating","MVA","Non-Coincident"]
["ED_MDU541_07665",null,null,null,null,"Coincident"]
["ED_MDU541_07666",null,null,"Raw Adjusted MD","MW","Non-Coincident"]
["ED_MDU541_07667",null,null,null,null,"Coincident"]
["ED_MDU541_07668",null,null,"Raw Adjusted MD","MVA","Non-Coincident"]
["ED_MDU541_07669",null,null,null,null,"Coincident"]
["ED_MDU541_07670",null,null,"Date MD occurred",null,"Non-Coincident"]
["ED_MDU541_07671",null,null,null,null,"Coincident"]
["ED_MDU541_07672",null,null,"Half hour time period MD occurred",null,"Non-Coincident"]
["ED_MDU541_07673",null,null,null,null,"Coincident"]
["ED_MDU541_07674",null,null,"Winter/Summer Peaking",null,"Non-Coincident"]
["ED_MDU541_07675",null,null,null,null,"Coincident"]
["ED_MDU541_07676",null,null,"Adjustments - Embedded generation","MW","Non-Coincident"]
["ED_MDU541_07677",null,null,null,null,"Coincident"]
["ED_MDU541_07678",null,null,"Weather Corrected MD 10% POE","MW","Non-Coincident"]
["ED_MDU541_07679",null,null,null,null,"Coincident"]
["ED_MDU541_07680",null,null,"Weather Corrected MD 10% POE","MVA","Non-Coincident"]
["ED_MDU541_07681",null,null,null,null,"Coincident"]
["ED_MDU541_07682",null,null,"Weather Corrected MD 50% POE","MW","Non-Coincident"]
["ED_MDU541_07683",null,null,null,null,"Coincident"]
["ED_MDU541_07684",null,null,"Weather Corrected MD 50% POE","MVA","Non-Coincident"]
["ED_MDU541_07685",null,null,null,null,"Coincident"]
["ED_MDU541_07686",null,"<Enter substation name>","Substation Rating","MVA","Non-Coincident"]
["ED_MDU541_07687",null,null,null,null,"Coincident"]
["ED_MDU541_07688",null,null,"Raw Adjusted MD","MW","Non-Coincident"]
["ED_MDU541_07689",null,null,null,null,"Coincident"]
["ED_MDU541_07690",null,null,"Raw Adjusted MD","MVA","Non-Coincident"]
["ED_MDU541_07691",null,null,null,null,"Coincident"]
["ED_MDU541_07692",null,null,"Date MD occurred",null,"Non-Coincident"]
["ED_MDU541_07693",null,null,null,null,"Coincident"]
["ED_MDU541_07694",null,null,"Half hour time period MD occurred",null,"Non-Coincident"]
["ED_MDU541_07695",null,null,null,null,"Coincident"]
["ED_MDU541_07696",null,null,"Winter/Summer Peaking",null,"Non-Coincident"]
["ED_MDU541_07697",null,null,null,null,"Coincident"]
["ED_MDU541_07698",null,null,"Adjustments - Embedded generation","MW","Non-Coincident"]
["ED_MDU541_07699",null,null,null,null,"Coincident"]
["ED_MDU541_07700",null,null,"Weather Corrected MD 10% POE","MW","Non-Coincident"]
["ED_MDU541_07701",null,null,null,null,"Coincident"]
["ED_MDU541_07702",null,null,"Weather Corrected MD 10% POE","MVA","Non-Coincident"]
["ED_MDU541_07703",null,null,null,null,"Coincident"]
["ED_MDU541_07704",null,null,"Weather Corrected MD 50% POE","MW","Non-Coincident"]
["ED_MDU541_07705",null,null,null,null,"Coincident"]
["ED_MDU541_07706",null,null,"Weather Corrected MD 50% POE","MVA","Non-Coincident"]
["ED_MDU541_07707",null,null,null,null,"Coincident"]
["ED_MDU541_07708",null,"<Enter substation name>","Substation Rating","MVA","Non-Coincident"]
["ED_MDU541_07709",null,null,null,null,"Coincident"]
["ED_MDU541_07710",null,null,"Raw Adjusted MD","MW","Non-Coincident"]
["ED_MDU541_07711",null,null,null,null,"Coincident"]
["ED_MDU541_07712",null,null,"Raw Adjusted MD","MVA","Non-Coincident"]
["ED_MDU541_07713",null,null,null,null,"Coincident"]
["ED_MDU541_07714",null,null,"Date MD occurred",null,"Non-Coincident"]
["ED_MDU541_07715",null,null,null,null,"Coincident"]
["ED_MDU541_07716",null,null,"Half hour time period MD occurred",null,"Non-Coincident"]
["ED_MDU541_07717",null,null,null,null,"Coincident"]
["ED_MDU541_07718",null,null,"Winter/Summer Peaking",null,"Non-Coincident"]
["ED_MDU541_07719",null,null,null,null,"Coincident"]
["ED_MDU541_07720",null,null,"Adjustments - Embedded generation","MW","Non-Coincident"]
["ED_MDU541_07721",null,null,null,null,"Coincident"]
["ED_MDU541_07722",null,null,"Weather Corrected MD 10% POE","MW","Non-Coincident"]
["ED_MDU541_07723",null,null,null,null,"Coincident"]
["ED_MDU541_07724",null,null,"Weather Corrected MD 10% POE","MVA","Non-Coincident"]
["ED_MDU541_07725",null,null,null,null,"Coincident"]
["ED_MDU541_07726",null,null,"Weather Corrected MD 50% POE","MW","Non-Coincident"]
["ED_MDU541_07727",null,null,null,null,"Coincident"]
["ED_MDU541_07728",null,null,"Weather Corrected MD 50% POE","MVA","Non-Coincident"]
["ED_MDU541_07729",null,null,null,null,"Coincident"]
["ED_MDU541_07730",null,"<Enter substation name>","Substation Rating","MVA","Non-Coincident"]
["ED_MDU541_07731",null,null,null,null,"Coincident"]
["ED_MDU541_07732",null,null,"Raw Adjusted MD","MW","Non-Coincident"]
["ED_MDU541_07733",null,null,null,null,"Coincident"]
["ED_MDU541_07734",null,null,"Raw Adjusted MD","MVA","Non-Coincident"]
["ED_MDU541_07735",null,null,null,null,"Coincident"]
["ED_MDU541_07736",null,null,"Date MD occurred",null,"Non-Coincident"]
["ED_MDU541_07737",null,null,null,null,"Coincident"]
["ED_MDU541_07738",null,null,"Half hour time period MD occurred",null,"Non-Coincident"]
["ED_MDU541_07739",null,null,null,null,"Coincident"]
["ED_MDU541_07740",null,null,"Winter/Summer Peaking",null,"Non-Coincident"]
["ED_MDU541_07741",null,null,null,null,"Coincident"]
["ED_MDU541_07742",null,null,"Adjustments - Embedded generation","MW","Non-Coincident"]
["ED_MDU541_07743",null,null,null,null,"Coincident"]
["ED_MDU541_07744",null,null,"Weather Corrected MD 10% POE","MW","Non-Coincident"]
["ED_MDU541_07745",null,null,null,null,"Coincident"]
["ED_MDU541_07746",null,null,"Weather Corrected MD 10% POE","MVA","Non-Coincident"]
["ED_MDU541_07747",null,null,null,null,"Coincident"]
["ED_MDU541_07748",null,null,"Weather Corrected MD 50% POE","MW","Non-Coincident"]
["ED_MDU541_07749",null,null,null,null,"Coincident"]
["ED_MDU541_07750",null,null,"Weather Corrected MD 50% POE","MVA","Non-Coincident"]
["ED_MDU541_07751",null,null,null,null,"Coincident"]
["ED_MDU541_07752",null,"<Enter substation name>","Substation Rating","MVA","Non-Coincident"]
["ED_MDU541_07753",null,null,null,null,"Coincident"]
["ED_MDU541_07754",null,null,"Raw Adjusted MD","MW","Non-Coincident"]
["ED_MDU541_07755",null,null,null,null,"Coincident"]
["ED_MDU541_07756",null,null,"Raw Adjusted MD","MVA","Non-Coincident"]
["ED_MDU541_07757",null,null,null,null,"Coincident"]
["ED_MDU541_07758",null,null,"Date MD occurred",null,"Non-Coincident"]
["ED_MDU541_07759",null,null,null,null,"Coincident"]
["ED_MDU541_07760",null,null,"Half hour time period MD occurred",null,"Non-Coincident"]
["ED_MDU541_07761",null,null,null,null,"Coincident"]
["ED_MDU541_07762",null,null,"Winter/Summer Peaking",null,"Non-Coincident"]
["ED_MDU541_07763",null,null,null,null,"Coincident"]
["ED_MDU541_07764",null,null,"Adjustments - Embedded generation","MW","Non-Coincident"]
["ED_MDU541_07765",null,null,null,null,"Coincident"]
["ED_MDU541_07766",null,null,"Weather Corrected MD 10% POE","MW","Non-Coincident"]
["ED_MDU541_07767",null,null,null,null,"Coincident"]
["ED_MDU541_07768",null,null,"Weather Corrected MD 10% POE","MVA","Non-Coincident"]
["ED_MDU541_07769",null,null,null,null,"Coincident"]
["ED_MDU541_07770",null,null,"Weather Corrected MD 50% POE","MW","Non-Coincident"]
["ED_MDU541_07771",null,null,null,null,"Coincident"]
["ED_MDU541_07772",null,null,"Weather Corrected MD 50% POE","MVA","Non-Coincident"]
["ED_MDU541_07773",null,null,null,null,"Coincident"]
["ED_MDU541_07774",null,"<Enter substation name>","Substation Rating","MVA","Non-Coincident"]
["ED_MDU541_07775",null,null,null,null,"Coincident"]
["ED_MDU541_07776",null,null,"Raw Adjusted MD","MW","Non-Coincident"]
["ED_MDU541_07777",null,null,null,null,"Coincident"]
["ED_MDU541_07778",null,null,"Raw Adjusted MD","MVA","Non-Coincident"]
["ED_MDU541_07779",null,null,null,null,"Coincident"]
["ED_MDU541_07780",null,null,"Date MD occurred",null,"Non-Coincident"]
["ED_MDU541_07781",null,null,null,null,"Coincident"]
["ED_MDU541_07782",null,null,"Half hour time period MD occurred",null,"Non-Coincident"]
["ED_MDU541_07783",null,null,null,null,"Coincident"]
["ED_MDU541_07784",null,null,"Winter/Summer Peaking",null,"Non-Coincident"]
["ED_MDU541_07785",null,null,null,null,"Coincident"]
["ED_MDU541_07786",null,null,"Adjustments - Embedded generation","MW","Non-Coincident"]
["ED_MDU541_07787",null,null,null,null,"Coincident"]
["ED_MDU541_07788",null,null,"Weather Corrected MD 10% POE","MW","Non-Coincident"]
["ED_MDU541_07789",null,null,null,null,"Coincident"]
["ED_MDU541_07790",null,null,"Weather Corrected MD 10% POE","MVA","Non-Coincident"]
["ED_MDU541_07791",null,null,null,null,"Coincident"]
["ED_MDU541_07792",null,null,"Weather Corrected MD 50% POE","MW","Non-Coincident"]
["ED_MDU541_07793",null,null,null,null,"Coincident"]
["ED_MDU541_07794",null,null,"Weather Corrected MD 50% POE","MVA","Non-Coincident"]
["ED_MDU541_07795",null,null,null,null,"Coincident"]
["ED_MDU541_07796",null,"<Enter substation name>","Substation Rating","MVA","Non-Coincident"]
["ED_MDU541_07797",null,null,null,null,"Coincident"]
["ED_MDU541_07798",null,null,"Raw Adjusted MD","MW","Non-Coincident"]
["ED_MDU541_07799",null,null,null,null,"Coincident"]
["ED_MDU541_07800",null,null,"Raw Adjusted MD","MVA","Non-Coincident"]
["ED_MDU541_07801",null,null,null,null,"Coincident"]
["ED_MDU541_07802",null,null,"Date MD occurred",null,"Non-Coincident"]
["ED_MDU541_07803",null,null,null,null,"Coincident"]
["ED_MDU541_07804",null,null,"Half hour time period MD occurred",null,"Non-Coincident"]
["ED_MDU541_07805",null,null,null,null,"Coincident"]
["ED_MDU541_07806",null,null,"Winter/Summer Peaking",null,"Non-Coincident"]
["ED_MDU541_07807",null,null,null,null,"Coincident"]
["ED_MDU541_07808",null,null,"Adjustments - Embedded generation","MW","Non-Coincident"]
["ED_MDU541_07809",null,null,null,null,"Coincident"]
["ED_MDU541_07810",null,null,"Weather Corrected MD 10% POE","MW","Non-Coincident"]
["ED_MDU541_07811",null,null,null,null,"Coincident"]
["ED_MDU541_07812",null,null,"Weather Corrected MD 10% POE","MVA","Non-Coincident"]
["ED_MDU541_07813",null,null,null,null,"Coincident"]
["ED_MDU541_07814",null,null,"Weather Corrected MD 50% POE","MW","Non-Coincident"]
["ED_MDU541_07815",null,null,null,null,"Coincident"]
["ED_MDU541_07816",null,null,"Weather Corrected MD 50% POE","MVA","Non-Coincident"]
["ED_MDU541_07817",null,null,null,null,"Coincident"]
["ED_MDU541_07818",null,"<Enter substation name>","Substation Rating","MVA","Non-Coincident"]
["ED_MDU541_07819",null,null,null,null,"Coincident"]
["ED_MDU541_07820",null,null,"Raw Adjusted MD","MW","Non-Coincident"]
["ED_MDU541_07821",null,null,null,null,"Coincident"]
["ED_MDU541_07822",null,null,"Raw Adjusted MD","MVA","Non-Coincident"]
["ED_MDU541_07823",null,null,null,null,"Coincident"]
["ED_MDU541_07824",null,null,"Date MD occurred",null,"Non-Coincident"]
["ED_MDU541_07825",null,null,null,null,"Coincident"]
["ED_MDU541_07826",null,null,"Half hour time period MD occurred",null,"Non-Coincident"]
["ED_MDU541_07827",null,null,null,null,"Coincident"]
["ED_MDU541_07828",null,null,"Winter/Summer Peaking",null,"Non-Coincident"]
["ED_MDU541_07829",null,null,null,null,"Coincident"]
["ED_MDU541_07830",null,null,"Adjustments - Embedded generation","MW","Non-Coincident"]
["ED_MDU541_07831",null,null,null,null,"Coincident"]
["ED_MDU541_07832",null,null,"Weather Corrected MD 10% POE","MW","Non-Coincident"]
["ED_MDU541_07833",null,null,null,null,"Coincident"]
["ED_MDU541_07834",null,null,"Weather Corrected MD 10% POE","MVA","Non-Coincident"]
["ED_MDU541_07835",null,null,null,null,"Coincident"]
["ED_MDU541_07836",null,null,"Weather Corrected MD 50% POE","MW","Non-Coincident"]
["ED_MDU541_07837",null,null,null,null,"Coincident"]
["ED_MDU541_07838",null,null,"Weather Corrected MD 50% POE","MVA","Non-Coincident"]
["ED_MDU541_07839",null,null,null,null,"Coincident"]
["ED_MDU541_07840",null,"<Enter substation name>","Substation Rating","MVA","Non-Coincident"]
["ED_MDU541_07841",null,null,null,null,"Coincident"]
["ED_MDU541_07842",null,null,"Raw Adjusted MD","MW","Non-Coincident"]
["ED_MDU541_07843",null,null,null,null,"Coincident"]
["ED_MDU541_07844",null,null,"Raw Adjusted MD","MVA","Non-Coincident"]
["ED_MDU541_07845",null,null,null,null,"Coincident"]
["ED_MDU541_07846",null,null,"Date MD occurred",null,"Non-Coincident"]
["ED_MDU541_07847",null,null,null,null,"Coincident"]
["ED_MDU541_07848",null,null,"Half hour time period MD occurred",null,"Non-Coincident"]
["ED_MDU541_07849",null,null,null,null,"Coincident"]
["ED_MDU541_07850",null,null,"Winter/Summer Peaking",null,"Non-Coincident"]
["ED_MDU541_07851",null,null,null,null,"Coincident"]
["ED_MDU541_07852",null,null,"Adjustments - Embedded generation","MW","Non-Coincident"]
["ED_MDU541_07853",null,null,null,null,"Coincident"]
["ED_MDU541_07854",null,null,"Weather Corrected MD 10% POE","MW","Non-Coincident"]
["ED_MDU541_07855",null,null,null,null,"Coincident"]
["ED_MDU541_07856",null,null,"Weather Corrected MD 10% POE","MVA","Non-Coincident"]
["ED_MDU541_07857",null,null,null,null,"Coincident"]
["ED_MDU541_07858",null,null,"Weather Corrected MD 50% POE","MW","Non-Coincident"]
["ED_MDU541_07859",null,null,null,null,"Coincident"]
["ED_MDU541_07860",null,null,"Weather Corrected MD 50% POE","MVA","Non-Coincident"]
["ED_MDU541_07861",null,null,null,null,"Coincident"]
["ED_MDU541_07862",null,"<Enter substation name>","Substation Rating","MVA","Non-Coincident"]
["ED_MDU541_07863",null,null,null,null,"Coincident"]
["ED_MDU541_07864",null,null,"Raw Adjusted MD","MW","Non-Coincident"]
["ED_MDU541_07865",null,null,null,null,"Coincident"]
["ED_MDU541_07866",null,null,"Raw Adjusted MD","MVA","Non-Coincident"]
["ED_MDU541_07867",null,null,null,null,"Coincident"]
["ED_MDU541_07868",null,null,"Date MD occurred",null,"Non-Coincident"]
["ED_MDU541_07869",null,null,null,null,"Coincident"]
["ED_MDU541_07870",null,null,"Half hour time period MD occurred",null,"Non-Coincident"]
["ED_MDU541_07871",null,null,null,null,"Coincident"]
["ED_MDU541_07872",null,null,"Winter/Summer Peaking",null,"Non-Coincident"]
["ED_MDU541_07873",null,null,null,null,"Coincident"]
["ED_MDU541_07874",null,null,"Adjustments - Embedded generation","MW","Non-Coincident"]
["ED_MDU541_07875",null,null,null,null,"Coincident"]
["ED_MDU541_07876",null,null,"Weather Corrected MD 10% POE","MW","Non-Coincident"]
["ED_MDU541_07877",null,null,null,null,"Coincident"]
["ED_MDU541_07878",null,null,"Weather Corrected MD 10% POE","MVA","Non-Coincident"]
["ED_MDU541_07879",null,null,null,null,"Coincident"]
["ED_MDU541_07880",null,null,"Weather Corrected MD 50% POE","MW","Non-Coincident"]
["ED_MDU541_07881",null,null,null,null,"Coincident"]
["ED_MDU541_07882",null,null,"Weather Corrected MD 50% POE","MVA","Non-Coincident"]
["ED_MDU541_07883",null,null,null,null,"Coincident"]
["ED_MDU541_07884",null,"<Enter substation name>","Substation Rating","MVA","Non-Coincident"]
["ED_MDU541_07885",null,null,null,null,"Coincident"]
["ED_MDU541_07886",null,null,"Raw Adjusted MD","MW","Non-Coincident"]
["ED_MDU541_07887",null,null,null,null,"Coincident"]
["ED_MDU541_07888",null,null,"Raw Adjusted MD","MVA","Non-Coincident"]
["ED_MDU541_07889",null,null,null,null,"Coincident"]
["ED_MDU541_07890",null,null,"Date MD occurred",null,"Non-Coincident"]
["ED_MDU541_07891",null,null,null,null,"Coincident"]
["ED_MDU541_07892",null,null,"Half hour time period MD occurred",null,"Non-Coincident"]
["ED_MDU541_07893",null,null,null,null,"Coincident"]
["ED_MDU541_07894",null,null,"Winter/Summer Peaking",null,"Non-Coincident"]
["ED_MDU541_07895",null,null,null,null,"Coincident"]
["ED_MDU541_07896",null,null,"Adjustments - Embedded generation","MW","Non-Coincident"]
["ED_MDU541_07897",null,null,null,null,"Coincident"]
["ED_MDU541_07898",null,null,"Weather Corrected MD 10% POE","MW","Non-Coincident"]
["ED_MDU541_07899",null,null,null,null,"Coincident"]
["ED_MDU541_07900",null,null,"Weather Corrected MD 10% POE","MVA","Non-Coincident"]
["ED_MDU541_07901",null,null,null,null,"Coincident"]
["ED_MDU541_07902",null,null,"Weather Corrected MD 50% POE","MW","Non-Coincident"]
["ED_MDU541_07903",null,null,null,null,"Coincident"]
["ED_MDU541_07904",null,null,"Weather Corrected MD 50% POE","MVA","Non-Coincident"]
["ED_MDU541_07905",null,null,null,null,"Coincident"]
["ED_MDU541_07906",null,"<Enter substation name>","Substation Rating","MVA","Non-Coincident"]
["ED_MDU541_07907",null,null,null,null,"Coincident"]
["ED_MDU541_07908",null,null,"Raw Adjusted MD","MW","Non-Coincident"]
["ED_MDU541_07909",null,null,null,null,"Coincident"]
["ED_MDU541_07910",null,null,"Raw Adjusted MD","MVA","Non-Coincident"]
["ED_MDU541_07911",null,null,null,null,"Coincident"]
["ED_MDU541_07912",null,null,"Date MD occurred",null,"Non-Coincident"]
["ED_MDU541_07913",null,null,null,null,"Coincident"]
["ED_MDU541_07914",null,null,"Half hour time period MD occurred",null,"Non-Coincident"]
["ED_MDU541_07915",null,null,null,null,"Coincident"]
["ED_MDU541_07916",null,null,"Winter/Summer Peaking",null,"Non-Coincident"]
["ED_MDU541_07917",null,null,null,null,"Coincident"]
["ED_MDU541_07918",null,null,"Adjustments - Embedded generation","MW","Non-Coincident"]
["ED_MDU541_07919",null,null,null,null,"Coincident"]
["ED_MDU541_07920",null,null,"Weather Corrected MD 10% POE","MW","Non-Coincident"]
["ED_MDU541_07921",null,null,null,null,"Coincident"]
["ED_MDU541_07922",null,null,"Weather Corrected MD 10% POE","MVA","Non-Coincident"]
["ED_MDU541_07923",null,null,null,null,"Coincident"]
["ED_MDU541_07924",null,null,"Weather Corrected MD 50% POE","MW","Non-Coincident"]
["ED_MDU541_07925",null,null,null,null,"Coincident"]
["ED_MDU541_07926",null,null,"Weather Corrected MD 50% POE","MVA","Non-Coincident"]
["ED_MDU541_07927",null,null,null,null,"Coincident"]
["ED_MDU541_07928",null,"<Enter substation name>","Substation Rating","MVA","Non-Coincident"]
["ED_MDU541_07929",null,null,null,null,"Coincident"]
["ED_MDU541_07930",null,null,"Raw Adjusted MD","MW","Non-Coincident"]
["ED_MDU541_07931",null,null,null,null,"Coincident"]
["ED_MDU541_07932",null,null,"Raw Adjusted MD","MVA","Non-Coincident"]
["ED_MDU541_07933",null,null,null,null,"Coincident"]
["ED_MDU541_07934",null,null,"Date MD occurred",null,"Non-Coincident"]
["ED_MDU541_07935",null,null,null,null,"Coincident"]
["ED_MDU541_07936",null,null,"Half hour time period MD occurred",null,"Non-Coincident"]
["ED_MDU541_07937",null,null,null,null,"Coincident"]
["ED_MDU541_07938",null,null,"Winter/Summer Peaking",null,"Non-Coincident"]
["ED_MDU541_07939",null,null,null,null,"Coincident"]
["ED_MDU541_07940",null,null,"Adjustments - Embedded generation","MW","Non-Coincident"]
["ED_MDU541_07941",null,null,null,null,"Coincident"]
["ED_MDU541_07942",null,null,"Weather Corrected MD 10% POE","MW","Non-Coincident"]
["ED_MDU541_07943",null,null,null,null,"Coincident"]
["ED_MDU541_07944",null,null,"Weather Corrected MD 10% POE","MVA","Non-Coincident"]
["ED_MDU541_07945",null,null,null,null,"Coincident"]
["ED_MDU541_07946",null,null,"Weather Corrected MD 50% POE","MW","Non-Coincident"]
["ED_MDU541_07947",null,null,null,null,"Coincident"]
["ED_MDU541_07948",null,null,"Weather Corrected MD 50% POE","MVA","Non-Coincident"]
["ED_MDU541_07949",null,null,null,null,"Coincident"]
["ED_MDU541_07950",null,"<Enter substation name>","Substation Rating","MVA","Non-Coincident"]
["ED_MDU541_07951",null,null,null,null,"Coincident"]
["ED_MDU541_07952",null,null,"Raw Adjusted MD","MW","Non-Coincident"]
["ED_MDU541_07953",null,null,null,null,"Coincident"]
["ED_MDU541_07954",null,null,"Raw Adjusted MD","MVA","Non-Coincident"]
["ED_MDU541_07955",null,null,null,null,"Coincident"]
["ED_MDU541_07956",null,null,"Date MD occurred",null,"Non-Coincident"]
["ED_MDU541_07957",null,null,null,null,"Coincident"]
["ED_MDU541_07958",null,null,"Half hour time period MD occurred",null,"Non-Coincident"]
["ED_MDU541_07959",null,null,null,null,"Coincident"]
["ED_MDU541_07960",null,null,"Winter/Summer Peaking",null,"Non-Coincident"]
["ED_MDU541_07961",null,null,null,null,"Coincident"]
["ED_MDU541_07962",null,null,"Adjustments - Embedded generation","MW","Non-Coincident"]
["ED_MDU541_07963",null,null,null,null,"Coincident"]
["ED_MDU541_07964",null,null,"Weather Corrected MD 10% POE","MW","Non-Coincident"]
["ED_MDU541_07965",null,null,null,null,"Coincident"]
["ED_MDU541_07966",null,null,"Weather Corrected MD 10% POE","MVA","Non-Coincident"]
["ED_MDU541_07967",null,null,null,null,"Coincident"]
["ED_MDU541_07968",null,null,"Weather Corrected MD 50% POE","MW","Non-Coincident"]
["ED_MDU541_07969",null,null,null,null,"Coincident"]
["ED_MDU541_07970",null,null,"Weather Corrected MD 50% POE","MVA","Non-Coincident"]
["ED_MDU541_07971",null,null,null,null,"Coincident"]
["ED_MDU541_07972",null,"<Enter substation name>","Substation Rating","MVA","Non-Coincident"]
["ED_MDU541_07973",null,null,null,null,"Coincident"]
["ED_MDU541_07974",null,null,"Raw Adjusted MD","MW","Non-Coincident"]
["ED_MDU541_07975",null,null,null,null,"Coincident"]
["ED_MDU541_07976",null,null,"Raw Adjusted MD","MVA","Non-Coincident"]
["ED_MDU541_07977",null,null,null,null,"Coincident"]
["ED_MDU541_07978",null,null,"Date MD occurred",null,"Non-Coincident"]
["ED_MDU541_07979",null,null,null,null,"Coincident"]
["ED_MDU541_07980",null,null,"Half hour time period MD occurred",null,"Non-Coincident"]
["ED_MDU541_07981",null,null,null,null,"Coincident"]
["ED_MDU541_07982",null,null,"Winter/Summer Peaking",null,"Non-Coincident"]
["ED_MDU541_07983",null,null,null,null,"Coincident"]
["ED_MDU541_07984",null,null,"Adjustments - Embedded generation","MW","Non-Coincident"]
["ED_MDU541_07985",null,null,null,null,"Coincident"]
["ED_MDU541_07986",null,null,"Weather Corrected MD 10% POE","MW","Non-Coincident"]
["ED_MDU541_07987",null,null,null,null,"Coincident"]
["ED_MDU541_07988",null,null,"Weather Corrected MD 10% POE","MVA","Non-Coincident"]
["ED_MDU541_07989",null,null,null,null,"Coincident"]
["ED_MDU541_07990",null,null,"Weather Corrected MD 50% POE","MW","Non-Coincident"]
["ED_MDU541_07991",null,null,null,null,"Coincident"]
["ED_MDU541_07992",null,null,"Weather Corrected MD 50% POE","MVA","Non-Coincident"]
["ED_MDU541_07993",null,null,null,null,"Coincident"]
["ED_MDU541_07994",null,"<Enter substation name>","Substation Rating","MVA","Non-Coincident"]
["ED_MDU541_07995",null,null,null,null,"Coincident"]
["ED_MDU541_07996",null,null,"Raw Adjusted MD","MW","Non-Coincident"]
["ED_MDU541_07997",null,null,null,null,"Coincident"]
["ED_MDU541_07998",null,null,"Raw Adjusted MD","MVA","Non-Coincident"]
["ED_MDU541_07999",null,null,null,null,"Coincident"]
["ED_MDU541_08000",null,null,"Date MD occurred",null,"Non-Coincident"]
["ED_MDU541_08001",null,null,null,null,"Coincident"]
["ED_MDU541_08002",null,null,"Half hour time period MD occurred",null,"Non-Coincident"]
["ED_MDU541_08003",null,null,null,null,"Coincident"]
["ED_MDU541_08004",null,null,"Winter/Summer Peaking",null,"Non-Coincident"]
["ED_MDU541_08005",null,null,null,null,"Coincident"]
["ED_MDU541_08006",null,null,"Adjustments - Embedded generation","MW","Non-Coincident"]
["ED_MDU541_08007",null,null,null,null,"Coincident"]
["ED_MDU541_08008",null,null,"Weather Corrected MD 10% POE","MW","Non-Coincident"]
["ED_MDU541_08009",null,null,null,null,"Coincident"]
["ED_MDU541_08010",null,null,"Weather Corrected MD 10% POE","MVA","Non-Coincident"]
["ED_MDU541_08011",null,null,null,null,"Coincident"]
["ED_MDU541_08012",null,null,"Weather Corrected MD 50% POE","MW","Non-Coincident"]
["ED_MDU541_08013",null,null,null,null,"Coincident"]
["ED_MDU541_08014",null,null,"Weather Corrected MD 50% POE","MVA","Non-Coincident"]
["ED_MDU541_08015",null,null,null,null,"Coincident"]
["ED_MDU541_08016",null,"<Enter substation name>","Substation Rating","MVA","Non-Coincident"]
["ED_MDU541_08017",null,null,null,null,"Coincident"]
["ED_MDU541_08018",null,null,"Raw Adjusted MD","MW","Non-Coincident"]
["ED_MDU541_08019",null,null,null,null,"Coincident"]
["ED_MDU541_08020",null,null,"Raw Adjusted MD","MVA","Non-Coincident"]
["ED_MDU541_08021",null,null,null,null,"Coincident"]
["ED_MDU541_08022",null,null,"Date MD occurred",null,"Non-Coincident"]
["ED_MDU541_08023",null,null,null,null,"Coincident"]
["ED_MDU541_08024",null,null,"Half hour time period MD occurred",null,"Non-Coincident"]
["ED_MDU541_08025",null,null,null,null,"Coincident"]
["ED_MDU541_08026",null,null,"Winter/Summer Peaking",null,"Non-Coincident"]
["ED_MDU541_08027",null,null,null,null,"Coincident"]
["ED_MDU541_08028",null,null,"Adjustments - Embedded generation","MW","Non-Coincident"]
["ED_MDU541_08029",null,null,null,null,"Coincident"]
["ED_MDU541_08030",null,null,"Weather Corrected MD 10% POE","MW","Non-Coincident"]
["ED_MDU541_08031",null,null,null,null,"Coincident"]
["ED_MDU541_08032",null,null,"Weather Corrected MD 10% POE","MVA","Non-Coincident"]
["ED_MDU541_08033",null,null,null,null,"Coincident"]
["ED_MDU541_08034",null,null,"Weather Corrected MD 50% POE","MW","Non-Coincident"]
["ED_MDU541_08035",null,null,null,null,"Coincident"]
["ED_MDU541_08036",null,null,"Weather Corrected MD 50% POE","MVA","Non-Coincident"]
["ED_MDU541_08037",null,null,null,null,"Coincident"]
["ED_MDU541_08038",null,"<Enter substation name>","Substation Rating","MVA","Non-Coincident"]
["ED_MDU541_08039",null,null,null,null,"Coincident"]
["ED_MDU541_08040",null,null,"Raw Adjusted MD","MW","Non-Coincident"]
["ED_MDU541_08041",null,null,null,null,"Coincident"]
["ED_MDU541_08042",null,null,"Raw Adjusted MD","MVA","Non-Coincident"]
["ED_MDU541_08043",null,null,null,null,"Coincident"]
["ED_MDU541_08044",null,null,"Date MD occurred",null,"Non-Coincident"]
["ED_MDU541_08045",null,null,null,null,"Coincident"]
["ED_MDU541_08046",null,null,"Half hour time period MD occurred",null,"Non-Coincident"]
["ED_MDU541_08047",null,null,null,null,"Coincident"]
["ED_MDU541_08048",null,null,"Winter/Summer Peaking",null,"Non-Coincident"]
["ED_MDU541_08049",null,null,null,null,"Coincident"]
["ED_MDU541_08050",null,null,"Adjustments - Embedded generation","MW","Non-Coincident"]
["ED_MDU541_08051",null,null,null,null,"Coincident"]
["ED_MDU541_08052",null,null,"Weather Corrected MD 10% POE","MW","Non-Coincident"]
["ED_MDU541_08053",null,null,null,null,"Coincident"]
["ED_MDU541_08054",null,null,"Weather Corrected MD 10% POE","MVA","Non-Coincident"]
["ED_MDU541_08055",null,null,null,null,"Coincident"]
["ED_MDU541_08056",null,null,"Weather Corrected MD 50% POE","MW","Non-Coincident"]
["ED_MDU541_08057",null,null,null,null,"Coincident"]
["ED_MDU541_08058",null,null,"Weather Corrected MD 50% POE","MVA","Non-Coincident"]
["ED_MDU541_08059",null,null,null,null,"Coincident"]
["ED_MDU541_08060",null,"<Enter substation name>","Substation Rating","MVA","Non-Coincident"]
["ED_MDU541_08061",null,null,null,null,"Coincident"]
["ED_MDU541_08062",null,null,"Raw Adjusted MD","MW","Non-Coincident"]
["ED_MDU541_08063",null,null,null,null,"Coincident"]
["ED_MDU541_08064",null,null,"Raw Adjusted MD","MVA","Non-Coincident"]
["ED_MDU541_08065",null,null,null,null,"Coincident"]
["ED_MDU541_08066",null,null,"Date MD occurred",null,"Non-Coincident"]
["ED_MDU541_08067",null,null,null,null,"Coincident"]
["ED_MDU541_08068",null,null,"Half hour time period MD occurred",null,"Non-Coincident"]
["ED_MDU541_08069",null,null,null,null,"Coincident"]
["ED_MDU541_08070",null,null,"Winter/Summer Peaking",null,"Non-Coincident"]
["ED_MDU541_08071",null,null,null,null,"Coincident"]
["ED_MDU541_08072",null,null,"Adjustments - Embedded generation","MW","Non-Coincident"]
["ED_MDU541_08073",null,null,null,null,"Coincident"]
["ED_MDU541_08074",null,null,"Weather Corrected MD 10% POE","MW","Non-Coincident"]
["ED_MDU541_08075",null,null,null,null,"Coincident"]
["ED_MDU541_08076",null,null,"Weather Corrected MD 10% POE","MVA","Non-Coincident"]
["ED_MDU541_08077",null,null,null,null,"Coincident"]
["ED_MDU541_08078",null,null,"Weather Corrected MD 50% POE","MW","Non-Coincident"]
["ED_MDU541_08079",null,null,null,null,"Coincident"]
["ED_MDU541_08080",null,null,"Weather Corrected MD 50% POE","MVA","Non-Coincident"]
["ED_MDU541_08081",null,null,null,null,"Coincident"]
["ED_MDU541_08082",null,"<Enter substation name>","Substation Rating","MVA","Non-Coincident"]
["ED_MDU541_08083",null,null,null,null,"Coincident"]
["ED_MDU541_08084",null,null,"Raw Adjusted MD","MW","Non-Coincident"]
["ED_MDU541_08085",null,null,null,null,"Coincident"]
["ED_MDU541_08086",null,null,"Raw Adjusted MD","MVA","Non-Coincident"]
["ED_MDU541_08087",null,null,null,null,"Coincident"]
["ED_MDU541_08088",null,null,"Date MD occurred",null,"Non-Coincident"]
["ED_MDU541_08089",null,null,null,null,"Coincident"]
["ED_MDU541_08090",null,null,"Half hour time period MD occurred",null,"Non-Coincident"]
["ED_MDU541_08091",null,null,null,null,"Coincident"]
["ED_MDU541_08092",null,null,"Winter/Summer Peaking",null,"Non-Coincident"]
["ED_MDU541_08093",null,null,null,null,"Coincident"]
["ED_MDU541_08094",null,null,"Adjustments - Embedded generation","MW","Non-Coincident"]
["ED_MDU541_08095",null,null,null,null,"Coincident"]
["ED_MDU541_08096",null,null,"Weather Corrected MD 10% POE","MW","Non-Coincident"]
["ED_MDU541_08097",null,null,null,null,"Coincident"]
["ED_MDU541_08098",null,null,"Weather Corrected MD 10% POE","MVA","Non-Coincident"]
["ED_MDU541_08099",null,null,null,null,"Coincident"]
["ED_MDU541_08100",null,null,"Weather Corrected MD 50% POE","MW","Non-Coincident"]
["ED_MDU541_08101",null,null,null,null,"Coincident"]
["ED_MDU541_08102",null,null,"Weather Corrected MD 50% POE","MVA","Non-Coincident"]
["ED_MDU541_08103",null,null,null,null,"Coincident"]
["ED_MDU541_08104",null,"<Enter substation name>","Substation Rating","MVA","Non-Coincident"]
["ED_MDU541_08105",null,null,null,null,"Coincident"]
["ED_MDU541_08106",null,null,"Raw Adjusted MD","MW","Non-Coincident"]
["ED_MDU541_08107",null,null,null,null,"Coincident"]
["ED_MDU541_08108",null,null,"Raw Adjusted MD","MVA","Non-Coincident"]
["ED_MDU541_08109",null,null,null,null,"Coincident"]
["ED_MDU541_08110",null,null,"Date MD occurred",null,"Non-Coincident"]
["ED_MDU541_08111",null,null,null,null,"Coincident"]
["ED_MDU541_08112",null,null,"Half hour time period MD occurred",null,"Non-Coincident"]
["ED_MDU541_08113",null,null,null,null,"Coincident"]
["ED_MDU541_08114",null,null,"Winter/Summer Peaking",null,"Non-Coincident"]
["ED_MDU541_08115",null,null,null,null,"Coincident"]
["ED_MDU541_08116",null,null,"Adjustments - Embedded generation","MW","Non-Coincident"]
["ED_MDU541_08117",null,null,null,null,"Coincident"]
["ED_MDU541_08118",null,null,"Weather Corrected MD 10% POE","MW","Non-Coincident"]
["ED_MDU541_08119",null,null,null,null,"Coincident"]
["ED_MDU541_08120",null,null,"Weather Corrected MD 10% POE","MVA","Non-Coincident"]
["ED_MDU541_08121",null,null,null,null,"Coincident"]
["ED_MDU541_08122",null,null,"Weather Corrected MD 50% POE","MW","Non-Coincident"]
["ED_MDU541_08123",null,null,null,null,"Coincident"]
["ED_MDU541_08124",null,null,"Weather Corrected MD 50% POE","MVA","Non-Coincident"]
["ED_MDU541_08125",null,null,null,null,"Coincident"]
["ED_MDU541_08126",null,"<Enter substation name>","Substation Rating","MVA","Non-Coincident"]
["ED_MDU541_08127",null,null,null,null,"Coincident"]
["ED_MDU541_08128",null,null,"Raw Adjusted MD","MW","Non-Coincident"]
["ED_MDU541_08129",null,null,null,null,"Coincident"]
["ED_MDU541_08130",null,null,"Raw Adjusted MD","MVA","Non-Coincident"]
["ED_MDU541_08131",null,null,null,null,"Coincident"]
["ED_MDU541_08132",null,null,"Date MD occurred",null,"Non-Coincident"]
["ED_MDU541_08133",null,null,null,null,"Coincident"]
["ED_MDU541_08134",null,null,"Half hour time period MD occurred",null,"Non-Coincident"]
["ED_MDU541_08135",null,null,null,null,"Coincident"]
["ED_MDU541_08136",null,null,"Winter/Summer Peaking",null,"Non-Coincident"]
["ED_MDU541_08137",null,null,null,null,"Coincident"]
["ED_MDU541_08138",null,null,"Adjustments - Embedded generation","MW","Non-Coincident"]
["ED_MDU541_08139",null,null,null,null,"Coincident"]
["ED_MDU541_08140",null,null,"Weather Corrected MD 10% POE","MW","Non-Coincident"]
["ED_MDU541_08141",null,null,null,null,"Coincident"]
["ED_MDU541_08142",null,null,"Weather Corrected MD 10% POE","MVA","Non-Coincident"]
["ED_MDU541_08143",null,null,null,null,"Coincident"]
["ED_MDU541_08144",null,null,"Weather Corrected MD 50% POE","MW","Non-Coincident"]
["ED_MDU541_08145",null,null,null,null,"Coincident"]
["ED_MDU541_08146",null,null,"Weather Corrected MD 50% POE","MVA","Non-Coincident"]
["ED_MDU541_08147",null,null,null,null,"Coincident"]
["ED_MDU541_08148",null,"<Enter substation name>","Substation Rating","MVA","Non-Coincident"]
["ED_MDU541_08149",null,null,null,null,"Coincident"]
["ED_MDU541_08150",null,null,"Raw Adjusted MD","MW","Non-Coincident"]
["ED_MDU541_08151",null,null,null,null,"Coincident"]
["ED_MDU541_08152",null,null,"Raw Adjusted MD","MVA","Non-Coincident"]
["ED_MDU541_08153",null,null,null,null,"Coincident"]
["ED_MDU541_08154",null,null,"Date MD occurred",null,"Non-Coincident"]
["ED_MDU541_08155",null,null,null,null,"Coincident"]
["ED_MDU541_08156",null,null,"Half hour time period MD occurred",null,"Non-Coincident"]
["ED_MDU541_08157",null,null,null,null,"Coincident"]
["ED_MDU541_08158",null,null,"Winter/Summer Peaking",null,"Non-Coincident"]
["ED_MDU541_08159",null,null,null,null,"Coincident"]
["ED_MDU541_08160",null,null,"Adjustments - Embedded generation","MW","Non-Coincident"]
["ED_MDU541_08161",null,null,null,null,"Coincident"]
["ED_MDU541_08162",null,null,"Weather Corrected MD 10% POE","MW","Non-Coincident"]
["ED_MDU541_08163",null,null,null,null,"Coincident"]
["ED_MDU541_08164",null,null,"Weather Corrected MD 10% POE","MVA","Non-Coincident"]
["ED_MDU541_08165",null,null,null,null,"Coincident"]
["ED_MDU541_08166",null,null,"Weather Corrected MD 50% POE","MW","Non-Coincident"]
["ED_MDU541_08167",null,null,null,null,"Coincident"]
["ED_MDU541_08168",null,null,"Weather Corrected MD 50% POE","MVA","Non-Coincident"]
["ED_MDU541_08169",null,null,null,null,"Coincident"]
["ED_MDU541_08170",null,"<Enter substation name>","Substation Rating","MVA","Non-Coincident"]
["ED_MDU541_08171",null,null,null,null,"Coincident"]
["ED_MDU541_08172",null,null,"Raw Adjusted MD","MW","Non-Coincident"]
["ED_MDU541_08173",null,null,null,null,"Coincident"]
["ED_MDU541_08174",null,null,"Raw Adjusted MD","MVA","Non-Coincident"]
["ED_MDU541_08175",null,null,null,null,"Coincident"]
["ED_MDU541_08176",null,null,"Date MD occurred",null,"Non-Coincident"]
["ED_MDU541_08177",null,null,null,null,"Coincident"]
["ED_MDU541_08178",null,null,"Half hour time period MD occurred",null,"Non-Coincident"]
["ED_MDU541_08179",null,null,null,null,"Coincident"]
["ED_MDU541_08180",null,null,"Winter/Summer Peaking",null,"Non-Coincident"]
["ED_MDU541_08181",null,null,null,null,"Coincident"]
["ED_MDU541_08182",null,null,"Adjustments - Embedded generation","MW","Non-Coincident"]
["ED_MDU541_08183",null,null,null,null,"Coincident"]
["ED_MDU541_08184",null,null,"Weather Corrected MD 10% POE","MW","Non-Coincident"]
["ED_MDU541_08185",null,null,null,null,"Coincident"]
["ED_MDU541_08186",null,null,"Weather Corrected MD 10% POE","MVA","Non-Coincident"]
["ED_MDU541_08187",null,null,null,null,"Coincident"]
["ED_MDU541_08188",null,null,"Weather Corrected MD 50% POE","MW","Non-Coincident"]
["ED_MDU541_08189",null,null,null,null,"Coincident"]
["ED_MDU541_08190",null,null,"Weather Corrected MD 50% POE","MVA","Non-Coincident"]
["ED_MDU541_08191",null,null,null,null,"Coincident"]
["ED_MDU541_08192",null,"<Enter substation name>","Substation Rating","MVA","Non-Coincident"]
["ED_MDU541_08193",null,null,null,null,"Coincident"]
["ED_MDU541_08194",null,null,"Raw Adjusted MD","MW","Non-Coincident"]
["ED_MDU541_08195",null,null,null,null,"Coincident"]
["ED_MDU541_08196",null,null,"Raw Adjusted MD","MVA","Non-Coincident"]
["ED_MDU541_08197",null,null,null,null,"Coincident"]
["ED_MDU541_08198",null,null,"Date MD occurred",null,"Non-Coincident"]
["ED_MDU541_08199",null,null,null,null,"Coincident"]
["ED_MDU541_08200",null,null,"Half hour time period MD occurred",null,"Non-Coincident"]
["ED_MDU541_08201",null,null,null,null,"Coincident"]
["ED_MDU541_08202",null,null,"Winter/Summer Peaking",null,"Non-Coincident"]
["ED_MDU541_08203",null,null,null,null,"Coincident"]
["ED_MDU541_08204",null,null,"Adjustments - Embedded generation","MW","Non-Coincident"]
["ED_MDU541_08205",null,null,null,null,"Coincident"]
["ED_MDU541_08206",null,null,"Weather Corrected MD 10% POE","MW","Non-Coincident"]
["ED_MDU541_08207",null,null,null,null,"Coincident"]
["ED_MDU541_08208",null,null,"Weather Corrected MD 10% POE","MVA","Non-Coincident"]
["ED_MDU541_08209",null,null,null,null,"Coincident"]
["ED_MDU541_08210",null,null,"Weather Corrected MD 50% POE","MW","Non-Coincident"]
["ED_MDU541_08211",null,null,null,null,"Coincident"]
["ED_MDU541_08212",null,null,"Weather Corrected MD 50% POE","MVA","Non-Coincident"]
["ED_MDU541_08213",null,null,null,null,"Coincident"]
["ED_MDU541_08214",null,"<Enter substation name>","Substation Rating","MVA","Non-Coincident"]
["ED_MDU541_08215",null,null,null,null,"Coincident"]
["ED_MDU541_08216",null,null,"Raw Adjusted MD","MW","Non-Coincident"]
["ED_MDU541_08217",null,null,null,null,"Coincident"]
["ED_MDU541_08218",null,null,"Raw Adjusted MD","MVA","Non-Coincident"]
["ED_MDU541_08219",null,null,null,null,"Coincident"]
["ED_MDU541_08220",null,null,"Date MD occurred",null,"Non-Coincident"]
["ED_MDU541_08221",null,null,null,null,"Coincident"]
["ED_MDU541_08222",null,null,"Half hour time period MD occurred",null,"Non-Coincident"]
["ED_MDU541_08223",null,null,null,null,"Coincident"]
["ED_MDU541_08224",null,null,"Winter/Summer Peaking",null,"Non-Coincident"]
["ED_MDU541_08225",null,null,null,null,"Coincident"]
["ED_MDU541_08226",null,null,"Adjustments - Embedded generation","MW","Non-Coincident"]
["ED_MDU541_08227",null,null,null,null,"Coincident"]
["ED_MDU541_08228",null,null,"Weather Corrected MD 10% POE","MW","Non-Coincident"]
["ED_MDU541_08229",null,null,null,null,"Coincident"]
["ED_MDU541_08230",null,null,"Weather Corrected MD 10% POE","MVA","Non-Coincident"]
["ED_MDU541_08231",null,null,null,null,"Coincident"]
["ED_MDU541_08232",null,null,"Weather Corrected MD 50% POE","MW","Non-Coincident"]
["ED_MDU541_08233",null,null,null,null,"Coincident"]
["ED_MDU541_08234",null,null,"Weather Corrected MD 50% POE","MVA","Non-Coincident"]
["ED_MDU541_08235",null,null,null,null,"Coincident"]
["ED_MDU541_08236",null,"<Enter substation name>","Substation Rating","MVA","Non-Coincident"]
["ED_MDU541_08237",null,null,null,null,"Coincident"]
["ED_MDU541_08238",null,null,"Raw Adjusted MD","MW","Non-Coincident"]
["ED_MDU541_08239",null,null,null,null,"Coincident"]
["ED_MDU541_08240",null,null,"Raw Adjusted MD","MVA","Non-Coincident"]
["ED_MDU541_08241",null,null,null,null,"Coincident"]
["ED_MDU541_08242",null,null,"Date MD occurred",null,"Non-Coincident"]
["ED_MDU541_08243",null,null,null,null,"Coincident"]
["ED_MDU541_08244",null,null,"Half hour time period MD occurred",null,"Non-Coincident"]
["ED_MDU541_08245",null,null,null,null,"Coincident"]
["ED_MDU541_08246",null,null,"Winter/Summer Peaking",null,"Non-Coincident"]
["ED_MDU541_08247",null,null,null,null,"Coincident"]
["ED_MDU541_08248",null,null,"Adjustments - Embedded generation","MW","Non-Coincident"]
["ED_MDU541_08249",null,null,null,null,"Coincident"]
["ED_MDU541_08250",null,null,"Weather Corrected MD 10% POE","MW","Non-Coincident"]
["ED_MDU541_08251",null,null,null,null,"Coincident"]
["ED_MDU541_08252",null,null,"Weather Corrected MD 10% POE","MVA","Non-Coincident"]
["ED_MDU541_08253",null,null,null,null,"Coincident"]
["ED_MDU541_08254",null,null,"Weather Corrected MD 50% POE","MW","Non-Coincident"]
["ED_MDU541_08255",null,null,null,null,"Coincident"]
["ED_MDU541_08256",null,null,"Weather Corrected MD 50% POE","MVA","Non-Coincident"]
["ED_MDU541_08257",null,null,null,null,"Coincident"]
["ED_MDU541_08258",null,"<Enter substation name>","Substation Rating","MVA","Non-Coincident"]
["ED_MDU541_08259",null,null,null,null,"Coincident"]
["ED_MDU541_08260",null,null,"Raw Adjusted MD","MW","Non-Coincident"]
["ED_MDU541_08261",null,null,null,null,"Coincident"]
["ED_MDU541_08262",null,null,"Raw Adjusted MD","MVA","Non-Coincident"]
["ED_MDU541_08263",null,null,null,null,"Coincident"]
["ED_MDU541_08264",null,null,"Date MD occurred",null,"Non-Coincident"]
["ED_MDU541_08265",null,null,null,null,"Coincident"]
["ED_MDU541_08266",null,null,"Half hour time period MD occurred",null,"Non-Coincident"]
["ED_MDU541_08267",null,null,null,null,"Coincident"]
["ED_MDU541_08268",null,null,"Winter/Summer Peaking",null,"Non-Coincident"]
["ED_MDU541_08269",null,null,null,null,"Coincident"]
["ED_MDU541_08270",null,null,"Adjustments - Embedded generation","MW","Non-Coincident"]
["ED_MDU541_08271",null,null,null,null,"Coincident"]
["ED_MDU541_08272",null,null,"Weather Corrected MD 10% POE","MW","Non-Coincident"]
["ED_MDU541_08273",null,null,null,null,"Coincident"]
["ED_MDU541_08274",null,null,"Weather Corrected MD 10% POE","MVA","Non-Coincident"]
["ED_MDU541_08275",null,null,null,null,"Coincident"]
["ED_MDU541_08276",null,null,"Weather Corrected MD 50% POE","MW","Non-Coincident"]
["ED_MDU541_08277",null,null,null,null,"Coincident"]
["ED_MDU541_08278",null,null,"Weather Corrected MD 50% POE","MVA","Non-Coincident"]
["ED_MDU541_08279",null,null,null,null,"Coincident"]
["ED_MDU541_08280",null,"<Enter substation name>","Substation Rating","MVA","Non-Coincident"]
["ED_MDU541_08281",null,null,null,null,"Coincident"]
["ED_MDU541_08282",null,null,"Raw Adjusted MD","MW","Non-Coincident"]
["ED_MDU541_08283",null,null,null,null,"Coincident"]
["ED_MDU541_08284",null,null,"Raw Adjusted MD","MVA","Non-Coincident"]
["ED_MDU541_08285",null,null,null,null,"Coincident"]
["ED_MDU541_08286",null,null,"Date MD occurred",null,"Non-Coincident"]
["ED_MDU541_08287",null,null,null,null,"Coincident"]
["ED_MDU541_08288",null,null,"Half hour time period MD occurred",null,"Non-Coincident"]
["ED_MDU541_08289",null,null,null,null,"Coincident"]
["ED_MDU541_08290",null,null,"Winter/Summer Peaking",null,"Non-Coincident"]
["ED_MDU541_08291",null,null,null,null,"Coincident"]
["ED_MDU541_08292",null,null,"Adjustments - Embedded generation","MW","Non-Coincident"]
["ED_MDU541_08293",null,null,null,null,"Coincident"]
["ED_MDU541_08294",null,null,"Weather Corrected MD 10% POE","MW","Non-Coincident"]
["ED_MDU541_08295",null,null,null,null,"Coincident"]
["ED_MDU541_08296",null,null,"Weather Corrected MD 10% POE","MVA","Non-Coincident"]
["ED_MDU541_08297",null,null,null,null,"Coincident"]
["ED_MDU541_08298",null,null,"Weather Corrected MD 50% POE","MW","Non-Coincident"]
["ED_MDU541_08299",null,null,null,null,"Coincident"]
["ED_MDU541_08300",null,null,"Weather Corrected MD 50% POE","MVA","Non-Coincident"]
["ED_MDU541_08301",null,null,null,null,"Coincident"]
["ED_MDU541_08302",null,"<Enter substation name>","Substation Rating","MVA","Non-Coincident"]
["ED_MDU541_08303",null,null,null,null,"Coincident"]
["ED_MDU541_08304",null,null,"Raw Adjusted MD","MW","Non-Coincident"]
["ED_MDU541_08305",null,null,null,null,"Coincident"]
["ED_MDU541_08306",null,null,"Raw Adjusted MD","MVA","Non-Coincident"]
["ED_MDU541_08307",null,null,null,null,"Coincident"]
["ED_MDU541_08308",null,null,"Date MD occurred",null,"Non-Coincident"]
["ED_MDU541_08309",null,null,null,null,"Coincident"]
["ED_MDU541_08310",null,null,"Half hour time period MD occurred",null,"Non-Coincident"]
["ED_MDU541_08311",null,null,null,null,"Coincident"]
["ED_MDU541_08312",null,null,"Winter/Summer Peaking",null,"Non-Coincident"]
["ED_MDU541_08313",null,null,null,null,"Coincident"]
["ED_MDU541_08314",null,null,"Adjustments - Embedded generation","MW","Non-Coincident"]
["ED_MDU541_08315",null,null,null,null,"Coincident"]
["ED_MDU541_08316",null,null,"Weather Corrected MD 10% POE","MW","Non-Coincident"]
["ED_MDU541_08317",null,null,null,null,"Coincident"]
["ED_MDU541_08318",null,null,"Weather Corrected MD 10% POE","MVA","Non-Coincident"]
["ED_MDU541_08319",null,null,null,null,"Coincident"]
["ED_MDU541_08320",null,null,"Weather Corrected MD 50% POE","MW","Non-Coincident"]
["ED_MDU541_08321",null,null,null,null,"Coincident"]
["ED_MDU541_08322",null,null,"Weather Corrected MD 50% POE","MVA","Non-Coincident"]
["ED_MDU541_08323",null,null,null,null,"Coincident"]
["ED_MDU541_08324",null,"<Enter substation name>","Substation Rating","MVA","Non-Coincident"]
["ED_MDU541_08325",null,null,null,null,"Coincident"]
["ED_MDU541_08326",null,null,"Raw Adjusted MD","MW","Non-Coincident"]
["ED_MDU541_08327",null,null,null,null,"Coincident"]
["ED_MDU541_08328",null,null,"Raw Adjusted MD","MVA","Non-Coincident"]
["ED_MDU541_08329",null,null,null,null,"Coincident"]
["ED_MDU541_08330",null,null,"Date MD occurred",null,"Non-Coincident"]
["ED_MDU541_08331",null,null,null,null,"Coincident"]
["ED_MDU541_08332",null,null,"Half hour time period MD occurred",null,"Non-Coincident"]
["ED_MDU541_08333",null,null,null,null,"Coincident"]
["ED_MDU541_08334",null,null,"Winter/Summer Peaking",null,"Non-Coincident"]
["ED_MDU541_08335",null,null,null,null,"Coincident"]
["ED_MDU541_08336",null,null,"Adjustments - Embedded generation","MW","Non-Coincident"]
["ED_MDU541_08337",null,null,null,null,"Coincident"]
["ED_MDU541_08338",null,null,"Weather Corrected MD 10% POE","MW","Non-Coincident"]
["ED_MDU541_08339",null,null,null,null,"Coincident"]
["ED_MDU541_08340",null,null,"Weather Corrected MD 10% POE","MVA","Non-Coincident"]
["ED_MDU541_08341",null,null,null,null,"Coincident"]
["ED_MDU541_08342",null,null,"Weather Corrected MD 50% POE","MW","Non-Coincident"]
["ED_MDU541_08343",null,null,null,null,"Coincident"]
["ED_MDU541_08344",null,null,"Weather Corrected MD 50% POE","MVA","Non-Coincident"]
["ED_MDU541_08345",null,null,null,null,"Coincident"]
["ED_MDU541_08346",null,"<Enter substation name>","Substation Rating","MVA","Non-Coincident"]
["ED_MDU541_08347",null,null,null,null,"Coincident"]
["ED_MDU541_08348",null,null,"Raw Adjusted MD","MW","Non-Coincident"]
["ED_MDU541_08349",null,null,null,null,"Coincident"]
["ED_MDU541_08350",null,null,"Raw Adjusted MD","MVA","Non-Coincident"]
["ED_MDU541_08351",null,null,null,null,"Coincident"]
["ED_MDU541_08352",null,null,"Date MD occurred",null,"Non-Coincident"]
["ED_MDU541_08353",null,null,null,null,"Coincident"]
["ED_MDU541_08354",null,null,"Half hour time period MD occurred",null,"Non-Coincident"]
["ED_MDU541_08355",null,null,null,null,"Coincident"]
["ED_MDU541_08356",null,null,"Winter/Summer Peaking",null,"Non-Coincident"]
["ED_MDU541_08357",null,null,null,null,"Coincident"]
["ED_MDU541_08358",null,null,"Adjustments - Embedded generation","MW","Non-Coincident"]
["ED_MDU541_08359",null,null,null,null,"Coincident"]
["ED_MDU541_08360",null,null,"Weather Corrected MD 10% POE","MW","Non-Coincident"]
["ED_MDU541_08361",null,null,null,null,"Coincident"]
["ED_MDU541_08362",null,null,"Weather Corrected MD 10% POE","MVA","Non-Coincident"]
["ED_MDU541_08363",null,null,null,null,"Coincident"]
["ED_MDU541_08364",null,null,"Weather Corrected MD 50% POE","MW","Non-Coincident"]
["ED_MDU541_08365",null,null,null,null,"Coincident"]
["ED_MDU541_08366",null,null,"Weather Corrected MD 50% POE","MVA","Non-Coincident"]
["ED_MDU541_08367",null,null,null,null,"Coincident"]
["ED_MDU541_08368",null,"<Enter substation name>","Substation Rating","MVA","Non-Coincident"]
["ED_MDU541_08369",null,null,null,null,"Coincident"]
["ED_MDU541_08370",null,null,"Raw Adjusted MD","MW","Non-Coincident"]
["ED_MDU541_08371",null,null,null,null,"Coincident"]
["ED_MDU541_08372",null,null,"Raw Adjusted MD","MVA","Non-Coincident"]
["ED_MDU541_08373",null,null,null,null,"Coincident"]
["ED_MDU541_08374",null,null,"Date MD occurred",null,"Non-Coincident"]
["ED_MDU541_08375",null,null,null,null,"Coincident"]
["ED_MDU541_08376",null,null,"Half hour time period MD occurred",null,"Non-Coincident"]
["ED_MDU541_08377",null,null,null,null,"Coincident"]
["ED_MDU541_08378",null,null,"Winter/Summer Peaking",null,"Non-Coincident"]
["ED_MDU541_08379",null,null,null,null,"Coincident"]
["ED_MDU541_08380",null,null,"Adjustments - Embedded generation","MW","Non-Coincident"]
["ED_MDU541_08381",null,null,null,null,"Coincident"]
["ED_MDU541_08382",null,null,"Weather Corrected MD 10% POE","MW","Non-Coincident"]
["ED_MDU541_08383",null,null,null,null,"Coincident"]
["ED_MDU541_08384",null,null,"Weather Corrected MD 10% POE","MVA","Non-Coincident"]
["ED_MDU541_08385",null,null,null,null,"Coincident"]
["ED_MDU541_08386",null,null,"Weather Corrected MD 50% POE","MW","Non-Coincident"]
["ED_MDU541_08387",null,null,null,null,"Coincident"]
["ED_MDU541_08388",null,null,"Weather Corrected MD 50% POE","MVA","Non-Coincident"]
["ED_MDU541_08389",null,null,null,null,"Coincident"]
["ED_MDU541_08390",null,"<Enter substation name>","Substation Rating","MVA","Non-Coincident"]
["ED_MDU541_08391",null,null,null,null,"Coincident"]
["ED_MDU541_08392",null,null,"Raw Adjusted MD","MW","Non-Coincident"]
["ED_MDU541_08393",null,null,null,null,"Coincident"]
["ED_MDU541_08394",null,null,"Raw Adjusted MD","MVA","Non-Coincident"]
["ED_MDU541_08395",null,null,null,null,"Coincident"]
["ED_MDU541_08396",null,null,"Date MD occurred",null,"Non-Coincident"]
["ED_MDU541_08397",null,null,null,null,"Coincident"]
["ED_MDU541_08398",null,null,"Half hour time period MD occurred",null,"Non-Coincident"]
["ED_MDU541_08399",null,null,null,null,"Coincident"]
["ED_MDU541_08400",null,null,"Winter/Summer Peaking",null,"Non-Coincident"]
["ED_MDU541_08401",null,null,null,null,"Coincident"]
["ED_MDU541_08402",null,null,"Adjustments - Embedded generation","MW","Non-Coincident"]
["ED_MDU541_08403",null,null,null,null,"Coincident"]
["ED_MDU541_08404",null,null,"Weather Corrected MD 10% POE","MW","Non-Coincident"]
["ED_MDU541_08405",null,null,null,null,"Coincident"]
["ED_MDU541_08406",null,null,"Weather Corrected MD 10% POE","MVA","Non-Coincident"]
["ED_MDU541_08407",null,null,null,null,"Coincident"]
["ED_MDU541_08408",null,null,"Weather Corrected MD 50% POE","MW","Non-Coincident"]
["ED_MDU541_08409",null,null,null,null,"Coincident"]
["ED_MDU541_08410",null,null,"Weather Corrected MD 50% POE","MVA","Non-Coincident"]
["ED_MDU541_08411",null,null,null,null,"Coincident"]
["ED_MDU541_08412",null,"<Enter substation name>","Substation Rating","MVA","Non-Coincident"]
["ED_MDU541_08413",null,null,null,null,"Coincident"]
["ED_MDU541_08414",null,null,"Raw Adjusted MD","MW","Non-Coincident"]
["ED_MDU541_08415",null,null,null,null,"Coincident"]
["ED_MDU541_08416",null,null,"Raw Adjusted MD","MVA","Non-Coincident"]
["ED_MDU541_08417",null,null,null,null,"Coincident"]
["ED_MDU541_08418",null,null,"Date MD occurred",null,"Non-Coincident"]
["ED_MDU541_08419",null,null,null,null,"Coincident"]
["ED_MDU541_08420",null,null,"Half hour time period MD occurred",null,"Non-Coincident"]
["ED_MDU541_08421",null,null,null,null,"Coincident"]
["ED_MDU541_08422",null,null,"Winter/Summer Peaking",null,"Non-Coincident"]
["ED_MDU541_08423",null,null,null,null,"Coincident"]
["ED_MDU541_08424",null,null,"Adjustments - Embedded generation","MW","Non-Coincident"]
["ED_MDU541_08425",null,null,null,null,"Coincident"]
["ED_MDU541_08426",null,null,"Weather Corrected MD 10% POE","MW","Non-Coincident"]
["ED_MDU541_08427",null,null,null,null,"Coincident"]
["ED_MDU541_08428",null,null,"Weather Corrected MD 10% POE","MVA","Non-Coincident"]
["ED_MDU541_08429",null,null,null,null,"Coincident"]
["ED_MDU541_08430",null,null,"Weather Corrected MD 50% POE","MW","Non-Coincident"]
["ED_MDU541_08431",null,null,null,null,"Coincident"]
["ED_MDU541_08432",null,null,"Weather Corrected MD 50% POE","MVA","Non-Coincident"]
["ED_MDU541_08433",null,null,null,null,"Coincident"]
["ED_MDU541_08434",null,"<Enter substation name>","Substation Rating","MVA","Non-Coincident"]
["ED_MDU541_08435",null,null,null,null,"Coincident"]
["ED_MDU541_08436",null,null,"Raw Adjusted MD","MW","Non-Coincident"]
["ED_MDU541_08437",null,null,null,null,"Coincident"]
["ED_MDU541_08438",null,null,"Raw Adjusted MD","MVA","Non-Coincident"]
["ED_MDU541_08439",null,null,null,null,"Coincident"]
["ED_MDU541_08440",null,null,"Date MD occurred",null,"Non-Coincident"]
["ED_MDU541_08441",null,null,null,null,"Coincident"]
["ED_MDU541_08442",null,null,"Half hour time period MD occurred",null,"Non-Coincident"]
["ED_MDU541_08443",null,null,null,null,"Coincident"]
["ED_MDU541_08444",null,null,"Winter/Summer Peaking",null,"Non-Coincident"]
["ED_MDU541_08445",null,null,null,null,"Coincident"]
["ED_MDU541_08446",null,null,"Adjustments - Embedded generation","MW","Non-Coincident"]
["ED_MDU541_08447",null,null,null,null,"Coincident"]
["ED_MDU541_08448",null,null,"Weather Corrected MD 10% POE","MW","Non-Coincident"]
["ED_MDU541_08449",null,null,null,null,"Coincident"]
["ED_MDU541_08450",null,null,"Weather Corrected MD 10% POE","MVA","Non-Coincident"]
["ED_MDU541_08451",null,null,null,null,"Coincident"]
["ED_MDU541_08452",null,null,"Weather Corrected MD 50% POE","MW","Non-Coincident"]
["ED_MDU541_08453",null,null,null,null,"Coincident"]
["ED_MDU541_08454",null,null,"Weather Corrected MD 50% POE","MVA","Non-Coincident"]
["ED_MDU541_08455",null,null,null,null,"Coincident"]
["ED_MDU541_08456",null,"<Enter substation name>","Substation Rating","MVA","Non-Coincident"]
["ED_MDU541_08457",null,null,null,null,"Coincident"]
["ED_MDU541_08458",null,null,"Raw Adjusted MD","MW","Non-Coincident"]
["ED_MDU541_08459",null,null,null,null,"Coincident"]
["ED_MDU541_08460",null,null,"Raw Adjusted MD","MVA","Non-Coincident"]
["ED_MDU541_08461",null,null,null,null,"Coincident"]
["ED_MDU541_08462",null,null,"Date MD occurred",null,"Non-Coincident"]
["ED_MDU541_08463",null,null,null,null,"Coincident"]
["ED_MDU541_08464",null,null,"Half hour time period MD occurred",null,"Non-Coincident"]
["ED_MDU541_08465",null,null,null,null,"Coincident"]
["ED_MDU541_08466",null,null,"Winter/Summer Peaking",null,"Non-Coincident"]
["ED_MDU541_08467",null,null,null,null,"Coincident"]
["ED_MDU541_08468",null,null,"Adjustments - Embedded generation","MW","Non-Coincident"]
["ED_MDU541_08469",null,null,null,null,"Coincident"]
["ED_MDU541_08470",null,null,"Weather Corrected MD 10% POE","MW","Non-Coincident"]
["ED_MDU541_08471",null,null,null,null,"Coincident"]
["ED_MDU541_08472",null,null,"Weather Corrected MD 10% POE","MVA","Non-Coincident"]
["ED_MDU541_08473",null,null,null,null,"Coincident"]
["ED_MDU541_08474",null,null,"Weather Corrected MD 50% POE","MW","Non-Coincident"]
["ED_MDU541_08475",null,null,null,null,"Coincident"]
["ED_MDU541_08476",null,null,"Weather Corrected MD 50% POE","MVA","Non-Coincident"]
["ED_MDU541_08477",null,null,null,null,"Coincident"]
["ED_MDU541_08478",null,"<Enter substation name>","Substation Rating","MVA","Non-Coincident"]
["ED_MDU541_08479",null,null,null,null,"Coincident"]
["ED_MDU541_08480",null,null,"Raw Adjusted MD","MW","Non-Coincident"]
["ED_MDU541_08481",null,null,null,null,"Coincident"]
["ED_MDU541_08482",null,null,"Raw Adjusted MD","MVA","Non-Coincident"]
["ED_MDU541_08483",null,null,null,null,"Coincident"]
["ED_MDU541_08484",null,null,"Date MD occurred",null,"Non-Coincident"]
["ED_MDU541_08485",null,null,null,null,"Coincident"]
["ED_MDU541_08486",null,null,"Half hour time period MD occurred",null,"Non-Coincident"]
["ED_MDU541_08487",null,null,null,null,"Coincident"]
["ED_MDU541_08488",null,null,"Winter/Summer Peaking",null,"Non-Coincident"]
["ED_MDU541_08489",null,null,null,null,"Coincident"]
["ED_MDU541_08490",null,null,"Adjustments - Embedded generation","MW","Non-Coincident"]
["ED_MDU541_08491",null,null,null,null,"Coincident"]
["ED_MDU541_08492",null,null,"Weather Corrected MD 10% POE","MW","Non-Coincident"]
["ED_MDU541_08493",null,null,null,null,"Coincident"]
["ED_MDU541_08494",null,null,"Weather Corrected MD 10% POE","MVA","Non-Coincident"]
["ED_MDU541_08495",null,null,null,null,"Coincident"]
["ED_MDU541_08496",null,null,"Weather Corrected MD 50% POE","MW","Non-Coincident"]
["ED_MDU541_08497",null,null,null,null,"Coincident"]
["ED_MDU541_08498",null,null,"Weather Corrected MD 50% POE","MVA","Non-Coincident"]
["ED_MDU541_08499",null,null,null,null,"Coincident"]
["ED_MDU541_08500",null,"<Enter substation name>","Substation Rating","MVA","Non-Coincident"]
["ED_MDU541_08501",null,null,null,null,"Coincident"]
["ED_MDU541_08502",null,null,"Raw Adjusted MD","MW","Non-Coincident"]
["ED_MDU541_08503",null,null,null,null,"Coincident"]
["ED_MDU541_08504",null,null,"Raw Adjusted MD","MVA","Non-Coincident"]
["ED_MDU541_08505",null,null,null,null,"Coincident"]
["ED_MDU541_08506",null,null,"Date MD occurred",null,"Non-Coincident"]
["ED_MDU541_08507",null,null,null,null,"Coincident"]
["ED_MDU541_08508",null,null,"Half hour time period MD occurred",null,"Non-Coincident"]
["ED_MDU541_08509",null,null,null,null,"Coincident"]
["ED_MDU541_08510",null,null,"Winter/Summer Peaking",null,"Non-Coincident"]
["ED_MDU541_08511",null,null,null,null,"Coincident"]
["ED_MDU541_08512",null,null,"Adjustments - Embedded generation","MW","Non-Coincident"]
["ED_MDU541_08513",null,null,null,null,"Coincident"]
["ED_MDU541_08514",null,null,"Weather Corrected MD 10% POE","MW","Non-Coincident"]
["ED_MDU541_08515",null,null,null,null,"Coincident"]
["ED_MDU541_08516",null,null,"Weather Corrected MD 10% POE","MVA","Non-Coincident"]
["ED_MDU541_08517",null,null,null,null,"Coincident"]
["ED_MDU541_08518",null,null,"Weather Corrected MD 50% POE","MW","Non-Coincident"]
["ED_MDU541_08519",null,null,null,null,"Coincident"]
["ED_MDU541_08520",null,null,"Weather Corrected MD 50% POE","MVA","Non-Coincident"]
["ED_MDU541_08521",null,null,null,null,"Coincident"]
["ED_MDU541_08522",null,"<Enter substation name>","Substation Rating","MVA","Non-Coincident"]
["ED_MDU541_08523",null,null,null,null,"Coincident"]
["ED_MDU541_08524",null,null,"Raw Adjusted MD","MW","Non-Coincident"]
["ED_MDU541_08525",null,null,null,null,"Coincident"]
["ED_MDU541_08526",null,null,"Raw Adjusted MD","MVA","Non-Coincident"]
["ED_MDU541_08527",null,null,null,null,"Coincident"]
["ED_MDU541_08528",null,null,"Date MD occurred",null,"Non-Coincident"]
["ED_MDU541_08529",null,null,null,null,"Coincident"]
["ED_MDU541_08530",null,null,"Half hour time period MD occurred",null,"Non-Coincident"]
["ED_MDU541_08531",null,null,null,null,"Coincident"]
["ED_MDU541_08532",null,null,"Winter/Summer Peaking",null,"Non-Coincident"]
["ED_MDU541_08533",null,null,null,null,"Coincident"]
["ED_MDU541_08534",null,null,"Adjustments - Embedded generation","MW","Non-Coincident"]
["ED_MDU541_08535",null,null,null,null,"Coincident"]
["ED_MDU541_08536",null,null,"Weather Corrected MD 10% POE","MW","Non-Coincident"]
["ED_MDU541_08537",null,null,null,null,"Coincident"]
["ED_MDU541_08538",null,null,"Weather Corrected MD 10% POE","MVA","Non-Coincident"]
["ED_MDU541_08539",null,null,null,null,"Coincident"]
["ED_MDU541_08540",null,null,"Weather Corrected MD 50% POE","MW","Non-Coincident"]
["ED_MDU541_08541",null,null,null,null,"Coincident"]
["ED_MDU541_08542",null,null,"Weather Corrected MD 50% POE","MVA","Non-Coincident"]
["ED_MDU541_08543",null,null,null,null,"Coincident"]
["ED_MDU541_08544",null,"<Enter substation name>","Substation Rating","MVA","Non-Coincident"]
["ED_MDU541_08545",null,null,null,null,"Coincident"]
["ED_MDU541_08546",null,null,"Raw Adjusted MD","MW","Non-Coincident"]
["ED_MDU541_08547",null,null,null,null,"Coincident"]
["ED_MDU541_08548",null,null,"Raw Adjusted MD","MVA","Non-Coincident"]
["ED_MDU541_08549",null,null,null,null,"Coincident"]
["ED_MDU541_08550",null,null,"Date MD occurred",null,"Non-Coincident"]
["ED_MDU541_08551",null,null,null,null,"Coincident"]
["ED_MDU541_08552",null,null,"Half hour time period MD occurred",null,"Non-Coincident"]
["ED_MDU541_08553",null,null,null,null,"Coincident"]
["ED_MDU541_08554",null,null,"Winter/Summer Peaking",null,"Non-Coincident"]
["ED_MDU541_08555",null,null,null,null,"Coincident"]
["ED_MDU541_08556",null,null,"Adjustments - Embedded generation","MW","Non-Coincident"]
["ED_MDU541_08557",null,null,null,null,"Coincident"]
["ED_MDU541_08558",null,null,"Weather Corrected MD 10% POE","MW","Non-Coincident"]
["ED_MDU541_08559",null,null,null,null,"Coincident"]
["ED_MDU541_08560",null,null,"Weather Corrected MD 10% POE","MVA","Non-Coincident"]
["ED_MDU541_08561",null,null,null,null,"Coincident"]
["ED_MDU541_08562",null,null,"Weather Corrected MD 50% POE","MW","Non-Coincident"]
["ED_MDU541_08563",null,null,null,null,"Coincident"]
["ED_MDU541_08564",null,null,"Weather Corrected MD 50% POE","MVA","Non-Coincident"]
["ED_MDU541_08565",null,null,null,null,"Coincident"]
["ED_MDU541_08566",null,"<Enter substation name>","Substation Rating","MVA","Non-Coincident"]
["ED_MDU541_08567",null,null,null,null,"Coincident"]
["ED_MDU541_08568",null,null,"Raw Adjusted MD","MW","Non-Coincident"]
["ED_MDU541_08569",null,null,null,null,"Coincident"]
["ED_MDU541_08570",null,null,"Raw Adjusted MD","MVA","Non-Coincident"]
["ED_MDU541_08571",null,null,null,null,"Coincident"]
["ED_MDU541_08572",null,null,"Date MD occurred",null,"Non-Coincident"]
["ED_MDU541_08573",null,null,null,null,"Coincident"]
["ED_MDU541_08574",null,null,"Half hour time period MD occurred",null,"Non-Coincident"]
["ED_MDU541_08575",null,null,null,null,"Coincident"]
["ED_MDU541_08576",null,null,"Winter/Summer Peaking",null,"Non-Coincident"]
["ED_MDU541_08577",null,null,null,null,"Coincident"]
["ED_MDU541_08578",null,null,"Adjustments - Embedded generation","MW","Non-Coincident"]
["ED_MDU541_08579",null,null,null,null,"Coincident"]
["ED_MDU541_08580",null,null,"Weather Corrected MD 10% POE","MW","Non-Coincident"]
["ED_MDU541_08581",null,null,null,null,"Coincident"]
["ED_MDU541_08582",null,null,"Weather Corrected MD 10% POE","MVA","Non-Coincident"]
["ED_MDU541_08583",null,null,null,null,"Coincident"]
["ED_MDU541_08584",null,null,"Weather Corrected MD 50% POE","MW","Non-Coincident"]
["ED_MDU541_08585",null,null,null,null,"Coincident"]
["ED_MDU541_08586",null,null,"Weather Corrected MD 50% POE","MVA","Non-Coincident"]
["ED_MDU541_08587",null,null,null,null,"Coincident"]
["ED_MDU541_08588",null,"<Enter substation name>","Substation Rating","MVA","Non-Coincident"]
["ED_MDU541_08589",null,null,null,null,"Coincident"]
["ED_MDU541_08590",null,null,"Raw Adjusted MD","MW","Non-Coincident"]
["ED_MDU541_08591",null,null,null,null,"Coincident"]
["ED_MDU541_08592",null,null,"Raw Adjusted MD","MVA","Non-Coincident"]
["ED_MDU541_08593",null,null,null,null,"Coincident"]
["ED_MDU541_08594",null,null,"Date MD occurred",null,"Non-Coincident"]
["ED_MDU541_08595",null,null,null,null,"Coincident"]
["ED_MDU541_08596",null,null,"Half hour time period MD occurred",null,"Non-Coincident"]
["ED_MDU541_08597",null,null,null,null,"Coincident"]
["ED_MDU541_08598",null,null,"Winter/Summer Peaking",null,"Non-Coincident"]
["ED_MDU541_08599",null,null,null,null,"Coincident"]
["ED_MDU541_08600",null,null,"Adjustments - Embedded generation","MW","Non-Coincident"]
["ED_MDU541_08601",null,null,null,null,"Coincident"]
["ED_MDU541_08602",null,null,"Weather Corrected MD 10% POE","MW","Non-Coincident"]
["ED_MDU541_08603",null,null,null,null,"Coincident"]
["ED_MDU541_08604",null,null,"Weather Corrected MD 10% POE","MVA","Non-Coincident"]
["ED_MDU541_08605",null,null,null,null,"Coincident"]
["ED_MDU541_08606",null,null,"Weather Corrected MD 50% POE","MW","Non-Coincident"]
["ED_MDU541_08607",null,null,null,null,"Coincident"]
["ED_MDU541_08608",null,null,"Weather Corrected MD 50% POE","MVA","Non-Coincident"]
["ED_MDU541_08609",null,null,null,null,"Coincident"]
["ED_MDU541_08610",null,"<Enter substation name>","Substation Rating","MVA","Non-Coincident"]
["ED_MDU541_08611",null,null,null,null,"Coincident"]
["ED_MDU541_08612",null,null,"Raw Adjusted MD","MW","Non-Coincident"]
["ED_MDU541_08613",null,null,null,null,"Coincident"]
["ED_MDU541_08614",null,null,"Raw Adjusted MD","MVA","Non-Coincident"]
["ED_MDU541_08615",null,null,null,null,"Coincident"]
["ED_MDU541_08616",null,null,"Date MD occurred",null,"Non-Coincident"]
["ED_MDU541_08617",null,null,null,null,"Coincident"]
["ED_MDU541_08618",null,null,"Half hour time period MD occurred",null,"Non-Coincident"]
["ED_MDU541_08619",null,null,null,null,"Coincident"]
["ED_MDU541_08620",null,null,"Winter/Summer Peaking",null,"Non-Coincident"]
["ED_MDU541_08621",null,null,null,null,"Coincident"]
["ED_MDU541_08622",null,null,"Adjustments - Embedded generation","MW","Non-Coincident"]
["ED_MDU541_08623",null,null,null,null,"Coincident"]
["ED_MDU541_08624",null,null,"Weather Corrected MD 10% POE","MW","Non-Coincident"]
["ED_MDU541_08625",null,null,null,null,"Coincident"]
["ED_MDU541_08626",null,null,"Weather Corrected MD 10% POE","MVA","Non-Coincident"]
["ED_MDU541_08627",null,null,null,null,"Coincident"]
["ED_MDU541_08628",null,null,"Weather Corrected MD 50% POE","MW","Non-Coincident"]
["ED_MDU541_08629",null,null,null,null,"Coincident"]
["ED_MDU541_08630",null,null,"Weather Corrected MD 50% POE","MVA","Non-Coincident"]
["ED_MDU541_08631",null,null,null,null,"Coincident"]
["ED_MDU541_08632",null,"<Enter substation name>","Substation Rating","MVA","Non-Coincident"]
["ED_MDU541_08633",null,null,null,null,"Coincident"]
["ED_MDU541_08634",null,null,"Raw Adjusted MD","MW","Non-Coincident"]
["ED_MDU541_08635",null,null,null,null,"Coincident"]
["ED_MDU541_08636",null,null,"Raw Adjusted MD","MVA","Non-Coincident"]
["ED_MDU541_08637",null,null,null,null,"Coincident"]
["ED_MDU541_08638",null,null,"Date MD occurred",null,"Non-Coincident"]
["ED_MDU541_08639",null,null,null,null,"Coincident"]
["ED_MDU541_08640",null,null,"Half hour time period MD occurred",null,"Non-Coincident"]
["ED_MDU541_08641",null,null,null,null,"Coincident"]
["ED_MDU541_08642",null,null,"Winter/Summer Peaking",null,"Non-Coincident"]
["ED_MDU541_08643",null,null,null,null,"Coincident"]
["ED_MDU541_08644",null,null,"Adjustments - Embedded generation","MW","Non-Coincident"]
["ED_MDU541_08645",null,null,null,null,"Coincident"]
["ED_MDU541_08646",null,null,"Weather Corrected MD 10% POE","MW","Non-Coincident"]
["ED_MDU541_08647",null,null,null,null,"Coincident"]
["ED_MDU541_08648",null,null,"Weather Corrected MD 10% POE","MVA","Non-Coincident"]
["ED_MDU541_08649",null,null,null,null,"Coincident"]
["ED_MDU541_08650",null,null,"Weather Corrected MD 50% POE","MW","Non-Coincident"]
["ED_MDU541_08651",null,null,null,null,"Coincident"]
["ED_MDU541_08652",null,null,"Weather Corrected MD 50% POE","MVA","Non-Coincident"]
["ED_MDU541_08653",null,null,null,null,"Coincident"]
["ED_MDU541_08654",null,"<Enter substation name>","Substation Rating","MVA","Non-Coincident"]
["ED_MDU541_08655",null,null,null,null,"Coincident"]
["ED_MDU541_08656",null,null,"Raw Adjusted MD","MW","Non-Coincident"]
["ED_MDU541_08657",null,null,null,null,"Coincident"]
["ED_MDU541_08658",null,null,"Raw Adjusted MD","MVA","Non-Coincident"]
["ED_MDU541_08659",null,null,null,null,"Coincident"]
["ED_MDU541_08660",null,null,"Date MD occurred",null,"Non-Coincident"]
["ED_MDU541_08661",null,null,null,null,"Coincident"]
["ED_MDU541_08662",null,null,"Half hour time period MD occurred",null,"Non-Coincident"]
["ED_MDU541_08663",null,null,null,null,"Coincident"]
["ED_MDU541_08664",null,null,"Winter/Summer Peaking",null,"Non-Coincident"]
["ED_MDU541_08665",null,null,null,null,"Coincident"]
["ED_MDU541_08666",null,null,"Adjustments - Embedded generation","MW","Non-Coincident"]
["ED_MDU541_08667",null,null,null,null,"Coincident"]
["ED_MDU541_08668",null,null,"Weather Corrected MD 10% POE","MW","Non-Coincident"]
["ED_MDU541_08669",null,null,null,null,"Coincident"]
["ED_MDU541_08670",null,null,"Weather Corrected MD 10% POE","MVA","Non-Coincident"]
["ED_MDU541_08671",null,null,null,null,"Coincident"]
["ED_MDU541_08672",null,null,"Weather Corrected MD 50% POE","MW","Non-Coincident"]
["ED_MDU541_08673",null,null,null,null,"Coincident"]
["ED_MDU541_08674",null,null,"Weather Corrected MD 50% POE","MVA","Non-Coincident"]
["ED_MDU541_08675",null,null,null,null,"Coincident"]
["ED_MDU541_08676",null,"<Enter substation name>","Substation Rating","MVA","Non-Coincident"]
["ED_MDU541_08677",null,null,null,null,"Coincident"]
["ED_MDU541_08678",null,null,"Raw Adjusted MD","MW","Non-Coincident"]
["ED_MDU541_08679",null,null,null,null,"Coincident"]
["ED_MDU541_08680",null,null,"Raw Adjusted MD","MVA","Non-Coincident"]
["ED_MDU541_08681",null,null,null,null,"Coincident"]
["ED_MDU541_08682",null,null,"Date MD occurred",null,"Non-Coincident"]
["ED_MDU541_08683",null,null,null,null,"Coincident"]
["ED_MDU541_08684",null,null,"Half hour time period MD occurred",null,"Non-Coincident"]
["ED_MDU541_08685",null,null,null,null,"Coincident"]
["ED_MDU541_08686",null,null,"Winter/Summer Peaking",null,"Non-Coincident"]
["ED_MDU541_08687",null,null,null,null,"Coincident"]
["ED_MDU541_08688",null,null,"Adjustments - Embedded generation","MW","Non-Coincident"]
["ED_MDU541_08689",null,null,null,null,"Coincident"]
["ED_MDU541_08690",null,null,"Weather Corrected MD 10% POE","MW","Non-Coincident"]
["ED_MDU541_08691",null,null,null,null,"Coincident"]
["ED_MDU541_08692",null,null,"Weather Corrected MD 10% POE","MVA","Non-Coincident"]
["ED_MDU541_08693",null,null,null,null,"Coincident"]
["ED_MDU541_08694",null,null,"Weather Corrected MD 50% POE","MW","Non-Coincident"]
["ED_MDU541_08695",null,null,null,null,"Coincident"]
["ED_MDU541_08696",null,null,"Weather Corrected MD 50% POE","MVA","Non-Coincident"]
["ED_MDU541_08697",null,null,null,null,"Coincident"]
["ED_MDU541_08698",null,"<Enter substation name>","Substation Rating","MVA","Non-Coincident"]
["ED_MDU541_08699",null,null,null,null,"Coincident"]
["ED_MDU541_08700",null,null,"Raw Adjusted MD","MW","Non-Coincident"]
["ED_MDU541_08701",null,null,null,null,"Coincident"]
["ED_MDU541_08702",null,null,"Raw Adjusted MD","MVA","Non-Coincident"]
["ED_MDU541_08703",null,null,null,null,"Coincident"]
["ED_MDU541_08704",null,null,"Date MD occurred",null,"Non-Coincident"]
["ED_MDU541_08705",null,null,null,null,"Coincident"]
["ED_MDU541_08706",null,null,"Half hour time period MD occurred",null,"Non-Coincident"]
["ED_MDU541_08707",null,null,null,null,"Coincident"]
["ED_MDU541_08708",null,null,"Winter/Summer Peaking",null,"Non-Coincident"]
["ED_MDU541_08709",null,null,null,null,"Coincident"]
["ED_MDU541_08710",null,null,"Adjustments - Embedded generation","MW","Non-Coincident"]
["ED_MDU541_08711",null,null,null,null,"Coincident"]
["ED_MDU541_08712",null,null,"Weather Corrected MD 10% POE","MW","Non-Coincident"]
["ED_MDU541_08713",null,null,null,null,"Coincident"]
["ED_MDU541_08714",null,null,"Weather Corrected MD 10% POE","MVA","Non-Coincident"]
["ED_MDU541_08715",null,null,null,null,"Coincident"]
["ED_MDU541_08716",null,null,"Weather Corrected MD 50% POE","MW","Non-Coincident"]
["ED_MDU541_08717",null,null,null,null,"Coincident"]
["ED_MDU541_08718",null,null,"Weather Corrected MD 50% POE","MVA","Non-Coincident"]
["ED_MDU541_08719",null,null,null,null,"Coincident"]
["ED_MDU541_08720",null,"<Enter substation name>","Substation Rating","MVA","Non-Coincident"]
["ED_MDU541_08721",null,null,null,null,"Coincident"]
["ED_MDU541_08722",null,null,"Raw Adjusted MD","MW","Non-Coincident"]
["ED_MDU541_08723",null,null,null,null,"Coincident"]
["ED_MDU541_08724",null,null,"Raw Adjusted MD","MVA","Non-Coincident"]
["ED_MDU541_08725",null,null,null,null,"Coincident"]
["ED_MDU541_08726",null,null,"Date MD occurred",null,"Non-Coincident"]
["ED_MDU541_08727",null,null,null,null,"Coincident"]
["ED_MDU541_08728",null,null,"Half hour time period MD occurred",null,"Non-Coincident"]
["ED_MDU541_08729",null,null,null,null,"Coincident"]
["ED_MDU541_08730",null,null,"Winter/Summer Peaking",null,"Non-Coincident"]
["ED_MDU541_08731",null,null,null,null,"Coincident"]
["ED_MDU541_08732",null,null,"Adjustments - Embedded generation","MW","Non-Coincident"]
["ED_MDU541_08733",null,null,null,null,"Coincident"]
["ED_MDU541_08734",null,null,"Weather Corrected MD 10% POE","MW","Non-Coincident"]
["ED_MDU541_08735",null,null,null,null,"Coincident"]
["ED_MDU541_08736",null,null,"Weather Corrected MD 10% POE","MVA","Non-Coincident"]
["ED_MDU541_08737",null,null,null,null,"Coincident"]
["ED_MDU541_08738",null,null,"Weather Corrected MD 50% POE","MW","Non-Coincident"]
["ED_MDU541_08739",null,null,null,null,"Coincident"]
["ED_MDU541_08740",null,null,"Weather Corrected MD 50% POE","MVA","Non-Coincident"]
["ED_MDU541_08741",null,null,null,null,"Coincident"]
["ED_MDU541_08742",null,"<Enter substation name>","Substation Rating","MVA","Non-Coincident"]
["ED_MDU541_08743",null,null,null,null,"Coincident"]
["ED_MDU541_08744",null,null,"Raw Adjusted MD","MW","Non-Coincident"]
["ED_MDU541_08745",null,null,null,null,"Coincident"]
["ED_MDU541_08746",null,null,"Raw Adjusted MD","MVA","Non-Coincident"]
["ED_MDU541_08747",null,null,null,null,"Coincident"]
["ED_MDU541_08748",null,null,"Date MD occurred",null,"Non-Coincident"]
["ED_MDU541_08749",null,null,null,null,"Coincident"]
["ED_MDU541_08750",null,null,"Half hour time period MD occurred",null,"Non-Coincident"]
["ED_MDU541_08751",null,null,null,null,"Coincident"]
["ED_MDU541_08752",null,null,"Winter/Summer Peaking",null,"Non-Coincident"]
["ED_MDU541_08753",null,null,null,null,"Coincident"]
["ED_MDU541_08754",null,null,"Adjustments - Embedded generation","MW","Non-Coincident"]
["ED_MDU541_08755",null,null,null,null,"Coincident"]
["ED_MDU541_08756",null,null,"Weather Corrected MD 10% POE","MW","Non-Coincident"]
["ED_MDU541_08757",null,null,null,null,"Coincident"]
["ED_MDU541_08758",null,null,"Weather Corrected MD 10% POE","MVA","Non-Coincident"]
["ED_MDU541_08759",null,null,null,null,"Coincident"]
["ED_MDU541_08760",null,null,"Weather Corrected MD 50% POE","MW","Non-Coincident"]
["ED_MDU541_08761",null,null,null,null,"Coincident"]
["ED_MDU541_08762",null,null,"Weather Corrected MD 50% POE","MVA","Non-Coincident"]
["ED_MDU541_08763",null,null,null,null,"Coincident"]
["ED_MDU541_08764",null,"<Enter substation name>","Substation Rating","MVA","Non-Coincident"]
["ED_MDU541_08765",null,null,null,null,"Coincident"]
["ED_MDU541_08766",null,null,"Raw Adjusted MD","MW","Non-Coincident"]
["ED_MDU541_08767",null,null,null,null,"Coincident"]
["ED_MDU541_08768",null,null,"Raw Adjusted MD","MVA","Non-Coincident"]
["ED_MDU541_08769",null,null,null,null,"Coincident"]
["ED_MDU541_08770",null,null,"Date MD occurred",null,"Non-Coincident"]
["ED_MDU541_08771",null,null,null,null,"Coincident"]
["ED_MDU541_08772",null,null,"Half hour time period MD occurred",null,"Non-Coincident"]
["ED_MDU541_08773",null,null,null,null,"Coincident"]
["ED_MDU541_08774",null,null,"Winter/Summer Peaking",null,"Non-Coincident"]
["ED_MDU541_08775",null,null,null,null,"Coincident"]
["ED_MDU541_08776",null,null,"Adjustments - Embedded generation","MW","Non-Coincident"]
["ED_MDU541_08777",null,null,null,null,"Coincident"]
["ED_MDU541_08778",null,null,"Weather Corrected MD 10% POE","MW","Non-Coincident"]
["ED_MDU541_08779",null,null,null,null,"Coincident"]
["ED_MDU541_08780",null,null,"Weather Corrected MD 10% POE","MVA","Non-Coincident"]
["ED_MDU541_08781",null,null,null,null,"Coincident"]
["ED_MDU541_08782",null,null,"Weather Corrected MD 50% POE","MW","Non-Coincident"]
["ED_MDU541_08783",null,null,null,null,"Coincident"]
["ED_MDU541_08784",null,null,"Weather Corrected MD 50% POE","MVA","Non-Coincident"]
["ED_MDU541_08785",null,null,null,null,"Coincident"]
["ED_MDU541_08786",null,"<Enter substation name>","Substation Rating","MVA","Non-Coincident"]
["ED_MDU541_08787",null,null,null,null,"Coincident"]
["ED_MDU541_08788",null,null,"Raw Adjusted MD","MW","Non-Coincident"]
["ED_MDU541_08789",null,null,null,null,"Coincident"]
["ED_MDU541_08790",null,null,"Raw Adjusted MD","MVA","Non-Coincident"]
["ED_MDU541_08791",null,null,null,null,"Coincident"]
["ED_MDU541_08792",null,null,"Date MD occurred",null,"Non-Coincident"]
["ED_MDU541_08793",null,null,null,null,"Coincident"]
["ED_MDU541_08794",null,null,"Half hour time period MD occurred",null,"Non-Coincident"]
["ED_MDU541_08795",null,null,null,null,"Coincident"]
["ED_MDU541_08796",null,null,"Winter/Summer Peaking",null,"Non-Coincident"]
["ED_MDU541_08797",null,null,null,null,"Coincident"]
["ED_MDU541_08798",null,null,"Adjustments - Embedded generation","MW","Non-Coincident"]
["ED_MDU541_08799",null,null,null,null,"Coincident"]
["ED_MDU541_08800",null,null,"Weather Corrected MD 10% POE","MW","Non-Coincident"]
["ED_MDU541_08801",null,null,null,null,"Coincident"]
["ED_MDU541_08802",null,null,"Weather Corrected MD 10% POE","MVA","Non-Coincident"]
["ED_MDU541_08803",null,null,null,null,"Coincident"]
["ED_MDU541_08804",null,null,"Weather Corrected MD 50% POE","MW","Non-Coincident"]
["ED_MDU541_08805",null,null,null,null,"Coincident"]
["ED_MDU541_08806",null,null,"Weather Corrected MD 50% POE","MVA","Non-Coincident"]
["ED_MDU541_08807",null,null,null,null,"Coincident"]
["ED_MDU541_08808",null,"<Enter substation name>","Substation Rating","MVA","Non-Coincident"]
["ED_MDU541_08809",null,null,null,null,"Coincident"]
["ED_MDU541_08810",null,null,"Raw Adjusted MD","MW","Non-Coincident"]
["ED_MDU541_08811",null,null,null,null,"Coincident"]
["ED_MDU541_08812",null,null,"Raw Adjusted MD","MVA","Non-Coincident"]
["ED_MDU541_08813",null,null,null,null,"Coincident"]
["ED_MDU541_08814",null,null,"Date MD occurred",null,"Non-Coincident"]
["ED_MDU541_08815",null,null,null,null,"Coincident"]
["ED_MDU541_08816",null,null,"Half hour time period MD occurred",null,"Non-Coincident"]
["ED_MDU541_08817",null,null,null,null,"Coincident"]
["ED_MDU541_08818",null,null,"Winter/Summer Peaking",null,"Non-Coincident"]
["ED_MDU541_08819",null,null,null,null,"Coincident"]
["ED_MDU541_08820",null,null,"Adjustments - Embedded generation","MW","Non-Coincident"]
["ED_MDU541_08821",null,null,null,null,"Coincident"]
["ED_MDU541_08822",null,null,"Weather Corrected MD 10% POE","MW","Non-Coincident"]
["ED_MDU541_08823",null,null,null,null,"Coincident"]
["ED_MDU541_08824",null,null,"Weather Corrected MD 10% POE","MVA","Non-Coincident"]
["ED_MDU541_08825",null,null,null,null,"Coincident"]
["ED_MDU541_08826",null,null,"Weather Corrected MD 50% POE","MW","Non-Coincident"]
["ED_MDU541_08827",null,null,null,null,"Coincident"]
["ED_MDU541_08828",null,null,"Weather Corrected MD 50% POE","MVA","Non-Coincident"]
["ED_MDU541_08829",null,null,null,null,"Coincident"]
["ED_MDU541_08830",null,"<Enter substation name>","Substation Rating","MVA","Non-Coincident"]
["ED_MDU541_08831",null,null,null,null,"Coincident"]
["ED_MDU541_08832",null,null,"Raw Adjusted MD","MW","Non-Coincident"]
["ED_MDU541_08833",null,null,null,null,"Coincident"]
["ED_MDU541_08834",null,null,"Raw Adjusted MD","MVA","Non-Coincident"]
["ED_MDU541_08835",null,null,null,null,"Coincident"]
["ED_MDU541_08836",null,null,"Date MD occurred",null,"Non-Coincident"]
["ED_MDU541_08837",null,null,null,null,"Coincident"]
["ED_MDU541_08838",null,null,"Half hour time period MD occurred",null,"Non-Coincident"]
["ED_MDU541_08839",null,null,null,null,"Coincident"]
["ED_MDU541_08840",null,null,"Winter/Summer Peaking",null,"Non-Coincident"]
["ED_MDU541_08841",null,null,null,null,"Coincident"]
["ED_MDU541_08842",null,null,"Adjustments - Embedded generation","MW","Non-Coincident"]
["ED_MDU541_08843",null,null,null,null,"Coincident"]
["ED_MDU541_08844",null,null,"Weather Corrected MD 10% POE","MW","Non-Coincident"]
["ED_MDU541_08845",null,null,null,null,"Coincident"]
["ED_MDU541_08846",null,null,"Weather Corrected MD 10% POE","MVA","Non-Coincident"]
["ED_MDU541_08847",null,null,null,null,"Coincident"]
["ED_MDU541_08848",null,null,"Weather Corrected MD 50% POE","MW","Non-Coincident"]
["ED_MDU541_08849",null,null,null,null,"Coincident"]
["ED_MDU541_08850",null,null,"Weather Corrected MD 50% POE","MVA","Non-Coincident"]
["ED_MDU541_08851",null,null,null,null,"Coincident"]
["ED_MDU541_08852",null,"<Enter substation name>","Substation Rating","MVA","Non-Coincident"]
["ED_MDU541_08853",null,null,null,null,"Coincident"]
["ED_MDU541_08854",null,null,"Raw Adjusted MD","MW","Non-Coincident"]
["ED_MDU541_08855",null,null,null,null,"Coincident"]
["ED_MDU541_08856",null,null,"Raw Adjusted MD","MVA","Non-Coincident"]
["ED_MDU541_08857",null,null,null,null,"Coincident"]
["ED_MDU541_08858",null,null,"Date MD occurred",null,"Non-Coincident"]
["ED_MDU541_08859",null,null,null,null,"Coincident"]
["ED_MDU541_08860",null,null,"Half hour time period MD occurred",null,"Non-Coincident"]
["ED_MDU541_08861",null,null,null,null,"Coincident"]
["ED_MDU541_08862",null,null,"Winter/Summer Peaking",null,"Non-Coincident"]
["ED_MDU541_08863",null,null,null,null,"Coincident"]
["ED_MDU541_08864",null,null,"Adjustments - Embedded generation","MW","Non-Coincident"]
["ED_MDU541_08865",null,null,null,null,"Coincident"]
["ED_MDU541_08866",null,null,"Weather Corrected MD 10% POE","MW","Non-Coincident"]
["ED_MDU541_08867",null,null,null,null,"Coincident"]
["ED_MDU541_08868",null,null,"Weather Corrected MD 10% POE","MVA","Non-Coincident"]
["ED_MDU541_08869",null,null,null,null,"Coincident"]
["ED_MDU541_08870",null,null,"Weather Corrected MD 50% POE","MW","Non-Coincident"]
["ED_MDU541_08871",null,null,null,null,"Coincident"]
["ED_MDU541_08872",null,null,"Weather Corrected MD 50% POE","MVA","Non-Coincident"]
["ED_MDU541_08873",null,null,null,null,"Coincident"]
["ED_MDU541_08874",null,"<Enter substation name>","Substation Rating","MVA","Non-Coincident"]
["ED_MDU541_08875",null,null,null,null,"Coincident"]
["ED_MDU541_08876",null,null,"Raw Adjusted MD","MW","Non-Coincident"]
["ED_MDU541_08877",null,null,null,null,"Coincident"]
["ED_MDU541_08878",null,null,"Raw Adjusted MD","MVA","Non-Coincident"]
["ED_MDU541_08879",null,null,null,null,"Coincident"]
["ED_MDU541_08880",null,null,"Date MD occurred",null,"Non-Coincident"]
["ED_MDU541_08881",null,null,null,null,"Coincident"]
["ED_MDU541_08882",null,null,"Half hour time period MD occurred",null,"Non-Coincident"]
["ED_MDU541_08883",null,null,null,null,"Coincident"]
["ED_MDU541_08884",null,null,"Winter/Summer Peaking",null,"Non-Coincident"]
["ED_MDU541_08885",null,null,null,null,"Coincident"]
["ED_MDU541_08886",null,null,"Adjustments - Embedded generation","MW","Non-Coincident"]
["ED_MDU541_08887",null,null,null,null,"Coincident"]
["ED_MDU541_08888",null,null,"Weather Corrected MD 10% POE","MW","Non-Coincident"]
["ED_MDU541_08889",null,null,null,null,"Coincident"]
["ED_MDU541_08890",null,null,"Weather Corrected MD 10% POE","MVA","Non-Coincident"]
["ED_MDU541_08891",null,null,null,null,"Coincident"]
["ED_MDU541_08892",null,null,"Weather Corrected MD 50% POE","MW","Non-Coincident"]
["ED_MDU541_08893",null,null,null,null,"Coincident"]
["ED_MDU541_08894",null,null,"Weather Corrected MD 50% POE","MVA","Non-Coincident"]
["ED_MDU541_08895",null,null,null,null,"Coincident"]
["ED_MDU541_08896",null,"<Enter substation name>","Substation Rating","MVA","Non-Coincident"]
["ED_MDU541_08897",null,null,null,null,"Coincident"]
["ED_MDU541_08898",null,null,"Raw Adjusted MD","MW","Non-Coincident"]
["ED_MDU541_08899",null,null,null,null,"Coincident"]
["ED_MDU541_08900",null,null,"Raw Adjusted MD","MVA","Non-Coincident"]
["ED_MDU541_08901",null,null,null,null,"Coincident"]
["ED_MDU541_08902",null,null,"Date MD occurred",null,"Non-Coincident"]
["ED_MDU541_08903",null,null,null,null,"Coincident"]
["ED_MDU541_08904",null,null,"Half hour time period MD occurred",null,"Non-Coincident"]
["ED_MDU541_08905",null,null,null,null,"Coincident"]
["ED_MDU541_08906",null,null,"Winter/Summer Peaking",null,"Non-Coincident"]
["ED_MDU541_08907",null,null,null,null,"Coincident"]
["ED_MDU541_08908",null,null,"Adjustments - Embedded generation","MW","Non-Coincident"]
["ED_MDU541_08909",null,null,null,null,"Coincident"]
["ED_MDU541_08910",null,null,"Weather Corrected MD 10% POE","MW","Non-Coincident"]
["ED_MDU541_08911",null,null,null,null,"Coincident"]
["ED_MDU541_08912",null,null,"Weather Corrected MD 10% POE","MVA","Non-Coincident"]
["ED_MDU541_08913",null,null,null,null,"Coincident"]
["ED_MDU541_08914",null,null,"Weather Corrected MD 50% POE","MW","Non-Coincident"]
["ED_MDU541_08915",null,null,null,null,"Coincident"]
["ED_MDU541_08916",null,null,"Weather Corrected MD 50% POE","MVA","Non-Coincident"]
["ED_MDU541_08917",null,null,null,null,"Coincident"]
["ED_MDU541_08918",null,"<Enter substation name>","Substation Rating","MVA","Non-Coincident"]
["ED_MDU541_08919",null,null,null,null,"Coincident"]
["ED_MDU541_08920",null,null,"Raw Adjusted MD","MW","Non-Coincident"]
["ED_MDU541_08921",null,null,null,null,"Coincident"]
["ED_MDU541_08922",null,null,"Raw Adjusted MD","MVA","Non-Coincident"]
["ED_MDU541_08923",null,null,null,null,"Coincident"]
["ED_MDU541_08924",null,null,"Date MD occurred",null,"Non-Coincident"]
["ED_MDU541_08925",null,null,null,null,"Coincident"]
["ED_MDU541_08926",null,null,"Half hour time period MD occurred",null,"Non-Coincident"]
["ED_MDU541_08927",null,null,null,null,"Coincident"]
["ED_MDU541_08928",null,null,"Winter/Summer Peaking",null,"Non-Coincident"]
["ED_MDU541_08929",null,null,null,null,"Coincident"]
["ED_MDU541_08930",null,null,"Adjustments - Embedded generation","MW","Non-Coincident"]
["ED_MDU541_08931",null,null,null,null,"Coincident"]
["ED_MDU541_08932",null,null,"Weather Corrected MD 10% POE","MW","Non-Coincident"]
["ED_MDU541_08933",null,null,null,null,"Coincident"]
["ED_MDU541_08934",null,null,"Weather Corrected MD 10% POE","MVA","Non-Coincident"]
["ED_MDU541_08935",null,null,null,null,"Coincident"]
["ED_MDU541_08936",null,null,"Weather Corrected MD 50% POE","MW","Non-Coincident"]
["ED_MDU541_08937",null,null,null,null,"Coincident"]
["ED_MDU541_08938",null,null,"Weather Corrected MD 50% POE","MVA","Non-Coincident"]
["ED_MDU541_08939",null,null,null,null,"Coincident"]
["ED_MDU541_08940",null,"<Enter substation name>","Substation Rating","MVA","Non-Coincident"]
["ED_MDU541_08941",null,null,null,null,"Coincident"]
["ED_MDU541_08942",null,null,"Raw Adjusted MD","MW","Non-Coincident"]
["ED_MDU541_08943",null,null,null,null,"Coincident"]
["ED_MDU541_08944",null,null,"Raw Adjusted MD","MVA","Non-Coincident"]
["ED_MDU541_08945",null,null,null,null,"Coincident"]
["ED_MDU541_08946",null,null,"Date MD occurred",null,"Non-Coincident"]
["ED_MDU541_08947",null,null,null,null,"Coincident"]
["ED_MDU541_08948",null,null,"Half hour time period MD occurred",null,"Non-Coincident"]
["ED_MDU541_08949",null,null,null,null,"Coincident"]
["ED_MDU541_08950",null,null,"Winter/Summer Peaking",null,"Non-Coincident"]
["ED_MDU541_08951",null,null,null,null,"Coincident"]
["ED_MDU541_08952",null,null,"Adjustments - Embedded generation","MW","Non-Coincident"]
["ED_MDU541_08953",null,null,null,null,"Coincident"]
["ED_MDU541_08954",null,null,"Weather Corrected MD 10% POE","MW","Non-Coincident"]
["ED_MDU541_08955",null,null,null,null,"Coincident"]
["ED_MDU541_08956",null,null,"Weather Corrected MD 10% POE","MVA","Non-Coincident"]
["ED_MDU541_08957",null,null,null,null,"Coincident"]
["ED_MDU541_08958",null,null,"Weather Corrected MD 50% POE","MW","Non-Coincident"]
["ED_MDU541_08959",null,null,null,null,"Coincident"]
["ED_MDU541_08960",null,null,"Weather Corrected MD 50% POE","MVA","Non-Coincident"]
["ED_MDU541_08961",null,null,null,null,"Coincident"]
["ED_MDU541_08962",null,"<Enter substation name>","Substation Rating","MVA","Non-Coincident"]
["ED_MDU541_08963",null,null,null,null,"Coincident"]
["ED_MDU541_08964",null,null,"Raw Adjusted MD","MW","Non-Coincident"]
["ED_MDU541_08965",null,null,null,null,"Coincident"]
["ED_MDU541_08966",null,null,"Raw Adjusted MD","MVA","Non-Coincident"]
["ED_MDU541_08967",null,null,null,null,"Coincident"]
["ED_MDU541_08968",null,null,"Date MD occurred",null,"Non-Coincident"]
["ED_MDU541_08969",null,null,null,null,"Coincident"]
["ED_MDU541_08970",null,null,"Half hour time period MD occurred",null,"Non-Coincident"]
["ED_MDU541_08971",null,null,null,null,"Coincident"]
["ED_MDU541_08972",null,null,"Winter/Summer Peaking",null,"Non-Coincident"]
["ED_MDU541_08973",null,null,null,null,"Coincident"]
["ED_MDU541_08974",null,null,"Adjustments - Embedded generation","MW","Non-Coincident"]
["ED_MDU541_08975",null,null,null,null,"Coincident"]
["ED_MDU541_08976",null,null,"Weather Corrected MD 10% POE","MW","Non-Coincident"]
["ED_MDU541_08977",null,null,null,null,"Coincident"]
["ED_MDU541_08978",null,null,"Weather Corrected MD 10% POE","MVA","Non-Coincident"]
["ED_MDU541_08979",null,null,null,null,"Coincident"]
["ED_MDU541_08980",null,null,"Weather Corrected MD 50% POE","MW","Non-Coincident"]
["ED_MDU541_08981",null,null,null,null,"Coincident"]
["ED_MDU541_08982",null,null,"Weather Corrected MD 50% POE","MVA","Non-Coincident"]
["ED_MDU541_08983",null,null,null,null,"Coincident"]
["ED_MDU541_08984",null,"<Enter substation name>","Substation Rating","MVA","Non-Coincident"]
["ED_MDU541_08985",null,null,null,null,"Coincident"]
["ED_MDU541_08986",null,null,"Raw Adjusted MD","MW","Non-Coincident"]
["ED_MDU541_08987",null,null,null,null,"Coincident"]
["ED_MDU541_08988",null,null,"Raw Adjusted MD","MVA","Non-Coincident"]
["ED_MDU541_08989",null,null,null,null,"Coincident"]
["ED_MDU541_08990",null,null,"Date MD occurred",null,"Non-Coincident"]
["ED_MDU541_08991",null,null,null,null,"Coincident"]
["ED_MDU541_08992",null,null,"Half hour time period MD occurred",null,"Non-Coincident"]
["ED_MDU541_08993",null,null,null,null,"Coincident"]
["ED_MDU541_08994",null,null,"Winter/Summer Peaking",null,"Non-Coincident"]
["ED_MDU541_08995",null,null,null,null,"Coincident"]
["ED_MDU541_08996",null,null,"Adjustments - Embedded generation","MW","Non-Coincident"]
["ED_MDU541_08997",null,null,null,null,"Coincident"]
["ED_MDU541_08998",null,null,"Weather Corrected MD 10% POE","MW","Non-Coincident"]
["ED_MDU541_08999",null,null,null,null,"Coincident"]
["ED_MDU541_09000",null,null,"Weather Corrected MD 10% POE","MVA","Non-Coincident"]
["ED_MDU541_09001",null,null,null,null,"Coincident"]
["ED_MDU541_09002",null,null,"Weather Corrected MD 50% POE","MW","Non-Coincident"]
["ED_MDU541_09003",null,null,null,null,"Coincident"]
["ED_MDU541_09004",null,null,"Weather Corrected MD 50% POE","MVA","Non-Coincident"]
["ED_MDU541_09005",null,null,null,null,"Coincident"]
["ED_MDU541_09006",null,"<Enter substation name>","Substation Rating","MVA","Non-Coincident"]
["ED_MDU541_09007",null,null,null,null,"Coincident"]
["ED_MDU541_09008",null,null,"Raw Adjusted MD","MW","Non-Coincident"]
["ED_MDU541_09009",null,null,null,null,"Coincident"]
["ED_MDU541_09010",null,null,"Raw Adjusted MD","MVA","Non-Coincident"]
["ED_MDU541_09011",null,null,null,null,"Coincident"]
["ED_MDU541_09012",null,null,"Date MD occurred",null,"Non-Coincident"]
["ED_MDU541_09013",null,null,null,null,"Coincident"]
["ED_MDU541_09014",null,null,"Half hour time period MD occurred",null,"Non-Coincident"]
["ED_MDU541_09015",null,null,null,null,"Coincident"]
["ED_MDU541_09016",null,null,"Winter/Summer Peaking",null,"Non-Coincident"]
["ED_MDU541_09017",null,null,null,null,"Coincident"]
["ED_MDU541_09018",null,null,"Adjustments - Embedded generation","MW","Non-Coincident"]
["ED_MDU541_09019",null,null,null,null,"Coincident"]
["ED_MDU541_09020",null,null,"Weather Corrected MD 10% POE","MW","Non-Coincident"]
["ED_MDU541_09021",null,null,null,null,"Coincident"]
["ED_MDU541_09022",null,null,"Weather Corrected MD 10% POE","MVA","Non-Coincident"]
["ED_MDU541_09023",null,null,null,null,"Coincident"]
["ED_MDU541_09024",null,null,"Weather Corrected MD 50% POE","MW","Non-Coincident"]
["ED_MDU541_09025",null,null,null,null,"Coincident"]
["ED_MDU541_09026",null,null,"Weather Corrected MD 50% POE","MVA","Non-Coincident"]
["ED_MDU541_09027",null,null,null,null,"Coincident"]
["ED_MDU541_09028",null,"<Enter substation name>","Substation Rating","MVA","Non-Coincident"]
["ED_MDU541_09029",null,null,null,null,"Coincident"]
["ED_MDU541_09030",null,null,"Raw Adjusted MD","MW","Non-Coincident"]
["ED_MDU541_09031",null,null,null,null,"Coincident"]
["ED_MDU541_09032",null,null,"Raw Adjusted MD","MVA","Non-Coincident"]
["ED_MDU541_09033",null,null,null,null,"Coincident"]
["ED_MDU541_09034",null,null,"Date MD occurred",null,"Non-Coincident"]
["ED_MDU541_09035",null,null,null,null,"Coincident"]
["ED_MDU541_09036",null,null,"Half hour time period MD occurred",null,"Non-Coincident"]
["ED_MDU541_09037",null,null,null,null,"Coincident"]
["ED_MDU541_09038",null,null,"Winter/Summer Peaking",null,"Non-Coincident"]
["ED_MDU541_09039",null,null,null,null,"Coincident"]
["ED_MDU541_09040",null,null,"Adjustments - Embedded generation","MW","Non-Coincident"]
["ED_MDU541_09041",null,null,null,null,"Coincident"]
["ED_MDU541_09042",null,null,"Weather Corrected MD 10% POE","MW","Non-Coincident"]
["ED_MDU541_09043",null,null,null,null,"Coincident"]
["ED_MDU541_09044",null,null,"Weather Corrected MD 10% POE","MVA","Non-Coincident"]
["ED_MDU541_09045",null,null,null,null,"Coincident"]
["ED_MDU541_09046",null,null,"Weather Corrected MD 50% POE","MW","Non-Coincident"]
["ED_MDU541_09047",null,null,null,null,"Coincident"]
["ED_MDU541_09048",null,null,"Weather Corrected MD 50% POE","MVA","Non-Coincident"]
["ED_MDU541_09049",null,null,null,null,"Coincident"]
["ED_MDU541_09050",null,"<Enter substation name>","Substation Rating","MVA","Non-Coincident"]
["ED_MDU541_09051",null,null,null,null,"Coincident"]
["ED_MDU541_09052",null,null,"Raw Adjusted MD","MW","Non-Coincident"]
["ED_MDU541_09053",null,null,null,null,"Coincident"]
["ED_MDU541_09054",null,null,"Raw Adjusted MD","MVA","Non-Coincident"]
["ED_MDU541_09055",null,null,null,null,"Coincident"]
["ED_MDU541_09056",null,null,"Date MD occurred",null,"Non-Coincident"]
["ED_MDU541_09057",null,null,null,null,"Coincident"]
["ED_MDU541_09058",null,null,"Half hour time period MD occurred",null,"Non-Coincident"]
["ED_MDU541_09059",null,null,null,null,"Coincident"]
["ED_MDU541_09060",null,null,"Winter/Summer Peaking",null,"Non-Coincident"]
["ED_MDU541_09061",null,null,null,null,"Coincident"]
["ED_MDU541_09062",null,null,"Adjustments - Embedded generation","MW","Non-Coincident"]
["ED_MDU541_09063",null,null,null,null,"Coincident"]
["ED_MDU541_09064",null,null,"Weather Corrected MD 10% POE","MW","Non-Coincident"]
["ED_MDU541_09065",null,null,null,null,"Coincident"]
["ED_MDU541_09066",null,null,"Weather Corrected MD 10% POE","MVA","Non-Coincident"]
["ED_MDU541_09067",null,null,null,null,"Coincident"]
["ED_MDU541_09068",null,null,"Weather Corrected MD 50% POE","MW","Non-Coincident"]
["ED_MDU541_09069",null,null,null,null,"Coincident"]
["ED_MDU541_09070",null,null,"Weather Corrected MD 50% POE","MVA","Non-Coincident"]
["ED_MDU541_09071",null,null,null,null,"Coincident"]
["ED_MDU541_09072",null,"<Enter substation name>","Substation Rating","MVA","Non-Coincident"]
["ED_MDU541_09073",null,null,null,null,"Coincident"]
["ED_MDU541_09074",null,null,"Raw Adjusted MD","MW","Non-Coincident"]
["ED_MDU541_09075",null,null,null,null,"Coincident"]
["ED_MDU541_09076",null,null,"Raw Adjusted MD","MVA","Non-Coincident"]
["ED_MDU541_09077",null,null,null,null,"Coincident"]
["ED_MDU541_09078",null,null,"Date MD occurred",null,"Non-Coincident"]
["ED_MDU541_09079",null,null,null,null,"Coincident"]
["ED_MDU541_09080",null,null,"Half hour time period MD occurred",null,"Non-Coincident"]
["ED_MDU541_09081",null,null,null,null,"Coincident"]
["ED_MDU541_09082",null,null,"Winter/Summer Peaking",null,"Non-Coincident"]
["ED_MDU541_09083",null,null,null,null,"Coincident"]
["ED_MDU541_09084",null,null,"Adjustments - Embedded generation","MW","Non-Coincident"]
["ED_MDU541_09085",null,null,null,null,"Coincident"]
["ED_MDU541_09086",null,null,"Weather Corrected MD 10% POE","MW","Non-Coincident"]
["ED_MDU541_09087",null,null,null,null,"Coincident"]
["ED_MDU541_09088",null,null,"Weather Corrected MD 10% POE","MVA","Non-Coincident"]
["ED_MDU541_09089",null,null,null,null,"Coincident"]
["ED_MDU541_09090",null,null,"Weather Corrected MD 50% POE","MW","Non-Coincident"]
["ED_MDU541_09091",null,null,null,null,"Coincident"]
["ED_MDU541_09092",null,null,"Weather Corrected MD 50% POE","MVA","Non-Coincident"]
["ED_MDU541_09093",null,null,null,null,"Coincident"]
["ED_MDU541_09094",null,"<Enter substation name>","Substation Rating","MVA","Non-Coincident"]
["ED_MDU541_09095",null,null,null,null,"Coincident"]
["ED_MDU541_09096",null,null,"Raw Adjusted MD","MW","Non-Coincident"]
["ED_MDU541_09097",null,null,null,null,"Coincident"]
["ED_MDU541_09098",null,null,"Raw Adjusted MD","MVA","Non-Coincident"]
["ED_MDU541_09099",null,null,null,null,"Coincident"]
["ED_MDU541_09100",null,null,"Date MD occurred",null,"Non-Coincident"]
["ED_MDU541_09101",null,null,null,null,"Coincident"]
["ED_MDU541_09102",null,null,"Half hour time period MD occurred",null,"Non-Coincident"]
["ED_MDU541_09103",null,null,null,null,"Coincident"]
["ED_MDU541_09104",null,null,"Winter/Summer Peaking",null,"Non-Coincident"]
["ED_MDU541_09105",null,null,null,null,"Coincident"]
["ED_MDU541_09106",null,null,"Adjustments - Embedded generation","MW","Non-Coincident"]
["ED_MDU541_09107",null,null,null,null,"Coincident"]
["ED_MDU541_09108",null,null,"Weather Corrected MD 10% POE","MW","Non-Coincident"]
["ED_MDU541_09109",null,null,null,null,"Coincident"]
["ED_MDU541_09110",null,null,"Weather Corrected MD 10% POE","MVA","Non-Coincident"]
["ED_MDU541_09111",null,null,null,null,"Coincident"]
["ED_MDU541_09112",null,null,"Weather Corrected MD 50% POE","MW","Non-Coincident"]
["ED_MDU541_09113",null,null,null,null,"Coincident"]
["ED_MDU541_09114",null,null,"Weather Corrected MD 50% POE","MVA","Non-Coincident"]
["ED_MDU541_09115",null,null,null,null,"Coincident"]
["ED_MDU541_09116",null,"<Enter substation name>","Substation Rating","MVA","Non-Coincident"]
["ED_MDU541_09117",null,null,null,null,"Coincident"]
["ED_MDU541_09118",null,null,"Raw Adjusted MD","MW","Non-Coincident"]
["ED_MDU541_09119",null,null,null,null,"Coincident"]
["ED_MDU541_09120",null,null,"Raw Adjusted MD","MVA","Non-Coincident"]
["ED_MDU541_09121",null,null,null,null,"Coincident"]
["ED_MDU541_09122",null,null,"Date MD occurred",null,"Non-Coincident"]
["ED_MDU541_09123",null,null,null,null,"Coincident"]
["ED_MDU541_09124",null,null,"Half hour time period MD occurred",null,"Non-Coincident"]
["ED_MDU541_09125",null,null,null,null,"Coincident"]
["ED_MDU541_09126",null,null,"Winter/Summer Peaking",null,"Non-Coincident"]
["ED_MDU541_09127",null,null,null,null,"Coincident"]
["ED_MDU541_09128",null,null,"Adjustments - Embedded generation","MW","Non-Coincident"]
["ED_MDU541_09129",null,null,null,null,"Coincident"]
["ED_MDU541_09130",null,null,"Weather Corrected MD 10% POE","MW","Non-Coincident"]
["ED_MDU541_09131",null,null,null,null,"Coincident"]
["ED_MDU541_09132",null,null,"Weather Corrected MD 10% POE","MVA","Non-Coincident"]
["ED_MDU541_09133",null,null,null,null,"Coincident"]
["ED_MDU541_09134",null,null,"Weather Corrected MD 50% POE","MW","Non-Coincident"]
["ED_MDU541_09135",null,null,null,null,"Coincident"]
["ED_MDU541_09136",null,null,"Weather Corrected MD 50% POE","MVA","Non-Coincident"]
["ED_MDU541_09137",null,null,null,null,"Coincident"]
["ED_MDU541_09138",null,"<Enter substation name>","Substation Rating","MVA","Non-Coincident"]
["ED_MDU541_09139",null,null,null,null,"Coincident"]
["ED_MDU541_09140",null,null,"Raw Adjusted MD","MW","Non-Coincident"]
["ED_MDU541_09141",null,null,null,null,"Coincident"]
["ED_MDU541_09142",null,null,"Raw Adjusted MD","MVA","Non-Coincident"]
["ED_MDU541_09143",null,null,null,null,"Coincident"]
["ED_MDU541_09144",null,null,"Date MD occurred",null,"Non-Coincident"]
["ED_MDU541_09145",null,null,null,null,"Coincident"]
["ED_MDU541_09146",null,null,"Half hour time period MD occurred",null,"Non-Coincident"]
["ED_MDU541_09147",null,null,null,null,"Coincident"]
["ED_MDU541_09148",null,null,"Winter/Summer Peaking",null,"Non-Coincident"]
["ED_MDU541_09149",null,null,null,null,"Coincident"]
["ED_MDU541_09150",null,null,"Adjustments - Embedded generation","MW","Non-Coincident"]
["ED_MDU541_09151",null,null,null,null,"Coincident"]
["ED_MDU541_09152",null,null,"Weather Corrected MD 10% POE","MW","Non-Coincident"]
["ED_MDU541_09153",null,null,null,null,"Coincident"]
["ED_MDU541_09154",null,null,"Weather Corrected MD 10% POE","MVA","Non-Coincident"]
["ED_MDU541_09155",null,null,null,null,"Coincident"]
["ED_MDU541_09156",null,null,"Weather Corrected MD 50% POE","MW","Non-Coincident"]
["ED_MDU541_09157",null,null,null,null,"Coincident"]
["ED_MDU541_09158",null,null,"Weather Corrected MD 50% POE","MVA","Non-Coincident"]
["ED_MDU541_09159",null,null,null,null,"Coincident"]
["ED_MDU541_09160",null,"<Enter substation name>","Substation Rating","MVA","Non-Coincident"]
["ED_MDU541_09161",null,null,null,null,"Coincident"]
["ED_MDU541_09162",null,null,"Raw Adjusted MD","MW","Non-Coincident"]
["ED_MDU541_09163",null,null,null,null,"Coincident"]
["ED_MDU541_09164",null,null,"Raw Adjusted MD","MVA","Non-Coincident"]
["ED_MDU541_09165",null,null,null,null,"Coincident"]
["ED_MDU541_09166",null,null,"Date MD occurred",null,"Non-Coincident"]
["ED_MDU541_09167",null,null,null,null,"Coincident"]
["ED_MDU541_09168",null,null,"Half hour time period MD occurred",null,"Non-Coincident"]
["ED_MDU541_09169",null,null,null,null,"Coincident"]
["ED_MDU541_09170",null,null,"Winter/Summer Peaking",null,"Non-Coincident"]
["ED_MDU541_09171",null,null,null,null,"Coincident"]
["ED_MDU541_09172",null,null,"Adjustments - Embedded generation","MW","Non-Coincident"]
["ED_MDU541_09173",null,null,null,null,"Coincident"]
["ED_MDU541_09174",null,null,"Weather Corrected MD 10% POE","MW","Non-Coincident"]
["ED_MDU541_09175",null,null,null,null,"Coincident"]
["ED_MDU541_09176",null,null,"Weather Corrected MD 10% POE","MVA","Non-Coincident"]
["ED_MDU541_09177",null,null,null,null,"Coincident"]
["ED_MDU541_09178",null,null,"Weather Corrected MD 50% POE","MW","Non-Coincident"]
["ED_MDU541_09179",null,null,null,null,"Coincident"]
["ED_MDU541_09180",null,null,"Weather Corrected MD 50% POE","MVA","Non-Coincident"]
["ED_MDU541_09181",null,null,null,null,"Coincident"]
["ED_MDU541_09182",null,"<Enter substation name>","Substation Rating","MVA","Non-Coincident"]
["ED_MDU541_09183",null,null,null,null,"Coincident"]
["ED_MDU541_09184",null,null,"Raw Adjusted MD","MW","Non-Coincident"]
["ED_MDU541_09185",null,null,null,null,"Coincident"]
["ED_MDU541_09186",null,null,"Raw Adjusted MD","MVA","Non-Coincident"]
["ED_MDU541_09187",null,null,null,null,"Coincident"]
["ED_MDU541_09188",null,null,"Date MD occurred",null,"Non-Coincident"]
["ED_MDU541_09189",null,null,null,null,"Coincident"]
["ED_MDU541_09190",null,null,"Half hour time period MD occurred",null,"Non-Coincident"]
["ED_MDU541_09191",null,null,null,null,"Coincident"]
["ED_MDU541_09192",null,null,"Winter/Summer Peaking",null,"Non-Coincident"]
["ED_MDU541_09193",null,null,null,null,"Coincident"]
["ED_MDU541_09194",null,null,"Adjustments - Embedded generation","MW","Non-Coincident"]
["ED_MDU541_09195",null,null,null,null,"Coincident"]
["ED_MDU541_09196",null,null,"Weather Corrected MD 10% POE","MW","Non-Coincident"]
["ED_MDU541_09197",null,null,null,null,"Coincident"]
["ED_MDU541_09198",null,null,"Weather Corrected MD 10% POE","MVA","Non-Coincident"]
["ED_MDU541_09199",null,null,null,null,"Coincident"]
["ED_MDU541_09200",null,null,"Weather Corrected MD 50% POE","MW","Non-Coincident"]
["ED_MDU541_09201",null,null,null,null,"Coincident"]
["ED_MDU541_09202",null,null,"Weather Corrected MD 50% POE","MVA","Non-Coincident"]
["ED_MDU541_09203",null,null,null,null,"Coincident"]
["ED_MDU541_09204",null,"<Enter substation name>","Substation Rating","MVA","Non-Coincident"]
["ED_MDU541_09205",null,null,null,null,"Coincident"]
["ED_MDU541_09206",null,null,"Raw Adjusted MD","MW","Non-Coincident"]
["ED_MDU541_09207",null,null,null,null,"Coincident"]
["ED_MDU541_09208",null,null,"Raw Adjusted MD","MVA","Non-Coincident"]
["ED_MDU541_09209",null,null,null,null,"Coincident"]
["ED_MDU541_09210",null,null,"Date MD occurred",null,"Non-Coincident"]
["ED_MDU541_09211",null,null,null,null,"Coincident"]
["ED_MDU541_09212",null,null,"Half hour time period MD occurred",null,"Non-Coincident"]
["ED_MDU541_09213",null,null,null,null,"Coincident"]
["ED_MDU541_09214",null,null,"Winter/Summer Peaking",null,"Non-Coincident"]
["ED_MDU541_09215",null,null,null,null,"Coincident"]
["ED_MDU541_09216",null,null,"Adjustments - Embedded generation","MW","Non-Coincident"]
["ED_MDU541_09217",null,null,null,null,"Coincident"]
["ED_MDU541_09218",null,null,"Weather Corrected MD 10% POE","MW","Non-Coincident"]
["ED_MDU541_09219",null,null,null,null,"Coincident"]
["ED_MDU541_09220",null,null,"Weather Corrected MD 10% POE","MVA","Non-Coincident"]
["ED_MDU541_09221",null,null,null,null,"Coincident"]
["ED_MDU541_09222",null,null,"Weather Corrected MD 50% POE","MW","Non-Coincident"]
["ED_MDU541_09223",null,null,null,null,"Coincident"]
["ED_MDU541_09224",null,null,"Weather Corrected MD 50% POE","MVA","Non-Coincident"]
["ED_MDU541_09225",null,null,null,null,"Coincident"]
["ED_MDU541_09226",null,"<Enter substation name>","Substation Rating","MVA","Non-Coincident"]
["ED_MDU541_09227",null,null,null,null,"Coincident"]
["ED_MDU541_09228",null,null,"Raw Adjusted MD","MW","Non-Coincident"]
["ED_MDU541_09229",null,null,null,null,"Coincident"]
["ED_MDU541_09230",null,null,"Raw Adjusted MD","MVA","Non-Coincident"]
["ED_MDU541_09231",null,null,null,null,"Coincident"]
["ED_MDU541_09232",null,null,"Date MD occurred",null,"Non-Coincident"]
["ED_MDU541_09233",null,null,null,null,"Coincident"]
["ED_MDU541_09234",null,null,"Half hour time period MD occurred",null,"Non-Coincident"]
["ED_MDU541_09235",null,null,null,null,"Coincident"]
["ED_MDU541_09236",null,null,"Winter/Summer Peaking",null,"Non-Coincident"]
["ED_MDU541_09237",null,null,null,null,"Coincident"]
["ED_MDU541_09238",null,null,"Adjustments - Embedded generation","MW","Non-Coincident"]
["ED_MDU541_09239",null,null,null,null,"Coincident"]
["ED_MDU541_09240",null,null,"Weather Corrected MD 10% POE","MW","Non-Coincident"]
["ED_MDU541_09241",null,null,null,null,"Coincident"]
["ED_MDU541_09242",null,null,"Weather Corrected MD 10% POE","MVA","Non-Coincident"]
["ED_MDU541_09243",null,null,null,null,"Coincident"]
["ED_MDU541_09244",null,null,"Weather Corrected MD 50% POE","MW","Non-Coincident"]
["ED_MDU541_09245",null,null,null,null,"Coincident"]
["ED_MDU541_09246",null,null,"Weather Corrected MD 50% POE","MVA","Non-Coincident"]
["ED_MDU541_09247",null,null,null,null,"Coincident"]
["ED_MDU541_09248",null,"<Enter substation name>","Substation Rating","MVA","Non-Coincident"]
["ED_MDU541_09249",null,null,null,null,"Coincident"]
["ED_MDU541_09250",null,null,"Raw Adjusted MD","MW","Non-Coincident"]
["ED_MDU541_09251",null,null,null,null,"Coincident"]
["ED_MDU541_09252",null,null,"Raw Adjusted MD","MVA","Non-Coincident"]
["ED_MDU541_09253",null,null,null,null,"Coincident"]
["ED_MDU541_09254",null,null,"Date MD occurred",null,"Non-Coincident"]
["ED_MDU541_09255",null,null,null,null,"Coincident"]
["ED_MDU541_09256",null,null,"Half hour time period MD occurred",null,"Non-Coincident"]
["ED_MDU541_09257",null,null,null,null,"Coincident"]
["ED_MDU541_09258",null,null,"Winter/Summer Peaking",null,"Non-Coincident"]
["ED_MDU541_09259",null,null,null,null,"Coincident"]
["ED_MDU541_09260",null,null,"Adjustments - Embedded generation","MW","Non-Coincident"]
["ED_MDU541_09261",null,null,null,null,"Coincident"]
["ED_MDU541_09262",null,null,"Weather Corrected MD 10% POE","MW","Non-Coincident"]
["ED_MDU541_09263",null,null,null,null,"Coincident"]
["ED_MDU541_09264",null,null,"Weather Corrected MD 10% POE","MVA","Non-Coincident"]
["ED_MDU541_09265",null,null,null,null,"Coincident"]
["ED_MDU541_09266",null,null,"Weather Corrected MD 50% POE","MW","Non-Coincident"]
["ED_MDU541_09267",null,null,null,null,"Coincident"]
["ED_MDU541_09268",null,null,"Weather Corrected MD 50% POE","MVA","Non-Coincident"]
["ED_MDU541_09269",null,null,null,null,"Coincident"]
["ED_MDU541_09270",null,"<Enter substation name>","Substation Rating","MVA","Non-Coincident"]
["ED_MDU541_09271",null,null,null,null,"Coincident"]
["ED_MDU541_09272",null,null,"Raw Adjusted MD","MW","Non-Coincident"]
["ED_MDU541_09273",null,null,null,null,"Coincident"]
["ED_MDU541_09274",null,null,"Raw Adjusted MD","MVA","Non-Coincident"]
["ED_MDU541_09275",null,null,null,null,"Coincident"]
["ED_MDU541_09276",null,null,"Date MD occurred",null,"Non-Coincident"]
["ED_MDU541_09277",null,null,null,null,"Coincident"]
["ED_MDU541_09278",null,null,"Half hour time period MD occurred",null,"Non-Coincident"]
["ED_MDU541_09279",null,null,null,null,"Coincident"]
["ED_MDU541_09280",null,null,"Winter/Summer Peaking",null,"Non-Coincident"]
["ED_MDU541_09281",null,null,null,null,"Coincident"]
["ED_MDU541_09282",null,null,"Adjustments - Embedded generation","MW","Non-Coincident"]
["ED_MDU541_09283",null,null,null,null,"Coincident"]
["ED_MDU541_09284",null,null,"Weather Corrected MD 10% POE","MW","Non-Coincident"]
["ED_MDU541_09285",null,null,null,null,"Coincident"]
["ED_MDU541_09286",null,null,"Weather Corrected MD 10% POE","MVA","Non-Coincident"]
["ED_MDU541_09287",null,null,null,null,"Coincident"]
["ED_MDU541_09288",null,null,"Weather Corrected MD 50% POE","MW","Non-Coincident"]
["ED_MDU541_09289",null,null,null,null,"Coincident"]
["ED_MDU541_09290",null,null,"Weather Corrected MD 50% POE","MVA","Non-Coincident"]
["ED_MDU541_09291",null,null,null,null,"Coincident"]
["ED_MDU541_09292",null,"<Enter substation name>","Substation Rating","MVA","Non-Coincident"]
["ED_MDU541_09293",null,null,null,null,"Coincident"]
["ED_MDU541_09294",null,null,"Raw Adjusted MD","MW","Non-Coincident"]
["ED_MDU541_09295",null,null,null,null,"Coincident"]
["ED_MDU541_09296",null,null,"Raw Adjusted MD","MVA","Non-Coincident"]
["ED_MDU541_09297",null,null,null,null,"Coincident"]
["ED_MDU541_09298",null,null,"Date MD occurred",null,"Non-Coincident"]
["ED_MDU541_09299",null,null,null,null,"Coincident"]
["ED_MDU541_09300",null,null,"Half hour time period MD occurred",null,"Non-Coincident"]
["ED_MDU541_09301",null,null,null,null,"Coincident"]
["ED_MDU541_09302",null,null,"Winter/Summer Peaking",null,"Non-Coincident"]
["ED_MDU541_09303",null,null,null,null,"Coincident"]
["ED_MDU541_09304",null,null,"Adjustments - Embedded generation","MW","Non-Coincident"]
["ED_MDU541_09305",null,null,null,null,"Coincident"]
["ED_MDU541_09306",null,null,"Weather Corrected MD 10% POE","MW","Non-Coincident"]
["ED_MDU541_09307",null,null,null,null,"Coincident"]
["ED_MDU541_09308",null,null,"Weather Corrected MD 10% POE","MVA","Non-Coincident"]
["ED_MDU541_09309",null,null,null,null,"Coincident"]
["ED_MDU541_09310",null,null,"Weather Corrected MD 50% POE","MW","Non-Coincident"]
["ED_MDU541_09311",null,null,null,null,"Coincident"]
["ED_MDU541_09312",null,null,"Weather Corrected MD 50% POE","MVA","Non-Coincident"]
["ED_MDU541_09313",null,null,null,null,"Coincident"]
["ED_MDU541_09314",null,"<Enter substation name>","Substation Rating","MVA","Non-Coincident"]
["ED_MDU541_09315",null,null,null,null,"Coincident"]
["ED_MDU541_09316",null,null,"Raw Adjusted MD","MW","Non-Coincident"]
["ED_MDU541_09317",null,null,null,null,"Coincident"]
["ED_MDU541_09318",null,null,"Raw Adjusted MD","MVA","Non-Coincident"]
["ED_MDU541_09319",null,null,null,null,"Coincident"]
["ED_MDU541_09320",null,null,"Date MD occurred",null,"Non-Coincident"]
["ED_MDU541_09321",null,null,null,null,"Coincident"]
["ED_MDU541_09322",null,null,"Half hour time period MD occurred",null,"Non-Coincident"]
["ED_MDU541_09323",null,null,null,null,"Coincident"]
["ED_MDU541_09324",null,null,"Winter/Summer Peaking",null,"Non-Coincident"]
["ED_MDU541_09325",null,null,null,null,"Coincident"]
["ED_MDU541_09326",null,null,"Adjustments - Embedded generation","MW","Non-Coincident"]
["ED_MDU541_09327",null,null,null,null,"Coincident"]
["ED_MDU541_09328",null,null,"Weather Corrected MD 10% POE","MW","Non-Coincident"]
["ED_MDU541_09329",null,null,null,null,"Coincident"]
["ED_MDU541_09330",null,null,"Weather Corrected MD 10% POE","MVA","Non-Coincident"]
["ED_MDU541_09331",null,null,null,null,"Coincident"]
["ED_MDU541_09332",null,null,"Weather Corrected MD 50% POE","MW","Non-Coincident"]
["ED_MDU541_09333",null,null,null,null,"Coincident"]
["ED_MDU541_09334",null,null,"Weather Corrected MD 50% POE","MVA","Non-Coincident"]
["ED_MDU541_09335",null,null,null,null,"Coincident"]
["ED_MDU541_09336",null,"<Enter substation name>","Substation Rating","MVA","Non-Coincident"]
["ED_MDU541_09337",null,null,null,null,"Coincident"]
["ED_MDU541_09338",null,null,"Raw Adjusted MD","MW","Non-Coincident"]
["ED_MDU541_09339",null,null,null,null,"Coincident"]
["ED_MDU541_09340",null,null,"Raw Adjusted MD","MVA","Non-Coincident"]
["ED_MDU541_09341",null,null,null,null,"Coincident"]
["ED_MDU541_09342",null,null,"Date MD occurred",null,"Non-Coincident"]
["ED_MDU541_09343",null,null,null,null,"Coincident"]
["ED_MDU541_09344",null,null,"Half hour time period MD occurred",null,"Non-Coincident"]
["ED_MDU541_09345",null,null,null,null,"Coincident"]
["ED_MDU541_09346",null,null,"Winter/Summer Peaking",null,"Non-Coincident"]
["ED_MDU541_09347",null,null,null,null,"Coincident"]
["ED_MDU541_09348",null,null,"Adjustments - Embedded generation","MW","Non-Coincident"]
["ED_MDU541_09349",null,null,null,null,"Coincident"]
["ED_MDU541_09350",null,null,"Weather Corrected MD 10% POE","MW","Non-Coincident"]
["ED_MDU541_09351",null,null,null,null,"Coincident"]
["ED_MDU541_09352",null,null,"Weather Corrected MD 10% POE","MVA","Non-Coincident"]
["ED_MDU541_09353",null,null,null,null,"Coincident"]
["ED_MDU541_09354",null,null,"Weather Corrected MD 50% POE","MW","Non-Coincident"]
["ED_MDU541_09355",null,null,null,null,"Coincident"]
["ED_MDU541_09356",null,null,"Weather Corrected MD 50% POE","MVA","Non-Coincident"]
["ED_MDU541_09357",null,null,null,null,"Coincident"]
["ED_MDU541_09358",null,"<Enter substation name>","Substation Rating","MVA","Non-Coincident"]
["ED_MDU541_09359",null,null,null,null,"Coincident"]
["ED_MDU541_09360",null,null,"Raw Adjusted MD","MW","Non-Coincident"]
["ED_MDU541_09361",null,null,null,null,"Coincident"]
["ED_MDU541_09362",null,null,"Raw Adjusted MD","MVA","Non-Coincident"]
["ED_MDU541_09363",null,null,null,null,"Coincident"]
["ED_MDU541_09364",null,null,"Date MD occurred",null,"Non-Coincident"]
["ED_MDU541_09365",null,null,null,null,"Coincident"]
["ED_MDU541_09366",null,null,"Half hour time period MD occurred",null,"Non-Coincident"]
["ED_MDU541_09367",null,null,null,null,"Coincident"]
["ED_MDU541_09368",null,null,"Winter/Summer Peaking",null,"Non-Coincident"]
["ED_MDU541_09369",null,null,null,null,"Coincident"]
["ED_MDU541_09370",null,null,"Adjustments - Embedded generation","MW","Non-Coincident"]
["ED_MDU541_09371",null,null,null,null,"Coincident"]
["ED_MDU541_09372",null,null,"Weather Corrected MD 10% POE","MW","Non-Coincident"]
["ED_MDU541_09373",null,null,null,null,"Coincident"]
["ED_MDU541_09374",null,null,"Weather Corrected MD 10% POE","MVA","Non-Coincident"]
["ED_MDU541_09375",null,null,null,null,"Coincident"]
["ED_MDU541_09376",null,null,"Weather Corrected MD 50% POE","MW","Non-Coincident"]
["ED_MDU541_09377",null,null,null,null,"Coincident"]
["ED_MDU541_09378",null,null,"Weather Corrected MD 50% POE","MVA","Non-Coincident"]
["ED_MDU541_09379",null,null,null,null,"Coincident"]
["ED_MDU541_09380",null,"<Enter substation name>","Substation Rating","MVA","Non-Coincident"]
["ED_MDU541_09381",null,null,null,null,"Coincident"]
["ED_MDU541_09382",null,null,"Raw Adjusted MD","MW","Non-Coincident"]
["ED_MDU541_09383",null,null,null,null,"Coincident"]
["ED_MDU541_09384",null,null,"Raw Adjusted MD","MVA","Non-Coincident"]
["ED_MDU541_09385",null,null,null,null,"Coincident"]
["ED_MDU541_09386",null,null,"Date MD occurred",null,"Non-Coincident"]
["ED_MDU541_09387",null,null,null,null,"Coincident"]
["ED_MDU541_09388",null,null,"Half hour time period MD occurred",null,"Non-Coincident"]
["ED_MDU541_09389",null,null,null,null,"Coincident"]
["ED_MDU541_09390",null,null,"Winter/Summer Peaking",null,"Non-Coincident"]
["ED_MDU541_09391",null,null,null,null,"Coincident"]
["ED_MDU541_09392",null,null,"Adjustments - Embedded generation","MW","Non-Coincident"]
["ED_MDU541_09393",null,null,null,null,"Coincident"]
["ED_MDU541_09394",null,null,"Weather Corrected MD 10% POE","MW","Non-Coincident"]
["ED_MDU541_09395",null,null,null,null,"Coincident"]
["ED_MDU541_09396",null,null,"Weather Corrected MD 10% POE","MVA","Non-Coincident"]
["ED_MDU541_09397",null,null,null,null,"Coincident"]
["ED_MDU541_09398",null,null,"Weather Corrected MD 50% POE","MW","Non-Coincident"]
["ED_MDU541_09399",null,null,null,null,"Coincident"]
["ED_MDU541_09400",null,null,"Weather Corrected MD 50% POE","MVA","Non-Coincident"]
["ED_MDU541_09401",null,null,null,null,"Coincident"]
["ED_MDU541_09402",null,"<Enter substation name>","Substation Rating","MVA","Non-Coincident"]
["ED_MDU541_09403",null,null,null,null,"Coincident"]
["ED_MDU541_09404",null,null,"Raw Adjusted MD","MW","Non-Coincident"]
["ED_MDU541_09405",null,null,null,null,"Coincident"]
["ED_MDU541_09406",null,null,"Raw Adjusted MD","MVA","Non-Coincident"]
["ED_MDU541_09407",null,null,null,null,"Coincident"]
["ED_MDU541_09408",null,null,"Date MD occurred",null,"Non-Coincident"]
["ED_MDU541_09409",null,null,null,null,"Coincident"]
["ED_MDU541_09410",null,null,"Half hour time period MD occurred",null,"Non-Coincident"]
["ED_MDU541_09411",null,null,null,null,"Coincident"]
["ED_MDU541_09412",null,null,"Winter/Summer Peaking",null,"Non-Coincident"]
["ED_MDU541_09413",null,null,null,null,"Coincident"]
["ED_MDU541_09414",null,null,"Adjustments - Embedded generation","MW","Non-Coincident"]
["ED_MDU541_09415",null,null,null,null,"Coincident"]
["ED_MDU541_09416",null,null,"Weather Corrected MD 10% POE","MW","Non-Coincident"]
["ED_MDU541_09417",null,null,null,null,"Coincident"]
["ED_MDU541_09418",null,null,"Weather Corrected MD 10% POE","MVA","Non-Coincident"]
["ED_MDU541_09419",null,null,null,null,"Coincident"]
["ED_MDU541_09420",null,null,"Weather Corrected MD 50% POE","MW","Non-Coincident"]
["ED_MDU541_09421",null,null,null,null,"Coincident"]
["ED_MDU541_09422",null,null,"Weather Corrected MD 50% POE","MVA","Non-Coincident"]
["ED_MDU541_09423",null,null,null,null,"Coincident"]
["ED_MDU541_09424",null,"<Enter substation name>","Substation Rating","MVA","Non-Coincident"]
["ED_MDU541_09425",null,null,null,null,"Coincident"]
["ED_MDU541_09426",null,null,"Raw Adjusted MD","MW","Non-Coincident"]
["ED_MDU541_09427",null,null,null,null,"Coincident"]
["ED_MDU541_09428",null,null,"Raw Adjusted MD","MVA","Non-Coincident"]
["ED_MDU541_09429",null,null,null,null,"Coincident"]
["ED_MDU541_09430",null,null,"Date MD occurred",null,"Non-Coincident"]
["ED_MDU541_09431",null,null,null,null,"Coincident"]
["ED_MDU541_09432",null,null,"Half hour time period MD occurred",null,"Non-Coincident"]
["ED_MDU541_09433",null,null,null,null,"Coincident"]
["ED_MDU541_09434",null,null,"Winter/Summer Peaking",null,"Non-Coincident"]
["ED_MDU541_09435",null,null,null,null,"Coincident"]
["ED_MDU541_09436",null,null,"Adjustments - Embedded generation","MW","Non-Coincident"]
["ED_MDU541_09437",null,null,null,null,"Coincident"]
["ED_MDU541_09438",null,null,"Weather Corrected MD 10% POE","MW","Non-Coincident"]
["ED_MDU541_09439",null,null,null,null,"Coincident"]
["ED_MDU541_09440",null,null,"Weather Corrected MD 10% POE","MVA","Non-Coincident"]
["ED_MDU541_09441",null,null,null,null,"Coincident"]
["ED_MDU541_09442",null,null,"Weather Corrected MD 50% POE","MW","Non-Coincident"]
["ED_MDU541_09443",null,null,null,null,"Coincident"]
["ED_MDU541_09444",null,null,"Weather Corrected MD 50% POE","MVA","Non-Coincident"]
["ED_MDU541_09445",null,null,null,null,"Coincident"]
["ED_MDU541_09446",null,"<Enter substation name>","Substation Rating","MVA","Non-Coincident"]
["ED_MDU541_09447",null,null,null,null,"Coincident"]
["ED_MDU541_09448",null,null,"Raw Adjusted MD","MW","Non-Coincident"]
["ED_MDU541_09449",null,null,null,null,"Coincident"]
["ED_MDU541_09450",null,null,"Raw Adjusted MD","MVA","Non-Coincident"]
["ED_MDU541_09451",null,null,null,null,"Coincident"]
["ED_MDU541_09452",null,null,"Date MD occurred",null,"Non-Coincident"]
["ED_MDU541_09453",null,null,null,null,"Coincident"]
["ED_MDU541_09454",null,null,"Half hour time period MD occurred",null,"Non-Coincident"]
["ED_MDU541_09455",null,null,null,null,"Coincident"]
["ED_MDU541_09456",null,null,"Winter/Summer Peaking",null,"Non-Coincident"]
["ED_MDU541_09457",null,null,null,null,"Coincident"]
["ED_MDU541_09458",null,null,"Adjustments - Embedded generation","MW","Non-Coincident"]
["ED_MDU541_09459",null,null,null,null,"Coincident"]
["ED_MDU541_09460",null,null,"Weather Corrected MD 10% POE","MW","Non-Coincident"]
["ED_MDU541_09461",null,null,null,null,"Coincident"]
["ED_MDU541_09462",null,null,"Weather Corrected MD 10% POE","MVA","Non-Coincident"]
["ED_MDU541_09463",null,null,null,null,"Coincident"]
["ED_MDU541_09464",null,null,"Weather Corrected MD 50% POE","MW","Non-Coincident"]
["ED_MDU541_09465",null,null,null,null,"Coincident"]
["ED_MDU541_09466",null,null,"Weather Corrected MD 50% POE","MVA","Non-Coincident"]
["ED_MDU541_09467",null,null,null,null,"Coincident"]
["ED_MDU541_09468",null,"<Enter substation name>","Substation Rating","MVA","Non-Coincident"]
["ED_MDU541_09469",null,null,null,null,"Coincident"]
["ED_MDU541_09470",null,null,"Raw Adjusted MD","MW","Non-Coincident"]
["ED_MDU541_09471",null,null,null,null,"Coincident"]
["ED_MDU541_09472",null,null,"Raw Adjusted MD","MVA","Non-Coincident"]
["ED_MDU541_09473",null,null,null,null,"Coincident"]
["ED_MDU541_09474",null,null,"Date MD occurred",null,"Non-Coincident"]
["ED_MDU541_09475",null,null,null,null,"Coincident"]
["ED_MDU541_09476",null,null,"Half hour time period MD occurred",null,"Non-Coincident"]
["ED_MDU541_09477",null,null,null,null,"Coincident"]
["ED_MDU541_09478",null,null,"Winter/Summer Peaking",null,"Non-Coincident"]
["ED_MDU541_09479",null,null,null,null,"Coincident"]
["ED_MDU541_09480",null,null,"Adjustments - Embedded generation","MW","Non-Coincident"]
["ED_MDU541_09481",null,null,null,null,"Coincident"]
["ED_MDU541_09482",null,null,"Weather Corrected MD 10% POE","MW","Non-Coincident"]
["ED_MDU541_09483",null,null,null,null,"Coincident"]
["ED_MDU541_09484",null,null,"Weather Corrected MD 10% POE","MVA","Non-Coincident"]
["ED_MDU541_09485",null,null,null,null,"Coincident"]
["ED_MDU541_09486",null,null,"Weather Corrected MD 50% POE","MW","Non-Coincident"]
["ED_MDU541_09487",null,null,null,null,"Coincident"]
["ED_MDU541_09488",null,null,"Weather Corrected MD 50% POE","MVA","Non-Coincident"]
["ED_MDU541_09489",null,null,null,null,"Coincident"]
["ED_MDU541_09490",null,"<Enter substation name>","Substation Rating","MVA","Non-Coincident"]
["ED_MDU541_09491",null,null,null,null,"Coincident"]
["ED_MDU541_09492",null,null,"Raw Adjusted MD","MW","Non-Coincident"]
["ED_MDU541_09493",null,null,null,null,"Coincident"]
["ED_MDU541_09494",null,null,"Raw Adjusted MD","MVA","Non-Coincident"]
["ED_MDU541_09495",null,null,null,null,"Coincident"]
["ED_MDU541_09496",null,null,"Date MD occurred",null,"Non-Coincident"]
["ED_MDU541_09497",null,null,null,null,"Coincident"]
["ED_MDU541_09498",null,null,"Half hour time period MD occurred",null,"Non-Coincident"]
["ED_MDU541_09499",null,null,null,null,"Coincident"]
["ED_MDU541_09500",null,null,"Winter/Summer Peaking",null,"Non-Coincident"]
["ED_MDU541_09501",null,null,null,null,"Coincident"]
["ED_MDU541_09502",null,null,"Adjustments - Embedded generation","MW","Non-Coincident"]
["ED_MDU541_09503",null,null,null,null,"Coincident"]
["ED_MDU541_09504",null,null,"Weather Corrected MD 10% POE","MW","Non-Coincident"]
["ED_MDU541_09505",null,null,null,null,"Coincident"]
["ED_MDU541_09506",null,null,"Weather Corrected MD 10% POE","MVA","Non-Coincident"]
["ED_MDU541_09507",null,null,null,null,"Coincident"]
["ED_MDU541_09508",null,null,"Weather Corrected MD 50% POE","MW","Non-Coincident"]
["ED_MDU541_09509",null,null,null,null,"Coincident"]
["ED_MDU541_09510",null,null,"Weather Corrected MD 50% POE","MVA","Non-Coincident"]
["ED_MDU541_09511",null,null,null,null,"Coincident"]
["ED_MDU541_09512",null,"<Enter substation name>","Substation Rating","MVA","Non-Coincident"]
["ED_MDU541_09513",null,null,null,null,"Coincident"]
["ED_MDU541_09514",null,null,"Raw Adjusted MD","MW","Non-Coincident"]
["ED_MDU541_09515",null,null,null,null,"Coincident"]
["ED_MDU541_09516",null,null,"Raw Adjusted MD","MVA","Non-Coincident"]
["ED_MDU541_09517",null,null,null,null,"Coincident"]
["ED_MDU541_09518",null,null,"Date MD occurred",null,"Non-Coincident"]
["ED_MDU541_09519",null,null,null,null,"Coincident"]
["ED_MDU541_09520",null,null,"Half hour time period MD occurred",null,"Non-Coincident"]
["ED_MDU541_09521",null,null,null,null,"Coincident"]
["ED_MDU541_09522",null,null,"Winter/Summer Peaking",null,"Non-Coincident"]
["ED_MDU541_09523",null,null,null,null,"Coincident"]
["ED_MDU541_09524",null,null,"Adjustments - Embedded generation","MW","Non-Coincident"]
["ED_MDU541_09525",null,null,null,null,"Coincident"]
["ED_MDU541_09526",null,null,"Weather Corrected MD 10% POE","MW","Non-Coincident"]
["ED_MDU541_09527",null,null,null,null,"Coincident"]
["ED_MDU541_09528",null,null,"Weather Corrected MD 10% POE","MVA","Non-Coincident"]
["ED_MDU541_09529",null,null,null,null,"Coincident"]
["ED_MDU541_09530",null,null,"Weather Corrected MD 50% POE","MW","Non-Coincident"]
["ED_MDU541_09531",null,null,null,null,"Coincident"]
["ED_MDU541_09532",null,null,"Weather Corrected MD 50% POE","MVA","Non-Coincident"]
["ED_MDU541_09533",null,null,null,null,"Coincident"]
["ED_MDU541_09534",null,"<Enter substation name>","Substation Rating","MVA","Non-Coincident"]
["ED_MDU541_09535",null,null,null,null,"Coincident"]
["ED_MDU541_09536",null,null,"Raw Adjusted MD","MW","Non-Coincident"]
["ED_MDU541_09537",null,null,null,null,"Coincident"]
["ED_MDU541_09538",null,null,"Raw Adjusted MD","MVA","Non-Coincident"]
["ED_MDU541_09539",null,null,null,null,"Coincident"]
["ED_MDU541_09540",null,null,"Date MD occurred",null,"Non-Coincident"]
["ED_MDU541_09541",null,null,null,null,"Coincident"]
["ED_MDU541_09542",null,null,"Half hour time period MD occurred",null,"Non-Coincident"]
["ED_MDU541_09543",null,null,null,null,"Coincident"]
["ED_MDU541_09544",null,null,"Winter/Summer Peaking",null,"Non-Coincident"]
["ED_MDU541_09545",null,null,null,null,"Coincident"]
["ED_MDU541_09546",null,null,"Adjustments - Embedded generation","MW","Non-Coincident"]
["ED_MDU541_09547",null,null,null,null,"Coincident"]
["ED_MDU541_09548",null,null,"Weather Corrected MD 10% POE","MW","Non-Coincident"]
["ED_MDU541_09549",null,null,null,null,"Coincident"]
["ED_MDU541_09550",null,null,"Weather Corrected MD 10% POE","MVA","Non-Coincident"]
["ED_MDU541_09551",null,null,null,null,"Coincident"]
["ED_MDU541_09552",null,null,"Weather Corrected MD 50% POE","MW","Non-Coincident"]
["ED_MDU541_09553",null,null,null,null,"Coincident"]
["ED_MDU541_09554",null,null,"Weather Corrected MD 50% POE","MVA","Non-Coincident"]
["ED_MDU541_09555",null,null,null,null,"Coincident"]
["ED_MDU541_09556",null,"<Enter substation name>","Substation Rating","MVA","Non-Coincident"]
["ED_MDU541_09557",null,null,null,null,"Coincident"]
["ED_MDU541_09558",null,null,"Raw Adjusted MD","MW","Non-Coincident"]
["ED_MDU541_09559",null,null,null,null,"Coincident"]
["ED_MDU541_09560",null,null,"Raw Adjusted MD","MVA","Non-Coincident"]
["ED_MDU541_09561",null,null,null,null,"Coincident"]
["ED_MDU541_09562",null,null,"Date MD occurred",null,"Non-Coincident"]
["ED_MDU541_09563",null,null,null,null,"Coincident"]
["ED_MDU541_09564",null,null,"Half hour time period MD occurred",null,"Non-Coincident"]
["ED_MDU541_09565",null,null,null,null,"Coincident"]
["ED_MDU541_09566",null,null,"Winter/Summer Peaking",null,"Non-Coincident"]
["ED_MDU541_09567",null,null,null,null,"Coincident"]
["ED_MDU541_09568",null,null,"Adjustments - Embedded generation","MW","Non-Coincident"]
["ED_MDU541_09569",null,null,null,null,"Coincident"]
["ED_MDU541_09570",null,null,"Weather Corrected MD 10% POE","MW","Non-Coincident"]
["ED_MDU541_09571",null,null,null,null,"Coincident"]
["ED_MDU541_09572",null,null,"Weather Corrected MD 10% POE","MVA","Non-Coincident"]
["ED_MDU541_09573",null,null,null,null,"Coincident"]
["ED_MDU541_09574",null,null,"Weather Corrected MD 50% POE","MW","Non-Coincident"]
["ED_MDU541_09575",null,null,null,null,"Coincident"]
["ED_MDU541_09576",null,null,"Weather Corrected MD 50% POE","MVA","Non-Coincident"]
["ED_MDU541_09577",null,null,null,null,"Coincident"]
["ED_MDU541_09578",null,"<Enter substation name>","Substation Rating","MVA","Non-Coincident"]
["ED_MDU541_09579",null,null,null,null,"Coincident"]
["ED_MDU541_09580",null,null,"Raw Adjusted MD","MW","Non-Coincident"]
["ED_MDU541_09581",null,null,null,null,"Coincident"]
["ED_MDU541_09582",null,null,"Raw Adjusted MD","MVA","Non-Coincident"]
["ED_MDU541_09583",null,null,null,null,"Coincident"]
["ED_MDU541_09584",null,null,"Date MD occurred",null,"Non-Coincident"]
["ED_MDU541_09585",null,null,null,null,"Coincident"]
["ED_MDU541_09586",null,null,"Half hour time period MD occurred",null,"Non-Coincident"]
["ED_MDU541_09587",null,null,null,null,"Coincident"]
["ED_MDU541_09588",null,null,"Winter/Summer Peaking",null,"Non-Coincident"]
["ED_MDU541_09589",null,null,null,null,"Coincident"]
["ED_MDU541_09590",null,null,"Adjustments - Embedded generation","MW","Non-Coincident"]
["ED_MDU541_09591",null,null,null,null,"Coincident"]
["ED_MDU541_09592",null,null,"Weather Corrected MD 10% POE","MW","Non-Coincident"]
["ED_MDU541_09593",null,null,null,null,"Coincident"]
["ED_MDU541_09594",null,null,"Weather Corrected MD 10% POE","MVA","Non-Coincident"]
["ED_MDU541_09595",null,null,null,null,"Coincident"]
["ED_MDU541_09596",null,null,"Weather Corrected MD 50% POE","MW","Non-Coincident"]
["ED_MDU541_09597",null,null,null,null,"Coincident"]
["ED_MDU541_09598",null,null,"Weather Corrected MD 50% POE","MVA","Non-Coincident"]
["ED_MDU541_09599",null,null,null,null,"Coincident"]
["ED_MDU541_09600",null,"<Enter substation name>","Substation Rating","MVA","Non-Coincident"]
["ED_MDU541_09601",null,null,null,null,"Coincident"]
["ED_MDU541_09602",null,null,"Raw Adjusted MD","MW","Non-Coincident"]
["ED_MDU541_09603",null,null,null,null,"Coincident"]
["ED_MDU541_09604",null,null,"Raw Adjusted MD","MVA","Non-Coincident"]
["ED_MDU541_09605",null,null,null,null,"Coincident"]
["ED_MDU541_09606",null,null,"Date MD occurred",null,"Non-Coincident"]
["ED_MDU541_09607",null,null,null,null,"Coincident"]
["ED_MDU541_09608",null,null,"Half hour time period MD occurred",null,"Non-Coincident"]
["ED_MDU541_09609",null,null,null,null,"Coincident"]
["ED_MDU541_09610",null,null,"Winter/Summer Peaking",null,"Non-Coincident"]
["ED_MDU541_09611",null,null,null,null,"Coincident"]
["ED_MDU541_09612",null,null,"Adjustments - Embedded generation","MW","Non-Coincident"]
["ED_MDU541_09613",null,null,null,null,"Coincident"]
["ED_MDU541_09614",null,null,"Weather Corrected MD 10% POE","MW","Non-Coincident"]
["ED_MDU541_09615",null,null,null,null,"Coincident"]
["ED_MDU541_09616",null,null,"Weather Corrected MD 10% POE","MVA","Non-Coincident"]
["ED_MDU541_09617",null,null,null,null,"Coincident"]
["ED_MDU541_09618",null,null,"Weather Corrected MD 50% POE","MW","Non-Coincident"]
["ED_MDU541_09619",null,null,null,null,"Coincident"]
["ED_MDU541_09620",null,null,"Weather Corrected MD 50% POE","MVA","Non-Coincident"]
["ED_MDU541_09621",null,null,null,null,"Coincident"]
["ED_MDU541_09622",null,"<Enter substation name>","Substation Rating","MVA","Non-Coincident"]
["ED_MDU541_09623",null,null,null,null,"Coincident"]
["ED_MDU541_09624",null,null,"Raw Adjusted MD","MW","Non-Coincident"]
["ED_MDU541_09625",null,null,null,null,"Coincident"]
["ED_MDU541_09626",null,null,"Raw Adjusted MD","MVA","Non-Coincident"]
["ED_MDU541_09627",null,null,null,null,"Coincident"]
["ED_MDU541_09628",null,null,"Date MD occurred",null,"Non-Coincident"]
["ED_MDU541_09629",null,null,null,null,"Coincident"]
["ED_MDU541_09630",null,null,"Half hour time period MD occurred",null,"Non-Coincident"]
["ED_MDU541_09631",null,null,null,null,"Coincident"]
["ED_MDU541_09632",null,null,"Winter/Summer Peaking",null,"Non-Coincident"]
["ED_MDU541_09633",null,null,null,null,"Coincident"]
["ED_MDU541_09634",null,null,"Adjustments - Embedded generation","MW","Non-Coincident"]
["ED_MDU541_09635",null,null,null,null,"Coincident"]
["ED_MDU541_09636",null,null,"Weather Corrected MD 10% POE","MW","Non-Coincident"]
["ED_MDU541_09637",null,null,null,null,"Coincident"]
["ED_MDU541_09638",null,null,"Weather Corrected MD 10% POE","MVA","Non-Coincident"]
["ED_MDU541_09639",null,null,null,null,"Coincident"]
["ED_MDU541_09640",null,null,"Weather Corrected MD 50% POE","MW","Non-Coincident"]
["ED_MDU541_09641",null,null,null,null,"Coincident"]
["ED_MDU541_09642",null,null,"Weather Corrected MD 50% POE","MVA","Non-Coincident"]
["ED_MDU541_09643",null,null,null,null,"Coincident"]
["ED_MDU541_09644",null,"<Enter substation name>","Substation Rating","MVA","Non-Coincident"]
["ED_MDU541_09645",null,null,null,null,"Coincident"]
["ED_MDU541_09646",null,null,"Raw Adjusted MD","MW","Non-Coincident"]
["ED_MDU541_09647",null,null,null,null,"Coincident"]
["ED_MDU541_09648",null,null,"Raw Adjusted MD","MVA","Non-Coincident"]
["ED_MDU541_09649",null,null,null,null,"Coincident"]
["ED_MDU541_09650",null,null,"Date MD occurred",null,"Non-Coincident"]
["ED_MDU541_09651",null,null,null,null,"Coincident"]
["ED_MDU541_09652",null,null,"Half hour time period MD occurred",null,"Non-Coincident"]
["ED_MDU541_09653",null,null,null,null,"Coincident"]
["ED_MDU541_09654",null,null,"Winter/Summer Peaking",null,"Non-Coincident"]
["ED_MDU541_09655",null,null,null,null,"Coincident"]
["ED_MDU541_09656",null,null,"Adjustments - Embedded generation","MW","Non-Coincident"]
["ED_MDU541_09657",null,null,null,null,"Coincident"]
["ED_MDU541_09658",null,null,"Weather Corrected MD 10% POE","MW","Non-Coincident"]
["ED_MDU541_09659",null,null,null,null,"Coincident"]
["ED_MDU541_09660",null,null,"Weather Corrected MD 10% POE","MVA","Non-Coincident"]
["ED_MDU541_09661",null,null,null,null,"Coincident"]
["ED_MDU541_09662",null,null,"Weather Corrected MD 50% POE","MW","Non-Coincident"]
["ED_MDU541_09663",null,null,null,null,"Coincident"]
["ED_MDU541_09664",null,null,"Weather Corrected MD 50% POE","MVA","Non-Coincident"]
["ED_MDU541_09665",null,null,null,null,"Coincident"]
["ED_MDU541_09666",null,"<Enter substation name>","Substation Rating","MVA","Non-Coincident"]
["ED_MDU541_09667",null,null,null,null,"Coincident"]
["ED_MDU541_09668",null,null,"Raw Adjusted MD","MW","Non-Coincident"]
["ED_MDU541_09669",null,null,null,null,"Coincident"]
["ED_MDU541_09670",null,null,"Raw Adjusted MD","MVA","Non-Coincident"]
["ED_MDU541_09671",null,null,null,null,"Coincident"]
["ED_MDU541_09672",null,null,"Date MD occurred",null,"Non-Coincident"]
["ED_MDU541_09673",null,null,null,null,"Coincident"]
["ED_MDU541_09674",null,null,"Half hour time period MD occurred",null,"Non-Coincident"]
["ED_MDU541_09675",null,null,null,null,"Coincident"]
["ED_MDU541_09676",null,null,"Winter/Summer Peaking",null,"Non-Coincident"]
["ED_MDU541_09677",null,null,null,null,"Coincident"]
["ED_MDU541_09678",null,null,"Adjustments - Embedded generation","MW","Non-Coincident"]
["ED_MDU541_09679",null,null,null,null,"Coincident"]
["ED_MDU541_09680",null,null,"Weather Corrected MD 10% POE","MW","Non-Coincident"]
["ED_MDU541_09681",null,null,null,null,"Coincident"]
["ED_MDU541_09682",null,null,"Weather Corrected MD 10% POE","MVA","Non-Coincident"]
["ED_MDU541_09683",null,null,null,null,"Coincident"]
["ED_MDU541_09684",null,null,"Weather Corrected MD 50% POE","MW","Non-Coincident"]
["ED_MDU541_09685",null,null,null,null,"Coincident"]
["ED_MDU541_09686",null,null,"Weather Corrected MD 50% POE","MVA","Non-Coincident"]
["ED_MDU541_09687",null,null,null,null,"Coincident"]
["ED_MDU541_09688",null,"<Enter substation name>","Substation Rating","MVA","Non-Coincident"]
["ED_MDU541_09689",null,null,null,null,"Coincident"]
["ED_MDU541_09690",null,null,"Raw Adjusted MD","MW","Non-Coincident"]
["ED_MDU541_09691",null,null,null,null,"Coincident"]
["ED_MDU541_09692",null,null,"Raw Adjusted MD","MVA","Non-Coincident"]
["ED_MDU541_09693",null,null,null,null,"Coincident"]
["ED_MDU541_09694",null,null,"Date MD occurred",null,"Non-Coincident"]
["ED_MDU541_09695",null,null,null,null,"Coincident"]
["ED_MDU541_09696",null,null,"Half hour time period MD occurred",null,"Non-Coincident"]
["ED_MDU541_09697",null,null,null,null,"Coincident"]
["ED_MDU541_09698",null,null,"Winter/Summer Peaking",null,"Non-Coincident"]
["ED_MDU541_09699",null,null,null,null,"Coincident"]
["ED_MDU541_09700",null,null,"Adjustments - Embedded generation","MW","Non-Coincident"]
["ED_MDU541_09701",null,null,null,null,"Coincident"]
["ED_MDU541_09702",null,null,"Weather Corrected MD 10% POE","MW","Non-Coincident"]
["ED_MDU541_09703",null,null,null,null,"Coincident"]
["ED_MDU541_09704",null,null,"Weather Corrected MD 10% POE","MVA","Non-Coincident"]
["ED_MDU541_09705",null,null,null,null,"Coincident"]
["ED_MDU541_09706",null,null,"Weather Corrected MD 50% POE","MW","Non-Coincident"]
["ED_MDU541_09707",null,null,null,null,"Coincident"]
["ED_MDU541_09708",null,null,"Weather Corrected MD 50% POE","MVA","Non-Coincident"]
["ED_MDU541_09709",null,null,null,null,"Coincident"]
["ED_MDU541_09710",null,"<Enter substation name>","Substation Rating","MVA","Non-Coincident"]
["ED_MDU541_09711",null,null,null,null,"Coincident"]
["ED_MDU541_09712",null,null,"Raw Adjusted MD","MW","Non-Coincident"]
["ED_MDU541_09713",null,null,null,null,"Coincident"]
["ED_MDU541_09714",null,null,"Raw Adjusted MD","MVA","Non-Coincident"]
["ED_MDU541_09715",null,null,null,null,"Coincident"]
["ED_MDU541_09716",null,null,"Date MD occurred",null,"Non-Coincident"]
["ED_MDU541_09717",null,null,null,null,"Coincident"]
["ED_MDU541_09718",null,null,"Half hour time period MD occurred",null,"Non-Coincident"]
["ED_MDU541_09719",null,null,null,null,"Coincident"]
["ED_MDU541_09720",null,null,"Winter/Summer Peaking",null,"Non-Coincident"]
["ED_MDU541_09721",null,null,null,null,"Coincident"]
["ED_MDU541_09722",null,null,"Adjustments - Embedded generation","MW","Non-Coincident"]
["ED_MDU541_09723",null,null,null,null,"Coincident"]
["ED_MDU541_09724",null,null,"Weather Corrected MD 10% POE","MW","Non-Coincident"]
["ED_MDU541_09725",null,null,null,null,"Coincident"]
["ED_MDU541_09726",null,null,"Weather Corrected MD 10% POE","MVA","Non-Coincident"]
["ED_MDU541_09727",null,null,null,null,"Coincident"]
["ED_MDU541_09728",null,null,"Weather Corrected MD 50% POE","MW","Non-Coincident"]
["ED_MDU541_09729",null,null,null,null,"Coincident"]
["ED_MDU541_09730",null,null,"Weather Corrected MD 50% POE","MVA","Non-Coincident"]
["ED_MDU541_09731",null,null,null,null,"Coincident"]
["ED_MDU541_09732",null,"<Enter substation name>","Substation Rating","MVA","Non-Coincident"]
["ED_MDU541_09733",null,null,null,null,"Coincident"]
["ED_MDU541_09734",null,null,"Raw Adjusted MD","MW","Non-Coincident"]
["ED_MDU541_09735",null,null,null,null,"Coincident"]
["ED_MDU541_09736",null,null,"Raw Adjusted MD","MVA","Non-Coincident"]
["ED_MDU541_09737",null,null,null,null,"Coincident"]
["ED_MDU541_09738",null,null,"Date MD occurred",null,"Non-Coincident"]
["ED_MDU541_09739",null,null,null,null,"Coincident"]
["ED_MDU541_09740",null,null,"Half hour time period MD occurred",null,"Non-Coincident"]
["ED_MDU541_09741",null,null,null,null,"Coincident"]
["ED_MDU541_09742",null,null,"Winter/Summer Peaking",null,"Non-Coincident"]
["ED_MDU541_09743",null,null,null,null,"Coincident"]
["ED_MDU541_09744",null,null,"Adjustments - Embedded generation","MW","Non-Coincident"]
["ED_MDU541_09745",null,null,null,null,"Coincident"]
["ED_MDU541_09746",null,null,"Weather Corrected MD 10% POE","MW","Non-Coincident"]
["ED_MDU541_09747",null,null,null,null,"Coincident"]
["ED_MDU541_09748",null,null,"Weather Corrected MD 10% POE","MVA","Non-Coincident"]
["ED_MDU541_09749",null,null,null,null,"Coincident"]
["ED_MDU541_09750",null,null,"Weather Corrected MD 50% POE","MW","Non-Coincident"]
["ED_MDU541_09751",null,null,null,null,"Coincident"]
["ED_MDU541_09752",null,null,"Weather Corrected MD 50% POE","MVA","Non-Coincident"]
["ED_MDU541_09753",null,null,null,null,"Coincident"]
["ED_MDU541_09754",null,"<Enter substation name>","Substation Rating","MVA","Non-Coincident"]
["ED_MDU541_09755",null,null,null,null,"Coincident"]
["ED_MDU541_09756",null,null,"Raw Adjusted MD","MW","Non-Coincident"]
["ED_MDU541_09757",null,null,null,null,"Coincident"]
["ED_MDU541_09758",null,null,"Raw Adjusted MD","MVA","Non-Coincident"]
["ED_MDU541_09759",null,null,null,null,"Coincident"]
["ED_MDU541_09760",null,null,"Date MD occurred",null,"Non-Coincident"]
["ED_MDU541_09761",null,null,null,null,"Coincident"]
["ED_MDU541_09762",null,null,"Half hour time period MD occurred",null,"Non-Coincident"]
["ED_MDU541_09763",null,null,null,null,"Coincident"]
["ED_MDU541_09764",null,null,"Winter/Summer Peaking",null,"Non-Coincident"]
["ED_MDU541_09765",null,null,null,null,"Coincident"]
["ED_MDU541_09766",null,null,"Adjustments - Embedded generation","MW","Non-Coincident"]
["ED_MDU541_09767",null,null,null,null,"Coincident"]
["ED_MDU541_09768",null,null,"Weather Corrected MD 10% POE","MW","Non-Coincident"]
["ED_MDU541_09769",null,null,null,null,"Coincident"]
["ED_MDU541_09770",null,null,"Weather Corrected MD 10% POE","MVA","Non-Coincident"]
["ED_MDU541_09771",null,null,null,null,"Coincident"]
["ED_MDU541_09772",null,null,"Weather Corrected MD 50% POE","MW","Non-Coincident"]
["ED_MDU541_09773",null,null,null,null,"Coincident"]
["ED_MDU541_09774",null,null,"Weather Corrected MD 50% POE","MVA","Non-Coincident"]
["ED_MDU541_09775",null,null,null,null,"Coincident"]
["ED_MDU541_09776",null,"<Enter substation name>","Substation Rating","MVA","Non-Coincident"]
["ED_MDU541_09777",null,null,null,null,"Coincident"]
["ED_MDU541_09778",null,null,"Raw Adjusted MD","MW","Non-Coincident"]
["ED_MDU541_09779",null,null,null,null,"Coincident"]
["ED_MDU541_09780",null,null,"Raw Adjusted MD","MVA","Non-Coincident"]
["ED_MDU541_09781",null,null,null,null,"Coincident"]
["ED_MDU541_09782",null,null,"Date MD occurred",null,"Non-Coincident"]
["ED_MDU541_09783",null,null,null,null,"Coincident"]
["ED_MDU541_09784",null,null,"Half hour time period MD occurred",null,"Non-Coincident"]
["ED_MDU541_09785",null,null,null,null,"Coincident"]
["ED_MDU541_09786",null,null,"Winter/Summer Peaking",null,"Non-Coincident"]
["ED_MDU541_09787",null,null,null,null,"Coincident"]
["ED_MDU541_09788",null,null,"Adjustments - Embedded generation","MW","Non-Coincident"]
["ED_MDU541_09789",null,null,null,null,"Coincident"]
["ED_MDU541_09790",null,null,"Weather Corrected MD 10% POE","MW","Non-Coincident"]
["ED_MDU541_09791",null,null,null,null,"Coincident"]
["ED_MDU541_09792",null,null,"Weather Corrected MD 10% POE","MVA","Non-Coincident"]
["ED_MDU541_09793",null,null,null,null,"Coincident"]
["ED_MDU541_09794",null,null,"Weather Corrected MD 50% POE","MW","Non-Coincident"]
["ED_MDU541_09795",null,null,null,null,"Coincident"]
["ED_MDU541_09796",null,null,"Weather Corrected MD 50% POE","MVA","Non-Coincident"]
["ED_MDU541_09797",null,null,null,null,"Coincident"]
["ED_MDU541_09798",null,"<Enter substation name>","Substation Rating","MVA","Non-Coincident"]
["ED_MDU541_09799",null,null,null,null,"Coincident"]
["ED_MDU541_09800",null,null,"Raw Adjusted MD","MW","Non-Coincident"]
["ED_MDU541_09801",null,null,null,null,"Coincident"]
["ED_MDU541_09802",null,null,"Raw Adjusted MD","MVA","Non-Coincident"]
["ED_MDU541_09803",null,null,null,null,"Coincident"]
["ED_MDU541_09804",null,null,"Date MD occurred",null,"Non-Coincident"]
["ED_MDU541_09805",null,null,null,null,"Coincident"]
["ED_MDU541_09806",null,null,"Half hour time period MD occurred",null,"Non-Coincident"]
["ED_MDU541_09807",null,null,null,null,"Coincident"]
["ED_MDU541_09808",null,null,"Winter/Summer Peaking",null,"Non-Coincident"]
["ED_MDU541_09809",null,null,null,null,"Coincident"]
["ED_MDU541_09810",null,null,"Adjustments - Embedded generation","MW","Non-Coincident"]
["ED_MDU541_09811",null,null,null,null,"Coincident"]
["ED_MDU541_09812",null,null,"Weather Corrected MD 10% POE","MW","Non-Coincident"]
["ED_MDU541_09813",null,null,null,null,"Coincident"]
["ED_MDU541_09814",null,null,"Weather Corrected MD 10% POE","MVA","Non-Coincident"]
["ED_MDU541_09815",null,null,null,null,"Coincident"]
["ED_MDU541_09816",null,null,"Weather Corrected MD 50% POE","MW","Non-Coincident"]
["ED_MDU541_09817",null,null,null,null,"Coincident"]
["ED_MDU541_09818",null,null,"Weather Corrected MD 50% POE","MVA","Non-Coincident"]
["ED_MDU541_09819",null,null,null,null,"Coincident"]
["ED_MDU541_09820",null,"<Enter substation name>","Substation Rating","MVA","Non-Coincident"]
["ED_MDU541_09821",null,null,null,null,"Coincident"]
["ED_MDU541_09822",null,null,"Raw Adjusted MD","MW","Non-Coincident"]
["ED_MDU541_09823",null,null,null,null,"Coincident"]
["ED_MDU541_09824",null,null,"Raw Adjusted MD","MVA","Non-Coincident"]
["ED_MDU541_09825",null,null,null,null,"Coincident"]
["ED_MDU541_09826",null,null,"Date MD occurred",null,"Non-Coincident"]
["ED_MDU541_09827",null,null,null,null,"Coincident"]
["ED_MDU541_09828",null,null,"Half hour time period MD occurred",null,"Non-Coincident"]
["ED_MDU541_09829",null,null,null,null,"Coincident"]
["ED_MDU541_09830",null,null,"Winter/Summer Peaking",null,"Non-Coincident"]
["ED_MDU541_09831",null,null,null,null,"Coincident"]
["ED_MDU541_09832",null,null,"Adjustments - Embedded generation","MW","Non-Coincident"]
["ED_MDU541_09833",null,null,null,null,"Coincident"]
["ED_MDU541_09834",null,null,"Weather Corrected MD 10% POE","MW","Non-Coincident"]
["ED_MDU541_09835",null,null,null,null,"Coincident"]
["ED_MDU541_09836",null,null,"Weather Corrected MD 10% POE","MVA","Non-Coincident"]
["ED_MDU541_09837",null,null,null,null,"Coincident"]
["ED_MDU541_09838",null,null,"Weather Corrected MD 50% POE","MW","Non-Coincident"]
["ED_MDU541_09839",null,null,null,null,"Coincident"]
["ED_MDU541_09840",null,null,"Weather Corrected MD 50% POE","MVA","Non-Coincident"]
["ED_MDU541_09841",null,null,null,null,"Coincident"]
["ED_MDU541_09842",null,"<Enter substation name>","Substation Rating","MVA","Non-Coincident"]
["ED_MDU541_09843",null,null,null,null,"Coincident"]
["ED_MDU541_09844",null,null,"Raw Adjusted MD","MW","Non-Coincident"]
["ED_MDU541_09845",null,null,null,null,"Coincident"]
["ED_MDU541_09846",null,null,"Raw Adjusted MD","MVA","Non-Coincident"]
["ED_MDU541_09847",null,null,null,null,"Coincident"]
["ED_MDU541_09848",null,null,"Date MD occurred",null,"Non-Coincident"]
["ED_MDU541_09849",null,null,null,null,"Coincident"]
["ED_MDU541_09850",null,null,"Half hour time period MD occurred",null,"Non-Coincident"]
["ED_MDU541_09851",null,null,null,null,"Coincident"]
["ED_MDU541_09852",null,null,"Winter/Summer Peaking",null,"Non-Coincident"]
["ED_MDU541_09853",null,null,null,null,"Coincident"]
["ED_MDU541_09854",null,null,"Adjustments - Embedded generation","MW","Non-Coincident"]
["ED_MDU541_09855",null,null,null,null,"Coincident"]
["ED_MDU541_09856",null,null,"Weather Corrected MD 10% POE","MW","Non-Coincident"]
["ED_MDU541_09857",null,null,null,null,"Coincident"]
["ED_MDU541_09858",null,null,"Weather Corrected MD 10% POE","MVA","Non-Coincident"]
["ED_MDU541_09859",null,null,null,null,"Coincident"]
["ED_MDU541_09860",null,null,"Weather Corrected MD 50% POE","MW","Non-Coincident"]
["ED_MDU541_09861",null,null,null,null,"Coincident"]
["ED_MDU541_09862",null,null,"Weather Corrected MD 50% POE","MVA","Non-Coincident"]
["ED_MDU541_09863",null,null,null,null,"Coincident"]
["ED_MDU541_09864",null,"<Enter substation name>","Substation Rating","MVA","Non-Coincident"]
["ED_MDU541_09865",null,null,null,null,"Coincident"]
["ED_MDU541_09866",null,null,"Raw Adjusted MD","MW","Non-Coincident"]
["ED_MDU541_09867",null,null,null,null,"Coincident"]
["ED_MDU541_09868",null,null,"Raw Adjusted MD","MVA","Non-Coincident"]
["ED_MDU541_09869",null,null,null,null,"Coincident"]
["ED_MDU541_09870",null,null,"Date MD occurred",null,"Non-Coincident"]
["ED_MDU541_09871",null,null,null,null,"Coincident"]
["ED_MDU541_09872",null,null,"Half hour time period MD occurred",null,"Non-Coincident"]
["ED_MDU541_09873",null,null,null,null,"Coincident"]
["ED_MDU541_09874",null,null,"Winter/Summer Peaking",null,"Non-Coincident"]
["ED_MDU541_09875",null,null,null,null,"Coincident"]
["ED_MDU541_09876",null,null,"Adjustments - Embedded generation","MW","Non-Coincident"]
["ED_MDU541_09877",null,null,null,null,"Coincident"]
["ED_MDU541_09878",null,null,"Weather Corrected MD 10% POE","MW","Non-Coincident"]
["ED_MDU541_09879",null,null,null,null,"Coincident"]
["ED_MDU541_09880",null,null,"Weather Corrected MD 10% POE","MVA","Non-Coincident"]
["ED_MDU541_09881",null,null,null,null,"Coincident"]
["ED_MDU541_09882",null,null,"Weather Corrected MD 50% POE","MW","Non-Coincident"]
["ED_MDU541_09883",null,null,null,null,"Coincident"]
["ED_MDU541_09884",null,null,"Weather Corrected MD 50% POE","MVA","Non-Coincident"]
["ED_MDU541_09885",null,null,null,null,"Coincident"]
["ED_MDU541_09886",null,"<Enter substation name>","Substation Rating","MVA","Non-Coincident"]
["ED_MDU541_09887",null,null,null,null,"Coincident"]
["ED_MDU541_09888",null,null,"Raw Adjusted MD","MW","Non-Coincident"]
["ED_MDU541_09889",null,null,null,null,"Coincident"]
["ED_MDU541_09890",null,null,"Raw Adjusted MD","MVA","Non-Coincident"]
["ED_MDU541_09891",null,null,null,null,"Coincident"]
["ED_MDU541_09892",null,null,"Date MD occurred",null,"Non-Coincident"]
["ED_MDU541_09893",null,null,null,null,"Coincident"]
["ED_MDU541_09894",null,null,"Half hour time period MD occurred",null,"Non-Coincident"]
["ED_MDU541_09895",null,null,null,null,"Coincident"]
["ED_MDU541_09896",null,null,"Winter/Summer Peaking",null,"Non-Coincident"]
["ED_MDU541_09897",null,null,null,null,"Coincident"]
["ED_MDU541_09898",null,null,"Adjustments - Embedded generation","MW","Non-Coincident"]
["ED_MDU541_09899",null,null,null,null,"Coincident"]
["ED_MDU541_09900",null,null,"Weather Corrected MD 10% POE","MW","Non-Coincident"]
["ED_MDU541_09901",null,null,null,null,"Coincident"]
["ED_MDU541_09902",null,null,"Weather Corrected MD 10% POE","MVA","Non-Coincident"]
["ED_MDU541_09903",null,null,null,null,"Coincident"]
["ED_MDU541_09904",null,null,"Weather Corrected MD 50% POE","MW","Non-Coincident"]
["ED_MDU541_09905",null,null,null,null,"Coincident"]
["ED_MDU541_09906",null,null,"Weather Corrected MD 50% POE","MVA","Non-Coincident"]
["ED_MDU541_09907",null,null,null,null,"Coincident"]
["ED_MDU541_09908",null,"<Enter substation name>","Substation Rating","MVA","Non-Coincident"]
["ED_MDU541_09909",null,null,null,null,"Coincident"]
["ED_MDU541_09910",null,null,"Raw Adjusted MD","MW","Non-Coincident"]
["ED_MDU541_09911",null,null,null,null,"Coincident"]
["ED_MDU541_09912",null,null,"Raw Adjusted MD","MVA","Non-Coincident"]
["ED_MDU541_09913",null,null,null,null,"Coincident"]
["ED_MDU541_09914",null,null,"Date MD occurred",null,"Non-Coincident"]
["ED_MDU541_09915",null,null,null,null,"Coincident"]
["ED_MDU541_09916",null,null,"Half hour time period MD occurred",null,"Non-Coincident"]
["ED_MDU541_09917",null,null,null,null,"Coincident"]
["ED_MDU541_09918",null,null,"Winter/Summer Peaking",null,"Non-Coincident"]
["ED_MDU541_09919",null,null,null,null,"Coincident"]
["ED_MDU541_09920",null,null,"Adjustments - Embedded generation","MW","Non-Coincident"]
["ED_MDU541_09921",null,null,null,null,"Coincident"]
["ED_MDU541_09922",null,null,"Weather Corrected MD 10% POE","MW","Non-Coincident"]
["ED_MDU541_09923",null,null,null,null,"Coincident"]
["ED_MDU541_09924",null,null,"Weather Corrected MD 10% POE","MVA","Non-Coincident"]
["ED_MDU541_09925",null,null,null,null,"Coincident"]
["ED_MDU541_09926",null,null,"Weather Corrected MD 50% POE","MW","Non-Coincident"]
["ED_MDU541_09927",null,null,null,null,"Coincident"]
["ED_MDU541_09928",null,null,"Weather Corrected MD 50% POE","MVA","Non-Coincident"]
["ED_MDU541_09929",null,null,null,null,"Coincident"]
["ED_MDU541_09930",null,"<Enter substation name>","Substation Rating","MVA","Non-Coincident"]
["ED_MDU541_09931",null,null,null,null,"Coincident"]
["ED_MDU541_09932",null,null,"Raw Adjusted MD","MW","Non-Coincident"]
["ED_MDU541_09933",null,null,null,null,"Coincident"]
["ED_MDU541_09934",null,null,"Raw Adjusted MD","MVA","Non-Coincident"]
["ED_MDU541_09935",null,null,null,null,"Coincident"]
["ED_MDU541_09936",null,null,"Date MD occurred",null,"Non-Coincident"]
["ED_MDU541_09937",null,null,null,null,"Coincident"]
["ED_MDU541_09938",null,null,"Half hour time period MD occurred",null,"Non-Coincident"]
["ED_MDU541_09939",null,null,null,null,"Coincident"]
["ED_MDU541_09940",null,null,"Winter/Summer Peaking",null,"Non-Coincident"]
["ED_MDU541_09941",null,null,null,null,"Coincident"]
["ED_MDU541_09942",null,null,"Adjustments - Embedded generation","MW","Non-Coincident"]
["ED_MDU541_09943",null,null,null,null,"Coincident"]
["ED_MDU541_09944",null,null,"Weather Corrected MD 10% POE","MW","Non-Coincident"]
["ED_MDU541_09945",null,null,null,null,"Coincident"]
["ED_MDU541_09946",null,null,"Weather Corrected MD 10% POE","MVA","Non-Coincident"]
["ED_MDU541_09947",null,null,null,null,"Coincident"]
["ED_MDU541_09948",null,null,"Weather Corrected MD 50% POE","MW","Non-Coincident"]
["ED_MDU541_09949",null,null,null,null,"Coincident"]
["ED_MDU541_09950",null,null,"Weather Corrected MD 50% POE","MVA","Non-Coincident"]
["ED_MDU541_09951",null,null,null,null,"Coincident"]
["ED_MDU541_09952",null,"<Enter substation name>","Substation Rating","MVA","Non-Coincident"]
["ED_MDU541_09953",null,null,null,null,"Coincident"]
["ED_MDU541_09954",null,null,"Raw Adjusted MD","MW","Non-Coincident"]
["ED_MDU541_09955",null,null,null,null,"Coincident"]
["ED_MDU541_09956",null,null,"Raw Adjusted MD","MVA","Non-Coincident"]
["ED_MDU541_09957",null,null,null,null,"Coincident"]
["ED_MDU541_09958",null,null,"Date MD occurred",null,"Non-Coincident"]
["ED_MDU541_09959",null,null,null,null,"Coincident"]
["ED_MDU541_09960",null,null,"Half hour time period MD occurred",null,"Non-Coincident"]
["ED_MDU541_09961",null,null,null,null,"Coincident"]
["ED_MDU541_09962",null,null,"Winter/Summer Peaking",null,"Non-Coincident"]
["ED_MDU541_09963",null,null,null,null,"Coincident"]
["ED_MDU541_09964",null,null,"Adjustments - Embedded generation","MW","Non-Coincident"]
["ED_MDU541_09965",null,null,null,null,"Coincident"]
["ED_MDU541_09966",null,null,"Weather Corrected MD 10% POE","MW","Non-Coincident"]
["ED_MDU541_09967",null,null,null,null,"Coincident"]
["ED_MDU541_09968",null,null,"Weather Corrected MD 10% POE","MVA","Non-Coincident"]
["ED_MDU541_09969",null,null,null,null,"Coincident"]
["ED_MDU541_09970",null,null,"Weather Corrected MD 50% POE","MW","Non-Coincident"]
["ED_MDU541_09971",null,null,null,null,"Coincident"]
["ED_MDU541_09972",null,null,"Weather Corrected MD 50% POE","MVA","Non-Coincident"]
["ED_MDU541_09973",null,null,null,null,"Coincident"]
["ED_MDU541_09974",null,"<Enter substation name>","Substation Rating","MVA","Non-Coincident"]
["ED_MDU541_09975",null,null,null,null,"Coincident"]
["ED_MDU541_09976",null,null,"Raw Adjusted MD","MW","Non-Coincident"]
["ED_MDU541_09977",null,null,null,null,"Coincident"]
["ED_MDU541_09978",null,null,"Raw Adjusted MD","MVA","Non-Coincident"]
["ED_MDU541_09979",null,null,null,null,"Coincident"]
["ED_MDU541_09980",null,null,"Date MD occurred",null,"Non-Coincident"]
["ED_MDU541_09981",null,null,null,null,"Coincident"]
["ED_MDU541_09982",null,null,"Half hour time period MD occurred",null,"Non-Coincident"]
["ED_MDU541_09983",null,null,null,null,"Coincident"]
["ED_MDU541_09984",null,null,"Winter/Summer Peaking",null,"Non-Coincident"]
["ED_MDU541_09985",null,null,null,null,"Coincident"]
["ED_MDU541_09986",null,null,"Adjustments - Embedded generation","MW","Non-Coincident"]
["ED_MDU541_09987",null,null,null,null,"Coincident"]
["ED_MDU541_09988",null,null,"Weather Corrected MD 10% POE","MW","Non-Coincident"]
["ED_MDU541_09989",null,null,null,null,"Coincident"]
["ED_MDU541_09990",null,null,"Weather Corrected MD 10% POE","MVA","Non-Coincident"]
["ED_MDU541_09991",null,null,null,null,"Coincident"]
["ED_MDU541_09992",null,null,"Weather Corrected MD 50% POE","MW","Non-Coincident"]
["ED_MDU541_09993",null,null,null,null,"Coincident"]
["ED_MDU541_09994",null,null,"Weather Corrected MD 50% POE","MVA","Non-Coincident"]
["ED_MDU541_09995",null,null,null,null,"Coincident"]
["ED_MDU541_09996",null,"<Enter substation name>","Substation Rating","MVA","Non-Coincident"]
["ED_MDU541_09997",null,null,null,null,"Coincident"]
["ED_MDU541_09998",null,null,"Raw Adjusted MD","MW","Non-Coincident"]
["ED_MDU541_09999",null,null,null,null,"Coincident"]
["ED_MDU541_10000",null,null,"Raw Adjusted MD","MVA","Non-Coincident"]
["ED_MDU541_10001",null,null,null,null,"Coincident"]
["ED_MDU541_10002",null,null,"Date MD occurred",null,"Non-Coincident"]
["ED_MDU541_10003",null,null,null,null,"Coincident"]
["ED_MDU541_10004",null,null,"Half hour time period MD occurred",null,"Non-Coincident"]
["ED_MDU541_10005",null,null,null,null,"Coincident"]
["ED_MDU541_10006",null,null,"Winter/Summer Peaking",null,"Non-Coincident"]
["ED_MDU541_10007",null,null,null,null,"Coincident"]
["ED_MDU541_10008",null,null,"Adjustments - Embedded generation","MW","Non-Coincident"]
["ED_MDU541_10009",null,null,null,null,"Coincident"]
["ED_MDU541_10010",null,null,"Weather Corrected MD 10% POE","MW","Non-Coincident"]
["ED_MDU541_10011",null,null,null,null,"Coincident"]
["ED_MDU541_10012",null,null,"Weather Corrected MD 10% POE","MVA","Non-Coincident"]
["ED_MDU541_10013",null,null,null,null,"Coincident"]
["ED_MDU541_10014",null,null,"Weather Corrected MD 50% POE","MW","Non-Coincident"]
["ED_MDU541_10015",null,null,null,null,"Coincident"]
["ED_MDU541_10016",null,null,"Weather Corrected MD 50% POE","MVA","Non-Coincident"]
["ED_MDU541_10017",null,null,null,null,"Coincident"]
["ED_MDU541_10018",null,"<Enter substation name>","Substation Rating","MVA","Non-Coincident"]
["ED_MDU541_10019",null,null,null,null,"Coincident"]
["ED_MDU541_10020",null,null,"Raw Adjusted MD","MW","Non-Coincident"]
["ED_MDU541_10021",null,null,null,null,"Coincident"]
["ED_MDU541_10022",null,null,"Raw Adjusted MD","MVA","Non-Coincident"]
["ED_MDU541_10023",null,null,null,null,"Coincident"]
["ED_MDU541_10024",null,null,"Date MD occurred",null,"Non-Coincident"]
["ED_MDU541_10025",null,null,null,null,"Coincident"]
["ED_MDU541_10026",null,null,"Half hour time period MD occurred",null,"Non-Coincident"]
["ED_MDU541_10027",null,null,null,null,"Coincident"]
["ED_MDU541_10028",null,null,"Winter/Summer Peaking",null,"Non-Coincident"]
["ED_MDU541_10029",null,null,null,null,"Coincident"]
["ED_MDU541_10030",null,null,"Adjustments - Embedded generation","MW","Non-Coincident"]
["ED_MDU541_10031",null,null,null,null,"Coincident"]
["ED_MDU541_10032",null,null,"Weather Corrected MD 10% POE","MW","Non-Coincident"]
["ED_MDU541_10033",null,null,null,null,"Coincident"]
["ED_MDU541_10034",null,null,"Weather Corrected MD 10% POE","MVA","Non-Coincident"]
["ED_MDU541_10035",null,null,null,null,"Coincident"]
["ED_MDU541_10036",null,null,"Weather Corrected MD 50% POE","MW","Non-Coincident"]
["ED_MDU541_10037",null,null,null,null,"Coincident"]
["ED_MDU541_10038",null,null,"Weather Corrected MD 50% POE","MVA","Non-Coincident"]
["ED_MDU541_10039",null,null,null,null,"Coincident"]
["ED_MDU541_10040",null,"<Enter substation name>","Substation Rating","MVA","Non-Coincident"]
["ED_MDU541_10041",null,null,null,null,"Coincident"]
["ED_MDU541_10042",null,null,"Raw Adjusted MD","MW","Non-Coincident"]
["ED_MDU541_10043",null,null,null,null,"Coincident"]
["ED_MDU541_10044",null,null,"Raw Adjusted MD","MVA","Non-Coincident"]
["ED_MDU541_10045",null,null,null,null,"Coincident"]
["ED_MDU541_10046",null,null,"Date MD occurred",null,"Non-Coincident"]
["ED_MDU541_10047",null,null,null,null,"Coincident"]
["ED_MDU541_10048",null,null,"Half hour time period MD occurred",null,"Non-Coincident"]
["ED_MDU541_10049",null,null,null,null,"Coincident"]
["ED_MDU541_10050",null,null,"Winter/Summer Peaking",null,"Non-Coincident"]
["ED_MDU541_10051",null,null,null,null,"Coincident"]
["ED_MDU541_10052",null,null,"Adjustments - Embedded generation","MW","Non-Coincident"]
["ED_MDU541_10053",null,null,null,null,"Coincident"]
["ED_MDU541_10054",null,null,"Weather Corrected MD 10% POE","MW","Non-Coincident"]
["ED_MDU541_10055",null,null,null,null,"Coincident"]
["ED_MDU541_10056",null,null,"Weather Corrected MD 10% POE","MVA","Non-Coincident"]
["ED_MDU541_10057",null,null,null,null,"Coincident"]
["ED_MDU541_10058",null,null,"Weather Corrected MD 50% POE","MW","Non-Coincident"]
["ED_MDU541_10059",null,null,null,null,"Coincident"]
["ED_MDU541_10060",null,null,"Weather Corrected MD 50% POE","MVA","Non-Coincident"]
["ED_MDU541_10061",null,null,null,null,"Coincident"]
["ED_MDU541_10062",null,"<Enter substation name>","Substation Rating","MVA","Non-Coincident"]
["ED_MDU541_10063",null,null,null,null,"Coincident"]
["ED_MDU541_10064",null,null,"Raw Adjusted MD","MW","Non-Coincident"]
["ED_MDU541_10065",null,null,null,null,"Coincident"]
["ED_MDU541_10066",null,null,"Raw Adjusted MD","MVA","Non-Coincident"]
["ED_MDU541_10067",null,null,null,null,"Coincident"]
["ED_MDU541_10068",null,null,"Date MD occurred",null,"Non-Coincident"]
["ED_MDU541_10069",null,null,null,null,"Coincident"]
["ED_MDU541_10070",null,null,"Half hour time period MD occurred",null,"Non-Coincident"]
["ED_MDU541_10071",null,null,null,null,"Coincident"]
["ED_MDU541_10072",null,null,"Winter/Summer Peaking",null,"Non-Coincident"]
["ED_MDU541_10073",null,null,null,null,"Coincident"]
["ED_MDU541_10074",null,null,"Adjustments - Embedded generation","MW","Non-Coincident"]
["ED_MDU541_10075",null,null,null,null,"Coincident"]
["ED_MDU541_10076",null,null,"Weather Corrected MD 10% POE","MW","Non-Coincident"]
["ED_MDU541_10077",null,null,null,null,"Coincident"]
["ED_MDU541_10078",null,null,"Weather Corrected MD 10% POE","MVA","Non-Coincident"]
["ED_MDU541_10079",null,null,null,null,"Coincident"]
["ED_MDU541_10080",null,null,"Weather Corrected MD 50% POE","MW","Non-Coincident"]
["ED_MDU541_10081",null,null,null,null,"Coincident"]
["ED_MDU541_10082",null,null,"Weather Corrected MD 50% POE","MVA","Non-Coincident"]
["ED_MDU541_10083",null,null,null,null,"Coincident"]
["ED_MDU541_10084",null,"<Enter substation name>","Substation Rating","MVA","Non-Coincident"]
["ED_MDU541_10085",null,null,null,null,"Coincident"]
["ED_MDU541_10086",null,null,"Raw Adjusted MD","MW","Non-Coincident"]
["ED_MDU541_10087",null,null,null,null,"Coincident"]
["ED_MDU541_10088",null,null,"Raw Adjusted MD","MVA","Non-Coincident"]
["ED_MDU541_10089",null,null,null,null,"Coincident"]
["ED_MDU541_10090",null,null,"Date MD occurred",null,"Non-Coincident"]
["ED_MDU541_10091",null,null,null,null,"Coincident"]
["ED_MDU541_10092",null,null,"Half hour time period MD occurred",null,"Non-Coincident"]
["ED_MDU541_10093",null,null,null,null,"Coincident"]
["ED_MDU541_10094",null,null,"Winter/Summer Peaking",null,"Non-Coincident"]
["ED_MDU541_10095",null,null,null,null,"Coincident"]
["ED_MDU541_10096",null,null,"Adjustments - Embedded generation","MW","Non-Coincident"]
["ED_MDU541_10097",null,null,null,null,"Coincident"]
["ED_MDU541_10098",null,null,"Weather Corrected MD 10% POE","MW","Non-Coincident"]
["ED_MDU541_10099",null,null,null,null,"Coincident"]
["ED_MDU541_10100",null,null,"Weather Corrected MD 10% POE","MVA","Non-Coincident"]
["ED_MDU541_10101",null,null,null,null,"Coincident"]
["ED_MDU541_10102",null,null,"Weather Corrected MD 50% POE","MW","Non-Coincident"]
["ED_MDU541_10103",null,null,null,null,"Coincident"]
["ED_MDU541_10104",null,null,"Weather Corrected MD 50% POE","MVA","Non-Coincident"]
["ED_MDU541_10105",null,null,null,null,"Coincident"]
["ED_MDU541_10106",null,"<Enter substation name>","Substation Rating","MVA","Non-Coincident"]
["ED_MDU541_10107",null,null,null,null,"Coincident"]
["ED_MDU541_10108",null,null,"Raw Adjusted MD","MW","Non-Coincident"]
["ED_MDU541_10109",null,null,null,null,"Coincident"]
["ED_MDU541_10110",null,null,"Raw Adjusted MD","MVA","Non-Coincident"]
["ED_MDU541_10111",null,null,null,null,"Coincident"]
["ED_MDU541_10112",null,null,"Date MD occurred",null,"Non-Coincident"]
["ED_MDU541_10113",null,null,null,null,"Coincident"]
["ED_MDU541_10114",null,null,"Half hour time period MD occurred",null,"Non-Coincident"]
["ED_MDU541_10115",null,null,null,null,"Coincident"]
["ED_MDU541_10116",null,null,"Winter/Summer Peaking",null,"Non-Coincident"]
["ED_MDU541_10117",null,null,null,null,"Coincident"]
["ED_MDU541_10118",null,null,"Adjustments - Embedded generation","MW","Non-Coincident"]
["ED_MDU541_10119",null,null,null,null,"Coincident"]
["ED_MDU541_10120",null,null,"Weather Corrected MD 10% POE","MW","Non-Coincident"]
["ED_MDU541_10121",null,null,null,null,"Coincident"]
["ED_MDU541_10122",null,null,"Weather Corrected MD 10% POE","MVA","Non-Coincident"]
["ED_MDU541_10123",null,null,null,null,"Coincident"]
["ED_MDU541_10124",null,null,"Weather Corrected MD 50% POE","MW","Non-Coincident"]
["ED_MDU541_10125",null,null,null,null,"Coincident"]
["ED_MDU541_10126",null,null,"Weather Corrected MD 50% POE","MVA","Non-Coincident"]
["ED_MDU541_10127",null,null,null,null,"Coincident"]
["ED_MDU541_10128",null,"<Enter substation name>","Substation Rating","MVA","Non-Coincident"]
["ED_MDU541_10129",null,null,null,null,"Coincident"]
["ED_MDU541_10130",null,null,"Raw Adjusted MD","MW","Non-Coincident"]
["ED_MDU541_10131",null,null,null,null,"Coincident"]
["ED_MDU541_10132",null,null,"Raw Adjusted MD","MVA","Non-Coincident"]
["ED_MDU541_10133",null,null,null,null,"Coincident"]
["ED_MDU541_10134",null,null,"Date MD occurred",null,"Non-Coincident"]
["ED_MDU541_10135",null,null,null,null,"Coincident"]
["ED_MDU541_10136",null,null,"Half hour time period MD occurred",null,"Non-Coincident"]
["ED_MDU541_10137",null,null,null,null,"Coincident"]
["ED_MDU541_10138",null,null,"Winter/Summer Peaking",null,"Non-Coincident"]
["ED_MDU541_10139",null,null,null,null,"Coincident"]
["ED_MDU541_10140",null,null,"Adjustments - Embedded generation","MW","Non-Coincident"]
["ED_MDU541_10141",null,null,null,null,"Coincident"]
["ED_MDU541_10142",null,null,"Weather Corrected MD 10% POE","MW","Non-Coincident"]
["ED_MDU541_10143",null,null,null,null,"Coincident"]
["ED_MDU541_10144",null,null,"Weather Corrected MD 10% POE","MVA","Non-Coincident"]
["ED_MDU541_10145",null,null,null,null,"Coincident"]
["ED_MDU541_10146",null,null,"Weather Corrected MD 50% POE","MW","Non-Coincident"]
["ED_MDU541_10147",null,null,null,null,"Coincident"]
["ED_MDU541_10148",null,null,"Weather Corrected MD 50% POE","MVA","Non-Coincident"]
["ED_MDU541_10149",null,null,null,null,"Coincident"]
["ED_MDU541_10150",null,"<Enter substation name>","Substation Rating","MVA","Non-Coincident"]
["ED_MDU541_10151",null,null,null,null,"Coincident"]
["ED_MDU541_10152",null,null,"Raw Adjusted MD","MW","Non-Coincident"]
["ED_MDU541_10153",null,null,null,null,"Coincident"]
["ED_MDU541_10154",null,null,"Raw Adjusted MD","MVA","Non-Coincident"]
["ED_MDU541_10155",null,null,null,null,"Coincident"]
["ED_MDU541_10156",null,null,"Date MD occurred",null,"Non-Coincident"]
["ED_MDU541_10157",null,null,null,null,"Coincident"]
["ED_MDU541_10158",null,null,"Half hour time period MD occurred",null,"Non-Coincident"]
["ED_MDU541_10159",null,null,null,null,"Coincident"]
["ED_MDU541_10160",null,null,"Winter/Summer Peaking",null,"Non-Coincident"]
["ED_MDU541_10161",null,null,null,null,"Coincident"]
["ED_MDU541_10162",null,null,"Adjustments - Embedded generation","MW","Non-Coincident"]
["ED_MDU541_10163",null,null,null,null,"Coincident"]
["ED_MDU541_10164",null,null,"Weather Corrected MD 10% POE","MW","Non-Coincident"]
["ED_MDU541_10165",null,null,null,null,"Coincident"]
["ED_MDU541_10166",null,null,"Weather Corrected MD 10% POE","MVA","Non-Coincident"]
["ED_MDU541_10167",null,null,null,null,"Coincident"]
["ED_MDU541_10168",null,null,"Weather Corrected MD 50% POE","MW","Non-Coincident"]
["ED_MDU541_10169",null,null,null,null,"Coincident"]
["ED_MDU541_10170",null,null,"Weather Corrected MD 50% POE","MVA","Non-Coincident"]
["ED_MDU541_10171",null,null,null,null,"Coincident"]
["ED_MDU541_10172",null,"<Enter substation name>","Substation Rating","MVA","Non-Coincident"]
["ED_MDU541_10173",null,null,null,null,"Coincident"]
["ED_MDU541_10174",null,null,"Raw Adjusted MD","MW","Non-Coincident"]
["ED_MDU541_10175",null,null,null,null,"Coincident"]
["ED_MDU541_10176",null,null,"Raw Adjusted MD","MVA","Non-Coincident"]
["ED_MDU541_10177",null,null,null,null,"Coincident"]
["ED_MDU541_10178",null,null,"Date MD occurred",null,"Non-Coincident"]
["ED_MDU541_10179",null,null,null,null,"Coincident"]
["ED_MDU541_10180",null,null,"Half hour time period MD occurred",null,"Non-Coincident"]
["ED_MDU541_10181",null,null,null,null,"Coincident"]
["ED_MDU541_10182",null,null,"Winter/Summer Peaking",null,"Non-Coincident"]
["ED_MDU541_10183",null,null,null,null,"Coincident"]
["ED_MDU541_10184",null,null,"Adjustments - Embedded generation","MW","Non-Coincident"]
["ED_MDU541_10185",null,null,null,null,"Coincident"]
["ED_MDU541_10186",null,null,"Weather Corrected MD 10% POE","MW","Non-Coincident"]
["ED_MDU541_10187",null,null,null,null,"Coincident"]
["ED_MDU541_10188",null,null,"Weather Corrected MD 10% POE","MVA","Non-Coincident"]
["ED_MDU541_10189",null,null,null,null,"Coincident"]
["ED_MDU541_10190",null,null,"Weather Corrected MD 50% POE","MW","Non-Coincident"]
["ED_MDU541_10191",null,null,null,null,"Coincident"]
["ED_MDU541_10192",null,null,"Weather Corrected MD 50% POE","MVA","Non-Coincident"]
["ED_MDU541_10193",null,null,null,null,"Coincident"]
["ED_MDU541_10194",null,"<Enter substation name>","Substation Rating","MVA","Non-Coincident"]
["ED_MDU541_10195",null,null,null,null,"Coincident"]
["ED_MDU541_10196",null,null,"Raw Adjusted MD","MW","Non-Coincident"]
["ED_MDU541_10197",null,null,null,null,"Coincident"]
["ED_MDU541_10198",null,null,"Raw Adjusted MD","MVA","Non-Coincident"]
["ED_MDU541_10199",null,null,null,null,"Coincident"]
["ED_MDU541_10200",null,null,"Date MD occurred",null,"Non-Coincident"]
["ED_MDU541_10201",null,null,null,null,"Coincident"]
["ED_MDU541_10202",null,null,"Half hour time period MD occurred",null,"Non-Coincident"]
["ED_MDU541_10203",null,null,null,null,"Coincident"]
["ED_MDU541_10204",null,null,"Winter/Summer Peaking",null,"Non-Coincident"]
["ED_MDU541_10205",null,null,null,null,"Coincident"]
["ED_MDU541_10206",null,null,"Adjustments - Embedded generation","MW","Non-Coincident"]
["ED_MDU541_10207",null,null,null,null,"Coincident"]
["ED_MDU541_10208",null,null,"Weather Corrected MD 10% POE","MW","Non-Coincident"]
["ED_MDU541_10209",null,null,null,null,"Coincident"]
["ED_MDU541_10210",null,null,"Weather Corrected MD 10% POE","MVA","Non-Coincident"]
["ED_MDU541_10211",null,null,null,null,"Coincident"]
["ED_MDU541_10212",null,null,"Weather Corrected MD 50% POE","MW","Non-Coincident"]
["ED_MDU541_10213",null,null,null,null,"Coincident"]
["ED_MDU541_10214",null,null,"Weather Corrected MD 50% POE","MVA","Non-Coincident"]
["ED_MDU541_10215",null,null,null,null,"Coincident"]
["ED_MDU541_10216",null,"<Enter substation name>","Substation Rating","MVA","Non-Coincident"]
["ED_MDU541_10217",null,null,null,null,"Coincident"]
["ED_MDU541_10218",null,null,"Raw Adjusted MD","MW","Non-Coincident"]
["ED_MDU541_10219",null,null,null,null,"Coincident"]
["ED_MDU541_10220",null,null,"Raw Adjusted MD","MVA","Non-Coincident"]
["ED_MDU541_10221",null,null,null,null,"Coincident"]
["ED_MDU541_10222",null,null,"Date MD occurred",null,"Non-Coincident"]
["ED_MDU541_10223",null,null,null,null,"Coincident"]
["ED_MDU541_10224",null,null,"Half hour time period MD occurred",null,"Non-Coincident"]
["ED_MDU541_10225",null,null,null,null,"Coincident"]
["ED_MDU541_10226",null,null,"Winter/Summer Peaking",null,"Non-Coincident"]
["ED_MDU541_10227",null,null,null,null,"Coincident"]
["ED_MDU541_10228",null,null,"Adjustments - Embedded generation","MW","Non-Coincident"]
["ED_MDU541_10229",null,null,null,null,"Coincident"]
["ED_MDU541_10230",null,null,"Weather Corrected MD 10% POE","MW","Non-Coincident"]
["ED_MDU541_10231",null,null,null,null,"Coincident"]
["ED_MDU541_10232",null,null,"Weather Corrected MD 10% POE","MVA","Non-Coincident"]
["ED_MDU541_10233",null,null,null,null,"Coincident"]
["ED_MDU541_10234",null,null,"Weather Corrected MD 50% POE","MW","Non-Coincident"]
["ED_MDU541_10235",null,null,null,null,"Coincident"]
["ED_MDU541_10236",null,null,"Weather Corrected MD 50% POE","MVA","Non-Coincident"]
["ED_MDU541_10237",null,null,null,null,"Coincident"]
["ED_MDU541_10238",null,"<Enter substation name>","Substation Rating","MVA","Non-Coincident"]
["ED_MDU541_10239",null,null,null,null,"Coincident"]
["ED_MDU541_10240",null,null,"Raw Adjusted MD","MW","Non-Coincident"]
["ED_MDU541_10241",null,null,null,null,"Coincident"]
["ED_MDU541_10242",null,null,"Raw Adjusted MD","MVA","Non-Coincident"]
["ED_MDU541_10243",null,null,null,null,"Coincident"]
["ED_MDU541_10244",null,null,"Date MD occurred",null,"Non-Coincident"]
["ED_MDU541_10245",null,null,null,null,"Coincident"]
["ED_MDU541_10246",null,null,"Half hour time period MD occurred",null,"Non-Coincident"]
["ED_MDU541_10247",null,null,null,null,"Coincident"]
["ED_MDU541_10248",null,null,"Winter/Summer Peaking",null,"Non-Coincident"]
["ED_MDU541_10249",null,null,null,null,"Coincident"]
["ED_MDU541_10250",null,null,"Adjustments - Embedded generation","MW","Non-Coincident"]
["ED_MDU541_10251",null,null,null,null,"Coincident"]
["ED_MDU541_10252",null,null,"Weather Corrected MD 10% POE","MW","Non-Coincident"]
["ED_MDU541_10253",null,null,null,null,"Coincident"]
["ED_MDU541_10254",null,null,"Weather Corrected MD 10% POE","MVA","Non-Coincident"]
["ED_MDU541_10255",null,null,null,null,"Coincident"]
["ED_MDU541_10256",null,null,"Weather Corrected MD 50% POE","MW","Non-Coincident"]
["ED_MDU541_10257",null,null,null,null,"Coincident"]
["ED_MDU541_10258",null,null,"Weather Corrected MD 50% POE","MVA","Non-Coincident"]
["ED_MDU541_10259",null,null,null,null,"Coincident"]
["ED_MDU541_10260",null,"<Enter substation name>","Substation Rating","MVA","Non-Coincident"]
["ED_MDU541_10261",null,null,null,null,"Coincident"]
["ED_MDU541_10262",null,null,"Raw Adjusted MD","MW","Non-Coincident"]
["ED_MDU541_10263",null,null,null,null,"Coincident"]
["ED_MDU541_10264",null,null,"Raw Adjusted MD","MVA","Non-Coincident"]
["ED_MDU541_10265",null,null,null,null,"Coincident"]
["ED_MDU541_10266",null,null,"Date MD occurred",null,"Non-Coincident"]
["ED_MDU541_10267",null,null,null,null,"Coincident"]
["ED_MDU541_10268",null,null,"Half hour time period MD occurred",null,"Non-Coincident"]
["ED_MDU541_10269",null,null,null,null,"Coincident"]
["ED_MDU541_10270",null,null,"Winter/Summer Peaking",null,"Non-Coincident"]
["ED_MDU541_10271",null,null,null,null,"Coincident"]
["ED_MDU541_10272",null,null,"Adjustments - Embedded generation","MW","Non-Coincident"]
["ED_MDU541_10273",null,null,null,null,"Coincident"]
["ED_MDU541_10274",null,null,"Weather Corrected MD 10% POE","MW","Non-Coincident"]
["ED_MDU541_10275",null,null,null,null,"Coincident"]
["ED_MDU541_10276",null,null,"Weather Corrected MD 10% POE","MVA","Non-Coincident"]
["ED_MDU541_10277",null,null,null,null,"Coincident"]
["ED_MDU541_10278",null,null,"Weather Corrected MD 50% POE","MW","Non-Coincident"]
["ED_MDU541_10279",null,null,null,null,"Coincident"]
["ED_MDU541_10280",null,null,"Weather Corrected MD 50% POE","MVA","Non-Coincident"]
["ED_MDU541_10281",null,null,null,null,"Coincident"]
["ED_MDU541_10282",null,"<Enter substation name>","Substation Rating","MVA","Non-Coincident"]
["ED_MDU541_10283",null,null,null,null,"Coincident"]
["ED_MDU541_10284",null,null,"Raw Adjusted MD","MW","Non-Coincident"]
["ED_MDU541_10285",null,null,null,null,"Coincident"]
["ED_MDU541_10286",null,null,"Raw Adjusted MD","MVA","Non-Coincident"]
["ED_MDU541_10287",null,null,null,null,"Coincident"]
["ED_MDU541_10288",null,null,"Date MD occurred",null,"Non-Coincident"]
["ED_MDU541_10289",null,null,null,null,"Coincident"]
["ED_MDU541_10290",null,null,"Half hour time period MD occurred",null,"Non-Coincident"]
["ED_MDU541_10291",null,null,null,null,"Coincident"]
["ED_MDU541_10292",null,null,"Winter/Summer Peaking",null,"Non-Coincident"]
["ED_MDU541_10293",null,null,null,null,"Coincident"]
["ED_MDU541_10294",null,null,"Adjustments - Embedded generation","MW","Non-Coincident"]
["ED_MDU541_10295",null,null,null,null,"Coincident"]
["ED_MDU541_10296",null,null,"Weather Corrected MD 10% POE","MW","Non-Coincident"]
["ED_MDU541_10297",null,null,null,null,"Coincident"]
["ED_MDU541_10298",null,null,"Weather Corrected MD 10% POE","MVA","Non-Coincident"]
["ED_MDU541_10299",null,null,null,null,"Coincident"]
["ED_MDU541_10300",null,null,"Weather Corrected MD 50% POE","MW","Non-Coincident"]
["ED_MDU541_10301",null,null,null,null,"Coincident"]
["ED_MDU541_10302",null,null,"Weather Corrected MD 50% POE","MVA","Non-Coincident"]
["ED_MDU541_10303",null,null,null,null,"Coincident"]
["ED_MDU541_10304",null,"<Enter substation name>","Substation Rating","MVA","Non-Coincident"]
["ED_MDU541_10305",null,null,null,null,"Coincident"]
["ED_MDU541_10306",null,null,"Raw Adjusted MD","MW","Non-Coincident"]
["ED_MDU541_10307",null,null,null,null,"Coincident"]
["ED_MDU541_10308",null,null,"Raw Adjusted MD","MVA","Non-Coincident"]
["ED_MDU541_10309",null,null,null,null,"Coincident"]
["ED_MDU541_10310",null,null,"Date MD occurred",null,"Non-Coincident"]
["ED_MDU541_10311",null,null,null,null,"Coincident"]
["ED_MDU541_10312",null,null,"Half hour time period MD occurred",null,"Non-Coincident"]
["ED_MDU541_10313",null,null,null,null,"Coincident"]
["ED_MDU541_10314",null,null,"Winter/Summer Peaking",null,"Non-Coincident"]
["ED_MDU541_10315",null,null,null,null,"Coincident"]
["ED_MDU541_10316",null,null,"Adjustments - Embedded generation","MW","Non-Coincident"]
["ED_MDU541_10317",null,null,null,null,"Coincident"]
["ED_MDU541_10318",null,null,"Weather Corrected MD 10% POE","MW","Non-Coincident"]
["ED_MDU541_10319",null,null,null,null,"Coincident"]
["ED_MDU541_10320",null,null,"Weather Corrected MD 10% POE","MVA","Non-Coincident"]
["ED_MDU541_10321",null,null,null,null,"Coincident"]
["ED_MDU541_10322",null,null,"Weather Corrected MD 50% POE","MW","Non-Coincident"]
["ED_MDU541_10323",null,null,null,null,"Coincident"]
["ED_MDU541_10324",null,null,"Weather Corrected MD 50% POE","MVA","Non-Coincident"]
["ED_MDU541_10325",null,null,null,null,"Coincident"]
["ED_MDU541_10326",null,"<Enter substation name>","Substation Rating","MVA","Non-Coincident"]
["ED_MDU541_10327",null,null,null,null,"Coincident"]
["ED_MDU541_10328",null,null,"Raw Adjusted MD","MW","Non-Coincident"]
["ED_MDU541_10329",null,null,null,null,"Coincident"]
["ED_MDU541_10330",null,null,"Raw Adjusted MD","MVA","Non-Coincident"]
["ED_MDU541_10331",null,null,null,null,"Coincident"]
["ED_MDU541_10332",null,null,"Date MD occurred",null,"Non-Coincident"]
["ED_MDU541_10333",null,null,null,null,"Coincident"]
["ED_MDU541_10334",null,null,"Half hour time period MD occurred",null,"Non-Coincident"]
["ED_MDU541_10335",null,null,null,null,"Coincident"]
["ED_MDU541_10336",null,null,"Winter/Summer Peaking",null,"Non-Coincident"]
["ED_MDU541_10337",null,null,null,null,"Coincident"]
["ED_MDU541_10338",null,null,"Adjustments - Embedded generation","MW","Non-Coincident"]
["ED_MDU541_10339",null,null,null,null,"Coincident"]
["ED_MDU541_10340",null,null,"Weather Corrected MD 10% POE","MW","Non-Coincident"]
["ED_MDU541_10341",null,null,null,null,"Coincident"]
["ED_MDU541_10342",null,null,"Weather Corrected MD 10% POE","MVA","Non-Coincident"]
["ED_MDU541_10343",null,null,null,null,"Coincident"]
["ED_MDU541_10344",null,null,"Weather Corrected MD 50% POE","MW","Non-Coincident"]
["ED_MDU541_10345",null,null,null,null,"Coincident"]
["ED_MDU541_10346",null,null,"Weather Corrected MD 50% POE","MVA","Non-Coincident"]
["ED_MDU541_10347",null,null,null,null,"Coincident"]
["ED_MDU541_10348",null,"<Enter substation name>","Substation Rating","MVA","Non-Coincident"]
["ED_MDU541_10349",null,null,null,null,"Coincident"]
["ED_MDU541_10350",null,null,"Raw Adjusted MD","MW","Non-Coincident"]
["ED_MDU541_10351",null,null,null,null,"Coincident"]
["ED_MDU541_10352",null,null,"Raw Adjusted MD","MVA","Non-Coincident"]
["ED_MDU541_10353",null,null,null,null,"Coincident"]
["ED_MDU541_10354",null,null,"Date MD occurred",null,"Non-Coincident"]
["ED_MDU541_10355",null,null,null,null,"Coincident"]
["ED_MDU541_10356",null,null,"Half hour time period MD occurred",null,"Non-Coincident"]
["ED_MDU541_10357",null,null,null,null,"Coincident"]
["ED_MDU541_10358",null,null,"Winter/Summer Peaking",null,"Non-Coincident"]
["ED_MDU541_10359",null,null,null,null,"Coincident"]
["ED_MDU541_10360",null,null,"Adjustments - Embedded generation","MW","Non-Coincident"]
["ED_MDU541_10361",null,null,null,null,"Coincident"]
["ED_MDU541_10362",null,null,"Weather Corrected MD 10% POE","MW","Non-Coincident"]
["ED_MDU541_10363",null,null,null,null,"Coincident"]
["ED_MDU541_10364",null,null,"Weather Corrected MD 10% POE","MVA","Non-Coincident"]
["ED_MDU541_10365",null,null,null,null,"Coincident"]
["ED_MDU541_10366",null,null,"Weather Corrected MD 50% POE","MW","Non-Coincident"]
["ED_MDU541_10367",null,null,null,null,"Coincident"]
["ED_MDU541_10368",null,null,"Weather Corrected MD 50% POE","MVA","Non-Coincident"]
["ED_MDU541_10369",null,null,null,null,"Coincident"]
["ED_MDU541_10370",null,"<Enter substation name>","Substation Rating","MVA","Non-Coincident"]
["ED_MDU541_10371",null,null,null,null,"Coincident"]
["ED_MDU541_10372",null,null,"Raw Adjusted MD","MW","Non-Coincident"]
["ED_MDU541_10373",null,null,null,null,"Coincident"]
["ED_MDU541_10374",null,null,"Raw Adjusted MD","MVA","Non-Coincident"]
["ED_MDU541_10375",null,null,null,null,"Coincident"]
["ED_MDU541_10376",null,null,"Date MD occurred",null,"Non-Coincident"]
["ED_MDU541_10377",null,null,null,null,"Coincident"]
["ED_MDU541_10378",null,null,"Half hour time period MD occurred",null,"Non-Coincident"]
["ED_MDU541_10379",null,null,null,null,"Coincident"]
["ED_MDU541_10380",null,null,"Winter/Summer Peaking",null,"Non-Coincident"]
["ED_MDU541_10381",null,null,null,null,"Coincident"]
["ED_MDU541_10382",null,null,"Adjustments - Embedded generation","MW","Non-Coincident"]
["ED_MDU541_10383",null,null,null,null,"Coincident"]
["ED_MDU541_10384",null,null,"Weather Corrected MD 10% POE","MW","Non-Coincident"]
["ED_MDU541_10385",null,null,null,null,"Coincident"]
["ED_MDU541_10386",null,null,"Weather Corrected MD 10% POE","MVA","Non-Coincident"]
["ED_MDU541_10387",null,null,null,null,"Coincident"]
["ED_MDU541_10388",null,null,"Weather Corrected MD 50% POE","MW","Non-Coincident"]
["ED_MDU541_10389",null,null,null,null,"Coincident"]
["ED_MDU541_10390",null,null,"Weather Corrected MD 50% POE","MVA","Non-Coincident"]
["ED_MDU541_10391",null,null,null,null,"Coincident"]
["ED_MDU541_10392",null,"<Enter substation name>","Substation Rating","MVA","Non-Coincident"]
["ED_MDU541_10393",null,null,null,null,"Coincident"]
["ED_MDU541_10394",null,null,"Raw Adjusted MD","MW","Non-Coincident"]
["ED_MDU541_10395",null,null,null,null,"Coincident"]
["ED_MDU541_10396",null,null,"Raw Adjusted MD","MVA","Non-Coincident"]
["ED_MDU541_10397",null,null,null,null,"Coincident"]
["ED_MDU541_10398",null,null,"Date MD occurred",null,"Non-Coincident"]
["ED_MDU541_10399",null,null,null,null,"Coincident"]
["ED_MDU541_10400",null,null,"Half hour time period MD occurred",null,"Non-Coincident"]
["ED_MDU541_10401",null,null,null,null,"Coincident"]
["ED_MDU541_10402",null,null,"Winter/Summer Peaking",null,"Non-Coincident"]
["ED_MDU541_10403",null,null,null,null,"Coincident"]
["ED_MDU541_10404",null,null,"Adjustments - Embedded generation","MW","Non-Coincident"]
["ED_MDU541_10405",null,null,null,null,"Coincident"]
["ED_MDU541_10406",null,null,"Weather Corrected MD 10% POE","MW","Non-Coincident"]
["ED_MDU541_10407",null,null,null,null,"Coincident"]
["ED_MDU541_10408",null,null,"Weather Corrected MD 10% POE","MVA","Non-Coincident"]
["ED_MDU541_10409",null,null,null,null,"Coincident"]
["ED_MDU541_10410",null,null,"Weather Corrected MD 50% POE","MW","Non-Coincident"]
["ED_MDU541_10411",null,null,null,null,"Coincident"]
["ED_MDU541_10412",null,null,"Weather Corrected MD 50% POE","MVA","Non-Coincident"]
["ED_MDU541_10413",null,null,null,null,"Coincident"]
["ED_MDU541_10414",null,"<Enter substation name>","Substation Rating","MVA","Non-Coincident"]
["ED_MDU541_10415",null,null,null,null,"Coincident"]
["ED_MDU541_10416",null,null,"Raw Adjusted MD","MW","Non-Coincident"]
["ED_MDU541_10417",null,null,null,null,"Coincident"]
["ED_MDU541_10418",null,null,"Raw Adjusted MD","MVA","Non-Coincident"]
["ED_MDU541_10419",null,null,null,null,"Coincident"]
["ED_MDU541_10420",null,null,"Date MD occurred",null,"Non-Coincident"]
["ED_MDU541_10421",null,null,null,null,"Coincident"]
["ED_MDU541_10422",null,null,"Half hour time period MD occurred",null,"Non-Coincident"]
["ED_MDU541_10423",null,null,null,null,"Coincident"]
["ED_MDU541_10424",null,null,"Winter/Summer Peaking",null,"Non-Coincident"]
["ED_MDU541_10425",null,null,null,null,"Coincident"]
["ED_MDU541_10426",null,null,"Adjustments - Embedded generation","MW","Non-Coincident"]
["ED_MDU541_10427",null,null,null,null,"Coincident"]
["ED_MDU541_10428",null,null,"Weather Corrected MD 10% POE","MW","Non-Coincident"]
["ED_MDU541_10429",null,null,null,null,"Coincident"]
["ED_MDU541_10430",null,null,"Weather Corrected MD 10% POE","MVA","Non-Coincident"]
["ED_MDU541_10431",null,null,null,null,"Coincident"]
["ED_MDU541_10432",null,null,"Weather Corrected MD 50% POE","MW","Non-Coincident"]
["ED_MDU541_10433",null,null,null,null,"Coincident"]
["ED_MDU541_10434",null,null,"Weather Corrected MD 50% POE","MVA","Non-Coincident"]
["ED_MDU541_10435",null,null,null,null,"Coincident"]
["ED_MDU541_10436",null,"<Enter substation name>","Substation Rating","MVA","Non-Coincident"]
["ED_MDU541_10437",null,null,null,null,"Coincident"]
["ED_MDU541_10438",null,null,"Raw Adjusted MD","MW","Non-Coincident"]
["ED_MDU541_10439",null,null,null,null,"Coincident"]
["ED_MDU541_10440",null,null,"Raw Adjusted MD","MVA","Non-Coincident"]
["ED_MDU541_10441",null,null,null,null,"Coincident"]
["ED_MDU541_10442",null,null,"Date MD occurred",null,"Non-Coincident"]
["ED_MDU541_10443",null,null,null,null,"Coincident"]
["ED_MDU541_10444",null,null,"Half hour time period MD occurred",null,"Non-Coincident"]
["ED_MDU541_10445",null,null,null,null,"Coincident"]
["ED_MDU541_10446",null,null,"Winter/Summer Peaking",null,"Non-Coincident"]
["ED_MDU541_10447",null,null,null,null,"Coincident"]
["ED_MDU541_10448",null,null,"Adjustments - Embedded generation","MW","Non-Coincident"]
["ED_MDU541_10449",null,null,null,null,"Coincident"]
["ED_MDU541_10450",null,null,"Weather Corrected MD 10% POE","MW","Non-Coincident"]
["ED_MDU541_10451",null,null,null,null,"Coincident"]
["ED_MDU541_10452",null,null,"Weather Corrected MD 10% POE","MVA","Non-Coincident"]
["ED_MDU541_10453",null,null,null,null,"Coincident"]
["ED_MDU541_10454",null,null,"Weather Corrected MD 50% POE","MW","Non-Coincident"]
["ED_MDU541_10455",null,null,null,null,"Coincident"]
["ED_MDU541_10456",null,null,"Weather Corrected MD 50% POE","MVA","Non-Coincident"]
["ED_MDU541_10457",null,null,null,null,"Coincident"]
["ED_MDU541_10458",null,"<Enter substation name>","Substation Rating","MVA","Non-Coincident"]
["ED_MDU541_10459",null,null,null,null,"Coincident"]
["ED_MDU541_10460",null,null,"Raw Adjusted MD","MW","Non-Coincident"]
["ED_MDU541_10461",null,null,null,null,"Coincident"]
["ED_MDU541_10462",null,null,"Raw Adjusted MD","MVA","Non-Coincident"]
["ED_MDU541_10463",null,null,null,null,"Coincident"]
["ED_MDU541_10464",null,null,"Date MD occurred",null,"Non-Coincident"]
["ED_MDU541_10465",null,null,null,null,"Coincident"]
["ED_MDU541_10466",null,null,"Half hour time period MD occurred",null,"Non-Coincident"]
["ED_MDU541_10467",null,null,null,null,"Coincident"]
["ED_MDU541_10468",null,null,"Winter/Summer Peaking",null,"Non-Coincident"]
["ED_MDU541_10469",null,null,null,null,"Coincident"]
["ED_MDU541_10470",null,null,"Adjustments - Embedded generation","MW","Non-Coincident"]
["ED_MDU541_10471",null,null,null,null,"Coincident"]
["ED_MDU541_10472",null,null,"Weather Corrected MD 10% POE","MW","Non-Coincident"]
["ED_MDU541_10473",null,null,null,null,"Coincident"]
["ED_MDU541_10474",null,null,"Weather Corrected MD 10% POE","MVA","Non-Coincident"]
["ED_MDU541_10475",null,null,null,null,"Coincident"]
["ED_MDU541_10476",null,null,"Weather Corrected MD 50% POE","MW","Non-Coincident"]
["ED_MDU541_10477",null,null,null,null,"Coincident"]
["ED_MDU541_10478",null,null,"Weather Corrected MD 50% POE","MVA","Non-Coincident"]
["ED_MDU541_10479",null,null,null,null,"Coincident"]
["ED_MDU541_10480",null,"<Enter substation name>","Substation Rating","MVA","Non-Coincident"]
["ED_MDU541_10481",null,null,null,null,"Coincident"]
["ED_MDU541_10482",null,null,"Raw Adjusted MD","MW","Non-Coincident"]
["ED_MDU541_10483",null,null,null,null,"Coincident"]
["ED_MDU541_10484",null,null,"Raw Adjusted MD","MVA","Non-Coincident"]
["ED_MDU541_10485",null,null,null,null,"Coincident"]
["ED_MDU541_10486",null,null,"Date MD occurred",null,"Non-Coincident"]
["ED_MDU541_10487",null,null,null,null,"Coincident"]
["ED_MDU541_10488",null,null,"Half hour time period MD occurred",null,"Non-Coincident"]
["ED_MDU541_10489",null,null,null,null,"Coincident"]
["ED_MDU541_10490",null,null,"Winter/Summer Peaking",null,"Non-Coincident"]
["ED_MDU541_10491",null,null,null,null,"Coincident"]
["ED_MDU541_10492",null,null,"Adjustments - Embedded generation","MW","Non-Coincident"]
["ED_MDU541_10493",null,null,null,null,"Coincident"]
["ED_MDU541_10494",null,null,"Weather Corrected MD 10% POE","MW","Non-Coincident"]
["ED_MDU541_10495",null,null,null,null,"Coincident"]
["ED_MDU541_10496",null,null,"Weather Corrected MD 10% POE","MVA","Non-Coincident"]
["ED_MDU541_10497",null,null,null,null,"Coincident"]
["ED_MDU541_10498",null,null,"Weather Corrected MD 50% POE","MW","Non-Coincident"]
["ED_MDU541_10499",null,null,null,null,"Coincident"]
["ED_MDU541_10500",null,null,"Weather Corrected MD 50% POE","MVA","Non-Coincident"]
["ED_MDU541_10501",null,null,null,null,"Coincident"]
["ED_MDU541_10502",null,"<Enter substation name>","Substation Rating","MVA","Non-Coincident"]
["ED_MDU541_10503",null,null,null,null,"Coincident"]
["ED_MDU541_10504",null,null,"Raw Adjusted MD","MW","Non-Coincident"]
["ED_MDU541_10505",null,null,null,null,"Coincident"]
["ED_MDU541_10506",null,null,"Raw Adjusted MD","MVA","Non-Coincident"]
["ED_MDU541_10507",null,null,null,null,"Coincident"]
["ED_MDU541_10508",null,null,"Date MD occurred",null,"Non-Coincident"]
["ED_MDU541_10509",null,null,null,null,"Coincident"]
["ED_MDU541_10510",null,null,"Half hour time period MD occurred",null,"Non-Coincident"]
["ED_MDU541_10511",null,null,null,null,"Coincident"]
["ED_MDU541_10512",null,null,"Winter/Summer Peaking",null,"Non-Coincident"]
["ED_MDU541_10513",null,null,null,null,"Coincident"]
["ED_MDU541_10514",null,null,"Adjustments - Embedded generation","MW","Non-Coincident"]
["ED_MDU541_10515",null,null,null,null,"Coincident"]
["ED_MDU541_10516",null,null,"Weather Corrected MD 10% POE","MW","Non-Coincident"]
["ED_MDU541_10517",null,null,null,null,"Coincident"]
["ED_MDU541_10518",null,null,"Weather Corrected MD 10% POE","MVA","Non-Coincident"]
["ED_MDU541_10519",null,null,null,null,"Coincident"]
["ED_MDU541_10520",null,null,"Weather Corrected MD 50% POE","MW","Non-Coincident"]
["ED_MDU541_10521",null,null,null,null,"Coincident"]
["ED_MDU541_10522",null,null,"Weather Corrected MD 50% POE","MVA","Non-Coincident"]
["ED_MDU541_10523",null,null,null,null,"Coincident"]
["ED_MDU541_10524",null,"<Enter substation name>","Substation Rating","MVA","Non-Coincident"]
["ED_MDU541_10525",null,null,null,null,"Coincident"]
["ED_MDU541_10526",null,null,"Raw Adjusted MD","MW","Non-Coincident"]
["ED_MDU541_10527",null,null,null,null,"Coincident"]
["ED_MDU541_10528",null,null,"Raw Adjusted MD","MVA","Non-Coincident"]
["ED_MDU541_10529",null,null,null,null,"Coincident"]
["ED_MDU541_10530",null,null,"Date MD occurred",null,"Non-Coincident"]
["ED_MDU541_10531",null,null,null,null,"Coincident"]
["ED_MDU541_10532",null,null,"Half hour time period MD occurred",null,"Non-Coincident"]
["ED_MDU541_10533",null,null,null,null,"Coincident"]
["ED_MDU541_10534",null,null,"Winter/Summer Peaking",null,"Non-Coincident"]
["ED_MDU541_10535",null,null,null,null,"Coincident"]
["ED_MDU541_10536",null,null,"Adjustments - Embedded generation","MW","Non-Coincident"]
["ED_MDU541_10537",null,null,null,null,"Coincident"]
["ED_MDU541_10538",null,null,"Weather Corrected MD 10% POE","MW","Non-Coincident"]
["ED_MDU541_10539",null,null,null,null,"Coincident"]
["ED_MDU541_10540",null,null,"Weather Corrected MD 10% POE","MVA","Non-Coincident"]
["ED_MDU541_10541",null,null,null,null,"Coincident"]
["ED_MDU541_10542",null,null,"Weather Corrected MD 50% POE","MW","Non-Coincident"]
["ED_MDU541_10543",null,null,null,null,"Coincident"]
["ED_MDU541_10544",null,null,"Weather Corrected MD 50% POE","MVA","Non-Coincident"]
["ED_MDU541_10545",null,null,null,null,"Coincident"]
["ED_MDU541_10546",null,"<Enter substation name>","Substation Rating","MVA","Non-Coincident"]
["ED_MDU541_10547",null,null,null,null,"Coincident"]
["ED_MDU541_10548",null,null,"Raw Adjusted MD","MW","Non-Coincident"]
["ED_MDU541_10549",null,null,null,null,"Coincident"]
["ED_MDU541_10550",null,null,"Raw Adjusted MD","MVA","Non-Coincident"]
["ED_MDU541_10551",null,null,null,null,"Coincident"]
["ED_MDU541_10552",null,null,"Date MD occurred",null,"Non-Coincident"]
["ED_MDU541_10553",null,null,null,null,"Coincident"]
["ED_MDU541_10554",null,null,"Half hour time period MD occurred",null,"Non-Coincident"]
["ED_MDU541_10555",null,null,null,null,"Coincident"]
["ED_MDU541_10556",null,null,"Winter/Summer Peaking",null,"Non-Coincident"]
["ED_MDU541_10557",null,null,null,null,"Coincident"]
["ED_MDU541_10558",null,null,"Adjustments - Embedded generation","MW","Non-Coincident"]
["ED_MDU541_10559",null,null,null,null,"Coincident"]
["ED_MDU541_10560",null,null,"Weather Corrected MD 10% POE","MW","Non-Coincident"]
["ED_MDU541_10561",null,null,null,null,"Coincident"]
["ED_MDU541_10562",null,null,"Weather Corrected MD 10% POE","MVA","Non-Coincident"]
["ED_MDU541_10563",null,null,null,null,"Coincident"]
["ED_MDU541_10564",null,null,"Weather Corrected MD 50% POE","MW","Non-Coincident"]
["ED_MDU541_10565",null,null,null,null,"Coincident"]
["ED_MDU541_10566",null,null,"Weather Corrected MD 50% POE","MVA","Non-Coincident"]
["ED_MDU541_10567",null,null,null,null,"Coincident"]
["ED_MDU541_10568",null,"<Enter substation name>","Substation Rating","MVA","Non-Coincident"]
["ED_MDU541_10569",null,null,null,null,"Coincident"]
["ED_MDU541_10570",null,null,"Raw Adjusted MD","MW","Non-Coincident"]
["ED_MDU541_10571",null,null,null,null,"Coincident"]
["ED_MDU541_10572",null,null,"Raw Adjusted MD","MVA","Non-Coincident"]
["ED_MDU541_10573",null,null,null,null,"Coincident"]
["ED_MDU541_10574",null,null,"Date MD occurred",null,"Non-Coincident"]
["ED_MDU541_10575",null,null,null,null,"Coincident"]
["ED_MDU541_10576",null,null,"Half hour time period MD occurred",null,"Non-Coincident"]
["ED_MDU541_10577",null,null,null,null,"Coincident"]
["ED_MDU541_10578",null,null,"Winter/Summer Peaking",null,"Non-Coincident"]
["ED_MDU541_10579",null,null,null,null,"Coincident"]
["ED_MDU541_10580",null,null,"Adjustments - Embedded generation","MW","Non-Coincident"]
["ED_MDU541_10581",null,null,null,null,"Coincident"]
["ED_MDU541_10582",null,null,"Weather Corrected MD 10% POE","MW","Non-Coincident"]
["ED_MDU541_10583",null,null,null,null,"Coincident"]
["ED_MDU541_10584",null,null,"Weather Corrected MD 10% POE","MVA","Non-Coincident"]
["ED_MDU541_10585",null,null,null,null,"Coincident"]
["ED_MDU541_10586",null,null,"Weather Corrected MD 50% POE","MW","Non-Coincident"]
["ED_MDU541_10587",null,null,null,null,"Coincident"]
["ED_MDU541_10588",null,null,"Weather Corrected MD 50% POE","MVA","Non-Coincident"]
["ED_MDU541_10589",null,null,null,null,"Coincident"]
["ED_MDU541_10590",null,"<Enter substation name>","Substation Rating","MVA","Non-Coincident"]
["ED_MDU541_10591",null,null,null,null,"Coincident"]
["ED_MDU541_10592",null,null,"Raw Adjusted MD","MW","Non-Coincident"]
["ED_MDU541_10593",null,null,null,null,"Coincident"]
["ED_MDU541_10594",null,null,"Raw Adjusted MD","MVA","Non-Coincident"]
["ED_MDU541_10595",null,null,null,null,"Coincident"]
["ED_MDU541_10596",null,null,"Date MD occurred",null,"Non-Coincident"]
["ED_MDU541_10597",null,null,null,null,"Coincident"]
["ED_MDU541_10598",null,null,"Half hour time period MD occurred",null,"Non-Coincident"]
["ED_MDU541_10599",null,null,null,null,"Coincident"]
["ED_MDU541_10600",null,null,"Winter/Summer Peaking",null,"Non-Coincident"]
["ED_MDU541_10601",null,null,null,null,"Coincident"]
["ED_MDU541_10602",null,null,"Adjustments - Embedded generation","MW","Non-Coincident"]
["ED_MDU541_10603",null,null,null,null,"Coincident"]
["ED_MDU541_10604",null,null,"Weather Corrected MD 10% POE","MW","Non-Coincident"]
["ED_MDU541_10605",null,null,null,null,"Coincident"]
["ED_MDU541_10606",null,null,"Weather Corrected MD 10% POE","MVA","Non-Coincident"]
["ED_MDU541_10607",null,null,null,null,"Coincident"]
["ED_MDU541_10608",null,null,"Weather Corrected MD 50% POE","MW","Non-Coincident"]
["ED_MDU541_10609",null,null,null,null,"Coincident"]
["ED_MDU541_10610",null,null,"Weather Corrected MD 50% POE","MVA","Non-Coincident"]
["ED_MDU541_10611",null,null,null,null,"Coincident"]
["ED_MDU541_10612",null,"<Enter substation name>","Substation Rating","MVA","Non-Coincident"]
["ED_MDU541_10613",null,null,null,null,"Coincident"]
["ED_MDU541_10614",null,null,"Raw Adjusted MD","MW","Non-Coincident"]
["ED_MDU541_10615",null,null,null,null,"Coincident"]
["ED_MDU541_10616",null,null,"Raw Adjusted MD","MVA","Non-Coincident"]
["ED_MDU541_10617",null,null,null,null,"Coincident"]
["ED_MDU541_10618",null,null,"Date MD occurred",null,"Non-Coincident"]
["ED_MDU541_10619",null,null,null,null,"Coincident"]
["ED_MDU541_10620",null,null,"Half hour time period MD occurred",null,"Non-Coincident"]
["ED_MDU541_10621",null,null,null,null,"Coincident"]
["ED_MDU541_10622",null,null,"Winter/Summer Peaking",null,"Non-Coincident"]
["ED_MDU541_10623",null,null,null,null,"Coincident"]
["ED_MDU541_10624",null,null,"Adjustments - Embedded generation","MW","Non-Coincident"]
["ED_MDU541_10625",null,null,null,null,"Coincident"]
["ED_MDU541_10626",null,null,"Weather Corrected MD 10% POE","MW","Non-Coincident"]
["ED_MDU541_10627",null,null,null,null,"Coincident"]
["ED_MDU541_10628",null,null,"Weather Corrected MD 10% POE","MVA","Non-Coincident"]
["ED_MDU541_10629",null,null,null,null,"Coincident"]
["ED_MDU541_10630",null,null,"Weather Corrected MD 50% POE","MW","Non-Coincident"]
["ED_MDU541_10631",null,null,null,null,"Coincident"]
["ED_MDU541_10632",null,null,"Weather Corrected MD 50% POE","MVA","Non-Coincident"]
["ED_MDU541_10633",null,null,null,null,"Coincident"]
["ED_MDU541_10634",null,"<Enter substation name>","Substation Rating","MVA","Non-Coincident"]
["ED_MDU541_10635",null,null,null,null,"Coincident"]
["ED_MDU541_10636",null,null,"Raw Adjusted MD","MW","Non-Coincident"]
["ED_MDU541_10637",null,null,null,null,"Coincident"]
["ED_MDU541_10638",null,null,"Raw Adjusted MD","MVA","Non-Coincident"]
["ED_MDU541_10639",null,null,null,null,"Coincident"]
["ED_MDU541_10640",null,null,"Date MD occurred",null,"Non-Coincident"]
["ED_MDU541_10641",null,null,null,null,"Coincident"]
["ED_MDU541_10642",null,null,"Half hour time period MD occurred",null,"Non-Coincident"]
["ED_MDU541_10643",null,null,null,null,"Coincident"]
["ED_MDU541_10644",null,null,"Winter/Summer Peaking",null,"Non-Coincident"]
["ED_MDU541_10645",null,null,null,null,"Coincident"]
["ED_MDU541_10646",null,null,"Adjustments - Embedded generation","MW","Non-Coincident"]
["ED_MDU541_10647",null,null,null,null,"Coincident"]
["ED_MDU541_10648",null,null,"Weather Corrected MD 10% POE","MW","Non-Coincident"]
["ED_MDU541_10649",null,null,null,null,"Coincident"]
["ED_MDU541_10650",null,null,"Weather Corrected MD 10% POE","MVA","Non-Coincident"]
["ED_MDU541_10651",null,null,null,null,"Coincident"]
["ED_MDU541_10652",null,null,"Weather Corrected MD 50% POE","MW","Non-Coincident"]
["ED_MDU541_10653",null,null,null,null,"Coincident"]
["ED_MDU541_10654",null,null,"Weather Corrected MD 50% POE","MVA","Non-Coincident"]
["ED_MDU541_10655",null,null,null,null,"Coincident"]
["ED_MDU541_10656",null,"<Enter substation name>","Substation Rating","MVA","Non-Coincident"]
["ED_MDU541_10657",null,null,null,null,"Coincident"]
["ED_MDU541_10658",null,null,"Raw Adjusted MD","MW","Non-Coincident"]
["ED_MDU541_10659",null,null,null,null,"Coincident"]
["ED_MDU541_10660",null,null,"Raw Adjusted MD","MVA","Non-Coincident"]
["ED_MDU541_10661",null,null,null,null,"Coincident"]
["ED_MDU541_10662",null,null,"Date MD occurred",null,"Non-Coincident"]
["ED_MDU541_10663",null,null,null,null,"Coincident"]
["ED_MDU541_10664",null,null,"Half hour time period MD occurred",null,"Non-Coincident"]
["ED_MDU541_10665",null,null,null,null,"Coincident"]
["ED_MDU541_10666",null,null,"Winter/Summer Peaking",null,"Non-Coincident"]
["ED_MDU541_10667",null,null,null,null,"Coincident"]
["ED_MDU541_10668",null,null,"Adjustments - Embedded generation","MW","Non-Coincident"]
["ED_MDU541_10669",null,null,null,null,"Coincident"]
["ED_MDU541_10670",null,null,"Weather Corrected MD 10% POE","MW","Non-Coincident"]
["ED_MDU541_10671",null,null,null,null,"Coincident"]
["ED_MDU541_10672",null,null,"Weather Corrected MD 10% POE","MVA","Non-Coincident"]
["ED_MDU541_10673",null,null,null,null,"Coincident"]
["ED_MDU541_10674",null,null,"Weather Corrected MD 50% POE","MW","Non-Coincident"]
["ED_MDU541_10675",null,null,null,null,"Coincident"]
["ED_MDU541_10676",null,null,"Weather Corrected MD 50% POE","MVA","Non-Coincident"]
["ED_MDU541_10677",null,null,null,null,"Coincident"]
["ED_MDU541_10678",null,"<Enter substation name>","Substation Rating","MVA","Non-Coincident"]
["ED_MDU541_10679",null,null,null,null,"Coincident"]
["ED_MDU541_10680",null,null,"Raw Adjusted MD","MW","Non-Coincident"]
["ED_MDU541_10681",null,null,null,null,"Coincident"]
["ED_MDU541_10682",null,null,"Raw Adjusted MD","MVA","Non-Coincident"]
["ED_MDU541_10683",null,null,null,null,"Coincident"]
["ED_MDU541_10684",null,null,"Date MD occurred",null,"Non-Coincident"]
["ED_MDU541_10685",null,null,null,null,"Coincident"]
["ED_MDU541_10686",null,null,"Half hour time period MD occurred",null,"Non-Coincident"]
["ED_MDU541_10687",null,null,null,null,"Coincident"]
["ED_MDU541_10688",null,null,"Winter/Summer Peaking",null,"Non-Coincident"]
["ED_MDU541_10689",null,null,null,null,"Coincident"]
["ED_MDU541_10690",null,null,"Adjustments - Embedded generation","MW","Non-Coincident"]
["ED_MDU541_10691",null,null,null,null,"Coincident"]
["ED_MDU541_10692",null,null,"Weather Corrected MD 10% POE","MW","Non-Coincident"]
["ED_MDU541_10693",null,null,null,null,"Coincident"]
["ED_MDU541_10694",null,null,"Weather Corrected MD 10% POE","MVA","Non-Coincident"]
["ED_MDU541_10695",null,null,null,null,"Coincident"]
["ED_MDU541_10696",null,null,"Weather Corrected MD 50% POE","MW","Non-Coincident"]
["ED_MDU541_10697",null,null,null,null,"Coincident"]
["ED_MDU541_10698",null,null,"Weather Corrected MD 50% POE","MVA","Non-Coincident"]
["ED_MDU541_10699",null,null,null,null,"Coincident"]
["ED_MDU541_10700",null,"<Enter substation name>","Substation Rating","MVA","Non-Coincident"]
["ED_MDU541_10701",null,null,null,null,"Coincident"]
["ED_MDU541_10702",null,null,"Raw Adjusted MD","MW","Non-Coincident"]
["ED_MDU541_10703",null,null,null,null,"Coincident"]
["ED_MDU541_10704",null,null,"Raw Adjusted MD","MVA","Non-Coincident"]
["ED_MDU541_10705",null,null,null,null,"Coincident"]
["ED_MDU541_10706",null,null,"Date MD occurred",null,"Non-Coincident"]
["ED_MDU541_10707",null,null,null,null,"Coincident"]
["ED_MDU541_10708",null,null,"Half hour time period MD occurred",null,"Non-Coincident"]
["ED_MDU541_10709",null,null,null,null,"Coincident"]
["ED_MDU541_10710",null,null,"Winter/Summer Peaking",null,"Non-Coincident"]
["ED_MDU541_10711",null,null,null,null,"Coincident"]
["ED_MDU541_10712",null,null,"Adjustments - Embedded generation","MW","Non-Coincident"]
["ED_MDU541_10713",null,null,null,null,"Coincident"]
["ED_MDU541_10714",null,null,"Weather Corrected MD 10% POE","MW","Non-Coincident"]
["ED_MDU541_10715",null,null,null,null,"Coincident"]
["ED_MDU541_10716",null,null,"Weather Corrected MD 10% POE","MVA","Non-Coincident"]
["ED_MDU541_10717",null,null,null,null,"Coincident"]
["ED_MDU541_10718",null,null,"Weather Corrected MD 50% POE","MW","Non-Coincident"]
["ED_MDU541_10719",null,null,null,null,"Coincident"]
["ED_MDU541_10720",null,null,"Weather Corrected MD 50% POE","MVA","Non-Coincident"]
["ED_MDU541_10721",null,null,null,null,"Coincident"]
["ED_MDU541_10722",null,"<Enter substation name>","Substation Rating","MVA","Non-Coincident"]
["ED_MDU541_10723",null,null,null,null,"Coincident"]
["ED_MDU541_10724",null,null,"Raw Adjusted MD","MW","Non-Coincident"]
["ED_MDU541_10725",null,null,null,null,"Coincident"]
["ED_MDU541_10726",null,null,"Raw Adjusted MD","MVA","Non-Coincident"]
["ED_MDU541_10727",null,null,null,null,"Coincident"]
["ED_MDU541_10728",null,null,"Date MD occurred",null,"Non-Coincident"]
["ED_MDU541_10729",null,null,null,null,"Coincident"]
["ED_MDU541_10730",null,null,"Half hour time period MD occurred",null,"Non-Coincident"]
["ED_MDU541_10731",null,null,null,null,"Coincident"]
["ED_MDU541_10732",null,null,"Winter/Summer Peaking",null,"Non-Coincident"]
["ED_MDU541_10733",null,null,null,null,"Coincident"]
["ED_MDU541_10734",null,null,"Adjustments - Embedded generation","MW","Non-Coincident"]
["ED_MDU541_10735",null,null,null,null,"Coincident"]
["ED_MDU541_10736",null,null,"Weather Corrected MD 10% POE","MW","Non-Coincident"]
["ED_MDU541_10737",null,null,null,null,"Coincident"]
["ED_MDU541_10738",null,null,"Weather Corrected MD 10% POE","MVA","Non-Coincident"]
["ED_MDU541_10739",null,null,null,null,"Coincident"]
["ED_MDU541_10740",null,null,"Weather Corrected MD 50% POE","MW","Non-Coincident"]
["ED_MDU541_10741",null,null,null,null,"Coincident"]
["ED_MDU541_10742",null,null,"Weather Corrected MD 50% POE","MVA","Non-Coincident"]
["ED_MDU541_10743",null,null,null,null,"Coincident"]
["ED_MDU541_10744",null,"<Enter substation name>","Substation Rating","MVA","Non-Coincident"]
["ED_MDU541_10745",null,null,null,null,"Coincident"]
["ED_MDU541_10746",null,null,"Raw Adjusted MD","MW","Non-Coincident"]
["ED_MDU541_10747",null,null,null,null,"Coincident"]
["ED_MDU541_10748",null,null,"Raw Adjusted MD","MVA","Non-Coincident"]
["ED_MDU541_10749",null,null,null,null,"Coincident"]
["ED_MDU541_10750",null,null,"Date MD occurred",null,"Non-Coincident"]
["ED_MDU541_10751",null,null,null,null,"Coincident"]
["ED_MDU541_10752",null,null,"Half hour time period MD occurred",null,"Non-Coincident"]
["ED_MDU541_10753",null,null,null,null,"Coincident"]
["ED_MDU541_10754",null,null,"Winter/Summer Peaking",null,"Non-Coincident"]
["ED_MDU541_10755",null,null,null,null,"Coincident"]
["ED_MDU541_10756",null,null,"Adjustments - Embedded generation","MW","Non-Coincident"]
["ED_MDU541_10757",null,null,null,null,"Coincident"]
["ED_MDU541_10758",null,null,"Weather Corrected MD 10% POE","MW","Non-Coincident"]
["ED_MDU541_10759",null,null,null,null,"Coincident"]
["ED_MDU541_10760",null,null,"Weather Corrected MD 10% POE","MVA","Non-Coincident"]
["ED_MDU541_10761",null,null,null,null,"Coincident"]
["ED_MDU541_10762",null,null,"Weather Corrected MD 50% POE","MW","Non-Coincident"]
["ED_MDU541_10763",null,null,null,null,"Coincident"]
["ED_MDU541_10764",null,null,"Weather Corrected MD 50% POE","MVA","Non-Coincident"]
["ED_MDU541_10765",null,null,null,null,"Coincident"]
["ED_MDU541_10766",null,"<Enter substation name>","Substation Rating","MVA","Non-Coincident"]
["ED_MDU541_10767",null,null,null,null,"Coincident"]
["ED_MDU541_10768",null,null,"Raw Adjusted MD","MW","Non-Coincident"]
["ED_MDU541_10769",null,null,null,null,"Coincident"]
["ED_MDU541_10770",null,null,"Raw Adjusted MD","MVA","Non-Coincident"]
["ED_MDU541_10771",null,null,null,null,"Coincident"]
["ED_MDU541_10772",null,null,"Date MD occurred",null,"Non-Coincident"]
["ED_MDU541_10773",null,null,null,null,"Coincident"]
["ED_MDU541_10774",null,null,"Half hour time period MD occurred",null,"Non-Coincident"]
["ED_MDU541_10775",null,null,null,null,"Coincident"]
["ED_MDU541_10776",null,null,"Winter/Summer Peaking",null,"Non-Coincident"]
["ED_MDU541_10777",null,null,null,null,"Coincident"]
["ED_MDU541_10778",null,null,"Adjustments - Embedded generation","MW","Non-Coincident"]
["ED_MDU541_10779",null,null,null,null,"Coincident"]
["ED_MDU541_10780",null,null,"Weather Corrected MD 10% POE","MW","Non-Coincident"]
["ED_MDU541_10781",null,null,null,null,"Coincident"]
["ED_MDU541_10782",null,null,"Weather Corrected MD 10% POE","MVA","Non-Coincident"]
["ED_MDU541_10783",null,null,null,null,"Coincident"]
["ED_MDU541_10784",null,null,"Weather Corrected MD 50% POE","MW","Non-Coincident"]
["ED_MDU541_10785",null,null,null,null,"Coincident"]
["ED_MDU541_10786",null,null,"Weather Corrected MD 50% POE","MVA","Non-Coincident"]
["ED_MDU541_10787",null,null,null,null,"Coincident"]
["ED_MDU541_10788",null,"<Enter substation name>","Substation Rating","MVA","Non-Coincident"]
["ED_MDU541_10789",null,null,null,null,"Coincident"]
["ED_MDU541_10790",null,null,"Raw Adjusted MD","MW","Non-Coincident"]
["ED_MDU541_10791",null,null,null,null,"Coincident"]
["ED_MDU541_10792",null,null,"Raw Adjusted MD","MVA","Non-Coincident"]
["ED_MDU541_10793",null,null,null,null,"Coincident"]
["ED_MDU541_10794",null,null,"Date MD occurred",null,"Non-Coincident"]
["ED_MDU541_10795",null,null,null,null,"Coincident"]
["ED_MDU541_10796",null,null,"Half hour time period MD occurred",null,"Non-Coincident"]
["ED_MDU541_10797",null,null,null,null,"Coincident"]
["ED_MDU541_10798",null,null,"Winter/Summer Peaking",null,"Non-Coincident"]
["ED_MDU541_10799",null,null,null,null,"Coincident"]
["ED_MDU541_10800",null,null,"Adjustments - Embedded generation","MW","Non-Coincident"]
["ED_MDU541_10801",null,null,null,null,"Coincident"]
["ED_MDU541_10802",null,null,"Weather Corrected MD 10% POE","MW","Non-Coincident"]
["ED_MDU541_10803",null,null,null,null,"Coincident"]
["ED_MDU541_10804",null,null,"Weather Corrected MD 10% POE","MVA","Non-Coincident"]
["ED_MDU541_10805",null,null,null,null,"Coincident"]
["ED_MDU541_10806",null,null,"Weather Corrected MD 50% POE","MW","Non-Coincident"]
["ED_MDU541_10807",null,null,null,null,"Coincident"]
["ED_MDU541_10808",null,null,"Weather Corrected MD 50% POE","MVA","Non-Coincident"]
["ED_MDU541_10809",null,null,null,null,"Coincident"]
["ED_MDU541_10810",null,"<Enter substation name>","Substation Rating","MVA","Non-Coincident"]
["ED_MDU541_10811",null,null,null,null,"Coincident"]
["ED_MDU541_10812",null,null,"Raw Adjusted MD","MW","Non-Coincident"]
["ED_MDU541_10813",null,null,null,null,"Coincident"]
["ED_MDU541_10814",null,null,"Raw Adjusted MD","MVA","Non-Coincident"]
["ED_MDU541_10815",null,null,null,null,"Coincident"]
["ED_MDU541_10816",null,null,"Date MD occurred",null,"Non-Coincident"]
["ED_MDU541_10817",null,null,null,null,"Coincident"]
["ED_MDU541_10818",null,null,"Half hour time period MD occurred",null,"Non-Coincident"]
["ED_MDU541_10819",null,null,null,null,"Coincident"]
["ED_MDU541_10820",null,null,"Winter/Summer Peaking",null,"Non-Coincident"]
["ED_MDU541_10821",null,null,null,null,"Coincident"]
["ED_MDU541_10822",null,null,"Adjustments - Embedded generation","MW","Non-Coincident"]
["ED_MDU541_10823",null,null,null,null,"Coincident"]
["ED_MDU541_10824",null,null,"Weather Corrected MD 10% POE","MW","Non-Coincident"]
["ED_MDU541_10825",null,null,null,null,"Coincident"]
["ED_MDU541_10826",null,null,"Weather Corrected MD 10% POE","MVA","Non-Coincident"]
["ED_MDU541_10827",null,null,null,null,"Coincident"]
["ED_MDU541_10828",null,null,"Weather Corrected MD 50% POE","MW","Non-Coincident"]
["ED_MDU541_10829",null,null,null,null,"Coincident"]
["ED_MDU541_10830",null,null,"Weather Corrected MD 50% POE","MVA","Non-Coincident"]
["ED_MDU541_10831",null,null,null,null,"Coincident"]
["ED_MDU541_10832",null,"<Enter substation name>","Substation Rating","MVA","Non-Coincident"]
["ED_MDU541_10833",null,null,null,null,"Coincident"]
["ED_MDU541_10834",null,null,"Raw Adjusted MD","MW","Non-Coincident"]
["ED_MDU541_10835",null,null,null,null,"Coincident"]
["ED_MDU541_10836",null,null,"Raw Adjusted MD","MVA","Non-Coincident"]
["ED_MDU541_10837",null,null,null,null,"Coincident"]
["ED_MDU541_10838",null,null,"Date MD occurred",null,"Non-Coincident"]
["ED_MDU541_10839",null,null,null,null,"Coincident"]
["ED_MDU541_10840",null,null,"Half hour time period MD occurred",null,"Non-Coincident"]
["ED_MDU541_10841",null,null,null,null,"Coincident"]
["ED_MDU541_10842",null,null,"Winter/Summer Peaking",null,"Non-Coincident"]
["ED_MDU541_10843",null,null,null,null,"Coincident"]
["ED_MDU541_10844",null,null,"Adjustments - Embedded generation","MW","Non-Coincident"]
["ED_MDU541_10845",null,null,null,null,"Coincident"]
["ED_MDU541_10846",null,null,"Weather Corrected MD 10% POE","MW","Non-Coincident"]
["ED_MDU541_10847",null,null,null,null,"Coincident"]
["ED_MDU541_10848",null,null,"Weather Corrected MD 10% POE","MVA","Non-Coincident"]
["ED_MDU541_10849",null,null,null,null,"Coincident"]
["ED_MDU541_10850",null,null,"Weather Corrected MD 50% POE","MW","Non-Coincident"]
["ED_MDU541_10851",null,null,null,null,"Coincident"]
["ED_MDU541_10852",null,null,"Weather Corrected MD 50% POE","MVA","Non-Coincident"]
["ED_MDU541_10853",null,null,null,null,"Coincident"]
["ED_MDU541_10854",null,"<Enter substation name>","Substation Rating","MVA","Non-Coincident"]
["ED_MDU541_10855",null,null,null,null,"Coincident"]
["ED_MDU541_10856",null,null,"Raw Adjusted MD","MW","Non-Coincident"]
["ED_MDU541_10857",null,null,null,null,"Coincident"]
["ED_MDU541_10858",null,null,"Raw Adjusted MD","MVA","Non-Coincident"]
["ED_MDU541_10859",null,null,null,null,"Coincident"]
["ED_MDU541_10860",null,null,"Date MD occurred",null,"Non-Coincident"]
["ED_MDU541_10861",null,null,null,null,"Coincident"]
["ED_MDU541_10862",null,null,"Half hour time period MD occurred",null,"Non-Coincident"]
["ED_MDU541_10863",null,null,null,null,"Coincident"]
["ED_MDU541_10864",null,null,"Winter/Summer Peaking",null,"Non-Coincident"]
["ED_MDU541_10865",null,null,null,null,"Coincident"]
["ED_MDU541_10866",null,null,"Adjustments - Embedded generation","MW","Non-Coincident"]
["ED_MDU541_10867",null,null,null,null,"Coincident"]
["ED_MDU541_10868",null,null,"Weather Corrected MD 10% POE","MW","Non-Coincident"]
["ED_MDU541_10869",null,null,null,null,"Coincident"]
["ED_MDU541_10870",null,null,"Weather Corrected MD 10% POE","MVA","Non-Coincident"]
["ED_MDU541_10871",null,null,null,null,"Coincident"]
["ED_MDU541_10872",null,null,"Weather Corrected MD 50% POE","MW","Non-Coincident"]
["ED_MDU541_10873",null,null,null,null,"Coincident"]
["ED_MDU541_10874",null,null,"Weather Corrected MD 50% POE","MVA","Non-Coincident"]
["ED_MDU541_10875",null,null,null,null,"Coincident"]
["ED_MDU541_10876",null,"<Enter substation name>","Substation Rating","MVA","Non-Coincident"]
["ED_MDU541_10877",null,null,null,null,"Coincident"]
["ED_MDU541_10878",null,null,"Raw Adjusted MD","MW","Non-Coincident"]
["ED_MDU541_10879",null,null,null,null,"Coincident"]
["ED_MDU541_10880",null,null,"Raw Adjusted MD","MVA","Non-Coincident"]
["ED_MDU541_10881",null,null,null,null,"Coincident"]
["ED_MDU541_10882",null,null,"Date MD occurred",null,"Non-Coincident"]
["ED_MDU541_10883",null,null,null,null,"Coincident"]
["ED_MDU541_10884",null,null,"Half hour time period MD occurred",null,"Non-Coincident"]
["ED_MDU541_10885",null,null,null,null,"Coincident"]
["ED_MDU541_10886",null,null,"Winter/Summer Peaking",null,"Non-Coincident"]
["ED_MDU541_10887",null,null,null,null,"Coincident"]
["ED_MDU541_10888",null,null,"Adjustments - Embedded generation","MW","Non-Coincident"]
["ED_MDU541_10889",null,null,null,null,"Coincident"]
["ED_MDU541_10890",null,null,"Weather Corrected MD 10% POE","MW","Non-Coincident"]
["ED_MDU541_10891",null,null,null,null,"Coincident"]
["ED_MDU541_10892",null,null,"Weather Corrected MD 10% POE","MVA","Non-Coincident"]
["ED_MDU541_10893",null,null,null,null,"Coincident"]
["ED_MDU541_10894",null,null,"Weather Corrected MD 50% POE","MW","Non-Coincident"]
["ED_MDU541_10895",null,null,null,null,"Coincident"]
["ED_MDU541_10896",null,null,"Weather Corrected MD 50% POE","MVA","Non-Coincident"]
["ED_MDU541_10897",null,null,null,null,"Coincident"]
["ED_MDU541_10898",null,"<Enter substation name>","Substation Rating","MVA","Non-Coincident"]
["ED_MDU541_10899",null,null,null,null,"Coincident"]
["ED_MDU541_10900",null,null,"Raw Adjusted MD","MW","Non-Coincident"]
["ED_MDU541_10901",null,null,null,null,"Coincident"]
["ED_MDU541_10902",null,null,"Raw Adjusted MD","MVA","Non-Coincident"]
["ED_MDU541_10903",null,null,null,null,"Coincident"]
["ED_MDU541_10904",null,null,"Date MD occurred",null,"Non-Coincident"]
["ED_MDU541_10905",null,null,null,null,"Coincident"]
["ED_MDU541_10906",null,null,"Half hour time period MD occurred",null,"Non-Coincident"]
["ED_MDU541_10907",null,null,null,null,"Coincident"]
["ED_MDU541_10908",null,null,"Winter/Summer Peaking",null,"Non-Coincident"]
["ED_MDU541_10909",null,null,null,null,"Coincident"]
["ED_MDU541_10910",null,null,"Adjustments - Embedded generation","MW","Non-Coincident"]
["ED_MDU541_10911",null,null,null,null,"Coincident"]
["ED_MDU541_10912",null,null,"Weather Corrected MD 10% POE","MW","Non-Coincident"]
["ED_MDU541_10913",null,null,null,null,"Coincident"]
["ED_MDU541_10914",null,null,"Weather Corrected MD 10% POE","MVA","Non-Coincident"]
["ED_MDU541_10915",null,null,null,null,"Coincident"]
["ED_MDU541_10916",null,null,"Weather Corrected MD 50% POE","MW","Non-Coincident"]
["ED_MDU541_10917",null,null,null,null,"Coincident"]
["ED_MDU541_10918",null,null,"Weather Corrected MD 50% POE","MVA","Non-Coincident"]
["ED_MDU541_10919",null,null,null,null,"Coincident"]
["ED_MDU541_10920",null,"<Enter substation name>","Substation Rating","MVA","Non-Coincident"]
["ED_MDU541_10921",null,null,null,null,"Coincident"]
["ED_MDU541_10922",null,null,"Raw Adjusted MD","MW","Non-Coincident"]
["ED_MDU541_10923",null,null,null,null,"Coincident"]
["ED_MDU541_10924",null,null,"Raw Adjusted MD","MVA","Non-Coincident"]
["ED_MDU541_10925",null,null,null,null,"Coincident"]
["ED_MDU541_10926",null,null,"Date MD occurred",null,"Non-Coincident"]
["ED_MDU541_10927",null,null,null,null,"Coincident"]
["ED_MDU541_10928",null,null,"Half hour time period MD occurred",null,"Non-Coincident"]
["ED_MDU541_10929",null,null,null,null,"Coincident"]
["ED_MDU541_10930",null,null,"Winter/Summer Peaking",null,"Non-Coincident"]
["ED_MDU541_10931",null,null,null,null,"Coincident"]
["ED_MDU541_10932",null,null,"Adjustments - Embedded generation","MW","Non-Coincident"]
["ED_MDU541_10933",null,null,null,null,"Coincident"]
["ED_MDU541_10934",null,null,"Weather Corrected MD 10% POE","MW","Non-Coincident"]
["ED_MDU541_10935",null,null,null,null,"Coincident"]
["ED_MDU541_10936",null,null,"Weather Corrected MD 10% POE","MVA","Non-Coincident"]
["ED_MDU541_10937",null,null,null,null,"Coincident"]
["ED_MDU541_10938",null,null,"Weather Corrected MD 50% POE","MW","Non-Coincident"]
["ED_MDU541_10939",null,null,null,null,"Coincident"]
["ED_MDU541_10940",null,null,"Weather Corrected MD 50% POE","MVA","Non-Coincident"]
["ED_MDU541_10941",null,null,null,null,"Coincident"]
["ED_MDU541_10942",null,"<Enter substation name>","Substation Rating","MVA","Non-Coincident"]
["ED_MDU541_10943",null,null,null,null,"Coincident"]
["ED_MDU541_10944",null,null,"Raw Adjusted MD","MW","Non-Coincident"]
["ED_MDU541_10945",null,null,null,null,"Coincident"]
["ED_MDU541_10946",null,null,"Raw Adjusted MD","MVA","Non-Coincident"]
["ED_MDU541_10947",null,null,null,null,"Coincident"]
["ED_MDU541_10948",null,null,"Date MD occurred",null,"Non-Coincident"]
["ED_MDU541_10949",null,null,null,null,"Coincident"]
["ED_MDU541_10950",null,null,"Half hour time period MD occurred",null,"Non-Coincident"]
["ED_MDU541_10951",null,null,null,null,"Coincident"]
["ED_MDU541_10952",null,null,"Winter/Summer Peaking",null,"Non-Coincident"]
["ED_MDU541_10953",null,null,null,null,"Coincident"]
["ED_MDU541_10954",null,null,"Adjustments - Embedded generation","MW","Non-Coincident"]
["ED_MDU541_10955",null,null,null,null,"Coincident"]
["ED_MDU541_10956",null,null,"Weather Corrected MD 10% POE","MW","Non-Coincident"]
["ED_MDU541_10957",null,null,null,null,"Coincident"]
["ED_MDU541_10958",null,null,"Weather Corrected MD 10% POE","MVA","Non-Coincident"]
["ED_MDU541_10959",null,null,null,null,"Coincident"]
["ED_MDU541_10960",null,null,"Weather Corrected MD 50% POE","MW","Non-Coincident"]
["ED_MDU541_10961",null,null,null,null,"Coincident"]
["ED_MDU541_10962",null,null,"Weather Corrected MD 50% POE","MVA","Non-Coincident"]
["ED_MDU541_10963",null,null,null,null,"Coincident"]
["ED_MDU541_10964",null,"<Enter substation name>","Substation Rating","MVA","Non-Coincident"]
["ED_MDU541_10965",null,null,null,null,"Coincident"]
["ED_MDU541_10966",null,null,"Raw Adjusted MD","MW","Non-Coincident"]
["ED_MDU541_10967",null,null,null,null,"Coincident"]
["ED_MDU541_10968",null,null,"Raw Adjusted MD","MVA","Non-Coincident"]
["ED_MDU541_10969",null,null,null,null,"Coincident"]
["ED_MDU541_10970",null,null,"Date MD occurred",null,"Non-Coincident"]
["ED_MDU541_10971",null,null,null,null,"Coincident"]
["ED_MDU541_10972",null,null,"Half hour time period MD occurred",null,"Non-Coincident"]
["ED_MDU541_10973",null,null,null,null,"Coincident"]
["ED_MDU541_10974",null,null,"Winter/Summer Peaking",null,"Non-Coincident"]
["ED_MDU541_10975",null,null,null,null,"Coincident"]
["ED_MDU541_10976",null,null,"Adjustments - Embedded generation","MW","Non-Coincident"]
["ED_MDU541_10977",null,null,null,null,"Coincident"]
["ED_MDU541_10978",null,null,"Weather Corrected MD 10% POE","MW","Non-Coincident"]
["ED_MDU541_10979",null,null,null,null,"Coincident"]
["ED_MDU541_10980",null,null,"Weather Corrected MD 10% POE","MVA","Non-Coincident"]
["ED_MDU541_10981",null,null,null,null,"Coincident"]
["ED_MDU541_10982",null,null,"Weather Corrected MD 50% POE","MW","Non-Coincident"]
["ED_MDU541_10983",null,null,null,null,"Coincident"]
["ED_MDU541_10984",null,null,"Weather Corrected MD 50% POE","MVA","Non-Coincident"]
["ED_MDU541_10985",null,null,null,null,"Coincident"]
["ED_MDU541_10986",null,"<Enter substation name>","Substation Rating","MVA","Non-Coincident"]
["ED_MDU541_10987",null,null,null,null,"Coincident"]
["ED_MDU541_10988",null,null,"Raw Adjusted MD","MW","Non-Coincident"]
["ED_MDU541_10989",null,null,null,null,"Coincident"]
["ED_MDU541_10990",null,null,"Raw Adjusted MD","MVA","Non-Coincident"]
["ED_MDU541_10991",null,null,null,null,"Coincident"]
["ED_MDU541_10992",null,null,"Date MD occurred",null,"Non-Coincident"]
["ED_MDU541_10993",null,null,null,null,"Coincident"]
["ED_MDU541_10994",null,null,"Half hour time period MD occurred",null,"Non-Coincident"]
["ED_MDU541_10995",null,null,null,null,"Coincident"]
["ED_MDU541_10996",null,null,"Winter/Summer Peaking",null,"Non-Coincident"]
["ED_MDU541_10997",null,null,null,null,"Coincident"]
["ED_MDU541_10998",null,null,"Adjustments - Embedded generation","MW","Non-Coincident"]
["ED_MDU541_10999",null,null,null,null,"Coincident"]
["ED_MDU541_11000",null,null,"Weather Corrected MD 10% POE","MW","Non-Coincident"]
["ED_MDU541_11001",null,null,null,null,"Coincident"]
["ED_MDU541_11002",null,null,"Weather Corrected MD 10% POE","MVA","Non-Coincident"]
["ED_MDU541_11003",null,null,null,null,"Coincident"]
["ED_MDU541_11004",null,null,"Weather Corrected MD 50% POE","MW","Non-Coincident"]
["ED_MDU541_11005",null,null,null,null,"Coincident"]
["ED_MDU541_11006",null,null,"Weather Corrected MD 50% POE","MVA","Non-Coincident"]
["ED_MDU541_11007",null,null,null,null,"Coincident"]
["ED_MDU541_11008",null,"<Enter substation name>","Substation Rating","MVA","Non-Coincident"]
["ED_MDU541_11009",null,null,null,null,"Coincident"]
["ED_MDU541_11010",null,null,"Raw Adjusted MD","MW","Non-Coincident"]
["ED_MDU541_11011",null,null,null,null,"Coincident"]
["ED_MDU541_11012",null,null,"Raw Adjusted MD","MVA","Non-Coincident"]
["ED_MDU541_11013",null,null,null,null,"Coincident"]
["ED_MDU541_11014",null,null,"Date MD occurred",null,"Non-Coincident"]
["ED_MDU541_11015",null,null,null,null,"Coincident"]
["ED_MDU541_11016",null,null,"Half hour time period MD occurred",null,"Non-Coincident"]
["ED_MDU541_11017",null,null,null,null,"Coincident"]
["ED_MDU541_11018",null,null,"Winter/Summer Peaking",null,"Non-Coincident"]
["ED_MDU541_11019",null,null,null,null,"Coincident"]
["ED_MDU541_11020",null,null,"Adjustments - Embedded generation","MW","Non-Coincident"]
["ED_MDU541_11021",null,null,null,null,"Coincident"]
["ED_MDU541_11022",null,null,"Weather Corrected MD 10% POE","MW","Non-Coincident"]
["ED_MDU541_11023",null,null,null,null,"Coincident"]
["ED_MDU541_11024",null,null,"Weather Corrected MD 10% POE","MVA","Non-Coincident"]
["ED_MDU541_11025",null,null,null,null,"Coincident"]
["ED_MDU541_11026",null,null,"Weather Corrected MD 50% POE","MW","Non-Coincident"]
["ED_MDU541_11027",null,null,null,null,"Coincident"]
["ED_MDU541_11028",null,null,"Weather Corrected MD 50% POE","MVA","Non-Coincident"]
["ED_MDU541_11029",null,null,null,null,"Coincident"]
["ED_MDU541_11030",null,"<Enter substation name>","Substation Rating","MVA","Non-Coincident"]
["ED_MDU541_11031",null,null,null,null,"Coincident"]
["ED_MDU541_11032",null,null,"Raw Adjusted MD","MW","Non-Coincident"]
["ED_MDU541_11033",null,null,null,null,"Coincident"]
["ED_MDU541_11034",null,null,"Raw Adjusted MD","MVA","Non-Coincident"]
["ED_MDU541_11035",null,null,null,null,"Coincident"]
["ED_MDU541_11036",null,null,"Date MD occurred",null,"Non-Coincident"]
["ED_MDU541_11037",null,null,null,null,"Coincident"]
["ED_MDU541_11038",null,null,"Half hour time period MD occurred",null,"Non-Coincident"]
["ED_MDU541_11039",null,null,null,null,"Coincident"]
["ED_MDU541_11040",null,null,"Winter/Summer Peaking",null,"Non-Coincident"]
["ED_MDU541_11041",null,null,null,null,"Coincident"]
["ED_MDU541_11042",null,null,"Adjustments - Embedded generation","MW","Non-Coincident"]
["ED_MDU541_11043",null,null,null,null,"Coincident"]
["ED_MDU541_11044",null,null,"Weather Corrected MD 10% POE","MW","Non-Coincident"]
["ED_MDU541_11045",null,null,null,null,"Coincident"]
["ED_MDU541_11046",null,null,"Weather Corrected MD 10% POE","MVA","Non-Coincident"]
["ED_MDU541_11047",null,null,null,null,"Coincident"]
["ED_MDU541_11048",null,null,"Weather Corrected MD 50% POE","MW","Non-Coincident"]
["ED_MDU541_11049",null,null,null,null,"Coincident"]
["ED_MDU541_11050",null,null,"Weather Corrected MD 50% POE","MVA","Non-Coincident"]
["ED_MDU541_11051",null,null,null,null,"Coincident"]
["ED_MDU541_11052",null,"<Enter substation name>","Substation Rating","MVA","Non-Coincident"]
["ED_MDU541_11053",null,null,null,null,"Coincident"]
["ED_MDU541_11054",null,null,"Raw Adjusted MD","MW","Non-Coincident"]
["ED_MDU541_11055",null,null,null,null,"Coincident"]
["ED_MDU541_11056",null,null,"Raw Adjusted MD","MVA","Non-Coincident"]
["ED_MDU541_11057",null,null,null,null,"Coincident"]
["ED_MDU541_11058",null,null,"Date MD occurred",null,"Non-Coincident"]
["ED_MDU541_11059",null,null,null,null,"Coincident"]
["ED_MDU541_11060",null,null,"Half hour time period MD occurred",null,"Non-Coincident"]
["ED_MDU541_11061",null,null,null,null,"Coincident"]
["ED_MDU541_11062",null,null,"Winter/Summer Peaking",null,"Non-Coincident"]
["ED_MDU541_11063",null,null,null,null,"Coincident"]
["ED_MDU541_11064",null,null,"Adjustments - Embedded generation","MW","Non-Coincident"]
["ED_MDU541_11065",null,null,null,null,"Coincident"]
["ED_MDU541_11066",null,null,"Weather Corrected MD 10% POE","MW","Non-Coincident"]
["ED_MDU541_11067",null,null,null,null,"Coincident"]
["ED_MDU541_11068",null,null,"Weather Corrected MD 10% POE","MVA","Non-Coincident"]
["ED_MDU541_11069",null,null,null,null,"Coincident"]
["ED_MDU541_11070",null,null,"Weather Corrected MD 50% POE","MW","Non-Coincident"]
["ED_MDU541_11071",null,null,null,null,"Coincident"]
["ED_MDU541_11072",null,null,"Weather Corrected MD 50% POE","MVA","Non-Coincident"]
["ED_MDU541_11073",null,null,null,null,"Coincident"]
["ED_MDU541_11074",null,"<Enter substation name>","Substation Rating","MVA","Non-Coincident"]
["ED_MDU541_11075",null,null,null,null,"Coincident"]
["ED_MDU541_11076",null,null,"Raw Adjusted MD","MW","Non-Coincident"]
["ED_MDU541_11077",null,null,null,null,"Coincident"]
["ED_MDU541_11078",null,null,"Raw Adjusted MD","MVA","Non-Coincident"]
["ED_MDU541_11079",null,null,null,null,"Coincident"]
["ED_MDU541_11080",null,null,"Date MD occurred",null,"Non-Coincident"]
["ED_MDU541_11081",null,null,null,null,"Coincident"]
["ED_MDU541_11082",null,null,"Half hour time period MD occurred",null,"Non-Coincident"]
["ED_MDU541_11083",null,null,null,null,"Coincident"]
["ED_MDU541_11084",null,null,"Winter/Summer Peaking",null,"Non-Coincident"]
["ED_MDU541_11085",null,null,null,null,"Coincident"]
["ED_MDU541_11086",null,null,"Adjustments - Embedded generation","MW","Non-Coincident"]
["ED_MDU541_11087",null,null,null,null,"Coincident"]
["ED_MDU541_11088",null,null,"Weather Corrected MD 10% POE","MW","Non-Coincident"]
["ED_MDU541_11089",null,null,null,null,"Coincident"]
["ED_MDU541_11090",null,null,"Weather Corrected MD 10% POE","MVA","Non-Coincident"]
["ED_MDU541_11091",null,null,null,null,"Coincident"]
["ED_MDU541_11092",null,null,"Weather Corrected MD 50% POE","MW","Non-Coincident"]
["ED_MDU541_11093",null,null,null,null,"Coincident"]
["ED_MDU541_11094",null,null,"Weather Corrected MD 50% POE","MVA","Non-Coincident"]
["ED_MDU541_11095",null,null,null,null,"Coincident"]
["ED_MDU541_11096",null,"<Enter substation name>","Substation Rating","MVA","Non-Coincident"]
["ED_MDU541_11097",null,null,null,null,"Coincident"]
["ED_MDU541_11098",null,null,"Raw Adjusted MD","MW","Non-Coincident"]
["ED_MDU541_11099",null,null,null,null,"Coincident"]
["ED_MDU541_11100",null,null,"Raw Adjusted MD","MVA","Non-Coincident"]
["ED_MDU541_11101",null,null,null,null,"Coincident"]
["ED_MDU541_11102",null,null,"Date MD occurred",null,"Non-Coincident"]
["ED_MDU541_11103",null,null,null,null,"Coincident"]
["ED_MDU541_11104",null,null,"Half hour time period MD occurred",null,"Non-Coincident"]
["ED_MDU541_11105",null,null,null,null,"Coincident"]
["ED_MDU541_11106",null,null,"Winter/Summer Peaking",null,"Non-Coincident"]
["ED_MDU541_11107",null,null,null,null,"Coincident"]
["ED_MDU541_11108",null,null,"Adjustments - Embedded generation","MW","Non-Coincident"]
["ED_MDU541_11109",null,null,null,null,"Coincident"]
["ED_MDU541_11110",null,null,"Weather Corrected MD 10% POE","MW","Non-Coincident"]
["ED_MDU541_11111",null,null,null,null,"Coincident"]
["ED_MDU541_11112",null,null,"Weather Corrected MD 10% POE","MVA","Non-Coincident"]
["ED_MDU541_11113",null,null,null,null,"Coincident"]
["ED_MDU541_11114",null,null,"Weather Corrected MD 50% POE","MW","Non-Coincident"]
["ED_MDU541_11115",null,null,null,null,"Coincident"]
["ED_MDU541_11116",null,null,"Weather Corrected MD 50% POE","MVA","Non-Coincident"]
["ED_MDU541_11117",null,null,null,null,"Coincident"]
["ED_MDU541_11118",null,"<Enter substation name>","Substation Rating","MVA","Non-Coincident"]
["ED_MDU541_11119",null,null,null,null,"Coincident"]
["ED_MDU541_11120",null,null,"Raw Adjusted MD","MW","Non-Coincident"]
["ED_MDU541_11121",null,null,null,null,"Coincident"]
["ED_MDU541_11122",null,null,"Raw Adjusted MD","MVA","Non-Coincident"]
["ED_MDU541_11123",null,null,null,null,"Coincident"]
["ED_MDU541_11124",null,null,"Date MD occurred",null,"Non-Coincident"]
["ED_MDU541_11125",null,null,null,null,"Coincident"]
["ED_MDU541_11126",null,null,"Half hour time period MD occurred",null,"Non-Coincident"]
["ED_MDU541_11127",null,null,null,null,"Coincident"]
["ED_MDU541_11128",null,null,"Winter/Summer Peaking",null,"Non-Coincident"]
["ED_MDU541_11129",null,null,null,null,"Coincident"]
["ED_MDU541_11130",null,null,"Adjustments - Embedded generation","MW","Non-Coincident"]
["ED_MDU541_11131",null,null,null,null,"Coincident"]
["ED_MDU541_11132",null,null,"Weather Corrected MD 10% POE","MW","Non-Coincident"]
["ED_MDU541_11133",null,null,null,null,"Coincident"]
["ED_MDU541_11134",null,null,"Weather Corrected MD 10% POE","MVA","Non-Coincident"]
["ED_MDU541_11135",null,null,null,null,"Coincident"]
["ED_MDU541_11136",null,null,"Weather Corrected MD 50% POE","MW","Non-Coincident"]
["ED_MDU541_11137",null,null,null,null,"Coincident"]
["ED_MDU541_11138",null,null,"Weather Corrected MD 50% POE","MVA","Non-Coincident"]
["ED_MDU541_11139",null,null,null,null,"Coincident"]
["ED_MDU541_11140",null,"<Enter substation name>","Substation Rating","MVA","Non-Coincident"]
["ED_MDU541_11141",null,null,null,null,"Coincident"]
["ED_MDU541_11142",null,null,"Raw Adjusted MD","MW","Non-Coincident"]
["ED_MDU541_11143",null,null,null,null,"Coincident"]
["ED_MDU541_11144",null,null,"Raw Adjusted MD","MVA","Non-Coincident"]
["ED_MDU541_11145",null,null,null,null,"Coincident"]
["ED_MDU541_11146",null,null,"Date MD occurred",null,"Non-Coincident"]
["ED_MDU541_11147",null,null,null,null,"Coincident"]
["ED_MDU541_11148",null,null,"Half hour time period MD occurred",null,"Non-Coincident"]
["ED_MDU541_11149",null,null,null,null,"Coincident"]
["ED_MDU541_11150",null,null,"Winter/Summer Peaking",null,"Non-Coincident"]
["ED_MDU541_11151",null,null,null,null,"Coincident"]
["ED_MDU541_11152",null,null,"Adjustments - Embedded generation","MW","Non-Coincident"]
["ED_MDU541_11153",null,null,null,null,"Coincident"]
["ED_MDU541_11154",null,null,"Weather Corrected MD 10% POE","MW","Non-Coincident"]
["ED_MDU541_11155",null,null,null,null,"Coincident"]
["ED_MDU541_11156",null,null,"Weather Corrected MD 10% POE","MVA","Non-Coincident"]
["ED_MDU541_11157",null,null,null,null,"Coincident"]
["ED_MDU541_11158",null,null,"Weather Corrected MD 50% POE","MW","Non-Coincident"]
["ED_MDU541_11159",null,null,null,null,"Coincident"]
["ED_MDU541_11160",null,null,"Weather Corrected MD 50% POE","MVA","Non-Coincident"]
["ED_MDU541_11161",null,null,null,null,"Coincident"]
["ED_MDU541_11162",null,"<Enter substation name>","Substation Rating","MVA","Non-Coincident"]
["ED_MDU541_11163",null,null,null,null,"Coincident"]
["ED_MDU541_11164",null,null,"Raw Adjusted MD","MW","Non-Coincident"]
["ED_MDU541_11165",null,null,null,null,"Coincident"]
["ED_MDU541_11166",null,null,"Raw Adjusted MD","MVA","Non-Coincident"]
["ED_MDU541_11167",null,null,null,null,"Coincident"]
["ED_MDU541_11168",null,null,"Date MD occurred",null,"Non-Coincident"]
["ED_MDU541_11169",null,null,null,null,"Coincident"]
["ED_MDU541_11170",null,null,"Half hour time period MD occurred",null,"Non-Coincident"]
["ED_MDU541_11171",null,null,null,null,"Coincident"]
["ED_MDU541_11172",null,null,"Winter/Summer Peaking",null,"Non-Coincident"]
["ED_MDU541_11173",null,null,null,null,"Coincident"]
["ED_MDU541_11174",null,null,"Adjustments - Embedded generation","MW","Non-Coincident"]
["ED_MDU541_11175",null,null,null,null,"Coincident"]
["ED_MDU541_11176",null,null,"Weather Corrected MD 10% POE","MW","Non-Coincident"]
["ED_MDU541_11177",null,null,null,null,"Coincident"]
["ED_MDU541_11178",null,null,"Weather Corrected MD 10% POE","MVA","Non-Coincident"]
["ED_MDU541_11179",null,null,null,null,"Coincident"]
["ED_MDU541_11180",null,null,"Weather Corrected MD 50% POE","MW","Non-Coincident"]
["ED_MDU541_11181",null,null,null,null,"Coincident"]
["ED_MDU541_11182",null,null,"Weather Corrected MD 50% POE","MVA","Non-Coincident"]
["ED_MDU541_11183",null,null,null,null,"Coincident"]
["ED_MDU541_11184",null,"<Enter substation name>","Substation Rating","MVA","Non-Coincident"]
["ED_MDU541_11185",null,null,null,null,"Coincident"]
["ED_MDU541_11186",null,null,"Raw Adjusted MD","MW","Non-Coincident"]
["ED_MDU541_11187",null,null,null,null,"Coincident"]
["ED_MDU541_11188",null,null,"Raw Adjusted MD","MVA","Non-Coincident"]
["ED_MDU541_11189",null,null,null,null,"Coincident"]
["ED_MDU541_11190",null,null,"Date MD occurred",null,"Non-Coincident"]
["ED_MDU541_11191",null,null,null,null,"Coincident"]
["ED_MDU541_11192",null,null,"Half hour time period MD occurred",null,"Non-Coincident"]
["ED_MDU541_11193",null,null,null,null,"Coincident"]
["ED_MDU541_11194",null,null,"Winter/Summer Peaking",null,"Non-Coincident"]
["ED_MDU541_11195",null,null,null,null,"Coincident"]
["ED_MDU541_11196",null,null,"Adjustments - Embedded generation","MW","Non-Coincident"]
["ED_MDU541_11197",null,null,null,null,"Coincident"]
["ED_MDU541_11198",null,null,"Weather Corrected MD 10% POE","MW","Non-Coincident"]
["ED_MDU541_11199",null,null,null,null,"Coincident"]
["ED_MDU541_11200",null,null,"Weather Corrected MD 10% POE","MVA","Non-Coincident"]
["ED_MDU541_11201",null,null,null,null,"Coincident"]
["ED_MDU541_11202",null,null,"Weather Corrected MD 50% POE","MW","Non-Coincident"]
["ED_MDU541_11203",null,null,null,null,"Coincident"]
["ED_MDU541_11204",null,null,"Weather Corrected MD 50% POE","MVA","Non-Coincident"]
["ED_MDU541_11205",null,null,null,null,"Coincident"]
["ED_MDU541_11206",null,"<Enter substation name>","Substation Rating","MVA","Non-Coincident"]
["ED_MDU541_11207",null,null,null,null,"Coincident"]
["ED_MDU541_11208",null,null,"Raw Adjusted MD","MW","Non-Coincident"]
["ED_MDU541_11209",null,null,null,null,"Coincident"]
["ED_MDU541_11210",null,null,"Raw Adjusted MD","MVA","Non-Coincident"]
["ED_MDU541_11211",null,null,null,null,"Coincident"]
["ED_MDU541_11212",null,null,"Date MD occurred",null,"Non-Coincident"]
["ED_MDU541_11213",null,null,null,null,"Coincident"]
["ED_MDU541_11214",null,null,"Half hour time period MD occurred",null,"Non-Coincident"]
["ED_MDU541_11215",null,null,null,null,"Coincident"]
["ED_MDU541_11216",null,null,"Winter/Summer Peaking",null,"Non-Coincident"]
["ED_MDU541_11217",null,null,null,null,"Coincident"]
["ED_MDU541_11218",null,null,"Adjustments - Embedded generation","MW","Non-Coincident"]
["ED_MDU541_11219",null,null,null,null,"Coincident"]
["ED_MDU541_11220",null,null,"Weather Corrected MD 10% POE","MW","Non-Coincident"]
["ED_MDU541_11221",null,null,null,null,"Coincident"]
["ED_MDU541_11222",null,null,"Weather Corrected MD 10% POE","MVA","Non-Coincident"]
["ED_MDU541_11223",null,null,null,null,"Coincident"]
["ED_MDU541_11224",null,null,"Weather Corrected MD 50% POE","MW","Non-Coincident"]
["ED_MDU541_11225",null,null,null,null,"Coincident"]
["ED_MDU541_11226",null,null,"Weather Corrected MD 50% POE","MVA","Non-Coincident"]
["ED_MDU541_11227",null,null,null,null,"Coincident"]
["ED_MDU541_11228",null,"<Enter substation name>","Substation Rating","MVA","Non-Coincident"]
["ED_MDU541_11229",null,null,null,null,"Coincident"]
["ED_MDU541_11230",null,null,"Raw Adjusted MD","MW","Non-Coincident"]
["ED_MDU541_11231",null,null,null,null,"Coincident"]
["ED_MDU541_11232",null,null,"Raw Adjusted MD","MVA","Non-Coincident"]
["ED_MDU541_11233",null,null,null,null,"Coincident"]
["ED_MDU541_11234",null,null,"Date MD occurred",null,"Non-Coincident"]
["ED_MDU541_11235",null,null,null,null,"Coincident"]
["ED_MDU541_11236",null,null,"Half hour time period MD occurred",null,"Non-Coincident"]
["ED_MDU541_11237",null,null,null,null,"Coincident"]
["ED_MDU541_11238",null,null,"Winter/Summer Peaking",null,"Non-Coincident"]
["ED_MDU541_11239",null,null,null,null,"Coincident"]
["ED_MDU541_11240",null,null,"Adjustments - Embedded generation","MW","Non-Coincident"]
["ED_MDU541_11241",null,null,null,null,"Coincident"]
["ED_MDU541_11242",null,null,"Weather Corrected MD 10% POE","MW","Non-Coincident"]
["ED_MDU541_11243",null,null,null,null,"Coincident"]
["ED_MDU541_11244",null,null,"Weather Corrected MD 10% POE","MVA","Non-Coincident"]
["ED_MDU541_11245",null,null,null,null,"Coincident"]
["ED_MDU541_11246",null,null,"Weather Corrected MD 50% POE","MW","Non-Coincident"]
["ED_MDU541_11247",null,null,null,null,"Coincident"]
["ED_MDU541_11248",null,null,"Weather Corrected MD 50% POE","MVA","Non-Coincident"]
["ED_MDU541_11249",null,null,null,null,"Coincident"]
["ED_MDU541_11250",null,"<Enter substation name>","Substation Rating","MVA","Non-Coincident"]
["ED_MDU541_11251",null,null,null,null,"Coincident"]
["ED_MDU541_11252",null,null,"Raw Adjusted MD","MW","Non-Coincident"]
["ED_MDU541_11253",null,null,null,null,"Coincident"]
["ED_MDU541_11254",null,null,"Raw Adjusted MD","MVA","Non-Coincident"]
["ED_MDU541_11255",null,null,null,null,"Coincident"]
["ED_MDU541_11256",null,null,"Date MD occurred",null,"Non-Coincident"]
["ED_MDU541_11257",null,null,null,null,"Coincident"]
["ED_MDU541_11258",null,null,"Half hour time period MD occurred",null,"Non-Coincident"]
["ED_MDU541_11259",null,null,null,null,"Coincident"]
["ED_MDU541_11260",null,null,"Winter/Summer Peaking",null,"Non-Coincident"]
["ED_MDU541_11261",null,null,null,null,"Coincident"]
["ED_MDU541_11262",null,null,"Adjustments - Embedded generation","MW","Non-Coincident"]
["ED_MDU541_11263",null,null,null,null,"Coincident"]
["ED_MDU541_11264",null,null,"Weather Corrected MD 10% POE","MW","Non-Coincident"]
["ED_MDU541_11265",null,null,null,null,"Coincident"]
["ED_MDU541_11266",null,null,"Weather Corrected MD 10% POE","MVA","Non-Coincident"]
["ED_MDU541_11267",null,null,null,null,"Coincident"]
["ED_MDU541_11268",null,null,"Weather Corrected MD 50% POE","MW","Non-Coincident"]
["ED_MDU541_11269",null,null,null,null,"Coincident"]
["ED_MDU541_11270",null,null,"Weather Corrected MD 50% POE","MVA","Non-Coincident"]
["ED_MDU541_11271",null,null,null,null,"Coincident"]
["ED_MDU541_11272",null,"<Enter substation name>","Substation Rating","MVA","Non-Coincident"]
["ED_MDU541_11273",null,null,null,null,"Coincident"]
["ED_MDU541_11274",null,null,"Raw Adjusted MD","MW","Non-Coincident"]
["ED_MDU541_11275",null,null,null,null,"Coincident"]
["ED_MDU541_11276",null,null,"Raw Adjusted MD","MVA","Non-Coincident"]
["ED_MDU541_11277",null,null,null,null,"Coincident"]
["ED_MDU541_11278",null,null,"Date MD occurred",null,"Non-Coincident"]
["ED_MDU541_11279",null,null,null,null,"Coincident"]
["ED_MDU541_11280",null,null,"Half hour time period MD occurred",null,"Non-Coincident"]
["ED_MDU541_11281",null,null,null,null,"Coincident"]
["ED_MDU541_11282",null,null,"Winter/Summer Peaking",null,"Non-Coincident"]
["ED_MDU541_11283",null,null,null,null,"Coincident"]
["ED_MDU541_11284",null,null,"Adjustments - Embedded generation","MW","Non-Coincident"]
["ED_MDU541_11285",null,null,null,null,"Coincident"]
["ED_MDU541_11286",null,null,"Weather Corrected MD 10% POE","MW","Non-Coincident"]
["ED_MDU541_11287",null,null,null,null,"Coincident"]
["ED_MDU541_11288",null,null,"Weather Corrected MD 10% POE","MVA","Non-Coincident"]
["ED_MDU541_11289",null,null,null,null,"Coincident"]
["ED_MDU541_11290",null,null,"Weather Corrected MD 50% POE","MW","Non-Coincident"]
["ED_MDU541_11291",null,null,null,null,"Coincident"]
["ED_MDU541_11292",null,null,"Weather Corrected MD 50% POE","MVA","Non-Coincident"]
["ED_MDU541_11293",null,null,null,null,"Coincident"]
["ED_MDU541_11294",null,"<Enter substation name>","Substation Rating","MVA","Non-Coincident"]
["ED_MDU541_11295",null,null,null,null,"Coincident"]
["ED_MDU541_11296",null,null,"Raw Adjusted MD","MW","Non-Coincident"]
["ED_MDU541_11297",null,null,null,null,"Coincident"]
["ED_MDU541_11298",null,null,"Raw Adjusted MD","MVA","Non-Coincident"]
["ED_MDU541_11299",null,null,null,null,"Coincident"]
["ED_MDU541_11300",null,null,"Date MD occurred",null,"Non-Coincident"]
["ED_MDU541_11301",null,null,null,null,"Coincident"]
["ED_MDU541_11302",null,null,"Half hour time period MD occurred",null,"Non-Coincident"]
["ED_MDU541_11303",null,null,null,null,"Coincident"]
["ED_MDU541_11304",null,null,"Winter/Summer Peaking",null,"Non-Coincident"]
["ED_MDU541_11305",null,null,null,null,"Coincident"]
["ED_MDU541_11306",null,null,"Adjustments - Embedded generation","MW","Non-Coincident"]
["ED_MDU541_11307",null,null,null,null,"Coincident"]
["ED_MDU541_11308",null,null,"Weather Corrected MD 10% POE","MW","Non-Coincident"]
["ED_MDU541_11309",null,null,null,null,"Coincident"]
["ED_MDU541_11310",null,null,"Weather Corrected MD 10% POE","MVA","Non-Coincident"]
["ED_MDU541_11311",null,null,null,null,"Coincident"]
["ED_MDU541_11312",null,null,"Weather Corrected MD 50% POE","MW","Non-Coincident"]
["ED_MDU541_11313",null,null,null,null,"Coincident"]
["ED_MDU541_11314",null,null,"Weather Corrected MD 50% POE","MVA","Non-Coincident"]
["ED_MDU541_11315",null,null,null,null,"Coincident"]
["ED_MDU541_11316",null,"<Enter substation name>","Substation Rating","MVA","Non-Coincident"]
["ED_MDU541_11317",null,null,null,null,"Coincident"]
["ED_MDU541_11318",null,null,"Raw Adjusted MD","MW","Non-Coincident"]
["ED_MDU541_11319",null,null,null,null,"Coincident"]
["ED_MDU541_11320",null,null,"Raw Adjusted MD","MVA","Non-Coincident"]
["ED_MDU541_11321",null,null,null,null,"Coincident"]
["ED_MDU541_11322",null,null,"Date MD occurred",null,"Non-Coincident"]
["ED_MDU541_11323",null,null,null,null,"Coincident"]
["ED_MDU541_11324",null,null,"Half hour time period MD occurred",null,"Non-Coincident"]
["ED_MDU541_11325",null,null,null,null,"Coincident"]
["ED_MDU541_11326",null,null,"Winter/Summer Peaking",null,"Non-Coincident"]
["ED_MDU541_11327",null,null,null,null,"Coincident"]
["ED_MDU541_11328",null,null,"Adjustments - Embedded generation","MW","Non-Coincident"]
["ED_MDU541_11329",null,null,null,null,"Coincident"]
["ED_MDU541_11330",null,null,"Weather Corrected MD 10% POE","MW","Non-Coincident"]
["ED_MDU541_11331",null,null,null,null,"Coincident"]
["ED_MDU541_11332",null,null,"Weather Corrected MD 10% POE","MVA","Non-Coincident"]
["ED_MDU541_11333",null,null,null,null,"Coincident"]
["ED_MDU541_11334",null,null,"Weather Corrected MD 50% POE","MW","Non-Coincident"]
["ED_MDU541_11335",null,null,null,null,"Coincident"]
["ED_MDU541_11336",null,null,"Weather Corrected MD 50% POE","MVA","Non-Coincident"]
["ED_MDU541_11337",null,null,null,null,"Coincident"]
["ED_MDU541_11338",null,"<Enter substation name>","Substation Rating","MVA","Non-Coincident"]
["ED_MDU541_11339",null,null,null,null,"Coincident"]
["ED_MDU541_11340",null,null,"Raw Adjusted MD","MW","Non-Coincident"]
["ED_MDU541_11341",null,null,null,null,"Coincident"]
["ED_MDU541_11342",null,null,"Raw Adjusted MD","MVA","Non-Coincident"]
["ED_MDU541_11343",null,null,null,null,"Coincident"]
["ED_MDU541_11344",null,null,"Date MD occurred",null,"Non-Coincident"]
["ED_MDU541_11345",null,null,null,null,"Coincident"]
["ED_MDU541_11346",null,null,"Half hour time period MD occurred",null,"Non-Coincident"]
["ED_MDU541_11347",null,null,null,null,"Coincident"]
["ED_MDU541_11348",null,null,"Winter/Summer Peaking",null,"Non-Coincident"]
["ED_MDU541_11349",null,null,null,null,"Coincident"]
["ED_MDU541_11350",null,null,"Adjustments - Embedded generation","MW","Non-Coincident"]
["ED_MDU541_11351",null,null,null,null,"Coincident"]
["ED_MDU541_11352",null,null,"Weather Corrected MD 10% POE","MW","Non-Coincident"]
["ED_MDU541_11353",null,null,null,null,"Coincident"]
["ED_MDU541_11354",null,null,"Weather Corrected MD 10% POE","MVA","Non-Coincident"]
["ED_MDU541_11355",null,null,null,null,"Coincident"]
["ED_MDU541_11356",null,null,"Weather Corrected MD 50% POE","MW","Non-Coincident"]
["ED_MDU541_11357",null,null,null,null,"Coincident"]
["ED_MDU541_11358",null,null,"Weather Corrected MD 50% POE","MVA","Non-Coincident"]
["ED_MDU541_11359",null,null,null,null,"Coincident"]
["ED_MDU541_11360",null,"<Enter substation name>","Substation Rating","MVA","Non-Coincident"]
["ED_MDU541_11361",null,null,null,null,"Coincident"]
["ED_MDU541_11362",null,null,"Raw Adjusted MD","MW","Non-Coincident"]
["ED_MDU541_11363",null,null,null,null,"Coincident"]
["ED_MDU541_11364",null,null,"Raw Adjusted MD","MVA","Non-Coincident"]
["ED_MDU541_11365",null,null,null,null,"Coincident"]
["ED_MDU541_11366",null,null,"Date MD occurred",null,"Non-Coincident"]
["ED_MDU541_11367",null,null,null,null,"Coincident"]
["ED_MDU541_11368",null,null,"Half hour time period MD occurred",null,"Non-Coincident"]
["ED_MDU541_11369",null,null,null,null,"Coincident"]
["ED_MDU541_11370",null,null,"Winter/Summer Peaking",null,"Non-Coincident"]
["ED_MDU541_11371",null,null,null,null,"Coincident"]
["ED_MDU541_11372",null,null,"Adjustments - Embedded generation","MW","Non-Coincident"]
["ED_MDU541_11373",null,null,null,null,"Coincident"]
["ED_MDU541_11374",null,null,"Weather Corrected MD 10% POE","MW","Non-Coincident"]
["ED_MDU541_11375",null,null,null,null,"Coincident"]
["ED_MDU541_11376",null,null,"Weather Corrected MD 10% POE","MVA","Non-Coincident"]
["ED_MDU541_11377",null,null,null,null,"Coincident"]
["ED_MDU541_11378",null,null,"Weather Corrected MD 50% POE","MW","Non-Coincident"]
["ED_MDU541_11379",null,null,null,null,"Coincident"]
["ED_MDU541_11380",null,null,"Weather Corrected MD 50% POE","MVA","Non-Coincident"]
["ED_MDU541_11381",null,null,null,null,"Coincident"]
["ED_MDU541_11382",null,"<Enter substation name>","Substation Rating","MVA","Non-Coincident"]
["ED_MDU541_11383",null,null,null,null,"Coincident"]
["ED_MDU541_11384",null,null,"Raw Adjusted MD","MW","Non-Coincident"]
["ED_MDU541_11385",null,null,null,null,"Coincident"]
["ED_MDU541_11386",null,null,"Raw Adjusted MD","MVA","Non-Coincident"]
["ED_MDU541_11387",null,null,null,null,"Coincident"]
["ED_MDU541_11388",null,null,"Date MD occurred",null,"Non-Coincident"]
["ED_MDU541_11389",null,null,null,null,"Coincident"]
["ED_MDU541_11390",null,null,"Half hour time period MD occurred",null,"Non-Coincident"]
["ED_MDU541_11391",null,null,null,null,"Coincident"]
["ED_MDU541_11392",null,null,"Winter/Summer Peaking",null,"Non-Coincident"]
["ED_MDU541_11393",null,null,null,null,"Coincident"]
["ED_MDU541_11394",null,null,"Adjustments - Embedded generation","MW","Non-Coincident"]
["ED_MDU541_11395",null,null,null,null,"Coincident"]
["ED_MDU541_11396",null,null,"Weather Corrected MD 10% POE","MW","Non-Coincident"]
["ED_MDU541_11397",null,null,null,null,"Coincident"]
["ED_MDU541_11398",null,null,"Weather Corrected MD 10% POE","MVA","Non-Coincident"]
["ED_MDU541_11399",null,null,null,null,"Coincident"]
["ED_MDU541_11400",null,null,"Weather Corrected MD 50% POE","MW","Non-Coincident"]
["ED_MDU541_11401",null,null,null,null,"Coincident"]
["ED_MDU541_11402",null,null,"Weather Corrected MD 50% POE","MVA","Non-Coincident"]
["ED_MDU541_11403",null,null,null,null,"Coincident"]
["ED_MDU541_11404",null,"<Enter substation name>","Substation Rating","MVA","Non-Coincident"]
["ED_MDU541_11405",null,null,null,null,"Coincident"]
["ED_MDU541_11406",null,null,"Raw Adjusted MD","MW","Non-Coincident"]
["ED_MDU541_11407",null,null,null,null,"Coincident"]
["ED_MDU541_11408",null,null,"Raw Adjusted MD","MVA","Non-Coincident"]
["ED_MDU541_11409",null,null,null,null,"Coincident"]
["ED_MDU541_11410",null,null,"Date MD occurred",null,"Non-Coincident"]
["ED_MDU541_11411",null,null,null,null,"Coincident"]
["ED_MDU541_11412",null,null,"Half hour time period MD occurred",null,"Non-Coincident"]
["ED_MDU541_11413",null,null,null,null,"Coincident"]
["ED_MDU541_11414",null,null,"Winter/Summer Peaking",null,"Non-Coincident"]
["ED_MDU541_11415",null,null,null,null,"Coincident"]
["ED_MDU541_11416",null,null,"Adjustments - Embedded generation","MW","Non-Coincident"]
["ED_MDU541_11417",null,null,null,null,"Coincident"]
["ED_MDU541_11418",null,null,"Weather Corrected MD 10% POE","MW","Non-Coincident"]
["ED_MDU541_11419",null,null,null,null,"Coincident"]
["ED_MDU541_11420",null,null,"Weather Corrected MD 10% POE","MVA","Non-Coincident"]
["ED_MDU541_11421",null,null,null,null,"Coincident"]
["ED_MDU541_11422",null,null,"Weather Corrected MD 50% POE","MW","Non-Coincident"]
["ED_MDU541_11423",null,null,null,null,"Coincident"]
["ED_MDU541_11424",null,null,"Weather Corrected MD 50% POE","MVA","Non-Coincident"]
["ED_MDU541_11425",null,null,null,null,"Coincident"]

{"sheet":"6.3 Sustained interruptions","index":20,"n_rows":59999,"n_cols":16,"rows_kept":4500,"cut":true,"hidden":false,"merged":[[8,13,10,13],[11,13,15,13],[19,13,20,13]],"bounds":{"rows_first":2000,"rows_last":500,"rows_between":2000,"halvings":0}}
[null,{"$f":"(LOOKUP(dms_Model,dms_Model_List,dms_Worksheet_List))","v":"REGULATORY REPORTING STATEMENT"}]
[null,"Australian Distribution Co."]
[null,{"$f":"CONCATENATE(\"Category Analysis RIN response \",CRY)","v":"Category Analysis RIN response 2014-15"}]
[null,"6.3 SUSTAINED INTERRUPTIONS TO SUPPLY"]
[]
[null,{"$f":"CONCATENATE(\"TABLE 6.3.1 - SUSTAINED INTERRUPTIONS TO SUPPLY (for \", CRY,\")\")","v":"TABLE 6.3.1 - SUSTAINED INTERRUPTIONS TO SUPPLY (for 2014-15)"}]
[]
[null,"Date of event\n(DD/MM/YYYY)","Time of interruption\n(HH:MM)","Asset ID\n(eg. feeder ID)","Feeder classification\n(CBD, Urban, Short rural, Long rural)","Reason for interruption\n\n(select from options in drop-down box)","Detailed reason for interruption\n\n(select from options in column 'O' that correspond with reason in column 'F')","Number of customers affected by the interruption","Average duration of sustained customer\ninterruption\n(minutes)","Effect on unplanned SAIDI (by feeder classification)","Effect on unplanned SAIFI\n(by feeder classification)","MED",null,"Reason for interruption","Detailed reason for interruption"]
["SUS631_00001","2014-07-01","04:05:00","Jolimont","Urban","Planned",0,1,18,0,0,false,null,"Animal","Animal impact","Animal"]
["SUS631_00002","2014-07-01","08:25:24","Markell","Short Rural","Other","Single Premise",1,92.183333330322057,1.5554693124041924E-3,1.6873650107991362E-5,false,null,null,"Animal nesting/burrowing, etc and other","Asset failure"]
["SUS631_00003","2014-07-01","08:38:00","Copland","Urban","Planned",0,43,292.04651162790697,0,0,false,null,null,"Other","Other"]
["SUS631_00004","2014-07-01","08:44:00","Findlayson","Short Rural","Planned",0,11,225.81818181818181,0,0,false,null,"Asset failure","LV","Overloads"]
["SUS631_00005","2014-07-01","09:00:00","Lyons West","Urban","Planned",0,1,186,0,0,false,null,null,"Distribution substation","Planned"]
["SUS631_00006","2014-07-01","09:02:00","Grimshaw","Short Rural","Planned",0,19,238.10526315789477,0,0,false,null,null,"HV","Network business"]
["SUS631_00007","2014-07-01","09:17:00","Banyule","Short Rural","Planned",0,15,84.8,0,0,false,null,null,"Zone substation","Third party"]
["SUS631_00008","2014-07-01","09:25:00","Ebden","Urban","Planned",0,18,129.00000000000003,0,0,false,null,null,"Subtransmission","Unknown"]
["SUS631_00009","2014-07-01","10:02:00","Duffy","Urban","Planned",0,33,104,0,0,false,null,"Other","insert description of 'other'","Vegetation"]
["SUS631_00010","2014-07-01","12:53:00","Markell","Short Rural","Asset failure","LV",24,54,2.1868250539956804E-2,4.0496760259179265E-4,false,null,"Overloads","-","Weather"]
["SUS631_00011","2014-07-01","14:10:22","Hawkesbury","Short Rural","Other","Single Premise",1,53.800000003539026,9.0780237586965146E-4,1.6873650107991362E-5,false,null,"Planned","-","2 - STPIS Exclusion (3.3)(a)"]
["SUS631_00012","2014-07-01","15:37:40","Nicholson","Urban","Other","Single Premise",1,43.11666666646488,3.5208200638945042E-4,8.1657983701066453E-6,false,null,"Network business","Network error","3 - STPIS Exclusion (3.3)(a)"]
["SUS631_00013","2014-07-01","16:18:07","Black Mtn","Short Rural","Other","Single Premise",1,64.250000005122274,1.0841320195248763E-3,1.6873650107991362E-5,false,null,null,"Switching and protection error","4 - STPIS Exclusion (3.3)(a)"]
["SUS631_00014","2014-07-01","17:10:00","Nona","Urban","Third party","Other",27,30,6.614296679786383E-3,2.2047655599287942E-4,false,null,"Third party","Fire","5 - STPIS Exclusion (3.3)(a)"]
["SUS631_00015","2014-07-01","17:20:00","Belconnen Way North","Urban","Asset failure","LV",1,42,3.4296353154447912E-4,8.1657983701066453E-6,false,null,null,"Other","6 - STPIS Exclusion (3.3)(a)"]
["SUS631_00016","2014-07-01","22:58:52","Langdon","Urban","Other","Single Premise",1,594.96666667051613,4.8583778369658843E-3,8.1657983701066453E-6,false,null,null,"Dig-in","7 - STPIS Exclusion (3.3)(a)"]
["SUS631_00017","2014-07-02","00:57:30","Magenta","Urban","Other","Single Premise",1,440.3499999968335,3.5958093122506044E-3,8.1657983701066453E-6,false,null,null,"Unauthorised access"]
["SUS631_00018","2014-07-02","04:56:00","Hawker","Urban","Asset failure","HV",732,48,0.28691349153206708,5.9773644069180641E-3,false,null,null,"Vehicle impact"]
["SUS631_00019","2014-07-02","08:42:00","Empire","Urban","Planned",0,19,234.94736842105263,0,0,false,null,"Unknown","Unknown"]
["SUS631_00020","2014-07-02","09:00:00","Meacham","Short Rural","Planned",0,43,293.02325581395348,0,0,false,null,"Vegetation","Blow-in/Fall-in - NSP responsibility"]
["SUS631_00021","2014-07-02","09:00:00","Grimshaw","Short Rural","Planned",0,2,210,0,0,false,null,null,"Grow-in - NSP responsibility"]
["SUS631_00022","2014-07-02","09:35:00","Giles","Urban","Planned",0,13,160.15384615384616,0,0,false,null,null,"Blow-in/Fall-in - Other responsible party"]
["SUS631_00023","2014-07-02","12:36:04","Belmore","Urban","Other","Single Premise",1,74.866666670423001,6.1134610467265761E-4,8.1657983701066453E-6,false,null,null,"Grow-in - Other responsible party"]
["SUS631_00024","2014-07-02","13:19:00","Empire","Urban","Planned",0,38,101.05263157894737,0,0,false,null,"Weather","-"]
["SUS631_00025","2014-07-02","15:14:35","Chisholm","Urban","Other","Single Premise",1,351.43333333195187,2.8697337405231981E-3,8.1657983701066453E-6,false,null,"2 - STPIS Exclusion (3.3)(a)","-"]
["SUS631_00026","2014-07-02","16:10:03","Cunningham","Urban","Other","Single Premise",1,349.94999999762513,2.8576211395994278E-3,8.1657983701066453E-6,false,null,"3 - STPIS Exclusion (3.3)(a)","-"]
["SUS631_00027","2014-07-02","16:40:00","Empire","Urban","Asset failure","LV",9,90,6.614296679786383E-3,7.3492185330959814E-5,false,null,"4 - STPIS Exclusion (3.3)(a)","-"]
["SUS631_00028","2014-07-02","17:08:35","Chisholm","Urban","Other","Single Premise",1,63.66666667163372,5.1988916293734975E-4,8.1657983701066453E-6,false,null,"5 - STPIS Exclusion (3.3)(a)","-"]
["SUS631_00029","2014-07-02","17:33:14","Streeton","Short Rural","Other","Single Premise",1,93.633333334000781,1.5799361051228534E-3,1.6873650107991362E-5,false,null,"6 - STPIS Exclusion (3.3)(a)","-"]
["SUS631_00030","2014-07-02","17:47:12","Marconi","Urban","Other","Single Premise",1,49.049999993294477,4.0053240999897503E-4,8.1657983701066453E-6,false,null,"7 - STPIS Exclusion (3.3)(a)","-"]
["SUS631_00031","2014-07-02","17:48:48","Gurrang","Short Rural","Other","Single Premise",1,244.11666666157544,4.1191392187765836E-3,1.6873650107991362E-5,false]
["SUS631_00032","2014-07-02","18:37:02","Lambrigg","Urban","Other","Single Premise",1,60.399999995715916,4.9321422151945844E-4,8.1657983701066453E-6,false]
["SUS631_00033","2014-07-02","19:13:00","Dryandra","Urban","Other","Single Premise",1,126.36666667065583,1.0318847207350511E-3,8.1657983701066453E-6,false]
["SUS631_00034","2014-07-02","20:16:00","Deakin No 2","Urban","Asset failure","HV",124,39.774193548387103,4.0273717561365982E-2,1.012558997893224E-3,false]
["SUS631_00035","2014-07-02","20:58:34","Muresk","Urban","Other","Single Premise",1,146.56666666734964,1.1968338477842076E-3,8.1657983701066453E-6,false]
["SUS631_00036","2014-07-03","06:59:03","Theodore","Urban","Other","Single Premise",1,72.499999995343387,5.9202038179470681E-4,8.1657983701066453E-6,false]
["SUS631_00037","2014-07-03","08:40:00","Stott","Urban","Planned",0,28,267,0,0,false]
["SUS631_00038","2014-07-03","09:13:00","Gouger","Urban","Planned",0,42,65,0,0,false]
["SUS631_00039","2014-07-03","09:14:00","Grimshaw","Short Rural","Planned",0,1,114,0,0,false]
["SUS631_00040","2014-07-03","09:27:00","McInnes","Urban","Planned",0,37,372.97297297297297,0,0,false]
["SUS631_00041","2014-07-03","10:02:00","Brookman","Urban","Planned",0,24,161.99999999999997,0,0,false]
["SUS631_00042","2014-07-03","10:13:51","Langdon","Urban","Other","Single Premise",1,74.533333332510665,6.0862417184523085E-4,8.1657983701066453E-6,false]
["SUS631_00043","2014-07-03","10:28:11","Petrie","Urban","Other","Single Premise",1,80.499999989988282,6.5734676871183123E-4,8.1657983701066453E-6,false]
["SUS631_00044","2014-07-03","11:59:16","Chisholm","Urban","Other","Single Premise",1,75.03333333414048,6.1270707104359298E-4,8.1657983701066453E-6,false]
["SUS631_00045","2014-07-03","12:08:08","McInnes","Urban","Other","Single Premise",1,213.08333332417533,1.739995535955442E-3,8.1657983701066453E-6,false]
["SUS631_00046","2014-07-03","12:11:23","Cunningham","Urban","Other","Single Premise",1,89.650000002002344,7.3206382389641152E-4,8.1657983701066453E-6,false]
["SUS631_00047","2014-07-03","12:38:09","Dryandra","Urban","Other","Single Premise",1,153.04999999701977,1.249775440520486E-3,8.1657983701066453E-6,false]
["SUS631_00048","2014-07-03","13:47:00","Mackenzie","Short Rural","Third party","Other",36,62.999999999999986,3.8269438444924399E-2,6.0745140388768898E-4,false]
["SUS631_00049","2014-07-03","16:03:57","<UNKNOWN>","Urban","Other","Single Premise",1,64.733333336189389,5.2859934784822552E-4,8.1657983701066453E-6,false]
["SUS631_00050","2014-07-03","17:37:57","Lhotsky","Short Rural","Other","Single Premise",1,164.45000000065193,2.7748717602701796E-3,1.6873650107991362E-5,false]
["SUS631_00051","2014-07-03","18:03:26","Chisholm","Urban","Other","Single Premise",1,66.116666668094695,5.3989536891521205E-4,8.1657983701066453E-6,false]
["SUS631_00052","2014-07-03","18:10:00","Shannon","Short Rural","Asset failure","LV",44,45,3.3409827213822893E-2,7.424406047516199E-4,false]
["SUS631_00053","2014-07-03","21:24:10","Elkington","Urban","Other","Single Premise",1,51.699999994598329,4.2217177569040459E-4,8.1657983701066453E-6,false]
["SUS631_00054","2014-07-04","05:35:00","Hughes","Short Rural","Unknown","Unknown",909,49.636963696369634,0.76133909287257018,1.5338147948164146E-2,false]
["SUS631_00055","2014-07-04","07:37:26","Chippindall","Short Rural","Other","Single Premise",1,505.40000000037253,8.5279427645851193E-3,1.6873650107991362E-5,false]
["SUS631_00056","2014-07-04","08:03:00","Mugga","Short Rural","Planned",0,1,114,0,0,false]
["SUS631_00057","2014-07-04","08:43:47","<UNKNOWN>","Urban","Other","Single Premise",1,42.649999995483086,3.4827130044816422E-4,8.1657983701066453E-6,false]
["SUS631_00058","2014-07-04","08:45:00","Mackenzie","Short Rural","Planned",0,14,393,0,0,false]
["SUS631_00059","2014-07-04","08:49:00","Mackenzie","Short Rural","Planned",0,30,386,0,0,false]
["SUS631_00060","2014-07-04","09:00:00","Nona","Urban","Planned",0,125,163.00800000000001,0,0,false]
["SUS631_00061","2014-07-04","09:15:00","Elkington","Urban","Planned",0,39,118.92307692307692,0,0,false]
["SUS631_00062","2014-07-04","11:21:00","Hughes","Short Rural","Asset failure","HV",12,5.9999999999999991,1.2149028077753777E-3,2.0248380129589633E-4,false]
["SUS631_00063","2014-07-04","11:21:00","Hughes","Short Rural","Asset failure","HV",138,382,0.88951133909287261,2.3285637149028076E-3,false]
["SUS631_00064","2014-07-04","11:26:00","Daplyn","Urban","Planned",0,25,63.120000000000005,0,0,false]
["SUS631_00065","2014-07-04","11:36:00","Powers","Urban","Planned",0,34,58.058823529411768,0,0,false]
["SUS631_00066","2014-07-04","12:07:41","Ijong","Urban","Other","Single Premise",1,219.59999999497086,1.7932093220343523E-3,8.1657983701066453E-6,false]
["SUS631_00067","2014-07-04","12:19:32","Dryandra","Urban","Other","Single Premise",1,26.633333335630596,2.1748242994259931E-4,8.1657983701066453E-6,false]
["SUS631_00068","2014-07-04","12:38:00","Curtin North","Short Rural","Asset failure","LV",19,90,2.8853941684665228E-2,3.2059935205183584E-4,false]
["SUS631_00069","2014-07-05","07:41:00","Cunningham","Urban","Planned",0,2,543,0,0,false]
["SUS631_00070","2014-07-05","07:45:00","Verbrugghen","Short Rural","Planned",0,1,540,0,0,false]
["SUS631_00071","2014-07-05","08:49:12","McInnes","Urban","Other","Single Premise",1,85.766666661947966,7.0035330683761469E-4,8.1657983701066453E-6,false]
["SUS631_00072","2014-07-05","09:48:00","Brookman","Urban","Asset failure","LV",18,122.99999999999999,1.8079077591416109E-2,1.4698437066191963E-4,false]
["SUS631_00073","2014-07-05","16:47:12","Cowper","Urban","Other","Single Premise",1,90.966666672611609,7.4281545844924642E-4,8.1657983701066453E-6,false]
["SUS631_00074","2014-07-05","19:41:29","Conolly","Urban","Other","Single Premise",1,66.899999995948747,5.4629191092705283E-4,8.1657983701066453E-6,false]
["SUS631_00075","2014-07-05","20:28:37","Quick","Urban","Other","Single Premise",1,79.233333331067115,6.4700342417294443E-4,8.1657983701066453E-6,false]
["SUS631_00076","2014-07-06","08:03:00","Wilson","Urban","Planned",0,51,495.05882352941182,0,0,false]
["SUS631_00077","2014-07-06","09:03:00","Cooleman","Urban","Planned",0,18,129.00000000000003,0,0,false]
["SUS631_00078","2014-07-06","09:12:58","Riley","Urban","Other","Single Premise",1,207.39999999292195,1.6935865819023203E-3,8.1657983701066453E-6,false]
["SUS631_00079","2014-07-06","14:59:27","Weston East","Short Rural","Other","Single Premise",1,104.43333333358169,1.7621715262820883E-3,1.6873650107991362E-5,false]
["SUS631_00080","2014-07-06","16:52:05","Riverside","Urban","Other","Single Premise",1,60.90000000782311,4.9729712080337659E-4,8.1657983701066453E-6,false]
["SUS631_00081","2014-07-06","17:28:41","Homann","Short Rural","Other","Single Premise",1,161.58333333441988,2.7265006299679378E-3,1.6873650107991362E-5,false]
["SUS631_00082","2014-07-06","19:12:20","Macrossan","Short Rural","Other","Single Premise",1,109.68333333497867,1.8507581893726153E-3,1.6873650107991362E-5,false]
["SUS631_00083","2014-07-06","21:07:31","Folingsby","Urban","Other","Single Premise",1,123.46666667377576,1.0082039054872187E-3,8.1657983701066453E-6,false]
["SUS631_00084","2014-07-07","00:51:52","Nona","Urban","Other","Single Premise",1,35.516666660550982,2.9002193872834826E-4,8.1657983701066453E-6,false]
["SUS631_00085","2014-07-07","09:03:00","Joy Cummins","Urban","Planned",0,1,168,0,0,false]
["SUS631_00086","2014-07-07","10:35:52","Jackie Howe","Short Rural","Other","Single Premise",1,73.983333329670131,1.2483688804277493E-3,1.6873650107991362E-5,false]
["SUS631_00087","2014-07-07","10:49:52","Rossman","Urban","Other","Single Premise",1,75.416666662786156,6.1583729371385537E-4,8.1657983701066453E-6,false]
["SUS631_00088","2014-07-07","12:20:40","Dairy South","Urban","Other","Single Premise",1,34.433333335909992,2.8117565723171262E-4,8.1657983701066453E-6,false]
["SUS631_00089","2014-07-07","13:08:00","Curtin North","Short Rural","Planned",0,12,70,0,0,false]
["SUS631_00090","2014-07-07","19:07:01","Chippindall","Short Rural","Other","Single Premise",1,151.14999999292195,2.5504522137034615E-3,1.6873650107991362E-5,false]
["SUS631_00091","2014-07-07","19:11:28","Carruthers","Urban","Other","Single Premise",1,69.566666667815298,5.6806737328979849E-4,8.1657983701066453E-6,false]
["SUS631_00092","2014-07-07","22:43:40","Theodore","Urban","Other","Single Premise",1,49.266666668700054,4.0230166638385829E-4,8.1657983701066453E-6,false]
["SUS631_00093","2014-07-08","08:26:52","Haig","Urban","Other","Single Premise",1,249.21666666981764,2.0350530504958078E-3,8.1657983701066453E-6,false]
["SUS631_00094","2014-07-08","08:47:00","Carruthers","Urban","Planned",0,36,281,0,0,false]
["SUS631_00095","2014-07-08","08:48:00","Curtin North","Short Rural","Planned",0,83,177.03614457831324,0,0,false]
["SUS631_00096","2014-07-08","08:51:00","Black Mtn","Short Rural","Planned",0,6,342.99999999999994,0,0,false]
["SUS631_00097","2014-07-08","08:53:00","Brookman","Urban","Planned",0,24,221.99999999999997,0,0,false]
["SUS631_00098","2014-07-08","08:54:00","Black Mtn","Short Rural","Planned",0,6,342.99999999999994,0,0,false]
["SUS631_00099","2014-07-08","09:05:00","ANU North","Urban","Third party","Other",1,6,4.8994790220639872E-5,8.1657983701066453E-6,false]
["SUS631_00100","2014-07-08","09:10:00","Lhotsky","Short Rural","Planned",0,116,153.98275862068965,0,0,false]
["SUS631_00101","2014-07-08","09:13:23","Ovens","Urban","Other","Single Premise",1,169.98333333875053,1.3880496263228637E-3,8.1657983701066453E-6,false]
["SUS631_00102","2014-07-08","09:14:00","Black Mtn","Short Rural","Planned",0,1,306,0,0,false]
["SUS631_00103","2014-07-08","10:42:00","Mackenzie","Short Rural","Planned",0,7,270,0,0,false]
["SUS631_00104","2014-07-08","12:04:00","Lambrigg","Urban","Unknown","Unknown",1291,0,0,0,false]
["SUS631_00105","2014-07-08","13:29:38","Lambrigg","Urban","Other","Single Premise",1,63.949999997857958,5.2220280575082851E-4,8.1657983701066453E-6,false]
["SUS631_00106","2014-07-08","14:05:00","Lambrigg","Urban","Animal","Other",0,0,0,0,false]
["SUS631_00107","2014-07-09","08:40:00","Chisholm","Urban","Planned",0,20,275.10000000000002,0,0,false]
["SUS631_00108","2014-07-09","08:50:00","Conolly","Urban","Planned",0,3,456.00000000000006,0,0,false]
["SUS631_00109","2014-07-09","08:50:00","Conolly","Urban","Planned",0,30,469,0,0,false]
["SUS631_00110","2014-07-09","08:55:00","Abattoirs","Short Rural","Planned",0,1,90,0,0,false]
["SUS631_00111","2014-07-09","09:00:00","Lexcen","Urban","Planned",0,81,267.03703703703701,0,0,false]
["SUS631_00112","2014-07-09","09:15:00","Bowley","Short Rural","Planned",0,53,134.9433962264151,0,0,false]
["SUS631_00113","2014-07-09","09:45:00","Black Mtn","Short Rural","Planned",0,4,394.5,0,0,false]
["SUS631_00114","2014-07-09","09:59:00","Black Mtn","Short Rural","Unknown","Unknown",16,4.125,1.1136609071274299E-3,2.6997840172786179E-4,false]
["SUS631_00115","2014-07-09","10:05:00","Black Mtn","Short Rural","Planned",0,10,355.2,0,0,false]
["SUS631_00116","2014-07-09","10:56:55","Lander","Urban","Other","Single Premise",1,32.616666674148291,2.6634112356607183E-4,8.1657983701066453E-6,false]
["SUS631_00117","2014-07-09","13:00:00","Yarralumla","Urban","Planned",0,1,18,0,0,false]
["SUS631_00118","2014-07-09","13:27:12","Hawkesbury","Short Rural","Other","Single Premise",1,112.56666667177342,1.899410547242397E-3,1.6873650107991362E-5,false]
["SUS631_00119","2014-07-09","17:30:00","Ferguson","Urban","Third party","Other",21,90,1.5433358919501559E-2,1.7148176577223956E-4,false]
["SUS631_00120","2014-07-09","20:11:02","Weir","Urban","Other","Single Premise",1,106.58333333325572,8.7033800961323286E-4,8.1657983701066453E-6,false]
["SUS631_00121","2014-07-09","20:40:00","Mackenzie","Short Rural","Asset failure","LV",19,29.052631578947366,9.3142548596112304E-3,3.2059935205183584E-4,false]
["SUS631_00122","2014-07-09","22:47:08","Edmond","Urban","Other","Single Premise",1,40.566666667582467,3.3125922055480449E-4,8.1657983701066453E-6,false]
["SUS631_00123","2014-07-10","08:48:00","Abattoirs","Short Rural","Planned",0,1,90,0,0,false]
["SUS631_00124","2014-07-10","08:48:00","Abattoirs","Short Rural","Planned",0,1,90,0,0,false]
["SUS631_00125","2014-07-10","08:50:00","Stott","Urban","Planned",0,47,309.95744680851067,0,0,false]
["SUS631_00126","2014-07-10","09:05:00","Eaglemont","Urban","Planned",0,91,185.01098901098902,0,0,false]
["SUS631_00127","2014-07-10","09:15:00","Conley","Urban","Planned",0,53,290.03773584905662,0,0,false]
["SUS631_00128","2014-07-10","09:48:40","Abattoirs","Short Rural","Other","Single Premise",1,68.016666672192514,1.1476894349384537E-3,1.6873650107991362E-5,false]
["SUS631_00129","2014-07-10","09:58:00","Ebden","Urban","Planned",0,22,199.90909090909091,0,0,false]
["SUS631_00130","2014-07-10","11:17:00","Isa","Urban","Asset failure","LV",7,49.714285714285708,2.8416978327971123E-3,5.7160588590746517E-5,false]
["SUS631_00131","2014-07-10","11:32:44","Ferdinand","Short Rural","Other","Single Premise",1,102.46666666818783,1.7289866810911822E-3,1.6873650107991362E-5,false]
["SUS631_00132","2014-07-10","13:21:42","<UNKNOWN>","Urban","Other","Single Premise",1,33.333333330228925,2.7219327897820485E-4,8.1657983701066453E-6,false]
["SUS631_00133","2014-07-10","16:52:51","William Slim","Short Rural","Other","Single Premise",1,73.833333336515352,1.2458378330270543E-3,1.6873650107991362E-5,false]
["SUS631_00134","2014-07-10","17:03:52","Stott","Urban","Other","Single Premise",1,82.800000003771856,6.761281050756305E-4,8.1657983701066453E-6,false]
["SUS631_00135","2014-07-10","17:40:46","Gouger","Urban","Other","Single Premise",1,103.43333333032206,8.4461574472344118E-4,8.1657983701066453E-6,false]
["SUS631_00136","2014-07-10","17:55:22","Findlayson","Short Rural","Other","Single Premise",1,167.1666666737292,2.8207118431717265E-3,1.6873650107991362E-5,false]
["SUS631_00137","2014-07-10","19:05:51","Latham","Urban","Other","Single Premise",1,61.416666669538245,5.0151611658749858E-4,8.1657983701066453E-6,false]
["SUS631_00138","2014-07-10","19:55:00","LM West","Short Rural","Asset failure","LV",23,85.043478260869563,3.3004859611231105E-2,3.880939524838013E-4,false]
["SUS631_00139","2014-07-10","20:25:45","Weston East","Short Rural","Other","Single Premise",1,46.033333333907649,7.7675035998089306E-4,1.6873650107991362E-5,false]
["SUS631_00140","2014-07-10","21:42:08","Power House","Urban","Other","Single Premise",1,77.84999999916181,6.357074031059578E-4,8.1657983701066453E-6,false]
["SUS631_00141","2014-07-11","03:40:00","Hobart Long","Urban","Other","Customer installation",1,48,3.9195832176511897E-4,8.1657983701066453E-6,false]
["SUS631_00142","2014-07-11","06:00:00","Tralee","Urban","Planned",0,2,24,0,0,false]
["SUS631_00143","2014-07-11","08:50:00","Stott","Urban","Planned",0,34,360,0,0,false]
["SUS631_00144","2014-07-11","08:55:00","Stott","Urban","Planned",0,27,360,0,0,false]
["SUS631_00145","2014-07-11","09:40:00","Laurie","Urban","Planned",0,30,234,0,0,false]
["SUS631_00146","2014-07-11","09:40:00","Hobart Long","Urban","Asset failure","LV",1,84,6.8592706308895823E-4,8.1657983701066453E-6,false]
["SUS631_00147","2014-07-11","09:54:00","Mugga","Short Rural","Planned",0,1,324,0,0,false]
["SUS631_00148","2014-07-11","10:01:00","Mugga","Short Rural","Planned",0,1,342,0,0,false]
["SUS631_00149","2014-07-11","10:08:00","McGuiness","Urban","Planned",0,25,204,0,0,false]
["SUS631_00150","2014-07-11","10:08:00","Mugga","Short Rural","Planned",0,1,330,0,0,false]
["SUS631_00151","2014-07-11","10:54:15","Theodore","Urban","Other","Single Premise",1,65.299999999115244,5.3322663356073917E-4,8.1657983701066453E-6,false]
["SUS631_00152","2014-07-11","14:01:33","Wolseley","Urban","Other","Single Premise",1,52.116666664369404,4.2557419170329903E-4,8.1657983701066453E-6,false]
["SUS631_00153","2014-07-11","14:11:56","Giles","Urban","Other","Single Premise",1,68.700000008102506,5.6099034809248998E-4,8.1657983701066453E-6,false]
["SUS631_00154","2014-07-11","16:14:44","Anthony Rolfe","Short Rural","Other","Single Premise",1,185.98333332804032,3.1382176924952807E-3,1.6873650107991362E-5,false]
["SUS631_00155","2014-07-11","18:54:34","Stott","Urban","Other","Single Premise",1,41.316666664788499,3.373835693095695E-4,8.1657983701066453E-6,false]
["SUS631_00156","2014-07-11","18:58:00","Weir","Urban","Vegetation","Grow-in - Other responsible party",63,27.047619047619044,1.3914520422661721E-2,5.1444529731671865E-4,false]
["SUS631_00157","2014-07-12","06:30:00","Bunda","Urban","Planned",0,2,75,0,0,false]
["SUS631_00158","2014-07-12","11:40:00","Ferguson","Urban","Third party","Other",64,229.96875,0.1201842204112296,5.226110956868253E-4,false]
["SUS631_00159","2014-07-12","13:46:36","Paterick","Urban","Other","Single Premise",1,80.983333331532776,6.6129357132443348E-4,8.1657983701066453E-6,false]
["SUS631_00160","2014-07-12","17:50:17","Chippindall","Short Rural","Other","Single Premise",1,52.416666661156341,8.8446049306756789E-4,1.6873650107991362E-5,false]
["SUS631_00161","2014-07-12","18:31:00","Maribyrnong","Urban","Animal","Other",1,222,1.8128072381636752E-3,8.1657983701066453E-6,false]
["SUS631_00162","2014-07-12","20:30:00","Maribyrnong","Urban","Asset failure","HV",0,0,0,0,false]
["SUS631_00163","2014-07-13","08:03:00","Wanniassa","Urban","Asset failure","Zone substation",0,0,0,0,false]
["SUS631_00164","2014-07-13","08:08:00","CSIRO","Urban","Planned",0,1,336,0,0,false]
["SUS631_00165","2014-07-13","08:49:00","Abattoirs","Short Rural","Planned",0,45,392,0,0,false]
["SUS631_00166","2014-07-13","08:49:00","Abattoirs","Short Rural","Planned",0,78,392,0,0,false]
["SUS631_00167","2014-07-13","08:52:00","Abattoirs","Short Rural","Planned",0,16,481.12500000000006,0,0,false]
["SUS631_00168","2014-07-13","08:57:00","Abattoirs","Short Rural","Planned",0,82,379.97560975609753,0,0,false]
["SUS631_00169","2014-07-13","09:28:54","Belconnen Way South","Urban","Other","Single Premise",1,65.016666672891006,5.3091299074726041E-4,8.1657983701066453E-6,false]
["SUS631_00170","2014-07-13","13:08:00","Tennant","Urban","Third party","Other",12,176.99999999999997,1.734415573810651E-2,9.7989580441279744E-5,false]
["SUS631_00171","2014-07-13","13:08:34","<UNKNOWN>","Urban","Other","Single Premise",1,33.966666664928198,2.7736495129042642E-4,8.1657983701066453E-6,false]
["SUS631_00172","2014-07-13","13:45:00","Langdon","Urban","Vegetation","Grow-in - Other responsible party",26,45,9.5539840930247751E-3,2.1231075762277279E-4,false]
["SUS631_00173","2014-07-13","15:11:00","Dryandra","Urban","Asset failure","HV",66,94,5.0660613088141626E-2,5.389426924270386E-4,false]
["SUS631_00174","2014-07-13","15:25:24","Fairley","Short Rural","Other","Single Premise",1,47.81666666502133,8.0684170263602411E-4,1.6873650107991362E-5,false]
["SUS631_00175","2014-07-13","16:00:00","Bunda","Urban","Planned",0,2,66,0,0,false]
["SUS631_00176","2014-07-13","19:12:53","Anthony Rolfe","Short Rural","Other","Single Premise",1,76.116666669258848,1.284366000763682E-3,1.6873650107991362E-5,false]
["SUS631_00177","2014-07-13","19:55:58","Wilson","Urban","Other","Single Premise",1,219.16666666511446,1.7896708094356981E-3,8.1657983701066453E-6,false]
["SUS631_00178","2014-07-13","20:21:34","Matthews","Short Rural","Other","Single Premise",1,1236.3000000023749,2.086089362854979E-2,1.6873650107991362E-5,false]
["SUS631_00179","2014-07-14","01:48:37","Markell","Short Rural","Other","Single Premise",1,55.34999999916181,9.3395653346317847E-4,1.6873650107991362E-5,false]
["SUS631_00180","2014-07-14","07:16:00","ANU North","Urban","Planned",0,1,66,0,0,false]
["SUS631_00181","2014-07-14","08:45:59","Dairy South","Urban","Other","Single Premise",1,59.449999993667006,4.8545671305112611E-4,8.1657983701066453E-6,false]
["SUS631_00182","2014-07-14","09:34:04","Laurie","Urban","Other","Single Premise",1,59.499999994877726,4.8586500297951793E-4,8.1657983701066453E-6,false]
["SUS631_00183","2014-07-14","09:45:00","Stott","Urban","Planned",0,34,304.94117647058829,0,0,false]
["SUS631_00184","2014-07-14","09:50:00","Stott","Urban","Planned",0,28,304.92857142857144,0,0,false]
["SUS631_00185","2014-07-14","10:37:23","Curtin North","Short Rural","Other","Single Premise",1,88.666666669305414,1.4961303096197593E-3,1.6873650107991362E-5,false]
["SUS631_00186","2014-07-14","11:20:05","Gladstone","Urban","Other","Single Premise",1,338.24999999720603,2.7620812986657579E-3,8.1657983701066453E-6,false]
["SUS631_00187","2014-07-14","12:07:12","Laurie","Urban","Other","Single Premise",1,111.63333334028721,9.1157529143968909E-4,8.1657983701066453E-6,false]
["SUS631_00188","2014-07-14","13:40:08","Saunders","Short Rural","Other","Single Premise",1,437.1333333326038,7.3760349171943136E-3,1.6873650107991362E-5,false]
["SUS631_00189","2014-07-15","07:52:00","Bunbury","Short Rural","Unknown","Unknown",44,51,3.7864470842332611E-2,7.424406047516199E-4,false]
["SUS631_00190","2014-07-15","08:40:00","Mackenzie","Short Rural","Planned",0,39,297.07692307692309,0,0,false]
["SUS631_00191","2014-07-15","08:55:00","Stott","Urban","Planned",0,19,234.94736842105263,0,0,false]
["SUS631_00192","2014-07-15","10:02:29","Wakefield","Urban","Other","Single Premise",1,140.41666666511446,1.1466141877897998E-3,8.1657983701066453E-6,false]
["SUS631_00193","2014-07-15","10:45:26","Fairbairn","Urban","Other","Single Premise",1,70.449999998090789,5.752804951584229E-4,8.1657983701066453E-6,false]
["SUS631_00194","2014-07-15","10:57:41","<UNKNOWN>","Urban","Other","Single Premise",1,89.96666666935198,7.3464966005252228E-4,8.1657983701066453E-6,false]
["SUS631_00195","2014-07-15","15:16:00","Hughes","Short Rural","Other","Single Premise",1,87.383333329344168,1.4744757918693334E-3,1.6873650107991362E-5,false]
["SUS631_00196","2014-07-15","15:21:54","<UNKNOWN>","Urban","Other","Single Premise",1,225.0333333411254,1.8375768266166272E-3,8.1657983701066453E-6,false]
["SUS631_00197","2014-07-15","17:07:56","Hawker","Urban","Other","Single Premise",1,134.53333332901821,1.0985720740231109E-3,8.1657983701066453E-6,false]
["SUS631_00198","2014-07-15","18:15:53","Hughes","Short Rural","Other","Single Premise",1,82.883333325153217,1.3985443663126556E-3,1.6873650107991362E-5,false]
["SUS631_00199","2014-07-15","18:34:17","Markell","Short Rural","Other","Single Premise",1,129.66666666674428,2.1879499640041892E-3,1.6873650107991362E-5,false]
["SUS631_00200","2014-07-15","19:15:05","Lampard","Short Rural","Other","Single Premise",1,194.9166666646488,3.2889556335152672E-3,1.6873650107991362E-5,false]
["SUS631_00201","2014-07-15","22:45:51","Empire","Urban","Other","Single Premise",1,74.200000005075708,6.0590223910336033E-4,8.1657983701066453E-6,false]
["SUS631_00202","2014-07-15","23:23:00","Hawker","Urban","Asset failure","LV",50,45,1.8373046332739951E-2,4.0828991850533228E-4,false]
["SUS631_00203","2014-07-16","07:05:38","Chippindall","Short Rural","Other","Single Premise",1,49.183333326363936,8.2990235769377595E-4,1.6873650107991362E-5,false]
["SUS631_00204","2014-07-16","08:13:00","Newcastle","Short Rural","Planned",0,9,244.66666666666671,0,0,false]
["SUS631_00205","2014-07-16","08:53:00","Stott","Urban","Planned",0,30,196,0,0,false]
["SUS631_00206","2014-07-16","09:17:00","Wilson","Urban","Planned",0,25,41.040000000000006,0,0,false]
["SUS631_00207","2014-07-16","09:30:00","Tillyard","Urban","Asset failure","LV",12,497.99999999999994,4.8798811059757308E-2,9.7989580441279744E-5,false]
["SUS631_00208","2014-07-16","09:38:00","Mackenzie","Short Rural","Planned",0,24,176,0,0,false]
["SUS631_00209","2014-07-16","13:57:36","Ijong","Urban","Other","Single Premise",1,97.666666667209938,7.9752630748485193E-4,8.1657983701066453E-6,false]
["SUS631_00210","2014-07-16","14:18:29","Ferdinand","Short Rural","Other","Single Premise",1,64.166666673263535,1.0827258820407589E-3,1.6873650107991362E-5,false]
["SUS631_00211","2014-07-16","17:29:00","Lyell","Urban","Overloads",0,1,174,1.4208489163985564E-3,8.1657983701066453E-6,false]
["SUS631_00212","2014-07-16","17:29:50","Lyell","Urban","Other","Single Premise",1,52.51666666357778,4.2884051104487742E-4,8.1657983701066453E-6,false]
["SUS631_00213","2014-07-16","20:35:22","Baldwin","Urban","Other","Single Premise",1,54.550000000745058,4.4544430109540151E-4,8.1657983701066453E-6,false]
["SUS631_00214","2014-07-16","20:58:16","Weir","Urban","Other","Single Premise",1,72.816666662693024,5.9460621795081757E-4,8.1657983701066453E-6,false]
["SUS631_00215","2014-07-17","01:54:00","ANU Avenue","Urban","Animal","Other",1,54,4.4095311198575883E-4,8.1657983701066453E-6,false]
["SUS631_00216","2014-07-17","01:54:34","<UNKNOWN>","Urban","Other","Single Premise",1,188.99999999790452,1.5433358919330446E-3,8.1657983701066453E-6,false]
["SUS631_00217","2014-07-17","08:46:00","Deakin No 1","Urban","Planned",0,5,318,0,0,false]
["SUS631_00218","2014-07-17","08:51:00","Latham","Urban","Planned",0,53,104.94339622641509,0,0,false]
["SUS631_00219","2014-07-17","08:56:00","Mackenzie","Short Rural","Planned",0,33,230.90909090909091,0,0,false]
["SUS631_00220","2014-07-17","08:57:00","Newcastle","Short Rural","Planned",0,1,198,0,0,false]
["SUS631_00221","2014-07-17","09:01:00","Mackenzie","Short Rural","Planned",0,40,229.04999999999998,0,0,false]
["SUS631_00222","2014-07-17","09:04:00","Newcastle","Short Rural","Planned",0,5,187.20000000000002,0,0,false]
["SUS631_00223","2014-07-17","09:23:00","Newcastle","Short Rural","Planned",0,1,156,0,0,false]
["SUS631_00224","2014-07-17","09:37:00","Pridham","Urban","Planned",0,16,184.875,0,0,false]
["SUS631_00225","2014-07-17","09:41:00","Pridham","Urban","Planned",0,10,184.2,0,0,false]
["SUS631_00226","2014-07-17","10:10:00","Black Mtn","Short Rural","Planned",0,37,72,0,0,false]
["SUS631_00227","2014-07-17","10:49:07","Giles","Urban","Other","Single Premise",1,48.333333337213844,3.9468025458684201E-4,8.1657983701066453E-6,false]
["SUS631_00228","2014-07-17","11:54:31","Hawker","Urban","Other","Single Premise",1,75.216666668420658,6.1420413408584424E-4,8.1657983701066453E-6,false]
["SUS631_00229","2014-07-17","13:19:36","Florey","Urban","Other","Single Premise",1,34.68333333148621,2.8321710678811556E-4,8.1657983701066453E-6,false]
["SUS631_00230","2014-07-17","14:32:26","Ijong","Urban","Other","Single Premise",1,86.733333334559575,7.0824691197726296E-4,8.1657983701066453E-6,false]
["SUS631_00231","2014-07-17","15:16:10","Bissenberger","Short Rural","Other","Single Premise",1,41.700000003911555,7.0363120956924198E-4,1.6873650107991362E-5,false]
["SUS631_00232","2014-07-17","15:47:38","Bunbury","Short Rural","Other","Single Premise",1,154.26666666520759,2.6030417566348472E-3,1.6873650107991362E-5,false]
["SUS631_00233","2014-07-17","16:56:17","Willoughby","Short Rural","Other","Single Premise",1,137.68333333195187,2.3232203923453003E-3,1.6873650107991362E-5,false]
["SUS631_00234","2014-07-17","20:43:00","Belmore","Urban","Asset failure","LV",1,354,2.8906926230177522E-3,8.1657983701066453E-6,false]
["SUS631_00235","2014-07-17","20:43:49","Belmore","Urban","Other","Single Premise",1,496.53333333553746,4.0545910840549511E-3,8.1657983701066453E-6,false]
["SUS631_00236","2014-07-18","08:36:00","Curtin North","Short Rural","Planned",0,27,224.88888888888891,0,0,false]
["SUS631_00237","2014-07-18","08:45:00","Cowper","Urban","Planned",0,40,279,0,0,false]
["SUS631_00238","2014-07-18","09:02:00","Giles","Urban","Planned",0,20,327.9,0,0,false]
["SUS631_00239","2014-07-18","10:17:00","Mugga","Short Rural","Planned",0,1,30,0,0,false]
["SUS631_00240","2014-07-18","10:43:12","Forster","Urban","Other","Single Premise",1,149.70000001019798,1.2224200160882396E-3,8.1657983701066453E-6,false]
["SUS631_00241","2014-07-18","11:00:00","Mugga","Short Rural","Planned",0,1,18,0,0,false]
["SUS631_00242","2014-07-19","06:55:00","Athllon","Urban","Asset failure","HV",1416,69.122881355932208,0.79925201286929826,1.1562770492071009E-2,false]
["SUS631_00243","2014-07-19","08:00:00","Gungahlin","Urban","Planned",0,1,162,0,0,false]
["SUS631_00244","2014-07-19","08:30:00","Giles","Urban","Planned",0,14,438,0,0,false]
["SUS631_00245","2014-07-19","11:18:31","Mugga","Short Rural","Other","Single Premise",1,82.199999999720603,1.3870140388721754E-3,1.6873650107991362E-5,false]
["SUS631_00246","2014-07-19","16:15:00","Mugga","Short Rural","Asset failure","LV",1,48,8.0993520518358531E-4,1.6873650107991362E-5,false]
["SUS631_00247","2014-07-19","18:30:31","Weir","Urban","Other","Single Premise",1,75.416666673263535,6.158372937994115E-4,8.1657983701066453E-6,false]
["SUS631_00248","2014-07-20","11:08:55","Carruthers","Urban","Other","Single Premise",1,120.2833333297167,9.82209447254795E-4,8.1657983701066453E-6,false]
["SUS631_00249","2014-07-20","13:08:29","Bowley","Short Rural","Other","Single Premise",1,135.50000000162981,2.2863795896603304E-3,1.6873650107991362E-5,false]
["SUS631_00250","2014-07-20","13:21:06","Weir","Urban","Other","Single Premise",1,60.649999991292134,4.9525567107586133E-4,8.1657983701066453E-6,false]
["SUS631_00251","2014-07-20","15:01:47","Willoughby","Short Rural","Other","Single Premise",1,87.483333331765607,1.4761631569209909E-3,1.6873650107991362E-5,false]
["SUS631_00252","2014-07-20","15:05:00","Sandalwood","Urban","Asset failure","HV",96,0,0,0,false]
["SUS631_00253","2014-07-20","22:11:00","Mackenzie","Short Rural","Animal","Other",26,48.92307692307692,2.1463282937365012E-2,4.3871490280777536E-4,false]
["SUS631_00254","2014-07-21","09:08:00","Mackenzie","Short Rural","Planned",0,2,102,0,0,false]
["SUS631_00255","2014-07-21","09:10:00","Symers","Urban","Planned",0,1,120,0,0,false]
["SUS631_00256","2014-07-21","09:42:20","Jackie Howe","Short Rural","Other","Single Premise",1,142.86666667205282,2.4106821455192498E-3,1.6873650107991362E-5,false]
["SUS631_00257","2014-07-21","11:50:26","Chippindall","Short Rural","Other","Single Premise",1,190.16666667535901,3.2088057956830285E-3,1.6873650107991362E-5,false]
["SUS631_00258","2014-07-21","15:00:00","Florey","Urban","Asset failure","HV",1026,0,0,0,false]
["SUS631_00259","2014-07-22","08:47:00","Deakin No 1","Urban","Planned",0,28,334.92857142857144,0,0,false]
["SUS631_00260","2014-07-22","08:50:00","Verbrugghen","Short Rural","Planned",0,42,220,0,0,false]
["SUS631_00261","2014-07-22","09:42:42","Belmore","Urban","Other","Single Premise",1,62.916666674427688,5.1376481418258474E-4,8.1657983701066453E-6,false]
["SUS631_00262","2014-07-22","09:56:00","Callister","Short Rural","Planned",0,31,20.903225806451612,0,0,false]
["SUS631_00263","2014-07-22","10:18:12","Elkington","Urban","Other","Single Premise",1,204.19999999925494,1.667456027169693E-3,8.1657983701066453E-6,false]
["SUS631_00264","2014-07-22","13:50:00","Folingsby","Urban","Asset failure","LV",24,42.000000000000007,8.2311247570675001E-3,1.9597916088255949E-4,false]
["SUS631_00265","2014-07-22","16:56:39","<UNKNOWN>","Urban","Other","Single Premise",1,63.050000007497147,5.1485358729644413E-4,8.1657983701066453E-6,false]
["SUS631_00266","2014-07-23","08:00:00","Hilder","Short Rural","Planned",0,1,696,0,0,false]
["SUS631_00267","2014-07-23","08:03:00","Sturt","Urban","Planned",0,54,552.00000000000011,0,0,false]
["SUS631_00268","2014-07-23","08:10:00","Cotter 11kV","Short Rural","Planned",0,1,690,0,0,false]
["SUS631_00269","2014-07-23","08:40:00","Carruthers","Urban","Planned",0,44,195,0,0,false]
["SUS631_00270","2014-07-23","08:45:00","Carruthers","Urban","Planned",0,48,185,0,0,false]
["SUS631_00271","2014-07-23","11:45:00","Wilson","Urban","Asset failure","LV",20,54.900000000000006,8.9660466103770962E-3,1.6331596740213291E-4,false]
["SUS631_00272","2014-07-23","18:05:50","Deakin No 1","Urban","Other","Single Premise",1,76.03333332692273,6.2087286935476088E-4,8.1657983701066453E-6,false]
["SUS631_00273","2014-07-23","18:52:52","Barrington","Urban","Other","Single Premise",1,80.700000005308539,6.5897992851095472E-4,8.1657983701066453E-6,false]
["SUS631_00274","2014-07-23","19:01:02","Barrington","Urban","Other","Single Premise",1,71.883333331206813,5.869848061538013E-4,8.1657983701066453E-6,false]
["SUS631_00275","2014-07-23","19:01:48","Barrington","Urban","Other","Single Premise",1,70.33333333558403,5.7432781871587951E-4,8.1657983701066453E-6,false]
["SUS631_00276","2014-07-23","19:23:47","Barrington","Urban","Other","Single Premise",1,47.383333335164934,3.8692274611850969E-4,8.1657983701066453E-6,false]
["SUS631_00277","2014-07-24","03:07:00","Lhotsky","Short Rural","Asset failure","HV",1707,63,1.8146092062634989,2.8803320734341251E-2,false]
["SUS631_00278","2014-07-24","03:07:00","Florey","Urban","Asset failure","HV",1026,95,0.7959203671342947,8.378109127729419E-3,false]
["SUS631_00279","2014-07-24","08:35:00","Mackenzie","Short Rural","Planned",0,25,360,0,0,false]
["SUS631_00280","2014-07-24","08:35:00","Marconi","Urban","Planned",0,30,49,0,0,false]
["SUS631_00281","2014-07-24","08:42:00","Marconi","Urban","Planned",0,28,37.928571428571431,0,0,false]
["SUS631_00282","2014-07-24","10:48:00","Sturt","Urban","Planned",0,39,176.92307692307693,0,0,false]
["SUS631_00283","2014-07-24","11:19:00","Langdon","Urban","Unknown","Unknown",763,0,0,0,false]
["SUS631_00284","2014-07-24","11:56:00","Carruthers","Urban","Unknown","Unknown",1347,0,0,0,false]
["SUS631_00285","2014-07-24","14:30:00","Bean","Short Rural","Asset failure","LV",1,120,2.0248380129589635E-3,1.6873650107991362E-5,false]
["SUS631_00286","2014-07-24","18:23:54","Markell","Short Rural","Other","Single Premise",1,70.666666663018987,1.1924046075698399E-3,1.6873650107991362E-5,false]
["SUS631_00287","2014-07-24","19:54:32","Verbrugghen","Short Rural","Other","Single Premise",1,187.71666665794328,3.1674653526245827E-3,1.6873650107991362E-5,false]
["SUS631_00288","2014-07-25","09:27:00","Black Mtn","Short Rural","Planned",0,6,269,0,0,false]
["SUS631_00289","2014-07-25","09:39:40","<UNKNOWN>","Urban","Other","Single Premise",1,280.55000000400469,2.290914732766121E-3,8.1657983701066453E-6,false]
["SUS631_00290","2014-07-25","09:43:00","Black Mtn","Short Rural","Planned",0,3,238,0,0,false]
["SUS631_00291","2014-07-25","09:53:00","Black Mtn","Short Rural","Planned",0,7,216,0,0,false]
["SUS631_00292","2014-07-25","09:53:00","Curtin North","Short Rural","Planned",0,33,314,0,0,false]
["SUS631_00293","2014-07-25","09:53:00","Deakin No 1","Urban","Planned",0,60,314,0,0,false]
["SUS631_00294","2014-07-25","10:43:10","<UNKNOWN>","Urban","Other","Single Premise",1,109.81666666804813,8.9674075768849217E-4,8.1657983701066453E-6,false]
["SUS631_00295","2014-07-25","10:54:23","Anthony Rolfe","Short Rural","Other","Single Premise",1,190.29999999795109,3.2110556155161831E-3,1.6873650107991362E-5,false]
["SUS631_00296","2014-07-25","13:35:00","Christian","Urban","Asset failure","LV",1,120,9.7989580441279738E-4,8.1657983701066453E-6,false]
["SUS631_00297","2014-07-25","18:09:20","Dryandra","Urban","Other","Single Premise",1,83.699999994132668,6.8347732353001478E-4,8.1657983701066453E-6,false]
["SUS631_00298","2014-07-26","09:20:00","Pridham","Urban","Planned",0,23,148.95652173913044,0,0,false]
["SUS631_00299","2014-07-26","09:24:00","Pridham","Urban","Planned",0,8,143.25,0,0,false]
["SUS631_00300","2014-07-27","14:52:47","Marconi","Urban","Other","Single Premise",1,94.69999999855645,7.7330110563731162E-4,8.1657983701066453E-6,false]
["SUS631_00301","2014-07-27","18:45:48","Brookman","Urban","Other","Single Premise",1,170.78333333716728,1.3945822650060205E-3,8.1657983701066453E-6,false]
["SUS631_00302","2014-07-28","00:04:26","Verbrugghen","Short Rural","Other","Single Premise",1,54.966666670516133,9.2748830100087968E-4,1.6873650107991362E-5,false]
["SUS631_00303","2014-07-28","01:05:00","McInnes","Urban","Unknown","Unknown",1168,0,0,0,false]
["SUS631_00304","2014-07-28","08:24:08","Tralee","Urban","Other","Single Premise",1,28.766666664741933,2.3490279976435085E-4,8.1657983701066453E-6,false]
["SUS631_00305","2014-07-28","09:05:00","Belconnen Way South","Urban","Planned",0,1,288,0,0,false]
["SUS631_00306","2014-07-28","09:05:00","Florey","Urban","Planned",0,41,219.95121951219514,0,0,false]
["SUS631_00307","2014-07-28","09:12:00","Haig","Urban","Planned",0,16,268.125,0,0,false]
["SUS631_00308","2014-07-28","09:20:00","Mackenzie","Short Rural","Planned",0,22,373.09090909090912,0,0,false]
["SUS631_00309","2014-07-28","09:49:00","Langdon","Urban","Planned",0,33,282,0,0,false]
["SUS631_00310","2014-07-28","11:11:00","Elkington","Urban","Planned",0,14,47.142857142857139,0,0,false]
["SUS631_00311","2014-07-28","11:25:52","Devonport","Urban","Other","Single Premise",1,45.183333323802799,3.6895798961149415E-4,8.1657983701066453E-6,false]
["SUS631_00312","2014-07-28","12:00:00","Langdon","Urban","Asset failure","LV",33,150.90909090909091,4.0665675883131094E-2,2.694713462135193E-4,false]
["SUS631_00313","2014-07-28","12:30:00","Mildura","Urban","Asset failure","LV",1,90,7.3492185330959804E-4,8.1657983701066453E-6,false]
["SUS631_00314","2014-07-28","17:53:51","Mackenzie","Short Rural","Other","Single Premise",1,99.433333338238299,1.6778032758207055E-3,1.6873650107991362E-5,false]
["SUS631_00315","2014-07-28","19:27:27","Mackenzie","Short Rural","Other","Single Premise",1,48.133333332370967,8.1218502518174557E-4,1.6873650107991362E-5,false]
["SUS631_00316","2014-07-28","21:22:05","Cunningham","Urban","Other","Single Premise",1,156.80000000400469,1.2803971844654234E-3,8.1657983701066453E-6,false]
["SUS631_00317","2014-07-28","22:40:00","Callister","Short Rural","Third party","Other",8,48.75,6.5807235421166304E-3,1.3498920086393089E-4,false]
["SUS631_00318","2014-07-29","08:04:36","Hawkesbury","Short Rural","Other","Single Premise",1,93.349999997299165,1.5751552375354205E-3,1.6873650107991362E-5,false]
["SUS631_00319","2014-07-29","08:34:00","Ashley","Short Rural","Planned",0,19,233.05263157894734,0,0,false]
["SUS631_00320","2014-07-29","08:40:00","Yarralumla","Urban","Planned",0,19,204.94736842105263,0,0,false]
["SUS631_00321","2014-07-29","08:50:00","Daplyn","Urban","Planned",0,28,235.07142857142858,0,0,false]
["SUS631_00322","2014-07-29","08:55:00","Fairley","Short Rural","Planned",0,40,217.95000000000002,0,0,false]
["SUS631_00323","2014-07-29","09:10:00","Fairley","Short Rural","Planned",0,33,174.90909090909091,0,0,false]
["SUS631_00324","2014-07-29","09:28:06","Brookman","Urban","Other","Single Premise",1,45.249999995576218,3.6950237621120196E-4,8.1657983701066453E-6,false]
["SUS631_00325","2014-07-29","10:14:00","CNBP1","Urban","Planned",0,1,318,0,0,false]
["SUS631_00326","2014-07-29","12:13:13","Grimshaw","Short Rural","Other","Single Premise",1,182.33333333395422,3.0766288697009012E-3,1.6873650107991362E-5,false]
["SUS631_00327","2014-07-29","12:35:00","Cotter 11kV","Short Rural","Unknown","Unknown",136,54.573529411764703,0.12523623110151189,2.2948164146868251E-3,false]
["SUS631_00328","2014-07-29","13:30:00","Daplyn","Urban","Planned",0,19,50.842105263157897,0,0,false]
["SUS631_00329","2014-07-29","18:45:11","Mannheim","Short Rural","Other","Single Premise",1,149.19999999809079,2.5175485960800955E-3,1.6873650107991362E-5,false]
["SUS631_00330","2014-07-29","18:50:00","Markell","Short Rural","Asset failure","LV",66,47,5.2342062634989202E-2,1.1136609071274299E-3,false]
["SUS631_00331","2014-07-29","19:06:37","Latham","Urban","Other","Single Premise",1,66.233333330601454,5.4084804535775555E-4,8.1657983701066453E-6,false]
["SUS631_00332","2014-07-30","07:58:00","Gurrang","Short Rural","Planned",0,8,206.25,0,0,false]
["SUS631_00333","2014-07-30","08:36:01","Bunbury","Short Rural","Other","Single Premise",1,26.666666666278616,4.4996400287322181E-4,1.6873650107991362E-5,false]
["SUS631_00334","2014-07-30","08:40:00","Curtin North","Short Rural","Planned",0,23,213.13043478260872,0,0,false]
["SUS631_00335","2014-07-30","08:43:00","Devonport","Urban","Planned",0,33,308,0,0,false]
["SUS631_00336","2014-07-30","08:57:00","Weir","Urban","Planned",0,33,11.09090909090909,0,0,false]
["SUS631_00337","2014-07-30","09:05:00","Ebden","Urban","Planned",0,12,190,0,0,false]
["SUS631_00338","2014-07-30","09:32:00","Dairy North","Short Rural","Planned",0,9,220,0,0,false]
["SUS631_00339","2014-07-30","09:36:00","Black Mtn","Short Rural","Planned",0,6,280,0,0,false]
["SUS631_00340","2014-07-30","09:56:00","Black Mtn","Short Rural","Planned",0,11,265.09090909090907,0,0,false]
["SUS631_00341","2014-07-30","12:20:52","Cunningham","Urban","Other","Single Premise",1,55.400000000372529,4.5238522970695016E-4,8.1657983701066453E-6,false]
["SUS631_00342","2014-07-30","12:41:46","Black Mtn","Short Rural","Other","Single Premise",1,124.75000000325963,2.1049878510269243E-3,1.6873650107991362E-5,false]
["SUS631_00343","2014-07-30","13:12:00","Braddon","Urban","Planned",0,1,138,0,0,false]
["SUS631_00344","2014-07-30","16:23:48","Daplyn","Urban","Other","Single Premise",1,34.433333335909992,2.8117565723171262E-4,8.1657983701066453E-6,false]
["SUS631_00345","2014-07-30","17:10:38","Ebden","Urban","Other","Single Premise",1,214.13333333912306,1.7485696243661141E-3,8.1657983701066453E-6,false]
["SUS631_00346","2014-07-30","18:10:13","Lander","Urban","Other","Single Premise",1,45.150000003632158,3.6868579643997452E-4,8.1657983701066453E-6,false]
["SUS631_00347","2014-07-31","08:40:00","Curtin North","Short Rural","Planned",0,21,324.85714285714289,0,0,false]
["SUS631_00348","2014-07-31","08:55:00","Weir","Urban","Planned",0,52,67.038461538461547,0,0,false]
["SUS631_00349","2014-07-31","09:35:00","Theodore","Urban","Planned",0,22,85.090909090909093,0,0,false]
["SUS631_00350","2014-07-31","09:58:41","Mackenzie","Short Rural","Other","Single Premise",1,282.81666666618548,4.7721494780336377E-3,1.6873650107991362E-5,false]
["SUS631_00351","2014-07-31","10:30:00","Athllon","Urban","Unknown","Unknown",1416,0,0,0,false]
["SUS631_00352","2014-07-31","10:41:58","Rossman","Urban","Other","Single Premise",1,45.483333331067115,3.7140772918184509E-4,8.1657983701066453E-6,false]
["SUS631_00353","2014-07-31","11:59:00","Daplyn","Urban","Unknown","Unknown",28,28.071428571428573,6.4183175189038233E-3,2.2864235436298607E-4,false]
["SUS631_00354","2014-07-31","12:08:00","Mannheim","Short Rural","Weather",0,10,87,1.4680075593952483E-2,1.687365010799136E-4,false]
["SUS631_00355","2014-07-31","12:10:07","Quick","Urban","Other","Single Premise",1,174.58333333488554,1.4256122987937935E-3,8.1657983701066453E-6,false]
["SUS631_00356","2014-07-31","13:18:19","Power House","Urban","Other","Single Premise",1,493.5833333269693,4.0305019787931712E-3,8.1657983701066453E-6,false]
["SUS631_00357","2014-07-31","13:45:00","CAE No 2","Urban","Unknown","Unknown",1,36,2.9396874132383926E-4,8.1657983701066453E-6,false]
["SUS631_00358","2014-07-31","14:47:00","Paterick","Urban","Unknown","Unknown",27,71.111111111111114,1.5678332870604758E-2,2.2047655599287942E-4,false]
["SUS631_00359","2014-07-31","17:30:19","Symers","Urban","Other","Single Premise",1,97.100000004284084,7.9289902177233818E-4,8.1657983701066453E-6,false]
["SUS631_00360","2014-07-31","17:46:59","Quick","Urban","Other","Single Premise",1,52.850000001490116,4.3156244387230417E-4,8.1657983701066453E-6,false]
["SUS631_00361","2014-07-31","17:57:00","Edmond","Urban","Weather",0,10,15,1.2248697555159967E-3,8.1657983701066453E-5,false]
["SUS631_00362","2014-07-31","20:03:19","Birrigai","Short Rural","Other","Single Premise",1,62.083333334885538,1.047572444230655E-3,1.6873650107991362E-5,false]
["SUS631_00363","2014-07-31","21:13:58","Fairley","Short Rural","Other","Single Premise",1,96.283333335304633,1.6246512779310312E-3,1.6873650107991362E-5,false]
["SUS631_00364","2014-07-31","21:40:00","Gaunson","Urban","Vegetation","Blow-in/Fall-in - NSP responsibility",9,40,2.9396874132383921E-3,7.3492185330959814E-5,false]
["SUS631_00365","2014-07-31","22:37:00","Streeton","Short Rural","Vegetation","Blow-in/Fall-in - NSP responsibility",21,48,1.7008639308855291E-2,3.543466522678186E-4,false]
["SUS631_00366","2014-07-31","23:46:00","Paterick","Urban","Asset failure","LV",18,114.00000000000001,1.6756218255458841E-2,1.4698437066191963E-4,false]
["SUS631_00367","2014-08-01","06:22:29","Bowley","Short Rural","Other","Single Premise",1,214.76666667382233,3.6238975883136869E-3,1.6873650107991362E-5,false]
["SUS631_00368","2014-08-01","07:14:00","Curtin North","Short Rural","Vegetation","Grow-in - Other responsible party",21,44,1.5591252699784017E-2,3.543466522678186E-4,false]
["SUS631_00369","2014-08-01","07:59:37","Wakefield","Urban","Other","Single Premise",1,162.56666666711681,1.3274866217040128E-3,8.1657983701066453E-6,false]
["SUS631_00370","2014-08-01","08:38:00","Deakin No 1","Urban","Planned",0,26,260.07692307692304,0,0,false]
["SUS631_00371","2014-08-01","08:44:00","Shannon","Short Rural","Planned",0,46,295.95652173913044,0,0,false]
["SUS631_00372","2014-08-01","08:44:00","Chuculba","Urban","Planned",0,46,295.95652173913044,0,0,false]
["SUS631_00373","2014-08-01","08:51:00","Macrossan","Short Rural","Asset failure","HV",1,42,7.086933045356372E-4,1.6873650107991362E-5,false]
["SUS631_00374","2014-08-01","08:58:00","Mugga","Short Rural","Planned",0,1,162,0,0,false]
["SUS631_00375","2014-08-01","09:35:00","Giles","Urban","Planned",0,15,122,0,0,false]
["SUS631_00376","2014-08-01","09:51:21","Mackenzie","Short Rural","Other","Single Premise",1,185.26666667195968,3.1261249100965121E-3,1.6873650107991362E-5,false]
["SUS631_00377","2014-08-01","10:03:56","<UNKNOWN>","Urban","Other","Single Premise",1,240.73333333362825,1.9657798609660814E-3,8.1657983701066453E-6,false]
["SUS631_00378","2014-08-01","11:01:03","Verbrugghen","Short Rural","Other","Single Premise",1,292.03333333949558,4.9276682866410569E-3,1.6873650107991362E-5,false]
["SUS631_00379","2014-08-01","11:12:10","Mackenzie","Short Rural","Other","Single Premise",1,152.78333333088085,2.5780125089578977E-3,1.6873650107991362E-5,false]
["SUS631_00380","2014-08-01","11:49:50","Throsby","Urban","Other","Single Premise",1,125.95000000088476,1.0284823047221566E-3,8.1657983701066453E-6,false]
["SUS631_00381","2014-08-01","15:04:19","Rowland","Short Rural","Other","Single Premise",1,7.9666666639968753,1.3442674581528205E-4,1.6873650107991362E-5,false]
["SUS631_00382","2014-08-01","15:21:56","Miller","Urban","Other","Single Premise",1,167.08333333139308,1.3643688109894749E-3,8.1657983701066453E-6,false]
["SUS631_00383","2014-08-01","16:15:53","Powers","Urban","Other","Single Premise",1,22.266666664509103,1.8182511035675641E-4,8.1657983701066453E-6,false]
["SUS631_00384","2014-08-01","17:13:00","Gilmore","Urban","Asset failure","Zone substation",0,0,0,0,false]
["SUS631_00385","2014-08-01","17:30:23","Duffy","Urban","Other","Single Premise",1,32.166666663251817,2.6266651421054545E-4,8.1657983701066453E-6,false]
["SUS631_00386","2014-08-01","18:18:37","Sturt","Urban","Other","Single Premise",1,5.0666666671168059,4.1373378412216084E-5,8.1657983701066453E-6,false]
["SUS631_00387","2014-08-02","10:23:35","Falkiner","Urban","Other","Single Premise",1,214.1833333298564,1.7489779142089497E-3,8.1657983701066453E-6,false]
["SUS631_00388","2014-08-02","10:38:12","Seal","Urban","Other","Single Premise",1,190.06666666246019,1.5520460768439204E-3,8.1657983701066453E-6,false]
["SUS631_00389","2014-08-02","10:41:37","Macrossan","Short Rural","Other","Single Premise",1,210.85000000311993,3.5578091253226228E-3,1.6873650107991362E-5,false]
["SUS631_00390","2014-08-02","12:29:25","Streeton","Short Rural","Other","Single Premise",1,250.74999999487773,4.2310677644924024E-3,1.6873650107991362E-5,false]
["SUS631_00391","2014-08-02","12:45:40","Wilson","Urban","Other","Single Premise",1,126.56666666502133,1.0335178803630623E-3,8.1657983701066453E-6,false]
["SUS631_00392","2014-08-02","13:28:00","Curtin North","Short Rural","Asset failure","LV",87,41.03448275862069,6.023893088552916E-2,1.4680075593952483E-3,false]
["SUS631_00393","2014-08-02","14:00:50","Birrigai","Short Rural","Other","Single Premise",1,96.250000004656613,1.6240888229727426E-3,1.6873650107991362E-5,false]
["SUS631_00394","2014-08-02","14:12:59","Conley","Urban","Other","Single Premise",1,44.08333332859911,3.5997561144354256E-4,8.1657983701066453E-6,false]
["SUS631_00395","2014-08-02","16:11:36","Haig","Urban","Other","Single Premise",1,63.83333332487382,5.2125012922272888E-4,8.1657983701066453E-6,false]
["SUS631_00396","2014-08-02","19:07:15","<UNKNOWN>","Urban","Other","Single Premise",1,125.3499999968335,1.023582825667011E-3,8.1657983701066453E-6,false]
["SUS631_00397","2014-08-02","19:35:00","Christian","Urban","Asset failure","HV",1,96,7.8391664353023795E-4,8.1657983701066453E-6,false]
["SUS631_00398","2014-08-03","08:22:00","Dairy North","Short Rural","Planned",0,5,300,0,0,false]
["SUS631_00399","2014-08-03","09:55:00","Dairy South","Urban","Planned",0,2,72,0,0,false]
["SUS631_00400","2014-08-03","11:20:00","Longmore","Urban","Network business","Switching and protection error",14,66,7.5451976939785404E-3,1.1432117718149303E-4,false]
["SUS631_00401","2014-08-03","12:47:46","Weston East","Short Rural","Other","Single Premise",1,33.133333335863426,5.5908027362080569E-4,1.6873650107991362E-5,false]
["SUS631_00402","2014-08-03","13:13:45","Bowley","Short Rural","Other","Single Premise",1,55.616666665300727,9.3845617348307117E-4,1.6873650107991362E-5,false]
["SUS631_00403","2014-08-03","13:27:09","Duffy","Urban","Other","Single Premise",1,87.749999997904524,7.1654880695974687E-4,8.1657983701066453E-6,false]
["SUS631_00404","2014-08-03","16:11:27","Aikman","Urban","Other","Single Premise",1,53.899999995483086,4.4013653211186395E-4,8.1657983701066453E-6,false]
["SUS631_00405","2014-08-03","17:25:00","Macrossan","Short Rural","Third party","Other",66,142,0.15813984881209503,1.1136609071274299E-3,false]
["SUS631_00406","2014-08-03","19:47:37","Dryandra","Urban","Other","Single Premise",1,44.849999996367842,3.6623605686962357E-4,8.1657983701066453E-6,false]
["SUS631_00407","2014-08-03","20:25:08","Belconnen Way South","Urban","Other","Single Premise",1,117.93333333567716,9.6301982113371632E-4,8.1657983701066453E-6,false]
["SUS631_00408","2014-08-04","08:26:00","Bunbury","Short Rural","Asset failure","LV",45,67.066666666666663,5.092467602591793E-2,7.5931425485961125E-4,false]
["SUS631_00409","2014-08-04","09:53:52","Findlayson","Short Rural","Other","Single Premise",1,51.383333337726071,8.6702438812307761E-4,1.6873650107991362E-5,false]
["SUS631_00410","2014-08-05","08:47:00","Wilson","Urban","Planned",0,12,204,0,0,false]
["SUS631_00411","2014-08-05","08:53:00","Callister","Short Rural","Planned",0,40,196.95000000000002,0,0,false]
["SUS631_00412","2014-08-05","08:58:00","Callister","Short Rural","Planned",0,33,186.90909090909091,0,0,false]
["SUS631_00413","2014-08-05","09:08:00","Powers","Urban","Planned",0,47,124.97872340425532,0,0,false]
["SUS631_00414","2014-08-05","09:10:00","Theodore","Urban","Planned",0,29,189.93103448275861,0,0,false]
["SUS631_00415","2014-08-05","09:16:49","Cunningham","Urban","Other","Single Premise",1,239.53333333600312,1.9559809029413462E-3,8.1657983701066453E-6,false]
["SUS631_00416","2014-08-05","09:42:00","Fairley","Short Rural","Planned",0,25,174.96000000000004,0,0,false]
["SUS631_00417","2014-08-05","09:58:00","Lambrigg","Urban","Planned",0,12,117,0,0,false]
["SUS631_00418","2014-08-05","10:30:00","CNBP1","Urban","Planned",0,1,270,0,0,false]
["SUS631_00419","2014-08-05","16:36:34","Markell","Short Rural","Other","Single Premise",1,67.000000008847564,1.1305345573847118E-3,1.6873650107991362E-5,false]
["SUS631_00420","2014-08-05","17:29:12","Aikman","Urban","Other","Single Premise",1,88.766666671726853,7.24850702027787E-4,8.1657983701066453E-6,false]
["SUS631_00421","2014-08-05","18:04:52","Sainsbury","Urban","Other","Single Premise",1,165.73333334061317,1.3533449832651204E-3,8.1657983701066453E-6,false]
["SUS631_00422","2014-08-05","18:57:24","Theodore","Urban","Other","Single Premise",1,76.466666667256504,6.2441138203897127E-4,8.1657983701066453E-6,false]
["SUS631_00423","2014-08-05","19:08:58","Markell","Short Rural","Other","Single Premise",1,171.0333333327435,2.8859566234601696E-3,1.6873650107991362E-5,false]
["SUS631_00424","2014-08-06","09:05:00","Carruthers","Urban","Planned",0,2,465,0,0,false]
["SUS631_00425","2014-08-06","09:23:00","Giles","Urban","Planned",0,2,432,0,0,false]
["SUS631_00426","2014-08-06","10:42:00","Lyons West","Urban","Planned",0,48,26,0,0,false]
["SUS631_00427","2014-08-06","12:41:00","Chuculba","Urban","Other","Single Premise",1,111.48333333665505,9.103504216545137E-4,8.1657983701066453E-6,false]
["SUS631_00428","2014-08-06","13:10:00","Melba","Urban","Asset failure","LV",31,59.032258064516128,1.494341101729516E-2,2.53139749473306E-4,false]
["SUS631_00429","2014-08-06","15:49:00","Alderson","Short Rural","Unknown","Unknown",110,0,0,0,false]
["SUS631_00430","2014-08-06","20:18:00","Weir","Urban","Third party","Other",28,109.07142857142857,2.4938348222305694E-2,2.2864235436298607E-4,false]
["SUS631_00431","2014-08-07","04:37:00","Curtin North","Short Rural","Planned",0,1,360,0,0,false]
["SUS631_00432","2014-08-07","05:32:00","Fincham","Urban","Asset failure","HV",255,67.647058823529406,0.14086002188433963,2.0822785843771945E-3,false]
["SUS631_00433","2014-08-07","07:03:09","Hawkesbury","Short Rural","Other","Single Premise",1,264.95000000344589,4.4706735961704555E-3,1.6873650107991362E-5,false]
["SUS631_00434","2014-08-07","08:27:34","Stott","Urban","Other","Single Premise",1,77.349999997531995,6.3162450390759578E-4,8.1657983701066453E-6,false]
["SUS631_00435","2014-08-07","08:35:00","Strzelecki","Urban","Planned",0,24,32.999999999999993,0,0,false]
["SUS631_00436","2014-08-07","08:54:00","Curtin North","Short Rural","Planned",0,56,323.03571428571428,0,0,false]
["SUS631_00437","2014-08-07","09:23:00","Shannon","Short Rural","Planned",0,8,231,0,0,false]
["SUS631_00438","2014-08-07","09:37:00","Langdon","Urban","Planned",0,58,82.965517241379303,0,0,false]
["SUS631_00439","2014-08-07","09:56:00","Hilder","Short Rural","Third party","Other",23,79.043478260869563,3.0676295896328292E-2,3.880939524838013E-4,false]
["SUS631_00440","2014-08-07","09:58:00","Folingsby","Urban","Planned",0,57,88.94736842105263,0,0,false]
["SUS631_00441","2014-08-07","11:16:19","Folingsby","Urban","Other","Single Premise",1,9.7833333257585764,7.9888727325689413E-5,8.1657983701066453E-6,false]
["SUS631_00442","2014-08-07","11:26:00","Lyell","Urban","Asset failure","LV",9,40,2.9396874132383921E-3,7.3492185330959814E-5,false]
["SUS631_00443","2014-08-07","13:03:00","Powers","Urban","Unknown","Unknown",1134,0,0,0,false]
["SUS631_00444","2014-08-07","17:17:30","West Street","Urban","Other","Single Premise",1,12.316666664555669,1.0057541657457553E-4,8.1657983701066453E-6,false]
["SUS631_00445","2014-08-07","18:03:00","Folingsby","Urban","Asset failure","LV",25,39.120000000000005,7.9861508059642997E-3,2.0414495925266614E-4,false]
["SUS631_00446","2014-08-07","19:58:00","Jardine","Urban","Overloads",0,1,66,5.389426924270386E-4,8.1657983701066453E-6,false]
["SUS631_00447","2014-08-08","09:20:00","May Maxwell","Urban","Planned",0,6,280,0,0,false]
["SUS631_00448","2014-08-08","09:21:00","Giles","Urban","Planned",0,17,439.05882352941182,0,0,false]
["SUS631_00449","2014-08-08","09:25:00","May Maxwell","Urban","Planned",0,16,270,0,0,false]
["SUS631_00450","2014-08-08","13:17:25","<UNKNOWN>","Urban","Other","Single Premise",1,174.78333332925104,1.4272454584218046E-3,8.1657983701066453E-6,false]
["SUS631_00451","2014-08-08","13:19:00","Monash","Urban","Third party","Other",1,150,1.2248697555159967E-3,8.1657983701066453E-6,false]
["SUS631_00452","2014-08-08","14:07:10","Markell","Short Rural","Other","Single Premise",1,89.11666665924713,1.5037234519986353E-3,1.6873650107991362E-5,false]
["SUS631_00453","2014-08-08","17:58:38","Theodore","Urban","Other","Single Premise",1,75.483333334559575,6.1638168031356323E-4,8.1657983701066453E-6,false]
["SUS631_00454","2014-08-08","21:12:51","Folingsby","Urban","Other","Single Premise",1,51.216666674008593,4.182249732489147E-4,8.1657983701066453E-6,false]
["SUS631_00455","2014-08-09","08:26:46","McGuiness","Urban","Other","Single Premise",1,163.23333334294148,1.3329304873588663E-3,8.1657983701066453E-6,false]
["SUS631_00456","2014-08-09","09:10:00","Dairy North","Short Rural","Planned",0,1,360,0,0,false]
["SUS631_00457","2014-08-09","12:33:00","Lampard","Short Rural","Planned",0,21,64,0,0,false]
["SUS631_00458","2014-08-09","14:18:00","Langdon","Urban","Third party","Other",6,16,7.8391664353023795E-4,4.8994790220639872E-5,false]
["SUS631_00459","2014-08-09","17:39:00","Belconnen Way North","Urban","Asset failure","LV",47,134.04255319148936,5.1444529731671865E-2,3.8379252339501232E-4,false]
["SUS631_00460","2014-08-10","08:16:00","Lyell","Urban","Planned",0,38,435.94736842105266,0,0,false]
["SUS631_00461","2014-08-11","00:01:12","Bissenberger","Short Rural","Other","Single Premise",1,55.900000002002344,9.4323704107050386E-4,1.6873650107991362E-5,false]
["SUS631_00462","2014-08-11","03:45:22","Throsby","Urban","Other","Single Premise",1,338.78333332948387,2.7664363911211955E-3,8.1657983701066453E-6,false]
["SUS631_00463","2014-08-11","09:18:00","Mugga","Short Rural","Planned",0,1,300,0,0,false]
["SUS631_00464","2014-08-11","09:25:00","Grimshaw","Short Rural","Planned",0,45,110,0,0,false]
["SUS631_00465","2014-08-11","09:57:00","Mugga","Short Rural","Planned",0,3,304,0,0,false]
["SUS631_00466","2014-08-11","10:02:00","Powers","Urban","Planned",0,51,170,0,0,false]
["SUS631_00467","2014-08-11","10:04:00","Matthews","Short Rural","Planned",0,39,76.923076923076934,0,0,false]
["SUS631_00468","2014-08-11","10:23:00","Lyell","Urban","Asset failure","LV",1,96,7.8391664353023795E-4,8.1657983701066453E-6,false]
["SUS631_00469","2014-08-11","10:43:00","Seal","Urban","Planned",0,43,124.04651162790699,0,0,false]
["SUS631_00470","2014-08-11","13:38:37","Lyell","Urban","Other","Single Premise",1,161.90000000176951,1.3220427561347154E-3,8.1657983701066453E-6,false]
["SUS631_00471","2014-08-12","08:35:00","Lyons West","Urban","Planned",0,81,103.03703703703704,0,0,false]
["SUS631_00472","2014-08-12","08:49:00","Black Mtn","Short Rural","Planned",0,28,160.92857142857142,0,0,false]
["SUS631_00473","2014-08-12","08:53:00","Mackenzie","Short Rural","Planned",0,15,277.2,0,0,false]
["SUS631_00474","2014-08-12","09:02:00","Latham","Urban","Planned",0,51,260.94117647058829,0,0,false]
["SUS631_00475","2014-08-12","09:36:00","Fairley","Short Rural","Planned",0,16,96,0,0,false]
["SUS631_00476","2014-08-12","09:44:00","Throsby","Urban","Planned",0,11,236.18181818181816,0,0,false]
["SUS631_00477","2014-08-12","15:19:42","Strzelecki","Urban","Other","Single Premise",1,127.36666667391546,1.0400505191317752E-3,8.1657983701066453E-6,false]
["SUS631_00478","2014-08-12","15:48:24","Wattle","Urban","Other","Single Premise",1,222.39999999990687,1.8160735575109574E-3,8.1657983701066453E-6,false]
["SUS631_00479","2014-08-12","15:48:53","Brookman","Urban","Other","Single Premise",1,60.316666674334556,4.9253373841954694E-4,8.1657983701066453E-6,false]
["SUS631_00480","2014-08-12","15:53:03","Throsby","Urban","Other","Single Premise",1,70.600000001722947,5.765053649435984E-4,8.1657983701066453E-6,false]
["SUS631_00481","2014-08-12","16:34:00","Birrigai","Short Rural","Third party","Other",12,42.000000000000007,8.5043196544276473E-3,2.0248380129589633E-4,false]
["SUS631_00482","2014-08-13","08:28:08","Cooleman","Urban","Other","Single Premise",1,40.733333331299946,3.326201869257398E-4,8.1657983701066453E-6,false]
["SUS631_00483","2014-08-13","08:46:00","Homann","Short Rural","Planned",0,47,351.95744680851061,0,0,false]
["SUS631_00484","2014-08-13","08:55:00","Carruthers","Urban","Planned",0,30,356,0,0,false]
["SUS631_00485","2014-08-13","08:59:00","Theodore","Urban","Planned",0,20,351.90000000000003,0,0,false]
["SUS631_00486","2014-08-13","09:03:00","Fairley","Short Rural","Planned",0,1,132,0,0,false]
["SUS631_00487","2014-08-13","09:08:00","Fairley","Short Rural","Planned",0,2,122.99999999999999,0,0,false]
["SUS631_00488","2014-08-13","09:39:00","Conolly","Urban","Planned",0,15,129.19999999999999,0,0,false]
["SUS631_00489","2014-08-13","10:01:25","Chisholm","Urban","Other","Single Premise",1,51.799999997019768,4.2298835554718827E-4,8.1657983701066453E-6,false]
["SUS631_00490","2014-08-13","10:26:00","Strzelecki","Urban","Planned",0,1,78,0,0,false]
["SUS631_00491","2014-08-13","11:33:00","Shannon","Short Rural","Asset failure","HV",47,26.042553191489361,2.0653347732181426E-2,7.9306155507559396E-4,false]
["SUS631_00492","2014-08-13","12:45:00","Matthews","Short Rural","Planned",0,2,9,0,0,false]
["SUS631_00493","2014-08-13","13:25:00","Matthews","Short Rural","Planned",0,1,12,0,0,false]
["SUS631_00494","2014-08-13","13:30:00","Belconnen Way South","Urban","Asset failure","LV",17,104.82352941176471,1.4551452695530043E-2,1.3881857229181298E-4,false]
["SUS631_00495","2014-08-13","13:34:00","Hilder","Short Rural","Other","Fire",1082,0,0,0,false]
["SUS631_00496","2014-08-13","14:48:02","Chisholm","Urban","Other","Single Premise",1,66.416666664881632,5.4234510840000681E-4,8.1657983701066453E-6,false]
["SUS631_00497","2014-08-13","17:09:00","Folingsby","Urban","Other","Single Premise",1,60.650000001769513,4.9525567116141757E-4,8.1657983701066453E-6,false]
["SUS631_00498","2014-08-13","23:42:00","Belconnen Way South","Urban","Asset failure","HV",1668,56.978417266187051,0.77607747709493557,1.3620551681337885E-2,false]
["SUS631_00499","2014-08-14","08:50:00","Seal","Urban","Planned",0,41,320.04878048780489,0,0,false]
["SUS631_00500","2014-08-14","09:10:00","Homann","Short Rural","Planned",0,66,315,0,0,false]
["SUS631_00501","2014-08-14","09:35:46","Chisholm","Urban","Other","Single Premise",1,264.23333333688788,2.1576761226902051E-3,8.1657983701066453E-6,false]
["SUS631_00502","2014-08-14","12:50:00","Chisholm","Urban","Asset failure","LV",24,88,1.7246166157665235E-2,1.9597916088255949E-4,false]
["SUS631_00503","2014-08-14","13:05:00","Chippindall","Short Rural","Planned",0,49,33.061224489795919,0,0,false]
["SUS631_00504","2014-08-14","13:16:37","Chippindall","Short Rural","Other","Single Premise",1,40.816666663158685,6.8872615184865493E-4,1.6873650107991362E-5,false]
["SUS631_00505","2014-08-14","13:31:27","Chippindall","Short Rural","Other","Single Premise",1,25.516666659386829,4.3055930513274211E-4,1.6873650107991362E-5,false]
["SUS631_00506","2014-08-14","15:01:01","Templestowe","Short Rural","Other","Single Premise",1,88.383333332603797,1.4913494420323264E-3,1.6873650107991362E-5,false]
["SUS631_00507","2014-08-14","15:41:18","Florey","Urban","Other","Single Premise",1,127.78333333320916,1.0434529350591135E-3,8.1657983701066453E-6,false]
["SUS631_00508","2014-08-14","20:09:17","Theodore","Urban","Other","Single Premise",1,41.2999999942258,3.372474726382535E-4,8.1657983701066453E-6,false]
["SUS631_00509","2014-08-15","07:27:30","LM East","Short Rural","Other","Single Premise",1,99.616666662041098,1.6808967781796892E-3,1.6873650107991362E-5,false]
["SUS631_00510","2014-08-15","08:26:54","Verbrugghen","Short Rural","Other","Single Premise",1,0.9666666726116091,0,0,false]
["SUS631_00511","2014-08-15","08:30:00","Markell","Short Rural","Planned",0,15,236,0,0,false]
["SUS631_00512","2014-08-15","08:35:00","Ebden","Urban","Planned",0,36,225,0,0,false]
["SUS631_00513","2014-08-15","08:35:00","Mackenzie","Short Rural","Planned",0,20,219.9,0,0,false]
["SUS631_00514","2014-08-15","08:37:00","Black Mtn","Short Rural","Planned",0,17,303.88235294117646,0,0,false]
["SUS631_00515","2014-08-15","08:40:00","Mackenzie","Short Rural","Planned",0,18,210,0,0,false]
["SUS631_00516","2014-08-15","09:36:29","Isa","Urban","Other","Single Premise",1,104.90000000456348,8.5659224906145157E-4,8.1657983701066453E-6,false]
["SUS631_00517","2014-08-15","14:05:30","Marconi","Urban","Other","Single Premise",1,123.71666666935198,1.0102453550436216E-3,8.1657983701066453E-6,false]
["SUS631_00518","2014-08-15","14:45:46","Belconnen Way South","Urban","Other","Single Premise",1,84.199999995762482,6.875602227283768E-4,8.1657983701066453E-6,false]
["SUS631_00519","2014-08-15","17:22:55","Lampard","Short Rural","Other","Single Premise",1,301.16666667046957,5.0817809575875667E-3,1.6873650107991362E-5,false]
["SUS631_00520","2014-08-15","17:58:44","Jackie Howe","Short Rural","Other","Single Premise",1,220.21666666958481,3.7158589813307374E-3,1.6873650107991362E-5,false]
["SUS631_00521","2014-08-15","19:33:52","Macrossan","Short Rural","Other","Single Premise",1,41.816666666418314,7.0559980201164807E-4,1.6873650107991362E-5,false]
["SUS631_00522","2014-08-15","23:16:00","Wilson","Urban","Unknown","Unknown",1212,0,0,0,false]
["SUS631_00523","2014-08-16","06:10:00","Christian","Urban","Unknown","Unknown",1,90,7.3492185330959804E-4,8.1657983701066453E-6,false]
["SUS631_00524","2014-08-16","08:11:00","Christian","Urban","Planned",0,1,210,0,0,false]
["SUS631_00525","2014-08-16","09:24:58","Lyons West","Urban","Other","Single Premise",1,162.91666666511446,1.3303446511171992E-3,8.1657983701066453E-6,false]
["SUS631_00526","2014-08-16","11:49:39","Meacham","Short Rural","Other","Single Premise",1,193.63333333516493,3.2673011159416328E-3,1.6873650107991362E-5,false]
["SUS631_00527","2014-08-16","16:41:06","Matthews","Short Rural","Other","Single Premise",1,160.85000000777654,2.7141266200016289E-3,1.6873650107991362E-5,false]
["SUS631_00528","2014-08-16","20:46:57","Riley","Urban","Other","Single Premise",1,166.85000000637956,1.3624634581043879E-3,8.1657983701066453E-6,false]
["SUS631_00529","2014-08-16","21:30:00","Riley","Urban","Asset failure","LV",22,106.09090909090908,1.9058973395828908E-2,1.7964756414234621E-4,false]
["SUS631_00530","2014-08-17","02:56:00","Conley","Urban","Unknown","Unknown",708,0,0,0,false]
["SUS631_00531","2014-08-17","03:26:00","Longmore","Urban","Asset failure","LV",34,90,2.4987343012526336E-2,2.7763714458362595E-4,false]
["SUS631_00532","2014-08-17","07:12:41","Bissenberger","Short Rural","Other","Single Premise",1,206.48333333199844,3.4841275197758917E-3,1.6873650107991362E-5,false]
["SUS631_00533","2014-08-17","16:28:57","Strzelecki","Urban","Other","Single Premise",1,167.96666667214595,1.3715819329436555E-3,8.1657983701066453E-6,false]
["SUS631_00534","2014-08-17","18:16:37","Giles","Urban","Other","Single Premise",1,46.666666668606922,3.8107059062082049E-4,8.1657983701066453E-6,false]
["SUS631_00535","2014-08-17","23:33:32","Rossman","Urban","Other","Single Premise",1,48.166666663018987,3.9331928813035052E-4,8.1657983701066453E-6,false]
["SUS631_00536","2014-08-17","23:35:00","Elkington","Urban","Vegetation","Grow-in - Other responsible party",16,42,5.4874165047116659E-3,1.3065277392170632E-4,false]
["SUS631_00537","2014-08-18","08:55:53","Tralee","Urban","Other","Single Premise",1,126.16666666581295,1.0302515610214839E-3,8.1657983701066453E-6,false]
["SUS631_00538","2014-08-18","09:08:34","Lander","Urban","Other","Single Premise",1,59.499999994877726,4.8586500297951793E-4,8.1657983701066453E-6,false]
["SUS631_00539","2014-08-18","11:33:00","Powers","Urban","Other","Customer installation",1,234,1.9107968186049551E-3,8.1657983701066453E-6,false]
["SUS631_00540","2014-08-18","18:49:53","Haydon","Urban","Other","Single Premise",1,74.05000000144355,6.0467736931818484E-4,8.1657983701066453E-6,false]
["SUS631_00541","2014-08-19","08:49:00","Carruthers","Urban","Planned",0,33,353.99999999999994,0,0,false]
["SUS631_00542","2014-08-19","09:05:00","May Maxwell","Urban","Planned",0,15,102.8,0,0,false]
["SUS631_00543","2014-08-19","09:12:00","Deakin No 2","Urban","Planned",0,1,54,0,0,false]
["SUS631_00544","2014-08-19","09:15:00","Miller","Urban","Planned",0,101,150,0,0,false]
["SUS631_00545","2014-08-19","09:46:00","Wilson","Urban","Planned",0,26,39.923076923076927,0,0,false]
["SUS631_00546","2014-08-19","11:00:00","Monaro","Urban","Planned",0,2,24,0,0,false]
["SUS631_00547","2014-08-19","11:00:00","Miller","Urban","Animal","Other",0,0,0,0,false]
["SUS631_00548","2014-08-19","14:24:46","Jardine","Urban","Other","Single Premise",1,26.933333332417533,2.1993216942739407E-4,8.1657983701066453E-6,false]
["SUS631_00549","2014-08-19","14:30:00","Alderson","Short Rural","Planned",0,1,66,0,0,false]
["SUS631_00550","2014-08-19","15:02:52","<UNKNOWN>","Urban","Other","Single Premise",1,117.13333333726041,9.5648718245055944E-4,8.1657983701066453E-6,false]
["SUS631_00551","2014-08-19","17:12:14","Miller","Urban","Other","Single Premise",1,149.63333332794718,1.2218756294029756E-3,8.1657983701066453E-6,false]
["SUS631_00552","2014-08-19","17:44:18","Lexcen","Urban","Other","Single Premise",1,41.616666672052816,3.3983330887992044E-4,8.1657983701066453E-6,false]
["SUS631_00553","2014-08-19","17:51:00","Belconnen Way North","Urban","Asset failure","LV",60,39,1.910796818604955E-2,4.8994790220639869E-4,false]
["SUS631_00554","2014-08-19","19:54:42","Callister","Short Rural","Other","Single Premise",1,135.41666666977108,2.2849734521762127E-3,1.6873650107991362E-5,false]
["SUS631_00555","2014-08-20","08:00:00","Christian","Urban","Asset failure","HV",0,0,0,0,false]
["SUS631_00556","2014-08-20","08:54:00","William Slim","Short Rural","Planned",0,68,456,0,0,false]
["SUS631_00557","2014-08-20","09:12:00","Bissenberger","Short Rural","Planned",0,21,33.142857142857146,0,0,false]
["SUS631_00558","2014-08-20","09:14:00","Mackenzie","Short Rural","Planned",0,147,130,0,0,false]
["SUS631_00559","2014-08-20","09:25:00","Mackenzie","Short Rural","Planned",0,18,230,0,0,false]
["SUS631_00560","2014-08-20","10:11:00","Mackenzie","Short Rural","Planned",0,18,113,0,0,false]
["SUS631_00561","2014-08-20","10:18:10","Lyons West","Urban","Other","Single Premise",1,96.366666667163372,7.8691076960333303E-4,8.1657983701066453E-6,false]
["SUS631_00562","2014-08-20","11:43:09","Throsby","Urban","Other","Single Premise",1,160.29999999445863,1.3089774786828455E-3,8.1657983701066453E-6,false]
["SUS631_00563","2014-08-20","13:34:00","Cunningham","Urban","Planned",0,1,30,0,0,false]
["SUS631_00564","2014-08-20","15:15:03","<UNKNOWN>","Urban","Other","Single Premise",1,86.016666668001562,7.0239475647957382E-4,8.1657983701066453E-6,false]
["SUS631_00565","2014-08-20","18:02:51","Mildura","Urban","Other","Single Premise",1,112.38333333749324,9.176996401944541E-4,8.1657983701066453E-6,false]
["SUS631_00566","2014-08-20","22:24:00","Wattle","Urban","Third party","Other",4,351,1.1464780911629731E-2,3.2663193480426581E-5,false]
["SUS631_00567","2014-08-20","22:24:49","Cowper","Urban","Other","Single Premise",1,56.449999994365498,4.6095931794650993E-4,8.1657983701066453E-6,false]
["SUS631_00568","2014-08-21","00:18:00","Cowper","Urban","Third party","Other",11,237.27272727272728,2.1312733745978345E-2,8.9823782071173105E-5,false]
["SUS631_00569","2014-08-21","07:32:05","Power House","Urban","Other","Single Premise",1,178.41666666325182,1.4569145258386423E-3,8.1657983701066453E-6,false]
["SUS631_00570","2014-08-21","07:50:17","William Slim","Short Rural","Other","Single Premise",1,144.01666666846722,2.4300868430829378E-3,1.6873650107991362E-5,false]
["SUS631_00571","2014-08-21","08:40:00","LM East","Short Rural","Planned",0,34,100.05882352941177,0,0,false]
["SUS631_00572","2014-08-21","08:56:00","Hawkesbury","Short Rural","Planned",0,39,424.00000000000006,0,0,false]
["SUS631_00573","2014-08-21","08:57:00","Yarralumla","Urban","Planned",0,29,219.93103448275861,0,0,false]
["SUS631_00574","2014-08-21","09:00:00","ANU Central","Urban","Planned",0,1,48,0,0,false]
["SUS631_00575","2014-08-21","09:06:00","McCaughey","Short Rural","Planned",0,32,185.0625,0,0,false]
["SUS631_00576","2014-08-21","09:21:00","Hawkesbury","Short Rural","Planned",0,54,106.00000000000001,0,0,false]
["SUS631_00577","2014-08-21","09:38:00","Nicholson","Urban","Planned",0,2,159,0,0,false]
["SUS631_00578","2014-08-21","09:44:00","Nicholson","Urban","Planned",0,7,145.71428571428569,0,0,false]
["SUS631_00579","2014-08-21","14:08:56","Birrigai","Short Rural","Other","Single Premise",1,86.900000008754432,1.4663201945321685E-3,1.6873650107991362E-5,false]
["SUS631_00580","2014-08-21","14:19:00","William Slim","Short Rural","Asset failure","LV",55,55.963636363636354,5.19370950323974E-2,9.2805075593952488E-4,false]
["SUS631_00581","2014-08-21","14:42:00","O'Loghlen","Urban","Vegetation","Blow-in/Fall-in - NSP responsibility",23,235.04347826086956,4.4144305988796526E-2,1.8781336251245284E-4,false]
["SUS631_00582","2014-08-21","20:07:00","Callister","Short Rural","Third party","Other",70,85.971428571428575,0.101545626349892,1.1811555075593953E-3,false]
["SUS631_00583","2014-08-22","05:33:32","Brookman","Urban","Other","Single Premise",1,179.03333332738839,1.4619501014795479E-3,8.1657983701066453E-6,false]
["SUS631_00584","2014-08-22","08:01:00","Macrossan","Short Rural","Planned",0,7,392.57142857142856,0,0,false]
["SUS631_00585","2014-08-22","08:13:00","Macrossan","Short Rural","Planned",0,7,385.71428571428572,0,0,false]
["SUS631_00586","2014-08-22","08:20:00","Macrossan","Short Rural","Planned",0,7,372.85714285714289,0,0,false]
["SUS631_00587","2014-08-22","08:21:00","Macrossan","Short Rural","Planned",0,4,403.5,0,0,false]
["SUS631_00588","2014-08-22","08:28:00","Macrossan","Short Rural","Planned",0,1,378,0,0,false]
["SUS631_00589","2014-08-22","08:34:00","Macrossan","Short Rural","Planned",0,40,354,0,0,false]
["SUS631_00590","2014-08-22","08:51:00","Homann","Short Rural","Planned",0,34,342,0,0,false]
["SUS631_00591","2014-08-22","09:31:53","Brookman","Urban","Other","Single Premise",1,84.266666667535901,6.8810460932808466E-4,8.1657983701066453E-6,false]
["SUS631_00592","2014-08-22","09:40:00","Strzelecki","Urban","Planned",0,25,149.04,0,0,false]
["SUS631_00593","2014-08-22","09:41:00","Theodore","Urban","Planned",0,23,376.95652173913044,0,0,false]
["SUS631_00594","2014-08-22","09:44:38","Melba","Urban","Other","Single Premise",1,86.683333333348855,7.0783862204887109E-4,8.1657983701066453E-6,false]
["SUS631_00595","2014-08-22","09:52:00","Theodore","Urban","Planned",0,20,168,0,0,false]
["SUS631_00596","2014-08-22","10:59:00","McInnes","Urban","Planned",0,14,138.85714285714283,0,0,false]
["SUS631_00597","2014-08-22","11:05:00","McInnes","Urban","Planned",0,23,128.08695652173913,0,0,false]
["SUS631_00598","2014-08-22","19:25:00","Belconnen Way South","Urban","Asset failure","LV",34,73.058823529411754,2.0283843151344905E-2,2.7763714458362595E-4,false]
["SUS631_00599","2014-08-23","08:40:00","King","Urban","Planned",0,48,268,0,0,false]
["SUS631_00600","2014-08-23","14:56:00","Brookman","Urban","Asset failure","LV",12,143,1.4012510003103003E-2,9.7989580441279744E-5,false]
["SUS631_00601","2014-08-23","19:03:39","Chuculba","Urban","Other","Single Premise",1,58.333333327900618,4.7633823821185853E-4,8.1657983701066453E-6,false]
["SUS631_00602","2014-08-23","19:54:00","Chisholm","Urban","Asset failure","LV",18,42,6.1733435678006238E-3,1.4698437066191963E-4,false]
["SUS631_00603","2014-08-24","00:20:00","McInnes","Urban","Third party","Other",68,273.97058823529414,0.15212882363508681,5.5527428916725191E-4,false]
["SUS631_00604","2014-08-24","14:29:01","Gurrang","Short Rural","Other","Single Premise",1,62.583333336515352,1.0560092693121517E-3,1.6873650107991362E-5,false]
["SUS631_00605","2014-08-24","15:28:27","Duffy","Urban","Other","Single Premise",1,30.649999998277053,2.5028172002969942E-4,8.1657983701066453E-6,false]
["SUS631_00606","2014-08-24","15:56:00","Baldwin","Urban","Unknown","Unknown",30,43,1.0533879897437572E-2,2.4497395110319935E-4,false]
["SUS631_00607","2014-08-24","18:17:16","<UNKNOWN>","Urban","Other","Single Premise",1,54.799999996321276,4.4748575065180446E-4,8.1657983701066453E-6,false]
["SUS631_00608","2014-08-24","18:56:50","Strzelecki","Urban","Other","Single Premise",1,41.650000002700835,3.4010550213699626E-4,8.1657983701066453E-6,false]
["SUS631_00609","2014-08-25","00:01:00","Easty","Urban","Planned",0,1,30,0,0,false]
["SUS631_00610","2014-08-25","02:00:00","Launceston","Urban","Planned",0,1,18,0,0,false]
["SUS631_00611","2014-08-25","04:00:00","Cameron North","Urban","Planned",0,2,15,0,0,false]
["SUS631_00612","2014-08-25","08:51:00","Homann","Short Rural","Planned",0,50,21.96,0,0,false]
["SUS631_00613","2014-08-25","09:27:00","Mackenzie","Short Rural","Planned",0,37,283.94594594594594,0,0,false]
["SUS631_00614","2014-08-25","09:54:03","Duffy","Urban","Other","Single Premise",1,127.28333333157934,1.0393700358607514E-3,8.1657983701066453E-6,false]
["SUS631_00615","2014-08-25","10:01:00","Wakefield","Urban","Planned",0,30,89,0,0,false]
["SUS631_00616","2014-08-25","12:24:14","Giles","Urban","Other","Single Premise",1,48.583333332790062,3.9672170414324496E-4,8.1657983701066453E-6,false]
["SUS631_00617","2014-08-25","17:28:45","Bissenberger","Short Rural","Other","Single Premise",1,215.70000000530854,3.6396463283833108E-3,1.6873650107991362E-5,false]
["SUS631_00618","2014-08-25","17:53:00","Conley","Urban","Asset failure","LV",1,66,5.389426924270386E-4,8.1657983701066453E-6,false]
["SUS631_00619","2014-08-25","18:03:08","Miller","Urban","Other","Single Premise",1,85.683333330089226,6.9967282365214695E-4,8.1657983701066453E-6,false]
["SUS631_00620","2014-08-26","08:44:00","Ebden","Urban","Planned",0,24,185,0,0,false]
["SUS631_00621","2014-08-26","08:50:00","Laurie","Urban","Planned",0,20,276.90000000000003,0,0,false]
["SUS631_00622","2014-08-26","08:58:00","Ebden","Urban","Planned",0,47,175.02127659574467,0,0,false]
["SUS631_00623","2014-08-26","08:59:00","Deakin No 1","Urban","Planned",0,45,218.93333333333331,0,0,false]
["SUS631_00624","2014-08-26","09:17:00","Willoughby","Short Rural","Asset failure","LV",57,58,5.5784287257019435E-2,9.6179805615550758E-4,false]
["SUS631_00625","2014-08-26","09:45:00","Reid","Short Rural","Planned",0,26,107.99999999999999,0,0,false]
["SUS631_00626","2014-08-26","10:55:00","Willoughby","Short Rural","Planned",0,41,69.951219512195124,0,0,false]
["SUS631_00627","2014-08-26","11:50:34","Easty","Urban","Other","Single Premise",1,112.13333334191702,9.1565819063805121E-4,8.1657983701066453E-6,false]
["SUS631_00628","2014-08-26","11:59:24","CAE No 1","Urban","Other","Single Premise",1,38.016666668700054,3.1043643472015856E-4,8.1657983701066453E-6,false]
["SUS631_00629","2014-08-26","13:21:05","Stott","Urban","Other","Single Premise",1,133.41666666325182,1.0894535991838434E-3,8.1657983701066453E-6,false]
["SUS631_00630","2014-08-26","13:30:00","CAE No 2","Urban","Asset failure","LV",1,30,2.4497395110319935E-4,8.1657983701066453E-6,false]
["SUS631_00631","2014-08-27","07:39:06","Lambrigg","Urban","Other","Single Premise",1,115.68333333358169,9.4464677478386504E-4,8.1657983701066453E-6,false]
["SUS631_00632","2014-08-27","08:42:00","Giles","Urban","Planned",0,29,170.89655172413791,0,0,false]
["SUS631_00633","2014-08-27","08:53:00","Lawrence Wackett","Urban","Planned",0,24,51,0,0,false]
["SUS631_00634","2014-08-27","09:30:12","Lawrence Wackett","Urban","Other","Single Premise",1,121.21666667168029,9.898308591373675E-4,8.1657983701066453E-6,false]
["SUS631_00635","2014-08-27","09:55:00","Dairy North","Short Rural","Planned",0,13,336.92307692307691,0,0,false]
["SUS631_00636","2014-08-27","10:08:00","Lhotsky","Short Rural","Planned",0,2,153,0,0,false]
["SUS631_00637","2014-08-27","10:34:00","Edmond","Urban","Planned",0,25,28.08,0,0,false]
["SUS631_00638","2014-08-27","12:03:45","Conley","Urban","Other","Single Premise",1,110.18333333660848,8.997348837729948E-4,8.1657983701066453E-6,false]
["SUS631_00639","2014-08-27","16:19:00","Grimshaw","Short Rural","Other","Single Premise",1,71.733333338052034,1.210403167826202E-3,1.6873650107991362E-5,false]
["SUS631_00640","2014-08-27","17:36:08","Copland","Urban","Other","Single Premise",1,124.83333333511837,1.0193638298828891E-3,8.1657983701066453E-6,false]
["SUS631_00641","2014-08-28","08:52:00","Anthony Rolfe","Short Rural","Planned",0,1,264,0,0,false]
["SUS631_00642","2014-08-28","08:55:00","Carruthers","Urban","Planned",0,20,140.1,0,0,false]
["SUS631_00643","2014-08-28","09:25:00","Hawkesbury","Short Rural","Planned",0,46,283.95652173913044,0,0,false]
["SUS631_00644","2014-08-28","09:30:00","Mackenzie","Short Rural","Planned",0,24,355,0,0,false]
["SUS631_00645","2014-08-28","09:31:00","Hawkesbury","Short Rural","Planned",0,43,274.04651162790697,0,0,false]
["SUS631_00646","2014-08-28","10:40:00","Homann","Short Rural","Planned",0,36,103,0,0,false]
["SUS631_00647","2014-08-28","11:55:10","Magenta","Urban","Other","Single Premise",1,99.449999998323619,8.1208864789341685E-4,8.1657983701066453E-6,false]
["SUS631_00648","2014-08-28","12:09:00","Lambrigg","Urban","Asset failure","LV",62,131.03225806451613,6.6338945958746384E-2,5.06279498946612E-4,false]
["SUS631_00649","2014-08-28","13:38:00","Beggs","Short Rural","Asset failure","HV",692,78.997109826589607,0.92241495680345587,1.1676565874730021E-2,false]
["SUS631_00650","2014-08-28","13:50:02","Jackie Howe","Short Rural","Other","Single Premise",1,84.783333329251036,1.4306043015869844E-3,1.6873650107991362E-5,false]
["SUS631_00651","2014-08-28","13:58:34","Ebden","Urban","Other","Single Premise",1,110.8499999914784,9.0517874925673595E-4,8.1657983701066453E-6,false]
["SUS631_00652","2014-08-28","14:25:01","<UNKNOWN>","Urban","Other","Single Premise",1,23.183333325432613,1.8931042548245671E-4,8.1657983701066453E-6,false]
["SUS631_00653","2014-08-28","16:10:53","<UNKNOWN>","Urban","Other","Single Premise",1,99.799999996321276,8.1494667730660348E-4,8.1657983701066453E-6,false]
["SUS631_00654","2014-08-29","08:31:00","Bunbury","Short Rural","Planned",0,44,194.04545454545456,0,0,false]
["SUS631_00655","2014-08-29","08:45:04","Telopea Park East","Urban","Other","Single Premise",1,31.066666668048128,2.5368413604259386E-4,8.1657983701066453E-6,false]
["SUS631_00656","2014-08-29","08:55:00","Giles","Urban","Planned",0,8,99.75,0,0,false]
["SUS631_00657","2014-08-29","09:00:00","Newcastle","Short Rural","Planned",0,1,378,0,0,false]
["SUS631_00658","2014-08-29","09:00:00","Newcastle","Short Rural","Planned",0,1,378,0,0,false]
["SUS631_00659","2014-08-29","09:18:00","Nicholson","Urban","Planned",0,3,176,0,0,false]
["SUS631_00660","2014-08-29","10:09:54","Bunbury","Short Rural","Other","Single Premise",1,86.083333339774981,1.4525400469049504E-3,1.6873650107991362E-5,false]
["SUS631_00661","2014-08-29","11:53:56","Whyalla","Urban","Other","Single Premise",1,77.383333338657394,6.3189669725022778E-4,8.1657983701066453E-6,false]
["SUS631_00662","2014-08-29","13:30:00","Athllon","Urban","Asset failure","LV",19,70.105263157894726,1.087684342898205E-2,1.5515016903202625E-4,false]
["SUS631_00663","2014-08-29","13:30:00","Rossman","Urban","Planned",0,1,192,0,0,false]
["SUS631_00664","2014-08-29","13:30:00","Rossman","Urban","Planned",0,1,192,0,0,false]
["SUS631_00665","2014-08-29","15:27:04","<UNKNOWN>","Urban","Other","Single Premise",1,76.566666669677943,6.2522796189575501E-4,8.1657983701066453E-6,false]
["SUS631_00666","2014-08-30","09:25:00","Deakin No 1","Urban","Planned",0,15,230,0,0,false]
["SUS631_00667","2014-08-31","06:35:00","Northbourne","Urban","Planned",0,1,666,0,0,false]
["SUS631_00668","2014-08-31","09:22:47","Lampard","Short Rural","Other","Single Premise",1,11.666666659293696,1.9685925113549027E-4,1.6873650107991362E-5,false]
["SUS631_00669","2014-08-31","12:45:00","Bissenberger","Short Rural","Third party","Other",4,259.5,1.7514848812095033E-2,6.7494600431965447E-5,false]
["SUS631_00670","2014-08-31","12:50:00","Bissenberger","Short Rural","Third party","Other",16,259.875,7.0160637149028079E-2,2.6997840172786179E-4,false]
["SUS631_00671","2014-08-31","18:52:32","Pitman","Short Rural","Other","Single Premise",1,45.199999994365498,7.6268898478613488E-4,1.6873650107991362E-5,false]
["SUS631_00672","2014-09-01","03:01:00","Dairy South","Urban","Asset failure","HV",8,78.75,5.1444529731671865E-3,6.5326386960853162E-5,false]
["SUS631_00673","2014-09-01","08:10:05","Belconnen Way South","Urban","Other","Single Premise",1,123.78333333064802,1.0107897415577731E-3,8.1657983701066453E-6,false]
["SUS631_00674","2014-09-01","09:00:00","Chippindall","Short Rural","Planned",0,46,322.95652173913038,0,0,false]
["SUS631_00675","2014-09-01","09:37:01","Edmond","Urban","Other","Single Premise",1,67.366666666930541,5.5010261686833908E-4,8.1657983701066453E-6,false]
["SUS631_00676","2014-09-01","13:37:40","Anthony Rolfe","Short Rural","Other","Single Premise",1,50.066666667116806,8.44807415414363E-4,1.6873650107991362E-5,false]
["SUS631_00677","2014-09-01","15:42:00","Ferdinand","Short Rural","Vegetation","Grow-in - Other responsible party",37,61.945945945945951,3.8674406047516201E-2,6.2432505399568033E-4,false]
["SUS631_00678","2014-09-01","18:59:32","Callister","Short Rural","Other","Single Premise",1,136.69999999925494,2.3066279697498472E-3,1.6873650107991362E-5,false]
["SUS631_00679","2014-09-01","20:27:00","Gaunson","Urban","Asset failure","LV",12,63,6.1733435678006238E-3,9.7989580441279744E-5,false]
["SUS631_00680","2014-09-01","22:58:58","Gaunson","Urban","Other","Single Premise",1,53.266666660783812,4.3496485979964243E-4,8.1657983701066453E-6,false]
["SUS631_00681","2014-09-02","07:24:28","Symers","Urban","Other","Single Premise",1,391.98333333944902,3.2008568644922427E-3,8.1657983701066453E-6,false]
["SUS631_00682","2014-09-02","08:45:00","Empire","Urban","Planned",0,17,289.05882352941182,0,0,false]
["SUS631_00683","2014-09-02","08:50:00","Streeton","Short Rural","Planned",0,69,133.04347826086956,0,0,false]
["SUS631_00684","2014-09-02","09:06:45","Baldwin","Urban","Other","Single Premise",1,68.516666673822328,5.5949328505023872E-4,8.1657983701066453E-6,false]
["SUS631_00685","2014-09-02","09:13:00","Athllon","Urban","Planned",0,20,321.90000000000003,0,0,false]
["SUS631_00686","2014-09-02","09:45:00","Marconi","Urban","Planned",0,30,205,0,0,false]
["SUS631_00687","2014-09-02","09:50:00","Marconi","Urban","Planned",0,28,195,0,0,false]
["SUS631_00688","2014-09-02","09:57:00","Mackenzie","Short Rural","Planned",0,16,292.875,0,0,false]
["SUS631_00689","2014-09-02","12:15:00","Symers","Urban","Asset failure","LV",43,67.953488372093034,2.3860462837451621E-2,3.5112932991458577E-4,false]
["SUS631_00690","2014-09-02","16:02:58","Wilson","Urban","Other","Single Premise",1,125.76666666660458,1.0269852416799055E-3,8.1657983701066453E-6,false]
["SUS631_00691","2014-09-02","16:10:21","Markell","Short Rural","Other","Single Premise",1,120.96666667610407,2.0411492082225984E-3,1.6873650107991362E-5,false]
["SUS631_00692","2014-09-02","22:49:05","Findlayson","Short Rural","Other","Single Premise",1,33.116666665300727,5.5879904605326549E-4,1.6873650107991362E-5,false]
["SUS631_00693","2014-09-03","08:50:00","Carruthers","Urban","Planned",0,38,249.94736842105266,0,0,false]
["SUS631_00694","2014-09-03","08:51:00","Giles","Urban","Planned",0,30,396,0,0,false]
["SUS631_00695","2014-09-03","08:55:00","Empire","Urban","Planned",0,24,109,0,0,false]
["SUS631_00696","2014-09-03","09:00:00","Tillyard","Urban","Planned",0,37,209.02702702702703,0,0,false]
["SUS631_00697","2014-09-03","09:04:00","Tillyard","Urban","Planned",0,30,201,0,0,false]
["SUS631_00698","2014-09-03","09:15:00","Athllon","Urban","Planned",0,43,174.97674418604652,0,0,false]
["SUS631_00699","2014-09-03","09:47:08","Wattle","Urban","Other","Single Premise",1,82.016666675917804,6.6973156306378962E-4,8.1657983701066453E-6,false]
["SUS631_00700","2014-09-03","10:12:25","O'Loghlen","Urban","Other","Single Premise",1,76.783333334606141,6.2699721819508203E-4,8.1657983701066453E-6,false]
["SUS631_00701","2014-09-03","13:33:11","Chisholm","Urban","Other","Single Premise",1,52.950000003911555,4.3237902372908786E-4,8.1657983701066453E-6,false]
["SUS631_00702","2014-09-03","14:57:00","Mackenzie","Short Rural","Asset failure","LV",29,103.03448275862068,5.0418466522678188E-2,4.8933585313174941E-4,false]
["SUS631_00703","2014-09-03","16:34:00","Ijong","Urban","Asset failure","LV",1,84,6.8592706308895823E-4,8.1657983701066453E-6,false]
["SUS631_00704","2014-09-03","16:34:19","Ijong","Urban","Other","Single Premise",1,91.733333329902962,7.4907590378977119E-4,8.1657983701066453E-6,false]
["SUS631_00705","2014-09-04","08:37:00","Empire","Urban","Planned",0,39,262.92307692307696,0,0,false]
["SUS631_00706","2014-09-04","08:43:00","Empire","Urban","Planned",0,64,253.96874999999997,0,0,false]
["SUS631_00707","2014-09-04","08:50:00","Marconi","Urban","Planned",0,20,80.099999999999994,0,0,false]
["SUS631_00708","2014-09-04","08:53:00","Devonport","Urban","Planned",0,21,197.14285714285714,0,0,false]
["SUS631_00709","2014-09-04","08:59:00","Giles","Urban","Planned",0,19,150.94736842105263,0,0,false]
["SUS631_00710","2014-09-04","09:10:00","LM West","Short Rural","Planned",0,1,102,0,0,false]
["SUS631_00711","2014-09-04","09:35:00","Belconnen Way North","Urban","Planned",0,38,177.94736842105263,0,0,false]
["SUS631_00712","2014-09-04","09:45:00","Lyons West","Urban","Planned",0,80,122.99999999999999,0,0,false]
["SUS631_00713","2014-09-04","10:53:30","Lyons West","Urban","Other","Single Premise",1,68.149999994784594,5.5649915888017997E-4,8.1657983701066453E-6,false]
["SUS631_00714","2014-09-04","21:27:19","Empire","Urban","Other","Single Premise",1,49.449999992502853,4.0379872934055342E-4,8.1657983701066453E-6,false]
["SUS631_00715","2014-09-05","07:06:22","Elkington","Urban","Other","Single Premise",1,101.85000000405125,8.3168656402844352E-4,8.1657983701066453E-6,false]
["SUS631_00716","2014-09-05","09:00:00","Curtin North","Short Rural","Planned",0,13,215.07692307692309,0,0,false]
["SUS631_00717","2014-09-05","09:05:00","Deakin No 1","Urban","Planned",0,31,204.9677419354839,0,0,false]
["SUS631_00718","2014-09-05","10:36:44","Wilson","Urban","Other","Single Premise",1,63.866666665999219,5.2152232256536088E-4,8.1657983701066453E-6,false]
["SUS631_00719","2014-09-06","07:30:00","Abattoirs","Short Rural","Planned",0,9,306,0,0,false]
["SUS631_00720","2014-09-06","16:53:47","Fielder","Urban","Other","Single Premise",1,92.083333338377997,7.5193393328851395E-4,8.1657983701066453E-6,false]
["SUS631_00721","2014-09-07","10:17:21","<UNKNOWN>","Urban","Other","Single Premise",1,96.600000002654269,7.8881612257397616E-4,8.1657983701066453E-6,false]
["SUS631_00722","2014-09-07","14:05:00","Melba","Urban","Asset failure","LV",8,36.75,2.4007447208113535E-3,6.5326386960853162E-5,false]
["SUS631_00723","2014-09-07","15:22:00","Melba","Urban","Asset failure","LV",54,4,1.7638124479430353E-3,4.4095311198575883E-4,false]
["SUS631_00724","2014-09-07","17:52:10","Bunbury","Short Rural","Other","Single Premise",1,12.416666666977108,2.09514488846131E-4,1.6873650107991362E-5,false]
["SUS631_00725","2014-09-07","19:36:45","Hawkesbury","Short Rural","Other","Single Premise",1,86.866666667629033,1.4657577393970881E-3,1.6873650107991362E-5,false]
["SUS631_00726","2014-09-08","05:02:00","Melba","Urban","Asset failure","LV",62,12.96774193548387,6.5653018895657431E-3,5.06279498946612E-4,false]
["SUS631_00727","2014-09-08","06:55:00","Carruthers","Urban","Asset failure","HV",35,39.942857142857143,1.141578612140909E-2,2.8580294295373261E-4,false]
["SUS631_00728","2014-09-08","09:12:00","Hawker","Urban","Planned",0,24,188,0,0,false]
["SUS631_00729","2014-09-08","09:15:00","Mackenzie","Short Rural","Planned",0,24,200,0,0,false]
["SUS631_00730","2014-09-08","09:29:56","Stott","Urban","Other","Single Premise",1,145.23333333665505,1.1859461166456129E-3,8.1657983701066453E-6,false]
["SUS631_00731","2014-09-08","09:35:00","Theodore","Urban","Planned",0,35,207.08571428571429,0,0,false]
["SUS631_00732","2014-09-08","09:39:52","Empire","Urban","Other","Single Premise",1,163.41666666674428,1.3344275503155614E-3,8.1657983701066453E-6,false]
["SUS631_00733","2014-09-08","10:04:00","Gouger","Urban","Planned",0,41,180,0,0,false]
["SUS631_00734","2014-09-08","10:15:45","Paterick","Urban","Other","Single Premise",1,311.68333333334886,2.5451432553228663E-3,8.1657983701066453E-6,false]
["SUS631_00735","2014-09-08","10:31:00","Carruthers","Urban","Planned",0,31,102.00000000000001,0,0,false]
["SUS631_00736","2014-09-08","10:38:00","Carruthers","Urban","Planned",0,30,93,0,0,false]
["SUS631_00737","2014-09-08","12:04:00","Dryandra","Urban","Planned",0,46,121.04347826086956,0,0,false]
["SUS631_00738","2014-09-08","16:22:29","Jardine","Urban","Other","Single Premise",1,87.566666663624346,7.1505174391749561E-4,8.1657983701066453E-6,false]
["SUS631_00739","2014-09-08","17:10:34","Hawker","Urban","Other","Single Premise",1,90.016666670562699,7.3505794998091404E-4,8.1657983701066453E-6,false]
["SUS631_00740","2014-09-09","07:50:00","Shannon","Short Rural","Asset failure","HV",1291,73.998450813323004,1.6119735421166306,2.1783882289416846E-2,false]
["SUS631_00741","2014-09-09","08:35:00","Carruthers","Urban","Planned",0,27,131.99999999999997,0,0,false]
["SUS631_00742","2014-09-09","08:55:00","Seal","Urban","Planned",0,50,110.04,0,0,false]
["SUS631_00743","2014-09-09","09:00:00","Brookman","Urban","Planned",0,17,165.1764705882353,0,0,false]
["SUS631_00744","2014-09-09","09:00:00","Seal","Urban","Planned",0,28,109.92857142857143,0,0,false]
["SUS631_00745","2014-09-09","09:12:00","Mugga","Short Rural","Planned",0,3,272,0,0,false]
["SUS631_00746","2014-09-09","09:21:54","Jardine","Urban","Other","Single Premise",1,46.966666675871238,3.8352033019117143E-4,8.1657983701066453E-6,false]
["SUS631_00747","2014-09-09","12:14:00","Gaunson","Urban","Planned",0,20,141.89999999999998,0,0,false]
["SUS631_00748","2014-09-09","12:14:00","Gaunson","Urban","Planned",0,20,141.89999999999998,0,0,false]
["SUS631_00749","2014-09-09","15:36:55","Chisholm","Urban","Other","Single Premise",1,167.28333333623596,1.3660019707030422E-3,8.1657983701066453E-6,false]
["SUS631_00750","2014-09-09","16:10:00","Wakefield","Urban","Asset failure","LV",41,9.0731707317073162,3.0376769936796715E-3,3.3479773317437246E-4,false]
["SUS631_00751","2014-09-09","16:45:42","Bowley","Short Rural","Other","Single Premise",1,148.90000000130385,2.5124865011019143E-3,1.6873650107991362E-5,false]
["SUS631_00752","2014-09-09","21:35:00","Lyons West","Urban","Asset failure","LV",32,78,2.0381832731786186E-2,2.6130554784341265E-4,false]
["SUS631_00753","2014-09-10","06:23:28","Gaunson","Urban","Other","Single Premise",1,158.55000000447035,1.2946873316169126E-3,8.1657983701066453E-6,false]
["SUS631_00754","2014-09-10","08:30:00","Dairy North","Short Rural","Planned",0,1,468,0,0,false]
["SUS631_00755","2014-09-10","08:38:00","Mackenzie","Short Rural","Planned",0,13,205.84615384615387,0,0,false]
["SUS631_00756","2014-09-10","08:38:00","Latham","Urban","Planned",0,27,245.11111111111114,0,0,false]
["SUS631_00757","2014-09-10","08:39:00","Maribyrnong","Urban","Asset failure","LV",3,168.00000000000003,4.11556237853375E-3,2.4497395110319936E-5,false]
["SUS631_00758","2014-09-10","08:43:00","Mackenzie","Short Rural","Planned",0,10,195,0,0,false]
["SUS631_00759","2014-09-10","08:46:25","Bunbury","Short Rural","Other","Single Premise",1,114.5499999972526,1.9328766198240517E-3,1.6873650107991362E-5,false]
["SUS631_00760","2014-09-10","08:57:00","Black Mtn","Short Rural","Planned",0,22,238.09090909090909,0,0,false]
["SUS631_00761","2014-09-10","09:02:00","Black Mtn","Short Rural","Planned",0,30,228,0,0,false]
["SUS631_00762","2014-09-10","09:02:00","O'Loghlen","Urban","Planned",0,20,251.10000000000002,0,0,false]
["SUS631_00763","2014-09-10","10:13:00","Belconnen Way South","Urban","Planned",0,57,84,0,0,false]
["SUS631_00764","2014-09-10","10:13:23","Gungahlin","Urban","Other","Single Premise",1,32.683333335444331,2.6688551008022352E-4,8.1657983701066453E-6,false]
["SUS631_00765","2014-09-10","16:31:07","Sturt","Urban","Other","Single Premise",1,26.566666663857177,2.1693804334289149E-4,8.1657983701066453E-6,false]
["SUS631_00766","2014-09-10","17:45:00","Wilson","Urban","Asset failure","LV",16,34.875,4.5565154905195084E-3,1.3065277392170632E-4,false]
["SUS631_00767","2014-09-10","22:00:15","Ferdinand","Short Rural","Other","Single Premise",1,21.466666666092351,3.6222102230852376E-4,1.6873650107991362E-5,false]
["SUS631_00768","2014-09-11","08:24:24","Theodore","Urban","Other","Single Premise",1,185.66666667116806,1.5161165640865579E-3,8.1657983701066453E-6,false]
["SUS631_00769","2014-09-11","08:24:42","Baldwin","Urban","Other","Single Premise",1,36.049999992828816,2.9437703118378615E-4,8.1657983701066453E-6,false]
["SUS631_00770","2014-09-11","08:41:00","Strzelecki","Urban","Planned",0,13,269.07692307692309,0,0,false]
["SUS631_00771","2014-09-11","08:45:00","Fincham","Urban","Planned",0,1,198,0,0,false]
["SUS631_00772","2014-09-11","08:57:00","Cunningham","Urban","Planned",0,24,263.99999999999994,0,0,false]
["SUS631_00773","2014-09-11","09:03:00","Throsby","Urban","Planned",0,47,253.02127659574467,0,0,false]
["SUS631_00774","2014-09-11","09:05:00","Bissenberger","Short Rural","Planned",0,27,132.88888888888889,0,0,false]
["SUS631_00775","2014-09-11","09:50:00","Ijong","Urban","Planned",0,58,274.9655172413793,0,0,false]
["SUS631_00776","2014-09-11","10:31:45","<UNKNOWN>","Urban","Other","Single Premise",1,57.383333336329088,4.6858072982908238E-4,8.1657983701066453E-6,false]
["SUS631_00777","2014-09-11","10:32:10","Baldwin","Urban","Other","Single Premise",1,78.899999993154779,6.4428149134551757E-4,8.1657983701066453E-6,false]
["SUS631_00778","2014-09-11","11:21:12","Powers","Urban","Other","Single Premise",1,50.616666659479961,4.1332549410821282E-4,8.1657983701066453E-6,false]
["SUS631_00779","2014-09-11","12:05:00","Mannheim","Short Rural","Planned",0,33,80,0,0,false]
["SUS631_00780","2014-09-11","16:28:00","Macrossan","Short Rural","Asset failure","HV",2482,13.948428686543112,0.58416576673866105,4.1880399568034556E-2,false]
["SUS631_00781","2014-09-11","17:25:06","Mannheim","Short Rural","Other","Single Premise",1,38.816666667116806,6.5497885169946016E-4,1.6873650107991362E-5,false]
["SUS631_00782","2014-09-11","23:54:00","Woden","Urban","Unknown","Unknown",0,0,0,0,false]
["SUS631_00783","2014-09-12","05:08:00","Lyons West","Urban","Unknown","Unknown",1905,0,0,0,false]
["SUS631_00784","2014-09-12","07:23:00","Sturt","Urban","Planned",0,5,146.4,0,0,false]
["SUS631_00785","2014-09-12","07:34:00","Nona","Urban","Planned",0,2,21,0,0,false]
["SUS631_00786","2014-09-12","08:33:00","Haig","Urban","Planned",0,20,180.89999999999998,0,0,false]
["SUS631_00787","2014-09-12","08:38:00","Chisholm","Urban","Planned",0,59,178.98305084745763,0,0,false]
["SUS631_00788","2014-09-12","08:40:00","Mackenzie","Short Rural","Planned",0,23,196.95652173913044,0,0,false]
["SUS631_00789","2014-09-12","08:43:26","Alderson","Short Rural","Other","Single Premise",1,69.783333332743496,1.1774995500260445E-3,1.6873650107991362E-5,false]
["SUS631_00790","2014-09-12","08:55:00","Callister","Short Rural","Planned",0,17,194.11764705882354,0,0,false]
["SUS631_00791","2014-09-12","09:00:00","Miller","Urban","Planned",0,22,169.90909090909091,0,0,false]
["SUS631_00792","2014-09-12","09:35:00","Markell","Short Rural","Planned",0,34,100.05882352941177,0,0,false]
["SUS631_00793","2014-09-12","11:44:00","Latham","Urban","Other","Single Premise",1,191.98333333712071,1.5676971904519011E-3,8.1657983701066453E-6,false]
["SUS631_00794","2014-09-13","00:44:00","Airport","Urban","Other","Fire",3,1270,3.1111691790106318E-2,2.4497395110319936E-5,false]
["SUS631_00795","2014-09-13","02:32:13","Markell","Short Rural","Other","Single Premise",1,429.03333333553746,7.2393583513690853E-3,1.6873650107991362E-5,false]
["SUS631_00796","2014-09-13","07:30:00","Lonsdale","Urban","Planned",0,1,408,0,0,false]
["SUS631_00797","2014-09-13","07:36:00","Bowley","Short Rural","Planned",0,1,402,0,0,false]
["SUS631_00798","2014-09-13","07:37:12","Bunbury","Short Rural","Other","Single Premise",1,101.16666666814126,1.7070509359500077E-3,1.6873650107991362E-5,false]
["SUS631_00799","2014-09-13","07:39:00","Bowley","Short Rural","Planned",0,3,400,0,0,false]
["SUS631_00800","2014-09-13","07:45:00","Macrossan","Short Rural","Planned",0,1,396,0,0,false]
["SUS631_00801","2014-09-13","10:01:41","Longmore","Urban","Other","Single Premise",1,83.683333334047347,6.8334122694425491E-4,8.1657983701066453E-6,false]
["SUS631_00802","2014-09-13","11:09:33","Giles","Urban","Other","Single Premise",1,173.61666666227393,1.4177186936541453E-3,8.1657983701066453E-6,false]
["SUS631_00803","2014-09-13","12:28:18","Nona","Urban","Other","Single Premise",1,50.833333324408159,4.1509475040753995E-4,8.1657983701066453E-6,false]
["SUS631_00804","2014-09-13","15:40:00","Wilson","Urban","Unknown","Unknown",1212,0,0,0,false]
["SUS631_00805","2014-09-13","20:05:00","Ebden","Urban","Vegetation","Grow-in - Other responsible party",20,56.099999999999994,9.1620257712596558E-3,1.6331596740213291E-4,false]
["SUS631_00806","2014-09-14","06:18:41","Hawkesbury","Short Rural","Other","Single Premise",1,157.35000000684522,2.6550688446079444E-3,1.6873650107991362E-5,false]
["SUS631_00807","2014-09-14","06:46:00","Queen Victoria Terrace","Urban","Planned",0,4,154.5,0,0,false]
["SUS631_00808","2014-09-14","11:40:16","<UNKNOWN>","Urban","Other","Single Premise",1,66.650000000372529,5.4425046137064994E-4,8.1657983701066453E-6,false]
["SUS631_00809","2014-09-14","12:05:31","Wilson","Urban","Other","Single Premise",1,86.383333336561918,7.0538888256407634E-4,8.1657983701066453E-6,false]
["SUS631_00810","2014-09-14","13:20:00","Ebden","Urban","Vegetation","Grow-in - Other responsible party",20,45,7.3492185330959808E-3,1.6331596740213291E-4,false]
["SUS631_00811","2014-09-14","15:45:00","Monash","Urban","Asset failure","LV",17,30,4.1645571687543891E-3,1.3881857229181298E-4,false]
["SUS631_00812","2014-09-14","17:58:32","Ferdinand","Short Rural","Other","Single Premise",1,69.48333332547918,1.1724374548710715E-3,1.6873650107991362E-5,false]
["SUS631_00813","2014-09-15","00:49:41","Miller","Urban","Other","Single Premise",1,37.516666656592861,3.0635353543624031E-4,8.1657983701066453E-6,false]
["SUS631_00814","2014-09-15","09:00:00","Matthews","Short Rural","Planned",0,9,184.66666666666666,0,0,false]
["SUS631_00815","2014-09-15","11:15:00","Matthews","Short Rural","Third party","Other",2,63,2.1260799136069114E-3,3.3747300215982723E-5,false]
["SUS631_00816","2014-09-15","13:05:33","Grimshaw","Short Rural","Other","Single Premise",1,31.183333330554888,5.2617665582064806E-4,1.6873650107991362E-5,false]
["SUS631_00817","2014-09-15","15:38:35","Lander","Urban","Other","Single Premise",1,120.53333333577029,9.8425089689675401E-4,8.1657983701066453E-6,false]
["SUS631_00818","2014-09-15","21:48:00","Isa","Urban","Planned",0,1,198,0,0,false]
["SUS631_00819","2014-09-16","08:37:00","Newcastle","Short Rural","Planned",0,5,484.8,0,0,false]
["SUS631_00820","2014-09-16","08:40:00","Lawrence Wackett","Urban","Planned",0,1,264,0,0,false]
["SUS631_00821","2014-09-16","08:48:00","Newcastle","Short Rural","Planned",0,1,456,0,0,false]
["SUS631_00822","2014-09-16","08:48:00","Newcastle","Short Rural","Planned",0,1,456,0,0,false]
["SUS631_00823","2014-09-16","08:55:00","Wakefield","Urban","Planned",0,21,360,0,0,false]
["SUS631_00824","2014-09-16","08:57:00","Newcastle","Short Rural","Planned",0,1,420,0,0,false]
["SUS631_00825","2014-09-16","09:03:00","Newcastle","Short Rural","Planned",0,11,416.72727272727275,0,0,false]
["SUS631_00826","2014-09-16","09:09:00","Newcastle","Short Rural","Planned",0,2,417,0,0,false]
["SUS631_00827","2014-09-16","09:15:00","Newcastle","Short Rural","Planned",0,2,420,0,0,false]
["SUS631_00828","2014-09-16","09:23:00","Newcastle","Short Rural","Planned",0,4,379.5,0,0,false]
["SUS631_00829","2014-09-16","10:45:00","Belconnen Way North","Urban","Planned",0,1,174,0,0,false]
["SUS631_00830","2014-09-16","10:50:00","Belconnen Way North","Urban","Planned",0,1,162,0,0,false]
["SUS631_00831","2014-09-16","14:21:15","Anthony Rolfe","Short Rural","Other","Single Premise",1,33.083333324175328,5.5823659091818519E-4,1.6873650107991362E-5,false]
["SUS631_00832","2014-09-16","18:09:09","Mackenzie","Short Rural","Other","Single Premise",1,67.866666668560356,1.1451583873609672E-3,1.6873650107991362E-5,false]
["SUS631_00833","2014-09-16","21:14:43","Lawrence Wackett","Urban","Other","Single Premise",1,52.299999998649582,4.2707125474555029E-4,8.1657983701066453E-6,false]
["SUS631_00834","2014-09-16","21:50:18","Lawrence Wackett","Urban","Other","Single Premise",1,34.049999996786937,2.7804543447589405E-4,8.1657983701066453E-6,false]
["SUS631_00835","2014-09-17","08:36:00","Lyons West","Urban","Planned",0,22,310.90909090909088,0,0,false]
["SUS631_00836","2014-09-17","08:39:00","Devonport","Urban","Planned",0,20,305.10000000000002,0,0,false]
["SUS631_00837","2014-09-17","09:01:00","Bean","Short Rural","Planned",0,2,264,0,0,false]
["SUS631_00838","2014-09-17","09:08:00","Baldwin","Urban","Planned",0,22,319.09090909090912,0,0,false]
["SUS631_00839","2014-09-17","09:14:00","Baldwin","Urban","Planned",0,30,318,0,0,false]
["SUS631_00840","2014-09-17","09:21:00","Elkington","Urban","Planned",0,69,16.956521739130434,0,0,false]
["SUS631_00841","2014-09-17","09:27:00","Meacham","Short Rural","Planned",0,1,66,0,0,false]
["SUS631_00842","2014-09-17","09:35:16","Meacham","Short Rural","Other","Single Premise",1,429.14999999804422,7.241326943811491E-3,1.6873650107991362E-5,false]
["SUS631_00843","2014-09-17","14:36:00","Magenta","Urban","Third party","Other",11,32.727272727272727,2.9396874132383921E-3,8.9823782071173105E-5,false]
["SUS631_00844","2014-09-17","20:07:38","May Maxwell","Urban","Other","Single Premise",1,88.316666671307757,7.2117609275781675E-4,8.1657983701066453E-6,false]
["SUS631_00845","2014-09-18","03:55:00","Elkington","Urban","Third party","Other",3,124.00000000000001,3.0376769936796724E-3,2.4497395110319936E-5,false]
["SUS631_00846","2014-09-18","08:30:00","Tidbinbilla 22kV","Short Rural","Planned",0,13,412.15384615384613,0,0,false]
["SUS631_00847","2014-09-18","08:40:00","Wilson","Urban","Planned",0,20,326.10000000000002,0,0,false]
["SUS631_00848","2014-09-18","08:40:00","Carruthers","Urban","Planned",0,18,326,0,0,false]
["SUS631_00849","2014-09-18","09:46:00","Mugga","Short Rural","Planned",0,4,178.5,0,0,false]
["SUS631_00850","2014-09-18","10:17:27","Maribyrnong","Urban","Other","Single Premise",1,116.50000000256114,9.5131551013833793E-4,8.1657983701066453E-6,false]
["SUS631_00851","2014-09-18","10:45:00","Paterick","Urban","Planned",0,22,58.909090909090914,0,0,false]
["SUS631_00852","2014-09-18","16:21:00","Carruthers","Urban","Asset failure","LV",16,129,1.6854207835900116E-2,1.3065277392170632E-4,false]
["SUS631_00853","2014-09-18","18:59:00","Tidbinbilla 22kV","Short Rural","Asset failure","HV",1,390,6.5807235421166304E-3,1.6873650107991362E-5,false]
["SUS631_00854","2014-09-18","18:59:45","Tidbinbilla 22kV","Short Rural","Other","Single Premise",1,114.99999999767169,1.9404697623797195E-3,1.6873650107991362E-5,false]
["SUS631_00855","2014-09-18","19:08:52","Paterick","Urban","Other","Single Premise",1,8.0833333265036345,6.60068701025921E-5,8.1657983701066453E-6,false]
["SUS631_00856","2014-09-19","09:10:00","Theodore","Urban","Planned",0,20,125.1,0,0,false]
["SUS631_00857","2014-09-19","09:15:00","Wilson","Urban","Planned",0,18,125.00000000000001,0,0,false]
["SUS631_00858","2014-09-19","09:57:00","Theodore","Urban","Planned",0,33,292.90909090909093,0,0,false]
["SUS631_00859","2014-09-19","10:04:00","Wilson","Urban","Planned",0,30,292,0,0,false]
["SUS631_00860","2014-09-19","10:27:38","Hilder","Short Rural","Other","Single Premise",1,81.216666667023674,1.3704216162767223E-3,1.6873650107991362E-5,false]
["SUS631_00861","2014-09-19","11:26:24","<UNKNOWN>","Urban","Other","Single Premise",1,214.88333332585171,1.7546939730353228E-3,8.1657983701066453E-6,false]
["SUS631_00862","2014-09-19","12:29:36","Curtin North","Short Rural","Other","Single Premise",1,288.44999999622814,4.867204373586463E-3,1.6873650107991362E-5,false]
["SUS631_00863","2014-09-19","14:38:50","Grimshaw","Short Rural","Other","Single Premise",1,226.36666667181998,3.8196319295325997E-3,1.6873650107991362E-5,false]
["SUS631_00864","2014-09-19","16:43:41","Wilson","Urban","Other","Single Premise",1,103.46666666097008,8.4488793798051705E-4,8.1657983701066453E-6,false]
["SUS631_00865","2014-09-19","21:09:00","Sturt","Urban","Unknown","Unknown",1337,0,0,0,false]
["SUS631_00866","2014-09-19","23:46:35","McInnes","Urban","Other","Single Premise",1,69.649999999674037,5.6874785647526612E-4,8.1657983701066453E-6,false]
["SUS631_00867","2014-09-20","09:15:00","Miller","Urban","Planned",0,1,96,0,0,false]
["SUS631_00868","2014-09-20","10:04:00","Saunders","Short Rural","Third party","Other",21,88,3.1182505399568034E-2,3.543466522678186E-4,false]
["SUS631_00869","2014-09-20","12:49:26","Meacham","Short Rural","Other","Single Premise",1,56.633333339123055,9.5561105121360452E-4,1.6873650107991362E-5,false]
["SUS631_00870","2014-09-20","13:47:00","Curtin North","Short Rural","Asset failure","LV",38,69.000000000000014,4.4242710583153357E-2,6.4119870410367168E-4,false]
["SUS631_00871","2014-09-20","13:52:00","Curtin North","Short Rural","Asset failure","LV",20,60.900000000000006,2.0552105831533479E-2,3.3747300215982719E-4,false]
["SUS631_00872","2014-09-20","15:40:00","Callister","Short Rural","Third party","Other",27,126,5.7404157667386609E-2,4.5558855291576676E-4,false]
["SUS631_00873","2014-09-20","16:39:00","Tillyard","Urban","Asset failure","LV",49,90.979591836734699,3.6403129133935425E-2,4.0012412013522563E-4,false]
["SUS631_00874","2014-09-21","05:03:00","Shannon","Short Rural","Unknown","Unknown",1220,3,6.1757559395248379E-2,2.058585313174946E-2,false]
["SUS631_00875","2014-09-21","08:06:00","Mugga","Short Rural","Planned",0,1,234,0,0,false]
["SUS631_00876","2014-09-21","08:09:00","Mugga","Short Rural","Planned",0,1,234,0,0,false]
["SUS631_00877","2014-09-21","10:50:39","Meacham","Short Rural","Other","Single Premise",1,47.600000000093132,8.0318574514196028E-4,1.6873650107991362E-5,false]
["SUS631_00878","2014-09-22","07:57:05","Melba","Urban","Other","Single Premise",1,189.79999999632128,1.5498685306162016E-3,8.1657983701066453E-6,false]
["SUS631_00879","2014-09-22","08:28:20","Fielder","Urban","Other","Single Premise",1,137.2833333327435,1.1210280195713242E-3,8.1657983701066453E-6,false]
["SUS631_00880","2014-09-22","11:08:51","<UNKNOWN>","Urban","Other","Single Premise",1,174.88333333167247,1.4280620382785883E-3,8.1657983701066453E-6,false]
["SUS631_00881","2014-09-22","13:21:03","William Slim","Short Rural","Other","Single Premise",1,332.81666666152887,5.6158319833546312E-3,1.6873650107991362E-5,false]
["SUS631_00882","2014-09-22","16:16:17","Deakin No 2","Urban","Other","Single Premise",1,146.58333333791234,1.1969699444555235E-3,8.1657983701066453E-6,false]
["SUS631_00883","2014-09-22","17:13:42","Markell","Short Rural","Other","Single Premise",1,29.399999999441206,4.9608531316551712E-4,1.6873650107991362E-5,false]
["SUS631_00884","2014-09-22","17:37:45","Eaglemont","Urban","Other","Single Premise",1,229.70000000903383,1.8756838856872648E-3,8.1657983701066453E-6,false]
["SUS631_00885","2014-09-23","08:40:00","Curtin North","Short Rural","Planned",0,37,403.94594594594594,0,0,false]
["SUS631_00886","2014-09-23","08:50:00","Wilson","Urban","Planned",0,25,229.92,0,0,false]
["SUS631_00887","2014-09-23","08:53:00","Fairley","Short Rural","Asset failure","HV",107,3.02803738317757,5.4670626349892009E-3,1.8054805615550756E-3,false]
["SUS631_00888","2014-09-23","08:53:00","Matthews","Short Rural","Asset failure","HV",1,216,3.6447084233261341E-3,1.6873650107991362E-5,false]
["SUS631_00889","2014-09-23","09:00:00","Benjamin","Urban","Asset failure","HV",0,0,0,0,false]
["SUS631_00890","2014-09-23","09:03:00","Willoughby","Short Rural","Planned",0,40,178.05,0,0,false]
["SUS631_00891","2014-09-23","09:12:00","Willoughby","Short Rural","Planned",0,1,174,0,0,false]
["SUS631_00892","2014-09-23","09:13:00","Markell","Short Rural","Planned",0,40,73.949999999999989,0,0,false]
["SUS631_00893","2014-09-23","09:17:00","Willoughby","Short Rural","Planned",0,32,141.9375,0,0,false]
["SUS631_00894","2014-09-23","09:21:05","Lawrence Wackett","Urban","Other","Single Premise",1,44.583333330228925,3.6405851064190463E-4,8.1657983701066453E-6,false]
["SUS631_00895","2014-09-23","09:26:00","Matthews","Short Rural","Planned",0,6,216,0,0,false]
["SUS631_00896","2014-09-23","09:40:00","Deakin No 1","Urban","Planned",0,15,402,0,0,false]
["SUS631_00897","2014-09-23","09:51:31","Throsby","Urban","Other","Single Premise",1,360.14999999315478,2.9409122829380115E-3,8.1657983701066453E-6,false]
["SUS631_00898","2014-09-23","10:44:10","Reid","Short Rural","Other","Single Premise",1,185.13333332841285,3.123875089909774E-3,1.6873650107991362E-5,false]
["SUS631_00899","2014-09-23","14:58:00","William Slim","Short Rural","Third party","Other",20,126.89999999999999,4.282532397408207E-2,3.3747300215982719E-4,false]
["SUS631_00900","2014-09-23","16:26:04","Cunningham","Urban","Other","Single Premise",1,246.83333333465271,2.0155912310320973E-3,8.1657983701066453E-6,false]
["SUS631_00901","2014-09-23","16:27:10","Lyons West","Urban","Other","Single Premise",1,49.383333331206813,4.0325434282640179E-4,8.1657983701066453E-6,false]
["SUS631_00902","2014-09-23","22:03:00","Cowper","Urban","Asset failure","LV",3,86,2.1067759794875145E-3,2.4497395110319936E-5,false]
["SUS631_00903","2014-09-23","22:03:09","<UNKNOWN>","Urban","Other","Single Premise",1,80.366666667396203,6.5625799568352797E-4,8.1657983701066453E-6,false]
["SUS631_00904","2014-09-23","23:42:00","Cowper","Urban","Asset failure","LV",1,36,2.9396874132383926E-4,8.1657983701066453E-6,false]
["SUS631_00905","2014-09-24","01:17:00","Elkington","Urban","Animal","Other",1518,49,0.60738841436527247,1.2395681925821888E-2,false]
["SUS631_00906","2014-09-24","07:02:04","Fielder","Urban","Other","Single Premise",1,90.88333334075287,7.4213497526377868E-4,8.1657983701066453E-6,false]
["SUS631_00907","2014-09-24","08:42:00","Ferdinand","Short Rural","Planned",0,12,150,0,0,false]
["SUS631_00908","2014-09-24","09:00:00","Fairley","Short Rural","Planned",0,2,291,0,0,false]
["SUS631_00909","2014-09-24","09:00:00","Reid","Short Rural","Planned",0,50,170.03999999999996,0,0,false]
["SUS631_00910","2014-09-24","09:15:00","Reid","Short Rural","Planned",0,51,144.94117647058823,0,0,false]
["SUS631_00911","2014-09-24","09:40:00","Curtin North","Short Rural","Planned",0,68,350.02941176470591,0,0,false]
["SUS631_00912","2014-09-24","13:11:11","King","Urban","Other","Single Premise",1,154.11666666157544,1.2584856254313618E-3,8.1657983701066453E-6,false]
["SUS631_00913","2014-09-24","14:14:00","Homann","Short Rural","Asset failure","HV",48,154,0.12473002159827214,8.0993520518358531E-4,false]
["SUS631_00914","2014-09-24","15:32:41","Theodore","Urban","Other","Single Premise",1,115.08333332953043,9.397472957287194E-4,8.1657983701066453E-6,false]
["SUS631_00915","2014-09-24","15:47:26","Lyons West","Urban","Other","Single Premise",1,44.799999995157123,3.6582776694123176E-4,8.1657983701066453E-6,false]
["SUS631_00916","2014-09-24","21:45:13","Curtin North","Short Rural","Other","Single Premise",1,31.233333331765607,5.2702033834647693E-4,1.6873650107991362E-5,false]
["SUS631_00917","2014-09-24","22:55:00","Ferdinand","Short Rural","Asset failure","HV",15,60,1.5186285097192224E-2,2.5310475161987044E-4,false]
["SUS631_00918","2014-09-25","05:55:00","ANU Central","Urban","Planned",0,1,78,0,0,false]
["SUS631_00919","2014-09-25","05:55:00","ANU Central","Urban","Planned",0,1,24,0,0,false]
["SUS631_00920","2014-09-25","08:03:00","Dairy South","Urban","Planned",0,1,432,0,0,false]
["SUS631_00921","2014-09-25","08:43:00","Theodore","Urban","Planned",0,45,245.99999999999997,0,0,false]
["SUS631_00922","2014-09-25","09:00:00","Fairley","Short Rural","Planned",0,16,244.875,0,0,false]
["SUS631_00923","2014-09-25","14:08:51","<UNKNOWN>","Urban","Other","Single Premise",1,31.250000002328306,2.5518119908484512E-4,8.1657983701066453E-6,false]
["SUS631_00924","2014-09-25","17:02:48","Theodore","Urban","Other","Single Premise",1,233.40000000433065,1.9058973396182542E-3,8.1657983701066453E-6,false]
["SUS631_00925","2014-09-26","08:20:00","Curtin North","Short Rural","Asset failure","HV",504,38.476190476190474,0.32721382289416845,8.5043196544276455E-3,false]
["SUS631_00926","2014-09-26","08:31:00","Curtin North","Short Rural","Planned",0,20,221.1,0,0,false]
["SUS631_00927","2014-09-26","08:35:00","Curtin North","Short Rural","Planned",0,20,218.10000000000002,0,0,false]
["SUS631_00928","2014-09-26","08:41:00","Lambrigg","Urban","Planned",0,28,292.07142857142856,0,0,false]
["SUS631_00929","2014-09-26","08:50:00","Lambrigg","Urban","Planned",0,20,306.90000000000003,0,0,false]
["SUS631_00930","2014-09-26","09:04:00","Wilson","Urban","Planned",0,35,313.02857142857141,0,0,false]
["SUS631_00931","2014-09-26","09:12:00","Matthews","Short Rural","Planned",0,1,240,0,0,false]
["SUS631_00932","2014-09-26","09:12:00","Matthews","Short Rural","Planned",0,1,240,0,0,false]
["SUS631_00933","2014-09-26","09:39:03","Matthews","Short Rural","Other","Single Premise",1,43.016666664043441,7.2584818210116495E-4,1.6873650107991362E-5,false]
["SUS631_00934","2014-09-26","09:45:00","Dairy North","Short Rural","Planned",0,1,78,0,0,false]
["SUS631_00935","2014-09-26","09:59:00","Chuculba","Urban","Planned",0,58,160.9655172413793,0,0,false]
["SUS631_00936","2014-09-26","10:55:22","Cunningham","Urban","Other","Single Premise",1,217.59999999892898,1.7768777253264602E-3,8.1657983701066453E-6,false]
["SUS631_00937","2014-09-26","20:25:47","Longmore","Urban","Other","Single Premise",1,43.833333333022892,3.5793416188713962E-4,8.1657983701066453E-6,false]
["SUS631_00938","2014-09-27","02:20:44","Gribble","Urban","Other","Single Premise",1,516.94999999715947,4.2213094674034349E-3,8.1657983701066453E-6,false]
["SUS631_00939","2014-09-27","08:30:00","Abattoirs","Short Rural","Planned",0,1,294,0,0,false]
["SUS631_00940","2014-09-27","10:27:37","Lander","Urban","Other","Single Premise",1,30.96666666562669,2.5286755618581023E-4,8.1657983701066453E-6,false]
["SUS631_00941","2014-09-27","16:37:00","Alderson","Short Rural","Asset failure","HV",103,0,0,0,false]
["SUS631_00942","2014-09-28","09:14:39","Longmore","Urban","Other","Single Premise",1,46.933333334745839,3.8324813684853949E-4,8.1657983701066453E-6,false]
["SUS631_00943","2014-09-28","11:36:00","Lambrigg","Urban","Asset failure","LV",50,116.04,4.7377962143358758E-2,4.0828991850533228E-4,false]
["SUS631_00944","2014-09-28","12:58:21","Jackie Howe","Short Rural","Other","Single Premise",1,70.25000000372529,1.1853739201492523E-3,1.6873650107991362E-5,false]
["SUS631_00945","2014-09-29","04:40:00","Melba","Urban","Asset failure","HV",857,0,0,0,false]
["SUS631_00946","2014-09-29","16:58:18","Bunbury","Short Rural","Other","Single Premise",1,72.799999992130324,1.2284017277289809E-3,1.6873650107991362E-5,false]
["SUS631_00947","2014-09-29","19:30:45","Elkington","Urban","Other","Single Premise",1,70.933333339635283,5.7922729777102515E-4,8.1657983701066453E-6,false]
["SUS631_00948","2014-09-29","21:54:00","Brookman","Urban","Asset failure","HV",1450,0,0,0,false]
["SUS631_00949","2014-09-29","22:07:28","Hawkesbury","Short Rural","Other","Single Premise",1,53.133333327714354,8.9655327564312824E-4,1.6873650107991362E-5,false]
["SUS631_00950","2014-09-30","12:16:00","Hilder","Short Rural","Third party","Other",18,61,1.8527267818574514E-2,3.0372570194384449E-4,false]
["SUS631_00951","2014-09-30","12:38:00","Conolly","Urban","Weather",0,43,73.95348837209302,2.5967238816939131E-2,3.5112932991458577E-4,false]
["SUS631_00952","2014-09-30","14:19:04","Miller","Urban","Other","Single Premise",1,70.949999999720603,5.7936339435678502E-4,8.1657983701066453E-6,false]
["SUS631_00953","2014-09-30","17:20:33","Anthony Rolfe","Short Rural","Other","Single Premise",1,43.000000003958121,7.2556695471041649E-4,1.6873650107991362E-5,false]
["SUS631_00954","2014-09-30","17:44:56","Chisholm","Urban","Other","Single Premise",1,94.133333335630596,7.6867381992479786E-4,8.1657983701066453E-6,false]
["SUS631_00955","2014-10-01","01:04:00","Athllon","Urban","Asset failure","HV",1416,0,0,0,false]
["SUS631_00956","2014-10-01","07:21:47","Mannheim","Short Rural","Other","Single Premise",1,284.9333333352115,4.8078653708020303E-3,1.6873650107991362E-5,false]
["SUS631_00957","2014-10-01","08:55:00","Mackenzie","Short Rural","Planned",0,10,382.2,0,0,false]
["SUS631_00958","2014-10-01","09:02:00","Belconnen Way South","Urban","Planned",0,37,144,0,0,false]
["SUS631_00959","2014-10-01","09:04:00","Powers","Urban","Planned",0,18,476,0,0,false]
["SUS631_00960","2014-10-01","09:05:00","Black Mtn","Short Rural","Planned",0,30,135,0,0,false]
["SUS631_00961","2014-10-01","09:06:00","Lambrigg","Urban","Planned",0,31,271.93548387096774,0,0,false]
["SUS631_00962","2014-10-01","11:18:07","Eardley","Urban","Other","Single Premise",1,128.78333333646879,1.0516187334558376E-3,8.1657983701066453E-6,false]
["SUS631_00963","2014-10-01","13:48:50","Monash","Urban","Other","Single Premise",1,104.75000000093132,8.5536737927627607E-4,8.1657983701066453E-6,false]
["SUS631_00964","2014-10-01","14:10:00","Gurrang","Short Rural","Third party","Other",16,87,2.3488120950323974E-2,2.6997840172786179E-4,false]
["SUS631_00965","2014-10-01","15:24:00","Latham","Urban","Asset failure","Zone substation",0,0,0,0,false]
["SUS631_00966","2014-10-01","18:46:35","Reid","Short Rural","Other","Single Premise",1,37.833333334419876,6.3838642910400711E-4,1.6873650107991362E-5,false]
["SUS631_00967","2014-10-01","19:02:16","<UNKNOWN>","Urban","Other","Single Premise",1,66.983333327807486,5.4697239411252046E-4,8.1657983701066453E-6,false]
["SUS631_00968","2014-10-02","01:05:00","Macrossan","Short Rural","Animal","Other",54,46,4.191414686825054E-2,9.1117710583153353E-4,false]
["SUS631_00969","2014-10-02","08:23:00","Macrossan","Short Rural","Planned",0,56,240,0,0,false]
["SUS631_00970","2014-10-02","08:40:00","Carruthers","Urban","Planned",0,13,191.07692307692307,0,0,false]
["SUS631_00971","2014-10-02","09:02:00","Cunningham","Urban","Planned",0,33,398,0,0,false]
["SUS631_00972","2014-10-02","09:14:00","Carruthers","Urban","Planned",0,27,172,0,0,false]
["SUS631_00973","2014-10-02","09:20:00","William Slim","Short Rural","Planned",0,7,99.428571428571416,0,0,false]
["SUS631_00974","2014-10-02","09:24:00","Carruthers","Urban","Planned",0,20,156,0,0,false]
["SUS631_00975","2014-10-02","09:30:00","William Slim","Short Rural","Planned",0,18,79,0,0,false]
["SUS631_00976","2014-10-02","09:40:00","William Slim","Short Rural","Planned",0,13,82.15384615384616,0,0,false]
["SUS631_00977","2014-10-02","10:56:13","Carruthers","Urban","Other","Single Premise",1,64.050000000279397,5.2301938560761214E-4,8.1657983701066453E-6,false]
["SUS631_00978","2014-10-02","12:13:59","Miller","Urban","Other","Single Premise",1,35.150000002468005,2.8702781272940182E-4,8.1657983701066453E-6,false]
["SUS631_00979","2014-10-02","15:07:53","Cotter 11kV","Short Rural","Other","Single Premise",1,83.166666672332212,1.40332523407688E-3,1.6873650107991362E-5,false]
["SUS631_00980","2014-10-03","08:33:00","Forster","Urban","Planned",0,24,196.00000000000003,0,0,false]
["SUS631_00981","2014-10-03","08:52:00","Duffy","Urban","Planned",0,13,156.92307692307693,0,0,false]
["SUS631_00982","2014-10-03","09:00:00","Elkington","Urban","Planned",0,45,46.933333333333337,0,0,false]
["SUS631_00983","2014-10-03","09:00:00","Empire","Urban","Planned",0,20,183,0,0,false]
["SUS631_00984","2014-10-03","09:23:00","Carruthers","Urban","Planned",0,35,128.05714285714285,0,0,false]
["SUS631_00985","2014-10-03","11:48:12","Miller","Urban","Other","Single Premise",1,36.033333332743496,2.9424093459802628E-4,8.1657983701066453E-6,false]
["SUS631_00986","2014-10-03","13:01:13","Cooleman","Urban","Other","Single Premise",1,65.249999997904524,5.3281834363234741E-4,8.1657983701066453E-6,false]
["SUS631_00987","2014-10-03","14:46:16","William Slim","Short Rural","Other","Single Premise",1,182.88333333679475,3.0859093773082267E-3,1.6873650107991362E-5,false]
["SUS631_00988","2014-10-03","14:51:31","Hilder","Short Rural","Other","Single Premise",1,85.400000003864989,1.4410097192876787E-3,1.6873650107991362E-5,false]
["SUS631_00989","2014-10-03","19:08:16","Folingsby","Urban","Other","Single Premise",1,31.250000002328306,2.5518119908484512E-4,8.1657983701066453E-6,false]
["SUS631_00990","2014-10-04","10:14:21","Barrington","Urban","Other","Single Premise",1,21.166666669305414,1.7284273218880479E-4,8.1657983701066453E-6,false]
["SUS631_00991","2014-10-04","10:47:43","Markell","Short Rural","Other","Single Premise",1,145.00000000116415,2.446679265678391E-3,1.6873650107991362E-5,false]
["SUS631_00992","2014-10-04","13:36:55","Markell","Short Rural","Other","Single Premise",1,35.366666667396203,5.9676475883160439E-4,1.6873650107991362E-5,false]
["SUS631_00993","2014-10-04","19:51:29","Monaro","Urban","Other","Single Premise",1,65.583333325339481,5.3554027637421793E-4,8.1657983701066453E-6,false]
["SUS631_00994","2014-10-05","09:40:04","Anthony Rolfe","Short Rural","Other","Single Premise",1,83.933333329623565,1.4162616990014776E-3,1.6873650107991362E-5,false]
["SUS631_00995","2014-10-05","19:45:15","Conolly","Urban","Other","Single Premise",1,93.83333332836628,7.6622408035444697E-4,8.1657983701066453E-6,false]
["SUS631_00996","2014-10-06","08:41:33","Cooleman","Urban","Other","Single Premise",1,147.29999999399297,1.2028220998676566E-3,8.1657983701066453E-6,false]
["SUS631_00997","2014-10-06","12:25:53","Carruthers","Urban","Other","Single Premise",1,119.71666666679084,9.7758216154228113E-4,8.1657983701066453E-6,false]
["SUS631_00998","2014-10-06","12:35:41","Saunders","Short Rural","Other","Single Premise",1,73.549999999813735,1.2410569654396216E-3,1.6873650107991362E-5,false]
["SUS631_00999","2014-10-06","17:55:06","Daplyn","Urban","Other","Single Premise",1,49.150000006193295,4.0134898994131484E-4,8.1657983701066453E-6,false]
["SUS631_01000","2014-10-06","20:01:57","Lethbridge","Urban","Other","Single Premise",1,69.583333338377997,5.6820346996111449E-4,8.1657983701066453E-6,false]
["SUS631_01001","2014-10-07","01:24:00","Shannon","Short Rural","Asset failure","HV",48,59,4.778617710583153E-2,8.0993520518358531E-4,false]
["SUS631_01002","2014-10-07","05:08:00","Powers","Urban","Asset failure","HV",1134,0,0,0,false]
["SUS631_01003","2014-10-07","05:11:00","Markell","Short Rural","Asset failure","HV",1424,43.234550561797747,1.038843142548596,2.4028077753779697E-2,false]
["SUS631_01004","2014-10-07","05:17:00","Duffy","Urban","Asset failure","HV",984,0,0,0,false]
["SUS631_01005","2014-10-07","05:58:00","Homann","Short Rural","Asset failure","LV",55,37.963636363636361,3.523218142548596E-2,9.2805075593952488E-4,false]
["SUS631_01006","2014-10-07","10:10:00","Pridham","Urban","Vegetation","Blow-in/Fall-in - NSP responsibility",0,0,0,0,false]
["SUS631_01007","2014-10-08","08:24:00","Gurrang","Short Rural","Planned",0,1,594,0,0,false]
["SUS631_01008","2014-10-08","08:35:00","Gurrang","Short Rural","Planned",0,1,516,0,0,false]
["SUS631_01009","2014-10-08","08:50:00","Deakin No 1","Urban","Planned",0,26,285,0,0,false]
["SUS631_01010","2014-10-08","08:55:00","Deakin No 1","Urban","Planned",0,20,275.10000000000002,0,0,false]
["SUS631_01011","2014-10-08","08:56:52","Weir","Urban","Other","Single Premise",1,53.800000003539026,4.393199523406365E-4,8.1657983701066453E-6,false]
["SUS631_01012","2014-10-08","08:59:00","Folingsby","Urban","Planned",0,40,265.04999999999995,0,0,false]
["SUS631_01013","2014-10-08","09:25:00","Deakin No 1","Urban","Planned",0,37,264.97297297297297,0,0,false]
["SUS631_01014","2014-10-08","11:00:00","McInnes","Urban","Planned",0,85,127.97647058823532,0,0,false]
["SUS631_01015","2014-10-08","16:41:44","Deakin No 1","Urban","Other","Single Premise",1,86.816666666418314,7.0892739516273059E-4,8.1657983701066453E-6,false]
["SUS631_01016","2014-10-08","17:03:45","Isa","Urban","Other","Single Premise",1,41.616666661575437,3.3983330879436426E-4,8.1657983701066453E-6,false]
["SUS631_01017","2014-10-08","19:02:33","Empire","Urban","Other","Single Premise",1,108.76666667405516,8.881666694489324E-4,8.1657983701066453E-6,false]
["SUS631_01018","2014-10-09","07:34:37","Ebden","Urban","Other","Single Premise",1,106.68333333567716,8.7115458947001649E-4,8.1657983701066453E-6,false]
["SUS631_01019","2014-10-09","08:35:00","Weir","Urban","Planned",0,13,259.84615384615381,0,0,false]
["SUS631_01020","2014-10-09","09:22:00","Curtin North","Short Rural","Planned",0,34,163.05882352941177,0,0,false]
["SUS631_01021","2014-10-09","09:25:00","Pridham","Urban","Planned",0,1,270,0,0,false]
["SUS631_01022","2014-10-09","09:32:00","Dairy North","Short Rural","Planned",0,1,222,0,0,false]
["SUS631_01023","2014-10-09","09:50:00","Bowley","Short Rural","Planned",0,68,264.97058823529409,0,0,false]
["SUS631_01024","2014-10-09","11:33:57","Hobart Long","Urban","Other","Single Premise",1,55.466666672145948,4.5292961630665797E-4,8.1657983701066453E-6,false]
["SUS631_01025","2014-10-09","17:24:29","Telopea Park East","Urban","Other","Single Premise",1,44.216666672145948,3.6106438464295819E-4,8.1657983701066453E-6,false]
["SUS631_01026","2014-10-10","03:26:14","<UNKNOWN>","Urban","Other","Single Premise",1,62.499999994179234,5.1036239808413411E-4,8.1657983701066453E-6,false]
["SUS631_01027","2014-10-10","08:30:00","Belmore","Urban","Planned",0,1,150,0,0,false]
["SUS631_01028","2014-10-10","08:35:00","Callister","Short Rural","Planned",0,20,219.9,0,0,false]
["SUS631_01029","2014-10-10","08:40:00","Callister","Short Rural","Planned",0,18,212,0,0,false]
["SUS631_01030","2014-10-10","09:30:00","Deakin No 1","Urban","Planned",0,20,261,0,0,false]
["SUS631_01031","2014-10-10","11:29:00","Cowper","Urban","Unknown","Unknown",1,72,5.8793748264767852E-4,8.1657983701066453E-6,false]
["SUS631_01032","2014-10-10","11:29:55","<UNKNOWN>","Urban","Other","Single Premise",1,42.083333332557231,3.4364401473565052E-4,8.1657983701066453E-6,false]
["SUS631_01033","2014-10-10","12:40:13","Marconi","Urban","Other","Single Premise",1,77.583333333022892,6.3352985687823891E-4,8.1657983701066453E-6,false]
["SUS631_01034","2014-10-10","15:36:13","Magenta","Urban","Other","Single Premise",1,108.43333333614282,8.8544473662150564E-4,8.1657983701066453E-6,false]
["SUS631_01035","2014-10-10","17:08:00","William Slim","Short Rural","Animal","Other",1,60,1.0124190064794817E-3,1.6873650107991362E-5,false]
["SUS631_01036","2014-10-10","17:08:01","<UNKNOWN>","Urban","Other","Single Premise",1,65.366666660411283,5.337710200748908E-4,8.1657983701066453E-6,false]
["SUS631_01037","2014-10-10","17:16:13","Conolly","Urban","Other","Single Premise",1,148.59999999403954,1.2134376377491755E-3,8.1657983701066453E-6,false]
["SUS631_01038","2014-10-10","21:57:00","Deakin No 1","Urban","Animal","Other",75,52,3.1846613643415914E-2,6.1243487775799836E-4,false]
["SUS631_01039","2014-10-11","07:40:00","Abattoirs","Short Rural","Planned",0,8,258,0,0,false]
["SUS631_01040","2014-10-11","07:50:00","Erindale","Urban","Planned",0,1,2076,0,0,false]
["SUS631_01041","2014-10-11","14:33:00","Melba","Urban","Vegetation","Grow-in - Other responsible party",12,63,6.1733435678006238E-3,9.7989580441279744E-5,false]
["SUS631_01042","2014-10-12","05:10:00","City East","Urban","Unknown","Unknown",0,0,0,0,false]
["SUS631_01043","2014-10-12","09:36:00","Powers","Urban","Asset failure","HV",1134,0,0,0,false]
["SUS631_01044","2014-10-12","10:19:00","Northbourne","Urban","Planned",0,18,146,0,0,false]
["SUS631_01045","2014-10-13","00:23:00","Hindmarsh","Urban","Planned",0,1,216,0,0,false]
["SUS631_01046","2014-10-13","01:27:00","Cowper","Urban","Asset failure","HV",1521,0,0,0,false]
["SUS631_01047","2014-10-13","06:24:00","Chan","Urban","Other","Customer installation",1,114,9.3090101419215758E-4,8.1657983701066453E-6,false]
["SUS631_01048","2014-10-13","07:16:32","Hemmings","Short Rural","Other","Single Premise",1,156.93333333707415,2.6480381570105653E-3,1.6873650107991362E-5,false]
["SUS631_01049","2014-10-13","12:36:09","Reid","Short Rural","Other","Single Premise",1,75.300000000279397,1.2705858531364639E-3,1.6873650107991362E-5,false]
["SUS631_01050","2014-10-13","14:09:35","Monash","Urban","Other","Single Premise",1,121.666666661622,9.9350546832178152E-4,8.1657983701066453E-6,false]
["SUS631_01051","2014-10-13","14:58:00","Young","Urban","Other","Customer installation",1,6876,5.6148029592853296E-2,8.1657983701066453E-6,false]
["SUS631_01052","2014-10-13","15:21:48","Lyons West","Urban","Other","Single Premise",1,78.649999997578561,6.4224004178911468E-4,8.1657983701066453E-6,false]
["SUS631_01053","2014-10-13","15:25:18","Miller","Urban","Other","Single Premise",1,50.200000000186265,4.0992307818087461E-4,8.1657983701066453E-6,false]
["SUS631_01054","2014-10-13","17:31:36","Markell","Short Rural","Other","Single Premise",1,41.049999998649582,6.9266333691025885E-4,1.6873650107991362E-5,false]
["SUS631_01055","2014-10-14","01:51:44","Wakefield","Urban","Other","Single Premise",1,88.066666665254161,7.1913464311585762E-4,8.1657983701066453E-6,false]
["SUS631_01056","2014-10-14","10:28:35","Mackenzie","Short Rural","Other","Single Premise",1,131.26666666357778,2.2149478041235452E-3,1.6873650107991362E-5,false]
["SUS631_01057","2014-10-14","10:56:57","Lexcen","Urban","Other","Single Premise",1,73.016666667535901,5.9623937766438483E-4,8.1657983701066453E-6,false]
["SUS631_01058","2014-10-14","11:34:00","Gladstone","Urban","Other","Fire",2,195,3.1846613643415917E-3,1.6331596740213291E-5,false]
["SUS631_01059","2014-10-14","11:35:00","Gladstone","Urban","Other","Fire",8,138.75,9.064036190818376E-3,6.5326386960853162E-5,false]
["SUS631_01060","2014-10-14","11:35:00","Gladstone","Urban","Other","Fire",6,150,7.3492185330959808E-3,4.8994790220639872E-5,false]
["SUS631_01061","2014-10-14","11:48:22","Brookman","Urban","Other","Single Premise",1,28.483333328040317,2.3258915686531591E-4,8.1657983701066453E-6,false]
["SUS631_01062","2014-10-14","14:22:10","Ebden","Urban","Other","Single Premise",1,60.483333338052034,4.938947047904822E-4,8.1657983701066453E-6,false]
["SUS631_01063","2014-10-14","16:43:00","Gaunson","Urban","Unknown","Unknown",18,62.000000000000007,9.1130309810390185E-3,1.4698437066191963E-4,false]
["SUS631_01064","2014-10-14","16:52:52","Baldwin","Urban","Other","Single Premise",1,163.53333332925104,1.3353802267581049E-3,8.1657983701066453E-6,false]
["SUS631_01065","2014-10-14","17:34:00","Streeton","Short Rural","Vegetation","Blow-in/Fall-in - NSP responsibility",9,44.666666666666671,6.7832073434125279E-3,1.5186285097192225E-4,false]
["SUS631_01066","2014-10-14","18:40:35","Markell","Short Rural","Other","Single Premise",1,125.68333332426846,2.1207365909197565E-3,1.6873650107991362E-5,false]
["SUS631_01067","2014-10-14","21:19:00","Empire","Urban","Vegetation","Blow-in/Fall-in - NSP responsibility",37,41.027027027027025,1.2395681925821888E-2,3.0213453969394586E-4,false]
["SUS631_01068","2014-10-14","23:08:00","Curtin North","Short Rural","Vegetation","Blow-in/Fall-in - NSP responsibility",27,27.111111111111111,1.2351511879049676E-2,4.5558855291576676E-4,false]
["SUS631_01069","2014-10-15","07:10:14","Gaunson","Urban","Other","Single Premise",1,90.349999997997656,7.3777988272278466E-4,8.1657983701066453E-6,false]
["SUS631_01070","2014-10-15","08:27:00","Lambrigg","Urban","Planned",0,29,610.9655172413793,0,0,false]
["SUS631_01071","2014-10-15","08:35:00","Hawker","Urban","Planned",0,58,148.9655172413793,0,0,false]
["SUS631_01072","2014-10-15","08:35:00","Homann","Short Rural","Planned",0,41,212.04878048780489,0,0,false]
["SUS631_01073","2014-10-15","08:47:00","Weir","Urban","Planned",0,65,211.01538461538462,0,0,false]
["SUS631_01074","2014-10-15","08:52:00","Pridham","Urban","Planned",0,44,569.0454545454545,0,0,false]
["SUS631_01075","2014-10-15","09:12:00","Florey","Urban","Planned",0,58,199.0344827586207,0,0,false]
["SUS631_01076","2014-10-15","09:13:00","Curtin North","Short Rural","Planned",0,52,256.96153846153845,0,0,false]
["SUS631_01077","2014-10-15","11:15:49","Fairley","Short Rural","Other","Single Premise",1,80.816666667815298,1.3636721562468835E-3,1.6873650107991362E-5,false]
["SUS631_01078","2014-10-15","22:37:00","Florey","Urban","Asset failure","HV",29,110.89655172413794,2.6261207558262972E-2,2.3680815273309272E-4,false]
["SUS631_01079","2014-10-16","00:35:00","Hindmarsh","Urban","Planned",0,5,313.20000000000005,0,0,false]
["SUS631_01080","2014-10-16","01:08:00","Hindmarsh","Urban","Planned",0,64,288,0,0,false]
["SUS631_01081","2014-10-16","07:32:11","Seal","Urban","Other","Single Premise",1,106.20000000461005,8.6720778694297047E-4,8.1657983701066453E-6,false]
["SUS631_01082","2014-10-16","08:31:00","Homann","Short Rural","Planned",0,9,56,0,0,false]
["SUS631_01083","2014-10-16","09:05:00","Devonport","Urban","Planned",0,43,265.95348837209303,0,0,false]
["SUS631_01084","2014-10-16","09:12:49","Folingsby","Urban","Other","Single Premise",1,50.933333337306976,4.1591133034987976E-4,8.1657983701066453E-6,false]
["SUS631_01085","2014-10-16","09:15:00","Weir","Urban","Planned",0,38,200.0526315789474,0,0,false]
["SUS631_01086","2014-10-16","09:50:00","Tillyard","Urban","Planned",0,44,245.04545454545453,0,0,false]
["SUS631_01087","2014-10-16","10:00:00","Tillyard","Urban","Planned",0,49,222,0,0,false]
["SUS631_01088","2014-10-16","10:08:00","Homann","Short Rural","Planned",0,34,43.941176470588232,0,0,false]
["SUS631_01089","2014-10-16","11:10:19","Monash","Urban","Other","Single Premise",1,87.250000006752089,7.1246590784694098E-4,8.1657983701066453E-6,false]
["SUS631_01090","2014-10-16","11:33:00","Falkiner","Urban","Third party","Other",527,44.003795066413659,0.1893648642027731,4.3033757410462017E-3,false]
["SUS631_01091","2014-10-16","11:51:30","Falkiner","Urban","Other","Single Premise",1,52.933333333348855,4.3224292705777186E-4,8.1657983701066453E-6,false]
["SUS631_01092","2014-10-16","13:51:16","Dairy North","Short Rural","Other","Single Premise",1,137.2833333327435,2.3164709323154611E-3,1.6873650107991362E-5,false]
["SUS631_01093","2014-10-16","16:59:05","Black Mtn","Short Rural","Other","Single Premise",1,124.08333333791234,2.0937387509771927E-3,1.6873650107991362E-5,false]
["SUS631_01094","2014-10-16","23:25:46","Gurrang","Short Rural","Other","Single Premise",1,46.94999999483116,7.9221787248297715E-4,1.6873650107991362E-5,false]
["SUS631_01095","2014-10-17","00:25:00","Phillip South","Urban","Planned",0,84,225,0,0,false]
["SUS631_01096","2014-10-17","00:36:00","Dairy South","Urban","Asset failure","HV",343,0,0,0,false]
["SUS631_01097","2014-10-17","07:18:14","Devonport","Urban","Other","Single Premise",1,162.26666665985249,1.3250368821336618E-3,8.1657983701066453E-6,false]
["SUS631_01098","2014-10-17","08:43:47","Brookman","Urban","Other","Single Premise",1,139.64999999734573,1.1403537423637189E-3,8.1657983701066453E-6,false]
["SUS631_01099","2014-10-17","08:47:00","Empire","Urban","Planned",0,23,302.08695652173913,0,0,false]
["SUS631_01100","2014-10-17","08:50:00","Empire","Urban","Planned",0,30,296,0,0,false]
["SUS631_01101","2014-10-17","08:56:00","Empire","Urban","Planned",0,5,309.60000000000002,0,0,false]
["SUS631_01102","2014-10-17","09:02:00","Saunders","Short Rural","Planned",0,31,195.09677419354838,0,0,false]
["SUS631_01103","2014-10-17","09:07:00","Saunders","Short Rural","Planned",0,1,186,0,0,false]
["SUS631_01104","2014-10-17","09:18:00","Wolseley","Urban","Planned",0,1,108,0,0,false]
["SUS631_01105","2014-10-17","09:47:10","Bissenberger","Short Rural","Other","Single Premise",1,96.366666667163372,1.6260574154151487E-3,1.6873650107991362E-5,false]
["SUS631_01106","2014-10-17","13:35:00","Duffy","Urban","Planned",0,54,48,0,0,false]
["SUS631_01107","2014-10-17","14:28:30","Lander","Urban","Other","Single Premise",1,263.76666666590609,2.1538654167489188E-3,8.1657983701066453E-6,false]
["SUS631_01108","2014-10-17","16:11:15","Dairy North","Short Rural","Other","Single Premise",1,84.016666671959683,1.4176678366623866E-3,1.6873650107991362E-5,false]
["SUS631_01109","2014-10-17","18:34:25","Meacham","Short Rural","Other","Single Premise",1,102.21666667261161,1.7247682686388297E-3,1.6873650107991362E-5,false]
["SUS631_01110","2014-10-18","07:25:00","Theodore","Urban","Asset failure","Zone substation",0,0,0,0,false]
["SUS631_01111","2014-10-19","07:30:00","Braddon","Urban","Planned",0,5,505.2,0,0,false]
["SUS631_01112","2014-10-19","17:43:00","Tillyard","Urban","Asset failure","LV",9,59.333333333333336,4.3605363296369487E-3,7.3492185330959814E-5,false]
["SUS631_01113","2014-10-20","07:58:00","Wattle","Urban","Planned",0,1,552,0,0,false]
["SUS631_01114","2014-10-20","08:45:00","Miller","Urban","Planned",0,19,186,0,0,false]
["SUS631_01115","2014-10-20","08:59:00","Copland","Urban","Planned",0,25,186.96,0,0,false]
["SUS631_01116","2014-10-20","09:05:00","Weston East","Short Rural","Planned",0,48,314,0,0,false]
["SUS631_01117","2014-10-20","09:15:00","Belmore","Urban","Planned",0,22,243,0,0,false]
["SUS631_01118","2014-10-20","10:43:11","Braddon","Urban","Other","Single Premise",1,365.06666666711681,2.9810607916506086E-3,8.1657983701066453E-6,false]
["SUS631_01119","2014-10-20","14:42:08","Bunbury","Short Rural","Other","Single Premise",1,153.99999999906868,2.5985421166149548E-3,1.6873650107991362E-5,false]
["SUS631_01120","2014-10-20","17:19:13","Hawkesbury","Short Rural","Other","Single Premise",1,132.33333332813345,2.2329463642031156E-3,1.6873650107991362E-5,false]
["SUS631_01121","2014-10-20","19:08:43","Haig","Urban","Other","Single Premise",1,64.366666667629033,5.256052217637229E-4,8.1657983701066453E-6,false]
["SUS631_01122","2014-10-20","22:42:00","Hawkesbury","Short Rural","Asset failure","LV",54,81,7.3805345572354214E-2,9.1117710583153353E-4,false]
["SUS631_01123","2014-10-21","08:35:00","Melba","Urban","Planned",0,42,120,0,0,false]
["SUS631_01124","2014-10-21","08:45:00","Carruthers","Urban","Planned",0,39,205.07692307692309,0,0,false]
["SUS631_01125","2014-10-21","08:50:00","Carruthers","Urban","Planned",0,30,195,0,0,false]
["SUS631_01126","2014-10-21","08:55:00","Curtin North","Short Rural","Planned",0,31,288.9677419354839,0,0,false]
["SUS631_01127","2014-10-21","09:30:24","Powers","Urban","Other","Single Premise",1,152.04999999376014,1.241609642123762E-3,8.1657983701066453E-6,false]
["SUS631_01128","2014-10-21","12:07:20","William Slim","Short Rural","Other","Single Premise",1,44.800000005634502,7.5593952493308752E-4,1.6873650107991362E-5,false]
["SUS631_01129","2014-10-21","14:21:00","Dairy South","Urban","Asset failure","HV",17,0,0,0,false]
["SUS631_01130","2014-10-21","14:41:14","Macrossan","Short Rural","Other","Single Premise",1,114.66666665975936,1.9348452122664578E-3,1.6873650107991362E-5,false]
["SUS631_01131","2014-10-21","19:55:00","Lhotsky","Short Rural","Other","Customer installation",1,60,1.0124190064794817E-3,1.6873650107991362E-5,false]
["SUS631_01132","2014-10-21","20:37:00","Longmore","Urban","Asset failure","LV",21,63.142857142857146,1.0827848638761411E-2,1.7148176577223956E-4,false]
["SUS631_01133","2014-10-22","08:38:00","Weston East","Short Rural","Planned",0,29,343.0344827586207,0,0,false]
["SUS631_01134","2014-10-22","09:30:00","Pridham","Urban","Planned",0,105,215.02857142857144,0,0,false]
["SUS631_01135","2014-10-22","09:33:00","Yarralumla","Urban","Planned",0,42,324,0,0,false]
["SUS631_01136","2014-10-22","09:55:47","Macrossan","Short Rural","Other","Single Premise",1,95.65000000060536,1.6139646328395883E-3,1.6873650107991362E-5,false]
["SUS631_01137","2014-10-22","09:58:00","Reid","Short Rural","Planned",0,21,226.85714285714289,0,0,false]
["SUS631_01138","2014-10-22","11:08:07","Dairy South","Urban","Other","Single Premise",1,42.999999993480742,3.5112932986135079E-4,8.1657983701066453E-6,false]
["SUS631_01139","2014-10-22","11:36:00","Callister","Short Rural","Planned",0,1,24,0,0,false]
["SUS631_01140","2014-10-22","18:08:51","Curtin North","Short Rural","Other","Single Premise",1,155.8499999914784,2.6297583691866628E-3,1.6873650107991362E-5,false]
["SUS631_01141","2014-10-22","19:17:33","Lhotsky","Short Rural","Other","Single Premise",1,135.88333333027549,2.2928478221226293E-3,1.6873650107991362E-5,false]
["SUS631_01142","2014-10-22","20:01:00","Cooyong","Urban","Planned",0,12,468,0,0,false]
["SUS631_01143","2014-10-23","03:38:00","Forster","Urban","Asset failure","HV",525,0,0,0,false]
["SUS631_01144","2014-10-23","08:33:00","Hemmings","Short Rural","Asset failure","HV",816,40.544117647058819,0.55824784017278606,1.376889848812095E-2,false]
["SUS631_01145","2014-10-23","08:34:00","Fairley","Short Rural","Planned",0,28,130.92857142857144,0,0,false]
["SUS631_01146","2014-10-23","08:34:00","Carruthers","Urban","Planned",0,30,191,0,0,false]
["SUS631_01147","2014-10-23","08:45:00","Bunbury","Short Rural","Planned",0,21,310,0,0,false]
["SUS631_01148","2014-10-23","08:49:00","Cunningham","Urban","Planned",0,53,228.00000000000003,0,0,false]
["SUS631_01149","2014-10-23","08:55:00","Bunbury","Short Rural","Planned",0,5,277.2,0,0,false]
["SUS631_01150","2014-10-23","08:57:00","Grimshaw","Short Rural","Planned",0,15,134,0,0,false]
["SUS631_01151","2014-10-23","09:42:19","Wattle","Urban","Other","Single Premise",1,159.38333333353512,1.3014921635571453E-3,8.1657983701066453E-6,false]
["SUS631_01152","2014-10-23","11:28:21","Symers","Urban","Other","Single Premise",1,182.0499999972526,1.48658359325548E-3,8.1657983701066453E-6,false]
["SUS631_01153","2014-10-23","12:49:00","Matthews","Short Rural","Unknown","Unknown",0,0,0,0,false]
["SUS631_01154","2014-10-23","14:22:00","Aero Park","Urban","Asset failure","HV",65,34.707692307692305,1.8422041122960593E-2,5.3077689405693195E-4,false]
["SUS631_01155","2014-10-23","14:49:40","<UNKNOWN>","Urban","Other","Single Premise",1,133.99999999674037,1.0942169815676729E-3,8.1657983701066453E-6,false]
["SUS631_01156","2014-10-23","15:35:00","Macrossan","Short Rural","Asset failure","HV",1,72,1.214902807775378E-3,1.6873650107991362E-5,false]
["SUS631_01157","2014-10-23","15:54:38","Matthews","Short Rural","Other","Single Premise",1,111.73333333223127,1.8853491720476389E-3,1.6873650107991362E-5,false]
["SUS631_01158","2014-10-23","16:02:00","Matthews","Short Rural","Weather",0,1,84,1.4173866090712744E-3,1.6873650107991362E-5,false]
["SUS631_01159","2014-10-23","16:17:40","Lambrigg","Urban","Other","Single Premise",1,62.150000006658956,5.0750436875650372E-4,8.1657983701066453E-6,false]
["SUS631_01160","2014-10-23","17:07:00","Cessnock","Urban","Weather",0,149,0,0,0,false]
["SUS631_01161","2014-10-23","17:28:39","Beggs","Short Rural","Other","Single Premise",1,194.21666666865349,3.2771440785072472E-3,1.6873650107991362E-5,false]
["SUS631_01162","2014-10-23","20:41:30","William Slim","Short Rural","Other","Single Premise",1,36.283333328319713,6.1223227133368847E-4,1.6873650107991362E-5,false]
["SUS631_01163","2014-10-24","07:26:50","Yarralumla","Urban","Other","Single Premise",1,63.266666661947966,5.1662284351021513E-4,8.1657983701066453E-6,false]
["SUS631_01164","2014-10-24","08:14:00","Hilder","Short Rural","Planned",0,14,81.857142857142861,0,0,false]
["SUS631_01165","2014-10-24","08:55:00","Wilson","Urban","Planned",0,15,353.2,0,0,false]
["SUS631_01166","2014-10-24","08:58:00","Theodore","Urban","Planned",0,20,357.9,0,0,false]
["SUS631_01167","2014-10-24","09:05:00","Wilson","Urban","Planned",0,22,355.09090909090907,0,0,false]
["SUS631_01168","2014-10-24","11:43:00","Ashley","Short Rural","Asset failure","LV",16,46.125,1.2452753779697625E-2,2.6997840172786179E-4,false]
["SUS631_01169","2014-10-24","12:24:00","Cowper","Urban","Network business","Switching and protection error",48,26,1.0190916365893093E-2,3.9195832176511897E-4,false]
["SUS631_01170","2014-10-24","13:03:00","Devonport","Urban","Asset failure","Zone substation",0,0,0,0,false]
["SUS631_01171","2014-10-24","14:45:00","Devonport","Urban","Asset failure","HV",0,0,0,0,false]
["SUS631_01172","2014-10-24","17:30:00","Seal","Urban","Asset failure","LV",35,69.085714285714275,1.9744900458917865E-2,2.8580294295373261E-4,false]
["SUS631_01173","2014-10-24","18:15:57","Lawrence Wackett","Urban","Other","Single Premise",1,13.950000002514571,1.1391288728352118E-4,8.1657983701066453E-6,false]
["SUS631_01174","2014-10-25","07:17:00","Nicholson","Urban","Planned",0,1,258,0,0,false]
["SUS631_01175","2014-10-25","08:30:00","Dairy South","Urban","Planned",0,5,470.40000000000003,0,0,false]
["SUS631_01176","2014-10-25","08:36:00","Dairy South","Urban","Planned",0,3,460,0,0,false]
["SUS631_01177","2014-10-25","08:51:18","<UNKNOWN>","Urban","Other","Single Premise",1,147.81666666618548,1.2070410957373348E-3,8.1657983701066453E-6,false]
["SUS631_01178","2014-10-25","12:14:00","Streeton","Short Rural","Vegetation","Grow-in - Other responsible party",18,41,1.2452753779697625E-2,3.0372570194384449E-4,false]
["SUS631_01179","2014-10-25","18:03:00","Haydon","Urban","Asset failure","HV",1422,32.856540084388193,0.38152243144812276,1.161176528229165E-2,false]
["SUS631_01180","2014-10-25","18:37:59","Haydon","Urban","Other","Single Premise",1,2.5499999988824129,2.0822785834645953E-5,8.1657983701066453E-6,false]
["SUS631_01181","2014-10-25","19:58:10","Chuculba","Urban","Other","Single Premise",1,35.583333332324401,2.9056632532805608E-4,8.1657983701066453E-6,false]
["SUS631_01182","2014-10-26","10:00:45","Seal","Urban","Other","Single Premise",1,141.23333333409391,1.1532829231442727E-3,8.1657983701066453E-6,false]
["SUS631_01183","2014-10-26","10:49:25","Chisholm","Urban","Other","Single Premise",1,163.86666666716337,1.3381021595855315E-3,8.1657983701066453E-6,false]
["SUS631_01184","2014-10-26","14:20:15","Ijong","Urban","Other","Single Premise",1,44.283333333441988,3.6160877115710987E-4,8.1657983701066453E-6,false]
["SUS631_01185","2014-10-26","22:51:00","Belconnen Way South","Urban","Animal","Other",1634,42.998776009791918,0.57372899348369288,1.3342914536754258E-2,false]
["SUS631_01186","2014-10-27","08:08:52","McCaughey","Short Rural","Other","Single Premise",1,75.816666661994532,1.279303905608709E-3,1.6873650107991362E-5,false]
["SUS631_01187","2014-10-27","08:20:00","Shannon","Short Rural","Weather",0,1172,63.220136518771334,1.2502362311015118,1.9775917926565873E-2,false]
["SUS631_01188","2014-10-27","12:30:00","Maribyrnong","Urban","Asset failure","LV",34,72,1.9989874410021067E-2,2.7763714458362595E-4,false]
["SUS631_01189","2014-10-27","15:14:00","Weir","Urban","Vegetation","Grow-in - Other responsible party",53,51.056603773584911,2.2096650389508588E-2,4.3278731361565218E-4,false]
["SUS631_01190","2014-10-27","16:46:10","Macrossan","Short Rural","Other","Single Premise",1,202.56666667177342,3.4180390569616193E-3,1.6873650107991362E-5,false]
["SUS631_01191","2014-10-27","16:53:00","Chandler","Urban","Other","Safety reasons",30,63,1.5433358919501559E-2,2.4497395110319935E-4,false]
["SUS631_01192","2014-10-27","17:04:00","O'Loghlen","Urban","Asset failure","LV",40,106.05000000000001,3.4639316685992391E-2,3.2663193480426581E-4,false]
["SUS631_01193","2014-10-27","17:15:49","Baldwin","Urban","Other","Single Premise",1,94.716666669119149,7.7343720230862762E-4,8.1657983701066453E-6,false]
["SUS631_01194","2014-10-27","18:18:00","Baldwin","Urban","Vegetation","Grow-in - Other responsible party",51,11.999999999999998,4.9974686025052659E-3,4.1645571687543893E-4,false]
["SUS631_01195","2014-10-27","19:01:00","Northbourne","Urban","Vegetation","Grow-in - Other responsible party",54,180.11111111111109,7.9420554947657221E-2,4.4095311198575883E-4,false]
["SUS631_01196","2014-10-28","08:41:38","Lyons West","Urban","Other","Single Premise",1,353.03333332878537,2.8827990178895116E-3,8.1657983701066453E-6,false]
["SUS631_01197","2014-10-28","08:46:00","Ashley","Short Rural","Planned",0,17,138.00000000000003,0,0,false]
["SUS631_01198","2014-10-28","08:59:28","Shannon","Short Rural","Other","Single Premise",1,72.449999994132668,1.2224959502249708E-3,1.6873650107991362E-5,false]
["SUS631_01199","2014-10-28","09:00:00","Fairley","Short Rural","Planned",0,13,319.84615384615381,0,0,false]
["SUS631_01200","2014-10-28","09:00:00","Bean","Short Rural","Planned",0,27,274.88888888888891,0,0,false]
["SUS631_01201","2014-10-28","09:22:00","Lyons West","Urban","Planned",0,2,213,0,0,false]
["SUS631_01202","2014-10-28","09:35:00","Lyons West","Urban","Planned",0,56,267,0,0,false]
["SUS631_01203","2014-10-28","10:38:00","Verbrugghen","Short Rural","Planned",0,50,186.96,0,0,false]
["SUS631_01204","2014-10-28","11:11:00","Mackenzie","Short Rural","Vegetation","Blow-in/Fall-in - NSP responsibility",17,19.058823529411768,5.4670626349892018E-3,2.8685205183585314E-4,false]
["SUS631_01205","2014-10-28","15:26:00","Power House","Urban","Vegetation","Grow-in - Other responsible party",13,144,1.5286374548839641E-2,1.061553788113864E-4,false]
["SUS631_01206","2014-10-28","18:45:57","Rossman","Urban","Other","Single Premise",1,69.099999996833503,5.6425666734851224E-4,8.1657983701066453E-6,false]
["SUS631_01207","2014-10-29","08:41:00","Belmore","Urban","Planned",0,9,114.00000000000001,0,0,false]
["SUS631_01208","2014-10-29","08:50:00","Gouger","Urban","Planned",0,48,200,0,0,false]
["SUS631_01209","2014-10-29","09:01:00","Cameron South","Urban","Planned",0,29,225.93103448275861,0,0,false]
["SUS631_01210","2014-10-29","09:09:00","Telopea Park East","Urban","Planned",0,24,321.00000000000006,0,0,false]
["SUS631_01211","2014-10-29","09:21:00","Callister","Short Rural","Planned",0,24,158,0,0,false]
["SUS631_01212","2014-10-29","10:20:00","Callister","Short Rural","Planned",0,1,24,0,0,false]
["SUS631_01213","2014-10-29","10:35:00","Belmore","Urban","Planned",0,9,21.333333333333336,0,0,false]
["SUS631_01214","2014-10-29","13:16:49","Belconnen Way North","Urban","Other","Single Premise",1,118.80000000586733,9.7009684641658097E-4,8.1657983701066453E-6,false]
["SUS631_01215","2014-10-29","14:42:10","Masson","Urban","Other","Single Premise",1,51.133333331672475,4.1754448997789089E-4,8.1657983701066453E-6,false]
["SUS631_01216","2014-10-29","15:44:00","Laurie","Urban","Asset failure","HV",56,86.035714285714292,3.9342816547173816E-2,4.5728470872597214E-4,false]
["SUS631_01217","2014-10-29","17:13:36","Meacham","Short Rural","Other","Single Premise",1,307.93333333684132,5.1959593233133318E-3,1.6873650107991362E-5,false]
["SUS631_01218","2014-10-29","17:40:39","Hobart Long","Urban","Other","Single Premise",1,56.633333328645676,4.6245638098876124E-4,8.1657983701066453E-6,false]
["SUS631_01219","2014-10-29","20:11:04","Throsby","Urban","Other","Single Premise",1,34.250000001629815,2.7967859418946136E-4,8.1657983701066453E-6,false]
["SUS631_01220","2014-10-29","22:22:00","Paterick","Urban","Unknown","Unknown",1225,0,0,0,false]
["SUS631_01221","2014-10-30","02:18:00","Weston East","Short Rural","Unknown","Unknown",1248,0,0,0,false]
["SUS631_01222","2014-10-30","08:55:11","Bissenberger","Short Rural","Other","Single Premise",1,64.833333338610828,1.0939749820904905E-3,1.6873650107991362E-5,false]
["SUS631_01223","2014-10-30","09:02:00","Lyons West","Urban","Planned",0,49,508.0408163265306,0,0,false]
["SUS631_01224","2014-10-30","09:02:00","Mackenzie","Short Rural","Planned",0,22,88.090909090909079,0,0,false]
["SUS631_01225","2014-10-30","09:05:00","Ferdinand","Short Rural","Planned",0,12,139,0,0,false]
["SUS631_01226","2014-10-30","09:26:00","Eardley","Urban","Planned",0,9,66.666666666666671,0,0,false]
["SUS631_01227","2014-10-30","11:10:05","Northbourne","Urban","Other","Single Premise",1,55.900000002002344,4.5646812890531223E-4,8.1657983701066453E-6,false]
["SUS631_01228","2014-10-30","12:06:00","Bissenberger","Short Rural","Asset failure","LV",16,79.875,2.1564524838012959E-2,2.6997840172786179E-4,false]
["SUS631_01229","2014-10-30","12:28:00","Black Mtn","Short Rural","Planned",0,46,145.04347826086959,0,0,false]
["SUS631_01230","2014-10-30","18:15:56","Lyons West","Urban","Other","Single Premise",1,23.716666657710448,1.936655179378946E-4,8.1657983701066453E-6,false]
["SUS631_01231","2014-10-30","19:37:00","Daplyn","Urban","Asset failure","LV",17,316.58823529411762,4.3948326827913962E-2,1.3881857229181298E-4,false]
["SUS631_01232","2014-10-30","20:27:35","McGuiness","Urban","Other","Single Premise",1,77.81666666851379,6.3543520984888204E-4,8.1657983701066453E-6,false]
["SUS631_01233","2014-10-30","22:36:00","Morison","Short Rural","Unknown","Unknown",5,80.400000000000006,6.783207343412527E-3,8.4368250539956798E-5,false]
["SUS631_01234","2014-10-30","22:36:19","Morison","Short Rural","Other","Single Premise",1,88.916666664881632,1.5003487220721118E-3,1.6873650107991362E-5,false]
["SUS631_01235","2014-10-31","06:25:04","Strzelecki","Urban","Other","Single Premise",1,14.366666661808267,1.1731530321085943E-4,8.1657983701066453E-6,false]
["SUS631_01236","2014-10-31","08:12:00","Miller","Urban","Planned",0,16,445.875,0,0,false]
["SUS631_01237","2014-10-31","08:32:00","Ebden","Urban","Planned",0,31,84,0,0,false]
["SUS631_01238","2014-10-31","08:51:01","Weston East","Short Rural","Other","Single Premise",1,76.350000004749745,1.2883031858252859E-3,1.6873650107991362E-5,false]
["SUS631_01239","2014-10-31","09:00:00","Rossman","Urban","Planned",0,20,182.10000000000002,0,0,false]
["SUS631_01240","2014-10-31","09:00:00","Abattoirs","Short Rural","Planned",0,14,138.85714285714283,0,0,false]
["SUS631_01241","2014-10-31","09:08:00","Devonport","Urban","Planned",0,54,247.00000000000003,0,0,false]
["SUS631_01242","2014-10-31","09:49:00","Curtin North","Short Rural","Planned",0,30,320,0,0,false]
["SUS631_01243","2014-10-31","10:06:00","Falkiner","Urban","Planned",0,14,138.85714285714283,0,0,false]
["SUS631_01244","2014-10-31","10:56:03","Deakin No 1","Urban","Other","Single Premise",1,231.19999999296851,1.8879325831112387E-3,8.1657983701066453E-6,false]
["SUS631_01245","2014-10-31","11:31:00","Wolseley","Urban","Third party","Other",827,37.197097944377269,0.25119628946122063,6.7531152520781956E-3,false]
["SUS631_01246","2014-10-31","21:39:16","Daplyn","Urban","Other","Single Premise",1,317.56666666944511,2.5931853690895554E-3,8.1657983701066453E-6,false]
["SUS631_01247","2014-10-31","22:22:00","Aero Park","Urban","Asset failure","HV",65,39.876923076923077,2.1165749375316425E-2,5.3077689405693195E-4,false]
["SUS631_01248","2014-11-01","07:30:00","Kurrajong","Urban","Planned",0,1,312,0,0,false]
["SUS631_01249","2014-11-01","14:43:00","Chisholm","Urban","Vegetation","Grow-in - Other responsible party",33,340,9.1620257712596562E-2,2.694713462135193E-4,false]
["SUS631_01250","2014-11-01","14:43:23","Chisholm","Urban","Other","Single Premise",1,89.600000000791624,7.3165553396801965E-4,8.1657983701066453E-6,false]
["SUS631_01251","2014-11-01","16:11:47","<UNKNOWN>","Urban","Other","Single Premise",1,8.9500000071711838,7.3083895471012911E-5,8.1657983701066453E-6,false]
["SUS631_01252","2014-11-02","08:00:00","Lonsdale","Urban","Planned",0,1,288,0,0,false]
["SUS631_01253","2014-11-02","09:47:00","Lonsdale","Urban","Planned",0,2,69,0,0,false]
["SUS631_01254","2014-11-02","12:53:23","Ferdinand","Short Rural","Other","Single Premise",1,59.383333332370967,1.0020135888966484E-3,1.6873650107991362E-5,false]
["SUS631_01255","2014-11-02","15:59:31","Marconi","Urban","Other","Single Premise",1,107.58333333651535,8.78503808009957E-4,8.1657983701066453E-6,false]
["SUS631_01256","2014-11-02","19:10:00","Lethbridge","Urban","Third party","Other",8,93,6.0753539873593439E-3,6.5326386960853162E-5,false]
["SUS631_01257","2014-11-03","06:16:44","Banyule","Short Rural","Other","Single Premise",1,249.16666665812954,4.2043511517637945E-3,1.6873650107991362E-5,false]
["SUS631_01258","2014-11-03","07:19:58","Power House","Urban","Other","Single Premise",1,163.91666666837409,1.3385104495139235E-3,8.1657983701066453E-6,false]
["SUS631_01259","2014-11-03","07:49:20","Ferguson","Urban","Other","Single Premise",1,105.89999999734573,8.6475804737261948E-4,8.1657983701066453E-6,false]
["SUS631_01260","2014-11-03","08:31:00","Belconnen Way South","Urban","Planned",0,76,148.02631578947367,0,0,false]
["SUS631_01261","2014-11-03","08:38:00","Wilson","Urban","Planned",0,29,258,0,0,false]
["SUS631_01262","2014-11-03","08:50:00","Deakin No 1","Urban","Planned",0,25,247.92,0,0,false]
["SUS631_01263","2014-11-03","09:16:00","Wolseley","Urban","Planned",0,18,71,0,0,false]
["SUS631_01264","2014-11-03","10:27:00","Yarralumla","Urban","Planned",0,32,297,0,0,false]
["SUS631_01265","2014-11-03","11:40:00","Maribyrnong","Urban","Third party","Other",1,66,5.389426924270386E-4,8.1657983701066453E-6,false]
["SUS631_01266","2014-11-03","11:40:58","Giles","Urban","Other","Single Premise",1,176.60000000149012,1.4420799921730015E-3,8.1657983701066453E-6,false]
["SUS631_01267","2014-11-03","11:43:01","Theodore","Urban","Other","Single Premise",1,42.283333337400109,3.4527717444921777E-4,8.1657983701066453E-6,false]
["SUS631_01268","2014-11-03","12:18:45","Wolseley","Urban","Other","Single Premise",1,48.383333327947184,3.9508854442967765E-4,8.1657983701066453E-6,false]
["SUS631_01269","2014-11-03","12:21:51","Athllon","Urban","Other","Single Premise",1,221.41666665673256,1.8080438556999931E-3,8.1657983701066453E-6,false]
["SUS631_01270","2014-11-03","13:11:02","Mackenzie","Short Rural","Other","Single Premise",1,88.216666668886319,1.4885371670640916E-3,1.6873650107991362E-5,false]
["SUS631_01271","2014-11-03","16:27:16","Riley","Urban","Other","Single Premise",1,194.45000000414439,1.5878394931010795E-3,8.1657983701066453E-6,false]
["SUS631_01272","2014-11-03","18:47:50","Ferdinand","Short Rural","Other","Single Premise",1,83.51666665985249,1.4092310114040985E-3,1.6873650107991362E-5,false]
["SUS631_01273","2014-11-03","23:52:00","Deakin No 1","Urban","Unknown","Unknown",935,0,0,0,false]
["SUS631_01274","2014-11-04","08:40:00","Folingsby","Urban","Planned",0,43,148.04651162790697,0,0,false]
["SUS631_01275","2014-11-04","08:44:00","Mannheim","Short Rural","Planned",0,15,78.8,0,0,false]
["SUS631_01276","2014-11-04","08:47:00","Athllon","Urban","Planned",0,57,72.94736842105263,0,0,false]
["SUS631_01277","2014-11-04","08:47:00","Mannheim","Short Rural","Planned",0,32,72.9375,0,0,false]
["SUS631_01278","2014-11-04","09:04:14","KF1","Urban","Other","Single Premise",1,55.216666666092351,4.5088816666469884E-4,8.1657983701066453E-6,false]
["SUS631_01279","2014-11-04","09:08:00","Bissenberger","Short Rural","Planned",0,15,152,0,0,false]
["SUS631_01280","2014-11-04","12:54:00","Hemmings","Short Rural","Planned",0,38,206.05263157894737,0,0,false]
["SUS631_01281","2014-11-04","15:25:41","Chisholm","Urban","Other","Single Premise",1,4.0166666626464576,3.2799290087100143E-5,8.1657983701066453E-6,false]
["SUS631_01282","2014-11-04","16:54:26","Cameron South","Urban","Other","Single Premise",1,5.9999999986030161,4.8994790209232384E-5,8.1657983701066453E-6,false]
["SUS631_01283","2014-11-04","17:14:54","Baldwin","Urban","Other","Single Premise",1,79.883333336329088,6.5231119315648195E-4,8.1657983701066453E-6,false]
["SUS631_01284","2014-11-05","02:35:00","Chisholm","Urban","Unknown","Unknown",840,0,0,0,false]
["SUS631_01285","2014-11-05","06:42:53","Throsby","Urban","Other","Single Premise",1,107.80000000144355,8.8027306430928413E-4,8.1657983701066453E-6,false]
["SUS631_01286","2014-11-05","08:45:00","Devonport","Urban","Planned",0,73,258.98630136986304,0,0,false]
["SUS631_01287","2014-11-05","09:00:00","Lyons West","Urban","Planned",0,17,262.94117647058829,0,0,false]
["SUS631_01288","2014-11-05","09:01:00","Homann","Short Rural","Planned",0,16,46.125,0,0,false]
["SUS631_01289","2014-11-05","09:05:00","Lyons West","Urban","Planned",0,29,274.9655172413793,0,0,false]
["SUS631_01290","2014-11-05","11:30:00","Monaro","Urban","Other","Vandalism",1,132,1.0778853848540772E-3,8.1657983701066453E-6,false]
["SUS631_01291","2014-11-05","12:30:00","Dairy North","Short Rural","Asset failure","LV",1,72,1.214902807775378E-3,1.6873650107991362E-5,false]
["SUS631_01292","2014-11-05","12:30:30","Dairy South","Urban","Other","Single Premise",1,105.58333332999609,8.6217221121650872E-4,8.1657983701066453E-6,false]
["SUS631_01293","2014-11-05","23:13:32","Quick","Urban","Other","Single Premise",1,64.266666665207595,5.2478864190693927E-4,8.1657983701066453E-6,false]
["SUS631_01294","2014-11-06","08:43:00","Lyons West","Urban","Planned",0,41,272.92682926829269,0,0,false]
["SUS631_01295","2014-11-06","08:51:20","Northbourne","Urban","Other","Single Premise",1,89.566666670143604,7.3138334071094389E-4,8.1657983701066453E-6,false]
["SUS631_01296","2014-11-06","09:03:00","Hemmings","Short Rural","Planned",0,31,53.999999999999993,0,0,false]
["SUS631_01297","2014-11-06","09:10:00","Lonsdale","Urban","Planned",0,1,120,0,0,false]
["SUS631_01298","2014-11-06","09:16:27","Carruthers","Urban","Other","Single Premise",1,68.766666669398546,5.6153473460664161E-4,8.1657983701066453E-6,false]
["SUS631_01299","2014-11-06","12:15:00","Findlayson","Short Rural","Planned",0,23,42.000000000000007,0,0,false]
["SUS631_01300","2014-11-06","21:00:00","Throsby","Urban","Asset failure","LV",23,85.043478260869563,1.5972301611928599E-2,1.8781336251245284E-4,false]
["SUS631_01301","2014-11-06","21:03:39","Templestowe","Short Rural","Other","Single Premise",1,28.633333331672475,4.831488480641279E-4,1.6873650107991362E-5,false]
["SUS631_01302","2014-11-06","22:33:00","Monash","Urban","Unknown","Unknown",59,44.033898305084747,2.1214744165537064E-2,4.8178210383629209E-4,false]
["SUS631_01303","2014-11-07","09:15:00","Lyons West","Urban","Planned",0,30,245.99999999999997,0,0,false]
["SUS631_01304","2014-11-07","09:27:00","Lambrigg","Urban","Planned",0,44,80.045454545454547,0,0,false]
["SUS631_01305","2014-11-07","10:10:00","Lyons West","Urban","Planned",0,75,175.04000000000002,0,0,false]
["SUS631_01306","2014-11-07","10:13:31","Cowper","Urban","Other","Single Premise",1,89.833333325805143,7.3356088685310665E-4,8.1657983701066453E-6,false]
["SUS631_01307","2014-11-07","10:17:00","McGuiness","Urban","Planned",0,28,213.00000000000003,0,0,false]
["SUS631_01308","2014-11-07","11:31:07","<UNKNOWN>","Urban","Other","Single Premise",1,185.93333333730698,1.5182941103142769E-3,8.1657983701066453E-6,false]
["SUS631_01309","2014-11-07","11:45:00","Bunbury","Short Rural","Planned",0,28,165,0,0,false]
["SUS631_01310","2014-11-07","11:45:00","Lambrigg","Urban","Planned",0,28,165,0,0,false]
["SUS631_01311","2014-11-07","14:42:46","Lyons West","Urban","Other","Single Premise",1,163.43333333730698,1.3345636469868775E-3,8.1657983701066453E-6,false]
["SUS631_01312","2014-11-07","18:02:38","Stott","Urban","Other","Single Premise",1,129.2833333380986,1.0557016326541997E-3,8.1657983701066453E-6,false]
["SUS631_01313","2014-11-07","18:07:00","Bean","Short Rural","Asset failure","HV",25,30,1.265523758099352E-2,4.2184125269978401E-4,false]
["SUS631_01314","2014-11-07","20:20:59","Elkington","Urban","Other","Single Premise",1,38.133333331206813,3.1138911116270201E-4,8.1657983701066453E-6,false]
["SUS631_01315","2014-11-08","07:45:00","Wattle","Urban","Planned",0,1,294,0,0,false]
["SUS631_01316","2014-11-08","08:20:16","Weston East","Short Rural","Other","Single Premise",1,111.98333333828487,1.8895675846767829E-3,1.6873650107991362E-5,false]
["SUS631_01317","2014-11-08","09:16:52","Stott","Urban","Other","Single Premise",1,29.216666665161029,2.3857740903432108E-4,8.1657983701066453E-6,false]
["SUS631_01318","2014-11-08","13:21:03","Chuculba","Urban","Other","Single Premise",1,58.299999997252598,4.7606604495478271E-4,8.1657983701066453E-6,false]
["SUS631_01319","2014-11-08","13:59:42","<UNKNOWN>","Urban","Other","Single Premise",1,76.416666666045785,6.2400309211057951E-4,8.1657983701066453E-6,false]
["SUS631_01320","2014-11-08","16:07:56","Benjamin","Urban","Other","Single Premise",1,72.583333337679505,5.9270086506573068E-4,8.1657983701066453E-6,false]
["SUS631_01321","2014-11-09","09:37:56","Empire","Urban","Other","Single Premise",1,171.98333333479241,1.4043812230307557E-3,8.1657983701066453E-6,false]
["SUS631_01322","2014-11-09","10:43:00","Chisholm","Urban","Planned",0,2,99,0,0,false]
["SUS631_01323","2014-11-09","10:46:00","Chisholm","Urban","Planned",0,2,99,0,0,false]
["SUS631_01324","2014-11-09","18:25:21","Homann","Short Rural","Other","Single Premise",1,74.750000007916242,1.2613053457059301E-3,1.6873650107991362E-5,false]
["SUS631_01325","2014-11-10","09:01:00","O'Loghlen","Urban","Planned",0,3,150,0,0,false]
["SUS631_01326","2014-11-10","09:18:00","O'Loghlen","Urban","Planned",0,17,105.88235294117646,0,0,false]
["SUS631_01327","2014-11-10","09:23:56","Eaglemont","Urban","Other","Single Premise",1,92.266666662180796,7.5343099624520908E-4,8.1657983701066453E-6,false]
["SUS631_01328","2014-11-10","10:17:00","Reid","Short Rural","Asset failure","LV",48,63,5.1025917926565877E-2,8.0993520518358531E-4,false]
["SUS631_01329","2014-11-10","19:15:31","Homann","Short Rural","Other","Single Premise",1,82.700000001350418,1.395450863953672E-3,1.6873650107991362E-5,false]
["SUS631_01330","2014-11-10","22:00:00","Homann","Short Rural","Vegetation","Grow-in - Other responsible party",29,46.96551724137931,2.2981911447084235E-2,4.8933585313174941E-4,false]
["SUS631_01331","2014-11-11","00:02:00","Bowen","Urban","Planned",0,1,96,0,0,false]
["SUS631_01332","2014-11-11","02:33:00","William Slim","Short Rural","Asset failure","HV",18,80,2.429805615550756E-2,3.0372570194384449E-4,false]
["SUS631_01333","2014-11-11","03:04:00","Cotter 11kV","Short Rural","Planned",0,4,43.5,0,0,false]
["SUS631_01334","2014-11-11","04:04:00","Elkington","Urban","Asset failure","HV",1518,22,0.27270500236808154,1.2395681925821888E-2,false]
["SUS631_01335","2014-11-11","08:08:00","Black Mtn","Short Rural","Other","Customer installation",1,390,6.5807235421166304E-3,1.6873650107991362E-5,false]
["SUS631_01336","2014-11-11","08:08:00","Black Mtn","Short Rural","Other","Customer installation",1,390,6.5807235421166304E-3,1.6873650107991362E-5,false]
["SUS631_01337","2014-11-11","08:50:00","Deakin No 1","Urban","Planned",0,30,205,0,0,false]
["SUS631_01338","2014-11-11","09:00:00","Deakin No 1","Urban","Planned",0,29,200.06896551724139,0,0,false]
["SUS631_01339","2014-11-11","09:02:19","O'Loghlen","Urban","Other","Single Premise",1,236.75000000162981,1.9332527641360571E-3,8.1657983701066453E-6,false]
["SUS631_01340","2014-11-11","09:10:00","Ferdinand","Short Rural","Planned",0,3,232,0,0,false]
["SUS631_01341","2014-11-11","09:20:00","Yarralumla","Urban","Planned",0,30,520,0,0,false]
["SUS631_01342","2014-11-11","09:24:00","Curtin North","Short Rural","Planned",0,29,518.89655172413791,0,0,false]
["SUS631_01343","2014-11-11","12:53:48","Powers","Urban","Other","Single Premise",1,32.516666661249474,2.6552454362373202E-4,8.1657983701066453E-6,false]
["SUS631_01344","2014-11-11","13:38:00","Monaro","Urban","Animal","Other",20,24.900000000000002,4.0665675883131101E-3,1.6331596740213291E-4,false]
["SUS631_01345","2014-11-11","14:08:00","Deakin No 2","Urban","Unknown","Unknown",27,25.333333333333332,5.5854060851529457E-3,2.2047655599287942E-4,false]
["SUS631_01346","2014-11-11","16:36:05","Callister","Short Rural","Other","Single Premise",1,348.71666666935198,5.8841230202036987E-3,1.6873650107991362E-5,false]
["SUS631_01347","2014-11-11","17:11:12","Brookman","Urban","Other","Single Premise",1,120.4999999946449,9.8397870355412202E-4,8.1657983701066453E-6,false]
["SUS631_01348","2014-11-12","04:45:00","Cotter 11kV","Short Rural","Unknown","Unknown",62,42,4.3938984881209502E-2,1.0461663066954644E-3,false]
["SUS631_01349","2014-11-12","04:53:00","Baldwin","Urban","Asset failure","HV",1021,0.99902056807051909,0,0,false]
["SUS631_01350","2014-11-12","08:42:00","Lyons West","Urban","Planned",0,85,298.02352941176468,0,0,false]
["SUS631_01351","2014-11-12","08:48:00","Devonport","Urban","Planned",0,18,331,0,0,false]
["SUS631_01352","2014-11-12","09:00:00","Giles","Urban","Planned",0,2,105,0,0,false]
["SUS631_01353","2014-11-12","09:00:00","Giles","Urban","Planned",0,7,104.57142857142856,0,0,false]
["SUS631_01354","2014-11-12","09:14:00","Cotter 11kV","Short Rural","Planned",0,10,102,0,0,false]
["SUS631_01355","2014-11-12","16:14:43","Devonport","Urban","Other","Single Premise",1,37.683333330787718,3.0771450189273175E-4,8.1657983701066453E-6,false]
["SUS631_01356","2014-11-12","16:58:37","Callister","Short Rural","Other","Single Premise",1,134.23333333223127,2.2650062994774445E-3,1.6873650107991362E-5,false]
["SUS631_01357","2014-11-13","06:39:20","Hawkesbury","Short Rural","Other","Single Premise",1,152.68333333893679,2.5763251440830315E-3,1.6873650107991362E-5,false]
["SUS631_01358","2014-11-13","08:35:00","Stott","Urban","Planned",0,2,240,0,0,false]
["SUS631_01359","2014-11-13","08:45:00","Empire","Urban","Planned",0,44,429.95454545454544,0,0,false]
["SUS631_01360","2014-11-13","08:52:00","Empire","Urban","Planned",0,35,420,0,0,false]
["SUS631_01361","2014-11-13","08:53:50","Empire","Urban","Other","Single Premise",1,163.54999999981374,1.3355163234294207E-3,8.1657983701066453E-6,false]
["SUS631_01362","2014-11-13","09:00:00","Cotter 11kV","Short Rural","Planned",0,2,429,0,0,false]
["SUS631_01363","2014-11-13","09:15:00","Hilder","Short Rural","Planned",0,108,425,0,0,false]
["SUS631_01364","2014-11-13","10:57:28","Folingsby","Urban","Other","Single Premise",1,94.749999999767169,7.7370939556570338E-4,8.1657983701066453E-6,false]
["SUS631_01365","2014-11-13","13:00:00","Stott","Urban","Planned",0,22,109.90909090909091,0,0,false]
["SUS631_01366","2014-11-13","16:52:01","Lander","Urban","Other","Single Premise",1,143.38333333376795,1.1708393896373401E-3,8.1657983701066453E-6,false]
["SUS631_01367","2014-11-13","16:54:17","Weir","Urban","Other","Single Premise",1,84.833333330461755,6.9273189504059831E-4,8.1657983701066453E-6,false]
["SUS631_01368","2014-11-13","18:18:00","Gallery","Urban","Planned",0,1,42,0,0,false]
["SUS631_01369","2014-11-13","18:21:10","Ebden","Urban","Other","Single Premise",1,73.933333328459412,6.0372469279008521E-4,8.1657983701066453E-6,false]
["SUS631_01370","2014-11-14","03:36:00","Monash","Urban","Animal","Other",59,45.996610169491525,2.2160343616795416E-2,4.8178210383629209E-4,false]
["SUS631_01371","2014-11-14","08:28:00","Dryandra","Urban","Planned",0,32,294,0,0,false]
["SUS631_01372","2014-11-14","08:33:24","O'Loghlen","Urban","Other","Single Premise",1,73.266666673589498,5.9828082730634395E-4,8.1657983701066453E-6,false]
["SUS631_01373","2014-11-14","08:42:00","Mugga","Short Rural","Planned",0,1,180,0,0,false]
["SUS631_01374","2014-11-14","08:45:00","Giles","Urban","Planned",0,13,185.07692307692309,0,0,false]
["SUS631_01375","2014-11-14","08:51:00","Black Mtn","Short Rural","Planned",0,35,104.91428571428573,0,0,false]
["SUS631_01376","2014-11-14","09:22:00","Baldwin","Urban","Vegetation","Grow-in - Other responsible party",50,32.04,1.3081608988910845E-2,4.0828991850533228E-4,false]
["SUS631_01377","2014-11-14","09:33:00","Hemmings","Short Rural","Planned",0,1,234,0,0,false]
["SUS631_01378","2014-11-14","10:16:34","<UNKNOWN>","Urban","Other","Single Premise",1,97.949999993434176,7.9983995029833069E-4,8.1657983701066453E-6,false]
["SUS631_01379","2014-11-14","10:21:14","LM East","Short Rural","Other","Single Premise",1,64.416666658362374,1.0869442943163199E-3,1.6873650107991362E-5,false]
["SUS631_01380","2014-11-14","10:35:00","Giles","Urban","Asset failure","HV",1,126,1.0288905946334373E-3,8.1657983701066453E-6,false]
["SUS631_01381","2014-11-14","11:29:14","Ashley","Short Rural","Other","Single Premise",1,163.78333333530463,2.7636226602204481E-3,1.6873650107991362E-5,false]
["SUS631_01382","2014-11-14","12:00:00","Mackenzie","Short Rural","Planned",0,1,66,0,0,false]
["SUS631_01383","2014-11-14","12:06:48","Latham","Urban","Other","Single Premise",1,23.000000001629815,1.8781336252576158E-4,8.1657983701066453E-6,false]
["SUS631_01384","2014-11-14","12:08:00","Theodore","Urban","Planned",0,22,85.090909090909093,0,0,false]
["SUS631_01385","2014-11-14","14:25:00","Dryandra","Urban","Other","Single Premise",1,65.133333335397765,5.3186566718980391E-4,8.1657983701066453E-6,false]
["SUS631_01386","2014-11-14","15:48:33","Findlayson","Short Rural","Other","Single Premise",1,129.99999999417923,2.1935745139406593E-3,1.6873650107991362E-5,false]
["SUS631_01387","2014-11-14","19:03:00","Chan","Urban","Unknown","Unknown",1,48,3.9195832176511897E-4,8.1657983701066453E-6,false]
["SUS631_01388","2014-11-14","20:09:51","<UNKNOWN>","Urban","Other","Single Premise",1,74.95000000228174,6.1202658785812535E-4,8.1657983701066453E-6,false]
["SUS631_01389","2014-11-15","12:43:39","Lyons West","Urban","Other","Single Premise",1,84.983333334093913,6.9395676482577381E-4,8.1657983701066453E-6,false]
["SUS631_01390","2014-11-15","15:50:00","McInnes","Urban","Asset failure","LV",13,66.92307692307692,7.1042445819927812E-3,1.061553788113864E-4,false]
["SUS631_01391","2014-11-15","17:03:00","Miller","Urban","Asset failure","LV",38,38.05263157894737,1.1807744443174209E-2,3.1030033806405251E-4,false]
["SUS631_01392","2014-11-15","18:58:28","Chuculba","Urban","Other","Single Premise",1,239.8999999940861,1.9589750289402924E-3,8.1657983701066453E-6,false]
["SUS631_01393","2014-11-15","19:36:00","Streeton","Short Rural","Asset failure","LV",24,77,3.1182505399568034E-2,4.0496760259179265E-4,false]
["SUS631_01394","2014-11-15","21:18:00","McInnes","Urban","Asset failure","LV",13,36.923076923076927,3.9195832176511904E-3,1.061553788113864E-4,false]
["SUS631_01395","2014-11-15","21:43:00","Belconnen Way North","Urban","Asset failure","LV",47,85.021276595744681,3.2630530286946152E-2,3.8379252339501232E-4,false]
["SUS631_01396","2014-11-15","22:30:00","Longmore","Urban","Asset failure","LV",51,138,5.7470888928810568E-2,4.1645571687543893E-4,false]
["SUS631_01397","2014-11-15","22:37:00","Cunningham","Urban","Asset failure","LV",11,210,1.8862994234946352E-2,8.9823782071173105E-5,false]
["SUS631_01398","2014-11-15","22:53:00","Cunningham","Urban","Asset failure","LV",43,234.97674418604652,8.250722673155754E-2,3.5112932991458577E-4,false]
["SUS631_01399","2014-11-15","23:14:01","Athllon","Urban","Other","Single Premise",1,122.90000000037253,1.0035766196891487E-3,8.1657983701066453E-6,false]
["SUS631_01400","2014-11-15","23:15:00","Miller","Urban","Asset failure","LV",38,105,3.2581535496725517E-2,3.1030033806405251E-4,false]
["SUS631_01401","2014-11-15","23:55:00","Miller","Urban","Asset failure","LV",21,152.00000000000003,2.6065228397380416E-2,1.7148176577223956E-4,false]
["SUS631_01402","2014-11-16","00:20:00","Ebden","Urban","Asset failure","LV",22,65.999999999999986,1.1856739233394847E-2,1.7964756414234621E-4,false]
["SUS631_01403","2014-11-16","01:28:00","Longmore","Urban","Asset failure","LV",17,138.00000000000003,1.9156962976270193E-2,1.3881857229181298E-4,false]
["SUS631_01404","2014-11-16","01:41:00","Ebden","Urban","Vegetation","Grow-in - Other responsible party",0,0,0,0,false]
["SUS631_01405","2014-11-16","05:45:00","Carruthers","Urban","Asset failure","LV",29,368.06896551724139,8.7161731802518336E-2,2.3680815273309272E-4,false]
["SUS631_01406","2014-11-16","06:49:00","Dryandra","Urban","Vegetation","Grow-in - Other responsible party",1039,41.965351299326279,0.35604514053339004,8.4842645065408041E-3,false]
["SUS631_01407","2014-11-16","07:44:33","Reid","Short Rural","Other","Single Premise",1,234.06666666967794,3.9495590353279889E-3,1.6873650107991362E-5,false]
["SUS631_01408","2014-11-16","07:57:00","Lampard","Short Rural","Asset failure","LV",18,103,3.1283747300215985E-2,3.0372570194384449E-4,false]
["SUS631_01409","2014-11-16","08:23:08","Dryandra","Urban","Other","Single Premise",1,205.98333333036862,1.6820183675782579E-3,8.1657983701066453E-6,false]
["SUS631_01410","2014-11-16","08:53:00","Lyons West","Urban","Vegetation","Grow-in - Other responsible party",1907,41.04981646565286,0.63923502800868837,1.5572177491793373E-2,false]
["SUS631_01411","2014-11-16","09:06:09","Lyons West","Urban","Other","Single Premise",1,50.65000000060536,4.1359768745084482E-4,8.1657983701066453E-6,false]
["SUS631_01412","2014-11-16","09:59:00","Symers","Urban","Asset failure","HV",596,0,0,0,false]
["SUS631_01413","2014-11-16","09:59:00","Symers","Urban","Asset failure","HV",55,80.945454545454552,3.6354134343714782E-2,4.4911891035586548E-4,false]
["SUS631_01414","2014-11-16","11:22:00","Ebden","Urban","Asset failure","LV",47,37.021276595744681,1.4208489163985562E-2,3.8379252339501232E-4,false]
["SUS631_01415","2014-11-16","11:36:14","Stott","Urban","Other","Single Premise",1,173.89999999897555,1.4200323365531802E-3,8.1657983701066453E-6,false]
["SUS631_01416","2014-11-16","12:59:51","Bissenberger","Short Rural","Other","Single Premise",1,145.58333333465271,2.4565222282440049E-3,1.6873650107991362E-5,false]
["SUS631_01417","2014-11-16","13:13:00","Baldwin","Urban","Asset failure","LV",57,47.05263157894737,2.1900671228626024E-2,4.6545050709607879E-4,false]
["SUS631_01418","2014-11-16","13:27:00","Dryandra","Urban","Vegetation","Grow-in - Other responsible party",0,0,0,0,false]
["SUS631_01419","2014-11-16","14:16:46","Miller","Urban","Other","Single Premise",1,155.8499999914784,1.272639675911535E-3,8.1657983701066453E-6,false]
["SUS631_01420","2014-11-16","14:30:12","Penton","Urban","Other","Single Premise",1,142.45000000228174,1.1632179778403239E-3,8.1657983701066453E-6,false]
["SUS631_01421","2014-11-16","16:31:00","Curtin North","Short Rural","Planned",0,1,276,0,0,false]
["SUS631_01422","2014-11-16","16:34:00","Deakin No 1","Urban","Planned",0,1,276,0,0,false]
["SUS631_01423","2014-11-16","18:06:41","Falkiner","Urban","Other","Single Premise",1,197.48333333409391,1.6126090814627715E-3,8.1657983701066453E-6,false]
["SUS631_01424","2014-11-16","19:10:00","Miller","Urban","Asset failure","LV",21,30,5.1444529731671865E-3,1.7148176577223956E-4,false]
["SUS631_01425","2014-11-16","19:38:00","Longmore","Urban","Asset failure","LV",17,63.176470588235283,8.7700674494945348E-3,1.3881857229181298E-4,false]
["SUS631_01426","2014-11-16","19:49:34","Shannon","Short Rural","Other","Single Premise",1,216.38333334121853,3.6511766560005827E-3,1.6873650107991362E-5,false]
["SUS631_01427","2014-11-16","22:09:00","Weir","Urban","Asset failure","LV",10,70.800000000000011,5.7813852460355062E-3,8.1657983701066453E-5,false]
["SUS631_01428","2014-11-17","04:39:00","Seal","Urban","Asset failure","HV",27,101.11111111111111,2.229262955039114E-2,2.2047655599287942E-4,false]
["SUS631_01429","2014-11-17","08:11:00","Forster","Urban","Planned",0,33,184,0,0,false]
["SUS631_01430","2014-11-17","08:31:00","Belconnen Way North","Urban","Planned",0,42,192.99999999999997,0,0,false]
["SUS631_01431","2014-11-17","08:33:25","Ferguson","Urban","Other","Single Premise",1,155.93333333381452,1.2733201591825587E-3,8.1657983701066453E-6,false]
["SUS631_01432","2014-11-17","09:02:00","Belconnen Way North","Urban","Planned",0,52,72,0,0,false]
["SUS631_01433","2014-11-17","09:10:00","Yarralumla","Urban","Planned",0,7,448.28571428571422,0,0,false]
["SUS631_01434","2014-11-17","09:16:00","Yarralumla","Urban","Planned",0,2,435,0,0,false]
["SUS631_01435","2014-11-17","09:20:00","Yarralumla","Urban","Planned",0,2,423,0,0,false]
["SUS631_01436","2014-11-17","14:05:00","Ebden","Urban","Asset failure","LV",24,75,1.4698437066191962E-2,1.9597916088255949E-4,false]
["SUS631_01437","2014-11-17","19:10:00","Shannon","Short Rural","Asset failure","LV",54,65,5.9226511879049676E-2,9.1117710583153353E-4,false]
["SUS631_01438","2014-11-18","05:04:00","Riverside","Urban","Planned",0,1,30,0,0,false]
["SUS631_01439","2014-11-18","07:32:00","Nona","Urban","Planned",0,15,536,0,0,false]
["SUS631_01440","2014-11-18","07:32:00","Nona","Urban","Planned",0,16,535.875,0,0,false]
["SUS631_01441","2014-11-18","08:31:00","Ebden","Urban","Planned",0,22,360,0,0,false]
["SUS631_01442","2014-11-18","08:55:00","Empire","Urban","Planned",0,30,250.00000000000003,0,0,false]
["SUS631_01443","2014-11-18","09:10:00","Belmore","Urban","Planned",0,28,355.07142857142856,0,0,false]
["SUS631_01444","2014-11-18","09:50:00","Langdon","Urban","Planned",0,34,112.94117647058823,0,0,false]
["SUS631_01445","2014-11-18","10:06:00","Laurie","Urban","Planned",0,32,234,0,0,false]
["SUS631_01446","2014-11-18","15:50:00","Black Mtn","Short Rural","Vegetation","Grow-in - Other responsible party",38,45.947368421052637,2.9461393088552921E-2,6.4119870410367168E-4,false]
["SUS631_01447","2014-11-18","16:31:46","Ijong","Urban","Other","Single Premise",1,199.79999999748543,1.6315265143267742E-3,8.1657983701066453E-6,false]
["SUS631_01448","2014-11-18","18:13:00","Black Mtn","Short Rural","Vegetation","Grow-in - Other responsible party",38,47.05263157894737,3.0170086393088554E-2,6.4119870410367168E-4,false]
["SUS631_01449","2014-11-18","19:34:00","Monash","Urban","Asset failure","HV",59,37.993220338983051,1.8304453626431055E-2,4.8178210383629209E-4,false]
["SUS631_01450","2014-11-18","21:05:09","Eardley","Urban","Other","Single Premise",1,101.21666666935198,8.26514891716222E-4,8.1657983701066453E-6,false]
["SUS631_01451","2014-11-19","07:32:00","Matthews","Short Rural","Planned",0,54,512,0,0,false]
["SUS631_01452","2014-11-19","07:38:00","Matthews","Short Rural","Planned",0,43,520.04651162790697,0,0,false]
["SUS631_01453","2014-11-19","07:51:51","Matthews","Short Rural","Other","Single Premise",1,16.366666657850146,2.7616540661869172E-4,1.6873650107991362E-5,false]
["SUS631_01454","2014-11-19","08:15:00","Empire","Urban","Other","Safety reasons",0,0,0,0,false]
["SUS631_01455","2014-11-19","08:15:28","Florey","Urban","Other","Single Premise",1,147.68333333311602,1.2059523226234752E-3,8.1657983701066453E-6,false]
["SUS631_01456","2014-11-19","08:19:00","Gurrang","Short Rural","Planned",0,1,126,0,0,false]
["SUS631_01457","2014-11-19","08:24:51","Gouger","Urban","Other","Single Premise",1,70.883333338424563,5.7881900784263328E-4,8.1657983701066453E-6,false]
["SUS631_01458","2014-11-19","08:37:18","Weir","Urban","Other","Single Premise",1,121.51666666846722,9.9228059862216215E-4,8.1657983701066453E-6,false]
["SUS631_01459","2014-11-19","08:55:00","Cooleman","Urban","Planned",0,39,128,0,0,false]
["SUS631_01460","2014-11-19","09:03:00","LM East","Short Rural","Planned",0,1,126,0,0,false]
["SUS631_01461","2014-11-19","13:15:00","Belmore","Urban","Overloads",0,7,155.14285714285714,8.8680570299358163E-3,5.7160588590746517E-5,false]
["SUS631_01462","2014-11-20","08:50:00","Miller","Urban","Planned",0,63,334,0,0,false]
["SUS631_01463","2014-11-20","09:23:23","William Slim","Short Rural","Other","Single Premise",1,102.76666666497476,1.7340487760693637E-3,1.6873650107991362E-5,false]
["SUS631_01464","2014-11-20","09:25:00","Banyule","Short Rural","Planned",0,17,159.88235294117646,0,0,false]
["SUS631_01465","2014-11-20","09:33:00","Lyons West","Urban","Planned",0,50,377.03999999999996,0,0,false]
["SUS631_01466","2014-11-20","09:52:00","Lyons West","Urban","Planned",0,89,278.02247191011236,0,0,false]
["SUS631_01467","2014-11-20","09:54:00","Chisholm","Urban","Other","Single Premise",1,16.683333335677162,1.3623273616041842E-4,8.1657983701066453E-6,false]
["SUS631_01468","2014-11-20","12:28:59","Gurrang","Short Rural","Other","Single Premise",1,218.30000000540167,3.6835178186656599E-3,1.6873650107991362E-5,false]
["SUS631_01469","2014-11-20","12:58:58","Lambrigg","Urban","Other","Single Premise",1,323.66666667046957,2.6429967391555713E-3,8.1657983701066453E-6,false]
["SUS631_01470","2014-11-20","13:09:26","Strzelecki","Urban","Other","Single Premise",1,119.58333333372138,9.7649338842842174E-4,8.1657983701066453E-6,false]
["SUS631_01471","2014-11-20","19:06:22","Binara","Urban","Other","Single Premise",1,115.33333333558403,9.4178874537067853E-4,8.1657983701066453E-6,false]
["SUS631_01472","2014-11-21","08:44:00","Mackenzie","Short Rural","Planned",0,18,292,0,0,false]
["SUS631_01473","2014-11-21","08:46:00","Mackenzie","Short Rural","Planned",0,37,292.05405405405406,0,0,false]
["SUS631_01474","2014-11-21","11:30:00","Muresk","Urban","Asset failure","HV",0,0,0,0,false]
["SUS631_01475","2014-11-21","21:55:00","Fairley","Short Rural","Third party","Other",45,91.066666666666663,6.9148218142548595E-2,7.5931425485961125E-4,false]
["SUS631_01476","2014-11-22","10:13:38","McCaughey","Short Rural","Other","Single Premise",1,11.516666666138917,1.9432820373479543E-4,1.6873650107991362E-5,false]
["SUS631_01477","2014-11-22","10:45:00","Seal","Urban","Asset failure","HV",38,71.05263157894737,2.2047655599287942E-2,3.1030033806405251E-4,false]
["SUS631_01478","2014-11-22","14:12:17","<UNKNOWN>","Urban","Other","Single Premise",1,41.383333326084539,3.3792795582372113E-4,8.1657983701066453E-6,false]
["SUS631_01479","2014-11-22","19:19:56","Curtin North","Short Rural","Other","Single Premise",1,63.466666666790843,1.0709143268559471E-3,1.6873650107991362E-5,false]
["SUS631_01480","2014-11-23","08:30:00","Wakefield","Urban","Planned",0,33,286,0,0,false]
["SUS631_01481","2014-11-23","08:42:00","Wakefield","Urban","Planned",0,1,288,0,0,false]
["SUS631_01482","2014-11-23","16:10:00","Baldwin","Urban","Asset failure","HV",1021,31.0460333006856,0.25883947673564039,8.3372801358788853E-3,false]
["SUS631_01483","2014-11-23","17:14:42","Quick","Urban","Other","Single Premise",1,72.949999995762482,5.9569499106467707E-4,8.1657983701066453E-6,false]
["SUS631_01484","2014-11-23","21:22:00","Woden","Urban","Unknown","Unknown",0,0,0,0,false]
["SUS631_01485","2014-11-23","22:25:00","Theodore","Urban","Vegetation","Grow-in - Other responsible party",30,69,1.6903202626120755E-2,2.4497395110319935E-4,false]
["SUS631_01486","2014-11-23","23:01:00","Gribble","Urban","Planned",0,1,66,0,0,false]
["SUS631_01487","2014-11-23","23:04:00","Gribble","Urban","Planned",0,1,60,0,0,false]
["SUS631_01488","2014-11-24","00:46:00","Shannon","Short Rural","Asset failure","HV",1291,0,0,0,false]
["SUS631_01489","2014-11-24","08:32:00","Latham","Urban","Planned",0,48,320,0,0,false]
["SUS631_01490","2014-11-24","11:03:00","Chan","Urban","Asset failure","HV",0,0,0,0,false]
["SUS631_01491","2014-11-24","12:51:56","Miller","Urban","Other","Single Premise",1,82.350000003352761,6.7245349580566025E-4,8.1657983701066453E-6,false]
["SUS631_01492","2014-11-24","18:05:32","Masson","Urban","Other","Single Premise",1,19.299999995855615,1.5759990850921604E-4,8.1657983701066453E-6,false]
["SUS631_01493","2014-11-24","20:00:00","Monash","Urban","Asset failure","HV",59,43.016949152542367,2.0724796263330663E-2,4.8178210383629209E-4,false]
["SUS631_01494","2014-11-24","21:00:00","Chisholm","Urban","Planned",0,1,138,0,0,false]
["SUS631_01495","2014-11-25","08:15:01","Conley","Urban","Other","Single Premise",1,81.716666658176109,6.672818234078825E-4,8.1657983701066453E-6,false]
["SUS631_01496","2014-11-25","08:36:00","Longmore","Urban","Planned",0,41,70.975609756097555,0,0,false]
["SUS631_01497","2014-11-25","08:45:00","Melba","Urban","Planned",0,10,405,0,0,false]
["SUS631_01498","2014-11-25","08:46:30","McInnes","Urban","Other","Single Premise",1,48.216666664229706,3.9372757805874233E-4,8.1657983701066453E-6,false]
["SUS631_01499","2014-11-25","08:47:00","Yarralumla","Urban","Planned",0,1,240,0,0,false]
["SUS631_01500","2014-11-25","09:00:00","Carruthers","Urban","Planned",0,30,350,0,0,false]
["SUS631_01501","2014-11-25","09:05:00","Carruthers","Urban","Planned",0,25,340.07999999999993,0,0,false]
["SUS631_01502","2014-11-25","09:20:00","Theodore","Urban","Planned",0,17,284.8235294117647,0,0,false]
["SUS631_01503","2014-11-25","09:20:00","Cameron South","Urban","Planned",0,19,202.10526315789474,0,0,false]
["SUS631_01504","2014-11-25","10:35:00","Meacham","Short Rural","Planned",0,2,24,0,0,false]
["SUS631_01505","2014-11-25","10:54:46","<UNKNOWN>","Urban","Other","Single Premise",1,168.13333333586343,1.3729428993145909E-3,8.1657983701066453E-6,false]
["SUS631_01506","2014-11-25","12:52:45","Homann","Short Rural","Other","Single Premise",1,181.66666666860692,3.0653797696511696E-3,1.6873650107991362E-5,false]
["SUS631_01507","2014-11-25","18:15:00","Latham","Urban","Other","Safety reasons",0,0,0,0,false]
["SUS631_01508","2014-11-26","07:13:33","Macrossan","Short Rural","Other","Single Premise",1,137.93333333800547,2.3274388049744441E-3,1.6873650107991362E-5,false]
["SUS631_01509","2014-11-26","08:35:00","Curtin North","Short Rural","Planned",0,20,267,0,0,false]
["SUS631_01510","2014-11-26","08:40:00","Deakin No 2","Urban","Planned",0,24,170,0,0,false]
["SUS631_01511","2014-11-26","08:40:00","Curtin North","Short Rural","Planned",0,16,265.125,0,0,false]
["SUS631_01512","2014-11-26","08:41:00","Stott","Urban","Planned",0,49,250.0408163265306,0,0,false]
["SUS631_01513","2014-11-26","08:44:00","Giles","Urban","Planned",0,30,246.99999999999997,0,0,false]
["SUS631_01514","2014-11-26","08:48:00","Empire","Urban","Planned",0,24,246.99999999999997,0,0,false]
["SUS631_01515","2014-11-26","08:56:38","Stott","Urban","Other","Single Premise",1,124.99999999883585,1.0207247962538244E-3,8.1657983701066453E-6,false]
["SUS631_01516","2014-11-26","09:12:00","Magenta","Urban","Planned",0,9,148,0,0,false]
["SUS631_01517","2014-11-26","09:16:00","Belmore","Urban","Planned",0,1,456,0,0,false]
["SUS631_01518","2014-11-26","09:16:00","Lonsdale","Urban","Planned",0,1,456,0,0,false]
["SUS631_01519","2014-11-26","09:16:00","Cooyong","Urban","Planned",0,1,456,0,0,false]
["SUS631_01520","2014-11-26","09:19:00","Conolly","Urban","Planned",0,41,296.04878048780489,0,0,false]
["SUS631_01521","2014-11-26","14:55:12","Cooleman","Urban","Other","Single Premise",1,210.21666666842066,1.7165869140502413E-3,8.1657983701066453E-6,false]
["SUS631_01522","2014-11-26","16:05:00","Monash","Urban","Asset failure","HV",0,0,0,0,false]
["SUS631_01523","2014-11-26","17:37:00","Stott","Urban","Other","Single Premise",1,144.80000000679865,1.1824076040469586E-3,8.1657983701066453E-6,false]
["SUS631_01524","2014-11-26","20:01:50","Macrossan","Short Rural","Other","Single Premise",1,49.616666666697711,8.3721427285869514E-4,1.6873650107991362E-5,false]
["SUS631_01525","2014-11-26","22:01:00","Macrossan","Short Rural","Asset failure","LV",12,11.999999999999998,2.4298056155507555E-3,2.0248380129589633E-4,false]
["SUS631_01526","2014-11-27","08:35:00","Chuculba","Urban","Planned",0,23,94.956521739130437,0,0,false]
["SUS631_01527","2014-11-27","08:35:00","Chuculba","Urban","Planned",0,18,95,0,0,false]
["SUS631_01528","2014-11-27","08:38:00","Lyons West","Urban","Planned",0,69,298,0,0,false]
["SUS631_01529","2014-11-27","08:45:00","Lampard","Short Rural","Planned",0,200,141,0,0,false]
["SUS631_01530","2014-11-27","09:10:00","Baldwin","Urban","Planned",0,30,90,0,0,false]
["SUS631_01531","2014-11-27","09:19:00","Baldwin","Urban","Planned",0,30,218,0,0,false]
["SUS631_01532","2014-11-27","09:51:00","Lexcen","Urban","Planned",0,16,94.875,0,0,false]
["SUS631_01533","2014-11-27","11:48:19","Abattoirs","Short Rural","Other","Single Premise",1,17.366666661109775,2.9303905678168492E-4,1.6873650107991362E-5,false]
["SUS631_01534","2014-11-27","12:31:00","Bowley","Short Rural","Planned",0,38,63,0,0,false]
["SUS631_01535","2014-11-27","14:04:46","Jackie Howe","Short Rural","Other","Single Premise",1,7.2000000067055225,1.2149028089068444E-4,1.6873650107991362E-5,false]
["SUS631_01536","2014-11-27","15:59:32","Eaglemont","Urban","Other","Single Premise",1,122.71666666609235,1.0020795566468973E-3,8.1657983701066453E-6,false]
["SUS631_01537","2014-11-27","16:58:57","Miller","Urban","Other","Single Premise",1,57.583333330694586,4.7021388945709351E-4,8.1657983701066453E-6,false]
["SUS631_01538","2014-11-27","17:26:52","Lander","Urban","Other","Single Premise",1,214.16666666977108,1.7488418176231897E-3,8.1657983701066453E-6,false]
["SUS631_01539","2014-11-28","00:43:00","Hawkesbury","Short Rural","Unknown","Unknown",1576,0,0,0,false]
["SUS631_01540","2014-11-28","07:02:00","Rowland","Short Rural","Planned",0,1,120,0,0,false]
["SUS631_01541","2014-11-28","08:35:00","Brookman","Urban","Planned",0,53,163.01886792452828,0,0,false]
["SUS631_01542","2014-11-28","08:35:00","Carruthers","Urban","Planned",0,23,123.1304347826087,0,0,false]
["SUS631_01543","2014-11-28","08:37:00","Bowley","Short Rural","Planned",0,64,147,0,0,false]
["SUS631_01544","2014-11-28","08:40:00","Mackenzie","Short Rural","Planned",0,38,324.94736842105266,0,0,false]
["SUS631_01545","2014-11-28","08:48:00","Pridham","Urban","Animal","Other",1580,0,0,0,false]
["SUS631_01546","2014-11-28","08:50:00","Devonport","Urban","Planned",0,32,293.0625,0,0,false]
["SUS631_01547","2014-11-28","08:55:40","Cowper","Urban","Other","Single Premise",1,163.48333332804032,1.3349719368297131E-3,8.1657983701066453E-6,false]
["SUS631_01548","2014-11-28","09:02:00","Nona","Urban","Planned",0,1,144,0,0,false]
["SUS631_01549","2014-11-28","09:25:00","Pialligo","Urban","Planned",0,19,220.10526315789474,0,0,false]
["SUS631_01550","2014-11-28","09:30:00","Wolseley","Urban","Planned",0,20,72,0,0,false]
["SUS631_01551","2014-11-28","09:31:00","Brookman","Urban","Planned",0,24,69.000000000000014,0,0,false]
["SUS631_01552","2014-11-28","09:54:00","Chisholm","Urban","Planned",0,28,109.92857142857143,0,0,false]
["SUS631_01553","2014-11-28","11:52:20","Lyons West","Urban","Other","Single Premise",1,69.583333338377997,5.6820346996111449E-4,8.1657983701066453E-6,false]
["SUS631_01554","2014-11-29","07:00:00","Chan","Urban","Planned",0,1,498.00000000000006,0,0,false]
["SUS631_01555","2014-11-29","08:14:00","Wolseley","Urban","Third party","Other",0,0,0,0,false]
["SUS631_01556","2014-11-29","08:33:00","Monaro","Urban","Planned",0,1,222,0,0,false]
["SUS631_01557","2014-11-29","13:21:00","Black Mtn","Short Rural","Asset failure","HV",55,72,6.6819654427645786E-2,9.2805075593952488E-4,false]
["SUS631_01558","2014-11-29","13:40:34","Belconnen Way South","Urban","Other","Single Premise",1,83.200000002980232,6.7939442441720889E-4,8.1657983701066453E-6,false]
["SUS631_01559","2014-11-29","13:51:21","Dryandra","Urban","Other","Single Premise",1,52.966666663996875,4.3251512031484767E-4,8.1657983701066453E-6,false]
["SUS631_01560","2014-11-29","20:27:20","Reid","Short Rural","Other","Single Premise",1,111.94999999715947,1.8890051295417027E-3,1.6873650107991362E-5,false]
["SUS631_01561","2014-11-30","08:06:00","Melba","Urban","Planned",0,3,404,0,0,false]
["SUS631_01562","2014-11-30","08:35:00","Whyalla","Urban","Planned",0,39,486.92307692307691,0,0,false]
["SUS631_01563","2014-11-30","10:38:58","Seal","Urban","Other","Single Premise",1,50.233333330834284,4.1019527143795043E-4,8.1657983701066453E-6,false]
["SUS631_01564","2014-11-30","16:23:16","Reid","Short Rural","Other","Single Premise",1,44.766666664509103,7.5537706979800722E-4,1.6873650107991362E-5,false]
["SUS631_01565","2014-12-01","08:28:00","Stott","Urban","Planned",0,16,267,0,0,false]
["SUS631_01566","2014-12-01","08:31:32","Strzelecki","Urban","Other","Single Premise",1,95.68333333125338,7.8133080736271965E-4,8.1657983701066453E-6,false]
["SUS631_01567","2014-12-01","08:56:00","Devonport","Urban","Planned",0,24,334,0,0,false]
["SUS631_01568","2014-12-01","08:57:00","West Street","Urban","Planned",0,32,108.9375,0,0,false]
["SUS631_01569","2014-12-01","09:00:00","Devonport","Urban","Planned",0,28,334.07142857142856,0,0,false]
["SUS631_01570","2014-12-01","09:01:00","Monash","Urban","Unknown","Unknown",59,33.966101694915253,1.6364259933693719E-2,4.8178210383629209E-4,false]
["SUS631_01571","2014-12-01","09:07:52","Monash","Urban","Other","Single Premise",1,173.05000000982545,1.4130914080271876E-3,8.1657983701066453E-6,false]
["SUS631_01572","2014-12-01","09:57:00","Lyons West","Urban","Planned",0,105,82.971428571428561,0,0,false]
["SUS631_01573","2014-12-01","10:07:00","Ferdinand","Short Rural","Planned",0,16,58.875,0,0,false]
["SUS631_01574","2014-12-01","15:11:11","Curtin North","Short Rural","Other","Single Premise",1,185.5166666675359,3.1303433225488646E-3,1.6873650107991362E-5,false]
["SUS631_01575","2014-12-02","00:19:23","<UNKNOWN>","Urban","Other","Single Premise",1,23.866666661342606,1.9489038772307007E-4,8.1657983701066453E-6,false]
["SUS631_01576","2014-12-02","03:37:58","Meacham","Short Rural","Other","Single Premise",1,87.683333336608484,1.4795378870243062E-3,1.6873650107991362E-5,false]
["SUS631_01577","2014-12-02","03:41:00","Mackenzie","Short Rural","Unknown","Unknown",1821,0,0,0,false]
["SUS631_01578","2014-12-02","04:42:54","Meacham","Short Rural","Other","Single Premise",1,68.183333335909992,1.1505017099066885E-3,1.6873650107991362E-5,false]
["SUS631_01579","2014-12-02","06:31:00","Meacham","Short Rural","Weather",0,35,44.914285714285711,2.6525377969762419E-2,5.9057775377969763E-4,false]
["SUS631_01580","2014-12-02","08:08:00","Deakin No 1","Urban","Planned",0,38,246.94736842105263,0,0,false]
["SUS631_01581","2014-12-02","08:35:00","Nicholson","Urban","Planned",0,39,176,0,0,false]
["SUS631_01582","2014-12-02","08:55:00","Lyons West","Urban","Planned",0,54,495,0,0,false]
["SUS631_01583","2014-12-02","09:00:00","Ferguson","Urban","Planned",0,74,261,0,0,false]
["SUS631_01584","2014-12-02","09:05:00","Bunbury","Short Rural","Planned",0,19,238.10526315789477,0,0,false]
["SUS631_01585","2014-12-02","09:07:24","Belconnen Way South","Urban","Other","Single Premise",1,171.63333333679475,1.401523193617569E-3,8.1657983701066453E-6,false]
["SUS631_01586","2014-12-02","09:15:00","Cotter 11kV","Short Rural","Planned",0,133,323.00751879699249,0,0,false]
["SUS631_01587","2014-12-02","09:32:00","Black Mtn","Short Rural","Planned",0,33,98.909090909090907,0,0,false]
["SUS631_01588","2014-12-02","09:40:00","Belconnen Way South","Urban","Planned",0,38,89.05263157894737,0,0,false]
["SUS631_01589","2014-12-02","09:43:10","Stott","Urban","Other","Single Premise",1,33.499999993946403,2.7355424534914016E-4,8.1657983701066453E-6,false]
["SUS631_01590","2014-12-02","16:06:00","Giles","Urban","Vegetation","Grow-in - Other responsible party",27,28.888888888888886,6.3693227286831825E-3,2.2047655599287942E-4,false]
["SUS631_01591","2014-12-02","17:24:00","Stott","Urban","Asset failure","LV",27,32,7.0552497917721413E-3,2.2047655599287942E-4,false]
["SUS631_01592","2014-12-02","19:15:25","Bunbury","Short Rural","Other","Single Premise",1,43.283333340659738,7.3034782229784928E-4,1.6873650107991362E-5,false]
["SUS631_01593","2014-12-02","22:05:35","Emu Bank","Urban","Other","Single Premise",1,60.899999997345731,4.9729712071782046E-4,8.1657983701066453E-6,false]
["SUS631_01594","2014-12-03","07:03:00","Tralee","Urban","Planned",0,1,114,0,0,false]
["SUS631_01595","2014-12-03","08:00:00","Cunningham","Urban","Planned",0,51,244.35294117647058,0,0,false]
["SUS631_01596","2014-12-03","08:32:00","Homann","Short Rural","Planned",0,24,270,0,0,false]
["SUS631_01597","2014-12-03","08:32:00","Wilson","Urban","Planned",0,16,315,0,0,false]
["SUS631_01598","2014-12-03","08:33:00","Copland","Urban","Planned",0,31,319.9354838709678,0,0,false]
["SUS631_01599","2014-12-03","08:35:00","Curtin North","Short Rural","Planned",0,18,228.00000000000003,0,0,false]
["SUS631_01600","2014-12-03","08:38:00","Theodore","Urban","Planned",0,19,313.89473684210532,0,0,false]
["SUS631_01601","2014-12-03","08:55:00","Giles","Urban","Planned",0,13,131.07692307692307,0,0,false]
["SUS631_01602","2014-12-03","09:05:00","Meacham","Short Rural","Planned",0,21,243.14285714285714,0,0,false]
["SUS631_01603","2014-12-03","09:10:00","Meacham","Short Rural","Planned",0,17,235.05882352941177,0,0,false]
["SUS631_01604","2014-12-03","09:10:00","Curtin North","Short Rural","Planned",0,4,324,0,0,false]
["SUS631_01605","2014-12-03","09:19:35","Chisholm","Urban","Other","Single Premise",1,316.11666666576639,2.5813449614228608E-3,8.1657983701066453E-6,false]
["SUS631_01606","2014-12-03","09:27:00","Weir","Urban","Vegetation","Blow-in/Fall-in - NSP responsibility",26,33,7.0062550015515014E-3,2.1231075762277279E-4,false]
["SUS631_01607","2014-12-03","09:40:00","Florey","Urban","Planned",0,23,80.08695652173914,0,0,false]
["SUS631_01608","2014-12-03","09:53:00","Weston East","Short Rural","Network business","Switching and protection error",32,15.9375,8.6055615550755943E-3,5.3995680345572358E-4,false]
["SUS631_01609","2014-12-03","12:38:00","Strzelecki","Urban","Planned",0,37,82.054054054054049,0,0,false]
["SUS631_01610","2014-12-03","14:04:29","Northbourne","Urban","Other","Single Premise",1,33.116666665300727,2.7042402267887778E-4,8.1657983701066453E-6,false]
["SUS631_01611","2014-12-03","14:23:00","McGuiness","Urban","Vegetation","Blow-in/Fall-in - NSP responsibility",30,37,9.064036190818376E-3,2.4497395110319935E-4,false]
["SUS631_01612","2014-12-03","14:28:00","Melba","Urban","Weather",0,794,0,0,0,false]
["SUS631_01613","2014-12-03","14:35:01","Duffy","Urban","Other","Single Premise",1,74.416666670003906,6.0767149540268746E-4,8.1657983701066453E-6,false]
["SUS631_01614","2014-12-03","15:10:00","William Slim","Short Rural","Vegetation","Blow-in/Fall-in - NSP responsibility",13,23.076923076923077,5.0620950323974085E-3,2.1935745140388768E-4,false]
["SUS631_01615","2014-12-03","15:20:29","Lonsdale","Urban","Other","Single Premise",1,72.633333328412846,5.9310915490856631E-4,8.1657983701066453E-6,false]
["SUS631_01616","2014-12-03","16:26:20","Melba","Urban","Other","Single Premise",1,105.3499999945052,8.6026685824586559E-4,8.1657983701066453E-6,false]
["SUS631_01617","2014-12-03","16:39:01","Callister","Short Rural","Other","Single Premise",1,222.34999999869615,3.7518561014898782E-3,1.6873650107991362E-5,false]
["SUS631_01618","2014-12-03","16:42:00","Hilder","Short Rural","Weather",0,43,47.999999999999993,3.4827213822894158E-2,7.2556695464362855E-4,false]
["SUS631_01619","2014-12-04","05:55:00","Yarralumla","Urban","Planned",0,1,54,0,0,false]
["SUS631_01620","2014-12-04","07:44:00","Cotter 11kV","Short Rural","Planned",0,1,420,0,0,false]
["SUS631_01621","2014-12-04","08:34:00","Chuculba","Urban","Planned",0,20,210,0,0,false]
["SUS631_01622","2014-12-04","08:38:00","Meacham","Short Rural","Planned",0,33,268.90909090909093,0,0,false]
["SUS631_01623","2014-12-04","08:41:00","Copland","Urban","Planned",0,30,270,0,0,false]
["SUS631_01624","2014-12-04","08:44:00","Chuculba","Urban","Planned",0,11,194.18181818181819,0,0,false]
["SUS631_01625","2014-12-04","09:08:00","Pridham","Urban","Planned",0,23,116.8695652173913,0,0,false]
["SUS631_01626","2014-12-04","09:15:00","Miller","Urban","Planned",0,1,234,0,0,false]
["SUS631_01627","2014-12-04","09:31:00","Belconnen Way North","Urban","Planned",0,59,105.05084745762713,0,0,false]
["SUS631_01628","2014-12-04","09:31:00","Lampard","Short Rural","Planned",0,1,258,0,0,false]
["SUS631_01629","2014-12-04","11:03:49","Conley","Urban","Other","Single Premise",1,34.366666664136574,2.8063127063200481E-4,8.1657983701066453E-6,false]
["SUS631_01630","2014-12-04","19:07:00","McCaughey","Short Rural","Weather",0,629,81.661049284578709,0.8667116630669548,1.0613525917926565E-2,false]
["SUS631_01631","2014-12-04","20:54:57","Cotter 11kV","Short Rural","Other","Single Premise",1,173.93333332962357,2.9348902087206999E-3,1.6873650107991362E-5,false]
["SUS631_01632","2014-12-04","21:16:02","Sturt","Urban","Other","Single Premise",1,77.066666671307757,6.2931086109411702E-4,8.1657983701066453E-6,false]
["SUS631_01633","2014-12-04","21:17:00","Fairbairn","Urban","Asset failure","HV",1,120,9.7989580441279738E-4,8.1657983701066453E-6,false]
["SUS631_01634","2014-12-04","21:17:05","<UNKNOWN>","Urban","Other","Single Premise",1,137.33333333395422,1.121436309499716E-3,8.1657983701066453E-6,false]
["SUS631_01635","2014-12-04","22:30:00","McCaughey","Short Rural","Weather",0,81,22,3.0068844492440606E-2,1.3667656587473002E-3,false]
["SUS631_01636","2014-12-04","23:23:00","nicholson","Urban","Asset failure","HV",359,13.988857938718663,4.1008639414675571E-2,2.9315216148682855E-3,false]
["SUS631_01637","2014-12-05","07:22:28","Duffy","Urban","Other","Single Premise",1,57.516666669398546,4.6966950294294188E-4,8.1657983701066453E-6,false]
["SUS631_01638","2014-12-05","08:08:38","Langdon","Urban","Other","Single Premise",1,261.48333333316259,2.1352201771419918E-3,8.1657983701066453E-6,false]
["SUS631_01639","2014-12-05","08:40:00","Alderson","Short Rural","Planned",0,2,42,0,0,false]
["SUS631_01640","2014-12-05","08:41:00","Giles","Urban","Planned",0,30,258,0,0,false]
["SUS631_01641","2014-12-05","08:45:00","Empire","Urban","Planned",0,29,254.06896551724139,0,0,false]
["SUS631_01642","2014-12-05","08:48:00","Shannon","Short Rural","Planned",0,13,189.23076923076923,0,0,false]
["SUS631_01643","2014-12-05","09:20:00","Belmore","Urban","Planned",0,6,188,0,0,false]
["SUS631_01644","2014-12-05","09:46:03","Curtin North","Short Rural","Other","Single Premise",1,168.31666665966623,2.8401165405586228E-3,1.6873650107991362E-5,false]
["SUS631_01645","2014-12-05","09:47:03","Yarralumla","Urban","Other","Single Premise",1,322.5666666647885,2.6340143609020635E-3,8.1657983701066453E-6,false]
["SUS631_01646","2014-12-05","13:42:00","Yarralumla","Urban","Asset failure","LV",22,64.909090909090907,1.1660760072512289E-2,1.7964756414234621E-4,false]
["SUS631_01647","2014-12-05","16:16:14","McCaughey","Short Rural","Other","Single Premise",1,38.666666663484648,6.5244780412197366E-4,1.6873650107991362E-5,false]
["SUS631_01648","2014-12-06","11:03:57","Homann","Short Rural","Other","Single Premise",1,119.03333333088085,2.0085268178131892E-3,1.6873650107991362E-5,false]
["SUS631_01649","2014-12-06","11:04:00","Weir","Urban","Weather",0,1237,0,0,0,false]
["SUS631_01650","2014-12-06","11:22:00","Tidbinbilla 22kV","Short Rural","Weather",0,12,0,0,0,false]
["SUS631_01651","2014-12-06","11:28:00","Folingsby","Urban","Asset failure","HV",2408,64.706810631229231,1.2723457072397968,1.9663242475216801E-2,false]
["SUS631_01652","2014-12-06","11:29:00","Dairy North","Short Rural","Weather",0,44,0,0,0,false]
["SUS631_01653","2014-12-06","11:33:00","Mackenzie","Short Rural","Weather",0,12,0,0,0,false]
["SUS631_01654","2014-12-06","11:51:00","Deakin No 1","Urban","Weather",0,935,0,0,0,false]
["SUS631_01655","2014-12-06","12:38:58","Rossman","Urban","Other","Single Premise",1,141.03333332925104,1.1516497634307054E-3,8.1657983701066453E-6,false]
["SUS631_01656","2014-12-06","12:55:00","Rossman","Urban","Weather",0,2,60,9.7989580441279738E-4,1.6331596740213291E-5,false]
["SUS631_01657","2014-12-06","13:00:00","Streeton","Short Rural","Weather",0,74,5.0270270270270272,6.2769978401727858E-3,1.2486501079913607E-3,false]
["SUS631_01658","2014-12-06","15:20:44","Daplyn","Urban","Other","Single Premise",1,60.866666666697711,4.970249274607447E-4,8.1657983701066453E-6,false]
["SUS631_01659","2014-12-06","15:30:00","Electricity House","Urban","Weather",0,1,60,4.8994790220639869E-4,8.1657983701066453E-6,false]
["SUS631_01660","2014-12-06","15:30:00","Ebden","Urban","Weather",0,1747,0,0,0,false]
["SUS631_01661","2014-12-06","19:45:10","Empire","Urban","Other","Single Premise",1,186.43333332845941,1.5223770094270827E-3,8.1657983701066453E-6,false]
["SUS631_01662","2014-12-06","20:57:01","Conley","Urban","Other","Single Premise",1,66.216666660038754,5.4071194868643955E-4,8.1657983701066453E-6,false]
["SUS631_01663","2014-12-07","09:19:43","<UNKNOWN>","Urban","Other","Single Premise",1,71.716666667489335,5.8562383978286604E-4,8.1657983701066453E-6,false]
["SUS631_01664","2014-12-07","17:58:12","Wilson","Urban","Other","Single Premise",1,82.433333335211501,6.7313397899112788E-4,8.1657983701066453E-6,false]
["SUS631_01665","2014-12-07","19:58:09","Homann","Short Rural","Other","Single Premise",1,170.28333333553746,2.8733013859263204E-3,1.6873650107991362E-5,false]
["SUS631_01666","2014-12-08","06:45:00","Ovens","Urban","Asset failure","LV",10,270,2.2047655599287942E-2,8.1657983701066453E-5,false]
["SUS631_01667","2014-12-08","08:24:18","Ferguson","Urban","Other","Single Premise",1,70.299999994458631,5.7405562537324751E-4,8.1657983701066453E-6,false]
["SUS631_01668","2014-12-08","08:51:44","Devonport","Urban","Other","Single Premise",1,74.8833333409857,6.1148220134397361E-4,8.1657983701066453E-6,false]
["SUS631_01669","2014-12-08","09:00:00","Theodore","Urban","Planned",0,1,90,0,0,false]
["SUS631_01670","2014-12-08","09:12:00","Folingsby","Urban","Planned",0,43,121.95348837209303,0,0,false]
["SUS631_01671","2014-12-08","09:15:24","Yarralumla","Urban","Other","Single Premise",1,89.93333333870396,7.3437746679544641E-4,8.1657983701066453E-6,false]
["SUS631_01672","2014-12-08","09:50:15","Lyons West","Urban","Other","Single Premise",1,149.96666666585952,1.2245975622304022E-3,8.1657983701066453E-6,false]
["SUS631_01673","2014-12-08","11:11:49","Emu Bank","Urban","Other","Single Premise",1,121.09999999869615,9.8887818260926766E-4,8.1657983701066453E-6,false]
["SUS631_01674","2014-12-08","12:17:26","Chuculba","Urban","Other","Single Premise",1,17.916666663950309,1.4630388744222951E-4,8.1657983701066453E-6,false]
["SUS631_01675","2014-12-08","12:39:00","Yarralumla","Urban","Vegetation","Grow-in - Other responsible party",5,636,2.5967238816939131E-2,4.0828991850533227E-5,false]
["SUS631_01676","2014-12-08","12:40:53","Latham","Urban","Other","Single Premise",1,5.366666663903743,4.3823117897010849E-5,8.1657983701066453E-6,false]
["SUS631_01677","2014-12-08","13:18:00","Curtin North","Short Rural","Planned",0,20,62.099999999999994,0,0,false]
["SUS631_01678","2014-12-08","14:00:00","Ovens","Urban","Asset failure","LV",5,18,7.3492185330959804E-4,4.0828991850533227E-5,false]
["SUS631_01679","2014-12-08","14:02:00","Mannheim","Short Rural","Vegetation","Grow-in - Other responsible party",10,72,1.214902807775378E-2,1.687365010799136E-4,false]
["SUS631_01680","2014-12-08","15:52:00","Melba","Urban","Unknown","Unknown",1,24,1.9597916088255949E-4,8.1657983701066453E-6,false]
["SUS631_01681","2014-12-08","15:52:31","<UNKNOWN>","Urban","Other","Single Premise",1,46.450000003678724,3.7930133432149341E-4,8.1657983701066453E-6,false]
["SUS631_01682","2014-12-08","16:19:36","Cowper","Urban","Other","Single Premise",1,121.06666666804813,9.8860598935219201E-4,8.1657983701066453E-6,false]
["SUS631_01683","2014-12-08","18:30:00","Weir","Urban","Vegetation","Blow-in/Fall-in - NSP responsibility",37,70.054054054054063,2.1165749375316428E-2,3.0213453969394586E-4,false]
["SUS631_01684","2014-12-08","19:45:00","Chuculba","Urban","Vegetation","Grow-in - Other responsible party",20,126.89999999999999,2.0724796263330666E-2,1.6331596740213291E-4,false]
["SUS631_01685","2014-12-09","08:35:00","Lyons West","Urban","Planned",0,56,246.96428571428572,0,0,false]
["SUS631_01686","2014-12-09","08:39:00","Devonport","Urban","Planned",0,8,246.75,0,0,false]
["SUS631_01687","2014-12-09","09:22:00","Carruthers","Urban","Planned",0,26,68.07692307692308,0,0,false]
["SUS631_01688","2014-12-09","09:46:00","Longmore","Urban","Planned",0,42,160,0,0,false]
["SUS631_01689","2014-12-09","12:01:00","Weston East","Short Rural","Planned",0,17,34.941176470588239,0,0,false]
["SUS631_01690","2014-12-09","12:29:49","Ashley","Short Rural","Other","Single Premise",1,197.81666666152887,3.3378892187757975E-3,1.6873650107991362E-5,false]
["SUS631_01691","2014-12-10","06:10:00","Phillip South","Urban","Planned",0,1,54,0,0,false]
["SUS631_01692","2014-12-10","08:35:00","Bunbury","Short Rural","Planned",0,17,206.82352941176472,0,0,false]
["SUS631_01693","2014-12-10","08:37:00","Ijong","Urban","Planned",0,39,319.07692307692304,0,0,false]
["SUS631_01694","2014-12-10","08:39:00","Mackenzie","Short Rural","Planned",0,35,391.02857142857141,0,0,false]
["SUS631_01695","2014-12-10","08:50:00","Throsby","Urban","Planned",0,28,190.07142857142858,0,0,false]
["SUS631_01696","2014-12-10","08:56:00","ANU Central","Urban","Vegetation","Grow-in - Other responsible party",0,0,0,0,false]
["SUS631_01697","2014-12-10","09:12:45","<UNKNOWN>","Urban","Other","Single Premise",1,9.0333333285525441,7.3764378570924399E-5,8.1657983701066453E-6,false]
["SUS631_01698","2014-12-10","09:13:00","Cotter 11kV","Short Rural","Planned",0,4,154.5,0,0,false]
["SUS631_01699","2014-12-10","09:17:00","Lhotsky","Short Rural","Planned",0,28,148.07142857142856,0,0,false]
["SUS631_01700","2014-12-10","10:08:48","<UNKNOWN>","Urban","Other","Single Premise",1,336.83333333465271,2.7505130843416955E-3,8.1657983701066453E-6,false]
["SUS631_01701","2014-12-10","10:20:00","Lyons West","Urban","Planned",0,1,222,0,0,false]
["SUS631_01702","2014-12-10","16:28:00","Marconi","Urban","Asset failure","HV",985,0,0,0,false]
["SUS631_01703","2014-12-10","16:28:00","Marconi","Urban","Asset failure","HV",38,93,2.8857931439956883E-2,3.1030033806405251E-4,false]
["SUS631_01704","2014-12-10","17:00:00","Miller","Urban","Asset failure","LV",53,95.999999999999986,4.1547582107102604E-2,4.3278731361565218E-4,false]
["SUS631_01705","2014-12-10","20:05:00","Hawker","Urban","Vegetation","Blow-in/Fall-in - NSP responsibility",24,47.999999999999993,9.4069997223628528E-3,1.9597916088255949E-4,false]
["SUS631_01706","2014-12-10","20:45:35","Cameron South","Urban","Other","Single Premise",1,11.216666658874601,9.159303832106777E-5,8.1657983701066453E-6,false]
["SUS631_01707","2014-12-10","21:47:00","Power House","Urban","Asset failure","LV",5,104.39999999999999,4.2625467491956689E-3,4.0828991850533227E-5,false]
["SUS631_01708","2014-12-11","05:32:00","Battye","Urban","Planned",0,1,24,0,0,false]
["SUS631_01709","2014-12-11","08:35:00","Longmore","Urban","Planned",0,28,283.07142857142856,0,0,false]
["SUS631_01710","2014-12-11","08:39:00","Hawker","Urban","Planned",0,24,80,0,0,false]
["SUS631_01711","2014-12-11","08:45:00","Cotter 11kV","Short Rural","Planned",0,15,189.2,0,0,false]
["SUS631_01712","2014-12-11","09:00:00","Nona","Urban","Planned",0,4,271.5,0,0,false]
["SUS631_01713","2014-12-11","09:30:00","Birrigai","Short Rural","Planned",0,22,61.909090909090907,0,0,false]
["SUS631_01714","2014-12-11","09:34:00","Folingsby","Urban","Planned",0,46,115.04347826086956,0,0,false]
["SUS631_01715","2014-12-11","13:23:20","Latham","Urban","Other","Single Premise",1,61.93333333125338,5.0573511237162047E-4,8.1657983701066453E-6,false]
["SUS631_01716","2014-12-11","18:51:01","Fielder","Urban","Other","Single Premise",1,31.216666661202908,2.5490900574221318E-4,8.1657983701066453E-6,false]
["SUS631_01717","2014-12-12","05:38:37","Empire","Urban","Other","Single Premise",1,247.56666667177342,2.0215794832011027E-3,8.1657983701066453E-6,false]
["SUS631_01718","2014-12-12","08:31:00","Baldwin","Urban","Planned",0,56,240,0,0,false]
["SUS631_01719","2014-12-12","08:39:00","Meacham","Short Rural","Planned",0,30,248.00000000000003,0,0,false]
["SUS631_01720","2014-12-12","08:42:00","Laurie","Urban","Planned",0,40,249.00000000000003,0,0,false]
["SUS631_01721","2014-12-12","08:45:00","Laurie","Urban","Planned",0,50,251.04000000000002,0,0,false]
["SUS631_01722","2014-12-12","08:50:00","Lampard","Short Rural","Planned",0,18,100,0,0,false]
["SUS631_01723","2014-12-12","09:05:00","Bunbury","Short Rural","Planned",0,40,211.04999999999998,0,0,false]
["SUS631_01724","2014-12-12","09:54:00","Hawker","Urban","Planned",0,24,130,0,0,false]
["SUS631_01725","2014-12-12","12:05:00","Deakin No 1","Urban","Unknown","Unknown",23,36,6.7612810504483027E-3,1.8781336251245284E-4,false]
["SUS631_01726","2014-12-12","12:24:29","Latham","Urban","Other","Single Premise",1,60.683333332417533,4.9552786441849333E-4,8.1657983701066453E-6,false]
["SUS631_01727","2014-12-12","18:46:00","Binara","Urban","Third party","Other",1,42,3.4296353154447912E-4,8.1657983701066453E-6,false]
["SUS631_01728","2014-12-12","22:16:15","Electricity House","Urban","Other","Single Premise",1,28.266666663112119,2.3081990056598878E-4,8.1657983701066453E-6,false]
["SUS631_01729","2014-12-13","16:40:41","Pridham","Urban","Other","Single Premise",1,50.233333330834284,4.1019527143795043E-4,8.1657983701066453E-6,false]
["SUS631_01730","2014-12-14","08:00:00","Hobart Long","Urban","Planned",0,1,144,0,0,false]
["SUS631_01731","2014-12-14","11:39:45","Wakefield","Urban","Other","Single Premise",1,106.11666666227393,8.665273036719466E-4,8.1657983701066453E-6,false]
["SUS631_01732","2014-12-14","15:57:00","Matthews","Short Rural","Weather",0,13,0.92307692307692313,0,0,false]
["SUS631_01733","2014-12-14","16:16:48","Matthews","Short Rural","Other","Single Premise",1,84.516666663112119,1.4261046615670916E-3,1.6873650107991362E-5,false]
["SUS631_01734","2014-12-14","17:27:00","Ebden","Urban","Vegetation","Blow-in/Fall-in - NSP responsibility",23,61.043478260869563,1.1464780911629731E-2,1.8781336251245284E-4,false]
["SUS631_01735","2014-12-14","20:35:00","Jardine","Urban","Planned",0,1,42,0,0,false]
["SUS631_01736","2014-12-14","21:59:00","Throsby","Urban","Unknown","Unknown",1205,0,0,0,false]
["SUS631_01737","2014-12-15","01:56:00","Homann","Short Rural","Unknown","Unknown",65,68.030769230769238,7.461528077753779E-2,1.0967872570194384E-3,false]
["SUS631_01738","2014-12-15","08:41:52","Gurrang","Short Rural","Other","Single Premise",1,196.7333333264105,3.3196094311286868E-3,1.6873650107991362E-5,false]
["SUS631_01739","2014-12-15","08:45:00","Bowley","Short Rural","Planned",0,27,219.11111111111109,0,0,false]
["SUS631_01740","2014-12-15","09:05:00","Bean","Short Rural","Planned",0,25,273.12,0,0,false]
["SUS631_01741","2014-12-15","09:40:00","Copland","Urban","Planned",0,7,448.28571428571422,0,0,false]
["SUS631_01742","2014-12-15","10:10:00","Bean","Short Rural","Planned",0,6,406,0,0,false]
["SUS631_01743","2014-12-15","16:36:07","Paterick","Urban","Other","Single Premise",1,152.38333333167247,1.2443315749511887E-3,8.1657983701066453E-6,false]
["SUS631_01744","2014-12-15","18:49:30","Daplyn","Urban","Other","Single Premise",1,201.91666666651145,1.648810787562766E-3,8.1657983701066453E-6,false]
["SUS631_01745","2014-12-15","19:26:51","Cunningham","Urban","Other","Single Premise",1,72.016666674753651,5.8807357935321692E-4,8.1657983701066453E-6,false]
["SUS631_01746","2014-12-16","07:47:30","Cooleman","Urban","Other","Single Premise",1,67.416666657663882,5.5051090671117471E-4,8.1657983701066453E-6,false]
["SUS631_01747","2014-12-16","08:35:00","Bissenberger","Short Rural","Planned",0,33,236,0,0,false]
["SUS631_01748","2014-12-16","09:13:00","Fielder","Urban","Weather",0,1358,65.999999999999986,0.73188417631591829,1.1089154186604824E-2,false]
["SUS631_01749","2014-12-16","09:16:00","Gungahlin","Urban","Weather",0,129,36.000000000000007,3.7921967630775266E-2,1.0533879897437573E-3,false]
["SUS631_01750","2014-12-16","09:31:00","Daplyn","Urban","Planned",0,30,294,0,0,false]
["SUS631_01751","2014-12-16","09:56:00","Fielder","Urban","Weather",0,1,18,1.4698437066191963E-4,8.1657983701066453E-6,false]
["SUS631_01752","2014-12-16","10:45:00","Northbourne","Urban","Planned",0,6,655,0,0,false]
["SUS631_01753","2014-12-16","11:02:35","Gouger","Urban","Other","Single Premise",1,116.4000000001397,9.504989302815543E-4,8.1657983701066453E-6,false]
["SUS631_01754","2014-12-16","12:15:04","Cessnock","Urban","Other","Single Premise",1,92.483333327108994,7.5520025254453621E-4,8.1657983701066453E-6,false]
["SUS631_01755","2014-12-16","12:15:33","Gungahlin","Urban","Other","Single Premise",1,6.9166666700039059,5.6480105420488855E-5,8.1657983701066453E-6,false]
["SUS631_01756","2014-12-16","14:04:00","Black Mtn","Short Rural","Weather",0,697,70.002869440459108,0.82329913606911442,1.1760934125269979E-2,false]
["SUS631_01757","2014-12-16","14:30:00","Belconnen Way South","Urban","Other","Single Premise",1,58.883333341218531,4.8082942742416854E-4,8.1657983701066453E-6,false]
["SUS631_01758","2014-12-16","15:22:00","Bowley","Short Rural","Weather",0,30,75,3.7965712742980565E-2,5.0620950323974087E-4,false]
["SUS631_01759","2014-12-16","15:28:32","Black Mtn","Short Rural","Other","Single Premise",1,32.800000008428469,5.5345572368433566E-4,1.6873650107991362E-5,false]
["SUS631_01760","2014-12-16","15:43:00","Hilder","Short Rural","Weather",0,19,90.94736842105263,2.9157667386609073E-2,3.2059935205183584E-4,false]
["SUS631_01761","2014-12-16","16:05:00","Hilder","Short Rural","Weather",0,32,86.0625,4.6470032397408205E-2,5.3995680345572358E-4,false]
["SUS631_01762","2014-12-16","16:08:00","Folingsby","Urban","Weather",0,2066,0,0,0,false]
["SUS631_01763","2014-12-16","17:14:48","Fielder","Urban","Other","Single Premise",1,43.233333339449018,3.530346829175501E-4,8.1657983701066453E-6,false]
["SUS631_01764","2014-12-16","17:52:00","Fairbairn","Urban","Asset failure","HV",23,0,0,0,false]
["SUS631_01765","2014-12-16","18:17:39","<UNKNOWN>","Urban","Other","Single Premise",1,71.333333338843659,5.8249361711260354E-4,8.1657983701066453E-6,false]
["SUS631_01766","2014-12-16","19:06:00","Conolly","Urban","Weather",0,11,74.181818181818187,6.6632914700070229E-3,8.9823782071173105E-5,false]
["SUS631_01767","2014-12-16","19:08:00","William Slim","Short Rural","Weather",0,13,33.230769230769234,7.2894168466522691E-3,2.1935745140388768E-4,false]
["SUS631_01768","2014-12-16","19:09:00","Conolly","Urban","Weather",0,12,68,6.6632914700070229E-3,9.7989580441279744E-5,false]
["SUS631_01769","2014-12-16","19:15:00","Fairbairn","Urban","Asset failure","HV",1,66,5.389426924270386E-4,8.1657983701066453E-6,false]
["SUS631_01770","2014-12-16","19:17:00","Latham","Urban","Vegetation","Blow-in/Fall-in - NSP responsibility",46,42.000000000000007,1.577632245104604E-2,3.7562672502490567E-4,false]
["SUS631_01771","2014-12-17","07:19:51","Reid","Short Rural","Other","Single Premise",1,102.76666667545214,1.7340487762461552E-3,1.6873650107991362E-5,false]
["SUS631_01772","2014-12-17","08:05:51","Fielder","Urban","Other","Single Premise",1,132.79999999911524,1.0844180235429378E-3,8.1657983701066453E-6,false]
["SUS631_01773","2014-12-17","08:32:00","Mackenzie","Short Rural","Planned",0,19,212.84210526315792,0,0,false]
["SUS631_01774","2014-12-17","08:36:00","Laurie","Urban","Planned",0,35,226.97142857142859,0,0,false]
["SUS631_01775","2014-12-17","08:45:00","Devonport","Urban","Planned",0,90,480,0,0,false]
["SUS631_01776","2014-12-17","09:32:00","Cunningham","Urban","Planned",0,44,194.04545454545456,0,0,false]
["SUS631_01777","2014-12-17","11:33:00","Mackenzie","Short Rural","Unknown","Unknown",0,0,0,0,false]
["SUS631_01778","2014-12-17","13:41:32","Weston East","Short Rural","Other","Single Premise",1,180.31666666734964,3.0426003419841666E-3,1.6873650107991362E-5,false]
["SUS631_01779","2014-12-17","18:02:00","Streeton","Short Rural","Other","Customer installation",2,24,8.0993520518358531E-4,3.3747300215982723E-5,false]
["SUS631_01780","2014-12-17","18:52:39","Sainsbury","Urban","Other","Single Premise",1,38.783333336468786,3.1669688014623952E-4,8.1657983701066453E-6,false]
["SUS631_01781","2014-12-18","08:26:00","Belmore","Urban","Planned",0,4,259.5,0,0,false]
["SUS631_01782","2014-12-18","08:26:00","Belmore","Urban","Planned",0,6,260,0,0,false]
["SUS631_01783","2014-12-18","08:35:00","Ebden","Urban","Planned",0,14,135,0,0,false]
["SUS631_01784","2014-12-18","08:49:00","Laurie","Urban","Planned",0,35,361.02857142857141,0,0,false]
["SUS631_01785","2014-12-18","09:27:48","<UNKNOWN>","Urban","Other","Single Premise",1,93.216666664229706,7.6118850471354135E-4,8.1657983701066453E-6,false]
["SUS631_01786","2014-12-18","11:38:00","Miller","Urban","Network business","Switching and protection error",14,96.857142857142861,1.1072822589864612E-2,1.1432117718149303E-4,false]
["SUS631_01787","2014-12-18","14:53:10","Matthews","Short Rural","Other","Single Premise",1,210.16666666720994,3.5462787977053514E-3,1.6873650107991362E-5,false]
["SUS631_01788","2014-12-18","18:20:00","Latham","Urban","Vegetation","Blow-in/Fall-in - NSP responsibility",33,70,1.8862994234946352E-2,2.694713462135193E-4,false]
["SUS631_01789","2014-12-18","19:14:03","Wattle","Urban","Other","Single Premise",1,67.216666663298383,5.4887774708316359E-4,8.1657983701066453E-6,false]
["SUS631_01790","2014-12-19","07:54:00","Christian","Urban","Planned",0,1,162,0,0,false]
["SUS631_01791","2014-12-19","08:33:00","Markell","Short Rural","Planned",0,72,192,0,0,false]
["SUS631_01792","2014-12-19","08:39:00","Markell","Short Rural","Planned",0,40,187.95,0,0,false]
["SUS631_01793","2014-12-19","09:00:00","Curtin North","Short Rural","Planned",0,45,204.93333333333331,0,0,false]
["SUS631_01794","2014-12-19","14:22:27","Eardley","Urban","Other","Single Premise",1,67.133333331439644,5.4819726389769596E-4,8.1657983701066453E-6,false]
["SUS631_01795","2014-12-19","16:14:25","Ferguson","Urban","Other","Single Premise",1,333.31666666315868,2.7217966933674011E-3,8.1657983701066453E-6,false]
["SUS631_01796","2014-12-19","17:03:03","Conley","Urban","Other","Single Premise",1,95.749999992549419,7.8187519387687139E-4,8.1657983701066453E-6,false]
["SUS631_01797","2014-12-19","17:35:00","Ferguson","Urban","Third party","Other",20,69,1.1268801750747171E-2,1.6331596740213291E-4,false]
["SUS631_01798","2014-12-19","18:44:00","Daplyn","Urban","Asset failure","LV",23,36,6.7612810504483027E-3,1.8781336251245284E-4,false]
["SUS631_01799","2014-12-19","20:56:33","Nona","Urban","Other","Single Premise",1,60.700000002980232,4.9566396108980933E-4,8.1657983701066453E-6,false]
["SUS631_01800","2014-12-19","21:50:40","Quick","Urban","Other","Single Premise",1,39.849999990547076,3.2540706497155916E-4,8.1657983701066453E-6,false]
["SUS631_01801","2014-12-20","08:26:58","<UNKNOWN>","Urban","Other","Single Premise",1,101.06666666571982,8.2529002193104651E-4,8.1657983701066453E-6,false]
["SUS631_01802","2014-12-20","08:40:08","NSW","Urban","Other","Single Premise",1,98.500000006752089,8.0433113951064081E-4,8.1657983701066453E-6,false]
["SUS631_01803","2014-12-20","10:10:25","Stott","Urban","Other","Single Premise",1,78.383333331439644,6.4006249556139568E-4,8.1657983701066453E-6,false]
["SUS631_01804","2014-12-20","11:51:46","Pridham","Urban","Other","Single Premise",1,137.16666665975936,1.1200753430432246E-3,8.1657983701066453E-6,false]
["SUS631_01805","2014-12-21","10:00:00","Bunbury","Short Rural","Planned",0,8,251.25,0,0,false]
["SUS631_01806","2014-12-21","10:49:00","Bunbury","Short Rural","Planned",0,6,202,0,0,false]
["SUS631_01807","2014-12-21","19:37:08","Belconnen Way North","Urban","Other","Single Premise",1,58.333333327900618,4.7633823821185853E-4,8.1657983701066453E-6,false]
["SUS631_01808","2014-12-22","00:34:39","Elkington","Urban","Other","Single Premise",1,50.183333329623565,4.0978698150955862E-4,8.1657983701066453E-6,false]
["SUS631_01809","2014-12-22","06:45:00","Homann","Short Rural","Animal","Other",937,0,0,0,false]
["SUS631_01810","2014-12-22","08:50:00","Lampard","Short Rural","Planned",0,1,1572,0,0,false]
["SUS631_01811","2014-12-22","11:15:11","Haydon","Urban","Other","Single Premise",1,75.666666668839753,6.1787874335581449E-4,8.1657983701066453E-6,false]
["SUS631_01812","2014-12-22","14:44:00","Conley","Urban","Weather",0,708,0,0,0,false]
["SUS631_01813","2014-12-22","16:55:22","Weir","Urban","Other","Single Premise",1,48.583333332790062,3.9672170414324496E-4,8.1657983701066453E-6,false]
["SUS631_01814","2014-12-22","19:11:51","Conley","Urban","Other","Single Premise",1,152.80000000144355,1.2477339909640831E-3,8.1657983701066453E-6,false]
["SUS631_01815","2014-12-23","00:50:26","Nona","Urban","Other","Single Premise",1,609.19999999925494,4.9746043670628841E-3,8.1657983701066453E-6,false]
["SUS631_01816","2014-12-23","01:56:00","Homann","Short Rural","Vegetation","Blow-in/Fall-in - NSP responsibility",937,48,0.75890928725701945,1.5810610151187905E-2,false]
["SUS631_01817","2014-12-23","06:01:00","Shannon","Short Rural","Unknown","Unknown",1172,0,0,0,false]
["SUS631_01818","2014-12-23","06:39:37","Cunningham","Urban","Other","Single Premise",1,151.5500000026077,1.237526743010956E-3,8.1657983701066453E-6,false]
["SUS631_01819","2014-12-23","08:16:00","Hawker","Urban","Planned",0,7,160.28571428571428,0,0,false]
["SUS631_01820","2014-12-23","10:02:17","Florey","Urban","Other","Single Premise",1,46.566666666185483,3.8025401076403686E-4,8.1657983701066453E-6,false]
["SUS631_01821","2014-12-23","10:27:22","Empire","Urban","Other","Single Premise",1,120.54999999585561,9.8438699348251378E-4,8.1657983701066453E-6,false]
["SUS631_01822","2014-12-23","14:03:00","Elkington","Urban","Network business","Switching and protection error",32,63.9375,1.6707223465238195E-2,2.6130554784341265E-4,false]
["SUS631_01823","2014-12-23","14:26:08","Symers","Urban","Other","Single Premise",1,260.5833333323244,2.1278709586020511E-3,8.1657983701066453E-6,false]
["SUS631_01824","2014-12-23","16:00:00","Chippindall","Short Rural","Asset failure","HV",1503,49.832335329341312,1.2638026457883367,2.5361096112311014E-2,false]
["SUS631_01825","2014-12-23","17:29:12","Lawrence Wackett","Urban","Other","Single Premise",1,103.74999999767169,8.4720158087955193E-4,8.1657983701066453E-6,false]
["SUS631_01826","2014-12-23","20:26:00","Bunbury","Short Rural","Unknown","Unknown",1246,0,0,0,false]
["SUS631_01827","2014-12-24","07:58:50","Giles","Urban","Other","Single Premise",1,76.383333324920386,6.2373089876794751E-4,8.1657983701066453E-6,false]
["SUS631_01828","2014-12-24","10:29:58","Carruthers","Urban","Other","Single Premise",1,81.999999994877726,6.6959546630691749E-4,8.1657983701066453E-6,false]
["SUS631_01829","2014-12-24","10:48:24","Pridham","Urban","Other","Single Premise",1,74.01666667079553,6.0440517606110897E-4,8.1657983701066453E-6,false]
["SUS631_01830","2014-12-25","15:54:00","Folingsby","Urban","Asset failure","LV",9,125.99999999999997,9.2600153517009339E-3,7.3492185330959814E-5,false]
["SUS631_01831","2014-12-25","16:46:27","Weir","Urban","Other","Single Premise",1,59.549999996088445,4.8627329290790974E-4,8.1657983701066453E-6,false]
["SUS631_01832","2014-12-26","09:36:30","Ebden","Urban","Other","Single Premise",1,72.149999997345731,5.8916235238152018E-4,8.1657983701066453E-6,false]
["SUS631_01833","2014-12-26","10:32:26","Pridham","Urban","Other","Single Premise",1,204.16666666860692,1.6671838339126172E-3,8.1657983701066453E-6,false]
["SUS631_01834","2014-12-26","16:43:00","Matthews","Short Rural","Vegetation","Blow-in/Fall-in - NSP responsibility",72,107.24999999999999,0.13029832613390926,1.214902807775378E-3,false]
["SUS631_01835","2014-12-26","20:34:00","Shannon","Short Rural","Asset failure","HV",1172,39.999829351535837,0.79103334233261346,1.9775917926565873E-2,false]
["SUS631_01836","2014-12-27","07:52:54","Shannon","Short Rural","Other","Single Premise",1,72.566666667116806,1.2244645428441685E-3,1.6873650107991362E-5,false]
["SUS631_01837","2014-12-27","19:02:00","Morison","Short Rural","Asset failure","LV",12,46,9.3142548596112304E-3,2.0248380129589633E-4,false]
["SUS631_01838","2014-12-29","01:16:00","Wakefield","Urban","Unknown","Unknown",1197,0,0,0,false]
["SUS631_01839","2014-12-29","10:19:07","<UNKNOWN>","Urban","Other","Single Premise",1,141.71666666516103,1.1572297256713187E-3,8.1657983701066453E-6,false]
["SUS631_01840","2014-12-29","13:35:37","Dryandra","Urban","Other","Single Premise",1,43.266666659619659,3.5330687608906973E-4,8.1657983701066453E-6,false]
["SUS631_01841","2014-12-29","14:40:12","Empire","Urban","Other","Single Premise",1,78.383333331439644,6.4006249556139568E-4,8.1657983701066453E-6,false]
["SUS631_01842","2014-12-29","15:34:46","Macrossan","Short Rural","Other","Single Premise",1,1006.9333333417308,1.6990640748881795E-2,1.6873650107991362E-5,false]
["SUS631_01843","2014-12-29","15:35:04","<UNKNOWN>","Urban","Other","Single Premise",1,80.166666662553325,6.5462483596996071E-4,8.1657983701066453E-6,false]
["SUS631_01844","2014-12-30","01:36:00","Belconnen Way South","Urban","Unknown","Unknown",1634,0,0,0,false]
["SUS631_01845","2014-12-30","14:55:53","Throsby","Urban","Other","Single Premise",1,97.099999993806705,7.9289902168678205E-4,8.1657983701066453E-6,false]
["SUS631_01846","2014-12-30","17:39:26","Duffy","Urban","Other","Single Premise",1,129.21666666632518,1.0551572460544918E-3,8.1657983701066453E-6,false]
["SUS631_01847","2014-12-30","17:42:14","Weir","Urban","Other","Single Premise",1,127.1999999997206,1.0386895526752838E-3,8.1657983701066453E-6,false]
["SUS631_01848","2014-12-30","18:03:00","Newcastle","Short Rural","Asset failure","HV",1,90,1.5186285097192225E-3,1.6873650107991362E-5,false]
["SUS631_01849","2014-12-30","18:33:29","Conley","Urban","Other","Single Premise",1,76.416666666045785,6.2400309211057951E-4,8.1657983701066453E-6,false]
["SUS631_01850","2014-12-31","13:01:00","Lampard","Short Rural","Planned",0,1,12,0,0,false]
["SUS631_01851","2014-12-31","13:21:41","Bunburung","Urban","Other","Single Premise",1,18.916666667209938,1.5446968583895362E-4,8.1657983701066453E-6,false]
["SUS631_01852","2014-12-31","14:45:00","Lhotsky","Short Rural","Third party","Other",9,343.33333333333331,5.2139578833693308E-2,1.5186285097192225E-4,false]
["SUS631_01853","2015-01-01","07:24:00","Athllon","Urban","Asset failure","HV",49,42.979591836734699,1.7197171367444596E-2,4.0012412013522563E-4,false]
["SUS631_01854","2015-01-01","12:26:10","Shannon","Short Rural","Other","Single Premise",1,38.216666673542932,6.4485466174309754E-4,1.6873650107991362E-5,false]
["SUS631_01855","2015-01-01","15:16:31","Belconnen Way South","Urban","Other","Single Premise",1,31.916666667675599,2.6062506465414251E-4,8.1657983701066453E-6,false]
["SUS631_01856","2015-01-01","19:40:07","Bissenberger","Short Rural","Other","Single Premise",1,50.016666665906087,8.4396373288853413E-4,1.6873650107991362E-5,false]
["SUS631_01857","2015-01-02","10:13:38","Baldwin","Urban","Other","Single Premise",1,89.899999997578561,7.3410527345281441E-4,8.1657983701066453E-6,false]
["SUS631_01858","2015-01-02","11:21:21","Mackenzie","Short Rural","Other","Single Premise",1,108.00000000628643,1.8223542117691419E-3,1.6873650107991362E-5,false]
["SUS631_01859","2015-01-02","13:06:47","Dryandra","Urban","Other","Single Premise",1,195.48333333805203,1.5962774847548794E-3,8.1657983701066453E-6,false]
["SUS631_01860","2015-01-02","16:23:54","Dryandra","Urban","Other","Single Premise",1,42.399999999906868,3.4622985089176127E-4,8.1657983701066453E-6,false]
["SUS631_01861","2015-01-02","16:42:43","Curtin North","Short Rural","Other","Single Premise",1,64.816666668048128,1.0936937545229504E-3,1.6873650107991362E-5,false]
["SUS631_01862","2015-01-02","20:50:25","KF1","Urban","Other","Single Premise",1,59.400000002933666,4.8504842320829048E-4,8.1657983701066453E-6,false]
["SUS631_01863","2015-01-03","10:47:00","Cotter 11kV","Short Rural","Third party","Other",19,67.89473684210526,2.1767008639308857E-2,3.2059935205183584E-4,false]
["SUS631_01864","2015-01-03","14:09:29","Empire","Urban","Other","Single Premise",1,104.51666666544043,8.5346202630563295E-4,8.1657983701066453E-6,false]
["SUS631_01865","2015-01-03","17:24:13","Hawkesbury","Short Rural","Other","Single Premise",1,71.916666672332212,1.2134966703619772E-3,1.6873650107991362E-5,false]
["SUS631_01866","2015-01-04","06:55:00","Tennant","Urban","Unknown","Unknown",329,0,0,0,false]
["SUS631_01867","2015-01-04","08:51:31","Hawker","Urban","Other","Single Premise",1,82.233333340846002,6.7150081936311675E-4,8.1657983701066453E-6,false]
["SUS631_01868","2015-01-04","13:33:00","Hawker","Urban","Asset failure","LV",28,36,8.2311247570674984E-3,2.2864235436298607E-4,false]
["SUS631_01869","2015-01-04","16:40:00","Fairley","Short Rural","Unknown","Unknown",35,0,0,0,false]
["SUS631_01870","2015-01-04","17:53:00","Matthews","Short Rural","Unknown","Unknown",35,0,0,0,false]
["SUS631_01871","2015-01-04","19:11:11","Wolseley","Urban","Other","Single Premise",1,99.933333329390734,8.1603545042046297E-4,8.1657983701066453E-6,false]
["SUS631_01872","2015-01-04","20:48:45","Latham","Urban","Other","Single Premise",1,118.94999999902211,9.7132171611620023E-4,8.1657983701066453E-6,false]
["SUS631_01873","2015-01-04","21:36:27","Streeton","Short Rural","Other","Single Premise",1,8.4833333257120103,1.4314479828752717E-4,1.6873650107991362E-5,false]
["SUS631_01874","2015-01-04","22:40:00","Strzelecki","Urban","Unknown","Unknown",1645,0,0,0,false]
["SUS631_01875","2015-01-05","05:57:26","Powers","Urban","Other","Single Premise",1,34.300000002840534,2.8008688411785318E-4,8.1657983701066453E-6,false]
["SUS631_01876","2015-01-05","08:48:11","Whyalla","Urban","Other","Single Premise",1,66.66666666045785,5.443865579564097E-4,8.1657983701066453E-6,false]
["SUS631_01877","2015-01-05","13:30:15","Tennant","Urban","Other","Single Premise",1,51.683333334513009,4.2203567910464477E-4,8.1657983701066453E-6,false]
["SUS631_01878","2015-01-05","14:44:57","Bunbury","Short Rural","Other","Single Premise",1,90.93333333148621,1.5343772497888467E-3,1.6873650107991362E-5,false]
["SUS631_01879","2015-01-05","17:14:07","Bunbury","Short Rural","Other","Single Premise",1,7.3333333292976022,1.2374010072383913E-4,1.6873650107991362E-5,false]
["SUS631_01880","2015-01-05","18:06:00","Duffy","Urban","Vegetation","Blow-in/Fall-in - NSP responsibility",25,23.04,4.7034998611814281E-3,2.0414495925266614E-4,false]
["SUS631_01881","2015-01-05","20:33:00","Ebden","Urban","Vegetation","Blow-in/Fall-in - NSP responsibility",1747,25.9988551803091,0.37089056197024384,1.4265649752576309E-2,false]
["SUS631_01882","2015-01-06","08:28:56","Elkington","Urban","Other","Single Premise",1,124.91666666697711,1.0200443130683567E-3,8.1657983701066453E-6,false]
["SUS631_01883","2015-01-06","08:46:00","Fairley","Short Rural","Asset failure","HV",4,55.5,3.745950323974082E-3,6.7494600431965447E-5,false]
["SUS631_01884","2015-01-06","09:30:58","Ashley","Short Rural","Other","Single Premise",1,54.433333338238299,9.1848902096109439E-4,1.6873650107991362E-5,false]
["SUS631_01885","2015-01-06","12:19:17","<UNKNOWN>","Urban","Other","Single Premise",1,69.300000001676381,5.658898270620795E-4,8.1657983701066453E-6,false]
["SUS631_01886","2015-01-06","20:48:10","McGuiness","Urban","Other","Single Premise",1,43.816666662460193,3.5779806521582362E-4,8.1657983701066453E-6,false]
["SUS631_01887","2015-01-07","08:35:00","Meacham","Short Rural","Planned",0,30,240,0,0,false]
["SUS631_01888","2015-01-07","08:40:00","Copland","Urban","Planned",0,28,229.92857142857142,0,0,false]
["SUS631_01889","2015-01-07","09:32:00","Laurie","Urban","Asset failure","LV",27,73.999999999999986,1.6315265143473073E-2,2.2047655599287942E-4,false]
["SUS631_01890","2015-01-07","09:53:00","Fairley","Short Rural","Asset failure","HV",8,0,0,0,false]
["SUS631_01891","2015-01-07","11:20:00","Nona","Urban","Third party","Other",1,18,1.4698437066191963E-4,8.1657983701066453E-6,false]
["SUS631_01892","2015-01-07","13:08:00","Carruthers","Urban","Planned",0,38,75.94736842105263,0,0,false]
["SUS631_01893","2015-01-07","14:12:34","Weston East","Short Rural","Other","Single Premise",1,114.90000000572763,1.9387823975048535E-3,1.6873650107991362E-5,false]
["SUS631_01894","2015-01-07","15:07:50","Paterick","Urban","Other","Single Premise",1,30.249999999068677,2.4701540068812103E-4,8.1657983701066453E-6,false]
["SUS631_01895","2015-01-07","16:19:09","Homann","Short Rural","Other","Single Premise",1,78.533333335071802,1.3251439885102558E-3,1.6873650107991362E-5,false]
["SUS631_01896","2015-01-07","18:50:00","Tillyard","Urban","Asset failure","HV",44,131.04545454545453,4.708399340203491E-2,3.5929512828469242E-4,false]
["SUS631_01897","2015-01-08","08:35:00","Lyons West","Urban","Planned",0,30,246.99999999999997,0,0,false]
["SUS631_01898","2015-01-08","08:40:00","Devonport","Urban","Planned",0,32,237.9375,0,0,false]
["SUS631_01899","2015-01-08","09:03:00","Melba","Urban","Planned",0,1,24,0,0,false]
["SUS631_01900","2015-01-08","09:10:00","Homann","Short Rural","Planned",0,11,56.181818181818187,0,0,false]
["SUS631_01901","2015-01-08","10:57:00","Miller","Urban","Network business","Switching and protection error",50,45.959999999999994,1.8765004654505067E-2,4.0828991850533228E-4,false]
["SUS631_01902","2015-01-08","13:52:32","Giles","Urban","Other","Single Premise",1,58.766666668234393,4.7987675089606891E-4,8.1657983701066453E-6,false]
["SUS631_01903","2015-01-08","17:26:00","Belmore","Urban","Other","Single Premise",1,115.39999999688007,9.4233313188483016E-4,8.1657983701066453E-6,false]
["SUS631_01904","2015-01-08","19:24:00","Wilson","Urban","Vegetation","Blow-in/Fall-in - NSP responsibility",28,67.928571428571431,1.5531348499942839E-2,2.2864235436298607E-4,false]
["SUS631_01905","2015-01-08","21:22:00","Lambrigg","Urban","Vegetation","Blow-in/Fall-in - NSP responsibility",49,41.020408163265301,1.6413254723914354E-2,4.0012412013522563E-4,false]
["SUS631_01906","2015-01-09","08:30:00","Empire","Urban","Planned",0,28,244.92857142857144,0,0,false]
["SUS631_01907","2015-01-09","08:50:00","Longmore","Urban","Planned",0,21,107.14285714285715,0,0,false]
["SUS631_01908","2015-01-09","12:42:13","Weston East","Short Rural","Other","Single Premise",1,117.59999999776483,1.9843412526620685E-3,1.6873650107991362E-5,false]
["SUS631_01909","2015-01-09","13:05:44","<UNKNOWN>","Urban","Other","Single Premise",1,81.300000009359792,6.6387940756610048E-4,8.1657983701066453E-6,false]
["SUS631_01910","2015-01-09","14:11:56","Brookman","Urban","Other","Single Premise",1,77.733333336655051,6.3475472666341441E-4,8.1657983701066453E-6,false]
["SUS631_01911","2015-01-09","15:41:00","Wilson","Urban","Asset failure","LV",8,114,7.4472081135372606E-3,6.5326386960853162E-5,false]
["SUS631_01912","2015-01-09","16:43:46","Conolly","Urban","Other","Single Premise",1,110.16666666604578,8.995987871016788E-4,8.1657983701066453E-6,false]
["SUS631_01913","2015-01-10","06:30:25","Ovens","Urban","Other","Single Premise",1,205.23333333316259,1.6758940188234929E-3,8.1657983701066453E-6,false]
["SUS631_01914","2015-01-10","09:15:00","Florey","Urban","Third party","Other",14,107.57142857142857,1.2297692345380608E-2,1.1432117718149303E-4,false]
["SUS631_01915","2015-01-10","17:44:57","Jardine","Urban","Other","Single Premise",1,6.1333333316724747,5.0083563323091856E-5,8.1657983701066453E-6,false]
["SUS631_01916","2015-01-11","07:00:00","Black Mtn","Short Rural","Weather",0,1,132,2.2273218142548597E-3,1.6873650107991362E-5,false]
["SUS631_01917","2015-01-11","08:26:21","Wakefield","Urban","Other","Single Premise",1,105.18333333078772,8.5890589187493033E-4,8.1657983701066453E-6,false]
["SUS631_01918","2015-01-11","09:14:00","Folingsby","Urban","Vegetation","Blow-in/Fall-in - NSP responsibility",8,296.25,1.9352942137152749E-2,6.5326386960853162E-5,false]
["SUS631_01919","2015-01-11","10:04:00","Mackenzie","Short Rural","Unknown","Unknown",1893,0,0,0,false]
["SUS631_01920","2015-01-11","13:37:20","Lambrigg","Urban","Other","Single Premise",1,100.95000000321306,8.2433734548850311E-4,8.1657983701066453E-6,false]
["SUS631_01921","2015-01-11","15:38:00","Cooleman","Urban","Vegetation","Blow-in/Fall-in - NSP responsibility",20,33,5.389426924270386E-3,1.6331596740213291E-4,false]
["SUS631_01922","2015-01-11","15:57:41","Folingsby","Urban","Other","Single Premise",1,43.983333336655051,3.5915903167231512E-4,8.1657983701066453E-6,false]
["SUS631_01923","2015-01-11","20:08:30","Sturt","Urban","Other","Single Premise",1,111.75000000279397,9.1252796788223259E-4,8.1657983701066453E-6,false]
["SUS631_01924","2015-01-11","20:27:00","Swinden","Short Rural","Weather",0,474,0,0,0,false]
["SUS631_01925","2015-01-11","21:00:00","Sturt","Urban","Vegetation","Blow-in/Fall-in - NSP responsibility",48,65,2.5477290914732734E-2,3.9195832176511897E-4,false]
["SUS631_01926","2015-01-12","00:21:00","Bean","Short Rural","Unknown","Unknown",585,0,0,0,false]
["SUS631_01927","2015-01-12","00:21:00","Meacham","Short Rural","Unknown","Unknown",2650,0,0,0,false]
["SUS631_01928","2015-01-12","08:30:00","Chisholm","Urban","Planned",0,24,240,0,0,false]
["SUS631_01929","2015-01-12","09:11:00","Chisholm","Urban","Planned",0,58,193.9655172413793,0,0,false]
["SUS631_01930","2015-01-12","11:43:48","Lawrence Wackett","Urban","Other","Single Premise",1,5.5833333393093199,4.559237428189414E-5,8.1657983701066453E-6,false]
["SUS631_01931","2015-01-12","14:11:02","Grimshaw","Short Rural","Other","Single Premise",1,99.633333332603797,1.6811780057472293E-3,1.6873650107991362E-5,false]
["SUS631_01932","2015-01-12","18:30:00","Pridham","Urban","Vegetation","Blow-in/Fall-in - NSP responsibility",18,122,1.7932093220754192E-2,1.4698437066191963E-4,false]
["SUS631_01933","2015-01-12","19:09:21","Anthony Rolfe","Short Rural","Other","Single Premise",1,37.383333334000781,6.3079328654833935E-4,1.6873650107991362E-5,false]
["SUS631_01934","2015-01-13","06:20:08","Anthony Rolfe","Short Rural","Other","Single Premise",1,269.21666666166857,4.5426678364887379E-3,1.6873650107991362E-5,false]
["SUS631_01935","2015-01-13","08:40:00","William Slim","Short Rural","Planned",0,31,341.99999999999994,0,0,false]
["SUS631_01936","2015-01-13","08:42:00","McGuiness","Urban","Planned",0,32,210,0,0,false]
["SUS631_01937","2015-01-13","09:28:51","Cooleman","Urban","Other","Single Premise",1,74.516666672425345,6.0848807525947109E-4,8.1657983701066453E-6,false]
["SUS631_01938","2015-01-13","10:51:21","Shannon","Short Rural","Other","Single Premise",1,140.01666666590609,2.3625922426077565E-3,1.6873650107991362E-5,false]
["SUS631_01939","2015-01-13","13:56:00","Monash","Urban","Asset failure","HV",1,36,2.9396874132383926E-4,8.1657983701066453E-6,false]
["SUS631_01940","2015-01-13","14:01:49","Lhotsky","Short Rural","Other","Single Premise",1,49.100000004982576,8.2849622038645005E-4,1.6873650107991362E-5,false]
["SUS631_01941","2015-01-13","19:05:00","Markell","Short Rural","Asset failure","HV",1424,0,0,0,false]
["SUS631_01942","2015-01-13","19:06:00","Markell","Short Rural","Asset failure","HV",312,51,0.26849352051835851,5.2645788336933043E-3,false]
["SUS631_01943","2015-01-13","21:45:00","Black Mtn","Short Rural","Unknown","Unknown",6,135,1.3667656587473003E-2,1.0124190064794816E-4,false]
["SUS631_01944","2015-01-14","08:20:00","Bowley","Short Rural","Planned",0,11,316.90909090909093,0,0,false]
["SUS631_01945","2015-01-14","08:45:00","Laurie","Urban","Planned",0,56,240,0,0,false]
["SUS631_01946","2015-01-14","08:56:00","Verbrugghen","Short Rural","Planned",0,53,210,0,0,false]
["SUS631_01947","2015-01-14","08:56:00","Brookman","Urban","Planned",0,48,167,0,0,false]
["SUS631_01948","2015-01-14","08:57:00","Brookman","Urban","Planned",0,20,168.9,0,0,false]
["SUS631_01949","2015-01-14","09:00:00","Lexcen","Urban","Planned",0,77,272.96103896103898,0,0,false]
["SUS631_01950","2015-01-14","09:01:00","Copland","Urban","Planned",0,23,208.95652173913041,0,0,false]
["SUS631_01951","2015-01-14","09:15:00","Falkiner","Urban","Vegetation","Blow-in/Fall-in - NSP responsibility",10,19.799999999999997,1.6168280772811156E-3,8.1657983701066453E-5,false]
["SUS631_01952","2015-01-14","09:18:00","Braddon","Urban","Planned",0,2,240,0,0,false]
["SUS631_01953","2015-01-14","09:20:00","Copland","Urban","Planned",0,26,234.92307692307691,0,0,false]
["SUS631_01954","2015-01-14","10:25:00","William Slim","Short Rural","Third party","Other",25,19.920000000000002,8.4030777537796985E-3,4.2184125269978401E-4,false]
["SUS631_01955","2015-01-14","13:13:00","Pridham","Urban","Other","Single Premise",1,134.91666666814126,1.1017022967789295E-3,8.1657983701066453E-6,false]
["SUS631_01956","2015-01-14","13:24:00","Brookman","Urban","Weather",0,1450,0,0,0,false]
["SUS631_01957","2015-01-14","17:35:00","Wakefield","Urban","Asset failure","LV",24,215,4.2135519589750287E-2,1.9597916088255949E-4,false]
["SUS631_01958","2015-01-14","19:13:00","CAE No 1","Urban","Planned",0,1,138,0,0,false]
["SUS631_01959","2015-01-14","19:17:00","CAE No 1","Urban","Planned",0,1,144,0,0,false]
["SUS631_01960","2015-01-14","20:12:00","Wakefield","Urban","Asset failure","LV",5,62.400000000000006,2.5477290914732733E-3,4.0828991850533227E-5,false]
["SUS631_01961","2015-01-15","01:45:00","Mannheim","Short Rural","Vegetation","Blow-in/Fall-in - NSP responsibility",12,67,1.3566414686825054E-2,2.0248380129589633E-4,false]
["SUS631_01962","2015-01-15","08:30:00","Cotter 11kV","Short Rural","Planned",0,3,276.00000000000006,0,0,false]
["SUS631_01963","2015-01-15","08:35:00","Copland","Urban","Planned",0,64,259.96875,0,0,false]
["SUS631_01964","2015-01-15","08:53:00","Laurie","Urban","Planned",0,20,191.1,0,0,false]
["SUS631_01965","2015-01-15","08:59:00","Bean","Short Rural","Planned",0,26,177,0,0,false]
["SUS631_01966","2015-01-15","09:13:00","Folingsby","Urban","Planned",0,31,91.935483870967744,0,0,false]
["SUS631_01967","2015-01-16","01:39:00","Bunbury","Short Rural","Overloads",0,50,66.959999999999994,5.6492980561555065E-2,8.4368250539956801E-4,false]
["SUS631_01968","2015-01-16","08:33:00","Bean","Short Rural","Planned",0,39,227.07692307692307,0,0,false]
["SUS631_01969","2015-01-16","08:34:00","Cotter 11kV","Short Rural","Planned",0,8,260.25,0,0,false]
["SUS631_01970","2015-01-16","08:40:00","McGuiness","Urban","Planned",0,9,170,0,0,false]
["SUS631_01971","2015-01-16","08:49:00","Deakin No 2","Urban","Planned",0,81,140,0,0,false]
["SUS631_01972","2015-01-16","08:50:00","Brookman","Urban","Planned",0,29,193.0344827586207,0,0,false]
["SUS631_01973","2015-01-16","08:57:00","Bean","Short Rural","Planned",0,21,190,0,0,false]
["SUS631_01974","2015-01-16","09:02:00","Bean","Short Rural","Planned",0,21,189.14285714285717,0,0,false]
["SUS631_01975","2015-01-16","09:36:00","Duffy","Urban","Planned",0,41,90,0,0,false]
["SUS631_01976","2015-01-16","14:11:27","Paterick","Urban","Other","Single Premise",1,54.466666668886319,4.4476381790993383E-4,8.1657983701066453E-6,false]
["SUS631_01977","2015-01-16","14:46:43","McGuiness","Urban","Other","Single Premise",1,15.250000002561137,1.2452842516504008E-4,8.1657983701066453E-6,false]
["SUS631_01978","2015-01-16","15:27:00","Paterick","Urban","Other","Single Premise",1,87.449999990640208,7.1409906738939598E-4,8.1657983701066453E-6,false]
["SUS631_01979","2015-01-16","17:00:00","Cotter 11kV","Short Rural","Asset failure","HV",1,60,1.0124190064794817E-3,1.6873650107991362E-5,false]
["SUS631_01980","2015-01-17","00:41:00","Sturt","Urban","Vegetation","Blow-in/Fall-in - NSP responsibility",1315,0,0,0,false]
["SUS631_01981","2015-01-17","08:21:48","Streeton","Short Rural","Other","Single Premise",1,105.13333334005438,1.7739830814669003E-3,1.6873650107991362E-5,false]
["SUS631_01982","2015-01-17","12:37:21","Melba","Urban","Other","Single Premise",1,25.899999998509884,2.1149417777359414E-4,8.1657983701066453E-6,false]
["SUS631_01983","2015-01-17","17:03:16","Edmond","Urban","Other","Single Premise",1,59.633333327947184,4.8695377609337743E-4,8.1657983701066453E-6,false]
["SUS631_01984","2015-01-18","14:06:35","<UNKNOWN>","Urban","Other","Single Premise",1,70.433333327528089,5.751443984871069E-4,8.1657983701066453E-6,false]
["SUS631_01985","2015-01-18","19:50:00","CAE No 1","Urban","Asset failure","HV",1,42,3.4296353154447912E-4,8.1657983701066453E-6,false]
["SUS631_01986","2015-01-18","19:50:08","<UNKNOWN>","Urban","Other","Single Premise",1,67.066666659666225,5.476528772979882E-4,8.1657983701066453E-6,false]
["SUS631_01987","2015-01-18","21:58:57","Bean","Short Rural","Other","Single Premise",1,45.683333335909992,7.7084458247688294E-4,1.6873650107991362E-5,false]
["SUS631_01988","2015-01-18","23:13:58","Callister","Short Rural","Other","Single Premise",1,157.03333332901821,2.6497255218854315E-3,1.6873650107991362E-5,false]
["SUS631_01989","2015-01-19","09:47:58","Marconi","Urban","Other","Single Premise",1,117.61666666832753,9.6043398497760546E-4,8.1657983701066453E-6,false]
["SUS631_01990","2015-01-19","11:48:02","Lexcen","Urban","Other","Single Premise",1,107.76666667079553,8.8000087105220826E-4,8.1657983701066453E-6,false]
["SUS631_01991","2015-01-19","16:14:52","Barrington","Urban","Other","Single Premise",1,104.26666665938683,8.5142057666367382E-4,8.1657983701066453E-6,false]
["SUS631_01992","2015-01-19","16:20:17","<UNKNOWN>","Urban","Other","Single Premise",1,99.633333332603797,8.1358571093566822E-4,8.1657983701066453E-6,false]
["SUS631_02018","2015-01-21","20:51:00","Homann","Short Rural","Weather",0,1,126,2.1260799136069114E-3,1.6873650107991362E-5,false]
["SUS631_02030","2015-01-22","10:37:00","Fielder","Urban","Planned",0,1,72,0,0,false]
["SUS631_02061","2015-01-25","14:57:05","Cotter 11kV","Short Rural","Other","Single Premise",1,64.183333333348855,1.0830071094315075E-3,1.6873650107991362E-5,false]
["SUS631_02087","2015-01-28","13:10:00","Devonport","Urban","Planned",0,43,105.06976744186046,0,0,false]
["SUS631_02109","2015-01-30","07:30:00","Pridham","Urban","Animal","Other",1,36,2.9396874132383926E-4,8.1657983701066453E-6,false]
["SUS631_02140","2015-02-03","08:50:00","Meacham","Short Rural","Planned",0,40,244.95000000000002,0,0,false]
["SUS631_02187","2015-02-08","14:08:00","Canberra","Urban","6 - STPIS Exclusion (3.3)(a)",0,0,0,0,0,false]
["SUS631_02210","2015-02-11","09:35:00","Lyons West","Urban","Planned",0,19,89.05263157894737,0,0,false]
["SUS631_02235","2015-02-13","11:53:00","Empire","Urban","Other","Single Premise",1,38.550000000977889,3.1479152717559645E-4,8.1657983701066453E-6,false]
["SUS631_02266","2015-02-17","10:27:00","Elkington","Urban","Planned",0,64,153,0,0,false]
["SUS631_02297","2015-02-20","08:38:00","Weston East","Short Rural","Planned",0,87,296,0,0,false]
["SUS631_02309","2015-02-21","06:12:00","Fairbairn","Urban","Planned",0,1,360,0,0,false]
["SUS631_02345","2015-02-23","20:49:00","Yarralumla","Urban","Vegetation","Blow-in/Fall-in - NSP responsibility",9,942.00000000000011,6.9229638581764161E-2,7.3492185330959814E-5,false]
["SUS631_02376","2015-02-24","18:15:00","Edmond","Urban","Vegetation","Blow-in/Fall-in - NSP responsibility",30,35,8.5740882886119769E-3,2.4497395110319935E-4,false]
["SUS631_02423","2015-03-01","07:36:00","Black Mtn","Short Rural","Animal","Other",3,64,3.2397408207343412E-3,5.0620950323974082E-5,false]
["SUS631_02432","2015-03-02","17:58:38","Nona","Urban","Other","Single Premise",1,105.66666667233221,8.6285269448753258E-4,8.1657983701066453E-6,false]
["SUS631_02471","2015-03-06","16:01:44","<UNKNOWN>","Urban","Other","Single Premise",1,167.18333333381452,1.3651853908462587E-3,8.1657983701066453E-6,false]
["SUS631_02502","2015-03-11","19:58:01","Meacham","Short Rural","Other","Single Premise",1,127.75000000256114,2.1556088013391121E-3,1.6873650107991362E-5,false]
["SUS631_02533","2015-03-13","12:15:00","CSIRO","Urban","Asset failure","Zone substation",39,13.076923076923077,4.1645571687543891E-3,3.1846613643415916E-4,false]
["SUS631_02559","2015-03-17","19:21:09","Black Mtn","Short Rural","Other","Single Premise",1,101.40000000363216,1.7109881210116116E-3,1.6873650107991362E-5,false]
["SUS631_02581","2015-03-19","06:20:00","ANU Avenue","Urban","Planned",0,1,72,0,0,false]
["SUS631_02599","2015-03-20","09:35:00","Latham","Urban","Planned",0,24,244.99999999999997,0,0,false]
["SUS631_02630","2015-03-24","07:23:00","Throsby","Urban","Unknown","Unknown",18,77.999999999999986,1.1464780911629727E-2,1.4698437066191963E-4,false]
["SUS631_02654","2015-03-26","08:31:00","Wilson","Urban","Planned",0,20,564.90000000000009,0,0,false]
["SUS631_02707","2015-04-01","08:55:01","Seal","Urban","Other","Single Premise",1,157.83333333791234,1.2888351761192235E-3,8.1657983701066453E-6,false]
["SUS631_02738","2015-04-02","21:05:00","Abattoirs","Short Rural","Asset failure","HV",1,84,1.4173866090712744E-3,1.6873650107991362E-5,false]
["SUS631_02740","2015-04-03","10:17:00","Theodore","Urban","Unknown","Unknown",88,61.022727272727273,4.3850337247472684E-2,7.1859025656938484E-4,false]
["SUS631_02781","2015-04-08","10:02:43","Black Mtn","Short Rural","Other","Single Premise",1,113.18333332543261,1.9098159645895081E-3,1.6873650107991362E-5,false]
["SUS631_02817","2015-04-11","18:30:00","Banyule","Short Rural","Asset failure","LV",6,73,7.3906587473002161E-3,1.0124190064794816E-4,false]
["SUS631_02835","2015-04-14","13:05:00","Wilson","Urban","Third party","Other",25,62.160000000000004,1.2689650667145726E-2,2.0414495925266614E-4,false]
["SUS631_02866","2015-04-16","20:55:39","Folingsby","Urban","Other","Single Premise",1,45.98333333269693,3.7549062838020716E-4,8.1657983701066453E-6,false]
["SUS631_02904","2015-04-20","12:55:00","Latham","Urban","Asset failure","HV",34,4.9411764705882355,1.3718541261779165E-3,2.7763714458362595E-4,false]
["SUS631_02914","2015-04-20","14:57:24","<UNKNOWN>","Urban","Other","Single Premise",1,122.29999999632128,9.9867714063400304E-4,8.1657983701066453E-6,false]
["SUS631_02945","2015-04-22","08:45:00","Streeton","Short Rural","Planned",0,48,223.99999999999997,0,0,false]
["SUS631_02976","2015-04-24","08:38:00","Streeton","Short Rural","Planned",0,44,393,0,0,false]
["SUS631_03003","2015-04-27","06:12:00","Stott","Urban","Planned",0,11,24,0,0,false]
["SUS631_03053","2015-05-01","01:48:00","Ferguson","Urban","Asset failure","LV",36,25,7.3492185330959808E-3,2.9396874132383926E-4,false]
["SUS631_03071","2015-05-02","08:02:00","Parliament House #1","Urban","Planned",0,1,42,0,0,false]
["SUS631_03102","2015-05-04","15:32:29","Strzelecki","Urban","Other","Single Premise",1,112.89999999920838,9.2191863597857599E-4,8.1657983701066453E-6,false]
["SUS631_03126","2015-05-06","08:57:08","Yarralumla","Urban","Other","Single Premise",1,168.64999999757856,1.3771618950987128E-3,8.1657983701066453E-6,false]
["SUS631_03150","2015-05-07","09:30:00","Matthews","Short Rural","Planned",0,1,132,0,0,false]
["SUS631_03181","2015-05-09","17:07:23","Florey","Urban","Other","Single Premise",1,108.86666666599922,8.889832492201599E-4,8.1657983701066453E-6,false]
["SUS631_03228","2015-05-13","20:13:00","Jolimont","Urban","Planned",0,4,64.5,0,0,false]
["SUS631_03253","2015-05-15","08:58:00","Macrossan","Short Rural","Planned",0,59,313.0169491525424,0,0,false]
["SUS631_03260","2015-05-15","09:40:00","William Slim","Short Rural","Planned",0,31,277.93548387096774,0,0,false]
["SUS631_03307","2015-05-19","09:05:00","Rossman","Urban","Planned",0,7,185.14285714285714,0,0,false]
["SUS631_03338","2015-05-21","09:30:00","Seal","Urban","Planned",0,61,262.03278688524591,0,0,false]
["SUS631_03348","2015-05-22","08:48:00","Gouger","Urban","Planned",0,15,364,0,0,false]
["SUS631_03386","2015-05-25","14:43:44","Lambrigg","Urban","Other","Single Premise",1,69.866666664602235,5.7051711277459325E-4,8.1657983701066453E-6,false]
["SUS631_03417","2015-05-27","15:46:00","Powers","Urban","Asset failure","HV",24,230.75,4.5222191373650598E-2,1.9597916088255949E-4,false]
["SUS631_03435","2015-05-28","20:01:00","Deakin No 1","Urban","Vegetation","Blow-in/Fall-in - NSP responsibility",26,14.076923076923077,2.9886822034590321E-3,2.1231075762277279E-4,false]
["SUS631_03475","2015-06-03","04:43:00","Birrigai","Short Rural","Asset failure","HV",1021,51.208619000979432,0.88222192224622031,1.7227996760259181E-2,false]
["SUS631_03496","2015-06-04","09:03:21","Ebden","Urban","Other","Single Premise",1,138.05000000051223,1.1272884649974051E-3,8.1657983701066453E-6,false]
["SUS631_03543","2015-06-10","17:16:26","Riley","Urban","Other","Single Premise",1,235.63333333586343,1.9241342892967895E-3,8.1657983701066453E-6,false]
["SUS631_03545","2015-06-10","17:25:00","Carruthers","Urban","Asset failure","LV",65,136.98461538461538,7.2708268687429564E-2,5.3077689405693195E-4,false]
["SUS631_03574","2015-06-12","18:00:55","Laurie","Urban","Other","Single Premise",1,7.1999999962281436,5.8793748233967628E-5,8.1657983701066453E-6,false]
["SUS631_03622","2015-06-16","07:39:00","Power House","Urban","Asset failure","HV",1034,52.700193423597682,0.44497068478385132,8.4434355146902704E-3,false]
["SUS631_03653","2015-06-18","18:47:32","Meacham","Short Rural","Other","Single Premise",1,69.033333335537463,1.1648443124921953E-3,1.6873650107991362E-5,false]
["SUS631_03671","2015-06-20","08:38:00","Aero Park","Urban","Planned",0,1,144,0,0,false]
["SUS631_03697","2015-06-23","09:27:00","May Maxwell","Urban","Planned",0,17,114,0,0,false]
["SUS631_03732","2015-06-25","10:18:06","Empire","Urban","Other","Single Premise",1,112.78333332622424,9.2096595945047636E-4,8.1657983701066453E-6,false]
["SUS631_03750","2015-06-26","14:25:00","Wattle","Urban","Asset failure","LV",9,65.333333333333343,4.801489441622708E-3,7.3492185330959814E-5,false]
["SUS631_03781","2015-06-28","22:34:52","Conolly","Urban","Other","Single Premise",1,80.899999999674037,6.6061308813896585E-4,8.1657983701066453E-6,false]
["SUS631_03824",null,null,null,null,null," "]
["SUS631_03858",null,null,null,null,null," "]
["SUS631_03889",null,null,null,null,null," "]
["SUS631_03907",null,null,null,null,null," "]
["SUS631_03919",null,null,null,null,null," "]
["SUS631_03968",null,null,null,null,null," "]
["SUS631_03986",null,null,null,null,null," "]
["SUS631_04017",null,null,null,null,null," "]
["SUS631_04046",null,null,null,null,null," "]
["SUS631_04065",null,null,null,null,null," "]
["SUS631_04096",null,null,null,null,null," "]
["SUS631_04143",null,null,null,null,null," "]
["SUS631_04169",null,null,null,null,null," "]
["SUS631_04191",null,null,null,null,null," "]
["SUS631_04222",null,null,null,null,null," "]
["SUS631_04253",null,null,null,null,null," "]
["SUS631_04268",null,null,null,null,null," "]
["SUS631_04301",null,null,null,null,null," "]
["SUS631_04332",null,null,null,null,null," "]
["SUS631_04350",null,null,null,null,null," "]
["SUS631_04391",null,null,null,null,null," "]
["SUS631_04427",null,null,null,null,null," "]
["SUS631_04458",null,null,null,null,null," "]
["SUS631_04489",null,null,null,null,null," "]
["SUS631_04518",null,null,null,null,null," "]
["SUS631_04537",null,null,null,null,null," "]
["SUS631_04568",null,null,null,null,null," "]
["SUS631_04586",null,null,null,null,null," "]
["SUS631_04613",null,null,null,null,null," "]
["SUS631_04663",null,null,null,null,null," "]
["SUS631_04694",null,null,null,null,null," "]
["SUS631_04696",null,null,null,null,null," "]
["SUS631_04740",null,null,null,null,null," "]
["SUS631_04773",null,null,null,null,null," "]
["SUS631_04791",null,null,null,null,null," "]
["SUS631_04822",null,null,null,null,null," "]
["SUS631_04863",null,null,null,null,null," "]
["SUS631_04870",null,null,null,null,null," "]
["SUS631_04901",null,null,null,null,null," "]
["SUS631_04932",null,null,null,null,null," "]
["SUS631_04962",null,null,null,null,null," "]
["SUS631_05009",null,null,null,null,null," "]
["SUS631_05027",null,null,null,null,null," "]
["SUS631_05058",null,null,null,null,null," "]
["SUS631_05085",null,null,null,null,null," "]
["SUS631_05106",null,null,null,null,null," "]
["SUS631_05137",null,null,null,null,null," "]
["SUS631_05155",null,null,null,null,null," "]
["SUS631_05184",null,null,null,null,null," "]
["SUS631_05216",null,null,null,null,null," "]
["SUS631_05263",null,null,null,null,null," "]
["SUS631_05294",null,null,null,null,null," "]
["SUS631_05307",null,null,null,null,null," "]
["SUS631_05342",null,null,null,null,null," "]
["SUS631_05373",null,null,null,null,null," "]
["SUS631_05391",null,null,null,null,null," "]
["SUS631_05434",null,null,null,null,null," "]
["SUS631_05452",null,null,null,null,null," "]
["SUS631_05499",null,null,null,null,null," "]
["SUS631_05501",null,null,null,null,null," "]
["SUS631_05529",null,null,null,null,null," "]
["SUS631_05578",null,null,null,null,null," "]
["SUS631_05609",null,null,null,null,null," "]
["SUS631_05627",null,null,null,null,null," "]
["SUS631_05656",null,null,null,null,null," "]
["SUS631_05688",null,null,null,null,null," "]
["SUS631_05706",null,null,null,null,null," "]
["SUS631_05737",null,null,null,null,null," "]
["SUS631_05783",null,null,null,null,null," "]
["SUS631_05814",null,null,null,null,null," "]
["SUS631_05816",null,null,null,null,null," "]
["SUS631_05863",null,null,null,null,null," "]
["SUS631_05878",null,null,null,null,null," "]
["SUS631_05924",null,null,null,null,null," "]
["SUS631_05942",null,null,null,null,null," "]
["SUS631_05973",null,null,null,null,null," "]
["SUS631_06005",null,null,null,null,null," "]
["SUS631_06021",null,null,null,null,null," "]
["SUS631_06052",null,null,null,null,null," "]
["SUS631_06099",null,null,null,null,null," "]
["SUS631_06128",null,null,null,null,null," "]
["SUS631_06147",null,null,null,null,null," "]
["SUS631_06178",null,null,null,null,null," "]
["SUS631_06209",null,null,null,null,null," "]
["SUS631_06227",null,null,null,null,null," "]
["SUS631_06257",null,null,null,null,null," "]
["SUS631_06288",null,null,null,null,null," "]
["SUS631_06306",null,null,null,null,null," "]
["SUS631_06350",null,null,null,null,null," "]
["SUS631_06383",null,null,null,null,null," "]
["SUS631_06414",null,null,null,null,null," "]
["SUS631_06445",null,null,null,null,null," "]
["SUS631_06449",null,null,null,null,null," "]
["SUS631_06493",null,null,null,null,null," "]
["SUS631_06524",null,null,null,null,null," "]
["SUS631_06542",null,null,null,null,null," "]
["SUS631_06572",null,null,null,null,null," "]
["SUS631_06619",null,null,null,null,null," "]
["SUS631_06621",null,null,null,null,null," "]
["SUS631_06652",null,null,null,null,null," "]
["SUS631_06699",null,null,null,null,null," "]
["SUS631_06729",null,null,null,null,null," "]
["SUS631_06747",null,null,null,null,null," "]
["SUS631_06778",null,null,null,null,null," "]
["SUS631_06794",null,null,null,null,null," "]
["SUS631_06826",null,null,null,null,null," "]
["SUS631_06857",null,null,null,null,null," "]
["SUS631_06888",null,null,null,null,null," "]
["SUS631_06921",null,null,null,null,null," "]
["SUS631_06965",null,null,null,null,null," "]
["SUS631_06983",null,null,null,null,null," "]
["SUS631_07014",null,null,null,null,null," "]
["SUS631_07044",null,null,null,null,null," "]
["SUS631_07062",null,null,null,null,null," "]
["SUS631_07093",null,null,null,null,null," "]
["SUS631_07124",null,null,null,null,null," "]
["SUS631_07143",null,null,null,null,null," "]
["SUS631_07172",null,null,null,null,null," "]
["SUS631_07219",null,null,null,null,null," "]
["SUS631_07250",null,null,null,null,null," "]
["SUS631_07266",null,null,null,null,null," "]
["SUS631_07298",null,null,null,null,null," "]
["SUS631_07329",null,null,null,null,null," "]
["SUS631_07347",null,null,null,null,null," "]
["SUS631_07393",null,null,null,null,null," "]
["SUS631_07408",null,null,null,null,null," "]
["SUS631_07426",null,null,null,null,null," "]
["SUS631_07457",null,null,null,null,null," "]
["SUS631_07488",null,null,null,null,null," "]
["SUS631_07534",null,null,null,null,null," "]
["SUS631_07565",null,null,null,null,null," "]
["SUS631_07583",null,null,null,null,null," "]
["SUS631_07615",null,null,null,null,null," "]
["SUS631_07644",null,null,null,null,null," "]
["SUS631_07662",null,null,null,null,null," "]
["SUS631_07693",null,null,null,null,null," "]
["SUS631_07714",null,null,null,null,null," "]
["SUS631_07770",null,null,null,null,null," "]
["SUS631_07772",null,null,null,null,null," "]
["SUS631_07819",null,null,null,null,null," "]
["SUS631_07837",null,null,null,null,null," "]
["SUS631_07880",null,null,null,null,null," "]
["SUS631_07898",null,null,null,null,null," "]
["SUS631_07929",null,null,null,null,null," "]
["SUS631_07964",null,null,null,null,null," "]
["SUS631_07977",null,null,null,null,null," "]
["SUS631_08008",null,null,null,null,null," "]
["SUS631_08055",null,null,null,null,null," "]
["SUS631_08059",null,null,null,null,null," "]
["SUS631_08087",null,null,null,null,null," "]
["SUS631_08134",null,null,null,null,null," "]
["SUS631_08165",null,null,null,null,null," "]
["SUS631_08186",null,null,null,null,null," "]
["SUS631_08213",null,null,null,null,null," "]
["SUS631_08244",null,null,null,null,null," "]
["SUS631_08262",null,null,null,null,null," "]
["SUS631_08309",null,null,null,null,null," "]
["SUS631_08339",null,null,null,null,null," "]
["SUS631_08370",null,null,null,null,null," "]
["SUS631_08401",null,null,null,null,null," "]
["SUS631_08408",null,null,null,null,null," "]
["SUS631_08449",null,null,null,null,null," "]
["SUS631_08480",null,null,null,null,null," "]
["SUS631_08498",null,null,null,null,null," "]
["SUS631_08531",null,null,null,null,null," "]
["SUS631_08575",null,null,null,null,null," "]
["SUS631_08577",null,null,null,null,null," "]
["SUS631_08608",null,null,null,null,null," "]
["SUS631_08658",null,null,null,null,null," "]
["SUS631_08685",null,null,null,null,null," "]
["SUS631_08716",null,null,null,null,null," "]
["SUS631_08734",null,null,null,null,null," "]
["SUS631_08753",null,null,null,null,null," "]
["SUS631_08782",null,null,null,null,null," "]
["SUS631_08813",null,null,null,null,null," "]
["SUS631_08844",null,null,null,null,null," "]
["SUS631_08880",null,null,null,null,null," "]
["SUS631_08892",null,null,null,null,null," "]
["SUS631_08939",null,null,null,null,null," "]
["SUS631_08970",null,null,null,null,null," "]
["SUS631_09003",null,null,null,null,null," "]
["SUS631_09018",null,null,null,null,null," "]
["SUS631_09049",null,null,null,null,null," "]
["SUS631_09080",null,null,null,null,null," "]
["SUS631_09102",null,null,null,null,null," "]
["SUS631_09128",null,null,null,null,null," "]
["SUS631_09175",null,null,null,null,null," "]
["SUS631_09206",null,null,null,null,null," "]
["SUS631_09225",null,null,null,null,null," "]
["SUS631_09254",null,null,null,null,null," "]
["SUS631_09285",null,null,null,null,null," "]
["SUS631_09303",null,null,null,null,null," "]
["SUS631_09324",null,null,null,null,null," "]
["SUS631_09364",null,null,null,null,null," "]
["SUS631_09382",null,null,null,null,null," "]
["SUS631_09413",null,null,null,null,null," "]
["SUS631_09447",null,null,null,null,null," "]
["SUS631_09490",null,null,null,null,null," "]
["SUS631_09521",null,null,null,null,null," "]
["SUS631_09539",null,null,null,null,null," "]
["SUS631_09574",null,null,null,null,null," "]
["SUS631_09600",null,null,null,null,null," "]
["SUS631_09618",null,null,null,null,null," "]
["SUS631_09649",null,null,null,null,null," "]
["SUS631_09669",null,null,null,null,null," "]
["SUS631_09697",null,null,null,null,null," "]
["SUS631_09728",null,null,null,null,null," "]
["SUS631_09775",null,null,null,null,null," "]
["SUS631_09796",null,null,null,null,null," "]
["SUS631_09836",null,null,null,null,null," "]
["SUS631_09854",null,null,null,null,null," "]
["SUS631_09885",null,null,null,null,null," "]
["SUS631_09923",null,null,null,null,null," "]
["SUS631_09933",null,null,null,null,null," "]
["SUS631_09964",null,null,null,null,null," "]
["SUS631_10011",null,null,null,null,null," "]
["SUS631_10018",null,null,null,null,null," "]
["SUS631_10043",null,null,null,null,null," "]
["SUS631_10090",null,null,null,null,null," "]
["SUS631_10121",null,null,null,null,null," "]
["SUS631_10145",null,null,null,null,null," "]
["SUS631_10169",null,null,null,null,null," "]
["SUS631_10200",null,null,null,null,null," "]
["SUS631_10218",null,null,null,null,null," "]
["SUS631_10268",null,null,null,null,null," "]
["SUS631_10295",null,null,null,null,null," "]
["SUS631_10326",null,null,null,null,null," "]
["SUS631_10357",null,null,null,null,null," "]
["SUS631_10367",null,null,null,null,null," "]
["SUS631_10405",null,null,null,null,null," "]
["SUS631_10436",null,null,null,null,null," "]
["SUS631_10454",null,null,null,null,null," "]
["SUS631_10490",null,null,null,null,null," "]
["SUS631_10502",null,null,null,null,null," "]
["SUS631_10533",null,null,null,null,null," "]
["SUS631_10564",null,null,null,null,null," "]
["SUS631_10589",null,null,null,null,null," "]
["SUS631_10641",null,null,null,null,null," "]
["SUS631_10672",null,null,null,null,null," "]
["SUS631_10690",null,null,null,null,null," "]
["SUS631_10712",null,null,null,null,null," "]
["SUS631_10738",null,null,null,null,null," "]
["SUS631_10769",null,null,null,null,null," "]
["SUS631_10800",null,null,null,null,null," "]
["SUS631_10839",null,null,null,null,null," "]
["SUS631_10848",null,null,null,null,null," "]
["SUS631_10895",null,null,null,null,null," "]
["SUS631_10926",null,null,null,null,null," "]
["SUS631_10934",null,null,null,null,null," "]
["SUS631_10974",null,null,null,null,null," "]
["SUS631_11005",null,null,null,null,null," "]
["SUS631_11036",null,null,null,null,null," "]
["SUS631_11061",null,null,null,null,null," "]
["SUS631_11084",null,null,null,null,null," "]
["SUS631_11131",null,null,null,null,null," "]
["SUS631_11162",null,null,null,null,null," "]
["SUS631_11184",null,null,null,null,null," "]
["SUS631_11210",null,null,null,null,null," "]
["SUS631_11241",null,null,null,null,null," "]
["SUS631_11272",null,null,null,null,null," "]
["SUS631_11283",null,null,null,null,null," "]
["SUS631_11320",null,null,null,null,null," "]
["SUS631_11338",null,null,null,null,null," "]
["SUS631_11369",null,null,null,null,null," "]
["SUS631_11406",null,null,null,null,null," "]
["SUS631_11446",null,null,null,null,null," "]
["SUS631_11477",null,null,null,null,null," "]
["SUS631_11495",null,null,null,null,null," "]
["SUS631_11533",null,null,null,null,null," "]
["SUS631_11556",null,null,null,null,null," "]
["SUS631_11574",null,null,null,null,null," "]
["SUS631_11605",null,null,null,null,null," "]
["SUS631_11628",null,null,null,null,null," "]
["SUS631_11653",null,null,null,null,null," "]
["SUS631_11684",null,null,null,null,null," "]
["SUS631_11731",null,null,null,null,null," "]
["SUS631_11755",null,null,null,null,null," "]
["SUS631_11792",null,null,null,null,null," "]
["SUS631_11810",null,null,null,null,null," "]
["SUS631_11841",null,null,null,null,null," "]
["SUS631_11854",null,null,null,null,null," "]
["SUS631_11889",null,null,null,null,null," "]
["SUS631_11920",null,null,null,null,null," "]
["SUS631_11967",null,null,null,null,null," "]
["SUS631_11977",null,null,null,null,null," "]
["SUS631_11999",null,null,null,null,null," "]
["SUS631_12046",null,null,null,null,null," "]
["SUS631_12077",null,null,null,null,null," "]
["SUS631_12104",null,null,null,null,null," "]
["SUS631_12125",null,null,null,null,null," "]
["SUS631_12156",null,null,null,null,null," "]
["SUS631_12174",null,null,null,null,null," "]
["SUS631_12199",null,null,null,null,null," "]
["SUS631_12235",null,null,null,null,null," "]
["SUS631_12282",null,null,null,null,null," "]
["SUS631_12313",null,null,null,null,null," "]
["SUS631_12326",null,null,null,null,null," "]
["SUS631_12361",null,null,null,null,null," "]
["SUS631_12392",null,null,null,null,null," "]
["SUS631_12410",null,null,null,null,null," "]
["SUS631_12449",null,null,null,null,null," "]
["SUS631_12458",null,null,null,null,null," "]
["SUS631_12489",null,null,null,null,null," "]
["SUS631_12520",null,null,null,null,null," "]
["SUS631_12548",null,null,null,null,null," "]
["SUS631_12597",null,null,null,null,null," "]
["SUS631_12628",null,null,null,null,null," "]
["SUS631_12646",null,null,null,null,null," "]
["SUS631_12671",null,null,null,null,null," "]
["SUS631_12694",null,null,null,null,null," "]
["SUS631_12725",null,null,null,null,null," "]
["SUS631_12756",null,null,null,null,null," "]
["SUS631_12798",null,null,null,null,null," "]
["SUS631_12804",null,null,null,null,null," "]
["SUS631_12851",null,null,null,null,null," "]
["SUS631_12882",null,null,null,null,null," "]
["SUS631_12893",null,null,null,null,null," "]
["SUS631_12930",null,null,null,null,null," "]
["SUS631_12961",null,null,null,null,null," "]
["SUS631_12992",null,null,null,null,null," "]
["SUS631_13020",null,null,null,null,null," "]
["SUS631_13040",null,null,null,null,null," "]
["SUS631_13087",null,null,null,null,null," "]
["SUS631_13118",null,null,null,null,null," "]
["SUS631_13143",null,null,null,null,null," "]
["SUS631_13166",null,null,null,null,null," "]
["SUS631_13197",null,null,null,null,null," "]
["SUS631_13228",null,null,null,null,null," "]
["SUS631_13242",null,null,null,null,null," "]
["SUS631_13276",null,null,null,null,null," "]
["SUS631_13294",null,null,null,null,null," "]
["SUS631_13325",null,null,null,null,null," "]
["SUS631_13365",null,null,null,null,null," "]
["SUS631_13402",null,null,null,null,null," "]
["SUS631_13433",null,null,null,null,null," "]
["SUS631_13451",null,null,null,null,null," "]
["SUS631_13464",null,null,null,null,null," "]
["SUS631_13512",null,null,null,null,null," "]
["SUS631_13530",null,null,null,null,null," "]
["SUS631_13561",null,null,null,null,null," "]
["SUS631_13587",null,null,null,null,null," "]
["SUS631_13609",null,null,null,null,null," "]
["SUS631_13640",null,null,null,null,null," "]
["SUS631_13687",null,null,null,null,null," "]
["SUS631_13714",null,null,null,null,null," "]
["SUS631_13748",null,null,null,null,null," "]
["SUS631_13766",null,null,null,null,null," "]
["SUS631_13797",null,null,null,null,null," "]
["SUS631_13809",null,null,null,null,null," "]
["SUS631_13845",null,null,null,null,null," "]
["SUS631_13876",null,null,null,null,null," "]
["SUS631_13923",null,null,null,null,null," "]
["SUS631_13936",null,null,null,null,null," "]
["SUS631_13955",null,null,null,null,null," "]
["SUS631_14002",null,null,null,null,null," "]
["SUS631_14033",null,null,null,null,null," "]
["SUS631_14063",null,null,null,null,null," "]
["SUS631_14081",null,null,null,null,null," "]
["SUS631_14112",null,null,null,null,null," "]
["SUS631_14130",null,null,null,null,null," "]
["SUS631_14158",null,null,null,null,null," "]
["SUS631_14191",null,null,null,null,null," "]
["SUS631_14238",null,null,null,null,null," "]
["SUS631_14240",null,null,null,null,null," "]
["SUS631_14285",null,null,null,null,null," "]
["SUS631_14317",null,null,null,null,null," "]
["SUS631_14348",null,null,null,null,null," "]
["SUS631_14366",null,null,null,null,null," "]
["SUS631_14408",null,null,null,null,null," "]
["SUS631_14414",null,null,null,null,null," "]
["SUS631_14445",null,null,null,null,null," "]
["SUS631_14476",null,null,null,null,null," "]
["SUS631_14507",null,null,null,null,null," "]
["SUS631_14553",null,null,null,null,null," "]
["SUS631_14584",null,null,null,null,null," "]
["SUS631_14602",null,null,null,null,null," "]
["SUS631_14630",null,null,null,null,null," "]
["SUS631_14650",null,null,null,null,null," "]
["SUS631_14681",null,null,null,null,null," "]
["SUS631_14712",null,null,null,null,null," "]
["SUS631_14729",null,null,null,null,null," "]
["SUS631_14760",null,null,null,null,null," "]
["SUS631_14791",null,null,null,null,null," "]
["SUS631_14838",null,null,null,null,null," "]
["SUS631_14852",null,null,null,null,null," "]
["SUS631_14886",null,null,null,null,null," "]
["SUS631_14917",null,null,null,null,null," "]
["SUS631_14948",null,null,null,null,null," "]
["SUS631_14979",null,null,null,null,null," "]
["SUS631_14996",null,null,null,null,null," "]
["SUS631_15043",null,null,null,null,null," "]
["SUS631_15045",null,null,null,null,null," "]
["SUS631_15074",null,null,null,null,null," "]
["SUS631_15122",null,null,null,null,null," "]
["SUS631_15153",null,null,null,null,null," "]
["SUS631_15184",null,null,null,null,null," "]
["SUS631_15201",null,null,null,null,null," "]
["SUS631_15232",null,null,null,null,null," "]
["SUS631_15250",null,null,null,null,null," "]
["SUS631_15281",null,null,null,null,null," "]
["SUS631_15324",null,null,null,null,null," "]
["SUS631_15358",null,null,null,null,null," "]
["SUS631_15389",null,null,null,null,null," "]
["SUS631_15391",null,null,null,null,null," "]
["SUS631_15423",null,null,null,null,null," "]
["SUS631_15468",null,null,null,null,null," "]
["SUS631_15486",null,null,null,null,null," "]
["SUS631_15517",null,null,null,null,null," "]
["SUS631_15546",null,null,null,null,null," "]
["SUS631_15565",null,null,null,null,null," "]
["SUS631_15596",null,null,null,null,null," "]
["SUS631_15643",null,null,null,null,null," "]
["SUS631_15673",null,null,null,null,null," "]
["SUS631_15704",null,null,null,null,null," "]
["SUS631_15722",null,null,null,null,null," "]
["SUS631_15753",null,null,null,null,null," "]
["SUS631_15768",null,null,null,null,null," "]
["SUS631_15801",null,null,null,null,null," "]
["SUS631_15832",null,null,null,null,null," "]
["SUS631_15850",null,null,null,null,null," "]
["SUS631_15895",null,null,null,null,null," "]
["SUS631_15911",null,null,null,null,null," "]
["SUS631_15958",null,null,null,null,null," "]
["SUS631_15989",null,null,null,null,null," "]
["SUS631_15994",null,null,null,null,null," "]
["SUS631_16037",null,null,null,null,null," "]
["SUS631_16068",null,null,null,null,null," "]
["SUS631_16086",null,null,null,null,null," "]
["SUS631_16117",null,null,null,null,null," "]
["SUS631_16147",null,null,null,null,null," "]
["SUS631_16194",null,null,null,null,null," "]
["SUS631_16196",null,null,null,null,null," "]
["SUS631_16244",null,null,null,null,null," "]
["SUS631_16273",null,null,null,null,null," "]
["SUS631_16304",null,null,null,null,null," "]
["SUS631_16322",null,null,null,null,null," "]
["SUS631_16339",null,null,null,null,null," "]
["SUS631_16383",null,null,null,null,null," "]
["SUS631_16401",null,null,null,null,null," "]
["SUS631_16432",null,null,null,null,null," "]
["SUS631_16478",null,null,null,null,null," "]
["SUS631_16509",null,null,null,null,null," "]
["SUS631_16511",null,null,null,null,null," "]
["SUS631_16559",null,null,null,null,null," "]
["SUS631_16588",null,null,null,null,null," "]
["SUS631_16606",null,null,null,null,null," "]
["SUS631_16637",null,null,null,null,null," "]
["SUS631_16682",null,null,null,null,null," "]
["SUS631_16685",null,null,null,null,null," "]
["SUS631_16716",null,null,null,null,null," "]
["SUS631_16747",null,null,null,null,null," "]
["SUS631_16781",null,null,null,null,null," "]
["SUS631_16824",null,null,null,null,null," "]
["SUS631_16842",null,null,null,null,null," "]
["SUS631_16873",null,null,null,null,null," "]
["SUS631_16904",null,null,null,null,null," "]
["SUS631_16921",null,null,null,null,null," "]
["SUS631_16952",null,null,null,null,null," "]
["SUS631_16999",null,null,null,null,null," "]
["SUS631_17003",null,null,null,null,null," "]
["SUS631_17031",null,null,null,null,null," "]
["SUS631_17078",null,null,null,null,null," "]
["SUS631_17109",null,null,null,null,null," "]
["SUS631_17126",null,null,null,null,null," "]
["SUS631_17157",null,null,null,null,null," "]
["SUS631_17188",null,null,null,null,null," "]
["SUS631_17206",null,null,null,null,null," "]
["SUS631_17253",null,null,null,null,null," "]
["SUS631_17267",null,null,null,null,null," "]
["SUS631_17314",null,null,null,null,null," "]
["SUS631_17316",null,null,null,null,null," "]
["SUS631_17348",null,null,null,null,null," "]
["SUS631_17393",null,null,null,null,null," "]
["SUS631_17424",null,null,null,null,null," "]
["SUS631_17442",null,null,null,null,null," "]
["SUS631_17475",null,null,null,null,null," "]
["SUS631_17503",null,null,null,null,null," "]
["SUS631_17521",null,null,null,null,null," "]
["SUS631_17552",null,null,null,null,null," "]
["SUS631_17602",null,null,null,null,null," "]
["SUS631_17629",null,null,null,null,null," "]
["SUS631_17660",null,null,null,null,null," "]
["SUS631_17678",null,null,null,null,null," "]
["SUS631_17697",null,null,null,null,null," "]
["SUS631_17739",null,null,null,null,null," "]
["SUS631_17757",null,null,null,null,null," "]
["SUS631_17788",null,null,null,null,null," "]
["SUS631_17824",null,null,null,null,null," "]
["SUS631_17836",null,null,null,null,null," "]
["SUS631_17867",null,null,null,null,null," "]
["SUS631_17914",null,null,null,null,null," "]
["SUS631_17947",null,null,null,null,null," "]
["SUS631_17975",null,null,null,null,null," "]
["SUS631_17993",null,null,null,null,null," "]
["SUS631_18024",null,null,null,null,null," "]
["SUS631_18046",null,null,null,null,null," "]
["SUS631_18072",null,null,null,null,null," "]
["SUS631_18103",null,null,null,null,null," "]
["SUS631_18121",null,null,null,null,null," "]
["SUS631_18169",null,null,null,null,null," "]
["SUS631_18198",null,null,null,null,null," "]
["SUS631_18229",null,null,null,null,null," "]
["SUS631_18260",null,null,null,null,null," "]
["SUS631_18268",null,null,null,null,null," "]
["SUS631_18308",null,null,null,null,null," "]
["SUS631_18339",null,null,null,null,null," "]
["SUS631_18357",null,null,null,null,null," "]
["SUS631_18391",null,null,null,null,null," "]
["SUS631_18434",null,null,null,null,null," "]
["SUS631_18465",null,null,null,null,null," "]
["SUS631_18467",null,null,null,null,null," "]
["SUS631_18518",null,null,null,null,null," "]
["SUS631_18544",null,null,null,null,null," "]
["SUS631_18562",null,null,null,null,null," "]
["SUS631_18593",null,null,null,null,null," "]
["SUS631_18613",null,null,null,null,null," "]
["SUS631_18641",null,null,null,null,null," "]
["SUS631_18672",null,null,null,null,null," "]
["SUS631_18703",null,null,null,null,null," "]
["SUS631_18740",null,null,null,null,null," "]
["SUS631_18780",null,null,null,null,null," "]
["SUS631_18798",null,null,null,null,null," "]
["SUS631_18829",null,null,null,null,null," "]
["SUS631_18863",null,null,null,null,null," "]
["SUS631_18877",null,null,null,null,null," "]
["SUS631_18908",null,null,null,null,null," "]
["SUS631_18939",null,null,null,null,null," "]
["SUS631_18962",null,null,null,null,null," "]
["SUS631_18987",null,null,null,null,null," "]
["SUS631_19034",null,null,null,null,null," "]
["SUS631_19065",null,null,null,null,null," "]
["SUS631_19085",null,null,null,null,null," "]
["SUS631_19113",null,null,null,null,null," "]
["SUS631_19144",null,null,null,null,null," "]
["SUS631_19162",null,null,null,null,null," "]
["SUS631_19212",null,null,null,null,null," "]
["SUS631_19223",null,null,null,null,null," "]
["SUS631_19270",null,null,null,null,null," "]
["SUS631_19272",null,null,null,null,null," "]
["SUS631_19307",null,null,null,null,null," "]
["SUS631_19349",null,null,null,null,null," "]
["SUS631_19380",null,null,null,null,null," "]
["SUS631_19398",null,null,null,null,null," "]
["SUS631_19434",null,null,null,null,null," "]
["SUS631_19459",null,null,null,null,null," "]
["SUS631_19477",null,null,null,null,null," "]
["SUS631_19508",null,null,null,null,null," "]
["SUS631_19557",null,null,null,null,null," "]
["SUS631_19585",null,null,null,null,null," "]
["SUS631_19587",null,null,null,null,null," "]
["SUS631_19634",null,null,null,null,null," "]
["SUS631_19656",null,null,null,null,null," "]
["SUS631_19695",null,null,null,null,null," "]
["SUS631_19713",null,null,null,null,null," "]
["SUS631_19744",null,null,null,null,null," "]
["SUS631_19783",null,null,null,null,null," "]
["SUS631_19792",null,null,null,null,null," "]
["SUS631_19823",null,null,null,null,null," "]
["SUS631_19870",null,null,null,null,null," "]
["SUS631_19878",null,null,null,null,null," "]
["SUS631_19931",null,null,null,null,null," "]
["SUS631_19949",null,null,null,null,null," "]
["SUS631_19980",null,null,null,null,null," "]
["SUS631_20005",null,null,null,null,null," "]
["SUS631_20028",null,null,null,null,null," "]
["SUS631_20059",null,null,null,null,null," "]
["SUS631_20077",null,null,null,null,null," "]
["SUS631_20128",null,null,null,null,null," "]
["SUS631_20154",null,null,null,null,null," "]
["SUS631_20185",null,null,null,null,null," "]
["SUS631_20216",null,null,null,null,null," "]
["SUS631_20227",null,null,null,null,null," "]
["SUS631_20264",null,null,null,null,null," "]
["SUS631_20295",null,null,null,null,null," "]
["SUS631_20313",null,null,null,null,null," "]
["SUS631_20350",null,null,null,null,null," "]
["SUS631_20390",null,null,null,null,null," "]
["SUS631_20392",null,null,null,null,null," "]
["SUS631_20423",null,null,null,null,null," "]
["SUS631_20477",null,null,null,null,null," "]
["SUS631_20500",null,null,null,null,null," "]
["SUS631_20531",null,null,null,null,null," "]
["SUS631_20549",null,null,null,null,null," "]
["SUS631_20572",null,null,null,null,null," "]
["SUS631_20597",null,null,null,null,null," "]
["SUS631_20628",null,null,null,null,null," "]
["SUS631_20659",null,null,null,null,null," "]
["SUS631_20699",null,null,null,null,null," "]
["SUS631_20736",null,null,null,null,null," "]
["SUS631_20754",null,null,null,null,null," "]
["SUS631_20785",null,null,null,null,null," "]
["SUS631_20822",null,null,null,null,null," "]
["SUS631_20833",null,null,null,null,null," "]
["SUS631_20864",null,null,null,null,null," "]
["SUS631_20895",null,null,null,null,null," "]
["SUS631_20921",null,null,null,null,null," "]
["SUS631_20943",null,null,null,null,null," "]
["SUS631_20990",null,null,null,null,null," "]
["SUS631_21021",null,null,null,null,null," "]
["SUS631_21044",null,null,null,null,null," "]
["SUS631_21069",null,null,null,null,null," "]
["SUS631_21100",null,null,null,null,null," "]
["SUS631_21118",null,null,null,null,null," "]
["SUS631_21143",null,null,null,null,null," "]
["SUS631_21179",null,null,null,null,null," "]
["SUS631_21197",null,null,null,null,null," "]
["SUS631_21228",null,null,null,null,null," "]
["SUS631_21266",null,null,null,null,null," "]
["SUS631_21305",null,null,null,null,null," "]
["SUS631_21336",null,null,null,null,null," "]
["SUS631_21354",null,null,null,null,null," "]
["SUS631_21393",null,null,null,null,null," "]
["SUS631_21415",null,null,null,null,null," "]
["SUS631_21433",null,null,null,null,null," "]
["SUS631_21464",null,null,null,null,null," "]
["SUS631_21488",null,null,null,null,null," "]
["SUS631_21541",null,null,null,null,null," "]
["SUS631_21543",null,null,null,null,null," "]
["SUS631_21590",null,null,null,null,null," "]
["SUS631_21615",null,null,null,null,null," "]
["SUS631_21651",null,null,null,null,null," "]
["SUS631_21669",null,null,null,null,null," "]
["SUS631_21700",null,null,null,null,null," "]
["SUS631_21742",null,null,null,null,null," "]
["SUS631_21748",null,null,null,null,null," "]
["SUS631_21779",null,null,null,null,null," "]
["SUS631_21826",null,null,null,null,null," "]
["SUS631_21837",null,null,null,null,null," "]
["SUS631_21858",null,null,null,null,null," "]
["SUS631_21905",null,null,null,null,null," "]
["SUS631_21936",null,null,null,null,null," "]
["SUS631_21964",null,null,null,null,null," "]
["SUS631_21984",null,null,null,null,null," "]
["SUS631_22015",null,null,null,null,null," "]
["SUS631_22033",null,null,null,null,null," "]
["SUS631_22087",null,null,null,null,null," "]
["SUS631_22094",null,null,null,null,null," "]
["SUS631_22141",null,null,null,null,null," "]
["SUS631_22172",null,null,null,null,null," "]
["SUS631_22186",null,null,null,null,null," "]
["SUS631_22220",null,null,null,null,null," "]
["SUS631_22251",null,null,null,null,null," "]
["SUS631_22269",null,null,null,null,null," "]
["SUS631_22309",null,null,null,null,null," "]
["SUS631_22346",null,null,null,null,null," "]
["SUS631_22348",null,null,null,null,null," "]
["SUS631_22379",null,null,null,null,null," "]
["SUS631_22408",null,null,null,null,null," "]
["SUS631_22456",null,null,null,null,null," "]
["SUS631_22487",null,null,null,null,null," "]
["SUS631_22505",null,null,null,null,null," "]
["SUS631_22531",null,null,null,null,null," "]
["SUS631_22553",null,null,null,null,null," "]
["SUS631_22584",null,null,null,null,null," "]
["SUS631_22615",null,null,null,null,null," "]
["SUS631_22658",null,null,null,null,null," "]
["SUS631_22663",null,null,null,null,null," "]
["SUS631_22710",null,null,null,null,null," "]
["SUS631_22741",null,null,null,null,null," "]
["SUS631_22753",null,null,null,null,null," "]
["SUS631_22789",null,null,null,null,null," "]
["SUS631_22820",null,null,null,null,null," "]
["SUS631_22851",null,null,null,null,null," "]
["SUS631_22880",null,null,null,null,null," "]
["SUS631_22899",null,null,null,null,null," "]
["SUS631_22946",null,null,null,null,null," "]
["SUS631_22977",null,null,null,null,null," "]
["SUS631_23003",null,null,null,null,null," "]
["SUS631_23025",null,null,null,null,null," "]
["SUS631_23056",null,null,null,null,null," "]
["SUS631_23087",null,null,null,null,null," "]
["SUS631_23102",null,null,null,null,null," "]
["SUS631_23135",null,null,null,null,null," "]
["SUS631_23153",null,null,null,null,null," "]
["SUS631_23184",null,null,null,null,null," "]
["SUS631_23225",null,null,null,null,null," "]
["SUS631_23261",null,null,null,null,null," "]
["SUS631_23292",null,null,null,null,null," "]
["SUS631_23310",null,null,null,null,null," "]
["SUS631_23352",null,null,null,null,null," "]
["SUS631_23371",null,null,null,null,null," "]
["SUS631_23389",null,null,null,null,null," "]
["SUS631_23420",null,null,null,null,null," "]
["SUS631_23447",null,null,null,null,null," "]
["SUS631_23468",null,null,null,null,null," "]
["SUS631_23499",null,null,null,null,null," "]
["SUS631_23546",null,null,null,null,null," "]
["SUS631_23574",null,null,null,null,null," "]
["SUS631_23607",null,null,null,null,null," "]
["SUS631_23625",null,null,null,null,null," "]
["SUS631_23656",null,null,null,null,null," "]
["SUS631_23673",null,null,null,null,null," "]
["SUS631_23704",null,null,null,null,null," "]
["SUS631_23735",null,null,null,null,null," "]
["SUS631_23782",null,null,null,null,null," "]
["SUS631_23796",null,null,null,null,null," "]
["SUS631_23814",null,null,null,null,null," "]
["SUS631_23861",null,null,null,null,null," "]
["SUS631_23892",null,null,null,null,null," "]
["SUS631_23923",null,null,null,null,null," "]
["SUS631_23940",null,null,null,null,null," "]
["SUS631_23971",null,null,null,null,null," "]
["SUS631_23989",null,null,null,null,null," "]
["SUS631_24018",null,null,null,null,null," "]
["SUS631_24050",null,null,null,null,null," "]
["SUS631_24097",null,null,null,null,null," "]
["SUS631_24128",null,null,null,null,null," "]
["SUS631_24145",null,null,null,null,null," "]
["SUS631_24176",null,null,null,null,null," "]
["SUS631_24207",null,null,null,null,null," "]
["SUS631_24225",null,null,null,null,null," "]
["SUS631_24268",null,null,null,null,null," "]
["SUS631_24273",null,null,null,null,null," "]
["SUS631_24304",null,null,null,null,null," "]
["SUS631_24335",null,null,null,null,null," "]
["SUS631_24367",null,null,null,null,null," "]
["SUS631_24412",null,null,null,null,null," "]
["SUS631_24443",null,null,null,null,null," "]
["SUS631_24461",null,null,null,null,null," "]
["SUS631_24490",null,null,null,null,null," "]
["SUS631_24509",null,null,null,null,null," "]
["SUS631_24540",null,null,null,null,null," "]
["SUS631_24571",null,null,null,null,null," "]
["SUS631_24617",null,null,null,null,null," "]
["SUS631_24619",null,null,null,null,null," "]
["SUS631_24650",null,null,null,null,null," "]
["SUS631_24697",null,null,null,null,null," "]
["SUS631_24712",null,null,null,null,null," "]
["SUS631_24745",null,null,null,null,null," "]
["SUS631_24776",null,null,null,null,null," "]
["SUS631_24807",null,null,null,null,null," "]
["SUS631_24839",null,null,null,null,null," "]
["SUS631_24855",null,null,null,null,null," "]
["SUS631_24902",null,null,null,null,null," "]
["SUS631_24933",null,null,null,null,null," "]
["SUS631_24962",null,null,null,null,null," "]
["SUS631_24981",null,null,null,null,null," "]
["SUS631_25012",null,null,null,null,null," "]
["SUS631_25043",null,null,null,null,null," "]
["SUS631_25061",null,null,null,null,null," "]
["SUS631_25091",null,null,null,null,null," "]
["SUS631_25109",null,null,null,null,null," "]
["SUS631_25140",null,null,null,null,null," "]
["SUS631_25184",null,null,null,null,null," "]
["SUS631_25217",null,null,null,null,null," "]
["SUS631_25248",null,null,null,null,null," "]
["SUS631_25266",null,null,null,null,null," "]
["SUS631_25283",null,null,null,null,null," "]
["SUS631_25327",null,null,null,null,null," "]
["SUS631_25345",null,null,null,null,null," "]
["SUS631_25376",null,null,null,null,null," "]
["SUS631_25406",null,null,null,null,null," "]
["SUS631_25424",null,null,null,null,null," "]
["SUS631_25455",null,null,null,null,null," "]
["SUS631_25502",null,null,null,null,null," "]
["SUS631_25533",null,null,null,null,null," "]
["SUS631_25563",null,null,null,null,null," "]
["SUS631_25581",null,null,null,null,null," "]
["SUS631_25612",null,null,null,null,null," "]
["SUS631_25628",null,null,null,null,null," "]
["SUS631_25660",null,null,null,null,null," "]
["SUS631_25691",null,null,null,null,null," "]
["SUS631_25738",null,null,null,null,null," "]
["SUS631_25755",null,null,null,null,null," "]
["SUS631_25770",null,null,null,null,null," "]
["SUS631_25817",null,null,null,null,null," "]
["SUS631_25848",null,null,null,null,null," "]
["SUS631_25882",null,null,null,null,null," "]
["SUS631_25896",null,null,null,null,null," "]
["SUS631_25927",null,null,null,null,null," "]
["SUS631_25945",null,null,null,null,null," "]
["SUS631_25977",null,null,null,null,null," "]
["SUS631_26006",null,null,null,null,null," "]
["SUS631_26053",null,null,null,null,null," "]
["SUS631_26084",null,null,null,null,null," "]
["SUS631_26104",null,null,null,null,null," "]
["SUS631_26132",null,null,null,null,null," "]
["SUS631_26163",null,null,null,null,null," "]
["SUS631_26181",null,null,null,null,null," "]
["SUS631_26227",null,null,null,null,null," "]
["SUS631_26242",null,null,null,null,null," "]
["SUS631_26260",null,null,null,null,null," "]
["SUS631_26291",null,null,null,null,null," "]
["SUS631_26326",null,null,null,null,null," "]
["SUS631_26368",null,null,null,null,null," "]
["SUS631_26399",null,null,null,null,null," "]
["SUS631_26417",null,null,null,null,null," "]
["SUS631_26449",null,null,null,null,null," "]
["SUS631_26465",null,null,null,null,null," "]
["SUS631_26496",null,null,null,null,null," "]
["SUS631_26527",null,null,null,null,null," "]
["SUS631_26548",null,null,null,null,null," "]
["SUS631_26575",null,null,null,null,null," "]
["SUS631_26606",null,null,null,null,null," "]
["SUS631_26653",null,null,null,null,null," "]
["SUS631_26671",null,null,null,null,null," "]
["SUS631_26701",null,null,null,null,null," "]
["SUS631_26732",null,null,null,null,null," "]
["SUS631_26763",null,null,null,null,null," "]
["SUS631_26798",null,null,null,null,null," "]
["SUS631_26811",null,null,null,null,null," "]
["SUS631_26858",null,null,null,null,null," "]
["SUS631_26889",null,null,null,null,null," "]
["SUS631_26893",null,null,null,null,null," "]
["SUS631_26937",null,null,null,null,null," "]
["SUS631_26968",null,null,null,null,null," "]
["SUS631_26999",null,null,null,null,null," "]
["SUS631_27020",null,null,null,null,null," "]
["SUS631_27047",null,null,null,null,null," "]
["SUS631_27065",null,null,null,null,null," "]
["SUS631_27096",null,null,null,null,null," "]
["SUS631_27143",null,null,null,null,null," "]
["SUS631_27173",null,null,null,null,null," "]
["SUS631_27204",null,null,null,null,null," "]
["SUS631_27206",null,null,null,null,null," "]
["SUS631_27242",null,null,null,null,null," "]
["SUS631_27283",null,null,null,null,null," "]
["SUS631_27301",null,null,null,null,null," "]
["SUS631_27332",null,null,null,null,null," "]
["SUS631_27365",null,null,null,null,null," "]
["SUS631_27380",null,null,null,null,null," "]
["SUS631_27411",null,null,null,null,null," "]
["SUS631_27458",null,null,null,null,null," "]
["SUS631_27492",null,null,null,null,null," "]
["SUS631_27519",null,null,null,null,null," "]
["SUS631_27537",null,null,null,null,null," "]
["SUS631_27568",null,null,null,null,null," "]
["SUS631_27587",null,null,null,null,null," "]
["SUS631_27616",null,null,null,null,null," "]
["SUS631_27647",null,null,null,null,null," "]
["SUS631_27694",null,null,null,null,null," "]
["SUS631_27714",null,null,null,null,null," "]
["SUS631_27726",null,null,null,null,null," "]
["SUS631_27773",null,null,null,null,null," "]
["SUS631_27804",null,null,null,null,null," "]
["SUS631_27813",null,null,null,null,null," "]
["SUS631_27852",null,null,null,null,null," "]
["SUS631_27883",null,null,null,null,null," "]
["SUS631_27901",null,null,null,null,null," "]
["SUS631_27936",null,null,null,null,null," "]
["SUS631_27962",null,null,null,null,null," "]
["SUS631_28009",null,null,null,null,null," "]
["SUS631_28011",null,null,null,null,null," "]
["SUS631_28063",null,null,null,null,null," "]
["SUS631_28088",null,null,null,null,null," "]
["SUS631_28119",null,null,null,null,null," "]
["SUS631_28137",null,null,null,null,null," "]
["SUS631_28158",null,null,null,null,null," "]
["SUS631_28198",null,null,null,null,null," "]
["SUS631_28216",null,null,null,null,null," "]
["SUS631_28247",null,null,null,null,null," "]
["SUS631_28285",null,null,null,null,null," "]
["SUS631_28324",null,null,null,null,null," "]
["SUS631_28355",null,null,null,null,null," "]
["SUS631_28373",null,null,null,null,null," "]
["SUS631_28408",null,null,null,null,null," "]
["SUS631_28421",null,null,null,null,null," "]
["SUS631_28452",null,null,null,null,null," "]
["SUS631_28483",null,null,null,null,null," "]
["SUS631_28507",null,null,null,null,null," "]
["SUS631_28531",null,null,null,null,null," "]
["SUS631_28562",null,null,null,null,null," "]
["SUS631_28609",null,null,null,null,null," "]
["SUS631_28630",null,null,null,null,null," "]
["SUS631_28657",null,null,null,null,null," "]
["SUS631_28688",null,null,null,null,null," "]
["SUS631_28719",null,null,null,null,null," "]
["SUS631_28757",null,null,null,null,null," "]
["SUS631_28767",null,null,null,null,null," "]
["SUS631_28798",null,null,null,null,null," "]
["SUS631_28816",null,null,null,null,null," "]
["SUS631_28852",null,null,null,null,null," "]
["SUS631_28893",null,null,null,null,null," "]
["SUS631_28924",null,null,null,null,null," "]
["SUS631_28955",null,null,null,null,null," "]
["SUS631_28979",null,null,null,null,null," "]
["SUS631_29003",null,null,null,null,null," "]
["SUS631_29021",null,null,null,null,null," "]
["SUS631_29052",null,null,null,null,null," "]
["SUS631_29102",null,null,null,null,null," "]
["SUS631_29129",null,null,null,null,null," "]
["SUS631_29160",null,null,null,null,null," "]
["SUS631_29162",null,null,null,null,null," "]
["SUS631_29201",null,null,null,null,null," "]
["SUS631_29239",null,null,null,null,null," "]
["SUS631_29257",null,null,null,null,null," "]
["SUS631_29288",null,null,null,null,null," "]
["SUS631_29324",null,null,null,null,null," "]
["SUS631_29336",null,null,null,null,null," "]
["SUS631_29367",null,null,null,null,null," "]
["SUS631_29414",null,null,null,null,null," "]
["SUS631_29423",null,null,null,null,null," "]
["SUS631_29475",null,null,null,null,null," "]
["SUS631_29493",null,null,null,null,null," "]
["SUS631_29524",null,null,null,null,null," "]
["SUS631_29546",null,null,null,null,null," "]
["SUS631_29572",null,null,null,null,null," "]
["SUS631_29603",null,null,null,null,null," "]
["SUS631_29621",null,null,null,null,null," "]
["SUS631_29673",null,null,null,null,null," "]
["SUS631_29682",null,null,null,null,null," "]
["SUS631_29729",null,null,null,null,null," "]
["SUS631_29760",null,null,null,null,null," "]
["SUS631_29768",null,null,null,null,null," "]
["SUS631_29808",null,null,null,null,null," "]
["SUS631_29839",null,null,null,null,null," "]
["SUS631_29857",null,null,null,null,null," "]
["SUS631_29895",null,null,null,null,null," "]
["SUS631_29918",null,null,null,null,null," "]
["SUS631_29965",null,null,null,null,null," "]
["SUS631_29967",null,null,null,null,null," "]
["SUS631_30022",null,null,null,null,null," "]
["SUS631_30044",null,null,null,null,null," "]
["SUS631_30075",null,null,null,null,null," "]
["SUS631_30093",null,null,null,null,null," "]
["SUS631_30117",null,null,null,null,null," "]
["SUS631_30154",null,null,null,null,null," "]
["SUS631_30172",null,null,null,null,null," "]
["SUS631_30203",null,null,null,null,null," "]
["SUS631_30244",null,null,null,null,null," "]
["SUS631_30280",null,null,null,null,null," "]
["SUS631_30282",null,null,null,null,null," "]
["SUS631_30329",null,null,null,null,null," "]
["SUS631_30367",null,null,null,null,null," "]
["SUS631_30377",null,null,null,null,null," "]
["SUS631_30408",null,null,null,null,null," "]
["SUS631_30439",null,null,null,null,null," "]
["SUS631_30466",null,null,null,null,null," "]
["SUS631_30487",null,null,null,null,null," "]
["SUS631_30518",null,null,null,null,null," "]
["SUS631_30565",null,null,null,null,null," "]
["SUS631_30589",null,null,null,null,null," "]
["SUS631_30613",null,null,null,null,null," "]
["SUS631_30644",null,null,null,null,null," "]
["SUS631_30675",null,null,null,null,null," "]
["SUS631_30688",null,null,null,null,null," "]
["SUS631_30723",null,null,null,null,null," "]
["SUS631_30754",null,null,null,null,null," "]
["SUS631_30781",null,null,null,null,null," "]
["SUS631_30802",null,null,null,null,null," "]
["SUS631_30849",null,null,null,null,null," "]
["SUS631_30880",null,null,null,null,null," "]
["SUS631_30904",null,null,null,null,null," "]
["SUS631_30928",null,null,null,null,null," "]
["SUS631_30959",null,null,null,null,null," "]
["SUS631_30977",null,null,null,null,null," "]
["SUS631_31003",null,null,null,null,null," "]
["SUS631_31038",null,null,null,null,null," "]
["SUS631_31085",null,null,null,null,null," "]
["SUS631_31087",null,null,null,null,null," "]
["SUS631_31126",null,null,null,null,null," "]
["SUS631_31164",null,null,null,null,null," "]
["SUS631_31195",null,null,null,null,null," "]
["SUS631_31213",null,null,null,null,null," "]
["SUS631_31253",null,null,null,null,null," "]
["SUS631_31274",null,null,null,null,null," "]
["SUS631_31292",null,null,null,null,null," "]
["SUS631_31323",null,null,null,null,null," "]
["SUS631_31348",null,null,null,null,null," "]
["SUS631_31400",null,null,null,null,null," "]
["SUS631_31431",null,null,null,null,null," "]
["SUS631_31449",null,null,null,null,null," "]
["SUS631_31475",null,null,null,null,null," "]
["SUS631_31510",null,null,null,null,null," "]
["SUS631_31528",null,null,null,null,null," "]
["SUS631_31559",null,null,null,null,null," "]
["SUS631_31602",null,null,null,null,null," "]
["SUS631_31607",null,null,null,null,null," "]
["SUS631_31638",null,null,null,null,null," "]
["SUS631_31685",null,null,null,null,null," "]
["SUS631_31697",null,null,null,null,null," "]
["SUS631_31746",null,null,null,null,null," "]
["SUS631_31764",null,null,null,null,null," "]
["SUS631_31795",null,null,null,null,null," "]
["SUS631_31824",null,null,null,null,null," "]
["SUS631_31843",null,null,null,null,null," "]
["SUS631_31874",null,null,null,null,null," "]
["SUS631_31892",null,null,null,null,null," "]
["SUS631_31947",null,null,null,null,null," "]
["SUS631_31969",null,null,null,null,null," "]
["SUS631_32000",null,null,null,null,null," "]
["SUS631_32031",null,null,null,null,null," "]
["SUS631_32046",null,null,null,null,null," "]
["SUS631_32079",null,null,null,null,null," "]
["SUS631_32110",null,null,null,null,null," "]
["SUS631_32128",null,null,null,null,null," "]
["SUS631_32169",null,null,null,null,null," "]
["SUS631_32205",null,null,null,null,null," "]
["SUS631_32236",null,null,null,null,null," "]
["SUS631_32238",null,null,null,null,null," "]
["SUS631_32268",null,null,null,null,null," "]
["SUS631_32315",null,null,null,null,null," "]
["SUS631_32346",null,null,null,null,null," "]
["SUS631_32364",null,null,null,null,null," "]
["SUS631_32391",null,null,null,null,null," "]
["SUS631_32412",null,null,null,null,null," "]
["SUS631_32443",null,null,null,null,null," "]
["SUS631_32474",null,null,null,null,null," "]
["SUS631_32518",null,null,null,null,null," "]
["SUS631_32551",null,null,null,null,null," "]
["SUS631_32569",null,null,null,null,null," "]
["SUS631_32600",null,null,null,null,null," "]
["SUS631_32613",null,null,null,null,null," "]
["SUS631_32648",null,null,null,null,null," "]
["SUS631_32679",null,null,null,null,null," "]
["SUS631_32710",null,null,null,null,null," "]
["SUS631_32740",null,null,null,null,null," "]
["SUS631_32758",null,null,null,null,null," "]
["SUS631_32805",null,null,null,null,null," "]
["SUS631_32836",null,null,null,null,null," "]
["SUS631_32863",null,null,null,null,null," "]
["SUS631_32884",null,null,null,null,null," "]
["SUS631_32915",null,null,null,null,null," "]
["SUS631_32946",null,null,null,null,null," "]
["SUS631_32962",null,null,null,null,null," "]
["SUS631_32994",null,null,null,null,null," "]
["SUS631_33041",null,null,null,null,null," "]
["SUS631_33043",null,null,null,null,null," "]
["SUS631_33085",null,null,null,null,null," "]
["SUS631_33120",null,null,null,null,null," "]
["SUS631_33151",null,null,null,null,null," "]
["SUS631_33169",null,null,null,null,null," "]
["SUS631_33212",null,null,null,null,null," "]
["SUS631_33230",null,null,null,null,null," "]
["SUS631_33248",null,null,null,null,null," "]
["SUS631_33279",null,null,null,null,null," "]
["SUS631_33307",null,null,null,null,null," "]
["SUS631_33356",null,null,null,null,null," "]
["SUS631_33358",null,null,null,null,null," "]
["SUS631_33405",null,null,null,null,null," "]
["SUS631_33434",null,null,null,null,null," "]
["SUS631_33466",null,null,null,null,null," "]
["SUS631_33484",null,null,null,null,null," "]
["SUS631_33515",null,null,null,null,null," "]
["SUS631_33533",null,null,null,null,null," "]
["SUS631_33563",null,null,null,null,null," "]
["SUS631_33594",null,null,null,null,null," "]
["SUS631_33641",null,null,null,null,null," "]
["SUS631_33656",null,null,null,null,null," "]
["SUS631_33702",null,null,null,null,null," "]
["SUS631_33720",null,null,null,null,null," "]
["SUS631_33751",null,null,null,null,null," "]
["SUS631_33783",null,null,null,null,null," "]
["SUS631_33799",null,null,null,null,null," "]
["SUS631_33830",null,null,null,null,null," "]
["SUS631_33848",null,null,null,null,null," "]
["SUS631_33878",null,null,null,null,null," "]
["SUS631_33909",null,null,null,null,null," "]
["SUS631_33956",null,null,null,null,null," "]
["SUS631_33987",null,null,null,null,null," "]
["SUS631_34005",null,null,null,null,null," "]
["SUS631_34035",null,null,null,null,null," "]
["SUS631_34066",null,null,null,null,null," "]
["SUS631_34084",null,null,null,null,null," "]
["SUS631_34128",null,null,null,null,null," "]
["SUS631_34161",null,null,null,null,null," "]
["SUS631_34163",null,null,null,null,null," "]
["SUS631_34194",null,null,null,null,null," "]
["SUS631_34227",null,null,null,null,null," "]
["SUS631_34271",null,null,null,null,null," "]
["SUS631_34302",null,null,null,null,null," "]
["SUS631_34320",null,null,null,null,null," "]
["SUS631_34350",null,null,null,null,null," "]
["SUS631_34368",null,null,null,null,null," "]
["SUS631_34399",null,null,null,null,null," "]
["SUS631_34430",null,null,null,null,null," "]
["SUS631_34477",null,null,null,null,null," "]
["SUS631_34507",null,null,null,null,null," "]
["SUS631_34525",null,null,null,null,null," "]
["SUS631_34556",null,null,null,null,null," "]
["SUS631_34572",null,null,null,null,null," "]
["SUS631_34604",null,null,null,null,null," "]
["SUS631_34635",null,null,null,null,null," "]
["SUS631_34666",null,null,null,null,null," "]
["SUS631_34699",null,null,null,null,null," "]
["SUS631_34714",null,null,null,null,null," "]
["SUS631_34761",null,null,null,null,null," "]
["SUS631_34792",null,null,null,null,null," "]
["SUS631_34822",null,null,null,null,null," "]
["SUS631_34840",null,null,null,null,null," "]
["SUS631_34871",null,null,null,null,null," "]
["SUS631_34902",null,null,null,null,null," "]
["SUS631_34921",null,null,null,null,null," "]
["SUS631_34950",null,null,null,null,null," "]
["SUS631_34968",null,null,null,null,null," "]
["SUS631_34999",null,null,null,null,null," "]
["SUS631_35044",null,null,null,null,null," "]
["SUS631_35076",null,null,null,null,null," "]
["SUS631_35107",null,null,null,null,null," "]
["SUS631_35125",null,null,null,null,null," "]
["SUS631_35143",null,null,null,null,null," "]
["SUS631_35186",null,null,null,null,null," "]
["SUS631_35204",null,null,null,null,null," "]
["SUS631_35235",null,null,null,null,null," "]
["SUS631_35266",null,null,null,null,null," "]
["SUS631_35312",null,null,null,null,null," "]
["SUS631_35314",null,null,null,null,null," "]
["SUS631_35361",null,null,null,null,null," "]
["SUS631_35393",null,null,null,null,null," "]
["SUS631_35422",null,null,null,null,null," "]
["SUS631_35440",null,null,null,null,null," "]
["SUS631_35471",null,null,null,null,null," "]
["SUS631_35488",null,null,null,null,null," "]
["SUS631_35519",null,null,null,null,null," "]
["SUS631_35550",null,null,null,null,null," "]
["SUS631_35597",null,null,null,null,null," "]
["SUS631_35615",null,null,null,null,null," "]
["SUS631_35629",null,null,null,null,null," "]
["SUS631_35676",null,null,null,null,null," "]
["SUS631_35707",null,null,null,null,null," "]
["SUS631_35742",null,null,null,null,null," "]
["SUS631_35755",null,null,null,null,null," "]
["SUS631_35786",null,null,null,null,null," "]
["SUS631_35804",null,null,null,null,null," "]
["SUS631_35837",null,null,null,null,null," "]
["SUS631_35865",null,null,null,null,null," "]
["SUS631_35912",null,null,null,null,null," "]
["SUS631_35943",null,null,null,null,null," "]
["SUS631_35964",null,null,null,null,null," "]
["SUS631_35991",null,null,null,null,null," "]
["SUS631_36022",null,null,null,null,null," "]
["SUS631_36040",null,null,null,null,null," "]
["SUS631_36087",null,null,null,null,null," "]
["SUS631_36117",null,null,null,null,null," "]
["SUS631_36119",null,null,null,null,null," "]
["SUS631_36150",null,null,null,null,null," "]
["SUS631_36186",null,null,null,null,null," "]
["SUS631_36227",null,null,null,null,null," "]
["SUS631_36258",null,null,null,null,null," "]
["SUS631_36276",null,null,null,null,null," "]
["SUS631_36309",null,null,null,null,null," "]
["SUS631_36324",null,null,null,null,null," "]
["SUS631_36355",null,null,null,null,null," "]
["SUS631_36386",null,null,null,null,null," "]
["SUS631_36408",null,null,null,null,null," "]
["SUS631_36434",null,null,null,null,null," "]
["SUS631_36465",null,null,null,null,null," "]
["SUS631_36512",null,null,null,null,null," "]
["SUS631_36531",null,null,null,null,null," "]
["SUS631_36560",null,null,null,null,null," "]
["SUS631_36591",null,null,null,null,null," "]
["SUS631_36622",null,null,null,null,null," "]
["SUS631_36658",null,null,null,null,null," "]
["SUS631_36670",null,null,null,null,null," "]
["SUS631_36717",null,null,null,null,null," "]
["SUS631_36748",null,null,null,null,null," "]
["SUS631_36753",null,null,null,null,null," "]
["SUS631_36796",null,null,null,null,null," "]
["SUS631_36827",null,null,null,null,null," "]
["SUS631_36858",null,null,null,null,null," "]
["SUS631_36880",null,null,null,null,null," "]
["SUS631_36906",null,null,null,null,null," "]
["SUS631_36924",null,null,null,null,null," "]
["SUS631_36955",null,null,null,null,null," "]
["SUS631_37003",null,null,null,null,null," "]
["SUS631_37032",null,null,null,null,null," "]
["SUS631_37063",null,null,null,null,null," "]
["SUS631_37094",null,null,null,null,null," "]
["SUS631_37102",null,null,null,null,null," "]
["SUS631_37142",null,null,null,null,null," "]
["SUS631_37160",null,null,null,null,null," "]
["SUS631_37191",null,null,null,null,null," "]
["SUS631_37225",null,null,null,null,null," "]
["SUS631_37239",null,null,null,null,null," "]
["SUS631_37270",null,null,null,null,null," "]
["SUS631_37317",null,null,null,null,null," "]
["SUS631_37352",null,null,null,null,null," "]
["SUS631_37378",null,null,null,null,null," "]
["SUS631_37396",null,null,null,null,null," "]
["SUS631_37427",null,null,null,null,null," "]
["SUS631_37447",null,null,null,null,null," "]
["SUS631_37475",null,null,null,null,null," "]
["SUS631_37506",null,null,null,null,null," "]
["SUS631_37553",null,null,null,null,null," "]
["SUS631_37574",null,null,null,null,null," "]
["SUS631_37585",null,null,null,null,null," "]
["SUS631_37632",null,null,null,null,null," "]
["SUS631_37663",null,null,null,null,null," "]
["SUS631_37673",null,null,null,null,null," "]
["SUS631_37711",null,null,null,null,null," "]
["SUS631_37742",null,null,null,null,null," "]
["SUS631_37760",null,null,null,null,null," "]
["SUS631_37796",null,null,null,null,null," "]
["SUS631_37821",null,null,null,null,null," "]
["SUS631_37868",null,null,null,null,null," "]
["SUS631_37899",null,null,null,null,null," "]
["SUS631_37923",null,null,null,null,null," "]
["SUS631_37947",null,null,null,null,null," "]
["SUS631_37978",null,null,null,null,null," "]
["SUS631_37996",null,null,null,null,null," "]
["SUS631_38018",null,null,null,null,null," "]
["SUS631_38057",null,null,null,null,null," "]
["SUS631_38075",null,null,null,null,null," "]
["SUS631_38106",null,null,null,null,null," "]
["SUS631_38145",null,null,null,null,null," "]
["SUS631_38183",null,null,null,null,null," "]
["SUS631_38214",null,null,null,null,null," "]
["SUS631_38232",null,null,null,null,null," "]
["SUS631_38268",null,null,null,null,null," "]
["SUS631_38280",null,null,null,null,null," "]
["SUS631_38311",null,null,null,null,null," "]
["SUS631_38342",null,null,null,null,null," "]
["SUS631_38367",null,null,null,null,null," "]
["SUS631_38390",null,null,null,null,null," "]
["SUS631_38421",null,null,null,null,null," "]
["SUS631_38468",null,null,null,null,null," "]
["SUS631_38490",null,null,null,null,null," "]
["SUS631_38516",null,null,null,null,null," "]
["SUS631_38547",null,null,null,null,null," "]
["SUS631_38578",null,null,null,null,null," "]
["SUS631_38617",null,null,null,null,null," "]
["SUS631_38626",null,null,null,null,null," "]
["SUS631_38673",null,null,null,null,null," "]
["SUS631_38704",null,null,null,null,null," "]
["SUS631_38712",null,null,null,null,null," "]
["SUS631_38752",null,null,null,null,null," "]
["SUS631_38783",null,null,null,null,null," "]
["SUS631_38814",null,null,null,null,null," "]
["SUS631_38839",null,null,null,null,null," "]
["SUS631_38862",null,null,null,null,null," "]
["SUS631_38880",null,null,null,null,null," "]
["SUS631_38911",null,null,null,null,null," "]
["SUS631_38962",null,null,null,null,null," "]
["SUS631_38988",null,null,null,null,null," "]
["SUS631_39019",null,null,null,null,null," "]
["SUS631_39050",null,null,null,null,null," "]
["SUS631_39061",null,null,null,null,null," "]
["SUS631_39098",null,null,null,null,null," "]
["SUS631_39116",null,null,null,null,null," "]
["SUS631_39147",null,null,null,null,null," "]
["SUS631_39184",null,null,null,null,null," "]
["SUS631_39195",null,null,null,null,null," "]
["SUS631_39226",null,null,null,null,null," "]
["SUS631_39273",null,null,null,null,null," "]
["SUS631_39283",null,null,null,null,null," "]
["SUS631_39334",null,null,null,null,null," "]
["SUS631_39352",null,null,null,null,null," "]
["SUS631_39383",null,null,null,null,null," "]
["SUS631_39406",null,null,null,null,null," "]
["SUS631_39431",null,null,null,null,null," "]
["SUS631_39462",null,null,null,null,null," "]
["SUS631_39509",null,null,null,null,null," "]
["SUS631_39533",null,null,null,null,null," "]
["SUS631_39541",null,null,null,null,null," "]
["SUS631_39588",null,null,null,null,null," "]
["SUS631_39619",null,null,null,null,null," "]
["SUS631_39628",null,null,null,null,null," "]
["SUS631_39667",null,null,null,null,null," "]
["SUS631_39698",null,null,null,null,null," "]
["SUS631_39716",null,null,null,null,null," "]
["SUS631_39755",null,null,null,null,null," "]
["SUS631_39777",null,null,null,null,null," "]
["SUS631_39824",null,null,null,null,null," "]
["SUS631_39855",null,null,null,null,null," "]
["SUS631_39882",null,null,null,null,null," "]
["SUS631_39903",null,null,null,null,null," "]
["SUS631_39934",null,null,null,null,null," "]
["SUS631_39952",null,null,null,null,null," "]
["SUS631_39977",null,null,null,null,null," "]
["SUS631_40013",null,null,null,null,null," "]
["SUS631_40031",null,null,null,null,null," "]
["SUS631_40062",null,null,null,null,null," "]
["SUS631_40104",null,null,null,null,null," "]
["SUS631_40139",null,null,null,null,null," "]
["SUS631_40170",null,null,null,null,null," "]
["SUS631_40188",null,null,null,null,null," "]
["SUS631_40227",null,null,null,null,null," "]
["SUS631_40236",null,null,null,null,null," "]
["SUS631_40267",null,null,null,null,null," "]
["SUS631_40298",null,null,null,null,null," "]
["SUS631_40326",null,null,null,null,null," "]
["SUS631_40346",null,null,null,null,null," "]
["SUS631_40377",null,null,null,null,null," "]
["SUS631_40424",null,null,null,null,null," "]
["SUS631_40449",null,null,null,null,null," "]
["SUS631_40472",null,null,null,null,null," "]
["SUS631_40503",null,null,null,null,null," "]
["SUS631_40534",null,null,null,null,null," "]
["SUS631_40548",null,null,null,null,null," "]
["SUS631_40582",null,null,null,null,null," "]
["SUS631_40613",null,null,null,null,null," "]
["SUS631_40660",null,null,null,null,null," "]
["SUS631_40671",null,null,null,null,null," "]
["SUS631_40708",null,null,null,null,null," "]
["SUS631_40739",null,null,null,null,null," "]
["SUS631_40770",null,null,null,null,null," "]
["SUS631_40798",null,null,null,null,null," "]
["SUS631_40818",null,null,null,null,null," "]
["SUS631_40836",null,null,null,null,null," "]
["SUS631_40867",null,null,null,null,null," "]
["SUS631_40893",null,null,null,null,null," "]
["SUS631_40944",null,null,null,null,null," "]
["SUS631_40975",null,null,null,null,null," "]
["SUS631_40977",null,null,null,null,null," "]
["SUS631_41020",null,null,null,null,null," "]
["SUS631_41054",null,null,null,null,null," "]
["SUS631_41072",null,null,null,null,null," "]
["SUS631_41103",null,null,null,null,null," "]
["SUS631_41143",null,null,null,null,null," "]
["SUS631_41151",null,null,null,null,null," "]
["SUS631_41182",null,null,null,null,null," "]
["SUS631_41229",null,null,null,null,null," "]
["SUS631_41242",null,null,null,null,null," "]
["SUS631_41290",null,null,null,null,null," "]
["SUS631_41308",null,null,null,null,null," "]
["SUS631_41339",null,null,null,null,null," "]
["SUS631_41365",null,null,null,null,null," "]
["SUS631_41387",null,null,null,null,null," "]
["SUS631_41418",null,null,null,null,null," "]
["SUS631_41465",null,null,null,null,null," "]
["SUS631_41492",null,null,null,null,null," "]
["SUS631_41497",null,null,null,null,null," "]
["SUS631_41544",null,null,null,null,null," "]
["SUS631_41575",null,null,null,null,null," "]
["SUS631_41587",null,null,null,null,null," "]
["SUS631_41623",null,null,null,null,null," "]
["SUS631_41654",null,null,null,null,null," "]
["SUS631_41672",null,null,null,null,null," "]
["SUS631_41714",null,null,null,null,null," "]
["SUS631_41733",null,null,null,null,null," "]
["SUS631_41780",null,null,null,null,null," "]
["SUS631_41782",null,null,null,null,null," "]
["SUS631_41813",null,null,null,null,null," "]
["SUS631_41859",null,null,null,null,null," "]
["SUS631_41890",null,null,null,null,null," "]
["SUS631_41908",null,null,null,null,null," "]
["SUS631_41936",null,null,null,null,null," "]
["SUS631_41969",null,null,null,null,null," "]
["SUS631_41987",null,null,null,null,null," "]
["SUS631_42018",null,null,null,null,null," "]
["SUS631_42063",null,null,null,null,null," "]
["SUS631_42095",null,null,null,null,null," "]
["SUS631_42126",null,null,null,null,null," "]
["SUS631_42144",null,null,null,null,null," "]
["SUS631_42158",null,null,null,null,null," "]
["SUS631_42205",null,null,null,null,null," "]
["SUS631_42223",null,null,null,null,null," "]
["SUS631_42254",null,null,null,null,null," "]
["SUS631_42285",null,null,null,null,null," "]
["SUS631_42302",null,null,null,null,null," "]
["SUS631_42333",null,null,null,null,null," "]
["SUS631_42380",null,null,null,null,null," "]
["SUS631_42408",null,null,null,null,null," "]
["SUS631_42428",null,null,null,null,null," "]
["SUS631_42459",null,null,null,null,null," "]
["SUS631_42490",null,null,null,null,null," "]
["SUS631_42507",null,null,null,null,null," "]
["SUS631_42538",null,null,null,null,null," "]
["SUS631_42569",null,null,null,null,null," "]
["SUS631_42587",null,null,null,null,null," "]
["SUS631_42630",null,null,null,null,null," "]
["SUS631_42664",null,null,null,null,null," "]
["SUS631_42695",null,null,null,null,null," "]
["SUS631_42726",null,null,null,null,null," "]
["SUS631_42757",null,null,null,null,null," "]
["SUS631_42774",null,null,null,null,null," "]
["SUS631_42792",null,null,null,null,null," "]
["SUS631_42823",null,null,null,null,null," "]
["SUS631_42852",null,null,null,null,null," "]
["SUS631_42900",null,null,null,null,null," "]
["SUS631_42931",null,null,null,null,null," "]
["SUS631_42933",null,null,null,null,null," "]
["SUS631_42979",null,null,null,null,null," "]
["SUS631_43010",null,null,null,null,null," "]
["SUS631_43028",null,null,null,null,null," "]
["SUS631_43059",null,null,null,null,null," "]
["SUS631_43102",null,null,null,null,null," "]
["SUS631_43107",null,null,null,null,null," "]
["SUS631_43138",null,null,null,null,null," "]
["SUS631_43169",null,null,null,null,null," "]
["SUS631_43201",null,null,null,null,null," "]
["SUS631_43246",null,null,null,null,null," "]
["SUS631_43264",null,null,null,null,null," "]
["SUS631_43295",null,null,null,null,null," "]
["SUS631_43324",null,null,null,null,null," "]
["SUS631_43343",null,null,null,null,null," "]
["SUS631_43374",null,null,null,null,null," "]
["SUS631_43392",null,null,null,null,null," "]
["SUS631_43423",null,null,null,null,null," "]
["SUS631_43453",null,null,null,null,null," "]
["SUS631_43500",null,null,null,null,null," "]
["SUS631_43531",null,null,null,null,null," "]
["SUS631_43546",null,null,null,null,null," "]
["SUS631_43579",null,null,null,null,null," "]
["SUS631_43610",null,null,null,null,null," "]
["SUS631_43628",null,null,null,null,null," "]
["SUS631_43673",null,null,null,null,null," "]
["SUS631_43689",null,null,null,null,null," "]
["SUS631_43736",null,null,null,null,null," "]
["SUS631_43738",null,null,null,null,null," "]
["SUS631_43768",null,null,null,null,null," "]
["SUS631_43815",null,null,null,null,null," "]
["SUS631_43846",null,null,null,null,null," "]
["SUS631_43864",null,null,null,null,null," "]
["SUS631_43895",null,null,null,null,null," "]
["SUS631_43925",null,null,null,null,null," "]
["SUS631_43943",null,null,null,null,null," "]
["SUS631_43974",null,null,null,null,null," "]
["SUS631_44022",null,null,null,null,null," "]
["SUS631_44051",null,null,null,null,null," "]
["SUS631_44053",null,null,null,null,null," "]
["SUS631_44100",null,null,null,null,null," "]
["SUS631_44117",null,null,null,null,null," "]
["SUS631_44161",null,null,null,null,null," "]
["SUS631_44179",null,null,null,null,null," "]
["SUS631_44210",null,null,null,null,null," "]
["SUS631_44244",null,null,null,null,null," "]
["SUS631_44258",null,null,null,null,null," "]
["SUS631_44289",null,null,null,null,null," "]
["SUS631_44336",null,null,null,null,null," "]
["SUS631_44367",null,null,null,null,null," "]
["SUS631_44384",null,null,null,null,null," "]
["SUS631_44415",null,null,null,null,null," "]
["SUS631_44446",null,null,null,null,null," "]
["SUS631_44466",null,null,null,null,null," "]
["SUS631_44494",null,null,null,null,null," "]
["SUS631_44525",null,null,null,null,null," "]
["SUS631_44543",null,null,null,null,null," "]
["SUS631_44589",null,null,null,null,null," "]
["SUS631_44620",null,null,null,null,null," "]
["SUS631_44651",null,null,null,null,null," "]
["SUS631_44682",null,null,null,null,null," "]
["SUS631_44688",null,null,null,null,null," "]
["SUS631_44730",null,null,null,null,null," "]
["SUS631_44761",null,null,null,null,null," "]
["SUS631_44779",null,null,null,null,null," "]
["SUS631_44811",null,null,null,null,null," "]
["SUS631_44856",null,null,null,null,null," "]
["SUS631_44858",null,null,null,null,null," "]
["SUS631_44889",null,null,null,null,null," "]
["SUS631_44938",null,null,null,null,null," "]
["SUS631_44966",null,null,null,null,null," "]
["SUS631_44984",null,null,null,null,null," "]
["SUS631_45015",null,null,null,null,null," "]
["SUS631_45033",null,null,null,null,null," "]
["SUS631_45063",null,null,null,null,null," "]
["SUS631_45094",null,null,null,null,null," "]
["SUS631_45126",null,null,null,null,null," "]
["SUS631_45171",null,null,null,null,null," "]
["SUS631_45202",null,null,null,null,null," "]
["SUS631_45220",null,null,null,null,null," "]
["SUS631_45253",null,null,null,null,null," "]
["SUS631_45281",null,null,null,null,null," "]
["SUS631_45299",null,null,null,null,null," "]
["SUS631_45330",null,null,null,null,null," "]
["SUS631_45352",null,null,null,null,null," "]
["SUS631_45378",null,null,null,null,null," "]
["SUS631_45409",null,null,null,null,null," "]
["SUS631_45456",null,null,null,null,null," "]
["SUS631_45475",null,null,null,null,null," "]
["SUS631_45517",null,null,null,null,null," "]
["SUS631_45535",null,null,null,null,null," "]
["SUS631_45566",null,null,null,null,null," "]
["SUS631_45602",null,null,null,null,null," "]
["SUS631_45614",null,null,null,null,null," "]
["SUS631_45645",null,null,null,null,null," "]
["SUS631_45663",null,null,null,null,null," "]
["SUS631_45697",null,null,null,null,null," "]
["SUS631_45724",null,null,null,null,null," "]
["SUS631_45771",null,null,null,null,null," "]
["SUS631_45802",null,null,null,null,null," "]
["SUS631_45824",null,null,null,null,null," "]
["SUS631_45850",null,null,null,null,null," "]
["SUS631_45881",null,null,null,null,null," "]
["SUS631_45899",null,null,null,null,null," "]
["SUS631_45947",null,null,null,null,null," "]
["SUS631_45976",null,null,null,null,null," "]
["SUS631_46007",null,null,null,null,null," "]
["SUS631_46009",null,null,null,null,null," "]
["SUS631_46046",null,null,null,null,null," "]
["SUS631_46086",null,null,null,null,null," "]
["SUS631_46117",null,null,null,null,null," "]
["SUS631_46135",null,null,null,null,null," "]
["SUS631_46169",null,null,null,null,null," "]
["SUS631_46183",null,null,null,null,null," "]
["SUS631_46214",null,null,null,null,null," "]
["SUS631_46245",null,null,null,null,null," "]
["SUS631_46268",null,null,null,null,null," "]
["SUS631_46322",null,null,null,null,null," "]
["SUS631_46324",null,null,null,null,null," "]
["SUS631_46371",null,null,null,null,null," "]
["SUS631_46391",null,null,null,null,null," "]
["SUS631_46419",null,null,null,null,null," "]
["SUS631_46450",null,null,null,null,null," "]
["SUS631_46481",null,null,null,null,null," "]
["SUS631_46518",null,null,null,null,null," "]
["SUS631_46529",null,null,null,null,null," "]
["SUS631_46576",null,null,null,null,null," "]
["SUS631_46607",null,null,null,null,null," "]
["SUS631_46613",null,null,null,null,null," "]
["SUS631_46655",null,null,null,null,null," "]
["SUS631_46686",null,null,null,null,null," "]
["SUS631_46717",null,null,null,null,null," "]
["SUS631_46740",null,null,null,null,null," "]
["SUS631_46765",null,null,null,null,null," "]
["SUS631_46812",null,null,null,null,null," "]
["SUS631_46814",null,null,null,null,null," "]
["SUS631_46863",null,null,null,null,null," "]
["SUS631_46891",null,null,null,null,null," "]
["SUS631_46922",null,null,null,null,null," "]
["SUS631_46940",null,null,null,null,null," "]
["SUS631_46962",null,null,null,null,null," "]
["SUS631_47001",null,null,null,null,null," "]
["SUS631_47019",null,null,null,null,null," "]
["SUS631_47050",null,null,null,null,null," "]
["SUS631_47085",null,null,null,null,null," "]
["SUS631_47127",null,null,null,null,null," "]
["SUS631_47129",null,null,null,null,null," "]
["SUS631_47176",null,null,null,null,null," "]
["SUS631_47212",null,null,null,null,null," "]
["SUS631_47237",null,null,null,null,null," "]
["SUS631_47255",null,null,null,null,null," "]
["SUS631_47286",null,null,null,null,null," "]
["SUS631_47307",null,null,null,null,null," "]
["SUS631_47334",null,null,null,null,null," "]
["SUS631_47365",null,null,null,null,null," "]
["SUS631_47412",null,null,null,null,null," "]
["SUS631_47434",null,null,null,null,null," "]
["SUS631_47473",null,null,null,null,null," "]
["SUS631_47491",null,null,null,null,null," "]
["SUS631_47522",null,null,null,null,null," "]
["SUS631_47533",null,null,null,null,null," "]
["SUS631_47570",null,null,null,null,null," "]
["SUS631_47601",null,null,null,null,null," "]
["SUS631_47619",null,null,null,null,null," "]
["SUS631_47656",null,null,null,null,null," "]
["SUS631_47680",null,null,null,null,null," "]
["SUS631_47727",null,null,null,null,null," "]
["SUS631_47758",null,null,null,null,null," "]
["SUS631_47783",null,null,null,null,null," "]
["SUS631_47806",null,null,null,null,null," "]
["SUS631_47837",null,null,null,null,null," "]
["SUS631_47855",null,null,null,null,null," "]
["SUS631_47878",null,null,null,null,null," "]
["SUS631_47916",null,null,null,null,null," "]
["SUS631_47934",null,null,null,null,null," "]
["SUS631_47965",null,null,null,null,null," "]
["SUS631_48005",null,null,null,null,null," "]
["SUS631_48042",null,null,null,null,null," "]
["SUS631_48073",null,null,null,null,null," "]
["SUS631_48091",null,null,null,null,null," "]
["SUS631_48128",null,null,null,null,null," "]
["SUS631_48139",null,null,null,null,null," "]
["SUS631_48170",null,null,null,null,null," "]
["SUS631_48201",null,null,null,null,null," "]
["SUS631_48227",null,null,null,null,null," "]
["SUS631_48278",null,null,null,null,null," "]
["SUS631_48280",null,null,null,null,null," "]
["SUS631_48327",null,null,null,null,null," "]
["SUS631_48350",null,null,null,null,null," "]
["SUS631_48375",null,null,null,null,null," "]
["SUS631_48406",null,null,null,null,null," "]
["SUS631_48437",null,null,null,null,null," "]
["SUS631_48477",null,null,null,null,null," "]
["SUS631_48485",null,null,null,null,null," "]
["SUS631_48532",null,null,null,null,null," "]
["SUS631_48563",null,null,null,null,null," "]
["SUS631_48572",null,null,null,null,null," "]
["SUS631_48611",null,null,null,null,null," "]
["SUS631_48642",null,null,null,null,null," "]
["SUS631_48673",null,null,null,null,null," "]
["SUS631_48699",null,null,null,null,null," "]
["SUS631_48721",null,null,null,null,null," "]
["SUS631_48739",null,null,null,null,null," "]
["SUS631_48770",null,null,null,null,null," "]
["SUS631_48822",null,null,null,null,null," "]
["SUS631_48847",null,null,null,null,null," "]
["SUS631_48878",null,null,null,null,null," "]
["SUS631_48909",null,null,null,null,null," "]
["SUS631_48921",null,null,null,null,null," "]
["SUS631_48957",null,null,null,null,null," "]
["SUS631_48975",null,null,null,null,null," "]
["SUS631_49006",null,null,null,null,null," "]
["SUS631_49044",null,null,null,null,null," "]
["SUS631_49083",null,null,null,null,null," "]
["SUS631_49085",null,null,null,null,null," "]
["SUS631_49132",null,null,null,null,null," "]
["SUS631_49143",null,null,null,null,null," "]
["SUS631_49193",null,null,null,null,null," "]
["SUS631_49211",null,null,null,null,null," "]
["SUS631_49242",null,null,null,null,null," "]
["SUS631_49266",null,null,null,null,null," "]
["SUS631_49290",null,null,null,null,null," "]
["SUS631_49321",null,null,null,null,null," "]
["SUS631_49368",null,null,null,null,null," "]
["SUS631_49393",null,null,null,null,null," "]
["SUS631_49400",null,null,null,null,null," "]
["SUS631_49447",null,null,null,null,null," "]
["SUS631_49478",null,null,null,null,null," "]
["SUS631_49492",null,null,null,null,null," "]
["SUS631_49526",null,null,null,null,null," "]
["SUS631_49557",null,null,null,null,null," "]
["SUS631_49575",null,null,null,null,null," "]
["SUS631_49615",null,null,null,null,null," "]
["SUS631_49636",null,null,null,null,null," "]
["SUS631_49683",null,null,null,null,null," "]
["SUS631_49714",null,null,null,null,null," "]
["SUS631_49742",null,null,null,null,null," "]
["SUS631_49762",null,null,null,null,null," "]
["SUS631_49793",null,null,null,null,null," "]
["SUS631_49811",null,null,null,null,null," "]
["SUS631_49837",null,null,null,null,null," "]
["SUS631_49872",null,null,null,null,null," "]
["SUS631_49890",null,null,null,null,null," "]
["SUS631_49921",null,null,null,null,null," "]
["SUS631_49964",null,null,null,null,null," "]
["SUS631_49998",null,null,null,null,null," "]
["SUS631_50029",null,null,null,null,null," "]
["SUS631_50047",null,null,null,null,null," "]
["SUS631_50087",null,null,null,null,null," "]
["SUS631_50095",null,null,null,null,null," "]
["SUS631_50126",null,null,null,null,null," "]
["SUS631_50157",null,null,null,null,null," "]
["SUS631_50186",null,null,null,null,null," "]
["SUS631_50205",null,null,null,null,null," "]
["SUS631_50236",null,null,null,null,null," "]
["SUS631_50283",null,null,null,null,null," "]
["SUS631_50309",null,null,null,null,null," "]
["SUS631_50331",null,null,null,null,null," "]
["SUS631_50362",null,null,null,null,null," "]
["SUS631_50393",null,null,null,null,null," "]
["SUS631_50408",null,null,null,null,null," "]
["SUS631_50441",null,null,null,null,null," "]
["SUS631_50472",null,null,null,null,null," "]
["SUS631_50519",null,null,null,null,null," "]
["SUS631_50531",null,null,null,null,null," "]
["SUS631_50567",null,null,null,null,null," "]
["SUS631_50598",null,null,null,null,null," "]
["SUS631_50629",null,null,null,null,null," "]
["SUS631_50658",null,null,null,null,null," "]
["SUS631_50677",null,null,null,null,null," "]
["SUS631_50695",null,null,null,null,null," "]
["SUS631_50726",null,null,null,null,null," "]
["SUS631_50753",null,null,null,null,null," "]
["SUS631_50803",null,null,null,null,null," "]
["SUS631_50834",null,null,null,null,null," "]
["SUS631_50865",null,null,null,null,null," "]
["SUS631_50880",null,null,null,null,null," "]
["SUS631_50913",null,null,null,null,null," "]
["SUS631_50931",null,null,null,null,null," "]
["SUS631_50962",null,null,null,null,null," "]
["SUS631_51003",null,null,null,null,null," "]
["SUS631_51010",null,null,null,null,null," "]
["SUS631_51041",null,null,null,null,null," "]
["SUS631_51088",null,null,null,null,null," "]
["SUS631_51102",null,null,null,null,null," "]
["SUS631_51149",null,null,null,null,null," "]
["SUS631_51167",null,null,null,null,null," "]
["SUS631_51198",null,null,null,null,null," "]
["SUS631_51225",null,null,null,null,null," "]
["SUS631_51246",null,null,null,null,null," "]
["SUS631_51277",null,null,null,null,null," "]
["SUS631_51324",null,null,null,null,null," "]
["SUS631_51352",null,null,null,null,null," "]
["SUS631_51356",null,null,null,null,null," "]
["SUS631_51403",null,null,null,null,null," "]
["SUS631_51434",null,null,null,null,null," "]
["SUS631_51447",null,null,null,null,null," "]
["SUS631_51482",null,null,null,null,null," "]
["SUS631_51513",null,null,null,null,null," "]
["SUS631_51531",null,null,null,null,null," "]
["SUS631_51574",null,null,null,null,null," "]
["SUS631_51592",null,null,null,null,null," "]
["SUS631_51639",null,null,null,null,null," "]
["SUS631_51670",null,null,null,null,null," "]
["SUS631_51673",null,null,null,null,null," "]
["SUS631_51718",null,null,null,null,null," "]
["SUS631_51749",null,null,null,null,null," "]
["SUS631_51767",null,null,null,null,null," "]
["SUS631_51796",null,null,null,null,null," "]
["SUS631_51828",null,null,null,null,null," "]
["SUS631_51846",null,null,null,null,null," "]
["SUS631_51877",null,null,null,null,null," "]
["SUS631_51923",null,null,null,null,null," "]
["SUS631_51954",null,null,null,null,null," "]
["SUS631_51985",null,null,null,null,null," "]
["SUS631_52003",null,null,null,null,null," "]
["SUS631_52018",null,null,null,null,null," "]
["SUS631_52051",null,null,null,null,null," "]
["SUS631_52082",null,null,null,null,null," "]
["SUS631_52113",null,null,null,null,null," "]
["SUS631_52145",null,null,null,null,null," "]
["SUS631_52161",null,null,null,null,null," "]
["SUS631_52192",null,null,null,null,null," "]
["SUS631_52239",null,null,null,null,null," "]
["SUS631_52268",null,null,null,null,null," "]
["SUS631_52287",null,null,null,null,null," "]
["SUS631_52318",null,null,null,null,null," "]
["SUS631_52349",null,null,null,null,null," "]
["SUS631_52367",null,null,null,null,null," "]
["SUS631_52397",null,null,null,null,null," "]
["SUS631_52428",null,null,null,null,null," "]
["SUS631_52475",null,null,null,null,null," "]
["SUS631_52490",null,null,null,null,null," "]
["SUS631_52523",null,null,null,null,null," "]
["SUS631_52554",null,null,null,null,null," "]
["SUS631_52585",null,null,null,null,null," "]
["SUS631_52617",null,null,null,null,null," "]
["SUS631_52633",null,null,null,null,null," "]
["SUS631_52651",null,null,null,null,null," "]
["SUS631_52682",null,null,null,null,null," "]
["SUS631_52712",null,null,null,null,null," "]
["SUS631_52759",null,null,null,null,null," "]
["SUS631_52790",null,null,null,null,null," "]
["SUS631_52821",null,null,null,null,null," "]
["SUS631_52839",null,null,null,null,null," "]
["SUS631_52869",null,null,null,null,null," "]
["SUS631_52887",null,null,null,null,null," "]
["SUS631_52918",null,null,null,null,null," "]
["SUS631_52962",null,null,null,null,null," "]
["SUS631_52966",null,null,null,null,null," "]
["SUS631_52997",null,null,null,null,null," "]
["SUS631_53028",null,null,null,null,null," "]
["SUS631_53061",null,null,null,null,null," "]
["SUS631_53105",null,null,null,null,null," "]
["SUS631_53123",null,null,null,null,null," "]
["SUS631_53154",null,null,null,null,null," "]
["SUS631_53184",null,null,null,null,null," "]
["SUS631_53202",null,null,null,null,null," "]
["SUS631_53233",null,null,null,null,null," "]
["SUS631_53280",null,null,null,null,null," "]
["SUS631_53283",null,null,null,null,null," "]
["SUS631_53312",null,null,null,null,null," "]
["SUS631_53359",null,null,null,null,null," "]
["SUS631_53390",null,null,null,null,null," "]
["SUS631_53406",null,null,null,null,null," "]
["SUS631_53438",null,null,null,null,null," "]
["SUS631_53469",null,null,null,null,null," "]
["SUS631_53487",null,null,null,null,null," "]
["SUS631_53533",null,null,null,null,null," "]
["SUS631_53548",null,null,null,null,null," "]
["SUS631_53595",null,null,null,null,null," "]
["SUS631_53626",null,null,null,null,null," "]
["SUS631_53632",null,null,null,null,null," "]
["SUS631_53674",null,null,null,null,null," "]
["SUS631_53705",null,null,null,null,null," "]
["SUS631_53723",null,null,null,null,null," "]
["SUS631_53755",null,null,null,null,null," "]
["SUS631_53784",null,null,null,null,null," "]
["SUS631_53802",null,null,null,null,null," "]
["SUS631_53833",null,null,null,null,null," "]
["SUS631_53882",null,null,null,null,null," "]
["SUS631_53910",null,null,null,null,null," "]
["SUS631_53941",null,null,null,null,null," "]
["SUS631_53959",null,null,null,null,null," "]
["SUS631_53977",null,null,null,null,null," "]
["SUS631_54020",null,null,null,null,null," "]
["SUS631_54038",null,null,null,null,null," "]
["SUS631_54069",null,null,null,null,null," "]
["SUS631_54104",null,null,null,null,null," "]
["SUS631_54117",null,null,null,null,null," "]
["SUS631_54148",null,null,null,null,null," "]
["SUS631_54195",null,null,null,null,null," "]
["SUS631_54227",null,null,null,null,null," "]
["SUS631_54243",null,null,null,null,null," "]
["SUS631_54274",null,null,null,null,null," "]
["SUS631_54305",null,null,null,null,null," "]
["SUS631_54326",null,null,null,null,null," "]
["SUS631_54353",null,null,null,null,null," "]
["SUS631_54384",null,null,null,null,null," "]
["SUS631_54431",null,null,null,null,null," "]
["SUS631_54449",null,null,null,null,null," "]
["SUS631_54479",null,null,null,null,null," "]
["SUS631_54510",null,null,null,null,null," "]
["SUS631_54541",null,null,null,null,null," "]
["SUS631_54548",null,null,null,null,null," "]
["SUS631_54589",null,null,null,null,null," "]
["SUS631_54620",null,null,null,null,null," "]
["SUS631_54638",null,null,null,null,null," "]
["SUS631_54671",null,null,null,null,null," "]
["SUS631_54715",null,null,null,null,null," "]
["SUS631_54746",null,null,null,null,null," "]
["SUS631_54748",null,null,null,null,null," "]
["SUS631_54798",null,null,null,null,null," "]
["SUS631_54825",null,null,null,null,null," "]
["SUS631_54843",null,null,null,null,null," "]
["SUS631_54874",null,null,null,null,null," "]
["SUS631_54893",null,null,null,null,null," "]
["SUS631_54922",null,null,null,null,null," "]
["SUS631_54953",null,null,null,null,null," "]
["SUS631_54984",null,null,null,null,null," "]
["SUS631_55020",null,null,null,null,null," "]
["SUS631_55061",null,null,null,null,null," "]
["SUS631_55079",null,null,null,null,null," "]
["SUS631_55110",null,null,null,null,null," "]
["SUS631_55143",null,null,null,null,null," "]
["SUS631_55158",null,null,null,null,null," "]
["SUS631_55189",null,null,null,null,null," "]
["SUS631_55236",null,null,null,null,null," "]
["SUS631_55242",null,null,null,null,null," "]
["SUS631_55268",null,null,null,null,null," "]
["SUS631_55315",null,null,null,null,null," "]
["SUS631_55346",null,null,null,null,null," "]
["SUS631_55365",null,null,null,null,null," "]
["SUS631_55394",null,null,null,null,null," "]
["SUS631_55425",null,null,null,null,null," "]
["SUS631_55443",null,null,null,null,null," "]
["SUS631_55492",null,null,null,null,null," "]
["SUS631_55504",null,null,null,null,null," "]
["SUS631_55551",null,null,null,null,null," "]
["SUS631_55553",null,null,null,null,null," "]
["SUS631_55587",null,null,null,null,null," "]
["SUS631_55630",null,null,null,null,null," "]
["SUS631_55661",null,null,null,null,null," "]
["SUS631_55679",null,null,null,null,null," "]
["SUS631_55714",null,null,null,null,null," "]
["SUS631_55740",null,null,null,null,null," "]
["SUS631_55758",null,null,null,null,null," "]
["SUS631_55789",null,null,null,null,null," "]
["SUS631_55813",null,null,null,null,null," "]
["SUS631_55866",null,null,null,null,null," "]
["SUS631_55897",null,null,null,null,null," "]
["SUS631_55915",null,null,null,null,null," "]
["SUS631_55936",null,null,null,null,null," "]
["SUS631_55976",null,null,null,null,null," "]
["SUS631_55994",null,null,null,null,null," "]
["SUS631_56025",null,null,null,null,null," "]
["SUS631_56063",null,null,null,null,null," "]
["SUS631_56073",null,null,null,null,null," "]
["SUS631_56104",null,null,null,null,null," "]
["SUS631_56151",null,null,null,null,null," "]
["SUS631_56158",null,null,null,null,null," "]
["SUS631_56199",null,null,null,null,null," "]
["SUS631_56230",null,null,null,null,null," "]
["SUS631_56261",null,null,null,null,null," "]
["SUS631_56285",null,null,null,null,null," "]
["SUS631_56309",null,null,null,null,null," "]
["SUS631_56340",null,null,null,null,null," "]
["SUS631_56358",null,null,null,null,null," "]
["SUS631_56408",null,null,null,null,null," "]
["SUS631_56435",null,null,null,null,null," "]
["SUS631_56466",null,null,null,null,null," "]
["SUS631_56497",null,null,null,null,null," "]
["SUS631_56507",null,null,null,null,null," "]
["SUS631_56545",null,null,null,null,null," "]
["SUS631_56576",null,null,null,null,null," "]
["SUS631_56594",null,null,null,null,null," "]
["SUS631_56630",null,null,null,null,null," "]
["SUS631_56671",null,null,null,null,null," "]
["SUS631_56702",null,null,null,null,null," "]
["SUS631_56704",null,null,null,null,null," "]
["SUS631_56757",null,null,null,null,null," "]
["SUS631_56781",null,null,null,null,null," "]
["SUS631_56799",null,null,null,null,null," "]
["SUS631_56830",null,null,null,null,null," "]
["SUS631_56852",null,null,null,null,null," "]
["SUS631_56878",null,null,null,null,null," "]
["SUS631_56909",null,null,null,null,null," "]
["SUS631_56940",null,null,null,null,null," "]
["SUS631_56979",null,null,null,null,null," "]
["SUS631_57017",null,null,null,null,null," "]
["SUS631_57035",null,null,null,null,null," "]
["SUS631_57066",null,null,null,null,null," "]
["SUS631_57102",null,null,null,null,null," "]
["SUS631_57114",null,null,null,null,null," "]
["SUS631_57145",null,null,null,null,null," "]
["SUS631_57176",null,null,null,null,null," "]
["SUS631_57201",null,null,null,null,null," "]
["SUS631_57224",null,null,null,null,null," "]
["SUS631_57271",null,null,null,null,null," "]
["SUS631_57302",null,null,null,null,null," "]
["SUS631_57324",null,null,null,null,null," "]
["SUS631_57350",null,null,null,null,null," "]
["SUS631_57381",null,null,null,null,null," "]
["SUS631_57399",null,null,null,null,null," "]
["SUS631_57423",null,null,null,null,null," "]
["SUS631_57460",null,null,null,null,null," "]
["SUS631_57507",null,null,null,null,null," "]
["SUS631_57509",null,null,null,null,null," "]
["SUS631_57546",null,null,null,null,null," "]
["SUS631_57586",null,null,null,null,null," "]
["SUS631_57617",null,null,null,null,null," "]
["SUS631_57635",null,null,null,null,null," "]
["SUS631_57673",null,null,null,null,null," "]
["SUS631_57696",null,null,null,null,null," "]
["SUS631_57714",null,null,null,null,null," "]
["SUS631_57745",null,null,null,null,null," "]
["SUS631_57772",null,null,null,null,null," "]
["SUS631_57822",null,null,null,null,null," "]
["SUS631_57824",null,null,null,null,null," "]
["SUS631_57871",null,null,null,null,null," "]
["SUS631_57895",null,null,null,null,null," "]
["SUS631_57932",null,null,null,null,null," "]
["SUS631_57950",null,null,null,null,null," "]
["SUS631_57981",null,null,null,null,null," "]
["SUS631_58022",null,null,null,null,null," "]
["SUS631_58029",null,null,null,null,null," "]
["SUS631_58060",null,null,null,null,null," "]
["SUS631_58107",null,null,null,null,null," "]
["SUS631_58117",null,null,null,null,null," "]
["SUS631_58168",null,null,null,null,null," "]
["SUS631_58186",null,null,null,null,null," "]
["SUS631_58217",null,null,null,null,null," "]
["SUS631_58244",null,null,null,null,null," "]
["SUS631_58265",null,null,null,null,null," "]
["SUS631_58296",null,null,null,null,null," "]
["SUS631_58314",null,null,null,null,null," "]
["SUS631_58367",null,null,null,null,null," "]
["SUS631_58391",null,null,null,null,null," "]
["SUS631_58422",null,null,null,null,null," "]
["SUS631_58453",null,null,null,null,null," "]
["SUS631_58466",null,null,null,null,null," "]
["SUS631_58501",null,null,null,null,null," "]
["SUS631_58532",null,null,null,null,null," "]
["SUS631_58550",null,null,null,null,null," "]
["SUS631_58589",null,null,null,null,null," "]
["SUS631_58627",null,null,null,null,null," "]
["SUS631_58629",null,null,null,null,null," "]
["SUS631_58660",null,null,null,null,null," "]
["SUS631_58688",null,null,null,null,null," "]
["SUS631_58737",null,null,null,null,null," "]
["SUS631_58755",null,null,null,null,null," "]
["SUS631_58786",null,null,null,null,null," "]
["SUS631_58811",null,null,null,null,null," "]
["SUS631_58834",null,null,null,null,null," "]
["SUS631_58865",null,null,null,null,null," "]
["SUS631_58896",null,null,null,null,null," "]
["SUS631_58938",null,null,null,null,null," "]
["SUS631_58973",null,null,null,null,null," "]
["SUS631_58991",null,null,null,null,null," "]
["SUS631_59022",null,null,null,null,null," "]
["SUS631_59033",null,null,null,null,null," "]
["SUS631_59070",null,null,null,null,null," "]
["SUS631_59101",null,null,null,null,null," "]
["SUS631_59132",null,null,null,null,null," "]
["SUS631_59160",null,null,null,null,null," "]
["SUS631_59180",null,null,null,null,null," "]
["SUS631_59227",null,null,null,null,null," "]
["SUS631_59258",null,null,null,null,null," "]
["SUS631_59283",null,null,null,null,null," "]
["SUS631_59306",null,null,null,null,null," "]
["SUS631_59337",null,null,null,null,null," "]
["SUS631_59355",null,null,null,null,null," "]
["SUS631_59382",null,null,null,null,null," "]
["SUS631_59416",null,null,null,null,null," "]
["SUS631_59434",null,null,null,null,null," "]
["SUS631_59465",null,null,null,null,null," "]
["SUS631_59492",null,null,null,null,null," "]
["SUS631_59493",null,null,null,null,null," "]
["SUS631_59494",null,null,null,null,null," "]
["SUS631_59495",null,null,null,null,null," "]
["SUS631_59496",null,null,null,null,null," "]
["SUS631_59497",null,null,null,null,null," "]
["SUS631_59498",null,null,null,null,null," "]
["SUS631_59499",null,null,null,null,null," "]
["SUS631_59500",null,null,null,null,null," "]
["SUS631_59501",null,null,null,null,null," "]
["SUS631_59502",null,null,null,null,null," "]
["SUS631_59503",null,null,null,null,null," "]
["SUS631_59504",null,null,null,null,null," "]
["SUS631_59505",null,null,null,null,null," "]
["SUS631_59506",null,null,null,null,null," "]
["SUS631_59507",null,null,null,null,null," "]
["SUS631_59508",null,null,null,null,null," "]
["SUS631_59509",null,null,null,null,null," "]
["SUS631_59510",null,null,null,null,null," "]
["SUS631_59511",null,null,null,null,null," "]
["SUS631_59512",null,null,null,null,null," "]
["SUS631_59513",null,null,null,null,null," "]
["SUS631_59514",null,null,null,null,null," "]
["SUS631_59515",null,null,null,null,null," "]
["SUS631_59516",null,null,null,null,null," "]
["SUS631_59517",null,null,null,null,null," "]
["SUS631_59518",null,null,null,null,null," "]
["SUS631_59519",null,null,null,null,null," "]
["SUS631_59520",null,null,null,null,null," "]
["SUS631_59521",null,null,null,null,null," "]
["SUS631_59522",null,null,null,null,null," "]
["SUS631_59523",null,null,null,null,null," "]
["SUS631_59524",null,null,null,null,null," "]
["SUS631_59525",null,null,null,null,null," "]
["SUS631_59526",null,null,null,null,null," "]
["SUS631_59527",null,null,null,null,null," "]
["SUS631_59528",null,null,null,null,null," "]
["SUS631_59529",null,null,null,null,null," "]
["SUS631_59530",null,null,null,null,null," "]
["SUS631_59531",null,null,null,null,null," "]
["SUS631_59532",null,null,null,null,null," "]
["SUS631_59533",null,null,null,null,null," "]
["SUS631_59534",null,null,null,null,null," "]
["SUS631_59535",null,null,null,null,null," "]
["SUS631_59536",null,null,null,null,null," "]
["SUS631_59537",null,null,null,null,null," "]
["SUS631_59538",null,null,null,null,null," "]
["SUS631_59539",null,null,null,null,null," "]
["SUS631_59540",null,null,null,null,null," "]
["SUS631_59541",null,null,null,null,null," "]
["SUS631_59542",null,null,null,null,null," "]
["SUS631_59543",null,null,null,null,null," "]
["SUS631_59544",null,null,null,null,null," "]
["SUS631_59545",null,null,null,null,null," "]
["SUS631_59546",null,null,null,null,null," "]
["SUS631_59547",null,null,null,null,null," "]
["SUS631_59548",null,null,null,null,null," "]
["SUS631_59549",null,null,null,null,null," "]
["SUS631_59550",null,null,null,null,null," "]
["SUS631_59551",null,null,null,null,null," "]
["SUS631_59552",null,null,null,null,null," "]
["SUS631_59553",null,null,null,null,null," "]
["SUS631_59554",null,null,null,null,null," "]
["SUS631_59555",null,null,null,null,null," "]
["SUS631_59556",null,null,null,null,null," "]
["SUS631_59557",null,null,null,null,null," "]
["SUS631_59558",null,null,null,null,null," "]
["SUS631_59559",null,null,null,null,null," "]
["SUS631_59560",null,null,null,null,null," "]
["SUS631_59561",null,null,null,null,null," "]
["SUS631_59562",null,null,null,null,null," "]
["SUS631_59563",null,null,null,null,null," "]
["SUS631_59564",null,null,null,null,null," "]
["SUS631_59565",null,null,null,null,null," "]
["SUS631_59566",null,null,null,null,null," "]
["SUS631_59567",null,null,null,null,null," "]
["SUS631_59568",null,null,null,null,null," "]
["SUS631_59569",null,null,null,null,null," "]
["SUS631_59570",null,null,null,null,null," "]
["SUS631_59571",null,null,null,null,null," "]
["SUS631_59572",null,null,null,null,null," "]
["SUS631_59573",null,null,null,null,null," "]
["SUS631_59574",null,null,null,null,null," "]
["SUS631_59575",null,null,null,null,null," "]
["SUS631_59576",null,null,null,null,null," "]
["SUS631_59577",null,null,null,null,null," "]
["SUS631_59578",null,null,null,null,null," "]
["SUS631_59579",null,null,null,null,null," "]
["SUS631_59580",null,null,null,null,null," "]
["SUS631_59581",null,null,null,null,null," "]
["SUS631_59582",null,null,null,null,null," "]
["SUS631_59583",null,null,null,null,null," "]
["SUS631_59584",null,null,null,null,null," "]
["SUS631_59585",null,null,null,null,null," "]
["SUS631_59586",null,null,null,null,null," "]
["SUS631_59587",null,null,null,null,null," "]
["SUS631_59588",null,null,null,null,null," "]
["SUS631_59589",null,null,null,null,null," "]
["SUS631_59590",null,null,null,null,null," "]
["SUS631_59591",null,null,null,null,null," "]
["SUS631_59592",null,null,null,null,null," "]
["SUS631_59593",null,null,null,null,null," "]
["SUS631_59594",null,null,null,null,null," "]
["SUS631_59595",null,null,null,null,null," "]
["SUS631_59596",null,null,null,null,null," "]
["SUS631_59597",null,null,null,null,null," "]
["SUS631_59598",null,null,null,null,null," "]
["SUS631_59599",null,null,null,null,null," "]
["SUS631_59600",null,null,null,null,null," "]
["SUS631_59601",null,null,null,null,null," "]
["SUS631_59602",null,null,null,null,null," "]
["SUS631_59603",null,null,null,null,null," "]
["SUS631_59604",null,null,null,null,null," "]
["SUS631_59605",null,null,null,null,null," "]
["SUS631_59606",null,null,null,null,null," "]
["SUS631_59607",null,null,null,null,null," "]
["SUS631_59608",null,null,null,null,null," "]
["SUS631_59609",null,null,null,null,null," "]
["SUS631_59610",null,null,null,null,null," "]
["SUS631_59611",null,null,null,null,null," "]
["SUS631_59612",null,null,null,null,null," "]
["SUS631_59613",null,null,null,null,null," "]
["SUS631_59614",null,null,null,null,null," "]
["SUS631_59615",null,null,null,null,null," "]
["SUS631_59616",null,null,null,null,null," "]
["SUS631_59617",null,null,null,null,null," "]
["SUS631_59618",null,null,null,null,null," "]
["SUS631_59619",null,null,null,null,null," "]
["SUS631_59620",null,null,null,null,null," "]
["SUS631_59621",null,null,null,null,null," "]
["SUS631_59622",null,null,null,null,null," "]
["SUS631_59623",null,null,null,null,null," "]
["SUS631_59624",null,null,null,null,null," "]
["SUS631_59625",null,null,null,null,null," "]
["SUS631_59626",null,null,null,null,null," "]
["SUS631_59627",null,null,null,null,null," "]
["SUS631_59628",null,null,null,null,null," "]
["SUS631_59629",null,null,null,null,null," "]
["SUS631_59630",null,null,null,null,null," "]
["SUS631_59631",null,null,null,null,null," "]
["SUS631_59632",null,null,null,null,null," "]
["SUS631_59633",null,null,null,null,null," "]
["SUS631_59634",null,null,null,null,null," "]
["SUS631_59635",null,null,null,null,null," "]
["SUS631_59636",null,null,null,null,null," "]
["SUS631_59637",null,null,null,null,null," "]
["SUS631_59638",null,null,null,null,null," "]
["SUS631_59639",null,null,null,null,null," "]
["SUS631_59640",null,null,null,null,null," "]
["SUS631_59641",null,null,null,null,null," "]
["SUS631_59642",null,null,null,null,null," "]
["SUS631_59643",null,null,null,null,null," "]
["SUS631_59644",null,null,null,null,null," "]
["SUS631_59645",null,null,null,null,null," "]
["SUS631_59646",null,null,null,null,null," "]
["SUS631_59647",null,null,null,null,null," "]
["SUS631_59648",null,null,null,null,null," "]
["SUS631_59649",null,null,null,null,null," "]
["SUS631_59650",null,null,null,null,null," "]
["SUS631_59651",null,null,null,null,null," "]
["SUS631_59652",null,null,null,null,null," "]
["SUS631_59653",null,null,null,null,null," "]
["SUS631_59654",null,null,null,null,null," "]
["SUS631_59655",null,null,null,null,null," "]
["SUS631_59656",null,null,null,null,null," "]
["SUS631_59657",null,null,null,null,null," "]
["SUS631_59658",null,null,null,null,null," "]
["SUS631_59659",null,null,null,null,null," "]
["SUS631_59660",null,null,null,null,null," "]
["SUS631_59661",null,null,null,null,null," "]
["SUS631_59662",null,null,null,null,null," "]
["SUS631_59663",null,null,null,null,null," "]
["SUS631_59664",null,null,null,null,null," "]
["SUS631_59665",null,null,null,null,null," "]
["SUS631_59666",null,null,null,null,null," "]
["SUS631_59667",null,null,null,null,null," "]
["SUS631_59668",null,null,null,null,null," "]
["SUS631_59669",null,null,null,null,null," "]
["SUS631_59670",null,null,null,null,null," "]
["SUS631_59671",null,null,null,null,null," "]
["SUS631_59672",null,null,null,null,null," "]
["SUS631_59673",null,null,null,null,null," "]
["SUS631_59674",null,null,null,null,null," "]
["SUS631_59675",null,null,null,null,null," "]
["SUS631_59676",null,null,null,null,null," "]
["SUS631_59677",null,null,null,null,null," "]
["SUS631_59678",null,null,null,null,null," "]
["SUS631_59679",null,null,null,null,null," "]
["SUS631_59680",null,null,null,null,null," "]
["SUS631_59681",null,null,null,null,null," "]
["SUS631_59682",null,null,null,null,null," "]
["SUS631_59683",null,null,null,null,null," "]
["SUS631_59684",null,null,null,null,null," "]
["SUS631_59685",null,null,null,null,null," "]
["SUS631_59686",null,null,null,null,null," "]
["SUS631_59687",null,null,null,null,null," "]
["SUS631_59688",null,null,null,null,null," "]
["SUS631_59689",null,null,null,null,null," "]
["SUS631_59690",null,null,null,null,null," "]
["SUS631_59691",null,null,null,null,null," "]
["SUS631_59692",null,null,null,null,null," "]
["SUS631_59693",null,null,null,null,null," "]
["SUS631_59694",null,null,null,null,null," "]
["SUS631_59695",null,null,null,null,null," "]
["SUS631_59696",null,null,null,null,null," "]
["SUS631_59697",null,null,null,null,null," "]
["SUS631_59698",null,null,null,null,null," "]
["SUS631_59699",null,null,null,null,null," "]
["SUS631_59700",null,null,null,null,null," "]
["SUS631_59701",null,null,null,null,null," "]
["SUS631_59702",null,null,null,null,null," "]
["SUS631_59703",null,null,null,null,null," "]
["SUS631_59704",null,null,null,null,null," "]
["SUS631_59705",null,null,null,null,null," "]
["SUS631_59706",null,null,null,null,null," "]
["SUS631_59707",null,null,null,null,null," "]
["SUS631_59708",null,null,null,null,null," "]
["SUS631_59709",null,null,null,null,null," "]
["SUS631_59710",null,null,null,null,null," "]
["SUS631_59711",null,null,null,null,null," "]
["SUS631_59712",null,null,null,null,null," "]
["SUS631_59713",null,null,null,null,null," "]
["SUS631_59714",null,null,null,null,null," "]
["SUS631_59715",null,null,null,null,null," "]
["SUS631_59716",null,null,null,null,null," "]
["SUS631_59717",null,null,null,null,null," "]
["SUS631_59718",null,null,null,null,null," "]
["SUS631_59719",null,null,null,null,null," "]
["SUS631_59720",null,null,null,null,null," "]
["SUS631_59721",null,null,null,null,null," "]
["SUS631_59722",null,null,null,null,null," "]
["SUS631_59723",null,null,null,null,null," "]
["SUS631_59724",null,null,null,null,null," "]
["SUS631_59725",null,null,null,null,null," "]
["SUS631_59726",null,null,null,null,null," "]
["SUS631_59727",null,null,null,null,null," "]
["SUS631_59728",null,null,null,null,null," "]
["SUS631_59729",null,null,null,null,null," "]
["SUS631_59730",null,null,null,null,null," "]
["SUS631_59731",null,null,null,null,null," "]
["SUS631_59732",null,null,null,null,null," "]
["SUS631_59733",null,null,null,null,null," "]
["SUS631_59734",null,null,null,null,null," "]
["SUS631_59735",null,null,null,null,null," "]
["SUS631_59736",null,null,null,null,null," "]
["SUS631_59737",null,null,null,null,null," "]
["SUS631_59738",null,null,null,null,null," "]
["SUS631_59739",null,null,null,null,null," "]
["SUS631_59740",null,null,null,null,null," "]
["SUS631_59741",null,null,null,null,null," "]
["SUS631_59742",null,null,null,null,null," "]
["SUS631_59743",null,null,null,null,null," "]
["SUS631_59744",null,null,null,null,null," "]
["SUS631_59745",null,null,null,null,null," "]
["SUS631_59746",null,null,null,null,null," "]
["SUS631_59747",null,null,null,null,null," "]
["SUS631_59748",null,null,null,null,null," "]
["SUS631_59749",null,null,null,null,null," "]
["SUS631_59750",null,null,null,null,null," "]
["SUS631_59751",null,null,null,null,null," "]
["SUS631_59752",null,null,null,null,null," "]
["SUS631_59753",null,null,null,null,null," "]
["SUS631_59754",null,null,null,null,null," "]
["SUS631_59755",null,null,null,null,null," "]
["SUS631_59756",null,null,null,null,null," "]
["SUS631_59757",null,null,null,null,null," "]
["SUS631_59758",null,null,null,null,null," "]
["SUS631_59759",null,null,null,null,null," "]
["SUS631_59760",null,null,null,null,null," "]
["SUS631_59761",null,null,null,null,null," "]
["SUS631_59762",null,null,null,null,null," "]
["SUS631_59763",null,null,null,null,null," "]
["SUS631_59764",null,null,null,null,null," "]
["SUS631_59765",null,null,null,null,null," "]
["SUS631_59766",null,null,null,null,null," "]
["SUS631_59767",null,null,null,null,null," "]
["SUS631_59768",null,null,null,null,null," "]
["SUS631_59769",null,null,null,null,null," "]
["SUS631_59770",null,null,null,null,null," "]
["SUS631_59771",null,null,null,null,null," "]
["SUS631_59772",null,null,null,null,null," "]
["SUS631_59773",null,null,null,null,null," "]
["SUS631_59774",null,null,null,null,null," "]
["SUS631_59775",null,null,null,null,null," "]
["SUS631_59776",null,null,null,null,null," "]
["SUS631_59777",null,null,null,null,null," "]
["SUS631_59778",null,null,null,null,null," "]
["SUS631_59779",null,null,null,null,null," "]
["SUS631_59780",null,null,null,null,null," "]
["SUS631_59781",null,null,null,null,null," "]
["SUS631_59782",null,null,null,null,null," "]
["SUS631_59783",null,null,null,null,null," "]
["SUS631_59784",null,null,null,null,null," "]
["SUS631_59785",null,null,null,null,null," "]
["SUS631_59786",null,null,null,null,null," "]
["SUS631_59787",null,null,null,null,null," "]
["SUS631_59788",null,null,null,null,null," "]
["SUS631_59789",null,null,null,null,null," "]
["SUS631_59790",null,null,null,null,null," "]
["SUS631_59791",null,null,null,null,null," "]
["SUS631_59792",null,null,null,null,null," "]
["SUS631_59793",null,null,null,null,null," "]
["SUS631_59794",null,null,null,null,null," "]
["SUS631_59795",null,null,null,null,null," "]
["SUS631_59796",null,null,null,null,null," "]
["SUS631_59797",null,null,null,null,null," "]
["SUS631_59798",null,null,null,null,null," "]
["SUS631_59799",null,null,null,null,null," "]
["SUS631_59800",null,null,null,null,null," "]
["SUS631_59801",null,null,null,null,null," "]
["SUS631_59802",null,null,null,null,null," "]
["SUS631_59803",null,null,null,null,null," "]
["SUS631_59804",null,null,null,null,null," "]
["SUS631_59805",null,null,null,null,null," "]
["SUS631_59806",null,null,null,null,null," "]
["SUS631_59807",null,null,null,null,null," "]
["SUS631_59808",null,null,null,null,null," "]
["SUS631_59809",null,null,null,null,null," "]
["SUS631_59810",null,null,null,null,null," "]
["SUS631_59811",null,null,null,null,null," "]
["SUS631_59812",null,null,null,null,null," "]
["SUS631_59813",null,null,null,null,null," "]
["SUS631_59814",null,null,null,null,null," "]
["SUS631_59815",null,null,null,null,null," "]
["SUS631_59816",null,null,null,null,null," "]
["SUS631_59817",null,null,null,null,null," "]
["SUS631_59818",null,null,null,null,null," "]
["SUS631_59819",null,null,null,null,null," "]
["SUS631_59820",null,null,null,null,null," "]
["SUS631_59821",null,null,null,null,null," "]
["SUS631_59822",null,null,null,null,null," "]
["SUS631_59823",null,null,null,null,null," "]
["SUS631_59824",null,null,null,null,null," "]
["SUS631_59825",null,null,null,null,null," "]
["SUS631_59826",null,null,null,null,null," "]
["SUS631_59827",null,null,null,null,null," "]
["SUS631_59828",null,null,null,null,null," "]
["SUS631_59829",null,null,null,null,null," "]
["SUS631_59830",null,null,null,null,null," "]
["SUS631_59831",null,null,null,null,null," "]
["SUS631_59832",null,null,null,null,null," "]
["SUS631_59833",null,null,null,null,null," "]
["SUS631_59834",null,null,null,null,null," "]
["SUS631_59835",null,null,null,null,null," "]
["SUS631_59836",null,null,null,null,null," "]
["SUS631_59837",null,null,null,null,null," "]
["SUS631_59838",null,null,null,null,null," "]
["SUS631_59839",null,null,null,null,null," "]
["SUS631_59840",null,null,null,null,null," "]
["SUS631_59841",null,null,null,null,null," "]
["SUS631_59842",null,null,null,null,null," "]
["SUS631_59843",null,null,null,null,null," "]
["SUS631_59844",null,null,null,null,null," "]
["SUS631_59845",null,null,null,null,null," "]
["SUS631_59846",null,null,null,null,null," "]
["SUS631_59847",null,null,null,null,null," "]
["SUS631_59848",null,null,null,null,null," "]
["SUS631_59849",null,null,null,null,null," "]
["SUS631_59850",null,null,null,null,null," "]
["SUS631_59851",null,null,null,null,null," "]
["SUS631_59852",null,null,null,null,null," "]
["SUS631_59853",null,null,null,null,null," "]
["SUS631_59854",null,null,null,null,null," "]
["SUS631_59855",null,null,null,null,null," "]
["SUS631_59856",null,null,null,null,null," "]
["SUS631_59857",null,null,null,null,null," "]
["SUS631_59858",null,null,null,null,null," "]
["SUS631_59859",null,null,null,null,null," "]
["SUS631_59860",null,null,null,null,null," "]
["SUS631_59861",null,null,null,null,null," "]
["SUS631_59862",null,null,null,null,null," "]
["SUS631_59863",null,null,null,null,null," "]
["SUS631_59864",null,null,null,null,null," "]
["SUS631_59865",null,null,null,null,null," "]
["SUS631_59866",null,null,null,null,null," "]
["SUS631_59867",null,null,null,null,null," "]
["SUS631_59868",null,null,null,null,null," "]
["SUS631_59869",null,null,null,null,null," "]
["SUS631_59870",null,null,null,null,null," "]
["SUS631_59871",null,null,null,null,null," "]
["SUS631_59872",null,null,null,null,null," "]
["SUS631_59873",null,null,null,null,null," "]
["SUS631_59874",null,null,null,null,null," "]
["SUS631_59875",null,null,null,null,null," "]
["SUS631_59876",null,null,null,null,null," "]
["SUS631_59877",null,null,null,null,null," "]
["SUS631_59878",null,null,null,null,null," "]
["SUS631_59879",null,null,null,null,null," "]
["SUS631_59880",null,null,null,null,null," "]
["SUS631_59881",null,null,null,null,null," "]
["SUS631_59882",null,null,null,null,null," "]
["SUS631_59883",null,null,null,null,null," "]
["SUS631_59884",null,null,null,null,null," "]
["SUS631_59885",null,null,null,null,null," "]
["SUS631_59886",null,null,null,null,null," "]
["SUS631_59887",null,null,null,null,null," "]
["SUS631_59888",null,null,null,null,null," "]
["SUS631_59889",null,null,null,null,null," "]
["SUS631_59890",null,null,null,null,null," "]
["SUS631_59891",null,null,null,null,null," "]
["SUS631_59892",null,null,null,null,null," "]
["SUS631_59893",null,null,null,null,null," "]
["SUS631_59894",null,null,null,null,null," "]
["SUS631_59895",null,null,null,null,null," "]
["SUS631_59896",null,null,null,null,null," "]
["SUS631_59897",null,null,null,null,null," "]
["SUS631_59898",null,null,null,null,null," "]
["SUS631_59899",null,null,null,null,null," "]
["SUS631_59900",null,null,null,null,null," "]
["SUS631_59901",null,null,null,null,null," "]
["SUS631_59902",null,null,null,null,null," "]
["SUS631_59903",null,null,null,null,null," "]
["SUS631_59904",null,null,null,null,null," "]
["SUS631_59905",null,null,null,null,null," "]
["SUS631_59906",null,null,null,null,null," "]
["SUS631_59907",null,null,null,null,null," "]
["SUS631_59908",null,null,null,null,null," "]
["SUS631_59909",null,null,null,null,null," "]
["SUS631_59910",null,null,null,null,null," "]
["SUS631_59911",null,null,null,null,null," "]
["SUS631_59912",null,null,null,null,null," "]
["SUS631_59913",null,null,null,null,null," "]
["SUS631_59914",null,null,null,null,null," "]
["SUS631_59915",null,null,null,null,null," "]
["SUS631_59916",null,null,null,null,null," "]
["SUS631_59917",null,null,null,null,null," "]
["SUS631_59918",null,null,null,null,null," "]
["SUS631_59919",null,null,null,null,null," "]
["SUS631_59920",null,null,null,null,null," "]
["SUS631_59921",null,null,null,null,null," "]
["SUS631_59922",null,null,null,null,null," "]
["SUS631_59923",null,null,null,null,null," "]
["SUS631_59924",null,null,null,null,null," "]
["SUS631_59925",null,null,null,null,null," "]
["SUS631_59926",null,null,null,null,null," "]
["SUS631_59927",null,null,null,null,null," "]
["SUS631_59928",null,null,null,null,null," "]
["SUS631_59929",null,null,null,null,null," "]
["SUS631_59930",null,null,null,null,null," "]
["SUS631_59931",null,null,null,null,null," "]
["SUS631_59932",null,null,null,null,null," "]
["SUS631_59933",null,null,null,null,null," "]
["SUS631_59934",null,null,null,null,null," "]
["SUS631_59935",null,null,null,null,null," "]
["SUS631_59936",null,null,null,null,null," "]
["SUS631_59937",null,null,null,null,null," "]
["SUS631_59938",null,null,null,null,null," "]
["SUS631_59939",null,null,null,null,null," "]
["SUS631_59940",null,null,null,null,null," "]
["SUS631_59941",null,null,null,null,null," "]
["SUS631_59942",null,null,null,null,null," "]
["SUS631_59943",null,null,null,null,null," "]
["SUS631_59944",null,null,null,null,null," "]
["SUS631_59945",null,null,null,null,null," "]
["SUS631_59946",null,null,null,null,null," "]
["SUS631_59947",null,null,null,null,null," "]
["SUS631_59948",null,null,null,null,null," "]
["SUS631_59949",null,null,null,null,null," "]
["SUS631_59950",null,null,null,null,null," "]
["SUS631_59951",null,null,null,null,null," "]
["SUS631_59952",null,null,null,null,null," "]
["SUS631_59953",null,null,null,null,null," "]
["SUS631_59954",null,null,null,null,null," "]
["SUS631_59955",null,null,null,null,null," "]
["SUS631_59956",null,null,null,null,null," "]
["SUS631_59957",null,null,null,null,null," "]
["SUS631_59958",null,null,null,null,null," "]
["SUS631_59959",null,null,null,null,null," "]
["SUS631_59960",null,null,null,null,null," "]
["SUS631_59961",null,null,null,null,null," "]
["SUS631_59962",null,null,null,null,null," "]
["SUS631_59963",null,null,null,null,null," "]
["SUS631_59964",null,null,null,null,null," "]
["SUS631_59965",null,null,null,null,null," "]
["SUS631_59966",null,null,null,null,null," "]
["SUS631_59967",null,null,null,null,null," "]
["SUS631_59968",null,null,null,null,null," "]
["SUS631_59969",null,null,null,null,null," "]
["SUS631_59970",null,null,null,null,null," "]
["SUS631_59971",null,null,null,null,null," "]
["SUS631_59972",null,null,null,null,null," "]
["SUS631_59973",null,null,null,null,null," "]
["SUS631_59974",null,null,null,null,null," "]
["SUS631_59975",null,null,null,null,null," "]
["SUS631_59976",null,null,null,null,null," "]
["SUS631_59977",null,null,null,null,null," "]
["SUS631_59978",null,null,null,null,null," "]
["SUS631_59979",null,null,null,null,null," "]
["SUS631_59980",null,null,null,null,null," "]
["SUS631_59981",null,null,null,null,null," "]
["SUS631_59982",null,null,null,null,null," "]
["SUS631_59983",null,null,null,null,null," "]
["SUS631_59984",null,null,null,null,null," "]
["SUS631_59985",null,null,null,null,null," "]
["SUS631_59986",null,null,null,null,null," "]
["SUS631_59987",null,null,null,null,null," "]
["SUS631_59988",null,null,null,null,null," "]
["SUS631_59989",null,null,null,null,null," "]
["SUS631_59990",null,null,null,null,null," "]
["SUS631_59991",null,null,null,null,null," "]